{"text_format":"1","workbook":"xlsx","n_sheets":28,"sheets":["A1__Forecast","A2__Forecast","B___Budget","C___Expense","D1__DCF_Analysis","D2__Balance_Sheet","E___Excel_Errors","F1__World_Data","F2__World_Population","G___Sales_Projection","H___Advanced_Formulas","I1__Growth","I2__Growth","I3__Growth","J___Employee_Summary","K1__Formulas_Block","K2__Formulas_Block_Data","L1__Pivot ","L2__Pivot_Data","M1__Projection ","M2__Projection_Copy ","N___Empty_Sheet","O___Data_Tables","P___Objects","Q___Cash_Flow","R___Graph","S___External_Links","T___Profit_&_Loss"],"not_rendered":{"charts":4,"images":9,"macros":1,"external_links":7,"defined_names":6,"comments":4,"pivot_tables":1},"unopened":[],"bounds":{"document_bytes":16777216,"sheet_cells":100000,"rows_first":2000,"rows_last":500,"rows_between":2000,"halvings":0,"cell_chars":16384,"cell_head_chars":4096},"cells_cut":0,"cells_raw":0,"read":"whole","date_system":"1900"}

{"sheet":"A1__Forecast","index":0,"n_rows":17,"n_cols":14,"rows_kept":17,"cut":false,"hidden":false,"merged":[[0,1,0,13]]}
[null,"Twelve month profit & loss projection year 2020"]
[null,"Jan","Feb","Mar","Apr","May","Jun","Jul","Aug","Sept","Oct","Nov","Dec ","Yearly"]
["Revenues"]
["Revenue 1",190,210,150,140,160,170,190,160,120,140,150,170,{"$f":"SUM(B4:M4)","v":1950}]
["Revenue 2",200,220,160,150,170,180,200,210,170,190,200,150,{"$f":"SUM(B5:M5)","v":2200}]
["Revenue 3",150,170,140,120,140,150,170,210,90,110,120,200,1770]
["Total",{"$f":"SUM(B4:B6)","v":540},{"$f":"SUM(C4:C6)","v":600},450,410,{"$f":"SUM(F5:F6)","v":310},{"$f":"SUM(G5:G6)","v":330},560,580,380,{"$f":"SUM(K4:K5)","v":330},470,520,5480]
[]
["Cost"]
["Cost 1",100,160,120,80,100,110,110,90,65,50,90,110,{"$f":"SUM(B10:M10)","v":1185}]
["Cost 2",120,170,130,90,110,120,120,140,115,100,140,160,{"$f":"SUM(B11:M11)","v":1515}]
["Cost 3",110,120,100,60,80,90,90,60,35,150,60,80,{"$f":"SUM(B12:M12)","v":1035}]
["Total",{"$f":"SUM(B10:B12)","v":330},450,350,230,290,320,320,{"$f":"SUM(I11:I12)","v":200},215,300,290,350,{"$f":"SUM(B13:M13)","v":3645}]
[]
["Profit",{"$f":"B7-B13","v":210},150,100,180,20,10,240,380,165,30,180,170,{"$f":"SUM(B15:M15)","v":1835}]
[]
["Net Profit",0.2,null,null,null,null,null,null,null,null,null,null,null,{"$f":"N15*(1-net_profit_1)","v":1468}]

{"sheet":"A2__Forecast","index":1,"n_rows":18,"n_cols":14,"rows_kept":18,"cut":false,"hidden":false,"merged":[[0,1,0,13]]}
[null,"Twelve month profit & loss projection year 2020"]
[null,"Jan","Feb","Mar","Apr","May","Jun","Jul","Aug","Sept","Oct","Nov","Dec ","Yearly"]
["Revenues"]
["Revenue 1",190,210,150,140,160,170,190,160,120,140,150,170,{"$f":"SUM(B4:M4)","v":1950}]
["Revenue 2",200,220,160,150,170,180,200,210,170,190,200,150,{"$f":"SUM(B5:M5)","v":2200}]
["Revenue 3",150,170,140,120,140,150,170,210,90,110,120,200,1770]
["Total",{"$f":"SUM(B4:B6)","v":540},{"$f":"SUM(C4:C6)","v":600},450,410,{"$f":"SUM(F5:F6)","v":310},{"$f":"SUM(G5:G6)","v":330},560,580,380,{"$f":"SUM(K4:K5)","v":330},470,520,5480]
[]
["Cost"]
["Cost 1",100,160,120,80,100,110,110,90,65,50,90,110,{"$f":"SUM(B10:M10)","v":1185}]
["Cost 2",120,170,130,90,110,120,120,140,115,100,140,160,{"$f":"SUM(B11:M11)","v":1515}]
["Cost 3",110,120,100,60,80,90,90,60,35,150,60,80,{"$f":"SUM(B12:M12)","v":1035}]
["Cost 4",150,170,110,100,120,130,150,160,120,140,150,100,{"$f":"SUM(B13:M13)","v":1600}]
["Total",{"$f":"SUM(B11:B13)","v":380},460,340,250,310,340,360,{"$f":"SUM(I12:I13)","v":220},270,390,350,340,{"$f":"SUM(B14:M14)","v":4010}]
[]
["Profit",{"$f":"B7-B14","v":160},140,110,160,0,-10,200,360,110,-60,120,180,{"$f":"SUM(B16:M16)","v":1470}]
[]
["Net Profit",0.2,null,null,null,null,null,null,null,null,null,null,null,{"$f":"N16*(1-net_profit_2)","v":1176}]

{"sheet":"B___Budget","index":2,"n_rows":79,"n_cols":14,"rows_kept":79,"cut":false,"hidden":false,"merged":[[0,1,0,13]]}
[null,"Budget 2020"]
[]
["INCOME","Jan","Feb","Mar","Apr","May","Jun","Jul","Aug","Sept","Oct","Nov","Dec ","Year"]
["Wages",417,424,694,350,547,680,410,381,685,256,500,401,{"$f":"SUM(B4:M4)","v":5745}]
["Interest/dividends",656,305,631,519,684,523,231,361,602,499,680,471,{"$f":"SUM(B5:M5)","v":6162}]
["Miscellaneous",328,386,307,587,305,563,668,473,655,458,293,233,5256]
["Income totals",{"$f":"SUM(B4:B6)","v":1401},1115,{"$f":"SUM(D4:D6)+500","v":2132},1956,1536,1766,1309,1215,1942,1213,1473,1105,18163]
[]
["EXPENSES"]
["Home"]
["Mortgage/rent",26,131,58,67,134,41,127,20,135,42,22,45,{"$f":"SUM(B11:M11)","v":848}]
["Utilities 1",22,75,64,149,27,73,104,17,127,122,41,93,914]
["Home telephone 1",78,73,65,100,123,75,92,16,38,128,143,57,988]
["Cellular telephone 1",14,101,140,107,132,55,113,127,15,54,67,80,{"$f":"SUM(B14:K14)","v":858}]
["Home repairs 1",74,53,135,130,92,136,17,101,70,112,57,95,{"$f":"SUM(B15:K15)","v":920}]
["Home improvement 1",87,105,131,80,38,11,137,139,59,95,129,100,1111]
["Home totals",{"$f":"SUM(B11:B16)","v":301},538,593,633,546,391,{"$f":"SUM(H12:H16)","v":463},{"$f":"SUM(I12:I16)","v":400},{"$f":"SUM(J11:J16)","v":444},{"$f":"SUM(K11:K16)","v":553},{"$f":"SUM(L11:L16)","v":459},{"$f":"SUM(M11:M16)","v":470},5791]
[]
["Daily living"]
["Groceries ",147,119,50,75,40,142,136,95,16,85,90,142,{"$f":"SUM(B20:M20)","v":1137}]
["Child care",19,136,39,50,106,43,132,99,95,16,113,67,915]
["Dry cleaning",99,79,47,36,41,88,74,12,49,75,24,69,693]
["Dining out",115,129,11,66,75,79,90,39,142,25,129,49,949]
["Housecleaning service",124,29,129,28,139,55,67,124,136,148,86,39,1104]
["Dog walker",144,50,100,72,122,54,99,61,130,117,53,72,1074]
["Daily living totals",{"$f":"SUM(B20:B25)","v":648},542,{"$f":"SUM(D20:D23)","v":147},327,523,461,598,430,568,466,495,438,5643]
[]
["Transportation"]
["Gas/fuel",66,19,72,47,61,136,29,26,90,137,90,55,{"$f":"SUM(B29:M29)","v":828}]
["Insurance",14,12,121,31,81,79,37,13,33,103,56,68,648]
["Repairs",128,38,44,14,146,145,135,117,87,31,75,33,993]
["Car wash/detailing services",140,92,114,117,32,15,27,33,136,39,138,140,1023]
["Parking",90,13,25,106,81,31,100,128,78,92,90,126,960]
["Public transportation",117,26,122,140,81,147,139,88,43,101,99,41,1144]
["Transportation totals",{"$f":"SUM(B29:B34)","v":555},{"$f":"SUM(C29:C34)","v":200},{"$f":"SUM(D29:D34)","v":498},455,482,553,467,405,467,503,548,463,5596]
[]
["Entertainment"]
["Cable TV",104,139,76,136,32,113,68,49,128,145,68,38,{"$f":"SUM(B38:M38)","v":1096}]
["Video/DVD rentals",126,62,27,144,55,54,67,98,21,72,140,90,{"$f":"SUM(B39:M39)","v":956}]
["Movies/plays",126,39,121,114,147,92,131,120,94,96,110,95,{"$f":"SUM(B40:M40)","v":1285}]
["Concerts/clubs",11,145,29,72,123,88,85,29,61,112,60,135,{"$f":"SUM(B41:M41)","v":950}]
["Entertainment totals",{"$f":"SUM(B38:B41)","v":367},385,253,466,357,347,351,296,304,425,378,358,{"$f":"SUM(B42:M42)","v":4287}]
[]
["Vacations"]
["Plane fare",43,45,27,49,65,84,146,99,144,71,116,71,{"$f":"SUM(B45:M45)","v":960}]
["Accommodations",50,87,0,133,45,115,104,73,20,52,82,149,910]
["Food",27,89,0,63,104,47,110,35,24,50,134,73,756]
["Souvenirs",30,87,70,71,14,106,65,28,44,109,78,131,833]
["Pet boarding",15,125,111,37,21,102,83,25,82,33,87,29,750]
["Rental car",15,100,45,121,50,134,109,35,98,117,129,128,{"$f":"SUM(B50:M50)","v":1081}]
["Vacations totals",{"$f":"SUM(B45:B50)","v":180},{"$f":"SUM(C45:C50)","v":533},253,474,299,588,617,295,412,432,626,581,5290]
[]
["Recreation"]
["Gym fees",54,141,134,47,78,129,15,54,19,37,12,75,{"$f":"SUM(B54:M54)","v":795}]
["Sports equipment",15,136,102,134,108,66,33,33,71,127,67,37,{"$f":"SUM(B55:M55)","v":929}]
["Team dues",96,14,60,52,18,15,108,117,132,53,70,16,{"$f":"SUM(B56:M56)","v":751}]
["Toys/child gear",43,50,133,118,127,104,23,101,55,122,22,125,{"$f":"SUM(B57:M57)","v":1023}]
["Recreation totals",{"$f":"SUM(B54:B57)","v":208},{"$f":"SUM(C54:C57)","v":341},429,351,331,314,179,305,277,339,171,253,{"$f":"SUM(B58:M58)","v":3498}]
[]
["Personal"]
["Clothing",130,52,114,46,120,91,56,65,39,59,73,11,{"$f":"SUM(B61:M61)","v":856}]
["Gifts",131,20,129,16,101,61,37,15,116,19,113,17,{"$f":"SUM(B62:M62)","v":775}]
["Books",105,27,129,14,43,104,27,136,49,45,42,30,{"$f":"SUM(B63:M63)","v":751}]
["Music (CDs, etc.)",15,110,58,78,74,25,57,24,77,42,81,89,{"$f":"SUM(B64:M64)","v":730}]
["Personal totals",{"$f":"SUM(B61:B64)","v":381},209,430,154,338,281,177,240,281,165,309,147,3112]
[]
["Financial obligations"]
["Long-term savings",50,81,144,33,81,144,85,50,83,110,53,107,{"$f":"SUM(B68:M68)","v":1021}]
["Retirement (401k, Roth IRA)",132,108,35,16,84,60,52,50,87,105,95,110,{"$f":"SUM(B69:M69)","v":934}]
["Income tax (additional)",28,60,103,85,55,114,126,105,119,26,82,31,934]
["Other obligations",108,146,30,66,71,96,81,121,81,67,49,79,995]
["Financial obligation totals",{"$f":"SUM(B69:B71)","v":268},{"$f":"SUM(C69:C71)","v":314},168,167,210,270,259,276,287,198,226,220,2863]
[]
["Misc. payments"]
["   Other 1",78,114,116,98,44,27,22,25,84,131,58,115,{"$f":"SUM(B75:M75)","v":912}]
["   Other 2",11,65,27,132,122,71,68,64,41,34,17,149,{"$f":"SUM(B76:M76)","v":801}]
["   Other 3",115,103,136,138,63,24,46,128,132,64,125,73,1147]
["   Other 4",23,99,119,136,140,85,104,35,36,137,37,28,979]
["Misc. payments totals",{"$f":"SUM(B75:B78)","v":227},381,398,504,369,207,240,252,293,366,237,365,3839]

{"sheet":"C___Expense","index":3,"n_rows":14,"n_cols":15,"rows_kept":14,"cut":false,"hidden":false,"merged":[]}
[null,null,"Average",null,"Jan","Feb","Mar","Apr","May","Jun"]
["Full Time"]
["Executive Director",null,{"$f":"AVERAGE(E3:J3)","v":0.60333333333333339},null,0.81,0.09,0.81,0.98,0.52,0.41,null,"Utilities 1",{"$f":"VLOOKUP($L3,B___Budget!$A$10:$D$15,2,FALSE)","v":22},{"$f":"VLOOKUP($L3,B___Budget!$A$10:$D$15,3,FALSE)","v":75},{"$f":"VLOOKUP($L3,B___Budget!$A$10:$D$15,4,FALSE)","v":64}]
["Director of Finance",null,{"$f":"AVERAGE(E4:J4)","v":0.46999999999999992},null,0.9,0.59,0.69,{"$f":"[1]Sheet1!B3/20","v":0.05},0.31,0.28000000000000003,null,"Home telephone 1",{"$f":"VLOOKUP($L4,B___Budget!$A$10:$D$15,2,FALSE)","v":78},{"$f":"VLOOKUP($L4,B___Budget!$A$10:$D$15,3,FALSE)","v":73},{"$f":"VLOOKUP($L4,B___Budget!$A$10:$D$15,4,FALSE)","v":65}]
["Director of Development",null,0.55000000000000004,null,0.63,0.47,0.7,{"$f":"[1]Sheet1!B4/20","v":0.1},0.44,0.96,null,"Cellular telephone 1",{"$f":"VLOOKUP($L5,B___Budget!$A$10:$D$15,2,FALSE)","v":14},{"$f":"VLOOKUP($L5,B___Budget!$A$10:$D$15,3,FALSE)","v":101},{"$f":"VLOOKUP($L5,B___Budget!$A$10:$D$15,4,FALSE)","v":140}]
["Program Director",null,0.51833333333333342,null,0.81,0.64,0.56000000000000005,0.23,0.16,0.71,null,"Cellular telephone 1",{"$f":"VLOOKUP($L6,B___Budget!$A$10:$D$15,2,FALSE)","v":14},{"$f":"VLOOKUP($L6,B___Budget!$A$10:$D$15,3,FALSE)","v":101},{"$f":"VLOOKUP($L6,B___Budget!$A$10:$D$15,4,FALSE)","v":140}]
["Average Full Time",null,0.53541666666666654,null,{"$f":"AVERAGE(E3:E6)","v":0.78749999999999998},{"$f":"AVERAGE(F3:F6)","v":0.44750000000000001},0.69000000000000006,0.34,0.35749999999999998,0.59]
[]
["Part Time"]
["Hotel employee",null,{"$f":"AVERAGE(E10:J10)","v":0.48166666666666663},null,0.26,0.42,0.24,0.51,0.91,0.55000000000000004,null,"Cell phone allowance",{"$f":"VLOOKUP(L10,J___Employee_Summary!$A$35:$C$37,3,FALSE)/1000","v":85.295190000000005}]
["Arts and Music Instructor A",null,0.53666666666666674,null,0.52,0.66,0.76,0.04,0.97,0.27,null,"Housing allowance",{"$f":"VLOOKUP(L11,J___Employee_Summary!$A$35:$C$37,3,FALSE)/1000","v":131.74051}]
["Arts and Music Instructor B",null,0.42666666666666669,null,7.0000000000000007E-2,0.49,0.49,0.25,0.48,0.78,null,"Performance Bonus",{"$f":"VLOOKUP(L12,J___Employee_Summary!$A$35:$C$37,3,FALSE)/1000","v":177.70308}]
["Average Part Time",null,{"$f":"AVERAGE(#REF!)","v":{"$error":"#REF!"}},null,{"$f":"AVERAGE(E10:E12)","v":0.28333333333333338},{"$f":"AVERAGE(F10:F12)","v":0.52333333333333332},0.49666666666666665,0.26666666666666666,0.78666666666666663,0.53333333333333333]
[null,null,null,null,{"$f":"E13/$C13","v":{"$error":"#REF!"}},{"$error":"#REF!"},{"$error":"#REF!"},{"$error":"#REF!"},{"$error":"#REF!"},{"$error":"#REF!"}]

{"sheet":"D1__DCF_Analysis","index":4,"n_rows":339,"n_cols":19,"rows_kept":339,"cut":false,"hidden":false,"merged":[]}
["DCF Analysis"]
["(€ Millions)",2013,2014,2015,2016,2017,2018,2019,"2020E","2021E","2022E","2023E","2024E","2025E","2026E","2027E","2028E","2029E","2030E"]
[]
["DIS Enterprise Value"]
["Total Present Value of Product 1",{"$f":"B48","v":5634.7420702108311},{"$f":"C48","v":5918.0221300384555},6669.5370339560504,6966.2494988600429,7567.1908675002451,7927.7823748296087,8489.8081086560851,8511.7541438395874,8724.2001397308377,8870.7508977230409,9034.5465463567689,9211.931864996528,9430.4466062342599,9648.6318464472206,9890.9797532688499,10100.032572612716,10319.365796877555,11118.484824799252]
["Total Present Value of Product 2",{"$f":"B73","v":2921.6780368790778},{"$f":"C73","v":3071.7276865451731},3197.0590342484702,3267.185645741285,3371.1264044909267,3459.2809939379104,3625.0220628215311,3735.3556899886084,3792.0247858077846,3876.0749453018134,3955.6928309267869,4057.4668737357542,4162.5174450165296,4275.6091967926586,4384.5937092063496,4488.7377299304035,4581.2281828098203,4935.9928732176559]
["Total Present Value of Product 3",{"$f":"B98","v":12505.93259501658},{"$f":"C98","v":13551.348988397691},14553.956320715355,15300.340206897814,16421.925671043948,17200.249865306207,18218.183564059291,18963.457002947311,19304.978919622772,19667.984718414966,20051.165118647776,20512.208303239328,20994.321814638621,21487.54651009812,21963.026672832475,22388.757562320527,22762.185863265146,24519.105552167744]
["Total Present Value of Product 4",{"$f":"B123","v":15790.250599908188},{"$f":"C123","v":16812.326063701101},18010.516809029268,19141.946804673949,21880.648914102021,24177.885595089683,25867.108633056167,27232.152812218039,27893.720659095539,28651.690487777058,29373.734395623353,30259.673634144681,31160.017297675426,32108.036011182856,33009.001307617662,33853.83822959839,34583.916000310448,37262.052029198589]
["Total Present Value of Product 5",{"$f":"B148","v":5914.9157598965976},{"$f":"C148","v":6440.1501571048175},6991.0960010852768,7444.3004306436742,8071.7053295693577,8517.9662129394819,9082.6751520818452,9567.7970929935,9800.7986580815596,10050.996809890858,10275.991865775126,10557.738170161567,10846.295817290709,11153.85384745358,11448.38110487881,11727.642178451993,11973.12996524184,12900.314461589405]
["Total Present Value of Product 6",{"$f":"B173","v":2449.0847733399778},{"$f":"C173","v":2436.1359664211268},2470.8548201296353,2413.0539935006564,2401.7386368695888,2369.2382555353843,2401.0964126038907,2418.4798345637018,2418.1360451212518,2441.6666929940156,2473.9065217417342,2536.526644303874,2601.1884925364789,2670.9269106988186,2738.2276145338924,2802.7158517772928,2860.1482152428248,3081.6345843148865]
["Total Present Value of Product 7",{"$f":"B198","v":702.61398768235745},{"$f":"C198","v":866.71168912558778},952.97642482864796,1016.8805286155239,1219.2156622473838,1333.8480063936795,1415.9732852574311,1582.3760716529466,1700.2358406961703,1771.6203460282895,1824.526224111853,1881.8992132628653,1940.0457768055585,2000.9002223843067,2059.1524979882142,2114.4127538203629,2163.6866747888366,2209.8371105258398]
["Total Present Value of Product 8",{"$f":"B223","v":-1262.0176669290258},{"$f":"C223","v":-1326.7053531824745},-1375.5472501420822,-1441.7408088127511,-1482.1569098089435,-1519.2264992318062,-1470.5355611251589,-1473.4046202214863,-1463.3819171715688,-1463.4994297034566,-1464.9247454527253,-1475.7260517168206,-1489.6068711215719,-1507.6873676817197,-1525.9223187123639,-1543.7735693945797,-1558.8390510435313,-1678.7274428367673]
["Total Present Value of Product 9",{"$f":"B248","v":7524.8346334379694},{"$f":"C248","v":8127.1915220566725},8719.8366880878166,9094.9844972349256,9637.1756804887227,9995.193432031243,10674.689935833892,11265.353040676629,11659.128180019143,12049.977748319165,12406.672730088847,12824.219404619269,13162.122803053047,13524.028193906848,13845.566129542014,14129.011496268762,14358.195498381137,15466.445669070143]
["Total Present Value of Product 10",{"$f":"B273","v":3084.8110859986768},{"$f":"C273","v":3335.8653646105358},3639.7356958243859,3819.5267137768387,4111.074192572828,4327.4535376719496,4646.2538685628224,4918.019440833209,5072.0851075953506,5219.9040685201526,5303.8964910527866,5424.8903385066915,5537.1733321482643,5670.7802415583501,5788.3503129405453,5919.7654693978639,6024.1504122896213,6490.6532300286344]
["Total Enterprise Value",{"$f":"SUM(B5:B14)","v":55266.845875441228},59232.774214818695,63830.021577762818,67022.727511131961,73199.644449076062,77789.671774503338,82950.275461807803,86721.340509492045,88901.926418598843,91137.167285265896,93235.207978872306,95790.828395253746,98344.522514277312,101032.62561284105,103601.35678409645,105981.14027478373,108067.16755816371,116305.79289207541]
[]
[]
["Discount Rate"]
["Weighted Average Cost of Debt",5.8534117582235944E-2,4.4648259712088342E-2,3.7903594048456821E-2,4.1653693896110844E-2,3.28835468874022E-2,3.33710407239819E-2,2.4406447777894334E-2,2.0078722707670072E-2,2.5612292628428086E-2,2.9489130180969058E-2,3.3857843512801779E-2,3.5183093165897239E-2,3.5940521489461412E-2,3.5499915094245958E-2,3.5332011634690873E-2,3.542247650962671E-2,3.6474720954563784E-2,3.7535162795849716E-2]
["Risk Free Rate",0.05,{"$f":"+B20","v":0.05},{"$f":"+C20","v":0.05},0.05,0.05,0.05,0.05,0.05,0.05,0.05,0.05,0.05,0.05,0.05,0.05,0.05,0.05,0.05]
["Risk Premium",0.05,0.05,0.05,0.05,0.05,0.05,0.05,0.05,0.05,0.05,0.05,0.05,0.05,0.05,0.05,0.05,0.05,0.05]
["Forward Beta",1,1,1,1,1,1,1,1,1,1,1,1,1,1,1,1,1,1]
["Cost of Equity",{"$f":"B20+(B21*B22)","v":0.1},{"$f":"C20+(C21*C22)","v":0.1},0.1,0.1,0.1,0.1,0.1,0.1,0.1,0.1,0.1,0.1,0.1,0.1,0.1,0.1,0.1,0.1]
[]
["Debt/Capital",0.2,{"$f":"+B25","v":0.2},{"$f":"+C25","v":0.2},{"$f":"+D25","v":0.2},{"$f":"+E25","v":0.2},{"$f":"+F25","v":0.2},0.2,0.2,0.2,0.2,0.2,0.2,0.2,{"$f":"+N25","v":0.2},{"$f":"+O25","v":0.2},{"$f":"+P25","v":0.2},{"$f":"+Q25","v":0.2},{"$f":"+R25","v":0.2}]
["Tax Rate",0.4,0.4,0.4,0.4,0.4,0.4,0.4,0.4,0.4,0.4,0.4,0.4,0.4,0.4,0.4,0.4,0.4,0.4]
["WACC",{"$f":"(B25*(B19*(1-B26))+((1-B25)*B23))","v":8.7024094109868333E-2},{"$f":"(C25*(C19*(1-C26))+((1-C25)*C23))","v":8.5357791165450614E-2},{"$f":"(D25*(D19*(1-D26))+((1-D25)*D23))","v":8.4548431285814837E-2},8.4998443267533322E-2,8.3946025626488285E-2,8.4004524886877846E-2,8.2928773733347338E-2,8.2409446724920427E-2,8.3073475115411383E-2,8.35386956217163E-2,8.4062941221536236E-2,8.4221971179907679E-2,8.4312862578735381E-2,8.4259989811309527E-2,8.4239841396162918E-2,8.4250697181155215E-2,8.4376966514547666E-2,8.4504219535501982E-2]
[]
["Product 1"]
["Growth Rate",0.02,0.02,0.02,0.02,0.02,0.02,0.02,0.02,0.02,0.02,0.02,0.02,0.02,0.02,0.02,0.02,0.02,0.02]
[]
["EBITDA",{"$f":"B281","v":1081.0750670145103},827.79493223319355,-62.614796051151558,488.13764814295109,364.33760230831183,544.82039492650165,507.76443828208517,1400.4904275770141,803.26505829203234,1002.5166462359081,990.30755888374529,1089.975861143881,1069.4248907529343,1142.2269497560376,1128.3652911414242,1214.0697808484601,1200.4995418650051,{"$f":"S281","v":1273.2646687111442}]
["Depreciation",{"$f":"-B302","v":-31},{"$f":"-C302","v":-41},-50,-56,-53,-48,-54,-49.802930000000003,-51.028471995745328,-52.973035300004341,-54.049541800458528,-55.604022151796663,-56.655351664788611,-58.204850724704201,-59.323397211925318,-60.949713090958177,-62.124448199646743,{"$f":"-S302","v":-63.817252823767063}]
["EBITA",{"$f":"SUM(B32:B33)","v":1050.0750670145103},{"$f":"SUM(C32:C33)","v":786.79493223319355},-112.61479605115156,432.13764814295109,311.33760230831183,496.82039492650165,453.76443828208517,1350.687497577014,752.23658629628699,949.54361093590376,936.25801708328675,1034.3718389920843,1012.7695390881456,1084.0220990313335,1069.0418939294989,1153.1200677575021,1138.3750936653582,1209.447415887377]
["Taxes",{"$f":"-(B34*B26)","v":-420.03002680580414},-314.71797289327742,45.045918420460623,-172.85505925718044,-124.53504092332474,-198.72815797060068,-181.50577531283409,-540.27499903080559,-300.89463451851481,-379.81744437436151,-374.50320683331472,-413.74873559683374,-405.10781563525825,-433.60883961253342,-427.61675757179955,-461.24802710300082,-455.35003746614331,-483.77896635495085]
["EBIAT",{"$f":"SUM(B34:B35)","v":630.04504020870615},{"$f":"SUM(C34:C35)","v":472.07695933991613},-67.568877630690935,259.28258888577068,186.80256138498709,298.09223695590094,272.25866296925108,810.41249854620844,451.34195177777218,569.72616656154219,561.75481024997202,620.62310339525061,607.66172345288737,650.41325941880007,641.42513635769933,691.87204065450123,683.02505619921499,725.66844953242617]
["Depreciation",{"$f":"B302","v":31},{"$f":"C302","v":41},50,56,53,48,54,49.802930000000003,51.028471995745328,52.973035300004341,54.049541800458528,55.604022151796663,56.655351664788611,58.204850724704201,59.323397211925318,60.949713090958177,62.124448199646743,63.817252823767063]
["Capital Expenditures",{"$f":"-B322","v":-85},{"$f":"-C322","v":-126},-135,-102,-118,-79,-78,-105.16848999999999,-108.498150327,-111.36786807062251,-114.31713378364053,-117.35915879202565,-120.47972089144716,-123.68739662978071,-126.9847498609106,-130.37442462696197,-133.85041562407926,-137.42325597200085]
["Unlevered Free Cash Flow",{"$f":"SUM(B36:B38)","v":576.04504020870615},{"$f":"SUM(C36:C38)","v":387.07695933991613},-152.56887763069093,213.28258888577068,121.80256138498709,267.09223695590094,248.25866296925108,755.04693854620837,393.87227344651751,511.33133379092396,501.48721826679002,558.8679667550216,543.83735422622885,584.93071351372362,573.76378370871407,622.44732911849746,611.29908877478249,652.0624463841923]
[]
["Terminal FCF",{"$f":"$S$39*(1+B30)","v":665.10369531187621},665.10369531187621,665.10369531187621,665.10369531187621,665.10369531187621,665.10369531187621,665.10369531187621,665.10369531187621,665.10369531187621,665.10369531187621,665.10369531187621,665.10369531187621,665.10369531187621,665.10369531187621,665.10369531187621,665.10369531187621,665.10369531187621,665.10369531187621]
["Terminal FCF Multiple",{"$f":"(1+B30)/(B27-B30)","v":15.218407850883878},15.606402569785615,15.80208813260742,15.692683527845187,15.950952228960524,15.936373276776242,16.208801466911147,16.34367957940426,16.171615693183412,16.053209623198242,15.921841560048504,15.882415024955115,15.859968894266826,15.873018389749008,15.877996860386478,15.875314117201002,15.844176189468392,15.812919020570586]
["Terminal Value",{"$f":"B41*B42","v":10121.819298386135},{"$f":"C41*C42","v":10379.876019689174},10510.027210641139,10437.261803729643,10609.037271224854,10599.340756253312,10780.533752219164,10870.241683255024,10755.801356699816,10677.049042005323,10589.675657758467,10563.452923574512,10548.523919108278,10557.203186775432,10560.514385993416,10558.730083587183,10538.020132787869,10517.230874248951]
["PV of Terminal Value",{"$f":"B43/((1+B27)^B46)","v":2450.1500541579212},2799.1444818552304,3110.7820386509093,3331.0332385376682,3720.2868728797562,4026.2961314699587,4487.8820926440321,4924.0614146832559,5244.7101706936401,5619.4761580119657,6018.6788529963351,6502.7443216808797,7037.5038272461579,7638.6243221982013,8285.3142864550209,8981.5701826317763,9718.0412884088073,10517.230874248951]
["PV of Cash Flows",{"$f":"NPV(B27,C39:$S39)","v":3184.5920160529099},{"$f":"NPV(C27,D39:$S39)","v":3118.8776481832251},{"$f":"NPV(D27,E39:$S39)","v":3558.7549953051416},{"$f":"NPV(E27,F39:$S39)","v":3635.2162603223742},{"$f":"NPV(F27,G39:$S39)","v":3846.9039946204889},{"$f":"NPV(G27,H39:$S39)","v":3901.4862433596495},{"$f":"NPV(H27,I39:$S39)","v":4001.9260160120539},{"$f":"NPV(I27,J39:$S39)","v":3587.692729156332},{"$f":"NPV(J27,K39:$S39)","v":3479.4899690371976},{"$f":"NPV(K27,L39:$S39)","v":3251.2747397110752},{"$f":"NPV(L27,M39:$S39)","v":3015.8676933604338},{"$f":"NPV(M27,N39:$S39)","v":2709.1875433156488},{"$f":"NPV(N27,O39:$S39)","v":2392.9427789881015},{"$f":"NPV(O27,P39:$S39)","v":2010.0075242490191},{"$f":"NPV(P27,Q39:$S39)","v":1605.6654668138292},{"$f":"NPV(Q27,R39:$S39)","v":1118.4623899809401},{"$f":"NPV(R27,S39:$S39)","v":601.32450846874792},{"$f":"NPV(S27,$S39:T39)","v":601.25395055030174}]
["Years to Terminal Period",17,{"$f":"B46-1","v":16},{"$f":"C46-1","v":15},{"$f":"D46-1","v":14},13,12,11,10,9,8,7,6,5,4,3,2,1,0]
[]
["Total Present Value of Product 1",{"$f":"B44+B45","v":5634.7420702108311},{"$f":"C44+C45","v":5918.0221300384555},{"$f":"D44+D45","v":6669.5370339560504},6966.2494988600429,7567.1908675002451,7927.7823748296087,8489.8081086560851,8511.7541438395874,8724.2001397308377,8870.7508977230409,9034.5465463567689,9211.931864996528,9430.4466062342599,9648.6318464472206,9890.9797532688499,10100.032572612716,10319.365796877555,11118.484824799252]
["PV / CY FCF",{"$f":"B48/B39","v":9.7817734324547168},{"$f":"C48/C39","v":15.289006455280836},-43.714924940985462,32.662063674550616,62.126697349017718,29.681815035824304,34.197429435554561,11.273145693734474,22.14982045674628,17.34834208566253,18.015507110194005,16.483198918134729,17.340564293623942,16.495341454182068,17.238766255575065,16.226324863368379,16.881042334874902,17.051257723019202]
["PV / FY FCF",{"$f":"B48/C39","v":14.557162172142148},{"$f":"C48/D39","v":-38.789183101704744},31.270893085080203,57.192963921682157,28.331751434429179,31.933557846525304,11.244079904492606,21.610442566466581,17.061735831933269,17.688887322754898,16.165797798028098,16.938762652858323,16.122331052826485,16.816383536932328,15.890468623708834,16.522243788807305,15.825732418881596]
["PV / CY EBITDA",{"$f":"B48/B32","v":5.2121654102815427},{"$f":"C48/C32","v":7.1491403240087994},-106.51694894138987,14.271076048655802,20.769722421065651,14.551185030250377,16.719973807893236,6.0776953388862198,10.860923240307432,8.8484823978031102,9.1229703997617939,8.4515008023471427,8.8182411759601962,8.4472108178746979,{"$f":"P48/P32","v":8.7657603711501952},{"$f":"Q48/Q32","v":8.3191532578582468},8.5958931569821093,8.7322652532673217]
["PV / FY EBITDA",{"$f":"B48/C32","v":6.8069298938683271},{"$f":"C48/D32","v":-94.514755349580284},13.663230155119846,19.12031438622968,13.889331122637374,15.613110681109537,6.062025088842832,10.596445165855929,8.7022995303739776,8.9575716333236635,8.2887583738555595,8.6139119676846292,8.2561934020629266,8.5509824896217097,8.1469614920787148,8.4131915260226346,8.104651020689424]
[]
["Product 2"]
["Growth Rate",0.02,0.02,0.02,0.02,0.02,0.02,0.02,0.02,0.02,0.02,0.02,0.02,0.02,0.02,0.02,0.02,0.02,0.02]
[]
["EBITDA",{"$f":"B282","v":150.92493298548979},308.20506776680639,297.61479605115153,293.86235185704896,385.66239769168817,319.17960507349835,314.23556171791489,370.90493294323034,348.45153705444847,335.58751915638271,351.00356480750514,367.42520346356071,384.48172178055688,402.3610843836293,421.10414866430023,440.75383758096507,461.126090513485,{"$f":"S282","v":482.46615717913346}]
["Depreciation",{"$f":"B303","v":0},0,0,0,0,0,0,0,0,0,0,0,0,0,0,0,0,{"$f":"S303","v":0}]
["EBITA",{"$f":"B57-B58","v":150.92493298548979},308.20506776680639,297.61479605115153,293.86235185704896,385.66239769168817,319.17960507349835,314.23556171791489,370.90493294323034,348.45153705444847,335.58751915638271,351.00356480750514,367.42520346356071,384.48172178055688,402.3610843836293,421.10414866430023,440.75383758096507,461.126090513485,482.46615717913346]
["Taxes",{"$f":"-(B59*B26)","v":-60.369973194195921},-123.28202710672257,-119.04591842046062,-117.54494074281959,-154.26495907667527,-127.67184202939934,-125.69422468716596,-148.36197317729213,-139.3806148217794,-134.2350076625531,-140.40142592300205,-146.97008138542429,-153.79268871222277,-160.94443375345173,-168.44165946572011,-176.30153503238603,-184.450436205394,-192.9864628716534]
["EBIAT",{"$f":"SUM(B59:B60)","v":90.554959791293868},{"$f":"SUM(C59:C60)","v":184.92304066008381},178.56887763069091,176.31741111422937,231.3974386150129,191.50776304409902,188.54133703074893,222.54295976593821,209.07092223266906,201.35251149382961,210.60213888450309,220.45512207813641,230.68903306833411,241.41665063017757,252.66248919858012,264.45230254857904,276.675654308091,289.47969430748003]
["Depreciation",{"$f":"-B58","v":0},{"$f":"-C58","v":0},0,0,0,0,0,0,0,0,0,0,0,0,0,0,0,{"$f":"-S58","v":0}]
["Capital Expenditures",{"$f":"B323","v":0},0,0,0,0,0,0,0,0,0,0,0,0,0,0,0,0,{"$f":"S323","v":0}]
["Unlevered Free Cash Flow",{"$f":"SUM(B61:B63)","v":90.554959791293868},{"$f":"SUM(C61:C63)","v":184.92304066008381},178.56887763069091,176.31741111422937,231.3974386150129,191.50776304409902,188.54133703074893,222.54295976593821,209.07092223266906,201.35251149382961,210.60213888450309,220.45512207813641,230.68903306833411,241.41665063017757,252.66248919858012,264.45230254857904,276.675654308091,289.47969430748003]
[]
["Terminal FCF",{"$f":"$S$64*(1+B55)","v":295.26928819362962},295.26928819362962,295.26928819362962,295.26928819362962,295.26928819362962,295.26928819362962,295.26928819362962,295.26928819362962,295.26928819362962,295.26928819362962,295.26928819362962,295.26928819362962,295.26928819362962,295.26928819362962,295.26928819362962,295.26928819362962,295.26928819362962,295.26928819362962]
["Terminal FCF Multiple",{"$f":"(1+B55)/(B27-B55)","v":15.218407850883878},15.606402569785615,15.80208813260742,15.692683527845187,15.950952228960524,15.936373276776242,16.208801466911147,16.34367957940426,16.171615693183412,16.053209623198242,15.921841560048504,15.882415024955115,15.859968894266826,15.873018389749008,15.877996860386478,15.875314117201002,15.844176189468392,15.812919020570586]
["Terminal Value",{"$f":"B66*B67","v":4493.528453570827},{"$f":"C66*C67","v":4608.0913780438304},4665.8713148879951,4633.5674951147448,4709.8263106557642,4705.5215938217016,4785.961271606714,4825.7866358754554,4774.981454667196,4740.0197786648705,4701.2308241672708,4689.5893792143052,4682.9617261832727,4686.8148414255829,4688.2848309070014,4687.4926992362198,4678.2986254787875,4669.069343467384]
["PV of Terminal Value",{"$f":"B68/((1+B27)^B71)","v":1087.7312328261157},1242.6654738716529,1381.0153285154677,1478.7946905499259,1651.6017946888937,1787.4529959398815,1992.371656228082,2186.0111726690629,2328.3615018203141,2494.7368912440284,2671.9608285396125,2886.8591479822367,3124.2628185316785,3391.1271013708588,3678.2217104882188,3987.3208544470081,4314.2733292426719,4669.069343467384]
["PV of Cash Flows",{"$f":"NPV(B27,C64:$S64)","v":1833.9468040529621},{"$f":"NPV(C27,D64:$S64)","v":1829.0622126735202},{"$f":"NPV(D27,E64:$S64)","v":1816.0437057330023},{"$f":"NPV(E27,F64:$S64)","v":1788.3909551913589},{"$f":"NPV(F27,G64:$S64)","v":1719.5246098020332},{"$f":"NPV(G27,H64:$S64)","v":1671.8279979980289},{"$f":"NPV(H27,I64:$S64)","v":1632.6504065934489},{"$f":"NPV(I27,J64:$S64)","v":1549.3445173195455},{"$f":"NPV(J27,K64:$S64)","v":1463.6632839874703},{"$f":"NPV(K27,L64:$S64)","v":1381.3380540577848},{"$f":"NPV(L27,M64:$S64)","v":1283.7320023871746},{"$f":"NPV(M27,N64:$S64)","v":1170.6077257535176},{"$f":"NPV(N27,O64:$S64)","v":1038.2546264848511},{"$f":"NPV(O27,P64:$S64)","v":884.48209542180018},{"$f":"NPV(P27,Q64:$S64)","v":706.37199871813107},{"$f":"NPV(Q27,R64:$S64)","v":501.41687548339553},{"$f":"NPV(R27,S64:$S64)","v":266.95485356714875},{"$f":"NPV(S27,$S64:T64)","v":266.923529750272}]
["Years to Terminal Period",17,{"$f":"B71-1","v":16},{"$f":"C71-1","v":15},14,13,12,11,10,9,8,7,6,5,4,3,2,1,0]
[]
["Total Present Value of Product 2",{"$f":"B69+B70","v":2921.6780368790778},{"$f":"C69+C70","v":3071.7276865451731},3197.0590342484702,3267.185645741285,3371.1264044909267,3459.2809939379104,3625.0220628215311,3735.3556899886084,3792.0247858077846,3876.0749453018134,3955.6928309267869,4057.4668737357542,4162.5174450165296,{"$f":"O69+O70","v":4275.6091967926586},{"$f":"P69+P70","v":4384.5937092063496},4488.7377299304035,4581.2281828098203,4935.9928732176559]
["PV / CY FCF",{"$f":"B73/B64","v":32.264141507133367},{"$f":"C73/C64","v":16.610843492409732},17.903786352180031,18.530136219074809,14.568555402636209,18.063398260995466,19.226669970152653,16.784874677308625,18.137504466487925,19.250194182060621,18.782776147853557,18.404956235481148,18.043846253339314,17.710498367166888,17.353560170778962,16.973713923726706,16.558118184509336,17.051257723019198]
["PV / FY FCF",{"$f":"B73/C64","v":15.799426758559301},{"$f":"C73/D64","v":17.201920778703659},18.132406856729631,14.119368240618513,17.603079639725351,18.347599780592102,16.289088932016472,17.86645244636955,18.832766264869708,18.404727349077412,17.943301991072641,17.588468856834915,17.242047862692893,16.922215918771556,16.579903698894487,16.223826202402286,15.825732418881595]
["PV / CY EBITDA",{"$f":"B73/B57","v":19.358484904280022},{"$f":"C73/C57","v":9.9665060954458369},10.742271811308019,11.118081731444885,8.7411332415817249,10.838038956597281,11.536001982091593,10.070924806385175,10.882502679892754,11.550116509236373,11.269665688712134,11.042973741288687,10.826307752003588,10.626299020300131,10.412136102467377,10.184228354236023,9.9348709107056017,10.230754633811518]
["PV / FY EBITDA",{"$f":"B73/C57","v":9.47965605513558},{"$f":"C73/D57","v":10.321152467222195},10.87944411403778,8.4716209443711072,10.561847783835212,11.00855986835526,9.7734533592098831,10.719871467821729,11.299659758921825,11.042836409446448,10.765981194643583,10.553081314100949,10.345228717615734,10.153329551262933,9.9479422193366922,9.7342957214413719,9.495439451328954]
[]
["Product 3"]
["Growth Rate",1.4999999999999999E-2,{"$f":"+B80","v":1.4999999999999999E-2},{"$f":"+C80","v":1.4999999999999999E-2},1.4999999999999999E-2,1.4999999999999999E-2,1.4999999999999999E-2,1.4999999999999999E-2,1.4999999999999999E-2,1.4999999999999999E-2,1.4999999999999999E-2,1.4999999999999999E-2,1.4999999999999999E-2,1.4999999999999999E-2,1.4999999999999999E-2,1.4999999999999999E-2,1.4999999999999999E-2,1.4999999999999999E-2,{"$f":"+R80","v":1.4999999999999999E-2}]
[]
["EBITDA",{"$f":"B283","v":707},807,648,755,921,1052,{"$f":"H283","v":1258},1567.4038882308084,1732.2865063446966,1863.7874041871871,1863.4884813984715,1986.8764096554673,2054.1291233909024,2180.2279432255796,2259.3682300560076,2390.7418591064334,2473.6755135142521,2614.8755902929329]
["Depreciation",{"$f":"-B304","v":-18},{"$f":"-C304","v":-18},-29,-33,-48,-55,{"$f":"-H304","v":-57},-60.999999999999993,-67.390016050990084,-68.815344434680597,-71.753845275095713,-74.809488644041522,-77.986785995754872,-82.290420092409548,-86.725251514691436,-91.296325423144665,-96.00887858018217,-99.868346643056057]
["EBITA",{"$f":"SUM(B82:B83)","v":689},{"$f":"SUM(C82:C83)","v":789},619,722,873,997,{"$f":"SUM(H82:H83)","v":1201},1506.4038882308084,1664.8964902937064,1794.9720597525065,1791.7346361233758,1912.0669210114258,1976.1423373951475,2097.9375231331701,2172.6429785413161,2299.4455336832889,2377.6666349340699,2515.0072436498767]
["Taxes",{"$f":"-(B84*B26)","v":-275.60000000000002},-315.60000000000002,-247.60000000000002,-288.8,-349.20000000000005,-398.8,-480.40000000000003,-602.56155529232342,-665.95859611748256,-717.98882390100266,-716.6938544493504,-764.82676840457043,-790.45693495805904,-839.17500925326806,-869.05719141652651,-919.77821347331565,-951.06665397362804,-1006.0028974599508]
["EBIAT",{"$f":"SUM(B84:B85)","v":413.4},{"$f":"SUM(C84:C85)","v":473.4},371.4,433.2,523.79999999999995,598.20000000000005,{"$f":"SUM(H84:H85)","v":720.59999999999991},903.84233293848501,998.93789417622384,1076.9832358515039,1075.0407816740253,1147.2401526068554,1185.6854024370884,1258.7625138799021,1303.5857871247895,1379.6673202099732,1426.5999809604418,1509.0043461899259]
["Depreciation",{"$f":"B304","v":18},{"$f":"C304","v":18},29,33,48,55,{"$f":"H304","v":57},60.999999999999993,67.390016050990084,68.815344434680597,71.753845275095713,74.809488644041522,77.986785995754872,82.290420092409548,86.725251514691436,91.296325423144665,96.00887858018217,99.868346643056057]
["Capital Expenditures",{"$f":"-B324","v":-36},{"$f":"-C324","v":-62},-46,-97,-115,-69,{"$f":"-H324","v":-45},-45.210898688580414,-45.426015350932431,-45.645434346531488,-45.869241722042524,-46.097525245063778,-46.330374438545462,-47.567880615896783,-48.810136916795123,-50.057238343711433,-51.309281799166072,-51.5663661237298]
["Unlevered Free Cash Flow",{"$f":"SUM(B86:B88)","v":395.4},{"$f":"SUM(C86:C88)","v":429.4},354.4,369.2,456.79999999999995,584.20000000000005,{"$f":"SUM(H86:H88)","v":732.59999999999991},919.6314342499046,1020.9018948762816,1100.1531459396529,1100.9253852270786,1175.9521160058332,1217.3418139942978,1293.4850533564149,1341.500901722686,1420.9064072894066,1471.2995777414581,1557.3063267092523]
[]
["Terminal FCF",{"$f":"$S$89*(1+B80)","v":1580.665921609891},1580.665921609891,1580.665921609891,1580.665921609891,1580.665921609891,1580.665921609891,1580.665921609891,1580.665921609891,1580.665921609891,1580.665921609891,1580.665921609891,1580.665921609891,1580.665921609891,1580.665921609891,1580.665921609891,1580.665921609891,1580.665921609891,1580.665921609891]
["Terminal FCF Multiple",{"$f":"(1+B80)/(B27-B80)","v":14.092506300067859},14.426263007790649,14.594146571455742,14.500322473182445,14.72166075966021,14.709180327868847,14.942121640298652,15.057236771901394,14.910359700003189,14.809152564006483,14.69673868571771,14.66297452527057,14.643746661696722,14.654925632609025,14.659190135814615,14.656892151494553,14.630215920253077,14.603429932502863]
["Terminal Value",{"$f":"B91*B92","v":22275.544458589957},{"$f":"C91*C92","v":22803.102312596086},23068.47014047992,22920.165585713545,23270.027472296475,23250.300079076889,{"$f":"H91*H92","v":23618.502473369765},23800.461038955858,23568.297456740518,23408.322785846787,23230.633999319722,23177.264141529162,23146.871312832616,23164.541531192361,23171.282286082034,23167.649940578915,23125.483730938529,23083.144032925105]
["PV of Terminal Value",{"$f":"B93/((1+B27)^B96)","v":5392.1557827369606},6149.3198845928937,6827.8588755225637,7314.9294167860116,8160.1351304085765,8831.9260052729369,9832.2640364152248,10781.262760158008,11492.299390626413,12320.118721624644,13203.211326965107,14267.6664419144,15442.558286070067,16760.616161521662,18179.167145019535,19707.092828464603,21326.05583210558,23083.144032925105]
["PV of Cash Flows",{"$f":"NPV(B27,C89:$S89)","v":7113.7768122796197},{"$f":"NPV(C27,D89:$S89)","v":7402.0291038047981},{"$f":"NPV(D27,E89:$S89)","v":7726.0974451927905},{"$f":"NPV(E27,F89:$S89)","v":7985.4107901118014},{"$f":"NPV(F27,G89:$S89)","v":8261.7905406353711},{"$f":"NPV(G27,H89:$S89)","v":8368.3238600332679},{"$f":"NPV(H27,I89:$S89)","v":8385.9195276440641},{"$f":"NPV(I27,J89:$S89)","v":8182.1942427893018},{"$f":"NPV(J27,K89:$S89)","v":7812.6795289963611},{"$f":"NPV(K27,L89:$S89)","v":7347.8659967903213},{"$f":"NPV(L27,M89:$S89)","v":6847.9537916826703},{"$f":"NPV(M27,N89:$S89)","v":6244.5418613249267},{"$f":"NPV(N27,O89:$S89)","v":5551.7635285685537},{"$f":"NPV(O27,P89:$S89)","v":4726.9303485764567},{"$f":"NPV(P27,Q89:$S89)","v":3783.8595278129387},{"$f":"NPV(Q27,R89:$S89)","v":2681.6647338559214},{"$f":"NPV(R27,S89:$S89)","v":1436.1300311595653},{"$f":"NPV(S27,$S89:T89)","v":1435.9615192426395}]
["Years to Terminal Period",17,{"$f":"B96-1","v":16},{"$f":"C96-1","v":15},14,13,12,{"$f":"G96-1","v":11},10,9,8,7,6,5,4,3,2,1,0]
[]
["Total Present Value of Product 3",{"$f":"B94+B95","v":12505.93259501658},{"$f":"C94+C95","v":13551.348988397691},14553.956320715355,15300.340206897814,16421.925671043948,17200.249865306207,{"$f":"H94+H95","v":18218.183564059291},18963.457002947311,19304.978919622772,19667.984718414966,20051.165118647776,20512.208303239328,20994.321814638621,21487.54651009812,21963.026672832475,22388.757562320527,22762.185863265146,24519.105552167744]
["PV / CY FCF",{"$f":"B98/B89","v":31.628559926698486},{"$f":"C98/C89","v":31.558800625052847},41.066468173576062,41.441874883255188,35.949924849045424,29.442399632499495,24.867845432786368,20.620714230386017,18.909729736530906,17.877497138470048,18.213010061996155,17.443064240498018,17.246036875832608,16.612133595468233,16.37198055150667,15.756672957109441,15.47080296060888,15.744561703527607]
["PV / FY FCF",{"$f":"B98/C89","v":29.124202596685098},{"$f":"C98/D89","v":38.237440712183101},39.420250056108763,33.494615163961946,28.110108988435375,23.478364544507521,19.810309745358925,18.575200122677217,17.547537804960943,17.864957046438001,17.051004752431869,16.84999896285121,16.230819026598923,16.017541607691001,15.457053723003659,15.21699448639056,14.616383092312978]
["PV / CY EBITDA",{"$f":"B98/B82","v":17.688730686020623},{"$f":"C98/C82","v":16.792254012884374},22.459809136906411,20.265351267414324,17.830538187887022,16.350047400481184,14.481862928505,12.098641036518114,11.144218262346378,10.552697520236936,10.760015593764336,10.323847121822856,10.22054630138428,9.8556421941404722,9.7208708083356701,9.3647741503503763,9.2017670623774812,9.376777099143359]
["PV / FY EBITDA",{"$f":"B98/C82","v":15.496818581185353},{"$f":"C98/D82","v":20.912575599379153},19.276763338695833,16.612747238759841,15.610195504794627,13.672694646507319,11.623158332612588,10.947067320268033,10.357929706066358,10.554390281851891,10.091802902891544,9.9858417222469029,9.6294159883017425,9.510422526196832,9.1866993457174857,9.0508061546494876,8.7048829197702666]
[]
["Product 4"]
["Growth Rate",0.02,0.02,0.02,0.02,0.02,0.02,0.02,0.02,0.02,0.02,0.02,0.02,0.02,0.02,0.02,0.02,0.02,0.02]
[]
["EBITDA",{"$f":"B284","v":2103.6227949511285},2252.6385619246048,1923.6329637213535,1726.9184341381263,1960.593723472743,2216.9445183993957,2549.001542813603,2837.3033246314067,3282.7410667623881,3444.6792495423433,3646.923816897176,3851.8045449456467,4075.0237005107128,4310.5618261852269,4559.085023642072,4821.2950314392547,5097.9311207959881,5389.7720919464882]
["Depreciation",{"$f":"-B305","v":-591.7307771546291},{"$f":"-C305","v":-609.79876935764162},-618.12657736420442,-619.95857138863175,-630.37020817687846,-683.75317161902785,-715.80207063643695,-763,-781.28443470621539,-800.52752348878869,-822.43738645883673,-854.70253880007522,-888.26780455647906,-923.18628965362836,-959.51329238696962,-997.30639496262256,-1036.6255589126397,-1077.5332245514164]
["EBITA",{"$f":"SUM(B107:B108)","v":1511.8920177964994},{"$f":"SUM(C107:C108)","v":1642.8397925669633},1305.506386357149,1106.9598627494945,1330.2235152958647,1533.1913467803679,1833.1994721771662,2074.3033246314067,2501.4566320561726,2644.1517260535547,2824.4864304383391,2997.1020061455715,3186.7558959542339,3387.3755365315983,3599.5717312551023,3823.9886364766321,4061.3055618833487,4312.2388673950718]
["Taxes",{"$f":"-(B109*B26)","v":-604.7568071185998},-657.13591702678536,-522.20255454285962,-442.78394509979785,-532.08940611834589,-613.27653871214716,-733.27978887086647,-829.72132985256269,-1000.5826528224691,-1057.660690421422,-1129.7945721753356,-1198.8408024582286,-1274.7023583816936,-1354.9502146126395,-1439.8286925020411,-1529.5954545906529,-1624.5222247533395,-1724.8955469580287]
["EBIAT",{"$f":"SUM(B109:B110)","v":907.13521067789964},{"$f":"SUM(C109:C110)","v":985.70387554017793},783.30383181428942,664.17591764969666,798.13410917751878,919.91480806822074,1099.9196833062997,1244.5819947788441,1500.8739792337035,1586.4910356321327,1694.6918582630035,1798.2612036873429,1912.0535375725403,2032.4253219189588,2159.7430387530612,2294.3931818859792,2436.7833371300094,2587.3433204370431]
["Depreciation",{"$f":"B305","v":591.7307771546291},{"$f":"C305","v":609.79876935764162},618.12657736420442,619.95857138863175,630.37020817687846,683.75317161902785,715.80207063643695,763,781.28443470621539,800.52752348878869,822.43738645883673,854.70253880007522,888.26780455647906,923.18628965362836,959.51329238696962,997.30639496262256,1036.6255589126397,1077.5332245514164]
["Capital Expenditures",{"$f":"-B325","v":-682.45865544000003},{"$f":"-C325","v":-670.43191823983943},-863.83479671260886,-1067.1803297751012,-2113.9140188357919,-2088.9281168636994,-997.49691333350961,-985.50281243741813,-1015.8042632301444,-1050.5501153042464,-1098.5458638883192,-1147.2758465793092,-1197.2976197856331,-1249.6195290407791,-1304.3515672248245,-1361.6091442446225,-1419.3181010295941,-1479.580150172093]
["Unlevered Free Cash Flow",{"$f":"SUM(B111:B113)","v":816.40733239252882},{"$f":"SUM(C111:C113)","v":925.07072665798023},537.59561246588498,216.95415926322721,-685.40970148139468,-485.26013717645083,818.22484060922693,1022.079182341426,1266.3541507097743,1336.4684438166751,1418.583380833521,1505.6878959081089,1603.0237223433862,1705.9920825318081,1814.9047639152063,1930.0904326039793,2054.090795013055,2185.2963948163665]
[]
["Terminal FCF",{"$f":"$S114*(1+B105)","v":2229.002322712694},2229.002322712694,2229.002322712694,2229.002322712694,2229.002322712694,2229.002322712694,2229.002322712694,2229.002322712694,2229.002322712694,2229.002322712694,2229.002322712694,2229.002322712694,2229.002322712694,2229.002322712694,2229.002322712694,2229.002322712694,2229.002322712694,2229.002322712694]
["Terminal FCF Multiple",{"$f":"(1+B105)/(B27-B105)","v":15.218407850883878},15.606402569785615,15.80208813260742,15.692683527845187,15.950952228960524,15.936373276776242,16.208801466911147,16.34367957940426,16.171615693183412,16.053209623198242,15.921841560048504,15.882415024955115,15.859968894266826,15.873018389749008,15.877996860386478,15.875314117201002,15.844176189468392,15.812919020570586]
["Terminal Value",{"$f":"B116*B117","v":33921.86644760926},{"$f":"C116*C117","v":34786.70757724149},35222.891151292635,34979.028033162154,35554.709567832229,35522.213049550752,36129.456118133865,36430.099744164123,36046.568942122874,35782.641537102652,35489.821819211618,35401.939980911942,35351.907503471833,35380.994859211845,35392.091881826324,35386.112041034656,35316.705527794205,35247.033225719577]
["PV of Terminal Value",{"$f":"B118/((1+B27)^B121)","v":8211.3363678602309},9380.9425442119009,10425.352375097522,11163.493569603492,12468.0228650933,13493.570239099858,15040.511245202862,16502.30544180371,17576.915050741358,18832.891016736488,20170.763202119666,21793.04114411322,23585.21308421763,25599.784629862123,27767.075899725711,30100.480481176219,32568.660731803182,35247.033225719577]
["PV of Cash Flows",{"$f":"NPV(B27,C114:$S114)","v":7578.9142320479568},{"$f":"NPV(C27,D114:$S114)","v":7431.3835194892008},{"$f":"NPV(D27,E114:$S114)","v":7585.1644339317454},{"$f":"NPV(E27,F114:$S114)","v":7978.4532350704558},{"$f":"NPV(F27,G114:$S114)","v":9412.6260490087207},{"$f":"NPV(G27,H114:$S114)","v":10684.315355989827},{"$f":"NPV(H27,I114:$S114)","v":10826.597387853302},{"$f":"NPV(I27,J114:$S114)","v":10729.847370414327},{"$f":"NPV(J27,K114:$S114)","v":10316.80560835418},{"$f":"NPV(K27,L114:$S114)","v":9818.799471040571},{"$f":"NPV(L27,M114:$S114)","v":9202.9711935036867},{"$f":"NPV(M27,N114:$S114)","v":8466.6324900314594},{"$f":"NPV(N27,O114:$S114)","v":7574.8042134577945},{"$f":"NPV(O27,P114:$S114)","v":6508.2513813207343},{"$f":"NPV(P27,Q114:$S114)","v":5241.925407891953},{"$f":"NPV(Q27,R114:$S114)","v":3753.3577484221692},{"$f":"NPV(R27,S114:$S114)","v":2015.2552685072633},{"$f":"NPV(S27,$S114:T114)","v":2015.0188034790117}]
["Years to Terminal Period",17,{"$f":"B121-1","v":16},{"$f":"C121-1","v":15},14,13,12,11,10,9,8,7,6,5,4,3,2,1,0]
[]
["Total Present Value of Product 4",{"$f":"B119+B120","v":15790.250599908188},{"$f":"C119+C120","v":16812.326063701101},18010.516809029268,19141.946804673949,21880.648914102021,24177.885595089683,25867.108633056167,27232.152812218039,27893.720659095539,28651.690487777058,29373.734395623353,30259.673634144681,31160.017297675426,32108.036011182856,33009.001307617662,33853.83822959839,34583.916000310448,37262.052029198589]
["PV / CY FCF",{"$f":"B123/B114","v":19.341142556417207},{"$f":"C123/C114","v":18.174098022147231},33.501978794836589,88.230374885089503,-31.923459599143079,-49.824586325536345,31.613692654205234,26.643877776507853,22.02679293423683,21.43835914745118,20.706385533971325,20.096909669247555,19.438275842932654,18.820741514539943,18.187731920659537,17.540026963360738,16.836605316704439,17.051257723019202]
["PV / FY FCF",{"$f":"B123/C114","v":17.069236053932777},{"$f":"C123/D114","v":31.27318317682138},83.015310101418152,-27.927744184685359,-45.090555019452907,29.549195276310016,25.308321586003352,21.504373635885969,20.871215319859623,20.197396131161572,19.508514663264592,18.876622480613989,18.265042151562536,17.691306260014294,17.102308135419129,16.481179075330616,15.825732418881596]
["PV / CY EBITDA",{"$f":"B123/B107","v":7.506217672581851},{"$f":"C123/C107","v":7.4633926400234483},9.3627615811839302,11.084453339701216,11.160215730643808,10.905949785584076,10.1479376134484,9.597899729580643,8.4970821919274293,8.3176657134575578,8.0543866201775209,7.8559732927911794,7.6465855385749579,7.4486893601983004,7.240268855799509,7.0217313001673602,6.7839119793581153,6.9134745205416639]
["PV / FY EBITDA",{"$f":"B123/C107","v":7.0096689574635294},{"$f":"C123/D107","v":8.7398824935797048},10.42928053403865,9.7633418772596965,9.8697322970894898,9.485237725043504,9.1167935442420678,8.2955530937064808,8.0976249567507548,7.8563995099173969,7.625967011791313,7.4256435932758649,7.2287600907122371,7.0426490939914563,6.8465010111119051,6.6407013801144634,6.4165822617966475]
[]
["Product 5"]
["Growth Rate",0.02,0.02,0.02,0.02,0.02,0.02,0.02,0.02,0.02,0.02,0.02,0.02,0.02,0.02,0.02,0.02,0.02,0.02]
[]
["EBITDA",{"$f":"B285","v":395.99075428958088},403.71110631087572,346.17298583899662,377.83144539568809,421.40786478486501,486.64383197354078,618.6474011647723,738.47721281192196,874.38690541713265,945.50364370274417,1018.2795027075476,1073.0245363735048,1130.4117447149542,1190.5614735676645,1253.5993599209689,1319.6565592007105,1388.869982159571,1461.3825417762735]
["Depreciation",{"$f":"-B306","v":-179.16569391575888},{"$f":"-C306","v":-181.83561280529887},-180.5887974756962,-194.57652490846152,-203.34588697459259,-209.44626358383039,-219.41326013148557,-229.32499685032866,-240.79124669284511,-252.83080902748736,-265.47234947886182,-276.40756445280499,-287.79600407544501,-299.65658813521736,-312.00903275221822,-324.8738842084789,-338.27255423029828,-352.2273567856646]
["EBITA",{"$f":"SUM(B132:B133)","v":216.825060373822},{"$f":"SUM(C132:C133)","v":221.87549350557686},165.58418836330043,183.25492048722657,218.06197781027242,277.1975683897104,399.23414103328673,509.1522159615933,633.59565872428755,692.67283467525681,752.80715322868582,796.61697192069983,842.61574063950923,890.90488543244714,941.59032716875072,994.78267499223159,1050.5974279292727,1109.1551849906089]
["Taxes",{"$f":"-(B134*B26)","v":-86.730024149528802},-88.750197402230754,-66.233675345320179,-73.301968194890634,-87.224791124108975,-110.87902735588416,-159.6936564133147,-203.66088638463734,-253.43826348971504,-277.06913387010275,-301.12286129147435,-318.64678876827998,-337.04629625580372,-356.36195417297887,-376.6361308675003,-397.91306999689266,-420.23897117170912,-443.66207399624358]
["EBIAT",{"$f":"SUM(B134:B135)","v":130.09503622429321},{"$f":"SUM(C134:C135)","v":133.1252961033461},99.350513017980248,109.95295229233594,130.83718668616345,166.31854103382625,239.54048461997203,305.49132957695599,380.1573952345725,415.60370080515406,451.68429193721147,477.97018315241985,505.5694443837055,534.54293125946833,564.95419630125048,596.86960499533893,630.35845675756354,665.49311099436522]
["Depreciation",{"$f":"B306","v":179.16569391575888},{"$f":"C306","v":181.83561280529887},180.5887974756962,194.57652490846152,203.34588697459259,209.44626358383039,219.41326013148557,229.32499685032866,240.79124669284511,252.83080902748736,265.47234947886182,276.40756445280499,287.79600407544501,299.65658813521736,312.00903275221822,324.8738842084789,338.27255423029828,352.2273567856646]
["Capital Expenditures",{"$f":"-B326","v":-133.54134456000003},{"$f":"-C326","v":-122.56808176016051},-175.16520328739119,-227.81967022489874,-180.08598116420839,-153.07188313630047,-142.50308666649045,-182.65133120048048,-175.27661946376037,-181.74567022449187,-190.1951596102549,-199.19256133622449,{"$f":"-N326","v":-208.37465996402764},{"$f":"-O326","v":-217.98682127764042},-228.0494696871018,-238.58401114158215,-249.61288076946857,-261.15959284973189]
["Unlevered Free Cash Flow",{"$f":"+B136+B137+B138","v":175.71938558005206},{"$f":"+C136+C137+C138","v":192.39282714848446},104.77410720628524,76.709806975898744,154.09709249654762,222.69292148135617,316.45065808496719,352.16499522680408,445.67202246365724,486.68883960814958,526.96148180581838,555.18518626900038,584.99078849512284,616.21269811704531,648.91375936636689,683.15947806223562,719.01813021839325,756.56087493029793]
[]
["Terminal FCF",{"$f":"$S139*(1+B130)","v":771.69209242890395},771.69209242890395,771.69209242890395,771.69209242890395,771.69209242890395,771.69209242890395,771.69209242890395,771.69209242890395,771.69209242890395,771.69209242890395,771.69209242890395,771.69209242890395,771.69209242890395,771.69209242890395,771.69209242890395,771.69209242890395,771.69209242890395,771.69209242890395]
["Terminal FCF Multiple",{"$f":"(1+B130)/(B27-B130)","v":15.218407850883878},15.606402569785615,15.80208813260742,15.692683527845187,15.950952228960524,15.936373276776242,16.208801466911147,16.34367957940426,16.171615693183412,16.053209623198242,15.921841560048504,15.882415024955115,15.859968894266826,15.873018389749008,15.877996860386478,15.875314117201002,15.844176189468392,15.812919020570586]
["Terminal Value",{"$f":"B141*B142","v":11743.924997885038},{"$f":"C141*C142","v":12043.337454365685},12194.346455797771,12109.919787427447,12309.223701800036,12297.973239683526,12508.20391976535,12612.288292618021,12479.507952228807,12388.134924325668,12286.759228795314,12256.334083431875,12239.012581874098,12249.082774347884,12252.924620771209,12250.85436906896,12226.825476463082,12202.704566392929]
["PV of Terminal Value",{"$f":"B143/((1+B27)^B146)","v":2842.8069718832558},3247.7306583010231,3609.3107246549184,3864.8590105818071,4316.4937762406371,4671.5435628056621,5207.1025120717604,5713.1831970404919,6085.2185822060328,6520.043934949339,6983.222180938923,7544.8631656978359,8165.3223282385125,8862.7773804675053,9613.1047883405136,10420.941480834992,11275.43820463384,12202.704566392929]
["PV of Cash Flows",{"$f":"NPV(B27,C139:$S139)","v":3072.1087880133423},{"$f":"NPV(C27,D139:$S139)","v":3192.4194988037943},{"$f":"NPV(D27,E139:$S139)","v":3381.7852764303584},{"$f":"NPV(E27,F139:$S139)","v":3579.4414200618671},{"$f":"NPV(F27,G139:$S139)","v":3755.2115533287206},{"$f":"NPV(G27,H139:$S139)","v":3846.4226501338198},{"$f":"NPV(H27,I139:$S139)","v":3875.5726400100848},{"$f":"NPV(I27,J139:$S139)","v":3854.6138959530085},{"$f":"NPV(J27,K139:$S139)","v":3715.5800758755277},{"$f":"NPV(K27,L139:$S139)","v":3530.9528749415194},{"$f":"NPV(L27,M139:$S139)","v":3292.7696848362025},{"$f":"NPV(M27,N139:$S139)","v":3012.8750044637313},{"$f":"NPV(N27,O139:$S139)","v":2680.9734890521968},{"$f":"NPV(O27,P139:$S139)","v":2291.076466986075},{"$f":"NPV(P27,Q139:$S139)","v":1835.2763165382967},{"$f":"NPV(Q27,R139:$S139)","v":1306.7006976170021},{"$f":"NPV(R27,S139:$S139)","v":697.69176060800078},{"$f":"NPV(S27,$S139:T139)","v":697.60989519647637}]
["Years to Terminal Period",17,{"$f":"B146-1","v":16},{"$f":"C146-1","v":15},14,13,12,11,10,9,8,7,6,5,4,3,2,1,0]
[]
["Total Present Value of Product 5",{"$f":"B144+B145","v":5914.9157598965976},{"$f":"C144+C145","v":6440.1501571048175},6991.0960010852768,7444.3004306436742,8071.7053295693577,8517.9662129394819,9082.6751520818452,9567.7970929935,9800.7986580815596,10050.996809890858,10275.991865775126,10557.738170161567,10846.295817290709,11153.85384745358,11448.38110487881,11727.642178451993,11973.12996524184,12900.314461589405]
["PV / CY FCF",{"$f":"B148/B139","v":33.661145242292882},{"$f":"C148/C139","v":33.473961854796457},66.725417066268179,97.044963663936471,52.380646505385528,38.249829210007491,28.701710424767523,27.168506872273241,21.99105657093558,20.651792258033431,19.50046107840906,19.016606406796473,18.540968559851326,18.100655636497422,17.642376879259896,17.166770798111667,16.652055716043133,17.051257723019198]
["PV / FY FCF",{"$f":"B148/C139","v":30.743951568067548},{"$f":"C148/D139","v":61.467001044686377},91.136925990203466,48.309155676058303,36.245899851132542,26.917201766894106,25.790965244096306,21.468247075737665,20.137709888668354,19.073494281683722,18.509124738778898,18.047699857498849,17.601545457329298,17.188499529343904,16.757992053849346,16.310634858247401,15.825732418881596]
["PV / CY EBITDA",{"$f":"B148/B132","v":14.937004704839969},{"$f":"C148/C132","v":15.952373012362985},20.195382907020946,19.702702147640331,19.154140214469141,17.503491574927864,14.681505385751617,12.95611689433437,11.208766505264643,10.630309969541248,10.091523828626467,9.8392327596193621,9.594995688960859,9.3685660884268991,9.1324082245866443,8.8868896203988044,8.6207709281934903,8.8274726793365144]
["PV / FY EBITDA",{"$f":"B148/C132","v":14.651357536202747},{"$f":"C148/D132","v":18.60384957970146},18.503213764444023,17.665309674379476,16.586474130033199,13.768693114853614,12.299194876301557,10.942292289280239,10.3656910508563,9.8705677401595775,9.5766606609992717,9.33972795268844,9.1102358492992757,8.89746294075705,8.6752731421369695,8.4440173155852492,8.1930156019852305]
[]
["Product 6"]
["Growth Rate",0.02,{"$f":"+B155","v":0.02},{"$f":"+C155","v":0.02},0.02,0.02,0.02,0.02,0.02,0.02,0.02,0.02,0.02,0.02,0.02,0.02,0.02,0.02,0.02]
[]
["EBITDA",{"$f":"B286","v":363},{"$f":"C286","v":487.27259999999995},350.81034999999997,370.45920000000001,360.88650000000001,329.81900000000002,289.38048000000003,273.11589596971157,255.71299985026155,267.65000731755396,287.53477867649696,303.97629986633314,321.32894487527432,339.64333825805312,358.97292425023483,379.37412380878055,400.90650037964895,423.63293487561577]
["Depreciation",{"$f":"-B307","v":-204.46800000000002},{"$f":"-C307","v":-238.97699999999998},-218.22168000000002,-226.99440000000001,-241.33500000000001,-225.67930000000001,-225.16108000000003,-239.61325628174586,-230.76152900367126,-220.84207560966374,-220.88849996884591,-220.60348404355346,-219.9565936931694,-218.91521626428428,-217.44441862825431,-215.50679641696567,-213.06231392821144,-210.06813414105918]
["EBITA",{"$f":"SUM(B157:B158)","v":158.53199999999998},{"$f":"SUM(C157:C158)","v":248.29559999999998},132.58866999999995,143.4648,119.5515,104.1397,64.219400000000007,33.502639687965711,24.951470846590297,46.807931707890219,66.646278707651049,83.372815822779671,101.37235118210492,120.72812199376884,141.52850562198051,163.86732739181488,187.84418645143751,213.5648007345566]
["Taxes",{"$f":"-B159*B26","v":-63.412799999999997},-99.318240000000003,-53.03546799999998,-57.385919999999999,-47.820600000000006,-41.655880000000003,-25.687760000000004,-13.401055875186286,-9.9805883386361192,-18.72317268315609,-26.658511483060423,-33.349126329111868,-40.54894047284197,-48.291248797507535,-56.61140224879221,-65.546930956725959,-75.137674580575009,-85.425920293822642]
["EBIAT",{"$f":"SUM(B159:B160)","v":95.119199999999978},{"$f":"SUM(C159:C160)","v":148.97735999999998},79.55320199999997,86.078879999999998,71.730899999999991,62.483820000000001,38.531640000000003,20.101583812779424,14.970882507954178,28.084759024734129,39.987767224590627,50.023689493667803,60.823410709262951,72.436873196261303,84.917103373188297,98.320396435088924,112.7065118708625,128.13888044073394]
["Depreciation",{"$f":"-B158","v":204.46800000000002},{"$f":"-C158","v":238.97699999999998},218.22168000000002,226.99440000000001,241.33500000000001,225.67930000000001,225.16108000000003,239.61325628174586,230.76152900367126,220.84207560966374,220.88849996884591,220.60348404355346,219.9565936931694,218.91521626428428,217.44441862825431,215.50679641696567,213.06231392821144,210.06813414105918]
["Capital Expenditures",{"$f":"-B327","v":-167.50800000000001},{"$f":"-C327","v":-108.66689999999998},-97.439779999999999,-61.698000000000008,-59.952915000000004,-56.151035499999999,-56.4789964,-57.761810696454134,-72.409256009113179,-90.077044114013262,-110.11405806403152,-131.71383506117445,-135.54956803236439,-139.55750148445125,-143.74573918867262,-148.12277708977498,-152.69752261403383,-157.47931493799038]
["Unlevered Free Cash Flow",{"$f":"SUM(B161:B163)","v":132.07919999999999},{"$f":"SUM(C161:C163)","v":279.28745999999995},200.33510200000001,251.37528,253.11298499999998,232.01208449999999,207.21372360000001,201.95302939807118,173.32315550251224,158.8497905203846,150.76220912940502,138.91333847604682,145.23043637006793,151.79458797609433,158.61578281276999,165.70441576227964,173.07130318504014,180.72769964380277]
[]
["Terminal FCF",{"$f":"$S164*(1+B155)","v":184.34225363667883},184.34225363667883,184.34225363667883,184.34225363667883,184.34225363667883,184.34225363667883,184.34225363667883,184.34225363667883,184.34225363667883,184.34225363667883,184.34225363667883,184.34225363667883,184.34225363667883,184.34225363667883,184.34225363667883,184.34225363667883,184.34225363667883,184.34225363667883]
["Terminal FCF Multiple",{"$f":"(1+B155)/(B27-B155)","v":15.218407850883878},15.606402569785615,15.80208813260742,15.692683527845187,15.950952228960524,15.936373276776242,16.208801466911147,16.34367957940426,16.171615693183412,16.053209623198242,15.921841560048504,15.882415024955115,15.859968894266826,15.873018389749008,15.877996860386478,15.875314117201002,15.844176189468392,15.812919020570586]
["Terminal Value",{"$f":"B166*B167","v":2805.3955999940604},{"$f":"C166*C167","v":2876.9194208755362},2912.9925385302695,2892.8246471301695,2940.4344815375885,2937.7469646362765,2987.9669911599067,3012.8307263831484,2981.1120818277122,2959.2848400423836,2935.0681552254755,2927.8001788932747,2923.6624085767721,2926.0679819827792,2926.9857244797545,2926.4911815550154,2920.7511457832097,2914.9891288262861]
["PV of Terminal Value",{"$f":"B168/((1+B27)^B171)","v":679.09137464603839},775.81977919684698,862.19423470277513,923.23975713709137,1031.1265313298595,1115.9410298205883,1243.8756615624575,1364.7685084691725,1453.6405365835776,1557.5118684910633,1668.1561559457393,1802.3212794204499,1950.5369232431992,2117.1453897541155,2296.3840351798117,2489.3605317979273,2693.4832036973421,2914.9891288262861]
["PV of Cash Flows",{"$f":"NPV(B27,C164:$S164)","v":1769.9933986939395},{"$f":"NPV(C27,D164:$S164)","v":1660.3161872242799},{"$f":"NPV(D27,E164:$S164)","v":1608.6605854268603},{"$f":"NPV(E27,F164:$S164)","v":1489.814236363565},{"$f":"NPV(F27,G164:$S164)","v":1370.6121055397293},{"$f":"NPV(G27,H164:$S164)","v":1253.2972257147958},{"$f":"NPV(H27,I164:$S164)","v":1157.2207510414335},{"$f":"NPV(I27,J164:$S164)","v":1053.7113260945293},{"$f":"NPV(J27,K164:$S164)","v":964.49550853767414},{"$f":"NPV(K27,L164:$S164)","v":884.15482450295212},{"$f":"NPV(L27,M164:$S164)","v":805.75036579599475},{"$f":"NPV(M27,N164:$S164)","v":734.20536488342429},{"$f":"NPV(N27,O164:$S164)","v":650.65156929327975},{"$f":"NPV(O27,P164:$S164)","v":553.78152094470317},{"$f":"NPV(P27,Q164:$S164)","v":441.84357935408082},{"$f":"NPV(Q27,R164:$S164)","v":313.35531997936533},{"$f":"NPV(R27,S164:$S164)","v":166.66501154548286},{"$f":"NPV(S27,$S164:T164)","v":166.64545548860036}]
["Years to Terminal Period",17,{"$f":"B171-1","v":16},{"$f":"C171-1","v":15},14,13,12,11,10,9,8,7,6,5,4,3,2,1,0]
[]
["Total Present Value of Product 6",{"$f":"B169+B170","v":2449.0847733399778},{"$f":"C169+C170","v":2436.1359664211268},2470.8548201296353,2413.0539935006564,2401.7386368695888,2369.2382555353843,2401.0964126038907,2418.4798345637018,2418.1360451212518,2441.6666929940156,2473.9065217417342,2536.526644303874,2601.1884925364789,2670.9269106988186,2738.2276145338924,2802.7158517772928,2860.1482152428248,3081.6345843148865]
["PV / CY FCF",{"$f":"B173/B164","v":18.542546997104601},{"$f":"C173/C164","v":8.7226829533310486},12.333609015406772,9.5994084760468752,9.4888005720828144,10.21170194923784,11.587535665537795,11.97545707421213,13.95160408954245,15.370915410056432,16.409327881487094,18.259777442043507,17.910766899496732,17.595666263934618,17.263273338732599,16.913947880532543,16.525837401159922,17.051257723019202]
["PV / FY FCF",{"$f":"B173/C164","v":8.7690466780713248},{"$f":"C173/D164","v":12.160305119275236},9.8293468638986106,9.5335053375497765,10.351782503249691,11.433790264340312,11.889380514669433,13.953587606640632,15.222783972201345,16.195482323413284,17.808991914540417,17.465530695235543,{"$f":"N173/O164","v":17.136240015000613},{"$f":"O173/P164","v":16.838973167327111},16.524771545389395,16.193995192725588,15.825732418881593]
["PV / CY EBITDA",{"$f":"B173/B157","v":6.7467900092010407},{"$f":"C173/C157","v":4.9995340727574815},7.0432779994365484,6.5136835405913969,6.6551080100518831,7.1834498786770444,8.2973682696355002,8.8551412431589487,9.4564454937263456,9.1226102231975457,8.6038514475673438,8.3444881900965822,8.0950954902184282,7.8639166732883492,7.6279502702134536,7.387735946877525,7.1342026445925226,7.2743036025272563]
["PV / FY EBITDA",{"$f":"B173/C157","v":5.0261081237483456},{"$f":"C173/D157","v":6.9443104127946249},6.6697083514989917,6.686462346196536,7.2819899304454525,8.1872773710769433,8.7914927253819428,9.4577899284740958,9.0346944853703999,8.4917264764730085,8.1384848846096887,7.8938629238285438,{"$f":"N173/O157","v":7.658588288165264},{"$f":"O173/P157","v":7.4404689887891218},7.2177500854382641,6.9909463905503832,6.7514774697170372]
[]
["Product 7"]
["Growth Rate",1.4999999999999999E-2,1.4999999999999999E-2,1.4999999999999999E-2,1.4999999999999999E-2,1.4999999999999999E-2,1.4999999999999999E-2,1.4999999999999999E-2,1.4999999999999999E-2,1.4999999999999999E-2,1.4999999999999999E-2,1.4999999999999999E-2,1.4999999999999999E-2,1.4999999999999999E-2,1.4999999999999999E-2,1.4999999999999999E-2,1.4999999999999999E-2,1.4999999999999999E-2,1.4999999999999999E-2]
[]
["EBITDA",{"$f":"B287","v":-36},-8.2725999999999544,15.189650000000029,71.54079999999999,121.11349999999999,178.18099999999998,229.61951999999997,266.12272651219837,293.77219480981978,302.91793295012548,315.03465026813052,327.63603627885573,340.74147773000999,354.37113683921035,368.54598231277879,383.28782160528993,398.61933446950155,414.56410784828165]
["Depreciation",{"$f":"-B308","v":-99.531999999999982},{"$f":"-C308","v":-103.02300000000002},-107.77831999999998,-105.00559999999999,-81.664999999999992,-88.320699999999988,-101.83891999999997,-104.89408759999998,-108.04091022799997,-108.04091022799997,-111.28213753483998,-114.62060166088517,-118.05921971071173,-121.60099630203308,-125.24902619109407,-129.0064969768269,-132.87669188613171,-136.86299264271565]
["EBITA",{"$f":"SUM(B182:B183)","v":-135.53199999999998},{"$f":"SUM(C182:C183)","v":-111.29559999999998},-92.588669999999951,-33.464799999999997,39.448499999999996,89.860299999999995,127.78059999999999,161.22863891219839,185.73128458181981,194.8770227221255,203.75251273329053,213.01543461797056,222.68225801929827,232.77014053717727,243.29695612168473,254.28132462846304,265.74264258336984,277.701115205566]
["Taxes",{"$f":"-(B184*B26)","v":54.212799999999994},44.518239999999992,37.03546799999998,13.385919999999999,-15.779399999999999,-35.944119999999998,-51.11224,-64.491455564879359,-74.29251383272792,-77.950809088850207,-81.501005093316223,-85.206173847188225,-89.072903207719321,-93.108056214870913,-97.3187824486739,-101.71252985138523,-106.29705703334794,-111.0804460822264]
["EBIAT",{"$f":"SUM(B184:B185)","v":-81.319199999999995},{"$f":"SUM(C184:C185)","v":-66.777359999999987},-55.55320199999997,-20.078879999999998,23.669099999999997,53.916179999999997,76.668359999999993,96.737183347319032,111.43877074909189,116.9262136332753,122.25150763997431,127.80926077078233,133.60935481157895,139.66208432230636,145.97817367301082,152.56879477707781,159.44558555002192,166.62066912333961]
["Depreciation",{"$f":"B308","v":99.531999999999982},{"$f":"C308","v":103.02300000000002},107.77831999999998,105.00559999999999,81.664999999999992,88.320699999999988,101.83891999999997,104.89408759999998,108.04091022799997,108.04091022799997,111.28213753483998,114.62060166088517,118.05921971071173,121.60099630203308,125.24902619109407,129.0064969768269,132.87669188613171,136.86299264271565]
["Capital Expenditures",{"$f":"-B328","v":-88.49199999999999},{"$f":"-C328","v":-31.333100000000016},-45.560220000000001,-176.30199999999999,-119.04708499999998,-84.848964499999965,-213.52100359999997,-207.33415267223472,-162.4501232183726,-144.39432516762383,-141.97009817432877,-144.64890210130193,-147.43485818535402,-150.33225251276815,-153.34554261327889,-156.47936431781005,-159.73853889052245,-163.12808044614337]
["Unlevered Free Cash Flow",{"$f":"SUM(B186:B188)","v":-70.279200000000003},{"$f":"SUM(C186:C188)","v":4.9125400000000212},6.664898000000008,-91.375280000000004,-13.712984999999989,57.38791550000002,-35.013723599999992,-5.7028817249156987,57.02955775871925,80.572798693651436,91.563547000485528,97.780960330365588,104.23371633693665,110.93082811157126,117.88165725082598,125.09592743609466,132.58373854563118,140.35558131991189]
[]
["Terminal FCF",{"$f":"$S189*(1+B180)","v":142.46091503971056},142.46091503971056,142.46091503971056,142.46091503971056,142.46091503971056,142.46091503971056,142.46091503971056,142.46091503971056,142.46091503971056,142.46091503971056,142.46091503971056,142.46091503971056,142.46091503971056,142.46091503971056,142.46091503971056,142.46091503971056,142.46091503971056,142.46091503971056]
["Terminal FCF Multiple",{"$f":"(1+B180)/(B27-B180)","v":14.092506300067859},14.426263007790649,14.594146571455742,14.500322473182445,14.72166075966021,14.709180327868847,14.942121640298652,15.057236771901394,14.910359700003189,14.809152564006483,14.69673868571771,14.66297452527057,14.643746661696722,14.654925632609025,14.659190135814615,14.656892151494553,14.630215920253077,14.603429932502863]
["Terminal Value",{"$f":"B191*B192","v":2007.6313427105531},{"$f":"C191*C192","v":2055.178628693383},2079.0954747932396,2065.7292079004501,2097.2612627253939,2095.4832889923055,2128.6683215116068,2145.0677284946501,2124.1434864336784,2109.7254252310395,2093.7108412668581,2088.900768074011,2086.1615490350218,2087.7541154603909,2088.3616404892491,2088.0342675402658,2084.2339472277945,2080.4179909026566]
["PV of Terminal Value",{"$f":"B193/((1+B27)^B196)","v":485.97963449670624},554.22067728186107,615.37546287976295,659.27374274310455,735.44972510174682,795.99632222900766,886.15393828010133,971.68448885856856,1035.7681940985183,1110.3771913377684,1189.9678112794397,1285.9041173775236,1391.7937711638456,1510.5865713659834,1638.4365290178594,1776.1441166873431,1922.0566385940779,2080.4179909026566]
["PV of Cash Flows",{"$f":"NPV(B27,B189:$S189)","v":216.63435318565121},{"$f":"NPV(C27,C189:$S189)","v":312.49101184372677},{"$f":"NPV(D27,D189:$S189)","v":337.60096194888501},{"$f":"NPV(E27,E189:$S189)","v":357.60678587241927},{"$f":"NPV(F27,F189:$S189)","v":483.76593714563694},{"$f":"NPV(G27,G189:$S189)","v":537.85168416467172},{"$f":"NPV(H27,H189:$S189)","v":529.8193469773297},{"$f":"NPV(I27,I189:$S189)","v":610.69158279437806},{"$f":"NPV(J27,J189:$S189)","v":664.46764659765188},{"$f":"NPV(K27,K189:$S189)","v":661.24315469052101},{"$f":"NPV(L27,L189:$S189)","v":634.5584128324133},{"$f":"NPV(M27,M189:$S189)","v":595.9950958853417},{"$f":"NPV(N27,N189:$S189)","v":548.25200564171291},{"$f":"NPV(O27,O189:$S189)","v":490.31365101832324},{"$f":"NPV(P27,P189:$S189)","v":420.71596897035494},{"$f":"NPV(Q27,Q189:$S189)","v":338.26863713301975},{"$f":"NPV(R27,R189:$S189)","v":241.63003619475876},{"$f":"NPV(S27,S189:$S189)","v":129.41911962318304}]
["Years to Terminal Period",17,{"$f":"B196-1","v":16},{"$f":"C196-1","v":15},14,13,12,11,10,9,8,7,6,5,4,3,2,1,0]
[]
["Total Present Value of Product 7",{"$f":"B194+B195","v":702.61398768235745},{"$f":"C194+C195","v":866.71168912558778},952.97642482864796,1016.8805286155239,1219.2156622473838,1333.8480063936795,1415.9732852574311,1582.3760716529466,1700.2358406961703,1771.6203460282895,1824.526224111853,1881.8992132628653,1940.0457768055585,2000.9002223843067,2059.1524979882142,2114.4127538203629,2163.6866747888366,2209.8371105258398]
["PV / CY FCF",{"$f":"B198/B189","v":-9.9974670696643866},{"$f":"C198/C189","v":176.42842381447969},142.98439748494977,-11.128617374584502,-88.909574556333624,23.24266345575279,-40.440522734275298,-277.46955802004425,29.813239090675243,21.987821879741663,19.926338416118568,19.246070062153471,18.612459048608983,18.037368479498365,17.467963600196043,16.902330852461301,16.319397073300685,15.744561703527609]
["PV / FY FCF",{"$f":"B198/C189","v":143.0245835519618},{"$f":"C198/D189","v":130.04125331334205},-10.429258600670202,-74.154571642536226,21.245163753114248,-38.095005879171325,-248.29083848453169,27.746595517146844,21.101859042537352,19.348533385440991,18.659319952958693,18.054611112392895,17.488788372284684,16.973804653312904,16.460587808025437,15.947753299267905,15.415750869622737]
["PV / CY EBITDA",{"$f":"B198/B182","v":-19.51705521339882},{"$f":"C198/C182","v":-104.76895886729596},62.738537413873665,14.213994372659014,10.066719748396206,7.4859160426402349,6.1666067643440394,5.9460388535453195,5.7875996119947883,5.8485158959538444,5.7915096722185089,5.743871262259912,5.6936002911355974,5.6463408398076727,5.5872336066891268,5.5165143128335199,5.4279521530694357,5.3305075588805568]
["PV / FY EBITDA",{"$f":"B198/C182","v":-84.932667804845067},{"$f":"C198/D182","v":57.059358782169845},13.320740400284146,8.3960956343886028,6.8425682999162865,5.8089486747192911,5.3207529616698359,5.3864051792829963,5.6128596420077548,5.6235729768786955,5.5687593002101048,5.5229531367883764,5.4746156645534594,5.4291738844304547,5.3723400064318527,5.3043406854168458,5.2191847625667647]
[]
["Product 8"]
["Growth Rate",0.01,0.01,0.01,0.01,0.01,0.01,0.01,0.01,0.01,0.01,0.01,0.01,0.01,0.01,0.01,0.01,0.01,0.01]
[]
["EBITDA",{"$f":"B289","v":-22.613549240709091},-93.349668235480834,-69.805949560350086,-89.74987953381401,-145.00158825760823,-53.588350372936247,-46.648943978375314,82.040635574384055,119.02377201694566,135.21431141609844,154.26452448529346,173.13655476022885,191.8625412163934,210.47371277557505,229.00045471539764,247.47237238558711,265.91835238444594,284.3666213419059]
["Depreciation",{"$f":"-B310","v":-19.103528929612025},{"$f":"-C310","v":-11.365617837059517},-23.284625160099381,7.5350962970932756,-9.2839048485289482,-33.80056479714176,-105.78466923207748,-111.7000000000001,-118.40199999999993,-120.77004000000011,-126.80854199999999,-133.14896909999993,-139.80641755500005,-146.79673843275009,-154.13657535438756,-161.84340412210702,-169.93557432821217,-178.43235304462291]
["EBITA",{"$f":"SUM(B207:B208)","v":-41.717078170321116},{"$f":"SUM(C207:C208)","v":-104.71528607254035},-93.090574720449467,-82.214783236720734,-154.28549310613718,-87.388915170078008,-152.43361321045279,-29.659364425616047,0.62177201694572659,14.444271416098331,27.455982485293475,39.987585660228916,52.056123661393343,63.676974342824963,74.863879361010078,85.62896826348009,95.982778056233769,105.93426829728298]
["Taxes",{"$f":"-(B209*B26)","v":16.686831268128447},41.886114429016146,37.236229888179786,32.885913294688294,61.714197242454873,34.955566068031203,60.973445284181118,11.863745770246419,-0.24870880677829066,-5.7777085664393333,-10.98239299411739,-15.995034264091567,-20.822449464557337,-25.470789737129987,-29.945551744404032,-34.251587305392036,-38.393111222493509,-42.373707318913198]
["EBIAT",{"$f":"SUM(B209:B210)","v":-25.030246902192669},{"$f":"SUM(C209:C210)","v":-62.829171643524205},-55.854344832269682,-49.328869942032441,-92.571295863682309,-52.433349102046805,-91.46016792627168,-17.79561865536963,0.37306321016743593,8.6665628496589981,16.473589491176085,23.992551396137351,31.233674196836006,38.206184605694972,44.918327616606049,51.377380958088054,57.58966683374026,63.560560978369786]
["Depreciation",{"$f":"B208","v":-19.103528929612025},{"$f":"C208","v":-11.365617837059517},-23.284625160099381,7.5350962970932756,-9.2839048485289482,-33.80056479714176,-105.78466923207748,-111.7000000000001,-118.40199999999993,-120.77004000000011,-126.80854199999999,-133.14896909999993,-139.80641755500005,-146.79673843275009,-154.13657535438756,-161.84340412210702,-169.93557432821217,-178.43235304462291]
["Capital Expenditures",0,0,0,0,0,0,0,0,0,0,0,0,0,0,0,0,0,0]
["Unlevered Free Cash Flow",{"$f":"SUM(B211:B213)","v":-44.133775831804698},{"$f":"SUM(C211:C213)","v":-74.194789480583722},-79.138969992369056,-41.793773644939165,-101.85520071221126,-86.233913899188565,-197.24483715834916,-129.49561865536973,-118.0289367898325,-112.10347715034111,-110.3349525088239,-109.15641770386259,-108.57274335816405,-108.59055382705512,-109.21824773778151,-110.46602316401896,-112.3459074944719,-114.87179206625314]
[]
["Terminal FCF",{"$f":"$S214*(1+B205)","v":-116.02050998691567},-116.02050998691567,-116.02050998691567,-116.02050998691567,-116.02050998691567,-116.02050998691567,-116.02050998691567,-116.02050998691567,-116.02050998691567,-116.02050998691567,-116.02050998691567,-116.02050998691567,-116.02050998691567,-116.02050998691567,-116.02050998691567,-116.02050998691567,-116.02050998691567,-116.02050998691567]
["Terminal FCF Multiple",{"$f":"(1+B205)/(B27-B205)","v":13.112779990107001},13.402728296301975,13.548239481092661,13.466946192431529,13.658611013141547,13.64781412412106,13.84912906520144,13.948456253739037,13.821704775978121,13.734265905333007,13.63704956003434,13.607830456992939,13.591186841038356,13.600863702868171,13.60455492638218,13.602565879426347,13.579472884289389,13.556279178506463]
["Terminal Value",{"$f":"B216*B217","v":-1521.3514217984373},{"$f":"C216*C217","v":-1554.9913721530204},-1571.8736540212362,-1562.4419652122581,-1584.6790154575851,-1583.4263548871563,-1606.7830170192879,-1618.3070080889863,-1603.6012369975697,-1593.4565346326435,-1582.1774446720281,-1578.7874294358046,-1576.8564286247274,-1577.9791430692956,-1578.4074007038664,-1578.1766304616629,-1575.4973693887475,-1572.8064238153261]
["PV of Terminal Value",{"$f":"B218/((1+B27)^B221)","v":-368.26771538067328},-419.33502003668059,-465.24678118883264,-498.65052896808226,-555.70174637101798,-601.48489927436879,-668.89570540614693,-733.06954231916598,-781.94301275182818,-838.65785105682426,-899.23603287685398,-971.88401048232436,-1052.0081517151573,-1141.7408236747424,-1238.3489012848765,-1342.444030188256,-1452.9056020553264,-1572.8064238153261]
["PV of Cash Flows",{"$f":"NPV(B27,C214:$S214)","v":-893.74995154835256},{"$f":"NPV(C27,D214:$S214)","v":-907.37033314579401},{"$f":"NPV(D27,E214:$S214)","v":-910.30046895324949},{"$f":"NPV(E27,F214:$S214)","v":-943.09027984466888},{"$f":"NPV(F27,G214:$S214)","v":-926.45516343792542},{"$f":"NPV(G27,H214:$S214)","v":-917.74159995743742},{"$f":"NPV(H27,I214:$S214)","v":-801.63985571901185},{"$f":"NPV(I27,J214:$S214)","v":-740.33507790232034},{"$f":"NPV(J27,K214:$S214)","v":-681.43890441974065},{"$f":"NPV(K27,L214:$S214)","v":-624.84157864663234},{"$f":"NPV(L27,M214:$S214)","v":-565.68871257587125},{"$f":"NPV(M27,N214:$S214)","v":-503.84204123449626},{"$f":"NPV(N27,O214:$S214)","v":-437.59871940641466},{"$f":"NPV(O27,P214:$S214)","v":-365.94654400697726},{"$f":"NPV(P27,Q214:$S214)","v":-287.57341742748741},{"$f":"NPV(Q27,R214:$S214)","v":-201.32953920632374},{"$f":"NPV(R27,S214:$S214)","v":-105.93344898820483},{"$f":"NPV(S27,$S214:T214)","v":-105.9210190214412}]
["Years to Terminal Period",17,{"$f":"B221-1","v":16},{"$f":"C221-1","v":15},14,13,12,11,10,9,8,7,6,5,4,3,2,1,0]
[]
["Total Present Value of Product 8",{"$f":"B219+B220","v":-1262.0176669290258},{"$f":"C219+C220","v":-1326.7053531824745},-1375.5472501420822,-1441.7408088127511,-1482.1569098089435,-1519.2264992318062,-1470.5355611251589,-1473.4046202214863,-1463.3819171715688,-1463.4994297034566,-1464.9247454527253,-1475.7260517168206,-1489.6068711215719,-1507.6873676817197,-1525.9223187123639,-1543.7735693945797,-1558.8390510435313,-1678.7274428367673]
["PV / CY FCF",{"$f":"B223/B214","v":28.595279763476789},{"$f":"C223/C214","v":17.881381731390508},17.381414621326496,34.496545372072006,14.551607570797808,17.61750604301519,7.4553817595976186,11.378026805236544,12.398501223283327,13.054897732929094,13.277068708898659,13.519370484660023,13.719897140367891,13.884148432311269,13.971312947410587,13.975098633743684,13.875352345346764,14.613922292328731]
["PV / FY FCF",{"$f":"B223/C214","v":17.009518805350709},{"$f":"C223/D214","v":16.764248426665162},32.912731495081161,14.154807989494277,17.187633528285097,7.7022370832051914,11.355871159152773,12.483418560696647,13.053849482376346,13.264150628844609,13.42041793114733,13.592049036180631,13.717646872802295,13.804354115820248,13.813499164776559,13.741253275919664,13.57025099899599]
["PV / CY EBITDA",{"$f":"B223/B207","v":55.808031437061267},{"$f":"C223/C207","v":14.212212836533825},19.705301035305961,16.06398600534682,10.221659828827253,28.349939654030887,31.523448029323955,-17.959449118182288,-12.294870952024812,-10.823554210913315,-9.4961868280505506,-8.5234805195269452,-7.763927558123549,-7.1633048507551349,-6.6634030076874042,-6.2381653132141297,-5.8620965310053972,-5.9033913154609063]
["PV / FY EBITDA",{"$f":"B223/C207","v":13.519251763653848},{"$f":"C223/D207","v":19.005620030073278},15.326452328260045,9.942931150873811,27.658192489490737,32.56722167035683,-17.924477922795511,-12.379078525689092,-10.822685127377282,-9.4869474014615509,-8.4610944666275234,-7.6915798277289236,-7.0774010277944646,-6.5837745586814558,-6.1660309957138244,-5.8054419920694347,-5.4817933401869761]
[]
["Product 9"]
["Growth Rate",1.4999999999999999E-2,1.4999999999999999E-2,1.4999999999999999E-2,1.4999999999999999E-2,1.4999999999999999E-2,1.4999999999999999E-2,1.4999999999999999E-2,1.4999999999999999E-2,1.4999999999999999E-2,1.4999999999999999E-2,1.4999999999999999E-2,1.4999999999999999E-2,1.4999999999999999E-2,1.4999999999999999E-2,1.4999999999999999E-2,1.4999999999999999E-2,1.4999999999999999E-2,1.4999999999999999E-2]
[]
["EBITDA",{"$f":"B290","v":581.04333901365032},576.98225895598273,436.42813000638273,520.9385349181083,716.88925466929516,776.59741854856236,627.88753863846591,686.49866653019649,712.21228960365443,846.90036931279849,948.64835682397052,1024.1700053550151,1241.7804188536145,1298.8477792325625,1405.9945772369917,1504.5504504732432,1595.8808255650852,1676.1632437857668]
["Depreciation",{"$f":"-B311","v":-20.202956872812805},{"$f":"-C311","v":-34.057810502154858},-34.287545141105127,-32.755036662529442,-29.233623766040537,-37.860428372870565,-37.270820807270191,-30,-26.220521758667569,-27.201527692520894,-28.358452796968486,-29.41728610170583,-31.244311924600115,-32.302557383155801,-33.652449915203107,-35.001088391256431,-36.349776256595888,-37.680978158404592]
["EBITA",{"$f":"SUM(B232:B233)","v":560.84038214083751},{"$f":"SUM(C232:C233)","v":542.92444845382784},402.14058486527762,488.18349825557885,687.65563090325463,738.73699017569174,590.61671783119573,656.49866653019649,685.99176784498684,819.69884162027756,920.28990402700208,994.75271925330924,1210.5361069290143,1266.5452218494067,1372.3421273217887,1469.5493620819868,1559.5310493084892,1638.4822656273623]
["Taxes",{"$f":"-(B234*B26)","v":-224.33615285633502},-217.16977938153116,-160.85623394611105,-195.27339930223155,-275.06225236130189,-295.49479607027672,-236.24668713247831,-262.59946661207863,-274.39670713799472,-327.87953664811107,-368.11596161080087,-397.90108770132372,-484.21444277160572,-506.6180887397627,-548.93685092871544,-587.81974483279475,-623.81241972339569,-655.39290625094497]
["EBIAT",{"$f":"SUM(B234:B235)","v":336.50422928450246},{"$f":"SUM(C234:C235)","v":325.75466907229668},241.28435091916657,292.9100989533473,412.59337854195275,443.24219410541502,354.37003069871741,393.89919991811786,411.59506070699211,491.81930497216649,552.17394241620127,596.85163155198552,726.32166415740858,759.92713310964405,823.40527639307322,881.72961724919207,935.71862958509348,983.08935937641729]
["Depreciation",{"$f":"B311","v":20.202956872812805},{"$f":"C311","v":34.057810502154858},34.287545141105127,32.755036662529442,29.233623766040537,37.860428372870565,37.270820807270191,30,26.220521758667569,27.201527692520894,28.358452796968486,29.41728610170583,31.244311924600115,32.302557383155801,33.652449915203107,35.001088391256431,36.349776256595888,37.680978158404592]
["Capital Expenditures",{"$f":"-B331","v":-32.645021776191413},{"$f":"-C331","v":-69.828024884306345},-51.170245032918331,-34.446611325852558,-39.190927930892791,-40.059789357186709,-41.185822992907802,-33,-28.842573934534329,-29.649665184847777,-30.627129020725967,-31.476496128825239,-33.118970640076121,-33.917685252313589,-34.998547911811229,-36.051121042994126,-37.076771781727807,-38.434597721572686]
["Unlevered Free Cash Flow",{"$f":"SUM(B236:B238)","v":324.06216438112386},{"$f":"SUM(C236:C238)","v":289.98445469014518},224.40165102735335,291.21852429002422,402.6360743771005,441.04283312109885,350.45502851307981,390.89919991811786,408.9730085311254,489.37116747983964,549.90526619244372,594.79242152486609,724.44700544193256,758.3120052404862,822.05917839646509,880.67958459745432,934.9916340599616,982.33573981324923]
[]
["Terminal FCF",{"$f":"$S239*(1+B230)","v":997.07077591044788},997.07077591044788,997.07077591044788,997.07077591044788,997.07077591044788,997.07077591044788,997.07077591044788,997.07077591044788,997.07077591044788,997.07077591044788,997.07077591044788,997.07077591044788,997.07077591044788,997.07077591044788,997.07077591044788,997.07077591044788,997.07077591044788,997.07077591044788]
["Terminal FCF Multiple",{"$f":"(1+B230)/(B27-B230)","v":14.092506300067859},14.426263007790649,14.594146571455742,14.500322473182445,14.72166075966021,14.709180327868847,14.942121640298652,15.057236771901394,14.910359700003189,14.809152564006483,14.69673868571771,14.66297452527057,14.643746661696722,14.654925632609025,14.659190135814615,14.656892151494553,14.630215920253077,14.603429932502863]
["Terminal Value",{"$f":"B241*B242","v":14051.226191131535},{"$f":"C241*C242","v":14384.005250666014},14551.397045752179,14457.847779287726,14678.537716324799,14666.093842514887,14898.352817640871,15013.13075122705,14866.683915186053,14765.773237570143,14653.688644721653,14620.023387066658,14600.851846213982,14611.998071415392,14616.250082935463,14613.958829926427,14587.360739344123,14560.653213754489]
["PV of Terminal Value",{"$f":"B243/((1+B27)^B246)","v":3401.3265400495156},3878.9392906047551,4306.9559821284638,4614.1959851305182,5147.3446442901222,5571.1046809260488,6202.1095018991737,6800.7299193347117,7249.2458486968262,7771.4273238509304,8328.4747158202645,8999.9240542759035,9741.0359531583945,10572.45578109579,11467.265816820609,12431.068493843253,13452.296747164837,14560.653213754489]
["PV of Cash Flows",{"$f":"NPV(B27,C239:$S239)","v":4123.5080933884537},{"$f":"NPV(C27,D239:$S239)","v":4248.2522314519174},{"$f":"NPV(D27,E239:$S239)","v":4412.8807059593519},{"$f":"NPV(E27,F239:$S239)","v":4480.7885121044073},{"$f":"NPV(F27,G239:$S239)","v":4489.8310361986005},{"$f":"NPV(G27,H239:$S239)","v":4424.0887511051933},{"$f":"NPV(H27,I239:$S239)","v":4472.5804339347196},{"$f":"NPV(I27,J239:$S239)","v":4464.6231213419178},{"$f":"NPV(J27,K239:$S239)","v":4409.8823313223165},{"$f":"NPV(K27,L239:$S239)","v":4278.5504244682352},{"$f":"NPV(L27,M239:$S239)","v":4078.1980142685825},{"$f":"NPV(M27,N239:$S239)","v":3824.2953503433655},{"$f":"NPV(N27,O239:$S239)","v":3421.086849894652},{"$f":"NPV(O27,P239:$S239)","v":2951.5724128110587},{"$f":"NPV(P27,Q239:$S239)","v":2378.3003127214042},{"$f":"NPV(Q27,R239:$S239)","v":1697.9430024255089},{"$f":"NPV(R27,S239:$S239)","v":905.89875121630087},{"$f":"NPV(S27,$S239:T239)","v":905.79245531565391}]
["Years to Terminal Period",17,{"$f":"B246-1","v":16},{"$f":"C246-1","v":15},14,13,12,11,10,9,8,7,6,5,4,3,2,1,0]
[]
["Total Present Value of Product 9",{"$f":"B244+B245","v":7524.8346334379694},{"$f":"C244+C245","v":8127.1915220566725},8719.8366880878166,9094.9844972349256,9637.1756804887227,9995.193432031243,10674.689935833892,11265.353040676629,11659.128180019143,12049.977748319165,12406.672730088847,12824.219404619269,13162.122803053047,13524.028193906848,13845.566129542014,14129.011496268762,14358.195498381137,15466.445669070143]
["PV / CY FCF",{"$f":"B248/B239","v":23.220343071547664},{"$f":"C248/C239","v":28.026300688223984},38.85816636449308,31.230789728805988,23.935201770973819,22.662636554592474,30.459514252441345,28.819074183411981,28.508307239869623,24.623391301073294,22.56147284420992,21.56083188104833,18.168510193542438,17.834384923944235,16.842541867301595,16.043305355746295,15.356496224500269,15.744561703527607]
["PV / FY FCF",{"$f":"B248/C239","v":25.949096621328966},{"$f":"C248/D239","v":36.217164556717151},29.942589364280071,22.588598180889161,21.850883761765164,28.520616395316463,27.308037310053162,27.545468296642529,23.824714153188147,21.912824788446706,20.858827855072409,17.702080770968394,17.357133623222669,16.451404654695601,15.721456897255791,15.111377451493496,14.616383092312979]
["PV / CY EBITDA",{"$f":"B248/B232","v":12.950556573304405},{"$f":"C248/C232","v":14.085687030936398},19.980006073303041,17.458843774466906,13.443046631985583,12.870495308511281,17.000958418415625,16.409868787678278,16.370299067020365,14.228329783463071,13.078263026381869,12.521572920087541,10.599396320972787,10.412327302817316,9.8475245592702105,9.3908525911009537,8.9970349091054764,9.2272907942652242]
["PV / FY EBITDA",{"$f":"B248/C232","v":13.041708850899052},{"$f":"C248/D232","v":18.622061602531929},16.738705439517116,12.686735695920691,12.409487142643764,15.918763818286923,15.549469294365123,15.817408945506669,13.766823823066371,12.702259653579031,12.113880181238306,10.327284284655025,10.133691579185685,9.6188338225910979,9.202460525791615,8.8534251868499165,8.5661080754591961]
[]
["Product 10"]
["Growth Rate",0.02,0.02,0.02,0.02,0.02,0.02,0.02,0.02,0.02,0.02,0.02,0.02,0.02,0.02,0.02,0.02,0.02,0.02]
[]
["EBITDA",{"$f":"B291","v":424.95666098634968},355.01774104401727,157.57186999361724,229.06146508189167,284.1107453307049,275.4025814514377,287.11246136153403,337.27987584612526,402.4303970347209,467.67525142447045,594.00108661419222,596.58448318785418,637.38814901770786,635.10439711771085,673.00807626024766,656.64092094144064,699.64587794295949,692.73507413838615]
["Depreciation",{"$f":"-B312","v":-54.797043127187195},{"$f":"-C312","v":-55.942189497845142},-54.712454858894873,-62.244963337470558,-65.766376233959463,-62.139571627129435,-61.729179192729809,-66,-65.514943592875611,-66.933137670963973,-71.523870515006919,-69.637541541329966,-69.253187564629471,-66.363514159040207,-65.20956449820423,-61.573113111054859,-60.129200403686923,-56.428468211021929]
["EBITA",{"$f":"SUM(B257:B258)","v":370.15961785916249},{"$f":"SUM(C257:C258)","v":299.07555154617211},102.85941513472237,166.81650174442112,218.34436909674542,213.26300982430826,225.38328216880421,271.27987584612526,336.91545344184527,400.74211375350649,522.47721609918528,526.94694164652424,568.1349614530784,568.74088295867068,607.7985117620434,595.06780783038573,639.51667753927256,636.30660592736422]
["Taxes",{"$f":"-(B259*B26)","v":-148.06384714366501},-119.63022061846885,-41.143766053888953,-66.726600697768447,-87.337747638698175,-85.305203929723305,-90.153312867521691,-108.51195033845011,-134.7661813767381,-160.2968455014026,-208.99088643967411,-210.7787766586097,-227.25398458123138,-227.49635318346827,-243.11940470481738,-238.02712313215432,-255.80667101570904,-254.5226423709457]
["EBIAT",{"$f":"SUM(B259:B260)","v":222.09577071549748},{"$f":"SUM(C259:C260)","v":179.44533092770325},61.715649080833415,100.08990104665267,131.00662145804725,127.95780589458495,135.22996930128252,162.76792550767516,202.14927206510717,240.44526825210389,313.48632965951117,316.16816498791457,340.880976871847,341.24452977520241,364.67910705722602,357.04068469823142,383.71000652356349,381.78396355641848]
["Depreciation",{"$f":"B312","v":54.797043127187195},{"$f":"C312","v":55.942189497845142},54.712454858894873,62.244963337470558,65.766376233959463,62.139571627129435,61.729179192729809,66,65.514943592875611,66.933137670963973,71.523870515006919,69.637541541329966,69.253187564629471,66.363514159040207,65.20956449820423,61.573113111054859,60.129200403686923,56.428468211021929]
["Capital Expenditures",{"$f":"-B332","v":-88.544002614052488},{"$f":"-C332","v":-114.69711478049814},-81.652089992462408,-65.459491960532418,-88.167150671727313,-65.7493392735187,-68.21333667095773,-72.600000000000009,-72.066437952163184,-72.957120061350736,-77.245780156207474,-74.512169449223066,-73.408378818507245,-69.681689866992215,-67.817947078132406,-63.42030650438651,-61.331784411760665,-57.557037575242369]
["Unlevered Free Cash Flow",{"$f":"SUM(B261:B263)","v":188.3488112286322},{"$f":"SUM(C261:C263)","v":120.69040564505025},34.776013947265881,96.875372423590804,108.60584702027938,124.34803824819568,128.74581182305462,156.16792550767514,195.59777770581957,234.42128586171714,307.7644200183106,311.29353708002145,336.72578561796922,337.92635406725043,362.07072447729786,355.19349130489974,382.50742251548974,380.65539419219806]
[]
["Terminal FCF",{"$f":"$S264*(1+B255)","v":388.26850207604201},388.26850207604201,388.26850207604201,388.26850207604201,388.26850207604201,388.26850207604201,388.26850207604201,388.26850207604201,388.26850207604201,388.26850207604201,388.26850207604201,388.26850207604201,388.26850207604201,388.26850207604201,388.26850207604201,388.26850207604201,388.26850207604201,388.26850207604201]
["Terminal FCF Multiple",{"$f":"(1+B255)/(B27-B255)","v":15.218407850883878},15.606402569785615,15.80208813260742,15.692683527845187,15.950952228960524,15.936373276776242,16.208801466911147,16.34367957940426,16.171615693183412,16.053209623198242,15.921841560048504,15.882415024955115,15.859968894266826,15.873018389749008,15.877996860386478,15.875314117201002,15.844176189468392,15.812919020570586]
["Terminal Value",{"$f":"B266*B267","v":5908.8284202449613},{"$f":"C266*C267","v":6059.4745485663534},6135.4530889210828,6092.9747269098289,6193.2523286250062,6187.5917806985772,6293.3670660055432,6345.7359887060884,6278.9290013417376,6232.9556539118839,6181.9495728121046,6166.6414910893463,6157.9263655496006,6162.9930736133156,6164.9260569503558,6163.8844322722762,6151.7945557137837,6139.6583815666945]
["PV of Terminal Value",{"$f":"B268/((1+B27)^B271)","v":1430.3274783992053},1634.0604370792505,1815.9855236794049,1944.5618705908182,2171.7970018928454,2350.4364490823623,2619.8971226399631,2874.5261274078589,3061.7116942093176,3280.4893518148783,3513.5324599780647,3796.1160266574743,4108.2933212061007,4459.2102621092727,4836.7293549957813,5243.1836203617222,5673.1143741342576,6139.6583815666945]
["PV of Cash Flows",{"$f":"NPV(B27,C264:$S264)","v":1654.4836075994715},{"$f":"NPV(C27,D264:$S264)","v":1701.8049275312851},{"$f":"NPV(D27,E264:$S264)","v":1823.750172144981},{"$f":"NPV(E27,F264:$S264)","v":1874.9648431860205},{"$f":"NPV(F27,G264:$S264)","v":1939.2771906799826},{"$f":"NPV(G27,H264:$S264)","v":1977.0170885895875},{"$f":"NPV(H27,I264:$S264)","v":2026.3567459228595},{"$f":"NPV(I27,J264:$S264)","v":2043.4933134253504},{"$f":"NPV(J27,K264:$S264)","v":2010.3734133860332},{"$f":"NPV(K27,L264:$S264)","v":1939.4147167052747},{"$f":"NPV(L27,M264:$S264)","v":1790.3640310747219},{"$f":"NPV(M27,N264:$S264)","v":1628.7743118492172},{"$f":"NPV(N27,O264:$S264)","v":1428.8800109421638},{"$f":"NPV(O27,P264:$S264)","v":1211.5699794490774},{"$f":"NPV(P27,Q264:$S264)","v":951.62095794476443},{"$f":"NPV(Q27,R264:$S264)","v":676.58184903614199},{"$f":"NPV(R27,S264:$S264)","v":351.03603815536343},{"$f":"NPV(S27,$S264:T264)","v":350.99484846194002}]
["Years to Terminal Period",17,{"$f":"B271-1","v":16},{"$f":"C271-1","v":15},14,13,12,11,10,9,8,7,6,5,4,3,2,1,0]
[]
["Total Present Value of Product 10",{"$f":"B269+B270","v":3084.8110859986768},{"$f":"C269+C270","v":3335.8653646105358},3639.7356958243859,3819.5267137768387,4111.074192572828,4327.4535376719496,4646.2538685628224,4918.019440833209,5072.0851075953506,5219.9040685201526,5303.8964910527866,5424.8903385066915,5537.1733321482643,5670.7802415583501,5788.3503129405453,5919.7654693978639,6024.1504122896213,6490.6532300286344]
["PV / CY FCF",{"$f":"B273/B264","v":16.378181873705042},{"$f":"C273/C264","v":27.639855436572944},104.66224511364808,39.427220956383323,37.853157130713129,34.801140401060906,36.088582632486172,31.491866366576694,25.931200073365876,22.267193225786347,17.233624636458071,17.426928902517378,16.444161892699363,16.781112728573436,15.986794627753673,16.666311783050972,15.749107226920993,17.051257723019198]
["PV / FY FCF",{"$f":"B273/C264","v":25.559704348588301},{"$f":"C273/D264","v":95.924316388560811},37.571320809065071,35.168702409398264,33.0610297555899,33.612383007996449,29.751652610218443,25.143534341325417,21.636623521412321,16.960713224126401,17.038248017623832,16.110706605230042,16.385739867587588,15.662078865240906,16.296329900853387,15.476210711069642,15.825732418881595]
["PV / CY EBITDA",{"$f":"B273/B257","v":7.2591192683946799},{"$f":"C273/C257","v":9.3963342643119763},23.098892562307096,16.674680363243645,14.469970812922044,15.713191629741562,16.182696656667321,14.581419743752875,12.603633187176319,11.161386138396436,8.9291023376489278,9.0932474634920855,8.6872862959277128,8.9288946310150052,8.6007144893492029,9.0152247302994226,8.6102850058965927,9.3696038678301576]
["PV / FY EBITDA",{"$f":"B273/C257","v":8.6891744534428863},{"$f":"C273/D257","v":21.170437113843111},15.889777420759732,13.443795338789139,14.927507835643661,15.072329209085737,13.775662888000317,12.220795141399053,10.845314333282595,8.7877012115813109,8.890436544228189,8.5111252019151955,8.718524635127034,8.426021085912641,8.8150922800267448,8.461088181928071,8.6961821873713738]
[]
["SUMMARY OF VALUATION INPUTS"]
["EBITDA"]
["Product 1",1081.0750670145103,827.79493223319355,-62.614796051151558,488.13764814295109,364.33760230831183,544.82039492650165,507.76443828208517,1400.4904275770141,803.26505829203234,1002.5166462359081,990.30755888374529,1089.975861143881,1069.4248907529343,1142.2269497560376,1128.3652911414242,1214.0697808484601,1200.4995418650051,1273.2646687111442]
["Product 2",150.92493298548979,308.20506776680639,297.61479605115153,293.86235185704896,385.66239769168817,319.17960507349835,314.23556171791489,370.90493294323034,348.45153705444847,335.58751915638271,351.00356480750514,367.42520346356071,384.48172178055688,402.3610843836293,421.10414866430023,440.75383758096507,461.126090513485,482.46615717913346]
["Product 3",707,807,648,755,921,1052,1258,1567.4038882308084,1732.2865063446966,1863.7874041871871,1863.4884813984715,1986.8764096554673,2054.1291233909024,2180.2279432255796,2259.3682300560076,2390.7418591064334,2473.6755135142521,2614.8755902929329]
["Product 4",2103.6227949511285,2252.6385619246048,1923.6329637213535,1726.9184341381263,1960.593723472743,2216.9445183993957,2549.001542813603,2837.3033246314067,3282.7410667623881,3444.6792495423433,3646.923816897176,3851.8045449456467,4075.0237005107128,4310.5618261852269,4559.085023642072,4821.2950314392547,5097.9311207959881,5389.7720919464882]
["Product 5",395.99075428958088,403.71110631087572,346.17298583899662,377.83144539568809,421.40786478486501,486.64383197354078,618.6474011647723,738.47721281192196,874.38690541713265,945.50364370274417,1018.2795027075476,1073.0245363735048,1130.4117447149542,1190.5614735676645,1253.5993599209689,1319.6565592007105,1388.869982159571,1461.3825417762735]
["Product 6",363,487.27259999999995,350.81034999999997,370.45920000000001,360.88650000000001,329.81900000000002,289.38048000000003,273.11589596971157,255.71299985026155,267.65000731755396,287.53477867649696,303.97629986633314,321.32894487527432,339.64333825805312,358.97292425023483,379.37412380878055,400.90650037964895,423.63293487561577]
["Product 7",-36,-8.2725999999999544,15.189650000000029,71.54079999999999,121.11349999999999,178.18099999999998,229.61951999999997,266.12272651219837,293.77219480981978,302.91793295012548,315.03465026813052,327.63603627885573,340.74147773000999,354.37113683921035,368.54598231277879,383.28782160528993,398.61933446950155,414.56410784828165]
["Product 8",0,0,0,0,0,-15,-50,-80,-225,260.5,323.13,379.42042500000002,441.99961425000004,520.1081782425,584.43405720733119,652.60020612245592,669.1232101894168,686.61992321101718]
["Product 9",-22.613549240709091,-93.349668235480834,-69.805949560350086,-89.74987953381401,-145.00158825760823,-53.588350372936247,-46.648943978375314,82.040635574384055,119.02377201694566,135.21431141609844,154.26452448529346,173.13655476022885,191.8625412163934,210.47371277557505,229.00045471539764,247.47237238558711,265.91835238444594,284.3666213419059]
["Product 10",581.04333901365032,576.98225895598273,436.42813000638273,520.9385349181083,716.88925466929516,776.59741854856236,627.88753863846591,686.49866653019649,712.21228960365443,846.90036931279849,948.64835682397052,1024.1700053550151,1241.7804188536145,1298.8477792325625,1405.9945772369917,1504.5504504732432,1595.8808255650852,1676.1632437857668]
["Product 11",424.95666098634968,355.01774104401727,157.57186999361724,229.06146508189167,284.1107453307049,275.4025814514377,287.11246136153403,337.27987584612526,402.4303970347209,467.67525142447045,594.00108661419222,596.58448318785418,637.38814901770786,635.10439711771085,673.00807626024766,656.64092094144064,699.64587794295949,692.73507413838615]
["Total Inputs",8294.9999999999982,8985,7328,8449,9623.0000000000018,10850,11641.999999999998,13904.858449510633,14825.099408691047,16545.382373598695,17315.912153388239,18550.653170718539,19756.600744498093,20959.973689987863,22156.999633504092,23533.272026365681,24325.722941512962,25697.681867810861]
["Total Consolidated",8294,8985,7328,8449,9623,10850,11642,13904.858449510635,14825.099408691047,16545.382373598695,17315.912153388243,18550.653170718535,19756.600744498097,20959.973689987866,22156.999633504089,23533.272026365688,24325.722941512962,25697.681867810858]
["Reconciliation",-0.99999999999818101,0,0,0,0,0,0,0,0,0,0,0,0,0,0,0,0,0]
[]
["Channel 1",232.90255638722982,255.71070838129708,264.00221884217399,271.39397349652154,317.32904998159779,355.81054624964213,395.48729756801572,449.26594353945757,487.67700902182503,507.79491617039866,533.78466631852052,556.06330338558632,579.07102051478489,603.08175565778117,628.14210064207032,654.30094418163935,681.609590407719,710.1218837025184]
["Channel 2",394.73469288991441,430.02699682000321,434.38554416977547,358.90109675370877,493.31639493391583,551.62904072884317,598.43503390677188,667.87847546849821,705.56329267603542,716.62990605470588,736.21787522217278,755.88648048672098,776.04807547284076,796.71322075516548,817.8926043436677,839.59703674092111,861.8374454330235,884.62486877689958]
["Channel 3",227.52202046958925,248.59571788442824,262.90187450040111,274.80486776127452,303.55287477758458,330.96391949863357,355.4521009129603,386.43226390820166,412.61864375249303,426.06716169115634,444.47861394416134,463.34872911448582,480.58261789262599,497.48060871621936,516.1967511197322,537.48006095280516,561.7667101729495,585.88272689746759]
[]
["Depreciation"]
[]
["Product 1",31,41,50,56,53,48,54,49.802930000000003,51.028471995745328,52.973035300004341,54.049541800458528,55.604022151796663,56.655351664788611,58.204850724704201,59.323397211925318,60.949713090958177,62.124448199646743,63.817252823767063]
["Product 2",0,0,0,0,0,0,0,0,0,0,0,0,0,0,0,0,0,0]
["Product 3",18,18,29,33,48,55,57,60.999999999999993,67.390016050990084,68.815344434680597,71.753845275095713,74.809488644041522,77.986785995754872,82.290420092409548,86.725251514691436,91.296325423144665,96.00887858018217,99.868346643056057]
["Product 4",591.7307771546291,609.79876935764162,618.12657736420442,619.95857138863175,630.37020817687846,683.75317161902785,715.80207063643695,763,781.28443470621539,800.52752348878869,822.43738645883673,854.70253880007522,888.26780455647906,923.18628965362836,959.51329238696962,997.30639496262256,1036.6255589126397,1077.5332245514164]
["Product 5",179.16569391575888,181.83561280529887,180.5887974756962,194.57652490846152,203.34588697459259,209.44626358383039,219.41326013148557,229.32499685032866,240.79124669284511,252.83080902748736,265.47234947886182,276.40756445280499,287.79600407544501,299.65658813521736,312.00903275221822,324.8738842084789,338.27255423029828,352.2273567856646]
["Product 6",204.46800000000002,238.97699999999998,218.22168000000002,226.99440000000001,241.33500000000001,225.67930000000001,225.16108000000003,239.61325628174586,230.76152900367126,220.84207560966374,220.88849996884591,220.60348404355346,219.9565936931694,218.91521626428428,217.44441862825431,215.50679641696567,213.06231392821144,210.06813414105918]
["Product 7",99.531999999999982,103.02300000000002,107.77831999999998,105.00559999999999,81.664999999999992,88.320699999999988,101.83891999999997,104.89408759999998,108.04091022799997,108.04091022799997,111.28213753483998,114.62060166088517,118.05921971071173,121.60099630203308,125.24902619109407,129.0064969768269,132.87669188613171,136.86299264271565]
["Product 8",0,0,0,0,0,0,0,0,0,198,194.13,190.51605000000001,187.15043924999998,184.02582871125,181.13523776983121,178.47203152124501,176.02990860415747,173.80288956234742]
["Product 9",19.103528929612025,11.365617837059517,23.284625160099381,-7.5350962970932756,9.2839048485289482,33.80056479714176,105.78466923207748,111.7000000000001,118.40199999999993,120.77004000000011,126.80854199999999,133.14896909999993,139.80641755500005,146.79673843275009,154.13657535438756,161.84340412210702,169.93557432821217,178.43235304462291]
["Product 10",20.202956872812805,34.057810502154858,34.287545141105127,32.755036662529442,29.233623766040537,37.860428372870565,37.270820807270191,30,26.220521758667569,27.201527692520894,28.358452796968486,29.41728610170583,31.244311924600115,32.302557383155801,33.652449915203107,35.001088391256431,36.349776256595888,37.680978158404592]
["Product 11",54.797043127187195,55.942189497845142,54.712454858894873,62.244963337470558,65.766376233959463,62.139571627129435,61.729179192729809,66,65.514943592875611,66.933137670963973,71.523870515006919,69.637541541329966,69.253187564629471,66.363514159040207,65.20956449820423,61.573113111054859,60.129200403686923,56.428468211021929]
["Total Inputs",1459.0000000000002,1526,1580,1602,1660,1784.0000000000002,1957,2033.3749789662093,2137.3125384941218,2380.2379887330376,2447.3636157819842,2517.9070194845681,2591.5725463380704,2667.9739720424514,2747.2263406468214,2829.4660639066315,2914.7785601051055,3003.2852381290204]
["Total Consolidated",1459,1526,1580,1602,1660,1784,1957,2033.3749789662111,2137.3125384941213,2380.2379887330389,2447.3636157819797,2517.9070194845667,2591.5725463380695,2667.9739720424504,2747.2263406468214,2829.4660639066378,2914.7785601051073,3003.2852381290195]
["Reconciliation",{"$f":"B314-B313","v":0},0,0,0,0,0,0,1.8189894035458565E-12,0,0,-4.5474735088646412E-12,0,0,0,0,6.3664629124104977E-12,0,0]
[]
["Channel 1",24.3,{"$f":"+B317*1.05","v":25.515000000000001},26.790750000000003,28.130287500000005,29.536801875000005,31.013641968750008,32.564324067187506,34.192540270546885,35.902167284074231,37.697275648277945,39.582139430691846,41.561246402226438,43.639308722337759,45.821274158454649,48.112337866377381,50.517954759696252,53.043852497681065,{"$f":"+R317*1.05","v":55.696045122565124}]
["Channel 2",24.3,25.515000000000001,26.790750000000003,28.130287500000005,29.536801875000005,31.013641968750008,32.564324067187506,34.192540270546885,35.902167284074231,37.697275648277945,39.582139430691846,41.561246402226438,43.639308722337759,45.821274158454649,48.112337866377381,50.517954759696252,53.043852497681065,{"$f":"+R318*1.05","v":55.696045122565124}]
["Channel 3",24.3,25.515000000000001,26.790750000000003,28.130287500000005,29.536801875000005,31.013641968750008,32.564324067187506,34.192540270546885,35.902167284074231,37.697275648277945,39.582139430691846,41.561246402226438,43.639308722337759,45.821274158454649,48.112337866377381,50.517954759696252,53.043852497681065,{"$f":"+R319*1.05","v":55.696045122565124}]
[]
["Capital Expenditures"]
["Product 1",85,126,135,102,118,79,78,105.16848999999999,108.498150327,111.36786807062251,114.31713378364053,117.35915879202565,120.47972089144716,123.68739662978071,126.9847498609106,130.37442462696197,133.85041562407926,137.42325597200085]
["Product 2",0,0,0,0,0,0,0,0,0,0,0,0,0,0,0,0,0,0]
["Product 3",36,62,46,97,115,69,45,45.210898688580414,45.426015350932431,45.645434346531488,45.869241722042524,46.097525245063778,46.330374438545462,47.567880615896783,48.810136916795123,50.057238343711433,51.309281799166072,51.5663661237298]
["Product 4",682.45865544000003,670.43191823983943,863.83479671260886,1067.1803297751012,2113.9140188357919,2088.9281168636994,997.49691333350961,985.50281243741813,1015.8042632301444,1050.5501153042464,1098.5458638883192,1147.2758465793092,1197.2976197856331,1249.6195290407791,1304.3515672248245,1361.6091442446225,1419.3181010295941,1479.580150172093]
["Product 5",133.54134456000003,122.56808176016051,175.16520328739119,227.81967022489874,180.08598116420839,153.07188313630047,142.50308666649045,182.65133120048048,175.27661946376037,181.74567022449187,190.1951596102549,199.19256133622449,208.37465996402764,217.98682127764042,228.0494696871018,238.58401114158215,249.61288076946857,261.15959284973189]
["Product 6",167.50800000000001,108.66689999999998,97.439779999999999,61.698000000000008,59.952915000000004,56.151035499999999,56.4789964,57.761810696454134,72.409256009113179,90.077044114013262,110.11405806403152,131.71383506117445,135.54956803236439,139.55750148445125,143.74573918867262,148.12277708977498,152.69752261403383,157.47931493799038]
["Product 7",88.49199999999999,31.333100000000016,45.560220000000001,176.30199999999999,119.04708499999998,84.848964499999965,213.52100359999997,207.33415267223472,162.4501232183726,144.39432516762383,141.97009817432877,144.64890210130193,147.43485818535402,150.33225251276815,153.34554261327889,156.47936431781005,159.73853889052245,163.12808044614337]
["Product 8",0,0,0,0,250,500,700,1500,2050,100,102.49999999999999,105.06249999999997,107.68906249999996,110.38128906249996,113.14082128906244,115.96934182128899,118.8685753668212,121.84028975099173]
["Product 9",0,0,0,0,0,0,0,0,0,0,0,0,0,0,0,0,0,0]
["Product 10",32.645021776191413,69.828024884306345,51.170245032918331,34.446611325852558,39.190927930892791,40.059789357186709,41.185822992907802,33,28.842573934534329,29.649665184847777,30.627129020725967,31.476496128825239,33.118970640076121,33.917685252313589,34.998547911811229,36.051121042994126,37.076771781727807,38.434597721572686]
["Product 11",88.544002614052488,114.69711478049814,81.652089992462408,65.459491960532418,88.167150671727313,65.7493392735187,68.21333667095773,72.600000000000009,72.066437952163184,72.957120061350736,77.245780156207474,74.512169449223066,73.408378818507245,69.681689866992215,67.817947078132406,63.42030650438651,61.331784411760665,57.557037575242369]
["Total Inputs",1566,1578,1752.9999999999998,2110,3559,3783.9999999999995,2796,3654.0143917964483,4219.1927615397244,2322.419437896242,2417.3425820348803,2517.1738620669857,2603.0076470336644,2689.8624808367176,2782.6145075597306,2877.3434669167282,2976.0261768253554,3078.2073093812996]
["Total Consolidated",-1566,-1578,-1753,-2110,-3559,-3784,-2796,-3654.0143917964483,-4219.1927615397244,-2322.419437896242,-2417.3425820348793,-2517.1738620669857,-2603.0076470336644,-2689.8624808367172,-2782.6145075597306,-2877.3434669167282,-2976.0261768253558,-3078.2073093812996]
["Reconciliation",{"$f":"B334+B333","v":0},0,0,0,0,0,0,0,{"$f":"J334+J333","v":0},{"$f":"K334+K333","v":0},{"$f":"L334+L333","v":0},{"$f":"M334+M333","v":0},0,0,0,0,0,0]
[]
["Channel 1",{"$f":"B317","v":24.3},25.515000000000001,26.790750000000003,28.130287500000005,29.536801875000005,31.013641968750008,32.564324067187506,34.192540270546885,35.902167284074231,37.697275648277945,39.582139430691846,41.561246402226438,43.639308722337759,45.821274158454649,48.112337866377381,50.517954759696252,53.043852497681065,{"$f":"S317","v":55.696045122565124}]
["Channel 2",24.3,25.515000000000001,26.790750000000003,28.130287500000005,29.536801875000005,31.013641968750008,32.564324067187506,34.192540270546885,35.902167284074231,37.697275648277945,39.582139430691846,41.561246402226438,43.639308722337759,45.821274158454649,48.112337866377381,50.517954759696252,53.043852497681065,{"$f":"S318","v":55.696045122565124}]
["Channel 3",24.3,25.515000000000001,26.790750000000003,28.130287500000005,29.536801875000005,31.013641968750008,32.564324067187506,34.192540270546885,35.902167284074231,37.697275648277945,39.582139430691846,41.561246402226438,43.639308722337759,45.821274158454649,48.112337866377381,50.517954759696252,53.043852497681065,{"$f":"S319","v":55.696045122565124}]

{"sheet":"D2__Balance_Sheet","index":5,"n_rows":154,"n_cols":92,"rows_kept":154,"cut":false,"hidden":false,"merged":[]}
["Balance Sheet"]
["(€ Millions)",null,"Q1","Q2","Q3","Q4","Fiscal Yr","Q1","Q2","Q3","Q4","Fiscal Yr","Q1","Q2","Q3","Q4","Fiscal Yr","Q1","Q2","Q3","Q4","Fiscal Yr","Q1","Q2","Q3","Q4","Fiscal Yr","Q1","Q2","Q3","Q4","Fiscal Yr","Q1","Q2","Q3","Q4","Fiscal Yr","Q1","Q2","Q3","Q4","Fiscal Yr","Q1","Q2","Q3","Q4","Fiscal Yr","Q1","Q2","Q3","Q4","Fiscal Yr","Q1","Q2","Q3","Q4","Fiscal Yr","Q1","Q2","Q3","Q4","Fiscal Yr","Q1","Q2","Q3","Q4","Fiscal Yr","Q1","Q2","Q3","Q4","Fiscal Yr","Q1","Q2","Q3","Q4","Fiscal Yr","Q1","Q2","Q3","Q4","Fiscal Yr","Q1","Q2","Q3","Q4","Fiscal Yr","Q1","Q2","Q3","Q4","Fiscal Yr"]
[null,null,2007,2007,2007,2007,2007,2008,2008,2008,2008,2008,2009,2009,2009,2009,2009,2010,2010,2010,2010,2010,2011,2011,2011,2011,2011,2012,2012,2012,2012,2012,2013,2013,2013,2013,2013,2014,2014,2014,2014,2014,2015,2015,2015,2015,2015,2016,2016,2016,2016,2016,2017,2017,2017,2017,2017,2018,2018,2018,2018,2018,2019,2019,2019,2019,2019,"2020E","2020E","2020E","2020E","2020E","2021E","2021E","2021E","2021E","2021E","2022E","2022E","2022E","2022E","2022E","2023E","2023E","2023E","2023E","2023E","2024E","2024E","2024E","2024E","2024E"]
[]
["Assets"]
["Cash & Cash Equivalents",null,null,null,null,218.66200000000001,{"$f":"F6","v":218.66200000000001},220.7,231.25200000000001,141.35400000000001,183.684,{"$f":"K6","v":183.684},142.09700000000001,141.83099999999999,144.46100000000001,189.917,{"$f":"P6","v":189.917},199.75899999999999,218.66399999999999,198.7,259.06099999999998,{"$f":"U6","v":259.06099999999998},217.36,253.30199999999999,454.16800000000001,420.81799999999998,{"$f":"Z6","v":420.81799999999998},635.18600000000004,425.39299999999997,644.75400000000002,772.5,{"$f":"AE6","v":772.5},526.03,901.61699999999996,559.28300000000002,946.42200000000003,{"$f":"AJ6","v":946.42200000000003},1032.7329999999999,1162.453,1134.2629999999999,886.45,{"$f":"AO6","v":886.45},1148.925,1226.78,1132.144,999.48699999999997,{"$f":"AT6","v":999.48699999999997},1589.442,1137.606,814.149,749.89099999999996,{"$f":"AY6","v":749.89099999999996},900.15599999999995,827.47500000000002,769.21199999999999,989.5,{"$f":"BD6","v":989.5},801.26300000000003,951.23800000000006,1162.3800000000001,1425.0519999999999,{"$f":"BI6","v":1425.0519999999999},1306.3820000000001,1246.4100000000001,819.08500000000004,834.55600000000004,{"$f":"BN6","v":834.55600000000004},733.91600000000005,817.02,903.32899999999995,908.65631831775966,{"$f":"BS6","v":908.65631831775966},380.08754616477495,623.41225612513676,739.2621295973662,893.59502193603998,{"$f":"BX6","v":893.59502193603998},1113.2431602808983,1497.3289680058047,1701.169700452961,1933.2274440238598,{"$f":"CC6","v":1933.2274440238598},2251.5885724569857,2699.5624680542269,2939.1485536805849,3213.9123590321096,{"$f":"CH6","v":3213.9123590321096},3560.2789587883335,4045.9084582791411,4303.1497656787387,4596.6151263756637,{"$f":"CM6","v":4596.6151263756637}]
["Short Term Investments",null,null,null,null,362.95100000000002,362.95100000000002,400.09,468.66,494.87700000000001,434.053,434.053,510.56,640.79100000000005,708.26900000000001,906.61599999999999,906.61599999999999,1049.576,1062.5550000000001,941.072,1054.1600000000001,1054.1600000000001,1249.7429999999999,1437.2639999999999,1438.617,1280.0160000000001,1280.0160000000001,1469.4190000000001,1400.693,1341.6980000000001,1508.3789999999999,1508.3789999999999,1756.37,1422.2080000000001,1396.431,1047.432,1047.432,682.51099999999997,702.28300000000002,866.64099999999996,1132.752,1132.752,1234.769,1437.405,1424.317,904.98599999999999,904.98599999999999,1082.942,1507.116,1764.125,1718.124,1718.124,1736.6790000000001,1798.0450000000001,1950.0640000000001,1922.192,1922.192,1964.855,2046.8789999999999,2084.9830000000002,2113.3009999999999,2113.3009999999999,2354.3069999999998,2619.2979999999998,2344.8519999999999,2339.1959999999999,2339.1959999999999,2398.1759999999999,2513.1909999999998,2616.8679999999999,2616.8679999999999,2616.8679999999999,{"$f":"BS7","v":2616.8679999999999},2616.8679999999999,2616.8679999999999,2616.8679999999999,2616.8679999999999,{"$f":"BX7","v":2616.8679999999999},2616.8679999999999,2616.8679999999999,2616.8679999999999,2616.8679999999999,{"$f":"CC7","v":2616.8679999999999},2616.8679999999999,2616.8679999999999,2616.8679999999999,2616.8679999999999,{"$f":"CH7","v":2616.8679999999999},2616.8679999999999,2616.8679999999999,2616.8679999999999,2616.8679999999999]
["Accounts Receivable",null,null,null,null,125.65600000000001,125.65600000000001,143.65299999999999,133.875,144.90899999999999,116.506,116.506,135.626,129.226,108.70699999999999,146.31100000000001,146.31100000000001,122.955,105.654,110.57299999999999,141.94499999999999,141.94499999999999,138.352,172.173,157.23599999999999,173.245,173.245,281.52999999999997,276.24,284.58600000000001,356.815,356.815,304.74799999999999,318.08999999999997,260.95299999999997,318.14499999999998,318.14499999999998,293.26600000000002,321.14999999999998,327.97,467.23399999999998,467.23399999999998,300.048,262.59800000000001,281.80700000000002,410.87900000000002,410.87900000000002,350.577,439.15100000000001,484.55,554.32799999999997,554.32799999999997,533.35299999999995,568.57000000000005,559.32000000000005,634.37300000000005,634.37300000000005,512.21100000000001,529.39099999999996,566.67100000000005,617.23299999999995,617.23299999999995,485.80099999999999,470.05200000000002,522.40899999999999,599.82000000000005,599.82000000000005,510.50700000000001,531.55700000000002,528.33100000000002,609.10586097523219,609.10586097523219,557.91068141187895,583.02792094525057,660.07850939343427,767.54754003226128,767.54754003226128,701.39552561245864,717.01715762397373,795.58888924225357,911.50188521701409,911.50188521701409,822.92455637563057,818.53801335346634,890.7003039098629,1012.4371754550501,1012.4371754550501,912.31115162745834,902.17903294140956,976.04330939447618,1103.3136430296336,1103.3136430296336]
["Inventory",null,null,null,null,0,0,0,0,0,0,0,0,0,0,0,0,0,0,0,0,0,0,0,0,0,0,0,0,0,0,{"$f":"AE9","v":0},0,0,0,0,{"$f":"AJ9","v":0},0,0,0,0,{"$f":"AO9","v":0},0,0,0,0,{"$f":"AT9","v":0},0,0,0,0,{"$f":"AY9","v":0},0,0,0,0,{"$f":"BD9","v":0},0,0,0,0,{"$f":"BI9","v":0},0,0,0,0,{"$f":"BN9","v":0},0,0,0,0,{"$f":"BS9","v":0},{"$f":"BS9","v":0},0,0,0,{"$f":"BX9","v":0},{"$f":"BX9","v":0},0,0,0,{"$f":"CC9","v":0},{"$f":"CC9","v":0},0,0,0,{"$f":"CH9","v":0},{"$f":"CH9","v":0},0,0,0,{"$f":"CM9","v":0}]
["Other Receivables",null,null,null,null,18.298999999999999,18.298999999999999,20.170000000000002,28.861000000000001,27.677,30.367000000000001,30.367000000000001,23.312999999999999,29.364999999999998,32.347999999999999,27.731000000000002,27.731000000000002,32.034999999999997,37.881,26.518000000000001,25.495000000000001,25.495000000000001,28.187999999999999,36.466000000000001,39.889000000000003,31.504000000000001,31.504000000000001,50.323,55.947000000000003,46.104999999999997,51.850999999999999,51.850999999999999,63.511000000000003,53.366999999999997,60.720999999999997,44.665999999999997,44.665999999999997,38.838999999999999,46.98,33.686999999999998,45.835000000000001,45.835000000000001,0,0,0,0,0,0,0,0,0,0,0,0,0,0,0,0,0,0,0,0,0,0,0,0,0,0,0,0,0,0,{"$f":"BS10","v":0},0,0,0,0,{"$f":"BX10","v":0},0,0,0,0,{"$f":"CC10","v":0},0,0,0,0,{"$f":"CH10","v":0},0,0,0,0]
["Deferred Income Taxes",null,null,null,null,22.725999999999999,22.725999999999999,22.298999999999999,26.742999999999999,31.655000000000001,31.53,31.53,22.975999999999999,20.297000000000001,12.141,35.875,35.875,27.954999999999998,31.960999999999999,30.113,51.750999999999998,51.750999999999998,37.923999999999999,56.512999999999998,55.018000000000001,58.71,58.71,124.898,128.81399999999999,138.50399999999999,155.613,155.613,164.26400000000001,196.09800000000001,168.78299999999999,171.47200000000001,171.47200000000001,132.892,100.206,94.5,110.71299999999999,110.71299999999999,81.125,76.906999999999996,72.162999999999997,77.417000000000002,77.417000000000002,67.265000000000001,70.954999999999998,76.765000000000001,83.247,83.247,66.927999999999997,68.016999999999996,71.087000000000003,91.962999999999994,91.962999999999994,77.513999999999996,79.36,57.024000000000001,59.536999999999999,59.536999999999999,64.930000000000007,54.524999999999999,47.71,102.247,102.247,91.149000000000001,72.489000000000004,79.712999999999994,79.712999999999994,79.712999999999994,{"$f":"BS11","v":79.712999999999994},79.712999999999994,79.712999999999994,79.712999999999994,79.712999999999994,{"$f":"BX11","v":79.712999999999994},79.712999999999994,79.712999999999994,79.712999999999994,79.712999999999994,{"$f":"CC11","v":79.712999999999994},79.712999999999994,79.712999999999994,79.712999999999994,79.712999999999994,{"$f":"CH11","v":79.712999999999994},79.712999999999994,79.712999999999994,79.712999999999994,79.712999999999994]
["Other Current Assets",null,null,null,null,20.62,20.62,19.291,18.385999999999999,23.196999999999999,18.032,18.032,18.475000000000001,24.535,31.236000000000001,22.577999999999999,22.577999999999999,29.858000000000001,27.923999999999999,26.594999999999999,18.617000000000001,18.617000000000001,28.372,43.85,35.750999999999998,44.284999999999997,44.284999999999997,34.176000000000002,41.369,40.906999999999996,39.299999999999997,39.299999999999997,42.076999999999998,61.140999999999998,59.058999999999997,44.84,44.84,46.030999999999999,48.396999999999998,60.058999999999997,92.119,92.119,104.124,84.078999999999994,80.503,80.855000000000004,80.855000000000004,86.992999999999995,121.24299999999999,96.825999999999993,110.46,110.46,113.682,127.211,119.51300000000001,133.423,133.423,149.81200000000001,163.93899999999999,139.11500000000001,116.23699999999999,116.23699999999999,161.66300000000001,167.37200000000001,152.06800000000001,170.11,170.11,208.643,180.08600000000001,151.227,160.63982615378185,160.63982615378185,228.26180301419888,197.74155575113696,189.1350099218001,202.62040577799371,202.62040577799371,287.2754474222354,243.45413328704734,228.20155841107174,240.85369818993851,240.85369818993851,337.41391948115898,278.23130776679068,255.74993652891322,267.78243418033242,267.78243418033242,374.46731263884249,307.00110845801692,280.54823165577818,292.10006042790604,292.10006042790604]
["Total Current Assets",null,null,null,null,null,null,null,null,null,null,null,null,{"$f":"SUM(N6:N12)","v":986.04500000000007},{"$f":"SUM(O6:O12)","v":1037.162},{"$f":"SUM(P6:P12)","v":1329.0279999999998},1329.0279999999998,{"$f":"SUM(R6:R12)","v":1462.1379999999999},{"$f":"SUM(S6:S12)","v":1484.6390000000001},{"$f":"SUM(T6:T12)","v":1333.5710000000001},{"$f":"SUM(U6:U12)","v":1551.0289999999998},1551.0289999999998,{"$f":"SUM(W6:W12)","v":1699.9390000000003},{"$f":"SUM(X6:X12)","v":1999.5679999999995},{"$f":"SUM(Y6:Y12)","v":2180.6790000000001},{"$f":"SUM(Z6:Z12)","v":2008.5780000000002},2008.5780000000002,{"$f":"SUM(AB6:AB12)","v":2595.5320000000002},{"$f":"SUM(AC6:AC12)","v":2328.4560000000001},{"$f":"SUM(AD6:AD12)","v":2496.5540000000005},{"$f":"SUM(AE6:AE12)","v":2884.4580000000001},2884.4580000000001,{"$f":"SUM(AG6:AG12)","v":2857},{"$f":"SUM(AH6:AH12)","v":2952.5210000000002},{"$f":"SUM(AI6:AI12)","v":2505.23},{"$f":"SUM(AJ6:AJ12)","v":2572.9770000000003},2572.9770000000003,{"$f":"SUM(AL6:AL12)","v":2226.2719999999999},{"$f":"SUM(AM6:AM12)","v":2381.4690000000001},{"$f":"SUM(AN6:AN12)","v":2517.12},{"$f":"SUM(AO6:AO12)","v":2735.1030000000005},2735.1030000000005,{"$f":"SUM(AQ6:AQ12)","v":2868.991},{"$f":"SUM(AR6:AR12)","v":3087.7690000000002},{"$f":"SUM(AS6:AS12)","v":2990.9340000000002},{"$f":"SUM(AT6:AT12)","v":2473.6239999999998},2473.6239999999998,{"$f":"SUM(AV6:AV12)","v":3177.2190000000001},{"$f":"SUM(AW6:AW12)","v":3276.0709999999995},{"$f":"SUM(AX6:AX12)","v":3236.415},{"$f":"SUM(AY6:AY12)","v":3216.0499999999997},3216.0499999999997,{"$f":"SUM(BA6:BA12)","v":3350.7979999999998},{"$f":"SUM(BB6:BB12)","v":3389.3179999999998},{"$f":"SUM(BC6:BC12)","v":3469.1959999999999},{"$f":"SUM(BD6:BD12)","v":3771.451},3771.451,{"$f":"SUM(BF6:BF12)","v":3505.6549999999997},{"$f":"SUM(BG6:BG12)","v":3770.8070000000002},{"$f":"SUM(BH6:BH12)","v":4010.1730000000007},{"$f":"SUM(BI6:BI12)","v":4331.3600000000006},4331.3600000000006,{"$f":"SUM(BK6:BK12)","v":4373.0830000000005},{"$f":"SUM(BL6:BL12)","v":4557.6569999999992},{"$f":"SUM(BM6:BM12)","v":3886.1240000000003},{"$f":"SUM(BN6:BN12)","v":4045.9290000000001},4045.9290000000001,{"$f":"SUM(BP6:BP12)","v":3942.3910000000001},{"$f":"SUM(BQ6:BQ12)","v":4114.3429999999998},{"$f":"SUM(BR6:BR12)","v":4279.4679999999998},{"$f":"SUM(BS6:BS12)","v":4374.9830054467729},4374.9830054467729,{"$f":"SUM(BU6:BU12)","v":3862.8410305908533},{"$f":"SUM(BV6:BV12)","v":4100.762732821524},{"$f":"SUM(BW6:BW12)","v":4285.0566489126004},{"$f":"SUM(BX6:BX12)","v":4560.3439677462939},4560.3439677462939,{"$f":"SUM(BZ6:BZ12)","v":4798.4951333155923},{"$f":"SUM(CA6:CA12)","v":5154.3812589168256},{"$f":"SUM(CB6:CB12)","v":5421.5411481062856},{"$f":"SUM(CC6:CC12)","v":5782.1640274308129},5782.1640274308129,{"$f":"SUM(CE6:CE12)","v":6108.5080483137745},{"$f":"SUM(CF6:CF12)","v":6492.9127891744829},{"$f":"SUM(CG6:CG12)","v":6782.1797941193608},{"$f":"SUM(CH6:CH12)","v":7190.7129686674916},7190.7129686674916,{"$f":"SUM(CJ6:CJ12)","v":7543.6384230546337},{"$f":"SUM(CK6:CK12)","v":7951.6695996785675},{"$f":"SUM(CL6:CL12)","v":8256.322306728991},{"$f":"SUM(CM6:CM12)","v":8688.6098298332017},8688.6098298332017]
[]
["PP&E",null,null,null,null,77.611000000000004,{"$f":"F15","v":77.611000000000004},79.058999999999997,80.286000000000001,69.36,71.09,{"$f":"K15","v":71.09},70.227999999999994,73.626000000000005,72.873999999999995,77.007000000000005,{"$f":"P15","v":77.007000000000005},82.512,84.712999999999994,89.028999999999996,99.674999999999997,{"$f":"U15","v":99.674999999999997},100.34,98.933999999999997,103.663,103.54900000000001,{"$f":"Z15","v":103.54900000000001},208.15899999999999,210.18100000000001,212.875,219.31700000000001,{"$f":"AE15","v":219.31700000000001},258.899,266.39499999999998,278.72199999999998,289.75799999999998,{"$f":"AJ15","v":289.75799999999998},297.52199999999999,300.37099999999998,317.07100000000003,313.03699999999998,{"$f":"AO15","v":313.03699999999998},300.37599999999998,291.72000000000003,335.75200000000001,388.13200000000001,{"$f":"AT15","v":388.13200000000001},386.20499999999998,407.62099999999998,422.92,448.88099999999997,{"$f":"AY15","v":448.88099999999997},453.49700000000001,463.41500000000002,499.05900000000003,527.82799999999997,{"$f":"BD15","v":527.82799999999997},549.78,573.56600000000003,619.39200000000005,664.30200000000002,{"$f":"BI15","v":664.30200000000002},686.01400000000001,645.86500000000001,659.74699999999996,659.774,{"$f":"BN15","v":659.774},651.08299999999997,642.45000000000005,785.85599999999999,{"$f":"BS145","v":762.40481862912213},{"$f":"BS15","v":762.40481862912213},{"$f":"BU145","v":737.98776522049525},{"$f":"BV145","v":712.68336637127459},{"$f":"BW145","v":688.17001961869778},{"$f":"BX145","v":664.63985336610222},{"$f":"BX15","v":664.63985336610222},{"$f":"BZ145","v":641.99770507586754},{"$f":"CA145","v":619.96433382362693},{"$f":"CB145","v":598.26993891703182},{"$f":"CC145","v":576.71956411911037},{"$f":"CC15","v":576.71956411911037},{"$f":"CE145","v":555.0233574526344},{"$f":"CF145","v":532.66106193291512},{"$f":"CG145","v":509.2576967579721},{"$f":"CH145","v":484.6732811673246},{"$f":"CH15","v":484.6732811673246},{"$f":"CJ145","v":458.80163963325776},{"$f":"CK145","v":431.47217245977117},{"$f":"CL145","v":402.53158020482533},{"$f":"CM145","v":371.85988017250384},{"$f":"CM15","v":371.85988017250384}]
["Goodwill",null,null,null,null,36.402000000000001,36.402000000000001,null,114.06100000000001,109.343,82.745999999999995,82.745999999999995,95.825999999999993,111.98,112.45,95.971000000000004,95.971000000000004,95.971000000000004,110.232,110.26,110.28700000000001,110.28700000000001,119.08199999999999,119.08199999999999,118.68300000000001,118.68300000000001,{"$f":"Z16","v":118.68300000000001},2126.1729999999998,2143.625,2147.5569999999998,2149.4940000000001,2149.4940000000001,2134.058,2147.0340000000001,2153.0929999999998,2148.1019999999999,2148.1019999999999,2144.3679999999999,2135.1669999999999,2134.0320000000002,2134.73,2134.73,2132.375,2134.9969999999998,2125.9459999999999,3468.1709999999998,3468.1709999999998,3494.0729999999999,3488.252,3489.9380000000001,3641.8440000000001,3641.8440000000001,3686.0729999999999,3693.5050000000001,3740.1990000000001,3849.2170000000001,3849.2170000000001,4138.0770000000002,4122.8130000000001,4126.5479999999998,4133.259,4133.259,4221.4870000000001,4225.1689999999999,4752.3149999999996,4771.9809999999998,4771.9809999999998,4782.4480000000003,4773.7979999999998,4746.7809999999999,4746.7809999999999,4746.7809999999999,{"$f":"BS16","v":4746.7809999999999},4746.7809999999999,4746.7809999999999,4746.7809999999999,4746.7809999999999,{"$f":"BX16","v":4746.7809999999999},4746.7809999999999,4746.7809999999999,4746.7809999999999,4746.7809999999999,{"$f":"CC16","v":4746.7809999999999},4746.7809999999999,4746.7809999999999,4746.7809999999999,4746.7809999999999,{"$f":"CH16","v":4746.7809999999999},4746.7809999999999,4746.7809999999999,4746.7809999999999,4746.7809999999999]
["Intangibles ",null,null,null,null,null,0,null,null,null,16.067,16.067,null,null,null,15.318,15.318,15.161,14.811999999999999,14.2,15.513,15.513,17.814,17.108000000000001,16.803999999999998,16.477,16.477,641.89400000000001,593.57000000000005,541.54200000000003,506.40499999999997,506.40499999999997,464.33800000000002,476.97800000000001,438.26,402.61900000000003,402.61900000000003,357.221,313.245,246.40100000000001,214.96,214.96,181.46799999999999,148.50700000000001,117.384,527.38699999999994,527.38699999999994,487.60500000000002,447.37200000000001,413.09100000000001,457.26299999999998,457.26299999999998,447.61599999999999,424.19900000000001,419.82400000000001,545.52599999999995,545.52599999999995,637.82500000000005,600.33199999999999,576.94799999999998,545.03599999999994,545.03599999999994,580.56799999999998,551.26499999999999,637.95699999999999,605.25400000000002,605.25400000000002,570.17100000000005,532.31700000000001,490.839,528.12899999999991,528.12899999999991,511.26299999999992,494.39699999999993,477.53099999999989,460.66499999999985,460.66499999999985,443.79899999999986,426.93299999999982,410.06699999999978,393.20099999999979,393.20099999999979,376.33499999999975,359.46899999999971,342.60299999999967,325.73699999999968,325.73699999999968,308.87099999999964,292.0049999999996,275.13899999999956,258.27299999999957,258.27299999999957]
["Investment in Lease Receivable",null,null,null,null,null,0,null,null,null,null,0,null,null,null,null,0,null,null,126.8,126.8,126.8,126.8,126.8,126.8,126.8,{"$f":"Z18","v":126.8},126.8,126.8,126.8,126.8,{"$f":"AE18","v":126.8},126.8,207.239,207.239,207.239,207.239,207.239,207.239,207.239,207.239,207.239,207.239,207.239,207.239,207.239,207.239,207.239,207.239,207.239,207.239,207.239,207.239,207.239,207.239,207.239,207.239,207.239,207.239,207.239,207.239,207.239,207.239,207.239,207.239,207.239,207.239,207.239,207.239,80.438999999999993,80.438999999999993,80.438999999999993,{"$f":"BS18","v":80.438999999999993},80.438999999999993,80.438999999999993,80.438999999999993,80.438999999999993,{"$f":"BX18","v":80.438999999999993},80.438999999999993,80.438999999999993,80.438999999999993,80.438999999999993,{"$f":"CC18","v":80.438999999999993},80.438999999999993,80.438999999999993,80.438999999999993,80.438999999999993,{"$f":"CH18","v":80.438999999999993},80.438999999999993,80.438999999999993,80.438999999999993,80.438999999999993]
["Deferred Income Taxes",null,null,null,null,11.593999999999999,{"$f":"F19","v":11.593999999999999},12.561999999999999,17.335999999999999,23.212,43.085000000000001,{"$f":"K19","v":43.085000000000001},26.242999999999999,25.728000000000002,24.797000000000001,0,{"$f":"P19","v":0},0,0,0,0,{"$f":"U19","v":0},0,0,0,0,{"$f":"Z19","v":0},0,0,0,0,{"$f":"AE19","v":0},0,0,0,0,{"$f":"AJ19","v":0},0,0,0,0,{"$f":"AO19","v":0},0,0,0,0,{"$f":"AT19","v":0},0,0,0,0,{"$f":"AY19","v":0},0,0,0,0,{"$f":"BD19","v":0},0,0,0,0,{"$f":"BI19","v":0},0,0,0,0,{"$f":"BN19","v":0},0,0,0,0,{"$f":"BS19","v":0},{"$f":"BS19","v":0},0,0,0,{"$f":"BX19","v":0},{"$f":"BX19","v":0},0,0,0,{"$f":"CC19","v":0},{"$f":"CC19","v":0},0,0,0,{"$f":"CH19","v":0},{"$f":"CH19","v":0},0,0,0,{"$f":"CM19","v":0}]
["Other Non-Current Assets",null,null,null,null,37.652000000000001,37.652000000000001,72.117999999999995,35.677,39.279000000000003,24.45,24.45,42.487000000000002,42.356999999999999,39.497999999999998,37.720999999999997,37.720999999999997,35.723999999999997,38.731000000000002,46.948,55.328000000000003,55.328000000000003,58.835000000000001,59.723999999999997,58.966000000000001,66.227999999999994,66.227999999999994,103.175,98.853999999999999,95.456999999999994,{"$f":"68.183","v":68.183000000000007},68.183000000000007,63.088999999999999,85.781999999999996,83.917000000000002,92.983999999999995,92.983999999999995,108.279,122.926,216.887,216.529,216.529,197.14699999999999,193.51300000000001,184.70500000000001,191.26599999999999,191.26599999999999,192.72800000000001,180.376,177.42599999999999,169.87100000000001,169.87100000000001,164.80099999999999,162.04,157.24100000000001,89.921999999999997,89.921999999999997,94.132000000000005,91.075000000000003,89.712999999999994,93.326999999999998,93.326999999999998,97.32,93.174000000000007,90.774000000000001,90.120999999999995,90.120999999999995,92.55,102.05200000000001,110.297,117.16221908312455,117.16221908312455,101.25252162288746,112.05713518827133,137.94510364779293,147.7806403360205,147.7806403360205,127.42983305899496,137.96175832774205,166.43818424002313,175.66598788083903,175.66598788083903,149.67028967174201,157.66945470617662,186.53051868601202,195.30638803115923,195.30638803115923,166.1064583270221,173.97286363380579,204.61708760298998,213.04238241198166,213.04238241198166]
[]
["Total Assets",null,{"$f":"SUM(C13:C20)","v":0},{"$f":"SUM(D13:D20)","v":0},{"$f":"SUM(E13:E20)","v":0},{"$f":"SUM(F13:F20)","v":163.25900000000001},163.25900000000001,{"$f":"SUM(H13:H20)","v":163.73899999999998},{"$f":"SUM(I13:I20)","v":247.35999999999999},{"$f":"SUM(J13:J20)","v":241.19399999999999},{"$f":"SUM(K13:K20)","v":237.43800000000002},237.43800000000002,{"$f":"SUM(M13:M20)","v":234.78399999999996},{"$f":"SUM(N13:N20)","v":1239.7360000000001},{"$f":"SUM(O13:O20)","v":1286.7810000000002},{"$f":"SUM(P13:P20)","v":1555.0449999999998},1555.0449999999998,{"$f":"SUM(R13:R20)","v":1691.5059999999999},{"$f":"SUM(S13:S20)","v":1733.127},{"$f":"SUM(T13:T20)","v":1720.8080000000002},{"$f":"SUM(U13:U20)","v":1958.6319999999996},1958.6319999999996,{"$f":"SUM(W13:W20)","v":2122.8100000000004},{"$f":"SUM(X13:X20)","v":2421.2159999999999},{"$f":"SUM(Y13:Y20)","v":2605.5950000000003},{"$f":"SUM(Z13:Z20)","v":2440.3150000000005},2440.3150000000005,{"$f":"SUM(AB13:AB20)","v":5801.7330000000002},{"$f":"SUM(AC13:AC20)","v":5501.4860000000008},{"$f":"SUM(AD13:AD20)","v":5620.7850000000017},{"$f":"SUM(AE13:AE20)","v":5954.6570000000002},5954.6570000000002,{"$f":"SUM(AG13:AG20)","v":5904.1840000000002},{"$f":"SUM(AH13:AH20)","v":6135.9490000000005},{"$f":"SUM(AI13:AI20)","v":5666.4610000000002},{"$f":"SUM(AJ13:AJ20)","v":5713.6789999999992},5713.6789999999992,{"$f":"SUM(AL13:AL20)","v":5340.9009999999998},{"$f":"SUM(AM13:AM20)","v":5460.4169999999995},{"$f":"SUM(AN13:AN20)","v":5638.7499999999991},{"$f":"SUM(AO13:AO20)","v":5821.598},5821.598,{"$f":"SUM(AQ13:AQ20)","v":5887.5959999999995},{"$f":"SUM(AR13:AR20)","v":6063.7449999999999},{"$f":"SUM(AS13:AS20)","v":5961.9599999999991},{"$f":"SUM(AT13:AT20)","v":7255.8189999999986},7255.8189999999986,{"$f":"SUM(AV13:AV20)","v":7945.0689999999986},{"$f":"SUM(AW13:AW20)","v":8006.9309999999996},{"$f":"SUM(AX13:AX20)","v":7947.0290000000005},{"$f":"SUM(AY13:AY20)","v":8141.1479999999992},8141.1479999999992,{"$f":"SUM(BA13:BA20)","v":8310.0239999999994},{"$f":"SUM(BB13:BB20)","v":8339.7159999999985},{"$f":"SUM(BC13:BC20)","v":8492.7579999999998},{"$f":"SUM(BD13:BD20)","v":8991.1830000000009},8991.1830000000009,{"$f":"SUM(BF13:BF20)","v":9132.7079999999987},{"$f":"SUM(BG13:BG20)","v":9365.8320000000022},{"$f":"SUM(BH13:BH20)","v":9630.0130000000008},{"$f":"SUM(BI13:BI20)","v":9974.5229999999992},9974.5229999999992,{"$f":"SUM(BK13:BK20)","v":10165.710999999999},{"$f":"SUM(BL13:BL20)","v":10280.368999999999},{"$f":"SUM(BM13:BM20)","v":10234.155999999999},{"$f":"SUM(BN13:BN20)","v":10380.298000000001},10380.298000000001,{"$f":"SUM(BP13:BP20)","v":10245.882},{"$f":"SUM(BQ13:BQ20)","v":10372.198999999999},{"$f":"SUM(BR13:BR20)","v":10493.68},{"$f":"SUM(BS13:BS20)","v":10609.899043159021},10609.899043159021,{"$f":"SUM(BU13:BU20)","v":10040.564317434237},{"$f":"SUM(BV13:BV20)","v":10247.120234381071},{"$f":"SUM(BW13:BW20)","v":10415.92277217909},{"$f":"SUM(BX13:BX20)","v":10660.649461448416},10660.649461448416,{"$f":"SUM(BZ13:BZ20)","v":10838.941671450453},{"$f":"SUM(CA13:CA20)","v":11166.460351068194},{"$f":"SUM(CB13:CB20)","v":11423.53627126334},{"$f":"SUM(CC13:CC20)","v":11754.970579430761},11754.970579430761,{"$f":"SUM(CE13:CE20)","v":12016.756695438151},{"$f":"SUM(CF13:CF20)","v":12369.932305813572},{"$f":"SUM(CG13:CG20)","v":12647.791009563345},{"$f":"SUM(CH13:CH20)","v":13023.649637865974},13023.649637865974,{"$f":"SUM(CJ13:CJ20)","v":13304.637521014913},{"$f":"SUM(CK13:CK20)","v":13676.339635772145},{"$f":"SUM(CL13:CL20)","v":13965.829974536804},{"$f":"SUM(CM13:CM20)","v":14359.005092417687},14359.005092417687]
["Liabilities"]
["Accounts Payable",null,null,null,null,30.890999999999998,{"$f":"F24","v":30.890999999999998},34.442999999999998,33.712000000000003,32.868000000000002,37.765000000000001,{"$f":"K24","v":37.765000000000001},34.191000000000003,41.305999999999997,32.07,37.436999999999998,{"$f":"P24","v":37.436999999999998},35.597999999999999,33.133000000000003,36.661000000000001,43.192,{"$f":"U24","v":43.192},38.575000000000003,38.716999999999999,37.427999999999997,41.042000000000002,{"$f":"Z24","v":41.042000000000002},51.218000000000004,49.481000000000002,38.624000000000002,55.030999999999999,{"$f":"AE24","v":55.030999999999999},46.866999999999997,55.037999999999997,64.373999999999995,66.867000000000004,{"$f":"AJ24","v":66.867000000000004},62.018999999999998,60.960999999999999,56.253999999999998,55.84,{"$f":"AO24","v":55.84},41.415999999999997,42.258000000000003,48.415999999999997,58.904000000000003,{"$f":"AT24","v":58.904000000000003},44.188000000000002,50.273000000000003,56.465000000000003,52.432000000000002,{"$f":"AY24","v":52.432000000000002},54.741999999999997,60.533000000000001,65.236000000000004,86.66,{"$f":"BD24","v":86.66},70.099999999999994,69.415999999999997,58.445999999999998,49.759,{"$f":"BI24","v":49.759},72.724999999999994,53.685000000000002,71.069999999999993,62.095999999999997,{"$f":"BN24","v":62.095999999999997},64.507999999999996,54.857999999999997,53.790999999999997,66.252100669062145,{"$f":"BS24","v":66.252100669062145},67.436086605373092,57.223008116484948,58.23655877599078,72.177397790005173,{"$f":"BX24","v":72.177397790005173},78.773328221975561,71.009869533271043,60.629353871278788,54.804451975013627,{"$f":"CC24","v":54.804451975013627},88.997034435356596,77.984793566369817,65.234132607162039,58.475105808951795,{"$f":"CH24","v":58.475105808951795},97.172491173473745,84.625914930504891,70.352393342475395,62.695937795516009,{"$f":"CM24","v":62.695937795516009}]
["Accrued Expenses",null,null,null,null,130.381,130.381,118.52,153.721,127.979,135.02799999999999,135.02799999999999,145.52099999999999,157.94200000000001,148.30099999999999,160.00899999999999,160.00899999999999,175.50800000000001,188.852,169.72399999999999,202.762,202.762,196.56700000000001,215.755,207.35499999999999,226.98500000000001,226.98500000000001,284.48399999999998,280.58499999999998,253.38900000000001,297.55,297.55,270.51499999999999,369.26400000000001,349.26299999999998,383.43599999999998,383.43599999999998,368.97800000000001,377.572,356.40800000000002,399.96899999999999,399.96899999999999,345.67700000000002,363.43099999999998,349.077,419.64600000000002,419.64600000000002,364.43700000000001,468.58699999999999,468.47699999999998,564.27499999999998,564.27499999999998,458.46300000000002,496.53500000000003,450.34300000000002,554.94100000000003,554.94100000000003,476.14,555.024,547.81200000000001,590.14,590.14,505.46499999999997,538.40200000000004,547.99699999999996,656.93899999999996,656.93899999999996,584.27300000000002,656.94,630.67899999999997,640.01529656723426,640.01529656723426,614.27809997956092,688.96233434741919,665.46725241849288,677.90259157213814,677.90259157213814,652.5323604525305,736.05114698417276,709.51681729648635,719.715637407803,719.715637407803,704.61994021641419,800.6101203459524,773.58187050664083,786.79200862941411,786.79200862941411,765.26716007302252,868.32222497179578,840.60334666934284,856.97441203751953,856.97441203751953]
["Deferred Revenue",null,null,null,null,21.701000000000001,{"$f":"F26","v":21.701000000000001},23.614999999999998,25.795999999999999,27.315000000000001,31.184999999999999,{"$f":"K26","v":31.184999999999999},32.484000000000002,42.021000000000001,41.609000000000002,45.6,{"$f":"P26","v":45.6},43.326000000000001,44.78,47.148000000000003,59.540999999999997,{"$f":"U26","v":59.540999999999997},57.087000000000003,61.033000000000001,60.01,57.838999999999999,57.838999999999999,82.408000000000001,89.016999999999996,103.509,130.31,{"$f":"AE26","v":130.31},139.69200000000001,179.33099999999999,164.44200000000001,183.31800000000001,{"$f":"AJ26","v":183.31800000000001},191.66200000000001,191.59399999999999,204.59299999999999,243.964,{"$f":"AO26","v":243.964},198.31299999999999,185.191,188.328,281.57600000000002,{"$f":"AT26","v":281.57600000000002},320.53500000000003,362.56599999999997,375.92700000000002,380.74799999999999,{"$f":"AY26","v":380.74799999999999},399.572,438.07799999999997,439.69,476.40199999999999,{"$f":"BD26","v":476.40199999999999},492.54500000000002,535.11500000000001,505.64600000000002,561.46299999999997,{"$f":"BI26","v":561.46299999999997},645.83399999999995,638.88499999999999,683.14300000000003,775.54399999999998,{"$f":"BN26","v":775.54399999999998},831.077,879.10900000000004,947.56299999999999,1017.2220758164248,{"$f":"BS26","v":1017.2220758164248},1042.1510164871527,1117.1794554124026,1197.6625722816384,1283.0563547233069,{"$f":"BX26","v":1283.0563547233069},1312.9604751988149,1376.8856566398645,1446.5614486812278,1526.7629064401899,{"$f":"CC26","v":1526.7629064401899},1543.730161308792,1575.2227395855109,1622.889937394604,1699.2435022292318,{"$f":"CH26","v":1699.2435022292318},1715.0511771678321,1739.9256649752233,1782.1154843643965,1855.4957113793159,{"$f":"CM26","v":1855.4957113793159}]
["Current Portion of Long Term Debt",null,null,null,null,null,{"$f":"F27","v":0},null,null,null,null,{"$f":"K27","v":0},null,null,null,null,{"$f":"P27","v":0},null,null,null,null,{"$f":"U27","v":0},null,null,null,null,{"$f":"Z27","v":0},null,null,null,null,{"$f":"AE27","v":0},null,null,null,null,{"$f":"AJ27","v":0},null,null,null,null,{"$f":"AO27","v":0},null,null,null,null,{"$f":"AT27","v":0},null,null,8.6980000000000004,8.7989999999999995,{"$f":"AY27","v":8.7989999999999995},8.9,9.0030000000000001,9.1069999999999993,9.2119999999999997,{"$f":"BD27","v":9.2119999999999997},9.3179999999999996,9.4260000000000002,11.093,11.217000000000001,{"$f":"BI27","v":11.217000000000001},22.405999999999999,20.082999999999998,17.462,14.676,{"$f":"BN27","v":14.676},613.30999999999995,609.74199999999996,606.42600000000004,606.42600000000004,{"$f":"BS27","v":606.42600000000004},6.4260000000000446,6.4260000000000446,6.4260000000000446,6.4260000000000446,{"$f":"BX27","v":6.4260000000000446},{"$f":"BX27","v":6.4260000000000446},6.4260000000000446,6.4260000000000446,6.4260000000000446,{"$f":"CC27","v":6.4260000000000446},{"$f":"CC27","v":6.4260000000000446},6.4260000000000446,6.4260000000000446,6.4260000000000446,{"$f":"CH27","v":6.4260000000000446},{"$f":"CH27","v":6.4260000000000446},6.4260000000000446,6.4260000000000446,6.4260000000000446,{"$f":"CM27","v":6.4260000000000446}]
["Other Current Liabilities",null,{"$f":"SUM(C29:C31)","v":0},{"$f":"SUM(D29:D31)","v":0},{"$f":"SUM(E29:E31)","v":0},{"$f":"SUM(F29:F31)","v":132.22800000000001},{"$f":"F28","v":132.22800000000001},{"$f":"SUM(H29:H31)","v":123.85300000000001},{"$f":"SUM(I29:I31)","v":133.42500000000001},{"$f":"SUM(J29:J31)","v":156.54599999999999},{"$f":"SUM(K29:K31)","v":173.31100000000001},{"$f":"K28","v":173.31100000000001},{"$f":"SUM(M29:M31)","v":178.202},{"$f":"SUM(N29:N31)","v":191.53},{"$f":"SUM(O29:O31)","v":201.02500000000001},{"$f":"SUM(P29:P31)","v":193.48400000000001},{"$f":"P28","v":193.48400000000001},{"$f":"SUM(R29:R31)","v":185.363},{"$f":"SUM(S29:S31)","v":154.24799999999999},{"$f":"SUM(T29:T31)","v":176.691},{"$f":"SUM(U29:U31)","v":145.91300000000001},{"$f":"U28","v":145.91300000000001},{"$f":"SUM(W29:W31)","v":191.959},202.41900000000001,174.292,154.529,154.529,153.18700000000001,155.19800000000001,162.17499999999998,187.965,{"$f":"AE28","v":187.965},{"$f":"SUM(AG29:AG31)","v":198.45},{"$f":"SUM(AH29:AH31)","v":175.44799999999998},{"$f":"SUM(AI29:AI31)","v":229.66499999999999},{"$f":"SUM(AJ29:AJ31)","v":218.78899999999999},{"$f":"AJ28","v":218.78899999999999},{"$f":"SUM(AL29:AL31)","v":46.887},{"$f":"SUM(AM29:AM31)","v":42.637999999999998},{"$f":"SUM(AN29:AN31)","v":44.408000000000001},{"$f":"SUM(AO29:AO31)","v":62.825999999999993},{"$f":"AO28","v":62.825999999999993},{"$f":"SUM(AQ29:AQ31)","v":51.459000000000003},{"$f":"SUM(AR29:AR31)","v":22.751999999999999},{"$f":"SUM(AS29:AS31)","v":28.562000000000001},{"$f":"SUM(AT29:AT31)","v":84.426999999999992},{"$f":"AT28","v":84.426999999999992},{"$f":"SUM(AV29:AV31)","v":171.614},{"$f":"SUM(AW29:AW31)","v":88.481999999999999},{"$f":"SUM(AX29:AX31)","v":57.634999999999998},{"$f":"SUM(AY29:AY31)","v":61.834000000000003},{"$f":"AY28","v":61.834000000000003},{"$f":"SUM(BA29:BA31)","v":63.854999999999997},{"$f":"SUM(BB29:BB31)","v":46.23},{"$f":"SUM(BC29:BC31)","v":67.882999999999996},{"$f":"SUM(BD29:BD31)","v":123.56400000000001},{"$f":"BD28","v":123.56400000000001},{"$f":"SUM(BF29:BF31)","v":66.918999999999997},{"$f":"SUM(BG29:BG31)","v":76.662999999999997},{"$f":"SUM(BH29:BH31)","v":46.713000000000001},{"$f":"SUM(BI29:BI31)","v":59.173000000000002},{"$f":"BI28","v":59.173000000000002},{"$f":"SUM(BK29:BK31)","v":17.893000000000001},{"$f":"SUM(BL29:BL31)","v":13.8},{"$f":"SUM(BM29:BM31)","v":9.4450000000000003},{"$f":"SUM(BN29:BN31)","v":16.393000000000001},{"$f":"BN28","v":16.393000000000001},{"$f":"SUM(BP29:BP31)","v":19.179000000000002},{"$f":"SUM(BQ29:BQ31)","v":17.323},{"$f":"SUM(BR29:BR31)","v":6.7889999999999997},{"$f":"SUM(BS29:BS31)","v":6.6714500000000001},{"$f":"BS28","v":6.6714500000000001},{"$f":"SUM(BU29:BU31)","v":6.5597774999999992},{"$f":"SUM(BV29:BV31)","v":6.4536886249999998},{"$f":"SUM(BW29:BW31)","v":6.3529041937499997},{"$f":"SUM(BX29:BX31)","v":6.2571589840624995},{"$f":"BX28","v":6.2571589840624995},{"$f":"SUM(BZ29:BZ31)","v":6.1662010348593741},{"$f":"SUM(CA29:CA31)","v":6.0797909831164052},{"$f":"SUM(CB29:CB31)","v":5.997701433960585},{"$f":"SUM(CC29:CC31)","v":5.9197163622625553},{"$f":"CC28","v":5.9197163622625553},{"$f":"SUM(CE29:CE31)","v":5.8456305441494276},{"$f":"SUM(CF29:CF31)","v":5.7752490169419559},{"$f":"SUM(CG29:CG31)","v":5.7083865660948581},{"$f":"SUM(CH29:CH31)","v":5.6448672377901152},{"$f":"CH28","v":5.6448672377901152},{"$f":"SUM(CJ29:CJ31)","v":5.5845238759006097},{"$f":"SUM(CK29:CK31)","v":5.5271976821055793},{"$f":"SUM(CL29:CL31)","v":5.4727377980003},{"$f":"SUM(CM29:CM31)","v":5.421000908100285},{"$f":"CM28","v":5.421000908100285}]
["     Other Accrued Expenses",null,null,null,null,null,0,null,null,null,null,0,null,null,null,null,0,null,null,null,null,0,null,null,null,null,0,null,null,null,null,0,null,null,null,null,0,null,null,null,null,0,null,null,null,null,0,null,null,null,null,0,0,0,0,0,0,null,null,null,null,{"$f":"BI29","v":0},null,null,null,null,0,null,null,null,null,0,null,null,null,null,0,null,null,null,null,0,null,null,null,null,0,null,null,null,null,0]
["     Restructuring obligations",null,null,null,null,null,0,1.673,null,null,null,0,null,null,null,null,0,null,null,null,null,0,null,null,null,null,0,25.768000000000001,17.332000000000001,12.618,10.087999999999999,10.087999999999999,8.0660000000000007,6.5579999999999998,5.8490000000000002,3.7309999999999999,3.7309999999999999,5.9560000000000004,5.5730000000000004,6.8620000000000001,35.69,35.69,18.352,11.728,8.23,37.792999999999999,37.792999999999999,19.773,16.504000000000001,9.2219999999999995,8.1189999999999998,8.1189999999999998,6.7590000000000003,5.26,6.6630000000000003,80.930000000000007,80.930000000000007,36.369999999999997,18.337,14.803000000000001,9.2870000000000008,9.2870000000000008,6.7670000000000003,6.6710000000000003,4.8410000000000002,6.1710000000000003,6.1710000000000003,6.1929999999999996,3.6269999999999998,2.351,{"$f":"BR30*0.95","v":2.2334499999999999},2.2334499999999999,{"$f":"BS30*0.95","v":2.1217774999999999},{"$f":"BU30*0.95","v":2.0156886249999997},{"$f":"BV30*0.95","v":1.9149041937499995},{"$f":"BW30*0.95","v":1.8191589840624995},1.8191589840624995,{"$f":"BX30*0.95","v":1.7282010348593744},{"$f":"BZ30*0.95","v":1.6417909831164055},{"$f":"CA30*0.95","v":1.559701433960585},{"$f":"CB30*0.95","v":1.4817163622625558},1.4817163622625558,{"$f":"CC30*0.95","v":1.4076305441494279},{"$f":"CE30*0.95","v":1.3372490169419564},{"$f":"CF30*0.95","v":1.2703865660948586},{"$f":"CG30*0.95","v":1.2068672377901155},1.2068672377901155,{"$f":"CH30*0.95","v":1.1465238759006098},{"$f":"CJ30*0.95","v":1.0891976821055793},{"$f":"CK30*0.95","v":1.0347377980003003},{"$f":"CL30*0.95","v":0.98300090810028529},0.98300090810028529]
["     Income Taxes Payable",null,null,null,null,132.22800000000001,132.22800000000001,122.18,133.42500000000001,156.54599999999999,173.31100000000001,173.31100000000001,178.202,191.53,201.02500000000001,193.48400000000001,193.48400000000001,185.363,154.24799999999999,176.691,145.91300000000001,145.91300000000001,191.959,202.41900000000001,174.292,154.529,154.529,127.419,137.86600000000001,149.55699999999999,177.87700000000001,177.87700000000001,190.38399999999999,168.89,223.816,215.05799999999999,215.05799999999999,40.930999999999997,37.064999999999998,37.545999999999999,27.135999999999999,27.135999999999999,33.106999999999999,11.023999999999999,20.332000000000001,46.634,46.634,151.84100000000001,71.977999999999994,48.412999999999997,53.715000000000003,53.715000000000003,57.095999999999997,40.97,61.22,42.634,42.634,30.548999999999999,58.326000000000001,31.91,49.886000000000003,49.886000000000003,11.125999999999999,7.1289999999999996,4.6040000000000001,10.222,10.222,12.986000000000001,13.696,4.4379999999999997,4.4379999999999997,4.4379999999999997,{"$f":"BS31","v":4.4379999999999997},4.4379999999999997,4.4379999999999997,4.4379999999999997,4.4379999999999997,{"$f":"BX31","v":4.4379999999999997},4.4379999999999997,4.4379999999999997,4.4379999999999997,4.4379999999999997,{"$f":"CC31","v":4.4379999999999997},4.4379999999999997,4.4379999999999997,4.4379999999999997,4.4379999999999997,{"$f":"CH31","v":4.4379999999999997},4.4379999999999997,4.4379999999999997,4.4379999999999997,4.4379999999999997]
["Total Current Liabilities",null,{"$f":"SUM(C24:C26,C27:C28)","v":0},{"$f":"SUM(D24:D26,D27:D28)","v":0},{"$f":"SUM(E24:E26,E27:E28)","v":0},{"$f":"SUM(F24:F26,F27:F28)","v":315.20100000000002},315.20100000000002,{"$f":"SUM(H24:H26,H27:H28)","v":300.43100000000004},{"$f":"SUM(I24:I26,I27:I28)","v":346.654},{"$f":"SUM(J24:J26,J27:J28)","v":344.70799999999997},{"$f":"SUM(K24:K26,K27:K28)","v":377.28899999999999},377.28899999999999,{"$f":"SUM(M24:M26,M27:M28)","v":390.39800000000002},{"$f":"SUM(N24:N26,N27:N28)","v":432.79899999999998},{"$f":"SUM(O24:O26,O27:O28)","v":423.005},{"$f":"SUM(P24:P26,P27:P28)","v":436.53},436.53,{"$f":"SUM(R24:R26,R27:R28)","v":439.79499999999996},{"$f":"SUM(S24:S26,S27:S28)","v":421.01299999999998},{"$f":"SUM(T24:T26,T27:T28)","v":430.22399999999999},{"$f":"SUM(U24:U26,U27:U28)","v":451.40800000000002},451.40800000000002,{"$f":"SUM(W24:W26,W27:W28)","v":484.18799999999999},{"$f":"SUM(X24:X26,X27:X28)","v":517.92399999999998},{"$f":"SUM(Y24:Y26,Y27:Y28)","v":479.08500000000004},{"$f":"SUM(Z24:Z26,Z27:Z28)","v":480.39500000000004},480.39500000000004,{"$f":"SUM(AB24:AB26,AB27:AB28)","v":571.29700000000003},{"$f":"SUM(AC24:AC26,AC27:AC28)","v":574.28099999999995},{"$f":"SUM(AD24:AD26,AD27:AD28)","v":557.697},{"$f":"SUM(AE24:AE26,AE27:AE28)","v":670.85599999999999},670.85599999999999,{"$f":"SUM(AG24:AG26,AG27:AG28)","v":655.524},{"$f":"SUM(AH24:AH26,AH27:AH28)","v":779.08100000000002},{"$f":"SUM(AI24:AI26,AI27:AI28)","v":807.74399999999991},{"$f":"SUM(AJ24:AJ26,AJ27:AJ28)","v":852.41},852.41,{"$f":"SUM(AL24:AL26,AL27:AL28)","v":669.54600000000005},{"$f":"SUM(AM24:AM26,AM27:AM28)","v":672.76499999999999},{"$f":"SUM(AN24:AN26,AN27:AN28)","v":661.66300000000001},{"$f":"SUM(AO24:AO26,AO27:AO28)","v":762.59899999999993},762.59899999999993,{"$f":"SUM(AQ24:AQ26,AQ27:AQ28)","v":636.86500000000001},{"$f":"SUM(AR24:AR26,AR27:AR28)","v":613.63199999999995},{"$f":"SUM(AS24:AS26,AS27:AS28)","v":614.38300000000004},{"$f":"SUM(AT24:AT26,AT27:AT28)","v":844.553},844.553,{"$f":"SUM(AV24:AV26,AV27:AV28)","v":900.77400000000011},{"$f":"SUM(AW24:AW26,AW27:AW28)","v":969.9079999999999},{"$f":"SUM(AX24:AX26,AX27:AX28)","v":967.202},{"$f":"SUM(AY24:AY26,AY27:AY28)","v":1068.088},1068.088,{"$f":"SUM(BA24:BA26,BA27:BA28)","v":985.53200000000004},{"$f":"SUM(BB24:BB26,BB27:BB28)","v":1050.3789999999999},{"$f":"SUM(BC24:BC26,BC27:BC28)","v":1032.259},{"$f":"SUM(BD24:BD26,BD27:BD28)","v":1250.779},1250.779,{"$f":"SUM(BF24:BF26,BF27:BF28)","v":1115.0220000000002},{"$f":"SUM(BG24:BG26,BG27:BG28)","v":1245.644},{"$f":"SUM(BH24:BH26,BH27:BH28)","v":1169.71},{"$f":"SUM(BI24:BI26,BI27:BI28)","v":1271.7520000000002},1271.7520000000002,{"$f":"SUM(BK24:BK26,BK27:BK28)","v":1264.3229999999999},{"$f":"SUM(BL24:BL26,BL27:BL28)","v":1264.855},{"$f":"SUM(BM24:BM26,BM27:BM28)","v":1329.117},{"$f":"SUM(BN24:BN26,BN27:BN28)","v":1525.6479999999999},1525.6479999999999,{"$f":"SUM(BP24:BP26,BP27:BP28)","v":2112.3470000000002},{"$f":"SUM(BQ24:BQ26,BQ27:BQ28)","v":2217.9720000000002},{"$f":"SUM(BR24:BR26,BR27:BR28)","v":2245.248},{"$f":"SUM(BS24:BS26,BS27:BS28)","v":2336.586923052721},2336.586923052721,{"$f":"SUM(BU24:BU26,BU27:BU28)","v":1736.8509805720869},{"$f":"SUM(BV24:BV26,BV27:BV28)","v":1876.2444865013069},{"$f":"SUM(BW24:BW26,BW27:BW28)","v":1934.1452876698722},{"$f":"SUM(BX24:BX26,BX27:BX28)","v":2045.8195030695126},2045.8195030695126,{"$f":"SUM(BZ24:BZ26,BZ27:BZ28)","v":2056.8583649081806},{"$f":"SUM(CA24:CA26,CA27:CA28)","v":2196.4524641404246},{"$f":"SUM(CB24:CB26,CB27:CB28)","v":2229.1313212829536},{"$f":"SUM(CC24:CC26,CC27:CC28)","v":2313.6287121852693},2313.6287121852693,{"$f":"SUM(CE24:CE26,CE27:CE28)","v":2349.6187665047123},{"$f":"SUM(CF24:CF26,CF27:CF28)","v":2466.0189025147747},{"$f":"SUM(CG24:CG26,CG27:CG28)","v":2473.8403270745016},{"$f":"SUM(CH24:CH26,CH27:CH28)","v":2556.5814839053878},2556.5814839053878,{"$f":"SUM(CJ24:CJ26,CJ27:CJ28)","v":2589.5013522902291},{"$f":"SUM(CK24:CK26,CK27:CK28)","v":2704.8270025596294},{"$f":"SUM(CL24:CL26,CL27:CL28)","v":2704.9699621742147},{"$f":"SUM(CM24:CM26,CM27:CM28)","v":2787.0130621204517},2787.0130621204517]
["Capital Lease Obligation",null,null,null,null,null,0,null,null,null,null,0,null,null,null,null,0,null,null,null,null,0,null,null,null,null,0,null,null,null,null,0,null,null,null,null,0,null,null,null,null,0,null,null,null,null,0,null,null,null,null,0,null,null,null,null,0,null,null,null,null,0,null,null,null,null,0,null,null,null,null,0,null,null,null,null,0,null,null,null,null,0,null,null,null,null,0,null,null,null,null,0]
["LT Portion of Convertible Debt",null,null,null,null,null,0,null,null,null,null,0,null,null,null,null,0,null,null,null,null,0,null,null,null,null,0,null,null,null,null,0,null,null,null,null,0,null,null,null,null,0,null,null,null,null,0,null,null,null,null,0,null,null,null,null,0,null,null,null,null,0,null,null,null,null,0,null,null,null,null,0,null,null,null,null,0,null,null,null,null,0,null,null,null,null,0,null,null,null,null,0]
["Debt",null,null,null,null,null,null,null,null,null,null,null,null,null,null,null,null,null,null,null,null,null,null,null,null,null,null,null,null,null,null,null,null,null,null,null,null,450,350,{"$f":"AM35","v":350},350,350,350,350,350,1000,1000,1493.546,1493.6510000000001,1515.752,1513.662,1513.662,1511.5530000000001,1509.4280000000001,1507.278,1505.096,1505.096,1502.893,1500.6679999999999,1499.8810000000001,1496.9380000000001,1496.9380000000001,1509.0029999999999,1505.56,1502.3689999999999,1499.297,1499.297,896.41800000000001,896.55100000000004,901.83,{"$f":"BS129","v":900},900,{"$f":"BU129","v":900},{"$f":"BV129","v":900},{"$f":"BW129","v":900},{"$f":"BX129","v":900},900,{"$f":"BZ129","v":900},{"$f":"CA129","v":900},{"$f":"CB129","v":900},{"$f":"CC129","v":900},900,{"$f":"CE129","v":900},{"$f":"CF129","v":900},{"$f":"CG129","v":900},{"$f":"CH129","v":900},900,{"$f":"CJ129","v":900},{"$f":"CK129","v":900},{"$f":"CL129","v":900},{"$f":"CM129","v":900},900]
["Income taxes payable",null,null,null,null,null,null,null,null,null,null,null,null,null,null,null,null,null,null,null,null,null,null,null,null,null,null,null,null,null,null,null,null,null,null,null,null,197.74100000000001,200.11099999999999,99.635999999999996,123.182,123.182,120.289,137.24,137.29599999999999,223.52799999999999,{"$f":"AT36","v":223.52799999999999},224.273,218.15299999999999,221.73599999999999,164.71299999999999,{"$f":"AY36","v":164.71299999999999},170.721,173.023,143.02799999999999,156.958,{"$f":"BD36","v":156.958},150.137,151.67099999999999,151.946,155.096,{"$f":"BI36","v":155.096},159.85900000000001,161.93700000000001,120.52500000000001,132.54499999999999,{"$f":"BN36","v":132.54499999999999},135.202,139.87,141.47300000000001,141.47300000000001,{"$f":"BS36","v":141.47300000000001},{"$f":"BS36","v":141.47300000000001},141.47300000000001,141.47300000000001,141.47300000000001,{"$f":"BX36","v":141.47300000000001},{"$f":"BX36","v":141.47300000000001},141.47300000000001,141.47300000000001,141.47300000000001,{"$f":"CC36","v":141.47300000000001},{"$f":"CC36","v":141.47300000000001},141.47300000000001,141.47300000000001,141.47300000000001,{"$f":"CH36","v":141.47300000000001},{"$f":"CH36","v":141.47300000000001},141.47300000000001,141.47300000000001,141.47300000000001,{"$f":"CM36","v":141.47300000000001}]
["Long-term Deferred Revenue",null,null,null,null,null,0,null,null,null,null,0,null,null,null,null,0,null,null,null,null,0,null,null,null,9.7309999999999999,9.7309999999999999,12.355,12.603,21.282,32.643999999999998,32.643999999999998,30.847000000000001,29.465,27.66,25.95,{"$f":"AJ37","v":25.95},22.956,24.818999999999999,27.838000000000001,31.356000000000002,31.356000000000002,26.972999999999999,28.123999999999999,29.866,36.716999999999999,{"$f":"AT37","v":36.716999999999999},39.207999999999998,41.777000000000001,44.988,48.929000000000002,{"$f":"AY37","v":48.929000000000002},43.826000000000001,43.948999999999998,44.369,55.302999999999997,{"$f":"BD37","v":55.302999999999997},56.418999999999997,57.662999999999997,54.686999999999998,58.101999999999997,{"$f":"BI37","v":58.101999999999997},54.197000000000003,52.375999999999998,50.932000000000002,53.268000000000001,{"$f":"BN37","v":53.268000000000001},50.01,49.494999999999997,48.975000000000001,54.61234196704639,54.61234196704639,55.806626453658389,55.520403660963837,62.508977577487009,70.231470386385752,70.231470386385752,71.611628315054148,69.799327169591123,76.937604557805642,85.085018530946513,85.085018530946513,85.727454746659376,81.420461914519436,87.925787096949094,96.378289738901813,96.378289738901813,96.936677961560903,91.660562305700793,98.316520948672888,107.07249288352563,107.07249288352563]
["Deferred Income Taxes",null,null,null,null,null,0,0,0,0,0,0,0,0,0,17.715,17.715,34.226999999999997,49.862000000000002,59.731000000000002,78.909000000000006,78.909000000000006,8.9990000000000006,28.622,41.883000000000003,78.8,78.8,110.991,112.06699999999999,95.564999999999998,70.715000000000003,70.715000000000003,78.367999999999995,97.97,60.777000000000001,148.94300000000001,148.94300000000001,146.34399999999999,137.852,96.826999999999998,117.328,117.328,114.60299999999999,104.49,105.59699999999999,252.48599999999999,252.48599999999999,79.67,66.141999999999996,73.108000000000004,103.098,103.098,120.756,121.996,151.065,181.602,181.602,254.19300000000001,250.756,253.626,265.10599999999999,265.10599999999999,292.77,286.10399999999998,328.31,375.63400000000001,375.63400000000001,362.85899999999998,351.61200000000002,344.71499999999997,344.71499999999997,344.71499999999997,{"$f":"BS38","v":344.71499999999997},344.71499999999997,344.71499999999997,344.71499999999997,344.71499999999997,{"$f":"BX38","v":344.71499999999997},344.71499999999997,344.71499999999997,344.71499999999997,344.71499999999997,{"$f":"CC38","v":344.71499999999997},344.71499999999997,344.71499999999997,344.71499999999997,344.71499999999997,{"$f":"CH38","v":344.71499999999997},344.71499999999997,344.71499999999997,344.71499999999997,344.71499999999997]
["Other Long Term Liabilities",null,null,null,null,null,0,null,null,null,null,0,null,null,null,null,0,null,null,5.0970000000000004,4.8380000000000001,4.8380000000000001,5.0579999999999998,4.7670000000000003,4.476,7.0629999999999997,7.0629999999999997,{"$f":"22.564+7.914","v":30.478000000000002},33.927999999999997,32.421999999999997,29.966000000000001,29.966000000000001,31.37,33.721000000000004,37.28,36.393999999999998,36.393999999999998,40.164000000000001,34.213000000000001,31.344000000000001,26.779000000000003,26.779000000000003,27.706,29.218,30.259999999999998,34.384999999999998,34.384999999999998,36.178000000000004,38.545000000000002,39.384999999999998,50.271000000000001,50.271000000000001,52.228999999999999,51.526000000000003,50.800999999999995,58.332000000000001,58.332000000000001,67.742000000000004,59.784000000000006,61.47,62.347000000000001,62.347000000000001,80.221000000000004,82.234999999999985,68.144000000000005,69.272000000000006,69.272000000000006,78.163000000000011,79.811000000000007,80.179000000000002,80.179000000000002,80.179000000000002,{"$f":"BS39","v":80.179000000000002},80.179000000000002,80.179000000000002,80.179000000000002,80.179000000000002,{"$f":"BX39","v":80.179000000000002},80.179000000000002,80.179000000000002,80.179000000000002,80.179000000000002,{"$f":"CC39","v":80.179000000000002},80.179000000000002,80.179000000000002,80.179000000000002,80.179000000000002,{"$f":"CH39","v":80.179000000000002},80.179000000000002,80.179000000000002,80.179000000000002,80.179000000000002]
[]
["Total Liabilities",null,{"$f":"SUM(C32:C39)","v":0},{"$f":"SUM(D32:D39)","v":0},{"$f":"SUM(E32:E39)","v":0},{"$f":"SUM(F32:F39)","v":315.20100000000002},315.20100000000002,{"$f":"SUM(H32:H39)","v":300.43100000000004},{"$f":"SUM(I32:I39)","v":346.654},{"$f":"SUM(J32:J39)","v":344.70799999999997},{"$f":"SUM(K32:K39)","v":377.28899999999999},377.28899999999999,{"$f":"SUM(M32:M39)","v":390.39800000000002},{"$f":"SUM(N32:N39)","v":432.79899999999998},{"$f":"SUM(O32:O39)","v":423.005},{"$f":"SUM(P32:P39)","v":454.24499999999995},454.24499999999995,{"$f":"SUM(R32:R39)","v":474.02199999999993},{"$f":"SUM(S32:S39)","v":470.875},{"$f":"SUM(T32:T39)","v":495.05199999999996},{"$f":"SUM(U32:U39)","v":535.15499999999997},535.15499999999997,{"$f":"SUM(W32:W39)","v":498.245},{"$f":"SUM(X32:X39)","v":551.31299999999999},{"$f":"SUM(Y32:Y39)","v":525.44400000000007},{"$f":"SUM(Z32:Z39)","v":575.98900000000003},575.98900000000003,{"$f":"SUM(AB32:AB39)","v":725.12099999999998},{"$f":"SUM(AC32:AC39)","v":732.87899999999991},{"$f":"SUM(AD32:AD39)","v":706.96600000000012},{"$f":"SUM(AE32:AE39)","v":804.18100000000004},804.18100000000004,{"$f":"SUM(AG32:AG39)","v":796.10900000000004},{"$f":"SUM(AH32:AH39)","v":940.23700000000008},{"$f":"SUM(AI32:AI39)","v":933.4609999999999},{"$f":"SUM(AJ32:AJ39)","v":1063.6970000000001},1063.6970000000001,{"$f":"SUM(AL32:AL39)","v":1526.751},{"$f":"SUM(AM32:AM39)","v":1419.76},{"$f":"SUM(AN32:AN39)","v":1267.308},{"$f":"SUM(AO32:AO39)","v":1411.2439999999999},1411.2439999999999,{"$f":"SUM(AQ32:AQ39)","v":1276.4359999999999},{"$f":"SUM(AR32:AR39)","v":1262.704},{"$f":"SUM(AS32:AS39)","v":1267.402},{"$f":"SUM(AT32:AT39)","v":2391.6689999999999},2391.6689999999999,{"$f":"SUM(AV32:AV39)","v":2773.6490000000003},{"$f":"SUM(AW32:AW39)","v":2828.1759999999999},{"$f":"SUM(AX32:AX39)","v":2862.1709999999998},{"$f":"SUM(AY32:AY39)","v":2948.7610000000004},2948.7610000000004,{"$f":"SUM(BA32:BA39)","v":2884.6169999999997},{"$f":"SUM(BB32:BB39)","v":2950.3009999999999},{"$f":"SUM(BC32:BC39)","v":2928.8},{"$f":"SUM(BD32:BD39)","v":3208.0699999999997},3208.0699999999997,{"$f":"SUM(BF32:BF39)","v":3146.4060000000004},{"$f":"SUM(BG32:BG39)","v":3266.1859999999997},{"$f":"SUM(BH32:BH39)","v":3191.32},{"$f":"SUM(BI32:BI39)","v":3309.3410000000008},3309.3410000000008,{"$f":"SUM(BK32:BK39)","v":3360.373},{"$f":"SUM(BL32:BL39)","v":3353.067},{"$f":"SUM(BM32:BM39)","v":3399.3969999999999},{"$f":"SUM(BN32:BN39)","v":3655.6639999999998},3655.6639999999998,{"$f":"SUM(BP32:BP39)","v":3634.9990000000007},{"$f":"SUM(BQ32:BQ39)","v":3735.3110000000001},{"$f":"SUM(BR32:BR39)","v":3762.42},{"$f":"SUM(BS32:BS39)","v":3857.5662650197673},3857.5662650197673,{"$f":"SUM(BU32:BU39)","v":3259.0246070257454},{"$f":"SUM(BV32:BV39)","v":3398.1318901622708},{"$f":"SUM(BW32:BW39)","v":3463.0212652473592},{"$f":"SUM(BX32:BX39)","v":3582.4179734558984},3582.4179734558984,{"$f":"SUM(BZ32:BZ39)","v":3594.8369932232349},{"$f":"SUM(CA32:CA39)","v":3732.6187913100157},{"$f":"SUM(CB32:CB39)","v":3772.4359258407594},{"$f":"SUM(CC32:CC39)","v":3865.0807307162158},3865.0807307162158,{"$f":"SUM(CE32:CE39)","v":3901.713221251372},{"$f":"SUM(CF32:CF39)","v":4013.8063644292943},{"$f":"SUM(CG32:CG39)","v":4028.1331141714509},{"$f":"SUM(CH32:CH39)","v":4119.3267736442895},4119.3267736442895,{"$f":"SUM(CJ32:CJ39)","v":4152.8050302517895},{"$f":"SUM(CK32:CK39)","v":4262.8545648653298},{"$f":"SUM(CL32:CL39)","v":4269.6534831228873},{"$f":"SUM(CM32:CM39)","v":4360.4525550039771},4360.4525550039771]
["Common and Preferred Stock",null,null,null,null,29.576000000000001,{"$f":"+F42","v":29.576000000000001},29.576000000000001,29.576000000000001,29.576000000000001,29.576000000000001,{"$f":"+K42","v":29.576000000000001},29.576000000000001,29.576000000000001,29.576000000000001,29.576000000000001,{"$f":"+P42","v":29.576000000000001},29.576000000000001,29.576000000000001,29.576000000000001,29.576000000000001,{"$f":"+U42","v":29.576000000000001},29.576000000000001,29.6,29.6,29.6,29.6,29.908000000000001,29.908000000000001,5.6000000000000001E-2,5.6000000000000001E-2,{"$f":"+AE42","v":5.6000000000000001E-2},6.0999999999999999E-2,6.0999999999999999E-2,6.0999999999999999E-2,6.0999999999999999E-2,{"$f":"+AJ42","v":6.0999999999999999E-2},6.0999999999999999E-2,6.0999999999999999E-2,6.0999999999999999E-2,6.0999999999999999E-2,{"$f":"+AO42","v":6.0999999999999999E-2},6.0999999999999999E-2,6.0999999999999999E-2,6.0999999999999999E-2,6.0999999999999999E-2,{"$f":"+AT42","v":6.0999999999999999E-2},6.0999999999999999E-2,6.0999999999999999E-2,6.0999999999999999E-2,6.0999999999999999E-2,{"$f":"+AY42","v":6.0999999999999999E-2},6.0999999999999999E-2,6.0999999999999999E-2,6.0999999999999999E-2,6.0999999999999999E-2,{"$f":"+BD42","v":6.0999999999999999E-2},6.0999999999999999E-2,6.0999999999999999E-2,6.0999999999999999E-2,6.0999999999999999E-2,{"$f":"+BI42","v":6.0999999999999999E-2},6.0999999999999999E-2,6.0999999999999999E-2,6.0999999999999999E-2,6.0999999999999999E-2,{"$f":"+BN42","v":6.0999999999999999E-2},6.0999999999999999E-2,6.0999999999999999E-2,6.0999999999999999E-2,{"$f":"BQ42","v":6.0999999999999999E-2},{"$f":"+BS42","v":6.0999999999999999E-2},{"$f":"BS42","v":6.0999999999999999E-2},{"$f":"BT42","v":6.0999999999999999E-2},{"$f":"BU42","v":6.0999999999999999E-2},{"$f":"BV42","v":6.0999999999999999E-2},{"$f":"+BX42","v":6.0999999999999999E-2},{"$f":"BX42","v":6.0999999999999999E-2},{"$f":"BY42","v":6.0999999999999999E-2},{"$f":"BZ42","v":6.0999999999999999E-2},{"$f":"CA42","v":6.0999999999999999E-2},{"$f":"+CC42","v":6.0999999999999999E-2},{"$f":"CC42","v":6.0999999999999999E-2},{"$f":"CD42","v":6.0999999999999999E-2},{"$f":"CE42","v":6.0999999999999999E-2},{"$f":"CF42","v":6.0999999999999999E-2},{"$f":"+CH42","v":6.0999999999999999E-2},{"$f":"CH42","v":6.0999999999999999E-2},{"$f":"CI42","v":6.0999999999999999E-2},{"$f":"CJ42","v":6.0999999999999999E-2},{"$f":"CK42","v":6.0999999999999999E-2},{"$f":"+CM42","v":6.0999999999999999E-2}]
["Additional Paid in Capital",null,null,null,null,595.80999999999995,{"$f":"+F43","v":595.80999999999995},620.04200000000003,695.78099999999995,706.95499999999993,710.27300000000002,{"$f":"+K43","v":710.27300000000002},718.28599999999994,746.00800000000004,764.32299999999998,874.12599999999998,{"$f":"+P43","v":874.12599999999998},901.83100000000002,953.19500000000005,1006.431,1164.643,{"$f":"+U43","v":1164.643},1228.9269999999999,1264.712,1290.905,1321.146,1321.146,2407.6849999999999,2388.203,2437.694,2508.9609999999998,{"$f":"+AE43","v":2508.9609999999998},2429.2510000000002,2452.6390000000001,2432.489,2340.9690000000001,{"$f":"+AJ43","v":2340.9690000000001},2317.5819999999999,2308.0540000000001,2369.6889999999999,2396.819,{"$f":"+AO43","v":2396.819},2352.3829999999998,2361.2240000000002,2303.3420000000001,2363.6439999999998,{"$f":"+AT43","v":2363.6439999999998},2339.9650000000001,2376.2020000000002,2425.0830000000001,2458.2779999999998,{"$f":"+AY43","v":2458.2779999999998},2529.7890000000002,2611.9969999999998,2680.4070000000002,2753.8960000000002,{"$f":"+BD43","v":2753.8960000000002},2821.712,2886.953,2961.799,3038.665,{"$f":"+BI43","v":3038.665},3116.471,3189.8829999999998,3266.17,3392.6959999999999,{"$f":"+BN43","v":3392.6959999999999},3475.1860000000001,3562.6819999999998,3675.6289999999999,{"$f":"BS66","v":3801.96534475418},{"$f":"+BS43","v":3801.96534475418},{"$f":"BU66","v":3882.9384945056991},{"$f":"BV66","v":3971.2728396891744},{"$f":"BW66","v":4066.9683803046055},{"$f":"BX66","v":4170.0251163519933},{"$f":"+BX43","v":4170.0251163519933},{"$f":"BZ66","v":4253.1201834428175},{"$f":"CA66","v":4343.7693475418982},{"$f":"CB66","v":4441.9726086492356},{"$f":"CC66","v":4547.7299667648294},{"$f":"+CC43","v":4547.7299667648294},{"$f":"CE66","v":4633.0903401364249},{"$f":"CF66","v":4726.210747450893},{"$f":"CG66","v":4827.0911887082329},{"$f":"CH66","v":4935.7316639084456},{"$f":"+CH43","v":4935.7316639084456},{"$f":"CJ66","v":5023.4803254030667},{"$f":"CK66","v":5119.2061379426532},{"$f":"CL66","v":5222.9091015272052},{"$f":"CM66","v":5334.5892161567226},{"$f":"+CM43","v":5334.5892161567226}]
["Other Comprehensive Income",null,null,null,null,3.9180000000000001,{"$f":"+F44","v":3.9180000000000001},-1.1850000000000001,-6.5759999999999996,-7.8520000000000003,-3.95,{"$f":"+K44","v":-3.95},-3.657,-0.50600000000000001,-0.127,-0.999,{"$f":"+P44","v":-0.999},5.5819999999999999,-4.42,-0.55800000000000005,-2.2890000000000001,{"$f":"+U44","v":-2.2890000000000001},-3.2229999999999999,0.52300000000000002,-2.8109999999999999,-0.91400000000000003,-0.91400000000000003,-5.0339999999999998,-2.891,1.762,-51.007999999999996,{"$f":"+AE44","v":-51.007999999999996},7.1029999999999998,16.754999999999999,13.7,27.948,{"$f":"+AJ44","v":27.948},26.215,21.300999999999998,23.439,57.222000000000001,{"$f":"+AO44","v":57.222000000000001},25.094999999999999,27.31,21.728000000000002,24.446000000000002,{"$f":"+AT44","v":24.446000000000002},29.109000000000002,39.994999999999997,21.571000000000002,17.428000000000001,{"$f":"+AY44","v":17.428000000000001},28.695,54.341999999999999,59.194000000000003,29.95,{"$f":"+BD44","v":29.95},46.747999999999998,20.614999999999998,22.510999999999999,30.712,{"$f":"+BI44","v":30.712},40.11,27.460999999999999,12.965999999999999,46.103000000000002,{"$f":"+BN44","v":46.103000000000002},56.591999999999999,46.642000000000003,20.067,20.067,{"$f":"+BS44","v":20.067},{"$f":"BS44","v":20.067},20.067,20.067,20.067,{"$f":"+BX44","v":20.067},{"$f":"BX44","v":20.067},20.067,20.067,20.067,{"$f":"+CC44","v":20.067},{"$f":"CC44","v":20.067},20.067,20.067,20.067,{"$f":"+CH44","v":20.067},{"$f":"CH44","v":20.067},20.067,20.067,20.067,{"$f":"+CM44","v":20.067}]
["Treasury Stock",null,null,null,null,-1378.537,{"$f":"+F45","v":-1378.537},-1371.9580000000001,-1374.64,-1477.1130000000001,-1607.354,{"$f":"+K45","v":-1607.354},-1643.8789999999999,-1626.575,-1650.0329999999999,-1602.3009999999999,{"$f":"+P45","v":-1602.3009999999999},-1639.9490000000001,-1742.9659999999999,-1938.046,-2007.26,{"$f":"+U45","v":-2007.26},-2018.3720000000001,-1962.3309999999999,-1919.8579999999999,-2324.0720000000001,-2324.0720000000001,-299.58499999999998,-713.34699999999998,-686.82399999999996,-623.92399999999998,{"$f":"+AE45","v":-623.92399999999998},-789.97699999999998,-887.88499999999999,-1532.634,-1760.588,{"$f":"+AJ45","v":-1760.588},-2790.6779999999999,-2764.6390000000001,-2689.2359999999999,-2957.154,{"$f":"+AO45","v":-2957.154},-2836.2190000000001,-2783.4650000000001,-2962.53,-2823.9140000000002,{"$f":"+AT45","v":-2823.9140000000002},-2624.7829999999999,-2807.6,-3100.721,-3264.2939999999999,{"$f":"+AY45","v":-3264.2939999999999},-3178.7689999999998,-3505.5590000000002,-3557.2339999999999,-3529.529,{"$f":"+BD45","v":-3529.529},-3379.2890000000002,-3479.2130000000002,-3361.0529999999999,-3407.259,{"$f":"+BI45","v":-3407.259},-3159.7930000000001,-3145.5659999999998,-3322.654,-3643.19,{"$f":"+BN45","v":-3643.19},-3655.6570000000002,-3778.6010000000001,-3815.2869999999998,{"$f":"BS73","v":-3981.6648012746},{"$f":"+BS45","v":-3981.6648012746},{"$f":"BU73","v":-4155.8468201978958},{"$f":"BV73","v":-4338.1128547222434},{"$f":"BW73","v":-4528.7526871914652},{"$f":"BX73","v":-4728.0664393067773},{"$f":"+BX45","v":-4728.0664393067773},{"$f":"BZ73","v":-4936.3649396752153},{"$f":"CA73","v":-5153.9701043855275},{"$f":"CB73","v":-5381.215331072186},{"$f":"CC73","v":-5618.445906944441},{"$f":"+CC45","v":-5618.445906944441},{"$f":"CE73","v":-5866.0194312741714},{"$f":"CF73","v":-6124.3062528537021},{"$f":"CG73","v":-6393.6899229528062},{"$f":"CH73","v":-6674.5676643227835},{"$f":"+CH45","v":-6674.5676643227835},{"$f":"CJ73","v":-6967.3508568148263},{"$f":"CK73","v":-7272.4655401999216},{"$f":"CL73","v":-7590.3529347982212},{"$f":"CM73","v":-7921.4699805473028},{"$f":"+CM45","v":-7921.4699805473028}]
["Retained Earnings",null,null,null,null,1366.2049999999999,{"$f":"+F46","v":1366.2049999999999},1413.0360000000001,1464.3420000000001,1508.5889999999999,1545.7760000000001,{"$f":"+K46","v":1545.7760000000001},1597.107,1658.434,1720.037,1800.3979999999999,{"$f":"+P46","v":1800.3979999999999},1920.444,2026.867,2128.3530000000001,2238.8069999999998,{"$f":"+U46","v":2238.8069999999998},2387.6570000000002,2537.3989999999999,2682.3150000000001,2838.5659999999998,2838.5659999999998,2943.6379999999999,3066.7339999999999,3161.1309999999999,3316.402,{"$f":"+AE46","v":3316.402},3461.6370000000002,3614.1419999999998,3819.384,4041.5920000000001,{"$f":"+AJ46","v":4041.5920000000001},4260.97,4475.88,4667.4889999999996,4913.4059999999999,{"$f":"+AO46","v":4913.4059999999999},5069.84,5195.9110000000001,5331.9570000000003,5299.9129999999996,{"$f":"+AT46","v":5299.9129999999996},5427.0680000000002,5570.0969999999998,5738.8639999999996,5980.9139999999998,{"$f":"+AY46","v":5980.9139999999998},6045.6310000000003,6228.5739999999996,6381.53,6528.7349999999997,{"$f":"+BD46","v":6528.7349999999997},6497.07,6671.23,6815.375,7003.0029999999997,{"$f":"+BI46","v":7003.0029999999997},6808.4889999999996,6855.4629999999997,6878.2160000000003,6928.9639999999999,{"$f":"+BN46","v":6928.9639999999999},6734.701,6806.1040000000003,6850.79,6911.9042346596725,{"$f":"+BS46","v":6911.9042346596725},7034.3200361006875,7195.7003592518686,7394.557813818592,7616.1448109473031,{"$f":"+BX46","v":7616.1448109473031},7907.2214344596186,8223.9143166018093,8570.2150678455328,8940.4777888941571,{"$f":"+CC46","v":8940.4777888941571},9327.8445653245253,9734.0934467870884,10166.128629636465,10623.030864636021,{"$f":"+CH46","v":10623.030864636021},11075.575022174882,11546.61647316408,12043.492324684934,12565.305301804288,{"$f":"+CM46","v":12565.305301804288}]
[]
["Total Stockholder's Equity",null,{"$f":"SUM(C42:C46)","v":0},{"$f":"SUM(D42:D46)","v":0},{"$f":"SUM(E42:E46)","v":0},{"$f":"SUM(F42:F46)","v":616.97199999999987},{"$f":"F48","v":616.97199999999987},{"$f":"SUM(H42:H46)","v":689.51100000000008},{"$f":"SUM(I42:I46)","v":808.48299999999995},{"$f":"SUM(J42:J46)","v":760.15499999999986},{"$f":"SUM(K42:K46)","v":674.32100000000003},{"$f":"K48","v":674.32100000000003},{"$f":"SUM(M42:M46)","v":697.43299999999999},{"$f":"SUM(N42:N46)","v":806.93700000000001},{"$f":"SUM(O42:O46)","v":863.77600000000018},{"$f":"SUM(P42:P46)","v":1100.8},{"$f":"P48","v":1100.8},{"$f":"SUM(R42:R46)","v":1217.4839999999999},{"$f":"SUM(S42:S46)","v":1262.2520000000002},{"$f":"SUM(T42:T46)","v":1225.7560000000001},{"$f":"SUM(U42:U46)","v":1423.4769999999999},{"$f":"U48","v":1423.4769999999999},{"$f":"SUM(W42:W46)","v":1624.5650000000001},{"$f":"SUM(X42:X46)","v":1869.9029999999998},{"$f":"SUM(Y42:Y46)","v":2080.1509999999998},{"$f":"SUM(Z42:Z46)","v":1864.3259999999996},1864.3259999999996,{"$f":"SUM(AB42:AB46)","v":5076.6119999999992},{"$f":"SUM(AC42:AC46)","v":4768.607},{"$f":"SUM(AD42:AD46)","v":4913.8189999999995},{"$f":"SUM(AE42:AE46)","v":5150.4870000000001},{"$f":"AE48","v":5150.4870000000001},{"$f":"SUM(AG42:AG46)","v":5108.0750000000007},{"$f":"SUM(AH42:AH46)","v":5195.7120000000004},{"$f":"SUM(AI42:AI46)","v":4733},{"$f":"SUM(AJ42:AJ46)","v":4649.982},{"$f":"AJ48","v":4649.982},{"$f":"SUM(AL42:AL46)","v":3814.1500000000005},{"$f":"SUM(AM42:AM46)","v":4040.6570000000002},{"$f":"SUM(AN42:AN46)","v":4371.4419999999991},{"$f":"SUM(AO42:AO46)","v":4410.3540000000003},{"$f":"AO48","v":4410.3540000000003},{"$f":"SUM(AQ42:AQ46)","v":4611.16},{"$f":"SUM(AR42:AR46)","v":4801.0410000000002},{"$f":"SUM(AS42:AS46)","v":4694.5580000000009},{"$f":"SUM(AT42:AT46)","v":4864.1499999999996},{"$f":"AT48","v":4864.1499999999996},{"$f":"SUM(AV42:AV46)","v":5171.42},{"$f":"SUM(AW42:AW46)","v":5178.7550000000001},{"$f":"SUM(AX42:AX46)","v":5084.8580000000002},{"$f":"SUM(AY42:AY46)","v":5192.3869999999997},{"$f":"AY48","v":5192.3869999999997},{"$f":"SUM(BA42:BA46)","v":5425.4070000000011},{"$f":"SUM(BB42:BB46)","v":5389.4149999999991},{"$f":"SUM(BC42:BC46)","v":5563.9580000000005},{"$f":"SUM(BD42:BD46)","v":5783.1129999999994},{"$f":"BD48","v":5783.1129999999994},{"$f":"SUM(BF42:BF46)","v":5986.3019999999997},{"$f":"SUM(BG42:BG46)","v":6099.6459999999988},{"$f":"SUM(BH42:BH46)","v":6438.6930000000002},{"$f":"SUM(BI42:BI46)","v":6665.1819999999998},{"$f":"BI48","v":6665.1819999999998},{"$f":"SUM(BK42:BK46)","v":6805.3379999999997},{"$f":"SUM(BL42:BL46)","v":6927.3019999999997},{"$f":"SUM(BM42:BM46)","v":6834.759},{"$f":"SUM(BN42:BN46)","v":6724.634},{"$f":"BN48","v":6724.634},{"$f":"SUM(BP42:BP46)","v":6610.8829999999998},{"$f":"SUM(BQ42:BQ46)","v":6636.8879999999999},{"$f":"SUM(BR42:BR46)","v":6731.26},{"$f":"SUM(BS42:BS46)","v":6752.3327781392527},{"$f":"BS48","v":6752.3327781392527},{"$f":"SUM(BU42:BU46)","v":6781.5397104084914},{"$f":"SUM(BV42:BV46)","v":6848.9883442188002},{"$f":"SUM(BW42:BW46)","v":6952.901506931732},{"$f":"SUM(BX42:BX46)","v":7078.2314879925189},{"$f":"BX48","v":7078.2314879925189},{"$f":"SUM(BZ42:BZ46)","v":7244.1046782272206},{"$f":"SUM(CA42:CA46)","v":7433.8415597581798},{"$f":"SUM(CB42:CB46)","v":7651.100345422582},{"$f":"SUM(CC42:CC46)","v":7889.8898487145452},{"$f":"CC48","v":7889.8898487145452},{"$f":"SUM(CE42:CE46)","v":8115.0434741867784},{"$f":"SUM(CF42:CF46)","v":8356.1259413842781},{"$f":"SUM(CG42:CG46)","v":8619.6578953918906},{"$f":"SUM(CH42:CH46)","v":8904.3228642216818},{"$f":"CH48","v":8904.3228642216818},{"$f":"SUM(CJ42:CJ46)","v":9151.8324907631213},{"$f":"SUM(CK42:CK46)","v":9413.4850709068123},{"$f":"SUM(CL42:CL46)","v":9696.1764914139167},{"$f":"SUM(CM42:CM46)","v":9998.5525374137069},{"$f":"CM48","v":9998.5525374137069}]
["Total Liabs & Stockholder's Equity",null,{"$f":"C41+C48","v":0},{"$f":"D41+D48","v":0},{"$f":"E41+E48","v":0},{"$f":"F41+F48","v":932.17299999999989},{"$f":"F49","v":932.17299999999989},{"$f":"H41+H48","v":989.94200000000012},{"$f":"I41+I48","v":1155.1369999999999},{"$f":"J41+J48","v":1104.8629999999998},{"$f":"K41+K48","v":1051.6100000000001},{"$f":"K49","v":1051.6100000000001},{"$f":"M41+M48","v":1087.8310000000001},{"$f":"N41+N48","v":1239.7359999999999},{"$f":"O41+O48","v":1286.7810000000002},{"$f":"P41+P48","v":1555.0449999999998},{"$f":"P49","v":1555.0449999999998},{"$f":"R41+R48","v":1691.5059999999999},{"$f":"S41+S48","v":1733.1270000000002},{"$f":"T41+T48","v":1720.808},{"$f":"U41+U48","v":1958.6319999999998},{"$f":"U49","v":1958.6319999999998},{"$f":"W41+W48","v":2122.81},{"$f":"X41+X48","v":2421.2159999999999},{"$f":"Y41+Y48","v":2605.5949999999998},{"$f":"Z41+Z48","v":2440.3149999999996},2440.3149999999996,{"$f":"AB41+AB48","v":5801.7329999999993},{"$f":"AC41+AC48","v":5501.4859999999999},{"$f":"AD41+AD48","v":5620.7849999999999},{"$f":"AE41+AE48","v":5954.6679999999997},{"$f":"AE49","v":5954.6679999999997},{"$f":"AG41+AG48","v":5904.1840000000011},{"$f":"AH41+AH48","v":6135.9490000000005},{"$f":"AI41+AI48","v":5666.4610000000002},{"$f":"AJ41+AJ48","v":5713.6790000000001},{"$f":"AJ49","v":5713.6790000000001},{"$f":"AL41+AL48","v":5340.9010000000007},{"$f":"AM41+AM48","v":5460.4170000000004},{"$f":"AN41+AN48","v":5638.7499999999991},{"$f":"AO41+AO48","v":5821.598},{"$f":"AO49","v":5821.598},{"$f":"AQ41+AQ48","v":5887.5959999999995},{"$f":"AR41+AR48","v":6063.7449999999999},{"$f":"AS41+AS48","v":5961.9600000000009},{"$f":"AT41+AT48","v":7255.8189999999995},{"$f":"AT49","v":7255.8189999999995},{"$f":"AV41+AV48","v":7945.0690000000004},{"$f":"AW41+AW48","v":8006.9310000000005},{"$f":"AX41+AX48","v":7947.0290000000005},{"$f":"AY41+AY48","v":8141.1480000000001},{"$f":"AY49","v":8141.1480000000001},{"$f":"BA41+BA48","v":8310.0240000000013},{"$f":"BB41+BB48","v":8339.7159999999985},{"$f":"BC41+BC48","v":8492.7580000000016},{"$f":"BD41+BD48","v":8991.1829999999991},{"$f":"BD49","v":8991.1829999999991},{"$f":"BF41+BF48","v":9132.7080000000005},{"$f":"BG41+BG48","v":9365.8319999999985},{"$f":"BH41+BH48","v":9630.0130000000008},{"$f":"BI41+BI48","v":9974.523000000001},{"$f":"BI49","v":9974.523000000001},{"$f":"BK41+BK48","v":10165.710999999999},{"$f":"BL41+BL48","v":10280.368999999999},{"$f":"BM41+BM48","v":10234.155999999999},{"$f":"BN41+BN48","v":10380.297999999999},{"$f":"BN49","v":10380.297999999999},{"$f":"BP41+BP48","v":10245.882000000001},{"$f":"BQ41+BQ48","v":10372.199000000001},{"$f":"BR41+BR48","v":10493.68},{"$f":"BS41+BS48","v":10609.899043159021},{"$f":"BS49","v":10609.899043159021},{"$f":"BU41+BU48","v":10040.564317434237},{"$f":"BV41+BV48","v":10247.120234381071},{"$f":"BW41+BW48","v":10415.922772179092},{"$f":"BX41+BX48","v":10660.649461448418},{"$f":"BX49","v":10660.649461448418},{"$f":"BZ41+BZ48","v":10838.941671450455},{"$f":"CA41+CA48","v":11166.460351068195},{"$f":"CB41+CB48","v":11423.536271263341},{"$f":"CC41+CC48","v":11754.970579430761},{"$f":"CC49","v":11754.970579430761},{"$f":"CE41+CE48","v":12016.756695438151},{"$f":"CF41+CF48","v":12369.932305813572},{"$f":"CG41+CG48","v":12647.791009563342},{"$f":"CH41+CH48","v":13023.649637865972},{"$f":"CH49","v":13023.649637865972},{"$f":"CJ41+CJ48","v":13304.637521014911},{"$f":"CK41+CK48","v":13676.339635772143},{"$f":"CL41+CL48","v":13965.829974536804},{"$f":"CM41+CM48","v":14359.005092417683},{"$f":"CM49","v":14359.005092417683}]
[null,null,null,null,null,{"$f":"IF(F49=F22,\" \",F49-F22)","v":768.91399999999987},768.91399999999987,826.2030000000002,907.77699999999993,863.66899999999987,814.17200000000014,814.17200000000014,853.04700000000014," "," "," "," "," "," "," "," ",null,{"$f":"IF(W49=W22,\" \",W49-W22)","v":" "}," "," "," "," "," "," "," ",1.0999999999512511E-2,1.0999999999512511E-2," "," "," "," "," ",{"$f":"IF(AL49=AL22,\" \",AL49-AL22)","v":" "},{"$f":"IF(AM49=AM22,\" \",AM49-AM22)","v":" "},{"$f":"IF(AN49=AN22,\" \",AN49-AN22)","v":" "},{"$f":"IF(AO49=AO22,\" \",AO49-AO22)","v":" "}," "," "," "," "," "," ",null," "," "," "," "," "," ",null," "," "," "," "," "," "," "," "," "," "," "," "," "," "," "," "," "," "," "," "," "," "," "," "," "," "," "," "," "," "," "," "," "," "," "," "," "]
["Net Cash Per Share",null,null,null,null,null,null,null,null,null,null,null,null,null,null,null,null,null,null,null,null,null,null,null,null,null,null,null,null,null,null,null,null,null,null,null,null,null,null,3.049825331463798,null,null,3.8529337097171434,4.3828182260664033,4.1489726574766514,1.7002618613018623,null,2.2131776323817927,2.1585589741570224,2.0308957354939703,1.8642510690084249,null,2.2008253471543124,2.2044955360669984,2.4301150296446448,2.8342333483783611,null,2.5245414466663201,2.9866727033749059,3.4966633784019039,4.0653166160181939,null,4.2369368304977941,4.6056521077342776,3.2319937755300523,3.2762942150183334,null,4.3979895345634814,4.8030835604623761,5.1561840921130111,5.153394969474915,null,4.1116908881997949,4.58412110680566,4.8061760223069943,5.1030404624345067,null,5.5268946021048739,6.270749177744702,6.661868455999473,7.1072021798753573,null,7.7195909152917634,8.582724907751027,9.039665608230699,9.5640194712216857,null,10.226188518123513,11.156784275249993,11.643954885039214,12.200286917760888]
[]
[]
["Common/Preferred Stock Change, net",null,null,null,null,null,null,{"$f":"H42-F42","v":0},{"$f":"I42-H42","v":0},{"$f":"J42-I42","v":0},{"$f":"K42-J42","v":0},{"$f":"SUM(H54:K54)","v":0},{"$f":"M42-K42","v":0},{"$f":"N42-M42","v":0},{"$f":"O42-N42","v":0},{"$f":"P42-O42","v":0},{"$f":"SUM(M54:P54)","v":0},{"$f":"R42-P42","v":0},{"$f":"S42-R42","v":0},{"$f":"T42-S42","v":0},{"$f":"U42-T42","v":0},{"$f":"SUM(R54:U54)","v":0},{"$f":"W42-U42","v":0},{"$f":"X42-W42","v":2.4000000000000909E-2},{"$f":"Y42-X42","v":0},{"$f":"Z42-Y42","v":0},{"$f":"SUM(W54:Z54)","v":2.4000000000000909E-2},{"$f":"AB42-Z42","v":0.30799999999999983},{"$f":"AC42-AB42","v":0},{"$f":"AD42-AC42","v":-29.852},{"$f":"AE42-AD42","v":0},{"$f":"SUM(AB54:AE54)","v":-29.544},{"$f":"AG42-AE42","v":4.9999999999999975E-3},{"$f":"AH42-AG42","v":0},{"$f":"AI42-AH42","v":0},{"$f":"AJ42-AI42","v":0},{"$f":"SUM(AG54:AJ54)","v":4.9999999999999975E-3},{"$f":"AL42-AJ42","v":0},{"$f":"AM42-AL42","v":0},{"$f":"AN42-AM42","v":0},{"$f":"AO42-AN42","v":0},{"$f":"SUM(AL54:AO54)","v":0},{"$f":"AQ42-AO42","v":0},{"$f":"AR42-AQ42","v":0},{"$f":"AS42-AR42","v":0},{"$f":"AT42-AS42","v":0},{"$f":"SUM(AQ54:AT54)","v":0},{"$f":"AV42-AT42","v":0},{"$f":"AW42-AV42","v":0},{"$f":"AX42-AW42","v":0},{"$f":"AY42-AX42","v":0},{"$f":"SUM(AV54:AY54)","v":0},{"$f":"BA42-AY42","v":0},{"$f":"BB42-BA42","v":0},{"$f":"BC42-BB42","v":0},{"$f":"BD42-BC42","v":0},{"$f":"SUM(BA54:BD54)","v":0},{"$f":"BF42-BD42","v":0},{"$f":"BG42-BF42","v":0},{"$f":"BH42-BG42","v":0},{"$f":"BI42-BH42","v":0},{"$f":"SUM(BF54:BI54)","v":0},{"$f":"BK42-BI42","v":0},{"$f":"BL42-BK42","v":0},{"$f":"BM42-BL42","v":0},{"$f":"BN42-BM42","v":0},{"$f":"SUM(BK54:BN54)","v":0},{"$f":"BP42-BN42","v":0},{"$f":"BQ42-BP42","v":0},{"$f":"BR42-BQ42","v":0},{"$f":"BS42-BR42","v":0},{"$f":"SUM(BP54:BS54)","v":0},{"$f":"BU42-BS42","v":0},{"$f":"BV42-BU42","v":0},{"$f":"BW42-BV42","v":0},{"$f":"BX42-BW42","v":0},{"$f":"SUM(BU54:BX54)","v":0},{"$f":"BZ42-BX42","v":0},{"$f":"CA42-BZ42","v":0},{"$f":"CB42-CA42","v":0},{"$f":"CC42-CB42","v":0},{"$f":"SUM(BZ54:CC54)","v":0},{"$f":"CE42-CC42","v":0},{"$f":"CF42-CE42","v":0},{"$f":"CG42-CF42","v":0},{"$f":"CH42-CG42","v":0},{"$f":"SUM(CE54:CH54)","v":0},{"$f":"CJ42-CH42","v":0},{"$f":"CK42-CJ42","v":0},{"$f":"CL42-CK42","v":0},{"$f":"CM42-CL42","v":0},{"$f":"SUM(CJ54:CM54)","v":0}]
["Additional Paid-in Capital, net",null,null,null,null,null,null,{"$f":"H43-F43+H45-F45+H93","v":30.810999999999922},{"$f":"I43-H43+I45-H45+I93","v":73.056999999999789},{"$f":"J43-I43+J45-I45+J93","v":-91.298999999999978},{"$f":"K43-J43+K45-J45+K93","v":-126.923},{"$f":"SUM(H55:K55)","v":-114.35400000000027},{"$f":"M43-K43+M45-K45+M93","v":-28.511999999999944},{"$f":"N43-M43+N45-M45+N93","v":45.02599999999984},{"$f":"O43-N43+O45-N45+O93","v":-5.1429999999998017},{"$f":"P43-O43+P45-O45+P93","v":157.53499999999985},{"$f":"SUM(M55:P55)","v":168.90599999999995},{"$f":"R43-P43+R45-P45+R93","v":-9.943000000000211},{"$f":"S43-R43+S45-R45+S93","v":-51.652999999999793},{"$f":"T43-S43+T45-S45+T93","v":-141.84400000000005},{"$f":"U43-T43+U45-T45+U93","v":88.998000000000047},{"$f":"SUM(R55:U55)","v":-114.44200000000001},{"$f":"W43-U43+W45-U45+W93","v":53.171999999999798},{"$f":"X43-W43+X45-W45+X93","v":91.826000000000249},{"$f":"Y43-X43+Y45-X45+Y93","v":68.66599999999994},{"$f":"Z43-Y43+Z45-Y45+Z93","v":-373.97300000000018},{"$f":"SUM(W55:Z55)","v":-160.3090000000002},{"$f":"AB43-Z43+AB45-Z45+AB93","v":3381.13},{"$f":"AC43-AB43+AC45-AB45+AC93","v":64.616000000000042},{"$f":"AD43-AC43+AD45-AC45+AD93","v":111.30499999999995},{"$f":"AE43-AD43+AE45-AD45+AE93","v":185.81799999999976},{"$f":"SUM(AB55:AE55)","v":3742.8689999999997},{"$f":"AG43-AE43+AG45-AE45+AG93","v":-38.327999999999577},{"$f":"AH43-AG43+AH45-AG45+AH93","v":87.692999999999927},{"$f":"AI43-AH43+AI45-AH45+AI93","v":62.325999999999908},{"$f":"AJ43-AI43+AJ45-AI45+AJ93","v":18.903999999999996},{"$f":"SUM(AG55:AJ55)","v":130.59500000000025},{"$f":"AL43-AJ43+AL45-AJ45+AL93","v":96.544999999999845},{"$f":"AM43-AL43+AM45-AL45+AM93","v":166.67200000000003},{"$f":"AN43-AM43+AN45-AM45+AN93","v":259.58999999999992},{"$f":"AO43-AN43+AO45-AN45+AO93","v":59.192000000000007},{"$f":"SUM(AL55:AO55)","v":581.9989999999998},{"$f":"AQ43-AO43+AQ45-AO45+AQ93","v":76.511999999999802},{"$f":"AR43-AQ43+AR45-AQ45+AR93","v":61.595000000000255},{"$f":"AS43-AR43+AS45-AR45+AS93","v":113.05299999999988},{"$f":"AT43-AS43+AT45-AS45+AT93","v":198.91799999999967},{"$f":"SUM(AQ55:AT55)","v":450.07799999999963},{"$f":"AV43-AT43+AV45-AT45+AV93","v":175.47200000000069},{"$f":"AW43-AV43+AW45-AV45+AW93","v":103.42000000000007},{"$f":"AX43-AW43+AX45-AW45+AX93","v":155.75999999999976},{"$f":"AY43-AX43+AY45-AX45+AY93","v":59.993999999999801},{"$f":"SUM(AV55:AY55)","v":494.6460000000003},{"$f":"BA43-AY43+BA45-AY45+BA93","v":240.53600000000051},{"$f":"BB43-BA43+BB45-BA45+BB93","v":217.01799999999923},{"$f":"BC43-BB43+BC45-BB45+BC93","v":116.73500000000058},{"$f":"BD43-BC43+BD45-BC45+BD93","v":101.19399999999996},{"$f":"SUM(BA55:BD55)","v":675.48300000000029},{"$f":"BF43-BD43+BF45-BD45+BF93","v":271.05599999999959},{"$f":"BG43-BF43+BG45-BF45+BG93","v":141.017},{"$f":"BH43-BG43+BH45-BG45+BH93","v":269.10600000000034},{"$f":"BI43-BH43+BI45-BH45+BI93","v":97.659999999999854},{"$f":"SUM(BF55:BI55)","v":778.83899999999971},{"$f":"BK43-BI43+BK45-BI45+BK93","v":425.27199999999993},{"$f":"BL43-BK43+BL45-BK45+BL93","v":259.63900000000012},{"$f":"BM43-BL43+BM45-BL45+BM93","v":225.19900000000007},{"$f":"BN43-BM43+BN45-BM45+BN93","v":210.98999999999978},{"$f":"SUM(BK55:BN55)","v":1121.0999999999999},{"$f":"BP43-BN43+BP45-BN45+BP93","v":333.02300000000014},{"$f":"BQ43-BP43+BQ45-BP45+BQ93","v":130.55199999999968},{"$f":"BR43-BQ43+BR45-BQ45+BR93","v":209.26100000000042},{"$f":"BS43-BR43+BS45-BR45+BS93","v":176.33634475417992},{"$f":"SUM(BP55:BS55)","v":849.17234475418013},{"$f":"BU43-BS43+BU45-BS45+BU93","v":130.97314975151895},{"$f":"BV43-BU43+BV45-BU45+BV93","v":138.33434518347514},{"$f":"BW43-BV43+BW45-BV45+BW93","v":145.69554061543136},{"$f":"BX43-BW43+BX45-BW45+BX93","v":153.05673604738757},{"$f":"SUM(BU55:BX55)","v":568.0597715978131},{"$f":"BZ43-BX43+BZ45-BX45+BZ93","v":133.09506709082422},{"$f":"CA43-BZ43+CA45-BZ45+CA93","v":140.64916409908079},{"$f":"CB43-CA43+CB45-CA45+CB93","v":148.20326110733714},{"$f":"CC43-CB43+CC45-CB45+CC93","v":155.757358115594},{"$f":"SUM(BZ55:CC55)","v":577.70485041283609},{"$f":"CE43-CC43+CE45-CC45+CE93","v":135.36037337159541},{"$f":"CF43-CE43+CF45-CE45+CF93","v":143.1204073144678},{"$f":"CG43-CF43+CG45-CF45+CG93","v":150.88044125733995},{"$f":"CH43-CG43+CH45-CG45+CH93","v":158.64047520021239},{"$f":"SUM(CE55:CH55)","v":588.0016971436155},{"$f":"CJ43-CH43+CJ45-CH45+CJ93","v":137.7486614946215},{"$f":"CK43-CJ43+CK45-CJ45+CK93","v":145.72581253958612},{"$f":"CL43-CK43+CL45-CK45+CL93","v":153.70296358455204},{"$f":"CM43-CL43+CM45-CL45+CM93","v":161.6801146295175},{"$f":"SUM(CJ55:CM55)","v":598.85755224827722}]
["Shares Issued, net",null,null,null,null,null,null,null,null,null,null,{"$f":"SUM(H56:K56)","v":0},null,null,null,null,{"$f":"SUM(M56:P56)","v":0},null,null,null,null,{"$f":"SUM(R56:U56)","v":0},-102.53285400000004,2.5944250000000011,2.5380030000000033,-5.3985739999999396,{"$f":"SUM(W56:Z56)","v":-102.79899999999998},119.59012699999991,-4.9400379999999817,16.225897000000025,9.9083200000000033,{"$f":"SUM(AB56:AE56)","v":140.78430599999996},8.2336800000000956,2.38631999999975,12.595680000000222,-1.5036800000001218,23.917999999999999,-3.1411179999999561,13.831144000000059,3.4018989999999789,7.9540999999949236E-2,{"$f":"SUM(AL56:AO56)","v":14.171466000000031},5.059374000000048,1.3349999999999458,4.1349999999999909,3.3229999999999613,{"$f":"SUM(AQ56:AT56)","v":13.852373999999946},4.8250000000000002,1.7860000000000582,2.5,4.9000000000000004,{"$f":"SUM(AV56:AY56)","v":14.011000000000058},5.81899999999996,2.6420000000000066,4.671000000000026,4.9000000000000004,{"$f":"SUM(BA56:BD56)","v":18.031999999999993},1.3,2.4000000000000226,1.9,4.9000000000000004,{"$f":"SUM(BF56:BI56)","v":10.500000000000023},4.9540000000000193,5.9070000000000054,5.7539999999999623,2.3550000000000413,{"$f":"SUM(BK56:BN56)","v":18.970000000000027},6.7399999999999523,1.3460000000000378,2.416518000000019,3.5,{"$f":"SUM(BP56:BS56)","v":14.002518000000009},3.5,3.5,3.5,3.5,{"$f":"SUM(BU56:BX56)","v":14},3.5,3.5,3.5,3.5,{"$f":"SUM(BZ56:CC56)","v":14},3.5,3.5,3.5,3.5,{"$f":"SUM(CE56:CH56)","v":14},3.5,3.5,3.5,3.5,{"$f":"SUM(CJ56:CM56)","v":14}]
["         Average price",null,null,null,null,null,{"$f":"IF(ISERROR((G54+G55)/G56),\"-\",(G54+G55)/G56)","v":"-"},"-","-","-","-","-","-","-","-","-","-","-","-","-","-","-",-0.51858499910672318,35.402834924887102,27.0551295644646,69.272552344379164,1.5592077743946948,28.275227101314162,-13.080061327463531,5.0199381889333958,18.753734235470766,26.375986823417669,-4.6544194090612132,36.748214824503471,4.9482044637525568,-12.571823792295213,5.4603227694623406,-30.73587175012247,12.050485484064032,76.307380083888887,744.16967350219113,41.068369355717927,15.122819542496577,46.138576779028284,27.340507859734011,59.860969003912722,32.491037276354319,36.367253886010502,57.905935050390092,62.303999999999903,12.243673469387714,35.30411819284835,41.336312081113967,82.14155942467778,24.991436523228415,20.65183673469387,{"$f":"IF(ISERROR((BE54+BE55)/BE56),\"-\",(BE54+BE55)/BE56)","v":37.46023735581192},208.50461538461505,58.75708333333278,141.63473684210544,19.930612244897929,{"$f":"IF(ISERROR((BJ54+BJ55)/BJ56),\"-\",(BJ54+BJ55)/BJ56)","v":74.17514285714266},85.84416633023784,43.954460809209394,39.137817170664157,{"$f":"IF(ISERROR((BN54+BN55)/BN56),\"-\",(BN54+BN55)/BN56)","v":89.592356687896427},{"$f":"IF(ISERROR((BO54+BO55)/BO56),\"-\",(BO54+BO55)/BO56)","v":59.098576700052625},49.409940652819358,96.99257057949184,86.596085773000155,50.381812786908547,60.644260179074905,37.420899929005415,39.524098623850037,41.627297318694673,43.730496013539309,40.575697971272362,38.027162025949778,40.185475456880226,42.343788887810611,44.502102318741144,41.264632172345436,38.674392391884403,40.891544946990798,43.108697502097129,45.325850057203539,42.000121224543967,39.356760427034715,41.635946439881749,43.915132452729154,46.19431846557643,42.775539446305515]
["         Average Share Price for FY",null,25.993100000000002,18.78453,19.844460000000002,14.886832999999999,19.87133,17.249670000000002,19.360390000000002,12.800772,11.497992999999999,15.202843999999999,13.411862999999999,16.500710000000002,17.099080000000001,20.680310000000002,16.951330000000002,19.33989,20.467500000000001,22.044530000000002,26.617180000000001,22.132480000000001,30.433200000000003,31.405470000000001,29.038150000000002,30.442700000000002,30.329880000000003,37.994330000000005,35.340780000000002,30.138830000000002,37.910610000000005,35.346137500000005,39.714410000000001,41.655030000000004,41.312310000000004,44.246250000000003,41.731999999999999,38.333710000000004,40.581750000000007,42.088150000000006,31.052730000000004,38.014085000000001,31.755686175375008,32.474555521170061,33.209698271780553,33.961482816407987,32.850355696183399,34.816038627775853,35.692097199747259,36.5901995955359,37.510900492858568,{"$f":"AVERAGE(AV58:AY58)","v":36.152308978979391},38.454768526510122,39.422386639558432,40.414352443376323,41.43127858673278,{"$f":"AVERAGE(BA58:BD58)","v":39.930696549044413},42.473793134171444,43.54253995391003,44.638179115500293,45.761387297494068,{"$f":"AVERAGE(BF58:BI58)","v":44.10397487526896},46.912858205367264,48.093302999959818,49.303450736696306,50.544048815858424,{"$f":"AVERAGE(BK58:BN58)","v":48.713415189470453},51.815863444187464,53.119680108101832,54.456304058821942,55.826560809702045,{"$f":"AVERAGE(BP58:BS58)","v":53.804602105203323},57.231296646076174,58.671379147933067,60.14769772574293,61.661164169766934,{"$f":"AVERAGE(BU58:BX58)","v":59.427884422379776},63.212713213188692,64.803303109415552,66.433916223906223,68.105559640890263,{"$f":"AVERAGE(BZ58:CC58)","v":65.638873046850179},69.819265785354162,71.576093060678133,73.377126502317438,75.223478447931996,{"$f":"AVERAGE(CE58:CH58)","v":72.498990949070432},77.116289224378079,79.056727851986494,81.045992766562108,83.085312559550729,{"$f":"AVERAGE(CJ58:CM58)","v":80.076080600619349}]
[null,null,null,null,null,null,null,null,null,null,null,null,null,null,null,null,null,null,null,null,null,null,null,null,null,null,null,null,null,null,null,{"$f":"AF57/AF58","v":0.74621977644424842},null,null,null,null,{"$f":"AK57/AK58","v":0.13084258529335618},null,null,null,null,{"$f":"AP57/AP58","v":1.0803461231729745},null,null,null,null,{"$f":"AU57/AU58","v":0.98906196258109846},null,null,null,null,{"$f":"AZ57/AZ58","v":0.97653840625714339},null,null,null,null,{"$f":"BE57/BE58","v":0.93813132735618121},null,null,null,null,{"$f":"BJ57/BJ58","v":1.6818244402441813},null,null,null,null,{"$f":"BO57/BO58","v":1.2131889433370493},null,null,null,null,{"$f":"BT57/BT58","v":1.127120316966532},null,null,null,null,{"$f":"BY57/BY58","v":0.68277204153665072},null,null,null,null,{"$f":"CD57/CD58","v":0.62866149671540728},null,null,null,null,{"$f":"CI57/CI58","v":0.57932007983460743},null,null,null,null,{"$f":"CN57/CN58","v":0.53418622796549142}]
["Additional Paid-in Capital -- Q Beginning",null,null,{"$f":"C66","v":0},{"$f":"D66","v":0},{"$f":"E66","v":0},595.80999999999995,{"$f":"F66","v":595.80999999999995},{"$f":"H66","v":620.04200000000003},{"$f":"I66","v":695.78099999999995},{"$f":"J66","v":706.95499999999993},{"$f":"G43","v":595.80999999999995},{"$f":"K66","v":710.27300000000002},{"$f":"M66","v":718.28599999999994},{"$f":"N66","v":746.00800000000004},{"$f":"O66","v":764.32299999999998},{"$f":"L43","v":710.27300000000002},{"$f":"P66","v":874.12599999999998},{"$f":"R66","v":901.83100000000002},{"$f":"S66","v":953.19500000000005},{"$f":"T66","v":1006.431},{"$f":"Q43","v":874.12599999999998},{"$f":"U66","v":1164.643},{"$f":"W66","v":1228.9269999999999},{"$f":"X66","v":1264.712},{"$f":"Y66","v":1290.905},{"$f":"V43","v":1164.643},{"$f":"Z66","v":1321.146},{"$f":"AB66","v":2407.6849999999999},{"$f":"AC66","v":2388.203},{"$f":"AD66","v":2437.694},{"$f":"AA43","v":1321.146},{"$f":"AE66","v":2508.9609999999998},{"$f":"AG66","v":2429.2510000000002},{"$f":"AH66","v":2452.6390000000001},{"$f":"AI66","v":2432.489},{"$f":"AG60","v":2508.9609999999998},{"$f":"AJ66","v":2340.9690000000001},{"$f":"AL66","v":2317.5819999999999},{"$f":"AM66","v":2308.0540000000001},{"$f":"AN66","v":2369.6889999999999},{"$f":"AL60","v":2340.9690000000001},{"$f":"AO66","v":2396.819},{"$f":"AQ66","v":2352.3829999999998},{"$f":"AR66","v":2361.2240000000002},{"$f":"AS66","v":2303.3420000000001},{"$f":"AQ60","v":2396.819},{"$f":"AT66","v":2363.6439999999998},{"$f":"AV66","v":2339.9650000000001},{"$f":"AW66","v":2376.2020000000002},{"$f":"AX66","v":2425.0830000000001},{"$f":"AU43","v":2363.6439999999998},{"$f":"AZ66","v":2458.2779999999998},{"$f":"BA66","v":2529.7890000000002},{"$f":"BB66","v":2611.9969999999998},{"$f":"BC66","v":2680.4070000000002},{"$f":"AZ43","v":2458.2779999999998},{"$f":"BE66","v":2753.8960000000006},{"$f":"BF66","v":2821.712},{"$f":"BG66","v":2886.953},{"$f":"BH66","v":2961.799},{"$f":"BE43","v":2753.8960000000002},{"$f":"BJ66","v":3038.6649999999995},{"$f":"BK66","v":3116.471},{"$f":"BL66","v":3189.8829999999998},{"$f":"BM66","v":3266.17},{"$f":"BJ43","v":3038.665},{"$f":"BO66","v":3392.6960000000008},{"$f":"BP66","v":3475.1860000000001},{"$f":"BQ66","v":3562.6819999999998},{"$f":"BR66","v":3675.6289999999999},{"$f":"BO43","v":3392.6959999999999},{"$f":"BS66","v":3801.96534475418},{"$f":"BU66","v":3882.9384945056991},{"$f":"BV66","v":3971.2728396891744},{"$f":"BW66","v":4066.9683803046055},{"$f":"BT43","v":3801.96534475418},{"$f":"BX66","v":4170.0251163519933},{"$f":"BZ66","v":4253.1201834428175},{"$f":"CA66","v":4343.7693475418982},{"$f":"CB66","v":4441.9726086492356},{"$f":"BY43","v":4170.0251163519933},{"$f":"CC66","v":4547.7299667648294},{"$f":"CE66","v":4633.0903401364249},{"$f":"CF66","v":4726.210747450893},{"$f":"CG66","v":4827.0911887082329},{"$f":"CD43","v":4547.7299667648294},{"$f":"CH66","v":4935.7316639084456},{"$f":"CJ66","v":5023.4803254030667},{"$f":"CK66","v":5119.2061379426532},{"$f":"CL66","v":5222.9091015272052},{"$f":"CI43","v":4935.7316639084456}]
["Issuance of Common Stock for Comp",null,null,null,null,null,null,null,null,null,null,null,null,null,null,null,null,null,null,null,null,null,null,null,null,null,null,null,null,null,-385.61799999999999,{"$f":"SUM(AB61:AE61)","v":-385.61799999999999},-75,-75,-75,-73.77600000000001,{"$f":"SUM(AG61:AJ61)","v":-298.77600000000001},-66.400000000000006,-67.2,-59,-14.384,{"$f":"SUM(AL61:AO61)","v":-206.98400000000004},-92.8,-32.5,-97.5,-80.887999999999991,{"$f":"SUM(AQ61:AT61)","v":-303.68799999999999},0,0,null,null,{"$f":"SUM(AV61:AY61)","v":0},null,null,null,null,{"$f":"SUM(BA61:BD61)","v":0},null,null,null,null,{"$f":"SUM(BF61:BI61)","v":0},null,null,null,null,{"$f":"SUM(BK61:BN61)","v":0},null,null,null,null,{"$f":"SUM(BP61:BS61)","v":0},null,null,null,null,{"$f":"SUM(BU61:BX61)","v":0},null,null,null,null,{"$f":"SUM(BZ61:CC61)","v":0},null,null,null,null,{"$f":"SUM(CE61:CH61)","v":0},null,null,null,null,{"$f":"SUM(CJ61:CM61)","v":0}]
["Issuance of Common Stock for Acq",null,null,null,null,null,null,null,null,null,null,null,null,null,null,null,null,null,null,null,null,null,null,null,null,null,null,null,null,null,null,{"$f":"SUM(AB62:AE62)","v":0},null,null,null,null,{"$f":"SUM(AG62:AJ62)","v":0},null,null,null,null,{"$f":"SUM(AL62:AO62)","v":0},null,null,null,null,{"$f":"SUM(AQ62:AT62)","v":0},null,null,null,null,{"$f":"SUM(AV62:AY62)","v":0},null,null,null,null,{"$f":"SUM(BA62:BD62)","v":0},null,null,null,null,{"$f":"SUM(BF62:BI62)","v":0},null,null,null,null,{"$f":"SUM(BK62:BN62)","v":0},null,null,null,null,{"$f":"SUM(BP62:BS62)","v":0},null,null,null,null,{"$f":"SUM(BU62:BX62)","v":0},null,null,null,null,{"$f":"SUM(BZ62:CC62)","v":0},null,null,null,null,{"$f":"SUM(CE62:CH62)","v":0},null,null,null,null,{"$f":"SUM(CJ62:CM62)","v":0}]
["Tax Benefit from Employee Stock Plans",null,null,null,null,null,null,null,null,null,null,null,null,null,null,null,null,null,null,null,null,null,null,null,null,null,null,-23.42,-22.731999999999999,-35.435000000000002,224.70499999999998,{"$f":"SUM(AB63:AE63)","v":143.11799999999999},15.935,36.186,23.756999999999998,-8.9120000000000044,{"$f":"SUM(AG63:AJ63)","v":66.965999999999994},0,9.3290000000000006,74.411000000000001,6.6199999999999974,{"$f":"SUM(AL63:AO63)","v":90.360000000000014},2.6269999999999998,0,0,41.753999999999998,{"$f":"SUM(AQ63:AT63)","v":44.381},28.551000000000002,1.7070000000000007,-1.6869999999999994,-4.1100000000000012,{"$f":"SUM(AV63:AY63)","v":24.461000000000006},0,0,-0.318,-0.85299999999999998,{"$f":"SUM(BA63:BD63)","v":-1.171},-2.67,-2.6840000000000002,-1.1719999999999997,-3.4770000000000003,{"$f":"SUM(BF63:BI63)","v":-10.003},0,0,0,-40.619,{"$f":"SUM(BK63:BN63)","v":-40.619},0,-4.875,-27.077999999999999,27.077999999999999,{"$f":"SUM(BP63:BS63)","v":-4.875},0,0,0,0,{"$f":"SUM(BU63:BX63)","v":0},0,0,0,0,{"$f":"SUM(BZ63:CC63)","v":0},0,0,0,0,{"$f":"SUM(CE63:CH63)","v":0},0,0,0,0,{"$f":"SUM(CJ63:CM63)","v":0}]
["Stock-Based Compensation",null,null,null,null,null,null,null,null,null,null,null,null,null,null,null,null,null,null,null,null,null,null,null,null,null,null,46.481999999999999,41.88300000000001,42.657999999999987,39.512,{"$f":"SUM(AB64:AE64)","v":170.535},31.905999999999999,39.615000000000002,38.569000000000003,39.896999999999998,{"$f":"SUM(AG64:AJ64)","v":149.98699999999999},43.033999999999999,48.387000000000008,46.191999999999993,34.86099999999999,{"$f":"SUM(AL64:AO64)","v":172.47399999999999},45.618000000000002,40.958999999999996,39.653999999999996,41.349999999999987,{"$f":"SUM(AQ64:AT64)","v":167.58099999999999},64.48,60.096999999999994,47.224999999999994,23.703000000000003,{"$f":"SUM(AV64:AY64)","v":195.505},70.992000000000004,74.858999999999995,65.117999999999995,75.134000000000015,{"$f":"SUM(BA64:BD64)","v":286.10300000000001},71.581999999999994,71.397999999999996,79.669000000000011,75.853000000000009,{"$f":"SUM(BF64:BI64)","v":298.50200000000001},84.195999999999998,78.87,81.024000000000001,84.89700000000002,{"$f":"SUM(BK64:BN64)","v":328.98700000000002},82.787999999999997,83.01,82.98599999999999,99.25834475418003,{"$f":"SUM(BP64:BS64)","v":348.04234475418002},80.973149751518832,88.334345183475079,95.695540615431327,103.05673604738763,{"$f":"SUM(BU64:BX64)","v":368.05977159781287},83.095067090823918,90.649164099080636,98.203261107337369,105.75735811559406,{"$f":"SUM(BZ64:CC64)","v":377.70485041283598},85.360373371595614,93.12040731446794,100.88044125734029,108.64047520021262,{"$f":"SUM(CE64:CH64)","v":388.00169714361647},87.748661494620947,95.725812539586499,103.70296358455204,111.68011462951762,{"$f":"SUM(CJ64:CM64)","v":398.8575522482771}]
["Other Items",null,null,null,null,null,null,null,null,null,null,null,null,null,null,null,null,null,null,null,null,null,null,null,null,null,null,{"$f":"AB66-SUM(AB60:AB64)","v":1063.4770000000001},{"$f":"AC66-SUM(AC60:AC64)","v":-38.632999999999811},{"$f":"AD66-SUM(AD60:AD64)","v":42.268000000000029},{"$f":"AE66-SUM(AE60:AE64)","v":192.66799999999967},{"$f":"SUM(AB65:AE65)","v":1259.78},{"$f":"AG66-SUM(AG60:AG64)","v":-52.550999999999476},{"$f":"AH66-SUM(AH60:AH64)","v":22.586999999999989},{"$f":"AI66-SUM(AI60:AI64)","v":-7.4760000000001128},{"$f":"AJ66-SUM(AJ60:AJ64)","v":-48.729000000000269},{"$f":"SUM(AG65:AJ65)","v":-86.168999999999869},{"$f":"AL66-SUM(AL60:AL64)","v":-2.1000000000185537E-2},{"$f":"AM66-SUM(AM60:AM64)","v":-4.400000000032378E-2},{"$f":"AN66-SUM(AN60:AN64)","v":3.1999999999698048E-2},{"$f":"AO66-SUM(AO60:AO64)","v":3.3000000000356522E-2},{"$f":"SUM(AL65:AO65)","v":-4.5474735088646412E-13},{"$f":"AQ66-SUM(AQ60:AQ64)","v":0.11900000000014188},{"$f":"AR66-SUM(AR60:AR64)","v":0.38200000000051659},{"$f":"AS66-SUM(AS60:AS64)","v":-3.6000000000058208E-2},{"$f":"AT66-SUM(AT60:AT64)","v":58.085999999999785},{"$f":"SUM(AQ65:AT65)","v":58.551000000000386},{"$f":"AV66-SUM(AV60:AV64)","v":-116.70999999999958},{"$f":"AW66-SUM(AW60:AW64)","v":-25.567000000000007},{"$f":"AX66-SUM(AX60:AX64)","v":3.3429999999998472},{"$f":"AY66-SUM(AY60:AY64)","v":13.601999999999862},{"$f":"SUM(AV65:AY65)","v":-125.33199999999988},{"$f":"BA66-SUM(BA60:BA64)","v":0.51900000000023283},{"$f":"BB66-SUM(BB60:BB64)","v":7.3489999999997053},{"$f":"BC66-SUM(BC60:BC64)","v":3.6100000000005821},{"$f":"BD66-SUM(BD60:BD64)","v":-0.79199999999991633},{"$f":"SUM(BA65:BD65)","v":10.686000000000604},{"$f":"BF66-SUM(BF60:BF64)","v":-1.0960000000004584},{"$f":"BG66-SUM(BG60:BG64)","v":-3.4729999999999563},{"$f":"BH66-SUM(BH60:BH64)","v":-3.6509999999998399},{"$f":"BI66-SUM(BI60:BI64)","v":4.4899999999997817},{"$f":"SUM(BF65:BI65)","v":-3.7300000000004729},{"$f":"BK66-SUM(BK60:BK64)","v":-6.3899999999994179},{"$f":"BL66-SUM(BL60:BL64)","v":-5.4580000000000837},{"$f":"BM66-SUM(BM60:BM64)","v":-4.7369999999996253},{"$f":"BN66-SUM(BN60:BN64)","v":82.248000000000047},{"$f":"SUM(BK65:BN65)","v":65.66300000000092},{"$f":"BP66-SUM(BP60:BP64)","v":-0.29800000000068394},{"$f":"BQ66-SUM(BQ60:BQ64)","v":9.3609999999994216},{"$f":"BR66-SUM(BR60:BR64)","v":57.039000000000215},null,{"$f":"SUM(BP65:BS65)","v":66.101999999998952},null,null,null,null,{"$f":"SUM(BU65:BX65)","v":0},null,null,null,null,{"$f":"SUM(BZ65:CC65)","v":0},null,null,null,null,{"$f":"SUM(CE65:CH65)","v":0},null,null,null,null,{"$f":"SUM(CJ65:CM65)","v":0}]
["Additional Paid-in Capital-- Q End",null,{"$f":"C43","v":0},{"$f":"D43","v":0},{"$f":"E43","v":0},{"$f":"F43","v":595.80999999999995},{"$f":"F66","v":595.80999999999995},{"$f":"H43","v":620.04200000000003},{"$f":"I43","v":695.78099999999995},{"$f":"J43","v":706.95499999999993},{"$f":"K43","v":710.27300000000002},{"$f":"K66","v":710.27300000000002},{"$f":"M43","v":718.28599999999994},746.00800000000004,764.32299999999998,874.12599999999998,874.12599999999998,901.83100000000002,953.19500000000005,1006.431,1164.643,{"$f":"U66","v":1164.643},{"$f":"W43","v":1228.9269999999999},{"$f":"X43","v":1264.712},{"$f":"Y43","v":1290.905},{"$f":"Z43","v":1321.146},{"$f":"Z66","v":1321.146},{"$f":"AB43","v":2407.6849999999999},{"$f":"AC43","v":2388.203},{"$f":"AD43","v":2437.694},{"$f":"AE43","v":2508.9609999999998},{"$f":"AE66","v":2508.9609999999998},{"$f":"AG43","v":2429.2510000000002},{"$f":"AH43","v":2452.6390000000001},{"$f":"AI43","v":2432.489},{"$f":"AJ43","v":2340.9690000000001},{"$f":"AJ66","v":2340.9690000000001},{"$f":"AL43","v":2317.5819999999999},{"$f":"AM43","v":2308.0540000000001},{"$f":"AN43","v":2369.6889999999999},{"$f":"AO43","v":2396.819},{"$f":"AO66","v":2396.819},{"$f":"AQ43","v":2352.3829999999998},{"$f":"AR43","v":2361.2240000000002},{"$f":"AS43","v":2303.3420000000001},{"$f":"AT43","v":2363.6439999999998},{"$f":"SUM(AU60:AU65)","v":2363.6440000000002},{"$f":"AV43","v":2339.9650000000001},{"$f":"AW43","v":2376.2020000000002},{"$f":"AX43","v":2425.0830000000001},{"$f":"AY43","v":2458.2779999999998},{"$f":"SUM(AZ60:AZ65)","v":2458.2779999999998},{"$f":"BA43","v":2529.7890000000002},{"$f":"BB43","v":2611.9969999999998},{"$f":"BC43","v":2680.4070000000002},{"$f":"BD43","v":2753.8960000000002},{"$f":"SUM(BE60:BE65)","v":2753.8960000000006},{"$f":"BF43","v":2821.712},{"$f":"BG43","v":2886.953},{"$f":"BH43","v":2961.799},{"$f":"BI43","v":3038.665},{"$f":"SUM(BJ60:BJ65)","v":3038.6649999999995},{"$f":"BK43","v":3116.471},{"$f":"BL43","v":3189.8829999999998},{"$f":"BM43","v":3266.17},{"$f":"BN43","v":3392.6959999999999},{"$f":"SUM(BO60:BO65)","v":3392.6960000000008},{"$f":"BP43","v":3475.1860000000001},{"$f":"BQ43","v":3562.6819999999998},{"$f":"BR43","v":3675.6289999999999},{"$f":"SUM(BS60:BS65)","v":3801.96534475418},3801.9653447541787,3882.9384945056991,3971.2728396891744,4066.9683803046055,4170.0251163519933,4170.0251163519933,4253.1201834428175,4343.7693475418982,4441.9726086492356,4547.7299667648294,4547.7299667648294,4633.0903401364249,4726.210747450893,4827.0911887082329,4935.7316639084456,4935.7316639084456,5023.4803254030667,5119.2061379426532,5222.9091015272052,5334.5892161567226,5334.5892161567226]
[null,null,null,null,null,null,null,null,null,null,null,{"$f":"IF(ROUND(L66,2)=ROUND(L43,2),\"cool\",\"problem\")","v":"cool"},null,null,null,null,{"$f":"IF(ROUND(Q66,2)=ROUND(Q43,2),\"cool\",\"problem\")","v":"cool"},null,null,null,null,{"$f":"IF(ROUND(V66,2)=ROUND(V43,2),\"cool\",\"problem\")","v":"cool"},null,null,null,{"$f":"IF(ROUND(Z66,2)=ROUND(Z43,2),\"cool\",\"problem\")","v":"cool"},"cool","cool","cool","cool","cool","cool","cool","cool","cool","cool","cool","cool","cool","cool","cool","cool","cool","cool","cool","cool","cool","cool","cool","cool","cool",{"$f":"IF(ROUND(AZ66,2)=ROUND(AZ43,2),\"cool\",\"problem\")","v":"cool"},"cool","cool","cool","cool","cool","cool","cool","cool","cool","cool","cool","cool","cool",{"$f":"IF(ROUND(BN66,2)=ROUND(BN43,2),\"cool\",\"problem\")","v":"cool"},"cool",{"$f":"IF(ROUND(BP66,2)=ROUND(BP43,2),\"cool\",\"problem\")","v":"cool"},"cool","cool","cool","cool","cool","cool","cool","cool","cool","cool","cool","cool","cool","cool","cool","cool","cool","cool","cool","cool","cool",{"$f":"IF(ROUND(CL66,2)=ROUND(CL43,2),\"cool\",\"problem\")","v":"cool"},"cool","cool"]
[]
["Treasury Stock -- Q Beginning",null,null,null,null,null,null,null,null,null,null,null,{"$f":"K73","v":0},{"$f":"M73","v":-1643.8789999999999},{"$f":"N73","v":-1626.575},{"$f":"O73","v":-1650.0329999999999},{"$f":"O73","v":-1650.0329999999999},{"$f":"P73","v":-1602.3009999999999},{"$f":"R73","v":-1639.9490000000001},{"$f":"S73","v":-1742.9659999999999},{"$f":"T73","v":-1938.046},{"$f":"R69","v":-1602.3009999999999},{"$f":"U73","v":-2007.26},{"$f":"W73","v":-2018.3720000000001},{"$f":"X73","v":-1962.3309999999999},{"$f":"Y73","v":-1919.8579999999999},{"$f":"W69","v":-2007.26},{"$f":"Z73","v":-2324.0720000000001},{"$f":"AB73","v":-299.58499999999998},{"$f":"AC73","v":-713.34699999999998},{"$f":"AD73","v":-686.82399999999996},{"$f":"AB69","v":-2324.0720000000001},{"$f":"AE73","v":-623.92399999999998},{"$f":"AG73","v":-789.97699999999998},{"$f":"AH73","v":-887.88499999999999},{"$f":"AI73","v":-1532.634},{"$f":"AG69","v":-623.92399999999998},{"$f":"AJ73","v":-1760.588},{"$f":"AL73","v":-2790.6779999999999},{"$f":"AM73","v":-2764.6390000000001},{"$f":"AN73","v":-2689.2359999999999},{"$f":"AL69","v":-1760.588},{"$f":"AO73","v":-2957.154},{"$f":"AQ73","v":-2836.2190000000001},{"$f":"AR73","v":-2783.4650000000001},{"$f":"AS73","v":-2962.53},{"$f":"AP73","v":-2957.154},{"$f":"AT73","v":-2823.9140000000002},{"$f":"AV73","v":-2624.7829999999999},{"$f":"AW73","v":-2807.6},{"$f":"AX73","v":-3100.721},{"$f":"AU73","v":-2823.9140000000002},{"$f":"AY73","v":-3264.2939999999999},{"$f":"BA73","v":-3178.7689999999998},{"$f":"BB73","v":-3505.5590000000002},{"$f":"BC73","v":-3557.2339999999999},{"$f":"AZ73","v":-3264.2939999999999},{"$f":"BD73","v":-3529.529},{"$f":"BF73","v":-3379.2890000000002},{"$f":"BG73","v":-3479.2130000000002},{"$f":"BH73","v":-3361.0529999999999},{"$f":"BE73","v":-3529.529},{"$f":"BI73","v":-3407.259},{"$f":"BK73","v":-3159.7930000000001},{"$f":"BL73","v":-3145.5659999999998},{"$f":"BM73","v":-3322.654},{"$f":"BJ73","v":-3407.259},{"$f":"BN73","v":-3643.19},{"$f":"BP73","v":-3655.6570000000002},{"$f":"BQ73","v":-3778.6010000000001},{"$f":"BR73","v":-3815.2869999999998},{"$f":"BO73","v":-3643.19},{"$f":"BS73","v":-3981.6648012746},{"$f":"BU73","v":-4155.8468201978958},{"$f":"BV73","v":-4338.1128547222434},{"$f":"BW73","v":-4528.7526871914652},{"$f":"BT73","v":-3981.6648012746},{"$f":"BX73","v":-4728.0664393067773},{"$f":"BZ73","v":-4936.3649396752153},{"$f":"CA73","v":-5153.9701043855275},{"$f":"CB73","v":-5381.215331072186},{"$f":"BY73","v":-4728.0664393067773},{"$f":"CC73","v":-5618.445906944441},{"$f":"CE73","v":-5866.0194312741714},{"$f":"CF73","v":-6124.3062528537021},{"$f":"CG73","v":-6393.6899229528062},{"$f":"CD73","v":-5618.445906944441},{"$f":"CH73","v":-6674.5676643227835},{"$f":"CJ73","v":-6967.3508568148263},{"$f":"CK73","v":-7272.4655401999216},{"$f":"CL73","v":-7590.3529347982212},{"$f":"CI73","v":-6674.5676643227835}]
["Reissuance of Treas Stock for Comp",null,null,null,null,null,null,null,null,null,null,null,0,0,0,0,0,0,0,0,0,{"$f":"SUM(R70:U70)","v":0},0,0,0,0,{"$f":"SUM(W70:Z70)","v":0},0,0,0,385.61799999999999,{"$f":"SUM(AB70:AE70)","v":385.61799999999999},75,75,75,73.77600000000001,{"$f":"SUM(AG70:AJ70)","v":298.77600000000001},119.91,176.15699999999998,197.98699999999997,32.09500000000007,{"$f":"SUM(AL70:AO70)","v":526.149},121.404,52.715000000000003,170.9,138.23499999999999,{"$f":"SUM(AQ70:AT70)","v":483.25400000000002},49.823999999999998,34.236000000000004,45.579999999999984,0,{"$f":"SUM(AV70:AY70)","v":129.63999999999999},40.651000000000003,46.732000000000006,56.180000000000007,1.1910000000000025,{"$f":"SUM(BA70:BD70)","v":144.75400000000002},13.366,0,0,19.088999999999999,{"$f":"SUM(BF70:BI70)","v":32.454999999999998},88.566000000000003,0,0,0,{"$f":"SUM(BK70:BN70)","v":88.566000000000003},-53.776000000000003,0,0,50,{"$f":"SUM(BP70:BS70)","v":-3.7760000000000034},50,50,50,50,{"$f":"SUM(BU70:BX70)","v":200},50,50,50,50,{"$f":"SUM(BZ70:CC70)","v":200},50,50,50,50,{"$f":"SUM(CE70:CH70)","v":200},50,50,50,50,{"$f":"SUM(CJ70:CM70)","v":200}]
["Purchases of Treasury Stock",null,null,null,null,null,null,null,null,null,null,null,-31.478000000000002,36.088000000000001,-8.0470000000000113,3.4370000000000118,0,-15.250999999999998,-65.019000000000005,-153.43599999999998,21.129999999999967,{"$f":"SUM(R71:U71)","v":-212.57600000000002},25.899000000000001,71.375999999999991,52.297999999999988,-393.125,{"$f":"SUM(W71:Z71)","v":-243.55200000000002},-270.10400000000004,-497.86,-35.29099999999994,-51.650999999999954,{"$f":"SUM(AB71:AE71)","v":-854.90599999999995},-207.435,-162.21300000000002,-727.22500000000002,-338.37799999999993,{"$f":"SUM(AG71:AJ71)","v":-1435.251},-1150.0219999999999,-150.16100000000006,-122.55199999999991,-299.98,{"$f":"SUM(AL71:AO71)","v":-1722.7149999999999},-1.2999999999999999E-2,0,-350,0,{"$f":"SUM(AQ71:AT71)","v":-350.01299999999998},-0.02,-250,-400,-190.37199999999996,{"$f":"SUM(AV71:AY71)","v":-840.39199999999994},-125,-420.01499999999999,-150,0,{"$f":"SUM(BA71:BD71)","v":-695.01499999999999},-80,-149.12900000000002,60.948000000000008,-100.00000000000003,{"$f":"SUM(BF71:BI71)","v":-268.18100000000004},-100,-15.344999999999999,-237.33700000000002,-335.10799999999995,{"$f":"SUM(BK71:BN71)","v":-687.79},-200,-137.17599999999999,-33.5,{"$f":"-BS93","v":-216.37780127459999},{"$f":"SUM(BP71:BS71)","v":-587.0538012746},{"$f":"-BU93","v":-224.18201892329571},{"$f":"-BV93","v":-232.26603452434739},{"$f":"-BW93","v":-240.63983246922203},{"$f":"-BX93","v":-249.31375211531184},{"$f":"SUM(BU71:BX71)","v":-946.40163803217706},{"$f":"-BZ93","v":-258.29850036843806},{"$f":"-CA93","v":-267.60516471031229},{"$f":"-CB93","v":-277.24522668665833},{"$f":"-CC93","v":-287.23057587225514},{"$f":"SUM(BZ71:CC71)","v":-1090.3794676376638},{"$f":"-CE93","v":-297.57352432973039},{"$f":"-CF93","v":-308.28682157953028},{"$f":"-CG93","v":-319.38367009910417},{"$f":"-CH93","v":-330.87774136997695},{"$f":"SUM(CE71:CH71)","v":-1256.1217573783417},{"$f":"-CJ93","v":-342.78319249204333},{"$f":"-CK93","v":-355.11468338509491},{"$f":"-CL93","v":-367.88739459829964},{"$f":"-CM93","v":-381.11704574908168},{"$f":"SUM(CJ71:CM71)","v":-1446.9023162245194}]
["Other",null,null,null,null,null,null,null,null,null,null,null,{"$f":"M73-SUM(M69:M71)","v":-1612.4009999999998},-18.784000000000106,-15.410999999999831,44.295000000000073,47.731999999999971,-22.397000000000162,-37.99799999999982,-41.644000000000233,-90.343999999999824,{"$f":"SUM(R72:U72)","v":-192.38300000000004},{"$f":"W73-SUM(W69:W71)","v":-37.011000000000195},{"$f":"X73-SUM(X69:X71)","v":-15.334999999999809},{"$f":"Y73-SUM(Y69:Y71)","v":-9.8250000000000455},{"$f":"Z73-SUM(Z69:Z71)","v":-11.088999999999942},{"$f":"SUM(W72:Z72)","v":-73.259999999999991},{"$f":"AB73-SUM(AB69:AB71)","v":2294.5910000000003},{"$f":"AC73-SUM(AC69:AC71)","v":84.097999999999956},{"$f":"AD73-SUM(AD69:AD71)","v":61.813999999999965},{"$f":"AE73-SUM(AE69:AE71)","v":-271.06700000000006},{"$f":"SUM(AB72:AE72)","v":2169.4360000000001},{"$f":"AG73-SUM(AG69:AG71)","v":-33.618000000000052},{"$f":"AH73-SUM(AH69:AH71)","v":-10.694999999999936},{"$f":"AI73-SUM(AI69:AI71)","v":7.4760000000001128},{"$f":"AJ73-SUM(AJ69:AJ71)","v":36.647999999999911},{"$f":"SUM(AG72:AJ72)","v":-0.18899999999996453},{"$f":"AL73-SUM(AL69:AL71)","v":2.1999999999934516E-2},{"$f":"AM73-SUM(AM69:AM71)","v":4.2999999999665306E-2},{"$f":"AN73-SUM(AN69:AN71)","v":-3.2000000000152795E-2},{"$f":"AO73-SUM(AO69:AO71)","v":-3.3000000000356522E-2},{"$f":"SUM(AL72:AO72)","v":-9.0949470177292824E-13},{"$f":"AQ73-SUM(AQ69:AQ71)","v":-0.45600000000013097},{"$f":"AR73-SUM(AR69:AR71)","v":3.8999999999759893E-2},{"$f":"AS73-SUM(AS69:AS71)","v":3.4999999999854481E-2},{"$f":"AT73-SUM(AT69:AT71)","v":0.38099999999985812},{"$f":"SUM(AQ72:AT72)","v":-1.0000000006584742E-3},{"$f":"AV73-SUM(AV69:AV71)","v":149.32700000000023},{"$f":"AW73-SUM(AW69:AW71)","v":32.947000000000116},{"$f":"AX73-SUM(AX69:AX71)","v":61.298999999999978},{"$f":"AY73-SUM(AY69:AY71)","v":26.798999999999978},{"$f":"SUM(AV72:AY72)","v":270.3720000000003},{"$f":"BA73-SUM(BA69:BA71)","v":169.87400000000025},{"$f":"BB73-SUM(BB69:BB71)","v":46.492999999999483},{"$f":"BC73-SUM(BC69:BC71)","v":42.145000000000437},{"$f":"BD73-SUM(BD69:BD71)","v":26.514000000000124},{"$f":"SUM(BA72:BD72)","v":285.02600000000029},{"$f":"BF73-SUM(BF69:BF71)","v":216.8739999999998},{"$f":"BG73-SUM(BG69:BG71)","v":49.204999999999927},{"$f":"BH73-SUM(BH69:BH71)","v":57.212000000000444},{"$f":"BI73-SUM(BI69:BI71)","v":34.704999999999927},{"$f":"SUM(BF72:BI72)","v":357.99600000000009},{"$f":"BK73-SUM(BK69:BK71)","v":258.90000000000009},{"$f":"BL73-SUM(BL69:BL71)","v":29.572000000000116},{"$f":"BM73-SUM(BM69:BM71)","v":60.248999999999796},{"$f":"BN73-SUM(BN69:BN71)","v":14.571999999999662},{"$f":"SUM(BK72:BN72)","v":363.29299999999967},{"$f":"BP73-SUM(BP69:BP71)","v":241.30899999999974},{"$f":"BQ73-SUM(BQ69:BQ71)","v":14.231999999999971},{"$f":"BR73-SUM(BR69:BR71)","v":-3.1859999999996944},null,{"$f":"SUM(BP72:BS72)","v":252.35500000000002},null,null,null,null,{"$f":"SUM(BU72:BX72)","v":0},null,null,null,null,{"$f":"SUM(BZ72:CC72)","v":0},null,null,null,null,{"$f":"SUM(CE72:CH72)","v":0},null,null,null,null,{"$f":"SUM(CJ72:CM72)","v":0}]
["Treasury Stock -- Q End",null,null,null,null,null,null,null,null,null,null,null,{"$f":"M45","v":-1643.8789999999999},-1626.575,-1650.0329999999999,-1602.3009999999999,-1602.3009999999999,-1639.9490000000001,-1742.9659999999999,-1938.046,-2007.26,{"$f":"U73","v":-2007.26},{"$f":"W45","v":-2018.3720000000001},{"$f":"X45","v":-1962.3309999999999},{"$f":"Y45","v":-1919.8579999999999},{"$f":"Z45","v":-2324.0720000000001},{"$f":"Z73","v":-2324.0720000000001},{"$f":"AB45","v":-299.58499999999998},{"$f":"AC45","v":-713.34699999999998},{"$f":"AD45","v":-686.82399999999996},{"$f":"AE45","v":-623.92399999999998},{"$f":"AE73","v":-623.92399999999998},{"$f":"AG45","v":-789.97699999999998},{"$f":"AH45","v":-887.88499999999999},{"$f":"AI45","v":-1532.634},{"$f":"AJ45","v":-1760.588},{"$f":"AJ73","v":-1760.588},{"$f":"AL45","v":-2790.6779999999999},{"$f":"AM45","v":-2764.6390000000001},{"$f":"AN45","v":-2689.2359999999999},{"$f":"AO45","v":-2957.154},{"$f":"AO73","v":-2957.154},{"$f":"AQ45","v":-2836.2190000000001},{"$f":"AR45","v":-2783.4650000000001},{"$f":"AS45","v":-2962.53},{"$f":"AT45","v":-2823.9140000000002},{"$f":"AT73","v":-2823.9140000000002},{"$f":"AV45","v":-2624.7829999999999},{"$f":"AW45","v":-2807.6},{"$f":"AX45","v":-3100.721},{"$f":"AY45","v":-3264.2939999999999},{"$f":"AY73","v":-3264.2939999999999},{"$f":"BA45","v":-3178.7689999999998},{"$f":"BB45","v":-3505.5590000000002},{"$f":"BC45","v":-3557.2339999999999},{"$f":"BD45","v":-3529.529},{"$f":"BD73","v":-3529.529},{"$f":"BF45","v":-3379.2890000000002},{"$f":"BG45","v":-3479.2130000000002},{"$f":"BH45","v":-3361.0529999999999},{"$f":"BI45","v":-3407.259},{"$f":"BI73","v":-3407.259},{"$f":"BK45","v":-3159.7930000000001},{"$f":"BL45","v":-3145.5659999999998},{"$f":"BM45","v":-3322.654},{"$f":"BN45","v":-3643.19},{"$f":"BN73","v":-3643.19},{"$f":"BP45","v":-3655.6570000000002},{"$f":"BQ45","v":-3778.6010000000001},{"$f":"BR45","v":-3815.2869999999998},{"$f":"SUM(BS69:BS72)","v":-3981.6648012746},{"$f":"BS73","v":-3981.6648012746},{"$f":"SUM(BU69:BU72)","v":-4155.8468201978958},{"$f":"SUM(BV69:BV72)","v":-4338.1128547222434},{"$f":"SUM(BW69:BW72)","v":-4528.7526871914652},{"$f":"SUM(BX69:BX72)","v":-4728.0664393067773},{"$f":"BX73","v":-4728.0664393067773},{"$f":"SUM(BZ69:BZ72)","v":-4936.3649396752153},{"$f":"SUM(CA69:CA72)","v":-5153.9701043855275},{"$f":"SUM(CB69:CB72)","v":-5381.215331072186},{"$f":"SUM(CC69:CC72)","v":-5618.445906944441},{"$f":"CC73","v":-5618.445906944441},{"$f":"SUM(CE69:CE72)","v":-5866.0194312741714},{"$f":"SUM(CF69:CF72)","v":-6124.3062528537021},{"$f":"SUM(CG69:CG72)","v":-6393.6899229528062},{"$f":"SUM(CH69:CH72)","v":-6674.5676643227835},{"$f":"CH73","v":-6674.5676643227835},{"$f":"SUM(CJ69:CJ72)","v":-6967.3508568148263},{"$f":"SUM(CK69:CK72)","v":-7272.4655401999216},{"$f":"SUM(CL69:CL72)","v":-7590.3529347982212},{"$f":"SUM(CM69:CM72)","v":-7921.4699805473028},{"$f":"CM73","v":-7921.4699805473028}]
[]
["Issuance of Common Stock"]
[]
["Option Activity",null,"Exp./Res.","Granted","Exercised","Cancelled",null,"Exp./Res.","Granted","Exercised","Cancelled",null,"Exp./Res.","Granted","Exercised","Cancelled",null,"Exp./Res.","Granted","Exercised","Cancelled",null,"Exp./Res.","Granted","Exercised","Cancelled",null,"Exp./Res.","Granted","Exercised","Cancelled",null,"Exp./Res.","Granted","Exercised","Cancelled",null,"Exp./Res.","Granted","Exercised","Cancelled",null,"Exp./Res.","Granted","Exercised","Cancelled",null,"Exp./Res.","Granted","Exercised","Cancelled",null,"Exp./Res.","Granted","Exercised","Cancelled",null,"Exp./Res.","Granted","Exercised","Cancelled",null,"Exp./Res.","Granted","Exercised","Cancelled",null,"Exp./Res.","Granted","Exercised","Cancelled",null,"Exp./Res.","Granted","Exercised","Cancelled",null,"Exp./Res.","Granted","Exercised","Cancelled",null,"Exp./Res.","Granted","Exercised","Cancelled",null,"Exp./Res.","Granted","Exercised","Cancelled"]
[]
["Shares Available for Grant",null,null,{"$f":"-D80","v":-38.35463},0,{"$f":"-F80","v":10.167149999999999},{"$f":"SUM(C79:F79)","v":-28.187480000000001},0,{"$f":"-I80","v":-23.94736},0,{"$f":"-K80","v":9.4448260000000008},{"$f":"SUM(G79:K79)","v":-42.690013999999998},0,{"$f":"-N80","v":-3.9882599999999999},0,{"$f":"-P80","v":18.786946},{"$f":"SUM(L79:P79)","v":-27.891327999999994},0,{"$f":"-S80","v":-20.759509999999999},0,{"$f":"-U80","v":2.5784560000000001},{"$f":"SUM(Q79:U79)","v":-46.07238199999999},0,{"$f":"-X80","v":-11.418499000000001},0,{"$f":"-Z80","v":2.2056849999999999},{"$f":"SUM(V79:Z79)","v":-55.285195999999985},null,{"$f":"-(AF85*AF84)/1000","v":-11.418499000000001},0,{"$f":"AF84*(AF87)/1000","v":2.2056849999999999},{"$f":"SUM(AA79:AE79)","v":-64.498009999999979},null,{"$f":"-(AK85*AK84)/1000","v":-16.169767078646441},0,{"$f":"AK84*(AK87)/1000","v":3.1234764480746793},{"$f":"SUM(AF79:AJ79)","v":-77.54430063057174},null,{"$f":"-(AP85*AP84)/1000","v":-16.169767078646441},0,{"$f":"AP84*(AP87)/1000","v":3.1234764480746793},{"$f":"SUM(AK79:AO79)","v":-90.590591261143501},null,{"$f":"-(AU85*AU84)/1000","v":-23.076826450408401},0,{"$f":"AU84*(AU87)/1000","v":4.457697106184364},{"$f":"SUM(AP79:AT79)","v":-109.20972060536754},null,{"$f":"-(AZ85*AZ84)/1000","v":-24.294622026371059},0,{"$f":"AZ84*(AZ87)/1000","v":4.6929358564760797},{"$f":"SUM(AU79:AY79)","v":-128.81140677526253},null,{"$f":"-(BE85*BE84)/1000","v":-24.294622026371059},0,{"$f":"BE84*(BE87)/1000","v":4.6929358564760797},{"$f":"SUM(AZ79:BD79)","v":-148.4130929451575},null,{"$f":"-(BJ85*BJ84)/1000","v":-24.294622026371059},0,{"$f":"BJ84*(BJ87)/1000","v":4.6929358564760797},{"$f":"SUM(BE79:BI79)","v":-168.01477911505248},null,{"$f":"-(BO85*BO84)/1000","v":-24.294622026371059},0,{"$f":"BO84*(BO87)/1000","v":4.6929358564760797},{"$f":"SUM(BJ79:BN79)","v":-187.61646528494745},null,{"$f":"-(BT85*BT84)/1000","v":-24.294622026371059},0,{"$f":"BT84*(BT87)/1000","v":4.6929358564760797},{"$f":"SUM(BO79:BS79)","v":-207.21815145484243},null,{"$f":"-(BY85*BY84)/1000","v":-24.294622026371059},0,{"$f":"BY84*(BY87)/1000","v":4.6929358564760797},{"$f":"SUM(BT79:BX79)","v":-226.8198376247374},null,{"$f":"-(CD85*CD84)/1000","v":-24.294622026371059},0,{"$f":"CD84*(CD87)/1000","v":4.6929358564760797},{"$f":"SUM(BY79:CC79)","v":-246.42152379463238},null,{"$f":"-(CI85*CI84)/1000","v":-24.294622026371059},0,{"$f":"CI84*(CI87)/1000","v":4.6929358564760797},{"$f":"SUM(CD79:CH79)","v":-266.02320996452738},null,{"$f":"-(CN85*CN84)/1000","v":-24.294622026371059},0,{"$f":"CN84*(CN87)/1000","v":4.6929358564760797},{"$f":"SUM(CI79:CM79)","v":-285.62489613442233}]
["Number of Shares",null,90.034800000000004,38.35463,-9.6536460000000002,-10.167149999999999,{"$f":"SUM(C80:F80)","v":108.568634},0,23.94736,-7.3770680000000004,-9.4448260000000008,115.69410000000001,0,3.9882599999999999,-15.956108,-18.786946,{"$f":"SUM(L80:P80)","v":84.939306000000002},0,20.759509999999999,-26.587727999999998,-2.5784560000000001,{"$f":"SUM(Q80:U80)","v":76.532631999999992},0,11.418499000000001,-20.494161999999999,-2.2056849999999999,{"$f":"SUM(V80:Z80)","v":65.251283999999984},0,{"$f":"-AC79","v":11.418499000000001},{"$f":"-AF84*(AF86)/1000","v":-20.494161999999999},{"$f":"-AE79","v":-2.2056849999999999},{"$f":"SUM(AA80:AE80)","v":53.969935999999976},0,{"$f":"-AH79","v":16.169767078646441},{"$f":"-AK84*(AK86)/1000","v":-29.021837810035006},{"$f":"-AJ79","v":-3.1234764480746793},{"$f":"SUM(AF80:AJ80)","v":37.994388820536734},0,{"$f":"-AM79","v":16.169767078646441},{"$f":"-AP84*(AP86)/1000","v":-29.021837810035006},{"$f":"-AO79","v":-3.1234764480746793},{"$f":"SUM(AK80:AO80)","v":22.018841641073486},0,{"$f":"-AR79","v":23.076826450408401},{"$f":"-AU84*(AU86)/1000","v":-41.418773143523921},{"$f":"-AT79","v":-4.457697106184364},{"$f":"SUM(AP80:AT80)","v":-0.7808021582264022},0,{"$f":"-AW79","v":24.294622026371059},{"$f":"-AZ84*(AZ86)/1000","v":-43.604498238973157},{"$f":"-AY79","v":-4.6929358564760797},{"$f":"SUM(AU80:AY80)","v":-24.783614227304579},0,{"$f":"-BB79","v":24.294622026371059},{"$f":"-BE84*(BE86)/1000","v":-43.604498238973157},{"$f":"-BD79","v":-4.6929358564760797},{"$f":"SUM(AZ80:BD80)","v":-48.786426296382757},0,{"$f":"-BG79","v":24.294622026371059},{"$f":"-BJ84*(BJ86)/1000","v":-43.604498238973157},{"$f":"-BI79","v":-4.6929358564760797},{"$f":"SUM(BE80:BI80)","v":-72.789238365460932},0,{"$f":"-BL79","v":24.294622026371059},{"$f":"-BO84*(BO86)/1000","v":-43.604498238973157},{"$f":"-BN79","v":-4.6929358564760797},{"$f":"SUM(BJ80:BN80)","v":-96.792050434539107},0,{"$f":"-BQ79","v":24.294622026371059},{"$f":"-BT84*(BT86)/1000","v":-43.604498238973157},{"$f":"-BS79","v":-4.6929358564760797},{"$f":"SUM(BO80:BS80)","v":-120.79486250361728},0,{"$f":"-BV79","v":24.294622026371059},{"$f":"-BY84*(BY86)/1000","v":-43.604498238973157},{"$f":"-BX79","v":-4.6929358564760797},{"$f":"SUM(BT80:BX80)","v":-144.79767457269546},0,{"$f":"-CA79","v":24.294622026371059},{"$f":"-CD84*(CD86)/1000","v":-43.604498238973157},{"$f":"-CC79","v":-4.6929358564760797},{"$f":"SUM(BY80:CC80)","v":-168.80048664177363},0,{"$f":"-CF79","v":24.294622026371059},{"$f":"-CI84*(CI86)/1000","v":-43.604498238973157},{"$f":"-CH79","v":-4.6929358564760797},{"$f":"SUM(CD80:CH80)","v":-192.80329871085181},0,{"$f":"-CK79","v":24.294622026371059},{"$f":"-CN84*(CN86)/1000","v":-43.604498238973157},{"$f":"-CM79","v":-4.6929358564760797},{"$f":"SUM(CI80:CM80)","v":-216.80611077992998}]
["Aggregate Price",null,{"$f":"C80*C82","v":1722.365724},{"$f":"D80*D82","v":544.25219970000001},{"$f":"E80*E82","v":-60.576628650000004},{"$f":"F80*F82","v":-912.80672699999991},{"$f":"SUM(C81:F81)","v":1293.23456805},{"$f":"H82*H80","v":0},{"$f":"I80*I82","v":344.48277359999997},{"$f":"J80*J82","v":-58.979658660000005},{"$f":"K80*K82","v":-213.45306760000003},{"$f":"L80*L82","v":2061.668862},{"$f":"M82*M80","v":0},{"$f":"N80*N82","v":66.045585599999995},{"$f":"O80*O82","v":-190.03724628000001},{"$f":"P80*P82","v":-544.82143399999995},{"$f":"SUM(L81:P81)","v":1392.8557673199998},{"$f":"R82*R80","v":0},{"$f":"S80*S82","v":437.40287569999998},{"$f":"T80*T82","v":-360.26371440000003},{"$f":"U80*U82","v":-52.755209760000007},{"$f":"SUM(Q81:U81)","v":1417.2397188599998},{"$f":"W82*W80","v":0},{"$f":"X80*X82","v":364.02174811999998},{"$f":"Y80*Y82","v":-313.97056184000002},{"$f":"Z80*Z82","v":-47.466341199999995},{"$f":"SUM(V81:Z81)","v":1419.8245639399997},0,{"$f":"AC82*AC80","v":424.22728880034765},{"$f":"AD80*AD82","v":-365.89813905458556},{"$f":"AE80*AE82","v":-55.316797253306483},{"$f":"SUM(AA81:AE81)","v":1422.8369164324554},0,{"$f":"AH82*AH80","v":709.28468641706502},{"$f":"AI80*AI82","v":-611.76155723932948},{"$f":"AJ80*AJ82","v":-92.486641546232633},{"$f":"SUM(AF81:AJ81)","v":1427.8734040639583},0,{"$f":"AM82*AM80","v":646.09432470661977},{"$f":"AN80*AN82","v":-557.25955709355492},{"$f":"AO80*AO82","v":-84.246982006685968},{"$f":"SUM(AK81:AO81)","v":1432.461189670337},0,{"$f":"AR82*AR80","v":796.82652211786183},{"$f":"AS80*AS82","v":-687.26682438733383},{"$f":"AT80*AT82","v":-103.90159316411938},{"$f":"SUM(AP81:AT81)","v":1438.1192942367459},0,{"$f":"AW82*AW80","v":923.1957733744191},{"$f":"AX80*AX82","v":-796.26092988028961},{"$f":"AY80*AY82","v":-120.37941633899999},{"$f":"SUM(AU81:AY81)","v":1444.6747213918754},0,{"$f":"BB82*BB80","v":1019.6817664788337},{"$f":"BC80*BC82","v":-879.48057711602848},{"$f":"BD80*BD82","v":-132.96063461336871},{"$f":"SUM(AZ81:BD81)","v":1451.915276141312},0,{"$f":"BG82*BG80","v":1126.2518036547644},{"$f":"BH80*BH82","v":-971.39776233982627},{"$f":"BI80*BI82","v":-146.85675420626151},{"$f":"SUM(BE81:BI81)","v":1459.9125632499886},0,{"$f":"BL82*BL80","v":1243.9597989633562},{"$f":"BM80*BM82","v":-1072.921491652603},{"$f":"BN80*BN82","v":-162.20519944652722},{"$f":"SUM(BJ81:BN81)","v":1468.7456711142145},0,{"$f":"BQ82*BQ80","v":1373.9698142239754},{"$f":"BR80*BR82","v":-1185.0557741426358},{"$f":"BS80*BS82","v":-179.15775729684407},{"$f":"SUM(BO81:BS81)","v":1478.5019538987101},0,{"$f":"BV82*BV80","v":1517.5675708908298},{"$f":"BW80*BW82","v":-1308.909550936195},{"$f":"BX80*BX82","v":-197.88207843618588},{"$f":"SUM(BT81:BX81)","v":1489.2778954171592},0,{"$f":"CA82*CA80","v":1676.1731650707659},{"$f":"CB80*CB82","v":-1445.7076619634129},{"$f":"CC80*CC82","v":-218.56333522497488},{"$f":"SUM(BY81:CC81)","v":1501.1800632995373},0,{"$f":"CF82*CF80","v":1851.3551114261802},{"$f":"CG80*CG82","v":-1596.8029588941411},{"$f":"CH80*CH82","v":-241.40605294920564},{"$f":"SUM(CD81:CH81)","v":1514.3261628823707},0,{"$f":"CK82*CK80","v":2044.8458548488563},{"$f":"CL80*CL82","v":-1763.6896840335151},{"$f":"CM80*CM82","v":-266.63613245345215},{"$f":"SUM(CI81:CM81)","v":1528.8462012442601}]
["Weighted Average Exercise Price",null,19.13,14.19,6.2750000000000004,89.78,{"$f":"G81/G80","v":11.91167762182584},0,{"$f":"28.77/2","v":14.385},7.9950000000000001,22.6,17.82,0,16.559999999999999,11.91,29,{"$f":"Q81/Q80","v":16.39824755949854},0,21.07,13.55,20.46,{"$f":"V81/V80","v":18.518110273013999},0,31.88,15.32,21.52,{"$f":"AA81/AA80","v":21.759335248330135},0,{"$f":"AC83*AF58","v":37.152631777639741},{"$f":"AD83*AF58","v":17.853774116481834},{"$f":"AE83*AF58","v":25.079191839862212},{"$f":"AF81/AF80","v":26.36350942555233},0,{"$f":"AH83*AK58","v":43.864867253019128},{"$f":"AI83*AK58","v":21.079352770271427},{"$f":"AJ83*AK58","v":29.610161332652815},{"$f":"AK81/AK80","v":37.581165229644753},0,{"$f":"AM83*AP58","v":39.956934541119182},{"$f":"AN83*AP58","v":19.2013876151175},{"$f":"AO83*AP58","v":26.972184169538423},{"$f":"AP81/AP80","v":65.05615567888249},0,{"$f":"AR83*AU58","v":34.529293871071253},{"$f":"AS83*AU58","v":16.593123654479665},{"$f":"AT83*AU58","v":23.308356465039317},{"$f":"AU81/AU80","v":-1841.8485132052456},0,{"$f":"AW83*AZ58","v":38.000005613271888},{"$f":"AX83*AZ58","v":18.260981367481978},{"$f":"AY83*AZ58","v":25.651195759021679},{"$f":"AZ81/AZ80","v":-58.291527141358173},0,{"$f":"BB83*BE58","v":41.971501568207181},{"$f":"BC83*BE58","v":20.169491970669203},{"$f":"BD83*BE58","v":28.332080105013134},{"$f":"BE81/BE80","v":-29.760640128071103},0,{"$f":"BG83*BJ58","v":46.358070622883247},{"$f":"BH83*BJ58","v":22.277466811247539},{"$f":"BI83*BJ58","v":31.293151813188445},{"$f":"BJ81/BJ80","v":-20.056708876661755},0,{"$f":"BL83*BO58","v":51.203093327118921},{"$f":"BM83*BO58","v":24.605752502241597},{"$f":"BN83*BO58","v":34.563694115420304},{"$f":"BO81/BO80","v":-15.174238633445768},0,{"$f":"BQ83*BT58","v":56.55448406369829},{"$f":"BR83*BT58","v":27.177374399493665},{"$f":"BS83*BT58","v":38.17605072304854},{"$f":"BT81/BT80","v":-12.23977512995998},0,{"$f":"BV83*BY58","v":62.465164893018596},{"$f":"BW83*BY58","v":30.017764308690246},{"$f":"BX83*BY58","v":42.165945686880818},{"$f":"BY81/BY80","v":-10.285233515055308},0,{"$f":"CA83*CD58","v":68.993588920680963},{"$f":"CB83*CD58","v":33.155011990741301},{"$f":"CC83*CD58","v":46.572836686733204},{"$f":"CD81/CD80","v":-8.8932211817927023},0,{"$f":"CF83*CI58","v":76.204318363816967},{"$f":"CG83*CI58","v":36.620142952750193},{"$f":"CH83*CI58","v":51.440305244333167},{"$f":"CI81/CI80","v":-7.8542544292948753},0,{"$f":"CK83*CN58","v":84.168663032881909},{"$f":"CL83*CN58","v":40.447425271761325},{"$f":"CM83*CN58","v":56.816487718557681},{"$f":"CN81/CN80","v":-7.0516748616745506}]
["Price as % of year end stock price",null,null,{"$f":"D82/G58","v":0.71409412455029431},{"$f":"E82/G58","v":0.31578158080007729},{"$f":"F82/G58","v":4.5180669839411856},null,null,{"$f":"I82/L58","v":0.94620453909807933},{"$f":"J82/L58","v":0.52588844560925574},{"$f":"K82/L58","v":1.4865639613219739},null,null,{"$f":"N82/Q58","v":0.976914495794725},{"$f":"O82/Q58","v":0.70259973701178602},{"$f":"P82/Q58","v":1.7107802160656418},null,null,{"$f":"S82/V58","v":0.95199453472904971},{"$f":"T82/V58","v":0.61222239893586261},{"$f":"U82/V58","v":0.9244332311607194},null,null,{"$f":"X82/AA58","v":1.05110867566901},{"$f":"Y82/AA58","v":0.50511245016465611},{"$f":"Z82/AA58","v":0.70953132686314613},null,null,{"$f":"X83","v":1.05110867566901},{"$f":"Y83","v":0.50511245016465611},{"$f":"Z83","v":0.70953132686314613},null,null,{"$f":"AC83","v":1.05110867566901},{"$f":"AD83","v":0.50511245016465611},{"$f":"AE83","v":0.70953132686314613},null,null,{"$f":"AH83","v":1.05110867566901},{"$f":"AI83","v":0.50511245016465611},{"$f":"AJ83","v":0.70953132686314613},null,null,{"$f":"AM83","v":1.05110867566901},{"$f":"AN83","v":0.50511245016465611},{"$f":"AO83","v":0.70953132686314613},null,null,{"$f":"AR83","v":1.05110867566901},{"$f":"AS83","v":0.50511245016465611},{"$f":"AT83","v":0.70953132686314613},null,null,{"$f":"AW83","v":1.05110867566901},{"$f":"AX83","v":0.50511245016465611},{"$f":"AY83","v":0.70953132686314613},null,null,{"$f":"BB83","v":1.05110867566901},{"$f":"BC83","v":0.50511245016465611},{"$f":"BD83","v":0.70953132686314613},null,null,{"$f":"BG83","v":1.05110867566901},{"$f":"BH83","v":0.50511245016465611},{"$f":"BI83","v":0.70953132686314613},null,null,{"$f":"BL83","v":1.05110867566901},{"$f":"BM83","v":0.50511245016465611},{"$f":"BN83","v":0.70953132686314613},null,null,{"$f":"BQ83","v":1.05110867566901},{"$f":"BR83","v":0.50511245016465611},{"$f":"BS83","v":0.70953132686314613},null,null,{"$f":"BV83","v":1.05110867566901},{"$f":"BW83","v":0.50511245016465611},{"$f":"BX83","v":0.70953132686314613},null,null,{"$f":"CA83","v":1.05110867566901},{"$f":"CB83","v":0.50511245016465611},{"$f":"CC83","v":0.70953132686314613},null,null,{"$f":"CF83","v":1.05110867566901},{"$f":"CG83","v":0.50511245016465611},{"$f":"CH83","v":0.70953132686314613}]
["EoP # of Employees",null,null,null,null,null,3043,null,null,null,null,3319,null,null,null,null,3515,null,null,null,null,3848,null,null,null,null,4285,null,null,null,null,{"$f":"AA84","v":4285},null,null,null,null,6068,null,null,null,null,{"$f":"AK84","v":6068},null,null,null,null,8660,null,null,null,null,9117,null,null,null,null,{"$f":"AZ84","v":9117},null,null,null,null,{"$f":"BE84","v":9117},null,null,null,null,{"$f":"BJ84","v":9117},null,null,null,null,{"$f":"BO84","v":9117},null,null,null,null,{"$f":"BT84","v":9117},null,null,null,null,{"$f":"BY84","v":9117},null,null,null,null,{"$f":"CD84","v":9117},null,null,null,null,{"$f":"CI84","v":9117}]
["Net Options Granted / Employee",null,null,null,null,null,{"$f":"D80/(G84/1000)","v":12.604216233979624},null,null,null,null,{"$f":"I80/(L84/1000)","v":7.2152335040674904},null,null,null,null,{"$f":"N80/(Q84/1000)","v":1.1346401137980084},null,null,null,null,{"$f":"S80/(V84/1000)","v":5.3948830561330556},null,null,null,null,{"$f":"X80/(AA84/1000)","v":2.6647605600933488},null,null,null,null,{"$f":"AA85","v":2.6647605600933488},null,null,null,null,{"$f":"AF85","v":2.6647605600933488},null,null,null,null,{"$f":"AK85","v":2.6647605600933488},null,null,null,null,{"$f":"AP85","v":2.6647605600933488},null,null,null,null,{"$f":"AU85","v":2.6647605600933488},null,null,null,null,{"$f":"AZ85","v":2.6647605600933488},null,null,null,null,{"$f":"BE85","v":2.6647605600933488},null,null,null,null,{"$f":"BJ85","v":2.6647605600933488},null,null,null,null,{"$f":"BO85","v":2.6647605600933488},null,null,null,null,{"$f":"BT85","v":2.6647605600933488},null,null,null,null,{"$f":"BY85","v":2.6647605600933488},null,null,null,null,{"$f":"CD85","v":2.6647605600933488},null,null,null,null,{"$f":"CI85","v":2.6647605600933488}]
["Net Options Exercised / Employee",null,null,null,null,null,{"$f":"-E80/(G84/1000)","v":3.1724107788366744},null,null,null,null,{"$f":"-J80/(L84/1000)","v":2.222677915034649},null,null,null,null,{"$f":"-O80/(Q84/1000)","v":4.5394332859174966},null,null,null,null,{"$f":"-T80/(V84/1000)","v":6.9094927234927237},null,null,null,null,{"$f":"-Y80/(AA84/1000)","v":4.782768261376896},null,null,null,null,{"$f":"AA86","v":4.782768261376896},null,null,null,null,{"$f":"AF86","v":4.782768261376896},null,null,null,null,{"$f":"AK86","v":4.782768261376896},null,null,null,null,{"$f":"AP86","v":4.782768261376896},null,null,null,null,{"$f":"AU86","v":4.782768261376896},null,null,null,null,{"$f":"AZ86","v":4.782768261376896},null,null,null,null,{"$f":"BE86","v":4.782768261376896},null,null,null,null,{"$f":"BJ86","v":4.782768261376896},null,null,null,null,{"$f":"BO86","v":4.782768261376896},null,null,null,null,{"$f":"BT86","v":4.782768261376896},null,null,null,null,{"$f":"BY86","v":4.782768261376896},null,null,null,null,{"$f":"CD86","v":4.782768261376896},null,null,null,null,{"$f":"CI86","v":4.782768261376896}]
["Net Options Cancelled / Employee",null,null,null,null,null,{"$f":"-F80/(G84/1000)","v":3.3411600394347678},null,null,null,null,{"$f":"-K80/(L84/1000)","v":2.8456842422416395},null,null,null,null,{"$f":"-P80/(Q84/1000)","v":5.344792603129445},null,null,null,null,{"$f":"-U80/(V84/1000)","v":0.67007692307692313},null,null,null,null,{"$f":"-Z80/(AA84/1000)","v":0.5147456242707118},null,null,null,null,{"$f":"AA87","v":0.5147456242707118},null,null,null,null,{"$f":"AF87","v":0.5147456242707118},null,null,null,null,{"$f":"AK87","v":0.5147456242707118},null,null,null,null,{"$f":"AP87","v":0.5147456242707118},null,null,null,null,{"$f":"AU87","v":0.5147456242707118},null,null,null,null,{"$f":"AZ87","v":0.5147456242707118},null,null,null,null,{"$f":"BE87","v":0.5147456242707118},null,null,null,null,{"$f":"BJ87","v":0.5147456242707118},null,null,null,null,{"$f":"BO87","v":0.5147456242707118},null,null,null,null,{"$f":"BT87","v":0.5147456242707118},null,null,null,null,{"$f":"BY87","v":0.5147456242707118},null,null,null,null,{"$f":"CD87","v":0.5147456242707118},null,null,null,null,{"$f":"CI87","v":0.5147456242707118}]
[]
[]
["Share Repurchase Activity"]
["Purchased",null,null,null,null,null,2,null,null,null,null,4.0640000000000009,null,null,null,null,12.69,null,null,null,null,7.7740000000000009,null,null,null,null,4.3549999999999969,9.6,14.6,12.061145999999999,7,{"$f":"SUM(AB91:AE91)","v":43.261145999999997},4.8,5.8999999999999995,17.600000000000001,11.4,{"$f":"SUM(AG91:AJ91)","v":39.700000000000003},33.300000000000004,15.199999999999996,2.8999999999999986,7,{"$f":"SUM(AL91:AO91)","v":58.4},5,0.90000000000000036,4,5.3309999999999995,{"$f":"SUM(AQ91:AT91)","v":15.231},1.7,2.5,14.9,15.9,{"$f":"SUM(AV91:AY91)","v":35},2.5,13.7,3.6,0,{"$f":"SUM(BA91:BD91)","v":19.8},1.8,5.3,2.4,2,{"$f":"SUM(BF91:BI91)","v":11.5},2.7,3.9,7,7.9,{"$f":"SUM(BK91:BN91)","v":21.5},4.5,2.6,1.9,2.9865811080000002,{"$f":"SUM(BP91:BS91)","v":11.986581107999999},2.9896616213520004,2.9927236516238884,2.9957673097141448,2.9987927058558603,{"$f":"SUM(BU91:BX91)","v":11.976945288545894},3.0017999496207248,3.0047891499230008,3.0077604150234629,3.0107138525333217,{"$f":"SUM(BZ91:CC91)","v":12.025063367100511},3.0136495694181216,3.0165676720016128,3.0194682659696035,3.0223514563737859,{"$f":"SUM(CE91:CH91)","v":12.072036963763123},3.0252173476355431,3.02806604354973,3.0308976472884317,3.033712261404701,{"$f":"SUM(CJ91:CM91)","v":12.117893299878407}]
["Avg. Price ",null,null,null,null,null,{"$f":"G93/G91","v":0.5},null,null,null,null,{"$f":"L93/L91","v":56.303395669291312},null,null,null,null,{"$f":"Q93/Q91","v":0.39818754925137884},null,null,null,null,{"$f":"V93/V91","v":52.091458708515567},null,null,null,null,{"$f":"AA93/AA91","v":72.746727898966768},{"$f":"AB93/AB91","v":28.135833333333338},{"$f":"AC93/AC91","v":34.1},{"$f":"AD93/AD91","v":2.9260071969943771},{"$f":"AE58","v":37.910610000000005},{"$f":"AF93/AF91","v":19.761519956036302},43.215625000000003,27.493728813559329,41.319602272727273,29.682280701754379,36.152418136020145,{"$f":"AL93/AL91","v":34.535195195195186},{"$f":"AM93/AM91","v":9.8790131578947431},{"$f":"AN93/AN91","v":42.259310344827576},{"$f":"AO58","v":31.052730000000004},{"$f":"AP93/AP91","v":29.498544520547945},"NM",22.2,{"$f":"AS58","v":33.209698271780553},{"$f":"AT58","v":33.961482816407987},{"$f":"AU93/AU91","v":22.980303328737442},{"$f":"AV58","v":34.816038627775853},{"$f":"AW93/AW91","v":100},{"$f":"AX93/AX91","v":26.845637583892618},{"$f":"AY93/AY91","v":11.973081761006286},{"$f":"AZ93/AZ91","v":24.011199999999999},33.4,{"$f":"BB93/BB91","v":33.693430656934311},{"$f":"BC93/BC91","v":27.777777777777779},25.5,{"$f":"BE93/BE91","v":32.580808080808083},29.444444444444443,33.150943396226417,31.708333333333332,33.5,{"$f":"BJ93/BJ91","v":32.330434782608691},37.037037037037038,44.102564102564102,46.571428571428569,51.265822784810126,46.651162790697676,58.444444444444443,63.846153846153847,70,{"$f":"BR92*1.035","v":72.449999999999989},{"$f":"BT93/BT91","v":64.9374324723086},{"$f":"BS92*1.035","v":74.985749999999982},{"$f":"BU92*1.035","v":77.610251249999976},{"$f":"BV92*1.035","v":80.326610043749966},{"$f":"BW92*1.035","v":83.138041395281206},{"$f":"BY93/BY91","v":79.018615784883366},{"$f":"BX92*1.035","v":86.047872844116043},{"$f":"BZ92*1.035","v":89.059548393660094},{"$f":"CA92*1.035","v":92.176632587438192},{"$f":"CB92*1.035","v":95.402814727998518},{"$f":"CD93/CD91","v":90.675569379604568},{"$f":"CC92*1.035","v":98.741913243478464},{"$f":"CE92*1.035","v":102.1978802070002},{"$f":"CF92*1.035","v":105.7748060142452},{"$f":"CG92*1.035","v":109.47692422474377},{"$f":"CI93/CI91","v":104.05217952437255},{"$f":"CH92*1.035","v":113.30861657260979},{"$f":"CJ92*1.035","v":117.27441815265112},{"$f":"CK92*1.035","v":121.3790227879939},{"$f":"CL92*1.035","v":125.62728858557368},{"$f":"CN93/CN91","v":119.40213372228965}]
["Aggregate Price",null,null,null,null,null,1,null,null,null,null,228.81699999999995,null,null,null,null,5.0529999999999973,null,null,null,null,404.95900000000006,null,null,null,null,316.81200000000007,270.10400000000004,497.86,35.29099999999994,51.650999999999954,{"$f":"SUM(AB93:AE93)","v":854.90599999999995},207.435,162.21300000000002,727.22500000000002,338.37799999999993,{"$f":"SUM(AG93:AJ93)","v":1435.251},1150.0219999999999,150.16100000000006,122.55199999999991,299.98,{"$f":"SUM(AL93:AO93)","v":1722.7149999999999},1.2999999999999999E-2,0,350,0,{"$f":"SUM(AQ93:AT93)","v":350.01299999999998},0.02,250,400,190.37199999999996,{"$f":"SUM(AV93:AY93)","v":840.39199999999994},{"$f":"BA91*BA92","v":83.5},461.6,100,{"$f":"BD91*BD92","v":0},{"$f":"SUM(BA93:BD93)","v":645.1},{"$f":"BF91*BF92","v":53},175.7,76.099999999999994,{"$f":"BI91*BI92","v":67},{"$f":"SUM(BF93:BI93)","v":371.79999999999995},100,172,326,405,{"$f":"SUM(BK93:BN93)","v":1003},263,166,133,{"$f":"BS91*BS92","v":216.37780127459999},{"$f":"SUM(BP93:BS93)","v":778.37780127459996},{"$f":"BU91*BU92","v":224.18201892329571},{"$f":"BV91*BV92","v":232.26603452434739},{"$f":"BW91*BW92","v":240.63983246922203},{"$f":"BX91*BX92","v":249.31375211531184},{"$f":"SUM(BU93:BX93)","v":946.40163803217706},{"$f":"BZ91*BZ92","v":258.29850036843806},{"$f":"CA91*CA92","v":267.60516471031229},{"$f":"CB91*CB92","v":277.24522668665833},{"$f":"CC91*CC92","v":287.23057587225514},{"$f":"SUM(BZ93:CC93)","v":1090.3794676376638},{"$f":"CE91*CE92","v":297.57352432973039},{"$f":"CF91*CF92","v":308.28682157953028},{"$f":"CG91*CG92","v":319.38367009910417},{"$f":"CH91*CH92","v":330.87774136997695},{"$f":"SUM(CE93:CH93)","v":1256.1217573783417},{"$f":"CJ91*CJ92","v":342.78319249204333},{"$f":"CK91*CK92","v":355.11468338509491},{"$f":"CL91*CL92","v":367.88739459829964},{"$f":"CM91*CM92","v":381.11704574908168},{"$f":"SUM(CJ93:CM93)","v":1446.9023162245194}]
[]
[]
["Balance Sheet"]
[]
["Accounts Receivable and Payable (Based on DSO and Days Payable)"]
["DSO (on total revenue)",null,null,null,null,null,null,48.930690454504727,38.492980347177799,46.416009077538178,36.080190664304574,36.508523439458514,41.684341265430547,36.832796599051683,31.083766553230429,37.232013380332759,41.24622996426335,26.506372244442815,23.509583379055563,24.99247299442921,30.156975404072625,31.087552900219066,26.697188727843312,31.673120422394661,29.459211685306517,30.974734555842705,32.158749766696282,39.192181125834885,39.667419931513749,43.123315526137063,47.72876278081138,50.571768337669404,42.820996693906899,38.930536349699629,27.958615323018105,31.85950482380041,36.772419543358346,30.052976320828353,33.042507718015614,33.730094549831676,46.58041726164398,47.638463092012067,34.816541410750396,34.004520536475788,36.866854024404056,49.509508004273179,50.909137353425322,37.254164725748218,42.493151102557171,44.647419164935741,50.18367055377967,53.244663157894735,47.356404701344538,50.706682310719827,50.372429461948741,50.241707756120903,54.917451683459603,44.717144476760879,42.960533336772052,47.852753845157238,48.830539270765058,51.159529865610033,43.983062598164651,42.444497990696149,47.90363891152716,52.54260107766256,53.988000710192253,46.578174369075711,45.40742650307805,47.950837669048113,{"$f":"BN99-0.5","v":52.04260107766256},53.678986832292701,{"$f":"BP99-0.05","v":46.528174369075714},{"$f":"BQ99-0.05","v":45.357426503078052},{"$f":"BR99-0.05","v":47.900837669048116},{"$f":"BS99-0.05","v":51.992601077662563},57.507523283729412,{"$f":"BU99-0.05","v":46.478174369075717},{"$f":"BV99-0.05","v":45.307426503078055},{"$f":"BW99-0.05","v":47.850837669048119},{"$f":"BX99-0.05","v":51.942601077662566},56.013878990222402,{"$f":"BZ99-0.05","v":46.42817436907572},{"$f":"CA99-0.05","v":45.257426503078058},{"$f":"CB99-0.05","v":47.800837669048121},{"$f":"CC99-0.05","v":51.892601077662569},54.759809468971319,{"$f":"CE99-0.05","v":46.378174369075722},{"$f":"CF99-0.05","v":45.207426503078061},{"$f":"CG99-0.05","v":47.750837669048124},{"$f":"CH99-0.05","v":51.842601077662572},54.250281252772417]
["A/R Turnover",null,null,null,null,null,null,7.4595309530605007,9.4822483660130725,7.863666162902236,10.116354522513863,9.9976653562906623,8.7562856679397747,9.909646665531703,11.742463686791098,9.8033914059776741,8.8492936279568841,13.770273677361637,15.525583508433188,14.604397095131722,12.103335799077106,11.741033498890417,13.671851509193941,11.523967172553187,12.390012465338726,11.783797512193717,11.349943721319518,9.3130820871665563,9.2015059368664929,8.4640987258684532,7.6473802951109118,7.2174656334515079,8.5238557759197775,9.3756735515105802,13.055009905998398,11.45654968646372,9.9259174275880504,12.145219698157984,11.046377082360269,10.821197060706771,7.8359109140173882,7.661876062101646,10.483522636378179,10.733866975376811,9.9004921808187873,7.3723212916698104,7.1696363162877619,9.7975623044295546,8.5896195158385158,8.1751645856980701,7.2732822444473308,6.8551471331053095,7.7075107855397853,7.198262307191726,7.2460273188872195,7.264880441002374,6.6463389835317699,8.1624174412497972,8.4961701275616708,7.6275652009719916,7.4748304125022482,7.1345456253959201,8.2986490353045799,8.5994655910409907,7.6194629112438728,6.9467440232069606,6.760761561801873,7.8362882389467723,8.0383326717548638,7.6119629550414425,7.0134849612015895,6.7996812447365329,7.8447092530368439,8.0471937704673415,7.6199084976722764,7.0202296564234397,6.3469956478419469,7.8531483853387538,8.0560744268978279,7.6278706451171905,7.0269873365460871,6.5162421631916114,7.8616056943887616,8.0649747058678987,7.6358494494824285,7.0337580391034988,6.6654724247501411,7.8700812389755601,8.0738946724859044,7.6438449630924765,7.0405418017744408,6.7280757181576263]
[]
["Days Payable (on total expense)",null,null,null,null,null,null,16.100136518946162,13.92238238555362,14.156007514112563,16.344646575316478,16.431876891679412,14.418281828390802,16.48194022345147,12.871955081681667,14.033415424684097,14.920090277186338,12.492615924220921,11.270946258285305,12.700565491896324,13.920698777563111,14.668097027597096,11.648968295992322,11.257631641838604,11.254881348224259,11.760679372317011,12.10153269240246,11.594912386467101,11.506740088330265,8.9239432625550084,11.727016319248213,12.409561625487452,10.018257387287354,10.834883058661598,11.499205213486313,11.113686163295192,12.514513509023452,10.647584496071524,10.354028113593509,9.5886664126215599,9.4282785444398822,9.5039983138488697,7.6904652890123399,8.2574570053771392,9.5955414427759127,10.922622978802961,11.251180722034093,7.0812361480399151,7.5380297879122988,8.5110835526174515,7.6669957117308831,7.9495553275539095,7.9592723662993379,8.5406181532557461,9.1990310766330303,11.175448489113876,12.031290354359536,9.7119126316924174,8.7963899057342676,7.7453123933479615,6.145331289630577,6.4722137586840365,8.6497485036652364,6.4182348386386741,8.3994362070841291,6.9328161896954645,7.2647479090448108,7.4027395778705882,6.1205683340995574,6.0187422442503218,7.0328161896954642,7.3542688312915443,{"$f":"BP102","v":7.4027395778705882},{"$f":"BQ102","v":6.1205683340995574},{"$f":"BR102","v":6.0187422442503218},{"$f":"BS102","v":7.0328161896954642},7.5189251582153833,8,7,5.8,5,5.2944561963699384,8,7,5.8,5,5.1739182306065432,8,7,5.8,5,5.1279894417270828]
["A/P Turnover",null,null,null,null,null,null,22.670615219347912,26.216777408637874,25.784106121455515,22.331470938699852,22.212922017741295,25.315082916556985,22.145451024064304,28.356220767072028,26.00934903972006,24.463658947031014,29.217259396595317,32.384148733890683,28.738877826573198,26.219948138544172,24.883936840155584,31.333246921581335,32.422450086525302,32.430372982793635,31.035622045709264,30.161468739340187,31.479323675270415,31.720539196863438,40.90120132560066,31.124711526230669,29.412803692464248,36.433481980924739,33.687488644209459,31.741324137073978,32.84238862219032,29.166135762035083,34.280075460745906,35.251980774593598,38.065773100579513,38.713323782234951,38.404888968481373,47.461367587405846,44.202470538122952,38.038499669530729,33.416881705826427,32.441039657748199,51.544672761835791,48.421140572474293,42.885256353493311,47.606652425999393,45.914517851693617,45.858463337108624,42.73695339732047,39.678091851125146,32.660881606277407,30.337560581583205,37.582710413694727,41.494295263339865,47.125278034424944,59.394682369018668,56.394923531421455,42.197758679958753,56.869218589922703,43.455297593921493,52.648157691316669,50.242624323627936,49.306070564891186,59.63498487002807,60.64389953709729,51.89955064299857,49.631038567283277,49.306070564891193,59.63498487002807,60.643899537097298,51.89955064299857,48.544172513965123,45.625,52.142857142857146,62.931034482758619,73,68.940035853022366,45.625,52.142857142857139,62.931034482758626,73,70.54614776105781,45.625,52.142857142857146,62.931034482758626,73.000000000000014,71.177993665499756]
[]
["Total Deferred Revenue (Based on Y/Y % Growth)"]
["Y/Y % Growth",null,null,null,null,null,null,"-","-","-",{"$f":"(K26+K37)/(F26+F37)-1","v":0.43703055158748438},"-",{"$f":"(M26+M37)/(H26+H37)-1","v":0.37556637730256215},0.62897348426112587,0.52330221490023798,0.46224146224146234,0.46224146224146234,0.33376431473956414,6.5657647366792693E-2,0.13312023840995946,0.3057236842105262,0.3057236842105262,0.31761528874117162,0.36295221080839668,0.27280054297106959,0.13484825582371807,0.13484825582371807,0.65997512568535743,0.66500090115183563,1.0795034160973169,1.4116323812342761,1.4116323812342761,0.7996369891202264,1.0546742767171819,0.53938985984566212,0.28421517728929624,0.28421517728929624,0.25846873735626441,3.6480583919232146E-2,0.20993534684698734,0.31563354167861313,0.31563354167861313,4.9706921134294424E-2,-1.4315221359160413E-2,{"$f":"(AS26+AS37)/(AN26+AN37)-1","v":-6.1252586789197538E-2},0.15608382972541057,0.15608382972541057,0.59682803192386591,0.89552070881091317,0.92908604269594952,0.34994172036456983,0.34994172036456983,0.23254100844213776,0.19212401352317232,0.15001603649192807,0.23745278430076522,0.23745278430076522,0.23808406894032008,0.22976098849234594,0.15757170097033635,0.16524200449497384,0.16524200449497384,0.27518562237232302,0.16613808204757929,0.31006919099892394,0.33773211850249796,0.33773211850249796,0.25863997451541443,0.34334788162503038,0.35754248544086087,0.2932177837476666,0.2932177837476666,0.2461398737477809,0.26286324318371057,0.26454941995099568,0.26259038024572945,{"$f":"(BY26+BY37)/(BT26+BT37)-1","v":0.26259038024572945},0.26104327650143144,0.23363618799492669,0.20896163177889981,0.19106068573437862,0.19106068573437862,0.17686728767688864,0.14513057095381354,0.12295161644785746,0.11401439562003857,0.11401439562003857,0.11201901619006582,0.1056009076803559,9.9143512882970297E-2,9.2974151372779978E-2,9.2974151372779978E-2]
["Q/Q % Growth",null,null,null,null,null,null,{"$f":"(H26+H37)/(F26+F37)-1","v":8.8198700520713214E-2},{"$f":"(I26+I37)/(H26+H37)-1","v":9.2356553038323241E-2},{"$f":"(J26+J37)/(I26+I37)-1","v":5.8885098464878327E-2},{"$f":"(K26+K37)/(J26+J37)-1","v":0.14168039538714972},"-",{"$f":"(M26+M37)/(K26+K37)-1","v":4.1654641654641722E-2},{"$f":"(N26+N37)/(M26+M37)-1","v":0.29359069080162548},{"$f":"(O26+O37)/(N26+N37)-1","v":-9.8046214987743685E-3},{"$f":"(P26+P37)/(O26+O37)-1","v":9.5916748780311867E-2},"-",{"$f":"(R26+R37)/(P26+P37)-1","v":-4.9868421052631562E-2},{"$f":"(S26+S37)/(R26+R37)-1","v":3.3559525458154438E-2},{"$f":"(T26+T37)/(S26+S37)-1","v":5.2880750334971083E-2},{"$f":"(U26+U37)/(T26+T37)-1","v":0.26285314329345866},"-",{"$f":"(W26+W37)/(U26+U37)-1","v":-4.1215297022219821E-2},{"$f":"(X26+X37)/(W26+W37)-1","v":6.9122567309545024E-2},{"$f":"(Y26+Y37)/(X26+X37)-1","v":-1.6761424147592296E-2},{"$f":"(Z26+Z37)/(Y26+Y37)-1","v":0.1259790034994166},"-",{"$f":"(AB26+AB37)/(Z26+Z37)-1","v":0.40244191209116487},{"$f":"(AC26+AC37)/(AB26+AB37)-1","v":7.2359465192110672E-2},{"$f":"(AD26+AD37)/(AC26+AC37)-1","v":0.22801613855540248},{"$f":"(AE26+AE37)/(AD26+AD37)-1","v":0.3058153232204246},"-",{"$f":"(AG26+AG37)/(AE26+AE37)-1","v":4.6546878260122604E-2},{"$f":"(AH26+AH37)/(AG26+AG37)-1","v":0.2243299186696297},{"$f":"(AI26+AI37)/(AH26+AH37)-1","v":-7.9953638958600637E-2},{"$f":"(AJ26+AJ37)/(AI26+AI37)-1","v":8.9358778149108309E-2},"-",{"$f":"(AL26+AL37)/(AJ26+AJ37)-1","v":2.5565303820937801E-2},{"$f":"(AM26+AM37)/(AK26+AK37)-1","v":3.4142821644971955E-2},{"$f":"(AN26+AN37)/(AM26+AM37)-1","v":7.401588629148903E-2},{"$f":"(AO26+AO37)/(AN26+AN37)-1","v":0.18452357904066163},"-",{"$f":"(AQ26+AQ37)/(AO26+AO37)-1","v":-0.18173035013802119},{"$f":"(AR26+AR37)/(AP26+AP37)-1","v":-0.22521066395467093},{"$f":"(AS26+AS37)/(AQ26+AQ37)-1","v":-3.1479985440728608E-2},{"$f":"(AT26+AT37)/(AR26+AR37)-1","v":0.49212666713545694},"-",{"$f":"(AV26+AV37)/(AT26+AT37)-1","v":0.13022592391287291},{"$f":"(AW26+AW37)/(AU26+AU37)-1","v":0.27034838969125907},{"$f":"(AX26+AX37)/(AV26+AV37)-1","v":0.17004361446921812},{"$f":"(AY26+AY37)/(AW26+AW37)-1","v":6.2654726309099074E-2},"-",{"$f":"(BA26+BA37)/(AY26+AY37)-1","v":3.1933289424381561E-2},{"$f":"(BB26+BB37)/(BA26+BA37)-1","v":8.7120374922755595E-2},{"$f":"(BC26+BC37)/(BB26+BB37)-1","v":4.2155314951237699E-3},{"$f":"(BD26+BD37)/(BB26+BB37)-1","v":0.10306061693639545},"-",{"$f":"(BF26+BF37)/(BD26+BD37)-1","v":3.2459728608909222E-2},{"$f":"(BG26+BG37)/(BF26+BF37)-1","v":7.9812155259725515E-2},{"$f":"(BH26+BH37)/(BG26+BG37)-1","v":-5.4733812658364633E-2},{"$f":"(BI26+BI37)/(BG26+BG37)-1","v":4.5188924015398646E-2},"-",{"$f":"(BK26+BK37)/(BI26+BI37)-1","v":0.12987499293859406},{"$f":"(BL26+BL37)/(BK26+BK37)-1","v":-1.2528016616407012E-2},{"$f":"(BM26+BM37)/(BL26+BL37)-1","v":6.1936084923061019E-2},{"$f":"(BN26+BN37)/(BM26+BM37)-1","v":0.12905629533766971},"-",{"$f":"(BP26+BP37)/(BN26+BN37)-1","v":6.3072204553022759E-2},{"$f":"(BQ26+BQ37)/(BP26+BP37)-1","v":5.3929975132989139E-2},{"$f":"(BR26+BR37)/(BQ26+BQ37)-1","v":7.315712618080461E-2},{"$f":"(BS26+BS37)/(BR26+BR37)-1","v":7.5557999578010016E-2},"-",{"$f":"(BU26+BU37)/(BS26+BS37)-1","v":2.4372444776836089E-2},{"$f":"(BV26+BV37)/(BU26+BU37)-1","v":6.8073861148562287E-2},{"$f":"(BW26+BW37)/(BV26+BV37)-1","v":7.4590007075532982E-2},{"$f":"(BX26+BX37)/(BW26+BW37)-1","v":7.3891745342907322E-2},"-",{"$f":"(BZ26+BZ37)/(BX26+BX37)-1","v":2.3117239233006792E-2},{"$f":"(CA26+CA37)/(BZ26+BZ37)-1","v":4.4860704717328836E-2},{"$f":"(CB26+CB37)/(CA26+CA37)-1","v":5.3096610726758531E-2},{"$f":"(CC26+CC37)/(CB26+CB37)-1","v":5.799076247817081E-2},"-",{"$f":"(CE26+CE37)/(CC26+CC37)-1","v":1.0925156654980617E-2},{"$f":"(CF26+CF37)/(CE26+CE37)-1","v":1.6683824836382755E-2},{"$f":"(CG26+CG37)/(CF26+CF37)-1","v":3.2700175235362394E-2},{"$f":"(CH26+CH37)/(CG26+CG37)-1","v":4.9570544777278513E-2},"-",{"$f":"(CJ26+CJ37)/(CH26+CH37)-1","v":9.1144266762996917E-3},{"$f":"(CK26+CK37)/(CJ26+CJ37)-1","v":1.0815951164381055E-2},{"$f":"(CL26+CL37)/(CK26+CK37)-1","v":2.6668565915490161E-2},{"$f":"(CM26+CM37)/(CL26+CL37)-1","v":4.3679430427529642E-2},"-"]
[]
["ST Deferred Revenue as % of Total Revenue",null,null,null,null,null,null,8.8149879057544706E-2,8.1283341578464757E-2,9.5882813404989484E-2,0.10583599747500458,null,0.10941241853180418,0.13125573956882175,0.13038587123419887,0.1271661470330688,"-",0.10235753553785783,0.10919687381884244,0.11678593456242431,0.13862799241912727,"-",0.1207214484797476,0.12304320916720596,0.12321395206544035,0.11332736381965273,"-",0.12572199219500882,0.14008365646087217,0.17188732478565774,0.191021365485396,"-",0.2151070130134107,0.24052646473804851,0.19307820018175714,0.20118062666056491,"-",0.21524294032758903,0.21603001964175778,0.23059046026123209,0.2665396410579689,"-",0.25218148755706454,0.26280416590390154,0.27000159138187857,0.37182400766952384,"-",0.37327937580062887,0.38446717248034273,0.37960192624800693,0.37774642689191684,"-",0.38879990970180184,0.42815382254717893,0.43395656585196385,0.41348561529161293,"-",0.47123572070951569,0.47589085854494068,0.46793943993040776,0.48677767489604901,"-",0.64078906767023225,0.63221575599006086,0.68649377612124785,0.74449913074698171,"-",0.83097728272607285,0.82297548791995567,0.94246520570235581,0.95246520570235582,"-",{"$f":"BS109","v":0.95246520570235582},{"$f":"BU109","v":0.95246520570235582},{"$f":"BV109","v":0.95246520570235582},{"$f":"BW109","v":0.95246520570235582},"-",{"$f":"BU109+0.001","v":0.95346520570235582},0.95346520570235582,0.95346520570235582,0.95346520570235582,"-",{"$f":"BZ109+0.001","v":0.95446520570235582},0.95446520570235582,0.95446520570235582,0.95446520570235582,"-",{"$f":"CE109+0.001","v":0.95546520570235582},0.95546520570235582,0.95546520570235582,0.95546520570235582,"-"]
["LT Deferred Revenue as % of Total Revenue",null,null,null,null,null,null,null,null,null,null,null,null,null,null,null,null,null,null,null,null,null,null,null,null,null,null,1.8848840083114916E-2,1.9833001812871384E-2,3.5340946643174678E-2,4.7852823688936126E-2,null,4.7500257927617043E-2,3.9519727674002816E-2,3.2476757866161943E-2,2.8478585091707628E-2,null,2.5780368242844871E-2,2.7984430918968163E-2,3.1375351222926395E-2,3.4257583024600649E-2,null,3.4299774920840805E-2,3.9910710357853922E-2,4.2818208276045974E-2,4.8485176611649805E-2,null,4.5659718178642131E-2,4.4300582693113197E-2,4.5427786400139752E-2,4.8543275135771169E-2,null,4.2644491712610408E-2,4.2953383523313127E-2,4.3790440697504568E-2,4.7999368143861847E-2,null,5.3978109871605971E-2,5.1281116351208453E-2,5.0608932240093288E-2,5.0373321958544444E-2,null,5.3773640131246699E-2,5.1829253207909758E-2,5.1181818455883168E-2,5.1135692748097109E-2,null,5.0003999520057588E-2,4.6334608990009428E-2,4.8711519391610773E-2,{"$f":"BN110","v":5.1135692748097109E-2},null,{"$f":"BP110+0.001","v":5.1003999520057589E-2},{"$f":"BQ110+0.001","v":4.7334608990009429E-2},{"$f":"BR110+0.001","v":4.9711519391610774E-2},{"$f":"BS110+0.001","v":5.2135692748097109E-2},null,5.2003999520057589E-2,4.833460899000943E-2,5.0711519391610775E-2,5.313569274809711E-2,null,5.300399952005759E-2,4.9334608990009431E-2,5.1711519391610776E-2,5.4135692748097111E-2,null,5.4003999520057591E-2,5.0334608990009432E-2,5.2711519391610777E-2,5.5135692748097112E-2]
[]
["Estimates Using % of Sales Approach"]
["Other Current Assets",null,null,null,null,null,null,7.2009287186072204E-2,5.7934389760492054E-2,8.1427553452518425E-2,6.1197200784649117E-2,"-",6.2227386786574385E-2,7.6636909410081666E-2,9.7881061161562047E-2,6.2963975169136571E-2,"-",7.0539428890028136E-2,6.809320019020447E-2,6.5876005974541324E-2,4.3345549031203585E-2,"-",5.9998054482936547E-2,8.840208939396689E-2,7.3404799204991794E-2,8.6770212257357857E-2,"-",5.2139049670622051E-2,6.5101281599355423E-2,6.7930274613868358E-2,5.7625975739363081E-2,"-",6.4792957267168355E-2,8.2004943822033133E-2,6.9343631338310133E-2,4.920923913341696E-2,"-",5.1694377530335955E-2,5.4569583914956366E-2,6.7690646565763929E-2,0.10064339490506401,"-",0.13240758402319461,0.11931633537825345,0.11541532916515532,0.10676986014475434,"-",0.10130779084662861,0.1285668082308716,9.7772535920243861E-2,0.10958920418355746,"-",0.11061723878229765,0.12432917407413561,0.11795458403572007,0.11580239220039562,"-",0.14333059068904155,0.14579496268839226,0.1287410464750412,0.10077525428548639,"-",0.1604001694657958,0.16562482373442555,0.15281388457058906,0.16330053115151311,"-",0.2086179658440987,0.16858701676078067,0.15041341384451501,{"$f":"BR113","v":0.15041341384451501},"-",{"$f":"BP113","v":0.2086179658440987},0.16858701676078067,0.15041341384451501,0.15041341384451501,"-",{"$f":"BU113","v":0.2086179658440987},0.16858701676078067,0.15041341384451501,0.15041341384451501,"-",{"$f":"BZ113","v":0.2086179658440987},0.16858701676078067,0.15041341384451501,0.15041341384451501,"-",{"$f":"CE113","v":0.2086179658440987},0.16858701676078067,0.15041341384451501,0.15041341384451501,"-"]
["Other Non-Current Assets",null,null,null,null,null,null,0.26920148117179798,0.11241842834140514,0.13787959098424243,8.2978680079007924E-2,"-",0.14310446454133618,0.13230526072479432,0.12377084625942431,0.10519373316303483,"-",8.4397835007949798E-2,9.4446273333577191E-2,0.11629053312625555,0.1288189577696961,"-",0.12441793090030917,0.12040425055793108,0.12107038656041919,0.12976442627030138,"-",0.15740421493932669,0.15556387853761708,0.15851615185215323,9.9949426466815719E-2,"-",9.7148629441937015E-2,0.1150545148254305,9.853044431868084E-2,0.10204442220298042,"-",0.1216009972541819,0.13860405959728758,0.24444664849079806,0.23656589471660142,"-",0.25069876270044122,0.27461389892900678,0.26480737827720724,0.25256872265718361,"-",0.22444159776406195,0.19127179797144328,0.17916045233909475,0.16853184595206491,"-",0.16035811798315858,0.15836916121226099,0.15519062150862803,7.8046384142493985E-2,"-",9.0059509002889351E-2,8.099522521697293E-2,8.3023006163356713E-2,8.0912722770732123E-2,"-",9.6559784814158139E-2,9.220136777137973E-2,9.121924111588664E-2,8.6513474621747743E-2,"-",9.2538895332560087E-2,9.5535700912181901E-2,0.10970361315643681,{"$f":"BR114","v":0.10970361315643681},"-",9.2538895332560087E-2,9.5535700912181901E-2,0.10970361315643681,0.10970361315643681,"-",9.2538895332560087E-2,9.5535700912181901E-2,0.10970361315643681,0.10970361315643681,"-",9.2538895332560087E-2,9.5535700912181901E-2,0.10970361315643681,0.10970361315643681,"-",9.2538895332560087E-2,9.5535700912181901E-2,0.10970361315643681,0.10970361315643681,"-"]
[]
["Estimates Using % of Operating Expense "]
["Accrued Expenses % of LTM Operating Expense",null,null,null,null,null,null,0.16285476767912715,0.21251760945511955,0.1758197222416846,0.18381585198677342,"-",0.19289787564588265,0.20675715832287167,0.18797548096301606,0.19446321449058362,"-",0.20298483986324883,0.20976609966922063,0.18155037283697328,0.20894488818632145,"-",0.19466454341718389,0.20447357921402462,0.19000489318381325,0.20170904169432574,"-",0.2346194003632063,0.21757724172371329,0.18435906614514214,0.20215738722022891,"-",0.18116873810413578,0.2395728919520185,0.21440936944812442,0.22239919168906014,"-",0.20361012902147083,0.20082548800595715,0.18691802485995887,0.21014975907089792,"-",0.18584754970825315,0.20291244410473497,0.20226088216122257,0.25011831039641436,"-",0.20849072956909617,0.25225669957686886,0.23751646472973506,0.27144605426082874,"-",0.2162980653324772,0.23029087885141883,0.20549813595440503,0.2446635628565634,"-",0.20702684252976766,0.23568778790884753,0.2295167684344685,0.24456044265713628,"-",0.20200694104745553,0.21181701658571439,0.2108254863247376,0.2476763576054824,"-",0.21954957003045578,0.24367933766580613,0.23122088103698338,{"$f":"BR117","v":0.23122088103698338},"-",{"$f":"BP117","v":0.21954957003045578},{"$f":"BQ117","v":0.24367933766580613},{"$f":"BR117","v":0.23122088103698338},{"$f":"BS117","v":0.23122088103698338},"-",{"$f":"BU117","v":0.21954957003045578},{"$f":"BV117","v":0.24367933766580613},{"$f":"BW117","v":0.23122088103698338},{"$f":"BX117","v":0.23122088103698338},"-",{"$f":"BZ117","v":0.21954957003045578},{"$f":"CA117","v":0.24367933766580613},{"$f":"CB117","v":0.23122088103698338},{"$f":"CC117","v":0.23122088103698338},"-",{"$f":"CE117","v":0.21954957003045578},{"$f":"CF117","v":0.24367933766580613},{"$f":"CG117","v":0.23122088103698338},{"$f":"CH117","v":0.23122088103698338},"-"]
[]
["Doubtful Accounts"]
["Allowance for Doubtful Accounts"]
["% of Revenues"]
[]
["Provision for Doubtful Accounts (from CFS)"]
["Estimated Bad Debt Writeoff"]
["% of AR"]
[]
["ADBE Debt"]
["Due Feb. 2015 @ 3.25%",null,null,null,null,null,null,null,null,null,null,null,null,null,null,null,null,null,null,null,null,null,null,null,null,null,null,null,null,null,null,null,null,null,null,null,null,null,null,null,null,null,null,null,null,null,null,600,600,600,600,null,600,600,600,600,null,600,600,600,600,null,600,600,600,600,null,600,600,600,600,null,0,0,0,0,null,0,0,0,0,null,0,0,0,0,null,0,0,0,0]
["Due Feb. 2020 @ 4.75%",null,null,null,null,null,null,null,null,null,null,null,null,null,null,null,null,null,null,null,null,null,null,null,null,null,null,null,null,null,null,null,null,null,null,null,null,null,null,null,null,null,null,null,null,null,null,900,900,900,900,null,900,900,900,900,null,900,900,900,900,null,900,900,900,900,null,900,900,900,900,null,900,900,900,900,null,900,900,900,900,null,900,900,900,900,null,900,900,900,900]
["Quarterly Interest",null,null,null,null,null,null,null,null,null,null,null,null,null,null,null,null,null,null,null,null,null,null,null,null,null,null,null,null,null,null,null,null,null,null,null,null,null,null,null,null,null,null,null,null,null,null,{"$f":"(AV128*0.0325+AV129*0.0475)/4","v":15.5625},{"$f":"(AW128*0.0325+AW129*0.0475)/4","v":15.5625},{"$f":"(AX128*0.034+AX129*0.05)/4","v":16.350000000000001},{"$f":"(AY128*0.034+AY129*0.05)/4","v":16.350000000000001},null,{"$f":"(BA128*0.034+BA129*0.053)/4","v":17.024999999999999},{"$f":"(BB128*0.034+BB129*0.052)/4","v":16.8},{"$f":"(BC128*0.034+BC129*0.0505)/4","v":16.462500000000002},{"$f":"(BD128*0.034+BD129*0.058)/4","v":18.150000000000002},null,{"$f":"(BF128*0.036+BF129*0.068)/4","v":20.7},{"$f":"(BG128*0.034+BG129*0.052)/4","v":16.8},{"$f":"(BH128*0.033+BH129*0.065)/4","v":19.574999999999999},{"$f":"(BI128*0.033+BI129*0.065)/4","v":19.574999999999999},null,{"$f":"(BK128*0.0345+BK129*0.0492)/4","v":16.245000000000001},{"$f":"(BL128*0.0345+BL129*0.0492)/4","v":16.245000000000001},{"$f":"(BM128*0.0345+BM129*0.0492)/4","v":16.245000000000001},{"$f":"(BN128*0.0345+BN129*0.0492)/4","v":16.245000000000001},null,{"$f":"(BP128*0.0345+BP129*0.0492)/4","v":16.245000000000001},{"$f":"(BQ128*0.0345+BQ129*0.0492)/4","v":16.245000000000001},{"$f":"(BR128*0.0345+BR129*0.0492)/4","v":16.245000000000001},{"$f":"(BS128*0.0345+BS129*0.0492)/4","v":16.245000000000001},null,{"$f":"(BU128*0.0345+BU129*0.0492)/4","v":11.07},{"$f":"(BV128*0.0345+BV129*0.0492)/4","v":11.07},{"$f":"(BW128*0.0345+BW129*0.0492)/4","v":11.07},{"$f":"(BX128*0.0345+BX129*0.0492)/4","v":11.07},null,{"$f":"(BZ128*0.0345+BZ129*0.0492)/4","v":11.07},{"$f":"(CA128*0.0345+CA129*0.0492)/4","v":11.07},{"$f":"(CB128*0.0345+CB129*0.0492)/4","v":11.07},{"$f":"(CC128*0.0345+CC129*0.0492)/4","v":11.07},null,{"$f":"(CE128*0.0345+CE129*0.0492)/4","v":11.07},{"$f":"(CF128*0.0345+CF129*0.0492)/4","v":11.07},{"$f":"(CG128*0.0345+CG129*0.0492)/4","v":11.07},{"$f":"(CH128*0.0345+CH129*0.0492)/4","v":11.07},null,{"$f":"(CJ128*0.0345+CJ129*0.0492)/4","v":11.07},{"$f":"(CK128*0.0345+CK129*0.0492)/4","v":11.07},{"$f":"(CL128*0.0345+CL129*0.0492)/4","v":11.07},{"$f":"(CM128*0.0345+CM129*0.0492)/4","v":11.07}]
[null,null,null,null,null,null,null,null,null,null,null,null,null,null,null,null,null,null,null,null,null,null,null,null,null,null,null,null,null,null,null,null,null,null,null,null,null,null,null,null,null,null,null,null,null,null,null,null,null,-16.395,-16.786000000000001,null,-17.02,-16.727,-16.431000000000001,-18.100000000000001,null,null,-16.629000000000001,-17.253,-16.766999999999999,null,-16.834,-16.747,-16.747,-16.722000000000001,null,-16.59,-17.103000000000002,-13.361000000000001]
["Gross AR"]
["     DSO on Gross AR"]
[]
["Property, Plant & Equipment"]
[]
["Computers and equipment",null,null,null,null,null,null,null,null,null,null,null,null,null,null,null,null,null,null,null,null,null,null,null,null,null,null,null,null,null,null,237.48,null,null,null,null,264.73200000000003]
["Furniture & Fixtures",null,null,null,null,null,null,null,null,null,null,null,null,null,null,null,null,null,null,null,null,null,null,null,null,null,null,null,null,null,null,50.008000000000003,null,null,null,null,55.594000000000001]
["Capital projects in progress",null,null,null,null,null,null,null,null,null,null,null,null,null,null,null,null,null,null,null,null,null,null,null,null,null,null,null,null,null,null,2.363,null,null,null,null,15.801]
["Land",null,null,null,null,null,null,null,null,null,null,null,null,null,null,null,null,null,null,null,null,null,null,null,null,null,null,null,null,null,null,35.35,null,null,null,null,67.905000000000001]
["Buildings",null,null,null,null,null,null,null,null,null,null,null,null,null,null,null,null,null,null,null,null,null,null,null,null,null,null,null,null,null,null,62.460999999999999,null,null,null,null,62.463999999999999]
["Leasehold Improvements",null,null,null,null,null,null,null,null,null,null,null,null,null,null,null,null,null,null,null,null,null,null,null,null,null,null,null,null,null,null,93.91,null,null,null,null,114.139]
["Total PPE",null,null,null,null,null,null,null,null,null,null,null,null,null,null,null,null,null,null,null,null,null,null,null,null,null,null,null,null,null,null,{"$f":"SUM(AF137:AF142)","v":481.572},{"$f":"AF143+AG147","v":529.87199999999996},{"$f":"AG143+AH147","v":553.35599999999999},{"$f":"AH143+AI147","v":585.51599999999996},{"$f":"AI143+AJ147","v":613.64699999999993},{"$f":"SUM(AK137:AK142)","v":580.63499999999999},{"$f":"AK143+AL147","v":606.90300000000002},{"$f":"AL143+AM147","v":629.30600000000004},{"$f":"AM143+AN147","v":669.11599999999999},{"$f":"AN143+AO147","v":692.42700000000002},{"$f":"AO143","v":692.42700000000002},{"$f":"AP143+AQ147","v":708.34300000000007},{"$f":"AQ143+AR147","v":718.65500000000009},{"$f":"AR143+AS147","v":777.08600000000013},{"$f":"AS143+AT147","v":812.01900000000012},{"$f":"AT143","v":812.01900000000012},{"$f":"AU143+AV147","v":837.56600000000014},{"$f":"AV143+AW147","v":887.19400000000019},{"$f":"AW143+AX147","v":894.0830000000002},{"$f":"AX143+AY147","v":949.51000000000022},{"$f":"AY143","v":949.51000000000022},{"$f":"AZ143+BA147","v":981.93100000000027},{"$f":"BA143+BB147","v":1019.4320000000002},{"$f":"BB143+BC147","v":1084.9070000000002},{"$f":"BC143+BD147","v":1159.8040000000001},{"$f":"BD143","v":1159.8040000000001},{"$f":"BE143+BF147","v":1210.8920000000001},{"$f":"BF143+BG147","v":1271.6590000000001},{"$f":"BG143+BH147","v":1349.0910000000001},{"$f":"BH143+BI147","v":1430.88},{"$f":"BI143","v":1430.88},{"$f":"BJ143+BK147","v":1491.0700000000002},{"$f":"BK143+BL147","v":1537.3190000000002},{"$f":"BL143+BM147","v":1584.1170000000002},{"$f":"BM143+BN147","v":1619.2380000000003},{"$f":"BN143","v":1619.2380000000003},{"$f":"BO143+BP147","v":1648.6310000000003},{"$f":"BP143+BQ147","v":1675.8290000000004},{"$f":"BQ143+BR147","v":1730.7950000000003},{"$f":"BR143+BS147","v":1780.4957083871889},{"$f":"BS143","v":1780.4957083871889},{"$f":"BT143+BU147","v":1831.3249180288972},{"$f":"BU143+BV147","v":1883.4108476309227},{"$f":"BV143+BW147","v":1938.5210827615219},{"$f":"BW143+BX147","v":1996.9805335146807},{"$f":"BX143","v":1996.9805335146807},{"$f":"BY143+BZ147","v":2058.8345324316615},{"$f":"BZ143+CA147","v":2123.9423461498695},{"$f":"CA143+CB147","v":2192.1668937410009},{"$f":"CB143+CC147","v":2263.4416979363577},{"$f":"CC143","v":2263.4416979363577},{"$f":"CD143+CE147","v":2337.600537848738},{"$f":"CE143+CF147","v":2414.2348121200348},{"$f":"CF143+CG147","v":2493.0668992656265},{"$f":"CG143+CH147","v":2574.047364163077},{"$f":"CH143","v":2574.047364163077},{"$f":"CI143+CJ147","v":2657.1591925607568},{"$f":"CJ143+CK147","v":2742.3188513010582},{"$f":"CK143+CL147","v":2829.4569209683928},{"$f":"CL143+CM147","v":2918.5350537425493},{"$f":"CM143","v":2918.5350537425493}]
["Less:  Accumulated Depreciation",null,null,null,null,null,null,null,null,null,null,null,null,null,null,null,null,null,null,null,null,null,null,null,null,null,null,null,null,null,null,-254.375,{"$f":"AG145-AG143","v":-270.97299999999996},{"$f":"AH145-AH143","v":-286.96100000000001},{"$f":"AI145-AI143","v":-306.79399999999998},{"$f":"AJ145-AJ143","v":-323.88899999999995},{"$f":"AJ144","v":-323.88899999999995},{"$f":"AL145-AL143","v":-309.38100000000003},{"$f":"AM145-AM143","v":-328.93500000000006},{"$f":"AN145-AN143","v":-352.04499999999996},{"$f":"AO145-AO143","v":-379.39000000000004},{"$f":"AO144","v":-379.39000000000004},{"$f":"AQ145-AQ143","v":-407.9670000000001},{"$f":"AR145-AR143","v":-426.93500000000006},{"$f":"AS145-AS143","v":-441.33400000000012},{"$f":"AT145-AT143","v":-423.88700000000011},{"$f":"AT144","v":-423.88700000000011},{"$f":"AV145-AV143","v":-451.36100000000016},{"$f":"AW145-AW143","v":-479.57300000000021},{"$f":"AX145-AX143","v":-471.16300000000018},{"$f":"AY145-AY143","v":-500.62900000000025},{"$f":"AY144","v":-500.62900000000025},{"$f":"BA145-BA143","v":-528.4340000000002},{"$f":"BB145-BB143","v":-556.01700000000028},{"$f":"BC145-BC143","v":-585.84800000000018},{"$f":"BD145-BD143","v":-631.97600000000011},{"$f":"BD144","v":-631.97600000000011},{"$f":"BF145-BF143","v":-661.11200000000008},{"$f":"BG145-BG143","v":-698.09300000000007},{"$f":"BH145-BH143","v":-729.69900000000007},{"$f":"BI145-BI143","v":-766.57800000000009},{"$f":"BI144","v":-766.57800000000009},{"$f":"BK145-BK143","v":-805.05600000000015},{"$f":"BL145-BL143","v":-891.45400000000018},{"$f":"BM145-BM143","v":-924.37000000000023},{"$f":"BN145-BN143","v":-959.46400000000028},{"$f":"BN144","v":-959.46400000000028},{"$f":"BP145-BP143","v":-997.54800000000034},{"$f":"BQ145-BQ143","v":-1033.3790000000004},{"$f":"BR145-BR143","v":-944.93900000000031},{"$f":"BR144-BS150","v":-1018.0908897580667},{"$f":"BS144","v":-1018.0908897580667},{"$f":"BT144-BU150","v":-1093.3371528084019},{"$f":"BU144-BV150","v":-1170.7274812596481},{"$f":"BV144-BW150","v":-1250.3510631428242},{"$f":"BW144-BX150","v":-1332.3406801485785},{"$f":"BX144","v":-1332.3406801485785},{"$f":"BY144-BZ150","v":-1416.836827355794},{"$f":"BZ144-CA150","v":-1503.9780123262426},{"$f":"CA144-CB150","v":-1593.8969548239691},{"$f":"CB144-CC150","v":-1686.7221338172474},{"$f":"CC144","v":-1686.7221338172474},{"$f":"CD144-CE150","v":-1782.5771803961036},{"$f":"CE144-CF150","v":-1881.5737501871197},{"$f":"CF144-CG150","v":-1983.8092025076544},{"$f":"CG144-CH150","v":-2089.3740829957524},{"$f":"CH144","v":-2089.3740829957524},{"$f":"CI144-CJ150","v":-2198.357552927499},{"$f":"CJ144-CK150","v":-2310.846678841287},{"$f":"CK144-CL150","v":-2426.9253407635674},{"$f":"CL144-CM150","v":-2546.6751735700454},{"$f":"CM144","v":-2546.6751735700454}]
["Net PPE",null,null,null,null,null,null,null,null,null,null,null,null,null,null,null,null,null,null,null,null,null,null,null,null,null,null,{"$f":"AB15","v":208.15899999999999},{"$f":"AC15","v":210.18100000000001},{"$f":"AD15","v":212.875},{"$f":"AE15","v":219.31700000000001},{"$f":"SUM(AF143:AF144)","v":227.197},{"$f":"AG15","v":258.899},{"$f":"AH15","v":266.39499999999998},{"$f":"AI15","v":278.72199999999998},{"$f":"AJ15","v":289.75799999999998},{"$f":"SUM(AK143:AK144)","v":256.74600000000004},{"$f":"AL15","v":297.52199999999999},{"$f":"AM15","v":300.37099999999998},{"$f":"AN15","v":317.07100000000003},{"$f":"AO15","v":313.03699999999998},{"$f":"AO145","v":313.03699999999998},{"$f":"AQ15","v":300.37599999999998},{"$f":"AR15","v":291.72000000000003},{"$f":"AS15","v":335.75200000000001},{"$f":"AT15","v":388.13200000000001},{"$f":"AT145","v":388.13200000000001},{"$f":"AV15","v":386.20499999999998},{"$f":"AW15","v":407.62099999999998},{"$f":"AX15","v":422.92},{"$f":"AY15","v":448.88099999999997},{"$f":"AY145","v":448.88099999999997},{"$f":"BA15","v":453.49700000000001},{"$f":"BB15","v":463.41500000000002},{"$f":"BC15","v":499.05900000000003},{"$f":"BD15","v":527.82799999999997},{"$f":"BD145","v":527.82799999999997},{"$f":"BF15","v":549.78},{"$f":"BG15","v":573.56600000000003},{"$f":"BH15","v":619.39200000000005},{"$f":"BI15","v":664.30200000000002},{"$f":"BI145","v":664.30200000000002},{"$f":"BK15","v":686.01400000000001},{"$f":"BL15","v":645.86500000000001},{"$f":"BM15","v":659.74699999999996},{"$f":"BN15","v":659.774},{"$f":"BN145","v":659.774},{"$f":"BP15","v":651.08299999999997},{"$f":"BQ15","v":642.45000000000005},{"$f":"BR15","v":785.85599999999999},{"$f":"SUM(BS143,BS144)","v":762.40481862912213},{"$f":"BS145","v":762.40481862912213},{"$f":"SUM(BU143,BU144)","v":737.98776522049525},{"$f":"SUM(BV143,BV144)","v":712.68336637127459},{"$f":"SUM(BW143,BW144)","v":688.17001961869778},{"$f":"SUM(BX143,BX144)","v":664.63985336610222},{"$f":"BX145","v":664.63985336610222},{"$f":"SUM(BZ143,BZ144)","v":641.99770507586754},{"$f":"SUM(CA143,CA144)","v":619.96433382362693},{"$f":"SUM(CB143,CB144)","v":598.26993891703182},{"$f":"SUM(CC143,CC144)","v":576.71956411911037},{"$f":"CC145","v":576.71956411911037},{"$f":"SUM(CE143,CE144)","v":555.0233574526344},{"$f":"SUM(CF143,CF144)","v":532.66106193291512},{"$f":"SUM(CG143,CG144)","v":509.2576967579721},{"$f":"SUM(CH143,CH144)","v":484.6732811673246},{"$f":"CH145","v":484.6732811673246},{"$f":"SUM(CJ143,CJ144)","v":458.80163963325776},{"$f":"SUM(CK143,CK144)","v":431.47217245977117},{"$f":"SUM(CL143,CL144)","v":402.53158020482533},{"$f":"SUM(CM143,CM144)","v":371.85988017250384},{"$f":"CM145","v":371.85988017250384}]
["Assumed Uselful Life",null,null,null,null,null,null,null,null,null,null,null,null,null,null,null,null,null,null,null,null,null,null,null,null,null,null,null,null,null,null,null,5,5,5,5,{"$f":"(AVERAGE(AK143,AF143)/AK150)","v":4.9296295608750924},{"$f":"(AVERAGE(AL143,AG143)/AL150)","v":18.863877733895325},5,6,6,null,6,6,6,7,null,6,6,7,8,null,6,6,6,8,null,6,6,6,8,null,6,6,6,6,null,6,6,6,6,null,6,6,6,6,null,6,6,6,6,null,6,6,6,6,null,6,6,6,6]
["Capex",null,null,null,null,null,null,null,null,null,null,null,null,null,null,null,null,null,null,null,null,null,null,null,null,null,null,null,null,null,null,null,48.3,23.484000000000009,32.159999999999997,28.130999999999986,{"$f":"SUM(AG147:AJ147)","v":132.07499999999999},26.268000000000001,22.402999999999999,39.809999999999995,23.311000000000007,{"$f":"SUM(AL147:AO147)","v":111.792},15.916,10.312000000000001,58.43099999999999,34.933,{"$f":"SUM(AQ147:AT147)","v":119.59199999999998},25.547000000000001,49.628,6.8889999999999958,55.426999999999992,{"$f":"SUM(AV147:AY147)","v":137.49099999999999},32.420999999999999,37.500999999999998,65.474999999999994,74.896999999999991,{"$f":"SUM(BA147:BD147)","v":210.29399999999998},51.088000000000001,60.767000000000003,77.432000000000002,81.789000000000016,{"$f":"SUM(BF147:BI147)","v":271.07600000000002},60.19,46.248999999999995,46.798000000000002,35.121000000000009,{"$f":"SUM(BK147:BN147)","v":188.358},29.393000000000001,27.198,54.966000000000001,49.700708387188612,{"$f":"SUM(BP147:BS147)","v":161.25770838718861},50.829209641708196,52.085929602025629,55.110235130599271,58.45945075315867,{"$f":"SUM(BU147:BX147)","v":216.48482512749177},61.853998916981013,65.107813718207964,68.224547591131468,71.274804195356978,{"$f":"SUM(BZ147:CC147)","v":266.46116442167744},74.15883991238006,76.63427427129686,78.832087145591615,80.980464897450688,{"$f":"SUM(CE147:CH147)","v":310.60566622671922},83.11182839768,85.159658740301211,87.138069667334562,89.078132774156501,{"$f":"SUM(CJ147:CM147)","v":344.48768957947232}]
["Capex as % of LTM revs",null,null,null,null,null,null,null,null,null,null,null,null,null,null,null,null,null,null,null,null,null,null,null,null,null,null,null,null,null,null,null,1.8799414143309136E-2,8.7648123612070142E-3,1.0980437681065401E-2,8.9081887506210593E-3,null,7.7283395102972453E-3,6.3281234993904341E-3,1.1133176109730998E-2,6.5116544116312E-3,null,4.5790449141126996E-3,3.1309006106045598E-3,1.8825202464922024E-2,1.1858364962542257E-2,null,8.4644202450298404E-3,1.523955750378087E-2,1.940925868690405E-3,1.4586052631578946E-2,null,8.1685439628965042E-3,9.2614499339367506E-3,1.6079152405807106E-2,1.7763856006914186E-2,null,1.2066781111500573E-2,1.4017626588162239E-2,1.7588548090704866E-2,1.8572888066041179E-2,null,1.3785032281114802E-2,1.0875899191756241E-2,1.1230705100037942E-2,8.6606464722186628E-3,null,7.2620369132748294E-3,6.6253429232480407E-3,1.3356057535580678E-2,1.2E-2,null,1.2E-2,1.2E-2,1.2E-2,1.2E-2,null,1.2E-2,1.2E-2,1.2E-2,1.2E-2,null,1.2E-2,1.2E-2,1.2E-2,1.2E-2,null,1.2E-2,1.2E-2,1.2E-2,1.2E-2]
["D&A on CF Statement",null,null,null,null,null,null,null,null,null,null,null,null,null,null,null,null,null,null,null,null,null,null,null,null,null,null,null,null,null,null,null,15.927000000000007,24.995999999999995,35.194000000000017,31.620000000000005,{"$f":"SUM(AG149:AJ149)","v":107.73700000000002},30.131,27.486000000000018,45.655000000000001,52.707999999999998,{"$f":"SUM(AL149:AO149)","v":155.98000000000002},51.715999999999994,64.724999999999994,60.49499999999999,85.037000000000006,{"$f":"SUM(AQ149:AT149)","v":261.97299999999996},68.581000000000003,74.90600000000002,73.153999999999996,76.09699999999998,{"$f":"SUM(AV149:AY149)","v":292.738},66.286000000000001,66.62,64.008999999999986,73.289999999999992,{"$f":"SUM(BA149:BD149)","v":270.20499999999998},69.861000000000004,77.173999999999992,74.110000000000014,78.621000000000009,{"$f":"SUM(BF149:BI149)","v":299.76600000000002},76.751999999999995,80.95,82.175000000000011,81.349999999999966,{"$f":"SUM(BK149:BN149)","v":321.22699999999998},77.635999999999996,77.652999999999992,80.153999999999996,{"$f":"BS150","v":73.151889758066446},{"$f":"SUM(BP149:BS149)","v":308.59488975806642},{"$f":"BU150","v":75.246263050335131},{"$f":"BV150","v":77.390328451246248},{"$f":"BW150","v":79.62358188317593},{"$f":"BX150","v":81.989617005754226},{"$f":"SUM(BU149:BX149)","v":314.24979039051152},{"$f":"BZ150","v":84.496147207215458},{"$f":"CA150","v":87.141184970448577},{"$f":"CB150","v":89.918942497726462},{"$f":"CC150","v":92.825178993278314},{"$f":"SUM(BZ149:CC149)","v":354.38145366866883},{"$f":"CE150","v":95.855046578856161},{"$f":"CF150","v":98.9965697910161},{"$f":"CG150","v":102.23545232053461},{"$f":"CH150","v":105.56488048809798},{"$f":"SUM(CE149:CH149)","v":402.65194917850482},{"$f":"CJ150","v":108.98346993174653},{"$f":"CK150","v":112.4891259137878},{"$f":"CL150","v":116.07866192228023},{"$f":"CM150","v":119.74983280647795},{"$f":"SUM(CJ149:CM149)","v":457.30109057429252}]
["Estimated Depreciation of PP&E",null,null,null,null,null,null,null,null,null,null,null,null,null,null,null,null,null,null,null,null,null,null,null,null,null,null,null,null,null,null,null,{"$f":"AG149","v":15.927000000000007},{"$f":"AH149","v":24.995999999999995},{"$f":"AI149","v":35.194000000000017},{"$f":"AJ149","v":31.620000000000005},{"$f":"SUM(AG150:AJ150)","v":107.73700000000002},{"$f":"AL149","v":30.131},{"$f":"AM149","v":27.486000000000018},{"$f":"AN149","v":45.655000000000001},{"$f":"AO149","v":52.707999999999998},{"$f":"SUM(AL150:AO150)","v":155.98000000000002},{"$f":"AQ149","v":51.715999999999994},{"$f":"AR149","v":64.724999999999994},{"$f":"AS149","v":60.49499999999999},{"$f":"AT149","v":85.037000000000006},{"$f":"SUM(AQ150:AT150)","v":261.97299999999996},{"$f":"AV149","v":68.581000000000003},{"$f":"AW149","v":74.90600000000002},{"$f":"AX149","v":73.153999999999996},{"$f":"AY149","v":76.09699999999998},{"$f":"SUM(AV150:AY150)","v":292.738},{"$f":"BA149","v":66.286000000000001},{"$f":"BB149","v":66.62},{"$f":"BC149","v":64.008999999999986},{"$f":"BD149","v":73.289999999999992},{"$f":"SUM(BA150:BD150)","v":270.20499999999998},{"$f":"BF149","v":69.861000000000004},{"$f":"BG149","v":77.173999999999992},{"$f":"BH149","v":74.110000000000014},{"$f":"BI149","v":78.621000000000009},{"$f":"SUM(BF150:BI150)","v":299.76600000000002},{"$f":"BK149","v":76.751999999999995},{"$f":"BL149","v":80.95},{"$f":"BM149","v":82.175000000000011},{"$f":"BN149","v":81.349999999999966},{"$f":"SUM(BK150:BN150)","v":321.22699999999998},{"$f":"BP149","v":77.635999999999996},{"$f":"BQ149","v":77.652999999999992},{"$f":"BR149","v":80.153999999999996},{"$f":"AVERAGE(BS143,BR143)/BS146/4","v":73.151889758066446},{"$f":"SUM(BP150:BS150)","v":308.59488975806642},{"$f":"AVERAGE(BU143,BS143)/BU146/4","v":75.246263050335131},{"$f":"AVERAGE(BV143,BU143)/BV146/4","v":77.390328451246248},{"$f":"AVERAGE(BW143,BV143)/BW146/4","v":79.62358188317593},{"$f":"AVERAGE(BX143,BW143)/BX146/4","v":81.989617005754226},{"$f":"SUM(BU150:BX150)","v":314.24979039051152},{"$f":"AVERAGE(BZ143,BX143)/BZ146/4","v":84.496147207215458},{"$f":"AVERAGE(CA143,BZ143)/CA146/4","v":87.141184970448577},{"$f":"AVERAGE(CB143,CA143)/CB146/4","v":89.918942497726462},{"$f":"AVERAGE(CC143,CB143)/CC146/4","v":92.825178993278314},{"$f":"SUM(BZ150:CC150)","v":354.38145366866883},{"$f":"AVERAGE(CE143,CC143)/CE146/4","v":95.855046578856161},{"$f":"AVERAGE(CF143,CE143)/CF146/4","v":98.9965697910161},{"$f":"AVERAGE(CG143,CF143)/CG146/4","v":102.23545232053461},{"$f":"AVERAGE(CH143,CG143)/CH146/4","v":105.56488048809798},{"$f":"SUM(CE150:CH150)","v":402.65194917850482},{"$f":"AVERAGE(CJ143,CH143)/CJ146/4","v":108.98346993174653},{"$f":"AVERAGE(CK143,CJ143)/CK146/4","v":112.4891259137878},{"$f":"AVERAGE(CL143,CK143)/CL146/4","v":116.07866192228023},{"$f":"AVERAGE(CM143,CL143)/CM146/4","v":119.74983280647795},{"$f":"SUM(CJ150:CM150)","v":457.30109057429252}]
["Est PPE as % of Total Depreciation",null,null,null,null,null,null,null,null,null,null,null,null,null,null,null,null,null,null,null,null,null,null,null,null,null,null,null,null,null,null,null,{"$f":"AG150/AG149","v":1},1,1,1,1,1,1,1,1,1,1,1,1,1,1,1,1,1,1,1,1,1,1,1,1,1,1,1,1,{"$f":"BJ150/BJ149","v":1},1,1,1,{"$f":"BN150/BN149","v":1},{"$f":"BO150/BO149","v":1},1,1,1,1,1,1,1,1,1,1,1,1,1,1,1,1,1,1,1,1,1,1,1,1,1]
[]
[]
["Reset (0=reset, 1=normal)    ",null,1]

{"sheet":"E___Excel_Errors","index":6,"n_rows":66,"n_cols":7,"rows_kept":66,"cut":false,"hidden":false,"merged":[[40,2,40,3]]}
[]
[null,"Excel Error 1",{"$f":"F3+F4 F6","v":{"$error":"#NULL!"}},"Arises when you specify an intersection of two ranges that don't intersect"]
[null,"product 1",3,10,41,28,48]
[null,"product 2",13,16,25,38,19]
[null,"product 3",47,25,48,19,35]
[null,"product 4",42,48,40,49,21]
[null,"Total",{"$f":"C3+C4+C6","v":58},{"$f":"D3+D4+D6","v":74},106,{"$f":"F3+F4 F6","v":{"$error":"#NULL!"}},88]
[]
[]
[null,"Excel Error 2",{"$f":"F11/F12","v":{"$error":"#DIV/0!"}},"Your formula is attempting to divide by zero"]
[null,"product 1",3,10,60,28,48]
[null,"product 2",1,2,3,0,4]
[null,null,{"$f":"C11/C12","v":3},{"$f":"D11/D12","v":5},20,{"$error":"#DIV/0!"},12]
[]
[]
[null,"Excel Error 3",{"$f":"F17+F18+F20+F19","v":{"$error":"#VALUE!"}},"One of the variables in your formula is of the wrong type"]
[null,"product 1",3,10,41,28,48]
[null,"product 2",13,16,25,38,19]
[null,"product 3",47,25,48,19,35]
[null,"product 4",60,28,3,"product 4",19]
[null,"Total",{"$f":"C17+C18+C20+C19","v":123},{"$f":"D17+D18+D20+D19","v":79},{"$f":"E17+E18+E20+E19","v":117},{"$f":"F17+F18+F20+F19","v":{"$error":"#VALUE!"}},{"$f":"G17+G18+G20+G19","v":121}]
[]
[]
[null,"Excel Error 4",{"$error":"#REF!"},"The formula contains an invalid cell reference"]
[null,"product 1",3,10,41,28,48]
[null,"product 2",13,16,25,38,19]
[null,"product 3",47,25,48,19,35]
[null,"product 4",42,48,40,49,21]
[null,"Total",{"$f":"C25+C26+C28","v":58},{"$f":"D25+D26+D28","v":74},{"$f":"E25+E26+E28","v":106},{"$f":"F25+F26+F27+#REF!","v":{"$error":"#REF!"}},88]
[]
[]
[null,"Excel Error 5",{"$f":"SU(F33:F36)","v":{"$error":"#NAME?"}},"Excel doesn't recognise text in a formula"]
[null,"product 1",3,10,41,28,48]
[null,"product 2",13,16,25,38,19]
[null,"product 3",47,25,48,19,35]
[null,"product 4",42,48,40,49,21]
[null,"Total",{"$f":"SUM(C33:C36)","v":105},{"$f":"SUM(D33:D36)","v":99},154,{"$f":"SU(F33:F36)","v":{"$error":"#NAME?"}},123]
[]
[]
[null,"Excel Error 6",{"$f":"DATEDIF(D$43,D$44,\"D\")","v":{"$error":"#NUM!"}},"Excel has encountered an invalid number"]
[null,null,"number of days"]
[null,null,{"$f":"DATEDIF(C$43,C$44,\"d\")","v":164},{"$f":"DATEDIF(D$43,D$44,\"D\")","v":{"$error":"#NUM!"}}]
[null,null,"2012-11-20T14:51:24","2013-05-03T10:57:59"]
[null,null,"2013-05-03T10:57:59","2009-11-20T14:51:24"]
[]
[]
[null,"Excel Error 7",{"$f":"VLOOKUP(F49,$C$49:$D$51,2,FALSE)","v":{"$error":"#N/A"}},"Indicates that a value is not available to the formula"]
[null,null,null,"Price",null,null,"Price"]
[null,null,"Nissan",36000,null,"Fiat",{"$f":"VLOOKUP(F49,$C$49:$D$51,2,FALSE)","v":{"$error":"#N/A"}}]
[null,null,"Bmw",900,null,"Bmw",{"$f":"VLOOKUP(F50,$C$49:$D$51,2,FALSE)","v":900}]
[null,null,"Opel",750,null,"Nissan",{"$f":"VLOOKUP(F51,$C$49:$D$51,2,FALSE)","v":36000}]
[]
[]
[null,"Excel Error 8","Numbers \nformatted \nas text"]
[null,"product 1",3,10,41,28,48]
[null,"product 2",13,"16",25,38,19]
[null,"product 3",47,"25",48,19,35]
[null,"product 4",42,48,40,49,21]
[null,"Total",{"$f":"SUM(C55:C58)","v":105},{"$f":"SUM(D55:D58)","v":58},{"$f":"SUM(E55:E58)","v":154},{"$f":"SUM(F55:F58)","v":134},{"$f":"SUM(G55:G58)","v":123}]
[]
[]
[null,"Excel Error 9","Circular references"]
[]
[]
[]
[null,null,"Suppress\nExcel errors"]

{"sheet":"F1__World_Data","index":7,"n_rows":191,"n_cols":120,"rows_kept":191,"cut":false,"hidden":false,"merged":[]}
["Total population per country (1960 to 2018)",null,null,null,null,null,null,null,null,null,null,null,null,null,null,null,null,null,null,null,null,null,null,null,null,null,null,null,null,null,null,null,null,null,null,null,null,null,null,null,null,null,null,null,null,null,null,null,null,null,null,null,null,null,null,null,null,null,null,null,null,"Life expectancy per country (1960 to 2018)"]
["Data Source","https://population.un.org/wpp/Download/Standard/CSV/",null,null,null,null,null,null,null,null,null,null,null,null,null,null,null,null,null,null,null,null,null,null,null,null,null,null,null,null,null,null,null,null,null,null,null,null,null,null,null,null,null,null,null,null,null,null,null,null,null,null,null,null,null,null,null,null,null,null,null,"Data Source",null,"https://data.worldbank.org/indicator/SP.DYN.LE00.IN"]
[null,1960,1961,1962,1963,1964,1965,1966,1967,1968,1969,1970,1971,1972,1973,1974,1975,1976,1977,1978,1979,1980,1981,1982,1983,1984,1985,1986,1987,1988,1989,1990,1991,1992,1993,1994,1995,1996,1997,1998,1999,2000,2001,2002,2003,2004,2005,2006,2007,2008,2009,2010,2011,2012,2013,2014,2015,2016,2017,2018,null,1960,1961,1962,1963,1964,1965,1966,1967,1968,1969,1970,1971,1972,1973,1974,1975,1976,1977,1978,1979,1980,1981,1982,1983,1984,1985,1986,1987,1988,1989,1990,1991,1992,1993,1994,1995,1996,1997,1998,1999,2000,2001,2002,2003,2004,2005,2006,2007,2008,2009,2010,2011,2012,2013,2014,2015,2016,2017,2018]
["Albania",1636.0909999999999,1685.9259999999999,1737.675,1790.5709999999999,1843.6489999999999,1896.175,1947.836,1998.7429999999999,2049.2139999999999,2099.7379999999998,2150.7040000000002,2202.1860000000001,2254.058,2306.2840000000001,2358.8519999999999,2411.7330000000002,2464.9810000000002,2518.6849999999999,2572.8519999999999,2627.5059999999999,2682.6970000000001,2737.018,2790.2840000000001,2844.8670000000002,2904.1419999999998,2969.6709999999998,3044.201,3124.8919999999998,3200.9720000000002,3257.913,3286.07,3280.3969999999999,3245.8870000000002,3195.1959999999999,3146.518,3112.9229999999998,3098.6990000000001,3099.7469999999998,3110.6990000000001,3122.7,3129.2460000000001,3129.701,3126.183,3118.0169999999998,3104.893,3086.81,3063.0210000000002,3033.9929999999999,3002.683,2973.0439999999999,2948.029,2928.6010000000001,2914.0909999999999,2903.788,2896.3069999999998,2890.5239999999999,2886.4270000000001,2884.1689999999999,2882.7350000000001,null,62.283000000000001,63.301000000000002,64.19,64.914000000000001,65.462999999999994,65.849999999999994,66.11,66.304000000000002,66.486999999999995,66.688999999999993,66.935000000000002,67.236999999999995,67.581999999999994,67.953000000000003,68.343000000000004,68.736000000000004,69.11,69.447999999999993,69.742000000000004,69.991,70.207999999999998,70.415999999999997,70.635000000000005,70.876000000000005,71.134,71.388000000000005,71.605000000000004,71.760000000000005,71.843000000000004,71.86,71.835999999999999,71.802999999999997,71.802000000000007,71.86,71.992000000000004,72.204999999999998,72.495000000000005,72.837999999999994,73.207999999999998,73.587000000000003,73.954999999999998,74.287999999999997,74.578999999999994,74.828000000000003,75.039000000000001,75.227999999999994,75.423000000000002,75.646000000000001,75.912000000000006,76.221000000000004,76.561999999999998,76.914000000000001,77.251999999999995,77.554000000000002,77.813000000000002,78.025000000000006,78.194000000000003,78.332999999999998,78.457999999999998]
["Algeria",11057.864,11336.335999999999,11619.828,11912.8,12221.674999999999,12550.88,12902.626,13275.02,13663.581,14061.724,14464.992,14872.253000000001,15285.992,15709.831,16149.018,16607.705999999998,17085.798999999999,17582.899000000001,18102.266,18647.800999999999,19221.659,19824.296999999999,20452.901000000002,21101.875,21763.578000000001,22431.507000000001,23102.385999999999,23774.287,24443.472000000002,25106.191999999999,25758.871999999999,26400.468000000001,27028.33,27635.517,28213.776999999998,28757.788,29266.415000000001,29742.98,30192.75,30623.405999999999,31042.238000000001,31451.512999999999,31855.11,32264.159,32692.152999999998,33149.72,33641.006999999998,34166.976000000002,34730.603999999999,35333.881999999998,35977.451000000001,36661.438000000002,37383.898999999998,38140.135000000002,38923.688000000002,39728.019999999997,40551.398000000001,41389.173999999999,42228.415000000001,null,62.283000000000001,63.301000000000002,64.19,64.914000000000001,65.462999999999994,65.849999999999994,66.11,66.304000000000002,66.486999999999995,66.688999999999993,66.935000000000002,67.236999999999995,67.581999999999994,67.953000000000003,68.343000000000004,68.736000000000004,69.11,69.447999999999993,69.742000000000004,69.991,70.207999999999998,70.415999999999997,70.635000000000005,70.876000000000005,71.134,71.388000000000005,71.605000000000004,71.760000000000005,71.843000000000004,71.86,71.835999999999999,71.802999999999997,71.802000000000007,71.86,71.992000000000004,72.204999999999998,72.495000000000005,72.837999999999994,73.207999999999998,73.587000000000003,73.954999999999998,74.287999999999997,74.578999999999994,74.828000000000003,75.039000000000001,75.227999999999994,75.423000000000002,75.646000000000001,75.912000000000006,76.221000000000004,76.561999999999998,76.914000000000001,77.251999999999995,77.554000000000002,77.813000000000002,78.025000000000006,78.194000000000003,78.332999999999998,78.457999999999998]
["American Samoa",20.126999999999999,20.605,21.245999999999999,22.029,22.85,23.675000000000001,24.472999999999999,25.234999999999999,25.98,26.698,27.361999999999998,27.981999999999999,28.564,29.103000000000002,29.594999999999999,30.045000000000002,30.454999999999998,30.834,31.262,31.841999999999999,32.648000000000003,33.697000000000003,34.969000000000001,36.412999999999997,37.945999999999998,39.521000000000001,41.113999999999997,42.741,44.345999999999997,45.893999999999998,47.350999999999999,48.682000000000002,49.9,51.024999999999999,52.098999999999997,53.158000000000001,54.209000000000003,55.226999999999997,56.18,57.048999999999999,57.816000000000003,58.496000000000002,59.076999999999998,59.494999999999997,59.683999999999997,59.557000000000002,59.109000000000002,58.366999999999997,57.49,56.674999999999997,56.084000000000003,55.755000000000003,55.668999999999997,55.716999999999999,55.790999999999997,55.805999999999997,55.738999999999997,55.616999999999997,55.460999999999999,null,62.283000000000001,63.301000000000002,64.19,64.914000000000001,65.462999999999994,65.849999999999994,66.11,66.304000000000002,66.486999999999995,66.688999999999993,66.935000000000002,67.236999999999995,67.581999999999994,67.953000000000003,68.343000000000004,68.736000000000004,69.11,69.447999999999993,69.742000000000004,69.991,70.207999999999998,70.415999999999997,70.635000000000005,70.876000000000005,71.134,71.388000000000005,71.605000000000004,71.760000000000005,71.843000000000004,71.86,71.835999999999999,71.802999999999997,71.802000000000007,71.86,71.992000000000004,72.204999999999998,72.495000000000005,72.837999999999994,73.207999999999998,73.587000000000003,73.954999999999998,74.287999999999997,74.578999999999994,74.828000000000003,75.039000000000001,75.227999999999994,75.423000000000002,75.646000000000001,75.912000000000006,76.221000000000004,76.561999999999998,76.914000000000001,77.251999999999995,77.554000000000002,77.813000000000002,78.025000000000006,78.194000000000003,78.332999999999998,78.457999999999998]
["Andorra",13.41,14.378,15.379,16.407,17.466000000000001,18.542000000000002,19.646000000000001,20.76,21.885999999999999,23.053000000000001,24.274999999999999,25.571000000000002,26.885000000000002,28.231999999999999,29.515000000000001,30.704999999999998,31.782,32.768999999999998,33.744,34.825000000000003,36.063000000000002,37.497999999999998,39.115000000000002,40.853999999999999,42.706000000000003,44.593000000000004,46.52,48.459000000000003,50.433,52.451999999999998,54.508000000000003,56.665999999999997,58.881999999999998,60.973999999999997,62.676000000000002,63.86,64.363,64.317999999999998,64.14,64.367999999999995,65.39,67.343999999999994,70.048000000000002,73.180000000000007,76.25,78.870999999999995,80.995000000000005,82.682000000000002,83.86,84.460999999999999,84.453999999999994,83.748000000000005,82.427000000000007,80.77,79.212999999999994,77.992999999999995,77.295000000000002,76.997,77.007999999999996,null,0,0,0,0,0,0,0,0,0,0,0,0,0,0,0,0,0,0,0,0,0,0,0,0,0,0,0,0,0,0,0,0,0,0,0,0,0,0,0,0,0,0,0,0,0,0,0,0,0,0,0,0,0,0,0,0,0,0,0]
["Angola",5454.9380000000001,5531.451,5608.4989999999998,5679.4089999999997,5734.9949999999999,5770.5730000000003,5781.3050000000003,5774.44,5771.973,5803.6769999999997,5890.36,6041.2389999999996,6248.9650000000001,6497.2830000000004,6761.6229999999996,7023.9939999999997,7279.63,7533.8140000000003,7790.7740000000003,8058.1120000000001,8341.2900000000009,8640.4779999999992,8952.9709999999995,9278.1039999999994,9614.7559999999994,9961.9930000000004,10320.116,10689.246999999999,11068.050999999999,11454.784,11848.385,12248.901,12657.361000000001,13075.044,13503.753000000001,13945.205,14400.722,14871.572,15359.6,15866.870999999999,16395.476999999999,16945.753000000001,17519.418000000001,18121.476999999999,18758.137999999999,19433.603999999999,20149.904999999999,20905.36,21695.635999999999,22514.275000000001,23356.246999999999,24220.66,25107.924999999999,26015.786,26941.773000000001,27884.38,28842.482,29816.769,30809.787,null,0,0,0,0,0,0,0,0,0,0,0,0,0,0,0,0,0,0,0,0,0,0,0,0,0,0,0,0,0,0,0,0,0,0,0,0,0,0,0,0,0,0,0,0,0,0,0,0,0,0,0,0,0,0,0,0,0,0,0]
["Anguilla",6.02,6.09,6.141,6.2069999999999999,6.2830000000000004,6.36,6.4340000000000002,6.52,6.6079999999999997,6.69,6.7729999999999997,6.8540000000000001,6.9489999999999998,7.0229999999999997,7.101,7.1609999999999996,7.202,7.2519999999999998,7.2850000000000001,7.2960000000000003,7.2839999999999998,7.2489999999999997,7.194,7.1449999999999996,7.1820000000000004,7.2919999999999998,7.5119999999999996,7.8419999999999996,8.2219999999999995,8.5820000000000007,8.8940000000000001,9.1379999999999999,9.3330000000000002,9.4909999999999997,9.6609999999999996,9.8680000000000003,10.117000000000001,10.388,10.683999999999999,10.978999999999999,11.247,11.52,11.756,11.993,12.23,12.442,12.66,12.862,13.055999999999999,13.247999999999999,13.436,13.612,13.794,13.952,14.114000000000001,14.279,14.435,14.587999999999999,14.738,null,0,0,0,0,0,0,0,0,0,0,0,0,0,0,0,0,0,0,0,0,0,0,0,0,0,0,0,0,0,0,0,0,0,0,0,0,0,0,0,0,0,0,0,0,0,0,0,0,0,0,0,0,0,0,0,0,0,0,0]
["Argentina",20481.780999999999,20817.27,21153.042000000001,21488.916000000001,21824.427,22159.644,22494.030999999999,22828.871999999999,23168.268,23517.613000000001,23880.563999999998,24259.563999999998,24653.171999999999,25056.474999999999,25462.305,25865.775000000001,26264.681,26661.397000000001,27061.041000000001,27471.045999999998,27896.531999999999,28338.513999999999,28794.55,29262.048999999999,29737.097000000002,30216.284,30698.964,31184.411,31668.938999999998,32148.136999999999,32618.648000000001,33079.002,33529.32,33970.103000000003,34402.669000000002,34828.167999999998,35246.375999999997,35657.438000000002,36063.451000000001,36467.218000000001,36870.796000000002,37275.644,37681.743000000002,38087.866000000002,38491.97,38892.923999999999,39289.875999999997,39684.303,40080.159,40482.786,40895.750999999997,41320.497000000003,41755.188000000002,42196.034,42637.508000000002,43075.415999999997,43508.459000000003,43937.142999999996,44361.15,null,65.055000000000007,65.176000000000002,65.269000000000005,65.347999999999999,65.426000000000002,65.518000000000001,65.64,65.796000000000006,65.989000000000004,66.218999999999994,66.483000000000004,66.774000000000001,67.078000000000003,67.382999999999996,67.686000000000007,67.984999999999999,68.283000000000001,68.584999999999994,68.891000000000005,69.197000000000003,69.495999999999995,69.777000000000001,70.033000000000001,70.262,70.465999999999994,70.650000000000006,70.825000000000003,71.001000000000005,71.186000000000007,71.384,71.593999999999994,71.813000000000002,72.031999999999996,72.245999999999995,72.453000000000003,72.650999999999996,72.843000000000004,73.028999999999996,73.212999999999994,73.396000000000001,73.575999999999993,73.754999999999995,73.932000000000002,74.106999999999999,74.28,74.450999999999993,74.62,74.787000000000006,74.951999999999998,75.116,75.278000000000006,75.438999999999993,75.597999999999999,75.756,75.912999999999997,76.067999999999998,76.221000000000004,76.372,76.52]
["Armenia",1874.1189999999999,1941.498,2009.5239999999999,2077.5839999999998,2145.0039999999999,2211.3159999999998,2276.038,2339.1329999999998,2401.1419999999998,2462.9380000000001,2525.067,2587.7159999999999,2650.4839999999999,2712.78,2773.75,2832.752,2889.5830000000001,2944.375,2997.4189999999999,3049.107,3099.759,3148.096,3193.6959999999999,3238.5920000000001,3285.5929999999998,3335.9349999999999,3392.2640000000001,3451.9470000000001,3504.6669999999999,3536.473,3538.1640000000002,3505.2489999999998,3442.82,3363.1109999999999,3283.6640000000002,3217.3490000000002,3168.2130000000002,3133.0810000000001,3108.6909999999998,3089.02,3069.5970000000002,3050.6860000000001,3033.9760000000001,3017.9380000000001,3000.7150000000001,2981.2620000000002,2958.3009999999999,2932.6149999999998,2907.6149999999998,2888.0940000000001,2877.3139999999999,2876.5360000000001,2884.239,2897.5929999999998,2912.4029999999998,2925.5590000000002,2936.1469999999999,2944.7890000000002,2951.741,null,61.968000000000004,62.523000000000003,63.048999999999999,63.54,63.991999999999997,64.400999999999996,64.762,65.081000000000003,65.363,65.616,65.846999999999994,66.066000000000003,66.28,66.498000000000005,66.727000000000004,66.974999999999994,67.244,67.533000000000001,67.837000000000003,68.153999999999996,68.481999999999999,68.817999999999998,69.156000000000006,69.491,69.819999999999993,70.137,70.44,70.727999999999994,71.004000000000005,71.266999999999996,71.52,71.765000000000001,72.006,72.247,72.489000000000004,72.731999999999999,72.977000000000004,73.221999999999994,73.465000000000003,73.704999999999998,73.94,74.171000000000006,74.394999999999996,74.613,74.820999999999998,75.019000000000005,75.203999999999994,75.376000000000005,75.534999999999997,75.683000000000007,75.822999999999993,75.956000000000003,76.087000000000003,76.218000000000004,76.349000000000004,76.483000000000004,76.617000000000004,76.751999999999995,76.885000000000005]
["Aruba",54.207999999999998,55.433999999999997,56.234000000000002,56.698999999999998,57.029000000000003,57.356999999999999,57.701999999999998,58.043999999999997,58.377000000000002,58.734000000000002,59.07,59.442,59.848999999999997,60.235999999999997,60.527000000000001,60.652999999999999,60.585999999999999,60.366,60.101999999999997,59.972000000000001,60.097000000000001,60.561,61.341000000000001,62.213000000000001,62.826000000000001,63.024000000000001,62.645000000000003,61.838000000000001,61.072000000000003,61.033000000000001,62.152000000000001,64.623000000000005,68.239999999999995,72.495000000000005,76.704999999999998,80.323999999999998,83.210999999999999,85.45,87.28,89.009,90.866,92.891999999999996,94.992000000000004,97.016000000000005,98.744,100.02800000000001,100.83,101.226,101.36199999999999,101.452,101.66500000000001,102.05,102.565,103.16500000000001,103.776,104.339,104.86499999999999,105.361,105.846,null,61.968000000000004,62.523000000000003,63.048999999999999,63.54,63.991999999999997,64.400999999999996,64.762,65.081000000000003,65.363,65.616,65.846999999999994,66.066000000000003,66.28,66.498000000000005,66.727000000000004,66.974999999999994,67.244,67.533000000000001,67.837000000000003,68.153999999999996,68.481999999999999,68.817999999999998,69.156000000000006,69.491,69.819999999999993,70.137,70.44,70.727999999999994,71.004000000000005,71.266999999999996,71.52,71.765000000000001,72.006,72.247,72.489000000000004,72.731999999999999,72.977000000000004,73.221999999999994,73.465000000000003,73.704999999999998,73.94,74.171000000000006,74.394999999999996,74.613,74.820999999999998,75.019000000000005,75.203999999999994,75.376000000000005,75.534999999999997,75.683000000000007,75.822999999999993,75.956000000000003,76.087000000000003,76.218000000000004,76.349000000000004,76.483000000000004,76.617000000000004,76.751999999999995,76.885000000000005]
["Australia",10242.07,10445.835999999999,10643.42,10845.179,11065.419,11313.186,11593.402,11899.644,12215.704,12518.931,12793.03,13033.13,13244.163,13431.79,13605.574000000001,13773.29,13935.722,14092.545,14249.403,14413.002,14588.4,14777.241,14979.203,15194.644,15423.156000000001,15663.672,15917.58,16183.159,16452.258000000002,16713.989000000001,16960.599999999999,17189.235000000001,17402.179,17603.210999999999,17798.526000000002,17993.082999999999,18189.274000000001,18387.205000000002,18587.026999999998,18788.187000000002,18991.434000000001,19194.675999999999,19401.366000000002,19624.163,19879.653999999999,20178.543000000001,20526.3,20916.339,21332.293000000001,21750.851999999999,22154.687000000002,22538.002,22903.951000000001,23254.912,23596.425999999999,23932.499,24262.71,24584.618999999999,24898.152999999998,null,70.817073170731717,70.973170731707327,70.942439024390254,70.911707317073194,70.880975609756106,70.850243902439033,70.819512195121959,70.869268292682932,70.919024390243919,70.968780487804878,71.018536585365865,71.068292682926838,71.457560975609766,71.846829268292694,72.236097560975622,72.62536585365855,73.014634146341479,73.344390243902438,73.674146341463413,74.003902439024415,74.333658536585361,74.663414634146349,74.904878048780503,75.146341463414643,75.387804878048797,75.629268292682937,75.870731707317091,76.151707317073175,76.432682926829287,76.71365853658537,76.994634146341468,77.27560975609758,77.378048780487816,77.878048780487816,77.878048780487816,77.82926829268294,78.078048780487819,78.480487804878052,78.631707317073179,78.931707317073176,79.234146341463429,79.634146341463421,79.936585365853674,80.239024390243912,80.490243902439033,80.841463414634148,81.041463414634151,81.292682926829272,81.395121951219522,81.543902439024407,81.695121951219534,81.895121951219508,82.046341463414635,82.148780487804885,82.3,82.4,82.448780487804896,82.5,82.748780487804893]
["Austria",7070.7730000000001,7111.1390000000001,7156.8360000000002,7205.991,7256.0910000000003,7305.1540000000005,7352.2389999999996,7397.1679999999997,7439.5810000000001,7479.34,7516.2380000000003,7550.3389999999999,7581.12,7607.067,7626.29,7637.6859999999997,7640.7550000000001,7636.5730000000003,7627.7619999999997,7617.8829999999998,7609.75,7604.5119999999997,7602.1769999999997,7603.1,7607.2960000000003,7614.8739999999998,7625.3950000000004,7639.3509999999997,7658.8559999999998,7686.5640000000003,7723.9539999999997,7772.6980000000003,7830.9380000000001,7892.0889999999999,7947.2150000000001,7990.1130000000003,8017.8519999999999,8032.8729999999996,8041.0540000000001,8051.116,8069.2759999999998,8097.7550000000001,8134.4030000000002,8175.8549999999996,8216.81,8253.6560000000009,8285.3449999999993,8313.7309999999998,8341.5249999999996,8372.6579999999994,8409.9449999999997,8453.5010000000002,8502.23,8556.1910000000007,8615.2049999999999,8678.6669999999995,8747.3060000000005,8819.902,8891.3829999999998,null,68.585609756097568,69.577317073170747,69.309512195121968,69.443658536585389,69.921951219512209,69.722195121951216,70.045853658536586,69.917804878048784,70.057560975609761,69.833170731707327,69.91463414634147,70.114634146341473,70.463414634146346,71.014634146341464,71.012195121951223,71.114634146341487,71.565853658536582,71.91463414634147,72.012195121951223,72.312195121951234,72.463414634146346,72.81219512195122,72.960975609756105,73.012195121951237,73.612195121951231,73.814634146341476,74.317073170731717,74.768292682926841,75.217073170731709,75.265853658536599,75.568292682926852,75.6170731707317,75.817073170731717,76.068292682926838,76.419512195121953,76.668292682926847,76.870731707317077,77.319512195121959,77.670731707317088,77.875609756097575,78.126829268292695,78.575609756097563,78.678048780487828,78.631707317073179,79.180487804878055,79.331707317073182,79.880487804878058,80.180487804878055,80.431707317073176,80.331707317073182,80.580487804878061,80.982926829268294,80.936585365853674,81.136585365853662,81.490243902439033,81.190243902439036,81.64146341463416,81.643902439024401,81.643902439024401]
["Azerbaijan",3895.3980000000001,4030.3249999999998,4171.4279999999999,4315.1270000000004,4456.6909999999998,4592.6009999999997,4721.5280000000002,4843.8720000000003,4960.2370000000001,5071.93,5180.0320000000002,5284.518,5385.2659999999996,5483.0879999999997,5579.0709999999999,5674.1289999999999,5768.73,5863.1379999999999,5957.9269999999997,6053.6350000000002,6150.7349999999997,6249.3119999999999,6349.5550000000003,6452.067,6557.5810000000001,6666.4470000000001,6778.6310000000003,6893.4859999999999,7010.027,7126.8770000000004,7242.7579999999998,7357.9449999999997,7471.924,7581.7539999999999,7683.7039999999997,7775.4179999999997,7855.558,7925.6679999999997,7989.9030000000002,8054.1260000000002,8122.7430000000004,8197.2950000000001,8277.0650000000005,8361.4330000000009,8448.9380000000001,8538.61,8630.1530000000002,8724.2369999999992,8821.8690000000006,8924.3829999999998,9032.4650000000001,9146.277,9264.6839999999993,9385.4670000000006,9505.616,9622.741,9736.0409999999993,9845.3160000000007,9949.5370000000003,null,61.033999999999999,61.256,61.469000000000001,61.679000000000002,61.889000000000003,62.103999999999999,62.322000000000003,62.539000000000001,62.75,62.953000000000003,63.140999999999998,63.31,63.457000000000001,63.582000000000001,63.686999999999998,63.776000000000003,63.851999999999997,63.920999999999999,63.991999999999997,64.069000000000003,64.161000000000001,64.28,64.424999999999997,64.587000000000003,64.759,64.912999999999997,65.016000000000005,65.052999999999997,65.021000000000001,64.935000000000002,64.826999999999998,64.745000000000005,64.730999999999995,64.81,64.991,65.256,65.572999999999993,65.899000000000001,66.206999999999994,66.491,66.763000000000005,67.054000000000002,67.391000000000005,67.790999999999997,68.248999999999995,68.747,69.259,69.751999999999995,70.200999999999993,70.596999999999994,70.938000000000002,71.233999999999995,71.506,71.768000000000001,72.022000000000006,72.266000000000005,72.492999999999995,72.692999999999998,72.864000000000004]
["Bahamas",109.532,115.119,121.092,127.34,133.70500000000001,140.06,146.381,152.62100000000001,158.648,164.26499999999999,169.376,173.89400000000001,177.863,181.51900000000001,185.10499999999999,188.89500000000001,192.90299999999999,197.1,201.482,205.99100000000001,210.589,215.321,220.18199999999999,225.095,229.91300000000001,234.57900000000001,239.02,243.26499999999999,247.45099999999999,251.738,256.22699999999998,261.00700000000001,266.02800000000002,271.065,275.84899999999999,280.17899999999997,283.98,287.363,290.60000000000002,294.06299999999999,298.04500000000002,302.61799999999999,307.65699999999998,313.12299999999999,318.89299999999997,324.84800000000001,331.03199999999998,337.387,343.68,349.6,354.93599999999998,359.58300000000003,363.58100000000002,367.16199999999998,370.625,374.2,377.923,381.74900000000002,385.63499999999999,null,61.033999999999999,61.256,61.469000000000001,61.679000000000002,61.889000000000003,62.103999999999999,62.322000000000003,62.539000000000001,62.75,62.953000000000003,63.140999999999998,63.31,63.457000000000001,63.582000000000001,63.686999999999998,63.776000000000003,63.851999999999997,63.920999999999999,63.991999999999997,64.069000000000003,64.161000000000001,64.28,64.424999999999997,64.587000000000003,64.759,64.912999999999997,65.016000000000005,65.052999999999997,65.021000000000001,64.935000000000002,64.826999999999998,64.745000000000005,64.730999999999995,64.81,64.991,65.256,65.572999999999993,65.899000000000001,66.206999999999994,66.491,66.763000000000005,67.054000000000002,67.391000000000005,67.790999999999997,68.248999999999995,68.747,69.259,69.751999999999995,70.200999999999993,70.596999999999994,70.938000000000002,71.233999999999995,71.506,71.768000000000001,72.022000000000006,72.266000000000005,72.492999999999995,72.692999999999998,72.864000000000004]
["Bahrain",162.429,167.899,173.14,178.142,182.88800000000001,187.43199999999999,191.785,196.06,200.65199999999999,206.03700000000001,212.607,220.31100000000001,229.15100000000001,239.52699999999999,251.90799999999999,266.54000000000002,283.74599999999998,303.16899999999998,323.46800000000002,342.80399999999997,359.89699999999999,374.12,385.95299999999997,396.45100000000002,407.233,419.428,433.47800000000001,448.98099999999999,465.19799999999998,481.08100000000002,495.92700000000002,509.762,523.08199999999999,536.21199999999999,549.59,563.69799999999998,578.66099999999994,594.92700000000002,613.697,636.54,664.61,697.55,735.14,778.70799999999997,829.846,889.15700000000004,958.423,1035.924,1114.645,1185.075,1240.864,1278.153,1299.942,1315.029,1336.0730000000001,1371.8530000000001,1425.7929999999999,1494.077,1569.44,null,61.033999999999999,61.256,61.469000000000001,61.679000000000002,61.889000000000003,62.103999999999999,62.322000000000003,62.539000000000001,62.75,62.953000000000003,63.140999999999998,63.31,63.457000000000001,63.582000000000001,63.686999999999998,63.776000000000003,63.851999999999997,63.920999999999999,63.991999999999997,64.069000000000003,64.161000000000001,64.28,64.424999999999997,64.587000000000003,64.759,64.912999999999997,65.016000000000005,65.052999999999997,65.021000000000001,64.935000000000002,64.826999999999998,64.745000000000005,64.730999999999995,64.81,64.991,65.256,65.572999999999993,65.899000000000001,66.206999999999994,66.491,66.763000000000005,67.054000000000002,67.391000000000005,67.790999999999997,68.248999999999995,68.747,69.259,69.751999999999995,70.200999999999993,70.596999999999994,70.938000000000002,71.233999999999995,71.506,71.768000000000001,72.022000000000006,72.266000000000005,72.492999999999995,72.692999999999998,72.864000000000004]
["Bangladesh",48013.504999999997,49362.834000000003,50752.15,52202.008000000002,53741.720999999998,55385.114000000001,57157.650999999998,59034.25,60918.451999999997,62679.764999999999,64232.485999999997,65531.635000000002,66625.706000000006,67637.540999999997,68742.221999999994,70066.31,71652.385999999999,73463.592999999993,75450.032999999996,77529.039999999994,79639.498000000007,81767.516000000003,83932.131999999998,86142.49,88416.528999999995,90764.18,93187.592999999993,95671.159,98186.35,100695.496,103171.95699999999,105599.125,107983.708,110350.641,112737.68399999999,115169.933,117649.927,120160.571,122682.818,125189.655,127657.86199999999,130088.709,132478.07699999999,134791.598,136986.429,139035.505,140921.15400000001,142660.38099999999,144304.16399999999,145924.79500000001,147575.43299999999,149273.13399999999,151005.73300000001,152761.413,154517.38500000001,156256.28700000001,157977.15100000001,159685.421,161376.71299999999,null,61.033999999999999,61.256,61.469000000000001,61.679000000000002,61.889000000000003,62.103999999999999,62.322000000000003,62.539000000000001,62.75,62.953000000000003,63.140999999999998,63.31,63.457000000000001,63.582000000000001,63.686999999999998,63.776000000000003,63.851999999999997,63.920999999999999,63.991999999999997,64.069000000000003,64.161000000000001,64.28,64.424999999999997,64.587000000000003,64.759,64.912999999999997,65.016000000000005,65.052999999999997,65.021000000000001,64.935000000000002,64.826999999999998,64.745000000000005,64.730999999999995,64.81,64.991,65.256,65.572999999999993,65.899000000000001,66.206999999999994,66.491,66.763000000000005,67.054000000000002,67.391000000000005,67.790999999999997,68.248999999999995,68.747,69.259,69.751999999999995,70.200999999999993,70.596999999999994,70.938000000000002,71.233999999999995,71.506,71.768000000000001,72.022000000000006,72.266000000000005,72.492999999999995,72.692999999999998,72.864000000000004]
["Barbados",230.98500000000001,231.71799999999999,232.62299999999999,233.63200000000001,234.58799999999999,235.41499999999999,236.084,236.661,237.24100000000001,237.96299999999999,238.89500000000001,240.09299999999999,241.523,243.07599999999999,244.643,246.15799999999999,247.584,248.93100000000001,250.2,251.34700000000001,252.38800000000001,253.29599999999999,254.078,254.791,255.49299999999999,256.26,257.11700000000002,258.012,258.97000000000003,259.96100000000001,260.93299999999999,261.91199999999998,262.89,263.86900000000003,264.89299999999997,265.95499999999998,267.04700000000003,268.18299999999999,269.334,270.45499999999998,271.51100000000002,272.49400000000003,273.423,274.33100000000002,275.28300000000002,276.32,277.47500000000002,278.70100000000002,279.94600000000003,281.10700000000003,282.13099999999997,282.98700000000002,283.69799999999998,284.29399999999998,284.82499999999999,285.327,285.798,286.22899999999998,286.64,null,61.033999999999999,61.256,61.469000000000001,61.679000000000002,61.889000000000003,62.103999999999999,62.322000000000003,62.539000000000001,62.75,62.953000000000003,63.140999999999998,63.31,63.457000000000001,63.582000000000001,63.686999999999998,63.776000000000003,63.851999999999997,63.920999999999999,63.991999999999997,64.069000000000003,64.161000000000001,64.28,64.424999999999997,64.587000000000003,64.759,64.912999999999997,65.016000000000005,65.052999999999997,65.021000000000001,64.935000000000002,64.826999999999998,64.745000000000005,64.730999999999995,64.81,64.991,65.256,65.572999999999993,65.899000000000001,66.206999999999994,66.491,66.763000000000005,67.054000000000002,67.391000000000005,67.790999999999997,68.248999999999995,68.747,69.259,69.751999999999995,70.200999999999993,70.596999999999994,70.938000000000002,71.233999999999995,71.506,71.768000000000001,72.022000000000006,72.266000000000005,72.492999999999995,72.692999999999998,72.864000000000004]
["Belarus",8124.8810000000003,8204.3439999999991,8279.893,8353.2939999999999,8427.8389999999999,8505.7240000000002,8587.1740000000009,8670.5669999999991,8754.2000000000007,8835.7430000000004,8913.5490000000009,8987.0339999999997,9056.732,9123.4509999999991,9188.4629999999997,9252.7800000000007,9316.3240000000005,9378.9230000000007,9441.4150000000009,9504.8639999999996,9569.8469999999998,9636.152,9703.0879999999997,9770.125,9836.5820000000003,9901.4930000000004,9965.1779999999999,10026.469999999999,10081.209000000001,10124,10151.135,10160.785,10154.338,10135.133,10108.280000000001,10077.606,10044.853999999999,10009.393,9969.9860000000008,9924.44,9871.6350000000002,9811.3989999999994,9745.9320000000007,9679.2350000000006,9616.6280000000006,9562.0830000000005,9516.884,9480.5139999999992,9452.8549999999996,9433.1589999999997,9420.5759999999991,9415.3160000000007,9417.0450000000001,9423.5020000000004,9431.7420000000002,9439.4240000000009,9445.6380000000008,9450.2330000000002,9452.6149999999998,null,61.033999999999999,61.256,61.469000000000001,61.679000000000002,61.889000000000003,62.103999999999999,62.322000000000003,62.539000000000001,62.75,62.953000000000003,63.140999999999998,63.31,63.457000000000001,63.582000000000001,63.686999999999998,63.776000000000003,63.851999999999997,63.920999999999999,63.991999999999997,64.069000000000003,64.161000000000001,64.28,64.424999999999997,64.587000000000003,64.759,64.912999999999997,65.016000000000005,65.052999999999997,65.021000000000001,64.935000000000002,64.826999999999998,64.745000000000005,64.730999999999995,64.81,64.991,65.256,65.572999999999993,65.899000000000001,66.206999999999994,66.491,66.763000000000005,67.054000000000002,67.391000000000005,67.790999999999997,68.248999999999995,68.747,69.259,69.751999999999995,70.200999999999993,70.596999999999994,70.938000000000002,71.233999999999995,71.506,71.768000000000001,72.022000000000006,72.266000000000005,72.492999999999995,72.692999999999998,72.864000000000004]
["Belgium",9167.3610000000008,9225.4140000000007,9283.5450000000001,9340.4189999999999,9394.2999999999993,9443.9480000000003,9488.759,9529.0460000000003,9565.5910000000003,9599.6509999999998,9632.1790000000001,9663.3230000000003,9692.8449999999993,9720.75,9747.0229999999992,9771.5820000000003,9794.7710000000006,9816.6929999999993,9836.8119999999999,9854.3719999999994,9868.9989999999998,9880.5939999999991,9889.8189999999995,9897.8770000000004,9906.3700000000008,9916.5769999999993,9928.5390000000007,9942.2810000000009,9959.0110000000004,9980.1749999999993,10006.545,10039.450000000001,10078.098,10118.683999999999,10155.909,10186.304,10208.264999999999,10223.785,10237.298000000001,10255.161,10282.046,10319.026,10364.879000000001,10419.029,10480.118,10546.885,10619.484,10697.575999999999,10778.763999999999,10859.933999999999,10938.735000000001,11013.86,11085.355,11154.008,11221.225,11287.931,11354.406999999999,11419.752,11482.18,null,69.70195121951221,70.520975609756093,70.219512195121965,70.051463414634156,70.755121951219522,70.62536585365855,70.706341463414645,71.012926829268309,70.693170731707326,70.764878048780488,70.971951219512206,71.060487804878065,71.405121951219513,71.635365853658556,71.985853658536584,71.97121951219512,72.119756097560995,72.773902439024411,72.698048780487809,73.193658536585374,73.207073170731718,73.621707317073188,73.888048780487821,73.869024390243908,74.404878048780489,74.520243902439034,74.731707317073187,75.365853658536594,75.565853658536597,75.63268292682929,76.051951219512205,76.192195121951229,76.351219512195129,76.345365853658535,76.691707317073181,76.84073170731709,77.187317073170732,77.370731707317091,77.473170731707327,77.619512195121956,77.721951219512192,77.973170731707341,78.075609756097577,78.129268292682923,78.878048780487802,78.980487804878067,79.380487804878044,79.782926829268305,79.680487804878055,80.034146341463412,80.182926829268297,80.585365853658544,80.385365853658541,80.587804878048786,81.287804878048775,80.992682926829289,81.439024390243901,81.492682926829275,81.595121951219525]
["Benin",2431.6170000000002,2465.8649999999998,2502.8969999999999,2542.864,2585.9609999999998,2632.3609999999999,2682.1590000000001,2735.308,2791.5880000000002,2850.6570000000002,2912.3380000000002,2976.5749999999998,3043.5630000000001,3113.681,3187.413,3265.1669999999999,3347.1689999999999,3433.4450000000002,3523.933,3618.5189999999998,3717.1610000000001,3820.1260000000002,3927.7170000000001,4039.94,4156.8190000000004,4278.5020000000004,4404.5039999999999,4535.2619999999997,4672.8440000000001,4820.0200000000004,4978.4889999999996,5149.4960000000001,5331.8050000000003,5521.7610000000004,5714.2150000000001,5905.5519999999997,6094.2719999999999,6281.6440000000002,6470.2749999999996,6664.1019999999999,6865.9459999999999,7076.7280000000001,7295.4,7520.5559999999996,7750.0029999999997,7982.223,8216.893,8454.7900000000009,8696.9150000000009,8944.7129999999997,9199.2540000000008,9460.8289999999997,9729.2540000000008,10004.593999999999,10286.839,10575.962,10872.072,11175.191999999999,11485.035,null,37.271000000000001,37.726999999999997,38.188000000000002,38.655000000000001,39.130000000000003,39.615000000000002,40.109000000000002,40.61,41.116999999999997,41.63,42.152000000000001,42.683999999999997,43.228999999999999,43.780999999999999,44.337000000000003,44.881999999999998,45.399000000000001,45.883000000000003,46.335000000000001,46.764000000000003,47.19,47.643000000000001,48.145000000000003,48.71,49.338999999999999,50.033999999999999,50.79,51.581000000000003,52.372,53.131999999999998,53.811999999999998,54.366,54.776000000000003,55.042000000000002,55.173999999999999,55.203000000000003,55.17,55.133000000000003,55.139000000000003,55.218000000000004,55.390999999999998,55.667999999999999,56.024999999999999,56.436,56.887,57.354999999999997,57.817,58.255000000000003,58.654000000000003,59.009,59.317999999999998,59.59,59.841999999999999,60.091999999999999,60.344999999999999,60.607999999999997,60.884999999999998,61.173999999999999,61.47]
["Bermuda",44.985999999999997,45.899000000000001,46.814999999999998,47.722999999999999,48.591999999999999,49.381999999999998,50.118000000000002,50.784999999999997,51.387,51.978999999999999,52.564999999999998,53.154000000000003,53.75,54.326999999999998,54.881999999999998,55.399000000000001,55.877000000000002,56.317999999999998,56.750999999999998,57.17,57.58,57.987000000000002,58.39,58.784999999999997,59.180999999999997,59.594000000000001,60.011000000000003,60.421999999999997,60.838999999999999,61.243000000000002,61.63,62.012,62.390999999999998,62.75,63.100999999999999,63.439,63.77,64.091999999999999,64.39,64.703999999999994,65.016999999999996,65.33,65.652000000000001,65.936000000000007,66.156000000000006,66.260000000000005,66.239999999999995,66.126000000000005,65.94,65.674999999999997,65.388000000000005,65.075999999999993,64.736999999999995,64.381,64.037999999999997,63.695,63.36,63.04,62.762999999999998,null,37.271000000000001,37.726999999999997,38.188000000000002,38.655000000000001,39.130000000000003,39.615000000000002,40.109000000000002,40.61,41.116999999999997,41.63,42.152000000000001,42.683999999999997,43.228999999999999,43.780999999999999,44.337000000000003,44.881999999999998,45.399000000000001,45.883000000000003,46.335000000000001,46.764000000000003,47.19,47.643000000000001,48.145000000000003,48.71,49.338999999999999,50.033999999999999,50.79,51.581000000000003,52.372,53.131999999999998,53.811999999999998,54.366,54.776000000000003,55.042000000000002,55.173999999999999,55.203000000000003,55.17,55.133000000000003,55.139000000000003,55.218000000000004,55.390999999999998,55.667999999999999,56.024999999999999,56.436,56.887,57.354999999999997,57.817,58.255000000000003,58.654000000000003,59.009,59.317999999999998,59.59,59.841999999999999,60.091999999999999,60.344999999999999,60.607999999999997,60.884999999999998,61.173999999999999,61.47]
["Bhutan",223.28399999999999,228.84899999999999,234.55199999999999,240.529,246.96100000000001,253.99299999999999,261.66399999999999,269.94400000000002,278.73099999999999,287.88600000000002,297.30700000000002,306.95699999999999,316.822,326.98599999999999,337.49099999999999,348.39499999999998,359.721,371.42399999999998,383.32400000000001,395.19200000000001,406.88299999999998,418.10700000000003,428.93799999999999,439.82299999999998,451.471,464.26400000000001,478.68299999999999,494.31299999999999,509.53199999999998,522.173,530.80100000000004,534.63699999999994,534.52499999999998,532.59,531.90499999999997,534.62900000000002,541.471,551.71299999999997,564.37800000000004,577.88599999999997,591.01400000000001,603.64300000000003,616.02499999999998,627.84,638.80899999999997,648.74400000000003,657.404,664.87300000000005,671.61099999999999,678.32899999999995,685.50199999999995,693.29700000000003,701.58199999999999,710.23500000000001,719.053,727.88499999999999,736.70600000000002,745.56299999999999,754.39599999999996,null,37.271000000000001,37.726999999999997,38.188000000000002,38.655000000000001,39.130000000000003,39.615000000000002,40.109000000000002,40.61,41.116999999999997,41.63,42.152000000000001,42.683999999999997,43.228999999999999,43.780999999999999,44.337000000000003,44.881999999999998,45.399000000000001,45.883000000000003,46.335000000000001,46.764000000000003,47.19,47.643000000000001,48.145000000000003,48.71,49.338999999999999,50.033999999999999,50.79,51.581000000000003,52.372,53.131999999999998,53.811999999999998,54.366,54.776000000000003,55.042000000000002,55.173999999999999,55.203000000000003,55.17,55.133000000000003,55.139000000000003,55.218000000000004,55.390999999999998,55.667999999999999,56.024999999999999,56.436,56.887,57.354999999999997,57.817,58.255000000000003,58.654000000000003,59.009,59.317999999999998,59.59,59.841999999999999,60.091999999999999,60.344999999999999,60.607999999999997,60.884999999999998,61.173999999999999,61.47]
["Bosnia and Herzegovina",3225.6640000000002,3288.6039999999998,3353.2280000000001,3417.5729999999999,3478.9989999999998,3535.6320000000001,3586.63,3632.6779999999999,3675.4479999999999,3717.4760000000001,3760.5360000000001,3805.2860000000001,3851.1529999999998,3897.259,3942.221,3985.107,4025.2710000000002,4063.1880000000001,4100.3549999999996,4138.8159999999998,4179.8500000000004,4222.4790000000003,4265.183,4307.9070000000002,4350.5659999999998,4392.1350000000002,4435.9250000000002,4479.5159999999996,4509.4620000000004,4507.8190000000004,4463.4219999999996,4369.32,4233.6729999999998,4078.94,3936.527,3829.049,3764.4189999999999,3736.07,3734.3380000000002,3743.3530000000001,3751.1759999999999,3755.5140000000001,3759.3890000000001,3762.1790000000001,3764.194,3765.3319999999999,3765.422,3762.7910000000002,3754.261,3735.9450000000002,3705.4780000000001,3661.1729999999998,3604.9720000000002,3542.598,3482.1060000000002,3429.3620000000001,3386.2629999999999,3351.5340000000001,3323.9290000000001,null,37.271000000000001,37.726999999999997,38.188000000000002,38.655000000000001,39.130000000000003,39.615000000000002,40.109000000000002,40.61,41.116999999999997,41.63,42.152000000000001,42.683999999999997,43.228999999999999,43.780999999999999,44.337000000000003,44.881999999999998,45.399000000000001,45.883000000000003,46.335000000000001,46.764000000000003,47.19,47.643000000000001,48.145000000000003,48.71,49.338999999999999,50.033999999999999,50.79,51.581000000000003,52.372,53.131999999999998,53.811999999999998,54.366,54.776000000000003,55.042000000000002,55.173999999999999,55.203000000000003,55.17,55.133000000000003,55.139000000000003,55.218000000000004,55.390999999999998,55.667999999999999,56.024999999999999,56.436,56.887,57.354999999999997,57.817,58.255000000000003,58.654000000000003,59.009,59.317999999999998,59.59,59.841999999999999,60.091999999999999,60.344999999999999,60.607999999999997,60.884999999999998,61.173999999999999,61.47]
["Botswana",502.733,512.68799999999999,523.77700000000004,535.69200000000001,547.87,559.99599999999998,571.95699999999999,584.09799999999996,596.94600000000003,611.29700000000003,627.71400000000006,646.35,667.096,689.90599999999995,714.70100000000002,741.346,769.98199999999997,800.53200000000004,832.46699999999998,865.07299999999998,897.86,930.41200000000003,962.85900000000004,996.12400000000002,1031.4390000000001,1069.585,1110.9480000000001,1154.904,1200.0730000000001,1244.4839999999999,1286.7560000000001,1326.3209999999999,1363.5409999999999,1399.11,1434.0609999999999,1469.173,1504.7239999999999,1540.424,1575.827,1610.26,1643.3330000000001,1674.674,1704.6369999999999,1734.3869999999999,1765.5329999999999,1799.077,1835.9110000000001,1875.4580000000001,1915.636,1953.4949999999999,1987.106,2015.4059999999999,2039.5509999999999,2062.5509999999999,2088.6190000000001,2120.7159999999999,2159.9250000000002,2205.076,2254.067,null,37.271000000000001,37.726999999999997,38.188000000000002,38.655000000000001,39.130000000000003,39.615000000000002,40.109000000000002,40.61,41.116999999999997,41.63,42.152000000000001,42.683999999999997,43.228999999999999,43.780999999999999,44.337000000000003,44.881999999999998,45.399000000000001,45.883000000000003,46.335000000000001,46.764000000000003,47.19,47.643000000000001,48.145000000000003,48.71,49.338999999999999,50.033999999999999,50.79,51.581000000000003,52.372,53.131999999999998,53.811999999999998,54.366,54.776000000000003,55.042000000000002,55.173999999999999,55.203000000000003,55.17,55.133000000000003,55.139000000000003,55.218000000000004,55.390999999999998,55.667999999999999,56.024999999999999,56.436,56.887,57.354999999999997,57.817,58.255000000000003,58.654000000000003,59.009,59.317999999999998,59.59,59.841999999999999,60.091999999999999,60.344999999999999,60.607999999999997,60.884999999999998,61.173999999999999,61.47]
["Brazil",72179.235000000001,74311.338000000003,76514.328999999998,78772.646999999997,81064.572,83373.532999999996,85696.501999999993,88035.815000000002,90387.078999999998,92746.607000000004,95113.264999999999,97482.928,99859.388000000006,102259.497,104706.193,107216.209,109790.943,112425.39200000001,115121.158,117878.412,120694.012,123570.327,126498.322,129448.815,132383.56899999999,135274.08300000001,138108.91500000001,140891.606,143627.505,146328.30499999999,149003.22500000001,151648.00700000001,154259.38200000001,156849.08600000001,159432.717,162019.889,164614.682,167209.046,169785.253,172318.674,174790.33900000001,177196.05100000001,179537.52299999999,181809.24400000001,184006.47899999999,186127.10800000001,188167.353,190130.44500000001,192030.36199999999,193886.505,195713.63699999999,197514.541,199287.29199999999,201035.90400000001,202763.74400000001,204471.75899999999,206163.05600000001,207833.82500000001,209469.32,null,54.143000000000001,54.634,55.13,55.627000000000002,56.121000000000002,56.61,57.091000000000001,57.563000000000002,58.024999999999999,58.475000000000001,58.911000000000001,59.332000000000001,59.738999999999997,60.131999999999998,60.512999999999998,60.884,61.243000000000002,61.594999999999999,61.942,62.286000000000001,62.63,62.975999999999999,63.326000000000001,63.68,64.039000000000001,64.406000000000006,64.781999999999996,65.165000000000006,65.552999999999997,65.947000000000003,66.343000000000004,66.742000000000004,67.141000000000005,67.539000000000001,67.932000000000002,68.317999999999998,68.694999999999993,69.061000000000007,69.418999999999997,69.769000000000005,70.116,70.462000000000003,70.813000000000002,71.17,71.531000000000006,71.896000000000001,72.260000000000005,72.617999999999995,72.965999999999994,73.3,73.619,73.921000000000006,74.209000000000003,74.483000000000004,74.745000000000005,74.994,75.23,75.456000000000003,75.671999999999997]
["Bulgaria",7885.607,7953.4719999999998,8022.1570000000002,8090.7030000000004,8157.8339999999998,8222.5879999999997,8284.4490000000005,8343.4940000000006,8400.0120000000006,8454.5840000000007,8507.5409999999993,8559.0349999999999,8608.66,8655.7070000000003,8699.1740000000009,8738.3860000000004,8772.5560000000005,8801.8989999999994,8828.0300000000007,8853.2070000000003,8878.7870000000003,8905.0969999999998,8930.7080000000005,8953.1219999999994,8968.9089999999997,8975.3529999999992,8972.5550000000003,8960.5540000000001,8936.652,8897.5409999999993,8841.4660000000003,8767,8676.3790000000008,8576.0419999999995,8474.8220000000001,8379.3050000000003,8291.9699999999993,8211.8040000000001,8137.6689999999999,8067.0050000000001,7997.951,7930.7,7866.2420000000002,7804.3059999999996,7744.63,7686.9639999999999,7631.02,7576.6750000000002,7524.0839999999998,7473.509,7425.0110000000004,7378.652,7334.0069999999996,7290.0919999999996,7245.6480000000001,7199.7389999999996,7151.9480000000003,7102.4520000000002,7051.61,null,49.179000000000002,49.683999999999997,50.170999999999999,50.640999999999998,51.098999999999997,51.546999999999997,51.991,52.435000000000002,52.884999999999998,53.345999999999997,53.823999999999998,54.326999999999998,54.853000000000002,55.398000000000003,55.957000000000001,56.524000000000001,57.091000000000001,57.649000000000001,58.186,58.692,59.173999999999999,59.646999999999998,60.109000000000002,60.542999999999999,60.915999999999997,61.167000000000002,61.226999999999997,61.058999999999997,60.651000000000003,60.015999999999998,59.191000000000003,58.231999999999999,57.219000000000001,56.222000000000001,55.283999999999999,54.41,53.572000000000003,52.749000000000002,51.947000000000003,51.213999999999999,50.628999999999998,50.280999999999999,50.231999999999999,50.518000000000001,51.15,52.13,53.435000000000002,54.982999999999997,56.679000000000002,58.447000000000003,60.210999999999999,61.91,63.511000000000003,64.975999999999999,66.265000000000001,67.337999999999994,68.177999999999997,68.811999999999998,69.275000000000006]
["Burkina Faso",4829.2889999999998,4894.58,4960.3280000000004,5027.8109999999997,5098.8909999999996,5174.8739999999998,5256.36,5343.0249999999996,5434.0460000000003,5528.1719999999996,5624.5919999999996,5723.3779999999997,5825.174,5930.4930000000004,6040.0450000000001,6154.5540000000001,6274.0320000000002,6398.933,6530.82,6671.6559999999999,6822.8370000000004,6985.1660000000002,7158.259,7340.91,7531.2389999999996,7727.9080000000004,7930.6890000000003,8140.08,8356.3130000000001,8579.8179999999993,8811.0329999999994,9050.0859999999993,9297.11,9552.473,9816.5840000000007,10089.879999999999,10372.734,10665.552,10968.722,11282.696,11607.950999999999,11944.589,12293.097,12654.624,13030.575999999999,13421.934999999999,13829.173000000001,14252.029,14689.725,15141.098,15605.210999999999,16081.915000000001,16571.252,17072.791000000001,17586.028999999999,18110.616000000002,18646.349999999999,19193.236000000001,19751.466,null,49.179000000000002,49.683999999999997,50.170999999999999,50.640999999999998,51.098999999999997,51.546999999999997,51.991,52.435000000000002,52.884999999999998,53.345999999999997,53.823999999999998,54.326999999999998,54.853000000000002,55.398000000000003,55.957000000000001,56.524000000000001,57.091000000000001,57.649000000000001,58.186,58.692,59.173999999999999,59.646999999999998,60.109000000000002,60.542999999999999,60.915999999999997,61.167000000000002,61.226999999999997,61.058999999999997,60.651000000000003,60.015999999999998,59.191000000000003,58.231999999999999,57.219000000000001,56.222000000000001,55.283999999999999,54.41,53.572000000000003,52.749000000000002,51.947000000000003,51.213999999999999,50.628999999999998,50.280999999999999,50.231999999999999,50.518000000000001,51.15,52.13,53.435000000000002,54.982999999999997,56.679000000000002,58.447000000000003,60.210999999999999,61.91,63.511000000000003,64.975999999999999,66.265000000000001,67.337999999999994,68.177999999999997,68.811999999999998,69.275000000000006]
["Burundi",2797.9250000000002,2852.4380000000001,2907.32,2964.4160000000002,3026.2919999999999,3094.3780000000002,3170.4960000000001,3253.2150000000001,3336.93,3413.9090000000001,3479.07,3530,3569.6550000000002,3605.12,3646.4279999999999,3700.8789999999999,3770.87,3854.4459999999999,3949.2640000000001,4051.239,4157.2960000000003,4266.5200000000004,4379.7269999999999,4497.5439999999999,4621.0959999999995,4750.8320000000003,4886.7449999999999,5027.143,5168.7030000000004,5307.0690000000004,5438.9589999999998,5564.9229999999998,5685.5690000000004,5798.0540000000001,5898.9639999999999,5987.0439999999999,6060.11,6122.13,6185.5640000000003,6267.1319999999996,6378.8710000000001,6525.5460000000003,6704.1180000000004,6909.1610000000001,7131.6880000000001,7364.857,7607.85,7862.2259999999997,8126.1040000000003,8397.6610000000001,8675.6059999999998,8958.4060000000009,9245.9920000000002,9540.3019999999997,9844.3009999999995,10160.034,10488.002,10827.01,11175.379000000001,null,49.179000000000002,49.683999999999997,50.170999999999999,50.640999999999998,51.098999999999997,51.546999999999997,51.991,52.435000000000002,52.884999999999998,53.345999999999997,53.823999999999998,54.326999999999998,54.853000000000002,55.398000000000003,55.957000000000001,56.524000000000001,57.091000000000001,57.649000000000001,58.186,58.692,59.173999999999999,59.646999999999998,60.109000000000002,60.542999999999999,60.915999999999997,61.167000000000002,61.226999999999997,61.058999999999997,60.651000000000003,60.015999999999998,59.191000000000003,58.231999999999999,57.219000000000001,56.222000000000001,55.283999999999999,54.41,53.572000000000003,52.749000000000002,51.947000000000003,51.213999999999999,50.628999999999998,50.280999999999999,50.231999999999999,50.518000000000001,51.15,52.13,53.435000000000002,54.982999999999997,56.679000000000002,58.447000000000003,60.210999999999999,61.91,63.511000000000003,64.975999999999999,66.265000000000001,67.337999999999994,68.177999999999997,68.811999999999998,69.275000000000006]
["Cabo Verde",201.77,205.321,210.14099999999999,216.08699999999999,222.94900000000001,230.42099999999999,238.655,247.52199999999999,256.16899999999998,263.46100000000001,268.63299999999998,271.315,271.84100000000001,271.06799999999998,270.22800000000001,270.24,271.34500000000003,273.33499999999998,276.18200000000002,279.72899999999998,283.84800000000001,288.678,294.24400000000003,300.226,306.14,311.66800000000001,316.613,321.137,325.74400000000003,331.18,337.95299999999997,346.22899999999998,355.76299999999998,366.05700000000002,376.40899999999999,386.28800000000001,395.53300000000002,404.24799999999999,412.51299999999998,420.45600000000002,428.178,435.70100000000002,442.95499999999998,449.92500000000001,456.61900000000003,463.03399999999999,469.17099999999999,475.06700000000001,480.846,486.66699999999997,492.64400000000001,498.858,505.24099999999999,511.74,518.27599999999995,524.74,531.14,537.49900000000002,543.76400000000001,null,49.179000000000002,49.683999999999997,50.170999999999999,50.640999999999998,51.098999999999997,51.546999999999997,51.991,52.435000000000002,52.884999999999998,53.345999999999997,53.823999999999998,54.326999999999998,54.853000000000002,55.398000000000003,55.957000000000001,56.524000000000001,57.091000000000001,57.649000000000001,58.186,58.692,59.173999999999999,59.646999999999998,60.109000000000002,60.542999999999999,60.915999999999997,61.167000000000002,61.226999999999997,61.058999999999997,60.651000000000003,60.015999999999998,59.191000000000003,58.231999999999999,57.219000000000001,56.222000000000001,55.283999999999999,54.41,53.572000000000003,52.749000000000002,51.947000000000003,51.213999999999999,50.628999999999998,50.280999999999999,50.231999999999999,50.518000000000001,51.15,52.13,53.435000000000002,54.982999999999997,56.679000000000002,58.447000000000003,60.210999999999999,61.91,63.511000000000003,64.975999999999999,66.265000000000001,67.337999999999994,68.177999999999997,68.811999999999998,69.275000000000006]
["Cambodia",5722.3720000000003,5872.9679999999998,6028.4340000000002,6183.5860000000002,6331.4430000000002,6467.1909999999998,6585.0339999999997,6685.9610000000002,6779.7780000000002,6880.6229999999996,6996.576,7139.64,7302.1139999999996,7449.2330000000002,7533.3320000000003,7524.4570000000003,7404.6869999999999,7196.0420000000004,6957.2669999999998,6770.393,6693.759,6749.8490000000002,6919.8029999999999,7170.0039999999999,7447.8440000000001,7714.8940000000002,7960.9520000000002,8198.0820000000003,8435.9089999999997,8691.3310000000001,8975.5969999999998,9289.2980000000007,9623.8989999999994,9970.7270000000008,10317.901,10656.145,10982.919,11298.593999999999,11600.51,11886.464,12155.241,12405.411,12637.718999999999,12856.171,13066.475,13273.355,13477.705,13679.953,13883.834999999999,14093.605,14312.205,14541.421,14780.454,15026.33,15274.505999999999,15521.434999999999,15766.29,16009.413,16249.795,null,49.179000000000002,49.683999999999997,50.170999999999999,50.640999999999998,51.098999999999997,51.546999999999997,51.991,52.435000000000002,52.884999999999998,53.345999999999997,53.823999999999998,54.326999999999998,54.853000000000002,55.398000000000003,55.957000000000001,56.524000000000001,57.091000000000001,57.649000000000001,58.186,58.692,59.173999999999999,59.646999999999998,60.109000000000002,60.542999999999999,60.915999999999997,61.167000000000002,61.226999999999997,61.058999999999997,60.651000000000003,60.015999999999998,59.191000000000003,58.231999999999999,57.219000000000001,56.222000000000001,55.283999999999999,54.41,53.572000000000003,52.749000000000002,51.947000000000003,51.213999999999999,50.628999999999998,50.280999999999999,50.231999999999999,50.518000000000001,51.15,52.13,53.435000000000002,54.982999999999997,56.679000000000002,58.447000000000003,60.210999999999999,61.91,63.511000000000003,64.975999999999999,66.265000000000001,67.337999999999994,68.177999999999997,68.811999999999998,69.275000000000006]
["Cameroon",5176.92,5285.0150000000003,5398.73,5518.1040000000003,5643.0389999999998,5773.5379999999996,5909.8739999999998,6052.4189999999999,6201.41,6357.0959999999995,6519.7539999999999,6689.6589999999997,6867.17,7052.8469999999998,7247.2839999999997,7451.0569999999998,7664.3980000000001,7887.5709999999999,8121.0810000000001,8365.56,8621.4089999999997,8888.5339999999997,9166.8130000000001,9456.4959999999992,9757.8490000000002,10070.806,10395.481,10731.058000000001,11075.423000000001,11425.807000000001,11780.085999999999,12137.912,12499.499,12864.091,13230.977999999999,13599.984,13970.812,14344.444,14723.772000000001,15112.598,15513.944,15928.91,16357.605,16800.868999999999,17259.322,17733.407999999999,18223.677,18730.282999999999,19252.673999999999,19789.921999999999,20341.236000000001,20906.392,21485.267,22077.3,22681.852999999999,23298.376,23926.548999999999,24566.07,25216.260999999999,null,49.179000000000002,49.683999999999997,50.170999999999999,50.640999999999998,51.098999999999997,51.546999999999997,51.991,52.435000000000002,52.884999999999998,53.345999999999997,53.823999999999998,54.326999999999998,54.853000000000002,55.398000000000003,55.957000000000001,56.524000000000001,57.091000000000001,57.649000000000001,58.186,58.692,59.173999999999999,59.646999999999998,60.109000000000002,60.542999999999999,60.915999999999997,61.167000000000002,61.226999999999997,61.058999999999997,60.651000000000003,60.015999999999998,59.191000000000003,58.231999999999999,57.219000000000001,56.222000000000001,55.283999999999999,54.41,53.572000000000003,52.749000000000002,51.947000000000003,51.213999999999999,50.628999999999998,50.280999999999999,50.231999999999999,50.518000000000001,51.15,52.13,53.435000000000002,54.982999999999997,56.679000000000002,58.447000000000003,60.210999999999999,61.91,63.511000000000003,64.975999999999999,66.265000000000001,67.337999999999994,68.177999999999997,68.811999999999998,69.275000000000006]
["Canada",17847.403999999999,18233.965,18596.848000000002,18943.237000000001,19284.227999999999,19627.973000000002,19975.695,20324.786,20674.999,21025.257000000001,21374.326000000001,21723.465,22072.192999999999,22415.312999999998,22745.896000000001,23059.266,23354.587,23634.377,23901.716,24161.133000000002,24416.884999999998,24668.159,24916.538,25171.436000000002,25444.885999999999,25744.807000000001,26075.504000000001,26432.894,26806.125,27179.496999999999,27541.323,27888.812999999998,28224.41,28547.964,28860.734,29164.152999999998,29457.82,29742.378000000001,30022.078000000001,30302.510999999999,30588.379000000001,30880.072,31178.26,31488.045999999998,31815.49,32164.312999999998,32536.993999999999,32930.794999999998,33337.637999999999,33746.093000000001,34147.565999999999,34539.156000000003,34922.031000000003,35296.535000000003,35664.338000000003,36026.667999999998,36382.942000000003,36732.091,37074.557999999997,null,71.133170731707324,71.346097560975622,71.367073170731715,71.380731707317082,71.776341463414639,71.872195121951236,72.004390243902449,72.20780487804879,72.353414634146347,72.501463414634145,72.700487804878051,73.029268292682929,72.933902439024394,73.162682926829277,73.237560975609767,73.521707317073165,73.856097560975613,74.215609756097564,74.529756097560977,74.866341463414642,75.078048780487805,75.463414634146346,75.763414634146343,76.065853658536597,76.217073170731723,76.368292682926835,76.519512195121962,76.719512195121951,76.919512195121953,77.11951219512197,77.421951219512209,77.621951219512198,77.724390243902448,77.824390243902457,77.826829268292698,78.029268292682943,78.180487804878055,78.431707317073176,78.634146341463421,78.885365853658527,79.136585365853662,79.339024390243921,79.490243902439019,79.741463414634168,79.892682926829281,80.192682926829278,80.34390243902439,80.543902439024407,80.695121951219519,80.995121951219517,81.246341463414637,81.448780487804882,81.648780487804885,81.748780487804893,81.8,81.900000000000006,81.900000000000006,81.948780487804882,81.948780487804882]
["Caribbean",20667.481,21114.092000000001,21582.991000000002,22063.999,22542.962,23009.851999999999,23459.851999999999,23895.936000000002,24324.951000000001,24757.631000000001,25201.316999999999,25658.335999999999,26124.94,26595.06,27060.021000000001,27513.667000000001,27954.313999999998,28384.494999999999,28806.94,29226.133999999998,29645.559000000001,30065.06,30484.395,30906.728999999999,31336.136999999999,31775.147000000001,32225.345000000001,32684.866999999998,33148.324000000001,33607.983,34058.199000000001,34496.470999999998,34923.911,35342.112000000001,35754.233,36162.184000000001,36566.533000000003,36965.453000000001,37356.533000000003,37736.196000000004,38102.080999999998,38453.512999999999,38791.51,39117.911,39435.328000000001,39745.796999999999,40048.877999999997,40344.281000000003,40635.19,40925.442999999999,41217.339999999997,41514.616999999998,41815.180999999997,42108.680999999997,42380.802000000003,42622.28,42827.506000000001,43002.43,43163.826999999997,null,71.133170731707324,71.346097560975622,71.367073170731715,71.380731707317082,71.776341463414639,71.872195121951236,72.004390243902449,72.20780487804879,72.353414634146347,72.501463414634145,72.700487804878051,73.029268292682929,72.933902439024394,73.162682926829277,73.237560975609767,73.521707317073165,73.856097560975613,74.215609756097564,74.529756097560977,74.866341463414642,75.078048780487805,75.463414634146346,75.763414634146343,76.065853658536597,76.217073170731723,76.368292682926835,76.519512195121962,76.719512195121951,76.919512195121953,77.11951219512197,77.421951219512209,77.621951219512198,77.724390243902448,77.824390243902457,77.826829268292698,78.029268292682943,78.180487804878055,78.431707317073176,78.634146341463421,78.885365853658527,79.136585365853662,79.339024390243921,79.490243902439019,79.741463414634168,79.892682926829281,80.192682926829278,80.34390243902439,80.543902439024407,80.695121951219519,80.995121951219517,81.246341463414637,81.448780487804882,81.648780487804885,81.748780487804893,81.8,81.900000000000006,81.900000000000006,81.948780487804882,81.948780487804882]
["Cayman Islands",7.87,8.0239999999999991,8.141,8.2189999999999994,8.2989999999999995,8.3699999999999992,8.4440000000000008,8.5180000000000007,8.6379999999999999,8.8330000000000002,9.1430000000000007,9.5879999999999992,10.135,10.778,11.488,12.234,13.023,13.848000000000001,14.680999999999999,15.484999999999999,16.207000000000001,16.856999999999999,17.436,18.004999999999999,18.661999999999999,19.46,20.425999999999998,21.539000000000001,22.774999999999999,24.027999999999999,25.306999999999999,26.54,27.783999999999999,29.068000000000001,30.521000000000001,32.161000000000001,34.064999999999998,36.155000000000001,38.33,40.423000000000002,42.305,43.933999999999997,45.347000000000001,46.624000000000002,47.899000000000001,49.261000000000003,50.728999999999999,52.28,53.835000000000001,55.320999999999998,56.671999999999997,57.877000000000002,58.963000000000001,59.933,60.847999999999999,61.720999999999997,62.564,63.381999999999998,64.171999999999997,null,71.133170731707324,71.346097560975622,71.367073170731715,71.380731707317082,71.776341463414639,71.872195121951236,72.004390243902449,72.20780487804879,72.353414634146347,72.501463414634145,72.700487804878051,73.029268292682929,72.933902439024394,73.162682926829277,73.237560975609767,73.521707317073165,73.856097560975613,74.215609756097564,74.529756097560977,74.866341463414642,75.078048780487805,75.463414634146346,75.763414634146343,76.065853658536597,76.217073170731723,76.368292682926835,76.519512195121962,76.719512195121951,76.919512195121953,77.11951219512197,77.421951219512209,77.621951219512198,77.724390243902448,77.824390243902457,77.826829268292698,78.029268292682943,78.180487804878055,78.431707317073176,78.634146341463421,78.885365853658527,79.136585365853662,79.339024390243921,79.490243902439019,79.741463414634168,79.892682926829281,80.192682926829278,80.34390243902439,80.543902439024407,80.695121951219519,80.995121951219517,81.246341463414637,81.448780487804882,81.648780487804885,81.748780487804893,81.8,81.900000000000006,81.900000000000006,81.948780487804882,81.948780487804882]
["Chad",3001.6039999999998,3060.3649999999998,3121.2260000000001,3183.576,3246.527,3309.5830000000001,3372.1819999999998,3434.817,3499.37,3568.402,3643.6080000000002,3726.1889999999999,3815.2530000000002,3907.8910000000001,3999.9180000000001,4088.5680000000002,4173.1310000000003,4255.2420000000002,4337.2920000000004,4422.7430000000004,4514.4269999999997,4612.8580000000002,4718.1570000000002,4832.3159999999998,4957.5609999999997,5095.3999999999996,5247.2809999999999,5412.8440000000001,5589.6239999999998,5773.93,5963.25,6157.085,6356.741,6563.9250000000002,6781.0569999999998,7010.1589999999997,7250.9740000000002,7503.4939999999997,7770.0529999999999,8053.5320000000002,8355.6540000000005,8678.0490000000009,9019.2260000000006,9373.9130000000005,9734.7610000000004,10096.629999999999,10457.121999999999,10818.031000000001,11183.589,11560.142,11952.134,12360.986000000001,12784.748,13220.433000000001,13663.562,14110.971,14561.657999999999,15016.761,15477.727000000001,null,67.821388639175453,68.262198343866316,68.006925641810753,68.696047369716993,69.052484538875277,69.276997595515866,69.527071933977979,69.272742187699023,69.536025304884078,69.275734201981379,69.446955055223569,69.485165745849855,69.925441264574317,70.067777192089565,70.30593936929715,70.174408694229456,70.319148895789127,70.242373148279256,70.147932106139478,70.239396993958749,69.890509798033563,70.372050177777368,70.45547331873172,70.389785169429601,70.349114856134193,70.312883466323655,70.565136039744331,70.611763331234172,70.861708225052027,70.731972259748474,70.656331337258607,70.57522130347742,70.732837131415664,70.845986615144795,70.869543944747306,71.025421428289064,71.336058018995075,71.517258069682228,71.898237675995631,72.184561074087483,72.719724722779048,73.096148193734322,73.242415488092149,73.382252782525796,73.73715299612762,73.838300183861094,74.092602730809759,74.250648721076857,74.575952678077925,74.930363926657648,75.293965778631389,75.888474883428188,75.993488603453059,76.355162986980844,76.675623611304488,76.571877764778804,76.969807982335965,76.947462150480874,77.013154810125457]
["Channel Islands",109.419,110.398,111.464,112.59099999999999,113.777,114.989,116.229,117.46899999999999,118.72499999999999,119.97499999999999,121.2,122.405,123.611,124.72199999999999,125.68,126.42,126.908,127.18600000000001,127.395,127.691,128.20400000000001,128.98599999999999,129.976,131.15299999999999,132.44499999999999,133.80000000000001,135.24199999999999,136.762,138.25,139.58000000000001,140.67699999999999,141.46899999999999,142.006,142.40700000000001,142.86699999999999,143.47999999999999,144.34800000000001,145.387,146.5,147.553,148.43899999999999,149.09700000000001,149.59100000000001,150.07,150.72200000000001,151.67400000000001,152.999,154.64400000000001,156.441,158.18700000000001,159.71799999999999,160.99,162.05099999999999,163.03899999999999,164.107,165.387,166.922,168.666,170.49600000000001,null,67.821388639175453,68.262198343866316,68.006925641810753,68.696047369716993,69.052484538875277,69.276997595515866,69.527071933977979,69.272742187699023,69.536025304884078,69.275734201981379,69.446955055223569,69.485165745849855,69.925441264574317,70.067777192089565,70.30593936929715,70.174408694229456,70.319148895789127,70.242373148279256,70.147932106139478,70.239396993958749,69.890509798033563,70.372050177777368,70.45547331873172,70.389785169429601,70.349114856134193,70.312883466323655,70.565136039744331,70.611763331234172,70.861708225052027,70.731972259748474,70.656331337258607,70.57522130347742,70.732837131415664,70.845986615144795,70.869543944747306,71.025421428289064,71.336058018995075,71.517258069682228,71.898237675995631,72.184561074087483,72.719724722779048,73.096148193734322,73.242415488092149,73.382252782525796,73.73715299612762,73.838300183861094,74.092602730809759,74.250648721076857,74.575952678077925,74.930363926657648,75.293965778631389,75.888474883428188,75.993488603453059,76.355162986980844,76.675623611304488,76.571877764778804,76.969807982335965,76.947462150480874,77.013154810125457]
["Chile",8132.9880000000003,8303.8040000000001,8476.8950000000004,8650.39,8821.8549999999996,8989.607,9152.848,9312.0910000000003,9468.8510000000006,9625.3040000000001,9783.134,9942.7160000000003,10103.674999999999,10265.826999999999,10428.803,10592.31,10756.876,10922.777,11089.165000000001,11254.877,11419.35,11582.02,11743.909,11907.955,12078.137000000001,12257.237999999999,12445.833000000001,12642.916999999999,12847.712,13058.758,13274.617,13495.254999999999,13719.817999999999,13944.933999999999,14166.346,14380.864,14587.367,14786.227000000001,14977.736000000001,15162.800999999999,15342.35,15516.111999999999,15684.413,15849.648999999999,16014.972,16182.713,16354.507,16530.201000000001,16708.255000000001,16886.184000000001,17062.530999999999,17233.583999999999,17400.359,17571.510999999999,17758.969000000001,17969.356,18209.072,18470.435000000001,18729.166000000001,null,67.821388639175453,68.262198343866316,68.006925641810753,68.696047369716993,69.052484538875277,69.276997595515866,69.527071933977979,69.272742187699023,69.536025304884078,69.275734201981379,69.446955055223569,69.485165745849855,69.925441264574317,70.067777192089565,70.30593936929715,70.174408694229456,70.319148895789127,70.242373148279256,70.147932106139478,70.239396993958749,69.890509798033563,70.372050177777368,70.45547331873172,70.389785169429601,70.349114856134193,70.312883466323655,70.565136039744331,70.611763331234172,70.861708225052027,70.731972259748474,70.656331337258607,70.57522130347742,70.732837131415664,70.845986615144795,70.869543944747306,71.025421428289064,71.336058018995075,71.517258069682228,71.898237675995631,72.184561074087483,72.719724722779048,73.096148193734322,73.242415488092149,73.382252782525796,73.73715299612762,73.838300183861094,74.092602730809759,74.250648721076857,74.575952678077925,74.930363926657648,75.293965778631389,75.888474883428188,75.993488603453059,76.355162986980844,76.675623611304488,76.571877764778804,76.969807982335965,76.947462150480874,77.013154810125457]
["China",660408.054,670952.701,682102.65399999998,694339.08400000003,708254.60199999996,724218.97,742414.88699999999,762581.17599999998,784074.71499999997,805985.94099999999,827601.38500000001,848759.70900000003,869485.96200000006,889485.36800000002,908464.20600000001,926240.88899999997,942685.41200000001,957891.27099999995,972205.44099999999,986132.21400000004,1000089.228,1014022.211,1027948.9889999999,1042431.401,1058171.973,1075589.3629999999,1095014.1059999999,1116095.4750000001,1137724.2339999999,1158357.3929999999,1176883.6810000001,1192897.277,1206711.243,1218817.0589999999,1230020.0260000001,1240920.5390000001,1251636.1780000001,1261996.017,1271982.3489999999,1281514.8330000001,1290550.767,1299129.747,1307352.2560000001,1315303.5220000001,1323084.639,1330776.3799999999,1338408.6440000001,1345993.8910000001,1353569.48,1361169.41,1368810.6040000001,1376497.6329999999,1384206.4080000001,1391883.335,1399453.966,1406847.868,1414049.3529999999,1421021.794,1427647.7890000001,null,67.821388639175453,68.262198343866316,68.006925641810753,68.696047369716993,69.052484538875277,69.276997595515866,69.527071933977979,69.272742187699023,69.536025304884078,69.275734201981379,69.446955055223569,69.485165745849855,69.925441264574317,70.067777192089565,70.30593936929715,70.174408694229456,70.319148895789127,70.242373148279256,70.147932106139478,70.239396993958749,69.890509798033563,70.372050177777368,70.45547331873172,70.389785169429601,70.349114856134193,70.312883466323655,70.565136039744331,70.611763331234172,70.861708225052027,70.731972259748474,70.656331337258607,70.57522130347742,70.732837131415664,70.845986615144795,70.869543944747306,71.025421428289064,71.336058018995075,71.517258069682228,71.898237675995631,72.184561074087483,72.719724722779048,73.096148193734322,73.242415488092149,73.382252782525796,73.73715299612762,73.838300183861094,74.092602730809759,74.250648721076857,74.575952678077925,74.930363926657648,75.293965778631389,75.888474883428188,75.993488603453059,76.355162986980844,76.675623611304488,76.571877764778804,76.969807982335965,76.947462150480874,77.013154810125457]
["Colombia",16057.714,16567.816999999999,17092.919000000002,17629.977999999999,18175.187000000002,18725.241999999998,19279.734,19837.508000000002,20393.704000000002,20942.453000000001,21480.063999999998,22003.983,22516.429,23024.511999999999,23538.39,24065.502,24608.101999999999,25164.544000000002,25733.669000000002,26312.995999999999,26900.508000000002,27496.608,28101.824000000001,28714.183000000001,29331.23,29951.194,30572.478999999999,31195.417000000001,31822.526999999998,32457.496999999999,33102.569000000003,33758.328000000001,34422.567999999999,35091.271999999997,35758.978000000003,36421.438000000002,37076.387000000002,37723.803,38364.307000000001,38999.468000000001,39629.964999999997,40255.955999999998,40875.362999999998,41483.872000000003,42075.953000000001,42647.731,43200.900999999998,43737.512000000002,44254.972000000002,44750.053999999996,45222.699000000001,45662.747000000003,46075.720999999998,46495.491999999998,46967.705999999998,47520.667000000001,48175.048000000003,48909.843999999997,49661.055999999997,null,57.268999999999998,57.813000000000002,58.329000000000001,58.825000000000003,59.308,59.783999999999999,60.256999999999998,60.728999999999999,61.201000000000001,61.674999999999997,62.152000000000001,62.628999999999998,63.104999999999997,63.578000000000003,64.046999999999997,64.518000000000001,64.994,65.477000000000004,65.963999999999999,66.450999999999993,66.926000000000002,67.38,67.802000000000007,68.186999999999998,68.528999999999996,68.822999999999993,69.064999999999998,69.266000000000005,69.436000000000007,69.590999999999994,69.75,69.936000000000007,70.161000000000001,70.433000000000007,70.751999999999995,71.111999999999995,71.497,71.887,72.263999999999996,72.619,72.944999999999993,73.241,73.516999999999996,73.777000000000001,74.025999999999996,74.265000000000001,74.5,74.731999999999999,74.962000000000003,75.192999999999998,75.424000000000007,75.655000000000001,75.882000000000005,76.105000000000004,76.322000000000003,76.531000000000006,76.731999999999999,76.924999999999997,77.108999999999995]
["Comoros",191.12200000000001,194.149,197.202,200.37100000000001,203.762,207.429,211.477,215.9,220.57400000000001,225.32400000000001,230.05500000000001,234.64500000000001,239.22900000000001,244.20699999999999,250.107,257.28500000000003,265.95800000000003,275.90300000000002,286.62799999999999,297.45100000000002,307.83100000000002,317.61700000000002,326.94400000000002,336.08800000000002,345.45499999999998,355.33699999999999,365.76499999999999,376.64699999999999,387.964,399.63799999999998,411.59800000000001,423.87299999999999,436.45400000000001,449.27,462.28,475.39400000000001,488.625,501.95499999999998,515.38199999999995,528.85299999999995,542.35799999999995,555.89499999999998,569.48,583.21299999999997,597.23,611.625,626.42700000000002,641.62400000000002,657.22699999999998,673.25099999999998,689.69600000000003,706.57799999999997,723.86500000000001,741.51099999999997,759.39,777.43499999999995,795.59699999999998,813.89,832.322,null,62.746295193294777,63.126130845617176,63.476465945226273,63.804441775374208,64.113791435393836,64.407721253920059,64.684667910390132,64.943628772980901,65.186992176822201,65.419925874108088,65.648808613002032,65.880385295601911,66.118883978571901,66.364974788459406,66.618286191425497,66.875688670547362,67.13336447744399,67.385208633368208,67.627852151683655,67.861437019779785,68.086726113212805,68.303133941519746,68.517816565508539,68.718950407055345,68.920937408315467,69.122687176363286,69.329770812363662,69.548709699732711,69.763201056316845,69.984185708155181,70.197631076872327,70.394009945599478,70.588066446924401,70.712539984335763,70.834489868717455,70.937525331800259,71.028989838640868,71.163774129209045,71.21031996042737,71.310270981539503,71.419185391298214,71.538000447490049,71.713359964345358,71.79198627417226,71.923538539966657,72.055708423096959,72.187024201709548,72.316056289520802,72.440791221878925,72.561747336395143,72.67939476796036,72.795298311480806,72.911803457889334,73.030145150125279,73.150584618105228,73.273015980955037,73.395956392778842,73.517492494111451,73.637107765015102]
["Congo",1018.254,1043.1189999999999,1069.2360000000001,1096.6379999999999,1125.354,1155.3889999999999,1186.7819999999999,1219.547,1253.761,1289.519,1326.894,1365.8910000000001,1406.51,1448.6320000000001,1492.0550000000001,1536.6579999999999,1582.3610000000001,1629.2180000000001,1677.326,1726.865,1777.932,1830.6289999999999,1884.873,1940.454,1996.9939999999999,2054.308,2112.3589999999999,2171.319,2231.462,2293.1610000000001,2356.7399999999998,2422.3119999999999,2489.9450000000002,2559.88,2632.3449999999998,2707.5320000000002,2785.8150000000001,2867.2829999999999,2951.6509999999998,3038.4319999999998,3127.42,3217.93,3310.3760000000002,3406.915,3510.4679999999998,3622.7750000000001,3745.143,3876.123,4011.4870000000001,4145.3999999999996,4273.7380000000003,4394.8419999999996,4510.1970000000001,4622.7569999999996,4736.9650000000001,4856.0929999999998,4980.9960000000001,5110.701,5244.3630000000003,null,62.746295193294777,63.126130845617176,63.476465945226273,63.804441775374208,64.113791435393836,64.407721253920059,64.684667910390132,64.943628772980901,65.186992176822201,65.419925874108088,65.648808613002032,65.880385295601911,66.118883978571901,66.364974788459406,66.618286191425497,66.875688670547362,67.13336447744399,67.385208633368208,67.627852151683655,67.861437019779785,68.086726113212805,68.303133941519746,68.517816565508539,68.718950407055345,68.920937408315467,69.122687176363286,69.329770812363662,69.548709699732711,69.763201056316845,69.984185708155181,70.197631076872327,70.394009945599478,70.588066446924401,70.712539984335763,70.834489868717455,70.937525331800259,71.028989838640868,71.163774129209045,71.21031996042737,71.310270981539503,71.419185391298214,71.538000447490049,71.713359964345358,71.79198627417226,71.923538539966657,72.055708423096959,72.187024201709548,72.316056289520802,72.440791221878925,72.561747336395143,72.67939476796036,72.795298311480806,72.911803457889334,73.030145150125279,73.150584618105228,73.273015980955037,73.395956392778842,73.517492494111451,73.637107765015102]
["Cook Islands",18.213000000000001,18.38,18.452000000000002,18.507000000000001,18.628,18.893999999999998,19.329000000000001,19.89,20.495999999999999,20.984999999999999,21.300999999999998,21.399000000000001,21.309000000000001,21.056000000000001,20.690999999999999,20.225000000000001,19.689,19.068000000000001,18.440000000000001,17.902000000000001,17.518999999999998,17.306000000000001,17.271000000000001,17.343,17.472999999999999,17.591999999999999,17.702000000000002,17.794,17.898,18.026,18.195,18.419,18.678000000000001,18.934000000000001,19.081,19.105,18.948,18.652999999999999,18.312999999999999,18.042000000000002,17.934999999999999,18.016999999999999,18.274000000000001,18.609000000000002,18.891999999999999,19.07,19.094000000000001,18.994,18.808,18.602,18.391999999999999,18.2,18.009,17.834,17.684999999999999,17.581,17.521000000000001,17.504999999999999,17.518999999999998,null,62.746295193294777,63.126130845617176,63.476465945226273,63.804441775374208,64.113791435393836,64.407721253920059,64.684667910390132,64.943628772980901,65.186992176822201,65.419925874108088,65.648808613002032,65.880385295601911,66.118883978571901,66.364974788459406,66.618286191425497,66.875688670547362,67.13336447744399,67.385208633368208,67.627852151683655,67.861437019779785,68.086726113212805,68.303133941519746,68.517816565508539,68.718950407055345,68.920937408315467,69.122687176363286,69.329770812363662,69.548709699732711,69.763201056316845,69.984185708155181,70.197631076872327,70.394009945599478,70.588066446924401,70.712539984335763,70.834489868717455,70.937525331800259,71.028989838640868,71.163774129209045,71.21031996042737,71.310270981539503,71.419185391298214,71.538000447490049,71.713359964345358,71.79198627417226,71.923538539966657,72.055708423096959,72.187024201709548,72.316056289520802,72.440791221878925,72.561747336395143,72.67939476796036,72.795298311480806,72.911803457889334,73.030145150125279,73.150584618105228,73.273015980955037,73.395956392778842,73.517492494111451,73.637107765015102]
["Costa Rica",1330.787,1381.1869999999999,1433.346,1486.5550000000001,1539.942,1592.8340000000001,1645.076,1696.742,1747.69,1797.8910000000001,1847.394,1896.0740000000001,1944.17,1992.5219999999999,2042.242,2094.1860000000001,2148.681,2205.6179999999999,2264.942,2326.46,2389.973,2455.5929999999998,2523.3580000000002,2593.0149999999999,2664.22,2736.7190000000001,2810.2449999999999,2884.8560000000002,2960.9319999999998,3039.0149999999999,3119.4360000000001,3202.0830000000001,3286.5250000000001,3372.2979999999998,3458.8290000000002,3545.5239999999999,3632.3609999999999,3718.9520000000002,3803.893,3885.4279999999999,3962.3690000000001,4034.0740000000001,4100.9219999999996,4164.0529999999999,4225.1559999999999,4285.5039999999999,4345.4210000000003,4404.6260000000002,4463.1229999999996,4520.7389999999996,4577.3710000000001,4633.0860000000002,4688.0029999999997,4742.1109999999999,4795.3900000000003,4847.8050000000003,4899.3360000000002,4949.9549999999999,4999.4430000000002,null,62.746295193294777,63.126130845617176,63.476465945226273,63.804441775374208,64.113791435393836,64.407721253920059,64.684667910390132,64.943628772980901,65.186992176822201,65.419925874108088,65.648808613002032,65.880385295601911,66.118883978571901,66.364974788459406,66.618286191425497,66.875688670547362,67.13336447744399,67.385208633368208,67.627852151683655,67.861437019779785,68.086726113212805,68.303133941519746,68.517816565508539,68.718950407055345,68.920937408315467,69.122687176363286,69.329770812363662,69.548709699732711,69.763201056316845,69.984185708155181,70.197631076872327,70.394009945599478,70.588066446924401,70.712539984335763,70.834489868717455,70.937525331800259,71.028989838640868,71.163774129209045,71.21031996042737,71.310270981539503,71.419185391298214,71.538000447490049,71.713359964345358,71.79198627417226,71.923538539966657,72.055708423096959,72.187024201709548,72.316056289520802,72.440791221878925,72.561747336395143,72.67939476796036,72.795298311480806,72.911803457889334,73.030145150125279,73.150584618105228,73.273015980955037,73.395956392778842,73.517492494111451,73.637107765015102]
["Croatia",4192.6409999999996,4222.5029999999997,4251.4219999999996,4279.0609999999997,4304.991,4328.9279999999999,4350.817,4370.8580000000002,4389.32,4406.6059999999998,4423.0690000000004,4438.8209999999999,4453.9849999999997,4469.0339999999997,4484.5230000000001,4500.8710000000001,4518.1009999999997,4536.1949999999997,4555.4129999999996,4576.0290000000005,4598.125,4621.42,4645.4040000000005,4669.6210000000001,4693.424,4716.1229999999996,4737.9539999999997,4758.1540000000005,4773.6840000000002,4780.6289999999999,4776.37,4760.0029999999997,4732.866,4697.5370000000003,4657.8,4616.7629999999999,4574.8879999999999,4532.4049999999997,4491.9059999999999,4456.4459999999999,4428.0749999999998,4408.0730000000003,4395.8019999999997,4388.9089999999997,4383.8770000000004,4378.0659999999998,4370.7820000000002,4362.4269999999997,4352.6390000000001,4341.2610000000004,4328.1629999999996,4313.098,4295.8689999999997,4276.5929999999998,4255.518,4232.8739999999998,4208.6109999999999,4182.8469999999998,4156.4070000000002,null,62.746295193294777,63.126130845617176,63.476465945226273,63.804441775374208,64.113791435393836,64.407721253920059,64.684667910390132,64.943628772980901,65.186992176822201,65.419925874108088,65.648808613002032,65.880385295601911,66.118883978571901,66.364974788459406,66.618286191425497,66.875688670547362,67.13336447744399,67.385208633368208,67.627852151683655,67.861437019779785,68.086726113212805,68.303133941519746,68.517816565508539,68.718950407055345,68.920937408315467,69.122687176363286,69.329770812363662,69.548709699732711,69.763201056316845,69.984185708155181,70.197631076872327,70.394009945599478,70.588066446924401,70.712539984335763,70.834489868717455,70.937525331800259,71.028989838640868,71.163774129209045,71.21031996042737,71.310270981539503,71.419185391298214,71.538000447490049,71.713359964345358,71.79198627417226,71.923538539966657,72.055708423096959,72.187024201709548,72.316056289520802,72.440791221878925,72.561747336395143,72.67939476796036,72.795298311480806,72.911803457889334,73.030145150125279,73.150584618105228,73.273015980955037,73.395956392778842,73.517492494111451,73.637107765015102]
["Cuba",7141.241,7291.201,7453.5349999999999,7623.3,7793.2579999999998,7958.1710000000003,8115.4870000000001,8266.3729999999996,8413.5490000000009,8561.3909999999996,8712.5349999999999,8868.0869999999995,9025.3469999999998,9178.8089999999993,9320.9429999999993,9446.4410000000007,9554.1859999999997,9646.1419999999998,9724.0439999999999,9790.85,9849.4570000000003,9898.8909999999996,9940.3140000000003,9981.3029999999999,10031.651,10097.91,10183.894,10286.645,10397.519,10503.967000000001,10596.986000000001,10673.534,10736.386,10789.312,10838.460999999999,10888.245999999999,10939.285,10989.73,11038.706,11084.673000000001,11126.423000000001,11164.675999999999,11199.664000000001,11229.184999999999,11250.369000000001,11261.585999999999,11261.241,11251.117,11236.975,11226.710999999999,11225.833000000001,11236.671,11257.111999999999,11282.722,11306.909,11324.777,11335.108,11339.254999999999,11338.146000000001,null,63.834000000000003,64.445999999999998,65.066000000000003,65.694999999999993,66.326999999999998,66.956000000000003,67.572999999999993,68.171000000000006,68.744,69.290000000000006,69.808999999999997,70.305999999999997,70.787000000000006,71.254999999999995,71.706999999999994,72.138000000000005,72.543000000000006,72.915000000000006,73.248999999999995,73.543000000000006,73.793999999999997,74.004000000000005,74.174999999999997,74.314999999999998,74.427000000000007,74.510999999999996,74.566000000000003,74.594999999999999,74.606999999999999,74.614999999999995,74.638000000000005,74.695999999999998,74.801000000000002,74.956999999999994,75.164000000000001,75.412000000000006,75.686000000000007,75.963999999999999,76.23,76.474999999999994,76.698999999999998,76.905000000000001,77.105000000000004,77.302999999999997,77.498999999999995,77.688000000000002,77.864000000000004,78.019000000000005,78.150000000000006,78.256,78.337999999999994,78.400000000000006,78.445999999999998,78.484999999999999,78.521000000000001,78.561000000000007,78.606999999999999,78.662000000000006,78.725999999999999]
["Cyprus",572.93299999999999,576.40200000000004,577.69600000000003,577.91800000000001,578.62800000000004,580.97199999999998,585.31299999999999,591.30100000000004,598.495,606.12099999999998,613.61800000000005,620.86,628.00199999999995,635.10500000000002,642.322,649.75300000000004,657.524,665.52099999999996,673.25300000000004,680.01,685.40800000000002,689.17,691.71600000000001,694.07600000000002,697.71500000000003,703.69399999999996,712.33500000000004,723.38400000000001,736.476,751.04300000000001,766.61599999999999,783.12099999999998,800.61,818.75,837.10400000000004,855.39099999999996,873.42600000000004,891.19,908.71,926.04899999999998,943.28800000000001,960.274,976.96799999999996,993.56200000000001,1010.41,1027.6569999999999,1045.508,1063.7080000000001,1081.568,1098.0889999999999,1112.617,1124.837,1135.046,1143.866,1152.297,1160.9870000000001,1170.1890000000001,1179.6849999999999,1189.2619999999999,null,69.617999999999995,69.948999999999998,70.272000000000006,70.587000000000003,70.894999999999996,71.197000000000003,71.491,71.775999999999996,72.052000000000007,72.317999999999998,72.575999999999993,72.825000000000003,73.066999999999993,73.302000000000007,73.53,73.753,73.971000000000004,74.183000000000007,74.39,74.591999999999999,74.790000000000006,74.983000000000004,75.173000000000002,75.358000000000004,75.540000000000006,75.718000000000004,75.893000000000001,76.063999999999993,76.230999999999995,76.394000000000005,76.554000000000002,76.712000000000003,76.866,77.016999999999996,77.165999999999997,77.311999999999998,77.456000000000003,77.597999999999999,77.738,77.875,78.009,78.138999999999996,78.263999999999996,78.385000000000005,78.506,78.63,78.763999999999996,78.91,79.070999999999998,79.245000000000005,79.430000000000007,79.620999999999995,79.811999999999998,79.998999999999995,80.177999999999997,80.349999999999994,80.513000000000005,80.671999999999997,80.828000000000003]
["Czechia",9590.1779999999999,9638.3919999999998,9691.0609999999997,9742.4549999999999,9784.3410000000003,9811.375,9821.0630000000001,9817.11,9807.9429999999993,9805.32,9817.6669999999995,9847.2150000000001,9891.1020000000008,9946.1910000000007,10007.275,10069.959999999999,10134.522000000001,10200.727999999999,10262.918,10313.960999999999,10349.084000000001,10365.522999999999,10365.263999999999,10354.1,10340.629000000001,10331.144,10327.290000000001,10327.472,10330.924999999999,10335.875,10340.877,10346.458000000001,10353.021000000001,10358.694,10360.964,10358.19,10350.302,10338.346,10323.244000000001,10306.404,10289.374,10271.019,10252.263999999999,10239.130999999999,10239.444,10258.165000000001,10298.609,10357.535,10425.267,10488.155000000001,10536.513999999999,10566.512000000001,10581.302,10586.529,10591.103999999999,10601.39,10618.868,10641.031999999999,10665.679,null,70.348780487804888,70.512682926829271,69.786829268292678,70.304390243902461,70.45951219512196,70.163170731707325,70.384878048780507,70.264146341463416,69.840731707317076,69.3670731707317,69.440243902439036,69.677073170731731,70.176585365853683,70.022682926829276,70.086585365853665,70.414634146341484,70.532682926829281,70.573414634146346,70.643902439024387,70.749512195121952,70.278048780487808,70.722195121951231,70.807804878048785,70.591463414634148,70.837560975609762,71.046341463414635,70.997317073170734,71.445609756097568,71.64146341463416,71.675609756097572,71.383902439024411,71.898292682926837,72.271707317073179,72.767804878048793,72.972682926829265,73.074878048780505,73.714634146341467,73.824878048780505,74.514634146341464,74.668292682926833,74.968292682926844,75.17317073170733,75.221951219512192,75.170731707317088,75.721951219512206,75.924390243902451,76.524390243902445,76.724390243902462,76.975609756097569,77.078048780487805,77.424390243902451,77.873170731707319,78.075609756097577,78.175609756097558,78.824390243902442,78.578048780487805,79.026829268292687,78.978048780487811,78.978048780487811]
["Denmark",4581.0990000000002,4614.027,4649.3410000000003,4686.2690000000002,4723.6229999999996,4760.4610000000002,4796.4809999999998,4831.75,4866.0690000000004,4899.2889999999998,4931.2389999999996,4961.759,4990.5510000000004,5017.2470000000003,5041.4129999999996,5062.7309999999998,5081.2619999999997,5097.049,5109.6930000000002,5118.7110000000002,5123.9449999999997,5125.2960000000003,5123.3490000000002,5119.607,5116.0550000000003,5114.25,5114.6450000000004,5117.2820000000002,5122.442,5130.3620000000001,5141.1170000000002,5154.9059999999999,5171.6540000000005,5190.7449999999999,5211.3339999999998,5232.7089999999998,5254.857,5277.7129999999997,5300.38,5321.7709999999997,5341.192,5358.0590000000002,5372.7979999999998,5386.9679999999998,5402.7539999999999,5421.701,5444.2929999999997,5469.92,5497.7309999999998,5526.3890000000001,5554.8490000000002,5582.98,5610.9089999999997,5638.152,5664.1989999999996,5688.6949999999997,5711.3459999999995,5732.277,5752.1310000000003,null,70.348780487804888,70.512682926829271,69.786829268292678,70.304390243902461,70.45951219512196,70.163170731707325,70.384878048780507,70.264146341463416,69.840731707317076,69.3670731707317,69.440243902439036,69.677073170731731,70.176585365853683,70.022682926829276,70.086585365853665,70.414634146341484,70.532682926829281,70.573414634146346,70.643902439024387,70.749512195121952,70.278048780487808,70.722195121951231,70.807804878048785,70.591463414634148,70.837560975609762,71.046341463414635,70.997317073170734,71.445609756097568,71.64146341463416,71.675609756097572,71.383902439024411,71.898292682926837,72.271707317073179,72.767804878048793,72.972682926829265,73.074878048780505,73.714634146341467,73.824878048780505,74.514634146341464,74.668292682926833,74.968292682926844,75.17317073170733,75.221951219512192,75.170731707317088,75.721951219512206,75.924390243902451,76.524390243902445,76.724390243902462,76.975609756097569,77.078048780487805,77.424390243902451,77.873170731707319,78.075609756097577,78.175609756097558,78.824390243902442,78.578048780487805,79.026829268292687,78.978048780487811,78.978048780487811]
["Dominican Republic",3294.2220000000002,3406.2820000000002,3521.018,3638.11,3757.123,3877.768,3999.7959999999998,4123.1000000000004,4247.5590000000002,4373.1270000000004,4499.7219999999998,4627.2020000000002,4755.4639999999999,4884.46,5014.1869999999999,5144.6319999999996,5275.7669999999998,5407.4960000000001,5539.5959999999995,5671.8010000000004,5803.9290000000001,5935.8950000000004,6067.7690000000002,6199.6570000000002,6331.76,6464.2290000000003,6596.9669999999996,6729.93,6863.4380000000001,6997.8770000000004,7133.491,7270.4129999999996,7408.3389999999999,7546.4669999999996,7683.7070000000003,7819.2389999999996,7952.7659999999996,8084.4070000000002,8214.4269999999997,8343.2880000000005,8471.3169999999991,8598.5990000000002,8724.9740000000002,8850.3169999999991,8974.4439999999995,9097.2620000000006,9218.6810000000005,9338.8559999999998,9458.0789999999997,9576.7360000000008,9695.1170000000002,9813.2189999999991,9930.9159999999993,10048.226000000001,10165.182000000001,10281.674999999999,10397.737999999999,10513.111000000001,10627.147000000001,null,51.601999999999997,52.305999999999997,52.997,53.674999999999997,54.34,54.993000000000002,55.634999999999998,56.267000000000003,56.889000000000003,57.497999999999998,58.093000000000004,58.670999999999999,59.228999999999999,59.764000000000003,60.277000000000001,60.764000000000003,61.225999999999999,61.662999999999997,62.079000000000001,62.476999999999997,62.860999999999997,63.234000000000002,63.600999999999999,63.963999999999999,64.325999999999993,64.691999999999993,65.064999999999998,65.442999999999998,65.822000000000003,66.200999999999993,66.573999999999998,66.932000000000002,67.272000000000006,67.590999999999994,67.887,68.164000000000001,68.424999999999997,68.677000000000007,68.924999999999997,69.174999999999997,69.429000000000002,69.69,69.956999999999994,70.227000000000004,70.498999999999995,70.771000000000001,71.040999999999997,71.304000000000002,71.558999999999997,71.805999999999997,72.046000000000006,72.284000000000006,72.522999999999996,72.763000000000005,73.003,73.241,73.471000000000004,73.688999999999993,73.891999999999996]
["Ecuador",4543.6580000000004,4674.1760000000004,4809.1940000000004,4948.991,5093.848,5243.98,5399.4229999999998,5560.0129999999999,5725.4620000000004,5895.3680000000004,6069.375,6247.4210000000003,6429.3770000000004,6614.84,6803.2709999999997,6994.3310000000001,7187.7939999999999,7383.7129999999997,7582.357,7784.0739999999996,7989.1779999999999,8197.6479999999992,8409.3960000000006,8624.5939999999991,8843.4629999999997,9066.1,9292.4809999999998,9522.3619999999992,9755.5759999999991,9991.8700000000008,10230.931,10472.476000000001,10716.130999999999,10961.46,11207.999,11455.205,11703.169,11951.457,12198.449000000001,12442.109,12681.123,12914.66,13143.465,13369.678,13596.39,13825.839,14059.379000000001,14296.554,14535.74,14774.412,15011.114,15243.885,15474.099,15707.473,15951.832,16212.022000000001,16491.116000000002,16785.356,17084.359,null,48.415899060559688,48.944167502503497,49.607894087911561,50.573598301431964,51.75893886459086,53.115459657166191,54.636410491335049,56.109405381894881,57.470912613120909,58.700429236443419,59.739850578693151,60.65657690740349,61.448445533243543,62.144243620744909,62.843989656220664,63.514711961658492,64.125085843567575,64.70935721654665,65.233994849944651,65.727820559378813,66.144156041201228,66.564213929766609,66.959638237213269,67.282364494338324,67.614932268324949,67.904085288855867,68.172328301194725,68.409653362261437,68.581777928346071,68.772157149955859,68.927543371686994,69.097354110722435,69.245236745391523,69.417277196560377,69.61721148408563,69.796301486396516,70.064499687021623,70.32575149703986,70.584851818643017,70.855171197526346,71.171918909870755,71.481717211098157,71.774764827285424,72.067528417777268,72.361144594166916,72.624620749367708,72.9216442984265,73.200933776161776,73.469895568539044,73.759125114931521,74.012996899440708,74.265950123674273,74.562126746498507,74.848214388702232,75.125170291792728,75.392556877146006,75.635540867798511,75.865953913004901,76.068336425009335]
["Egypt",26632.891,27366.239000000001,28112.258000000002,28871.383000000002,29644.875,30433.024000000001,31237.597000000002,32056.506000000001,32881.851999999999,33703.127,34513.851000000002,35311.904999999999,36102.67,36896.550999999999,37708.144,38549.133000000002,39422.731,40329.589,41275.728000000003,42267.428999999996,43309.063000000002,44400.112999999998,45539.294999999998,46728.284,47968.642999999996,49258.726000000002,50602.36,51991.696000000004,53399.243000000002,54788.68,56134.478000000003,57424.552000000003,58666.811999999998,59880.656000000003,61095.803999999996,62334.025000000001,63601.631999999998,64892.269,66200.259000000005,67515.591,68831.561000000002,70152.661999999997,71485.043999999994,72826.101999999999,74172.073000000004,75523.576000000001,76873.67,78232.123999999996,79636.081000000006,81134.789000000004,82761.244000000006,84529.251000000004,86422.24,88404.652000000002,90424.668000000005,92442.548999999999,94447.070999999996,96442.59,98423.601999999999,null,48.415899060559688,48.944167502503497,49.607894087911561,50.573598301431964,51.75893886459086,53.115459657166191,54.636410491335049,56.109405381894881,57.470912613120909,58.700429236443419,59.739850578693151,60.65657690740349,61.448445533243543,62.144243620744909,62.843989656220664,63.514711961658492,64.125085843567575,64.70935721654665,65.233994849944651,65.727820559378813,66.144156041201228,66.564213929766609,66.959638237213269,67.282364494338324,67.614932268324949,67.904085288855867,68.172328301194725,68.409653362261437,68.581777928346071,68.772157149955859,68.927543371686994,69.097354110722435,69.245236745391523,69.417277196560377,69.61721148408563,69.796301486396516,70.064499687021623,70.32575149703986,70.584851818643017,70.855171197526346,71.171918909870755,71.481717211098157,71.774764827285424,72.067528417777268,72.361144594166916,72.624620749367708,72.9216442984265,73.200933776161776,73.469895568539044,73.759125114931521,74.012996899440708,74.265950123674273,74.562126746498507,74.848214388702232,75.125170291792728,75.392556877146006,75.635540867798511,75.865953913004901,76.068336425009335]
["El Salvador",2766.319,2846.6010000000001,2931.1869999999999,3019.2240000000002,3109.5709999999999,3201.31,3293.9540000000002,3387.384,3481.6239999999998,3576.8339999999998,3673.0659999999998,3770.06,3867.31,3964.2730000000001,4060.2550000000001,4154.6890000000003,4247.5079999999998,4338.451,4426.6790000000001,4511.1270000000004,4591.1350000000002,4666.3609999999999,4737.2560000000003,4804.9359999999997,4871.0410000000002,4936.8029999999999,5002.3389999999999,5067.5309999999999,5133.2730000000001,5200.6080000000002,5270.0739999999996,5342.19,5416.3270000000002,5490.4780000000001,5561.9160000000002,5628.6019999999999,5689.9430000000002,5746.2879999999996,5797.7640000000001,5844.8339999999998,5887.93,5927.0010000000002,5962.1390000000001,5994.0749999999998,6023.8010000000004,6052.1239999999998,6079.3950000000004,6105.81,6131.7669999999998,6157.6779999999999,6183.8770000000004,6210.567,6237.9219999999996,6266.076,6295.1239999999998,6325.1210000000001,6356.1369999999997,6388.1239999999998,6420.74,null,48.415899060559688,48.944167502503497,49.607894087911561,50.573598301431964,51.75893886459086,53.115459657166191,54.636410491335049,56.109405381894881,57.470912613120909,58.700429236443419,59.739850578693151,60.65657690740349,61.448445533243543,62.144243620744909,62.843989656220664,63.514711961658492,64.125085843567575,64.70935721654665,65.233994849944651,65.727820559378813,66.144156041201228,66.564213929766609,66.959638237213269,67.282364494338324,67.614932268324949,67.904085288855867,68.172328301194725,68.409653362261437,68.581777928346071,68.772157149955859,68.927543371686994,69.097354110722435,69.245236745391523,69.417277196560377,69.61721148408563,69.796301486396516,70.064499687021623,70.32575149703986,70.584851818643017,70.855171197526346,71.171918909870755,71.481717211098157,71.774764827285424,72.067528417777268,72.361144594166916,72.624620749367708,72.9216442984265,73.200933776161776,73.469895568539044,73.759125114931521,74.012996899440708,74.265950123674273,74.562126746498507,74.848214388702232,75.125170291792728,75.392556877146006,75.635540867798511,75.865953913004901,76.068336425009335]
["Equatorial Guinea",255.33799999999999,258.786,262.21899999999999,266.005,270.61599999999999,276.29599999999999,283.50599999999997,291.786,299.416,304,303.98599999999999,298.85199999999998,289.50799999999998,277.65600000000001,265.762,255.80799999999999,247.96899999999999,242.16,239.68100000000001,241.977,249.93100000000001,264.37,284.63799999999998,308.20800000000003,331.55399999999997,352.11599999999999,369.024,382.97699999999998,394.97300000000001,406.62,419.18799999999999,432.84399999999999,447.26900000000001,462.637,479.09899999999999,496.76799999999997,515.84400000000005,536.45899999999995,558.49599999999998,581.76499999999999,606.17999999999995,631.66200000000003,658.38800000000003,686.67,716.94899999999996,749.52700000000004,784.49400000000003,821.68600000000004,860.83900000000006,901.58900000000006,943.64,986.86099999999999,1031.191,1076.412,1122.2729999999999,1168.575,1215.181,1262.008,1308.9659999999999,null,48.415899060559688,48.944167502503497,49.607894087911561,50.573598301431964,51.75893886459086,53.115459657166191,54.636410491335049,56.109405381894881,57.470912613120909,58.700429236443419,59.739850578693151,60.65657690740349,61.448445533243543,62.144243620744909,62.843989656220664,63.514711961658492,64.125085843567575,64.70935721654665,65.233994849944651,65.727820559378813,66.144156041201228,66.564213929766609,66.959638237213269,67.282364494338324,67.614932268324949,67.904085288855867,68.172328301194725,68.409653362261437,68.581777928346071,68.772157149955859,68.927543371686994,69.097354110722435,69.245236745391523,69.417277196560377,69.61721148408563,69.796301486396516,70.064499687021623,70.32575149703986,70.584851818643017,70.855171197526346,71.171918909870755,71.481717211098157,71.774764827285424,72.067528417777268,72.361144594166916,72.624620749367708,72.9216442984265,73.200933776161776,73.469895568539044,73.759125114931521,74.012996899440708,74.265950123674273,74.562126746498507,74.848214388702232,75.125170291792728,75.392556877146006,75.635540867798511,75.865953913004901,76.068336425009335]
["Eritrea",1007.586,1033.32,1060.489,1088.8589999999999,1118.152,1148.1880000000001,1178.875,1210.3040000000001,1242.633,1276.1220000000001,1310.9469999999999,1347.18,1384.789,1423.749,1463.9860000000001,1505.4380000000001,1547.9780000000001,1591.6220000000001,1636.771,1683.932,1733.423,1784.557,1836.825,1890.556,1946.299,2003.942,2064.8029999999999,2127.4209999999998,2185.607,2231.1439999999998,2258.6489999999999,2266.3560000000002,2257.5929999999998,2238.6309999999999,2218.4360000000001,2204.2269999999999,2196.4670000000001,2195.192,2206.4389999999999,2237.4119999999998,2292.413,2374.721,2481.0590000000002,2600.9720000000002,2719.8090000000002,2826.6529999999998,2918.2089999999998,2996.54,3062.7820000000002,3119.92,3170.4369999999999,3213.9690000000001,3250.1039999999998,3281.453,3311.444,3342.8180000000002,3376.558,3412.8939999999998,3452.797,null,38.418999999999997,39.075000000000003,39.692999999999998,40.259,40.768000000000001,41.220999999999997,41.63,42.015000000000001,42.393999999999998,42.773000000000003,43.155999999999999,43.545000000000002,43.933999999999997,44.316000000000003,44.691000000000003,45.054000000000002,45.404000000000003,45.738999999999997,46.058999999999997,46.363999999999997,46.654000000000003,46.927,47.186999999999998,47.441000000000003,47.695,47.956000000000003,48.23,48.521999999999998,48.841000000000001,49.192,49.588000000000001,50.04,50.545000000000002,51.1,51.695999999999998,52.316000000000003,52.938000000000002,53.548000000000002,54.137,54.707000000000001,55.273000000000003,55.863999999999997,56.5,57.191000000000003,57.932000000000002,58.707000000000001,59.487000000000002,60.243000000000002,60.951999999999998,61.601999999999997,62.192999999999998,62.731999999999999,63.238,63.725999999999999,64.200999999999993,64.664000000000001,65.111000000000004,65.537999999999997,65.941000000000003]
["Estonia",1216.82,1230.5039999999999,1245.0830000000001,1260.2149999999999,1275.44,1290.4059999999999,1304.9839999999999,1319.249,1333.174,1346.82,1360.2059999999999,1373.298,1386.0740000000001,1398.47,1410.4670000000001,1422.0519999999999,1433.173,1443.8910000000001,1454.2660000000001,1464.423,1474.4380000000001,1483.8789999999999,1492.64,1501.422,1511.193,1522.405,1536.0340000000001,1551.2090000000001,1564.2,1569.9670000000001,1565.2460000000001,1548.22,1520.8109999999999,1488.06,1457.09,1433.0260000000001,1417.741,1409.6780000000001,1406.35,1403.7840000000001,1399.1110000000001,1391.739,1382.7370000000001,1372.904,1363.57,1355.65,1349.373,1344.2950000000001,1340.067,1336.14,1332.1030000000001,1327.701,1323.163,1319.068,1316.2729999999999,1315.33,1316.5070000000001,1319.3889999999999,1322.913,null,67.902902439024388,68.360804878048796,68.741024390243922,69.053560975609756,69.309926829268306,69.517634146341464,69.681195121951234,69.802121951219533,69.8829268292683,69.928097560975615,69.93709756097563,69.905341463414643,69.832829268292684,69.72458536585367,69.590219512195119,69.441317073170737,69.290024390243914,69.146951219512204,69.026268292682929,68.938585365853655,68.90563414634147,68.978048780487796,69.126829268292695,69.37560975609756,69.278048780487822,69.380487804878058,70.085365853658544,70.643902439024387,70.697560975609761,70.039024390243895,69.475609756097569,69.373170731707319,68.863414634146352,67.909756097560987,66.5,67.543902439024379,69.612195121951217,69.809756097560992,69.358536585365854,70.063414634146341,70.417073170731726,70.25853658536586,70.904878048780503,71.317073170731703,71.909756097560972,72.568292682926824,72.691463414634143,72.814634146341476,73.770731707317083,74.824390243902442,75.429268292682934,76.229268292682931,76.326829268292698,77.141463414634146,77.034146341463426,77.590243902439028,77.64146341463416,78.092682926829269,78.543902439024393]
["Eswatini",336.57799999999997,343.346,350.15499999999997,357.279,365.12,373.92500000000001,383.82,394.76,406.50799999999998,418.73899999999998,431.25099999999998,443.97899999999998,457.03899999999999,470.56099999999998,484.74700000000001,499.75900000000001,515.60199999999998,532.25300000000004,549.78700000000003,568.31600000000003,587.85199999999998,608.37400000000002,629.81200000000001,652.11199999999997,675.24,699.077,723.59900000000005,748.63400000000001,773.774,798.49800000000005,822.423,845.26700000000005,866.995,887.70600000000002,907.62199999999996,926.83600000000001,945.50599999999997,963.41600000000005,979.92200000000003,994.10500000000002,1005.432,1013.6079999999999,1019.054,1022.796,1026.287,1030.575,1036.095,1042.6510000000001,1049.9480000000001,1057.462,1064.8409999999999,1072.029,1079.2850000000001,1086.8430000000001,1095.0219999999999,1104.038,1113.9939999999999,1124.808,1136.2739999999999,null,67.902902439024388,68.360804878048796,68.741024390243922,69.053560975609756,69.309926829268306,69.517634146341464,69.681195121951234,69.802121951219533,69.8829268292683,69.928097560975615,69.93709756097563,69.905341463414643,69.832829268292684,69.72458536585367,69.590219512195119,69.441317073170737,69.290024390243914,69.146951219512204,69.026268292682929,68.938585365853655,68.90563414634147,68.978048780487796,69.126829268292695,69.37560975609756,69.278048780487822,69.380487804878058,70.085365853658544,70.643902439024387,70.697560975609761,70.039024390243895,69.475609756097569,69.373170731707319,68.863414634146352,67.909756097560987,66.5,67.543902439024379,69.612195121951217,69.809756097560992,69.358536585365854,70.063414634146341,70.417073170731726,70.25853658536586,70.904878048780503,71.317073170731703,71.909756097560972,72.568292682926824,72.691463414634143,72.814634146341476,73.770731707317083,74.824390243902442,75.429268292682934,76.229268292682931,76.326829268292698,77.141463414634146,77.034146341463426,77.590243902439028,77.64146341463416,78.092682926829269,78.543902439024393]
["Ethiopia",22151.284,22671.192999999999,23221.384999999998,23798.418000000001,24397.01,25013.633999999998,25641.040000000001,26280.134999999998,26944.385999999999,27652.715,28415.08,29248.65,30140.798999999999,31036.67,31861.352999999999,32566.855,33128.150999999998,33577.24,33993.300999999999,34487.805999999997,35141.703000000001,35984.531000000003,36995.245999999999,38142.678999999996,39374.345999999998,40652.146000000001,41965.696000000004,43329.237999999998,44757.205000000002,46272.307999999997,47887.864000000001,49609.976000000002,51423.591,53295.555999999997,55180.993000000002,57047.906000000003,58883.531000000003,60697.442999999999,62507.724000000002,64343.008000000002,66224.808999999994,68159.422000000006,70142.09,72170.581000000006,74239.508000000002,76346.31,78489.205000000002,80674.342999999993,82916.236000000004,85233.922999999995,87639.962,90139.928,92726.982000000004,95385.793000000005,98094.263999999996,100835.45299999999,103603.461,106399.92600000001,109224.41,null,38.418999999999997,39.082000000000001,39.710999999999999,40.29,40.81,41.267000000000003,41.667999999999999,42.026000000000003,42.354999999999997,42.658999999999999,42.944000000000003,43.213000000000001,43.465000000000003,43.692999999999998,43.893999999999998,44.043999999999997,44.116,44.103000000000002,44.015999999999998,43.881,43.747,43.674999999999997,43.712000000000003,43.884999999999998,44.198999999999998,44.633000000000003,45.146999999999998,45.682000000000002,46.194000000000003,46.667000000000002,47.098999999999997,47.503999999999998,47.911000000000001,48.344000000000001,48.81,49.302999999999997,49.81,50.32,50.835000000000001,51.366,51.941000000000003,52.594999999999999,53.348999999999997,54.210999999999999,55.173999999999999,56.222999999999999,57.334000000000003,58.466999999999999,59.581000000000003,60.645000000000003,61.627000000000002,62.505000000000003,63.280999999999999,63.960999999999999,64.546999999999997,65.048000000000002,65.481999999999999,65.872,66.239999999999995]
["Faroe Islands",34.624000000000002,35.073999999999998,35.521000000000001,35.965000000000003,36.408999999999999,36.843000000000004,37.283000000000001,37.704999999999998,38.131,38.56,39.008000000000003,39.456000000000003,39.914999999999999,40.395000000000003,40.847000000000001,41.292000000000002,41.723999999999997,42.133000000000003,42.539000000000001,42.941000000000003,43.338999999999999,43.725000000000001,44.100999999999999,44.482999999999997,44.895000000000003,45.328000000000003,45.811999999999998,46.34,46.832999999999998,47.158999999999999,47.276000000000003,47.122999999999998,46.746000000000002,46.277000000000001,45.847999999999999,45.625,45.624000000000002,45.789000000000001,46.094000000000001,46.427999999999997,46.738,46.999000000000002,47.234999999999999,47.439,47.6,47.731000000000002,47.792999999999999,47.825000000000003,47.822000000000003,47.814,47.802999999999997,47.814999999999998,47.843000000000004,47.901000000000003,47.965000000000003,48.055,48.173000000000002,48.326000000000001,48.497,null,69.020866620994667,69.412211952628169,69.318361686346904,69.612851510609545,70.030842704461435,70.157154753430461,70.428153384590871,70.473602895873015,70.584133771911283,70.53345854774625,70.858259490740807,70.938898895467545,71.313069801495303,71.42220836041173,71.7263354105757,71.807843363234625,72.034441697781972,72.295522828618545,72.433704194539061,72.698052275226956,72.751268543388946,73.089631896662794,73.36659061694894,73.411165100630143,73.669311704219197,73.774190835667554,74.038049645144383,74.266401053831231,74.468485515702298,74.629427851561488,74.730662416188849,74.816900170053131,75.131843220386628,75.261221689961943,75.529103599056384,75.676868379694383,75.927968684357268,76.245519195417444,76.514517160640793,76.748581981705257,77.078447803495379,77.425483372652153,77.532721538566477,77.590661981993335,78.117403367078538,78.271011246005713,78.668923271741903,78.90203602754498,79.125498871187276,79.357228335505312,79.629426057763581,80.137772877619668,80.156888152225918,80.463740932860333,80.87044757794709,80.566807142571065,80.943092461193217,80.923348036246338,80.97050203529966]
["Fiji",393.48,407.24400000000003,421.673,436.303,450.53800000000001,463.96,476.399,487.97300000000001,498.94400000000002,509.70800000000003,520.56100000000004,531.62199999999996,542.84299999999996,554.14300000000003,565.41800000000001,576.62599999999998,587.56100000000004,598.29899999999998,609.38300000000004,621.58399999999995,635.31200000000001,651.03200000000004,668.28099999999995,685.49699999999996,700.47799999999995,711.77,718.64200000000005,721.77599999999995,722.92399999999998,724.60199999999998,728.57500000000005,735.39800000000002,744.47,754.96199999999999,765.60699999999997,775.428,784.38900000000001,792.73599999999999,800.14800000000002,806.30200000000002,811.01099999999997,813.923,815.25699999999995,816.07799999999997,817.86400000000003,821.60599999999999,827.86900000000003,836.18499999999995,845.35599999999999,853.63599999999997,859.81600000000003,863.45100000000002,865.06500000000005,865.60199999999998,866.447,868.63199999999995,872.40599999999995,877.46,883.49,null,69.020866620994667,69.412211952628169,69.318361686346904,69.612851510609545,70.030842704461435,70.157154753430461,70.428153384590871,70.473602895873015,70.584133771911283,70.53345854774625,70.858259490740807,70.938898895467545,71.313069801495303,71.42220836041173,71.7263354105757,71.807843363234625,72.034441697781972,72.295522828618545,72.433704194539061,72.698052275226956,72.751268543388946,73.089631896662794,73.36659061694894,73.411165100630143,73.669311704219197,73.774190835667554,74.038049645144383,74.266401053831231,74.468485515702298,74.629427851561488,74.730662416188849,74.816900170053131,75.131843220386628,75.261221689961943,75.529103599056384,75.676868379694383,75.927968684357268,76.245519195417444,76.514517160640793,76.748581981705257,77.078447803495379,77.425483372652153,77.532721538566477,77.590661981993335,78.117403367078538,78.271011246005713,78.668923271741903,78.90203602754498,79.125498871187276,79.357228335505312,79.629426057763581,80.137772877619668,80.156888152225918,80.463740932860333,80.87044757794709,80.566807142571065,80.943092461193217,80.923348036246338,80.97050203529966]
["Finland",4434.5929999999998,4467.7629999999999,4498.8209999999999,4526.7380000000003,4550.25,4568.6040000000003,4581.1149999999998,4588.66,4594.0209999999997,4601.0330000000004,4612.3649999999998,4629.3710000000001,4651.174,4675.45,4698.7820000000002,4718.7439999999997,4734.4319999999998,4746.9290000000001,4758.2560000000003,4771.3410000000003,4788.2470000000003,4809.8069999999998,4835.1019999999999,4862.1710000000003,4888.1970000000001,4911.22,4930.3419999999996,4946.3680000000004,4961.0969999999998,4977.1180000000004,4996.22,5019.134,5044.9279999999999,5071.7820000000002,5097.09,5119.0119999999997,5136.9840000000004,5151.74,5164.2359999999999,5175.9210000000003,5187.9530000000004,5200.4750000000004,5213.3680000000004,5227.1059999999998,5242.1750000000002,5258.933,5277.49,5297.741,5319.4520000000002,5342.2659999999996,5365.7839999999997,5390.0360000000001,5414.7690000000002,5438.9840000000004,5461.41,5481.1279999999997,5497.7139999999999,5511.3720000000003,5522.585,null,68.819756097560983,68.844146341463414,68.577804878048781,69.012682926829271,69.220975609756096,68.977804878048772,69.477073170731714,69.666585365853678,69.616341463414642,69.503414634146353,70.179512195121958,70.017560975609769,70.707317073170728,71.223658536585376,71.134878048780493,71.673658536585378,71.812926829268292,72.350243902439018,72.89707317073173,73.155365853658552,73.44,73.746585365853662,74.298048780487818,74.2009756097561,74.519024390243914,74.222926829268303,74.56,74.591951219512197,74.577073170731708,74.792195121951238,74.813170731707316,75.227560975609762,75.455365853658549,75.705121951219525,76.395609756097556,76.409512195121962,76.69341463414635,76.878536585365865,77.090731707317076,77.291219512195127,77.465853658536602,77.965853658536588,78.119512195121956,78.368292682926835,78.714634146341481,78.817073170731703,79.214634146341467,79.263414634146358,79.568292682926838,79.719512195121965,79.870731707317091,80.470731707317086,80.626829268292695,80.975609756097569,81.180487804878069,81.480487804878067,81.429268292682934,81.631707317073193,81.834146341463423]
["France",45673.146999999997,46266.974000000002,46907.042999999998,47560.824999999997,48184.413999999997,48746.652999999998,49232.536,49651.08,50024.587,50387.440999999999,50763.921000000002,51162.569000000003,51573.267999999996,51979.531000000003,52356.792999999998,52688.574999999997,52969.313999999998,53208.548999999999,53423.112000000001,53637.072999999997,53868.006000000001,54121.008999999998,54391.468999999997,54675.37,54965.167000000001,55254.838000000003,55545.271000000001,55837.622000000003,56126.337,56404.303,56666.860999999997,56913.58,57147.213000000003,57370.375,57587.122000000003,57801.887000000002,58012.055,58220.656999999999,58444.245000000003,58704.381000000001,59015.091999999997,59384.125999999997,59803.434000000001,60251.591,60697.976999999999,61120.127999999997,61508.923999999999,61869.228999999999,62209.207000000002,62542.883000000002,62879.535000000003,63222.228999999999,63564.224000000002,63893.521000000001,64193.55,64453.194000000003,64667.59,64842.512999999999,64990.512000000002,null,69.868292682926835,70.117073170731715,70.314634146341476,70.514634146341479,70.663414634146349,70.812195121951234,70.960975609756119,71.160975609756107,71.309756097560978,71.458536585365863,71.658536585365866,71.907317073170731,72.107317073170734,72.356097560975613,72.604878048780478,72.853658536585385,73.10243902439025,73.351219512195129,73.60243902439025,73.851219512195129,74.051219512195132,74.3,74.5,74.8,75,75.3,75.599999999999994,75.8,76.099999999999994,76.348780487804873,76.599999999999994,76.848780487804888,77.099999999999994,77.3,77.648780487804885,77.751219512195121,77.95365853658538,78.304878048780495,78.604878048780492,78.756097560975604,79.056097560975616,79.158536585365866,79.260975609756116,79.114634146341473,80.163414634146349,80.163414634146349,80.812195121951234,81.112195121951231,81.214634146341481,81.41463414634147,81.663414634146349,82.114634146341473,81.968292682926844,82.219512195121965,82.719512195121951,82.321951219512201,82.524390243902445,82.526829268292687,82.526829268292687]
["French Guiana",32.031999999999996,33.115000000000002,34.378999999999998,35.770000000000003,37.283999999999999,38.893000000000001,40.624000000000002,42.43,44.308999999999997,46.15,47.932000000000002,49.619,51.271999999999998,52.881999999999998,54.521000000000001,56.223999999999997,58,59.868000000000002,61.936,64.275000000000006,66.972999999999999,70.022000000000006,73.414000000000001,77.231999999999999,81.566000000000003,86.435000000000002,91.95,97.971999999999994,104.22199999999999,110.261,115.78400000000001,120.68899999999999,125.075,129.14599999999999,133.18600000000001,137.4,141.786,146.33099999999999,151.245,156.81100000000001,163.16300000000001,170.44300000000001,178.548,187.02600000000001,195.30500000000001,202.97300000000001,209.89099999999999,216.18199999999999,221.99700000000001,227.542,232.99600000000001,238.38300000000001,243.667,249.04900000000001,254.78,261.00799999999998,267.82400000000001,275.18900000000002,282.93599999999998,null,0,0,0,0,0,0,0,0,0,0,0,0,0,74.497560975609773,0,0,0,0,75.98536585365855,0,0,0,0,0,0,0,75.214634146341467,75.465853658536588,75.714634146341467,75.91463414634147,76.114634146341487,76.41463414634147,76.614634146341473,76.81463414634149,77.065853658536597,77.368292682926835,77.57073170731708,77.824390243902457,78.026829268292687,78.280487804878064,78.434146341463432,78.636585365853662,78.787804878048775,78.990243902439033,79.190243902439036,79.441463414634157,79.690243902439036,79.890243902439039,80.139024390243918,80.387804878048797,80.587804878048786,80.839024390243921,81.090243902439042,81.341463414634148,81.592682926829269,81.795121951219528,82.046341463414635,82.29756097560977,82.548780487804891]
["French Polynesia",78.08,80.704999999999998,83.652000000000001,86.846999999999994,90.132000000000005,93.441999999999993,96.718999999999994,99.99,103.32899999999999,106.81399999999999,110.49,114.38500000000001,118.438,122.64100000000001,126.919,131.22900000000001,135.559,139.893,144.273,148.73400000000001,153.298,157.95400000000001,162.679,167.45599999999999,172.249,177.024,181.80699999999999,186.58799999999999,191.26,195.72800000000001,199.90600000000001,203.71600000000001,207.238,210.64400000000001,214.196,218.06399999999999,222.32300000000001,226.85400000000001,231.56200000000001,236.21700000000001,240.68100000000001,244.929,248.976,252.70699999999999,255.995,258.77999999999997,261.00700000000001,262.71699999999998,264.06400000000002,265.25599999999997,266.44900000000001,267.702,268.995,270.33199999999999,271.71300000000002,273.11900000000003,274.57600000000002,276.108,277.673,null,0,0,0,0,0,0,0,0,0,0,0,0,0,74.497560975609773,0,0,0,0,75.98536585365855,0,0,0,0,0,0,0,75.214634146341467,75.465853658536588,75.714634146341467,75.91463414634147,76.114634146341487,76.41463414634147,76.614634146341473,76.81463414634149,77.065853658536597,77.368292682926835,77.57073170731708,77.824390243902457,78.026829268292687,78.280487804878064,78.434146341463432,78.636585365853662,78.787804878048775,78.990243902439033,79.190243902439036,79.441463414634157,79.690243902439036,79.890243902439039,80.139024390243918,80.387804878048797,80.587804878048786,80.839024390243921,81.090243902439042,81.341463414634148,81.592682926829269,81.795121951219528,82.046341463414635,82.29756097560977,82.548780487804891]
["Gabon",500.92200000000003,505.79300000000001,511.28500000000003,517.57299999999998,524.89099999999996,533.35699999999997,543.11900000000003,554.05399999999997,565.76300000000003,577.64400000000001,589.31700000000001,600.60799999999995,611.70500000000004,622.91399999999999,634.73900000000003,647.53800000000001,661.39800000000002,676.26400000000001,692.07799999999997,708.78800000000001,726.33500000000004,744.69500000000005,763.93200000000002,784.05600000000004,805.11699999999996,827.10699999999997,850.05200000000002,873.87099999999998,898.47199999999998,923.71400000000006,949.49300000000005,975.78499999999997,1002.573,1029.769,1057.252,1084.951,1112.944,1141.3320000000001,1170.0609999999999,1199.058,1228.3589999999999,1258.008,1288.31,1319.9459999999999,1353.788,1390.55,1430.144,1472.5650000000001,1518.538,1568.925,1624.146,1684.6289999999999,1749.6769999999999,1817.07,1883.8009999999999,1947.69,2007.8820000000001,2064.8119999999999,2119.2750000000001,null,0,0,0,0,0,0,0,0,0,0,0,0,0,74.497560975609773,0,0,0,0,75.98536585365855,0,0,0,0,0,0,0,75.214634146341467,75.465853658536588,75.714634146341467,75.91463414634147,76.114634146341487,76.41463414634147,76.614634146341473,76.81463414634149,77.065853658536597,77.368292682926835,77.57073170731708,77.824390243902457,78.026829268292687,78.280487804878064,78.434146341463432,78.636585365853662,78.787804878048775,78.990243902439033,79.190243902439036,79.441463414634157,79.690243902439036,79.890243902439039,80.139024390243918,80.387804878048797,80.587804878048786,80.839024390243921,81.090243902439042,81.341463414634148,81.592682926829269,81.795121951219528,82.046341463414635,82.29756097560977,82.548780487804891]
["Gambia",365.04899999999998,372.43599999999998,379.88600000000002,387.63499999999999,396.012,405.25799999999998,415.47800000000001,426.62200000000001,438.59,451.22800000000001,464.404,478.10599999999999,492.42399999999998,507.428,523.25,539.98500000000001,557.80999999999995,576.755,596.54,616.77,637.25199999999995,657.58100000000002,678.11099999999999,700.19799999999998,725.68799999999999,755.79100000000005,791.14099999999996,831.01099999999997,873.44,915.63099999999997,955.59500000000003,992.67100000000005,1027.4760000000001,1060.8610000000001,1094.2190000000001,1128.577,1164.0909999999999,1200.5219999999999,1238.124,1277.1179999999999,1317.7080000000001,1360.07,1404.2629999999999,1449.925,1496.5239999999999,1543.7449999999999,1591.444,1639.846,1689.288,1740.277,1793.1990000000001,1848.1420000000001,1905.02,1963.7080000000001,2024.037,2085.86,2149.134,2213.9,2280.0920000000001,null,0,0,0,0,0,0,0,0,0,0,0,0,0,74.497560975609773,0,0,0,0,75.98536585365855,0,0,0,0,0,0,0,75.214634146341467,75.465853658536588,75.714634146341467,75.91463414634147,76.114634146341487,76.41463414634147,76.614634146341473,76.81463414634149,77.065853658536597,77.368292682926835,77.57073170731708,77.824390243902457,78.026829268292687,78.280487804878064,78.434146341463432,78.636585365853662,78.787804878048775,78.990243902439033,79.190243902439036,79.441463414634157,79.690243902439036,79.890243902439039,80.139024390243918,80.387804878048797,80.587804878048786,80.839024390243921,81.090243902439042,81.341463414634148,81.592682926829269,81.795121951219528,82.046341463414635,82.29756097560977,82.548780487804891]
["Georgia",4007.7240000000002,4077.0790000000002,4148.7330000000002,4222.1570000000002,4296.6710000000003,4371.527,4446.8370000000004,4521.7150000000001,4593.3149999999996,4658.009,4713.34,4758.1610000000001,4793.558,4822.1679999999997,4847.8689999999997,4873.6379999999999,4900.192,4927.2510000000002,4955.5169999999998,4985.5910000000003,5017.8270000000002,5051.116,5085.1409999999996,5121.8010000000004,5163.6409999999996,5211.4539999999997,5267.2330000000002,5327.4960000000001,5380.82,5411.9830000000002,5410.4,5372.9960000000001,5303.9250000000002,5208.9539999999997,5097.1260000000002,4976.2520000000004,4846.6270000000004,4709.5959999999995,4575.3959999999997,4456.652,4362.1840000000002,4296.9809999999998,4258.5730000000003,4238.93,4225.8109999999997,4210.1580000000004,4189.7219999999998,4166.8599999999997,4142.6480000000001,4119.49,4099.0959999999995,4081.0120000000002,4064.0970000000002,4048.701,4035.31,4024.18,4015.4569999999999,4008.723,4002.9459999999999,null,0,0,0,0,0,0,0,0,0,0,0,0,0,74.497560975609773,0,0,0,0,75.98536585365855,0,0,0,0,0,0,0,75.214634146341467,75.465853658536588,75.714634146341467,75.91463414634147,76.114634146341487,76.41463414634147,76.614634146341473,76.81463414634149,77.065853658536597,77.368292682926835,77.57073170731708,77.824390243902457,78.026829268292687,78.280487804878064,78.434146341463432,78.636585365853662,78.787804878048775,78.990243902439033,79.190243902439036,79.441463414634157,79.690243902439036,79.890243902439039,80.139024390243918,80.387804878048797,80.587804878048786,80.839024390243921,81.090243902439042,81.341463414634148,81.592682926829269,81.795121951219528,82.046341463414635,82.29756097560977,82.548780487804891]
["Germany",73414.229000000007,73928.077000000005,74489.45,75080.748999999996,75677.304999999993,76258.034,76819.570000000007,77357.251000000004,77847.179000000004,78260.755999999994,78578.380999999994,78789.930999999997,78901.826000000001,78932.455000000002,78909.808000000005,78856.031000000003,78781.740000000005,78687.323000000004,78573.588000000003,78438.171000000002,78283.100999999995,78107.86,77926.016000000003,77770.210000000006,77682.293000000005,77691.591,77806.135999999999,78015.741999999998,78307.524999999994,78660.301000000007,79053.983999999997,79490.831000000006,79963.165999999997,80428.557000000001,80832.928,81138.653000000006,81323.665999999997,81399.25,81402.671000000002,81389.934999999998,81400.883000000002,81453.894,81535.123999999996,81614.370999999999,81646.474000000002,81602.739000000001,81472.235000000001,81277.835999999996,81065.751000000004,80899.960999999996,80827.001000000004,80855.629000000001,80972.629000000001,81174.373000000007,81450.37,81787.410999999993,82193.77,82658.409,83124.413,null,0,0,0,0,0,0,0,0,0,0,0,0,0,74.497560975609773,0,0,0,0,75.98536585365855,0,0,0,0,0,0,0,75.214634146341467,75.465853658536588,75.714634146341467,75.91463414634147,76.114634146341487,76.41463414634147,76.614634146341473,76.81463414634149,77.065853658536597,77.368292682926835,77.57073170731708,77.824390243902457,78.026829268292687,78.280487804878064,78.434146341463432,78.636585365853662,78.787804878048775,78.990243902439033,79.190243902439036,79.441463414634157,79.690243902439036,79.890243902439039,80.139024390243918,80.387804878048797,80.587804878048786,80.839024390243921,81.090243902439042,81.341463414634148,81.592682926829269,81.795121951219528,82.046341463414635,82.29756097560977,82.548780487804891]
["Ghana",6635.2290000000003,6848.2910000000002,7071.9660000000003,7300.1239999999998,7524.47,7739.4629999999997,7941.4179999999997,8132.8029999999999,8321.7729999999992,8520.018,8735.4930000000004,8973.2469999999994,9229.64,9493.5519999999997,9749.098,9985.9459999999999,10199.164000000001,10395.453,10590.264999999999,10805.317999999999,11056.111999999999,11348.287,11676.828,12033.558999999999,12405.659,12783.617,13164.839,13552.021000000001,13947.047,14353.409,14773.273999999999,15207.36,15653.344999999999,16106.755999999999,16561.677,17014.058000000001,17462.504000000001,17908.976999999999,18357.159,18812.368999999999,19278.849999999999,19756.929,20246.376,20750.308000000001,21272.328000000001,21814.648000000001,22379.057000000001,22963.946,23563.831999999999,24170.942999999999,24779.614000000001,25387.713,25996.454000000002,26607.641,27224.48,27849.203000000001,28481.947,29121.464,29767.108,null,0,0,0,0,0,0,0,0,0,0,0,0,0,74.497560975609773,0,0,0,0,75.98536585365855,0,0,0,0,0,0,0,75.214634146341467,75.465853658536588,75.714634146341467,75.91463414634147,76.114634146341487,76.41463414634147,76.614634146341473,76.81463414634149,77.065853658536597,77.368292682926835,77.57073170731708,77.824390243902457,78.026829268292687,78.280487804878064,78.434146341463432,78.636585365853662,78.787804878048775,78.990243902439033,79.190243902439036,79.441463414634157,79.690243902439036,79.890243902439039,80.139024390243918,80.387804878048797,80.587804878048786,80.839024390243921,81.090243902439042,81.341463414634148,81.592682926829269,81.795121951219528,82.046341463414635,82.29756097560977,82.548780487804891]
["Gibraltar",23.42,23.808,24.306999999999999,24.888999999999999,25.478000000000002,26.079000000000001,26.631,27.172000000000001,27.693000000000001,28.164999999999999,28.600999999999999,29.007000000000001,29.353000000000002,29.657,29.885999999999999,30.062000000000001,30.178999999999998,30.228000000000002,30.224,30.172000000000001,30.068000000000001,29.902000000000001,29.698,29.481000000000002,29.283999999999999,29.151,29.096,29.114000000000001,29.164000000000001,29.187000000000001,29.149000000000001,29.021000000000001,28.844000000000001,28.68,28.605,28.687999999999999,28.97,29.404,29.945,30.526,31.081,31.603999999999999,32.097000000000001,32.555999999999997,32.93,33.222000000000001,33.42,33.524000000000001,33.57,33.561999999999998,33.585000000000001,33.607999999999997,33.652999999999999,33.694000000000003,33.725999999999999,33.741999999999997,33.738,33.722999999999999,33.715000000000003,null,0,0,0,0,0,0,0,0,0,0,0,0,0,74.497560975609773,0,0,0,0,75.98536585365855,0,0,0,0,0,0,0,75.214634146341467,75.465853658536588,75.714634146341467,75.91463414634147,76.114634146341487,76.41463414634147,76.614634146341473,76.81463414634149,77.065853658536597,77.368292682926835,77.57073170731708,77.824390243902457,78.026829268292687,78.280487804878064,78.434146341463432,78.636585365853662,78.787804878048775,78.990243902439033,79.190243902439036,79.441463414634157,79.690243902439036,79.890243902439039,80.139024390243918,80.387804878048797,80.587804878048786,80.839024390243921,81.090243902439042,81.341463414634148,81.592682926829269,81.795121951219528,82.046341463414635,82.29756097560977,82.548780487804891]
["Greece",8273.6280000000006,8314.009,8350.8760000000002,8385.4429999999993,8419.3009999999995,8453.8189999999995,8489.8680000000004,8528.0259999999998,8569.1440000000002,8614.0349999999999,8663.5679999999993,8716.8700000000008,8774.5120000000006,8840.3109999999997,8919.2469999999994,9014.0910000000003,9127.0570000000007,9254.9789999999994,9388.7199999999993,9515.7430000000004,9627.0040000000008,9719.8389999999999,9796.83,9860.7340000000004,9916.4809999999998,9968.2330000000002,10015.121999999999,10057.291999999999,10101.349,10155.721,10225.99,10315.109,10420.226000000001,10533.811,10644.939,10745.502,10832.138999999999,10906.248,10970.120999999999,11027.898999999999,11082.102999999999,11134.447,11182.308000000001,11218.879000000001,11234.993,11224.8,11185.231,11120.370999999999,11040.312,10959.268,10887.64,10829.074000000001,10781.119000000001,10740.501,10701.46,10659.736999999999,10615.183000000001,10569.449000000001,10522.244000000001,null,0,0,0,0,0,0,0,0,0,0,0,0,0,74.497560975609773,0,0,0,0,75.98536585365855,0,0,0,0,0,0,0,75.214634146341467,75.465853658536588,75.714634146341467,75.91463414634147,76.114634146341487,76.41463414634147,76.614634146341473,76.81463414634149,77.065853658536597,77.368292682926835,77.57073170731708,77.824390243902457,78.026829268292687,78.280487804878064,78.434146341463432,78.636585365853662,78.787804878048775,78.990243902439033,79.190243902439036,79.441463414634157,79.690243902439036,79.890243902439039,80.139024390243918,80.387804878048797,80.587804878048786,80.839024390243921,81.090243902439042,81.341463414634148,81.592682926829269,81.795121951219528,82.046341463414635,82.29756097560977,82.548780487804891]
["Greenland",31.23,32.475999999999999,33.731000000000002,35.036999999999999,36.438000000000002,37.965000000000003,39.604999999999997,41.362000000000002,43.097999999999999,44.701999999999998,46.076999999999998,47.195,48.066000000000003,48.735999999999997,49.231999999999999,49.575000000000003,49.780999999999999,49.845999999999997,49.865000000000002,49.942,50.179000000000002,50.584000000000003,51.155000000000001,51.834000000000003,52.527999999999999,53.186999999999998,53.789000000000001,54.371000000000002,54.88,55.287999999999997,55.603999999999999,55.783000000000001,55.856999999999999,55.847000000000001,55.817,55.81,55.83,55.872999999999998,55.951000000000001,56.052,56.177,56.335999999999999,56.518000000000001,56.707000000000001,56.868000000000002,56.948999999999998,56.968000000000004,56.927999999999997,56.835999999999999,56.728999999999999,56.637999999999998,56.555,56.476999999999997,56.411999999999999,56.383000000000003,56.378,56.408000000000001,56.472999999999999,56.564999999999998,null,0,0,0,0,0,0,0,0,0,0,0,0,0,74.497560975609773,0,0,0,0,75.98536585365855,0,0,0,0,0,0,0,75.214634146341467,75.465853658536588,75.714634146341467,75.91463414634147,76.114634146341487,76.41463414634147,76.614634146341473,76.81463414634149,77.065853658536597,77.368292682926835,77.57073170731708,77.824390243902457,78.026829268292687,78.280487804878064,78.434146341463432,78.636585365853662,78.787804878048775,78.990243902439033,79.190243902439036,79.441463414634157,79.690243902439036,79.890243902439039,80.139024390243918,80.387804878048797,80.587804878048786,80.839024390243921,81.090243902439042,81.341463414634148,81.592682926829269,81.795121951219528,82.046341463414635,82.29756097560977,82.548780487804891]
["Grenada",89.927000000000007,91.323999999999998,92.480999999999995,93.409000000000006,94.122,94.634,94.936000000000007,95.012,94.929000000000002,94.722999999999999,94.475999999999999,94.212000000000003,93.983999999999995,93.661000000000001,93.19,92.494,91.468999999999994,90.218999999999994,89.103999999999999,88.602999999999994,89.031999999999996,90.61,93.132000000000005,96.02,98.471999999999994,99.953000000000003,100.18300000000001,99.424999999999997,98.126000000000005,96.932000000000002,96.328000000000003,96.462000000000003,97.161000000000001,98.233999999999995,99.344999999999999,100.286,101.003,101.56699999999999,102.023,102.429,102.837,103.242,103.636,104.003,104.346,104.658,104.938,105.18300000000001,105.45699999999999,105.78700000000001,106.227,106.786,107.452,108.172,108.9,109.60299999999999,110.26300000000001,110.874,111.449,null,0,0,0,0,0,0,0,0,0,0,0,0,0,74.497560975609773,0,0,0,0,75.98536585365855,0,0,0,0,0,0,0,75.214634146341467,75.465853658536588,75.714634146341467,75.91463414634147,76.114634146341487,76.41463414634147,76.614634146341473,76.81463414634149,77.065853658536597,77.368292682926835,77.57073170731708,77.824390243902457,78.026829268292687,78.280487804878064,78.434146341463432,78.636585365853662,78.787804878048775,78.990243902439033,79.190243902439036,79.441463414634157,79.690243902439036,79.890243902439039,80.139024390243918,80.387804878048797,80.587804878048786,80.839024390243921,81.090243902439042,81.341463414634148,81.592682926829269,81.795121951219528,82.046341463414635,82.29756097560977,82.548780487804891]
["Guadeloupe",275.173,281.31200000000001,286.53800000000001,291.10599999999999,295.50900000000001,300.05799999999999,304.86700000000002,309.77199999999999,314.49799999999999,318.63,321.887,324.17,325.63499999999999,326.577,327.42599999999999,328.48899999999998,330.00700000000001,331.91500000000002,333.91899999999998,335.58699999999999,336.68299999999999,336.93200000000002,336.61200000000002,336.67700000000002,338.43,342.73700000000002,350.06099999999998,359.911,370.91300000000001,381.13900000000001,389.25099999999998,394.61500000000001,397.69200000000001,399.38,401.06599999999997,403.73099999999999,407.78399999999999,412.73899999999998,417.62099999999998,421.03500000000003,422.048,420.24799999999999,416.13200000000001,410.86799999999999,406.06799999999998,402.90300000000002,401.80900000000003,402.40499999999997,403.96699999999998,405.44400000000002,406.07299999999998,405.64299999999997,404.44600000000003,402.82600000000002,401.30500000000001,400.26,399.76,399.67899999999997,399.84800000000001,null,0,0,0,0,0,0,0,0,0,0,0,0,0,74.497560975609773,0,0,0,0,75.98536585365855,0,0,0,0,0,0,0,75.214634146341467,75.465853658536588,75.714634146341467,75.91463414634147,76.114634146341487,76.41463414634147,76.614634146341473,76.81463414634149,77.065853658536597,77.368292682926835,77.57073170731708,77.824390243902457,78.026829268292687,78.280487804878064,78.434146341463432,78.636585365853662,78.787804878048775,78.990243902439033,79.190243902439036,79.441463414634157,79.690243902439036,79.890243902439039,80.139024390243918,80.387804878048797,80.587804878048786,80.839024390243921,81.090243902439042,81.341463414634148,81.592682926829269,81.795121951219528,82.046341463414635,82.29756097560977,82.548780487804891]
["Guam",66.733000000000004,68.064999999999998,69.605000000000004,71.289000000000001,73.046999999999997,74.828000000000003,76.611000000000004,78.412000000000006,80.212000000000003,82.04,83.875,85.728999999999999,87.58,89.459000000000003,91.378,93.350999999999999,95.38,97.477000000000004,99.629000000000005,101.837,104.134,106.482,108.901,111.40300000000001,113.953,116.57599999999999,119.22799999999999,121.923,124.67400000000001,127.52500000000001,130.47999999999999,133.553,136.69300000000001,139.81299999999999,142.80600000000001,145.559,148.06100000000001,150.303,152.274,153.95500000000001,155.32300000000001,156.39500000000001,157.173,157.72300000000001,158.09399999999999,158.40600000000001,158.649,158.84800000000001,159.03700000000001,159.232,159.43899999999999,159.69,159.99,160.41499999999999,161.00700000000001,161.851,162.94800000000001,164.28100000000001,165.77,null,60.97,61.481000000000002,61.985999999999997,62.481999999999999,62.968000000000004,63.442999999999998,63.906999999999996,64.361000000000004,64.805000000000007,65.239000000000004,65.662000000000006,66.073999999999998,66.472999999999999,66.86,67.234999999999999,67.599000000000004,67.950999999999993,68.292000000000002,68.623999999999995,68.947000000000003,69.262,69.566999999999993,69.864000000000004,70.150999999999996,70.430999999999997,70.700999999999993,70.959999999999994,71.209000000000003,71.45,71.686999999999998,71.924999999999997,72.167000000000002,72.42,72.685000000000002,72.966999999999999,73.266999999999996,73.588999999999999,73.930000000000007,74.283000000000001,74.646000000000001,75.010999999999996,75.373000000000005,75.725999999999999,76.064999999999998,76.387,76.686999999999998,76.965999999999994,77.227000000000004,77.474000000000004,77.709999999999994,77.941000000000003,78.173000000000002,78.408000000000001,78.649000000000001,78.894999999999996,79.144000000000005,79.391000000000005,79.631,79.858999999999995]
["Guatemala",4210.7510000000002,4336.1319999999996,4464.2510000000002,4595.509,4730.5330000000004,4869.7139999999999,5013.1670000000004,5160.616,5311.61,5465.5150000000003,5621.7939999999999,5780.4769999999999,5941.567,6104.5280000000002,6268.7070000000003,6433.723,6599.2110000000002,6765.5159999999996,6933.9089999999997,7106.1440000000002,7283.4560000000001,7466.4809999999998,7654.8180000000002,7847.4679999999998,8042.8950000000004,8240.06,8438.5990000000002,8639.1049999999996,8842.5709999999999,9050.4639999999999,9263.82,9483.2729999999992,9708.5519999999997,9938.6990000000005,10172.303,10408.486000000001,10646.675999999999,10887.637000000001,11133.502,11387.208000000001,11650.744000000001,11924.941000000001,12208.853999999999,12500.478999999999,12796.925999999999,13096.028,13397.022000000001,13700.325999999999,14006.42,14316.251,14630.42,14948.791999999999,15270.773999999999,15595.821,15923.237999999999,16252.424999999999,16583.079000000002,16914.978999999999,17247.855,null,60.97,61.481000000000002,61.985999999999997,62.481999999999999,62.968000000000004,63.442999999999998,63.906999999999996,64.361000000000004,64.805000000000007,65.239000000000004,65.662000000000006,66.073999999999998,66.472999999999999,66.86,67.234999999999999,67.599000000000004,67.950999999999993,68.292000000000002,68.623999999999995,68.947000000000003,69.262,69.566999999999993,69.864000000000004,70.150999999999996,70.430999999999997,70.700999999999993,70.959999999999994,71.209000000000003,71.45,71.686999999999998,71.924999999999997,72.167000000000002,72.42,72.685000000000002,72.966999999999999,73.266999999999996,73.588999999999999,73.930000000000007,74.283000000000001,74.646000000000001,75.010999999999996,75.373000000000005,75.725999999999999,76.064999999999998,76.387,76.686999999999998,76.965999999999994,77.227000000000004,77.474000000000004,77.709999999999994,77.941000000000003,78.173000000000002,78.408000000000001,78.649000000000001,78.894999999999996,79.144000000000005,79.391000000000005,79.631,79.858999999999995]
["Guinea",3494.1640000000002,3552.0680000000002,3611.4279999999999,3672.56,3735.9119999999998,3801.7109999999998,3870.2040000000002,3941.0459999999998,4013.05,4084.6010000000001,4154.6059999999998,4223.0559999999996,4290.5439999999999,4357.357,4424.03,4491.2479999999996,4559.2389999999996,4628.8810000000003,4702.3710000000001,4782.491,4871.4459999999999,4969.5950000000003,5077.0730000000003,5195.4430000000002,5326.3689999999997,5470.7160000000003,5629.42,5801.3230000000003,5982.4840000000004,6167.48,6352.2820000000002,6534.9359999999997,6716.0320000000002,6897.1710000000003,7081.1189999999997,7269.6310000000003,7463.7820000000002,7662.0709999999999,7860.7719999999999,8054.7449999999999,8240.7350000000006,8417.0820000000003,8586.0769999999993,8753.0969999999998,8925.7289999999994,9109.5849999999991,9307.4210000000003,9518.1589999999997,9738.7960000000003,9964.4699999999993,10192.168,10420.459000000001,10652.031999999999,10892.821,11150.97,11432.096,11738.433999999999,12067.516,12414.291999999999,null,60.97,61.481000000000002,61.985999999999997,62.481999999999999,62.968000000000004,63.442999999999998,63.906999999999996,64.361000000000004,64.805000000000007,65.239000000000004,65.662000000000006,66.073999999999998,66.472999999999999,66.86,67.234999999999999,67.599000000000004,67.950999999999993,68.292000000000002,68.623999999999995,68.947000000000003,69.262,69.566999999999993,69.864000000000004,70.150999999999996,70.430999999999997,70.700999999999993,70.959999999999994,71.209000000000003,71.45,71.686999999999998,71.924999999999997,72.167000000000002,72.42,72.685000000000002,72.966999999999999,73.266999999999996,73.588999999999999,73.930000000000007,74.283000000000001,74.646000000000001,75.010999999999996,75.373000000000005,75.725999999999999,76.064999999999998,76.387,76.686999999999998,76.965999999999994,77.227000000000004,77.474000000000004,77.709999999999994,77.941000000000003,78.173000000000002,78.408000000000001,78.649000000000001,78.894999999999996,79.144000000000005,79.391000000000005,79.631,79.858999999999995]
["Guyana",571.81299999999999,589.274,606.28599999999994,622.58000000000004,637.83500000000004,651.86500000000001,664.51800000000003,675.86099999999999,686.14400000000001,695.74300000000005,704.93,713.68399999999997,721.94899999999996,729.90899999999999,737.846,745.84699999999998,754.101,762.42399999999998,770.12800000000004,776.25699999999995,780.15300000000002,781.73400000000004,781.24900000000002,778.95299999999997,775.21699999999998,770.43899999999996,764.447,757.45100000000002,750.64099999999996,745.58100000000002,743.30600000000004,744.47699999999998,748.596,754.14099999999996,758.89599999999996,761.298,760.80100000000004,757.97500000000002,753.77800000000002,749.67600000000004,746.71799999999996,745.20600000000002,744.78899999999999,745.14200000000005,745.73699999999997,746.15599999999995,746.33500000000004,746.47699999999998,746.81500000000005,747.71799999999996,749.43,752.029,755.38800000000003,759.28099999999995,763.37099999999998,767.43299999999999,771.36300000000006,775.21799999999996,779.00699999999995,null,60.26,60.441000000000003,60.622999999999998,60.805,60.984000000000002,61.156999999999996,61.317,61.462000000000003,61.588000000000001,61.697000000000003,61.789000000000001,61.868000000000002,61.938000000000002,62.005000000000003,62.072000000000003,62.14,62.210999999999999,62.283000000000001,62.354999999999997,62.427,62.497999999999998,62.564999999999998,62.625999999999998,62.683999999999997,62.741,62.801000000000002,62.869,62.95,63.045999999999999,63.158999999999999,63.286999999999999,63.427,63.576000000000001,63.73,63.890999999999998,64.063999999999993,64.254999999999995,64.468000000000004,64.704999999999998,64.963999999999999,65.242000000000004,65.531999999999996,65.828000000000003,66.122,66.412000000000006,66.694000000000003,66.971999999999994,67.247,67.521000000000001,67.792000000000002,68.058999999999997,68.320999999999998,68.575000000000003,68.819000000000003,69.049000000000007,69.262,69.453999999999994,69.623999999999995,69.774000000000001]
["Haiti",3866.1619999999998,3941.9560000000001,4019.1709999999998,4097.7550000000001,4177.6310000000003,4258.7340000000004,4341.3249999999998,4425.3180000000002,4509.8109999999997,4593.6660000000002,4676.2370000000001,4757.1750000000002,4837.3339999999998,4918.625,5003.7079999999996,5094.57,5191.6369999999997,5294.625,5404.02,5520.1869999999999,5643.1750000000002,5773.3670000000002,5910.223,6051.6170000000002,6194.6859999999997,6337.2749999999996,6478.5370000000003,6618.7420000000002,6758.2219999999998,6897.7550000000001,7037.915,7178.6109999999999,7319.491,7460.6840000000002,7602.3180000000002,7744.509,7887.3119999999999,8030.7209999999995,8174.68,8319.07,8463.8019999999997,8608.81,8754.1479999999992,8900.1080000000002,9047.0820000000003,9195.2890000000007,9344.7839999999997,9495.3359999999993,9646.57,9798.0460000000003,9949.3179999999993,10100.32,10250.922,10400.672,10549.007,10695.54,10839.976000000001,10982.367,11123.183000000001,null,60.26,60.441000000000003,60.622999999999998,60.805,60.984000000000002,61.156999999999996,61.317,61.462000000000003,61.588000000000001,61.697000000000003,61.789000000000001,61.868000000000002,61.938000000000002,62.005000000000003,62.072000000000003,62.14,62.210999999999999,62.283000000000001,62.354999999999997,62.427,62.497999999999998,62.564999999999998,62.625999999999998,62.683999999999997,62.741,62.801000000000002,62.869,62.95,63.045999999999999,63.158999999999999,63.286999999999999,63.427,63.576000000000001,63.73,63.890999999999998,64.063999999999993,64.254999999999995,64.468000000000004,64.704999999999998,64.963999999999999,65.242000000000004,65.531999999999996,65.828000000000003,66.122,66.412000000000006,66.694000000000003,66.971999999999994,67.247,67.521000000000001,67.792000000000002,68.058999999999997,68.320999999999998,68.575000000000003,68.819000000000003,69.049000000000007,69.262,69.453999999999994,69.623999999999995,69.774000000000001]
["Honduras",2038.636,2096.4070000000002,2155.6480000000001,2216.712,2280.0439999999999,2346.0050000000001,2414.8049999999998,2486.4180000000001,2560.723,2637.5149999999999,2716.652,2798.125,2882.1019999999999,2968.9780000000001,3059.2449999999999,3153.252,3251.145,3352.8249999999998,3458.1019999999999,3566.6610000000001,3678.2739999999999,3792.922,3910.6419999999998,4031.3330000000001,4154.8639999999996,4281.1670000000004,4410.2700000000004,4542.2179999999998,4677.0230000000001,4814.6959999999999,4955.3019999999997,5098.5940000000001,5244.6769999999997,5394.4160000000002,5548.9690000000001,5709.01,5874.8140000000003,6045.7039999999997,6220.4049999999997,6397.14,6574.51,6751.9120000000003,6929.2669999999998,7106.3230000000003,7282.9530000000004,7458.982,7634.2950000000001,7808.52,7980.9549999999999,8150.78,8317.4670000000006,8480.67,8640.6919999999991,8798.5239999999994,8955.5789999999997,9112.9040000000005,9270.7939999999999,9429.0159999999996,9587.5229999999992,null,46.274000000000001,46.953000000000003,47.625,48.284999999999997,48.926000000000002,49.548000000000002,50.151000000000003,50.741999999999997,51.33,51.920999999999999,52.521999999999998,53.14,53.777999999999999,54.439,55.124000000000002,55.834000000000003,56.567,57.317,58.08,58.850999999999999,59.631999999999998,60.427,61.235999999999997,62.05,62.859000000000002,63.643000000000001,64.382000000000005,65.061999999999998,65.679000000000002,66.228999999999999,66.722999999999999,67.174999999999997,67.605000000000004,68.028000000000006,68.45,68.870999999999995,69.284000000000006,69.676000000000002,70.040999999999997,70.378,70.688999999999993,70.975999999999999,71.248999999999995,71.510999999999996,71.77,72.025999999999996,72.284999999999997,72.543999999999997,72.802999999999997,73.061000000000007,73.316999999999993,73.569000000000003,73.813999999999993,74.051000000000002,74.278000000000006,74.495000000000005,74.700999999999993,74.897999999999996,75.087999999999994]
["Hungary",10000.989,10030.477000000001,10062.51,10096.975,10132.977999999999,10169.802,10208.225,10248.705,10289.769,10329.352000000001,10366.099,10398.163,10426.084999999999,10453.66,10486.191000000001,10526.777,10577.941999999999,10636.566999999999,10693.326999999999,10735.499,10754.286,10746.489,10715.857,10669.203,10616.742,10566.321,10519.296,10474.544,10434.539000000001,10401.614,10377.135,10363.049999999999,10358.621999999999,10359.052,10357.585999999999,10349.308000000001,10332.450999999999,10308.478999999999,10279.61,10249.406999999999,10220.509,10193.450999999999,10167.286,10141.341,10114.481,10085.941999999999,10055.656999999999,10024.157999999999,9991.8670000000002,9959.4390000000003,9927.3799999999992,9895.6890000000003,9864.3629999999994,9833.9230000000007,9804.991,9777.9249999999993,9752.9699999999993,9729.8220000000001,9707.5020000000004,null,68.003170731707328,68.936097560975625,67.865853658536594,68.87414634146343,69.380975609756106,69.071219512195128,69.822439024390249,69.407073170731707,69.230243902439042,69.314634146341476,69.164634146341484,69.052439024390253,69.66463414634147,69.518048780487817,69.248048780487821,69.290000000000006,69.573170731707322,69.848048780487801,69.393902439024387,69.615365853658545,69.061707317073186,69.139268292682928,69.357804878048796,68.973658536585376,69.02585365853659,68.972195121951231,69.17341463414634,69.651219512195127,70.023414634146349,69.461707317073177,69.315609756097572,69.37707317073172,69.117073170731715,69.101219512195129,69.469756097560989,69.791707317073175,70.328780487804892,70.702439024390245,70.557804878048799,70.677073170731703,71.246341463414637,72.248780487804893,72.348780487804888,72.3,72.648780487804885,72.648780487804885,73.097560975609767,73.151219512195127,73.702439024390259,73.904878048780489,74.207317073170742,74.858536585365869,75.063414634146341,75.565853658536597,75.763414634146343,75.568292682926852,76.063414634146355,75.817073170731717,75.817073170731717]
["Iceland",175.584,179.18299999999999,182.71100000000001,186.13,189.345,192.315,194.99100000000001,197.405,199.66900000000001,201.971,204.423,207.095,209.928,212.803,215.56800000000001,218.07900000000001,220.27600000000001,222.267,224.14599999999999,226.10400000000001,228.256,230.66499999999999,233.273,236.02099999999999,238.81800000000001,241.58699999999999,244.33500000000001,247.05699999999999,249.755,252.42400000000001,255.04400000000001,257.61599999999999,260.15499999999997,262.64999999999998,265.14,267.62700000000001,270.14400000000001,272.709,275.29399999999998,277.86799999999999,280.43900000000002,282.91000000000003,285.32900000000001,287.95499999999998,291.10199999999998,294.976,299.72699999999998,305.18099999999998,310.85500000000002,316.05700000000002,320.34199999999998,323.471,325.642,327.19400000000002,328.59199999999998,330.23700000000002,332.209,334.39499999999998,336.71199999999999,null,48.661984003592025,49.181788525936767,49.78029533000656,50.518182905217984,51.381714326724392,52.352003627325338,53.363094483736056,54.358382413051885,55.320108583820264,56.17507228064337,56.968396618621938,57.66903214581265,58.315059191181803,58.928597841365324,59.524821035781372,60.048956320642681,60.572526940899337,61.056522849147008,61.5093240884895,61.914536986747926,62.291628018719699,62.668823521039059,63.027935251296917,63.343742286190761,63.633030654695546,63.965368511689171,64.34041528803931,64.639777957990447,64.92607995117524,65.183125951786437,65.431012817564323,65.674756908067891,65.855280176452453,66.032309993609331,66.274244687610306,66.548298096581249,66.878154004424871,67.216499197133459,67.524560980252886,67.773624276941291,68.056937512403024,68.346417227589782,68.627536305369716,68.909933389966895,69.213114915545717,69.49956509565871,69.836896925915624,70.167983224829172,70.486809438134571,70.836199018587592,71.164322990066481,71.51371274601118,71.830693399518722,72.144620047386965,72.431032469549294,72.699449119611415,72.957944617422285,73.203472287269165,73.40911767184997]
["India",450547.67499999999,459642.16600000003,469077.19099999999,478825.60200000001,488848.13900000002,499123.32799999998,509631.50900000002,520400.57699999999,531513.83400000003,543084.33299999998,555189.79700000002,567868.02099999995,581087.255,594770.13600000006,608802.59499999997,623102.9,637630.08499999996,652408.76599999995,667499.81499999994,682995.348,698952.83700000006,715384.99699999997,732239.49800000002,749428.95799999998,766833.41099999996,784360.01199999999,801975.25,819682.09499999997,837468.93799999997,855334.67500000005,873277.799,891273.20200000005,909307.01800000004,927403.86600000004,945601.82799999998,963922.58600000001,982365.24800000002,1000900.028,1019483.586,1038058.154,1056575.548,1075000.094,1093317.1869999999,1111523.1459999999,1129623.466,1147609.9240000001,1165486.291,1183209.4709999999,1200669.7620000001,1217726.2169999999,1234281.1629999999,1250287.939,1265780.243,1280842.1189999999,1295600.7679999999,1310152.392,1324517.25,1338676.7790000001,1352642.2830000001,null,41.421999999999997,42.027000000000001,42.637,43.252000000000002,43.872999999999998,44.5,45.136000000000003,45.779000000000003,46.427999999999997,47.081000000000003,47.737000000000002,48.398000000000003,49.061,49.722000000000001,50.374000000000002,51.012,51.63,52.222000000000001,52.786000000000001,53.319000000000003,53.814,54.268000000000001,54.686,55.073999999999998,55.441000000000003,55.801000000000002,56.168999999999997,56.552999999999997,56.963000000000001,57.4,57.865000000000002,58.353000000000002,58.850999999999999,59.348999999999997,59.84,60.32,60.783000000000001,61.232999999999997,61.668999999999997,62.093000000000004,62.505000000000003,62.906999999999996,63.304000000000002,63.698999999999998,64.094999999999999,64.5,64.918000000000006,65.349999999999994,65.793999999999997,66.244,66.692999999999998,67.13,67.545000000000002,67.930999999999997,68.286000000000001,68.606999999999999,68.897000000000006,69.165000000000006,69.415999999999997]
["Indonesia",87751.066000000006,90098.395999999993,92518.373000000007,95015.294999999998,97596.728000000003,100267.07,103025.423,105865.576,108779.92600000001,111758.56600000001,114793.179,117880.14599999999,121017.31600000001,124199.693,127422.198,130680.73,133966.94,137278.057,140621.731,144009.84400000001,147447.834,150938.22200000001,154468.23499999999,158009.24799999999,161523.353,164982.45199999999,168374.28700000001,171702.75599999999,174975.95300000001,178209.147,181413.39799999999,184591.897,187739.78599999999,190851.18400000001,193917.45800000001,196934.25700000001,199901.231,202826.44399999999,205724.59700000001,208615.171,211513.82199999999,214427.41899999999,217357.79,220309.473,223285.666,226289.46799999999,229318.26199999999,232374.239,235469.755,238620.554,241834.226,245115.98800000001,248451.71400000001,251805.31400000001,255128.076,258383.25700000001,261556.386,264650.96899999998,267670.549,null,41.421999999999997,42.027000000000001,42.637,43.252000000000002,43.872999999999998,44.5,45.136000000000003,45.779000000000003,46.427999999999997,47.081000000000003,47.737000000000002,48.398000000000003,49.061,49.722000000000001,50.374000000000002,51.012,51.63,52.222000000000001,52.786000000000001,53.319000000000003,53.814,54.268000000000001,54.686,55.073999999999998,55.441000000000003,55.801000000000002,56.168999999999997,56.552999999999997,56.963000000000001,57.4,57.865000000000002,58.353000000000002,58.850999999999999,59.348999999999997,59.84,60.32,60.783000000000001,61.232999999999997,61.668999999999997,62.093000000000004,62.505000000000003,62.906999999999996,63.304000000000002,63.698999999999998,64.094999999999999,64.5,64.918000000000006,65.349999999999994,65.793999999999997,66.244,66.692999999999998,67.13,67.545000000000002,67.930999999999997,68.286000000000001,68.606999999999999,68.897000000000006,69.165000000000006,69.415999999999997]
["Iraq",7289.7529999999997,7475.3490000000002,7674.2169999999996,7888.91,8122.1989999999996,8375.7950000000001,8651.1620000000003,8947.3970000000008,9260.6869999999999,9585.5849999999991,9917.9779999999992,10255.852999999999,10599.661,10950.888000000001,11312.062,11684.579,12068.674999999999,12462.058999999999,12860.678,13259.107,13653.348,14044.115,14432.466,14815.653,15190.396000000001,15555.807000000001,15909.763999999999,16257.072,16612.319,16994.941999999999,17419.113000000001,17889.456999999999,18402.740000000002,18955.087,19539.348000000002,20149.342000000001,20783.073,21439.579000000002,22114.33,22802.061000000002,23497.589,24208.178,24931.921999999999,25644.503000000001,26313.838,26922.278999999999,27448.124,27911.241999999998,28385.739000000001,28973.156999999999,29741.976999999999,30725.305,31890.011999999999,33157.061000000002,34411.949000000001,35572.269,36610.631999999998,37552.788999999997,38433.603999999999,null,48.021999999999998,49.222000000000001,50.408999999999999,51.58,52.73,53.838999999999999,54.884999999999998,55.85,56.722999999999999,57.5,58.201000000000001,58.856000000000002,59.484000000000002,60.085999999999999,60.643999999999998,61.078000000000003,61.290999999999997,61.238,60.933,60.435000000000002,59.881999999999998,59.448,59.274999999999999,59.454000000000001,60.002000000000002,60.877000000000002,61.978999999999999,63.146999999999998,64.245999999999995,65.212000000000003,66.010999999999996,66.653000000000006,67.191000000000003,67.668000000000006,68.088999999999999,68.445999999999998,68.730999999999995,68.936000000000007,69.06,69.108000000000004,69.081999999999994,68.983000000000004,68.826999999999998,68.635999999999996,68.436999999999998,68.266000000000005,68.156999999999996,68.13,68.19,68.34,68.566999999999993,68.847999999999999,69.147999999999996,69.436999999999998,69.7,69.929000000000002,70.122,70.293999999999997,70.453999999999994]
["Ireland",2791.39,2788.5259999999998,2792.38,2801.1840000000002,2812.2260000000001,2823.6439999999998,2834.6790000000001,2846.3510000000001,2860.7289999999998,2880.7570000000001,2908.43,2944.0920000000001,2986.5659999999998,3034.3270000000002,3085.1590000000001,3137.181,3189.8670000000002,3242.7669999999998,3294.1579999999999,3342.0050000000001,3384.76,3422.0259999999998,3453.7849999999999,3479.4639999999999,3498.54,3510.9780000000001,3516.4229999999998,3515.8270000000002,3512.1790000000001,3509.5079999999998,3510.8809999999999,3517.7040000000002,3529.8470000000002,3546.9290000000001,3567.9180000000001,3592.18,3619.6329999999998,3651.096,3687.8209999999999,3731.4720000000002,3783.0949999999998,3842.2530000000002,3907.9949999999999,3980.0770000000002,4058.1309999999999,4141.2179999999998,4230.6189999999997,4324.6490000000003,4415.8710000000001,4494.5720000000001,4554.33,4591.1149999999998,4608.1989999999996,4615.4260000000004,4626.8519999999999,4652.42,4695.79,4753.2809999999999,4818.6940000000004,null,73.42317073170733,73.503414634146353,73.721951219512192,73.042926829268296,73.541707317073175,73.868780487804869,73.30048780487806,73.78317073170733,74.00585365853658,73.776341463414653,73.933902439024408,73.570487804878056,74.455853658536597,74.450975609756114,74.511707317073189,75.578780487804877,76.972195121951231,76.373658536585353,76.649268292682933,76.773170731707324,76.84658536585367,76.521463414634141,77.037804878048789,76.845609756097573,77.576585365853674,77.60243902439025,77.990731707317082,77.339024390243921,77.082926829268303,78.140975609756111,78.03634146341463,77.991951219512202,78.760243902439029,78.93463414634148,79.24707317073171,77.984390243902439,78.777804878048798,78.885365853658527,79.60243902439025,79.351219512195144,79.653658536585368,80.690243902439036,80.502439024390256,80.963414634146361,80.997560975609773,81.502439024390242,81.158536585365866,81.45365853658538,81.609756097560989,81.751219512195135,81.89756097560975,82.358536585365869,82.917073170731712,82.060975609756113,82.86097560975611,82.468292682926844,82.2048780487805,82.660975609756093,82.660975609756093]
["Israel",2060.4760000000001,2144.6480000000001,2234.1990000000001,2325.1489999999999,2411.7820000000002,2490.3220000000001,2558.7159999999999,2619.1019999999999,2676.9720000000002,2740.0659999999998,2813.7460000000001,2900.0160000000001,2996.4749999999999,3098.7849999999999,3200.5329999999999,3296.931,3387.0479999999998,3472.1179999999999,3552.297,3628.3069999999998,3700.9160000000002,3770.694,3838.1089999999999,3903.9540000000002,3969.1819999999998,4035.0619999999999,4100.5429999999997,4167.13,4241.7860000000001,4333.5780000000004,4448.348,4589.3050000000003,4752.826,4929.4129999999996,5105.5709999999999,5271.3680000000004,5424.241,5566.5510000000004,5699.2790000000005,5824.9440000000004,5945.9489999999996,6060.6790000000001,6169.3109999999997,6278.3739999999998,6396.5110000000004,6529.47,6680.6409999999996,6847.1480000000001,7020.8320000000003,7190.0370000000003,7346.4459999999999,7487.0950000000003,7614.9459999999999,7734.8339999999998,7854.2160000000003,7978.4960000000001,8108.9840000000004,8243.8490000000002,8381.5069999999996,null,0,72.006585365853653,72.112195121951217,0,0,0,72.285609756097557,71.509756097560995,71.056585365853664,70.970487804878061,71.213414634146346,71.719024390243902,71.078048780487819,71.69341463414635,71.66170731707318,72.045121951219514,72.956097560975621,72.958536585365863,73.207317073170728,73.507317073170739,73.87560975609756,74.260975609756116,74.109756097560989,74.458536585365849,74.807317073170736,75.207317073170742,74.956097560975621,75.25853658536586,74.436585365853674,76.307317073170736,76.607317073170748,76.758536585365874,76.504878048780498,77.153658536585368,77.402439024390262,77.451219512195138,78.104878048780506,78,78.148780487804871,78.658536585365866,78.95365853658538,79.407317073170745,79.451219512195124,79.648780487804885,80.146341463414643,80.151219512195127,80.553658536585374,80.504878048780512,80.951219512195124,81.404878048780489,81.60243902439025,81.656097560975624,81.7048780487805,82.056097560975616,82.153658536585368,82.051219512195118,82.407317073170745,82.551219512195118,82.802439024390253]
["Italy",49699.947,50052.173999999999,50442.35,50856.404999999999,51273.233999999997,51677.247000000003,52062.749000000003,52433.478000000003,52794.534,53154.574999999997,53518.966,53888.88,54258.737000000001,54619.24,54957.794999999998,55265.279999999999,55537.953000000001,55777.881000000001,55988.983,56177.841999999997,56349.351999999999,56505.476000000002,56644.86,56765.25,56863.131000000001,56936.775999999998,56983.930999999997,57007.737000000001,57018.192999999999,57028.707000000002,57048.237000000001,57088.125,57145.307999999997,57197.61,57213.538,57174.411999999997,57065.231,56903.633000000002,56742.754999999997,56655.629000000001,56692.178,56875.148000000001,57182.521000000001,57564.589,57948.421000000002,58281.209000000003,58542.618999999999,58747.862000000001,58922.116000000002,59105.622000000003,59325.232000000004,59589.07,59879.468999999997,60166.828000000001,60409.622000000003,60578.489000000001,60663.067999999999,60673.694000000003,60627.290999999997,null,69.123902439024405,69.760243902439043,69.149756097560982,69.248048780487821,70.311707317073186,70.171707317073185,70.92609756097562,70.95658536585367,70.78,70.81195121951221,71.558780487804881,71.806829268292688,72.075365853658553,72.026341463414639,72.734390243902453,72.647317073170754,72.991951219512202,73.364634146341473,73.693170731707326,74.002682926829266,73.943170731707326,74.353902439024395,74.814634146341476,74.640243902439025,75.389512195121952,75.470731707317086,75.770731707317069,76.219512195121965,76.370731707317077,76.819512195121973,76.970731707317071,77.019512195121948,77.419512195121968,77.721951219512192,77.921951219512209,78.170731707317074,78.521951219512218,78.824390243902442,78.975609756097555,79.424390243902437,79.778048780487822,80.126829268292681,80.229268292682946,79.982926829268308,80.780487804878064,80.782926829268291,81.282926829268291,81.434146341463418,81.48536585365855,81.636585365853662,82.036585365853668,82.187804878048794,82.239024390243912,82.690243902439022,83.090243902439042,82.543902439024393,83.243902439024382,82.946341463414655,82.946341463414655]
["Jamaica",1628.5239999999999,1651.067,1676.5,1703.66,1730.739,1756.508,1780.5219999999999,1803.3240000000001,1825.873,1849.6579999999999,1875.6369999999999,1904.2809999999999,1935.0889999999999,1966.9780000000001,1998.3130000000001,2028.019,2055.3710000000001,2080.8240000000001,2105.9029999999998,2132.7840000000001,2162.8389999999999,2196.9209999999998,2234.0619999999999,2271.7350000000001,2306.3670000000002,2335.5100000000002,2358.165,2375.4,2389.415,2403.4639999999999,2419.9009999999998,2439.3290000000002,2461.047,2484.5830000000001,2509.0419999999999,2533.7049999999999,2558.6309999999999,2583.9140000000002,2608.8739999999998,2632.6770000000001,2654.6979999999999,2674.7060000000001,2692.8429999999998,2709.4380000000001,2725.0169999999998,2740,2754.4140000000002,2768.2289999999998,2781.8690000000001,2795.8389999999999,2810.4639999999999,2825.9319999999998,2842.1280000000002,2858.71,2875.1370000000002,2891.0239999999999,2906.2420000000002,2920.848,2934.8530000000001,null,64.77,65.132999999999996,65.465000000000003,65.784000000000006,66.099999999999994,66.42,66.739999999999995,67.051000000000002,67.349000000000004,67.635999999999996,67.917000000000002,68.2,68.491,68.790999999999997,69.099000000000004,69.41,69.718000000000004,70.015000000000001,70.293999999999997,70.552999999999997,70.793000000000006,71.012,71.216999999999999,71.415999999999997,71.614000000000004,71.822999999999993,72.055999999999997,72.316999999999993,72.600999999999999,72.903000000000006,73.203999999999994,73.484999999999999,73.727000000000004,73.918000000000006,74.052999999999997,74.132999999999996,74.167000000000002,74.171999999999997,74.164000000000001,74.152000000000001,74.141999999999996,74.138999999999996,74.14,74.141999999999996,74.146000000000001,74.147999999999996,74.143000000000001,74.129000000000005,74.102999999999994,74.070999999999998,74.037999999999997,74.012,74.001000000000005,74.010000000000005,74.042000000000002,74.097999999999999,74.174999999999997,74.266999999999996,74.367999999999995]
["Japan",93673.611999999994,94560.714000000007,95458.517000000007,96389.422000000006,97379.402000000002,98447.006999999998,99596.074999999997,100822.283,102124.00199999999,103496.03200000001,104929.26,106427.102,107976.03,109528.514,111022.692,112413.36199999999,113679.19,114827.826,115879.22199999999,116867.356,117816.942,118732.838,119605.254,120427.643,121189.269,121883.48299999999,122509.11900000001,123072.72,123584.522,124058.51700000001,124505.243,124929.764,125331.3,125707.40700000001,126053.12699999999,126365.486,126644.099,126892.745,127117.436,127326.06299999999,127524.16800000001,127713.82399999999,127893.075,128058.368,128204.183,128326.11500000001,128422.74,128494.05,128538.644,128555.196,128542.349,128498.966,128423.571,128314.189,128168.63,127985.139,127763.26700000001,127502.728,127202.19,null,67.666097560975629,68.31,68.594878048780501,69.658048780487832,70.132439024390251,70.201951219512196,70.986585365853671,71.276585365853663,71.61121951219512,71.838780487804883,71.950243902439027,72.882926829268314,73.506585365853667,73.757560975609749,74.393902439024387,75.057317073170736,75.456829268292708,75.898292682926837,76.038292682926837,76.337560975609776,76.091707317073173,76.41439024390246,76.922926829268306,76.961463414634167,77.365365853658531,77.65048780487804,78.064634146341476,78.483658536585381,78.399268292682933,78.818048780487814,78.836829268292689,79.100731707317081,79.153902439024392,79.293658536585369,79.687073170731708,79.536341463414658,80.200243902439041,80.424146341463413,80.501463414634159,80.570731707317094,81.076097560975626,81.417073170731712,81.563414634146341,81.760000000000005,82.03024390243904,81.925121951219523,82.321951219512201,82.507073170731715,82.587560975609776,82.931463414634152,82.842682926829269,82.591219512195138,83.096097560975608,83.331951219512206,83.5878048780488,83.793902439024393,83.984878048780502,84.099756097560984,84.210975609756105]
["Jordan",933.10199999999998,973.98299999999995,1010.647,1050.212,1102.404,1173.6030000000001,1267.0630000000001,1378.9949999999999,1500.1679999999999,1617.4269999999999,1721.3150000000001,1809.193,1883.923,1948.443,2007.7349999999999,2065.9160000000002,2123.1799999999998,2179.3609999999999,2237.9360000000001,2303.116,2377.9969999999998,2464.87,2563.5250000000001,2671.413,2784.4569999999999,2900.0549999999998,3015.2939999999999,3131.8,3256.5520000000001,3399.3330000000001,3565.8879999999999,3760.4929999999999,3977.6669999999999,4201.5590000000002,4410.357,4588.8419999999996,4732.848,4848.5360000000001,4943.9750000000004,5031.7539999999999,5122.4949999999999,5217.3280000000004,5317.5140000000001,5434.0360000000001,5580.241,5765.6390000000001,5991.5469999999996,6255.29,6556.473,6893.2579999999998,7261.5410000000002,7662.8580000000002,8089.9629999999997,8518.9920000000002,8918.8220000000001,9266.5730000000003,9554.2860000000001,9785.84,9965.3220000000001,null,67.666097560975629,68.31,68.594878048780501,69.658048780487832,70.132439024390251,70.201951219512196,70.986585365853671,71.276585365853663,71.61121951219512,71.838780487804883,71.950243902439027,72.882926829268314,73.506585365853667,73.757560975609749,74.393902439024387,75.057317073170736,75.456829268292708,75.898292682926837,76.038292682926837,76.337560975609776,76.091707317073173,76.41439024390246,76.922926829268306,76.961463414634167,77.365365853658531,77.65048780487804,78.064634146341476,78.483658536585381,78.399268292682933,78.818048780487814,78.836829268292689,79.100731707317081,79.153902439024392,79.293658536585369,79.687073170731708,79.536341463414658,80.200243902439041,80.424146341463413,80.501463414634159,80.570731707317094,81.076097560975626,81.417073170731712,81.563414634146341,81.760000000000005,82.03024390243904,81.925121951219523,82.321951219512201,82.507073170731715,82.587560975609776,82.931463414634152,82.842682926829269,82.591219512195138,83.096097560975608,83.331951219512206,83.5878048780488,83.793902439024393,83.984878048780502,84.099756097560984,84.210975609756105]
["Kazakhstan",9934.5640000000003,10349.422,10756.931,11147.86,11511.856,11841.925999999999,12132.56,12385.706,12611.432000000001,12824.614,13036.14,13250.210999999999,13463.985000000001,13673.013999999999,13869.975,14050.227000000001,14212.145,14359.629000000001,14499.957,14643.133,14796.174999999999,14958.897000000001,15128.09,15303.316000000001,15483.411,15665.593999999999,15852.523999999999,16039.253000000001,16205.998,16326.848,16383.880999999999,16373.308000000001,16302.808999999999,16181.161,16022.224,15839.357,15631.925999999999,15406.004999999999,15190.168,15020.573,14922.724,14910.207,14976.183999999999,15100.045,15250.016,15402.803,15551.263000000001,15702.111999999999,15862.126,16043.014999999999,16252.272999999999,16490.669000000002,16751.523000000001,17026.117999999999,17302.618999999999,17572.009999999998,17830.901999999998,18080.023000000001,18319.616000000002,null,58.367585365853671,58.781585365853665,59.199560975609756,59.619536585365864,60.038000000000004,60.451951219512203,60.855414634146349,61.243390243902439,61.612878048780495,61.959878048780489,62.279390243902448,62.566902439024403,62.825926829268298,63.060926829268297,63.279926829268312,63.491878048780499,63.709268292682935,63.940097560975616,64.191902439024403,64.466731707317081,66.624390243902454,66.706097560975621,66.787804878048803,67.662195121951228,68.536585365853668,68.536585365853668,68.913414634146335,69.290243902439045,68.848780487804873,68.29024390243903,68.336585365853651,67.982926829268308,67.731707317073187,66.726829268292704,65.673170731707316,64.919512195121968,64.109756097560989,64.463414634146346,64.560975609756113,65.519512195121962,65.51707317073172,65.768292682926827,65.968292682926844,65.865853658536594,65.887804878048783,65.909756097560987,66.160975609756107,66.504878048780498,67.021951219512204,68.429268292682934,68.295365853658538,68.98,69.61,70.45,71.62,72,72.3,72.95,73.150000000000006]
["Kenya",8120.0820000000003,8377.6929999999993,8647.0020000000004,8928.51,9222.6919999999991,9530.1630000000005,9851.4529999999995,10187.486999999999,10539.909,10910.677,11301.394,11713.046,12146.07,12600.799000000001,13077.341,13575.897999999999,14096.258,14638.887000000001,15205.380999999999,15797.771000000001,16417.203000000001,17063.87,17736.326000000001,18431.759999999998,19146.402999999998,19877.078000000001,20622.560000000001,21382.111000000001,22153.685000000001,22935.088,23724.574000000001,24521.714,25326.080000000002,26136.217000000001,26950.508000000002,27768.296999999999,28589.455999999998,29415.66,30250.488000000001,31098.762999999999,31964.557000000001,32848.569000000003,33751.745999999999,34678.781000000003,35635.267,36624.896999999997,37649.038999999997,38705.934000000001,39791.983999999997,40901.798000000003,42030.684000000001,43178.27,44343.468999999997,45519.985999999997,46700.063000000002,47878.339,49051.531000000003,50221.146000000001,51392.57,null,46.76,47.417000000000002,48.058,48.673999999999999,49.261000000000003,49.820999999999998,50.363999999999997,50.902000000000001,51.445999999999998,51.997999999999998,52.557000000000002,53.118000000000002,53.673999999999999,54.218000000000004,54.749000000000002,55.273000000000003,55.802,56.337000000000003,56.872,57.393000000000001,57.881,58.316000000000003,58.676000000000002,58.94,59.093000000000004,59.12,59.01,58.773000000000003,58.421999999999997,57.966999999999999,57.405999999999999,56.735999999999997,55.972999999999999,55.151000000000003,54.31,53.485999999999997,52.709000000000003,52.014000000000003,51.448,51.058999999999997,50.920999999999999,51.100999999999999,51.606000000000002,52.41,53.475000000000001,54.731999999999999,56.093000000000004,57.463000000000001,58.76,59.932000000000002,60.959000000000003,61.850999999999999,62.658999999999999,63.418999999999997,64.135000000000005,64.798000000000002,65.393000000000001,65.909000000000006,66.341999999999999]
["Kiribati",41.195999999999998,42.234000000000002,43.283000000000001,44.341999999999999,45.392000000000003,46.429000000000002,47.429000000000002,48.402999999999999,49.353999999999999,50.267000000000003,51.142000000000003,51.978999999999999,52.774999999999999,53.558,54.334000000000003,55.113999999999997,55.921999999999997,56.759,57.613,58.469000000000001,59.295999999999999,60.100999999999999,60.887,61.735999999999997,62.744999999999997,63.988999999999997,65.504000000000005,67.244,69.087000000000003,70.849000000000004,72.394000000000005,73.691999999999993,74.766999999999996,75.710999999999999,76.668000000000006,77.715999999999994,78.903999999999996,80.188000000000002,81.558000000000007,82.968999999999994,84.405000000000001,85.843999999999994,87.308000000000007,88.84,90.498000000000005,92.319000000000003,94.340999999999994,96.531000000000006,98.76,100.928,102.93,104.735,106.35899999999999,107.887,109.387,110.92700000000001,112.529,114.15300000000001,115.842,null,47.061,47.557000000000002,48.070999999999998,48.600999999999999,49.145000000000003,49.697000000000003,50.25,50.795999999999999,51.326999999999998,51.837000000000003,52.323,52.781999999999996,53.218000000000004,53.633000000000003,54.027000000000001,54.399000000000001,54.747999999999998,55.073999999999998,55.381999999999998,55.679000000000002,55.970999999999997,56.265999999999998,56.569000000000003,56.886000000000003,57.220999999999997,57.579000000000001,57.962000000000003,58.366,58.783000000000001,59.209000000000003,59.636000000000003,60.052999999999997,60.454999999999998,60.837000000000003,61.198,61.539000000000001,61.866,62.188000000000002,62.509,62.829000000000001,63.143999999999998,63.445999999999998,63.731000000000002,63.994999999999997,64.242000000000004,64.477999999999994,64.712000000000003,64.953000000000003,65.207999999999998,65.48,65.769000000000005,66.072000000000003,66.381,66.69,66.995000000000005,67.290999999999997,67.576999999999998,67.850999999999999,68.116]
["Kuwait",269.02600000000001,300.58100000000002,337.346,378.75599999999997,423.9,472.03199999999998,523.16899999999998,577.16399999999999,632.91099999999994,688.97199999999998,744.44399999999996,798.63900000000001,851.91800000000001,905.63900000000001,961.77300000000002,1021.725,1085.866,1153.5730000000001,1224.0630000000001,1296.077,1368.68,1439.3340000000001,1507.636,1576.9749999999999,1652.15,1735.278,1832.3019999999999,1938.9159999999999,2034.85,2092.7860000000001,2095.35,2031.297,1912.425,1772.607,1659.3040000000001,1605.9069999999999,1626.8579999999999,1710.2570000000001,1831.1210000000001,1951.6420000000001,2045.123,2103.2730000000001,2136.991,2161.6260000000002,2200.498,2270.1959999999999,2373.6610000000001,2504.0259999999998,2656.01,2821.0410000000002,2991.884,3168.0540000000001,3348.8519999999999,3526.3820000000001,3690.9389999999999,3835.5880000000002,3956.8620000000001,4056.1019999999999,4137.3140000000003,null,47.061,47.557000000000002,48.070999999999998,48.600999999999999,49.145000000000003,49.697000000000003,50.25,50.795999999999999,51.326999999999998,51.837000000000003,52.323,52.781999999999996,53.218000000000004,53.633000000000003,54.027000000000001,54.399000000000001,54.747999999999998,55.073999999999998,55.381999999999998,55.679000000000002,55.970999999999997,56.265999999999998,56.569000000000003,56.886000000000003,57.220999999999997,57.579000000000001,57.962000000000003,58.366,58.783000000000001,59.209000000000003,59.636000000000003,60.052999999999997,60.454999999999998,60.837000000000003,61.198,61.539000000000001,61.866,62.188000000000002,62.509,62.829000000000001,63.143999999999998,63.445999999999998,63.731000000000002,63.994999999999997,64.242000000000004,64.477999999999994,64.712000000000003,64.953000000000003,65.207999999999998,65.48,65.769000000000005,66.072000000000003,66.381,66.69,66.995000000000005,67.290999999999997,67.576999999999998,67.850999999999999,68.116]
["Kyrgyzstan",2170.0909999999999,2241.761,2319.4499999999998,2401.462,2485.4250000000002,2569.4479999999999,2653.05,2736.0740000000001,2817.3240000000001,2895.538,2969.857,3039.759,3105.5329999999999,3168.2930000000001,3229.683,3291.0740000000001,3352.6149999999998,3414.33,3477.2240000000002,3542.511,3610.9740000000002,3682.66,3757.1680000000001,3834.14,3913.018,3993.0770000000002,4075.1439999999998,4158.5839999999998,4239.2830000000004,4311.8559999999998,4372.8850000000002,4419.6270000000004,4454.192,4483.8440000000001,4518.808,4566.0959999999995,4629.4030000000002,4705.6509999999998,4786.7719999999999,4861.1210000000001,4920.7120000000004,4962.8389999999999,4991.4780000000001,5013.5379999999996,5038.9949999999999,5075.34,5124.3789999999999,5184.384,5254.9690000000001,5334.7079999999996,5422.2979999999998,5517.9269999999997,5621.5829999999996,5731.3119999999999,5844.5209999999997,5959.1260000000002,6074.3270000000002,6189.7269999999999,6304.0249999999996,null,47.061,47.557000000000002,48.070999999999998,48.600999999999999,49.145000000000003,49.697000000000003,50.25,50.795999999999999,51.326999999999998,51.837000000000003,52.323,52.781999999999996,53.218000000000004,53.633000000000003,54.027000000000001,54.399000000000001,54.747999999999998,55.073999999999998,55.381999999999998,55.679000000000002,55.970999999999997,56.265999999999998,56.569000000000003,56.886000000000003,57.220999999999997,57.579000000000001,57.962000000000003,58.366,58.783000000000001,59.209000000000003,59.636000000000003,60.052999999999997,60.454999999999998,60.837000000000003,61.198,61.539000000000001,61.866,62.188000000000002,62.509,62.829000000000001,63.143999999999998,63.445999999999998,63.731000000000002,63.994999999999997,64.242000000000004,64.477999999999994,64.712000000000003,64.953000000000003,65.207999999999998,65.48,65.769000000000005,66.072000000000003,66.381,66.69,66.995000000000005,67.290999999999997,67.576999999999998,67.850999999999999,68.116]
["Latvia",2129.5839999999998,2157.66,2185.873,2213.8049999999998,2240.9470000000001,2266.9380000000001,2291.471,2314.5059999999999,2336.3180000000002,2357.3890000000001,2378.0219999999999,2398.38,2418.2800000000002,2437.1799999999998,2454.3969999999999,2469.4389999999999,2482.1970000000001,2492.9839999999999,2502.518,2511.7350000000001,2521.3809999999999,2531.0160000000001,2540.444,2550.9319999999998,2564.1179999999999,2580.7629999999999,2602.152,2626.9059999999999,2649.835,2663.9430000000002,2664.4470000000001,2649.1610000000001,2620.2539999999999,2582.6579999999999,2543.6320000000001,2508.4760000000001,2478.8319999999999,2453.31,2430.5459999999998,2408.0880000000002,2384.15,2358.6889999999999,2332.5279999999998,2305.8449999999998,2278.922,2251.9960000000001,2225.0630000000001,2198.0889999999999,2171.248,2144.7840000000001,2118.855,2093.6060000000002,2069.018,2044.95,2021.22,1997.675,1974.2650000000001,1951.097,1928.461,null,47.061,47.557000000000002,48.070999999999998,48.600999999999999,49.145000000000003,49.697000000000003,50.25,50.795999999999999,51.326999999999998,51.837000000000003,52.323,52.781999999999996,53.218000000000004,53.633000000000003,54.027000000000001,54.399000000000001,54.747999999999998,55.073999999999998,55.381999999999998,55.679000000000002,55.970999999999997,56.265999999999998,56.569000000000003,56.886000000000003,57.220999999999997,57.579000000000001,57.962000000000003,58.366,58.783000000000001,59.209000000000003,59.636000000000003,60.052999999999997,60.454999999999998,60.837000000000003,61.198,61.539000000000001,61.866,62.188000000000002,62.509,62.829000000000001,63.143999999999998,63.445999999999998,63.731000000000002,63.994999999999997,64.242000000000004,64.477999999999994,64.712000000000003,64.953000000000003,65.207999999999998,65.48,65.769000000000005,66.072000000000003,66.381,66.69,66.995000000000005,67.290999999999997,67.576999999999998,67.850999999999999,68.116]
["Lebanon",1804.9349999999999,1864.6130000000001,1925.2950000000001,1984.999,2041.231,2092.3739999999998,2136.6170000000002,2174.732,2210.7689999999998,2250.4540000000002,2297.4360000000001,2354.0459999999998,2417.837,2481.9430000000002,2536.7719999999999,2575.7460000000001,2596.4090000000001,2601.7339999999999,2597.2020000000002,2590.9110000000001,2588.9279999999999,2594.299,2606.1480000000001,2622.0720000000001,2638.056,2651.9920000000002,2660.873,2667.9569999999999,2684.6819999999998,2726.4380000000001,2803.0320000000002,2921.7,3076.1329999999998,3246.1289999999999,3403.3589999999999,3528.3789999999999,3610.663,3658.4250000000002,3693.5140000000001,3747.7620000000002,3842.7739999999999,3990.9989999999998,4182.2049999999999,4388.3779999999997,4569.3770000000004,4698.7610000000004,4759.76,4767.3469999999998,4764.7449999999999,4813.0259999999998,4953.0640000000003,5202.0219999999999,5537.62,5913.0159999999996,6261.0460000000003,6532.6809999999996,6714.2809999999999,6819.3729999999996,6859.4080000000004,null,47.061,47.557000000000002,48.070999999999998,48.600999999999999,49.145000000000003,49.697000000000003,50.25,50.795999999999999,51.326999999999998,51.837000000000003,52.323,52.781999999999996,53.218000000000004,53.633000000000003,54.027000000000001,54.399000000000001,54.747999999999998,55.073999999999998,55.381999999999998,55.679000000000002,55.970999999999997,56.265999999999998,56.569000000000003,56.886000000000003,57.220999999999997,57.579000000000001,57.962000000000003,58.366,58.783000000000001,59.209000000000003,59.636000000000003,60.052999999999997,60.454999999999998,60.837000000000003,61.198,61.539000000000001,61.866,62.188000000000002,62.509,62.829000000000001,63.143999999999998,63.445999999999998,63.731000000000002,63.994999999999997,64.242000000000004,64.477999999999994,64.712000000000003,64.953000000000003,65.207999999999998,65.48,65.769000000000005,66.072000000000003,66.381,66.69,66.995000000000005,67.290999999999997,67.576999999999998,67.850999999999999,68.116]
["Liberia",1118.655,1142.3040000000001,1166.6510000000001,1191.796,1217.905,1245.104,1273.4580000000001,1303.0319999999999,1333.98,1366.5,1400.73,1436.74,1474.567,1514.364,1556.288,1600.454,1645.8330000000001,1692.155,1740.9190000000001,1794.251,1852.991,1918.8320000000001,1989.4770000000001,2057.232,2111.6669999999999,2145.7559999999999,2158.4340000000002,2153.3119999999999,2134.105,2106.4290000000001,2075.9169999999999,2040.1410000000001,2001.6120000000001,1976.701,1986.491,2044.6569999999999,2160.48,2326.21,2517.4720000000002,2699.7080000000001,2848.4470000000001,2953.9279999999999,3024.7269999999999,3077.0549999999998,3135.654,3218.114,3329.2109999999998,3461.9110000000001,3607.8629999999998,3754.1289999999999,3891.357,4017.4459999999999,4135.6620000000003,4248.3370000000004,4359.5079999999998,4472.2290000000003,4586.7879999999996,4702.2240000000002,4818.9759999999997,null,47.061,47.557000000000002,48.070999999999998,48.600999999999999,49.145000000000003,49.697000000000003,50.25,50.795999999999999,51.326999999999998,51.837000000000003,52.323,52.781999999999996,53.218000000000004,53.633000000000003,54.027000000000001,54.399000000000001,54.747999999999998,55.073999999999998,55.381999999999998,55.679000000000002,55.970999999999997,56.265999999999998,56.569000000000003,56.886000000000003,57.220999999999997,57.579000000000001,57.962000000000003,58.366,58.783000000000001,59.209000000000003,59.636000000000003,60.052999999999997,60.454999999999998,60.837000000000003,61.198,61.539000000000001,61.866,62.188000000000002,62.509,62.829000000000001,63.143999999999998,63.445999999999998,63.731000000000002,63.994999999999997,64.242000000000004,64.477999999999994,64.712000000000003,64.953000000000003,65.207999999999998,65.48,65.769000000000005,66.072000000000003,66.381,66.69,66.995000000000005,67.290999999999997,67.576999999999998,67.850999999999999,68.116]
["Libya",1448.4159999999999,1498.076,1550.8150000000001,1607.1679999999999,1667.8219999999999,1733.307,1803.6890000000001,1878.8689999999999,1958.9090000000001,2043.82,2133.527,2228.1419999999998,2327.4870000000001,2430.7539999999999,2536.895,2645.136,2754.6979999999999,2865.6390000000001,2979.1019999999999,3096.7240000000002,3219.462,3347.779,3480.4430000000002,3614.6819999999998,3746.712,3873.7809999999999,3994.6010000000001,4109.7169999999996,4220.451,4328.9350000000004,4436.6629999999996,4544.2449999999999,4650.8959999999997,4755.134,4854.8710000000001,4948.7960000000003,5036.1729999999998,5118.0079999999998,5196.7740000000003,5275.9210000000003,5357.893,5443.2489999999998,5531.0969999999998,5620.5450000000001,5710.1629999999996,5798.6149999999998,5886.8739999999998,5974.7860000000001,6058.74,6133.9870000000001,6197.6670000000004,6247.4380000000001,6285.7510000000002,6320.35,6362.0389999999998,6418.3149999999996,6492.16,6580.723,6678.5649999999996,null,47.061,47.557000000000002,48.070999999999998,48.600999999999999,49.145000000000003,49.697000000000003,50.25,50.795999999999999,51.326999999999998,51.837000000000003,52.323,52.781999999999996,53.218000000000004,53.633000000000003,54.027000000000001,54.399000000000001,54.747999999999998,55.073999999999998,55.381999999999998,55.679000000000002,55.970999999999997,56.265999999999998,56.569000000000003,56.886000000000003,57.220999999999997,57.579000000000001,57.962000000000003,58.366,58.783000000000001,59.209000000000003,59.636000000000003,60.052999999999997,60.454999999999998,60.837000000000003,61.198,61.539000000000001,61.866,62.188000000000002,62.509,62.829000000000001,63.143999999999998,63.445999999999998,63.731000000000002,63.994999999999997,64.242000000000004,64.477999999999994,64.712000000000003,64.953000000000003,65.207999999999998,65.48,65.769000000000005,66.072000000000003,66.381,66.69,66.995000000000005,67.290999999999997,67.576999999999998,67.850999999999999,68.116]
["Liechtenstein",16.501000000000001,16.893999999999998,17.3,17.724,18.170000000000002,18.641999999999999,19.16,19.687999999999999,20.236999999999998,20.765999999999998,21.268000000000001,21.728999999999999,22.161000000000001,22.56,22.984999999999999,23.436,23.933,24.451000000000001,24.968,25.463000000000001,25.881,26.228999999999999,26.533000000000001,26.79,27.027999999999999,27.286000000000001,27.552,27.835000000000001,28.135000000000002,28.449000000000002,28.79,29.166,29.552,29.986999999999998,30.414999999999999,30.884,31.353999999999999,31.83,32.305999999999997,32.765000000000001,33.183999999999997,33.542999999999999,33.884999999999998,34.171999999999997,34.444000000000003,34.718000000000004,34.975000000000001,35.216999999999999,35.469000000000001,35.722999999999999,35.996000000000002,36.298999999999999,36.615000000000002,36.94,37.219000000000001,37.465000000000003,37.655000000000001,37.805,37.917999999999999,null,47.061,47.557000000000002,48.070999999999998,48.600999999999999,49.145000000000003,49.697000000000003,50.25,50.795999999999999,51.326999999999998,51.837000000000003,52.323,52.781999999999996,53.218000000000004,53.633000000000003,54.027000000000001,54.399000000000001,54.747999999999998,55.073999999999998,55.381999999999998,55.679000000000002,55.970999999999997,56.265999999999998,56.569000000000003,56.886000000000003,57.220999999999997,57.579000000000001,57.962000000000003,58.366,58.783000000000001,59.209000000000003,59.636000000000003,60.052999999999997,60.454999999999998,60.837000000000003,61.198,61.539000000000001,61.866,62.188000000000002,62.509,62.829000000000001,63.143999999999998,63.445999999999998,63.731000000000002,63.994999999999997,64.242000000000004,64.477999999999994,64.712000000000003,64.953000000000003,65.207999999999998,65.48,65.769000000000005,66.072000000000003,66.381,66.69,66.995000000000005,67.290999999999997,67.576999999999998,67.850999999999999,68.116]
["Lithuania",2769.8789999999999,2806.924,2846.393,2887.0720000000001,2927.3850000000002,2966.165,3002.7919999999999,3037.4580000000001,3070.6979999999999,3103.509,3136.585,3170.0819999999999,3203.634,3236.739,3268.652,3298.8829999999998,3327.2629999999999,3354.067,3379.7939999999999,3405.1729999999998,3430.76,3456.1410000000001,3481.1280000000002,3506.55,3533.489,3562.3989999999999,3594.0639999999999,3627.326,3658.4960000000001,3682.5569999999998,3696.0349999999999,3697.451,3688.1030000000001,3670.6529999999998,3649.1419999999998,3626.6089999999999,3603.7559999999999,3579.9110000000001,3555.14,3529.1889999999999,3501.8420000000001,3473.623,3444.777,3414.3670000000002,3381.134,3344.259,3303.3290000000002,3258.9839999999999,3212.8670000000002,3167.27,3123.8249999999998,3083.402,3045.5610000000001,3008.9380000000001,2971.498,2931.8719999999998,2889.5549999999998,2845.4189999999999,2801.27,null,47.061,47.557000000000002,48.070999999999998,48.600999999999999,49.145000000000003,49.697000000000003,50.25,50.795999999999999,51.326999999999998,51.837000000000003,52.323,52.781999999999996,53.218000000000004,53.633000000000003,54.027000000000001,54.399000000000001,54.747999999999998,55.073999999999998,55.381999999999998,55.679000000000002,55.970999999999997,56.265999999999998,56.569000000000003,56.886000000000003,57.220999999999997,57.579000000000001,57.962000000000003,58.366,58.783000000000001,59.209000000000003,59.636000000000003,60.052999999999997,60.454999999999998,60.837000000000003,61.198,61.539000000000001,61.866,62.188000000000002,62.509,62.829000000000001,63.143999999999998,63.445999999999998,63.731000000000002,63.994999999999997,64.242000000000004,64.477999999999994,64.712000000000003,64.953000000000003,65.207999999999998,65.48,65.769000000000005,66.072000000000003,66.381,66.69,66.995000000000005,67.290999999999997,67.576999999999998,67.850999999999999,68.116]
["Luxembourg",314.58499999999998,317.43799999999999,320.69900000000001,324.12900000000002,327.36,330.16,332.423,334.23399999999998,335.82900000000001,337.56799999999998,339.67200000000003,342.23200000000003,345.10399999999998,348.178,351.19,353.98399999999998,356.56599999999997,358.96300000000002,361.08,362.79700000000003,364.048,364.77800000000002,365.09899999999999,365.30099999999999,365.79700000000003,366.88200000000001,368.66199999999998,371.07600000000002,374.11799999999999,377.71199999999999,381.78,386.35599999999999,391.39699999999999,396.81200000000001,402.435,408.14499999999998,413.99900000000002,419.97899999999998,425.82799999999997,431.26299999999998,436.10599999999999,440.197,443.72699999999998,447.31700000000001,451.822,457.84800000000001,465.61099999999999,474.91699999999997,485.40300000000002,496.536,507.89,519.31200000000001,530.85500000000002,542.55399999999997,554.51199999999994,566.74099999999999,579.26599999999996,591.91399999999999,604.24400000000003,null,47.061,47.557000000000002,48.070999999999998,48.600999999999999,49.145000000000003,49.697000000000003,50.25,50.795999999999999,51.326999999999998,51.837000000000003,52.323,52.781999999999996,53.218000000000004,53.633000000000003,54.027000000000001,54.399000000000001,54.747999999999998,55.073999999999998,55.381999999999998,55.679000000000002,55.970999999999997,56.265999999999998,56.569000000000003,56.886000000000003,57.220999999999997,57.579000000000001,57.962000000000003,58.366,58.783000000000001,59.209000000000003,59.636000000000003,60.052999999999997,60.454999999999998,60.837000000000003,61.198,61.539000000000001,61.866,62.188000000000002,62.509,62.829000000000001,63.143999999999998,63.445999999999998,63.731000000000002,63.994999999999997,64.242000000000004,64.477999999999994,64.712000000000003,64.953000000000003,65.207999999999998,65.48,65.769000000000005,66.072000000000003,66.381,66.69,66.995000000000005,67.290999999999997,67.576999999999998,67.850999999999999,68.116]
["Madagascar",5099.3680000000004,5223.5609999999997,5352.4970000000003,5486.3190000000004,5625.1639999999998,5769.2150000000001,5918.5919999999996,6073.5290000000005,6234.4679999999998,6401.92,6576.3050000000003,6757.8530000000001,6946.6189999999997,7142.634,7345.7730000000001,7556.0320000000002,7773.4520000000002,7998.1570000000002,8230.2139999999999,8469.6769999999997,8716.5490000000009,8971.3389999999999,9234.1370000000006,9504.2829999999994,9780.8690000000006,10063.493,10352.117,10647.753000000001,10952.396000000001,11268.653,11598.647000000001,11942.808999999999,12301.338,12675.468999999999,13066.544,13475.403,13902.697,14347.86,14808.790999999999,15282.523999999999,15766.806,16260.933000000001,16765.121999999999,17279.138999999999,17802.991999999998,18336.722000000002,18880.264999999999,19433.52,19996.475999999999,20569.115000000002,21151.64,21743.97,22346.641,22961.258999999998,23589.897000000001,24234.080000000002,24894.37,25570.510999999999,26262.312999999998,null,47.061,47.557000000000002,48.070999999999998,48.600999999999999,49.145000000000003,49.697000000000003,50.25,50.795999999999999,51.326999999999998,51.837000000000003,52.323,52.781999999999996,53.218000000000004,53.633000000000003,54.027000000000001,54.399000000000001,54.747999999999998,55.073999999999998,55.381999999999998,55.679000000000002,55.970999999999997,56.265999999999998,56.569000000000003,56.886000000000003,57.220999999999997,57.579000000000001,57.962000000000003,58.366,58.783000000000001,59.209000000000003,59.636000000000003,60.052999999999997,60.454999999999998,60.837000000000003,61.198,61.539000000000001,61.866,62.188000000000002,62.509,62.829000000000001,63.143999999999998,63.445999999999998,63.731000000000002,63.994999999999997,64.242000000000004,64.477999999999994,64.712000000000003,64.953000000000003,65.207999999999998,65.48,65.769000000000005,66.072000000000003,66.381,66.69,66.995000000000005,67.290999999999997,67.576999999999998,67.850999999999999,68.116]
["Malawi",3659.98,3747.7579999999998,3839.047,3933.9140000000002,4032.364,4134.4639999999999,4240.43,4350.4560000000001,4464.4269999999997,4582.1970000000001,4703.7830000000004,4829.0919999999996,4958.5559999999996,5093.3680000000004,5235.0739999999996,5384.7979999999998,5545.6530000000002,5717.9539999999997,5896.8639999999996,6075.4849999999997,6250.4340000000002,6412.38,6565.9849999999997,6737.924,6964.6130000000003,7268.2709999999997,7666.39,8141.14,8636.6859999999997,9075.5679999999993,9404.4989999999998,9600.3610000000008,9685.9740000000002,9710.3349999999991,9745.6949999999997,9844.4179999999997,10022.782999999999,10264.906000000001,10552.344999999999,10854.325000000001,11148.751,11432.001,11713.663,12000.183000000001,12301.837,12625.95,12973.692999999999,13341.808000000001,13727.898999999999,14128.161,14539.609,14962.118,15396.01,15839.287,16289.55,16745.305,17205.253000000001,17670.192999999999,18143.215,null,47.061,47.557000000000002,48.070999999999998,48.600999999999999,49.145000000000003,49.697000000000003,50.25,50.795999999999999,51.326999999999998,51.837000000000003,52.323,52.781999999999996,53.218000000000004,53.633000000000003,54.027000000000001,54.399000000000001,54.747999999999998,55.073999999999998,55.381999999999998,55.679000000000002,55.970999999999997,56.265999999999998,56.569000000000003,56.886000000000003,57.220999999999997,57.579000000000001,57.962000000000003,58.366,58.783000000000001,59.209000000000003,59.636000000000003,60.052999999999997,60.454999999999998,60.837000000000003,61.198,61.539000000000001,61.866,62.188000000000002,62.509,62.829000000000001,63.143999999999998,63.445999999999998,63.731000000000002,63.994999999999997,64.242000000000004,64.477999999999994,64.712000000000003,64.953000000000003,65.207999999999998,65.48,65.769000000000005,66.072000000000003,66.381,66.69,66.995000000000005,67.290999999999997,67.576999999999998,67.850999999999999,68.116]
["Malaysia",8156.3419999999996,8417.8209999999999,8692.3369999999995,8973.7909999999993,9253.8269999999993,9526.5580000000009,9790.0830000000005,10046.321,10297.983,10549.395,10804.130999999999,11062.433999999999,11324.277,11592.638000000001,11871.102000000001,12162.189,12468.688,12790.313,13122.833000000001,13460.035,13798.093999999999,14134.06,14471.215,14819.43,15192.3,15598.924000000001,16043.736000000001,16522.004000000001,17022.47,17528.960999999999,18029.824000000001,18519.940999999999,19002.66,19484.901000000002,19977.508000000002,20487.603999999999,21017.618999999999,21562.79,22114.647000000001,22661.293000000001,23194.252,23709.115000000002,24208.391,24698.821,25190.647000000001,25690.615000000002,26201.954000000002,26720.366999999998,27236.003000000001,27735.038,28208.027999999998,28650.962,29068.188999999998,29468.922999999999,29866.606,30270.965,30684.651999999998,31104.654999999999,31528.032999999999,null,47.061,47.557000000000002,48.070999999999998,48.600999999999999,49.145000000000003,49.697000000000003,50.25,50.795999999999999,51.326999999999998,51.837000000000003,52.323,52.781999999999996,53.218000000000004,53.633000000000003,54.027000000000001,54.399000000000001,54.747999999999998,55.073999999999998,55.381999999999998,55.679000000000002,55.970999999999997,56.265999999999998,56.569000000000003,56.886000000000003,57.220999999999997,57.579000000000001,57.962000000000003,58.366,58.783000000000001,59.209000000000003,59.636000000000003,60.052999999999997,60.454999999999998,60.837000000000003,61.198,61.539000000000001,61.866,62.188000000000002,62.509,62.829000000000001,63.143999999999998,63.445999999999998,63.731000000000002,63.994999999999997,64.242000000000004,64.477999999999994,64.712000000000003,64.953000000000003,65.207999999999998,65.48,65.769000000000005,66.072000000000003,66.381,66.69,66.995000000000005,67.290999999999997,67.576999999999998,67.850999999999999,68.116]
["Maldives",89.873000000000005,92.328000000000003,94.902000000000001,97.54,100.17700000000001,102.71,105.129,107.48099999999999,109.893,112.58199999999999,115.688,119.303,123.34699999999999,127.7,132.102,136.41800000000001,140.56299999999999,144.625,148.774,153.27600000000001,158.27099999999999,163.821,169.84899999999999,176.255,182.84800000000001,189.54,196.262,203.024,209.78700000000001,216.50200000000001,223.15899999999999,229.74299999999999,236.27099999999999,242.596,248.58199999999999,254.14400000000001,259.178,263.83600000000001,268.44499999999999,273.52199999999999,279.39600000000002,286.30900000000003,294.185,302.68099999999998,311.26499999999999,319.60399999999998,327.48899999999998,335.17200000000003,343.44799999999998,353.39100000000002,365.73,380.49299999999999,397.23099999999999,415.59199999999998,435.01799999999997,454.91399999999999,475.505,496.39800000000002,515.70399999999995,null,47.061,47.557000000000002,48.070999999999998,48.600999999999999,49.145000000000003,49.697000000000003,50.25,50.795999999999999,51.326999999999998,51.837000000000003,52.323,52.781999999999996,53.218000000000004,53.633000000000003,54.027000000000001,54.399000000000001,54.747999999999998,55.073999999999998,55.381999999999998,55.679000000000002,55.970999999999997,56.265999999999998,56.569000000000003,56.886000000000003,57.220999999999997,57.579000000000001,57.962000000000003,58.366,58.783000000000001,59.209000000000003,59.636000000000003,60.052999999999997,60.454999999999998,60.837000000000003,61.198,61.539000000000001,61.866,62.188000000000002,62.509,62.829000000000001,63.143999999999998,63.445999999999998,63.731000000000002,63.994999999999997,64.242000000000004,64.477999999999994,64.712000000000003,64.953000000000003,65.207999999999998,65.48,65.769000000000005,66.072000000000003,66.381,66.69,66.995000000000005,67.290999999999997,67.576999999999998,67.850999999999999,68.116]
["Mali",5263.7269999999999,5322.2690000000002,5381.3670000000002,5441.6180000000004,5503.75,5568.4949999999999,5635.8639999999996,5706.192,5780.8360000000002,5861.4170000000004,5949.0420000000004,6044.5240000000003,6147.4639999999999,6256.1909999999998,6368.3459999999995,6482.2820000000002,6596.7209999999995,6712.2669999999998,6831.09,6956.4089999999997,7090.1239999999998,7234.7250000000004,7388.67,7545.1629999999996,7694.857,7831.8879999999999,7952.8630000000003,8062.2160000000003,8171.5249999999996,8296.9189999999999,8449.9150000000009,8635.5280000000002,8850.3340000000007,9087.1730000000007,9334.893,9585.66,9837.5750000000007,10094.362999999999,10360.564,10642.937,10946.448,11271.602999999999,11616.89,11982.691999999999,12369.078,12775.509,13203.378000000001,13651.455,14113.578,14581.427,15049.352000000001,15514.593000000001,15979.492,16449.853999999999,16934.213,17438.772000000001,17965.448,18512.429,19077.755000000001,null,47.061,47.557000000000002,48.070999999999998,48.600999999999999,49.145000000000003,49.697000000000003,50.25,50.795999999999999,51.326999999999998,51.837000000000003,52.323,52.781999999999996,53.218000000000004,53.633000000000003,54.027000000000001,54.399000000000001,54.747999999999998,55.073999999999998,55.381999999999998,55.679000000000002,55.970999999999997,56.265999999999998,56.569000000000003,56.886000000000003,57.220999999999997,57.579000000000001,57.962000000000003,58.366,58.783000000000001,59.209000000000003,59.636000000000003,60.052999999999997,60.454999999999998,60.837000000000003,61.198,61.539000000000001,61.866,62.188000000000002,62.509,62.829000000000001,63.143999999999998,63.445999999999998,63.731000000000002,63.994999999999997,64.242000000000004,64.477999999999994,64.712000000000003,64.953000000000003,65.207999999999998,65.48,65.769000000000005,66.072000000000003,66.381,66.69,66.995000000000005,67.290999999999997,67.576999999999998,67.850999999999999,68.116]
["Malta",312.97300000000001,314.41399999999999,316.52,318.88799999999998,320.92700000000002,322.238,322.69600000000003,322.45699999999999,321.762,321.03100000000001,320.548,320.36399999999998,320.43700000000001,320.80099999999999,321.43599999999998,322.358,323.57900000000001,325.12599999999998,326.98399999999998,329.11700000000002,331.49400000000003,334.11500000000001,336.964,339.98399999999998,343.096,346.25400000000002,349.43099999999998,352.61700000000002,355.79599999999999,358.935,362.017,364.99099999999999,367.89,370.774,373.75400000000002,376.89299999999997,380.25900000000001,383.75599999999997,387.28199999999998,390.62599999999998,393.649,396.32400000000001,398.72,400.858,402.82,404.65899999999999,406.33,407.85399999999998,409.49299999999999,411.55900000000003,414.25700000000001,417.72,421.80900000000003,426.14400000000001,430.19,433.55900000000003,436.09899999999999,437.935,439.255,null,47.061,47.557000000000002,48.070999999999998,48.600999999999999,49.145000000000003,49.697000000000003,50.25,50.795999999999999,51.326999999999998,51.837000000000003,52.323,52.781999999999996,53.218000000000004,53.633000000000003,54.027000000000001,54.399000000000001,54.747999999999998,55.073999999999998,55.381999999999998,55.679000000000002,55.970999999999997,56.265999999999998,56.569000000000003,56.886000000000003,57.220999999999997,57.579000000000001,57.962000000000003,58.366,58.783000000000001,59.209000000000003,59.636000000000003,60.052999999999997,60.454999999999998,60.837000000000003,61.198,61.539000000000001,61.866,62.188000000000002,62.509,62.829000000000001,63.143999999999998,63.445999999999998,63.731000000000002,63.994999999999997,64.242000000000004,64.477999999999994,64.712000000000003,64.953000000000003,65.207999999999998,65.48,65.769000000000005,66.072000000000003,66.381,66.69,66.995000000000005,67.290999999999997,67.576999999999998,67.850999999999999,68.116]
["Marshall Islands",14.673999999999999,15.055999999999999,15.547000000000001,16.111000000000001,16.71,17.282,17.834,18.382999999999999,18.966000000000001,19.617000000000001,20.393999999999998,21.305,22.335000000000001,23.44,24.53,25.579000000000001,26.547999999999998,27.478999999999999,28.4,29.417000000000002,30.574000000000002,31.882999999999999,33.33,34.881,36.564,38.331000000000003,40.212000000000003,42.167999999999999,44.091999999999999,45.826999999999998,47.265000000000001,48.402999999999999,49.241999999999997,49.828000000000003,50.213999999999999,50.454000000000001,50.523000000000003,50.453000000000003,50.356000000000002,50.417999999999999,50.753999999999998,51.411000000000001,52.368000000000002,53.465000000000003,54.475999999999999,55.256999999999998,55.765000000000001,56.045999999999999,56.165999999999997,56.255000000000003,56.360999999999997,56.524000000000001,56.712000000000003,56.933,57.183,57.444000000000003,57.722999999999999,58.052999999999997,58.411999999999999,null,47.061,47.557000000000002,48.070999999999998,48.600999999999999,49.145000000000003,49.697000000000003,50.25,50.795999999999999,51.326999999999998,51.837000000000003,52.323,52.781999999999996,53.218000000000004,53.633000000000003,54.027000000000001,54.399000000000001,54.747999999999998,55.073999999999998,55.381999999999998,55.679000000000002,55.970999999999997,56.265999999999998,56.569000000000003,56.886000000000003,57.220999999999997,57.579000000000001,57.962000000000003,58.366,58.783000000000001,59.209000000000003,59.636000000000003,60.052999999999997,60.454999999999998,60.837000000000003,61.198,61.539000000000001,61.866,62.188000000000002,62.509,62.829000000000001,63.143999999999998,63.445999999999998,63.731000000000002,63.994999999999997,64.242000000000004,64.477999999999994,64.712000000000003,64.953000000000003,65.207999999999998,65.48,65.769000000000005,66.072000000000003,66.381,66.69,66.995000000000005,67.290999999999997,67.576999999999998,67.850999999999999,68.116]
["Martinique",281.62599999999998,288.47800000000001,294.95699999999999,300.95100000000002,306.36099999999999,311.12200000000001,315.17200000000003,318.50099999999998,321.17399999999998,323.31700000000001,325.01400000000001,326.32799999999997,327.30099999999999,327.88299999999998,328.07299999999998,327.83699999999999,327.17599999999999,326.2,325.29599999999999,324.92899999999997,325.44799999999998,326.98700000000002,329.45100000000002,332.601,336.166,339.88099999999997,343.74400000000003,347.75400000000002,351.70800000000003,355.34,358.45699999999999,360.892,362.75599999999997,364.37400000000002,366.25400000000002,368.72800000000001,371.91300000000001,375.64,379.63900000000001,383.52699999999999,387.01600000000002,389.98399999999998,392.5,394.53399999999999,396.10599999999999,397.19099999999997,397.85,398.048,397.66399999999999,396.56099999999998,394.666,391.88600000000002,388.36599999999999,384.58100000000002,381.142,378.483,376.78899999999999,375.94600000000003,375.67200000000003,null,47.061,47.557000000000002,48.070999999999998,48.600999999999999,49.145000000000003,49.697000000000003,50.25,50.795999999999999,51.326999999999998,51.837000000000003,52.323,52.781999999999996,53.218000000000004,53.633000000000003,54.027000000000001,54.399000000000001,54.747999999999998,55.073999999999998,55.381999999999998,55.679000000000002,55.970999999999997,56.265999999999998,56.569000000000003,56.886000000000003,57.220999999999997,57.579000000000001,57.962000000000003,58.366,58.783000000000001,59.209000000000003,59.636000000000003,60.052999999999997,60.454999999999998,60.837000000000003,61.198,61.539000000000001,61.866,62.188000000000002,62.509,62.829000000000001,63.143999999999998,63.445999999999998,63.731000000000002,63.994999999999997,64.242000000000004,64.477999999999994,64.712000000000003,64.953000000000003,65.207999999999998,65.48,65.769000000000005,66.072000000000003,66.381,66.69,66.995000000000005,67.290999999999997,67.576999999999998,67.850999999999999,68.116]
["Mauritania",850.37699999999995,875.58600000000001,901.69,928.74199999999996,956.79399999999998,985.90700000000004,1016.093,1047.345,1079.58,1112.749,1146.7760000000001,1181.6590000000001,1217.443,1254.1559999999999,1291.857,1330.5940000000001,1370.364,1411.1389999999999,1453.028,1496.174,1540.644,1586.4960000000001,1633.655,1681.8589999999999,1730.7370000000001,1780.0329999999999,1829.6780000000001,1879.7560000000001,1930.4269999999999,1981.902,2034.347,2087.9140000000002,2142.645,2198.538,2255.52,2313.63,2372.9,2433.567,2496.2170000000001,2561.5839999999998,2630.2170000000001,2702.4050000000002,2778.0970000000002,2857.15,2939.2460000000001,3024.1979999999999,3111.9079999999999,3202.5120000000002,3296.2370000000001,3393.4079999999999,3494.2,3598.6460000000002,3706.5549999999998,3817.4969999999998,3930.8939999999998,4046.3040000000001,4163.5320000000002,4282.5820000000003,4403.3119999999999,null,47.061,47.557000000000002,48.070999999999998,48.600999999999999,49.145000000000003,49.697000000000003,50.25,50.795999999999999,51.326999999999998,51.837000000000003,52.323,52.781999999999996,53.218000000000004,53.633000000000003,54.027000000000001,54.399000000000001,54.747999999999998,55.073999999999998,55.381999999999998,55.679000000000002,55.970999999999997,56.265999999999998,56.569000000000003,56.886000000000003,57.220999999999997,57.579000000000001,57.962000000000003,58.366,58.783000000000001,59.209000000000003,59.636000000000003,60.052999999999997,60.454999999999998,60.837000000000003,61.198,61.539000000000001,61.866,62.188000000000002,62.509,62.829000000000001,63.143999999999998,63.445999999999998,63.731000000000002,63.994999999999997,64.242000000000004,64.477999999999994,64.712000000000003,64.953000000000003,65.207999999999998,65.48,65.769000000000005,66.072000000000003,66.381,66.69,66.995000000000005,67.290999999999997,67.576999999999998,67.850999999999999,68.116]
["Mauritius",660.02499999999998,679.05,698.31,717.40700000000004,735.86,753.28300000000002,769.56,784.774,799.14300000000003,812.94100000000003,826.45100000000002,839.59400000000005,852.39400000000001,865.17,878.35599999999999,892.21900000000005,906.91800000000001,922.32899999999995,937.81799999999998,952.58100000000002,966.03899999999999,978.07100000000003,988.88900000000001,998.62,1007.502,1015.764,1023.278,1030.1759999999999,1037.2529999999999,1045.585,1055.8689999999999,1068.433,1082.9480000000001,1098.604,1114.146,1128.6759999999999,1141.952,1154.1410000000001,1165.2919999999999,1175.5709999999999,1185.1469999999999,1193.9110000000001,1201.8050000000001,1208.992,1215.6679999999999,1222.01,1228.0889999999999,1233.8900000000001,1239.2619999999999,1243.9960000000001,1247.953,1251.0740000000001,1253.489,1255.4580000000001,1257.3510000000001,1259.4570000000001,1261.8699999999999,1264.4970000000001,1267.184,null,47.061,47.557000000000002,48.070999999999998,48.600999999999999,49.145000000000003,49.697000000000003,50.25,50.795999999999999,51.326999999999998,51.837000000000003,52.323,52.781999999999996,53.218000000000004,53.633000000000003,54.027000000000001,54.399000000000001,54.747999999999998,55.073999999999998,55.381999999999998,55.679000000000002,55.970999999999997,56.265999999999998,56.569000000000003,56.886000000000003,57.220999999999997,57.579000000000001,57.962000000000003,58.366,58.783000000000001,59.209000000000003,59.636000000000003,60.052999999999997,60.454999999999998,60.837000000000003,61.198,61.539000000000001,61.866,62.188000000000002,62.509,62.829000000000001,63.143999999999998,63.445999999999998,63.731000000000002,63.994999999999997,64.242000000000004,64.477999999999994,64.712000000000003,64.953000000000003,65.207999999999998,65.48,65.769000000000005,66.072000000000003,66.381,66.69,66.995000000000005,67.290999999999997,67.576999999999998,67.850999999999999,68.116]
["Mayotte",24.015999999999998,25.24,26.536999999999999,27.887,29.22,30.52,31.783000000000001,33.009,34.250999999999998,35.552999999999997,36.963999999999999,38.518000000000001,40.198999999999998,41.960999999999999,43.732999999999997,45.48,47.188000000000002,48.887999999999998,50.697000000000003,52.747,55.136000000000003,57.912999999999997,61.043999999999997,64.494,68.204999999999998,72.108000000000004,76.186999999999998,80.444999999999993,84.941000000000003,89.709000000000003,94.778999999999996,100.164,105.82599999999999,111.633,117.47,123.18600000000001,128.75299999999999,134.20599999999999,139.57499999999999,144.93,150.33099999999999,155.756,161.20400000000001,166.715,172.345,178.10300000000001,184.02600000000001,190.09800000000001,196.26900000000001,202.494,208.71600000000001,214.93700000000001,221.14699999999999,227.376,233.65799999999999,240.011,246.46,252.96199999999999,259.52600000000001,null,47.061,47.557000000000002,48.070999999999998,48.600999999999999,49.145000000000003,49.697000000000003,50.25,50.795999999999999,51.326999999999998,51.837000000000003,52.323,52.781999999999996,53.218000000000004,53.633000000000003,54.027000000000001,54.399000000000001,54.747999999999998,55.073999999999998,55.381999999999998,55.679000000000002,55.970999999999997,56.265999999999998,56.569000000000003,56.886000000000003,57.220999999999997,57.579000000000001,57.962000000000003,58.366,58.783000000000001,59.209000000000003,59.636000000000003,60.052999999999997,60.454999999999998,60.837000000000003,61.198,61.539000000000001,61.866,62.188000000000002,62.509,62.829000000000001,63.143999999999998,63.445999999999998,63.731000000000002,63.994999999999997,64.242000000000004,64.477999999999994,64.712000000000003,64.953000000000003,65.207999999999998,65.48,65.769000000000005,66.072000000000003,66.381,66.69,66.995000000000005,67.290999999999997,67.576999999999998,67.850999999999999,68.116]
["Melanesia",2908.933,2971.962,3038.069,3106.9290000000001,3178.212,3251.67,3327.1570000000002,3404.6889999999999,3484.7289999999998,3567.8910000000001,3654.63,3745.1419999999998,3839.317,3936.8249999999998,4037.1869999999999,4140.1030000000001,4245.1589999999997,4352.4889999999996,4462.9719999999998,4577.8310000000001,4697.8100000000004,4823.5029999999997,4954.1540000000005,5087.3909999999996,5219.9290000000001,5349.5529999999999,5475.3130000000001,5598.17,5720.1940000000004,5844.4530000000004,5973.1970000000001,6106.7759999999998,6244.625,6386.74,6533.0379999999996,6683.2240000000002,6838.1220000000003,6997.4690000000001,7158.6689999999999,7318.1009999999997,7473.4930000000004,7623.2070000000003,7768.7209999999995,7914.683,8067.6639999999998,8232.1489999999994,8410.1489999999994,8599.6170000000002,8796.3179999999993,8993.9179999999997,9187.9339999999993,9376.893,9562.2960000000003,9746.1949999999997,9931.8790000000008,10121.727000000001,10316.126,10514.186,10715.331,null,47.061,47.557000000000002,48.070999999999998,48.600999999999999,49.145000000000003,49.697000000000003,50.25,50.795999999999999,51.326999999999998,51.837000000000003,52.323,52.781999999999996,53.218000000000004,53.633000000000003,54.027000000000001,54.399000000000001,54.747999999999998,55.073999999999998,55.381999999999998,55.679000000000002,55.970999999999997,56.265999999999998,56.569000000000003,56.886000000000003,57.220999999999997,57.579000000000001,57.962000000000003,58.366,58.783000000000001,59.209000000000003,59.636000000000003,60.052999999999997,60.454999999999998,60.837000000000003,61.198,61.539000000000001,61.866,62.188000000000002,62.509,62.829000000000001,63.143999999999998,63.445999999999998,63.731000000000002,63.994999999999997,64.242000000000004,64.477999999999994,64.712000000000003,64.953000000000003,65.207999999999998,65.48,65.769000000000005,66.072000000000003,66.381,66.69,66.995000000000005,67.290999999999997,67.576999999999998,67.850999999999999,68.116]
["Mexico",37771.860999999997,38966.048999999999,40195.317999999999,41462.373,42771.076999999997,44123.862999999998,45519.745999999999,46956.207999999999,48431.970999999998,49945.277999999998,51493.565000000002,53076.366000000002,54689.944000000003,56324.31,57966.811999999998,59607.947,61242.188999999998,62869.908000000003,64494.872000000003,66123.907999999996,67761.366999999998,69407.623000000007,71058.649999999994,72709.305999999997,74352.630999999994,75983.486000000004,77599.104999999996,79200.081000000006,80788.725000000006,82368.929999999993,83943.134999999995,85512.620999999999,87075.135999999999,88625.44,90156.395999999993,91663.29,93147.044999999998,94611.008000000002,96056.312999999995,97484.823000000004,98899.845000000001,100298.152,101684.764,103081.02,104514.93399999999,106005.19899999999,107560.155,109170.503,110815.272,112463.886,114092.961,115695.46799999999,117274.156,118827.158,120355.137,121858.251,123333.379,124777.326,126190.78200000001,null,47.061,47.557000000000002,48.070999999999998,48.600999999999999,49.145000000000003,49.697000000000003,50.25,50.795999999999999,51.326999999999998,51.837000000000003,52.323,52.781999999999996,53.218000000000004,53.633000000000003,54.027000000000001,54.399000000000001,54.747999999999998,55.073999999999998,55.381999999999998,55.679000000000002,55.970999999999997,56.265999999999998,56.569000000000003,56.886000000000003,57.220999999999997,57.579000000000001,57.962000000000003,58.366,58.783000000000001,59.209000000000003,59.636000000000003,60.052999999999997,60.454999999999998,60.837000000000003,61.198,61.539000000000001,61.866,62.188000000000002,62.509,62.829000000000001,63.143999999999998,63.445999999999998,63.731000000000002,63.994999999999997,64.242000000000004,64.477999999999994,64.712000000000003,64.953000000000003,65.207999999999998,65.48,65.769000000000005,66.072000000000003,66.381,66.69,66.995000000000005,67.290999999999997,67.576999999999998,67.850999999999999,68.116]
["Monaco",22.460999999999999,22.812999999999999,23.042999999999999,23.164999999999999,23.236000000000001,23.289000000000001,23.302,23.292000000000002,23.295000000000002,23.347999999999999,23.486999999999998,23.721,24.048999999999999,24.445,24.829000000000001,25.202999999999999,25.523,25.811,26.09,26.390999999999998,26.751999999999999,27.161999999999999,27.632999999999999,28.091000000000001,28.510999999999999,28.835999999999999,29.05,29.155999999999999,29.231999999999999,29.309000000000001,29.433,29.629000000000001,29.859000000000002,30.145,30.436,30.731000000000002,31.001000000000001,31.268000000000001,31.553999999999998,31.835999999999999,32.148000000000003,32.473999999999997,32.804000000000002,33.143999999999998,33.499000000000002,33.841999999999999,34.189,34.524000000000001,34.86,35.222999999999999,35.609000000000002,36.024999999999999,36.459000000000003,36.899000000000001,37.32,37.722999999999999,38.07,38.392000000000003,38.682000000000002,null,47.061,47.557000000000002,48.070999999999998,48.600999999999999,49.145000000000003,49.697000000000003,50.25,50.795999999999999,51.326999999999998,51.837000000000003,52.323,52.781999999999996,53.218000000000004,53.633000000000003,54.027000000000001,54.399000000000001,54.747999999999998,55.073999999999998,55.381999999999998,55.679000000000002,55.970999999999997,56.265999999999998,56.569000000000003,56.886000000000003,57.220999999999997,57.579000000000001,57.962000000000003,58.366,58.783000000000001,59.209000000000003,59.636000000000003,60.052999999999997,60.454999999999998,60.837000000000003,61.198,61.539000000000001,61.866,62.188000000000002,62.509,62.829000000000001,63.143999999999998,63.445999999999998,63.731000000000002,63.994999999999997,64.242000000000004,64.477999999999994,64.712000000000003,64.953000000000003,65.207999999999998,65.48,65.769000000000005,66.072000000000003,66.381,66.69,66.995000000000005,67.290999999999997,67.576999999999998,67.850999999999999,68.116]
["Mongolia",955.51400000000001,982.18100000000004,1011.327,1042.3869999999999,1074.518,1107.1210000000001,1139.962,1173.1859999999999,1207.104,1242.213,1278.819,1317.0419999999999,1356.673,1397.3050000000001,1438.421,1479.646,1520.8679999999999,1562.2070000000001,1603.91,1646.29,1689.6220000000001,1733.4749999999999,1777.7270000000001,1823.2139999999999,1871.0889999999999,1921.8889999999999,1976.3130000000001,2033.3510000000001,2089.7089999999998,2141.0050000000001,2184.1390000000001,2217.9180000000001,2243.4949999999999,2263.1959999999999,2280.4749999999999,2298.0169999999998,2316.5709999999999,2335.7440000000001,2355.6669999999999,2376.2280000000001,2397.4169999999999,2419.5940000000001,2443.261,2468.7649999999999,2496.3939999999998,2526.4290000000001,2558.8539999999998,2593.819,2631.8989999999999,2673.7939999999999,2719.902,2770.357,2824.6979999999999,2881.7829999999999,2940.1109999999999,2998.433,3056.3580000000002,3113.788,3170.2139999999999,null,47.061,47.557000000000002,48.070999999999998,48.600999999999999,49.145000000000003,49.697000000000003,50.25,50.795999999999999,51.326999999999998,51.837000000000003,52.323,52.781999999999996,53.218000000000004,53.633000000000003,54.027000000000001,54.399000000000001,54.747999999999998,55.073999999999998,55.381999999999998,55.679000000000002,55.970999999999997,56.265999999999998,56.569000000000003,56.886000000000003,57.220999999999997,57.579000000000001,57.962000000000003,58.366,58.783000000000001,59.209000000000003,59.636000000000003,60.052999999999997,60.454999999999998,60.837000000000003,61.198,61.539000000000001,61.866,62.188000000000002,62.509,62.829000000000001,63.143999999999998,63.445999999999998,63.731000000000002,63.994999999999997,64.242000000000004,64.477999999999994,64.712000000000003,64.953000000000003,65.207999999999998,65.48,65.769000000000005,66.072000000000003,66.381,66.69,66.995000000000005,67.290999999999997,67.576999999999998,67.850999999999999,68.116]
["Montenegro",487.416,498.12900000000002,509.70699999999999,520.71199999999999,529.17600000000004,533.82100000000003,533.91499999999996,530.23400000000004,524.84500000000003,520.64499999999998,519.702,522.78200000000004,529.21400000000006,537.76599999999996,546.56500000000005,554.25900000000001,560.423,565.51199999999994,570.05999999999995,574.95299999999997,580.75699999999995,587.68899999999996,595.351,602.96500000000003,609.43799999999999,614.01099999999997,616.35599999999999,616.79399999999998,616.05399999999997,615.20500000000004,615.00400000000002,615.73599999999999,617.18100000000004,618.86300000000006,620.07600000000002,620.41899999999998,619.70500000000004,618.21600000000001,616.34,614.65200000000004,613.55799999999999,613.16999999999996,613.37099999999998,614.08100000000002,615.13699999999994,616.38800000000003,617.86300000000006,619.55399999999997,621.31200000000001,622.93299999999999,624.279,625.27099999999996,625.93100000000004,626.34199999999998,626.65,626.95699999999999,627.27099999999996,627.56299999999999,627.803,null,47.061,47.557000000000002,48.070999999999998,48.600999999999999,49.145000000000003,49.697000000000003,50.25,50.795999999999999,51.326999999999998,51.837000000000003,52.323,52.781999999999996,53.218000000000004,53.633000000000003,54.027000000000001,54.399000000000001,54.747999999999998,55.073999999999998,55.381999999999998,55.679000000000002,55.970999999999997,56.265999999999998,56.569000000000003,56.886000000000003,57.220999999999997,57.579000000000001,57.962000000000003,58.366,58.783000000000001,59.209000000000003,59.636000000000003,60.052999999999997,60.454999999999998,60.837000000000003,61.198,61.539000000000001,61.866,62.188000000000002,62.509,62.829000000000001,63.143999999999998,63.445999999999998,63.731000000000002,63.994999999999997,64.242000000000004,64.477999999999994,64.712000000000003,64.953000000000003,65.207999999999998,65.48,65.769000000000005,66.072000000000003,66.381,66.69,66.995000000000005,67.290999999999997,67.576999999999998,67.850999999999999,68.116]
["Montserrat",11.957000000000001,11.728999999999999,11.653,11.673,11.711,11.721,11.696,11.647,11.603999999999999,11.553000000000001,11.538,11.519,11.53,11.539,11.55,11.576000000000001,11.612,11.654,11.675000000000001,11.664999999999999,11.606999999999999,11.481999999999999,11.298999999999999,11.106,10.925000000000001,10.787000000000001,10.704000000000001,10.666,10.632,10.622999999999999,10.616,10.627000000000001,10.659000000000001,10.598000000000001,10.362,9.8480000000000008,9.0139999999999993,7.9269999999999996,6.7450000000000001,5.6929999999999996,4.9249999999999998,4.5279999999999996,4.431,4.5330000000000004,4.7030000000000003,4.8419999999999996,4.8899999999999997,4.9160000000000004,4.9059999999999997,4.891,4.8949999999999996,4.9130000000000003,4.93,4.9320000000000004,4.952,4.9660000000000002,4.9779999999999998,4.9889999999999999,4.9930000000000003,null,47.061,47.557000000000002,48.070999999999998,48.600999999999999,49.145000000000003,49.697000000000003,50.25,50.795999999999999,51.326999999999998,51.837000000000003,52.323,52.781999999999996,53.218000000000004,53.633000000000003,54.027000000000001,54.399000000000001,54.747999999999998,55.073999999999998,55.381999999999998,55.679000000000002,55.970999999999997,56.265999999999998,56.569000000000003,56.886000000000003,57.220999999999997,57.579000000000001,57.962000000000003,58.366,58.783000000000001,59.209000000000003,59.636000000000003,60.052999999999997,60.454999999999998,60.837000000000003,61.198,61.539000000000001,61.866,62.188000000000002,62.509,62.829000000000001,63.143999999999998,63.445999999999998,63.731000000000002,63.994999999999997,64.242000000000004,64.477999999999994,64.712000000000003,64.953000000000003,65.207999999999998,65.48,65.769000000000005,66.072000000000003,66.381,66.69,66.995000000000005,67.290999999999997,67.576999999999998,67.850999999999999,68.116]
["Morocco",12328.531999999999,12710.587,13094.89,13478.424999999999,13857.656000000001,14230.163,14595.351000000001,14954.037,15307.267,15656.846,16004.732,16350.883,16696.89,17048.525000000001,17413.149000000001,17796.170999999998,18198.835999999999,18620.087,19059.773000000001,19516.941999999999,19990.006000000001,20479.708999999999,20984.023000000001,21495.088,22002.641,22499.111000000001,22980.333999999999,23447.256000000001,23903.592000000001,24355.624,24807.460999999999,25260.406999999999,25711.41,26155.204000000002,26584.473000000002,26994.255000000001,27383.472000000002,27754.573,28110.447,28455.504000000001,28793.671999999999,29126.323,29454.764999999999,29782.883999999998,30115.196,30455.562999999998,30804.688999999998,31163.67,31536.807000000001,31929.087,32343.383999999998,32781.86,33241.898000000001,33715.705000000002,34192.358,34663.608,35126.273999999998,35581.256999999998,36029.089,null,47.061,47.557000000000002,48.070999999999998,48.600999999999999,49.145000000000003,49.697000000000003,50.25,50.795999999999999,51.326999999999998,51.837000000000003,52.323,52.781999999999996,53.218000000000004,53.633000000000003,54.027000000000001,54.399000000000001,54.747999999999998,55.073999999999998,55.381999999999998,55.679000000000002,55.970999999999997,56.265999999999998,56.569000000000003,56.886000000000003,57.220999999999997,57.579000000000001,57.962000000000003,58.366,58.783000000000001,59.209000000000003,59.636000000000003,60.052999999999997,60.454999999999998,60.837000000000003,61.198,61.539000000000001,61.866,62.188000000000002,62.509,62.829000000000001,63.143999999999998,63.445999999999998,63.731000000000002,63.994999999999997,64.242000000000004,64.477999999999994,64.712000000000003,64.953000000000003,65.207999999999998,65.48,65.769000000000005,66.072000000000003,66.381,66.69,66.995000000000005,67.290999999999997,67.576999999999998,67.850999999999999,68.116]
["Mozambique",7184.87,7342.1170000000002,7507.3090000000002,7679.4650000000001,7857.107,8039.2169999999996,8225.9189999999999,8417.6980000000003,8614.4449999999997,8816.0560000000005,9022.7469999999994,9232.6550000000007,9446.2350000000006,9668.6550000000007,9906.9629999999997,10165.216,10443.954,10738.534,11041.206,11341.405000000001,11630.194,11913.084999999999,12189.816999999999,12439.772999999999,12636.12,12764.385,12808.566000000001,12786.352999999999,12758.003000000001,12805.95,12987.291999999999,13328.029,13805.999,14370.95,14948.05,15483.277,15960.445,16397.174999999999,16813.946,17244.175999999999,17711.924999999999,18221.883999999998,18764.147000000001,19331.097000000002,19910.548999999999,20493.927,21080.108,21673.319,22276.596000000001,22894.718000000001,23531.566999999999,24187.5,24862.672999999999,25560.752,26286.191999999999,27042.001,27829.93,28649.007000000001,29496.008999999998,null,47.061,47.557000000000002,48.070999999999998,48.600999999999999,49.145000000000003,49.697000000000003,50.25,50.795999999999999,51.326999999999998,51.837000000000003,52.323,52.781999999999996,53.218000000000004,53.633000000000003,54.027000000000001,54.399000000000001,54.747999999999998,55.073999999999998,55.381999999999998,55.679000000000002,55.970999999999997,56.265999999999998,56.569000000000003,56.886000000000003,57.220999999999997,57.579000000000001,57.962000000000003,58.366,58.783000000000001,59.209000000000003,59.636000000000003,60.052999999999997,60.454999999999998,60.837000000000003,61.198,61.539000000000001,61.866,62.188000000000002,62.509,62.829000000000001,63.143999999999998,63.445999999999998,63.731000000000002,63.994999999999997,64.242000000000004,64.477999999999994,64.712000000000003,64.953000000000003,65.207999999999998,65.48,65.769000000000005,66.072000000000003,66.381,66.69,66.995000000000005,67.290999999999997,67.576999999999998,67.850999999999999,68.116]
["Myanmar",21736.947,22211.626,22697.664000000001,23198.238000000001,23717.785,24259.356,24823.937000000002,25410.054,26015.239000000001,26635.851999999999,27269.062999999998,27913.749,28570.093000000001,29238.168000000001,29918.469000000001,30611.093000000001,31314.347000000002,32026.748,32748.781999999999,33481.396999999997,34224.315999999999,34976.464999999997,35734.273000000001,36491.803999999996,37241.53,37977.087,38698.483999999997,39404.35,40085.652999999998,40731.438999999998,41335.188000000002,41890.192000000003,42401.686000000002,42889.991999999998,43383.421000000002,43901.597999999998,44452.203000000001,45027.222999999998,45611.22,46181.074999999997,46719.697999999997,47225.118999999999,47702.163,48148.906999999999,48564.489000000001,48949.930999999997,49301.048999999999,49621.478999999999,49929.642,50250.366000000002,50600.826999999997,50990.612000000001,51413.703000000001,51852.464,52280.815999999999,52680.724000000002,53045.199000000001,53382.521000000001,53708.317999999999,null,47.061,47.557000000000002,48.070999999999998,48.600999999999999,49.145000000000003,49.697000000000003,50.25,50.795999999999999,51.326999999999998,51.837000000000003,52.323,52.781999999999996,53.218000000000004,53.633000000000003,54.027000000000001,54.399000000000001,54.747999999999998,55.073999999999998,55.381999999999998,55.679000000000002,55.970999999999997,56.265999999999998,56.569000000000003,56.886000000000003,57.220999999999997,57.579000000000001,57.962000000000003,58.366,58.783000000000001,59.209000000000003,59.636000000000003,60.052999999999997,60.454999999999998,60.837000000000003,61.198,61.539000000000001,61.866,62.188000000000002,62.509,62.829000000000001,63.143999999999998,63.445999999999998,63.731000000000002,63.994999999999997,64.242000000000004,64.477999999999994,64.712000000000003,64.953000000000003,65.207999999999998,65.48,65.769000000000005,66.072000000000003,66.381,66.69,66.995000000000005,67.290999999999997,67.576999999999998,67.850999999999999,68.116]
["Namibia",634.13800000000003,649.274,665.11900000000003,681.63300000000004,698.79700000000003,716.58799999999997,734.86599999999999,753.68299999999999,773.428,794.58799999999997,817.47400000000005,842.35299999999995,868.95399999999995,896.26400000000001,922.9,947.92499999999995,971.11699999999996,992.95500000000004,1014.0549999999999,1035.3789999999999,1057.723,1080.9380000000001,1105.1030000000001,1131.624,1162.2819999999999,1198.1489999999999,1239.923,1286.796,1336.5450000000001,1386.011,1432.8989999999999,1476.3989999999999,1516.951,1555.098,1591.826,1627.866,1663.3779999999999,1698.029,1731.635,1763.8610000000001,1794.5830000000001,1823.6669999999999,1851.519,1879.1130000000001,1907.7370000000001,1938.316,1971.318,2006.5160000000001,2043.3820000000001,2081.0390000000002,2118.877,2156.6979999999999,2194.777,2233.5059999999999,2273.4259999999999,2314.9009999999998,2358.0439999999999,2402.623,2448.3000000000002,null,47.061,47.557000000000002,48.070999999999998,48.600999999999999,49.145000000000003,49.697000000000003,50.25,50.795999999999999,51.326999999999998,51.837000000000003,52.323,52.781999999999996,53.218000000000004,53.633000000000003,54.027000000000001,54.399000000000001,54.747999999999998,55.073999999999998,55.381999999999998,55.679000000000002,55.970999999999997,56.265999999999998,56.569000000000003,56.886000000000003,57.220999999999997,57.579000000000001,57.962000000000003,58.366,58.783000000000001,59.209000000000003,59.636000000000003,60.052999999999997,60.454999999999998,60.837000000000003,61.198,61.539000000000001,61.866,62.188000000000002,62.509,62.829000000000001,63.143999999999998,63.445999999999998,63.731000000000002,63.994999999999997,64.242000000000004,64.477999999999994,64.712000000000003,64.953000000000003,65.207999999999998,65.48,65.769000000000005,66.072000000000003,66.381,66.69,66.995000000000005,67.290999999999997,67.576999999999998,67.850999999999999,68.116]
["Nauru",4.3769999999999998,4.6269999999999998,4.9420000000000002,5.27,5.59,5.859,6.0650000000000004,6.2210000000000001,6.343,6.4450000000000003,6.5529999999999999,6.6689999999999996,6.798,6.9290000000000003,7.0620000000000003,7.1779999999999999,7.2839999999999998,7.3959999999999999,7.5049999999999999,7.6260000000000003,7.7510000000000003,7.8710000000000004,8.016,8.1630000000000003,8.3309999999999995,8.5009999999999994,8.6790000000000003,8.8680000000000003,9.0579999999999998,9.2750000000000004,9.5060000000000002,9.766,10.029999999999999,10.287000000000001,10.496,10.625999999999999,10.677,10.643000000000001,10.567,10.449,10.335000000000001,10.218999999999999,10.102,9.99,9.9060000000000006,9.8480000000000008,9.827,9.8460000000000001,9.8800000000000008,9.9450000000000003,10.009,10.069000000000001,10.135999999999999,10.208,10.289,10.374000000000001,10.474,10.577,10.678000000000001,null,47.061,47.557000000000002,48.070999999999998,48.600999999999999,49.145000000000003,49.697000000000003,50.25,50.795999999999999,51.326999999999998,51.837000000000003,52.323,52.781999999999996,53.218000000000004,53.633000000000003,54.027000000000001,54.399000000000001,54.747999999999998,55.073999999999998,55.381999999999998,55.679000000000002,55.970999999999997,56.265999999999998,56.569000000000003,56.886000000000003,57.220999999999997,57.579000000000001,57.962000000000003,58.366,58.783000000000001,59.209000000000003,59.636000000000003,60.052999999999997,60.454999999999998,60.837000000000003,61.198,61.539000000000001,61.866,62.188000000000002,62.509,62.829000000000001,63.143999999999998,63.445999999999998,63.731000000000002,63.994999999999997,64.242000000000004,64.477999999999994,64.712000000000003,64.953000000000003,65.207999999999998,65.48,65.769000000000005,66.072000000000003,66.381,66.69,66.995000000000005,67.290999999999997,67.576999999999998,67.850999999999999,68.116]
["Nepal",10105.06,10267.26,10433.147000000001,10604.62,10783.958000000001,10972.912,11172.53,11382.965,11603.921,11834.656999999999,12074.628000000001,12323.984,12583.142,12852.205,13131.26,13420.367,13719.466,14028.535,14347.653,14676.932000000001,15016.407999999999,15367.228999999999,15729.431,16100.623,16477.488000000001,16858.314999999999,17239.677,17623.697,18020.755000000001,18445.021000000001,18905.48,19405.506000000001,19938.322,20489.973000000002,21040.899000000001,21576.074000000001,22090.351999999999,22584.772000000001,23057.875,23509.971000000001,23941.098999999998,24347.113000000001,24725.625,25080.880000000001,25419.337,25744.5,26066.687000000002,26382.585999999999,26666.580999999998,26883.530999999999,27013.206999999999,27041.22,26989.16,26916.794999999998,26905.982,27015.032999999999,27263.43,27632.682000000001,28095.712,null,47.061,47.557000000000002,48.070999999999998,48.600999999999999,49.145000000000003,49.697000000000003,50.25,50.795999999999999,51.326999999999998,51.837000000000003,52.323,52.781999999999996,53.218000000000004,53.633000000000003,54.027000000000001,54.399000000000001,54.747999999999998,55.073999999999998,55.381999999999998,55.679000000000002,55.970999999999997,56.265999999999998,56.569000000000003,56.886000000000003,57.220999999999997,57.579000000000001,57.962000000000003,58.366,58.783000000000001,59.209000000000003,59.636000000000003,60.052999999999997,60.454999999999998,60.837000000000003,61.198,61.539000000000001,61.866,62.188000000000002,62.509,62.829000000000001,63.143999999999998,63.445999999999998,63.731000000000002,63.994999999999997,64.242000000000004,64.477999999999994,64.712000000000003,64.953000000000003,65.207999999999998,65.48,65.769000000000005,66.072000000000003,66.381,66.69,66.995000000000005,67.290999999999997,67.576999999999998,67.850999999999999,68.116]
["Netherlands",11448.815000000001,11606.397999999999,11766.73,11928.359,12089.386,12248.333000000001,12404.189,12556.841,12706.787,12855.005999999999,13001.941000000001,13147.934999999999,13291.876,13431.187,13562.431,13683.287,13793.11,13892.92,13984.05,14068.597,14148.41,14223.757,14295.209000000001,14365.388000000001,14437.51,14513.947,14595.749,14682.662,14774.031000000001,14868.659,14965.441999999999,15064.522000000001,15165.856,15268.004999999999,15369.120999999999,15467.852000000001,15563.252,15655.482,15745.65,15835.525,15926.188,16018.111999999999,16110.355,16200.948,16287.183000000001,16367.153,16440.091,16506.651999999998,16568.105,16626.379000000001,16682.927,16738.190999999999,16791.849999999999,16843.511999999999,16892.517,16938.491999999998,16981.285,17021.343000000001,17059.560000000001,null,47.061,47.557000000000002,48.070999999999998,48.600999999999999,49.145000000000003,49.697000000000003,50.25,50.795999999999999,51.326999999999998,51.837000000000003,52.323,52.781999999999996,53.218000000000004,53.633000000000003,54.027000000000001,54.399000000000001,54.747999999999998,55.073999999999998,55.381999999999998,55.679000000000002,55.970999999999997,56.265999999999998,56.569000000000003,56.886000000000003,57.220999999999997,57.579000000000001,57.962000000000003,58.366,58.783000000000001,59.209000000000003,59.636000000000003,60.052999999999997,60.454999999999998,60.837000000000003,61.198,61.539000000000001,61.866,62.188000000000002,62.509,62.829000000000001,63.143999999999998,63.445999999999998,63.731000000000002,63.994999999999997,64.242000000000004,64.477999999999994,64.712000000000003,64.953000000000003,65.207999999999998,65.48,65.769000000000005,66.072000000000003,66.381,66.69,66.995000000000005,67.290999999999997,67.576999999999998,67.850999999999999,68.116]
["New Zealand",2372.5990000000002,2424.0639999999999,2477.192,2530.1860000000001,2580.5360000000001,2626.6489999999999,2667.085,2702.6759999999999,2736.8209999999999,2774.3580000000002,2818.3910000000001,2870.817,2929.6869999999999,2989.4119999999998,3042.1750000000002,3082.6219999999998,3108.5740000000001,3122.4059999999999,3128.9580000000001,3135.3009999999999,3146.61,3164.8229999999999,3188.5369999999998,3215.732,3243.0340000000001,3268.2339999999999,3290.3040000000001,3310.7510000000002,3332.7869999999998,3360.9560000000001,3398.1750000000002,3446.1709999999998,3503.194,3564.473,3623.2719999999999,3674.94,3717.3519999999999,3752.355,3783.9760000000001,3818.1280000000002,3858.9920000000002,3907.9409999999998,3963.2020000000002,4022.0740000000001,4080.4209999999998,4135.3530000000001,4185.8819999999996,4233.0460000000003,4278.1559999999999,4323.3379999999997,4370.0600000000004,4418.674,4468.4620000000004,4518.5190000000002,4567.5219999999999,4614.527,4659.2650000000003,4702.0290000000005,4743.1310000000003,null,47.061,47.557000000000002,48.070999999999998,48.600999999999999,49.145000000000003,49.697000000000003,50.25,50.795999999999999,51.326999999999998,51.837000000000003,52.323,52.781999999999996,53.218000000000004,53.633000000000003,54.027000000000001,54.399000000000001,54.747999999999998,55.073999999999998,55.381999999999998,55.679000000000002,55.970999999999997,56.265999999999998,56.569000000000003,56.886000000000003,57.220999999999997,57.579000000000001,57.962000000000003,58.366,58.783000000000001,59.209000000000003,59.636000000000003,60.052999999999997,60.454999999999998,60.837000000000003,61.198,61.539000000000001,61.866,62.188000000000002,62.509,62.829000000000001,63.143999999999998,63.445999999999998,63.731000000000002,63.994999999999997,64.242000000000004,64.477999999999994,64.712000000000003,64.953000000000003,65.207999999999998,65.48,65.769000000000005,66.072000000000003,66.381,66.69,66.995000000000005,67.290999999999997,67.576999999999998,67.850999999999999,68.116]
["Nicaragua",1773.1320000000001,1829.7719999999999,1887.4259999999999,1946.24,2006.4780000000001,2068.3789999999999,2131.973,2197.3029999999999,2264.623,2334.2849999999999,2406.5230000000001,2481.3449999999998,2558.7049999999999,2638.6990000000001,2721.4169999999999,2806.8589999999999,2894.9670000000001,2985.48,3077.8609999999999,3171.404,3265.52,3360.1419999999998,3455.1289999999999,3549.7109999999998,3642.9780000000001,3734.3429999999998,3823.1329999999998,3909.672,3995.529,4082.9580000000001,4173.4350000000004,4267.57,4364.5140000000001,4462.4960000000001,4559.01,4652.1850000000004,4741.5709999999999,4827.6580000000004,4910.6419999999998,4991.0410000000002,5069.3100000000004,5145.3670000000002,5219.3239999999996,5292.1149999999998,5364.93,5438.692,5513.7569999999996,5590.0659999999998,5667.4359999999997,5745.5379999999996,5824.058,5903.0349999999999,5982.53,6062.4620000000004,6142.7340000000004,6223.2340000000004,6303.97,6384.8429999999998,6465.5020000000004,null,47.061,47.557000000000002,48.070999999999998,48.600999999999999,49.145000000000003,49.697000000000003,50.25,50.795999999999999,51.326999999999998,51.837000000000003,52.323,52.781999999999996,53.218000000000004,53.633000000000003,54.027000000000001,54.399000000000001,54.747999999999998,55.073999999999998,55.381999999999998,55.679000000000002,55.970999999999997,56.265999999999998,56.569000000000003,56.886000000000003,57.220999999999997,57.579000000000001,57.962000000000003,58.366,58.783000000000001,59.209000000000003,59.636000000000003,60.052999999999997,60.454999999999998,60.837000000000003,61.198,61.539000000000001,61.866,62.188000000000002,62.509,62.829000000000001,63.143999999999998,63.445999999999998,63.731000000000002,63.994999999999997,64.242000000000004,64.477999999999994,64.712000000000003,64.953000000000003,65.207999999999998,65.48,65.769000000000005,66.072000000000003,66.381,66.69,66.995000000000005,67.290999999999997,67.576999999999998,67.850999999999999,68.116]
["Niger",3388.7739999999999,3486.3220000000001,3588.2280000000001,3693.9850000000001,3802.8020000000001,3914.1179999999999,4027.9690000000001,4144.5879999999997,4263.9250000000002,4385.9250000000002,4510.6450000000004,4637.9840000000004,4768.2250000000004,4902.1509999999998,5040.7950000000001,5184.9399999999996,5335.0829999999996,5491.1580000000004,5652.6549999999997,5818.7629999999999,5989,6163.7110000000002,6343.53,6528.6459999999997,6719.31,6915.9939999999997,7118.8850000000002,7328.9340000000002,7548.4290000000001,7780.2420000000002,8026.5919999999996,8288.7389999999996,8566.7729999999992,8860.2970000000005,9168.3160000000007,9490.2890000000007,9826.6,10178.196,10545.72,10929.922,11331.561,11751.364,12189.987999999999,12647.983,13125.914000000001,13624.474,14143.968999999999,14685.404,15250.913,15843.130999999999,16464.025000000001,17114.77,17795.208999999999,18504.287,19240.182000000001,20001.663,20788.789000000001,21602.387999999999,22442.830999999998,null,47.061,47.557000000000002,48.070999999999998,48.600999999999999,49.145000000000003,49.697000000000003,50.25,50.795999999999999,51.326999999999998,51.837000000000003,52.323,52.781999999999996,53.218000000000004,53.633000000000003,54.027000000000001,54.399000000000001,54.747999999999998,55.073999999999998,55.381999999999998,55.679000000000002,55.970999999999997,56.265999999999998,56.569000000000003,56.886000000000003,57.220999999999997,57.579000000000001,57.962000000000003,58.366,58.783000000000001,59.209000000000003,59.636000000000003,60.052999999999997,60.454999999999998,60.837000000000003,61.198,61.539000000000001,61.866,62.188000000000002,62.509,62.829000000000001,63.143999999999998,63.445999999999998,63.731000000000002,63.994999999999997,64.242000000000004,64.477999999999994,64.712000000000003,64.953000000000003,65.207999999999998,65.48,65.769000000000005,66.072000000000003,66.381,66.69,66.995000000000005,67.290999999999997,67.576999999999998,67.850999999999999,68.116]
["Nigeria",45138.46,46063.57,47029.817999999999,48032.932000000001,49066.762000000002,50127.92,51217.968999999997,52342.231,53506.201000000001,54717.035000000003,55982.142,57296.987999999998,58665.813000000002,60114.614999999998,61677.167000000001,63374.288999999997,65221.379000000001,67203.134000000005,69271.914999999994,71361.141000000003,73423.645999999993,75440.505000000005,77427.539000000004,79414.841,81448.756999999998,83562.775999999998,85766.395999999993,88048.028999999995,90395.278000000006,92788.039000000004,95212.453999999998,97667.631999999998,100161.708,102700.751,105293.701,107948.33900000001,110668.784,113457.66099999999,116319.76300000001,119260.05499999999,122283.853,125394.046,128596.079,131900.63399999999,135320.42000000001,138865.014,142538.30499999999,146339.97099999999,150269.622,154324.93900000001,158503.20300000001,162805.07999999999,167228.80300000001,171765.81899999999,176404.93100000001,181137.454,185960.24400000001,190873.247,195874.685,null,47.061,47.557000000000002,48.070999999999998,48.600999999999999,49.145000000000003,49.697000000000003,50.25,50.795999999999999,51.326999999999998,51.837000000000003,52.323,52.781999999999996,53.218000000000004,53.633000000000003,54.027000000000001,54.399000000000001,54.747999999999998,55.073999999999998,55.381999999999998,55.679000000000002,55.970999999999997,56.265999999999998,56.569000000000003,56.886000000000003,57.220999999999997,57.579000000000001,57.962000000000003,58.366,58.783000000000001,59.209000000000003,59.636000000000003,60.052999999999997,60.454999999999998,60.837000000000003,61.198,61.539000000000001,61.866,62.188000000000002,62.509,62.829000000000001,63.143999999999998,63.445999999999998,63.731000000000002,63.994999999999997,64.242000000000004,64.477999999999994,64.712000000000003,64.953000000000003,65.207999999999998,65.48,65.769000000000005,66.072000000000003,66.381,66.69,66.995000000000005,67.290999999999997,67.576999999999998,67.850999999999999,68.116]
["Norway",3582.5079999999998,3611.1390000000001,3639.2130000000002,3667.1129999999998,3695.4169999999999,3724.4569999999999,3754.3539999999998,3784.8670000000002,3815.6410000000001,3846.1770000000001,3876.049,3905.2739999999999,3933.7260000000001,3960.8049999999998,3985.7350000000001,4008.0259999999998,4027.4749999999999,4044.335,4059.1860000000001,4072.875,4086.07,4098.9740000000002,4111.6499999999996,4124.5879999999997,4138.2650000000003,4153.1109999999999,4169.3180000000002,4186.9719999999998,4205.9589999999998,4226.116,4247.2860000000001,4269.4650000000001,4292.6850000000004,4316.79,4341.616,4366.9960000000001,4393.2169999999996,4420.2659999999996,4447.4849999999997,4474.0079999999998,4499.375,4523.1390000000001,4546.0169999999998,4570.0959999999995,4598.21,4632.3590000000004,4672.9859999999999,4719.4030000000002,4771.0140000000001,4826.8469999999998,4885.8779999999997,4948.335,5013.7160000000003,5079.46,5142.2690000000002,5199.8270000000002,5250.95,5296.3239999999996,5337.96,null,47.061,47.557000000000002,48.070999999999998,48.600999999999999,49.145000000000003,49.697000000000003,50.25,50.795999999999999,51.326999999999998,51.837000000000003,52.323,52.781999999999996,53.218000000000004,53.633000000000003,54.027000000000001,54.399000000000001,54.747999999999998,55.073999999999998,55.381999999999998,55.679000000000002,55.970999999999997,56.265999999999998,56.569000000000003,56.886000000000003,57.220999999999997,57.579000000000001,57.962000000000003,58.366,58.783000000000001,59.209000000000003,59.636000000000003,60.052999999999997,60.454999999999998,60.837000000000003,61.198,61.539000000000001,61.866,62.188000000000002,62.509,62.829000000000001,63.143999999999998,63.445999999999998,63.731000000000002,63.994999999999997,64.242000000000004,64.477999999999994,64.712000000000003,64.953000000000003,65.207999999999998,65.48,65.769000000000005,66.072000000000003,66.381,66.69,66.995000000000005,67.290999999999997,67.576999999999998,67.850999999999999,68.116]
["Oman",551.73500000000001,564.89099999999996,578.827,593.49800000000005,608.89,625.00599999999997,642.00699999999995,660.11699999999996,679.59199999999998,700.72500000000002,723.84199999999998,748.96799999999996,776.38499999999999,806.98500000000001,841.952,882.03800000000001,927.43399999999997,977.80399999999997,1032.797,1091.8579999999999,1154.373,1220.578,1290.1210000000001,1361.085,1431.066,1498.413,1561.18,1619.8710000000001,1678.1189999999999,1741.155,1812.1579999999999,1893.761,1983.2719999999999,2072.1060000000002,2148.4160000000002,2204.2669999999998,2236.652,2249.759,2251.8589999999999,2254.8980000000001,2267.973,2294.9589999999998,2334.86,2386.1640000000002,2445.5239999999999,2511.2539999999999,2580.7530000000002,2657.1619999999998,2750.9560000000001,2876.1860000000001,3041.4349999999999,3251.1019999999999,3498.0309999999999,3764.8049999999998,4027.2550000000001,4267.3410000000003,4479.2169999999996,4665.9260000000004,4829.4759999999997,null,47.061,47.557000000000002,48.070999999999998,48.600999999999999,49.145000000000003,49.697000000000003,50.25,50.795999999999999,51.326999999999998,51.837000000000003,52.323,52.781999999999996,53.218000000000004,53.633000000000003,54.027000000000001,54.399000000000001,54.747999999999998,55.073999999999998,55.381999999999998,55.679000000000002,55.970999999999997,56.265999999999998,56.569000000000003,56.886000000000003,57.220999999999997,57.579000000000001,57.962000000000003,58.366,58.783000000000001,59.209000000000003,59.636000000000003,60.052999999999997,60.454999999999998,60.837000000000003,61.198,61.539000000000001,61.866,62.188000000000002,62.509,62.829000000000001,63.143999999999998,63.445999999999998,63.731000000000002,63.994999999999997,64.242000000000004,64.477999999999994,64.712000000000003,64.953000000000003,65.207999999999998,65.48,65.769000000000005,66.072000000000003,66.381,66.69,66.995000000000005,67.290999999999997,67.576999999999998,67.850999999999999,68.116]
["Pakistan",44988.69,46065.228999999999,47198.885999999999,48387.292999999998,49627.623,50917.974999999999,52260.182999999997,53655.783000000003,55102.69,56598.148000000001,58142.061999999998,59734.478999999999,61381.982000000004,63099.404000000002,64905.995999999999,66816.875,68834.323999999993,70958.168000000005,73197.254000000001,75561.127999999997,78054.346000000005,80680.460999999996,83431.596999999994,86285.936000000002,89213.707999999999,92191.505000000005,95215.375,98285.762000000002,101389.603,104512.874,107647.91800000001,110778.655,113911.126,117086.68,120362.764,123776.83500000001,127349.29300000001,131057.432,134843.23300000001,138624.625,142343.58300000001,145978.408,149549.69500000001,153093.37100000001,156664.698,160304.00700000001,164022.62599999999,167808.106,171648.984,175525.61,179424.64300000001,183340.16800000001,187280.125,191260.799,195305.01199999999,199426.95300000001,203631.356,207906.21,212228.288,null,47.061,47.557000000000002,48.070999999999998,48.600999999999999,49.145000000000003,49.697000000000003,50.25,50.795999999999999,51.326999999999998,51.837000000000003,52.323,52.781999999999996,53.218000000000004,53.633000000000003,54.027000000000001,54.399000000000001,54.747999999999998,55.073999999999998,55.381999999999998,55.679000000000002,55.970999999999997,56.265999999999998,56.569000000000003,56.886000000000003,57.220999999999997,57.579000000000001,57.962000000000003,58.366,58.783000000000001,59.209000000000003,59.636000000000003,60.052999999999997,60.454999999999998,60.837000000000003,61.198,61.539000000000001,61.866,62.188000000000002,62.509,62.829000000000001,63.143999999999998,63.445999999999998,63.731000000000002,63.994999999999997,64.242000000000004,64.477999999999994,64.712000000000003,64.953000000000003,65.207999999999998,65.48,65.769000000000005,66.072000000000003,66.381,66.69,66.995000000000005,67.290999999999997,67.576999999999998,67.850999999999999,68.116]
["Palau",9.7690000000000001,10.045999999999999,10.329000000000001,10.566000000000001,10.792,11.005000000000001,11.178000000000001,11.329000000000001,11.46,11.617000000000001,11.803000000000001,12.051,12.342000000000001,12.625,12.823,12.898,12.835000000000001,12.646000000000001,12.409000000000001,12.231,12.178000000000001,12.281000000000001,12.519,12.842000000000001,13.19,13.534000000000001,13.835000000000001,14.121,14.4,14.704000000000001,15.063000000000001,15.442,15.859,16.285,16.734999999999999,17.158000000000001,17.599,18.015999999999998,18.408999999999999,18.773,19.103999999999999,19.39,19.641999999999999,19.812000000000001,19.861000000000001,19.783999999999999,19.545000000000002,19.158999999999999,18.707999999999998,18.29,17.954000000000001,17.748000000000001,17.635000000000002,17.603000000000002,17.625,17.664999999999999,17.718,17.809000000000001,17.911000000000001,null,47.061,47.557000000000002,48.070999999999998,48.600999999999999,49.145000000000003,49.697000000000003,50.25,50.795999999999999,51.326999999999998,51.837000000000003,52.323,52.781999999999996,53.218000000000004,53.633000000000003,54.027000000000001,54.399000000000001,54.747999999999998,55.073999999999998,55.381999999999998,55.679000000000002,55.970999999999997,56.265999999999998,56.569000000000003,56.886000000000003,57.220999999999997,57.579000000000001,57.962000000000003,58.366,58.783000000000001,59.209000000000003,59.636000000000003,60.052999999999997,60.454999999999998,60.837000000000003,61.198,61.539000000000001,61.866,62.188000000000002,62.509,62.829000000000001,63.143999999999998,63.445999999999998,63.731000000000002,63.994999999999997,64.242000000000004,64.477999999999994,64.712000000000003,64.953000000000003,65.207999999999998,65.48,65.769000000000005,66.072000000000003,66.381,66.69,66.995000000000005,67.290999999999997,67.576999999999998,67.850999999999999,68.116]
["Panama",1133.0050000000001,1167.1199999999999,1202.4469999999999,1238.893,1276.3309999999999,1314.6790000000001,1353.847,1393.8240000000001,1434.6759999999999,1476.481,1519.2860000000001,1563.0930000000001,1607.797,1653.2080000000001,1699.056,1745.1420000000001,1791.3889999999999,1837.8040000000001,1884.4269999999999,1931.3019999999999,1978.489,2025.9649999999999,2073.748,2121.8629999999998,2170.33,2219.1999999999998,2268.5,2318.259,2368.556,2419.424,2470.9459999999999,2523.1149999999998,2575.9490000000001,2629.5839999999998,2684.1170000000002,2739.6669999999999,2796.2910000000002,2853.9070000000002,2912.3180000000002,2971.1970000000001,3030.3330000000001,3089.6410000000001,3149.1950000000002,3209.056,3269.3560000000002,3330.2220000000002,3391.6729999999998,3453.6709999999998,3516.2040000000002,3579.2150000000001,3642.6909999999998,3706.4789999999998,3770.6350000000002,3835.4470000000001,3901.3110000000001,3968.49,4037.0729999999999,4106.7640000000001,4176.8680000000004,null,47.061,47.557000000000002,48.070999999999998,48.600999999999999,49.145000000000003,49.697000000000003,50.25,50.795999999999999,51.326999999999998,51.837000000000003,52.323,52.781999999999996,53.218000000000004,53.633000000000003,54.027000000000001,54.399000000000001,54.747999999999998,55.073999999999998,55.381999999999998,55.679000000000002,55.970999999999997,56.265999999999998,56.569000000000003,56.886000000000003,57.220999999999997,57.579000000000001,57.962000000000003,58.366,58.783000000000001,59.209000000000003,59.636000000000003,60.052999999999997,60.454999999999998,60.837000000000003,61.198,61.539000000000001,61.866,62.188000000000002,62.509,62.829000000000001,63.143999999999998,63.445999999999998,63.731000000000002,63.994999999999997,64.242000000000004,64.477999999999994,64.712000000000003,64.953000000000003,65.207999999999998,65.48,65.769000000000005,66.072000000000003,66.381,66.69,66.995000000000005,67.290999999999997,67.576999999999998,67.850999999999999,68.116]
["Papua New Guinea",2255.8580000000002,2297.0520000000001,2340.3490000000002,2385.9430000000002,2434.2199999999998,2485.433,2539.683,2596.8200000000002,2656.636,2718.8049999999998,2783.1320000000001,2849.5219999999999,2918.1379999999999,2989.201,3063.0509999999999,3139.944,3219.8249999999998,3302.636,3388.6309999999999,3478.0929999999998,3571.2089999999998,3668.1019999999999,3768.489,3871.49,3975.95,4081.0219999999999,4186.4989999999998,4292.5749999999998,4399.32,4506.9960000000001,4615.8429999999998,4725.5429999999997,4836.2160000000003,4949.0529999999999,5065.6639999999998,5187.0630000000001,5314.2579999999998,5446.6329999999998,5581.7669999999998,5716.1660000000002,5847.59,5974.6270000000004,6098.6210000000001,6223.3779999999997,6354.2470000000003,6494.902,6646.8909999999996,6808.5029999999997,6976.2,7144.7740000000003,7310.5119999999997,7472.1959999999999,7631.0029999999997,7788.3879999999999,7946.7330000000002,8107.7719999999999,8271.7659999999996,8438.0380000000005,8606.3240000000005,null,47.061,47.557000000000002,48.070999999999998,48.600999999999999,49.145000000000003,49.697000000000003,50.25,50.795999999999999,51.326999999999998,51.837000000000003,52.323,52.781999999999996,53.218000000000004,53.633000000000003,54.027000000000001,54.399000000000001,54.747999999999998,55.073999999999998,55.381999999999998,55.679000000000002,55.970999999999997,56.265999999999998,56.569000000000003,56.886000000000003,57.220999999999997,57.579000000000001,57.962000000000003,58.366,58.783000000000001,59.209000000000003,59.636000000000003,60.052999999999997,60.454999999999998,60.837000000000003,61.198,61.539000000000001,61.866,62.188000000000002,62.509,62.829000000000001,63.143999999999998,63.445999999999998,63.731000000000002,63.994999999999997,64.242000000000004,64.477999999999994,64.712000000000003,64.953000000000003,65.207999999999998,65.48,65.769000000000005,66.072000000000003,66.381,66.69,66.995000000000005,67.290999999999997,67.576999999999998,67.850999999999999,68.116]
["Paraguay",1903.99,1954.5519999999999,2006.675,2060.34,2115.5729999999999,2172.3090000000002,2230.7330000000002,2290.797,2351.9259999999999,2413.3960000000002,2474.7570000000001,2535.877,2597.1489999999999,2659.4180000000001,2723.8159999999998,2791.2359999999999,2861.8679999999999,2935.71,3013.2809999999999,3095.1509999999998,3181.627,3272.922,3368.7629999999999,3468.5329999999999,3571.2750000000001,3676.2060000000001,3783.0740000000001,3891.7249999999999,4001.6779999999999,4112.3959999999997,4223.4129999999996,4334.348,4445.0190000000002,4555.518,4666.0959999999995,4776.8379999999997,4887.6379999999999,4998.0959999999995,5107.84,5216.3459999999995,5323.2020000000002,5428.442,5531.9579999999996,5632.9830000000002,5730.5559999999996,5824.0950000000003,5913.2120000000004,5998.43,6081.2960000000003,6163.97,6248.0169999999998,6333.9809999999998,6421.51,6510.2730000000001,6599.5240000000003,6688.7460000000001,6777.8779999999997,6867.058,6956.0690000000004,null,47.061,47.557000000000002,48.070999999999998,48.600999999999999,49.145000000000003,49.697000000000003,50.25,50.795999999999999,51.326999999999998,51.837000000000003,52.323,52.781999999999996,53.218000000000004,53.633000000000003,54.027000000000001,54.399000000000001,54.747999999999998,55.073999999999998,55.381999999999998,55.679000000000002,55.970999999999997,56.265999999999998,56.569000000000003,56.886000000000003,57.220999999999997,57.579000000000001,57.962000000000003,58.366,58.783000000000001,59.209000000000003,59.636000000000003,60.052999999999997,60.454999999999998,60.837000000000003,61.198,61.539000000000001,61.866,62.188000000000002,62.509,62.829000000000001,63.143999999999998,63.445999999999998,63.731000000000002,63.994999999999997,64.242000000000004,64.477999999999994,64.712000000000003,64.953000000000003,65.207999999999998,65.48,65.769000000000005,66.072000000000003,66.381,66.69,66.995000000000005,67.290999999999997,67.576999999999998,67.850999999999999,68.116]
["Peru",10155.011,10446.618,10749.463,11062.295,11383.364,11711.402,12045.782999999999,12386.868,12735.491,13092.846,13459.789000000001,13836.365,14221.954,14615.847,15017.06,15424.745000000001,15838.567999999999,16258.323,16683.451000000001,17113.393,17547.612000000001,17985.398000000001,18426.419999999998,18870.988000000001,19319.745999999999,19772.870999999999,20230.384999999998,20691.285,21153.462,21614.192999999999,22071.433000000001,22522.383000000002,22966.822,23408.134999999998,23851.404999999999,24299.168000000001,24753.825000000001,25210.956999999999,25658.07,26078.294999999998,26459.944,26799.289000000001,27100.964,27372.217000000001,27624.225999999999,27866.14,28102.055,28333.05,28562.321,28792.663,29027.68,29264.313999999998,29506.79,29773.986000000001,30090.371999999999,30470.739000000001,30926.036,31444.298999999999,31989.264999999999,null,47.061,47.557000000000002,48.070999999999998,48.600999999999999,49.145000000000003,49.697000000000003,50.25,50.795999999999999,51.326999999999998,51.837000000000003,52.323,52.781999999999996,53.218000000000004,53.633000000000003,54.027000000000001,54.399000000000001,54.747999999999998,55.073999999999998,55.381999999999998,55.679000000000002,55.970999999999997,56.265999999999998,56.569000000000003,56.886000000000003,57.220999999999997,57.579000000000001,57.962000000000003,58.366,58.783000000000001,59.209000000000003,59.636000000000003,60.052999999999997,60.454999999999998,60.837000000000003,61.198,61.539000000000001,61.866,62.188000000000002,62.509,62.829000000000001,63.143999999999998,63.445999999999998,63.731000000000002,63.994999999999997,64.242000000000004,64.477999999999994,64.712000000000003,64.953000000000003,65.207999999999998,65.48,65.769000000000005,66.072000000000003,66.381,66.69,66.995000000000005,67.290999999999997,67.576999999999998,67.850999999999999,68.116]
["Philippines",26269.741000000002,27161.052,28077.345000000001,29012.63,29958.687000000002,30909.996999999999,31864.174999999999,32823.97,33795.203000000001,34786.309000000001,35803.591,36849.678,37923.4,39022.758999999998,40144.25,41285.741000000002,42446.659,43629.415000000001,44838.485000000001,46079.843999999997,47357.741000000002,48672.830999999998,50023.563999999998,51408.91,52827.046999999999,54275.836000000003,55755.345999999998,57263.834999999999,58794.999000000003,60340.767999999996,61895.169000000002,63454.785000000003,65020.124000000003,66593.903999999995,68180.846000000005,69784.087,71401.743000000002,73030.879000000001,74672.009000000005,76325.926999999996,77991.756999999998,79672.869000000006,81365.259999999995,83051.97,84710.543999999994,86326.251000000004,87888.675000000003,89405.482000000004,90901.967000000004,92414.160999999993,93966.784,95570.048999999999,97212.638999999996,98871.558000000005,100513.137,102113.20600000001,103663.81200000001,105172.921,106651.394,null,47.061,47.557000000000002,48.070999999999998,48.600999999999999,49.145000000000003,49.697000000000003,50.25,50.795999999999999,51.326999999999998,51.837000000000003,52.323,52.781999999999996,53.218000000000004,53.633000000000003,54.027000000000001,54.399000000000001,54.747999999999998,55.073999999999998,55.381999999999998,55.679000000000002,55.970999999999997,56.265999999999998,56.569000000000003,56.886000000000003,57.220999999999997,57.579000000000001,57.962000000000003,58.366,58.783000000000001,59.209000000000003,59.636000000000003,60.052999999999997,60.454999999999998,60.837000000000003,61.198,61.539000000000001,61.866,62.188000000000002,62.509,62.829000000000001,63.143999999999998,63.445999999999998,63.731000000000002,63.994999999999997,64.242000000000004,64.477999999999994,64.712000000000003,64.953000000000003,65.207999999999998,65.48,65.769000000000005,66.072000000000003,66.381,66.69,66.995000000000005,67.290999999999997,67.576999999999998,67.850999999999999,68.116]
["Poland",29614.201000000001,30015.603999999999,30389.353999999999,30736.493999999999,31059.449000000001,31360.902999999998,31641.037,31901.687000000002,32149.536,32393.14,32639.261999999999,32890.387000000002,33147.078999999998,33411.591999999997,33685.785000000003,33970.730000000003,34266.103999999999,34571.226000000002,34885.807999999997,35209.249000000003,35539.722999999998,35878.44,36221.542999999998,36555.781999999999,36863.949000000001,37133.86,37359.519,37544.332000000002,37697.360000000001,37832.567999999999,37960.192999999999,38082.94,38197.588000000003,38301.349000000002,38389.468999999997,38458.642,38509.671999999999,38544.838000000003,38564.190999999999,38567.868000000002,38556.699000000001,38529.584999999999,38488.639999999999,38441.821000000004,38399.553,38368.957000000002,38354.447,38353.339,38356.786,38351.923999999999,38329.784,38286.824000000001,38227.033000000003,38158.042999999998,38091.095000000001,38034.076000000001,37989.218000000001,37953.175999999999,37921.584999999999,null,47.061,47.557000000000002,48.070999999999998,48.600999999999999,49.145000000000003,49.697000000000003,50.25,50.795999999999999,51.326999999999998,51.837000000000003,52.323,52.781999999999996,53.218000000000004,53.633000000000003,54.027000000000001,54.399000000000001,54.747999999999998,55.073999999999998,55.381999999999998,55.679000000000002,55.970999999999997,56.265999999999998,56.569000000000003,56.886000000000003,57.220999999999997,57.579000000000001,57.962000000000003,58.366,58.783000000000001,59.209000000000003,59.636000000000003,60.052999999999997,60.454999999999998,60.837000000000003,61.198,61.539000000000001,61.866,62.188000000000002,62.509,62.829000000000001,63.143999999999998,63.445999999999998,63.731000000000002,63.994999999999997,64.242000000000004,64.477999999999994,64.712000000000003,64.953000000000003,65.207999999999998,65.48,65.769000000000005,66.072000000000003,66.381,66.69,66.995000000000005,67.290999999999997,67.576999999999998,67.850999999999999,68.116]
["Polynesia",306.791,315.923,325.95600000000002,336.72199999999998,347.67500000000001,358.53899999999999,369.20699999999999,379.66699999999997,389.762,399.24900000000002,407.99200000000002,415.86399999999998,422.94,429.45100000000002,435.77499999999998,442.101,448.55900000000003,455.072,461.77199999999999,468.63900000000001,475.762,483.21199999999999,490.90300000000002,498.80099999999999,506.62900000000002,514.29100000000005,521.72299999999996,528.96299999999997,536.05899999999997,543.03800000000001,549.95799999999997,556.76400000000001,563.50599999999997,570.19000000000005,576.84400000000005,583.46199999999999,590.13,596.71500000000003,603.30399999999997,609.84,616.38900000000001,622.98,629.577,635.80100000000004,641.32799999999997,645.87199999999996,649.35500000000002,651.83699999999999,653.67399999999998,655.21500000000003,656.80799999999999,658.529,660.38,662.36199999999997,664.56700000000001,667.01400000000001,669.73599999999999,672.75800000000004,676.06600000000003,null,47.061,47.557000000000002,48.070999999999998,48.600999999999999,49.145000000000003,49.697000000000003,50.25,50.795999999999999,51.326999999999998,51.837000000000003,52.323,52.781999999999996,53.218000000000004,53.633000000000003,54.027000000000001,54.399000000000001,54.747999999999998,55.073999999999998,55.381999999999998,55.679000000000002,55.970999999999997,56.265999999999998,56.569000000000003,56.886000000000003,57.220999999999997,57.579000000000001,57.962000000000003,58.366,58.783000000000001,59.209000000000003,59.636000000000003,60.052999999999997,60.454999999999998,60.837000000000003,61.198,61.539000000000001,61.866,62.188000000000002,62.509,62.829000000000001,63.143999999999998,63.445999999999998,63.731000000000002,63.994999999999997,64.242000000000004,64.477999999999994,64.712000000000003,64.953000000000003,65.207999999999998,65.48,65.769000000000005,66.072000000000003,66.381,66.69,66.995000000000005,67.290999999999997,67.576999999999998,67.850999999999999,68.116]
["Portugal",8844.6380000000008,8869.9889999999996,8888.509,8896.2659999999996,8888.2260000000006,8862.277,8814.7739999999994,8750.8629999999994,8687.8729999999996,8649.2489999999998,8651.3340000000007,8700,8789.11,8907.9279999999999,9039.9770000000008,9172.24,9302.2970000000005,9431.0360000000001,9552.6090000000004,9660.7489999999998,9750.9660000000003,9820.8680000000004,9870.8220000000001,9902.9920000000002,9921.2430000000004,9929.1759999999995,9926.4259999999995,9914.0730000000003,9899.1980000000003,9890.8230000000003,9895.3580000000002,9916.0519999999997,9951.3050000000003,9996.6419999999998,10045.031999999999,10091.322,10134.016,10174.564,10214.046,10254.501,10297.117,10341.456,10385.993,10429.615,10470.925999999999,10508.494000000001,10542.837,10573.15,10595.312,10604.066000000001,10596.055,10569.388000000001,10526.308000000001,10473.025,10418.224,10368.346,10325.540000000001,10288.527,10256.191999999999,null,47.061,47.557000000000002,48.070999999999998,48.600999999999999,49.145000000000003,49.697000000000003,50.25,50.795999999999999,51.326999999999998,51.837000000000003,52.323,52.781999999999996,53.218000000000004,53.633000000000003,54.027000000000001,54.399000000000001,54.747999999999998,55.073999999999998,55.381999999999998,55.679000000000002,55.970999999999997,56.265999999999998,56.569000000000003,56.886000000000003,57.220999999999997,57.579000000000001,57.962000000000003,58.366,58.783000000000001,59.209000000000003,59.636000000000003,60.052999999999997,60.454999999999998,60.837000000000003,61.198,61.539000000000001,61.866,62.188000000000002,62.509,62.829000000000001,63.143999999999998,63.445999999999998,63.731000000000002,63.994999999999997,64.242000000000004,64.477999999999994,64.712000000000003,64.953000000000003,65.207999999999998,65.48,65.769000000000005,66.072000000000003,66.381,66.69,66.995000000000005,67.290999999999997,67.576999999999998,67.850999999999999,68.116]
["Puerto Rico",2294.971,2333.6619999999998,2378.3780000000002,2425.35,2469.5680000000002,2507.5369999999998,2537.5659999999998,2561.0340000000001,2581.3879999999999,2603.7130000000002,2631.7,2666.165,2705.84,2749.8629999999998,2796.6619999999998,2844.9250000000002,2894.672,2945.8470000000002,2996.84,3045.6039999999998,3090.6880000000001,3131.5070000000001,3168.3440000000001,3201.864,3233.1689999999999,3263.1729999999998,3291.7469999999998,3318.8380000000002,3345.5709999999999,3373.373,3403.1680000000001,3435.2550000000001,3469.0709999999999,3503.47,3536.806,3567.6909999999998,3596.0990000000002,3621.9,3643.672,3659.73,3668.9549999999999,3670.308,3664.3209999999999,3653.66,3642.0050000000001,3631.8850000000002,3623.7829999999999,3616.3409999999999,3608.03,3596.5320000000002,3579.8420000000001,3559.8620000000001,3536.57,3503.8649999999998,3453.6669999999999,3381.5120000000002,3283.1210000000001,3163.6759999999999,3039.598,null,47.061,47.557000000000002,48.070999999999998,48.600999999999999,49.145000000000003,49.697000000000003,50.25,50.795999999999999,51.326999999999998,51.837000000000003,52.323,52.781999999999996,53.218000000000004,53.633000000000003,54.027000000000001,54.399000000000001,54.747999999999998,55.073999999999998,55.381999999999998,55.679000000000002,55.970999999999997,56.265999999999998,56.569000000000003,56.886000000000003,57.220999999999997,57.579000000000001,57.962000000000003,58.366,58.783000000000001,59.209000000000003,59.636000000000003,60.052999999999997,60.454999999999998,60.837000000000003,61.198,61.539000000000001,61.866,62.188000000000002,62.509,62.829000000000001,63.143999999999998,63.445999999999998,63.731000000000002,63.994999999999997,64.242000000000004,64.477999999999994,64.712000000000003,64.953000000000003,65.207999999999998,65.48,65.769000000000005,66.072000000000003,66.381,66.69,66.995000000000005,67.290999999999997,67.576999999999998,67.850999999999999,68.116]
["Qatar",47.383000000000003,51.427,56.265999999999998,61.720999999999997,67.561999999999998,73.631,79.849999999999994,86.298000000000002,93.206000000000003,100.88,109.521,119.413,130.505,142.18100000000001,153.624,164.31399999999999,173.71600000000001,182.31899999999999,191.947,205.172,223.62200000000001,247.98400000000001,277.22899999999998,309.29899999999998,341.27199999999999,370.88600000000002,397.73899999999998,422.154,443.61099999999999,461.68799999999999,476.27499999999998,487.35399999999998,495.40300000000002,501.47899999999998,507.04399999999998,513.447,522.53099999999995,535.32000000000005,551.56600000000003,570.48599999999999,592.46699999999998,615.01300000000003,640.87199999999996,681.79100000000005,753.33199999999999,865.41,1022.704,1218.441,1436.67,1654.944,1856.329,2035.8620000000001,2196.078,2336.5790000000002,2459.2020000000002,2565.7080000000001,2654.3789999999999,2724.7269999999999,2781.6819999999998,null,47.061,47.557000000000002,48.070999999999998,48.600999999999999,49.145000000000003,49.697000000000003,50.25,50.795999999999999,51.326999999999998,51.837000000000003,52.323,52.781999999999996,53.218000000000004,53.633000000000003,54.027000000000001,54.399000000000001,54.747999999999998,55.073999999999998,55.381999999999998,55.679000000000002,55.970999999999997,56.265999999999998,56.569000000000003,56.886000000000003,57.220999999999997,57.579000000000001,57.962000000000003,58.366,58.783000000000001,59.209000000000003,59.636000000000003,60.052999999999997,60.454999999999998,60.837000000000003,61.198,61.539000000000001,61.866,62.188000000000002,62.509,62.829000000000001,63.143999999999998,63.445999999999998,63.731000000000002,63.994999999999997,64.242000000000004,64.477999999999994,64.712000000000003,64.953000000000003,65.207999999999998,65.48,65.769000000000005,66.072000000000003,66.381,66.69,66.995000000000005,67.290999999999997,67.576999999999998,67.850999999999999,68.116]
["Republic of Korea",25329.521000000001,26084.025000000001,26812.083999999999,27517.54,28209.737000000001,28895.557000000001,29572.554,30236.690999999999,30891.968000000001,31543.830999999998,32195.679,32850.724999999999,33506.521999999997,34154.091,34780.885999999999,35378.656999999999,35942.033000000003,36475.425000000003,36992.188000000002,37511.303,38045.605000000003,38602.286999999997,39175.220999999998,39747.794000000002,40296.230000000003,40804.406000000003,41265.123,41686.565999999999,42086.667999999998,42491.199999999997,42918.415999999997,43373.148000000001,43848.222999999998,44335.036999999997,44820.07,45292.521000000001,45751.023000000001,46196.055999999997,46620.697999999997,47016.951999999997,47379.237000000001,47706.226000000002,47999.550999999999,48260.900999999998,48493.434000000001,48701.069000000003,48880.449000000001,49034.813000000002,49182.457999999999,49347.45,49545.637999999999,49786.152999999998,50060.639000000003,50345.72,50607.904000000002,50823.087,50983.446000000004,51096.408000000003,51171.7,null,47.061,47.557000000000002,48.070999999999998,48.600999999999999,49.145000000000003,49.697000000000003,50.25,50.795999999999999,51.326999999999998,51.837000000000003,52.323,52.781999999999996,53.218000000000004,53.633000000000003,54.027000000000001,54.399000000000001,54.747999999999998,55.073999999999998,55.381999999999998,55.679000000000002,55.970999999999997,56.265999999999998,56.569000000000003,56.886000000000003,57.220999999999997,57.579000000000001,57.962000000000003,58.366,58.783000000000001,59.209000000000003,59.636000000000003,60.052999999999997,60.454999999999998,60.837000000000003,61.198,61.539000000000001,61.866,62.188000000000002,62.509,62.829000000000001,63.143999999999998,63.445999999999998,63.731000000000002,63.994999999999997,64.242000000000004,64.477999999999994,64.712000000000003,64.953000000000003,65.207999999999998,65.48,65.769000000000005,66.072000000000003,66.381,66.69,66.995000000000005,67.290999999999997,67.576999999999998,67.850999999999999,68.116]
["Republic of Moldova",3004.4459999999999,3076.893,3146.547,3213.0830000000001,3276.431,3336.5929999999998,3393.047,3445.8359999999998,3496.1289999999999,3545.6509999999998,3595.549,3646.5709999999999,3698.23,3749.0129999999999,3796.768,3840.0459999999998,3878.1019999999999,3911.8090000000002,3943.33,3975.7220000000002,4011.085,4049.8739999999998,4091.1320000000001,4133.7299999999996,4175.9319999999998,4216.2439999999997,4254.5259999999998,4290.4840000000004,4322.3379999999997,4347.87,4365.5619999999999,4375.0529999999999,4376.8040000000001,4371.1549999999997,4358.79,4340.6019999999999,4316.2250000000004,4286.4769999999999,4254.835,4225.835,4202.6589999999997,4187.0969999999998,4178.2280000000001,4173.2759999999998,4167.9620000000004,4159.2960000000003,4146.2640000000001,4130.1289999999999,4112.8860000000004,4097.5150000000003,4086.09,4079.1669999999999,4075.8040000000001,4074.585,4073.4070000000002,4070.7049999999999,4066.0129999999999,4059.6869999999999,4051.95,null,47.061,47.557000000000002,48.070999999999998,48.600999999999999,49.145000000000003,49.697000000000003,50.25,50.795999999999999,51.326999999999998,51.837000000000003,52.323,52.781999999999996,53.218000000000004,53.633000000000003,54.027000000000001,54.399000000000001,54.747999999999998,55.073999999999998,55.381999999999998,55.679000000000002,55.970999999999997,56.265999999999998,56.569000000000003,56.886000000000003,57.220999999999997,57.579000000000001,57.962000000000003,58.366,58.783000000000001,59.209000000000003,59.636000000000003,60.052999999999997,60.454999999999998,60.837000000000003,61.198,61.539000000000001,61.866,62.188000000000002,62.509,62.829000000000001,63.143999999999998,63.445999999999998,63.731000000000002,63.994999999999997,64.242000000000004,64.477999999999994,64.712000000000003,64.953000000000003,65.207999999999998,65.48,65.769000000000005,66.072000000000003,66.381,66.69,66.995000000000005,67.290999999999997,67.576999999999998,67.850999999999999,68.116]
["Romania",18613.945,18780.21,18924.151999999998,19059.934000000001,19207.138999999999,19379.575000000001,19582.331999999999,19810.612000000001,20055.975999999999,20305.348000000002,20548.912,20783.555,21011.147000000001,21232.621999999999,21450.404999999999,21665.64,21879.077000000001,22087.896000000001,22285.505000000001,22463.31,22615.644,22737.208999999999,22830.546999999999,22907.295999999998,22983.962,23071.258000000002,23175.055,23288.387999999999,23393.739000000001,23466.413,23489.155999999999,23456.646000000001,23375.828000000001,23256.958999999999,23115.813999999998,22964.746999999999,22805.705999999998,22637.599999999999,22466.291000000001,22298.121999999999,22137.422999999999,21989.353999999999,21853.277999999998,21720.402999999998,21577.89,21417.287,21234.312000000002,21034.196,20829.521000000001,20637.994999999999,20471.86,20336.718000000001,20227.467000000001,20132.78,20035.928,19925.182000000001,19796.28,19653.966,19506.11,null,47.061,47.557000000000002,48.070999999999998,48.600999999999999,49.145000000000003,49.697000000000003,50.25,50.795999999999999,51.326999999999998,51.837000000000003,52.323,52.781999999999996,53.218000000000004,53.633000000000003,54.027000000000001,54.399000000000001,54.747999999999998,55.073999999999998,55.381999999999998,55.679000000000002,55.970999999999997,56.265999999999998,56.569000000000003,56.886000000000003,57.220999999999997,57.579000000000001,57.962000000000003,58.366,58.783000000000001,59.209000000000003,59.636000000000003,60.052999999999997,60.454999999999998,60.837000000000003,61.198,61.539000000000001,61.866,62.188000000000002,62.509,62.829000000000001,63.143999999999998,63.445999999999998,63.731000000000002,63.994999999999997,64.242000000000004,64.477999999999994,64.712000000000003,64.953000000000003,65.207999999999998,65.48,65.769000000000005,66.072000000000003,66.381,66.69,66.995000000000005,67.290999999999997,67.576999999999998,67.850999999999999,68.116]
["Rwanda",2935.5749999999998,2998.3339999999998,3052.9369999999999,3105.4169999999999,3164.2579999999998,3235.5360000000001,3321.674,3420.8969999999999,3529.8389999999999,3643.2370000000001,3757.3510000000001,3871.4279999999999,3987.223,4106.4110000000001,4231.5789999999997,4364.7089999999998,4506.1090000000004,4655.3860000000004,4812.8720000000003,4978.8119999999999,5153.3140000000003,5329.25,5504.8469999999998,5690.9889999999996,5902.8469999999998,6146.884,6443.7479999999996,6779.9809999999998,7088.1940000000004,7276.9830000000002,7288.8829999999998,7083.9279999999999,6702.2389999999996,6263.7579999999998,5936.2529999999997,5836.49,6013.1120000000001,6419.8980000000001,6962.8,7501.2380000000003,7933.6880000000001,8231.15,8427.0609999999997,8557.16,8680.5159999999996,8840.2199999999993,9043.3420000000006,9273.759,9524.5319999999992,9782.77,10039.338,10293.333000000001,10549.668,10811.538,11083.629000000001,11369.066000000001,11668.829,11980.96,12301.968999999999,null,47.061,47.557000000000002,48.070999999999998,48.600999999999999,49.145000000000003,49.697000000000003,50.25,50.795999999999999,51.326999999999998,51.837000000000003,52.323,52.781999999999996,53.218000000000004,53.633000000000003,54.027000000000001,54.399000000000001,54.747999999999998,55.073999999999998,55.381999999999998,55.679000000000002,55.970999999999997,56.265999999999998,56.569000000000003,56.886000000000003,57.220999999999997,57.579000000000001,57.962000000000003,58.366,58.783000000000001,59.209000000000003,59.636000000000003,60.052999999999997,60.454999999999998,60.837000000000003,61.198,61.539000000000001,61.866,62.188000000000002,62.509,62.829000000000001,63.143999999999998,63.445999999999998,63.731000000000002,63.994999999999997,64.242000000000004,64.477999999999994,64.712000000000003,64.953000000000003,65.207999999999998,65.48,65.769000000000005,66.072000000000003,66.381,66.69,66.995000000000005,67.290999999999997,67.576999999999998,67.850999999999999,68.116]
["Samoa",108.627,112.11199999999999,115.768,119.55200000000001,123.346,127.05500000000001,130.672,134.18100000000001,137.48400000000001,140.495,143.14599999999999,145.40700000000001,147.29499999999999,148.858,150.191,151.35300000000001,152.36199999999999,153.21799999999999,153.98599999999999,154.74,155.52199999999999,156.41,157.36500000000001,158.345,159.24299999999999,159.995,160.55199999999999,160.96199999999999,161.369,161.935,162.797,164,165.49,167.11699999999999,168.68899999999999,170.05,171.16499999999999,172.065,172.839,173.60599999999999,174.45400000000001,175.39400000000001,176.41,177.48099999999999,178.59700000000001,179.72200000000001,180.874,182.04499999999999,183.27,184.553,185.94399999999999,187.46899999999999,189.089,190.71199999999999,192.22,193.51,194.54,195.358,196.12799999999999,null,47.061,47.557000000000002,48.070999999999998,48.600999999999999,49.145000000000003,49.697000000000003,50.25,50.795999999999999,51.326999999999998,51.837000000000003,52.323,52.781999999999996,53.218000000000004,53.633000000000003,54.027000000000001,54.399000000000001,54.747999999999998,55.073999999999998,55.381999999999998,55.679000000000002,55.970999999999997,56.265999999999998,56.569000000000003,56.886000000000003,57.220999999999997,57.579000000000001,57.962000000000003,58.366,58.783000000000001,59.209000000000003,59.636000000000003,60.052999999999997,60.454999999999998,60.837000000000003,61.198,61.539000000000001,61.866,62.188000000000002,62.509,62.829000000000001,63.143999999999998,63.445999999999998,63.731000000000002,63.994999999999997,64.242000000000004,64.477999999999994,64.712000000000003,64.953000000000003,65.207999999999998,65.48,65.769000000000005,66.072000000000003,66.381,66.69,66.995000000000005,67.290999999999997,67.576999999999998,67.850999999999999,68.116]
["San Marino",15.44,15.836,16.254999999999999,16.669,17.100999999999999,17.507999999999999,17.919,18.309000000000001,18.667999999999999,18.98,19.224,19.393000000000001,19.489999999999998,19.561,19.661000000000001,19.829000000000001,20.085999999999999,20.396999999999998,20.763999999999999,21.122,21.452999999999999,21.760999999999999,22.042999999999999,22.295000000000002,22.545999999999999,22.794,23.045999999999999,23.297000000000001,23.547999999999998,23.832999999999998,24.123999999999999,24.454000000000001,24.83,25.207999999999998,25.588000000000001,25.925000000000001,26.253,26.562999999999999,26.850999999999999,27.140999999999998,27.46,27.818000000000001,28.175000000000001,28.561,28.942,29.324000000000002,29.693999999999999,30.068000000000001,30.434000000000001,30.824999999999999,31.221,31.655000000000001,32.103000000000002,32.554000000000002,32.941000000000003,33.270000000000003,33.503,33.670999999999999,33.783999999999999,null,47.061,47.557000000000002,48.070999999999998,48.600999999999999,49.145000000000003,49.697000000000003,50.25,50.795999999999999,51.326999999999998,51.837000000000003,52.323,52.781999999999996,53.218000000000004,53.633000000000003,54.027000000000001,54.399000000000001,54.747999999999998,55.073999999999998,55.381999999999998,55.679000000000002,55.970999999999997,56.265999999999998,56.569000000000003,56.886000000000003,57.220999999999997,57.579000000000001,57.962000000000003,58.366,58.783000000000001,59.209000000000003,59.636000000000003,60.052999999999997,60.454999999999998,60.837000000000003,61.198,61.539000000000001,61.866,62.188000000000002,62.509,62.829000000000001,63.143999999999998,63.445999999999998,63.731000000000002,63.994999999999997,64.242000000000004,64.477999999999994,64.712000000000003,64.953000000000003,65.207999999999998,65.48,65.769000000000005,66.072000000000003,66.381,66.69,66.995000000000005,67.290999999999997,67.576999999999998,67.850999999999999,68.116]
["Sao Tome and Principe",64.293999999999997,64.596999999999994,64.477999999999994,64.236999999999995,64.278000000000006,64.884,66.171999999999997,68.039000000000001,70.257999999999996,72.501000000000005,74.569999999999993,76.343999999999994,77.930000000000007,79.462999999999994,81.147999999999996,83.134,85.474999999999994,88.102000000000004,90.846000000000004,93.457999999999998,95.787999999999997,97.766999999999996,99.477999999999994,101.06399999999999,102.82599999999999,104.926,107.429,110.259,113.288,116.313,119.211,121.949,124.574,127.066,129.42599999999999,131.679,133.79900000000001,135.83099999999999,137.85499999999999,139.964,142.26400000000001,144.76,147.44999999999999,150.405,153.73599999999999,157.47200000000001,161.67599999999999,166.297,171.12200000000001,175.87700000000001,180.37200000000001,184.52099999999999,188.39400000000001,192.07599999999999,195.727,199.43899999999999,203.221,207.08600000000001,211.03200000000001,null,47.061,47.557000000000002,48.070999999999998,48.600999999999999,49.145000000000003,49.697000000000003,50.25,50.795999999999999,51.326999999999998,51.837000000000003,52.323,52.781999999999996,53.218000000000004,53.633000000000003,54.027000000000001,54.399000000000001,54.747999999999998,55.073999999999998,55.381999999999998,55.679000000000002,55.970999999999997,56.265999999999998,56.569000000000003,56.886000000000003,57.220999999999997,57.579000000000001,57.962000000000003,58.366,58.783000000000001,59.209000000000003,59.636000000000003,60.052999999999997,60.454999999999998,60.837000000000003,61.198,61.539000000000001,61.866,62.188000000000002,62.509,62.829000000000001,63.143999999999998,63.445999999999998,63.731000000000002,63.994999999999997,64.242000000000004,64.477999999999994,64.712000000000003,64.953000000000003,65.207999999999998,65.48,65.769000000000005,66.072000000000003,66.381,66.69,66.995000000000005,67.290999999999997,67.576999999999998,67.850999999999999,68.116]
["Saudi Arabia",4086.5340000000001,4218.8519999999999,4362.7879999999996,4516.54,4677.3040000000001,4843.6319999999996,5015.3530000000001,5195.1239999999998,5387.8220000000001,5599.9089999999997,5836.3879999999999,6100.6310000000003,6392.973,6711.9219999999996,7054.5320000000002,7419.4859999999999,7802.9279999999999,8207.6949999999997,8646.8449999999993,9137.9279999999999,9691.4709999999995,10311.771000000001,10988.851000000001,11701.132,12418.835999999999,13118.998,13794.166999999999,14445.663,15070.082,15666.289000000001,16233.786,16772.695,17282.686000000002,17763.296999999999,18214.474999999999,18638.79,19033.843000000001,19407.137999999999,19783.300999999999,20194.530999999999,20663.84,21202.646000000001,21805.322,22456.645,23132.686000000002,23816.174999999999,24498.312999999998,25184.589,25888.535,26630.303,27421.468000000001,28267.591,29154.905999999999,30052.058000000001,30916.602999999999,31717.675999999999,32443.442999999999,33101.182999999997,33702.756999999998,null,47.061,47.557000000000002,48.070999999999998,48.600999999999999,49.145000000000003,49.697000000000003,50.25,50.795999999999999,51.326999999999998,51.837000000000003,52.323,52.781999999999996,53.218000000000004,53.633000000000003,54.027000000000001,54.399000000000001,54.747999999999998,55.073999999999998,55.381999999999998,55.679000000000002,55.970999999999997,56.265999999999998,56.569000000000003,56.886000000000003,57.220999999999997,57.579000000000001,57.962000000000003,58.366,58.783000000000001,59.209000000000003,59.636000000000003,60.052999999999997,60.454999999999998,60.837000000000003,61.198,61.539000000000001,61.866,62.188000000000002,62.509,62.829000000000001,63.143999999999998,63.445999999999998,63.731000000000002,63.994999999999997,64.242000000000004,64.477999999999994,64.712000000000003,64.953000000000003,65.207999999999998,65.48,65.769000000000005,66.072000000000003,66.381,66.69,66.995000000000005,67.290999999999997,67.576999999999998,67.850999999999999,68.116]
["Senegal",3206.7570000000001,3295.28,3386.8029999999999,3481.654,3580.241,3682.8789999999999,3789.3809999999999,3899.6480000000001,4014.107,4133.3239999999996,4257.5079999999998,4387.5320000000002,4522.8860000000004,4660.7259999999997,4797.1880000000001,4929.8459999999995,5057.375,5181.5050000000001,5306.6850000000004,5439.0690000000004,5583.1570000000002,5740.4409999999998,5909.7340000000004,6089.567,6277.42,6471.3289999999997,6670.665,6875.7460000000001,7086.6239999999998,7303.5110000000004,7526.3059999999996,7755.5029999999997,7990.09,8226.7489999999998,8461.0660000000007,8690.1550000000007,8912.8719999999994,9130.8760000000002,9347.777,9568.7170000000006,9797.7309999999998,10036.102000000001,10283.694,10541.47,10810.085999999999,11090.123,11382.272000000001,11687.078,12004.7,12335.092000000001,12678.143,13033.814,13401.99,13782.429,14174.74,14578.45,14993.513999999999,15419.353999999999,15854.324000000001,null,47.061,47.557000000000002,48.070999999999998,48.600999999999999,49.145000000000003,49.697000000000003,50.25,50.795999999999999,51.326999999999998,51.837000000000003,52.323,52.781999999999996,53.218000000000004,53.633000000000003,54.027000000000001,54.399000000000001,54.747999999999998,55.073999999999998,55.381999999999998,55.679000000000002,55.970999999999997,56.265999999999998,56.569000000000003,56.886000000000003,57.220999999999997,57.579000000000001,57.962000000000003,58.366,58.783000000000001,59.209000000000003,59.636000000000003,60.052999999999997,60.454999999999998,60.837000000000003,61.198,61.539000000000001,61.866,62.188000000000002,62.509,62.829000000000001,63.143999999999998,63.445999999999998,63.731000000000002,63.994999999999997,64.242000000000004,64.477999999999994,64.712000000000003,64.953000000000003,65.207999999999998,65.48,65.769000000000005,66.072000000000003,66.381,66.69,66.995000000000005,67.290999999999997,67.576999999999998,67.850999999999999,68.116]
["Serbia",7556.732,7613.3580000000002,7669.607,7725.4979999999996,7780.6869999999999,7835.085,7888.8029999999999,7942.6360000000004,7997.9970000000003,8056.665,8119.8649999999998,8187.9939999999997,8260.6260000000002,8337.0730000000003,8416.2549999999992,8497.1720000000005,8579.634,8663.33,8746.9789999999994,8829.0360000000001,8908.2950000000001,8984.5969999999998,9057.9709999999995,9127.6749999999993,9192.92,9253.3960000000006,9306.3469999999998,9352.1489999999994,9397.31,9450.77,9517.6769999999997,9602.8790000000008,9701.1450000000004,9795.2530000000006,9861.6309999999994,9884.1450000000004,9856.0640000000003,9784.6890000000003,9685.43,9580.8240000000005,9487.6119999999992,9410.7690000000002,9346.4639999999999,9292.232,9242.643,9193.8179999999993,9145.9130000000005,9101.1890000000003,9060.1049999999996,9023.3539999999994,8991.2579999999998,8963.7610000000004,8940.116,8918.8919999999998,8898.2839999999997,8876.777,8853.9629999999997,8829.6229999999996,8802.741,null,47.061,47.557000000000002,48.070999999999998,48.600999999999999,49.145000000000003,49.697000000000003,50.25,50.795999999999999,51.326999999999998,51.837000000000003,52.323,52.781999999999996,53.218000000000004,53.633000000000003,54.027000000000001,54.399000000000001,54.747999999999998,55.073999999999998,55.381999999999998,55.679000000000002,55.970999999999997,56.265999999999998,56.569000000000003,56.886000000000003,57.220999999999997,57.579000000000001,57.962000000000003,58.366,58.783000000000001,59.209000000000003,59.636000000000003,60.052999999999997,60.454999999999998,60.837000000000003,61.198,61.539000000000001,61.866,62.188000000000002,62.509,62.829000000000001,63.143999999999998,63.445999999999998,63.731000000000002,63.994999999999997,64.242000000000004,64.477999999999994,64.712000000000003,64.953000000000003,65.207999999999998,65.48,65.769000000000005,66.072000000000003,66.381,66.69,66.995000000000005,67.290999999999997,67.576999999999998,67.850999999999999,68.116]
["Seychelles",41.610999999999997,42.46,43.460999999999999,44.545999999999999,45.677999999999997,46.786999999999999,47.866,48.915999999999997,49.997999999999998,51.131999999999998,52.371000000000002,53.713999999999999,55.127000000000002,56.609000000000002,58.095999999999997,59.584000000000003,61.043999999999997,62.482999999999997,63.85,65.114000000000004,66.236999999999995,67.242000000000004,68.12,68.837000000000003,69.402000000000001,69.772000000000006,69.941000000000003,69.945999999999998,69.924999999999997,70.088999999999999,70.572000000000003,71.445999999999998,72.661000000000001,74.070999999999998,75.444000000000003,76.653000000000006,77.596999999999994,78.356999999999999,79.063999999999993,79.903999999999996,80.998000000000005,82.412999999999997,84.076999999999998,85.807000000000002,87.388000000000005,88.652000000000001,89.528000000000006,90.081999999999994,90.45,90.787999999999997,91.272999999999996,91.882000000000005,92.608000000000004,93.397000000000006,94.213999999999999,94.980999999999995,95.710999999999999,96.418000000000006,97.093999999999994,null,47.061,47.557000000000002,48.070999999999998,48.600999999999999,49.145000000000003,49.697000000000003,50.25,50.795999999999999,51.326999999999998,51.837000000000003,52.323,52.781999999999996,53.218000000000004,53.633000000000003,54.027000000000001,54.399000000000001,54.747999999999998,55.073999999999998,55.381999999999998,55.679000000000002,55.970999999999997,56.265999999999998,56.569000000000003,56.886000000000003,57.220999999999997,57.579000000000001,57.962000000000003,58.366,58.783000000000001,59.209000000000003,59.636000000000003,60.052999999999997,60.454999999999998,60.837000000000003,61.198,61.539000000000001,61.866,62.188000000000002,62.509,62.829000000000001,63.143999999999998,63.445999999999998,63.731000000000002,63.994999999999997,64.242000000000004,64.477999999999994,64.712000000000003,64.953000000000003,65.207999999999998,65.48,65.769000000000005,66.072000000000003,66.381,66.69,66.995000000000005,67.290999999999997,67.576999999999998,67.850999999999999,68.116]
["Sierra Leone",2317.6379999999999,2352.37,2388.759,2426.864,2466.6709999999998,2508.2260000000001,2551.58,2596.7979999999998,2644.011,2693.3440000000001,2744.89,2798.7269999999999,2854.866,2913.3470000000002,2974.105,3037.1579999999999,3102.5949999999998,3170.5030000000002,3240.8409999999999,3313.5059999999999,3388.4940000000001,3464.1129999999998,3540.1640000000002,3619.8539999999998,3707.5129999999999,3805.3040000000001,3916.6849999999999,4038.154,4156.6360000000004,4254.4340000000002,4319.7629999999999,4348.6629999999996,4347.7269999999999,4328.9650000000001,4309.78,4303.9530000000004,4312.66,4335.2950000000001,4381.4840000000004,4462.3739999999998,4584.57,4754.0690000000004,4965.7700000000004,5201.0739999999996,5433.9949999999999,5645.6289999999999,5829.24,5989.6409999999996,6133.5990000000002,6272.7349999999997,6415.6360000000004,6563.2380000000003,6712.5860000000002,6863.9750000000004,7017.1530000000002,7171.9089999999997,7328.8459999999995,7488.4269999999997,7650.1490000000003,null,47.061,47.557000000000002,48.070999999999998,48.600999999999999,49.145000000000003,49.697000000000003,50.25,50.795999999999999,51.326999999999998,51.837000000000003,52.323,52.781999999999996,53.218000000000004,53.633000000000003,54.027000000000001,54.399000000000001,54.747999999999998,55.073999999999998,55.381999999999998,55.679000000000002,55.970999999999997,56.265999999999998,56.569000000000003,56.886000000000003,57.220999999999997,57.579000000000001,57.962000000000003,58.366,58.783000000000001,59.209000000000003,59.636000000000003,60.052999999999997,60.454999999999998,60.837000000000003,61.198,61.539000000000001,61.866,62.188000000000002,62.509,62.829000000000001,63.143999999999998,63.445999999999998,63.731000000000002,63.994999999999997,64.242000000000004,64.477999999999994,64.712000000000003,64.953000000000003,65.207999999999998,65.48,65.769000000000005,66.072000000000003,66.381,66.69,66.995000000000005,67.290999999999997,67.576999999999998,67.850999999999999,68.116]
["Singapore",1633.133,1689.6,1741.4570000000001,1789.374,1834.5170000000001,1877.826,1919.2739999999999,1958.7349999999999,1996.87,2034.5139999999999,2072.2840000000001,2110.9580000000001,2150.498,2189.6089999999999,2226.377,2259.721,2288.86,2314.9879999999998,2341.4009999999998,2372.5940000000001,2411.69,2460.5030000000002,2517.9830000000002,2580.915,2644.4949999999999,2705.5369999999998,2762.442,2816.9740000000002,2873.279,2937.277,3012.9679999999998,3101.1439999999998,3199.6419999999998,3305.8009999999999,3415.701,3525.9639999999999,3638.1770000000001,3752.1309999999999,3860.721,3954.741,4028.8719999999998,4077.15,4104.4070000000002,4129.2269999999999,4177.2020000000002,4265.6930000000002,4402.3239999999996,4578.6289999999999,4775.8100000000004,4966.6139999999996,5131.17,5263.64,5369.4690000000001,5453.732,5525.6279999999997,5592.143,5653.625,5708.0420000000004,5757.5029999999997,null,47.061,47.557000000000002,48.070999999999998,48.600999999999999,49.145000000000003,49.697000000000003,50.25,50.795999999999999,51.326999999999998,51.837000000000003,52.323,52.781999999999996,53.218000000000004,53.633000000000003,54.027000000000001,54.399000000000001,54.747999999999998,55.073999999999998,55.381999999999998,55.679000000000002,55.970999999999997,56.265999999999998,56.569000000000003,56.886000000000003,57.220999999999997,57.579000000000001,57.962000000000003,58.366,58.783000000000001,59.209000000000003,59.636000000000003,60.052999999999997,60.454999999999998,60.837000000000003,61.198,61.539000000000001,61.866,62.188000000000002,62.509,62.829000000000001,63.143999999999998,63.445999999999998,63.731000000000002,63.994999999999997,64.242000000000004,64.477999999999994,64.712000000000003,64.953000000000003,65.207999999999998,65.48,65.769000000000005,66.072000000000003,66.381,66.69,66.995000000000005,67.290999999999997,67.576999999999998,67.850999999999999,68.116]
["Slovakia",4140.1279999999997,4196.1689999999999,4249.2079999999996,4298.59,4343.4589999999998,4383.4459999999999,4418.201,4448.5510000000004,4476.8289999999997,4506.152,4538.8429999999998,4575.5619999999999,4615.8339999999998,4659.2780000000002,4705.1019999999999,4752.5370000000003,4801.74,4852.4939999999997,4903.2060000000001,4951.7889999999998,4996.7299999999996,5037.3389999999999,5073.8819999999996,5106.9830000000002,5137.6899999999996,5166.7870000000003,5194.3019999999997,5219.9669999999996,5244.0360000000001,5266.8050000000003,5288.4549999999999,5309.2290000000003,5329.0290000000005,5347.2120000000004,5362.8940000000002,5375.47,5384.7920000000004,5391.2020000000002,5395.2529999999997,5397.7089999999998,5399.2070000000003,5399.9949999999999,5400.1239999999998,5399.8440000000001,5399.3739999999998,5398.9620000000004,5398.674,5398.6930000000002,5399.3620000000001,5401.1490000000003,5404.2929999999997,5408.9319999999998,5414.8940000000002,5421.7209999999995,5428.7979999999998,5435.6139999999996,5442.0010000000002,5447.9030000000002,5453.0169999999998,null,47.061,47.557000000000002,48.070999999999998,48.600999999999999,49.145000000000003,49.697000000000003,50.25,50.795999999999999,51.326999999999998,51.837000000000003,52.323,52.781999999999996,53.218000000000004,53.633000000000003,54.027000000000001,54.399000000000001,54.747999999999998,55.073999999999998,55.381999999999998,55.679000000000002,55.970999999999997,56.265999999999998,56.569000000000003,56.886000000000003,57.220999999999997,57.579000000000001,57.962000000000003,58.366,58.783000000000001,59.209000000000003,59.636000000000003,60.052999999999997,60.454999999999998,60.837000000000003,61.198,61.539000000000001,61.866,62.188000000000002,62.509,62.829000000000001,63.143999999999998,63.445999999999998,63.731000000000002,63.994999999999997,64.242000000000004,64.477999999999994,64.712000000000003,64.953000000000003,65.207999999999998,65.48,65.769000000000005,66.072000000000003,66.381,66.69,66.995000000000005,67.290999999999997,67.576999999999998,67.850999999999999,68.116]
["Slovenia",1586.6279999999999,1596.5540000000001,1605.64,1614.019,1621.886,1629.4390000000001,1636.6610000000001,1643.6949999999999,1651.09,1659.5619999999999,1669.5840000000001,1681.432,1694.979,1709.9780000000001,1725.971,1742.6210000000001,1759.721,1777.3150000000001,1795.643,1815.106,1835.8420000000001,1857.8510000000001,1880.7070000000001,1903.548,1925.3119999999999,1945.1289999999999,1962.87,1978.498,1991.3869999999999,2000.8320000000001,2006.404,2007.78,2005.3520000000001,2000.56,1995.326,1991.126,1988.58,1987.4570000000001,1987.384,1987.625,1987.71,1987.4570000000001,1987.2650000000001,1987.855,1990.2260000000001,1994.979,2002.4269999999999,2012.1279999999999,2023.049,2033.807,2043.336,2051.2779999999998,2057.826,2063.12,2067.4879999999998,2071.1990000000001,2074.2049999999999,2076.395,2077.8359999999998,null,47.061,47.557000000000002,48.070999999999998,48.600999999999999,49.145000000000003,49.697000000000003,50.25,50.795999999999999,51.326999999999998,51.837000000000003,52.323,52.781999999999996,53.218000000000004,53.633000000000003,54.027000000000001,54.399000000000001,54.747999999999998,55.073999999999998,55.381999999999998,55.679000000000002,55.970999999999997,56.265999999999998,56.569000000000003,56.886000000000003,57.220999999999997,57.579000000000001,57.962000000000003,58.366,58.783000000000001,59.209000000000003,59.636000000000003,60.052999999999997,60.454999999999998,60.837000000000003,61.198,61.539000000000001,61.866,62.188000000000002,62.509,62.829000000000001,63.143999999999998,63.445999999999998,63.731000000000002,63.994999999999997,64.242000000000004,64.477999999999994,64.712000000000003,64.953000000000003,65.207999999999998,65.48,65.769000000000005,66.072000000000003,66.381,66.69,66.995000000000005,67.290999999999997,67.576999999999998,67.850999999999999,68.116]
["Solomon Islands",117.84699999999999,121.38500000000001,125.04,128.83799999999999,132.76599999999999,136.815,140.995,145.31899999999999,149.887,154.83000000000001,160.24,166.16300000000001,172.55,179.30600000000001,186.297,193.40100000000001,200.602,207.88499999999999,215.29900000000001,222.84100000000001,230.55,238.423,246.45099999999999,254.566,262.69099999999997,270.78699999999998,278.834,286.87099999999998,294.976,303.27199999999999,311.86900000000003,320.78100000000001,330.00400000000002,339.50099999999998,349.27300000000002,359.27600000000001,369.517,379.99799999999999,390.702,401.59199999999998,412.66500000000002,423.94900000000001,435.43400000000003,447.01600000000002,458.54899999999998,469.91800000000001,481.08600000000001,492.13299999999998,503.36599999999999,515.18200000000002,527.86099999999999,541.52200000000005,556.06600000000003,571.32899999999995,587.07899999999995,603.13300000000004,619.43799999999999,636.03,652.85599999999999,null,47.061,47.557000000000002,48.070999999999998,48.600999999999999,49.145000000000003,49.697000000000003,50.25,50.795999999999999,51.326999999999998,51.837000000000003,52.323,52.781999999999996,53.218000000000004,53.633000000000003,54.027000000000001,54.399000000000001,54.747999999999998,55.073999999999998,55.381999999999998,55.679000000000002,55.970999999999997,56.265999999999998,56.569000000000003,56.886000000000003,57.220999999999997,57.579000000000001,57.962000000000003,58.366,58.783000000000001,59.209000000000003,59.636000000000003,60.052999999999997,60.454999999999998,60.837000000000003,61.198,61.539000000000001,61.866,62.188000000000002,62.509,62.829000000000001,63.143999999999998,63.445999999999998,63.731000000000002,63.994999999999997,64.242000000000004,64.477999999999994,64.712000000000003,64.953000000000003,65.207999999999998,65.48,65.769000000000005,66.072000000000003,66.381,66.69,66.995000000000005,67.290999999999997,67.576999999999998,67.850999999999999,68.116]
["Somalia",2755.9670000000001,2814.125,2874.2150000000001,2936.4780000000001,3001.16,3068.4650000000001,3143.654,3227.835,3312.7350000000001,3386.7359999999999,3444.569,3472.357,3479.7919999999999,3512.6260000000002,3632.9859999999999,3880.2849999999999,4278.9740000000002,4802.134,5375.018,5892.7629999999999,6281.1379999999999,6511.1149999999998,6608.04,6618.5940000000001,6614.7129999999997,6648.6279999999997,6736.7510000000002,6862.2669999999998,7005.2259999999997,7133.2629999999999,7225.0889999999999,7274.0259999999998,7295.38,7315.8639999999996,7372.5919999999996,7491.6469999999999,7682.683,7936.1220000000003,8235.0640000000003,8553.5949999999993,8872.25,9186.7189999999991,9501.3349999999991,9815.4120000000003,10130.251,10446.856,10763.904,11080.121999999999,11397.188,11717.691000000001,12043.886,12376.305,12715.486999999999,13063.710999999999,13423.571,13797.204,14185.635,14589.165000000001,15008.225,null,47.061,47.557000000000002,48.070999999999998,48.600999999999999,49.145000000000003,49.697000000000003,50.25,50.795999999999999,51.326999999999998,51.837000000000003,52.323,52.781999999999996,53.218000000000004,53.633000000000003,54.027000000000001,54.399000000000001,54.747999999999998,55.073999999999998,55.381999999999998,55.679000000000002,55.970999999999997,56.265999999999998,56.569000000000003,56.886000000000003,57.220999999999997,57.579000000000001,57.962000000000003,58.366,58.783000000000001,59.209000000000003,59.636000000000003,60.052999999999997,60.454999999999998,60.837000000000003,61.198,61.539000000000001,61.866,62.188000000000002,62.509,62.829000000000001,63.143999999999998,63.445999999999998,63.731000000000002,63.994999999999997,64.242000000000004,64.477999999999994,64.712000000000003,64.953000000000003,65.207999999999998,65.48,65.769000000000005,66.072000000000003,66.381,66.69,66.995000000000005,67.290999999999997,67.576999999999998,67.850999999999999,68.116]
["South Africa",17099.835999999999,17524.532999999999,17965.733,18423.156999999999,18896.303,19384.838,19888.258999999998,20406.863000000001,20942.147000000001,21496.075000000001,22069.782999999999,22665.264999999999,23281.517,23913.09,24552.54,25195.184000000001,25836.89,26480.915000000001,27138.966,27827.325000000001,28556.771000000001,29333.095000000001,30150.448,30993.761999999999,31841.588,32678.876,33495.955999999998,34297.726999999999,35100.904999999999,35930.055999999997,36800.506999999998,37718.951999999997,38672.610999999997,39633.754000000001,40564.061000000002,41435.760999999999,42241.006999999998,42987.455999999998,43682.258999999998,44338.550999999999,44967.713000000003,45571.271999999997,46150.913,46719.203000000001,47291.61,47880.595000000001,48489.464,49119.766000000003,49779.472000000002,50477.012999999999,51216.966999999997,52003.758999999998,52832.659,53687.125,54544.184000000001,55386.368999999999,56207.648999999998,57009.750999999997,57792.52,null,47.061,47.557000000000002,48.070999999999998,48.600999999999999,49.145000000000003,49.697000000000003,50.25,50.795999999999999,51.326999999999998,51.837000000000003,52.323,52.781999999999996,53.218000000000004,53.633000000000003,54.027000000000001,54.399000000000001,54.747999999999998,55.073999999999998,55.381999999999998,55.679000000000002,55.970999999999997,56.265999999999998,56.569000000000003,56.886000000000003,57.220999999999997,57.579000000000001,57.962000000000003,58.366,58.783000000000001,59.209000000000003,59.636000000000003,60.052999999999997,60.454999999999998,60.837000000000003,61.198,61.539000000000001,61.866,62.188000000000002,62.509,62.829000000000001,63.143999999999998,63.445999999999998,63.731000000000002,63.994999999999997,64.242000000000004,64.477999999999994,64.712000000000003,64.953000000000003,65.207999999999998,65.48,65.769000000000005,66.072000000000003,66.381,66.69,66.995000000000005,67.290999999999997,67.576999999999998,67.850999999999999,68.116]
["South Sudan",2842.7179999999998,2895.6089999999999,2951.0410000000002,3009.0610000000001,3069.7350000000001,3133.1550000000002,3199.348,3268.3919999999998,3340.4259999999999,3415.5720000000001,3494.011,3575.8960000000002,3661.442,3750.78,3844.0940000000001,3941.6129999999998,4041.7919999999999,4144.5519999999997,4253.085,4371.7110000000002,4502.6030000000001,4646.4780000000001,4799.4350000000004,4953.1540000000005,5096.4780000000001,5220.7479999999996,5328.1670000000004,5419.808,5485.2879999999996,5511.5820000000003,5492.62,5420.1790000000001,5305.4489999999996,5185.7120000000004,5111.3710000000001,5118.0839999999998,5221.9250000000002,5411.6530000000002,5661.9340000000002,5933.884,6199.3959999999997,6447.7910000000002,6688.2250000000004,6935.665,7213.3540000000003,7535.9309999999996,7907.4070000000002,8315.1440000000002,8736.9320000000007,9142.2579999999998,9508.3719999999994,9830.6949999999997,10113.647999999999,10355.030000000001,10554.882,10715.656999999999,10832.52,10910.773999999999,10975.924000000001,null,47.061,47.557000000000002,48.070999999999998,48.600999999999999,49.145000000000003,49.697000000000003,50.25,50.795999999999999,51.326999999999998,51.837000000000003,52.323,52.781999999999996,53.218000000000004,53.633000000000003,54.027000000000001,54.399000000000001,54.747999999999998,55.073999999999998,55.381999999999998,55.679000000000002,55.970999999999997,56.265999999999998,56.569000000000003,56.886000000000003,57.220999999999997,57.579000000000001,57.962000000000003,58.366,58.783000000000001,59.209000000000003,59.636000000000003,60.052999999999997,60.454999999999998,60.837000000000003,61.198,61.539000000000001,61.866,62.188000000000002,62.509,62.829000000000001,63.143999999999998,63.445999999999998,63.731000000000002,63.994999999999997,64.242000000000004,64.477999999999994,64.712000000000003,64.953000000000003,65.207999999999998,65.48,65.769000000000005,66.072000000000003,66.381,66.69,66.995000000000005,67.290999999999997,67.576999999999998,67.850999999999999,68.116]
["Spain",30402.413,30729.65,31075.474999999999,31432.768,31791.937999999998,32146.255000000001,32491.643,32830.180999999997,33168.777000000002,33517.677000000003,33883.749000000003,34267.463000000003,34664.233999999997,35069.432999999997,35476.434999999998,35879.21,36276.748,36666.769999999997,37040.400999999998,37386.81,37698.199999999997,37971.968000000001,38209.686000000002,38413.300000000003,38586.703999999998,38733.866000000002,38855.631000000001,38954.49,39038.686000000002,39118.555,39202.523999999998,39299.080999999998,39410.851999999999,39533.726000000002,39660.078999999998,39787.413,39908.962,40035.286,40201.561000000002,40454.472000000002,40824.745000000003,41319.430999999997,41919.593000000001,42596.455000000002,43308.345000000001,44019.118000000002,44728.561000000002,45429.071000000004,46068.811000000002,46583.565999999999,46931.010999999999,47084.241999999998,47063.059000000001,46930.553999999996,46777.927000000003,46671.919000000002,46634.131000000001,46647.425000000003,46692.862999999998,null,47.061,47.557000000000002,48.070999999999998,48.600999999999999,49.145000000000003,49.697000000000003,50.25,50.795999999999999,51.326999999999998,51.837000000000003,52.323,52.781999999999996,53.218000000000004,53.633000000000003,54.027000000000001,54.399000000000001,54.747999999999998,55.073999999999998,55.381999999999998,55.679000000000002,55.970999999999997,56.265999999999998,56.569000000000003,56.886000000000003,57.220999999999997,57.579000000000001,57.962000000000003,58.366,58.783000000000001,59.209000000000003,59.636000000000003,60.052999999999997,60.454999999999998,60.837000000000003,61.198,61.539000000000001,61.866,62.188000000000002,62.509,62.829000000000001,63.143999999999998,63.445999999999998,63.731000000000002,63.994999999999997,64.242000000000004,64.477999999999994,64.712000000000003,64.953000000000003,65.207999999999998,65.48,65.769000000000005,66.072000000000003,66.381,66.69,66.995000000000005,67.290999999999997,67.576999999999998,67.850999999999999,68.116]
["Sri Lanka",9874.4760000000006,10111.638999999999,10352.18,10597.516,10849.977000000001,11110.825000000001,11380.665000000001,11657.65,11937.607,12214.948,12485.736000000001,12747.831,13002.234,13252.032999999999,13501.931,13755.141,14012.894,14273.495000000001,14533.691000000001,14788.866,15035.84,15272.822,15501.21,15724.641,15948.501,16176.281999999999,16408.861000000001,16643.955999999998,16878.186000000002,17106.752,17325.769,17535.732,17736.827000000001,17924.827000000001,18094.473999999998,18242.917000000001,18367.29,18470.897000000001,18564.595000000001,18663.293000000001,18777.606,18911.726999999999,19062.475999999999,19224.036,19387.152999999998,19544.988000000001,19695.976999999999,19842.044000000002,19983.984,20123.508000000002,20261.738000000001,20398.495999999999,20532.598999999998,20663.053,20788.511999999999,20908.024000000001,21021.177,21128.027999999998,21228.76,null,47.061,47.557000000000002,48.070999999999998,48.600999999999999,49.145000000000003,49.697000000000003,50.25,50.795999999999999,51.326999999999998,51.837000000000003,52.323,52.781999999999996,53.218000000000004,53.633000000000003,54.027000000000001,54.399000000000001,54.747999999999998,55.073999999999998,55.381999999999998,55.679000000000002,55.970999999999997,56.265999999999998,56.569000000000003,56.886000000000003,57.220999999999997,57.579000000000001,57.962000000000003,58.366,58.783000000000001,59.209000000000003,59.636000000000003,60.052999999999997,60.454999999999998,60.837000000000003,61.198,61.539000000000001,61.866,62.188000000000002,62.509,62.829000000000001,63.143999999999998,63.445999999999998,63.731000000000002,63.994999999999997,64.242000000000004,64.477999999999994,64.712000000000003,64.953000000000003,65.207999999999998,65.48,65.769000000000005,66.072000000000003,66.381,66.69,66.995000000000005,67.290999999999997,67.576999999999998,67.850999999999999,68.116]
["State of Palestine",1069.318,1096.752,1128.577,1159.4000000000001,1181.893,1191.3810000000001,1184.9690000000001,1165.752,1142.2239999999999,1126.3720000000001,1126.6279999999999,1146.3209999999999,1182.4259999999999,1229.3699999999999,1278.559,1323.8050000000001,1363.6179999999999,1400.1210000000001,1434.992,1471.1379999999999,1510.7170000000001,1554.19,1600.9559999999999,1650.9259999999999,1703.808,1759.5329999999999,1817.981,1879.75,1946.376,2019.825,2101.4450000000002,2191,2287.6759999999999,2391.3989999999999,2501.973,2618.6709999999998,2742.5340000000001,2872.0059999999999,3000.6239999999998,3119.8679999999999,3224.009,3309.9079999999999,3380.1610000000001,3441.8679999999999,3505.32,3577.9560000000001,3662.4209999999998,3756.4589999999998,3856.692,3957.6840000000002,4055.6320000000001,4149.6540000000005,4241.5720000000001,4333.5209999999997,4428.634,4529.16,4635.6440000000002,4747.2330000000002,4862.9780000000001,null,48.405999999999999,48.777000000000001,49.142000000000003,49.509,49.887999999999998,50.283999999999999,50.704999999999998,51.148000000000003,51.615000000000002,52.106000000000002,52.62,53.156999999999996,53.713000000000001,54.280999999999999,54.856000000000002,55.427999999999997,55.99,56.537999999999997,57.070999999999998,57.59,58.106999999999999,58.637,59.191000000000003,59.765999999999998,60.353000000000002,60.945999999999998,61.54,62.109000000000002,62.619,63.034999999999997,63.307000000000002,63.384,63.247,62.893999999999998,62.331000000000003,61.561,60.594999999999999,59.488999999999997,58.314999999999998,57.143999999999998,56.048000000000002,55.088999999999999,54.31,53.749000000000002,53.444000000000003,53.447000000000003,53.795000000000002,54.451999999999998,55.36,56.46,57.668999999999997,58.895000000000003,60.06,61.098999999999997,61.968000000000004,62.649000000000001,63.152999999999999,63.537999999999997,63.856999999999999]
["Sudan",7544.4979999999996,7769.4750000000004,8004.1220000000003,8248.8179999999993,8503.9889999999996,8770.0939999999991,9047.8029999999999,9337.6620000000003,9639.8459999999995,9954.4110000000001,10281.695,10621.471,10974.626,11343.923000000001,11732.957,12144.128000000001,12578.397999999999,13034.630999999999,13510.429,14002.302,14507.466,15027.254000000001,15562.129000000001,16107.612999999999,16657.955999999998,17210.182000000001,17757.493999999999,18303.43,18867.559000000001,19476.652999999998,20147.592000000001,20891.441999999999,21696.240000000002,22527.837,23338.465,24094.741000000002,24782.383999999998,25413.912,26015.518,26626.511999999999,27275.019,27971.077000000001,28704.786,29460.517,30214.188999999998,30949.513999999999,31661.824000000001,32360.618999999999,33060.843999999997,33783.779000000002,34545.014000000003,35349.675999999999,36193.781000000003,37072.555,37977.656999999999,38902.947999999997,39847.432999999997,40813.398000000001,41801.531999999999,null,48.405999999999999,48.777000000000001,49.142000000000003,49.509,49.887999999999998,50.283999999999999,50.704999999999998,51.148000000000003,51.615000000000002,52.106000000000002,52.62,53.156999999999996,53.713000000000001,54.280999999999999,54.856000000000002,55.427999999999997,55.99,56.537999999999997,57.070999999999998,57.59,58.106999999999999,58.637,59.191000000000003,59.765999999999998,60.353000000000002,60.945999999999998,61.54,62.109000000000002,62.619,63.034999999999997,63.307000000000002,63.384,63.247,62.893999999999998,62.331000000000003,61.561,60.594999999999999,59.488999999999997,58.314999999999998,57.143999999999998,56.048000000000002,55.088999999999999,54.31,53.749000000000002,53.444000000000003,53.447000000000003,53.795000000000002,54.451999999999998,55.36,56.46,57.668999999999997,58.895000000000003,60.06,61.098999999999997,61.968000000000004,62.649000000000001,63.152999999999999,63.537999999999997,63.856999999999999]
["Suriname",287.87,295.91300000000001,303.89400000000001,311.94499999999999,320.267,328.93900000000002,338.15499999999997,347.673,356.55099999999999,363.57400000000001,367.92599999999999,369.23,367.90699999999998,364.90699999999998,361.66500000000002,359.23399999999998,357.94900000000001,357.649,358.10300000000001,358.82600000000002,359.53100000000001,360.14400000000001,360.92700000000002,362.28199999999998,364.72199999999998,368.63600000000002,374.13299999999998,381.03300000000002,388.87700000000001,397.08199999999999,405.16899999999998,413.00900000000001,420.65800000000002,428.02800000000002,435.09899999999999,441.851,448.20699999999999,454.16500000000002,459.83800000000002,465.38,470.94400000000002,476.57400000000001,482.22800000000001,487.93799999999999,493.68,499.46100000000001,505.29199999999997,511.18099999999998,517.12199999999996,523.11300000000006,529.12599999999998,535.17700000000002,541.24699999999996,547.29499999999996,553.27800000000002,559.13599999999997,564.88300000000004,570.50099999999998,575.98699999999997,null,48.405999999999999,48.777000000000001,49.142000000000003,49.509,49.887999999999998,50.283999999999999,50.704999999999998,51.148000000000003,51.615000000000002,52.106000000000002,52.62,53.156999999999996,53.713000000000001,54.280999999999999,54.856000000000002,55.427999999999997,55.99,56.537999999999997,57.070999999999998,57.59,58.106999999999999,58.637,59.191000000000003,59.765999999999998,60.353000000000002,60.945999999999998,61.54,62.109000000000002,62.619,63.034999999999997,63.307000000000002,63.384,63.247,62.893999999999998,62.331000000000003,61.561,60.594999999999999,59.488999999999997,58.314999999999998,57.143999999999998,56.048000000000002,55.088999999999999,54.31,53.749000000000002,53.444000000000003,53.447000000000003,53.795000000000002,54.451999999999998,55.36,56.46,57.668999999999997,58.895000000000003,60.06,61.098999999999997,61.968000000000004,62.649000000000001,63.152999999999999,63.537999999999997,63.856999999999999]
["Sweden",7482.5360000000001,7530.183,7579.57,7631.4530000000004,7686.7349999999997,7745.6779999999999,7809.085,7875.902,7942.3109999999997,8003.1859999999997,8054.9089999999997,8095.7979999999998,8127.0450000000001,8151.598,8173.9610000000002,8197.3410000000003,8223.2469999999994,8250.6919999999991,8277.4220000000005,8299.9959999999992,8316.3310000000001,8325.4930000000004,8329.4279999999999,8332.4410000000007,8340.4439999999995,8357.65,8384.9869999999992,8421.0560000000005,8464.7900000000009,8514.2039999999997,8567.375,8625.14,8686.7350000000006,8746.77,8798.2350000000006,8836.4210000000003,8859.18,8868.857,8870.8539999999994,8873.1049999999996,8881.6419999999998,8897.8019999999997,8920.7029999999995,8951.4390000000003,8990.6530000000002,9038.6270000000004,9096.17,9162.9410000000007,9236.4330000000009,9313.0849999999991,9390.1569999999992,9466.7049999999999,9542.8169999999991,9618.0159999999996,9692.1370000000006,9764.9490000000005,9836.0030000000006,9904.8950000000004,9971.6299999999992,null,48.405999999999999,48.777000000000001,49.142000000000003,49.509,49.887999999999998,50.283999999999999,50.704999999999998,51.148000000000003,51.615000000000002,52.106000000000002,52.62,53.156999999999996,53.713000000000001,54.280999999999999,54.856000000000002,55.427999999999997,55.99,56.537999999999997,57.070999999999998,57.59,58.106999999999999,58.637,59.191000000000003,59.765999999999998,60.353000000000002,60.945999999999998,61.54,62.109000000000002,62.619,63.034999999999997,63.307000000000002,63.384,63.247,62.893999999999998,62.331000000000003,61.561,60.594999999999999,59.488999999999997,58.314999999999998,57.143999999999998,56.048000000000002,55.088999999999999,54.31,53.749000000000002,53.444000000000003,53.447000000000003,53.795000000000002,54.451999999999998,55.36,56.46,57.668999999999997,58.895000000000003,60.06,61.098999999999997,61.968000000000004,62.649000000000001,63.152999999999999,63.537999999999997,63.856999999999999]
["Switzerland",5280.683,5377.7640000000001,5487.049,5601.8119999999999,5712.7079999999996,5812.8440000000001,5899.4780000000001,5973.94,6038.3280000000004,6096.4269999999997,6150.848,6202.951,6251.2860000000001,6292.5379999999996,6322.0060000000003,6337.0309999999999,6335.9769999999999,6321.8159999999998,6302.0420000000004,6286.91,6283.8329999999996,6295.9210000000003,6321.4089999999997,6356.7430000000004,6396.1440000000002,6435.424,6473.0469999999996,6510.5929999999998,6550.73,6597.36,6652.8729999999996,6718.8180000000002,6792.9059999999999,6868.9369999999999,6938.4070000000002,6995.5190000000002,7038.027,7068.5029999999997,7091.7749999999996,7115.0309999999999,7143.7640000000001,7179.174,7220.3779999999997,7268.3630000000003,7323.7280000000001,7386.8180000000002,7457.9610000000002,7536.9859999999999,7622.826,7713.902,7808.674,7906.9880000000003,8008.0060000000003,8108.8760000000002,8206.0030000000006,8296.7749999999996,8379.9150000000009,8455.7970000000005,8525.6139999999996,null,48.405999999999999,48.777000000000001,49.142000000000003,49.509,49.887999999999998,50.283999999999999,50.704999999999998,51.148000000000003,51.615000000000002,52.106000000000002,52.62,53.156999999999996,53.713000000000001,54.280999999999999,54.856000000000002,55.427999999999997,55.99,56.537999999999997,57.070999999999998,57.59,58.106999999999999,58.637,59.191000000000003,59.765999999999998,60.353000000000002,60.945999999999998,61.54,62.109000000000002,62.619,63.034999999999997,63.307000000000002,63.384,63.247,62.893999999999998,62.331000000000003,61.561,60.594999999999999,59.488999999999997,58.314999999999998,57.143999999999998,56.048000000000002,55.088999999999999,54.31,53.749000000000002,53.444000000000003,53.447000000000003,53.795000000000002,54.451999999999998,55.36,56.46,57.668999999999997,58.895000000000003,60.06,61.098999999999997,61.968000000000004,62.649000000000001,63.152999999999999,63.537999999999997,63.856999999999999]
["Tajikistan",2087.0529999999999,2159.134,2236.5639999999999,2318.252,2402.473,2487.9749999999999,2574.5059999999999,2662.2570000000001,2750.9319999999998,2840.2649999999999,2930.1080000000002,3020.4189999999999,3111.2840000000001,3203.0349999999999,3296.0920000000001,3390.9409999999998,3487.6579999999999,3586.5160000000001,3688.4110000000001,3794.4569999999999,3905.4430000000002,4020.8180000000002,4140.2969999999996,4265.2780000000002,4397.5630000000001,4537.82,4687.3280000000004,4843.9970000000003,5001.1719999999996,5149.8720000000003,5283.8109999999997,5400.6360000000004,5502.49,5593.317,5679.1689999999999,5764.8059999999996,5851.3540000000003,5938.4040000000005,6027.3950000000004,6119.6639999999998,6216.3289999999997,6318.51,6426.8609999999999,6541.55,6662.3909999999996,6789.3180000000002,6922.59,7062.6670000000004,7209.924,7364.7520000000004,7527.3969999999999,7697.5069999999996,7874.8379999999997,8059.7820000000002,8252.8279999999995,8454.0190000000002,8663.5750000000007,8880.27,9100.8469999999998,null,48.405999999999999,48.777000000000001,49.142000000000003,49.509,49.887999999999998,50.283999999999999,50.704999999999998,51.148000000000003,51.615000000000002,52.106000000000002,52.62,53.156999999999996,53.713000000000001,54.280999999999999,54.856000000000002,55.427999999999997,55.99,56.537999999999997,57.070999999999998,57.59,58.106999999999999,58.637,59.191000000000003,59.765999999999998,60.353000000000002,60.945999999999998,61.54,62.109000000000002,62.619,63.034999999999997,63.307000000000002,63.384,63.247,62.893999999999998,62.331000000000003,61.561,60.594999999999999,59.488999999999997,58.314999999999998,57.143999999999998,56.048000000000002,55.088999999999999,54.31,53.749000000000002,53.444000000000003,53.447000000000003,53.795000000000002,54.451999999999998,55.36,56.46,57.668999999999997,58.895000000000003,60.06,61.098999999999997,61.968000000000004,62.649000000000001,63.152999999999999,63.537999999999997,63.856999999999999]
["Thailand",27397.207999999999,28224.186000000002,29080.945,29966.873,30881.135999999999,31822.655999999999,32789.129000000001,33778.803999999996,34791.417999999998,35827.089,36884.525000000001,37963.279999999999,39058.593999999997,40159.580999999998,41252.32,42326.307000000001,43377.27,44405.902999999998,45413.082000000002,46401.75,47374.463000000003,48326.269,49255.889000000003,50173.921999999999,51094.87,52026.900999999998,52980.105000000003,53945.872000000003,54891.519999999997,55772.169000000002,56558.196000000004,57232.470999999998,57811.025000000001,58337.773000000001,58875.275000000001,59467.271999999997,60130.19,60846.588000000003,61585.103000000003,62298.569000000003,62952.639000000003,63539.19,64069.093000000001,64549.866999999998,64995.303,65416.188999999998,65812.539999999994,66182.063999999998,66530.98,66866.834000000003,67195.032000000007,67518.379000000001,67835.968999999997,68144.519,68438.748000000007,68714.519,68971.312999999995,69209.816999999995,69428.453999999998,null,48.405999999999999,48.777000000000001,49.142000000000003,49.509,49.887999999999998,50.283999999999999,50.704999999999998,51.148000000000003,51.615000000000002,52.106000000000002,52.62,53.156999999999996,53.713000000000001,54.280999999999999,54.856000000000002,55.427999999999997,55.99,56.537999999999997,57.070999999999998,57.59,58.106999999999999,58.637,59.191000000000003,59.765999999999998,60.353000000000002,60.945999999999998,61.54,62.109000000000002,62.619,63.034999999999997,63.307000000000002,63.384,63.247,62.893999999999998,62.331000000000003,61.561,60.594999999999999,59.488999999999997,58.314999999999998,57.143999999999998,56.048000000000002,55.088999999999999,54.31,53.749000000000002,53.444000000000003,53.447000000000003,53.795000000000002,54.451999999999998,55.36,56.46,57.668999999999997,58.895000000000003,60.06,61.098999999999997,61.968000000000004,62.649000000000001,63.152999999999999,63.537999999999997,63.856999999999999]
["Togo",1580.508,1597.5229999999999,1612.761,1631.758,1662.0730000000001,1708.6310000000001,1774.02,1855.45,1945.777,2034.902,2115.5219999999999,2185.6669999999999,2247.578,2303.3440000000001,2356.62,2410.451,2464.424,2518.4540000000002,2576.2930000000001,2642.6930000000002,2720.835,2812.3119999999999,2915.6179999999999,3026.98,3140.84,3252.9969999999998,3363.04,3471.7379999999998,3577.4690000000001,3678.567,3774.31,3862.998,3945.902,4029.0439999999999,4120.6149999999998,4226.2929999999997,4348.808,4485.9449999999997,4632.451,4780.4549999999999,4924.4059999999999,5062.5709999999999,5197.04,5330.6289999999999,5467.77,5611.643,5762.8810000000003,5920.36,6083.4170000000004,6250.84,6421.674,6595.9390000000003,6773.8069999999998,6954.7209999999995,7137.9970000000003,7323.1620000000003,7509.9520000000002,7698.4759999999997,7889.0950000000003,null,48.405999999999999,48.777000000000001,49.142000000000003,49.509,49.887999999999998,50.283999999999999,50.704999999999998,51.148000000000003,51.615000000000002,52.106000000000002,52.62,53.156999999999996,53.713000000000001,54.280999999999999,54.856000000000002,55.427999999999997,55.99,56.537999999999997,57.070999999999998,57.59,58.106999999999999,58.637,59.191000000000003,59.765999999999998,60.353000000000002,60.945999999999998,61.54,62.109000000000002,62.619,63.034999999999997,63.307000000000002,63.384,63.247,62.893999999999998,62.331000000000003,61.561,60.594999999999999,59.488999999999997,58.314999999999998,57.143999999999998,56.048000000000002,55.088999999999999,54.31,53.749000000000002,53.444000000000003,53.447000000000003,53.795000000000002,54.451999999999998,55.36,56.46,57.668999999999997,58.895000000000003,60.06,61.098999999999997,61.968000000000004,62.649000000000001,63.152999999999999,63.537999999999997,63.856999999999999]
["Tonga",61.573999999999998,63.720999999999997,66.233000000000004,68.974999999999994,71.744,74.347999999999999,76.774000000000001,79.034000000000006,81.075999999999993,82.861000000000004,84.343999999999994,85.492000000000004,86.326999999999998,86.957999999999998,87.584000000000003,88.320999999999998,89.227999999999994,90.259,91.335999999999999,92.271000000000001,92.965999999999994,93.415000000000006,93.635999999999996,93.736000000000004,93.793000000000006,93.896000000000001,94.081000000000003,94.317999999999998,94.591999999999999,94.847999999999999,95.069000000000003,95.242999999999995,95.397999999999996,95.555999999999997,95.739000000000004,95.971999999999994,96.266999999999996,96.620999999999995,97.036000000000001,97.474999999999994,97.962000000000003,98.481999999999999,99.022999999999996,99.590999999999994,100.214,100.908,101.714,102.577,103.384,103.89700000000001,103.98099999999999,103.55800000000001,102.736,101.768,101.023,100.78,101.143,102.002,103.199,null,48.405999999999999,48.777000000000001,49.142000000000003,49.509,49.887999999999998,50.283999999999999,50.704999999999998,51.148000000000003,51.615000000000002,52.106000000000002,52.62,53.156999999999996,53.713000000000001,54.280999999999999,54.856000000000002,55.427999999999997,55.99,56.537999999999997,57.070999999999998,57.59,58.106999999999999,58.637,59.191000000000003,59.765999999999998,60.353000000000002,60.945999999999998,61.54,62.109000000000002,62.619,63.034999999999997,63.307000000000002,63.384,63.247,62.893999999999998,62.331000000000003,61.561,60.594999999999999,59.488999999999997,58.314999999999998,57.143999999999998,56.048000000000002,55.088999999999999,54.31,53.749000000000002,53.444000000000003,53.447000000000003,53.795000000000002,54.451999999999998,55.36,56.46,57.668999999999997,58.895000000000003,60.06,61.098999999999997,61.968000000000004,62.649000000000001,63.152999999999999,63.537999999999997,63.856999999999999]
["Trinidad and Tobago",847.97299999999996,864.81399999999996,879.43600000000004,891.94799999999998,902.62,911.74199999999996,919.21799999999996,925.23299999999995,930.79200000000003,937.18399999999997,945.35699999999997,955.75300000000004,968.13599999999997,982.00599999999997,996.47900000000004,1010.934,1025.104,1039.21,1053.56,1068.644,1084.7429999999999,1101.9829999999999,1120.019,1138.0709999999999,1155.0830000000001,1170.296,1183.3820000000001,1194.5319999999999,1204.1500000000001,1212.8579999999999,1221.1210000000001,1229.1079999999999,1236.6849999999999,1243.605,1249.527,1254.2,1257.547,1259.838,1261.6990000000001,1263.9269999999999,1267.1590000000001,1271.627,1277.21,1283.5640000000001,1290.115,1296.4970000000001,1302.5519999999999,1308.45,1314.4490000000001,1320.921,1328.144,1336.18,1344.8140000000001,1353.7080000000001,1362.337,1370.3320000000001,1377.5630000000001,1384.06,1389.8409999999999,null,48.405999999999999,48.777000000000001,49.142000000000003,49.509,49.887999999999998,50.283999999999999,50.704999999999998,51.148000000000003,51.615000000000002,52.106000000000002,52.62,53.156999999999996,53.713000000000001,54.280999999999999,54.856000000000002,55.427999999999997,55.99,56.537999999999997,57.070999999999998,57.59,58.106999999999999,58.637,59.191000000000003,59.765999999999998,60.353000000000002,60.945999999999998,61.54,62.109000000000002,62.619,63.034999999999997,63.307000000000002,63.384,63.247,62.893999999999998,62.331000000000003,61.561,60.594999999999999,59.488999999999997,58.314999999999998,57.143999999999998,56.048000000000002,55.088999999999999,54.31,53.749000000000002,53.444000000000003,53.447000000000003,53.795000000000002,54.451999999999998,55.36,56.46,57.668999999999997,58.895000000000003,60.06,61.098999999999997,61.968000000000004,62.649000000000001,63.152999999999999,63.537999999999997,63.856999999999999]
["Tunisia",4178.2349999999997,4238.1409999999996,4305.4769999999999,4380.0739999999996,4461.1109999999999,4547.9409999999998,4640.9949999999999,4740.5259999999998,4845.22,4953.3789999999999,5063.8050000000003,5176.29,5291.335,5409.3379999999997,5530.9780000000001,5656.9120000000003,5786.482,5919.9579999999996,6060.1580000000004,6210.7560000000003,6374.04,6551.232,6740.52,6937.3320000000003,7135.2650000000003,7329.59,7517.8540000000003,7700.7330000000002,7880.3329999999996,8060.2110000000002,8242.509,8427.8510000000006,8613.8549999999996,8795.9339999999993,8967.9159999999993,9125.4,9267.3349999999991,9395.1190000000006,9509.8619999999992,9613.5869999999995,9708.3469999999998,9793.9150000000009,9871.2610000000004,9945.2819999999992,10022.278,10106.778,10201.210999999999,10304.728999999999,10414.424999999999,10525.691000000001,10635.245000000001,10741.871999999999,10846.993,10952.949000000001,11063.195,11179.950999999999,11303.941999999999,11433.438,11565.203,null,48.405999999999999,48.777000000000001,49.142000000000003,49.509,49.887999999999998,50.283999999999999,50.704999999999998,51.148000000000003,51.615000000000002,52.106000000000002,52.62,53.156999999999996,53.713000000000001,54.280999999999999,54.856000000000002,55.427999999999997,55.99,56.537999999999997,57.070999999999998,57.59,58.106999999999999,58.637,59.191000000000003,59.765999999999998,60.353000000000002,60.945999999999998,61.54,62.109000000000002,62.619,63.034999999999997,63.307000000000002,63.384,63.247,62.893999999999998,62.331000000000003,61.561,60.594999999999999,59.488999999999997,58.314999999999998,57.143999999999998,56.048000000000002,55.088999999999999,54.31,53.749000000000002,53.444000000000003,53.447000000000003,53.795000000000002,54.451999999999998,55.36,56.46,57.668999999999997,58.895000000000003,60.06,61.098999999999997,61.968000000000004,62.649000000000001,63.152999999999999,63.537999999999997,63.856999999999999]
["Turkey",27472.339,28146.909,28832.830999999998,29531.362000000001,30244.258000000002,30972.995999999999,31717.504000000001,32477.993999999999,33256.464999999997,34055.391000000003,34876.296000000002,35720.603000000003,36587.267,37472.328999999998,38370.277999999998,39277.249000000003,40189.561000000002,41108.29,42039.983,42994.042999999998,43975.972000000002,44988.411,46025.411,47073.47,48114.158000000003,49133.928,50128.548000000003,51100.93,52053.764000000003,52992.478999999999,53921.758000000002,54840.595000000001,55748.946000000004,56653.807999999997,57564.209000000003,58486.453000000001,59423.277999999998,60372.571000000004,61329.665000000001,62287.391000000003,63240.196000000004,64192.243000000002,65145.357000000004,66089.402000000002,67010.929999999993,67903.460999999996,68756.808999999994,69581.854000000007,70418.611999999994,71321.406000000003,72326.991999999998,73443.254000000001,74651.046000000002,75925.453999999998,77229.262000000002,78529.413,79827.868000000002,81116.451000000001,82340.09,null,48.405999999999999,48.777000000000001,49.142000000000003,49.509,49.887999999999998,50.283999999999999,50.704999999999998,51.148000000000003,51.615000000000002,52.106000000000002,52.62,53.156999999999996,53.713000000000001,54.280999999999999,54.856000000000002,55.427999999999997,55.99,56.537999999999997,57.070999999999998,57.59,58.106999999999999,58.637,59.191000000000003,59.765999999999998,60.353000000000002,60.945999999999998,61.54,62.109000000000002,62.619,63.034999999999997,63.307000000000002,63.384,63.247,62.893999999999998,62.331000000000003,61.561,60.594999999999999,59.488999999999997,58.314999999999998,57.143999999999998,56.048000000000002,55.088999999999999,54.31,53.749000000000002,53.444000000000003,53.447000000000003,53.795000000000002,54.451999999999998,55.36,56.46,57.668999999999997,58.895000000000003,60.06,61.098999999999997,61.968000000000004,62.649000000000001,63.152999999999999,63.537999999999997,63.856999999999999]
["Tuvalu",5.3209999999999997,5.33,5.34,5.3410000000000002,5.3540000000000001,5.3879999999999999,5.4349999999999996,5.51,5.5979999999999999,5.6710000000000003,5.74,5.77,5.7859999999999996,5.819,5.9029999999999996,6.0640000000000001,6.319,6.65,7.0179999999999998,7.3570000000000002,7.6310000000000002,7.8250000000000002,7.9509999999999996,8.0410000000000004,8.11,8.2110000000000003,8.3409999999999993,8.4809999999999999,8.6370000000000005,8.7870000000000008,8.91,9.0139999999999993,9.11,9.1940000000000008,9.2590000000000003,9.298,9.3170000000000002,9.3279999999999994,9.3320000000000007,9.3439999999999994,9.3919999999999995,9.4779999999999998,9.593,9.7240000000000002,9.8710000000000004,9.9969999999999999,10.118,10.218999999999999,10.315,10.413,10.521000000000001,10.625999999999999,10.744,10.849,10.973000000000001,11.099,11.231999999999999,11.365,11.505000000000001,null,48.405999999999999,48.777000000000001,49.142000000000003,49.509,49.887999999999998,50.283999999999999,50.704999999999998,51.148000000000003,51.615000000000002,52.106000000000002,52.62,53.156999999999996,53.713000000000001,54.280999999999999,54.856000000000002,55.427999999999997,55.99,56.537999999999997,57.070999999999998,57.59,58.106999999999999,58.637,59.191000000000003,59.765999999999998,60.353000000000002,60.945999999999998,61.54,62.109000000000002,62.619,63.034999999999997,63.307000000000002,63.384,63.247,62.893999999999998,62.331000000000003,61.561,60.594999999999999,59.488999999999997,58.314999999999998,57.143999999999998,56.048000000000002,55.088999999999999,54.31,53.749000000000002,53.444000000000003,53.447000000000003,53.795000000000002,54.451999999999998,55.36,56.46,57.668999999999997,58.895000000000003,60.06,61.098999999999997,61.968000000000004,62.649000000000001,63.152999999999999,63.537999999999997,63.856999999999999]
["Uganda",6767.0919999999996,6983.8239999999996,7215.799,7461.6360000000004,7719.1080000000002,7986.0619999999999,8263.4339999999993,8550.4439999999995,8841.1560000000009,9127.8549999999996,9405.6059999999998,9671.8559999999998,9929.6440000000002,10186.451999999999,10453.029,10737.403,11042.975,11368.618,11712.54,12071.14,12442.333000000001,12825.084000000001,13221.991,13638.728999999999,14082.87,14559.357,15070.319,15612.754000000001,16180.129000000001,16763.041000000001,17354.395,17953.534,18561.668000000001,19175.986000000001,19793.541000000001,20413.156999999999,21032.816999999999,21655.392,22290.787,22952.405999999999,23650.159,24388.973999999998,25167.260999999999,25980.546999999999,26821.3,27684.59,28571.474999999999,29486.334999999999,30431.734,31411.096000000001,32428.164000000001,33476.771999999997,34558.699999999997,35694.519,36911.53,38225.447,39649.173000000003,41166.588000000003,42729.031999999999,null,48.405999999999999,48.777000000000001,49.142000000000003,49.509,49.887999999999998,50.283999999999999,50.704999999999998,51.148000000000003,51.615000000000002,52.106000000000002,52.62,53.156999999999996,53.713000000000001,54.280999999999999,54.856000000000002,55.427999999999997,55.99,56.537999999999997,57.070999999999998,57.59,58.106999999999999,58.637,59.191000000000003,59.765999999999998,60.353000000000002,60.945999999999998,61.54,62.109000000000002,62.619,63.034999999999997,63.307000000000002,63.384,63.247,62.893999999999998,62.331000000000003,61.561,60.594999999999999,59.488999999999997,58.314999999999998,57.143999999999998,56.048000000000002,55.088999999999999,54.31,53.749000000000002,53.444000000000003,53.447000000000003,53.795000000000002,54.451999999999998,55.36,56.46,57.668999999999997,58.895000000000003,60.06,61.098999999999997,61.968000000000004,62.649000000000001,63.152999999999999,63.537999999999997,63.856999999999999]
["Ukraine",42664.646000000001,43206.353000000003,43752.226999999999,44288.607000000004,44796.959000000003,45264.552000000003,45684.983,46063.218999999997,46411.815999999999,46749.288999999997,47088.862000000001,47435.008000000002,47783.006000000001,48125.828999999998,48452.623,48755.661999999997,49032.728999999999,49287.118000000002,49523.303999999996,49747.998,49965.872000000003,50176.398999999998,50377.069000000003,50568.025000000001,50749.175999999999,50919.275000000001,51077.457000000002,51219.911,51338.392,51422.338000000003,51463.101000000002,51461.273000000001,51415.957000000002,51316.012999999999,51147.771000000001,50903.783000000003,50580.466999999997,50187.28,49746.523000000001,49288.739000000001,48838.057999999997,48401.648000000001,47980.033000000003,47582.463000000003,47217.489000000001,46890.775000000001,46607.396999999997,46366.347000000002,46158.709000000003,45970.942000000003,45792.086000000003,45619.85,45453.805,45286.987999999998,45111.53,44921.635999999999,44713.707999999999,44487.707999999999,44246.158000000003,null,48.405999999999999,48.777000000000001,49.142000000000003,49.509,49.887999999999998,50.283999999999999,50.704999999999998,51.148000000000003,51.615000000000002,52.106000000000002,52.62,53.156999999999996,53.713000000000001,54.280999999999999,54.856000000000002,55.427999999999997,55.99,56.537999999999997,57.070999999999998,57.59,58.106999999999999,58.637,59.191000000000003,59.765999999999998,60.353000000000002,60.945999999999998,61.54,62.109000000000002,62.619,63.034999999999997,63.307000000000002,63.384,63.247,62.893999999999998,62.331000000000003,61.561,60.594999999999999,59.488999999999997,58.314999999999998,57.143999999999998,56.048000000000002,55.088999999999999,54.31,53.749000000000002,53.444000000000003,53.447000000000003,53.795000000000002,54.451999999999998,55.36,56.46,57.668999999999997,58.895000000000003,60.06,61.098999999999997,61.968000000000004,62.649000000000001,63.152999999999999,63.537999999999997,63.856999999999999]
["United Arab Emirates",92.417000000000002,100.801,112.11199999999999,125.13,138.04900000000001,149.85499999999999,159.97900000000001,169.768,182.62,203.10300000000001,234.512,277.46300000000002,330.96800000000002,394.625,467.45699999999999,548.29499999999996,637.92600000000004,735.34699999999998,835.49800000000005,931.75199999999995,1019.5069999999999,1096.6020000000001,1164.816,1228.4570000000001,1293.97,1366.165,1446.386,1533.5260000000001,1627.068,1725.6759999999999,1828.4369999999999,1937.1590000000001,2052.8919999999998,2173.1350000000002,2294.377,2415.0990000000002,2539.1210000000001,2671.3609999999999,2813.2139999999999,2966.029,3134.067,3302.7220000000002,3478.7689999999998,3711.931,4068.5770000000002,4588.2219999999998,5300.1719999999996,6168.8459999999995,7089.4859999999999,7917.3680000000004,8549.9979999999996,8946.7780000000002,9141.598,9197.9079999999994,9214.1820000000007,9262.8960000000006,9360.9750000000004,9487.2060000000001,9630.9660000000003,null,48.405999999999999,48.777000000000001,49.142000000000003,49.509,49.887999999999998,50.283999999999999,50.704999999999998,51.148000000000003,51.615000000000002,52.106000000000002,52.62,53.156999999999996,53.713000000000001,54.280999999999999,54.856000000000002,55.427999999999997,55.99,56.537999999999997,57.070999999999998,57.59,58.106999999999999,58.637,59.191000000000003,59.765999999999998,60.353000000000002,60.945999999999998,61.54,62.109000000000002,62.619,63.034999999999997,63.307000000000002,63.384,63.247,62.893999999999998,62.331000000000003,61.561,60.594999999999999,59.488999999999997,58.314999999999998,57.143999999999998,56.048000000000002,55.088999999999999,54.31,53.749000000000002,53.444000000000003,53.447000000000003,53.795000000000002,54.451999999999998,55.36,56.46,57.668999999999997,58.895000000000003,60.06,61.098999999999997,61.968000000000004,62.649000000000001,63.152999999999999,63.537999999999997,63.856999999999999]
["United Kingdom",52370.595000000001,52727.762999999999,53109.4,53500.720999999998,53882.750999999997,54240.855000000003,54568.868000000002,54866.529000000002,55132.603000000003,55367.95,55573.455000000002,55748.534,55892.411999999997,56006.29,56092.059000000001,56152.324999999997,56188.347999999998,56203.597999999998,56205.91,56205.087,56209.163999999997,56220.739000000001,56241.408000000003,56276.790999999997,56332.902000000002,56413.555,56522.504999999997,56658.26,56812.754000000001,56974.288999999997,57134.377,57290.792000000001,57446.040999999997,57602.279000000002,57763.381999999998,57932.45,58113.553999999996,58307.32,58509.972000000002,58715.858999999997,58923.305,59124.277000000002,59326.294000000002,59561.428999999996,59872.76,60287.953000000001,60821.349000000002,61455.154000000002,62145.097999999998,62828.62,63459.800999999999,64021.921999999999,64525.3,64984.014999999999,65423.048000000003,65860.149000000005,66297.944000000003,66727.463000000003,67141.678,null,48.405999999999999,48.777000000000001,49.142000000000003,49.509,49.887999999999998,50.283999999999999,50.704999999999998,51.148000000000003,51.615000000000002,52.106000000000002,52.62,53.156999999999996,53.713000000000001,54.280999999999999,54.856000000000002,55.427999999999997,55.99,56.537999999999997,57.070999999999998,57.59,58.106999999999999,58.637,59.191000000000003,59.765999999999998,60.353000000000002,60.945999999999998,61.54,62.109000000000002,62.619,63.034999999999997,63.307000000000002,63.384,63.247,62.893999999999998,62.331000000000003,61.561,60.594999999999999,59.488999999999997,58.314999999999998,57.143999999999998,56.048000000000002,55.088999999999999,54.31,53.749000000000002,53.444000000000003,53.447000000000003,53.795000000000002,54.451999999999998,55.36,56.46,57.668999999999997,58.895000000000003,60.06,61.098999999999997,61.968000000000004,62.649000000000001,63.152999999999999,63.537999999999997,63.856999999999999]
["Uruguay",2538.6480000000001,2571.6819999999998,2603.8829999999998,2635.125,2665.3829999999998,2694.5369999999998,2722.8710000000001,2750.0909999999999,2774.761,2795.0369999999998,2809.799,2818.2829999999999,2821.4580000000001,2822.1120000000001,2824.0949999999998,2830.172,2841.3710000000001,2856.9580000000001,2875.7240000000002,2895.683,2915.3890000000001,2934.6239999999998,2953.8519999999999,2973.0479999999998,2992.25,3011.5189999999998,3030.6509999999998,3049.5810000000001,3068.7139999999999,3088.6030000000001,3109.598,3131.6570000000002,3154.4589999999998,3177.7339999999999,3201.1489999999999,3224.2750000000001,3247.3829999999998,3270.1579999999999,3291.0529999999999,3308.0050000000001,3319.7339999999999,3325.471,3326.0459999999998,3323.6610000000001,3321.4859999999999,3321.799,3325.4029999999998,3331.7530000000002,3340.221,3349.6759999999999,3359.2730000000001,3368.9259999999999,3378.9749999999999,3389.4360000000001,3400.4389999999999,3412.0129999999999,3424.1390000000001,3436.645,3449.29,null,48.405999999999999,48.777000000000001,49.142000000000003,49.509,49.887999999999998,50.283999999999999,50.704999999999998,51.148000000000003,51.615000000000002,52.106000000000002,52.62,53.156999999999996,53.713000000000001,54.280999999999999,54.856000000000002,55.427999999999997,55.99,56.537999999999997,57.070999999999998,57.59,58.106999999999999,58.637,59.191000000000003,59.765999999999998,60.353000000000002,60.945999999999998,61.54,62.109000000000002,62.619,63.034999999999997,63.307000000000002,63.384,63.247,62.893999999999998,62.331000000000003,61.561,60.594999999999999,59.488999999999997,58.314999999999998,57.143999999999998,56.048000000000002,55.088999999999999,54.31,53.749000000000002,53.444000000000003,53.447000000000003,53.795000000000002,54.451999999999998,55.36,56.46,57.668999999999997,58.895000000000003,60.06,61.098999999999997,61.968000000000004,62.649000000000001,63.152999999999999,63.537999999999997,63.856999999999999]
["Uzbekistan",8526.2990000000009,8813.6190000000006,9113.6290000000008,9428.9060000000009,9762.8189999999995,10116.870000000001,10493.441000000001,10889.499,11294.665999999999,11694.843000000001,12080.311,12446.444,12796.982,13140.797,13491.114,13857.468999999999,14242.766,14643.880999999999,15057.226000000001,15476.928,15898.76,16321.691999999999,16747.428,17177.663,17615.037,18061.282999999999,18515.579000000002,18976.411,19443.89,19918.118999999999,20398.347000000002,20884.862000000001,21375.114000000001,21861.973999999998,22336.202000000001,22791.032999999999,23225.303,23640.487000000001,24036.017,24412.050999999999,24769.955000000002,25108.554,25431.116000000002,25749.109,26077.614000000001,26427.785,26804.066999999999,27204.710999999999,27626.981,28065.469000000001,28515.907999999999,28977.006000000001,29449.415000000001,29932.63,30426.394,30929.556,31441.753000000001,31959.774000000001,32476.232,null,48.405999999999999,48.777000000000001,49.142000000000003,49.509,49.887999999999998,50.283999999999999,50.704999999999998,51.148000000000003,51.615000000000002,52.106000000000002,52.62,53.156999999999996,53.713000000000001,54.280999999999999,54.856000000000002,55.427999999999997,55.99,56.537999999999997,57.070999999999998,57.59,58.106999999999999,58.637,59.191000000000003,59.765999999999998,60.353000000000002,60.945999999999998,61.54,62.109000000000002,62.619,63.034999999999997,63.307000000000002,63.384,63.247,62.893999999999998,62.331000000000003,61.561,60.594999999999999,59.488999999999997,58.314999999999998,57.143999999999998,56.048000000000002,55.088999999999999,54.31,53.749000000000002,53.444000000000003,53.447000000000003,53.795000000000002,54.451999999999998,55.36,56.46,57.668999999999997,58.895000000000003,60.06,61.098999999999997,61.968000000000004,62.649000000000001,63.152999999999999,63.537999999999997,63.856999999999999]
["Vanuatu",63.689,65.7,67.793000000000006,69.944000000000003,72.116,74.268000000000001,76.391999999999996,78.504999999999995,80.653000000000006,82.92,85.373999999999995,88.012,90.802000000000007,93.748999999999995,96.772999999999996,99.863,103.002,106.206,109.39700000000001,112.54300000000001,115.598,118.54600000000001,121.398,124.21299999999999,127.05800000000001,129.989,132.988,136.07499999999999,139.31899999999999,142.80099999999999,146.57499999999999,150.71799999999999,155.17599999999999,159.74299999999999,164.12799999999999,168.161,171.721,174.917,177.98699999999999,181.25899999999999,184.964,189.209,193.92699999999999,198.96,204.12299999999999,209.28200000000001,214.37899999999999,219.464,224.7,230.244,236.21600000000001,242.65799999999999,249.505,256.637,263.88799999999998,271.12799999999999,278.32600000000002,285.49900000000002,292.67500000000001,null,48.405999999999999,48.777000000000001,49.142000000000003,49.509,49.887999999999998,50.283999999999999,50.704999999999998,51.148000000000003,51.615000000000002,52.106000000000002,52.62,53.156999999999996,53.713000000000001,54.280999999999999,54.856000000000002,55.427999999999997,55.99,56.537999999999997,57.070999999999998,57.59,58.106999999999999,58.637,59.191000000000003,59.765999999999998,60.353000000000002,60.945999999999998,61.54,62.109000000000002,62.619,63.034999999999997,63.307000000000002,63.384,63.247,62.893999999999998,62.331000000000003,61.561,60.594999999999999,59.488999999999997,58.314999999999998,57.143999999999998,56.048000000000002,55.088999999999999,54.31,53.749000000000002,53.444000000000003,53.447000000000003,53.795000000000002,54.451999999999998,55.36,56.46,57.668999999999997,58.895000000000003,60.06,61.098999999999997,61.968000000000004,62.649000000000001,63.152999999999999,63.537999999999997,63.856999999999999]
["Viet Nam",32670.047999999999,33666.110999999997,34683.410000000003,35721.213000000003,36780.000999999997,37858.947,38958.046000000002,40072.951000000001,41193.588000000003,42307.148999999998,43404.802000000003,44484.031999999999,45548.476000000002,46603.521999999997,47657.553999999996,48718.19,49785.277999999998,50861.165999999997,51959.021000000001,53095.406000000003,54281.841,55522.803999999996,56814.309000000001,58148.383999999998,59512.618999999999,60896.732000000004,62293.858999999997,63701.974000000002,65120.432000000001,66550.231,67988.854999999996,69436.956000000006,70883.487999999998,72300.308000000005,73651.22,74910.462,76068.739000000001,77133.212,78115.712,79035.870999999999,79910.410999999993,80742.5,81534.406000000003,82301.649999999994,83062.819000000003,83832.661999999997,84617.544999999998,85419.588000000003,86243.423999999999,87092.25,87967.654999999999,88871.384000000005,89801.926000000007,90752.592999999993,91713.85,92677.081999999995,93640.434999999998,94600.642999999996,95545.959000000003,null,48.405999999999999,48.777000000000001,49.142000000000003,49.509,49.887999999999998,50.283999999999999,50.704999999999998,51.148000000000003,51.615000000000002,52.106000000000002,52.62,53.156999999999996,53.713000000000001,54.280999999999999,54.856000000000002,55.427999999999997,55.99,56.537999999999997,57.070999999999998,57.59,58.106999999999999,58.637,59.191000000000003,59.765999999999998,60.353000000000002,60.945999999999998,61.54,62.109000000000002,62.619,63.034999999999997,63.307000000000002,63.384,63.247,62.893999999999998,62.331000000000003,61.561,60.594999999999999,59.488999999999997,58.314999999999998,57.143999999999998,56.048000000000002,55.088999999999999,54.31,53.749000000000002,53.444000000000003,53.447000000000003,53.795000000000002,54.451999999999998,55.36,56.46,57.668999999999997,58.895000000000003,60.06,61.098999999999997,61.968000000000004,62.649000000000001,63.152999999999999,63.537999999999997,63.856999999999999]
["Yemen",5315.3509999999997,5393.0339999999997,5473.6710000000003,5556.7669999999998,5641.598,5727.7449999999999,5816.241,5907.8729999999996,6001.8580000000002,6097.0420000000004,6193.3789999999999,6290.3670000000002,6390.5730000000003,6500.8090000000002,6630.0029999999997,6784.6989999999996,6967.9440000000004,7178.6719999999996,7414.1670000000004,7669.6989999999996,7941.9030000000002,8231.9050000000007,8541.6049999999996,8869.3629999999994,9213.0779999999995,9572.17,9941.1020000000008,10322.044,10730.864,11189.184999999999,11709.986999999999,12302.127,12954.156999999999,13634.082,14297.617,14913.313,15469.273999999999,15975.675999999999,16450.306,16921.156999999999,17409.071,17918.368999999999,18443.684000000001,18985.001,19540.096000000001,20107.416000000001,20687.648000000001,21282.513999999999,21892.149000000001,22516.464,23154.853999999999,23807.585999999999,24473.175999999999,25147.112000000001,25823.488000000001,26497.881000000001,27168.21,27834.811000000002,28498.683000000001,null,48.405999999999999,48.777000000000001,49.142000000000003,49.509,49.887999999999998,50.283999999999999,50.704999999999998,51.148000000000003,51.615000000000002,52.106000000000002,52.62,53.156999999999996,53.713000000000001,54.280999999999999,54.856000000000002,55.427999999999997,55.99,56.537999999999997,57.070999999999998,57.59,58.106999999999999,58.637,59.191000000000003,59.765999999999998,60.353000000000002,60.945999999999998,61.54,62.109000000000002,62.619,63.034999999999997,63.307000000000002,63.384,63.247,62.893999999999998,62.331000000000003,61.561,60.594999999999999,59.488999999999997,58.314999999999998,57.143999999999998,56.048000000000002,55.088999999999999,54.31,53.749000000000002,53.444000000000003,53.447000000000003,53.795000000000002,54.451999999999998,55.36,56.46,57.668999999999997,58.895000000000003,60.06,61.098999999999997,61.968000000000004,62.649000000000001,63.152999999999999,63.537999999999997,63.856999999999999]
["Zambia",3070.78,3164.33,3260.645,3360.0990000000002,3463.2109999999998,3570.4659999999999,3681.953,3797.877,3918.8719999999998,4045.74,4179.0619999999999,4319.2259999999997,4466.17,4619.549,4778.7160000000003,4943.2790000000005,5112.8230000000003,5287.5439999999999,5468.259,5656.1450000000004,5851.8180000000002,6055.3609999999999,6265.8689999999997,6481.9070000000002,6701.5469999999996,6923.1480000000001,7146.9650000000001,7372.835,7598.27,7820.1989999999996,8036.8490000000002,8246.6620000000003,8451.3459999999995,8656.4840000000004,8869.7450000000008,9096.6080000000002,9339.74,9597.61,9866.4740000000002,10140.564,10415.941999999999,10692.197,10971.704,11256.74,11550.641,11856.244000000001,12173.518,12502.958000000001,12848.531000000001,13215.142,13605.986000000001,14023.199000000001,14465.147999999999,14926.550999999999,15399.793,15879.37,16363.449000000001,16853.608,17351.714,null,46.686999999999998,47.084000000000003,47.445999999999998,47.771999999999998,48.067999999999998,48.350999999999999,48.643000000000001,48.96,49.313000000000002,49.7,50.113999999999997,50.542000000000002,50.960999999999999,51.350999999999999,51.7,51.999000000000002,52.247,52.448999999999998,52.606999999999999,52.722000000000001,52.802,52.863,52.905000000000001,52.914999999999999,52.87,52.72,52.402000000000001,51.887999999999998,51.173000000000002,50.281999999999996,49.249000000000002,48.125,46.987000000000002,45.918999999999997,44.982999999999997,44.241999999999997,43.734999999999999,43.460999999999999,43.412999999999997,43.594000000000001,44,44.615000000000002,45.4,46.322000000000003,47.353999999999999,48.496000000000002,49.756999999999998,51.134,52.606000000000002,54.13,55.655000000000001,57.125999999999998,58.502000000000002,59.746000000000002,60.831000000000003,61.737000000000002,62.463999999999999,63.042999999999999,63.51]
["Zimbabwe",3776.6790000000001,3905.038,4039.2089999999998,4178.7259999999997,4322.8540000000003,4471.1779999999999,4623.34,4779.8249999999998,4941.9009999999998,5111.326,5289.3119999999999,5476.9780000000001,5673.9139999999998,5877.7250000000004,6085.0780000000004,6293.875,6502.5659999999998,6712.8249999999998,6929.6629999999996,7160.0209999999997,7408.63,7675.5820000000003,7958.2389999999996,8254.7459999999992,8562.259,8877.4889999999996,9200.15,9527.2019999999993,9849.1290000000008,10153.852000000001,10432.409,10681.008,10900.511,11092.775,11261.752,11410.721,11541.215,11653.254000000001,11747.079,11822.722,11881.482,11923.906000000001,11954.293,11982.218999999999,12019.911,12076.697,12155.495999999999,12255.92,12379.553,12526.964,12697.727999999999,12894.323,13115.148999999999,13350.378000000001,13586.71,13814.642,14030.338,14236.599,14438.812,null,53.018999999999998,53.482999999999997,53.945999999999998,54.402999999999999,54.848999999999997,55.274000000000001,55.670999999999999,56.033999999999999,56.362000000000002,56.655999999999999,56.912999999999997,57.134999999999998,57.329000000000001,57.509,57.688000000000002,57.892000000000003,58.15,58.47,58.85,59.274000000000001,59.731000000000002,60.203000000000003,60.65,61.024999999999999,61.28,61.356000000000002,61.198999999999998,60.792000000000002,60.136000000000003,59.234999999999999,58.1,56.749000000000002,55.243000000000002,53.652999999999999,52.043999999999997,50.48,49.009,47.661000000000001,46.466000000000001,45.460999999999999,44.649000000000001,44.01,43.523000000000003,43.195,43.064999999999998,43.241,43.853000000000002,44.947000000000003,46.503999999999998,48.448999999999998,50.64,52.896000000000001,55.031999999999996,56.896999999999998,58.41,59.533999999999999,60.293999999999997,60.811999999999998,61.195]

{"sheet":"F2__World_Population","index":8,"n_rows":196,"n_cols":120,"rows_kept":196,"cut":false,"hidden":false,"merged":[]}
["Total population per country (1960 to 2018)",null,null,null,null,null,null,null,null,null,null,null,null,null,null,null,null,null,null,null,null,null,null,null,null,null,null,null,null,null,null,null,null,null,null,null,null,null,null,null,null,null,null,null,null,null,null,null,null,null,null,null,null,null,null,null,null,null,null,null,null,"Life expectancy per country (1960 to 2018)"]
["Data Source","https://population.un.org/wpp/Download/Standard/CSV/",null,null,null,null,null,null,null,null,null,null,null,null,null,null,null,null,null,null,null,null,null,null,null,null,null,null,null,null,null,null,null,null,null,null,null,null,null,null,null,null,null,null,null,null,null,null,null,null,null,null,null,null,null,null,null,null,null,null,null,"Data Source","https://data.worldbank.org/indicator/SP.DYN.LE00.IN"]
[null,2018,2017,2016,2015,2014,2013,2012,2011,2010,2009,2008,2007,2006,2005,2004,2003,2002,2001,2000,1999,1998,1997,1996,1995,1994,1993,1992,1991,1990,1989,1988,1987,1986,1985,1984,1983,1982,1981,1980,1979,1978,1977,1976,1975,1974,1973,1972,1971,1970,1969,1968,1967,1966,1965,1964,1963,1962,1961,1960,null,2018,2017,2016,2015,2014,2013,2012,2011,2010,2009,2008,2007,2006,2005,2004,2003,2002,2001,2000,1999,1998,1997,1996,1995,1994,1993,1992,1991,1990,1989,1988,1987,1986,1985,1984,1983,1982,1981,1980,1979,1978,1977,1976,1975,1974,1973,1972,1971,1970,1969,1968,1967,1966,1965,1964,1963,1962,1961,1960]
["China",{"$f":"VLOOKUP($A4,F1__World_Data!$A$4:$DP$191,60,FALSE)","v":1427647.7890000001},{"$f":"VLOOKUP($A4,F1__World_Data!$A$4:$DP$191,59,FALSE)","v":1421021.794},{"$f":"VLOOKUP($A4,F1__World_Data!$A$4:$DP$191,58,FALSE)","v":1414049.3529999999},{"$f":"VLOOKUP($A4,F1__World_Data!$A$4:$DP$191,57,FALSE)","v":1406847.868},{"$f":"VLOOKUP($A4,F1__World_Data!$A$4:$DP$191,56,FALSE)","v":1399453.966},{"$f":"VLOOKUP($A4,F1__World_Data!$A$4:$DP$191,55,FALSE)","v":1391883.335},{"$f":"VLOOKUP($A4,F1__World_Data!$A$4:$DP$191,54,FALSE)","v":1384206.4080000001},{"$f":"VLOOKUP($A4,F1__World_Data!$A$4:$DP$191,53,FALSE)","v":1376497.6329999999},{"$f":"VLOOKUP($A4,F1__World_Data!$A$4:$DP$191,52,FALSE)","v":1368810.6040000001},{"$f":"VLOOKUP($A4,F1__World_Data!$A$4:$DP$191,51,FALSE)","v":1361169.41},{"$f":"VLOOKUP($A4,F1__World_Data!$A$4:$DP$191,50,FALSE)","v":1353569.48},{"$f":"VLOOKUP($A4,F1__World_Data!$A$4:$DP$191,49,FALSE)","v":1345993.8910000001},{"$f":"VLOOKUP($A4,F1__World_Data!$A$4:$DP$191,48,FALSE)","v":1338408.6440000001},{"$f":"VLOOKUP($A4,F1__World_Data!$A$4:$DP$191,47,FALSE)","v":1330776.3799999999},{"$f":"VLOOKUP($A4,F1__World_Data!$A$4:$DP$191,46,FALSE)","v":1323084.639},{"$f":"VLOOKUP($A4,F1__World_Data!$A$4:$DP$191,45,FALSE)","v":1315303.5220000001},{"$f":"VLOOKUP($A4,F1__World_Data!$A$4:$DP$191,44,FALSE)","v":1307352.2560000001},{"$f":"VLOOKUP($A4,F1__World_Data!$A$4:$DP$191,43,FALSE)","v":1299129.747},{"$f":"VLOOKUP($A4,F1__World_Data!$A$4:$DP$191,42,FALSE)","v":1290550.767},{"$f":"VLOOKUP($A4,F1__World_Data!$A$4:$DP$191,41,FALSE)","v":1281514.8330000001},{"$f":"VLOOKUP($A4,F1__World_Data!$A$4:$DP$191,40,FALSE)","v":1271982.3489999999},{"$f":"VLOOKUP($A4,F1__World_Data!$A$4:$DP$191,39,FALSE)","v":1261996.017},{"$f":"VLOOKUP($A4,F1__World_Data!$A$4:$DP$191,38,FALSE)","v":1251636.1780000001},{"$f":"VLOOKUP($A4,F1__World_Data!$A$4:$DP$191,37,FALSE)","v":1240920.5390000001},{"$f":"VLOOKUP($A4,F1__World_Data!$A$4:$DP$191,36,FALSE)","v":1230020.0260000001},{"$f":"VLOOKUP($A4,F1__World_Data!$A$4:$DP$191,35,FALSE)","v":1218817.0589999999},{"$f":"VLOOKUP($A4,F1__World_Data!$A$4:$DP$191,34,FALSE)","v":1206711.243},{"$f":"VLOOKUP($A4,F1__World_Data!$A$4:$DP$191,33,FALSE)","v":1192897.277},{"$f":"VLOOKUP($A4,F1__World_Data!$A$4:$DP$191,32,FALSE)","v":1176883.6810000001},{"$f":"VLOOKUP($A4,F1__World_Data!$A$4:$DP$191,31,FALSE)","v":1158357.3929999999},{"$f":"VLOOKUP($A4,F1__World_Data!$A$4:$DP$191,30,FALSE)","v":1137724.2339999999},{"$f":"VLOOKUP($A4,F1__World_Data!$A$4:$DP$191,29,FALSE)","v":1116095.4750000001},{"$f":"VLOOKUP($A4,F1__World_Data!$A$4:$DP$191,28,FALSE)","v":1095014.1059999999},{"$f":"VLOOKUP($A4,F1__World_Data!$A$4:$DP$191,27,FALSE)","v":1075589.3629999999},{"$f":"VLOOKUP($A4,F1__World_Data!$A$4:$DP$191,26,FALSE)","v":1058171.973},{"$f":"VLOOKUP($A4,F1__World_Data!$A$4:$DP$191,25,FALSE)","v":1042431.401},{"$f":"VLOOKUP($A4,F1__World_Data!$A$4:$DP$191,24,FALSE)","v":1027948.9889999999},{"$f":"VLOOKUP($A4,F1__World_Data!$A$4:$DP$191,23,FALSE)","v":1014022.211},{"$f":"VLOOKUP($A4,F1__World_Data!$A$4:$DP$191,22,FALSE)","v":1000089.228},{"$f":"VLOOKUP($A4,F1__World_Data!$A$4:$DP$191,21,FALSE)","v":986132.21400000004},{"$f":"VLOOKUP($A4,F1__World_Data!$A$4:$DP$191,20,FALSE)","v":972205.44099999999},{"$f":"VLOOKUP($A4,F1__World_Data!$A$4:$DP$191,19,FALSE)","v":957891.27099999995},{"$f":"VLOOKUP($A4,F1__World_Data!$A$4:$DP$191,18,FALSE)","v":942685.41200000001},{"$f":"VLOOKUP($A4,F1__World_Data!$A$4:$DP$191,17,FALSE)","v":926240.88899999997},{"$f":"VLOOKUP($A4,F1__World_Data!$A$4:$DP$191,16,FALSE)","v":908464.20600000001},{"$f":"VLOOKUP($A4,F1__World_Data!$A$4:$DP$191,15,FALSE)","v":889485.36800000002},{"$f":"VLOOKUP($A4,F1__World_Data!$A$4:$DP$191,14,FALSE)","v":869485.96200000006},{"$f":"VLOOKUP($A4,F1__World_Data!$A$4:$DP$191,13,FALSE)","v":848759.70900000003},{"$f":"VLOOKUP($A4,F1__World_Data!$A$4:$DP$191,12,FALSE)","v":827601.38500000001},{"$f":"VLOOKUP($A4,F1__World_Data!$A$4:$DP$191,11,FALSE)","v":805985.94099999999},{"$f":"VLOOKUP($A4,F1__World_Data!$A$4:$DP$191,10,FALSE)","v":784074.71499999997},{"$f":"VLOOKUP($A4,F1__World_Data!$A$4:$DP$191,9,FALSE)","v":762581.17599999998},{"$f":"VLOOKUP($A4,F1__World_Data!$A$4:$DP$191,8,FALSE)","v":742414.88699999999},{"$f":"VLOOKUP($A4,F1__World_Data!$A$4:$DP$191,7,FALSE)","v":724218.97},{"$f":"VLOOKUP($A4,F1__World_Data!$A$4:$DP$191,6,FALSE)","v":708254.60199999996},{"$f":"VLOOKUP($A4,F1__World_Data!$A$4:$DP$191,5,FALSE)","v":694339.08400000003},{"$f":"VLOOKUP($A4,F1__World_Data!$A$4:$DP$191,4,FALSE)","v":682102.65399999998},{"$f":"VLOOKUP($A4,F1__World_Data!$A$4:$DP$191,3,FALSE)","v":670952.701},{"$f":"VLOOKUP($A4,F1__World_Data!$A$4:$DP$191,2,FALSE)","v":660408.054},null,{"$f":"VLOOKUP($A4,F1__World_Data!$A$4:$DP$191,120,FALSE)","v":77.013154810125457},{"$f":"VLOOKUP($A4,F1__World_Data!$A$4:$DP$191,119,FALSE)","v":76.947462150480874},{"$f":"VLOOKUP($A4,F1__World_Data!$A$4:$DP$191,118,FALSE)","v":76.969807982335965},{"$f":"VLOOKUP($A4,F1__World_Data!$A$4:$DP$191,117,FALSE)","v":76.571877764778804},{"$f":"VLOOKUP($A4,F1__World_Data!$A$4:$DP$191,116,FALSE)","v":76.675623611304488},{"$f":"VLOOKUP($A4,F1__World_Data!$A$4:$DP$191,115,FALSE)","v":76.355162986980844},{"$f":"VLOOKUP($A4,F1__World_Data!$A$4:$DP$191,114,FALSE)","v":75.993488603453059},{"$f":"VLOOKUP($A4,F1__World_Data!$A$4:$DP$191,113,FALSE)","v":75.888474883428188},{"$f":"VLOOKUP($A4,F1__World_Data!$A$4:$DP$191,112,FALSE)","v":75.293965778631389},{"$f":"VLOOKUP($A4,F1__World_Data!$A$4:$DP$191,111,FALSE)","v":74.930363926657648},{"$f":"VLOOKUP($A4,F1__World_Data!$A$4:$DP$191,110,FALSE)","v":74.575952678077925},{"$f":"VLOOKUP($A4,F1__World_Data!$A$4:$DP$191,109,FALSE)","v":74.250648721076857},{"$f":"VLOOKUP($A4,F1__World_Data!$A$4:$DP$191,108,FALSE)","v":74.092602730809759},{"$f":"VLOOKUP($A4,F1__World_Data!$A$4:$DP$191,107,FALSE)","v":73.838300183861094},{"$f":"VLOOKUP($A4,F1__World_Data!$A$4:$DP$191,106,FALSE)","v":73.73715299612762},{"$f":"VLOOKUP($A4,F1__World_Data!$A$4:$DP$191,105,FALSE)","v":73.382252782525796},{"$f":"VLOOKUP($A4,F1__World_Data!$A$4:$DP$191,104,FALSE)","v":73.242415488092149},{"$f":"VLOOKUP($A4,F1__World_Data!$A$4:$DP$191,103,FALSE)","v":73.096148193734322},{"$f":"VLOOKUP($A4,F1__World_Data!$A$4:$DP$191,102,FALSE)","v":72.719724722779048},{"$f":"VLOOKUP($A4,F1__World_Data!$A$4:$DP$191,101,FALSE)","v":72.184561074087483},{"$f":"VLOOKUP($A4,F1__World_Data!$A$4:$DP$191,100,FALSE)","v":71.898237675995631},{"$f":"VLOOKUP($A4,F1__World_Data!$A$4:$DP$191,99,FALSE)","v":71.517258069682228},{"$f":"VLOOKUP($A4,F1__World_Data!$A$4:$DP$191,98,FALSE)","v":71.336058018995075},{"$f":"VLOOKUP($A4,F1__World_Data!$A$4:$DP$191,97,FALSE)","v":71.025421428289064},{"$f":"VLOOKUP($A4,F1__World_Data!$A$4:$DP$191,96,FALSE)","v":70.869543944747306},{"$f":"VLOOKUP($A4,F1__World_Data!$A$4:$DP$191,95,FALSE)","v":70.845986615144795},{"$f":"VLOOKUP($A4,F1__World_Data!$A$4:$DP$191,94,FALSE)","v":70.732837131415664},{"$f":"VLOOKUP($A4,F1__World_Data!$A$4:$DP$191,93,FALSE)","v":70.57522130347742},{"$f":"VLOOKUP($A4,F1__World_Data!$A$4:$DP$191,92,FALSE)","v":70.656331337258607},{"$f":"VLOOKUP($A4,F1__World_Data!$A$4:$DP$191,91,FALSE)","v":70.731972259748474},{"$f":"VLOOKUP($A4,F1__World_Data!$A$4:$DP$191,90,FALSE)","v":70.861708225052027},{"$f":"VLOOKUP($A4,F1__World_Data!$A$4:$DP$191,89,FALSE)","v":70.611763331234172},{"$f":"VLOOKUP($A4,F1__World_Data!$A$4:$DP$191,88,FALSE)","v":70.565136039744331},{"$f":"VLOOKUP($A4,F1__World_Data!$A$4:$DP$191,87,FALSE)","v":70.312883466323655},{"$f":"VLOOKUP($A4,F1__World_Data!$A$4:$DP$191,86,FALSE)","v":70.349114856134193},{"$f":"VLOOKUP($A4,F1__World_Data!$A$4:$DP$191,85,FALSE)","v":70.389785169429601},{"$f":"VLOOKUP($A4,F1__World_Data!$A$4:$DP$191,84,FALSE)","v":70.45547331873172},{"$f":"VLOOKUP($A4,F1__World_Data!$A$4:$DP$191,83,FALSE)","v":70.372050177777368},{"$f":"VLOOKUP($A4,F1__World_Data!$A$4:$DP$191,82,FALSE)","v":69.890509798033563},{"$f":"VLOOKUP($A4,F1__World_Data!$A$4:$DP$191,81,FALSE)","v":70.239396993958749},{"$f":"VLOOKUP($A4,F1__World_Data!$A$4:$DP$191,80,FALSE)","v":70.147932106139478},{"$f":"VLOOKUP($A4,F1__World_Data!$A$4:$DP$191,79,FALSE)","v":70.242373148279256},{"$f":"VLOOKUP($A4,F1__World_Data!$A$4:$DP$191,78,FALSE)","v":70.319148895789127},{"$f":"VLOOKUP($A4,F1__World_Data!$A$4:$DP$191,77,FALSE)","v":70.174408694229456},{"$f":"VLOOKUP($A4,F1__World_Data!$A$4:$DP$191,76,FALSE)","v":70.30593936929715},{"$f":"VLOOKUP($A4,F1__World_Data!$A$4:$DP$191,75,FALSE)","v":70.067777192089565},{"$f":"VLOOKUP($A4,F1__World_Data!$A$4:$DP$191,74,FALSE)","v":69.925441264574317},{"$f":"VLOOKUP($A4,F1__World_Data!$A$4:$DP$191,73,FALSE)","v":69.485165745849855},{"$f":"VLOOKUP($A4,F1__World_Data!$A$4:$DP$191,72,FALSE)","v":69.446955055223569},{"$f":"VLOOKUP($A4,F1__World_Data!$A$4:$DP$191,71,FALSE)","v":69.275734201981379},{"$f":"VLOOKUP($A4,F1__World_Data!$A$4:$DP$191,70,FALSE)","v":69.536025304884078},{"$f":"VLOOKUP($A4,F1__World_Data!$A$4:$DP$191,69,FALSE)","v":69.272742187699023},{"$f":"VLOOKUP($A4,F1__World_Data!$A$4:$DP$191,68,FALSE)","v":69.527071933977979},{"$f":"VLOOKUP($A4,F1__World_Data!$A$4:$DP$191,67,FALSE)","v":69.276997595515866},{"$f":"VLOOKUP($A4,F1__World_Data!$A$4:$DP$191,66,FALSE)","v":69.052484538875277},{"$f":"VLOOKUP($A4,F1__World_Data!$A$4:$DP$191,65,FALSE)","v":68.696047369716993},{"$f":"VLOOKUP($A4,F1__World_Data!$A$4:$DP$191,64,FALSE)","v":68.006925641810753},{"$f":"VLOOKUP($A4,F1__World_Data!$A$4:$DP$191,63,FALSE)","v":68.262198343866316},{"$f":"VLOOKUP($A4,F1__World_Data!$A$4:$DP$191,62,FALSE)","v":67.821388639175453}]
["India",{"$f":"VLOOKUP($A5,F1__World_Data!$A$4:$DP$191,60,FALSE)","v":1352642.2830000001},{"$f":"VLOOKUP($A5,F1__World_Data!$A$4:$DP$191,59,FALSE)","v":1338676.7790000001},{"$f":"VLOOKUP($A5,F1__World_Data!$A$4:$DP$191,58,FALSE)","v":1324517.25},{"$f":"VLOOKUP($A5,F1__World_Data!$A$4:$DP$191,57,FALSE)","v":1310152.392},{"$f":"VLOOKUP($A5,F1__World_Data!$A$4:$DP$191,56,FALSE)","v":1295600.7679999999},{"$f":"VLOOKUP($A5,F1__World_Data!$A$4:$DP$191,55,FALSE)","v":1280842.1189999999},{"$f":"VLOOKUP($A5,F1__World_Data!$A$4:$DP$191,54,FALSE)","v":1265780.243},{"$f":"VLOOKUP($A5,F1__World_Data!$A$4:$DP$191,53,FALSE)","v":1250287.939},{"$f":"VLOOKUP($A5,F1__World_Data!$A$4:$DP$191,52,FALSE)","v":1234281.1629999999},{"$f":"VLOOKUP($A5,F1__World_Data!$A$4:$DP$191,51,FALSE)","v":1217726.2169999999},{"$f":"VLOOKUP($A5,F1__World_Data!$A$4:$DP$191,50,FALSE)","v":1200669.7620000001},{"$f":"VLOOKUP($A5,F1__World_Data!$A$4:$DP$191,49,FALSE)","v":1183209.4709999999},{"$f":"VLOOKUP($A5,F1__World_Data!$A$4:$DP$191,48,FALSE)","v":1165486.291},{"$f":"VLOOKUP($A5,F1__World_Data!$A$4:$DP$191,47,FALSE)","v":1147609.9240000001},{"$f":"VLOOKUP($A5,F1__World_Data!$A$4:$DP$191,46,FALSE)","v":1129623.466},{"$f":"VLOOKUP($A5,F1__World_Data!$A$4:$DP$191,45,FALSE)","v":1111523.1459999999},{"$f":"VLOOKUP($A5,F1__World_Data!$A$4:$DP$191,44,FALSE)","v":1093317.1869999999},{"$f":"VLOOKUP($A5,F1__World_Data!$A$4:$DP$191,43,FALSE)","v":1075000.094},{"$f":"VLOOKUP($A5,F1__World_Data!$A$4:$DP$191,42,FALSE)","v":1056575.548},{"$f":"VLOOKUP($A5,F1__World_Data!$A$4:$DP$191,41,FALSE)","v":1038058.154},{"$f":"VLOOKUP($A5,F1__World_Data!$A$4:$DP$191,40,FALSE)","v":1019483.586},{"$f":"VLOOKUP($A5,F1__World_Data!$A$4:$DP$191,39,FALSE)","v":1000900.028},{"$f":"VLOOKUP($A5,F1__World_Data!$A$4:$DP$191,38,FALSE)","v":982365.24800000002},{"$f":"VLOOKUP($A5,F1__World_Data!$A$4:$DP$191,37,FALSE)","v":963922.58600000001},{"$f":"VLOOKUP($A5,F1__World_Data!$A$4:$DP$191,36,FALSE)","v":945601.82799999998},{"$f":"VLOOKUP($A5,F1__World_Data!$A$4:$DP$191,35,FALSE)","v":927403.86600000004},{"$f":"VLOOKUP($A5,F1__World_Data!$A$4:$DP$191,34,FALSE)","v":909307.01800000004},{"$f":"VLOOKUP($A5,F1__World_Data!$A$4:$DP$191,33,FALSE)","v":891273.20200000005},{"$f":"VLOOKUP($A5,F1__World_Data!$A$4:$DP$191,32,FALSE)","v":873277.799},{"$f":"VLOOKUP($A5,F1__World_Data!$A$4:$DP$191,31,FALSE)","v":855334.67500000005},{"$f":"VLOOKUP($A5,F1__World_Data!$A$4:$DP$191,30,FALSE)","v":837468.93799999997},{"$f":"VLOOKUP($A5,F1__World_Data!$A$4:$DP$191,29,FALSE)","v":819682.09499999997},{"$f":"VLOOKUP($A5,F1__World_Data!$A$4:$DP$191,28,FALSE)","v":801975.25},{"$f":"VLOOKUP($A5,F1__World_Data!$A$4:$DP$191,27,FALSE)","v":784360.01199999999},{"$f":"VLOOKUP($A5,F1__World_Data!$A$4:$DP$191,26,FALSE)","v":766833.41099999996},{"$f":"VLOOKUP($A5,F1__World_Data!$A$4:$DP$191,25,FALSE)","v":749428.95799999998},{"$f":"VLOOKUP($A5,F1__World_Data!$A$4:$DP$191,24,FALSE)","v":732239.49800000002},{"$f":"VLOOKUP($A5,F1__World_Data!$A$4:$DP$191,23,FALSE)","v":715384.99699999997},{"$f":"VLOOKUP($A5,F1__World_Data!$A$4:$DP$191,22,FALSE)","v":698952.83700000006},{"$f":"VLOOKUP($A5,F1__World_Data!$A$4:$DP$191,21,FALSE)","v":682995.348},{"$f":"VLOOKUP($A5,F1__World_Data!$A$4:$DP$191,20,FALSE)","v":667499.81499999994},{"$f":"VLOOKUP($A5,F1__World_Data!$A$4:$DP$191,19,FALSE)","v":652408.76599999995},{"$f":"VLOOKUP($A5,F1__World_Data!$A$4:$DP$191,18,FALSE)","v":637630.08499999996},{"$f":"VLOOKUP($A5,F1__World_Data!$A$4:$DP$191,17,FALSE)","v":623102.9},{"$f":"VLOOKUP($A5,F1__World_Data!$A$4:$DP$191,16,FALSE)","v":608802.59499999997},{"$f":"VLOOKUP($A5,F1__World_Data!$A$4:$DP$191,15,FALSE)","v":594770.13600000006},{"$f":"VLOOKUP($A5,F1__World_Data!$A$4:$DP$191,14,FALSE)","v":581087.255},{"$f":"VLOOKUP($A5,F1__World_Data!$A$4:$DP$191,13,FALSE)","v":567868.02099999995},{"$f":"VLOOKUP($A5,F1__World_Data!$A$4:$DP$191,12,FALSE)","v":555189.79700000002},{"$f":"VLOOKUP($A5,F1__World_Data!$A$4:$DP$191,11,FALSE)","v":543084.33299999998},{"$f":"VLOOKUP($A5,F1__World_Data!$A$4:$DP$191,10,FALSE)","v":531513.83400000003},{"$f":"VLOOKUP($A5,F1__World_Data!$A$4:$DP$191,9,FALSE)","v":520400.57699999999},{"$f":"VLOOKUP($A5,F1__World_Data!$A$4:$DP$191,8,FALSE)","v":509631.50900000002},{"$f":"VLOOKUP($A5,F1__World_Data!$A$4:$DP$191,7,FALSE)","v":499123.32799999998},{"$f":"VLOOKUP($A5,F1__World_Data!$A$4:$DP$191,6,FALSE)","v":488848.13900000002},{"$f":"VLOOKUP($A5,F1__World_Data!$A$4:$DP$191,5,FALSE)","v":478825.60200000001},{"$f":"VLOOKUP($A5,F1__World_Data!$A$4:$DP$191,4,FALSE)","v":469077.19099999999},{"$f":"VLOOKUP($A5,F1__World_Data!$A$4:$DP$191,3,FALSE)","v":459642.16600000003},{"$f":"VLOOKUP($A5,F1__World_Data!$A$4:$DP$191,2,FALSE)","v":450547.67499999999},null,{"$f":"VLOOKUP($A5,F1__World_Data!$A$4:$DP$191,120,FALSE)","v":69.415999999999997},{"$f":"VLOOKUP($A5,F1__World_Data!$A$4:$DP$191,119,FALSE)","v":69.165000000000006},{"$f":"VLOOKUP($A5,F1__World_Data!$A$4:$DP$191,118,FALSE)","v":68.897000000000006},{"$f":"VLOOKUP($A5,F1__World_Data!$A$4:$DP$191,117,FALSE)","v":68.606999999999999},{"$f":"VLOOKUP($A5,F1__World_Data!$A$4:$DP$191,116,FALSE)","v":68.286000000000001},{"$f":"VLOOKUP($A5,F1__World_Data!$A$4:$DP$191,115,FALSE)","v":67.930999999999997},{"$f":"VLOOKUP($A5,F1__World_Data!$A$4:$DP$191,114,FALSE)","v":67.545000000000002},{"$f":"VLOOKUP($A5,F1__World_Data!$A$4:$DP$191,113,FALSE)","v":67.13},{"$f":"VLOOKUP($A5,F1__World_Data!$A$4:$DP$191,112,FALSE)","v":66.692999999999998},{"$f":"VLOOKUP($A5,F1__World_Data!$A$4:$DP$191,111,FALSE)","v":66.244},{"$f":"VLOOKUP($A5,F1__World_Data!$A$4:$DP$191,110,FALSE)","v":65.793999999999997},{"$f":"VLOOKUP($A5,F1__World_Data!$A$4:$DP$191,109,FALSE)","v":65.349999999999994},{"$f":"VLOOKUP($A5,F1__World_Data!$A$4:$DP$191,108,FALSE)","v":64.918000000000006},{"$f":"VLOOKUP($A5,F1__World_Data!$A$4:$DP$191,107,FALSE)","v":64.5},{"$f":"VLOOKUP($A5,F1__World_Data!$A$4:$DP$191,106,FALSE)","v":64.094999999999999},{"$f":"VLOOKUP($A5,F1__World_Data!$A$4:$DP$191,105,FALSE)","v":63.698999999999998},{"$f":"VLOOKUP($A5,F1__World_Data!$A$4:$DP$191,104,FALSE)","v":63.304000000000002},{"$f":"VLOOKUP($A5,F1__World_Data!$A$4:$DP$191,103,FALSE)","v":62.906999999999996},{"$f":"VLOOKUP($A5,F1__World_Data!$A$4:$DP$191,102,FALSE)","v":62.505000000000003},{"$f":"VLOOKUP($A5,F1__World_Data!$A$4:$DP$191,101,FALSE)","v":62.093000000000004},{"$f":"VLOOKUP($A5,F1__World_Data!$A$4:$DP$191,100,FALSE)","v":61.668999999999997},{"$f":"VLOOKUP($A5,F1__World_Data!$A$4:$DP$191,99,FALSE)","v":61.232999999999997},{"$f":"VLOOKUP($A5,F1__World_Data!$A$4:$DP$191,98,FALSE)","v":60.783000000000001},{"$f":"VLOOKUP($A5,F1__World_Data!$A$4:$DP$191,97,FALSE)","v":60.32},{"$f":"VLOOKUP($A5,F1__World_Data!$A$4:$DP$191,96,FALSE)","v":59.84},{"$f":"VLOOKUP($A5,F1__World_Data!$A$4:$DP$191,95,FALSE)","v":59.348999999999997},{"$f":"VLOOKUP($A5,F1__World_Data!$A$4:$DP$191,94,FALSE)","v":58.850999999999999},{"$f":"VLOOKUP($A5,F1__World_Data!$A$4:$DP$191,93,FALSE)","v":58.353000000000002},{"$f":"VLOOKUP($A5,F1__World_Data!$A$4:$DP$191,92,FALSE)","v":57.865000000000002},{"$f":"VLOOKUP($A5,F1__World_Data!$A$4:$DP$191,91,FALSE)","v":57.4},{"$f":"VLOOKUP($A5,F1__World_Data!$A$4:$DP$191,90,FALSE)","v":56.963000000000001},{"$f":"VLOOKUP($A5,F1__World_Data!$A$4:$DP$191,89,FALSE)","v":56.552999999999997},{"$f":"VLOOKUP($A5,F1__World_Data!$A$4:$DP$191,88,FALSE)","v":56.168999999999997},{"$f":"VLOOKUP($A5,F1__World_Data!$A$4:$DP$191,87,FALSE)","v":55.801000000000002},{"$f":"VLOOKUP($A5,F1__World_Data!$A$4:$DP$191,86,FALSE)","v":55.441000000000003},{"$f":"VLOOKUP($A5,F1__World_Data!$A$4:$DP$191,85,FALSE)","v":55.073999999999998},{"$f":"VLOOKUP($A5,F1__World_Data!$A$4:$DP$191,84,FALSE)","v":54.686},{"$f":"VLOOKUP($A5,F1__World_Data!$A$4:$DP$191,83,FALSE)","v":54.268000000000001},{"$f":"VLOOKUP($A5,F1__World_Data!$A$4:$DP$191,82,FALSE)","v":53.814},{"$f":"VLOOKUP($A5,F1__World_Data!$A$4:$DP$191,81,FALSE)","v":53.319000000000003},{"$f":"VLOOKUP($A5,F1__World_Data!$A$4:$DP$191,80,FALSE)","v":52.786000000000001},{"$f":"VLOOKUP($A5,F1__World_Data!$A$4:$DP$191,79,FALSE)","v":52.222000000000001},{"$f":"VLOOKUP($A5,F1__World_Data!$A$4:$DP$191,78,FALSE)","v":51.63},{"$f":"VLOOKUP($A5,F1__World_Data!$A$4:$DP$191,77,FALSE)","v":51.012},{"$f":"VLOOKUP($A5,F1__World_Data!$A$4:$DP$191,76,FALSE)","v":50.374000000000002},{"$f":"VLOOKUP($A5,F1__World_Data!$A$4:$DP$191,75,FALSE)","v":49.722000000000001},{"$f":"VLOOKUP($A5,F1__World_Data!$A$4:$DP$191,74,FALSE)","v":49.061},{"$f":"VLOOKUP($A5,F1__World_Data!$A$4:$DP$191,73,FALSE)","v":48.398000000000003},{"$f":"VLOOKUP($A5,F1__World_Data!$A$4:$DP$191,72,FALSE)","v":47.737000000000002},{"$f":"VLOOKUP($A5,F1__World_Data!$A$4:$DP$191,71,FALSE)","v":47.081000000000003},{"$f":"VLOOKUP($A5,F1__World_Data!$A$4:$DP$191,70,FALSE)","v":46.427999999999997},{"$f":"VLOOKUP($A5,F1__World_Data!$A$4:$DP$191,69,FALSE)","v":45.779000000000003},{"$f":"VLOOKUP($A5,F1__World_Data!$A$4:$DP$191,68,FALSE)","v":45.136000000000003},{"$f":"VLOOKUP($A5,F1__World_Data!$A$4:$DP$191,67,FALSE)","v":44.5},{"$f":"VLOOKUP($A5,F1__World_Data!$A$4:$DP$191,66,FALSE)","v":43.872999999999998},{"$f":"VLOOKUP($A5,F1__World_Data!$A$4:$DP$191,65,FALSE)","v":43.252000000000002},{"$f":"VLOOKUP($A5,F1__World_Data!$A$4:$DP$191,64,FALSE)","v":42.637},{"$f":"VLOOKUP($A5,F1__World_Data!$A$4:$DP$191,63,FALSE)","v":42.027000000000001},{"$f":"VLOOKUP($A5,F1__World_Data!$A$4:$DP$191,62,FALSE)","v":41.421999999999997}]
["Indonesia",{"$f":"VLOOKUP($A6,F1__World_Data!$A$4:$DP$191,60,FALSE)","v":267670.549},{"$f":"VLOOKUP($A6,F1__World_Data!$A$4:$DP$191,59,FALSE)","v":264650.96899999998},{"$f":"VLOOKUP($A6,F1__World_Data!$A$4:$DP$191,58,FALSE)","v":261556.386},{"$f":"VLOOKUP($A6,F1__World_Data!$A$4:$DP$191,57,FALSE)","v":258383.25700000001},{"$f":"VLOOKUP($A6,F1__World_Data!$A$4:$DP$191,56,FALSE)","v":255128.076},{"$f":"VLOOKUP($A6,F1__World_Data!$A$4:$DP$191,55,FALSE)","v":251805.31400000001},{"$f":"VLOOKUP($A6,F1__World_Data!$A$4:$DP$191,54,FALSE)","v":248451.71400000001},{"$f":"VLOOKUP($A6,F1__World_Data!$A$4:$DP$191,53,FALSE)","v":245115.98800000001},{"$f":"VLOOKUP($A6,F1__World_Data!$A$4:$DP$191,52,FALSE)","v":241834.226},{"$f":"VLOOKUP($A6,F1__World_Data!$A$4:$DP$191,51,FALSE)","v":238620.554},{"$f":"VLOOKUP($A6,F1__World_Data!$A$4:$DP$191,50,FALSE)","v":235469.755},{"$f":"VLOOKUP($A6,F1__World_Data!$A$4:$DP$191,49,FALSE)","v":232374.239},{"$f":"VLOOKUP($A6,F1__World_Data!$A$4:$DP$191,48,FALSE)","v":229318.26199999999},{"$f":"VLOOKUP($A6,F1__World_Data!$A$4:$DP$191,47,FALSE)","v":226289.46799999999},{"$f":"VLOOKUP($A6,F1__World_Data!$A$4:$DP$191,46,FALSE)","v":223285.666},{"$f":"VLOOKUP($A6,F1__World_Data!$A$4:$DP$191,45,FALSE)","v":220309.473},{"$f":"VLOOKUP($A6,F1__World_Data!$A$4:$DP$191,44,FALSE)","v":217357.79},{"$f":"VLOOKUP($A6,F1__World_Data!$A$4:$DP$191,43,FALSE)","v":214427.41899999999},{"$f":"VLOOKUP($A6,F1__World_Data!$A$4:$DP$191,42,FALSE)","v":211513.82199999999},{"$f":"VLOOKUP($A6,F1__World_Data!$A$4:$DP$191,41,FALSE)","v":208615.171},{"$f":"VLOOKUP($A6,F1__World_Data!$A$4:$DP$191,40,FALSE)","v":205724.59700000001},{"$f":"VLOOKUP($A6,F1__World_Data!$A$4:$DP$191,39,FALSE)","v":202826.44399999999},{"$f":"VLOOKUP($A6,F1__World_Data!$A$4:$DP$191,38,FALSE)","v":199901.231},{"$f":"VLOOKUP($A6,F1__World_Data!$A$4:$DP$191,37,FALSE)","v":196934.25700000001},{"$f":"VLOOKUP($A6,F1__World_Data!$A$4:$DP$191,36,FALSE)","v":193917.45800000001},{"$f":"VLOOKUP($A6,F1__World_Data!$A$4:$DP$191,35,FALSE)","v":190851.18400000001},{"$f":"VLOOKUP($A6,F1__World_Data!$A$4:$DP$191,34,FALSE)","v":187739.78599999999},{"$f":"VLOOKUP($A6,F1__World_Data!$A$4:$DP$191,33,FALSE)","v":184591.897},{"$f":"VLOOKUP($A6,F1__World_Data!$A$4:$DP$191,32,FALSE)","v":181413.39799999999},{"$f":"VLOOKUP($A6,F1__World_Data!$A$4:$DP$191,31,FALSE)","v":178209.147},{"$f":"VLOOKUP($A6,F1__World_Data!$A$4:$DP$191,30,FALSE)","v":174975.95300000001},{"$f":"VLOOKUP($A6,F1__World_Data!$A$4:$DP$191,29,FALSE)","v":171702.75599999999},{"$f":"VLOOKUP($A6,F1__World_Data!$A$4:$DP$191,28,FALSE)","v":168374.28700000001},{"$f":"VLOOKUP($A6,F1__World_Data!$A$4:$DP$191,27,FALSE)","v":164982.45199999999},{"$f":"VLOOKUP($A6,F1__World_Data!$A$4:$DP$191,26,FALSE)","v":161523.353},{"$f":"VLOOKUP($A6,F1__World_Data!$A$4:$DP$191,25,FALSE)","v":158009.24799999999},{"$f":"VLOOKUP($A6,F1__World_Data!$A$4:$DP$191,24,FALSE)","v":154468.23499999999},{"$f":"VLOOKUP($A6,F1__World_Data!$A$4:$DP$191,23,FALSE)","v":150938.22200000001},{"$f":"VLOOKUP($A6,F1__World_Data!$A$4:$DP$191,22,FALSE)","v":147447.834},{"$f":"VLOOKUP($A6,F1__World_Data!$A$4:$DP$191,21,FALSE)","v":144009.84400000001},{"$f":"VLOOKUP($A6,F1__World_Data!$A$4:$DP$191,20,FALSE)","v":140621.731},{"$f":"VLOOKUP($A6,F1__World_Data!$A$4:$DP$191,19,FALSE)","v":137278.057},{"$f":"VLOOKUP($A6,F1__World_Data!$A$4:$DP$191,18,FALSE)","v":133966.94},{"$f":"VLOOKUP($A6,F1__World_Data!$A$4:$DP$191,17,FALSE)","v":130680.73},{"$f":"VLOOKUP($A6,F1__World_Data!$A$4:$DP$191,16,FALSE)","v":127422.198},{"$f":"VLOOKUP($A6,F1__World_Data!$A$4:$DP$191,15,FALSE)","v":124199.693},{"$f":"VLOOKUP($A6,F1__World_Data!$A$4:$DP$191,14,FALSE)","v":121017.31600000001},{"$f":"VLOOKUP($A6,F1__World_Data!$A$4:$DP$191,13,FALSE)","v":117880.14599999999},{"$f":"VLOOKUP($A6,F1__World_Data!$A$4:$DP$191,12,FALSE)","v":114793.179},{"$f":"VLOOKUP($A6,F1__World_Data!$A$4:$DP$191,11,FALSE)","v":111758.56600000001},{"$f":"VLOOKUP($A6,F1__World_Data!$A$4:$DP$191,10,FALSE)","v":108779.92600000001},{"$f":"VLOOKUP($A6,F1__World_Data!$A$4:$DP$191,9,FALSE)","v":105865.576},{"$f":"VLOOKUP($A6,F1__World_Data!$A$4:$DP$191,8,FALSE)","v":103025.423},{"$f":"VLOOKUP($A6,F1__World_Data!$A$4:$DP$191,7,FALSE)","v":100267.07},{"$f":"VLOOKUP($A6,F1__World_Data!$A$4:$DP$191,6,FALSE)","v":97596.728000000003},{"$f":"VLOOKUP($A6,F1__World_Data!$A$4:$DP$191,5,FALSE)","v":95015.294999999998},{"$f":"VLOOKUP($A6,F1__World_Data!$A$4:$DP$191,4,FALSE)","v":92518.373000000007},{"$f":"VLOOKUP($A6,F1__World_Data!$A$4:$DP$191,3,FALSE)","v":90098.395999999993},{"$f":"VLOOKUP($A6,F1__World_Data!$A$4:$DP$191,2,FALSE)","v":87751.066000000006},null,{"$f":"VLOOKUP($A6,F1__World_Data!$A$4:$DP$191,120,FALSE)","v":69.415999999999997},{"$f":"VLOOKUP($A6,F1__World_Data!$A$4:$DP$191,119,FALSE)","v":69.165000000000006},{"$f":"VLOOKUP($A6,F1__World_Data!$A$4:$DP$191,118,FALSE)","v":68.897000000000006},{"$f":"VLOOKUP($A6,F1__World_Data!$A$4:$DP$191,117,FALSE)","v":68.606999999999999},{"$f":"VLOOKUP($A6,F1__World_Data!$A$4:$DP$191,116,FALSE)","v":68.286000000000001},{"$f":"VLOOKUP($A6,F1__World_Data!$A$4:$DP$191,115,FALSE)","v":67.930999999999997},{"$f":"VLOOKUP($A6,F1__World_Data!$A$4:$DP$191,114,FALSE)","v":67.545000000000002},{"$f":"VLOOKUP($A6,F1__World_Data!$A$4:$DP$191,113,FALSE)","v":67.13},{"$f":"VLOOKUP($A6,F1__World_Data!$A$4:$DP$191,112,FALSE)","v":66.692999999999998},{"$f":"VLOOKUP($A6,F1__World_Data!$A$4:$DP$191,111,FALSE)","v":66.244},{"$f":"VLOOKUP($A6,F1__World_Data!$A$4:$DP$191,110,FALSE)","v":65.793999999999997},{"$f":"VLOOKUP($A6,F1__World_Data!$A$4:$DP$191,109,FALSE)","v":65.349999999999994},{"$f":"VLOOKUP($A6,F1__World_Data!$A$4:$DP$191,108,FALSE)","v":64.918000000000006},{"$f":"VLOOKUP($A6,F1__World_Data!$A$4:$DP$191,107,FALSE)","v":64.5},{"$f":"VLOOKUP($A6,F1__World_Data!$A$4:$DP$191,106,FALSE)","v":64.094999999999999},{"$f":"VLOOKUP($A6,F1__World_Data!$A$4:$DP$191,105,FALSE)","v":63.698999999999998},{"$f":"VLOOKUP($A6,F1__World_Data!$A$4:$DP$191,104,FALSE)","v":63.304000000000002},{"$f":"VLOOKUP($A6,F1__World_Data!$A$4:$DP$191,103,FALSE)","v":62.906999999999996},{"$f":"VLOOKUP($A6,F1__World_Data!$A$4:$DP$191,102,FALSE)","v":62.505000000000003},{"$f":"VLOOKUP($A6,F1__World_Data!$A$4:$DP$191,101,FALSE)","v":62.093000000000004},{"$f":"VLOOKUP($A6,F1__World_Data!$A$4:$DP$191,100,FALSE)","v":61.668999999999997},{"$f":"VLOOKUP($A6,F1__World_Data!$A$4:$DP$191,99,FALSE)","v":61.232999999999997},{"$f":"VLOOKUP($A6,F1__World_Data!$A$4:$DP$191,98,FALSE)","v":60.783000000000001},{"$f":"VLOOKUP($A6,F1__World_Data!$A$4:$DP$191,97,FALSE)","v":60.32},{"$f":"VLOOKUP($A6,F1__World_Data!$A$4:$DP$191,96,FALSE)","v":59.84},{"$f":"VLOOKUP($A6,F1__World_Data!$A$4:$DP$191,95,FALSE)","v":59.348999999999997},{"$f":"VLOOKUP($A6,F1__World_Data!$A$4:$DP$191,94,FALSE)","v":58.850999999999999},{"$f":"VLOOKUP($A6,F1__World_Data!$A$4:$DP$191,93,FALSE)","v":58.353000000000002},{"$f":"VLOOKUP($A6,F1__World_Data!$A$4:$DP$191,92,FALSE)","v":57.865000000000002},{"$f":"VLOOKUP($A6,F1__World_Data!$A$4:$DP$191,91,FALSE)","v":57.4},{"$f":"VLOOKUP($A6,F1__World_Data!$A$4:$DP$191,90,FALSE)","v":56.963000000000001},{"$f":"VLOOKUP($A6,F1__World_Data!$A$4:$DP$191,89,FALSE)","v":56.552999999999997},{"$f":"VLOOKUP($A6,F1__World_Data!$A$4:$DP$191,88,FALSE)","v":56.168999999999997},{"$f":"VLOOKUP($A6,F1__World_Data!$A$4:$DP$191,87,FALSE)","v":55.801000000000002},{"$f":"VLOOKUP($A6,F1__World_Data!$A$4:$DP$191,86,FALSE)","v":55.441000000000003},{"$f":"VLOOKUP($A6,F1__World_Data!$A$4:$DP$191,85,FALSE)","v":55.073999999999998},{"$f":"VLOOKUP($A6,F1__World_Data!$A$4:$DP$191,84,FALSE)","v":54.686},{"$f":"VLOOKUP($A6,F1__World_Data!$A$4:$DP$191,83,FALSE)","v":54.268000000000001},{"$f":"VLOOKUP($A6,F1__World_Data!$A$4:$DP$191,82,FALSE)","v":53.814},{"$f":"VLOOKUP($A6,F1__World_Data!$A$4:$DP$191,81,FALSE)","v":53.319000000000003},{"$f":"VLOOKUP($A6,F1__World_Data!$A$4:$DP$191,80,FALSE)","v":52.786000000000001},{"$f":"VLOOKUP($A6,F1__World_Data!$A$4:$DP$191,79,FALSE)","v":52.222000000000001},{"$f":"VLOOKUP($A6,F1__World_Data!$A$4:$DP$191,78,FALSE)","v":51.63},{"$f":"VLOOKUP($A6,F1__World_Data!$A$4:$DP$191,77,FALSE)","v":51.012},{"$f":"VLOOKUP($A6,F1__World_Data!$A$4:$DP$191,76,FALSE)","v":50.374000000000002},{"$f":"VLOOKUP($A6,F1__World_Data!$A$4:$DP$191,75,FALSE)","v":49.722000000000001},{"$f":"VLOOKUP($A6,F1__World_Data!$A$4:$DP$191,74,FALSE)","v":49.061},{"$f":"VLOOKUP($A6,F1__World_Data!$A$4:$DP$191,73,FALSE)","v":48.398000000000003},{"$f":"VLOOKUP($A6,F1__World_Data!$A$4:$DP$191,72,FALSE)","v":47.737000000000002},{"$f":"VLOOKUP($A6,F1__World_Data!$A$4:$DP$191,71,FALSE)","v":47.081000000000003},{"$f":"VLOOKUP($A6,F1__World_Data!$A$4:$DP$191,70,FALSE)","v":46.427999999999997},{"$f":"VLOOKUP($A6,F1__World_Data!$A$4:$DP$191,69,FALSE)","v":45.779000000000003},{"$f":"VLOOKUP($A6,F1__World_Data!$A$4:$DP$191,68,FALSE)","v":45.136000000000003},{"$f":"VLOOKUP($A6,F1__World_Data!$A$4:$DP$191,67,FALSE)","v":44.5},{"$f":"VLOOKUP($A6,F1__World_Data!$A$4:$DP$191,66,FALSE)","v":43.872999999999998},{"$f":"VLOOKUP($A6,F1__World_Data!$A$4:$DP$191,65,FALSE)","v":43.252000000000002},{"$f":"VLOOKUP($A6,F1__World_Data!$A$4:$DP$191,64,FALSE)","v":42.637},{"$f":"VLOOKUP($A6,F1__World_Data!$A$4:$DP$191,63,FALSE)","v":42.027000000000001},{"$f":"VLOOKUP($A6,F1__World_Data!$A$4:$DP$191,62,FALSE)","v":41.421999999999997}]
["Pakistan",{"$f":"VLOOKUP($A7,F1__World_Data!$A$4:$DP$191,60,FALSE)","v":212228.288},{"$f":"VLOOKUP($A7,F1__World_Data!$A$4:$DP$191,59,FALSE)","v":207906.21},{"$f":"VLOOKUP($A7,F1__World_Data!$A$4:$DP$191,58,FALSE)","v":203631.356},{"$f":"VLOOKUP($A7,F1__World_Data!$A$4:$DP$191,57,FALSE)","v":199426.95300000001},{"$f":"VLOOKUP($A7,F1__World_Data!$A$4:$DP$191,56,FALSE)","v":195305.01199999999},{"$f":"VLOOKUP($A7,F1__World_Data!$A$4:$DP$191,55,FALSE)","v":191260.799},{"$f":"VLOOKUP($A7,F1__World_Data!$A$4:$DP$191,54,FALSE)","v":187280.125},{"$f":"VLOOKUP($A7,F1__World_Data!$A$4:$DP$191,53,FALSE)","v":183340.16800000001},{"$f":"VLOOKUP($A7,F1__World_Data!$A$4:$DP$191,52,FALSE)","v":179424.64300000001},{"$f":"VLOOKUP($A7,F1__World_Data!$A$4:$DP$191,51,FALSE)","v":175525.61},{"$f":"VLOOKUP($A7,F1__World_Data!$A$4:$DP$191,50,FALSE)","v":171648.984},{"$f":"VLOOKUP($A7,F1__World_Data!$A$4:$DP$191,49,FALSE)","v":167808.106},{"$f":"VLOOKUP($A7,F1__World_Data!$A$4:$DP$191,48,FALSE)","v":164022.62599999999},{"$f":"VLOOKUP($A7,F1__World_Data!$A$4:$DP$191,47,FALSE)","v":160304.00700000001},{"$f":"VLOOKUP($A7,F1__World_Data!$A$4:$DP$191,46,FALSE)","v":156664.698},{"$f":"VLOOKUP($A7,F1__World_Data!$A$4:$DP$191,45,FALSE)","v":153093.37100000001},{"$f":"VLOOKUP($A7,F1__World_Data!$A$4:$DP$191,44,FALSE)","v":149549.69500000001},{"$f":"VLOOKUP($A7,F1__World_Data!$A$4:$DP$191,43,FALSE)","v":145978.408},{"$f":"VLOOKUP($A7,F1__World_Data!$A$4:$DP$191,42,FALSE)","v":142343.58300000001},{"$f":"VLOOKUP($A7,F1__World_Data!$A$4:$DP$191,41,FALSE)","v":138624.625},{"$f":"VLOOKUP($A7,F1__World_Data!$A$4:$DP$191,40,FALSE)","v":134843.23300000001},{"$f":"VLOOKUP($A7,F1__World_Data!$A$4:$DP$191,39,FALSE)","v":131057.432},{"$f":"VLOOKUP($A7,F1__World_Data!$A$4:$DP$191,38,FALSE)","v":127349.29300000001},{"$f":"VLOOKUP($A7,F1__World_Data!$A$4:$DP$191,37,FALSE)","v":123776.83500000001},{"$f":"VLOOKUP($A7,F1__World_Data!$A$4:$DP$191,36,FALSE)","v":120362.764},{"$f":"VLOOKUP($A7,F1__World_Data!$A$4:$DP$191,35,FALSE)","v":117086.68},{"$f":"VLOOKUP($A7,F1__World_Data!$A$4:$DP$191,34,FALSE)","v":113911.126},{"$f":"VLOOKUP($A7,F1__World_Data!$A$4:$DP$191,33,FALSE)","v":110778.655},{"$f":"VLOOKUP($A7,F1__World_Data!$A$4:$DP$191,32,FALSE)","v":107647.91800000001},{"$f":"VLOOKUP($A7,F1__World_Data!$A$4:$DP$191,31,FALSE)","v":104512.874},{"$f":"VLOOKUP($A7,F1__World_Data!$A$4:$DP$191,30,FALSE)","v":101389.603},{"$f":"VLOOKUP($A7,F1__World_Data!$A$4:$DP$191,29,FALSE)","v":98285.762000000002},{"$f":"VLOOKUP($A7,F1__World_Data!$A$4:$DP$191,28,FALSE)","v":95215.375},{"$f":"VLOOKUP($A7,F1__World_Data!$A$4:$DP$191,27,FALSE)","v":92191.505000000005},{"$f":"VLOOKUP($A7,F1__World_Data!$A$4:$DP$191,26,FALSE)","v":89213.707999999999},{"$f":"VLOOKUP($A7,F1__World_Data!$A$4:$DP$191,25,FALSE)","v":86285.936000000002},{"$f":"VLOOKUP($A7,F1__World_Data!$A$4:$DP$191,24,FALSE)","v":83431.596999999994},{"$f":"VLOOKUP($A7,F1__World_Data!$A$4:$DP$191,23,FALSE)","v":80680.460999999996},{"$f":"VLOOKUP($A7,F1__World_Data!$A$4:$DP$191,22,FALSE)","v":78054.346000000005},{"$f":"VLOOKUP($A7,F1__World_Data!$A$4:$DP$191,21,FALSE)","v":75561.127999999997},{"$f":"VLOOKUP($A7,F1__World_Data!$A$4:$DP$191,20,FALSE)","v":73197.254000000001},{"$f":"VLOOKUP($A7,F1__World_Data!$A$4:$DP$191,19,FALSE)","v":70958.168000000005},{"$f":"VLOOKUP($A7,F1__World_Data!$A$4:$DP$191,18,FALSE)","v":68834.323999999993},{"$f":"VLOOKUP($A7,F1__World_Data!$A$4:$DP$191,17,FALSE)","v":66816.875},{"$f":"VLOOKUP($A7,F1__World_Data!$A$4:$DP$191,16,FALSE)","v":64905.995999999999},{"$f":"VLOOKUP($A7,F1__World_Data!$A$4:$DP$191,15,FALSE)","v":63099.404000000002},{"$f":"VLOOKUP($A7,F1__World_Data!$A$4:$DP$191,14,FALSE)","v":61381.982000000004},{"$f":"VLOOKUP($A7,F1__World_Data!$A$4:$DP$191,13,FALSE)","v":59734.478999999999},{"$f":"VLOOKUP($A7,F1__World_Data!$A$4:$DP$191,12,FALSE)","v":58142.061999999998},{"$f":"VLOOKUP($A7,F1__World_Data!$A$4:$DP$191,11,FALSE)","v":56598.148000000001},{"$f":"VLOOKUP($A7,F1__World_Data!$A$4:$DP$191,10,FALSE)","v":55102.69},{"$f":"VLOOKUP($A7,F1__World_Data!$A$4:$DP$191,9,FALSE)","v":53655.783000000003},{"$f":"VLOOKUP($A7,F1__World_Data!$A$4:$DP$191,8,FALSE)","v":52260.182999999997},{"$f":"VLOOKUP($A7,F1__World_Data!$A$4:$DP$191,7,FALSE)","v":50917.974999999999},{"$f":"VLOOKUP($A7,F1__World_Data!$A$4:$DP$191,6,FALSE)","v":49627.623},{"$f":"VLOOKUP($A7,F1__World_Data!$A$4:$DP$191,5,FALSE)","v":48387.292999999998},{"$f":"VLOOKUP($A7,F1__World_Data!$A$4:$DP$191,4,FALSE)","v":47198.885999999999},{"$f":"VLOOKUP($A7,F1__World_Data!$A$4:$DP$191,3,FALSE)","v":46065.228999999999},{"$f":"VLOOKUP($A7,F1__World_Data!$A$4:$DP$191,2,FALSE)","v":44988.69},null,{"$f":"VLOOKUP($A7,F1__World_Data!$A$4:$DP$191,120,FALSE)","v":68.116},{"$f":"VLOOKUP($A7,F1__World_Data!$A$4:$DP$191,119,FALSE)","v":67.850999999999999},{"$f":"VLOOKUP($A7,F1__World_Data!$A$4:$DP$191,118,FALSE)","v":67.576999999999998},{"$f":"VLOOKUP($A7,F1__World_Data!$A$4:$DP$191,117,FALSE)","v":67.290999999999997},{"$f":"VLOOKUP($A7,F1__World_Data!$A$4:$DP$191,116,FALSE)","v":66.995000000000005},{"$f":"VLOOKUP($A7,F1__World_Data!$A$4:$DP$191,115,FALSE)","v":66.69},{"$f":"VLOOKUP($A7,F1__World_Data!$A$4:$DP$191,114,FALSE)","v":66.381},{"$f":"VLOOKUP($A7,F1__World_Data!$A$4:$DP$191,113,FALSE)","v":66.072000000000003},{"$f":"VLOOKUP($A7,F1__World_Data!$A$4:$DP$191,112,FALSE)","v":65.769000000000005},{"$f":"VLOOKUP($A7,F1__World_Data!$A$4:$DP$191,111,FALSE)","v":65.48},{"$f":"VLOOKUP($A7,F1__World_Data!$A$4:$DP$191,110,FALSE)","v":65.207999999999998},{"$f":"VLOOKUP($A7,F1__World_Data!$A$4:$DP$191,109,FALSE)","v":64.953000000000003},{"$f":"VLOOKUP($A7,F1__World_Data!$A$4:$DP$191,108,FALSE)","v":64.712000000000003},{"$f":"VLOOKUP($A7,F1__World_Data!$A$4:$DP$191,107,FALSE)","v":64.477999999999994},{"$f":"VLOOKUP($A7,F1__World_Data!$A$4:$DP$191,106,FALSE)","v":64.242000000000004},{"$f":"VLOOKUP($A7,F1__World_Data!$A$4:$DP$191,105,FALSE)","v":63.994999999999997},{"$f":"VLOOKUP($A7,F1__World_Data!$A$4:$DP$191,104,FALSE)","v":63.731000000000002},{"$f":"VLOOKUP($A7,F1__World_Data!$A$4:$DP$191,103,FALSE)","v":63.445999999999998},{"$f":"VLOOKUP($A7,F1__World_Data!$A$4:$DP$191,102,FALSE)","v":63.143999999999998},{"$f":"VLOOKUP($A7,F1__World_Data!$A$4:$DP$191,101,FALSE)","v":62.829000000000001},{"$f":"VLOOKUP($A7,F1__World_Data!$A$4:$DP$191,100,FALSE)","v":62.509},{"$f":"VLOOKUP($A7,F1__World_Data!$A$4:$DP$191,99,FALSE)","v":62.188000000000002},{"$f":"VLOOKUP($A7,F1__World_Data!$A$4:$DP$191,98,FALSE)","v":61.866},{"$f":"VLOOKUP($A7,F1__World_Data!$A$4:$DP$191,97,FALSE)","v":61.539000000000001},{"$f":"VLOOKUP($A7,F1__World_Data!$A$4:$DP$191,96,FALSE)","v":61.198},{"$f":"VLOOKUP($A7,F1__World_Data!$A$4:$DP$191,95,FALSE)","v":60.837000000000003},{"$f":"VLOOKUP($A7,F1__World_Data!$A$4:$DP$191,94,FALSE)","v":60.454999999999998},{"$f":"VLOOKUP($A7,F1__World_Data!$A$4:$DP$191,93,FALSE)","v":60.052999999999997},{"$f":"VLOOKUP($A7,F1__World_Data!$A$4:$DP$191,92,FALSE)","v":59.636000000000003},{"$f":"VLOOKUP($A7,F1__World_Data!$A$4:$DP$191,91,FALSE)","v":59.209000000000003},{"$f":"VLOOKUP($A7,F1__World_Data!$A$4:$DP$191,90,FALSE)","v":58.783000000000001},{"$f":"VLOOKUP($A7,F1__World_Data!$A$4:$DP$191,89,FALSE)","v":58.366},{"$f":"VLOOKUP($A7,F1__World_Data!$A$4:$DP$191,88,FALSE)","v":57.962000000000003},{"$f":"VLOOKUP($A7,F1__World_Data!$A$4:$DP$191,87,FALSE)","v":57.579000000000001},{"$f":"VLOOKUP($A7,F1__World_Data!$A$4:$DP$191,86,FALSE)","v":57.220999999999997},{"$f":"VLOOKUP($A7,F1__World_Data!$A$4:$DP$191,85,FALSE)","v":56.886000000000003},{"$f":"VLOOKUP($A7,F1__World_Data!$A$4:$DP$191,84,FALSE)","v":56.569000000000003},{"$f":"VLOOKUP($A7,F1__World_Data!$A$4:$DP$191,83,FALSE)","v":56.265999999999998},{"$f":"VLOOKUP($A7,F1__World_Data!$A$4:$DP$191,82,FALSE)","v":55.970999999999997},{"$f":"VLOOKUP($A7,F1__World_Data!$A$4:$DP$191,81,FALSE)","v":55.679000000000002},{"$f":"VLOOKUP($A7,F1__World_Data!$A$4:$DP$191,80,FALSE)","v":55.381999999999998},{"$f":"VLOOKUP($A7,F1__World_Data!$A$4:$DP$191,79,FALSE)","v":55.073999999999998},{"$f":"VLOOKUP($A7,F1__World_Data!$A$4:$DP$191,78,FALSE)","v":54.747999999999998},{"$f":"VLOOKUP($A7,F1__World_Data!$A$4:$DP$191,77,FALSE)","v":54.399000000000001},{"$f":"VLOOKUP($A7,F1__World_Data!$A$4:$DP$191,76,FALSE)","v":54.027000000000001},{"$f":"VLOOKUP($A7,F1__World_Data!$A$4:$DP$191,75,FALSE)","v":53.633000000000003},{"$f":"VLOOKUP($A7,F1__World_Data!$A$4:$DP$191,74,FALSE)","v":53.218000000000004},{"$f":"VLOOKUP($A7,F1__World_Data!$A$4:$DP$191,73,FALSE)","v":52.781999999999996},{"$f":"VLOOKUP($A7,F1__World_Data!$A$4:$DP$191,72,FALSE)","v":52.323},{"$f":"VLOOKUP($A7,F1__World_Data!$A$4:$DP$191,71,FALSE)","v":51.837000000000003},{"$f":"VLOOKUP($A7,F1__World_Data!$A$4:$DP$191,70,FALSE)","v":51.326999999999998},{"$f":"VLOOKUP($A7,F1__World_Data!$A$4:$DP$191,69,FALSE)","v":50.795999999999999},{"$f":"VLOOKUP($A7,F1__World_Data!$A$4:$DP$191,68,FALSE)","v":50.25},{"$f":"VLOOKUP($A7,F1__World_Data!$A$4:$DP$191,67,FALSE)","v":49.697000000000003},{"$f":"VLOOKUP($A7,F1__World_Data!$A$4:$DP$191,66,FALSE)","v":49.145000000000003},{"$f":"VLOOKUP($A7,F1__World_Data!$A$4:$DP$191,65,FALSE)","v":48.600999999999999},{"$f":"VLOOKUP($A7,F1__World_Data!$A$4:$DP$191,64,FALSE)","v":48.070999999999998},{"$f":"VLOOKUP($A7,F1__World_Data!$A$4:$DP$191,63,FALSE)","v":47.557000000000002},{"$f":"VLOOKUP($A7,F1__World_Data!$A$4:$DP$191,62,FALSE)","v":47.061}]
["Brazil",{"$f":"VLOOKUP($A8,F1__World_Data!$A$4:$DP$191,60,FALSE)","v":209469.32},{"$f":"VLOOKUP($A8,F1__World_Data!$A$4:$DP$191,59,FALSE)","v":207833.82500000001},{"$f":"VLOOKUP($A8,F1__World_Data!$A$4:$DP$191,58,FALSE)","v":206163.05600000001},{"$f":"VLOOKUP($A8,F1__World_Data!$A$4:$DP$191,57,FALSE)","v":204471.75899999999},{"$f":"VLOOKUP($A8,F1__World_Data!$A$4:$DP$191,56,FALSE)","v":202763.74400000001},{"$f":"VLOOKUP($A8,F1__World_Data!$A$4:$DP$191,55,FALSE)","v":201035.90400000001},{"$f":"VLOOKUP($A8,F1__World_Data!$A$4:$DP$191,54,FALSE)","v":199287.29199999999},{"$f":"VLOOKUP($A8,F1__World_Data!$A$4:$DP$191,53,FALSE)","v":197514.541},{"$f":"VLOOKUP($A8,F1__World_Data!$A$4:$DP$191,52,FALSE)","v":195713.63699999999},{"$f":"VLOOKUP($A8,F1__World_Data!$A$4:$DP$191,51,FALSE)","v":193886.505},{"$f":"VLOOKUP($A8,F1__World_Data!$A$4:$DP$191,50,FALSE)","v":192030.36199999999},{"$f":"VLOOKUP($A8,F1__World_Data!$A$4:$DP$191,49,FALSE)","v":190130.44500000001},{"$f":"VLOOKUP($A8,F1__World_Data!$A$4:$DP$191,48,FALSE)","v":188167.353},{"$f":"VLOOKUP($A8,F1__World_Data!$A$4:$DP$191,47,FALSE)","v":186127.10800000001},{"$f":"VLOOKUP($A8,F1__World_Data!$A$4:$DP$191,46,FALSE)","v":184006.47899999999},{"$f":"VLOOKUP($A8,F1__World_Data!$A$4:$DP$191,45,FALSE)","v":181809.24400000001},{"$f":"VLOOKUP($A8,F1__World_Data!$A$4:$DP$191,44,FALSE)","v":179537.52299999999},{"$f":"VLOOKUP($A8,F1__World_Data!$A$4:$DP$191,43,FALSE)","v":177196.05100000001},{"$f":"VLOOKUP($A8,F1__World_Data!$A$4:$DP$191,42,FALSE)","v":174790.33900000001},{"$f":"VLOOKUP($A8,F1__World_Data!$A$4:$DP$191,41,FALSE)","v":172318.674},{"$f":"VLOOKUP($A8,F1__World_Data!$A$4:$DP$191,40,FALSE)","v":169785.253},{"$f":"VLOOKUP($A8,F1__World_Data!$A$4:$DP$191,39,FALSE)","v":167209.046},{"$f":"VLOOKUP($A8,F1__World_Data!$A$4:$DP$191,38,FALSE)","v":164614.682},{"$f":"VLOOKUP($A8,F1__World_Data!$A$4:$DP$191,37,FALSE)","v":162019.889},{"$f":"VLOOKUP($A8,F1__World_Data!$A$4:$DP$191,36,FALSE)","v":159432.717},{"$f":"VLOOKUP($A8,F1__World_Data!$A$4:$DP$191,35,FALSE)","v":156849.08600000001},{"$f":"VLOOKUP($A8,F1__World_Data!$A$4:$DP$191,34,FALSE)","v":154259.38200000001},{"$f":"VLOOKUP($A8,F1__World_Data!$A$4:$DP$191,33,FALSE)","v":151648.00700000001},{"$f":"VLOOKUP($A8,F1__World_Data!$A$4:$DP$191,32,FALSE)","v":149003.22500000001},{"$f":"VLOOKUP($A8,F1__World_Data!$A$4:$DP$191,31,FALSE)","v":146328.30499999999},{"$f":"VLOOKUP($A8,F1__World_Data!$A$4:$DP$191,30,FALSE)","v":143627.505},{"$f":"VLOOKUP($A8,F1__World_Data!$A$4:$DP$191,29,FALSE)","v":140891.606},{"$f":"VLOOKUP($A8,F1__World_Data!$A$4:$DP$191,28,FALSE)","v":138108.91500000001},{"$f":"VLOOKUP($A8,F1__World_Data!$A$4:$DP$191,27,FALSE)","v":135274.08300000001},{"$f":"VLOOKUP($A8,F1__World_Data!$A$4:$DP$191,26,FALSE)","v":132383.56899999999},{"$f":"VLOOKUP($A8,F1__World_Data!$A$4:$DP$191,25,FALSE)","v":129448.815},{"$f":"VLOOKUP($A8,F1__World_Data!$A$4:$DP$191,24,FALSE)","v":126498.322},{"$f":"VLOOKUP($A8,F1__World_Data!$A$4:$DP$191,23,FALSE)","v":123570.327},{"$f":"VLOOKUP($A8,F1__World_Data!$A$4:$DP$191,22,FALSE)","v":120694.012},{"$f":"VLOOKUP($A8,F1__World_Data!$A$4:$DP$191,21,FALSE)","v":117878.412},{"$f":"VLOOKUP($A8,F1__World_Data!$A$4:$DP$191,20,FALSE)","v":115121.158},{"$f":"VLOOKUP($A8,F1__World_Data!$A$4:$DP$191,19,FALSE)","v":112425.39200000001},{"$f":"VLOOKUP($A8,F1__World_Data!$A$4:$DP$191,18,FALSE)","v":109790.943},{"$f":"VLOOKUP($A8,F1__World_Data!$A$4:$DP$191,17,FALSE)","v":107216.209},{"$f":"VLOOKUP($A8,F1__World_Data!$A$4:$DP$191,16,FALSE)","v":104706.193},{"$f":"VLOOKUP($A8,F1__World_Data!$A$4:$DP$191,15,FALSE)","v":102259.497},{"$f":"VLOOKUP($A8,F1__World_Data!$A$4:$DP$191,14,FALSE)","v":99859.388000000006},{"$f":"VLOOKUP($A8,F1__World_Data!$A$4:$DP$191,13,FALSE)","v":97482.928},{"$f":"VLOOKUP($A8,F1__World_Data!$A$4:$DP$191,12,FALSE)","v":95113.264999999999},{"$f":"VLOOKUP($A8,F1__World_Data!$A$4:$DP$191,11,FALSE)","v":92746.607000000004},{"$f":"VLOOKUP($A8,F1__World_Data!$A$4:$DP$191,10,FALSE)","v":90387.078999999998},{"$f":"VLOOKUP($A8,F1__World_Data!$A$4:$DP$191,9,FALSE)","v":88035.815000000002},{"$f":"VLOOKUP($A8,F1__World_Data!$A$4:$DP$191,8,FALSE)","v":85696.501999999993},{"$f":"VLOOKUP($A8,F1__World_Data!$A$4:$DP$191,7,FALSE)","v":83373.532999999996},{"$f":"VLOOKUP($A8,F1__World_Data!$A$4:$DP$191,6,FALSE)","v":81064.572},{"$f":"VLOOKUP($A8,F1__World_Data!$A$4:$DP$191,5,FALSE)","v":78772.646999999997},{"$f":"VLOOKUP($A8,F1__World_Data!$A$4:$DP$191,4,FALSE)","v":76514.328999999998},{"$f":"VLOOKUP($A8,F1__World_Data!$A$4:$DP$191,3,FALSE)","v":74311.338000000003},{"$f":"VLOOKUP($A8,F1__World_Data!$A$4:$DP$191,2,FALSE)","v":72179.235000000001},null,{"$f":"VLOOKUP($A8,F1__World_Data!$A$4:$DP$191,120,FALSE)","v":75.671999999999997},{"$f":"VLOOKUP($A8,F1__World_Data!$A$4:$DP$191,119,FALSE)","v":75.456000000000003},{"$f":"VLOOKUP($A8,F1__World_Data!$A$4:$DP$191,118,FALSE)","v":75.23},{"$f":"VLOOKUP($A8,F1__World_Data!$A$4:$DP$191,117,FALSE)","v":74.994},{"$f":"VLOOKUP($A8,F1__World_Data!$A$4:$DP$191,116,FALSE)","v":74.745000000000005},{"$f":"VLOOKUP($A8,F1__World_Data!$A$4:$DP$191,115,FALSE)","v":74.483000000000004},{"$f":"VLOOKUP($A8,F1__World_Data!$A$4:$DP$191,114,FALSE)","v":74.209000000000003},{"$f":"VLOOKUP($A8,F1__World_Data!$A$4:$DP$191,113,FALSE)","v":73.921000000000006},{"$f":"VLOOKUP($A8,F1__World_Data!$A$4:$DP$191,112,FALSE)","v":73.619},{"$f":"VLOOKUP($A8,F1__World_Data!$A$4:$DP$191,111,FALSE)","v":73.3},{"$f":"VLOOKUP($A8,F1__World_Data!$A$4:$DP$191,110,FALSE)","v":72.965999999999994},{"$f":"VLOOKUP($A8,F1__World_Data!$A$4:$DP$191,109,FALSE)","v":72.617999999999995},{"$f":"VLOOKUP($A8,F1__World_Data!$A$4:$DP$191,108,FALSE)","v":72.260000000000005},{"$f":"VLOOKUP($A8,F1__World_Data!$A$4:$DP$191,107,FALSE)","v":71.896000000000001},{"$f":"VLOOKUP($A8,F1__World_Data!$A$4:$DP$191,106,FALSE)","v":71.531000000000006},{"$f":"VLOOKUP($A8,F1__World_Data!$A$4:$DP$191,105,FALSE)","v":71.17},{"$f":"VLOOKUP($A8,F1__World_Data!$A$4:$DP$191,104,FALSE)","v":70.813000000000002},{"$f":"VLOOKUP($A8,F1__World_Data!$A$4:$DP$191,103,FALSE)","v":70.462000000000003},{"$f":"VLOOKUP($A8,F1__World_Data!$A$4:$DP$191,102,FALSE)","v":70.116},{"$f":"VLOOKUP($A8,F1__World_Data!$A$4:$DP$191,101,FALSE)","v":69.769000000000005},{"$f":"VLOOKUP($A8,F1__World_Data!$A$4:$DP$191,100,FALSE)","v":69.418999999999997},{"$f":"VLOOKUP($A8,F1__World_Data!$A$4:$DP$191,99,FALSE)","v":69.061000000000007},{"$f":"VLOOKUP($A8,F1__World_Data!$A$4:$DP$191,98,FALSE)","v":68.694999999999993},{"$f":"VLOOKUP($A8,F1__World_Data!$A$4:$DP$191,97,FALSE)","v":68.317999999999998},{"$f":"VLOOKUP($A8,F1__World_Data!$A$4:$DP$191,96,FALSE)","v":67.932000000000002},{"$f":"VLOOKUP($A8,F1__World_Data!$A$4:$DP$191,95,FALSE)","v":67.539000000000001},{"$f":"VLOOKUP($A8,F1__World_Data!$A$4:$DP$191,94,FALSE)","v":67.141000000000005},{"$f":"VLOOKUP($A8,F1__World_Data!$A$4:$DP$191,93,FALSE)","v":66.742000000000004},{"$f":"VLOOKUP($A8,F1__World_Data!$A$4:$DP$191,92,FALSE)","v":66.343000000000004},{"$f":"VLOOKUP($A8,F1__World_Data!$A$4:$DP$191,91,FALSE)","v":65.947000000000003},{"$f":"VLOOKUP($A8,F1__World_Data!$A$4:$DP$191,90,FALSE)","v":65.552999999999997},{"$f":"VLOOKUP($A8,F1__World_Data!$A$4:$DP$191,89,FALSE)","v":65.165000000000006},{"$f":"VLOOKUP($A8,F1__World_Data!$A$4:$DP$191,88,FALSE)","v":64.781999999999996},{"$f":"VLOOKUP($A8,F1__World_Data!$A$4:$DP$191,87,FALSE)","v":64.406000000000006},{"$f":"VLOOKUP($A8,F1__World_Data!$A$4:$DP$191,86,FALSE)","v":64.039000000000001},{"$f":"VLOOKUP($A8,F1__World_Data!$A$4:$DP$191,85,FALSE)","v":63.68},{"$f":"VLOOKUP($A8,F1__World_Data!$A$4:$DP$191,84,FALSE)","v":63.326000000000001},{"$f":"VLOOKUP($A8,F1__World_Data!$A$4:$DP$191,83,FALSE)","v":62.975999999999999},{"$f":"VLOOKUP($A8,F1__World_Data!$A$4:$DP$191,82,FALSE)","v":62.63},{"$f":"VLOOKUP($A8,F1__World_Data!$A$4:$DP$191,81,FALSE)","v":62.286000000000001},{"$f":"VLOOKUP($A8,F1__World_Data!$A$4:$DP$191,80,FALSE)","v":61.942},{"$f":"VLOOKUP($A8,F1__World_Data!$A$4:$DP$191,79,FALSE)","v":61.594999999999999},{"$f":"VLOOKUP($A8,F1__World_Data!$A$4:$DP$191,78,FALSE)","v":61.243000000000002},{"$f":"VLOOKUP($A8,F1__World_Data!$A$4:$DP$191,77,FALSE)","v":60.884},{"$f":"VLOOKUP($A8,F1__World_Data!$A$4:$DP$191,76,FALSE)","v":60.512999999999998},{"$f":"VLOOKUP($A8,F1__World_Data!$A$4:$DP$191,75,FALSE)","v":60.131999999999998},{"$f":"VLOOKUP($A8,F1__World_Data!$A$4:$DP$191,74,FALSE)","v":59.738999999999997},{"$f":"VLOOKUP($A8,F1__World_Data!$A$4:$DP$191,73,FALSE)","v":59.332000000000001},{"$f":"VLOOKUP($A8,F1__World_Data!$A$4:$DP$191,72,FALSE)","v":58.911000000000001},{"$f":"VLOOKUP($A8,F1__World_Data!$A$4:$DP$191,71,FALSE)","v":58.475000000000001},{"$f":"VLOOKUP($A8,F1__World_Data!$A$4:$DP$191,70,FALSE)","v":58.024999999999999},{"$f":"VLOOKUP($A8,F1__World_Data!$A$4:$DP$191,69,FALSE)","v":57.563000000000002},{"$f":"VLOOKUP($A8,F1__World_Data!$A$4:$DP$191,68,FALSE)","v":57.091000000000001},{"$f":"VLOOKUP($A8,F1__World_Data!$A$4:$DP$191,67,FALSE)","v":56.61},{"$f":"VLOOKUP($A8,F1__World_Data!$A$4:$DP$191,66,FALSE)","v":56.121000000000002},{"$f":"VLOOKUP($A8,F1__World_Data!$A$4:$DP$191,65,FALSE)","v":55.627000000000002},{"$f":"VLOOKUP($A8,F1__World_Data!$A$4:$DP$191,64,FALSE)","v":55.13},{"$f":"VLOOKUP($A8,F1__World_Data!$A$4:$DP$191,63,FALSE)","v":54.634},{"$f":"VLOOKUP($A8,F1__World_Data!$A$4:$DP$191,62,FALSE)","v":54.143000000000001}]
["Nigeria",{"$f":"VLOOKUP($A9,F1__World_Data!$A$4:$DP$191,60,FALSE)","v":195874.685},{"$f":"VLOOKUP($A9,F1__World_Data!$A$4:$DP$191,59,FALSE)","v":190873.247},{"$f":"VLOOKUP($A9,F1__World_Data!$A$4:$DP$191,58,FALSE)","v":185960.24400000001},{"$f":"VLOOKUP($A9,F1__World_Data!$A$4:$DP$191,57,FALSE)","v":181137.454},{"$f":"VLOOKUP($A9,F1__World_Data!$A$4:$DP$191,56,FALSE)","v":176404.93100000001},{"$f":"VLOOKUP($A9,F1__World_Data!$A$4:$DP$191,55,FALSE)","v":171765.81899999999},{"$f":"VLOOKUP($A9,F1__World_Data!$A$4:$DP$191,54,FALSE)","v":167228.80300000001},{"$f":"VLOOKUP($A9,F1__World_Data!$A$4:$DP$191,53,FALSE)","v":162805.07999999999},{"$f":"VLOOKUP($A9,F1__World_Data!$A$4:$DP$191,52,FALSE)","v":158503.20300000001},{"$f":"VLOOKUP($A9,F1__World_Data!$A$4:$DP$191,51,FALSE)","v":154324.93900000001},{"$f":"VLOOKUP($A9,F1__World_Data!$A$4:$DP$191,50,FALSE)","v":150269.622},{"$f":"VLOOKUP($A9,F1__World_Data!$A$4:$DP$191,49,FALSE)","v":146339.97099999999},{"$f":"VLOOKUP($A9,F1__World_Data!$A$4:$DP$191,48,FALSE)","v":142538.30499999999},{"$f":"VLOOKUP($A9,F1__World_Data!$A$4:$DP$191,47,FALSE)","v":138865.014},{"$f":"VLOOKUP($A9,F1__World_Data!$A$4:$DP$191,46,FALSE)","v":135320.42000000001},{"$f":"VLOOKUP($A9,F1__World_Data!$A$4:$DP$191,45,FALSE)","v":131900.63399999999},{"$f":"VLOOKUP($A9,F1__World_Data!$A$4:$DP$191,44,FALSE)","v":128596.079},{"$f":"VLOOKUP($A9,F1__World_Data!$A$4:$DP$191,43,FALSE)","v":125394.046},{"$f":"VLOOKUP($A9,F1__World_Data!$A$4:$DP$191,42,FALSE)","v":122283.853},{"$f":"VLOOKUP($A9,F1__World_Data!$A$4:$DP$191,41,FALSE)","v":119260.05499999999},{"$f":"VLOOKUP($A9,F1__World_Data!$A$4:$DP$191,40,FALSE)","v":116319.76300000001},{"$f":"VLOOKUP($A9,F1__World_Data!$A$4:$DP$191,39,FALSE)","v":113457.66099999999},{"$f":"VLOOKUP($A9,F1__World_Data!$A$4:$DP$191,38,FALSE)","v":110668.784},{"$f":"VLOOKUP($A9,F1__World_Data!$A$4:$DP$191,37,FALSE)","v":107948.33900000001},{"$f":"VLOOKUP($A9,F1__World_Data!$A$4:$DP$191,36,FALSE)","v":105293.701},{"$f":"VLOOKUP($A9,F1__World_Data!$A$4:$DP$191,35,FALSE)","v":102700.751},{"$f":"VLOOKUP($A9,F1__World_Data!$A$4:$DP$191,34,FALSE)","v":100161.708},{"$f":"VLOOKUP($A9,F1__World_Data!$A$4:$DP$191,33,FALSE)","v":97667.631999999998},{"$f":"VLOOKUP($A9,F1__World_Data!$A$4:$DP$191,32,FALSE)","v":95212.453999999998},{"$f":"VLOOKUP($A9,F1__World_Data!$A$4:$DP$191,31,FALSE)","v":92788.039000000004},{"$f":"VLOOKUP($A9,F1__World_Data!$A$4:$DP$191,30,FALSE)","v":90395.278000000006},{"$f":"VLOOKUP($A9,F1__World_Data!$A$4:$DP$191,29,FALSE)","v":88048.028999999995},{"$f":"VLOOKUP($A9,F1__World_Data!$A$4:$DP$191,28,FALSE)","v":85766.395999999993},{"$f":"VLOOKUP($A9,F1__World_Data!$A$4:$DP$191,27,FALSE)","v":83562.775999999998},{"$f":"VLOOKUP($A9,F1__World_Data!$A$4:$DP$191,26,FALSE)","v":81448.756999999998},{"$f":"VLOOKUP($A9,F1__World_Data!$A$4:$DP$191,25,FALSE)","v":79414.841},{"$f":"VLOOKUP($A9,F1__World_Data!$A$4:$DP$191,24,FALSE)","v":77427.539000000004},{"$f":"VLOOKUP($A9,F1__World_Data!$A$4:$DP$191,23,FALSE)","v":75440.505000000005},{"$f":"VLOOKUP($A9,F1__World_Data!$A$4:$DP$191,22,FALSE)","v":73423.645999999993},{"$f":"VLOOKUP($A9,F1__World_Data!$A$4:$DP$191,21,FALSE)","v":71361.141000000003},{"$f":"VLOOKUP($A9,F1__World_Data!$A$4:$DP$191,20,FALSE)","v":69271.914999999994},{"$f":"VLOOKUP($A9,F1__World_Data!$A$4:$DP$191,19,FALSE)","v":67203.134000000005},{"$f":"VLOOKUP($A9,F1__World_Data!$A$4:$DP$191,18,FALSE)","v":65221.379000000001},{"$f":"VLOOKUP($A9,F1__World_Data!$A$4:$DP$191,17,FALSE)","v":63374.288999999997},{"$f":"VLOOKUP($A9,F1__World_Data!$A$4:$DP$191,16,FALSE)","v":61677.167000000001},{"$f":"VLOOKUP($A9,F1__World_Data!$A$4:$DP$191,15,FALSE)","v":60114.614999999998},{"$f":"VLOOKUP($A9,F1__World_Data!$A$4:$DP$191,14,FALSE)","v":58665.813000000002},{"$f":"VLOOKUP($A9,F1__World_Data!$A$4:$DP$191,13,FALSE)","v":57296.987999999998},{"$f":"VLOOKUP($A9,F1__World_Data!$A$4:$DP$191,12,FALSE)","v":55982.142},{"$f":"VLOOKUP($A9,F1__World_Data!$A$4:$DP$191,11,FALSE)","v":54717.035000000003},{"$f":"VLOOKUP($A9,F1__World_Data!$A$4:$DP$191,10,FALSE)","v":53506.201000000001},{"$f":"VLOOKUP($A9,F1__World_Data!$A$4:$DP$191,9,FALSE)","v":52342.231},{"$f":"VLOOKUP($A9,F1__World_Data!$A$4:$DP$191,8,FALSE)","v":51217.968999999997},{"$f":"VLOOKUP($A9,F1__World_Data!$A$4:$DP$191,7,FALSE)","v":50127.92},{"$f":"VLOOKUP($A9,F1__World_Data!$A$4:$DP$191,6,FALSE)","v":49066.762000000002},{"$f":"VLOOKUP($A9,F1__World_Data!$A$4:$DP$191,5,FALSE)","v":48032.932000000001},{"$f":"VLOOKUP($A9,F1__World_Data!$A$4:$DP$191,4,FALSE)","v":47029.817999999999},{"$f":"VLOOKUP($A9,F1__World_Data!$A$4:$DP$191,3,FALSE)","v":46063.57},{"$f":"VLOOKUP($A9,F1__World_Data!$A$4:$DP$191,2,FALSE)","v":45138.46},null,{"$f":"VLOOKUP($A9,F1__World_Data!$A$4:$DP$191,120,FALSE)","v":68.116},{"$f":"VLOOKUP($A9,F1__World_Data!$A$4:$DP$191,119,FALSE)","v":67.850999999999999},{"$f":"VLOOKUP($A9,F1__World_Data!$A$4:$DP$191,118,FALSE)","v":67.576999999999998},{"$f":"VLOOKUP($A9,F1__World_Data!$A$4:$DP$191,117,FALSE)","v":67.290999999999997},{"$f":"VLOOKUP($A9,F1__World_Data!$A$4:$DP$191,116,FALSE)","v":66.995000000000005},{"$f":"VLOOKUP($A9,F1__World_Data!$A$4:$DP$191,115,FALSE)","v":66.69},{"$f":"VLOOKUP($A9,F1__World_Data!$A$4:$DP$191,114,FALSE)","v":66.381},{"$f":"VLOOKUP($A9,F1__World_Data!$A$4:$DP$191,113,FALSE)","v":66.072000000000003},{"$f":"VLOOKUP($A9,F1__World_Data!$A$4:$DP$191,112,FALSE)","v":65.769000000000005},{"$f":"VLOOKUP($A9,F1__World_Data!$A$4:$DP$191,111,FALSE)","v":65.48},{"$f":"VLOOKUP($A9,F1__World_Data!$A$4:$DP$191,110,FALSE)","v":65.207999999999998},{"$f":"VLOOKUP($A9,F1__World_Data!$A$4:$DP$191,109,FALSE)","v":64.953000000000003},{"$f":"VLOOKUP($A9,F1__World_Data!$A$4:$DP$191,108,FALSE)","v":64.712000000000003},{"$f":"VLOOKUP($A9,F1__World_Data!$A$4:$DP$191,107,FALSE)","v":64.477999999999994},{"$f":"VLOOKUP($A9,F1__World_Data!$A$4:$DP$191,106,FALSE)","v":64.242000000000004},{"$f":"VLOOKUP($A9,F1__World_Data!$A$4:$DP$191,105,FALSE)","v":63.994999999999997},{"$f":"VLOOKUP($A9,F1__World_Data!$A$4:$DP$191,104,FALSE)","v":63.731000000000002},{"$f":"VLOOKUP($A9,F1__World_Data!$A$4:$DP$191,103,FALSE)","v":63.445999999999998},{"$f":"VLOOKUP($A9,F1__World_Data!$A$4:$DP$191,102,FALSE)","v":63.143999999999998},{"$f":"VLOOKUP($A9,F1__World_Data!$A$4:$DP$191,101,FALSE)","v":62.829000000000001},{"$f":"VLOOKUP($A9,F1__World_Data!$A$4:$DP$191,100,FALSE)","v":62.509},{"$f":"VLOOKUP($A9,F1__World_Data!$A$4:$DP$191,99,FALSE)","v":62.188000000000002},{"$f":"VLOOKUP($A9,F1__World_Data!$A$4:$DP$191,98,FALSE)","v":61.866},{"$f":"VLOOKUP($A9,F1__World_Data!$A$4:$DP$191,97,FALSE)","v":61.539000000000001},{"$f":"VLOOKUP($A9,F1__World_Data!$A$4:$DP$191,96,FALSE)","v":61.198},{"$f":"VLOOKUP($A9,F1__World_Data!$A$4:$DP$191,95,FALSE)","v":60.837000000000003},{"$f":"VLOOKUP($A9,F1__World_Data!$A$4:$DP$191,94,FALSE)","v":60.454999999999998},{"$f":"VLOOKUP($A9,F1__World_Data!$A$4:$DP$191,93,FALSE)","v":60.052999999999997},{"$f":"VLOOKUP($A9,F1__World_Data!$A$4:$DP$191,92,FALSE)","v":59.636000000000003},{"$f":"VLOOKUP($A9,F1__World_Data!$A$4:$DP$191,91,FALSE)","v":59.209000000000003},{"$f":"VLOOKUP($A9,F1__World_Data!$A$4:$DP$191,90,FALSE)","v":58.783000000000001},{"$f":"VLOOKUP($A9,F1__World_Data!$A$4:$DP$191,89,FALSE)","v":58.366},{"$f":"VLOOKUP($A9,F1__World_Data!$A$4:$DP$191,88,FALSE)","v":57.962000000000003},{"$f":"VLOOKUP($A9,F1__World_Data!$A$4:$DP$191,87,FALSE)","v":57.579000000000001},{"$f":"VLOOKUP($A9,F1__World_Data!$A$4:$DP$191,86,FALSE)","v":57.220999999999997},{"$f":"VLOOKUP($A9,F1__World_Data!$A$4:$DP$191,85,FALSE)","v":56.886000000000003},{"$f":"VLOOKUP($A9,F1__World_Data!$A$4:$DP$191,84,FALSE)","v":56.569000000000003},{"$f":"VLOOKUP($A9,F1__World_Data!$A$4:$DP$191,83,FALSE)","v":56.265999999999998},{"$f":"VLOOKUP($A9,F1__World_Data!$A$4:$DP$191,82,FALSE)","v":55.970999999999997},{"$f":"VLOOKUP($A9,F1__World_Data!$A$4:$DP$191,81,FALSE)","v":55.679000000000002},{"$f":"VLOOKUP($A9,F1__World_Data!$A$4:$DP$191,80,FALSE)","v":55.381999999999998},{"$f":"VLOOKUP($A9,F1__World_Data!$A$4:$DP$191,79,FALSE)","v":55.073999999999998},{"$f":"VLOOKUP($A9,F1__World_Data!$A$4:$DP$191,78,FALSE)","v":54.747999999999998},{"$f":"VLOOKUP($A9,F1__World_Data!$A$4:$DP$191,77,FALSE)","v":54.399000000000001},{"$f":"VLOOKUP($A9,F1__World_Data!$A$4:$DP$191,76,FALSE)","v":54.027000000000001},{"$f":"VLOOKUP($A9,F1__World_Data!$A$4:$DP$191,75,FALSE)","v":53.633000000000003},{"$f":"VLOOKUP($A9,F1__World_Data!$A$4:$DP$191,74,FALSE)","v":53.218000000000004},{"$f":"VLOOKUP($A9,F1__World_Data!$A$4:$DP$191,73,FALSE)","v":52.781999999999996},{"$f":"VLOOKUP($A9,F1__World_Data!$A$4:$DP$191,72,FALSE)","v":52.323},{"$f":"VLOOKUP($A9,F1__World_Data!$A$4:$DP$191,71,FALSE)","v":51.837000000000003},{"$f":"VLOOKUP($A9,F1__World_Data!$A$4:$DP$191,70,FALSE)","v":51.326999999999998},{"$f":"VLOOKUP($A9,F1__World_Data!$A$4:$DP$191,69,FALSE)","v":50.795999999999999},{"$f":"VLOOKUP($A9,F1__World_Data!$A$4:$DP$191,68,FALSE)","v":50.25},{"$f":"VLOOKUP($A9,F1__World_Data!$A$4:$DP$191,67,FALSE)","v":49.697000000000003},{"$f":"VLOOKUP($A9,F1__World_Data!$A$4:$DP$191,66,FALSE)","v":49.145000000000003},{"$f":"VLOOKUP($A9,F1__World_Data!$A$4:$DP$191,65,FALSE)","v":48.600999999999999},{"$f":"VLOOKUP($A9,F1__World_Data!$A$4:$DP$191,64,FALSE)","v":48.070999999999998},{"$f":"VLOOKUP($A9,F1__World_Data!$A$4:$DP$191,63,FALSE)","v":47.557000000000002},{"$f":"VLOOKUP($A9,F1__World_Data!$A$4:$DP$191,62,FALSE)","v":47.061}]
["Bangladesh",{"$f":"VLOOKUP($A10,F1__World_Data!$A$4:$DP$191,60,FALSE)","v":161376.71299999999},{"$f":"VLOOKUP($A10,F1__World_Data!$A$4:$DP$191,59,FALSE)","v":159685.421},{"$f":"VLOOKUP($A10,F1__World_Data!$A$4:$DP$191,58,FALSE)","v":157977.15100000001},{"$f":"VLOOKUP($A10,F1__World_Data!$A$4:$DP$191,57,FALSE)","v":156256.28700000001},{"$f":"VLOOKUP($A10,F1__World_Data!$A$4:$DP$191,56,FALSE)","v":154517.38500000001},{"$f":"VLOOKUP($A10,F1__World_Data!$A$4:$DP$191,55,FALSE)","v":152761.413},{"$f":"VLOOKUP($A10,F1__World_Data!$A$4:$DP$191,54,FALSE)","v":151005.73300000001},{"$f":"VLOOKUP($A10,F1__World_Data!$A$4:$DP$191,53,FALSE)","v":149273.13399999999},{"$f":"VLOOKUP($A10,F1__World_Data!$A$4:$DP$191,52,FALSE)","v":147575.43299999999},{"$f":"VLOOKUP($A10,F1__World_Data!$A$4:$DP$191,51,FALSE)","v":145924.79500000001},{"$f":"VLOOKUP($A10,F1__World_Data!$A$4:$DP$191,50,FALSE)","v":144304.16399999999},{"$f":"VLOOKUP($A10,F1__World_Data!$A$4:$DP$191,49,FALSE)","v":142660.38099999999},{"$f":"VLOOKUP($A10,F1__World_Data!$A$4:$DP$191,48,FALSE)","v":140921.15400000001},{"$f":"VLOOKUP($A10,F1__World_Data!$A$4:$DP$191,47,FALSE)","v":139035.505},{"$f":"VLOOKUP($A10,F1__World_Data!$A$4:$DP$191,46,FALSE)","v":136986.429},{"$f":"VLOOKUP($A10,F1__World_Data!$A$4:$DP$191,45,FALSE)","v":134791.598},{"$f":"VLOOKUP($A10,F1__World_Data!$A$4:$DP$191,44,FALSE)","v":132478.07699999999},{"$f":"VLOOKUP($A10,F1__World_Data!$A$4:$DP$191,43,FALSE)","v":130088.709},{"$f":"VLOOKUP($A10,F1__World_Data!$A$4:$DP$191,42,FALSE)","v":127657.86199999999},{"$f":"VLOOKUP($A10,F1__World_Data!$A$4:$DP$191,41,FALSE)","v":125189.655},{"$f":"VLOOKUP($A10,F1__World_Data!$A$4:$DP$191,40,FALSE)","v":122682.818},{"$f":"VLOOKUP($A10,F1__World_Data!$A$4:$DP$191,39,FALSE)","v":120160.571},{"$f":"VLOOKUP($A10,F1__World_Data!$A$4:$DP$191,38,FALSE)","v":117649.927},{"$f":"VLOOKUP($A10,F1__World_Data!$A$4:$DP$191,37,FALSE)","v":115169.933},{"$f":"VLOOKUP($A10,F1__World_Data!$A$4:$DP$191,36,FALSE)","v":112737.68399999999},{"$f":"VLOOKUP($A10,F1__World_Data!$A$4:$DP$191,35,FALSE)","v":110350.641},{"$f":"VLOOKUP($A10,F1__World_Data!$A$4:$DP$191,34,FALSE)","v":107983.708},{"$f":"VLOOKUP($A10,F1__World_Data!$A$4:$DP$191,33,FALSE)","v":105599.125},{"$f":"VLOOKUP($A10,F1__World_Data!$A$4:$DP$191,32,FALSE)","v":103171.95699999999},{"$f":"VLOOKUP($A10,F1__World_Data!$A$4:$DP$191,31,FALSE)","v":100695.496},{"$f":"VLOOKUP($A10,F1__World_Data!$A$4:$DP$191,30,FALSE)","v":98186.35},{"$f":"VLOOKUP($A10,F1__World_Data!$A$4:$DP$191,29,FALSE)","v":95671.159},{"$f":"VLOOKUP($A10,F1__World_Data!$A$4:$DP$191,28,FALSE)","v":93187.592999999993},{"$f":"VLOOKUP($A10,F1__World_Data!$A$4:$DP$191,27,FALSE)","v":90764.18},{"$f":"VLOOKUP($A10,F1__World_Data!$A$4:$DP$191,26,FALSE)","v":88416.528999999995},{"$f":"VLOOKUP($A10,F1__World_Data!$A$4:$DP$191,25,FALSE)","v":86142.49},{"$f":"VLOOKUP($A10,F1__World_Data!$A$4:$DP$191,24,FALSE)","v":83932.131999999998},{"$f":"VLOOKUP($A10,F1__World_Data!$A$4:$DP$191,23,FALSE)","v":81767.516000000003},{"$f":"VLOOKUP($A10,F1__World_Data!$A$4:$DP$191,22,FALSE)","v":79639.498000000007},{"$f":"VLOOKUP($A10,F1__World_Data!$A$4:$DP$191,21,FALSE)","v":77529.039999999994},{"$f":"VLOOKUP($A10,F1__World_Data!$A$4:$DP$191,20,FALSE)","v":75450.032999999996},{"$f":"VLOOKUP($A10,F1__World_Data!$A$4:$DP$191,19,FALSE)","v":73463.592999999993},{"$f":"VLOOKUP($A10,F1__World_Data!$A$4:$DP$191,18,FALSE)","v":71652.385999999999},{"$f":"VLOOKUP($A10,F1__World_Data!$A$4:$DP$191,17,FALSE)","v":70066.31},{"$f":"VLOOKUP($A10,F1__World_Data!$A$4:$DP$191,16,FALSE)","v":68742.221999999994},{"$f":"VLOOKUP($A10,F1__World_Data!$A$4:$DP$191,15,FALSE)","v":67637.540999999997},{"$f":"VLOOKUP($A10,F1__World_Data!$A$4:$DP$191,14,FALSE)","v":66625.706000000006},{"$f":"VLOOKUP($A10,F1__World_Data!$A$4:$DP$191,13,FALSE)","v":65531.635000000002},{"$f":"VLOOKUP($A10,F1__World_Data!$A$4:$DP$191,12,FALSE)","v":64232.485999999997},{"$f":"VLOOKUP($A10,F1__World_Data!$A$4:$DP$191,11,FALSE)","v":62679.764999999999},{"$f":"VLOOKUP($A10,F1__World_Data!$A$4:$DP$191,10,FALSE)","v":60918.451999999997},{"$f":"VLOOKUP($A10,F1__World_Data!$A$4:$DP$191,9,FALSE)","v":59034.25},{"$f":"VLOOKUP($A10,F1__World_Data!$A$4:$DP$191,8,FALSE)","v":57157.650999999998},{"$f":"VLOOKUP($A10,F1__World_Data!$A$4:$DP$191,7,FALSE)","v":55385.114000000001},{"$f":"VLOOKUP($A10,F1__World_Data!$A$4:$DP$191,6,FALSE)","v":53741.720999999998},{"$f":"VLOOKUP($A10,F1__World_Data!$A$4:$DP$191,5,FALSE)","v":52202.008000000002},{"$f":"VLOOKUP($A10,F1__World_Data!$A$4:$DP$191,4,FALSE)","v":50752.15},{"$f":"VLOOKUP($A10,F1__World_Data!$A$4:$DP$191,3,FALSE)","v":49362.834000000003},{"$f":"VLOOKUP($A10,F1__World_Data!$A$4:$DP$191,2,FALSE)","v":48013.504999999997},null,{"$f":"VLOOKUP($A10,F1__World_Data!$A$4:$DP$191,120,FALSE)","v":72.864000000000004},{"$f":"VLOOKUP($A10,F1__World_Data!$A$4:$DP$191,119,FALSE)","v":72.692999999999998},{"$f":"VLOOKUP($A10,F1__World_Data!$A$4:$DP$191,118,FALSE)","v":72.492999999999995},{"$f":"VLOOKUP($A10,F1__World_Data!$A$4:$DP$191,117,FALSE)","v":72.266000000000005},{"$f":"VLOOKUP($A10,F1__World_Data!$A$4:$DP$191,116,FALSE)","v":72.022000000000006},{"$f":"VLOOKUP($A10,F1__World_Data!$A$4:$DP$191,115,FALSE)","v":71.768000000000001},{"$f":"VLOOKUP($A10,F1__World_Data!$A$4:$DP$191,114,FALSE)","v":71.506},{"$f":"VLOOKUP($A10,F1__World_Data!$A$4:$DP$191,113,FALSE)","v":71.233999999999995},{"$f":"VLOOKUP($A10,F1__World_Data!$A$4:$DP$191,112,FALSE)","v":70.938000000000002},{"$f":"VLOOKUP($A10,F1__World_Data!$A$4:$DP$191,111,FALSE)","v":70.596999999999994},{"$f":"VLOOKUP($A10,F1__World_Data!$A$4:$DP$191,110,FALSE)","v":70.200999999999993},{"$f":"VLOOKUP($A10,F1__World_Data!$A$4:$DP$191,109,FALSE)","v":69.751999999999995},{"$f":"VLOOKUP($A10,F1__World_Data!$A$4:$DP$191,108,FALSE)","v":69.259},{"$f":"VLOOKUP($A10,F1__World_Data!$A$4:$DP$191,107,FALSE)","v":68.747},{"$f":"VLOOKUP($A10,F1__World_Data!$A$4:$DP$191,106,FALSE)","v":68.248999999999995},{"$f":"VLOOKUP($A10,F1__World_Data!$A$4:$DP$191,105,FALSE)","v":67.790999999999997},{"$f":"VLOOKUP($A10,F1__World_Data!$A$4:$DP$191,104,FALSE)","v":67.391000000000005},{"$f":"VLOOKUP($A10,F1__World_Data!$A$4:$DP$191,103,FALSE)","v":67.054000000000002},{"$f":"VLOOKUP($A10,F1__World_Data!$A$4:$DP$191,102,FALSE)","v":66.763000000000005},{"$f":"VLOOKUP($A10,F1__World_Data!$A$4:$DP$191,101,FALSE)","v":66.491},{"$f":"VLOOKUP($A10,F1__World_Data!$A$4:$DP$191,100,FALSE)","v":66.206999999999994},{"$f":"VLOOKUP($A10,F1__World_Data!$A$4:$DP$191,99,FALSE)","v":65.899000000000001},{"$f":"VLOOKUP($A10,F1__World_Data!$A$4:$DP$191,98,FALSE)","v":65.572999999999993},{"$f":"VLOOKUP($A10,F1__World_Data!$A$4:$DP$191,97,FALSE)","v":65.256},{"$f":"VLOOKUP($A10,F1__World_Data!$A$4:$DP$191,96,FALSE)","v":64.991},{"$f":"VLOOKUP($A10,F1__World_Data!$A$4:$DP$191,95,FALSE)","v":64.81},{"$f":"VLOOKUP($A10,F1__World_Data!$A$4:$DP$191,94,FALSE)","v":64.730999999999995},{"$f":"VLOOKUP($A10,F1__World_Data!$A$4:$DP$191,93,FALSE)","v":64.745000000000005},{"$f":"VLOOKUP($A10,F1__World_Data!$A$4:$DP$191,92,FALSE)","v":64.826999999999998},{"$f":"VLOOKUP($A10,F1__World_Data!$A$4:$DP$191,91,FALSE)","v":64.935000000000002},{"$f":"VLOOKUP($A10,F1__World_Data!$A$4:$DP$191,90,FALSE)","v":65.021000000000001},{"$f":"VLOOKUP($A10,F1__World_Data!$A$4:$DP$191,89,FALSE)","v":65.052999999999997},{"$f":"VLOOKUP($A10,F1__World_Data!$A$4:$DP$191,88,FALSE)","v":65.016000000000005},{"$f":"VLOOKUP($A10,F1__World_Data!$A$4:$DP$191,87,FALSE)","v":64.912999999999997},{"$f":"VLOOKUP($A10,F1__World_Data!$A$4:$DP$191,86,FALSE)","v":64.759},{"$f":"VLOOKUP($A10,F1__World_Data!$A$4:$DP$191,85,FALSE)","v":64.587000000000003},{"$f":"VLOOKUP($A10,F1__World_Data!$A$4:$DP$191,84,FALSE)","v":64.424999999999997},{"$f":"VLOOKUP($A10,F1__World_Data!$A$4:$DP$191,83,FALSE)","v":64.28},{"$f":"VLOOKUP($A10,F1__World_Data!$A$4:$DP$191,82,FALSE)","v":64.161000000000001},{"$f":"VLOOKUP($A10,F1__World_Data!$A$4:$DP$191,81,FALSE)","v":64.069000000000003},{"$f":"VLOOKUP($A10,F1__World_Data!$A$4:$DP$191,80,FALSE)","v":63.991999999999997},{"$f":"VLOOKUP($A10,F1__World_Data!$A$4:$DP$191,79,FALSE)","v":63.920999999999999},{"$f":"VLOOKUP($A10,F1__World_Data!$A$4:$DP$191,78,FALSE)","v":63.851999999999997},{"$f":"VLOOKUP($A10,F1__World_Data!$A$4:$DP$191,77,FALSE)","v":63.776000000000003},{"$f":"VLOOKUP($A10,F1__World_Data!$A$4:$DP$191,76,FALSE)","v":63.686999999999998},{"$f":"VLOOKUP($A10,F1__World_Data!$A$4:$DP$191,75,FALSE)","v":63.582000000000001},{"$f":"VLOOKUP($A10,F1__World_Data!$A$4:$DP$191,74,FALSE)","v":63.457000000000001},63.31,63.140999999999998,62.953000000000003,62.75,62.539000000000001,62.322000000000003,62.103999999999999,61.889000000000003,61.679000000000002,61.469000000000001,{"$f":"VLOOKUP($A10,F1__World_Data!$A$4:$DP$191,63,FALSE)","v":61.256},{"$f":"VLOOKUP($A10,F1__World_Data!$A$4:$DP$191,62,FALSE)","v":61.033999999999999}]
["Japan",{"$f":"VLOOKUP($A11,F1__World_Data!$A$4:$DP$191,60,FALSE)","v":127202.19},{"$f":"VLOOKUP($A11,F1__World_Data!$A$4:$DP$191,59,FALSE)","v":127502.728},{"$f":"VLOOKUP($A11,F1__World_Data!$A$4:$DP$191,58,FALSE)","v":127763.26700000001},{"$f":"VLOOKUP($A11,F1__World_Data!$A$4:$DP$191,57,FALSE)","v":127985.139},{"$f":"VLOOKUP($A11,F1__World_Data!$A$4:$DP$191,56,FALSE)","v":128168.63},{"$f":"VLOOKUP($A11,F1__World_Data!$A$4:$DP$191,55,FALSE)","v":128314.189},{"$f":"VLOOKUP($A11,F1__World_Data!$A$4:$DP$191,54,FALSE)","v":128423.571},{"$f":"VLOOKUP($A11,F1__World_Data!$A$4:$DP$191,53,FALSE)","v":128498.966},{"$f":"VLOOKUP($A11,F1__World_Data!$A$4:$DP$191,52,FALSE)","v":128542.349},{"$f":"VLOOKUP($A11,F1__World_Data!$A$4:$DP$191,51,FALSE)","v":128555.196},{"$f":"VLOOKUP($A11,F1__World_Data!$A$4:$DP$191,50,FALSE)","v":128538.644},{"$f":"VLOOKUP($A11,F1__World_Data!$A$4:$DP$191,49,FALSE)","v":128494.05},{"$f":"VLOOKUP($A11,F1__World_Data!$A$4:$DP$191,48,FALSE)","v":128422.74},{"$f":"VLOOKUP($A11,F1__World_Data!$A$4:$DP$191,47,FALSE)","v":128326.11500000001},{"$f":"VLOOKUP($A11,F1__World_Data!$A$4:$DP$191,46,FALSE)","v":128204.183},{"$f":"VLOOKUP($A11,F1__World_Data!$A$4:$DP$191,45,FALSE)","v":128058.368},{"$f":"VLOOKUP($A11,F1__World_Data!$A$4:$DP$191,44,FALSE)","v":127893.075},{"$f":"VLOOKUP($A11,F1__World_Data!$A$4:$DP$191,43,FALSE)","v":127713.82399999999},{"$f":"VLOOKUP($A11,F1__World_Data!$A$4:$DP$191,42,FALSE)","v":127524.16800000001},{"$f":"VLOOKUP($A11,F1__World_Data!$A$4:$DP$191,41,FALSE)","v":127326.06299999999},{"$f":"VLOOKUP($A11,F1__World_Data!$A$4:$DP$191,40,FALSE)","v":127117.436},{"$f":"VLOOKUP($A11,F1__World_Data!$A$4:$DP$191,39,FALSE)","v":126892.745},{"$f":"VLOOKUP($A11,F1__World_Data!$A$4:$DP$191,38,FALSE)","v":126644.099},{"$f":"VLOOKUP($A11,F1__World_Data!$A$4:$DP$191,37,FALSE)","v":126365.486},{"$f":"VLOOKUP($A11,F1__World_Data!$A$4:$DP$191,36,FALSE)","v":126053.12699999999},{"$f":"VLOOKUP($A11,F1__World_Data!$A$4:$DP$191,35,FALSE)","v":125707.40700000001},{"$f":"VLOOKUP($A11,F1__World_Data!$A$4:$DP$191,34,FALSE)","v":125331.3},{"$f":"VLOOKUP($A11,F1__World_Data!$A$4:$DP$191,33,FALSE)","v":124929.764},{"$f":"VLOOKUP($A11,F1__World_Data!$A$4:$DP$191,32,FALSE)","v":124505.243},{"$f":"VLOOKUP($A11,F1__World_Data!$A$4:$DP$191,31,FALSE)","v":124058.51700000001},{"$f":"VLOOKUP($A11,F1__World_Data!$A$4:$DP$191,30,FALSE)","v":123584.522},{"$f":"VLOOKUP($A11,F1__World_Data!$A$4:$DP$191,29,FALSE)","v":123072.72},{"$f":"VLOOKUP($A11,F1__World_Data!$A$4:$DP$191,28,FALSE)","v":122509.11900000001},{"$f":"VLOOKUP($A11,F1__World_Data!$A$4:$DP$191,27,FALSE)","v":121883.48299999999},{"$f":"VLOOKUP($A11,F1__World_Data!$A$4:$DP$191,26,FALSE)","v":121189.269},{"$f":"VLOOKUP($A11,F1__World_Data!$A$4:$DP$191,25,FALSE)","v":120427.643},{"$f":"VLOOKUP($A11,F1__World_Data!$A$4:$DP$191,24,FALSE)","v":119605.254},{"$f":"VLOOKUP($A11,F1__World_Data!$A$4:$DP$191,23,FALSE)","v":118732.838},{"$f":"VLOOKUP($A11,F1__World_Data!$A$4:$DP$191,22,FALSE)","v":117816.942},{"$f":"VLOOKUP($A11,F1__World_Data!$A$4:$DP$191,21,FALSE)","v":116867.356},{"$f":"VLOOKUP($A11,F1__World_Data!$A$4:$DP$191,20,FALSE)","v":115879.22199999999},{"$f":"VLOOKUP($A11,F1__World_Data!$A$4:$DP$191,19,FALSE)","v":114827.826},{"$f":"VLOOKUP($A11,F1__World_Data!$A$4:$DP$191,18,FALSE)","v":113679.19},{"$f":"VLOOKUP($A11,F1__World_Data!$A$4:$DP$191,17,FALSE)","v":112413.36199999999},{"$f":"VLOOKUP($A11,F1__World_Data!$A$4:$DP$191,16,FALSE)","v":111022.692},{"$f":"VLOOKUP($A11,F1__World_Data!$A$4:$DP$191,15,FALSE)","v":109528.514},{"$f":"VLOOKUP($A11,F1__World_Data!$A$4:$DP$191,14,FALSE)","v":107976.03},{"$f":"VLOOKUP($A11,F1__World_Data!$A$4:$DP$191,13,FALSE)","v":106427.102},{"$f":"VLOOKUP($A11,F1__World_Data!$A$4:$DP$191,12,FALSE)","v":104929.26},{"$f":"VLOOKUP($A11,F1__World_Data!$A$4:$DP$191,11,FALSE)","v":103496.03200000001},{"$f":"VLOOKUP($A11,F1__World_Data!$A$4:$DP$191,10,FALSE)","v":102124.00199999999},{"$f":"VLOOKUP($A11,F1__World_Data!$A$4:$DP$191,9,FALSE)","v":100822.283},{"$f":"VLOOKUP($A11,F1__World_Data!$A$4:$DP$191,8,FALSE)","v":99596.074999999997},{"$f":"VLOOKUP($A11,F1__World_Data!$A$4:$DP$191,7,FALSE)","v":98447.006999999998},{"$f":"VLOOKUP($A11,F1__World_Data!$A$4:$DP$191,6,FALSE)","v":97379.402000000002},{"$f":"VLOOKUP($A11,F1__World_Data!$A$4:$DP$191,5,FALSE)","v":96389.422000000006},{"$f":"VLOOKUP($A11,F1__World_Data!$A$4:$DP$191,4,FALSE)","v":95458.517000000007},{"$f":"VLOOKUP($A11,F1__World_Data!$A$4:$DP$191,3,FALSE)","v":94560.714000000007},{"$f":"VLOOKUP($A11,F1__World_Data!$A$4:$DP$191,2,FALSE)","v":93673.611999999994},null,{"$f":"VLOOKUP($A11,F1__World_Data!$A$4:$DP$191,120,FALSE)","v":84.210975609756105},{"$f":"VLOOKUP($A11,F1__World_Data!$A$4:$DP$191,119,FALSE)","v":84.099756097560984},{"$f":"VLOOKUP($A11,F1__World_Data!$A$4:$DP$191,118,FALSE)","v":83.984878048780502},{"$f":"VLOOKUP($A11,F1__World_Data!$A$4:$DP$191,117,FALSE)","v":83.793902439024393},{"$f":"VLOOKUP($A11,F1__World_Data!$A$4:$DP$191,116,FALSE)","v":83.5878048780488},{"$f":"VLOOKUP($A11,F1__World_Data!$A$4:$DP$191,115,FALSE)","v":83.331951219512206},{"$f":"VLOOKUP($A11,F1__World_Data!$A$4:$DP$191,114,FALSE)","v":83.096097560975608},{"$f":"VLOOKUP($A11,F1__World_Data!$A$4:$DP$191,113,FALSE)","v":82.591219512195138},{"$f":"VLOOKUP($A11,F1__World_Data!$A$4:$DP$191,112,FALSE)","v":82.842682926829269},{"$f":"VLOOKUP($A11,F1__World_Data!$A$4:$DP$191,111,FALSE)","v":82.931463414634152},{"$f":"VLOOKUP($A11,F1__World_Data!$A$4:$DP$191,110,FALSE)","v":82.587560975609776},{"$f":"VLOOKUP($A11,F1__World_Data!$A$4:$DP$191,109,FALSE)","v":82.507073170731715},{"$f":"VLOOKUP($A11,F1__World_Data!$A$4:$DP$191,108,FALSE)","v":82.321951219512201},{"$f":"VLOOKUP($A11,F1__World_Data!$A$4:$DP$191,107,FALSE)","v":81.925121951219523},{"$f":"VLOOKUP($A11,F1__World_Data!$A$4:$DP$191,106,FALSE)","v":82.03024390243904},{"$f":"VLOOKUP($A11,F1__World_Data!$A$4:$DP$191,105,FALSE)","v":81.760000000000005},{"$f":"VLOOKUP($A11,F1__World_Data!$A$4:$DP$191,104,FALSE)","v":81.563414634146341},{"$f":"VLOOKUP($A11,F1__World_Data!$A$4:$DP$191,103,FALSE)","v":81.417073170731712},{"$f":"VLOOKUP($A11,F1__World_Data!$A$4:$DP$191,102,FALSE)","v":81.076097560975626},{"$f":"VLOOKUP($A11,F1__World_Data!$A$4:$DP$191,101,FALSE)","v":80.570731707317094},{"$f":"VLOOKUP($A11,F1__World_Data!$A$4:$DP$191,100,FALSE)","v":80.501463414634159},{"$f":"VLOOKUP($A11,F1__World_Data!$A$4:$DP$191,99,FALSE)","v":80.424146341463413},{"$f":"VLOOKUP($A11,F1__World_Data!$A$4:$DP$191,98,FALSE)","v":80.200243902439041},{"$f":"VLOOKUP($A11,F1__World_Data!$A$4:$DP$191,97,FALSE)","v":79.536341463414658},{"$f":"VLOOKUP($A11,F1__World_Data!$A$4:$DP$191,96,FALSE)","v":79.687073170731708},{"$f":"VLOOKUP($A11,F1__World_Data!$A$4:$DP$191,95,FALSE)","v":79.293658536585369},{"$f":"VLOOKUP($A11,F1__World_Data!$A$4:$DP$191,94,FALSE)","v":79.153902439024392},{"$f":"VLOOKUP($A11,F1__World_Data!$A$4:$DP$191,93,FALSE)","v":79.100731707317081},{"$f":"VLOOKUP($A11,F1__World_Data!$A$4:$DP$191,92,FALSE)","v":78.836829268292689},{"$f":"VLOOKUP($A11,F1__World_Data!$A$4:$DP$191,91,FALSE)","v":78.818048780487814},{"$f":"VLOOKUP($A11,F1__World_Data!$A$4:$DP$191,90,FALSE)","v":78.399268292682933},{"$f":"VLOOKUP($A11,F1__World_Data!$A$4:$DP$191,89,FALSE)","v":78.483658536585381},{"$f":"VLOOKUP($A11,F1__World_Data!$A$4:$DP$191,88,FALSE)","v":78.064634146341476},{"$f":"VLOOKUP($A11,F1__World_Data!$A$4:$DP$191,87,FALSE)","v":77.65048780487804},{"$f":"VLOOKUP($A11,F1__World_Data!$A$4:$DP$191,86,FALSE)","v":77.365365853658531},{"$f":"VLOOKUP($A11,F1__World_Data!$A$4:$DP$191,85,FALSE)","v":76.961463414634167},{"$f":"VLOOKUP($A11,F1__World_Data!$A$4:$DP$191,84,FALSE)","v":76.922926829268306},{"$f":"VLOOKUP($A11,F1__World_Data!$A$4:$DP$191,83,FALSE)","v":76.41439024390246},{"$f":"VLOOKUP($A11,F1__World_Data!$A$4:$DP$191,82,FALSE)","v":76.091707317073173},{"$f":"VLOOKUP($A11,F1__World_Data!$A$4:$DP$191,81,FALSE)","v":76.337560975609776},{"$f":"VLOOKUP($A11,F1__World_Data!$A$4:$DP$191,80,FALSE)","v":76.038292682926837},{"$f":"VLOOKUP($A11,F1__World_Data!$A$4:$DP$191,79,FALSE)","v":75.898292682926837},{"$f":"VLOOKUP($A11,F1__World_Data!$A$4:$DP$191,78,FALSE)","v":75.456829268292708},{"$f":"VLOOKUP($A11,F1__World_Data!$A$4:$DP$191,77,FALSE)","v":75.057317073170736},{"$f":"VLOOKUP($A11,F1__World_Data!$A$4:$DP$191,76,FALSE)","v":74.393902439024387},{"$f":"VLOOKUP($A11,F1__World_Data!$A$4:$DP$191,75,FALSE)","v":73.757560975609749},{"$f":"VLOOKUP($A11,F1__World_Data!$A$4:$DP$191,74,FALSE)","v":73.506585365853667},72.882926829268314,71.950243902439027,71.838780487804883,71.61121951219512,71.276585365853663,70.986585365853671,70.201951219512196,70.132439024390251,69.658048780487832,68.594878048780501,{"$f":"VLOOKUP($A11,F1__World_Data!$A$4:$DP$191,63,FALSE)","v":68.31},{"$f":"VLOOKUP($A11,F1__World_Data!$A$4:$DP$191,62,FALSE)","v":67.666097560975629}]
["Mexico",{"$f":"VLOOKUP($A12,F1__World_Data!$A$4:$DP$191,60,FALSE)","v":126190.78200000001},{"$f":"VLOOKUP($A12,F1__World_Data!$A$4:$DP$191,59,FALSE)","v":124777.326},{"$f":"VLOOKUP($A12,F1__World_Data!$A$4:$DP$191,58,FALSE)","v":123333.379},{"$f":"VLOOKUP($A12,F1__World_Data!$A$4:$DP$191,57,FALSE)","v":121858.251},{"$f":"VLOOKUP($A12,F1__World_Data!$A$4:$DP$191,56,FALSE)","v":120355.137},{"$f":"VLOOKUP($A12,F1__World_Data!$A$4:$DP$191,55,FALSE)","v":118827.158},{"$f":"VLOOKUP($A12,F1__World_Data!$A$4:$DP$191,54,FALSE)","v":117274.156},{"$f":"VLOOKUP($A12,F1__World_Data!$A$4:$DP$191,53,FALSE)","v":115695.46799999999},{"$f":"VLOOKUP($A12,F1__World_Data!$A$4:$DP$191,52,FALSE)","v":114092.961},{"$f":"VLOOKUP($A12,F1__World_Data!$A$4:$DP$191,51,FALSE)","v":112463.886},{"$f":"VLOOKUP($A12,F1__World_Data!$A$4:$DP$191,50,FALSE)","v":110815.272},{"$f":"VLOOKUP($A12,F1__World_Data!$A$4:$DP$191,49,FALSE)","v":109170.503},{"$f":"VLOOKUP($A12,F1__World_Data!$A$4:$DP$191,48,FALSE)","v":107560.155},{"$f":"VLOOKUP($A12,F1__World_Data!$A$4:$DP$191,47,FALSE)","v":106005.19899999999},{"$f":"VLOOKUP($A12,F1__World_Data!$A$4:$DP$191,46,FALSE)","v":104514.93399999999},{"$f":"VLOOKUP($A12,F1__World_Data!$A$4:$DP$191,45,FALSE)","v":103081.02},{"$f":"VLOOKUP($A12,F1__World_Data!$A$4:$DP$191,44,FALSE)","v":101684.764},{"$f":"VLOOKUP($A12,F1__World_Data!$A$4:$DP$191,43,FALSE)","v":100298.152},{"$f":"VLOOKUP($A12,F1__World_Data!$A$4:$DP$191,42,FALSE)","v":98899.845000000001},{"$f":"VLOOKUP($A12,F1__World_Data!$A$4:$DP$191,41,FALSE)","v":97484.823000000004},{"$f":"VLOOKUP($A12,F1__World_Data!$A$4:$DP$191,40,FALSE)","v":96056.312999999995},{"$f":"VLOOKUP($A12,F1__World_Data!$A$4:$DP$191,39,FALSE)","v":94611.008000000002},{"$f":"VLOOKUP($A12,F1__World_Data!$A$4:$DP$191,38,FALSE)","v":93147.044999999998},{"$f":"VLOOKUP($A12,F1__World_Data!$A$4:$DP$191,37,FALSE)","v":91663.29},{"$f":"VLOOKUP($A12,F1__World_Data!$A$4:$DP$191,36,FALSE)","v":90156.395999999993},{"$f":"VLOOKUP($A12,F1__World_Data!$A$4:$DP$191,35,FALSE)","v":88625.44},{"$f":"VLOOKUP($A12,F1__World_Data!$A$4:$DP$191,34,FALSE)","v":87075.135999999999},{"$f":"VLOOKUP($A12,F1__World_Data!$A$4:$DP$191,33,FALSE)","v":85512.620999999999},{"$f":"VLOOKUP($A12,F1__World_Data!$A$4:$DP$191,32,FALSE)","v":83943.134999999995},{"$f":"VLOOKUP($A12,F1__World_Data!$A$4:$DP$191,31,FALSE)","v":82368.929999999993},{"$f":"VLOOKUP($A12,F1__World_Data!$A$4:$DP$191,30,FALSE)","v":80788.725000000006},{"$f":"VLOOKUP($A12,F1__World_Data!$A$4:$DP$191,29,FALSE)","v":79200.081000000006},{"$f":"VLOOKUP($A12,F1__World_Data!$A$4:$DP$191,28,FALSE)","v":77599.104999999996},{"$f":"VLOOKUP($A12,F1__World_Data!$A$4:$DP$191,27,FALSE)","v":75983.486000000004},{"$f":"VLOOKUP($A12,F1__World_Data!$A$4:$DP$191,26,FALSE)","v":74352.630999999994},{"$f":"VLOOKUP($A12,F1__World_Data!$A$4:$DP$191,25,FALSE)","v":72709.305999999997},{"$f":"VLOOKUP($A12,F1__World_Data!$A$4:$DP$191,24,FALSE)","v":71058.649999999994},{"$f":"VLOOKUP($A12,F1__World_Data!$A$4:$DP$191,23,FALSE)","v":69407.623000000007},{"$f":"VLOOKUP($A12,F1__World_Data!$A$4:$DP$191,22,FALSE)","v":67761.366999999998},{"$f":"VLOOKUP($A12,F1__World_Data!$A$4:$DP$191,21,FALSE)","v":66123.907999999996},{"$f":"VLOOKUP($A12,F1__World_Data!$A$4:$DP$191,20,FALSE)","v":64494.872000000003},{"$f":"VLOOKUP($A12,F1__World_Data!$A$4:$DP$191,19,FALSE)","v":62869.908000000003},{"$f":"VLOOKUP($A12,F1__World_Data!$A$4:$DP$191,18,FALSE)","v":61242.188999999998},{"$f":"VLOOKUP($A12,F1__World_Data!$A$4:$DP$191,17,FALSE)","v":59607.947},{"$f":"VLOOKUP($A12,F1__World_Data!$A$4:$DP$191,16,FALSE)","v":57966.811999999998},{"$f":"VLOOKUP($A12,F1__World_Data!$A$4:$DP$191,15,FALSE)","v":56324.31},{"$f":"VLOOKUP($A12,F1__World_Data!$A$4:$DP$191,14,FALSE)","v":54689.944000000003},{"$f":"VLOOKUP($A12,F1__World_Data!$A$4:$DP$191,13,FALSE)","v":53076.366000000002},{"$f":"VLOOKUP($A12,F1__World_Data!$A$4:$DP$191,12,FALSE)","v":51493.565000000002},{"$f":"VLOOKUP($A12,F1__World_Data!$A$4:$DP$191,11,FALSE)","v":49945.277999999998},{"$f":"VLOOKUP($A12,F1__World_Data!$A$4:$DP$191,10,FALSE)","v":48431.970999999998},{"$f":"VLOOKUP($A12,F1__World_Data!$A$4:$DP$191,9,FALSE)","v":46956.207999999999},{"$f":"VLOOKUP($A12,F1__World_Data!$A$4:$DP$191,8,FALSE)","v":45519.745999999999},{"$f":"VLOOKUP($A12,F1__World_Data!$A$4:$DP$191,7,FALSE)","v":44123.862999999998},{"$f":"VLOOKUP($A12,F1__World_Data!$A$4:$DP$191,6,FALSE)","v":42771.076999999997},{"$f":"VLOOKUP($A12,F1__World_Data!$A$4:$DP$191,5,FALSE)","v":41462.373},{"$f":"VLOOKUP($A12,F1__World_Data!$A$4:$DP$191,4,FALSE)","v":40195.317999999999},{"$f":"VLOOKUP($A12,F1__World_Data!$A$4:$DP$191,3,FALSE)","v":38966.048999999999},{"$f":"VLOOKUP($A12,F1__World_Data!$A$4:$DP$191,2,FALSE)","v":37771.860999999997},null,{"$f":"VLOOKUP($A12,F1__World_Data!$A$4:$DP$191,120,FALSE)","v":68.116},{"$f":"VLOOKUP($A12,F1__World_Data!$A$4:$DP$191,119,FALSE)","v":67.850999999999999},{"$f":"VLOOKUP($A12,F1__World_Data!$A$4:$DP$191,118,FALSE)","v":67.576999999999998},{"$f":"VLOOKUP($A12,F1__World_Data!$A$4:$DP$191,117,FALSE)","v":67.290999999999997},{"$f":"VLOOKUP($A12,F1__World_Data!$A$4:$DP$191,116,FALSE)","v":66.995000000000005},{"$f":"VLOOKUP($A12,F1__World_Data!$A$4:$DP$191,115,FALSE)","v":66.69},{"$f":"VLOOKUP($A12,F1__World_Data!$A$4:$DP$191,114,FALSE)","v":66.381},{"$f":"VLOOKUP($A12,F1__World_Data!$A$4:$DP$191,113,FALSE)","v":66.072000000000003},{"$f":"VLOOKUP($A12,F1__World_Data!$A$4:$DP$191,112,FALSE)","v":65.769000000000005},{"$f":"VLOOKUP($A12,F1__World_Data!$A$4:$DP$191,111,FALSE)","v":65.48},{"$f":"VLOOKUP($A12,F1__World_Data!$A$4:$DP$191,110,FALSE)","v":65.207999999999998},{"$f":"VLOOKUP($A12,F1__World_Data!$A$4:$DP$191,109,FALSE)","v":64.953000000000003},{"$f":"VLOOKUP($A12,F1__World_Data!$A$4:$DP$191,108,FALSE)","v":64.712000000000003},{"$f":"VLOOKUP($A12,F1__World_Data!$A$4:$DP$191,107,FALSE)","v":64.477999999999994},{"$f":"VLOOKUP($A12,F1__World_Data!$A$4:$DP$191,106,FALSE)","v":64.242000000000004},{"$f":"VLOOKUP($A12,F1__World_Data!$A$4:$DP$191,105,FALSE)","v":63.994999999999997},{"$f":"VLOOKUP($A12,F1__World_Data!$A$4:$DP$191,104,FALSE)","v":63.731000000000002},{"$f":"VLOOKUP($A12,F1__World_Data!$A$4:$DP$191,103,FALSE)","v":63.445999999999998},{"$f":"VLOOKUP($A12,F1__World_Data!$A$4:$DP$191,102,FALSE)","v":63.143999999999998},{"$f":"VLOOKUP($A12,F1__World_Data!$A$4:$DP$191,101,FALSE)","v":62.829000000000001},{"$f":"VLOOKUP($A12,F1__World_Data!$A$4:$DP$191,100,FALSE)","v":62.509},{"$f":"VLOOKUP($A12,F1__World_Data!$A$4:$DP$191,99,FALSE)","v":62.188000000000002},{"$f":"VLOOKUP($A12,F1__World_Data!$A$4:$DP$191,98,FALSE)","v":61.866},{"$f":"VLOOKUP($A12,F1__World_Data!$A$4:$DP$191,97,FALSE)","v":61.539000000000001},{"$f":"VLOOKUP($A12,F1__World_Data!$A$4:$DP$191,96,FALSE)","v":61.198},{"$f":"VLOOKUP($A12,F1__World_Data!$A$4:$DP$191,95,FALSE)","v":60.837000000000003},{"$f":"VLOOKUP($A12,F1__World_Data!$A$4:$DP$191,94,FALSE)","v":60.454999999999998},{"$f":"VLOOKUP($A12,F1__World_Data!$A$4:$DP$191,93,FALSE)","v":60.052999999999997},{"$f":"VLOOKUP($A12,F1__World_Data!$A$4:$DP$191,92,FALSE)","v":59.636000000000003},{"$f":"VLOOKUP($A12,F1__World_Data!$A$4:$DP$191,91,FALSE)","v":59.209000000000003},{"$f":"VLOOKUP($A12,F1__World_Data!$A$4:$DP$191,90,FALSE)","v":58.783000000000001},{"$f":"VLOOKUP($A12,F1__World_Data!$A$4:$DP$191,89,FALSE)","v":58.366},{"$f":"VLOOKUP($A12,F1__World_Data!$A$4:$DP$191,88,FALSE)","v":57.962000000000003},{"$f":"VLOOKUP($A12,F1__World_Data!$A$4:$DP$191,87,FALSE)","v":57.579000000000001},{"$f":"VLOOKUP($A12,F1__World_Data!$A$4:$DP$191,86,FALSE)","v":57.220999999999997},{"$f":"VLOOKUP($A12,F1__World_Data!$A$4:$DP$191,85,FALSE)","v":56.886000000000003},{"$f":"VLOOKUP($A12,F1__World_Data!$A$4:$DP$191,84,FALSE)","v":56.569000000000003},{"$f":"VLOOKUP($A12,F1__World_Data!$A$4:$DP$191,83,FALSE)","v":56.265999999999998},{"$f":"VLOOKUP($A12,F1__World_Data!$A$4:$DP$191,82,FALSE)","v":55.970999999999997},{"$f":"VLOOKUP($A12,F1__World_Data!$A$4:$DP$191,81,FALSE)","v":55.679000000000002},{"$f":"VLOOKUP($A12,F1__World_Data!$A$4:$DP$191,80,FALSE)","v":55.381999999999998},{"$f":"VLOOKUP($A12,F1__World_Data!$A$4:$DP$191,79,FALSE)","v":55.073999999999998},{"$f":"VLOOKUP($A12,F1__World_Data!$A$4:$DP$191,78,FALSE)","v":54.747999999999998},{"$f":"VLOOKUP($A12,F1__World_Data!$A$4:$DP$191,77,FALSE)","v":54.399000000000001},{"$f":"VLOOKUP($A12,F1__World_Data!$A$4:$DP$191,76,FALSE)","v":54.027000000000001},{"$f":"VLOOKUP($A12,F1__World_Data!$A$4:$DP$191,75,FALSE)","v":53.633000000000003},{"$f":"VLOOKUP($A12,F1__World_Data!$A$4:$DP$191,74,FALSE)","v":53.218000000000004},52.781999999999996,52.323,51.837000000000003,51.326999999999998,50.795999999999999,50.25,49.697000000000003,49.145000000000003,48.600999999999999,48.070999999999998,{"$f":"VLOOKUP($A12,F1__World_Data!$A$4:$DP$191,63,FALSE)","v":47.557000000000002},{"$f":"VLOOKUP($A12,F1__World_Data!$A$4:$DP$191,62,FALSE)","v":47.061}]
["Ethiopia",{"$f":"VLOOKUP($A13,F1__World_Data!$A$4:$DP$191,60,FALSE)","v":109224.41},{"$f":"VLOOKUP($A13,F1__World_Data!$A$4:$DP$191,59,FALSE)","v":106399.92600000001},{"$f":"VLOOKUP($A13,F1__World_Data!$A$4:$DP$191,58,FALSE)","v":103603.461},{"$f":"VLOOKUP($A13,F1__World_Data!$A$4:$DP$191,57,FALSE)","v":100835.45299999999},{"$f":"VLOOKUP($A13,F1__World_Data!$A$4:$DP$191,56,FALSE)","v":98094.263999999996},{"$f":"VLOOKUP($A13,F1__World_Data!$A$4:$DP$191,55,FALSE)","v":95385.793000000005},{"$f":"VLOOKUP($A13,F1__World_Data!$A$4:$DP$191,54,FALSE)","v":92726.982000000004},{"$f":"VLOOKUP($A13,F1__World_Data!$A$4:$DP$191,53,FALSE)","v":90139.928},{"$f":"VLOOKUP($A13,F1__World_Data!$A$4:$DP$191,52,FALSE)","v":87639.962},{"$f":"VLOOKUP($A13,F1__World_Data!$A$4:$DP$191,51,FALSE)","v":85233.922999999995},{"$f":"VLOOKUP($A13,F1__World_Data!$A$4:$DP$191,50,FALSE)","v":82916.236000000004},{"$f":"VLOOKUP($A13,F1__World_Data!$A$4:$DP$191,49,FALSE)","v":80674.342999999993},{"$f":"VLOOKUP($A13,F1__World_Data!$A$4:$DP$191,48,FALSE)","v":78489.205000000002},{"$f":"VLOOKUP($A13,F1__World_Data!$A$4:$DP$191,47,FALSE)","v":76346.31},{"$f":"VLOOKUP($A13,F1__World_Data!$A$4:$DP$191,46,FALSE)","v":74239.508000000002},{"$f":"VLOOKUP($A13,F1__World_Data!$A$4:$DP$191,45,FALSE)","v":72170.581000000006},{"$f":"VLOOKUP($A13,F1__World_Data!$A$4:$DP$191,44,FALSE)","v":70142.09},{"$f":"VLOOKUP($A13,F1__World_Data!$A$4:$DP$191,43,FALSE)","v":68159.422000000006},{"$f":"VLOOKUP($A13,F1__World_Data!$A$4:$DP$191,42,FALSE)","v":66224.808999999994},{"$f":"VLOOKUP($A13,F1__World_Data!$A$4:$DP$191,41,FALSE)","v":64343.008000000002},{"$f":"VLOOKUP($A13,F1__World_Data!$A$4:$DP$191,40,FALSE)","v":62507.724000000002},{"$f":"VLOOKUP($A13,F1__World_Data!$A$4:$DP$191,39,FALSE)","v":60697.442999999999},{"$f":"VLOOKUP($A13,F1__World_Data!$A$4:$DP$191,38,FALSE)","v":58883.531000000003},{"$f":"VLOOKUP($A13,F1__World_Data!$A$4:$DP$191,37,FALSE)","v":57047.906000000003},{"$f":"VLOOKUP($A13,F1__World_Data!$A$4:$DP$191,36,FALSE)","v":55180.993000000002},{"$f":"VLOOKUP($A13,F1__World_Data!$A$4:$DP$191,35,FALSE)","v":53295.555999999997},{"$f":"VLOOKUP($A13,F1__World_Data!$A$4:$DP$191,34,FALSE)","v":51423.591},{"$f":"VLOOKUP($A13,F1__World_Data!$A$4:$DP$191,33,FALSE)","v":49609.976000000002},{"$f":"VLOOKUP($A13,F1__World_Data!$A$4:$DP$191,32,FALSE)","v":47887.864000000001},{"$f":"VLOOKUP($A13,F1__World_Data!$A$4:$DP$191,31,FALSE)","v":46272.307999999997},{"$f":"VLOOKUP($A13,F1__World_Data!$A$4:$DP$191,30,FALSE)","v":44757.205000000002},{"$f":"VLOOKUP($A13,F1__World_Data!$A$4:$DP$191,29,FALSE)","v":43329.237999999998},{"$f":"VLOOKUP($A13,F1__World_Data!$A$4:$DP$191,28,FALSE)","v":41965.696000000004},{"$f":"VLOOKUP($A13,F1__World_Data!$A$4:$DP$191,27,FALSE)","v":40652.146000000001},{"$f":"VLOOKUP($A13,F1__World_Data!$A$4:$DP$191,26,FALSE)","v":39374.345999999998},{"$f":"VLOOKUP($A13,F1__World_Data!$A$4:$DP$191,25,FALSE)","v":38142.678999999996},{"$f":"VLOOKUP($A13,F1__World_Data!$A$4:$DP$191,24,FALSE)","v":36995.245999999999},{"$f":"VLOOKUP($A13,F1__World_Data!$A$4:$DP$191,23,FALSE)","v":35984.531000000003},{"$f":"VLOOKUP($A13,F1__World_Data!$A$4:$DP$191,22,FALSE)","v":35141.703000000001},{"$f":"VLOOKUP($A13,F1__World_Data!$A$4:$DP$191,21,FALSE)","v":34487.805999999997},{"$f":"VLOOKUP($A13,F1__World_Data!$A$4:$DP$191,20,FALSE)","v":33993.300999999999},{"$f":"VLOOKUP($A13,F1__World_Data!$A$4:$DP$191,19,FALSE)","v":33577.24},{"$f":"VLOOKUP($A13,F1__World_Data!$A$4:$DP$191,18,FALSE)","v":33128.150999999998},{"$f":"VLOOKUP($A13,F1__World_Data!$A$4:$DP$191,17,FALSE)","v":32566.855},{"$f":"VLOOKUP($A13,F1__World_Data!$A$4:$DP$191,16,FALSE)","v":31861.352999999999},{"$f":"VLOOKUP($A13,F1__World_Data!$A$4:$DP$191,15,FALSE)","v":31036.67},{"$f":"VLOOKUP($A13,F1__World_Data!$A$4:$DP$191,14,FALSE)","v":30140.798999999999},{"$f":"VLOOKUP($A13,F1__World_Data!$A$4:$DP$191,13,FALSE)","v":29248.65},{"$f":"VLOOKUP($A13,F1__World_Data!$A$4:$DP$191,12,FALSE)","v":28415.08},{"$f":"VLOOKUP($A13,F1__World_Data!$A$4:$DP$191,11,FALSE)","v":27652.715},{"$f":"VLOOKUP($A13,F1__World_Data!$A$4:$DP$191,10,FALSE)","v":26944.385999999999},{"$f":"VLOOKUP($A13,F1__World_Data!$A$4:$DP$191,9,FALSE)","v":26280.134999999998},{"$f":"VLOOKUP($A13,F1__World_Data!$A$4:$DP$191,8,FALSE)","v":25641.040000000001},{"$f":"VLOOKUP($A13,F1__World_Data!$A$4:$DP$191,7,FALSE)","v":25013.633999999998},{"$f":"VLOOKUP($A13,F1__World_Data!$A$4:$DP$191,6,FALSE)","v":24397.01},{"$f":"VLOOKUP($A13,F1__World_Data!$A$4:$DP$191,5,FALSE)","v":23798.418000000001},{"$f":"VLOOKUP($A13,F1__World_Data!$A$4:$DP$191,4,FALSE)","v":23221.384999999998},{"$f":"VLOOKUP($A13,F1__World_Data!$A$4:$DP$191,3,FALSE)","v":22671.192999999999},{"$f":"VLOOKUP($A13,F1__World_Data!$A$4:$DP$191,2,FALSE)","v":22151.284},null,{"$f":"VLOOKUP($A13,F1__World_Data!$A$4:$DP$191,120,FALSE)","v":66.239999999999995},{"$f":"VLOOKUP($A13,F1__World_Data!$A$4:$DP$191,119,FALSE)","v":65.872},{"$f":"VLOOKUP($A13,F1__World_Data!$A$4:$DP$191,118,FALSE)","v":65.481999999999999},{"$f":"VLOOKUP($A13,F1__World_Data!$A$4:$DP$191,117,FALSE)","v":65.048000000000002},{"$f":"VLOOKUP($A13,F1__World_Data!$A$4:$DP$191,116,FALSE)","v":64.546999999999997},{"$f":"VLOOKUP($A13,F1__World_Data!$A$4:$DP$191,115,FALSE)","v":63.960999999999999},{"$f":"VLOOKUP($A13,F1__World_Data!$A$4:$DP$191,114,FALSE)","v":63.280999999999999},{"$f":"VLOOKUP($A13,F1__World_Data!$A$4:$DP$191,113,FALSE)","v":62.505000000000003},{"$f":"VLOOKUP($A13,F1__World_Data!$A$4:$DP$191,112,FALSE)","v":61.627000000000002},{"$f":"VLOOKUP($A13,F1__World_Data!$A$4:$DP$191,111,FALSE)","v":60.645000000000003},{"$f":"VLOOKUP($A13,F1__World_Data!$A$4:$DP$191,110,FALSE)","v":59.581000000000003},{"$f":"VLOOKUP($A13,F1__World_Data!$A$4:$DP$191,109,FALSE)","v":58.466999999999999},{"$f":"VLOOKUP($A13,F1__World_Data!$A$4:$DP$191,108,FALSE)","v":57.334000000000003},{"$f":"VLOOKUP($A13,F1__World_Data!$A$4:$DP$191,107,FALSE)","v":56.222999999999999},{"$f":"VLOOKUP($A13,F1__World_Data!$A$4:$DP$191,106,FALSE)","v":55.173999999999999},{"$f":"VLOOKUP($A13,F1__World_Data!$A$4:$DP$191,105,FALSE)","v":54.210999999999999},{"$f":"VLOOKUP($A13,F1__World_Data!$A$4:$DP$191,104,FALSE)","v":53.348999999999997},{"$f":"VLOOKUP($A13,F1__World_Data!$A$4:$DP$191,103,FALSE)","v":52.594999999999999},{"$f":"VLOOKUP($A13,F1__World_Data!$A$4:$DP$191,102,FALSE)","v":51.941000000000003},{"$f":"VLOOKUP($A13,F1__World_Data!$A$4:$DP$191,101,FALSE)","v":51.366},{"$f":"VLOOKUP($A13,F1__World_Data!$A$4:$DP$191,100,FALSE)","v":50.835000000000001},{"$f":"VLOOKUP($A13,F1__World_Data!$A$4:$DP$191,99,FALSE)","v":50.32},{"$f":"VLOOKUP($A13,F1__World_Data!$A$4:$DP$191,98,FALSE)","v":49.81},{"$f":"VLOOKUP($A13,F1__World_Data!$A$4:$DP$191,97,FALSE)","v":49.302999999999997},{"$f":"VLOOKUP($A13,F1__World_Data!$A$4:$DP$191,96,FALSE)","v":48.81},{"$f":"VLOOKUP($A13,F1__World_Data!$A$4:$DP$191,95,FALSE)","v":48.344000000000001},{"$f":"VLOOKUP($A13,F1__World_Data!$A$4:$DP$191,94,FALSE)","v":47.911000000000001},{"$f":"VLOOKUP($A13,F1__World_Data!$A$4:$DP$191,93,FALSE)","v":47.503999999999998},{"$f":"VLOOKUP($A13,F1__World_Data!$A$4:$DP$191,92,FALSE)","v":47.098999999999997},{"$f":"VLOOKUP($A13,F1__World_Data!$A$4:$DP$191,91,FALSE)","v":46.667000000000002},{"$f":"VLOOKUP($A13,F1__World_Data!$A$4:$DP$191,90,FALSE)","v":46.194000000000003},{"$f":"VLOOKUP($A13,F1__World_Data!$A$4:$DP$191,89,FALSE)","v":45.682000000000002},{"$f":"VLOOKUP($A13,F1__World_Data!$A$4:$DP$191,88,FALSE)","v":45.146999999999998},{"$f":"VLOOKUP($A13,F1__World_Data!$A$4:$DP$191,87,FALSE)","v":44.633000000000003},{"$f":"VLOOKUP($A13,F1__World_Data!$A$4:$DP$191,86,FALSE)","v":44.198999999999998},{"$f":"VLOOKUP($A13,F1__World_Data!$A$4:$DP$191,85,FALSE)","v":43.884999999999998},{"$f":"VLOOKUP($A13,F1__World_Data!$A$4:$DP$191,84,FALSE)","v":43.712000000000003},{"$f":"VLOOKUP($A13,F1__World_Data!$A$4:$DP$191,83,FALSE)","v":43.674999999999997},{"$f":"VLOOKUP($A13,F1__World_Data!$A$4:$DP$191,82,FALSE)","v":43.747},{"$f":"VLOOKUP($A13,F1__World_Data!$A$4:$DP$191,81,FALSE)","v":43.881},{"$f":"VLOOKUP($A13,F1__World_Data!$A$4:$DP$191,80,FALSE)","v":44.015999999999998},{"$f":"VLOOKUP($A13,F1__World_Data!$A$4:$DP$191,79,FALSE)","v":44.103000000000002},{"$f":"VLOOKUP($A13,F1__World_Data!$A$4:$DP$191,78,FALSE)","v":44.116},{"$f":"VLOOKUP($A13,F1__World_Data!$A$4:$DP$191,77,FALSE)","v":44.043999999999997},{"$f":"VLOOKUP($A13,F1__World_Data!$A$4:$DP$191,76,FALSE)","v":43.893999999999998},{"$f":"VLOOKUP($A13,F1__World_Data!$A$4:$DP$191,75,FALSE)","v":43.692999999999998},{"$f":"VLOOKUP($A13,F1__World_Data!$A$4:$DP$191,74,FALSE)","v":43.465000000000003},43.213000000000001,42.944000000000003,42.658999999999999,42.354999999999997,42.026000000000003,41.667999999999999,41.267000000000003,40.81,40.29,39.710999999999999,{"$f":"VLOOKUP($A13,F1__World_Data!$A$4:$DP$191,63,FALSE)","v":39.082000000000001},{"$f":"VLOOKUP($A13,F1__World_Data!$A$4:$DP$191,62,FALSE)","v":38.418999999999997}]
["Philippines",{"$f":"VLOOKUP($A14,F1__World_Data!$A$4:$DP$191,60,FALSE)","v":106651.394},{"$f":"VLOOKUP($A14,F1__World_Data!$A$4:$DP$191,59,FALSE)","v":105172.921},{"$f":"VLOOKUP($A14,F1__World_Data!$A$4:$DP$191,58,FALSE)","v":103663.81200000001},{"$f":"VLOOKUP($A14,F1__World_Data!$A$4:$DP$191,57,FALSE)","v":102113.20600000001},{"$f":"VLOOKUP($A14,F1__World_Data!$A$4:$DP$191,56,FALSE)","v":100513.137},{"$f":"VLOOKUP($A14,F1__World_Data!$A$4:$DP$191,55,FALSE)","v":98871.558000000005},{"$f":"VLOOKUP($A14,F1__World_Data!$A$4:$DP$191,54,FALSE)","v":97212.638999999996},{"$f":"VLOOKUP($A14,F1__World_Data!$A$4:$DP$191,53,FALSE)","v":95570.048999999999},{"$f":"VLOOKUP($A14,F1__World_Data!$A$4:$DP$191,52,FALSE)","v":93966.784},{"$f":"VLOOKUP($A14,F1__World_Data!$A$4:$DP$191,51,FALSE)","v":92414.160999999993},{"$f":"VLOOKUP($A14,F1__World_Data!$A$4:$DP$191,50,FALSE)","v":90901.967000000004},{"$f":"VLOOKUP($A14,F1__World_Data!$A$4:$DP$191,49,FALSE)","v":89405.482000000004},{"$f":"VLOOKUP($A14,F1__World_Data!$A$4:$DP$191,48,FALSE)","v":87888.675000000003},{"$f":"VLOOKUP($A14,F1__World_Data!$A$4:$DP$191,47,FALSE)","v":86326.251000000004},{"$f":"VLOOKUP($A14,F1__World_Data!$A$4:$DP$191,46,FALSE)","v":84710.543999999994},{"$f":"VLOOKUP($A14,F1__World_Data!$A$4:$DP$191,45,FALSE)","v":83051.97},{"$f":"VLOOKUP($A14,F1__World_Data!$A$4:$DP$191,44,FALSE)","v":81365.259999999995},{"$f":"VLOOKUP($A14,F1__World_Data!$A$4:$DP$191,43,FALSE)","v":79672.869000000006},{"$f":"VLOOKUP($A14,F1__World_Data!$A$4:$DP$191,42,FALSE)","v":77991.756999999998},{"$f":"VLOOKUP($A14,F1__World_Data!$A$4:$DP$191,41,FALSE)","v":76325.926999999996},{"$f":"VLOOKUP($A14,F1__World_Data!$A$4:$DP$191,40,FALSE)","v":74672.009000000005},{"$f":"VLOOKUP($A14,F1__World_Data!$A$4:$DP$191,39,FALSE)","v":73030.879000000001},{"$f":"VLOOKUP($A14,F1__World_Data!$A$4:$DP$191,38,FALSE)","v":71401.743000000002},{"$f":"VLOOKUP($A14,F1__World_Data!$A$4:$DP$191,37,FALSE)","v":69784.087},{"$f":"VLOOKUP($A14,F1__World_Data!$A$4:$DP$191,36,FALSE)","v":68180.846000000005},{"$f":"VLOOKUP($A14,F1__World_Data!$A$4:$DP$191,35,FALSE)","v":66593.903999999995},{"$f":"VLOOKUP($A14,F1__World_Data!$A$4:$DP$191,34,FALSE)","v":65020.124000000003},{"$f":"VLOOKUP($A14,F1__World_Data!$A$4:$DP$191,33,FALSE)","v":63454.785000000003},{"$f":"VLOOKUP($A14,F1__World_Data!$A$4:$DP$191,32,FALSE)","v":61895.169000000002},{"$f":"VLOOKUP($A14,F1__World_Data!$A$4:$DP$191,31,FALSE)","v":60340.767999999996},{"$f":"VLOOKUP($A14,F1__World_Data!$A$4:$DP$191,30,FALSE)","v":58794.999000000003},{"$f":"VLOOKUP($A14,F1__World_Data!$A$4:$DP$191,29,FALSE)","v":57263.834999999999},{"$f":"VLOOKUP($A14,F1__World_Data!$A$4:$DP$191,28,FALSE)","v":55755.345999999998},{"$f":"VLOOKUP($A14,F1__World_Data!$A$4:$DP$191,27,FALSE)","v":54275.836000000003},{"$f":"VLOOKUP($A14,F1__World_Data!$A$4:$DP$191,26,FALSE)","v":52827.046999999999},{"$f":"VLOOKUP($A14,F1__World_Data!$A$4:$DP$191,25,FALSE)","v":51408.91},{"$f":"VLOOKUP($A14,F1__World_Data!$A$4:$DP$191,24,FALSE)","v":50023.563999999998},{"$f":"VLOOKUP($A14,F1__World_Data!$A$4:$DP$191,23,FALSE)","v":48672.830999999998},{"$f":"VLOOKUP($A14,F1__World_Data!$A$4:$DP$191,22,FALSE)","v":47357.741000000002},{"$f":"VLOOKUP($A14,F1__World_Data!$A$4:$DP$191,21,FALSE)","v":46079.843999999997},{"$f":"VLOOKUP($A14,F1__World_Data!$A$4:$DP$191,20,FALSE)","v":44838.485000000001},{"$f":"VLOOKUP($A14,F1__World_Data!$A$4:$DP$191,19,FALSE)","v":43629.415000000001},{"$f":"VLOOKUP($A14,F1__World_Data!$A$4:$DP$191,18,FALSE)","v":42446.659},{"$f":"VLOOKUP($A14,F1__World_Data!$A$4:$DP$191,17,FALSE)","v":41285.741000000002},{"$f":"VLOOKUP($A14,F1__World_Data!$A$4:$DP$191,16,FALSE)","v":40144.25},{"$f":"VLOOKUP($A14,F1__World_Data!$A$4:$DP$191,15,FALSE)","v":39022.758999999998},{"$f":"VLOOKUP($A14,F1__World_Data!$A$4:$DP$191,14,FALSE)","v":37923.4},{"$f":"VLOOKUP($A14,F1__World_Data!$A$4:$DP$191,13,FALSE)","v":36849.678},{"$f":"VLOOKUP($A14,F1__World_Data!$A$4:$DP$191,12,FALSE)","v":35803.591},{"$f":"VLOOKUP($A14,F1__World_Data!$A$4:$DP$191,11,FALSE)","v":34786.309000000001},{"$f":"VLOOKUP($A14,F1__World_Data!$A$4:$DP$191,10,FALSE)","v":33795.203000000001},{"$f":"VLOOKUP($A14,F1__World_Data!$A$4:$DP$191,9,FALSE)","v":32823.97},{"$f":"VLOOKUP($A14,F1__World_Data!$A$4:$DP$191,8,FALSE)","v":31864.174999999999},{"$f":"VLOOKUP($A14,F1__World_Data!$A$4:$DP$191,7,FALSE)","v":30909.996999999999},{"$f":"VLOOKUP($A14,F1__World_Data!$A$4:$DP$191,6,FALSE)","v":29958.687000000002},{"$f":"VLOOKUP($A14,F1__World_Data!$A$4:$DP$191,5,FALSE)","v":29012.63},{"$f":"VLOOKUP($A14,F1__World_Data!$A$4:$DP$191,4,FALSE)","v":28077.345000000001},{"$f":"VLOOKUP($A14,F1__World_Data!$A$4:$DP$191,3,FALSE)","v":27161.052},{"$f":"VLOOKUP($A14,F1__World_Data!$A$4:$DP$191,2,FALSE)","v":26269.741000000002},null,{"$f":"VLOOKUP($A14,F1__World_Data!$A$4:$DP$191,120,FALSE)","v":68.116},{"$f":"VLOOKUP($A14,F1__World_Data!$A$4:$DP$191,119,FALSE)","v":67.850999999999999},{"$f":"VLOOKUP($A14,F1__World_Data!$A$4:$DP$191,118,FALSE)","v":67.576999999999998},{"$f":"VLOOKUP($A14,F1__World_Data!$A$4:$DP$191,117,FALSE)","v":67.290999999999997},{"$f":"VLOOKUP($A14,F1__World_Data!$A$4:$DP$191,116,FALSE)","v":66.995000000000005},{"$f":"VLOOKUP($A14,F1__World_Data!$A$4:$DP$191,115,FALSE)","v":66.69},{"$f":"VLOOKUP($A14,F1__World_Data!$A$4:$DP$191,114,FALSE)","v":66.381},{"$f":"VLOOKUP($A14,F1__World_Data!$A$4:$DP$191,113,FALSE)","v":66.072000000000003},{"$f":"VLOOKUP($A14,F1__World_Data!$A$4:$DP$191,112,FALSE)","v":65.769000000000005},{"$f":"VLOOKUP($A14,F1__World_Data!$A$4:$DP$191,111,FALSE)","v":65.48},{"$f":"VLOOKUP($A14,F1__World_Data!$A$4:$DP$191,110,FALSE)","v":65.207999999999998},{"$f":"VLOOKUP($A14,F1__World_Data!$A$4:$DP$191,109,FALSE)","v":64.953000000000003},{"$f":"VLOOKUP($A14,F1__World_Data!$A$4:$DP$191,108,FALSE)","v":64.712000000000003},{"$f":"VLOOKUP($A14,F1__World_Data!$A$4:$DP$191,107,FALSE)","v":64.477999999999994},{"$f":"VLOOKUP($A14,F1__World_Data!$A$4:$DP$191,106,FALSE)","v":64.242000000000004},{"$f":"VLOOKUP($A14,F1__World_Data!$A$4:$DP$191,105,FALSE)","v":63.994999999999997},{"$f":"VLOOKUP($A14,F1__World_Data!$A$4:$DP$191,104,FALSE)","v":63.731000000000002},{"$f":"VLOOKUP($A14,F1__World_Data!$A$4:$DP$191,103,FALSE)","v":63.445999999999998},{"$f":"VLOOKUP($A14,F1__World_Data!$A$4:$DP$191,102,FALSE)","v":63.143999999999998},{"$f":"VLOOKUP($A14,F1__World_Data!$A$4:$DP$191,101,FALSE)","v":62.829000000000001},{"$f":"VLOOKUP($A14,F1__World_Data!$A$4:$DP$191,100,FALSE)","v":62.509},{"$f":"VLOOKUP($A14,F1__World_Data!$A$4:$DP$191,99,FALSE)","v":62.188000000000002},{"$f":"VLOOKUP($A14,F1__World_Data!$A$4:$DP$191,98,FALSE)","v":61.866},{"$f":"VLOOKUP($A14,F1__World_Data!$A$4:$DP$191,97,FALSE)","v":61.539000000000001},{"$f":"VLOOKUP($A14,F1__World_Data!$A$4:$DP$191,96,FALSE)","v":61.198},{"$f":"VLOOKUP($A14,F1__World_Data!$A$4:$DP$191,95,FALSE)","v":60.837000000000003},{"$f":"VLOOKUP($A14,F1__World_Data!$A$4:$DP$191,94,FALSE)","v":60.454999999999998},{"$f":"VLOOKUP($A14,F1__World_Data!$A$4:$DP$191,93,FALSE)","v":60.052999999999997},{"$f":"VLOOKUP($A14,F1__World_Data!$A$4:$DP$191,92,FALSE)","v":59.636000000000003},{"$f":"VLOOKUP($A14,F1__World_Data!$A$4:$DP$191,91,FALSE)","v":59.209000000000003},{"$f":"VLOOKUP($A14,F1__World_Data!$A$4:$DP$191,90,FALSE)","v":58.783000000000001},{"$f":"VLOOKUP($A14,F1__World_Data!$A$4:$DP$191,89,FALSE)","v":58.366},{"$f":"VLOOKUP($A14,F1__World_Data!$A$4:$DP$191,88,FALSE)","v":57.962000000000003},{"$f":"VLOOKUP($A14,F1__World_Data!$A$4:$DP$191,87,FALSE)","v":57.579000000000001},{"$f":"VLOOKUP($A14,F1__World_Data!$A$4:$DP$191,86,FALSE)","v":57.220999999999997},{"$f":"VLOOKUP($A14,F1__World_Data!$A$4:$DP$191,85,FALSE)","v":56.886000000000003},{"$f":"VLOOKUP($A14,F1__World_Data!$A$4:$DP$191,84,FALSE)","v":56.569000000000003},{"$f":"VLOOKUP($A14,F1__World_Data!$A$4:$DP$191,83,FALSE)","v":56.265999999999998},{"$f":"VLOOKUP($A14,F1__World_Data!$A$4:$DP$191,82,FALSE)","v":55.970999999999997},{"$f":"VLOOKUP($A14,F1__World_Data!$A$4:$DP$191,81,FALSE)","v":55.679000000000002},{"$f":"VLOOKUP($A14,F1__World_Data!$A$4:$DP$191,80,FALSE)","v":55.381999999999998},{"$f":"VLOOKUP($A14,F1__World_Data!$A$4:$DP$191,79,FALSE)","v":55.073999999999998},{"$f":"VLOOKUP($A14,F1__World_Data!$A$4:$DP$191,78,FALSE)","v":54.747999999999998},{"$f":"VLOOKUP($A14,F1__World_Data!$A$4:$DP$191,77,FALSE)","v":54.399000000000001},{"$f":"VLOOKUP($A14,F1__World_Data!$A$4:$DP$191,76,FALSE)","v":54.027000000000001},{"$f":"VLOOKUP($A14,F1__World_Data!$A$4:$DP$191,75,FALSE)","v":53.633000000000003},{"$f":"VLOOKUP($A14,F1__World_Data!$A$4:$DP$191,74,FALSE)","v":53.218000000000004},52.781999999999996,52.323,51.837000000000003,51.326999999999998,50.795999999999999,50.25,49.697000000000003,49.145000000000003,48.600999999999999,48.070999999999998,{"$f":"VLOOKUP($A14,F1__World_Data!$A$4:$DP$191,63,FALSE)","v":47.557000000000002},{"$f":"VLOOKUP($A14,F1__World_Data!$A$4:$DP$191,62,FALSE)","v":47.061}]
["Egypt",{"$f":"VLOOKUP($A15,F1__World_Data!$A$4:$DP$191,60,FALSE)","v":98423.601999999999},{"$f":"VLOOKUP($A15,F1__World_Data!$A$4:$DP$191,59,FALSE)","v":96442.59},{"$f":"VLOOKUP($A15,F1__World_Data!$A$4:$DP$191,58,FALSE)","v":94447.070999999996},{"$f":"VLOOKUP($A15,F1__World_Data!$A$4:$DP$191,57,FALSE)","v":92442.548999999999},{"$f":"VLOOKUP($A15,F1__World_Data!$A$4:$DP$191,56,FALSE)","v":90424.668000000005},{"$f":"VLOOKUP($A15,F1__World_Data!$A$4:$DP$191,55,FALSE)","v":88404.652000000002},{"$f":"VLOOKUP($A15,F1__World_Data!$A$4:$DP$191,54,FALSE)","v":86422.24},{"$f":"VLOOKUP($A15,F1__World_Data!$A$4:$DP$191,53,FALSE)","v":84529.251000000004},{"$f":"VLOOKUP($A15,F1__World_Data!$A$4:$DP$191,52,FALSE)","v":82761.244000000006},{"$f":"VLOOKUP($A15,F1__World_Data!$A$4:$DP$191,51,FALSE)","v":81134.789000000004},{"$f":"VLOOKUP($A15,F1__World_Data!$A$4:$DP$191,50,FALSE)","v":79636.081000000006},{"$f":"VLOOKUP($A15,F1__World_Data!$A$4:$DP$191,49,FALSE)","v":78232.123999999996},{"$f":"VLOOKUP($A15,F1__World_Data!$A$4:$DP$191,48,FALSE)","v":76873.67},{"$f":"VLOOKUP($A15,F1__World_Data!$A$4:$DP$191,47,FALSE)","v":75523.576000000001},{"$f":"VLOOKUP($A15,F1__World_Data!$A$4:$DP$191,46,FALSE)","v":74172.073000000004},{"$f":"VLOOKUP($A15,F1__World_Data!$A$4:$DP$191,45,FALSE)","v":72826.101999999999},{"$f":"VLOOKUP($A15,F1__World_Data!$A$4:$DP$191,44,FALSE)","v":71485.043999999994},{"$f":"VLOOKUP($A15,F1__World_Data!$A$4:$DP$191,43,FALSE)","v":70152.661999999997},{"$f":"VLOOKUP($A15,F1__World_Data!$A$4:$DP$191,42,FALSE)","v":68831.561000000002},{"$f":"VLOOKUP($A15,F1__World_Data!$A$4:$DP$191,41,FALSE)","v":67515.591},{"$f":"VLOOKUP($A15,F1__World_Data!$A$4:$DP$191,40,FALSE)","v":66200.259000000005},{"$f":"VLOOKUP($A15,F1__World_Data!$A$4:$DP$191,39,FALSE)","v":64892.269},{"$f":"VLOOKUP($A15,F1__World_Data!$A$4:$DP$191,38,FALSE)","v":63601.631999999998},{"$f":"VLOOKUP($A15,F1__World_Data!$A$4:$DP$191,37,FALSE)","v":62334.025000000001},{"$f":"VLOOKUP($A15,F1__World_Data!$A$4:$DP$191,36,FALSE)","v":61095.803999999996},{"$f":"VLOOKUP($A15,F1__World_Data!$A$4:$DP$191,35,FALSE)","v":59880.656000000003},{"$f":"VLOOKUP($A15,F1__World_Data!$A$4:$DP$191,34,FALSE)","v":58666.811999999998},{"$f":"VLOOKUP($A15,F1__World_Data!$A$4:$DP$191,33,FALSE)","v":57424.552000000003},{"$f":"VLOOKUP($A15,F1__World_Data!$A$4:$DP$191,32,FALSE)","v":56134.478000000003},{"$f":"VLOOKUP($A15,F1__World_Data!$A$4:$DP$191,31,FALSE)","v":54788.68},{"$f":"VLOOKUP($A15,F1__World_Data!$A$4:$DP$191,30,FALSE)","v":53399.243000000002},{"$f":"VLOOKUP($A15,F1__World_Data!$A$4:$DP$191,29,FALSE)","v":51991.696000000004},{"$f":"VLOOKUP($A15,F1__World_Data!$A$4:$DP$191,28,FALSE)","v":50602.36},{"$f":"VLOOKUP($A15,F1__World_Data!$A$4:$DP$191,27,FALSE)","v":49258.726000000002},{"$f":"VLOOKUP($A15,F1__World_Data!$A$4:$DP$191,26,FALSE)","v":47968.642999999996},{"$f":"VLOOKUP($A15,F1__World_Data!$A$4:$DP$191,25,FALSE)","v":46728.284},{"$f":"VLOOKUP($A15,F1__World_Data!$A$4:$DP$191,24,FALSE)","v":45539.294999999998},{"$f":"VLOOKUP($A15,F1__World_Data!$A$4:$DP$191,23,FALSE)","v":44400.112999999998},{"$f":"VLOOKUP($A15,F1__World_Data!$A$4:$DP$191,22,FALSE)","v":43309.063000000002},{"$f":"VLOOKUP($A15,F1__World_Data!$A$4:$DP$191,21,FALSE)","v":42267.428999999996},{"$f":"VLOOKUP($A15,F1__World_Data!$A$4:$DP$191,20,FALSE)","v":41275.728000000003},{"$f":"VLOOKUP($A15,F1__World_Data!$A$4:$DP$191,19,FALSE)","v":40329.589},{"$f":"VLOOKUP($A15,F1__World_Data!$A$4:$DP$191,18,FALSE)","v":39422.731},{"$f":"VLOOKUP($A15,F1__World_Data!$A$4:$DP$191,17,FALSE)","v":38549.133000000002},{"$f":"VLOOKUP($A15,F1__World_Data!$A$4:$DP$191,16,FALSE)","v":37708.144},{"$f":"VLOOKUP($A15,F1__World_Data!$A$4:$DP$191,15,FALSE)","v":36896.550999999999},{"$f":"VLOOKUP($A15,F1__World_Data!$A$4:$DP$191,14,FALSE)","v":36102.67},{"$f":"VLOOKUP($A15,F1__World_Data!$A$4:$DP$191,13,FALSE)","v":35311.904999999999},{"$f":"VLOOKUP($A15,F1__World_Data!$A$4:$DP$191,12,FALSE)","v":34513.851000000002},{"$f":"VLOOKUP($A15,F1__World_Data!$A$4:$DP$191,11,FALSE)","v":33703.127},{"$f":"VLOOKUP($A15,F1__World_Data!$A$4:$DP$191,10,FALSE)","v":32881.851999999999},{"$f":"VLOOKUP($A15,F1__World_Data!$A$4:$DP$191,9,FALSE)","v":32056.506000000001},{"$f":"VLOOKUP($A15,F1__World_Data!$A$4:$DP$191,8,FALSE)","v":31237.597000000002},{"$f":"VLOOKUP($A15,F1__World_Data!$A$4:$DP$191,7,FALSE)","v":30433.024000000001},{"$f":"VLOOKUP($A15,F1__World_Data!$A$4:$DP$191,6,FALSE)","v":29644.875},{"$f":"VLOOKUP($A15,F1__World_Data!$A$4:$DP$191,5,FALSE)","v":28871.383000000002},{"$f":"VLOOKUP($A15,F1__World_Data!$A$4:$DP$191,4,FALSE)","v":28112.258000000002},{"$f":"VLOOKUP($A15,F1__World_Data!$A$4:$DP$191,3,FALSE)","v":27366.239000000001},{"$f":"VLOOKUP($A15,F1__World_Data!$A$4:$DP$191,2,FALSE)","v":26632.891},null,{"$f":"VLOOKUP($A15,F1__World_Data!$A$4:$DP$191,120,FALSE)","v":76.068336425009335},{"$f":"VLOOKUP($A15,F1__World_Data!$A$4:$DP$191,119,FALSE)","v":75.865953913004901},{"$f":"VLOOKUP($A15,F1__World_Data!$A$4:$DP$191,118,FALSE)","v":75.635540867798511},{"$f":"VLOOKUP($A15,F1__World_Data!$A$4:$DP$191,117,FALSE)","v":75.392556877146006},{"$f":"VLOOKUP($A15,F1__World_Data!$A$4:$DP$191,116,FALSE)","v":75.125170291792728},{"$f":"VLOOKUP($A15,F1__World_Data!$A$4:$DP$191,115,FALSE)","v":74.848214388702232},{"$f":"VLOOKUP($A15,F1__World_Data!$A$4:$DP$191,114,FALSE)","v":74.562126746498507},{"$f":"VLOOKUP($A15,F1__World_Data!$A$4:$DP$191,113,FALSE)","v":74.265950123674273},{"$f":"VLOOKUP($A15,F1__World_Data!$A$4:$DP$191,112,FALSE)","v":74.012996899440708},{"$f":"VLOOKUP($A15,F1__World_Data!$A$4:$DP$191,111,FALSE)","v":73.759125114931521},{"$f":"VLOOKUP($A15,F1__World_Data!$A$4:$DP$191,110,FALSE)","v":73.469895568539044},{"$f":"VLOOKUP($A15,F1__World_Data!$A$4:$DP$191,109,FALSE)","v":73.200933776161776},{"$f":"VLOOKUP($A15,F1__World_Data!$A$4:$DP$191,108,FALSE)","v":72.9216442984265},{"$f":"VLOOKUP($A15,F1__World_Data!$A$4:$DP$191,107,FALSE)","v":72.624620749367708},{"$f":"VLOOKUP($A15,F1__World_Data!$A$4:$DP$191,106,FALSE)","v":72.361144594166916},{"$f":"VLOOKUP($A15,F1__World_Data!$A$4:$DP$191,105,FALSE)","v":72.067528417777268},{"$f":"VLOOKUP($A15,F1__World_Data!$A$4:$DP$191,104,FALSE)","v":71.774764827285424},{"$f":"VLOOKUP($A15,F1__World_Data!$A$4:$DP$191,103,FALSE)","v":71.481717211098157},{"$f":"VLOOKUP($A15,F1__World_Data!$A$4:$DP$191,102,FALSE)","v":71.171918909870755},{"$f":"VLOOKUP($A15,F1__World_Data!$A$4:$DP$191,101,FALSE)","v":70.855171197526346},{"$f":"VLOOKUP($A15,F1__World_Data!$A$4:$DP$191,100,FALSE)","v":70.584851818643017},{"$f":"VLOOKUP($A15,F1__World_Data!$A$4:$DP$191,99,FALSE)","v":70.32575149703986},{"$f":"VLOOKUP($A15,F1__World_Data!$A$4:$DP$191,98,FALSE)","v":70.064499687021623},{"$f":"VLOOKUP($A15,F1__World_Data!$A$4:$DP$191,97,FALSE)","v":69.796301486396516},{"$f":"VLOOKUP($A15,F1__World_Data!$A$4:$DP$191,96,FALSE)","v":69.61721148408563},{"$f":"VLOOKUP($A15,F1__World_Data!$A$4:$DP$191,95,FALSE)","v":69.417277196560377},{"$f":"VLOOKUP($A15,F1__World_Data!$A$4:$DP$191,94,FALSE)","v":69.245236745391523},{"$f":"VLOOKUP($A15,F1__World_Data!$A$4:$DP$191,93,FALSE)","v":69.097354110722435},{"$f":"VLOOKUP($A15,F1__World_Data!$A$4:$DP$191,92,FALSE)","v":68.927543371686994},{"$f":"VLOOKUP($A15,F1__World_Data!$A$4:$DP$191,91,FALSE)","v":68.772157149955859},{"$f":"VLOOKUP($A15,F1__World_Data!$A$4:$DP$191,90,FALSE)","v":68.581777928346071},{"$f":"VLOOKUP($A15,F1__World_Data!$A$4:$DP$191,89,FALSE)","v":68.409653362261437},{"$f":"VLOOKUP($A15,F1__World_Data!$A$4:$DP$191,88,FALSE)","v":68.172328301194725},{"$f":"VLOOKUP($A15,F1__World_Data!$A$4:$DP$191,87,FALSE)","v":67.904085288855867},{"$f":"VLOOKUP($A15,F1__World_Data!$A$4:$DP$191,86,FALSE)","v":67.614932268324949},{"$f":"VLOOKUP($A15,F1__World_Data!$A$4:$DP$191,85,FALSE)","v":67.282364494338324},{"$f":"VLOOKUP($A15,F1__World_Data!$A$4:$DP$191,84,FALSE)","v":66.959638237213269},{"$f":"VLOOKUP($A15,F1__World_Data!$A$4:$DP$191,83,FALSE)","v":66.564213929766609},{"$f":"VLOOKUP($A15,F1__World_Data!$A$4:$DP$191,82,FALSE)","v":66.144156041201228},{"$f":"VLOOKUP($A15,F1__World_Data!$A$4:$DP$191,81,FALSE)","v":65.727820559378813},{"$f":"VLOOKUP($A15,F1__World_Data!$A$4:$DP$191,80,FALSE)","v":65.233994849944651},{"$f":"VLOOKUP($A15,F1__World_Data!$A$4:$DP$191,79,FALSE)","v":64.70935721654665},{"$f":"VLOOKUP($A15,F1__World_Data!$A$4:$DP$191,78,FALSE)","v":64.125085843567575},{"$f":"VLOOKUP($A15,F1__World_Data!$A$4:$DP$191,77,FALSE)","v":63.514711961658492},{"$f":"VLOOKUP($A15,F1__World_Data!$A$4:$DP$191,76,FALSE)","v":62.843989656220664},{"$f":"VLOOKUP($A15,F1__World_Data!$A$4:$DP$191,75,FALSE)","v":62.144243620744909},{"$f":"VLOOKUP($A15,F1__World_Data!$A$4:$DP$191,74,FALSE)","v":61.448445533243543},60.65657690740349,59.739850578693151,58.700429236443419,57.470912613120909,56.109405381894881,54.636410491335049,53.115459657166191,51.75893886459086,50.573598301431964,49.607894087911561,{"$f":"VLOOKUP($A15,F1__World_Data!$A$4:$DP$191,63,FALSE)","v":48.944167502503497},{"$f":"VLOOKUP($A15,F1__World_Data!$A$4:$DP$191,62,FALSE)","v":48.415899060559688}]
["Viet Nam",{"$f":"VLOOKUP($A16,F1__World_Data!$A$4:$DP$191,60,FALSE)","v":95545.959000000003},{"$f":"VLOOKUP($A16,F1__World_Data!$A$4:$DP$191,59,FALSE)","v":94600.642999999996},{"$f":"VLOOKUP($A16,F1__World_Data!$A$4:$DP$191,58,FALSE)","v":93640.434999999998},{"$f":"VLOOKUP($A16,F1__World_Data!$A$4:$DP$191,57,FALSE)","v":92677.081999999995},{"$f":"VLOOKUP($A16,F1__World_Data!$A$4:$DP$191,56,FALSE)","v":91713.85},{"$f":"VLOOKUP($A16,F1__World_Data!$A$4:$DP$191,55,FALSE)","v":90752.592999999993},{"$f":"VLOOKUP($A16,F1__World_Data!$A$4:$DP$191,54,FALSE)","v":89801.926000000007},{"$f":"VLOOKUP($A16,F1__World_Data!$A$4:$DP$191,53,FALSE)","v":88871.384000000005},{"$f":"VLOOKUP($A16,F1__World_Data!$A$4:$DP$191,52,FALSE)","v":87967.654999999999},{"$f":"VLOOKUP($A16,F1__World_Data!$A$4:$DP$191,51,FALSE)","v":87092.25},{"$f":"VLOOKUP($A16,F1__World_Data!$A$4:$DP$191,50,FALSE)","v":86243.423999999999},{"$f":"VLOOKUP($A16,F1__World_Data!$A$4:$DP$191,49,FALSE)","v":85419.588000000003},{"$f":"VLOOKUP($A16,F1__World_Data!$A$4:$DP$191,48,FALSE)","v":84617.544999999998},{"$f":"VLOOKUP($A16,F1__World_Data!$A$4:$DP$191,47,FALSE)","v":83832.661999999997},{"$f":"VLOOKUP($A16,F1__World_Data!$A$4:$DP$191,46,FALSE)","v":83062.819000000003},{"$f":"VLOOKUP($A16,F1__World_Data!$A$4:$DP$191,45,FALSE)","v":82301.649999999994},{"$f":"VLOOKUP($A16,F1__World_Data!$A$4:$DP$191,44,FALSE)","v":81534.406000000003},{"$f":"VLOOKUP($A16,F1__World_Data!$A$4:$DP$191,43,FALSE)","v":80742.5},{"$f":"VLOOKUP($A16,F1__World_Data!$A$4:$DP$191,42,FALSE)","v":79910.410999999993},{"$f":"VLOOKUP($A16,F1__World_Data!$A$4:$DP$191,41,FALSE)","v":79035.870999999999},{"$f":"VLOOKUP($A16,F1__World_Data!$A$4:$DP$191,40,FALSE)","v":78115.712},{"$f":"VLOOKUP($A16,F1__World_Data!$A$4:$DP$191,39,FALSE)","v":77133.212},{"$f":"VLOOKUP($A16,F1__World_Data!$A$4:$DP$191,38,FALSE)","v":76068.739000000001},{"$f":"VLOOKUP($A16,F1__World_Data!$A$4:$DP$191,37,FALSE)","v":74910.462},{"$f":"VLOOKUP($A16,F1__World_Data!$A$4:$DP$191,36,FALSE)","v":73651.22},{"$f":"VLOOKUP($A16,F1__World_Data!$A$4:$DP$191,35,FALSE)","v":72300.308000000005},{"$f":"VLOOKUP($A16,F1__World_Data!$A$4:$DP$191,34,FALSE)","v":70883.487999999998},{"$f":"VLOOKUP($A16,F1__World_Data!$A$4:$DP$191,33,FALSE)","v":69436.956000000006},{"$f":"VLOOKUP($A16,F1__World_Data!$A$4:$DP$191,32,FALSE)","v":67988.854999999996},{"$f":"VLOOKUP($A16,F1__World_Data!$A$4:$DP$191,31,FALSE)","v":66550.231},{"$f":"VLOOKUP($A16,F1__World_Data!$A$4:$DP$191,30,FALSE)","v":65120.432000000001},{"$f":"VLOOKUP($A16,F1__World_Data!$A$4:$DP$191,29,FALSE)","v":63701.974000000002},{"$f":"VLOOKUP($A16,F1__World_Data!$A$4:$DP$191,28,FALSE)","v":62293.858999999997},{"$f":"VLOOKUP($A16,F1__World_Data!$A$4:$DP$191,27,FALSE)","v":60896.732000000004},{"$f":"VLOOKUP($A16,F1__World_Data!$A$4:$DP$191,26,FALSE)","v":59512.618999999999},{"$f":"VLOOKUP($A16,F1__World_Data!$A$4:$DP$191,25,FALSE)","v":58148.383999999998},{"$f":"VLOOKUP($A16,F1__World_Data!$A$4:$DP$191,24,FALSE)","v":56814.309000000001},{"$f":"VLOOKUP($A16,F1__World_Data!$A$4:$DP$191,23,FALSE)","v":55522.803999999996},{"$f":"VLOOKUP($A16,F1__World_Data!$A$4:$DP$191,22,FALSE)","v":54281.841},{"$f":"VLOOKUP($A16,F1__World_Data!$A$4:$DP$191,21,FALSE)","v":53095.406000000003},{"$f":"VLOOKUP($A16,F1__World_Data!$A$4:$DP$191,20,FALSE)","v":51959.021000000001},{"$f":"VLOOKUP($A16,F1__World_Data!$A$4:$DP$191,19,FALSE)","v":50861.165999999997},{"$f":"VLOOKUP($A16,F1__World_Data!$A$4:$DP$191,18,FALSE)","v":49785.277999999998},{"$f":"VLOOKUP($A16,F1__World_Data!$A$4:$DP$191,17,FALSE)","v":48718.19},{"$f":"VLOOKUP($A16,F1__World_Data!$A$4:$DP$191,16,FALSE)","v":47657.553999999996},{"$f":"VLOOKUP($A16,F1__World_Data!$A$4:$DP$191,15,FALSE)","v":46603.521999999997},{"$f":"VLOOKUP($A16,F1__World_Data!$A$4:$DP$191,14,FALSE)","v":45548.476000000002},{"$f":"VLOOKUP($A16,F1__World_Data!$A$4:$DP$191,13,FALSE)","v":44484.031999999999},{"$f":"VLOOKUP($A16,F1__World_Data!$A$4:$DP$191,12,FALSE)","v":43404.802000000003},{"$f":"VLOOKUP($A16,F1__World_Data!$A$4:$DP$191,11,FALSE)","v":42307.148999999998},{"$f":"VLOOKUP($A16,F1__World_Data!$A$4:$DP$191,10,FALSE)","v":41193.588000000003},{"$f":"VLOOKUP($A16,F1__World_Data!$A$4:$DP$191,9,FALSE)","v":40072.951000000001},{"$f":"VLOOKUP($A16,F1__World_Data!$A$4:$DP$191,8,FALSE)","v":38958.046000000002},{"$f":"VLOOKUP($A16,F1__World_Data!$A$4:$DP$191,7,FALSE)","v":37858.947},{"$f":"VLOOKUP($A16,F1__World_Data!$A$4:$DP$191,6,FALSE)","v":36780.000999999997},{"$f":"VLOOKUP($A16,F1__World_Data!$A$4:$DP$191,5,FALSE)","v":35721.213000000003},{"$f":"VLOOKUP($A16,F1__World_Data!$A$4:$DP$191,4,FALSE)","v":34683.410000000003},{"$f":"VLOOKUP($A16,F1__World_Data!$A$4:$DP$191,3,FALSE)","v":33666.110999999997},{"$f":"VLOOKUP($A16,F1__World_Data!$A$4:$DP$191,2,FALSE)","v":32670.047999999999},null,{"$f":"VLOOKUP($A16,F1__World_Data!$A$4:$DP$191,120,FALSE)","v":63.856999999999999},{"$f":"VLOOKUP($A16,F1__World_Data!$A$4:$DP$191,119,FALSE)","v":63.537999999999997},{"$f":"VLOOKUP($A16,F1__World_Data!$A$4:$DP$191,118,FALSE)","v":63.152999999999999},{"$f":"VLOOKUP($A16,F1__World_Data!$A$4:$DP$191,117,FALSE)","v":62.649000000000001},{"$f":"VLOOKUP($A16,F1__World_Data!$A$4:$DP$191,116,FALSE)","v":61.968000000000004},{"$f":"VLOOKUP($A16,F1__World_Data!$A$4:$DP$191,115,FALSE)","v":61.098999999999997},{"$f":"VLOOKUP($A16,F1__World_Data!$A$4:$DP$191,114,FALSE)","v":60.06},{"$f":"VLOOKUP($A16,F1__World_Data!$A$4:$DP$191,113,FALSE)","v":58.895000000000003},{"$f":"VLOOKUP($A16,F1__World_Data!$A$4:$DP$191,112,FALSE)","v":57.668999999999997},{"$f":"VLOOKUP($A16,F1__World_Data!$A$4:$DP$191,111,FALSE)","v":56.46},{"$f":"VLOOKUP($A16,F1__World_Data!$A$4:$DP$191,110,FALSE)","v":55.36},{"$f":"VLOOKUP($A16,F1__World_Data!$A$4:$DP$191,109,FALSE)","v":54.451999999999998},{"$f":"VLOOKUP($A16,F1__World_Data!$A$4:$DP$191,108,FALSE)","v":53.795000000000002},{"$f":"VLOOKUP($A16,F1__World_Data!$A$4:$DP$191,107,FALSE)","v":53.447000000000003},{"$f":"VLOOKUP($A16,F1__World_Data!$A$4:$DP$191,106,FALSE)","v":53.444000000000003},{"$f":"VLOOKUP($A16,F1__World_Data!$A$4:$DP$191,105,FALSE)","v":53.749000000000002},{"$f":"VLOOKUP($A16,F1__World_Data!$A$4:$DP$191,104,FALSE)","v":54.31},{"$f":"VLOOKUP($A16,F1__World_Data!$A$4:$DP$191,103,FALSE)","v":55.088999999999999},{"$f":"VLOOKUP($A16,F1__World_Data!$A$4:$DP$191,102,FALSE)","v":56.048000000000002},{"$f":"VLOOKUP($A16,F1__World_Data!$A$4:$DP$191,101,FALSE)","v":57.143999999999998},{"$f":"VLOOKUP($A16,F1__World_Data!$A$4:$DP$191,100,FALSE)","v":58.314999999999998},{"$f":"VLOOKUP($A16,F1__World_Data!$A$4:$DP$191,99,FALSE)","v":59.488999999999997},{"$f":"VLOOKUP($A16,F1__World_Data!$A$4:$DP$191,98,FALSE)","v":60.594999999999999},{"$f":"VLOOKUP($A16,F1__World_Data!$A$4:$DP$191,97,FALSE)","v":61.561},{"$f":"VLOOKUP($A16,F1__World_Data!$A$4:$DP$191,96,FALSE)","v":62.331000000000003},{"$f":"VLOOKUP($A16,F1__World_Data!$A$4:$DP$191,95,FALSE)","v":62.893999999999998},{"$f":"VLOOKUP($A16,F1__World_Data!$A$4:$DP$191,94,FALSE)","v":63.247},{"$f":"VLOOKUP($A16,F1__World_Data!$A$4:$DP$191,93,FALSE)","v":63.384},{"$f":"VLOOKUP($A16,F1__World_Data!$A$4:$DP$191,92,FALSE)","v":63.307000000000002},{"$f":"VLOOKUP($A16,F1__World_Data!$A$4:$DP$191,91,FALSE)","v":63.034999999999997},{"$f":"VLOOKUP($A16,F1__World_Data!$A$4:$DP$191,90,FALSE)","v":62.619},{"$f":"VLOOKUP($A16,F1__World_Data!$A$4:$DP$191,89,FALSE)","v":62.109000000000002},{"$f":"VLOOKUP($A16,F1__World_Data!$A$4:$DP$191,88,FALSE)","v":61.54},{"$f":"VLOOKUP($A16,F1__World_Data!$A$4:$DP$191,87,FALSE)","v":60.945999999999998},{"$f":"VLOOKUP($A16,F1__World_Data!$A$4:$DP$191,86,FALSE)","v":60.353000000000002},{"$f":"VLOOKUP($A16,F1__World_Data!$A$4:$DP$191,85,FALSE)","v":59.765999999999998},{"$f":"VLOOKUP($A16,F1__World_Data!$A$4:$DP$191,84,FALSE)","v":59.191000000000003},{"$f":"VLOOKUP($A16,F1__World_Data!$A$4:$DP$191,83,FALSE)","v":58.637},{"$f":"VLOOKUP($A16,F1__World_Data!$A$4:$DP$191,82,FALSE)","v":58.106999999999999},{"$f":"VLOOKUP($A16,F1__World_Data!$A$4:$DP$191,81,FALSE)","v":57.59},{"$f":"VLOOKUP($A16,F1__World_Data!$A$4:$DP$191,80,FALSE)","v":57.070999999999998},{"$f":"VLOOKUP($A16,F1__World_Data!$A$4:$DP$191,79,FALSE)","v":56.537999999999997},{"$f":"VLOOKUP($A16,F1__World_Data!$A$4:$DP$191,78,FALSE)","v":55.99},{"$f":"VLOOKUP($A16,F1__World_Data!$A$4:$DP$191,77,FALSE)","v":55.427999999999997},{"$f":"VLOOKUP($A16,F1__World_Data!$A$4:$DP$191,76,FALSE)","v":54.856000000000002},{"$f":"VLOOKUP($A16,F1__World_Data!$A$4:$DP$191,75,FALSE)","v":54.280999999999999},{"$f":"VLOOKUP($A16,F1__World_Data!$A$4:$DP$191,74,FALSE)","v":53.713000000000001},53.156999999999996,52.62,52.106000000000002,51.615000000000002,51.148000000000003,50.704999999999998,50.283999999999999,49.887999999999998,49.509,49.142000000000003,{"$f":"VLOOKUP($A16,F1__World_Data!$A$4:$DP$191,63,FALSE)","v":48.777000000000001},{"$f":"VLOOKUP($A16,F1__World_Data!$A$4:$DP$191,62,FALSE)","v":48.405999999999999}]
["Germany",{"$f":"VLOOKUP($A17,F1__World_Data!$A$4:$DP$191,60,FALSE)","v":83124.413},{"$f":"VLOOKUP($A17,F1__World_Data!$A$4:$DP$191,59,FALSE)","v":82658.409},{"$f":"VLOOKUP($A17,F1__World_Data!$A$4:$DP$191,58,FALSE)","v":82193.77},{"$f":"VLOOKUP($A17,F1__World_Data!$A$4:$DP$191,57,FALSE)","v":81787.410999999993},{"$f":"VLOOKUP($A17,F1__World_Data!$A$4:$DP$191,56,FALSE)","v":81450.37},{"$f":"VLOOKUP($A17,F1__World_Data!$A$4:$DP$191,58,FALSE)","v":82193.77},{"$f":"VLOOKUP($A17,F1__World_Data!$A$4:$DP$191,54,FALSE)","v":80972.629000000001},{"$f":"VLOOKUP($A17,F1__World_Data!$A$4:$DP$191,53,FALSE)","v":80855.629000000001},{"$f":"VLOOKUP($A17,F1__World_Data!$A$4:$DP$191,52,FALSE)","v":80827.001000000004},{"$f":"VLOOKUP($A17,F1__World_Data!$A$4:$DP$191,51,FALSE)","v":80899.960999999996},{"$f":"VLOOKUP($A17,F1__World_Data!$A$4:$DP$191,50,FALSE)","v":81065.751000000004},{"$f":"VLOOKUP($A17,F1__World_Data!$A$4:$DP$191,49,FALSE)","v":81277.835999999996},{"$f":"VLOOKUP($A17,F1__World_Data!$A$4:$DP$191,48,FALSE)","v":81472.235000000001},{"$f":"VLOOKUP($A17,F1__World_Data!$A$4:$DP$191,47,FALSE)","v":81602.739000000001},{"$f":"VLOOKUP($A17,F1__World_Data!$A$4:$DP$191,46,FALSE)","v":81646.474000000002},{"$f":"VLOOKUP($A17,F1__World_Data!$A$4:$DP$191,45,FALSE)","v":81614.370999999999},{"$f":"VLOOKUP($A17,F1__World_Data!$A$4:$DP$191,44,FALSE)","v":81535.123999999996},{"$f":"VLOOKUP($A17,F1__World_Data!$A$4:$DP$191,43,FALSE)","v":81453.894},{"$f":"VLOOKUP($A17,F1__World_Data!$A$4:$DP$191,42,FALSE)","v":81400.883000000002},{"$f":"VLOOKUP($A17,F1__World_Data!$A$4:$DP$191,41,FALSE)","v":81389.934999999998},{"$f":"VLOOKUP($A17,F1__World_Data!$A$4:$DP$191,40,FALSE)","v":81402.671000000002},{"$f":"VLOOKUP($A17,F1__World_Data!$A$4:$DP$191,39,FALSE)","v":81399.25},{"$f":"VLOOKUP($A17,F1__World_Data!$A$4:$DP$191,38,FALSE)","v":81323.665999999997},{"$f":"VLOOKUP($A17,F1__World_Data!$A$4:$DP$191,37,FALSE)","v":81138.653000000006},{"$f":"VLOOKUP($A17,F1__World_Data!$A$4:$DP$191,36,FALSE)","v":80832.928},{"$f":"VLOOKUP($A17,F1__World_Data!$A$4:$DP$191,35,FALSE)","v":80428.557000000001},{"$f":"VLOOKUP($A17,F1__World_Data!$A$4:$DP$191,34,FALSE)","v":79963.165999999997},{"$f":"VLOOKUP($A17,F1__World_Data!$A$4:$DP$191,33,FALSE)","v":79490.831000000006},{"$f":"VLOOKUP($A17,F1__World_Data!$A$4:$DP$191,32,FALSE)","v":79053.983999999997},{"$f":"VLOOKUP($A17,F1__World_Data!$A$4:$DP$191,31,FALSE)","v":78660.301000000007},{"$f":"VLOOKUP($A17,F1__World_Data!$A$4:$DP$191,30,FALSE)","v":78307.524999999994},{"$f":"VLOOKUP($A17,F1__World_Data!$A$4:$DP$191,29,FALSE)","v":78015.741999999998},{"$f":"VLOOKUP($A17,F1__World_Data!$A$4:$DP$191,28,FALSE)","v":77806.135999999999},{"$f":"VLOOKUP($A17,F1__World_Data!$A$4:$DP$191,27,FALSE)","v":77691.591},{"$f":"VLOOKUP($A17,F1__World_Data!$A$4:$DP$191,26,FALSE)","v":77682.293000000005},{"$f":"VLOOKUP($A17,F1__World_Data!$A$4:$DP$191,25,FALSE)","v":77770.210000000006},{"$f":"VLOOKUP($A17,F1__World_Data!$A$4:$DP$191,24,FALSE)","v":77926.016000000003},{"$f":"VLOOKUP($A17,F1__World_Data!$A$4:$DP$191,23,FALSE)","v":78107.86},{"$f":"VLOOKUP($A17,F1__World_Data!$A$4:$DP$191,22,FALSE)","v":78283.100999999995},{"$f":"VLOOKUP($A17,F1__World_Data!$A$4:$DP$191,21,FALSE)","v":78438.171000000002},{"$f":"VLOOKUP($A17,F1__World_Data!$A$4:$DP$191,20,FALSE)","v":78573.588000000003},{"$f":"VLOOKUP($A17,F1__World_Data!$A$4:$DP$191,19,FALSE)","v":78687.323000000004},{"$f":"VLOOKUP($A17,F1__World_Data!$A$4:$DP$191,18,FALSE)","v":78781.740000000005},{"$f":"VLOOKUP($A17,F1__World_Data!$A$4:$DP$191,17,FALSE)","v":78856.031000000003},{"$f":"VLOOKUP($A17,F1__World_Data!$A$4:$DP$191,16,FALSE)","v":78909.808000000005},{"$f":"VLOOKUP($A17,F1__World_Data!$A$4:$DP$191,15,FALSE)","v":78932.455000000002},{"$f":"VLOOKUP($A17,F1__World_Data!$A$4:$DP$191,14,FALSE)","v":78901.826000000001},{"$f":"VLOOKUP($A17,F1__World_Data!$A$4:$DP$191,13,FALSE)","v":78789.930999999997},{"$f":"VLOOKUP($A17,F1__World_Data!$A$4:$DP$191,12,FALSE)","v":78578.380999999994},{"$f":"VLOOKUP($A17,F1__World_Data!$A$4:$DP$191,11,FALSE)","v":78260.755999999994},{"$f":"VLOOKUP($A17,F1__World_Data!$A$4:$DP$191,10,FALSE)","v":77847.179000000004},{"$f":"VLOOKUP($A17,F1__World_Data!$A$4:$DP$191,9,FALSE)","v":77357.251000000004},{"$f":"VLOOKUP($A17,F1__World_Data!$A$4:$DP$191,8,FALSE)","v":76819.570000000007},{"$f":"VLOOKUP($A17,F1__World_Data!$A$4:$DP$191,7,FALSE)","v":76258.034},{"$f":"VLOOKUP($A17,F1__World_Data!$A$4:$DP$191,6,FALSE)","v":75677.304999999993},{"$f":"VLOOKUP($A17,F1__World_Data!$A$4:$DP$191,5,FALSE)","v":75080.748999999996},{"$f":"VLOOKUP($A17,F1__World_Data!$A$4:$DP$191,4,FALSE)","v":74489.45},{"$f":"VLOOKUP($A17,F1__World_Data!$A$4:$DP$191,3,FALSE)","v":73928.077000000005},{"$f":"VLOOKUP($A17,F1__World_Data!$A$4:$DP$191,2,FALSE)","v":73414.229000000007},null,{"$f":"VLOOKUP($A17,F1__World_Data!$A$4:$DP$191,120,FALSE)","v":82.548780487804891},{"$f":"VLOOKUP($A17,F1__World_Data!$A$4:$DP$191,119,FALSE)","v":82.29756097560977},{"$f":"VLOOKUP($A17,F1__World_Data!$A$4:$DP$191,118,FALSE)","v":82.046341463414635},{"$f":"VLOOKUP($A17,F1__World_Data!$A$4:$DP$191,117,FALSE)","v":81.795121951219528},{"$f":"VLOOKUP($A17,F1__World_Data!$A$4:$DP$191,116,FALSE)","v":81.592682926829269},{"$f":"VLOOKUP($A17,F1__World_Data!$A$4:$DP$191,115,FALSE)","v":81.341463414634148},{"$f":"VLOOKUP($A17,F1__World_Data!$A$4:$DP$191,114,FALSE)","v":81.090243902439042},{"$f":"VLOOKUP($A17,F1__World_Data!$A$4:$DP$191,113,FALSE)","v":80.839024390243921},{"$f":"VLOOKUP($A17,F1__World_Data!$A$4:$DP$191,112,FALSE)","v":80.587804878048786},{"$f":"VLOOKUP($A17,F1__World_Data!$A$4:$DP$191,111,FALSE)","v":80.387804878048797},{"$f":"VLOOKUP($A17,F1__World_Data!$A$4:$DP$191,110,FALSE)","v":80.139024390243918},{"$f":"VLOOKUP($A17,F1__World_Data!$A$4:$DP$191,109,FALSE)","v":79.890243902439039},{"$f":"VLOOKUP($A17,F1__World_Data!$A$4:$DP$191,108,FALSE)","v":79.690243902439036},{"$f":"VLOOKUP($A17,F1__World_Data!$A$4:$DP$191,107,FALSE)","v":79.441463414634157},{"$f":"VLOOKUP($A17,F1__World_Data!$A$4:$DP$191,106,FALSE)","v":79.190243902439036},{"$f":"VLOOKUP($A17,F1__World_Data!$A$4:$DP$191,105,FALSE)","v":78.990243902439033},{"$f":"VLOOKUP($A17,F1__World_Data!$A$4:$DP$191,104,FALSE)","v":78.787804878048775},{"$f":"VLOOKUP($A17,F1__World_Data!$A$4:$DP$191,103,FALSE)","v":78.636585365853662},{"$f":"VLOOKUP($A17,F1__World_Data!$A$4:$DP$191,102,FALSE)","v":78.434146341463432},{"$f":"VLOOKUP($A17,F1__World_Data!$A$4:$DP$191,101,FALSE)","v":78.280487804878064},{"$f":"VLOOKUP($A17,F1__World_Data!$A$4:$DP$191,100,FALSE)","v":78.026829268292687},{"$f":"VLOOKUP($A17,F1__World_Data!$A$4:$DP$191,99,FALSE)","v":77.824390243902457},{"$f":"VLOOKUP($A17,F1__World_Data!$A$4:$DP$191,98,FALSE)","v":77.57073170731708},{"$f":"VLOOKUP($A17,F1__World_Data!$A$4:$DP$191,97,FALSE)","v":77.368292682926835},{"$f":"VLOOKUP($A17,F1__World_Data!$A$4:$DP$191,96,FALSE)","v":77.065853658536597},{"$f":"VLOOKUP($A17,F1__World_Data!$A$4:$DP$191,95,FALSE)","v":76.81463414634149},{"$f":"VLOOKUP($A17,F1__World_Data!$A$4:$DP$191,94,FALSE)","v":76.614634146341473},{"$f":"VLOOKUP($A17,F1__World_Data!$A$4:$DP$191,93,FALSE)","v":76.41463414634147},{"$f":"VLOOKUP($A17,F1__World_Data!$A$4:$DP$191,92,FALSE)","v":76.114634146341487},{"$f":"VLOOKUP($A17,F1__World_Data!$A$4:$DP$191,91,FALSE)","v":75.91463414634147},{"$f":"VLOOKUP($A17,F1__World_Data!$A$4:$DP$191,90,FALSE)","v":75.714634146341467},{"$f":"VLOOKUP($A17,F1__World_Data!$A$4:$DP$191,89,FALSE)","v":75.465853658536588},{"$f":"VLOOKUP($A17,F1__World_Data!$A$4:$DP$191,88,FALSE)","v":75.214634146341467},{"$f":"VLOOKUP($A17,F1__World_Data!$A$4:$DP$191,87,FALSE)","v":0},{"$f":"VLOOKUP($A17,F1__World_Data!$A$4:$DP$191,86,FALSE)","v":0},{"$f":"VLOOKUP($A17,F1__World_Data!$A$4:$DP$191,85,FALSE)","v":0},{"$f":"VLOOKUP($A17,F1__World_Data!$A$4:$DP$191,84,FALSE)","v":0},{"$f":"VLOOKUP($A17,F1__World_Data!$A$4:$DP$191,83,FALSE)","v":0},{"$f":"VLOOKUP($A17,F1__World_Data!$A$4:$DP$191,82,FALSE)","v":0},{"$f":"VLOOKUP($A17,F1__World_Data!$A$4:$DP$191,81,FALSE)","v":0},{"$f":"VLOOKUP($A17,F1__World_Data!$A$4:$DP$191,80,FALSE)","v":75.98536585365855},{"$f":"VLOOKUP($A17,F1__World_Data!$A$4:$DP$191,79,FALSE)","v":0},{"$f":"VLOOKUP($A17,F1__World_Data!$A$4:$DP$191,78,FALSE)","v":0},{"$f":"VLOOKUP($A17,F1__World_Data!$A$4:$DP$191,77,FALSE)","v":0},{"$f":"VLOOKUP($A17,F1__World_Data!$A$4:$DP$191,76,FALSE)","v":0},{"$f":"VLOOKUP($A17,F1__World_Data!$A$4:$DP$191,75,FALSE)","v":74.497560975609773},{"$f":"VLOOKUP($A17,F1__World_Data!$A$4:$DP$191,74,FALSE)","v":0},0,0,0,0,0,0,0,0,0,0,{"$f":"VLOOKUP($A17,F1__World_Data!$A$4:$DP$191,63,FALSE)","v":0},{"$f":"VLOOKUP($A17,F1__World_Data!$A$4:$DP$191,62,FALSE)","v":0}]
["Turkey",{"$f":"VLOOKUP($A18,F1__World_Data!$A$4:$DP$191,60,FALSE)","v":82340.09},{"$f":"VLOOKUP($A18,F1__World_Data!$A$4:$DP$191,59,FALSE)","v":81116.451000000001},{"$f":"VLOOKUP($A18,F1__World_Data!$A$4:$DP$191,58,FALSE)","v":79827.868000000002},{"$f":"VLOOKUP($A18,F1__World_Data!$A$4:$DP$191,57,FALSE)","v":78529.413},{"$f":"VLOOKUP($A18,F1__World_Data!$A$4:$DP$191,56,FALSE)","v":77229.262000000002},{"$f":"VLOOKUP($A18,F1__World_Data!$A$4:$DP$191,58,FALSE)","v":79827.868000000002},{"$f":"VLOOKUP($A18,F1__World_Data!$A$4:$DP$191,54,FALSE)","v":74651.046000000002},{"$f":"VLOOKUP($A18,F1__World_Data!$A$4:$DP$191,53,FALSE)","v":73443.254000000001},{"$f":"VLOOKUP($A18,F1__World_Data!$A$4:$DP$191,52,FALSE)","v":72326.991999999998},{"$f":"VLOOKUP($A18,F1__World_Data!$A$4:$DP$191,51,FALSE)","v":71321.406000000003},{"$f":"VLOOKUP($A18,F1__World_Data!$A$4:$DP$191,50,FALSE)","v":70418.611999999994},{"$f":"VLOOKUP($A18,F1__World_Data!$A$4:$DP$191,49,FALSE)","v":69581.854000000007},{"$f":"VLOOKUP($A18,F1__World_Data!$A$4:$DP$191,48,FALSE)","v":68756.808999999994},{"$f":"VLOOKUP($A18,F1__World_Data!$A$4:$DP$191,47,FALSE)","v":67903.460999999996},{"$f":"VLOOKUP($A18,F1__World_Data!$A$4:$DP$191,46,FALSE)","v":67010.929999999993},{"$f":"VLOOKUP($A18,F1__World_Data!$A$4:$DP$191,45,FALSE)","v":66089.402000000002},{"$f":"VLOOKUP($A18,F1__World_Data!$A$4:$DP$191,44,FALSE)","v":65145.357000000004},{"$f":"VLOOKUP($A18,F1__World_Data!$A$4:$DP$191,43,FALSE)","v":64192.243000000002},{"$f":"VLOOKUP($A18,F1__World_Data!$A$4:$DP$191,42,FALSE)","v":63240.196000000004},{"$f":"VLOOKUP($A18,F1__World_Data!$A$4:$DP$191,41,FALSE)","v":62287.391000000003},{"$f":"VLOOKUP($A18,F1__World_Data!$A$4:$DP$191,40,FALSE)","v":61329.665000000001},{"$f":"VLOOKUP($A18,F1__World_Data!$A$4:$DP$191,39,FALSE)","v":60372.571000000004},{"$f":"VLOOKUP($A18,F1__World_Data!$A$4:$DP$191,38,FALSE)","v":59423.277999999998},{"$f":"VLOOKUP($A18,F1__World_Data!$A$4:$DP$191,37,FALSE)","v":58486.453000000001},{"$f":"VLOOKUP($A18,F1__World_Data!$A$4:$DP$191,36,FALSE)","v":57564.209000000003},{"$f":"VLOOKUP($A18,F1__World_Data!$A$4:$DP$191,35,FALSE)","v":56653.807999999997},{"$f":"VLOOKUP($A18,F1__World_Data!$A$4:$DP$191,34,FALSE)","v":55748.946000000004},{"$f":"VLOOKUP($A18,F1__World_Data!$A$4:$DP$191,33,FALSE)","v":54840.595000000001},{"$f":"VLOOKUP($A18,F1__World_Data!$A$4:$DP$191,32,FALSE)","v":53921.758000000002},{"$f":"VLOOKUP($A18,F1__World_Data!$A$4:$DP$191,31,FALSE)","v":52992.478999999999},{"$f":"VLOOKUP($A18,F1__World_Data!$A$4:$DP$191,30,FALSE)","v":52053.764000000003},{"$f":"VLOOKUP($A18,F1__World_Data!$A$4:$DP$191,29,FALSE)","v":51100.93},{"$f":"VLOOKUP($A18,F1__World_Data!$A$4:$DP$191,28,FALSE)","v":50128.548000000003},{"$f":"VLOOKUP($A18,F1__World_Data!$A$4:$DP$191,27,FALSE)","v":49133.928},{"$f":"VLOOKUP($A18,F1__World_Data!$A$4:$DP$191,26,FALSE)","v":48114.158000000003},{"$f":"VLOOKUP($A18,F1__World_Data!$A$4:$DP$191,25,FALSE)","v":47073.47},{"$f":"VLOOKUP($A18,F1__World_Data!$A$4:$DP$191,24,FALSE)","v":46025.411},{"$f":"VLOOKUP($A18,F1__World_Data!$A$4:$DP$191,23,FALSE)","v":44988.411},{"$f":"VLOOKUP($A18,F1__World_Data!$A$4:$DP$191,22,FALSE)","v":43975.972000000002},{"$f":"VLOOKUP($A18,F1__World_Data!$A$4:$DP$191,21,FALSE)","v":42994.042999999998},{"$f":"VLOOKUP($A18,F1__World_Data!$A$4:$DP$191,20,FALSE)","v":42039.983},{"$f":"VLOOKUP($A18,F1__World_Data!$A$4:$DP$191,19,FALSE)","v":41108.29},{"$f":"VLOOKUP($A18,F1__World_Data!$A$4:$DP$191,18,FALSE)","v":40189.561000000002},{"$f":"VLOOKUP($A18,F1__World_Data!$A$4:$DP$191,17,FALSE)","v":39277.249000000003},{"$f":"VLOOKUP($A18,F1__World_Data!$A$4:$DP$191,16,FALSE)","v":38370.277999999998},{"$f":"VLOOKUP($A18,F1__World_Data!$A$4:$DP$191,15,FALSE)","v":37472.328999999998},{"$f":"VLOOKUP($A18,F1__World_Data!$A$4:$DP$191,14,FALSE)","v":36587.267},{"$f":"VLOOKUP($A18,F1__World_Data!$A$4:$DP$191,13,FALSE)","v":35720.603000000003},{"$f":"VLOOKUP($A18,F1__World_Data!$A$4:$DP$191,12,FALSE)","v":34876.296000000002},{"$f":"VLOOKUP($A18,F1__World_Data!$A$4:$DP$191,11,FALSE)","v":34055.391000000003},{"$f":"VLOOKUP($A18,F1__World_Data!$A$4:$DP$191,10,FALSE)","v":33256.464999999997},{"$f":"VLOOKUP($A18,F1__World_Data!$A$4:$DP$191,9,FALSE)","v":32477.993999999999},{"$f":"VLOOKUP($A18,F1__World_Data!$A$4:$DP$191,8,FALSE)","v":31717.504000000001},{"$f":"VLOOKUP($A18,F1__World_Data!$A$4:$DP$191,7,FALSE)","v":30972.995999999999},{"$f":"VLOOKUP($A18,F1__World_Data!$A$4:$DP$191,6,FALSE)","v":30244.258000000002},{"$f":"VLOOKUP($A18,F1__World_Data!$A$4:$DP$191,5,FALSE)","v":29531.362000000001},{"$f":"VLOOKUP($A18,F1__World_Data!$A$4:$DP$191,4,FALSE)","v":28832.830999999998},{"$f":"VLOOKUP($A18,F1__World_Data!$A$4:$DP$191,3,FALSE)","v":28146.909},{"$f":"VLOOKUP($A18,F1__World_Data!$A$4:$DP$191,2,FALSE)","v":27472.339},null,{"$f":"VLOOKUP($A18,F1__World_Data!$A$4:$DP$191,120,FALSE)","v":63.856999999999999},{"$f":"VLOOKUP($A18,F1__World_Data!$A$4:$DP$191,119,FALSE)","v":63.537999999999997},{"$f":"VLOOKUP($A18,F1__World_Data!$A$4:$DP$191,118,FALSE)","v":63.152999999999999},{"$f":"VLOOKUP($A18,F1__World_Data!$A$4:$DP$191,117,FALSE)","v":62.649000000000001},{"$f":"VLOOKUP($A18,F1__World_Data!$A$4:$DP$191,116,FALSE)","v":61.968000000000004},{"$f":"VLOOKUP($A18,F1__World_Data!$A$4:$DP$191,115,FALSE)","v":61.098999999999997},{"$f":"VLOOKUP($A18,F1__World_Data!$A$4:$DP$191,114,FALSE)","v":60.06},{"$f":"VLOOKUP($A18,F1__World_Data!$A$4:$DP$191,113,FALSE)","v":58.895000000000003},{"$f":"VLOOKUP($A18,F1__World_Data!$A$4:$DP$191,112,FALSE)","v":57.668999999999997},{"$f":"VLOOKUP($A18,F1__World_Data!$A$4:$DP$191,111,FALSE)","v":56.46},{"$f":"VLOOKUP($A18,F1__World_Data!$A$4:$DP$191,110,FALSE)","v":55.36},{"$f":"VLOOKUP($A18,F1__World_Data!$A$4:$DP$191,109,FALSE)","v":54.451999999999998},{"$f":"VLOOKUP($A18,F1__World_Data!$A$4:$DP$191,108,FALSE)","v":53.795000000000002},{"$f":"VLOOKUP($A18,F1__World_Data!$A$4:$DP$191,107,FALSE)","v":53.447000000000003},{"$f":"VLOOKUP($A18,F1__World_Data!$A$4:$DP$191,106,FALSE)","v":53.444000000000003},{"$f":"VLOOKUP($A18,F1__World_Data!$A$4:$DP$191,105,FALSE)","v":53.749000000000002},{"$f":"VLOOKUP($A18,F1__World_Data!$A$4:$DP$191,104,FALSE)","v":54.31},{"$f":"VLOOKUP($A18,F1__World_Data!$A$4:$DP$191,103,FALSE)","v":55.088999999999999},{"$f":"VLOOKUP($A18,F1__World_Data!$A$4:$DP$191,102,FALSE)","v":56.048000000000002},{"$f":"VLOOKUP($A18,F1__World_Data!$A$4:$DP$191,101,FALSE)","v":57.143999999999998},{"$f":"VLOOKUP($A18,F1__World_Data!$A$4:$DP$191,100,FALSE)","v":58.314999999999998},{"$f":"VLOOKUP($A18,F1__World_Data!$A$4:$DP$191,99,FALSE)","v":59.488999999999997},{"$f":"VLOOKUP($A18,F1__World_Data!$A$4:$DP$191,98,FALSE)","v":60.594999999999999},{"$f":"VLOOKUP($A18,F1__World_Data!$A$4:$DP$191,97,FALSE)","v":61.561},{"$f":"VLOOKUP($A18,F1__World_Data!$A$4:$DP$191,96,FALSE)","v":62.331000000000003},{"$f":"VLOOKUP($A18,F1__World_Data!$A$4:$DP$191,95,FALSE)","v":62.893999999999998},{"$f":"VLOOKUP($A18,F1__World_Data!$A$4:$DP$191,94,FALSE)","v":63.247},{"$f":"VLOOKUP($A18,F1__World_Data!$A$4:$DP$191,93,FALSE)","v":63.384},{"$f":"VLOOKUP($A18,F1__World_Data!$A$4:$DP$191,92,FALSE)","v":63.307000000000002},{"$f":"VLOOKUP($A18,F1__World_Data!$A$4:$DP$191,91,FALSE)","v":63.034999999999997},{"$f":"VLOOKUP($A18,F1__World_Data!$A$4:$DP$191,90,FALSE)","v":62.619},{"$f":"VLOOKUP($A18,F1__World_Data!$A$4:$DP$191,89,FALSE)","v":62.109000000000002},{"$f":"VLOOKUP($A18,F1__World_Data!$A$4:$DP$191,88,FALSE)","v":61.54},{"$f":"VLOOKUP($A18,F1__World_Data!$A$4:$DP$191,87,FALSE)","v":60.945999999999998},{"$f":"VLOOKUP($A18,F1__World_Data!$A$4:$DP$191,86,FALSE)","v":60.353000000000002},{"$f":"VLOOKUP($A18,F1__World_Data!$A$4:$DP$191,85,FALSE)","v":59.765999999999998},{"$f":"VLOOKUP($A18,F1__World_Data!$A$4:$DP$191,84,FALSE)","v":59.191000000000003},{"$f":"VLOOKUP($A18,F1__World_Data!$A$4:$DP$191,83,FALSE)","v":58.637},{"$f":"VLOOKUP($A18,F1__World_Data!$A$4:$DP$191,82,FALSE)","v":58.106999999999999},{"$f":"VLOOKUP($A18,F1__World_Data!$A$4:$DP$191,81,FALSE)","v":57.59},{"$f":"VLOOKUP($A18,F1__World_Data!$A$4:$DP$191,80,FALSE)","v":57.070999999999998},{"$f":"VLOOKUP($A18,F1__World_Data!$A$4:$DP$191,79,FALSE)","v":56.537999999999997},{"$f":"VLOOKUP($A18,F1__World_Data!$A$4:$DP$191,78,FALSE)","v":55.99},{"$f":"VLOOKUP($A18,F1__World_Data!$A$4:$DP$191,77,FALSE)","v":55.427999999999997},{"$f":"VLOOKUP($A18,F1__World_Data!$A$4:$DP$191,76,FALSE)","v":54.856000000000002},{"$f":"VLOOKUP($A18,F1__World_Data!$A$4:$DP$191,75,FALSE)","v":54.280999999999999},{"$f":"VLOOKUP($A18,F1__World_Data!$A$4:$DP$191,74,FALSE)","v":53.713000000000001},53.156999999999996,52.62,52.106000000000002,51.615000000000002,51.148000000000003,50.704999999999998,50.283999999999999,49.887999999999998,49.509,49.142000000000003,{"$f":"VLOOKUP($A18,F1__World_Data!$A$4:$DP$191,63,FALSE)","v":48.777000000000001},{"$f":"VLOOKUP($A18,F1__World_Data!$A$4:$DP$191,62,FALSE)","v":48.405999999999999}]
["Thailand",{"$f":"VLOOKUP($A19,F1__World_Data!$A$4:$DP$191,60,FALSE)","v":69428.453999999998},{"$f":"VLOOKUP($A19,F1__World_Data!$A$4:$DP$191,59,FALSE)","v":69209.816999999995},{"$f":"VLOOKUP($A19,F1__World_Data!$A$4:$DP$191,58,FALSE)","v":68971.312999999995},{"$f":"VLOOKUP($A19,F1__World_Data!$A$4:$DP$191,57,FALSE)","v":68714.519},{"$f":"VLOOKUP($A19,F1__World_Data!$A$4:$DP$191,56,FALSE)","v":68438.748000000007},{"$f":"VLOOKUP($A19,F1__World_Data!$A$4:$DP$191,58,FALSE)","v":68971.312999999995},{"$f":"VLOOKUP($A19,F1__World_Data!$A$4:$DP$191,54,FALSE)","v":67835.968999999997},{"$f":"VLOOKUP($A19,F1__World_Data!$A$4:$DP$191,53,FALSE)","v":67518.379000000001},{"$f":"VLOOKUP($A19,F1__World_Data!$A$4:$DP$191,52,FALSE)","v":67195.032000000007},{"$f":"VLOOKUP($A19,F1__World_Data!$A$4:$DP$191,51,FALSE)","v":66866.834000000003},{"$f":"VLOOKUP($A19,F1__World_Data!$A$4:$DP$191,50,FALSE)","v":66530.98},{"$f":"VLOOKUP($A19,F1__World_Data!$A$4:$DP$191,49,FALSE)","v":66182.063999999998},{"$f":"VLOOKUP($A19,F1__World_Data!$A$4:$DP$191,48,FALSE)","v":65812.539999999994},{"$f":"VLOOKUP($A19,F1__World_Data!$A$4:$DP$191,47,FALSE)","v":65416.188999999998},{"$f":"VLOOKUP($A19,F1__World_Data!$A$4:$DP$191,46,FALSE)","v":64995.303},{"$f":"VLOOKUP($A19,F1__World_Data!$A$4:$DP$191,45,FALSE)","v":64549.866999999998},{"$f":"VLOOKUP($A19,F1__World_Data!$A$4:$DP$191,44,FALSE)","v":64069.093000000001},{"$f":"VLOOKUP($A19,F1__World_Data!$A$4:$DP$191,43,FALSE)","v":63539.19},{"$f":"VLOOKUP($A19,F1__World_Data!$A$4:$DP$191,42,FALSE)","v":62952.639000000003},{"$f":"VLOOKUP($A19,F1__World_Data!$A$4:$DP$191,41,FALSE)","v":62298.569000000003},{"$f":"VLOOKUP($A19,F1__World_Data!$A$4:$DP$191,40,FALSE)","v":61585.103000000003},{"$f":"VLOOKUP($A19,F1__World_Data!$A$4:$DP$191,39,FALSE)","v":60846.588000000003},{"$f":"VLOOKUP($A19,F1__World_Data!$A$4:$DP$191,38,FALSE)","v":60130.19},{"$f":"VLOOKUP($A19,F1__World_Data!$A$4:$DP$191,37,FALSE)","v":59467.271999999997},{"$f":"VLOOKUP($A19,F1__World_Data!$A$4:$DP$191,36,FALSE)","v":58875.275000000001},{"$f":"VLOOKUP($A19,F1__World_Data!$A$4:$DP$191,35,FALSE)","v":58337.773000000001},{"$f":"VLOOKUP($A19,F1__World_Data!$A$4:$DP$191,34,FALSE)","v":57811.025000000001},{"$f":"VLOOKUP($A19,F1__World_Data!$A$4:$DP$191,33,FALSE)","v":57232.470999999998},{"$f":"VLOOKUP($A19,F1__World_Data!$A$4:$DP$191,32,FALSE)","v":56558.196000000004},{"$f":"VLOOKUP($A19,F1__World_Data!$A$4:$DP$191,31,FALSE)","v":55772.169000000002},{"$f":"VLOOKUP($A19,F1__World_Data!$A$4:$DP$191,30,FALSE)","v":54891.519999999997},{"$f":"VLOOKUP($A19,F1__World_Data!$A$4:$DP$191,29,FALSE)","v":53945.872000000003},{"$f":"VLOOKUP($A19,F1__World_Data!$A$4:$DP$191,28,FALSE)","v":52980.105000000003},{"$f":"VLOOKUP($A19,F1__World_Data!$A$4:$DP$191,27,FALSE)","v":52026.900999999998},{"$f":"VLOOKUP($A19,F1__World_Data!$A$4:$DP$191,26,FALSE)","v":51094.87},{"$f":"VLOOKUP($A19,F1__World_Data!$A$4:$DP$191,25,FALSE)","v":50173.921999999999},{"$f":"VLOOKUP($A19,F1__World_Data!$A$4:$DP$191,24,FALSE)","v":49255.889000000003},{"$f":"VLOOKUP($A19,F1__World_Data!$A$4:$DP$191,23,FALSE)","v":48326.269},{"$f":"VLOOKUP($A19,F1__World_Data!$A$4:$DP$191,22,FALSE)","v":47374.463000000003},{"$f":"VLOOKUP($A19,F1__World_Data!$A$4:$DP$191,21,FALSE)","v":46401.75},{"$f":"VLOOKUP($A19,F1__World_Data!$A$4:$DP$191,20,FALSE)","v":45413.082000000002},{"$f":"VLOOKUP($A19,F1__World_Data!$A$4:$DP$191,19,FALSE)","v":44405.902999999998},{"$f":"VLOOKUP($A19,F1__World_Data!$A$4:$DP$191,18,FALSE)","v":43377.27},{"$f":"VLOOKUP($A19,F1__World_Data!$A$4:$DP$191,17,FALSE)","v":42326.307000000001},{"$f":"VLOOKUP($A19,F1__World_Data!$A$4:$DP$191,16,FALSE)","v":41252.32},{"$f":"VLOOKUP($A19,F1__World_Data!$A$4:$DP$191,15,FALSE)","v":40159.580999999998},{"$f":"VLOOKUP($A19,F1__World_Data!$A$4:$DP$191,14,FALSE)","v":39058.593999999997},{"$f":"VLOOKUP($A19,F1__World_Data!$A$4:$DP$191,13,FALSE)","v":37963.279999999999},{"$f":"VLOOKUP($A19,F1__World_Data!$A$4:$DP$191,12,FALSE)","v":36884.525000000001},{"$f":"VLOOKUP($A19,F1__World_Data!$A$4:$DP$191,11,FALSE)","v":35827.089},{"$f":"VLOOKUP($A19,F1__World_Data!$A$4:$DP$191,10,FALSE)","v":34791.417999999998},{"$f":"VLOOKUP($A19,F1__World_Data!$A$4:$DP$191,9,FALSE)","v":33778.803999999996},{"$f":"VLOOKUP($A19,F1__World_Data!$A$4:$DP$191,8,FALSE)","v":32789.129000000001},{"$f":"VLOOKUP($A19,F1__World_Data!$A$4:$DP$191,7,FALSE)","v":31822.655999999999},{"$f":"VLOOKUP($A19,F1__World_Data!$A$4:$DP$191,6,FALSE)","v":30881.135999999999},{"$f":"VLOOKUP($A19,F1__World_Data!$A$4:$DP$191,5,FALSE)","v":29966.873},{"$f":"VLOOKUP($A19,F1__World_Data!$A$4:$DP$191,4,FALSE)","v":29080.945},{"$f":"VLOOKUP($A19,F1__World_Data!$A$4:$DP$191,3,FALSE)","v":28224.186000000002},{"$f":"VLOOKUP($A19,F1__World_Data!$A$4:$DP$191,2,FALSE)","v":27397.207999999999},null,{"$f":"VLOOKUP($A19,F1__World_Data!$A$4:$DP$191,120,FALSE)","v":63.856999999999999},{"$f":"VLOOKUP($A19,F1__World_Data!$A$4:$DP$191,119,FALSE)","v":63.537999999999997},{"$f":"VLOOKUP($A19,F1__World_Data!$A$4:$DP$191,118,FALSE)","v":63.152999999999999},{"$f":"VLOOKUP($A19,F1__World_Data!$A$4:$DP$191,117,FALSE)","v":62.649000000000001},{"$f":"VLOOKUP($A19,F1__World_Data!$A$4:$DP$191,116,FALSE)","v":61.968000000000004},{"$f":"VLOOKUP($A19,F1__World_Data!$A$4:$DP$191,115,FALSE)","v":61.098999999999997},{"$f":"VLOOKUP($A19,F1__World_Data!$A$4:$DP$191,114,FALSE)","v":60.06},{"$f":"VLOOKUP($A19,F1__World_Data!$A$4:$DP$191,113,FALSE)","v":58.895000000000003},{"$f":"VLOOKUP($A19,F1__World_Data!$A$4:$DP$191,112,FALSE)","v":57.668999999999997},{"$f":"VLOOKUP($A19,F1__World_Data!$A$4:$DP$191,111,FALSE)","v":56.46},{"$f":"VLOOKUP($A19,F1__World_Data!$A$4:$DP$191,110,FALSE)","v":55.36},{"$f":"VLOOKUP($A19,F1__World_Data!$A$4:$DP$191,109,FALSE)","v":54.451999999999998},{"$f":"VLOOKUP($A19,F1__World_Data!$A$4:$DP$191,108,FALSE)","v":53.795000000000002},{"$f":"VLOOKUP($A19,F1__World_Data!$A$4:$DP$191,107,FALSE)","v":53.447000000000003},{"$f":"VLOOKUP($A19,F1__World_Data!$A$4:$DP$191,106,FALSE)","v":53.444000000000003},{"$f":"VLOOKUP($A19,F1__World_Data!$A$4:$DP$191,105,FALSE)","v":53.749000000000002},{"$f":"VLOOKUP($A19,F1__World_Data!$A$4:$DP$191,104,FALSE)","v":54.31},{"$f":"VLOOKUP($A19,F1__World_Data!$A$4:$DP$191,103,FALSE)","v":55.088999999999999},{"$f":"VLOOKUP($A19,F1__World_Data!$A$4:$DP$191,102,FALSE)","v":56.048000000000002},{"$f":"VLOOKUP($A19,F1__World_Data!$A$4:$DP$191,101,FALSE)","v":57.143999999999998},{"$f":"VLOOKUP($A19,F1__World_Data!$A$4:$DP$191,100,FALSE)","v":58.314999999999998},{"$f":"VLOOKUP($A19,F1__World_Data!$A$4:$DP$191,99,FALSE)","v":59.488999999999997},{"$f":"VLOOKUP($A19,F1__World_Data!$A$4:$DP$191,98,FALSE)","v":60.594999999999999},{"$f":"VLOOKUP($A19,F1__World_Data!$A$4:$DP$191,97,FALSE)","v":61.561},{"$f":"VLOOKUP($A19,F1__World_Data!$A$4:$DP$191,96,FALSE)","v":62.331000000000003},{"$f":"VLOOKUP($A19,F1__World_Data!$A$4:$DP$191,95,FALSE)","v":62.893999999999998},{"$f":"VLOOKUP($A19,F1__World_Data!$A$4:$DP$191,94,FALSE)","v":63.247},{"$f":"VLOOKUP($A19,F1__World_Data!$A$4:$DP$191,93,FALSE)","v":63.384},{"$f":"VLOOKUP($A19,F1__World_Data!$A$4:$DP$191,92,FALSE)","v":63.307000000000002},{"$f":"VLOOKUP($A19,F1__World_Data!$A$4:$DP$191,91,FALSE)","v":63.034999999999997},{"$f":"VLOOKUP($A19,F1__World_Data!$A$4:$DP$191,90,FALSE)","v":62.619},{"$f":"VLOOKUP($A19,F1__World_Data!$A$4:$DP$191,89,FALSE)","v":62.109000000000002},{"$f":"VLOOKUP($A19,F1__World_Data!$A$4:$DP$191,88,FALSE)","v":61.54},{"$f":"VLOOKUP($A19,F1__World_Data!$A$4:$DP$191,87,FALSE)","v":60.945999999999998},{"$f":"VLOOKUP($A19,F1__World_Data!$A$4:$DP$191,86,FALSE)","v":60.353000000000002},{"$f":"VLOOKUP($A19,F1__World_Data!$A$4:$DP$191,85,FALSE)","v":59.765999999999998},{"$f":"VLOOKUP($A19,F1__World_Data!$A$4:$DP$191,84,FALSE)","v":59.191000000000003},{"$f":"VLOOKUP($A19,F1__World_Data!$A$4:$DP$191,83,FALSE)","v":58.637},{"$f":"VLOOKUP($A19,F1__World_Data!$A$4:$DP$191,82,FALSE)","v":58.106999999999999},{"$f":"VLOOKUP($A19,F1__World_Data!$A$4:$DP$191,81,FALSE)","v":57.59},{"$f":"VLOOKUP($A19,F1__World_Data!$A$4:$DP$191,80,FALSE)","v":57.070999999999998},{"$f":"VLOOKUP($A19,F1__World_Data!$A$4:$DP$191,79,FALSE)","v":56.537999999999997},{"$f":"VLOOKUP($A19,F1__World_Data!$A$4:$DP$191,78,FALSE)","v":55.99},{"$f":"VLOOKUP($A19,F1__World_Data!$A$4:$DP$191,77,FALSE)","v":55.427999999999997},{"$f":"VLOOKUP($A19,F1__World_Data!$A$4:$DP$191,76,FALSE)","v":54.856000000000002},{"$f":"VLOOKUP($A19,F1__World_Data!$A$4:$DP$191,75,FALSE)","v":54.280999999999999},{"$f":"VLOOKUP($A19,F1__World_Data!$A$4:$DP$191,74,FALSE)","v":53.713000000000001},53.156999999999996,52.62,52.106000000000002,51.615000000000002,51.148000000000003,50.704999999999998,50.283999999999999,49.887999999999998,49.509,49.142000000000003,{"$f":"VLOOKUP($A19,F1__World_Data!$A$4:$DP$191,63,FALSE)","v":48.777000000000001},{"$f":"VLOOKUP($A19,F1__World_Data!$A$4:$DP$191,62,FALSE)","v":48.405999999999999}]
["United Kingdom",{"$f":"VLOOKUP($A20,F1__World_Data!$A$4:$DP$191,60,FALSE)","v":67141.678},{"$f":"VLOOKUP($A20,F1__World_Data!$A$4:$DP$191,59,FALSE)","v":66727.463000000003},{"$f":"VLOOKUP($A20,F1__World_Data!$A$4:$DP$191,58,FALSE)","v":66297.944000000003},{"$f":"VLOOKUP($A20,F1__World_Data!$A$4:$DP$191,57,FALSE)","v":65860.149000000005},{"$f":"VLOOKUP($A20,F1__World_Data!$A$4:$DP$191,56,FALSE)","v":65423.048000000003},{"$f":"VLOOKUP($A20,F1__World_Data!$A$4:$DP$191,58,FALSE)","v":66297.944000000003},{"$f":"VLOOKUP($A20,F1__World_Data!$A$4:$DP$191,54,FALSE)","v":64525.3},{"$f":"VLOOKUP($A20,F1__World_Data!$A$4:$DP$191,53,FALSE)","v":64021.921999999999},{"$f":"VLOOKUP($A20,F1__World_Data!$A$4:$DP$191,52,FALSE)","v":63459.800999999999},{"$f":"VLOOKUP($A20,F1__World_Data!$A$4:$DP$191,51,FALSE)","v":62828.62},{"$f":"VLOOKUP($A20,F1__World_Data!$A$4:$DP$191,50,FALSE)","v":62145.097999999998},{"$f":"VLOOKUP($A20,F1__World_Data!$A$4:$DP$191,49,FALSE)","v":61455.154000000002},{"$f":"VLOOKUP($A20,F1__World_Data!$A$4:$DP$191,48,FALSE)","v":60821.349000000002},{"$f":"VLOOKUP($A20,F1__World_Data!$A$4:$DP$191,47,FALSE)","v":60287.953000000001},{"$f":"VLOOKUP($A20,F1__World_Data!$A$4:$DP$191,46,FALSE)","v":59872.76},{"$f":"VLOOKUP($A20,F1__World_Data!$A$4:$DP$191,45,FALSE)","v":59561.428999999996},{"$f":"VLOOKUP($A20,F1__World_Data!$A$4:$DP$191,44,FALSE)","v":59326.294000000002},{"$f":"VLOOKUP($A20,F1__World_Data!$A$4:$DP$191,43,FALSE)","v":59124.277000000002},{"$f":"VLOOKUP($A20,F1__World_Data!$A$4:$DP$191,42,FALSE)","v":58923.305},{"$f":"VLOOKUP($A20,F1__World_Data!$A$4:$DP$191,41,FALSE)","v":58715.858999999997},{"$f":"VLOOKUP($A20,F1__World_Data!$A$4:$DP$191,40,FALSE)","v":58509.972000000002},{"$f":"VLOOKUP($A20,F1__World_Data!$A$4:$DP$191,39,FALSE)","v":58307.32},{"$f":"VLOOKUP($A20,F1__World_Data!$A$4:$DP$191,38,FALSE)","v":58113.553999999996},{"$f":"VLOOKUP($A20,F1__World_Data!$A$4:$DP$191,37,FALSE)","v":57932.45},{"$f":"VLOOKUP($A20,F1__World_Data!$A$4:$DP$191,36,FALSE)","v":57763.381999999998},{"$f":"VLOOKUP($A20,F1__World_Data!$A$4:$DP$191,35,FALSE)","v":57602.279000000002},{"$f":"VLOOKUP($A20,F1__World_Data!$A$4:$DP$191,34,FALSE)","v":57446.040999999997},{"$f":"VLOOKUP($A20,F1__World_Data!$A$4:$DP$191,33,FALSE)","v":57290.792000000001},{"$f":"VLOOKUP($A20,F1__World_Data!$A$4:$DP$191,32,FALSE)","v":57134.377},{"$f":"VLOOKUP($A20,F1__World_Data!$A$4:$DP$191,31,FALSE)","v":56974.288999999997},{"$f":"VLOOKUP($A20,F1__World_Data!$A$4:$DP$191,30,FALSE)","v":56812.754000000001},{"$f":"VLOOKUP($A20,F1__World_Data!$A$4:$DP$191,29,FALSE)","v":56658.26},{"$f":"VLOOKUP($A20,F1__World_Data!$A$4:$DP$191,28,FALSE)","v":56522.504999999997},{"$f":"VLOOKUP($A20,F1__World_Data!$A$4:$DP$191,27,FALSE)","v":56413.555},{"$f":"VLOOKUP($A20,F1__World_Data!$A$4:$DP$191,26,FALSE)","v":56332.902000000002},{"$f":"VLOOKUP($A20,F1__World_Data!$A$4:$DP$191,25,FALSE)","v":56276.790999999997},{"$f":"VLOOKUP($A20,F1__World_Data!$A$4:$DP$191,24,FALSE)","v":56241.408000000003},{"$f":"VLOOKUP($A20,F1__World_Data!$A$4:$DP$191,23,FALSE)","v":56220.739000000001},{"$f":"VLOOKUP($A20,F1__World_Data!$A$4:$DP$191,22,FALSE)","v":56209.163999999997},{"$f":"VLOOKUP($A20,F1__World_Data!$A$4:$DP$191,21,FALSE)","v":56205.087},{"$f":"VLOOKUP($A20,F1__World_Data!$A$4:$DP$191,20,FALSE)","v":56205.91},{"$f":"VLOOKUP($A20,F1__World_Data!$A$4:$DP$191,19,FALSE)","v":56203.597999999998},{"$f":"VLOOKUP($A20,F1__World_Data!$A$4:$DP$191,18,FALSE)","v":56188.347999999998},{"$f":"VLOOKUP($A20,F1__World_Data!$A$4:$DP$191,17,FALSE)","v":56152.324999999997},{"$f":"VLOOKUP($A20,F1__World_Data!$A$4:$DP$191,16,FALSE)","v":56092.059000000001},{"$f":"VLOOKUP($A20,F1__World_Data!$A$4:$DP$191,15,FALSE)","v":56006.29},{"$f":"VLOOKUP($A20,F1__World_Data!$A$4:$DP$191,14,FALSE)","v":55892.411999999997},{"$f":"VLOOKUP($A20,F1__World_Data!$A$4:$DP$191,13,FALSE)","v":55748.534},{"$f":"VLOOKUP($A20,F1__World_Data!$A$4:$DP$191,12,FALSE)","v":55573.455000000002},{"$f":"VLOOKUP($A20,F1__World_Data!$A$4:$DP$191,11,FALSE)","v":55367.95},{"$f":"VLOOKUP($A20,F1__World_Data!$A$4:$DP$191,10,FALSE)","v":55132.603000000003},{"$f":"VLOOKUP($A20,F1__World_Data!$A$4:$DP$191,9,FALSE)","v":54866.529000000002},{"$f":"VLOOKUP($A20,F1__World_Data!$A$4:$DP$191,8,FALSE)","v":54568.868000000002},{"$f":"VLOOKUP($A20,F1__World_Data!$A$4:$DP$191,7,FALSE)","v":54240.855000000003},{"$f":"VLOOKUP($A20,F1__World_Data!$A$4:$DP$191,6,FALSE)","v":53882.750999999997},{"$f":"VLOOKUP($A20,F1__World_Data!$A$4:$DP$191,5,FALSE)","v":53500.720999999998},{"$f":"VLOOKUP($A20,F1__World_Data!$A$4:$DP$191,4,FALSE)","v":53109.4},{"$f":"VLOOKUP($A20,F1__World_Data!$A$4:$DP$191,3,FALSE)","v":52727.762999999999},{"$f":"VLOOKUP($A20,F1__World_Data!$A$4:$DP$191,2,FALSE)","v":52370.595000000001},null,{"$f":"VLOOKUP($A20,F1__World_Data!$A$4:$DP$191,120,FALSE)","v":63.856999999999999},{"$f":"VLOOKUP($A20,F1__World_Data!$A$4:$DP$191,119,FALSE)","v":63.537999999999997},{"$f":"VLOOKUP($A20,F1__World_Data!$A$4:$DP$191,118,FALSE)","v":63.152999999999999},{"$f":"VLOOKUP($A20,F1__World_Data!$A$4:$DP$191,117,FALSE)","v":62.649000000000001},{"$f":"VLOOKUP($A20,F1__World_Data!$A$4:$DP$191,116,FALSE)","v":61.968000000000004},{"$f":"VLOOKUP($A20,F1__World_Data!$A$4:$DP$191,115,FALSE)","v":61.098999999999997},{"$f":"VLOOKUP($A20,F1__World_Data!$A$4:$DP$191,114,FALSE)","v":60.06},{"$f":"VLOOKUP($A20,F1__World_Data!$A$4:$DP$191,113,FALSE)","v":58.895000000000003},{"$f":"VLOOKUP($A20,F1__World_Data!$A$4:$DP$191,112,FALSE)","v":57.668999999999997},{"$f":"VLOOKUP($A20,F1__World_Data!$A$4:$DP$191,111,FALSE)","v":56.46},{"$f":"VLOOKUP($A20,F1__World_Data!$A$4:$DP$191,110,FALSE)","v":55.36},{"$f":"VLOOKUP($A20,F1__World_Data!$A$4:$DP$191,109,FALSE)","v":54.451999999999998},{"$f":"VLOOKUP($A20,F1__World_Data!$A$4:$DP$191,108,FALSE)","v":53.795000000000002},{"$f":"VLOOKUP($A20,F1__World_Data!$A$4:$DP$191,107,FALSE)","v":53.447000000000003},{"$f":"VLOOKUP($A20,F1__World_Data!$A$4:$DP$191,106,FALSE)","v":53.444000000000003},{"$f":"VLOOKUP($A20,F1__World_Data!$A$4:$DP$191,105,FALSE)","v":53.749000000000002},{"$f":"VLOOKUP($A20,F1__World_Data!$A$4:$DP$191,104,FALSE)","v":54.31},{"$f":"VLOOKUP($A20,F1__World_Data!$A$4:$DP$191,103,FALSE)","v":55.088999999999999},{"$f":"VLOOKUP($A20,F1__World_Data!$A$4:$DP$191,102,FALSE)","v":56.048000000000002},{"$f":"VLOOKUP($A20,F1__World_Data!$A$4:$DP$191,101,FALSE)","v":57.143999999999998},{"$f":"VLOOKUP($A20,F1__World_Data!$A$4:$DP$191,100,FALSE)","v":58.314999999999998},{"$f":"VLOOKUP($A20,F1__World_Data!$A$4:$DP$191,99,FALSE)","v":59.488999999999997},{"$f":"VLOOKUP($A20,F1__World_Data!$A$4:$DP$191,98,FALSE)","v":60.594999999999999},{"$f":"VLOOKUP($A20,F1__World_Data!$A$4:$DP$191,97,FALSE)","v":61.561},{"$f":"VLOOKUP($A20,F1__World_Data!$A$4:$DP$191,96,FALSE)","v":62.331000000000003},{"$f":"VLOOKUP($A20,F1__World_Data!$A$4:$DP$191,95,FALSE)","v":62.893999999999998},{"$f":"VLOOKUP($A20,F1__World_Data!$A$4:$DP$191,94,FALSE)","v":63.247},{"$f":"VLOOKUP($A20,F1__World_Data!$A$4:$DP$191,93,FALSE)","v":63.384},{"$f":"VLOOKUP($A20,F1__World_Data!$A$4:$DP$191,92,FALSE)","v":63.307000000000002},{"$f":"VLOOKUP($A20,F1__World_Data!$A$4:$DP$191,91,FALSE)","v":63.034999999999997},{"$f":"VLOOKUP($A20,F1__World_Data!$A$4:$DP$191,90,FALSE)","v":62.619},{"$f":"VLOOKUP($A20,F1__World_Data!$A$4:$DP$191,89,FALSE)","v":62.109000000000002},{"$f":"VLOOKUP($A20,F1__World_Data!$A$4:$DP$191,88,FALSE)","v":61.54},{"$f":"VLOOKUP($A20,F1__World_Data!$A$4:$DP$191,87,FALSE)","v":60.945999999999998},{"$f":"VLOOKUP($A20,F1__World_Data!$A$4:$DP$191,86,FALSE)","v":60.353000000000002},{"$f":"VLOOKUP($A20,F1__World_Data!$A$4:$DP$191,85,FALSE)","v":59.765999999999998},{"$f":"VLOOKUP($A20,F1__World_Data!$A$4:$DP$191,84,FALSE)","v":59.191000000000003},{"$f":"VLOOKUP($A20,F1__World_Data!$A$4:$DP$191,83,FALSE)","v":58.637},{"$f":"VLOOKUP($A20,F1__World_Data!$A$4:$DP$191,82,FALSE)","v":58.106999999999999},{"$f":"VLOOKUP($A20,F1__World_Data!$A$4:$DP$191,81,FALSE)","v":57.59},{"$f":"VLOOKUP($A20,F1__World_Data!$A$4:$DP$191,80,FALSE)","v":57.070999999999998},{"$f":"VLOOKUP($A20,F1__World_Data!$A$4:$DP$191,79,FALSE)","v":56.537999999999997},{"$f":"VLOOKUP($A20,F1__World_Data!$A$4:$DP$191,78,FALSE)","v":55.99},{"$f":"VLOOKUP($A20,F1__World_Data!$A$4:$DP$191,77,FALSE)","v":55.427999999999997},{"$f":"VLOOKUP($A20,F1__World_Data!$A$4:$DP$191,76,FALSE)","v":54.856000000000002},{"$f":"VLOOKUP($A20,F1__World_Data!$A$4:$DP$191,75,FALSE)","v":54.280999999999999},{"$f":"VLOOKUP($A20,F1__World_Data!$A$4:$DP$191,74,FALSE)","v":53.713000000000001},53.156999999999996,52.62,52.106000000000002,51.615000000000002,51.148000000000003,50.704999999999998,50.283999999999999,49.887999999999998,49.509,49.142000000000003,{"$f":"VLOOKUP($A20,F1__World_Data!$A$4:$DP$191,63,FALSE)","v":48.777000000000001},{"$f":"VLOOKUP($A20,F1__World_Data!$A$4:$DP$191,62,FALSE)","v":48.405999999999999}]
["France",{"$f":"VLOOKUP($A21,F1__World_Data!$A$4:$DP$191,60,FALSE)","v":64990.512000000002},{"$f":"VLOOKUP($A21,F1__World_Data!$A$4:$DP$191,59,FALSE)","v":64842.512999999999},{"$f":"VLOOKUP($A21,F1__World_Data!$A$4:$DP$191,58,FALSE)","v":64667.59},{"$f":"VLOOKUP($A21,F1__World_Data!$A$4:$DP$191,57,FALSE)","v":64453.194000000003},{"$f":"VLOOKUP($A21,F1__World_Data!$A$4:$DP$191,56,FALSE)","v":64193.55},{"$f":"VLOOKUP($A21,F1__World_Data!$A$4:$DP$191,55,FALSE)","v":63893.521000000001},{"$f":"VLOOKUP($A21,F1__World_Data!$A$4:$DP$191,54,FALSE)","v":63564.224000000002},{"$f":"VLOOKUP($A21,F1__World_Data!$A$4:$DP$191,53,FALSE)","v":63222.228999999999},{"$f":"VLOOKUP($A21,F1__World_Data!$A$4:$DP$191,52,FALSE)","v":62879.535000000003},{"$f":"VLOOKUP($A21,F1__World_Data!$A$4:$DP$191,51,FALSE)","v":62542.883000000002},{"$f":"VLOOKUP($A21,F1__World_Data!$A$4:$DP$191,50,FALSE)","v":62209.207000000002},{"$f":"VLOOKUP($A21,F1__World_Data!$A$4:$DP$191,49,FALSE)","v":61869.228999999999},{"$f":"VLOOKUP($A21,F1__World_Data!$A$4:$DP$191,48,FALSE)","v":61508.923999999999},{"$f":"VLOOKUP($A21,F1__World_Data!$A$4:$DP$191,47,FALSE)","v":61120.127999999997},{"$f":"VLOOKUP($A21,F1__World_Data!$A$4:$DP$191,46,FALSE)","v":60697.976999999999},{"$f":"VLOOKUP($A21,F1__World_Data!$A$4:$DP$191,45,FALSE)","v":60251.591},{"$f":"VLOOKUP($A21,F1__World_Data!$A$4:$DP$191,44,FALSE)","v":59803.434000000001},{"$f":"VLOOKUP($A21,F1__World_Data!$A$4:$DP$191,43,FALSE)","v":59384.125999999997},{"$f":"VLOOKUP($A21,F1__World_Data!$A$4:$DP$191,42,FALSE)","v":59015.091999999997},{"$f":"VLOOKUP($A21,F1__World_Data!$A$4:$DP$191,41,FALSE)","v":58704.381000000001},{"$f":"VLOOKUP($A21,F1__World_Data!$A$4:$DP$191,40,FALSE)","v":58444.245000000003},{"$f":"VLOOKUP($A21,F1__World_Data!$A$4:$DP$191,39,FALSE)","v":58220.656999999999},{"$f":"VLOOKUP($A21,F1__World_Data!$A$4:$DP$191,38,FALSE)","v":58012.055},{"$f":"VLOOKUP($A21,F1__World_Data!$A$4:$DP$191,37,FALSE)","v":57801.887000000002},{"$f":"VLOOKUP($A21,F1__World_Data!$A$4:$DP$191,36,FALSE)","v":57587.122000000003},{"$f":"VLOOKUP($A21,F1__World_Data!$A$4:$DP$191,35,FALSE)","v":57370.375},{"$f":"VLOOKUP($A21,F1__World_Data!$A$4:$DP$191,34,FALSE)","v":57147.213000000003},{"$f":"VLOOKUP($A21,F1__World_Data!$A$4:$DP$191,33,FALSE)","v":56913.58},{"$f":"VLOOKUP($A21,F1__World_Data!$A$4:$DP$191,32,FALSE)","v":56666.860999999997},{"$f":"VLOOKUP($A21,F1__World_Data!$A$4:$DP$191,31,FALSE)","v":56404.303},{"$f":"VLOOKUP($A21,F1__World_Data!$A$4:$DP$191,30,FALSE)","v":56126.337},{"$f":"VLOOKUP($A21,F1__World_Data!$A$4:$DP$191,29,FALSE)","v":55837.622000000003},{"$f":"VLOOKUP($A21,F1__World_Data!$A$4:$DP$191,28,FALSE)","v":55545.271000000001},{"$f":"VLOOKUP($A21,F1__World_Data!$A$4:$DP$191,27,FALSE)","v":55254.838000000003},{"$f":"VLOOKUP($A21,F1__World_Data!$A$4:$DP$191,26,FALSE)","v":54965.167000000001},{"$f":"VLOOKUP($A21,F1__World_Data!$A$4:$DP$191,25,FALSE)","v":54675.37},{"$f":"VLOOKUP($A21,F1__World_Data!$A$4:$DP$191,24,FALSE)","v":54391.468999999997},{"$f":"VLOOKUP($A21,F1__World_Data!$A$4:$DP$191,23,FALSE)","v":54121.008999999998},{"$f":"VLOOKUP($A21,F1__World_Data!$A$4:$DP$191,22,FALSE)","v":53868.006000000001},{"$f":"VLOOKUP($A21,F1__World_Data!$A$4:$DP$191,21,FALSE)","v":53637.072999999997},{"$f":"VLOOKUP($A21,F1__World_Data!$A$4:$DP$191,20,FALSE)","v":53423.112000000001},{"$f":"VLOOKUP($A21,F1__World_Data!$A$4:$DP$191,19,FALSE)","v":53208.548999999999},{"$f":"VLOOKUP($A21,F1__World_Data!$A$4:$DP$191,18,FALSE)","v":52969.313999999998},{"$f":"VLOOKUP($A21,F1__World_Data!$A$4:$DP$191,17,FALSE)","v":52688.574999999997},{"$f":"VLOOKUP($A21,F1__World_Data!$A$4:$DP$191,16,FALSE)","v":52356.792999999998},{"$f":"VLOOKUP($A21,F1__World_Data!$A$4:$DP$191,15,FALSE)","v":51979.531000000003},{"$f":"VLOOKUP($A21,F1__World_Data!$A$4:$DP$191,14,FALSE)","v":51573.267999999996},{"$f":"VLOOKUP($A21,F1__World_Data!$A$4:$DP$191,13,FALSE)","v":51162.569000000003},{"$f":"VLOOKUP($A21,F1__World_Data!$A$4:$DP$191,12,FALSE)","v":50763.921000000002},{"$f":"VLOOKUP($A21,F1__World_Data!$A$4:$DP$191,11,FALSE)","v":50387.440999999999},{"$f":"VLOOKUP($A21,F1__World_Data!$A$4:$DP$191,10,FALSE)","v":50024.587},{"$f":"VLOOKUP($A21,F1__World_Data!$A$4:$DP$191,9,FALSE)","v":49651.08},{"$f":"VLOOKUP($A21,F1__World_Data!$A$4:$DP$191,8,FALSE)","v":49232.536},{"$f":"VLOOKUP($A21,F1__World_Data!$A$4:$DP$191,7,FALSE)","v":48746.652999999998},{"$f":"VLOOKUP($A21,F1__World_Data!$A$4:$DP$191,6,FALSE)","v":48184.413999999997},{"$f":"VLOOKUP($A21,F1__World_Data!$A$4:$DP$191,5,FALSE)","v":47560.824999999997},{"$f":"VLOOKUP($A21,F1__World_Data!$A$4:$DP$191,4,FALSE)","v":46907.042999999998},{"$f":"VLOOKUP($A21,F1__World_Data!$A$4:$DP$191,3,FALSE)","v":46266.974000000002},{"$f":"VLOOKUP($A21,F1__World_Data!$A$4:$DP$191,2,FALSE)","v":45673.146999999997},null,{"$f":"VLOOKUP($A21,F1__World_Data!$A$4:$DP$191,120,FALSE)","v":82.526829268292687},{"$f":"VLOOKUP($A21,F1__World_Data!$A$4:$DP$191,119,FALSE)","v":82.526829268292687},{"$f":"VLOOKUP($A21,F1__World_Data!$A$4:$DP$191,118,FALSE)","v":82.524390243902445},{"$f":"VLOOKUP($A21,F1__World_Data!$A$4:$DP$191,117,FALSE)","v":82.321951219512201},{"$f":"VLOOKUP($A21,F1__World_Data!$A$4:$DP$191,116,FALSE)","v":82.719512195121951},{"$f":"VLOOKUP($A21,F1__World_Data!$A$4:$DP$191,115,FALSE)","v":82.219512195121965},{"$f":"VLOOKUP($A21,F1__World_Data!$A$4:$DP$191,114,FALSE)","v":81.968292682926844},{"$f":"VLOOKUP($A21,F1__World_Data!$A$4:$DP$191,113,FALSE)","v":82.114634146341473},{"$f":"VLOOKUP($A21,F1__World_Data!$A$4:$DP$191,112,FALSE)","v":81.663414634146349},{"$f":"VLOOKUP($A21,F1__World_Data!$A$4:$DP$191,111,FALSE)","v":81.41463414634147},{"$f":"VLOOKUP($A21,F1__World_Data!$A$4:$DP$191,110,FALSE)","v":81.214634146341481},{"$f":"VLOOKUP($A21,F1__World_Data!$A$4:$DP$191,109,FALSE)","v":81.112195121951231},{"$f":"VLOOKUP($A21,F1__World_Data!$A$4:$DP$191,108,FALSE)","v":80.812195121951234},{"$f":"VLOOKUP($A21,F1__World_Data!$A$4:$DP$191,107,FALSE)","v":80.163414634146349},{"$f":"VLOOKUP($A21,F1__World_Data!$A$4:$DP$191,106,FALSE)","v":80.163414634146349},{"$f":"VLOOKUP($A21,F1__World_Data!$A$4:$DP$191,105,FALSE)","v":79.114634146341473},{"$f":"VLOOKUP($A21,F1__World_Data!$A$4:$DP$191,104,FALSE)","v":79.260975609756116},{"$f":"VLOOKUP($A21,F1__World_Data!$A$4:$DP$191,103,FALSE)","v":79.158536585365866},{"$f":"VLOOKUP($A21,F1__World_Data!$A$4:$DP$191,102,FALSE)","v":79.056097560975616},{"$f":"VLOOKUP($A21,F1__World_Data!$A$4:$DP$191,101,FALSE)","v":78.756097560975604},{"$f":"VLOOKUP($A21,F1__World_Data!$A$4:$DP$191,100,FALSE)","v":78.604878048780492},{"$f":"VLOOKUP($A21,F1__World_Data!$A$4:$DP$191,99,FALSE)","v":78.304878048780495},{"$f":"VLOOKUP($A21,F1__World_Data!$A$4:$DP$191,98,FALSE)","v":77.95365853658538},{"$f":"VLOOKUP($A21,F1__World_Data!$A$4:$DP$191,97,FALSE)","v":77.751219512195121},{"$f":"VLOOKUP($A21,F1__World_Data!$A$4:$DP$191,96,FALSE)","v":77.648780487804885},{"$f":"VLOOKUP($A21,F1__World_Data!$A$4:$DP$191,95,FALSE)","v":77.3},{"$f":"VLOOKUP($A21,F1__World_Data!$A$4:$DP$191,94,FALSE)","v":77.099999999999994},{"$f":"VLOOKUP($A21,F1__World_Data!$A$4:$DP$191,93,FALSE)","v":76.848780487804888},{"$f":"VLOOKUP($A21,F1__World_Data!$A$4:$DP$191,92,FALSE)","v":76.599999999999994},{"$f":"VLOOKUP($A21,F1__World_Data!$A$4:$DP$191,91,FALSE)","v":76.348780487804873},{"$f":"VLOOKUP($A21,F1__World_Data!$A$4:$DP$191,90,FALSE)","v":76.099999999999994},{"$f":"VLOOKUP($A21,F1__World_Data!$A$4:$DP$191,89,FALSE)","v":75.8},{"$f":"VLOOKUP($A21,F1__World_Data!$A$4:$DP$191,88,FALSE)","v":75.599999999999994},{"$f":"VLOOKUP($A21,F1__World_Data!$A$4:$DP$191,87,FALSE)","v":75.3},{"$f":"VLOOKUP($A21,F1__World_Data!$A$4:$DP$191,86,FALSE)","v":75},{"$f":"VLOOKUP($A21,F1__World_Data!$A$4:$DP$191,85,FALSE)","v":74.8},{"$f":"VLOOKUP($A21,F1__World_Data!$A$4:$DP$191,84,FALSE)","v":74.5},{"$f":"VLOOKUP($A21,F1__World_Data!$A$4:$DP$191,83,FALSE)","v":74.3},{"$f":"VLOOKUP($A21,F1__World_Data!$A$4:$DP$191,82,FALSE)","v":74.051219512195132},{"$f":"VLOOKUP($A21,F1__World_Data!$A$4:$DP$191,81,FALSE)","v":73.851219512195129},{"$f":"VLOOKUP($A21,F1__World_Data!$A$4:$DP$191,80,FALSE)","v":73.60243902439025},{"$f":"VLOOKUP($A21,F1__World_Data!$A$4:$DP$191,79,FALSE)","v":73.351219512195129},{"$f":"VLOOKUP($A21,F1__World_Data!$A$4:$DP$191,78,FALSE)","v":73.10243902439025},{"$f":"VLOOKUP($A21,F1__World_Data!$A$4:$DP$191,77,FALSE)","v":72.853658536585385},{"$f":"VLOOKUP($A21,F1__World_Data!$A$4:$DP$191,76,FALSE)","v":72.604878048780478},{"$f":"VLOOKUP($A21,F1__World_Data!$A$4:$DP$191,75,FALSE)","v":72.356097560975613},{"$f":"VLOOKUP($A21,F1__World_Data!$A$4:$DP$191,74,FALSE)","v":72.107317073170734},71.907317073170731,71.658536585365866,71.458536585365863,71.309756097560978,71.160975609756107,70.960975609756119,70.812195121951234,70.663414634146349,70.514634146341479,70.314634146341476,{"$f":"VLOOKUP($A21,F1__World_Data!$A$4:$DP$191,63,FALSE)","v":70.117073170731715},{"$f":"VLOOKUP($A21,F1__World_Data!$A$4:$DP$191,62,FALSE)","v":69.868292682926835}]
["Italy",{"$f":"VLOOKUP($A22,F1__World_Data!$A$4:$DP$191,60,FALSE)","v":60627.290999999997},{"$f":"VLOOKUP($A22,F1__World_Data!$A$4:$DP$191,59,FALSE)","v":60673.694000000003},{"$f":"VLOOKUP($A22,F1__World_Data!$A$4:$DP$191,58,FALSE)","v":60663.067999999999},{"$f":"VLOOKUP($A22,F1__World_Data!$A$4:$DP$191,57,FALSE)","v":60578.489000000001},{"$f":"VLOOKUP($A22,F1__World_Data!$A$4:$DP$191,56,FALSE)","v":60409.622000000003},{"$f":"VLOOKUP($A22,F1__World_Data!$A$4:$DP$191,55,FALSE)","v":60166.828000000001},{"$f":"VLOOKUP($A22,F1__World_Data!$A$4:$DP$191,54,FALSE)","v":59879.468999999997},{"$f":"VLOOKUP($A22,F1__World_Data!$A$4:$DP$191,53,FALSE)","v":59589.07},{"$f":"VLOOKUP($A22,F1__World_Data!$A$4:$DP$191,52,FALSE)","v":59325.232000000004},{"$f":"VLOOKUP($A22,F1__World_Data!$A$4:$DP$191,51,FALSE)","v":59105.622000000003},{"$f":"VLOOKUP($A22,F1__World_Data!$A$4:$DP$191,50,FALSE)","v":58922.116000000002},{"$f":"VLOOKUP($A22,F1__World_Data!$A$4:$DP$191,49,FALSE)","v":58747.862000000001},{"$f":"VLOOKUP($A22,F1__World_Data!$A$4:$DP$191,48,FALSE)","v":58542.618999999999},{"$f":"VLOOKUP($A22,F1__World_Data!$A$4:$DP$191,47,FALSE)","v":58281.209000000003},{"$f":"VLOOKUP($A22,F1__World_Data!$A$4:$DP$191,46,FALSE)","v":57948.421000000002},{"$f":"VLOOKUP($A22,F1__World_Data!$A$4:$DP$191,45,FALSE)","v":57564.589},{"$f":"VLOOKUP($A22,F1__World_Data!$A$4:$DP$191,44,FALSE)","v":57182.521000000001},{"$f":"VLOOKUP($A22,F1__World_Data!$A$4:$DP$191,43,FALSE)","v":56875.148000000001},{"$f":"VLOOKUP($A22,F1__World_Data!$A$4:$DP$191,42,FALSE)","v":56692.178},{"$f":"VLOOKUP($A22,F1__World_Data!$A$4:$DP$191,41,FALSE)","v":56655.629000000001},{"$f":"VLOOKUP($A22,F1__World_Data!$A$4:$DP$191,40,FALSE)","v":56742.754999999997},{"$f":"VLOOKUP($A22,F1__World_Data!$A$4:$DP$191,39,FALSE)","v":56903.633000000002},{"$f":"VLOOKUP($A22,F1__World_Data!$A$4:$DP$191,38,FALSE)","v":57065.231},{"$f":"VLOOKUP($A22,F1__World_Data!$A$4:$DP$191,37,FALSE)","v":57174.411999999997},{"$f":"VLOOKUP($A22,F1__World_Data!$A$4:$DP$191,36,FALSE)","v":57213.538},{"$f":"VLOOKUP($A22,F1__World_Data!$A$4:$DP$191,35,FALSE)","v":57197.61},{"$f":"VLOOKUP($A22,F1__World_Data!$A$4:$DP$191,34,FALSE)","v":57145.307999999997},{"$f":"VLOOKUP($A22,F1__World_Data!$A$4:$DP$191,33,FALSE)","v":57088.125},{"$f":"VLOOKUP($A22,F1__World_Data!$A$4:$DP$191,32,FALSE)","v":57048.237000000001},{"$f":"VLOOKUP($A22,F1__World_Data!$A$4:$DP$191,31,FALSE)","v":57028.707000000002},{"$f":"VLOOKUP($A22,F1__World_Data!$A$4:$DP$191,30,FALSE)","v":57018.192999999999},{"$f":"VLOOKUP($A22,F1__World_Data!$A$4:$DP$191,29,FALSE)","v":57007.737000000001},{"$f":"VLOOKUP($A22,F1__World_Data!$A$4:$DP$191,28,FALSE)","v":56983.930999999997},{"$f":"VLOOKUP($A22,F1__World_Data!$A$4:$DP$191,27,FALSE)","v":56936.775999999998},{"$f":"VLOOKUP($A22,F1__World_Data!$A$4:$DP$191,26,FALSE)","v":56863.131000000001},{"$f":"VLOOKUP($A22,F1__World_Data!$A$4:$DP$191,25,FALSE)","v":56765.25},{"$f":"VLOOKUP($A22,F1__World_Data!$A$4:$DP$191,24,FALSE)","v":56644.86},{"$f":"VLOOKUP($A22,F1__World_Data!$A$4:$DP$191,23,FALSE)","v":56505.476000000002},{"$f":"VLOOKUP($A22,F1__World_Data!$A$4:$DP$191,22,FALSE)","v":56349.351999999999},{"$f":"VLOOKUP($A22,F1__World_Data!$A$4:$DP$191,21,FALSE)","v":56177.841999999997},{"$f":"VLOOKUP($A22,F1__World_Data!$A$4:$DP$191,20,FALSE)","v":55988.983},{"$f":"VLOOKUP($A22,F1__World_Data!$A$4:$DP$191,19,FALSE)","v":55777.881000000001},{"$f":"VLOOKUP($A22,F1__World_Data!$A$4:$DP$191,18,FALSE)","v":55537.953000000001},{"$f":"VLOOKUP($A22,F1__World_Data!$A$4:$DP$191,17,FALSE)","v":55265.279999999999},{"$f":"VLOOKUP($A22,F1__World_Data!$A$4:$DP$191,16,FALSE)","v":54957.794999999998},{"$f":"VLOOKUP($A22,F1__World_Data!$A$4:$DP$191,15,FALSE)","v":54619.24},{"$f":"VLOOKUP($A22,F1__World_Data!$A$4:$DP$191,14,FALSE)","v":54258.737000000001},{"$f":"VLOOKUP($A22,F1__World_Data!$A$4:$DP$191,13,FALSE)","v":53888.88},{"$f":"VLOOKUP($A22,F1__World_Data!$A$4:$DP$191,12,FALSE)","v":53518.966},{"$f":"VLOOKUP($A22,F1__World_Data!$A$4:$DP$191,11,FALSE)","v":53154.574999999997},{"$f":"VLOOKUP($A22,F1__World_Data!$A$4:$DP$191,10,FALSE)","v":52794.534},{"$f":"VLOOKUP($A22,F1__World_Data!$A$4:$DP$191,9,FALSE)","v":52433.478000000003},{"$f":"VLOOKUP($A22,F1__World_Data!$A$4:$DP$191,8,FALSE)","v":52062.749000000003},{"$f":"VLOOKUP($A22,F1__World_Data!$A$4:$DP$191,7,FALSE)","v":51677.247000000003},{"$f":"VLOOKUP($A22,F1__World_Data!$A$4:$DP$191,6,FALSE)","v":51273.233999999997},{"$f":"VLOOKUP($A22,F1__World_Data!$A$4:$DP$191,5,FALSE)","v":50856.404999999999},{"$f":"VLOOKUP($A22,F1__World_Data!$A$4:$DP$191,4,FALSE)","v":50442.35},{"$f":"VLOOKUP($A22,F1__World_Data!$A$4:$DP$191,3,FALSE)","v":50052.173999999999},{"$f":"VLOOKUP($A22,F1__World_Data!$A$4:$DP$191,2,FALSE)","v":49699.947},null,{"$f":"VLOOKUP($A22,F1__World_Data!$A$4:$DP$191,120,FALSE)","v":82.946341463414655},{"$f":"VLOOKUP($A22,F1__World_Data!$A$4:$DP$191,119,FALSE)","v":82.946341463414655},{"$f":"VLOOKUP($A22,F1__World_Data!$A$4:$DP$191,118,FALSE)","v":83.243902439024382},{"$f":"VLOOKUP($A22,F1__World_Data!$A$4:$DP$191,117,FALSE)","v":82.543902439024393},{"$f":"VLOOKUP($A22,F1__World_Data!$A$4:$DP$191,116,FALSE)","v":83.090243902439042},{"$f":"VLOOKUP($A22,F1__World_Data!$A$4:$DP$191,115,FALSE)","v":82.690243902439022},{"$f":"VLOOKUP($A22,F1__World_Data!$A$4:$DP$191,114,FALSE)","v":82.239024390243912},{"$f":"VLOOKUP($A22,F1__World_Data!$A$4:$DP$191,113,FALSE)","v":82.187804878048794},{"$f":"VLOOKUP($A22,F1__World_Data!$A$4:$DP$191,112,FALSE)","v":82.036585365853668},{"$f":"VLOOKUP($A22,F1__World_Data!$A$4:$DP$191,111,FALSE)","v":81.636585365853662},{"$f":"VLOOKUP($A22,F1__World_Data!$A$4:$DP$191,110,FALSE)","v":81.48536585365855},{"$f":"VLOOKUP($A22,F1__World_Data!$A$4:$DP$191,109,FALSE)","v":81.434146341463418},{"$f":"VLOOKUP($A22,F1__World_Data!$A$4:$DP$191,108,FALSE)","v":81.282926829268291},{"$f":"VLOOKUP($A22,F1__World_Data!$A$4:$DP$191,107,FALSE)","v":80.782926829268291},{"$f":"VLOOKUP($A22,F1__World_Data!$A$4:$DP$191,106,FALSE)","v":80.780487804878064},{"$f":"VLOOKUP($A22,F1__World_Data!$A$4:$DP$191,105,FALSE)","v":79.982926829268308},{"$f":"VLOOKUP($A22,F1__World_Data!$A$4:$DP$191,104,FALSE)","v":80.229268292682946},{"$f":"VLOOKUP($A22,F1__World_Data!$A$4:$DP$191,103,FALSE)","v":80.126829268292681},{"$f":"VLOOKUP($A22,F1__World_Data!$A$4:$DP$191,102,FALSE)","v":79.778048780487822},{"$f":"VLOOKUP($A22,F1__World_Data!$A$4:$DP$191,101,FALSE)","v":79.424390243902437},{"$f":"VLOOKUP($A22,F1__World_Data!$A$4:$DP$191,100,FALSE)","v":78.975609756097555},{"$f":"VLOOKUP($A22,F1__World_Data!$A$4:$DP$191,99,FALSE)","v":78.824390243902442},{"$f":"VLOOKUP($A22,F1__World_Data!$A$4:$DP$191,98,FALSE)","v":78.521951219512218},{"$f":"VLOOKUP($A22,F1__World_Data!$A$4:$DP$191,97,FALSE)","v":78.170731707317074},{"$f":"VLOOKUP($A22,F1__World_Data!$A$4:$DP$191,96,FALSE)","v":77.921951219512209},{"$f":"VLOOKUP($A22,F1__World_Data!$A$4:$DP$191,95,FALSE)","v":77.721951219512192},{"$f":"VLOOKUP($A22,F1__World_Data!$A$4:$DP$191,94,FALSE)","v":77.419512195121968},{"$f":"VLOOKUP($A22,F1__World_Data!$A$4:$DP$191,93,FALSE)","v":77.019512195121948},{"$f":"VLOOKUP($A22,F1__World_Data!$A$4:$DP$191,92,FALSE)","v":76.970731707317071},{"$f":"VLOOKUP($A22,F1__World_Data!$A$4:$DP$191,91,FALSE)","v":76.819512195121973},{"$f":"VLOOKUP($A22,F1__World_Data!$A$4:$DP$191,90,FALSE)","v":76.370731707317077},{"$f":"VLOOKUP($A22,F1__World_Data!$A$4:$DP$191,89,FALSE)","v":76.219512195121965},{"$f":"VLOOKUP($A22,F1__World_Data!$A$4:$DP$191,88,FALSE)","v":75.770731707317069},{"$f":"VLOOKUP($A22,F1__World_Data!$A$4:$DP$191,87,FALSE)","v":75.470731707317086},{"$f":"VLOOKUP($A22,F1__World_Data!$A$4:$DP$191,86,FALSE)","v":75.389512195121952},{"$f":"VLOOKUP($A22,F1__World_Data!$A$4:$DP$191,85,FALSE)","v":74.640243902439025},{"$f":"VLOOKUP($A22,F1__World_Data!$A$4:$DP$191,84,FALSE)","v":74.814634146341476},{"$f":"VLOOKUP($A22,F1__World_Data!$A$4:$DP$191,83,FALSE)","v":74.353902439024395},{"$f":"VLOOKUP($A22,F1__World_Data!$A$4:$DP$191,82,FALSE)","v":73.943170731707326},{"$f":"VLOOKUP($A22,F1__World_Data!$A$4:$DP$191,81,FALSE)","v":74.002682926829266},{"$f":"VLOOKUP($A22,F1__World_Data!$A$4:$DP$191,80,FALSE)","v":73.693170731707326},{"$f":"VLOOKUP($A22,F1__World_Data!$A$4:$DP$191,79,FALSE)","v":73.364634146341473},{"$f":"VLOOKUP($A22,F1__World_Data!$A$4:$DP$191,78,FALSE)","v":72.991951219512202},{"$f":"VLOOKUP($A22,F1__World_Data!$A$4:$DP$191,77,FALSE)","v":72.647317073170754},{"$f":"VLOOKUP($A22,F1__World_Data!$A$4:$DP$191,76,FALSE)","v":72.734390243902453},{"$f":"VLOOKUP($A22,F1__World_Data!$A$4:$DP$191,75,FALSE)","v":72.026341463414639},{"$f":"VLOOKUP($A22,F1__World_Data!$A$4:$DP$191,74,FALSE)","v":72.075365853658553},71.806829268292688,71.558780487804881,70.81195121951221,70.78,70.95658536585367,70.92609756097562,70.171707317073185,70.311707317073186,69.248048780487821,69.149756097560982,{"$f":"VLOOKUP($A22,F1__World_Data!$A$4:$DP$191,63,FALSE)","v":69.760243902439043},{"$f":"VLOOKUP($A22,F1__World_Data!$A$4:$DP$191,62,FALSE)","v":69.123902439024405}]
["South Africa",{"$f":"VLOOKUP($A23,F1__World_Data!$A$4:$DP$191,60,FALSE)","v":57792.52},{"$f":"VLOOKUP($A23,F1__World_Data!$A$4:$DP$191,59,FALSE)","v":57009.750999999997},{"$f":"VLOOKUP($A23,F1__World_Data!$A$4:$DP$191,58,FALSE)","v":56207.648999999998},{"$f":"VLOOKUP($A23,F1__World_Data!$A$4:$DP$191,57,FALSE)","v":55386.368999999999},{"$f":"VLOOKUP($A23,F1__World_Data!$A$4:$DP$191,56,FALSE)","v":54544.184000000001},{"$f":"VLOOKUP($A23,F1__World_Data!$A$4:$DP$191,55,FALSE)","v":53687.125},{"$f":"VLOOKUP($A23,F1__World_Data!$A$4:$DP$191,54,FALSE)","v":52832.659},{"$f":"VLOOKUP($A23,F1__World_Data!$A$4:$DP$191,53,FALSE)","v":52003.758999999998},{"$f":"VLOOKUP($A23,F1__World_Data!$A$4:$DP$191,52,FALSE)","v":51216.966999999997},{"$f":"VLOOKUP($A23,F1__World_Data!$A$4:$DP$191,51,FALSE)","v":50477.012999999999},{"$f":"VLOOKUP($A23,F1__World_Data!$A$4:$DP$191,50,FALSE)","v":49779.472000000002},{"$f":"VLOOKUP($A23,F1__World_Data!$A$4:$DP$191,49,FALSE)","v":49119.766000000003},{"$f":"VLOOKUP($A23,F1__World_Data!$A$4:$DP$191,48,FALSE)","v":48489.464},{"$f":"VLOOKUP($A23,F1__World_Data!$A$4:$DP$191,47,FALSE)","v":47880.595000000001},{"$f":"VLOOKUP($A23,F1__World_Data!$A$4:$DP$191,46,FALSE)","v":47291.61},{"$f":"VLOOKUP($A23,F1__World_Data!$A$4:$DP$191,45,FALSE)","v":46719.203000000001},{"$f":"VLOOKUP($A23,F1__World_Data!$A$4:$DP$191,44,FALSE)","v":46150.913},{"$f":"VLOOKUP($A23,F1__World_Data!$A$4:$DP$191,43,FALSE)","v":45571.271999999997},{"$f":"VLOOKUP($A23,F1__World_Data!$A$4:$DP$191,42,FALSE)","v":44967.713000000003},{"$f":"VLOOKUP($A23,F1__World_Data!$A$4:$DP$191,41,FALSE)","v":44338.550999999999},{"$f":"VLOOKUP($A23,F1__World_Data!$A$4:$DP$191,40,FALSE)","v":43682.258999999998},{"$f":"VLOOKUP($A23,F1__World_Data!$A$4:$DP$191,39,FALSE)","v":42987.455999999998},{"$f":"VLOOKUP($A23,F1__World_Data!$A$4:$DP$191,38,FALSE)","v":42241.006999999998},{"$f":"VLOOKUP($A23,F1__World_Data!$A$4:$DP$191,37,FALSE)","v":41435.760999999999},{"$f":"VLOOKUP($A23,F1__World_Data!$A$4:$DP$191,36,FALSE)","v":40564.061000000002},{"$f":"VLOOKUP($A23,F1__World_Data!$A$4:$DP$191,35,FALSE)","v":39633.754000000001},{"$f":"VLOOKUP($A23,F1__World_Data!$A$4:$DP$191,34,FALSE)","v":38672.610999999997},{"$f":"VLOOKUP($A23,F1__World_Data!$A$4:$DP$191,33,FALSE)","v":37718.951999999997},{"$f":"VLOOKUP($A23,F1__World_Data!$A$4:$DP$191,32,FALSE)","v":36800.506999999998},{"$f":"VLOOKUP($A23,F1__World_Data!$A$4:$DP$191,31,FALSE)","v":35930.055999999997},{"$f":"VLOOKUP($A23,F1__World_Data!$A$4:$DP$191,30,FALSE)","v":35100.904999999999},{"$f":"VLOOKUP($A23,F1__World_Data!$A$4:$DP$191,29,FALSE)","v":34297.726999999999},{"$f":"VLOOKUP($A23,F1__World_Data!$A$4:$DP$191,28,FALSE)","v":33495.955999999998},{"$f":"VLOOKUP($A23,F1__World_Data!$A$4:$DP$191,27,FALSE)","v":32678.876},{"$f":"VLOOKUP($A23,F1__World_Data!$A$4:$DP$191,26,FALSE)","v":31841.588},{"$f":"VLOOKUP($A23,F1__World_Data!$A$4:$DP$191,25,FALSE)","v":30993.761999999999},{"$f":"VLOOKUP($A23,F1__World_Data!$A$4:$DP$191,24,FALSE)","v":30150.448},{"$f":"VLOOKUP($A23,F1__World_Data!$A$4:$DP$191,23,FALSE)","v":29333.095000000001},{"$f":"VLOOKUP($A23,F1__World_Data!$A$4:$DP$191,22,FALSE)","v":28556.771000000001},{"$f":"VLOOKUP($A23,F1__World_Data!$A$4:$DP$191,21,FALSE)","v":27827.325000000001},{"$f":"VLOOKUP($A23,F1__World_Data!$A$4:$DP$191,20,FALSE)","v":27138.966},{"$f":"VLOOKUP($A23,F1__World_Data!$A$4:$DP$191,19,FALSE)","v":26480.915000000001},{"$f":"VLOOKUP($A23,F1__World_Data!$A$4:$DP$191,18,FALSE)","v":25836.89},{"$f":"VLOOKUP($A23,F1__World_Data!$A$4:$DP$191,17,FALSE)","v":25195.184000000001},{"$f":"VLOOKUP($A23,F1__World_Data!$A$4:$DP$191,16,FALSE)","v":24552.54},{"$f":"VLOOKUP($A23,F1__World_Data!$A$4:$DP$191,15,FALSE)","v":23913.09},{"$f":"VLOOKUP($A23,F1__World_Data!$A$4:$DP$191,14,FALSE)","v":23281.517},{"$f":"VLOOKUP($A23,F1__World_Data!$A$4:$DP$191,13,FALSE)","v":22665.264999999999},{"$f":"VLOOKUP($A23,F1__World_Data!$A$4:$DP$191,12,FALSE)","v":22069.782999999999},{"$f":"VLOOKUP($A23,F1__World_Data!$A$4:$DP$191,11,FALSE)","v":21496.075000000001},{"$f":"VLOOKUP($A23,F1__World_Data!$A$4:$DP$191,10,FALSE)","v":20942.147000000001},{"$f":"VLOOKUP($A23,F1__World_Data!$A$4:$DP$191,9,FALSE)","v":20406.863000000001},{"$f":"VLOOKUP($A23,F1__World_Data!$A$4:$DP$191,8,FALSE)","v":19888.258999999998},{"$f":"VLOOKUP($A23,F1__World_Data!$A$4:$DP$191,7,FALSE)","v":19384.838},{"$f":"VLOOKUP($A23,F1__World_Data!$A$4:$DP$191,6,FALSE)","v":18896.303},{"$f":"VLOOKUP($A23,F1__World_Data!$A$4:$DP$191,5,FALSE)","v":18423.156999999999},{"$f":"VLOOKUP($A23,F1__World_Data!$A$4:$DP$191,4,FALSE)","v":17965.733},{"$f":"VLOOKUP($A23,F1__World_Data!$A$4:$DP$191,3,FALSE)","v":17524.532999999999},{"$f":"VLOOKUP($A23,F1__World_Data!$A$4:$DP$191,2,FALSE)","v":17099.835999999999},null,{"$f":"VLOOKUP($A23,F1__World_Data!$A$4:$DP$191,120,FALSE)","v":68.116},{"$f":"VLOOKUP($A23,F1__World_Data!$A$4:$DP$191,119,FALSE)","v":67.850999999999999},{"$f":"VLOOKUP($A23,F1__World_Data!$A$4:$DP$191,118,FALSE)","v":67.576999999999998},{"$f":"VLOOKUP($A23,F1__World_Data!$A$4:$DP$191,117,FALSE)","v":67.290999999999997},{"$f":"VLOOKUP($A23,F1__World_Data!$A$4:$DP$191,116,FALSE)","v":66.995000000000005},{"$f":"VLOOKUP($A23,F1__World_Data!$A$4:$DP$191,115,FALSE)","v":66.69},{"$f":"VLOOKUP($A23,F1__World_Data!$A$4:$DP$191,114,FALSE)","v":66.381},{"$f":"VLOOKUP($A23,F1__World_Data!$A$4:$DP$191,113,FALSE)","v":66.072000000000003},{"$f":"VLOOKUP($A23,F1__World_Data!$A$4:$DP$191,112,FALSE)","v":65.769000000000005},{"$f":"VLOOKUP($A23,F1__World_Data!$A$4:$DP$191,111,FALSE)","v":65.48},{"$f":"VLOOKUP($A23,F1__World_Data!$A$4:$DP$191,110,FALSE)","v":65.207999999999998},{"$f":"VLOOKUP($A23,F1__World_Data!$A$4:$DP$191,109,FALSE)","v":64.953000000000003},{"$f":"VLOOKUP($A23,F1__World_Data!$A$4:$DP$191,108,FALSE)","v":64.712000000000003},{"$f":"VLOOKUP($A23,F1__World_Data!$A$4:$DP$191,107,FALSE)","v":64.477999999999994},{"$f":"VLOOKUP($A23,F1__World_Data!$A$4:$DP$191,106,FALSE)","v":64.242000000000004},{"$f":"VLOOKUP($A23,F1__World_Data!$A$4:$DP$191,105,FALSE)","v":63.994999999999997},{"$f":"VLOOKUP($A23,F1__World_Data!$A$4:$DP$191,104,FALSE)","v":63.731000000000002},{"$f":"VLOOKUP($A23,F1__World_Data!$A$4:$DP$191,103,FALSE)","v":63.445999999999998},{"$f":"VLOOKUP($A23,F1__World_Data!$A$4:$DP$191,102,FALSE)","v":63.143999999999998},{"$f":"VLOOKUP($A23,F1__World_Data!$A$4:$DP$191,101,FALSE)","v":62.829000000000001},{"$f":"VLOOKUP($A23,F1__World_Data!$A$4:$DP$191,100,FALSE)","v":62.509},{"$f":"VLOOKUP($A23,F1__World_Data!$A$4:$DP$191,99,FALSE)","v":62.188000000000002},{"$f":"VLOOKUP($A23,F1__World_Data!$A$4:$DP$191,98,FALSE)","v":61.866},{"$f":"VLOOKUP($A23,F1__World_Data!$A$4:$DP$191,97,FALSE)","v":61.539000000000001},{"$f":"VLOOKUP($A23,F1__World_Data!$A$4:$DP$191,96,FALSE)","v":61.198},{"$f":"VLOOKUP($A23,F1__World_Data!$A$4:$DP$191,95,FALSE)","v":60.837000000000003},{"$f":"VLOOKUP($A23,F1__World_Data!$A$4:$DP$191,94,FALSE)","v":60.454999999999998},{"$f":"VLOOKUP($A23,F1__World_Data!$A$4:$DP$191,93,FALSE)","v":60.052999999999997},{"$f":"VLOOKUP($A23,F1__World_Data!$A$4:$DP$191,92,FALSE)","v":59.636000000000003},{"$f":"VLOOKUP($A23,F1__World_Data!$A$4:$DP$191,91,FALSE)","v":59.209000000000003},{"$f":"VLOOKUP($A23,F1__World_Data!$A$4:$DP$191,90,FALSE)","v":58.783000000000001},{"$f":"VLOOKUP($A23,F1__World_Data!$A$4:$DP$191,89,FALSE)","v":58.366},{"$f":"VLOOKUP($A23,F1__World_Data!$A$4:$DP$191,88,FALSE)","v":57.962000000000003},{"$f":"VLOOKUP($A23,F1__World_Data!$A$4:$DP$191,87,FALSE)","v":57.579000000000001},{"$f":"VLOOKUP($A23,F1__World_Data!$A$4:$DP$191,86,FALSE)","v":57.220999999999997},{"$f":"VLOOKUP($A23,F1__World_Data!$A$4:$DP$191,85,FALSE)","v":56.886000000000003},{"$f":"VLOOKUP($A23,F1__World_Data!$A$4:$DP$191,84,FALSE)","v":56.569000000000003},{"$f":"VLOOKUP($A23,F1__World_Data!$A$4:$DP$191,83,FALSE)","v":56.265999999999998},{"$f":"VLOOKUP($A23,F1__World_Data!$A$4:$DP$191,82,FALSE)","v":55.970999999999997},{"$f":"VLOOKUP($A23,F1__World_Data!$A$4:$DP$191,81,FALSE)","v":55.679000000000002},{"$f":"VLOOKUP($A23,F1__World_Data!$A$4:$DP$191,80,FALSE)","v":55.381999999999998},{"$f":"VLOOKUP($A23,F1__World_Data!$A$4:$DP$191,79,FALSE)","v":55.073999999999998},{"$f":"VLOOKUP($A23,F1__World_Data!$A$4:$DP$191,78,FALSE)","v":54.747999999999998},{"$f":"VLOOKUP($A23,F1__World_Data!$A$4:$DP$191,77,FALSE)","v":54.399000000000001},{"$f":"VLOOKUP($A23,F1__World_Data!$A$4:$DP$191,76,FALSE)","v":54.027000000000001},{"$f":"VLOOKUP($A23,F1__World_Data!$A$4:$DP$191,75,FALSE)","v":53.633000000000003},{"$f":"VLOOKUP($A23,F1__World_Data!$A$4:$DP$191,74,FALSE)","v":53.218000000000004},52.781999999999996,52.323,51.837000000000003,51.326999999999998,50.795999999999999,50.25,49.697000000000003,49.145000000000003,48.600999999999999,48.070999999999998,{"$f":"VLOOKUP($A23,F1__World_Data!$A$4:$DP$191,63,FALSE)","v":47.557000000000002},{"$f":"VLOOKUP($A23,F1__World_Data!$A$4:$DP$191,62,FALSE)","v":47.061}]
["Myanmar",{"$f":"VLOOKUP($A24,F1__World_Data!$A$4:$DP$191,60,FALSE)","v":53708.317999999999},{"$f":"VLOOKUP($A24,F1__World_Data!$A$4:$DP$191,59,FALSE)","v":53382.521000000001},{"$f":"VLOOKUP($A24,F1__World_Data!$A$4:$DP$191,58,FALSE)","v":53045.199000000001},{"$f":"VLOOKUP($A24,F1__World_Data!$A$4:$DP$191,57,FALSE)","v":52680.724000000002},{"$f":"VLOOKUP($A24,F1__World_Data!$A$4:$DP$191,56,FALSE)","v":52280.815999999999},{"$f":"VLOOKUP($A24,F1__World_Data!$A$4:$DP$191,55,FALSE)","v":51852.464},{"$f":"VLOOKUP($A24,F1__World_Data!$A$4:$DP$191,54,FALSE)","v":51413.703000000001},{"$f":"VLOOKUP($A24,F1__World_Data!$A$4:$DP$191,53,FALSE)","v":50990.612000000001},{"$f":"VLOOKUP($A24,F1__World_Data!$A$4:$DP$191,52,FALSE)","v":50600.826999999997},{"$f":"VLOOKUP($A24,F1__World_Data!$A$4:$DP$191,51,FALSE)","v":50250.366000000002},{"$f":"VLOOKUP($A24,F1__World_Data!$A$4:$DP$191,50,FALSE)","v":49929.642},{"$f":"VLOOKUP($A24,F1__World_Data!$A$4:$DP$191,49,FALSE)","v":49621.478999999999},{"$f":"VLOOKUP($A24,F1__World_Data!$A$4:$DP$191,48,FALSE)","v":49301.048999999999},{"$f":"VLOOKUP($A24,F1__World_Data!$A$4:$DP$191,47,FALSE)","v":48949.930999999997},{"$f":"VLOOKUP($A24,F1__World_Data!$A$4:$DP$191,46,FALSE)","v":48564.489000000001},{"$f":"VLOOKUP($A24,F1__World_Data!$A$4:$DP$191,45,FALSE)","v":48148.906999999999},{"$f":"VLOOKUP($A24,F1__World_Data!$A$4:$DP$191,44,FALSE)","v":47702.163},{"$f":"VLOOKUP($A24,F1__World_Data!$A$4:$DP$191,43,FALSE)","v":47225.118999999999},{"$f":"VLOOKUP($A24,F1__World_Data!$A$4:$DP$191,42,FALSE)","v":46719.697999999997},{"$f":"VLOOKUP($A24,F1__World_Data!$A$4:$DP$191,41,FALSE)","v":46181.074999999997},{"$f":"VLOOKUP($A24,F1__World_Data!$A$4:$DP$191,40,FALSE)","v":45611.22},{"$f":"VLOOKUP($A24,F1__World_Data!$A$4:$DP$191,39,FALSE)","v":45027.222999999998},{"$f":"VLOOKUP($A24,F1__World_Data!$A$4:$DP$191,38,FALSE)","v":44452.203000000001},{"$f":"VLOOKUP($A24,F1__World_Data!$A$4:$DP$191,37,FALSE)","v":43901.597999999998},{"$f":"VLOOKUP($A24,F1__World_Data!$A$4:$DP$191,36,FALSE)","v":43383.421000000002},{"$f":"VLOOKUP($A24,F1__World_Data!$A$4:$DP$191,35,FALSE)","v":42889.991999999998},{"$f":"VLOOKUP($A24,F1__World_Data!$A$4:$DP$191,34,FALSE)","v":42401.686000000002},{"$f":"VLOOKUP($A24,F1__World_Data!$A$4:$DP$191,33,FALSE)","v":41890.192000000003},{"$f":"VLOOKUP($A24,F1__World_Data!$A$4:$DP$191,32,FALSE)","v":41335.188000000002},{"$f":"VLOOKUP($A24,F1__World_Data!$A$4:$DP$191,31,FALSE)","v":40731.438999999998},{"$f":"VLOOKUP($A24,F1__World_Data!$A$4:$DP$191,30,FALSE)","v":40085.652999999998},{"$f":"VLOOKUP($A24,F1__World_Data!$A$4:$DP$191,29,FALSE)","v":39404.35},{"$f":"VLOOKUP($A24,F1__World_Data!$A$4:$DP$191,28,FALSE)","v":38698.483999999997},{"$f":"VLOOKUP($A24,F1__World_Data!$A$4:$DP$191,27,FALSE)","v":37977.087},{"$f":"VLOOKUP($A24,F1__World_Data!$A$4:$DP$191,26,FALSE)","v":37241.53},{"$f":"VLOOKUP($A24,F1__World_Data!$A$4:$DP$191,25,FALSE)","v":36491.803999999996},{"$f":"VLOOKUP($A24,F1__World_Data!$A$4:$DP$191,24,FALSE)","v":35734.273000000001},{"$f":"VLOOKUP($A24,F1__World_Data!$A$4:$DP$191,23,FALSE)","v":34976.464999999997},{"$f":"VLOOKUP($A24,F1__World_Data!$A$4:$DP$191,22,FALSE)","v":34224.315999999999},{"$f":"VLOOKUP($A24,F1__World_Data!$A$4:$DP$191,21,FALSE)","v":33481.396999999997},{"$f":"VLOOKUP($A24,F1__World_Data!$A$4:$DP$191,20,FALSE)","v":32748.781999999999},{"$f":"VLOOKUP($A24,F1__World_Data!$A$4:$DP$191,19,FALSE)","v":32026.748},{"$f":"VLOOKUP($A24,F1__World_Data!$A$4:$DP$191,18,FALSE)","v":31314.347000000002},{"$f":"VLOOKUP($A24,F1__World_Data!$A$4:$DP$191,17,FALSE)","v":30611.093000000001},{"$f":"VLOOKUP($A24,F1__World_Data!$A$4:$DP$191,16,FALSE)","v":29918.469000000001},{"$f":"VLOOKUP($A24,F1__World_Data!$A$4:$DP$191,15,FALSE)","v":29238.168000000001},{"$f":"VLOOKUP($A24,F1__World_Data!$A$4:$DP$191,14,FALSE)","v":28570.093000000001},{"$f":"VLOOKUP($A24,F1__World_Data!$A$4:$DP$191,13,FALSE)","v":27913.749},{"$f":"VLOOKUP($A24,F1__World_Data!$A$4:$DP$191,12,FALSE)","v":27269.062999999998},{"$f":"VLOOKUP($A24,F1__World_Data!$A$4:$DP$191,11,FALSE)","v":26635.851999999999},{"$f":"VLOOKUP($A24,F1__World_Data!$A$4:$DP$191,10,FALSE)","v":26015.239000000001},{"$f":"VLOOKUP($A24,F1__World_Data!$A$4:$DP$191,9,FALSE)","v":25410.054},{"$f":"VLOOKUP($A24,F1__World_Data!$A$4:$DP$191,8,FALSE)","v":24823.937000000002},{"$f":"VLOOKUP($A24,F1__World_Data!$A$4:$DP$191,7,FALSE)","v":24259.356},{"$f":"VLOOKUP($A24,F1__World_Data!$A$4:$DP$191,6,FALSE)","v":23717.785},{"$f":"VLOOKUP($A24,F1__World_Data!$A$4:$DP$191,5,FALSE)","v":23198.238000000001},{"$f":"VLOOKUP($A24,F1__World_Data!$A$4:$DP$191,4,FALSE)","v":22697.664000000001},{"$f":"VLOOKUP($A24,F1__World_Data!$A$4:$DP$191,3,FALSE)","v":22211.626},{"$f":"VLOOKUP($A24,F1__World_Data!$A$4:$DP$191,2,FALSE)","v":21736.947},null,{"$f":"VLOOKUP($A24,F1__World_Data!$A$4:$DP$191,120,FALSE)","v":68.116},{"$f":"VLOOKUP($A24,F1__World_Data!$A$4:$DP$191,119,FALSE)","v":67.850999999999999},{"$f":"VLOOKUP($A24,F1__World_Data!$A$4:$DP$191,118,FALSE)","v":67.576999999999998},{"$f":"VLOOKUP($A24,F1__World_Data!$A$4:$DP$191,117,FALSE)","v":67.290999999999997},{"$f":"VLOOKUP($A24,F1__World_Data!$A$4:$DP$191,116,FALSE)","v":66.995000000000005},{"$f":"VLOOKUP($A24,F1__World_Data!$A$4:$DP$191,115,FALSE)","v":66.69},{"$f":"VLOOKUP($A24,F1__World_Data!$A$4:$DP$191,114,FALSE)","v":66.381},{"$f":"VLOOKUP($A24,F1__World_Data!$A$4:$DP$191,113,FALSE)","v":66.072000000000003},{"$f":"VLOOKUP($A24,F1__World_Data!$A$4:$DP$191,112,FALSE)","v":65.769000000000005},{"$f":"VLOOKUP($A24,F1__World_Data!$A$4:$DP$191,111,FALSE)","v":65.48},{"$f":"VLOOKUP($A24,F1__World_Data!$A$4:$DP$191,110,FALSE)","v":65.207999999999998},{"$f":"VLOOKUP($A24,F1__World_Data!$A$4:$DP$191,109,FALSE)","v":64.953000000000003},{"$f":"VLOOKUP($A24,F1__World_Data!$A$4:$DP$191,108,FALSE)","v":64.712000000000003},{"$f":"VLOOKUP($A24,F1__World_Data!$A$4:$DP$191,107,FALSE)","v":64.477999999999994},{"$f":"VLOOKUP($A24,F1__World_Data!$A$4:$DP$191,106,FALSE)","v":64.242000000000004},{"$f":"VLOOKUP($A24,F1__World_Data!$A$4:$DP$191,105,FALSE)","v":63.994999999999997},{"$f":"VLOOKUP($A24,F1__World_Data!$A$4:$DP$191,104,FALSE)","v":63.731000000000002},{"$f":"VLOOKUP($A24,F1__World_Data!$A$4:$DP$191,103,FALSE)","v":63.445999999999998},{"$f":"VLOOKUP($A24,F1__World_Data!$A$4:$DP$191,102,FALSE)","v":63.143999999999998},{"$f":"VLOOKUP($A24,F1__World_Data!$A$4:$DP$191,101,FALSE)","v":62.829000000000001},{"$f":"VLOOKUP($A24,F1__World_Data!$A$4:$DP$191,100,FALSE)","v":62.509},{"$f":"VLOOKUP($A24,F1__World_Data!$A$4:$DP$191,99,FALSE)","v":62.188000000000002},{"$f":"VLOOKUP($A24,F1__World_Data!$A$4:$DP$191,98,FALSE)","v":61.866},{"$f":"VLOOKUP($A24,F1__World_Data!$A$4:$DP$191,97,FALSE)","v":61.539000000000001},{"$f":"VLOOKUP($A24,F1__World_Data!$A$4:$DP$191,96,FALSE)","v":61.198},{"$f":"VLOOKUP($A24,F1__World_Data!$A$4:$DP$191,95,FALSE)","v":60.837000000000003},{"$f":"VLOOKUP($A24,F1__World_Data!$A$4:$DP$191,94,FALSE)","v":60.454999999999998},{"$f":"VLOOKUP($A24,F1__World_Data!$A$4:$DP$191,93,FALSE)","v":60.052999999999997},{"$f":"VLOOKUP($A24,F1__World_Data!$A$4:$DP$191,92,FALSE)","v":59.636000000000003},{"$f":"VLOOKUP($A24,F1__World_Data!$A$4:$DP$191,91,FALSE)","v":59.209000000000003},{"$f":"VLOOKUP($A24,F1__World_Data!$A$4:$DP$191,90,FALSE)","v":58.783000000000001},{"$f":"VLOOKUP($A24,F1__World_Data!$A$4:$DP$191,89,FALSE)","v":58.366},{"$f":"VLOOKUP($A24,F1__World_Data!$A$4:$DP$191,88,FALSE)","v":57.962000000000003},{"$f":"VLOOKUP($A24,F1__World_Data!$A$4:$DP$191,87,FALSE)","v":57.579000000000001},{"$f":"VLOOKUP($A24,F1__World_Data!$A$4:$DP$191,86,FALSE)","v":57.220999999999997},{"$f":"VLOOKUP($A24,F1__World_Data!$A$4:$DP$191,85,FALSE)","v":56.886000000000003},{"$f":"VLOOKUP($A24,F1__World_Data!$A$4:$DP$191,84,FALSE)","v":56.569000000000003},{"$f":"VLOOKUP($A24,F1__World_Data!$A$4:$DP$191,83,FALSE)","v":56.265999999999998},{"$f":"VLOOKUP($A24,F1__World_Data!$A$4:$DP$191,82,FALSE)","v":55.970999999999997},{"$f":"VLOOKUP($A24,F1__World_Data!$A$4:$DP$191,81,FALSE)","v":55.679000000000002},{"$f":"VLOOKUP($A24,F1__World_Data!$A$4:$DP$191,80,FALSE)","v":55.381999999999998},{"$f":"VLOOKUP($A24,F1__World_Data!$A$4:$DP$191,79,FALSE)","v":55.073999999999998},{"$f":"VLOOKUP($A24,F1__World_Data!$A$4:$DP$191,78,FALSE)","v":54.747999999999998},{"$f":"VLOOKUP($A24,F1__World_Data!$A$4:$DP$191,77,FALSE)","v":54.399000000000001},{"$f":"VLOOKUP($A24,F1__World_Data!$A$4:$DP$191,76,FALSE)","v":54.027000000000001},{"$f":"VLOOKUP($A24,F1__World_Data!$A$4:$DP$191,75,FALSE)","v":53.633000000000003},{"$f":"VLOOKUP($A24,F1__World_Data!$A$4:$DP$191,74,FALSE)","v":53.218000000000004},{"$f":"VLOOKUP($A24,F1__World_Data!$A$4:$DP$191,73,FALSE)","v":52.781999999999996},{"$f":"VLOOKUP($A24,F1__World_Data!$A$4:$DP$191,72,FALSE)","v":52.323},{"$f":"VLOOKUP($A24,F1__World_Data!$A$4:$DP$191,71,FALSE)","v":51.837000000000003},{"$f":"VLOOKUP($A24,F1__World_Data!$A$4:$DP$191,70,FALSE)","v":51.326999999999998},{"$f":"VLOOKUP($A24,F1__World_Data!$A$4:$DP$191,69,FALSE)","v":50.795999999999999},{"$f":"VLOOKUP($A24,F1__World_Data!$A$4:$DP$191,68,FALSE)","v":50.25},{"$f":"VLOOKUP($A24,F1__World_Data!$A$4:$DP$191,67,FALSE)","v":49.697000000000003},{"$f":"VLOOKUP($A24,F1__World_Data!$A$4:$DP$191,66,FALSE)","v":49.145000000000003},{"$f":"VLOOKUP($A24,F1__World_Data!$A$4:$DP$191,65,FALSE)","v":48.600999999999999},{"$f":"VLOOKUP($A24,F1__World_Data!$A$4:$DP$191,64,FALSE)","v":48.070999999999998},{"$f":"VLOOKUP($A24,F1__World_Data!$A$4:$DP$191,63,FALSE)","v":47.557000000000002},{"$f":"VLOOKUP($A24,F1__World_Data!$A$4:$DP$191,62,FALSE)","v":47.061}]
["Kenya",{"$f":"VLOOKUP($A25,F1__World_Data!$A$4:$DP$191,60,FALSE)","v":51392.57},{"$f":"VLOOKUP($A25,F1__World_Data!$A$4:$DP$191,59,FALSE)","v":50221.146000000001},{"$f":"VLOOKUP($A25,F1__World_Data!$A$4:$DP$191,58,FALSE)","v":49051.531000000003},{"$f":"VLOOKUP($A25,F1__World_Data!$A$4:$DP$191,57,FALSE)","v":47878.339},{"$f":"VLOOKUP($A25,F1__World_Data!$A$4:$DP$191,56,FALSE)","v":46700.063000000002},{"$f":"VLOOKUP($A25,F1__World_Data!$A$4:$DP$191,55,FALSE)","v":45519.985999999997},{"$f":"VLOOKUP($A25,F1__World_Data!$A$4:$DP$191,54,FALSE)","v":44343.468999999997},{"$f":"VLOOKUP($A25,F1__World_Data!$A$4:$DP$191,53,FALSE)","v":43178.27},{"$f":"VLOOKUP($A25,F1__World_Data!$A$4:$DP$191,52,FALSE)","v":42030.684000000001},{"$f":"VLOOKUP($A25,F1__World_Data!$A$4:$DP$191,51,FALSE)","v":40901.798000000003},{"$f":"VLOOKUP($A25,F1__World_Data!$A$4:$DP$191,50,FALSE)","v":39791.983999999997},{"$f":"VLOOKUP($A25,F1__World_Data!$A$4:$DP$191,49,FALSE)","v":38705.934000000001},{"$f":"VLOOKUP($A25,F1__World_Data!$A$4:$DP$191,48,FALSE)","v":37649.038999999997},{"$f":"VLOOKUP($A25,F1__World_Data!$A$4:$DP$191,47,FALSE)","v":36624.896999999997},{"$f":"VLOOKUP($A25,F1__World_Data!$A$4:$DP$191,46,FALSE)","v":35635.267},{"$f":"VLOOKUP($A25,F1__World_Data!$A$4:$DP$191,45,FALSE)","v":34678.781000000003},{"$f":"VLOOKUP($A25,F1__World_Data!$A$4:$DP$191,44,FALSE)","v":33751.745999999999},{"$f":"VLOOKUP($A25,F1__World_Data!$A$4:$DP$191,43,FALSE)","v":32848.569000000003},{"$f":"VLOOKUP($A25,F1__World_Data!$A$4:$DP$191,42,FALSE)","v":31964.557000000001},{"$f":"VLOOKUP($A25,F1__World_Data!$A$4:$DP$191,41,FALSE)","v":31098.762999999999},{"$f":"VLOOKUP($A25,F1__World_Data!$A$4:$DP$191,40,FALSE)","v":30250.488000000001},{"$f":"VLOOKUP($A25,F1__World_Data!$A$4:$DP$191,39,FALSE)","v":29415.66},{"$f":"VLOOKUP($A25,F1__World_Data!$A$4:$DP$191,38,FALSE)","v":28589.455999999998},{"$f":"VLOOKUP($A25,F1__World_Data!$A$4:$DP$191,37,FALSE)","v":27768.296999999999},{"$f":"VLOOKUP($A25,F1__World_Data!$A$4:$DP$191,36,FALSE)","v":26950.508000000002},{"$f":"VLOOKUP($A25,F1__World_Data!$A$4:$DP$191,35,FALSE)","v":26136.217000000001},{"$f":"VLOOKUP($A25,F1__World_Data!$A$4:$DP$191,34,FALSE)","v":25326.080000000002},{"$f":"VLOOKUP($A25,F1__World_Data!$A$4:$DP$191,33,FALSE)","v":24521.714},{"$f":"VLOOKUP($A25,F1__World_Data!$A$4:$DP$191,32,FALSE)","v":23724.574000000001},{"$f":"VLOOKUP($A25,F1__World_Data!$A$4:$DP$191,31,FALSE)","v":22935.088},{"$f":"VLOOKUP($A25,F1__World_Data!$A$4:$DP$191,30,FALSE)","v":22153.685000000001},{"$f":"VLOOKUP($A25,F1__World_Data!$A$4:$DP$191,29,FALSE)","v":21382.111000000001},{"$f":"VLOOKUP($A25,F1__World_Data!$A$4:$DP$191,28,FALSE)","v":20622.560000000001},{"$f":"VLOOKUP($A25,F1__World_Data!$A$4:$DP$191,27,FALSE)","v":19877.078000000001},{"$f":"VLOOKUP($A25,F1__World_Data!$A$4:$DP$191,26,FALSE)","v":19146.402999999998},{"$f":"VLOOKUP($A25,F1__World_Data!$A$4:$DP$191,25,FALSE)","v":18431.759999999998},{"$f":"VLOOKUP($A25,F1__World_Data!$A$4:$DP$191,24,FALSE)","v":17736.326000000001},{"$f":"VLOOKUP($A25,F1__World_Data!$A$4:$DP$191,23,FALSE)","v":17063.87},{"$f":"VLOOKUP($A25,F1__World_Data!$A$4:$DP$191,22,FALSE)","v":16417.203000000001},{"$f":"VLOOKUP($A25,F1__World_Data!$A$4:$DP$191,21,FALSE)","v":15797.771000000001},{"$f":"VLOOKUP($A25,F1__World_Data!$A$4:$DP$191,20,FALSE)","v":15205.380999999999},{"$f":"VLOOKUP($A25,F1__World_Data!$A$4:$DP$191,19,FALSE)","v":14638.887000000001},{"$f":"VLOOKUP($A25,F1__World_Data!$A$4:$DP$191,18,FALSE)","v":14096.258},{"$f":"VLOOKUP($A25,F1__World_Data!$A$4:$DP$191,17,FALSE)","v":13575.897999999999},{"$f":"VLOOKUP($A25,F1__World_Data!$A$4:$DP$191,16,FALSE)","v":13077.341},{"$f":"VLOOKUP($A25,F1__World_Data!$A$4:$DP$191,15,FALSE)","v":12600.799000000001},{"$f":"VLOOKUP($A25,F1__World_Data!$A$4:$DP$191,14,FALSE)","v":12146.07},{"$f":"VLOOKUP($A25,F1__World_Data!$A$4:$DP$191,13,FALSE)","v":11713.046},{"$f":"VLOOKUP($A25,F1__World_Data!$A$4:$DP$191,12,FALSE)","v":11301.394},{"$f":"VLOOKUP($A25,F1__World_Data!$A$4:$DP$191,11,FALSE)","v":10910.677},{"$f":"VLOOKUP($A25,F1__World_Data!$A$4:$DP$191,10,FALSE)","v":10539.909},{"$f":"VLOOKUP($A25,F1__World_Data!$A$4:$DP$191,9,FALSE)","v":10187.486999999999},{"$f":"VLOOKUP($A25,F1__World_Data!$A$4:$DP$191,8,FALSE)","v":9851.4529999999995},{"$f":"VLOOKUP($A25,F1__World_Data!$A$4:$DP$191,7,FALSE)","v":9530.1630000000005},{"$f":"VLOOKUP($A25,F1__World_Data!$A$4:$DP$191,6,FALSE)","v":9222.6919999999991},{"$f":"VLOOKUP($A25,F1__World_Data!$A$4:$DP$191,5,FALSE)","v":8928.51},{"$f":"VLOOKUP($A25,F1__World_Data!$A$4:$DP$191,4,FALSE)","v":8647.0020000000004},{"$f":"VLOOKUP($A25,F1__World_Data!$A$4:$DP$191,3,FALSE)","v":8377.6929999999993},{"$f":"VLOOKUP($A25,F1__World_Data!$A$4:$DP$191,2,FALSE)","v":8120.0820000000003},null,{"$f":"VLOOKUP($A25,F1__World_Data!$A$4:$DP$191,120,FALSE)","v":66.341999999999999},{"$f":"VLOOKUP($A25,F1__World_Data!$A$4:$DP$191,119,FALSE)","v":65.909000000000006},{"$f":"VLOOKUP($A25,F1__World_Data!$A$4:$DP$191,118,FALSE)","v":65.393000000000001},{"$f":"VLOOKUP($A25,F1__World_Data!$A$4:$DP$191,117,FALSE)","v":64.798000000000002},{"$f":"VLOOKUP($A25,F1__World_Data!$A$4:$DP$191,116,FALSE)","v":64.135000000000005},{"$f":"VLOOKUP($A25,F1__World_Data!$A$4:$DP$191,115,FALSE)","v":63.418999999999997},{"$f":"VLOOKUP($A25,F1__World_Data!$A$4:$DP$191,114,FALSE)","v":62.658999999999999},{"$f":"VLOOKUP($A25,F1__World_Data!$A$4:$DP$191,113,FALSE)","v":61.850999999999999},{"$f":"VLOOKUP($A25,F1__World_Data!$A$4:$DP$191,112,FALSE)","v":60.959000000000003},{"$f":"VLOOKUP($A25,F1__World_Data!$A$4:$DP$191,111,FALSE)","v":59.932000000000002},{"$f":"VLOOKUP($A25,F1__World_Data!$A$4:$DP$191,110,FALSE)","v":58.76},{"$f":"VLOOKUP($A25,F1__World_Data!$A$4:$DP$191,109,FALSE)","v":57.463000000000001},{"$f":"VLOOKUP($A25,F1__World_Data!$A$4:$DP$191,108,FALSE)","v":56.093000000000004},{"$f":"VLOOKUP($A25,F1__World_Data!$A$4:$DP$191,107,FALSE)","v":54.731999999999999},{"$f":"VLOOKUP($A25,F1__World_Data!$A$4:$DP$191,106,FALSE)","v":53.475000000000001},{"$f":"VLOOKUP($A25,F1__World_Data!$A$4:$DP$191,105,FALSE)","v":52.41},{"$f":"VLOOKUP($A25,F1__World_Data!$A$4:$DP$191,104,FALSE)","v":51.606000000000002},{"$f":"VLOOKUP($A25,F1__World_Data!$A$4:$DP$191,103,FALSE)","v":51.100999999999999},{"$f":"VLOOKUP($A25,F1__World_Data!$A$4:$DP$191,102,FALSE)","v":50.920999999999999},{"$f":"VLOOKUP($A25,F1__World_Data!$A$4:$DP$191,101,FALSE)","v":51.058999999999997},{"$f":"VLOOKUP($A25,F1__World_Data!$A$4:$DP$191,100,FALSE)","v":51.448},{"$f":"VLOOKUP($A25,F1__World_Data!$A$4:$DP$191,99,FALSE)","v":52.014000000000003},{"$f":"VLOOKUP($A25,F1__World_Data!$A$4:$DP$191,98,FALSE)","v":52.709000000000003},{"$f":"VLOOKUP($A25,F1__World_Data!$A$4:$DP$191,97,FALSE)","v":53.485999999999997},{"$f":"VLOOKUP($A25,F1__World_Data!$A$4:$DP$191,96,FALSE)","v":54.31},{"$f":"VLOOKUP($A25,F1__World_Data!$A$4:$DP$191,95,FALSE)","v":55.151000000000003},{"$f":"VLOOKUP($A25,F1__World_Data!$A$4:$DP$191,94,FALSE)","v":55.972999999999999},{"$f":"VLOOKUP($A25,F1__World_Data!$A$4:$DP$191,93,FALSE)","v":56.735999999999997},{"$f":"VLOOKUP($A25,F1__World_Data!$A$4:$DP$191,92,FALSE)","v":57.405999999999999},{"$f":"VLOOKUP($A25,F1__World_Data!$A$4:$DP$191,91,FALSE)","v":57.966999999999999},{"$f":"VLOOKUP($A25,F1__World_Data!$A$4:$DP$191,90,FALSE)","v":58.421999999999997},{"$f":"VLOOKUP($A25,F1__World_Data!$A$4:$DP$191,89,FALSE)","v":58.773000000000003},{"$f":"VLOOKUP($A25,F1__World_Data!$A$4:$DP$191,88,FALSE)","v":59.01},{"$f":"VLOOKUP($A25,F1__World_Data!$A$4:$DP$191,87,FALSE)","v":59.12},{"$f":"VLOOKUP($A25,F1__World_Data!$A$4:$DP$191,86,FALSE)","v":59.093000000000004},{"$f":"VLOOKUP($A25,F1__World_Data!$A$4:$DP$191,85,FALSE)","v":58.94},{"$f":"VLOOKUP($A25,F1__World_Data!$A$4:$DP$191,84,FALSE)","v":58.676000000000002},{"$f":"VLOOKUP($A25,F1__World_Data!$A$4:$DP$191,83,FALSE)","v":58.316000000000003},{"$f":"VLOOKUP($A25,F1__World_Data!$A$4:$DP$191,82,FALSE)","v":57.881},{"$f":"VLOOKUP($A25,F1__World_Data!$A$4:$DP$191,81,FALSE)","v":57.393000000000001},{"$f":"VLOOKUP($A25,F1__World_Data!$A$4:$DP$191,80,FALSE)","v":56.872},{"$f":"VLOOKUP($A25,F1__World_Data!$A$4:$DP$191,79,FALSE)","v":56.337000000000003},{"$f":"VLOOKUP($A25,F1__World_Data!$A$4:$DP$191,78,FALSE)","v":55.802},{"$f":"VLOOKUP($A25,F1__World_Data!$A$4:$DP$191,77,FALSE)","v":55.273000000000003},{"$f":"VLOOKUP($A25,F1__World_Data!$A$4:$DP$191,76,FALSE)","v":54.749000000000002},{"$f":"VLOOKUP($A25,F1__World_Data!$A$4:$DP$191,75,FALSE)","v":54.218000000000004},{"$f":"VLOOKUP($A25,F1__World_Data!$A$4:$DP$191,74,FALSE)","v":53.673999999999999},{"$f":"VLOOKUP($A25,F1__World_Data!$A$4:$DP$191,73,FALSE)","v":53.118000000000002},{"$f":"VLOOKUP($A25,F1__World_Data!$A$4:$DP$191,72,FALSE)","v":52.557000000000002},{"$f":"VLOOKUP($A25,F1__World_Data!$A$4:$DP$191,71,FALSE)","v":51.997999999999998},{"$f":"VLOOKUP($A25,F1__World_Data!$A$4:$DP$191,70,FALSE)","v":51.445999999999998},{"$f":"VLOOKUP($A25,F1__World_Data!$A$4:$DP$191,69,FALSE)","v":50.902000000000001},{"$f":"VLOOKUP($A25,F1__World_Data!$A$4:$DP$191,68,FALSE)","v":50.363999999999997},{"$f":"VLOOKUP($A25,F1__World_Data!$A$4:$DP$191,67,FALSE)","v":49.820999999999998},{"$f":"VLOOKUP($A25,F1__World_Data!$A$4:$DP$191,66,FALSE)","v":49.261000000000003},{"$f":"VLOOKUP($A25,F1__World_Data!$A$4:$DP$191,65,FALSE)","v":48.673999999999999},{"$f":"VLOOKUP($A25,F1__World_Data!$A$4:$DP$191,64,FALSE)","v":48.058},{"$f":"VLOOKUP($A25,F1__World_Data!$A$4:$DP$191,63,FALSE)","v":47.417000000000002},{"$f":"VLOOKUP($A25,F1__World_Data!$A$4:$DP$191,62,FALSE)","v":46.76}]
["Republic of Korea",{"$f":"VLOOKUP($A26,F1__World_Data!$A$4:$DP$191,60,FALSE)","v":51171.7},{"$f":"VLOOKUP($A26,F1__World_Data!$A$4:$DP$191,59,FALSE)","v":51096.408000000003},{"$f":"VLOOKUP($A26,F1__World_Data!$A$4:$DP$191,58,FALSE)","v":50983.446000000004},{"$f":"VLOOKUP($A26,F1__World_Data!$A$4:$DP$191,57,FALSE)","v":50823.087},{"$f":"VLOOKUP($A26,F1__World_Data!$A$4:$DP$191,56,FALSE)","v":50607.904000000002},{"$f":"VLOOKUP($A26,F1__World_Data!$A$4:$DP$191,55,FALSE)","v":50345.72},{"$f":"VLOOKUP($A26,F1__World_Data!$A$4:$DP$191,54,FALSE)","v":50060.639000000003},{"$f":"VLOOKUP($A26,F1__World_Data!$A$4:$DP$191,53,FALSE)","v":49786.152999999998},{"$f":"VLOOKUP($A26,F1__World_Data!$A$4:$DP$191,52,FALSE)","v":49545.637999999999},{"$f":"VLOOKUP($A26,F1__World_Data!$A$4:$DP$191,51,FALSE)","v":49347.45},{"$f":"VLOOKUP($A26,F1__World_Data!$A$4:$DP$191,50,FALSE)","v":49182.457999999999},{"$f":"VLOOKUP($A26,F1__World_Data!$A$4:$DP$191,49,FALSE)","v":49034.813000000002},{"$f":"VLOOKUP($A26,F1__World_Data!$A$4:$DP$191,48,FALSE)","v":48880.449000000001},{"$f":"VLOOKUP($A26,F1__World_Data!$A$4:$DP$191,47,FALSE)","v":48701.069000000003},{"$f":"VLOOKUP($A26,F1__World_Data!$A$4:$DP$191,46,FALSE)","v":48493.434000000001},{"$f":"VLOOKUP($A26,F1__World_Data!$A$4:$DP$191,45,FALSE)","v":48260.900999999998},{"$f":"VLOOKUP($A26,F1__World_Data!$A$4:$DP$191,44,FALSE)","v":47999.550999999999},{"$f":"VLOOKUP($A26,F1__World_Data!$A$4:$DP$191,43,FALSE)","v":47706.226000000002},{"$f":"VLOOKUP($A26,F1__World_Data!$A$4:$DP$191,42,FALSE)","v":47379.237000000001},{"$f":"VLOOKUP($A26,F1__World_Data!$A$4:$DP$191,41,FALSE)","v":47016.951999999997},{"$f":"VLOOKUP($A26,F1__World_Data!$A$4:$DP$191,40,FALSE)","v":46620.697999999997},{"$f":"VLOOKUP($A26,F1__World_Data!$A$4:$DP$191,39,FALSE)","v":46196.055999999997},{"$f":"VLOOKUP($A26,F1__World_Data!$A$4:$DP$191,38,FALSE)","v":45751.023000000001},{"$f":"VLOOKUP($A26,F1__World_Data!$A$4:$DP$191,37,FALSE)","v":45292.521000000001},{"$f":"VLOOKUP($A26,F1__World_Data!$A$4:$DP$191,36,FALSE)","v":44820.07},{"$f":"VLOOKUP($A26,F1__World_Data!$A$4:$DP$191,35,FALSE)","v":44335.036999999997},{"$f":"VLOOKUP($A26,F1__World_Data!$A$4:$DP$191,34,FALSE)","v":43848.222999999998},{"$f":"VLOOKUP($A26,F1__World_Data!$A$4:$DP$191,33,FALSE)","v":43373.148000000001},{"$f":"VLOOKUP($A26,F1__World_Data!$A$4:$DP$191,32,FALSE)","v":42918.415999999997},{"$f":"VLOOKUP($A26,F1__World_Data!$A$4:$DP$191,31,FALSE)","v":42491.199999999997},{"$f":"VLOOKUP($A26,F1__World_Data!$A$4:$DP$191,30,FALSE)","v":42086.667999999998},{"$f":"VLOOKUP($A26,F1__World_Data!$A$4:$DP$191,29,FALSE)","v":41686.565999999999},{"$f":"VLOOKUP($A26,F1__World_Data!$A$4:$DP$191,28,FALSE)","v":41265.123},{"$f":"VLOOKUP($A26,F1__World_Data!$A$4:$DP$191,27,FALSE)","v":40804.406000000003},{"$f":"VLOOKUP($A26,F1__World_Data!$A$4:$DP$191,26,FALSE)","v":40296.230000000003},{"$f":"VLOOKUP($A26,F1__World_Data!$A$4:$DP$191,25,FALSE)","v":39747.794000000002},{"$f":"VLOOKUP($A26,F1__World_Data!$A$4:$DP$191,24,FALSE)","v":39175.220999999998},{"$f":"VLOOKUP($A26,F1__World_Data!$A$4:$DP$191,23,FALSE)","v":38602.286999999997},{"$f":"VLOOKUP($A26,F1__World_Data!$A$4:$DP$191,22,FALSE)","v":38045.605000000003},{"$f":"VLOOKUP($A26,F1__World_Data!$A$4:$DP$191,21,FALSE)","v":37511.303},{"$f":"VLOOKUP($A26,F1__World_Data!$A$4:$DP$191,20,FALSE)","v":36992.188000000002},{"$f":"VLOOKUP($A26,F1__World_Data!$A$4:$DP$191,19,FALSE)","v":36475.425000000003},{"$f":"VLOOKUP($A26,F1__World_Data!$A$4:$DP$191,18,FALSE)","v":35942.033000000003},{"$f":"VLOOKUP($A26,F1__World_Data!$A$4:$DP$191,17,FALSE)","v":35378.656999999999},{"$f":"VLOOKUP($A26,F1__World_Data!$A$4:$DP$191,16,FALSE)","v":34780.885999999999},{"$f":"VLOOKUP($A26,F1__World_Data!$A$4:$DP$191,15,FALSE)","v":34154.091},{"$f":"VLOOKUP($A26,F1__World_Data!$A$4:$DP$191,14,FALSE)","v":33506.521999999997},{"$f":"VLOOKUP($A26,F1__World_Data!$A$4:$DP$191,13,FALSE)","v":32850.724999999999},{"$f":"VLOOKUP($A26,F1__World_Data!$A$4:$DP$191,12,FALSE)","v":32195.679},{"$f":"VLOOKUP($A26,F1__World_Data!$A$4:$DP$191,11,FALSE)","v":31543.830999999998},{"$f":"VLOOKUP($A26,F1__World_Data!$A$4:$DP$191,10,FALSE)","v":30891.968000000001},{"$f":"VLOOKUP($A26,F1__World_Data!$A$4:$DP$191,9,FALSE)","v":30236.690999999999},{"$f":"VLOOKUP($A26,F1__World_Data!$A$4:$DP$191,8,FALSE)","v":29572.554},{"$f":"VLOOKUP($A26,F1__World_Data!$A$4:$DP$191,7,FALSE)","v":28895.557000000001},{"$f":"VLOOKUP($A26,F1__World_Data!$A$4:$DP$191,6,FALSE)","v":28209.737000000001},{"$f":"VLOOKUP($A26,F1__World_Data!$A$4:$DP$191,5,FALSE)","v":27517.54},{"$f":"VLOOKUP($A26,F1__World_Data!$A$4:$DP$191,4,FALSE)","v":26812.083999999999},{"$f":"VLOOKUP($A26,F1__World_Data!$A$4:$DP$191,3,FALSE)","v":26084.025000000001},{"$f":"VLOOKUP($A26,F1__World_Data!$A$4:$DP$191,2,FALSE)","v":25329.521000000001},null,{"$f":"VLOOKUP($A26,F1__World_Data!$A$4:$DP$191,120,FALSE)","v":68.116},{"$f":"VLOOKUP($A26,F1__World_Data!$A$4:$DP$191,119,FALSE)","v":67.850999999999999},{"$f":"VLOOKUP($A26,F1__World_Data!$A$4:$DP$191,118,FALSE)","v":67.576999999999998},{"$f":"VLOOKUP($A26,F1__World_Data!$A$4:$DP$191,117,FALSE)","v":67.290999999999997},{"$f":"VLOOKUP($A26,F1__World_Data!$A$4:$DP$191,116,FALSE)","v":66.995000000000005},{"$f":"VLOOKUP($A26,F1__World_Data!$A$4:$DP$191,115,FALSE)","v":66.69},{"$f":"VLOOKUP($A26,F1__World_Data!$A$4:$DP$191,114,FALSE)","v":66.381},{"$f":"VLOOKUP($A26,F1__World_Data!$A$4:$DP$191,113,FALSE)","v":66.072000000000003},{"$f":"VLOOKUP($A26,F1__World_Data!$A$4:$DP$191,112,FALSE)","v":65.769000000000005},{"$f":"VLOOKUP($A26,F1__World_Data!$A$4:$DP$191,111,FALSE)","v":65.48},{"$f":"VLOOKUP($A26,F1__World_Data!$A$4:$DP$191,110,FALSE)","v":65.207999999999998},{"$f":"VLOOKUP($A26,F1__World_Data!$A$4:$DP$191,109,FALSE)","v":64.953000000000003},{"$f":"VLOOKUP($A26,F1__World_Data!$A$4:$DP$191,108,FALSE)","v":64.712000000000003},{"$f":"VLOOKUP($A26,F1__World_Data!$A$4:$DP$191,107,FALSE)","v":64.477999999999994},{"$f":"VLOOKUP($A26,F1__World_Data!$A$4:$DP$191,106,FALSE)","v":64.242000000000004},{"$f":"VLOOKUP($A26,F1__World_Data!$A$4:$DP$191,105,FALSE)","v":63.994999999999997},{"$f":"VLOOKUP($A26,F1__World_Data!$A$4:$DP$191,104,FALSE)","v":63.731000000000002},{"$f":"VLOOKUP($A26,F1__World_Data!$A$4:$DP$191,103,FALSE)","v":63.445999999999998},{"$f":"VLOOKUP($A26,F1__World_Data!$A$4:$DP$191,102,FALSE)","v":63.143999999999998},{"$f":"VLOOKUP($A26,F1__World_Data!$A$4:$DP$191,101,FALSE)","v":62.829000000000001},{"$f":"VLOOKUP($A26,F1__World_Data!$A$4:$DP$191,100,FALSE)","v":62.509},{"$f":"VLOOKUP($A26,F1__World_Data!$A$4:$DP$191,99,FALSE)","v":62.188000000000002},{"$f":"VLOOKUP($A26,F1__World_Data!$A$4:$DP$191,98,FALSE)","v":61.866},{"$f":"VLOOKUP($A26,F1__World_Data!$A$4:$DP$191,97,FALSE)","v":61.539000000000001},{"$f":"VLOOKUP($A26,F1__World_Data!$A$4:$DP$191,96,FALSE)","v":61.198},{"$f":"VLOOKUP($A26,F1__World_Data!$A$4:$DP$191,95,FALSE)","v":60.837000000000003},{"$f":"VLOOKUP($A26,F1__World_Data!$A$4:$DP$191,94,FALSE)","v":60.454999999999998},{"$f":"VLOOKUP($A26,F1__World_Data!$A$4:$DP$191,93,FALSE)","v":60.052999999999997},{"$f":"VLOOKUP($A26,F1__World_Data!$A$4:$DP$191,92,FALSE)","v":59.636000000000003},{"$f":"VLOOKUP($A26,F1__World_Data!$A$4:$DP$191,91,FALSE)","v":59.209000000000003},{"$f":"VLOOKUP($A26,F1__World_Data!$A$4:$DP$191,90,FALSE)","v":58.783000000000001},{"$f":"VLOOKUP($A26,F1__World_Data!$A$4:$DP$191,89,FALSE)","v":58.366},{"$f":"VLOOKUP($A26,F1__World_Data!$A$4:$DP$191,88,FALSE)","v":57.962000000000003},{"$f":"VLOOKUP($A26,F1__World_Data!$A$4:$DP$191,87,FALSE)","v":57.579000000000001},{"$f":"VLOOKUP($A26,F1__World_Data!$A$4:$DP$191,86,FALSE)","v":57.220999999999997},{"$f":"VLOOKUP($A26,F1__World_Data!$A$4:$DP$191,85,FALSE)","v":56.886000000000003},{"$f":"VLOOKUP($A26,F1__World_Data!$A$4:$DP$191,84,FALSE)","v":56.569000000000003},{"$f":"VLOOKUP($A26,F1__World_Data!$A$4:$DP$191,83,FALSE)","v":56.265999999999998},{"$f":"VLOOKUP($A26,F1__World_Data!$A$4:$DP$191,82,FALSE)","v":55.970999999999997},{"$f":"VLOOKUP($A26,F1__World_Data!$A$4:$DP$191,81,FALSE)","v":55.679000000000002},{"$f":"VLOOKUP($A26,F1__World_Data!$A$4:$DP$191,80,FALSE)","v":55.381999999999998},{"$f":"VLOOKUP($A26,F1__World_Data!$A$4:$DP$191,79,FALSE)","v":55.073999999999998},{"$f":"VLOOKUP($A26,F1__World_Data!$A$4:$DP$191,78,FALSE)","v":54.747999999999998},{"$f":"VLOOKUP($A26,F1__World_Data!$A$4:$DP$191,77,FALSE)","v":54.399000000000001},{"$f":"VLOOKUP($A26,F1__World_Data!$A$4:$DP$191,76,FALSE)","v":54.027000000000001},{"$f":"VLOOKUP($A26,F1__World_Data!$A$4:$DP$191,75,FALSE)","v":53.633000000000003},{"$f":"VLOOKUP($A26,F1__World_Data!$A$4:$DP$191,74,FALSE)","v":53.218000000000004},{"$f":"VLOOKUP($A26,F1__World_Data!$A$4:$DP$191,73,FALSE)","v":52.781999999999996},{"$f":"VLOOKUP($A26,F1__World_Data!$A$4:$DP$191,72,FALSE)","v":52.323},{"$f":"VLOOKUP($A26,F1__World_Data!$A$4:$DP$191,71,FALSE)","v":51.837000000000003},{"$f":"VLOOKUP($A26,F1__World_Data!$A$4:$DP$191,70,FALSE)","v":51.326999999999998},{"$f":"VLOOKUP($A26,F1__World_Data!$A$4:$DP$191,69,FALSE)","v":50.795999999999999},{"$f":"VLOOKUP($A26,F1__World_Data!$A$4:$DP$191,68,FALSE)","v":50.25},{"$f":"VLOOKUP($A26,F1__World_Data!$A$4:$DP$191,67,FALSE)","v":49.697000000000003},{"$f":"VLOOKUP($A26,F1__World_Data!$A$4:$DP$191,66,FALSE)","v":49.145000000000003},{"$f":"VLOOKUP($A26,F1__World_Data!$A$4:$DP$191,65,FALSE)","v":48.600999999999999},{"$f":"VLOOKUP($A26,F1__World_Data!$A$4:$DP$191,64,FALSE)","v":48.070999999999998},{"$f":"VLOOKUP($A26,F1__World_Data!$A$4:$DP$191,63,FALSE)","v":47.557000000000002},{"$f":"VLOOKUP($A26,F1__World_Data!$A$4:$DP$191,62,FALSE)","v":47.061}]
["Colombia",{"$f":"VLOOKUP($A27,F1__World_Data!$A$4:$DP$191,60,FALSE)","v":49661.055999999997},{"$f":"VLOOKUP($A27,F1__World_Data!$A$4:$DP$191,59,FALSE)","v":48909.843999999997},{"$f":"VLOOKUP($A27,F1__World_Data!$A$4:$DP$191,58,FALSE)","v":48175.048000000003},{"$f":"VLOOKUP($A27,F1__World_Data!$A$4:$DP$191,57,FALSE)","v":47520.667000000001},{"$f":"VLOOKUP($A27,F1__World_Data!$A$4:$DP$191,56,FALSE)","v":46967.705999999998},{"$f":"VLOOKUP($A27,F1__World_Data!$A$4:$DP$191,55,FALSE)","v":46495.491999999998},{"$f":"VLOOKUP($A27,F1__World_Data!$A$4:$DP$191,54,FALSE)","v":46075.720999999998},{"$f":"VLOOKUP($A27,F1__World_Data!$A$4:$DP$191,53,FALSE)","v":45662.747000000003},{"$f":"VLOOKUP($A27,F1__World_Data!$A$4:$DP$191,52,FALSE)","v":45222.699000000001},{"$f":"VLOOKUP($A27,F1__World_Data!$A$4:$DP$191,51,FALSE)","v":44750.053999999996},{"$f":"VLOOKUP($A27,F1__World_Data!$A$4:$DP$191,50,FALSE)","v":44254.972000000002},{"$f":"VLOOKUP($A27,F1__World_Data!$A$4:$DP$191,49,FALSE)","v":43737.512000000002},{"$f":"VLOOKUP($A27,F1__World_Data!$A$4:$DP$191,48,FALSE)","v":43200.900999999998},{"$f":"VLOOKUP($A27,F1__World_Data!$A$4:$DP$191,47,FALSE)","v":42647.731},{"$f":"VLOOKUP($A27,F1__World_Data!$A$4:$DP$191,46,FALSE)","v":42075.953000000001},{"$f":"VLOOKUP($A27,F1__World_Data!$A$4:$DP$191,45,FALSE)","v":41483.872000000003},{"$f":"VLOOKUP($A27,F1__World_Data!$A$4:$DP$191,44,FALSE)","v":40875.362999999998},{"$f":"VLOOKUP($A27,F1__World_Data!$A$4:$DP$191,43,FALSE)","v":40255.955999999998},{"$f":"VLOOKUP($A27,F1__World_Data!$A$4:$DP$191,42,FALSE)","v":39629.964999999997},{"$f":"VLOOKUP($A27,F1__World_Data!$A$4:$DP$191,41,FALSE)","v":38999.468000000001},{"$f":"VLOOKUP($A27,F1__World_Data!$A$4:$DP$191,40,FALSE)","v":38364.307000000001},{"$f":"VLOOKUP($A27,F1__World_Data!$A$4:$DP$191,39,FALSE)","v":37723.803},{"$f":"VLOOKUP($A27,F1__World_Data!$A$4:$DP$191,38,FALSE)","v":37076.387000000002},{"$f":"VLOOKUP($A27,F1__World_Data!$A$4:$DP$191,37,FALSE)","v":36421.438000000002},{"$f":"VLOOKUP($A27,F1__World_Data!$A$4:$DP$191,36,FALSE)","v":35758.978000000003},{"$f":"VLOOKUP($A27,F1__World_Data!$A$4:$DP$191,35,FALSE)","v":35091.271999999997},{"$f":"VLOOKUP($A27,F1__World_Data!$A$4:$DP$191,34,FALSE)","v":34422.567999999999},{"$f":"VLOOKUP($A27,F1__World_Data!$A$4:$DP$191,33,FALSE)","v":33758.328000000001},{"$f":"VLOOKUP($A27,F1__World_Data!$A$4:$DP$191,32,FALSE)","v":33102.569000000003},{"$f":"VLOOKUP($A27,F1__World_Data!$A$4:$DP$191,31,FALSE)","v":32457.496999999999},{"$f":"VLOOKUP($A27,F1__World_Data!$A$4:$DP$191,30,FALSE)","v":31822.526999999998},{"$f":"VLOOKUP($A27,F1__World_Data!$A$4:$DP$191,29,FALSE)","v":31195.417000000001},{"$f":"VLOOKUP($A27,F1__World_Data!$A$4:$DP$191,28,FALSE)","v":30572.478999999999},{"$f":"VLOOKUP($A27,F1__World_Data!$A$4:$DP$191,27,FALSE)","v":29951.194},{"$f":"VLOOKUP($A27,F1__World_Data!$A$4:$DP$191,26,FALSE)","v":29331.23},{"$f":"VLOOKUP($A27,F1__World_Data!$A$4:$DP$191,25,FALSE)","v":28714.183000000001},{"$f":"VLOOKUP($A27,F1__World_Data!$A$4:$DP$191,24,FALSE)","v":28101.824000000001},{"$f":"VLOOKUP($A27,F1__World_Data!$A$4:$DP$191,23,FALSE)","v":27496.608},{"$f":"VLOOKUP($A27,F1__World_Data!$A$4:$DP$191,22,FALSE)","v":26900.508000000002},{"$f":"VLOOKUP($A27,F1__World_Data!$A$4:$DP$191,21,FALSE)","v":26312.995999999999},{"$f":"VLOOKUP($A27,F1__World_Data!$A$4:$DP$191,20,FALSE)","v":25733.669000000002},{"$f":"VLOOKUP($A27,F1__World_Data!$A$4:$DP$191,19,FALSE)","v":25164.544000000002},{"$f":"VLOOKUP($A27,F1__World_Data!$A$4:$DP$191,18,FALSE)","v":24608.101999999999},{"$f":"VLOOKUP($A27,F1__World_Data!$A$4:$DP$191,17,FALSE)","v":24065.502},{"$f":"VLOOKUP($A27,F1__World_Data!$A$4:$DP$191,16,FALSE)","v":23538.39},{"$f":"VLOOKUP($A27,F1__World_Data!$A$4:$DP$191,15,FALSE)","v":23024.511999999999},{"$f":"VLOOKUP($A27,F1__World_Data!$A$4:$DP$191,14,FALSE)","v":22516.429},{"$f":"VLOOKUP($A27,F1__World_Data!$A$4:$DP$191,13,FALSE)","v":22003.983},{"$f":"VLOOKUP($A27,F1__World_Data!$A$4:$DP$191,12,FALSE)","v":21480.063999999998},{"$f":"VLOOKUP($A27,F1__World_Data!$A$4:$DP$191,11,FALSE)","v":20942.453000000001},{"$f":"VLOOKUP($A27,F1__World_Data!$A$4:$DP$191,10,FALSE)","v":20393.704000000002},{"$f":"VLOOKUP($A27,F1__World_Data!$A$4:$DP$191,9,FALSE)","v":19837.508000000002},{"$f":"VLOOKUP($A27,F1__World_Data!$A$4:$DP$191,8,FALSE)","v":19279.734},{"$f":"VLOOKUP($A27,F1__World_Data!$A$4:$DP$191,7,FALSE)","v":18725.241999999998},{"$f":"VLOOKUP($A27,F1__World_Data!$A$4:$DP$191,6,FALSE)","v":18175.187000000002},{"$f":"VLOOKUP($A27,F1__World_Data!$A$4:$DP$191,5,FALSE)","v":17629.977999999999},{"$f":"VLOOKUP($A27,F1__World_Data!$A$4:$DP$191,4,FALSE)","v":17092.919000000002},{"$f":"VLOOKUP($A27,F1__World_Data!$A$4:$DP$191,3,FALSE)","v":16567.816999999999},{"$f":"VLOOKUP($A27,F1__World_Data!$A$4:$DP$191,2,FALSE)","v":16057.714},null,{"$f":"VLOOKUP($A27,F1__World_Data!$A$4:$DP$191,120,FALSE)","v":77.108999999999995},{"$f":"VLOOKUP($A27,F1__World_Data!$A$4:$DP$191,119,FALSE)","v":76.924999999999997},{"$f":"VLOOKUP($A27,F1__World_Data!$A$4:$DP$191,118,FALSE)","v":76.731999999999999},{"$f":"VLOOKUP($A27,F1__World_Data!$A$4:$DP$191,117,FALSE)","v":76.531000000000006},{"$f":"VLOOKUP($A27,F1__World_Data!$A$4:$DP$191,116,FALSE)","v":76.322000000000003},{"$f":"VLOOKUP($A27,F1__World_Data!$A$4:$DP$191,115,FALSE)","v":76.105000000000004},{"$f":"VLOOKUP($A27,F1__World_Data!$A$4:$DP$191,114,FALSE)","v":75.882000000000005},{"$f":"VLOOKUP($A27,F1__World_Data!$A$4:$DP$191,113,FALSE)","v":75.655000000000001},{"$f":"VLOOKUP($A27,F1__World_Data!$A$4:$DP$191,112,FALSE)","v":75.424000000000007},{"$f":"VLOOKUP($A27,F1__World_Data!$A$4:$DP$191,111,FALSE)","v":75.192999999999998},{"$f":"VLOOKUP($A27,F1__World_Data!$A$4:$DP$191,110,FALSE)","v":74.962000000000003},{"$f":"VLOOKUP($A27,F1__World_Data!$A$4:$DP$191,109,FALSE)","v":74.731999999999999},{"$f":"VLOOKUP($A27,F1__World_Data!$A$4:$DP$191,108,FALSE)","v":74.5},{"$f":"VLOOKUP($A27,F1__World_Data!$A$4:$DP$191,107,FALSE)","v":74.265000000000001},{"$f":"VLOOKUP($A27,F1__World_Data!$A$4:$DP$191,106,FALSE)","v":74.025999999999996},{"$f":"VLOOKUP($A27,F1__World_Data!$A$4:$DP$191,105,FALSE)","v":73.777000000000001},{"$f":"VLOOKUP($A27,F1__World_Data!$A$4:$DP$191,104,FALSE)","v":73.516999999999996},{"$f":"VLOOKUP($A27,F1__World_Data!$A$4:$DP$191,103,FALSE)","v":73.241},{"$f":"VLOOKUP($A27,F1__World_Data!$A$4:$DP$191,102,FALSE)","v":72.944999999999993},{"$f":"VLOOKUP($A27,F1__World_Data!$A$4:$DP$191,101,FALSE)","v":72.619},{"$f":"VLOOKUP($A27,F1__World_Data!$A$4:$DP$191,100,FALSE)","v":72.263999999999996},{"$f":"VLOOKUP($A27,F1__World_Data!$A$4:$DP$191,99,FALSE)","v":71.887},{"$f":"VLOOKUP($A27,F1__World_Data!$A$4:$DP$191,98,FALSE)","v":71.497},{"$f":"VLOOKUP($A27,F1__World_Data!$A$4:$DP$191,97,FALSE)","v":71.111999999999995},{"$f":"VLOOKUP($A27,F1__World_Data!$A$4:$DP$191,96,FALSE)","v":70.751999999999995},{"$f":"VLOOKUP($A27,F1__World_Data!$A$4:$DP$191,95,FALSE)","v":70.433000000000007},{"$f":"VLOOKUP($A27,F1__World_Data!$A$4:$DP$191,94,FALSE)","v":70.161000000000001},{"$f":"VLOOKUP($A27,F1__World_Data!$A$4:$DP$191,93,FALSE)","v":69.936000000000007},{"$f":"VLOOKUP($A27,F1__World_Data!$A$4:$DP$191,92,FALSE)","v":69.75},{"$f":"VLOOKUP($A27,F1__World_Data!$A$4:$DP$191,91,FALSE)","v":69.590999999999994},{"$f":"VLOOKUP($A27,F1__World_Data!$A$4:$DP$191,90,FALSE)","v":69.436000000000007},{"$f":"VLOOKUP($A27,F1__World_Data!$A$4:$DP$191,89,FALSE)","v":69.266000000000005},{"$f":"VLOOKUP($A27,F1__World_Data!$A$4:$DP$191,88,FALSE)","v":69.064999999999998},{"$f":"VLOOKUP($A27,F1__World_Data!$A$4:$DP$191,87,FALSE)","v":68.822999999999993},{"$f":"VLOOKUP($A27,F1__World_Data!$A$4:$DP$191,86,FALSE)","v":68.528999999999996},{"$f":"VLOOKUP($A27,F1__World_Data!$A$4:$DP$191,85,FALSE)","v":68.186999999999998},{"$f":"VLOOKUP($A27,F1__World_Data!$A$4:$DP$191,84,FALSE)","v":67.802000000000007},{"$f":"VLOOKUP($A27,F1__World_Data!$A$4:$DP$191,83,FALSE)","v":67.38},{"$f":"VLOOKUP($A27,F1__World_Data!$A$4:$DP$191,82,FALSE)","v":66.926000000000002},{"$f":"VLOOKUP($A27,F1__World_Data!$A$4:$DP$191,81,FALSE)","v":66.450999999999993},{"$f":"VLOOKUP($A27,F1__World_Data!$A$4:$DP$191,80,FALSE)","v":65.963999999999999},{"$f":"VLOOKUP($A27,F1__World_Data!$A$4:$DP$191,79,FALSE)","v":65.477000000000004},{"$f":"VLOOKUP($A27,F1__World_Data!$A$4:$DP$191,78,FALSE)","v":64.994},{"$f":"VLOOKUP($A27,F1__World_Data!$A$4:$DP$191,77,FALSE)","v":64.518000000000001},{"$f":"VLOOKUP($A27,F1__World_Data!$A$4:$DP$191,76,FALSE)","v":64.046999999999997},{"$f":"VLOOKUP($A27,F1__World_Data!$A$4:$DP$191,75,FALSE)","v":63.578000000000003},{"$f":"VLOOKUP($A27,F1__World_Data!$A$4:$DP$191,74,FALSE)","v":63.104999999999997},{"$f":"VLOOKUP($A27,F1__World_Data!$A$4:$DP$191,73,FALSE)","v":62.628999999999998},{"$f":"VLOOKUP($A27,F1__World_Data!$A$4:$DP$191,72,FALSE)","v":62.152000000000001},{"$f":"VLOOKUP($A27,F1__World_Data!$A$4:$DP$191,71,FALSE)","v":61.674999999999997},{"$f":"VLOOKUP($A27,F1__World_Data!$A$4:$DP$191,70,FALSE)","v":61.201000000000001},{"$f":"VLOOKUP($A27,F1__World_Data!$A$4:$DP$191,69,FALSE)","v":60.728999999999999},{"$f":"VLOOKUP($A27,F1__World_Data!$A$4:$DP$191,68,FALSE)","v":60.256999999999998},{"$f":"VLOOKUP($A27,F1__World_Data!$A$4:$DP$191,67,FALSE)","v":59.783999999999999},{"$f":"VLOOKUP($A27,F1__World_Data!$A$4:$DP$191,66,FALSE)","v":59.308},{"$f":"VLOOKUP($A27,F1__World_Data!$A$4:$DP$191,65,FALSE)","v":58.825000000000003},{"$f":"VLOOKUP($A27,F1__World_Data!$A$4:$DP$191,64,FALSE)","v":58.329000000000001},{"$f":"VLOOKUP($A27,F1__World_Data!$A$4:$DP$191,63,FALSE)","v":57.813000000000002},{"$f":"VLOOKUP($A27,F1__World_Data!$A$4:$DP$191,62,FALSE)","v":57.268999999999998}]
["Spain",{"$f":"VLOOKUP($A28,F1__World_Data!$A$4:$DP$191,60,FALSE)","v":46692.862999999998},{"$f":"VLOOKUP($A28,F1__World_Data!$A$4:$DP$191,59,FALSE)","v":46647.425000000003},{"$f":"VLOOKUP($A28,F1__World_Data!$A$4:$DP$191,58,FALSE)","v":46634.131000000001},{"$f":"VLOOKUP($A28,F1__World_Data!$A$4:$DP$191,57,FALSE)","v":46671.919000000002},{"$f":"VLOOKUP($A28,F1__World_Data!$A$4:$DP$191,56,FALSE)","v":46777.927000000003},{"$f":"VLOOKUP($A28,F1__World_Data!$A$4:$DP$191,55,FALSE)","v":46930.553999999996},{"$f":"VLOOKUP($A28,F1__World_Data!$A$4:$DP$191,54,FALSE)","v":47063.059000000001},{"$f":"VLOOKUP($A28,F1__World_Data!$A$4:$DP$191,53,FALSE)","v":47084.241999999998},{"$f":"VLOOKUP($A28,F1__World_Data!$A$4:$DP$191,52,FALSE)","v":46931.010999999999},{"$f":"VLOOKUP($A28,F1__World_Data!$A$4:$DP$191,51,FALSE)","v":46583.565999999999},{"$f":"VLOOKUP($A28,F1__World_Data!$A$4:$DP$191,50,FALSE)","v":46068.811000000002},{"$f":"VLOOKUP($A28,F1__World_Data!$A$4:$DP$191,49,FALSE)","v":45429.071000000004},{"$f":"VLOOKUP($A28,F1__World_Data!$A$4:$DP$191,48,FALSE)","v":44728.561000000002},{"$f":"VLOOKUP($A28,F1__World_Data!$A$4:$DP$191,47,FALSE)","v":44019.118000000002},{"$f":"VLOOKUP($A28,F1__World_Data!$A$4:$DP$191,46,FALSE)","v":43308.345000000001},{"$f":"VLOOKUP($A28,F1__World_Data!$A$4:$DP$191,45,FALSE)","v":42596.455000000002},{"$f":"VLOOKUP($A28,F1__World_Data!$A$4:$DP$191,44,FALSE)","v":41919.593000000001},{"$f":"VLOOKUP($A28,F1__World_Data!$A$4:$DP$191,43,FALSE)","v":41319.430999999997},{"$f":"VLOOKUP($A28,F1__World_Data!$A$4:$DP$191,42,FALSE)","v":40824.745000000003},{"$f":"VLOOKUP($A28,F1__World_Data!$A$4:$DP$191,41,FALSE)","v":40454.472000000002},{"$f":"VLOOKUP($A28,F1__World_Data!$A$4:$DP$191,40,FALSE)","v":40201.561000000002},{"$f":"VLOOKUP($A28,F1__World_Data!$A$4:$DP$191,39,FALSE)","v":40035.286},{"$f":"VLOOKUP($A28,F1__World_Data!$A$4:$DP$191,38,FALSE)","v":39908.962},{"$f":"VLOOKUP($A28,F1__World_Data!$A$4:$DP$191,37,FALSE)","v":39787.413},{"$f":"VLOOKUP($A28,F1__World_Data!$A$4:$DP$191,36,FALSE)","v":39660.078999999998},{"$f":"VLOOKUP($A28,F1__World_Data!$A$4:$DP$191,35,FALSE)","v":39533.726000000002},{"$f":"VLOOKUP($A28,F1__World_Data!$A$4:$DP$191,34,FALSE)","v":39410.851999999999},{"$f":"VLOOKUP($A28,F1__World_Data!$A$4:$DP$191,33,FALSE)","v":39299.080999999998},{"$f":"VLOOKUP($A28,F1__World_Data!$A$4:$DP$191,32,FALSE)","v":39202.523999999998},{"$f":"VLOOKUP($A28,F1__World_Data!$A$4:$DP$191,31,FALSE)","v":39118.555},{"$f":"VLOOKUP($A28,F1__World_Data!$A$4:$DP$191,30,FALSE)","v":39038.686000000002},{"$f":"VLOOKUP($A28,F1__World_Data!$A$4:$DP$191,29,FALSE)","v":38954.49},{"$f":"VLOOKUP($A28,F1__World_Data!$A$4:$DP$191,28,FALSE)","v":38855.631000000001},{"$f":"VLOOKUP($A28,F1__World_Data!$A$4:$DP$191,27,FALSE)","v":38733.866000000002},{"$f":"VLOOKUP($A28,F1__World_Data!$A$4:$DP$191,26,FALSE)","v":38586.703999999998},{"$f":"VLOOKUP($A28,F1__World_Data!$A$4:$DP$191,25,FALSE)","v":38413.300000000003},{"$f":"VLOOKUP($A28,F1__World_Data!$A$4:$DP$191,24,FALSE)","v":38209.686000000002},{"$f":"VLOOKUP($A28,F1__World_Data!$A$4:$DP$191,23,FALSE)","v":37971.968000000001},{"$f":"VLOOKUP($A28,F1__World_Data!$A$4:$DP$191,22,FALSE)","v":37698.199999999997},{"$f":"VLOOKUP($A28,F1__World_Data!$A$4:$DP$191,21,FALSE)","v":37386.81},{"$f":"VLOOKUP($A28,F1__World_Data!$A$4:$DP$191,20,FALSE)","v":37040.400999999998},{"$f":"VLOOKUP($A28,F1__World_Data!$A$4:$DP$191,19,FALSE)","v":36666.769999999997},{"$f":"VLOOKUP($A28,F1__World_Data!$A$4:$DP$191,18,FALSE)","v":36276.748},{"$f":"VLOOKUP($A28,F1__World_Data!$A$4:$DP$191,17,FALSE)","v":35879.21},{"$f":"VLOOKUP($A28,F1__World_Data!$A$4:$DP$191,16,FALSE)","v":35476.434999999998},{"$f":"VLOOKUP($A28,F1__World_Data!$A$4:$DP$191,15,FALSE)","v":35069.432999999997},{"$f":"VLOOKUP($A28,F1__World_Data!$A$4:$DP$191,14,FALSE)","v":34664.233999999997},{"$f":"VLOOKUP($A28,F1__World_Data!$A$4:$DP$191,13,FALSE)","v":34267.463000000003},{"$f":"VLOOKUP($A28,F1__World_Data!$A$4:$DP$191,12,FALSE)","v":33883.749000000003},{"$f":"VLOOKUP($A28,F1__World_Data!$A$4:$DP$191,11,FALSE)","v":33517.677000000003},{"$f":"VLOOKUP($A28,F1__World_Data!$A$4:$DP$191,10,FALSE)","v":33168.777000000002},{"$f":"VLOOKUP($A28,F1__World_Data!$A$4:$DP$191,9,FALSE)","v":32830.180999999997},{"$f":"VLOOKUP($A28,F1__World_Data!$A$4:$DP$191,8,FALSE)","v":32491.643},{"$f":"VLOOKUP($A28,F1__World_Data!$A$4:$DP$191,7,FALSE)","v":32146.255000000001},{"$f":"VLOOKUP($A28,F1__World_Data!$A$4:$DP$191,6,FALSE)","v":31791.937999999998},{"$f":"VLOOKUP($A28,F1__World_Data!$A$4:$DP$191,5,FALSE)","v":31432.768},{"$f":"VLOOKUP($A28,F1__World_Data!$A$4:$DP$191,4,FALSE)","v":31075.474999999999},{"$f":"VLOOKUP($A28,F1__World_Data!$A$4:$DP$191,3,FALSE)","v":30729.65},{"$f":"VLOOKUP($A28,F1__World_Data!$A$4:$DP$191,2,FALSE)","v":30402.413},null,{"$f":"VLOOKUP($A28,F1__World_Data!$A$4:$DP$191,120,FALSE)","v":68.116},{"$f":"VLOOKUP($A28,F1__World_Data!$A$4:$DP$191,119,FALSE)","v":67.850999999999999},{"$f":"VLOOKUP($A28,F1__World_Data!$A$4:$DP$191,118,FALSE)","v":67.576999999999998},{"$f":"VLOOKUP($A28,F1__World_Data!$A$4:$DP$191,117,FALSE)","v":67.290999999999997},{"$f":"VLOOKUP($A28,F1__World_Data!$A$4:$DP$191,116,FALSE)","v":66.995000000000005},{"$f":"VLOOKUP($A28,F1__World_Data!$A$4:$DP$191,115,FALSE)","v":66.69},{"$f":"VLOOKUP($A28,F1__World_Data!$A$4:$DP$191,114,FALSE)","v":66.381},{"$f":"VLOOKUP($A28,F1__World_Data!$A$4:$DP$191,113,FALSE)","v":66.072000000000003},{"$f":"VLOOKUP($A28,F1__World_Data!$A$4:$DP$191,112,FALSE)","v":65.769000000000005},{"$f":"VLOOKUP($A28,F1__World_Data!$A$4:$DP$191,111,FALSE)","v":65.48},{"$f":"VLOOKUP($A28,F1__World_Data!$A$4:$DP$191,110,FALSE)","v":65.207999999999998},{"$f":"VLOOKUP($A28,F1__World_Data!$A$4:$DP$191,109,FALSE)","v":64.953000000000003},{"$f":"VLOOKUP($A28,F1__World_Data!$A$4:$DP$191,108,FALSE)","v":64.712000000000003},{"$f":"VLOOKUP($A28,F1__World_Data!$A$4:$DP$191,107,FALSE)","v":64.477999999999994},{"$f":"VLOOKUP($A28,F1__World_Data!$A$4:$DP$191,106,FALSE)","v":64.242000000000004},{"$f":"VLOOKUP($A28,F1__World_Data!$A$4:$DP$191,105,FALSE)","v":63.994999999999997},{"$f":"VLOOKUP($A28,F1__World_Data!$A$4:$DP$191,104,FALSE)","v":63.731000000000002},{"$f":"VLOOKUP($A28,F1__World_Data!$A$4:$DP$191,103,FALSE)","v":63.445999999999998},{"$f":"VLOOKUP($A28,F1__World_Data!$A$4:$DP$191,102,FALSE)","v":63.143999999999998},{"$f":"VLOOKUP($A28,F1__World_Data!$A$4:$DP$191,101,FALSE)","v":62.829000000000001},{"$f":"VLOOKUP($A28,F1__World_Data!$A$4:$DP$191,100,FALSE)","v":62.509},{"$f":"VLOOKUP($A28,F1__World_Data!$A$4:$DP$191,99,FALSE)","v":62.188000000000002},{"$f":"VLOOKUP($A28,F1__World_Data!$A$4:$DP$191,98,FALSE)","v":61.866},{"$f":"VLOOKUP($A28,F1__World_Data!$A$4:$DP$191,97,FALSE)","v":61.539000000000001},{"$f":"VLOOKUP($A28,F1__World_Data!$A$4:$DP$191,96,FALSE)","v":61.198},{"$f":"VLOOKUP($A28,F1__World_Data!$A$4:$DP$191,95,FALSE)","v":60.837000000000003},{"$f":"VLOOKUP($A28,F1__World_Data!$A$4:$DP$191,94,FALSE)","v":60.454999999999998},{"$f":"VLOOKUP($A28,F1__World_Data!$A$4:$DP$191,93,FALSE)","v":60.052999999999997},{"$f":"VLOOKUP($A28,F1__World_Data!$A$4:$DP$191,92,FALSE)","v":59.636000000000003},{"$f":"VLOOKUP($A28,F1__World_Data!$A$4:$DP$191,91,FALSE)","v":59.209000000000003},{"$f":"VLOOKUP($A28,F1__World_Data!$A$4:$DP$191,90,FALSE)","v":58.783000000000001},{"$f":"VLOOKUP($A28,F1__World_Data!$A$4:$DP$191,89,FALSE)","v":58.366},{"$f":"VLOOKUP($A28,F1__World_Data!$A$4:$DP$191,88,FALSE)","v":57.962000000000003},{"$f":"VLOOKUP($A28,F1__World_Data!$A$4:$DP$191,87,FALSE)","v":57.579000000000001},{"$f":"VLOOKUP($A28,F1__World_Data!$A$4:$DP$191,86,FALSE)","v":57.220999999999997},{"$f":"VLOOKUP($A28,F1__World_Data!$A$4:$DP$191,85,FALSE)","v":56.886000000000003},{"$f":"VLOOKUP($A28,F1__World_Data!$A$4:$DP$191,84,FALSE)","v":56.569000000000003},{"$f":"VLOOKUP($A28,F1__World_Data!$A$4:$DP$191,83,FALSE)","v":56.265999999999998},{"$f":"VLOOKUP($A28,F1__World_Data!$A$4:$DP$191,82,FALSE)","v":55.970999999999997},{"$f":"VLOOKUP($A28,F1__World_Data!$A$4:$DP$191,81,FALSE)","v":55.679000000000002},{"$f":"VLOOKUP($A28,F1__World_Data!$A$4:$DP$191,80,FALSE)","v":55.381999999999998},{"$f":"VLOOKUP($A28,F1__World_Data!$A$4:$DP$191,79,FALSE)","v":55.073999999999998},{"$f":"VLOOKUP($A28,F1__World_Data!$A$4:$DP$191,78,FALSE)","v":54.747999999999998},{"$f":"VLOOKUP($A28,F1__World_Data!$A$4:$DP$191,77,FALSE)","v":54.399000000000001},{"$f":"VLOOKUP($A28,F1__World_Data!$A$4:$DP$191,76,FALSE)","v":54.027000000000001},{"$f":"VLOOKUP($A28,F1__World_Data!$A$4:$DP$191,75,FALSE)","v":53.633000000000003},{"$f":"VLOOKUP($A28,F1__World_Data!$A$4:$DP$191,74,FALSE)","v":53.218000000000004},{"$f":"VLOOKUP($A28,F1__World_Data!$A$4:$DP$191,73,FALSE)","v":52.781999999999996},{"$f":"VLOOKUP($A28,F1__World_Data!$A$4:$DP$191,72,FALSE)","v":52.323},{"$f":"VLOOKUP($A28,F1__World_Data!$A$4:$DP$191,71,FALSE)","v":51.837000000000003},{"$f":"VLOOKUP($A28,F1__World_Data!$A$4:$DP$191,70,FALSE)","v":51.326999999999998},{"$f":"VLOOKUP($A28,F1__World_Data!$A$4:$DP$191,69,FALSE)","v":50.795999999999999},{"$f":"VLOOKUP($A28,F1__World_Data!$A$4:$DP$191,68,FALSE)","v":50.25},{"$f":"VLOOKUP($A28,F1__World_Data!$A$4:$DP$191,67,FALSE)","v":49.697000000000003},{"$f":"VLOOKUP($A28,F1__World_Data!$A$4:$DP$191,66,FALSE)","v":49.145000000000003},{"$f":"VLOOKUP($A28,F1__World_Data!$A$4:$DP$191,65,FALSE)","v":48.600999999999999},{"$f":"VLOOKUP($A28,F1__World_Data!$A$4:$DP$191,64,FALSE)","v":48.070999999999998},{"$f":"VLOOKUP($A28,F1__World_Data!$A$4:$DP$191,63,FALSE)","v":47.557000000000002},{"$f":"VLOOKUP($A28,F1__World_Data!$A$4:$DP$191,62,FALSE)","v":47.061}]
["Argentina",{"$f":"VLOOKUP($A29,F1__World_Data!$A$4:$DP$191,60,FALSE)","v":44361.15},{"$f":"VLOOKUP($A29,F1__World_Data!$A$4:$DP$191,59,FALSE)","v":43937.142999999996},{"$f":"VLOOKUP($A29,F1__World_Data!$A$4:$DP$191,58,FALSE)","v":43508.459000000003},{"$f":"VLOOKUP($A29,F1__World_Data!$A$4:$DP$191,57,FALSE)","v":43075.415999999997},{"$f":"VLOOKUP($A29,F1__World_Data!$A$4:$DP$191,56,FALSE)","v":42637.508000000002},{"$f":"VLOOKUP($A29,F1__World_Data!$A$4:$DP$191,55,FALSE)","v":42196.034},{"$f":"VLOOKUP($A29,F1__World_Data!$A$4:$DP$191,54,FALSE)","v":41755.188000000002},{"$f":"VLOOKUP($A29,F1__World_Data!$A$4:$DP$191,53,FALSE)","v":41320.497000000003},{"$f":"VLOOKUP($A29,F1__World_Data!$A$4:$DP$191,52,FALSE)","v":40895.750999999997},{"$f":"VLOOKUP($A29,F1__World_Data!$A$4:$DP$191,51,FALSE)","v":40482.786},{"$f":"VLOOKUP($A29,F1__World_Data!$A$4:$DP$191,50,FALSE)","v":40080.159},{"$f":"VLOOKUP($A29,F1__World_Data!$A$4:$DP$191,49,FALSE)","v":39684.303},{"$f":"VLOOKUP($A29,F1__World_Data!$A$4:$DP$191,48,FALSE)","v":39289.875999999997},{"$f":"VLOOKUP($A29,F1__World_Data!$A$4:$DP$191,47,FALSE)","v":38892.923999999999},{"$f":"VLOOKUP($A29,F1__World_Data!$A$4:$DP$191,46,FALSE)","v":38491.97},{"$f":"VLOOKUP($A29,F1__World_Data!$A$4:$DP$191,45,FALSE)","v":38087.866000000002},{"$f":"VLOOKUP($A29,F1__World_Data!$A$4:$DP$191,44,FALSE)","v":37681.743000000002},{"$f":"VLOOKUP($A29,F1__World_Data!$A$4:$DP$191,43,FALSE)","v":37275.644},{"$f":"VLOOKUP($A29,F1__World_Data!$A$4:$DP$191,42,FALSE)","v":36870.796000000002},{"$f":"VLOOKUP($A29,F1__World_Data!$A$4:$DP$191,41,FALSE)","v":36467.218000000001},{"$f":"VLOOKUP($A29,F1__World_Data!$A$4:$DP$191,40,FALSE)","v":36063.451000000001},{"$f":"VLOOKUP($A29,F1__World_Data!$A$4:$DP$191,39,FALSE)","v":35657.438000000002},{"$f":"VLOOKUP($A29,F1__World_Data!$A$4:$DP$191,38,FALSE)","v":35246.375999999997},{"$f":"VLOOKUP($A29,F1__World_Data!$A$4:$DP$191,37,FALSE)","v":34828.167999999998},{"$f":"VLOOKUP($A29,F1__World_Data!$A$4:$DP$191,36,FALSE)","v":34402.669000000002},{"$f":"VLOOKUP($A29,F1__World_Data!$A$4:$DP$191,35,FALSE)","v":33970.103000000003},{"$f":"VLOOKUP($A29,F1__World_Data!$A$4:$DP$191,34,FALSE)","v":33529.32},{"$f":"VLOOKUP($A29,F1__World_Data!$A$4:$DP$191,33,FALSE)","v":33079.002},{"$f":"VLOOKUP($A29,F1__World_Data!$A$4:$DP$191,32,FALSE)","v":32618.648000000001},{"$f":"VLOOKUP($A29,F1__World_Data!$A$4:$DP$191,31,FALSE)","v":32148.136999999999},{"$f":"VLOOKUP($A29,F1__World_Data!$A$4:$DP$191,30,FALSE)","v":31668.938999999998},{"$f":"VLOOKUP($A29,F1__World_Data!$A$4:$DP$191,29,FALSE)","v":31184.411},{"$f":"VLOOKUP($A29,F1__World_Data!$A$4:$DP$191,28,FALSE)","v":30698.964},{"$f":"VLOOKUP($A29,F1__World_Data!$A$4:$DP$191,27,FALSE)","v":30216.284},{"$f":"VLOOKUP($A29,F1__World_Data!$A$4:$DP$191,26,FALSE)","v":29737.097000000002},{"$f":"VLOOKUP($A29,F1__World_Data!$A$4:$DP$191,25,FALSE)","v":29262.048999999999},{"$f":"VLOOKUP($A29,F1__World_Data!$A$4:$DP$191,24,FALSE)","v":28794.55},{"$f":"VLOOKUP($A29,F1__World_Data!$A$4:$DP$191,23,FALSE)","v":28338.513999999999},{"$f":"VLOOKUP($A29,F1__World_Data!$A$4:$DP$191,22,FALSE)","v":27896.531999999999},{"$f":"VLOOKUP($A29,F1__World_Data!$A$4:$DP$191,21,FALSE)","v":27471.045999999998},{"$f":"VLOOKUP($A29,F1__World_Data!$A$4:$DP$191,20,FALSE)","v":27061.041000000001},{"$f":"VLOOKUP($A29,F1__World_Data!$A$4:$DP$191,19,FALSE)","v":26661.397000000001},{"$f":"VLOOKUP($A29,F1__World_Data!$A$4:$DP$191,18,FALSE)","v":26264.681},{"$f":"VLOOKUP($A29,F1__World_Data!$A$4:$DP$191,17,FALSE)","v":25865.775000000001},{"$f":"VLOOKUP($A29,F1__World_Data!$A$4:$DP$191,16,FALSE)","v":25462.305},{"$f":"VLOOKUP($A29,F1__World_Data!$A$4:$DP$191,15,FALSE)","v":25056.474999999999},{"$f":"VLOOKUP($A29,F1__World_Data!$A$4:$DP$191,14,FALSE)","v":24653.171999999999},{"$f":"VLOOKUP($A29,F1__World_Data!$A$4:$DP$191,13,FALSE)","v":24259.563999999998},{"$f":"VLOOKUP($A29,F1__World_Data!$A$4:$DP$191,12,FALSE)","v":23880.563999999998},{"$f":"VLOOKUP($A29,F1__World_Data!$A$4:$DP$191,11,FALSE)","v":23517.613000000001},{"$f":"VLOOKUP($A29,F1__World_Data!$A$4:$DP$191,10,FALSE)","v":23168.268},{"$f":"VLOOKUP($A29,F1__World_Data!$A$4:$DP$191,9,FALSE)","v":22828.871999999999},{"$f":"VLOOKUP($A29,F1__World_Data!$A$4:$DP$191,8,FALSE)","v":22494.030999999999},{"$f":"VLOOKUP($A29,F1__World_Data!$A$4:$DP$191,7,FALSE)","v":22159.644},{"$f":"VLOOKUP($A29,F1__World_Data!$A$4:$DP$191,6,FALSE)","v":21824.427},{"$f":"VLOOKUP($A29,F1__World_Data!$A$4:$DP$191,5,FALSE)","v":21488.916000000001},{"$f":"VLOOKUP($A29,F1__World_Data!$A$4:$DP$191,4,FALSE)","v":21153.042000000001},{"$f":"VLOOKUP($A29,F1__World_Data!$A$4:$DP$191,3,FALSE)","v":20817.27},{"$f":"VLOOKUP($A29,F1__World_Data!$A$4:$DP$191,2,FALSE)","v":20481.780999999999},null,{"$f":"VLOOKUP($A29,F1__World_Data!$A$4:$DP$191,120,FALSE)","v":76.52},{"$f":"VLOOKUP($A29,F1__World_Data!$A$4:$DP$191,119,FALSE)","v":76.372},{"$f":"VLOOKUP($A29,F1__World_Data!$A$4:$DP$191,118,FALSE)","v":76.221000000000004},{"$f":"VLOOKUP($A29,F1__World_Data!$A$4:$DP$191,117,FALSE)","v":76.067999999999998},{"$f":"VLOOKUP($A29,F1__World_Data!$A$4:$DP$191,116,FALSE)","v":75.912999999999997},{"$f":"VLOOKUP($A29,F1__World_Data!$A$4:$DP$191,115,FALSE)","v":75.756},{"$f":"VLOOKUP($A29,F1__World_Data!$A$4:$DP$191,114,FALSE)","v":75.597999999999999},{"$f":"VLOOKUP($A29,F1__World_Data!$A$4:$DP$191,113,FALSE)","v":75.438999999999993},{"$f":"VLOOKUP($A29,F1__World_Data!$A$4:$DP$191,112,FALSE)","v":75.278000000000006},{"$f":"VLOOKUP($A29,F1__World_Data!$A$4:$DP$191,111,FALSE)","v":75.116},{"$f":"VLOOKUP($A29,F1__World_Data!$A$4:$DP$191,110,FALSE)","v":74.951999999999998},{"$f":"VLOOKUP($A29,F1__World_Data!$A$4:$DP$191,109,FALSE)","v":74.787000000000006},{"$f":"VLOOKUP($A29,F1__World_Data!$A$4:$DP$191,108,FALSE)","v":74.62},{"$f":"VLOOKUP($A29,F1__World_Data!$A$4:$DP$191,107,FALSE)","v":74.450999999999993},{"$f":"VLOOKUP($A29,F1__World_Data!$A$4:$DP$191,106,FALSE)","v":74.28},{"$f":"VLOOKUP($A29,F1__World_Data!$A$4:$DP$191,105,FALSE)","v":74.106999999999999},{"$f":"VLOOKUP($A29,F1__World_Data!$A$4:$DP$191,104,FALSE)","v":73.932000000000002},{"$f":"VLOOKUP($A29,F1__World_Data!$A$4:$DP$191,103,FALSE)","v":73.754999999999995},{"$f":"VLOOKUP($A29,F1__World_Data!$A$4:$DP$191,102,FALSE)","v":73.575999999999993},{"$f":"VLOOKUP($A29,F1__World_Data!$A$4:$DP$191,101,FALSE)","v":73.396000000000001},{"$f":"VLOOKUP($A29,F1__World_Data!$A$4:$DP$191,100,FALSE)","v":73.212999999999994},{"$f":"VLOOKUP($A29,F1__World_Data!$A$4:$DP$191,99,FALSE)","v":73.028999999999996},{"$f":"VLOOKUP($A29,F1__World_Data!$A$4:$DP$191,98,FALSE)","v":72.843000000000004},{"$f":"VLOOKUP($A29,F1__World_Data!$A$4:$DP$191,97,FALSE)","v":72.650999999999996},{"$f":"VLOOKUP($A29,F1__World_Data!$A$4:$DP$191,96,FALSE)","v":72.453000000000003},{"$f":"VLOOKUP($A29,F1__World_Data!$A$4:$DP$191,95,FALSE)","v":72.245999999999995},{"$f":"VLOOKUP($A29,F1__World_Data!$A$4:$DP$191,94,FALSE)","v":72.031999999999996},{"$f":"VLOOKUP($A29,F1__World_Data!$A$4:$DP$191,93,FALSE)","v":71.813000000000002},{"$f":"VLOOKUP($A29,F1__World_Data!$A$4:$DP$191,92,FALSE)","v":71.593999999999994},{"$f":"VLOOKUP($A29,F1__World_Data!$A$4:$DP$191,91,FALSE)","v":71.384},{"$f":"VLOOKUP($A29,F1__World_Data!$A$4:$DP$191,90,FALSE)","v":71.186000000000007},{"$f":"VLOOKUP($A29,F1__World_Data!$A$4:$DP$191,89,FALSE)","v":71.001000000000005},{"$f":"VLOOKUP($A29,F1__World_Data!$A$4:$DP$191,88,FALSE)","v":70.825000000000003},{"$f":"VLOOKUP($A29,F1__World_Data!$A$4:$DP$191,87,FALSE)","v":70.650000000000006},{"$f":"VLOOKUP($A29,F1__World_Data!$A$4:$DP$191,86,FALSE)","v":70.465999999999994},{"$f":"VLOOKUP($A29,F1__World_Data!$A$4:$DP$191,85,FALSE)","v":70.262},{"$f":"VLOOKUP($A29,F1__World_Data!$A$4:$DP$191,84,FALSE)","v":70.033000000000001},{"$f":"VLOOKUP($A29,F1__World_Data!$A$4:$DP$191,83,FALSE)","v":69.777000000000001},{"$f":"VLOOKUP($A29,F1__World_Data!$A$4:$DP$191,82,FALSE)","v":69.495999999999995},{"$f":"VLOOKUP($A29,F1__World_Data!$A$4:$DP$191,81,FALSE)","v":69.197000000000003},{"$f":"VLOOKUP($A29,F1__World_Data!$A$4:$DP$191,80,FALSE)","v":68.891000000000005},{"$f":"VLOOKUP($A29,F1__World_Data!$A$4:$DP$191,79,FALSE)","v":68.584999999999994},{"$f":"VLOOKUP($A29,F1__World_Data!$A$4:$DP$191,78,FALSE)","v":68.283000000000001},{"$f":"VLOOKUP($A29,F1__World_Data!$A$4:$DP$191,77,FALSE)","v":67.984999999999999},{"$f":"VLOOKUP($A29,F1__World_Data!$A$4:$DP$191,76,FALSE)","v":67.686000000000007},{"$f":"VLOOKUP($A29,F1__World_Data!$A$4:$DP$191,75,FALSE)","v":67.382999999999996},{"$f":"VLOOKUP($A29,F1__World_Data!$A$4:$DP$191,74,FALSE)","v":67.078000000000003},{"$f":"VLOOKUP($A29,F1__World_Data!$A$4:$DP$191,73,FALSE)","v":66.774000000000001},{"$f":"VLOOKUP($A29,F1__World_Data!$A$4:$DP$191,72,FALSE)","v":66.483000000000004},{"$f":"VLOOKUP($A29,F1__World_Data!$A$4:$DP$191,71,FALSE)","v":66.218999999999994},{"$f":"VLOOKUP($A29,F1__World_Data!$A$4:$DP$191,70,FALSE)","v":65.989000000000004},{"$f":"VLOOKUP($A29,F1__World_Data!$A$4:$DP$191,69,FALSE)","v":65.796000000000006},{"$f":"VLOOKUP($A29,F1__World_Data!$A$4:$DP$191,68,FALSE)","v":65.64},{"$f":"VLOOKUP($A29,F1__World_Data!$A$4:$DP$191,67,FALSE)","v":65.518000000000001},{"$f":"VLOOKUP($A29,F1__World_Data!$A$4:$DP$191,66,FALSE)","v":65.426000000000002},{"$f":"VLOOKUP($A29,F1__World_Data!$A$4:$DP$191,65,FALSE)","v":65.347999999999999},{"$f":"VLOOKUP($A29,F1__World_Data!$A$4:$DP$191,64,FALSE)","v":65.269000000000005},{"$f":"VLOOKUP($A29,F1__World_Data!$A$4:$DP$191,63,FALSE)","v":65.176000000000002},{"$f":"VLOOKUP($A29,F1__World_Data!$A$4:$DP$191,62,FALSE)","v":65.055000000000007}]
["Ukraine",{"$f":"VLOOKUP($A30,F1__World_Data!$A$4:$DP$191,60,FALSE)","v":44246.158000000003},{"$f":"VLOOKUP($A30,F1__World_Data!$A$4:$DP$191,59,FALSE)","v":44487.707999999999},{"$f":"VLOOKUP($A30,F1__World_Data!$A$4:$DP$191,58,FALSE)","v":44713.707999999999},{"$f":"VLOOKUP($A30,F1__World_Data!$A$4:$DP$191,57,FALSE)","v":44921.635999999999},{"$f":"VLOOKUP($A30,F1__World_Data!$A$4:$DP$191,56,FALSE)","v":45111.53},{"$f":"VLOOKUP($A30,F1__World_Data!$A$4:$DP$191,55,FALSE)","v":45286.987999999998},{"$f":"VLOOKUP($A30,F1__World_Data!$A$4:$DP$191,54,FALSE)","v":45453.805},{"$f":"VLOOKUP($A30,F1__World_Data!$A$4:$DP$191,53,FALSE)","v":45619.85},{"$f":"VLOOKUP($A30,F1__World_Data!$A$4:$DP$191,52,FALSE)","v":45792.086000000003},{"$f":"VLOOKUP($A30,F1__World_Data!$A$4:$DP$191,51,FALSE)","v":45970.942000000003},{"$f":"VLOOKUP($A30,F1__World_Data!$A$4:$DP$191,50,FALSE)","v":46158.709000000003},{"$f":"VLOOKUP($A30,F1__World_Data!$A$4:$DP$191,49,FALSE)","v":46366.347000000002},{"$f":"VLOOKUP($A30,F1__World_Data!$A$4:$DP$191,48,FALSE)","v":46607.396999999997},{"$f":"VLOOKUP($A30,F1__World_Data!$A$4:$DP$191,47,FALSE)","v":46890.775000000001},{"$f":"VLOOKUP($A30,F1__World_Data!$A$4:$DP$191,46,FALSE)","v":47217.489000000001},{"$f":"VLOOKUP($A30,F1__World_Data!$A$4:$DP$191,45,FALSE)","v":47582.463000000003},{"$f":"VLOOKUP($A30,F1__World_Data!$A$4:$DP$191,44,FALSE)","v":47980.033000000003},{"$f":"VLOOKUP($A30,F1__World_Data!$A$4:$DP$191,43,FALSE)","v":48401.648000000001},{"$f":"VLOOKUP($A30,F1__World_Data!$A$4:$DP$191,42,FALSE)","v":48838.057999999997},{"$f":"VLOOKUP($A30,F1__World_Data!$A$4:$DP$191,41,FALSE)","v":49288.739000000001},{"$f":"VLOOKUP($A30,F1__World_Data!$A$4:$DP$191,40,FALSE)","v":49746.523000000001},{"$f":"VLOOKUP($A30,F1__World_Data!$A$4:$DP$191,39,FALSE)","v":50187.28},{"$f":"VLOOKUP($A30,F1__World_Data!$A$4:$DP$191,38,FALSE)","v":50580.466999999997},{"$f":"VLOOKUP($A30,F1__World_Data!$A$4:$DP$191,37,FALSE)","v":50903.783000000003},{"$f":"VLOOKUP($A30,F1__World_Data!$A$4:$DP$191,36,FALSE)","v":51147.771000000001},{"$f":"VLOOKUP($A30,F1__World_Data!$A$4:$DP$191,35,FALSE)","v":51316.012999999999},{"$f":"VLOOKUP($A30,F1__World_Data!$A$4:$DP$191,34,FALSE)","v":51415.957000000002},{"$f":"VLOOKUP($A30,F1__World_Data!$A$4:$DP$191,33,FALSE)","v":51461.273000000001},{"$f":"VLOOKUP($A30,F1__World_Data!$A$4:$DP$191,32,FALSE)","v":51463.101000000002},{"$f":"VLOOKUP($A30,F1__World_Data!$A$4:$DP$191,31,FALSE)","v":51422.338000000003},{"$f":"VLOOKUP($A30,F1__World_Data!$A$4:$DP$191,30,FALSE)","v":51338.392},{"$f":"VLOOKUP($A30,F1__World_Data!$A$4:$DP$191,29,FALSE)","v":51219.911},{"$f":"VLOOKUP($A30,F1__World_Data!$A$4:$DP$191,28,FALSE)","v":51077.457000000002},{"$f":"VLOOKUP($A30,F1__World_Data!$A$4:$DP$191,27,FALSE)","v":50919.275000000001},{"$f":"VLOOKUP($A30,F1__World_Data!$A$4:$DP$191,26,FALSE)","v":50749.175999999999},{"$f":"VLOOKUP($A30,F1__World_Data!$A$4:$DP$191,25,FALSE)","v":50568.025000000001},{"$f":"VLOOKUP($A30,F1__World_Data!$A$4:$DP$191,24,FALSE)","v":50377.069000000003},{"$f":"VLOOKUP($A30,F1__World_Data!$A$4:$DP$191,23,FALSE)","v":50176.398999999998},{"$f":"VLOOKUP($A30,F1__World_Data!$A$4:$DP$191,22,FALSE)","v":49965.872000000003},{"$f":"VLOOKUP($A30,F1__World_Data!$A$4:$DP$191,21,FALSE)","v":49747.998},{"$f":"VLOOKUP($A30,F1__World_Data!$A$4:$DP$191,20,FALSE)","v":49523.303999999996},{"$f":"VLOOKUP($A30,F1__World_Data!$A$4:$DP$191,19,FALSE)","v":49287.118000000002},{"$f":"VLOOKUP($A30,F1__World_Data!$A$4:$DP$191,18,FALSE)","v":49032.728999999999},{"$f":"VLOOKUP($A30,F1__World_Data!$A$4:$DP$191,17,FALSE)","v":48755.661999999997},{"$f":"VLOOKUP($A30,F1__World_Data!$A$4:$DP$191,16,FALSE)","v":48452.623},{"$f":"VLOOKUP($A30,F1__World_Data!$A$4:$DP$191,15,FALSE)","v":48125.828999999998},{"$f":"VLOOKUP($A30,F1__World_Data!$A$4:$DP$191,14,FALSE)","v":47783.006000000001},{"$f":"VLOOKUP($A30,F1__World_Data!$A$4:$DP$191,13,FALSE)","v":47435.008000000002},{"$f":"VLOOKUP($A30,F1__World_Data!$A$4:$DP$191,12,FALSE)","v":47088.862000000001},{"$f":"VLOOKUP($A30,F1__World_Data!$A$4:$DP$191,11,FALSE)","v":46749.288999999997},{"$f":"VLOOKUP($A30,F1__World_Data!$A$4:$DP$191,10,FALSE)","v":46411.815999999999},{"$f":"VLOOKUP($A30,F1__World_Data!$A$4:$DP$191,9,FALSE)","v":46063.218999999997},{"$f":"VLOOKUP($A30,F1__World_Data!$A$4:$DP$191,8,FALSE)","v":45684.983},{"$f":"VLOOKUP($A30,F1__World_Data!$A$4:$DP$191,7,FALSE)","v":45264.552000000003},{"$f":"VLOOKUP($A30,F1__World_Data!$A$4:$DP$191,6,FALSE)","v":44796.959000000003},{"$f":"VLOOKUP($A30,F1__World_Data!$A$4:$DP$191,5,FALSE)","v":44288.607000000004},{"$f":"VLOOKUP($A30,F1__World_Data!$A$4:$DP$191,4,FALSE)","v":43752.226999999999},{"$f":"VLOOKUP($A30,F1__World_Data!$A$4:$DP$191,3,FALSE)","v":43206.353000000003},{"$f":"VLOOKUP($A30,F1__World_Data!$A$4:$DP$191,2,FALSE)","v":42664.646000000001},null,{"$f":"VLOOKUP($A30,F1__World_Data!$A$4:$DP$191,120,FALSE)","v":63.856999999999999},{"$f":"VLOOKUP($A30,F1__World_Data!$A$4:$DP$191,119,FALSE)","v":63.537999999999997},{"$f":"VLOOKUP($A30,F1__World_Data!$A$4:$DP$191,118,FALSE)","v":63.152999999999999},{"$f":"VLOOKUP($A30,F1__World_Data!$A$4:$DP$191,117,FALSE)","v":62.649000000000001},{"$f":"VLOOKUP($A30,F1__World_Data!$A$4:$DP$191,116,FALSE)","v":61.968000000000004},{"$f":"VLOOKUP($A30,F1__World_Data!$A$4:$DP$191,115,FALSE)","v":61.098999999999997},{"$f":"VLOOKUP($A30,F1__World_Data!$A$4:$DP$191,114,FALSE)","v":60.06},{"$f":"VLOOKUP($A30,F1__World_Data!$A$4:$DP$191,113,FALSE)","v":58.895000000000003},{"$f":"VLOOKUP($A30,F1__World_Data!$A$4:$DP$191,112,FALSE)","v":57.668999999999997},{"$f":"VLOOKUP($A30,F1__World_Data!$A$4:$DP$191,111,FALSE)","v":56.46},{"$f":"VLOOKUP($A30,F1__World_Data!$A$4:$DP$191,110,FALSE)","v":55.36},{"$f":"VLOOKUP($A30,F1__World_Data!$A$4:$DP$191,109,FALSE)","v":54.451999999999998},{"$f":"VLOOKUP($A30,F1__World_Data!$A$4:$DP$191,108,FALSE)","v":53.795000000000002},{"$f":"VLOOKUP($A30,F1__World_Data!$A$4:$DP$191,107,FALSE)","v":53.447000000000003},{"$f":"VLOOKUP($A30,F1__World_Data!$A$4:$DP$191,106,FALSE)","v":53.444000000000003},{"$f":"VLOOKUP($A30,F1__World_Data!$A$4:$DP$191,105,FALSE)","v":53.749000000000002},{"$f":"VLOOKUP($A30,F1__World_Data!$A$4:$DP$191,104,FALSE)","v":54.31},{"$f":"VLOOKUP($A30,F1__World_Data!$A$4:$DP$191,103,FALSE)","v":55.088999999999999},{"$f":"VLOOKUP($A30,F1__World_Data!$A$4:$DP$191,102,FALSE)","v":56.048000000000002},{"$f":"VLOOKUP($A30,F1__World_Data!$A$4:$DP$191,101,FALSE)","v":57.143999999999998},{"$f":"VLOOKUP($A30,F1__World_Data!$A$4:$DP$191,100,FALSE)","v":58.314999999999998},{"$f":"VLOOKUP($A30,F1__World_Data!$A$4:$DP$191,99,FALSE)","v":59.488999999999997},{"$f":"VLOOKUP($A30,F1__World_Data!$A$4:$DP$191,98,FALSE)","v":60.594999999999999},{"$f":"VLOOKUP($A30,F1__World_Data!$A$4:$DP$191,97,FALSE)","v":61.561},{"$f":"VLOOKUP($A30,F1__World_Data!$A$4:$DP$191,96,FALSE)","v":62.331000000000003},{"$f":"VLOOKUP($A30,F1__World_Data!$A$4:$DP$191,95,FALSE)","v":62.893999999999998},{"$f":"VLOOKUP($A30,F1__World_Data!$A$4:$DP$191,94,FALSE)","v":63.247},{"$f":"VLOOKUP($A30,F1__World_Data!$A$4:$DP$191,93,FALSE)","v":63.384},{"$f":"VLOOKUP($A30,F1__World_Data!$A$4:$DP$191,92,FALSE)","v":63.307000000000002},{"$f":"VLOOKUP($A30,F1__World_Data!$A$4:$DP$191,91,FALSE)","v":63.034999999999997},{"$f":"VLOOKUP($A30,F1__World_Data!$A$4:$DP$191,90,FALSE)","v":62.619},{"$f":"VLOOKUP($A30,F1__World_Data!$A$4:$DP$191,89,FALSE)","v":62.109000000000002},{"$f":"VLOOKUP($A30,F1__World_Data!$A$4:$DP$191,88,FALSE)","v":61.54},{"$f":"VLOOKUP($A30,F1__World_Data!$A$4:$DP$191,87,FALSE)","v":60.945999999999998},{"$f":"VLOOKUP($A30,F1__World_Data!$A$4:$DP$191,86,FALSE)","v":60.353000000000002},{"$f":"VLOOKUP($A30,F1__World_Data!$A$4:$DP$191,85,FALSE)","v":59.765999999999998},{"$f":"VLOOKUP($A30,F1__World_Data!$A$4:$DP$191,84,FALSE)","v":59.191000000000003},{"$f":"VLOOKUP($A30,F1__World_Data!$A$4:$DP$191,83,FALSE)","v":58.637},{"$f":"VLOOKUP($A30,F1__World_Data!$A$4:$DP$191,82,FALSE)","v":58.106999999999999},{"$f":"VLOOKUP($A30,F1__World_Data!$A$4:$DP$191,81,FALSE)","v":57.59},{"$f":"VLOOKUP($A30,F1__World_Data!$A$4:$DP$191,80,FALSE)","v":57.070999999999998},{"$f":"VLOOKUP($A30,F1__World_Data!$A$4:$DP$191,79,FALSE)","v":56.537999999999997},{"$f":"VLOOKUP($A30,F1__World_Data!$A$4:$DP$191,78,FALSE)","v":55.99},{"$f":"VLOOKUP($A30,F1__World_Data!$A$4:$DP$191,77,FALSE)","v":55.427999999999997},{"$f":"VLOOKUP($A30,F1__World_Data!$A$4:$DP$191,76,FALSE)","v":54.856000000000002},{"$f":"VLOOKUP($A30,F1__World_Data!$A$4:$DP$191,75,FALSE)","v":54.280999999999999},{"$f":"VLOOKUP($A30,F1__World_Data!$A$4:$DP$191,74,FALSE)","v":53.713000000000001},{"$f":"VLOOKUP($A30,F1__World_Data!$A$4:$DP$191,73,FALSE)","v":53.156999999999996},{"$f":"VLOOKUP($A30,F1__World_Data!$A$4:$DP$191,72,FALSE)","v":52.62},{"$f":"VLOOKUP($A30,F1__World_Data!$A$4:$DP$191,71,FALSE)","v":52.106000000000002},{"$f":"VLOOKUP($A30,F1__World_Data!$A$4:$DP$191,70,FALSE)","v":51.615000000000002},{"$f":"VLOOKUP($A30,F1__World_Data!$A$4:$DP$191,69,FALSE)","v":51.148000000000003},{"$f":"VLOOKUP($A30,F1__World_Data!$A$4:$DP$191,68,FALSE)","v":50.704999999999998},{"$f":"VLOOKUP($A30,F1__World_Data!$A$4:$DP$191,67,FALSE)","v":50.283999999999999},{"$f":"VLOOKUP($A30,F1__World_Data!$A$4:$DP$191,66,FALSE)","v":49.887999999999998},{"$f":"VLOOKUP($A30,F1__World_Data!$A$4:$DP$191,65,FALSE)","v":49.509},{"$f":"VLOOKUP($A30,F1__World_Data!$A$4:$DP$191,64,FALSE)","v":49.142000000000003},{"$f":"VLOOKUP($A30,F1__World_Data!$A$4:$DP$191,63,FALSE)","v":48.777000000000001},{"$f":"VLOOKUP($A30,F1__World_Data!$A$4:$DP$191,62,FALSE)","v":48.405999999999999}]
["Caribbean",{"$f":"VLOOKUP($A31,F1__World_Data!$A$4:$DP$191,60,FALSE)","v":43163.826999999997},{"$f":"VLOOKUP($A31,F1__World_Data!$A$4:$DP$191,59,FALSE)","v":43002.43},{"$f":"VLOOKUP($A31,F1__World_Data!$A$4:$DP$191,58,FALSE)","v":42827.506000000001},{"$f":"VLOOKUP($A31,F1__World_Data!$A$4:$DP$191,57,FALSE)","v":42622.28},{"$f":"VLOOKUP($A31,F1__World_Data!$A$4:$DP$191,56,FALSE)","v":42380.802000000003},{"$f":"VLOOKUP($A31,F1__World_Data!$A$4:$DP$191,55,FALSE)","v":42108.680999999997},{"$f":"VLOOKUP($A31,F1__World_Data!$A$4:$DP$191,54,FALSE)","v":41815.180999999997},{"$f":"VLOOKUP($A31,F1__World_Data!$A$4:$DP$191,53,FALSE)","v":41514.616999999998},{"$f":"VLOOKUP($A31,F1__World_Data!$A$4:$DP$191,52,FALSE)","v":41217.339999999997},{"$f":"VLOOKUP($A31,F1__World_Data!$A$4:$DP$191,51,FALSE)","v":40925.442999999999},{"$f":"VLOOKUP($A31,F1__World_Data!$A$4:$DP$191,50,FALSE)","v":40635.19},{"$f":"VLOOKUP($A31,F1__World_Data!$A$4:$DP$191,49,FALSE)","v":40344.281000000003},{"$f":"VLOOKUP($A31,F1__World_Data!$A$4:$DP$191,48,FALSE)","v":40048.877999999997},{"$f":"VLOOKUP($A31,F1__World_Data!$A$4:$DP$191,47,FALSE)","v":39745.796999999999},{"$f":"VLOOKUP($A31,F1__World_Data!$A$4:$DP$191,46,FALSE)","v":39435.328000000001},{"$f":"VLOOKUP($A31,F1__World_Data!$A$4:$DP$191,45,FALSE)","v":39117.911},{"$f":"VLOOKUP($A31,F1__World_Data!$A$4:$DP$191,44,FALSE)","v":38791.51},{"$f":"VLOOKUP($A31,F1__World_Data!$A$4:$DP$191,43,FALSE)","v":38453.512999999999},{"$f":"VLOOKUP($A31,F1__World_Data!$A$4:$DP$191,42,FALSE)","v":38102.080999999998},{"$f":"VLOOKUP($A31,F1__World_Data!$A$4:$DP$191,41,FALSE)","v":37736.196000000004},{"$f":"VLOOKUP($A31,F1__World_Data!$A$4:$DP$191,40,FALSE)","v":37356.533000000003},{"$f":"VLOOKUP($A31,F1__World_Data!$A$4:$DP$191,39,FALSE)","v":36965.453000000001},{"$f":"VLOOKUP($A31,F1__World_Data!$A$4:$DP$191,38,FALSE)","v":36566.533000000003},{"$f":"VLOOKUP($A31,F1__World_Data!$A$4:$DP$191,37,FALSE)","v":36162.184000000001},{"$f":"VLOOKUP($A31,F1__World_Data!$A$4:$DP$191,36,FALSE)","v":35754.233},{"$f":"VLOOKUP($A31,F1__World_Data!$A$4:$DP$191,35,FALSE)","v":35342.112000000001},{"$f":"VLOOKUP($A31,F1__World_Data!$A$4:$DP$191,34,FALSE)","v":34923.911},{"$f":"VLOOKUP($A31,F1__World_Data!$A$4:$DP$191,33,FALSE)","v":34496.470999999998},{"$f":"VLOOKUP($A31,F1__World_Data!$A$4:$DP$191,32,FALSE)","v":34058.199000000001},{"$f":"VLOOKUP($A31,F1__World_Data!$A$4:$DP$191,31,FALSE)","v":33607.983},{"$f":"VLOOKUP($A31,F1__World_Data!$A$4:$DP$191,30,FALSE)","v":33148.324000000001},{"$f":"VLOOKUP($A31,F1__World_Data!$A$4:$DP$191,29,FALSE)","v":32684.866999999998},{"$f":"VLOOKUP($A31,F1__World_Data!$A$4:$DP$191,28,FALSE)","v":32225.345000000001},{"$f":"VLOOKUP($A31,F1__World_Data!$A$4:$DP$191,27,FALSE)","v":31775.147000000001},{"$f":"VLOOKUP($A31,F1__World_Data!$A$4:$DP$191,26,FALSE)","v":31336.136999999999},{"$f":"VLOOKUP($A31,F1__World_Data!$A$4:$DP$191,25,FALSE)","v":30906.728999999999},{"$f":"VLOOKUP($A31,F1__World_Data!$A$4:$DP$191,24,FALSE)","v":30484.395},{"$f":"VLOOKUP($A31,F1__World_Data!$A$4:$DP$191,23,FALSE)","v":30065.06},{"$f":"VLOOKUP($A31,F1__World_Data!$A$4:$DP$191,22,FALSE)","v":29645.559000000001},{"$f":"VLOOKUP($A31,F1__World_Data!$A$4:$DP$191,21,FALSE)","v":29226.133999999998},{"$f":"VLOOKUP($A31,F1__World_Data!$A$4:$DP$191,20,FALSE)","v":28806.94},{"$f":"VLOOKUP($A31,F1__World_Data!$A$4:$DP$191,19,FALSE)","v":28384.494999999999},{"$f":"VLOOKUP($A31,F1__World_Data!$A$4:$DP$191,18,FALSE)","v":27954.313999999998},{"$f":"VLOOKUP($A31,F1__World_Data!$A$4:$DP$191,17,FALSE)","v":27513.667000000001},{"$f":"VLOOKUP($A31,F1__World_Data!$A$4:$DP$191,16,FALSE)","v":27060.021000000001},{"$f":"VLOOKUP($A31,F1__World_Data!$A$4:$DP$191,15,FALSE)","v":26595.06},{"$f":"VLOOKUP($A31,F1__World_Data!$A$4:$DP$191,14,FALSE)","v":26124.94},{"$f":"VLOOKUP($A31,F1__World_Data!$A$4:$DP$191,13,FALSE)","v":25658.335999999999},{"$f":"VLOOKUP($A31,F1__World_Data!$A$4:$DP$191,12,FALSE)","v":25201.316999999999},{"$f":"VLOOKUP($A31,F1__World_Data!$A$4:$DP$191,11,FALSE)","v":24757.631000000001},{"$f":"VLOOKUP($A31,F1__World_Data!$A$4:$DP$191,10,FALSE)","v":24324.951000000001},{"$f":"VLOOKUP($A31,F1__World_Data!$A$4:$DP$191,9,FALSE)","v":23895.936000000002},{"$f":"VLOOKUP($A31,F1__World_Data!$A$4:$DP$191,8,FALSE)","v":23459.851999999999},{"$f":"VLOOKUP($A31,F1__World_Data!$A$4:$DP$191,7,FALSE)","v":23009.851999999999},{"$f":"VLOOKUP($A31,F1__World_Data!$A$4:$DP$191,6,FALSE)","v":22542.962},{"$f":"VLOOKUP($A31,F1__World_Data!$A$4:$DP$191,5,FALSE)","v":22063.999},{"$f":"VLOOKUP($A31,F1__World_Data!$A$4:$DP$191,4,FALSE)","v":21582.991000000002},{"$f":"VLOOKUP($A31,F1__World_Data!$A$4:$DP$191,3,FALSE)","v":21114.092000000001},{"$f":"VLOOKUP($A31,F1__World_Data!$A$4:$DP$191,2,FALSE)","v":20667.481},null,{"$f":"VLOOKUP($A31,F1__World_Data!$A$4:$DP$191,120,FALSE)","v":81.948780487804882},{"$f":"VLOOKUP($A31,F1__World_Data!$A$4:$DP$191,119,FALSE)","v":81.948780487804882},{"$f":"VLOOKUP($A31,F1__World_Data!$A$4:$DP$191,118,FALSE)","v":81.900000000000006},{"$f":"VLOOKUP($A31,F1__World_Data!$A$4:$DP$191,117,FALSE)","v":81.900000000000006},{"$f":"VLOOKUP($A31,F1__World_Data!$A$4:$DP$191,116,FALSE)","v":81.8},{"$f":"VLOOKUP($A31,F1__World_Data!$A$4:$DP$191,115,FALSE)","v":81.748780487804893},{"$f":"VLOOKUP($A31,F1__World_Data!$A$4:$DP$191,114,FALSE)","v":81.648780487804885},{"$f":"VLOOKUP($A31,F1__World_Data!$A$4:$DP$191,113,FALSE)","v":81.448780487804882},{"$f":"VLOOKUP($A31,F1__World_Data!$A$4:$DP$191,112,FALSE)","v":81.246341463414637},{"$f":"VLOOKUP($A31,F1__World_Data!$A$4:$DP$191,111,FALSE)","v":80.995121951219517},{"$f":"VLOOKUP($A31,F1__World_Data!$A$4:$DP$191,110,FALSE)","v":80.695121951219519},{"$f":"VLOOKUP($A31,F1__World_Data!$A$4:$DP$191,109,FALSE)","v":80.543902439024407},{"$f":"VLOOKUP($A31,F1__World_Data!$A$4:$DP$191,108,FALSE)","v":80.34390243902439},{"$f":"VLOOKUP($A31,F1__World_Data!$A$4:$DP$191,107,FALSE)","v":80.192682926829278},{"$f":"VLOOKUP($A31,F1__World_Data!$A$4:$DP$191,106,FALSE)","v":79.892682926829281},{"$f":"VLOOKUP($A31,F1__World_Data!$A$4:$DP$191,105,FALSE)","v":79.741463414634168},{"$f":"VLOOKUP($A31,F1__World_Data!$A$4:$DP$191,104,FALSE)","v":79.490243902439019},{"$f":"VLOOKUP($A31,F1__World_Data!$A$4:$DP$191,103,FALSE)","v":79.339024390243921},{"$f":"VLOOKUP($A31,F1__World_Data!$A$4:$DP$191,102,FALSE)","v":79.136585365853662},{"$f":"VLOOKUP($A31,F1__World_Data!$A$4:$DP$191,101,FALSE)","v":78.885365853658527},{"$f":"VLOOKUP($A31,F1__World_Data!$A$4:$DP$191,100,FALSE)","v":78.634146341463421},{"$f":"VLOOKUP($A31,F1__World_Data!$A$4:$DP$191,99,FALSE)","v":78.431707317073176},{"$f":"VLOOKUP($A31,F1__World_Data!$A$4:$DP$191,98,FALSE)","v":78.180487804878055},{"$f":"VLOOKUP($A31,F1__World_Data!$A$4:$DP$191,97,FALSE)","v":78.029268292682943},{"$f":"VLOOKUP($A31,F1__World_Data!$A$4:$DP$191,96,FALSE)","v":77.826829268292698},{"$f":"VLOOKUP($A31,F1__World_Data!$A$4:$DP$191,95,FALSE)","v":77.824390243902457},{"$f":"VLOOKUP($A31,F1__World_Data!$A$4:$DP$191,94,FALSE)","v":77.724390243902448},{"$f":"VLOOKUP($A31,F1__World_Data!$A$4:$DP$191,93,FALSE)","v":77.621951219512198},{"$f":"VLOOKUP($A31,F1__World_Data!$A$4:$DP$191,92,FALSE)","v":77.421951219512209},{"$f":"VLOOKUP($A31,F1__World_Data!$A$4:$DP$191,91,FALSE)","v":77.11951219512197},{"$f":"VLOOKUP($A31,F1__World_Data!$A$4:$DP$191,90,FALSE)","v":76.919512195121953},{"$f":"VLOOKUP($A31,F1__World_Data!$A$4:$DP$191,89,FALSE)","v":76.719512195121951},{"$f":"VLOOKUP($A31,F1__World_Data!$A$4:$DP$191,88,FALSE)","v":76.519512195121962},{"$f":"VLOOKUP($A31,F1__World_Data!$A$4:$DP$191,87,FALSE)","v":76.368292682926835},{"$f":"VLOOKUP($A31,F1__World_Data!$A$4:$DP$191,86,FALSE)","v":76.217073170731723},{"$f":"VLOOKUP($A31,F1__World_Data!$A$4:$DP$191,85,FALSE)","v":76.065853658536597},{"$f":"VLOOKUP($A31,F1__World_Data!$A$4:$DP$191,84,FALSE)","v":75.763414634146343},{"$f":"VLOOKUP($A31,F1__World_Data!$A$4:$DP$191,83,FALSE)","v":75.463414634146346},{"$f":"VLOOKUP($A31,F1__World_Data!$A$4:$DP$191,82,FALSE)","v":75.078048780487805},{"$f":"VLOOKUP($A31,F1__World_Data!$A$4:$DP$191,81,FALSE)","v":74.866341463414642},{"$f":"VLOOKUP($A31,F1__World_Data!$A$4:$DP$191,80,FALSE)","v":74.529756097560977},{"$f":"VLOOKUP($A31,F1__World_Data!$A$4:$DP$191,79,FALSE)","v":74.215609756097564},{"$f":"VLOOKUP($A31,F1__World_Data!$A$4:$DP$191,78,FALSE)","v":73.856097560975613},{"$f":"VLOOKUP($A31,F1__World_Data!$A$4:$DP$191,77,FALSE)","v":73.521707317073165},{"$f":"VLOOKUP($A31,F1__World_Data!$A$4:$DP$191,76,FALSE)","v":73.237560975609767},{"$f":"VLOOKUP($A31,F1__World_Data!$A$4:$DP$191,75,FALSE)","v":73.162682926829277},{"$f":"VLOOKUP($A31,F1__World_Data!$A$4:$DP$191,74,FALSE)","v":72.933902439024394},{"$f":"VLOOKUP($A31,F1__World_Data!$A$4:$DP$191,73,FALSE)","v":73.029268292682929},{"$f":"VLOOKUP($A31,F1__World_Data!$A$4:$DP$191,72,FALSE)","v":72.700487804878051},{"$f":"VLOOKUP($A31,F1__World_Data!$A$4:$DP$191,71,FALSE)","v":72.501463414634145},{"$f":"VLOOKUP($A31,F1__World_Data!$A$4:$DP$191,70,FALSE)","v":72.353414634146347},{"$f":"VLOOKUP($A31,F1__World_Data!$A$4:$DP$191,69,FALSE)","v":72.20780487804879},{"$f":"VLOOKUP($A31,F1__World_Data!$A$4:$DP$191,68,FALSE)","v":72.004390243902449},{"$f":"VLOOKUP($A31,F1__World_Data!$A$4:$DP$191,67,FALSE)","v":71.872195121951236},{"$f":"VLOOKUP($A31,F1__World_Data!$A$4:$DP$191,66,FALSE)","v":71.776341463414639},{"$f":"VLOOKUP($A31,F1__World_Data!$A$4:$DP$191,65,FALSE)","v":71.380731707317082},{"$f":"VLOOKUP($A31,F1__World_Data!$A$4:$DP$191,64,FALSE)","v":71.367073170731715},{"$f":"VLOOKUP($A31,F1__World_Data!$A$4:$DP$191,63,FALSE)","v":71.346097560975622},{"$f":"VLOOKUP($A31,F1__World_Data!$A$4:$DP$191,62,FALSE)","v":71.133170731707324}]
["Uganda",{"$f":"VLOOKUP($A32,F1__World_Data!$A$4:$DP$191,60,FALSE)","v":42729.031999999999},{"$f":"VLOOKUP($A32,F1__World_Data!$A$4:$DP$191,59,FALSE)","v":41166.588000000003},{"$f":"VLOOKUP($A32,F1__World_Data!$A$4:$DP$191,58,FALSE)","v":39649.173000000003},{"$f":"VLOOKUP($A32,F1__World_Data!$A$4:$DP$191,57,FALSE)","v":38225.447},{"$f":"VLOOKUP($A32,F1__World_Data!$A$4:$DP$191,56,FALSE)","v":36911.53},{"$f":"VLOOKUP($A32,F1__World_Data!$A$4:$DP$191,55,FALSE)","v":35694.519},{"$f":"VLOOKUP($A32,F1__World_Data!$A$4:$DP$191,54,FALSE)","v":34558.699999999997},{"$f":"VLOOKUP($A32,F1__World_Data!$A$4:$DP$191,53,FALSE)","v":33476.771999999997},{"$f":"VLOOKUP($A32,F1__World_Data!$A$4:$DP$191,52,FALSE)","v":32428.164000000001},{"$f":"VLOOKUP($A32,F1__World_Data!$A$4:$DP$191,51,FALSE)","v":31411.096000000001},{"$f":"VLOOKUP($A32,F1__World_Data!$A$4:$DP$191,50,FALSE)","v":30431.734},{"$f":"VLOOKUP($A32,F1__World_Data!$A$4:$DP$191,49,FALSE)","v":29486.334999999999},{"$f":"VLOOKUP($A32,F1__World_Data!$A$4:$DP$191,48,FALSE)","v":28571.474999999999},{"$f":"VLOOKUP($A32,F1__World_Data!$A$4:$DP$191,47,FALSE)","v":27684.59},{"$f":"VLOOKUP($A32,F1__World_Data!$A$4:$DP$191,46,FALSE)","v":26821.3},{"$f":"VLOOKUP($A32,F1__World_Data!$A$4:$DP$191,45,FALSE)","v":25980.546999999999},{"$f":"VLOOKUP($A32,F1__World_Data!$A$4:$DP$191,44,FALSE)","v":25167.260999999999},{"$f":"VLOOKUP($A32,F1__World_Data!$A$4:$DP$191,43,FALSE)","v":24388.973999999998},{"$f":"VLOOKUP($A32,F1__World_Data!$A$4:$DP$191,42,FALSE)","v":23650.159},{"$f":"VLOOKUP($A32,F1__World_Data!$A$4:$DP$191,41,FALSE)","v":22952.405999999999},{"$f":"VLOOKUP($A32,F1__World_Data!$A$4:$DP$191,40,FALSE)","v":22290.787},{"$f":"VLOOKUP($A32,F1__World_Data!$A$4:$DP$191,39,FALSE)","v":21655.392},{"$f":"VLOOKUP($A32,F1__World_Data!$A$4:$DP$191,38,FALSE)","v":21032.816999999999},{"$f":"VLOOKUP($A32,F1__World_Data!$A$4:$DP$191,37,FALSE)","v":20413.156999999999},{"$f":"VLOOKUP($A32,F1__World_Data!$A$4:$DP$191,36,FALSE)","v":19793.541000000001},{"$f":"VLOOKUP($A32,F1__World_Data!$A$4:$DP$191,35,FALSE)","v":19175.986000000001},{"$f":"VLOOKUP($A32,F1__World_Data!$A$4:$DP$191,34,FALSE)","v":18561.668000000001},{"$f":"VLOOKUP($A32,F1__World_Data!$A$4:$DP$191,33,FALSE)","v":17953.534},{"$f":"VLOOKUP($A32,F1__World_Data!$A$4:$DP$191,32,FALSE)","v":17354.395},{"$f":"VLOOKUP($A32,F1__World_Data!$A$4:$DP$191,31,FALSE)","v":16763.041000000001},{"$f":"VLOOKUP($A32,F1__World_Data!$A$4:$DP$191,30,FALSE)","v":16180.129000000001},{"$f":"VLOOKUP($A32,F1__World_Data!$A$4:$DP$191,29,FALSE)","v":15612.754000000001},{"$f":"VLOOKUP($A32,F1__World_Data!$A$4:$DP$191,28,FALSE)","v":15070.319},{"$f":"VLOOKUP($A32,F1__World_Data!$A$4:$DP$191,27,FALSE)","v":14559.357},{"$f":"VLOOKUP($A32,F1__World_Data!$A$4:$DP$191,26,FALSE)","v":14082.87},{"$f":"VLOOKUP($A32,F1__World_Data!$A$4:$DP$191,25,FALSE)","v":13638.728999999999},{"$f":"VLOOKUP($A32,F1__World_Data!$A$4:$DP$191,24,FALSE)","v":13221.991},{"$f":"VLOOKUP($A32,F1__World_Data!$A$4:$DP$191,23,FALSE)","v":12825.084000000001},{"$f":"VLOOKUP($A32,F1__World_Data!$A$4:$DP$191,22,FALSE)","v":12442.333000000001},{"$f":"VLOOKUP($A32,F1__World_Data!$A$4:$DP$191,21,FALSE)","v":12071.14},{"$f":"VLOOKUP($A32,F1__World_Data!$A$4:$DP$191,20,FALSE)","v":11712.54},{"$f":"VLOOKUP($A32,F1__World_Data!$A$4:$DP$191,19,FALSE)","v":11368.618},{"$f":"VLOOKUP($A32,F1__World_Data!$A$4:$DP$191,18,FALSE)","v":11042.975},{"$f":"VLOOKUP($A32,F1__World_Data!$A$4:$DP$191,17,FALSE)","v":10737.403},{"$f":"VLOOKUP($A32,F1__World_Data!$A$4:$DP$191,16,FALSE)","v":10453.029},{"$f":"VLOOKUP($A32,F1__World_Data!$A$4:$DP$191,15,FALSE)","v":10186.451999999999},{"$f":"VLOOKUP($A32,F1__World_Data!$A$4:$DP$191,14,FALSE)","v":9929.6440000000002},{"$f":"VLOOKUP($A32,F1__World_Data!$A$4:$DP$191,13,FALSE)","v":9671.8559999999998},{"$f":"VLOOKUP($A32,F1__World_Data!$A$4:$DP$191,12,FALSE)","v":9405.6059999999998},{"$f":"VLOOKUP($A32,F1__World_Data!$A$4:$DP$191,11,FALSE)","v":9127.8549999999996},{"$f":"VLOOKUP($A32,F1__World_Data!$A$4:$DP$191,10,FALSE)","v":8841.1560000000009},{"$f":"VLOOKUP($A32,F1__World_Data!$A$4:$DP$191,9,FALSE)","v":8550.4439999999995},{"$f":"VLOOKUP($A32,F1__World_Data!$A$4:$DP$191,8,FALSE)","v":8263.4339999999993},{"$f":"VLOOKUP($A32,F1__World_Data!$A$4:$DP$191,7,FALSE)","v":7986.0619999999999},{"$f":"VLOOKUP($A32,F1__World_Data!$A$4:$DP$191,6,FALSE)","v":7719.1080000000002},{"$f":"VLOOKUP($A32,F1__World_Data!$A$4:$DP$191,5,FALSE)","v":7461.6360000000004},{"$f":"VLOOKUP($A32,F1__World_Data!$A$4:$DP$191,4,FALSE)","v":7215.799},{"$f":"VLOOKUP($A32,F1__World_Data!$A$4:$DP$191,3,FALSE)","v":6983.8239999999996},{"$f":"VLOOKUP($A32,F1__World_Data!$A$4:$DP$191,2,FALSE)","v":6767.0919999999996},null,{"$f":"VLOOKUP($A32,F1__World_Data!$A$4:$DP$191,120,FALSE)","v":63.856999999999999},{"$f":"VLOOKUP($A32,F1__World_Data!$A$4:$DP$191,119,FALSE)","v":63.537999999999997},{"$f":"VLOOKUP($A32,F1__World_Data!$A$4:$DP$191,118,FALSE)","v":63.152999999999999},{"$f":"VLOOKUP($A32,F1__World_Data!$A$4:$DP$191,117,FALSE)","v":62.649000000000001},{"$f":"VLOOKUP($A32,F1__World_Data!$A$4:$DP$191,116,FALSE)","v":61.968000000000004},{"$f":"VLOOKUP($A32,F1__World_Data!$A$4:$DP$191,115,FALSE)","v":61.098999999999997},{"$f":"VLOOKUP($A32,F1__World_Data!$A$4:$DP$191,114,FALSE)","v":60.06},{"$f":"VLOOKUP($A32,F1__World_Data!$A$4:$DP$191,113,FALSE)","v":58.895000000000003},{"$f":"VLOOKUP($A32,F1__World_Data!$A$4:$DP$191,112,FALSE)","v":57.668999999999997},{"$f":"VLOOKUP($A32,F1__World_Data!$A$4:$DP$191,111,FALSE)","v":56.46},{"$f":"VLOOKUP($A32,F1__World_Data!$A$4:$DP$191,110,FALSE)","v":55.36},{"$f":"VLOOKUP($A32,F1__World_Data!$A$4:$DP$191,109,FALSE)","v":54.451999999999998},{"$f":"VLOOKUP($A32,F1__World_Data!$A$4:$DP$191,108,FALSE)","v":53.795000000000002},{"$f":"VLOOKUP($A32,F1__World_Data!$A$4:$DP$191,107,FALSE)","v":53.447000000000003},{"$f":"VLOOKUP($A32,F1__World_Data!$A$4:$DP$191,106,FALSE)","v":53.444000000000003},{"$f":"VLOOKUP($A32,F1__World_Data!$A$4:$DP$191,105,FALSE)","v":53.749000000000002},{"$f":"VLOOKUP($A32,F1__World_Data!$A$4:$DP$191,104,FALSE)","v":54.31},{"$f":"VLOOKUP($A32,F1__World_Data!$A$4:$DP$191,103,FALSE)","v":55.088999999999999},{"$f":"VLOOKUP($A32,F1__World_Data!$A$4:$DP$191,102,FALSE)","v":56.048000000000002},{"$f":"VLOOKUP($A32,F1__World_Data!$A$4:$DP$191,101,FALSE)","v":57.143999999999998},{"$f":"VLOOKUP($A32,F1__World_Data!$A$4:$DP$191,100,FALSE)","v":58.314999999999998},{"$f":"VLOOKUP($A32,F1__World_Data!$A$4:$DP$191,99,FALSE)","v":59.488999999999997},{"$f":"VLOOKUP($A32,F1__World_Data!$A$4:$DP$191,98,FALSE)","v":60.594999999999999},{"$f":"VLOOKUP($A32,F1__World_Data!$A$4:$DP$191,97,FALSE)","v":61.561},{"$f":"VLOOKUP($A32,F1__World_Data!$A$4:$DP$191,96,FALSE)","v":62.331000000000003},{"$f":"VLOOKUP($A32,F1__World_Data!$A$4:$DP$191,95,FALSE)","v":62.893999999999998},{"$f":"VLOOKUP($A32,F1__World_Data!$A$4:$DP$191,94,FALSE)","v":63.247},{"$f":"VLOOKUP($A32,F1__World_Data!$A$4:$DP$191,93,FALSE)","v":63.384},{"$f":"VLOOKUP($A32,F1__World_Data!$A$4:$DP$191,92,FALSE)","v":63.307000000000002},{"$f":"VLOOKUP($A32,F1__World_Data!$A$4:$DP$191,91,FALSE)","v":63.034999999999997},{"$f":"VLOOKUP($A32,F1__World_Data!$A$4:$DP$191,90,FALSE)","v":62.619},{"$f":"VLOOKUP($A32,F1__World_Data!$A$4:$DP$191,89,FALSE)","v":62.109000000000002},{"$f":"VLOOKUP($A32,F1__World_Data!$A$4:$DP$191,88,FALSE)","v":61.54},{"$f":"VLOOKUP($A32,F1__World_Data!$A$4:$DP$191,87,FALSE)","v":60.945999999999998},{"$f":"VLOOKUP($A32,F1__World_Data!$A$4:$DP$191,86,FALSE)","v":60.353000000000002},{"$f":"VLOOKUP($A32,F1__World_Data!$A$4:$DP$191,85,FALSE)","v":59.765999999999998},{"$f":"VLOOKUP($A32,F1__World_Data!$A$4:$DP$191,84,FALSE)","v":59.191000000000003},{"$f":"VLOOKUP($A32,F1__World_Data!$A$4:$DP$191,83,FALSE)","v":58.637},{"$f":"VLOOKUP($A32,F1__World_Data!$A$4:$DP$191,82,FALSE)","v":58.106999999999999},{"$f":"VLOOKUP($A32,F1__World_Data!$A$4:$DP$191,81,FALSE)","v":57.59},{"$f":"VLOOKUP($A32,F1__World_Data!$A$4:$DP$191,80,FALSE)","v":57.070999999999998},{"$f":"VLOOKUP($A32,F1__World_Data!$A$4:$DP$191,79,FALSE)","v":56.537999999999997},{"$f":"VLOOKUP($A32,F1__World_Data!$A$4:$DP$191,78,FALSE)","v":55.99},{"$f":"VLOOKUP($A32,F1__World_Data!$A$4:$DP$191,77,FALSE)","v":55.427999999999997},{"$f":"VLOOKUP($A32,F1__World_Data!$A$4:$DP$191,76,FALSE)","v":54.856000000000002},{"$f":"VLOOKUP($A32,F1__World_Data!$A$4:$DP$191,75,FALSE)","v":54.280999999999999},{"$f":"VLOOKUP($A32,F1__World_Data!$A$4:$DP$191,74,FALSE)","v":53.713000000000001},{"$f":"VLOOKUP($A32,F1__World_Data!$A$4:$DP$191,73,FALSE)","v":53.156999999999996},{"$f":"VLOOKUP($A32,F1__World_Data!$A$4:$DP$191,72,FALSE)","v":52.62},{"$f":"VLOOKUP($A32,F1__World_Data!$A$4:$DP$191,71,FALSE)","v":52.106000000000002},{"$f":"VLOOKUP($A32,F1__World_Data!$A$4:$DP$191,70,FALSE)","v":51.615000000000002},{"$f":"VLOOKUP($A32,F1__World_Data!$A$4:$DP$191,69,FALSE)","v":51.148000000000003},{"$f":"VLOOKUP($A32,F1__World_Data!$A$4:$DP$191,68,FALSE)","v":50.704999999999998},{"$f":"VLOOKUP($A32,F1__World_Data!$A$4:$DP$191,67,FALSE)","v":50.283999999999999},{"$f":"VLOOKUP($A32,F1__World_Data!$A$4:$DP$191,66,FALSE)","v":49.887999999999998},{"$f":"VLOOKUP($A32,F1__World_Data!$A$4:$DP$191,65,FALSE)","v":49.509},{"$f":"VLOOKUP($A32,F1__World_Data!$A$4:$DP$191,64,FALSE)","v":49.142000000000003},{"$f":"VLOOKUP($A32,F1__World_Data!$A$4:$DP$191,63,FALSE)","v":48.777000000000001},{"$f":"VLOOKUP($A32,F1__World_Data!$A$4:$DP$191,62,FALSE)","v":48.405999999999999}]
["Algeria",{"$f":"VLOOKUP($A33,F1__World_Data!$A$4:$DP$191,60,FALSE)","v":42228.415000000001},{"$f":"VLOOKUP($A33,F1__World_Data!$A$4:$DP$191,59,FALSE)","v":41389.173999999999},{"$f":"VLOOKUP($A33,F1__World_Data!$A$4:$DP$191,58,FALSE)","v":40551.398000000001},{"$f":"VLOOKUP($A33,F1__World_Data!$A$4:$DP$191,57,FALSE)","v":39728.019999999997},{"$f":"VLOOKUP($A33,F1__World_Data!$A$4:$DP$191,56,FALSE)","v":38923.688000000002},{"$f":"VLOOKUP($A33,F1__World_Data!$A$4:$DP$191,55,FALSE)","v":38140.135000000002},{"$f":"VLOOKUP($A33,F1__World_Data!$A$4:$DP$191,54,FALSE)","v":37383.898999999998},{"$f":"VLOOKUP($A33,F1__World_Data!$A$4:$DP$191,53,FALSE)","v":36661.438000000002},{"$f":"VLOOKUP($A33,F1__World_Data!$A$4:$DP$191,52,FALSE)","v":35977.451000000001},{"$f":"VLOOKUP($A33,F1__World_Data!$A$4:$DP$191,51,FALSE)","v":35333.881999999998},{"$f":"VLOOKUP($A33,F1__World_Data!$A$4:$DP$191,50,FALSE)","v":34730.603999999999},{"$f":"VLOOKUP($A33,F1__World_Data!$A$4:$DP$191,49,FALSE)","v":34166.976000000002},{"$f":"VLOOKUP($A33,F1__World_Data!$A$4:$DP$191,48,FALSE)","v":33641.006999999998},{"$f":"VLOOKUP($A33,F1__World_Data!$A$4:$DP$191,47,FALSE)","v":33149.72},{"$f":"VLOOKUP($A33,F1__World_Data!$A$4:$DP$191,46,FALSE)","v":32692.152999999998},{"$f":"VLOOKUP($A33,F1__World_Data!$A$4:$DP$191,45,FALSE)","v":32264.159},{"$f":"VLOOKUP($A33,F1__World_Data!$A$4:$DP$191,44,FALSE)","v":31855.11},{"$f":"VLOOKUP($A33,F1__World_Data!$A$4:$DP$191,43,FALSE)","v":31451.512999999999},{"$f":"VLOOKUP($A33,F1__World_Data!$A$4:$DP$191,42,FALSE)","v":31042.238000000001},{"$f":"VLOOKUP($A33,F1__World_Data!$A$4:$DP$191,41,FALSE)","v":30623.405999999999},{"$f":"VLOOKUP($A33,F1__World_Data!$A$4:$DP$191,40,FALSE)","v":30192.75},{"$f":"VLOOKUP($A33,F1__World_Data!$A$4:$DP$191,39,FALSE)","v":29742.98},{"$f":"VLOOKUP($A33,F1__World_Data!$A$4:$DP$191,38,FALSE)","v":29266.415000000001},{"$f":"VLOOKUP($A33,F1__World_Data!$A$4:$DP$191,37,FALSE)","v":28757.788},{"$f":"VLOOKUP($A33,F1__World_Data!$A$4:$DP$191,36,FALSE)","v":28213.776999999998},{"$f":"VLOOKUP($A33,F1__World_Data!$A$4:$DP$191,35,FALSE)","v":27635.517},{"$f":"VLOOKUP($A33,F1__World_Data!$A$4:$DP$191,34,FALSE)","v":27028.33},{"$f":"VLOOKUP($A33,F1__World_Data!$A$4:$DP$191,33,FALSE)","v":26400.468000000001},{"$f":"VLOOKUP($A33,F1__World_Data!$A$4:$DP$191,32,FALSE)","v":25758.871999999999},{"$f":"VLOOKUP($A33,F1__World_Data!$A$4:$DP$191,31,FALSE)","v":25106.191999999999},{"$f":"VLOOKUP($A33,F1__World_Data!$A$4:$DP$191,30,FALSE)","v":24443.472000000002},{"$f":"VLOOKUP($A33,F1__World_Data!$A$4:$DP$191,29,FALSE)","v":23774.287},{"$f":"VLOOKUP($A33,F1__World_Data!$A$4:$DP$191,28,FALSE)","v":23102.385999999999},{"$f":"VLOOKUP($A33,F1__World_Data!$A$4:$DP$191,27,FALSE)","v":22431.507000000001},{"$f":"VLOOKUP($A33,F1__World_Data!$A$4:$DP$191,26,FALSE)","v":21763.578000000001},{"$f":"VLOOKUP($A33,F1__World_Data!$A$4:$DP$191,25,FALSE)","v":21101.875},{"$f":"VLOOKUP($A33,F1__World_Data!$A$4:$DP$191,24,FALSE)","v":20452.901000000002},{"$f":"VLOOKUP($A33,F1__World_Data!$A$4:$DP$191,23,FALSE)","v":19824.296999999999},{"$f":"VLOOKUP($A33,F1__World_Data!$A$4:$DP$191,22,FALSE)","v":19221.659},{"$f":"VLOOKUP($A33,F1__World_Data!$A$4:$DP$191,21,FALSE)","v":18647.800999999999},{"$f":"VLOOKUP($A33,F1__World_Data!$A$4:$DP$191,20,FALSE)","v":18102.266},{"$f":"VLOOKUP($A33,F1__World_Data!$A$4:$DP$191,19,FALSE)","v":17582.899000000001},{"$f":"VLOOKUP($A33,F1__World_Data!$A$4:$DP$191,18,FALSE)","v":17085.798999999999},{"$f":"VLOOKUP($A33,F1__World_Data!$A$4:$DP$191,17,FALSE)","v":16607.705999999998},{"$f":"VLOOKUP($A33,F1__World_Data!$A$4:$DP$191,16,FALSE)","v":16149.018},{"$f":"VLOOKUP($A33,F1__World_Data!$A$4:$DP$191,15,FALSE)","v":15709.831},{"$f":"VLOOKUP($A33,F1__World_Data!$A$4:$DP$191,14,FALSE)","v":15285.992},{"$f":"VLOOKUP($A33,F1__World_Data!$A$4:$DP$191,13,FALSE)","v":14872.253000000001},{"$f":"VLOOKUP($A33,F1__World_Data!$A$4:$DP$191,12,FALSE)","v":14464.992},{"$f":"VLOOKUP($A33,F1__World_Data!$A$4:$DP$191,11,FALSE)","v":14061.724},{"$f":"VLOOKUP($A33,F1__World_Data!$A$4:$DP$191,10,FALSE)","v":13663.581},{"$f":"VLOOKUP($A33,F1__World_Data!$A$4:$DP$191,9,FALSE)","v":13275.02},{"$f":"VLOOKUP($A33,F1__World_Data!$A$4:$DP$191,8,FALSE)","v":12902.626},{"$f":"VLOOKUP($A33,F1__World_Data!$A$4:$DP$191,7,FALSE)","v":12550.88},{"$f":"VLOOKUP($A33,F1__World_Data!$A$4:$DP$191,6,FALSE)","v":12221.674999999999},{"$f":"VLOOKUP($A33,F1__World_Data!$A$4:$DP$191,5,FALSE)","v":11912.8},{"$f":"VLOOKUP($A33,F1__World_Data!$A$4:$DP$191,4,FALSE)","v":11619.828},{"$f":"VLOOKUP($A33,F1__World_Data!$A$4:$DP$191,3,FALSE)","v":11336.335999999999},{"$f":"VLOOKUP($A33,F1__World_Data!$A$4:$DP$191,2,FALSE)","v":11057.864},null,{"$f":"VLOOKUP($A33,F1__World_Data!$A$4:$DP$191,120,FALSE)","v":78.457999999999998},{"$f":"VLOOKUP($A33,F1__World_Data!$A$4:$DP$191,119,FALSE)","v":78.332999999999998},{"$f":"VLOOKUP($A33,F1__World_Data!$A$4:$DP$191,118,FALSE)","v":78.194000000000003},{"$f":"VLOOKUP($A33,F1__World_Data!$A$4:$DP$191,117,FALSE)","v":78.025000000000006},{"$f":"VLOOKUP($A33,F1__World_Data!$A$4:$DP$191,116,FALSE)","v":77.813000000000002},{"$f":"VLOOKUP($A33,F1__World_Data!$A$4:$DP$191,115,FALSE)","v":77.554000000000002},{"$f":"VLOOKUP($A33,F1__World_Data!$A$4:$DP$191,114,FALSE)","v":77.251999999999995},{"$f":"VLOOKUP($A33,F1__World_Data!$A$4:$DP$191,113,FALSE)","v":76.914000000000001},{"$f":"VLOOKUP($A33,F1__World_Data!$A$4:$DP$191,112,FALSE)","v":76.561999999999998},{"$f":"VLOOKUP($A33,F1__World_Data!$A$4:$DP$191,111,FALSE)","v":76.221000000000004},{"$f":"VLOOKUP($A33,F1__World_Data!$A$4:$DP$191,110,FALSE)","v":75.912000000000006},{"$f":"VLOOKUP($A33,F1__World_Data!$A$4:$DP$191,109,FALSE)","v":75.646000000000001},{"$f":"VLOOKUP($A33,F1__World_Data!$A$4:$DP$191,108,FALSE)","v":75.423000000000002},{"$f":"VLOOKUP($A33,F1__World_Data!$A$4:$DP$191,107,FALSE)","v":75.227999999999994},{"$f":"VLOOKUP($A33,F1__World_Data!$A$4:$DP$191,106,FALSE)","v":75.039000000000001},{"$f":"VLOOKUP($A33,F1__World_Data!$A$4:$DP$191,105,FALSE)","v":74.828000000000003},{"$f":"VLOOKUP($A33,F1__World_Data!$A$4:$DP$191,104,FALSE)","v":74.578999999999994},{"$f":"VLOOKUP($A33,F1__World_Data!$A$4:$DP$191,103,FALSE)","v":74.287999999999997},{"$f":"VLOOKUP($A33,F1__World_Data!$A$4:$DP$191,102,FALSE)","v":73.954999999999998},{"$f":"VLOOKUP($A33,F1__World_Data!$A$4:$DP$191,101,FALSE)","v":73.587000000000003},{"$f":"VLOOKUP($A33,F1__World_Data!$A$4:$DP$191,100,FALSE)","v":73.207999999999998},{"$f":"VLOOKUP($A33,F1__World_Data!$A$4:$DP$191,99,FALSE)","v":72.837999999999994},{"$f":"VLOOKUP($A33,F1__World_Data!$A$4:$DP$191,98,FALSE)","v":72.495000000000005},{"$f":"VLOOKUP($A33,F1__World_Data!$A$4:$DP$191,97,FALSE)","v":72.204999999999998},{"$f":"VLOOKUP($A33,F1__World_Data!$A$4:$DP$191,96,FALSE)","v":71.992000000000004},{"$f":"VLOOKUP($A33,F1__World_Data!$A$4:$DP$191,95,FALSE)","v":71.86},{"$f":"VLOOKUP($A33,F1__World_Data!$A$4:$DP$191,94,FALSE)","v":71.802000000000007},{"$f":"VLOOKUP($A33,F1__World_Data!$A$4:$DP$191,93,FALSE)","v":71.802999999999997},{"$f":"VLOOKUP($A33,F1__World_Data!$A$4:$DP$191,92,FALSE)","v":71.835999999999999},{"$f":"VLOOKUP($A33,F1__World_Data!$A$4:$DP$191,91,FALSE)","v":71.86},{"$f":"VLOOKUP($A33,F1__World_Data!$A$4:$DP$191,90,FALSE)","v":71.843000000000004},{"$f":"VLOOKUP($A33,F1__World_Data!$A$4:$DP$191,89,FALSE)","v":71.760000000000005},{"$f":"VLOOKUP($A33,F1__World_Data!$A$4:$DP$191,88,FALSE)","v":71.605000000000004},{"$f":"VLOOKUP($A33,F1__World_Data!$A$4:$DP$191,87,FALSE)","v":71.388000000000005},{"$f":"VLOOKUP($A33,F1__World_Data!$A$4:$DP$191,86,FALSE)","v":71.134},{"$f":"VLOOKUP($A33,F1__World_Data!$A$4:$DP$191,85,FALSE)","v":70.876000000000005},{"$f":"VLOOKUP($A33,F1__World_Data!$A$4:$DP$191,84,FALSE)","v":70.635000000000005},{"$f":"VLOOKUP($A33,F1__World_Data!$A$4:$DP$191,83,FALSE)","v":70.415999999999997},{"$f":"VLOOKUP($A33,F1__World_Data!$A$4:$DP$191,82,FALSE)","v":70.207999999999998},{"$f":"VLOOKUP($A33,F1__World_Data!$A$4:$DP$191,81,FALSE)","v":69.991},{"$f":"VLOOKUP($A33,F1__World_Data!$A$4:$DP$191,80,FALSE)","v":69.742000000000004},{"$f":"VLOOKUP($A33,F1__World_Data!$A$4:$DP$191,79,FALSE)","v":69.447999999999993},{"$f":"VLOOKUP($A33,F1__World_Data!$A$4:$DP$191,78,FALSE)","v":69.11},{"$f":"VLOOKUP($A33,F1__World_Data!$A$4:$DP$191,77,FALSE)","v":68.736000000000004},{"$f":"VLOOKUP($A33,F1__World_Data!$A$4:$DP$191,76,FALSE)","v":68.343000000000004},{"$f":"VLOOKUP($A33,F1__World_Data!$A$4:$DP$191,75,FALSE)","v":67.953000000000003},{"$f":"VLOOKUP($A33,F1__World_Data!$A$4:$DP$191,74,FALSE)","v":67.581999999999994},{"$f":"VLOOKUP($A33,F1__World_Data!$A$4:$DP$191,73,FALSE)","v":67.236999999999995},{"$f":"VLOOKUP($A33,F1__World_Data!$A$4:$DP$191,72,FALSE)","v":66.935000000000002},{"$f":"VLOOKUP($A33,F1__World_Data!$A$4:$DP$191,71,FALSE)","v":66.688999999999993},{"$f":"VLOOKUP($A33,F1__World_Data!$A$4:$DP$191,70,FALSE)","v":66.486999999999995},{"$f":"VLOOKUP($A33,F1__World_Data!$A$4:$DP$191,69,FALSE)","v":66.304000000000002},{"$f":"VLOOKUP($A33,F1__World_Data!$A$4:$DP$191,68,FALSE)","v":66.11},{"$f":"VLOOKUP($A33,F1__World_Data!$A$4:$DP$191,67,FALSE)","v":65.849999999999994},{"$f":"VLOOKUP($A33,F1__World_Data!$A$4:$DP$191,66,FALSE)","v":65.462999999999994},{"$f":"VLOOKUP($A33,F1__World_Data!$A$4:$DP$191,65,FALSE)","v":64.914000000000001},{"$f":"VLOOKUP($A33,F1__World_Data!$A$4:$DP$191,64,FALSE)","v":64.19},{"$f":"VLOOKUP($A33,F1__World_Data!$A$4:$DP$191,63,FALSE)","v":63.301000000000002},{"$f":"VLOOKUP($A33,F1__World_Data!$A$4:$DP$191,62,FALSE)","v":62.283000000000001}]
["Sudan",{"$f":"VLOOKUP($A34,F1__World_Data!$A$4:$DP$191,60,FALSE)","v":41801.531999999999},{"$f":"VLOOKUP($A34,F1__World_Data!$A$4:$DP$191,59,FALSE)","v":40813.398000000001},{"$f":"VLOOKUP($A34,F1__World_Data!$A$4:$DP$191,58,FALSE)","v":39847.432999999997},{"$f":"VLOOKUP($A34,F1__World_Data!$A$4:$DP$191,57,FALSE)","v":38902.947999999997},{"$f":"VLOOKUP($A34,F1__World_Data!$A$4:$DP$191,56,FALSE)","v":37977.656999999999},{"$f":"VLOOKUP($A34,F1__World_Data!$A$4:$DP$191,55,FALSE)","v":37072.555},{"$f":"VLOOKUP($A34,F1__World_Data!$A$4:$DP$191,54,FALSE)","v":36193.781000000003},{"$f":"VLOOKUP($A34,F1__World_Data!$A$4:$DP$191,53,FALSE)","v":35349.675999999999},{"$f":"VLOOKUP($A34,F1__World_Data!$A$4:$DP$191,52,FALSE)","v":34545.014000000003},{"$f":"VLOOKUP($A34,F1__World_Data!$A$4:$DP$191,51,FALSE)","v":33783.779000000002},{"$f":"VLOOKUP($A34,F1__World_Data!$A$4:$DP$191,50,FALSE)","v":33060.843999999997},{"$f":"VLOOKUP($A34,F1__World_Data!$A$4:$DP$191,49,FALSE)","v":32360.618999999999},{"$f":"VLOOKUP($A34,F1__World_Data!$A$4:$DP$191,48,FALSE)","v":31661.824000000001},{"$f":"VLOOKUP($A34,F1__World_Data!$A$4:$DP$191,47,FALSE)","v":30949.513999999999},{"$f":"VLOOKUP($A34,F1__World_Data!$A$4:$DP$191,46,FALSE)","v":30214.188999999998},{"$f":"VLOOKUP($A34,F1__World_Data!$A$4:$DP$191,45,FALSE)","v":29460.517},{"$f":"VLOOKUP($A34,F1__World_Data!$A$4:$DP$191,44,FALSE)","v":28704.786},{"$f":"VLOOKUP($A34,F1__World_Data!$A$4:$DP$191,43,FALSE)","v":27971.077000000001},{"$f":"VLOOKUP($A34,F1__World_Data!$A$4:$DP$191,42,FALSE)","v":27275.019},{"$f":"VLOOKUP($A34,F1__World_Data!$A$4:$DP$191,41,FALSE)","v":26626.511999999999},{"$f":"VLOOKUP($A34,F1__World_Data!$A$4:$DP$191,40,FALSE)","v":26015.518},{"$f":"VLOOKUP($A34,F1__World_Data!$A$4:$DP$191,39,FALSE)","v":25413.912},{"$f":"VLOOKUP($A34,F1__World_Data!$A$4:$DP$191,38,FALSE)","v":24782.383999999998},{"$f":"VLOOKUP($A34,F1__World_Data!$A$4:$DP$191,37,FALSE)","v":24094.741000000002},{"$f":"VLOOKUP($A34,F1__World_Data!$A$4:$DP$191,36,FALSE)","v":23338.465},{"$f":"VLOOKUP($A34,F1__World_Data!$A$4:$DP$191,35,FALSE)","v":22527.837},{"$f":"VLOOKUP($A34,F1__World_Data!$A$4:$DP$191,34,FALSE)","v":21696.240000000002},{"$f":"VLOOKUP($A34,F1__World_Data!$A$4:$DP$191,33,FALSE)","v":20891.441999999999},{"$f":"VLOOKUP($A34,F1__World_Data!$A$4:$DP$191,32,FALSE)","v":20147.592000000001},{"$f":"VLOOKUP($A34,F1__World_Data!$A$4:$DP$191,31,FALSE)","v":19476.652999999998},{"$f":"VLOOKUP($A34,F1__World_Data!$A$4:$DP$191,30,FALSE)","v":18867.559000000001},{"$f":"VLOOKUP($A34,F1__World_Data!$A$4:$DP$191,29,FALSE)","v":18303.43},{"$f":"VLOOKUP($A34,F1__World_Data!$A$4:$DP$191,28,FALSE)","v":17757.493999999999},{"$f":"VLOOKUP($A34,F1__World_Data!$A$4:$DP$191,27,FALSE)","v":17210.182000000001},{"$f":"VLOOKUP($A34,F1__World_Data!$A$4:$DP$191,26,FALSE)","v":16657.955999999998},{"$f":"VLOOKUP($A34,F1__World_Data!$A$4:$DP$191,25,FALSE)","v":16107.612999999999},{"$f":"VLOOKUP($A34,F1__World_Data!$A$4:$DP$191,24,FALSE)","v":15562.129000000001},{"$f":"VLOOKUP($A34,F1__World_Data!$A$4:$DP$191,23,FALSE)","v":15027.254000000001},{"$f":"VLOOKUP($A34,F1__World_Data!$A$4:$DP$191,22,FALSE)","v":14507.466},{"$f":"VLOOKUP($A34,F1__World_Data!$A$4:$DP$191,21,FALSE)","v":14002.302},{"$f":"VLOOKUP($A34,F1__World_Data!$A$4:$DP$191,20,FALSE)","v":13510.429},{"$f":"VLOOKUP($A34,F1__World_Data!$A$4:$DP$191,19,FALSE)","v":13034.630999999999},{"$f":"VLOOKUP($A34,F1__World_Data!$A$4:$DP$191,18,FALSE)","v":12578.397999999999},{"$f":"VLOOKUP($A34,F1__World_Data!$A$4:$DP$191,17,FALSE)","v":12144.128000000001},{"$f":"VLOOKUP($A34,F1__World_Data!$A$4:$DP$191,16,FALSE)","v":11732.957},{"$f":"VLOOKUP($A34,F1__World_Data!$A$4:$DP$191,15,FALSE)","v":11343.923000000001},{"$f":"VLOOKUP($A34,F1__World_Data!$A$4:$DP$191,14,FALSE)","v":10974.626},{"$f":"VLOOKUP($A34,F1__World_Data!$A$4:$DP$191,13,FALSE)","v":10621.471},{"$f":"VLOOKUP($A34,F1__World_Data!$A$4:$DP$191,12,FALSE)","v":10281.695},{"$f":"VLOOKUP($A34,F1__World_Data!$A$4:$DP$191,11,FALSE)","v":9954.4110000000001},{"$f":"VLOOKUP($A34,F1__World_Data!$A$4:$DP$191,10,FALSE)","v":9639.8459999999995},{"$f":"VLOOKUP($A34,F1__World_Data!$A$4:$DP$191,9,FALSE)","v":9337.6620000000003},{"$f":"VLOOKUP($A34,F1__World_Data!$A$4:$DP$191,8,FALSE)","v":9047.8029999999999},{"$f":"VLOOKUP($A34,F1__World_Data!$A$4:$DP$191,7,FALSE)","v":8770.0939999999991},{"$f":"VLOOKUP($A34,F1__World_Data!$A$4:$DP$191,6,FALSE)","v":8503.9889999999996},{"$f":"VLOOKUP($A34,F1__World_Data!$A$4:$DP$191,5,FALSE)","v":8248.8179999999993},{"$f":"VLOOKUP($A34,F1__World_Data!$A$4:$DP$191,4,FALSE)","v":8004.1220000000003},{"$f":"VLOOKUP($A34,F1__World_Data!$A$4:$DP$191,3,FALSE)","v":7769.4750000000004},{"$f":"VLOOKUP($A34,F1__World_Data!$A$4:$DP$191,2,FALSE)","v":7544.4979999999996},null,{"$f":"VLOOKUP($A34,F1__World_Data!$A$4:$DP$191,120,FALSE)","v":63.856999999999999},{"$f":"VLOOKUP($A34,F1__World_Data!$A$4:$DP$191,119,FALSE)","v":63.537999999999997},{"$f":"VLOOKUP($A34,F1__World_Data!$A$4:$DP$191,118,FALSE)","v":63.152999999999999},{"$f":"VLOOKUP($A34,F1__World_Data!$A$4:$DP$191,117,FALSE)","v":62.649000000000001},{"$f":"VLOOKUP($A34,F1__World_Data!$A$4:$DP$191,116,FALSE)","v":61.968000000000004},{"$f":"VLOOKUP($A34,F1__World_Data!$A$4:$DP$191,115,FALSE)","v":61.098999999999997},{"$f":"VLOOKUP($A34,F1__World_Data!$A$4:$DP$191,114,FALSE)","v":60.06},{"$f":"VLOOKUP($A34,F1__World_Data!$A$4:$DP$191,113,FALSE)","v":58.895000000000003},{"$f":"VLOOKUP($A34,F1__World_Data!$A$4:$DP$191,112,FALSE)","v":57.668999999999997},{"$f":"VLOOKUP($A34,F1__World_Data!$A$4:$DP$191,111,FALSE)","v":56.46},{"$f":"VLOOKUP($A34,F1__World_Data!$A$4:$DP$191,110,FALSE)","v":55.36},{"$f":"VLOOKUP($A34,F1__World_Data!$A$4:$DP$191,109,FALSE)","v":54.451999999999998},{"$f":"VLOOKUP($A34,F1__World_Data!$A$4:$DP$191,108,FALSE)","v":53.795000000000002},{"$f":"VLOOKUP($A34,F1__World_Data!$A$4:$DP$191,107,FALSE)","v":53.447000000000003},{"$f":"VLOOKUP($A34,F1__World_Data!$A$4:$DP$191,106,FALSE)","v":53.444000000000003},{"$f":"VLOOKUP($A34,F1__World_Data!$A$4:$DP$191,105,FALSE)","v":53.749000000000002},{"$f":"VLOOKUP($A34,F1__World_Data!$A$4:$DP$191,104,FALSE)","v":54.31},{"$f":"VLOOKUP($A34,F1__World_Data!$A$4:$DP$191,103,FALSE)","v":55.088999999999999},{"$f":"VLOOKUP($A34,F1__World_Data!$A$4:$DP$191,102,FALSE)","v":56.048000000000002},{"$f":"VLOOKUP($A34,F1__World_Data!$A$4:$DP$191,101,FALSE)","v":57.143999999999998},{"$f":"VLOOKUP($A34,F1__World_Data!$A$4:$DP$191,100,FALSE)","v":58.314999999999998},{"$f":"VLOOKUP($A34,F1__World_Data!$A$4:$DP$191,99,FALSE)","v":59.488999999999997},{"$f":"VLOOKUP($A34,F1__World_Data!$A$4:$DP$191,98,FALSE)","v":60.594999999999999},{"$f":"VLOOKUP($A34,F1__World_Data!$A$4:$DP$191,97,FALSE)","v":61.561},{"$f":"VLOOKUP($A34,F1__World_Data!$A$4:$DP$191,96,FALSE)","v":62.331000000000003},{"$f":"VLOOKUP($A34,F1__World_Data!$A$4:$DP$191,95,FALSE)","v":62.893999999999998},{"$f":"VLOOKUP($A34,F1__World_Data!$A$4:$DP$191,94,FALSE)","v":63.247},{"$f":"VLOOKUP($A34,F1__World_Data!$A$4:$DP$191,93,FALSE)","v":63.384},{"$f":"VLOOKUP($A34,F1__World_Data!$A$4:$DP$191,92,FALSE)","v":63.307000000000002},{"$f":"VLOOKUP($A34,F1__World_Data!$A$4:$DP$191,91,FALSE)","v":63.034999999999997},{"$f":"VLOOKUP($A34,F1__World_Data!$A$4:$DP$191,90,FALSE)","v":62.619},{"$f":"VLOOKUP($A34,F1__World_Data!$A$4:$DP$191,89,FALSE)","v":62.109000000000002},{"$f":"VLOOKUP($A34,F1__World_Data!$A$4:$DP$191,88,FALSE)","v":61.54},{"$f":"VLOOKUP($A34,F1__World_Data!$A$4:$DP$191,87,FALSE)","v":60.945999999999998},{"$f":"VLOOKUP($A34,F1__World_Data!$A$4:$DP$191,86,FALSE)","v":60.353000000000002},{"$f":"VLOOKUP($A34,F1__World_Data!$A$4:$DP$191,85,FALSE)","v":59.765999999999998},{"$f":"VLOOKUP($A34,F1__World_Data!$A$4:$DP$191,84,FALSE)","v":59.191000000000003},{"$f":"VLOOKUP($A34,F1__World_Data!$A$4:$DP$191,83,FALSE)","v":58.637},{"$f":"VLOOKUP($A34,F1__World_Data!$A$4:$DP$191,82,FALSE)","v":58.106999999999999},{"$f":"VLOOKUP($A34,F1__World_Data!$A$4:$DP$191,81,FALSE)","v":57.59},{"$f":"VLOOKUP($A34,F1__World_Data!$A$4:$DP$191,80,FALSE)","v":57.070999999999998},{"$f":"VLOOKUP($A34,F1__World_Data!$A$4:$DP$191,79,FALSE)","v":56.537999999999997},{"$f":"VLOOKUP($A34,F1__World_Data!$A$4:$DP$191,78,FALSE)","v":55.99},{"$f":"VLOOKUP($A34,F1__World_Data!$A$4:$DP$191,77,FALSE)","v":55.427999999999997},{"$f":"VLOOKUP($A34,F1__World_Data!$A$4:$DP$191,76,FALSE)","v":54.856000000000002},{"$f":"VLOOKUP($A34,F1__World_Data!$A$4:$DP$191,75,FALSE)","v":54.280999999999999},{"$f":"VLOOKUP($A34,F1__World_Data!$A$4:$DP$191,74,FALSE)","v":53.713000000000001},{"$f":"VLOOKUP($A34,F1__World_Data!$A$4:$DP$191,73,FALSE)","v":53.156999999999996},{"$f":"VLOOKUP($A34,F1__World_Data!$A$4:$DP$191,72,FALSE)","v":52.62},{"$f":"VLOOKUP($A34,F1__World_Data!$A$4:$DP$191,71,FALSE)","v":52.106000000000002},{"$f":"VLOOKUP($A34,F1__World_Data!$A$4:$DP$191,70,FALSE)","v":51.615000000000002},{"$f":"VLOOKUP($A34,F1__World_Data!$A$4:$DP$191,69,FALSE)","v":51.148000000000003},{"$f":"VLOOKUP($A34,F1__World_Data!$A$4:$DP$191,68,FALSE)","v":50.704999999999998},{"$f":"VLOOKUP($A34,F1__World_Data!$A$4:$DP$191,67,FALSE)","v":50.283999999999999},{"$f":"VLOOKUP($A34,F1__World_Data!$A$4:$DP$191,66,FALSE)","v":49.887999999999998},{"$f":"VLOOKUP($A34,F1__World_Data!$A$4:$DP$191,65,FALSE)","v":49.509},{"$f":"VLOOKUP($A34,F1__World_Data!$A$4:$DP$191,64,FALSE)","v":49.142000000000003},{"$f":"VLOOKUP($A34,F1__World_Data!$A$4:$DP$191,63,FALSE)","v":48.777000000000001},{"$f":"VLOOKUP($A34,F1__World_Data!$A$4:$DP$191,62,FALSE)","v":48.405999999999999}]
["Iraq",{"$f":"VLOOKUP($A35,F1__World_Data!$A$4:$DP$191,60,FALSE)","v":38433.603999999999},{"$f":"VLOOKUP($A35,F1__World_Data!$A$4:$DP$191,59,FALSE)","v":37552.788999999997},{"$f":"VLOOKUP($A35,F1__World_Data!$A$4:$DP$191,58,FALSE)","v":36610.631999999998},{"$f":"VLOOKUP($A35,F1__World_Data!$A$4:$DP$191,57,FALSE)","v":35572.269},{"$f":"VLOOKUP($A35,F1__World_Data!$A$4:$DP$191,56,FALSE)","v":34411.949000000001},{"$f":"VLOOKUP($A35,F1__World_Data!$A$4:$DP$191,55,FALSE)","v":33157.061000000002},{"$f":"VLOOKUP($A35,F1__World_Data!$A$4:$DP$191,54,FALSE)","v":31890.011999999999},{"$f":"VLOOKUP($A35,F1__World_Data!$A$4:$DP$191,53,FALSE)","v":30725.305},{"$f":"VLOOKUP($A35,F1__World_Data!$A$4:$DP$191,52,FALSE)","v":29741.976999999999},{"$f":"VLOOKUP($A35,F1__World_Data!$A$4:$DP$191,51,FALSE)","v":28973.156999999999},{"$f":"VLOOKUP($A35,F1__World_Data!$A$4:$DP$191,50,FALSE)","v":28385.739000000001},{"$f":"VLOOKUP($A35,F1__World_Data!$A$4:$DP$191,49,FALSE)","v":27911.241999999998},{"$f":"VLOOKUP($A35,F1__World_Data!$A$4:$DP$191,48,FALSE)","v":27448.124},{"$f":"VLOOKUP($A35,F1__World_Data!$A$4:$DP$191,47,FALSE)","v":26922.278999999999},{"$f":"VLOOKUP($A35,F1__World_Data!$A$4:$DP$191,46,FALSE)","v":26313.838},{"$f":"VLOOKUP($A35,F1__World_Data!$A$4:$DP$191,45,FALSE)","v":25644.503000000001},{"$f":"VLOOKUP($A35,F1__World_Data!$A$4:$DP$191,44,FALSE)","v":24931.921999999999},{"$f":"VLOOKUP($A35,F1__World_Data!$A$4:$DP$191,43,FALSE)","v":24208.178},{"$f":"VLOOKUP($A35,F1__World_Data!$A$4:$DP$191,42,FALSE)","v":23497.589},{"$f":"VLOOKUP($A35,F1__World_Data!$A$4:$DP$191,41,FALSE)","v":22802.061000000002},{"$f":"VLOOKUP($A35,F1__World_Data!$A$4:$DP$191,40,FALSE)","v":22114.33},{"$f":"VLOOKUP($A35,F1__World_Data!$A$4:$DP$191,39,FALSE)","v":21439.579000000002},{"$f":"VLOOKUP($A35,F1__World_Data!$A$4:$DP$191,38,FALSE)","v":20783.073},{"$f":"VLOOKUP($A35,F1__World_Data!$A$4:$DP$191,37,FALSE)","v":20149.342000000001},{"$f":"VLOOKUP($A35,F1__World_Data!$A$4:$DP$191,36,FALSE)","v":19539.348000000002},{"$f":"VLOOKUP($A35,F1__World_Data!$A$4:$DP$191,35,FALSE)","v":18955.087},{"$f":"VLOOKUP($A35,F1__World_Data!$A$4:$DP$191,34,FALSE)","v":18402.740000000002},{"$f":"VLOOKUP($A35,F1__World_Data!$A$4:$DP$191,33,FALSE)","v":17889.456999999999},{"$f":"VLOOKUP($A35,F1__World_Data!$A$4:$DP$191,32,FALSE)","v":17419.113000000001},{"$f":"VLOOKUP($A35,F1__World_Data!$A$4:$DP$191,31,FALSE)","v":16994.941999999999},{"$f":"VLOOKUP($A35,F1__World_Data!$A$4:$DP$191,30,FALSE)","v":16612.319},{"$f":"VLOOKUP($A35,F1__World_Data!$A$4:$DP$191,29,FALSE)","v":16257.072},{"$f":"VLOOKUP($A35,F1__World_Data!$A$4:$DP$191,28,FALSE)","v":15909.763999999999},{"$f":"VLOOKUP($A35,F1__World_Data!$A$4:$DP$191,27,FALSE)","v":15555.807000000001},{"$f":"VLOOKUP($A35,F1__World_Data!$A$4:$DP$191,26,FALSE)","v":15190.396000000001},{"$f":"VLOOKUP($A35,F1__World_Data!$A$4:$DP$191,25,FALSE)","v":14815.653},{"$f":"VLOOKUP($A35,F1__World_Data!$A$4:$DP$191,24,FALSE)","v":14432.466},{"$f":"VLOOKUP($A35,F1__World_Data!$A$4:$DP$191,23,FALSE)","v":14044.115},{"$f":"VLOOKUP($A35,F1__World_Data!$A$4:$DP$191,22,FALSE)","v":13653.348},{"$f":"VLOOKUP($A35,F1__World_Data!$A$4:$DP$191,21,FALSE)","v":13259.107},{"$f":"VLOOKUP($A35,F1__World_Data!$A$4:$DP$191,20,FALSE)","v":12860.678},{"$f":"VLOOKUP($A35,F1__World_Data!$A$4:$DP$191,19,FALSE)","v":12462.058999999999},{"$f":"VLOOKUP($A35,F1__World_Data!$A$4:$DP$191,18,FALSE)","v":12068.674999999999},{"$f":"VLOOKUP($A35,F1__World_Data!$A$4:$DP$191,17,FALSE)","v":11684.579},{"$f":"VLOOKUP($A35,F1__World_Data!$A$4:$DP$191,16,FALSE)","v":11312.062},{"$f":"VLOOKUP($A35,F1__World_Data!$A$4:$DP$191,15,FALSE)","v":10950.888000000001},{"$f":"VLOOKUP($A35,F1__World_Data!$A$4:$DP$191,14,FALSE)","v":10599.661},{"$f":"VLOOKUP($A35,F1__World_Data!$A$4:$DP$191,13,FALSE)","v":10255.852999999999},{"$f":"VLOOKUP($A35,F1__World_Data!$A$4:$DP$191,12,FALSE)","v":9917.9779999999992},{"$f":"VLOOKUP($A35,F1__World_Data!$A$4:$DP$191,11,FALSE)","v":9585.5849999999991},{"$f":"VLOOKUP($A35,F1__World_Data!$A$4:$DP$191,10,FALSE)","v":9260.6869999999999},{"$f":"VLOOKUP($A35,F1__World_Data!$A$4:$DP$191,9,FALSE)","v":8947.3970000000008},{"$f":"VLOOKUP($A35,F1__World_Data!$A$4:$DP$191,8,FALSE)","v":8651.1620000000003},{"$f":"VLOOKUP($A35,F1__World_Data!$A$4:$DP$191,7,FALSE)","v":8375.7950000000001},{"$f":"VLOOKUP($A35,F1__World_Data!$A$4:$DP$191,6,FALSE)","v":8122.1989999999996},{"$f":"VLOOKUP($A35,F1__World_Data!$A$4:$DP$191,5,FALSE)","v":7888.91},{"$f":"VLOOKUP($A35,F1__World_Data!$A$4:$DP$191,4,FALSE)","v":7674.2169999999996},{"$f":"VLOOKUP($A35,F1__World_Data!$A$4:$DP$191,3,FALSE)","v":7475.3490000000002},{"$f":"VLOOKUP($A35,F1__World_Data!$A$4:$DP$191,2,FALSE)","v":7289.7529999999997},null,{"$f":"VLOOKUP($A35,F1__World_Data!$A$4:$DP$191,120,FALSE)","v":70.453999999999994},{"$f":"VLOOKUP($A35,F1__World_Data!$A$4:$DP$191,119,FALSE)","v":70.293999999999997},{"$f":"VLOOKUP($A35,F1__World_Data!$A$4:$DP$191,118,FALSE)","v":70.122},{"$f":"VLOOKUP($A35,F1__World_Data!$A$4:$DP$191,117,FALSE)","v":69.929000000000002},{"$f":"VLOOKUP($A35,F1__World_Data!$A$4:$DP$191,116,FALSE)","v":69.7},{"$f":"VLOOKUP($A35,F1__World_Data!$A$4:$DP$191,115,FALSE)","v":69.436999999999998},{"$f":"VLOOKUP($A35,F1__World_Data!$A$4:$DP$191,114,FALSE)","v":69.147999999999996},{"$f":"VLOOKUP($A35,F1__World_Data!$A$4:$DP$191,113,FALSE)","v":68.847999999999999},{"$f":"VLOOKUP($A35,F1__World_Data!$A$4:$DP$191,112,FALSE)","v":68.566999999999993},{"$f":"VLOOKUP($A35,F1__World_Data!$A$4:$DP$191,111,FALSE)","v":68.34},{"$f":"VLOOKUP($A35,F1__World_Data!$A$4:$DP$191,110,FALSE)","v":68.19},{"$f":"VLOOKUP($A35,F1__World_Data!$A$4:$DP$191,109,FALSE)","v":68.13},{"$f":"VLOOKUP($A35,F1__World_Data!$A$4:$DP$191,108,FALSE)","v":68.156999999999996},{"$f":"VLOOKUP($A35,F1__World_Data!$A$4:$DP$191,107,FALSE)","v":68.266000000000005},{"$f":"VLOOKUP($A35,F1__World_Data!$A$4:$DP$191,106,FALSE)","v":68.436999999999998},{"$f":"VLOOKUP($A35,F1__World_Data!$A$4:$DP$191,105,FALSE)","v":68.635999999999996},{"$f":"VLOOKUP($A35,F1__World_Data!$A$4:$DP$191,104,FALSE)","v":68.826999999999998},{"$f":"VLOOKUP($A35,F1__World_Data!$A$4:$DP$191,103,FALSE)","v":68.983000000000004},{"$f":"VLOOKUP($A35,F1__World_Data!$A$4:$DP$191,102,FALSE)","v":69.081999999999994},{"$f":"VLOOKUP($A35,F1__World_Data!$A$4:$DP$191,101,FALSE)","v":69.108000000000004},{"$f":"VLOOKUP($A35,F1__World_Data!$A$4:$DP$191,100,FALSE)","v":69.06},{"$f":"VLOOKUP($A35,F1__World_Data!$A$4:$DP$191,99,FALSE)","v":68.936000000000007},{"$f":"VLOOKUP($A35,F1__World_Data!$A$4:$DP$191,98,FALSE)","v":68.730999999999995},{"$f":"VLOOKUP($A35,F1__World_Data!$A$4:$DP$191,97,FALSE)","v":68.445999999999998},{"$f":"VLOOKUP($A35,F1__World_Data!$A$4:$DP$191,96,FALSE)","v":68.088999999999999},{"$f":"VLOOKUP($A35,F1__World_Data!$A$4:$DP$191,95,FALSE)","v":67.668000000000006},{"$f":"VLOOKUP($A35,F1__World_Data!$A$4:$DP$191,94,FALSE)","v":67.191000000000003},{"$f":"VLOOKUP($A35,F1__World_Data!$A$4:$DP$191,93,FALSE)","v":66.653000000000006},{"$f":"VLOOKUP($A35,F1__World_Data!$A$4:$DP$191,92,FALSE)","v":66.010999999999996},{"$f":"VLOOKUP($A35,F1__World_Data!$A$4:$DP$191,91,FALSE)","v":65.212000000000003},{"$f":"VLOOKUP($A35,F1__World_Data!$A$4:$DP$191,90,FALSE)","v":64.245999999999995},{"$f":"VLOOKUP($A35,F1__World_Data!$A$4:$DP$191,89,FALSE)","v":63.146999999999998},{"$f":"VLOOKUP($A35,F1__World_Data!$A$4:$DP$191,88,FALSE)","v":61.978999999999999},{"$f":"VLOOKUP($A35,F1__World_Data!$A$4:$DP$191,87,FALSE)","v":60.877000000000002},{"$f":"VLOOKUP($A35,F1__World_Data!$A$4:$DP$191,86,FALSE)","v":60.002000000000002},{"$f":"VLOOKUP($A35,F1__World_Data!$A$4:$DP$191,85,FALSE)","v":59.454000000000001},{"$f":"VLOOKUP($A35,F1__World_Data!$A$4:$DP$191,84,FALSE)","v":59.274999999999999},{"$f":"VLOOKUP($A35,F1__World_Data!$A$4:$DP$191,83,FALSE)","v":59.448},{"$f":"VLOOKUP($A35,F1__World_Data!$A$4:$DP$191,82,FALSE)","v":59.881999999999998},{"$f":"VLOOKUP($A35,F1__World_Data!$A$4:$DP$191,81,FALSE)","v":60.435000000000002},{"$f":"VLOOKUP($A35,F1__World_Data!$A$4:$DP$191,80,FALSE)","v":60.933},{"$f":"VLOOKUP($A35,F1__World_Data!$A$4:$DP$191,79,FALSE)","v":61.238},{"$f":"VLOOKUP($A35,F1__World_Data!$A$4:$DP$191,78,FALSE)","v":61.290999999999997},{"$f":"VLOOKUP($A35,F1__World_Data!$A$4:$DP$191,77,FALSE)","v":61.078000000000003},{"$f":"VLOOKUP($A35,F1__World_Data!$A$4:$DP$191,76,FALSE)","v":60.643999999999998},{"$f":"VLOOKUP($A35,F1__World_Data!$A$4:$DP$191,75,FALSE)","v":60.085999999999999},{"$f":"VLOOKUP($A35,F1__World_Data!$A$4:$DP$191,74,FALSE)","v":59.484000000000002},{"$f":"VLOOKUP($A35,F1__World_Data!$A$4:$DP$191,73,FALSE)","v":58.856000000000002},{"$f":"VLOOKUP($A35,F1__World_Data!$A$4:$DP$191,72,FALSE)","v":58.201000000000001},{"$f":"VLOOKUP($A35,F1__World_Data!$A$4:$DP$191,71,FALSE)","v":57.5},{"$f":"VLOOKUP($A35,F1__World_Data!$A$4:$DP$191,70,FALSE)","v":56.722999999999999},{"$f":"VLOOKUP($A35,F1__World_Data!$A$4:$DP$191,69,FALSE)","v":55.85},{"$f":"VLOOKUP($A35,F1__World_Data!$A$4:$DP$191,68,FALSE)","v":54.884999999999998},{"$f":"VLOOKUP($A35,F1__World_Data!$A$4:$DP$191,67,FALSE)","v":53.838999999999999},{"$f":"VLOOKUP($A35,F1__World_Data!$A$4:$DP$191,66,FALSE)","v":52.73},{"$f":"VLOOKUP($A35,F1__World_Data!$A$4:$DP$191,65,FALSE)","v":51.58},{"$f":"VLOOKUP($A35,F1__World_Data!$A$4:$DP$191,64,FALSE)","v":50.408999999999999},{"$f":"VLOOKUP($A35,F1__World_Data!$A$4:$DP$191,63,FALSE)","v":49.222000000000001},{"$f":"VLOOKUP($A35,F1__World_Data!$A$4:$DP$191,62,FALSE)","v":48.021999999999998}]
["Poland",{"$f":"VLOOKUP($A36,F1__World_Data!$A$4:$DP$191,60,FALSE)","v":37921.584999999999},{"$f":"VLOOKUP($A36,F1__World_Data!$A$4:$DP$191,59,FALSE)","v":37953.175999999999},{"$f":"VLOOKUP($A36,F1__World_Data!$A$4:$DP$191,58,FALSE)","v":37989.218000000001},{"$f":"VLOOKUP($A36,F1__World_Data!$A$4:$DP$191,57,FALSE)","v":38034.076000000001},{"$f":"VLOOKUP($A36,F1__World_Data!$A$4:$DP$191,56,FALSE)","v":38091.095000000001},{"$f":"VLOOKUP($A36,F1__World_Data!$A$4:$DP$191,55,FALSE)","v":38158.042999999998},{"$f":"VLOOKUP($A36,F1__World_Data!$A$4:$DP$191,54,FALSE)","v":38227.033000000003},{"$f":"VLOOKUP($A36,F1__World_Data!$A$4:$DP$191,53,FALSE)","v":38286.824000000001},{"$f":"VLOOKUP($A36,F1__World_Data!$A$4:$DP$191,52,FALSE)","v":38329.784},{"$f":"VLOOKUP($A36,F1__World_Data!$A$4:$DP$191,51,FALSE)","v":38351.923999999999},{"$f":"VLOOKUP($A36,F1__World_Data!$A$4:$DP$191,50,FALSE)","v":38356.786},{"$f":"VLOOKUP($A36,F1__World_Data!$A$4:$DP$191,49,FALSE)","v":38353.339},{"$f":"VLOOKUP($A36,F1__World_Data!$A$4:$DP$191,48,FALSE)","v":38354.447},{"$f":"VLOOKUP($A36,F1__World_Data!$A$4:$DP$191,47,FALSE)","v":38368.957000000002},{"$f":"VLOOKUP($A36,F1__World_Data!$A$4:$DP$191,46,FALSE)","v":38399.553},{"$f":"VLOOKUP($A36,F1__World_Data!$A$4:$DP$191,45,FALSE)","v":38441.821000000004},{"$f":"VLOOKUP($A36,F1__World_Data!$A$4:$DP$191,44,FALSE)","v":38488.639999999999},{"$f":"VLOOKUP($A36,F1__World_Data!$A$4:$DP$191,43,FALSE)","v":38529.584999999999},{"$f":"VLOOKUP($A36,F1__World_Data!$A$4:$DP$191,42,FALSE)","v":38556.699000000001},{"$f":"VLOOKUP($A36,F1__World_Data!$A$4:$DP$191,41,FALSE)","v":38567.868000000002},{"$f":"VLOOKUP($A36,F1__World_Data!$A$4:$DP$191,40,FALSE)","v":38564.190999999999},{"$f":"VLOOKUP($A36,F1__World_Data!$A$4:$DP$191,39,FALSE)","v":38544.838000000003},{"$f":"VLOOKUP($A36,F1__World_Data!$A$4:$DP$191,38,FALSE)","v":38509.671999999999},{"$f":"VLOOKUP($A36,F1__World_Data!$A$4:$DP$191,37,FALSE)","v":38458.642},{"$f":"VLOOKUP($A36,F1__World_Data!$A$4:$DP$191,36,FALSE)","v":38389.468999999997},{"$f":"VLOOKUP($A36,F1__World_Data!$A$4:$DP$191,35,FALSE)","v":38301.349000000002},{"$f":"VLOOKUP($A36,F1__World_Data!$A$4:$DP$191,34,FALSE)","v":38197.588000000003},{"$f":"VLOOKUP($A36,F1__World_Data!$A$4:$DP$191,33,FALSE)","v":38082.94},{"$f":"VLOOKUP($A36,F1__World_Data!$A$4:$DP$191,32,FALSE)","v":37960.192999999999},{"$f":"VLOOKUP($A36,F1__World_Data!$A$4:$DP$191,31,FALSE)","v":37832.567999999999},{"$f":"VLOOKUP($A36,F1__World_Data!$A$4:$DP$191,30,FALSE)","v":37697.360000000001},{"$f":"VLOOKUP($A36,F1__World_Data!$A$4:$DP$191,29,FALSE)","v":37544.332000000002},{"$f":"VLOOKUP($A36,F1__World_Data!$A$4:$DP$191,28,FALSE)","v":37359.519},{"$f":"VLOOKUP($A36,F1__World_Data!$A$4:$DP$191,27,FALSE)","v":37133.86},{"$f":"VLOOKUP($A36,F1__World_Data!$A$4:$DP$191,26,FALSE)","v":36863.949000000001},{"$f":"VLOOKUP($A36,F1__World_Data!$A$4:$DP$191,25,FALSE)","v":36555.781999999999},{"$f":"VLOOKUP($A36,F1__World_Data!$A$4:$DP$191,24,FALSE)","v":36221.542999999998},{"$f":"VLOOKUP($A36,F1__World_Data!$A$4:$DP$191,23,FALSE)","v":35878.44},{"$f":"VLOOKUP($A36,F1__World_Data!$A$4:$DP$191,22,FALSE)","v":35539.722999999998},{"$f":"VLOOKUP($A36,F1__World_Data!$A$4:$DP$191,21,FALSE)","v":35209.249000000003},{"$f":"VLOOKUP($A36,F1__World_Data!$A$4:$DP$191,20,FALSE)","v":34885.807999999997},{"$f":"VLOOKUP($A36,F1__World_Data!$A$4:$DP$191,19,FALSE)","v":34571.226000000002},{"$f":"VLOOKUP($A36,F1__World_Data!$A$4:$DP$191,18,FALSE)","v":34266.103999999999},{"$f":"VLOOKUP($A36,F1__World_Data!$A$4:$DP$191,17,FALSE)","v":33970.730000000003},{"$f":"VLOOKUP($A36,F1__World_Data!$A$4:$DP$191,16,FALSE)","v":33685.785000000003},{"$f":"VLOOKUP($A36,F1__World_Data!$A$4:$DP$191,15,FALSE)","v":33411.591999999997},{"$f":"VLOOKUP($A36,F1__World_Data!$A$4:$DP$191,14,FALSE)","v":33147.078999999998},{"$f":"VLOOKUP($A36,F1__World_Data!$A$4:$DP$191,13,FALSE)","v":32890.387000000002},{"$f":"VLOOKUP($A36,F1__World_Data!$A$4:$DP$191,12,FALSE)","v":32639.261999999999},{"$f":"VLOOKUP($A36,F1__World_Data!$A$4:$DP$191,11,FALSE)","v":32393.14},{"$f":"VLOOKUP($A36,F1__World_Data!$A$4:$DP$191,10,FALSE)","v":32149.536},{"$f":"VLOOKUP($A36,F1__World_Data!$A$4:$DP$191,9,FALSE)","v":31901.687000000002},{"$f":"VLOOKUP($A36,F1__World_Data!$A$4:$DP$191,8,FALSE)","v":31641.037},{"$f":"VLOOKUP($A36,F1__World_Data!$A$4:$DP$191,7,FALSE)","v":31360.902999999998},{"$f":"VLOOKUP($A36,F1__World_Data!$A$4:$DP$191,6,FALSE)","v":31059.449000000001},{"$f":"VLOOKUP($A36,F1__World_Data!$A$4:$DP$191,5,FALSE)","v":30736.493999999999},{"$f":"VLOOKUP($A36,F1__World_Data!$A$4:$DP$191,4,FALSE)","v":30389.353999999999},{"$f":"VLOOKUP($A36,F1__World_Data!$A$4:$DP$191,3,FALSE)","v":30015.603999999999},{"$f":"VLOOKUP($A36,F1__World_Data!$A$4:$DP$191,2,FALSE)","v":29614.201000000001},null,{"$f":"VLOOKUP($A36,F1__World_Data!$A$4:$DP$191,120,FALSE)","v":68.116},{"$f":"VLOOKUP($A36,F1__World_Data!$A$4:$DP$191,119,FALSE)","v":67.850999999999999},{"$f":"VLOOKUP($A36,F1__World_Data!$A$4:$DP$191,118,FALSE)","v":67.576999999999998},{"$f":"VLOOKUP($A36,F1__World_Data!$A$4:$DP$191,117,FALSE)","v":67.290999999999997},{"$f":"VLOOKUP($A36,F1__World_Data!$A$4:$DP$191,116,FALSE)","v":66.995000000000005},{"$f":"VLOOKUP($A36,F1__World_Data!$A$4:$DP$191,115,FALSE)","v":66.69},{"$f":"VLOOKUP($A36,F1__World_Data!$A$4:$DP$191,114,FALSE)","v":66.381},{"$f":"VLOOKUP($A36,F1__World_Data!$A$4:$DP$191,113,FALSE)","v":66.072000000000003},{"$f":"VLOOKUP($A36,F1__World_Data!$A$4:$DP$191,112,FALSE)","v":65.769000000000005},{"$f":"VLOOKUP($A36,F1__World_Data!$A$4:$DP$191,111,FALSE)","v":65.48},{"$f":"VLOOKUP($A36,F1__World_Data!$A$4:$DP$191,110,FALSE)","v":65.207999999999998},{"$f":"VLOOKUP($A36,F1__World_Data!$A$4:$DP$191,109,FALSE)","v":64.953000000000003},{"$f":"VLOOKUP($A36,F1__World_Data!$A$4:$DP$191,108,FALSE)","v":64.712000000000003},{"$f":"VLOOKUP($A36,F1__World_Data!$A$4:$DP$191,107,FALSE)","v":64.477999999999994},{"$f":"VLOOKUP($A36,F1__World_Data!$A$4:$DP$191,106,FALSE)","v":64.242000000000004},{"$f":"VLOOKUP($A36,F1__World_Data!$A$4:$DP$191,105,FALSE)","v":63.994999999999997},{"$f":"VLOOKUP($A36,F1__World_Data!$A$4:$DP$191,104,FALSE)","v":63.731000000000002},{"$f":"VLOOKUP($A36,F1__World_Data!$A$4:$DP$191,103,FALSE)","v":63.445999999999998},{"$f":"VLOOKUP($A36,F1__World_Data!$A$4:$DP$191,102,FALSE)","v":63.143999999999998},{"$f":"VLOOKUP($A36,F1__World_Data!$A$4:$DP$191,101,FALSE)","v":62.829000000000001},{"$f":"VLOOKUP($A36,F1__World_Data!$A$4:$DP$191,100,FALSE)","v":62.509},{"$f":"VLOOKUP($A36,F1__World_Data!$A$4:$DP$191,99,FALSE)","v":62.188000000000002},{"$f":"VLOOKUP($A36,F1__World_Data!$A$4:$DP$191,98,FALSE)","v":61.866},{"$f":"VLOOKUP($A36,F1__World_Data!$A$4:$DP$191,97,FALSE)","v":61.539000000000001},{"$f":"VLOOKUP($A36,F1__World_Data!$A$4:$DP$191,96,FALSE)","v":61.198},{"$f":"VLOOKUP($A36,F1__World_Data!$A$4:$DP$191,95,FALSE)","v":60.837000000000003},{"$f":"VLOOKUP($A36,F1__World_Data!$A$4:$DP$191,94,FALSE)","v":60.454999999999998},{"$f":"VLOOKUP($A36,F1__World_Data!$A$4:$DP$191,93,FALSE)","v":60.052999999999997},{"$f":"VLOOKUP($A36,F1__World_Data!$A$4:$DP$191,92,FALSE)","v":59.636000000000003},{"$f":"VLOOKUP($A36,F1__World_Data!$A$4:$DP$191,91,FALSE)","v":59.209000000000003},{"$f":"VLOOKUP($A36,F1__World_Data!$A$4:$DP$191,90,FALSE)","v":58.783000000000001},{"$f":"VLOOKUP($A36,F1__World_Data!$A$4:$DP$191,89,FALSE)","v":58.366},{"$f":"VLOOKUP($A36,F1__World_Data!$A$4:$DP$191,88,FALSE)","v":57.962000000000003},{"$f":"VLOOKUP($A36,F1__World_Data!$A$4:$DP$191,87,FALSE)","v":57.579000000000001},{"$f":"VLOOKUP($A36,F1__World_Data!$A$4:$DP$191,86,FALSE)","v":57.220999999999997},{"$f":"VLOOKUP($A36,F1__World_Data!$A$4:$DP$191,85,FALSE)","v":56.886000000000003},{"$f":"VLOOKUP($A36,F1__World_Data!$A$4:$DP$191,84,FALSE)","v":56.569000000000003},{"$f":"VLOOKUP($A36,F1__World_Data!$A$4:$DP$191,83,FALSE)","v":56.265999999999998},{"$f":"VLOOKUP($A36,F1__World_Data!$A$4:$DP$191,82,FALSE)","v":55.970999999999997},{"$f":"VLOOKUP($A36,F1__World_Data!$A$4:$DP$191,81,FALSE)","v":55.679000000000002},{"$f":"VLOOKUP($A36,F1__World_Data!$A$4:$DP$191,80,FALSE)","v":55.381999999999998},{"$f":"VLOOKUP($A36,F1__World_Data!$A$4:$DP$191,79,FALSE)","v":55.073999999999998},{"$f":"VLOOKUP($A36,F1__World_Data!$A$4:$DP$191,78,FALSE)","v":54.747999999999998},{"$f":"VLOOKUP($A36,F1__World_Data!$A$4:$DP$191,77,FALSE)","v":54.399000000000001},{"$f":"VLOOKUP($A36,F1__World_Data!$A$4:$DP$191,76,FALSE)","v":54.027000000000001},{"$f":"VLOOKUP($A36,F1__World_Data!$A$4:$DP$191,75,FALSE)","v":53.633000000000003},{"$f":"VLOOKUP($A36,F1__World_Data!$A$4:$DP$191,74,FALSE)","v":53.218000000000004},{"$f":"VLOOKUP($A36,F1__World_Data!$A$4:$DP$191,73,FALSE)","v":52.781999999999996},{"$f":"VLOOKUP($A36,F1__World_Data!$A$4:$DP$191,72,FALSE)","v":52.323},{"$f":"VLOOKUP($A36,F1__World_Data!$A$4:$DP$191,71,FALSE)","v":51.837000000000003},{"$f":"VLOOKUP($A36,F1__World_Data!$A$4:$DP$191,70,FALSE)","v":51.326999999999998},{"$f":"VLOOKUP($A36,F1__World_Data!$A$4:$DP$191,69,FALSE)","v":50.795999999999999},{"$f":"VLOOKUP($A36,F1__World_Data!$A$4:$DP$191,68,FALSE)","v":50.25},{"$f":"VLOOKUP($A36,F1__World_Data!$A$4:$DP$191,67,FALSE)","v":49.697000000000003},{"$f":"VLOOKUP($A36,F1__World_Data!$A$4:$DP$191,66,FALSE)","v":49.145000000000003},{"$f":"VLOOKUP($A36,F1__World_Data!$A$4:$DP$191,65,FALSE)","v":48.600999999999999},{"$f":"VLOOKUP($A36,F1__World_Data!$A$4:$DP$191,64,FALSE)","v":48.070999999999998},{"$f":"VLOOKUP($A36,F1__World_Data!$A$4:$DP$191,63,FALSE)","v":47.557000000000002},{"$f":"VLOOKUP($A36,F1__World_Data!$A$4:$DP$191,62,FALSE)","v":47.061}]
["Canada",{"$f":"VLOOKUP($A37,F1__World_Data!$A$4:$DP$191,60,FALSE)","v":37074.557999999997},{"$f":"VLOOKUP($A37,F1__World_Data!$A$4:$DP$191,59,FALSE)","v":36732.091},{"$f":"VLOOKUP($A37,F1__World_Data!$A$4:$DP$191,58,FALSE)","v":36382.942000000003},{"$f":"VLOOKUP($A37,F1__World_Data!$A$4:$DP$191,57,FALSE)","v":36026.667999999998},{"$f":"VLOOKUP($A37,F1__World_Data!$A$4:$DP$191,56,FALSE)","v":35664.338000000003},{"$f":"VLOOKUP($A37,F1__World_Data!$A$4:$DP$191,55,FALSE)","v":35296.535000000003},{"$f":"VLOOKUP($A37,F1__World_Data!$A$4:$DP$191,54,FALSE)","v":34922.031000000003},{"$f":"VLOOKUP($A37,F1__World_Data!$A$4:$DP$191,53,FALSE)","v":34539.156000000003},{"$f":"VLOOKUP($A37,F1__World_Data!$A$4:$DP$191,52,FALSE)","v":34147.565999999999},{"$f":"VLOOKUP($A37,F1__World_Data!$A$4:$DP$191,51,FALSE)","v":33746.093000000001},{"$f":"VLOOKUP($A37,F1__World_Data!$A$4:$DP$191,50,FALSE)","v":33337.637999999999},{"$f":"VLOOKUP($A37,F1__World_Data!$A$4:$DP$191,49,FALSE)","v":32930.794999999998},{"$f":"VLOOKUP($A37,F1__World_Data!$A$4:$DP$191,48,FALSE)","v":32536.993999999999},{"$f":"VLOOKUP($A37,F1__World_Data!$A$4:$DP$191,47,FALSE)","v":32164.312999999998},{"$f":"VLOOKUP($A37,F1__World_Data!$A$4:$DP$191,46,FALSE)","v":31815.49},{"$f":"VLOOKUP($A37,F1__World_Data!$A$4:$DP$191,45,FALSE)","v":31488.045999999998},{"$f":"VLOOKUP($A37,F1__World_Data!$A$4:$DP$191,44,FALSE)","v":31178.26},{"$f":"VLOOKUP($A37,F1__World_Data!$A$4:$DP$191,43,FALSE)","v":30880.072},{"$f":"VLOOKUP($A37,F1__World_Data!$A$4:$DP$191,42,FALSE)","v":30588.379000000001},{"$f":"VLOOKUP($A37,F1__World_Data!$A$4:$DP$191,41,FALSE)","v":30302.510999999999},{"$f":"VLOOKUP($A37,F1__World_Data!$A$4:$DP$191,40,FALSE)","v":30022.078000000001},{"$f":"VLOOKUP($A37,F1__World_Data!$A$4:$DP$191,39,FALSE)","v":29742.378000000001},{"$f":"VLOOKUP($A37,F1__World_Data!$A$4:$DP$191,38,FALSE)","v":29457.82},{"$f":"VLOOKUP($A37,F1__World_Data!$A$4:$DP$191,37,FALSE)","v":29164.152999999998},{"$f":"VLOOKUP($A37,F1__World_Data!$A$4:$DP$191,36,FALSE)","v":28860.734},{"$f":"VLOOKUP($A37,F1__World_Data!$A$4:$DP$191,35,FALSE)","v":28547.964},{"$f":"VLOOKUP($A37,F1__World_Data!$A$4:$DP$191,34,FALSE)","v":28224.41},{"$f":"VLOOKUP($A37,F1__World_Data!$A$4:$DP$191,33,FALSE)","v":27888.812999999998},{"$f":"VLOOKUP($A37,F1__World_Data!$A$4:$DP$191,32,FALSE)","v":27541.323},{"$f":"VLOOKUP($A37,F1__World_Data!$A$4:$DP$191,31,FALSE)","v":27179.496999999999},{"$f":"VLOOKUP($A37,F1__World_Data!$A$4:$DP$191,30,FALSE)","v":26806.125},{"$f":"VLOOKUP($A37,F1__World_Data!$A$4:$DP$191,29,FALSE)","v":26432.894},{"$f":"VLOOKUP($A37,F1__World_Data!$A$4:$DP$191,28,FALSE)","v":26075.504000000001},{"$f":"VLOOKUP($A37,F1__World_Data!$A$4:$DP$191,27,FALSE)","v":25744.807000000001},{"$f":"VLOOKUP($A37,F1__World_Data!$A$4:$DP$191,26,FALSE)","v":25444.885999999999},{"$f":"VLOOKUP($A37,F1__World_Data!$A$4:$DP$191,25,FALSE)","v":25171.436000000002},{"$f":"VLOOKUP($A37,F1__World_Data!$A$4:$DP$191,24,FALSE)","v":24916.538},{"$f":"VLOOKUP($A37,F1__World_Data!$A$4:$DP$191,23,FALSE)","v":24668.159},{"$f":"VLOOKUP($A37,F1__World_Data!$A$4:$DP$191,22,FALSE)","v":24416.884999999998},{"$f":"VLOOKUP($A37,F1__World_Data!$A$4:$DP$191,21,FALSE)","v":24161.133000000002},{"$f":"VLOOKUP($A37,F1__World_Data!$A$4:$DP$191,20,FALSE)","v":23901.716},{"$f":"VLOOKUP($A37,F1__World_Data!$A$4:$DP$191,19,FALSE)","v":23634.377},{"$f":"VLOOKUP($A37,F1__World_Data!$A$4:$DP$191,18,FALSE)","v":23354.587},{"$f":"VLOOKUP($A37,F1__World_Data!$A$4:$DP$191,17,FALSE)","v":23059.266},{"$f":"VLOOKUP($A37,F1__World_Data!$A$4:$DP$191,16,FALSE)","v":22745.896000000001},{"$f":"VLOOKUP($A37,F1__World_Data!$A$4:$DP$191,15,FALSE)","v":22415.312999999998},{"$f":"VLOOKUP($A37,F1__World_Data!$A$4:$DP$191,14,FALSE)","v":22072.192999999999},{"$f":"VLOOKUP($A37,F1__World_Data!$A$4:$DP$191,13,FALSE)","v":21723.465},{"$f":"VLOOKUP($A37,F1__World_Data!$A$4:$DP$191,12,FALSE)","v":21374.326000000001},{"$f":"VLOOKUP($A37,F1__World_Data!$A$4:$DP$191,11,FALSE)","v":21025.257000000001},{"$f":"VLOOKUP($A37,F1__World_Data!$A$4:$DP$191,10,FALSE)","v":20674.999},{"$f":"VLOOKUP($A37,F1__World_Data!$A$4:$DP$191,9,FALSE)","v":20324.786},{"$f":"VLOOKUP($A37,F1__World_Data!$A$4:$DP$191,8,FALSE)","v":19975.695},{"$f":"VLOOKUP($A37,F1__World_Data!$A$4:$DP$191,7,FALSE)","v":19627.973000000002},{"$f":"VLOOKUP($A37,F1__World_Data!$A$4:$DP$191,6,FALSE)","v":19284.227999999999},{"$f":"VLOOKUP($A37,F1__World_Data!$A$4:$DP$191,5,FALSE)","v":18943.237000000001},{"$f":"VLOOKUP($A37,F1__World_Data!$A$4:$DP$191,4,FALSE)","v":18596.848000000002},{"$f":"VLOOKUP($A37,F1__World_Data!$A$4:$DP$191,3,FALSE)","v":18233.965},{"$f":"VLOOKUP($A37,F1__World_Data!$A$4:$DP$191,2,FALSE)","v":17847.403999999999},null,{"$f":"VLOOKUP($A37,F1__World_Data!$A$4:$DP$191,120,FALSE)","v":81.948780487804882},{"$f":"VLOOKUP($A37,F1__World_Data!$A$4:$DP$191,119,FALSE)","v":81.948780487804882},{"$f":"VLOOKUP($A37,F1__World_Data!$A$4:$DP$191,118,FALSE)","v":81.900000000000006},{"$f":"VLOOKUP($A37,F1__World_Data!$A$4:$DP$191,117,FALSE)","v":81.900000000000006},{"$f":"VLOOKUP($A37,F1__World_Data!$A$4:$DP$191,116,FALSE)","v":81.8},{"$f":"VLOOKUP($A37,F1__World_Data!$A$4:$DP$191,115,FALSE)","v":81.748780487804893},{"$f":"VLOOKUP($A37,F1__World_Data!$A$4:$DP$191,114,FALSE)","v":81.648780487804885},{"$f":"VLOOKUP($A37,F1__World_Data!$A$4:$DP$191,113,FALSE)","v":81.448780487804882},{"$f":"VLOOKUP($A37,F1__World_Data!$A$4:$DP$191,112,FALSE)","v":81.246341463414637},{"$f":"VLOOKUP($A37,F1__World_Data!$A$4:$DP$191,111,FALSE)","v":80.995121951219517},{"$f":"VLOOKUP($A37,F1__World_Data!$A$4:$DP$191,110,FALSE)","v":80.695121951219519},{"$f":"VLOOKUP($A37,F1__World_Data!$A$4:$DP$191,109,FALSE)","v":80.543902439024407},{"$f":"VLOOKUP($A37,F1__World_Data!$A$4:$DP$191,108,FALSE)","v":80.34390243902439},{"$f":"VLOOKUP($A37,F1__World_Data!$A$4:$DP$191,107,FALSE)","v":80.192682926829278},{"$f":"VLOOKUP($A37,F1__World_Data!$A$4:$DP$191,106,FALSE)","v":79.892682926829281},{"$f":"VLOOKUP($A37,F1__World_Data!$A$4:$DP$191,105,FALSE)","v":79.741463414634168},{"$f":"VLOOKUP($A37,F1__World_Data!$A$4:$DP$191,104,FALSE)","v":79.490243902439019},{"$f":"VLOOKUP($A37,F1__World_Data!$A$4:$DP$191,103,FALSE)","v":79.339024390243921},{"$f":"VLOOKUP($A37,F1__World_Data!$A$4:$DP$191,102,FALSE)","v":79.136585365853662},{"$f":"VLOOKUP($A37,F1__World_Data!$A$4:$DP$191,101,FALSE)","v":78.885365853658527},{"$f":"VLOOKUP($A37,F1__World_Data!$A$4:$DP$191,100,FALSE)","v":78.634146341463421},{"$f":"VLOOKUP($A37,F1__World_Data!$A$4:$DP$191,99,FALSE)","v":78.431707317073176},{"$f":"VLOOKUP($A37,F1__World_Data!$A$4:$DP$191,98,FALSE)","v":78.180487804878055},{"$f":"VLOOKUP($A37,F1__World_Data!$A$4:$DP$191,97,FALSE)","v":78.029268292682943},{"$f":"VLOOKUP($A37,F1__World_Data!$A$4:$DP$191,96,FALSE)","v":77.826829268292698},{"$f":"VLOOKUP($A37,F1__World_Data!$A$4:$DP$191,95,FALSE)","v":77.824390243902457},{"$f":"VLOOKUP($A37,F1__World_Data!$A$4:$DP$191,94,FALSE)","v":77.724390243902448},{"$f":"VLOOKUP($A37,F1__World_Data!$A$4:$DP$191,93,FALSE)","v":77.621951219512198},{"$f":"VLOOKUP($A37,F1__World_Data!$A$4:$DP$191,92,FALSE)","v":77.421951219512209},{"$f":"VLOOKUP($A37,F1__World_Data!$A$4:$DP$191,91,FALSE)","v":77.11951219512197},{"$f":"VLOOKUP($A37,F1__World_Data!$A$4:$DP$191,90,FALSE)","v":76.919512195121953},{"$f":"VLOOKUP($A37,F1__World_Data!$A$4:$DP$191,89,FALSE)","v":76.719512195121951},{"$f":"VLOOKUP($A37,F1__World_Data!$A$4:$DP$191,88,FALSE)","v":76.519512195121962},{"$f":"VLOOKUP($A37,F1__World_Data!$A$4:$DP$191,87,FALSE)","v":76.368292682926835},{"$f":"VLOOKUP($A37,F1__World_Data!$A$4:$DP$191,86,FALSE)","v":76.217073170731723},{"$f":"VLOOKUP($A37,F1__World_Data!$A$4:$DP$191,85,FALSE)","v":76.065853658536597},{"$f":"VLOOKUP($A37,F1__World_Data!$A$4:$DP$191,84,FALSE)","v":75.763414634146343},{"$f":"VLOOKUP($A37,F1__World_Data!$A$4:$DP$191,83,FALSE)","v":75.463414634146346},{"$f":"VLOOKUP($A37,F1__World_Data!$A$4:$DP$191,82,FALSE)","v":75.078048780487805},{"$f":"VLOOKUP($A37,F1__World_Data!$A$4:$DP$191,81,FALSE)","v":74.866341463414642},{"$f":"VLOOKUP($A37,F1__World_Data!$A$4:$DP$191,80,FALSE)","v":74.529756097560977},{"$f":"VLOOKUP($A37,F1__World_Data!$A$4:$DP$191,79,FALSE)","v":74.215609756097564},{"$f":"VLOOKUP($A37,F1__World_Data!$A$4:$DP$191,78,FALSE)","v":73.856097560975613},{"$f":"VLOOKUP($A37,F1__World_Data!$A$4:$DP$191,77,FALSE)","v":73.521707317073165},{"$f":"VLOOKUP($A37,F1__World_Data!$A$4:$DP$191,76,FALSE)","v":73.237560975609767},{"$f":"VLOOKUP($A37,F1__World_Data!$A$4:$DP$191,75,FALSE)","v":73.162682926829277},{"$f":"VLOOKUP($A37,F1__World_Data!$A$4:$DP$191,74,FALSE)","v":72.933902439024394},{"$f":"VLOOKUP($A37,F1__World_Data!$A$4:$DP$191,73,FALSE)","v":73.029268292682929},{"$f":"VLOOKUP($A37,F1__World_Data!$A$4:$DP$191,72,FALSE)","v":72.700487804878051},{"$f":"VLOOKUP($A37,F1__World_Data!$A$4:$DP$191,71,FALSE)","v":72.501463414634145},{"$f":"VLOOKUP($A37,F1__World_Data!$A$4:$DP$191,70,FALSE)","v":72.353414634146347},{"$f":"VLOOKUP($A37,F1__World_Data!$A$4:$DP$191,69,FALSE)","v":72.20780487804879},{"$f":"VLOOKUP($A37,F1__World_Data!$A$4:$DP$191,68,FALSE)","v":72.004390243902449},{"$f":"VLOOKUP($A37,F1__World_Data!$A$4:$DP$191,67,FALSE)","v":71.872195121951236},{"$f":"VLOOKUP($A37,F1__World_Data!$A$4:$DP$191,66,FALSE)","v":71.776341463414639},{"$f":"VLOOKUP($A37,F1__World_Data!$A$4:$DP$191,65,FALSE)","v":71.380731707317082},{"$f":"VLOOKUP($A37,F1__World_Data!$A$4:$DP$191,64,FALSE)","v":71.367073170731715},{"$f":"VLOOKUP($A37,F1__World_Data!$A$4:$DP$191,63,FALSE)","v":71.346097560975622},{"$f":"VLOOKUP($A37,F1__World_Data!$A$4:$DP$191,62,FALSE)","v":71.133170731707324}]
["Morocco",{"$f":"VLOOKUP($A38,F1__World_Data!$A$4:$DP$191,60,FALSE)","v":36029.089},{"$f":"VLOOKUP($A38,F1__World_Data!$A$4:$DP$191,59,FALSE)","v":35581.256999999998},{"$f":"VLOOKUP($A38,F1__World_Data!$A$4:$DP$191,58,FALSE)","v":35126.273999999998},{"$f":"VLOOKUP($A38,F1__World_Data!$A$4:$DP$191,57,FALSE)","v":34663.608},{"$f":"VLOOKUP($A38,F1__World_Data!$A$4:$DP$191,56,FALSE)","v":34192.358},{"$f":"VLOOKUP($A38,F1__World_Data!$A$4:$DP$191,55,FALSE)","v":33715.705000000002},{"$f":"VLOOKUP($A38,F1__World_Data!$A$4:$DP$191,54,FALSE)","v":33241.898000000001},{"$f":"VLOOKUP($A38,F1__World_Data!$A$4:$DP$191,53,FALSE)","v":32781.86},{"$f":"VLOOKUP($A38,F1__World_Data!$A$4:$DP$191,52,FALSE)","v":32343.383999999998},{"$f":"VLOOKUP($A38,F1__World_Data!$A$4:$DP$191,51,FALSE)","v":31929.087},{"$f":"VLOOKUP($A38,F1__World_Data!$A$4:$DP$191,50,FALSE)","v":31536.807000000001},{"$f":"VLOOKUP($A38,F1__World_Data!$A$4:$DP$191,49,FALSE)","v":31163.67},{"$f":"VLOOKUP($A38,F1__World_Data!$A$4:$DP$191,48,FALSE)","v":30804.688999999998},{"$f":"VLOOKUP($A38,F1__World_Data!$A$4:$DP$191,47,FALSE)","v":30455.562999999998},{"$f":"VLOOKUP($A38,F1__World_Data!$A$4:$DP$191,46,FALSE)","v":30115.196},{"$f":"VLOOKUP($A38,F1__World_Data!$A$4:$DP$191,45,FALSE)","v":29782.883999999998},{"$f":"VLOOKUP($A38,F1__World_Data!$A$4:$DP$191,44,FALSE)","v":29454.764999999999},{"$f":"VLOOKUP($A38,F1__World_Data!$A$4:$DP$191,45,FALSE)","v":29782.883999999998},{"$f":"VLOOKUP($A38,F1__World_Data!$A$4:$DP$191,42,FALSE)","v":28793.671999999999},{"$f":"VLOOKUP($A38,F1__World_Data!$A$4:$DP$191,41,FALSE)","v":28455.504000000001},{"$f":"VLOOKUP($A38,F1__World_Data!$A$4:$DP$191,40,FALSE)","v":28110.447},{"$f":"VLOOKUP($A38,F1__World_Data!$A$4:$DP$191,39,FALSE)","v":27754.573},{"$f":"VLOOKUP($A38,F1__World_Data!$A$4:$DP$191,38,FALSE)","v":27383.472000000002},{"$f":"VLOOKUP($A38,F1__World_Data!$A$4:$DP$191,37,FALSE)","v":26994.255000000001},{"$f":"VLOOKUP($A38,F1__World_Data!$A$4:$DP$191,36,FALSE)","v":26584.473000000002},{"$f":"VLOOKUP($A38,F1__World_Data!$A$4:$DP$191,35,FALSE)","v":26155.204000000002},{"$f":"VLOOKUP($A38,F1__World_Data!$A$4:$DP$191,34,FALSE)","v":25711.41},{"$f":"VLOOKUP($A38,F1__World_Data!$A$4:$DP$191,33,FALSE)","v":25260.406999999999},{"$f":"VLOOKUP($A38,F1__World_Data!$A$4:$DP$191,32,FALSE)","v":24807.460999999999},{"$f":"VLOOKUP($A38,F1__World_Data!$A$4:$DP$191,31,FALSE)","v":24355.624},{"$f":"VLOOKUP($A38,F1__World_Data!$A$4:$DP$191,30,FALSE)","v":23903.592000000001},{"$f":"VLOOKUP($A38,F1__World_Data!$A$4:$DP$191,29,FALSE)","v":23447.256000000001},{"$f":"VLOOKUP($A38,F1__World_Data!$A$4:$DP$191,28,FALSE)","v":22980.333999999999},{"$f":"VLOOKUP($A38,F1__World_Data!$A$4:$DP$191,27,FALSE)","v":22499.111000000001},{"$f":"VLOOKUP($A38,F1__World_Data!$A$4:$DP$191,26,FALSE)","v":22002.641},{"$f":"VLOOKUP($A38,F1__World_Data!$A$4:$DP$191,25,FALSE)","v":21495.088},{"$f":"VLOOKUP($A38,F1__World_Data!$A$4:$DP$191,24,FALSE)","v":20984.023000000001},{"$f":"VLOOKUP($A38,F1__World_Data!$A$4:$DP$191,23,FALSE)","v":20479.708999999999},{"$f":"VLOOKUP($A38,F1__World_Data!$A$4:$DP$191,22,FALSE)","v":19990.006000000001},{"$f":"VLOOKUP($A38,F1__World_Data!$A$4:$DP$191,21,FALSE)","v":19516.941999999999},{"$f":"VLOOKUP($A38,F1__World_Data!$A$4:$DP$191,20,FALSE)","v":19059.773000000001},{"$f":"VLOOKUP($A38,F1__World_Data!$A$4:$DP$191,19,FALSE)","v":18620.087},{"$f":"VLOOKUP($A38,F1__World_Data!$A$4:$DP$191,18,FALSE)","v":18198.835999999999},{"$f":"VLOOKUP($A38,F1__World_Data!$A$4:$DP$191,17,FALSE)","v":17796.170999999998},{"$f":"VLOOKUP($A38,F1__World_Data!$A$4:$DP$191,16,FALSE)","v":17413.149000000001},{"$f":"VLOOKUP($A38,F1__World_Data!$A$4:$DP$191,15,FALSE)","v":17048.525000000001},{"$f":"VLOOKUP($A38,F1__World_Data!$A$4:$DP$191,14,FALSE)","v":16696.89},{"$f":"VLOOKUP($A38,F1__World_Data!$A$4:$DP$191,13,FALSE)","v":16350.883},{"$f":"VLOOKUP($A38,F1__World_Data!$A$4:$DP$191,12,FALSE)","v":16004.732},{"$f":"VLOOKUP($A38,F1__World_Data!$A$4:$DP$191,11,FALSE)","v":15656.846},{"$f":"VLOOKUP($A38,F1__World_Data!$A$4:$DP$191,10,FALSE)","v":15307.267},{"$f":"VLOOKUP($A38,F1__World_Data!$A$4:$DP$191,9,FALSE)","v":14954.037},{"$f":"VLOOKUP($A38,F1__World_Data!$A$4:$DP$191,8,FALSE)","v":14595.351000000001},{"$f":"VLOOKUP($A38,F1__World_Data!$A$4:$DP$191,7,FALSE)","v":14230.163},{"$f":"VLOOKUP($A38,F1__World_Data!$A$4:$DP$191,6,FALSE)","v":13857.656000000001},{"$f":"VLOOKUP($A38,F1__World_Data!$A$4:$DP$191,5,FALSE)","v":13478.424999999999},{"$f":"VLOOKUP($A38,F1__World_Data!$A$4:$DP$191,4,FALSE)","v":13094.89},{"$f":"VLOOKUP($A38,F1__World_Data!$A$4:$DP$191,3,FALSE)","v":12710.587},{"$f":"VLOOKUP($A38,F1__World_Data!$A$4:$DP$191,2,FALSE)","v":12328.531999999999},null,{"$f":"VLOOKUP($A38,F1__World_Data!$A$4:$DP$191,120,FALSE)","v":68.116},{"$f":"VLOOKUP($A38,F1__World_Data!$A$4:$DP$191,119,FALSE)","v":67.850999999999999},{"$f":"VLOOKUP($A38,F1__World_Data!$A$4:$DP$191,118,FALSE)","v":67.576999999999998},{"$f":"VLOOKUP($A38,F1__World_Data!$A$4:$DP$191,117,FALSE)","v":67.290999999999997},{"$f":"VLOOKUP($A38,F1__World_Data!$A$4:$DP$191,116,FALSE)","v":66.995000000000005},{"$f":"VLOOKUP($A38,F1__World_Data!$A$4:$DP$191,115,FALSE)","v":66.69},{"$f":"VLOOKUP($A38,F1__World_Data!$A$4:$DP$191,114,FALSE)","v":66.381},{"$f":"VLOOKUP($A38,F1__World_Data!$A$4:$DP$191,113,FALSE)","v":66.072000000000003},{"$f":"VLOOKUP($A38,F1__World_Data!$A$4:$DP$191,112,FALSE)","v":65.769000000000005},{"$f":"VLOOKUP($A38,F1__World_Data!$A$4:$DP$191,111,FALSE)","v":65.48},{"$f":"VLOOKUP($A38,F1__World_Data!$A$4:$DP$191,110,FALSE)","v":65.207999999999998},{"$f":"VLOOKUP($A38,F1__World_Data!$A$4:$DP$191,109,FALSE)","v":64.953000000000003},{"$f":"VLOOKUP($A38,F1__World_Data!$A$4:$DP$191,108,FALSE)","v":64.712000000000003},{"$f":"VLOOKUP($A38,F1__World_Data!$A$4:$DP$191,107,FALSE)","v":64.477999999999994},{"$f":"VLOOKUP($A38,F1__World_Data!$A$4:$DP$191,106,FALSE)","v":64.242000000000004},{"$f":"VLOOKUP($A38,F1__World_Data!$A$4:$DP$191,105,FALSE)","v":63.994999999999997},{"$f":"VLOOKUP($A38,F1__World_Data!$A$4:$DP$191,104,FALSE)","v":63.731000000000002},{"$f":"VLOOKUP($A38,F1__World_Data!$A$4:$DP$191,103,FALSE)","v":63.445999999999998},{"$f":"VLOOKUP($A38,F1__World_Data!$A$4:$DP$191,102,FALSE)","v":63.143999999999998},{"$f":"VLOOKUP($A38,F1__World_Data!$A$4:$DP$191,101,FALSE)","v":62.829000000000001},{"$f":"VLOOKUP($A38,F1__World_Data!$A$4:$DP$191,100,FALSE)","v":62.509},{"$f":"VLOOKUP($A38,F1__World_Data!$A$4:$DP$191,99,FALSE)","v":62.188000000000002},{"$f":"VLOOKUP($A38,F1__World_Data!$A$4:$DP$191,98,FALSE)","v":61.866},{"$f":"VLOOKUP($A38,F1__World_Data!$A$4:$DP$191,97,FALSE)","v":61.539000000000001},{"$f":"VLOOKUP($A38,F1__World_Data!$A$4:$DP$191,96,FALSE)","v":61.198},{"$f":"VLOOKUP($A38,F1__World_Data!$A$4:$DP$191,95,FALSE)","v":60.837000000000003},{"$f":"VLOOKUP($A38,F1__World_Data!$A$4:$DP$191,94,FALSE)","v":60.454999999999998},{"$f":"VLOOKUP($A38,F1__World_Data!$A$4:$DP$191,93,FALSE)","v":60.052999999999997},{"$f":"VLOOKUP($A38,F1__World_Data!$A$4:$DP$191,92,FALSE)","v":59.636000000000003},{"$f":"VLOOKUP($A38,F1__World_Data!$A$4:$DP$191,91,FALSE)","v":59.209000000000003},{"$f":"VLOOKUP($A38,F1__World_Data!$A$4:$DP$191,90,FALSE)","v":58.783000000000001},{"$f":"VLOOKUP($A38,F1__World_Data!$A$4:$DP$191,89,FALSE)","v":58.366},{"$f":"VLOOKUP($A38,F1__World_Data!$A$4:$DP$191,88,FALSE)","v":57.962000000000003},{"$f":"VLOOKUP($A38,F1__World_Data!$A$4:$DP$191,87,FALSE)","v":57.579000000000001},{"$f":"VLOOKUP($A38,F1__World_Data!$A$4:$DP$191,86,FALSE)","v":57.220999999999997},{"$f":"VLOOKUP($A38,F1__World_Data!$A$4:$DP$191,85,FALSE)","v":56.886000000000003},{"$f":"VLOOKUP($A38,F1__World_Data!$A$4:$DP$191,84,FALSE)","v":56.569000000000003},{"$f":"VLOOKUP($A38,F1__World_Data!$A$4:$DP$191,83,FALSE)","v":56.265999999999998},{"$f":"VLOOKUP($A38,F1__World_Data!$A$4:$DP$191,82,FALSE)","v":55.970999999999997},{"$f":"VLOOKUP($A38,F1__World_Data!$A$4:$DP$191,81,FALSE)","v":55.679000000000002},{"$f":"VLOOKUP($A38,F1__World_Data!$A$4:$DP$191,80,FALSE)","v":55.381999999999998},{"$f":"VLOOKUP($A38,F1__World_Data!$A$4:$DP$191,79,FALSE)","v":55.073999999999998},{"$f":"VLOOKUP($A38,F1__World_Data!$A$4:$DP$191,78,FALSE)","v":54.747999999999998},{"$f":"VLOOKUP($A38,F1__World_Data!$A$4:$DP$191,77,FALSE)","v":54.399000000000001},{"$f":"VLOOKUP($A38,F1__World_Data!$A$4:$DP$191,76,FALSE)","v":54.027000000000001},{"$f":"VLOOKUP($A38,F1__World_Data!$A$4:$DP$191,75,FALSE)","v":53.633000000000003},{"$f":"VLOOKUP($A38,F1__World_Data!$A$4:$DP$191,74,FALSE)","v":53.218000000000004},{"$f":"VLOOKUP($A38,F1__World_Data!$A$4:$DP$191,73,FALSE)","v":52.781999999999996},{"$f":"VLOOKUP($A38,F1__World_Data!$A$4:$DP$191,72,FALSE)","v":52.323},{"$f":"VLOOKUP($A38,F1__World_Data!$A$4:$DP$191,71,FALSE)","v":51.837000000000003},{"$f":"VLOOKUP($A38,F1__World_Data!$A$4:$DP$191,70,FALSE)","v":51.326999999999998},{"$f":"VLOOKUP($A38,F1__World_Data!$A$4:$DP$191,69,FALSE)","v":50.795999999999999},{"$f":"VLOOKUP($A38,F1__World_Data!$A$4:$DP$191,68,FALSE)","v":50.25},{"$f":"VLOOKUP($A38,F1__World_Data!$A$4:$DP$191,67,FALSE)","v":49.697000000000003},{"$f":"VLOOKUP($A38,F1__World_Data!$A$4:$DP$191,66,FALSE)","v":49.145000000000003},{"$f":"VLOOKUP($A38,F1__World_Data!$A$4:$DP$191,65,FALSE)","v":48.600999999999999},{"$f":"VLOOKUP($A38,F1__World_Data!$A$4:$DP$191,64,FALSE)","v":48.070999999999998},{"$f":"VLOOKUP($A38,F1__World_Data!$A$4:$DP$191,63,FALSE)","v":47.557000000000002},{"$f":"VLOOKUP($A38,F1__World_Data!$A$4:$DP$191,62,FALSE)","v":47.061}]
["Saudi Arabia",{"$f":"VLOOKUP($A39,F1__World_Data!$A$4:$DP$191,60,FALSE)","v":33702.756999999998},{"$f":"VLOOKUP($A39,F1__World_Data!$A$4:$DP$191,59,FALSE)","v":33101.182999999997},{"$f":"VLOOKUP($A39,F1__World_Data!$A$4:$DP$191,58,FALSE)","v":32443.442999999999},{"$f":"VLOOKUP($A39,F1__World_Data!$A$4:$DP$191,57,FALSE)","v":31717.675999999999},{"$f":"VLOOKUP($A39,F1__World_Data!$A$4:$DP$191,56,FALSE)","v":30916.602999999999},{"$f":"VLOOKUP($A39,F1__World_Data!$A$4:$DP$191,55,FALSE)","v":30052.058000000001},{"$f":"VLOOKUP($A39,F1__World_Data!$A$4:$DP$191,54,FALSE)","v":29154.905999999999},{"$f":"VLOOKUP($A39,F1__World_Data!$A$4:$DP$191,53,FALSE)","v":28267.591},{"$f":"VLOOKUP($A39,F1__World_Data!$A$4:$DP$191,52,FALSE)","v":27421.468000000001},{"$f":"VLOOKUP($A39,F1__World_Data!$A$4:$DP$191,51,FALSE)","v":26630.303},{"$f":"VLOOKUP($A39,F1__World_Data!$A$4:$DP$191,50,FALSE)","v":25888.535},{"$f":"VLOOKUP($A39,F1__World_Data!$A$4:$DP$191,49,FALSE)","v":25184.589},{"$f":"VLOOKUP($A39,F1__World_Data!$A$4:$DP$191,48,FALSE)","v":24498.312999999998},{"$f":"VLOOKUP($A39,F1__World_Data!$A$4:$DP$191,47,FALSE)","v":23816.174999999999},{"$f":"VLOOKUP($A39,F1__World_Data!$A$4:$DP$191,46,FALSE)","v":23132.686000000002},{"$f":"VLOOKUP($A39,F1__World_Data!$A$4:$DP$191,45,FALSE)","v":22456.645},{"$f":"VLOOKUP($A39,F1__World_Data!$A$4:$DP$191,44,FALSE)","v":21805.322},{"$f":"VLOOKUP($A39,F1__World_Data!$A$4:$DP$191,45,FALSE)","v":22456.645},{"$f":"VLOOKUP($A39,F1__World_Data!$A$4:$DP$191,42,FALSE)","v":20663.84},{"$f":"VLOOKUP($A39,F1__World_Data!$A$4:$DP$191,41,FALSE)","v":20194.530999999999},{"$f":"VLOOKUP($A39,F1__World_Data!$A$4:$DP$191,40,FALSE)","v":19783.300999999999},{"$f":"VLOOKUP($A39,F1__World_Data!$A$4:$DP$191,39,FALSE)","v":19407.137999999999},{"$f":"VLOOKUP($A39,F1__World_Data!$A$4:$DP$191,38,FALSE)","v":19033.843000000001},{"$f":"VLOOKUP($A39,F1__World_Data!$A$4:$DP$191,37,FALSE)","v":18638.79},{"$f":"VLOOKUP($A39,F1__World_Data!$A$4:$DP$191,36,FALSE)","v":18214.474999999999},{"$f":"VLOOKUP($A39,F1__World_Data!$A$4:$DP$191,35,FALSE)","v":17763.296999999999},{"$f":"VLOOKUP($A39,F1__World_Data!$A$4:$DP$191,34,FALSE)","v":17282.686000000002},{"$f":"VLOOKUP($A39,F1__World_Data!$A$4:$DP$191,33,FALSE)","v":16772.695},{"$f":"VLOOKUP($A39,F1__World_Data!$A$4:$DP$191,32,FALSE)","v":16233.786},{"$f":"VLOOKUP($A39,F1__World_Data!$A$4:$DP$191,31,FALSE)","v":15666.289000000001},{"$f":"VLOOKUP($A39,F1__World_Data!$A$4:$DP$191,30,FALSE)","v":15070.082},{"$f":"VLOOKUP($A39,F1__World_Data!$A$4:$DP$191,29,FALSE)","v":14445.663},{"$f":"VLOOKUP($A39,F1__World_Data!$A$4:$DP$191,28,FALSE)","v":13794.166999999999},{"$f":"VLOOKUP($A39,F1__World_Data!$A$4:$DP$191,27,FALSE)","v":13118.998},{"$f":"VLOOKUP($A39,F1__World_Data!$A$4:$DP$191,26,FALSE)","v":12418.835999999999},{"$f":"VLOOKUP($A39,F1__World_Data!$A$4:$DP$191,25,FALSE)","v":11701.132},{"$f":"VLOOKUP($A39,F1__World_Data!$A$4:$DP$191,24,FALSE)","v":10988.851000000001},{"$f":"VLOOKUP($A39,F1__World_Data!$A$4:$DP$191,23,FALSE)","v":10311.771000000001},{"$f":"VLOOKUP($A39,F1__World_Data!$A$4:$DP$191,22,FALSE)","v":9691.4709999999995},{"$f":"VLOOKUP($A39,F1__World_Data!$A$4:$DP$191,21,FALSE)","v":9137.9279999999999},{"$f":"VLOOKUP($A39,F1__World_Data!$A$4:$DP$191,20,FALSE)","v":8646.8449999999993},{"$f":"VLOOKUP($A39,F1__World_Data!$A$4:$DP$191,19,FALSE)","v":8207.6949999999997},{"$f":"VLOOKUP($A39,F1__World_Data!$A$4:$DP$191,18,FALSE)","v":7802.9279999999999},{"$f":"VLOOKUP($A39,F1__World_Data!$A$4:$DP$191,17,FALSE)","v":7419.4859999999999},{"$f":"VLOOKUP($A39,F1__World_Data!$A$4:$DP$191,16,FALSE)","v":7054.5320000000002},{"$f":"VLOOKUP($A39,F1__World_Data!$A$4:$DP$191,15,FALSE)","v":6711.9219999999996},{"$f":"VLOOKUP($A39,F1__World_Data!$A$4:$DP$191,14,FALSE)","v":6392.973},{"$f":"VLOOKUP($A39,F1__World_Data!$A$4:$DP$191,13,FALSE)","v":6100.6310000000003},{"$f":"VLOOKUP($A39,F1__World_Data!$A$4:$DP$191,12,FALSE)","v":5836.3879999999999},{"$f":"VLOOKUP($A39,F1__World_Data!$A$4:$DP$191,11,FALSE)","v":5599.9089999999997},{"$f":"VLOOKUP($A39,F1__World_Data!$A$4:$DP$191,10,FALSE)","v":5387.8220000000001},{"$f":"VLOOKUP($A39,F1__World_Data!$A$4:$DP$191,9,FALSE)","v":5195.1239999999998},{"$f":"VLOOKUP($A39,F1__World_Data!$A$4:$DP$191,8,FALSE)","v":5015.3530000000001},{"$f":"VLOOKUP($A39,F1__World_Data!$A$4:$DP$191,7,FALSE)","v":4843.6319999999996},{"$f":"VLOOKUP($A39,F1__World_Data!$A$4:$DP$191,6,FALSE)","v":4677.3040000000001},{"$f":"VLOOKUP($A39,F1__World_Data!$A$4:$DP$191,5,FALSE)","v":4516.54},{"$f":"VLOOKUP($A39,F1__World_Data!$A$4:$DP$191,4,FALSE)","v":4362.7879999999996},{"$f":"VLOOKUP($A39,F1__World_Data!$A$4:$DP$191,3,FALSE)","v":4218.8519999999999},{"$f":"VLOOKUP($A39,F1__World_Data!$A$4:$DP$191,2,FALSE)","v":4086.5340000000001},null,{"$f":"VLOOKUP($A39,F1__World_Data!$A$4:$DP$191,120,FALSE)","v":68.116},{"$f":"VLOOKUP($A39,F1__World_Data!$A$4:$DP$191,119,FALSE)","v":67.850999999999999},{"$f":"VLOOKUP($A39,F1__World_Data!$A$4:$DP$191,118,FALSE)","v":67.576999999999998},{"$f":"VLOOKUP($A39,F1__World_Data!$A$4:$DP$191,117,FALSE)","v":67.290999999999997},{"$f":"VLOOKUP($A39,F1__World_Data!$A$4:$DP$191,116,FALSE)","v":66.995000000000005},{"$f":"VLOOKUP($A39,F1__World_Data!$A$4:$DP$191,115,FALSE)","v":66.69},{"$f":"VLOOKUP($A39,F1__World_Data!$A$4:$DP$191,114,FALSE)","v":66.381},{"$f":"VLOOKUP($A39,F1__World_Data!$A$4:$DP$191,113,FALSE)","v":66.072000000000003},{"$f":"VLOOKUP($A39,F1__World_Data!$A$4:$DP$191,112,FALSE)","v":65.769000000000005},{"$f":"VLOOKUP($A39,F1__World_Data!$A$4:$DP$191,111,FALSE)","v":65.48},{"$f":"VLOOKUP($A39,F1__World_Data!$A$4:$DP$191,110,FALSE)","v":65.207999999999998},{"$f":"VLOOKUP($A39,F1__World_Data!$A$4:$DP$191,109,FALSE)","v":64.953000000000003},{"$f":"VLOOKUP($A39,F1__World_Data!$A$4:$DP$191,108,FALSE)","v":64.712000000000003},{"$f":"VLOOKUP($A39,F1__World_Data!$A$4:$DP$191,107,FALSE)","v":64.477999999999994},{"$f":"VLOOKUP($A39,F1__World_Data!$A$4:$DP$191,106,FALSE)","v":64.242000000000004},{"$f":"VLOOKUP($A39,F1__World_Data!$A$4:$DP$191,105,FALSE)","v":63.994999999999997},{"$f":"VLOOKUP($A39,F1__World_Data!$A$4:$DP$191,104,FALSE)","v":63.731000000000002},{"$f":"VLOOKUP($A39,F1__World_Data!$A$4:$DP$191,103,FALSE)","v":63.445999999999998},{"$f":"VLOOKUP($A39,F1__World_Data!$A$4:$DP$191,102,FALSE)","v":63.143999999999998},{"$f":"VLOOKUP($A39,F1__World_Data!$A$4:$DP$191,101,FALSE)","v":62.829000000000001},{"$f":"VLOOKUP($A39,F1__World_Data!$A$4:$DP$191,100,FALSE)","v":62.509},{"$f":"VLOOKUP($A39,F1__World_Data!$A$4:$DP$191,99,FALSE)","v":62.188000000000002},{"$f":"VLOOKUP($A39,F1__World_Data!$A$4:$DP$191,98,FALSE)","v":61.866},{"$f":"VLOOKUP($A39,F1__World_Data!$A$4:$DP$191,97,FALSE)","v":61.539000000000001},{"$f":"VLOOKUP($A39,F1__World_Data!$A$4:$DP$191,96,FALSE)","v":61.198},{"$f":"VLOOKUP($A39,F1__World_Data!$A$4:$DP$191,95,FALSE)","v":60.837000000000003},{"$f":"VLOOKUP($A39,F1__World_Data!$A$4:$DP$191,94,FALSE)","v":60.454999999999998},{"$f":"VLOOKUP($A39,F1__World_Data!$A$4:$DP$191,93,FALSE)","v":60.052999999999997},{"$f":"VLOOKUP($A39,F1__World_Data!$A$4:$DP$191,92,FALSE)","v":59.636000000000003},{"$f":"VLOOKUP($A39,F1__World_Data!$A$4:$DP$191,91,FALSE)","v":59.209000000000003},{"$f":"VLOOKUP($A39,F1__World_Data!$A$4:$DP$191,90,FALSE)","v":58.783000000000001},{"$f":"VLOOKUP($A39,F1__World_Data!$A$4:$DP$191,89,FALSE)","v":58.366},{"$f":"VLOOKUP($A39,F1__World_Data!$A$4:$DP$191,88,FALSE)","v":57.962000000000003},{"$f":"VLOOKUP($A39,F1__World_Data!$A$4:$DP$191,87,FALSE)","v":57.579000000000001},{"$f":"VLOOKUP($A39,F1__World_Data!$A$4:$DP$191,86,FALSE)","v":57.220999999999997},{"$f":"VLOOKUP($A39,F1__World_Data!$A$4:$DP$191,85,FALSE)","v":56.886000000000003},{"$f":"VLOOKUP($A39,F1__World_Data!$A$4:$DP$191,84,FALSE)","v":56.569000000000003},{"$f":"VLOOKUP($A39,F1__World_Data!$A$4:$DP$191,83,FALSE)","v":56.265999999999998},{"$f":"VLOOKUP($A39,F1__World_Data!$A$4:$DP$191,82,FALSE)","v":55.970999999999997},{"$f":"VLOOKUP($A39,F1__World_Data!$A$4:$DP$191,81,FALSE)","v":55.679000000000002},{"$f":"VLOOKUP($A39,F1__World_Data!$A$4:$DP$191,80,FALSE)","v":55.381999999999998},{"$f":"VLOOKUP($A39,F1__World_Data!$A$4:$DP$191,79,FALSE)","v":55.073999999999998},{"$f":"VLOOKUP($A39,F1__World_Data!$A$4:$DP$191,78,FALSE)","v":54.747999999999998},{"$f":"VLOOKUP($A39,F1__World_Data!$A$4:$DP$191,77,FALSE)","v":54.399000000000001},{"$f":"VLOOKUP($A39,F1__World_Data!$A$4:$DP$191,76,FALSE)","v":54.027000000000001},{"$f":"VLOOKUP($A39,F1__World_Data!$A$4:$DP$191,75,FALSE)","v":53.633000000000003},{"$f":"VLOOKUP($A39,F1__World_Data!$A$4:$DP$191,74,FALSE)","v":53.218000000000004},{"$f":"VLOOKUP($A39,F1__World_Data!$A$4:$DP$191,73,FALSE)","v":52.781999999999996},{"$f":"VLOOKUP($A39,F1__World_Data!$A$4:$DP$191,72,FALSE)","v":52.323},{"$f":"VLOOKUP($A39,F1__World_Data!$A$4:$DP$191,71,FALSE)","v":51.837000000000003},{"$f":"VLOOKUP($A39,F1__World_Data!$A$4:$DP$191,70,FALSE)","v":51.326999999999998},{"$f":"VLOOKUP($A39,F1__World_Data!$A$4:$DP$191,69,FALSE)","v":50.795999999999999},{"$f":"VLOOKUP($A39,F1__World_Data!$A$4:$DP$191,68,FALSE)","v":50.25},{"$f":"VLOOKUP($A39,F1__World_Data!$A$4:$DP$191,67,FALSE)","v":49.697000000000003},{"$f":"VLOOKUP($A39,F1__World_Data!$A$4:$DP$191,66,FALSE)","v":49.145000000000003},{"$f":"VLOOKUP($A39,F1__World_Data!$A$4:$DP$191,65,FALSE)","v":48.600999999999999},{"$f":"VLOOKUP($A39,F1__World_Data!$A$4:$DP$191,64,FALSE)","v":48.070999999999998},{"$f":"VLOOKUP($A39,F1__World_Data!$A$4:$DP$191,63,FALSE)","v":47.557000000000002},{"$f":"VLOOKUP($A39,F1__World_Data!$A$4:$DP$191,62,FALSE)","v":47.061}]
["Uzbekistan",{"$f":"VLOOKUP($A40,F1__World_Data!$A$4:$DP$191,60,FALSE)","v":32476.232},{"$f":"VLOOKUP($A40,F1__World_Data!$A$4:$DP$191,59,FALSE)","v":31959.774000000001},{"$f":"VLOOKUP($A40,F1__World_Data!$A$4:$DP$191,58,FALSE)","v":31441.753000000001},{"$f":"VLOOKUP($A40,F1__World_Data!$A$4:$DP$191,57,FALSE)","v":30929.556},{"$f":"VLOOKUP($A40,F1__World_Data!$A$4:$DP$191,56,FALSE)","v":30426.394},{"$f":"VLOOKUP($A40,F1__World_Data!$A$4:$DP$191,55,FALSE)","v":29932.63},{"$f":"VLOOKUP($A40,F1__World_Data!$A$4:$DP$191,54,FALSE)","v":29449.415000000001},{"$f":"VLOOKUP($A40,F1__World_Data!$A$4:$DP$191,53,FALSE)","v":28977.006000000001},{"$f":"VLOOKUP($A40,F1__World_Data!$A$4:$DP$191,52,FALSE)","v":28515.907999999999},{"$f":"VLOOKUP($A40,F1__World_Data!$A$4:$DP$191,51,FALSE)","v":28065.469000000001},{"$f":"VLOOKUP($A40,F1__World_Data!$A$4:$DP$191,50,FALSE)","v":27626.981},{"$f":"VLOOKUP($A40,F1__World_Data!$A$4:$DP$191,49,FALSE)","v":27204.710999999999},{"$f":"VLOOKUP($A40,F1__World_Data!$A$4:$DP$191,48,FALSE)","v":26804.066999999999},{"$f":"VLOOKUP($A40,F1__World_Data!$A$4:$DP$191,47,FALSE)","v":26427.785},{"$f":"VLOOKUP($A40,F1__World_Data!$A$4:$DP$191,46,FALSE)","v":26077.614000000001},{"$f":"VLOOKUP($A40,F1__World_Data!$A$4:$DP$191,45,FALSE)","v":25749.109},{"$f":"VLOOKUP($A40,F1__World_Data!$A$4:$DP$191,44,FALSE)","v":25431.116000000002},{"$f":"VLOOKUP($A40,F1__World_Data!$A$4:$DP$191,45,FALSE)","v":25749.109},{"$f":"VLOOKUP($A40,F1__World_Data!$A$4:$DP$191,42,FALSE)","v":24769.955000000002},{"$f":"VLOOKUP($A40,F1__World_Data!$A$4:$DP$191,41,FALSE)","v":24412.050999999999},{"$f":"VLOOKUP($A40,F1__World_Data!$A$4:$DP$191,40,FALSE)","v":24036.017},{"$f":"VLOOKUP($A40,F1__World_Data!$A$4:$DP$191,39,FALSE)","v":23640.487000000001},{"$f":"VLOOKUP($A40,F1__World_Data!$A$4:$DP$191,38,FALSE)","v":23225.303},{"$f":"VLOOKUP($A40,F1__World_Data!$A$4:$DP$191,37,FALSE)","v":22791.032999999999},{"$f":"VLOOKUP($A40,F1__World_Data!$A$4:$DP$191,36,FALSE)","v":22336.202000000001},{"$f":"VLOOKUP($A40,F1__World_Data!$A$4:$DP$191,35,FALSE)","v":21861.973999999998},{"$f":"VLOOKUP($A40,F1__World_Data!$A$4:$DP$191,34,FALSE)","v":21375.114000000001},{"$f":"VLOOKUP($A40,F1__World_Data!$A$4:$DP$191,33,FALSE)","v":20884.862000000001},{"$f":"VLOOKUP($A40,F1__World_Data!$A$4:$DP$191,32,FALSE)","v":20398.347000000002},{"$f":"VLOOKUP($A40,F1__World_Data!$A$4:$DP$191,31,FALSE)","v":19918.118999999999},{"$f":"VLOOKUP($A40,F1__World_Data!$A$4:$DP$191,30,FALSE)","v":19443.89},{"$f":"VLOOKUP($A40,F1__World_Data!$A$4:$DP$191,29,FALSE)","v":18976.411},{"$f":"VLOOKUP($A40,F1__World_Data!$A$4:$DP$191,28,FALSE)","v":18515.579000000002},{"$f":"VLOOKUP($A40,F1__World_Data!$A$4:$DP$191,27,FALSE)","v":18061.282999999999},{"$f":"VLOOKUP($A40,F1__World_Data!$A$4:$DP$191,26,FALSE)","v":17615.037},{"$f":"VLOOKUP($A40,F1__World_Data!$A$4:$DP$191,25,FALSE)","v":17177.663},{"$f":"VLOOKUP($A40,F1__World_Data!$A$4:$DP$191,24,FALSE)","v":16747.428},{"$f":"VLOOKUP($A40,F1__World_Data!$A$4:$DP$191,23,FALSE)","v":16321.691999999999},{"$f":"VLOOKUP($A40,F1__World_Data!$A$4:$DP$191,22,FALSE)","v":15898.76},{"$f":"VLOOKUP($A40,F1__World_Data!$A$4:$DP$191,21,FALSE)","v":15476.928},{"$f":"VLOOKUP($A40,F1__World_Data!$A$4:$DP$191,20,FALSE)","v":15057.226000000001},{"$f":"VLOOKUP($A40,F1__World_Data!$A$4:$DP$191,19,FALSE)","v":14643.880999999999},{"$f":"VLOOKUP($A40,F1__World_Data!$A$4:$DP$191,18,FALSE)","v":14242.766},{"$f":"VLOOKUP($A40,F1__World_Data!$A$4:$DP$191,17,FALSE)","v":13857.468999999999},{"$f":"VLOOKUP($A40,F1__World_Data!$A$4:$DP$191,16,FALSE)","v":13491.114},{"$f":"VLOOKUP($A40,F1__World_Data!$A$4:$DP$191,15,FALSE)","v":13140.797},{"$f":"VLOOKUP($A40,F1__World_Data!$A$4:$DP$191,14,FALSE)","v":12796.982},{"$f":"VLOOKUP($A40,F1__World_Data!$A$4:$DP$191,13,FALSE)","v":12446.444},{"$f":"VLOOKUP($A40,F1__World_Data!$A$4:$DP$191,12,FALSE)","v":12080.311},{"$f":"VLOOKUP($A40,F1__World_Data!$A$4:$DP$191,11,FALSE)","v":11694.843000000001},{"$f":"VLOOKUP($A40,F1__World_Data!$A$4:$DP$191,10,FALSE)","v":11294.665999999999},{"$f":"VLOOKUP($A40,F1__World_Data!$A$4:$DP$191,9,FALSE)","v":10889.499},{"$f":"VLOOKUP($A40,F1__World_Data!$A$4:$DP$191,8,FALSE)","v":10493.441000000001},{"$f":"VLOOKUP($A40,F1__World_Data!$A$4:$DP$191,7,FALSE)","v":10116.870000000001},{"$f":"VLOOKUP($A40,F1__World_Data!$A$4:$DP$191,6,FALSE)","v":9762.8189999999995},{"$f":"VLOOKUP($A40,F1__World_Data!$A$4:$DP$191,5,FALSE)","v":9428.9060000000009},{"$f":"VLOOKUP($A40,F1__World_Data!$A$4:$DP$191,4,FALSE)","v":9113.6290000000008},{"$f":"VLOOKUP($A40,F1__World_Data!$A$4:$DP$191,3,FALSE)","v":8813.6190000000006},{"$f":"VLOOKUP($A40,F1__World_Data!$A$4:$DP$191,2,FALSE)","v":8526.2990000000009},null,{"$f":"VLOOKUP($A40,F1__World_Data!$A$4:$DP$191,120,FALSE)","v":63.856999999999999},{"$f":"VLOOKUP($A40,F1__World_Data!$A$4:$DP$191,119,FALSE)","v":63.537999999999997},{"$f":"VLOOKUP($A40,F1__World_Data!$A$4:$DP$191,118,FALSE)","v":63.152999999999999},{"$f":"VLOOKUP($A40,F1__World_Data!$A$4:$DP$191,117,FALSE)","v":62.649000000000001},{"$f":"VLOOKUP($A40,F1__World_Data!$A$4:$DP$191,116,FALSE)","v":61.968000000000004},{"$f":"VLOOKUP($A40,F1__World_Data!$A$4:$DP$191,115,FALSE)","v":61.098999999999997},{"$f":"VLOOKUP($A40,F1__World_Data!$A$4:$DP$191,114,FALSE)","v":60.06},{"$f":"VLOOKUP($A40,F1__World_Data!$A$4:$DP$191,113,FALSE)","v":58.895000000000003},{"$f":"VLOOKUP($A40,F1__World_Data!$A$4:$DP$191,112,FALSE)","v":57.668999999999997},{"$f":"VLOOKUP($A40,F1__World_Data!$A$4:$DP$191,111,FALSE)","v":56.46},{"$f":"VLOOKUP($A40,F1__World_Data!$A$4:$DP$191,110,FALSE)","v":55.36},{"$f":"VLOOKUP($A40,F1__World_Data!$A$4:$DP$191,109,FALSE)","v":54.451999999999998},{"$f":"VLOOKUP($A40,F1__World_Data!$A$4:$DP$191,108,FALSE)","v":53.795000000000002},{"$f":"VLOOKUP($A40,F1__World_Data!$A$4:$DP$191,107,FALSE)","v":53.447000000000003},{"$f":"VLOOKUP($A40,F1__World_Data!$A$4:$DP$191,106,FALSE)","v":53.444000000000003},{"$f":"VLOOKUP($A40,F1__World_Data!$A$4:$DP$191,105,FALSE)","v":53.749000000000002},{"$f":"VLOOKUP($A40,F1__World_Data!$A$4:$DP$191,104,FALSE)","v":54.31},{"$f":"VLOOKUP($A40,F1__World_Data!$A$4:$DP$191,103,FALSE)","v":55.088999999999999},{"$f":"VLOOKUP($A40,F1__World_Data!$A$4:$DP$191,102,FALSE)","v":56.048000000000002},{"$f":"VLOOKUP($A40,F1__World_Data!$A$4:$DP$191,101,FALSE)","v":57.143999999999998},{"$f":"VLOOKUP($A40,F1__World_Data!$A$4:$DP$191,100,FALSE)","v":58.314999999999998},{"$f":"VLOOKUP($A40,F1__World_Data!$A$4:$DP$191,99,FALSE)","v":59.488999999999997},{"$f":"VLOOKUP($A40,F1__World_Data!$A$4:$DP$191,98,FALSE)","v":60.594999999999999},{"$f":"VLOOKUP($A40,F1__World_Data!$A$4:$DP$191,97,FALSE)","v":61.561},{"$f":"VLOOKUP($A40,F1__World_Data!$A$4:$DP$191,96,FALSE)","v":62.331000000000003},{"$f":"VLOOKUP($A40,F1__World_Data!$A$4:$DP$191,95,FALSE)","v":62.893999999999998},{"$f":"VLOOKUP($A40,F1__World_Data!$A$4:$DP$191,94,FALSE)","v":63.247},{"$f":"VLOOKUP($A40,F1__World_Data!$A$4:$DP$191,93,FALSE)","v":63.384},{"$f":"VLOOKUP($A40,F1__World_Data!$A$4:$DP$191,92,FALSE)","v":63.307000000000002},{"$f":"VLOOKUP($A40,F1__World_Data!$A$4:$DP$191,91,FALSE)","v":63.034999999999997},{"$f":"VLOOKUP($A40,F1__World_Data!$A$4:$DP$191,90,FALSE)","v":62.619},{"$f":"VLOOKUP($A40,F1__World_Data!$A$4:$DP$191,89,FALSE)","v":62.109000000000002},{"$f":"VLOOKUP($A40,F1__World_Data!$A$4:$DP$191,88,FALSE)","v":61.54},{"$f":"VLOOKUP($A40,F1__World_Data!$A$4:$DP$191,87,FALSE)","v":60.945999999999998},{"$f":"VLOOKUP($A40,F1__World_Data!$A$4:$DP$191,86,FALSE)","v":60.353000000000002},{"$f":"VLOOKUP($A40,F1__World_Data!$A$4:$DP$191,85,FALSE)","v":59.765999999999998},{"$f":"VLOOKUP($A40,F1__World_Data!$A$4:$DP$191,84,FALSE)","v":59.191000000000003},{"$f":"VLOOKUP($A40,F1__World_Data!$A$4:$DP$191,83,FALSE)","v":58.637},{"$f":"VLOOKUP($A40,F1__World_Data!$A$4:$DP$191,82,FALSE)","v":58.106999999999999},{"$f":"VLOOKUP($A40,F1__World_Data!$A$4:$DP$191,81,FALSE)","v":57.59},{"$f":"VLOOKUP($A40,F1__World_Data!$A$4:$DP$191,80,FALSE)","v":57.070999999999998},{"$f":"VLOOKUP($A40,F1__World_Data!$A$4:$DP$191,79,FALSE)","v":56.537999999999997},{"$f":"VLOOKUP($A40,F1__World_Data!$A$4:$DP$191,78,FALSE)","v":55.99},{"$f":"VLOOKUP($A40,F1__World_Data!$A$4:$DP$191,77,FALSE)","v":55.427999999999997},{"$f":"VLOOKUP($A40,F1__World_Data!$A$4:$DP$191,76,FALSE)","v":54.856000000000002},{"$f":"VLOOKUP($A40,F1__World_Data!$A$4:$DP$191,75,FALSE)","v":54.280999999999999},{"$f":"VLOOKUP($A40,F1__World_Data!$A$4:$DP$191,74,FALSE)","v":53.713000000000001},{"$f":"VLOOKUP($A40,F1__World_Data!$A$4:$DP$191,73,FALSE)","v":53.156999999999996},{"$f":"VLOOKUP($A40,F1__World_Data!$A$4:$DP$191,72,FALSE)","v":52.62},{"$f":"VLOOKUP($A40,F1__World_Data!$A$4:$DP$191,71,FALSE)","v":52.106000000000002},{"$f":"VLOOKUP($A40,F1__World_Data!$A$4:$DP$191,70,FALSE)","v":51.615000000000002},{"$f":"VLOOKUP($A40,F1__World_Data!$A$4:$DP$191,69,FALSE)","v":51.148000000000003},{"$f":"VLOOKUP($A40,F1__World_Data!$A$4:$DP$191,68,FALSE)","v":50.704999999999998},{"$f":"VLOOKUP($A40,F1__World_Data!$A$4:$DP$191,67,FALSE)","v":50.283999999999999},{"$f":"VLOOKUP($A40,F1__World_Data!$A$4:$DP$191,66,FALSE)","v":49.887999999999998},{"$f":"VLOOKUP($A40,F1__World_Data!$A$4:$DP$191,65,FALSE)","v":49.509},{"$f":"VLOOKUP($A40,F1__World_Data!$A$4:$DP$191,64,FALSE)","v":49.142000000000003},{"$f":"VLOOKUP($A40,F1__World_Data!$A$4:$DP$191,63,FALSE)","v":48.777000000000001},{"$f":"VLOOKUP($A40,F1__World_Data!$A$4:$DP$191,62,FALSE)","v":48.405999999999999}]
["Peru",{"$f":"VLOOKUP($A41,F1__World_Data!$A$4:$DP$191,60,FALSE)","v":31989.264999999999},{"$f":"VLOOKUP($A41,F1__World_Data!$A$4:$DP$191,59,FALSE)","v":31444.298999999999},{"$f":"VLOOKUP($A41,F1__World_Data!$A$4:$DP$191,58,FALSE)","v":30926.036},{"$f":"VLOOKUP($A41,F1__World_Data!$A$4:$DP$191,57,FALSE)","v":30470.739000000001},{"$f":"VLOOKUP($A41,F1__World_Data!$A$4:$DP$191,56,FALSE)","v":30090.371999999999},{"$f":"VLOOKUP($A41,F1__World_Data!$A$4:$DP$191,55,FALSE)","v":29773.986000000001},{"$f":"VLOOKUP($A41,F1__World_Data!$A$4:$DP$191,54,FALSE)","v":29506.79},{"$f":"VLOOKUP($A41,F1__World_Data!$A$4:$DP$191,53,FALSE)","v":29264.313999999998},{"$f":"VLOOKUP($A41,F1__World_Data!$A$4:$DP$191,52,FALSE)","v":29027.68},{"$f":"VLOOKUP($A41,F1__World_Data!$A$4:$DP$191,51,FALSE)","v":28792.663},{"$f":"VLOOKUP($A41,F1__World_Data!$A$4:$DP$191,50,FALSE)","v":28562.321},{"$f":"VLOOKUP($A41,F1__World_Data!$A$4:$DP$191,49,FALSE)","v":28333.05},{"$f":"VLOOKUP($A41,F1__World_Data!$A$4:$DP$191,48,FALSE)","v":28102.055},{"$f":"VLOOKUP($A41,F1__World_Data!$A$4:$DP$191,47,FALSE)","v":27866.14},{"$f":"VLOOKUP($A41,F1__World_Data!$A$4:$DP$191,46,FALSE)","v":27624.225999999999},{"$f":"VLOOKUP($A41,F1__World_Data!$A$4:$DP$191,45,FALSE)","v":27372.217000000001},{"$f":"VLOOKUP($A41,F1__World_Data!$A$4:$DP$191,44,FALSE)","v":27100.964},{"$f":"VLOOKUP($A41,F1__World_Data!$A$4:$DP$191,45,FALSE)","v":27372.217000000001},{"$f":"VLOOKUP($A41,F1__World_Data!$A$4:$DP$191,42,FALSE)","v":26459.944},{"$f":"VLOOKUP($A41,F1__World_Data!$A$4:$DP$191,41,FALSE)","v":26078.294999999998},{"$f":"VLOOKUP($A41,F1__World_Data!$A$4:$DP$191,40,FALSE)","v":25658.07},{"$f":"VLOOKUP($A41,F1__World_Data!$A$4:$DP$191,39,FALSE)","v":25210.956999999999},{"$f":"VLOOKUP($A41,F1__World_Data!$A$4:$DP$191,38,FALSE)","v":24753.825000000001},{"$f":"VLOOKUP($A41,F1__World_Data!$A$4:$DP$191,37,FALSE)","v":24299.168000000001},{"$f":"VLOOKUP($A41,F1__World_Data!$A$4:$DP$191,36,FALSE)","v":23851.404999999999},{"$f":"VLOOKUP($A41,F1__World_Data!$A$4:$DP$191,35,FALSE)","v":23408.134999999998},{"$f":"VLOOKUP($A41,F1__World_Data!$A$4:$DP$191,34,FALSE)","v":22966.822},{"$f":"VLOOKUP($A41,F1__World_Data!$A$4:$DP$191,33,FALSE)","v":22522.383000000002},{"$f":"VLOOKUP($A41,F1__World_Data!$A$4:$DP$191,32,FALSE)","v":22071.433000000001},{"$f":"VLOOKUP($A41,F1__World_Data!$A$4:$DP$191,31,FALSE)","v":21614.192999999999},{"$f":"VLOOKUP($A41,F1__World_Data!$A$4:$DP$191,30,FALSE)","v":21153.462},{"$f":"VLOOKUP($A41,F1__World_Data!$A$4:$DP$191,29,FALSE)","v":20691.285},{"$f":"VLOOKUP($A41,F1__World_Data!$A$4:$DP$191,28,FALSE)","v":20230.384999999998},{"$f":"VLOOKUP($A41,F1__World_Data!$A$4:$DP$191,27,FALSE)","v":19772.870999999999},{"$f":"VLOOKUP($A41,F1__World_Data!$A$4:$DP$191,26,FALSE)","v":19319.745999999999},{"$f":"VLOOKUP($A41,F1__World_Data!$A$4:$DP$191,25,FALSE)","v":18870.988000000001},{"$f":"VLOOKUP($A41,F1__World_Data!$A$4:$DP$191,24,FALSE)","v":18426.419999999998},{"$f":"VLOOKUP($A41,F1__World_Data!$A$4:$DP$191,23,FALSE)","v":17985.398000000001},{"$f":"VLOOKUP($A41,F1__World_Data!$A$4:$DP$191,22,FALSE)","v":17547.612000000001},{"$f":"VLOOKUP($A41,F1__World_Data!$A$4:$DP$191,21,FALSE)","v":17113.393},{"$f":"VLOOKUP($A41,F1__World_Data!$A$4:$DP$191,20,FALSE)","v":16683.451000000001},{"$f":"VLOOKUP($A41,F1__World_Data!$A$4:$DP$191,19,FALSE)","v":16258.323},{"$f":"VLOOKUP($A41,F1__World_Data!$A$4:$DP$191,18,FALSE)","v":15838.567999999999},{"$f":"VLOOKUP($A41,F1__World_Data!$A$4:$DP$191,17,FALSE)","v":15424.745000000001},{"$f":"VLOOKUP($A41,F1__World_Data!$A$4:$DP$191,16,FALSE)","v":15017.06},{"$f":"VLOOKUP($A41,F1__World_Data!$A$4:$DP$191,15,FALSE)","v":14615.847},{"$f":"VLOOKUP($A41,F1__World_Data!$A$4:$DP$191,14,FALSE)","v":14221.954},{"$f":"VLOOKUP($A41,F1__World_Data!$A$4:$DP$191,13,FALSE)","v":13836.365},{"$f":"VLOOKUP($A41,F1__World_Data!$A$4:$DP$191,12,FALSE)","v":13459.789000000001},{"$f":"VLOOKUP($A41,F1__World_Data!$A$4:$DP$191,11,FALSE)","v":13092.846},{"$f":"VLOOKUP($A41,F1__World_Data!$A$4:$DP$191,10,FALSE)","v":12735.491},{"$f":"VLOOKUP($A41,F1__World_Data!$A$4:$DP$191,9,FALSE)","v":12386.868},{"$f":"VLOOKUP($A41,F1__World_Data!$A$4:$DP$191,8,FALSE)","v":12045.782999999999},{"$f":"VLOOKUP($A41,F1__World_Data!$A$4:$DP$191,7,FALSE)","v":11711.402},{"$f":"VLOOKUP($A41,F1__World_Data!$A$4:$DP$191,6,FALSE)","v":11383.364},{"$f":"VLOOKUP($A41,F1__World_Data!$A$4:$DP$191,5,FALSE)","v":11062.295},{"$f":"VLOOKUP($A41,F1__World_Data!$A$4:$DP$191,4,FALSE)","v":10749.463},{"$f":"VLOOKUP($A41,F1__World_Data!$A$4:$DP$191,3,FALSE)","v":10446.618},{"$f":"VLOOKUP($A41,F1__World_Data!$A$4:$DP$191,2,FALSE)","v":10155.011},null,{"$f":"VLOOKUP($A41,F1__World_Data!$A$4:$DP$191,120,FALSE)","v":68.116},{"$f":"VLOOKUP($A41,F1__World_Data!$A$4:$DP$191,119,FALSE)","v":67.850999999999999},{"$f":"VLOOKUP($A41,F1__World_Data!$A$4:$DP$191,118,FALSE)","v":67.576999999999998},{"$f":"VLOOKUP($A41,F1__World_Data!$A$4:$DP$191,117,FALSE)","v":67.290999999999997},{"$f":"VLOOKUP($A41,F1__World_Data!$A$4:$DP$191,116,FALSE)","v":66.995000000000005},{"$f":"VLOOKUP($A41,F1__World_Data!$A$4:$DP$191,115,FALSE)","v":66.69},{"$f":"VLOOKUP($A41,F1__World_Data!$A$4:$DP$191,114,FALSE)","v":66.381},{"$f":"VLOOKUP($A41,F1__World_Data!$A$4:$DP$191,113,FALSE)","v":66.072000000000003},{"$f":"VLOOKUP($A41,F1__World_Data!$A$4:$DP$191,112,FALSE)","v":65.769000000000005},{"$f":"VLOOKUP($A41,F1__World_Data!$A$4:$DP$191,111,FALSE)","v":65.48},{"$f":"VLOOKUP($A41,F1__World_Data!$A$4:$DP$191,110,FALSE)","v":65.207999999999998},{"$f":"VLOOKUP($A41,F1__World_Data!$A$4:$DP$191,109,FALSE)","v":64.953000000000003},{"$f":"VLOOKUP($A41,F1__World_Data!$A$4:$DP$191,108,FALSE)","v":64.712000000000003},{"$f":"VLOOKUP($A41,F1__World_Data!$A$4:$DP$191,107,FALSE)","v":64.477999999999994},{"$f":"VLOOKUP($A41,F1__World_Data!$A$4:$DP$191,106,FALSE)","v":64.242000000000004},{"$f":"VLOOKUP($A41,F1__World_Data!$A$4:$DP$191,105,FALSE)","v":63.994999999999997},{"$f":"VLOOKUP($A41,F1__World_Data!$A$4:$DP$191,104,FALSE)","v":63.731000000000002},{"$f":"VLOOKUP($A41,F1__World_Data!$A$4:$DP$191,103,FALSE)","v":63.445999999999998},{"$f":"VLOOKUP($A41,F1__World_Data!$A$4:$DP$191,102,FALSE)","v":63.143999999999998},{"$f":"VLOOKUP($A41,F1__World_Data!$A$4:$DP$191,101,FALSE)","v":62.829000000000001},{"$f":"VLOOKUP($A41,F1__World_Data!$A$4:$DP$191,100,FALSE)","v":62.509},{"$f":"VLOOKUP($A41,F1__World_Data!$A$4:$DP$191,99,FALSE)","v":62.188000000000002},{"$f":"VLOOKUP($A41,F1__World_Data!$A$4:$DP$191,98,FALSE)","v":61.866},{"$f":"VLOOKUP($A41,F1__World_Data!$A$4:$DP$191,97,FALSE)","v":61.539000000000001},{"$f":"VLOOKUP($A41,F1__World_Data!$A$4:$DP$191,96,FALSE)","v":61.198},{"$f":"VLOOKUP($A41,F1__World_Data!$A$4:$DP$191,95,FALSE)","v":60.837000000000003},{"$f":"VLOOKUP($A41,F1__World_Data!$A$4:$DP$191,94,FALSE)","v":60.454999999999998},{"$f":"VLOOKUP($A41,F1__World_Data!$A$4:$DP$191,93,FALSE)","v":60.052999999999997},{"$f":"VLOOKUP($A41,F1__World_Data!$A$4:$DP$191,92,FALSE)","v":59.636000000000003},{"$f":"VLOOKUP($A41,F1__World_Data!$A$4:$DP$191,91,FALSE)","v":59.209000000000003},{"$f":"VLOOKUP($A41,F1__World_Data!$A$4:$DP$191,90,FALSE)","v":58.783000000000001},{"$f":"VLOOKUP($A41,F1__World_Data!$A$4:$DP$191,89,FALSE)","v":58.366},{"$f":"VLOOKUP($A41,F1__World_Data!$A$4:$DP$191,88,FALSE)","v":57.962000000000003},{"$f":"VLOOKUP($A41,F1__World_Data!$A$4:$DP$191,87,FALSE)","v":57.579000000000001},{"$f":"VLOOKUP($A41,F1__World_Data!$A$4:$DP$191,86,FALSE)","v":57.220999999999997},{"$f":"VLOOKUP($A41,F1__World_Data!$A$4:$DP$191,85,FALSE)","v":56.886000000000003},{"$f":"VLOOKUP($A41,F1__World_Data!$A$4:$DP$191,84,FALSE)","v":56.569000000000003},{"$f":"VLOOKUP($A41,F1__World_Data!$A$4:$DP$191,83,FALSE)","v":56.265999999999998},{"$f":"VLOOKUP($A41,F1__World_Data!$A$4:$DP$191,82,FALSE)","v":55.970999999999997},{"$f":"VLOOKUP($A41,F1__World_Data!$A$4:$DP$191,81,FALSE)","v":55.679000000000002},{"$f":"VLOOKUP($A41,F1__World_Data!$A$4:$DP$191,80,FALSE)","v":55.381999999999998},{"$f":"VLOOKUP($A41,F1__World_Data!$A$4:$DP$191,79,FALSE)","v":55.073999999999998},{"$f":"VLOOKUP($A41,F1__World_Data!$A$4:$DP$191,78,FALSE)","v":54.747999999999998},{"$f":"VLOOKUP($A41,F1__World_Data!$A$4:$DP$191,77,FALSE)","v":54.399000000000001},{"$f":"VLOOKUP($A41,F1__World_Data!$A$4:$DP$191,76,FALSE)","v":54.027000000000001},{"$f":"VLOOKUP($A41,F1__World_Data!$A$4:$DP$191,75,FALSE)","v":53.633000000000003},{"$f":"VLOOKUP($A41,F1__World_Data!$A$4:$DP$191,74,FALSE)","v":53.218000000000004},{"$f":"VLOOKUP($A41,F1__World_Data!$A$4:$DP$191,73,FALSE)","v":52.781999999999996},{"$f":"VLOOKUP($A41,F1__World_Data!$A$4:$DP$191,72,FALSE)","v":52.323},{"$f":"VLOOKUP($A41,F1__World_Data!$A$4:$DP$191,71,FALSE)","v":51.837000000000003},{"$f":"VLOOKUP($A41,F1__World_Data!$A$4:$DP$191,70,FALSE)","v":51.326999999999998},{"$f":"VLOOKUP($A41,F1__World_Data!$A$4:$DP$191,69,FALSE)","v":50.795999999999999},{"$f":"VLOOKUP($A41,F1__World_Data!$A$4:$DP$191,68,FALSE)","v":50.25},{"$f":"VLOOKUP($A41,F1__World_Data!$A$4:$DP$191,67,FALSE)","v":49.697000000000003},{"$f":"VLOOKUP($A41,F1__World_Data!$A$4:$DP$191,66,FALSE)","v":49.145000000000003},{"$f":"VLOOKUP($A41,F1__World_Data!$A$4:$DP$191,65,FALSE)","v":48.600999999999999},{"$f":"VLOOKUP($A41,F1__World_Data!$A$4:$DP$191,64,FALSE)","v":48.070999999999998},{"$f":"VLOOKUP($A41,F1__World_Data!$A$4:$DP$191,63,FALSE)","v":47.557000000000002},{"$f":"VLOOKUP($A41,F1__World_Data!$A$4:$DP$191,62,FALSE)","v":47.061}]
["Malaysia",{"$f":"VLOOKUP($A42,F1__World_Data!$A$4:$DP$191,60,FALSE)","v":31528.032999999999},{"$f":"VLOOKUP($A42,F1__World_Data!$A$4:$DP$191,59,FALSE)","v":31104.654999999999},{"$f":"VLOOKUP($A42,F1__World_Data!$A$4:$DP$191,58,FALSE)","v":30684.651999999998},{"$f":"VLOOKUP($A42,F1__World_Data!$A$4:$DP$191,57,FALSE)","v":30270.965},{"$f":"VLOOKUP($A42,F1__World_Data!$A$4:$DP$191,56,FALSE)","v":29866.606},{"$f":"VLOOKUP($A42,F1__World_Data!$A$4:$DP$191,55,FALSE)","v":29468.922999999999},{"$f":"VLOOKUP($A42,F1__World_Data!$A$4:$DP$191,54,FALSE)","v":29068.188999999998},{"$f":"VLOOKUP($A42,F1__World_Data!$A$4:$DP$191,53,FALSE)","v":28650.962},{"$f":"VLOOKUP($A42,F1__World_Data!$A$4:$DP$191,52,FALSE)","v":28208.027999999998},{"$f":"VLOOKUP($A42,F1__World_Data!$A$4:$DP$191,51,FALSE)","v":27735.038},{"$f":"VLOOKUP($A42,F1__World_Data!$A$4:$DP$191,50,FALSE)","v":27236.003000000001},{"$f":"VLOOKUP($A42,F1__World_Data!$A$4:$DP$191,49,FALSE)","v":26720.366999999998},{"$f":"VLOOKUP($A42,F1__World_Data!$A$4:$DP$191,48,FALSE)","v":26201.954000000002},{"$f":"VLOOKUP($A42,F1__World_Data!$A$4:$DP$191,47,FALSE)","v":25690.615000000002},{"$f":"VLOOKUP($A42,F1__World_Data!$A$4:$DP$191,46,FALSE)","v":25190.647000000001},{"$f":"VLOOKUP($A42,F1__World_Data!$A$4:$DP$191,45,FALSE)","v":24698.821},{"$f":"VLOOKUP($A42,F1__World_Data!$A$4:$DP$191,44,FALSE)","v":24208.391},{"$f":"VLOOKUP($A42,F1__World_Data!$A$4:$DP$191,43,FALSE)","v":23709.115000000002},{"$f":"VLOOKUP($A42,F1__World_Data!$A$4:$DP$191,42,FALSE)","v":23194.252},{"$f":"VLOOKUP($A42,F1__World_Data!$A$4:$DP$191,41,FALSE)","v":22661.293000000001},{"$f":"VLOOKUP($A42,F1__World_Data!$A$4:$DP$191,40,FALSE)","v":22114.647000000001},{"$f":"VLOOKUP($A42,F1__World_Data!$A$4:$DP$191,39,FALSE)","v":21562.79},{"$f":"VLOOKUP($A42,F1__World_Data!$A$4:$DP$191,38,FALSE)","v":21017.618999999999},{"$f":"VLOOKUP($A42,F1__World_Data!$A$4:$DP$191,37,FALSE)","v":20487.603999999999},{"$f":"VLOOKUP($A42,F1__World_Data!$A$4:$DP$191,36,FALSE)","v":19977.508000000002},{"$f":"VLOOKUP($A42,F1__World_Data!$A$4:$DP$191,35,FALSE)","v":19484.901000000002},{"$f":"VLOOKUP($A42,F1__World_Data!$A$4:$DP$191,34,FALSE)","v":19002.66},{"$f":"VLOOKUP($A42,F1__World_Data!$A$4:$DP$191,33,FALSE)","v":18519.940999999999},{"$f":"VLOOKUP($A42,F1__World_Data!$A$4:$DP$191,32,FALSE)","v":18029.824000000001},{"$f":"VLOOKUP($A42,F1__World_Data!$A$4:$DP$191,31,FALSE)","v":17528.960999999999},{"$f":"VLOOKUP($A42,F1__World_Data!$A$4:$DP$191,30,FALSE)","v":17022.47},{"$f":"VLOOKUP($A42,F1__World_Data!$A$4:$DP$191,29,FALSE)","v":16522.004000000001},{"$f":"VLOOKUP($A42,F1__World_Data!$A$4:$DP$191,28,FALSE)","v":16043.736000000001},{"$f":"VLOOKUP($A42,F1__World_Data!$A$4:$DP$191,27,FALSE)","v":15598.924000000001},{"$f":"VLOOKUP($A42,F1__World_Data!$A$4:$DP$191,26,FALSE)","v":15192.3},{"$f":"VLOOKUP($A42,F1__World_Data!$A$4:$DP$191,25,FALSE)","v":14819.43},{"$f":"VLOOKUP($A42,F1__World_Data!$A$4:$DP$191,24,FALSE)","v":14471.215},{"$f":"VLOOKUP($A42,F1__World_Data!$A$4:$DP$191,23,FALSE)","v":14134.06},{"$f":"VLOOKUP($A42,F1__World_Data!$A$4:$DP$191,22,FALSE)","v":13798.093999999999},{"$f":"VLOOKUP($A42,F1__World_Data!$A$4:$DP$191,21,FALSE)","v":13460.035},{"$f":"VLOOKUP($A42,F1__World_Data!$A$4:$DP$191,20,FALSE)","v":13122.833000000001},{"$f":"VLOOKUP($A42,F1__World_Data!$A$4:$DP$191,19,FALSE)","v":12790.313},{"$f":"VLOOKUP($A42,F1__World_Data!$A$4:$DP$191,18,FALSE)","v":12468.688},{"$f":"VLOOKUP($A42,F1__World_Data!$A$4:$DP$191,17,FALSE)","v":12162.189},{"$f":"VLOOKUP($A42,F1__World_Data!$A$4:$DP$191,16,FALSE)","v":11871.102000000001},{"$f":"VLOOKUP($A42,F1__World_Data!$A$4:$DP$191,15,FALSE)","v":11592.638000000001},{"$f":"VLOOKUP($A42,F1__World_Data!$A$4:$DP$191,14,FALSE)","v":11324.277},{"$f":"VLOOKUP($A42,F1__World_Data!$A$4:$DP$191,13,FALSE)","v":11062.433999999999},{"$f":"VLOOKUP($A42,F1__World_Data!$A$4:$DP$191,12,FALSE)","v":10804.130999999999},{"$f":"VLOOKUP($A42,F1__World_Data!$A$4:$DP$191,11,FALSE)","v":10549.395},{"$f":"VLOOKUP($A42,F1__World_Data!$A$4:$DP$191,10,FALSE)","v":10297.983},{"$f":"VLOOKUP($A42,F1__World_Data!$A$4:$DP$191,9,FALSE)","v":10046.321},{"$f":"VLOOKUP($A42,F1__World_Data!$A$4:$DP$191,8,FALSE)","v":9790.0830000000005},{"$f":"VLOOKUP($A42,F1__World_Data!$A$4:$DP$191,7,FALSE)","v":9526.5580000000009},{"$f":"VLOOKUP($A42,F1__World_Data!$A$4:$DP$191,6,FALSE)","v":9253.8269999999993},{"$f":"VLOOKUP($A42,F1__World_Data!$A$4:$DP$191,5,FALSE)","v":8973.7909999999993},{"$f":"VLOOKUP($A42,F1__World_Data!$A$4:$DP$191,4,FALSE)","v":8692.3369999999995},{"$f":"VLOOKUP($A42,F1__World_Data!$A$4:$DP$191,3,FALSE)","v":8417.8209999999999},{"$f":"VLOOKUP($A42,F1__World_Data!$A$4:$DP$191,2,FALSE)","v":8156.3419999999996},null,{"$f":"VLOOKUP($A42,F1__World_Data!$A$4:$DP$191,120,FALSE)","v":68.116},{"$f":"VLOOKUP($A42,F1__World_Data!$A$4:$DP$191,119,FALSE)","v":67.850999999999999},{"$f":"VLOOKUP($A42,F1__World_Data!$A$4:$DP$191,118,FALSE)","v":67.576999999999998},{"$f":"VLOOKUP($A42,F1__World_Data!$A$4:$DP$191,117,FALSE)","v":67.290999999999997},{"$f":"VLOOKUP($A42,F1__World_Data!$A$4:$DP$191,116,FALSE)","v":66.995000000000005},{"$f":"VLOOKUP($A42,F1__World_Data!$A$4:$DP$191,115,FALSE)","v":66.69},{"$f":"VLOOKUP($A42,F1__World_Data!$A$4:$DP$191,114,FALSE)","v":66.381},{"$f":"VLOOKUP($A42,F1__World_Data!$A$4:$DP$191,113,FALSE)","v":66.072000000000003},{"$f":"VLOOKUP($A42,F1__World_Data!$A$4:$DP$191,112,FALSE)","v":65.769000000000005},{"$f":"VLOOKUP($A42,F1__World_Data!$A$4:$DP$191,111,FALSE)","v":65.48},{"$f":"VLOOKUP($A42,F1__World_Data!$A$4:$DP$191,110,FALSE)","v":65.207999999999998},{"$f":"VLOOKUP($A42,F1__World_Data!$A$4:$DP$191,109,FALSE)","v":64.953000000000003},{"$f":"VLOOKUP($A42,F1__World_Data!$A$4:$DP$191,108,FALSE)","v":64.712000000000003},{"$f":"VLOOKUP($A42,F1__World_Data!$A$4:$DP$191,107,FALSE)","v":64.477999999999994},{"$f":"VLOOKUP($A42,F1__World_Data!$A$4:$DP$191,106,FALSE)","v":64.242000000000004},{"$f":"VLOOKUP($A42,F1__World_Data!$A$4:$DP$191,105,FALSE)","v":63.994999999999997},{"$f":"VLOOKUP($A42,F1__World_Data!$A$4:$DP$191,104,FALSE)","v":63.731000000000002},{"$f":"VLOOKUP($A42,F1__World_Data!$A$4:$DP$191,103,FALSE)","v":63.445999999999998},{"$f":"VLOOKUP($A42,F1__World_Data!$A$4:$DP$191,102,FALSE)","v":63.143999999999998},{"$f":"VLOOKUP($A42,F1__World_Data!$A$4:$DP$191,101,FALSE)","v":62.829000000000001},{"$f":"VLOOKUP($A42,F1__World_Data!$A$4:$DP$191,100,FALSE)","v":62.509},{"$f":"VLOOKUP($A42,F1__World_Data!$A$4:$DP$191,99,FALSE)","v":62.188000000000002},{"$f":"VLOOKUP($A42,F1__World_Data!$A$4:$DP$191,98,FALSE)","v":61.866},{"$f":"VLOOKUP($A42,F1__World_Data!$A$4:$DP$191,97,FALSE)","v":61.539000000000001},{"$f":"VLOOKUP($A42,F1__World_Data!$A$4:$DP$191,96,FALSE)","v":61.198},{"$f":"VLOOKUP($A42,F1__World_Data!$A$4:$DP$191,95,FALSE)","v":60.837000000000003},{"$f":"VLOOKUP($A42,F1__World_Data!$A$4:$DP$191,94,FALSE)","v":60.454999999999998},{"$f":"VLOOKUP($A42,F1__World_Data!$A$4:$DP$191,93,FALSE)","v":60.052999999999997},{"$f":"VLOOKUP($A42,F1__World_Data!$A$4:$DP$191,92,FALSE)","v":59.636000000000003},{"$f":"VLOOKUP($A42,F1__World_Data!$A$4:$DP$191,91,FALSE)","v":59.209000000000003},{"$f":"VLOOKUP($A42,F1__World_Data!$A$4:$DP$191,90,FALSE)","v":58.783000000000001},{"$f":"VLOOKUP($A42,F1__World_Data!$A$4:$DP$191,89,FALSE)","v":58.366},{"$f":"VLOOKUP($A42,F1__World_Data!$A$4:$DP$191,88,FALSE)","v":57.962000000000003},{"$f":"VLOOKUP($A42,F1__World_Data!$A$4:$DP$191,87,FALSE)","v":57.579000000000001},{"$f":"VLOOKUP($A42,F1__World_Data!$A$4:$DP$191,86,FALSE)","v":57.220999999999997},{"$f":"VLOOKUP($A42,F1__World_Data!$A$4:$DP$191,85,FALSE)","v":56.886000000000003},{"$f":"VLOOKUP($A42,F1__World_Data!$A$4:$DP$191,84,FALSE)","v":56.569000000000003},{"$f":"VLOOKUP($A42,F1__World_Data!$A$4:$DP$191,83,FALSE)","v":56.265999999999998},{"$f":"VLOOKUP($A42,F1__World_Data!$A$4:$DP$191,82,FALSE)","v":55.970999999999997},{"$f":"VLOOKUP($A42,F1__World_Data!$A$4:$DP$191,81,FALSE)","v":55.679000000000002},{"$f":"VLOOKUP($A42,F1__World_Data!$A$4:$DP$191,80,FALSE)","v":55.381999999999998},{"$f":"VLOOKUP($A42,F1__World_Data!$A$4:$DP$191,79,FALSE)","v":55.073999999999998},{"$f":"VLOOKUP($A42,F1__World_Data!$A$4:$DP$191,78,FALSE)","v":54.747999999999998},{"$f":"VLOOKUP($A42,F1__World_Data!$A$4:$DP$191,77,FALSE)","v":54.399000000000001},{"$f":"VLOOKUP($A42,F1__World_Data!$A$4:$DP$191,76,FALSE)","v":54.027000000000001},{"$f":"VLOOKUP($A42,F1__World_Data!$A$4:$DP$191,75,FALSE)","v":53.633000000000003},{"$f":"VLOOKUP($A42,F1__World_Data!$A$4:$DP$191,74,FALSE)","v":53.218000000000004},{"$f":"VLOOKUP($A42,F1__World_Data!$A$4:$DP$191,73,FALSE)","v":52.781999999999996},{"$f":"VLOOKUP($A42,F1__World_Data!$A$4:$DP$191,72,FALSE)","v":52.323},{"$f":"VLOOKUP($A42,F1__World_Data!$A$4:$DP$191,71,FALSE)","v":51.837000000000003},{"$f":"VLOOKUP($A42,F1__World_Data!$A$4:$DP$191,70,FALSE)","v":51.326999999999998},{"$f":"VLOOKUP($A42,F1__World_Data!$A$4:$DP$191,69,FALSE)","v":50.795999999999999},{"$f":"VLOOKUP($A42,F1__World_Data!$A$4:$DP$191,68,FALSE)","v":50.25},{"$f":"VLOOKUP($A42,F1__World_Data!$A$4:$DP$191,67,FALSE)","v":49.697000000000003},{"$f":"VLOOKUP($A42,F1__World_Data!$A$4:$DP$191,66,FALSE)","v":49.145000000000003},{"$f":"VLOOKUP($A42,F1__World_Data!$A$4:$DP$191,65,FALSE)","v":48.600999999999999},{"$f":"VLOOKUP($A42,F1__World_Data!$A$4:$DP$191,64,FALSE)","v":48.070999999999998},{"$f":"VLOOKUP($A42,F1__World_Data!$A$4:$DP$191,63,FALSE)","v":47.557000000000002},{"$f":"VLOOKUP($A42,F1__World_Data!$A$4:$DP$191,62,FALSE)","v":47.061}]
["Angola",{"$f":"VLOOKUP($A43,F1__World_Data!$A$4:$DP$191,60,FALSE)","v":30809.787},{"$f":"VLOOKUP($A43,F1__World_Data!$A$4:$DP$191,59,FALSE)","v":29816.769},{"$f":"VLOOKUP($A43,F1__World_Data!$A$4:$DP$191,58,FALSE)","v":28842.482},{"$f":"VLOOKUP($A43,F1__World_Data!$A$4:$DP$191,57,FALSE)","v":27884.38},{"$f":"VLOOKUP($A43,F1__World_Data!$A$4:$DP$191,56,FALSE)","v":26941.773000000001},{"$f":"VLOOKUP($A43,F1__World_Data!$A$4:$DP$191,55,FALSE)","v":26015.786},{"$f":"VLOOKUP($A43,F1__World_Data!$A$4:$DP$191,54,FALSE)","v":25107.924999999999},{"$f":"VLOOKUP($A43,F1__World_Data!$A$4:$DP$191,53,FALSE)","v":24220.66},{"$f":"VLOOKUP($A43,F1__World_Data!$A$4:$DP$191,52,FALSE)","v":23356.246999999999},{"$f":"VLOOKUP($A43,F1__World_Data!$A$4:$DP$191,51,FALSE)","v":22514.275000000001},{"$f":"VLOOKUP($A43,F1__World_Data!$A$4:$DP$191,50,FALSE)","v":21695.635999999999},{"$f":"VLOOKUP($A43,F1__World_Data!$A$4:$DP$191,49,FALSE)","v":20905.36},{"$f":"VLOOKUP($A43,F1__World_Data!$A$4:$DP$191,48,FALSE)","v":20149.904999999999},{"$f":"VLOOKUP($A43,F1__World_Data!$A$4:$DP$191,47,FALSE)","v":19433.603999999999},{"$f":"VLOOKUP($A43,F1__World_Data!$A$4:$DP$191,46,FALSE)","v":18758.137999999999},{"$f":"VLOOKUP($A43,F1__World_Data!$A$4:$DP$191,45,FALSE)","v":18121.476999999999},{"$f":"VLOOKUP($A43,F1__World_Data!$A$4:$DP$191,44,FALSE)","v":17519.418000000001},{"$f":"VLOOKUP($A43,F1__World_Data!$A$4:$DP$191,43,FALSE)","v":16945.753000000001},{"$f":"VLOOKUP($A43,F1__World_Data!$A$4:$DP$191,42,FALSE)","v":16395.476999999999},{"$f":"VLOOKUP($A43,F1__World_Data!$A$4:$DP$191,41,FALSE)","v":15866.870999999999},{"$f":"VLOOKUP($A43,F1__World_Data!$A$4:$DP$191,40,FALSE)","v":15359.6},{"$f":"VLOOKUP($A43,F1__World_Data!$A$4:$DP$191,39,FALSE)","v":14871.572},{"$f":"VLOOKUP($A43,F1__World_Data!$A$4:$DP$191,38,FALSE)","v":14400.722},{"$f":"VLOOKUP($A43,F1__World_Data!$A$4:$DP$191,37,FALSE)","v":13945.205},{"$f":"VLOOKUP($A43,F1__World_Data!$A$4:$DP$191,36,FALSE)","v":13503.753000000001},{"$f":"VLOOKUP($A43,F1__World_Data!$A$4:$DP$191,35,FALSE)","v":13075.044},{"$f":"VLOOKUP($A43,F1__World_Data!$A$4:$DP$191,34,FALSE)","v":12657.361000000001},{"$f":"VLOOKUP($A43,F1__World_Data!$A$4:$DP$191,33,FALSE)","v":12248.901},{"$f":"VLOOKUP($A43,F1__World_Data!$A$4:$DP$191,32,FALSE)","v":11848.385},{"$f":"VLOOKUP($A43,F1__World_Data!$A$4:$DP$191,31,FALSE)","v":11454.784},{"$f":"VLOOKUP($A43,F1__World_Data!$A$4:$DP$191,30,FALSE)","v":11068.050999999999},{"$f":"VLOOKUP($A43,F1__World_Data!$A$4:$DP$191,29,FALSE)","v":10689.246999999999},{"$f":"VLOOKUP($A43,F1__World_Data!$A$4:$DP$191,28,FALSE)","v":10320.116},{"$f":"VLOOKUP($A43,F1__World_Data!$A$4:$DP$191,27,FALSE)","v":9961.9930000000004},{"$f":"VLOOKUP($A43,F1__World_Data!$A$4:$DP$191,26,FALSE)","v":9614.7559999999994},{"$f":"VLOOKUP($A43,F1__World_Data!$A$4:$DP$191,25,FALSE)","v":9278.1039999999994},{"$f":"VLOOKUP($A43,F1__World_Data!$A$4:$DP$191,24,FALSE)","v":8952.9709999999995},{"$f":"VLOOKUP($A43,F1__World_Data!$A$4:$DP$191,23,FALSE)","v":8640.4779999999992},{"$f":"VLOOKUP($A43,F1__World_Data!$A$4:$DP$191,22,FALSE)","v":8341.2900000000009},{"$f":"VLOOKUP($A43,F1__World_Data!$A$4:$DP$191,21,FALSE)","v":8058.1120000000001},{"$f":"VLOOKUP($A43,F1__World_Data!$A$4:$DP$191,20,FALSE)","v":7790.7740000000003},{"$f":"VLOOKUP($A43,F1__World_Data!$A$4:$DP$191,19,FALSE)","v":7533.8140000000003},{"$f":"VLOOKUP($A43,F1__World_Data!$A$4:$DP$191,18,FALSE)","v":7279.63},{"$f":"VLOOKUP($A43,F1__World_Data!$A$4:$DP$191,17,FALSE)","v":7023.9939999999997},{"$f":"VLOOKUP($A43,F1__World_Data!$A$4:$DP$191,16,FALSE)","v":6761.6229999999996},{"$f":"VLOOKUP($A43,F1__World_Data!$A$4:$DP$191,15,FALSE)","v":6497.2830000000004},{"$f":"VLOOKUP($A43,F1__World_Data!$A$4:$DP$191,14,FALSE)","v":6248.9650000000001},{"$f":"VLOOKUP($A43,F1__World_Data!$A$4:$DP$191,13,FALSE)","v":6041.2389999999996},{"$f":"VLOOKUP($A43,F1__World_Data!$A$4:$DP$191,12,FALSE)","v":5890.36},{"$f":"VLOOKUP($A43,F1__World_Data!$A$4:$DP$191,11,FALSE)","v":5803.6769999999997},{"$f":"VLOOKUP($A43,F1__World_Data!$A$4:$DP$191,10,FALSE)","v":5771.973},{"$f":"VLOOKUP($A43,F1__World_Data!$A$4:$DP$191,9,FALSE)","v":5774.44},{"$f":"VLOOKUP($A43,F1__World_Data!$A$4:$DP$191,8,FALSE)","v":5781.3050000000003},{"$f":"VLOOKUP($A43,F1__World_Data!$A$4:$DP$191,7,FALSE)","v":5770.5730000000003},{"$f":"VLOOKUP($A43,F1__World_Data!$A$4:$DP$191,6,FALSE)","v":5734.9949999999999},{"$f":"VLOOKUP($A43,F1__World_Data!$A$4:$DP$191,5,FALSE)","v":5679.4089999999997},{"$f":"VLOOKUP($A43,F1__World_Data!$A$4:$DP$191,4,FALSE)","v":5608.4989999999998},{"$f":"VLOOKUP($A43,F1__World_Data!$A$4:$DP$191,3,FALSE)","v":5531.451},{"$f":"VLOOKUP($A43,F1__World_Data!$A$4:$DP$191,2,FALSE)","v":5454.9380000000001},null,{"$f":"VLOOKUP($A43,F1__World_Data!$A$4:$DP$191,120,FALSE)","v":0},{"$f":"VLOOKUP($A43,F1__World_Data!$A$4:$DP$191,119,FALSE)","v":0},{"$f":"VLOOKUP($A43,F1__World_Data!$A$4:$DP$191,118,FALSE)","v":0},{"$f":"VLOOKUP($A43,F1__World_Data!$A$4:$DP$191,117,FALSE)","v":0},{"$f":"VLOOKUP($A43,F1__World_Data!$A$4:$DP$191,116,FALSE)","v":0},{"$f":"VLOOKUP($A43,F1__World_Data!$A$4:$DP$191,115,FALSE)","v":0},{"$f":"VLOOKUP($A43,F1__World_Data!$A$4:$DP$191,114,FALSE)","v":0},{"$f":"VLOOKUP($A43,F1__World_Data!$A$4:$DP$191,113,FALSE)","v":0},{"$f":"VLOOKUP($A43,F1__World_Data!$A$4:$DP$191,112,FALSE)","v":0},{"$f":"VLOOKUP($A43,F1__World_Data!$A$4:$DP$191,111,FALSE)","v":0},{"$f":"VLOOKUP($A43,F1__World_Data!$A$4:$DP$191,110,FALSE)","v":0},{"$f":"VLOOKUP($A43,F1__World_Data!$A$4:$DP$191,109,FALSE)","v":0},{"$f":"VLOOKUP($A43,F1__World_Data!$A$4:$DP$191,108,FALSE)","v":0},{"$f":"VLOOKUP($A43,F1__World_Data!$A$4:$DP$191,107,FALSE)","v":0},{"$f":"VLOOKUP($A43,F1__World_Data!$A$4:$DP$191,106,FALSE)","v":0},{"$f":"VLOOKUP($A43,F1__World_Data!$A$4:$DP$191,105,FALSE)","v":0},{"$f":"VLOOKUP($A43,F1__World_Data!$A$4:$DP$191,104,FALSE)","v":0},{"$f":"VLOOKUP($A43,F1__World_Data!$A$4:$DP$191,103,FALSE)","v":0},{"$f":"VLOOKUP($A43,F1__World_Data!$A$4:$DP$191,102,FALSE)","v":0},{"$f":"VLOOKUP($A43,F1__World_Data!$A$4:$DP$191,101,FALSE)","v":0},{"$f":"VLOOKUP($A43,F1__World_Data!$A$4:$DP$191,100,FALSE)","v":0},{"$f":"VLOOKUP($A43,F1__World_Data!$A$4:$DP$191,99,FALSE)","v":0},{"$f":"VLOOKUP($A43,F1__World_Data!$A$4:$DP$191,98,FALSE)","v":0},{"$f":"VLOOKUP($A43,F1__World_Data!$A$4:$DP$191,97,FALSE)","v":0},{"$f":"VLOOKUP($A43,F1__World_Data!$A$4:$DP$191,96,FALSE)","v":0},{"$f":"VLOOKUP($A43,F1__World_Data!$A$4:$DP$191,95,FALSE)","v":0},{"$f":"VLOOKUP($A43,F1__World_Data!$A$4:$DP$191,94,FALSE)","v":0},{"$f":"VLOOKUP($A43,F1__World_Data!$A$4:$DP$191,93,FALSE)","v":0},{"$f":"VLOOKUP($A43,F1__World_Data!$A$4:$DP$191,92,FALSE)","v":0},{"$f":"VLOOKUP($A43,F1__World_Data!$A$4:$DP$191,91,FALSE)","v":0},{"$f":"VLOOKUP($A43,F1__World_Data!$A$4:$DP$191,90,FALSE)","v":0},{"$f":"VLOOKUP($A43,F1__World_Data!$A$4:$DP$191,89,FALSE)","v":0},{"$f":"VLOOKUP($A43,F1__World_Data!$A$4:$DP$191,88,FALSE)","v":0},{"$f":"VLOOKUP($A43,F1__World_Data!$A$4:$DP$191,87,FALSE)","v":0},{"$f":"VLOOKUP($A43,F1__World_Data!$A$4:$DP$191,86,FALSE)","v":0},{"$f":"VLOOKUP($A43,F1__World_Data!$A$4:$DP$191,85,FALSE)","v":0},{"$f":"VLOOKUP($A43,F1__World_Data!$A$4:$DP$191,84,FALSE)","v":0},{"$f":"VLOOKUP($A43,F1__World_Data!$A$4:$DP$191,83,FALSE)","v":0},{"$f":"VLOOKUP($A43,F1__World_Data!$A$4:$DP$191,82,FALSE)","v":0},{"$f":"VLOOKUP($A43,F1__World_Data!$A$4:$DP$191,81,FALSE)","v":0},{"$f":"VLOOKUP($A43,F1__World_Data!$A$4:$DP$191,80,FALSE)","v":0},{"$f":"VLOOKUP($A43,F1__World_Data!$A$4:$DP$191,79,FALSE)","v":0},{"$f":"VLOOKUP($A43,F1__World_Data!$A$4:$DP$191,78,FALSE)","v":0},{"$f":"VLOOKUP($A43,F1__World_Data!$A$4:$DP$191,77,FALSE)","v":0},{"$f":"VLOOKUP($A43,F1__World_Data!$A$4:$DP$191,76,FALSE)","v":0},{"$f":"VLOOKUP($A43,F1__World_Data!$A$4:$DP$191,75,FALSE)","v":0},{"$f":"VLOOKUP($A43,F1__World_Data!$A$4:$DP$191,74,FALSE)","v":0},{"$f":"VLOOKUP($A43,F1__World_Data!$A$4:$DP$191,73,FALSE)","v":0},{"$f":"VLOOKUP($A43,F1__World_Data!$A$4:$DP$191,72,FALSE)","v":0},{"$f":"VLOOKUP($A43,F1__World_Data!$A$4:$DP$191,71,FALSE)","v":0},{"$f":"VLOOKUP($A43,F1__World_Data!$A$4:$DP$191,70,FALSE)","v":0},{"$f":"VLOOKUP($A43,F1__World_Data!$A$4:$DP$191,69,FALSE)","v":0},{"$f":"VLOOKUP($A43,F1__World_Data!$A$4:$DP$191,68,FALSE)","v":0},{"$f":"VLOOKUP($A43,F1__World_Data!$A$4:$DP$191,67,FALSE)","v":0},{"$f":"VLOOKUP($A43,F1__World_Data!$A$4:$DP$191,66,FALSE)","v":0},{"$f":"VLOOKUP($A43,F1__World_Data!$A$4:$DP$191,65,FALSE)","v":0},{"$f":"VLOOKUP($A43,F1__World_Data!$A$4:$DP$191,64,FALSE)","v":0},{"$f":"VLOOKUP($A43,F1__World_Data!$A$4:$DP$191,63,FALSE)","v":0},{"$f":"VLOOKUP($A43,F1__World_Data!$A$4:$DP$191,62,FALSE)","v":0}]
["Ghana",{"$f":"VLOOKUP($A44,F1__World_Data!$A$4:$DP$191,60,FALSE)","v":29767.108},{"$f":"VLOOKUP($A44,F1__World_Data!$A$4:$DP$191,59,FALSE)","v":29121.464},{"$f":"VLOOKUP($A44,F1__World_Data!$A$4:$DP$191,58,FALSE)","v":28481.947},{"$f":"VLOOKUP($A44,F1__World_Data!$A$4:$DP$191,57,FALSE)","v":27849.203000000001},{"$f":"VLOOKUP($A44,F1__World_Data!$A$4:$DP$191,56,FALSE)","v":27224.48},{"$f":"VLOOKUP($A44,F1__World_Data!$A$4:$DP$191,55,FALSE)","v":26607.641},{"$f":"VLOOKUP($A44,F1__World_Data!$A$4:$DP$191,54,FALSE)","v":25996.454000000002},{"$f":"VLOOKUP($A44,F1__World_Data!$A$4:$DP$191,53,FALSE)","v":25387.713},{"$f":"VLOOKUP($A44,F1__World_Data!$A$4:$DP$191,52,FALSE)","v":24779.614000000001},{"$f":"VLOOKUP($A44,F1__World_Data!$A$4:$DP$191,51,FALSE)","v":24170.942999999999},{"$f":"VLOOKUP($A44,F1__World_Data!$A$4:$DP$191,50,FALSE)","v":23563.831999999999},{"$f":"VLOOKUP($A44,F1__World_Data!$A$4:$DP$191,49,FALSE)","v":22963.946},{"$f":"VLOOKUP($A44,F1__World_Data!$A$4:$DP$191,48,FALSE)","v":22379.057000000001},{"$f":"VLOOKUP($A44,F1__World_Data!$A$4:$DP$191,47,FALSE)","v":21814.648000000001},{"$f":"VLOOKUP($A44,F1__World_Data!$A$4:$DP$191,46,FALSE)","v":21272.328000000001},{"$f":"VLOOKUP($A44,F1__World_Data!$A$4:$DP$191,45,FALSE)","v":20750.308000000001},{"$f":"VLOOKUP($A44,F1__World_Data!$A$4:$DP$191,44,FALSE)","v":20246.376},{"$f":"VLOOKUP($A44,F1__World_Data!$A$4:$DP$191,43,FALSE)","v":19756.929},{"$f":"VLOOKUP($A44,F1__World_Data!$A$4:$DP$191,42,FALSE)","v":19278.849999999999},{"$f":"VLOOKUP($A44,F1__World_Data!$A$4:$DP$191,41,FALSE)","v":18812.368999999999},{"$f":"VLOOKUP($A44,F1__World_Data!$A$4:$DP$191,40,FALSE)","v":18357.159},{"$f":"VLOOKUP($A44,F1__World_Data!$A$4:$DP$191,39,FALSE)","v":17908.976999999999},{"$f":"VLOOKUP($A44,F1__World_Data!$A$4:$DP$191,38,FALSE)","v":17462.504000000001},{"$f":"VLOOKUP($A44,F1__World_Data!$A$4:$DP$191,37,FALSE)","v":17014.058000000001},{"$f":"VLOOKUP($A44,F1__World_Data!$A$4:$DP$191,36,FALSE)","v":16561.677},{"$f":"VLOOKUP($A44,F1__World_Data!$A$4:$DP$191,35,FALSE)","v":16106.755999999999},{"$f":"VLOOKUP($A44,F1__World_Data!$A$4:$DP$191,34,FALSE)","v":15653.344999999999},{"$f":"VLOOKUP($A44,F1__World_Data!$A$4:$DP$191,33,FALSE)","v":15207.36},{"$f":"VLOOKUP($A44,F1__World_Data!$A$4:$DP$191,32,FALSE)","v":14773.273999999999},{"$f":"VLOOKUP($A44,F1__World_Data!$A$4:$DP$191,31,FALSE)","v":14353.409},{"$f":"VLOOKUP($A44,F1__World_Data!$A$4:$DP$191,30,FALSE)","v":13947.047},{"$f":"VLOOKUP($A44,F1__World_Data!$A$4:$DP$191,29,FALSE)","v":13552.021000000001},{"$f":"VLOOKUP($A44,F1__World_Data!$A$4:$DP$191,28,FALSE)","v":13164.839},{"$f":"VLOOKUP($A44,F1__World_Data!$A$4:$DP$191,27,FALSE)","v":12783.617},{"$f":"VLOOKUP($A44,F1__World_Data!$A$4:$DP$191,26,FALSE)","v":12405.659},{"$f":"VLOOKUP($A44,F1__World_Data!$A$4:$DP$191,25,FALSE)","v":12033.558999999999},{"$f":"VLOOKUP($A44,F1__World_Data!$A$4:$DP$191,24,FALSE)","v":11676.828},{"$f":"VLOOKUP($A44,F1__World_Data!$A$4:$DP$191,23,FALSE)","v":11348.287},{"$f":"VLOOKUP($A44,F1__World_Data!$A$4:$DP$191,22,FALSE)","v":11056.111999999999},{"$f":"VLOOKUP($A44,F1__World_Data!$A$4:$DP$191,21,FALSE)","v":10805.317999999999},{"$f":"VLOOKUP($A44,F1__World_Data!$A$4:$DP$191,20,FALSE)","v":10590.264999999999},{"$f":"VLOOKUP($A44,F1__World_Data!$A$4:$DP$191,19,FALSE)","v":10395.453},{"$f":"VLOOKUP($A44,F1__World_Data!$A$4:$DP$191,18,FALSE)","v":10199.164000000001},{"$f":"VLOOKUP($A44,F1__World_Data!$A$4:$DP$191,17,FALSE)","v":9985.9459999999999},{"$f":"VLOOKUP($A44,F1__World_Data!$A$4:$DP$191,16,FALSE)","v":9749.098},{"$f":"VLOOKUP($A44,F1__World_Data!$A$4:$DP$191,15,FALSE)","v":9493.5519999999997},{"$f":"VLOOKUP($A44,F1__World_Data!$A$4:$DP$191,14,FALSE)","v":9229.64},{"$f":"VLOOKUP($A44,F1__World_Data!$A$4:$DP$191,13,FALSE)","v":8973.2469999999994},{"$f":"VLOOKUP($A44,F1__World_Data!$A$4:$DP$191,12,FALSE)","v":8735.4930000000004},{"$f":"VLOOKUP($A44,F1__World_Data!$A$4:$DP$191,11,FALSE)","v":8520.018},{"$f":"VLOOKUP($A44,F1__World_Data!$A$4:$DP$191,10,FALSE)","v":8321.7729999999992},{"$f":"VLOOKUP($A44,F1__World_Data!$A$4:$DP$191,9,FALSE)","v":8132.8029999999999},{"$f":"VLOOKUP($A44,F1__World_Data!$A$4:$DP$191,8,FALSE)","v":7941.4179999999997},{"$f":"VLOOKUP($A44,F1__World_Data!$A$4:$DP$191,7,FALSE)","v":7739.4629999999997},{"$f":"VLOOKUP($A44,F1__World_Data!$A$4:$DP$191,6,FALSE)","v":7524.47},{"$f":"VLOOKUP($A44,F1__World_Data!$A$4:$DP$191,5,FALSE)","v":7300.1239999999998},{"$f":"VLOOKUP($A44,F1__World_Data!$A$4:$DP$191,4,FALSE)","v":7071.9660000000003},{"$f":"VLOOKUP($A44,F1__World_Data!$A$4:$DP$191,3,FALSE)","v":6848.2910000000002},{"$f":"VLOOKUP($A44,F1__World_Data!$A$4:$DP$191,2,FALSE)","v":6635.2290000000003},null,{"$f":"VLOOKUP($A44,F1__World_Data!$A$4:$DP$191,120,FALSE)","v":82.548780487804891},{"$f":"VLOOKUP($A44,F1__World_Data!$A$4:$DP$191,119,FALSE)","v":82.29756097560977},{"$f":"VLOOKUP($A44,F1__World_Data!$A$4:$DP$191,118,FALSE)","v":82.046341463414635},{"$f":"VLOOKUP($A44,F1__World_Data!$A$4:$DP$191,117,FALSE)","v":81.795121951219528},{"$f":"VLOOKUP($A44,F1__World_Data!$A$4:$DP$191,116,FALSE)","v":81.592682926829269},{"$f":"VLOOKUP($A44,F1__World_Data!$A$4:$DP$191,115,FALSE)","v":81.341463414634148},{"$f":"VLOOKUP($A44,F1__World_Data!$A$4:$DP$191,114,FALSE)","v":81.090243902439042},{"$f":"VLOOKUP($A44,F1__World_Data!$A$4:$DP$191,113,FALSE)","v":80.839024390243921},{"$f":"VLOOKUP($A44,F1__World_Data!$A$4:$DP$191,112,FALSE)","v":80.587804878048786},{"$f":"VLOOKUP($A44,F1__World_Data!$A$4:$DP$191,111,FALSE)","v":80.387804878048797},{"$f":"VLOOKUP($A44,F1__World_Data!$A$4:$DP$191,110,FALSE)","v":80.139024390243918},{"$f":"VLOOKUP($A44,F1__World_Data!$A$4:$DP$191,109,FALSE)","v":79.890243902439039},{"$f":"VLOOKUP($A44,F1__World_Data!$A$4:$DP$191,108,FALSE)","v":79.690243902439036},{"$f":"VLOOKUP($A44,F1__World_Data!$A$4:$DP$191,107,FALSE)","v":79.441463414634157},{"$f":"VLOOKUP($A44,F1__World_Data!$A$4:$DP$191,106,FALSE)","v":79.190243902439036},{"$f":"VLOOKUP($A44,F1__World_Data!$A$4:$DP$191,105,FALSE)","v":78.990243902439033},{"$f":"VLOOKUP($A44,F1__World_Data!$A$4:$DP$191,104,FALSE)","v":78.787804878048775},{"$f":"VLOOKUP($A44,F1__World_Data!$A$4:$DP$191,103,FALSE)","v":78.636585365853662},{"$f":"VLOOKUP($A44,F1__World_Data!$A$4:$DP$191,102,FALSE)","v":78.434146341463432},{"$f":"VLOOKUP($A44,F1__World_Data!$A$4:$DP$191,101,FALSE)","v":78.280487804878064},{"$f":"VLOOKUP($A44,F1__World_Data!$A$4:$DP$191,100,FALSE)","v":78.026829268292687},{"$f":"VLOOKUP($A44,F1__World_Data!$A$4:$DP$191,99,FALSE)","v":77.824390243902457},{"$f":"VLOOKUP($A44,F1__World_Data!$A$4:$DP$191,98,FALSE)","v":77.57073170731708},{"$f":"VLOOKUP($A44,F1__World_Data!$A$4:$DP$191,97,FALSE)","v":77.368292682926835},{"$f":"VLOOKUP($A44,F1__World_Data!$A$4:$DP$191,96,FALSE)","v":77.065853658536597},{"$f":"VLOOKUP($A44,F1__World_Data!$A$4:$DP$191,95,FALSE)","v":76.81463414634149},{"$f":"VLOOKUP($A44,F1__World_Data!$A$4:$DP$191,94,FALSE)","v":76.614634146341473},{"$f":"VLOOKUP($A44,F1__World_Data!$A$4:$DP$191,93,FALSE)","v":76.41463414634147},{"$f":"VLOOKUP($A44,F1__World_Data!$A$4:$DP$191,92,FALSE)","v":76.114634146341487},{"$f":"VLOOKUP($A44,F1__World_Data!$A$4:$DP$191,91,FALSE)","v":75.91463414634147},{"$f":"VLOOKUP($A44,F1__World_Data!$A$4:$DP$191,90,FALSE)","v":75.714634146341467},{"$f":"VLOOKUP($A44,F1__World_Data!$A$4:$DP$191,89,FALSE)","v":75.465853658536588},{"$f":"VLOOKUP($A44,F1__World_Data!$A$4:$DP$191,88,FALSE)","v":75.214634146341467},{"$f":"VLOOKUP($A44,F1__World_Data!$A$4:$DP$191,87,FALSE)","v":0},{"$f":"VLOOKUP($A44,F1__World_Data!$A$4:$DP$191,86,FALSE)","v":0},{"$f":"VLOOKUP($A44,F1__World_Data!$A$4:$DP$191,85,FALSE)","v":0},{"$f":"VLOOKUP($A44,F1__World_Data!$A$4:$DP$191,84,FALSE)","v":0},{"$f":"VLOOKUP($A44,F1__World_Data!$A$4:$DP$191,83,FALSE)","v":0},{"$f":"VLOOKUP($A44,F1__World_Data!$A$4:$DP$191,82,FALSE)","v":0},{"$f":"VLOOKUP($A44,F1__World_Data!$A$4:$DP$191,81,FALSE)","v":0},{"$f":"VLOOKUP($A44,F1__World_Data!$A$4:$DP$191,80,FALSE)","v":75.98536585365855},{"$f":"VLOOKUP($A44,F1__World_Data!$A$4:$DP$191,79,FALSE)","v":0},{"$f":"VLOOKUP($A44,F1__World_Data!$A$4:$DP$191,78,FALSE)","v":0},{"$f":"VLOOKUP($A44,F1__World_Data!$A$4:$DP$191,77,FALSE)","v":0},{"$f":"VLOOKUP($A44,F1__World_Data!$A$4:$DP$191,76,FALSE)","v":0},{"$f":"VLOOKUP($A44,F1__World_Data!$A$4:$DP$191,75,FALSE)","v":74.497560975609773},{"$f":"VLOOKUP($A44,F1__World_Data!$A$4:$DP$191,74,FALSE)","v":0},{"$f":"VLOOKUP($A44,F1__World_Data!$A$4:$DP$191,73,FALSE)","v":0},{"$f":"VLOOKUP($A44,F1__World_Data!$A$4:$DP$191,72,FALSE)","v":0},{"$f":"VLOOKUP($A44,F1__World_Data!$A$4:$DP$191,71,FALSE)","v":0},{"$f":"VLOOKUP($A44,F1__World_Data!$A$4:$DP$191,70,FALSE)","v":0},{"$f":"VLOOKUP($A44,F1__World_Data!$A$4:$DP$191,69,FALSE)","v":0},{"$f":"VLOOKUP($A44,F1__World_Data!$A$4:$DP$191,68,FALSE)","v":0},{"$f":"VLOOKUP($A44,F1__World_Data!$A$4:$DP$191,67,FALSE)","v":0},{"$f":"VLOOKUP($A44,F1__World_Data!$A$4:$DP$191,66,FALSE)","v":0},{"$f":"VLOOKUP($A44,F1__World_Data!$A$4:$DP$191,65,FALSE)","v":0},{"$f":"VLOOKUP($A44,F1__World_Data!$A$4:$DP$191,64,FALSE)","v":0},{"$f":"VLOOKUP($A44,F1__World_Data!$A$4:$DP$191,63,FALSE)","v":0},{"$f":"VLOOKUP($A44,F1__World_Data!$A$4:$DP$191,62,FALSE)","v":0}]
["Mozambique",{"$f":"VLOOKUP($A45,F1__World_Data!$A$4:$DP$191,60,FALSE)","v":29496.008999999998},{"$f":"VLOOKUP($A45,F1__World_Data!$A$4:$DP$191,59,FALSE)","v":28649.007000000001},{"$f":"VLOOKUP($A45,F1__World_Data!$A$4:$DP$191,58,FALSE)","v":27829.93},{"$f":"VLOOKUP($A45,F1__World_Data!$A$4:$DP$191,57,FALSE)","v":27042.001},{"$f":"VLOOKUP($A45,F1__World_Data!$A$4:$DP$191,56,FALSE)","v":26286.191999999999},{"$f":"VLOOKUP($A45,F1__World_Data!$A$4:$DP$191,55,FALSE)","v":25560.752},{"$f":"VLOOKUP($A45,F1__World_Data!$A$4:$DP$191,54,FALSE)","v":24862.672999999999},{"$f":"VLOOKUP($A45,F1__World_Data!$A$4:$DP$191,53,FALSE)","v":24187.5},{"$f":"VLOOKUP($A45,F1__World_Data!$A$4:$DP$191,52,FALSE)","v":23531.566999999999},{"$f":"VLOOKUP($A45,F1__World_Data!$A$4:$DP$191,51,FALSE)","v":22894.718000000001},{"$f":"VLOOKUP($A45,F1__World_Data!$A$4:$DP$191,50,FALSE)","v":22276.596000000001},{"$f":"VLOOKUP($A45,F1__World_Data!$A$4:$DP$191,49,FALSE)","v":21673.319},{"$f":"VLOOKUP($A45,F1__World_Data!$A$4:$DP$191,48,FALSE)","v":21080.108},{"$f":"VLOOKUP($A45,F1__World_Data!$A$4:$DP$191,47,FALSE)","v":20493.927},{"$f":"VLOOKUP($A45,F1__World_Data!$A$4:$DP$191,46,FALSE)","v":19910.548999999999},{"$f":"VLOOKUP($A45,F1__World_Data!$A$4:$DP$191,45,FALSE)","v":19331.097000000002},{"$f":"VLOOKUP($A45,F1__World_Data!$A$4:$DP$191,44,FALSE)","v":18764.147000000001},{"$f":"VLOOKUP($A45,F1__World_Data!$A$4:$DP$191,43,FALSE)","v":18221.883999999998},{"$f":"VLOOKUP($A45,F1__World_Data!$A$4:$DP$191,42,FALSE)","v":17711.924999999999},{"$f":"VLOOKUP($A45,F1__World_Data!$A$4:$DP$191,41,FALSE)","v":17244.175999999999},{"$f":"VLOOKUP($A45,F1__World_Data!$A$4:$DP$191,40,FALSE)","v":16813.946},{"$f":"VLOOKUP($A45,F1__World_Data!$A$4:$DP$191,39,FALSE)","v":16397.174999999999},{"$f":"VLOOKUP($A45,F1__World_Data!$A$4:$DP$191,38,FALSE)","v":15960.445},{"$f":"VLOOKUP($A45,F1__World_Data!$A$4:$DP$191,37,FALSE)","v":15483.277},{"$f":"VLOOKUP($A45,F1__World_Data!$A$4:$DP$191,36,FALSE)","v":14948.05},{"$f":"VLOOKUP($A45,F1__World_Data!$A$4:$DP$191,35,FALSE)","v":14370.95},{"$f":"VLOOKUP($A45,F1__World_Data!$A$4:$DP$191,34,FALSE)","v":13805.999},{"$f":"VLOOKUP($A45,F1__World_Data!$A$4:$DP$191,33,FALSE)","v":13328.029},{"$f":"VLOOKUP($A45,F1__World_Data!$A$4:$DP$191,32,FALSE)","v":12987.291999999999},{"$f":"VLOOKUP($A45,F1__World_Data!$A$4:$DP$191,31,FALSE)","v":12805.95},{"$f":"VLOOKUP($A45,F1__World_Data!$A$4:$DP$191,30,FALSE)","v":12758.003000000001},{"$f":"VLOOKUP($A45,F1__World_Data!$A$4:$DP$191,29,FALSE)","v":12786.352999999999},{"$f":"VLOOKUP($A45,F1__World_Data!$A$4:$DP$191,28,FALSE)","v":12808.566000000001},{"$f":"VLOOKUP($A45,F1__World_Data!$A$4:$DP$191,27,FALSE)","v":12764.385},{"$f":"VLOOKUP($A45,F1__World_Data!$A$4:$DP$191,26,FALSE)","v":12636.12},{"$f":"VLOOKUP($A45,F1__World_Data!$A$4:$DP$191,25,FALSE)","v":12439.772999999999},{"$f":"VLOOKUP($A45,F1__World_Data!$A$4:$DP$191,24,FALSE)","v":12189.816999999999},{"$f":"VLOOKUP($A45,F1__World_Data!$A$4:$DP$191,23,FALSE)","v":11913.084999999999},{"$f":"VLOOKUP($A45,F1__World_Data!$A$4:$DP$191,22,FALSE)","v":11630.194},{"$f":"VLOOKUP($A45,F1__World_Data!$A$4:$DP$191,21,FALSE)","v":11341.405000000001},{"$f":"VLOOKUP($A45,F1__World_Data!$A$4:$DP$191,20,FALSE)","v":11041.206},{"$f":"VLOOKUP($A45,F1__World_Data!$A$4:$DP$191,19,FALSE)","v":10738.534},{"$f":"VLOOKUP($A45,F1__World_Data!$A$4:$DP$191,18,FALSE)","v":10443.954},{"$f":"VLOOKUP($A45,F1__World_Data!$A$4:$DP$191,17,FALSE)","v":10165.216},{"$f":"VLOOKUP($A45,F1__World_Data!$A$4:$DP$191,16,FALSE)","v":9906.9629999999997},{"$f":"VLOOKUP($A45,F1__World_Data!$A$4:$DP$191,15,FALSE)","v":9668.6550000000007},{"$f":"VLOOKUP($A45,F1__World_Data!$A$4:$DP$191,14,FALSE)","v":9446.2350000000006},{"$f":"VLOOKUP($A45,F1__World_Data!$A$4:$DP$191,13,FALSE)","v":9232.6550000000007},{"$f":"VLOOKUP($A45,F1__World_Data!$A$4:$DP$191,12,FALSE)","v":9022.7469999999994},{"$f":"VLOOKUP($A45,F1__World_Data!$A$4:$DP$191,11,FALSE)","v":8816.0560000000005},{"$f":"VLOOKUP($A45,F1__World_Data!$A$4:$DP$191,10,FALSE)","v":8614.4449999999997},{"$f":"VLOOKUP($A45,F1__World_Data!$A$4:$DP$191,9,FALSE)","v":8417.6980000000003},{"$f":"VLOOKUP($A45,F1__World_Data!$A$4:$DP$191,8,FALSE)","v":8225.9189999999999},{"$f":"VLOOKUP($A45,F1__World_Data!$A$4:$DP$191,7,FALSE)","v":8039.2169999999996},{"$f":"VLOOKUP($A45,F1__World_Data!$A$4:$DP$191,6,FALSE)","v":7857.107},{"$f":"VLOOKUP($A45,F1__World_Data!$A$4:$DP$191,5,FALSE)","v":7679.4650000000001},{"$f":"VLOOKUP($A45,F1__World_Data!$A$4:$DP$191,4,FALSE)","v":7507.3090000000002},{"$f":"VLOOKUP($A45,F1__World_Data!$A$4:$DP$191,3,FALSE)","v":7342.1170000000002},{"$f":"VLOOKUP($A45,F1__World_Data!$A$4:$DP$191,2,FALSE)","v":7184.87},null,{"$f":"VLOOKUP($A45,F1__World_Data!$A$4:$DP$191,120,FALSE)","v":68.116},{"$f":"VLOOKUP($A45,F1__World_Data!$A$4:$DP$191,119,FALSE)","v":67.850999999999999},{"$f":"VLOOKUP($A45,F1__World_Data!$A$4:$DP$191,118,FALSE)","v":67.576999999999998},{"$f":"VLOOKUP($A45,F1__World_Data!$A$4:$DP$191,117,FALSE)","v":67.290999999999997},{"$f":"VLOOKUP($A45,F1__World_Data!$A$4:$DP$191,116,FALSE)","v":66.995000000000005},{"$f":"VLOOKUP($A45,F1__World_Data!$A$4:$DP$191,115,FALSE)","v":66.69},{"$f":"VLOOKUP($A45,F1__World_Data!$A$4:$DP$191,114,FALSE)","v":66.381},{"$f":"VLOOKUP($A45,F1__World_Data!$A$4:$DP$191,113,FALSE)","v":66.072000000000003},{"$f":"VLOOKUP($A45,F1__World_Data!$A$4:$DP$191,112,FALSE)","v":65.769000000000005},{"$f":"VLOOKUP($A45,F1__World_Data!$A$4:$DP$191,111,FALSE)","v":65.48},{"$f":"VLOOKUP($A45,F1__World_Data!$A$4:$DP$191,110,FALSE)","v":65.207999999999998},{"$f":"VLOOKUP($A45,F1__World_Data!$A$4:$DP$191,109,FALSE)","v":64.953000000000003},{"$f":"VLOOKUP($A45,F1__World_Data!$A$4:$DP$191,108,FALSE)","v":64.712000000000003},{"$f":"VLOOKUP($A45,F1__World_Data!$A$4:$DP$191,107,FALSE)","v":64.477999999999994},{"$f":"VLOOKUP($A45,F1__World_Data!$A$4:$DP$191,106,FALSE)","v":64.242000000000004},{"$f":"VLOOKUP($A45,F1__World_Data!$A$4:$DP$191,105,FALSE)","v":63.994999999999997},{"$f":"VLOOKUP($A45,F1__World_Data!$A$4:$DP$191,104,FALSE)","v":63.731000000000002},{"$f":"VLOOKUP($A45,F1__World_Data!$A$4:$DP$191,103,FALSE)","v":63.445999999999998},{"$f":"VLOOKUP($A45,F1__World_Data!$A$4:$DP$191,102,FALSE)","v":63.143999999999998},{"$f":"VLOOKUP($A45,F1__World_Data!$A$4:$DP$191,101,FALSE)","v":62.829000000000001},{"$f":"VLOOKUP($A45,F1__World_Data!$A$4:$DP$191,100,FALSE)","v":62.509},{"$f":"VLOOKUP($A45,F1__World_Data!$A$4:$DP$191,99,FALSE)","v":62.188000000000002},{"$f":"VLOOKUP($A45,F1__World_Data!$A$4:$DP$191,98,FALSE)","v":61.866},{"$f":"VLOOKUP($A45,F1__World_Data!$A$4:$DP$191,97,FALSE)","v":61.539000000000001},{"$f":"VLOOKUP($A45,F1__World_Data!$A$4:$DP$191,96,FALSE)","v":61.198},{"$f":"VLOOKUP($A45,F1__World_Data!$A$4:$DP$191,95,FALSE)","v":60.837000000000003},{"$f":"VLOOKUP($A45,F1__World_Data!$A$4:$DP$191,94,FALSE)","v":60.454999999999998},{"$f":"VLOOKUP($A45,F1__World_Data!$A$4:$DP$191,93,FALSE)","v":60.052999999999997},{"$f":"VLOOKUP($A45,F1__World_Data!$A$4:$DP$191,92,FALSE)","v":59.636000000000003},{"$f":"VLOOKUP($A45,F1__World_Data!$A$4:$DP$191,91,FALSE)","v":59.209000000000003},{"$f":"VLOOKUP($A45,F1__World_Data!$A$4:$DP$191,90,FALSE)","v":58.783000000000001},{"$f":"VLOOKUP($A45,F1__World_Data!$A$4:$DP$191,89,FALSE)","v":58.366},{"$f":"VLOOKUP($A45,F1__World_Data!$A$4:$DP$191,88,FALSE)","v":57.962000000000003},{"$f":"VLOOKUP($A45,F1__World_Data!$A$4:$DP$191,87,FALSE)","v":57.579000000000001},{"$f":"VLOOKUP($A45,F1__World_Data!$A$4:$DP$191,86,FALSE)","v":57.220999999999997},{"$f":"VLOOKUP($A45,F1__World_Data!$A$4:$DP$191,85,FALSE)","v":56.886000000000003},{"$f":"VLOOKUP($A45,F1__World_Data!$A$4:$DP$191,84,FALSE)","v":56.569000000000003},{"$f":"VLOOKUP($A45,F1__World_Data!$A$4:$DP$191,83,FALSE)","v":56.265999999999998},{"$f":"VLOOKUP($A45,F1__World_Data!$A$4:$DP$191,82,FALSE)","v":55.970999999999997},{"$f":"VLOOKUP($A45,F1__World_Data!$A$4:$DP$191,81,FALSE)","v":55.679000000000002},{"$f":"VLOOKUP($A45,F1__World_Data!$A$4:$DP$191,80,FALSE)","v":55.381999999999998},{"$f":"VLOOKUP($A45,F1__World_Data!$A$4:$DP$191,79,FALSE)","v":55.073999999999998},{"$f":"VLOOKUP($A45,F1__World_Data!$A$4:$DP$191,78,FALSE)","v":54.747999999999998},{"$f":"VLOOKUP($A45,F1__World_Data!$A$4:$DP$191,77,FALSE)","v":54.399000000000001},{"$f":"VLOOKUP($A45,F1__World_Data!$A$4:$DP$191,76,FALSE)","v":54.027000000000001},{"$f":"VLOOKUP($A45,F1__World_Data!$A$4:$DP$191,75,FALSE)","v":53.633000000000003},{"$f":"VLOOKUP($A45,F1__World_Data!$A$4:$DP$191,74,FALSE)","v":53.218000000000004},{"$f":"VLOOKUP($A45,F1__World_Data!$A$4:$DP$191,73,FALSE)","v":52.781999999999996},{"$f":"VLOOKUP($A45,F1__World_Data!$A$4:$DP$191,72,FALSE)","v":52.323},{"$f":"VLOOKUP($A45,F1__World_Data!$A$4:$DP$191,71,FALSE)","v":51.837000000000003},{"$f":"VLOOKUP($A45,F1__World_Data!$A$4:$DP$191,70,FALSE)","v":51.326999999999998},{"$f":"VLOOKUP($A45,F1__World_Data!$A$4:$DP$191,69,FALSE)","v":50.795999999999999},{"$f":"VLOOKUP($A45,F1__World_Data!$A$4:$DP$191,68,FALSE)","v":50.25},{"$f":"VLOOKUP($A45,F1__World_Data!$A$4:$DP$191,67,FALSE)","v":49.697000000000003},{"$f":"VLOOKUP($A45,F1__World_Data!$A$4:$DP$191,66,FALSE)","v":49.145000000000003},{"$f":"VLOOKUP($A45,F1__World_Data!$A$4:$DP$191,65,FALSE)","v":48.600999999999999},{"$f":"VLOOKUP($A45,F1__World_Data!$A$4:$DP$191,64,FALSE)","v":48.070999999999998},{"$f":"VLOOKUP($A45,F1__World_Data!$A$4:$DP$191,63,FALSE)","v":47.557000000000002},{"$f":"VLOOKUP($A45,F1__World_Data!$A$4:$DP$191,62,FALSE)","v":47.061}]
["Yemen",{"$f":"VLOOKUP($A46,F1__World_Data!$A$4:$DP$191,60,FALSE)","v":28498.683000000001},{"$f":"VLOOKUP($A46,F1__World_Data!$A$4:$DP$191,59,FALSE)","v":27834.811000000002},{"$f":"VLOOKUP($A46,F1__World_Data!$A$4:$DP$191,58,FALSE)","v":27168.21},{"$f":"VLOOKUP($A46,F1__World_Data!$A$4:$DP$191,57,FALSE)","v":26497.881000000001},{"$f":"VLOOKUP($A46,F1__World_Data!$A$4:$DP$191,56,FALSE)","v":25823.488000000001},{"$f":"VLOOKUP($A46,F1__World_Data!$A$4:$DP$191,55,FALSE)","v":25147.112000000001},{"$f":"VLOOKUP($A46,F1__World_Data!$A$4:$DP$191,54,FALSE)","v":24473.175999999999},{"$f":"VLOOKUP($A46,F1__World_Data!$A$4:$DP$191,53,FALSE)","v":23807.585999999999},{"$f":"VLOOKUP($A46,F1__World_Data!$A$4:$DP$191,52,FALSE)","v":23154.853999999999},{"$f":"VLOOKUP($A46,F1__World_Data!$A$4:$DP$191,51,FALSE)","v":22516.464},{"$f":"VLOOKUP($A46,F1__World_Data!$A$4:$DP$191,50,FALSE)","v":21892.149000000001},{"$f":"VLOOKUP($A46,F1__World_Data!$A$4:$DP$191,49,FALSE)","v":21282.513999999999},{"$f":"VLOOKUP($A46,F1__World_Data!$A$4:$DP$191,48,FALSE)","v":20687.648000000001},{"$f":"VLOOKUP($A46,F1__World_Data!$A$4:$DP$191,47,FALSE)","v":20107.416000000001},{"$f":"VLOOKUP($A46,F1__World_Data!$A$4:$DP$191,46,FALSE)","v":19540.096000000001},{"$f":"VLOOKUP($A46,F1__World_Data!$A$4:$DP$191,45,FALSE)","v":18985.001},{"$f":"VLOOKUP($A46,F1__World_Data!$A$4:$DP$191,44,FALSE)","v":18443.684000000001},{"$f":"VLOOKUP($A46,F1__World_Data!$A$4:$DP$191,43,FALSE)","v":17918.368999999999},{"$f":"VLOOKUP($A46,F1__World_Data!$A$4:$DP$191,42,FALSE)","v":17409.071},{"$f":"VLOOKUP($A46,F1__World_Data!$A$4:$DP$191,41,FALSE)","v":16921.156999999999},{"$f":"VLOOKUP($A46,F1__World_Data!$A$4:$DP$191,40,FALSE)","v":16450.306},{"$f":"VLOOKUP($A46,F1__World_Data!$A$4:$DP$191,39,FALSE)","v":15975.675999999999},{"$f":"VLOOKUP($A46,F1__World_Data!$A$4:$DP$191,38,FALSE)","v":15469.273999999999},{"$f":"VLOOKUP($A46,F1__World_Data!$A$4:$DP$191,37,FALSE)","v":14913.313},{"$f":"VLOOKUP($A46,F1__World_Data!$A$4:$DP$191,36,FALSE)","v":14297.617},{"$f":"VLOOKUP($A46,F1__World_Data!$A$4:$DP$191,35,FALSE)","v":13634.082},{"$f":"VLOOKUP($A46,F1__World_Data!$A$4:$DP$191,34,FALSE)","v":12954.156999999999},{"$f":"VLOOKUP($A46,F1__World_Data!$A$4:$DP$191,33,FALSE)","v":12302.127},{"$f":"VLOOKUP($A46,F1__World_Data!$A$4:$DP$191,32,FALSE)","v":11709.986999999999},{"$f":"VLOOKUP($A46,F1__World_Data!$A$4:$DP$191,31,FALSE)","v":11189.184999999999},{"$f":"VLOOKUP($A46,F1__World_Data!$A$4:$DP$191,30,FALSE)","v":10730.864},{"$f":"VLOOKUP($A46,F1__World_Data!$A$4:$DP$191,29,FALSE)","v":10322.044},{"$f":"VLOOKUP($A46,F1__World_Data!$A$4:$DP$191,28,FALSE)","v":9941.1020000000008},{"$f":"VLOOKUP($A46,F1__World_Data!$A$4:$DP$191,27,FALSE)","v":9572.17},{"$f":"VLOOKUP($A46,F1__World_Data!$A$4:$DP$191,26,FALSE)","v":9213.0779999999995},{"$f":"VLOOKUP($A46,F1__World_Data!$A$4:$DP$191,25,FALSE)","v":8869.3629999999994},{"$f":"VLOOKUP($A46,F1__World_Data!$A$4:$DP$191,24,FALSE)","v":8541.6049999999996},{"$f":"VLOOKUP($A46,F1__World_Data!$A$4:$DP$191,23,FALSE)","v":8231.9050000000007},{"$f":"VLOOKUP($A46,F1__World_Data!$A$4:$DP$191,22,FALSE)","v":7941.9030000000002},{"$f":"VLOOKUP($A46,F1__World_Data!$A$4:$DP$191,21,FALSE)","v":7669.6989999999996},{"$f":"VLOOKUP($A46,F1__World_Data!$A$4:$DP$191,20,FALSE)","v":7414.1670000000004},{"$f":"VLOOKUP($A46,F1__World_Data!$A$4:$DP$191,19,FALSE)","v":7178.6719999999996},{"$f":"VLOOKUP($A46,F1__World_Data!$A$4:$DP$191,18,FALSE)","v":6967.9440000000004},{"$f":"VLOOKUP($A46,F1__World_Data!$A$4:$DP$191,17,FALSE)","v":6784.6989999999996},{"$f":"VLOOKUP($A46,F1__World_Data!$A$4:$DP$191,16,FALSE)","v":6630.0029999999997},{"$f":"VLOOKUP($A46,F1__World_Data!$A$4:$DP$191,15,FALSE)","v":6500.8090000000002},{"$f":"VLOOKUP($A46,F1__World_Data!$A$4:$DP$191,14,FALSE)","v":6390.5730000000003},{"$f":"VLOOKUP($A46,F1__World_Data!$A$4:$DP$191,13,FALSE)","v":6290.3670000000002},{"$f":"VLOOKUP($A46,F1__World_Data!$A$4:$DP$191,12,FALSE)","v":6193.3789999999999},{"$f":"VLOOKUP($A46,F1__World_Data!$A$4:$DP$191,11,FALSE)","v":6097.0420000000004},{"$f":"VLOOKUP($A46,F1__World_Data!$A$4:$DP$191,10,FALSE)","v":6001.8580000000002},{"$f":"VLOOKUP($A46,F1__World_Data!$A$4:$DP$191,9,FALSE)","v":5907.8729999999996},{"$f":"VLOOKUP($A46,F1__World_Data!$A$4:$DP$191,8,FALSE)","v":5816.241},{"$f":"VLOOKUP($A46,F1__World_Data!$A$4:$DP$191,7,FALSE)","v":5727.7449999999999},{"$f":"VLOOKUP($A46,F1__World_Data!$A$4:$DP$191,6,FALSE)","v":5641.598},{"$f":"VLOOKUP($A46,F1__World_Data!$A$4:$DP$191,5,FALSE)","v":5556.7669999999998},{"$f":"VLOOKUP($A46,F1__World_Data!$A$4:$DP$191,4,FALSE)","v":5473.6710000000003},{"$f":"VLOOKUP($A46,F1__World_Data!$A$4:$DP$191,3,FALSE)","v":5393.0339999999997},{"$f":"VLOOKUP($A46,F1__World_Data!$A$4:$DP$191,2,FALSE)","v":5315.3509999999997},null,{"$f":"VLOOKUP($A46,F1__World_Data!$A$4:$DP$191,120,FALSE)","v":63.856999999999999},{"$f":"VLOOKUP($A46,F1__World_Data!$A$4:$DP$191,119,FALSE)","v":63.537999999999997},{"$f":"VLOOKUP($A46,F1__World_Data!$A$4:$DP$191,118,FALSE)","v":63.152999999999999},{"$f":"VLOOKUP($A46,F1__World_Data!$A$4:$DP$191,117,FALSE)","v":62.649000000000001},{"$f":"VLOOKUP($A46,F1__World_Data!$A$4:$DP$191,116,FALSE)","v":61.968000000000004},{"$f":"VLOOKUP($A46,F1__World_Data!$A$4:$DP$191,115,FALSE)","v":61.098999999999997},{"$f":"VLOOKUP($A46,F1__World_Data!$A$4:$DP$191,114,FALSE)","v":60.06},{"$f":"VLOOKUP($A46,F1__World_Data!$A$4:$DP$191,113,FALSE)","v":58.895000000000003},{"$f":"VLOOKUP($A46,F1__World_Data!$A$4:$DP$191,112,FALSE)","v":57.668999999999997},{"$f":"VLOOKUP($A46,F1__World_Data!$A$4:$DP$191,111,FALSE)","v":56.46},{"$f":"VLOOKUP($A46,F1__World_Data!$A$4:$DP$191,110,FALSE)","v":55.36},{"$f":"VLOOKUP($A46,F1__World_Data!$A$4:$DP$191,109,FALSE)","v":54.451999999999998},{"$f":"VLOOKUP($A46,F1__World_Data!$A$4:$DP$191,108,FALSE)","v":53.795000000000002},{"$f":"VLOOKUP($A46,F1__World_Data!$A$4:$DP$191,107,FALSE)","v":53.447000000000003},{"$f":"VLOOKUP($A46,F1__World_Data!$A$4:$DP$191,106,FALSE)","v":53.444000000000003},{"$f":"VLOOKUP($A46,F1__World_Data!$A$4:$DP$191,105,FALSE)","v":53.749000000000002},{"$f":"VLOOKUP($A46,F1__World_Data!$A$4:$DP$191,104,FALSE)","v":54.31},{"$f":"VLOOKUP($A46,F1__World_Data!$A$4:$DP$191,103,FALSE)","v":55.088999999999999},{"$f":"VLOOKUP($A46,F1__World_Data!$A$4:$DP$191,102,FALSE)","v":56.048000000000002},{"$f":"VLOOKUP($A46,F1__World_Data!$A$4:$DP$191,101,FALSE)","v":57.143999999999998},{"$f":"VLOOKUP($A46,F1__World_Data!$A$4:$DP$191,100,FALSE)","v":58.314999999999998},{"$f":"VLOOKUP($A46,F1__World_Data!$A$4:$DP$191,99,FALSE)","v":59.488999999999997},{"$f":"VLOOKUP($A46,F1__World_Data!$A$4:$DP$191,98,FALSE)","v":60.594999999999999},{"$f":"VLOOKUP($A46,F1__World_Data!$A$4:$DP$191,97,FALSE)","v":61.561},{"$f":"VLOOKUP($A46,F1__World_Data!$A$4:$DP$191,96,FALSE)","v":62.331000000000003},{"$f":"VLOOKUP($A46,F1__World_Data!$A$4:$DP$191,95,FALSE)","v":62.893999999999998},{"$f":"VLOOKUP($A46,F1__World_Data!$A$4:$DP$191,94,FALSE)","v":63.247},{"$f":"VLOOKUP($A46,F1__World_Data!$A$4:$DP$191,93,FALSE)","v":63.384},{"$f":"VLOOKUP($A46,F1__World_Data!$A$4:$DP$191,92,FALSE)","v":63.307000000000002},{"$f":"VLOOKUP($A46,F1__World_Data!$A$4:$DP$191,91,FALSE)","v":63.034999999999997},{"$f":"VLOOKUP($A46,F1__World_Data!$A$4:$DP$191,90,FALSE)","v":62.619},{"$f":"VLOOKUP($A46,F1__World_Data!$A$4:$DP$191,89,FALSE)","v":62.109000000000002},{"$f":"VLOOKUP($A46,F1__World_Data!$A$4:$DP$191,88,FALSE)","v":61.54},{"$f":"VLOOKUP($A46,F1__World_Data!$A$4:$DP$191,87,FALSE)","v":60.945999999999998},{"$f":"VLOOKUP($A46,F1__World_Data!$A$4:$DP$191,86,FALSE)","v":60.353000000000002},{"$f":"VLOOKUP($A46,F1__World_Data!$A$4:$DP$191,85,FALSE)","v":59.765999999999998},{"$f":"VLOOKUP($A46,F1__World_Data!$A$4:$DP$191,84,FALSE)","v":59.191000000000003},{"$f":"VLOOKUP($A46,F1__World_Data!$A$4:$DP$191,83,FALSE)","v":58.637},{"$f":"VLOOKUP($A46,F1__World_Data!$A$4:$DP$191,82,FALSE)","v":58.106999999999999},{"$f":"VLOOKUP($A46,F1__World_Data!$A$4:$DP$191,81,FALSE)","v":57.59},{"$f":"VLOOKUP($A46,F1__World_Data!$A$4:$DP$191,80,FALSE)","v":57.070999999999998},{"$f":"VLOOKUP($A46,F1__World_Data!$A$4:$DP$191,79,FALSE)","v":56.537999999999997},{"$f":"VLOOKUP($A46,F1__World_Data!$A$4:$DP$191,78,FALSE)","v":55.99},{"$f":"VLOOKUP($A46,F1__World_Data!$A$4:$DP$191,77,FALSE)","v":55.427999999999997},{"$f":"VLOOKUP($A46,F1__World_Data!$A$4:$DP$191,76,FALSE)","v":54.856000000000002},{"$f":"VLOOKUP($A46,F1__World_Data!$A$4:$DP$191,75,FALSE)","v":54.280999999999999},{"$f":"VLOOKUP($A46,F1__World_Data!$A$4:$DP$191,74,FALSE)","v":53.713000000000001},{"$f":"VLOOKUP($A46,F1__World_Data!$A$4:$DP$191,73,FALSE)","v":53.156999999999996},{"$f":"VLOOKUP($A46,F1__World_Data!$A$4:$DP$191,72,FALSE)","v":52.62},{"$f":"VLOOKUP($A46,F1__World_Data!$A$4:$DP$191,71,FALSE)","v":52.106000000000002},{"$f":"VLOOKUP($A46,F1__World_Data!$A$4:$DP$191,70,FALSE)","v":51.615000000000002},{"$f":"VLOOKUP($A46,F1__World_Data!$A$4:$DP$191,69,FALSE)","v":51.148000000000003},{"$f":"VLOOKUP($A46,F1__World_Data!$A$4:$DP$191,68,FALSE)","v":50.704999999999998},{"$f":"VLOOKUP($A46,F1__World_Data!$A$4:$DP$191,67,FALSE)","v":50.283999999999999},{"$f":"VLOOKUP($A46,F1__World_Data!$A$4:$DP$191,66,FALSE)","v":49.887999999999998},{"$f":"VLOOKUP($A46,F1__World_Data!$A$4:$DP$191,65,FALSE)","v":49.509},{"$f":"VLOOKUP($A46,F1__World_Data!$A$4:$DP$191,64,FALSE)","v":49.142000000000003},{"$f":"VLOOKUP($A46,F1__World_Data!$A$4:$DP$191,63,FALSE)","v":48.777000000000001},{"$f":"VLOOKUP($A46,F1__World_Data!$A$4:$DP$191,62,FALSE)","v":48.405999999999999}]
["Nepal",{"$f":"VLOOKUP($A47,F1__World_Data!$A$4:$DP$191,60,FALSE)","v":28095.712},{"$f":"VLOOKUP($A47,F1__World_Data!$A$4:$DP$191,59,FALSE)","v":27632.682000000001},{"$f":"VLOOKUP($A47,F1__World_Data!$A$4:$DP$191,58,FALSE)","v":27263.43},{"$f":"VLOOKUP($A47,F1__World_Data!$A$4:$DP$191,57,FALSE)","v":27015.032999999999},{"$f":"VLOOKUP($A47,F1__World_Data!$A$4:$DP$191,56,FALSE)","v":26905.982},{"$f":"VLOOKUP($A47,F1__World_Data!$A$4:$DP$191,55,FALSE)","v":26916.794999999998},{"$f":"VLOOKUP($A47,F1__World_Data!$A$4:$DP$191,54,FALSE)","v":26989.16},{"$f":"VLOOKUP($A47,F1__World_Data!$A$4:$DP$191,53,FALSE)","v":27041.22},{"$f":"VLOOKUP($A47,F1__World_Data!$A$4:$DP$191,52,FALSE)","v":27013.206999999999},{"$f":"VLOOKUP($A47,F1__World_Data!$A$4:$DP$191,51,FALSE)","v":26883.530999999999},{"$f":"VLOOKUP($A47,F1__World_Data!$A$4:$DP$191,50,FALSE)","v":26666.580999999998},{"$f":"VLOOKUP($A47,F1__World_Data!$A$4:$DP$191,49,FALSE)","v":26382.585999999999},{"$f":"VLOOKUP($A47,F1__World_Data!$A$4:$DP$191,48,FALSE)","v":26066.687000000002},{"$f":"VLOOKUP($A47,F1__World_Data!$A$4:$DP$191,47,FALSE)","v":25744.5},{"$f":"VLOOKUP($A47,F1__World_Data!$A$4:$DP$191,46,FALSE)","v":25419.337},{"$f":"VLOOKUP($A47,F1__World_Data!$A$4:$DP$191,45,FALSE)","v":25080.880000000001},{"$f":"VLOOKUP($A47,F1__World_Data!$A$4:$DP$191,44,FALSE)","v":24725.625},{"$f":"VLOOKUP($A47,F1__World_Data!$A$4:$DP$191,43,FALSE)","v":24347.113000000001},{"$f":"VLOOKUP($A47,F1__World_Data!$A$4:$DP$191,42,FALSE)","v":23941.098999999998},{"$f":"VLOOKUP($A47,F1__World_Data!$A$4:$DP$191,41,FALSE)","v":23509.971000000001},{"$f":"VLOOKUP($A47,F1__World_Data!$A$4:$DP$191,40,FALSE)","v":23057.875},{"$f":"VLOOKUP($A47,F1__World_Data!$A$4:$DP$191,39,FALSE)","v":22584.772000000001},{"$f":"VLOOKUP($A47,F1__World_Data!$A$4:$DP$191,38,FALSE)","v":22090.351999999999},{"$f":"VLOOKUP($A47,F1__World_Data!$A$4:$DP$191,37,FALSE)","v":21576.074000000001},{"$f":"VLOOKUP($A47,F1__World_Data!$A$4:$DP$191,36,FALSE)","v":21040.899000000001},{"$f":"VLOOKUP($A47,F1__World_Data!$A$4:$DP$191,35,FALSE)","v":20489.973000000002},{"$f":"VLOOKUP($A47,F1__World_Data!$A$4:$DP$191,34,FALSE)","v":19938.322},{"$f":"VLOOKUP($A47,F1__World_Data!$A$4:$DP$191,33,FALSE)","v":19405.506000000001},{"$f":"VLOOKUP($A47,F1__World_Data!$A$4:$DP$191,32,FALSE)","v":18905.48},{"$f":"VLOOKUP($A47,F1__World_Data!$A$4:$DP$191,31,FALSE)","v":18445.021000000001},{"$f":"VLOOKUP($A47,F1__World_Data!$A$4:$DP$191,30,FALSE)","v":18020.755000000001},{"$f":"VLOOKUP($A47,F1__World_Data!$A$4:$DP$191,29,FALSE)","v":17623.697},{"$f":"VLOOKUP($A47,F1__World_Data!$A$4:$DP$191,28,FALSE)","v":17239.677},{"$f":"VLOOKUP($A47,F1__World_Data!$A$4:$DP$191,27,FALSE)","v":16858.314999999999},{"$f":"VLOOKUP($A47,F1__World_Data!$A$4:$DP$191,26,FALSE)","v":16477.488000000001},{"$f":"VLOOKUP($A47,F1__World_Data!$A$4:$DP$191,25,FALSE)","v":16100.623},{"$f":"VLOOKUP($A47,F1__World_Data!$A$4:$DP$191,24,FALSE)","v":15729.431},{"$f":"VLOOKUP($A47,F1__World_Data!$A$4:$DP$191,23,FALSE)","v":15367.228999999999},{"$f":"VLOOKUP($A47,F1__World_Data!$A$4:$DP$191,22,FALSE)","v":15016.407999999999},{"$f":"VLOOKUP($A47,F1__World_Data!$A$4:$DP$191,21,FALSE)","v":14676.932000000001},{"$f":"VLOOKUP($A47,F1__World_Data!$A$4:$DP$191,20,FALSE)","v":14347.653},{"$f":"VLOOKUP($A47,F1__World_Data!$A$4:$DP$191,19,FALSE)","v":14028.535},{"$f":"VLOOKUP($A47,F1__World_Data!$A$4:$DP$191,18,FALSE)","v":13719.466},{"$f":"VLOOKUP($A47,F1__World_Data!$A$4:$DP$191,17,FALSE)","v":13420.367},{"$f":"VLOOKUP($A47,F1__World_Data!$A$4:$DP$191,16,FALSE)","v":13131.26},{"$f":"VLOOKUP($A47,F1__World_Data!$A$4:$DP$191,15,FALSE)","v":12852.205},{"$f":"VLOOKUP($A47,F1__World_Data!$A$4:$DP$191,14,FALSE)","v":12583.142},{"$f":"VLOOKUP($A47,F1__World_Data!$A$4:$DP$191,13,FALSE)","v":12323.984},{"$f":"VLOOKUP($A47,F1__World_Data!$A$4:$DP$191,12,FALSE)","v":12074.628000000001},{"$f":"VLOOKUP($A47,F1__World_Data!$A$4:$DP$191,11,FALSE)","v":11834.656999999999},{"$f":"VLOOKUP($A47,F1__World_Data!$A$4:$DP$191,10,FALSE)","v":11603.921},{"$f":"VLOOKUP($A47,F1__World_Data!$A$4:$DP$191,9,FALSE)","v":11382.965},{"$f":"VLOOKUP($A47,F1__World_Data!$A$4:$DP$191,8,FALSE)","v":11172.53},{"$f":"VLOOKUP($A47,F1__World_Data!$A$4:$DP$191,7,FALSE)","v":10972.912},{"$f":"VLOOKUP($A47,F1__World_Data!$A$4:$DP$191,6,FALSE)","v":10783.958000000001},{"$f":"VLOOKUP($A47,F1__World_Data!$A$4:$DP$191,5,FALSE)","v":10604.62},{"$f":"VLOOKUP($A47,F1__World_Data!$A$4:$DP$191,4,FALSE)","v":10433.147000000001},{"$f":"VLOOKUP($A47,F1__World_Data!$A$4:$DP$191,3,FALSE)","v":10267.26},{"$f":"VLOOKUP($A47,F1__World_Data!$A$4:$DP$191,2,FALSE)","v":10105.06},null,{"$f":"VLOOKUP($A47,F1__World_Data!$A$4:$DP$191,120,FALSE)","v":68.116},{"$f":"VLOOKUP($A47,F1__World_Data!$A$4:$DP$191,119,FALSE)","v":67.850999999999999},{"$f":"VLOOKUP($A47,F1__World_Data!$A$4:$DP$191,118,FALSE)","v":67.576999999999998},{"$f":"VLOOKUP($A47,F1__World_Data!$A$4:$DP$191,117,FALSE)","v":67.290999999999997},{"$f":"VLOOKUP($A47,F1__World_Data!$A$4:$DP$191,116,FALSE)","v":66.995000000000005},{"$f":"VLOOKUP($A47,F1__World_Data!$A$4:$DP$191,115,FALSE)","v":66.69},{"$f":"VLOOKUP($A47,F1__World_Data!$A$4:$DP$191,114,FALSE)","v":66.381},{"$f":"VLOOKUP($A47,F1__World_Data!$A$4:$DP$191,113,FALSE)","v":66.072000000000003},{"$f":"VLOOKUP($A47,F1__World_Data!$A$4:$DP$191,112,FALSE)","v":65.769000000000005},{"$f":"VLOOKUP($A47,F1__World_Data!$A$4:$DP$191,111,FALSE)","v":65.48},{"$f":"VLOOKUP($A47,F1__World_Data!$A$4:$DP$191,110,FALSE)","v":65.207999999999998},{"$f":"VLOOKUP($A47,F1__World_Data!$A$4:$DP$191,109,FALSE)","v":64.953000000000003},{"$f":"VLOOKUP($A47,F1__World_Data!$A$4:$DP$191,108,FALSE)","v":64.712000000000003},{"$f":"VLOOKUP($A47,F1__World_Data!$A$4:$DP$191,107,FALSE)","v":64.477999999999994},{"$f":"VLOOKUP($A47,F1__World_Data!$A$4:$DP$191,106,FALSE)","v":64.242000000000004},{"$f":"VLOOKUP($A47,F1__World_Data!$A$4:$DP$191,105,FALSE)","v":63.994999999999997},{"$f":"VLOOKUP($A47,F1__World_Data!$A$4:$DP$191,104,FALSE)","v":63.731000000000002},{"$f":"VLOOKUP($A47,F1__World_Data!$A$4:$DP$191,103,FALSE)","v":63.445999999999998},{"$f":"VLOOKUP($A47,F1__World_Data!$A$4:$DP$191,102,FALSE)","v":63.143999999999998},{"$f":"VLOOKUP($A47,F1__World_Data!$A$4:$DP$191,101,FALSE)","v":62.829000000000001},{"$f":"VLOOKUP($A47,F1__World_Data!$A$4:$DP$191,100,FALSE)","v":62.509},{"$f":"VLOOKUP($A47,F1__World_Data!$A$4:$DP$191,99,FALSE)","v":62.188000000000002},{"$f":"VLOOKUP($A47,F1__World_Data!$A$4:$DP$191,98,FALSE)","v":61.866},{"$f":"VLOOKUP($A47,F1__World_Data!$A$4:$DP$191,97,FALSE)","v":61.539000000000001},{"$f":"VLOOKUP($A47,F1__World_Data!$A$4:$DP$191,96,FALSE)","v":61.198},{"$f":"VLOOKUP($A47,F1__World_Data!$A$4:$DP$191,95,FALSE)","v":60.837000000000003},{"$f":"VLOOKUP($A47,F1__World_Data!$A$4:$DP$191,94,FALSE)","v":60.454999999999998},{"$f":"VLOOKUP($A47,F1__World_Data!$A$4:$DP$191,93,FALSE)","v":60.052999999999997},{"$f":"VLOOKUP($A47,F1__World_Data!$A$4:$DP$191,92,FALSE)","v":59.636000000000003},{"$f":"VLOOKUP($A47,F1__World_Data!$A$4:$DP$191,91,FALSE)","v":59.209000000000003},{"$f":"VLOOKUP($A47,F1__World_Data!$A$4:$DP$191,90,FALSE)","v":58.783000000000001},{"$f":"VLOOKUP($A47,F1__World_Data!$A$4:$DP$191,89,FALSE)","v":58.366},{"$f":"VLOOKUP($A47,F1__World_Data!$A$4:$DP$191,88,FALSE)","v":57.962000000000003},{"$f":"VLOOKUP($A47,F1__World_Data!$A$4:$DP$191,87,FALSE)","v":57.579000000000001},{"$f":"VLOOKUP($A47,F1__World_Data!$A$4:$DP$191,86,FALSE)","v":57.220999999999997},{"$f":"VLOOKUP($A47,F1__World_Data!$A$4:$DP$191,85,FALSE)","v":56.886000000000003},{"$f":"VLOOKUP($A47,F1__World_Data!$A$4:$DP$191,84,FALSE)","v":56.569000000000003},{"$f":"VLOOKUP($A47,F1__World_Data!$A$4:$DP$191,83,FALSE)","v":56.265999999999998},{"$f":"VLOOKUP($A47,F1__World_Data!$A$4:$DP$191,82,FALSE)","v":55.970999999999997},{"$f":"VLOOKUP($A47,F1__World_Data!$A$4:$DP$191,81,FALSE)","v":55.679000000000002},{"$f":"VLOOKUP($A47,F1__World_Data!$A$4:$DP$191,80,FALSE)","v":55.381999999999998},{"$f":"VLOOKUP($A47,F1__World_Data!$A$4:$DP$191,79,FALSE)","v":55.073999999999998},{"$f":"VLOOKUP($A47,F1__World_Data!$A$4:$DP$191,78,FALSE)","v":54.747999999999998},{"$f":"VLOOKUP($A47,F1__World_Data!$A$4:$DP$191,77,FALSE)","v":54.399000000000001},{"$f":"VLOOKUP($A47,F1__World_Data!$A$4:$DP$191,76,FALSE)","v":54.027000000000001},{"$f":"VLOOKUP($A47,F1__World_Data!$A$4:$DP$191,75,FALSE)","v":53.633000000000003},{"$f":"VLOOKUP($A47,F1__World_Data!$A$4:$DP$191,74,FALSE)","v":53.218000000000004},{"$f":"VLOOKUP($A47,F1__World_Data!$A$4:$DP$191,73,FALSE)","v":52.781999999999996},{"$f":"VLOOKUP($A47,F1__World_Data!$A$4:$DP$191,72,FALSE)","v":52.323},{"$f":"VLOOKUP($A47,F1__World_Data!$A$4:$DP$191,71,FALSE)","v":51.837000000000003},{"$f":"VLOOKUP($A47,F1__World_Data!$A$4:$DP$191,70,FALSE)","v":51.326999999999998},{"$f":"VLOOKUP($A47,F1__World_Data!$A$4:$DP$191,69,FALSE)","v":50.795999999999999},{"$f":"VLOOKUP($A47,F1__World_Data!$A$4:$DP$191,68,FALSE)","v":50.25},{"$f":"VLOOKUP($A47,F1__World_Data!$A$4:$DP$191,67,FALSE)","v":49.697000000000003},{"$f":"VLOOKUP($A47,F1__World_Data!$A$4:$DP$191,66,FALSE)","v":49.145000000000003},{"$f":"VLOOKUP($A47,F1__World_Data!$A$4:$DP$191,65,FALSE)","v":48.600999999999999},{"$f":"VLOOKUP($A47,F1__World_Data!$A$4:$DP$191,64,FALSE)","v":48.070999999999998},{"$f":"VLOOKUP($A47,F1__World_Data!$A$4:$DP$191,63,FALSE)","v":47.557000000000002},{"$f":"VLOOKUP($A47,F1__World_Data!$A$4:$DP$191,62,FALSE)","v":47.061}]
["Madagascar",{"$f":"VLOOKUP($A48,F1__World_Data!$A$4:$DP$191,60,FALSE)","v":26262.312999999998},{"$f":"VLOOKUP($A48,F1__World_Data!$A$4:$DP$191,59,FALSE)","v":25570.510999999999},{"$f":"VLOOKUP($A48,F1__World_Data!$A$4:$DP$191,58,FALSE)","v":24894.37},{"$f":"VLOOKUP($A48,F1__World_Data!$A$4:$DP$191,57,FALSE)","v":24234.080000000002},{"$f":"VLOOKUP($A48,F1__World_Data!$A$4:$DP$191,56,FALSE)","v":23589.897000000001},{"$f":"VLOOKUP($A48,F1__World_Data!$A$4:$DP$191,55,FALSE)","v":22961.258999999998},{"$f":"VLOOKUP($A48,F1__World_Data!$A$4:$DP$191,54,FALSE)","v":22346.641},{"$f":"VLOOKUP($A48,F1__World_Data!$A$4:$DP$191,53,FALSE)","v":21743.97},{"$f":"VLOOKUP($A48,F1__World_Data!$A$4:$DP$191,52,FALSE)","v":21151.64},{"$f":"VLOOKUP($A48,F1__World_Data!$A$4:$DP$191,51,FALSE)","v":20569.115000000002},{"$f":"VLOOKUP($A48,F1__World_Data!$A$4:$DP$191,50,FALSE)","v":19996.475999999999},{"$f":"VLOOKUP($A48,F1__World_Data!$A$4:$DP$191,49,FALSE)","v":19433.52},{"$f":"VLOOKUP($A48,F1__World_Data!$A$4:$DP$191,48,FALSE)","v":18880.264999999999},{"$f":"VLOOKUP($A48,F1__World_Data!$A$4:$DP$191,47,FALSE)","v":18336.722000000002},{"$f":"VLOOKUP($A48,F1__World_Data!$A$4:$DP$191,46,FALSE)","v":17802.991999999998},{"$f":"VLOOKUP($A48,F1__World_Data!$A$4:$DP$191,45,FALSE)","v":17279.138999999999},{"$f":"VLOOKUP($A48,F1__World_Data!$A$4:$DP$191,44,FALSE)","v":16765.121999999999},{"$f":"VLOOKUP($A48,F1__World_Data!$A$4:$DP$191,43,FALSE)","v":16260.933000000001},{"$f":"VLOOKUP($A48,F1__World_Data!$A$4:$DP$191,42,FALSE)","v":15766.806},{"$f":"VLOOKUP($A48,F1__World_Data!$A$4:$DP$191,41,FALSE)","v":15282.523999999999},{"$f":"VLOOKUP($A48,F1__World_Data!$A$4:$DP$191,40,FALSE)","v":14808.790999999999},{"$f":"VLOOKUP($A48,F1__World_Data!$A$4:$DP$191,39,FALSE)","v":14347.86},{"$f":"VLOOKUP($A48,F1__World_Data!$A$4:$DP$191,38,FALSE)","v":13902.697},{"$f":"VLOOKUP($A48,F1__World_Data!$A$4:$DP$191,37,FALSE)","v":13475.403},{"$f":"VLOOKUP($A48,F1__World_Data!$A$4:$DP$191,36,FALSE)","v":13066.544},{"$f":"VLOOKUP($A48,F1__World_Data!$A$4:$DP$191,35,FALSE)","v":12675.468999999999},{"$f":"VLOOKUP($A48,F1__World_Data!$A$4:$DP$191,34,FALSE)","v":12301.338},{"$f":"VLOOKUP($A48,F1__World_Data!$A$4:$DP$191,33,FALSE)","v":11942.808999999999},{"$f":"VLOOKUP($A48,F1__World_Data!$A$4:$DP$191,32,FALSE)","v":11598.647000000001},{"$f":"VLOOKUP($A48,F1__World_Data!$A$4:$DP$191,31,FALSE)","v":11268.653},{"$f":"VLOOKUP($A48,F1__World_Data!$A$4:$DP$191,30,FALSE)","v":10952.396000000001},{"$f":"VLOOKUP($A48,F1__World_Data!$A$4:$DP$191,29,FALSE)","v":10647.753000000001},{"$f":"VLOOKUP($A48,F1__World_Data!$A$4:$DP$191,28,FALSE)","v":10352.117},{"$f":"VLOOKUP($A48,F1__World_Data!$A$4:$DP$191,27,FALSE)","v":10063.493},{"$f":"VLOOKUP($A48,F1__World_Data!$A$4:$DP$191,26,FALSE)","v":9780.8690000000006},{"$f":"VLOOKUP($A48,F1__World_Data!$A$4:$DP$191,25,FALSE)","v":9504.2829999999994},{"$f":"VLOOKUP($A48,F1__World_Data!$A$4:$DP$191,24,FALSE)","v":9234.1370000000006},{"$f":"VLOOKUP($A48,F1__World_Data!$A$4:$DP$191,23,FALSE)","v":8971.3389999999999},{"$f":"VLOOKUP($A48,F1__World_Data!$A$4:$DP$191,22,FALSE)","v":8716.5490000000009},{"$f":"VLOOKUP($A48,F1__World_Data!$A$4:$DP$191,21,FALSE)","v":8469.6769999999997},{"$f":"VLOOKUP($A48,F1__World_Data!$A$4:$DP$191,20,FALSE)","v":8230.2139999999999},{"$f":"VLOOKUP($A48,F1__World_Data!$A$4:$DP$191,19,FALSE)","v":7998.1570000000002},{"$f":"VLOOKUP($A48,F1__World_Data!$A$4:$DP$191,18,FALSE)","v":7773.4520000000002},{"$f":"VLOOKUP($A48,F1__World_Data!$A$4:$DP$191,17,FALSE)","v":7556.0320000000002},{"$f":"VLOOKUP($A48,F1__World_Data!$A$4:$DP$191,16,FALSE)","v":7345.7730000000001},{"$f":"VLOOKUP($A48,F1__World_Data!$A$4:$DP$191,15,FALSE)","v":7142.634},{"$f":"VLOOKUP($A48,F1__World_Data!$A$4:$DP$191,14,FALSE)","v":6946.6189999999997},{"$f":"VLOOKUP($A48,F1__World_Data!$A$4:$DP$191,13,FALSE)","v":6757.8530000000001},{"$f":"VLOOKUP($A48,F1__World_Data!$A$4:$DP$191,12,FALSE)","v":6576.3050000000003},{"$f":"VLOOKUP($A48,F1__World_Data!$A$4:$DP$191,11,FALSE)","v":6401.92},{"$f":"VLOOKUP($A48,F1__World_Data!$A$4:$DP$191,10,FALSE)","v":6234.4679999999998},{"$f":"VLOOKUP($A48,F1__World_Data!$A$4:$DP$191,9,FALSE)","v":6073.5290000000005},{"$f":"VLOOKUP($A48,F1__World_Data!$A$4:$DP$191,8,FALSE)","v":5918.5919999999996},{"$f":"VLOOKUP($A48,F1__World_Data!$A$4:$DP$191,7,FALSE)","v":5769.2150000000001},{"$f":"VLOOKUP($A48,F1__World_Data!$A$4:$DP$191,6,FALSE)","v":5625.1639999999998},{"$f":"VLOOKUP($A48,F1__World_Data!$A$4:$DP$191,5,FALSE)","v":5486.3190000000004},{"$f":"VLOOKUP($A48,F1__World_Data!$A$4:$DP$191,4,FALSE)","v":5352.4970000000003},{"$f":"VLOOKUP($A48,F1__World_Data!$A$4:$DP$191,3,FALSE)","v":5223.5609999999997},{"$f":"VLOOKUP($A48,F1__World_Data!$A$4:$DP$191,2,FALSE)","v":5099.3680000000004},null,{"$f":"VLOOKUP($A48,F1__World_Data!$A$4:$DP$191,120,FALSE)","v":68.116},{"$f":"VLOOKUP($A48,F1__World_Data!$A$4:$DP$191,119,FALSE)","v":67.850999999999999},{"$f":"VLOOKUP($A48,F1__World_Data!$A$4:$DP$191,118,FALSE)","v":67.576999999999998},{"$f":"VLOOKUP($A48,F1__World_Data!$A$4:$DP$191,117,FALSE)","v":67.290999999999997},{"$f":"VLOOKUP($A48,F1__World_Data!$A$4:$DP$191,116,FALSE)","v":66.995000000000005},{"$f":"VLOOKUP($A48,F1__World_Data!$A$4:$DP$191,115,FALSE)","v":66.69},{"$f":"VLOOKUP($A48,F1__World_Data!$A$4:$DP$191,114,FALSE)","v":66.381},{"$f":"VLOOKUP($A48,F1__World_Data!$A$4:$DP$191,113,FALSE)","v":66.072000000000003},{"$f":"VLOOKUP($A48,F1__World_Data!$A$4:$DP$191,112,FALSE)","v":65.769000000000005},{"$f":"VLOOKUP($A48,F1__World_Data!$A$4:$DP$191,111,FALSE)","v":65.48},{"$f":"VLOOKUP($A48,F1__World_Data!$A$4:$DP$191,110,FALSE)","v":65.207999999999998},{"$f":"VLOOKUP($A48,F1__World_Data!$A$4:$DP$191,109,FALSE)","v":64.953000000000003},{"$f":"VLOOKUP($A48,F1__World_Data!$A$4:$DP$191,108,FALSE)","v":64.712000000000003},{"$f":"VLOOKUP($A48,F1__World_Data!$A$4:$DP$191,107,FALSE)","v":64.477999999999994},{"$f":"VLOOKUP($A48,F1__World_Data!$A$4:$DP$191,106,FALSE)","v":64.242000000000004},{"$f":"VLOOKUP($A48,F1__World_Data!$A$4:$DP$191,105,FALSE)","v":63.994999999999997},{"$f":"VLOOKUP($A48,F1__World_Data!$A$4:$DP$191,104,FALSE)","v":63.731000000000002},{"$f":"VLOOKUP($A48,F1__World_Data!$A$4:$DP$191,103,FALSE)","v":63.445999999999998},{"$f":"VLOOKUP($A48,F1__World_Data!$A$4:$DP$191,102,FALSE)","v":63.143999999999998},{"$f":"VLOOKUP($A48,F1__World_Data!$A$4:$DP$191,101,FALSE)","v":62.829000000000001},{"$f":"VLOOKUP($A48,F1__World_Data!$A$4:$DP$191,100,FALSE)","v":62.509},{"$f":"VLOOKUP($A48,F1__World_Data!$A$4:$DP$191,99,FALSE)","v":62.188000000000002},{"$f":"VLOOKUP($A48,F1__World_Data!$A$4:$DP$191,98,FALSE)","v":61.866},{"$f":"VLOOKUP($A48,F1__World_Data!$A$4:$DP$191,97,FALSE)","v":61.539000000000001},{"$f":"VLOOKUP($A48,F1__World_Data!$A$4:$DP$191,96,FALSE)","v":61.198},{"$f":"VLOOKUP($A48,F1__World_Data!$A$4:$DP$191,95,FALSE)","v":60.837000000000003},{"$f":"VLOOKUP($A48,F1__World_Data!$A$4:$DP$191,94,FALSE)","v":60.454999999999998},{"$f":"VLOOKUP($A48,F1__World_Data!$A$4:$DP$191,93,FALSE)","v":60.052999999999997},{"$f":"VLOOKUP($A48,F1__World_Data!$A$4:$DP$191,92,FALSE)","v":59.636000000000003},{"$f":"VLOOKUP($A48,F1__World_Data!$A$4:$DP$191,91,FALSE)","v":59.209000000000003},{"$f":"VLOOKUP($A48,F1__World_Data!$A$4:$DP$191,90,FALSE)","v":58.783000000000001},{"$f":"VLOOKUP($A48,F1__World_Data!$A$4:$DP$191,89,FALSE)","v":58.366},{"$f":"VLOOKUP($A48,F1__World_Data!$A$4:$DP$191,88,FALSE)","v":57.962000000000003},{"$f":"VLOOKUP($A48,F1__World_Data!$A$4:$DP$191,87,FALSE)","v":57.579000000000001},{"$f":"VLOOKUP($A48,F1__World_Data!$A$4:$DP$191,86,FALSE)","v":57.220999999999997},{"$f":"VLOOKUP($A48,F1__World_Data!$A$4:$DP$191,85,FALSE)","v":56.886000000000003},{"$f":"VLOOKUP($A48,F1__World_Data!$A$4:$DP$191,84,FALSE)","v":56.569000000000003},{"$f":"VLOOKUP($A48,F1__World_Data!$A$4:$DP$191,83,FALSE)","v":56.265999999999998},{"$f":"VLOOKUP($A48,F1__World_Data!$A$4:$DP$191,82,FALSE)","v":55.970999999999997},{"$f":"VLOOKUP($A48,F1__World_Data!$A$4:$DP$191,81,FALSE)","v":55.679000000000002},{"$f":"VLOOKUP($A48,F1__World_Data!$A$4:$DP$191,80,FALSE)","v":55.381999999999998},{"$f":"VLOOKUP($A48,F1__World_Data!$A$4:$DP$191,79,FALSE)","v":55.073999999999998},{"$f":"VLOOKUP($A48,F1__World_Data!$A$4:$DP$191,78,FALSE)","v":54.747999999999998},{"$f":"VLOOKUP($A48,F1__World_Data!$A$4:$DP$191,77,FALSE)","v":54.399000000000001},{"$f":"VLOOKUP($A48,F1__World_Data!$A$4:$DP$191,76,FALSE)","v":54.027000000000001},{"$f":"VLOOKUP($A48,F1__World_Data!$A$4:$DP$191,75,FALSE)","v":53.633000000000003},{"$f":"VLOOKUP($A48,F1__World_Data!$A$4:$DP$191,74,FALSE)","v":53.218000000000004},{"$f":"VLOOKUP($A48,F1__World_Data!$A$4:$DP$191,73,FALSE)","v":52.781999999999996},{"$f":"VLOOKUP($A48,F1__World_Data!$A$4:$DP$191,72,FALSE)","v":52.323},{"$f":"VLOOKUP($A48,F1__World_Data!$A$4:$DP$191,71,FALSE)","v":51.837000000000003},{"$f":"VLOOKUP($A48,F1__World_Data!$A$4:$DP$191,70,FALSE)","v":51.326999999999998},{"$f":"VLOOKUP($A48,F1__World_Data!$A$4:$DP$191,69,FALSE)","v":50.795999999999999},{"$f":"VLOOKUP($A48,F1__World_Data!$A$4:$DP$191,68,FALSE)","v":50.25},{"$f":"VLOOKUP($A48,F1__World_Data!$A$4:$DP$191,67,FALSE)","v":49.697000000000003},{"$f":"VLOOKUP($A48,F1__World_Data!$A$4:$DP$191,66,FALSE)","v":49.145000000000003},{"$f":"VLOOKUP($A48,F1__World_Data!$A$4:$DP$191,65,FALSE)","v":48.600999999999999},{"$f":"VLOOKUP($A48,F1__World_Data!$A$4:$DP$191,64,FALSE)","v":48.070999999999998},{"$f":"VLOOKUP($A48,F1__World_Data!$A$4:$DP$191,63,FALSE)","v":47.557000000000002},{"$f":"VLOOKUP($A48,F1__World_Data!$A$4:$DP$191,62,FALSE)","v":47.061}]
["Cameroon",{"$f":"VLOOKUP($A49,F1__World_Data!$A$4:$DP$191,60,FALSE)","v":25216.260999999999},{"$f":"VLOOKUP($A49,F1__World_Data!$A$4:$DP$191,59,FALSE)","v":24566.07},{"$f":"VLOOKUP($A49,F1__World_Data!$A$4:$DP$191,58,FALSE)","v":23926.548999999999},{"$f":"VLOOKUP($A49,F1__World_Data!$A$4:$DP$191,57,FALSE)","v":23298.376},{"$f":"VLOOKUP($A49,F1__World_Data!$A$4:$DP$191,56,FALSE)","v":22681.852999999999},{"$f":"VLOOKUP($A49,F1__World_Data!$A$4:$DP$191,55,FALSE)","v":22077.3},{"$f":"VLOOKUP($A49,F1__World_Data!$A$4:$DP$191,54,FALSE)","v":21485.267},{"$f":"VLOOKUP($A49,F1__World_Data!$A$4:$DP$191,53,FALSE)","v":20906.392},{"$f":"VLOOKUP($A49,F1__World_Data!$A$4:$DP$191,52,FALSE)","v":20341.236000000001},{"$f":"VLOOKUP($A49,F1__World_Data!$A$4:$DP$191,51,FALSE)","v":19789.921999999999},{"$f":"VLOOKUP($A49,F1__World_Data!$A$4:$DP$191,50,FALSE)","v":19252.673999999999},{"$f":"VLOOKUP($A49,F1__World_Data!$A$4:$DP$191,49,FALSE)","v":18730.282999999999},{"$f":"VLOOKUP($A49,F1__World_Data!$A$4:$DP$191,48,FALSE)","v":18223.677},{"$f":"VLOOKUP($A49,F1__World_Data!$A$4:$DP$191,47,FALSE)","v":17733.407999999999},{"$f":"VLOOKUP($A49,F1__World_Data!$A$4:$DP$191,46,FALSE)","v":17259.322},{"$f":"VLOOKUP($A49,F1__World_Data!$A$4:$DP$191,45,FALSE)","v":16800.868999999999},{"$f":"VLOOKUP($A49,F1__World_Data!$A$4:$DP$191,44,FALSE)","v":16357.605},{"$f":"VLOOKUP($A49,F1__World_Data!$A$4:$DP$191,43,FALSE)","v":15928.91},{"$f":"VLOOKUP($A49,F1__World_Data!$A$4:$DP$191,42,FALSE)","v":15513.944},{"$f":"VLOOKUP($A49,F1__World_Data!$A$4:$DP$191,41,FALSE)","v":15112.598},{"$f":"VLOOKUP($A49,F1__World_Data!$A$4:$DP$191,40,FALSE)","v":14723.772000000001},{"$f":"VLOOKUP($A49,F1__World_Data!$A$4:$DP$191,39,FALSE)","v":14344.444},{"$f":"VLOOKUP($A49,F1__World_Data!$A$4:$DP$191,38,FALSE)","v":13970.812},{"$f":"VLOOKUP($A49,F1__World_Data!$A$4:$DP$191,37,FALSE)","v":13599.984},{"$f":"VLOOKUP($A49,F1__World_Data!$A$4:$DP$191,36,FALSE)","v":13230.977999999999},{"$f":"VLOOKUP($A49,F1__World_Data!$A$4:$DP$191,35,FALSE)","v":12864.091},{"$f":"VLOOKUP($A49,F1__World_Data!$A$4:$DP$191,34,FALSE)","v":12499.499},{"$f":"VLOOKUP($A49,F1__World_Data!$A$4:$DP$191,33,FALSE)","v":12137.912},{"$f":"VLOOKUP($A49,F1__World_Data!$A$4:$DP$191,32,FALSE)","v":11780.085999999999},{"$f":"VLOOKUP($A49,F1__World_Data!$A$4:$DP$191,31,FALSE)","v":11425.807000000001},{"$f":"VLOOKUP($A49,F1__World_Data!$A$4:$DP$191,30,FALSE)","v":11075.423000000001},{"$f":"VLOOKUP($A49,F1__World_Data!$A$4:$DP$191,29,FALSE)","v":10731.058000000001},{"$f":"VLOOKUP($A49,F1__World_Data!$A$4:$DP$191,28,FALSE)","v":10395.481},{"$f":"VLOOKUP($A49,F1__World_Data!$A$4:$DP$191,27,FALSE)","v":10070.806},{"$f":"VLOOKUP($A49,F1__World_Data!$A$4:$DP$191,26,FALSE)","v":9757.8490000000002},{"$f":"VLOOKUP($A49,F1__World_Data!$A$4:$DP$191,25,FALSE)","v":9456.4959999999992},{"$f":"VLOOKUP($A49,F1__World_Data!$A$4:$DP$191,24,FALSE)","v":9166.8130000000001},{"$f":"VLOOKUP($A49,F1__World_Data!$A$4:$DP$191,23,FALSE)","v":8888.5339999999997},{"$f":"VLOOKUP($A49,F1__World_Data!$A$4:$DP$191,22,FALSE)","v":8621.4089999999997},{"$f":"VLOOKUP($A49,F1__World_Data!$A$4:$DP$191,21,FALSE)","v":8365.56},{"$f":"VLOOKUP($A49,F1__World_Data!$A$4:$DP$191,20,FALSE)","v":8121.0810000000001},{"$f":"VLOOKUP($A49,F1__World_Data!$A$4:$DP$191,19,FALSE)","v":7887.5709999999999},{"$f":"VLOOKUP($A49,F1__World_Data!$A$4:$DP$191,18,FALSE)","v":7664.3980000000001},{"$f":"VLOOKUP($A49,F1__World_Data!$A$4:$DP$191,17,FALSE)","v":7451.0569999999998},{"$f":"VLOOKUP($A49,F1__World_Data!$A$4:$DP$191,16,FALSE)","v":7247.2839999999997},{"$f":"VLOOKUP($A49,F1__World_Data!$A$4:$DP$191,15,FALSE)","v":7052.8469999999998},{"$f":"VLOOKUP($A49,F1__World_Data!$A$4:$DP$191,14,FALSE)","v":6867.17},{"$f":"VLOOKUP($A49,F1__World_Data!$A$4:$DP$191,13,FALSE)","v":6689.6589999999997},{"$f":"VLOOKUP($A49,F1__World_Data!$A$4:$DP$191,12,FALSE)","v":6519.7539999999999},{"$f":"VLOOKUP($A49,F1__World_Data!$A$4:$DP$191,11,FALSE)","v":6357.0959999999995},{"$f":"VLOOKUP($A49,F1__World_Data!$A$4:$DP$191,10,FALSE)","v":6201.41},{"$f":"VLOOKUP($A49,F1__World_Data!$A$4:$DP$191,9,FALSE)","v":6052.4189999999999},{"$f":"VLOOKUP($A49,F1__World_Data!$A$4:$DP$191,8,FALSE)","v":5909.8739999999998},{"$f":"VLOOKUP($A49,F1__World_Data!$A$4:$DP$191,7,FALSE)","v":5773.5379999999996},{"$f":"VLOOKUP($A49,F1__World_Data!$A$4:$DP$191,6,FALSE)","v":5643.0389999999998},{"$f":"VLOOKUP($A49,F1__World_Data!$A$4:$DP$191,5,FALSE)","v":5518.1040000000003},{"$f":"VLOOKUP($A49,F1__World_Data!$A$4:$DP$191,4,FALSE)","v":5398.73},{"$f":"VLOOKUP($A49,F1__World_Data!$A$4:$DP$191,3,FALSE)","v":5285.0150000000003},{"$f":"VLOOKUP($A49,F1__World_Data!$A$4:$DP$191,2,FALSE)","v":5176.92},null,{"$f":"VLOOKUP($A49,F1__World_Data!$A$4:$DP$191,120,FALSE)","v":69.275000000000006},{"$f":"VLOOKUP($A49,F1__World_Data!$A$4:$DP$191,119,FALSE)","v":68.811999999999998},{"$f":"VLOOKUP($A49,F1__World_Data!$A$4:$DP$191,118,FALSE)","v":68.177999999999997},{"$f":"VLOOKUP($A49,F1__World_Data!$A$4:$DP$191,117,FALSE)","v":67.337999999999994},{"$f":"VLOOKUP($A49,F1__World_Data!$A$4:$DP$191,116,FALSE)","v":66.265000000000001},{"$f":"VLOOKUP($A49,F1__World_Data!$A$4:$DP$191,115,FALSE)","v":64.975999999999999},{"$f":"VLOOKUP($A49,F1__World_Data!$A$4:$DP$191,114,FALSE)","v":63.511000000000003},{"$f":"VLOOKUP($A49,F1__World_Data!$A$4:$DP$191,113,FALSE)","v":61.91},{"$f":"VLOOKUP($A49,F1__World_Data!$A$4:$DP$191,112,FALSE)","v":60.210999999999999},{"$f":"VLOOKUP($A49,F1__World_Data!$A$4:$DP$191,111,FALSE)","v":58.447000000000003},{"$f":"VLOOKUP($A49,F1__World_Data!$A$4:$DP$191,110,FALSE)","v":56.679000000000002},{"$f":"VLOOKUP($A49,F1__World_Data!$A$4:$DP$191,109,FALSE)","v":54.982999999999997},{"$f":"VLOOKUP($A49,F1__World_Data!$A$4:$DP$191,108,FALSE)","v":53.435000000000002},{"$f":"VLOOKUP($A49,F1__World_Data!$A$4:$DP$191,107,FALSE)","v":52.13},{"$f":"VLOOKUP($A49,F1__World_Data!$A$4:$DP$191,106,FALSE)","v":51.15},{"$f":"VLOOKUP($A49,F1__World_Data!$A$4:$DP$191,105,FALSE)","v":50.518000000000001},{"$f":"VLOOKUP($A49,F1__World_Data!$A$4:$DP$191,104,FALSE)","v":50.231999999999999},{"$f":"VLOOKUP($A49,F1__World_Data!$A$4:$DP$191,103,FALSE)","v":50.280999999999999},{"$f":"VLOOKUP($A49,F1__World_Data!$A$4:$DP$191,102,FALSE)","v":50.628999999999998},{"$f":"VLOOKUP($A49,F1__World_Data!$A$4:$DP$191,101,FALSE)","v":51.213999999999999},{"$f":"VLOOKUP($A49,F1__World_Data!$A$4:$DP$191,100,FALSE)","v":51.947000000000003},{"$f":"VLOOKUP($A49,F1__World_Data!$A$4:$DP$191,99,FALSE)","v":52.749000000000002},{"$f":"VLOOKUP($A49,F1__World_Data!$A$4:$DP$191,98,FALSE)","v":53.572000000000003},{"$f":"VLOOKUP($A49,F1__World_Data!$A$4:$DP$191,97,FALSE)","v":54.41},{"$f":"VLOOKUP($A49,F1__World_Data!$A$4:$DP$191,96,FALSE)","v":55.283999999999999},{"$f":"VLOOKUP($A49,F1__World_Data!$A$4:$DP$191,95,FALSE)","v":56.222000000000001},{"$f":"VLOOKUP($A49,F1__World_Data!$A$4:$DP$191,94,FALSE)","v":57.219000000000001},{"$f":"VLOOKUP($A49,F1__World_Data!$A$4:$DP$191,93,FALSE)","v":58.231999999999999},{"$f":"VLOOKUP($A49,F1__World_Data!$A$4:$DP$191,92,FALSE)","v":59.191000000000003},{"$f":"VLOOKUP($A49,F1__World_Data!$A$4:$DP$191,91,FALSE)","v":60.015999999999998},{"$f":"VLOOKUP($A49,F1__World_Data!$A$4:$DP$191,90,FALSE)","v":60.651000000000003},{"$f":"VLOOKUP($A49,F1__World_Data!$A$4:$DP$191,89,FALSE)","v":61.058999999999997},{"$f":"VLOOKUP($A49,F1__World_Data!$A$4:$DP$191,88,FALSE)","v":61.226999999999997},{"$f":"VLOOKUP($A49,F1__World_Data!$A$4:$DP$191,87,FALSE)","v":61.167000000000002},{"$f":"VLOOKUP($A49,F1__World_Data!$A$4:$DP$191,86,FALSE)","v":60.915999999999997},{"$f":"VLOOKUP($A49,F1__World_Data!$A$4:$DP$191,85,FALSE)","v":60.542999999999999},{"$f":"VLOOKUP($A49,F1__World_Data!$A$4:$DP$191,84,FALSE)","v":60.109000000000002},{"$f":"VLOOKUP($A49,F1__World_Data!$A$4:$DP$191,83,FALSE)","v":59.646999999999998},{"$f":"VLOOKUP($A49,F1__World_Data!$A$4:$DP$191,82,FALSE)","v":59.173999999999999},{"$f":"VLOOKUP($A49,F1__World_Data!$A$4:$DP$191,81,FALSE)","v":58.692},{"$f":"VLOOKUP($A49,F1__World_Data!$A$4:$DP$191,80,FALSE)","v":58.186},{"$f":"VLOOKUP($A49,F1__World_Data!$A$4:$DP$191,79,FALSE)","v":57.649000000000001},{"$f":"VLOOKUP($A49,F1__World_Data!$A$4:$DP$191,78,FALSE)","v":57.091000000000001},{"$f":"VLOOKUP($A49,F1__World_Data!$A$4:$DP$191,77,FALSE)","v":56.524000000000001},{"$f":"VLOOKUP($A49,F1__World_Data!$A$4:$DP$191,76,FALSE)","v":55.957000000000001},{"$f":"VLOOKUP($A49,F1__World_Data!$A$4:$DP$191,75,FALSE)","v":55.398000000000003},{"$f":"VLOOKUP($A49,F1__World_Data!$A$4:$DP$191,74,FALSE)","v":54.853000000000002},{"$f":"VLOOKUP($A49,F1__World_Data!$A$4:$DP$191,73,FALSE)","v":54.326999999999998},{"$f":"VLOOKUP($A49,F1__World_Data!$A$4:$DP$191,72,FALSE)","v":53.823999999999998},{"$f":"VLOOKUP($A49,F1__World_Data!$A$4:$DP$191,71,FALSE)","v":53.345999999999997},{"$f":"VLOOKUP($A49,F1__World_Data!$A$4:$DP$191,70,FALSE)","v":52.884999999999998},{"$f":"VLOOKUP($A49,F1__World_Data!$A$4:$DP$191,69,FALSE)","v":52.435000000000002},{"$f":"VLOOKUP($A49,F1__World_Data!$A$4:$DP$191,68,FALSE)","v":51.991},{"$f":"VLOOKUP($A49,F1__World_Data!$A$4:$DP$191,67,FALSE)","v":51.546999999999997},{"$f":"VLOOKUP($A49,F1__World_Data!$A$4:$DP$191,66,FALSE)","v":51.098999999999997},{"$f":"VLOOKUP($A49,F1__World_Data!$A$4:$DP$191,65,FALSE)","v":50.640999999999998},{"$f":"VLOOKUP($A49,F1__World_Data!$A$4:$DP$191,64,FALSE)","v":50.170999999999999},{"$f":"VLOOKUP($A49,F1__World_Data!$A$4:$DP$191,63,FALSE)","v":49.683999999999997},{"$f":"VLOOKUP($A49,F1__World_Data!$A$4:$DP$191,62,FALSE)","v":49.179000000000002}]
["Australia",{"$f":"VLOOKUP($A50,F1__World_Data!$A$4:$DP$191,60,FALSE)","v":24898.152999999998},{"$f":"VLOOKUP($A50,F1__World_Data!$A$4:$DP$191,59,FALSE)","v":24584.618999999999},{"$f":"VLOOKUP($A50,F1__World_Data!$A$4:$DP$191,58,FALSE)","v":24262.71},{"$f":"VLOOKUP($A50,F1__World_Data!$A$4:$DP$191,57,FALSE)","v":23932.499},{"$f":"VLOOKUP($A50,F1__World_Data!$A$4:$DP$191,56,FALSE)","v":23596.425999999999},{"$f":"VLOOKUP($A50,F1__World_Data!$A$4:$DP$191,55,FALSE)","v":23254.912},{"$f":"VLOOKUP($A50,F1__World_Data!$A$4:$DP$191,54,FALSE)","v":22903.951000000001},{"$f":"VLOOKUP($A50,F1__World_Data!$A$4:$DP$191,53,FALSE)","v":22538.002},{"$f":"VLOOKUP($A50,F1__World_Data!$A$4:$DP$191,52,FALSE)","v":22154.687000000002},{"$f":"VLOOKUP($A50,F1__World_Data!$A$4:$DP$191,51,FALSE)","v":21750.851999999999},{"$f":"VLOOKUP($A50,F1__World_Data!$A$4:$DP$191,50,FALSE)","v":21332.293000000001},{"$f":"VLOOKUP($A50,F1__World_Data!$A$4:$DP$191,49,FALSE)","v":20916.339},{"$f":"VLOOKUP($A50,F1__World_Data!$A$4:$DP$191,48,FALSE)","v":20526.3},{"$f":"VLOOKUP($A50,F1__World_Data!$A$4:$DP$191,47,FALSE)","v":20178.543000000001},{"$f":"VLOOKUP($A50,F1__World_Data!$A$4:$DP$191,46,FALSE)","v":19879.653999999999},{"$f":"VLOOKUP($A50,F1__World_Data!$A$4:$DP$191,45,FALSE)","v":19624.163},{"$f":"VLOOKUP($A50,F1__World_Data!$A$4:$DP$191,44,FALSE)","v":19401.366000000002},{"$f":"VLOOKUP($A50,F1__World_Data!$A$4:$DP$191,43,FALSE)","v":19194.675999999999},{"$f":"VLOOKUP($A50,F1__World_Data!$A$4:$DP$191,42,FALSE)","v":18991.434000000001},{"$f":"VLOOKUP($A50,F1__World_Data!$A$4:$DP$191,41,FALSE)","v":18788.187000000002},{"$f":"VLOOKUP($A50,F1__World_Data!$A$4:$DP$191,40,FALSE)","v":18587.026999999998},{"$f":"VLOOKUP($A50,F1__World_Data!$A$4:$DP$191,39,FALSE)","v":18387.205000000002},{"$f":"VLOOKUP($A50,F1__World_Data!$A$4:$DP$191,38,FALSE)","v":18189.274000000001},{"$f":"VLOOKUP($A50,F1__World_Data!$A$4:$DP$191,37,FALSE)","v":17993.082999999999},{"$f":"VLOOKUP($A50,F1__World_Data!$A$4:$DP$191,36,FALSE)","v":17798.526000000002},{"$f":"VLOOKUP($A50,F1__World_Data!$A$4:$DP$191,35,FALSE)","v":17603.210999999999},{"$f":"VLOOKUP($A50,F1__World_Data!$A$4:$DP$191,34,FALSE)","v":17402.179},{"$f":"VLOOKUP($A50,F1__World_Data!$A$4:$DP$191,33,FALSE)","v":17189.235000000001},{"$f":"VLOOKUP($A50,F1__World_Data!$A$4:$DP$191,32,FALSE)","v":16960.599999999999},{"$f":"VLOOKUP($A50,F1__World_Data!$A$4:$DP$191,31,FALSE)","v":16713.989000000001},{"$f":"VLOOKUP($A50,F1__World_Data!$A$4:$DP$191,30,FALSE)","v":16452.258000000002},{"$f":"VLOOKUP($A50,F1__World_Data!$A$4:$DP$191,29,FALSE)","v":16183.159},{"$f":"VLOOKUP($A50,F1__World_Data!$A$4:$DP$191,28,FALSE)","v":15917.58},{"$f":"VLOOKUP($A50,F1__World_Data!$A$4:$DP$191,27,FALSE)","v":15663.672},{"$f":"VLOOKUP($A50,F1__World_Data!$A$4:$DP$191,26,FALSE)","v":15423.156000000001},{"$f":"VLOOKUP($A50,F1__World_Data!$A$4:$DP$191,25,FALSE)","v":15194.644},{"$f":"VLOOKUP($A50,F1__World_Data!$A$4:$DP$191,24,FALSE)","v":14979.203},{"$f":"VLOOKUP($A50,F1__World_Data!$A$4:$DP$191,23,FALSE)","v":14777.241},{"$f":"VLOOKUP($A50,F1__World_Data!$A$4:$DP$191,22,FALSE)","v":14588.4},{"$f":"VLOOKUP($A50,F1__World_Data!$A$4:$DP$191,21,FALSE)","v":14413.002},{"$f":"VLOOKUP($A50,F1__World_Data!$A$4:$DP$191,20,FALSE)","v":14249.403},{"$f":"VLOOKUP($A50,F1__World_Data!$A$4:$DP$191,19,FALSE)","v":14092.545},{"$f":"VLOOKUP($A50,F1__World_Data!$A$4:$DP$191,18,FALSE)","v":13935.722},{"$f":"VLOOKUP($A50,F1__World_Data!$A$4:$DP$191,17,FALSE)","v":13773.29},{"$f":"VLOOKUP($A50,F1__World_Data!$A$4:$DP$191,16,FALSE)","v":13605.574000000001},{"$f":"VLOOKUP($A50,F1__World_Data!$A$4:$DP$191,15,FALSE)","v":13431.79},{"$f":"VLOOKUP($A50,F1__World_Data!$A$4:$DP$191,14,FALSE)","v":13244.163},{"$f":"VLOOKUP($A50,F1__World_Data!$A$4:$DP$191,13,FALSE)","v":13033.13},{"$f":"VLOOKUP($A50,F1__World_Data!$A$4:$DP$191,12,FALSE)","v":12793.03},{"$f":"VLOOKUP($A50,F1__World_Data!$A$4:$DP$191,11,FALSE)","v":12518.931},{"$f":"VLOOKUP($A50,F1__World_Data!$A$4:$DP$191,10,FALSE)","v":12215.704},{"$f":"VLOOKUP($A50,F1__World_Data!$A$4:$DP$191,9,FALSE)","v":11899.644},{"$f":"VLOOKUP($A50,F1__World_Data!$A$4:$DP$191,8,FALSE)","v":11593.402},{"$f":"VLOOKUP($A50,F1__World_Data!$A$4:$DP$191,7,FALSE)","v":11313.186},{"$f":"VLOOKUP($A50,F1__World_Data!$A$4:$DP$191,6,FALSE)","v":11065.419},{"$f":"VLOOKUP($A50,F1__World_Data!$A$4:$DP$191,5,FALSE)","v":10845.179},{"$f":"VLOOKUP($A50,F1__World_Data!$A$4:$DP$191,4,FALSE)","v":10643.42},{"$f":"VLOOKUP($A50,F1__World_Data!$A$4:$DP$191,3,FALSE)","v":10445.835999999999},{"$f":"VLOOKUP($A50,F1__World_Data!$A$4:$DP$191,2,FALSE)","v":10242.07},null,{"$f":"VLOOKUP($A50,F1__World_Data!$A$4:$DP$191,120,FALSE)","v":82.748780487804893},{"$f":"VLOOKUP($A50,F1__World_Data!$A$4:$DP$191,119,FALSE)","v":82.5},{"$f":"VLOOKUP($A50,F1__World_Data!$A$4:$DP$191,118,FALSE)","v":82.448780487804896},{"$f":"VLOOKUP($A50,F1__World_Data!$A$4:$DP$191,117,FALSE)","v":82.4},{"$f":"VLOOKUP($A50,F1__World_Data!$A$4:$DP$191,116,FALSE)","v":82.3},{"$f":"VLOOKUP($A50,F1__World_Data!$A$4:$DP$191,115,FALSE)","v":82.148780487804885},{"$f":"VLOOKUP($A50,F1__World_Data!$A$4:$DP$191,114,FALSE)","v":82.046341463414635},{"$f":"VLOOKUP($A50,F1__World_Data!$A$4:$DP$191,113,FALSE)","v":81.895121951219508},{"$f":"VLOOKUP($A50,F1__World_Data!$A$4:$DP$191,112,FALSE)","v":81.695121951219534},{"$f":"VLOOKUP($A50,F1__World_Data!$A$4:$DP$191,111,FALSE)","v":81.543902439024407},{"$f":"VLOOKUP($A50,F1__World_Data!$A$4:$DP$191,110,FALSE)","v":81.395121951219522},{"$f":"VLOOKUP($A50,F1__World_Data!$A$4:$DP$191,109,FALSE)","v":81.292682926829272},{"$f":"VLOOKUP($A50,F1__World_Data!$A$4:$DP$191,108,FALSE)","v":81.041463414634151},{"$f":"VLOOKUP($A50,F1__World_Data!$A$4:$DP$191,107,FALSE)","v":80.841463414634148},{"$f":"VLOOKUP($A50,F1__World_Data!$A$4:$DP$191,106,FALSE)","v":80.490243902439033},{"$f":"VLOOKUP($A50,F1__World_Data!$A$4:$DP$191,105,FALSE)","v":80.239024390243912},{"$f":"VLOOKUP($A50,F1__World_Data!$A$4:$DP$191,104,FALSE)","v":79.936585365853674},{"$f":"VLOOKUP($A50,F1__World_Data!$A$4:$DP$191,103,FALSE)","v":79.634146341463421},{"$f":"VLOOKUP($A50,F1__World_Data!$A$4:$DP$191,102,FALSE)","v":79.234146341463429},{"$f":"VLOOKUP($A50,F1__World_Data!$A$4:$DP$191,101,FALSE)","v":78.931707317073176},{"$f":"VLOOKUP($A50,F1__World_Data!$A$4:$DP$191,100,FALSE)","v":78.631707317073179},{"$f":"VLOOKUP($A50,F1__World_Data!$A$4:$DP$191,99,FALSE)","v":78.480487804878052},{"$f":"VLOOKUP($A50,F1__World_Data!$A$4:$DP$191,98,FALSE)","v":78.078048780487819},{"$f":"VLOOKUP($A50,F1__World_Data!$A$4:$DP$191,97,FALSE)","v":77.82926829268294},{"$f":"VLOOKUP($A50,F1__World_Data!$A$4:$DP$191,96,FALSE)","v":77.878048780487816},{"$f":"VLOOKUP($A50,F1__World_Data!$A$4:$DP$191,95,FALSE)","v":77.878048780487816},{"$f":"VLOOKUP($A50,F1__World_Data!$A$4:$DP$191,94,FALSE)","v":77.378048780487816},{"$f":"VLOOKUP($A50,F1__World_Data!$A$4:$DP$191,93,FALSE)","v":77.27560975609758},{"$f":"VLOOKUP($A50,F1__World_Data!$A$4:$DP$191,92,FALSE)","v":76.994634146341468},{"$f":"VLOOKUP($A50,F1__World_Data!$A$4:$DP$191,91,FALSE)","v":76.71365853658537},{"$f":"VLOOKUP($A50,F1__World_Data!$A$4:$DP$191,90,FALSE)","v":76.432682926829287},{"$f":"VLOOKUP($A50,F1__World_Data!$A$4:$DP$191,89,FALSE)","v":76.151707317073175},{"$f":"VLOOKUP($A50,F1__World_Data!$A$4:$DP$191,88,FALSE)","v":75.870731707317091},{"$f":"VLOOKUP($A50,F1__World_Data!$A$4:$DP$191,87,FALSE)","v":75.629268292682937},{"$f":"VLOOKUP($A50,F1__World_Data!$A$4:$DP$191,86,FALSE)","v":75.387804878048797},{"$f":"VLOOKUP($A50,F1__World_Data!$A$4:$DP$191,85,FALSE)","v":75.146341463414643},{"$f":"VLOOKUP($A50,F1__World_Data!$A$4:$DP$191,84,FALSE)","v":74.904878048780503},{"$f":"VLOOKUP($A50,F1__World_Data!$A$4:$DP$191,83,FALSE)","v":74.663414634146349},{"$f":"VLOOKUP($A50,F1__World_Data!$A$4:$DP$191,82,FALSE)","v":74.333658536585361},{"$f":"VLOOKUP($A50,F1__World_Data!$A$4:$DP$191,81,FALSE)","v":74.003902439024415},{"$f":"VLOOKUP($A50,F1__World_Data!$A$4:$DP$191,80,FALSE)","v":73.674146341463413},{"$f":"VLOOKUP($A50,F1__World_Data!$A$4:$DP$191,79,FALSE)","v":73.344390243902438},{"$f":"VLOOKUP($A50,F1__World_Data!$A$4:$DP$191,78,FALSE)","v":73.014634146341479},{"$f":"VLOOKUP($A50,F1__World_Data!$A$4:$DP$191,77,FALSE)","v":72.62536585365855},{"$f":"VLOOKUP($A50,F1__World_Data!$A$4:$DP$191,76,FALSE)","v":72.236097560975622},{"$f":"VLOOKUP($A50,F1__World_Data!$A$4:$DP$191,75,FALSE)","v":71.846829268292694},{"$f":"VLOOKUP($A50,F1__World_Data!$A$4:$DP$191,74,FALSE)","v":71.457560975609766},{"$f":"VLOOKUP($A50,F1__World_Data!$A$4:$DP$191,73,FALSE)","v":71.068292682926838},{"$f":"VLOOKUP($A50,F1__World_Data!$A$4:$DP$191,72,FALSE)","v":71.018536585365865},{"$f":"VLOOKUP($A50,F1__World_Data!$A$4:$DP$191,71,FALSE)","v":70.968780487804878},{"$f":"VLOOKUP($A50,F1__World_Data!$A$4:$DP$191,70,FALSE)","v":70.919024390243919},{"$f":"VLOOKUP($A50,F1__World_Data!$A$4:$DP$191,69,FALSE)","v":70.869268292682932},{"$f":"VLOOKUP($A50,F1__World_Data!$A$4:$DP$191,68,FALSE)","v":70.819512195121959},{"$f":"VLOOKUP($A50,F1__World_Data!$A$4:$DP$191,67,FALSE)","v":70.850243902439033},{"$f":"VLOOKUP($A50,F1__World_Data!$A$4:$DP$191,66,FALSE)","v":70.880975609756106},{"$f":"VLOOKUP($A50,F1__World_Data!$A$4:$DP$191,65,FALSE)","v":70.911707317073194},{"$f":"VLOOKUP($A50,F1__World_Data!$A$4:$DP$191,64,FALSE)","v":70.942439024390254},{"$f":"VLOOKUP($A50,F1__World_Data!$A$4:$DP$191,63,FALSE)","v":70.973170731707327},{"$f":"VLOOKUP($A50,F1__World_Data!$A$4:$DP$191,62,FALSE)","v":70.817073170731717}]
["Niger",{"$f":"VLOOKUP($A51,F1__World_Data!$A$4:$DP$191,60,FALSE)","v":22442.830999999998},{"$f":"VLOOKUP($A51,F1__World_Data!$A$4:$DP$191,59,FALSE)","v":21602.387999999999},{"$f":"VLOOKUP($A51,F1__World_Data!$A$4:$DP$191,58,FALSE)","v":20788.789000000001},{"$f":"VLOOKUP($A51,F1__World_Data!$A$4:$DP$191,57,FALSE)","v":20001.663},{"$f":"VLOOKUP($A51,F1__World_Data!$A$4:$DP$191,56,FALSE)","v":19240.182000000001},{"$f":"VLOOKUP($A51,F1__World_Data!$A$4:$DP$191,55,FALSE)","v":18504.287},{"$f":"VLOOKUP($A51,F1__World_Data!$A$4:$DP$191,54,FALSE)","v":17795.208999999999},{"$f":"VLOOKUP($A51,F1__World_Data!$A$4:$DP$191,53,FALSE)","v":17114.77},{"$f":"VLOOKUP($A51,F1__World_Data!$A$4:$DP$191,52,FALSE)","v":16464.025000000001},{"$f":"VLOOKUP($A51,F1__World_Data!$A$4:$DP$191,51,FALSE)","v":15843.130999999999},{"$f":"VLOOKUP($A51,F1__World_Data!$A$4:$DP$191,50,FALSE)","v":15250.913},{"$f":"VLOOKUP($A51,F1__World_Data!$A$4:$DP$191,49,FALSE)","v":14685.404},{"$f":"VLOOKUP($A51,F1__World_Data!$A$4:$DP$191,48,FALSE)","v":14143.968999999999},{"$f":"VLOOKUP($A51,F1__World_Data!$A$4:$DP$191,47,FALSE)","v":13624.474},{"$f":"VLOOKUP($A51,F1__World_Data!$A$4:$DP$191,46,FALSE)","v":13125.914000000001},{"$f":"VLOOKUP($A51,F1__World_Data!$A$4:$DP$191,45,FALSE)","v":12647.983},{"$f":"VLOOKUP($A51,F1__World_Data!$A$4:$DP$191,44,FALSE)","v":12189.987999999999},{"$f":"VLOOKUP($A51,F1__World_Data!$A$4:$DP$191,43,FALSE)","v":11751.364},{"$f":"VLOOKUP($A51,F1__World_Data!$A$4:$DP$191,42,FALSE)","v":11331.561},{"$f":"VLOOKUP($A51,F1__World_Data!$A$4:$DP$191,41,FALSE)","v":10929.922},{"$f":"VLOOKUP($A51,F1__World_Data!$A$4:$DP$191,40,FALSE)","v":10545.72},{"$f":"VLOOKUP($A51,F1__World_Data!$A$4:$DP$191,39,FALSE)","v":10178.196},{"$f":"VLOOKUP($A51,F1__World_Data!$A$4:$DP$191,38,FALSE)","v":9826.6},{"$f":"VLOOKUP($A51,F1__World_Data!$A$4:$DP$191,37,FALSE)","v":9490.2890000000007},{"$f":"VLOOKUP($A51,F1__World_Data!$A$4:$DP$191,36,FALSE)","v":9168.3160000000007},{"$f":"VLOOKUP($A51,F1__World_Data!$A$4:$DP$191,35,FALSE)","v":8860.2970000000005},{"$f":"VLOOKUP($A51,F1__World_Data!$A$4:$DP$191,34,FALSE)","v":8566.7729999999992},{"$f":"VLOOKUP($A51,F1__World_Data!$A$4:$DP$191,33,FALSE)","v":8288.7389999999996},{"$f":"VLOOKUP($A51,F1__World_Data!$A$4:$DP$191,32,FALSE)","v":8026.5919999999996},{"$f":"VLOOKUP($A51,F1__World_Data!$A$4:$DP$191,31,FALSE)","v":7780.2420000000002},{"$f":"VLOOKUP($A51,F1__World_Data!$A$4:$DP$191,30,FALSE)","v":7548.4290000000001},{"$f":"VLOOKUP($A51,F1__World_Data!$A$4:$DP$191,29,FALSE)","v":7328.9340000000002},{"$f":"VLOOKUP($A51,F1__World_Data!$A$4:$DP$191,28,FALSE)","v":7118.8850000000002},{"$f":"VLOOKUP($A51,F1__World_Data!$A$4:$DP$191,27,FALSE)","v":6915.9939999999997},{"$f":"VLOOKUP($A51,F1__World_Data!$A$4:$DP$191,26,FALSE)","v":6719.31},{"$f":"VLOOKUP($A51,F1__World_Data!$A$4:$DP$191,25,FALSE)","v":6528.6459999999997},{"$f":"VLOOKUP($A51,F1__World_Data!$A$4:$DP$191,24,FALSE)","v":6343.53},{"$f":"VLOOKUP($A51,F1__World_Data!$A$4:$DP$191,23,FALSE)","v":6163.7110000000002},{"$f":"VLOOKUP($A51,F1__World_Data!$A$4:$DP$191,22,FALSE)","v":5989},{"$f":"VLOOKUP($A51,F1__World_Data!$A$4:$DP$191,21,FALSE)","v":5818.7629999999999},{"$f":"VLOOKUP($A51,F1__World_Data!$A$4:$DP$191,20,FALSE)","v":5652.6549999999997},{"$f":"VLOOKUP($A51,F1__World_Data!$A$4:$DP$191,19,FALSE)","v":5491.1580000000004},{"$f":"VLOOKUP($A51,F1__World_Data!$A$4:$DP$191,18,FALSE)","v":5335.0829999999996},{"$f":"VLOOKUP($A51,F1__World_Data!$A$4:$DP$191,17,FALSE)","v":5184.9399999999996},{"$f":"VLOOKUP($A51,F1__World_Data!$A$4:$DP$191,16,FALSE)","v":5040.7950000000001},{"$f":"VLOOKUP($A51,F1__World_Data!$A$4:$DP$191,15,FALSE)","v":4902.1509999999998},{"$f":"VLOOKUP($A51,F1__World_Data!$A$4:$DP$191,14,FALSE)","v":4768.2250000000004},{"$f":"VLOOKUP($A51,F1__World_Data!$A$4:$DP$191,13,FALSE)","v":4637.9840000000004},{"$f":"VLOOKUP($A51,F1__World_Data!$A$4:$DP$191,12,FALSE)","v":4510.6450000000004},{"$f":"VLOOKUP($A51,F1__World_Data!$A$4:$DP$191,11,FALSE)","v":4385.9250000000002},{"$f":"VLOOKUP($A51,F1__World_Data!$A$4:$DP$191,10,FALSE)","v":4263.9250000000002},{"$f":"VLOOKUP($A51,F1__World_Data!$A$4:$DP$191,9,FALSE)","v":4144.5879999999997},{"$f":"VLOOKUP($A51,F1__World_Data!$A$4:$DP$191,8,FALSE)","v":4027.9690000000001},{"$f":"VLOOKUP($A51,F1__World_Data!$A$4:$DP$191,7,FALSE)","v":3914.1179999999999},{"$f":"VLOOKUP($A51,F1__World_Data!$A$4:$DP$191,6,FALSE)","v":3802.8020000000001},{"$f":"VLOOKUP($A51,F1__World_Data!$A$4:$DP$191,5,FALSE)","v":3693.9850000000001},{"$f":"VLOOKUP($A51,F1__World_Data!$A$4:$DP$191,4,FALSE)","v":3588.2280000000001},{"$f":"VLOOKUP($A51,F1__World_Data!$A$4:$DP$191,3,FALSE)","v":3486.3220000000001},{"$f":"VLOOKUP($A51,F1__World_Data!$A$4:$DP$191,2,FALSE)","v":3388.7739999999999},null,{"$f":"VLOOKUP($A51,F1__World_Data!$A$4:$DP$191,120,FALSE)","v":68.116},{"$f":"VLOOKUP($A51,F1__World_Data!$A$4:$DP$191,119,FALSE)","v":67.850999999999999},{"$f":"VLOOKUP($A51,F1__World_Data!$A$4:$DP$191,118,FALSE)","v":67.576999999999998},{"$f":"VLOOKUP($A51,F1__World_Data!$A$4:$DP$191,117,FALSE)","v":67.290999999999997},{"$f":"VLOOKUP($A51,F1__World_Data!$A$4:$DP$191,116,FALSE)","v":66.995000000000005},{"$f":"VLOOKUP($A51,F1__World_Data!$A$4:$DP$191,115,FALSE)","v":66.69},{"$f":"VLOOKUP($A51,F1__World_Data!$A$4:$DP$191,114,FALSE)","v":66.381},{"$f":"VLOOKUP($A51,F1__World_Data!$A$4:$DP$191,113,FALSE)","v":66.072000000000003},{"$f":"VLOOKUP($A51,F1__World_Data!$A$4:$DP$191,112,FALSE)","v":65.769000000000005},{"$f":"VLOOKUP($A51,F1__World_Data!$A$4:$DP$191,111,FALSE)","v":65.48},{"$f":"VLOOKUP($A51,F1__World_Data!$A$4:$DP$191,110,FALSE)","v":65.207999999999998},{"$f":"VLOOKUP($A51,F1__World_Data!$A$4:$DP$191,109,FALSE)","v":64.953000000000003},{"$f":"VLOOKUP($A51,F1__World_Data!$A$4:$DP$191,108,FALSE)","v":64.712000000000003},{"$f":"VLOOKUP($A51,F1__World_Data!$A$4:$DP$191,107,FALSE)","v":64.477999999999994},{"$f":"VLOOKUP($A51,F1__World_Data!$A$4:$DP$191,106,FALSE)","v":64.242000000000004},{"$f":"VLOOKUP($A51,F1__World_Data!$A$4:$DP$191,105,FALSE)","v":63.994999999999997},{"$f":"VLOOKUP($A51,F1__World_Data!$A$4:$DP$191,104,FALSE)","v":63.731000000000002},{"$f":"VLOOKUP($A51,F1__World_Data!$A$4:$DP$191,103,FALSE)","v":63.445999999999998},{"$f":"VLOOKUP($A51,F1__World_Data!$A$4:$DP$191,102,FALSE)","v":63.143999999999998},{"$f":"VLOOKUP($A51,F1__World_Data!$A$4:$DP$191,101,FALSE)","v":62.829000000000001},{"$f":"VLOOKUP($A51,F1__World_Data!$A$4:$DP$191,100,FALSE)","v":62.509},{"$f":"VLOOKUP($A51,F1__World_Data!$A$4:$DP$191,99,FALSE)","v":62.188000000000002},{"$f":"VLOOKUP($A51,F1__World_Data!$A$4:$DP$191,98,FALSE)","v":61.866},{"$f":"VLOOKUP($A51,F1__World_Data!$A$4:$DP$191,97,FALSE)","v":61.539000000000001},{"$f":"VLOOKUP($A51,F1__World_Data!$A$4:$DP$191,96,FALSE)","v":61.198},{"$f":"VLOOKUP($A51,F1__World_Data!$A$4:$DP$191,95,FALSE)","v":60.837000000000003},{"$f":"VLOOKUP($A51,F1__World_Data!$A$4:$DP$191,94,FALSE)","v":60.454999999999998},{"$f":"VLOOKUP($A51,F1__World_Data!$A$4:$DP$191,93,FALSE)","v":60.052999999999997},{"$f":"VLOOKUP($A51,F1__World_Data!$A$4:$DP$191,92,FALSE)","v":59.636000000000003},{"$f":"VLOOKUP($A51,F1__World_Data!$A$4:$DP$191,91,FALSE)","v":59.209000000000003},{"$f":"VLOOKUP($A51,F1__World_Data!$A$4:$DP$191,90,FALSE)","v":58.783000000000001},{"$f":"VLOOKUP($A51,F1__World_Data!$A$4:$DP$191,89,FALSE)","v":58.366},{"$f":"VLOOKUP($A51,F1__World_Data!$A$4:$DP$191,88,FALSE)","v":57.962000000000003},{"$f":"VLOOKUP($A51,F1__World_Data!$A$4:$DP$191,87,FALSE)","v":57.579000000000001},{"$f":"VLOOKUP($A51,F1__World_Data!$A$4:$DP$191,86,FALSE)","v":57.220999999999997},{"$f":"VLOOKUP($A51,F1__World_Data!$A$4:$DP$191,85,FALSE)","v":56.886000000000003},{"$f":"VLOOKUP($A51,F1__World_Data!$A$4:$DP$191,84,FALSE)","v":56.569000000000003},{"$f":"VLOOKUP($A51,F1__World_Data!$A$4:$DP$191,83,FALSE)","v":56.265999999999998},{"$f":"VLOOKUP($A51,F1__World_Data!$A$4:$DP$191,82,FALSE)","v":55.970999999999997},{"$f":"VLOOKUP($A51,F1__World_Data!$A$4:$DP$191,81,FALSE)","v":55.679000000000002},{"$f":"VLOOKUP($A51,F1__World_Data!$A$4:$DP$191,80,FALSE)","v":55.381999999999998},{"$f":"VLOOKUP($A51,F1__World_Data!$A$4:$DP$191,79,FALSE)","v":55.073999999999998},{"$f":"VLOOKUP($A51,F1__World_Data!$A$4:$DP$191,78,FALSE)","v":54.747999999999998},{"$f":"VLOOKUP($A51,F1__World_Data!$A$4:$DP$191,77,FALSE)","v":54.399000000000001},{"$f":"VLOOKUP($A51,F1__World_Data!$A$4:$DP$191,76,FALSE)","v":54.027000000000001},{"$f":"VLOOKUP($A51,F1__World_Data!$A$4:$DP$191,75,FALSE)","v":53.633000000000003},{"$f":"VLOOKUP($A51,F1__World_Data!$A$4:$DP$191,74,FALSE)","v":53.218000000000004},{"$f":"VLOOKUP($A51,F1__World_Data!$A$4:$DP$191,73,FALSE)","v":52.781999999999996},{"$f":"VLOOKUP($A51,F1__World_Data!$A$4:$DP$191,72,FALSE)","v":52.323},{"$f":"VLOOKUP($A51,F1__World_Data!$A$4:$DP$191,71,FALSE)","v":51.837000000000003},{"$f":"VLOOKUP($A51,F1__World_Data!$A$4:$DP$191,70,FALSE)","v":51.326999999999998},{"$f":"VLOOKUP($A51,F1__World_Data!$A$4:$DP$191,69,FALSE)","v":50.795999999999999},{"$f":"VLOOKUP($A51,F1__World_Data!$A$4:$DP$191,68,FALSE)","v":50.25},{"$f":"VLOOKUP($A51,F1__World_Data!$A$4:$DP$191,67,FALSE)","v":49.697000000000003},{"$f":"VLOOKUP($A51,F1__World_Data!$A$4:$DP$191,66,FALSE)","v":49.145000000000003},{"$f":"VLOOKUP($A51,F1__World_Data!$A$4:$DP$191,65,FALSE)","v":48.600999999999999},{"$f":"VLOOKUP($A51,F1__World_Data!$A$4:$DP$191,64,FALSE)","v":48.070999999999998},{"$f":"VLOOKUP($A51,F1__World_Data!$A$4:$DP$191,63,FALSE)","v":47.557000000000002},{"$f":"VLOOKUP($A51,F1__World_Data!$A$4:$DP$191,62,FALSE)","v":47.061}]
["Sri Lanka",{"$f":"VLOOKUP($A52,F1__World_Data!$A$4:$DP$191,60,FALSE)","v":21228.76},{"$f":"VLOOKUP($A52,F1__World_Data!$A$4:$DP$191,59,FALSE)","v":21128.027999999998},{"$f":"VLOOKUP($A52,F1__World_Data!$A$4:$DP$191,58,FALSE)","v":21021.177},{"$f":"VLOOKUP($A52,F1__World_Data!$A$4:$DP$191,57,FALSE)","v":20908.024000000001},{"$f":"VLOOKUP($A52,F1__World_Data!$A$4:$DP$191,56,FALSE)","v":20788.511999999999},{"$f":"VLOOKUP($A52,F1__World_Data!$A$4:$DP$191,55,FALSE)","v":20663.053},{"$f":"VLOOKUP($A52,F1__World_Data!$A$4:$DP$191,54,FALSE)","v":20532.598999999998},{"$f":"VLOOKUP($A52,F1__World_Data!$A$4:$DP$191,53,FALSE)","v":20398.495999999999},{"$f":"VLOOKUP($A52,F1__World_Data!$A$4:$DP$191,52,FALSE)","v":20261.738000000001},{"$f":"VLOOKUP($A52,F1__World_Data!$A$4:$DP$191,51,FALSE)","v":20123.508000000002},{"$f":"VLOOKUP($A52,F1__World_Data!$A$4:$DP$191,50,FALSE)","v":19983.984},{"$f":"VLOOKUP($A52,F1__World_Data!$A$4:$DP$191,49,FALSE)","v":19842.044000000002},{"$f":"VLOOKUP($A52,F1__World_Data!$A$4:$DP$191,48,FALSE)","v":19695.976999999999},{"$f":"VLOOKUP($A52,F1__World_Data!$A$4:$DP$191,47,FALSE)","v":19544.988000000001},{"$f":"VLOOKUP($A52,F1__World_Data!$A$4:$DP$191,46,FALSE)","v":19387.152999999998},{"$f":"VLOOKUP($A52,F1__World_Data!$A$4:$DP$191,45,FALSE)","v":19224.036},{"$f":"VLOOKUP($A52,F1__World_Data!$A$4:$DP$191,44,FALSE)","v":19062.475999999999},{"$f":"VLOOKUP($A52,F1__World_Data!$A$4:$DP$191,43,FALSE)","v":18911.726999999999},{"$f":"VLOOKUP($A52,F1__World_Data!$A$4:$DP$191,42,FALSE)","v":18777.606},{"$f":"VLOOKUP($A52,F1__World_Data!$A$4:$DP$191,41,FALSE)","v":18663.293000000001},{"$f":"VLOOKUP($A52,F1__World_Data!$A$4:$DP$191,40,FALSE)","v":18564.595000000001},{"$f":"VLOOKUP($A52,F1__World_Data!$A$4:$DP$191,39,FALSE)","v":18470.897000000001},{"$f":"VLOOKUP($A52,F1__World_Data!$A$4:$DP$191,38,FALSE)","v":18367.29},{"$f":"VLOOKUP($A52,F1__World_Data!$A$4:$DP$191,37,FALSE)","v":18242.917000000001},{"$f":"VLOOKUP($A52,F1__World_Data!$A$4:$DP$191,36,FALSE)","v":18094.473999999998},{"$f":"VLOOKUP($A52,F1__World_Data!$A$4:$DP$191,35,FALSE)","v":17924.827000000001},{"$f":"VLOOKUP($A52,F1__World_Data!$A$4:$DP$191,34,FALSE)","v":17736.827000000001},{"$f":"VLOOKUP($A52,F1__World_Data!$A$4:$DP$191,33,FALSE)","v":17535.732},{"$f":"VLOOKUP($A52,F1__World_Data!$A$4:$DP$191,32,FALSE)","v":17325.769},{"$f":"VLOOKUP($A52,F1__World_Data!$A$4:$DP$191,31,FALSE)","v":17106.752},{"$f":"VLOOKUP($A52,F1__World_Data!$A$4:$DP$191,30,FALSE)","v":16878.186000000002},{"$f":"VLOOKUP($A52,F1__World_Data!$A$4:$DP$191,29,FALSE)","v":16643.955999999998},{"$f":"VLOOKUP($A52,F1__World_Data!$A$4:$DP$191,28,FALSE)","v":16408.861000000001},{"$f":"VLOOKUP($A52,F1__World_Data!$A$4:$DP$191,27,FALSE)","v":16176.281999999999},{"$f":"VLOOKUP($A52,F1__World_Data!$A$4:$DP$191,26,FALSE)","v":15948.501},{"$f":"VLOOKUP($A52,F1__World_Data!$A$4:$DP$191,25,FALSE)","v":15724.641},{"$f":"VLOOKUP($A52,F1__World_Data!$A$4:$DP$191,24,FALSE)","v":15501.21},{"$f":"VLOOKUP($A52,F1__World_Data!$A$4:$DP$191,23,FALSE)","v":15272.822},{"$f":"VLOOKUP($A52,F1__World_Data!$A$4:$DP$191,22,FALSE)","v":15035.84},{"$f":"VLOOKUP($A52,F1__World_Data!$A$4:$DP$191,21,FALSE)","v":14788.866},{"$f":"VLOOKUP($A52,F1__World_Data!$A$4:$DP$191,20,FALSE)","v":14533.691000000001},{"$f":"VLOOKUP($A52,F1__World_Data!$A$4:$DP$191,19,FALSE)","v":14273.495000000001},{"$f":"VLOOKUP($A52,F1__World_Data!$A$4:$DP$191,18,FALSE)","v":14012.894},{"$f":"VLOOKUP($A52,F1__World_Data!$A$4:$DP$191,17,FALSE)","v":13755.141},{"$f":"VLOOKUP($A52,F1__World_Data!$A$4:$DP$191,16,FALSE)","v":13501.931},{"$f":"VLOOKUP($A52,F1__World_Data!$A$4:$DP$191,15,FALSE)","v":13252.032999999999},{"$f":"VLOOKUP($A52,F1__World_Data!$A$4:$DP$191,14,FALSE)","v":13002.234},{"$f":"VLOOKUP($A52,F1__World_Data!$A$4:$DP$191,13,FALSE)","v":12747.831},{"$f":"VLOOKUP($A52,F1__World_Data!$A$4:$DP$191,12,FALSE)","v":12485.736000000001},{"$f":"VLOOKUP($A52,F1__World_Data!$A$4:$DP$191,11,FALSE)","v":12214.948},{"$f":"VLOOKUP($A52,F1__World_Data!$A$4:$DP$191,10,FALSE)","v":11937.607},{"$f":"VLOOKUP($A52,F1__World_Data!$A$4:$DP$191,9,FALSE)","v":11657.65},{"$f":"VLOOKUP($A52,F1__World_Data!$A$4:$DP$191,8,FALSE)","v":11380.665000000001},{"$f":"VLOOKUP($A52,F1__World_Data!$A$4:$DP$191,7,FALSE)","v":11110.825000000001},{"$f":"VLOOKUP($A52,F1__World_Data!$A$4:$DP$191,6,FALSE)","v":10849.977000000001},{"$f":"VLOOKUP($A52,F1__World_Data!$A$4:$DP$191,5,FALSE)","v":10597.516},{"$f":"VLOOKUP($A52,F1__World_Data!$A$4:$DP$191,4,FALSE)","v":10352.18},{"$f":"VLOOKUP($A52,F1__World_Data!$A$4:$DP$191,3,FALSE)","v":10111.638999999999},{"$f":"VLOOKUP($A52,F1__World_Data!$A$4:$DP$191,2,FALSE)","v":9874.4760000000006},null,{"$f":"VLOOKUP($A52,F1__World_Data!$A$4:$DP$191,120,FALSE)","v":68.116},{"$f":"VLOOKUP($A52,F1__World_Data!$A$4:$DP$191,119,FALSE)","v":67.850999999999999},{"$f":"VLOOKUP($A52,F1__World_Data!$A$4:$DP$191,118,FALSE)","v":67.576999999999998},{"$f":"VLOOKUP($A52,F1__World_Data!$A$4:$DP$191,117,FALSE)","v":67.290999999999997},{"$f":"VLOOKUP($A52,F1__World_Data!$A$4:$DP$191,116,FALSE)","v":66.995000000000005},{"$f":"VLOOKUP($A52,F1__World_Data!$A$4:$DP$191,115,FALSE)","v":66.69},{"$f":"VLOOKUP($A52,F1__World_Data!$A$4:$DP$191,114,FALSE)","v":66.381},{"$f":"VLOOKUP($A52,F1__World_Data!$A$4:$DP$191,113,FALSE)","v":66.072000000000003},{"$f":"VLOOKUP($A52,F1__World_Data!$A$4:$DP$191,112,FALSE)","v":65.769000000000005},{"$f":"VLOOKUP($A52,F1__World_Data!$A$4:$DP$191,111,FALSE)","v":65.48},{"$f":"VLOOKUP($A52,F1__World_Data!$A$4:$DP$191,110,FALSE)","v":65.207999999999998},{"$f":"VLOOKUP($A52,F1__World_Data!$A$4:$DP$191,109,FALSE)","v":64.953000000000003},{"$f":"VLOOKUP($A52,F1__World_Data!$A$4:$DP$191,108,FALSE)","v":64.712000000000003},{"$f":"VLOOKUP($A52,F1__World_Data!$A$4:$DP$191,107,FALSE)","v":64.477999999999994},{"$f":"VLOOKUP($A52,F1__World_Data!$A$4:$DP$191,106,FALSE)","v":64.242000000000004},{"$f":"VLOOKUP($A52,F1__World_Data!$A$4:$DP$191,105,FALSE)","v":63.994999999999997},{"$f":"VLOOKUP($A52,F1__World_Data!$A$4:$DP$191,104,FALSE)","v":63.731000000000002},{"$f":"VLOOKUP($A52,F1__World_Data!$A$4:$DP$191,103,FALSE)","v":63.445999999999998},{"$f":"VLOOKUP($A52,F1__World_Data!$A$4:$DP$191,102,FALSE)","v":63.143999999999998},{"$f":"VLOOKUP($A52,F1__World_Data!$A$4:$DP$191,101,FALSE)","v":62.829000000000001},{"$f":"VLOOKUP($A52,F1__World_Data!$A$4:$DP$191,100,FALSE)","v":62.509},{"$f":"VLOOKUP($A52,F1__World_Data!$A$4:$DP$191,99,FALSE)","v":62.188000000000002},{"$f":"VLOOKUP($A52,F1__World_Data!$A$4:$DP$191,98,FALSE)","v":61.866},{"$f":"VLOOKUP($A52,F1__World_Data!$A$4:$DP$191,97,FALSE)","v":61.539000000000001},{"$f":"VLOOKUP($A52,F1__World_Data!$A$4:$DP$191,96,FALSE)","v":61.198},{"$f":"VLOOKUP($A52,F1__World_Data!$A$4:$DP$191,95,FALSE)","v":60.837000000000003},{"$f":"VLOOKUP($A52,F1__World_Data!$A$4:$DP$191,94,FALSE)","v":60.454999999999998},{"$f":"VLOOKUP($A52,F1__World_Data!$A$4:$DP$191,93,FALSE)","v":60.052999999999997},{"$f":"VLOOKUP($A52,F1__World_Data!$A$4:$DP$191,92,FALSE)","v":59.636000000000003},{"$f":"VLOOKUP($A52,F1__World_Data!$A$4:$DP$191,91,FALSE)","v":59.209000000000003},{"$f":"VLOOKUP($A52,F1__World_Data!$A$4:$DP$191,90,FALSE)","v":58.783000000000001},{"$f":"VLOOKUP($A52,F1__World_Data!$A$4:$DP$191,89,FALSE)","v":58.366},{"$f":"VLOOKUP($A52,F1__World_Data!$A$4:$DP$191,88,FALSE)","v":57.962000000000003},{"$f":"VLOOKUP($A52,F1__World_Data!$A$4:$DP$191,87,FALSE)","v":57.579000000000001},{"$f":"VLOOKUP($A52,F1__World_Data!$A$4:$DP$191,86,FALSE)","v":57.220999999999997},{"$f":"VLOOKUP($A52,F1__World_Data!$A$4:$DP$191,85,FALSE)","v":56.886000000000003},{"$f":"VLOOKUP($A52,F1__World_Data!$A$4:$DP$191,84,FALSE)","v":56.569000000000003},{"$f":"VLOOKUP($A52,F1__World_Data!$A$4:$DP$191,83,FALSE)","v":56.265999999999998},{"$f":"VLOOKUP($A52,F1__World_Data!$A$4:$DP$191,82,FALSE)","v":55.970999999999997},{"$f":"VLOOKUP($A52,F1__World_Data!$A$4:$DP$191,81,FALSE)","v":55.679000000000002},{"$f":"VLOOKUP($A52,F1__World_Data!$A$4:$DP$191,80,FALSE)","v":55.381999999999998},{"$f":"VLOOKUP($A52,F1__World_Data!$A$4:$DP$191,79,FALSE)","v":55.073999999999998},{"$f":"VLOOKUP($A52,F1__World_Data!$A$4:$DP$191,78,FALSE)","v":54.747999999999998},{"$f":"VLOOKUP($A52,F1__World_Data!$A$4:$DP$191,77,FALSE)","v":54.399000000000001},{"$f":"VLOOKUP($A52,F1__World_Data!$A$4:$DP$191,76,FALSE)","v":54.027000000000001},{"$f":"VLOOKUP($A52,F1__World_Data!$A$4:$DP$191,75,FALSE)","v":53.633000000000003},{"$f":"VLOOKUP($A52,F1__World_Data!$A$4:$DP$191,74,FALSE)","v":53.218000000000004},{"$f":"VLOOKUP($A52,F1__World_Data!$A$4:$DP$191,73,FALSE)","v":52.781999999999996},{"$f":"VLOOKUP($A52,F1__World_Data!$A$4:$DP$191,72,FALSE)","v":52.323},{"$f":"VLOOKUP($A52,F1__World_Data!$A$4:$DP$191,71,FALSE)","v":51.837000000000003},{"$f":"VLOOKUP($A52,F1__World_Data!$A$4:$DP$191,70,FALSE)","v":51.326999999999998},{"$f":"VLOOKUP($A52,F1__World_Data!$A$4:$DP$191,69,FALSE)","v":50.795999999999999},{"$f":"VLOOKUP($A52,F1__World_Data!$A$4:$DP$191,68,FALSE)","v":50.25},{"$f":"VLOOKUP($A52,F1__World_Data!$A$4:$DP$191,67,FALSE)","v":49.697000000000003},{"$f":"VLOOKUP($A52,F1__World_Data!$A$4:$DP$191,66,FALSE)","v":49.145000000000003},{"$f":"VLOOKUP($A52,F1__World_Data!$A$4:$DP$191,65,FALSE)","v":48.600999999999999},{"$f":"VLOOKUP($A52,F1__World_Data!$A$4:$DP$191,64,FALSE)","v":48.070999999999998},{"$f":"VLOOKUP($A52,F1__World_Data!$A$4:$DP$191,63,FALSE)","v":47.557000000000002},{"$f":"VLOOKUP($A52,F1__World_Data!$A$4:$DP$191,62,FALSE)","v":47.061}]
["Burkina Faso",{"$f":"VLOOKUP($A53,F1__World_Data!$A$4:$DP$191,60,FALSE)","v":19751.466},{"$f":"VLOOKUP($A53,F1__World_Data!$A$4:$DP$191,59,FALSE)","v":19193.236000000001},{"$f":"VLOOKUP($A53,F1__World_Data!$A$4:$DP$191,58,FALSE)","v":18646.349999999999},{"$f":"VLOOKUP($A53,F1__World_Data!$A$4:$DP$191,57,FALSE)","v":18110.616000000002},{"$f":"VLOOKUP($A53,F1__World_Data!$A$4:$DP$191,56,FALSE)","v":17586.028999999999},{"$f":"VLOOKUP($A53,F1__World_Data!$A$4:$DP$191,55,FALSE)","v":17072.791000000001},{"$f":"VLOOKUP($A53,F1__World_Data!$A$4:$DP$191,54,FALSE)","v":16571.252},{"$f":"VLOOKUP($A53,F1__World_Data!$A$4:$DP$191,53,FALSE)","v":16081.915000000001},{"$f":"VLOOKUP($A53,F1__World_Data!$A$4:$DP$191,52,FALSE)","v":15605.210999999999},{"$f":"VLOOKUP($A53,F1__World_Data!$A$4:$DP$191,51,FALSE)","v":15141.098},{"$f":"VLOOKUP($A53,F1__World_Data!$A$4:$DP$191,50,FALSE)","v":14689.725},{"$f":"VLOOKUP($A53,F1__World_Data!$A$4:$DP$191,49,FALSE)","v":14252.029},{"$f":"VLOOKUP($A53,F1__World_Data!$A$4:$DP$191,48,FALSE)","v":13829.173000000001},{"$f":"VLOOKUP($A53,F1__World_Data!$A$4:$DP$191,47,FALSE)","v":13421.934999999999},{"$f":"VLOOKUP($A53,F1__World_Data!$A$4:$DP$191,46,FALSE)","v":13030.575999999999},{"$f":"VLOOKUP($A53,F1__World_Data!$A$4:$DP$191,45,FALSE)","v":12654.624},{"$f":"VLOOKUP($A53,F1__World_Data!$A$4:$DP$191,44,FALSE)","v":12293.097},{"$f":"VLOOKUP($A53,F1__World_Data!$A$4:$DP$191,43,FALSE)","v":11944.589},{"$f":"VLOOKUP($A53,F1__World_Data!$A$4:$DP$191,42,FALSE)","v":11607.950999999999},{"$f":"VLOOKUP($A53,F1__World_Data!$A$4:$DP$191,41,FALSE)","v":11282.696},{"$f":"VLOOKUP($A53,F1__World_Data!$A$4:$DP$191,40,FALSE)","v":10968.722},{"$f":"VLOOKUP($A53,F1__World_Data!$A$4:$DP$191,39,FALSE)","v":10665.552},{"$f":"VLOOKUP($A53,F1__World_Data!$A$4:$DP$191,38,FALSE)","v":10372.734},{"$f":"VLOOKUP($A53,F1__World_Data!$A$4:$DP$191,37,FALSE)","v":10089.879999999999},{"$f":"VLOOKUP($A53,F1__World_Data!$A$4:$DP$191,36,FALSE)","v":9816.5840000000007},{"$f":"VLOOKUP($A53,F1__World_Data!$A$4:$DP$191,35,FALSE)","v":9552.473},{"$f":"VLOOKUP($A53,F1__World_Data!$A$4:$DP$191,34,FALSE)","v":9297.11},{"$f":"VLOOKUP($A53,F1__World_Data!$A$4:$DP$191,33,FALSE)","v":9050.0859999999993},{"$f":"VLOOKUP($A53,F1__World_Data!$A$4:$DP$191,32,FALSE)","v":8811.0329999999994},{"$f":"VLOOKUP($A53,F1__World_Data!$A$4:$DP$191,31,FALSE)","v":8579.8179999999993},{"$f":"VLOOKUP($A53,F1__World_Data!$A$4:$DP$191,30,FALSE)","v":8356.3130000000001},{"$f":"VLOOKUP($A53,F1__World_Data!$A$4:$DP$191,29,FALSE)","v":8140.08},{"$f":"VLOOKUP($A53,F1__World_Data!$A$4:$DP$191,28,FALSE)","v":7930.6890000000003},{"$f":"VLOOKUP($A53,F1__World_Data!$A$4:$DP$191,27,FALSE)","v":7727.9080000000004},{"$f":"VLOOKUP($A53,F1__World_Data!$A$4:$DP$191,26,FALSE)","v":7531.2389999999996},{"$f":"VLOOKUP($A53,F1__World_Data!$A$4:$DP$191,25,FALSE)","v":7340.91},{"$f":"VLOOKUP($A53,F1__World_Data!$A$4:$DP$191,24,FALSE)","v":7158.259},{"$f":"VLOOKUP($A53,F1__World_Data!$A$4:$DP$191,23,FALSE)","v":6985.1660000000002},{"$f":"VLOOKUP($A53,F1__World_Data!$A$4:$DP$191,22,FALSE)","v":6822.8370000000004},{"$f":"VLOOKUP($A53,F1__World_Data!$A$4:$DP$191,21,FALSE)","v":6671.6559999999999},{"$f":"VLOOKUP($A53,F1__World_Data!$A$4:$DP$191,20,FALSE)","v":6530.82},{"$f":"VLOOKUP($A53,F1__World_Data!$A$4:$DP$191,19,FALSE)","v":6398.933},{"$f":"VLOOKUP($A53,F1__World_Data!$A$4:$DP$191,18,FALSE)","v":6274.0320000000002},{"$f":"VLOOKUP($A53,F1__World_Data!$A$4:$DP$191,17,FALSE)","v":6154.5540000000001},{"$f":"VLOOKUP($A53,F1__World_Data!$A$4:$DP$191,16,FALSE)","v":6040.0450000000001},{"$f":"VLOOKUP($A53,F1__World_Data!$A$4:$DP$191,15,FALSE)","v":5930.4930000000004},{"$f":"VLOOKUP($A53,F1__World_Data!$A$4:$DP$191,14,FALSE)","v":5825.174},{"$f":"VLOOKUP($A53,F1__World_Data!$A$4:$DP$191,13,FALSE)","v":5723.3779999999997},{"$f":"VLOOKUP($A53,F1__World_Data!$A$4:$DP$191,12,FALSE)","v":5624.5919999999996},{"$f":"VLOOKUP($A53,F1__World_Data!$A$4:$DP$191,11,FALSE)","v":5528.1719999999996},{"$f":"VLOOKUP($A53,F1__World_Data!$A$4:$DP$191,10,FALSE)","v":5434.0460000000003},{"$f":"VLOOKUP($A53,F1__World_Data!$A$4:$DP$191,9,FALSE)","v":5343.0249999999996},{"$f":"VLOOKUP($A53,F1__World_Data!$A$4:$DP$191,8,FALSE)","v":5256.36},{"$f":"VLOOKUP($A53,F1__World_Data!$A$4:$DP$191,7,FALSE)","v":5174.8739999999998},{"$f":"VLOOKUP($A53,F1__World_Data!$A$4:$DP$191,6,FALSE)","v":5098.8909999999996},{"$f":"VLOOKUP($A53,F1__World_Data!$A$4:$DP$191,5,FALSE)","v":5027.8109999999997},{"$f":"VLOOKUP($A53,F1__World_Data!$A$4:$DP$191,4,FALSE)","v":4960.3280000000004},{"$f":"VLOOKUP($A53,F1__World_Data!$A$4:$DP$191,3,FALSE)","v":4894.58},{"$f":"VLOOKUP($A53,F1__World_Data!$A$4:$DP$191,2,FALSE)","v":4829.2889999999998},null,{"$f":"VLOOKUP($A53,F1__World_Data!$A$4:$DP$191,120,FALSE)","v":69.275000000000006},{"$f":"VLOOKUP($A53,F1__World_Data!$A$4:$DP$191,119,FALSE)","v":68.811999999999998},{"$f":"VLOOKUP($A53,F1__World_Data!$A$4:$DP$191,118,FALSE)","v":68.177999999999997},{"$f":"VLOOKUP($A53,F1__World_Data!$A$4:$DP$191,117,FALSE)","v":67.337999999999994},{"$f":"VLOOKUP($A53,F1__World_Data!$A$4:$DP$191,116,FALSE)","v":66.265000000000001},{"$f":"VLOOKUP($A53,F1__World_Data!$A$4:$DP$191,115,FALSE)","v":64.975999999999999},{"$f":"VLOOKUP($A53,F1__World_Data!$A$4:$DP$191,114,FALSE)","v":63.511000000000003},{"$f":"VLOOKUP($A53,F1__World_Data!$A$4:$DP$191,113,FALSE)","v":61.91},{"$f":"VLOOKUP($A53,F1__World_Data!$A$4:$DP$191,112,FALSE)","v":60.210999999999999},{"$f":"VLOOKUP($A53,F1__World_Data!$A$4:$DP$191,111,FALSE)","v":58.447000000000003},{"$f":"VLOOKUP($A53,F1__World_Data!$A$4:$DP$191,110,FALSE)","v":56.679000000000002},{"$f":"VLOOKUP($A53,F1__World_Data!$A$4:$DP$191,109,FALSE)","v":54.982999999999997},{"$f":"VLOOKUP($A53,F1__World_Data!$A$4:$DP$191,108,FALSE)","v":53.435000000000002},{"$f":"VLOOKUP($A53,F1__World_Data!$A$4:$DP$191,107,FALSE)","v":52.13},{"$f":"VLOOKUP($A53,F1__World_Data!$A$4:$DP$191,106,FALSE)","v":51.15},{"$f":"VLOOKUP($A53,F1__World_Data!$A$4:$DP$191,105,FALSE)","v":50.518000000000001},{"$f":"VLOOKUP($A53,F1__World_Data!$A$4:$DP$191,104,FALSE)","v":50.231999999999999},{"$f":"VLOOKUP($A53,F1__World_Data!$A$4:$DP$191,103,FALSE)","v":50.280999999999999},{"$f":"VLOOKUP($A53,F1__World_Data!$A$4:$DP$191,102,FALSE)","v":50.628999999999998},{"$f":"VLOOKUP($A53,F1__World_Data!$A$4:$DP$191,101,FALSE)","v":51.213999999999999},{"$f":"VLOOKUP($A53,F1__World_Data!$A$4:$DP$191,100,FALSE)","v":51.947000000000003},{"$f":"VLOOKUP($A53,F1__World_Data!$A$4:$DP$191,99,FALSE)","v":52.749000000000002},{"$f":"VLOOKUP($A53,F1__World_Data!$A$4:$DP$191,98,FALSE)","v":53.572000000000003},{"$f":"VLOOKUP($A53,F1__World_Data!$A$4:$DP$191,97,FALSE)","v":54.41},{"$f":"VLOOKUP($A53,F1__World_Data!$A$4:$DP$191,96,FALSE)","v":55.283999999999999},{"$f":"VLOOKUP($A53,F1__World_Data!$A$4:$DP$191,95,FALSE)","v":56.222000000000001},{"$f":"VLOOKUP($A53,F1__World_Data!$A$4:$DP$191,94,FALSE)","v":57.219000000000001},{"$f":"VLOOKUP($A53,F1__World_Data!$A$4:$DP$191,93,FALSE)","v":58.231999999999999},{"$f":"VLOOKUP($A53,F1__World_Data!$A$4:$DP$191,92,FALSE)","v":59.191000000000003},{"$f":"VLOOKUP($A53,F1__World_Data!$A$4:$DP$191,91,FALSE)","v":60.015999999999998},{"$f":"VLOOKUP($A53,F1__World_Data!$A$4:$DP$191,90,FALSE)","v":60.651000000000003},{"$f":"VLOOKUP($A53,F1__World_Data!$A$4:$DP$191,89,FALSE)","v":61.058999999999997},{"$f":"VLOOKUP($A53,F1__World_Data!$A$4:$DP$191,88,FALSE)","v":61.226999999999997},{"$f":"VLOOKUP($A53,F1__World_Data!$A$4:$DP$191,87,FALSE)","v":61.167000000000002},{"$f":"VLOOKUP($A53,F1__World_Data!$A$4:$DP$191,86,FALSE)","v":60.915999999999997},{"$f":"VLOOKUP($A53,F1__World_Data!$A$4:$DP$191,85,FALSE)","v":60.542999999999999},{"$f":"VLOOKUP($A53,F1__World_Data!$A$4:$DP$191,84,FALSE)","v":60.109000000000002},{"$f":"VLOOKUP($A53,F1__World_Data!$A$4:$DP$191,83,FALSE)","v":59.646999999999998},{"$f":"VLOOKUP($A53,F1__World_Data!$A$4:$DP$191,82,FALSE)","v":59.173999999999999},{"$f":"VLOOKUP($A53,F1__World_Data!$A$4:$DP$191,81,FALSE)","v":58.692},{"$f":"VLOOKUP($A53,F1__World_Data!$A$4:$DP$191,80,FALSE)","v":58.186},{"$f":"VLOOKUP($A53,F1__World_Data!$A$4:$DP$191,79,FALSE)","v":57.649000000000001},{"$f":"VLOOKUP($A53,F1__World_Data!$A$4:$DP$191,78,FALSE)","v":57.091000000000001},{"$f":"VLOOKUP($A53,F1__World_Data!$A$4:$DP$191,77,FALSE)","v":56.524000000000001},{"$f":"VLOOKUP($A53,F1__World_Data!$A$4:$DP$191,76,FALSE)","v":55.957000000000001},{"$f":"VLOOKUP($A53,F1__World_Data!$A$4:$DP$191,75,FALSE)","v":55.398000000000003},{"$f":"VLOOKUP($A53,F1__World_Data!$A$4:$DP$191,74,FALSE)","v":54.853000000000002},{"$f":"VLOOKUP($A53,F1__World_Data!$A$4:$DP$191,73,FALSE)","v":54.326999999999998},{"$f":"VLOOKUP($A53,F1__World_Data!$A$4:$DP$191,72,FALSE)","v":53.823999999999998},{"$f":"VLOOKUP($A53,F1__World_Data!$A$4:$DP$191,71,FALSE)","v":53.345999999999997},{"$f":"VLOOKUP($A53,F1__World_Data!$A$4:$DP$191,70,FALSE)","v":52.884999999999998},{"$f":"VLOOKUP($A53,F1__World_Data!$A$4:$DP$191,69,FALSE)","v":52.435000000000002},{"$f":"VLOOKUP($A53,F1__World_Data!$A$4:$DP$191,68,FALSE)","v":51.991},{"$f":"VLOOKUP($A53,F1__World_Data!$A$4:$DP$191,67,FALSE)","v":51.546999999999997},{"$f":"VLOOKUP($A53,F1__World_Data!$A$4:$DP$191,66,FALSE)","v":51.098999999999997},{"$f":"VLOOKUP($A53,F1__World_Data!$A$4:$DP$191,65,FALSE)","v":50.640999999999998},{"$f":"VLOOKUP($A53,F1__World_Data!$A$4:$DP$191,64,FALSE)","v":50.170999999999999},{"$f":"VLOOKUP($A53,F1__World_Data!$A$4:$DP$191,63,FALSE)","v":49.683999999999997},{"$f":"VLOOKUP($A53,F1__World_Data!$A$4:$DP$191,62,FALSE)","v":49.179000000000002}]
["Romania",{"$f":"VLOOKUP($A54,F1__World_Data!$A$4:$DP$191,60,FALSE)","v":19506.11},{"$f":"VLOOKUP($A54,F1__World_Data!$A$4:$DP$191,59,FALSE)","v":19653.966},{"$f":"VLOOKUP($A54,F1__World_Data!$A$4:$DP$191,58,FALSE)","v":19796.28},{"$f":"VLOOKUP($A54,F1__World_Data!$A$4:$DP$191,57,FALSE)","v":19925.182000000001},{"$f":"VLOOKUP($A54,F1__World_Data!$A$4:$DP$191,56,FALSE)","v":20035.928},{"$f":"VLOOKUP($A54,F1__World_Data!$A$4:$DP$191,55,FALSE)","v":20132.78},{"$f":"VLOOKUP($A54,F1__World_Data!$A$4:$DP$191,54,FALSE)","v":20227.467000000001},{"$f":"VLOOKUP($A54,F1__World_Data!$A$4:$DP$191,53,FALSE)","v":20336.718000000001},{"$f":"VLOOKUP($A54,F1__World_Data!$A$4:$DP$191,52,FALSE)","v":20471.86},{"$f":"VLOOKUP($A54,F1__World_Data!$A$4:$DP$191,51,FALSE)","v":20637.994999999999},{"$f":"VLOOKUP($A54,F1__World_Data!$A$4:$DP$191,50,FALSE)","v":20829.521000000001},{"$f":"VLOOKUP($A54,F1__World_Data!$A$4:$DP$191,49,FALSE)","v":21034.196},{"$f":"VLOOKUP($A54,F1__World_Data!$A$4:$DP$191,48,FALSE)","v":21234.312000000002},{"$f":"VLOOKUP($A54,F1__World_Data!$A$4:$DP$191,47,FALSE)","v":21417.287},{"$f":"VLOOKUP($A54,F1__World_Data!$A$4:$DP$191,46,FALSE)","v":21577.89},{"$f":"VLOOKUP($A54,F1__World_Data!$A$4:$DP$191,45,FALSE)","v":21720.402999999998},{"$f":"VLOOKUP($A54,F1__World_Data!$A$4:$DP$191,44,FALSE)","v":21853.277999999998},{"$f":"VLOOKUP($A54,F1__World_Data!$A$4:$DP$191,43,FALSE)","v":21989.353999999999},{"$f":"VLOOKUP($A54,F1__World_Data!$A$4:$DP$191,42,FALSE)","v":22137.422999999999},{"$f":"VLOOKUP($A54,F1__World_Data!$A$4:$DP$191,41,FALSE)","v":22298.121999999999},{"$f":"VLOOKUP($A54,F1__World_Data!$A$4:$DP$191,40,FALSE)","v":22466.291000000001},{"$f":"VLOOKUP($A54,F1__World_Data!$A$4:$DP$191,39,FALSE)","v":22637.599999999999},{"$f":"VLOOKUP($A54,F1__World_Data!$A$4:$DP$191,38,FALSE)","v":22805.705999999998},{"$f":"VLOOKUP($A54,F1__World_Data!$A$4:$DP$191,37,FALSE)","v":22964.746999999999},{"$f":"VLOOKUP($A54,F1__World_Data!$A$4:$DP$191,36,FALSE)","v":23115.813999999998},{"$f":"VLOOKUP($A54,F1__World_Data!$A$4:$DP$191,35,FALSE)","v":23256.958999999999},{"$f":"VLOOKUP($A54,F1__World_Data!$A$4:$DP$191,34,FALSE)","v":23375.828000000001},{"$f":"VLOOKUP($A54,F1__World_Data!$A$4:$DP$191,33,FALSE)","v":23456.646000000001},{"$f":"VLOOKUP($A54,F1__World_Data!$A$4:$DP$191,32,FALSE)","v":23489.155999999999},{"$f":"VLOOKUP($A54,F1__World_Data!$A$4:$DP$191,31,FALSE)","v":23466.413},{"$f":"VLOOKUP($A54,F1__World_Data!$A$4:$DP$191,30,FALSE)","v":23393.739000000001},{"$f":"VLOOKUP($A54,F1__World_Data!$A$4:$DP$191,29,FALSE)","v":23288.387999999999},{"$f":"VLOOKUP($A54,F1__World_Data!$A$4:$DP$191,28,FALSE)","v":23175.055},{"$f":"VLOOKUP($A54,F1__World_Data!$A$4:$DP$191,27,FALSE)","v":23071.258000000002},{"$f":"VLOOKUP($A54,F1__World_Data!$A$4:$DP$191,26,FALSE)","v":22983.962},{"$f":"VLOOKUP($A54,F1__World_Data!$A$4:$DP$191,25,FALSE)","v":22907.295999999998},{"$f":"VLOOKUP($A54,F1__World_Data!$A$4:$DP$191,24,FALSE)","v":22830.546999999999},{"$f":"VLOOKUP($A54,F1__World_Data!$A$4:$DP$191,23,FALSE)","v":22737.208999999999},{"$f":"VLOOKUP($A54,F1__World_Data!$A$4:$DP$191,22,FALSE)","v":22615.644},{"$f":"VLOOKUP($A54,F1__World_Data!$A$4:$DP$191,21,FALSE)","v":22463.31},{"$f":"VLOOKUP($A54,F1__World_Data!$A$4:$DP$191,20,FALSE)","v":22285.505000000001},{"$f":"VLOOKUP($A54,F1__World_Data!$A$4:$DP$191,19,FALSE)","v":22087.896000000001},{"$f":"VLOOKUP($A54,F1__World_Data!$A$4:$DP$191,18,FALSE)","v":21879.077000000001},{"$f":"VLOOKUP($A54,F1__World_Data!$A$4:$DP$191,17,FALSE)","v":21665.64},{"$f":"VLOOKUP($A54,F1__World_Data!$A$4:$DP$191,16,FALSE)","v":21450.404999999999},{"$f":"VLOOKUP($A54,F1__World_Data!$A$4:$DP$191,15,FALSE)","v":21232.621999999999},{"$f":"VLOOKUP($A54,F1__World_Data!$A$4:$DP$191,14,FALSE)","v":21011.147000000001},{"$f":"VLOOKUP($A54,F1__World_Data!$A$4:$DP$191,13,FALSE)","v":20783.555},{"$f":"VLOOKUP($A54,F1__World_Data!$A$4:$DP$191,12,FALSE)","v":20548.912},{"$f":"VLOOKUP($A54,F1__World_Data!$A$4:$DP$191,11,FALSE)","v":20305.348000000002},{"$f":"VLOOKUP($A54,F1__World_Data!$A$4:$DP$191,10,FALSE)","v":20055.975999999999},{"$f":"VLOOKUP($A54,F1__World_Data!$A$4:$DP$191,9,FALSE)","v":19810.612000000001},{"$f":"VLOOKUP($A54,F1__World_Data!$A$4:$DP$191,8,FALSE)","v":19582.331999999999},{"$f":"VLOOKUP($A54,F1__World_Data!$A$4:$DP$191,7,FALSE)","v":19379.575000000001},{"$f":"VLOOKUP($A54,F1__World_Data!$A$4:$DP$191,6,FALSE)","v":19207.138999999999},{"$f":"VLOOKUP($A54,F1__World_Data!$A$4:$DP$191,5,FALSE)","v":19059.934000000001},{"$f":"VLOOKUP($A54,F1__World_Data!$A$4:$DP$191,4,FALSE)","v":18924.151999999998},{"$f":"VLOOKUP($A54,F1__World_Data!$A$4:$DP$191,3,FALSE)","v":18780.21},{"$f":"VLOOKUP($A54,F1__World_Data!$A$4:$DP$191,2,FALSE)","v":18613.945},null,{"$f":"VLOOKUP($A54,F1__World_Data!$A$4:$DP$191,120,FALSE)","v":68.116},{"$f":"VLOOKUP($A54,F1__World_Data!$A$4:$DP$191,119,FALSE)","v":67.850999999999999},{"$f":"VLOOKUP($A54,F1__World_Data!$A$4:$DP$191,118,FALSE)","v":67.576999999999998},{"$f":"VLOOKUP($A54,F1__World_Data!$A$4:$DP$191,117,FALSE)","v":67.290999999999997},{"$f":"VLOOKUP($A54,F1__World_Data!$A$4:$DP$191,116,FALSE)","v":66.995000000000005},{"$f":"VLOOKUP($A54,F1__World_Data!$A$4:$DP$191,115,FALSE)","v":66.69},{"$f":"VLOOKUP($A54,F1__World_Data!$A$4:$DP$191,114,FALSE)","v":66.381},{"$f":"VLOOKUP($A54,F1__World_Data!$A$4:$DP$191,113,FALSE)","v":66.072000000000003},{"$f":"VLOOKUP($A54,F1__World_Data!$A$4:$DP$191,112,FALSE)","v":65.769000000000005},{"$f":"VLOOKUP($A54,F1__World_Data!$A$4:$DP$191,111,FALSE)","v":65.48},{"$f":"VLOOKUP($A54,F1__World_Data!$A$4:$DP$191,110,FALSE)","v":65.207999999999998},{"$f":"VLOOKUP($A54,F1__World_Data!$A$4:$DP$191,109,FALSE)","v":64.953000000000003},{"$f":"VLOOKUP($A54,F1__World_Data!$A$4:$DP$191,108,FALSE)","v":64.712000000000003},{"$f":"VLOOKUP($A54,F1__World_Data!$A$4:$DP$191,107,FALSE)","v":64.477999999999994},{"$f":"VLOOKUP($A54,F1__World_Data!$A$4:$DP$191,106,FALSE)","v":64.242000000000004},{"$f":"VLOOKUP($A54,F1__World_Data!$A$4:$DP$191,105,FALSE)","v":63.994999999999997},{"$f":"VLOOKUP($A54,F1__World_Data!$A$4:$DP$191,104,FALSE)","v":63.731000000000002},{"$f":"VLOOKUP($A54,F1__World_Data!$A$4:$DP$191,103,FALSE)","v":63.445999999999998},{"$f":"VLOOKUP($A54,F1__World_Data!$A$4:$DP$191,102,FALSE)","v":63.143999999999998},{"$f":"VLOOKUP($A54,F1__World_Data!$A$4:$DP$191,101,FALSE)","v":62.829000000000001},{"$f":"VLOOKUP($A54,F1__World_Data!$A$4:$DP$191,100,FALSE)","v":62.509},{"$f":"VLOOKUP($A54,F1__World_Data!$A$4:$DP$191,99,FALSE)","v":62.188000000000002},{"$f":"VLOOKUP($A54,F1__World_Data!$A$4:$DP$191,98,FALSE)","v":61.866},{"$f":"VLOOKUP($A54,F1__World_Data!$A$4:$DP$191,97,FALSE)","v":61.539000000000001},{"$f":"VLOOKUP($A54,F1__World_Data!$A$4:$DP$191,96,FALSE)","v":61.198},{"$f":"VLOOKUP($A54,F1__World_Data!$A$4:$DP$191,95,FALSE)","v":60.837000000000003},{"$f":"VLOOKUP($A54,F1__World_Data!$A$4:$DP$191,94,FALSE)","v":60.454999999999998},{"$f":"VLOOKUP($A54,F1__World_Data!$A$4:$DP$191,93,FALSE)","v":60.052999999999997},{"$f":"VLOOKUP($A54,F1__World_Data!$A$4:$DP$191,92,FALSE)","v":59.636000000000003},{"$f":"VLOOKUP($A54,F1__World_Data!$A$4:$DP$191,91,FALSE)","v":59.209000000000003},{"$f":"VLOOKUP($A54,F1__World_Data!$A$4:$DP$191,90,FALSE)","v":58.783000000000001},{"$f":"VLOOKUP($A54,F1__World_Data!$A$4:$DP$191,89,FALSE)","v":58.366},{"$f":"VLOOKUP($A54,F1__World_Data!$A$4:$DP$191,88,FALSE)","v":57.962000000000003},{"$f":"VLOOKUP($A54,F1__World_Data!$A$4:$DP$191,87,FALSE)","v":57.579000000000001},{"$f":"VLOOKUP($A54,F1__World_Data!$A$4:$DP$191,86,FALSE)","v":57.220999999999997},{"$f":"VLOOKUP($A54,F1__World_Data!$A$4:$DP$191,85,FALSE)","v":56.886000000000003},{"$f":"VLOOKUP($A54,F1__World_Data!$A$4:$DP$191,84,FALSE)","v":56.569000000000003},{"$f":"VLOOKUP($A54,F1__World_Data!$A$4:$DP$191,83,FALSE)","v":56.265999999999998},{"$f":"VLOOKUP($A54,F1__World_Data!$A$4:$DP$191,82,FALSE)","v":55.970999999999997},{"$f":"VLOOKUP($A54,F1__World_Data!$A$4:$DP$191,81,FALSE)","v":55.679000000000002},{"$f":"VLOOKUP($A54,F1__World_Data!$A$4:$DP$191,80,FALSE)","v":55.381999999999998},{"$f":"VLOOKUP($A54,F1__World_Data!$A$4:$DP$191,79,FALSE)","v":55.073999999999998},{"$f":"VLOOKUP($A54,F1__World_Data!$A$4:$DP$191,78,FALSE)","v":54.747999999999998},{"$f":"VLOOKUP($A54,F1__World_Data!$A$4:$DP$191,77,FALSE)","v":54.399000000000001},{"$f":"VLOOKUP($A54,F1__World_Data!$A$4:$DP$191,76,FALSE)","v":54.027000000000001},{"$f":"VLOOKUP($A54,F1__World_Data!$A$4:$DP$191,75,FALSE)","v":53.633000000000003},{"$f":"VLOOKUP($A54,F1__World_Data!$A$4:$DP$191,74,FALSE)","v":53.218000000000004},{"$f":"VLOOKUP($A54,F1__World_Data!$A$4:$DP$191,73,FALSE)","v":52.781999999999996},{"$f":"VLOOKUP($A54,F1__World_Data!$A$4:$DP$191,72,FALSE)","v":52.323},{"$f":"VLOOKUP($A54,F1__World_Data!$A$4:$DP$191,71,FALSE)","v":51.837000000000003},{"$f":"VLOOKUP($A54,F1__World_Data!$A$4:$DP$191,70,FALSE)","v":51.326999999999998},{"$f":"VLOOKUP($A54,F1__World_Data!$A$4:$DP$191,69,FALSE)","v":50.795999999999999},{"$f":"VLOOKUP($A54,F1__World_Data!$A$4:$DP$191,68,FALSE)","v":50.25},{"$f":"VLOOKUP($A54,F1__World_Data!$A$4:$DP$191,67,FALSE)","v":49.697000000000003},{"$f":"VLOOKUP($A54,F1__World_Data!$A$4:$DP$191,66,FALSE)","v":49.145000000000003},{"$f":"VLOOKUP($A54,F1__World_Data!$A$4:$DP$191,65,FALSE)","v":48.600999999999999},{"$f":"VLOOKUP($A54,F1__World_Data!$A$4:$DP$191,64,FALSE)","v":48.070999999999998},{"$f":"VLOOKUP($A54,F1__World_Data!$A$4:$DP$191,63,FALSE)","v":47.557000000000002},{"$f":"VLOOKUP($A54,F1__World_Data!$A$4:$DP$191,62,FALSE)","v":47.061}]
["Mali",{"$f":"VLOOKUP($A55,F1__World_Data!$A$4:$DP$191,60,FALSE)","v":19077.755000000001},{"$f":"VLOOKUP($A55,F1__World_Data!$A$4:$DP$191,59,FALSE)","v":18512.429},{"$f":"VLOOKUP($A55,F1__World_Data!$A$4:$DP$191,58,FALSE)","v":17965.448},{"$f":"VLOOKUP($A55,F1__World_Data!$A$4:$DP$191,57,FALSE)","v":17438.772000000001},{"$f":"VLOOKUP($A55,F1__World_Data!$A$4:$DP$191,56,FALSE)","v":16934.213},{"$f":"VLOOKUP($A55,F1__World_Data!$A$4:$DP$191,55,FALSE)","v":16449.853999999999},{"$f":"VLOOKUP($A55,F1__World_Data!$A$4:$DP$191,54,FALSE)","v":15979.492},{"$f":"VLOOKUP($A55,F1__World_Data!$A$4:$DP$191,53,FALSE)","v":15514.593000000001},{"$f":"VLOOKUP($A55,F1__World_Data!$A$4:$DP$191,52,FALSE)","v":15049.352000000001},{"$f":"VLOOKUP($A55,F1__World_Data!$A$4:$DP$191,51,FALSE)","v":14581.427},{"$f":"VLOOKUP($A55,F1__World_Data!$A$4:$DP$191,50,FALSE)","v":14113.578},{"$f":"VLOOKUP($A55,F1__World_Data!$A$4:$DP$191,49,FALSE)","v":13651.455},{"$f":"VLOOKUP($A55,F1__World_Data!$A$4:$DP$191,48,FALSE)","v":13203.378000000001},{"$f":"VLOOKUP($A55,F1__World_Data!$A$4:$DP$191,47,FALSE)","v":12775.509},{"$f":"VLOOKUP($A55,F1__World_Data!$A$4:$DP$191,46,FALSE)","v":12369.078},{"$f":"VLOOKUP($A55,F1__World_Data!$A$4:$DP$191,45,FALSE)","v":11982.691999999999},{"$f":"VLOOKUP($A55,F1__World_Data!$A$4:$DP$191,44,FALSE)","v":11616.89},{"$f":"VLOOKUP($A55,F1__World_Data!$A$4:$DP$191,43,FALSE)","v":11271.602999999999},{"$f":"VLOOKUP($A55,F1__World_Data!$A$4:$DP$191,42,FALSE)","v":10946.448},{"$f":"VLOOKUP($A55,F1__World_Data!$A$4:$DP$191,41,FALSE)","v":10642.937},{"$f":"VLOOKUP($A55,F1__World_Data!$A$4:$DP$191,40,FALSE)","v":10360.564},{"$f":"VLOOKUP($A55,F1__World_Data!$A$4:$DP$191,39,FALSE)","v":10094.362999999999},{"$f":"VLOOKUP($A55,F1__World_Data!$A$4:$DP$191,38,FALSE)","v":9837.5750000000007},{"$f":"VLOOKUP($A55,F1__World_Data!$A$4:$DP$191,37,FALSE)","v":9585.66},{"$f":"VLOOKUP($A55,F1__World_Data!$A$4:$DP$191,36,FALSE)","v":9334.893},{"$f":"VLOOKUP($A55,F1__World_Data!$A$4:$DP$191,35,FALSE)","v":9087.1730000000007},{"$f":"VLOOKUP($A55,F1__World_Data!$A$4:$DP$191,34,FALSE)","v":8850.3340000000007},{"$f":"VLOOKUP($A55,F1__World_Data!$A$4:$DP$191,33,FALSE)","v":8635.5280000000002},{"$f":"VLOOKUP($A55,F1__World_Data!$A$4:$DP$191,32,FALSE)","v":8449.9150000000009},{"$f":"VLOOKUP($A55,F1__World_Data!$A$4:$DP$191,31,FALSE)","v":8296.9189999999999},{"$f":"VLOOKUP($A55,F1__World_Data!$A$4:$DP$191,30,FALSE)","v":8171.5249999999996},{"$f":"VLOOKUP($A55,F1__World_Data!$A$4:$DP$191,29,FALSE)","v":8062.2160000000003},{"$f":"VLOOKUP($A55,F1__World_Data!$A$4:$DP$191,28,FALSE)","v":7952.8630000000003},{"$f":"VLOOKUP($A55,F1__World_Data!$A$4:$DP$191,27,FALSE)","v":7831.8879999999999},{"$f":"VLOOKUP($A55,F1__World_Data!$A$4:$DP$191,26,FALSE)","v":7694.857},{"$f":"VLOOKUP($A55,F1__World_Data!$A$4:$DP$191,25,FALSE)","v":7545.1629999999996},{"$f":"VLOOKUP($A55,F1__World_Data!$A$4:$DP$191,24,FALSE)","v":7388.67},{"$f":"VLOOKUP($A55,F1__World_Data!$A$4:$DP$191,23,FALSE)","v":7234.7250000000004},{"$f":"VLOOKUP($A55,F1__World_Data!$A$4:$DP$191,22,FALSE)","v":7090.1239999999998},{"$f":"VLOOKUP($A55,F1__World_Data!$A$4:$DP$191,21,FALSE)","v":6956.4089999999997},{"$f":"VLOOKUP($A55,F1__World_Data!$A$4:$DP$191,20,FALSE)","v":6831.09},{"$f":"VLOOKUP($A55,F1__World_Data!$A$4:$DP$191,19,FALSE)","v":6712.2669999999998},{"$f":"VLOOKUP($A55,F1__World_Data!$A$4:$DP$191,18,FALSE)","v":6596.7209999999995},{"$f":"VLOOKUP($A55,F1__World_Data!$A$4:$DP$191,17,FALSE)","v":6482.2820000000002},{"$f":"VLOOKUP($A55,F1__World_Data!$A$4:$DP$191,16,FALSE)","v":6368.3459999999995},{"$f":"VLOOKUP($A55,F1__World_Data!$A$4:$DP$191,15,FALSE)","v":6256.1909999999998},{"$f":"VLOOKUP($A55,F1__World_Data!$A$4:$DP$191,14,FALSE)","v":6147.4639999999999},{"$f":"VLOOKUP($A55,F1__World_Data!$A$4:$DP$191,13,FALSE)","v":6044.5240000000003},{"$f":"VLOOKUP($A55,F1__World_Data!$A$4:$DP$191,12,FALSE)","v":5949.0420000000004},{"$f":"VLOOKUP($A55,F1__World_Data!$A$4:$DP$191,11,FALSE)","v":5861.4170000000004},{"$f":"VLOOKUP($A55,F1__World_Data!$A$4:$DP$191,10,FALSE)","v":5780.8360000000002},{"$f":"VLOOKUP($A55,F1__World_Data!$A$4:$DP$191,9,FALSE)","v":5706.192},{"$f":"VLOOKUP($A55,F1__World_Data!$A$4:$DP$191,8,FALSE)","v":5635.8639999999996},{"$f":"VLOOKUP($A55,F1__World_Data!$A$4:$DP$191,7,FALSE)","v":5568.4949999999999},{"$f":"VLOOKUP($A55,F1__World_Data!$A$4:$DP$191,6,FALSE)","v":5503.75},{"$f":"VLOOKUP($A55,F1__World_Data!$A$4:$DP$191,5,FALSE)","v":5441.6180000000004},{"$f":"VLOOKUP($A55,F1__World_Data!$A$4:$DP$191,4,FALSE)","v":5381.3670000000002},{"$f":"VLOOKUP($A55,F1__World_Data!$A$4:$DP$191,3,FALSE)","v":5322.2690000000002},{"$f":"VLOOKUP($A55,F1__World_Data!$A$4:$DP$191,2,FALSE)","v":5263.7269999999999},null,{"$f":"VLOOKUP($A55,F1__World_Data!$A$4:$DP$191,120,FALSE)","v":68.116},{"$f":"VLOOKUP($A55,F1__World_Data!$A$4:$DP$191,119,FALSE)","v":67.850999999999999},{"$f":"VLOOKUP($A55,F1__World_Data!$A$4:$DP$191,118,FALSE)","v":67.576999999999998},{"$f":"VLOOKUP($A55,F1__World_Data!$A$4:$DP$191,117,FALSE)","v":67.290999999999997},{"$f":"VLOOKUP($A55,F1__World_Data!$A$4:$DP$191,116,FALSE)","v":66.995000000000005},{"$f":"VLOOKUP($A55,F1__World_Data!$A$4:$DP$191,115,FALSE)","v":66.69},{"$f":"VLOOKUP($A55,F1__World_Data!$A$4:$DP$191,114,FALSE)","v":66.381},{"$f":"VLOOKUP($A55,F1__World_Data!$A$4:$DP$191,113,FALSE)","v":66.072000000000003},{"$f":"VLOOKUP($A55,F1__World_Data!$A$4:$DP$191,112,FALSE)","v":65.769000000000005},{"$f":"VLOOKUP($A55,F1__World_Data!$A$4:$DP$191,111,FALSE)","v":65.48},{"$f":"VLOOKUP($A55,F1__World_Data!$A$4:$DP$191,110,FALSE)","v":65.207999999999998},{"$f":"VLOOKUP($A55,F1__World_Data!$A$4:$DP$191,109,FALSE)","v":64.953000000000003},{"$f":"VLOOKUP($A55,F1__World_Data!$A$4:$DP$191,108,FALSE)","v":64.712000000000003},{"$f":"VLOOKUP($A55,F1__World_Data!$A$4:$DP$191,107,FALSE)","v":64.477999999999994},{"$f":"VLOOKUP($A55,F1__World_Data!$A$4:$DP$191,106,FALSE)","v":64.242000000000004},{"$f":"VLOOKUP($A55,F1__World_Data!$A$4:$DP$191,105,FALSE)","v":63.994999999999997},{"$f":"VLOOKUP($A55,F1__World_Data!$A$4:$DP$191,104,FALSE)","v":63.731000000000002},{"$f":"VLOOKUP($A55,F1__World_Data!$A$4:$DP$191,103,FALSE)","v":63.445999999999998},{"$f":"VLOOKUP($A55,F1__World_Data!$A$4:$DP$191,102,FALSE)","v":63.143999999999998},{"$f":"VLOOKUP($A55,F1__World_Data!$A$4:$DP$191,101,FALSE)","v":62.829000000000001},{"$f":"VLOOKUP($A55,F1__World_Data!$A$4:$DP$191,100,FALSE)","v":62.509},{"$f":"VLOOKUP($A55,F1__World_Data!$A$4:$DP$191,99,FALSE)","v":62.188000000000002},{"$f":"VLOOKUP($A55,F1__World_Data!$A$4:$DP$191,98,FALSE)","v":61.866},{"$f":"VLOOKUP($A55,F1__World_Data!$A$4:$DP$191,97,FALSE)","v":61.539000000000001},{"$f":"VLOOKUP($A55,F1__World_Data!$A$4:$DP$191,96,FALSE)","v":61.198},{"$f":"VLOOKUP($A55,F1__World_Data!$A$4:$DP$191,95,FALSE)","v":60.837000000000003},{"$f":"VLOOKUP($A55,F1__World_Data!$A$4:$DP$191,94,FALSE)","v":60.454999999999998},{"$f":"VLOOKUP($A55,F1__World_Data!$A$4:$DP$191,93,FALSE)","v":60.052999999999997},{"$f":"VLOOKUP($A55,F1__World_Data!$A$4:$DP$191,92,FALSE)","v":59.636000000000003},{"$f":"VLOOKUP($A55,F1__World_Data!$A$4:$DP$191,91,FALSE)","v":59.209000000000003},{"$f":"VLOOKUP($A55,F1__World_Data!$A$4:$DP$191,90,FALSE)","v":58.783000000000001},{"$f":"VLOOKUP($A55,F1__World_Data!$A$4:$DP$191,89,FALSE)","v":58.366},{"$f":"VLOOKUP($A55,F1__World_Data!$A$4:$DP$191,88,FALSE)","v":57.962000000000003},{"$f":"VLOOKUP($A55,F1__World_Data!$A$4:$DP$191,87,FALSE)","v":57.579000000000001},{"$f":"VLOOKUP($A55,F1__World_Data!$A$4:$DP$191,86,FALSE)","v":57.220999999999997},{"$f":"VLOOKUP($A55,F1__World_Data!$A$4:$DP$191,85,FALSE)","v":56.886000000000003},{"$f":"VLOOKUP($A55,F1__World_Data!$A$4:$DP$191,84,FALSE)","v":56.569000000000003},{"$f":"VLOOKUP($A55,F1__World_Data!$A$4:$DP$191,83,FALSE)","v":56.265999999999998},{"$f":"VLOOKUP($A55,F1__World_Data!$A$4:$DP$191,82,FALSE)","v":55.970999999999997},{"$f":"VLOOKUP($A55,F1__World_Data!$A$4:$DP$191,81,FALSE)","v":55.679000000000002},{"$f":"VLOOKUP($A55,F1__World_Data!$A$4:$DP$191,80,FALSE)","v":55.381999999999998},{"$f":"VLOOKUP($A55,F1__World_Data!$A$4:$DP$191,79,FALSE)","v":55.073999999999998},{"$f":"VLOOKUP($A55,F1__World_Data!$A$4:$DP$191,78,FALSE)","v":54.747999999999998},{"$f":"VLOOKUP($A55,F1__World_Data!$A$4:$DP$191,77,FALSE)","v":54.399000000000001},{"$f":"VLOOKUP($A55,F1__World_Data!$A$4:$DP$191,76,FALSE)","v":54.027000000000001},{"$f":"VLOOKUP($A55,F1__World_Data!$A$4:$DP$191,75,FALSE)","v":53.633000000000003},{"$f":"VLOOKUP($A55,F1__World_Data!$A$4:$DP$191,74,FALSE)","v":53.218000000000004},{"$f":"VLOOKUP($A55,F1__World_Data!$A$4:$DP$191,73,FALSE)","v":52.781999999999996},{"$f":"VLOOKUP($A55,F1__World_Data!$A$4:$DP$191,72,FALSE)","v":52.323},{"$f":"VLOOKUP($A55,F1__World_Data!$A$4:$DP$191,71,FALSE)","v":51.837000000000003},{"$f":"VLOOKUP($A55,F1__World_Data!$A$4:$DP$191,70,FALSE)","v":51.326999999999998},{"$f":"VLOOKUP($A55,F1__World_Data!$A$4:$DP$191,69,FALSE)","v":50.795999999999999},{"$f":"VLOOKUP($A55,F1__World_Data!$A$4:$DP$191,68,FALSE)","v":50.25},{"$f":"VLOOKUP($A55,F1__World_Data!$A$4:$DP$191,67,FALSE)","v":49.697000000000003},{"$f":"VLOOKUP($A55,F1__World_Data!$A$4:$DP$191,66,FALSE)","v":49.145000000000003},{"$f":"VLOOKUP($A55,F1__World_Data!$A$4:$DP$191,65,FALSE)","v":48.600999999999999},{"$f":"VLOOKUP($A55,F1__World_Data!$A$4:$DP$191,64,FALSE)","v":48.070999999999998},{"$f":"VLOOKUP($A55,F1__World_Data!$A$4:$DP$191,63,FALSE)","v":47.557000000000002},{"$f":"VLOOKUP($A55,F1__World_Data!$A$4:$DP$191,62,FALSE)","v":47.061}]
["Chile",{"$f":"VLOOKUP($A56,F1__World_Data!$A$4:$DP$191,60,FALSE)","v":18729.166000000001},{"$f":"VLOOKUP($A56,F1__World_Data!$A$4:$DP$191,59,FALSE)","v":18470.435000000001},{"$f":"VLOOKUP($A56,F1__World_Data!$A$4:$DP$191,58,FALSE)","v":18209.072},{"$f":"VLOOKUP($A56,F1__World_Data!$A$4:$DP$191,57,FALSE)","v":17969.356},{"$f":"VLOOKUP($A56,F1__World_Data!$A$4:$DP$191,56,FALSE)","v":17758.969000000001},{"$f":"VLOOKUP($A56,F1__World_Data!$A$4:$DP$191,55,FALSE)","v":17571.510999999999},{"$f":"VLOOKUP($A56,F1__World_Data!$A$4:$DP$191,54,FALSE)","v":17400.359},{"$f":"VLOOKUP($A56,F1__World_Data!$A$4:$DP$191,53,FALSE)","v":17233.583999999999},{"$f":"VLOOKUP($A56,F1__World_Data!$A$4:$DP$191,52,FALSE)","v":17062.530999999999},{"$f":"VLOOKUP($A56,F1__World_Data!$A$4:$DP$191,51,FALSE)","v":16886.184000000001},{"$f":"VLOOKUP($A56,F1__World_Data!$A$4:$DP$191,50,FALSE)","v":16708.255000000001},{"$f":"VLOOKUP($A56,F1__World_Data!$A$4:$DP$191,49,FALSE)","v":16530.201000000001},{"$f":"VLOOKUP($A56,F1__World_Data!$A$4:$DP$191,48,FALSE)","v":16354.507},{"$f":"VLOOKUP($A56,F1__World_Data!$A$4:$DP$191,47,FALSE)","v":16182.713},{"$f":"VLOOKUP($A56,F1__World_Data!$A$4:$DP$191,46,FALSE)","v":16014.972},{"$f":"VLOOKUP($A56,F1__World_Data!$A$4:$DP$191,45,FALSE)","v":15849.648999999999},{"$f":"VLOOKUP($A56,F1__World_Data!$A$4:$DP$191,44,FALSE)","v":15684.413},{"$f":"VLOOKUP($A56,F1__World_Data!$A$4:$DP$191,43,FALSE)","v":15516.111999999999},{"$f":"VLOOKUP($A56,F1__World_Data!$A$4:$DP$191,42,FALSE)","v":15342.35},{"$f":"VLOOKUP($A56,F1__World_Data!$A$4:$DP$191,41,FALSE)","v":15162.800999999999},{"$f":"VLOOKUP($A56,F1__World_Data!$A$4:$DP$191,40,FALSE)","v":14977.736000000001},{"$f":"VLOOKUP($A56,F1__World_Data!$A$4:$DP$191,39,FALSE)","v":14786.227000000001},{"$f":"VLOOKUP($A56,F1__World_Data!$A$4:$DP$191,38,FALSE)","v":14587.367},{"$f":"VLOOKUP($A56,F1__World_Data!$A$4:$DP$191,37,FALSE)","v":14380.864},{"$f":"VLOOKUP($A56,F1__World_Data!$A$4:$DP$191,36,FALSE)","v":14166.346},{"$f":"VLOOKUP($A56,F1__World_Data!$A$4:$DP$191,35,FALSE)","v":13944.933999999999},{"$f":"VLOOKUP($A56,F1__World_Data!$A$4:$DP$191,34,FALSE)","v":13719.817999999999},{"$f":"VLOOKUP($A56,F1__World_Data!$A$4:$DP$191,33,FALSE)","v":13495.254999999999},{"$f":"VLOOKUP($A56,F1__World_Data!$A$4:$DP$191,32,FALSE)","v":13274.617},{"$f":"VLOOKUP($A56,F1__World_Data!$A$4:$DP$191,31,FALSE)","v":13058.758},{"$f":"VLOOKUP($A56,F1__World_Data!$A$4:$DP$191,30,FALSE)","v":12847.712},{"$f":"VLOOKUP($A56,F1__World_Data!$A$4:$DP$191,29,FALSE)","v":12642.916999999999},{"$f":"VLOOKUP($A56,F1__World_Data!$A$4:$DP$191,28,FALSE)","v":12445.833000000001},{"$f":"VLOOKUP($A56,F1__World_Data!$A$4:$DP$191,27,FALSE)","v":12257.237999999999},{"$f":"VLOOKUP($A56,F1__World_Data!$A$4:$DP$191,26,FALSE)","v":12078.137000000001},{"$f":"VLOOKUP($A56,F1__World_Data!$A$4:$DP$191,25,FALSE)","v":11907.955},{"$f":"VLOOKUP($A56,F1__World_Data!$A$4:$DP$191,24,FALSE)","v":11743.909},{"$f":"VLOOKUP($A56,F1__World_Data!$A$4:$DP$191,23,FALSE)","v":11582.02},{"$f":"VLOOKUP($A56,F1__World_Data!$A$4:$DP$191,22,FALSE)","v":11419.35},{"$f":"VLOOKUP($A56,F1__World_Data!$A$4:$DP$191,21,FALSE)","v":11254.877},{"$f":"VLOOKUP($A56,F1__World_Data!$A$4:$DP$191,20,FALSE)","v":11089.165000000001},{"$f":"VLOOKUP($A56,F1__World_Data!$A$4:$DP$191,19,FALSE)","v":10922.777},{"$f":"VLOOKUP($A56,F1__World_Data!$A$4:$DP$191,18,FALSE)","v":10756.876},{"$f":"VLOOKUP($A56,F1__World_Data!$A$4:$DP$191,17,FALSE)","v":10592.31},{"$f":"VLOOKUP($A56,F1__World_Data!$A$4:$DP$191,16,FALSE)","v":10428.803},{"$f":"VLOOKUP($A56,F1__World_Data!$A$4:$DP$191,15,FALSE)","v":10265.826999999999},{"$f":"VLOOKUP($A56,F1__World_Data!$A$4:$DP$191,14,FALSE)","v":10103.674999999999},{"$f":"VLOOKUP($A56,F1__World_Data!$A$4:$DP$191,13,FALSE)","v":9942.7160000000003},{"$f":"VLOOKUP($A56,F1__World_Data!$A$4:$DP$191,12,FALSE)","v":9783.134},{"$f":"VLOOKUP($A56,F1__World_Data!$A$4:$DP$191,11,FALSE)","v":9625.3040000000001},{"$f":"VLOOKUP($A56,F1__World_Data!$A$4:$DP$191,10,FALSE)","v":9468.8510000000006},{"$f":"VLOOKUP($A56,F1__World_Data!$A$4:$DP$191,9,FALSE)","v":9312.0910000000003},{"$f":"VLOOKUP($A56,F1__World_Data!$A$4:$DP$191,8,FALSE)","v":9152.848},{"$f":"VLOOKUP($A56,F1__World_Data!$A$4:$DP$191,7,FALSE)","v":8989.607},{"$f":"VLOOKUP($A56,F1__World_Data!$A$4:$DP$191,6,FALSE)","v":8821.8549999999996},{"$f":"VLOOKUP($A56,F1__World_Data!$A$4:$DP$191,5,FALSE)","v":8650.39},{"$f":"VLOOKUP($A56,F1__World_Data!$A$4:$DP$191,4,FALSE)","v":8476.8950000000004},{"$f":"VLOOKUP($A56,F1__World_Data!$A$4:$DP$191,3,FALSE)","v":8303.8040000000001},{"$f":"VLOOKUP($A56,F1__World_Data!$A$4:$DP$191,2,FALSE)","v":8132.9880000000003},null,{"$f":"VLOOKUP($A56,F1__World_Data!$A$4:$DP$191,120,FALSE)","v":77.013154810125457},{"$f":"VLOOKUP($A56,F1__World_Data!$A$4:$DP$191,119,FALSE)","v":76.947462150480874},{"$f":"VLOOKUP($A56,F1__World_Data!$A$4:$DP$191,118,FALSE)","v":76.969807982335965},{"$f":"VLOOKUP($A56,F1__World_Data!$A$4:$DP$191,117,FALSE)","v":76.571877764778804},{"$f":"VLOOKUP($A56,F1__World_Data!$A$4:$DP$191,116,FALSE)","v":76.675623611304488},{"$f":"VLOOKUP($A56,F1__World_Data!$A$4:$DP$191,115,FALSE)","v":76.355162986980844},{"$f":"VLOOKUP($A56,F1__World_Data!$A$4:$DP$191,114,FALSE)","v":75.993488603453059},{"$f":"VLOOKUP($A56,F1__World_Data!$A$4:$DP$191,113,FALSE)","v":75.888474883428188},{"$f":"VLOOKUP($A56,F1__World_Data!$A$4:$DP$191,112,FALSE)","v":75.293965778631389},{"$f":"VLOOKUP($A56,F1__World_Data!$A$4:$DP$191,111,FALSE)","v":74.930363926657648},{"$f":"VLOOKUP($A56,F1__World_Data!$A$4:$DP$191,110,FALSE)","v":74.575952678077925},{"$f":"VLOOKUP($A56,F1__World_Data!$A$4:$DP$191,109,FALSE)","v":74.250648721076857},{"$f":"VLOOKUP($A56,F1__World_Data!$A$4:$DP$191,108,FALSE)","v":74.092602730809759},{"$f":"VLOOKUP($A56,F1__World_Data!$A$4:$DP$191,107,FALSE)","v":73.838300183861094},{"$f":"VLOOKUP($A56,F1__World_Data!$A$4:$DP$191,106,FALSE)","v":73.73715299612762},{"$f":"VLOOKUP($A56,F1__World_Data!$A$4:$DP$191,105,FALSE)","v":73.382252782525796},{"$f":"VLOOKUP($A56,F1__World_Data!$A$4:$DP$191,104,FALSE)","v":73.242415488092149},{"$f":"VLOOKUP($A56,F1__World_Data!$A$4:$DP$191,103,FALSE)","v":73.096148193734322},{"$f":"VLOOKUP($A56,F1__World_Data!$A$4:$DP$191,102,FALSE)","v":72.719724722779048},{"$f":"VLOOKUP($A56,F1__World_Data!$A$4:$DP$191,101,FALSE)","v":72.184561074087483},{"$f":"VLOOKUP($A56,F1__World_Data!$A$4:$DP$191,100,FALSE)","v":71.898237675995631},{"$f":"VLOOKUP($A56,F1__World_Data!$A$4:$DP$191,99,FALSE)","v":71.517258069682228},{"$f":"VLOOKUP($A56,F1__World_Data!$A$4:$DP$191,98,FALSE)","v":71.336058018995075},{"$f":"VLOOKUP($A56,F1__World_Data!$A$4:$DP$191,97,FALSE)","v":71.025421428289064},{"$f":"VLOOKUP($A56,F1__World_Data!$A$4:$DP$191,96,FALSE)","v":70.869543944747306},{"$f":"VLOOKUP($A56,F1__World_Data!$A$4:$DP$191,95,FALSE)","v":70.845986615144795},{"$f":"VLOOKUP($A56,F1__World_Data!$A$4:$DP$191,94,FALSE)","v":70.732837131415664},{"$f":"VLOOKUP($A56,F1__World_Data!$A$4:$DP$191,93,FALSE)","v":70.57522130347742},{"$f":"VLOOKUP($A56,F1__World_Data!$A$4:$DP$191,92,FALSE)","v":70.656331337258607},{"$f":"VLOOKUP($A56,F1__World_Data!$A$4:$DP$191,91,FALSE)","v":70.731972259748474},{"$f":"VLOOKUP($A56,F1__World_Data!$A$4:$DP$191,90,FALSE)","v":70.861708225052027},{"$f":"VLOOKUP($A56,F1__World_Data!$A$4:$DP$191,89,FALSE)","v":70.611763331234172},{"$f":"VLOOKUP($A56,F1__World_Data!$A$4:$DP$191,88,FALSE)","v":70.565136039744331},{"$f":"VLOOKUP($A56,F1__World_Data!$A$4:$DP$191,87,FALSE)","v":70.312883466323655},{"$f":"VLOOKUP($A56,F1__World_Data!$A$4:$DP$191,86,FALSE)","v":70.349114856134193},{"$f":"VLOOKUP($A56,F1__World_Data!$A$4:$DP$191,85,FALSE)","v":70.389785169429601},{"$f":"VLOOKUP($A56,F1__World_Data!$A$4:$DP$191,84,FALSE)","v":70.45547331873172},{"$f":"VLOOKUP($A56,F1__World_Data!$A$4:$DP$191,83,FALSE)","v":70.372050177777368},{"$f":"VLOOKUP($A56,F1__World_Data!$A$4:$DP$191,82,FALSE)","v":69.890509798033563},{"$f":"VLOOKUP($A56,F1__World_Data!$A$4:$DP$191,81,FALSE)","v":70.239396993958749},{"$f":"VLOOKUP($A56,F1__World_Data!$A$4:$DP$191,80,FALSE)","v":70.147932106139478},{"$f":"VLOOKUP($A56,F1__World_Data!$A$4:$DP$191,79,FALSE)","v":70.242373148279256},{"$f":"VLOOKUP($A56,F1__World_Data!$A$4:$DP$191,78,FALSE)","v":70.319148895789127},{"$f":"VLOOKUP($A56,F1__World_Data!$A$4:$DP$191,77,FALSE)","v":70.174408694229456},{"$f":"VLOOKUP($A56,F1__World_Data!$A$4:$DP$191,76,FALSE)","v":70.30593936929715},{"$f":"VLOOKUP($A56,F1__World_Data!$A$4:$DP$191,75,FALSE)","v":70.067777192089565},{"$f":"VLOOKUP($A56,F1__World_Data!$A$4:$DP$191,74,FALSE)","v":69.925441264574317},{"$f":"VLOOKUP($A56,F1__World_Data!$A$4:$DP$191,73,FALSE)","v":69.485165745849855},{"$f":"VLOOKUP($A56,F1__World_Data!$A$4:$DP$191,72,FALSE)","v":69.446955055223569},{"$f":"VLOOKUP($A56,F1__World_Data!$A$4:$DP$191,71,FALSE)","v":69.275734201981379},{"$f":"VLOOKUP($A56,F1__World_Data!$A$4:$DP$191,70,FALSE)","v":69.536025304884078},{"$f":"VLOOKUP($A56,F1__World_Data!$A$4:$DP$191,69,FALSE)","v":69.272742187699023},{"$f":"VLOOKUP($A56,F1__World_Data!$A$4:$DP$191,68,FALSE)","v":69.527071933977979},{"$f":"VLOOKUP($A56,F1__World_Data!$A$4:$DP$191,67,FALSE)","v":69.276997595515866},{"$f":"VLOOKUP($A56,F1__World_Data!$A$4:$DP$191,66,FALSE)","v":69.052484538875277},{"$f":"VLOOKUP($A56,F1__World_Data!$A$4:$DP$191,65,FALSE)","v":68.696047369716993},{"$f":"VLOOKUP($A56,F1__World_Data!$A$4:$DP$191,64,FALSE)","v":68.006925641810753},{"$f":"VLOOKUP($A56,F1__World_Data!$A$4:$DP$191,63,FALSE)","v":68.262198343866316},{"$f":"VLOOKUP($A56,F1__World_Data!$A$4:$DP$191,62,FALSE)","v":67.821388639175453}]
["Kazakhstan",{"$f":"VLOOKUP($A57,F1__World_Data!$A$4:$DP$191,60,FALSE)","v":18319.616000000002},{"$f":"VLOOKUP($A57,F1__World_Data!$A$4:$DP$191,59,FALSE)","v":18080.023000000001},{"$f":"VLOOKUP($A57,F1__World_Data!$A$4:$DP$191,58,FALSE)","v":17830.901999999998},{"$f":"VLOOKUP($A57,F1__World_Data!$A$4:$DP$191,57,FALSE)","v":17572.009999999998},{"$f":"VLOOKUP($A57,F1__World_Data!$A$4:$DP$191,56,FALSE)","v":17302.618999999999},{"$f":"VLOOKUP($A57,F1__World_Data!$A$4:$DP$191,55,FALSE)","v":17026.117999999999},{"$f":"VLOOKUP($A57,F1__World_Data!$A$4:$DP$191,54,FALSE)","v":16751.523000000001},{"$f":"VLOOKUP($A57,F1__World_Data!$A$4:$DP$191,53,FALSE)","v":16490.669000000002},{"$f":"VLOOKUP($A57,F1__World_Data!$A$4:$DP$191,52,FALSE)","v":16252.272999999999},{"$f":"VLOOKUP($A57,F1__World_Data!$A$4:$DP$191,51,FALSE)","v":16043.014999999999},{"$f":"VLOOKUP($A57,F1__World_Data!$A$4:$DP$191,50,FALSE)","v":15862.126},{"$f":"VLOOKUP($A57,F1__World_Data!$A$4:$DP$191,49,FALSE)","v":15702.111999999999},{"$f":"VLOOKUP($A57,F1__World_Data!$A$4:$DP$191,48,FALSE)","v":15551.263000000001},{"$f":"VLOOKUP($A57,F1__World_Data!$A$4:$DP$191,47,FALSE)","v":15402.803},{"$f":"VLOOKUP($A57,F1__World_Data!$A$4:$DP$191,46,FALSE)","v":15250.016},{"$f":"VLOOKUP($A57,F1__World_Data!$A$4:$DP$191,45,FALSE)","v":15100.045},{"$f":"VLOOKUP($A57,F1__World_Data!$A$4:$DP$191,44,FALSE)","v":14976.183999999999},{"$f":"VLOOKUP($A57,F1__World_Data!$A$4:$DP$191,43,FALSE)","v":14910.207},{"$f":"VLOOKUP($A57,F1__World_Data!$A$4:$DP$191,42,FALSE)","v":14922.724},{"$f":"VLOOKUP($A57,F1__World_Data!$A$4:$DP$191,41,FALSE)","v":15020.573},{"$f":"VLOOKUP($A57,F1__World_Data!$A$4:$DP$191,40,FALSE)","v":15190.168},{"$f":"VLOOKUP($A57,F1__World_Data!$A$4:$DP$191,39,FALSE)","v":15406.004999999999},{"$f":"VLOOKUP($A57,F1__World_Data!$A$4:$DP$191,38,FALSE)","v":15631.925999999999},{"$f":"VLOOKUP($A57,F1__World_Data!$A$4:$DP$191,37,FALSE)","v":15839.357},{"$f":"VLOOKUP($A57,F1__World_Data!$A$4:$DP$191,36,FALSE)","v":16022.224},{"$f":"VLOOKUP($A57,F1__World_Data!$A$4:$DP$191,35,FALSE)","v":16181.161},{"$f":"VLOOKUP($A57,F1__World_Data!$A$4:$DP$191,34,FALSE)","v":16302.808999999999},{"$f":"VLOOKUP($A57,F1__World_Data!$A$4:$DP$191,33,FALSE)","v":16373.308000000001},{"$f":"VLOOKUP($A57,F1__World_Data!$A$4:$DP$191,32,FALSE)","v":16383.880999999999},{"$f":"VLOOKUP($A57,F1__World_Data!$A$4:$DP$191,31,FALSE)","v":16326.848},{"$f":"VLOOKUP($A57,F1__World_Data!$A$4:$DP$191,30,FALSE)","v":16205.998},{"$f":"VLOOKUP($A57,F1__World_Data!$A$4:$DP$191,29,FALSE)","v":16039.253000000001},{"$f":"VLOOKUP($A57,F1__World_Data!$A$4:$DP$191,28,FALSE)","v":15852.523999999999},{"$f":"VLOOKUP($A57,F1__World_Data!$A$4:$DP$191,27,FALSE)","v":15665.593999999999},{"$f":"VLOOKUP($A57,F1__World_Data!$A$4:$DP$191,26,FALSE)","v":15483.411},{"$f":"VLOOKUP($A57,F1__World_Data!$A$4:$DP$191,25,FALSE)","v":15303.316000000001},{"$f":"VLOOKUP($A57,F1__World_Data!$A$4:$DP$191,24,FALSE)","v":15128.09},{"$f":"VLOOKUP($A57,F1__World_Data!$A$4:$DP$191,23,FALSE)","v":14958.897000000001},{"$f":"VLOOKUP($A57,F1__World_Data!$A$4:$DP$191,22,FALSE)","v":14796.174999999999},{"$f":"VLOOKUP($A57,F1__World_Data!$A$4:$DP$191,21,FALSE)","v":14643.133},{"$f":"VLOOKUP($A57,F1__World_Data!$A$4:$DP$191,20,FALSE)","v":14499.957},{"$f":"VLOOKUP($A57,F1__World_Data!$A$4:$DP$191,19,FALSE)","v":14359.629000000001},{"$f":"VLOOKUP($A57,F1__World_Data!$A$4:$DP$191,18,FALSE)","v":14212.145},{"$f":"VLOOKUP($A57,F1__World_Data!$A$4:$DP$191,17,FALSE)","v":14050.227000000001},{"$f":"VLOOKUP($A57,F1__World_Data!$A$4:$DP$191,16,FALSE)","v":13869.975},{"$f":"VLOOKUP($A57,F1__World_Data!$A$4:$DP$191,15,FALSE)","v":13673.013999999999},{"$f":"VLOOKUP($A57,F1__World_Data!$A$4:$DP$191,14,FALSE)","v":13463.985000000001},{"$f":"VLOOKUP($A57,F1__World_Data!$A$4:$DP$191,13,FALSE)","v":13250.210999999999},{"$f":"VLOOKUP($A57,F1__World_Data!$A$4:$DP$191,12,FALSE)","v":13036.14},{"$f":"VLOOKUP($A57,F1__World_Data!$A$4:$DP$191,11,FALSE)","v":12824.614},{"$f":"VLOOKUP($A57,F1__World_Data!$A$4:$DP$191,10,FALSE)","v":12611.432000000001},{"$f":"VLOOKUP($A57,F1__World_Data!$A$4:$DP$191,9,FALSE)","v":12385.706},{"$f":"VLOOKUP($A57,F1__World_Data!$A$4:$DP$191,8,FALSE)","v":12132.56},{"$f":"VLOOKUP($A57,F1__World_Data!$A$4:$DP$191,7,FALSE)","v":11841.925999999999},{"$f":"VLOOKUP($A57,F1__World_Data!$A$4:$DP$191,6,FALSE)","v":11511.856},{"$f":"VLOOKUP($A57,F1__World_Data!$A$4:$DP$191,5,FALSE)","v":11147.86},{"$f":"VLOOKUP($A57,F1__World_Data!$A$4:$DP$191,4,FALSE)","v":10756.931},{"$f":"VLOOKUP($A57,F1__World_Data!$A$4:$DP$191,3,FALSE)","v":10349.422},{"$f":"VLOOKUP($A57,F1__World_Data!$A$4:$DP$191,2,FALSE)","v":9934.5640000000003},null,{"$f":"VLOOKUP($A57,F1__World_Data!$A$4:$DP$191,120,FALSE)","v":73.150000000000006},{"$f":"VLOOKUP($A57,F1__World_Data!$A$4:$DP$191,119,FALSE)","v":72.95},{"$f":"VLOOKUP($A57,F1__World_Data!$A$4:$DP$191,118,FALSE)","v":72.3},{"$f":"VLOOKUP($A57,F1__World_Data!$A$4:$DP$191,117,FALSE)","v":72},{"$f":"VLOOKUP($A57,F1__World_Data!$A$4:$DP$191,116,FALSE)","v":71.62},{"$f":"VLOOKUP($A57,F1__World_Data!$A$4:$DP$191,115,FALSE)","v":70.45},{"$f":"VLOOKUP($A57,F1__World_Data!$A$4:$DP$191,114,FALSE)","v":69.61},{"$f":"VLOOKUP($A57,F1__World_Data!$A$4:$DP$191,113,FALSE)","v":68.98},{"$f":"VLOOKUP($A57,F1__World_Data!$A$4:$DP$191,112,FALSE)","v":68.295365853658538},{"$f":"VLOOKUP($A57,F1__World_Data!$A$4:$DP$191,111,FALSE)","v":68.429268292682934},{"$f":"VLOOKUP($A57,F1__World_Data!$A$4:$DP$191,110,FALSE)","v":67.021951219512204},{"$f":"VLOOKUP($A57,F1__World_Data!$A$4:$DP$191,109,FALSE)","v":66.504878048780498},{"$f":"VLOOKUP($A57,F1__World_Data!$A$4:$DP$191,108,FALSE)","v":66.160975609756107},{"$f":"VLOOKUP($A57,F1__World_Data!$A$4:$DP$191,107,FALSE)","v":65.909756097560987},{"$f":"VLOOKUP($A57,F1__World_Data!$A$4:$DP$191,106,FALSE)","v":65.887804878048783},{"$f":"VLOOKUP($A57,F1__World_Data!$A$4:$DP$191,105,FALSE)","v":65.865853658536594},{"$f":"VLOOKUP($A57,F1__World_Data!$A$4:$DP$191,104,FALSE)","v":65.968292682926844},{"$f":"VLOOKUP($A57,F1__World_Data!$A$4:$DP$191,103,FALSE)","v":65.768292682926827},{"$f":"VLOOKUP($A57,F1__World_Data!$A$4:$DP$191,102,FALSE)","v":65.51707317073172},{"$f":"VLOOKUP($A57,F1__World_Data!$A$4:$DP$191,101,FALSE)","v":65.519512195121962},{"$f":"VLOOKUP($A57,F1__World_Data!$A$4:$DP$191,100,FALSE)","v":64.560975609756113},{"$f":"VLOOKUP($A57,F1__World_Data!$A$4:$DP$191,99,FALSE)","v":64.463414634146346},{"$f":"VLOOKUP($A57,F1__World_Data!$A$4:$DP$191,98,FALSE)","v":64.109756097560989},{"$f":"VLOOKUP($A57,F1__World_Data!$A$4:$DP$191,97,FALSE)","v":64.919512195121968},{"$f":"VLOOKUP($A57,F1__World_Data!$A$4:$DP$191,96,FALSE)","v":65.673170731707316},{"$f":"VLOOKUP($A57,F1__World_Data!$A$4:$DP$191,95,FALSE)","v":66.726829268292704},{"$f":"VLOOKUP($A57,F1__World_Data!$A$4:$DP$191,94,FALSE)","v":67.731707317073187},{"$f":"VLOOKUP($A57,F1__World_Data!$A$4:$DP$191,93,FALSE)","v":67.982926829268308},{"$f":"VLOOKUP($A57,F1__World_Data!$A$4:$DP$191,92,FALSE)","v":68.336585365853651},{"$f":"VLOOKUP($A57,F1__World_Data!$A$4:$DP$191,91,FALSE)","v":68.29024390243903},{"$f":"VLOOKUP($A57,F1__World_Data!$A$4:$DP$191,90,FALSE)","v":68.848780487804873},{"$f":"VLOOKUP($A57,F1__World_Data!$A$4:$DP$191,89,FALSE)","v":69.290243902439045},{"$f":"VLOOKUP($A57,F1__World_Data!$A$4:$DP$191,88,FALSE)","v":68.913414634146335},{"$f":"VLOOKUP($A57,F1__World_Data!$A$4:$DP$191,87,FALSE)","v":68.536585365853668},{"$f":"VLOOKUP($A57,F1__World_Data!$A$4:$DP$191,86,FALSE)","v":68.536585365853668},{"$f":"VLOOKUP($A57,F1__World_Data!$A$4:$DP$191,85,FALSE)","v":67.662195121951228},{"$f":"VLOOKUP($A57,F1__World_Data!$A$4:$DP$191,84,FALSE)","v":66.787804878048803},{"$f":"VLOOKUP($A57,F1__World_Data!$A$4:$DP$191,83,FALSE)","v":66.706097560975621},{"$f":"VLOOKUP($A57,F1__World_Data!$A$4:$DP$191,82,FALSE)","v":66.624390243902454},{"$f":"VLOOKUP($A57,F1__World_Data!$A$4:$DP$191,81,FALSE)","v":64.466731707317081},{"$f":"VLOOKUP($A57,F1__World_Data!$A$4:$DP$191,80,FALSE)","v":64.191902439024403},{"$f":"VLOOKUP($A57,F1__World_Data!$A$4:$DP$191,79,FALSE)","v":63.940097560975616},{"$f":"VLOOKUP($A57,F1__World_Data!$A$4:$DP$191,78,FALSE)","v":63.709268292682935},{"$f":"VLOOKUP($A57,F1__World_Data!$A$4:$DP$191,77,FALSE)","v":63.491878048780499},{"$f":"VLOOKUP($A57,F1__World_Data!$A$4:$DP$191,76,FALSE)","v":63.279926829268312},{"$f":"VLOOKUP($A57,F1__World_Data!$A$4:$DP$191,75,FALSE)","v":63.060926829268297},{"$f":"VLOOKUP($A57,F1__World_Data!$A$4:$DP$191,74,FALSE)","v":62.825926829268298},{"$f":"VLOOKUP($A57,F1__World_Data!$A$4:$DP$191,73,FALSE)","v":62.566902439024403},{"$f":"VLOOKUP($A57,F1__World_Data!$A$4:$DP$191,72,FALSE)","v":62.279390243902448},{"$f":"VLOOKUP($A57,F1__World_Data!$A$4:$DP$191,71,FALSE)","v":61.959878048780489},{"$f":"VLOOKUP($A57,F1__World_Data!$A$4:$DP$191,70,FALSE)","v":61.612878048780495},{"$f":"VLOOKUP($A57,F1__World_Data!$A$4:$DP$191,69,FALSE)","v":61.243390243902439},{"$f":"VLOOKUP($A57,F1__World_Data!$A$4:$DP$191,68,FALSE)","v":60.855414634146349},{"$f":"VLOOKUP($A57,F1__World_Data!$A$4:$DP$191,67,FALSE)","v":60.451951219512203},{"$f":"VLOOKUP($A57,F1__World_Data!$A$4:$DP$191,66,FALSE)","v":60.038000000000004},{"$f":"VLOOKUP($A57,F1__World_Data!$A$4:$DP$191,65,FALSE)","v":59.619536585365864},{"$f":"VLOOKUP($A57,F1__World_Data!$A$4:$DP$191,64,FALSE)","v":59.199560975609756},{"$f":"VLOOKUP($A57,F1__World_Data!$A$4:$DP$191,63,FALSE)","v":58.781585365853665},{"$f":"VLOOKUP($A57,F1__World_Data!$A$4:$DP$191,62,FALSE)","v":58.367585365853671}]
["Malawi",{"$f":"VLOOKUP($A58,F1__World_Data!$A$4:$DP$191,60,FALSE)","v":18143.215},{"$f":"VLOOKUP($A58,F1__World_Data!$A$4:$DP$191,59,FALSE)","v":17670.192999999999},{"$f":"VLOOKUP($A58,F1__World_Data!$A$4:$DP$191,58,FALSE)","v":17205.253000000001},{"$f":"VLOOKUP($A58,F1__World_Data!$A$4:$DP$191,57,FALSE)","v":16745.305},{"$f":"VLOOKUP($A58,F1__World_Data!$A$4:$DP$191,56,FALSE)","v":16289.55},{"$f":"VLOOKUP($A58,F1__World_Data!$A$4:$DP$191,55,FALSE)","v":15839.287},{"$f":"VLOOKUP($A58,F1__World_Data!$A$4:$DP$191,54,FALSE)","v":15396.01},{"$f":"VLOOKUP($A58,F1__World_Data!$A$4:$DP$191,53,FALSE)","v":14962.118},{"$f":"VLOOKUP($A58,F1__World_Data!$A$4:$DP$191,52,FALSE)","v":14539.609},{"$f":"VLOOKUP($A58,F1__World_Data!$A$4:$DP$191,51,FALSE)","v":14128.161},{"$f":"VLOOKUP($A58,F1__World_Data!$A$4:$DP$191,50,FALSE)","v":13727.898999999999},{"$f":"VLOOKUP($A58,F1__World_Data!$A$4:$DP$191,49,FALSE)","v":13341.808000000001},{"$f":"VLOOKUP($A58,F1__World_Data!$A$4:$DP$191,48,FALSE)","v":12973.692999999999},{"$f":"VLOOKUP($A58,F1__World_Data!$A$4:$DP$191,47,FALSE)","v":12625.95},{"$f":"VLOOKUP($A58,F1__World_Data!$A$4:$DP$191,46,FALSE)","v":12301.837},{"$f":"VLOOKUP($A58,F1__World_Data!$A$4:$DP$191,45,FALSE)","v":12000.183000000001},{"$f":"VLOOKUP($A58,F1__World_Data!$A$4:$DP$191,44,FALSE)","v":11713.663},{"$f":"VLOOKUP($A58,F1__World_Data!$A$4:$DP$191,43,FALSE)","v":11432.001},{"$f":"VLOOKUP($A58,F1__World_Data!$A$4:$DP$191,42,FALSE)","v":11148.751},{"$f":"VLOOKUP($A58,F1__World_Data!$A$4:$DP$191,41,FALSE)","v":10854.325000000001},{"$f":"VLOOKUP($A58,F1__World_Data!$A$4:$DP$191,40,FALSE)","v":10552.344999999999},{"$f":"VLOOKUP($A58,F1__World_Data!$A$4:$DP$191,39,FALSE)","v":10264.906000000001},{"$f":"VLOOKUP($A58,F1__World_Data!$A$4:$DP$191,38,FALSE)","v":10022.782999999999},{"$f":"VLOOKUP($A58,F1__World_Data!$A$4:$DP$191,37,FALSE)","v":9844.4179999999997},{"$f":"VLOOKUP($A58,F1__World_Data!$A$4:$DP$191,36,FALSE)","v":9745.6949999999997},{"$f":"VLOOKUP($A58,F1__World_Data!$A$4:$DP$191,35,FALSE)","v":9710.3349999999991},{"$f":"VLOOKUP($A58,F1__World_Data!$A$4:$DP$191,34,FALSE)","v":9685.9740000000002},{"$f":"VLOOKUP($A58,F1__World_Data!$A$4:$DP$191,33,FALSE)","v":9600.3610000000008},{"$f":"VLOOKUP($A58,F1__World_Data!$A$4:$DP$191,32,FALSE)","v":9404.4989999999998},{"$f":"VLOOKUP($A58,F1__World_Data!$A$4:$DP$191,31,FALSE)","v":9075.5679999999993},{"$f":"VLOOKUP($A58,F1__World_Data!$A$4:$DP$191,30,FALSE)","v":8636.6859999999997},{"$f":"VLOOKUP($A58,F1__World_Data!$A$4:$DP$191,29,FALSE)","v":8141.14},{"$f":"VLOOKUP($A58,F1__World_Data!$A$4:$DP$191,28,FALSE)","v":7666.39},{"$f":"VLOOKUP($A58,F1__World_Data!$A$4:$DP$191,27,FALSE)","v":7268.2709999999997},{"$f":"VLOOKUP($A58,F1__World_Data!$A$4:$DP$191,26,FALSE)","v":6964.6130000000003},{"$f":"VLOOKUP($A58,F1__World_Data!$A$4:$DP$191,25,FALSE)","v":6737.924},{"$f":"VLOOKUP($A58,F1__World_Data!$A$4:$DP$191,24,FALSE)","v":6565.9849999999997},{"$f":"VLOOKUP($A58,F1__World_Data!$A$4:$DP$191,23,FALSE)","v":6412.38},{"$f":"VLOOKUP($A58,F1__World_Data!$A$4:$DP$191,22,FALSE)","v":6250.4340000000002},{"$f":"VLOOKUP($A58,F1__World_Data!$A$4:$DP$191,21,FALSE)","v":6075.4849999999997},{"$f":"VLOOKUP($A58,F1__World_Data!$A$4:$DP$191,20,FALSE)","v":5896.8639999999996},{"$f":"VLOOKUP($A58,F1__World_Data!$A$4:$DP$191,19,FALSE)","v":5717.9539999999997},{"$f":"VLOOKUP($A58,F1__World_Data!$A$4:$DP$191,18,FALSE)","v":5545.6530000000002},{"$f":"VLOOKUP($A58,F1__World_Data!$A$4:$DP$191,17,FALSE)","v":5384.7979999999998},{"$f":"VLOOKUP($A58,F1__World_Data!$A$4:$DP$191,16,FALSE)","v":5235.0739999999996},{"$f":"VLOOKUP($A58,F1__World_Data!$A$4:$DP$191,15,FALSE)","v":5093.3680000000004},{"$f":"VLOOKUP($A58,F1__World_Data!$A$4:$DP$191,14,FALSE)","v":4958.5559999999996},{"$f":"VLOOKUP($A58,F1__World_Data!$A$4:$DP$191,13,FALSE)","v":4829.0919999999996},{"$f":"VLOOKUP($A58,F1__World_Data!$A$4:$DP$191,12,FALSE)","v":4703.7830000000004},{"$f":"VLOOKUP($A58,F1__World_Data!$A$4:$DP$191,11,FALSE)","v":4582.1970000000001},{"$f":"VLOOKUP($A58,F1__World_Data!$A$4:$DP$191,10,FALSE)","v":4464.4269999999997},{"$f":"VLOOKUP($A58,F1__World_Data!$A$4:$DP$191,9,FALSE)","v":4350.4560000000001},{"$f":"VLOOKUP($A58,F1__World_Data!$A$4:$DP$191,8,FALSE)","v":4240.43},{"$f":"VLOOKUP($A58,F1__World_Data!$A$4:$DP$191,7,FALSE)","v":4134.4639999999999},{"$f":"VLOOKUP($A58,F1__World_Data!$A$4:$DP$191,6,FALSE)","v":4032.364},{"$f":"VLOOKUP($A58,F1__World_Data!$A$4:$DP$191,5,FALSE)","v":3933.9140000000002},{"$f":"VLOOKUP($A58,F1__World_Data!$A$4:$DP$191,4,FALSE)","v":3839.047},{"$f":"VLOOKUP($A58,F1__World_Data!$A$4:$DP$191,3,FALSE)","v":3747.7579999999998},{"$f":"VLOOKUP($A58,F1__World_Data!$A$4:$DP$191,2,FALSE)","v":3659.98},null,{"$f":"VLOOKUP($A58,F1__World_Data!$A$4:$DP$191,120,FALSE)","v":68.116},{"$f":"VLOOKUP($A58,F1__World_Data!$A$4:$DP$191,119,FALSE)","v":67.850999999999999},{"$f":"VLOOKUP($A58,F1__World_Data!$A$4:$DP$191,118,FALSE)","v":67.576999999999998},{"$f":"VLOOKUP($A58,F1__World_Data!$A$4:$DP$191,117,FALSE)","v":67.290999999999997},{"$f":"VLOOKUP($A58,F1__World_Data!$A$4:$DP$191,116,FALSE)","v":66.995000000000005},{"$f":"VLOOKUP($A58,F1__World_Data!$A$4:$DP$191,115,FALSE)","v":66.69},{"$f":"VLOOKUP($A58,F1__World_Data!$A$4:$DP$191,114,FALSE)","v":66.381},{"$f":"VLOOKUP($A58,F1__World_Data!$A$4:$DP$191,113,FALSE)","v":66.072000000000003},{"$f":"VLOOKUP($A58,F1__World_Data!$A$4:$DP$191,112,FALSE)","v":65.769000000000005},{"$f":"VLOOKUP($A58,F1__World_Data!$A$4:$DP$191,111,FALSE)","v":65.48},{"$f":"VLOOKUP($A58,F1__World_Data!$A$4:$DP$191,110,FALSE)","v":65.207999999999998},{"$f":"VLOOKUP($A58,F1__World_Data!$A$4:$DP$191,109,FALSE)","v":64.953000000000003},{"$f":"VLOOKUP($A58,F1__World_Data!$A$4:$DP$191,108,FALSE)","v":64.712000000000003},{"$f":"VLOOKUP($A58,F1__World_Data!$A$4:$DP$191,107,FALSE)","v":64.477999999999994},{"$f":"VLOOKUP($A58,F1__World_Data!$A$4:$DP$191,106,FALSE)","v":64.242000000000004},{"$f":"VLOOKUP($A58,F1__World_Data!$A$4:$DP$191,105,FALSE)","v":63.994999999999997},{"$f":"VLOOKUP($A58,F1__World_Data!$A$4:$DP$191,104,FALSE)","v":63.731000000000002},{"$f":"VLOOKUP($A58,F1__World_Data!$A$4:$DP$191,103,FALSE)","v":63.445999999999998},{"$f":"VLOOKUP($A58,F1__World_Data!$A$4:$DP$191,102,FALSE)","v":63.143999999999998},{"$f":"VLOOKUP($A58,F1__World_Data!$A$4:$DP$191,101,FALSE)","v":62.829000000000001},{"$f":"VLOOKUP($A58,F1__World_Data!$A$4:$DP$191,100,FALSE)","v":62.509},{"$f":"VLOOKUP($A58,F1__World_Data!$A$4:$DP$191,99,FALSE)","v":62.188000000000002},{"$f":"VLOOKUP($A58,F1__World_Data!$A$4:$DP$191,98,FALSE)","v":61.866},{"$f":"VLOOKUP($A58,F1__World_Data!$A$4:$DP$191,97,FALSE)","v":61.539000000000001},{"$f":"VLOOKUP($A58,F1__World_Data!$A$4:$DP$191,96,FALSE)","v":61.198},{"$f":"VLOOKUP($A58,F1__World_Data!$A$4:$DP$191,95,FALSE)","v":60.837000000000003},{"$f":"VLOOKUP($A58,F1__World_Data!$A$4:$DP$191,94,FALSE)","v":60.454999999999998},{"$f":"VLOOKUP($A58,F1__World_Data!$A$4:$DP$191,93,FALSE)","v":60.052999999999997},{"$f":"VLOOKUP($A58,F1__World_Data!$A$4:$DP$191,92,FALSE)","v":59.636000000000003},{"$f":"VLOOKUP($A58,F1__World_Data!$A$4:$DP$191,91,FALSE)","v":59.209000000000003},{"$f":"VLOOKUP($A58,F1__World_Data!$A$4:$DP$191,90,FALSE)","v":58.783000000000001},{"$f":"VLOOKUP($A58,F1__World_Data!$A$4:$DP$191,89,FALSE)","v":58.366},{"$f":"VLOOKUP($A58,F1__World_Data!$A$4:$DP$191,88,FALSE)","v":57.962000000000003},{"$f":"VLOOKUP($A58,F1__World_Data!$A$4:$DP$191,87,FALSE)","v":57.579000000000001},{"$f":"VLOOKUP($A58,F1__World_Data!$A$4:$DP$191,86,FALSE)","v":57.220999999999997},{"$f":"VLOOKUP($A58,F1__World_Data!$A$4:$DP$191,85,FALSE)","v":56.886000000000003},{"$f":"VLOOKUP($A58,F1__World_Data!$A$4:$DP$191,84,FALSE)","v":56.569000000000003},{"$f":"VLOOKUP($A58,F1__World_Data!$A$4:$DP$191,83,FALSE)","v":56.265999999999998},{"$f":"VLOOKUP($A58,F1__World_Data!$A$4:$DP$191,82,FALSE)","v":55.970999999999997},{"$f":"VLOOKUP($A58,F1__World_Data!$A$4:$DP$191,81,FALSE)","v":55.679000000000002},{"$f":"VLOOKUP($A58,F1__World_Data!$A$4:$DP$191,80,FALSE)","v":55.381999999999998},{"$f":"VLOOKUP($A58,F1__World_Data!$A$4:$DP$191,79,FALSE)","v":55.073999999999998},{"$f":"VLOOKUP($A58,F1__World_Data!$A$4:$DP$191,78,FALSE)","v":54.747999999999998},{"$f":"VLOOKUP($A58,F1__World_Data!$A$4:$DP$191,77,FALSE)","v":54.399000000000001},{"$f":"VLOOKUP($A58,F1__World_Data!$A$4:$DP$191,76,FALSE)","v":54.027000000000001},{"$f":"VLOOKUP($A58,F1__World_Data!$A$4:$DP$191,75,FALSE)","v":53.633000000000003},{"$f":"VLOOKUP($A58,F1__World_Data!$A$4:$DP$191,74,FALSE)","v":53.218000000000004},{"$f":"VLOOKUP($A58,F1__World_Data!$A$4:$DP$191,73,FALSE)","v":52.781999999999996},{"$f":"VLOOKUP($A58,F1__World_Data!$A$4:$DP$191,72,FALSE)","v":52.323},{"$f":"VLOOKUP($A58,F1__World_Data!$A$4:$DP$191,71,FALSE)","v":51.837000000000003},{"$f":"VLOOKUP($A58,F1__World_Data!$A$4:$DP$191,70,FALSE)","v":51.326999999999998},{"$f":"VLOOKUP($A58,F1__World_Data!$A$4:$DP$191,69,FALSE)","v":50.795999999999999},{"$f":"VLOOKUP($A58,F1__World_Data!$A$4:$DP$191,68,FALSE)","v":50.25},{"$f":"VLOOKUP($A58,F1__World_Data!$A$4:$DP$191,67,FALSE)","v":49.697000000000003},{"$f":"VLOOKUP($A58,F1__World_Data!$A$4:$DP$191,66,FALSE)","v":49.145000000000003},{"$f":"VLOOKUP($A58,F1__World_Data!$A$4:$DP$191,65,FALSE)","v":48.600999999999999},{"$f":"VLOOKUP($A58,F1__World_Data!$A$4:$DP$191,64,FALSE)","v":48.070999999999998},{"$f":"VLOOKUP($A58,F1__World_Data!$A$4:$DP$191,63,FALSE)","v":47.557000000000002},{"$f":"VLOOKUP($A58,F1__World_Data!$A$4:$DP$191,62,FALSE)","v":47.061}]
["Zambia",{"$f":"VLOOKUP($A59,F1__World_Data!$A$4:$DP$191,60,FALSE)","v":17351.714},{"$f":"VLOOKUP($A59,F1__World_Data!$A$4:$DP$191,59,FALSE)","v":16853.608},{"$f":"VLOOKUP($A59,F1__World_Data!$A$4:$DP$191,58,FALSE)","v":16363.449000000001},{"$f":"VLOOKUP($A59,F1__World_Data!$A$4:$DP$191,57,FALSE)","v":15879.37},{"$f":"VLOOKUP($A59,F1__World_Data!$A$4:$DP$191,56,FALSE)","v":15399.793},{"$f":"VLOOKUP($A59,F1__World_Data!$A$4:$DP$191,55,FALSE)","v":14926.550999999999},{"$f":"VLOOKUP($A59,F1__World_Data!$A$4:$DP$191,54,FALSE)","v":14465.147999999999},{"$f":"VLOOKUP($A59,F1__World_Data!$A$4:$DP$191,53,FALSE)","v":14023.199000000001},{"$f":"VLOOKUP($A59,F1__World_Data!$A$4:$DP$191,52,FALSE)","v":13605.986000000001},{"$f":"VLOOKUP($A59,F1__World_Data!$A$4:$DP$191,51,FALSE)","v":13215.142},{"$f":"VLOOKUP($A59,F1__World_Data!$A$4:$DP$191,50,FALSE)","v":12848.531000000001},{"$f":"VLOOKUP($A59,F1__World_Data!$A$4:$DP$191,49,FALSE)","v":12502.958000000001},{"$f":"VLOOKUP($A59,F1__World_Data!$A$4:$DP$191,48,FALSE)","v":12173.518},{"$f":"VLOOKUP($A59,F1__World_Data!$A$4:$DP$191,47,FALSE)","v":11856.244000000001},{"$f":"VLOOKUP($A59,F1__World_Data!$A$4:$DP$191,46,FALSE)","v":11550.641},{"$f":"VLOOKUP($A59,F1__World_Data!$A$4:$DP$191,45,FALSE)","v":11256.74},{"$f":"VLOOKUP($A59,F1__World_Data!$A$4:$DP$191,44,FALSE)","v":10971.704},{"$f":"VLOOKUP($A59,F1__World_Data!$A$4:$DP$191,43,FALSE)","v":10692.197},{"$f":"VLOOKUP($A59,F1__World_Data!$A$4:$DP$191,42,FALSE)","v":10415.941999999999},{"$f":"VLOOKUP($A59,F1__World_Data!$A$4:$DP$191,41,FALSE)","v":10140.564},{"$f":"VLOOKUP($A59,F1__World_Data!$A$4:$DP$191,40,FALSE)","v":9866.4740000000002},{"$f":"VLOOKUP($A59,F1__World_Data!$A$4:$DP$191,39,FALSE)","v":9597.61},{"$f":"VLOOKUP($A59,F1__World_Data!$A$4:$DP$191,38,FALSE)","v":9339.74},{"$f":"VLOOKUP($A59,F1__World_Data!$A$4:$DP$191,37,FALSE)","v":9096.6080000000002},{"$f":"VLOOKUP($A59,F1__World_Data!$A$4:$DP$191,36,FALSE)","v":8869.7450000000008},{"$f":"VLOOKUP($A59,F1__World_Data!$A$4:$DP$191,35,FALSE)","v":8656.4840000000004},{"$f":"VLOOKUP($A59,F1__World_Data!$A$4:$DP$191,34,FALSE)","v":8451.3459999999995},{"$f":"VLOOKUP($A59,F1__World_Data!$A$4:$DP$191,33,FALSE)","v":8246.6620000000003},{"$f":"VLOOKUP($A59,F1__World_Data!$A$4:$DP$191,32,FALSE)","v":8036.8490000000002},{"$f":"VLOOKUP($A59,F1__World_Data!$A$4:$DP$191,31,FALSE)","v":7820.1989999999996},{"$f":"VLOOKUP($A59,F1__World_Data!$A$4:$DP$191,30,FALSE)","v":7598.27},{"$f":"VLOOKUP($A59,F1__World_Data!$A$4:$DP$191,29,FALSE)","v":7372.835},{"$f":"VLOOKUP($A59,F1__World_Data!$A$4:$DP$191,28,FALSE)","v":7146.9650000000001},{"$f":"VLOOKUP($A59,F1__World_Data!$A$4:$DP$191,27,FALSE)","v":6923.1480000000001},{"$f":"VLOOKUP($A59,F1__World_Data!$A$4:$DP$191,26,FALSE)","v":6701.5469999999996},{"$f":"VLOOKUP($A59,F1__World_Data!$A$4:$DP$191,25,FALSE)","v":6481.9070000000002},{"$f":"VLOOKUP($A59,F1__World_Data!$A$4:$DP$191,24,FALSE)","v":6265.8689999999997},{"$f":"VLOOKUP($A59,F1__World_Data!$A$4:$DP$191,23,FALSE)","v":6055.3609999999999},{"$f":"VLOOKUP($A59,F1__World_Data!$A$4:$DP$191,22,FALSE)","v":5851.8180000000002},{"$f":"VLOOKUP($A59,F1__World_Data!$A$4:$DP$191,21,FALSE)","v":5656.1450000000004},{"$f":"VLOOKUP($A59,F1__World_Data!$A$4:$DP$191,20,FALSE)","v":5468.259},{"$f":"VLOOKUP($A59,F1__World_Data!$A$4:$DP$191,19,FALSE)","v":5287.5439999999999},{"$f":"VLOOKUP($A59,F1__World_Data!$A$4:$DP$191,18,FALSE)","v":5112.8230000000003},{"$f":"VLOOKUP($A59,F1__World_Data!$A$4:$DP$191,17,FALSE)","v":4943.2790000000005},{"$f":"VLOOKUP($A59,F1__World_Data!$A$4:$DP$191,16,FALSE)","v":4778.7160000000003},{"$f":"VLOOKUP($A59,F1__World_Data!$A$4:$DP$191,15,FALSE)","v":4619.549},{"$f":"VLOOKUP($A59,F1__World_Data!$A$4:$DP$191,14,FALSE)","v":4466.17},{"$f":"VLOOKUP($A59,F1__World_Data!$A$4:$DP$191,13,FALSE)","v":4319.2259999999997},{"$f":"VLOOKUP($A59,F1__World_Data!$A$4:$DP$191,12,FALSE)","v":4179.0619999999999},{"$f":"VLOOKUP($A59,F1__World_Data!$A$4:$DP$191,11,FALSE)","v":4045.74},{"$f":"VLOOKUP($A59,F1__World_Data!$A$4:$DP$191,10,FALSE)","v":3918.8719999999998},{"$f":"VLOOKUP($A59,F1__World_Data!$A$4:$DP$191,9,FALSE)","v":3797.877},{"$f":"VLOOKUP($A59,F1__World_Data!$A$4:$DP$191,8,FALSE)","v":3681.953},{"$f":"VLOOKUP($A59,F1__World_Data!$A$4:$DP$191,7,FALSE)","v":3570.4659999999999},{"$f":"VLOOKUP($A59,F1__World_Data!$A$4:$DP$191,6,FALSE)","v":3463.2109999999998},{"$f":"VLOOKUP($A59,F1__World_Data!$A$4:$DP$191,5,FALSE)","v":3360.0990000000002},{"$f":"VLOOKUP($A59,F1__World_Data!$A$4:$DP$191,4,FALSE)","v":3260.645},{"$f":"VLOOKUP($A59,F1__World_Data!$A$4:$DP$191,3,FALSE)","v":3164.33},{"$f":"VLOOKUP($A59,F1__World_Data!$A$4:$DP$191,2,FALSE)","v":3070.78},null,{"$f":"VLOOKUP($A59,F1__World_Data!$A$4:$DP$191,120,FALSE)","v":63.51},{"$f":"VLOOKUP($A59,F1__World_Data!$A$4:$DP$191,119,FALSE)","v":63.042999999999999},{"$f":"VLOOKUP($A59,F1__World_Data!$A$4:$DP$191,118,FALSE)","v":62.463999999999999},{"$f":"VLOOKUP($A59,F1__World_Data!$A$4:$DP$191,117,FALSE)","v":61.737000000000002},{"$f":"VLOOKUP($A59,F1__World_Data!$A$4:$DP$191,116,FALSE)","v":60.831000000000003},{"$f":"VLOOKUP($A59,F1__World_Data!$A$4:$DP$191,115,FALSE)","v":59.746000000000002},{"$f":"VLOOKUP($A59,F1__World_Data!$A$4:$DP$191,114,FALSE)","v":58.502000000000002},{"$f":"VLOOKUP($A59,F1__World_Data!$A$4:$DP$191,113,FALSE)","v":57.125999999999998},{"$f":"VLOOKUP($A59,F1__World_Data!$A$4:$DP$191,112,FALSE)","v":55.655000000000001},{"$f":"VLOOKUP($A59,F1__World_Data!$A$4:$DP$191,111,FALSE)","v":54.13},{"$f":"VLOOKUP($A59,F1__World_Data!$A$4:$DP$191,110,FALSE)","v":52.606000000000002},{"$f":"VLOOKUP($A59,F1__World_Data!$A$4:$DP$191,109,FALSE)","v":51.134},{"$f":"VLOOKUP($A59,F1__World_Data!$A$4:$DP$191,108,FALSE)","v":49.756999999999998},{"$f":"VLOOKUP($A59,F1__World_Data!$A$4:$DP$191,107,FALSE)","v":48.496000000000002},{"$f":"VLOOKUP($A59,F1__World_Data!$A$4:$DP$191,106,FALSE)","v":47.353999999999999},{"$f":"VLOOKUP($A59,F1__World_Data!$A$4:$DP$191,105,FALSE)","v":46.322000000000003},{"$f":"VLOOKUP($A59,F1__World_Data!$A$4:$DP$191,104,FALSE)","v":45.4},{"$f":"VLOOKUP($A59,F1__World_Data!$A$4:$DP$191,103,FALSE)","v":44.615000000000002},{"$f":"VLOOKUP($A59,F1__World_Data!$A$4:$DP$191,102,FALSE)","v":44},{"$f":"VLOOKUP($A59,F1__World_Data!$A$4:$DP$191,101,FALSE)","v":43.594000000000001},{"$f":"VLOOKUP($A59,F1__World_Data!$A$4:$DP$191,100,FALSE)","v":43.412999999999997},{"$f":"VLOOKUP($A59,F1__World_Data!$A$4:$DP$191,99,FALSE)","v":43.460999999999999},{"$f":"VLOOKUP($A59,F1__World_Data!$A$4:$DP$191,98,FALSE)","v":43.734999999999999},{"$f":"VLOOKUP($A59,F1__World_Data!$A$4:$DP$191,97,FALSE)","v":44.241999999999997},{"$f":"VLOOKUP($A59,F1__World_Data!$A$4:$DP$191,96,FALSE)","v":44.982999999999997},{"$f":"VLOOKUP($A59,F1__World_Data!$A$4:$DP$191,95,FALSE)","v":45.918999999999997},{"$f":"VLOOKUP($A59,F1__World_Data!$A$4:$DP$191,94,FALSE)","v":46.987000000000002},{"$f":"VLOOKUP($A59,F1__World_Data!$A$4:$DP$191,93,FALSE)","v":48.125},{"$f":"VLOOKUP($A59,F1__World_Data!$A$4:$DP$191,92,FALSE)","v":49.249000000000002},{"$f":"VLOOKUP($A59,F1__World_Data!$A$4:$DP$191,91,FALSE)","v":50.281999999999996},{"$f":"VLOOKUP($A59,F1__World_Data!$A$4:$DP$191,90,FALSE)","v":51.173000000000002},{"$f":"VLOOKUP($A59,F1__World_Data!$A$4:$DP$191,89,FALSE)","v":51.887999999999998},{"$f":"VLOOKUP($A59,F1__World_Data!$A$4:$DP$191,88,FALSE)","v":52.402000000000001},{"$f":"VLOOKUP($A59,F1__World_Data!$A$4:$DP$191,87,FALSE)","v":52.72},{"$f":"VLOOKUP($A59,F1__World_Data!$A$4:$DP$191,86,FALSE)","v":52.87},{"$f":"VLOOKUP($A59,F1__World_Data!$A$4:$DP$191,85,FALSE)","v":52.914999999999999},{"$f":"VLOOKUP($A59,F1__World_Data!$A$4:$DP$191,84,FALSE)","v":52.905000000000001},{"$f":"VLOOKUP($A59,F1__World_Data!$A$4:$DP$191,83,FALSE)","v":52.863},{"$f":"VLOOKUP($A59,F1__World_Data!$A$4:$DP$191,82,FALSE)","v":52.802},{"$f":"VLOOKUP($A59,F1__World_Data!$A$4:$DP$191,81,FALSE)","v":52.722000000000001},{"$f":"VLOOKUP($A59,F1__World_Data!$A$4:$DP$191,80,FALSE)","v":52.606999999999999},{"$f":"VLOOKUP($A59,F1__World_Data!$A$4:$DP$191,79,FALSE)","v":52.448999999999998},{"$f":"VLOOKUP($A59,F1__World_Data!$A$4:$DP$191,78,FALSE)","v":52.247},{"$f":"VLOOKUP($A59,F1__World_Data!$A$4:$DP$191,77,FALSE)","v":51.999000000000002},{"$f":"VLOOKUP($A59,F1__World_Data!$A$4:$DP$191,76,FALSE)","v":51.7},{"$f":"VLOOKUP($A59,F1__World_Data!$A$4:$DP$191,75,FALSE)","v":51.350999999999999},{"$f":"VLOOKUP($A59,F1__World_Data!$A$4:$DP$191,74,FALSE)","v":50.960999999999999},{"$f":"VLOOKUP($A59,F1__World_Data!$A$4:$DP$191,73,FALSE)","v":50.542000000000002},{"$f":"VLOOKUP($A59,F1__World_Data!$A$4:$DP$191,72,FALSE)","v":50.113999999999997},{"$f":"VLOOKUP($A59,F1__World_Data!$A$4:$DP$191,71,FALSE)","v":49.7},{"$f":"VLOOKUP($A59,F1__World_Data!$A$4:$DP$191,70,FALSE)","v":49.313000000000002},{"$f":"VLOOKUP($A59,F1__World_Data!$A$4:$DP$191,69,FALSE)","v":48.96},{"$f":"VLOOKUP($A59,F1__World_Data!$A$4:$DP$191,68,FALSE)","v":48.643000000000001},{"$f":"VLOOKUP($A59,F1__World_Data!$A$4:$DP$191,67,FALSE)","v":48.350999999999999},{"$f":"VLOOKUP($A59,F1__World_Data!$A$4:$DP$191,66,FALSE)","v":48.067999999999998},{"$f":"VLOOKUP($A59,F1__World_Data!$A$4:$DP$191,65,FALSE)","v":47.771999999999998},{"$f":"VLOOKUP($A59,F1__World_Data!$A$4:$DP$191,64,FALSE)","v":47.445999999999998},{"$f":"VLOOKUP($A59,F1__World_Data!$A$4:$DP$191,63,FALSE)","v":47.084000000000003},{"$f":"VLOOKUP($A59,F1__World_Data!$A$4:$DP$191,62,FALSE)","v":46.686999999999998}]
["Guatemala",{"$f":"VLOOKUP($A60,F1__World_Data!$A$4:$DP$191,60,FALSE)","v":17247.855},{"$f":"VLOOKUP($A60,F1__World_Data!$A$4:$DP$191,59,FALSE)","v":16914.978999999999},{"$f":"VLOOKUP($A60,F1__World_Data!$A$4:$DP$191,58,FALSE)","v":16583.079000000002},{"$f":"VLOOKUP($A60,F1__World_Data!$A$4:$DP$191,57,FALSE)","v":16252.424999999999},{"$f":"VLOOKUP($A60,F1__World_Data!$A$4:$DP$191,56,FALSE)","v":15923.237999999999},{"$f":"VLOOKUP($A60,F1__World_Data!$A$4:$DP$191,55,FALSE)","v":15595.821},{"$f":"VLOOKUP($A60,F1__World_Data!$A$4:$DP$191,54,FALSE)","v":15270.773999999999},{"$f":"VLOOKUP($A60,F1__World_Data!$A$4:$DP$191,53,FALSE)","v":14948.791999999999},{"$f":"VLOOKUP($A60,F1__World_Data!$A$4:$DP$191,52,FALSE)","v":14630.42},{"$f":"VLOOKUP($A60,F1__World_Data!$A$4:$DP$191,51,FALSE)","v":14316.251},{"$f":"VLOOKUP($A60,F1__World_Data!$A$4:$DP$191,50,FALSE)","v":14006.42},{"$f":"VLOOKUP($A60,F1__World_Data!$A$4:$DP$191,49,FALSE)","v":13700.325999999999},{"$f":"VLOOKUP($A60,F1__World_Data!$A$4:$DP$191,48,FALSE)","v":13397.022000000001},{"$f":"VLOOKUP($A60,F1__World_Data!$A$4:$DP$191,47,FALSE)","v":13096.028},{"$f":"VLOOKUP($A60,F1__World_Data!$A$4:$DP$191,46,FALSE)","v":12796.925999999999},{"$f":"VLOOKUP($A60,F1__World_Data!$A$4:$DP$191,45,FALSE)","v":12500.478999999999},{"$f":"VLOOKUP($A60,F1__World_Data!$A$4:$DP$191,44,FALSE)","v":12208.853999999999},{"$f":"VLOOKUP($A60,F1__World_Data!$A$4:$DP$191,43,FALSE)","v":11924.941000000001},{"$f":"VLOOKUP($A60,F1__World_Data!$A$4:$DP$191,42,FALSE)","v":11650.744000000001},{"$f":"VLOOKUP($A60,F1__World_Data!$A$4:$DP$191,41,FALSE)","v":11387.208000000001},{"$f":"VLOOKUP($A60,F1__World_Data!$A$4:$DP$191,40,FALSE)","v":11133.502},{"$f":"VLOOKUP($A60,F1__World_Data!$A$4:$DP$191,39,FALSE)","v":10887.637000000001},{"$f":"VLOOKUP($A60,F1__World_Data!$A$4:$DP$191,38,FALSE)","v":10646.675999999999},{"$f":"VLOOKUP($A60,F1__World_Data!$A$4:$DP$191,37,FALSE)","v":10408.486000000001},{"$f":"VLOOKUP($A60,F1__World_Data!$A$4:$DP$191,36,FALSE)","v":10172.303},{"$f":"VLOOKUP($A60,F1__World_Data!$A$4:$DP$191,35,FALSE)","v":9938.6990000000005},{"$f":"VLOOKUP($A60,F1__World_Data!$A$4:$DP$191,34,FALSE)","v":9708.5519999999997},{"$f":"VLOOKUP($A60,F1__World_Data!$A$4:$DP$191,33,FALSE)","v":9483.2729999999992},{"$f":"VLOOKUP($A60,F1__World_Data!$A$4:$DP$191,32,FALSE)","v":9263.82},{"$f":"VLOOKUP($A60,F1__World_Data!$A$4:$DP$191,31,FALSE)","v":9050.4639999999999},{"$f":"VLOOKUP($A60,F1__World_Data!$A$4:$DP$191,30,FALSE)","v":8842.5709999999999},{"$f":"VLOOKUP($A60,F1__World_Data!$A$4:$DP$191,29,FALSE)","v":8639.1049999999996},{"$f":"VLOOKUP($A60,F1__World_Data!$A$4:$DP$191,28,FALSE)","v":8438.5990000000002},{"$f":"VLOOKUP($A60,F1__World_Data!$A$4:$DP$191,27,FALSE)","v":8240.06},{"$f":"VLOOKUP($A60,F1__World_Data!$A$4:$DP$191,26,FALSE)","v":8042.8950000000004},{"$f":"VLOOKUP($A60,F1__World_Data!$A$4:$DP$191,25,FALSE)","v":7847.4679999999998},{"$f":"VLOOKUP($A60,F1__World_Data!$A$4:$DP$191,24,FALSE)","v":7654.8180000000002},{"$f":"VLOOKUP($A60,F1__World_Data!$A$4:$DP$191,23,FALSE)","v":7466.4809999999998},{"$f":"VLOOKUP($A60,F1__World_Data!$A$4:$DP$191,22,FALSE)","v":7283.4560000000001},{"$f":"VLOOKUP($A60,F1__World_Data!$A$4:$DP$191,21,FALSE)","v":7106.1440000000002},{"$f":"VLOOKUP($A60,F1__World_Data!$A$4:$DP$191,20,FALSE)","v":6933.9089999999997},{"$f":"VLOOKUP($A60,F1__World_Data!$A$4:$DP$191,19,FALSE)","v":6765.5159999999996},{"$f":"VLOOKUP($A60,F1__World_Data!$A$4:$DP$191,18,FALSE)","v":6599.2110000000002},{"$f":"VLOOKUP($A60,F1__World_Data!$A$4:$DP$191,17,FALSE)","v":6433.723},{"$f":"VLOOKUP($A60,F1__World_Data!$A$4:$DP$191,16,FALSE)","v":6268.7070000000003},{"$f":"VLOOKUP($A60,F1__World_Data!$A$4:$DP$191,15,FALSE)","v":6104.5280000000002},{"$f":"VLOOKUP($A60,F1__World_Data!$A$4:$DP$191,14,FALSE)","v":5941.567},{"$f":"VLOOKUP($A60,F1__World_Data!$A$4:$DP$191,13,FALSE)","v":5780.4769999999999},{"$f":"VLOOKUP($A60,F1__World_Data!$A$4:$DP$191,12,FALSE)","v":5621.7939999999999},{"$f":"VLOOKUP($A60,F1__World_Data!$A$4:$DP$191,11,FALSE)","v":5465.5150000000003},{"$f":"VLOOKUP($A60,F1__World_Data!$A$4:$DP$191,10,FALSE)","v":5311.61},{"$f":"VLOOKUP($A60,F1__World_Data!$A$4:$DP$191,9,FALSE)","v":5160.616},{"$f":"VLOOKUP($A60,F1__World_Data!$A$4:$DP$191,8,FALSE)","v":5013.1670000000004},{"$f":"VLOOKUP($A60,F1__World_Data!$A$4:$DP$191,7,FALSE)","v":4869.7139999999999},{"$f":"VLOOKUP($A60,F1__World_Data!$A$4:$DP$191,6,FALSE)","v":4730.5330000000004},{"$f":"VLOOKUP($A60,F1__World_Data!$A$4:$DP$191,5,FALSE)","v":4595.509},{"$f":"VLOOKUP($A60,F1__World_Data!$A$4:$DP$191,4,FALSE)","v":4464.2510000000002},{"$f":"VLOOKUP($A60,F1__World_Data!$A$4:$DP$191,3,FALSE)","v":4336.1319999999996},{"$f":"VLOOKUP($A60,F1__World_Data!$A$4:$DP$191,2,FALSE)","v":4210.7510000000002},null,{"$f":"VLOOKUP($A60,F1__World_Data!$A$4:$DP$191,120,FALSE)","v":79.858999999999995},{"$f":"VLOOKUP($A60,F1__World_Data!$A$4:$DP$191,119,FALSE)","v":79.631},{"$f":"VLOOKUP($A60,F1__World_Data!$A$4:$DP$191,118,FALSE)","v":79.391000000000005},{"$f":"VLOOKUP($A60,F1__World_Data!$A$4:$DP$191,117,FALSE)","v":79.144000000000005},{"$f":"VLOOKUP($A60,F1__World_Data!$A$4:$DP$191,116,FALSE)","v":78.894999999999996},{"$f":"VLOOKUP($A60,F1__World_Data!$A$4:$DP$191,115,FALSE)","v":78.649000000000001},{"$f":"VLOOKUP($A60,F1__World_Data!$A$4:$DP$191,114,FALSE)","v":78.408000000000001},{"$f":"VLOOKUP($A60,F1__World_Data!$A$4:$DP$191,113,FALSE)","v":78.173000000000002},{"$f":"VLOOKUP($A60,F1__World_Data!$A$4:$DP$191,112,FALSE)","v":77.941000000000003},{"$f":"VLOOKUP($A60,F1__World_Data!$A$4:$DP$191,111,FALSE)","v":77.709999999999994},{"$f":"VLOOKUP($A60,F1__World_Data!$A$4:$DP$191,110,FALSE)","v":77.474000000000004},{"$f":"VLOOKUP($A60,F1__World_Data!$A$4:$DP$191,109,FALSE)","v":77.227000000000004},{"$f":"VLOOKUP($A60,F1__World_Data!$A$4:$DP$191,108,FALSE)","v":76.965999999999994},{"$f":"VLOOKUP($A60,F1__World_Data!$A$4:$DP$191,107,FALSE)","v":76.686999999999998},{"$f":"VLOOKUP($A60,F1__World_Data!$A$4:$DP$191,106,FALSE)","v":76.387},{"$f":"VLOOKUP($A60,F1__World_Data!$A$4:$DP$191,105,FALSE)","v":76.064999999999998},{"$f":"VLOOKUP($A60,F1__World_Data!$A$4:$DP$191,104,FALSE)","v":75.725999999999999},{"$f":"VLOOKUP($A60,F1__World_Data!$A$4:$DP$191,103,FALSE)","v":75.373000000000005},{"$f":"VLOOKUP($A60,F1__World_Data!$A$4:$DP$191,102,FALSE)","v":75.010999999999996},{"$f":"VLOOKUP($A60,F1__World_Data!$A$4:$DP$191,101,FALSE)","v":74.646000000000001},{"$f":"VLOOKUP($A60,F1__World_Data!$A$4:$DP$191,100,FALSE)","v":74.283000000000001},{"$f":"VLOOKUP($A60,F1__World_Data!$A$4:$DP$191,99,FALSE)","v":73.930000000000007},{"$f":"VLOOKUP($A60,F1__World_Data!$A$4:$DP$191,98,FALSE)","v":73.588999999999999},{"$f":"VLOOKUP($A60,F1__World_Data!$A$4:$DP$191,97,FALSE)","v":73.266999999999996},{"$f":"VLOOKUP($A60,F1__World_Data!$A$4:$DP$191,96,FALSE)","v":72.966999999999999},{"$f":"VLOOKUP($A60,F1__World_Data!$A$4:$DP$191,95,FALSE)","v":72.685000000000002},{"$f":"VLOOKUP($A60,F1__World_Data!$A$4:$DP$191,94,FALSE)","v":72.42},{"$f":"VLOOKUP($A60,F1__World_Data!$A$4:$DP$191,93,FALSE)","v":72.167000000000002},{"$f":"VLOOKUP($A60,F1__World_Data!$A$4:$DP$191,92,FALSE)","v":71.924999999999997},{"$f":"VLOOKUP($A60,F1__World_Data!$A$4:$DP$191,91,FALSE)","v":71.686999999999998},{"$f":"VLOOKUP($A60,F1__World_Data!$A$4:$DP$191,90,FALSE)","v":71.45},{"$f":"VLOOKUP($A60,F1__World_Data!$A$4:$DP$191,89,FALSE)","v":71.209000000000003},{"$f":"VLOOKUP($A60,F1__World_Data!$A$4:$DP$191,88,FALSE)","v":70.959999999999994},{"$f":"VLOOKUP($A60,F1__World_Data!$A$4:$DP$191,87,FALSE)","v":70.700999999999993},{"$f":"VLOOKUP($A60,F1__World_Data!$A$4:$DP$191,86,FALSE)","v":70.430999999999997},{"$f":"VLOOKUP($A60,F1__World_Data!$A$4:$DP$191,85,FALSE)","v":70.150999999999996},{"$f":"VLOOKUP($A60,F1__World_Data!$A$4:$DP$191,84,FALSE)","v":69.864000000000004},{"$f":"VLOOKUP($A60,F1__World_Data!$A$4:$DP$191,83,FALSE)","v":69.566999999999993},{"$f":"VLOOKUP($A60,F1__World_Data!$A$4:$DP$191,82,FALSE)","v":69.262},{"$f":"VLOOKUP($A60,F1__World_Data!$A$4:$DP$191,81,FALSE)","v":68.947000000000003},{"$f":"VLOOKUP($A60,F1__World_Data!$A$4:$DP$191,80,FALSE)","v":68.623999999999995},{"$f":"VLOOKUP($A60,F1__World_Data!$A$4:$DP$191,79,FALSE)","v":68.292000000000002},{"$f":"VLOOKUP($A60,F1__World_Data!$A$4:$DP$191,78,FALSE)","v":67.950999999999993},{"$f":"VLOOKUP($A60,F1__World_Data!$A$4:$DP$191,77,FALSE)","v":67.599000000000004},{"$f":"VLOOKUP($A60,F1__World_Data!$A$4:$DP$191,76,FALSE)","v":67.234999999999999},{"$f":"VLOOKUP($A60,F1__World_Data!$A$4:$DP$191,75,FALSE)","v":66.86},{"$f":"VLOOKUP($A60,F1__World_Data!$A$4:$DP$191,74,FALSE)","v":66.472999999999999},{"$f":"VLOOKUP($A60,F1__World_Data!$A$4:$DP$191,73,FALSE)","v":66.073999999999998},{"$f":"VLOOKUP($A60,F1__World_Data!$A$4:$DP$191,72,FALSE)","v":65.662000000000006},{"$f":"VLOOKUP($A60,F1__World_Data!$A$4:$DP$191,71,FALSE)","v":65.239000000000004},{"$f":"VLOOKUP($A60,F1__World_Data!$A$4:$DP$191,70,FALSE)","v":64.805000000000007},{"$f":"VLOOKUP($A60,F1__World_Data!$A$4:$DP$191,69,FALSE)","v":64.361000000000004},{"$f":"VLOOKUP($A60,F1__World_Data!$A$4:$DP$191,68,FALSE)","v":63.906999999999996},{"$f":"VLOOKUP($A60,F1__World_Data!$A$4:$DP$191,67,FALSE)","v":63.442999999999998},{"$f":"VLOOKUP($A60,F1__World_Data!$A$4:$DP$191,66,FALSE)","v":62.968000000000004},{"$f":"VLOOKUP($A60,F1__World_Data!$A$4:$DP$191,65,FALSE)","v":62.481999999999999},{"$f":"VLOOKUP($A60,F1__World_Data!$A$4:$DP$191,64,FALSE)","v":61.985999999999997},{"$f":"VLOOKUP($A60,F1__World_Data!$A$4:$DP$191,63,FALSE)","v":61.481000000000002},{"$f":"VLOOKUP($A60,F1__World_Data!$A$4:$DP$191,62,FALSE)","v":60.97}]
["Ecuador",{"$f":"VLOOKUP($A61,F1__World_Data!$A$4:$DP$191,60,FALSE)","v":17084.359},{"$f":"VLOOKUP($A61,F1__World_Data!$A$4:$DP$191,59,FALSE)","v":16785.356},{"$f":"VLOOKUP($A61,F1__World_Data!$A$4:$DP$191,58,FALSE)","v":16491.116000000002},{"$f":"VLOOKUP($A61,F1__World_Data!$A$4:$DP$191,57,FALSE)","v":16212.022000000001},{"$f":"VLOOKUP($A61,F1__World_Data!$A$4:$DP$191,56,FALSE)","v":15951.832},{"$f":"VLOOKUP($A61,F1__World_Data!$A$4:$DP$191,55,FALSE)","v":15707.473},{"$f":"VLOOKUP($A61,F1__World_Data!$A$4:$DP$191,54,FALSE)","v":15474.099},{"$f":"VLOOKUP($A61,F1__World_Data!$A$4:$DP$191,53,FALSE)","v":15243.885},{"$f":"VLOOKUP($A61,F1__World_Data!$A$4:$DP$191,52,FALSE)","v":15011.114},{"$f":"VLOOKUP($A61,F1__World_Data!$A$4:$DP$191,51,FALSE)","v":14774.412},{"$f":"VLOOKUP($A61,F1__World_Data!$A$4:$DP$191,50,FALSE)","v":14535.74},{"$f":"VLOOKUP($A61,F1__World_Data!$A$4:$DP$191,49,FALSE)","v":14296.554},{"$f":"VLOOKUP($A61,F1__World_Data!$A$4:$DP$191,48,FALSE)","v":14059.379000000001},{"$f":"VLOOKUP($A61,F1__World_Data!$A$4:$DP$191,47,FALSE)","v":13825.839},{"$f":"VLOOKUP($A61,F1__World_Data!$A$4:$DP$191,46,FALSE)","v":13596.39},{"$f":"VLOOKUP($A61,F1__World_Data!$A$4:$DP$191,45,FALSE)","v":13369.678},{"$f":"VLOOKUP($A61,F1__World_Data!$A$4:$DP$191,44,FALSE)","v":13143.465},{"$f":"VLOOKUP($A61,F1__World_Data!$A$4:$DP$191,43,FALSE)","v":12914.66},{"$f":"VLOOKUP($A61,F1__World_Data!$A$4:$DP$191,42,FALSE)","v":12681.123},{"$f":"VLOOKUP($A61,F1__World_Data!$A$4:$DP$191,41,FALSE)","v":12442.109},{"$f":"VLOOKUP($A61,F1__World_Data!$A$4:$DP$191,40,FALSE)","v":12198.449000000001},{"$f":"VLOOKUP($A61,F1__World_Data!$A$4:$DP$191,39,FALSE)","v":11951.457},{"$f":"VLOOKUP($A61,F1__World_Data!$A$4:$DP$191,38,FALSE)","v":11703.169},{"$f":"VLOOKUP($A61,F1__World_Data!$A$4:$DP$191,37,FALSE)","v":11455.205},{"$f":"VLOOKUP($A61,F1__World_Data!$A$4:$DP$191,36,FALSE)","v":11207.999},{"$f":"VLOOKUP($A61,F1__World_Data!$A$4:$DP$191,35,FALSE)","v":10961.46},{"$f":"VLOOKUP($A61,F1__World_Data!$A$4:$DP$191,34,FALSE)","v":10716.130999999999},{"$f":"VLOOKUP($A61,F1__World_Data!$A$4:$DP$191,33,FALSE)","v":10472.476000000001},{"$f":"VLOOKUP($A61,F1__World_Data!$A$4:$DP$191,32,FALSE)","v":10230.931},{"$f":"VLOOKUP($A61,F1__World_Data!$A$4:$DP$191,31,FALSE)","v":9991.8700000000008},{"$f":"VLOOKUP($A61,F1__World_Data!$A$4:$DP$191,30,FALSE)","v":9755.5759999999991},{"$f":"VLOOKUP($A61,F1__World_Data!$A$4:$DP$191,29,FALSE)","v":9522.3619999999992},{"$f":"VLOOKUP($A61,F1__World_Data!$A$4:$DP$191,28,FALSE)","v":9292.4809999999998},{"$f":"VLOOKUP($A61,F1__World_Data!$A$4:$DP$191,27,FALSE)","v":9066.1},{"$f":"VLOOKUP($A61,F1__World_Data!$A$4:$DP$191,26,FALSE)","v":8843.4629999999997},{"$f":"VLOOKUP($A61,F1__World_Data!$A$4:$DP$191,25,FALSE)","v":8624.5939999999991},{"$f":"VLOOKUP($A61,F1__World_Data!$A$4:$DP$191,24,FALSE)","v":8409.3960000000006},{"$f":"VLOOKUP($A61,F1__World_Data!$A$4:$DP$191,23,FALSE)","v":8197.6479999999992},{"$f":"VLOOKUP($A61,F1__World_Data!$A$4:$DP$191,22,FALSE)","v":7989.1779999999999},{"$f":"VLOOKUP($A61,F1__World_Data!$A$4:$DP$191,21,FALSE)","v":7784.0739999999996},{"$f":"VLOOKUP($A61,F1__World_Data!$A$4:$DP$191,20,FALSE)","v":7582.357},{"$f":"VLOOKUP($A61,F1__World_Data!$A$4:$DP$191,19,FALSE)","v":7383.7129999999997},{"$f":"VLOOKUP($A61,F1__World_Data!$A$4:$DP$191,18,FALSE)","v":7187.7939999999999},{"$f":"VLOOKUP($A61,F1__World_Data!$A$4:$DP$191,17,FALSE)","v":6994.3310000000001},{"$f":"VLOOKUP($A61,F1__World_Data!$A$4:$DP$191,16,FALSE)","v":6803.2709999999997},{"$f":"VLOOKUP($A61,F1__World_Data!$A$4:$DP$191,15,FALSE)","v":6614.84},{"$f":"VLOOKUP($A61,F1__World_Data!$A$4:$DP$191,14,FALSE)","v":6429.3770000000004},{"$f":"VLOOKUP($A61,F1__World_Data!$A$4:$DP$191,13,FALSE)","v":6247.4210000000003},{"$f":"VLOOKUP($A61,F1__World_Data!$A$4:$DP$191,12,FALSE)","v":6069.375},{"$f":"VLOOKUP($A61,F1__World_Data!$A$4:$DP$191,11,FALSE)","v":5895.3680000000004},{"$f":"VLOOKUP($A61,F1__World_Data!$A$4:$DP$191,10,FALSE)","v":5725.4620000000004},{"$f":"VLOOKUP($A61,F1__World_Data!$A$4:$DP$191,9,FALSE)","v":5560.0129999999999},{"$f":"VLOOKUP($A61,F1__World_Data!$A$4:$DP$191,8,FALSE)","v":5399.4229999999998},{"$f":"VLOOKUP($A61,F1__World_Data!$A$4:$DP$191,7,FALSE)","v":5243.98},{"$f":"VLOOKUP($A61,F1__World_Data!$A$4:$DP$191,6,FALSE)","v":5093.848},{"$f":"VLOOKUP($A61,F1__World_Data!$A$4:$DP$191,5,FALSE)","v":4948.991},{"$f":"VLOOKUP($A61,F1__World_Data!$A$4:$DP$191,4,FALSE)","v":4809.1940000000004},{"$f":"VLOOKUP($A61,F1__World_Data!$A$4:$DP$191,3,FALSE)","v":4674.1760000000004},{"$f":"VLOOKUP($A61,F1__World_Data!$A$4:$DP$191,2,FALSE)","v":4543.6580000000004},null,{"$f":"VLOOKUP($A61,F1__World_Data!$A$4:$DP$191,120,FALSE)","v":76.068336425009335},{"$f":"VLOOKUP($A61,F1__World_Data!$A$4:$DP$191,119,FALSE)","v":75.865953913004901},{"$f":"VLOOKUP($A61,F1__World_Data!$A$4:$DP$191,118,FALSE)","v":75.635540867798511},{"$f":"VLOOKUP($A61,F1__World_Data!$A$4:$DP$191,117,FALSE)","v":75.392556877146006},{"$f":"VLOOKUP($A61,F1__World_Data!$A$4:$DP$191,116,FALSE)","v":75.125170291792728},{"$f":"VLOOKUP($A61,F1__World_Data!$A$4:$DP$191,115,FALSE)","v":74.848214388702232},{"$f":"VLOOKUP($A61,F1__World_Data!$A$4:$DP$191,114,FALSE)","v":74.562126746498507},{"$f":"VLOOKUP($A61,F1__World_Data!$A$4:$DP$191,113,FALSE)","v":74.265950123674273},{"$f":"VLOOKUP($A61,F1__World_Data!$A$4:$DP$191,112,FALSE)","v":74.012996899440708},{"$f":"VLOOKUP($A61,F1__World_Data!$A$4:$DP$191,111,FALSE)","v":73.759125114931521},{"$f":"VLOOKUP($A61,F1__World_Data!$A$4:$DP$191,110,FALSE)","v":73.469895568539044},{"$f":"VLOOKUP($A61,F1__World_Data!$A$4:$DP$191,109,FALSE)","v":73.200933776161776},{"$f":"VLOOKUP($A61,F1__World_Data!$A$4:$DP$191,108,FALSE)","v":72.9216442984265},{"$f":"VLOOKUP($A61,F1__World_Data!$A$4:$DP$191,107,FALSE)","v":72.624620749367708},{"$f":"VLOOKUP($A61,F1__World_Data!$A$4:$DP$191,106,FALSE)","v":72.361144594166916},{"$f":"VLOOKUP($A61,F1__World_Data!$A$4:$DP$191,105,FALSE)","v":72.067528417777268},{"$f":"VLOOKUP($A61,F1__World_Data!$A$4:$DP$191,104,FALSE)","v":71.774764827285424},{"$f":"VLOOKUP($A61,F1__World_Data!$A$4:$DP$191,103,FALSE)","v":71.481717211098157},{"$f":"VLOOKUP($A61,F1__World_Data!$A$4:$DP$191,102,FALSE)","v":71.171918909870755},{"$f":"VLOOKUP($A61,F1__World_Data!$A$4:$DP$191,101,FALSE)","v":70.855171197526346},{"$f":"VLOOKUP($A61,F1__World_Data!$A$4:$DP$191,100,FALSE)","v":70.584851818643017},{"$f":"VLOOKUP($A61,F1__World_Data!$A$4:$DP$191,99,FALSE)","v":70.32575149703986},{"$f":"VLOOKUP($A61,F1__World_Data!$A$4:$DP$191,98,FALSE)","v":70.064499687021623},{"$f":"VLOOKUP($A61,F1__World_Data!$A$4:$DP$191,97,FALSE)","v":69.796301486396516},{"$f":"VLOOKUP($A61,F1__World_Data!$A$4:$DP$191,96,FALSE)","v":69.61721148408563},{"$f":"VLOOKUP($A61,F1__World_Data!$A$4:$DP$191,95,FALSE)","v":69.417277196560377},{"$f":"VLOOKUP($A61,F1__World_Data!$A$4:$DP$191,94,FALSE)","v":69.245236745391523},{"$f":"VLOOKUP($A61,F1__World_Data!$A$4:$DP$191,93,FALSE)","v":69.097354110722435},{"$f":"VLOOKUP($A61,F1__World_Data!$A$4:$DP$191,92,FALSE)","v":68.927543371686994},{"$f":"VLOOKUP($A61,F1__World_Data!$A$4:$DP$191,91,FALSE)","v":68.772157149955859},{"$f":"VLOOKUP($A61,F1__World_Data!$A$4:$DP$191,90,FALSE)","v":68.581777928346071},{"$f":"VLOOKUP($A61,F1__World_Data!$A$4:$DP$191,89,FALSE)","v":68.409653362261437},{"$f":"VLOOKUP($A61,F1__World_Data!$A$4:$DP$191,88,FALSE)","v":68.172328301194725},{"$f":"VLOOKUP($A61,F1__World_Data!$A$4:$DP$191,87,FALSE)","v":67.904085288855867},{"$f":"VLOOKUP($A61,F1__World_Data!$A$4:$DP$191,86,FALSE)","v":67.614932268324949},{"$f":"VLOOKUP($A61,F1__World_Data!$A$4:$DP$191,85,FALSE)","v":67.282364494338324},{"$f":"VLOOKUP($A61,F1__World_Data!$A$4:$DP$191,84,FALSE)","v":66.959638237213269},{"$f":"VLOOKUP($A61,F1__World_Data!$A$4:$DP$191,83,FALSE)","v":66.564213929766609},{"$f":"VLOOKUP($A61,F1__World_Data!$A$4:$DP$191,82,FALSE)","v":66.144156041201228},{"$f":"VLOOKUP($A61,F1__World_Data!$A$4:$DP$191,81,FALSE)","v":65.727820559378813},{"$f":"VLOOKUP($A61,F1__World_Data!$A$4:$DP$191,80,FALSE)","v":65.233994849944651},{"$f":"VLOOKUP($A61,F1__World_Data!$A$4:$DP$191,79,FALSE)","v":64.70935721654665},{"$f":"VLOOKUP($A61,F1__World_Data!$A$4:$DP$191,78,FALSE)","v":64.125085843567575},{"$f":"VLOOKUP($A61,F1__World_Data!$A$4:$DP$191,77,FALSE)","v":63.514711961658492},{"$f":"VLOOKUP($A61,F1__World_Data!$A$4:$DP$191,76,FALSE)","v":62.843989656220664},{"$f":"VLOOKUP($A61,F1__World_Data!$A$4:$DP$191,75,FALSE)","v":62.144243620744909},{"$f":"VLOOKUP($A61,F1__World_Data!$A$4:$DP$191,74,FALSE)","v":61.448445533243543},{"$f":"VLOOKUP($A61,F1__World_Data!$A$4:$DP$191,73,FALSE)","v":60.65657690740349},{"$f":"VLOOKUP($A61,F1__World_Data!$A$4:$DP$191,72,FALSE)","v":59.739850578693151},{"$f":"VLOOKUP($A61,F1__World_Data!$A$4:$DP$191,71,FALSE)","v":58.700429236443419},{"$f":"VLOOKUP($A61,F1__World_Data!$A$4:$DP$191,70,FALSE)","v":57.470912613120909},{"$f":"VLOOKUP($A61,F1__World_Data!$A$4:$DP$191,69,FALSE)","v":56.109405381894881},{"$f":"VLOOKUP($A61,F1__World_Data!$A$4:$DP$191,68,FALSE)","v":54.636410491335049},{"$f":"VLOOKUP($A61,F1__World_Data!$A$4:$DP$191,67,FALSE)","v":53.115459657166191},{"$f":"VLOOKUP($A61,F1__World_Data!$A$4:$DP$191,66,FALSE)","v":51.75893886459086},{"$f":"VLOOKUP($A61,F1__World_Data!$A$4:$DP$191,65,FALSE)","v":50.573598301431964},{"$f":"VLOOKUP($A61,F1__World_Data!$A$4:$DP$191,64,FALSE)","v":49.607894087911561},{"$f":"VLOOKUP($A61,F1__World_Data!$A$4:$DP$191,63,FALSE)","v":48.944167502503497},{"$f":"VLOOKUP($A61,F1__World_Data!$A$4:$DP$191,62,FALSE)","v":48.415899060559688}]
["Netherlands",{"$f":"VLOOKUP($A62,F1__World_Data!$A$4:$DP$191,60,FALSE)","v":17059.560000000001},{"$f":"VLOOKUP($A62,F1__World_Data!$A$4:$DP$191,59,FALSE)","v":17021.343000000001},{"$f":"VLOOKUP($A62,F1__World_Data!$A$4:$DP$191,58,FALSE)","v":16981.285},{"$f":"VLOOKUP($A62,F1__World_Data!$A$4:$DP$191,57,FALSE)","v":16938.491999999998},{"$f":"VLOOKUP($A62,F1__World_Data!$A$4:$DP$191,56,FALSE)","v":16892.517},{"$f":"VLOOKUP($A62,F1__World_Data!$A$4:$DP$191,55,FALSE)","v":16843.511999999999},{"$f":"VLOOKUP($A62,F1__World_Data!$A$4:$DP$191,54,FALSE)","v":16791.849999999999},{"$f":"VLOOKUP($A62,F1__World_Data!$A$4:$DP$191,53,FALSE)","v":16738.190999999999},{"$f":"VLOOKUP($A62,F1__World_Data!$A$4:$DP$191,52,FALSE)","v":16682.927},{"$f":"VLOOKUP($A62,F1__World_Data!$A$4:$DP$191,51,FALSE)","v":16626.379000000001},{"$f":"VLOOKUP($A62,F1__World_Data!$A$4:$DP$191,50,FALSE)","v":16568.105},{"$f":"VLOOKUP($A62,F1__World_Data!$A$4:$DP$191,49,FALSE)","v":16506.651999999998},{"$f":"VLOOKUP($A62,F1__World_Data!$A$4:$DP$191,48,FALSE)","v":16440.091},{"$f":"VLOOKUP($A62,F1__World_Data!$A$4:$DP$191,47,FALSE)","v":16367.153},{"$f":"VLOOKUP($A62,F1__World_Data!$A$4:$DP$191,46,FALSE)","v":16287.183000000001},{"$f":"VLOOKUP($A62,F1__World_Data!$A$4:$DP$191,45,FALSE)","v":16200.948},{"$f":"VLOOKUP($A62,F1__World_Data!$A$4:$DP$191,44,FALSE)","v":16110.355},{"$f":"VLOOKUP($A62,F1__World_Data!$A$4:$DP$191,43,FALSE)","v":16018.111999999999},{"$f":"VLOOKUP($A62,F1__World_Data!$A$4:$DP$191,42,FALSE)","v":15926.188},{"$f":"VLOOKUP($A62,F1__World_Data!$A$4:$DP$191,41,FALSE)","v":15835.525},{"$f":"VLOOKUP($A62,F1__World_Data!$A$4:$DP$191,40,FALSE)","v":15745.65},{"$f":"VLOOKUP($A62,F1__World_Data!$A$4:$DP$191,39,FALSE)","v":15655.482},{"$f":"VLOOKUP($A62,F1__World_Data!$A$4:$DP$191,38,FALSE)","v":15563.252},{"$f":"VLOOKUP($A62,F1__World_Data!$A$4:$DP$191,37,FALSE)","v":15467.852000000001},{"$f":"VLOOKUP($A62,F1__World_Data!$A$4:$DP$191,36,FALSE)","v":15369.120999999999},{"$f":"VLOOKUP($A62,F1__World_Data!$A$4:$DP$191,35,FALSE)","v":15268.004999999999},{"$f":"VLOOKUP($A62,F1__World_Data!$A$4:$DP$191,34,FALSE)","v":15165.856},{"$f":"VLOOKUP($A62,F1__World_Data!$A$4:$DP$191,33,FALSE)","v":15064.522000000001},{"$f":"VLOOKUP($A62,F1__World_Data!$A$4:$DP$191,32,FALSE)","v":14965.441999999999},{"$f":"VLOOKUP($A62,F1__World_Data!$A$4:$DP$191,31,FALSE)","v":14868.659},{"$f":"VLOOKUP($A62,F1__World_Data!$A$4:$DP$191,30,FALSE)","v":14774.031000000001},{"$f":"VLOOKUP($A62,F1__World_Data!$A$4:$DP$191,29,FALSE)","v":14682.662},{"$f":"VLOOKUP($A62,F1__World_Data!$A$4:$DP$191,28,FALSE)","v":14595.749},{"$f":"VLOOKUP($A62,F1__World_Data!$A$4:$DP$191,27,FALSE)","v":14513.947},{"$f":"VLOOKUP($A62,F1__World_Data!$A$4:$DP$191,26,FALSE)","v":14437.51},{"$f":"VLOOKUP($A62,F1__World_Data!$A$4:$DP$191,25,FALSE)","v":14365.388000000001},{"$f":"VLOOKUP($A62,F1__World_Data!$A$4:$DP$191,24,FALSE)","v":14295.209000000001},{"$f":"VLOOKUP($A62,F1__World_Data!$A$4:$DP$191,23,FALSE)","v":14223.757},{"$f":"VLOOKUP($A62,F1__World_Data!$A$4:$DP$191,22,FALSE)","v":14148.41},{"$f":"VLOOKUP($A62,F1__World_Data!$A$4:$DP$191,21,FALSE)","v":14068.597},{"$f":"VLOOKUP($A62,F1__World_Data!$A$4:$DP$191,20,FALSE)","v":13984.05},{"$f":"VLOOKUP($A62,F1__World_Data!$A$4:$DP$191,19,FALSE)","v":13892.92},{"$f":"VLOOKUP($A62,F1__World_Data!$A$4:$DP$191,18,FALSE)","v":13793.11},{"$f":"VLOOKUP($A62,F1__World_Data!$A$4:$DP$191,17,FALSE)","v":13683.287},{"$f":"VLOOKUP($A62,F1__World_Data!$A$4:$DP$191,16,FALSE)","v":13562.431},{"$f":"VLOOKUP($A62,F1__World_Data!$A$4:$DP$191,15,FALSE)","v":13431.187},{"$f":"VLOOKUP($A62,F1__World_Data!$A$4:$DP$191,14,FALSE)","v":13291.876},{"$f":"VLOOKUP($A62,F1__World_Data!$A$4:$DP$191,13,FALSE)","v":13147.934999999999},{"$f":"VLOOKUP($A62,F1__World_Data!$A$4:$DP$191,12,FALSE)","v":13001.941000000001},{"$f":"VLOOKUP($A62,F1__World_Data!$A$4:$DP$191,11,FALSE)","v":12855.005999999999},{"$f":"VLOOKUP($A62,F1__World_Data!$A$4:$DP$191,10,FALSE)","v":12706.787},{"$f":"VLOOKUP($A62,F1__World_Data!$A$4:$DP$191,9,FALSE)","v":12556.841},{"$f":"VLOOKUP($A62,F1__World_Data!$A$4:$DP$191,8,FALSE)","v":12404.189},{"$f":"VLOOKUP($A62,F1__World_Data!$A$4:$DP$191,7,FALSE)","v":12248.333000000001},{"$f":"VLOOKUP($A62,F1__World_Data!$A$4:$DP$191,6,FALSE)","v":12089.386},{"$f":"VLOOKUP($A62,F1__World_Data!$A$4:$DP$191,5,FALSE)","v":11928.359},{"$f":"VLOOKUP($A62,F1__World_Data!$A$4:$DP$191,4,FALSE)","v":11766.73},{"$f":"VLOOKUP($A62,F1__World_Data!$A$4:$DP$191,3,FALSE)","v":11606.397999999999},{"$f":"VLOOKUP($A62,F1__World_Data!$A$4:$DP$191,2,FALSE)","v":11448.815000000001},null,{"$f":"VLOOKUP($A62,F1__World_Data!$A$4:$DP$191,120,FALSE)","v":68.116},{"$f":"VLOOKUP($A62,F1__World_Data!$A$4:$DP$191,119,FALSE)","v":67.850999999999999},{"$f":"VLOOKUP($A62,F1__World_Data!$A$4:$DP$191,118,FALSE)","v":67.576999999999998},{"$f":"VLOOKUP($A62,F1__World_Data!$A$4:$DP$191,117,FALSE)","v":67.290999999999997},{"$f":"VLOOKUP($A62,F1__World_Data!$A$4:$DP$191,116,FALSE)","v":66.995000000000005},{"$f":"VLOOKUP($A62,F1__World_Data!$A$4:$DP$191,115,FALSE)","v":66.69},{"$f":"VLOOKUP($A62,F1__World_Data!$A$4:$DP$191,114,FALSE)","v":66.381},{"$f":"VLOOKUP($A62,F1__World_Data!$A$4:$DP$191,113,FALSE)","v":66.072000000000003},{"$f":"VLOOKUP($A62,F1__World_Data!$A$4:$DP$191,112,FALSE)","v":65.769000000000005},{"$f":"VLOOKUP($A62,F1__World_Data!$A$4:$DP$191,111,FALSE)","v":65.48},{"$f":"VLOOKUP($A62,F1__World_Data!$A$4:$DP$191,110,FALSE)","v":65.207999999999998},{"$f":"VLOOKUP($A62,F1__World_Data!$A$4:$DP$191,109,FALSE)","v":64.953000000000003},{"$f":"VLOOKUP($A62,F1__World_Data!$A$4:$DP$191,108,FALSE)","v":64.712000000000003},{"$f":"VLOOKUP($A62,F1__World_Data!$A$4:$DP$191,107,FALSE)","v":64.477999999999994},{"$f":"VLOOKUP($A62,F1__World_Data!$A$4:$DP$191,106,FALSE)","v":64.242000000000004},{"$f":"VLOOKUP($A62,F1__World_Data!$A$4:$DP$191,105,FALSE)","v":63.994999999999997},{"$f":"VLOOKUP($A62,F1__World_Data!$A$4:$DP$191,104,FALSE)","v":63.731000000000002},{"$f":"VLOOKUP($A62,F1__World_Data!$A$4:$DP$191,103,FALSE)","v":63.445999999999998},{"$f":"VLOOKUP($A62,F1__World_Data!$A$4:$DP$191,102,FALSE)","v":63.143999999999998},{"$f":"VLOOKUP($A62,F1__World_Data!$A$4:$DP$191,101,FALSE)","v":62.829000000000001},{"$f":"VLOOKUP($A62,F1__World_Data!$A$4:$DP$191,100,FALSE)","v":62.509},{"$f":"VLOOKUP($A62,F1__World_Data!$A$4:$DP$191,99,FALSE)","v":62.188000000000002},{"$f":"VLOOKUP($A62,F1__World_Data!$A$4:$DP$191,98,FALSE)","v":61.866},{"$f":"VLOOKUP($A62,F1__World_Data!$A$4:$DP$191,97,FALSE)","v":61.539000000000001},{"$f":"VLOOKUP($A62,F1__World_Data!$A$4:$DP$191,96,FALSE)","v":61.198},{"$f":"VLOOKUP($A62,F1__World_Data!$A$4:$DP$191,95,FALSE)","v":60.837000000000003},{"$f":"VLOOKUP($A62,F1__World_Data!$A$4:$DP$191,94,FALSE)","v":60.454999999999998},{"$f":"VLOOKUP($A62,F1__World_Data!$A$4:$DP$191,93,FALSE)","v":60.052999999999997},{"$f":"VLOOKUP($A62,F1__World_Data!$A$4:$DP$191,92,FALSE)","v":59.636000000000003},{"$f":"VLOOKUP($A62,F1__World_Data!$A$4:$DP$191,91,FALSE)","v":59.209000000000003},{"$f":"VLOOKUP($A62,F1__World_Data!$A$4:$DP$191,90,FALSE)","v":58.783000000000001},{"$f":"VLOOKUP($A62,F1__World_Data!$A$4:$DP$191,89,FALSE)","v":58.366},{"$f":"VLOOKUP($A62,F1__World_Data!$A$4:$DP$191,88,FALSE)","v":57.962000000000003},{"$f":"VLOOKUP($A62,F1__World_Data!$A$4:$DP$191,87,FALSE)","v":57.579000000000001},{"$f":"VLOOKUP($A62,F1__World_Data!$A$4:$DP$191,86,FALSE)","v":57.220999999999997},{"$f":"VLOOKUP($A62,F1__World_Data!$A$4:$DP$191,85,FALSE)","v":56.886000000000003},{"$f":"VLOOKUP($A62,F1__World_Data!$A$4:$DP$191,84,FALSE)","v":56.569000000000003},{"$f":"VLOOKUP($A62,F1__World_Data!$A$4:$DP$191,83,FALSE)","v":56.265999999999998},{"$f":"VLOOKUP($A62,F1__World_Data!$A$4:$DP$191,82,FALSE)","v":55.970999999999997},{"$f":"VLOOKUP($A62,F1__World_Data!$A$4:$DP$191,81,FALSE)","v":55.679000000000002},{"$f":"VLOOKUP($A62,F1__World_Data!$A$4:$DP$191,80,FALSE)","v":55.381999999999998},{"$f":"VLOOKUP($A62,F1__World_Data!$A$4:$DP$191,79,FALSE)","v":55.073999999999998},{"$f":"VLOOKUP($A62,F1__World_Data!$A$4:$DP$191,78,FALSE)","v":54.747999999999998},{"$f":"VLOOKUP($A62,F1__World_Data!$A$4:$DP$191,77,FALSE)","v":54.399000000000001},{"$f":"VLOOKUP($A62,F1__World_Data!$A$4:$DP$191,76,FALSE)","v":54.027000000000001},{"$f":"VLOOKUP($A62,F1__World_Data!$A$4:$DP$191,75,FALSE)","v":53.633000000000003},{"$f":"VLOOKUP($A62,F1__World_Data!$A$4:$DP$191,74,FALSE)","v":53.218000000000004},{"$f":"VLOOKUP($A62,F1__World_Data!$A$4:$DP$191,73,FALSE)","v":52.781999999999996},{"$f":"VLOOKUP($A62,F1__World_Data!$A$4:$DP$191,72,FALSE)","v":52.323},{"$f":"VLOOKUP($A62,F1__World_Data!$A$4:$DP$191,71,FALSE)","v":51.837000000000003},{"$f":"VLOOKUP($A62,F1__World_Data!$A$4:$DP$191,70,FALSE)","v":51.326999999999998},{"$f":"VLOOKUP($A62,F1__World_Data!$A$4:$DP$191,69,FALSE)","v":50.795999999999999},{"$f":"VLOOKUP($A62,F1__World_Data!$A$4:$DP$191,68,FALSE)","v":50.25},{"$f":"VLOOKUP($A62,F1__World_Data!$A$4:$DP$191,67,FALSE)","v":49.697000000000003},{"$f":"VLOOKUP($A62,F1__World_Data!$A$4:$DP$191,66,FALSE)","v":49.145000000000003},{"$f":"VLOOKUP($A62,F1__World_Data!$A$4:$DP$191,65,FALSE)","v":48.600999999999999},{"$f":"VLOOKUP($A62,F1__World_Data!$A$4:$DP$191,64,FALSE)","v":48.070999999999998},{"$f":"VLOOKUP($A62,F1__World_Data!$A$4:$DP$191,63,FALSE)","v":47.557000000000002},{"$f":"VLOOKUP($A62,F1__World_Data!$A$4:$DP$191,62,FALSE)","v":47.061}]
["Cambodia",{"$f":"VLOOKUP($A63,F1__World_Data!$A$4:$DP$191,60,FALSE)","v":16249.795},{"$f":"VLOOKUP($A63,F1__World_Data!$A$4:$DP$191,59,FALSE)","v":16009.413},{"$f":"VLOOKUP($A63,F1__World_Data!$A$4:$DP$191,58,FALSE)","v":15766.29},{"$f":"VLOOKUP($A63,F1__World_Data!$A$4:$DP$191,57,FALSE)","v":15521.434999999999},{"$f":"VLOOKUP($A63,F1__World_Data!$A$4:$DP$191,56,FALSE)","v":15274.505999999999},{"$f":"VLOOKUP($A63,F1__World_Data!$A$4:$DP$191,55,FALSE)","v":15026.33},{"$f":"VLOOKUP($A63,F1__World_Data!$A$4:$DP$191,54,FALSE)","v":14780.454},{"$f":"VLOOKUP($A63,F1__World_Data!$A$4:$DP$191,53,FALSE)","v":14541.421},{"$f":"VLOOKUP($A63,F1__World_Data!$A$4:$DP$191,52,FALSE)","v":14312.205},{"$f":"VLOOKUP($A63,F1__World_Data!$A$4:$DP$191,51,FALSE)","v":14093.605},{"$f":"VLOOKUP($A63,F1__World_Data!$A$4:$DP$191,50,FALSE)","v":13883.834999999999},{"$f":"VLOOKUP($A63,F1__World_Data!$A$4:$DP$191,49,FALSE)","v":13679.953},{"$f":"VLOOKUP($A63,F1__World_Data!$A$4:$DP$191,48,FALSE)","v":13477.705},{"$f":"VLOOKUP($A63,F1__World_Data!$A$4:$DP$191,47,FALSE)","v":13273.355},{"$f":"VLOOKUP($A63,F1__World_Data!$A$4:$DP$191,46,FALSE)","v":13066.475},{"$f":"VLOOKUP($A63,F1__World_Data!$A$4:$DP$191,45,FALSE)","v":12856.171},{"$f":"VLOOKUP($A63,F1__World_Data!$A$4:$DP$191,44,FALSE)","v":12637.718999999999},{"$f":"VLOOKUP($A63,F1__World_Data!$A$4:$DP$191,43,FALSE)","v":12405.411},{"$f":"VLOOKUP($A63,F1__World_Data!$A$4:$DP$191,42,FALSE)","v":12155.241},{"$f":"VLOOKUP($A63,F1__World_Data!$A$4:$DP$191,41,FALSE)","v":11886.464},{"$f":"VLOOKUP($A63,F1__World_Data!$A$4:$DP$191,40,FALSE)","v":11600.51},{"$f":"VLOOKUP($A63,F1__World_Data!$A$4:$DP$191,39,FALSE)","v":11298.593999999999},{"$f":"VLOOKUP($A63,F1__World_Data!$A$4:$DP$191,38,FALSE)","v":10982.919},{"$f":"VLOOKUP($A63,F1__World_Data!$A$4:$DP$191,37,FALSE)","v":10656.145},{"$f":"VLOOKUP($A63,F1__World_Data!$A$4:$DP$191,36,FALSE)","v":10317.901},{"$f":"VLOOKUP($A63,F1__World_Data!$A$4:$DP$191,35,FALSE)","v":9970.7270000000008},{"$f":"VLOOKUP($A63,F1__World_Data!$A$4:$DP$191,34,FALSE)","v":9623.8989999999994},{"$f":"VLOOKUP($A63,F1__World_Data!$A$4:$DP$191,33,FALSE)","v":9289.2980000000007},{"$f":"VLOOKUP($A63,F1__World_Data!$A$4:$DP$191,32,FALSE)","v":8975.5969999999998},{"$f":"VLOOKUP($A63,F1__World_Data!$A$4:$DP$191,31,FALSE)","v":8691.3310000000001},{"$f":"VLOOKUP($A63,F1__World_Data!$A$4:$DP$191,30,FALSE)","v":8435.9089999999997},{"$f":"VLOOKUP($A63,F1__World_Data!$A$4:$DP$191,29,FALSE)","v":8198.0820000000003},{"$f":"VLOOKUP($A63,F1__World_Data!$A$4:$DP$191,28,FALSE)","v":7960.9520000000002},{"$f":"VLOOKUP($A63,F1__World_Data!$A$4:$DP$191,27,FALSE)","v":7714.8940000000002},{"$f":"VLOOKUP($A63,F1__World_Data!$A$4:$DP$191,26,FALSE)","v":7447.8440000000001},{"$f":"VLOOKUP($A63,F1__World_Data!$A$4:$DP$191,25,FALSE)","v":7170.0039999999999},{"$f":"VLOOKUP($A63,F1__World_Data!$A$4:$DP$191,24,FALSE)","v":6919.8029999999999},{"$f":"VLOOKUP($A63,F1__World_Data!$A$4:$DP$191,23,FALSE)","v":6749.8490000000002},{"$f":"VLOOKUP($A63,F1__World_Data!$A$4:$DP$191,22,FALSE)","v":6693.759},{"$f":"VLOOKUP($A63,F1__World_Data!$A$4:$DP$191,21,FALSE)","v":6770.393},{"$f":"VLOOKUP($A63,F1__World_Data!$A$4:$DP$191,20,FALSE)","v":6957.2669999999998},{"$f":"VLOOKUP($A63,F1__World_Data!$A$4:$DP$191,19,FALSE)","v":7196.0420000000004},{"$f":"VLOOKUP($A63,F1__World_Data!$A$4:$DP$191,18,FALSE)","v":7404.6869999999999},{"$f":"VLOOKUP($A63,F1__World_Data!$A$4:$DP$191,17,FALSE)","v":7524.4570000000003},{"$f":"VLOOKUP($A63,F1__World_Data!$A$4:$DP$191,16,FALSE)","v":7533.3320000000003},{"$f":"VLOOKUP($A63,F1__World_Data!$A$4:$DP$191,15,FALSE)","v":7449.2330000000002},{"$f":"VLOOKUP($A63,F1__World_Data!$A$4:$DP$191,14,FALSE)","v":7302.1139999999996},{"$f":"VLOOKUP($A63,F1__World_Data!$A$4:$DP$191,13,FALSE)","v":7139.64},{"$f":"VLOOKUP($A63,F1__World_Data!$A$4:$DP$191,12,FALSE)","v":6996.576},{"$f":"VLOOKUP($A63,F1__World_Data!$A$4:$DP$191,11,FALSE)","v":6880.6229999999996},{"$f":"VLOOKUP($A63,F1__World_Data!$A$4:$DP$191,10,FALSE)","v":6779.7780000000002},{"$f":"VLOOKUP($A63,F1__World_Data!$A$4:$DP$191,9,FALSE)","v":6685.9610000000002},{"$f":"VLOOKUP($A63,F1__World_Data!$A$4:$DP$191,8,FALSE)","v":6585.0339999999997},{"$f":"VLOOKUP($A63,F1__World_Data!$A$4:$DP$191,7,FALSE)","v":6467.1909999999998},{"$f":"VLOOKUP($A63,F1__World_Data!$A$4:$DP$191,6,FALSE)","v":6331.4430000000002},{"$f":"VLOOKUP($A63,F1__World_Data!$A$4:$DP$191,5,FALSE)","v":6183.5860000000002},{"$f":"VLOOKUP($A63,F1__World_Data!$A$4:$DP$191,4,FALSE)","v":6028.4340000000002},{"$f":"VLOOKUP($A63,F1__World_Data!$A$4:$DP$191,3,FALSE)","v":5872.9679999999998},{"$f":"VLOOKUP($A63,F1__World_Data!$A$4:$DP$191,2,FALSE)","v":5722.3720000000003},null,{"$f":"VLOOKUP($A63,F1__World_Data!$A$4:$DP$191,120,FALSE)","v":69.275000000000006},{"$f":"VLOOKUP($A63,F1__World_Data!$A$4:$DP$191,119,FALSE)","v":68.811999999999998},{"$f":"VLOOKUP($A63,F1__World_Data!$A$4:$DP$191,118,FALSE)","v":68.177999999999997},{"$f":"VLOOKUP($A63,F1__World_Data!$A$4:$DP$191,117,FALSE)","v":67.337999999999994},{"$f":"VLOOKUP($A63,F1__World_Data!$A$4:$DP$191,116,FALSE)","v":66.265000000000001},{"$f":"VLOOKUP($A63,F1__World_Data!$A$4:$DP$191,115,FALSE)","v":64.975999999999999},{"$f":"VLOOKUP($A63,F1__World_Data!$A$4:$DP$191,114,FALSE)","v":63.511000000000003},{"$f":"VLOOKUP($A63,F1__World_Data!$A$4:$DP$191,113,FALSE)","v":61.91},{"$f":"VLOOKUP($A63,F1__World_Data!$A$4:$DP$191,112,FALSE)","v":60.210999999999999},{"$f":"VLOOKUP($A63,F1__World_Data!$A$4:$DP$191,111,FALSE)","v":58.447000000000003},{"$f":"VLOOKUP($A63,F1__World_Data!$A$4:$DP$191,110,FALSE)","v":56.679000000000002},{"$f":"VLOOKUP($A63,F1__World_Data!$A$4:$DP$191,109,FALSE)","v":54.982999999999997},{"$f":"VLOOKUP($A63,F1__World_Data!$A$4:$DP$191,108,FALSE)","v":53.435000000000002},{"$f":"VLOOKUP($A63,F1__World_Data!$A$4:$DP$191,107,FALSE)","v":52.13},{"$f":"VLOOKUP($A63,F1__World_Data!$A$4:$DP$191,106,FALSE)","v":51.15},{"$f":"VLOOKUP($A63,F1__World_Data!$A$4:$DP$191,105,FALSE)","v":50.518000000000001},{"$f":"VLOOKUP($A63,F1__World_Data!$A$4:$DP$191,104,FALSE)","v":50.231999999999999},{"$f":"VLOOKUP($A63,F1__World_Data!$A$4:$DP$191,103,FALSE)","v":50.280999999999999},{"$f":"VLOOKUP($A63,F1__World_Data!$A$4:$DP$191,102,FALSE)","v":50.628999999999998},{"$f":"VLOOKUP($A63,F1__World_Data!$A$4:$DP$191,101,FALSE)","v":51.213999999999999},{"$f":"VLOOKUP($A63,F1__World_Data!$A$4:$DP$191,100,FALSE)","v":51.947000000000003},{"$f":"VLOOKUP($A63,F1__World_Data!$A$4:$DP$191,99,FALSE)","v":52.749000000000002},{"$f":"VLOOKUP($A63,F1__World_Data!$A$4:$DP$191,98,FALSE)","v":53.572000000000003},{"$f":"VLOOKUP($A63,F1__World_Data!$A$4:$DP$191,97,FALSE)","v":54.41},{"$f":"VLOOKUP($A63,F1__World_Data!$A$4:$DP$191,96,FALSE)","v":55.283999999999999},{"$f":"VLOOKUP($A63,F1__World_Data!$A$4:$DP$191,95,FALSE)","v":56.222000000000001},{"$f":"VLOOKUP($A63,F1__World_Data!$A$4:$DP$191,94,FALSE)","v":57.219000000000001},{"$f":"VLOOKUP($A63,F1__World_Data!$A$4:$DP$191,93,FALSE)","v":58.231999999999999},{"$f":"VLOOKUP($A63,F1__World_Data!$A$4:$DP$191,92,FALSE)","v":59.191000000000003},{"$f":"VLOOKUP($A63,F1__World_Data!$A$4:$DP$191,91,FALSE)","v":60.015999999999998},{"$f":"VLOOKUP($A63,F1__World_Data!$A$4:$DP$191,90,FALSE)","v":60.651000000000003},{"$f":"VLOOKUP($A63,F1__World_Data!$A$4:$DP$191,89,FALSE)","v":61.058999999999997},{"$f":"VLOOKUP($A63,F1__World_Data!$A$4:$DP$191,88,FALSE)","v":61.226999999999997},{"$f":"VLOOKUP($A63,F1__World_Data!$A$4:$DP$191,87,FALSE)","v":61.167000000000002},{"$f":"VLOOKUP($A63,F1__World_Data!$A$4:$DP$191,86,FALSE)","v":60.915999999999997},{"$f":"VLOOKUP($A63,F1__World_Data!$A$4:$DP$191,85,FALSE)","v":60.542999999999999},{"$f":"VLOOKUP($A63,F1__World_Data!$A$4:$DP$191,84,FALSE)","v":60.109000000000002},{"$f":"VLOOKUP($A63,F1__World_Data!$A$4:$DP$191,83,FALSE)","v":59.646999999999998},{"$f":"VLOOKUP($A63,F1__World_Data!$A$4:$DP$191,82,FALSE)","v":59.173999999999999},{"$f":"VLOOKUP($A63,F1__World_Data!$A$4:$DP$191,81,FALSE)","v":58.692},{"$f":"VLOOKUP($A63,F1__World_Data!$A$4:$DP$191,80,FALSE)","v":58.186},{"$f":"VLOOKUP($A63,F1__World_Data!$A$4:$DP$191,79,FALSE)","v":57.649000000000001},{"$f":"VLOOKUP($A63,F1__World_Data!$A$4:$DP$191,78,FALSE)","v":57.091000000000001},{"$f":"VLOOKUP($A63,F1__World_Data!$A$4:$DP$191,77,FALSE)","v":56.524000000000001},{"$f":"VLOOKUP($A63,F1__World_Data!$A$4:$DP$191,76,FALSE)","v":55.957000000000001},{"$f":"VLOOKUP($A63,F1__World_Data!$A$4:$DP$191,75,FALSE)","v":55.398000000000003},{"$f":"VLOOKUP($A63,F1__World_Data!$A$4:$DP$191,74,FALSE)","v":54.853000000000002},{"$f":"VLOOKUP($A63,F1__World_Data!$A$4:$DP$191,73,FALSE)","v":54.326999999999998},{"$f":"VLOOKUP($A63,F1__World_Data!$A$4:$DP$191,72,FALSE)","v":53.823999999999998},{"$f":"VLOOKUP($A63,F1__World_Data!$A$4:$DP$191,71,FALSE)","v":53.345999999999997},{"$f":"VLOOKUP($A63,F1__World_Data!$A$4:$DP$191,70,FALSE)","v":52.884999999999998},{"$f":"VLOOKUP($A63,F1__World_Data!$A$4:$DP$191,69,FALSE)","v":52.435000000000002},{"$f":"VLOOKUP($A63,F1__World_Data!$A$4:$DP$191,68,FALSE)","v":51.991},{"$f":"VLOOKUP($A63,F1__World_Data!$A$4:$DP$191,67,FALSE)","v":51.546999999999997},{"$f":"VLOOKUP($A63,F1__World_Data!$A$4:$DP$191,66,FALSE)","v":51.098999999999997},{"$f":"VLOOKUP($A63,F1__World_Data!$A$4:$DP$191,65,FALSE)","v":50.640999999999998},{"$f":"VLOOKUP($A63,F1__World_Data!$A$4:$DP$191,64,FALSE)","v":50.170999999999999},{"$f":"VLOOKUP($A63,F1__World_Data!$A$4:$DP$191,63,FALSE)","v":49.683999999999997},{"$f":"VLOOKUP($A63,F1__World_Data!$A$4:$DP$191,62,FALSE)","v":49.179000000000002}]
["Senegal",{"$f":"VLOOKUP($A64,F1__World_Data!$A$4:$DP$191,60,FALSE)","v":15854.324000000001},{"$f":"VLOOKUP($A64,F1__World_Data!$A$4:$DP$191,59,FALSE)","v":15419.353999999999},{"$f":"VLOOKUP($A64,F1__World_Data!$A$4:$DP$191,58,FALSE)","v":14993.513999999999},{"$f":"VLOOKUP($A64,F1__World_Data!$A$4:$DP$191,57,FALSE)","v":14578.45},{"$f":"VLOOKUP($A64,F1__World_Data!$A$4:$DP$191,56,FALSE)","v":14174.74},{"$f":"VLOOKUP($A64,F1__World_Data!$A$4:$DP$191,55,FALSE)","v":13782.429},{"$f":"VLOOKUP($A64,F1__World_Data!$A$4:$DP$191,54,FALSE)","v":13401.99},{"$f":"VLOOKUP($A64,F1__World_Data!$A$4:$DP$191,53,FALSE)","v":13033.814},{"$f":"VLOOKUP($A64,F1__World_Data!$A$4:$DP$191,52,FALSE)","v":12678.143},{"$f":"VLOOKUP($A64,F1__World_Data!$A$4:$DP$191,51,FALSE)","v":12335.092000000001},{"$f":"VLOOKUP($A64,F1__World_Data!$A$4:$DP$191,50,FALSE)","v":12004.7},{"$f":"VLOOKUP($A64,F1__World_Data!$A$4:$DP$191,49,FALSE)","v":11687.078},{"$f":"VLOOKUP($A64,F1__World_Data!$A$4:$DP$191,48,FALSE)","v":11382.272000000001},{"$f":"VLOOKUP($A64,F1__World_Data!$A$4:$DP$191,47,FALSE)","v":11090.123},{"$f":"VLOOKUP($A64,F1__World_Data!$A$4:$DP$191,46,FALSE)","v":10810.085999999999},{"$f":"VLOOKUP($A64,F1__World_Data!$A$4:$DP$191,45,FALSE)","v":10541.47},{"$f":"VLOOKUP($A64,F1__World_Data!$A$4:$DP$191,44,FALSE)","v":10283.694},{"$f":"VLOOKUP($A64,F1__World_Data!$A$4:$DP$191,43,FALSE)","v":10036.102000000001},{"$f":"VLOOKUP($A64,F1__World_Data!$A$4:$DP$191,42,FALSE)","v":9797.7309999999998},{"$f":"VLOOKUP($A64,F1__World_Data!$A$4:$DP$191,41,FALSE)","v":9568.7170000000006},{"$f":"VLOOKUP($A64,F1__World_Data!$A$4:$DP$191,40,FALSE)","v":9347.777},{"$f":"VLOOKUP($A64,F1__World_Data!$A$4:$DP$191,39,FALSE)","v":9130.8760000000002},{"$f":"VLOOKUP($A64,F1__World_Data!$A$4:$DP$191,38,FALSE)","v":8912.8719999999994},{"$f":"VLOOKUP($A64,F1__World_Data!$A$4:$DP$191,37,FALSE)","v":8690.1550000000007},{"$f":"VLOOKUP($A64,F1__World_Data!$A$4:$DP$191,36,FALSE)","v":8461.0660000000007},{"$f":"VLOOKUP($A64,F1__World_Data!$A$4:$DP$191,35,FALSE)","v":8226.7489999999998},{"$f":"VLOOKUP($A64,F1__World_Data!$A$4:$DP$191,34,FALSE)","v":7990.09},{"$f":"VLOOKUP($A64,F1__World_Data!$A$4:$DP$191,33,FALSE)","v":7755.5029999999997},{"$f":"VLOOKUP($A64,F1__World_Data!$A$4:$DP$191,32,FALSE)","v":7526.3059999999996},{"$f":"VLOOKUP($A64,F1__World_Data!$A$4:$DP$191,31,FALSE)","v":7303.5110000000004},{"$f":"VLOOKUP($A64,F1__World_Data!$A$4:$DP$191,30,FALSE)","v":7086.6239999999998},{"$f":"VLOOKUP($A64,F1__World_Data!$A$4:$DP$191,29,FALSE)","v":6875.7460000000001},{"$f":"VLOOKUP($A64,F1__World_Data!$A$4:$DP$191,28,FALSE)","v":6670.665},{"$f":"VLOOKUP($A64,F1__World_Data!$A$4:$DP$191,27,FALSE)","v":6471.3289999999997},{"$f":"VLOOKUP($A64,F1__World_Data!$A$4:$DP$191,26,FALSE)","v":6277.42},{"$f":"VLOOKUP($A64,F1__World_Data!$A$4:$DP$191,25,FALSE)","v":6089.567},{"$f":"VLOOKUP($A64,F1__World_Data!$A$4:$DP$191,24,FALSE)","v":5909.7340000000004},{"$f":"VLOOKUP($A64,F1__World_Data!$A$4:$DP$191,23,FALSE)","v":5740.4409999999998},{"$f":"VLOOKUP($A64,F1__World_Data!$A$4:$DP$191,22,FALSE)","v":5583.1570000000002},{"$f":"VLOOKUP($A64,F1__World_Data!$A$4:$DP$191,21,FALSE)","v":5439.0690000000004},{"$f":"VLOOKUP($A64,F1__World_Data!$A$4:$DP$191,20,FALSE)","v":5306.6850000000004},{"$f":"VLOOKUP($A64,F1__World_Data!$A$4:$DP$191,19,FALSE)","v":5181.5050000000001},{"$f":"VLOOKUP($A64,F1__World_Data!$A$4:$DP$191,18,FALSE)","v":5057.375},{"$f":"VLOOKUP($A64,F1__World_Data!$A$4:$DP$191,17,FALSE)","v":4929.8459999999995},{"$f":"VLOOKUP($A64,F1__World_Data!$A$4:$DP$191,16,FALSE)","v":4797.1880000000001},{"$f":"VLOOKUP($A64,F1__World_Data!$A$4:$DP$191,15,FALSE)","v":4660.7259999999997},{"$f":"VLOOKUP($A64,F1__World_Data!$A$4:$DP$191,14,FALSE)","v":4522.8860000000004},{"$f":"VLOOKUP($A64,F1__World_Data!$A$4:$DP$191,13,FALSE)","v":4387.5320000000002},{"$f":"VLOOKUP($A64,F1__World_Data!$A$4:$DP$191,12,FALSE)","v":4257.5079999999998},{"$f":"VLOOKUP($A64,F1__World_Data!$A$4:$DP$191,11,FALSE)","v":4133.3239999999996},{"$f":"VLOOKUP($A64,F1__World_Data!$A$4:$DP$191,10,FALSE)","v":4014.107},{"$f":"VLOOKUP($A64,F1__World_Data!$A$4:$DP$191,9,FALSE)","v":3899.6480000000001},{"$f":"VLOOKUP($A64,F1__World_Data!$A$4:$DP$191,8,FALSE)","v":3789.3809999999999},{"$f":"VLOOKUP($A64,F1__World_Data!$A$4:$DP$191,7,FALSE)","v":3682.8789999999999},{"$f":"VLOOKUP($A64,F1__World_Data!$A$4:$DP$191,6,FALSE)","v":3580.241},{"$f":"VLOOKUP($A64,F1__World_Data!$A$4:$DP$191,5,FALSE)","v":3481.654},{"$f":"VLOOKUP($A64,F1__World_Data!$A$4:$DP$191,4,FALSE)","v":3386.8029999999999},{"$f":"VLOOKUP($A64,F1__World_Data!$A$4:$DP$191,3,FALSE)","v":3295.28},{"$f":"VLOOKUP($A64,F1__World_Data!$A$4:$DP$191,2,FALSE)","v":3206.7570000000001},null,{"$f":"VLOOKUP($A64,F1__World_Data!$A$4:$DP$191,120,FALSE)","v":68.116},{"$f":"VLOOKUP($A64,F1__World_Data!$A$4:$DP$191,119,FALSE)","v":67.850999999999999},{"$f":"VLOOKUP($A64,F1__World_Data!$A$4:$DP$191,118,FALSE)","v":67.576999999999998},{"$f":"VLOOKUP($A64,F1__World_Data!$A$4:$DP$191,117,FALSE)","v":67.290999999999997},{"$f":"VLOOKUP($A64,F1__World_Data!$A$4:$DP$191,116,FALSE)","v":66.995000000000005},{"$f":"VLOOKUP($A64,F1__World_Data!$A$4:$DP$191,115,FALSE)","v":66.69},{"$f":"VLOOKUP($A64,F1__World_Data!$A$4:$DP$191,114,FALSE)","v":66.381},{"$f":"VLOOKUP($A64,F1__World_Data!$A$4:$DP$191,113,FALSE)","v":66.072000000000003},{"$f":"VLOOKUP($A64,F1__World_Data!$A$4:$DP$191,112,FALSE)","v":65.769000000000005},{"$f":"VLOOKUP($A64,F1__World_Data!$A$4:$DP$191,111,FALSE)","v":65.48},{"$f":"VLOOKUP($A64,F1__World_Data!$A$4:$DP$191,110,FALSE)","v":65.207999999999998},{"$f":"VLOOKUP($A64,F1__World_Data!$A$4:$DP$191,109,FALSE)","v":64.953000000000003},{"$f":"VLOOKUP($A64,F1__World_Data!$A$4:$DP$191,108,FALSE)","v":64.712000000000003},{"$f":"VLOOKUP($A64,F1__World_Data!$A$4:$DP$191,107,FALSE)","v":64.477999999999994},{"$f":"VLOOKUP($A64,F1__World_Data!$A$4:$DP$191,106,FALSE)","v":64.242000000000004},{"$f":"VLOOKUP($A64,F1__World_Data!$A$4:$DP$191,105,FALSE)","v":63.994999999999997},{"$f":"VLOOKUP($A64,F1__World_Data!$A$4:$DP$191,104,FALSE)","v":63.731000000000002},{"$f":"VLOOKUP($A64,F1__World_Data!$A$4:$DP$191,103,FALSE)","v":63.445999999999998},{"$f":"VLOOKUP($A64,F1__World_Data!$A$4:$DP$191,102,FALSE)","v":63.143999999999998},{"$f":"VLOOKUP($A64,F1__World_Data!$A$4:$DP$191,101,FALSE)","v":62.829000000000001},{"$f":"VLOOKUP($A64,F1__World_Data!$A$4:$DP$191,100,FALSE)","v":62.509},{"$f":"VLOOKUP($A64,F1__World_Data!$A$4:$DP$191,99,FALSE)","v":62.188000000000002},{"$f":"VLOOKUP($A64,F1__World_Data!$A$4:$DP$191,98,FALSE)","v":61.866},{"$f":"VLOOKUP($A64,F1__World_Data!$A$4:$DP$191,97,FALSE)","v":61.539000000000001},{"$f":"VLOOKUP($A64,F1__World_Data!$A$4:$DP$191,96,FALSE)","v":61.198},{"$f":"VLOOKUP($A64,F1__World_Data!$A$4:$DP$191,95,FALSE)","v":60.837000000000003},{"$f":"VLOOKUP($A64,F1__World_Data!$A$4:$DP$191,94,FALSE)","v":60.454999999999998},{"$f":"VLOOKUP($A64,F1__World_Data!$A$4:$DP$191,93,FALSE)","v":60.052999999999997},{"$f":"VLOOKUP($A64,F1__World_Data!$A$4:$DP$191,92,FALSE)","v":59.636000000000003},{"$f":"VLOOKUP($A64,F1__World_Data!$A$4:$DP$191,91,FALSE)","v":59.209000000000003},{"$f":"VLOOKUP($A64,F1__World_Data!$A$4:$DP$191,90,FALSE)","v":58.783000000000001},{"$f":"VLOOKUP($A64,F1__World_Data!$A$4:$DP$191,89,FALSE)","v":58.366},{"$f":"VLOOKUP($A64,F1__World_Data!$A$4:$DP$191,88,FALSE)","v":57.962000000000003},{"$f":"VLOOKUP($A64,F1__World_Data!$A$4:$DP$191,87,FALSE)","v":57.579000000000001},{"$f":"VLOOKUP($A64,F1__World_Data!$A$4:$DP$191,86,FALSE)","v":57.220999999999997},{"$f":"VLOOKUP($A64,F1__World_Data!$A$4:$DP$191,85,FALSE)","v":56.886000000000003},{"$f":"VLOOKUP($A64,F1__World_Data!$A$4:$DP$191,84,FALSE)","v":56.569000000000003},{"$f":"VLOOKUP($A64,F1__World_Data!$A$4:$DP$191,83,FALSE)","v":56.265999999999998},{"$f":"VLOOKUP($A64,F1__World_Data!$A$4:$DP$191,82,FALSE)","v":55.970999999999997},{"$f":"VLOOKUP($A64,F1__World_Data!$A$4:$DP$191,81,FALSE)","v":55.679000000000002},{"$f":"VLOOKUP($A64,F1__World_Data!$A$4:$DP$191,80,FALSE)","v":55.381999999999998},{"$f":"VLOOKUP($A64,F1__World_Data!$A$4:$DP$191,79,FALSE)","v":55.073999999999998},{"$f":"VLOOKUP($A64,F1__World_Data!$A$4:$DP$191,78,FALSE)","v":54.747999999999998},{"$f":"VLOOKUP($A64,F1__World_Data!$A$4:$DP$191,77,FALSE)","v":54.399000000000001},{"$f":"VLOOKUP($A64,F1__World_Data!$A$4:$DP$191,76,FALSE)","v":54.027000000000001},{"$f":"VLOOKUP($A64,F1__World_Data!$A$4:$DP$191,75,FALSE)","v":53.633000000000003},{"$f":"VLOOKUP($A64,F1__World_Data!$A$4:$DP$191,74,FALSE)","v":53.218000000000004},{"$f":"VLOOKUP($A64,F1__World_Data!$A$4:$DP$191,73,FALSE)","v":52.781999999999996},{"$f":"VLOOKUP($A64,F1__World_Data!$A$4:$DP$191,72,FALSE)","v":52.323},{"$f":"VLOOKUP($A64,F1__World_Data!$A$4:$DP$191,71,FALSE)","v":51.837000000000003},{"$f":"VLOOKUP($A64,F1__World_Data!$A$4:$DP$191,70,FALSE)","v":51.326999999999998},{"$f":"VLOOKUP($A64,F1__World_Data!$A$4:$DP$191,69,FALSE)","v":50.795999999999999},{"$f":"VLOOKUP($A64,F1__World_Data!$A$4:$DP$191,68,FALSE)","v":50.25},{"$f":"VLOOKUP($A64,F1__World_Data!$A$4:$DP$191,67,FALSE)","v":49.697000000000003},{"$f":"VLOOKUP($A64,F1__World_Data!$A$4:$DP$191,66,FALSE)","v":49.145000000000003},{"$f":"VLOOKUP($A64,F1__World_Data!$A$4:$DP$191,65,FALSE)","v":48.600999999999999},{"$f":"VLOOKUP($A64,F1__World_Data!$A$4:$DP$191,64,FALSE)","v":48.070999999999998},{"$f":"VLOOKUP($A64,F1__World_Data!$A$4:$DP$191,63,FALSE)","v":47.557000000000002},{"$f":"VLOOKUP($A64,F1__World_Data!$A$4:$DP$191,62,FALSE)","v":47.061}]
["Chad",{"$f":"VLOOKUP($A65,F1__World_Data!$A$4:$DP$191,60,FALSE)","v":15477.727000000001},{"$f":"VLOOKUP($A65,F1__World_Data!$A$4:$DP$191,59,FALSE)","v":15016.761},{"$f":"VLOOKUP($A65,F1__World_Data!$A$4:$DP$191,58,FALSE)","v":14561.657999999999},{"$f":"VLOOKUP($A65,F1__World_Data!$A$4:$DP$191,57,FALSE)","v":14110.971},{"$f":"VLOOKUP($A65,F1__World_Data!$A$4:$DP$191,56,FALSE)","v":13663.562},{"$f":"VLOOKUP($A65,F1__World_Data!$A$4:$DP$191,55,FALSE)","v":13220.433000000001},{"$f":"VLOOKUP($A65,F1__World_Data!$A$4:$DP$191,54,FALSE)","v":12784.748},{"$f":"VLOOKUP($A65,F1__World_Data!$A$4:$DP$191,53,FALSE)","v":12360.986000000001},{"$f":"VLOOKUP($A65,F1__World_Data!$A$4:$DP$191,52,FALSE)","v":11952.134},{"$f":"VLOOKUP($A65,F1__World_Data!$A$4:$DP$191,51,FALSE)","v":11560.142},{"$f":"VLOOKUP($A65,F1__World_Data!$A$4:$DP$191,50,FALSE)","v":11183.589},{"$f":"VLOOKUP($A65,F1__World_Data!$A$4:$DP$191,49,FALSE)","v":10818.031000000001},{"$f":"VLOOKUP($A65,F1__World_Data!$A$4:$DP$191,48,FALSE)","v":10457.121999999999},{"$f":"VLOOKUP($A65,F1__World_Data!$A$4:$DP$191,47,FALSE)","v":10096.629999999999},{"$f":"VLOOKUP($A65,F1__World_Data!$A$4:$DP$191,46,FALSE)","v":9734.7610000000004},{"$f":"VLOOKUP($A65,F1__World_Data!$A$4:$DP$191,45,FALSE)","v":9373.9130000000005},{"$f":"VLOOKUP($A65,F1__World_Data!$A$4:$DP$191,44,FALSE)","v":9019.2260000000006},{"$f":"VLOOKUP($A65,F1__World_Data!$A$4:$DP$191,43,FALSE)","v":8678.0490000000009},{"$f":"VLOOKUP($A65,F1__World_Data!$A$4:$DP$191,42,FALSE)","v":8355.6540000000005},{"$f":"VLOOKUP($A65,F1__World_Data!$A$4:$DP$191,41,FALSE)","v":8053.5320000000002},{"$f":"VLOOKUP($A65,F1__World_Data!$A$4:$DP$191,40,FALSE)","v":7770.0529999999999},{"$f":"VLOOKUP($A65,F1__World_Data!$A$4:$DP$191,39,FALSE)","v":7503.4939999999997},{"$f":"VLOOKUP($A65,F1__World_Data!$A$4:$DP$191,38,FALSE)","v":7250.9740000000002},{"$f":"VLOOKUP($A65,F1__World_Data!$A$4:$DP$191,37,FALSE)","v":7010.1589999999997},{"$f":"VLOOKUP($A65,F1__World_Data!$A$4:$DP$191,36,FALSE)","v":6781.0569999999998},{"$f":"VLOOKUP($A65,F1__World_Data!$A$4:$DP$191,35,FALSE)","v":6563.9250000000002},{"$f":"VLOOKUP($A65,F1__World_Data!$A$4:$DP$191,34,FALSE)","v":6356.741},{"$f":"VLOOKUP($A65,F1__World_Data!$A$4:$DP$191,33,FALSE)","v":6157.085},{"$f":"VLOOKUP($A65,F1__World_Data!$A$4:$DP$191,32,FALSE)","v":5963.25},{"$f":"VLOOKUP($A65,F1__World_Data!$A$4:$DP$191,31,FALSE)","v":5773.93},{"$f":"VLOOKUP($A65,F1__World_Data!$A$4:$DP$191,30,FALSE)","v":5589.6239999999998},{"$f":"VLOOKUP($A65,F1__World_Data!$A$4:$DP$191,29,FALSE)","v":5412.8440000000001},{"$f":"VLOOKUP($A65,F1__World_Data!$A$4:$DP$191,28,FALSE)","v":5247.2809999999999},{"$f":"VLOOKUP($A65,F1__World_Data!$A$4:$DP$191,27,FALSE)","v":5095.3999999999996},{"$f":"VLOOKUP($A65,F1__World_Data!$A$4:$DP$191,26,FALSE)","v":4957.5609999999997},{"$f":"VLOOKUP($A65,F1__World_Data!$A$4:$DP$191,25,FALSE)","v":4832.3159999999998},{"$f":"VLOOKUP($A65,F1__World_Data!$A$4:$DP$191,24,FALSE)","v":4718.1570000000002},{"$f":"VLOOKUP($A65,F1__World_Data!$A$4:$DP$191,23,FALSE)","v":4612.8580000000002},{"$f":"VLOOKUP($A65,F1__World_Data!$A$4:$DP$191,22,FALSE)","v":4514.4269999999997},{"$f":"VLOOKUP($A65,F1__World_Data!$A$4:$DP$191,21,FALSE)","v":4422.7430000000004},{"$f":"VLOOKUP($A65,F1__World_Data!$A$4:$DP$191,20,FALSE)","v":4337.2920000000004},{"$f":"VLOOKUP($A65,F1__World_Data!$A$4:$DP$191,19,FALSE)","v":4255.2420000000002},{"$f":"VLOOKUP($A65,F1__World_Data!$A$4:$DP$191,18,FALSE)","v":4173.1310000000003},{"$f":"VLOOKUP($A65,F1__World_Data!$A$4:$DP$191,17,FALSE)","v":4088.5680000000002},{"$f":"VLOOKUP($A65,F1__World_Data!$A$4:$DP$191,16,FALSE)","v":3999.9180000000001},{"$f":"VLOOKUP($A65,F1__World_Data!$A$4:$DP$191,15,FALSE)","v":3907.8910000000001},{"$f":"VLOOKUP($A65,F1__World_Data!$A$4:$DP$191,14,FALSE)","v":3815.2530000000002},{"$f":"VLOOKUP($A65,F1__World_Data!$A$4:$DP$191,13,FALSE)","v":3726.1889999999999},{"$f":"VLOOKUP($A65,F1__World_Data!$A$4:$DP$191,12,FALSE)","v":3643.6080000000002},{"$f":"VLOOKUP($A65,F1__World_Data!$A$4:$DP$191,11,FALSE)","v":3568.402},{"$f":"VLOOKUP($A65,F1__World_Data!$A$4:$DP$191,10,FALSE)","v":3499.37},{"$f":"VLOOKUP($A65,F1__World_Data!$A$4:$DP$191,9,FALSE)","v":3434.817},{"$f":"VLOOKUP($A65,F1__World_Data!$A$4:$DP$191,8,FALSE)","v":3372.1819999999998},{"$f":"VLOOKUP($A65,F1__World_Data!$A$4:$DP$191,7,FALSE)","v":3309.5830000000001},{"$f":"VLOOKUP($A65,F1__World_Data!$A$4:$DP$191,6,FALSE)","v":3246.527},{"$f":"VLOOKUP($A65,F1__World_Data!$A$4:$DP$191,5,FALSE)","v":3183.576},{"$f":"VLOOKUP($A65,F1__World_Data!$A$4:$DP$191,4,FALSE)","v":3121.2260000000001},{"$f":"VLOOKUP($A65,F1__World_Data!$A$4:$DP$191,3,FALSE)","v":3060.3649999999998},{"$f":"VLOOKUP($A65,F1__World_Data!$A$4:$DP$191,2,FALSE)","v":3001.6039999999998},null,{"$f":"VLOOKUP($A65,F1__World_Data!$A$4:$DP$191,120,FALSE)","v":77.013154810125457},{"$f":"VLOOKUP($A65,F1__World_Data!$A$4:$DP$191,119,FALSE)","v":76.947462150480874},{"$f":"VLOOKUP($A65,F1__World_Data!$A$4:$DP$191,118,FALSE)","v":76.969807982335965},{"$f":"VLOOKUP($A65,F1__World_Data!$A$4:$DP$191,117,FALSE)","v":76.571877764778804},{"$f":"VLOOKUP($A65,F1__World_Data!$A$4:$DP$191,116,FALSE)","v":76.675623611304488},{"$f":"VLOOKUP($A65,F1__World_Data!$A$4:$DP$191,115,FALSE)","v":76.355162986980844},{"$f":"VLOOKUP($A65,F1__World_Data!$A$4:$DP$191,114,FALSE)","v":75.993488603453059},{"$f":"VLOOKUP($A65,F1__World_Data!$A$4:$DP$191,113,FALSE)","v":75.888474883428188},{"$f":"VLOOKUP($A65,F1__World_Data!$A$4:$DP$191,112,FALSE)","v":75.293965778631389},{"$f":"VLOOKUP($A65,F1__World_Data!$A$4:$DP$191,111,FALSE)","v":74.930363926657648},{"$f":"VLOOKUP($A65,F1__World_Data!$A$4:$DP$191,110,FALSE)","v":74.575952678077925},{"$f":"VLOOKUP($A65,F1__World_Data!$A$4:$DP$191,109,FALSE)","v":74.250648721076857},{"$f":"VLOOKUP($A65,F1__World_Data!$A$4:$DP$191,108,FALSE)","v":74.092602730809759},{"$f":"VLOOKUP($A65,F1__World_Data!$A$4:$DP$191,107,FALSE)","v":73.838300183861094},{"$f":"VLOOKUP($A65,F1__World_Data!$A$4:$DP$191,106,FALSE)","v":73.73715299612762},{"$f":"VLOOKUP($A65,F1__World_Data!$A$4:$DP$191,105,FALSE)","v":73.382252782525796},{"$f":"VLOOKUP($A65,F1__World_Data!$A$4:$DP$191,104,FALSE)","v":73.242415488092149},{"$f":"VLOOKUP($A65,F1__World_Data!$A$4:$DP$191,103,FALSE)","v":73.096148193734322},{"$f":"VLOOKUP($A65,F1__World_Data!$A$4:$DP$191,102,FALSE)","v":72.719724722779048},{"$f":"VLOOKUP($A65,F1__World_Data!$A$4:$DP$191,101,FALSE)","v":72.184561074087483},{"$f":"VLOOKUP($A65,F1__World_Data!$A$4:$DP$191,100,FALSE)","v":71.898237675995631},{"$f":"VLOOKUP($A65,F1__World_Data!$A$4:$DP$191,99,FALSE)","v":71.517258069682228},{"$f":"VLOOKUP($A65,F1__World_Data!$A$4:$DP$191,98,FALSE)","v":71.336058018995075},{"$f":"VLOOKUP($A65,F1__World_Data!$A$4:$DP$191,97,FALSE)","v":71.025421428289064},{"$f":"VLOOKUP($A65,F1__World_Data!$A$4:$DP$191,96,FALSE)","v":70.869543944747306},{"$f":"VLOOKUP($A65,F1__World_Data!$A$4:$DP$191,95,FALSE)","v":70.845986615144795},{"$f":"VLOOKUP($A65,F1__World_Data!$A$4:$DP$191,94,FALSE)","v":70.732837131415664},{"$f":"VLOOKUP($A65,F1__World_Data!$A$4:$DP$191,93,FALSE)","v":70.57522130347742},{"$f":"VLOOKUP($A65,F1__World_Data!$A$4:$DP$191,92,FALSE)","v":70.656331337258607},{"$f":"VLOOKUP($A65,F1__World_Data!$A$4:$DP$191,91,FALSE)","v":70.731972259748474},{"$f":"VLOOKUP($A65,F1__World_Data!$A$4:$DP$191,90,FALSE)","v":70.861708225052027},{"$f":"VLOOKUP($A65,F1__World_Data!$A$4:$DP$191,89,FALSE)","v":70.611763331234172},{"$f":"VLOOKUP($A65,F1__World_Data!$A$4:$DP$191,88,FALSE)","v":70.565136039744331},{"$f":"VLOOKUP($A65,F1__World_Data!$A$4:$DP$191,87,FALSE)","v":70.312883466323655},{"$f":"VLOOKUP($A65,F1__World_Data!$A$4:$DP$191,86,FALSE)","v":70.349114856134193},{"$f":"VLOOKUP($A65,F1__World_Data!$A$4:$DP$191,85,FALSE)","v":70.389785169429601},{"$f":"VLOOKUP($A65,F1__World_Data!$A$4:$DP$191,84,FALSE)","v":70.45547331873172},{"$f":"VLOOKUP($A65,F1__World_Data!$A$4:$DP$191,83,FALSE)","v":70.372050177777368},{"$f":"VLOOKUP($A65,F1__World_Data!$A$4:$DP$191,82,FALSE)","v":69.890509798033563},{"$f":"VLOOKUP($A65,F1__World_Data!$A$4:$DP$191,81,FALSE)","v":70.239396993958749},{"$f":"VLOOKUP($A65,F1__World_Data!$A$4:$DP$191,80,FALSE)","v":70.147932106139478},{"$f":"VLOOKUP($A65,F1__World_Data!$A$4:$DP$191,79,FALSE)","v":70.242373148279256},{"$f":"VLOOKUP($A65,F1__World_Data!$A$4:$DP$191,78,FALSE)","v":70.319148895789127},{"$f":"VLOOKUP($A65,F1__World_Data!$A$4:$DP$191,77,FALSE)","v":70.174408694229456},{"$f":"VLOOKUP($A65,F1__World_Data!$A$4:$DP$191,76,FALSE)","v":70.30593936929715},{"$f":"VLOOKUP($A65,F1__World_Data!$A$4:$DP$191,75,FALSE)","v":70.067777192089565},{"$f":"VLOOKUP($A65,F1__World_Data!$A$4:$DP$191,74,FALSE)","v":69.925441264574317},{"$f":"VLOOKUP($A65,F1__World_Data!$A$4:$DP$191,73,FALSE)","v":69.485165745849855},{"$f":"VLOOKUP($A65,F1__World_Data!$A$4:$DP$191,72,FALSE)","v":69.446955055223569},{"$f":"VLOOKUP($A65,F1__World_Data!$A$4:$DP$191,71,FALSE)","v":69.275734201981379},{"$f":"VLOOKUP($A65,F1__World_Data!$A$4:$DP$191,70,FALSE)","v":69.536025304884078},{"$f":"VLOOKUP($A65,F1__World_Data!$A$4:$DP$191,69,FALSE)","v":69.272742187699023},{"$f":"VLOOKUP($A65,F1__World_Data!$A$4:$DP$191,68,FALSE)","v":69.527071933977979},{"$f":"VLOOKUP($A65,F1__World_Data!$A$4:$DP$191,67,FALSE)","v":69.276997595515866},{"$f":"VLOOKUP($A65,F1__World_Data!$A$4:$DP$191,66,FALSE)","v":69.052484538875277},{"$f":"VLOOKUP($A65,F1__World_Data!$A$4:$DP$191,65,FALSE)","v":68.696047369716993},{"$f":"VLOOKUP($A65,F1__World_Data!$A$4:$DP$191,64,FALSE)","v":68.006925641810753},{"$f":"VLOOKUP($A65,F1__World_Data!$A$4:$DP$191,63,FALSE)","v":68.262198343866316},{"$f":"VLOOKUP($A65,F1__World_Data!$A$4:$DP$191,62,FALSE)","v":67.821388639175453}]
["Somalia",{"$f":"VLOOKUP($A66,F1__World_Data!$A$4:$DP$191,60,FALSE)","v":15008.225},{"$f":"VLOOKUP($A66,F1__World_Data!$A$4:$DP$191,59,FALSE)","v":14589.165000000001},{"$f":"VLOOKUP($A66,F1__World_Data!$A$4:$DP$191,58,FALSE)","v":14185.635},{"$f":"VLOOKUP($A66,F1__World_Data!$A$4:$DP$191,57,FALSE)","v":13797.204},{"$f":"VLOOKUP($A66,F1__World_Data!$A$4:$DP$191,56,FALSE)","v":13423.571},{"$f":"VLOOKUP($A66,F1__World_Data!$A$4:$DP$191,55,FALSE)","v":13063.710999999999},{"$f":"VLOOKUP($A66,F1__World_Data!$A$4:$DP$191,54,FALSE)","v":12715.486999999999},{"$f":"VLOOKUP($A66,F1__World_Data!$A$4:$DP$191,53,FALSE)","v":12376.305},{"$f":"VLOOKUP($A66,F1__World_Data!$A$4:$DP$191,52,FALSE)","v":12043.886},{"$f":"VLOOKUP($A66,F1__World_Data!$A$4:$DP$191,51,FALSE)","v":11717.691000000001},{"$f":"VLOOKUP($A66,F1__World_Data!$A$4:$DP$191,50,FALSE)","v":11397.188},{"$f":"VLOOKUP($A66,F1__World_Data!$A$4:$DP$191,49,FALSE)","v":11080.121999999999},{"$f":"VLOOKUP($A66,F1__World_Data!$A$4:$DP$191,48,FALSE)","v":10763.904},{"$f":"VLOOKUP($A66,F1__World_Data!$A$4:$DP$191,47,FALSE)","v":10446.856},{"$f":"VLOOKUP($A66,F1__World_Data!$A$4:$DP$191,46,FALSE)","v":10130.251},{"$f":"VLOOKUP($A66,F1__World_Data!$A$4:$DP$191,45,FALSE)","v":9815.4120000000003},{"$f":"VLOOKUP($A66,F1__World_Data!$A$4:$DP$191,44,FALSE)","v":9501.3349999999991},{"$f":"VLOOKUP($A66,F1__World_Data!$A$4:$DP$191,43,FALSE)","v":9186.7189999999991},{"$f":"VLOOKUP($A66,F1__World_Data!$A$4:$DP$191,42,FALSE)","v":8872.25},{"$f":"VLOOKUP($A66,F1__World_Data!$A$4:$DP$191,41,FALSE)","v":8553.5949999999993},{"$f":"VLOOKUP($A66,F1__World_Data!$A$4:$DP$191,40,FALSE)","v":8235.0640000000003},{"$f":"VLOOKUP($A66,F1__World_Data!$A$4:$DP$191,39,FALSE)","v":7936.1220000000003},{"$f":"VLOOKUP($A66,F1__World_Data!$A$4:$DP$191,38,FALSE)","v":7682.683},{"$f":"VLOOKUP($A66,F1__World_Data!$A$4:$DP$191,37,FALSE)","v":7491.6469999999999},{"$f":"VLOOKUP($A66,F1__World_Data!$A$4:$DP$191,36,FALSE)","v":7372.5919999999996},{"$f":"VLOOKUP($A66,F1__World_Data!$A$4:$DP$191,35,FALSE)","v":7315.8639999999996},{"$f":"VLOOKUP($A66,F1__World_Data!$A$4:$DP$191,34,FALSE)","v":7295.38},{"$f":"VLOOKUP($A66,F1__World_Data!$A$4:$DP$191,33,FALSE)","v":7274.0259999999998},{"$f":"VLOOKUP($A66,F1__World_Data!$A$4:$DP$191,32,FALSE)","v":7225.0889999999999},{"$f":"VLOOKUP($A66,F1__World_Data!$A$4:$DP$191,31,FALSE)","v":7133.2629999999999},{"$f":"VLOOKUP($A66,F1__World_Data!$A$4:$DP$191,30,FALSE)","v":7005.2259999999997},{"$f":"VLOOKUP($A66,F1__World_Data!$A$4:$DP$191,29,FALSE)","v":6862.2669999999998},{"$f":"VLOOKUP($A66,F1__World_Data!$A$4:$DP$191,28,FALSE)","v":6736.7510000000002},{"$f":"VLOOKUP($A66,F1__World_Data!$A$4:$DP$191,27,FALSE)","v":6648.6279999999997},{"$f":"VLOOKUP($A66,F1__World_Data!$A$4:$DP$191,26,FALSE)","v":6614.7129999999997},{"$f":"VLOOKUP($A66,F1__World_Data!$A$4:$DP$191,25,FALSE)","v":6618.5940000000001},{"$f":"VLOOKUP($A66,F1__World_Data!$A$4:$DP$191,24,FALSE)","v":6608.04},{"$f":"VLOOKUP($A66,F1__World_Data!$A$4:$DP$191,23,FALSE)","v":6511.1149999999998},{"$f":"VLOOKUP($A66,F1__World_Data!$A$4:$DP$191,22,FALSE)","v":6281.1379999999999},{"$f":"VLOOKUP($A66,F1__World_Data!$A$4:$DP$191,21,FALSE)","v":5892.7629999999999},{"$f":"VLOOKUP($A66,F1__World_Data!$A$4:$DP$191,20,FALSE)","v":5375.018},{"$f":"VLOOKUP($A66,F1__World_Data!$A$4:$DP$191,19,FALSE)","v":4802.134},{"$f":"VLOOKUP($A66,F1__World_Data!$A$4:$DP$191,18,FALSE)","v":4278.9740000000002},{"$f":"VLOOKUP($A66,F1__World_Data!$A$4:$DP$191,17,FALSE)","v":3880.2849999999999},{"$f":"VLOOKUP($A66,F1__World_Data!$A$4:$DP$191,16,FALSE)","v":3632.9859999999999},{"$f":"VLOOKUP($A66,F1__World_Data!$A$4:$DP$191,15,FALSE)","v":3512.6260000000002},{"$f":"VLOOKUP($A66,F1__World_Data!$A$4:$DP$191,14,FALSE)","v":3479.7919999999999},{"$f":"VLOOKUP($A66,F1__World_Data!$A$4:$DP$191,13,FALSE)","v":3472.357},{"$f":"VLOOKUP($A66,F1__World_Data!$A$4:$DP$191,12,FALSE)","v":3444.569},{"$f":"VLOOKUP($A66,F1__World_Data!$A$4:$DP$191,11,FALSE)","v":3386.7359999999999},{"$f":"VLOOKUP($A66,F1__World_Data!$A$4:$DP$191,10,FALSE)","v":3312.7350000000001},{"$f":"VLOOKUP($A66,F1__World_Data!$A$4:$DP$191,9,FALSE)","v":3227.835},{"$f":"VLOOKUP($A66,F1__World_Data!$A$4:$DP$191,8,FALSE)","v":3143.654},{"$f":"VLOOKUP($A66,F1__World_Data!$A$4:$DP$191,7,FALSE)","v":3068.4650000000001},{"$f":"VLOOKUP($A66,F1__World_Data!$A$4:$DP$191,6,FALSE)","v":3001.16},{"$f":"VLOOKUP($A66,F1__World_Data!$A$4:$DP$191,5,FALSE)","v":2936.4780000000001},{"$f":"VLOOKUP($A66,F1__World_Data!$A$4:$DP$191,4,FALSE)","v":2874.2150000000001},{"$f":"VLOOKUP($A66,F1__World_Data!$A$4:$DP$191,3,FALSE)","v":2814.125},{"$f":"VLOOKUP($A66,F1__World_Data!$A$4:$DP$191,2,FALSE)","v":2755.9670000000001},null,{"$f":"VLOOKUP($A66,F1__World_Data!$A$4:$DP$191,120,FALSE)","v":68.116},{"$f":"VLOOKUP($A66,F1__World_Data!$A$4:$DP$191,119,FALSE)","v":67.850999999999999},{"$f":"VLOOKUP($A66,F1__World_Data!$A$4:$DP$191,118,FALSE)","v":67.576999999999998},{"$f":"VLOOKUP($A66,F1__World_Data!$A$4:$DP$191,117,FALSE)","v":67.290999999999997},{"$f":"VLOOKUP($A66,F1__World_Data!$A$4:$DP$191,116,FALSE)","v":66.995000000000005},{"$f":"VLOOKUP($A66,F1__World_Data!$A$4:$DP$191,115,FALSE)","v":66.69},{"$f":"VLOOKUP($A66,F1__World_Data!$A$4:$DP$191,114,FALSE)","v":66.381},{"$f":"VLOOKUP($A66,F1__World_Data!$A$4:$DP$191,113,FALSE)","v":66.072000000000003},{"$f":"VLOOKUP($A66,F1__World_Data!$A$4:$DP$191,112,FALSE)","v":65.769000000000005},{"$f":"VLOOKUP($A66,F1__World_Data!$A$4:$DP$191,111,FALSE)","v":65.48},{"$f":"VLOOKUP($A66,F1__World_Data!$A$4:$DP$191,110,FALSE)","v":65.207999999999998},{"$f":"VLOOKUP($A66,F1__World_Data!$A$4:$DP$191,109,FALSE)","v":64.953000000000003},{"$f":"VLOOKUP($A66,F1__World_Data!$A$4:$DP$191,108,FALSE)","v":64.712000000000003},{"$f":"VLOOKUP($A66,F1__World_Data!$A$4:$DP$191,107,FALSE)","v":64.477999999999994},{"$f":"VLOOKUP($A66,F1__World_Data!$A$4:$DP$191,106,FALSE)","v":64.242000000000004},{"$f":"VLOOKUP($A66,F1__World_Data!$A$4:$DP$191,105,FALSE)","v":63.994999999999997},{"$f":"VLOOKUP($A66,F1__World_Data!$A$4:$DP$191,104,FALSE)","v":63.731000000000002},{"$f":"VLOOKUP($A66,F1__World_Data!$A$4:$DP$191,103,FALSE)","v":63.445999999999998},{"$f":"VLOOKUP($A66,F1__World_Data!$A$4:$DP$191,102,FALSE)","v":63.143999999999998},{"$f":"VLOOKUP($A66,F1__World_Data!$A$4:$DP$191,101,FALSE)","v":62.829000000000001},{"$f":"VLOOKUP($A66,F1__World_Data!$A$4:$DP$191,100,FALSE)","v":62.509},{"$f":"VLOOKUP($A66,F1__World_Data!$A$4:$DP$191,99,FALSE)","v":62.188000000000002},{"$f":"VLOOKUP($A66,F1__World_Data!$A$4:$DP$191,98,FALSE)","v":61.866},{"$f":"VLOOKUP($A66,F1__World_Data!$A$4:$DP$191,97,FALSE)","v":61.539000000000001},{"$f":"VLOOKUP($A66,F1__World_Data!$A$4:$DP$191,96,FALSE)","v":61.198},{"$f":"VLOOKUP($A66,F1__World_Data!$A$4:$DP$191,95,FALSE)","v":60.837000000000003},{"$f":"VLOOKUP($A66,F1__World_Data!$A$4:$DP$191,94,FALSE)","v":60.454999999999998},{"$f":"VLOOKUP($A66,F1__World_Data!$A$4:$DP$191,93,FALSE)","v":60.052999999999997},{"$f":"VLOOKUP($A66,F1__World_Data!$A$4:$DP$191,92,FALSE)","v":59.636000000000003},{"$f":"VLOOKUP($A66,F1__World_Data!$A$4:$DP$191,91,FALSE)","v":59.209000000000003},{"$f":"VLOOKUP($A66,F1__World_Data!$A$4:$DP$191,90,FALSE)","v":58.783000000000001},{"$f":"VLOOKUP($A66,F1__World_Data!$A$4:$DP$191,89,FALSE)","v":58.366},{"$f":"VLOOKUP($A66,F1__World_Data!$A$4:$DP$191,88,FALSE)","v":57.962000000000003},{"$f":"VLOOKUP($A66,F1__World_Data!$A$4:$DP$191,87,FALSE)","v":57.579000000000001},{"$f":"VLOOKUP($A66,F1__World_Data!$A$4:$DP$191,86,FALSE)","v":57.220999999999997},{"$f":"VLOOKUP($A66,F1__World_Data!$A$4:$DP$191,85,FALSE)","v":56.886000000000003},{"$f":"VLOOKUP($A66,F1__World_Data!$A$4:$DP$191,84,FALSE)","v":56.569000000000003},{"$f":"VLOOKUP($A66,F1__World_Data!$A$4:$DP$191,83,FALSE)","v":56.265999999999998},{"$f":"VLOOKUP($A66,F1__World_Data!$A$4:$DP$191,82,FALSE)","v":55.970999999999997},{"$f":"VLOOKUP($A66,F1__World_Data!$A$4:$DP$191,81,FALSE)","v":55.679000000000002},{"$f":"VLOOKUP($A66,F1__World_Data!$A$4:$DP$191,80,FALSE)","v":55.381999999999998},{"$f":"VLOOKUP($A66,F1__World_Data!$A$4:$DP$191,79,FALSE)","v":55.073999999999998},{"$f":"VLOOKUP($A66,F1__World_Data!$A$4:$DP$191,78,FALSE)","v":54.747999999999998},{"$f":"VLOOKUP($A66,F1__World_Data!$A$4:$DP$191,77,FALSE)","v":54.399000000000001},{"$f":"VLOOKUP($A66,F1__World_Data!$A$4:$DP$191,76,FALSE)","v":54.027000000000001},{"$f":"VLOOKUP($A66,F1__World_Data!$A$4:$DP$191,75,FALSE)","v":53.633000000000003},{"$f":"VLOOKUP($A66,F1__World_Data!$A$4:$DP$191,74,FALSE)","v":53.218000000000004},{"$f":"VLOOKUP($A66,F1__World_Data!$A$4:$DP$191,73,FALSE)","v":52.781999999999996},{"$f":"VLOOKUP($A66,F1__World_Data!$A$4:$DP$191,72,FALSE)","v":52.323},{"$f":"VLOOKUP($A66,F1__World_Data!$A$4:$DP$191,71,FALSE)","v":51.837000000000003},{"$f":"VLOOKUP($A66,F1__World_Data!$A$4:$DP$191,70,FALSE)","v":51.326999999999998},{"$f":"VLOOKUP($A66,F1__World_Data!$A$4:$DP$191,69,FALSE)","v":50.795999999999999},{"$f":"VLOOKUP($A66,F1__World_Data!$A$4:$DP$191,68,FALSE)","v":50.25},{"$f":"VLOOKUP($A66,F1__World_Data!$A$4:$DP$191,67,FALSE)","v":49.697000000000003},{"$f":"VLOOKUP($A66,F1__World_Data!$A$4:$DP$191,66,FALSE)","v":49.145000000000003},{"$f":"VLOOKUP($A66,F1__World_Data!$A$4:$DP$191,65,FALSE)","v":48.600999999999999},{"$f":"VLOOKUP($A66,F1__World_Data!$A$4:$DP$191,64,FALSE)","v":48.070999999999998},{"$f":"VLOOKUP($A66,F1__World_Data!$A$4:$DP$191,63,FALSE)","v":47.557000000000002},{"$f":"VLOOKUP($A66,F1__World_Data!$A$4:$DP$191,62,FALSE)","v":47.061}]
["Zimbabwe",{"$f":"VLOOKUP($A67,F1__World_Data!$A$4:$DP$191,60,FALSE)","v":14438.812},{"$f":"VLOOKUP($A67,F1__World_Data!$A$4:$DP$191,59,FALSE)","v":14236.599},{"$f":"VLOOKUP($A67,F1__World_Data!$A$4:$DP$191,58,FALSE)","v":14030.338},{"$f":"VLOOKUP($A67,F1__World_Data!$A$4:$DP$191,57,FALSE)","v":13814.642},{"$f":"VLOOKUP($A67,F1__World_Data!$A$4:$DP$191,56,FALSE)","v":13586.71},{"$f":"VLOOKUP($A67,F1__World_Data!$A$4:$DP$191,55,FALSE)","v":13350.378000000001},{"$f":"VLOOKUP($A67,F1__World_Data!$A$4:$DP$191,54,FALSE)","v":13115.148999999999},{"$f":"VLOOKUP($A67,F1__World_Data!$A$4:$DP$191,53,FALSE)","v":12894.323},{"$f":"VLOOKUP($A67,F1__World_Data!$A$4:$DP$191,52,FALSE)","v":12697.727999999999},{"$f":"VLOOKUP($A67,F1__World_Data!$A$4:$DP$191,51,FALSE)","v":12526.964},{"$f":"VLOOKUP($A67,F1__World_Data!$A$4:$DP$191,50,FALSE)","v":12379.553},{"$f":"VLOOKUP($A67,F1__World_Data!$A$4:$DP$191,49,FALSE)","v":12255.92},{"$f":"VLOOKUP($A67,F1__World_Data!$A$4:$DP$191,48,FALSE)","v":12155.495999999999},{"$f":"VLOOKUP($A67,F1__World_Data!$A$4:$DP$191,47,FALSE)","v":12076.697},{"$f":"VLOOKUP($A67,F1__World_Data!$A$4:$DP$191,46,FALSE)","v":12019.911},{"$f":"VLOOKUP($A67,F1__World_Data!$A$4:$DP$191,45,FALSE)","v":11982.218999999999},{"$f":"VLOOKUP($A67,F1__World_Data!$A$4:$DP$191,44,FALSE)","v":11954.293},{"$f":"VLOOKUP($A67,F1__World_Data!$A$4:$DP$191,43,FALSE)","v":11923.906000000001},{"$f":"VLOOKUP($A67,F1__World_Data!$A$4:$DP$191,42,FALSE)","v":11881.482},{"$f":"VLOOKUP($A67,F1__World_Data!$A$4:$DP$191,41,FALSE)","v":11822.722},{"$f":"VLOOKUP($A67,F1__World_Data!$A$4:$DP$191,40,FALSE)","v":11747.079},{"$f":"VLOOKUP($A67,F1__World_Data!$A$4:$DP$191,39,FALSE)","v":11653.254000000001},{"$f":"VLOOKUP($A67,F1__World_Data!$A$4:$DP$191,38,FALSE)","v":11541.215},{"$f":"VLOOKUP($A67,F1__World_Data!$A$4:$DP$191,37,FALSE)","v":11410.721},{"$f":"VLOOKUP($A67,F1__World_Data!$A$4:$DP$191,36,FALSE)","v":11261.752},{"$f":"VLOOKUP($A67,F1__World_Data!$A$4:$DP$191,35,FALSE)","v":11092.775},{"$f":"VLOOKUP($A67,F1__World_Data!$A$4:$DP$191,34,FALSE)","v":10900.511},{"$f":"VLOOKUP($A67,F1__World_Data!$A$4:$DP$191,33,FALSE)","v":10681.008},{"$f":"VLOOKUP($A67,F1__World_Data!$A$4:$DP$191,32,FALSE)","v":10432.409},{"$f":"VLOOKUP($A67,F1__World_Data!$A$4:$DP$191,31,FALSE)","v":10153.852000000001},{"$f":"VLOOKUP($A67,F1__World_Data!$A$4:$DP$191,30,FALSE)","v":9849.1290000000008},{"$f":"VLOOKUP($A67,F1__World_Data!$A$4:$DP$191,29,FALSE)","v":9527.2019999999993},{"$f":"VLOOKUP($A67,F1__World_Data!$A$4:$DP$191,28,FALSE)","v":9200.15},{"$f":"VLOOKUP($A67,F1__World_Data!$A$4:$DP$191,27,FALSE)","v":8877.4889999999996},{"$f":"VLOOKUP($A67,F1__World_Data!$A$4:$DP$191,26,FALSE)","v":8562.259},{"$f":"VLOOKUP($A67,F1__World_Data!$A$4:$DP$191,25,FALSE)","v":8254.7459999999992},{"$f":"VLOOKUP($A67,F1__World_Data!$A$4:$DP$191,24,FALSE)","v":7958.2389999999996},{"$f":"VLOOKUP($A67,F1__World_Data!$A$4:$DP$191,23,FALSE)","v":7675.5820000000003},{"$f":"VLOOKUP($A67,F1__World_Data!$A$4:$DP$191,22,FALSE)","v":7408.63},{"$f":"VLOOKUP($A67,F1__World_Data!$A$4:$DP$191,21,FALSE)","v":7160.0209999999997},{"$f":"VLOOKUP($A67,F1__World_Data!$A$4:$DP$191,20,FALSE)","v":6929.6629999999996},{"$f":"VLOOKUP($A67,F1__World_Data!$A$4:$DP$191,19,FALSE)","v":6712.8249999999998},{"$f":"VLOOKUP($A67,F1__World_Data!$A$4:$DP$191,18,FALSE)","v":6502.5659999999998},{"$f":"VLOOKUP($A67,F1__World_Data!$A$4:$DP$191,17,FALSE)","v":6293.875},{"$f":"VLOOKUP($A67,F1__World_Data!$A$4:$DP$191,16,FALSE)","v":6085.0780000000004},{"$f":"VLOOKUP($A67,F1__World_Data!$A$4:$DP$191,15,FALSE)","v":5877.7250000000004},{"$f":"VLOOKUP($A67,F1__World_Data!$A$4:$DP$191,14,FALSE)","v":5673.9139999999998},{"$f":"VLOOKUP($A67,F1__World_Data!$A$4:$DP$191,13,FALSE)","v":5476.9780000000001},{"$f":"VLOOKUP($A67,F1__World_Data!$A$4:$DP$191,12,FALSE)","v":5289.3119999999999},{"$f":"VLOOKUP($A67,F1__World_Data!$A$4:$DP$191,11,FALSE)","v":5111.326},{"$f":"VLOOKUP($A67,F1__World_Data!$A$4:$DP$191,10,FALSE)","v":4941.9009999999998},{"$f":"VLOOKUP($A67,F1__World_Data!$A$4:$DP$191,9,FALSE)","v":4779.8249999999998},{"$f":"VLOOKUP($A67,F1__World_Data!$A$4:$DP$191,8,FALSE)","v":4623.34},{"$f":"VLOOKUP($A67,F1__World_Data!$A$4:$DP$191,7,FALSE)","v":4471.1779999999999},{"$f":"VLOOKUP($A67,F1__World_Data!$A$4:$DP$191,6,FALSE)","v":4322.8540000000003},{"$f":"VLOOKUP($A67,F1__World_Data!$A$4:$DP$191,5,FALSE)","v":4178.7259999999997},{"$f":"VLOOKUP($A67,F1__World_Data!$A$4:$DP$191,4,FALSE)","v":4039.2089999999998},{"$f":"VLOOKUP($A67,F1__World_Data!$A$4:$DP$191,3,FALSE)","v":3905.038},{"$f":"VLOOKUP($A67,F1__World_Data!$A$4:$DP$191,2,FALSE)","v":3776.6790000000001},null,{"$f":"VLOOKUP($A67,F1__World_Data!$A$4:$DP$191,120,FALSE)","v":61.195},{"$f":"VLOOKUP($A67,F1__World_Data!$A$4:$DP$191,119,FALSE)","v":60.811999999999998},{"$f":"VLOOKUP($A67,F1__World_Data!$A$4:$DP$191,118,FALSE)","v":60.293999999999997},{"$f":"VLOOKUP($A67,F1__World_Data!$A$4:$DP$191,117,FALSE)","v":59.533999999999999},{"$f":"VLOOKUP($A67,F1__World_Data!$A$4:$DP$191,116,FALSE)","v":58.41},{"$f":"VLOOKUP($A67,F1__World_Data!$A$4:$DP$191,115,FALSE)","v":56.896999999999998},{"$f":"VLOOKUP($A67,F1__World_Data!$A$4:$DP$191,114,FALSE)","v":55.031999999999996},{"$f":"VLOOKUP($A67,F1__World_Data!$A$4:$DP$191,113,FALSE)","v":52.896000000000001},{"$f":"VLOOKUP($A67,F1__World_Data!$A$4:$DP$191,112,FALSE)","v":50.64},{"$f":"VLOOKUP($A67,F1__World_Data!$A$4:$DP$191,111,FALSE)","v":48.448999999999998},{"$f":"VLOOKUP($A67,F1__World_Data!$A$4:$DP$191,110,FALSE)","v":46.503999999999998},{"$f":"VLOOKUP($A67,F1__World_Data!$A$4:$DP$191,109,FALSE)","v":44.947000000000003},{"$f":"VLOOKUP($A67,F1__World_Data!$A$4:$DP$191,108,FALSE)","v":43.853000000000002},{"$f":"VLOOKUP($A67,F1__World_Data!$A$4:$DP$191,107,FALSE)","v":43.241},{"$f":"VLOOKUP($A67,F1__World_Data!$A$4:$DP$191,106,FALSE)","v":43.064999999999998},{"$f":"VLOOKUP($A67,F1__World_Data!$A$4:$DP$191,105,FALSE)","v":43.195},{"$f":"VLOOKUP($A67,F1__World_Data!$A$4:$DP$191,104,FALSE)","v":43.523000000000003},{"$f":"VLOOKUP($A67,F1__World_Data!$A$4:$DP$191,103,FALSE)","v":44.01},{"$f":"VLOOKUP($A67,F1__World_Data!$A$4:$DP$191,102,FALSE)","v":44.649000000000001},{"$f":"VLOOKUP($A67,F1__World_Data!$A$4:$DP$191,101,FALSE)","v":45.460999999999999},{"$f":"VLOOKUP($A67,F1__World_Data!$A$4:$DP$191,100,FALSE)","v":46.466000000000001},{"$f":"VLOOKUP($A67,F1__World_Data!$A$4:$DP$191,99,FALSE)","v":47.661000000000001},{"$f":"VLOOKUP($A67,F1__World_Data!$A$4:$DP$191,98,FALSE)","v":49.009},{"$f":"VLOOKUP($A67,F1__World_Data!$A$4:$DP$191,97,FALSE)","v":50.48},{"$f":"VLOOKUP($A67,F1__World_Data!$A$4:$DP$191,96,FALSE)","v":52.043999999999997},{"$f":"VLOOKUP($A67,F1__World_Data!$A$4:$DP$191,95,FALSE)","v":53.652999999999999},{"$f":"VLOOKUP($A67,F1__World_Data!$A$4:$DP$191,94,FALSE)","v":55.243000000000002},{"$f":"VLOOKUP($A67,F1__World_Data!$A$4:$DP$191,93,FALSE)","v":56.749000000000002},{"$f":"VLOOKUP($A67,F1__World_Data!$A$4:$DP$191,92,FALSE)","v":58.1},{"$f":"VLOOKUP($A67,F1__World_Data!$A$4:$DP$191,91,FALSE)","v":59.234999999999999},{"$f":"VLOOKUP($A67,F1__World_Data!$A$4:$DP$191,90,FALSE)","v":60.136000000000003},{"$f":"VLOOKUP($A67,F1__World_Data!$A$4:$DP$191,89,FALSE)","v":60.792000000000002},{"$f":"VLOOKUP($A67,F1__World_Data!$A$4:$DP$191,88,FALSE)","v":61.198999999999998},{"$f":"VLOOKUP($A67,F1__World_Data!$A$4:$DP$191,87,FALSE)","v":61.356000000000002},{"$f":"VLOOKUP($A67,F1__World_Data!$A$4:$DP$191,86,FALSE)","v":61.28},{"$f":"VLOOKUP($A67,F1__World_Data!$A$4:$DP$191,85,FALSE)","v":61.024999999999999},{"$f":"VLOOKUP($A67,F1__World_Data!$A$4:$DP$191,84,FALSE)","v":60.65},{"$f":"VLOOKUP($A67,F1__World_Data!$A$4:$DP$191,83,FALSE)","v":60.203000000000003},{"$f":"VLOOKUP($A67,F1__World_Data!$A$4:$DP$191,82,FALSE)","v":59.731000000000002},{"$f":"VLOOKUP($A67,F1__World_Data!$A$4:$DP$191,81,FALSE)","v":59.274000000000001},{"$f":"VLOOKUP($A67,F1__World_Data!$A$4:$DP$191,80,FALSE)","v":58.85},{"$f":"VLOOKUP($A67,F1__World_Data!$A$4:$DP$191,79,FALSE)","v":58.47},{"$f":"VLOOKUP($A67,F1__World_Data!$A$4:$DP$191,78,FALSE)","v":58.15},{"$f":"VLOOKUP($A67,F1__World_Data!$A$4:$DP$191,77,FALSE)","v":57.892000000000003},{"$f":"VLOOKUP($A67,F1__World_Data!$A$4:$DP$191,76,FALSE)","v":57.688000000000002},{"$f":"VLOOKUP($A67,F1__World_Data!$A$4:$DP$191,75,FALSE)","v":57.509},{"$f":"VLOOKUP($A67,F1__World_Data!$A$4:$DP$191,74,FALSE)","v":57.329000000000001},{"$f":"VLOOKUP($A67,F1__World_Data!$A$4:$DP$191,73,FALSE)","v":57.134999999999998},{"$f":"VLOOKUP($A67,F1__World_Data!$A$4:$DP$191,72,FALSE)","v":56.912999999999997},{"$f":"VLOOKUP($A67,F1__World_Data!$A$4:$DP$191,71,FALSE)","v":56.655999999999999},{"$f":"VLOOKUP($A67,F1__World_Data!$A$4:$DP$191,70,FALSE)","v":56.362000000000002},{"$f":"VLOOKUP($A67,F1__World_Data!$A$4:$DP$191,69,FALSE)","v":56.033999999999999},{"$f":"VLOOKUP($A67,F1__World_Data!$A$4:$DP$191,68,FALSE)","v":55.670999999999999},{"$f":"VLOOKUP($A67,F1__World_Data!$A$4:$DP$191,67,FALSE)","v":55.274000000000001},{"$f":"VLOOKUP($A67,F1__World_Data!$A$4:$DP$191,66,FALSE)","v":54.848999999999997},{"$f":"VLOOKUP($A67,F1__World_Data!$A$4:$DP$191,65,FALSE)","v":54.402999999999999},{"$f":"VLOOKUP($A67,F1__World_Data!$A$4:$DP$191,64,FALSE)","v":53.945999999999998},{"$f":"VLOOKUP($A67,F1__World_Data!$A$4:$DP$191,63,FALSE)","v":53.482999999999997},{"$f":"VLOOKUP($A67,F1__World_Data!$A$4:$DP$191,62,FALSE)","v":53.018999999999998}]
["Guinea",{"$f":"VLOOKUP($A68,F1__World_Data!$A$4:$DP$191,60,FALSE)","v":12414.291999999999},{"$f":"VLOOKUP($A68,F1__World_Data!$A$4:$DP$191,59,FALSE)","v":12067.516},{"$f":"VLOOKUP($A68,F1__World_Data!$A$4:$DP$191,58,FALSE)","v":11738.433999999999},{"$f":"VLOOKUP($A68,F1__World_Data!$A$4:$DP$191,57,FALSE)","v":11432.096},{"$f":"VLOOKUP($A68,F1__World_Data!$A$4:$DP$191,56,FALSE)","v":11150.97},{"$f":"VLOOKUP($A68,F1__World_Data!$A$4:$DP$191,55,FALSE)","v":10892.821},{"$f":"VLOOKUP($A68,F1__World_Data!$A$4:$DP$191,54,FALSE)","v":10652.031999999999},{"$f":"VLOOKUP($A68,F1__World_Data!$A$4:$DP$191,53,FALSE)","v":10420.459000000001},{"$f":"VLOOKUP($A68,F1__World_Data!$A$4:$DP$191,52,FALSE)","v":10192.168},{"$f":"VLOOKUP($A68,F1__World_Data!$A$4:$DP$191,51,FALSE)","v":9964.4699999999993},{"$f":"VLOOKUP($A68,F1__World_Data!$A$4:$DP$191,50,FALSE)","v":9738.7960000000003},{"$f":"VLOOKUP($A68,F1__World_Data!$A$4:$DP$191,49,FALSE)","v":9518.1589999999997},{"$f":"VLOOKUP($A68,F1__World_Data!$A$4:$DP$191,48,FALSE)","v":9307.4210000000003},{"$f":"VLOOKUP($A68,F1__World_Data!$A$4:$DP$191,47,FALSE)","v":9109.5849999999991},{"$f":"VLOOKUP($A68,F1__World_Data!$A$4:$DP$191,46,FALSE)","v":8925.7289999999994},{"$f":"VLOOKUP($A68,F1__World_Data!$A$4:$DP$191,45,FALSE)","v":8753.0969999999998},{"$f":"VLOOKUP($A68,F1__World_Data!$A$4:$DP$191,44,FALSE)","v":8586.0769999999993},{"$f":"VLOOKUP($A68,F1__World_Data!$A$4:$DP$191,43,FALSE)","v":8417.0820000000003},{"$f":"VLOOKUP($A68,F1__World_Data!$A$4:$DP$191,42,FALSE)","v":8240.7350000000006},{"$f":"VLOOKUP($A68,F1__World_Data!$A$4:$DP$191,41,FALSE)","v":8054.7449999999999},{"$f":"VLOOKUP($A68,F1__World_Data!$A$4:$DP$191,40,FALSE)","v":7860.7719999999999},{"$f":"VLOOKUP($A68,F1__World_Data!$A$4:$DP$191,39,FALSE)","v":7662.0709999999999},{"$f":"VLOOKUP($A68,F1__World_Data!$A$4:$DP$191,38,FALSE)","v":7463.7820000000002},{"$f":"VLOOKUP($A68,F1__World_Data!$A$4:$DP$191,37,FALSE)","v":7269.6310000000003},{"$f":"VLOOKUP($A68,F1__World_Data!$A$4:$DP$191,36,FALSE)","v":7081.1189999999997},{"$f":"VLOOKUP($A68,F1__World_Data!$A$4:$DP$191,35,FALSE)","v":6897.1710000000003},{"$f":"VLOOKUP($A68,F1__World_Data!$A$4:$DP$191,34,FALSE)","v":6716.0320000000002},{"$f":"VLOOKUP($A68,F1__World_Data!$A$4:$DP$191,33,FALSE)","v":6534.9359999999997},{"$f":"VLOOKUP($A68,F1__World_Data!$A$4:$DP$191,32,FALSE)","v":6352.2820000000002},{"$f":"VLOOKUP($A68,F1__World_Data!$A$4:$DP$191,31,FALSE)","v":6167.48},{"$f":"VLOOKUP($A68,F1__World_Data!$A$4:$DP$191,30,FALSE)","v":5982.4840000000004},{"$f":"VLOOKUP($A68,F1__World_Data!$A$4:$DP$191,29,FALSE)","v":5801.3230000000003},{"$f":"VLOOKUP($A68,F1__World_Data!$A$4:$DP$191,28,FALSE)","v":5629.42},{"$f":"VLOOKUP($A68,F1__World_Data!$A$4:$DP$191,27,FALSE)","v":5470.7160000000003},{"$f":"VLOOKUP($A68,F1__World_Data!$A$4:$DP$191,26,FALSE)","v":5326.3689999999997},{"$f":"VLOOKUP($A68,F1__World_Data!$A$4:$DP$191,25,FALSE)","v":5195.4430000000002},{"$f":"VLOOKUP($A68,F1__World_Data!$A$4:$DP$191,24,FALSE)","v":5077.0730000000003},{"$f":"VLOOKUP($A68,F1__World_Data!$A$4:$DP$191,23,FALSE)","v":4969.5950000000003},{"$f":"VLOOKUP($A68,F1__World_Data!$A$4:$DP$191,22,FALSE)","v":4871.4459999999999},{"$f":"VLOOKUP($A68,F1__World_Data!$A$4:$DP$191,21,FALSE)","v":4782.491},{"$f":"VLOOKUP($A68,F1__World_Data!$A$4:$DP$191,20,FALSE)","v":4702.3710000000001},{"$f":"VLOOKUP($A68,F1__World_Data!$A$4:$DP$191,19,FALSE)","v":4628.8810000000003},{"$f":"VLOOKUP($A68,F1__World_Data!$A$4:$DP$191,18,FALSE)","v":4559.2389999999996},{"$f":"VLOOKUP($A68,F1__World_Data!$A$4:$DP$191,17,FALSE)","v":4491.2479999999996},{"$f":"VLOOKUP($A68,F1__World_Data!$A$4:$DP$191,16,FALSE)","v":4424.03},{"$f":"VLOOKUP($A68,F1__World_Data!$A$4:$DP$191,15,FALSE)","v":4357.357},{"$f":"VLOOKUP($A68,F1__World_Data!$A$4:$DP$191,14,FALSE)","v":4290.5439999999999},{"$f":"VLOOKUP($A68,F1__World_Data!$A$4:$DP$191,13,FALSE)","v":4223.0559999999996},{"$f":"VLOOKUP($A68,F1__World_Data!$A$4:$DP$191,12,FALSE)","v":4154.6059999999998},{"$f":"VLOOKUP($A68,F1__World_Data!$A$4:$DP$191,11,FALSE)","v":4084.6010000000001},{"$f":"VLOOKUP($A68,F1__World_Data!$A$4:$DP$191,10,FALSE)","v":4013.05},{"$f":"VLOOKUP($A68,F1__World_Data!$A$4:$DP$191,9,FALSE)","v":3941.0459999999998},{"$f":"VLOOKUP($A68,F1__World_Data!$A$4:$DP$191,8,FALSE)","v":3870.2040000000002},{"$f":"VLOOKUP($A68,F1__World_Data!$A$4:$DP$191,7,FALSE)","v":3801.7109999999998},{"$f":"VLOOKUP($A68,F1__World_Data!$A$4:$DP$191,6,FALSE)","v":3735.9119999999998},{"$f":"VLOOKUP($A68,F1__World_Data!$A$4:$DP$191,5,FALSE)","v":3672.56},{"$f":"VLOOKUP($A68,F1__World_Data!$A$4:$DP$191,4,FALSE)","v":3611.4279999999999},{"$f":"VLOOKUP($A68,F1__World_Data!$A$4:$DP$191,3,FALSE)","v":3552.0680000000002},{"$f":"VLOOKUP($A68,F1__World_Data!$A$4:$DP$191,2,FALSE)","v":3494.1640000000002},null,{"$f":"VLOOKUP($A68,F1__World_Data!$A$4:$DP$191,120,FALSE)","v":79.858999999999995},{"$f":"VLOOKUP($A68,F1__World_Data!$A$4:$DP$191,119,FALSE)","v":79.631},{"$f":"VLOOKUP($A68,F1__World_Data!$A$4:$DP$191,118,FALSE)","v":79.391000000000005},{"$f":"VLOOKUP($A68,F1__World_Data!$A$4:$DP$191,117,FALSE)","v":79.144000000000005},{"$f":"VLOOKUP($A68,F1__World_Data!$A$4:$DP$191,116,FALSE)","v":78.894999999999996},{"$f":"VLOOKUP($A68,F1__World_Data!$A$4:$DP$191,115,FALSE)","v":78.649000000000001},{"$f":"VLOOKUP($A68,F1__World_Data!$A$4:$DP$191,114,FALSE)","v":78.408000000000001},{"$f":"VLOOKUP($A68,F1__World_Data!$A$4:$DP$191,113,FALSE)","v":78.173000000000002},{"$f":"VLOOKUP($A68,F1__World_Data!$A$4:$DP$191,112,FALSE)","v":77.941000000000003},{"$f":"VLOOKUP($A68,F1__World_Data!$A$4:$DP$191,111,FALSE)","v":77.709999999999994},{"$f":"VLOOKUP($A68,F1__World_Data!$A$4:$DP$191,110,FALSE)","v":77.474000000000004},{"$f":"VLOOKUP($A68,F1__World_Data!$A$4:$DP$191,109,FALSE)","v":77.227000000000004},{"$f":"VLOOKUP($A68,F1__World_Data!$A$4:$DP$191,108,FALSE)","v":76.965999999999994},{"$f":"VLOOKUP($A68,F1__World_Data!$A$4:$DP$191,107,FALSE)","v":76.686999999999998},{"$f":"VLOOKUP($A68,F1__World_Data!$A$4:$DP$191,106,FALSE)","v":76.387},{"$f":"VLOOKUP($A68,F1__World_Data!$A$4:$DP$191,105,FALSE)","v":76.064999999999998},{"$f":"VLOOKUP($A68,F1__World_Data!$A$4:$DP$191,104,FALSE)","v":75.725999999999999},{"$f":"VLOOKUP($A68,F1__World_Data!$A$4:$DP$191,103,FALSE)","v":75.373000000000005},{"$f":"VLOOKUP($A68,F1__World_Data!$A$4:$DP$191,102,FALSE)","v":75.010999999999996},{"$f":"VLOOKUP($A68,F1__World_Data!$A$4:$DP$191,101,FALSE)","v":74.646000000000001},{"$f":"VLOOKUP($A68,F1__World_Data!$A$4:$DP$191,100,FALSE)","v":74.283000000000001},{"$f":"VLOOKUP($A68,F1__World_Data!$A$4:$DP$191,99,FALSE)","v":73.930000000000007},{"$f":"VLOOKUP($A68,F1__World_Data!$A$4:$DP$191,98,FALSE)","v":73.588999999999999},{"$f":"VLOOKUP($A68,F1__World_Data!$A$4:$DP$191,97,FALSE)","v":73.266999999999996},{"$f":"VLOOKUP($A68,F1__World_Data!$A$4:$DP$191,96,FALSE)","v":72.966999999999999},{"$f":"VLOOKUP($A68,F1__World_Data!$A$4:$DP$191,95,FALSE)","v":72.685000000000002},{"$f":"VLOOKUP($A68,F1__World_Data!$A$4:$DP$191,94,FALSE)","v":72.42},{"$f":"VLOOKUP($A68,F1__World_Data!$A$4:$DP$191,93,FALSE)","v":72.167000000000002},{"$f":"VLOOKUP($A68,F1__World_Data!$A$4:$DP$191,92,FALSE)","v":71.924999999999997},{"$f":"VLOOKUP($A68,F1__World_Data!$A$4:$DP$191,91,FALSE)","v":71.686999999999998},{"$f":"VLOOKUP($A68,F1__World_Data!$A$4:$DP$191,90,FALSE)","v":71.45},{"$f":"VLOOKUP($A68,F1__World_Data!$A$4:$DP$191,89,FALSE)","v":71.209000000000003},{"$f":"VLOOKUP($A68,F1__World_Data!$A$4:$DP$191,88,FALSE)","v":70.959999999999994},{"$f":"VLOOKUP($A68,F1__World_Data!$A$4:$DP$191,87,FALSE)","v":70.700999999999993},{"$f":"VLOOKUP($A68,F1__World_Data!$A$4:$DP$191,86,FALSE)","v":70.430999999999997},{"$f":"VLOOKUP($A68,F1__World_Data!$A$4:$DP$191,85,FALSE)","v":70.150999999999996},{"$f":"VLOOKUP($A68,F1__World_Data!$A$4:$DP$191,84,FALSE)","v":69.864000000000004},{"$f":"VLOOKUP($A68,F1__World_Data!$A$4:$DP$191,83,FALSE)","v":69.566999999999993},{"$f":"VLOOKUP($A68,F1__World_Data!$A$4:$DP$191,82,FALSE)","v":69.262},{"$f":"VLOOKUP($A68,F1__World_Data!$A$4:$DP$191,81,FALSE)","v":68.947000000000003},{"$f":"VLOOKUP($A68,F1__World_Data!$A$4:$DP$191,80,FALSE)","v":68.623999999999995},{"$f":"VLOOKUP($A68,F1__World_Data!$A$4:$DP$191,79,FALSE)","v":68.292000000000002},{"$f":"VLOOKUP($A68,F1__World_Data!$A$4:$DP$191,78,FALSE)","v":67.950999999999993},{"$f":"VLOOKUP($A68,F1__World_Data!$A$4:$DP$191,77,FALSE)","v":67.599000000000004},{"$f":"VLOOKUP($A68,F1__World_Data!$A$4:$DP$191,76,FALSE)","v":67.234999999999999},{"$f":"VLOOKUP($A68,F1__World_Data!$A$4:$DP$191,75,FALSE)","v":66.86},{"$f":"VLOOKUP($A68,F1__World_Data!$A$4:$DP$191,74,FALSE)","v":66.472999999999999},{"$f":"VLOOKUP($A68,F1__World_Data!$A$4:$DP$191,73,FALSE)","v":66.073999999999998},{"$f":"VLOOKUP($A68,F1__World_Data!$A$4:$DP$191,72,FALSE)","v":65.662000000000006},{"$f":"VLOOKUP($A68,F1__World_Data!$A$4:$DP$191,71,FALSE)","v":65.239000000000004},{"$f":"VLOOKUP($A68,F1__World_Data!$A$4:$DP$191,70,FALSE)","v":64.805000000000007},{"$f":"VLOOKUP($A68,F1__World_Data!$A$4:$DP$191,69,FALSE)","v":64.361000000000004},{"$f":"VLOOKUP($A68,F1__World_Data!$A$4:$DP$191,68,FALSE)","v":63.906999999999996},{"$f":"VLOOKUP($A68,F1__World_Data!$A$4:$DP$191,67,FALSE)","v":63.442999999999998},{"$f":"VLOOKUP($A68,F1__World_Data!$A$4:$DP$191,66,FALSE)","v":62.968000000000004},{"$f":"VLOOKUP($A68,F1__World_Data!$A$4:$DP$191,65,FALSE)","v":62.481999999999999},{"$f":"VLOOKUP($A68,F1__World_Data!$A$4:$DP$191,64,FALSE)","v":61.985999999999997},{"$f":"VLOOKUP($A68,F1__World_Data!$A$4:$DP$191,63,FALSE)","v":61.481000000000002},{"$f":"VLOOKUP($A68,F1__World_Data!$A$4:$DP$191,62,FALSE)","v":60.97}]
["Rwanda",{"$f":"VLOOKUP($A69,F1__World_Data!$A$4:$DP$191,60,FALSE)","v":12301.968999999999},{"$f":"VLOOKUP($A69,F1__World_Data!$A$4:$DP$191,59,FALSE)","v":11980.96},{"$f":"VLOOKUP($A69,F1__World_Data!$A$4:$DP$191,58,FALSE)","v":11668.829},{"$f":"VLOOKUP($A69,F1__World_Data!$A$4:$DP$191,57,FALSE)","v":11369.066000000001},{"$f":"VLOOKUP($A69,F1__World_Data!$A$4:$DP$191,56,FALSE)","v":11083.629000000001},{"$f":"VLOOKUP($A69,F1__World_Data!$A$4:$DP$191,55,FALSE)","v":10811.538},{"$f":"VLOOKUP($A69,F1__World_Data!$A$4:$DP$191,54,FALSE)","v":10549.668},{"$f":"VLOOKUP($A69,F1__World_Data!$A$4:$DP$191,53,FALSE)","v":10293.333000000001},{"$f":"VLOOKUP($A69,F1__World_Data!$A$4:$DP$191,52,FALSE)","v":10039.338},{"$f":"VLOOKUP($A69,F1__World_Data!$A$4:$DP$191,51,FALSE)","v":9782.77},{"$f":"VLOOKUP($A69,F1__World_Data!$A$4:$DP$191,50,FALSE)","v":9524.5319999999992},{"$f":"VLOOKUP($A69,F1__World_Data!$A$4:$DP$191,49,FALSE)","v":9273.759},{"$f":"VLOOKUP($A69,F1__World_Data!$A$4:$DP$191,48,FALSE)","v":9043.3420000000006},{"$f":"VLOOKUP($A69,F1__World_Data!$A$4:$DP$191,47,FALSE)","v":8840.2199999999993},{"$f":"VLOOKUP($A69,F1__World_Data!$A$4:$DP$191,46,FALSE)","v":8680.5159999999996},{"$f":"VLOOKUP($A69,F1__World_Data!$A$4:$DP$191,45,FALSE)","v":8557.16},{"$f":"VLOOKUP($A69,F1__World_Data!$A$4:$DP$191,44,FALSE)","v":8427.0609999999997},{"$f":"VLOOKUP($A69,F1__World_Data!$A$4:$DP$191,43,FALSE)","v":8231.15},{"$f":"VLOOKUP($A69,F1__World_Data!$A$4:$DP$191,42,FALSE)","v":7933.6880000000001},{"$f":"VLOOKUP($A69,F1__World_Data!$A$4:$DP$191,41,FALSE)","v":7501.2380000000003},{"$f":"VLOOKUP($A69,F1__World_Data!$A$4:$DP$191,40,FALSE)","v":6962.8},{"$f":"VLOOKUP($A69,F1__World_Data!$A$4:$DP$191,39,FALSE)","v":6419.8980000000001},{"$f":"VLOOKUP($A69,F1__World_Data!$A$4:$DP$191,38,FALSE)","v":6013.1120000000001},{"$f":"VLOOKUP($A69,F1__World_Data!$A$4:$DP$191,37,FALSE)","v":5836.49},{"$f":"VLOOKUP($A69,F1__World_Data!$A$4:$DP$191,36,FALSE)","v":5936.2529999999997},{"$f":"VLOOKUP($A69,F1__World_Data!$A$4:$DP$191,35,FALSE)","v":6263.7579999999998},{"$f":"VLOOKUP($A69,F1__World_Data!$A$4:$DP$191,34,FALSE)","v":6702.2389999999996},{"$f":"VLOOKUP($A69,F1__World_Data!$A$4:$DP$191,33,FALSE)","v":7083.9279999999999},{"$f":"VLOOKUP($A69,F1__World_Data!$A$4:$DP$191,32,FALSE)","v":7288.8829999999998},{"$f":"VLOOKUP($A69,F1__World_Data!$A$4:$DP$191,31,FALSE)","v":7276.9830000000002},{"$f":"VLOOKUP($A69,F1__World_Data!$A$4:$DP$191,30,FALSE)","v":7088.1940000000004},{"$f":"VLOOKUP($A69,F1__World_Data!$A$4:$DP$191,29,FALSE)","v":6779.9809999999998},{"$f":"VLOOKUP($A69,F1__World_Data!$A$4:$DP$191,28,FALSE)","v":6443.7479999999996},{"$f":"VLOOKUP($A69,F1__World_Data!$A$4:$DP$191,27,FALSE)","v":6146.884},{"$f":"VLOOKUP($A69,F1__World_Data!$A$4:$DP$191,26,FALSE)","v":5902.8469999999998},{"$f":"VLOOKUP($A69,F1__World_Data!$A$4:$DP$191,25,FALSE)","v":5690.9889999999996},{"$f":"VLOOKUP($A69,F1__World_Data!$A$4:$DP$191,24,FALSE)","v":5504.8469999999998},{"$f":"VLOOKUP($A69,F1__World_Data!$A$4:$DP$191,23,FALSE)","v":5329.25},{"$f":"VLOOKUP($A69,F1__World_Data!$A$4:$DP$191,22,FALSE)","v":5153.3140000000003},{"$f":"VLOOKUP($A69,F1__World_Data!$A$4:$DP$191,21,FALSE)","v":4978.8119999999999},{"$f":"VLOOKUP($A69,F1__World_Data!$A$4:$DP$191,20,FALSE)","v":4812.8720000000003},{"$f":"VLOOKUP($A69,F1__World_Data!$A$4:$DP$191,19,FALSE)","v":4655.3860000000004},{"$f":"VLOOKUP($A69,F1__World_Data!$A$4:$DP$191,18,FALSE)","v":4506.1090000000004},{"$f":"VLOOKUP($A69,F1__World_Data!$A$4:$DP$191,17,FALSE)","v":4364.7089999999998},{"$f":"VLOOKUP($A69,F1__World_Data!$A$4:$DP$191,16,FALSE)","v":4231.5789999999997},{"$f":"VLOOKUP($A69,F1__World_Data!$A$4:$DP$191,15,FALSE)","v":4106.4110000000001},{"$f":"VLOOKUP($A69,F1__World_Data!$A$4:$DP$191,14,FALSE)","v":3987.223},{"$f":"VLOOKUP($A69,F1__World_Data!$A$4:$DP$191,13,FALSE)","v":3871.4279999999999},{"$f":"VLOOKUP($A69,F1__World_Data!$A$4:$DP$191,12,FALSE)","v":3757.3510000000001},{"$f":"VLOOKUP($A69,F1__World_Data!$A$4:$DP$191,11,FALSE)","v":3643.2370000000001},{"$f":"VLOOKUP($A69,F1__World_Data!$A$4:$DP$191,10,FALSE)","v":3529.8389999999999},{"$f":"VLOOKUP($A69,F1__World_Data!$A$4:$DP$191,9,FALSE)","v":3420.8969999999999},{"$f":"VLOOKUP($A69,F1__World_Data!$A$4:$DP$191,8,FALSE)","v":3321.674},{"$f":"VLOOKUP($A69,F1__World_Data!$A$4:$DP$191,7,FALSE)","v":3235.5360000000001},{"$f":"VLOOKUP($A69,F1__World_Data!$A$4:$DP$191,6,FALSE)","v":3164.2579999999998},{"$f":"VLOOKUP($A69,F1__World_Data!$A$4:$DP$191,5,FALSE)","v":3105.4169999999999},{"$f":"VLOOKUP($A69,F1__World_Data!$A$4:$DP$191,4,FALSE)","v":3052.9369999999999},{"$f":"VLOOKUP($A69,F1__World_Data!$A$4:$DP$191,3,FALSE)","v":2998.3339999999998},{"$f":"VLOOKUP($A69,F1__World_Data!$A$4:$DP$191,2,FALSE)","v":2935.5749999999998},null,{"$f":"VLOOKUP($A69,F1__World_Data!$A$4:$DP$191,120,FALSE)","v":68.116},{"$f":"VLOOKUP($A69,F1__World_Data!$A$4:$DP$191,119,FALSE)","v":67.850999999999999},{"$f":"VLOOKUP($A69,F1__World_Data!$A$4:$DP$191,118,FALSE)","v":67.576999999999998},{"$f":"VLOOKUP($A69,F1__World_Data!$A$4:$DP$191,117,FALSE)","v":67.290999999999997},{"$f":"VLOOKUP($A69,F1__World_Data!$A$4:$DP$191,116,FALSE)","v":66.995000000000005},{"$f":"VLOOKUP($A69,F1__World_Data!$A$4:$DP$191,115,FALSE)","v":66.69},{"$f":"VLOOKUP($A69,F1__World_Data!$A$4:$DP$191,114,FALSE)","v":66.381},{"$f":"VLOOKUP($A69,F1__World_Data!$A$4:$DP$191,113,FALSE)","v":66.072000000000003},{"$f":"VLOOKUP($A69,F1__World_Data!$A$4:$DP$191,112,FALSE)","v":65.769000000000005},{"$f":"VLOOKUP($A69,F1__World_Data!$A$4:$DP$191,111,FALSE)","v":65.48},{"$f":"VLOOKUP($A69,F1__World_Data!$A$4:$DP$191,110,FALSE)","v":65.207999999999998},{"$f":"VLOOKUP($A69,F1__World_Data!$A$4:$DP$191,109,FALSE)","v":64.953000000000003},{"$f":"VLOOKUP($A69,F1__World_Data!$A$4:$DP$191,108,FALSE)","v":64.712000000000003},{"$f":"VLOOKUP($A69,F1__World_Data!$A$4:$DP$191,107,FALSE)","v":64.477999999999994},{"$f":"VLOOKUP($A69,F1__World_Data!$A$4:$DP$191,106,FALSE)","v":64.242000000000004},{"$f":"VLOOKUP($A69,F1__World_Data!$A$4:$DP$191,105,FALSE)","v":63.994999999999997},{"$f":"VLOOKUP($A69,F1__World_Data!$A$4:$DP$191,104,FALSE)","v":63.731000000000002},{"$f":"VLOOKUP($A69,F1__World_Data!$A$4:$DP$191,103,FALSE)","v":63.445999999999998},{"$f":"VLOOKUP($A69,F1__World_Data!$A$4:$DP$191,102,FALSE)","v":63.143999999999998},{"$f":"VLOOKUP($A69,F1__World_Data!$A$4:$DP$191,101,FALSE)","v":62.829000000000001},{"$f":"VLOOKUP($A69,F1__World_Data!$A$4:$DP$191,100,FALSE)","v":62.509},{"$f":"VLOOKUP($A69,F1__World_Data!$A$4:$DP$191,99,FALSE)","v":62.188000000000002},{"$f":"VLOOKUP($A69,F1__World_Data!$A$4:$DP$191,98,FALSE)","v":61.866},{"$f":"VLOOKUP($A69,F1__World_Data!$A$4:$DP$191,97,FALSE)","v":61.539000000000001},{"$f":"VLOOKUP($A69,F1__World_Data!$A$4:$DP$191,96,FALSE)","v":61.198},{"$f":"VLOOKUP($A69,F1__World_Data!$A$4:$DP$191,95,FALSE)","v":60.837000000000003},{"$f":"VLOOKUP($A69,F1__World_Data!$A$4:$DP$191,94,FALSE)","v":60.454999999999998},{"$f":"VLOOKUP($A69,F1__World_Data!$A$4:$DP$191,93,FALSE)","v":60.052999999999997},{"$f":"VLOOKUP($A69,F1__World_Data!$A$4:$DP$191,92,FALSE)","v":59.636000000000003},{"$f":"VLOOKUP($A69,F1__World_Data!$A$4:$DP$191,91,FALSE)","v":59.209000000000003},{"$f":"VLOOKUP($A69,F1__World_Data!$A$4:$DP$191,90,FALSE)","v":58.783000000000001},{"$f":"VLOOKUP($A69,F1__World_Data!$A$4:$DP$191,89,FALSE)","v":58.366},{"$f":"VLOOKUP($A69,F1__World_Data!$A$4:$DP$191,88,FALSE)","v":57.962000000000003},{"$f":"VLOOKUP($A69,F1__World_Data!$A$4:$DP$191,87,FALSE)","v":57.579000000000001},{"$f":"VLOOKUP($A69,F1__World_Data!$A$4:$DP$191,86,FALSE)","v":57.220999999999997},{"$f":"VLOOKUP($A69,F1__World_Data!$A$4:$DP$191,85,FALSE)","v":56.886000000000003},{"$f":"VLOOKUP($A69,F1__World_Data!$A$4:$DP$191,84,FALSE)","v":56.569000000000003},{"$f":"VLOOKUP($A69,F1__World_Data!$A$4:$DP$191,83,FALSE)","v":56.265999999999998},{"$f":"VLOOKUP($A69,F1__World_Data!$A$4:$DP$191,82,FALSE)","v":55.970999999999997},{"$f":"VLOOKUP($A69,F1__World_Data!$A$4:$DP$191,81,FALSE)","v":55.679000000000002},{"$f":"VLOOKUP($A69,F1__World_Data!$A$4:$DP$191,80,FALSE)","v":55.381999999999998},{"$f":"VLOOKUP($A69,F1__World_Data!$A$4:$DP$191,79,FALSE)","v":55.073999999999998},{"$f":"VLOOKUP($A69,F1__World_Data!$A$4:$DP$191,78,FALSE)","v":54.747999999999998},{"$f":"VLOOKUP($A69,F1__World_Data!$A$4:$DP$191,77,FALSE)","v":54.399000000000001},{"$f":"VLOOKUP($A69,F1__World_Data!$A$4:$DP$191,76,FALSE)","v":54.027000000000001},{"$f":"VLOOKUP($A69,F1__World_Data!$A$4:$DP$191,75,FALSE)","v":53.633000000000003},{"$f":"VLOOKUP($A69,F1__World_Data!$A$4:$DP$191,74,FALSE)","v":53.218000000000004},{"$f":"VLOOKUP($A69,F1__World_Data!$A$4:$DP$191,73,FALSE)","v":52.781999999999996},{"$f":"VLOOKUP($A69,F1__World_Data!$A$4:$DP$191,72,FALSE)","v":52.323},{"$f":"VLOOKUP($A69,F1__World_Data!$A$4:$DP$191,71,FALSE)","v":51.837000000000003},{"$f":"VLOOKUP($A69,F1__World_Data!$A$4:$DP$191,70,FALSE)","v":51.326999999999998},{"$f":"VLOOKUP($A69,F1__World_Data!$A$4:$DP$191,69,FALSE)","v":50.795999999999999},{"$f":"VLOOKUP($A69,F1__World_Data!$A$4:$DP$191,68,FALSE)","v":50.25},{"$f":"VLOOKUP($A69,F1__World_Data!$A$4:$DP$191,67,FALSE)","v":49.697000000000003},{"$f":"VLOOKUP($A69,F1__World_Data!$A$4:$DP$191,66,FALSE)","v":49.145000000000003},{"$f":"VLOOKUP($A69,F1__World_Data!$A$4:$DP$191,65,FALSE)","v":48.600999999999999},{"$f":"VLOOKUP($A69,F1__World_Data!$A$4:$DP$191,64,FALSE)","v":48.070999999999998},{"$f":"VLOOKUP($A69,F1__World_Data!$A$4:$DP$191,63,FALSE)","v":47.557000000000002},{"$f":"VLOOKUP($A69,F1__World_Data!$A$4:$DP$191,62,FALSE)","v":47.061}]
["Tunisia",{"$f":"VLOOKUP($A70,F1__World_Data!$A$4:$DP$191,60,FALSE)","v":11565.203},{"$f":"VLOOKUP($A70,F1__World_Data!$A$4:$DP$191,59,FALSE)","v":11433.438},{"$f":"VLOOKUP($A70,F1__World_Data!$A$4:$DP$191,58,FALSE)","v":11303.941999999999},{"$f":"VLOOKUP($A70,F1__World_Data!$A$4:$DP$191,57,FALSE)","v":11179.950999999999},{"$f":"VLOOKUP($A70,F1__World_Data!$A$4:$DP$191,56,FALSE)","v":11063.195},{"$f":"VLOOKUP($A70,F1__World_Data!$A$4:$DP$191,55,FALSE)","v":10952.949000000001},{"$f":"VLOOKUP($A70,F1__World_Data!$A$4:$DP$191,54,FALSE)","v":10846.993},{"$f":"VLOOKUP($A70,F1__World_Data!$A$4:$DP$191,53,FALSE)","v":10741.871999999999},{"$f":"VLOOKUP($A70,F1__World_Data!$A$4:$DP$191,52,FALSE)","v":10635.245000000001},{"$f":"VLOOKUP($A70,F1__World_Data!$A$4:$DP$191,51,FALSE)","v":10525.691000000001},{"$f":"VLOOKUP($A70,F1__World_Data!$A$4:$DP$191,50,FALSE)","v":10414.424999999999},{"$f":"VLOOKUP($A70,F1__World_Data!$A$4:$DP$191,49,FALSE)","v":10304.728999999999},{"$f":"VLOOKUP($A70,F1__World_Data!$A$4:$DP$191,48,FALSE)","v":10201.210999999999},{"$f":"VLOOKUP($A70,F1__World_Data!$A$4:$DP$191,47,FALSE)","v":10106.778},{"$f":"VLOOKUP($A70,F1__World_Data!$A$4:$DP$191,46,FALSE)","v":10022.278},{"$f":"VLOOKUP($A70,F1__World_Data!$A$4:$DP$191,45,FALSE)","v":9945.2819999999992},{"$f":"VLOOKUP($A70,F1__World_Data!$A$4:$DP$191,44,FALSE)","v":9871.2610000000004},{"$f":"VLOOKUP($A70,F1__World_Data!$A$4:$DP$191,43,FALSE)","v":9793.9150000000009},{"$f":"VLOOKUP($A70,F1__World_Data!$A$4:$DP$191,42,FALSE)","v":9708.3469999999998},{"$f":"VLOOKUP($A70,F1__World_Data!$A$4:$DP$191,41,FALSE)","v":9613.5869999999995},{"$f":"VLOOKUP($A70,F1__World_Data!$A$4:$DP$191,40,FALSE)","v":9509.8619999999992},{"$f":"VLOOKUP($A70,F1__World_Data!$A$4:$DP$191,39,FALSE)","v":9395.1190000000006},{"$f":"VLOOKUP($A70,F1__World_Data!$A$4:$DP$191,38,FALSE)","v":9267.3349999999991},{"$f":"VLOOKUP($A70,F1__World_Data!$A$4:$DP$191,37,FALSE)","v":9125.4},{"$f":"VLOOKUP($A70,F1__World_Data!$A$4:$DP$191,36,FALSE)","v":8967.9159999999993},{"$f":"VLOOKUP($A70,F1__World_Data!$A$4:$DP$191,35,FALSE)","v":8795.9339999999993},{"$f":"VLOOKUP($A70,F1__World_Data!$A$4:$DP$191,34,FALSE)","v":8613.8549999999996},{"$f":"VLOOKUP($A70,F1__World_Data!$A$4:$DP$191,33,FALSE)","v":8427.8510000000006},{"$f":"VLOOKUP($A70,F1__World_Data!$A$4:$DP$191,32,FALSE)","v":8242.509},{"$f":"VLOOKUP($A70,F1__World_Data!$A$4:$DP$191,31,FALSE)","v":8060.2110000000002},{"$f":"VLOOKUP($A70,F1__World_Data!$A$4:$DP$191,30,FALSE)","v":7880.3329999999996},{"$f":"VLOOKUP($A70,F1__World_Data!$A$4:$DP$191,29,FALSE)","v":7700.7330000000002},{"$f":"VLOOKUP($A70,F1__World_Data!$A$4:$DP$191,28,FALSE)","v":7517.8540000000003},{"$f":"VLOOKUP($A70,F1__World_Data!$A$4:$DP$191,27,FALSE)","v":7329.59},{"$f":"VLOOKUP($A70,F1__World_Data!$A$4:$DP$191,26,FALSE)","v":7135.2650000000003},{"$f":"VLOOKUP($A70,F1__World_Data!$A$4:$DP$191,25,FALSE)","v":6937.3320000000003},{"$f":"VLOOKUP($A70,F1__World_Data!$A$4:$DP$191,24,FALSE)","v":6740.52},{"$f":"VLOOKUP($A70,F1__World_Data!$A$4:$DP$191,23,FALSE)","v":6551.232},{"$f":"VLOOKUP($A70,F1__World_Data!$A$4:$DP$191,22,FALSE)","v":6374.04},{"$f":"VLOOKUP($A70,F1__World_Data!$A$4:$DP$191,21,FALSE)","v":6210.7560000000003},{"$f":"VLOOKUP($A70,F1__World_Data!$A$4:$DP$191,20,FALSE)","v":6060.1580000000004},{"$f":"VLOOKUP($A70,F1__World_Data!$A$4:$DP$191,19,FALSE)","v":5919.9579999999996},{"$f":"VLOOKUP($A70,F1__World_Data!$A$4:$DP$191,18,FALSE)","v":5786.482},{"$f":"VLOOKUP($A70,F1__World_Data!$A$4:$DP$191,17,FALSE)","v":5656.9120000000003},{"$f":"VLOOKUP($A70,F1__World_Data!$A$4:$DP$191,16,FALSE)","v":5530.9780000000001},{"$f":"VLOOKUP($A70,F1__World_Data!$A$4:$DP$191,15,FALSE)","v":5409.3379999999997},{"$f":"VLOOKUP($A70,F1__World_Data!$A$4:$DP$191,14,FALSE)","v":5291.335},{"$f":"VLOOKUP($A70,F1__World_Data!$A$4:$DP$191,13,FALSE)","v":5176.29},{"$f":"VLOOKUP($A70,F1__World_Data!$A$4:$DP$191,12,FALSE)","v":5063.8050000000003},{"$f":"VLOOKUP($A70,F1__World_Data!$A$4:$DP$191,11,FALSE)","v":4953.3789999999999},{"$f":"VLOOKUP($A70,F1__World_Data!$A$4:$DP$191,10,FALSE)","v":4845.22},{"$f":"VLOOKUP($A70,F1__World_Data!$A$4:$DP$191,9,FALSE)","v":4740.5259999999998},{"$f":"VLOOKUP($A70,F1__World_Data!$A$4:$DP$191,8,FALSE)","v":4640.9949999999999},{"$f":"VLOOKUP($A70,F1__World_Data!$A$4:$DP$191,7,FALSE)","v":4547.9409999999998},{"$f":"VLOOKUP($A70,F1__World_Data!$A$4:$DP$191,6,FALSE)","v":4461.1109999999999},{"$f":"VLOOKUP($A70,F1__World_Data!$A$4:$DP$191,5,FALSE)","v":4380.0739999999996},{"$f":"VLOOKUP($A70,F1__World_Data!$A$4:$DP$191,4,FALSE)","v":4305.4769999999999},{"$f":"VLOOKUP($A70,F1__World_Data!$A$4:$DP$191,3,FALSE)","v":4238.1409999999996},{"$f":"VLOOKUP($A70,F1__World_Data!$A$4:$DP$191,2,FALSE)","v":4178.2349999999997},null,{"$f":"VLOOKUP($A70,F1__World_Data!$A$4:$DP$191,120,FALSE)","v":63.856999999999999},{"$f":"VLOOKUP($A70,F1__World_Data!$A$4:$DP$191,119,FALSE)","v":63.537999999999997},{"$f":"VLOOKUP($A70,F1__World_Data!$A$4:$DP$191,118,FALSE)","v":63.152999999999999},{"$f":"VLOOKUP($A70,F1__World_Data!$A$4:$DP$191,117,FALSE)","v":62.649000000000001},{"$f":"VLOOKUP($A70,F1__World_Data!$A$4:$DP$191,116,FALSE)","v":61.968000000000004},{"$f":"VLOOKUP($A70,F1__World_Data!$A$4:$DP$191,115,FALSE)","v":61.098999999999997},{"$f":"VLOOKUP($A70,F1__World_Data!$A$4:$DP$191,114,FALSE)","v":60.06},{"$f":"VLOOKUP($A70,F1__World_Data!$A$4:$DP$191,113,FALSE)","v":58.895000000000003},{"$f":"VLOOKUP($A70,F1__World_Data!$A$4:$DP$191,112,FALSE)","v":57.668999999999997},{"$f":"VLOOKUP($A70,F1__World_Data!$A$4:$DP$191,111,FALSE)","v":56.46},{"$f":"VLOOKUP($A70,F1__World_Data!$A$4:$DP$191,110,FALSE)","v":55.36},{"$f":"VLOOKUP($A70,F1__World_Data!$A$4:$DP$191,109,FALSE)","v":54.451999999999998},{"$f":"VLOOKUP($A70,F1__World_Data!$A$4:$DP$191,108,FALSE)","v":53.795000000000002},{"$f":"VLOOKUP($A70,F1__World_Data!$A$4:$DP$191,107,FALSE)","v":53.447000000000003},{"$f":"VLOOKUP($A70,F1__World_Data!$A$4:$DP$191,106,FALSE)","v":53.444000000000003},{"$f":"VLOOKUP($A70,F1__World_Data!$A$4:$DP$191,105,FALSE)","v":53.749000000000002},{"$f":"VLOOKUP($A70,F1__World_Data!$A$4:$DP$191,104,FALSE)","v":54.31},{"$f":"VLOOKUP($A70,F1__World_Data!$A$4:$DP$191,103,FALSE)","v":55.088999999999999},{"$f":"VLOOKUP($A70,F1__World_Data!$A$4:$DP$191,102,FALSE)","v":56.048000000000002},{"$f":"VLOOKUP($A70,F1__World_Data!$A$4:$DP$191,101,FALSE)","v":57.143999999999998},{"$f":"VLOOKUP($A70,F1__World_Data!$A$4:$DP$191,100,FALSE)","v":58.314999999999998},{"$f":"VLOOKUP($A70,F1__World_Data!$A$4:$DP$191,99,FALSE)","v":59.488999999999997},{"$f":"VLOOKUP($A70,F1__World_Data!$A$4:$DP$191,98,FALSE)","v":60.594999999999999},{"$f":"VLOOKUP($A70,F1__World_Data!$A$4:$DP$191,97,FALSE)","v":61.561},{"$f":"VLOOKUP($A70,F1__World_Data!$A$4:$DP$191,96,FALSE)","v":62.331000000000003},{"$f":"VLOOKUP($A70,F1__World_Data!$A$4:$DP$191,95,FALSE)","v":62.893999999999998},{"$f":"VLOOKUP($A70,F1__World_Data!$A$4:$DP$191,94,FALSE)","v":63.247},{"$f":"VLOOKUP($A70,F1__World_Data!$A$4:$DP$191,93,FALSE)","v":63.384},{"$f":"VLOOKUP($A70,F1__World_Data!$A$4:$DP$191,92,FALSE)","v":63.307000000000002},{"$f":"VLOOKUP($A70,F1__World_Data!$A$4:$DP$191,91,FALSE)","v":63.034999999999997},{"$f":"VLOOKUP($A70,F1__World_Data!$A$4:$DP$191,90,FALSE)","v":62.619},{"$f":"VLOOKUP($A70,F1__World_Data!$A$4:$DP$191,89,FALSE)","v":62.109000000000002},{"$f":"VLOOKUP($A70,F1__World_Data!$A$4:$DP$191,88,FALSE)","v":61.54},{"$f":"VLOOKUP($A70,F1__World_Data!$A$4:$DP$191,87,FALSE)","v":60.945999999999998},{"$f":"VLOOKUP($A70,F1__World_Data!$A$4:$DP$191,86,FALSE)","v":60.353000000000002},{"$f":"VLOOKUP($A70,F1__World_Data!$A$4:$DP$191,85,FALSE)","v":59.765999999999998},{"$f":"VLOOKUP($A70,F1__World_Data!$A$4:$DP$191,84,FALSE)","v":59.191000000000003},{"$f":"VLOOKUP($A70,F1__World_Data!$A$4:$DP$191,83,FALSE)","v":58.637},{"$f":"VLOOKUP($A70,F1__World_Data!$A$4:$DP$191,82,FALSE)","v":58.106999999999999},{"$f":"VLOOKUP($A70,F1__World_Data!$A$4:$DP$191,81,FALSE)","v":57.59},{"$f":"VLOOKUP($A70,F1__World_Data!$A$4:$DP$191,80,FALSE)","v":57.070999999999998},{"$f":"VLOOKUP($A70,F1__World_Data!$A$4:$DP$191,79,FALSE)","v":56.537999999999997},{"$f":"VLOOKUP($A70,F1__World_Data!$A$4:$DP$191,78,FALSE)","v":55.99},{"$f":"VLOOKUP($A70,F1__World_Data!$A$4:$DP$191,77,FALSE)","v":55.427999999999997},{"$f":"VLOOKUP($A70,F1__World_Data!$A$4:$DP$191,76,FALSE)","v":54.856000000000002},{"$f":"VLOOKUP($A70,F1__World_Data!$A$4:$DP$191,75,FALSE)","v":54.280999999999999},{"$f":"VLOOKUP($A70,F1__World_Data!$A$4:$DP$191,74,FALSE)","v":53.713000000000001},{"$f":"VLOOKUP($A70,F1__World_Data!$A$4:$DP$191,73,FALSE)","v":53.156999999999996},{"$f":"VLOOKUP($A70,F1__World_Data!$A$4:$DP$191,72,FALSE)","v":52.62},{"$f":"VLOOKUP($A70,F1__World_Data!$A$4:$DP$191,71,FALSE)","v":52.106000000000002},{"$f":"VLOOKUP($A70,F1__World_Data!$A$4:$DP$191,70,FALSE)","v":51.615000000000002},{"$f":"VLOOKUP($A70,F1__World_Data!$A$4:$DP$191,69,FALSE)","v":51.148000000000003},{"$f":"VLOOKUP($A70,F1__World_Data!$A$4:$DP$191,68,FALSE)","v":50.704999999999998},{"$f":"VLOOKUP($A70,F1__World_Data!$A$4:$DP$191,67,FALSE)","v":50.283999999999999},{"$f":"VLOOKUP($A70,F1__World_Data!$A$4:$DP$191,66,FALSE)","v":49.887999999999998},{"$f":"VLOOKUP($A70,F1__World_Data!$A$4:$DP$191,65,FALSE)","v":49.509},{"$f":"VLOOKUP($A70,F1__World_Data!$A$4:$DP$191,64,FALSE)","v":49.142000000000003},{"$f":"VLOOKUP($A70,F1__World_Data!$A$4:$DP$191,63,FALSE)","v":48.777000000000001},{"$f":"VLOOKUP($A70,F1__World_Data!$A$4:$DP$191,62,FALSE)","v":48.405999999999999}]
["Benin",{"$f":"VLOOKUP($A71,F1__World_Data!$A$4:$DP$191,60,FALSE)","v":11485.035},{"$f":"VLOOKUP($A71,F1__World_Data!$A$4:$DP$191,59,FALSE)","v":11175.191999999999},{"$f":"VLOOKUP($A71,F1__World_Data!$A$4:$DP$191,58,FALSE)","v":10872.072},{"$f":"VLOOKUP($A71,F1__World_Data!$A$4:$DP$191,57,FALSE)","v":10575.962},{"$f":"VLOOKUP($A71,F1__World_Data!$A$4:$DP$191,56,FALSE)","v":10286.839},{"$f":"VLOOKUP($A71,F1__World_Data!$A$4:$DP$191,55,FALSE)","v":10004.593999999999},{"$f":"VLOOKUP($A71,F1__World_Data!$A$4:$DP$191,54,FALSE)","v":9729.2540000000008},{"$f":"VLOOKUP($A71,F1__World_Data!$A$4:$DP$191,53,FALSE)","v":9460.8289999999997},{"$f":"VLOOKUP($A71,F1__World_Data!$A$4:$DP$191,52,FALSE)","v":9199.2540000000008},{"$f":"VLOOKUP($A71,F1__World_Data!$A$4:$DP$191,51,FALSE)","v":8944.7129999999997},{"$f":"VLOOKUP($A71,F1__World_Data!$A$4:$DP$191,50,FALSE)","v":8696.9150000000009},{"$f":"VLOOKUP($A71,F1__World_Data!$A$4:$DP$191,49,FALSE)","v":8454.7900000000009},{"$f":"VLOOKUP($A71,F1__World_Data!$A$4:$DP$191,48,FALSE)","v":8216.893},{"$f":"VLOOKUP($A71,F1__World_Data!$A$4:$DP$191,47,FALSE)","v":7982.223},{"$f":"VLOOKUP($A71,F1__World_Data!$A$4:$DP$191,46,FALSE)","v":7750.0029999999997},{"$f":"VLOOKUP($A71,F1__World_Data!$A$4:$DP$191,45,FALSE)","v":7520.5559999999996},{"$f":"VLOOKUP($A71,F1__World_Data!$A$4:$DP$191,44,FALSE)","v":7295.4},{"$f":"VLOOKUP($A71,F1__World_Data!$A$4:$DP$191,43,FALSE)","v":7076.7280000000001},{"$f":"VLOOKUP($A71,F1__World_Data!$A$4:$DP$191,42,FALSE)","v":6865.9459999999999},{"$f":"VLOOKUP($A71,F1__World_Data!$A$4:$DP$191,41,FALSE)","v":6664.1019999999999},{"$f":"VLOOKUP($A71,F1__World_Data!$A$4:$DP$191,40,FALSE)","v":6470.2749999999996},{"$f":"VLOOKUP($A71,F1__World_Data!$A$4:$DP$191,39,FALSE)","v":6281.6440000000002},{"$f":"VLOOKUP($A71,F1__World_Data!$A$4:$DP$191,38,FALSE)","v":6094.2719999999999},{"$f":"VLOOKUP($A71,F1__World_Data!$A$4:$DP$191,37,FALSE)","v":5905.5519999999997},{"$f":"VLOOKUP($A71,F1__World_Data!$A$4:$DP$191,36,FALSE)","v":5714.2150000000001},{"$f":"VLOOKUP($A71,F1__World_Data!$A$4:$DP$191,35,FALSE)","v":5521.7610000000004},{"$f":"VLOOKUP($A71,F1__World_Data!$A$4:$DP$191,34,FALSE)","v":5331.8050000000003},{"$f":"VLOOKUP($A71,F1__World_Data!$A$4:$DP$191,33,FALSE)","v":5149.4960000000001},{"$f":"VLOOKUP($A71,F1__World_Data!$A$4:$DP$191,32,FALSE)","v":4978.4889999999996},{"$f":"VLOOKUP($A71,F1__World_Data!$A$4:$DP$191,31,FALSE)","v":4820.0200000000004},{"$f":"VLOOKUP($A71,F1__World_Data!$A$4:$DP$191,30,FALSE)","v":4672.8440000000001},{"$f":"VLOOKUP($A71,F1__World_Data!$A$4:$DP$191,29,FALSE)","v":4535.2619999999997},{"$f":"VLOOKUP($A71,F1__World_Data!$A$4:$DP$191,28,FALSE)","v":4404.5039999999999},{"$f":"VLOOKUP($A71,F1__World_Data!$A$4:$DP$191,27,FALSE)","v":4278.5020000000004},{"$f":"VLOOKUP($A71,F1__World_Data!$A$4:$DP$191,26,FALSE)","v":4156.8190000000004},{"$f":"VLOOKUP($A71,F1__World_Data!$A$4:$DP$191,25,FALSE)","v":4039.94},{"$f":"VLOOKUP($A71,F1__World_Data!$A$4:$DP$191,24,FALSE)","v":3927.7170000000001},{"$f":"VLOOKUP($A71,F1__World_Data!$A$4:$DP$191,23,FALSE)","v":3820.1260000000002},{"$f":"VLOOKUP($A71,F1__World_Data!$A$4:$DP$191,22,FALSE)","v":3717.1610000000001},{"$f":"VLOOKUP($A71,F1__World_Data!$A$4:$DP$191,21,FALSE)","v":3618.5189999999998},{"$f":"VLOOKUP($A71,F1__World_Data!$A$4:$DP$191,20,FALSE)","v":3523.933},{"$f":"VLOOKUP($A71,F1__World_Data!$A$4:$DP$191,19,FALSE)","v":3433.4450000000002},{"$f":"VLOOKUP($A71,F1__World_Data!$A$4:$DP$191,18,FALSE)","v":3347.1689999999999},{"$f":"VLOOKUP($A71,F1__World_Data!$A$4:$DP$191,17,FALSE)","v":3265.1669999999999},{"$f":"VLOOKUP($A71,F1__World_Data!$A$4:$DP$191,16,FALSE)","v":3187.413},{"$f":"VLOOKUP($A71,F1__World_Data!$A$4:$DP$191,15,FALSE)","v":3113.681},{"$f":"VLOOKUP($A71,F1__World_Data!$A$4:$DP$191,14,FALSE)","v":3043.5630000000001},{"$f":"VLOOKUP($A71,F1__World_Data!$A$4:$DP$191,13,FALSE)","v":2976.5749999999998},{"$f":"VLOOKUP($A71,F1__World_Data!$A$4:$DP$191,12,FALSE)","v":2912.3380000000002},{"$f":"VLOOKUP($A71,F1__World_Data!$A$4:$DP$191,11,FALSE)","v":2850.6570000000002},{"$f":"VLOOKUP($A71,F1__World_Data!$A$4:$DP$191,10,FALSE)","v":2791.5880000000002},{"$f":"VLOOKUP($A71,F1__World_Data!$A$4:$DP$191,9,FALSE)","v":2735.308},{"$f":"VLOOKUP($A71,F1__World_Data!$A$4:$DP$191,8,FALSE)","v":2682.1590000000001},{"$f":"VLOOKUP($A71,F1__World_Data!$A$4:$DP$191,7,FALSE)","v":2632.3609999999999},{"$f":"VLOOKUP($A71,F1__World_Data!$A$4:$DP$191,6,FALSE)","v":2585.9609999999998},{"$f":"VLOOKUP($A71,F1__World_Data!$A$4:$DP$191,5,FALSE)","v":2542.864},{"$f":"VLOOKUP($A71,F1__World_Data!$A$4:$DP$191,4,FALSE)","v":2502.8969999999999},{"$f":"VLOOKUP($A71,F1__World_Data!$A$4:$DP$191,3,FALSE)","v":2465.8649999999998},{"$f":"VLOOKUP($A71,F1__World_Data!$A$4:$DP$191,2,FALSE)","v":2431.6170000000002},null,{"$f":"VLOOKUP($A71,F1__World_Data!$A$4:$DP$191,120,FALSE)","v":61.47},{"$f":"VLOOKUP($A71,F1__World_Data!$A$4:$DP$191,119,FALSE)","v":61.173999999999999},{"$f":"VLOOKUP($A71,F1__World_Data!$A$4:$DP$191,118,FALSE)","v":60.884999999999998},{"$f":"VLOOKUP($A71,F1__World_Data!$A$4:$DP$191,117,FALSE)","v":60.607999999999997},{"$f":"VLOOKUP($A71,F1__World_Data!$A$4:$DP$191,116,FALSE)","v":60.344999999999999},{"$f":"VLOOKUP($A71,F1__World_Data!$A$4:$DP$191,115,FALSE)","v":60.091999999999999},{"$f":"VLOOKUP($A71,F1__World_Data!$A$4:$DP$191,114,FALSE)","v":59.841999999999999},{"$f":"VLOOKUP($A71,F1__World_Data!$A$4:$DP$191,113,FALSE)","v":59.59},{"$f":"VLOOKUP($A71,F1__World_Data!$A$4:$DP$191,112,FALSE)","v":59.317999999999998},{"$f":"VLOOKUP($A71,F1__World_Data!$A$4:$DP$191,111,FALSE)","v":59.009},{"$f":"VLOOKUP($A71,F1__World_Data!$A$4:$DP$191,110,FALSE)","v":58.654000000000003},{"$f":"VLOOKUP($A71,F1__World_Data!$A$4:$DP$191,109,FALSE)","v":58.255000000000003},{"$f":"VLOOKUP($A71,F1__World_Data!$A$4:$DP$191,108,FALSE)","v":57.817},{"$f":"VLOOKUP($A71,F1__World_Data!$A$4:$DP$191,107,FALSE)","v":57.354999999999997},{"$f":"VLOOKUP($A71,F1__World_Data!$A$4:$DP$191,106,FALSE)","v":56.887},{"$f":"VLOOKUP($A71,F1__World_Data!$A$4:$DP$191,105,FALSE)","v":56.436},{"$f":"VLOOKUP($A71,F1__World_Data!$A$4:$DP$191,104,FALSE)","v":56.024999999999999},{"$f":"VLOOKUP($A71,F1__World_Data!$A$4:$DP$191,103,FALSE)","v":55.667999999999999},{"$f":"VLOOKUP($A71,F1__World_Data!$A$4:$DP$191,102,FALSE)","v":55.390999999999998},{"$f":"VLOOKUP($A71,F1__World_Data!$A$4:$DP$191,101,FALSE)","v":55.218000000000004},{"$f":"VLOOKUP($A71,F1__World_Data!$A$4:$DP$191,100,FALSE)","v":55.139000000000003},{"$f":"VLOOKUP($A71,F1__World_Data!$A$4:$DP$191,99,FALSE)","v":55.133000000000003},{"$f":"VLOOKUP($A71,F1__World_Data!$A$4:$DP$191,98,FALSE)","v":55.17},{"$f":"VLOOKUP($A71,F1__World_Data!$A$4:$DP$191,97,FALSE)","v":55.203000000000003},{"$f":"VLOOKUP($A71,F1__World_Data!$A$4:$DP$191,96,FALSE)","v":55.173999999999999},{"$f":"VLOOKUP($A71,F1__World_Data!$A$4:$DP$191,95,FALSE)","v":55.042000000000002},{"$f":"VLOOKUP($A71,F1__World_Data!$A$4:$DP$191,94,FALSE)","v":54.776000000000003},{"$f":"VLOOKUP($A71,F1__World_Data!$A$4:$DP$191,93,FALSE)","v":54.366},{"$f":"VLOOKUP($A71,F1__World_Data!$A$4:$DP$191,92,FALSE)","v":53.811999999999998},{"$f":"VLOOKUP($A71,F1__World_Data!$A$4:$DP$191,91,FALSE)","v":53.131999999999998},{"$f":"VLOOKUP($A71,F1__World_Data!$A$4:$DP$191,90,FALSE)","v":52.372},{"$f":"VLOOKUP($A71,F1__World_Data!$A$4:$DP$191,89,FALSE)","v":51.581000000000003},{"$f":"VLOOKUP($A71,F1__World_Data!$A$4:$DP$191,88,FALSE)","v":50.79},{"$f":"VLOOKUP($A71,F1__World_Data!$A$4:$DP$191,87,FALSE)","v":50.033999999999999},{"$f":"VLOOKUP($A71,F1__World_Data!$A$4:$DP$191,86,FALSE)","v":49.338999999999999},{"$f":"VLOOKUP($A71,F1__World_Data!$A$4:$DP$191,85,FALSE)","v":48.71},{"$f":"VLOOKUP($A71,F1__World_Data!$A$4:$DP$191,84,FALSE)","v":48.145000000000003},{"$f":"VLOOKUP($A71,F1__World_Data!$A$4:$DP$191,83,FALSE)","v":47.643000000000001},{"$f":"VLOOKUP($A71,F1__World_Data!$A$4:$DP$191,82,FALSE)","v":47.19},{"$f":"VLOOKUP($A71,F1__World_Data!$A$4:$DP$191,81,FALSE)","v":46.764000000000003},{"$f":"VLOOKUP($A71,F1__World_Data!$A$4:$DP$191,80,FALSE)","v":46.335000000000001},{"$f":"VLOOKUP($A71,F1__World_Data!$A$4:$DP$191,79,FALSE)","v":45.883000000000003},{"$f":"VLOOKUP($A71,F1__World_Data!$A$4:$DP$191,78,FALSE)","v":45.399000000000001},{"$f":"VLOOKUP($A71,F1__World_Data!$A$4:$DP$191,77,FALSE)","v":44.881999999999998},{"$f":"VLOOKUP($A71,F1__World_Data!$A$4:$DP$191,76,FALSE)","v":44.337000000000003},{"$f":"VLOOKUP($A71,F1__World_Data!$A$4:$DP$191,75,FALSE)","v":43.780999999999999},{"$f":"VLOOKUP($A71,F1__World_Data!$A$4:$DP$191,74,FALSE)","v":43.228999999999999},{"$f":"VLOOKUP($A71,F1__World_Data!$A$4:$DP$191,73,FALSE)","v":42.683999999999997},{"$f":"VLOOKUP($A71,F1__World_Data!$A$4:$DP$191,72,FALSE)","v":42.152000000000001},{"$f":"VLOOKUP($A71,F1__World_Data!$A$4:$DP$191,71,FALSE)","v":41.63},{"$f":"VLOOKUP($A71,F1__World_Data!$A$4:$DP$191,70,FALSE)","v":41.116999999999997},{"$f":"VLOOKUP($A71,F1__World_Data!$A$4:$DP$191,69,FALSE)","v":40.61},{"$f":"VLOOKUP($A71,F1__World_Data!$A$4:$DP$191,68,FALSE)","v":40.109000000000002},{"$f":"VLOOKUP($A71,F1__World_Data!$A$4:$DP$191,67,FALSE)","v":39.615000000000002},{"$f":"VLOOKUP($A71,F1__World_Data!$A$4:$DP$191,66,FALSE)","v":39.130000000000003},{"$f":"VLOOKUP($A71,F1__World_Data!$A$4:$DP$191,65,FALSE)","v":38.655000000000001},{"$f":"VLOOKUP($A71,F1__World_Data!$A$4:$DP$191,64,FALSE)","v":38.188000000000002},{"$f":"VLOOKUP($A71,F1__World_Data!$A$4:$DP$191,63,FALSE)","v":37.726999999999997},{"$f":"VLOOKUP($A71,F1__World_Data!$A$4:$DP$191,62,FALSE)","v":37.271000000000001}]
["Belgium",{"$f":"VLOOKUP($A72,F1__World_Data!$A$4:$DP$191,60,FALSE)","v":11482.18},{"$f":"VLOOKUP($A72,F1__World_Data!$A$4:$DP$191,59,FALSE)","v":11419.752},{"$f":"VLOOKUP($A72,F1__World_Data!$A$4:$DP$191,58,FALSE)","v":11354.406999999999},{"$f":"VLOOKUP($A72,F1__World_Data!$A$4:$DP$191,57,FALSE)","v":11287.931},{"$f":"VLOOKUP($A72,F1__World_Data!$A$4:$DP$191,56,FALSE)","v":11221.225},{"$f":"VLOOKUP($A72,F1__World_Data!$A$4:$DP$191,55,FALSE)","v":11154.008},{"$f":"VLOOKUP($A72,F1__World_Data!$A$4:$DP$191,54,FALSE)","v":11085.355},{"$f":"VLOOKUP($A72,F1__World_Data!$A$4:$DP$191,53,FALSE)","v":11013.86},{"$f":"VLOOKUP($A72,F1__World_Data!$A$4:$DP$191,52,FALSE)","v":10938.735000000001},{"$f":"VLOOKUP($A72,F1__World_Data!$A$4:$DP$191,51,FALSE)","v":10859.933999999999},{"$f":"VLOOKUP($A72,F1__World_Data!$A$4:$DP$191,50,FALSE)","v":10778.763999999999},{"$f":"VLOOKUP($A72,F1__World_Data!$A$4:$DP$191,49,FALSE)","v":10697.575999999999},{"$f":"VLOOKUP($A72,F1__World_Data!$A$4:$DP$191,48,FALSE)","v":10619.484},{"$f":"VLOOKUP($A72,F1__World_Data!$A$4:$DP$191,47,FALSE)","v":10546.885},{"$f":"VLOOKUP($A72,F1__World_Data!$A$4:$DP$191,46,FALSE)","v":10480.118},{"$f":"VLOOKUP($A72,F1__World_Data!$A$4:$DP$191,45,FALSE)","v":10419.029},{"$f":"VLOOKUP($A72,F1__World_Data!$A$4:$DP$191,44,FALSE)","v":10364.879000000001},{"$f":"VLOOKUP($A72,F1__World_Data!$A$4:$DP$191,43,FALSE)","v":10319.026},{"$f":"VLOOKUP($A72,F1__World_Data!$A$4:$DP$191,42,FALSE)","v":10282.046},{"$f":"VLOOKUP($A72,F1__World_Data!$A$4:$DP$191,41,FALSE)","v":10255.161},{"$f":"VLOOKUP($A72,F1__World_Data!$A$4:$DP$191,40,FALSE)","v":10237.298000000001},{"$f":"VLOOKUP($A72,F1__World_Data!$A$4:$DP$191,39,FALSE)","v":10223.785},{"$f":"VLOOKUP($A72,F1__World_Data!$A$4:$DP$191,38,FALSE)","v":10208.264999999999},{"$f":"VLOOKUP($A72,F1__World_Data!$A$4:$DP$191,37,FALSE)","v":10186.304},{"$f":"VLOOKUP($A72,F1__World_Data!$A$4:$DP$191,36,FALSE)","v":10155.909},{"$f":"VLOOKUP($A72,F1__World_Data!$A$4:$DP$191,35,FALSE)","v":10118.683999999999},{"$f":"VLOOKUP($A72,F1__World_Data!$A$4:$DP$191,34,FALSE)","v":10078.098},{"$f":"VLOOKUP($A72,F1__World_Data!$A$4:$DP$191,33,FALSE)","v":10039.450000000001},{"$f":"VLOOKUP($A72,F1__World_Data!$A$4:$DP$191,32,FALSE)","v":10006.545},{"$f":"VLOOKUP($A72,F1__World_Data!$A$4:$DP$191,31,FALSE)","v":9980.1749999999993},{"$f":"VLOOKUP($A72,F1__World_Data!$A$4:$DP$191,30,FALSE)","v":9959.0110000000004},{"$f":"VLOOKUP($A72,F1__World_Data!$A$4:$DP$191,29,FALSE)","v":9942.2810000000009},{"$f":"VLOOKUP($A72,F1__World_Data!$A$4:$DP$191,28,FALSE)","v":9928.5390000000007},{"$f":"VLOOKUP($A72,F1__World_Data!$A$4:$DP$191,27,FALSE)","v":9916.5769999999993},{"$f":"VLOOKUP($A72,F1__World_Data!$A$4:$DP$191,26,FALSE)","v":9906.3700000000008},{"$f":"VLOOKUP($A72,F1__World_Data!$A$4:$DP$191,25,FALSE)","v":9897.8770000000004},{"$f":"VLOOKUP($A72,F1__World_Data!$A$4:$DP$191,24,FALSE)","v":9889.8189999999995},{"$f":"VLOOKUP($A72,F1__World_Data!$A$4:$DP$191,23,FALSE)","v":9880.5939999999991},{"$f":"VLOOKUP($A72,F1__World_Data!$A$4:$DP$191,22,FALSE)","v":9868.9989999999998},{"$f":"VLOOKUP($A72,F1__World_Data!$A$4:$DP$191,21,FALSE)","v":9854.3719999999994},{"$f":"VLOOKUP($A72,F1__World_Data!$A$4:$DP$191,20,FALSE)","v":9836.8119999999999},{"$f":"VLOOKUP($A72,F1__World_Data!$A$4:$DP$191,19,FALSE)","v":9816.6929999999993},{"$f":"VLOOKUP($A72,F1__World_Data!$A$4:$DP$191,18,FALSE)","v":9794.7710000000006},{"$f":"VLOOKUP($A72,F1__World_Data!$A$4:$DP$191,17,FALSE)","v":9771.5820000000003},{"$f":"VLOOKUP($A72,F1__World_Data!$A$4:$DP$191,16,FALSE)","v":9747.0229999999992},{"$f":"VLOOKUP($A72,F1__World_Data!$A$4:$DP$191,15,FALSE)","v":9720.75},{"$f":"VLOOKUP($A72,F1__World_Data!$A$4:$DP$191,14,FALSE)","v":9692.8449999999993},{"$f":"VLOOKUP($A72,F1__World_Data!$A$4:$DP$191,13,FALSE)","v":9663.3230000000003},{"$f":"VLOOKUP($A72,F1__World_Data!$A$4:$DP$191,12,FALSE)","v":9632.1790000000001},{"$f":"VLOOKUP($A72,F1__World_Data!$A$4:$DP$191,11,FALSE)","v":9599.6509999999998},{"$f":"VLOOKUP($A72,F1__World_Data!$A$4:$DP$191,10,FALSE)","v":9565.5910000000003},{"$f":"VLOOKUP($A72,F1__World_Data!$A$4:$DP$191,9,FALSE)","v":9529.0460000000003},{"$f":"VLOOKUP($A72,F1__World_Data!$A$4:$DP$191,8,FALSE)","v":9488.759},{"$f":"VLOOKUP($A72,F1__World_Data!$A$4:$DP$191,7,FALSE)","v":9443.9480000000003},{"$f":"VLOOKUP($A72,F1__World_Data!$A$4:$DP$191,6,FALSE)","v":9394.2999999999993},{"$f":"VLOOKUP($A72,F1__World_Data!$A$4:$DP$191,5,FALSE)","v":9340.4189999999999},{"$f":"VLOOKUP($A72,F1__World_Data!$A$4:$DP$191,4,FALSE)","v":9283.5450000000001},{"$f":"VLOOKUP($A72,F1__World_Data!$A$4:$DP$191,3,FALSE)","v":9225.4140000000007},{"$f":"VLOOKUP($A72,F1__World_Data!$A$4:$DP$191,2,FALSE)","v":9167.3610000000008},null,{"$f":"VLOOKUP($A72,F1__World_Data!$A$4:$DP$191,120,FALSE)","v":81.595121951219525},{"$f":"VLOOKUP($A72,F1__World_Data!$A$4:$DP$191,119,FALSE)","v":81.492682926829275},{"$f":"VLOOKUP($A72,F1__World_Data!$A$4:$DP$191,118,FALSE)","v":81.439024390243901},{"$f":"VLOOKUP($A72,F1__World_Data!$A$4:$DP$191,117,FALSE)","v":80.992682926829289},{"$f":"VLOOKUP($A72,F1__World_Data!$A$4:$DP$191,116,FALSE)","v":81.287804878048775},{"$f":"VLOOKUP($A72,F1__World_Data!$A$4:$DP$191,115,FALSE)","v":80.587804878048786},{"$f":"VLOOKUP($A72,F1__World_Data!$A$4:$DP$191,114,FALSE)","v":80.385365853658541},{"$f":"VLOOKUP($A72,F1__World_Data!$A$4:$DP$191,113,FALSE)","v":80.585365853658544},{"$f":"VLOOKUP($A72,F1__World_Data!$A$4:$DP$191,112,FALSE)","v":80.182926829268297},{"$f":"VLOOKUP($A72,F1__World_Data!$A$4:$DP$191,111,FALSE)","v":80.034146341463412},{"$f":"VLOOKUP($A72,F1__World_Data!$A$4:$DP$191,110,FALSE)","v":79.680487804878055},{"$f":"VLOOKUP($A72,F1__World_Data!$A$4:$DP$191,109,FALSE)","v":79.782926829268305},{"$f":"VLOOKUP($A72,F1__World_Data!$A$4:$DP$191,108,FALSE)","v":79.380487804878044},{"$f":"VLOOKUP($A72,F1__World_Data!$A$4:$DP$191,107,FALSE)","v":78.980487804878067},{"$f":"VLOOKUP($A72,F1__World_Data!$A$4:$DP$191,106,FALSE)","v":78.878048780487802},{"$f":"VLOOKUP($A72,F1__World_Data!$A$4:$DP$191,105,FALSE)","v":78.129268292682923},{"$f":"VLOOKUP($A72,F1__World_Data!$A$4:$DP$191,104,FALSE)","v":78.075609756097577},{"$f":"VLOOKUP($A72,F1__World_Data!$A$4:$DP$191,103,FALSE)","v":77.973170731707341},{"$f":"VLOOKUP($A72,F1__World_Data!$A$4:$DP$191,102,FALSE)","v":77.721951219512192},{"$f":"VLOOKUP($A72,F1__World_Data!$A$4:$DP$191,101,FALSE)","v":77.619512195121956},{"$f":"VLOOKUP($A72,F1__World_Data!$A$4:$DP$191,100,FALSE)","v":77.473170731707327},{"$f":"VLOOKUP($A72,F1__World_Data!$A$4:$DP$191,99,FALSE)","v":77.370731707317091},{"$f":"VLOOKUP($A72,F1__World_Data!$A$4:$DP$191,98,FALSE)","v":77.187317073170732},{"$f":"VLOOKUP($A72,F1__World_Data!$A$4:$DP$191,97,FALSE)","v":76.84073170731709},{"$f":"VLOOKUP($A72,F1__World_Data!$A$4:$DP$191,96,FALSE)","v":76.691707317073181},{"$f":"VLOOKUP($A72,F1__World_Data!$A$4:$DP$191,95,FALSE)","v":76.345365853658535},{"$f":"VLOOKUP($A72,F1__World_Data!$A$4:$DP$191,94,FALSE)","v":76.351219512195129},{"$f":"VLOOKUP($A72,F1__World_Data!$A$4:$DP$191,93,FALSE)","v":76.192195121951229},{"$f":"VLOOKUP($A72,F1__World_Data!$A$4:$DP$191,92,FALSE)","v":76.051951219512205},{"$f":"VLOOKUP($A72,F1__World_Data!$A$4:$DP$191,91,FALSE)","v":75.63268292682929},{"$f":"VLOOKUP($A72,F1__World_Data!$A$4:$DP$191,90,FALSE)","v":75.565853658536597},{"$f":"VLOOKUP($A72,F1__World_Data!$A$4:$DP$191,89,FALSE)","v":75.365853658536594},{"$f":"VLOOKUP($A72,F1__World_Data!$A$4:$DP$191,88,FALSE)","v":74.731707317073187},{"$f":"VLOOKUP($A72,F1__World_Data!$A$4:$DP$191,87,FALSE)","v":74.520243902439034},{"$f":"VLOOKUP($A72,F1__World_Data!$A$4:$DP$191,86,FALSE)","v":74.404878048780489},{"$f":"VLOOKUP($A72,F1__World_Data!$A$4:$DP$191,85,FALSE)","v":73.869024390243908},{"$f":"VLOOKUP($A72,F1__World_Data!$A$4:$DP$191,84,FALSE)","v":73.888048780487821},{"$f":"VLOOKUP($A72,F1__World_Data!$A$4:$DP$191,83,FALSE)","v":73.621707317073188},{"$f":"VLOOKUP($A72,F1__World_Data!$A$4:$DP$191,82,FALSE)","v":73.207073170731718},{"$f":"VLOOKUP($A72,F1__World_Data!$A$4:$DP$191,81,FALSE)","v":73.193658536585374},{"$f":"VLOOKUP($A72,F1__World_Data!$A$4:$DP$191,80,FALSE)","v":72.698048780487809},{"$f":"VLOOKUP($A72,F1__World_Data!$A$4:$DP$191,79,FALSE)","v":72.773902439024411},{"$f":"VLOOKUP($A72,F1__World_Data!$A$4:$DP$191,78,FALSE)","v":72.119756097560995},{"$f":"VLOOKUP($A72,F1__World_Data!$A$4:$DP$191,77,FALSE)","v":71.97121951219512},{"$f":"VLOOKUP($A72,F1__World_Data!$A$4:$DP$191,76,FALSE)","v":71.985853658536584},{"$f":"VLOOKUP($A72,F1__World_Data!$A$4:$DP$191,75,FALSE)","v":71.635365853658556},{"$f":"VLOOKUP($A72,F1__World_Data!$A$4:$DP$191,74,FALSE)","v":71.405121951219513},{"$f":"VLOOKUP($A72,F1__World_Data!$A$4:$DP$191,73,FALSE)","v":71.060487804878065},{"$f":"VLOOKUP($A72,F1__World_Data!$A$4:$DP$191,72,FALSE)","v":70.971951219512206},{"$f":"VLOOKUP($A72,F1__World_Data!$A$4:$DP$191,71,FALSE)","v":70.764878048780488},{"$f":"VLOOKUP($A72,F1__World_Data!$A$4:$DP$191,70,FALSE)","v":70.693170731707326},{"$f":"VLOOKUP($A72,F1__World_Data!$A$4:$DP$191,69,FALSE)","v":71.012926829268309},{"$f":"VLOOKUP($A72,F1__World_Data!$A$4:$DP$191,68,FALSE)","v":70.706341463414645},{"$f":"VLOOKUP($A72,F1__World_Data!$A$4:$DP$191,67,FALSE)","v":70.62536585365855},{"$f":"VLOOKUP($A72,F1__World_Data!$A$4:$DP$191,66,FALSE)","v":70.755121951219522},{"$f":"VLOOKUP($A72,F1__World_Data!$A$4:$DP$191,65,FALSE)","v":70.051463414634156},{"$f":"VLOOKUP($A72,F1__World_Data!$A$4:$DP$191,64,FALSE)","v":70.219512195121965},{"$f":"VLOOKUP($A72,F1__World_Data!$A$4:$DP$191,63,FALSE)","v":70.520975609756093},{"$f":"VLOOKUP($A72,F1__World_Data!$A$4:$DP$191,62,FALSE)","v":69.70195121951221}]
["Cuba",{"$f":"VLOOKUP($A73,F1__World_Data!$A$4:$DP$191,60,FALSE)","v":11338.146000000001},{"$f":"VLOOKUP($A73,F1__World_Data!$A$4:$DP$191,59,FALSE)","v":11339.254999999999},{"$f":"VLOOKUP($A73,F1__World_Data!$A$4:$DP$191,58,FALSE)","v":11335.108},{"$f":"VLOOKUP($A73,F1__World_Data!$A$4:$DP$191,57,FALSE)","v":11324.777},{"$f":"VLOOKUP($A73,F1__World_Data!$A$4:$DP$191,56,FALSE)","v":11306.909},{"$f":"VLOOKUP($A73,F1__World_Data!$A$4:$DP$191,55,FALSE)","v":11282.722},{"$f":"VLOOKUP($A73,F1__World_Data!$A$4:$DP$191,54,FALSE)","v":11257.111999999999},{"$f":"VLOOKUP($A73,F1__World_Data!$A$4:$DP$191,53,FALSE)","v":11236.671},{"$f":"VLOOKUP($A73,F1__World_Data!$A$4:$DP$191,52,FALSE)","v":11225.833000000001},{"$f":"VLOOKUP($A73,F1__World_Data!$A$4:$DP$191,51,FALSE)","v":11226.710999999999},{"$f":"VLOOKUP($A73,F1__World_Data!$A$4:$DP$191,50,FALSE)","v":11236.975},{"$f":"VLOOKUP($A73,F1__World_Data!$A$4:$DP$191,49,FALSE)","v":11251.117},{"$f":"VLOOKUP($A73,F1__World_Data!$A$4:$DP$191,48,FALSE)","v":11261.241},{"$f":"VLOOKUP($A73,F1__World_Data!$A$4:$DP$191,47,FALSE)","v":11261.585999999999},{"$f":"VLOOKUP($A73,F1__World_Data!$A$4:$DP$191,46,FALSE)","v":11250.369000000001},{"$f":"VLOOKUP($A73,F1__World_Data!$A$4:$DP$191,45,FALSE)","v":11229.184999999999},{"$f":"VLOOKUP($A73,F1__World_Data!$A$4:$DP$191,44,FALSE)","v":11199.664000000001},{"$f":"VLOOKUP($A73,F1__World_Data!$A$4:$DP$191,43,FALSE)","v":11164.675999999999},{"$f":"VLOOKUP($A73,F1__World_Data!$A$4:$DP$191,42,FALSE)","v":11126.423000000001},{"$f":"VLOOKUP($A73,F1__World_Data!$A$4:$DP$191,41,FALSE)","v":11084.673000000001},{"$f":"VLOOKUP($A73,F1__World_Data!$A$4:$DP$191,40,FALSE)","v":11038.706},{"$f":"VLOOKUP($A73,F1__World_Data!$A$4:$DP$191,39,FALSE)","v":10989.73},{"$f":"VLOOKUP($A73,F1__World_Data!$A$4:$DP$191,38,FALSE)","v":10939.285},{"$f":"VLOOKUP($A73,F1__World_Data!$A$4:$DP$191,37,FALSE)","v":10888.245999999999},{"$f":"VLOOKUP($A73,F1__World_Data!$A$4:$DP$191,36,FALSE)","v":10838.460999999999},{"$f":"VLOOKUP($A73,F1__World_Data!$A$4:$DP$191,35,FALSE)","v":10789.312},{"$f":"VLOOKUP($A73,F1__World_Data!$A$4:$DP$191,34,FALSE)","v":10736.386},{"$f":"VLOOKUP($A73,F1__World_Data!$A$4:$DP$191,33,FALSE)","v":10673.534},{"$f":"VLOOKUP($A73,F1__World_Data!$A$4:$DP$191,32,FALSE)","v":10596.986000000001},{"$f":"VLOOKUP($A73,F1__World_Data!$A$4:$DP$191,31,FALSE)","v":10503.967000000001},{"$f":"VLOOKUP($A73,F1__World_Data!$A$4:$DP$191,30,FALSE)","v":10397.519},{"$f":"VLOOKUP($A73,F1__World_Data!$A$4:$DP$191,29,FALSE)","v":10286.645},{"$f":"VLOOKUP($A73,F1__World_Data!$A$4:$DP$191,28,FALSE)","v":10183.894},{"$f":"VLOOKUP($A73,F1__World_Data!$A$4:$DP$191,27,FALSE)","v":10097.91},{"$f":"VLOOKUP($A73,F1__World_Data!$A$4:$DP$191,26,FALSE)","v":10031.651},{"$f":"VLOOKUP($A73,F1__World_Data!$A$4:$DP$191,25,FALSE)","v":9981.3029999999999},{"$f":"VLOOKUP($A73,F1__World_Data!$A$4:$DP$191,24,FALSE)","v":9940.3140000000003},{"$f":"VLOOKUP($A73,F1__World_Data!$A$4:$DP$191,23,FALSE)","v":9898.8909999999996},{"$f":"VLOOKUP($A73,F1__World_Data!$A$4:$DP$191,22,FALSE)","v":9849.4570000000003},{"$f":"VLOOKUP($A73,F1__World_Data!$A$4:$DP$191,21,FALSE)","v":9790.85},{"$f":"VLOOKUP($A73,F1__World_Data!$A$4:$DP$191,20,FALSE)","v":9724.0439999999999},{"$f":"VLOOKUP($A73,F1__World_Data!$A$4:$DP$191,19,FALSE)","v":9646.1419999999998},{"$f":"VLOOKUP($A73,F1__World_Data!$A$4:$DP$191,18,FALSE)","v":9554.1859999999997},{"$f":"VLOOKUP($A73,F1__World_Data!$A$4:$DP$191,17,FALSE)","v":9446.4410000000007},{"$f":"VLOOKUP($A73,F1__World_Data!$A$4:$DP$191,16,FALSE)","v":9320.9429999999993},{"$f":"VLOOKUP($A73,F1__World_Data!$A$4:$DP$191,15,FALSE)","v":9178.8089999999993},{"$f":"VLOOKUP($A73,F1__World_Data!$A$4:$DP$191,14,FALSE)","v":9025.3469999999998},{"$f":"VLOOKUP($A73,F1__World_Data!$A$4:$DP$191,13,FALSE)","v":8868.0869999999995},{"$f":"VLOOKUP($A73,F1__World_Data!$A$4:$DP$191,12,FALSE)","v":8712.5349999999999},{"$f":"VLOOKUP($A73,F1__World_Data!$A$4:$DP$191,11,FALSE)","v":8561.3909999999996},{"$f":"VLOOKUP($A73,F1__World_Data!$A$4:$DP$191,10,FALSE)","v":8413.5490000000009},{"$f":"VLOOKUP($A73,F1__World_Data!$A$4:$DP$191,9,FALSE)","v":8266.3729999999996},{"$f":"VLOOKUP($A73,F1__World_Data!$A$4:$DP$191,8,FALSE)","v":8115.4870000000001},{"$f":"VLOOKUP($A73,F1__World_Data!$A$4:$DP$191,7,FALSE)","v":7958.1710000000003},{"$f":"VLOOKUP($A73,F1__World_Data!$A$4:$DP$191,6,FALSE)","v":7793.2579999999998},{"$f":"VLOOKUP($A73,F1__World_Data!$A$4:$DP$191,5,FALSE)","v":7623.3},{"$f":"VLOOKUP($A73,F1__World_Data!$A$4:$DP$191,4,FALSE)","v":7453.5349999999999},{"$f":"VLOOKUP($A73,F1__World_Data!$A$4:$DP$191,3,FALSE)","v":7291.201},{"$f":"VLOOKUP($A73,F1__World_Data!$A$4:$DP$191,2,FALSE)","v":7141.241},null,{"$f":"VLOOKUP($A73,F1__World_Data!$A$4:$DP$191,120,FALSE)","v":78.725999999999999},{"$f":"VLOOKUP($A73,F1__World_Data!$A$4:$DP$191,119,FALSE)","v":78.662000000000006},{"$f":"VLOOKUP($A73,F1__World_Data!$A$4:$DP$191,118,FALSE)","v":78.606999999999999},{"$f":"VLOOKUP($A73,F1__World_Data!$A$4:$DP$191,117,FALSE)","v":78.561000000000007},{"$f":"VLOOKUP($A73,F1__World_Data!$A$4:$DP$191,116,FALSE)","v":78.521000000000001},{"$f":"VLOOKUP($A73,F1__World_Data!$A$4:$DP$191,115,FALSE)","v":78.484999999999999},{"$f":"VLOOKUP($A73,F1__World_Data!$A$4:$DP$191,114,FALSE)","v":78.445999999999998},{"$f":"VLOOKUP($A73,F1__World_Data!$A$4:$DP$191,113,FALSE)","v":78.400000000000006},{"$f":"VLOOKUP($A73,F1__World_Data!$A$4:$DP$191,112,FALSE)","v":78.337999999999994},{"$f":"VLOOKUP($A73,F1__World_Data!$A$4:$DP$191,111,FALSE)","v":78.256},{"$f":"VLOOKUP($A73,F1__World_Data!$A$4:$DP$191,110,FALSE)","v":78.150000000000006},{"$f":"VLOOKUP($A73,F1__World_Data!$A$4:$DP$191,109,FALSE)","v":78.019000000000005},{"$f":"VLOOKUP($A73,F1__World_Data!$A$4:$DP$191,108,FALSE)","v":77.864000000000004},{"$f":"VLOOKUP($A73,F1__World_Data!$A$4:$DP$191,107,FALSE)","v":77.688000000000002},{"$f":"VLOOKUP($A73,F1__World_Data!$A$4:$DP$191,106,FALSE)","v":77.498999999999995},{"$f":"VLOOKUP($A73,F1__World_Data!$A$4:$DP$191,105,FALSE)","v":77.302999999999997},{"$f":"VLOOKUP($A73,F1__World_Data!$A$4:$DP$191,104,FALSE)","v":77.105000000000004},{"$f":"VLOOKUP($A73,F1__World_Data!$A$4:$DP$191,103,FALSE)","v":76.905000000000001},{"$f":"VLOOKUP($A73,F1__World_Data!$A$4:$DP$191,102,FALSE)","v":76.698999999999998},{"$f":"VLOOKUP($A73,F1__World_Data!$A$4:$DP$191,101,FALSE)","v":76.474999999999994},{"$f":"VLOOKUP($A73,F1__World_Data!$A$4:$DP$191,100,FALSE)","v":76.23},{"$f":"VLOOKUP($A73,F1__World_Data!$A$4:$DP$191,99,FALSE)","v":75.963999999999999},{"$f":"VLOOKUP($A73,F1__World_Data!$A$4:$DP$191,98,FALSE)","v":75.686000000000007},{"$f":"VLOOKUP($A73,F1__World_Data!$A$4:$DP$191,97,FALSE)","v":75.412000000000006},{"$f":"VLOOKUP($A73,F1__World_Data!$A$4:$DP$191,96,FALSE)","v":75.164000000000001},{"$f":"VLOOKUP($A73,F1__World_Data!$A$4:$DP$191,95,FALSE)","v":74.956999999999994},{"$f":"VLOOKUP($A73,F1__World_Data!$A$4:$DP$191,94,FALSE)","v":74.801000000000002},{"$f":"VLOOKUP($A73,F1__World_Data!$A$4:$DP$191,93,FALSE)","v":74.695999999999998},{"$f":"VLOOKUP($A73,F1__World_Data!$A$4:$DP$191,92,FALSE)","v":74.638000000000005},{"$f":"VLOOKUP($A73,F1__World_Data!$A$4:$DP$191,91,FALSE)","v":74.614999999999995},{"$f":"VLOOKUP($A73,F1__World_Data!$A$4:$DP$191,90,FALSE)","v":74.606999999999999},{"$f":"VLOOKUP($A73,F1__World_Data!$A$4:$DP$191,89,FALSE)","v":74.594999999999999},{"$f":"VLOOKUP($A73,F1__World_Data!$A$4:$DP$191,88,FALSE)","v":74.566000000000003},{"$f":"VLOOKUP($A73,F1__World_Data!$A$4:$DP$191,87,FALSE)","v":74.510999999999996},{"$f":"VLOOKUP($A73,F1__World_Data!$A$4:$DP$191,86,FALSE)","v":74.427000000000007},{"$f":"VLOOKUP($A73,F1__World_Data!$A$4:$DP$191,85,FALSE)","v":74.314999999999998},{"$f":"VLOOKUP($A73,F1__World_Data!$A$4:$DP$191,84,FALSE)","v":74.174999999999997},{"$f":"VLOOKUP($A73,F1__World_Data!$A$4:$DP$191,83,FALSE)","v":74.004000000000005},{"$f":"VLOOKUP($A73,F1__World_Data!$A$4:$DP$191,82,FALSE)","v":73.793999999999997},{"$f":"VLOOKUP($A73,F1__World_Data!$A$4:$DP$191,81,FALSE)","v":73.543000000000006},{"$f":"VLOOKUP($A73,F1__World_Data!$A$4:$DP$191,80,FALSE)","v":73.248999999999995},{"$f":"VLOOKUP($A73,F1__World_Data!$A$4:$DP$191,79,FALSE)","v":72.915000000000006},{"$f":"VLOOKUP($A73,F1__World_Data!$A$4:$DP$191,78,FALSE)","v":72.543000000000006},{"$f":"VLOOKUP($A73,F1__World_Data!$A$4:$DP$191,77,FALSE)","v":72.138000000000005},{"$f":"VLOOKUP($A73,F1__World_Data!$A$4:$DP$191,76,FALSE)","v":71.706999999999994},{"$f":"VLOOKUP($A73,F1__World_Data!$A$4:$DP$191,75,FALSE)","v":71.254999999999995},{"$f":"VLOOKUP($A73,F1__World_Data!$A$4:$DP$191,74,FALSE)","v":70.787000000000006},{"$f":"VLOOKUP($A73,F1__World_Data!$A$4:$DP$191,73,FALSE)","v":70.305999999999997},{"$f":"VLOOKUP($A73,F1__World_Data!$A$4:$DP$191,72,FALSE)","v":69.808999999999997},{"$f":"VLOOKUP($A73,F1__World_Data!$A$4:$DP$191,71,FALSE)","v":69.290000000000006},{"$f":"VLOOKUP($A73,F1__World_Data!$A$4:$DP$191,70,FALSE)","v":68.744},{"$f":"VLOOKUP($A73,F1__World_Data!$A$4:$DP$191,69,FALSE)","v":68.171000000000006},{"$f":"VLOOKUP($A73,F1__World_Data!$A$4:$DP$191,68,FALSE)","v":67.572999999999993},{"$f":"VLOOKUP($A73,F1__World_Data!$A$4:$DP$191,67,FALSE)","v":66.956000000000003},{"$f":"VLOOKUP($A73,F1__World_Data!$A$4:$DP$191,66,FALSE)","v":66.326999999999998},{"$f":"VLOOKUP($A73,F1__World_Data!$A$4:$DP$191,65,FALSE)","v":65.694999999999993},{"$f":"VLOOKUP($A73,F1__World_Data!$A$4:$DP$191,64,FALSE)","v":65.066000000000003},{"$f":"VLOOKUP($A73,F1__World_Data!$A$4:$DP$191,63,FALSE)","v":64.445999999999998},{"$f":"VLOOKUP($A73,F1__World_Data!$A$4:$DP$191,62,FALSE)","v":63.834000000000003}]
["Burundi",{"$f":"VLOOKUP($A74,F1__World_Data!$A$4:$DP$191,60,FALSE)","v":11175.379000000001},{"$f":"VLOOKUP($A74,F1__World_Data!$A$4:$DP$191,59,FALSE)","v":10827.01},{"$f":"VLOOKUP($A74,F1__World_Data!$A$4:$DP$191,58,FALSE)","v":10488.002},{"$f":"VLOOKUP($A74,F1__World_Data!$A$4:$DP$191,57,FALSE)","v":10160.034},{"$f":"VLOOKUP($A74,F1__World_Data!$A$4:$DP$191,56,FALSE)","v":9844.3009999999995},{"$f":"VLOOKUP($A74,F1__World_Data!$A$4:$DP$191,55,FALSE)","v":9540.3019999999997},{"$f":"VLOOKUP($A74,F1__World_Data!$A$4:$DP$191,54,FALSE)","v":9245.9920000000002},{"$f":"VLOOKUP($A74,F1__World_Data!$A$4:$DP$191,53,FALSE)","v":8958.4060000000009},{"$f":"VLOOKUP($A74,F1__World_Data!$A$4:$DP$191,52,FALSE)","v":8675.6059999999998},{"$f":"VLOOKUP($A74,F1__World_Data!$A$4:$DP$191,51,FALSE)","v":8397.6610000000001},{"$f":"VLOOKUP($A74,F1__World_Data!$A$4:$DP$191,50,FALSE)","v":8126.1040000000003},{"$f":"VLOOKUP($A74,F1__World_Data!$A$4:$DP$191,49,FALSE)","v":7862.2259999999997},{"$f":"VLOOKUP($A74,F1__World_Data!$A$4:$DP$191,48,FALSE)","v":7607.85},{"$f":"VLOOKUP($A74,F1__World_Data!$A$4:$DP$191,47,FALSE)","v":7364.857},{"$f":"VLOOKUP($A74,F1__World_Data!$A$4:$DP$191,46,FALSE)","v":7131.6880000000001},{"$f":"VLOOKUP($A74,F1__World_Data!$A$4:$DP$191,45,FALSE)","v":6909.1610000000001},{"$f":"VLOOKUP($A74,F1__World_Data!$A$4:$DP$191,44,FALSE)","v":6704.1180000000004},{"$f":"VLOOKUP($A74,F1__World_Data!$A$4:$DP$191,43,FALSE)","v":6525.5460000000003},{"$f":"VLOOKUP($A74,F1__World_Data!$A$4:$DP$191,42,FALSE)","v":6378.8710000000001},{"$f":"VLOOKUP($A74,F1__World_Data!$A$4:$DP$191,41,FALSE)","v":6267.1319999999996},{"$f":"VLOOKUP($A74,F1__World_Data!$A$4:$DP$191,40,FALSE)","v":6185.5640000000003},{"$f":"VLOOKUP($A74,F1__World_Data!$A$4:$DP$191,39,FALSE)","v":6122.13},{"$f":"VLOOKUP($A74,F1__World_Data!$A$4:$DP$191,38,FALSE)","v":6060.11},{"$f":"VLOOKUP($A74,F1__World_Data!$A$4:$DP$191,37,FALSE)","v":5987.0439999999999},{"$f":"VLOOKUP($A74,F1__World_Data!$A$4:$DP$191,36,FALSE)","v":5898.9639999999999},{"$f":"VLOOKUP($A74,F1__World_Data!$A$4:$DP$191,35,FALSE)","v":5798.0540000000001},{"$f":"VLOOKUP($A74,F1__World_Data!$A$4:$DP$191,34,FALSE)","v":5685.5690000000004},{"$f":"VLOOKUP($A74,F1__World_Data!$A$4:$DP$191,33,FALSE)","v":5564.9229999999998},{"$f":"VLOOKUP($A74,F1__World_Data!$A$4:$DP$191,32,FALSE)","v":5438.9589999999998},{"$f":"VLOOKUP($A74,F1__World_Data!$A$4:$DP$191,31,FALSE)","v":5307.0690000000004},{"$f":"VLOOKUP($A74,F1__World_Data!$A$4:$DP$191,30,FALSE)","v":5168.7030000000004},{"$f":"VLOOKUP($A74,F1__World_Data!$A$4:$DP$191,29,FALSE)","v":5027.143},{"$f":"VLOOKUP($A74,F1__World_Data!$A$4:$DP$191,28,FALSE)","v":4886.7449999999999},{"$f":"VLOOKUP($A74,F1__World_Data!$A$4:$DP$191,27,FALSE)","v":4750.8320000000003},{"$f":"VLOOKUP($A74,F1__World_Data!$A$4:$DP$191,26,FALSE)","v":4621.0959999999995},{"$f":"VLOOKUP($A74,F1__World_Data!$A$4:$DP$191,25,FALSE)","v":4497.5439999999999},{"$f":"VLOOKUP($A74,F1__World_Data!$A$4:$DP$191,24,FALSE)","v":4379.7269999999999},{"$f":"VLOOKUP($A74,F1__World_Data!$A$4:$DP$191,23,FALSE)","v":4266.5200000000004},{"$f":"VLOOKUP($A74,F1__World_Data!$A$4:$DP$191,22,FALSE)","v":4157.2960000000003},{"$f":"VLOOKUP($A74,F1__World_Data!$A$4:$DP$191,21,FALSE)","v":4051.239},{"$f":"VLOOKUP($A74,F1__World_Data!$A$4:$DP$191,20,FALSE)","v":3949.2640000000001},{"$f":"VLOOKUP($A74,F1__World_Data!$A$4:$DP$191,19,FALSE)","v":3854.4459999999999},{"$f":"VLOOKUP($A74,F1__World_Data!$A$4:$DP$191,18,FALSE)","v":3770.87},{"$f":"VLOOKUP($A74,F1__World_Data!$A$4:$DP$191,17,FALSE)","v":3700.8789999999999},{"$f":"VLOOKUP($A74,F1__World_Data!$A$4:$DP$191,16,FALSE)","v":3646.4279999999999},{"$f":"VLOOKUP($A74,F1__World_Data!$A$4:$DP$191,15,FALSE)","v":3605.12},{"$f":"VLOOKUP($A74,F1__World_Data!$A$4:$DP$191,14,FALSE)","v":3569.6550000000002},{"$f":"VLOOKUP($A74,F1__World_Data!$A$4:$DP$191,13,FALSE)","v":3530},{"$f":"VLOOKUP($A74,F1__World_Data!$A$4:$DP$191,12,FALSE)","v":3479.07},{"$f":"VLOOKUP($A74,F1__World_Data!$A$4:$DP$191,11,FALSE)","v":3413.9090000000001},{"$f":"VLOOKUP($A74,F1__World_Data!$A$4:$DP$191,10,FALSE)","v":3336.93},{"$f":"VLOOKUP($A74,F1__World_Data!$A$4:$DP$191,9,FALSE)","v":3253.2150000000001},{"$f":"VLOOKUP($A74,F1__World_Data!$A$4:$DP$191,8,FALSE)","v":3170.4960000000001},{"$f":"VLOOKUP($A74,F1__World_Data!$A$4:$DP$191,7,FALSE)","v":3094.3780000000002},{"$f":"VLOOKUP($A74,F1__World_Data!$A$4:$DP$191,6,FALSE)","v":3026.2919999999999},{"$f":"VLOOKUP($A74,F1__World_Data!$A$4:$DP$191,5,FALSE)","v":2964.4160000000002},{"$f":"VLOOKUP($A74,F1__World_Data!$A$4:$DP$191,4,FALSE)","v":2907.32},{"$f":"VLOOKUP($A74,F1__World_Data!$A$4:$DP$191,3,FALSE)","v":2852.4380000000001},{"$f":"VLOOKUP($A74,F1__World_Data!$A$4:$DP$191,2,FALSE)","v":2797.9250000000002},null,{"$f":"VLOOKUP($A74,F1__World_Data!$A$4:$DP$191,120,FALSE)","v":69.275000000000006},{"$f":"VLOOKUP($A74,F1__World_Data!$A$4:$DP$191,119,FALSE)","v":68.811999999999998},{"$f":"VLOOKUP($A74,F1__World_Data!$A$4:$DP$191,118,FALSE)","v":68.177999999999997},{"$f":"VLOOKUP($A74,F1__World_Data!$A$4:$DP$191,117,FALSE)","v":67.337999999999994},{"$f":"VLOOKUP($A74,F1__World_Data!$A$4:$DP$191,116,FALSE)","v":66.265000000000001},{"$f":"VLOOKUP($A74,F1__World_Data!$A$4:$DP$191,115,FALSE)","v":64.975999999999999},{"$f":"VLOOKUP($A74,F1__World_Data!$A$4:$DP$191,114,FALSE)","v":63.511000000000003},{"$f":"VLOOKUP($A74,F1__World_Data!$A$4:$DP$191,113,FALSE)","v":61.91},{"$f":"VLOOKUP($A74,F1__World_Data!$A$4:$DP$191,112,FALSE)","v":60.210999999999999},{"$f":"VLOOKUP($A74,F1__World_Data!$A$4:$DP$191,111,FALSE)","v":58.447000000000003},{"$f":"VLOOKUP($A74,F1__World_Data!$A$4:$DP$191,110,FALSE)","v":56.679000000000002},{"$f":"VLOOKUP($A74,F1__World_Data!$A$4:$DP$191,109,FALSE)","v":54.982999999999997},{"$f":"VLOOKUP($A74,F1__World_Data!$A$4:$DP$191,108,FALSE)","v":53.435000000000002},{"$f":"VLOOKUP($A74,F1__World_Data!$A$4:$DP$191,107,FALSE)","v":52.13},{"$f":"VLOOKUP($A74,F1__World_Data!$A$4:$DP$191,106,FALSE)","v":51.15},{"$f":"VLOOKUP($A74,F1__World_Data!$A$4:$DP$191,105,FALSE)","v":50.518000000000001},{"$f":"VLOOKUP($A74,F1__World_Data!$A$4:$DP$191,104,FALSE)","v":50.231999999999999},{"$f":"VLOOKUP($A74,F1__World_Data!$A$4:$DP$191,103,FALSE)","v":50.280999999999999},{"$f":"VLOOKUP($A74,F1__World_Data!$A$4:$DP$191,102,FALSE)","v":50.628999999999998},{"$f":"VLOOKUP($A74,F1__World_Data!$A$4:$DP$191,101,FALSE)","v":51.213999999999999},{"$f":"VLOOKUP($A74,F1__World_Data!$A$4:$DP$191,100,FALSE)","v":51.947000000000003},{"$f":"VLOOKUP($A74,F1__World_Data!$A$4:$DP$191,99,FALSE)","v":52.749000000000002},{"$f":"VLOOKUP($A74,F1__World_Data!$A$4:$DP$191,98,FALSE)","v":53.572000000000003},{"$f":"VLOOKUP($A74,F1__World_Data!$A$4:$DP$191,97,FALSE)","v":54.41},{"$f":"VLOOKUP($A74,F1__World_Data!$A$4:$DP$191,96,FALSE)","v":55.283999999999999},{"$f":"VLOOKUP($A74,F1__World_Data!$A$4:$DP$191,95,FALSE)","v":56.222000000000001},{"$f":"VLOOKUP($A74,F1__World_Data!$A$4:$DP$191,94,FALSE)","v":57.219000000000001},{"$f":"VLOOKUP($A74,F1__World_Data!$A$4:$DP$191,93,FALSE)","v":58.231999999999999},{"$f":"VLOOKUP($A74,F1__World_Data!$A$4:$DP$191,92,FALSE)","v":59.191000000000003},{"$f":"VLOOKUP($A74,F1__World_Data!$A$4:$DP$191,91,FALSE)","v":60.015999999999998},{"$f":"VLOOKUP($A74,F1__World_Data!$A$4:$DP$191,90,FALSE)","v":60.651000000000003},{"$f":"VLOOKUP($A74,F1__World_Data!$A$4:$DP$191,89,FALSE)","v":61.058999999999997},{"$f":"VLOOKUP($A74,F1__World_Data!$A$4:$DP$191,88,FALSE)","v":61.226999999999997},{"$f":"VLOOKUP($A74,F1__World_Data!$A$4:$DP$191,87,FALSE)","v":61.167000000000002},{"$f":"VLOOKUP($A74,F1__World_Data!$A$4:$DP$191,86,FALSE)","v":60.915999999999997},{"$f":"VLOOKUP($A74,F1__World_Data!$A$4:$DP$191,85,FALSE)","v":60.542999999999999},{"$f":"VLOOKUP($A74,F1__World_Data!$A$4:$DP$191,84,FALSE)","v":60.109000000000002},{"$f":"VLOOKUP($A74,F1__World_Data!$A$4:$DP$191,83,FALSE)","v":59.646999999999998},{"$f":"VLOOKUP($A74,F1__World_Data!$A$4:$DP$191,82,FALSE)","v":59.173999999999999},{"$f":"VLOOKUP($A74,F1__World_Data!$A$4:$DP$191,81,FALSE)","v":58.692},{"$f":"VLOOKUP($A74,F1__World_Data!$A$4:$DP$191,80,FALSE)","v":58.186},{"$f":"VLOOKUP($A74,F1__World_Data!$A$4:$DP$191,79,FALSE)","v":57.649000000000001},{"$f":"VLOOKUP($A74,F1__World_Data!$A$4:$DP$191,78,FALSE)","v":57.091000000000001},{"$f":"VLOOKUP($A74,F1__World_Data!$A$4:$DP$191,77,FALSE)","v":56.524000000000001},{"$f":"VLOOKUP($A74,F1__World_Data!$A$4:$DP$191,76,FALSE)","v":55.957000000000001},{"$f":"VLOOKUP($A74,F1__World_Data!$A$4:$DP$191,75,FALSE)","v":55.398000000000003},{"$f":"VLOOKUP($A74,F1__World_Data!$A$4:$DP$191,74,FALSE)","v":54.853000000000002},{"$f":"VLOOKUP($A74,F1__World_Data!$A$4:$DP$191,73,FALSE)","v":54.326999999999998},{"$f":"VLOOKUP($A74,F1__World_Data!$A$4:$DP$191,72,FALSE)","v":53.823999999999998},{"$f":"VLOOKUP($A74,F1__World_Data!$A$4:$DP$191,71,FALSE)","v":53.345999999999997},{"$f":"VLOOKUP($A74,F1__World_Data!$A$4:$DP$191,70,FALSE)","v":52.884999999999998},{"$f":"VLOOKUP($A74,F1__World_Data!$A$4:$DP$191,69,FALSE)","v":52.435000000000002},{"$f":"VLOOKUP($A74,F1__World_Data!$A$4:$DP$191,68,FALSE)","v":51.991},{"$f":"VLOOKUP($A74,F1__World_Data!$A$4:$DP$191,67,FALSE)","v":51.546999999999997},{"$f":"VLOOKUP($A74,F1__World_Data!$A$4:$DP$191,66,FALSE)","v":51.098999999999997},{"$f":"VLOOKUP($A74,F1__World_Data!$A$4:$DP$191,65,FALSE)","v":50.640999999999998},{"$f":"VLOOKUP($A74,F1__World_Data!$A$4:$DP$191,64,FALSE)","v":50.170999999999999},{"$f":"VLOOKUP($A74,F1__World_Data!$A$4:$DP$191,63,FALSE)","v":49.683999999999997},{"$f":"VLOOKUP($A74,F1__World_Data!$A$4:$DP$191,62,FALSE)","v":49.179000000000002}]
["Haiti",{"$f":"VLOOKUP($A75,F1__World_Data!$A$4:$DP$191,60,FALSE)","v":11123.183000000001},{"$f":"VLOOKUP($A75,F1__World_Data!$A$4:$DP$191,59,FALSE)","v":10982.367},{"$f":"VLOOKUP($A75,F1__World_Data!$A$4:$DP$191,58,FALSE)","v":10839.976000000001},{"$f":"VLOOKUP($A75,F1__World_Data!$A$4:$DP$191,57,FALSE)","v":10695.54},{"$f":"VLOOKUP($A75,F1__World_Data!$A$4:$DP$191,56,FALSE)","v":10549.007},{"$f":"VLOOKUP($A75,F1__World_Data!$A$4:$DP$191,55,FALSE)","v":10400.672},{"$f":"VLOOKUP($A75,F1__World_Data!$A$4:$DP$191,54,FALSE)","v":10250.922},{"$f":"VLOOKUP($A75,F1__World_Data!$A$4:$DP$191,53,FALSE)","v":10100.32},{"$f":"VLOOKUP($A75,F1__World_Data!$A$4:$DP$191,52,FALSE)","v":9949.3179999999993},{"$f":"VLOOKUP($A75,F1__World_Data!$A$4:$DP$191,51,FALSE)","v":9798.0460000000003},{"$f":"VLOOKUP($A75,F1__World_Data!$A$4:$DP$191,50,FALSE)","v":9646.57},{"$f":"VLOOKUP($A75,F1__World_Data!$A$4:$DP$191,49,FALSE)","v":9495.3359999999993},{"$f":"VLOOKUP($A75,F1__World_Data!$A$4:$DP$191,48,FALSE)","v":9344.7839999999997},{"$f":"VLOOKUP($A75,F1__World_Data!$A$4:$DP$191,47,FALSE)","v":9195.2890000000007},{"$f":"VLOOKUP($A75,F1__World_Data!$A$4:$DP$191,46,FALSE)","v":9047.0820000000003},{"$f":"VLOOKUP($A75,F1__World_Data!$A$4:$DP$191,45,FALSE)","v":8900.1080000000002},{"$f":"VLOOKUP($A75,F1__World_Data!$A$4:$DP$191,44,FALSE)","v":8754.1479999999992},{"$f":"VLOOKUP($A75,F1__World_Data!$A$4:$DP$191,43,FALSE)","v":8608.81},{"$f":"VLOOKUP($A75,F1__World_Data!$A$4:$DP$191,42,FALSE)","v":8463.8019999999997},{"$f":"VLOOKUP($A75,F1__World_Data!$A$4:$DP$191,41,FALSE)","v":8319.07},{"$f":"VLOOKUP($A75,F1__World_Data!$A$4:$DP$191,40,FALSE)","v":8174.68},{"$f":"VLOOKUP($A75,F1__World_Data!$A$4:$DP$191,39,FALSE)","v":8030.7209999999995},{"$f":"VLOOKUP($A75,F1__World_Data!$A$4:$DP$191,38,FALSE)","v":7887.3119999999999},{"$f":"VLOOKUP($A75,F1__World_Data!$A$4:$DP$191,37,FALSE)","v":7744.509},{"$f":"VLOOKUP($A75,F1__World_Data!$A$4:$DP$191,36,FALSE)","v":7602.3180000000002},{"$f":"VLOOKUP($A75,F1__World_Data!$A$4:$DP$191,35,FALSE)","v":7460.6840000000002},{"$f":"VLOOKUP($A75,F1__World_Data!$A$4:$DP$191,34,FALSE)","v":7319.491},{"$f":"VLOOKUP($A75,F1__World_Data!$A$4:$DP$191,33,FALSE)","v":7178.6109999999999},{"$f":"VLOOKUP($A75,F1__World_Data!$A$4:$DP$191,32,FALSE)","v":7037.915},{"$f":"VLOOKUP($A75,F1__World_Data!$A$4:$DP$191,31,FALSE)","v":6897.7550000000001},{"$f":"VLOOKUP($A75,F1__World_Data!$A$4:$DP$191,30,FALSE)","v":6758.2219999999998},{"$f":"VLOOKUP($A75,F1__World_Data!$A$4:$DP$191,29,FALSE)","v":6618.7420000000002},{"$f":"VLOOKUP($A75,F1__World_Data!$A$4:$DP$191,28,FALSE)","v":6478.5370000000003},{"$f":"VLOOKUP($A75,F1__World_Data!$A$4:$DP$191,27,FALSE)","v":6337.2749999999996},{"$f":"VLOOKUP($A75,F1__World_Data!$A$4:$DP$191,26,FALSE)","v":6194.6859999999997},{"$f":"VLOOKUP($A75,F1__World_Data!$A$4:$DP$191,25,FALSE)","v":6051.6170000000002},{"$f":"VLOOKUP($A75,F1__World_Data!$A$4:$DP$191,24,FALSE)","v":5910.223},{"$f":"VLOOKUP($A75,F1__World_Data!$A$4:$DP$191,23,FALSE)","v":5773.3670000000002},{"$f":"VLOOKUP($A75,F1__World_Data!$A$4:$DP$191,22,FALSE)","v":5643.1750000000002},{"$f":"VLOOKUP($A75,F1__World_Data!$A$4:$DP$191,21,FALSE)","v":5520.1869999999999},{"$f":"VLOOKUP($A75,F1__World_Data!$A$4:$DP$191,20,FALSE)","v":5404.02},{"$f":"VLOOKUP($A75,F1__World_Data!$A$4:$DP$191,19,FALSE)","v":5294.625},{"$f":"VLOOKUP($A75,F1__World_Data!$A$4:$DP$191,18,FALSE)","v":5191.6369999999997},{"$f":"VLOOKUP($A75,F1__World_Data!$A$4:$DP$191,17,FALSE)","v":5094.57},{"$f":"VLOOKUP($A75,F1__World_Data!$A$4:$DP$191,16,FALSE)","v":5003.7079999999996},{"$f":"VLOOKUP($A75,F1__World_Data!$A$4:$DP$191,15,FALSE)","v":4918.625},{"$f":"VLOOKUP($A75,F1__World_Data!$A$4:$DP$191,14,FALSE)","v":4837.3339999999998},{"$f":"VLOOKUP($A75,F1__World_Data!$A$4:$DP$191,13,FALSE)","v":4757.1750000000002},{"$f":"VLOOKUP($A75,F1__World_Data!$A$4:$DP$191,12,FALSE)","v":4676.2370000000001},{"$f":"VLOOKUP($A75,F1__World_Data!$A$4:$DP$191,11,FALSE)","v":4593.6660000000002},{"$f":"VLOOKUP($A75,F1__World_Data!$A$4:$DP$191,10,FALSE)","v":4509.8109999999997},{"$f":"VLOOKUP($A75,F1__World_Data!$A$4:$DP$191,9,FALSE)","v":4425.3180000000002},{"$f":"VLOOKUP($A75,F1__World_Data!$A$4:$DP$191,8,FALSE)","v":4341.3249999999998},{"$f":"VLOOKUP($A75,F1__World_Data!$A$4:$DP$191,7,FALSE)","v":4258.7340000000004},{"$f":"VLOOKUP($A75,F1__World_Data!$A$4:$DP$191,6,FALSE)","v":4177.6310000000003},{"$f":"VLOOKUP($A75,F1__World_Data!$A$4:$DP$191,5,FALSE)","v":4097.7550000000001},{"$f":"VLOOKUP($A75,F1__World_Data!$A$4:$DP$191,4,FALSE)","v":4019.1709999999998},{"$f":"VLOOKUP($A75,F1__World_Data!$A$4:$DP$191,3,FALSE)","v":3941.9560000000001},{"$f":"VLOOKUP($A75,F1__World_Data!$A$4:$DP$191,2,FALSE)","v":3866.1619999999998},null,{"$f":"VLOOKUP($A75,F1__World_Data!$A$4:$DP$191,120,FALSE)","v":69.774000000000001},{"$f":"VLOOKUP($A75,F1__World_Data!$A$4:$DP$191,119,FALSE)","v":69.623999999999995},{"$f":"VLOOKUP($A75,F1__World_Data!$A$4:$DP$191,118,FALSE)","v":69.453999999999994},{"$f":"VLOOKUP($A75,F1__World_Data!$A$4:$DP$191,117,FALSE)","v":69.262},{"$f":"VLOOKUP($A75,F1__World_Data!$A$4:$DP$191,116,FALSE)","v":69.049000000000007},{"$f":"VLOOKUP($A75,F1__World_Data!$A$4:$DP$191,115,FALSE)","v":68.819000000000003},{"$f":"VLOOKUP($A75,F1__World_Data!$A$4:$DP$191,114,FALSE)","v":68.575000000000003},{"$f":"VLOOKUP($A75,F1__World_Data!$A$4:$DP$191,113,FALSE)","v":68.320999999999998},{"$f":"VLOOKUP($A75,F1__World_Data!$A$4:$DP$191,112,FALSE)","v":68.058999999999997},{"$f":"VLOOKUP($A75,F1__World_Data!$A$4:$DP$191,111,FALSE)","v":67.792000000000002},{"$f":"VLOOKUP($A75,F1__World_Data!$A$4:$DP$191,110,FALSE)","v":67.521000000000001},{"$f":"VLOOKUP($A75,F1__World_Data!$A$4:$DP$191,109,FALSE)","v":67.247},{"$f":"VLOOKUP($A75,F1__World_Data!$A$4:$DP$191,108,FALSE)","v":66.971999999999994},{"$f":"VLOOKUP($A75,F1__World_Data!$A$4:$DP$191,107,FALSE)","v":66.694000000000003},{"$f":"VLOOKUP($A75,F1__World_Data!$A$4:$DP$191,106,FALSE)","v":66.412000000000006},{"$f":"VLOOKUP($A75,F1__World_Data!$A$4:$DP$191,105,FALSE)","v":66.122},{"$f":"VLOOKUP($A75,F1__World_Data!$A$4:$DP$191,104,FALSE)","v":65.828000000000003},{"$f":"VLOOKUP($A75,F1__World_Data!$A$4:$DP$191,103,FALSE)","v":65.531999999999996},{"$f":"VLOOKUP($A75,F1__World_Data!$A$4:$DP$191,102,FALSE)","v":65.242000000000004},{"$f":"VLOOKUP($A75,F1__World_Data!$A$4:$DP$191,101,FALSE)","v":64.963999999999999},{"$f":"VLOOKUP($A75,F1__World_Data!$A$4:$DP$191,100,FALSE)","v":64.704999999999998},{"$f":"VLOOKUP($A75,F1__World_Data!$A$4:$DP$191,99,FALSE)","v":64.468000000000004},{"$f":"VLOOKUP($A75,F1__World_Data!$A$4:$DP$191,98,FALSE)","v":64.254999999999995},{"$f":"VLOOKUP($A75,F1__World_Data!$A$4:$DP$191,97,FALSE)","v":64.063999999999993},{"$f":"VLOOKUP($A75,F1__World_Data!$A$4:$DP$191,96,FALSE)","v":63.890999999999998},{"$f":"VLOOKUP($A75,F1__World_Data!$A$4:$DP$191,95,FALSE)","v":63.73},{"$f":"VLOOKUP($A75,F1__World_Data!$A$4:$DP$191,94,FALSE)","v":63.576000000000001},{"$f":"VLOOKUP($A75,F1__World_Data!$A$4:$DP$191,93,FALSE)","v":63.427},{"$f":"VLOOKUP($A75,F1__World_Data!$A$4:$DP$191,92,FALSE)","v":63.286999999999999},{"$f":"VLOOKUP($A75,F1__World_Data!$A$4:$DP$191,91,FALSE)","v":63.158999999999999},{"$f":"VLOOKUP($A75,F1__World_Data!$A$4:$DP$191,90,FALSE)","v":63.045999999999999},{"$f":"VLOOKUP($A75,F1__World_Data!$A$4:$DP$191,89,FALSE)","v":62.95},{"$f":"VLOOKUP($A75,F1__World_Data!$A$4:$DP$191,88,FALSE)","v":62.869},{"$f":"VLOOKUP($A75,F1__World_Data!$A$4:$DP$191,87,FALSE)","v":62.801000000000002},{"$f":"VLOOKUP($A75,F1__World_Data!$A$4:$DP$191,86,FALSE)","v":62.741},{"$f":"VLOOKUP($A75,F1__World_Data!$A$4:$DP$191,85,FALSE)","v":62.683999999999997},{"$f":"VLOOKUP($A75,F1__World_Data!$A$4:$DP$191,84,FALSE)","v":62.625999999999998},{"$f":"VLOOKUP($A75,F1__World_Data!$A$4:$DP$191,83,FALSE)","v":62.564999999999998},{"$f":"VLOOKUP($A75,F1__World_Data!$A$4:$DP$191,82,FALSE)","v":62.497999999999998},{"$f":"VLOOKUP($A75,F1__World_Data!$A$4:$DP$191,81,FALSE)","v":62.427},{"$f":"VLOOKUP($A75,F1__World_Data!$A$4:$DP$191,80,FALSE)","v":62.354999999999997},{"$f":"VLOOKUP($A75,F1__World_Data!$A$4:$DP$191,79,FALSE)","v":62.283000000000001},{"$f":"VLOOKUP($A75,F1__World_Data!$A$4:$DP$191,78,FALSE)","v":62.210999999999999},{"$f":"VLOOKUP($A75,F1__World_Data!$A$4:$DP$191,77,FALSE)","v":62.14},{"$f":"VLOOKUP($A75,F1__World_Data!$A$4:$DP$191,76,FALSE)","v":62.072000000000003},{"$f":"VLOOKUP($A75,F1__World_Data!$A$4:$DP$191,75,FALSE)","v":62.005000000000003},{"$f":"VLOOKUP($A75,F1__World_Data!$A$4:$DP$191,74,FALSE)","v":61.938000000000002},{"$f":"VLOOKUP($A75,F1__World_Data!$A$4:$DP$191,73,FALSE)","v":61.868000000000002},{"$f":"VLOOKUP($A75,F1__World_Data!$A$4:$DP$191,72,FALSE)","v":61.789000000000001},{"$f":"VLOOKUP($A75,F1__World_Data!$A$4:$DP$191,71,FALSE)","v":61.697000000000003},{"$f":"VLOOKUP($A75,F1__World_Data!$A$4:$DP$191,70,FALSE)","v":61.588000000000001},{"$f":"VLOOKUP($A75,F1__World_Data!$A$4:$DP$191,69,FALSE)","v":61.462000000000003},{"$f":"VLOOKUP($A75,F1__World_Data!$A$4:$DP$191,68,FALSE)","v":61.317},{"$f":"VLOOKUP($A75,F1__World_Data!$A$4:$DP$191,67,FALSE)","v":61.156999999999996},{"$f":"VLOOKUP($A75,F1__World_Data!$A$4:$DP$191,66,FALSE)","v":60.984000000000002},{"$f":"VLOOKUP($A75,F1__World_Data!$A$4:$DP$191,65,FALSE)","v":60.805},{"$f":"VLOOKUP($A75,F1__World_Data!$A$4:$DP$191,64,FALSE)","v":60.622999999999998},{"$f":"VLOOKUP($A75,F1__World_Data!$A$4:$DP$191,63,FALSE)","v":60.441000000000003},{"$f":"VLOOKUP($A75,F1__World_Data!$A$4:$DP$191,62,FALSE)","v":60.26}]
["South Sudan",{"$f":"VLOOKUP($A76,F1__World_Data!$A$4:$DP$191,60,FALSE)","v":10975.924000000001},{"$f":"VLOOKUP($A76,F1__World_Data!$A$4:$DP$191,59,FALSE)","v":10910.773999999999},{"$f":"VLOOKUP($A76,F1__World_Data!$A$4:$DP$191,58,FALSE)","v":10832.52},{"$f":"VLOOKUP($A76,F1__World_Data!$A$4:$DP$191,57,FALSE)","v":10715.656999999999},{"$f":"VLOOKUP($A76,F1__World_Data!$A$4:$DP$191,56,FALSE)","v":10554.882},{"$f":"VLOOKUP($A76,F1__World_Data!$A$4:$DP$191,55,FALSE)","v":10355.030000000001},{"$f":"VLOOKUP($A76,F1__World_Data!$A$4:$DP$191,54,FALSE)","v":10113.647999999999},{"$f":"VLOOKUP($A76,F1__World_Data!$A$4:$DP$191,53,FALSE)","v":9830.6949999999997},{"$f":"VLOOKUP($A76,F1__World_Data!$A$4:$DP$191,52,FALSE)","v":9508.3719999999994},{"$f":"VLOOKUP($A76,F1__World_Data!$A$4:$DP$191,51,FALSE)","v":9142.2579999999998},{"$f":"VLOOKUP($A76,F1__World_Data!$A$4:$DP$191,50,FALSE)","v":8736.9320000000007},{"$f":"VLOOKUP($A76,F1__World_Data!$A$4:$DP$191,49,FALSE)","v":8315.1440000000002},{"$f":"VLOOKUP($A76,F1__World_Data!$A$4:$DP$191,48,FALSE)","v":7907.4070000000002},{"$f":"VLOOKUP($A76,F1__World_Data!$A$4:$DP$191,47,FALSE)","v":7535.9309999999996},{"$f":"VLOOKUP($A76,F1__World_Data!$A$4:$DP$191,46,FALSE)","v":7213.3540000000003},{"$f":"VLOOKUP($A76,F1__World_Data!$A$4:$DP$191,45,FALSE)","v":6935.665},{"$f":"VLOOKUP($A76,F1__World_Data!$A$4:$DP$191,44,FALSE)","v":6688.2250000000004},{"$f":"VLOOKUP($A76,F1__World_Data!$A$4:$DP$191,43,FALSE)","v":6447.7910000000002},{"$f":"VLOOKUP($A76,F1__World_Data!$A$4:$DP$191,42,FALSE)","v":6199.3959999999997},{"$f":"VLOOKUP($A76,F1__World_Data!$A$4:$DP$191,41,FALSE)","v":5933.884},{"$f":"VLOOKUP($A76,F1__World_Data!$A$4:$DP$191,40,FALSE)","v":5661.9340000000002},{"$f":"VLOOKUP($A76,F1__World_Data!$A$4:$DP$191,39,FALSE)","v":5411.6530000000002},{"$f":"VLOOKUP($A76,F1__World_Data!$A$4:$DP$191,38,FALSE)","v":5221.9250000000002},{"$f":"VLOOKUP($A76,F1__World_Data!$A$4:$DP$191,37,FALSE)","v":5118.0839999999998},{"$f":"VLOOKUP($A76,F1__World_Data!$A$4:$DP$191,36,FALSE)","v":5111.3710000000001},{"$f":"VLOOKUP($A76,F1__World_Data!$A$4:$DP$191,35,FALSE)","v":5185.7120000000004},{"$f":"VLOOKUP($A76,F1__World_Data!$A$4:$DP$191,34,FALSE)","v":5305.4489999999996},{"$f":"VLOOKUP($A76,F1__World_Data!$A$4:$DP$191,33,FALSE)","v":5420.1790000000001},{"$f":"VLOOKUP($A76,F1__World_Data!$A$4:$DP$191,32,FALSE)","v":5492.62},{"$f":"VLOOKUP($A76,F1__World_Data!$A$4:$DP$191,31,FALSE)","v":5511.5820000000003},{"$f":"VLOOKUP($A76,F1__World_Data!$A$4:$DP$191,30,FALSE)","v":5485.2879999999996},{"$f":"VLOOKUP($A76,F1__World_Data!$A$4:$DP$191,29,FALSE)","v":5419.808},{"$f":"VLOOKUP($A76,F1__World_Data!$A$4:$DP$191,28,FALSE)","v":5328.1670000000004},{"$f":"VLOOKUP($A76,F1__World_Data!$A$4:$DP$191,27,FALSE)","v":5220.7479999999996},{"$f":"VLOOKUP($A76,F1__World_Data!$A$4:$DP$191,26,FALSE)","v":5096.4780000000001},{"$f":"VLOOKUP($A76,F1__World_Data!$A$4:$DP$191,25,FALSE)","v":4953.1540000000005},{"$f":"VLOOKUP($A76,F1__World_Data!$A$4:$DP$191,24,FALSE)","v":4799.4350000000004},{"$f":"VLOOKUP($A76,F1__World_Data!$A$4:$DP$191,23,FALSE)","v":4646.4780000000001},{"$f":"VLOOKUP($A76,F1__World_Data!$A$4:$DP$191,22,FALSE)","v":4502.6030000000001},{"$f":"VLOOKUP($A76,F1__World_Data!$A$4:$DP$191,21,FALSE)","v":4371.7110000000002},{"$f":"VLOOKUP($A76,F1__World_Data!$A$4:$DP$191,20,FALSE)","v":4253.085},{"$f":"VLOOKUP($A76,F1__World_Data!$A$4:$DP$191,19,FALSE)","v":4144.5519999999997},{"$f":"VLOOKUP($A76,F1__World_Data!$A$4:$DP$191,18,FALSE)","v":4041.7919999999999},{"$f":"VLOOKUP($A76,F1__World_Data!$A$4:$DP$191,17,FALSE)","v":3941.6129999999998},{"$f":"VLOOKUP($A76,F1__World_Data!$A$4:$DP$191,16,FALSE)","v":3844.0940000000001},{"$f":"VLOOKUP($A76,F1__World_Data!$A$4:$DP$191,15,FALSE)","v":3750.78},{"$f":"VLOOKUP($A76,F1__World_Data!$A$4:$DP$191,14,FALSE)","v":3661.442},{"$f":"VLOOKUP($A76,F1__World_Data!$A$4:$DP$191,13,FALSE)","v":3575.8960000000002},{"$f":"VLOOKUP($A76,F1__World_Data!$A$4:$DP$191,12,FALSE)","v":3494.011},{"$f":"VLOOKUP($A76,F1__World_Data!$A$4:$DP$191,11,FALSE)","v":3415.5720000000001},{"$f":"VLOOKUP($A76,F1__World_Data!$A$4:$DP$191,10,FALSE)","v":3340.4259999999999},{"$f":"VLOOKUP($A76,F1__World_Data!$A$4:$DP$191,9,FALSE)","v":3268.3919999999998},{"$f":"VLOOKUP($A76,F1__World_Data!$A$4:$DP$191,8,FALSE)","v":3199.348},{"$f":"VLOOKUP($A76,F1__World_Data!$A$4:$DP$191,7,FALSE)","v":3133.1550000000002},{"$f":"VLOOKUP($A76,F1__World_Data!$A$4:$DP$191,6,FALSE)","v":3069.7350000000001},{"$f":"VLOOKUP($A76,F1__World_Data!$A$4:$DP$191,5,FALSE)","v":3009.0610000000001},{"$f":"VLOOKUP($A76,F1__World_Data!$A$4:$DP$191,4,FALSE)","v":2951.0410000000002},{"$f":"VLOOKUP($A76,F1__World_Data!$A$4:$DP$191,3,FALSE)","v":2895.6089999999999},{"$f":"VLOOKUP($A76,F1__World_Data!$A$4:$DP$191,2,FALSE)","v":2842.7179999999998},null,{"$f":"VLOOKUP($A76,F1__World_Data!$A$4:$DP$191,120,FALSE)","v":68.116},{"$f":"VLOOKUP($A76,F1__World_Data!$A$4:$DP$191,119,FALSE)","v":67.850999999999999},{"$f":"VLOOKUP($A76,F1__World_Data!$A$4:$DP$191,118,FALSE)","v":67.576999999999998},{"$f":"VLOOKUP($A76,F1__World_Data!$A$4:$DP$191,117,FALSE)","v":67.290999999999997},{"$f":"VLOOKUP($A76,F1__World_Data!$A$4:$DP$191,116,FALSE)","v":66.995000000000005},{"$f":"VLOOKUP($A76,F1__World_Data!$A$4:$DP$191,115,FALSE)","v":66.69},{"$f":"VLOOKUP($A76,F1__World_Data!$A$4:$DP$191,114,FALSE)","v":66.381},{"$f":"VLOOKUP($A76,F1__World_Data!$A$4:$DP$191,113,FALSE)","v":66.072000000000003},{"$f":"VLOOKUP($A76,F1__World_Data!$A$4:$DP$191,112,FALSE)","v":65.769000000000005},{"$f":"VLOOKUP($A76,F1__World_Data!$A$4:$DP$191,111,FALSE)","v":65.48},{"$f":"VLOOKUP($A76,F1__World_Data!$A$4:$DP$191,110,FALSE)","v":65.207999999999998},{"$f":"VLOOKUP($A76,F1__World_Data!$A$4:$DP$191,109,FALSE)","v":64.953000000000003},{"$f":"VLOOKUP($A76,F1__World_Data!$A$4:$DP$191,108,FALSE)","v":64.712000000000003},{"$f":"VLOOKUP($A76,F1__World_Data!$A$4:$DP$191,107,FALSE)","v":64.477999999999994},{"$f":"VLOOKUP($A76,F1__World_Data!$A$4:$DP$191,106,FALSE)","v":64.242000000000004},{"$f":"VLOOKUP($A76,F1__World_Data!$A$4:$DP$191,105,FALSE)","v":63.994999999999997},{"$f":"VLOOKUP($A76,F1__World_Data!$A$4:$DP$191,104,FALSE)","v":63.731000000000002},{"$f":"VLOOKUP($A76,F1__World_Data!$A$4:$DP$191,103,FALSE)","v":63.445999999999998},{"$f":"VLOOKUP($A76,F1__World_Data!$A$4:$DP$191,102,FALSE)","v":63.143999999999998},{"$f":"VLOOKUP($A76,F1__World_Data!$A$4:$DP$191,101,FALSE)","v":62.829000000000001},{"$f":"VLOOKUP($A76,F1__World_Data!$A$4:$DP$191,100,FALSE)","v":62.509},{"$f":"VLOOKUP($A76,F1__World_Data!$A$4:$DP$191,99,FALSE)","v":62.188000000000002},{"$f":"VLOOKUP($A76,F1__World_Data!$A$4:$DP$191,98,FALSE)","v":61.866},{"$f":"VLOOKUP($A76,F1__World_Data!$A$4:$DP$191,97,FALSE)","v":61.539000000000001},{"$f":"VLOOKUP($A76,F1__World_Data!$A$4:$DP$191,96,FALSE)","v":61.198},{"$f":"VLOOKUP($A76,F1__World_Data!$A$4:$DP$191,95,FALSE)","v":60.837000000000003},{"$f":"VLOOKUP($A76,F1__World_Data!$A$4:$DP$191,94,FALSE)","v":60.454999999999998},{"$f":"VLOOKUP($A76,F1__World_Data!$A$4:$DP$191,93,FALSE)","v":60.052999999999997},{"$f":"VLOOKUP($A76,F1__World_Data!$A$4:$DP$191,92,FALSE)","v":59.636000000000003},{"$f":"VLOOKUP($A76,F1__World_Data!$A$4:$DP$191,91,FALSE)","v":59.209000000000003},{"$f":"VLOOKUP($A76,F1__World_Data!$A$4:$DP$191,90,FALSE)","v":58.783000000000001},{"$f":"VLOOKUP($A76,F1__World_Data!$A$4:$DP$191,89,FALSE)","v":58.366},{"$f":"VLOOKUP($A76,F1__World_Data!$A$4:$DP$191,88,FALSE)","v":57.962000000000003},{"$f":"VLOOKUP($A76,F1__World_Data!$A$4:$DP$191,87,FALSE)","v":57.579000000000001},{"$f":"VLOOKUP($A76,F1__World_Data!$A$4:$DP$191,86,FALSE)","v":57.220999999999997},{"$f":"VLOOKUP($A76,F1__World_Data!$A$4:$DP$191,85,FALSE)","v":56.886000000000003},{"$f":"VLOOKUP($A76,F1__World_Data!$A$4:$DP$191,84,FALSE)","v":56.569000000000003},{"$f":"VLOOKUP($A76,F1__World_Data!$A$4:$DP$191,83,FALSE)","v":56.265999999999998},{"$f":"VLOOKUP($A76,F1__World_Data!$A$4:$DP$191,82,FALSE)","v":55.970999999999997},{"$f":"VLOOKUP($A76,F1__World_Data!$A$4:$DP$191,81,FALSE)","v":55.679000000000002},{"$f":"VLOOKUP($A76,F1__World_Data!$A$4:$DP$191,80,FALSE)","v":55.381999999999998},{"$f":"VLOOKUP($A76,F1__World_Data!$A$4:$DP$191,79,FALSE)","v":55.073999999999998},{"$f":"VLOOKUP($A76,F1__World_Data!$A$4:$DP$191,78,FALSE)","v":54.747999999999998},{"$f":"VLOOKUP($A76,F1__World_Data!$A$4:$DP$191,77,FALSE)","v":54.399000000000001},{"$f":"VLOOKUP($A76,F1__World_Data!$A$4:$DP$191,76,FALSE)","v":54.027000000000001},{"$f":"VLOOKUP($A76,F1__World_Data!$A$4:$DP$191,75,FALSE)","v":53.633000000000003},{"$f":"VLOOKUP($A76,F1__World_Data!$A$4:$DP$191,74,FALSE)","v":53.218000000000004},{"$f":"VLOOKUP($A76,F1__World_Data!$A$4:$DP$191,73,FALSE)","v":52.781999999999996},{"$f":"VLOOKUP($A76,F1__World_Data!$A$4:$DP$191,72,FALSE)","v":52.323},{"$f":"VLOOKUP($A76,F1__World_Data!$A$4:$DP$191,71,FALSE)","v":51.837000000000003},{"$f":"VLOOKUP($A76,F1__World_Data!$A$4:$DP$191,70,FALSE)","v":51.326999999999998},{"$f":"VLOOKUP($A76,F1__World_Data!$A$4:$DP$191,69,FALSE)","v":50.795999999999999},{"$f":"VLOOKUP($A76,F1__World_Data!$A$4:$DP$191,68,FALSE)","v":50.25},{"$f":"VLOOKUP($A76,F1__World_Data!$A$4:$DP$191,67,FALSE)","v":49.697000000000003},{"$f":"VLOOKUP($A76,F1__World_Data!$A$4:$DP$191,66,FALSE)","v":49.145000000000003},{"$f":"VLOOKUP($A76,F1__World_Data!$A$4:$DP$191,65,FALSE)","v":48.600999999999999},{"$f":"VLOOKUP($A76,F1__World_Data!$A$4:$DP$191,64,FALSE)","v":48.070999999999998},{"$f":"VLOOKUP($A76,F1__World_Data!$A$4:$DP$191,63,FALSE)","v":47.557000000000002},{"$f":"VLOOKUP($A76,F1__World_Data!$A$4:$DP$191,62,FALSE)","v":47.061}]
["Melanesia",{"$f":"VLOOKUP($A77,F1__World_Data!$A$4:$DP$191,60,FALSE)","v":10715.331},{"$f":"VLOOKUP($A77,F1__World_Data!$A$4:$DP$191,59,FALSE)","v":10514.186},{"$f":"VLOOKUP($A77,F1__World_Data!$A$4:$DP$191,58,FALSE)","v":10316.126},{"$f":"VLOOKUP($A77,F1__World_Data!$A$4:$DP$191,57,FALSE)","v":10121.727000000001},{"$f":"VLOOKUP($A77,F1__World_Data!$A$4:$DP$191,56,FALSE)","v":9931.8790000000008},{"$f":"VLOOKUP($A77,F1__World_Data!$A$4:$DP$191,55,FALSE)","v":9746.1949999999997},{"$f":"VLOOKUP($A77,F1__World_Data!$A$4:$DP$191,54,FALSE)","v":9562.2960000000003},{"$f":"VLOOKUP($A77,F1__World_Data!$A$4:$DP$191,53,FALSE)","v":9376.893},{"$f":"VLOOKUP($A77,F1__World_Data!$A$4:$DP$191,52,FALSE)","v":9187.9339999999993},{"$f":"VLOOKUP($A77,F1__World_Data!$A$4:$DP$191,51,FALSE)","v":8993.9179999999997},{"$f":"VLOOKUP($A77,F1__World_Data!$A$4:$DP$191,50,FALSE)","v":8796.3179999999993},{"$f":"VLOOKUP($A77,F1__World_Data!$A$4:$DP$191,49,FALSE)","v":8599.6170000000002},{"$f":"VLOOKUP($A77,F1__World_Data!$A$4:$DP$191,48,FALSE)","v":8410.1489999999994},{"$f":"VLOOKUP($A77,F1__World_Data!$A$4:$DP$191,47,FALSE)","v":8232.1489999999994},{"$f":"VLOOKUP($A77,F1__World_Data!$A$4:$DP$191,46,FALSE)","v":8067.6639999999998},{"$f":"VLOOKUP($A77,F1__World_Data!$A$4:$DP$191,45,FALSE)","v":7914.683},{"$f":"VLOOKUP($A77,F1__World_Data!$A$4:$DP$191,44,FALSE)","v":7768.7209999999995},{"$f":"VLOOKUP($A77,F1__World_Data!$A$4:$DP$191,43,FALSE)","v":7623.2070000000003},{"$f":"VLOOKUP($A77,F1__World_Data!$A$4:$DP$191,42,FALSE)","v":7473.4930000000004},{"$f":"VLOOKUP($A77,F1__World_Data!$A$4:$DP$191,41,FALSE)","v":7318.1009999999997},{"$f":"VLOOKUP($A77,F1__World_Data!$A$4:$DP$191,40,FALSE)","v":7158.6689999999999},{"$f":"VLOOKUP($A77,F1__World_Data!$A$4:$DP$191,39,FALSE)","v":6997.4690000000001},{"$f":"VLOOKUP($A77,F1__World_Data!$A$4:$DP$191,38,FALSE)","v":6838.1220000000003},{"$f":"VLOOKUP($A77,F1__World_Data!$A$4:$DP$191,37,FALSE)","v":6683.2240000000002},{"$f":"VLOOKUP($A77,F1__World_Data!$A$4:$DP$191,36,FALSE)","v":6533.0379999999996},{"$f":"VLOOKUP($A77,F1__World_Data!$A$4:$DP$191,35,FALSE)","v":6386.74},{"$f":"VLOOKUP($A77,F1__World_Data!$A$4:$DP$191,34,FALSE)","v":6244.625},{"$f":"VLOOKUP($A77,F1__World_Data!$A$4:$DP$191,33,FALSE)","v":6106.7759999999998},{"$f":"VLOOKUP($A77,F1__World_Data!$A$4:$DP$191,32,FALSE)","v":5973.1970000000001},{"$f":"VLOOKUP($A77,F1__World_Data!$A$4:$DP$191,31,FALSE)","v":5844.4530000000004},{"$f":"VLOOKUP($A77,F1__World_Data!$A$4:$DP$191,30,FALSE)","v":5720.1940000000004},{"$f":"VLOOKUP($A77,F1__World_Data!$A$4:$DP$191,29,FALSE)","v":5598.17},{"$f":"VLOOKUP($A77,F1__World_Data!$A$4:$DP$191,28,FALSE)","v":5475.3130000000001},{"$f":"VLOOKUP($A77,F1__World_Data!$A$4:$DP$191,27,FALSE)","v":5349.5529999999999},{"$f":"VLOOKUP($A77,F1__World_Data!$A$4:$DP$191,26,FALSE)","v":5219.9290000000001},{"$f":"VLOOKUP($A77,F1__World_Data!$A$4:$DP$191,25,FALSE)","v":5087.3909999999996},{"$f":"VLOOKUP($A77,F1__World_Data!$A$4:$DP$191,24,FALSE)","v":4954.1540000000005},{"$f":"VLOOKUP($A77,F1__World_Data!$A$4:$DP$191,23,FALSE)","v":4823.5029999999997},{"$f":"VLOOKUP($A77,F1__World_Data!$A$4:$DP$191,22,FALSE)","v":4697.8100000000004},{"$f":"VLOOKUP($A77,F1__World_Data!$A$4:$DP$191,21,FALSE)","v":4577.8310000000001},{"$f":"VLOOKUP($A77,F1__World_Data!$A$4:$DP$191,20,FALSE)","v":4462.9719999999998},{"$f":"VLOOKUP($A77,F1__World_Data!$A$4:$DP$191,19,FALSE)","v":4352.4889999999996},{"$f":"VLOOKUP($A77,F1__World_Data!$A$4:$DP$191,18,FALSE)","v":4245.1589999999997},{"$f":"VLOOKUP($A77,F1__World_Data!$A$4:$DP$191,17,FALSE)","v":4140.1030000000001},{"$f":"VLOOKUP($A77,F1__World_Data!$A$4:$DP$191,16,FALSE)","v":4037.1869999999999},{"$f":"VLOOKUP($A77,F1__World_Data!$A$4:$DP$191,15,FALSE)","v":3936.8249999999998},{"$f":"VLOOKUP($A77,F1__World_Data!$A$4:$DP$191,14,FALSE)","v":3839.317},{"$f":"VLOOKUP($A77,F1__World_Data!$A$4:$DP$191,13,FALSE)","v":3745.1419999999998},{"$f":"VLOOKUP($A77,F1__World_Data!$A$4:$DP$191,12,FALSE)","v":3654.63},{"$f":"VLOOKUP($A77,F1__World_Data!$A$4:$DP$191,11,FALSE)","v":3567.8910000000001},{"$f":"VLOOKUP($A77,F1__World_Data!$A$4:$DP$191,10,FALSE)","v":3484.7289999999998},{"$f":"VLOOKUP($A77,F1__World_Data!$A$4:$DP$191,9,FALSE)","v":3404.6889999999999},{"$f":"VLOOKUP($A77,F1__World_Data!$A$4:$DP$191,8,FALSE)","v":3327.1570000000002},{"$f":"VLOOKUP($A77,F1__World_Data!$A$4:$DP$191,7,FALSE)","v":3251.67},{"$f":"VLOOKUP($A77,F1__World_Data!$A$4:$DP$191,6,FALSE)","v":3178.212},{"$f":"VLOOKUP($A77,F1__World_Data!$A$4:$DP$191,5,FALSE)","v":3106.9290000000001},{"$f":"VLOOKUP($A77,F1__World_Data!$A$4:$DP$191,4,FALSE)","v":3038.069},{"$f":"VLOOKUP($A77,F1__World_Data!$A$4:$DP$191,3,FALSE)","v":2971.962},{"$f":"VLOOKUP($A77,F1__World_Data!$A$4:$DP$191,2,FALSE)","v":2908.933},null,{"$f":"VLOOKUP($A77,F1__World_Data!$A$4:$DP$191,120,FALSE)","v":68.116},{"$f":"VLOOKUP($A77,F1__World_Data!$A$4:$DP$191,119,FALSE)","v":67.850999999999999},{"$f":"VLOOKUP($A77,F1__World_Data!$A$4:$DP$191,118,FALSE)","v":67.576999999999998},{"$f":"VLOOKUP($A77,F1__World_Data!$A$4:$DP$191,117,FALSE)","v":67.290999999999997},{"$f":"VLOOKUP($A77,F1__World_Data!$A$4:$DP$191,116,FALSE)","v":66.995000000000005},{"$f":"VLOOKUP($A77,F1__World_Data!$A$4:$DP$191,115,FALSE)","v":66.69},{"$f":"VLOOKUP($A77,F1__World_Data!$A$4:$DP$191,114,FALSE)","v":66.381},{"$f":"VLOOKUP($A77,F1__World_Data!$A$4:$DP$191,113,FALSE)","v":66.072000000000003},{"$f":"VLOOKUP($A77,F1__World_Data!$A$4:$DP$191,112,FALSE)","v":65.769000000000005},{"$f":"VLOOKUP($A77,F1__World_Data!$A$4:$DP$191,111,FALSE)","v":65.48},{"$f":"VLOOKUP($A77,F1__World_Data!$A$4:$DP$191,110,FALSE)","v":65.207999999999998},{"$f":"VLOOKUP($A77,F1__World_Data!$A$4:$DP$191,109,FALSE)","v":64.953000000000003},{"$f":"VLOOKUP($A77,F1__World_Data!$A$4:$DP$191,108,FALSE)","v":64.712000000000003},{"$f":"VLOOKUP($A77,F1__World_Data!$A$4:$DP$191,107,FALSE)","v":64.477999999999994},{"$f":"VLOOKUP($A77,F1__World_Data!$A$4:$DP$191,106,FALSE)","v":64.242000000000004},{"$f":"VLOOKUP($A77,F1__World_Data!$A$4:$DP$191,105,FALSE)","v":63.994999999999997},{"$f":"VLOOKUP($A77,F1__World_Data!$A$4:$DP$191,104,FALSE)","v":63.731000000000002},{"$f":"VLOOKUP($A77,F1__World_Data!$A$4:$DP$191,103,FALSE)","v":63.445999999999998},{"$f":"VLOOKUP($A77,F1__World_Data!$A$4:$DP$191,102,FALSE)","v":63.143999999999998},{"$f":"VLOOKUP($A77,F1__World_Data!$A$4:$DP$191,101,FALSE)","v":62.829000000000001},{"$f":"VLOOKUP($A77,F1__World_Data!$A$4:$DP$191,100,FALSE)","v":62.509},{"$f":"VLOOKUP($A77,F1__World_Data!$A$4:$DP$191,99,FALSE)","v":62.188000000000002},{"$f":"VLOOKUP($A77,F1__World_Data!$A$4:$DP$191,98,FALSE)","v":61.866},{"$f":"VLOOKUP($A77,F1__World_Data!$A$4:$DP$191,97,FALSE)","v":61.539000000000001},{"$f":"VLOOKUP($A77,F1__World_Data!$A$4:$DP$191,96,FALSE)","v":61.198},{"$f":"VLOOKUP($A77,F1__World_Data!$A$4:$DP$191,95,FALSE)","v":60.837000000000003},{"$f":"VLOOKUP($A77,F1__World_Data!$A$4:$DP$191,94,FALSE)","v":60.454999999999998},{"$f":"VLOOKUP($A77,F1__World_Data!$A$4:$DP$191,93,FALSE)","v":60.052999999999997},{"$f":"VLOOKUP($A77,F1__World_Data!$A$4:$DP$191,92,FALSE)","v":59.636000000000003},{"$f":"VLOOKUP($A77,F1__World_Data!$A$4:$DP$191,91,FALSE)","v":59.209000000000003},{"$f":"VLOOKUP($A77,F1__World_Data!$A$4:$DP$191,90,FALSE)","v":58.783000000000001},{"$f":"VLOOKUP($A77,F1__World_Data!$A$4:$DP$191,89,FALSE)","v":58.366},{"$f":"VLOOKUP($A77,F1__World_Data!$A$4:$DP$191,88,FALSE)","v":57.962000000000003},{"$f":"VLOOKUP($A77,F1__World_Data!$A$4:$DP$191,87,FALSE)","v":57.579000000000001},{"$f":"VLOOKUP($A77,F1__World_Data!$A$4:$DP$191,86,FALSE)","v":57.220999999999997},{"$f":"VLOOKUP($A77,F1__World_Data!$A$4:$DP$191,85,FALSE)","v":56.886000000000003},{"$f":"VLOOKUP($A77,F1__World_Data!$A$4:$DP$191,84,FALSE)","v":56.569000000000003},{"$f":"VLOOKUP($A77,F1__World_Data!$A$4:$DP$191,83,FALSE)","v":56.265999999999998},{"$f":"VLOOKUP($A77,F1__World_Data!$A$4:$DP$191,82,FALSE)","v":55.970999999999997},{"$f":"VLOOKUP($A77,F1__World_Data!$A$4:$DP$191,81,FALSE)","v":55.679000000000002},{"$f":"VLOOKUP($A77,F1__World_Data!$A$4:$DP$191,80,FALSE)","v":55.381999999999998},{"$f":"VLOOKUP($A77,F1__World_Data!$A$4:$DP$191,79,FALSE)","v":55.073999999999998},{"$f":"VLOOKUP($A77,F1__World_Data!$A$4:$DP$191,78,FALSE)","v":54.747999999999998},{"$f":"VLOOKUP($A77,F1__World_Data!$A$4:$DP$191,77,FALSE)","v":54.399000000000001},{"$f":"VLOOKUP($A77,F1__World_Data!$A$4:$DP$191,76,FALSE)","v":54.027000000000001},{"$f":"VLOOKUP($A77,F1__World_Data!$A$4:$DP$191,75,FALSE)","v":53.633000000000003},{"$f":"VLOOKUP($A77,F1__World_Data!$A$4:$DP$191,74,FALSE)","v":53.218000000000004},{"$f":"VLOOKUP($A77,F1__World_Data!$A$4:$DP$191,73,FALSE)","v":52.781999999999996},{"$f":"VLOOKUP($A77,F1__World_Data!$A$4:$DP$191,72,FALSE)","v":52.323},{"$f":"VLOOKUP($A77,F1__World_Data!$A$4:$DP$191,71,FALSE)","v":51.837000000000003},{"$f":"VLOOKUP($A77,F1__World_Data!$A$4:$DP$191,70,FALSE)","v":51.326999999999998},{"$f":"VLOOKUP($A77,F1__World_Data!$A$4:$DP$191,69,FALSE)","v":50.795999999999999},{"$f":"VLOOKUP($A77,F1__World_Data!$A$4:$DP$191,68,FALSE)","v":50.25},{"$f":"VLOOKUP($A77,F1__World_Data!$A$4:$DP$191,67,FALSE)","v":49.697000000000003},{"$f":"VLOOKUP($A77,F1__World_Data!$A$4:$DP$191,66,FALSE)","v":49.145000000000003},{"$f":"VLOOKUP($A77,F1__World_Data!$A$4:$DP$191,65,FALSE)","v":48.600999999999999},{"$f":"VLOOKUP($A77,F1__World_Data!$A$4:$DP$191,64,FALSE)","v":48.070999999999998},{"$f":"VLOOKUP($A77,F1__World_Data!$A$4:$DP$191,63,FALSE)","v":47.557000000000002},{"$f":"VLOOKUP($A77,F1__World_Data!$A$4:$DP$191,62,FALSE)","v":47.061}]
["Czechia",{"$f":"VLOOKUP($A78,F1__World_Data!$A$4:$DP$191,60,FALSE)","v":10665.679},{"$f":"VLOOKUP($A78,F1__World_Data!$A$4:$DP$191,59,FALSE)","v":10641.031999999999},{"$f":"VLOOKUP($A78,F1__World_Data!$A$4:$DP$191,58,FALSE)","v":10618.868},{"$f":"VLOOKUP($A78,F1__World_Data!$A$4:$DP$191,57,FALSE)","v":10601.39},{"$f":"VLOOKUP($A78,F1__World_Data!$A$4:$DP$191,56,FALSE)","v":10591.103999999999},{"$f":"VLOOKUP($A78,F1__World_Data!$A$4:$DP$191,55,FALSE)","v":10586.529},{"$f":"VLOOKUP($A78,F1__World_Data!$A$4:$DP$191,54,FALSE)","v":10581.302},{"$f":"VLOOKUP($A78,F1__World_Data!$A$4:$DP$191,53,FALSE)","v":10566.512000000001},{"$f":"VLOOKUP($A78,F1__World_Data!$A$4:$DP$191,52,FALSE)","v":10536.513999999999},{"$f":"VLOOKUP($A78,F1__World_Data!$A$4:$DP$191,51,FALSE)","v":10488.155000000001},{"$f":"VLOOKUP($A78,F1__World_Data!$A$4:$DP$191,50,FALSE)","v":10425.267},{"$f":"VLOOKUP($A78,F1__World_Data!$A$4:$DP$191,49,FALSE)","v":10357.535},{"$f":"VLOOKUP($A78,F1__World_Data!$A$4:$DP$191,48,FALSE)","v":10298.609},{"$f":"VLOOKUP($A78,F1__World_Data!$A$4:$DP$191,47,FALSE)","v":10258.165000000001},{"$f":"VLOOKUP($A78,F1__World_Data!$A$4:$DP$191,46,FALSE)","v":10239.444},{"$f":"VLOOKUP($A78,F1__World_Data!$A$4:$DP$191,45,FALSE)","v":10239.130999999999},{"$f":"VLOOKUP($A78,F1__World_Data!$A$4:$DP$191,44,FALSE)","v":10252.263999999999},{"$f":"VLOOKUP($A78,F1__World_Data!$A$4:$DP$191,43,FALSE)","v":10271.019},{"$f":"VLOOKUP($A78,F1__World_Data!$A$4:$DP$191,42,FALSE)","v":10289.374},{"$f":"VLOOKUP($A78,F1__World_Data!$A$4:$DP$191,41,FALSE)","v":10306.404},{"$f":"VLOOKUP($A78,F1__World_Data!$A$4:$DP$191,40,FALSE)","v":10323.244000000001},{"$f":"VLOOKUP($A78,F1__World_Data!$A$4:$DP$191,39,FALSE)","v":10338.346},{"$f":"VLOOKUP($A78,F1__World_Data!$A$4:$DP$191,38,FALSE)","v":10350.302},{"$f":"VLOOKUP($A78,F1__World_Data!$A$4:$DP$191,37,FALSE)","v":10358.19},{"$f":"VLOOKUP($A78,F1__World_Data!$A$4:$DP$191,36,FALSE)","v":10360.964},{"$f":"VLOOKUP($A78,F1__World_Data!$A$4:$DP$191,35,FALSE)","v":10358.694},{"$f":"VLOOKUP($A78,F1__World_Data!$A$4:$DP$191,34,FALSE)","v":10353.021000000001},{"$f":"VLOOKUP($A78,F1__World_Data!$A$4:$DP$191,33,FALSE)","v":10346.458000000001},{"$f":"VLOOKUP($A78,F1__World_Data!$A$4:$DP$191,32,FALSE)","v":10340.877},{"$f":"VLOOKUP($A78,F1__World_Data!$A$4:$DP$191,31,FALSE)","v":10335.875},{"$f":"VLOOKUP($A78,F1__World_Data!$A$4:$DP$191,30,FALSE)","v":10330.924999999999},{"$f":"VLOOKUP($A78,F1__World_Data!$A$4:$DP$191,29,FALSE)","v":10327.472},{"$f":"VLOOKUP($A78,F1__World_Data!$A$4:$DP$191,28,FALSE)","v":10327.290000000001},{"$f":"VLOOKUP($A78,F1__World_Data!$A$4:$DP$191,27,FALSE)","v":10331.144},{"$f":"VLOOKUP($A78,F1__World_Data!$A$4:$DP$191,26,FALSE)","v":10340.629000000001},{"$f":"VLOOKUP($A78,F1__World_Data!$A$4:$DP$191,25,FALSE)","v":10354.1},{"$f":"VLOOKUP($A78,F1__World_Data!$A$4:$DP$191,24,FALSE)","v":10365.263999999999},{"$f":"VLOOKUP($A78,F1__World_Data!$A$4:$DP$191,23,FALSE)","v":10365.522999999999},{"$f":"VLOOKUP($A78,F1__World_Data!$A$4:$DP$191,22,FALSE)","v":10349.084000000001},{"$f":"VLOOKUP($A78,F1__World_Data!$A$4:$DP$191,21,FALSE)","v":10313.960999999999},{"$f":"VLOOKUP($A78,F1__World_Data!$A$4:$DP$191,20,FALSE)","v":10262.918},{"$f":"VLOOKUP($A78,F1__World_Data!$A$4:$DP$191,19,FALSE)","v":10200.727999999999},{"$f":"VLOOKUP($A78,F1__World_Data!$A$4:$DP$191,18,FALSE)","v":10134.522000000001},{"$f":"VLOOKUP($A78,F1__World_Data!$A$4:$DP$191,17,FALSE)","v":10069.959999999999},{"$f":"VLOOKUP($A78,F1__World_Data!$A$4:$DP$191,16,FALSE)","v":10007.275},{"$f":"VLOOKUP($A78,F1__World_Data!$A$4:$DP$191,15,FALSE)","v":9946.1910000000007},{"$f":"VLOOKUP($A78,F1__World_Data!$A$4:$DP$191,14,FALSE)","v":9891.1020000000008},{"$f":"VLOOKUP($A78,F1__World_Data!$A$4:$DP$191,13,FALSE)","v":9847.2150000000001},{"$f":"VLOOKUP($A78,F1__World_Data!$A$4:$DP$191,12,FALSE)","v":9817.6669999999995},{"$f":"VLOOKUP($A78,F1__World_Data!$A$4:$DP$191,11,FALSE)","v":9805.32},{"$f":"VLOOKUP($A78,F1__World_Data!$A$4:$DP$191,10,FALSE)","v":9807.9429999999993},{"$f":"VLOOKUP($A78,F1__World_Data!$A$4:$DP$191,9,FALSE)","v":9817.11},{"$f":"VLOOKUP($A78,F1__World_Data!$A$4:$DP$191,8,FALSE)","v":9821.0630000000001},{"$f":"VLOOKUP($A78,F1__World_Data!$A$4:$DP$191,7,FALSE)","v":9811.375},{"$f":"VLOOKUP($A78,F1__World_Data!$A$4:$DP$191,6,FALSE)","v":9784.3410000000003},{"$f":"VLOOKUP($A78,F1__World_Data!$A$4:$DP$191,5,FALSE)","v":9742.4549999999999},{"$f":"VLOOKUP($A78,F1__World_Data!$A$4:$DP$191,4,FALSE)","v":9691.0609999999997},{"$f":"VLOOKUP($A78,F1__World_Data!$A$4:$DP$191,3,FALSE)","v":9638.3919999999998},{"$f":"VLOOKUP($A78,F1__World_Data!$A$4:$DP$191,2,FALSE)","v":9590.1779999999999},null,{"$f":"VLOOKUP($A78,F1__World_Data!$A$4:$DP$191,120,FALSE)","v":78.978048780487811},{"$f":"VLOOKUP($A78,F1__World_Data!$A$4:$DP$191,119,FALSE)","v":78.978048780487811},{"$f":"VLOOKUP($A78,F1__World_Data!$A$4:$DP$191,118,FALSE)","v":79.026829268292687},{"$f":"VLOOKUP($A78,F1__World_Data!$A$4:$DP$191,117,FALSE)","v":78.578048780487805},{"$f":"VLOOKUP($A78,F1__World_Data!$A$4:$DP$191,116,FALSE)","v":78.824390243902442},{"$f":"VLOOKUP($A78,F1__World_Data!$A$4:$DP$191,115,FALSE)","v":78.175609756097558},{"$f":"VLOOKUP($A78,F1__World_Data!$A$4:$DP$191,114,FALSE)","v":78.075609756097577},{"$f":"VLOOKUP($A78,F1__World_Data!$A$4:$DP$191,113,FALSE)","v":77.873170731707319},{"$f":"VLOOKUP($A78,F1__World_Data!$A$4:$DP$191,112,FALSE)","v":77.424390243902451},{"$f":"VLOOKUP($A78,F1__World_Data!$A$4:$DP$191,111,FALSE)","v":77.078048780487805},{"$f":"VLOOKUP($A78,F1__World_Data!$A$4:$DP$191,110,FALSE)","v":76.975609756097569},{"$f":"VLOOKUP($A78,F1__World_Data!$A$4:$DP$191,109,FALSE)","v":76.724390243902462},{"$f":"VLOOKUP($A78,F1__World_Data!$A$4:$DP$191,108,FALSE)","v":76.524390243902445},{"$f":"VLOOKUP($A78,F1__World_Data!$A$4:$DP$191,107,FALSE)","v":75.924390243902451},{"$f":"VLOOKUP($A78,F1__World_Data!$A$4:$DP$191,106,FALSE)","v":75.721951219512206},{"$f":"VLOOKUP($A78,F1__World_Data!$A$4:$DP$191,105,FALSE)","v":75.170731707317088},{"$f":"VLOOKUP($A78,F1__World_Data!$A$4:$DP$191,104,FALSE)","v":75.221951219512192},{"$f":"VLOOKUP($A78,F1__World_Data!$A$4:$DP$191,103,FALSE)","v":75.17317073170733},{"$f":"VLOOKUP($A78,F1__World_Data!$A$4:$DP$191,102,FALSE)","v":74.968292682926844},{"$f":"VLOOKUP($A78,F1__World_Data!$A$4:$DP$191,101,FALSE)","v":74.668292682926833},{"$f":"VLOOKUP($A78,F1__World_Data!$A$4:$DP$191,100,FALSE)","v":74.514634146341464},{"$f":"VLOOKUP($A78,F1__World_Data!$A$4:$DP$191,99,FALSE)","v":73.824878048780505},{"$f":"VLOOKUP($A78,F1__World_Data!$A$4:$DP$191,98,FALSE)","v":73.714634146341467},{"$f":"VLOOKUP($A78,F1__World_Data!$A$4:$DP$191,97,FALSE)","v":73.074878048780505},{"$f":"VLOOKUP($A78,F1__World_Data!$A$4:$DP$191,96,FALSE)","v":72.972682926829265},{"$f":"VLOOKUP($A78,F1__World_Data!$A$4:$DP$191,95,FALSE)","v":72.767804878048793},{"$f":"VLOOKUP($A78,F1__World_Data!$A$4:$DP$191,94,FALSE)","v":72.271707317073179},{"$f":"VLOOKUP($A78,F1__World_Data!$A$4:$DP$191,93,FALSE)","v":71.898292682926837},{"$f":"VLOOKUP($A78,F1__World_Data!$A$4:$DP$191,92,FALSE)","v":71.383902439024411},{"$f":"VLOOKUP($A78,F1__World_Data!$A$4:$DP$191,91,FALSE)","v":71.675609756097572},{"$f":"VLOOKUP($A78,F1__World_Data!$A$4:$DP$191,90,FALSE)","v":71.64146341463416},{"$f":"VLOOKUP($A78,F1__World_Data!$A$4:$DP$191,89,FALSE)","v":71.445609756097568},{"$f":"VLOOKUP($A78,F1__World_Data!$A$4:$DP$191,88,FALSE)","v":70.997317073170734},{"$f":"VLOOKUP($A78,F1__World_Data!$A$4:$DP$191,87,FALSE)","v":71.046341463414635},{"$f":"VLOOKUP($A78,F1__World_Data!$A$4:$DP$191,86,FALSE)","v":70.837560975609762},{"$f":"VLOOKUP($A78,F1__World_Data!$A$4:$DP$191,85,FALSE)","v":70.591463414634148},{"$f":"VLOOKUP($A78,F1__World_Data!$A$4:$DP$191,84,FALSE)","v":70.807804878048785},{"$f":"VLOOKUP($A78,F1__World_Data!$A$4:$DP$191,83,FALSE)","v":70.722195121951231},{"$f":"VLOOKUP($A78,F1__World_Data!$A$4:$DP$191,82,FALSE)","v":70.278048780487808},{"$f":"VLOOKUP($A78,F1__World_Data!$A$4:$DP$191,81,FALSE)","v":70.749512195121952},{"$f":"VLOOKUP($A78,F1__World_Data!$A$4:$DP$191,80,FALSE)","v":70.643902439024387},{"$f":"VLOOKUP($A78,F1__World_Data!$A$4:$DP$191,79,FALSE)","v":70.573414634146346},{"$f":"VLOOKUP($A78,F1__World_Data!$A$4:$DP$191,78,FALSE)","v":70.532682926829281},{"$f":"VLOOKUP($A78,F1__World_Data!$A$4:$DP$191,77,FALSE)","v":70.414634146341484},{"$f":"VLOOKUP($A78,F1__World_Data!$A$4:$DP$191,76,FALSE)","v":70.086585365853665},{"$f":"VLOOKUP($A78,F1__World_Data!$A$4:$DP$191,75,FALSE)","v":70.022682926829276},{"$f":"VLOOKUP($A78,F1__World_Data!$A$4:$DP$191,74,FALSE)","v":70.176585365853683},{"$f":"VLOOKUP($A78,F1__World_Data!$A$4:$DP$191,73,FALSE)","v":69.677073170731731},{"$f":"VLOOKUP($A78,F1__World_Data!$A$4:$DP$191,72,FALSE)","v":69.440243902439036},{"$f":"VLOOKUP($A78,F1__World_Data!$A$4:$DP$191,71,FALSE)","v":69.3670731707317},{"$f":"VLOOKUP($A78,F1__World_Data!$A$4:$DP$191,70,FALSE)","v":69.840731707317076},{"$f":"VLOOKUP($A78,F1__World_Data!$A$4:$DP$191,69,FALSE)","v":70.264146341463416},{"$f":"VLOOKUP($A78,F1__World_Data!$A$4:$DP$191,68,FALSE)","v":70.384878048780507},{"$f":"VLOOKUP($A78,F1__World_Data!$A$4:$DP$191,67,FALSE)","v":70.163170731707325},{"$f":"VLOOKUP($A78,F1__World_Data!$A$4:$DP$191,66,FALSE)","v":70.45951219512196},{"$f":"VLOOKUP($A78,F1__World_Data!$A$4:$DP$191,65,FALSE)","v":70.304390243902461},{"$f":"VLOOKUP($A78,F1__World_Data!$A$4:$DP$191,64,FALSE)","v":69.786829268292678},{"$f":"VLOOKUP($A78,F1__World_Data!$A$4:$DP$191,63,FALSE)","v":70.512682926829271},{"$f":"VLOOKUP($A78,F1__World_Data!$A$4:$DP$191,62,FALSE)","v":70.348780487804888}]
["Dominican Republic",{"$f":"VLOOKUP($A79,F1__World_Data!$A$4:$DP$191,60,FALSE)","v":10627.147000000001},{"$f":"VLOOKUP($A79,F1__World_Data!$A$4:$DP$191,59,FALSE)","v":10513.111000000001},{"$f":"VLOOKUP($A79,F1__World_Data!$A$4:$DP$191,58,FALSE)","v":10397.737999999999},{"$f":"VLOOKUP($A79,F1__World_Data!$A$4:$DP$191,57,FALSE)","v":10281.674999999999},{"$f":"VLOOKUP($A79,F1__World_Data!$A$4:$DP$191,56,FALSE)","v":10165.182000000001},{"$f":"VLOOKUP($A79,F1__World_Data!$A$4:$DP$191,55,FALSE)","v":10048.226000000001},{"$f":"VLOOKUP($A79,F1__World_Data!$A$4:$DP$191,54,FALSE)","v":9930.9159999999993},{"$f":"VLOOKUP($A79,F1__World_Data!$A$4:$DP$191,53,FALSE)","v":9813.2189999999991},{"$f":"VLOOKUP($A79,F1__World_Data!$A$4:$DP$191,52,FALSE)","v":9695.1170000000002},{"$f":"VLOOKUP($A79,F1__World_Data!$A$4:$DP$191,51,FALSE)","v":9576.7360000000008},{"$f":"VLOOKUP($A79,F1__World_Data!$A$4:$DP$191,50,FALSE)","v":9458.0789999999997},{"$f":"VLOOKUP($A79,F1__World_Data!$A$4:$DP$191,49,FALSE)","v":9338.8559999999998},{"$f":"VLOOKUP($A79,F1__World_Data!$A$4:$DP$191,48,FALSE)","v":9218.6810000000005},{"$f":"VLOOKUP($A79,F1__World_Data!$A$4:$DP$191,47,FALSE)","v":9097.2620000000006},{"$f":"VLOOKUP($A79,F1__World_Data!$A$4:$DP$191,46,FALSE)","v":8974.4439999999995},{"$f":"VLOOKUP($A79,F1__World_Data!$A$4:$DP$191,45,FALSE)","v":8850.3169999999991},{"$f":"VLOOKUP($A79,F1__World_Data!$A$4:$DP$191,44,FALSE)","v":8724.9740000000002},{"$f":"VLOOKUP($A79,F1__World_Data!$A$4:$DP$191,43,FALSE)","v":8598.5990000000002},{"$f":"VLOOKUP($A79,F1__World_Data!$A$4:$DP$191,42,FALSE)","v":8471.3169999999991},{"$f":"VLOOKUP($A79,F1__World_Data!$A$4:$DP$191,41,FALSE)","v":8343.2880000000005},{"$f":"VLOOKUP($A79,F1__World_Data!$A$4:$DP$191,40,FALSE)","v":8214.4269999999997},{"$f":"VLOOKUP($A79,F1__World_Data!$A$4:$DP$191,39,FALSE)","v":8084.4070000000002},{"$f":"VLOOKUP($A79,F1__World_Data!$A$4:$DP$191,38,FALSE)","v":7952.7659999999996},{"$f":"VLOOKUP($A79,F1__World_Data!$A$4:$DP$191,37,FALSE)","v":7819.2389999999996},{"$f":"VLOOKUP($A79,F1__World_Data!$A$4:$DP$191,36,FALSE)","v":7683.7070000000003},{"$f":"VLOOKUP($A79,F1__World_Data!$A$4:$DP$191,35,FALSE)","v":7546.4669999999996},{"$f":"VLOOKUP($A79,F1__World_Data!$A$4:$DP$191,34,FALSE)","v":7408.3389999999999},{"$f":"VLOOKUP($A79,F1__World_Data!$A$4:$DP$191,33,FALSE)","v":7270.4129999999996},{"$f":"VLOOKUP($A79,F1__World_Data!$A$4:$DP$191,32,FALSE)","v":7133.491},{"$f":"VLOOKUP($A79,F1__World_Data!$A$4:$DP$191,31,FALSE)","v":6997.8770000000004},{"$f":"VLOOKUP($A79,F1__World_Data!$A$4:$DP$191,30,FALSE)","v":6863.4380000000001},{"$f":"VLOOKUP($A79,F1__World_Data!$A$4:$DP$191,29,FALSE)","v":6729.93},{"$f":"VLOOKUP($A79,F1__World_Data!$A$4:$DP$191,28,FALSE)","v":6596.9669999999996},{"$f":"VLOOKUP($A79,F1__World_Data!$A$4:$DP$191,27,FALSE)","v":6464.2290000000003},{"$f":"VLOOKUP($A79,F1__World_Data!$A$4:$DP$191,26,FALSE)","v":6331.76},{"$f":"VLOOKUP($A79,F1__World_Data!$A$4:$DP$191,25,FALSE)","v":6199.6570000000002},{"$f":"VLOOKUP($A79,F1__World_Data!$A$4:$DP$191,24,FALSE)","v":6067.7690000000002},{"$f":"VLOOKUP($A79,F1__World_Data!$A$4:$DP$191,23,FALSE)","v":5935.8950000000004},{"$f":"VLOOKUP($A79,F1__World_Data!$A$4:$DP$191,22,FALSE)","v":5803.9290000000001},{"$f":"VLOOKUP($A79,F1__World_Data!$A$4:$DP$191,21,FALSE)","v":5671.8010000000004},{"$f":"VLOOKUP($A79,F1__World_Data!$A$4:$DP$191,20,FALSE)","v":5539.5959999999995},{"$f":"VLOOKUP($A79,F1__World_Data!$A$4:$DP$191,19,FALSE)","v":5407.4960000000001},{"$f":"VLOOKUP($A79,F1__World_Data!$A$4:$DP$191,18,FALSE)","v":5275.7669999999998},{"$f":"VLOOKUP($A79,F1__World_Data!$A$4:$DP$191,17,FALSE)","v":5144.6319999999996},{"$f":"VLOOKUP($A79,F1__World_Data!$A$4:$DP$191,16,FALSE)","v":5014.1869999999999},{"$f":"VLOOKUP($A79,F1__World_Data!$A$4:$DP$191,15,FALSE)","v":4884.46},{"$f":"VLOOKUP($A79,F1__World_Data!$A$4:$DP$191,14,FALSE)","v":4755.4639999999999},{"$f":"VLOOKUP($A79,F1__World_Data!$A$4:$DP$191,13,FALSE)","v":4627.2020000000002},{"$f":"VLOOKUP($A79,F1__World_Data!$A$4:$DP$191,12,FALSE)","v":4499.7219999999998},{"$f":"VLOOKUP($A79,F1__World_Data!$A$4:$DP$191,11,FALSE)","v":4373.1270000000004},{"$f":"VLOOKUP($A79,F1__World_Data!$A$4:$DP$191,10,FALSE)","v":4247.5590000000002},{"$f":"VLOOKUP($A79,F1__World_Data!$A$4:$DP$191,9,FALSE)","v":4123.1000000000004},{"$f":"VLOOKUP($A79,F1__World_Data!$A$4:$DP$191,8,FALSE)","v":3999.7959999999998},{"$f":"VLOOKUP($A79,F1__World_Data!$A$4:$DP$191,7,FALSE)","v":3877.768},{"$f":"VLOOKUP($A79,F1__World_Data!$A$4:$DP$191,6,FALSE)","v":3757.123},{"$f":"VLOOKUP($A79,F1__World_Data!$A$4:$DP$191,5,FALSE)","v":3638.11},{"$f":"VLOOKUP($A79,F1__World_Data!$A$4:$DP$191,4,FALSE)","v":3521.018},{"$f":"VLOOKUP($A79,F1__World_Data!$A$4:$DP$191,3,FALSE)","v":3406.2820000000002},{"$f":"VLOOKUP($A79,F1__World_Data!$A$4:$DP$191,2,FALSE)","v":3294.2220000000002},null,{"$f":"VLOOKUP($A79,F1__World_Data!$A$4:$DP$191,120,FALSE)","v":73.891999999999996},{"$f":"VLOOKUP($A79,F1__World_Data!$A$4:$DP$191,119,FALSE)","v":73.688999999999993},{"$f":"VLOOKUP($A79,F1__World_Data!$A$4:$DP$191,118,FALSE)","v":73.471000000000004},{"$f":"VLOOKUP($A79,F1__World_Data!$A$4:$DP$191,117,FALSE)","v":73.241},{"$f":"VLOOKUP($A79,F1__World_Data!$A$4:$DP$191,116,FALSE)","v":73.003},{"$f":"VLOOKUP($A79,F1__World_Data!$A$4:$DP$191,115,FALSE)","v":72.763000000000005},{"$f":"VLOOKUP($A79,F1__World_Data!$A$4:$DP$191,114,FALSE)","v":72.522999999999996},{"$f":"VLOOKUP($A79,F1__World_Data!$A$4:$DP$191,113,FALSE)","v":72.284000000000006},{"$f":"VLOOKUP($A79,F1__World_Data!$A$4:$DP$191,112,FALSE)","v":72.046000000000006},{"$f":"VLOOKUP($A79,F1__World_Data!$A$4:$DP$191,111,FALSE)","v":71.805999999999997},{"$f":"VLOOKUP($A79,F1__World_Data!$A$4:$DP$191,110,FALSE)","v":71.558999999999997},{"$f":"VLOOKUP($A79,F1__World_Data!$A$4:$DP$191,109,FALSE)","v":71.304000000000002},{"$f":"VLOOKUP($A79,F1__World_Data!$A$4:$DP$191,108,FALSE)","v":71.040999999999997},{"$f":"VLOOKUP($A79,F1__World_Data!$A$4:$DP$191,107,FALSE)","v":70.771000000000001},{"$f":"VLOOKUP($A79,F1__World_Data!$A$4:$DP$191,106,FALSE)","v":70.498999999999995},{"$f":"VLOOKUP($A79,F1__World_Data!$A$4:$DP$191,105,FALSE)","v":70.227000000000004},{"$f":"VLOOKUP($A79,F1__World_Data!$A$4:$DP$191,104,FALSE)","v":69.956999999999994},{"$f":"VLOOKUP($A79,F1__World_Data!$A$4:$DP$191,103,FALSE)","v":69.69},{"$f":"VLOOKUP($A79,F1__World_Data!$A$4:$DP$191,102,FALSE)","v":69.429000000000002},{"$f":"VLOOKUP($A79,F1__World_Data!$A$4:$DP$191,101,FALSE)","v":69.174999999999997},{"$f":"VLOOKUP($A79,F1__World_Data!$A$4:$DP$191,100,FALSE)","v":68.924999999999997},{"$f":"VLOOKUP($A79,F1__World_Data!$A$4:$DP$191,99,FALSE)","v":68.677000000000007},{"$f":"VLOOKUP($A79,F1__World_Data!$A$4:$DP$191,98,FALSE)","v":68.424999999999997},{"$f":"VLOOKUP($A79,F1__World_Data!$A$4:$DP$191,97,FALSE)","v":68.164000000000001},{"$f":"VLOOKUP($A79,F1__World_Data!$A$4:$DP$191,96,FALSE)","v":67.887},{"$f":"VLOOKUP($A79,F1__World_Data!$A$4:$DP$191,95,FALSE)","v":67.590999999999994},{"$f":"VLOOKUP($A79,F1__World_Data!$A$4:$DP$191,94,FALSE)","v":67.272000000000006},{"$f":"VLOOKUP($A79,F1__World_Data!$A$4:$DP$191,93,FALSE)","v":66.932000000000002},{"$f":"VLOOKUP($A79,F1__World_Data!$A$4:$DP$191,92,FALSE)","v":66.573999999999998},{"$f":"VLOOKUP($A79,F1__World_Data!$A$4:$DP$191,91,FALSE)","v":66.200999999999993},{"$f":"VLOOKUP($A79,F1__World_Data!$A$4:$DP$191,90,FALSE)","v":65.822000000000003},{"$f":"VLOOKUP($A79,F1__World_Data!$A$4:$DP$191,89,FALSE)","v":65.442999999999998},{"$f":"VLOOKUP($A79,F1__World_Data!$A$4:$DP$191,88,FALSE)","v":65.064999999999998},{"$f":"VLOOKUP($A79,F1__World_Data!$A$4:$DP$191,87,FALSE)","v":64.691999999999993},{"$f":"VLOOKUP($A79,F1__World_Data!$A$4:$DP$191,86,FALSE)","v":64.325999999999993},{"$f":"VLOOKUP($A79,F1__World_Data!$A$4:$DP$191,85,FALSE)","v":63.963999999999999},{"$f":"VLOOKUP($A79,F1__World_Data!$A$4:$DP$191,84,FALSE)","v":63.600999999999999},{"$f":"VLOOKUP($A79,F1__World_Data!$A$4:$DP$191,83,FALSE)","v":63.234000000000002},{"$f":"VLOOKUP($A79,F1__World_Data!$A$4:$DP$191,82,FALSE)","v":62.860999999999997},{"$f":"VLOOKUP($A79,F1__World_Data!$A$4:$DP$191,81,FALSE)","v":62.476999999999997},{"$f":"VLOOKUP($A79,F1__World_Data!$A$4:$DP$191,80,FALSE)","v":62.079000000000001},{"$f":"VLOOKUP($A79,F1__World_Data!$A$4:$DP$191,79,FALSE)","v":61.662999999999997},{"$f":"VLOOKUP($A79,F1__World_Data!$A$4:$DP$191,78,FALSE)","v":61.225999999999999},{"$f":"VLOOKUP($A79,F1__World_Data!$A$4:$DP$191,77,FALSE)","v":60.764000000000003},{"$f":"VLOOKUP($A79,F1__World_Data!$A$4:$DP$191,76,FALSE)","v":60.277000000000001},{"$f":"VLOOKUP($A79,F1__World_Data!$A$4:$DP$191,75,FALSE)","v":59.764000000000003},{"$f":"VLOOKUP($A79,F1__World_Data!$A$4:$DP$191,74,FALSE)","v":59.228999999999999},{"$f":"VLOOKUP($A79,F1__World_Data!$A$4:$DP$191,73,FALSE)","v":58.670999999999999},{"$f":"VLOOKUP($A79,F1__World_Data!$A$4:$DP$191,72,FALSE)","v":58.093000000000004},{"$f":"VLOOKUP($A79,F1__World_Data!$A$4:$DP$191,71,FALSE)","v":57.497999999999998},{"$f":"VLOOKUP($A79,F1__World_Data!$A$4:$DP$191,70,FALSE)","v":56.889000000000003},{"$f":"VLOOKUP($A79,F1__World_Data!$A$4:$DP$191,69,FALSE)","v":56.267000000000003},{"$f":"VLOOKUP($A79,F1__World_Data!$A$4:$DP$191,68,FALSE)","v":55.634999999999998},{"$f":"VLOOKUP($A79,F1__World_Data!$A$4:$DP$191,67,FALSE)","v":54.993000000000002},{"$f":"VLOOKUP($A79,F1__World_Data!$A$4:$DP$191,66,FALSE)","v":54.34},{"$f":"VLOOKUP($A79,F1__World_Data!$A$4:$DP$191,65,FALSE)","v":53.674999999999997},{"$f":"VLOOKUP($A79,F1__World_Data!$A$4:$DP$191,64,FALSE)","v":52.997},{"$f":"VLOOKUP($A79,F1__World_Data!$A$4:$DP$191,63,FALSE)","v":52.305999999999997},{"$f":"VLOOKUP($A79,F1__World_Data!$A$4:$DP$191,62,FALSE)","v":51.601999999999997}]
["Greece",{"$f":"VLOOKUP($A80,F1__World_Data!$A$4:$DP$191,60,FALSE)","v":10522.244000000001},{"$f":"VLOOKUP($A80,F1__World_Data!$A$4:$DP$191,59,FALSE)","v":10569.449000000001},{"$f":"VLOOKUP($A80,F1__World_Data!$A$4:$DP$191,58,FALSE)","v":10615.183000000001},{"$f":"VLOOKUP($A80,F1__World_Data!$A$4:$DP$191,57,FALSE)","v":10659.736999999999},{"$f":"VLOOKUP($A80,F1__World_Data!$A$4:$DP$191,56,FALSE)","v":10701.46},{"$f":"VLOOKUP($A80,F1__World_Data!$A$4:$DP$191,55,FALSE)","v":10740.501},{"$f":"VLOOKUP($A80,F1__World_Data!$A$4:$DP$191,54,FALSE)","v":10781.119000000001},{"$f":"VLOOKUP($A80,F1__World_Data!$A$4:$DP$191,53,FALSE)","v":10829.074000000001},{"$f":"VLOOKUP($A80,F1__World_Data!$A$4:$DP$191,52,FALSE)","v":10887.64},{"$f":"VLOOKUP($A80,F1__World_Data!$A$4:$DP$191,51,FALSE)","v":10959.268},{"$f":"VLOOKUP($A80,F1__World_Data!$A$4:$DP$191,50,FALSE)","v":11040.312},{"$f":"VLOOKUP($A80,F1__World_Data!$A$4:$DP$191,49,FALSE)","v":11120.370999999999},{"$f":"VLOOKUP($A80,F1__World_Data!$A$4:$DP$191,48,FALSE)","v":11185.231},{"$f":"VLOOKUP($A80,F1__World_Data!$A$4:$DP$191,47,FALSE)","v":11224.8},{"$f":"VLOOKUP($A80,F1__World_Data!$A$4:$DP$191,46,FALSE)","v":11234.993},{"$f":"VLOOKUP($A80,F1__World_Data!$A$4:$DP$191,45,FALSE)","v":11218.879000000001},{"$f":"VLOOKUP($A80,F1__World_Data!$A$4:$DP$191,44,FALSE)","v":11182.308000000001},{"$f":"VLOOKUP($A80,F1__World_Data!$A$4:$DP$191,43,FALSE)","v":11134.447},{"$f":"VLOOKUP($A80,F1__World_Data!$A$4:$DP$191,42,FALSE)","v":11082.102999999999},{"$f":"VLOOKUP($A80,F1__World_Data!$A$4:$DP$191,41,FALSE)","v":11027.898999999999},{"$f":"VLOOKUP($A80,F1__World_Data!$A$4:$DP$191,40,FALSE)","v":10970.120999999999},{"$f":"VLOOKUP($A80,F1__World_Data!$A$4:$DP$191,39,FALSE)","v":10906.248},{"$f":"VLOOKUP($A80,F1__World_Data!$A$4:$DP$191,38,FALSE)","v":10832.138999999999},{"$f":"VLOOKUP($A80,F1__World_Data!$A$4:$DP$191,37,FALSE)","v":10745.502},{"$f":"VLOOKUP($A80,F1__World_Data!$A$4:$DP$191,36,FALSE)","v":10644.939},{"$f":"VLOOKUP($A80,F1__World_Data!$A$4:$DP$191,35,FALSE)","v":10533.811},{"$f":"VLOOKUP($A80,F1__World_Data!$A$4:$DP$191,34,FALSE)","v":10420.226000000001},{"$f":"VLOOKUP($A80,F1__World_Data!$A$4:$DP$191,33,FALSE)","v":10315.109},{"$f":"VLOOKUP($A80,F1__World_Data!$A$4:$DP$191,32,FALSE)","v":10225.99},{"$f":"VLOOKUP($A80,F1__World_Data!$A$4:$DP$191,31,FALSE)","v":10155.721},{"$f":"VLOOKUP($A80,F1__World_Data!$A$4:$DP$191,30,FALSE)","v":10101.349},{"$f":"VLOOKUP($A80,F1__World_Data!$A$4:$DP$191,29,FALSE)","v":10057.291999999999},{"$f":"VLOOKUP($A80,F1__World_Data!$A$4:$DP$191,28,FALSE)","v":10015.121999999999},{"$f":"VLOOKUP($A80,F1__World_Data!$A$4:$DP$191,27,FALSE)","v":9968.2330000000002},{"$f":"VLOOKUP($A80,F1__World_Data!$A$4:$DP$191,26,FALSE)","v":9916.4809999999998},{"$f":"VLOOKUP($A80,F1__World_Data!$A$4:$DP$191,25,FALSE)","v":9860.7340000000004},{"$f":"VLOOKUP($A80,F1__World_Data!$A$4:$DP$191,24,FALSE)","v":9796.83},{"$f":"VLOOKUP($A80,F1__World_Data!$A$4:$DP$191,23,FALSE)","v":9719.8389999999999},{"$f":"VLOOKUP($A80,F1__World_Data!$A$4:$DP$191,22,FALSE)","v":9627.0040000000008},{"$f":"VLOOKUP($A80,F1__World_Data!$A$4:$DP$191,21,FALSE)","v":9515.7430000000004},{"$f":"VLOOKUP($A80,F1__World_Data!$A$4:$DP$191,20,FALSE)","v":9388.7199999999993},{"$f":"VLOOKUP($A80,F1__World_Data!$A$4:$DP$191,19,FALSE)","v":9254.9789999999994},{"$f":"VLOOKUP($A80,F1__World_Data!$A$4:$DP$191,18,FALSE)","v":9127.0570000000007},{"$f":"VLOOKUP($A80,F1__World_Data!$A$4:$DP$191,17,FALSE)","v":9014.0910000000003},{"$f":"VLOOKUP($A80,F1__World_Data!$A$4:$DP$191,16,FALSE)","v":8919.2469999999994},{"$f":"VLOOKUP($A80,F1__World_Data!$A$4:$DP$191,15,FALSE)","v":8840.3109999999997},{"$f":"VLOOKUP($A80,F1__World_Data!$A$4:$DP$191,14,FALSE)","v":8774.5120000000006},{"$f":"VLOOKUP($A80,F1__World_Data!$A$4:$DP$191,13,FALSE)","v":8716.8700000000008},{"$f":"VLOOKUP($A80,F1__World_Data!$A$4:$DP$191,12,FALSE)","v":8663.5679999999993},{"$f":"VLOOKUP($A80,F1__World_Data!$A$4:$DP$191,11,FALSE)","v":8614.0349999999999},{"$f":"VLOOKUP($A80,F1__World_Data!$A$4:$DP$191,10,FALSE)","v":8569.1440000000002},{"$f":"VLOOKUP($A80,F1__World_Data!$A$4:$DP$191,9,FALSE)","v":8528.0259999999998},{"$f":"VLOOKUP($A80,F1__World_Data!$A$4:$DP$191,8,FALSE)","v":8489.8680000000004},{"$f":"VLOOKUP($A80,F1__World_Data!$A$4:$DP$191,7,FALSE)","v":8453.8189999999995},{"$f":"VLOOKUP($A80,F1__World_Data!$A$4:$DP$191,6,FALSE)","v":8419.3009999999995},{"$f":"VLOOKUP($A80,F1__World_Data!$A$4:$DP$191,5,FALSE)","v":8385.4429999999993},{"$f":"VLOOKUP($A80,F1__World_Data!$A$4:$DP$191,4,FALSE)","v":8350.8760000000002},{"$f":"VLOOKUP($A80,F1__World_Data!$A$4:$DP$191,3,FALSE)","v":8314.009},{"$f":"VLOOKUP($A80,F1__World_Data!$A$4:$DP$191,2,FALSE)","v":8273.6280000000006},null,{"$f":"VLOOKUP($A80,F1__World_Data!$A$4:$DP$191,120,FALSE)","v":82.548780487804891},{"$f":"VLOOKUP($A80,F1__World_Data!$A$4:$DP$191,119,FALSE)","v":82.29756097560977},{"$f":"VLOOKUP($A80,F1__World_Data!$A$4:$DP$191,118,FALSE)","v":82.046341463414635},{"$f":"VLOOKUP($A80,F1__World_Data!$A$4:$DP$191,117,FALSE)","v":81.795121951219528},{"$f":"VLOOKUP($A80,F1__World_Data!$A$4:$DP$191,116,FALSE)","v":81.592682926829269},{"$f":"VLOOKUP($A80,F1__World_Data!$A$4:$DP$191,115,FALSE)","v":81.341463414634148},{"$f":"VLOOKUP($A80,F1__World_Data!$A$4:$DP$191,114,FALSE)","v":81.090243902439042},{"$f":"VLOOKUP($A80,F1__World_Data!$A$4:$DP$191,113,FALSE)","v":80.839024390243921},{"$f":"VLOOKUP($A80,F1__World_Data!$A$4:$DP$191,112,FALSE)","v":80.587804878048786},{"$f":"VLOOKUP($A80,F1__World_Data!$A$4:$DP$191,111,FALSE)","v":80.387804878048797},{"$f":"VLOOKUP($A80,F1__World_Data!$A$4:$DP$191,110,FALSE)","v":80.139024390243918},{"$f":"VLOOKUP($A80,F1__World_Data!$A$4:$DP$191,109,FALSE)","v":79.890243902439039},{"$f":"VLOOKUP($A80,F1__World_Data!$A$4:$DP$191,108,FALSE)","v":79.690243902439036},{"$f":"VLOOKUP($A80,F1__World_Data!$A$4:$DP$191,107,FALSE)","v":79.441463414634157},{"$f":"VLOOKUP($A80,F1__World_Data!$A$4:$DP$191,106,FALSE)","v":79.190243902439036},{"$f":"VLOOKUP($A80,F1__World_Data!$A$4:$DP$191,105,FALSE)","v":78.990243902439033},{"$f":"VLOOKUP($A80,F1__World_Data!$A$4:$DP$191,104,FALSE)","v":78.787804878048775},{"$f":"VLOOKUP($A80,F1__World_Data!$A$4:$DP$191,103,FALSE)","v":78.636585365853662},{"$f":"VLOOKUP($A80,F1__World_Data!$A$4:$DP$191,102,FALSE)","v":78.434146341463432},{"$f":"VLOOKUP($A80,F1__World_Data!$A$4:$DP$191,101,FALSE)","v":78.280487804878064},{"$f":"VLOOKUP($A80,F1__World_Data!$A$4:$DP$191,100,FALSE)","v":78.026829268292687},{"$f":"VLOOKUP($A80,F1__World_Data!$A$4:$DP$191,99,FALSE)","v":77.824390243902457},{"$f":"VLOOKUP($A80,F1__World_Data!$A$4:$DP$191,98,FALSE)","v":77.57073170731708},{"$f":"VLOOKUP($A80,F1__World_Data!$A$4:$DP$191,97,FALSE)","v":77.368292682926835},{"$f":"VLOOKUP($A80,F1__World_Data!$A$4:$DP$191,96,FALSE)","v":77.065853658536597},{"$f":"VLOOKUP($A80,F1__World_Data!$A$4:$DP$191,95,FALSE)","v":76.81463414634149},{"$f":"VLOOKUP($A80,F1__World_Data!$A$4:$DP$191,94,FALSE)","v":76.614634146341473},{"$f":"VLOOKUP($A80,F1__World_Data!$A$4:$DP$191,93,FALSE)","v":76.41463414634147},{"$f":"VLOOKUP($A80,F1__World_Data!$A$4:$DP$191,92,FALSE)","v":76.114634146341487},{"$f":"VLOOKUP($A80,F1__World_Data!$A$4:$DP$191,91,FALSE)","v":75.91463414634147},{"$f":"VLOOKUP($A80,F1__World_Data!$A$4:$DP$191,90,FALSE)","v":75.714634146341467},{"$f":"VLOOKUP($A80,F1__World_Data!$A$4:$DP$191,89,FALSE)","v":75.465853658536588},{"$f":"VLOOKUP($A80,F1__World_Data!$A$4:$DP$191,88,FALSE)","v":75.214634146341467},{"$f":"VLOOKUP($A80,F1__World_Data!$A$4:$DP$191,87,FALSE)","v":0},{"$f":"VLOOKUP($A80,F1__World_Data!$A$4:$DP$191,86,FALSE)","v":0},{"$f":"VLOOKUP($A80,F1__World_Data!$A$4:$DP$191,85,FALSE)","v":0},{"$f":"VLOOKUP($A80,F1__World_Data!$A$4:$DP$191,84,FALSE)","v":0},{"$f":"VLOOKUP($A80,F1__World_Data!$A$4:$DP$191,83,FALSE)","v":0},{"$f":"VLOOKUP($A80,F1__World_Data!$A$4:$DP$191,82,FALSE)","v":0},{"$f":"VLOOKUP($A80,F1__World_Data!$A$4:$DP$191,81,FALSE)","v":0},{"$f":"VLOOKUP($A80,F1__World_Data!$A$4:$DP$191,80,FALSE)","v":75.98536585365855},{"$f":"VLOOKUP($A80,F1__World_Data!$A$4:$DP$191,79,FALSE)","v":0},{"$f":"VLOOKUP($A80,F1__World_Data!$A$4:$DP$191,78,FALSE)","v":0},{"$f":"VLOOKUP($A80,F1__World_Data!$A$4:$DP$191,77,FALSE)","v":0},{"$f":"VLOOKUP($A80,F1__World_Data!$A$4:$DP$191,76,FALSE)","v":0},{"$f":"VLOOKUP($A80,F1__World_Data!$A$4:$DP$191,75,FALSE)","v":74.497560975609773},{"$f":"VLOOKUP($A80,F1__World_Data!$A$4:$DP$191,74,FALSE)","v":0},{"$f":"VLOOKUP($A80,F1__World_Data!$A$4:$DP$191,73,FALSE)","v":0},{"$f":"VLOOKUP($A80,F1__World_Data!$A$4:$DP$191,72,FALSE)","v":0},{"$f":"VLOOKUP($A80,F1__World_Data!$A$4:$DP$191,71,FALSE)","v":0},{"$f":"VLOOKUP($A80,F1__World_Data!$A$4:$DP$191,70,FALSE)","v":0},{"$f":"VLOOKUP($A80,F1__World_Data!$A$4:$DP$191,69,FALSE)","v":0},{"$f":"VLOOKUP($A80,F1__World_Data!$A$4:$DP$191,68,FALSE)","v":0},{"$f":"VLOOKUP($A80,F1__World_Data!$A$4:$DP$191,67,FALSE)","v":0},{"$f":"VLOOKUP($A80,F1__World_Data!$A$4:$DP$191,66,FALSE)","v":0},{"$f":"VLOOKUP($A80,F1__World_Data!$A$4:$DP$191,65,FALSE)","v":0},{"$f":"VLOOKUP($A80,F1__World_Data!$A$4:$DP$191,64,FALSE)","v":0},{"$f":"VLOOKUP($A80,F1__World_Data!$A$4:$DP$191,63,FALSE)","v":0},{"$f":"VLOOKUP($A80,F1__World_Data!$A$4:$DP$191,62,FALSE)","v":0}]
["Portugal",{"$f":"VLOOKUP($A81,F1__World_Data!$A$4:$DP$191,60,FALSE)","v":10256.191999999999},{"$f":"VLOOKUP($A81,F1__World_Data!$A$4:$DP$191,59,FALSE)","v":10288.527},{"$f":"VLOOKUP($A81,F1__World_Data!$A$4:$DP$191,58,FALSE)","v":10325.540000000001},{"$f":"VLOOKUP($A81,F1__World_Data!$A$4:$DP$191,57,FALSE)","v":10368.346},{"$f":"VLOOKUP($A81,F1__World_Data!$A$4:$DP$191,56,FALSE)","v":10418.224},{"$f":"VLOOKUP($A81,F1__World_Data!$A$4:$DP$191,55,FALSE)","v":10473.025},{"$f":"VLOOKUP($A81,F1__World_Data!$A$4:$DP$191,54,FALSE)","v":10526.308000000001},{"$f":"VLOOKUP($A81,F1__World_Data!$A$4:$DP$191,53,FALSE)","v":10569.388000000001},{"$f":"VLOOKUP($A81,F1__World_Data!$A$4:$DP$191,52,FALSE)","v":10596.055},{"$f":"VLOOKUP($A81,F1__World_Data!$A$4:$DP$191,51,FALSE)","v":10604.066000000001},{"$f":"VLOOKUP($A81,F1__World_Data!$A$4:$DP$191,50,FALSE)","v":10595.312},{"$f":"VLOOKUP($A81,F1__World_Data!$A$4:$DP$191,49,FALSE)","v":10573.15},{"$f":"VLOOKUP($A81,F1__World_Data!$A$4:$DP$191,48,FALSE)","v":10542.837},{"$f":"VLOOKUP($A81,F1__World_Data!$A$4:$DP$191,47,FALSE)","v":10508.494000000001},{"$f":"VLOOKUP($A81,F1__World_Data!$A$4:$DP$191,46,FALSE)","v":10470.925999999999},{"$f":"VLOOKUP($A81,F1__World_Data!$A$4:$DP$191,45,FALSE)","v":10429.615},{"$f":"VLOOKUP($A81,F1__World_Data!$A$4:$DP$191,44,FALSE)","v":10385.993},{"$f":"VLOOKUP($A81,F1__World_Data!$A$4:$DP$191,43,FALSE)","v":10341.456},{"$f":"VLOOKUP($A81,F1__World_Data!$A$4:$DP$191,42,FALSE)","v":10297.117},{"$f":"VLOOKUP($A81,F1__World_Data!$A$4:$DP$191,41,FALSE)","v":10254.501},{"$f":"VLOOKUP($A81,F1__World_Data!$A$4:$DP$191,40,FALSE)","v":10214.046},{"$f":"VLOOKUP($A81,F1__World_Data!$A$4:$DP$191,39,FALSE)","v":10174.564},{"$f":"VLOOKUP($A81,F1__World_Data!$A$4:$DP$191,38,FALSE)","v":10134.016},{"$f":"VLOOKUP($A81,F1__World_Data!$A$4:$DP$191,37,FALSE)","v":10091.322},{"$f":"VLOOKUP($A81,F1__World_Data!$A$4:$DP$191,36,FALSE)","v":10045.031999999999},{"$f":"VLOOKUP($A81,F1__World_Data!$A$4:$DP$191,35,FALSE)","v":9996.6419999999998},{"$f":"VLOOKUP($A81,F1__World_Data!$A$4:$DP$191,34,FALSE)","v":9951.3050000000003},{"$f":"VLOOKUP($A81,F1__World_Data!$A$4:$DP$191,33,FALSE)","v":9916.0519999999997},{"$f":"VLOOKUP($A81,F1__World_Data!$A$4:$DP$191,32,FALSE)","v":9895.3580000000002},{"$f":"VLOOKUP($A81,F1__World_Data!$A$4:$DP$191,31,FALSE)","v":9890.8230000000003},{"$f":"VLOOKUP($A81,F1__World_Data!$A$4:$DP$191,30,FALSE)","v":9899.1980000000003},{"$f":"VLOOKUP($A81,F1__World_Data!$A$4:$DP$191,29,FALSE)","v":9914.0730000000003},{"$f":"VLOOKUP($A81,F1__World_Data!$A$4:$DP$191,28,FALSE)","v":9926.4259999999995},{"$f":"VLOOKUP($A81,F1__World_Data!$A$4:$DP$191,27,FALSE)","v":9929.1759999999995},{"$f":"VLOOKUP($A81,F1__World_Data!$A$4:$DP$191,26,FALSE)","v":9921.2430000000004},{"$f":"VLOOKUP($A81,F1__World_Data!$A$4:$DP$191,25,FALSE)","v":9902.9920000000002},{"$f":"VLOOKUP($A81,F1__World_Data!$A$4:$DP$191,24,FALSE)","v":9870.8220000000001},{"$f":"VLOOKUP($A81,F1__World_Data!$A$4:$DP$191,23,FALSE)","v":9820.8680000000004},{"$f":"VLOOKUP($A81,F1__World_Data!$A$4:$DP$191,22,FALSE)","v":9750.9660000000003},{"$f":"VLOOKUP($A81,F1__World_Data!$A$4:$DP$191,21,FALSE)","v":9660.7489999999998},{"$f":"VLOOKUP($A81,F1__World_Data!$A$4:$DP$191,20,FALSE)","v":9552.6090000000004},{"$f":"VLOOKUP($A81,F1__World_Data!$A$4:$DP$191,19,FALSE)","v":9431.0360000000001},{"$f":"VLOOKUP($A81,F1__World_Data!$A$4:$DP$191,18,FALSE)","v":9302.2970000000005},{"$f":"VLOOKUP($A81,F1__World_Data!$A$4:$DP$191,17,FALSE)","v":9172.24},{"$f":"VLOOKUP($A81,F1__World_Data!$A$4:$DP$191,16,FALSE)","v":9039.9770000000008},{"$f":"VLOOKUP($A81,F1__World_Data!$A$4:$DP$191,15,FALSE)","v":8907.9279999999999},{"$f":"VLOOKUP($A81,F1__World_Data!$A$4:$DP$191,14,FALSE)","v":8789.11},{"$f":"VLOOKUP($A81,F1__World_Data!$A$4:$DP$191,13,FALSE)","v":8700},{"$f":"VLOOKUP($A81,F1__World_Data!$A$4:$DP$191,12,FALSE)","v":8651.3340000000007},{"$f":"VLOOKUP($A81,F1__World_Data!$A$4:$DP$191,11,FALSE)","v":8649.2489999999998},{"$f":"VLOOKUP($A81,F1__World_Data!$A$4:$DP$191,10,FALSE)","v":8687.8729999999996},{"$f":"VLOOKUP($A81,F1__World_Data!$A$4:$DP$191,9,FALSE)","v":8750.8629999999994},{"$f":"VLOOKUP($A81,F1__World_Data!$A$4:$DP$191,8,FALSE)","v":8814.7739999999994},{"$f":"VLOOKUP($A81,F1__World_Data!$A$4:$DP$191,7,FALSE)","v":8862.277},{"$f":"VLOOKUP($A81,F1__World_Data!$A$4:$DP$191,6,FALSE)","v":8888.2260000000006},{"$f":"VLOOKUP($A81,F1__World_Data!$A$4:$DP$191,5,FALSE)","v":8896.2659999999996},{"$f":"VLOOKUP($A81,F1__World_Data!$A$4:$DP$191,4,FALSE)","v":8888.509},{"$f":"VLOOKUP($A81,F1__World_Data!$A$4:$DP$191,3,FALSE)","v":8869.9889999999996},{"$f":"VLOOKUP($A81,F1__World_Data!$A$4:$DP$191,2,FALSE)","v":8844.6380000000008},null,{"$f":"VLOOKUP($A81,F1__World_Data!$A$4:$DP$191,120,FALSE)","v":68.116},{"$f":"VLOOKUP($A81,F1__World_Data!$A$4:$DP$191,119,FALSE)","v":67.850999999999999},{"$f":"VLOOKUP($A81,F1__World_Data!$A$4:$DP$191,118,FALSE)","v":67.576999999999998},{"$f":"VLOOKUP($A81,F1__World_Data!$A$4:$DP$191,117,FALSE)","v":67.290999999999997},{"$f":"VLOOKUP($A81,F1__World_Data!$A$4:$DP$191,116,FALSE)","v":66.995000000000005},{"$f":"VLOOKUP($A81,F1__World_Data!$A$4:$DP$191,115,FALSE)","v":66.69},{"$f":"VLOOKUP($A81,F1__World_Data!$A$4:$DP$191,114,FALSE)","v":66.381},{"$f":"VLOOKUP($A81,F1__World_Data!$A$4:$DP$191,113,FALSE)","v":66.072000000000003},{"$f":"VLOOKUP($A81,F1__World_Data!$A$4:$DP$191,112,FALSE)","v":65.769000000000005},{"$f":"VLOOKUP($A81,F1__World_Data!$A$4:$DP$191,111,FALSE)","v":65.48},{"$f":"VLOOKUP($A81,F1__World_Data!$A$4:$DP$191,110,FALSE)","v":65.207999999999998},{"$f":"VLOOKUP($A81,F1__World_Data!$A$4:$DP$191,109,FALSE)","v":64.953000000000003},{"$f":"VLOOKUP($A81,F1__World_Data!$A$4:$DP$191,108,FALSE)","v":64.712000000000003},{"$f":"VLOOKUP($A81,F1__World_Data!$A$4:$DP$191,107,FALSE)","v":64.477999999999994},{"$f":"VLOOKUP($A81,F1__World_Data!$A$4:$DP$191,106,FALSE)","v":64.242000000000004},{"$f":"VLOOKUP($A81,F1__World_Data!$A$4:$DP$191,105,FALSE)","v":63.994999999999997},{"$f":"VLOOKUP($A81,F1__World_Data!$A$4:$DP$191,104,FALSE)","v":63.731000000000002},{"$f":"VLOOKUP($A81,F1__World_Data!$A$4:$DP$191,103,FALSE)","v":63.445999999999998},{"$f":"VLOOKUP($A81,F1__World_Data!$A$4:$DP$191,102,FALSE)","v":63.143999999999998},{"$f":"VLOOKUP($A81,F1__World_Data!$A$4:$DP$191,101,FALSE)","v":62.829000000000001},{"$f":"VLOOKUP($A81,F1__World_Data!$A$4:$DP$191,100,FALSE)","v":62.509},{"$f":"VLOOKUP($A81,F1__World_Data!$A$4:$DP$191,99,FALSE)","v":62.188000000000002},{"$f":"VLOOKUP($A81,F1__World_Data!$A$4:$DP$191,98,FALSE)","v":61.866},{"$f":"VLOOKUP($A81,F1__World_Data!$A$4:$DP$191,97,FALSE)","v":61.539000000000001},{"$f":"VLOOKUP($A81,F1__World_Data!$A$4:$DP$191,96,FALSE)","v":61.198},{"$f":"VLOOKUP($A81,F1__World_Data!$A$4:$DP$191,95,FALSE)","v":60.837000000000003},{"$f":"VLOOKUP($A81,F1__World_Data!$A$4:$DP$191,94,FALSE)","v":60.454999999999998},{"$f":"VLOOKUP($A81,F1__World_Data!$A$4:$DP$191,93,FALSE)","v":60.052999999999997},{"$f":"VLOOKUP($A81,F1__World_Data!$A$4:$DP$191,92,FALSE)","v":59.636000000000003},{"$f":"VLOOKUP($A81,F1__World_Data!$A$4:$DP$191,91,FALSE)","v":59.209000000000003},{"$f":"VLOOKUP($A81,F1__World_Data!$A$4:$DP$191,90,FALSE)","v":58.783000000000001},{"$f":"VLOOKUP($A81,F1__World_Data!$A$4:$DP$191,89,FALSE)","v":58.366},{"$f":"VLOOKUP($A81,F1__World_Data!$A$4:$DP$191,88,FALSE)","v":57.962000000000003},{"$f":"VLOOKUP($A81,F1__World_Data!$A$4:$DP$191,87,FALSE)","v":57.579000000000001},{"$f":"VLOOKUP($A81,F1__World_Data!$A$4:$DP$191,86,FALSE)","v":57.220999999999997},{"$f":"VLOOKUP($A81,F1__World_Data!$A$4:$DP$191,85,FALSE)","v":56.886000000000003},{"$f":"VLOOKUP($A81,F1__World_Data!$A$4:$DP$191,84,FALSE)","v":56.569000000000003},{"$f":"VLOOKUP($A81,F1__World_Data!$A$4:$DP$191,83,FALSE)","v":56.265999999999998},{"$f":"VLOOKUP($A81,F1__World_Data!$A$4:$DP$191,82,FALSE)","v":55.970999999999997},{"$f":"VLOOKUP($A81,F1__World_Data!$A$4:$DP$191,81,FALSE)","v":55.679000000000002},{"$f":"VLOOKUP($A81,F1__World_Data!$A$4:$DP$191,80,FALSE)","v":55.381999999999998},{"$f":"VLOOKUP($A81,F1__World_Data!$A$4:$DP$191,79,FALSE)","v":55.073999999999998},{"$f":"VLOOKUP($A81,F1__World_Data!$A$4:$DP$191,78,FALSE)","v":54.747999999999998},{"$f":"VLOOKUP($A81,F1__World_Data!$A$4:$DP$191,77,FALSE)","v":54.399000000000001},{"$f":"VLOOKUP($A81,F1__World_Data!$A$4:$DP$191,76,FALSE)","v":54.027000000000001},{"$f":"VLOOKUP($A81,F1__World_Data!$A$4:$DP$191,75,FALSE)","v":53.633000000000003},{"$f":"VLOOKUP($A81,F1__World_Data!$A$4:$DP$191,74,FALSE)","v":53.218000000000004},{"$f":"VLOOKUP($A81,F1__World_Data!$A$4:$DP$191,73,FALSE)","v":52.781999999999996},{"$f":"VLOOKUP($A81,F1__World_Data!$A$4:$DP$191,72,FALSE)","v":52.323},{"$f":"VLOOKUP($A81,F1__World_Data!$A$4:$DP$191,71,FALSE)","v":51.837000000000003},{"$f":"VLOOKUP($A81,F1__World_Data!$A$4:$DP$191,70,FALSE)","v":51.326999999999998},{"$f":"VLOOKUP($A81,F1__World_Data!$A$4:$DP$191,69,FALSE)","v":50.795999999999999},{"$f":"VLOOKUP($A81,F1__World_Data!$A$4:$DP$191,68,FALSE)","v":50.25},{"$f":"VLOOKUP($A81,F1__World_Data!$A$4:$DP$191,67,FALSE)","v":49.697000000000003},{"$f":"VLOOKUP($A81,F1__World_Data!$A$4:$DP$191,66,FALSE)","v":49.145000000000003},{"$f":"VLOOKUP($A81,F1__World_Data!$A$4:$DP$191,65,FALSE)","v":48.600999999999999},{"$f":"VLOOKUP($A81,F1__World_Data!$A$4:$DP$191,64,FALSE)","v":48.070999999999998},{"$f":"VLOOKUP($A81,F1__World_Data!$A$4:$DP$191,63,FALSE)","v":47.557000000000002},{"$f":"VLOOKUP($A81,F1__World_Data!$A$4:$DP$191,62,FALSE)","v":47.061}]
["Sweden",{"$f":"VLOOKUP($A82,F1__World_Data!$A$4:$DP$191,60,FALSE)","v":9971.6299999999992},{"$f":"VLOOKUP($A82,F1__World_Data!$A$4:$DP$191,59,FALSE)","v":9904.8950000000004},{"$f":"VLOOKUP($A82,F1__World_Data!$A$4:$DP$191,58,FALSE)","v":9836.0030000000006},{"$f":"VLOOKUP($A82,F1__World_Data!$A$4:$DP$191,57,FALSE)","v":9764.9490000000005},{"$f":"VLOOKUP($A82,F1__World_Data!$A$4:$DP$191,56,FALSE)","v":9692.1370000000006},{"$f":"VLOOKUP($A82,F1__World_Data!$A$4:$DP$191,55,FALSE)","v":9618.0159999999996},{"$f":"VLOOKUP($A82,F1__World_Data!$A$4:$DP$191,54,FALSE)","v":9542.8169999999991},{"$f":"VLOOKUP($A82,F1__World_Data!$A$4:$DP$191,53,FALSE)","v":9466.7049999999999},{"$f":"VLOOKUP($A82,F1__World_Data!$A$4:$DP$191,52,FALSE)","v":9390.1569999999992},{"$f":"VLOOKUP($A82,F1__World_Data!$A$4:$DP$191,51,FALSE)","v":9313.0849999999991},{"$f":"VLOOKUP($A82,F1__World_Data!$A$4:$DP$191,50,FALSE)","v":9236.4330000000009},{"$f":"VLOOKUP($A82,F1__World_Data!$A$4:$DP$191,49,FALSE)","v":9162.9410000000007},{"$f":"VLOOKUP($A82,F1__World_Data!$A$4:$DP$191,48,FALSE)","v":9096.17},{"$f":"VLOOKUP($A82,F1__World_Data!$A$4:$DP$191,47,FALSE)","v":9038.6270000000004},{"$f":"VLOOKUP($A82,F1__World_Data!$A$4:$DP$191,46,FALSE)","v":8990.6530000000002},{"$f":"VLOOKUP($A82,F1__World_Data!$A$4:$DP$191,45,FALSE)","v":8951.4390000000003},{"$f":"VLOOKUP($A82,F1__World_Data!$A$4:$DP$191,44,FALSE)","v":8920.7029999999995},{"$f":"VLOOKUP($A82,F1__World_Data!$A$4:$DP$191,43,FALSE)","v":8897.8019999999997},{"$f":"VLOOKUP($A82,F1__World_Data!$A$4:$DP$191,42,FALSE)","v":8881.6419999999998},{"$f":"VLOOKUP($A82,F1__World_Data!$A$4:$DP$191,41,FALSE)","v":8873.1049999999996},{"$f":"VLOOKUP($A82,F1__World_Data!$A$4:$DP$191,40,FALSE)","v":8870.8539999999994},{"$f":"VLOOKUP($A82,F1__World_Data!$A$4:$DP$191,39,FALSE)","v":8868.857},{"$f":"VLOOKUP($A82,F1__World_Data!$A$4:$DP$191,38,FALSE)","v":8859.18},{"$f":"VLOOKUP($A82,F1__World_Data!$A$4:$DP$191,37,FALSE)","v":8836.4210000000003},{"$f":"VLOOKUP($A82,F1__World_Data!$A$4:$DP$191,36,FALSE)","v":8798.2350000000006},{"$f":"VLOOKUP($A82,F1__World_Data!$A$4:$DP$191,35,FALSE)","v":8746.77},{"$f":"VLOOKUP($A82,F1__World_Data!$A$4:$DP$191,34,FALSE)","v":8686.7350000000006},{"$f":"VLOOKUP($A82,F1__World_Data!$A$4:$DP$191,33,FALSE)","v":8625.14},{"$f":"VLOOKUP($A82,F1__World_Data!$A$4:$DP$191,32,FALSE)","v":8567.375},{"$f":"VLOOKUP($A82,F1__World_Data!$A$4:$DP$191,31,FALSE)","v":8514.2039999999997},{"$f":"VLOOKUP($A82,F1__World_Data!$A$4:$DP$191,30,FALSE)","v":8464.7900000000009},{"$f":"VLOOKUP($A82,F1__World_Data!$A$4:$DP$191,29,FALSE)","v":8421.0560000000005},{"$f":"VLOOKUP($A82,F1__World_Data!$A$4:$DP$191,28,FALSE)","v":8384.9869999999992},{"$f":"VLOOKUP($A82,F1__World_Data!$A$4:$DP$191,27,FALSE)","v":8357.65},{"$f":"VLOOKUP($A82,F1__World_Data!$A$4:$DP$191,26,FALSE)","v":8340.4439999999995},{"$f":"VLOOKUP($A82,F1__World_Data!$A$4:$DP$191,25,FALSE)","v":8332.4410000000007},{"$f":"VLOOKUP($A82,F1__World_Data!$A$4:$DP$191,24,FALSE)","v":8329.4279999999999},{"$f":"VLOOKUP($A82,F1__World_Data!$A$4:$DP$191,23,FALSE)","v":8325.4930000000004},{"$f":"VLOOKUP($A82,F1__World_Data!$A$4:$DP$191,22,FALSE)","v":8316.3310000000001},{"$f":"VLOOKUP($A82,F1__World_Data!$A$4:$DP$191,21,FALSE)","v":8299.9959999999992},{"$f":"VLOOKUP($A82,F1__World_Data!$A$4:$DP$191,20,FALSE)","v":8277.4220000000005},{"$f":"VLOOKUP($A82,F1__World_Data!$A$4:$DP$191,19,FALSE)","v":8250.6919999999991},{"$f":"VLOOKUP($A82,F1__World_Data!$A$4:$DP$191,18,FALSE)","v":8223.2469999999994},{"$f":"VLOOKUP($A82,F1__World_Data!$A$4:$DP$191,17,FALSE)","v":8197.3410000000003},{"$f":"VLOOKUP($A82,F1__World_Data!$A$4:$DP$191,16,FALSE)","v":8173.9610000000002},{"$f":"VLOOKUP($A82,F1__World_Data!$A$4:$DP$191,15,FALSE)","v":8151.598},{"$f":"VLOOKUP($A82,F1__World_Data!$A$4:$DP$191,14,FALSE)","v":8127.0450000000001},{"$f":"VLOOKUP($A82,F1__World_Data!$A$4:$DP$191,13,FALSE)","v":8095.7979999999998},{"$f":"VLOOKUP($A82,F1__World_Data!$A$4:$DP$191,12,FALSE)","v":8054.9089999999997},{"$f":"VLOOKUP($A82,F1__World_Data!$A$4:$DP$191,11,FALSE)","v":8003.1859999999997},{"$f":"VLOOKUP($A82,F1__World_Data!$A$4:$DP$191,10,FALSE)","v":7942.3109999999997},{"$f":"VLOOKUP($A82,F1__World_Data!$A$4:$DP$191,9,FALSE)","v":7875.902},{"$f":"VLOOKUP($A82,F1__World_Data!$A$4:$DP$191,8,FALSE)","v":7809.085},{"$f":"VLOOKUP($A82,F1__World_Data!$A$4:$DP$191,7,FALSE)","v":7745.6779999999999},{"$f":"VLOOKUP($A82,F1__World_Data!$A$4:$DP$191,6,FALSE)","v":7686.7349999999997},{"$f":"VLOOKUP($A82,F1__World_Data!$A$4:$DP$191,5,FALSE)","v":7631.4530000000004},{"$f":"VLOOKUP($A82,F1__World_Data!$A$4:$DP$191,4,FALSE)","v":7579.57},{"$f":"VLOOKUP($A82,F1__World_Data!$A$4:$DP$191,3,FALSE)","v":7530.183},{"$f":"VLOOKUP($A82,F1__World_Data!$A$4:$DP$191,2,FALSE)","v":7482.5360000000001},null,{"$f":"VLOOKUP($A82,F1__World_Data!$A$4:$DP$191,120,FALSE)","v":63.856999999999999},{"$f":"VLOOKUP($A82,F1__World_Data!$A$4:$DP$191,119,FALSE)","v":63.537999999999997},{"$f":"VLOOKUP($A82,F1__World_Data!$A$4:$DP$191,118,FALSE)","v":63.152999999999999},{"$f":"VLOOKUP($A82,F1__World_Data!$A$4:$DP$191,117,FALSE)","v":62.649000000000001},{"$f":"VLOOKUP($A82,F1__World_Data!$A$4:$DP$191,116,FALSE)","v":61.968000000000004},{"$f":"VLOOKUP($A82,F1__World_Data!$A$4:$DP$191,115,FALSE)","v":61.098999999999997},{"$f":"VLOOKUP($A82,F1__World_Data!$A$4:$DP$191,114,FALSE)","v":60.06},{"$f":"VLOOKUP($A82,F1__World_Data!$A$4:$DP$191,113,FALSE)","v":58.895000000000003},{"$f":"VLOOKUP($A82,F1__World_Data!$A$4:$DP$191,112,FALSE)","v":57.668999999999997},{"$f":"VLOOKUP($A82,F1__World_Data!$A$4:$DP$191,111,FALSE)","v":56.46},{"$f":"VLOOKUP($A82,F1__World_Data!$A$4:$DP$191,110,FALSE)","v":55.36},{"$f":"VLOOKUP($A82,F1__World_Data!$A$4:$DP$191,109,FALSE)","v":54.451999999999998},{"$f":"VLOOKUP($A82,F1__World_Data!$A$4:$DP$191,108,FALSE)","v":53.795000000000002},{"$f":"VLOOKUP($A82,F1__World_Data!$A$4:$DP$191,107,FALSE)","v":53.447000000000003},{"$f":"VLOOKUP($A82,F1__World_Data!$A$4:$DP$191,106,FALSE)","v":53.444000000000003},{"$f":"VLOOKUP($A82,F1__World_Data!$A$4:$DP$191,105,FALSE)","v":53.749000000000002},{"$f":"VLOOKUP($A82,F1__World_Data!$A$4:$DP$191,104,FALSE)","v":54.31},{"$f":"VLOOKUP($A82,F1__World_Data!$A$4:$DP$191,103,FALSE)","v":55.088999999999999},{"$f":"VLOOKUP($A82,F1__World_Data!$A$4:$DP$191,102,FALSE)","v":56.048000000000002},{"$f":"VLOOKUP($A82,F1__World_Data!$A$4:$DP$191,101,FALSE)","v":57.143999999999998},{"$f":"VLOOKUP($A82,F1__World_Data!$A$4:$DP$191,100,FALSE)","v":58.314999999999998},{"$f":"VLOOKUP($A82,F1__World_Data!$A$4:$DP$191,99,FALSE)","v":59.488999999999997},{"$f":"VLOOKUP($A82,F1__World_Data!$A$4:$DP$191,98,FALSE)","v":60.594999999999999},{"$f":"VLOOKUP($A82,F1__World_Data!$A$4:$DP$191,97,FALSE)","v":61.561},{"$f":"VLOOKUP($A82,F1__World_Data!$A$4:$DP$191,96,FALSE)","v":62.331000000000003},{"$f":"VLOOKUP($A82,F1__World_Data!$A$4:$DP$191,95,FALSE)","v":62.893999999999998},{"$f":"VLOOKUP($A82,F1__World_Data!$A$4:$DP$191,94,FALSE)","v":63.247},{"$f":"VLOOKUP($A82,F1__World_Data!$A$4:$DP$191,93,FALSE)","v":63.384},{"$f":"VLOOKUP($A82,F1__World_Data!$A$4:$DP$191,92,FALSE)","v":63.307000000000002},{"$f":"VLOOKUP($A82,F1__World_Data!$A$4:$DP$191,91,FALSE)","v":63.034999999999997},{"$f":"VLOOKUP($A82,F1__World_Data!$A$4:$DP$191,90,FALSE)","v":62.619},{"$f":"VLOOKUP($A82,F1__World_Data!$A$4:$DP$191,89,FALSE)","v":62.109000000000002},{"$f":"VLOOKUP($A82,F1__World_Data!$A$4:$DP$191,88,FALSE)","v":61.54},{"$f":"VLOOKUP($A82,F1__World_Data!$A$4:$DP$191,87,FALSE)","v":60.945999999999998},{"$f":"VLOOKUP($A82,F1__World_Data!$A$4:$DP$191,86,FALSE)","v":60.353000000000002},{"$f":"VLOOKUP($A82,F1__World_Data!$A$4:$DP$191,85,FALSE)","v":59.765999999999998},{"$f":"VLOOKUP($A82,F1__World_Data!$A$4:$DP$191,84,FALSE)","v":59.191000000000003},{"$f":"VLOOKUP($A82,F1__World_Data!$A$4:$DP$191,83,FALSE)","v":58.637},{"$f":"VLOOKUP($A82,F1__World_Data!$A$4:$DP$191,82,FALSE)","v":58.106999999999999},{"$f":"VLOOKUP($A82,F1__World_Data!$A$4:$DP$191,81,FALSE)","v":57.59},{"$f":"VLOOKUP($A82,F1__World_Data!$A$4:$DP$191,80,FALSE)","v":57.070999999999998},{"$f":"VLOOKUP($A82,F1__World_Data!$A$4:$DP$191,79,FALSE)","v":56.537999999999997},{"$f":"VLOOKUP($A82,F1__World_Data!$A$4:$DP$191,78,FALSE)","v":55.99},{"$f":"VLOOKUP($A82,F1__World_Data!$A$4:$DP$191,77,FALSE)","v":55.427999999999997},{"$f":"VLOOKUP($A82,F1__World_Data!$A$4:$DP$191,76,FALSE)","v":54.856000000000002},{"$f":"VLOOKUP($A82,F1__World_Data!$A$4:$DP$191,75,FALSE)","v":54.280999999999999},{"$f":"VLOOKUP($A82,F1__World_Data!$A$4:$DP$191,74,FALSE)","v":53.713000000000001},{"$f":"VLOOKUP($A82,F1__World_Data!$A$4:$DP$191,73,FALSE)","v":53.156999999999996},{"$f":"VLOOKUP($A82,F1__World_Data!$A$4:$DP$191,72,FALSE)","v":52.62},{"$f":"VLOOKUP($A82,F1__World_Data!$A$4:$DP$191,71,FALSE)","v":52.106000000000002},{"$f":"VLOOKUP($A82,F1__World_Data!$A$4:$DP$191,70,FALSE)","v":51.615000000000002},{"$f":"VLOOKUP($A82,F1__World_Data!$A$4:$DP$191,69,FALSE)","v":51.148000000000003},{"$f":"VLOOKUP($A82,F1__World_Data!$A$4:$DP$191,68,FALSE)","v":50.704999999999998},{"$f":"VLOOKUP($A82,F1__World_Data!$A$4:$DP$191,67,FALSE)","v":50.283999999999999},{"$f":"VLOOKUP($A82,F1__World_Data!$A$4:$DP$191,66,FALSE)","v":49.887999999999998},{"$f":"VLOOKUP($A82,F1__World_Data!$A$4:$DP$191,65,FALSE)","v":49.509},{"$f":"VLOOKUP($A82,F1__World_Data!$A$4:$DP$191,64,FALSE)","v":49.142000000000003},{"$f":"VLOOKUP($A82,F1__World_Data!$A$4:$DP$191,63,FALSE)","v":48.777000000000001},{"$f":"VLOOKUP($A82,F1__World_Data!$A$4:$DP$191,62,FALSE)","v":48.405999999999999}]
["Jordan",{"$f":"VLOOKUP($A83,F1__World_Data!$A$4:$DP$191,60,FALSE)","v":9965.3220000000001},{"$f":"VLOOKUP($A83,F1__World_Data!$A$4:$DP$191,59,FALSE)","v":9785.84},{"$f":"VLOOKUP($A83,F1__World_Data!$A$4:$DP$191,58,FALSE)","v":9554.2860000000001},{"$f":"VLOOKUP($A83,F1__World_Data!$A$4:$DP$191,57,FALSE)","v":9266.5730000000003},{"$f":"VLOOKUP($A83,F1__World_Data!$A$4:$DP$191,56,FALSE)","v":8918.8220000000001},{"$f":"VLOOKUP($A83,F1__World_Data!$A$4:$DP$191,55,FALSE)","v":8518.9920000000002},{"$f":"VLOOKUP($A83,F1__World_Data!$A$4:$DP$191,54,FALSE)","v":8089.9629999999997},{"$f":"VLOOKUP($A83,F1__World_Data!$A$4:$DP$191,53,FALSE)","v":7662.8580000000002},{"$f":"VLOOKUP($A83,F1__World_Data!$A$4:$DP$191,52,FALSE)","v":7261.5410000000002},{"$f":"VLOOKUP($A83,F1__World_Data!$A$4:$DP$191,51,FALSE)","v":6893.2579999999998},{"$f":"VLOOKUP($A83,F1__World_Data!$A$4:$DP$191,50,FALSE)","v":6556.473},{"$f":"VLOOKUP($A83,F1__World_Data!$A$4:$DP$191,49,FALSE)","v":6255.29},{"$f":"VLOOKUP($A83,F1__World_Data!$A$4:$DP$191,48,FALSE)","v":5991.5469999999996},{"$f":"VLOOKUP($A83,F1__World_Data!$A$4:$DP$191,47,FALSE)","v":5765.6390000000001},{"$f":"VLOOKUP($A83,F1__World_Data!$A$4:$DP$191,46,FALSE)","v":5580.241},{"$f":"VLOOKUP($A83,F1__World_Data!$A$4:$DP$191,45,FALSE)","v":5434.0360000000001},{"$f":"VLOOKUP($A83,F1__World_Data!$A$4:$DP$191,44,FALSE)","v":5317.5140000000001},{"$f":"VLOOKUP($A83,F1__World_Data!$A$4:$DP$191,43,FALSE)","v":5217.3280000000004},{"$f":"VLOOKUP($A83,F1__World_Data!$A$4:$DP$191,42,FALSE)","v":5122.4949999999999},{"$f":"VLOOKUP($A83,F1__World_Data!$A$4:$DP$191,41,FALSE)","v":5031.7539999999999},{"$f":"VLOOKUP($A83,F1__World_Data!$A$4:$DP$191,40,FALSE)","v":4943.9750000000004},{"$f":"VLOOKUP($A83,F1__World_Data!$A$4:$DP$191,39,FALSE)","v":4848.5360000000001},{"$f":"VLOOKUP($A83,F1__World_Data!$A$4:$DP$191,38,FALSE)","v":4732.848},{"$f":"VLOOKUP($A83,F1__World_Data!$A$4:$DP$191,37,FALSE)","v":4588.8419999999996},{"$f":"VLOOKUP($A83,F1__World_Data!$A$4:$DP$191,36,FALSE)","v":4410.357},{"$f":"VLOOKUP($A83,F1__World_Data!$A$4:$DP$191,35,FALSE)","v":4201.5590000000002},{"$f":"VLOOKUP($A83,F1__World_Data!$A$4:$DP$191,34,FALSE)","v":3977.6669999999999},{"$f":"VLOOKUP($A83,F1__World_Data!$A$4:$DP$191,33,FALSE)","v":3760.4929999999999},{"$f":"VLOOKUP($A83,F1__World_Data!$A$4:$DP$191,32,FALSE)","v":3565.8879999999999},{"$f":"VLOOKUP($A83,F1__World_Data!$A$4:$DP$191,31,FALSE)","v":3399.3330000000001},{"$f":"VLOOKUP($A83,F1__World_Data!$A$4:$DP$191,30,FALSE)","v":3256.5520000000001},{"$f":"VLOOKUP($A83,F1__World_Data!$A$4:$DP$191,29,FALSE)","v":3131.8},{"$f":"VLOOKUP($A83,F1__World_Data!$A$4:$DP$191,28,FALSE)","v":3015.2939999999999},{"$f":"VLOOKUP($A83,F1__World_Data!$A$4:$DP$191,27,FALSE)","v":2900.0549999999998},{"$f":"VLOOKUP($A83,F1__World_Data!$A$4:$DP$191,26,FALSE)","v":2784.4569999999999},{"$f":"VLOOKUP($A83,F1__World_Data!$A$4:$DP$191,25,FALSE)","v":2671.413},{"$f":"VLOOKUP($A83,F1__World_Data!$A$4:$DP$191,24,FALSE)","v":2563.5250000000001},{"$f":"VLOOKUP($A83,F1__World_Data!$A$4:$DP$191,23,FALSE)","v":2464.87},{"$f":"VLOOKUP($A83,F1__World_Data!$A$4:$DP$191,22,FALSE)","v":2377.9969999999998},{"$f":"VLOOKUP($A83,F1__World_Data!$A$4:$DP$191,21,FALSE)","v":2303.116},{"$f":"VLOOKUP($A83,F1__World_Data!$A$4:$DP$191,20,FALSE)","v":2237.9360000000001},{"$f":"VLOOKUP($A83,F1__World_Data!$A$4:$DP$191,19,FALSE)","v":2179.3609999999999},{"$f":"VLOOKUP($A83,F1__World_Data!$A$4:$DP$191,18,FALSE)","v":2123.1799999999998},{"$f":"VLOOKUP($A83,F1__World_Data!$A$4:$DP$191,17,FALSE)","v":2065.9160000000002},{"$f":"VLOOKUP($A83,F1__World_Data!$A$4:$DP$191,16,FALSE)","v":2007.7349999999999},{"$f":"VLOOKUP($A83,F1__World_Data!$A$4:$DP$191,15,FALSE)","v":1948.443},{"$f":"VLOOKUP($A83,F1__World_Data!$A$4:$DP$191,14,FALSE)","v":1883.923},{"$f":"VLOOKUP($A83,F1__World_Data!$A$4:$DP$191,13,FALSE)","v":1809.193},{"$f":"VLOOKUP($A83,F1__World_Data!$A$4:$DP$191,12,FALSE)","v":1721.3150000000001},{"$f":"VLOOKUP($A83,F1__World_Data!$A$4:$DP$191,11,FALSE)","v":1617.4269999999999},{"$f":"VLOOKUP($A83,F1__World_Data!$A$4:$DP$191,10,FALSE)","v":1500.1679999999999},{"$f":"VLOOKUP($A83,F1__World_Data!$A$4:$DP$191,9,FALSE)","v":1378.9949999999999},{"$f":"VLOOKUP($A83,F1__World_Data!$A$4:$DP$191,8,FALSE)","v":1267.0630000000001},{"$f":"VLOOKUP($A83,F1__World_Data!$A$4:$DP$191,7,FALSE)","v":1173.6030000000001},{"$f":"VLOOKUP($A83,F1__World_Data!$A$4:$DP$191,6,FALSE)","v":1102.404},{"$f":"VLOOKUP($A83,F1__World_Data!$A$4:$DP$191,5,FALSE)","v":1050.212},{"$f":"VLOOKUP($A83,F1__World_Data!$A$4:$DP$191,4,FALSE)","v":1010.647},{"$f":"VLOOKUP($A83,F1__World_Data!$A$4:$DP$191,3,FALSE)","v":973.98299999999995},{"$f":"VLOOKUP($A83,F1__World_Data!$A$4:$DP$191,2,FALSE)","v":933.10199999999998},null,{"$f":"VLOOKUP($A83,F1__World_Data!$A$4:$DP$191,120,FALSE)","v":84.210975609756105},{"$f":"VLOOKUP($A83,F1__World_Data!$A$4:$DP$191,119,FALSE)","v":84.099756097560984},{"$f":"VLOOKUP($A83,F1__World_Data!$A$4:$DP$191,118,FALSE)","v":83.984878048780502},{"$f":"VLOOKUP($A83,F1__World_Data!$A$4:$DP$191,117,FALSE)","v":83.793902439024393},{"$f":"VLOOKUP($A83,F1__World_Data!$A$4:$DP$191,116,FALSE)","v":83.5878048780488},{"$f":"VLOOKUP($A83,F1__World_Data!$A$4:$DP$191,115,FALSE)","v":83.331951219512206},{"$f":"VLOOKUP($A83,F1__World_Data!$A$4:$DP$191,114,FALSE)","v":83.096097560975608},{"$f":"VLOOKUP($A83,F1__World_Data!$A$4:$DP$191,113,FALSE)","v":82.591219512195138},{"$f":"VLOOKUP($A83,F1__World_Data!$A$4:$DP$191,112,FALSE)","v":82.842682926829269},{"$f":"VLOOKUP($A83,F1__World_Data!$A$4:$DP$191,111,FALSE)","v":82.931463414634152},{"$f":"VLOOKUP($A83,F1__World_Data!$A$4:$DP$191,110,FALSE)","v":82.587560975609776},{"$f":"VLOOKUP($A83,F1__World_Data!$A$4:$DP$191,109,FALSE)","v":82.507073170731715},{"$f":"VLOOKUP($A83,F1__World_Data!$A$4:$DP$191,108,FALSE)","v":82.321951219512201},{"$f":"VLOOKUP($A83,F1__World_Data!$A$4:$DP$191,107,FALSE)","v":81.925121951219523},{"$f":"VLOOKUP($A83,F1__World_Data!$A$4:$DP$191,106,FALSE)","v":82.03024390243904},{"$f":"VLOOKUP($A83,F1__World_Data!$A$4:$DP$191,105,FALSE)","v":81.760000000000005},{"$f":"VLOOKUP($A83,F1__World_Data!$A$4:$DP$191,104,FALSE)","v":81.563414634146341},{"$f":"VLOOKUP($A83,F1__World_Data!$A$4:$DP$191,103,FALSE)","v":81.417073170731712},{"$f":"VLOOKUP($A83,F1__World_Data!$A$4:$DP$191,102,FALSE)","v":81.076097560975626},{"$f":"VLOOKUP($A83,F1__World_Data!$A$4:$DP$191,101,FALSE)","v":80.570731707317094},{"$f":"VLOOKUP($A83,F1__World_Data!$A$4:$DP$191,100,FALSE)","v":80.501463414634159},{"$f":"VLOOKUP($A83,F1__World_Data!$A$4:$DP$191,99,FALSE)","v":80.424146341463413},{"$f":"VLOOKUP($A83,F1__World_Data!$A$4:$DP$191,98,FALSE)","v":80.200243902439041},{"$f":"VLOOKUP($A83,F1__World_Data!$A$4:$DP$191,97,FALSE)","v":79.536341463414658},{"$f":"VLOOKUP($A83,F1__World_Data!$A$4:$DP$191,96,FALSE)","v":79.687073170731708},{"$f":"VLOOKUP($A83,F1__World_Data!$A$4:$DP$191,95,FALSE)","v":79.293658536585369},{"$f":"VLOOKUP($A83,F1__World_Data!$A$4:$DP$191,94,FALSE)","v":79.153902439024392},{"$f":"VLOOKUP($A83,F1__World_Data!$A$4:$DP$191,93,FALSE)","v":79.100731707317081},{"$f":"VLOOKUP($A83,F1__World_Data!$A$4:$DP$191,92,FALSE)","v":78.836829268292689},{"$f":"VLOOKUP($A83,F1__World_Data!$A$4:$DP$191,91,FALSE)","v":78.818048780487814},{"$f":"VLOOKUP($A83,F1__World_Data!$A$4:$DP$191,90,FALSE)","v":78.399268292682933},{"$f":"VLOOKUP($A83,F1__World_Data!$A$4:$DP$191,89,FALSE)","v":78.483658536585381},{"$f":"VLOOKUP($A83,F1__World_Data!$A$4:$DP$191,88,FALSE)","v":78.064634146341476},{"$f":"VLOOKUP($A83,F1__World_Data!$A$4:$DP$191,87,FALSE)","v":77.65048780487804},{"$f":"VLOOKUP($A83,F1__World_Data!$A$4:$DP$191,86,FALSE)","v":77.365365853658531},{"$f":"VLOOKUP($A83,F1__World_Data!$A$4:$DP$191,85,FALSE)","v":76.961463414634167},{"$f":"VLOOKUP($A83,F1__World_Data!$A$4:$DP$191,84,FALSE)","v":76.922926829268306},{"$f":"VLOOKUP($A83,F1__World_Data!$A$4:$DP$191,83,FALSE)","v":76.41439024390246},{"$f":"VLOOKUP($A83,F1__World_Data!$A$4:$DP$191,82,FALSE)","v":76.091707317073173},{"$f":"VLOOKUP($A83,F1__World_Data!$A$4:$DP$191,81,FALSE)","v":76.337560975609776},{"$f":"VLOOKUP($A83,F1__World_Data!$A$4:$DP$191,80,FALSE)","v":76.038292682926837},{"$f":"VLOOKUP($A83,F1__World_Data!$A$4:$DP$191,79,FALSE)","v":75.898292682926837},{"$f":"VLOOKUP($A83,F1__World_Data!$A$4:$DP$191,78,FALSE)","v":75.456829268292708},{"$f":"VLOOKUP($A83,F1__World_Data!$A$4:$DP$191,77,FALSE)","v":75.057317073170736},{"$f":"VLOOKUP($A83,F1__World_Data!$A$4:$DP$191,76,FALSE)","v":74.393902439024387},{"$f":"VLOOKUP($A83,F1__World_Data!$A$4:$DP$191,75,FALSE)","v":73.757560975609749},{"$f":"VLOOKUP($A83,F1__World_Data!$A$4:$DP$191,74,FALSE)","v":73.506585365853667},{"$f":"VLOOKUP($A83,F1__World_Data!$A$4:$DP$191,73,FALSE)","v":72.882926829268314},{"$f":"VLOOKUP($A83,F1__World_Data!$A$4:$DP$191,72,FALSE)","v":71.950243902439027},{"$f":"VLOOKUP($A83,F1__World_Data!$A$4:$DP$191,71,FALSE)","v":71.838780487804883},{"$f":"VLOOKUP($A83,F1__World_Data!$A$4:$DP$191,70,FALSE)","v":71.61121951219512},{"$f":"VLOOKUP($A83,F1__World_Data!$A$4:$DP$191,69,FALSE)","v":71.276585365853663},{"$f":"VLOOKUP($A83,F1__World_Data!$A$4:$DP$191,68,FALSE)","v":70.986585365853671},{"$f":"VLOOKUP($A83,F1__World_Data!$A$4:$DP$191,67,FALSE)","v":70.201951219512196},{"$f":"VLOOKUP($A83,F1__World_Data!$A$4:$DP$191,66,FALSE)","v":70.132439024390251},{"$f":"VLOOKUP($A83,F1__World_Data!$A$4:$DP$191,65,FALSE)","v":69.658048780487832},{"$f":"VLOOKUP($A83,F1__World_Data!$A$4:$DP$191,64,FALSE)","v":68.594878048780501},{"$f":"VLOOKUP($A83,F1__World_Data!$A$4:$DP$191,63,FALSE)","v":68.31},{"$f":"VLOOKUP($A83,F1__World_Data!$A$4:$DP$191,62,FALSE)","v":67.666097560975629}]
["Azerbaijan",{"$f":"VLOOKUP($A84,F1__World_Data!$A$4:$DP$191,60,FALSE)","v":9949.5370000000003},{"$f":"VLOOKUP($A84,F1__World_Data!$A$4:$DP$191,59,FALSE)","v":9845.3160000000007},{"$f":"VLOOKUP($A84,F1__World_Data!$A$4:$DP$191,58,FALSE)","v":9736.0409999999993},{"$f":"VLOOKUP($A84,F1__World_Data!$A$4:$DP$191,57,FALSE)","v":9622.741},{"$f":"VLOOKUP($A84,F1__World_Data!$A$4:$DP$191,56,FALSE)","v":9505.616},{"$f":"VLOOKUP($A84,F1__World_Data!$A$4:$DP$191,55,FALSE)","v":9385.4670000000006},{"$f":"VLOOKUP($A84,F1__World_Data!$A$4:$DP$191,54,FALSE)","v":9264.6839999999993},{"$f":"VLOOKUP($A84,F1__World_Data!$A$4:$DP$191,53,FALSE)","v":9146.277},{"$f":"VLOOKUP($A84,F1__World_Data!$A$4:$DP$191,52,FALSE)","v":9032.4650000000001},{"$f":"VLOOKUP($A84,F1__World_Data!$A$4:$DP$191,51,FALSE)","v":8924.3829999999998},{"$f":"VLOOKUP($A84,F1__World_Data!$A$4:$DP$191,50,FALSE)","v":8821.8690000000006},{"$f":"VLOOKUP($A84,F1__World_Data!$A$4:$DP$191,49,FALSE)","v":8724.2369999999992},{"$f":"VLOOKUP($A84,F1__World_Data!$A$4:$DP$191,48,FALSE)","v":8630.1530000000002},{"$f":"VLOOKUP($A84,F1__World_Data!$A$4:$DP$191,47,FALSE)","v":8538.61},{"$f":"VLOOKUP($A84,F1__World_Data!$A$4:$DP$191,46,FALSE)","v":8448.9380000000001},{"$f":"VLOOKUP($A84,F1__World_Data!$A$4:$DP$191,45,FALSE)","v":8361.4330000000009},{"$f":"VLOOKUP($A84,F1__World_Data!$A$4:$DP$191,44,FALSE)","v":8277.0650000000005},{"$f":"VLOOKUP($A84,F1__World_Data!$A$4:$DP$191,43,FALSE)","v":8197.2950000000001},{"$f":"VLOOKUP($A84,F1__World_Data!$A$4:$DP$191,42,FALSE)","v":8122.7430000000004},{"$f":"VLOOKUP($A84,F1__World_Data!$A$4:$DP$191,41,FALSE)","v":8054.1260000000002},{"$f":"VLOOKUP($A84,F1__World_Data!$A$4:$DP$191,40,FALSE)","v":7989.9030000000002},{"$f":"VLOOKUP($A84,F1__World_Data!$A$4:$DP$191,39,FALSE)","v":7925.6679999999997},{"$f":"VLOOKUP($A84,F1__World_Data!$A$4:$DP$191,38,FALSE)","v":7855.558},{"$f":"VLOOKUP($A84,F1__World_Data!$A$4:$DP$191,37,FALSE)","v":7775.4179999999997},{"$f":"VLOOKUP($A84,F1__World_Data!$A$4:$DP$191,36,FALSE)","v":7683.7039999999997},{"$f":"VLOOKUP($A84,F1__World_Data!$A$4:$DP$191,35,FALSE)","v":7581.7539999999999},{"$f":"VLOOKUP($A84,F1__World_Data!$A$4:$DP$191,34,FALSE)","v":7471.924},{"$f":"VLOOKUP($A84,F1__World_Data!$A$4:$DP$191,33,FALSE)","v":7357.9449999999997},{"$f":"VLOOKUP($A84,F1__World_Data!$A$4:$DP$191,32,FALSE)","v":7242.7579999999998},{"$f":"VLOOKUP($A84,F1__World_Data!$A$4:$DP$191,31,FALSE)","v":7126.8770000000004},{"$f":"VLOOKUP($A84,F1__World_Data!$A$4:$DP$191,30,FALSE)","v":7010.027},{"$f":"VLOOKUP($A84,F1__World_Data!$A$4:$DP$191,29,FALSE)","v":6893.4859999999999},{"$f":"VLOOKUP($A84,F1__World_Data!$A$4:$DP$191,28,FALSE)","v":6778.6310000000003},{"$f":"VLOOKUP($A84,F1__World_Data!$A$4:$DP$191,27,FALSE)","v":6666.4470000000001},{"$f":"VLOOKUP($A84,F1__World_Data!$A$4:$DP$191,26,FALSE)","v":6557.5810000000001},{"$f":"VLOOKUP($A84,F1__World_Data!$A$4:$DP$191,25,FALSE)","v":6452.067},{"$f":"VLOOKUP($A84,F1__World_Data!$A$4:$DP$191,24,FALSE)","v":6349.5550000000003},{"$f":"VLOOKUP($A84,F1__World_Data!$A$4:$DP$191,23,FALSE)","v":6249.3119999999999},{"$f":"VLOOKUP($A84,F1__World_Data!$A$4:$DP$191,22,FALSE)","v":6150.7349999999997},{"$f":"VLOOKUP($A84,F1__World_Data!$A$4:$DP$191,21,FALSE)","v":6053.6350000000002},{"$f":"VLOOKUP($A84,F1__World_Data!$A$4:$DP$191,20,FALSE)","v":5957.9269999999997},{"$f":"VLOOKUP($A84,F1__World_Data!$A$4:$DP$191,19,FALSE)","v":5863.1379999999999},{"$f":"VLOOKUP($A84,F1__World_Data!$A$4:$DP$191,18,FALSE)","v":5768.73},{"$f":"VLOOKUP($A84,F1__World_Data!$A$4:$DP$191,17,FALSE)","v":5674.1289999999999},{"$f":"VLOOKUP($A84,F1__World_Data!$A$4:$DP$191,16,FALSE)","v":5579.0709999999999},{"$f":"VLOOKUP($A84,F1__World_Data!$A$4:$DP$191,15,FALSE)","v":5483.0879999999997},{"$f":"VLOOKUP($A84,F1__World_Data!$A$4:$DP$191,14,FALSE)","v":5385.2659999999996},{"$f":"VLOOKUP($A84,F1__World_Data!$A$4:$DP$191,13,FALSE)","v":5284.518},{"$f":"VLOOKUP($A84,F1__World_Data!$A$4:$DP$191,12,FALSE)","v":5180.0320000000002},{"$f":"VLOOKUP($A84,F1__World_Data!$A$4:$DP$191,11,FALSE)","v":5071.93},{"$f":"VLOOKUP($A84,F1__World_Data!$A$4:$DP$191,10,FALSE)","v":4960.2370000000001},{"$f":"VLOOKUP($A84,F1__World_Data!$A$4:$DP$191,9,FALSE)","v":4843.8720000000003},{"$f":"VLOOKUP($A84,F1__World_Data!$A$4:$DP$191,8,FALSE)","v":4721.5280000000002},{"$f":"VLOOKUP($A84,F1__World_Data!$A$4:$DP$191,7,FALSE)","v":4592.6009999999997},{"$f":"VLOOKUP($A84,F1__World_Data!$A$4:$DP$191,6,FALSE)","v":4456.6909999999998},{"$f":"VLOOKUP($A84,F1__World_Data!$A$4:$DP$191,5,FALSE)","v":4315.1270000000004},{"$f":"VLOOKUP($A84,F1__World_Data!$A$4:$DP$191,4,FALSE)","v":4171.4279999999999},{"$f":"VLOOKUP($A84,F1__World_Data!$A$4:$DP$191,3,FALSE)","v":4030.3249999999998},{"$f":"VLOOKUP($A84,F1__World_Data!$A$4:$DP$191,2,FALSE)","v":3895.3980000000001},null,{"$f":"VLOOKUP($A84,F1__World_Data!$A$4:$DP$191,120,FALSE)","v":72.864000000000004},{"$f":"VLOOKUP($A84,F1__World_Data!$A$4:$DP$191,119,FALSE)","v":72.692999999999998},{"$f":"VLOOKUP($A84,F1__World_Data!$A$4:$DP$191,118,FALSE)","v":72.492999999999995},{"$f":"VLOOKUP($A84,F1__World_Data!$A$4:$DP$191,117,FALSE)","v":72.266000000000005},{"$f":"VLOOKUP($A84,F1__World_Data!$A$4:$DP$191,116,FALSE)","v":72.022000000000006},{"$f":"VLOOKUP($A84,F1__World_Data!$A$4:$DP$191,115,FALSE)","v":71.768000000000001},{"$f":"VLOOKUP($A84,F1__World_Data!$A$4:$DP$191,114,FALSE)","v":71.506},{"$f":"VLOOKUP($A84,F1__World_Data!$A$4:$DP$191,113,FALSE)","v":71.233999999999995},{"$f":"VLOOKUP($A84,F1__World_Data!$A$4:$DP$191,112,FALSE)","v":70.938000000000002},{"$f":"VLOOKUP($A84,F1__World_Data!$A$4:$DP$191,111,FALSE)","v":70.596999999999994},{"$f":"VLOOKUP($A84,F1__World_Data!$A$4:$DP$191,110,FALSE)","v":70.200999999999993},{"$f":"VLOOKUP($A84,F1__World_Data!$A$4:$DP$191,109,FALSE)","v":69.751999999999995},{"$f":"VLOOKUP($A84,F1__World_Data!$A$4:$DP$191,108,FALSE)","v":69.259},{"$f":"VLOOKUP($A84,F1__World_Data!$A$4:$DP$191,107,FALSE)","v":68.747},{"$f":"VLOOKUP($A84,F1__World_Data!$A$4:$DP$191,106,FALSE)","v":68.248999999999995},{"$f":"VLOOKUP($A84,F1__World_Data!$A$4:$DP$191,105,FALSE)","v":67.790999999999997},{"$f":"VLOOKUP($A84,F1__World_Data!$A$4:$DP$191,104,FALSE)","v":67.391000000000005},{"$f":"VLOOKUP($A84,F1__World_Data!$A$4:$DP$191,103,FALSE)","v":67.054000000000002},{"$f":"VLOOKUP($A84,F1__World_Data!$A$4:$DP$191,102,FALSE)","v":66.763000000000005},{"$f":"VLOOKUP($A84,F1__World_Data!$A$4:$DP$191,101,FALSE)","v":66.491},{"$f":"VLOOKUP($A84,F1__World_Data!$A$4:$DP$191,100,FALSE)","v":66.206999999999994},{"$f":"VLOOKUP($A84,F1__World_Data!$A$4:$DP$191,99,FALSE)","v":65.899000000000001},{"$f":"VLOOKUP($A84,F1__World_Data!$A$4:$DP$191,98,FALSE)","v":65.572999999999993},{"$f":"VLOOKUP($A84,F1__World_Data!$A$4:$DP$191,97,FALSE)","v":65.256},{"$f":"VLOOKUP($A84,F1__World_Data!$A$4:$DP$191,96,FALSE)","v":64.991},{"$f":"VLOOKUP($A84,F1__World_Data!$A$4:$DP$191,95,FALSE)","v":64.81},{"$f":"VLOOKUP($A84,F1__World_Data!$A$4:$DP$191,94,FALSE)","v":64.730999999999995},{"$f":"VLOOKUP($A84,F1__World_Data!$A$4:$DP$191,93,FALSE)","v":64.745000000000005},{"$f":"VLOOKUP($A84,F1__World_Data!$A$4:$DP$191,92,FALSE)","v":64.826999999999998},{"$f":"VLOOKUP($A84,F1__World_Data!$A$4:$DP$191,91,FALSE)","v":64.935000000000002},{"$f":"VLOOKUP($A84,F1__World_Data!$A$4:$DP$191,90,FALSE)","v":65.021000000000001},{"$f":"VLOOKUP($A84,F1__World_Data!$A$4:$DP$191,89,FALSE)","v":65.052999999999997},{"$f":"VLOOKUP($A84,F1__World_Data!$A$4:$DP$191,88,FALSE)","v":65.016000000000005},{"$f":"VLOOKUP($A84,F1__World_Data!$A$4:$DP$191,87,FALSE)","v":64.912999999999997},{"$f":"VLOOKUP($A84,F1__World_Data!$A$4:$DP$191,86,FALSE)","v":64.759},{"$f":"VLOOKUP($A84,F1__World_Data!$A$4:$DP$191,85,FALSE)","v":64.587000000000003},{"$f":"VLOOKUP($A84,F1__World_Data!$A$4:$DP$191,84,FALSE)","v":64.424999999999997},{"$f":"VLOOKUP($A84,F1__World_Data!$A$4:$DP$191,83,FALSE)","v":64.28},{"$f":"VLOOKUP($A84,F1__World_Data!$A$4:$DP$191,82,FALSE)","v":64.161000000000001},{"$f":"VLOOKUP($A84,F1__World_Data!$A$4:$DP$191,81,FALSE)","v":64.069000000000003},{"$f":"VLOOKUP($A84,F1__World_Data!$A$4:$DP$191,80,FALSE)","v":63.991999999999997},{"$f":"VLOOKUP($A84,F1__World_Data!$A$4:$DP$191,79,FALSE)","v":63.920999999999999},{"$f":"VLOOKUP($A84,F1__World_Data!$A$4:$DP$191,78,FALSE)","v":63.851999999999997},{"$f":"VLOOKUP($A84,F1__World_Data!$A$4:$DP$191,77,FALSE)","v":63.776000000000003},{"$f":"VLOOKUP($A84,F1__World_Data!$A$4:$DP$191,76,FALSE)","v":63.686999999999998},{"$f":"VLOOKUP($A84,F1__World_Data!$A$4:$DP$191,75,FALSE)","v":63.582000000000001},{"$f":"VLOOKUP($A84,F1__World_Data!$A$4:$DP$191,74,FALSE)","v":63.457000000000001},{"$f":"VLOOKUP($A84,F1__World_Data!$A$4:$DP$191,73,FALSE)","v":63.31},{"$f":"VLOOKUP($A84,F1__World_Data!$A$4:$DP$191,72,FALSE)","v":63.140999999999998},{"$f":"VLOOKUP($A84,F1__World_Data!$A$4:$DP$191,71,FALSE)","v":62.953000000000003},{"$f":"VLOOKUP($A84,F1__World_Data!$A$4:$DP$191,70,FALSE)","v":62.75},{"$f":"VLOOKUP($A84,F1__World_Data!$A$4:$DP$191,69,FALSE)","v":62.539000000000001},{"$f":"VLOOKUP($A84,F1__World_Data!$A$4:$DP$191,68,FALSE)","v":62.322000000000003},{"$f":"VLOOKUP($A84,F1__World_Data!$A$4:$DP$191,67,FALSE)","v":62.103999999999999},{"$f":"VLOOKUP($A84,F1__World_Data!$A$4:$DP$191,66,FALSE)","v":61.889000000000003},{"$f":"VLOOKUP($A84,F1__World_Data!$A$4:$DP$191,65,FALSE)","v":61.679000000000002},{"$f":"VLOOKUP($A84,F1__World_Data!$A$4:$DP$191,64,FALSE)","v":61.469000000000001},{"$f":"VLOOKUP($A84,F1__World_Data!$A$4:$DP$191,63,FALSE)","v":61.256},{"$f":"VLOOKUP($A84,F1__World_Data!$A$4:$DP$191,62,FALSE)","v":61.033999999999999}]
["Hungary",{"$f":"VLOOKUP($A85,F1__World_Data!$A$4:$DP$191,60,FALSE)","v":9707.5020000000004},{"$f":"VLOOKUP($A85,F1__World_Data!$A$4:$DP$191,59,FALSE)","v":9729.8220000000001},{"$f":"VLOOKUP($A85,F1__World_Data!$A$4:$DP$191,58,FALSE)","v":9752.9699999999993},{"$f":"VLOOKUP($A85,F1__World_Data!$A$4:$DP$191,57,FALSE)","v":9777.9249999999993},{"$f":"VLOOKUP($A85,F1__World_Data!$A$4:$DP$191,56,FALSE)","v":9804.991},{"$f":"VLOOKUP($A85,F1__World_Data!$A$4:$DP$191,55,FALSE)","v":9833.9230000000007},{"$f":"VLOOKUP($A85,F1__World_Data!$A$4:$DP$191,54,FALSE)","v":9864.3629999999994},{"$f":"VLOOKUP($A85,F1__World_Data!$A$4:$DP$191,53,FALSE)","v":9895.6890000000003},{"$f":"VLOOKUP($A85,F1__World_Data!$A$4:$DP$191,52,FALSE)","v":9927.3799999999992},{"$f":"VLOOKUP($A85,F1__World_Data!$A$4:$DP$191,51,FALSE)","v":9959.4390000000003},{"$f":"VLOOKUP($A85,F1__World_Data!$A$4:$DP$191,50,FALSE)","v":9991.8670000000002},{"$f":"VLOOKUP($A85,F1__World_Data!$A$4:$DP$191,49,FALSE)","v":10024.157999999999},{"$f":"VLOOKUP($A85,F1__World_Data!$A$4:$DP$191,48,FALSE)","v":10055.656999999999},{"$f":"VLOOKUP($A85,F1__World_Data!$A$4:$DP$191,47,FALSE)","v":10085.941999999999},{"$f":"VLOOKUP($A85,F1__World_Data!$A$4:$DP$191,46,FALSE)","v":10114.481},{"$f":"VLOOKUP($A85,F1__World_Data!$A$4:$DP$191,45,FALSE)","v":10141.341},{"$f":"VLOOKUP($A85,F1__World_Data!$A$4:$DP$191,44,FALSE)","v":10167.286},{"$f":"VLOOKUP($A85,F1__World_Data!$A$4:$DP$191,43,FALSE)","v":10193.450999999999},{"$f":"VLOOKUP($A85,F1__World_Data!$A$4:$DP$191,42,FALSE)","v":10220.509},{"$f":"VLOOKUP($A85,F1__World_Data!$A$4:$DP$191,41,FALSE)","v":10249.406999999999},{"$f":"VLOOKUP($A85,F1__World_Data!$A$4:$DP$191,40,FALSE)","v":10279.61},{"$f":"VLOOKUP($A85,F1__World_Data!$A$4:$DP$191,39,FALSE)","v":10308.478999999999},{"$f":"VLOOKUP($A85,F1__World_Data!$A$4:$DP$191,38,FALSE)","v":10332.450999999999},{"$f":"VLOOKUP($A85,F1__World_Data!$A$4:$DP$191,37,FALSE)","v":10349.308000000001},{"$f":"VLOOKUP($A85,F1__World_Data!$A$4:$DP$191,36,FALSE)","v":10357.585999999999},{"$f":"VLOOKUP($A85,F1__World_Data!$A$4:$DP$191,35,FALSE)","v":10359.052},{"$f":"VLOOKUP($A85,F1__World_Data!$A$4:$DP$191,34,FALSE)","v":10358.621999999999},{"$f":"VLOOKUP($A85,F1__World_Data!$A$4:$DP$191,33,FALSE)","v":10363.049999999999},{"$f":"VLOOKUP($A85,F1__World_Data!$A$4:$DP$191,32,FALSE)","v":10377.135},{"$f":"VLOOKUP($A85,F1__World_Data!$A$4:$DP$191,31,FALSE)","v":10401.614},{"$f":"VLOOKUP($A85,F1__World_Data!$A$4:$DP$191,30,FALSE)","v":10434.539000000001},{"$f":"VLOOKUP($A85,F1__World_Data!$A$4:$DP$191,29,FALSE)","v":10474.544},{"$f":"VLOOKUP($A85,F1__World_Data!$A$4:$DP$191,28,FALSE)","v":10519.296},{"$f":"VLOOKUP($A85,F1__World_Data!$A$4:$DP$191,27,FALSE)","v":10566.321},{"$f":"VLOOKUP($A85,F1__World_Data!$A$4:$DP$191,26,FALSE)","v":10616.742},{"$f":"VLOOKUP($A85,F1__World_Data!$A$4:$DP$191,25,FALSE)","v":10669.203},{"$f":"VLOOKUP($A85,F1__World_Data!$A$4:$DP$191,24,FALSE)","v":10715.857},{"$f":"VLOOKUP($A85,F1__World_Data!$A$4:$DP$191,23,FALSE)","v":10746.489},{"$f":"VLOOKUP($A85,F1__World_Data!$A$4:$DP$191,22,FALSE)","v":10754.286},{"$f":"VLOOKUP($A85,F1__World_Data!$A$4:$DP$191,21,FALSE)","v":10735.499},{"$f":"VLOOKUP($A85,F1__World_Data!$A$4:$DP$191,20,FALSE)","v":10693.326999999999},{"$f":"VLOOKUP($A85,F1__World_Data!$A$4:$DP$191,19,FALSE)","v":10636.566999999999},{"$f":"VLOOKUP($A85,F1__World_Data!$A$4:$DP$191,18,FALSE)","v":10577.941999999999},{"$f":"VLOOKUP($A85,F1__World_Data!$A$4:$DP$191,17,FALSE)","v":10526.777},{"$f":"VLOOKUP($A85,F1__World_Data!$A$4:$DP$191,16,FALSE)","v":10486.191000000001},{"$f":"VLOOKUP($A85,F1__World_Data!$A$4:$DP$191,15,FALSE)","v":10453.66},{"$f":"VLOOKUP($A85,F1__World_Data!$A$4:$DP$191,14,FALSE)","v":10426.084999999999},{"$f":"VLOOKUP($A85,F1__World_Data!$A$4:$DP$191,13,FALSE)","v":10398.163},{"$f":"VLOOKUP($A85,F1__World_Data!$A$4:$DP$191,12,FALSE)","v":10366.099},{"$f":"VLOOKUP($A85,F1__World_Data!$A$4:$DP$191,11,FALSE)","v":10329.352000000001},{"$f":"VLOOKUP($A85,F1__World_Data!$A$4:$DP$191,10,FALSE)","v":10289.769},{"$f":"VLOOKUP($A85,F1__World_Data!$A$4:$DP$191,9,FALSE)","v":10248.705},{"$f":"VLOOKUP($A85,F1__World_Data!$A$4:$DP$191,8,FALSE)","v":10208.225},{"$f":"VLOOKUP($A85,F1__World_Data!$A$4:$DP$191,7,FALSE)","v":10169.802},{"$f":"VLOOKUP($A85,F1__World_Data!$A$4:$DP$191,6,FALSE)","v":10132.977999999999},{"$f":"VLOOKUP($A85,F1__World_Data!$A$4:$DP$191,5,FALSE)","v":10096.975},{"$f":"VLOOKUP($A85,F1__World_Data!$A$4:$DP$191,4,FALSE)","v":10062.51},{"$f":"VLOOKUP($A85,F1__World_Data!$A$4:$DP$191,3,FALSE)","v":10030.477000000001},{"$f":"VLOOKUP($A85,F1__World_Data!$A$4:$DP$191,2,FALSE)","v":10000.989},null,{"$f":"VLOOKUP($A85,F1__World_Data!$A$4:$DP$191,120,FALSE)","v":75.817073170731717},{"$f":"VLOOKUP($A85,F1__World_Data!$A$4:$DP$191,119,FALSE)","v":75.817073170731717},{"$f":"VLOOKUP($A85,F1__World_Data!$A$4:$DP$191,118,FALSE)","v":76.063414634146355},{"$f":"VLOOKUP($A85,F1__World_Data!$A$4:$DP$191,117,FALSE)","v":75.568292682926852},{"$f":"VLOOKUP($A85,F1__World_Data!$A$4:$DP$191,116,FALSE)","v":75.763414634146343},{"$f":"VLOOKUP($A85,F1__World_Data!$A$4:$DP$191,115,FALSE)","v":75.565853658536597},{"$f":"VLOOKUP($A85,F1__World_Data!$A$4:$DP$191,114,FALSE)","v":75.063414634146341},{"$f":"VLOOKUP($A85,F1__World_Data!$A$4:$DP$191,113,FALSE)","v":74.858536585365869},{"$f":"VLOOKUP($A85,F1__World_Data!$A$4:$DP$191,112,FALSE)","v":74.207317073170742},{"$f":"VLOOKUP($A85,F1__World_Data!$A$4:$DP$191,111,FALSE)","v":73.904878048780489},{"$f":"VLOOKUP($A85,F1__World_Data!$A$4:$DP$191,110,FALSE)","v":73.702439024390259},{"$f":"VLOOKUP($A85,F1__World_Data!$A$4:$DP$191,109,FALSE)","v":73.151219512195127},{"$f":"VLOOKUP($A85,F1__World_Data!$A$4:$DP$191,108,FALSE)","v":73.097560975609767},{"$f":"VLOOKUP($A85,F1__World_Data!$A$4:$DP$191,107,FALSE)","v":72.648780487804885},{"$f":"VLOOKUP($A85,F1__World_Data!$A$4:$DP$191,106,FALSE)","v":72.648780487804885},{"$f":"VLOOKUP($A85,F1__World_Data!$A$4:$DP$191,105,FALSE)","v":72.3},{"$f":"VLOOKUP($A85,F1__World_Data!$A$4:$DP$191,104,FALSE)","v":72.348780487804888},{"$f":"VLOOKUP($A85,F1__World_Data!$A$4:$DP$191,103,FALSE)","v":72.248780487804893},{"$f":"VLOOKUP($A85,F1__World_Data!$A$4:$DP$191,102,FALSE)","v":71.246341463414637},{"$f":"VLOOKUP($A85,F1__World_Data!$A$4:$DP$191,101,FALSE)","v":70.677073170731703},{"$f":"VLOOKUP($A85,F1__World_Data!$A$4:$DP$191,100,FALSE)","v":70.557804878048799},{"$f":"VLOOKUP($A85,F1__World_Data!$A$4:$DP$191,99,FALSE)","v":70.702439024390245},{"$f":"VLOOKUP($A85,F1__World_Data!$A$4:$DP$191,98,FALSE)","v":70.328780487804892},{"$f":"VLOOKUP($A85,F1__World_Data!$A$4:$DP$191,97,FALSE)","v":69.791707317073175},{"$f":"VLOOKUP($A85,F1__World_Data!$A$4:$DP$191,96,FALSE)","v":69.469756097560989},{"$f":"VLOOKUP($A85,F1__World_Data!$A$4:$DP$191,95,FALSE)","v":69.101219512195129},{"$f":"VLOOKUP($A85,F1__World_Data!$A$4:$DP$191,94,FALSE)","v":69.117073170731715},{"$f":"VLOOKUP($A85,F1__World_Data!$A$4:$DP$191,93,FALSE)","v":69.37707317073172},{"$f":"VLOOKUP($A85,F1__World_Data!$A$4:$DP$191,92,FALSE)","v":69.315609756097572},{"$f":"VLOOKUP($A85,F1__World_Data!$A$4:$DP$191,91,FALSE)","v":69.461707317073177},{"$f":"VLOOKUP($A85,F1__World_Data!$A$4:$DP$191,90,FALSE)","v":70.023414634146349},{"$f":"VLOOKUP($A85,F1__World_Data!$A$4:$DP$191,89,FALSE)","v":69.651219512195127},{"$f":"VLOOKUP($A85,F1__World_Data!$A$4:$DP$191,88,FALSE)","v":69.17341463414634},{"$f":"VLOOKUP($A85,F1__World_Data!$A$4:$DP$191,87,FALSE)","v":68.972195121951231},{"$f":"VLOOKUP($A85,F1__World_Data!$A$4:$DP$191,86,FALSE)","v":69.02585365853659},{"$f":"VLOOKUP($A85,F1__World_Data!$A$4:$DP$191,85,FALSE)","v":68.973658536585376},{"$f":"VLOOKUP($A85,F1__World_Data!$A$4:$DP$191,84,FALSE)","v":69.357804878048796},{"$f":"VLOOKUP($A85,F1__World_Data!$A$4:$DP$191,83,FALSE)","v":69.139268292682928},{"$f":"VLOOKUP($A85,F1__World_Data!$A$4:$DP$191,82,FALSE)","v":69.061707317073186},{"$f":"VLOOKUP($A85,F1__World_Data!$A$4:$DP$191,81,FALSE)","v":69.615365853658545},{"$f":"VLOOKUP($A85,F1__World_Data!$A$4:$DP$191,80,FALSE)","v":69.393902439024387},{"$f":"VLOOKUP($A85,F1__World_Data!$A$4:$DP$191,79,FALSE)","v":69.848048780487801},{"$f":"VLOOKUP($A85,F1__World_Data!$A$4:$DP$191,78,FALSE)","v":69.573170731707322},{"$f":"VLOOKUP($A85,F1__World_Data!$A$4:$DP$191,77,FALSE)","v":69.290000000000006},{"$f":"VLOOKUP($A85,F1__World_Data!$A$4:$DP$191,76,FALSE)","v":69.248048780487821},{"$f":"VLOOKUP($A85,F1__World_Data!$A$4:$DP$191,75,FALSE)","v":69.518048780487817},{"$f":"VLOOKUP($A85,F1__World_Data!$A$4:$DP$191,74,FALSE)","v":69.66463414634147},{"$f":"VLOOKUP($A85,F1__World_Data!$A$4:$DP$191,73,FALSE)","v":69.052439024390253},{"$f":"VLOOKUP($A85,F1__World_Data!$A$4:$DP$191,72,FALSE)","v":69.164634146341484},{"$f":"VLOOKUP($A85,F1__World_Data!$A$4:$DP$191,71,FALSE)","v":69.314634146341476},{"$f":"VLOOKUP($A85,F1__World_Data!$A$4:$DP$191,70,FALSE)","v":69.230243902439042},{"$f":"VLOOKUP($A85,F1__World_Data!$A$4:$DP$191,69,FALSE)","v":69.407073170731707},{"$f":"VLOOKUP($A85,F1__World_Data!$A$4:$DP$191,68,FALSE)","v":69.822439024390249},{"$f":"VLOOKUP($A85,F1__World_Data!$A$4:$DP$191,67,FALSE)","v":69.071219512195128},{"$f":"VLOOKUP($A85,F1__World_Data!$A$4:$DP$191,66,FALSE)","v":69.380975609756106},{"$f":"VLOOKUP($A85,F1__World_Data!$A$4:$DP$191,65,FALSE)","v":68.87414634146343},{"$f":"VLOOKUP($A85,F1__World_Data!$A$4:$DP$191,64,FALSE)","v":67.865853658536594},{"$f":"VLOOKUP($A85,F1__World_Data!$A$4:$DP$191,63,FALSE)","v":68.936097560975625},{"$f":"VLOOKUP($A85,F1__World_Data!$A$4:$DP$191,62,FALSE)","v":68.003170731707328}]
["United Arab Emirates",{"$f":"VLOOKUP($A86,F1__World_Data!$A$4:$DP$191,60,FALSE)","v":9630.9660000000003},{"$f":"VLOOKUP($A86,F1__World_Data!$A$4:$DP$191,59,FALSE)","v":9487.2060000000001},{"$f":"VLOOKUP($A86,F1__World_Data!$A$4:$DP$191,58,FALSE)","v":9360.9750000000004},{"$f":"VLOOKUP($A86,F1__World_Data!$A$4:$DP$191,57,FALSE)","v":9262.8960000000006},{"$f":"VLOOKUP($A86,F1__World_Data!$A$4:$DP$191,56,FALSE)","v":9214.1820000000007},{"$f":"VLOOKUP($A86,F1__World_Data!$A$4:$DP$191,55,FALSE)","v":9197.9079999999994},{"$f":"VLOOKUP($A86,F1__World_Data!$A$4:$DP$191,54,FALSE)","v":9141.598},{"$f":"VLOOKUP($A86,F1__World_Data!$A$4:$DP$191,53,FALSE)","v":8946.7780000000002},{"$f":"VLOOKUP($A86,F1__World_Data!$A$4:$DP$191,52,FALSE)","v":8549.9979999999996},{"$f":"VLOOKUP($A86,F1__World_Data!$A$4:$DP$191,51,FALSE)","v":7917.3680000000004},{"$f":"VLOOKUP($A86,F1__World_Data!$A$4:$DP$191,50,FALSE)","v":7089.4859999999999},{"$f":"VLOOKUP($A86,F1__World_Data!$A$4:$DP$191,49,FALSE)","v":6168.8459999999995},{"$f":"VLOOKUP($A86,F1__World_Data!$A$4:$DP$191,48,FALSE)","v":5300.1719999999996},{"$f":"VLOOKUP($A86,F1__World_Data!$A$4:$DP$191,47,FALSE)","v":4588.2219999999998},{"$f":"VLOOKUP($A86,F1__World_Data!$A$4:$DP$191,46,FALSE)","v":4068.5770000000002},{"$f":"VLOOKUP($A86,F1__World_Data!$A$4:$DP$191,45,FALSE)","v":3711.931},{"$f":"VLOOKUP($A86,F1__World_Data!$A$4:$DP$191,44,FALSE)","v":3478.7689999999998},{"$f":"VLOOKUP($A86,F1__World_Data!$A$4:$DP$191,43,FALSE)","v":3302.7220000000002},{"$f":"VLOOKUP($A86,F1__World_Data!$A$4:$DP$191,42,FALSE)","v":3134.067},{"$f":"VLOOKUP($A86,F1__World_Data!$A$4:$DP$191,41,FALSE)","v":2966.029},{"$f":"VLOOKUP($A86,F1__World_Data!$A$4:$DP$191,40,FALSE)","v":2813.2139999999999},{"$f":"VLOOKUP($A86,F1__World_Data!$A$4:$DP$191,39,FALSE)","v":2671.3609999999999},{"$f":"VLOOKUP($A86,F1__World_Data!$A$4:$DP$191,38,FALSE)","v":2539.1210000000001},{"$f":"VLOOKUP($A86,F1__World_Data!$A$4:$DP$191,37,FALSE)","v":2415.0990000000002},{"$f":"VLOOKUP($A86,F1__World_Data!$A$4:$DP$191,36,FALSE)","v":2294.377},{"$f":"VLOOKUP($A86,F1__World_Data!$A$4:$DP$191,35,FALSE)","v":2173.1350000000002},{"$f":"VLOOKUP($A86,F1__World_Data!$A$4:$DP$191,34,FALSE)","v":2052.8919999999998},{"$f":"VLOOKUP($A86,F1__World_Data!$A$4:$DP$191,33,FALSE)","v":1937.1590000000001},{"$f":"VLOOKUP($A86,F1__World_Data!$A$4:$DP$191,32,FALSE)","v":1828.4369999999999},{"$f":"VLOOKUP($A86,F1__World_Data!$A$4:$DP$191,31,FALSE)","v":1725.6759999999999},{"$f":"VLOOKUP($A86,F1__World_Data!$A$4:$DP$191,30,FALSE)","v":1627.068},{"$f":"VLOOKUP($A86,F1__World_Data!$A$4:$DP$191,29,FALSE)","v":1533.5260000000001},{"$f":"VLOOKUP($A86,F1__World_Data!$A$4:$DP$191,28,FALSE)","v":1446.386},{"$f":"VLOOKUP($A86,F1__World_Data!$A$4:$DP$191,27,FALSE)","v":1366.165},{"$f":"VLOOKUP($A86,F1__World_Data!$A$4:$DP$191,26,FALSE)","v":1293.97},{"$f":"VLOOKUP($A86,F1__World_Data!$A$4:$DP$191,25,FALSE)","v":1228.4570000000001},{"$f":"VLOOKUP($A86,F1__World_Data!$A$4:$DP$191,24,FALSE)","v":1164.816},{"$f":"VLOOKUP($A86,F1__World_Data!$A$4:$DP$191,23,FALSE)","v":1096.6020000000001},{"$f":"VLOOKUP($A86,F1__World_Data!$A$4:$DP$191,22,FALSE)","v":1019.5069999999999},{"$f":"VLOOKUP($A86,F1__World_Data!$A$4:$DP$191,21,FALSE)","v":931.75199999999995},{"$f":"VLOOKUP($A86,F1__World_Data!$A$4:$DP$191,20,FALSE)","v":835.49800000000005},{"$f":"VLOOKUP($A86,F1__World_Data!$A$4:$DP$191,19,FALSE)","v":735.34699999999998},{"$f":"VLOOKUP($A86,F1__World_Data!$A$4:$DP$191,18,FALSE)","v":637.92600000000004},{"$f":"VLOOKUP($A86,F1__World_Data!$A$4:$DP$191,17,FALSE)","v":548.29499999999996},{"$f":"VLOOKUP($A86,F1__World_Data!$A$4:$DP$191,16,FALSE)","v":467.45699999999999},{"$f":"VLOOKUP($A86,F1__World_Data!$A$4:$DP$191,15,FALSE)","v":394.625},{"$f":"VLOOKUP($A86,F1__World_Data!$A$4:$DP$191,14,FALSE)","v":330.96800000000002},{"$f":"VLOOKUP($A86,F1__World_Data!$A$4:$DP$191,13,FALSE)","v":277.46300000000002},{"$f":"VLOOKUP($A86,F1__World_Data!$A$4:$DP$191,12,FALSE)","v":234.512},{"$f":"VLOOKUP($A86,F1__World_Data!$A$4:$DP$191,11,FALSE)","v":203.10300000000001},{"$f":"VLOOKUP($A86,F1__World_Data!$A$4:$DP$191,10,FALSE)","v":182.62},{"$f":"VLOOKUP($A86,F1__World_Data!$A$4:$DP$191,9,FALSE)","v":169.768},{"$f":"VLOOKUP($A86,F1__World_Data!$A$4:$DP$191,8,FALSE)","v":159.97900000000001},{"$f":"VLOOKUP($A86,F1__World_Data!$A$4:$DP$191,7,FALSE)","v":149.85499999999999},{"$f":"VLOOKUP($A86,F1__World_Data!$A$4:$DP$191,6,FALSE)","v":138.04900000000001},{"$f":"VLOOKUP($A86,F1__World_Data!$A$4:$DP$191,5,FALSE)","v":125.13},{"$f":"VLOOKUP($A86,F1__World_Data!$A$4:$DP$191,4,FALSE)","v":112.11199999999999},{"$f":"VLOOKUP($A86,F1__World_Data!$A$4:$DP$191,3,FALSE)","v":100.801},{"$f":"VLOOKUP($A86,F1__World_Data!$A$4:$DP$191,2,FALSE)","v":92.417000000000002},null,{"$f":"VLOOKUP($A86,F1__World_Data!$A$4:$DP$191,120,FALSE)","v":63.856999999999999},{"$f":"VLOOKUP($A86,F1__World_Data!$A$4:$DP$191,119,FALSE)","v":63.537999999999997},{"$f":"VLOOKUP($A86,F1__World_Data!$A$4:$DP$191,118,FALSE)","v":63.152999999999999},{"$f":"VLOOKUP($A86,F1__World_Data!$A$4:$DP$191,117,FALSE)","v":62.649000000000001},{"$f":"VLOOKUP($A86,F1__World_Data!$A$4:$DP$191,116,FALSE)","v":61.968000000000004},{"$f":"VLOOKUP($A86,F1__World_Data!$A$4:$DP$191,115,FALSE)","v":61.098999999999997},{"$f":"VLOOKUP($A86,F1__World_Data!$A$4:$DP$191,114,FALSE)","v":60.06},{"$f":"VLOOKUP($A86,F1__World_Data!$A$4:$DP$191,113,FALSE)","v":58.895000000000003},{"$f":"VLOOKUP($A86,F1__World_Data!$A$4:$DP$191,112,FALSE)","v":57.668999999999997},{"$f":"VLOOKUP($A86,F1__World_Data!$A$4:$DP$191,111,FALSE)","v":56.46},{"$f":"VLOOKUP($A86,F1__World_Data!$A$4:$DP$191,110,FALSE)","v":55.36},{"$f":"VLOOKUP($A86,F1__World_Data!$A$4:$DP$191,109,FALSE)","v":54.451999999999998},{"$f":"VLOOKUP($A86,F1__World_Data!$A$4:$DP$191,108,FALSE)","v":53.795000000000002},{"$f":"VLOOKUP($A86,F1__World_Data!$A$4:$DP$191,107,FALSE)","v":53.447000000000003},{"$f":"VLOOKUP($A86,F1__World_Data!$A$4:$DP$191,106,FALSE)","v":53.444000000000003},{"$f":"VLOOKUP($A86,F1__World_Data!$A$4:$DP$191,105,FALSE)","v":53.749000000000002},{"$f":"VLOOKUP($A86,F1__World_Data!$A$4:$DP$191,104,FALSE)","v":54.31},{"$f":"VLOOKUP($A86,F1__World_Data!$A$4:$DP$191,103,FALSE)","v":55.088999999999999},{"$f":"VLOOKUP($A86,F1__World_Data!$A$4:$DP$191,102,FALSE)","v":56.048000000000002},{"$f":"VLOOKUP($A86,F1__World_Data!$A$4:$DP$191,101,FALSE)","v":57.143999999999998},{"$f":"VLOOKUP($A86,F1__World_Data!$A$4:$DP$191,100,FALSE)","v":58.314999999999998},{"$f":"VLOOKUP($A86,F1__World_Data!$A$4:$DP$191,99,FALSE)","v":59.488999999999997},{"$f":"VLOOKUP($A86,F1__World_Data!$A$4:$DP$191,98,FALSE)","v":60.594999999999999},{"$f":"VLOOKUP($A86,F1__World_Data!$A$4:$DP$191,97,FALSE)","v":61.561},{"$f":"VLOOKUP($A86,F1__World_Data!$A$4:$DP$191,96,FALSE)","v":62.331000000000003},{"$f":"VLOOKUP($A86,F1__World_Data!$A$4:$DP$191,95,FALSE)","v":62.893999999999998},{"$f":"VLOOKUP($A86,F1__World_Data!$A$4:$DP$191,94,FALSE)","v":63.247},{"$f":"VLOOKUP($A86,F1__World_Data!$A$4:$DP$191,93,FALSE)","v":63.384},{"$f":"VLOOKUP($A86,F1__World_Data!$A$4:$DP$191,92,FALSE)","v":63.307000000000002},{"$f":"VLOOKUP($A86,F1__World_Data!$A$4:$DP$191,91,FALSE)","v":63.034999999999997},{"$f":"VLOOKUP($A86,F1__World_Data!$A$4:$DP$191,90,FALSE)","v":62.619},{"$f":"VLOOKUP($A86,F1__World_Data!$A$4:$DP$191,89,FALSE)","v":62.109000000000002},{"$f":"VLOOKUP($A86,F1__World_Data!$A$4:$DP$191,88,FALSE)","v":61.54},{"$f":"VLOOKUP($A86,F1__World_Data!$A$4:$DP$191,87,FALSE)","v":60.945999999999998},{"$f":"VLOOKUP($A86,F1__World_Data!$A$4:$DP$191,86,FALSE)","v":60.353000000000002},{"$f":"VLOOKUP($A86,F1__World_Data!$A$4:$DP$191,85,FALSE)","v":59.765999999999998},{"$f":"VLOOKUP($A86,F1__World_Data!$A$4:$DP$191,84,FALSE)","v":59.191000000000003},{"$f":"VLOOKUP($A86,F1__World_Data!$A$4:$DP$191,83,FALSE)","v":58.637},{"$f":"VLOOKUP($A86,F1__World_Data!$A$4:$DP$191,82,FALSE)","v":58.106999999999999},{"$f":"VLOOKUP($A86,F1__World_Data!$A$4:$DP$191,81,FALSE)","v":57.59},{"$f":"VLOOKUP($A86,F1__World_Data!$A$4:$DP$191,80,FALSE)","v":57.070999999999998},{"$f":"VLOOKUP($A86,F1__World_Data!$A$4:$DP$191,79,FALSE)","v":56.537999999999997},{"$f":"VLOOKUP($A86,F1__World_Data!$A$4:$DP$191,78,FALSE)","v":55.99},{"$f":"VLOOKUP($A86,F1__World_Data!$A$4:$DP$191,77,FALSE)","v":55.427999999999997},{"$f":"VLOOKUP($A86,F1__World_Data!$A$4:$DP$191,76,FALSE)","v":54.856000000000002},{"$f":"VLOOKUP($A86,F1__World_Data!$A$4:$DP$191,75,FALSE)","v":54.280999999999999},{"$f":"VLOOKUP($A86,F1__World_Data!$A$4:$DP$191,74,FALSE)","v":53.713000000000001},{"$f":"VLOOKUP($A86,F1__World_Data!$A$4:$DP$191,73,FALSE)","v":53.156999999999996},{"$f":"VLOOKUP($A86,F1__World_Data!$A$4:$DP$191,72,FALSE)","v":52.62},{"$f":"VLOOKUP($A86,F1__World_Data!$A$4:$DP$191,71,FALSE)","v":52.106000000000002},{"$f":"VLOOKUP($A86,F1__World_Data!$A$4:$DP$191,70,FALSE)","v":51.615000000000002},{"$f":"VLOOKUP($A86,F1__World_Data!$A$4:$DP$191,69,FALSE)","v":51.148000000000003},{"$f":"VLOOKUP($A86,F1__World_Data!$A$4:$DP$191,68,FALSE)","v":50.704999999999998},{"$f":"VLOOKUP($A86,F1__World_Data!$A$4:$DP$191,67,FALSE)","v":50.283999999999999},{"$f":"VLOOKUP($A86,F1__World_Data!$A$4:$DP$191,66,FALSE)","v":49.887999999999998},{"$f":"VLOOKUP($A86,F1__World_Data!$A$4:$DP$191,65,FALSE)","v":49.509},{"$f":"VLOOKUP($A86,F1__World_Data!$A$4:$DP$191,64,FALSE)","v":49.142000000000003},{"$f":"VLOOKUP($A86,F1__World_Data!$A$4:$DP$191,63,FALSE)","v":48.777000000000001},{"$f":"VLOOKUP($A86,F1__World_Data!$A$4:$DP$191,62,FALSE)","v":48.405999999999999}]
["Honduras",{"$f":"VLOOKUP($A87,F1__World_Data!$A$4:$DP$191,60,FALSE)","v":9587.5229999999992},{"$f":"VLOOKUP($A87,F1__World_Data!$A$4:$DP$191,59,FALSE)","v":9429.0159999999996},{"$f":"VLOOKUP($A87,F1__World_Data!$A$4:$DP$191,58,FALSE)","v":9270.7939999999999},{"$f":"VLOOKUP($A87,F1__World_Data!$A$4:$DP$191,57,FALSE)","v":9112.9040000000005},{"$f":"VLOOKUP($A87,F1__World_Data!$A$4:$DP$191,56,FALSE)","v":8955.5789999999997},{"$f":"VLOOKUP($A87,F1__World_Data!$A$4:$DP$191,55,FALSE)","v":8798.5239999999994},{"$f":"VLOOKUP($A87,F1__World_Data!$A$4:$DP$191,54,FALSE)","v":8640.6919999999991},{"$f":"VLOOKUP($A87,F1__World_Data!$A$4:$DP$191,53,FALSE)","v":8480.67},{"$f":"VLOOKUP($A87,F1__World_Data!$A$4:$DP$191,52,FALSE)","v":8317.4670000000006},{"$f":"VLOOKUP($A87,F1__World_Data!$A$4:$DP$191,51,FALSE)","v":8150.78},{"$f":"VLOOKUP($A87,F1__World_Data!$A$4:$DP$191,50,FALSE)","v":7980.9549999999999},{"$f":"VLOOKUP($A87,F1__World_Data!$A$4:$DP$191,49,FALSE)","v":7808.52},{"$f":"VLOOKUP($A87,F1__World_Data!$A$4:$DP$191,48,FALSE)","v":7634.2950000000001},{"$f":"VLOOKUP($A87,F1__World_Data!$A$4:$DP$191,47,FALSE)","v":7458.982},{"$f":"VLOOKUP($A87,F1__World_Data!$A$4:$DP$191,46,FALSE)","v":7282.9530000000004},{"$f":"VLOOKUP($A87,F1__World_Data!$A$4:$DP$191,45,FALSE)","v":7106.3230000000003},{"$f":"VLOOKUP($A87,F1__World_Data!$A$4:$DP$191,44,FALSE)","v":6929.2669999999998},{"$f":"VLOOKUP($A87,F1__World_Data!$A$4:$DP$191,43,FALSE)","v":6751.9120000000003},{"$f":"VLOOKUP($A87,F1__World_Data!$A$4:$DP$191,42,FALSE)","v":6574.51},{"$f":"VLOOKUP($A87,F1__World_Data!$A$4:$DP$191,41,FALSE)","v":6397.14},{"$f":"VLOOKUP($A87,F1__World_Data!$A$4:$DP$191,40,FALSE)","v":6220.4049999999997},{"$f":"VLOOKUP($A87,F1__World_Data!$A$4:$DP$191,39,FALSE)","v":6045.7039999999997},{"$f":"VLOOKUP($A87,F1__World_Data!$A$4:$DP$191,38,FALSE)","v":5874.8140000000003},{"$f":"VLOOKUP($A87,F1__World_Data!$A$4:$DP$191,37,FALSE)","v":5709.01},{"$f":"VLOOKUP($A87,F1__World_Data!$A$4:$DP$191,36,FALSE)","v":5548.9690000000001},{"$f":"VLOOKUP($A87,F1__World_Data!$A$4:$DP$191,35,FALSE)","v":5394.4160000000002},{"$f":"VLOOKUP($A87,F1__World_Data!$A$4:$DP$191,34,FALSE)","v":5244.6769999999997},{"$f":"VLOOKUP($A87,F1__World_Data!$A$4:$DP$191,33,FALSE)","v":5098.5940000000001},{"$f":"VLOOKUP($A87,F1__World_Data!$A$4:$DP$191,32,FALSE)","v":4955.3019999999997},{"$f":"VLOOKUP($A87,F1__World_Data!$A$4:$DP$191,31,FALSE)","v":4814.6959999999999},{"$f":"VLOOKUP($A87,F1__World_Data!$A$4:$DP$191,30,FALSE)","v":4677.0230000000001},{"$f":"VLOOKUP($A87,F1__World_Data!$A$4:$DP$191,29,FALSE)","v":4542.2179999999998},{"$f":"VLOOKUP($A87,F1__World_Data!$A$4:$DP$191,28,FALSE)","v":4410.2700000000004},{"$f":"VLOOKUP($A87,F1__World_Data!$A$4:$DP$191,27,FALSE)","v":4281.1670000000004},{"$f":"VLOOKUP($A87,F1__World_Data!$A$4:$DP$191,26,FALSE)","v":4154.8639999999996},{"$f":"VLOOKUP($A87,F1__World_Data!$A$4:$DP$191,25,FALSE)","v":4031.3330000000001},{"$f":"VLOOKUP($A87,F1__World_Data!$A$4:$DP$191,24,FALSE)","v":3910.6419999999998},{"$f":"VLOOKUP($A87,F1__World_Data!$A$4:$DP$191,23,FALSE)","v":3792.922},{"$f":"VLOOKUP($A87,F1__World_Data!$A$4:$DP$191,22,FALSE)","v":3678.2739999999999},{"$f":"VLOOKUP($A87,F1__World_Data!$A$4:$DP$191,21,FALSE)","v":3566.6610000000001},{"$f":"VLOOKUP($A87,F1__World_Data!$A$4:$DP$191,20,FALSE)","v":3458.1019999999999},{"$f":"VLOOKUP($A87,F1__World_Data!$A$4:$DP$191,19,FALSE)","v":3352.8249999999998},{"$f":"VLOOKUP($A87,F1__World_Data!$A$4:$DP$191,18,FALSE)","v":3251.145},{"$f":"VLOOKUP($A87,F1__World_Data!$A$4:$DP$191,17,FALSE)","v":3153.252},{"$f":"VLOOKUP($A87,F1__World_Data!$A$4:$DP$191,16,FALSE)","v":3059.2449999999999},{"$f":"VLOOKUP($A87,F1__World_Data!$A$4:$DP$191,15,FALSE)","v":2968.9780000000001},{"$f":"VLOOKUP($A87,F1__World_Data!$A$4:$DP$191,14,FALSE)","v":2882.1019999999999},{"$f":"VLOOKUP($A87,F1__World_Data!$A$4:$DP$191,13,FALSE)","v":2798.125},{"$f":"VLOOKUP($A87,F1__World_Data!$A$4:$DP$191,12,FALSE)","v":2716.652},{"$f":"VLOOKUP($A87,F1__World_Data!$A$4:$DP$191,11,FALSE)","v":2637.5149999999999},{"$f":"VLOOKUP($A87,F1__World_Data!$A$4:$DP$191,10,FALSE)","v":2560.723},{"$f":"VLOOKUP($A87,F1__World_Data!$A$4:$DP$191,9,FALSE)","v":2486.4180000000001},{"$f":"VLOOKUP($A87,F1__World_Data!$A$4:$DP$191,8,FALSE)","v":2414.8049999999998},{"$f":"VLOOKUP($A87,F1__World_Data!$A$4:$DP$191,7,FALSE)","v":2346.0050000000001},{"$f":"VLOOKUP($A87,F1__World_Data!$A$4:$DP$191,6,FALSE)","v":2280.0439999999999},{"$f":"VLOOKUP($A87,F1__World_Data!$A$4:$DP$191,5,FALSE)","v":2216.712},{"$f":"VLOOKUP($A87,F1__World_Data!$A$4:$DP$191,4,FALSE)","v":2155.6480000000001},{"$f":"VLOOKUP($A87,F1__World_Data!$A$4:$DP$191,3,FALSE)","v":2096.4070000000002},{"$f":"VLOOKUP($A87,F1__World_Data!$A$4:$DP$191,2,FALSE)","v":2038.636},null,{"$f":"VLOOKUP($A87,F1__World_Data!$A$4:$DP$191,120,FALSE)","v":75.087999999999994},{"$f":"VLOOKUP($A87,F1__World_Data!$A$4:$DP$191,119,FALSE)","v":74.897999999999996},{"$f":"VLOOKUP($A87,F1__World_Data!$A$4:$DP$191,118,FALSE)","v":74.700999999999993},{"$f":"VLOOKUP($A87,F1__World_Data!$A$4:$DP$191,117,FALSE)","v":74.495000000000005},{"$f":"VLOOKUP($A87,F1__World_Data!$A$4:$DP$191,116,FALSE)","v":74.278000000000006},{"$f":"VLOOKUP($A87,F1__World_Data!$A$4:$DP$191,115,FALSE)","v":74.051000000000002},{"$f":"VLOOKUP($A87,F1__World_Data!$A$4:$DP$191,114,FALSE)","v":73.813999999999993},{"$f":"VLOOKUP($A87,F1__World_Data!$A$4:$DP$191,113,FALSE)","v":73.569000000000003},{"$f":"VLOOKUP($A87,F1__World_Data!$A$4:$DP$191,112,FALSE)","v":73.316999999999993},{"$f":"VLOOKUP($A87,F1__World_Data!$A$4:$DP$191,111,FALSE)","v":73.061000000000007},{"$f":"VLOOKUP($A87,F1__World_Data!$A$4:$DP$191,110,FALSE)","v":72.802999999999997},{"$f":"VLOOKUP($A87,F1__World_Data!$A$4:$DP$191,109,FALSE)","v":72.543999999999997},{"$f":"VLOOKUP($A87,F1__World_Data!$A$4:$DP$191,108,FALSE)","v":72.284999999999997},{"$f":"VLOOKUP($A87,F1__World_Data!$A$4:$DP$191,107,FALSE)","v":72.025999999999996},{"$f":"VLOOKUP($A87,F1__World_Data!$A$4:$DP$191,106,FALSE)","v":71.77},{"$f":"VLOOKUP($A87,F1__World_Data!$A$4:$DP$191,105,FALSE)","v":71.510999999999996},{"$f":"VLOOKUP($A87,F1__World_Data!$A$4:$DP$191,104,FALSE)","v":71.248999999999995},{"$f":"VLOOKUP($A87,F1__World_Data!$A$4:$DP$191,103,FALSE)","v":70.975999999999999},{"$f":"VLOOKUP($A87,F1__World_Data!$A$4:$DP$191,102,FALSE)","v":70.688999999999993},{"$f":"VLOOKUP($A87,F1__World_Data!$A$4:$DP$191,101,FALSE)","v":70.378},{"$f":"VLOOKUP($A87,F1__World_Data!$A$4:$DP$191,100,FALSE)","v":70.040999999999997},{"$f":"VLOOKUP($A87,F1__World_Data!$A$4:$DP$191,99,FALSE)","v":69.676000000000002},{"$f":"VLOOKUP($A87,F1__World_Data!$A$4:$DP$191,98,FALSE)","v":69.284000000000006},{"$f":"VLOOKUP($A87,F1__World_Data!$A$4:$DP$191,97,FALSE)","v":68.870999999999995},{"$f":"VLOOKUP($A87,F1__World_Data!$A$4:$DP$191,96,FALSE)","v":68.45},{"$f":"VLOOKUP($A87,F1__World_Data!$A$4:$DP$191,95,FALSE)","v":68.028000000000006},{"$f":"VLOOKUP($A87,F1__World_Data!$A$4:$DP$191,94,FALSE)","v":67.605000000000004},{"$f":"VLOOKUP($A87,F1__World_Data!$A$4:$DP$191,93,FALSE)","v":67.174999999999997},{"$f":"VLOOKUP($A87,F1__World_Data!$A$4:$DP$191,92,FALSE)","v":66.722999999999999},{"$f":"VLOOKUP($A87,F1__World_Data!$A$4:$DP$191,91,FALSE)","v":66.228999999999999},{"$f":"VLOOKUP($A87,F1__World_Data!$A$4:$DP$191,90,FALSE)","v":65.679000000000002},{"$f":"VLOOKUP($A87,F1__World_Data!$A$4:$DP$191,89,FALSE)","v":65.061999999999998},{"$f":"VLOOKUP($A87,F1__World_Data!$A$4:$DP$191,88,FALSE)","v":64.382000000000005},{"$f":"VLOOKUP($A87,F1__World_Data!$A$4:$DP$191,87,FALSE)","v":63.643000000000001},{"$f":"VLOOKUP($A87,F1__World_Data!$A$4:$DP$191,86,FALSE)","v":62.859000000000002},{"$f":"VLOOKUP($A87,F1__World_Data!$A$4:$DP$191,85,FALSE)","v":62.05},{"$f":"VLOOKUP($A87,F1__World_Data!$A$4:$DP$191,84,FALSE)","v":61.235999999999997},{"$f":"VLOOKUP($A87,F1__World_Data!$A$4:$DP$191,83,FALSE)","v":60.427},{"$f":"VLOOKUP($A87,F1__World_Data!$A$4:$DP$191,82,FALSE)","v":59.631999999999998},{"$f":"VLOOKUP($A87,F1__World_Data!$A$4:$DP$191,81,FALSE)","v":58.850999999999999},{"$f":"VLOOKUP($A87,F1__World_Data!$A$4:$DP$191,80,FALSE)","v":58.08},{"$f":"VLOOKUP($A87,F1__World_Data!$A$4:$DP$191,79,FALSE)","v":57.317},{"$f":"VLOOKUP($A87,F1__World_Data!$A$4:$DP$191,78,FALSE)","v":56.567},{"$f":"VLOOKUP($A87,F1__World_Data!$A$4:$DP$191,77,FALSE)","v":55.834000000000003},{"$f":"VLOOKUP($A87,F1__World_Data!$A$4:$DP$191,76,FALSE)","v":55.124000000000002},{"$f":"VLOOKUP($A87,F1__World_Data!$A$4:$DP$191,75,FALSE)","v":54.439},{"$f":"VLOOKUP($A87,F1__World_Data!$A$4:$DP$191,74,FALSE)","v":53.777999999999999},{"$f":"VLOOKUP($A87,F1__World_Data!$A$4:$DP$191,73,FALSE)","v":53.14},{"$f":"VLOOKUP($A87,F1__World_Data!$A$4:$DP$191,72,FALSE)","v":52.521999999999998},{"$f":"VLOOKUP($A87,F1__World_Data!$A$4:$DP$191,71,FALSE)","v":51.920999999999999},{"$f":"VLOOKUP($A87,F1__World_Data!$A$4:$DP$191,70,FALSE)","v":51.33},{"$f":"VLOOKUP($A87,F1__World_Data!$A$4:$DP$191,69,FALSE)","v":50.741999999999997},{"$f":"VLOOKUP($A87,F1__World_Data!$A$4:$DP$191,68,FALSE)","v":50.151000000000003},{"$f":"VLOOKUP($A87,F1__World_Data!$A$4:$DP$191,67,FALSE)","v":49.548000000000002},{"$f":"VLOOKUP($A87,F1__World_Data!$A$4:$DP$191,66,FALSE)","v":48.926000000000002},{"$f":"VLOOKUP($A87,F1__World_Data!$A$4:$DP$191,65,FALSE)","v":48.284999999999997},{"$f":"VLOOKUP($A87,F1__World_Data!$A$4:$DP$191,64,FALSE)","v":47.625},{"$f":"VLOOKUP($A87,F1__World_Data!$A$4:$DP$191,63,FALSE)","v":46.953000000000003},{"$f":"VLOOKUP($A87,F1__World_Data!$A$4:$DP$191,62,FALSE)","v":46.274000000000001}]
["Belarus",{"$f":"VLOOKUP($A88,F1__World_Data!$A$4:$DP$191,60,FALSE)","v":9452.6149999999998},{"$f":"VLOOKUP($A88,F1__World_Data!$A$4:$DP$191,59,FALSE)","v":9450.2330000000002},{"$f":"VLOOKUP($A88,F1__World_Data!$A$4:$DP$191,58,FALSE)","v":9445.6380000000008},{"$f":"VLOOKUP($A88,F1__World_Data!$A$4:$DP$191,57,FALSE)","v":9439.4240000000009},{"$f":"VLOOKUP($A88,F1__World_Data!$A$4:$DP$191,56,FALSE)","v":9431.7420000000002},{"$f":"VLOOKUP($A88,F1__World_Data!$A$4:$DP$191,55,FALSE)","v":9423.5020000000004},{"$f":"VLOOKUP($A88,F1__World_Data!$A$4:$DP$191,54,FALSE)","v":9417.0450000000001},{"$f":"VLOOKUP($A88,F1__World_Data!$A$4:$DP$191,53,FALSE)","v":9415.3160000000007},{"$f":"VLOOKUP($A88,F1__World_Data!$A$4:$DP$191,52,FALSE)","v":9420.5759999999991},{"$f":"VLOOKUP($A88,F1__World_Data!$A$4:$DP$191,51,FALSE)","v":9433.1589999999997},{"$f":"VLOOKUP($A88,F1__World_Data!$A$4:$DP$191,50,FALSE)","v":9452.8549999999996},{"$f":"VLOOKUP($A88,F1__World_Data!$A$4:$DP$191,49,FALSE)","v":9480.5139999999992},{"$f":"VLOOKUP($A88,F1__World_Data!$A$4:$DP$191,48,FALSE)","v":9516.884},{"$f":"VLOOKUP($A88,F1__World_Data!$A$4:$DP$191,47,FALSE)","v":9562.0830000000005},{"$f":"VLOOKUP($A88,F1__World_Data!$A$4:$DP$191,46,FALSE)","v":9616.6280000000006},{"$f":"VLOOKUP($A88,F1__World_Data!$A$4:$DP$191,45,FALSE)","v":9679.2350000000006},{"$f":"VLOOKUP($A88,F1__World_Data!$A$4:$DP$191,44,FALSE)","v":9745.9320000000007},{"$f":"VLOOKUP($A88,F1__World_Data!$A$4:$DP$191,43,FALSE)","v":9811.3989999999994},{"$f":"VLOOKUP($A88,F1__World_Data!$A$4:$DP$191,42,FALSE)","v":9871.6350000000002},{"$f":"VLOOKUP($A88,F1__World_Data!$A$4:$DP$191,41,FALSE)","v":9924.44},{"$f":"VLOOKUP($A88,F1__World_Data!$A$4:$DP$191,40,FALSE)","v":9969.9860000000008},{"$f":"VLOOKUP($A88,F1__World_Data!$A$4:$DP$191,39,FALSE)","v":10009.393},{"$f":"VLOOKUP($A88,F1__World_Data!$A$4:$DP$191,38,FALSE)","v":10044.853999999999},{"$f":"VLOOKUP($A88,F1__World_Data!$A$4:$DP$191,37,FALSE)","v":10077.606},{"$f":"VLOOKUP($A88,F1__World_Data!$A$4:$DP$191,36,FALSE)","v":10108.280000000001},{"$f":"VLOOKUP($A88,F1__World_Data!$A$4:$DP$191,35,FALSE)","v":10135.133},{"$f":"VLOOKUP($A88,F1__World_Data!$A$4:$DP$191,34,FALSE)","v":10154.338},{"$f":"VLOOKUP($A88,F1__World_Data!$A$4:$DP$191,33,FALSE)","v":10160.785},{"$f":"VLOOKUP($A88,F1__World_Data!$A$4:$DP$191,32,FALSE)","v":10151.135},{"$f":"VLOOKUP($A88,F1__World_Data!$A$4:$DP$191,31,FALSE)","v":10124},{"$f":"VLOOKUP($A88,F1__World_Data!$A$4:$DP$191,30,FALSE)","v":10081.209000000001},{"$f":"VLOOKUP($A88,F1__World_Data!$A$4:$DP$191,29,FALSE)","v":10026.469999999999},{"$f":"VLOOKUP($A88,F1__World_Data!$A$4:$DP$191,28,FALSE)","v":9965.1779999999999},{"$f":"VLOOKUP($A88,F1__World_Data!$A$4:$DP$191,27,FALSE)","v":9901.4930000000004},{"$f":"VLOOKUP($A88,F1__World_Data!$A$4:$DP$191,26,FALSE)","v":9836.5820000000003},{"$f":"VLOOKUP($A88,F1__World_Data!$A$4:$DP$191,25,FALSE)","v":9770.125},{"$f":"VLOOKUP($A88,F1__World_Data!$A$4:$DP$191,24,FALSE)","v":9703.0879999999997},{"$f":"VLOOKUP($A88,F1__World_Data!$A$4:$DP$191,23,FALSE)","v":9636.152},{"$f":"VLOOKUP($A88,F1__World_Data!$A$4:$DP$191,22,FALSE)","v":9569.8469999999998},{"$f":"VLOOKUP($A88,F1__World_Data!$A$4:$DP$191,21,FALSE)","v":9504.8639999999996},{"$f":"VLOOKUP($A88,F1__World_Data!$A$4:$DP$191,20,FALSE)","v":9441.4150000000009},{"$f":"VLOOKUP($A88,F1__World_Data!$A$4:$DP$191,19,FALSE)","v":9378.9230000000007},{"$f":"VLOOKUP($A88,F1__World_Data!$A$4:$DP$191,18,FALSE)","v":9316.3240000000005},{"$f":"VLOOKUP($A88,F1__World_Data!$A$4:$DP$191,17,FALSE)","v":9252.7800000000007},{"$f":"VLOOKUP($A88,F1__World_Data!$A$4:$DP$191,16,FALSE)","v":9188.4629999999997},{"$f":"VLOOKUP($A88,F1__World_Data!$A$4:$DP$191,15,FALSE)","v":9123.4509999999991},{"$f":"VLOOKUP($A88,F1__World_Data!$A$4:$DP$191,14,FALSE)","v":9056.732},{"$f":"VLOOKUP($A88,F1__World_Data!$A$4:$DP$191,13,FALSE)","v":8987.0339999999997},{"$f":"VLOOKUP($A88,F1__World_Data!$A$4:$DP$191,12,FALSE)","v":8913.5490000000009},{"$f":"VLOOKUP($A88,F1__World_Data!$A$4:$DP$191,11,FALSE)","v":8835.7430000000004},{"$f":"VLOOKUP($A88,F1__World_Data!$A$4:$DP$191,10,FALSE)","v":8754.2000000000007},{"$f":"VLOOKUP($A88,F1__World_Data!$A$4:$DP$191,9,FALSE)","v":8670.5669999999991},{"$f":"VLOOKUP($A88,F1__World_Data!$A$4:$DP$191,8,FALSE)","v":8587.1740000000009},{"$f":"VLOOKUP($A88,F1__World_Data!$A$4:$DP$191,7,FALSE)","v":8505.7240000000002},{"$f":"VLOOKUP($A88,F1__World_Data!$A$4:$DP$191,6,FALSE)","v":8427.8389999999999},{"$f":"VLOOKUP($A88,F1__World_Data!$A$4:$DP$191,5,FALSE)","v":8353.2939999999999},{"$f":"VLOOKUP($A88,F1__World_Data!$A$4:$DP$191,4,FALSE)","v":8279.893},{"$f":"VLOOKUP($A88,F1__World_Data!$A$4:$DP$191,3,FALSE)","v":8204.3439999999991},{"$f":"VLOOKUP($A88,F1__World_Data!$A$4:$DP$191,2,FALSE)","v":8124.8810000000003},null,{"$f":"VLOOKUP($A88,F1__World_Data!$A$4:$DP$191,120,FALSE)","v":72.864000000000004},{"$f":"VLOOKUP($A88,F1__World_Data!$A$4:$DP$191,119,FALSE)","v":72.692999999999998},{"$f":"VLOOKUP($A88,F1__World_Data!$A$4:$DP$191,118,FALSE)","v":72.492999999999995},{"$f":"VLOOKUP($A88,F1__World_Data!$A$4:$DP$191,117,FALSE)","v":72.266000000000005},{"$f":"VLOOKUP($A88,F1__World_Data!$A$4:$DP$191,116,FALSE)","v":72.022000000000006},{"$f":"VLOOKUP($A88,F1__World_Data!$A$4:$DP$191,115,FALSE)","v":71.768000000000001},{"$f":"VLOOKUP($A88,F1__World_Data!$A$4:$DP$191,114,FALSE)","v":71.506},{"$f":"VLOOKUP($A88,F1__World_Data!$A$4:$DP$191,113,FALSE)","v":71.233999999999995},{"$f":"VLOOKUP($A88,F1__World_Data!$A$4:$DP$191,112,FALSE)","v":70.938000000000002},{"$f":"VLOOKUP($A88,F1__World_Data!$A$4:$DP$191,111,FALSE)","v":70.596999999999994},{"$f":"VLOOKUP($A88,F1__World_Data!$A$4:$DP$191,110,FALSE)","v":70.200999999999993},{"$f":"VLOOKUP($A88,F1__World_Data!$A$4:$DP$191,109,FALSE)","v":69.751999999999995},{"$f":"VLOOKUP($A88,F1__World_Data!$A$4:$DP$191,108,FALSE)","v":69.259},{"$f":"VLOOKUP($A88,F1__World_Data!$A$4:$DP$191,107,FALSE)","v":68.747},{"$f":"VLOOKUP($A88,F1__World_Data!$A$4:$DP$191,106,FALSE)","v":68.248999999999995},{"$f":"VLOOKUP($A88,F1__World_Data!$A$4:$DP$191,105,FALSE)","v":67.790999999999997},{"$f":"VLOOKUP($A88,F1__World_Data!$A$4:$DP$191,104,FALSE)","v":67.391000000000005},{"$f":"VLOOKUP($A88,F1__World_Data!$A$4:$DP$191,103,FALSE)","v":67.054000000000002},{"$f":"VLOOKUP($A88,F1__World_Data!$A$4:$DP$191,102,FALSE)","v":66.763000000000005},{"$f":"VLOOKUP($A88,F1__World_Data!$A$4:$DP$191,101,FALSE)","v":66.491},{"$f":"VLOOKUP($A88,F1__World_Data!$A$4:$DP$191,100,FALSE)","v":66.206999999999994},{"$f":"VLOOKUP($A88,F1__World_Data!$A$4:$DP$191,99,FALSE)","v":65.899000000000001},{"$f":"VLOOKUP($A88,F1__World_Data!$A$4:$DP$191,98,FALSE)","v":65.572999999999993},{"$f":"VLOOKUP($A88,F1__World_Data!$A$4:$DP$191,97,FALSE)","v":65.256},{"$f":"VLOOKUP($A88,F1__World_Data!$A$4:$DP$191,96,FALSE)","v":64.991},{"$f":"VLOOKUP($A88,F1__World_Data!$A$4:$DP$191,95,FALSE)","v":64.81},{"$f":"VLOOKUP($A88,F1__World_Data!$A$4:$DP$191,94,FALSE)","v":64.730999999999995},{"$f":"VLOOKUP($A88,F1__World_Data!$A$4:$DP$191,93,FALSE)","v":64.745000000000005},{"$f":"VLOOKUP($A88,F1__World_Data!$A$4:$DP$191,92,FALSE)","v":64.826999999999998},{"$f":"VLOOKUP($A88,F1__World_Data!$A$4:$DP$191,91,FALSE)","v":64.935000000000002},{"$f":"VLOOKUP($A88,F1__World_Data!$A$4:$DP$191,90,FALSE)","v":65.021000000000001},{"$f":"VLOOKUP($A88,F1__World_Data!$A$4:$DP$191,89,FALSE)","v":65.052999999999997},{"$f":"VLOOKUP($A88,F1__World_Data!$A$4:$DP$191,88,FALSE)","v":65.016000000000005},{"$f":"VLOOKUP($A88,F1__World_Data!$A$4:$DP$191,87,FALSE)","v":64.912999999999997},{"$f":"VLOOKUP($A88,F1__World_Data!$A$4:$DP$191,86,FALSE)","v":64.759},{"$f":"VLOOKUP($A88,F1__World_Data!$A$4:$DP$191,85,FALSE)","v":64.587000000000003},{"$f":"VLOOKUP($A88,F1__World_Data!$A$4:$DP$191,84,FALSE)","v":64.424999999999997},{"$f":"VLOOKUP($A88,F1__World_Data!$A$4:$DP$191,83,FALSE)","v":64.28},{"$f":"VLOOKUP($A88,F1__World_Data!$A$4:$DP$191,82,FALSE)","v":64.161000000000001},{"$f":"VLOOKUP($A88,F1__World_Data!$A$4:$DP$191,81,FALSE)","v":64.069000000000003},{"$f":"VLOOKUP($A88,F1__World_Data!$A$4:$DP$191,80,FALSE)","v":63.991999999999997},{"$f":"VLOOKUP($A88,F1__World_Data!$A$4:$DP$191,79,FALSE)","v":63.920999999999999},{"$f":"VLOOKUP($A88,F1__World_Data!$A$4:$DP$191,78,FALSE)","v":63.851999999999997},{"$f":"VLOOKUP($A88,F1__World_Data!$A$4:$DP$191,77,FALSE)","v":63.776000000000003},{"$f":"VLOOKUP($A88,F1__World_Data!$A$4:$DP$191,76,FALSE)","v":63.686999999999998},{"$f":"VLOOKUP($A88,F1__World_Data!$A$4:$DP$191,75,FALSE)","v":63.582000000000001},{"$f":"VLOOKUP($A88,F1__World_Data!$A$4:$DP$191,74,FALSE)","v":63.457000000000001},{"$f":"VLOOKUP($A88,F1__World_Data!$A$4:$DP$191,73,FALSE)","v":63.31},{"$f":"VLOOKUP($A88,F1__World_Data!$A$4:$DP$191,72,FALSE)","v":63.140999999999998},{"$f":"VLOOKUP($A88,F1__World_Data!$A$4:$DP$191,71,FALSE)","v":62.953000000000003},{"$f":"VLOOKUP($A88,F1__World_Data!$A$4:$DP$191,70,FALSE)","v":62.75},{"$f":"VLOOKUP($A88,F1__World_Data!$A$4:$DP$191,69,FALSE)","v":62.539000000000001},{"$f":"VLOOKUP($A88,F1__World_Data!$A$4:$DP$191,68,FALSE)","v":62.322000000000003},{"$f":"VLOOKUP($A88,F1__World_Data!$A$4:$DP$191,67,FALSE)","v":62.103999999999999},{"$f":"VLOOKUP($A88,F1__World_Data!$A$4:$DP$191,66,FALSE)","v":61.889000000000003},{"$f":"VLOOKUP($A88,F1__World_Data!$A$4:$DP$191,65,FALSE)","v":61.679000000000002},{"$f":"VLOOKUP($A88,F1__World_Data!$A$4:$DP$191,64,FALSE)","v":61.469000000000001},{"$f":"VLOOKUP($A88,F1__World_Data!$A$4:$DP$191,63,FALSE)","v":61.256},{"$f":"VLOOKUP($A88,F1__World_Data!$A$4:$DP$191,62,FALSE)","v":61.033999999999999}]
["Tajikistan",{"$f":"VLOOKUP($A89,F1__World_Data!$A$4:$DP$191,60,FALSE)","v":9100.8469999999998},{"$f":"VLOOKUP($A89,F1__World_Data!$A$4:$DP$191,59,FALSE)","v":8880.27},{"$f":"VLOOKUP($A89,F1__World_Data!$A$4:$DP$191,58,FALSE)","v":8663.5750000000007},{"$f":"VLOOKUP($A89,F1__World_Data!$A$4:$DP$191,57,FALSE)","v":8454.0190000000002},{"$f":"VLOOKUP($A89,F1__World_Data!$A$4:$DP$191,56,FALSE)","v":8252.8279999999995},{"$f":"VLOOKUP($A89,F1__World_Data!$A$4:$DP$191,55,FALSE)","v":8059.7820000000002},{"$f":"VLOOKUP($A89,F1__World_Data!$A$4:$DP$191,54,FALSE)","v":7874.8379999999997},{"$f":"VLOOKUP($A89,F1__World_Data!$A$4:$DP$191,53,FALSE)","v":7697.5069999999996},{"$f":"VLOOKUP($A89,F1__World_Data!$A$4:$DP$191,52,FALSE)","v":7527.3969999999999},{"$f":"VLOOKUP($A89,F1__World_Data!$A$4:$DP$191,51,FALSE)","v":7364.7520000000004},{"$f":"VLOOKUP($A89,F1__World_Data!$A$4:$DP$191,50,FALSE)","v":7209.924},{"$f":"VLOOKUP($A89,F1__World_Data!$A$4:$DP$191,49,FALSE)","v":7062.6670000000004},{"$f":"VLOOKUP($A89,F1__World_Data!$A$4:$DP$191,48,FALSE)","v":6922.59},{"$f":"VLOOKUP($A89,F1__World_Data!$A$4:$DP$191,47,FALSE)","v":6789.3180000000002},{"$f":"VLOOKUP($A89,F1__World_Data!$A$4:$DP$191,46,FALSE)","v":6662.3909999999996},{"$f":"VLOOKUP($A89,F1__World_Data!$A$4:$DP$191,45,FALSE)","v":6541.55},{"$f":"VLOOKUP($A89,F1__World_Data!$A$4:$DP$191,44,FALSE)","v":6426.8609999999999},{"$f":"VLOOKUP($A89,F1__World_Data!$A$4:$DP$191,43,FALSE)","v":6318.51},{"$f":"VLOOKUP($A89,F1__World_Data!$A$4:$DP$191,42,FALSE)","v":6216.3289999999997},{"$f":"VLOOKUP($A89,F1__World_Data!$A$4:$DP$191,41,FALSE)","v":6119.6639999999998},{"$f":"VLOOKUP($A89,F1__World_Data!$A$4:$DP$191,40,FALSE)","v":6027.3950000000004},{"$f":"VLOOKUP($A89,F1__World_Data!$A$4:$DP$191,39,FALSE)","v":5938.4040000000005},{"$f":"VLOOKUP($A89,F1__World_Data!$A$4:$DP$191,38,FALSE)","v":5851.3540000000003},{"$f":"VLOOKUP($A89,F1__World_Data!$A$4:$DP$191,37,FALSE)","v":5764.8059999999996},{"$f":"VLOOKUP($A89,F1__World_Data!$A$4:$DP$191,36,FALSE)","v":5679.1689999999999},{"$f":"VLOOKUP($A89,F1__World_Data!$A$4:$DP$191,35,FALSE)","v":5593.317},{"$f":"VLOOKUP($A89,F1__World_Data!$A$4:$DP$191,34,FALSE)","v":5502.49},{"$f":"VLOOKUP($A89,F1__World_Data!$A$4:$DP$191,33,FALSE)","v":5400.6360000000004},{"$f":"VLOOKUP($A89,F1__World_Data!$A$4:$DP$191,32,FALSE)","v":5283.8109999999997},{"$f":"VLOOKUP($A89,F1__World_Data!$A$4:$DP$191,31,FALSE)","v":5149.8720000000003},{"$f":"VLOOKUP($A89,F1__World_Data!$A$4:$DP$191,30,FALSE)","v":5001.1719999999996},{"$f":"VLOOKUP($A89,F1__World_Data!$A$4:$DP$191,29,FALSE)","v":4843.9970000000003},{"$f":"VLOOKUP($A89,F1__World_Data!$A$4:$DP$191,28,FALSE)","v":4687.3280000000004},{"$f":"VLOOKUP($A89,F1__World_Data!$A$4:$DP$191,27,FALSE)","v":4537.82},{"$f":"VLOOKUP($A89,F1__World_Data!$A$4:$DP$191,26,FALSE)","v":4397.5630000000001},{"$f":"VLOOKUP($A89,F1__World_Data!$A$4:$DP$191,25,FALSE)","v":4265.2780000000002},{"$f":"VLOOKUP($A89,F1__World_Data!$A$4:$DP$191,24,FALSE)","v":4140.2969999999996},{"$f":"VLOOKUP($A89,F1__World_Data!$A$4:$DP$191,23,FALSE)","v":4020.8180000000002},{"$f":"VLOOKUP($A89,F1__World_Data!$A$4:$DP$191,22,FALSE)","v":3905.4430000000002},{"$f":"VLOOKUP($A89,F1__World_Data!$A$4:$DP$191,21,FALSE)","v":3794.4569999999999},{"$f":"VLOOKUP($A89,F1__World_Data!$A$4:$DP$191,20,FALSE)","v":3688.4110000000001},{"$f":"VLOOKUP($A89,F1__World_Data!$A$4:$DP$191,19,FALSE)","v":3586.5160000000001},{"$f":"VLOOKUP($A89,F1__World_Data!$A$4:$DP$191,18,FALSE)","v":3487.6579999999999},{"$f":"VLOOKUP($A89,F1__World_Data!$A$4:$DP$191,17,FALSE)","v":3390.9409999999998},{"$f":"VLOOKUP($A89,F1__World_Data!$A$4:$DP$191,16,FALSE)","v":3296.0920000000001},{"$f":"VLOOKUP($A89,F1__World_Data!$A$4:$DP$191,15,FALSE)","v":3203.0349999999999},{"$f":"VLOOKUP($A89,F1__World_Data!$A$4:$DP$191,14,FALSE)","v":3111.2840000000001},{"$f":"VLOOKUP($A89,F1__World_Data!$A$4:$DP$191,13,FALSE)","v":3020.4189999999999},{"$f":"VLOOKUP($A89,F1__World_Data!$A$4:$DP$191,12,FALSE)","v":2930.1080000000002},{"$f":"VLOOKUP($A89,F1__World_Data!$A$4:$DP$191,11,FALSE)","v":2840.2649999999999},{"$f":"VLOOKUP($A89,F1__World_Data!$A$4:$DP$191,10,FALSE)","v":2750.9319999999998},{"$f":"VLOOKUP($A89,F1__World_Data!$A$4:$DP$191,9,FALSE)","v":2662.2570000000001},{"$f":"VLOOKUP($A89,F1__World_Data!$A$4:$DP$191,8,FALSE)","v":2574.5059999999999},{"$f":"VLOOKUP($A89,F1__World_Data!$A$4:$DP$191,7,FALSE)","v":2487.9749999999999},{"$f":"VLOOKUP($A89,F1__World_Data!$A$4:$DP$191,6,FALSE)","v":2402.473},{"$f":"VLOOKUP($A89,F1__World_Data!$A$4:$DP$191,5,FALSE)","v":2318.252},{"$f":"VLOOKUP($A89,F1__World_Data!$A$4:$DP$191,4,FALSE)","v":2236.5639999999999},{"$f":"VLOOKUP($A89,F1__World_Data!$A$4:$DP$191,3,FALSE)","v":2159.134},{"$f":"VLOOKUP($A89,F1__World_Data!$A$4:$DP$191,2,FALSE)","v":2087.0529999999999},null,{"$f":"VLOOKUP($A89,F1__World_Data!$A$4:$DP$191,120,FALSE)","v":63.856999999999999},{"$f":"VLOOKUP($A89,F1__World_Data!$A$4:$DP$191,119,FALSE)","v":63.537999999999997},{"$f":"VLOOKUP($A89,F1__World_Data!$A$4:$DP$191,118,FALSE)","v":63.152999999999999},{"$f":"VLOOKUP($A89,F1__World_Data!$A$4:$DP$191,117,FALSE)","v":62.649000000000001},{"$f":"VLOOKUP($A89,F1__World_Data!$A$4:$DP$191,116,FALSE)","v":61.968000000000004},{"$f":"VLOOKUP($A89,F1__World_Data!$A$4:$DP$191,115,FALSE)","v":61.098999999999997},{"$f":"VLOOKUP($A89,F1__World_Data!$A$4:$DP$191,114,FALSE)","v":60.06},{"$f":"VLOOKUP($A89,F1__World_Data!$A$4:$DP$191,113,FALSE)","v":58.895000000000003},{"$f":"VLOOKUP($A89,F1__World_Data!$A$4:$DP$191,112,FALSE)","v":57.668999999999997},{"$f":"VLOOKUP($A89,F1__World_Data!$A$4:$DP$191,111,FALSE)","v":56.46},{"$f":"VLOOKUP($A89,F1__World_Data!$A$4:$DP$191,110,FALSE)","v":55.36},{"$f":"VLOOKUP($A89,F1__World_Data!$A$4:$DP$191,109,FALSE)","v":54.451999999999998},{"$f":"VLOOKUP($A89,F1__World_Data!$A$4:$DP$191,108,FALSE)","v":53.795000000000002},{"$f":"VLOOKUP($A89,F1__World_Data!$A$4:$DP$191,107,FALSE)","v":53.447000000000003},{"$f":"VLOOKUP($A89,F1__World_Data!$A$4:$DP$191,106,FALSE)","v":53.444000000000003},{"$f":"VLOOKUP($A89,F1__World_Data!$A$4:$DP$191,105,FALSE)","v":53.749000000000002},{"$f":"VLOOKUP($A89,F1__World_Data!$A$4:$DP$191,104,FALSE)","v":54.31},{"$f":"VLOOKUP($A89,F1__World_Data!$A$4:$DP$191,103,FALSE)","v":55.088999999999999},{"$f":"VLOOKUP($A89,F1__World_Data!$A$4:$DP$191,102,FALSE)","v":56.048000000000002},{"$f":"VLOOKUP($A89,F1__World_Data!$A$4:$DP$191,101,FALSE)","v":57.143999999999998},{"$f":"VLOOKUP($A89,F1__World_Data!$A$4:$DP$191,100,FALSE)","v":58.314999999999998},{"$f":"VLOOKUP($A89,F1__World_Data!$A$4:$DP$191,99,FALSE)","v":59.488999999999997},{"$f":"VLOOKUP($A89,F1__World_Data!$A$4:$DP$191,98,FALSE)","v":60.594999999999999},{"$f":"VLOOKUP($A89,F1__World_Data!$A$4:$DP$191,97,FALSE)","v":61.561},{"$f":"VLOOKUP($A89,F1__World_Data!$A$4:$DP$191,96,FALSE)","v":62.331000000000003},{"$f":"VLOOKUP($A89,F1__World_Data!$A$4:$DP$191,95,FALSE)","v":62.893999999999998},{"$f":"VLOOKUP($A89,F1__World_Data!$A$4:$DP$191,94,FALSE)","v":63.247},{"$f":"VLOOKUP($A89,F1__World_Data!$A$4:$DP$191,93,FALSE)","v":63.384},{"$f":"VLOOKUP($A89,F1__World_Data!$A$4:$DP$191,92,FALSE)","v":63.307000000000002},{"$f":"VLOOKUP($A89,F1__World_Data!$A$4:$DP$191,91,FALSE)","v":63.034999999999997},{"$f":"VLOOKUP($A89,F1__World_Data!$A$4:$DP$191,90,FALSE)","v":62.619},{"$f":"VLOOKUP($A89,F1__World_Data!$A$4:$DP$191,89,FALSE)","v":62.109000000000002},{"$f":"VLOOKUP($A89,F1__World_Data!$A$4:$DP$191,88,FALSE)","v":61.54},{"$f":"VLOOKUP($A89,F1__World_Data!$A$4:$DP$191,87,FALSE)","v":60.945999999999998},{"$f":"VLOOKUP($A89,F1__World_Data!$A$4:$DP$191,86,FALSE)","v":60.353000000000002},{"$f":"VLOOKUP($A89,F1__World_Data!$A$4:$DP$191,85,FALSE)","v":59.765999999999998},{"$f":"VLOOKUP($A89,F1__World_Data!$A$4:$DP$191,84,FALSE)","v":59.191000000000003},{"$f":"VLOOKUP($A89,F1__World_Data!$A$4:$DP$191,83,FALSE)","v":58.637},{"$f":"VLOOKUP($A89,F1__World_Data!$A$4:$DP$191,82,FALSE)","v":58.106999999999999},{"$f":"VLOOKUP($A89,F1__World_Data!$A$4:$DP$191,81,FALSE)","v":57.59},{"$f":"VLOOKUP($A89,F1__World_Data!$A$4:$DP$191,80,FALSE)","v":57.070999999999998},{"$f":"VLOOKUP($A89,F1__World_Data!$A$4:$DP$191,79,FALSE)","v":56.537999999999997},{"$f":"VLOOKUP($A89,F1__World_Data!$A$4:$DP$191,78,FALSE)","v":55.99},{"$f":"VLOOKUP($A89,F1__World_Data!$A$4:$DP$191,77,FALSE)","v":55.427999999999997},{"$f":"VLOOKUP($A89,F1__World_Data!$A$4:$DP$191,76,FALSE)","v":54.856000000000002},{"$f":"VLOOKUP($A89,F1__World_Data!$A$4:$DP$191,75,FALSE)","v":54.280999999999999},{"$f":"VLOOKUP($A89,F1__World_Data!$A$4:$DP$191,74,FALSE)","v":53.713000000000001},{"$f":"VLOOKUP($A89,F1__World_Data!$A$4:$DP$191,73,FALSE)","v":53.156999999999996},{"$f":"VLOOKUP($A89,F1__World_Data!$A$4:$DP$191,72,FALSE)","v":52.62},{"$f":"VLOOKUP($A89,F1__World_Data!$A$4:$DP$191,71,FALSE)","v":52.106000000000002},{"$f":"VLOOKUP($A89,F1__World_Data!$A$4:$DP$191,70,FALSE)","v":51.615000000000002},{"$f":"VLOOKUP($A89,F1__World_Data!$A$4:$DP$191,69,FALSE)","v":51.148000000000003},{"$f":"VLOOKUP($A89,F1__World_Data!$A$4:$DP$191,68,FALSE)","v":50.704999999999998},{"$f":"VLOOKUP($A89,F1__World_Data!$A$4:$DP$191,67,FALSE)","v":50.283999999999999},{"$f":"VLOOKUP($A89,F1__World_Data!$A$4:$DP$191,66,FALSE)","v":49.887999999999998},{"$f":"VLOOKUP($A89,F1__World_Data!$A$4:$DP$191,65,FALSE)","v":49.509},{"$f":"VLOOKUP($A89,F1__World_Data!$A$4:$DP$191,64,FALSE)","v":49.142000000000003},{"$f":"VLOOKUP($A89,F1__World_Data!$A$4:$DP$191,63,FALSE)","v":48.777000000000001},{"$f":"VLOOKUP($A89,F1__World_Data!$A$4:$DP$191,62,FALSE)","v":48.405999999999999}]
["Austria",{"$f":"VLOOKUP($A90,F1__World_Data!$A$4:$DP$191,60,FALSE)","v":8891.3829999999998},{"$f":"VLOOKUP($A90,F1__World_Data!$A$4:$DP$191,59,FALSE)","v":8819.902},{"$f":"VLOOKUP($A90,F1__World_Data!$A$4:$DP$191,58,FALSE)","v":8747.3060000000005},{"$f":"VLOOKUP($A90,F1__World_Data!$A$4:$DP$191,57,FALSE)","v":8678.6669999999995},{"$f":"VLOOKUP($A90,F1__World_Data!$A$4:$DP$191,56,FALSE)","v":8615.2049999999999},{"$f":"VLOOKUP($A90,F1__World_Data!$A$4:$DP$191,55,FALSE)","v":8556.1910000000007},{"$f":"VLOOKUP($A90,F1__World_Data!$A$4:$DP$191,54,FALSE)","v":8502.23},{"$f":"VLOOKUP($A90,F1__World_Data!$A$4:$DP$191,53,FALSE)","v":8453.5010000000002},{"$f":"VLOOKUP($A90,F1__World_Data!$A$4:$DP$191,52,FALSE)","v":8409.9449999999997},{"$f":"VLOOKUP($A90,F1__World_Data!$A$4:$DP$191,51,FALSE)","v":8372.6579999999994},{"$f":"VLOOKUP($A90,F1__World_Data!$A$4:$DP$191,50,FALSE)","v":8341.5249999999996},{"$f":"VLOOKUP($A90,F1__World_Data!$A$4:$DP$191,49,FALSE)","v":8313.7309999999998},{"$f":"VLOOKUP($A90,F1__World_Data!$A$4:$DP$191,48,FALSE)","v":8285.3449999999993},{"$f":"VLOOKUP($A90,F1__World_Data!$A$4:$DP$191,47,FALSE)","v":8253.6560000000009},{"$f":"VLOOKUP($A90,F1__World_Data!$A$4:$DP$191,46,FALSE)","v":8216.81},{"$f":"VLOOKUP($A90,F1__World_Data!$A$4:$DP$191,45,FALSE)","v":8175.8549999999996},{"$f":"VLOOKUP($A90,F1__World_Data!$A$4:$DP$191,44,FALSE)","v":8134.4030000000002},{"$f":"VLOOKUP($A90,F1__World_Data!$A$4:$DP$191,43,FALSE)","v":8097.7550000000001},{"$f":"VLOOKUP($A90,F1__World_Data!$A$4:$DP$191,42,FALSE)","v":8069.2759999999998},{"$f":"VLOOKUP($A90,F1__World_Data!$A$4:$DP$191,41,FALSE)","v":8051.116},{"$f":"VLOOKUP($A90,F1__World_Data!$A$4:$DP$191,40,FALSE)","v":8041.0540000000001},{"$f":"VLOOKUP($A90,F1__World_Data!$A$4:$DP$191,39,FALSE)","v":8032.8729999999996},{"$f":"VLOOKUP($A90,F1__World_Data!$A$4:$DP$191,38,FALSE)","v":8017.8519999999999},{"$f":"VLOOKUP($A90,F1__World_Data!$A$4:$DP$191,37,FALSE)","v":7990.1130000000003},{"$f":"VLOOKUP($A90,F1__World_Data!$A$4:$DP$191,36,FALSE)","v":7947.2150000000001},{"$f":"VLOOKUP($A90,F1__World_Data!$A$4:$DP$191,35,FALSE)","v":7892.0889999999999},{"$f":"VLOOKUP($A90,F1__World_Data!$A$4:$DP$191,34,FALSE)","v":7830.9380000000001},{"$f":"VLOOKUP($A90,F1__World_Data!$A$4:$DP$191,33,FALSE)","v":7772.6980000000003},{"$f":"VLOOKUP($A90,F1__World_Data!$A$4:$DP$191,32,FALSE)","v":7723.9539999999997},{"$f":"VLOOKUP($A90,F1__World_Data!$A$4:$DP$191,31,FALSE)","v":7686.5640000000003},{"$f":"VLOOKUP($A90,F1__World_Data!$A$4:$DP$191,30,FALSE)","v":7658.8559999999998},{"$f":"VLOOKUP($A90,F1__World_Data!$A$4:$DP$191,29,FALSE)","v":7639.3509999999997},{"$f":"VLOOKUP($A90,F1__World_Data!$A$4:$DP$191,28,FALSE)","v":7625.3950000000004},{"$f":"VLOOKUP($A90,F1__World_Data!$A$4:$DP$191,27,FALSE)","v":7614.8739999999998},{"$f":"VLOOKUP($A90,F1__World_Data!$A$4:$DP$191,26,FALSE)","v":7607.2960000000003},{"$f":"VLOOKUP($A90,F1__World_Data!$A$4:$DP$191,25,FALSE)","v":7603.1},{"$f":"VLOOKUP($A90,F1__World_Data!$A$4:$DP$191,24,FALSE)","v":7602.1769999999997},{"$f":"VLOOKUP($A90,F1__World_Data!$A$4:$DP$191,23,FALSE)","v":7604.5119999999997},{"$f":"VLOOKUP($A90,F1__World_Data!$A$4:$DP$191,22,FALSE)","v":7609.75},{"$f":"VLOOKUP($A90,F1__World_Data!$A$4:$DP$191,21,FALSE)","v":7617.8829999999998},{"$f":"VLOOKUP($A90,F1__World_Data!$A$4:$DP$191,20,FALSE)","v":7627.7619999999997},{"$f":"VLOOKUP($A90,F1__World_Data!$A$4:$DP$191,19,FALSE)","v":7636.5730000000003},{"$f":"VLOOKUP($A90,F1__World_Data!$A$4:$DP$191,18,FALSE)","v":7640.7550000000001},{"$f":"VLOOKUP($A90,F1__World_Data!$A$4:$DP$191,17,FALSE)","v":7637.6859999999997},{"$f":"VLOOKUP($A90,F1__World_Data!$A$4:$DP$191,16,FALSE)","v":7626.29},{"$f":"VLOOKUP($A90,F1__World_Data!$A$4:$DP$191,15,FALSE)","v":7607.067},{"$f":"VLOOKUP($A90,F1__World_Data!$A$4:$DP$191,14,FALSE)","v":7581.12},{"$f":"VLOOKUP($A90,F1__World_Data!$A$4:$DP$191,13,FALSE)","v":7550.3389999999999},{"$f":"VLOOKUP($A90,F1__World_Data!$A$4:$DP$191,12,FALSE)","v":7516.2380000000003},{"$f":"VLOOKUP($A90,F1__World_Data!$A$4:$DP$191,11,FALSE)","v":7479.34},{"$f":"VLOOKUP($A90,F1__World_Data!$A$4:$DP$191,10,FALSE)","v":7439.5810000000001},{"$f":"VLOOKUP($A90,F1__World_Data!$A$4:$DP$191,9,FALSE)","v":7397.1679999999997},{"$f":"VLOOKUP($A90,F1__World_Data!$A$4:$DP$191,8,FALSE)","v":7352.2389999999996},{"$f":"VLOOKUP($A90,F1__World_Data!$A$4:$DP$191,7,FALSE)","v":7305.1540000000005},{"$f":"VLOOKUP($A90,F1__World_Data!$A$4:$DP$191,6,FALSE)","v":7256.0910000000003},{"$f":"VLOOKUP($A90,F1__World_Data!$A$4:$DP$191,5,FALSE)","v":7205.991},{"$f":"VLOOKUP($A90,F1__World_Data!$A$4:$DP$191,4,FALSE)","v":7156.8360000000002},{"$f":"VLOOKUP($A90,F1__World_Data!$A$4:$DP$191,3,FALSE)","v":7111.1390000000001},{"$f":"VLOOKUP($A90,F1__World_Data!$A$4:$DP$191,2,FALSE)","v":7070.7730000000001},null,{"$f":"VLOOKUP($A90,F1__World_Data!$A$4:$DP$191,120,FALSE)","v":81.643902439024401},{"$f":"VLOOKUP($A90,F1__World_Data!$A$4:$DP$191,119,FALSE)","v":81.643902439024401},{"$f":"VLOOKUP($A90,F1__World_Data!$A$4:$DP$191,118,FALSE)","v":81.64146341463416},{"$f":"VLOOKUP($A90,F1__World_Data!$A$4:$DP$191,117,FALSE)","v":81.190243902439036},{"$f":"VLOOKUP($A90,F1__World_Data!$A$4:$DP$191,116,FALSE)","v":81.490243902439033},{"$f":"VLOOKUP($A90,F1__World_Data!$A$4:$DP$191,115,FALSE)","v":81.136585365853662},{"$f":"VLOOKUP($A90,F1__World_Data!$A$4:$DP$191,114,FALSE)","v":80.936585365853674},{"$f":"VLOOKUP($A90,F1__World_Data!$A$4:$DP$191,113,FALSE)","v":80.982926829268294},{"$f":"VLOOKUP($A90,F1__World_Data!$A$4:$DP$191,112,FALSE)","v":80.580487804878061},{"$f":"VLOOKUP($A90,F1__World_Data!$A$4:$DP$191,111,FALSE)","v":80.331707317073182},{"$f":"VLOOKUP($A90,F1__World_Data!$A$4:$DP$191,110,FALSE)","v":80.431707317073176},{"$f":"VLOOKUP($A90,F1__World_Data!$A$4:$DP$191,109,FALSE)","v":80.180487804878055},{"$f":"VLOOKUP($A90,F1__World_Data!$A$4:$DP$191,108,FALSE)","v":79.880487804878058},{"$f":"VLOOKUP($A90,F1__World_Data!$A$4:$DP$191,107,FALSE)","v":79.331707317073182},{"$f":"VLOOKUP($A90,F1__World_Data!$A$4:$DP$191,106,FALSE)","v":79.180487804878055},{"$f":"VLOOKUP($A90,F1__World_Data!$A$4:$DP$191,105,FALSE)","v":78.631707317073179},{"$f":"VLOOKUP($A90,F1__World_Data!$A$4:$DP$191,104,FALSE)","v":78.678048780487828},{"$f":"VLOOKUP($A90,F1__World_Data!$A$4:$DP$191,103,FALSE)","v":78.575609756097563},{"$f":"VLOOKUP($A90,F1__World_Data!$A$4:$DP$191,102,FALSE)","v":78.126829268292695},{"$f":"VLOOKUP($A90,F1__World_Data!$A$4:$DP$191,101,FALSE)","v":77.875609756097575},{"$f":"VLOOKUP($A90,F1__World_Data!$A$4:$DP$191,100,FALSE)","v":77.670731707317088},{"$f":"VLOOKUP($A90,F1__World_Data!$A$4:$DP$191,99,FALSE)","v":77.319512195121959},{"$f":"VLOOKUP($A90,F1__World_Data!$A$4:$DP$191,98,FALSE)","v":76.870731707317077},{"$f":"VLOOKUP($A90,F1__World_Data!$A$4:$DP$191,97,FALSE)","v":76.668292682926847},{"$f":"VLOOKUP($A90,F1__World_Data!$A$4:$DP$191,96,FALSE)","v":76.419512195121953},{"$f":"VLOOKUP($A90,F1__World_Data!$A$4:$DP$191,95,FALSE)","v":76.068292682926838},{"$f":"VLOOKUP($A90,F1__World_Data!$A$4:$DP$191,94,FALSE)","v":75.817073170731717},{"$f":"VLOOKUP($A90,F1__World_Data!$A$4:$DP$191,93,FALSE)","v":75.6170731707317},{"$f":"VLOOKUP($A90,F1__World_Data!$A$4:$DP$191,92,FALSE)","v":75.568292682926852},{"$f":"VLOOKUP($A90,F1__World_Data!$A$4:$DP$191,91,FALSE)","v":75.265853658536599},{"$f":"VLOOKUP($A90,F1__World_Data!$A$4:$DP$191,90,FALSE)","v":75.217073170731709},{"$f":"VLOOKUP($A90,F1__World_Data!$A$4:$DP$191,89,FALSE)","v":74.768292682926841},{"$f":"VLOOKUP($A90,F1__World_Data!$A$4:$DP$191,88,FALSE)","v":74.317073170731717},{"$f":"VLOOKUP($A90,F1__World_Data!$A$4:$DP$191,87,FALSE)","v":73.814634146341476},{"$f":"VLOOKUP($A90,F1__World_Data!$A$4:$DP$191,86,FALSE)","v":73.612195121951231},{"$f":"VLOOKUP($A90,F1__World_Data!$A$4:$DP$191,85,FALSE)","v":73.012195121951237},{"$f":"VLOOKUP($A90,F1__World_Data!$A$4:$DP$191,84,FALSE)","v":72.960975609756105},{"$f":"VLOOKUP($A90,F1__World_Data!$A$4:$DP$191,83,FALSE)","v":72.81219512195122},{"$f":"VLOOKUP($A90,F1__World_Data!$A$4:$DP$191,82,FALSE)","v":72.463414634146346},{"$f":"VLOOKUP($A90,F1__World_Data!$A$4:$DP$191,81,FALSE)","v":72.312195121951234},{"$f":"VLOOKUP($A90,F1__World_Data!$A$4:$DP$191,80,FALSE)","v":72.012195121951223},{"$f":"VLOOKUP($A90,F1__World_Data!$A$4:$DP$191,79,FALSE)","v":71.91463414634147},{"$f":"VLOOKUP($A90,F1__World_Data!$A$4:$DP$191,78,FALSE)","v":71.565853658536582},{"$f":"VLOOKUP($A90,F1__World_Data!$A$4:$DP$191,77,FALSE)","v":71.114634146341487},{"$f":"VLOOKUP($A90,F1__World_Data!$A$4:$DP$191,76,FALSE)","v":71.012195121951223},{"$f":"VLOOKUP($A90,F1__World_Data!$A$4:$DP$191,75,FALSE)","v":71.014634146341464},{"$f":"VLOOKUP($A90,F1__World_Data!$A$4:$DP$191,74,FALSE)","v":70.463414634146346},{"$f":"VLOOKUP($A90,F1__World_Data!$A$4:$DP$191,73,FALSE)","v":70.114634146341473},{"$f":"VLOOKUP($A90,F1__World_Data!$A$4:$DP$191,72,FALSE)","v":69.91463414634147},{"$f":"VLOOKUP($A90,F1__World_Data!$A$4:$DP$191,71,FALSE)","v":69.833170731707327},{"$f":"VLOOKUP($A90,F1__World_Data!$A$4:$DP$191,70,FALSE)","v":70.057560975609761},{"$f":"VLOOKUP($A90,F1__World_Data!$A$4:$DP$191,69,FALSE)","v":69.917804878048784},{"$f":"VLOOKUP($A90,F1__World_Data!$A$4:$DP$191,68,FALSE)","v":70.045853658536586},{"$f":"VLOOKUP($A90,F1__World_Data!$A$4:$DP$191,67,FALSE)","v":69.722195121951216},{"$f":"VLOOKUP($A90,F1__World_Data!$A$4:$DP$191,66,FALSE)","v":69.921951219512209},{"$f":"VLOOKUP($A90,F1__World_Data!$A$4:$DP$191,65,FALSE)","v":69.443658536585389},{"$f":"VLOOKUP($A90,F1__World_Data!$A$4:$DP$191,64,FALSE)","v":69.309512195121968},{"$f":"VLOOKUP($A90,F1__World_Data!$A$4:$DP$191,63,FALSE)","v":69.577317073170747},{"$f":"VLOOKUP($A90,F1__World_Data!$A$4:$DP$191,62,FALSE)","v":68.585609756097568}]
["Serbia",{"$f":"VLOOKUP($A91,F1__World_Data!$A$4:$DP$191,60,FALSE)","v":8802.741},{"$f":"VLOOKUP($A91,F1__World_Data!$A$4:$DP$191,59,FALSE)","v":8829.6229999999996},{"$f":"VLOOKUP($A91,F1__World_Data!$A$4:$DP$191,58,FALSE)","v":8853.9629999999997},{"$f":"VLOOKUP($A91,F1__World_Data!$A$4:$DP$191,57,FALSE)","v":8876.777},{"$f":"VLOOKUP($A91,F1__World_Data!$A$4:$DP$191,56,FALSE)","v":8898.2839999999997},{"$f":"VLOOKUP($A91,F1__World_Data!$A$4:$DP$191,55,FALSE)","v":8918.8919999999998},{"$f":"VLOOKUP($A91,F1__World_Data!$A$4:$DP$191,54,FALSE)","v":8940.116},{"$f":"VLOOKUP($A91,F1__World_Data!$A$4:$DP$191,53,FALSE)","v":8963.7610000000004},{"$f":"VLOOKUP($A91,F1__World_Data!$A$4:$DP$191,52,FALSE)","v":8991.2579999999998},{"$f":"VLOOKUP($A91,F1__World_Data!$A$4:$DP$191,51,FALSE)","v":9023.3539999999994},{"$f":"VLOOKUP($A91,F1__World_Data!$A$4:$DP$191,50,FALSE)","v":9060.1049999999996},{"$f":"VLOOKUP($A91,F1__World_Data!$A$4:$DP$191,49,FALSE)","v":9101.1890000000003},{"$f":"VLOOKUP($A91,F1__World_Data!$A$4:$DP$191,48,FALSE)","v":9145.9130000000005},{"$f":"VLOOKUP($A91,F1__World_Data!$A$4:$DP$191,47,FALSE)","v":9193.8179999999993},{"$f":"VLOOKUP($A91,F1__World_Data!$A$4:$DP$191,46,FALSE)","v":9242.643},{"$f":"VLOOKUP($A91,F1__World_Data!$A$4:$DP$191,45,FALSE)","v":9292.232},{"$f":"VLOOKUP($A91,F1__World_Data!$A$4:$DP$191,44,FALSE)","v":9346.4639999999999},{"$f":"VLOOKUP($A91,F1__World_Data!$A$4:$DP$191,43,FALSE)","v":9410.7690000000002},{"$f":"VLOOKUP($A91,F1__World_Data!$A$4:$DP$191,42,FALSE)","v":9487.6119999999992},{"$f":"VLOOKUP($A91,F1__World_Data!$A$4:$DP$191,41,FALSE)","v":9580.8240000000005},{"$f":"VLOOKUP($A91,F1__World_Data!$A$4:$DP$191,40,FALSE)","v":9685.43},{"$f":"VLOOKUP($A91,F1__World_Data!$A$4:$DP$191,39,FALSE)","v":9784.6890000000003},{"$f":"VLOOKUP($A91,F1__World_Data!$A$4:$DP$191,38,FALSE)","v":9856.0640000000003},{"$f":"VLOOKUP($A91,F1__World_Data!$A$4:$DP$191,37,FALSE)","v":9884.1450000000004},{"$f":"VLOOKUP($A91,F1__World_Data!$A$4:$DP$191,36,FALSE)","v":9861.6309999999994},{"$f":"VLOOKUP($A91,F1__World_Data!$A$4:$DP$191,35,FALSE)","v":9795.2530000000006},{"$f":"VLOOKUP($A91,F1__World_Data!$A$4:$DP$191,34,FALSE)","v":9701.1450000000004},{"$f":"VLOOKUP($A91,F1__World_Data!$A$4:$DP$191,33,FALSE)","v":9602.8790000000008},{"$f":"VLOOKUP($A91,F1__World_Data!$A$4:$DP$191,32,FALSE)","v":9517.6769999999997},{"$f":"VLOOKUP($A91,F1__World_Data!$A$4:$DP$191,31,FALSE)","v":9450.77},{"$f":"VLOOKUP($A91,F1__World_Data!$A$4:$DP$191,30,FALSE)","v":9397.31},{"$f":"VLOOKUP($A91,F1__World_Data!$A$4:$DP$191,29,FALSE)","v":9352.1489999999994},{"$f":"VLOOKUP($A91,F1__World_Data!$A$4:$DP$191,28,FALSE)","v":9306.3469999999998},{"$f":"VLOOKUP($A91,F1__World_Data!$A$4:$DP$191,27,FALSE)","v":9253.3960000000006},{"$f":"VLOOKUP($A91,F1__World_Data!$A$4:$DP$191,26,FALSE)","v":9192.92},{"$f":"VLOOKUP($A91,F1__World_Data!$A$4:$DP$191,25,FALSE)","v":9127.6749999999993},{"$f":"VLOOKUP($A91,F1__World_Data!$A$4:$DP$191,24,FALSE)","v":9057.9709999999995},{"$f":"VLOOKUP($A91,F1__World_Data!$A$4:$DP$191,23,FALSE)","v":8984.5969999999998},{"$f":"VLOOKUP($A91,F1__World_Data!$A$4:$DP$191,22,FALSE)","v":8908.2950000000001},{"$f":"VLOOKUP($A91,F1__World_Data!$A$4:$DP$191,21,FALSE)","v":8829.0360000000001},{"$f":"VLOOKUP($A91,F1__World_Data!$A$4:$DP$191,20,FALSE)","v":8746.9789999999994},{"$f":"VLOOKUP($A91,F1__World_Data!$A$4:$DP$191,19,FALSE)","v":8663.33},{"$f":"VLOOKUP($A91,F1__World_Data!$A$4:$DP$191,18,FALSE)","v":8579.634},{"$f":"VLOOKUP($A91,F1__World_Data!$A$4:$DP$191,17,FALSE)","v":8497.1720000000005},{"$f":"VLOOKUP($A91,F1__World_Data!$A$4:$DP$191,16,FALSE)","v":8416.2549999999992},{"$f":"VLOOKUP($A91,F1__World_Data!$A$4:$DP$191,15,FALSE)","v":8337.0730000000003},{"$f":"VLOOKUP($A91,F1__World_Data!$A$4:$DP$191,14,FALSE)","v":8260.6260000000002},{"$f":"VLOOKUP($A91,F1__World_Data!$A$4:$DP$191,13,FALSE)","v":8187.9939999999997},{"$f":"VLOOKUP($A91,F1__World_Data!$A$4:$DP$191,12,FALSE)","v":8119.8649999999998},{"$f":"VLOOKUP($A91,F1__World_Data!$A$4:$DP$191,11,FALSE)","v":8056.665},{"$f":"VLOOKUP($A91,F1__World_Data!$A$4:$DP$191,10,FALSE)","v":7997.9970000000003},{"$f":"VLOOKUP($A91,F1__World_Data!$A$4:$DP$191,9,FALSE)","v":7942.6360000000004},{"$f":"VLOOKUP($A91,F1__World_Data!$A$4:$DP$191,8,FALSE)","v":7888.8029999999999},{"$f":"VLOOKUP($A91,F1__World_Data!$A$4:$DP$191,7,FALSE)","v":7835.085},{"$f":"VLOOKUP($A91,F1__World_Data!$A$4:$DP$191,6,FALSE)","v":7780.6869999999999},{"$f":"VLOOKUP($A91,F1__World_Data!$A$4:$DP$191,5,FALSE)","v":7725.4979999999996},{"$f":"VLOOKUP($A91,F1__World_Data!$A$4:$DP$191,4,FALSE)","v":7669.607},{"$f":"VLOOKUP($A91,F1__World_Data!$A$4:$DP$191,3,FALSE)","v":7613.3580000000002},{"$f":"VLOOKUP($A91,F1__World_Data!$A$4:$DP$191,2,FALSE)","v":7556.732},null,{"$f":"VLOOKUP($A91,F1__World_Data!$A$4:$DP$191,120,FALSE)","v":68.116},{"$f":"VLOOKUP($A91,F1__World_Data!$A$4:$DP$191,119,FALSE)","v":67.850999999999999},{"$f":"VLOOKUP($A91,F1__World_Data!$A$4:$DP$191,118,FALSE)","v":67.576999999999998},{"$f":"VLOOKUP($A91,F1__World_Data!$A$4:$DP$191,117,FALSE)","v":67.290999999999997},{"$f":"VLOOKUP($A91,F1__World_Data!$A$4:$DP$191,116,FALSE)","v":66.995000000000005},{"$f":"VLOOKUP($A91,F1__World_Data!$A$4:$DP$191,115,FALSE)","v":66.69},{"$f":"VLOOKUP($A91,F1__World_Data!$A$4:$DP$191,114,FALSE)","v":66.381},{"$f":"VLOOKUP($A91,F1__World_Data!$A$4:$DP$191,113,FALSE)","v":66.072000000000003},{"$f":"VLOOKUP($A91,F1__World_Data!$A$4:$DP$191,112,FALSE)","v":65.769000000000005},{"$f":"VLOOKUP($A91,F1__World_Data!$A$4:$DP$191,111,FALSE)","v":65.48},{"$f":"VLOOKUP($A91,F1__World_Data!$A$4:$DP$191,110,FALSE)","v":65.207999999999998},{"$f":"VLOOKUP($A91,F1__World_Data!$A$4:$DP$191,109,FALSE)","v":64.953000000000003},{"$f":"VLOOKUP($A91,F1__World_Data!$A$4:$DP$191,108,FALSE)","v":64.712000000000003},{"$f":"VLOOKUP($A91,F1__World_Data!$A$4:$DP$191,107,FALSE)","v":64.477999999999994},{"$f":"VLOOKUP($A91,F1__World_Data!$A$4:$DP$191,106,FALSE)","v":64.242000000000004},{"$f":"VLOOKUP($A91,F1__World_Data!$A$4:$DP$191,105,FALSE)","v":63.994999999999997},{"$f":"VLOOKUP($A91,F1__World_Data!$A$4:$DP$191,104,FALSE)","v":63.731000000000002},{"$f":"VLOOKUP($A91,F1__World_Data!$A$4:$DP$191,103,FALSE)","v":63.445999999999998},{"$f":"VLOOKUP($A91,F1__World_Data!$A$4:$DP$191,102,FALSE)","v":63.143999999999998},{"$f":"VLOOKUP($A91,F1__World_Data!$A$4:$DP$191,101,FALSE)","v":62.829000000000001},{"$f":"VLOOKUP($A91,F1__World_Data!$A$4:$DP$191,100,FALSE)","v":62.509},{"$f":"VLOOKUP($A91,F1__World_Data!$A$4:$DP$191,99,FALSE)","v":62.188000000000002},{"$f":"VLOOKUP($A91,F1__World_Data!$A$4:$DP$191,98,FALSE)","v":61.866},{"$f":"VLOOKUP($A91,F1__World_Data!$A$4:$DP$191,97,FALSE)","v":61.539000000000001},{"$f":"VLOOKUP($A91,F1__World_Data!$A$4:$DP$191,96,FALSE)","v":61.198},{"$f":"VLOOKUP($A91,F1__World_Data!$A$4:$DP$191,95,FALSE)","v":60.837000000000003},{"$f":"VLOOKUP($A91,F1__World_Data!$A$4:$DP$191,94,FALSE)","v":60.454999999999998},{"$f":"VLOOKUP($A91,F1__World_Data!$A$4:$DP$191,93,FALSE)","v":60.052999999999997},{"$f":"VLOOKUP($A91,F1__World_Data!$A$4:$DP$191,92,FALSE)","v":59.636000000000003},{"$f":"VLOOKUP($A91,F1__World_Data!$A$4:$DP$191,91,FALSE)","v":59.209000000000003},{"$f":"VLOOKUP($A91,F1__World_Data!$A$4:$DP$191,90,FALSE)","v":58.783000000000001},{"$f":"VLOOKUP($A91,F1__World_Data!$A$4:$DP$191,89,FALSE)","v":58.366},{"$f":"VLOOKUP($A91,F1__World_Data!$A$4:$DP$191,88,FALSE)","v":57.962000000000003},{"$f":"VLOOKUP($A91,F1__World_Data!$A$4:$DP$191,87,FALSE)","v":57.579000000000001},{"$f":"VLOOKUP($A91,F1__World_Data!$A$4:$DP$191,86,FALSE)","v":57.220999999999997},{"$f":"VLOOKUP($A91,F1__World_Data!$A$4:$DP$191,85,FALSE)","v":56.886000000000003},{"$f":"VLOOKUP($A91,F1__World_Data!$A$4:$DP$191,84,FALSE)","v":56.569000000000003},{"$f":"VLOOKUP($A91,F1__World_Data!$A$4:$DP$191,83,FALSE)","v":56.265999999999998},{"$f":"VLOOKUP($A91,F1__World_Data!$A$4:$DP$191,82,FALSE)","v":55.970999999999997},{"$f":"VLOOKUP($A91,F1__World_Data!$A$4:$DP$191,81,FALSE)","v":55.679000000000002},{"$f":"VLOOKUP($A91,F1__World_Data!$A$4:$DP$191,80,FALSE)","v":55.381999999999998},{"$f":"VLOOKUP($A91,F1__World_Data!$A$4:$DP$191,79,FALSE)","v":55.073999999999998},{"$f":"VLOOKUP($A91,F1__World_Data!$A$4:$DP$191,78,FALSE)","v":54.747999999999998},{"$f":"VLOOKUP($A91,F1__World_Data!$A$4:$DP$191,77,FALSE)","v":54.399000000000001},{"$f":"VLOOKUP($A91,F1__World_Data!$A$4:$DP$191,76,FALSE)","v":54.027000000000001},{"$f":"VLOOKUP($A91,F1__World_Data!$A$4:$DP$191,75,FALSE)","v":53.633000000000003},{"$f":"VLOOKUP($A91,F1__World_Data!$A$4:$DP$191,74,FALSE)","v":53.218000000000004},{"$f":"VLOOKUP($A91,F1__World_Data!$A$4:$DP$191,73,FALSE)","v":52.781999999999996},{"$f":"VLOOKUP($A91,F1__World_Data!$A$4:$DP$191,72,FALSE)","v":52.323},{"$f":"VLOOKUP($A91,F1__World_Data!$A$4:$DP$191,71,FALSE)","v":51.837000000000003},{"$f":"VLOOKUP($A91,F1__World_Data!$A$4:$DP$191,70,FALSE)","v":51.326999999999998},{"$f":"VLOOKUP($A91,F1__World_Data!$A$4:$DP$191,69,FALSE)","v":50.795999999999999},{"$f":"VLOOKUP($A91,F1__World_Data!$A$4:$DP$191,68,FALSE)","v":50.25},{"$f":"VLOOKUP($A91,F1__World_Data!$A$4:$DP$191,67,FALSE)","v":49.697000000000003},{"$f":"VLOOKUP($A91,F1__World_Data!$A$4:$DP$191,66,FALSE)","v":49.145000000000003},{"$f":"VLOOKUP($A91,F1__World_Data!$A$4:$DP$191,65,FALSE)","v":48.600999999999999},{"$f":"VLOOKUP($A91,F1__World_Data!$A$4:$DP$191,64,FALSE)","v":48.070999999999998},{"$f":"VLOOKUP($A91,F1__World_Data!$A$4:$DP$191,63,FALSE)","v":47.557000000000002},{"$f":"VLOOKUP($A91,F1__World_Data!$A$4:$DP$191,62,FALSE)","v":47.061}]
["Papua New Guinea",{"$f":"VLOOKUP($A92,F1__World_Data!$A$4:$DP$191,60,FALSE)","v":8606.3240000000005},{"$f":"VLOOKUP($A92,F1__World_Data!$A$4:$DP$191,59,FALSE)","v":8438.0380000000005},{"$f":"VLOOKUP($A92,F1__World_Data!$A$4:$DP$191,58,FALSE)","v":8271.7659999999996},{"$f":"VLOOKUP($A92,F1__World_Data!$A$4:$DP$191,57,FALSE)","v":8107.7719999999999},{"$f":"VLOOKUP($A92,F1__World_Data!$A$4:$DP$191,56,FALSE)","v":7946.7330000000002},{"$f":"VLOOKUP($A92,F1__World_Data!$A$4:$DP$191,55,FALSE)","v":7788.3879999999999},{"$f":"VLOOKUP($A92,F1__World_Data!$A$4:$DP$191,54,FALSE)","v":7631.0029999999997},{"$f":"VLOOKUP($A92,F1__World_Data!$A$4:$DP$191,53,FALSE)","v":7472.1959999999999},{"$f":"VLOOKUP($A92,F1__World_Data!$A$4:$DP$191,52,FALSE)","v":7310.5119999999997},{"$f":"VLOOKUP($A92,F1__World_Data!$A$4:$DP$191,51,FALSE)","v":7144.7740000000003},{"$f":"VLOOKUP($A92,F1__World_Data!$A$4:$DP$191,50,FALSE)","v":6976.2},{"$f":"VLOOKUP($A92,F1__World_Data!$A$4:$DP$191,49,FALSE)","v":6808.5029999999997},{"$f":"VLOOKUP($A92,F1__World_Data!$A$4:$DP$191,48,FALSE)","v":6646.8909999999996},{"$f":"VLOOKUP($A92,F1__World_Data!$A$4:$DP$191,47,FALSE)","v":6494.902},{"$f":"VLOOKUP($A92,F1__World_Data!$A$4:$DP$191,46,FALSE)","v":6354.2470000000003},{"$f":"VLOOKUP($A92,F1__World_Data!$A$4:$DP$191,45,FALSE)","v":6223.3779999999997},{"$f":"VLOOKUP($A92,F1__World_Data!$A$4:$DP$191,44,FALSE)","v":6098.6210000000001},{"$f":"VLOOKUP($A92,F1__World_Data!$A$4:$DP$191,43,FALSE)","v":5974.6270000000004},{"$f":"VLOOKUP($A92,F1__World_Data!$A$4:$DP$191,42,FALSE)","v":5847.59},{"$f":"VLOOKUP($A92,F1__World_Data!$A$4:$DP$191,41,FALSE)","v":5716.1660000000002},{"$f":"VLOOKUP($A92,F1__World_Data!$A$4:$DP$191,40,FALSE)","v":5581.7669999999998},{"$f":"VLOOKUP($A92,F1__World_Data!$A$4:$DP$191,39,FALSE)","v":5446.6329999999998},{"$f":"VLOOKUP($A92,F1__World_Data!$A$4:$DP$191,38,FALSE)","v":5314.2579999999998},{"$f":"VLOOKUP($A92,F1__World_Data!$A$4:$DP$191,37,FALSE)","v":5187.0630000000001},{"$f":"VLOOKUP($A92,F1__World_Data!$A$4:$DP$191,36,FALSE)","v":5065.6639999999998},{"$f":"VLOOKUP($A92,F1__World_Data!$A$4:$DP$191,35,FALSE)","v":4949.0529999999999},{"$f":"VLOOKUP($A92,F1__World_Data!$A$4:$DP$191,34,FALSE)","v":4836.2160000000003},{"$f":"VLOOKUP($A92,F1__World_Data!$A$4:$DP$191,33,FALSE)","v":4725.5429999999997},{"$f":"VLOOKUP($A92,F1__World_Data!$A$4:$DP$191,32,FALSE)","v":4615.8429999999998},{"$f":"VLOOKUP($A92,F1__World_Data!$A$4:$DP$191,31,FALSE)","v":4506.9960000000001},{"$f":"VLOOKUP($A92,F1__World_Data!$A$4:$DP$191,30,FALSE)","v":4399.32},{"$f":"VLOOKUP($A92,F1__World_Data!$A$4:$DP$191,29,FALSE)","v":4292.5749999999998},{"$f":"VLOOKUP($A92,F1__World_Data!$A$4:$DP$191,28,FALSE)","v":4186.4989999999998},{"$f":"VLOOKUP($A92,F1__World_Data!$A$4:$DP$191,27,FALSE)","v":4081.0219999999999},{"$f":"VLOOKUP($A92,F1__World_Data!$A$4:$DP$191,26,FALSE)","v":3975.95},{"$f":"VLOOKUP($A92,F1__World_Data!$A$4:$DP$191,25,FALSE)","v":3871.49},{"$f":"VLOOKUP($A92,F1__World_Data!$A$4:$DP$191,24,FALSE)","v":3768.489},{"$f":"VLOOKUP($A92,F1__World_Data!$A$4:$DP$191,23,FALSE)","v":3668.1019999999999},{"$f":"VLOOKUP($A92,F1__World_Data!$A$4:$DP$191,22,FALSE)","v":3571.2089999999998},{"$f":"VLOOKUP($A92,F1__World_Data!$A$4:$DP$191,21,FALSE)","v":3478.0929999999998},{"$f":"VLOOKUP($A92,F1__World_Data!$A$4:$DP$191,20,FALSE)","v":3388.6309999999999},{"$f":"VLOOKUP($A92,F1__World_Data!$A$4:$DP$191,19,FALSE)","v":3302.636},{"$f":"VLOOKUP($A92,F1__World_Data!$A$4:$DP$191,18,FALSE)","v":3219.8249999999998},{"$f":"VLOOKUP($A92,F1__World_Data!$A$4:$DP$191,17,FALSE)","v":3139.944},{"$f":"VLOOKUP($A92,F1__World_Data!$A$4:$DP$191,16,FALSE)","v":3063.0509999999999},{"$f":"VLOOKUP($A92,F1__World_Data!$A$4:$DP$191,15,FALSE)","v":2989.201},{"$f":"VLOOKUP($A92,F1__World_Data!$A$4:$DP$191,14,FALSE)","v":2918.1379999999999},{"$f":"VLOOKUP($A92,F1__World_Data!$A$4:$DP$191,13,FALSE)","v":2849.5219999999999},{"$f":"VLOOKUP($A92,F1__World_Data!$A$4:$DP$191,12,FALSE)","v":2783.1320000000001},{"$f":"VLOOKUP($A92,F1__World_Data!$A$4:$DP$191,11,FALSE)","v":2718.8049999999998},{"$f":"VLOOKUP($A92,F1__World_Data!$A$4:$DP$191,10,FALSE)","v":2656.636},{"$f":"VLOOKUP($A92,F1__World_Data!$A$4:$DP$191,9,FALSE)","v":2596.8200000000002},{"$f":"VLOOKUP($A92,F1__World_Data!$A$4:$DP$191,8,FALSE)","v":2539.683},{"$f":"VLOOKUP($A92,F1__World_Data!$A$4:$DP$191,7,FALSE)","v":2485.433},{"$f":"VLOOKUP($A92,F1__World_Data!$A$4:$DP$191,6,FALSE)","v":2434.2199999999998},{"$f":"VLOOKUP($A92,F1__World_Data!$A$4:$DP$191,5,FALSE)","v":2385.9430000000002},{"$f":"VLOOKUP($A92,F1__World_Data!$A$4:$DP$191,4,FALSE)","v":2340.3490000000002},{"$f":"VLOOKUP($A92,F1__World_Data!$A$4:$DP$191,3,FALSE)","v":2297.0520000000001},{"$f":"VLOOKUP($A92,F1__World_Data!$A$4:$DP$191,2,FALSE)","v":2255.8580000000002},null,{"$f":"VLOOKUP($A92,F1__World_Data!$A$4:$DP$191,120,FALSE)","v":68.116},{"$f":"VLOOKUP($A92,F1__World_Data!$A$4:$DP$191,119,FALSE)","v":67.850999999999999},{"$f":"VLOOKUP($A92,F1__World_Data!$A$4:$DP$191,118,FALSE)","v":67.576999999999998},{"$f":"VLOOKUP($A92,F1__World_Data!$A$4:$DP$191,117,FALSE)","v":67.290999999999997},{"$f":"VLOOKUP($A92,F1__World_Data!$A$4:$DP$191,116,FALSE)","v":66.995000000000005},{"$f":"VLOOKUP($A92,F1__World_Data!$A$4:$DP$191,115,FALSE)","v":66.69},{"$f":"VLOOKUP($A92,F1__World_Data!$A$4:$DP$191,114,FALSE)","v":66.381},{"$f":"VLOOKUP($A92,F1__World_Data!$A$4:$DP$191,113,FALSE)","v":66.072000000000003},{"$f":"VLOOKUP($A92,F1__World_Data!$A$4:$DP$191,112,FALSE)","v":65.769000000000005},{"$f":"VLOOKUP($A92,F1__World_Data!$A$4:$DP$191,111,FALSE)","v":65.48},{"$f":"VLOOKUP($A92,F1__World_Data!$A$4:$DP$191,110,FALSE)","v":65.207999999999998},{"$f":"VLOOKUP($A92,F1__World_Data!$A$4:$DP$191,109,FALSE)","v":64.953000000000003},{"$f":"VLOOKUP($A92,F1__World_Data!$A$4:$DP$191,108,FALSE)","v":64.712000000000003},{"$f":"VLOOKUP($A92,F1__World_Data!$A$4:$DP$191,107,FALSE)","v":64.477999999999994},{"$f":"VLOOKUP($A92,F1__World_Data!$A$4:$DP$191,106,FALSE)","v":64.242000000000004},{"$f":"VLOOKUP($A92,F1__World_Data!$A$4:$DP$191,105,FALSE)","v":63.994999999999997},{"$f":"VLOOKUP($A92,F1__World_Data!$A$4:$DP$191,104,FALSE)","v":63.731000000000002},{"$f":"VLOOKUP($A92,F1__World_Data!$A$4:$DP$191,103,FALSE)","v":63.445999999999998},{"$f":"VLOOKUP($A92,F1__World_Data!$A$4:$DP$191,102,FALSE)","v":63.143999999999998},{"$f":"VLOOKUP($A92,F1__World_Data!$A$4:$DP$191,101,FALSE)","v":62.829000000000001},{"$f":"VLOOKUP($A92,F1__World_Data!$A$4:$DP$191,100,FALSE)","v":62.509},{"$f":"VLOOKUP($A92,F1__World_Data!$A$4:$DP$191,99,FALSE)","v":62.188000000000002},{"$f":"VLOOKUP($A92,F1__World_Data!$A$4:$DP$191,98,FALSE)","v":61.866},{"$f":"VLOOKUP($A92,F1__World_Data!$A$4:$DP$191,97,FALSE)","v":61.539000000000001},{"$f":"VLOOKUP($A92,F1__World_Data!$A$4:$DP$191,96,FALSE)","v":61.198},{"$f":"VLOOKUP($A92,F1__World_Data!$A$4:$DP$191,95,FALSE)","v":60.837000000000003},{"$f":"VLOOKUP($A92,F1__World_Data!$A$4:$DP$191,94,FALSE)","v":60.454999999999998},{"$f":"VLOOKUP($A92,F1__World_Data!$A$4:$DP$191,93,FALSE)","v":60.052999999999997},{"$f":"VLOOKUP($A92,F1__World_Data!$A$4:$DP$191,92,FALSE)","v":59.636000000000003},{"$f":"VLOOKUP($A92,F1__World_Data!$A$4:$DP$191,91,FALSE)","v":59.209000000000003},{"$f":"VLOOKUP($A92,F1__World_Data!$A$4:$DP$191,90,FALSE)","v":58.783000000000001},{"$f":"VLOOKUP($A92,F1__World_Data!$A$4:$DP$191,89,FALSE)","v":58.366},{"$f":"VLOOKUP($A92,F1__World_Data!$A$4:$DP$191,88,FALSE)","v":57.962000000000003},{"$f":"VLOOKUP($A92,F1__World_Data!$A$4:$DP$191,87,FALSE)","v":57.579000000000001},{"$f":"VLOOKUP($A92,F1__World_Data!$A$4:$DP$191,86,FALSE)","v":57.220999999999997},{"$f":"VLOOKUP($A92,F1__World_Data!$A$4:$DP$191,85,FALSE)","v":56.886000000000003},{"$f":"VLOOKUP($A92,F1__World_Data!$A$4:$DP$191,84,FALSE)","v":56.569000000000003},{"$f":"VLOOKUP($A92,F1__World_Data!$A$4:$DP$191,83,FALSE)","v":56.265999999999998},{"$f":"VLOOKUP($A92,F1__World_Data!$A$4:$DP$191,82,FALSE)","v":55.970999999999997},{"$f":"VLOOKUP($A92,F1__World_Data!$A$4:$DP$191,81,FALSE)","v":55.679000000000002},{"$f":"VLOOKUP($A92,F1__World_Data!$A$4:$DP$191,80,FALSE)","v":55.381999999999998},{"$f":"VLOOKUP($A92,F1__World_Data!$A$4:$DP$191,79,FALSE)","v":55.073999999999998},{"$f":"VLOOKUP($A92,F1__World_Data!$A$4:$DP$191,78,FALSE)","v":54.747999999999998},{"$f":"VLOOKUP($A92,F1__World_Data!$A$4:$DP$191,77,FALSE)","v":54.399000000000001},{"$f":"VLOOKUP($A92,F1__World_Data!$A$4:$DP$191,76,FALSE)","v":54.027000000000001},{"$f":"VLOOKUP($A92,F1__World_Data!$A$4:$DP$191,75,FALSE)","v":53.633000000000003},{"$f":"VLOOKUP($A92,F1__World_Data!$A$4:$DP$191,74,FALSE)","v":53.218000000000004},{"$f":"VLOOKUP($A92,F1__World_Data!$A$4:$DP$191,73,FALSE)","v":52.781999999999996},{"$f":"VLOOKUP($A92,F1__World_Data!$A$4:$DP$191,72,FALSE)","v":52.323},{"$f":"VLOOKUP($A92,F1__World_Data!$A$4:$DP$191,71,FALSE)","v":51.837000000000003},{"$f":"VLOOKUP($A92,F1__World_Data!$A$4:$DP$191,70,FALSE)","v":51.326999999999998},{"$f":"VLOOKUP($A92,F1__World_Data!$A$4:$DP$191,69,FALSE)","v":50.795999999999999},{"$f":"VLOOKUP($A92,F1__World_Data!$A$4:$DP$191,68,FALSE)","v":50.25},{"$f":"VLOOKUP($A92,F1__World_Data!$A$4:$DP$191,67,FALSE)","v":49.697000000000003},{"$f":"VLOOKUP($A92,F1__World_Data!$A$4:$DP$191,66,FALSE)","v":49.145000000000003},{"$f":"VLOOKUP($A92,F1__World_Data!$A$4:$DP$191,65,FALSE)","v":48.600999999999999},{"$f":"VLOOKUP($A92,F1__World_Data!$A$4:$DP$191,64,FALSE)","v":48.070999999999998},{"$f":"VLOOKUP($A92,F1__World_Data!$A$4:$DP$191,63,FALSE)","v":47.557000000000002},{"$f":"VLOOKUP($A92,F1__World_Data!$A$4:$DP$191,62,FALSE)","v":47.061}]
["Switzerland",{"$f":"VLOOKUP($A93,F1__World_Data!$A$4:$DP$191,60,FALSE)","v":8525.6139999999996},{"$f":"VLOOKUP($A93,F1__World_Data!$A$4:$DP$191,59,FALSE)","v":8455.7970000000005},{"$f":"VLOOKUP($A93,F1__World_Data!$A$4:$DP$191,58,FALSE)","v":8379.9150000000009},{"$f":"VLOOKUP($A93,F1__World_Data!$A$4:$DP$191,57,FALSE)","v":8296.7749999999996},{"$f":"VLOOKUP($A93,F1__World_Data!$A$4:$DP$191,56,FALSE)","v":8206.0030000000006},{"$f":"VLOOKUP($A93,F1__World_Data!$A$4:$DP$191,55,FALSE)","v":8108.8760000000002},{"$f":"VLOOKUP($A93,F1__World_Data!$A$4:$DP$191,54,FALSE)","v":8008.0060000000003},{"$f":"VLOOKUP($A93,F1__World_Data!$A$4:$DP$191,53,FALSE)","v":7906.9880000000003},{"$f":"VLOOKUP($A93,F1__World_Data!$A$4:$DP$191,52,FALSE)","v":7808.674},{"$f":"VLOOKUP($A93,F1__World_Data!$A$4:$DP$191,51,FALSE)","v":7713.902},{"$f":"VLOOKUP($A93,F1__World_Data!$A$4:$DP$191,50,FALSE)","v":7622.826},{"$f":"VLOOKUP($A93,F1__World_Data!$A$4:$DP$191,49,FALSE)","v":7536.9859999999999},{"$f":"VLOOKUP($A93,F1__World_Data!$A$4:$DP$191,48,FALSE)","v":7457.9610000000002},{"$f":"VLOOKUP($A93,F1__World_Data!$A$4:$DP$191,47,FALSE)","v":7386.8180000000002},{"$f":"VLOOKUP($A93,F1__World_Data!$A$4:$DP$191,46,FALSE)","v":7323.7280000000001},{"$f":"VLOOKUP($A93,F1__World_Data!$A$4:$DP$191,45,FALSE)","v":7268.3630000000003},{"$f":"VLOOKUP($A93,F1__World_Data!$A$4:$DP$191,44,FALSE)","v":7220.3779999999997},{"$f":"VLOOKUP($A93,F1__World_Data!$A$4:$DP$191,43,FALSE)","v":7179.174},{"$f":"VLOOKUP($A93,F1__World_Data!$A$4:$DP$191,42,FALSE)","v":7143.7640000000001},{"$f":"VLOOKUP($A93,F1__World_Data!$A$4:$DP$191,41,FALSE)","v":7115.0309999999999},{"$f":"VLOOKUP($A93,F1__World_Data!$A$4:$DP$191,40,FALSE)","v":7091.7749999999996},{"$f":"VLOOKUP($A93,F1__World_Data!$A$4:$DP$191,39,FALSE)","v":7068.5029999999997},{"$f":"VLOOKUP($A93,F1__World_Data!$A$4:$DP$191,38,FALSE)","v":7038.027},{"$f":"VLOOKUP($A93,F1__World_Data!$A$4:$DP$191,37,FALSE)","v":6995.5190000000002},{"$f":"VLOOKUP($A93,F1__World_Data!$A$4:$DP$191,36,FALSE)","v":6938.4070000000002},{"$f":"VLOOKUP($A93,F1__World_Data!$A$4:$DP$191,35,FALSE)","v":6868.9369999999999},{"$f":"VLOOKUP($A93,F1__World_Data!$A$4:$DP$191,34,FALSE)","v":6792.9059999999999},{"$f":"VLOOKUP($A93,F1__World_Data!$A$4:$DP$191,33,FALSE)","v":6718.8180000000002},{"$f":"VLOOKUP($A93,F1__World_Data!$A$4:$DP$191,32,FALSE)","v":6652.8729999999996},{"$f":"VLOOKUP($A93,F1__World_Data!$A$4:$DP$191,31,FALSE)","v":6597.36},{"$f":"VLOOKUP($A93,F1__World_Data!$A$4:$DP$191,30,FALSE)","v":6550.73},{"$f":"VLOOKUP($A93,F1__World_Data!$A$4:$DP$191,29,FALSE)","v":6510.5929999999998},{"$f":"VLOOKUP($A93,F1__World_Data!$A$4:$DP$191,28,FALSE)","v":6473.0469999999996},{"$f":"VLOOKUP($A93,F1__World_Data!$A$4:$DP$191,27,FALSE)","v":6435.424},{"$f":"VLOOKUP($A93,F1__World_Data!$A$4:$DP$191,26,FALSE)","v":6396.1440000000002},{"$f":"VLOOKUP($A93,F1__World_Data!$A$4:$DP$191,25,FALSE)","v":6356.7430000000004},{"$f":"VLOOKUP($A93,F1__World_Data!$A$4:$DP$191,24,FALSE)","v":6321.4089999999997},{"$f":"VLOOKUP($A93,F1__World_Data!$A$4:$DP$191,23,FALSE)","v":6295.9210000000003},{"$f":"VLOOKUP($A93,F1__World_Data!$A$4:$DP$191,22,FALSE)","v":6283.8329999999996},{"$f":"VLOOKUP($A93,F1__World_Data!$A$4:$DP$191,21,FALSE)","v":6286.91},{"$f":"VLOOKUP($A93,F1__World_Data!$A$4:$DP$191,20,FALSE)","v":6302.0420000000004},{"$f":"VLOOKUP($A93,F1__World_Data!$A$4:$DP$191,19,FALSE)","v":6321.8159999999998},{"$f":"VLOOKUP($A93,F1__World_Data!$A$4:$DP$191,18,FALSE)","v":6335.9769999999999},{"$f":"VLOOKUP($A93,F1__World_Data!$A$4:$DP$191,17,FALSE)","v":6337.0309999999999},{"$f":"VLOOKUP($A93,F1__World_Data!$A$4:$DP$191,16,FALSE)","v":6322.0060000000003},{"$f":"VLOOKUP($A93,F1__World_Data!$A$4:$DP$191,15,FALSE)","v":6292.5379999999996},{"$f":"VLOOKUP($A93,F1__World_Data!$A$4:$DP$191,14,FALSE)","v":6251.2860000000001},{"$f":"VLOOKUP($A93,F1__World_Data!$A$4:$DP$191,13,FALSE)","v":6202.951},{"$f":"VLOOKUP($A93,F1__World_Data!$A$4:$DP$191,12,FALSE)","v":6150.848},{"$f":"VLOOKUP($A93,F1__World_Data!$A$4:$DP$191,11,FALSE)","v":6096.4269999999997},{"$f":"VLOOKUP($A93,F1__World_Data!$A$4:$DP$191,10,FALSE)","v":6038.3280000000004},{"$f":"VLOOKUP($A93,F1__World_Data!$A$4:$DP$191,9,FALSE)","v":5973.94},{"$f":"VLOOKUP($A93,F1__World_Data!$A$4:$DP$191,8,FALSE)","v":5899.4780000000001},{"$f":"VLOOKUP($A93,F1__World_Data!$A$4:$DP$191,7,FALSE)","v":5812.8440000000001},{"$f":"VLOOKUP($A93,F1__World_Data!$A$4:$DP$191,6,FALSE)","v":5712.7079999999996},{"$f":"VLOOKUP($A93,F1__World_Data!$A$4:$DP$191,5,FALSE)","v":5601.8119999999999},{"$f":"VLOOKUP($A93,F1__World_Data!$A$4:$DP$191,4,FALSE)","v":5487.049},{"$f":"VLOOKUP($A93,F1__World_Data!$A$4:$DP$191,3,FALSE)","v":5377.7640000000001},{"$f":"VLOOKUP($A93,F1__World_Data!$A$4:$DP$191,2,FALSE)","v":5280.683},null,{"$f":"VLOOKUP($A93,F1__World_Data!$A$4:$DP$191,120,FALSE)","v":63.856999999999999},{"$f":"VLOOKUP($A93,F1__World_Data!$A$4:$DP$191,119,FALSE)","v":63.537999999999997},{"$f":"VLOOKUP($A93,F1__World_Data!$A$4:$DP$191,118,FALSE)","v":63.152999999999999},{"$f":"VLOOKUP($A93,F1__World_Data!$A$4:$DP$191,117,FALSE)","v":62.649000000000001},{"$f":"VLOOKUP($A93,F1__World_Data!$A$4:$DP$191,116,FALSE)","v":61.968000000000004},{"$f":"VLOOKUP($A93,F1__World_Data!$A$4:$DP$191,115,FALSE)","v":61.098999999999997},{"$f":"VLOOKUP($A93,F1__World_Data!$A$4:$DP$191,114,FALSE)","v":60.06},{"$f":"VLOOKUP($A93,F1__World_Data!$A$4:$DP$191,113,FALSE)","v":58.895000000000003},{"$f":"VLOOKUP($A93,F1__World_Data!$A$4:$DP$191,112,FALSE)","v":57.668999999999997},{"$f":"VLOOKUP($A93,F1__World_Data!$A$4:$DP$191,111,FALSE)","v":56.46},{"$f":"VLOOKUP($A93,F1__World_Data!$A$4:$DP$191,110,FALSE)","v":55.36},{"$f":"VLOOKUP($A93,F1__World_Data!$A$4:$DP$191,109,FALSE)","v":54.451999999999998},{"$f":"VLOOKUP($A93,F1__World_Data!$A$4:$DP$191,108,FALSE)","v":53.795000000000002},{"$f":"VLOOKUP($A93,F1__World_Data!$A$4:$DP$191,107,FALSE)","v":53.447000000000003},{"$f":"VLOOKUP($A93,F1__World_Data!$A$4:$DP$191,106,FALSE)","v":53.444000000000003},{"$f":"VLOOKUP($A93,F1__World_Data!$A$4:$DP$191,105,FALSE)","v":53.749000000000002},{"$f":"VLOOKUP($A93,F1__World_Data!$A$4:$DP$191,104,FALSE)","v":54.31},{"$f":"VLOOKUP($A93,F1__World_Data!$A$4:$DP$191,103,FALSE)","v":55.088999999999999},{"$f":"VLOOKUP($A93,F1__World_Data!$A$4:$DP$191,102,FALSE)","v":56.048000000000002},{"$f":"VLOOKUP($A93,F1__World_Data!$A$4:$DP$191,101,FALSE)","v":57.143999999999998},{"$f":"VLOOKUP($A93,F1__World_Data!$A$4:$DP$191,100,FALSE)","v":58.314999999999998},{"$f":"VLOOKUP($A93,F1__World_Data!$A$4:$DP$191,99,FALSE)","v":59.488999999999997},{"$f":"VLOOKUP($A93,F1__World_Data!$A$4:$DP$191,98,FALSE)","v":60.594999999999999},{"$f":"VLOOKUP($A93,F1__World_Data!$A$4:$DP$191,97,FALSE)","v":61.561},{"$f":"VLOOKUP($A93,F1__World_Data!$A$4:$DP$191,96,FALSE)","v":62.331000000000003},{"$f":"VLOOKUP($A93,F1__World_Data!$A$4:$DP$191,95,FALSE)","v":62.893999999999998},{"$f":"VLOOKUP($A93,F1__World_Data!$A$4:$DP$191,94,FALSE)","v":63.247},{"$f":"VLOOKUP($A93,F1__World_Data!$A$4:$DP$191,93,FALSE)","v":63.384},{"$f":"VLOOKUP($A93,F1__World_Data!$A$4:$DP$191,92,FALSE)","v":63.307000000000002},{"$f":"VLOOKUP($A93,F1__World_Data!$A$4:$DP$191,91,FALSE)","v":63.034999999999997},{"$f":"VLOOKUP($A93,F1__World_Data!$A$4:$DP$191,90,FALSE)","v":62.619},{"$f":"VLOOKUP($A93,F1__World_Data!$A$4:$DP$191,89,FALSE)","v":62.109000000000002},{"$f":"VLOOKUP($A93,F1__World_Data!$A$4:$DP$191,88,FALSE)","v":61.54},{"$f":"VLOOKUP($A93,F1__World_Data!$A$4:$DP$191,87,FALSE)","v":60.945999999999998},{"$f":"VLOOKUP($A93,F1__World_Data!$A$4:$DP$191,86,FALSE)","v":60.353000000000002},{"$f":"VLOOKUP($A93,F1__World_Data!$A$4:$DP$191,85,FALSE)","v":59.765999999999998},{"$f":"VLOOKUP($A93,F1__World_Data!$A$4:$DP$191,84,FALSE)","v":59.191000000000003},{"$f":"VLOOKUP($A93,F1__World_Data!$A$4:$DP$191,83,FALSE)","v":58.637},{"$f":"VLOOKUP($A93,F1__World_Data!$A$4:$DP$191,82,FALSE)","v":58.106999999999999},{"$f":"VLOOKUP($A93,F1__World_Data!$A$4:$DP$191,81,FALSE)","v":57.59},{"$f":"VLOOKUP($A93,F1__World_Data!$A$4:$DP$191,80,FALSE)","v":57.070999999999998},{"$f":"VLOOKUP($A93,F1__World_Data!$A$4:$DP$191,79,FALSE)","v":56.537999999999997},{"$f":"VLOOKUP($A93,F1__World_Data!$A$4:$DP$191,78,FALSE)","v":55.99},{"$f":"VLOOKUP($A93,F1__World_Data!$A$4:$DP$191,77,FALSE)","v":55.427999999999997},{"$f":"VLOOKUP($A93,F1__World_Data!$A$4:$DP$191,76,FALSE)","v":54.856000000000002},{"$f":"VLOOKUP($A93,F1__World_Data!$A$4:$DP$191,75,FALSE)","v":54.280999999999999},{"$f":"VLOOKUP($A93,F1__World_Data!$A$4:$DP$191,74,FALSE)","v":53.713000000000001},{"$f":"VLOOKUP($A93,F1__World_Data!$A$4:$DP$191,73,FALSE)","v":53.156999999999996},{"$f":"VLOOKUP($A93,F1__World_Data!$A$4:$DP$191,72,FALSE)","v":52.62},{"$f":"VLOOKUP($A93,F1__World_Data!$A$4:$DP$191,71,FALSE)","v":52.106000000000002},{"$f":"VLOOKUP($A93,F1__World_Data!$A$4:$DP$191,70,FALSE)","v":51.615000000000002},{"$f":"VLOOKUP($A93,F1__World_Data!$A$4:$DP$191,69,FALSE)","v":51.148000000000003},{"$f":"VLOOKUP($A93,F1__World_Data!$A$4:$DP$191,68,FALSE)","v":50.704999999999998},{"$f":"VLOOKUP($A93,F1__World_Data!$A$4:$DP$191,67,FALSE)","v":50.283999999999999},{"$f":"VLOOKUP($A93,F1__World_Data!$A$4:$DP$191,66,FALSE)","v":49.887999999999998},{"$f":"VLOOKUP($A93,F1__World_Data!$A$4:$DP$191,65,FALSE)","v":49.509},{"$f":"VLOOKUP($A93,F1__World_Data!$A$4:$DP$191,64,FALSE)","v":49.142000000000003},{"$f":"VLOOKUP($A93,F1__World_Data!$A$4:$DP$191,63,FALSE)","v":48.777000000000001},{"$f":"VLOOKUP($A93,F1__World_Data!$A$4:$DP$191,62,FALSE)","v":48.405999999999999}]
["Israel",{"$f":"VLOOKUP($A94,F1__World_Data!$A$4:$DP$191,60,FALSE)","v":8381.5069999999996},{"$f":"VLOOKUP($A94,F1__World_Data!$A$4:$DP$191,59,FALSE)","v":8243.8490000000002},{"$f":"VLOOKUP($A94,F1__World_Data!$A$4:$DP$191,58,FALSE)","v":8108.9840000000004},{"$f":"VLOOKUP($A94,F1__World_Data!$A$4:$DP$191,57,FALSE)","v":7978.4960000000001},{"$f":"VLOOKUP($A94,F1__World_Data!$A$4:$DP$191,56,FALSE)","v":7854.2160000000003},{"$f":"VLOOKUP($A94,F1__World_Data!$A$4:$DP$191,55,FALSE)","v":7734.8339999999998},{"$f":"VLOOKUP($A94,F1__World_Data!$A$4:$DP$191,54,FALSE)","v":7614.9459999999999},{"$f":"VLOOKUP($A94,F1__World_Data!$A$4:$DP$191,53,FALSE)","v":7487.0950000000003},{"$f":"VLOOKUP($A94,F1__World_Data!$A$4:$DP$191,52,FALSE)","v":7346.4459999999999},{"$f":"VLOOKUP($A94,F1__World_Data!$A$4:$DP$191,51,FALSE)","v":7190.0370000000003},{"$f":"VLOOKUP($A94,F1__World_Data!$A$4:$DP$191,50,FALSE)","v":7020.8320000000003},{"$f":"VLOOKUP($A94,F1__World_Data!$A$4:$DP$191,49,FALSE)","v":6847.1480000000001},{"$f":"VLOOKUP($A94,F1__World_Data!$A$4:$DP$191,48,FALSE)","v":6680.6409999999996},{"$f":"VLOOKUP($A94,F1__World_Data!$A$4:$DP$191,47,FALSE)","v":6529.47},{"$f":"VLOOKUP($A94,F1__World_Data!$A$4:$DP$191,46,FALSE)","v":6396.5110000000004},{"$f":"VLOOKUP($A94,F1__World_Data!$A$4:$DP$191,45,FALSE)","v":6278.3739999999998},{"$f":"VLOOKUP($A94,F1__World_Data!$A$4:$DP$191,44,FALSE)","v":6169.3109999999997},{"$f":"VLOOKUP($A94,F1__World_Data!$A$4:$DP$191,43,FALSE)","v":6060.6790000000001},{"$f":"VLOOKUP($A94,F1__World_Data!$A$4:$DP$191,42,FALSE)","v":5945.9489999999996},{"$f":"VLOOKUP($A94,F1__World_Data!$A$4:$DP$191,41,FALSE)","v":5824.9440000000004},{"$f":"VLOOKUP($A94,F1__World_Data!$A$4:$DP$191,40,FALSE)","v":5699.2790000000005},{"$f":"VLOOKUP($A94,F1__World_Data!$A$4:$DP$191,39,FALSE)","v":5566.5510000000004},{"$f":"VLOOKUP($A94,F1__World_Data!$A$4:$DP$191,38,FALSE)","v":5424.241},{"$f":"VLOOKUP($A94,F1__World_Data!$A$4:$DP$191,37,FALSE)","v":5271.3680000000004},{"$f":"VLOOKUP($A94,F1__World_Data!$A$4:$DP$191,36,FALSE)","v":5105.5709999999999},{"$f":"VLOOKUP($A94,F1__World_Data!$A$4:$DP$191,35,FALSE)","v":4929.4129999999996},{"$f":"VLOOKUP($A94,F1__World_Data!$A$4:$DP$191,34,FALSE)","v":4752.826},{"$f":"VLOOKUP($A94,F1__World_Data!$A$4:$DP$191,33,FALSE)","v":4589.3050000000003},{"$f":"VLOOKUP($A94,F1__World_Data!$A$4:$DP$191,32,FALSE)","v":4448.348},{"$f":"VLOOKUP($A94,F1__World_Data!$A$4:$DP$191,31,FALSE)","v":4333.5780000000004},{"$f":"VLOOKUP($A94,F1__World_Data!$A$4:$DP$191,30,FALSE)","v":4241.7860000000001},{"$f":"VLOOKUP($A94,F1__World_Data!$A$4:$DP$191,29,FALSE)","v":4167.13},{"$f":"VLOOKUP($A94,F1__World_Data!$A$4:$DP$191,28,FALSE)","v":4100.5429999999997},{"$f":"VLOOKUP($A94,F1__World_Data!$A$4:$DP$191,27,FALSE)","v":4035.0619999999999},{"$f":"VLOOKUP($A94,F1__World_Data!$A$4:$DP$191,26,FALSE)","v":3969.1819999999998},{"$f":"VLOOKUP($A94,F1__World_Data!$A$4:$DP$191,25,FALSE)","v":3903.9540000000002},{"$f":"VLOOKUP($A94,F1__World_Data!$A$4:$DP$191,24,FALSE)","v":3838.1089999999999},{"$f":"VLOOKUP($A94,F1__World_Data!$A$4:$DP$191,23,FALSE)","v":3770.694},{"$f":"VLOOKUP($A94,F1__World_Data!$A$4:$DP$191,22,FALSE)","v":3700.9160000000002},{"$f":"VLOOKUP($A94,F1__World_Data!$A$4:$DP$191,21,FALSE)","v":3628.3069999999998},{"$f":"VLOOKUP($A94,F1__World_Data!$A$4:$DP$191,20,FALSE)","v":3552.297},{"$f":"VLOOKUP($A94,F1__World_Data!$A$4:$DP$191,19,FALSE)","v":3472.1179999999999},{"$f":"VLOOKUP($A94,F1__World_Data!$A$4:$DP$191,18,FALSE)","v":3387.0479999999998},{"$f":"VLOOKUP($A94,F1__World_Data!$A$4:$DP$191,17,FALSE)","v":3296.931},{"$f":"VLOOKUP($A94,F1__World_Data!$A$4:$DP$191,16,FALSE)","v":3200.5329999999999},{"$f":"VLOOKUP($A94,F1__World_Data!$A$4:$DP$191,15,FALSE)","v":3098.7849999999999},{"$f":"VLOOKUP($A94,F1__World_Data!$A$4:$DP$191,14,FALSE)","v":2996.4749999999999},{"$f":"VLOOKUP($A94,F1__World_Data!$A$4:$DP$191,13,FALSE)","v":2900.0160000000001},{"$f":"VLOOKUP($A94,F1__World_Data!$A$4:$DP$191,12,FALSE)","v":2813.7460000000001},{"$f":"VLOOKUP($A94,F1__World_Data!$A$4:$DP$191,11,FALSE)","v":2740.0659999999998},{"$f":"VLOOKUP($A94,F1__World_Data!$A$4:$DP$191,10,FALSE)","v":2676.9720000000002},{"$f":"VLOOKUP($A94,F1__World_Data!$A$4:$DP$191,9,FALSE)","v":2619.1019999999999},{"$f":"VLOOKUP($A94,F1__World_Data!$A$4:$DP$191,8,FALSE)","v":2558.7159999999999},{"$f":"VLOOKUP($A94,F1__World_Data!$A$4:$DP$191,7,FALSE)","v":2490.3220000000001},{"$f":"VLOOKUP($A94,F1__World_Data!$A$4:$DP$191,6,FALSE)","v":2411.7820000000002},{"$f":"VLOOKUP($A94,F1__World_Data!$A$4:$DP$191,5,FALSE)","v":2325.1489999999999},{"$f":"VLOOKUP($A94,F1__World_Data!$A$4:$DP$191,4,FALSE)","v":2234.1990000000001},{"$f":"VLOOKUP($A94,F1__World_Data!$A$4:$DP$191,3,FALSE)","v":2144.6480000000001},{"$f":"VLOOKUP($A94,F1__World_Data!$A$4:$DP$191,2,FALSE)","v":2060.4760000000001},null,{"$f":"VLOOKUP($A94,F1__World_Data!$A$4:$DP$191,120,FALSE)","v":82.802439024390253},{"$f":"VLOOKUP($A94,F1__World_Data!$A$4:$DP$191,119,FALSE)","v":82.551219512195118},{"$f":"VLOOKUP($A94,F1__World_Data!$A$4:$DP$191,118,FALSE)","v":82.407317073170745},{"$f":"VLOOKUP($A94,F1__World_Data!$A$4:$DP$191,117,FALSE)","v":82.051219512195118},{"$f":"VLOOKUP($A94,F1__World_Data!$A$4:$DP$191,116,FALSE)","v":82.153658536585368},{"$f":"VLOOKUP($A94,F1__World_Data!$A$4:$DP$191,115,FALSE)","v":82.056097560975616},{"$f":"VLOOKUP($A94,F1__World_Data!$A$4:$DP$191,114,FALSE)","v":81.7048780487805},{"$f":"VLOOKUP($A94,F1__World_Data!$A$4:$DP$191,113,FALSE)","v":81.656097560975624},{"$f":"VLOOKUP($A94,F1__World_Data!$A$4:$DP$191,112,FALSE)","v":81.60243902439025},{"$f":"VLOOKUP($A94,F1__World_Data!$A$4:$DP$191,111,FALSE)","v":81.404878048780489},{"$f":"VLOOKUP($A94,F1__World_Data!$A$4:$DP$191,110,FALSE)","v":80.951219512195124},{"$f":"VLOOKUP($A94,F1__World_Data!$A$4:$DP$191,109,FALSE)","v":80.504878048780512},{"$f":"VLOOKUP($A94,F1__World_Data!$A$4:$DP$191,108,FALSE)","v":80.553658536585374},{"$f":"VLOOKUP($A94,F1__World_Data!$A$4:$DP$191,107,FALSE)","v":80.151219512195127},{"$f":"VLOOKUP($A94,F1__World_Data!$A$4:$DP$191,106,FALSE)","v":80.146341463414643},{"$f":"VLOOKUP($A94,F1__World_Data!$A$4:$DP$191,105,FALSE)","v":79.648780487804885},{"$f":"VLOOKUP($A94,F1__World_Data!$A$4:$DP$191,104,FALSE)","v":79.451219512195124},{"$f":"VLOOKUP($A94,F1__World_Data!$A$4:$DP$191,103,FALSE)","v":79.407317073170745},{"$f":"VLOOKUP($A94,F1__World_Data!$A$4:$DP$191,102,FALSE)","v":78.95365853658538},{"$f":"VLOOKUP($A94,F1__World_Data!$A$4:$DP$191,101,FALSE)","v":78.658536585365866},{"$f":"VLOOKUP($A94,F1__World_Data!$A$4:$DP$191,100,FALSE)","v":78.148780487804871},{"$f":"VLOOKUP($A94,F1__World_Data!$A$4:$DP$191,99,FALSE)","v":78},{"$f":"VLOOKUP($A94,F1__World_Data!$A$4:$DP$191,98,FALSE)","v":78.104878048780506},{"$f":"VLOOKUP($A94,F1__World_Data!$A$4:$DP$191,97,FALSE)","v":77.451219512195138},{"$f":"VLOOKUP($A94,F1__World_Data!$A$4:$DP$191,96,FALSE)","v":77.402439024390262},{"$f":"VLOOKUP($A94,F1__World_Data!$A$4:$DP$191,95,FALSE)","v":77.153658536585368},{"$f":"VLOOKUP($A94,F1__World_Data!$A$4:$DP$191,94,FALSE)","v":76.504878048780498},{"$f":"VLOOKUP($A94,F1__World_Data!$A$4:$DP$191,93,FALSE)","v":76.758536585365874},{"$f":"VLOOKUP($A94,F1__World_Data!$A$4:$DP$191,92,FALSE)","v":76.607317073170748},{"$f":"VLOOKUP($A94,F1__World_Data!$A$4:$DP$191,91,FALSE)","v":76.307317073170736},{"$f":"VLOOKUP($A94,F1__World_Data!$A$4:$DP$191,90,FALSE)","v":74.436585365853674},{"$f":"VLOOKUP($A94,F1__World_Data!$A$4:$DP$191,89,FALSE)","v":75.25853658536586},{"$f":"VLOOKUP($A94,F1__World_Data!$A$4:$DP$191,88,FALSE)","v":74.956097560975621},{"$f":"VLOOKUP($A94,F1__World_Data!$A$4:$DP$191,87,FALSE)","v":75.207317073170742},{"$f":"VLOOKUP($A94,F1__World_Data!$A$4:$DP$191,86,FALSE)","v":74.807317073170736},{"$f":"VLOOKUP($A94,F1__World_Data!$A$4:$DP$191,85,FALSE)","v":74.458536585365849},{"$f":"VLOOKUP($A94,F1__World_Data!$A$4:$DP$191,84,FALSE)","v":74.109756097560989},{"$f":"VLOOKUP($A94,F1__World_Data!$A$4:$DP$191,83,FALSE)","v":74.260975609756116},{"$f":"VLOOKUP($A94,F1__World_Data!$A$4:$DP$191,82,FALSE)","v":73.87560975609756},{"$f":"VLOOKUP($A94,F1__World_Data!$A$4:$DP$191,81,FALSE)","v":73.507317073170739},{"$f":"VLOOKUP($A94,F1__World_Data!$A$4:$DP$191,80,FALSE)","v":73.207317073170728},{"$f":"VLOOKUP($A94,F1__World_Data!$A$4:$DP$191,79,FALSE)","v":72.958536585365863},{"$f":"VLOOKUP($A94,F1__World_Data!$A$4:$DP$191,78,FALSE)","v":72.956097560975621},{"$f":"VLOOKUP($A94,F1__World_Data!$A$4:$DP$191,77,FALSE)","v":72.045121951219514},{"$f":"VLOOKUP($A94,F1__World_Data!$A$4:$DP$191,76,FALSE)","v":71.66170731707318},{"$f":"VLOOKUP($A94,F1__World_Data!$A$4:$DP$191,75,FALSE)","v":71.69341463414635},{"$f":"VLOOKUP($A94,F1__World_Data!$A$4:$DP$191,74,FALSE)","v":71.078048780487819},{"$f":"VLOOKUP($A94,F1__World_Data!$A$4:$DP$191,73,FALSE)","v":71.719024390243902},{"$f":"VLOOKUP($A94,F1__World_Data!$A$4:$DP$191,72,FALSE)","v":71.213414634146346},{"$f":"VLOOKUP($A94,F1__World_Data!$A$4:$DP$191,71,FALSE)","v":70.970487804878061},{"$f":"VLOOKUP($A94,F1__World_Data!$A$4:$DP$191,70,FALSE)","v":71.056585365853664},{"$f":"VLOOKUP($A94,F1__World_Data!$A$4:$DP$191,69,FALSE)","v":71.509756097560995},{"$f":"VLOOKUP($A94,F1__World_Data!$A$4:$DP$191,68,FALSE)","v":72.285609756097557},{"$f":"VLOOKUP($A94,F1__World_Data!$A$4:$DP$191,67,FALSE)","v":0},{"$f":"VLOOKUP($A94,F1__World_Data!$A$4:$DP$191,66,FALSE)","v":0},{"$f":"VLOOKUP($A94,F1__World_Data!$A$4:$DP$191,65,FALSE)","v":0},{"$f":"VLOOKUP($A94,F1__World_Data!$A$4:$DP$191,64,FALSE)","v":72.112195121951217},{"$f":"VLOOKUP($A94,F1__World_Data!$A$4:$DP$191,63,FALSE)","v":72.006585365853653},{"$f":"VLOOKUP($A94,F1__World_Data!$A$4:$DP$191,62,FALSE)","v":0}]
["Togo",{"$f":"VLOOKUP($A95,F1__World_Data!$A$4:$DP$191,60,FALSE)","v":7889.0950000000003},{"$f":"VLOOKUP($A95,F1__World_Data!$A$4:$DP$191,59,FALSE)","v":7698.4759999999997},{"$f":"VLOOKUP($A95,F1__World_Data!$A$4:$DP$191,58,FALSE)","v":7509.9520000000002},{"$f":"VLOOKUP($A95,F1__World_Data!$A$4:$DP$191,57,FALSE)","v":7323.1620000000003},{"$f":"VLOOKUP($A95,F1__World_Data!$A$4:$DP$191,56,FALSE)","v":7137.9970000000003},{"$f":"VLOOKUP($A95,F1__World_Data!$A$4:$DP$191,55,FALSE)","v":6954.7209999999995},{"$f":"VLOOKUP($A95,F1__World_Data!$A$4:$DP$191,54,FALSE)","v":6773.8069999999998},{"$f":"VLOOKUP($A95,F1__World_Data!$A$4:$DP$191,53,FALSE)","v":6595.9390000000003},{"$f":"VLOOKUP($A95,F1__World_Data!$A$4:$DP$191,52,FALSE)","v":6421.674},{"$f":"VLOOKUP($A95,F1__World_Data!$A$4:$DP$191,51,FALSE)","v":6250.84},{"$f":"VLOOKUP($A95,F1__World_Data!$A$4:$DP$191,50,FALSE)","v":6083.4170000000004},{"$f":"VLOOKUP($A95,F1__World_Data!$A$4:$DP$191,49,FALSE)","v":5920.36},{"$f":"VLOOKUP($A95,F1__World_Data!$A$4:$DP$191,48,FALSE)","v":5762.8810000000003},{"$f":"VLOOKUP($A95,F1__World_Data!$A$4:$DP$191,47,FALSE)","v":5611.643},{"$f":"VLOOKUP($A95,F1__World_Data!$A$4:$DP$191,46,FALSE)","v":5467.77},{"$f":"VLOOKUP($A95,F1__World_Data!$A$4:$DP$191,45,FALSE)","v":5330.6289999999999},{"$f":"VLOOKUP($A95,F1__World_Data!$A$4:$DP$191,44,FALSE)","v":5197.04},{"$f":"VLOOKUP($A95,F1__World_Data!$A$4:$DP$191,43,FALSE)","v":5062.5709999999999},{"$f":"VLOOKUP($A95,F1__World_Data!$A$4:$DP$191,42,FALSE)","v":4924.4059999999999},{"$f":"VLOOKUP($A95,F1__World_Data!$A$4:$DP$191,41,FALSE)","v":4780.4549999999999},{"$f":"VLOOKUP($A95,F1__World_Data!$A$4:$DP$191,40,FALSE)","v":4632.451},{"$f":"VLOOKUP($A95,F1__World_Data!$A$4:$DP$191,39,FALSE)","v":4485.9449999999997},{"$f":"VLOOKUP($A95,F1__World_Data!$A$4:$DP$191,38,FALSE)","v":4348.808},{"$f":"VLOOKUP($A95,F1__World_Data!$A$4:$DP$191,37,FALSE)","v":4226.2929999999997},{"$f":"VLOOKUP($A95,F1__World_Data!$A$4:$DP$191,36,FALSE)","v":4120.6149999999998},{"$f":"VLOOKUP($A95,F1__World_Data!$A$4:$DP$191,35,FALSE)","v":4029.0439999999999},{"$f":"VLOOKUP($A95,F1__World_Data!$A$4:$DP$191,34,FALSE)","v":3945.902},{"$f":"VLOOKUP($A95,F1__World_Data!$A$4:$DP$191,33,FALSE)","v":3862.998},{"$f":"VLOOKUP($A95,F1__World_Data!$A$4:$DP$191,32,FALSE)","v":3774.31},{"$f":"VLOOKUP($A95,F1__World_Data!$A$4:$DP$191,31,FALSE)","v":3678.567},{"$f":"VLOOKUP($A95,F1__World_Data!$A$4:$DP$191,30,FALSE)","v":3577.4690000000001},{"$f":"VLOOKUP($A95,F1__World_Data!$A$4:$DP$191,29,FALSE)","v":3471.7379999999998},{"$f":"VLOOKUP($A95,F1__World_Data!$A$4:$DP$191,28,FALSE)","v":3363.04},{"$f":"VLOOKUP($A95,F1__World_Data!$A$4:$DP$191,27,FALSE)","v":3252.9969999999998},{"$f":"VLOOKUP($A95,F1__World_Data!$A$4:$DP$191,26,FALSE)","v":3140.84},{"$f":"VLOOKUP($A95,F1__World_Data!$A$4:$DP$191,25,FALSE)","v":3026.98},{"$f":"VLOOKUP($A95,F1__World_Data!$A$4:$DP$191,24,FALSE)","v":2915.6179999999999},{"$f":"VLOOKUP($A95,F1__World_Data!$A$4:$DP$191,23,FALSE)","v":2812.3119999999999},{"$f":"VLOOKUP($A95,F1__World_Data!$A$4:$DP$191,22,FALSE)","v":2720.835},{"$f":"VLOOKUP($A95,F1__World_Data!$A$4:$DP$191,21,FALSE)","v":2642.6930000000002},{"$f":"VLOOKUP($A95,F1__World_Data!$A$4:$DP$191,20,FALSE)","v":2576.2930000000001},{"$f":"VLOOKUP($A95,F1__World_Data!$A$4:$DP$191,19,FALSE)","v":2518.4540000000002},{"$f":"VLOOKUP($A95,F1__World_Data!$A$4:$DP$191,18,FALSE)","v":2464.424},{"$f":"VLOOKUP($A95,F1__World_Data!$A$4:$DP$191,17,FALSE)","v":2410.451},{"$f":"VLOOKUP($A95,F1__World_Data!$A$4:$DP$191,16,FALSE)","v":2356.62},{"$f":"VLOOKUP($A95,F1__World_Data!$A$4:$DP$191,15,FALSE)","v":2303.3440000000001},{"$f":"VLOOKUP($A95,F1__World_Data!$A$4:$DP$191,14,FALSE)","v":2247.578},{"$f":"VLOOKUP($A95,F1__World_Data!$A$4:$DP$191,13,FALSE)","v":2185.6669999999999},{"$f":"VLOOKUP($A95,F1__World_Data!$A$4:$DP$191,12,FALSE)","v":2115.5219999999999},{"$f":"VLOOKUP($A95,F1__World_Data!$A$4:$DP$191,11,FALSE)","v":2034.902},{"$f":"VLOOKUP($A95,F1__World_Data!$A$4:$DP$191,10,FALSE)","v":1945.777},{"$f":"VLOOKUP($A95,F1__World_Data!$A$4:$DP$191,9,FALSE)","v":1855.45},{"$f":"VLOOKUP($A95,F1__World_Data!$A$4:$DP$191,8,FALSE)","v":1774.02},{"$f":"VLOOKUP($A95,F1__World_Data!$A$4:$DP$191,7,FALSE)","v":1708.6310000000001},{"$f":"VLOOKUP($A95,F1__World_Data!$A$4:$DP$191,6,FALSE)","v":1662.0730000000001},{"$f":"VLOOKUP($A95,F1__World_Data!$A$4:$DP$191,5,FALSE)","v":1631.758},{"$f":"VLOOKUP($A95,F1__World_Data!$A$4:$DP$191,4,FALSE)","v":1612.761},{"$f":"VLOOKUP($A95,F1__World_Data!$A$4:$DP$191,3,FALSE)","v":1597.5229999999999},{"$f":"VLOOKUP($A95,F1__World_Data!$A$4:$DP$191,2,FALSE)","v":1580.508},null,{"$f":"VLOOKUP($A95,F1__World_Data!$A$4:$DP$191,120,FALSE)","v":63.856999999999999},{"$f":"VLOOKUP($A95,F1__World_Data!$A$4:$DP$191,119,FALSE)","v":63.537999999999997},{"$f":"VLOOKUP($A95,F1__World_Data!$A$4:$DP$191,118,FALSE)","v":63.152999999999999},{"$f":"VLOOKUP($A95,F1__World_Data!$A$4:$DP$191,117,FALSE)","v":62.649000000000001},{"$f":"VLOOKUP($A95,F1__World_Data!$A$4:$DP$191,116,FALSE)","v":61.968000000000004},{"$f":"VLOOKUP($A95,F1__World_Data!$A$4:$DP$191,115,FALSE)","v":61.098999999999997},{"$f":"VLOOKUP($A95,F1__World_Data!$A$4:$DP$191,114,FALSE)","v":60.06},{"$f":"VLOOKUP($A95,F1__World_Data!$A$4:$DP$191,113,FALSE)","v":58.895000000000003},{"$f":"VLOOKUP($A95,F1__World_Data!$A$4:$DP$191,112,FALSE)","v":57.668999999999997},{"$f":"VLOOKUP($A95,F1__World_Data!$A$4:$DP$191,111,FALSE)","v":56.46},{"$f":"VLOOKUP($A95,F1__World_Data!$A$4:$DP$191,110,FALSE)","v":55.36},{"$f":"VLOOKUP($A95,F1__World_Data!$A$4:$DP$191,109,FALSE)","v":54.451999999999998},{"$f":"VLOOKUP($A95,F1__World_Data!$A$4:$DP$191,108,FALSE)","v":53.795000000000002},{"$f":"VLOOKUP($A95,F1__World_Data!$A$4:$DP$191,107,FALSE)","v":53.447000000000003},{"$f":"VLOOKUP($A95,F1__World_Data!$A$4:$DP$191,106,FALSE)","v":53.444000000000003},{"$f":"VLOOKUP($A95,F1__World_Data!$A$4:$DP$191,105,FALSE)","v":53.749000000000002},{"$f":"VLOOKUP($A95,F1__World_Data!$A$4:$DP$191,104,FALSE)","v":54.31},{"$f":"VLOOKUP($A95,F1__World_Data!$A$4:$DP$191,103,FALSE)","v":55.088999999999999},{"$f":"VLOOKUP($A95,F1__World_Data!$A$4:$DP$191,102,FALSE)","v":56.048000000000002},{"$f":"VLOOKUP($A95,F1__World_Data!$A$4:$DP$191,101,FALSE)","v":57.143999999999998},{"$f":"VLOOKUP($A95,F1__World_Data!$A$4:$DP$191,100,FALSE)","v":58.314999999999998},{"$f":"VLOOKUP($A95,F1__World_Data!$A$4:$DP$191,99,FALSE)","v":59.488999999999997},{"$f":"VLOOKUP($A95,F1__World_Data!$A$4:$DP$191,98,FALSE)","v":60.594999999999999},{"$f":"VLOOKUP($A95,F1__World_Data!$A$4:$DP$191,97,FALSE)","v":61.561},{"$f":"VLOOKUP($A95,F1__World_Data!$A$4:$DP$191,96,FALSE)","v":62.331000000000003},{"$f":"VLOOKUP($A95,F1__World_Data!$A$4:$DP$191,95,FALSE)","v":62.893999999999998},{"$f":"VLOOKUP($A95,F1__World_Data!$A$4:$DP$191,94,FALSE)","v":63.247},{"$f":"VLOOKUP($A95,F1__World_Data!$A$4:$DP$191,93,FALSE)","v":63.384},{"$f":"VLOOKUP($A95,F1__World_Data!$A$4:$DP$191,92,FALSE)","v":63.307000000000002},{"$f":"VLOOKUP($A95,F1__World_Data!$A$4:$DP$191,91,FALSE)","v":63.034999999999997},{"$f":"VLOOKUP($A95,F1__World_Data!$A$4:$DP$191,90,FALSE)","v":62.619},{"$f":"VLOOKUP($A95,F1__World_Data!$A$4:$DP$191,89,FALSE)","v":62.109000000000002},{"$f":"VLOOKUP($A95,F1__World_Data!$A$4:$DP$191,88,FALSE)","v":61.54},{"$f":"VLOOKUP($A95,F1__World_Data!$A$4:$DP$191,87,FALSE)","v":60.945999999999998},{"$f":"VLOOKUP($A95,F1__World_Data!$A$4:$DP$191,86,FALSE)","v":60.353000000000002},{"$f":"VLOOKUP($A95,F1__World_Data!$A$4:$DP$191,85,FALSE)","v":59.765999999999998},{"$f":"VLOOKUP($A95,F1__World_Data!$A$4:$DP$191,84,FALSE)","v":59.191000000000003},{"$f":"VLOOKUP($A95,F1__World_Data!$A$4:$DP$191,83,FALSE)","v":58.637},{"$f":"VLOOKUP($A95,F1__World_Data!$A$4:$DP$191,82,FALSE)","v":58.106999999999999},{"$f":"VLOOKUP($A95,F1__World_Data!$A$4:$DP$191,81,FALSE)","v":57.59},{"$f":"VLOOKUP($A95,F1__World_Data!$A$4:$DP$191,80,FALSE)","v":57.070999999999998},{"$f":"VLOOKUP($A95,F1__World_Data!$A$4:$DP$191,79,FALSE)","v":56.537999999999997},{"$f":"VLOOKUP($A95,F1__World_Data!$A$4:$DP$191,78,FALSE)","v":55.99},{"$f":"VLOOKUP($A95,F1__World_Data!$A$4:$DP$191,77,FALSE)","v":55.427999999999997},{"$f":"VLOOKUP($A95,F1__World_Data!$A$4:$DP$191,76,FALSE)","v":54.856000000000002},{"$f":"VLOOKUP($A95,F1__World_Data!$A$4:$DP$191,75,FALSE)","v":54.280999999999999},{"$f":"VLOOKUP($A95,F1__World_Data!$A$4:$DP$191,74,FALSE)","v":53.713000000000001},{"$f":"VLOOKUP($A95,F1__World_Data!$A$4:$DP$191,73,FALSE)","v":53.156999999999996},{"$f":"VLOOKUP($A95,F1__World_Data!$A$4:$DP$191,72,FALSE)","v":52.62},{"$f":"VLOOKUP($A95,F1__World_Data!$A$4:$DP$191,71,FALSE)","v":52.106000000000002},{"$f":"VLOOKUP($A95,F1__World_Data!$A$4:$DP$191,70,FALSE)","v":51.615000000000002},{"$f":"VLOOKUP($A95,F1__World_Data!$A$4:$DP$191,69,FALSE)","v":51.148000000000003},{"$f":"VLOOKUP($A95,F1__World_Data!$A$4:$DP$191,68,FALSE)","v":50.704999999999998},{"$f":"VLOOKUP($A95,F1__World_Data!$A$4:$DP$191,67,FALSE)","v":50.283999999999999},{"$f":"VLOOKUP($A95,F1__World_Data!$A$4:$DP$191,66,FALSE)","v":49.887999999999998},{"$f":"VLOOKUP($A95,F1__World_Data!$A$4:$DP$191,65,FALSE)","v":49.509},{"$f":"VLOOKUP($A95,F1__World_Data!$A$4:$DP$191,64,FALSE)","v":49.142000000000003},{"$f":"VLOOKUP($A95,F1__World_Data!$A$4:$DP$191,63,FALSE)","v":48.777000000000001},{"$f":"VLOOKUP($A95,F1__World_Data!$A$4:$DP$191,62,FALSE)","v":48.405999999999999}]
["Sierra Leone",{"$f":"VLOOKUP($A96,F1__World_Data!$A$4:$DP$191,60,FALSE)","v":7650.1490000000003},{"$f":"VLOOKUP($A96,F1__World_Data!$A$4:$DP$191,59,FALSE)","v":7488.4269999999997},{"$f":"VLOOKUP($A96,F1__World_Data!$A$4:$DP$191,58,FALSE)","v":7328.8459999999995},{"$f":"VLOOKUP($A96,F1__World_Data!$A$4:$DP$191,57,FALSE)","v":7171.9089999999997},{"$f":"VLOOKUP($A96,F1__World_Data!$A$4:$DP$191,56,FALSE)","v":7017.1530000000002},{"$f":"VLOOKUP($A96,F1__World_Data!$A$4:$DP$191,55,FALSE)","v":6863.9750000000004},{"$f":"VLOOKUP($A96,F1__World_Data!$A$4:$DP$191,54,FALSE)","v":6712.5860000000002},{"$f":"VLOOKUP($A96,F1__World_Data!$A$4:$DP$191,53,FALSE)","v":6563.2380000000003},{"$f":"VLOOKUP($A96,F1__World_Data!$A$4:$DP$191,52,FALSE)","v":6415.6360000000004},{"$f":"VLOOKUP($A96,F1__World_Data!$A$4:$DP$191,51,FALSE)","v":6272.7349999999997},{"$f":"VLOOKUP($A96,F1__World_Data!$A$4:$DP$191,50,FALSE)","v":6133.5990000000002},{"$f":"VLOOKUP($A96,F1__World_Data!$A$4:$DP$191,49,FALSE)","v":5989.6409999999996},{"$f":"VLOOKUP($A96,F1__World_Data!$A$4:$DP$191,48,FALSE)","v":5829.24},{"$f":"VLOOKUP($A96,F1__World_Data!$A$4:$DP$191,47,FALSE)","v":5645.6289999999999},{"$f":"VLOOKUP($A96,F1__World_Data!$A$4:$DP$191,46,FALSE)","v":5433.9949999999999},{"$f":"VLOOKUP($A96,F1__World_Data!$A$4:$DP$191,45,FALSE)","v":5201.0739999999996},{"$f":"VLOOKUP($A96,F1__World_Data!$A$4:$DP$191,44,FALSE)","v":4965.7700000000004},{"$f":"VLOOKUP($A96,F1__World_Data!$A$4:$DP$191,43,FALSE)","v":4754.0690000000004},{"$f":"VLOOKUP($A96,F1__World_Data!$A$4:$DP$191,42,FALSE)","v":4584.57},{"$f":"VLOOKUP($A96,F1__World_Data!$A$4:$DP$191,41,FALSE)","v":4462.3739999999998},{"$f":"VLOOKUP($A96,F1__World_Data!$A$4:$DP$191,40,FALSE)","v":4381.4840000000004},{"$f":"VLOOKUP($A96,F1__World_Data!$A$4:$DP$191,39,FALSE)","v":4335.2950000000001},{"$f":"VLOOKUP($A96,F1__World_Data!$A$4:$DP$191,38,FALSE)","v":4312.66},{"$f":"VLOOKUP($A96,F1__World_Data!$A$4:$DP$191,37,FALSE)","v":4303.9530000000004},{"$f":"VLOOKUP($A96,F1__World_Data!$A$4:$DP$191,36,FALSE)","v":4309.78},{"$f":"VLOOKUP($A96,F1__World_Data!$A$4:$DP$191,35,FALSE)","v":4328.9650000000001},{"$f":"VLOOKUP($A96,F1__World_Data!$A$4:$DP$191,34,FALSE)","v":4347.7269999999999},{"$f":"VLOOKUP($A96,F1__World_Data!$A$4:$DP$191,33,FALSE)","v":4348.6629999999996},{"$f":"VLOOKUP($A96,F1__World_Data!$A$4:$DP$191,32,FALSE)","v":4319.7629999999999},{"$f":"VLOOKUP($A96,F1__World_Data!$A$4:$DP$191,31,FALSE)","v":4254.4340000000002},{"$f":"VLOOKUP($A96,F1__World_Data!$A$4:$DP$191,30,FALSE)","v":4156.6360000000004},{"$f":"VLOOKUP($A96,F1__World_Data!$A$4:$DP$191,29,FALSE)","v":4038.154},{"$f":"VLOOKUP($A96,F1__World_Data!$A$4:$DP$191,28,FALSE)","v":3916.6849999999999},{"$f":"VLOOKUP($A96,F1__World_Data!$A$4:$DP$191,27,FALSE)","v":3805.3040000000001},{"$f":"VLOOKUP($A96,F1__World_Data!$A$4:$DP$191,26,FALSE)","v":3707.5129999999999},{"$f":"VLOOKUP($A96,F1__World_Data!$A$4:$DP$191,25,FALSE)","v":3619.8539999999998},{"$f":"VLOOKUP($A96,F1__World_Data!$A$4:$DP$191,24,FALSE)","v":3540.1640000000002},{"$f":"VLOOKUP($A96,F1__World_Data!$A$4:$DP$191,23,FALSE)","v":3464.1129999999998},{"$f":"VLOOKUP($A96,F1__World_Data!$A$4:$DP$191,22,FALSE)","v":3388.4940000000001},{"$f":"VLOOKUP($A96,F1__World_Data!$A$4:$DP$191,21,FALSE)","v":3313.5059999999999},{"$f":"VLOOKUP($A96,F1__World_Data!$A$4:$DP$191,20,FALSE)","v":3240.8409999999999},{"$f":"VLOOKUP($A96,F1__World_Data!$A$4:$DP$191,19,FALSE)","v":3170.5030000000002},{"$f":"VLOOKUP($A96,F1__World_Data!$A$4:$DP$191,18,FALSE)","v":3102.5949999999998},{"$f":"VLOOKUP($A96,F1__World_Data!$A$4:$DP$191,17,FALSE)","v":3037.1579999999999},{"$f":"VLOOKUP($A96,F1__World_Data!$A$4:$DP$191,16,FALSE)","v":2974.105},{"$f":"VLOOKUP($A96,F1__World_Data!$A$4:$DP$191,15,FALSE)","v":2913.3470000000002},{"$f":"VLOOKUP($A96,F1__World_Data!$A$4:$DP$191,14,FALSE)","v":2854.866},{"$f":"VLOOKUP($A96,F1__World_Data!$A$4:$DP$191,13,FALSE)","v":2798.7269999999999},{"$f":"VLOOKUP($A96,F1__World_Data!$A$4:$DP$191,12,FALSE)","v":2744.89},{"$f":"VLOOKUP($A96,F1__World_Data!$A$4:$DP$191,11,FALSE)","v":2693.3440000000001},{"$f":"VLOOKUP($A96,F1__World_Data!$A$4:$DP$191,10,FALSE)","v":2644.011},{"$f":"VLOOKUP($A96,F1__World_Data!$A$4:$DP$191,9,FALSE)","v":2596.7979999999998},{"$f":"VLOOKUP($A96,F1__World_Data!$A$4:$DP$191,8,FALSE)","v":2551.58},{"$f":"VLOOKUP($A96,F1__World_Data!$A$4:$DP$191,7,FALSE)","v":2508.2260000000001},{"$f":"VLOOKUP($A96,F1__World_Data!$A$4:$DP$191,6,FALSE)","v":2466.6709999999998},{"$f":"VLOOKUP($A96,F1__World_Data!$A$4:$DP$191,5,FALSE)","v":2426.864},{"$f":"VLOOKUP($A96,F1__World_Data!$A$4:$DP$191,4,FALSE)","v":2388.759},{"$f":"VLOOKUP($A96,F1__World_Data!$A$4:$DP$191,3,FALSE)","v":2352.37},{"$f":"VLOOKUP($A96,F1__World_Data!$A$4:$DP$191,2,FALSE)","v":2317.6379999999999},null,{"$f":"VLOOKUP($A96,F1__World_Data!$A$4:$DP$191,120,FALSE)","v":68.116},{"$f":"VLOOKUP($A96,F1__World_Data!$A$4:$DP$191,119,FALSE)","v":67.850999999999999},{"$f":"VLOOKUP($A96,F1__World_Data!$A$4:$DP$191,118,FALSE)","v":67.576999999999998},{"$f":"VLOOKUP($A96,F1__World_Data!$A$4:$DP$191,117,FALSE)","v":67.290999999999997},{"$f":"VLOOKUP($A96,F1__World_Data!$A$4:$DP$191,116,FALSE)","v":66.995000000000005},{"$f":"VLOOKUP($A96,F1__World_Data!$A$4:$DP$191,115,FALSE)","v":66.69},{"$f":"VLOOKUP($A96,F1__World_Data!$A$4:$DP$191,114,FALSE)","v":66.381},{"$f":"VLOOKUP($A96,F1__World_Data!$A$4:$DP$191,113,FALSE)","v":66.072000000000003},{"$f":"VLOOKUP($A96,F1__World_Data!$A$4:$DP$191,112,FALSE)","v":65.769000000000005},{"$f":"VLOOKUP($A96,F1__World_Data!$A$4:$DP$191,111,FALSE)","v":65.48},{"$f":"VLOOKUP($A96,F1__World_Data!$A$4:$DP$191,110,FALSE)","v":65.207999999999998},{"$f":"VLOOKUP($A96,F1__World_Data!$A$4:$DP$191,109,FALSE)","v":64.953000000000003},{"$f":"VLOOKUP($A96,F1__World_Data!$A$4:$DP$191,108,FALSE)","v":64.712000000000003},{"$f":"VLOOKUP($A96,F1__World_Data!$A$4:$DP$191,107,FALSE)","v":64.477999999999994},{"$f":"VLOOKUP($A96,F1__World_Data!$A$4:$DP$191,106,FALSE)","v":64.242000000000004},{"$f":"VLOOKUP($A96,F1__World_Data!$A$4:$DP$191,105,FALSE)","v":63.994999999999997},{"$f":"VLOOKUP($A96,F1__World_Data!$A$4:$DP$191,104,FALSE)","v":63.731000000000002},{"$f":"VLOOKUP($A96,F1__World_Data!$A$4:$DP$191,103,FALSE)","v":63.445999999999998},{"$f":"VLOOKUP($A96,F1__World_Data!$A$4:$DP$191,102,FALSE)","v":63.143999999999998},{"$f":"VLOOKUP($A96,F1__World_Data!$A$4:$DP$191,101,FALSE)","v":62.829000000000001},{"$f":"VLOOKUP($A96,F1__World_Data!$A$4:$DP$191,100,FALSE)","v":62.509},{"$f":"VLOOKUP($A96,F1__World_Data!$A$4:$DP$191,99,FALSE)","v":62.188000000000002},{"$f":"VLOOKUP($A96,F1__World_Data!$A$4:$DP$191,98,FALSE)","v":61.866},{"$f":"VLOOKUP($A96,F1__World_Data!$A$4:$DP$191,97,FALSE)","v":61.539000000000001},{"$f":"VLOOKUP($A96,F1__World_Data!$A$4:$DP$191,96,FALSE)","v":61.198},{"$f":"VLOOKUP($A96,F1__World_Data!$A$4:$DP$191,95,FALSE)","v":60.837000000000003},{"$f":"VLOOKUP($A96,F1__World_Data!$A$4:$DP$191,94,FALSE)","v":60.454999999999998},{"$f":"VLOOKUP($A96,F1__World_Data!$A$4:$DP$191,93,FALSE)","v":60.052999999999997},{"$f":"VLOOKUP($A96,F1__World_Data!$A$4:$DP$191,92,FALSE)","v":59.636000000000003},{"$f":"VLOOKUP($A96,F1__World_Data!$A$4:$DP$191,91,FALSE)","v":59.209000000000003},{"$f":"VLOOKUP($A96,F1__World_Data!$A$4:$DP$191,90,FALSE)","v":58.783000000000001},{"$f":"VLOOKUP($A96,F1__World_Data!$A$4:$DP$191,89,FALSE)","v":58.366},{"$f":"VLOOKUP($A96,F1__World_Data!$A$4:$DP$191,88,FALSE)","v":57.962000000000003},{"$f":"VLOOKUP($A96,F1__World_Data!$A$4:$DP$191,87,FALSE)","v":57.579000000000001},{"$f":"VLOOKUP($A96,F1__World_Data!$A$4:$DP$191,86,FALSE)","v":57.220999999999997},{"$f":"VLOOKUP($A96,F1__World_Data!$A$4:$DP$191,85,FALSE)","v":56.886000000000003},{"$f":"VLOOKUP($A96,F1__World_Data!$A$4:$DP$191,84,FALSE)","v":56.569000000000003},{"$f":"VLOOKUP($A96,F1__World_Data!$A$4:$DP$191,83,FALSE)","v":56.265999999999998},{"$f":"VLOOKUP($A96,F1__World_Data!$A$4:$DP$191,82,FALSE)","v":55.970999999999997},{"$f":"VLOOKUP($A96,F1__World_Data!$A$4:$DP$191,81,FALSE)","v":55.679000000000002},{"$f":"VLOOKUP($A96,F1__World_Data!$A$4:$DP$191,80,FALSE)","v":55.381999999999998},{"$f":"VLOOKUP($A96,F1__World_Data!$A$4:$DP$191,79,FALSE)","v":55.073999999999998},{"$f":"VLOOKUP($A96,F1__World_Data!$A$4:$DP$191,78,FALSE)","v":54.747999999999998},{"$f":"VLOOKUP($A96,F1__World_Data!$A$4:$DP$191,77,FALSE)","v":54.399000000000001},{"$f":"VLOOKUP($A96,F1__World_Data!$A$4:$DP$191,76,FALSE)","v":54.027000000000001},{"$f":"VLOOKUP($A96,F1__World_Data!$A$4:$DP$191,75,FALSE)","v":53.633000000000003},{"$f":"VLOOKUP($A96,F1__World_Data!$A$4:$DP$191,74,FALSE)","v":53.218000000000004},{"$f":"VLOOKUP($A96,F1__World_Data!$A$4:$DP$191,73,FALSE)","v":52.781999999999996},{"$f":"VLOOKUP($A96,F1__World_Data!$A$4:$DP$191,72,FALSE)","v":52.323},{"$f":"VLOOKUP($A96,F1__World_Data!$A$4:$DP$191,71,FALSE)","v":51.837000000000003},{"$f":"VLOOKUP($A96,F1__World_Data!$A$4:$DP$191,70,FALSE)","v":51.326999999999998},{"$f":"VLOOKUP($A96,F1__World_Data!$A$4:$DP$191,69,FALSE)","v":50.795999999999999},{"$f":"VLOOKUP($A96,F1__World_Data!$A$4:$DP$191,68,FALSE)","v":50.25},{"$f":"VLOOKUP($A96,F1__World_Data!$A$4:$DP$191,67,FALSE)","v":49.697000000000003},{"$f":"VLOOKUP($A96,F1__World_Data!$A$4:$DP$191,66,FALSE)","v":49.145000000000003},{"$f":"VLOOKUP($A96,F1__World_Data!$A$4:$DP$191,65,FALSE)","v":48.600999999999999},{"$f":"VLOOKUP($A96,F1__World_Data!$A$4:$DP$191,64,FALSE)","v":48.070999999999998},{"$f":"VLOOKUP($A96,F1__World_Data!$A$4:$DP$191,63,FALSE)","v":47.557000000000002},{"$f":"VLOOKUP($A96,F1__World_Data!$A$4:$DP$191,62,FALSE)","v":47.061}]
["Bulgaria",{"$f":"VLOOKUP($A97,F1__World_Data!$A$4:$DP$191,60,FALSE)","v":7051.61},{"$f":"VLOOKUP($A97,F1__World_Data!$A$4:$DP$191,59,FALSE)","v":7102.4520000000002},{"$f":"VLOOKUP($A97,F1__World_Data!$A$4:$DP$191,58,FALSE)","v":7151.9480000000003},{"$f":"VLOOKUP($A97,F1__World_Data!$A$4:$DP$191,57,FALSE)","v":7199.7389999999996},{"$f":"VLOOKUP($A97,F1__World_Data!$A$4:$DP$191,56,FALSE)","v":7245.6480000000001},{"$f":"VLOOKUP($A97,F1__World_Data!$A$4:$DP$191,55,FALSE)","v":7290.0919999999996},{"$f":"VLOOKUP($A97,F1__World_Data!$A$4:$DP$191,54,FALSE)","v":7334.0069999999996},{"$f":"VLOOKUP($A97,F1__World_Data!$A$4:$DP$191,53,FALSE)","v":7378.652},{"$f":"VLOOKUP($A97,F1__World_Data!$A$4:$DP$191,52,FALSE)","v":7425.0110000000004},{"$f":"VLOOKUP($A97,F1__World_Data!$A$4:$DP$191,51,FALSE)","v":7473.509},{"$f":"VLOOKUP($A97,F1__World_Data!$A$4:$DP$191,50,FALSE)","v":7524.0839999999998},{"$f":"VLOOKUP($A97,F1__World_Data!$A$4:$DP$191,49,FALSE)","v":7576.6750000000002},{"$f":"VLOOKUP($A97,F1__World_Data!$A$4:$DP$191,48,FALSE)","v":7631.02},{"$f":"VLOOKUP($A97,F1__World_Data!$A$4:$DP$191,47,FALSE)","v":7686.9639999999999},{"$f":"VLOOKUP($A97,F1__World_Data!$A$4:$DP$191,46,FALSE)","v":7744.63},{"$f":"VLOOKUP($A97,F1__World_Data!$A$4:$DP$191,45,FALSE)","v":7804.3059999999996},{"$f":"VLOOKUP($A97,F1__World_Data!$A$4:$DP$191,44,FALSE)","v":7866.2420000000002},{"$f":"VLOOKUP($A97,F1__World_Data!$A$4:$DP$191,43,FALSE)","v":7930.7},{"$f":"VLOOKUP($A97,F1__World_Data!$A$4:$DP$191,42,FALSE)","v":7997.951},{"$f":"VLOOKUP($A97,F1__World_Data!$A$4:$DP$191,41,FALSE)","v":8067.0050000000001},{"$f":"VLOOKUP($A97,F1__World_Data!$A$4:$DP$191,40,FALSE)","v":8137.6689999999999},{"$f":"VLOOKUP($A97,F1__World_Data!$A$4:$DP$191,39,FALSE)","v":8211.8040000000001},{"$f":"VLOOKUP($A97,F1__World_Data!$A$4:$DP$191,38,FALSE)","v":8291.9699999999993},{"$f":"VLOOKUP($A97,F1__World_Data!$A$4:$DP$191,37,FALSE)","v":8379.3050000000003},{"$f":"VLOOKUP($A97,F1__World_Data!$A$4:$DP$191,36,FALSE)","v":8474.8220000000001},{"$f":"VLOOKUP($A97,F1__World_Data!$A$4:$DP$191,35,FALSE)","v":8576.0419999999995},{"$f":"VLOOKUP($A97,F1__World_Data!$A$4:$DP$191,34,FALSE)","v":8676.3790000000008},{"$f":"VLOOKUP($A97,F1__World_Data!$A$4:$DP$191,33,FALSE)","v":8767},{"$f":"VLOOKUP($A97,F1__World_Data!$A$4:$DP$191,32,FALSE)","v":8841.4660000000003},{"$f":"VLOOKUP($A97,F1__World_Data!$A$4:$DP$191,31,FALSE)","v":8897.5409999999993},{"$f":"VLOOKUP($A97,F1__World_Data!$A$4:$DP$191,30,FALSE)","v":8936.652},{"$f":"VLOOKUP($A97,F1__World_Data!$A$4:$DP$191,29,FALSE)","v":8960.5540000000001},{"$f":"VLOOKUP($A97,F1__World_Data!$A$4:$DP$191,28,FALSE)","v":8972.5550000000003},{"$f":"VLOOKUP($A97,F1__World_Data!$A$4:$DP$191,27,FALSE)","v":8975.3529999999992},{"$f":"VLOOKUP($A97,F1__World_Data!$A$4:$DP$191,26,FALSE)","v":8968.9089999999997},{"$f":"VLOOKUP($A97,F1__World_Data!$A$4:$DP$191,25,FALSE)","v":8953.1219999999994},{"$f":"VLOOKUP($A97,F1__World_Data!$A$4:$DP$191,24,FALSE)","v":8930.7080000000005},{"$f":"VLOOKUP($A97,F1__World_Data!$A$4:$DP$191,23,FALSE)","v":8905.0969999999998},{"$f":"VLOOKUP($A97,F1__World_Data!$A$4:$DP$191,22,FALSE)","v":8878.7870000000003},{"$f":"VLOOKUP($A97,F1__World_Data!$A$4:$DP$191,21,FALSE)","v":8853.2070000000003},{"$f":"VLOOKUP($A97,F1__World_Data!$A$4:$DP$191,20,FALSE)","v":8828.0300000000007},{"$f":"VLOOKUP($A97,F1__World_Data!$A$4:$DP$191,19,FALSE)","v":8801.8989999999994},{"$f":"VLOOKUP($A97,F1__World_Data!$A$4:$DP$191,18,FALSE)","v":8772.5560000000005},{"$f":"VLOOKUP($A97,F1__World_Data!$A$4:$DP$191,17,FALSE)","v":8738.3860000000004},{"$f":"VLOOKUP($A97,F1__World_Data!$A$4:$DP$191,16,FALSE)","v":8699.1740000000009},{"$f":"VLOOKUP($A97,F1__World_Data!$A$4:$DP$191,15,FALSE)","v":8655.7070000000003},{"$f":"VLOOKUP($A97,F1__World_Data!$A$4:$DP$191,14,FALSE)","v":8608.66},{"$f":"VLOOKUP($A97,F1__World_Data!$A$4:$DP$191,13,FALSE)","v":8559.0349999999999},{"$f":"VLOOKUP($A97,F1__World_Data!$A$4:$DP$191,12,FALSE)","v":8507.5409999999993},{"$f":"VLOOKUP($A97,F1__World_Data!$A$4:$DP$191,11,FALSE)","v":8454.5840000000007},{"$f":"VLOOKUP($A97,F1__World_Data!$A$4:$DP$191,10,FALSE)","v":8400.0120000000006},{"$f":"VLOOKUP($A97,F1__World_Data!$A$4:$DP$191,9,FALSE)","v":8343.4940000000006},{"$f":"VLOOKUP($A97,F1__World_Data!$A$4:$DP$191,8,FALSE)","v":8284.4490000000005},{"$f":"VLOOKUP($A97,F1__World_Data!$A$4:$DP$191,7,FALSE)","v":8222.5879999999997},{"$f":"VLOOKUP($A97,F1__World_Data!$A$4:$DP$191,6,FALSE)","v":8157.8339999999998},{"$f":"VLOOKUP($A97,F1__World_Data!$A$4:$DP$191,5,FALSE)","v":8090.7030000000004},{"$f":"VLOOKUP($A97,F1__World_Data!$A$4:$DP$191,4,FALSE)","v":8022.1570000000002},{"$f":"VLOOKUP($A97,F1__World_Data!$A$4:$DP$191,3,FALSE)","v":7953.4719999999998},{"$f":"VLOOKUP($A97,F1__World_Data!$A$4:$DP$191,2,FALSE)","v":7885.607},null,{"$f":"VLOOKUP($A97,F1__World_Data!$A$4:$DP$191,120,FALSE)","v":69.275000000000006},{"$f":"VLOOKUP($A97,F1__World_Data!$A$4:$DP$191,119,FALSE)","v":68.811999999999998},{"$f":"VLOOKUP($A97,F1__World_Data!$A$4:$DP$191,118,FALSE)","v":68.177999999999997},{"$f":"VLOOKUP($A97,F1__World_Data!$A$4:$DP$191,117,FALSE)","v":67.337999999999994},{"$f":"VLOOKUP($A97,F1__World_Data!$A$4:$DP$191,116,FALSE)","v":66.265000000000001},{"$f":"VLOOKUP($A97,F1__World_Data!$A$4:$DP$191,115,FALSE)","v":64.975999999999999},{"$f":"VLOOKUP($A97,F1__World_Data!$A$4:$DP$191,114,FALSE)","v":63.511000000000003},{"$f":"VLOOKUP($A97,F1__World_Data!$A$4:$DP$191,113,FALSE)","v":61.91},{"$f":"VLOOKUP($A97,F1__World_Data!$A$4:$DP$191,112,FALSE)","v":60.210999999999999},{"$f":"VLOOKUP($A97,F1__World_Data!$A$4:$DP$191,111,FALSE)","v":58.447000000000003},{"$f":"VLOOKUP($A97,F1__World_Data!$A$4:$DP$191,110,FALSE)","v":56.679000000000002},{"$f":"VLOOKUP($A97,F1__World_Data!$A$4:$DP$191,109,FALSE)","v":54.982999999999997},{"$f":"VLOOKUP($A97,F1__World_Data!$A$4:$DP$191,108,FALSE)","v":53.435000000000002},{"$f":"VLOOKUP($A97,F1__World_Data!$A$4:$DP$191,107,FALSE)","v":52.13},{"$f":"VLOOKUP($A97,F1__World_Data!$A$4:$DP$191,106,FALSE)","v":51.15},{"$f":"VLOOKUP($A97,F1__World_Data!$A$4:$DP$191,105,FALSE)","v":50.518000000000001},{"$f":"VLOOKUP($A97,F1__World_Data!$A$4:$DP$191,104,FALSE)","v":50.231999999999999},{"$f":"VLOOKUP($A97,F1__World_Data!$A$4:$DP$191,103,FALSE)","v":50.280999999999999},{"$f":"VLOOKUP($A97,F1__World_Data!$A$4:$DP$191,102,FALSE)","v":50.628999999999998},{"$f":"VLOOKUP($A97,F1__World_Data!$A$4:$DP$191,101,FALSE)","v":51.213999999999999},{"$f":"VLOOKUP($A97,F1__World_Data!$A$4:$DP$191,100,FALSE)","v":51.947000000000003},{"$f":"VLOOKUP($A97,F1__World_Data!$A$4:$DP$191,99,FALSE)","v":52.749000000000002},{"$f":"VLOOKUP($A97,F1__World_Data!$A$4:$DP$191,98,FALSE)","v":53.572000000000003},{"$f":"VLOOKUP($A97,F1__World_Data!$A$4:$DP$191,97,FALSE)","v":54.41},{"$f":"VLOOKUP($A97,F1__World_Data!$A$4:$DP$191,96,FALSE)","v":55.283999999999999},{"$f":"VLOOKUP($A97,F1__World_Data!$A$4:$DP$191,95,FALSE)","v":56.222000000000001},{"$f":"VLOOKUP($A97,F1__World_Data!$A$4:$DP$191,94,FALSE)","v":57.219000000000001},{"$f":"VLOOKUP($A97,F1__World_Data!$A$4:$DP$191,93,FALSE)","v":58.231999999999999},{"$f":"VLOOKUP($A97,F1__World_Data!$A$4:$DP$191,92,FALSE)","v":59.191000000000003},{"$f":"VLOOKUP($A97,F1__World_Data!$A$4:$DP$191,91,FALSE)","v":60.015999999999998},{"$f":"VLOOKUP($A97,F1__World_Data!$A$4:$DP$191,90,FALSE)","v":60.651000000000003},{"$f":"VLOOKUP($A97,F1__World_Data!$A$4:$DP$191,89,FALSE)","v":61.058999999999997},{"$f":"VLOOKUP($A97,F1__World_Data!$A$4:$DP$191,88,FALSE)","v":61.226999999999997},{"$f":"VLOOKUP($A97,F1__World_Data!$A$4:$DP$191,87,FALSE)","v":61.167000000000002},{"$f":"VLOOKUP($A97,F1__World_Data!$A$4:$DP$191,86,FALSE)","v":60.915999999999997},{"$f":"VLOOKUP($A97,F1__World_Data!$A$4:$DP$191,85,FALSE)","v":60.542999999999999},{"$f":"VLOOKUP($A97,F1__World_Data!$A$4:$DP$191,84,FALSE)","v":60.109000000000002},{"$f":"VLOOKUP($A97,F1__World_Data!$A$4:$DP$191,83,FALSE)","v":59.646999999999998},{"$f":"VLOOKUP($A97,F1__World_Data!$A$4:$DP$191,82,FALSE)","v":59.173999999999999},{"$f":"VLOOKUP($A97,F1__World_Data!$A$4:$DP$191,81,FALSE)","v":58.692},{"$f":"VLOOKUP($A97,F1__World_Data!$A$4:$DP$191,80,FALSE)","v":58.186},{"$f":"VLOOKUP($A97,F1__World_Data!$A$4:$DP$191,79,FALSE)","v":57.649000000000001},{"$f":"VLOOKUP($A97,F1__World_Data!$A$4:$DP$191,78,FALSE)","v":57.091000000000001},{"$f":"VLOOKUP($A97,F1__World_Data!$A$4:$DP$191,77,FALSE)","v":56.524000000000001},{"$f":"VLOOKUP($A97,F1__World_Data!$A$4:$DP$191,76,FALSE)","v":55.957000000000001},{"$f":"VLOOKUP($A97,F1__World_Data!$A$4:$DP$191,75,FALSE)","v":55.398000000000003},{"$f":"VLOOKUP($A97,F1__World_Data!$A$4:$DP$191,74,FALSE)","v":54.853000000000002},{"$f":"VLOOKUP($A97,F1__World_Data!$A$4:$DP$191,73,FALSE)","v":54.326999999999998},{"$f":"VLOOKUP($A97,F1__World_Data!$A$4:$DP$191,72,FALSE)","v":53.823999999999998},{"$f":"VLOOKUP($A97,F1__World_Data!$A$4:$DP$191,71,FALSE)","v":53.345999999999997},{"$f":"VLOOKUP($A97,F1__World_Data!$A$4:$DP$191,70,FALSE)","v":52.884999999999998},{"$f":"VLOOKUP($A97,F1__World_Data!$A$4:$DP$191,69,FALSE)","v":52.435000000000002},{"$f":"VLOOKUP($A97,F1__World_Data!$A$4:$DP$191,68,FALSE)","v":51.991},{"$f":"VLOOKUP($A97,F1__World_Data!$A$4:$DP$191,67,FALSE)","v":51.546999999999997},{"$f":"VLOOKUP($A97,F1__World_Data!$A$4:$DP$191,66,FALSE)","v":51.098999999999997},{"$f":"VLOOKUP($A97,F1__World_Data!$A$4:$DP$191,65,FALSE)","v":50.640999999999998},{"$f":"VLOOKUP($A97,F1__World_Data!$A$4:$DP$191,64,FALSE)","v":50.170999999999999},{"$f":"VLOOKUP($A97,F1__World_Data!$A$4:$DP$191,63,FALSE)","v":49.683999999999997},{"$f":"VLOOKUP($A97,F1__World_Data!$A$4:$DP$191,62,FALSE)","v":49.179000000000002}]
["Paraguay",{"$f":"VLOOKUP($A98,F1__World_Data!$A$4:$DP$191,60,FALSE)","v":6956.0690000000004},{"$f":"VLOOKUP($A98,F1__World_Data!$A$4:$DP$191,59,FALSE)","v":6867.058},{"$f":"VLOOKUP($A98,F1__World_Data!$A$4:$DP$191,58,FALSE)","v":6777.8779999999997},{"$f":"VLOOKUP($A98,F1__World_Data!$A$4:$DP$191,57,FALSE)","v":6688.7460000000001},{"$f":"VLOOKUP($A98,F1__World_Data!$A$4:$DP$191,56,FALSE)","v":6599.5240000000003},{"$f":"VLOOKUP($A98,F1__World_Data!$A$4:$DP$191,55,FALSE)","v":6510.2730000000001},{"$f":"VLOOKUP($A98,F1__World_Data!$A$4:$DP$191,54,FALSE)","v":6421.51},{"$f":"VLOOKUP($A98,F1__World_Data!$A$4:$DP$191,53,FALSE)","v":6333.9809999999998},{"$f":"VLOOKUP($A98,F1__World_Data!$A$4:$DP$191,52,FALSE)","v":6248.0169999999998},{"$f":"VLOOKUP($A98,F1__World_Data!$A$4:$DP$191,51,FALSE)","v":6163.97},{"$f":"VLOOKUP($A98,F1__World_Data!$A$4:$DP$191,50,FALSE)","v":6081.2960000000003},{"$f":"VLOOKUP($A98,F1__World_Data!$A$4:$DP$191,49,FALSE)","v":5998.43},{"$f":"VLOOKUP($A98,F1__World_Data!$A$4:$DP$191,48,FALSE)","v":5913.2120000000004},{"$f":"VLOOKUP($A98,F1__World_Data!$A$4:$DP$191,47,FALSE)","v":5824.0950000000003},{"$f":"VLOOKUP($A98,F1__World_Data!$A$4:$DP$191,46,FALSE)","v":5730.5559999999996},{"$f":"VLOOKUP($A98,F1__World_Data!$A$4:$DP$191,45,FALSE)","v":5632.9830000000002},{"$f":"VLOOKUP($A98,F1__World_Data!$A$4:$DP$191,44,FALSE)","v":5531.9579999999996},{"$f":"VLOOKUP($A98,F1__World_Data!$A$4:$DP$191,43,FALSE)","v":5428.442},{"$f":"VLOOKUP($A98,F1__World_Data!$A$4:$DP$191,42,FALSE)","v":5323.2020000000002},{"$f":"VLOOKUP($A98,F1__World_Data!$A$4:$DP$191,41,FALSE)","v":5216.3459999999995},{"$f":"VLOOKUP($A98,F1__World_Data!$A$4:$DP$191,40,FALSE)","v":5107.84},{"$f":"VLOOKUP($A98,F1__World_Data!$A$4:$DP$191,39,FALSE)","v":4998.0959999999995},{"$f":"VLOOKUP($A98,F1__World_Data!$A$4:$DP$191,38,FALSE)","v":4887.6379999999999},{"$f":"VLOOKUP($A98,F1__World_Data!$A$4:$DP$191,37,FALSE)","v":4776.8379999999997},{"$f":"VLOOKUP($A98,F1__World_Data!$A$4:$DP$191,36,FALSE)","v":4666.0959999999995},{"$f":"VLOOKUP($A98,F1__World_Data!$A$4:$DP$191,35,FALSE)","v":4555.518},{"$f":"VLOOKUP($A98,F1__World_Data!$A$4:$DP$191,34,FALSE)","v":4445.0190000000002},{"$f":"VLOOKUP($A98,F1__World_Data!$A$4:$DP$191,33,FALSE)","v":4334.348},{"$f":"VLOOKUP($A98,F1__World_Data!$A$4:$DP$191,32,FALSE)","v":4223.4129999999996},{"$f":"VLOOKUP($A98,F1__World_Data!$A$4:$DP$191,31,FALSE)","v":4112.3959999999997},{"$f":"VLOOKUP($A98,F1__World_Data!$A$4:$DP$191,30,FALSE)","v":4001.6779999999999},{"$f":"VLOOKUP($A98,F1__World_Data!$A$4:$DP$191,29,FALSE)","v":3891.7249999999999},{"$f":"VLOOKUP($A98,F1__World_Data!$A$4:$DP$191,28,FALSE)","v":3783.0740000000001},{"$f":"VLOOKUP($A98,F1__World_Data!$A$4:$DP$191,27,FALSE)","v":3676.2060000000001},{"$f":"VLOOKUP($A98,F1__World_Data!$A$4:$DP$191,26,FALSE)","v":3571.2750000000001},{"$f":"VLOOKUP($A98,F1__World_Data!$A$4:$DP$191,25,FALSE)","v":3468.5329999999999},{"$f":"VLOOKUP($A98,F1__World_Data!$A$4:$DP$191,24,FALSE)","v":3368.7629999999999},{"$f":"VLOOKUP($A98,F1__World_Data!$A$4:$DP$191,23,FALSE)","v":3272.922},{"$f":"VLOOKUP($A98,F1__World_Data!$A$4:$DP$191,22,FALSE)","v":3181.627},{"$f":"VLOOKUP($A98,F1__World_Data!$A$4:$DP$191,21,FALSE)","v":3095.1509999999998},{"$f":"VLOOKUP($A98,F1__World_Data!$A$4:$DP$191,20,FALSE)","v":3013.2809999999999},{"$f":"VLOOKUP($A98,F1__World_Data!$A$4:$DP$191,19,FALSE)","v":2935.71},{"$f":"VLOOKUP($A98,F1__World_Data!$A$4:$DP$191,18,FALSE)","v":2861.8679999999999},{"$f":"VLOOKUP($A98,F1__World_Data!$A$4:$DP$191,17,FALSE)","v":2791.2359999999999},{"$f":"VLOOKUP($A98,F1__World_Data!$A$4:$DP$191,16,FALSE)","v":2723.8159999999998},{"$f":"VLOOKUP($A98,F1__World_Data!$A$4:$DP$191,15,FALSE)","v":2659.4180000000001},{"$f":"VLOOKUP($A98,F1__World_Data!$A$4:$DP$191,14,FALSE)","v":2597.1489999999999},{"$f":"VLOOKUP($A98,F1__World_Data!$A$4:$DP$191,13,FALSE)","v":2535.877},{"$f":"VLOOKUP($A98,F1__World_Data!$A$4:$DP$191,12,FALSE)","v":2474.7570000000001},{"$f":"VLOOKUP($A98,F1__World_Data!$A$4:$DP$191,11,FALSE)","v":2413.3960000000002},{"$f":"VLOOKUP($A98,F1__World_Data!$A$4:$DP$191,10,FALSE)","v":2351.9259999999999},{"$f":"VLOOKUP($A98,F1__World_Data!$A$4:$DP$191,9,FALSE)","v":2290.797},{"$f":"VLOOKUP($A98,F1__World_Data!$A$4:$DP$191,8,FALSE)","v":2230.7330000000002},{"$f":"VLOOKUP($A98,F1__World_Data!$A$4:$DP$191,7,FALSE)","v":2172.3090000000002},{"$f":"VLOOKUP($A98,F1__World_Data!$A$4:$DP$191,6,FALSE)","v":2115.5729999999999},{"$f":"VLOOKUP($A98,F1__World_Data!$A$4:$DP$191,5,FALSE)","v":2060.34},{"$f":"VLOOKUP($A98,F1__World_Data!$A$4:$DP$191,4,FALSE)","v":2006.675},{"$f":"VLOOKUP($A98,F1__World_Data!$A$4:$DP$191,3,FALSE)","v":1954.5519999999999},{"$f":"VLOOKUP($A98,F1__World_Data!$A$4:$DP$191,2,FALSE)","v":1903.99},null,{"$f":"VLOOKUP($A98,F1__World_Data!$A$4:$DP$191,120,FALSE)","v":68.116},{"$f":"VLOOKUP($A98,F1__World_Data!$A$4:$DP$191,119,FALSE)","v":67.850999999999999},{"$f":"VLOOKUP($A98,F1__World_Data!$A$4:$DP$191,118,FALSE)","v":67.576999999999998},{"$f":"VLOOKUP($A98,F1__World_Data!$A$4:$DP$191,117,FALSE)","v":67.290999999999997},{"$f":"VLOOKUP($A98,F1__World_Data!$A$4:$DP$191,116,FALSE)","v":66.995000000000005},{"$f":"VLOOKUP($A98,F1__World_Data!$A$4:$DP$191,115,FALSE)","v":66.69},{"$f":"VLOOKUP($A98,F1__World_Data!$A$4:$DP$191,114,FALSE)","v":66.381},{"$f":"VLOOKUP($A98,F1__World_Data!$A$4:$DP$191,113,FALSE)","v":66.072000000000003},{"$f":"VLOOKUP($A98,F1__World_Data!$A$4:$DP$191,112,FALSE)","v":65.769000000000005},{"$f":"VLOOKUP($A98,F1__World_Data!$A$4:$DP$191,111,FALSE)","v":65.48},{"$f":"VLOOKUP($A98,F1__World_Data!$A$4:$DP$191,110,FALSE)","v":65.207999999999998},{"$f":"VLOOKUP($A98,F1__World_Data!$A$4:$DP$191,109,FALSE)","v":64.953000000000003},{"$f":"VLOOKUP($A98,F1__World_Data!$A$4:$DP$191,108,FALSE)","v":64.712000000000003},{"$f":"VLOOKUP($A98,F1__World_Data!$A$4:$DP$191,107,FALSE)","v":64.477999999999994},{"$f":"VLOOKUP($A98,F1__World_Data!$A$4:$DP$191,106,FALSE)","v":64.242000000000004},{"$f":"VLOOKUP($A98,F1__World_Data!$A$4:$DP$191,105,FALSE)","v":63.994999999999997},{"$f":"VLOOKUP($A98,F1__World_Data!$A$4:$DP$191,104,FALSE)","v":63.731000000000002},{"$f":"VLOOKUP($A98,F1__World_Data!$A$4:$DP$191,103,FALSE)","v":63.445999999999998},{"$f":"VLOOKUP($A98,F1__World_Data!$A$4:$DP$191,102,FALSE)","v":63.143999999999998},{"$f":"VLOOKUP($A98,F1__World_Data!$A$4:$DP$191,101,FALSE)","v":62.829000000000001},{"$f":"VLOOKUP($A98,F1__World_Data!$A$4:$DP$191,100,FALSE)","v":62.509},{"$f":"VLOOKUP($A98,F1__World_Data!$A$4:$DP$191,99,FALSE)","v":62.188000000000002},{"$f":"VLOOKUP($A98,F1__World_Data!$A$4:$DP$191,98,FALSE)","v":61.866},{"$f":"VLOOKUP($A98,F1__World_Data!$A$4:$DP$191,97,FALSE)","v":61.539000000000001},{"$f":"VLOOKUP($A98,F1__World_Data!$A$4:$DP$191,96,FALSE)","v":61.198},{"$f":"VLOOKUP($A98,F1__World_Data!$A$4:$DP$191,95,FALSE)","v":60.837000000000003},{"$f":"VLOOKUP($A98,F1__World_Data!$A$4:$DP$191,94,FALSE)","v":60.454999999999998},{"$f":"VLOOKUP($A98,F1__World_Data!$A$4:$DP$191,93,FALSE)","v":60.052999999999997},{"$f":"VLOOKUP($A98,F1__World_Data!$A$4:$DP$191,92,FALSE)","v":59.636000000000003},{"$f":"VLOOKUP($A98,F1__World_Data!$A$4:$DP$191,91,FALSE)","v":59.209000000000003},{"$f":"VLOOKUP($A98,F1__World_Data!$A$4:$DP$191,90,FALSE)","v":58.783000000000001},{"$f":"VLOOKUP($A98,F1__World_Data!$A$4:$DP$191,89,FALSE)","v":58.366},{"$f":"VLOOKUP($A98,F1__World_Data!$A$4:$DP$191,88,FALSE)","v":57.962000000000003},{"$f":"VLOOKUP($A98,F1__World_Data!$A$4:$DP$191,87,FALSE)","v":57.579000000000001},{"$f":"VLOOKUP($A98,F1__World_Data!$A$4:$DP$191,86,FALSE)","v":57.220999999999997},{"$f":"VLOOKUP($A98,F1__World_Data!$A$4:$DP$191,85,FALSE)","v":56.886000000000003},{"$f":"VLOOKUP($A98,F1__World_Data!$A$4:$DP$191,84,FALSE)","v":56.569000000000003},{"$f":"VLOOKUP($A98,F1__World_Data!$A$4:$DP$191,83,FALSE)","v":56.265999999999998},{"$f":"VLOOKUP($A98,F1__World_Data!$A$4:$DP$191,82,FALSE)","v":55.970999999999997},{"$f":"VLOOKUP($A98,F1__World_Data!$A$4:$DP$191,81,FALSE)","v":55.679000000000002},{"$f":"VLOOKUP($A98,F1__World_Data!$A$4:$DP$191,80,FALSE)","v":55.381999999999998},{"$f":"VLOOKUP($A98,F1__World_Data!$A$4:$DP$191,79,FALSE)","v":55.073999999999998},{"$f":"VLOOKUP($A98,F1__World_Data!$A$4:$DP$191,78,FALSE)","v":54.747999999999998},{"$f":"VLOOKUP($A98,F1__World_Data!$A$4:$DP$191,77,FALSE)","v":54.399000000000001},{"$f":"VLOOKUP($A98,F1__World_Data!$A$4:$DP$191,76,FALSE)","v":54.027000000000001},{"$f":"VLOOKUP($A98,F1__World_Data!$A$4:$DP$191,75,FALSE)","v":53.633000000000003},{"$f":"VLOOKUP($A98,F1__World_Data!$A$4:$DP$191,74,FALSE)","v":53.218000000000004},{"$f":"VLOOKUP($A98,F1__World_Data!$A$4:$DP$191,73,FALSE)","v":52.781999999999996},{"$f":"VLOOKUP($A98,F1__World_Data!$A$4:$DP$191,72,FALSE)","v":52.323},{"$f":"VLOOKUP($A98,F1__World_Data!$A$4:$DP$191,71,FALSE)","v":51.837000000000003},{"$f":"VLOOKUP($A98,F1__World_Data!$A$4:$DP$191,70,FALSE)","v":51.326999999999998},{"$f":"VLOOKUP($A98,F1__World_Data!$A$4:$DP$191,69,FALSE)","v":50.795999999999999},{"$f":"VLOOKUP($A98,F1__World_Data!$A$4:$DP$191,68,FALSE)","v":50.25},{"$f":"VLOOKUP($A98,F1__World_Data!$A$4:$DP$191,67,FALSE)","v":49.697000000000003},{"$f":"VLOOKUP($A98,F1__World_Data!$A$4:$DP$191,66,FALSE)","v":49.145000000000003},{"$f":"VLOOKUP($A98,F1__World_Data!$A$4:$DP$191,65,FALSE)","v":48.600999999999999},{"$f":"VLOOKUP($A98,F1__World_Data!$A$4:$DP$191,64,FALSE)","v":48.070999999999998},{"$f":"VLOOKUP($A98,F1__World_Data!$A$4:$DP$191,63,FALSE)","v":47.557000000000002},{"$f":"VLOOKUP($A98,F1__World_Data!$A$4:$DP$191,62,FALSE)","v":47.061}]
["Lebanon",{"$f":"VLOOKUP($A99,F1__World_Data!$A$4:$DP$191,60,FALSE)","v":6859.4080000000004},{"$f":"VLOOKUP($A99,F1__World_Data!$A$4:$DP$191,59,FALSE)","v":6819.3729999999996},{"$f":"VLOOKUP($A99,F1__World_Data!$A$4:$DP$191,58,FALSE)","v":6714.2809999999999},{"$f":"VLOOKUP($A99,F1__World_Data!$A$4:$DP$191,57,FALSE)","v":6532.6809999999996},{"$f":"VLOOKUP($A99,F1__World_Data!$A$4:$DP$191,56,FALSE)","v":6261.0460000000003},{"$f":"VLOOKUP($A99,F1__World_Data!$A$4:$DP$191,55,FALSE)","v":5913.0159999999996},{"$f":"VLOOKUP($A99,F1__World_Data!$A$4:$DP$191,54,FALSE)","v":5537.62},{"$f":"VLOOKUP($A99,F1__World_Data!$A$4:$DP$191,53,FALSE)","v":5202.0219999999999},{"$f":"VLOOKUP($A99,F1__World_Data!$A$4:$DP$191,52,FALSE)","v":4953.0640000000003},{"$f":"VLOOKUP($A99,F1__World_Data!$A$4:$DP$191,51,FALSE)","v":4813.0259999999998},{"$f":"VLOOKUP($A99,F1__World_Data!$A$4:$DP$191,50,FALSE)","v":4764.7449999999999},{"$f":"VLOOKUP($A99,F1__World_Data!$A$4:$DP$191,49,FALSE)","v":4767.3469999999998},{"$f":"VLOOKUP($A99,F1__World_Data!$A$4:$DP$191,48,FALSE)","v":4759.76},{"$f":"VLOOKUP($A99,F1__World_Data!$A$4:$DP$191,47,FALSE)","v":4698.7610000000004},{"$f":"VLOOKUP($A99,F1__World_Data!$A$4:$DP$191,46,FALSE)","v":4569.3770000000004},{"$f":"VLOOKUP($A99,F1__World_Data!$A$4:$DP$191,45,FALSE)","v":4388.3779999999997},{"$f":"VLOOKUP($A99,F1__World_Data!$A$4:$DP$191,44,FALSE)","v":4182.2049999999999},{"$f":"VLOOKUP($A99,F1__World_Data!$A$4:$DP$191,43,FALSE)","v":3990.9989999999998},{"$f":"VLOOKUP($A99,F1__World_Data!$A$4:$DP$191,42,FALSE)","v":3842.7739999999999},{"$f":"VLOOKUP($A99,F1__World_Data!$A$4:$DP$191,41,FALSE)","v":3747.7620000000002},{"$f":"VLOOKUP($A99,F1__World_Data!$A$4:$DP$191,40,FALSE)","v":3693.5140000000001},{"$f":"VLOOKUP($A99,F1__World_Data!$A$4:$DP$191,39,FALSE)","v":3658.4250000000002},{"$f":"VLOOKUP($A99,F1__World_Data!$A$4:$DP$191,38,FALSE)","v":3610.663},{"$f":"VLOOKUP($A99,F1__World_Data!$A$4:$DP$191,37,FALSE)","v":3528.3789999999999},{"$f":"VLOOKUP($A99,F1__World_Data!$A$4:$DP$191,36,FALSE)","v":3403.3589999999999},{"$f":"VLOOKUP($A99,F1__World_Data!$A$4:$DP$191,35,FALSE)","v":3246.1289999999999},{"$f":"VLOOKUP($A99,F1__World_Data!$A$4:$DP$191,34,FALSE)","v":3076.1329999999998},{"$f":"VLOOKUP($A99,F1__World_Data!$A$4:$DP$191,33,FALSE)","v":2921.7},{"$f":"VLOOKUP($A99,F1__World_Data!$A$4:$DP$191,32,FALSE)","v":2803.0320000000002},{"$f":"VLOOKUP($A99,F1__World_Data!$A$4:$DP$191,31,FALSE)","v":2726.4380000000001},{"$f":"VLOOKUP($A99,F1__World_Data!$A$4:$DP$191,30,FALSE)","v":2684.6819999999998},{"$f":"VLOOKUP($A99,F1__World_Data!$A$4:$DP$191,29,FALSE)","v":2667.9569999999999},{"$f":"VLOOKUP($A99,F1__World_Data!$A$4:$DP$191,28,FALSE)","v":2660.873},{"$f":"VLOOKUP($A99,F1__World_Data!$A$4:$DP$191,27,FALSE)","v":2651.9920000000002},{"$f":"VLOOKUP($A99,F1__World_Data!$A$4:$DP$191,26,FALSE)","v":2638.056},{"$f":"VLOOKUP($A99,F1__World_Data!$A$4:$DP$191,25,FALSE)","v":2622.0720000000001},{"$f":"VLOOKUP($A99,F1__World_Data!$A$4:$DP$191,24,FALSE)","v":2606.1480000000001},{"$f":"VLOOKUP($A99,F1__World_Data!$A$4:$DP$191,23,FALSE)","v":2594.299},{"$f":"VLOOKUP($A99,F1__World_Data!$A$4:$DP$191,22,FALSE)","v":2588.9279999999999},{"$f":"VLOOKUP($A99,F1__World_Data!$A$4:$DP$191,21,FALSE)","v":2590.9110000000001},{"$f":"VLOOKUP($A99,F1__World_Data!$A$4:$DP$191,20,FALSE)","v":2597.2020000000002},{"$f":"VLOOKUP($A99,F1__World_Data!$A$4:$DP$191,19,FALSE)","v":2601.7339999999999},{"$f":"VLOOKUP($A99,F1__World_Data!$A$4:$DP$191,18,FALSE)","v":2596.4090000000001},{"$f":"VLOOKUP($A99,F1__World_Data!$A$4:$DP$191,17,FALSE)","v":2575.7460000000001},{"$f":"VLOOKUP($A99,F1__World_Data!$A$4:$DP$191,16,FALSE)","v":2536.7719999999999},{"$f":"VLOOKUP($A99,F1__World_Data!$A$4:$DP$191,15,FALSE)","v":2481.9430000000002},{"$f":"VLOOKUP($A99,F1__World_Data!$A$4:$DP$191,14,FALSE)","v":2417.837},{"$f":"VLOOKUP($A99,F1__World_Data!$A$4:$DP$191,13,FALSE)","v":2354.0459999999998},{"$f":"VLOOKUP($A99,F1__World_Data!$A$4:$DP$191,12,FALSE)","v":2297.4360000000001},{"$f":"VLOOKUP($A99,F1__World_Data!$A$4:$DP$191,11,FALSE)","v":2250.4540000000002},{"$f":"VLOOKUP($A99,F1__World_Data!$A$4:$DP$191,10,FALSE)","v":2210.7689999999998},{"$f":"VLOOKUP($A99,F1__World_Data!$A$4:$DP$191,9,FALSE)","v":2174.732},{"$f":"VLOOKUP($A99,F1__World_Data!$A$4:$DP$191,8,FALSE)","v":2136.6170000000002},{"$f":"VLOOKUP($A99,F1__World_Data!$A$4:$DP$191,7,FALSE)","v":2092.3739999999998},{"$f":"VLOOKUP($A99,F1__World_Data!$A$4:$DP$191,6,FALSE)","v":2041.231},{"$f":"VLOOKUP($A99,F1__World_Data!$A$4:$DP$191,5,FALSE)","v":1984.999},{"$f":"VLOOKUP($A99,F1__World_Data!$A$4:$DP$191,4,FALSE)","v":1925.2950000000001},{"$f":"VLOOKUP($A99,F1__World_Data!$A$4:$DP$191,3,FALSE)","v":1864.6130000000001},{"$f":"VLOOKUP($A99,F1__World_Data!$A$4:$DP$191,2,FALSE)","v":1804.9349999999999},null,{"$f":"VLOOKUP($A99,F1__World_Data!$A$4:$DP$191,120,FALSE)","v":68.116},{"$f":"VLOOKUP($A99,F1__World_Data!$A$4:$DP$191,119,FALSE)","v":67.850999999999999},{"$f":"VLOOKUP($A99,F1__World_Data!$A$4:$DP$191,118,FALSE)","v":67.576999999999998},{"$f":"VLOOKUP($A99,F1__World_Data!$A$4:$DP$191,117,FALSE)","v":67.290999999999997},{"$f":"VLOOKUP($A99,F1__World_Data!$A$4:$DP$191,116,FALSE)","v":66.995000000000005},{"$f":"VLOOKUP($A99,F1__World_Data!$A$4:$DP$191,115,FALSE)","v":66.69},{"$f":"VLOOKUP($A99,F1__World_Data!$A$4:$DP$191,114,FALSE)","v":66.381},{"$f":"VLOOKUP($A99,F1__World_Data!$A$4:$DP$191,113,FALSE)","v":66.072000000000003},{"$f":"VLOOKUP($A99,F1__World_Data!$A$4:$DP$191,112,FALSE)","v":65.769000000000005},{"$f":"VLOOKUP($A99,F1__World_Data!$A$4:$DP$191,111,FALSE)","v":65.48},{"$f":"VLOOKUP($A99,F1__World_Data!$A$4:$DP$191,110,FALSE)","v":65.207999999999998},{"$f":"VLOOKUP($A99,F1__World_Data!$A$4:$DP$191,109,FALSE)","v":64.953000000000003},{"$f":"VLOOKUP($A99,F1__World_Data!$A$4:$DP$191,108,FALSE)","v":64.712000000000003},{"$f":"VLOOKUP($A99,F1__World_Data!$A$4:$DP$191,107,FALSE)","v":64.477999999999994},{"$f":"VLOOKUP($A99,F1__World_Data!$A$4:$DP$191,106,FALSE)","v":64.242000000000004},{"$f":"VLOOKUP($A99,F1__World_Data!$A$4:$DP$191,105,FALSE)","v":63.994999999999997},{"$f":"VLOOKUP($A99,F1__World_Data!$A$4:$DP$191,104,FALSE)","v":63.731000000000002},{"$f":"VLOOKUP($A99,F1__World_Data!$A$4:$DP$191,103,FALSE)","v":63.445999999999998},{"$f":"VLOOKUP($A99,F1__World_Data!$A$4:$DP$191,102,FALSE)","v":63.143999999999998},{"$f":"VLOOKUP($A99,F1__World_Data!$A$4:$DP$191,101,FALSE)","v":62.829000000000001},{"$f":"VLOOKUP($A99,F1__World_Data!$A$4:$DP$191,100,FALSE)","v":62.509},{"$f":"VLOOKUP($A99,F1__World_Data!$A$4:$DP$191,99,FALSE)","v":62.188000000000002},{"$f":"VLOOKUP($A99,F1__World_Data!$A$4:$DP$191,98,FALSE)","v":61.866},{"$f":"VLOOKUP($A99,F1__World_Data!$A$4:$DP$191,97,FALSE)","v":61.539000000000001},{"$f":"VLOOKUP($A99,F1__World_Data!$A$4:$DP$191,96,FALSE)","v":61.198},{"$f":"VLOOKUP($A99,F1__World_Data!$A$4:$DP$191,95,FALSE)","v":60.837000000000003},{"$f":"VLOOKUP($A99,F1__World_Data!$A$4:$DP$191,94,FALSE)","v":60.454999999999998},{"$f":"VLOOKUP($A99,F1__World_Data!$A$4:$DP$191,93,FALSE)","v":60.052999999999997},{"$f":"VLOOKUP($A99,F1__World_Data!$A$4:$DP$191,92,FALSE)","v":59.636000000000003},{"$f":"VLOOKUP($A99,F1__World_Data!$A$4:$DP$191,91,FALSE)","v":59.209000000000003},{"$f":"VLOOKUP($A99,F1__World_Data!$A$4:$DP$191,90,FALSE)","v":58.783000000000001},{"$f":"VLOOKUP($A99,F1__World_Data!$A$4:$DP$191,89,FALSE)","v":58.366},{"$f":"VLOOKUP($A99,F1__World_Data!$A$4:$DP$191,88,FALSE)","v":57.962000000000003},{"$f":"VLOOKUP($A99,F1__World_Data!$A$4:$DP$191,87,FALSE)","v":57.579000000000001},{"$f":"VLOOKUP($A99,F1__World_Data!$A$4:$DP$191,86,FALSE)","v":57.220999999999997},{"$f":"VLOOKUP($A99,F1__World_Data!$A$4:$DP$191,85,FALSE)","v":56.886000000000003},{"$f":"VLOOKUP($A99,F1__World_Data!$A$4:$DP$191,84,FALSE)","v":56.569000000000003},{"$f":"VLOOKUP($A99,F1__World_Data!$A$4:$DP$191,83,FALSE)","v":56.265999999999998},{"$f":"VLOOKUP($A99,F1__World_Data!$A$4:$DP$191,82,FALSE)","v":55.970999999999997},{"$f":"VLOOKUP($A99,F1__World_Data!$A$4:$DP$191,81,FALSE)","v":55.679000000000002},{"$f":"VLOOKUP($A99,F1__World_Data!$A$4:$DP$191,80,FALSE)","v":55.381999999999998},{"$f":"VLOOKUP($A99,F1__World_Data!$A$4:$DP$191,79,FALSE)","v":55.073999999999998},{"$f":"VLOOKUP($A99,F1__World_Data!$A$4:$DP$191,78,FALSE)","v":54.747999999999998},{"$f":"VLOOKUP($A99,F1__World_Data!$A$4:$DP$191,77,FALSE)","v":54.399000000000001},{"$f":"VLOOKUP($A99,F1__World_Data!$A$4:$DP$191,76,FALSE)","v":54.027000000000001},{"$f":"VLOOKUP($A99,F1__World_Data!$A$4:$DP$191,75,FALSE)","v":53.633000000000003},{"$f":"VLOOKUP($A99,F1__World_Data!$A$4:$DP$191,74,FALSE)","v":53.218000000000004},{"$f":"VLOOKUP($A99,F1__World_Data!$A$4:$DP$191,73,FALSE)","v":52.781999999999996},{"$f":"VLOOKUP($A99,F1__World_Data!$A$4:$DP$191,72,FALSE)","v":52.323},{"$f":"VLOOKUP($A99,F1__World_Data!$A$4:$DP$191,71,FALSE)","v":51.837000000000003},{"$f":"VLOOKUP($A99,F1__World_Data!$A$4:$DP$191,70,FALSE)","v":51.326999999999998},{"$f":"VLOOKUP($A99,F1__World_Data!$A$4:$DP$191,69,FALSE)","v":50.795999999999999},{"$f":"VLOOKUP($A99,F1__World_Data!$A$4:$DP$191,68,FALSE)","v":50.25},{"$f":"VLOOKUP($A99,F1__World_Data!$A$4:$DP$191,67,FALSE)","v":49.697000000000003},{"$f":"VLOOKUP($A99,F1__World_Data!$A$4:$DP$191,66,FALSE)","v":49.145000000000003},{"$f":"VLOOKUP($A99,F1__World_Data!$A$4:$DP$191,65,FALSE)","v":48.600999999999999},{"$f":"VLOOKUP($A99,F1__World_Data!$A$4:$DP$191,64,FALSE)","v":48.070999999999998},{"$f":"VLOOKUP($A99,F1__World_Data!$A$4:$DP$191,63,FALSE)","v":47.557000000000002},{"$f":"VLOOKUP($A99,F1__World_Data!$A$4:$DP$191,62,FALSE)","v":47.061}]
["Libya",{"$f":"VLOOKUP($A100,F1__World_Data!$A$4:$DP$191,60,FALSE)","v":6678.5649999999996},{"$f":"VLOOKUP($A100,F1__World_Data!$A$4:$DP$191,59,FALSE)","v":6580.723},{"$f":"VLOOKUP($A100,F1__World_Data!$A$4:$DP$191,58,FALSE)","v":6492.16},{"$f":"VLOOKUP($A100,F1__World_Data!$A$4:$DP$191,57,FALSE)","v":6418.3149999999996},{"$f":"VLOOKUP($A100,F1__World_Data!$A$4:$DP$191,56,FALSE)","v":6362.0389999999998},{"$f":"VLOOKUP($A100,F1__World_Data!$A$4:$DP$191,55,FALSE)","v":6320.35},{"$f":"VLOOKUP($A100,F1__World_Data!$A$4:$DP$191,54,FALSE)","v":6285.7510000000002},{"$f":"VLOOKUP($A100,F1__World_Data!$A$4:$DP$191,53,FALSE)","v":6247.4380000000001},{"$f":"VLOOKUP($A100,F1__World_Data!$A$4:$DP$191,52,FALSE)","v":6197.6670000000004},{"$f":"VLOOKUP($A100,F1__World_Data!$A$4:$DP$191,51,FALSE)","v":6133.9870000000001},{"$f":"VLOOKUP($A100,F1__World_Data!$A$4:$DP$191,50,FALSE)","v":6058.74},{"$f":"VLOOKUP($A100,F1__World_Data!$A$4:$DP$191,49,FALSE)","v":5974.7860000000001},{"$f":"VLOOKUP($A100,F1__World_Data!$A$4:$DP$191,48,FALSE)","v":5886.8739999999998},{"$f":"VLOOKUP($A100,F1__World_Data!$A$4:$DP$191,47,FALSE)","v":5798.6149999999998},{"$f":"VLOOKUP($A100,F1__World_Data!$A$4:$DP$191,46,FALSE)","v":5710.1629999999996},{"$f":"VLOOKUP($A100,F1__World_Data!$A$4:$DP$191,45,FALSE)","v":5620.5450000000001},{"$f":"VLOOKUP($A100,F1__World_Data!$A$4:$DP$191,44,FALSE)","v":5531.0969999999998},{"$f":"VLOOKUP($A100,F1__World_Data!$A$4:$DP$191,43,FALSE)","v":5443.2489999999998},{"$f":"VLOOKUP($A100,F1__World_Data!$A$4:$DP$191,42,FALSE)","v":5357.893},{"$f":"VLOOKUP($A100,F1__World_Data!$A$4:$DP$191,41,FALSE)","v":5275.9210000000003},{"$f":"VLOOKUP($A100,F1__World_Data!$A$4:$DP$191,40,FALSE)","v":5196.7740000000003},{"$f":"VLOOKUP($A100,F1__World_Data!$A$4:$DP$191,39,FALSE)","v":5118.0079999999998},{"$f":"VLOOKUP($A100,F1__World_Data!$A$4:$DP$191,38,FALSE)","v":5036.1729999999998},{"$f":"VLOOKUP($A100,F1__World_Data!$A$4:$DP$191,37,FALSE)","v":4948.7960000000003},{"$f":"VLOOKUP($A100,F1__World_Data!$A$4:$DP$191,36,FALSE)","v":4854.8710000000001},{"$f":"VLOOKUP($A100,F1__World_Data!$A$4:$DP$191,35,FALSE)","v":4755.134},{"$f":"VLOOKUP($A100,F1__World_Data!$A$4:$DP$191,34,FALSE)","v":4650.8959999999997},{"$f":"VLOOKUP($A100,F1__World_Data!$A$4:$DP$191,33,FALSE)","v":4544.2449999999999},{"$f":"VLOOKUP($A100,F1__World_Data!$A$4:$DP$191,32,FALSE)","v":4436.6629999999996},{"$f":"VLOOKUP($A100,F1__World_Data!$A$4:$DP$191,31,FALSE)","v":4328.9350000000004},{"$f":"VLOOKUP($A100,F1__World_Data!$A$4:$DP$191,30,FALSE)","v":4220.451},{"$f":"VLOOKUP($A100,F1__World_Data!$A$4:$DP$191,29,FALSE)","v":4109.7169999999996},{"$f":"VLOOKUP($A100,F1__World_Data!$A$4:$DP$191,28,FALSE)","v":3994.6010000000001},{"$f":"VLOOKUP($A100,F1__World_Data!$A$4:$DP$191,27,FALSE)","v":3873.7809999999999},{"$f":"VLOOKUP($A100,F1__World_Data!$A$4:$DP$191,26,FALSE)","v":3746.712},{"$f":"VLOOKUP($A100,F1__World_Data!$A$4:$DP$191,25,FALSE)","v":3614.6819999999998},{"$f":"VLOOKUP($A100,F1__World_Data!$A$4:$DP$191,24,FALSE)","v":3480.4430000000002},{"$f":"VLOOKUP($A100,F1__World_Data!$A$4:$DP$191,23,FALSE)","v":3347.779},{"$f":"VLOOKUP($A100,F1__World_Data!$A$4:$DP$191,22,FALSE)","v":3219.462},{"$f":"VLOOKUP($A100,F1__World_Data!$A$4:$DP$191,21,FALSE)","v":3096.7240000000002},{"$f":"VLOOKUP($A100,F1__World_Data!$A$4:$DP$191,20,FALSE)","v":2979.1019999999999},{"$f":"VLOOKUP($A100,F1__World_Data!$A$4:$DP$191,19,FALSE)","v":2865.6390000000001},{"$f":"VLOOKUP($A100,F1__World_Data!$A$4:$DP$191,18,FALSE)","v":2754.6979999999999},{"$f":"VLOOKUP($A100,F1__World_Data!$A$4:$DP$191,17,FALSE)","v":2645.136},{"$f":"VLOOKUP($A100,F1__World_Data!$A$4:$DP$191,16,FALSE)","v":2536.895},{"$f":"VLOOKUP($A100,F1__World_Data!$A$4:$DP$191,15,FALSE)","v":2430.7539999999999},{"$f":"VLOOKUP($A100,F1__World_Data!$A$4:$DP$191,14,FALSE)","v":2327.4870000000001},{"$f":"VLOOKUP($A100,F1__World_Data!$A$4:$DP$191,13,FALSE)","v":2228.1419999999998},{"$f":"VLOOKUP($A100,F1__World_Data!$A$4:$DP$191,12,FALSE)","v":2133.527},{"$f":"VLOOKUP($A100,F1__World_Data!$A$4:$DP$191,11,FALSE)","v":2043.82},{"$f":"VLOOKUP($A100,F1__World_Data!$A$4:$DP$191,10,FALSE)","v":1958.9090000000001},{"$f":"VLOOKUP($A100,F1__World_Data!$A$4:$DP$191,9,FALSE)","v":1878.8689999999999},{"$f":"VLOOKUP($A100,F1__World_Data!$A$4:$DP$191,8,FALSE)","v":1803.6890000000001},{"$f":"VLOOKUP($A100,F1__World_Data!$A$4:$DP$191,7,FALSE)","v":1733.307},{"$f":"VLOOKUP($A100,F1__World_Data!$A$4:$DP$191,6,FALSE)","v":1667.8219999999999},{"$f":"VLOOKUP($A100,F1__World_Data!$A$4:$DP$191,5,FALSE)","v":1607.1679999999999},{"$f":"VLOOKUP($A100,F1__World_Data!$A$4:$DP$191,4,FALSE)","v":1550.8150000000001},{"$f":"VLOOKUP($A100,F1__World_Data!$A$4:$DP$191,3,FALSE)","v":1498.076},{"$f":"VLOOKUP($A100,F1__World_Data!$A$4:$DP$191,2,FALSE)","v":1448.4159999999999},null,{"$f":"VLOOKUP($A100,F1__World_Data!$A$4:$DP$191,120,FALSE)","v":68.116},{"$f":"VLOOKUP($A100,F1__World_Data!$A$4:$DP$191,119,FALSE)","v":67.850999999999999},{"$f":"VLOOKUP($A100,F1__World_Data!$A$4:$DP$191,118,FALSE)","v":67.576999999999998},{"$f":"VLOOKUP($A100,F1__World_Data!$A$4:$DP$191,117,FALSE)","v":67.290999999999997},{"$f":"VLOOKUP($A100,F1__World_Data!$A$4:$DP$191,116,FALSE)","v":66.995000000000005},{"$f":"VLOOKUP($A100,F1__World_Data!$A$4:$DP$191,115,FALSE)","v":66.69},{"$f":"VLOOKUP($A100,F1__World_Data!$A$4:$DP$191,114,FALSE)","v":66.381},{"$f":"VLOOKUP($A100,F1__World_Data!$A$4:$DP$191,113,FALSE)","v":66.072000000000003},{"$f":"VLOOKUP($A100,F1__World_Data!$A$4:$DP$191,112,FALSE)","v":65.769000000000005},{"$f":"VLOOKUP($A100,F1__World_Data!$A$4:$DP$191,111,FALSE)","v":65.48},{"$f":"VLOOKUP($A100,F1__World_Data!$A$4:$DP$191,110,FALSE)","v":65.207999999999998},{"$f":"VLOOKUP($A100,F1__World_Data!$A$4:$DP$191,109,FALSE)","v":64.953000000000003},{"$f":"VLOOKUP($A100,F1__World_Data!$A$4:$DP$191,108,FALSE)","v":64.712000000000003},{"$f":"VLOOKUP($A100,F1__World_Data!$A$4:$DP$191,107,FALSE)","v":64.477999999999994},{"$f":"VLOOKUP($A100,F1__World_Data!$A$4:$DP$191,106,FALSE)","v":64.242000000000004},{"$f":"VLOOKUP($A100,F1__World_Data!$A$4:$DP$191,105,FALSE)","v":63.994999999999997},{"$f":"VLOOKUP($A100,F1__World_Data!$A$4:$DP$191,104,FALSE)","v":63.731000000000002},{"$f":"VLOOKUP($A100,F1__World_Data!$A$4:$DP$191,103,FALSE)","v":63.445999999999998},{"$f":"VLOOKUP($A100,F1__World_Data!$A$4:$DP$191,102,FALSE)","v":63.143999999999998},{"$f":"VLOOKUP($A100,F1__World_Data!$A$4:$DP$191,101,FALSE)","v":62.829000000000001},{"$f":"VLOOKUP($A100,F1__World_Data!$A$4:$DP$191,100,FALSE)","v":62.509},{"$f":"VLOOKUP($A100,F1__World_Data!$A$4:$DP$191,99,FALSE)","v":62.188000000000002},{"$f":"VLOOKUP($A100,F1__World_Data!$A$4:$DP$191,98,FALSE)","v":61.866},{"$f":"VLOOKUP($A100,F1__World_Data!$A$4:$DP$191,97,FALSE)","v":61.539000000000001},{"$f":"VLOOKUP($A100,F1__World_Data!$A$4:$DP$191,96,FALSE)","v":61.198},{"$f":"VLOOKUP($A100,F1__World_Data!$A$4:$DP$191,95,FALSE)","v":60.837000000000003},{"$f":"VLOOKUP($A100,F1__World_Data!$A$4:$DP$191,94,FALSE)","v":60.454999999999998},{"$f":"VLOOKUP($A100,F1__World_Data!$A$4:$DP$191,93,FALSE)","v":60.052999999999997},{"$f":"VLOOKUP($A100,F1__World_Data!$A$4:$DP$191,92,FALSE)","v":59.636000000000003},{"$f":"VLOOKUP($A100,F1__World_Data!$A$4:$DP$191,91,FALSE)","v":59.209000000000003},{"$f":"VLOOKUP($A100,F1__World_Data!$A$4:$DP$191,90,FALSE)","v":58.783000000000001},{"$f":"VLOOKUP($A100,F1__World_Data!$A$4:$DP$191,89,FALSE)","v":58.366},{"$f":"VLOOKUP($A100,F1__World_Data!$A$4:$DP$191,88,FALSE)","v":57.962000000000003},{"$f":"VLOOKUP($A100,F1__World_Data!$A$4:$DP$191,87,FALSE)","v":57.579000000000001},{"$f":"VLOOKUP($A100,F1__World_Data!$A$4:$DP$191,86,FALSE)","v":57.220999999999997},{"$f":"VLOOKUP($A100,F1__World_Data!$A$4:$DP$191,85,FALSE)","v":56.886000000000003},{"$f":"VLOOKUP($A100,F1__World_Data!$A$4:$DP$191,84,FALSE)","v":56.569000000000003},{"$f":"VLOOKUP($A100,F1__World_Data!$A$4:$DP$191,83,FALSE)","v":56.265999999999998},{"$f":"VLOOKUP($A100,F1__World_Data!$A$4:$DP$191,82,FALSE)","v":55.970999999999997},{"$f":"VLOOKUP($A100,F1__World_Data!$A$4:$DP$191,81,FALSE)","v":55.679000000000002},{"$f":"VLOOKUP($A100,F1__World_Data!$A$4:$DP$191,80,FALSE)","v":55.381999999999998},{"$f":"VLOOKUP($A100,F1__World_Data!$A$4:$DP$191,79,FALSE)","v":55.073999999999998},{"$f":"VLOOKUP($A100,F1__World_Data!$A$4:$DP$191,78,FALSE)","v":54.747999999999998},{"$f":"VLOOKUP($A100,F1__World_Data!$A$4:$DP$191,77,FALSE)","v":54.399000000000001},{"$f":"VLOOKUP($A100,F1__World_Data!$A$4:$DP$191,76,FALSE)","v":54.027000000000001},{"$f":"VLOOKUP($A100,F1__World_Data!$A$4:$DP$191,75,FALSE)","v":53.633000000000003},{"$f":"VLOOKUP($A100,F1__World_Data!$A$4:$DP$191,74,FALSE)","v":53.218000000000004},{"$f":"VLOOKUP($A100,F1__World_Data!$A$4:$DP$191,73,FALSE)","v":52.781999999999996},{"$f":"VLOOKUP($A100,F1__World_Data!$A$4:$DP$191,72,FALSE)","v":52.323},{"$f":"VLOOKUP($A100,F1__World_Data!$A$4:$DP$191,71,FALSE)","v":51.837000000000003},{"$f":"VLOOKUP($A100,F1__World_Data!$A$4:$DP$191,70,FALSE)","v":51.326999999999998},{"$f":"VLOOKUP($A100,F1__World_Data!$A$4:$DP$191,69,FALSE)","v":50.795999999999999},{"$f":"VLOOKUP($A100,F1__World_Data!$A$4:$DP$191,68,FALSE)","v":50.25},{"$f":"VLOOKUP($A100,F1__World_Data!$A$4:$DP$191,67,FALSE)","v":49.697000000000003},{"$f":"VLOOKUP($A100,F1__World_Data!$A$4:$DP$191,66,FALSE)","v":49.145000000000003},{"$f":"VLOOKUP($A100,F1__World_Data!$A$4:$DP$191,65,FALSE)","v":48.600999999999999},{"$f":"VLOOKUP($A100,F1__World_Data!$A$4:$DP$191,64,FALSE)","v":48.070999999999998},{"$f":"VLOOKUP($A100,F1__World_Data!$A$4:$DP$191,63,FALSE)","v":47.557000000000002},{"$f":"VLOOKUP($A100,F1__World_Data!$A$4:$DP$191,62,FALSE)","v":47.061}]
["Nicaragua",{"$f":"VLOOKUP($A101,F1__World_Data!$A$4:$DP$191,60,FALSE)","v":6465.5020000000004},{"$f":"VLOOKUP($A101,F1__World_Data!$A$4:$DP$191,59,FALSE)","v":6384.8429999999998},{"$f":"VLOOKUP($A101,F1__World_Data!$A$4:$DP$191,58,FALSE)","v":6303.97},{"$f":"VLOOKUP($A101,F1__World_Data!$A$4:$DP$191,57,FALSE)","v":6223.2340000000004},{"$f":"VLOOKUP($A101,F1__World_Data!$A$4:$DP$191,56,FALSE)","v":6142.7340000000004},{"$f":"VLOOKUP($A101,F1__World_Data!$A$4:$DP$191,55,FALSE)","v":6062.4620000000004},{"$f":"VLOOKUP($A101,F1__World_Data!$A$4:$DP$191,54,FALSE)","v":5982.53},{"$f":"VLOOKUP($A101,F1__World_Data!$A$4:$DP$191,53,FALSE)","v":5903.0349999999999},{"$f":"VLOOKUP($A101,F1__World_Data!$A$4:$DP$191,52,FALSE)","v":5824.058},{"$f":"VLOOKUP($A101,F1__World_Data!$A$4:$DP$191,51,FALSE)","v":5745.5379999999996},{"$f":"VLOOKUP($A101,F1__World_Data!$A$4:$DP$191,50,FALSE)","v":5667.4359999999997},{"$f":"VLOOKUP($A101,F1__World_Data!$A$4:$DP$191,49,FALSE)","v":5590.0659999999998},{"$f":"VLOOKUP($A101,F1__World_Data!$A$4:$DP$191,48,FALSE)","v":5513.7569999999996},{"$f":"VLOOKUP($A101,F1__World_Data!$A$4:$DP$191,47,FALSE)","v":5438.692},{"$f":"VLOOKUP($A101,F1__World_Data!$A$4:$DP$191,46,FALSE)","v":5364.93},{"$f":"VLOOKUP($A101,F1__World_Data!$A$4:$DP$191,45,FALSE)","v":5292.1149999999998},{"$f":"VLOOKUP($A101,F1__World_Data!$A$4:$DP$191,44,FALSE)","v":5219.3239999999996},{"$f":"VLOOKUP($A101,F1__World_Data!$A$4:$DP$191,43,FALSE)","v":5145.3670000000002},{"$f":"VLOOKUP($A101,F1__World_Data!$A$4:$DP$191,42,FALSE)","v":5069.3100000000004},{"$f":"VLOOKUP($A101,F1__World_Data!$A$4:$DP$191,41,FALSE)","v":4991.0410000000002},{"$f":"VLOOKUP($A101,F1__World_Data!$A$4:$DP$191,40,FALSE)","v":4910.6419999999998},{"$f":"VLOOKUP($A101,F1__World_Data!$A$4:$DP$191,39,FALSE)","v":4827.6580000000004},{"$f":"VLOOKUP($A101,F1__World_Data!$A$4:$DP$191,38,FALSE)","v":4741.5709999999999},{"$f":"VLOOKUP($A101,F1__World_Data!$A$4:$DP$191,37,FALSE)","v":4652.1850000000004},{"$f":"VLOOKUP($A101,F1__World_Data!$A$4:$DP$191,36,FALSE)","v":4559.01},{"$f":"VLOOKUP($A101,F1__World_Data!$A$4:$DP$191,35,FALSE)","v":4462.4960000000001},{"$f":"VLOOKUP($A101,F1__World_Data!$A$4:$DP$191,34,FALSE)","v":4364.5140000000001},{"$f":"VLOOKUP($A101,F1__World_Data!$A$4:$DP$191,33,FALSE)","v":4267.57},{"$f":"VLOOKUP($A101,F1__World_Data!$A$4:$DP$191,32,FALSE)","v":4173.4350000000004},{"$f":"VLOOKUP($A101,F1__World_Data!$A$4:$DP$191,31,FALSE)","v":4082.9580000000001},{"$f":"VLOOKUP($A101,F1__World_Data!$A$4:$DP$191,30,FALSE)","v":3995.529},{"$f":"VLOOKUP($A101,F1__World_Data!$A$4:$DP$191,29,FALSE)","v":3909.672},{"$f":"VLOOKUP($A101,F1__World_Data!$A$4:$DP$191,28,FALSE)","v":3823.1329999999998},{"$f":"VLOOKUP($A101,F1__World_Data!$A$4:$DP$191,27,FALSE)","v":3734.3429999999998},{"$f":"VLOOKUP($A101,F1__World_Data!$A$4:$DP$191,26,FALSE)","v":3642.9780000000001},{"$f":"VLOOKUP($A101,F1__World_Data!$A$4:$DP$191,25,FALSE)","v":3549.7109999999998},{"$f":"VLOOKUP($A101,F1__World_Data!$A$4:$DP$191,24,FALSE)","v":3455.1289999999999},{"$f":"VLOOKUP($A101,F1__World_Data!$A$4:$DP$191,23,FALSE)","v":3360.1419999999998},{"$f":"VLOOKUP($A101,F1__World_Data!$A$4:$DP$191,22,FALSE)","v":3265.52},{"$f":"VLOOKUP($A101,F1__World_Data!$A$4:$DP$191,21,FALSE)","v":3171.404},{"$f":"VLOOKUP($A101,F1__World_Data!$A$4:$DP$191,20,FALSE)","v":3077.8609999999999},{"$f":"VLOOKUP($A101,F1__World_Data!$A$4:$DP$191,19,FALSE)","v":2985.48},{"$f":"VLOOKUP($A101,F1__World_Data!$A$4:$DP$191,18,FALSE)","v":2894.9670000000001},{"$f":"VLOOKUP($A101,F1__World_Data!$A$4:$DP$191,17,FALSE)","v":2806.8589999999999},{"$f":"VLOOKUP($A101,F1__World_Data!$A$4:$DP$191,16,FALSE)","v":2721.4169999999999},{"$f":"VLOOKUP($A101,F1__World_Data!$A$4:$DP$191,15,FALSE)","v":2638.6990000000001},{"$f":"VLOOKUP($A101,F1__World_Data!$A$4:$DP$191,14,FALSE)","v":2558.7049999999999},{"$f":"VLOOKUP($A101,F1__World_Data!$A$4:$DP$191,13,FALSE)","v":2481.3449999999998},{"$f":"VLOOKUP($A101,F1__World_Data!$A$4:$DP$191,12,FALSE)","v":2406.5230000000001},{"$f":"VLOOKUP($A101,F1__World_Data!$A$4:$DP$191,11,FALSE)","v":2334.2849999999999},{"$f":"VLOOKUP($A101,F1__World_Data!$A$4:$DP$191,10,FALSE)","v":2264.623},{"$f":"VLOOKUP($A101,F1__World_Data!$A$4:$DP$191,9,FALSE)","v":2197.3029999999999},{"$f":"VLOOKUP($A101,F1__World_Data!$A$4:$DP$191,8,FALSE)","v":2131.973},{"$f":"VLOOKUP($A101,F1__World_Data!$A$4:$DP$191,7,FALSE)","v":2068.3789999999999},{"$f":"VLOOKUP($A101,F1__World_Data!$A$4:$DP$191,6,FALSE)","v":2006.4780000000001},{"$f":"VLOOKUP($A101,F1__World_Data!$A$4:$DP$191,5,FALSE)","v":1946.24},{"$f":"VLOOKUP($A101,F1__World_Data!$A$4:$DP$191,4,FALSE)","v":1887.4259999999999},{"$f":"VLOOKUP($A101,F1__World_Data!$A$4:$DP$191,3,FALSE)","v":1829.7719999999999},{"$f":"VLOOKUP($A101,F1__World_Data!$A$4:$DP$191,2,FALSE)","v":1773.1320000000001},null,{"$f":"VLOOKUP($A101,F1__World_Data!$A$4:$DP$191,120,FALSE)","v":68.116},{"$f":"VLOOKUP($A101,F1__World_Data!$A$4:$DP$191,119,FALSE)","v":67.850999999999999},{"$f":"VLOOKUP($A101,F1__World_Data!$A$4:$DP$191,118,FALSE)","v":67.576999999999998},{"$f":"VLOOKUP($A101,F1__World_Data!$A$4:$DP$191,117,FALSE)","v":67.290999999999997},{"$f":"VLOOKUP($A101,F1__World_Data!$A$4:$DP$191,116,FALSE)","v":66.995000000000005},{"$f":"VLOOKUP($A101,F1__World_Data!$A$4:$DP$191,115,FALSE)","v":66.69},{"$f":"VLOOKUP($A101,F1__World_Data!$A$4:$DP$191,114,FALSE)","v":66.381},{"$f":"VLOOKUP($A101,F1__World_Data!$A$4:$DP$191,113,FALSE)","v":66.072000000000003},{"$f":"VLOOKUP($A101,F1__World_Data!$A$4:$DP$191,112,FALSE)","v":65.769000000000005},{"$f":"VLOOKUP($A101,F1__World_Data!$A$4:$DP$191,111,FALSE)","v":65.48},{"$f":"VLOOKUP($A101,F1__World_Data!$A$4:$DP$191,110,FALSE)","v":65.207999999999998},{"$f":"VLOOKUP($A101,F1__World_Data!$A$4:$DP$191,109,FALSE)","v":64.953000000000003},{"$f":"VLOOKUP($A101,F1__World_Data!$A$4:$DP$191,108,FALSE)","v":64.712000000000003},{"$f":"VLOOKUP($A101,F1__World_Data!$A$4:$DP$191,107,FALSE)","v":64.477999999999994},{"$f":"VLOOKUP($A101,F1__World_Data!$A$4:$DP$191,106,FALSE)","v":64.242000000000004},{"$f":"VLOOKUP($A101,F1__World_Data!$A$4:$DP$191,105,FALSE)","v":63.994999999999997},{"$f":"VLOOKUP($A101,F1__World_Data!$A$4:$DP$191,104,FALSE)","v":63.731000000000002},{"$f":"VLOOKUP($A101,F1__World_Data!$A$4:$DP$191,103,FALSE)","v":63.445999999999998},{"$f":"VLOOKUP($A101,F1__World_Data!$A$4:$DP$191,102,FALSE)","v":63.143999999999998},{"$f":"VLOOKUP($A101,F1__World_Data!$A$4:$DP$191,101,FALSE)","v":62.829000000000001},{"$f":"VLOOKUP($A101,F1__World_Data!$A$4:$DP$191,100,FALSE)","v":62.509},{"$f":"VLOOKUP($A101,F1__World_Data!$A$4:$DP$191,99,FALSE)","v":62.188000000000002},{"$f":"VLOOKUP($A101,F1__World_Data!$A$4:$DP$191,98,FALSE)","v":61.866},{"$f":"VLOOKUP($A101,F1__World_Data!$A$4:$DP$191,97,FALSE)","v":61.539000000000001},{"$f":"VLOOKUP($A101,F1__World_Data!$A$4:$DP$191,96,FALSE)","v":61.198},{"$f":"VLOOKUP($A101,F1__World_Data!$A$4:$DP$191,95,FALSE)","v":60.837000000000003},{"$f":"VLOOKUP($A101,F1__World_Data!$A$4:$DP$191,94,FALSE)","v":60.454999999999998},{"$f":"VLOOKUP($A101,F1__World_Data!$A$4:$DP$191,93,FALSE)","v":60.052999999999997},{"$f":"VLOOKUP($A101,F1__World_Data!$A$4:$DP$191,92,FALSE)","v":59.636000000000003},{"$f":"VLOOKUP($A101,F1__World_Data!$A$4:$DP$191,91,FALSE)","v":59.209000000000003},{"$f":"VLOOKUP($A101,F1__World_Data!$A$4:$DP$191,90,FALSE)","v":58.783000000000001},{"$f":"VLOOKUP($A101,F1__World_Data!$A$4:$DP$191,89,FALSE)","v":58.366},{"$f":"VLOOKUP($A101,F1__World_Data!$A$4:$DP$191,88,FALSE)","v":57.962000000000003},{"$f":"VLOOKUP($A101,F1__World_Data!$A$4:$DP$191,87,FALSE)","v":57.579000000000001},{"$f":"VLOOKUP($A101,F1__World_Data!$A$4:$DP$191,86,FALSE)","v":57.220999999999997},{"$f":"VLOOKUP($A101,F1__World_Data!$A$4:$DP$191,85,FALSE)","v":56.886000000000003},{"$f":"VLOOKUP($A101,F1__World_Data!$A$4:$DP$191,84,FALSE)","v":56.569000000000003},{"$f":"VLOOKUP($A101,F1__World_Data!$A$4:$DP$191,83,FALSE)","v":56.265999999999998},{"$f":"VLOOKUP($A101,F1__World_Data!$A$4:$DP$191,82,FALSE)","v":55.970999999999997},{"$f":"VLOOKUP($A101,F1__World_Data!$A$4:$DP$191,81,FALSE)","v":55.679000000000002},{"$f":"VLOOKUP($A101,F1__World_Data!$A$4:$DP$191,80,FALSE)","v":55.381999999999998},{"$f":"VLOOKUP($A101,F1__World_Data!$A$4:$DP$191,79,FALSE)","v":55.073999999999998},{"$f":"VLOOKUP($A101,F1__World_Data!$A$4:$DP$191,78,FALSE)","v":54.747999999999998},{"$f":"VLOOKUP($A101,F1__World_Data!$A$4:$DP$191,77,FALSE)","v":54.399000000000001},{"$f":"VLOOKUP($A101,F1__World_Data!$A$4:$DP$191,76,FALSE)","v":54.027000000000001},{"$f":"VLOOKUP($A101,F1__World_Data!$A$4:$DP$191,75,FALSE)","v":53.633000000000003},{"$f":"VLOOKUP($A101,F1__World_Data!$A$4:$DP$191,74,FALSE)","v":53.218000000000004},{"$f":"VLOOKUP($A101,F1__World_Data!$A$4:$DP$191,73,FALSE)","v":52.781999999999996},{"$f":"VLOOKUP($A101,F1__World_Data!$A$4:$DP$191,72,FALSE)","v":52.323},{"$f":"VLOOKUP($A101,F1__World_Data!$A$4:$DP$191,71,FALSE)","v":51.837000000000003},{"$f":"VLOOKUP($A101,F1__World_Data!$A$4:$DP$191,70,FALSE)","v":51.326999999999998},{"$f":"VLOOKUP($A101,F1__World_Data!$A$4:$DP$191,69,FALSE)","v":50.795999999999999},{"$f":"VLOOKUP($A101,F1__World_Data!$A$4:$DP$191,68,FALSE)","v":50.25},{"$f":"VLOOKUP($A101,F1__World_Data!$A$4:$DP$191,67,FALSE)","v":49.697000000000003},{"$f":"VLOOKUP($A101,F1__World_Data!$A$4:$DP$191,66,FALSE)","v":49.145000000000003},{"$f":"VLOOKUP($A101,F1__World_Data!$A$4:$DP$191,65,FALSE)","v":48.600999999999999},{"$f":"VLOOKUP($A101,F1__World_Data!$A$4:$DP$191,64,FALSE)","v":48.070999999999998},{"$f":"VLOOKUP($A101,F1__World_Data!$A$4:$DP$191,63,FALSE)","v":47.557000000000002},{"$f":"VLOOKUP($A101,F1__World_Data!$A$4:$DP$191,62,FALSE)","v":47.061}]
["El Salvador",{"$f":"VLOOKUP($A102,F1__World_Data!$A$4:$DP$191,60,FALSE)","v":6420.74},{"$f":"VLOOKUP($A102,F1__World_Data!$A$4:$DP$191,59,FALSE)","v":6388.1239999999998},{"$f":"VLOOKUP($A102,F1__World_Data!$A$4:$DP$191,58,FALSE)","v":6356.1369999999997},{"$f":"VLOOKUP($A102,F1__World_Data!$A$4:$DP$191,57,FALSE)","v":6325.1210000000001},{"$f":"VLOOKUP($A102,F1__World_Data!$A$4:$DP$191,56,FALSE)","v":6295.1239999999998},{"$f":"VLOOKUP($A102,F1__World_Data!$A$4:$DP$191,55,FALSE)","v":6266.076},{"$f":"VLOOKUP($A102,F1__World_Data!$A$4:$DP$191,54,FALSE)","v":6237.9219999999996},{"$f":"VLOOKUP($A102,F1__World_Data!$A$4:$DP$191,53,FALSE)","v":6210.567},{"$f":"VLOOKUP($A102,F1__World_Data!$A$4:$DP$191,52,FALSE)","v":6183.8770000000004},{"$f":"VLOOKUP($A102,F1__World_Data!$A$4:$DP$191,51,FALSE)","v":6157.6779999999999},{"$f":"VLOOKUP($A102,F1__World_Data!$A$4:$DP$191,50,FALSE)","v":6131.7669999999998},{"$f":"VLOOKUP($A102,F1__World_Data!$A$4:$DP$191,49,FALSE)","v":6105.81},{"$f":"VLOOKUP($A102,F1__World_Data!$A$4:$DP$191,48,FALSE)","v":6079.3950000000004},{"$f":"VLOOKUP($A102,F1__World_Data!$A$4:$DP$191,47,FALSE)","v":6052.1239999999998},{"$f":"VLOOKUP($A102,F1__World_Data!$A$4:$DP$191,46,FALSE)","v":6023.8010000000004},{"$f":"VLOOKUP($A102,F1__World_Data!$A$4:$DP$191,45,FALSE)","v":5994.0749999999998},{"$f":"VLOOKUP($A102,F1__World_Data!$A$4:$DP$191,44,FALSE)","v":5962.1390000000001},{"$f":"VLOOKUP($A102,F1__World_Data!$A$4:$DP$191,43,FALSE)","v":5927.0010000000002},{"$f":"VLOOKUP($A102,F1__World_Data!$A$4:$DP$191,42,FALSE)","v":5887.93},{"$f":"VLOOKUP($A102,F1__World_Data!$A$4:$DP$191,41,FALSE)","v":5844.8339999999998},{"$f":"VLOOKUP($A102,F1__World_Data!$A$4:$DP$191,40,FALSE)","v":5797.7640000000001},{"$f":"VLOOKUP($A102,F1__World_Data!$A$4:$DP$191,39,FALSE)","v":5746.2879999999996},{"$f":"VLOOKUP($A102,F1__World_Data!$A$4:$DP$191,38,FALSE)","v":5689.9430000000002},{"$f":"VLOOKUP($A102,F1__World_Data!$A$4:$DP$191,37,FALSE)","v":5628.6019999999999},{"$f":"VLOOKUP($A102,F1__World_Data!$A$4:$DP$191,36,FALSE)","v":5561.9160000000002},{"$f":"VLOOKUP($A102,F1__World_Data!$A$4:$DP$191,35,FALSE)","v":5490.4780000000001},{"$f":"VLOOKUP($A102,F1__World_Data!$A$4:$DP$191,34,FALSE)","v":5416.3270000000002},{"$f":"VLOOKUP($A102,F1__World_Data!$A$4:$DP$191,33,FALSE)","v":5342.19},{"$f":"VLOOKUP($A102,F1__World_Data!$A$4:$DP$191,32,FALSE)","v":5270.0739999999996},{"$f":"VLOOKUP($A102,F1__World_Data!$A$4:$DP$191,31,FALSE)","v":5200.6080000000002},{"$f":"VLOOKUP($A102,F1__World_Data!$A$4:$DP$191,30,FALSE)","v":5133.2730000000001},{"$f":"VLOOKUP($A102,F1__World_Data!$A$4:$DP$191,29,FALSE)","v":5067.5309999999999},{"$f":"VLOOKUP($A102,F1__World_Data!$A$4:$DP$191,28,FALSE)","v":5002.3389999999999},{"$f":"VLOOKUP($A102,F1__World_Data!$A$4:$DP$191,27,FALSE)","v":4936.8029999999999},{"$f":"VLOOKUP($A102,F1__World_Data!$A$4:$DP$191,26,FALSE)","v":4871.0410000000002},{"$f":"VLOOKUP($A102,F1__World_Data!$A$4:$DP$191,25,FALSE)","v":4804.9359999999997},{"$f":"VLOOKUP($A102,F1__World_Data!$A$4:$DP$191,24,FALSE)","v":4737.2560000000003},{"$f":"VLOOKUP($A102,F1__World_Data!$A$4:$DP$191,23,FALSE)","v":4666.3609999999999},{"$f":"VLOOKUP($A102,F1__World_Data!$A$4:$DP$191,22,FALSE)","v":4591.1350000000002},{"$f":"VLOOKUP($A102,F1__World_Data!$A$4:$DP$191,21,FALSE)","v":4511.1270000000004},{"$f":"VLOOKUP($A102,F1__World_Data!$A$4:$DP$191,20,FALSE)","v":4426.6790000000001},{"$f":"VLOOKUP($A102,F1__World_Data!$A$4:$DP$191,19,FALSE)","v":4338.451},{"$f":"VLOOKUP($A102,F1__World_Data!$A$4:$DP$191,18,FALSE)","v":4247.5079999999998},{"$f":"VLOOKUP($A102,F1__World_Data!$A$4:$DP$191,17,FALSE)","v":4154.6890000000003},{"$f":"VLOOKUP($A102,F1__World_Data!$A$4:$DP$191,16,FALSE)","v":4060.2550000000001},{"$f":"VLOOKUP($A102,F1__World_Data!$A$4:$DP$191,15,FALSE)","v":3964.2730000000001},{"$f":"VLOOKUP($A102,F1__World_Data!$A$4:$DP$191,14,FALSE)","v":3867.31},{"$f":"VLOOKUP($A102,F1__World_Data!$A$4:$DP$191,13,FALSE)","v":3770.06},{"$f":"VLOOKUP($A102,F1__World_Data!$A$4:$DP$191,12,FALSE)","v":3673.0659999999998},{"$f":"VLOOKUP($A102,F1__World_Data!$A$4:$DP$191,11,FALSE)","v":3576.8339999999998},{"$f":"VLOOKUP($A102,F1__World_Data!$A$4:$DP$191,10,FALSE)","v":3481.6239999999998},{"$f":"VLOOKUP($A102,F1__World_Data!$A$4:$DP$191,9,FALSE)","v":3387.384},{"$f":"VLOOKUP($A102,F1__World_Data!$A$4:$DP$191,8,FALSE)","v":3293.9540000000002},{"$f":"VLOOKUP($A102,F1__World_Data!$A$4:$DP$191,7,FALSE)","v":3201.31},{"$f":"VLOOKUP($A102,F1__World_Data!$A$4:$DP$191,6,FALSE)","v":3109.5709999999999},{"$f":"VLOOKUP($A102,F1__World_Data!$A$4:$DP$191,5,FALSE)","v":3019.2240000000002},{"$f":"VLOOKUP($A102,F1__World_Data!$A$4:$DP$191,4,FALSE)","v":2931.1869999999999},{"$f":"VLOOKUP($A102,F1__World_Data!$A$4:$DP$191,3,FALSE)","v":2846.6010000000001},{"$f":"VLOOKUP($A102,F1__World_Data!$A$4:$DP$191,2,FALSE)","v":2766.319},null,{"$f":"VLOOKUP($A102,F1__World_Data!$A$4:$DP$191,120,FALSE)","v":76.068336425009335},{"$f":"VLOOKUP($A102,F1__World_Data!$A$4:$DP$191,119,FALSE)","v":75.865953913004901},{"$f":"VLOOKUP($A102,F1__World_Data!$A$4:$DP$191,118,FALSE)","v":75.635540867798511},{"$f":"VLOOKUP($A102,F1__World_Data!$A$4:$DP$191,117,FALSE)","v":75.392556877146006},{"$f":"VLOOKUP($A102,F1__World_Data!$A$4:$DP$191,116,FALSE)","v":75.125170291792728},{"$f":"VLOOKUP($A102,F1__World_Data!$A$4:$DP$191,115,FALSE)","v":74.848214388702232},{"$f":"VLOOKUP($A102,F1__World_Data!$A$4:$DP$191,114,FALSE)","v":74.562126746498507},{"$f":"VLOOKUP($A102,F1__World_Data!$A$4:$DP$191,113,FALSE)","v":74.265950123674273},{"$f":"VLOOKUP($A102,F1__World_Data!$A$4:$DP$191,112,FALSE)","v":74.012996899440708},{"$f":"VLOOKUP($A102,F1__World_Data!$A$4:$DP$191,111,FALSE)","v":73.759125114931521},{"$f":"VLOOKUP($A102,F1__World_Data!$A$4:$DP$191,110,FALSE)","v":73.469895568539044},{"$f":"VLOOKUP($A102,F1__World_Data!$A$4:$DP$191,109,FALSE)","v":73.200933776161776},{"$f":"VLOOKUP($A102,F1__World_Data!$A$4:$DP$191,108,FALSE)","v":72.9216442984265},{"$f":"VLOOKUP($A102,F1__World_Data!$A$4:$DP$191,107,FALSE)","v":72.624620749367708},{"$f":"VLOOKUP($A102,F1__World_Data!$A$4:$DP$191,106,FALSE)","v":72.361144594166916},{"$f":"VLOOKUP($A102,F1__World_Data!$A$4:$DP$191,105,FALSE)","v":72.067528417777268},{"$f":"VLOOKUP($A102,F1__World_Data!$A$4:$DP$191,104,FALSE)","v":71.774764827285424},{"$f":"VLOOKUP($A102,F1__World_Data!$A$4:$DP$191,103,FALSE)","v":71.481717211098157},{"$f":"VLOOKUP($A102,F1__World_Data!$A$4:$DP$191,102,FALSE)","v":71.171918909870755},{"$f":"VLOOKUP($A102,F1__World_Data!$A$4:$DP$191,101,FALSE)","v":70.855171197526346},{"$f":"VLOOKUP($A102,F1__World_Data!$A$4:$DP$191,100,FALSE)","v":70.584851818643017},{"$f":"VLOOKUP($A102,F1__World_Data!$A$4:$DP$191,99,FALSE)","v":70.32575149703986},{"$f":"VLOOKUP($A102,F1__World_Data!$A$4:$DP$191,98,FALSE)","v":70.064499687021623},{"$f":"VLOOKUP($A102,F1__World_Data!$A$4:$DP$191,97,FALSE)","v":69.796301486396516},{"$f":"VLOOKUP($A102,F1__World_Data!$A$4:$DP$191,96,FALSE)","v":69.61721148408563},{"$f":"VLOOKUP($A102,F1__World_Data!$A$4:$DP$191,95,FALSE)","v":69.417277196560377},{"$f":"VLOOKUP($A102,F1__World_Data!$A$4:$DP$191,94,FALSE)","v":69.245236745391523},{"$f":"VLOOKUP($A102,F1__World_Data!$A$4:$DP$191,93,FALSE)","v":69.097354110722435},{"$f":"VLOOKUP($A102,F1__World_Data!$A$4:$DP$191,92,FALSE)","v":68.927543371686994},{"$f":"VLOOKUP($A102,F1__World_Data!$A$4:$DP$191,91,FALSE)","v":68.772157149955859},{"$f":"VLOOKUP($A102,F1__World_Data!$A$4:$DP$191,90,FALSE)","v":68.581777928346071},{"$f":"VLOOKUP($A102,F1__World_Data!$A$4:$DP$191,89,FALSE)","v":68.409653362261437},{"$f":"VLOOKUP($A102,F1__World_Data!$A$4:$DP$191,88,FALSE)","v":68.172328301194725},{"$f":"VLOOKUP($A102,F1__World_Data!$A$4:$DP$191,87,FALSE)","v":67.904085288855867},{"$f":"VLOOKUP($A102,F1__World_Data!$A$4:$DP$191,86,FALSE)","v":67.614932268324949},{"$f":"VLOOKUP($A102,F1__World_Data!$A$4:$DP$191,85,FALSE)","v":67.282364494338324},{"$f":"VLOOKUP($A102,F1__World_Data!$A$4:$DP$191,84,FALSE)","v":66.959638237213269},{"$f":"VLOOKUP($A102,F1__World_Data!$A$4:$DP$191,83,FALSE)","v":66.564213929766609},{"$f":"VLOOKUP($A102,F1__World_Data!$A$4:$DP$191,82,FALSE)","v":66.144156041201228},{"$f":"VLOOKUP($A102,F1__World_Data!$A$4:$DP$191,81,FALSE)","v":65.727820559378813},{"$f":"VLOOKUP($A102,F1__World_Data!$A$4:$DP$191,80,FALSE)","v":65.233994849944651},{"$f":"VLOOKUP($A102,F1__World_Data!$A$4:$DP$191,79,FALSE)","v":64.70935721654665},{"$f":"VLOOKUP($A102,F1__World_Data!$A$4:$DP$191,78,FALSE)","v":64.125085843567575},{"$f":"VLOOKUP($A102,F1__World_Data!$A$4:$DP$191,77,FALSE)","v":63.514711961658492},{"$f":"VLOOKUP($A102,F1__World_Data!$A$4:$DP$191,76,FALSE)","v":62.843989656220664},{"$f":"VLOOKUP($A102,F1__World_Data!$A$4:$DP$191,75,FALSE)","v":62.144243620744909},{"$f":"VLOOKUP($A102,F1__World_Data!$A$4:$DP$191,74,FALSE)","v":61.448445533243543},{"$f":"VLOOKUP($A102,F1__World_Data!$A$4:$DP$191,73,FALSE)","v":60.65657690740349},{"$f":"VLOOKUP($A102,F1__World_Data!$A$4:$DP$191,72,FALSE)","v":59.739850578693151},{"$f":"VLOOKUP($A102,F1__World_Data!$A$4:$DP$191,71,FALSE)","v":58.700429236443419},{"$f":"VLOOKUP($A102,F1__World_Data!$A$4:$DP$191,70,FALSE)","v":57.470912613120909},{"$f":"VLOOKUP($A102,F1__World_Data!$A$4:$DP$191,69,FALSE)","v":56.109405381894881},{"$f":"VLOOKUP($A102,F1__World_Data!$A$4:$DP$191,68,FALSE)","v":54.636410491335049},{"$f":"VLOOKUP($A102,F1__World_Data!$A$4:$DP$191,67,FALSE)","v":53.115459657166191},{"$f":"VLOOKUP($A102,F1__World_Data!$A$4:$DP$191,66,FALSE)","v":51.75893886459086},{"$f":"VLOOKUP($A102,F1__World_Data!$A$4:$DP$191,65,FALSE)","v":50.573598301431964},{"$f":"VLOOKUP($A102,F1__World_Data!$A$4:$DP$191,64,FALSE)","v":49.607894087911561},{"$f":"VLOOKUP($A102,F1__World_Data!$A$4:$DP$191,63,FALSE)","v":48.944167502503497},{"$f":"VLOOKUP($A102,F1__World_Data!$A$4:$DP$191,62,FALSE)","v":48.415899060559688}]
["Kyrgyzstan",{"$f":"VLOOKUP($A103,F1__World_Data!$A$4:$DP$191,60,FALSE)","v":6304.0249999999996},{"$f":"VLOOKUP($A103,F1__World_Data!$A$4:$DP$191,59,FALSE)","v":6189.7269999999999},{"$f":"VLOOKUP($A103,F1__World_Data!$A$4:$DP$191,58,FALSE)","v":6074.3270000000002},{"$f":"VLOOKUP($A103,F1__World_Data!$A$4:$DP$191,57,FALSE)","v":5959.1260000000002},{"$f":"VLOOKUP($A103,F1__World_Data!$A$4:$DP$191,56,FALSE)","v":5844.5209999999997},{"$f":"VLOOKUP($A103,F1__World_Data!$A$4:$DP$191,55,FALSE)","v":5731.3119999999999},{"$f":"VLOOKUP($A103,F1__World_Data!$A$4:$DP$191,54,FALSE)","v":5621.5829999999996},{"$f":"VLOOKUP($A103,F1__World_Data!$A$4:$DP$191,53,FALSE)","v":5517.9269999999997},{"$f":"VLOOKUP($A103,F1__World_Data!$A$4:$DP$191,52,FALSE)","v":5422.2979999999998},{"$f":"VLOOKUP($A103,F1__World_Data!$A$4:$DP$191,51,FALSE)","v":5334.7079999999996},{"$f":"VLOOKUP($A103,F1__World_Data!$A$4:$DP$191,50,FALSE)","v":5254.9690000000001},{"$f":"VLOOKUP($A103,F1__World_Data!$A$4:$DP$191,49,FALSE)","v":5184.384},{"$f":"VLOOKUP($A103,F1__World_Data!$A$4:$DP$191,48,FALSE)","v":5124.3789999999999},{"$f":"VLOOKUP($A103,F1__World_Data!$A$4:$DP$191,47,FALSE)","v":5075.34},{"$f":"VLOOKUP($A103,F1__World_Data!$A$4:$DP$191,46,FALSE)","v":5038.9949999999999},{"$f":"VLOOKUP($A103,F1__World_Data!$A$4:$DP$191,45,FALSE)","v":5013.5379999999996},{"$f":"VLOOKUP($A103,F1__World_Data!$A$4:$DP$191,44,FALSE)","v":4991.4780000000001},{"$f":"VLOOKUP($A103,F1__World_Data!$A$4:$DP$191,43,FALSE)","v":4962.8389999999999},{"$f":"VLOOKUP($A103,F1__World_Data!$A$4:$DP$191,42,FALSE)","v":4920.7120000000004},{"$f":"VLOOKUP($A103,F1__World_Data!$A$4:$DP$191,41,FALSE)","v":4861.1210000000001},{"$f":"VLOOKUP($A103,F1__World_Data!$A$4:$DP$191,40,FALSE)","v":4786.7719999999999},{"$f":"VLOOKUP($A103,F1__World_Data!$A$4:$DP$191,39,FALSE)","v":4705.6509999999998},{"$f":"VLOOKUP($A103,F1__World_Data!$A$4:$DP$191,38,FALSE)","v":4629.4030000000002},{"$f":"VLOOKUP($A103,F1__World_Data!$A$4:$DP$191,37,FALSE)","v":4566.0959999999995},{"$f":"VLOOKUP($A103,F1__World_Data!$A$4:$DP$191,36,FALSE)","v":4518.808},{"$f":"VLOOKUP($A103,F1__World_Data!$A$4:$DP$191,35,FALSE)","v":4483.8440000000001},{"$f":"VLOOKUP($A103,F1__World_Data!$A$4:$DP$191,34,FALSE)","v":4454.192},{"$f":"VLOOKUP($A103,F1__World_Data!$A$4:$DP$191,33,FALSE)","v":4419.6270000000004},{"$f":"VLOOKUP($A103,F1__World_Data!$A$4:$DP$191,32,FALSE)","v":4372.8850000000002},{"$f":"VLOOKUP($A103,F1__World_Data!$A$4:$DP$191,31,FALSE)","v":4311.8559999999998},{"$f":"VLOOKUP($A103,F1__World_Data!$A$4:$DP$191,30,FALSE)","v":4239.2830000000004},{"$f":"VLOOKUP($A103,F1__World_Data!$A$4:$DP$191,29,FALSE)","v":4158.5839999999998},{"$f":"VLOOKUP($A103,F1__World_Data!$A$4:$DP$191,28,FALSE)","v":4075.1439999999998},{"$f":"VLOOKUP($A103,F1__World_Data!$A$4:$DP$191,27,FALSE)","v":3993.0770000000002},{"$f":"VLOOKUP($A103,F1__World_Data!$A$4:$DP$191,26,FALSE)","v":3913.018},{"$f":"VLOOKUP($A103,F1__World_Data!$A$4:$DP$191,25,FALSE)","v":3834.14},{"$f":"VLOOKUP($A103,F1__World_Data!$A$4:$DP$191,24,FALSE)","v":3757.1680000000001},{"$f":"VLOOKUP($A103,F1__World_Data!$A$4:$DP$191,23,FALSE)","v":3682.66},{"$f":"VLOOKUP($A103,F1__World_Data!$A$4:$DP$191,22,FALSE)","v":3610.9740000000002},{"$f":"VLOOKUP($A103,F1__World_Data!$A$4:$DP$191,21,FALSE)","v":3542.511},{"$f":"VLOOKUP($A103,F1__World_Data!$A$4:$DP$191,20,FALSE)","v":3477.2240000000002},{"$f":"VLOOKUP($A103,F1__World_Data!$A$4:$DP$191,19,FALSE)","v":3414.33},{"$f":"VLOOKUP($A103,F1__World_Data!$A$4:$DP$191,18,FALSE)","v":3352.6149999999998},{"$f":"VLOOKUP($A103,F1__World_Data!$A$4:$DP$191,17,FALSE)","v":3291.0740000000001},{"$f":"VLOOKUP($A103,F1__World_Data!$A$4:$DP$191,16,FALSE)","v":3229.683},{"$f":"VLOOKUP($A103,F1__World_Data!$A$4:$DP$191,15,FALSE)","v":3168.2930000000001},{"$f":"VLOOKUP($A103,F1__World_Data!$A$4:$DP$191,14,FALSE)","v":3105.5329999999999},{"$f":"VLOOKUP($A103,F1__World_Data!$A$4:$DP$191,13,FALSE)","v":3039.759},{"$f":"VLOOKUP($A103,F1__World_Data!$A$4:$DP$191,12,FALSE)","v":2969.857},{"$f":"VLOOKUP($A103,F1__World_Data!$A$4:$DP$191,11,FALSE)","v":2895.538},{"$f":"VLOOKUP($A103,F1__World_Data!$A$4:$DP$191,10,FALSE)","v":2817.3240000000001},{"$f":"VLOOKUP($A103,F1__World_Data!$A$4:$DP$191,9,FALSE)","v":2736.0740000000001},{"$f":"VLOOKUP($A103,F1__World_Data!$A$4:$DP$191,8,FALSE)","v":2653.05},{"$f":"VLOOKUP($A103,F1__World_Data!$A$4:$DP$191,7,FALSE)","v":2569.4479999999999},{"$f":"VLOOKUP($A103,F1__World_Data!$A$4:$DP$191,6,FALSE)","v":2485.4250000000002},{"$f":"VLOOKUP($A103,F1__World_Data!$A$4:$DP$191,5,FALSE)","v":2401.462},{"$f":"VLOOKUP($A103,F1__World_Data!$A$4:$DP$191,4,FALSE)","v":2319.4499999999998},{"$f":"VLOOKUP($A103,F1__World_Data!$A$4:$DP$191,3,FALSE)","v":2241.761},{"$f":"VLOOKUP($A103,F1__World_Data!$A$4:$DP$191,2,FALSE)","v":2170.0909999999999},null,{"$f":"VLOOKUP($A103,F1__World_Data!$A$4:$DP$191,120,FALSE)","v":68.116},{"$f":"VLOOKUP($A103,F1__World_Data!$A$4:$DP$191,119,FALSE)","v":67.850999999999999},{"$f":"VLOOKUP($A103,F1__World_Data!$A$4:$DP$191,118,FALSE)","v":67.576999999999998},{"$f":"VLOOKUP($A103,F1__World_Data!$A$4:$DP$191,117,FALSE)","v":67.290999999999997},{"$f":"VLOOKUP($A103,F1__World_Data!$A$4:$DP$191,116,FALSE)","v":66.995000000000005},{"$f":"VLOOKUP($A103,F1__World_Data!$A$4:$DP$191,115,FALSE)","v":66.69},{"$f":"VLOOKUP($A103,F1__World_Data!$A$4:$DP$191,114,FALSE)","v":66.381},{"$f":"VLOOKUP($A103,F1__World_Data!$A$4:$DP$191,113,FALSE)","v":66.072000000000003},{"$f":"VLOOKUP($A103,F1__World_Data!$A$4:$DP$191,112,FALSE)","v":65.769000000000005},{"$f":"VLOOKUP($A103,F1__World_Data!$A$4:$DP$191,111,FALSE)","v":65.48},{"$f":"VLOOKUP($A103,F1__World_Data!$A$4:$DP$191,110,FALSE)","v":65.207999999999998},{"$f":"VLOOKUP($A103,F1__World_Data!$A$4:$DP$191,109,FALSE)","v":64.953000000000003},{"$f":"VLOOKUP($A103,F1__World_Data!$A$4:$DP$191,108,FALSE)","v":64.712000000000003},{"$f":"VLOOKUP($A103,F1__World_Data!$A$4:$DP$191,107,FALSE)","v":64.477999999999994},{"$f":"VLOOKUP($A103,F1__World_Data!$A$4:$DP$191,106,FALSE)","v":64.242000000000004},{"$f":"VLOOKUP($A103,F1__World_Data!$A$4:$DP$191,105,FALSE)","v":63.994999999999997},{"$f":"VLOOKUP($A103,F1__World_Data!$A$4:$DP$191,104,FALSE)","v":63.731000000000002},{"$f":"VLOOKUP($A103,F1__World_Data!$A$4:$DP$191,103,FALSE)","v":63.445999999999998},{"$f":"VLOOKUP($A103,F1__World_Data!$A$4:$DP$191,102,FALSE)","v":63.143999999999998},{"$f":"VLOOKUP($A103,F1__World_Data!$A$4:$DP$191,101,FALSE)","v":62.829000000000001},{"$f":"VLOOKUP($A103,F1__World_Data!$A$4:$DP$191,100,FALSE)","v":62.509},{"$f":"VLOOKUP($A103,F1__World_Data!$A$4:$DP$191,99,FALSE)","v":62.188000000000002},{"$f":"VLOOKUP($A103,F1__World_Data!$A$4:$DP$191,98,FALSE)","v":61.866},{"$f":"VLOOKUP($A103,F1__World_Data!$A$4:$DP$191,97,FALSE)","v":61.539000000000001},{"$f":"VLOOKUP($A103,F1__World_Data!$A$4:$DP$191,96,FALSE)","v":61.198},{"$f":"VLOOKUP($A103,F1__World_Data!$A$4:$DP$191,95,FALSE)","v":60.837000000000003},{"$f":"VLOOKUP($A103,F1__World_Data!$A$4:$DP$191,94,FALSE)","v":60.454999999999998},{"$f":"VLOOKUP($A103,F1__World_Data!$A$4:$DP$191,93,FALSE)","v":60.052999999999997},{"$f":"VLOOKUP($A103,F1__World_Data!$A$4:$DP$191,92,FALSE)","v":59.636000000000003},{"$f":"VLOOKUP($A103,F1__World_Data!$A$4:$DP$191,91,FALSE)","v":59.209000000000003},{"$f":"VLOOKUP($A103,F1__World_Data!$A$4:$DP$191,90,FALSE)","v":58.783000000000001},{"$f":"VLOOKUP($A103,F1__World_Data!$A$4:$DP$191,89,FALSE)","v":58.366},{"$f":"VLOOKUP($A103,F1__World_Data!$A$4:$DP$191,88,FALSE)","v":57.962000000000003},{"$f":"VLOOKUP($A103,F1__World_Data!$A$4:$DP$191,87,FALSE)","v":57.579000000000001},{"$f":"VLOOKUP($A103,F1__World_Data!$A$4:$DP$191,86,FALSE)","v":57.220999999999997},{"$f":"VLOOKUP($A103,F1__World_Data!$A$4:$DP$191,85,FALSE)","v":56.886000000000003},{"$f":"VLOOKUP($A103,F1__World_Data!$A$4:$DP$191,84,FALSE)","v":56.569000000000003},{"$f":"VLOOKUP($A103,F1__World_Data!$A$4:$DP$191,83,FALSE)","v":56.265999999999998},{"$f":"VLOOKUP($A103,F1__World_Data!$A$4:$DP$191,82,FALSE)","v":55.970999999999997},{"$f":"VLOOKUP($A103,F1__World_Data!$A$4:$DP$191,81,FALSE)","v":55.679000000000002},{"$f":"VLOOKUP($A103,F1__World_Data!$A$4:$DP$191,80,FALSE)","v":55.381999999999998},{"$f":"VLOOKUP($A103,F1__World_Data!$A$4:$DP$191,79,FALSE)","v":55.073999999999998},{"$f":"VLOOKUP($A103,F1__World_Data!$A$4:$DP$191,78,FALSE)","v":54.747999999999998},{"$f":"VLOOKUP($A103,F1__World_Data!$A$4:$DP$191,77,FALSE)","v":54.399000000000001},{"$f":"VLOOKUP($A103,F1__World_Data!$A$4:$DP$191,76,FALSE)","v":54.027000000000001},{"$f":"VLOOKUP($A103,F1__World_Data!$A$4:$DP$191,75,FALSE)","v":53.633000000000003},{"$f":"VLOOKUP($A103,F1__World_Data!$A$4:$DP$191,74,FALSE)","v":53.218000000000004},{"$f":"VLOOKUP($A103,F1__World_Data!$A$4:$DP$191,73,FALSE)","v":52.781999999999996},{"$f":"VLOOKUP($A103,F1__World_Data!$A$4:$DP$191,72,FALSE)","v":52.323},{"$f":"VLOOKUP($A103,F1__World_Data!$A$4:$DP$191,71,FALSE)","v":51.837000000000003},{"$f":"VLOOKUP($A103,F1__World_Data!$A$4:$DP$191,70,FALSE)","v":51.326999999999998},{"$f":"VLOOKUP($A103,F1__World_Data!$A$4:$DP$191,69,FALSE)","v":50.795999999999999},{"$f":"VLOOKUP($A103,F1__World_Data!$A$4:$DP$191,68,FALSE)","v":50.25},{"$f":"VLOOKUP($A103,F1__World_Data!$A$4:$DP$191,67,FALSE)","v":49.697000000000003},{"$f":"VLOOKUP($A103,F1__World_Data!$A$4:$DP$191,66,FALSE)","v":49.145000000000003},{"$f":"VLOOKUP($A103,F1__World_Data!$A$4:$DP$191,65,FALSE)","v":48.600999999999999},{"$f":"VLOOKUP($A103,F1__World_Data!$A$4:$DP$191,64,FALSE)","v":48.070999999999998},{"$f":"VLOOKUP($A103,F1__World_Data!$A$4:$DP$191,63,FALSE)","v":47.557000000000002},{"$f":"VLOOKUP($A103,F1__World_Data!$A$4:$DP$191,62,FALSE)","v":47.061}]
["Singapore",{"$f":"VLOOKUP($A104,F1__World_Data!$A$4:$DP$191,60,FALSE)","v":5757.5029999999997},{"$f":"VLOOKUP($A104,F1__World_Data!$A$4:$DP$191,59,FALSE)","v":5708.0420000000004},{"$f":"VLOOKUP($A104,F1__World_Data!$A$4:$DP$191,58,FALSE)","v":5653.625},{"$f":"VLOOKUP($A104,F1__World_Data!$A$4:$DP$191,57,FALSE)","v":5592.143},{"$f":"VLOOKUP($A104,F1__World_Data!$A$4:$DP$191,56,FALSE)","v":5525.6279999999997},{"$f":"VLOOKUP($A104,F1__World_Data!$A$4:$DP$191,55,FALSE)","v":5453.732},{"$f":"VLOOKUP($A104,F1__World_Data!$A$4:$DP$191,54,FALSE)","v":5369.4690000000001},{"$f":"VLOOKUP($A104,F1__World_Data!$A$4:$DP$191,53,FALSE)","v":5263.64},{"$f":"VLOOKUP($A104,F1__World_Data!$A$4:$DP$191,52,FALSE)","v":5131.17},{"$f":"VLOOKUP($A104,F1__World_Data!$A$4:$DP$191,51,FALSE)","v":4966.6139999999996},{"$f":"VLOOKUP($A104,F1__World_Data!$A$4:$DP$191,50,FALSE)","v":4775.8100000000004},{"$f":"VLOOKUP($A104,F1__World_Data!$A$4:$DP$191,49,FALSE)","v":4578.6289999999999},{"$f":"VLOOKUP($A104,F1__World_Data!$A$4:$DP$191,48,FALSE)","v":4402.3239999999996},{"$f":"VLOOKUP($A104,F1__World_Data!$A$4:$DP$191,47,FALSE)","v":4265.6930000000002},{"$f":"VLOOKUP($A104,F1__World_Data!$A$4:$DP$191,46,FALSE)","v":4177.2020000000002},{"$f":"VLOOKUP($A104,F1__World_Data!$A$4:$DP$191,45,FALSE)","v":4129.2269999999999},{"$f":"VLOOKUP($A104,F1__World_Data!$A$4:$DP$191,44,FALSE)","v":4104.4070000000002},{"$f":"VLOOKUP($A104,F1__World_Data!$A$4:$DP$191,43,FALSE)","v":4077.15},{"$f":"VLOOKUP($A104,F1__World_Data!$A$4:$DP$191,42,FALSE)","v":4028.8719999999998},{"$f":"VLOOKUP($A104,F1__World_Data!$A$4:$DP$191,41,FALSE)","v":3954.741},{"$f":"VLOOKUP($A104,F1__World_Data!$A$4:$DP$191,40,FALSE)","v":3860.721},{"$f":"VLOOKUP($A104,F1__World_Data!$A$4:$DP$191,39,FALSE)","v":3752.1309999999999},{"$f":"VLOOKUP($A104,F1__World_Data!$A$4:$DP$191,38,FALSE)","v":3638.1770000000001},{"$f":"VLOOKUP($A104,F1__World_Data!$A$4:$DP$191,37,FALSE)","v":3525.9639999999999},{"$f":"VLOOKUP($A104,F1__World_Data!$A$4:$DP$191,36,FALSE)","v":3415.701},{"$f":"VLOOKUP($A104,F1__World_Data!$A$4:$DP$191,35,FALSE)","v":3305.8009999999999},{"$f":"VLOOKUP($A104,F1__World_Data!$A$4:$DP$191,34,FALSE)","v":3199.6419999999998},{"$f":"VLOOKUP($A104,F1__World_Data!$A$4:$DP$191,33,FALSE)","v":3101.1439999999998},{"$f":"VLOOKUP($A104,F1__World_Data!$A$4:$DP$191,32,FALSE)","v":3012.9679999999998},{"$f":"VLOOKUP($A104,F1__World_Data!$A$4:$DP$191,31,FALSE)","v":2937.277},{"$f":"VLOOKUP($A104,F1__World_Data!$A$4:$DP$191,30,FALSE)","v":2873.279},{"$f":"VLOOKUP($A104,F1__World_Data!$A$4:$DP$191,29,FALSE)","v":2816.9740000000002},{"$f":"VLOOKUP($A104,F1__World_Data!$A$4:$DP$191,28,FALSE)","v":2762.442},{"$f":"VLOOKUP($A104,F1__World_Data!$A$4:$DP$191,27,FALSE)","v":2705.5369999999998},{"$f":"VLOOKUP($A104,F1__World_Data!$A$4:$DP$191,26,FALSE)","v":2644.4949999999999},{"$f":"VLOOKUP($A104,F1__World_Data!$A$4:$DP$191,25,FALSE)","v":2580.915},{"$f":"VLOOKUP($A104,F1__World_Data!$A$4:$DP$191,24,FALSE)","v":2517.9830000000002},{"$f":"VLOOKUP($A104,F1__World_Data!$A$4:$DP$191,23,FALSE)","v":2460.5030000000002},{"$f":"VLOOKUP($A104,F1__World_Data!$A$4:$DP$191,22,FALSE)","v":2411.69},{"$f":"VLOOKUP($A104,F1__World_Data!$A$4:$DP$191,21,FALSE)","v":2372.5940000000001},{"$f":"VLOOKUP($A104,F1__World_Data!$A$4:$DP$191,20,FALSE)","v":2341.4009999999998},{"$f":"VLOOKUP($A104,F1__World_Data!$A$4:$DP$191,19,FALSE)","v":2314.9879999999998},{"$f":"VLOOKUP($A104,F1__World_Data!$A$4:$DP$191,18,FALSE)","v":2288.86},{"$f":"VLOOKUP($A104,F1__World_Data!$A$4:$DP$191,17,FALSE)","v":2259.721},{"$f":"VLOOKUP($A104,F1__World_Data!$A$4:$DP$191,16,FALSE)","v":2226.377},{"$f":"VLOOKUP($A104,F1__World_Data!$A$4:$DP$191,15,FALSE)","v":2189.6089999999999},{"$f":"VLOOKUP($A104,F1__World_Data!$A$4:$DP$191,14,FALSE)","v":2150.498},{"$f":"VLOOKUP($A104,F1__World_Data!$A$4:$DP$191,13,FALSE)","v":2110.9580000000001},{"$f":"VLOOKUP($A104,F1__World_Data!$A$4:$DP$191,12,FALSE)","v":2072.2840000000001},{"$f":"VLOOKUP($A104,F1__World_Data!$A$4:$DP$191,11,FALSE)","v":2034.5139999999999},{"$f":"VLOOKUP($A104,F1__World_Data!$A$4:$DP$191,10,FALSE)","v":1996.87},{"$f":"VLOOKUP($A104,F1__World_Data!$A$4:$DP$191,9,FALSE)","v":1958.7349999999999},{"$f":"VLOOKUP($A104,F1__World_Data!$A$4:$DP$191,8,FALSE)","v":1919.2739999999999},{"$f":"VLOOKUP($A104,F1__World_Data!$A$4:$DP$191,7,FALSE)","v":1877.826},{"$f":"VLOOKUP($A104,F1__World_Data!$A$4:$DP$191,6,FALSE)","v":1834.5170000000001},{"$f":"VLOOKUP($A104,F1__World_Data!$A$4:$DP$191,5,FALSE)","v":1789.374},{"$f":"VLOOKUP($A104,F1__World_Data!$A$4:$DP$191,4,FALSE)","v":1741.4570000000001},{"$f":"VLOOKUP($A104,F1__World_Data!$A$4:$DP$191,3,FALSE)","v":1689.6},{"$f":"VLOOKUP($A104,F1__World_Data!$A$4:$DP$191,2,FALSE)","v":1633.133},null,{"$f":"VLOOKUP($A104,F1__World_Data!$A$4:$DP$191,120,FALSE)","v":68.116},{"$f":"VLOOKUP($A104,F1__World_Data!$A$4:$DP$191,119,FALSE)","v":67.850999999999999},{"$f":"VLOOKUP($A104,F1__World_Data!$A$4:$DP$191,118,FALSE)","v":67.576999999999998},{"$f":"VLOOKUP($A104,F1__World_Data!$A$4:$DP$191,117,FALSE)","v":67.290999999999997},{"$f":"VLOOKUP($A104,F1__World_Data!$A$4:$DP$191,116,FALSE)","v":66.995000000000005},{"$f":"VLOOKUP($A104,F1__World_Data!$A$4:$DP$191,115,FALSE)","v":66.69},{"$f":"VLOOKUP($A104,F1__World_Data!$A$4:$DP$191,114,FALSE)","v":66.381},{"$f":"VLOOKUP($A104,F1__World_Data!$A$4:$DP$191,113,FALSE)","v":66.072000000000003},{"$f":"VLOOKUP($A104,F1__World_Data!$A$4:$DP$191,112,FALSE)","v":65.769000000000005},{"$f":"VLOOKUP($A104,F1__World_Data!$A$4:$DP$191,111,FALSE)","v":65.48},{"$f":"VLOOKUP($A104,F1__World_Data!$A$4:$DP$191,110,FALSE)","v":65.207999999999998},{"$f":"VLOOKUP($A104,F1__World_Data!$A$4:$DP$191,109,FALSE)","v":64.953000000000003},{"$f":"VLOOKUP($A104,F1__World_Data!$A$4:$DP$191,108,FALSE)","v":64.712000000000003},{"$f":"VLOOKUP($A104,F1__World_Data!$A$4:$DP$191,107,FALSE)","v":64.477999999999994},{"$f":"VLOOKUP($A104,F1__World_Data!$A$4:$DP$191,106,FALSE)","v":64.242000000000004},{"$f":"VLOOKUP($A104,F1__World_Data!$A$4:$DP$191,105,FALSE)","v":63.994999999999997},{"$f":"VLOOKUP($A104,F1__World_Data!$A$4:$DP$191,104,FALSE)","v":63.731000000000002},{"$f":"VLOOKUP($A104,F1__World_Data!$A$4:$DP$191,103,FALSE)","v":63.445999999999998},{"$f":"VLOOKUP($A104,F1__World_Data!$A$4:$DP$191,102,FALSE)","v":63.143999999999998},{"$f":"VLOOKUP($A104,F1__World_Data!$A$4:$DP$191,101,FALSE)","v":62.829000000000001},{"$f":"VLOOKUP($A104,F1__World_Data!$A$4:$DP$191,100,FALSE)","v":62.509},{"$f":"VLOOKUP($A104,F1__World_Data!$A$4:$DP$191,99,FALSE)","v":62.188000000000002},{"$f":"VLOOKUP($A104,F1__World_Data!$A$4:$DP$191,98,FALSE)","v":61.866},{"$f":"VLOOKUP($A104,F1__World_Data!$A$4:$DP$191,97,FALSE)","v":61.539000000000001},{"$f":"VLOOKUP($A104,F1__World_Data!$A$4:$DP$191,96,FALSE)","v":61.198},{"$f":"VLOOKUP($A104,F1__World_Data!$A$4:$DP$191,95,FALSE)","v":60.837000000000003},{"$f":"VLOOKUP($A104,F1__World_Data!$A$4:$DP$191,94,FALSE)","v":60.454999999999998},{"$f":"VLOOKUP($A104,F1__World_Data!$A$4:$DP$191,93,FALSE)","v":60.052999999999997},{"$f":"VLOOKUP($A104,F1__World_Data!$A$4:$DP$191,92,FALSE)","v":59.636000000000003},{"$f":"VLOOKUP($A104,F1__World_Data!$A$4:$DP$191,91,FALSE)","v":59.209000000000003},{"$f":"VLOOKUP($A104,F1__World_Data!$A$4:$DP$191,90,FALSE)","v":58.783000000000001},{"$f":"VLOOKUP($A104,F1__World_Data!$A$4:$DP$191,89,FALSE)","v":58.366},{"$f":"VLOOKUP($A104,F1__World_Data!$A$4:$DP$191,88,FALSE)","v":57.962000000000003},{"$f":"VLOOKUP($A104,F1__World_Data!$A$4:$DP$191,87,FALSE)","v":57.579000000000001},{"$f":"VLOOKUP($A104,F1__World_Data!$A$4:$DP$191,86,FALSE)","v":57.220999999999997},{"$f":"VLOOKUP($A104,F1__World_Data!$A$4:$DP$191,85,FALSE)","v":56.886000000000003},{"$f":"VLOOKUP($A104,F1__World_Data!$A$4:$DP$191,84,FALSE)","v":56.569000000000003},{"$f":"VLOOKUP($A104,F1__World_Data!$A$4:$DP$191,83,FALSE)","v":56.265999999999998},{"$f":"VLOOKUP($A104,F1__World_Data!$A$4:$DP$191,82,FALSE)","v":55.970999999999997},{"$f":"VLOOKUP($A104,F1__World_Data!$A$4:$DP$191,81,FALSE)","v":55.679000000000002},{"$f":"VLOOKUP($A104,F1__World_Data!$A$4:$DP$191,80,FALSE)","v":55.381999999999998},{"$f":"VLOOKUP($A104,F1__World_Data!$A$4:$DP$191,79,FALSE)","v":55.073999999999998},{"$f":"VLOOKUP($A104,F1__World_Data!$A$4:$DP$191,78,FALSE)","v":54.747999999999998},{"$f":"VLOOKUP($A104,F1__World_Data!$A$4:$DP$191,77,FALSE)","v":54.399000000000001},{"$f":"VLOOKUP($A104,F1__World_Data!$A$4:$DP$191,76,FALSE)","v":54.027000000000001},{"$f":"VLOOKUP($A104,F1__World_Data!$A$4:$DP$191,75,FALSE)","v":53.633000000000003},{"$f":"VLOOKUP($A104,F1__World_Data!$A$4:$DP$191,74,FALSE)","v":53.218000000000004},{"$f":"VLOOKUP($A104,F1__World_Data!$A$4:$DP$191,73,FALSE)","v":52.781999999999996},{"$f":"VLOOKUP($A104,F1__World_Data!$A$4:$DP$191,72,FALSE)","v":52.323},{"$f":"VLOOKUP($A104,F1__World_Data!$A$4:$DP$191,71,FALSE)","v":51.837000000000003},{"$f":"VLOOKUP($A104,F1__World_Data!$A$4:$DP$191,70,FALSE)","v":51.326999999999998},{"$f":"VLOOKUP($A104,F1__World_Data!$A$4:$DP$191,69,FALSE)","v":50.795999999999999},{"$f":"VLOOKUP($A104,F1__World_Data!$A$4:$DP$191,68,FALSE)","v":50.25},{"$f":"VLOOKUP($A104,F1__World_Data!$A$4:$DP$191,67,FALSE)","v":49.697000000000003},{"$f":"VLOOKUP($A104,F1__World_Data!$A$4:$DP$191,66,FALSE)","v":49.145000000000003},{"$f":"VLOOKUP($A104,F1__World_Data!$A$4:$DP$191,65,FALSE)","v":48.600999999999999},{"$f":"VLOOKUP($A104,F1__World_Data!$A$4:$DP$191,64,FALSE)","v":48.070999999999998},{"$f":"VLOOKUP($A104,F1__World_Data!$A$4:$DP$191,63,FALSE)","v":47.557000000000002},{"$f":"VLOOKUP($A104,F1__World_Data!$A$4:$DP$191,62,FALSE)","v":47.061}]
["Denmark",{"$f":"VLOOKUP($A105,F1__World_Data!$A$4:$DP$191,60,FALSE)","v":5752.1310000000003},{"$f":"VLOOKUP($A105,F1__World_Data!$A$4:$DP$191,59,FALSE)","v":5732.277},{"$f":"VLOOKUP($A105,F1__World_Data!$A$4:$DP$191,58,FALSE)","v":5711.3459999999995},{"$f":"VLOOKUP($A105,F1__World_Data!$A$4:$DP$191,57,FALSE)","v":5688.6949999999997},{"$f":"VLOOKUP($A105,F1__World_Data!$A$4:$DP$191,56,FALSE)","v":5664.1989999999996},{"$f":"VLOOKUP($A105,F1__World_Data!$A$4:$DP$191,55,FALSE)","v":5638.152},{"$f":"VLOOKUP($A105,F1__World_Data!$A$4:$DP$191,54,FALSE)","v":5610.9089999999997},{"$f":"VLOOKUP($A105,F1__World_Data!$A$4:$DP$191,53,FALSE)","v":5582.98},{"$f":"VLOOKUP($A105,F1__World_Data!$A$4:$DP$191,52,FALSE)","v":5554.8490000000002},{"$f":"VLOOKUP($A105,F1__World_Data!$A$4:$DP$191,51,FALSE)","v":5526.3890000000001},{"$f":"VLOOKUP($A105,F1__World_Data!$A$4:$DP$191,50,FALSE)","v":5497.7309999999998},{"$f":"VLOOKUP($A105,F1__World_Data!$A$4:$DP$191,49,FALSE)","v":5469.92},{"$f":"VLOOKUP($A105,F1__World_Data!$A$4:$DP$191,48,FALSE)","v":5444.2929999999997},{"$f":"VLOOKUP($A105,F1__World_Data!$A$4:$DP$191,47,FALSE)","v":5421.701},{"$f":"VLOOKUP($A105,F1__World_Data!$A$4:$DP$191,46,FALSE)","v":5402.7539999999999},{"$f":"VLOOKUP($A105,F1__World_Data!$A$4:$DP$191,45,FALSE)","v":5386.9679999999998},{"$f":"VLOOKUP($A105,F1__World_Data!$A$4:$DP$191,44,FALSE)","v":5372.7979999999998},{"$f":"VLOOKUP($A105,F1__World_Data!$A$4:$DP$191,43,FALSE)","v":5358.0590000000002},{"$f":"VLOOKUP($A105,F1__World_Data!$A$4:$DP$191,42,FALSE)","v":5341.192},{"$f":"VLOOKUP($A105,F1__World_Data!$A$4:$DP$191,41,FALSE)","v":5321.7709999999997},{"$f":"VLOOKUP($A105,F1__World_Data!$A$4:$DP$191,40,FALSE)","v":5300.38},{"$f":"VLOOKUP($A105,F1__World_Data!$A$4:$DP$191,39,FALSE)","v":5277.7129999999997},{"$f":"VLOOKUP($A105,F1__World_Data!$A$4:$DP$191,38,FALSE)","v":5254.857},{"$f":"VLOOKUP($A105,F1__World_Data!$A$4:$DP$191,37,FALSE)","v":5232.7089999999998},{"$f":"VLOOKUP($A105,F1__World_Data!$A$4:$DP$191,36,FALSE)","v":5211.3339999999998},{"$f":"VLOOKUP($A105,F1__World_Data!$A$4:$DP$191,35,FALSE)","v":5190.7449999999999},{"$f":"VLOOKUP($A105,F1__World_Data!$A$4:$DP$191,34,FALSE)","v":5171.6540000000005},{"$f":"VLOOKUP($A105,F1__World_Data!$A$4:$DP$191,33,FALSE)","v":5154.9059999999999},{"$f":"VLOOKUP($A105,F1__World_Data!$A$4:$DP$191,32,FALSE)","v":5141.1170000000002},{"$f":"VLOOKUP($A105,F1__World_Data!$A$4:$DP$191,31,FALSE)","v":5130.3620000000001},{"$f":"VLOOKUP($A105,F1__World_Data!$A$4:$DP$191,30,FALSE)","v":5122.442},{"$f":"VLOOKUP($A105,F1__World_Data!$A$4:$DP$191,29,FALSE)","v":5117.2820000000002},{"$f":"VLOOKUP($A105,F1__World_Data!$A$4:$DP$191,28,FALSE)","v":5114.6450000000004},{"$f":"VLOOKUP($A105,F1__World_Data!$A$4:$DP$191,27,FALSE)","v":5114.25},{"$f":"VLOOKUP($A105,F1__World_Data!$A$4:$DP$191,26,FALSE)","v":5116.0550000000003},{"$f":"VLOOKUP($A105,F1__World_Data!$A$4:$DP$191,25,FALSE)","v":5119.607},{"$f":"VLOOKUP($A105,F1__World_Data!$A$4:$DP$191,24,FALSE)","v":5123.3490000000002},{"$f":"VLOOKUP($A105,F1__World_Data!$A$4:$DP$191,23,FALSE)","v":5125.2960000000003},{"$f":"VLOOKUP($A105,F1__World_Data!$A$4:$DP$191,22,FALSE)","v":5123.9449999999997},{"$f":"VLOOKUP($A105,F1__World_Data!$A$4:$DP$191,21,FALSE)","v":5118.7110000000002},{"$f":"VLOOKUP($A105,F1__World_Data!$A$4:$DP$191,20,FALSE)","v":5109.6930000000002},{"$f":"VLOOKUP($A105,F1__World_Data!$A$4:$DP$191,19,FALSE)","v":5097.049},{"$f":"VLOOKUP($A105,F1__World_Data!$A$4:$DP$191,18,FALSE)","v":5081.2619999999997},{"$f":"VLOOKUP($A105,F1__World_Data!$A$4:$DP$191,17,FALSE)","v":5062.7309999999998},{"$f":"VLOOKUP($A105,F1__World_Data!$A$4:$DP$191,16,FALSE)","v":5041.4129999999996},{"$f":"VLOOKUP($A105,F1__World_Data!$A$4:$DP$191,15,FALSE)","v":5017.2470000000003},{"$f":"VLOOKUP($A105,F1__World_Data!$A$4:$DP$191,14,FALSE)","v":4990.5510000000004},{"$f":"VLOOKUP($A105,F1__World_Data!$A$4:$DP$191,13,FALSE)","v":4961.759},{"$f":"VLOOKUP($A105,F1__World_Data!$A$4:$DP$191,12,FALSE)","v":4931.2389999999996},{"$f":"VLOOKUP($A105,F1__World_Data!$A$4:$DP$191,11,FALSE)","v":4899.2889999999998},{"$f":"VLOOKUP($A105,F1__World_Data!$A$4:$DP$191,10,FALSE)","v":4866.0690000000004},{"$f":"VLOOKUP($A105,F1__World_Data!$A$4:$DP$191,9,FALSE)","v":4831.75},{"$f":"VLOOKUP($A105,F1__World_Data!$A$4:$DP$191,8,FALSE)","v":4796.4809999999998},{"$f":"VLOOKUP($A105,F1__World_Data!$A$4:$DP$191,7,FALSE)","v":4760.4610000000002},{"$f":"VLOOKUP($A105,F1__World_Data!$A$4:$DP$191,6,FALSE)","v":4723.6229999999996},{"$f":"VLOOKUP($A105,F1__World_Data!$A$4:$DP$191,5,FALSE)","v":4686.2690000000002},{"$f":"VLOOKUP($A105,F1__World_Data!$A$4:$DP$191,4,FALSE)","v":4649.3410000000003},{"$f":"VLOOKUP($A105,F1__World_Data!$A$4:$DP$191,3,FALSE)","v":4614.027},{"$f":"VLOOKUP($A105,F1__World_Data!$A$4:$DP$191,2,FALSE)","v":4581.0990000000002},null,{"$f":"VLOOKUP($A105,F1__World_Data!$A$4:$DP$191,120,FALSE)","v":78.978048780487811},{"$f":"VLOOKUP($A105,F1__World_Data!$A$4:$DP$191,119,FALSE)","v":78.978048780487811},{"$f":"VLOOKUP($A105,F1__World_Data!$A$4:$DP$191,118,FALSE)","v":79.026829268292687},{"$f":"VLOOKUP($A105,F1__World_Data!$A$4:$DP$191,117,FALSE)","v":78.578048780487805},{"$f":"VLOOKUP($A105,F1__World_Data!$A$4:$DP$191,116,FALSE)","v":78.824390243902442},{"$f":"VLOOKUP($A105,F1__World_Data!$A$4:$DP$191,115,FALSE)","v":78.175609756097558},{"$f":"VLOOKUP($A105,F1__World_Data!$A$4:$DP$191,114,FALSE)","v":78.075609756097577},{"$f":"VLOOKUP($A105,F1__World_Data!$A$4:$DP$191,113,FALSE)","v":77.873170731707319},{"$f":"VLOOKUP($A105,F1__World_Data!$A$4:$DP$191,112,FALSE)","v":77.424390243902451},{"$f":"VLOOKUP($A105,F1__World_Data!$A$4:$DP$191,111,FALSE)","v":77.078048780487805},{"$f":"VLOOKUP($A105,F1__World_Data!$A$4:$DP$191,110,FALSE)","v":76.975609756097569},{"$f":"VLOOKUP($A105,F1__World_Data!$A$4:$DP$191,109,FALSE)","v":76.724390243902462},{"$f":"VLOOKUP($A105,F1__World_Data!$A$4:$DP$191,108,FALSE)","v":76.524390243902445},{"$f":"VLOOKUP($A105,F1__World_Data!$A$4:$DP$191,107,FALSE)","v":75.924390243902451},{"$f":"VLOOKUP($A105,F1__World_Data!$A$4:$DP$191,106,FALSE)","v":75.721951219512206},{"$f":"VLOOKUP($A105,F1__World_Data!$A$4:$DP$191,105,FALSE)","v":75.170731707317088},{"$f":"VLOOKUP($A105,F1__World_Data!$A$4:$DP$191,104,FALSE)","v":75.221951219512192},{"$f":"VLOOKUP($A105,F1__World_Data!$A$4:$DP$191,103,FALSE)","v":75.17317073170733},{"$f":"VLOOKUP($A105,F1__World_Data!$A$4:$DP$191,102,FALSE)","v":74.968292682926844},{"$f":"VLOOKUP($A105,F1__World_Data!$A$4:$DP$191,101,FALSE)","v":74.668292682926833},{"$f":"VLOOKUP($A105,F1__World_Data!$A$4:$DP$191,100,FALSE)","v":74.514634146341464},{"$f":"VLOOKUP($A105,F1__World_Data!$A$4:$DP$191,99,FALSE)","v":73.824878048780505},{"$f":"VLOOKUP($A105,F1__World_Data!$A$4:$DP$191,98,FALSE)","v":73.714634146341467},{"$f":"VLOOKUP($A105,F1__World_Data!$A$4:$DP$191,97,FALSE)","v":73.074878048780505},{"$f":"VLOOKUP($A105,F1__World_Data!$A$4:$DP$191,96,FALSE)","v":72.972682926829265},{"$f":"VLOOKUP($A105,F1__World_Data!$A$4:$DP$191,95,FALSE)","v":72.767804878048793},{"$f":"VLOOKUP($A105,F1__World_Data!$A$4:$DP$191,94,FALSE)","v":72.271707317073179},{"$f":"VLOOKUP($A105,F1__World_Data!$A$4:$DP$191,93,FALSE)","v":71.898292682926837},{"$f":"VLOOKUP($A105,F1__World_Data!$A$4:$DP$191,92,FALSE)","v":71.383902439024411},{"$f":"VLOOKUP($A105,F1__World_Data!$A$4:$DP$191,91,FALSE)","v":71.675609756097572},{"$f":"VLOOKUP($A105,F1__World_Data!$A$4:$DP$191,90,FALSE)","v":71.64146341463416},{"$f":"VLOOKUP($A105,F1__World_Data!$A$4:$DP$191,89,FALSE)","v":71.445609756097568},{"$f":"VLOOKUP($A105,F1__World_Data!$A$4:$DP$191,88,FALSE)","v":70.997317073170734},{"$f":"VLOOKUP($A105,F1__World_Data!$A$4:$DP$191,87,FALSE)","v":71.046341463414635},{"$f":"VLOOKUP($A105,F1__World_Data!$A$4:$DP$191,86,FALSE)","v":70.837560975609762},{"$f":"VLOOKUP($A105,F1__World_Data!$A$4:$DP$191,85,FALSE)","v":70.591463414634148},{"$f":"VLOOKUP($A105,F1__World_Data!$A$4:$DP$191,84,FALSE)","v":70.807804878048785},{"$f":"VLOOKUP($A105,F1__World_Data!$A$4:$DP$191,83,FALSE)","v":70.722195121951231},{"$f":"VLOOKUP($A105,F1__World_Data!$A$4:$DP$191,82,FALSE)","v":70.278048780487808},{"$f":"VLOOKUP($A105,F1__World_Data!$A$4:$DP$191,81,FALSE)","v":70.749512195121952},{"$f":"VLOOKUP($A105,F1__World_Data!$A$4:$DP$191,80,FALSE)","v":70.643902439024387},{"$f":"VLOOKUP($A105,F1__World_Data!$A$4:$DP$191,79,FALSE)","v":70.573414634146346},{"$f":"VLOOKUP($A105,F1__World_Data!$A$4:$DP$191,78,FALSE)","v":70.532682926829281},{"$f":"VLOOKUP($A105,F1__World_Data!$A$4:$DP$191,77,FALSE)","v":70.414634146341484},{"$f":"VLOOKUP($A105,F1__World_Data!$A$4:$DP$191,76,FALSE)","v":70.086585365853665},{"$f":"VLOOKUP($A105,F1__World_Data!$A$4:$DP$191,75,FALSE)","v":70.022682926829276},{"$f":"VLOOKUP($A105,F1__World_Data!$A$4:$DP$191,74,FALSE)","v":70.176585365853683},{"$f":"VLOOKUP($A105,F1__World_Data!$A$4:$DP$191,73,FALSE)","v":69.677073170731731},{"$f":"VLOOKUP($A105,F1__World_Data!$A$4:$DP$191,72,FALSE)","v":69.440243902439036},{"$f":"VLOOKUP($A105,F1__World_Data!$A$4:$DP$191,71,FALSE)","v":69.3670731707317},{"$f":"VLOOKUP($A105,F1__World_Data!$A$4:$DP$191,70,FALSE)","v":69.840731707317076},{"$f":"VLOOKUP($A105,F1__World_Data!$A$4:$DP$191,69,FALSE)","v":70.264146341463416},{"$f":"VLOOKUP($A105,F1__World_Data!$A$4:$DP$191,68,FALSE)","v":70.384878048780507},{"$f":"VLOOKUP($A105,F1__World_Data!$A$4:$DP$191,67,FALSE)","v":70.163170731707325},{"$f":"VLOOKUP($A105,F1__World_Data!$A$4:$DP$191,66,FALSE)","v":70.45951219512196},{"$f":"VLOOKUP($A105,F1__World_Data!$A$4:$DP$191,65,FALSE)","v":70.304390243902461},{"$f":"VLOOKUP($A105,F1__World_Data!$A$4:$DP$191,64,FALSE)","v":69.786829268292678},{"$f":"VLOOKUP($A105,F1__World_Data!$A$4:$DP$191,63,FALSE)","v":70.512682926829271},{"$f":"VLOOKUP($A105,F1__World_Data!$A$4:$DP$191,62,FALSE)","v":70.348780487804888}]
["Finland",{"$f":"VLOOKUP($A106,F1__World_Data!$A$4:$DP$191,60,FALSE)","v":5522.585},{"$f":"VLOOKUP($A106,F1__World_Data!$A$4:$DP$191,59,FALSE)","v":5511.3720000000003},{"$f":"VLOOKUP($A106,F1__World_Data!$A$4:$DP$191,58,FALSE)","v":5497.7139999999999},{"$f":"VLOOKUP($A106,F1__World_Data!$A$4:$DP$191,57,FALSE)","v":5481.1279999999997},{"$f":"VLOOKUP($A106,F1__World_Data!$A$4:$DP$191,56,FALSE)","v":5461.41},{"$f":"VLOOKUP($A106,F1__World_Data!$A$4:$DP$191,55,FALSE)","v":5438.9840000000004},{"$f":"VLOOKUP($A106,F1__World_Data!$A$4:$DP$191,54,FALSE)","v":5414.7690000000002},{"$f":"VLOOKUP($A106,F1__World_Data!$A$4:$DP$191,53,FALSE)","v":5390.0360000000001},{"$f":"VLOOKUP($A106,F1__World_Data!$A$4:$DP$191,52,FALSE)","v":5365.7839999999997},{"$f":"VLOOKUP($A106,F1__World_Data!$A$4:$DP$191,51,FALSE)","v":5342.2659999999996},{"$f":"VLOOKUP($A106,F1__World_Data!$A$4:$DP$191,50,FALSE)","v":5319.4520000000002},{"$f":"VLOOKUP($A106,F1__World_Data!$A$4:$DP$191,49,FALSE)","v":5297.741},{"$f":"VLOOKUP($A106,F1__World_Data!$A$4:$DP$191,48,FALSE)","v":5277.49},{"$f":"VLOOKUP($A106,F1__World_Data!$A$4:$DP$191,47,FALSE)","v":5258.933},{"$f":"VLOOKUP($A106,F1__World_Data!$A$4:$DP$191,46,FALSE)","v":5242.1750000000002},{"$f":"VLOOKUP($A106,F1__World_Data!$A$4:$DP$191,45,FALSE)","v":5227.1059999999998},{"$f":"VLOOKUP($A106,F1__World_Data!$A$4:$DP$191,44,FALSE)","v":5213.3680000000004},{"$f":"VLOOKUP($A106,F1__World_Data!$A$4:$DP$191,43,FALSE)","v":5200.4750000000004},{"$f":"VLOOKUP($A106,F1__World_Data!$A$4:$DP$191,42,FALSE)","v":5187.9530000000004},{"$f":"VLOOKUP($A106,F1__World_Data!$A$4:$DP$191,41,FALSE)","v":5175.9210000000003},{"$f":"VLOOKUP($A106,F1__World_Data!$A$4:$DP$191,40,FALSE)","v":5164.2359999999999},{"$f":"VLOOKUP($A106,F1__World_Data!$A$4:$DP$191,39,FALSE)","v":5151.74},{"$f":"VLOOKUP($A106,F1__World_Data!$A$4:$DP$191,38,FALSE)","v":5136.9840000000004},{"$f":"VLOOKUP($A106,F1__World_Data!$A$4:$DP$191,37,FALSE)","v":5119.0119999999997},{"$f":"VLOOKUP($A106,F1__World_Data!$A$4:$DP$191,36,FALSE)","v":5097.09},{"$f":"VLOOKUP($A106,F1__World_Data!$A$4:$DP$191,35,FALSE)","v":5071.7820000000002},{"$f":"VLOOKUP($A106,F1__World_Data!$A$4:$DP$191,34,FALSE)","v":5044.9279999999999},{"$f":"VLOOKUP($A106,F1__World_Data!$A$4:$DP$191,33,FALSE)","v":5019.134},{"$f":"VLOOKUP($A106,F1__World_Data!$A$4:$DP$191,32,FALSE)","v":4996.22},{"$f":"VLOOKUP($A106,F1__World_Data!$A$4:$DP$191,31,FALSE)","v":4977.1180000000004},{"$f":"VLOOKUP($A106,F1__World_Data!$A$4:$DP$191,30,FALSE)","v":4961.0969999999998},{"$f":"VLOOKUP($A106,F1__World_Data!$A$4:$DP$191,29,FALSE)","v":4946.3680000000004},{"$f":"VLOOKUP($A106,F1__World_Data!$A$4:$DP$191,28,FALSE)","v":4930.3419999999996},{"$f":"VLOOKUP($A106,F1__World_Data!$A$4:$DP$191,27,FALSE)","v":4911.22},{"$f":"VLOOKUP($A106,F1__World_Data!$A$4:$DP$191,26,FALSE)","v":4888.1970000000001},{"$f":"VLOOKUP($A106,F1__World_Data!$A$4:$DP$191,25,FALSE)","v":4862.1710000000003},{"$f":"VLOOKUP($A106,F1__World_Data!$A$4:$DP$191,24,FALSE)","v":4835.1019999999999},{"$f":"VLOOKUP($A106,F1__World_Data!$A$4:$DP$191,23,FALSE)","v":4809.8069999999998},{"$f":"VLOOKUP($A106,F1__World_Data!$A$4:$DP$191,22,FALSE)","v":4788.2470000000003},{"$f":"VLOOKUP($A106,F1__World_Data!$A$4:$DP$191,21,FALSE)","v":4771.3410000000003},{"$f":"VLOOKUP($A106,F1__World_Data!$A$4:$DP$191,20,FALSE)","v":4758.2560000000003},{"$f":"VLOOKUP($A106,F1__World_Data!$A$4:$DP$191,19,FALSE)","v":4746.9290000000001},{"$f":"VLOOKUP($A106,F1__World_Data!$A$4:$DP$191,18,FALSE)","v":4734.4319999999998},{"$f":"VLOOKUP($A106,F1__World_Data!$A$4:$DP$191,17,FALSE)","v":4718.7439999999997},{"$f":"VLOOKUP($A106,F1__World_Data!$A$4:$DP$191,16,FALSE)","v":4698.7820000000002},{"$f":"VLOOKUP($A106,F1__World_Data!$A$4:$DP$191,15,FALSE)","v":4675.45},{"$f":"VLOOKUP($A106,F1__World_Data!$A$4:$DP$191,14,FALSE)","v":4651.174},{"$f":"VLOOKUP($A106,F1__World_Data!$A$4:$DP$191,13,FALSE)","v":4629.3710000000001},{"$f":"VLOOKUP($A106,F1__World_Data!$A$4:$DP$191,12,FALSE)","v":4612.3649999999998},{"$f":"VLOOKUP($A106,F1__World_Data!$A$4:$DP$191,11,FALSE)","v":4601.0330000000004},{"$f":"VLOOKUP($A106,F1__World_Data!$A$4:$DP$191,10,FALSE)","v":4594.0209999999997},{"$f":"VLOOKUP($A106,F1__World_Data!$A$4:$DP$191,9,FALSE)","v":4588.66},{"$f":"VLOOKUP($A106,F1__World_Data!$A$4:$DP$191,8,FALSE)","v":4581.1149999999998},{"$f":"VLOOKUP($A106,F1__World_Data!$A$4:$DP$191,7,FALSE)","v":4568.6040000000003},{"$f":"VLOOKUP($A106,F1__World_Data!$A$4:$DP$191,6,FALSE)","v":4550.25},{"$f":"VLOOKUP($A106,F1__World_Data!$A$4:$DP$191,5,FALSE)","v":4526.7380000000003},{"$f":"VLOOKUP($A106,F1__World_Data!$A$4:$DP$191,4,FALSE)","v":4498.8209999999999},{"$f":"VLOOKUP($A106,F1__World_Data!$A$4:$DP$191,3,FALSE)","v":4467.7629999999999},{"$f":"VLOOKUP($A106,F1__World_Data!$A$4:$DP$191,2,FALSE)","v":4434.5929999999998},null,{"$f":"VLOOKUP($A106,F1__World_Data!$A$4:$DP$191,120,FALSE)","v":81.834146341463423},{"$f":"VLOOKUP($A106,F1__World_Data!$A$4:$DP$191,119,FALSE)","v":81.631707317073193},{"$f":"VLOOKUP($A106,F1__World_Data!$A$4:$DP$191,118,FALSE)","v":81.429268292682934},{"$f":"VLOOKUP($A106,F1__World_Data!$A$4:$DP$191,117,FALSE)","v":81.480487804878067},{"$f":"VLOOKUP($A106,F1__World_Data!$A$4:$DP$191,116,FALSE)","v":81.180487804878069},{"$f":"VLOOKUP($A106,F1__World_Data!$A$4:$DP$191,115,FALSE)","v":80.975609756097569},{"$f":"VLOOKUP($A106,F1__World_Data!$A$4:$DP$191,114,FALSE)","v":80.626829268292695},{"$f":"VLOOKUP($A106,F1__World_Data!$A$4:$DP$191,113,FALSE)","v":80.470731707317086},{"$f":"VLOOKUP($A106,F1__World_Data!$A$4:$DP$191,112,FALSE)","v":79.870731707317091},{"$f":"VLOOKUP($A106,F1__World_Data!$A$4:$DP$191,111,FALSE)","v":79.719512195121965},{"$f":"VLOOKUP($A106,F1__World_Data!$A$4:$DP$191,110,FALSE)","v":79.568292682926838},{"$f":"VLOOKUP($A106,F1__World_Data!$A$4:$DP$191,109,FALSE)","v":79.263414634146358},{"$f":"VLOOKUP($A106,F1__World_Data!$A$4:$DP$191,108,FALSE)","v":79.214634146341467},{"$f":"VLOOKUP($A106,F1__World_Data!$A$4:$DP$191,107,FALSE)","v":78.817073170731703},{"$f":"VLOOKUP($A106,F1__World_Data!$A$4:$DP$191,106,FALSE)","v":78.714634146341481},{"$f":"VLOOKUP($A106,F1__World_Data!$A$4:$DP$191,105,FALSE)","v":78.368292682926835},{"$f":"VLOOKUP($A106,F1__World_Data!$A$4:$DP$191,104,FALSE)","v":78.119512195121956},{"$f":"VLOOKUP($A106,F1__World_Data!$A$4:$DP$191,103,FALSE)","v":77.965853658536588},{"$f":"VLOOKUP($A106,F1__World_Data!$A$4:$DP$191,102,FALSE)","v":77.465853658536602},{"$f":"VLOOKUP($A106,F1__World_Data!$A$4:$DP$191,101,FALSE)","v":77.291219512195127},{"$f":"VLOOKUP($A106,F1__World_Data!$A$4:$DP$191,100,FALSE)","v":77.090731707317076},{"$f":"VLOOKUP($A106,F1__World_Data!$A$4:$DP$191,99,FALSE)","v":76.878536585365865},{"$f":"VLOOKUP($A106,F1__World_Data!$A$4:$DP$191,98,FALSE)","v":76.69341463414635},{"$f":"VLOOKUP($A106,F1__World_Data!$A$4:$DP$191,97,FALSE)","v":76.409512195121962},{"$f":"VLOOKUP($A106,F1__World_Data!$A$4:$DP$191,96,FALSE)","v":76.395609756097556},{"$f":"VLOOKUP($A106,F1__World_Data!$A$4:$DP$191,95,FALSE)","v":75.705121951219525},{"$f":"VLOOKUP($A106,F1__World_Data!$A$4:$DP$191,94,FALSE)","v":75.455365853658549},{"$f":"VLOOKUP($A106,F1__World_Data!$A$4:$DP$191,93,FALSE)","v":75.227560975609762},{"$f":"VLOOKUP($A106,F1__World_Data!$A$4:$DP$191,92,FALSE)","v":74.813170731707316},{"$f":"VLOOKUP($A106,F1__World_Data!$A$4:$DP$191,91,FALSE)","v":74.792195121951238},{"$f":"VLOOKUP($A106,F1__World_Data!$A$4:$DP$191,90,FALSE)","v":74.577073170731708},{"$f":"VLOOKUP($A106,F1__World_Data!$A$4:$DP$191,89,FALSE)","v":74.591951219512197},{"$f":"VLOOKUP($A106,F1__World_Data!$A$4:$DP$191,88,FALSE)","v":74.56},{"$f":"VLOOKUP($A106,F1__World_Data!$A$4:$DP$191,87,FALSE)","v":74.222926829268303},{"$f":"VLOOKUP($A106,F1__World_Data!$A$4:$DP$191,86,FALSE)","v":74.519024390243914},{"$f":"VLOOKUP($A106,F1__World_Data!$A$4:$DP$191,85,FALSE)","v":74.2009756097561},{"$f":"VLOOKUP($A106,F1__World_Data!$A$4:$DP$191,84,FALSE)","v":74.298048780487818},{"$f":"VLOOKUP($A106,F1__World_Data!$A$4:$DP$191,83,FALSE)","v":73.746585365853662},{"$f":"VLOOKUP($A106,F1__World_Data!$A$4:$DP$191,82,FALSE)","v":73.44},{"$f":"VLOOKUP($A106,F1__World_Data!$A$4:$DP$191,81,FALSE)","v":73.155365853658552},{"$f":"VLOOKUP($A106,F1__World_Data!$A$4:$DP$191,80,FALSE)","v":72.89707317073173},{"$f":"VLOOKUP($A106,F1__World_Data!$A$4:$DP$191,79,FALSE)","v":72.350243902439018},{"$f":"VLOOKUP($A106,F1__World_Data!$A$4:$DP$191,78,FALSE)","v":71.812926829268292},{"$f":"VLOOKUP($A106,F1__World_Data!$A$4:$DP$191,77,FALSE)","v":71.673658536585378},{"$f":"VLOOKUP($A106,F1__World_Data!$A$4:$DP$191,76,FALSE)","v":71.134878048780493},{"$f":"VLOOKUP($A106,F1__World_Data!$A$4:$DP$191,75,FALSE)","v":71.223658536585376},{"$f":"VLOOKUP($A106,F1__World_Data!$A$4:$DP$191,74,FALSE)","v":70.707317073170728},{"$f":"VLOOKUP($A106,F1__World_Data!$A$4:$DP$191,73,FALSE)","v":70.017560975609769},{"$f":"VLOOKUP($A106,F1__World_Data!$A$4:$DP$191,72,FALSE)","v":70.179512195121958},{"$f":"VLOOKUP($A106,F1__World_Data!$A$4:$DP$191,71,FALSE)","v":69.503414634146353},{"$f":"VLOOKUP($A106,F1__World_Data!$A$4:$DP$191,70,FALSE)","v":69.616341463414642},{"$f":"VLOOKUP($A106,F1__World_Data!$A$4:$DP$191,69,FALSE)","v":69.666585365853678},{"$f":"VLOOKUP($A106,F1__World_Data!$A$4:$DP$191,68,FALSE)","v":69.477073170731714},{"$f":"VLOOKUP($A106,F1__World_Data!$A$4:$DP$191,67,FALSE)","v":68.977804878048772},{"$f":"VLOOKUP($A106,F1__World_Data!$A$4:$DP$191,66,FALSE)","v":69.220975609756096},{"$f":"VLOOKUP($A106,F1__World_Data!$A$4:$DP$191,65,FALSE)","v":69.012682926829271},{"$f":"VLOOKUP($A106,F1__World_Data!$A$4:$DP$191,64,FALSE)","v":68.577804878048781},{"$f":"VLOOKUP($A106,F1__World_Data!$A$4:$DP$191,63,FALSE)","v":68.844146341463414},{"$f":"VLOOKUP($A106,F1__World_Data!$A$4:$DP$191,62,FALSE)","v":68.819756097560983}]
["Slovakia",{"$f":"VLOOKUP($A107,F1__World_Data!$A$4:$DP$191,60,FALSE)","v":5453.0169999999998},{"$f":"VLOOKUP($A107,F1__World_Data!$A$4:$DP$191,59,FALSE)","v":5447.9030000000002},{"$f":"VLOOKUP($A107,F1__World_Data!$A$4:$DP$191,58,FALSE)","v":5442.0010000000002},{"$f":"VLOOKUP($A107,F1__World_Data!$A$4:$DP$191,57,FALSE)","v":5435.6139999999996},{"$f":"VLOOKUP($A107,F1__World_Data!$A$4:$DP$191,56,FALSE)","v":5428.7979999999998},{"$f":"VLOOKUP($A107,F1__World_Data!$A$4:$DP$191,55,FALSE)","v":5421.7209999999995},{"$f":"VLOOKUP($A107,F1__World_Data!$A$4:$DP$191,54,FALSE)","v":5414.8940000000002},{"$f":"VLOOKUP($A107,F1__World_Data!$A$4:$DP$191,53,FALSE)","v":5408.9319999999998},{"$f":"VLOOKUP($A107,F1__World_Data!$A$4:$DP$191,52,FALSE)","v":5404.2929999999997},{"$f":"VLOOKUP($A107,F1__World_Data!$A$4:$DP$191,51,FALSE)","v":5401.1490000000003},{"$f":"VLOOKUP($A107,F1__World_Data!$A$4:$DP$191,50,FALSE)","v":5399.3620000000001},{"$f":"VLOOKUP($A107,F1__World_Data!$A$4:$DP$191,49,FALSE)","v":5398.6930000000002},{"$f":"VLOOKUP($A107,F1__World_Data!$A$4:$DP$191,48,FALSE)","v":5398.674},{"$f":"VLOOKUP($A107,F1__World_Data!$A$4:$DP$191,47,FALSE)","v":5398.9620000000004},{"$f":"VLOOKUP($A107,F1__World_Data!$A$4:$DP$191,46,FALSE)","v":5399.3739999999998},{"$f":"VLOOKUP($A107,F1__World_Data!$A$4:$DP$191,45,FALSE)","v":5399.8440000000001},{"$f":"VLOOKUP($A107,F1__World_Data!$A$4:$DP$191,44,FALSE)","v":5400.1239999999998},{"$f":"VLOOKUP($A107,F1__World_Data!$A$4:$DP$191,43,FALSE)","v":5399.9949999999999},{"$f":"VLOOKUP($A107,F1__World_Data!$A$4:$DP$191,42,FALSE)","v":5399.2070000000003},{"$f":"VLOOKUP($A107,F1__World_Data!$A$4:$DP$191,41,FALSE)","v":5397.7089999999998},{"$f":"VLOOKUP($A107,F1__World_Data!$A$4:$DP$191,40,FALSE)","v":5395.2529999999997},{"$f":"VLOOKUP($A107,F1__World_Data!$A$4:$DP$191,39,FALSE)","v":5391.2020000000002},{"$f":"VLOOKUP($A107,F1__World_Data!$A$4:$DP$191,38,FALSE)","v":5384.7920000000004},{"$f":"VLOOKUP($A107,F1__World_Data!$A$4:$DP$191,37,FALSE)","v":5375.47},{"$f":"VLOOKUP($A107,F1__World_Data!$A$4:$DP$191,36,FALSE)","v":5362.8940000000002},{"$f":"VLOOKUP($A107,F1__World_Data!$A$4:$DP$191,35,FALSE)","v":5347.2120000000004},{"$f":"VLOOKUP($A107,F1__World_Data!$A$4:$DP$191,34,FALSE)","v":5329.0290000000005},{"$f":"VLOOKUP($A107,F1__World_Data!$A$4:$DP$191,33,FALSE)","v":5309.2290000000003},{"$f":"VLOOKUP($A107,F1__World_Data!$A$4:$DP$191,32,FALSE)","v":5288.4549999999999},{"$f":"VLOOKUP($A107,F1__World_Data!$A$4:$DP$191,31,FALSE)","v":5266.8050000000003},{"$f":"VLOOKUP($A107,F1__World_Data!$A$4:$DP$191,30,FALSE)","v":5244.0360000000001},{"$f":"VLOOKUP($A107,F1__World_Data!$A$4:$DP$191,29,FALSE)","v":5219.9669999999996},{"$f":"VLOOKUP($A107,F1__World_Data!$A$4:$DP$191,28,FALSE)","v":5194.3019999999997},{"$f":"VLOOKUP($A107,F1__World_Data!$A$4:$DP$191,27,FALSE)","v":5166.7870000000003},{"$f":"VLOOKUP($A107,F1__World_Data!$A$4:$DP$191,26,FALSE)","v":5137.6899999999996},{"$f":"VLOOKUP($A107,F1__World_Data!$A$4:$DP$191,25,FALSE)","v":5106.9830000000002},{"$f":"VLOOKUP($A107,F1__World_Data!$A$4:$DP$191,24,FALSE)","v":5073.8819999999996},{"$f":"VLOOKUP($A107,F1__World_Data!$A$4:$DP$191,23,FALSE)","v":5037.3389999999999},{"$f":"VLOOKUP($A107,F1__World_Data!$A$4:$DP$191,22,FALSE)","v":4996.7299999999996},{"$f":"VLOOKUP($A107,F1__World_Data!$A$4:$DP$191,21,FALSE)","v":4951.7889999999998},{"$f":"VLOOKUP($A107,F1__World_Data!$A$4:$DP$191,20,FALSE)","v":4903.2060000000001},{"$f":"VLOOKUP($A107,F1__World_Data!$A$4:$DP$191,19,FALSE)","v":4852.4939999999997},{"$f":"VLOOKUP($A107,F1__World_Data!$A$4:$DP$191,18,FALSE)","v":4801.74},{"$f":"VLOOKUP($A107,F1__World_Data!$A$4:$DP$191,17,FALSE)","v":4752.5370000000003},{"$f":"VLOOKUP($A107,F1__World_Data!$A$4:$DP$191,16,FALSE)","v":4705.1019999999999},{"$f":"VLOOKUP($A107,F1__World_Data!$A$4:$DP$191,15,FALSE)","v":4659.2780000000002},{"$f":"VLOOKUP($A107,F1__World_Data!$A$4:$DP$191,14,FALSE)","v":4615.8339999999998},{"$f":"VLOOKUP($A107,F1__World_Data!$A$4:$DP$191,13,FALSE)","v":4575.5619999999999},{"$f":"VLOOKUP($A107,F1__World_Data!$A$4:$DP$191,12,FALSE)","v":4538.8429999999998},{"$f":"VLOOKUP($A107,F1__World_Data!$A$4:$DP$191,11,FALSE)","v":4506.152},{"$f":"VLOOKUP($A107,F1__World_Data!$A$4:$DP$191,10,FALSE)","v":4476.8289999999997},{"$f":"VLOOKUP($A107,F1__World_Data!$A$4:$DP$191,9,FALSE)","v":4448.5510000000004},{"$f":"VLOOKUP($A107,F1__World_Data!$A$4:$DP$191,8,FALSE)","v":4418.201},{"$f":"VLOOKUP($A107,F1__World_Data!$A$4:$DP$191,7,FALSE)","v":4383.4459999999999},{"$f":"VLOOKUP($A107,F1__World_Data!$A$4:$DP$191,6,FALSE)","v":4343.4589999999998},{"$f":"VLOOKUP($A107,F1__World_Data!$A$4:$DP$191,5,FALSE)","v":4298.59},{"$f":"VLOOKUP($A107,F1__World_Data!$A$4:$DP$191,4,FALSE)","v":4249.2079999999996},{"$f":"VLOOKUP($A107,F1__World_Data!$A$4:$DP$191,3,FALSE)","v":4196.1689999999999},{"$f":"VLOOKUP($A107,F1__World_Data!$A$4:$DP$191,2,FALSE)","v":4140.1279999999997},null,{"$f":"VLOOKUP($A107,F1__World_Data!$A$4:$DP$191,120,FALSE)","v":68.116},{"$f":"VLOOKUP($A107,F1__World_Data!$A$4:$DP$191,119,FALSE)","v":67.850999999999999},{"$f":"VLOOKUP($A107,F1__World_Data!$A$4:$DP$191,118,FALSE)","v":67.576999999999998},{"$f":"VLOOKUP($A107,F1__World_Data!$A$4:$DP$191,117,FALSE)","v":67.290999999999997},{"$f":"VLOOKUP($A107,F1__World_Data!$A$4:$DP$191,116,FALSE)","v":66.995000000000005},{"$f":"VLOOKUP($A107,F1__World_Data!$A$4:$DP$191,115,FALSE)","v":66.69},{"$f":"VLOOKUP($A107,F1__World_Data!$A$4:$DP$191,114,FALSE)","v":66.381},{"$f":"VLOOKUP($A107,F1__World_Data!$A$4:$DP$191,113,FALSE)","v":66.072000000000003},{"$f":"VLOOKUP($A107,F1__World_Data!$A$4:$DP$191,112,FALSE)","v":65.769000000000005},{"$f":"VLOOKUP($A107,F1__World_Data!$A$4:$DP$191,111,FALSE)","v":65.48},{"$f":"VLOOKUP($A107,F1__World_Data!$A$4:$DP$191,110,FALSE)","v":65.207999999999998},{"$f":"VLOOKUP($A107,F1__World_Data!$A$4:$DP$191,109,FALSE)","v":64.953000000000003},{"$f":"VLOOKUP($A107,F1__World_Data!$A$4:$DP$191,108,FALSE)","v":64.712000000000003},{"$f":"VLOOKUP($A107,F1__World_Data!$A$4:$DP$191,107,FALSE)","v":64.477999999999994},{"$f":"VLOOKUP($A107,F1__World_Data!$A$4:$DP$191,106,FALSE)","v":64.242000000000004},{"$f":"VLOOKUP($A107,F1__World_Data!$A$4:$DP$191,105,FALSE)","v":63.994999999999997},{"$f":"VLOOKUP($A107,F1__World_Data!$A$4:$DP$191,104,FALSE)","v":63.731000000000002},{"$f":"VLOOKUP($A107,F1__World_Data!$A$4:$DP$191,103,FALSE)","v":63.445999999999998},{"$f":"VLOOKUP($A107,F1__World_Data!$A$4:$DP$191,102,FALSE)","v":63.143999999999998},{"$f":"VLOOKUP($A107,F1__World_Data!$A$4:$DP$191,101,FALSE)","v":62.829000000000001},{"$f":"VLOOKUP($A107,F1__World_Data!$A$4:$DP$191,100,FALSE)","v":62.509},{"$f":"VLOOKUP($A107,F1__World_Data!$A$4:$DP$191,99,FALSE)","v":62.188000000000002},{"$f":"VLOOKUP($A107,F1__World_Data!$A$4:$DP$191,98,FALSE)","v":61.866},{"$f":"VLOOKUP($A107,F1__World_Data!$A$4:$DP$191,97,FALSE)","v":61.539000000000001},{"$f":"VLOOKUP($A107,F1__World_Data!$A$4:$DP$191,96,FALSE)","v":61.198},{"$f":"VLOOKUP($A107,F1__World_Data!$A$4:$DP$191,95,FALSE)","v":60.837000000000003},{"$f":"VLOOKUP($A107,F1__World_Data!$A$4:$DP$191,94,FALSE)","v":60.454999999999998},{"$f":"VLOOKUP($A107,F1__World_Data!$A$4:$DP$191,93,FALSE)","v":60.052999999999997},{"$f":"VLOOKUP($A107,F1__World_Data!$A$4:$DP$191,92,FALSE)","v":59.636000000000003},{"$f":"VLOOKUP($A107,F1__World_Data!$A$4:$DP$191,91,FALSE)","v":59.209000000000003},{"$f":"VLOOKUP($A107,F1__World_Data!$A$4:$DP$191,90,FALSE)","v":58.783000000000001},{"$f":"VLOOKUP($A107,F1__World_Data!$A$4:$DP$191,89,FALSE)","v":58.366},{"$f":"VLOOKUP($A107,F1__World_Data!$A$4:$DP$191,88,FALSE)","v":57.962000000000003},{"$f":"VLOOKUP($A107,F1__World_Data!$A$4:$DP$191,87,FALSE)","v":57.579000000000001},{"$f":"VLOOKUP($A107,F1__World_Data!$A$4:$DP$191,86,FALSE)","v":57.220999999999997},{"$f":"VLOOKUP($A107,F1__World_Data!$A$4:$DP$191,85,FALSE)","v":56.886000000000003},{"$f":"VLOOKUP($A107,F1__World_Data!$A$4:$DP$191,84,FALSE)","v":56.569000000000003},{"$f":"VLOOKUP($A107,F1__World_Data!$A$4:$DP$191,83,FALSE)","v":56.265999999999998},{"$f":"VLOOKUP($A107,F1__World_Data!$A$4:$DP$191,82,FALSE)","v":55.970999999999997},{"$f":"VLOOKUP($A107,F1__World_Data!$A$4:$DP$191,81,FALSE)","v":55.679000000000002},{"$f":"VLOOKUP($A107,F1__World_Data!$A$4:$DP$191,80,FALSE)","v":55.381999999999998},{"$f":"VLOOKUP($A107,F1__World_Data!$A$4:$DP$191,79,FALSE)","v":55.073999999999998},{"$f":"VLOOKUP($A107,F1__World_Data!$A$4:$DP$191,78,FALSE)","v":54.747999999999998},{"$f":"VLOOKUP($A107,F1__World_Data!$A$4:$DP$191,77,FALSE)","v":54.399000000000001},{"$f":"VLOOKUP($A107,F1__World_Data!$A$4:$DP$191,76,FALSE)","v":54.027000000000001},{"$f":"VLOOKUP($A107,F1__World_Data!$A$4:$DP$191,75,FALSE)","v":53.633000000000003},{"$f":"VLOOKUP($A107,F1__World_Data!$A$4:$DP$191,74,FALSE)","v":53.218000000000004},{"$f":"VLOOKUP($A107,F1__World_Data!$A$4:$DP$191,73,FALSE)","v":52.781999999999996},{"$f":"VLOOKUP($A107,F1__World_Data!$A$4:$DP$191,72,FALSE)","v":52.323},{"$f":"VLOOKUP($A107,F1__World_Data!$A$4:$DP$191,71,FALSE)","v":51.837000000000003},{"$f":"VLOOKUP($A107,F1__World_Data!$A$4:$DP$191,70,FALSE)","v":51.326999999999998},{"$f":"VLOOKUP($A107,F1__World_Data!$A$4:$DP$191,69,FALSE)","v":50.795999999999999},{"$f":"VLOOKUP($A107,F1__World_Data!$A$4:$DP$191,68,FALSE)","v":50.25},{"$f":"VLOOKUP($A107,F1__World_Data!$A$4:$DP$191,67,FALSE)","v":49.697000000000003},{"$f":"VLOOKUP($A107,F1__World_Data!$A$4:$DP$191,66,FALSE)","v":49.145000000000003},{"$f":"VLOOKUP($A107,F1__World_Data!$A$4:$DP$191,65,FALSE)","v":48.600999999999999},{"$f":"VLOOKUP($A107,F1__World_Data!$A$4:$DP$191,64,FALSE)","v":48.070999999999998},{"$f":"VLOOKUP($A107,F1__World_Data!$A$4:$DP$191,63,FALSE)","v":47.557000000000002},{"$f":"VLOOKUP($A107,F1__World_Data!$A$4:$DP$191,62,FALSE)","v":47.061}]
["Norway",{"$f":"VLOOKUP($A108,F1__World_Data!$A$4:$DP$191,60,FALSE)","v":5337.96},{"$f":"VLOOKUP($A108,F1__World_Data!$A$4:$DP$191,59,FALSE)","v":5296.3239999999996},{"$f":"VLOOKUP($A108,F1__World_Data!$A$4:$DP$191,58,FALSE)","v":5250.95},{"$f":"VLOOKUP($A108,F1__World_Data!$A$4:$DP$191,57,FALSE)","v":5199.8270000000002},{"$f":"VLOOKUP($A108,F1__World_Data!$A$4:$DP$191,56,FALSE)","v":5142.2690000000002},{"$f":"VLOOKUP($A108,F1__World_Data!$A$4:$DP$191,55,FALSE)","v":5079.46},{"$f":"VLOOKUP($A108,F1__World_Data!$A$4:$DP$191,54,FALSE)","v":5013.7160000000003},{"$f":"VLOOKUP($A108,F1__World_Data!$A$4:$DP$191,53,FALSE)","v":4948.335},{"$f":"VLOOKUP($A108,F1__World_Data!$A$4:$DP$191,52,FALSE)","v":4885.8779999999997},{"$f":"VLOOKUP($A108,F1__World_Data!$A$4:$DP$191,51,FALSE)","v":4826.8469999999998},{"$f":"VLOOKUP($A108,F1__World_Data!$A$4:$DP$191,50,FALSE)","v":4771.0140000000001},{"$f":"VLOOKUP($A108,F1__World_Data!$A$4:$DP$191,49,FALSE)","v":4719.4030000000002},{"$f":"VLOOKUP($A108,F1__World_Data!$A$4:$DP$191,48,FALSE)","v":4672.9859999999999},{"$f":"VLOOKUP($A108,F1__World_Data!$A$4:$DP$191,47,FALSE)","v":4632.3590000000004},{"$f":"VLOOKUP($A108,F1__World_Data!$A$4:$DP$191,46,FALSE)","v":4598.21},{"$f":"VLOOKUP($A108,F1__World_Data!$A$4:$DP$191,45,FALSE)","v":4570.0959999999995},{"$f":"VLOOKUP($A108,F1__World_Data!$A$4:$DP$191,44,FALSE)","v":4546.0169999999998},{"$f":"VLOOKUP($A108,F1__World_Data!$A$4:$DP$191,43,FALSE)","v":4523.1390000000001},{"$f":"VLOOKUP($A108,F1__World_Data!$A$4:$DP$191,42,FALSE)","v":4499.375},{"$f":"VLOOKUP($A108,F1__World_Data!$A$4:$DP$191,41,FALSE)","v":4474.0079999999998},{"$f":"VLOOKUP($A108,F1__World_Data!$A$4:$DP$191,40,FALSE)","v":4447.4849999999997},{"$f":"VLOOKUP($A108,F1__World_Data!$A$4:$DP$191,39,FALSE)","v":4420.2659999999996},{"$f":"VLOOKUP($A108,F1__World_Data!$A$4:$DP$191,38,FALSE)","v":4393.2169999999996},{"$f":"VLOOKUP($A108,F1__World_Data!$A$4:$DP$191,37,FALSE)","v":4366.9960000000001},{"$f":"VLOOKUP($A108,F1__World_Data!$A$4:$DP$191,36,FALSE)","v":4341.616},{"$f":"VLOOKUP($A108,F1__World_Data!$A$4:$DP$191,35,FALSE)","v":4316.79},{"$f":"VLOOKUP($A108,F1__World_Data!$A$4:$DP$191,34,FALSE)","v":4292.6850000000004},{"$f":"VLOOKUP($A108,F1__World_Data!$A$4:$DP$191,33,FALSE)","v":4269.4650000000001},{"$f":"VLOOKUP($A108,F1__World_Data!$A$4:$DP$191,32,FALSE)","v":4247.2860000000001},{"$f":"VLOOKUP($A108,F1__World_Data!$A$4:$DP$191,31,FALSE)","v":4226.116},{"$f":"VLOOKUP($A108,F1__World_Data!$A$4:$DP$191,30,FALSE)","v":4205.9589999999998},{"$f":"VLOOKUP($A108,F1__World_Data!$A$4:$DP$191,29,FALSE)","v":4186.9719999999998},{"$f":"VLOOKUP($A108,F1__World_Data!$A$4:$DP$191,28,FALSE)","v":4169.3180000000002},{"$f":"VLOOKUP($A108,F1__World_Data!$A$4:$DP$191,27,FALSE)","v":4153.1109999999999},{"$f":"VLOOKUP($A108,F1__World_Data!$A$4:$DP$191,26,FALSE)","v":4138.2650000000003},{"$f":"VLOOKUP($A108,F1__World_Data!$A$4:$DP$191,25,FALSE)","v":4124.5879999999997},{"$f":"VLOOKUP($A108,F1__World_Data!$A$4:$DP$191,24,FALSE)","v":4111.6499999999996},{"$f":"VLOOKUP($A108,F1__World_Data!$A$4:$DP$191,23,FALSE)","v":4098.9740000000002},{"$f":"VLOOKUP($A108,F1__World_Data!$A$4:$DP$191,22,FALSE)","v":4086.07},{"$f":"VLOOKUP($A108,F1__World_Data!$A$4:$DP$191,21,FALSE)","v":4072.875},{"$f":"VLOOKUP($A108,F1__World_Data!$A$4:$DP$191,20,FALSE)","v":4059.1860000000001},{"$f":"VLOOKUP($A108,F1__World_Data!$A$4:$DP$191,19,FALSE)","v":4044.335},{"$f":"VLOOKUP($A108,F1__World_Data!$A$4:$DP$191,18,FALSE)","v":4027.4749999999999},{"$f":"VLOOKUP($A108,F1__World_Data!$A$4:$DP$191,17,FALSE)","v":4008.0259999999998},{"$f":"VLOOKUP($A108,F1__World_Data!$A$4:$DP$191,16,FALSE)","v":3985.7350000000001},{"$f":"VLOOKUP($A108,F1__World_Data!$A$4:$DP$191,15,FALSE)","v":3960.8049999999998},{"$f":"VLOOKUP($A108,F1__World_Data!$A$4:$DP$191,14,FALSE)","v":3933.7260000000001},{"$f":"VLOOKUP($A108,F1__World_Data!$A$4:$DP$191,13,FALSE)","v":3905.2739999999999},{"$f":"VLOOKUP($A108,F1__World_Data!$A$4:$DP$191,12,FALSE)","v":3876.049},{"$f":"VLOOKUP($A108,F1__World_Data!$A$4:$DP$191,11,FALSE)","v":3846.1770000000001},{"$f":"VLOOKUP($A108,F1__World_Data!$A$4:$DP$191,10,FALSE)","v":3815.6410000000001},{"$f":"VLOOKUP($A108,F1__World_Data!$A$4:$DP$191,9,FALSE)","v":3784.8670000000002},{"$f":"VLOOKUP($A108,F1__World_Data!$A$4:$DP$191,8,FALSE)","v":3754.3539999999998},{"$f":"VLOOKUP($A108,F1__World_Data!$A$4:$DP$191,7,FALSE)","v":3724.4569999999999},{"$f":"VLOOKUP($A108,F1__World_Data!$A$4:$DP$191,6,FALSE)","v":3695.4169999999999},{"$f":"VLOOKUP($A108,F1__World_Data!$A$4:$DP$191,5,FALSE)","v":3667.1129999999998},{"$f":"VLOOKUP($A108,F1__World_Data!$A$4:$DP$191,4,FALSE)","v":3639.2130000000002},{"$f":"VLOOKUP($A108,F1__World_Data!$A$4:$DP$191,3,FALSE)","v":3611.1390000000001},{"$f":"VLOOKUP($A108,F1__World_Data!$A$4:$DP$191,2,FALSE)","v":3582.5079999999998},null,{"$f":"VLOOKUP($A108,F1__World_Data!$A$4:$DP$191,120,FALSE)","v":68.116},{"$f":"VLOOKUP($A108,F1__World_Data!$A$4:$DP$191,119,FALSE)","v":67.850999999999999},{"$f":"VLOOKUP($A108,F1__World_Data!$A$4:$DP$191,118,FALSE)","v":67.576999999999998},{"$f":"VLOOKUP($A108,F1__World_Data!$A$4:$DP$191,117,FALSE)","v":67.290999999999997},{"$f":"VLOOKUP($A108,F1__World_Data!$A$4:$DP$191,116,FALSE)","v":66.995000000000005},{"$f":"VLOOKUP($A108,F1__World_Data!$A$4:$DP$191,115,FALSE)","v":66.69},{"$f":"VLOOKUP($A108,F1__World_Data!$A$4:$DP$191,114,FALSE)","v":66.381},{"$f":"VLOOKUP($A108,F1__World_Data!$A$4:$DP$191,113,FALSE)","v":66.072000000000003},{"$f":"VLOOKUP($A108,F1__World_Data!$A$4:$DP$191,112,FALSE)","v":65.769000000000005},{"$f":"VLOOKUP($A108,F1__World_Data!$A$4:$DP$191,111,FALSE)","v":65.48},{"$f":"VLOOKUP($A108,F1__World_Data!$A$4:$DP$191,110,FALSE)","v":65.207999999999998},{"$f":"VLOOKUP($A108,F1__World_Data!$A$4:$DP$191,109,FALSE)","v":64.953000000000003},{"$f":"VLOOKUP($A108,F1__World_Data!$A$4:$DP$191,108,FALSE)","v":64.712000000000003},{"$f":"VLOOKUP($A108,F1__World_Data!$A$4:$DP$191,107,FALSE)","v":64.477999999999994},{"$f":"VLOOKUP($A108,F1__World_Data!$A$4:$DP$191,106,FALSE)","v":64.242000000000004},{"$f":"VLOOKUP($A108,F1__World_Data!$A$4:$DP$191,105,FALSE)","v":63.994999999999997},{"$f":"VLOOKUP($A108,F1__World_Data!$A$4:$DP$191,104,FALSE)","v":63.731000000000002},{"$f":"VLOOKUP($A108,F1__World_Data!$A$4:$DP$191,103,FALSE)","v":63.445999999999998},{"$f":"VLOOKUP($A108,F1__World_Data!$A$4:$DP$191,102,FALSE)","v":63.143999999999998},{"$f":"VLOOKUP($A108,F1__World_Data!$A$4:$DP$191,101,FALSE)","v":62.829000000000001},{"$f":"VLOOKUP($A108,F1__World_Data!$A$4:$DP$191,100,FALSE)","v":62.509},{"$f":"VLOOKUP($A108,F1__World_Data!$A$4:$DP$191,99,FALSE)","v":62.188000000000002},{"$f":"VLOOKUP($A108,F1__World_Data!$A$4:$DP$191,98,FALSE)","v":61.866},{"$f":"VLOOKUP($A108,F1__World_Data!$A$4:$DP$191,97,FALSE)","v":61.539000000000001},{"$f":"VLOOKUP($A108,F1__World_Data!$A$4:$DP$191,96,FALSE)","v":61.198},{"$f":"VLOOKUP($A108,F1__World_Data!$A$4:$DP$191,95,FALSE)","v":60.837000000000003},{"$f":"VLOOKUP($A108,F1__World_Data!$A$4:$DP$191,94,FALSE)","v":60.454999999999998},{"$f":"VLOOKUP($A108,F1__World_Data!$A$4:$DP$191,93,FALSE)","v":60.052999999999997},{"$f":"VLOOKUP($A108,F1__World_Data!$A$4:$DP$191,92,FALSE)","v":59.636000000000003},{"$f":"VLOOKUP($A108,F1__World_Data!$A$4:$DP$191,91,FALSE)","v":59.209000000000003},{"$f":"VLOOKUP($A108,F1__World_Data!$A$4:$DP$191,90,FALSE)","v":58.783000000000001},{"$f":"VLOOKUP($A108,F1__World_Data!$A$4:$DP$191,89,FALSE)","v":58.366},{"$f":"VLOOKUP($A108,F1__World_Data!$A$4:$DP$191,88,FALSE)","v":57.962000000000003},{"$f":"VLOOKUP($A108,F1__World_Data!$A$4:$DP$191,87,FALSE)","v":57.579000000000001},{"$f":"VLOOKUP($A108,F1__World_Data!$A$4:$DP$191,86,FALSE)","v":57.220999999999997},{"$f":"VLOOKUP($A108,F1__World_Data!$A$4:$DP$191,85,FALSE)","v":56.886000000000003},{"$f":"VLOOKUP($A108,F1__World_Data!$A$4:$DP$191,84,FALSE)","v":56.569000000000003},{"$f":"VLOOKUP($A108,F1__World_Data!$A$4:$DP$191,83,FALSE)","v":56.265999999999998},{"$f":"VLOOKUP($A108,F1__World_Data!$A$4:$DP$191,82,FALSE)","v":55.970999999999997},{"$f":"VLOOKUP($A108,F1__World_Data!$A$4:$DP$191,81,FALSE)","v":55.679000000000002},{"$f":"VLOOKUP($A108,F1__World_Data!$A$4:$DP$191,80,FALSE)","v":55.381999999999998},{"$f":"VLOOKUP($A108,F1__World_Data!$A$4:$DP$191,79,FALSE)","v":55.073999999999998},{"$f":"VLOOKUP($A108,F1__World_Data!$A$4:$DP$191,78,FALSE)","v":54.747999999999998},{"$f":"VLOOKUP($A108,F1__World_Data!$A$4:$DP$191,77,FALSE)","v":54.399000000000001},{"$f":"VLOOKUP($A108,F1__World_Data!$A$4:$DP$191,76,FALSE)","v":54.027000000000001},{"$f":"VLOOKUP($A108,F1__World_Data!$A$4:$DP$191,75,FALSE)","v":53.633000000000003},{"$f":"VLOOKUP($A108,F1__World_Data!$A$4:$DP$191,74,FALSE)","v":53.218000000000004},{"$f":"VLOOKUP($A108,F1__World_Data!$A$4:$DP$191,73,FALSE)","v":52.781999999999996},{"$f":"VLOOKUP($A108,F1__World_Data!$A$4:$DP$191,72,FALSE)","v":52.323},{"$f":"VLOOKUP($A108,F1__World_Data!$A$4:$DP$191,71,FALSE)","v":51.837000000000003},{"$f":"VLOOKUP($A108,F1__World_Data!$A$4:$DP$191,70,FALSE)","v":51.326999999999998},{"$f":"VLOOKUP($A108,F1__World_Data!$A$4:$DP$191,69,FALSE)","v":50.795999999999999},{"$f":"VLOOKUP($A108,F1__World_Data!$A$4:$DP$191,68,FALSE)","v":50.25},{"$f":"VLOOKUP($A108,F1__World_Data!$A$4:$DP$191,67,FALSE)","v":49.697000000000003},{"$f":"VLOOKUP($A108,F1__World_Data!$A$4:$DP$191,66,FALSE)","v":49.145000000000003},{"$f":"VLOOKUP($A108,F1__World_Data!$A$4:$DP$191,65,FALSE)","v":48.600999999999999},{"$f":"VLOOKUP($A108,F1__World_Data!$A$4:$DP$191,64,FALSE)","v":48.070999999999998},{"$f":"VLOOKUP($A108,F1__World_Data!$A$4:$DP$191,63,FALSE)","v":47.557000000000002},{"$f":"VLOOKUP($A108,F1__World_Data!$A$4:$DP$191,62,FALSE)","v":47.061}]
["Congo",{"$f":"VLOOKUP($A109,F1__World_Data!$A$4:$DP$191,60,FALSE)","v":5244.3630000000003},{"$f":"VLOOKUP($A109,F1__World_Data!$A$4:$DP$191,59,FALSE)","v":5110.701},{"$f":"VLOOKUP($A109,F1__World_Data!$A$4:$DP$191,58,FALSE)","v":4980.9960000000001},{"$f":"VLOOKUP($A109,F1__World_Data!$A$4:$DP$191,57,FALSE)","v":4856.0929999999998},{"$f":"VLOOKUP($A109,F1__World_Data!$A$4:$DP$191,56,FALSE)","v":4736.9650000000001},{"$f":"VLOOKUP($A109,F1__World_Data!$A$4:$DP$191,55,FALSE)","v":4622.7569999999996},{"$f":"VLOOKUP($A109,F1__World_Data!$A$4:$DP$191,54,FALSE)","v":4510.1970000000001},{"$f":"VLOOKUP($A109,F1__World_Data!$A$4:$DP$191,53,FALSE)","v":4394.8419999999996},{"$f":"VLOOKUP($A109,F1__World_Data!$A$4:$DP$191,52,FALSE)","v":4273.7380000000003},{"$f":"VLOOKUP($A109,F1__World_Data!$A$4:$DP$191,51,FALSE)","v":4145.3999999999996},{"$f":"VLOOKUP($A109,F1__World_Data!$A$4:$DP$191,50,FALSE)","v":4011.4870000000001},{"$f":"VLOOKUP($A109,F1__World_Data!$A$4:$DP$191,49,FALSE)","v":3876.123},{"$f":"VLOOKUP($A109,F1__World_Data!$A$4:$DP$191,48,FALSE)","v":3745.143},{"$f":"VLOOKUP($A109,F1__World_Data!$A$4:$DP$191,47,FALSE)","v":3622.7750000000001},{"$f":"VLOOKUP($A109,F1__World_Data!$A$4:$DP$191,46,FALSE)","v":3510.4679999999998},{"$f":"VLOOKUP($A109,F1__World_Data!$A$4:$DP$191,45,FALSE)","v":3406.915},{"$f":"VLOOKUP($A109,F1__World_Data!$A$4:$DP$191,44,FALSE)","v":3310.3760000000002},{"$f":"VLOOKUP($A109,F1__World_Data!$A$4:$DP$191,43,FALSE)","v":3217.93},{"$f":"VLOOKUP($A109,F1__World_Data!$A$4:$DP$191,42,FALSE)","v":3127.42},{"$f":"VLOOKUP($A109,F1__World_Data!$A$4:$DP$191,41,FALSE)","v":3038.4319999999998},{"$f":"VLOOKUP($A109,F1__World_Data!$A$4:$DP$191,40,FALSE)","v":2951.6509999999998},{"$f":"VLOOKUP($A109,F1__World_Data!$A$4:$DP$191,39,FALSE)","v":2867.2829999999999},{"$f":"VLOOKUP($A109,F1__World_Data!$A$4:$DP$191,38,FALSE)","v":2785.8150000000001},{"$f":"VLOOKUP($A109,F1__World_Data!$A$4:$DP$191,37,FALSE)","v":2707.5320000000002},{"$f":"VLOOKUP($A109,F1__World_Data!$A$4:$DP$191,36,FALSE)","v":2632.3449999999998},{"$f":"VLOOKUP($A109,F1__World_Data!$A$4:$DP$191,35,FALSE)","v":2559.88},{"$f":"VLOOKUP($A109,F1__World_Data!$A$4:$DP$191,34,FALSE)","v":2489.9450000000002},{"$f":"VLOOKUP($A109,F1__World_Data!$A$4:$DP$191,33,FALSE)","v":2422.3119999999999},{"$f":"VLOOKUP($A109,F1__World_Data!$A$4:$DP$191,32,FALSE)","v":2356.7399999999998},{"$f":"VLOOKUP($A109,F1__World_Data!$A$4:$DP$191,31,FALSE)","v":2293.1610000000001},{"$f":"VLOOKUP($A109,F1__World_Data!$A$4:$DP$191,30,FALSE)","v":2231.462},{"$f":"VLOOKUP($A109,F1__World_Data!$A$4:$DP$191,29,FALSE)","v":2171.319},{"$f":"VLOOKUP($A109,F1__World_Data!$A$4:$DP$191,28,FALSE)","v":2112.3589999999999},{"$f":"VLOOKUP($A109,F1__World_Data!$A$4:$DP$191,27,FALSE)","v":2054.308},{"$f":"VLOOKUP($A109,F1__World_Data!$A$4:$DP$191,26,FALSE)","v":1996.9939999999999},{"$f":"VLOOKUP($A109,F1__World_Data!$A$4:$DP$191,25,FALSE)","v":1940.454},{"$f":"VLOOKUP($A109,F1__World_Data!$A$4:$DP$191,24,FALSE)","v":1884.873},{"$f":"VLOOKUP($A109,F1__World_Data!$A$4:$DP$191,23,FALSE)","v":1830.6289999999999},{"$f":"VLOOKUP($A109,F1__World_Data!$A$4:$DP$191,22,FALSE)","v":1777.932},{"$f":"VLOOKUP($A109,F1__World_Data!$A$4:$DP$191,21,FALSE)","v":1726.865},{"$f":"VLOOKUP($A109,F1__World_Data!$A$4:$DP$191,20,FALSE)","v":1677.326},{"$f":"VLOOKUP($A109,F1__World_Data!$A$4:$DP$191,19,FALSE)","v":1629.2180000000001},{"$f":"VLOOKUP($A109,F1__World_Data!$A$4:$DP$191,18,FALSE)","v":1582.3610000000001},{"$f":"VLOOKUP($A109,F1__World_Data!$A$4:$DP$191,17,FALSE)","v":1536.6579999999999},{"$f":"VLOOKUP($A109,F1__World_Data!$A$4:$DP$191,16,FALSE)","v":1492.0550000000001},{"$f":"VLOOKUP($A109,F1__World_Data!$A$4:$DP$191,15,FALSE)","v":1448.6320000000001},{"$f":"VLOOKUP($A109,F1__World_Data!$A$4:$DP$191,14,FALSE)","v":1406.51},{"$f":"VLOOKUP($A109,F1__World_Data!$A$4:$DP$191,13,FALSE)","v":1365.8910000000001},{"$f":"VLOOKUP($A109,F1__World_Data!$A$4:$DP$191,12,FALSE)","v":1326.894},{"$f":"VLOOKUP($A109,F1__World_Data!$A$4:$DP$191,11,FALSE)","v":1289.519},{"$f":"VLOOKUP($A109,F1__World_Data!$A$4:$DP$191,10,FALSE)","v":1253.761},{"$f":"VLOOKUP($A109,F1__World_Data!$A$4:$DP$191,9,FALSE)","v":1219.547},{"$f":"VLOOKUP($A109,F1__World_Data!$A$4:$DP$191,8,FALSE)","v":1186.7819999999999},{"$f":"VLOOKUP($A109,F1__World_Data!$A$4:$DP$191,7,FALSE)","v":1155.3889999999999},{"$f":"VLOOKUP($A109,F1__World_Data!$A$4:$DP$191,6,FALSE)","v":1125.354},{"$f":"VLOOKUP($A109,F1__World_Data!$A$4:$DP$191,5,FALSE)","v":1096.6379999999999},{"$f":"VLOOKUP($A109,F1__World_Data!$A$4:$DP$191,4,FALSE)","v":1069.2360000000001},{"$f":"VLOOKUP($A109,F1__World_Data!$A$4:$DP$191,3,FALSE)","v":1043.1189999999999},{"$f":"VLOOKUP($A109,F1__World_Data!$A$4:$DP$191,2,FALSE)","v":1018.254},null,{"$f":"VLOOKUP($A109,F1__World_Data!$A$4:$DP$191,120,FALSE)","v":73.637107765015102},{"$f":"VLOOKUP($A109,F1__World_Data!$A$4:$DP$191,119,FALSE)","v":73.517492494111451},{"$f":"VLOOKUP($A109,F1__World_Data!$A$4:$DP$191,118,FALSE)","v":73.395956392778842},{"$f":"VLOOKUP($A109,F1__World_Data!$A$4:$DP$191,117,FALSE)","v":73.273015980955037},{"$f":"VLOOKUP($A109,F1__World_Data!$A$4:$DP$191,116,FALSE)","v":73.150584618105228},{"$f":"VLOOKUP($A109,F1__World_Data!$A$4:$DP$191,115,FALSE)","v":73.030145150125279},{"$f":"VLOOKUP($A109,F1__World_Data!$A$4:$DP$191,114,FALSE)","v":72.911803457889334},{"$f":"VLOOKUP($A109,F1__World_Data!$A$4:$DP$191,113,FALSE)","v":72.795298311480806},{"$f":"VLOOKUP($A109,F1__World_Data!$A$4:$DP$191,112,FALSE)","v":72.67939476796036},{"$f":"VLOOKUP($A109,F1__World_Data!$A$4:$DP$191,111,FALSE)","v":72.561747336395143},{"$f":"VLOOKUP($A109,F1__World_Data!$A$4:$DP$191,110,FALSE)","v":72.440791221878925},{"$f":"VLOOKUP($A109,F1__World_Data!$A$4:$DP$191,109,FALSE)","v":72.316056289520802},{"$f":"VLOOKUP($A109,F1__World_Data!$A$4:$DP$191,108,FALSE)","v":72.187024201709548},{"$f":"VLOOKUP($A109,F1__World_Data!$A$4:$DP$191,107,FALSE)","v":72.055708423096959},{"$f":"VLOOKUP($A109,F1__World_Data!$A$4:$DP$191,106,FALSE)","v":71.923538539966657},{"$f":"VLOOKUP($A109,F1__World_Data!$A$4:$DP$191,105,FALSE)","v":71.79198627417226},{"$f":"VLOOKUP($A109,F1__World_Data!$A$4:$DP$191,104,FALSE)","v":71.713359964345358},{"$f":"VLOOKUP($A109,F1__World_Data!$A$4:$DP$191,103,FALSE)","v":71.538000447490049},{"$f":"VLOOKUP($A109,F1__World_Data!$A$4:$DP$191,102,FALSE)","v":71.419185391298214},{"$f":"VLOOKUP($A109,F1__World_Data!$A$4:$DP$191,101,FALSE)","v":71.310270981539503},{"$f":"VLOOKUP($A109,F1__World_Data!$A$4:$DP$191,100,FALSE)","v":71.21031996042737},{"$f":"VLOOKUP($A109,F1__World_Data!$A$4:$DP$191,99,FALSE)","v":71.163774129209045},{"$f":"VLOOKUP($A109,F1__World_Data!$A$4:$DP$191,98,FALSE)","v":71.028989838640868},{"$f":"VLOOKUP($A109,F1__World_Data!$A$4:$DP$191,97,FALSE)","v":70.937525331800259},{"$f":"VLOOKUP($A109,F1__World_Data!$A$4:$DP$191,96,FALSE)","v":70.834489868717455},{"$f":"VLOOKUP($A109,F1__World_Data!$A$4:$DP$191,95,FALSE)","v":70.712539984335763},{"$f":"VLOOKUP($A109,F1__World_Data!$A$4:$DP$191,94,FALSE)","v":70.588066446924401},{"$f":"VLOOKUP($A109,F1__World_Data!$A$4:$DP$191,93,FALSE)","v":70.394009945599478},{"$f":"VLOOKUP($A109,F1__World_Data!$A$4:$DP$191,92,FALSE)","v":70.197631076872327},{"$f":"VLOOKUP($A109,F1__World_Data!$A$4:$DP$191,91,FALSE)","v":69.984185708155181},{"$f":"VLOOKUP($A109,F1__World_Data!$A$4:$DP$191,90,FALSE)","v":69.763201056316845},{"$f":"VLOOKUP($A109,F1__World_Data!$A$4:$DP$191,89,FALSE)","v":69.548709699732711},{"$f":"VLOOKUP($A109,F1__World_Data!$A$4:$DP$191,88,FALSE)","v":69.329770812363662},{"$f":"VLOOKUP($A109,F1__World_Data!$A$4:$DP$191,87,FALSE)","v":69.122687176363286},{"$f":"VLOOKUP($A109,F1__World_Data!$A$4:$DP$191,86,FALSE)","v":68.920937408315467},{"$f":"VLOOKUP($A109,F1__World_Data!$A$4:$DP$191,85,FALSE)","v":68.718950407055345},{"$f":"VLOOKUP($A109,F1__World_Data!$A$4:$DP$191,84,FALSE)","v":68.517816565508539},{"$f":"VLOOKUP($A109,F1__World_Data!$A$4:$DP$191,83,FALSE)","v":68.303133941519746},{"$f":"VLOOKUP($A109,F1__World_Data!$A$4:$DP$191,82,FALSE)","v":68.086726113212805},{"$f":"VLOOKUP($A109,F1__World_Data!$A$4:$DP$191,81,FALSE)","v":67.861437019779785},{"$f":"VLOOKUP($A109,F1__World_Data!$A$4:$DP$191,80,FALSE)","v":67.627852151683655},{"$f":"VLOOKUP($A109,F1__World_Data!$A$4:$DP$191,79,FALSE)","v":67.385208633368208},{"$f":"VLOOKUP($A109,F1__World_Data!$A$4:$DP$191,78,FALSE)","v":67.13336447744399},{"$f":"VLOOKUP($A109,F1__World_Data!$A$4:$DP$191,77,FALSE)","v":66.875688670547362},{"$f":"VLOOKUP($A109,F1__World_Data!$A$4:$DP$191,76,FALSE)","v":66.618286191425497},{"$f":"VLOOKUP($A109,F1__World_Data!$A$4:$DP$191,75,FALSE)","v":66.364974788459406},{"$f":"VLOOKUP($A109,F1__World_Data!$A$4:$DP$191,74,FALSE)","v":66.118883978571901},{"$f":"VLOOKUP($A109,F1__World_Data!$A$4:$DP$191,73,FALSE)","v":65.880385295601911},{"$f":"VLOOKUP($A109,F1__World_Data!$A$4:$DP$191,72,FALSE)","v":65.648808613002032},{"$f":"VLOOKUP($A109,F1__World_Data!$A$4:$DP$191,71,FALSE)","v":65.419925874108088},{"$f":"VLOOKUP($A109,F1__World_Data!$A$4:$DP$191,70,FALSE)","v":65.186992176822201},{"$f":"VLOOKUP($A109,F1__World_Data!$A$4:$DP$191,69,FALSE)","v":64.943628772980901},{"$f":"VLOOKUP($A109,F1__World_Data!$A$4:$DP$191,68,FALSE)","v":64.684667910390132},{"$f":"VLOOKUP($A109,F1__World_Data!$A$4:$DP$191,67,FALSE)","v":64.407721253920059},{"$f":"VLOOKUP($A109,F1__World_Data!$A$4:$DP$191,66,FALSE)","v":64.113791435393836},{"$f":"VLOOKUP($A109,F1__World_Data!$A$4:$DP$191,65,FALSE)","v":63.804441775374208},{"$f":"VLOOKUP($A109,F1__World_Data!$A$4:$DP$191,64,FALSE)","v":63.476465945226273},{"$f":"VLOOKUP($A109,F1__World_Data!$A$4:$DP$191,63,FALSE)","v":63.126130845617176},{"$f":"VLOOKUP($A109,F1__World_Data!$A$4:$DP$191,62,FALSE)","v":62.746295193294777}]
["Costa Rica",{"$f":"VLOOKUP($A110,F1__World_Data!$A$4:$DP$191,60,FALSE)","v":4999.4430000000002},{"$f":"VLOOKUP($A110,F1__World_Data!$A$4:$DP$191,59,FALSE)","v":4949.9549999999999},{"$f":"VLOOKUP($A110,F1__World_Data!$A$4:$DP$191,58,FALSE)","v":4899.3360000000002},{"$f":"VLOOKUP($A110,F1__World_Data!$A$4:$DP$191,57,FALSE)","v":4847.8050000000003},{"$f":"VLOOKUP($A110,F1__World_Data!$A$4:$DP$191,56,FALSE)","v":4795.3900000000003},{"$f":"VLOOKUP($A110,F1__World_Data!$A$4:$DP$191,55,FALSE)","v":4742.1109999999999},{"$f":"VLOOKUP($A110,F1__World_Data!$A$4:$DP$191,54,FALSE)","v":4688.0029999999997},{"$f":"VLOOKUP($A110,F1__World_Data!$A$4:$DP$191,53,FALSE)","v":4633.0860000000002},{"$f":"VLOOKUP($A110,F1__World_Data!$A$4:$DP$191,52,FALSE)","v":4577.3710000000001},{"$f":"VLOOKUP($A110,F1__World_Data!$A$4:$DP$191,51,FALSE)","v":4520.7389999999996},{"$f":"VLOOKUP($A110,F1__World_Data!$A$4:$DP$191,50,FALSE)","v":4463.1229999999996},{"$f":"VLOOKUP($A110,F1__World_Data!$A$4:$DP$191,49,FALSE)","v":4404.6260000000002},{"$f":"VLOOKUP($A110,F1__World_Data!$A$4:$DP$191,48,FALSE)","v":4345.4210000000003},{"$f":"VLOOKUP($A110,F1__World_Data!$A$4:$DP$191,47,FALSE)","v":4285.5039999999999},{"$f":"VLOOKUP($A110,F1__World_Data!$A$4:$DP$191,46,FALSE)","v":4225.1559999999999},{"$f":"VLOOKUP($A110,F1__World_Data!$A$4:$DP$191,45,FALSE)","v":4164.0529999999999},{"$f":"VLOOKUP($A110,F1__World_Data!$A$4:$DP$191,44,FALSE)","v":4100.9219999999996},{"$f":"VLOOKUP($A110,F1__World_Data!$A$4:$DP$191,43,FALSE)","v":4034.0740000000001},{"$f":"VLOOKUP($A110,F1__World_Data!$A$4:$DP$191,42,FALSE)","v":3962.3690000000001},{"$f":"VLOOKUP($A110,F1__World_Data!$A$4:$DP$191,41,FALSE)","v":3885.4279999999999},{"$f":"VLOOKUP($A110,F1__World_Data!$A$4:$DP$191,40,FALSE)","v":3803.893},{"$f":"VLOOKUP($A110,F1__World_Data!$A$4:$DP$191,39,FALSE)","v":3718.9520000000002},{"$f":"VLOOKUP($A110,F1__World_Data!$A$4:$DP$191,38,FALSE)","v":3632.3609999999999},{"$f":"VLOOKUP($A110,F1__World_Data!$A$4:$DP$191,37,FALSE)","v":3545.5239999999999},{"$f":"VLOOKUP($A110,F1__World_Data!$A$4:$DP$191,36,FALSE)","v":3458.8290000000002},{"$f":"VLOOKUP($A110,F1__World_Data!$A$4:$DP$191,35,FALSE)","v":3372.2979999999998},{"$f":"VLOOKUP($A110,F1__World_Data!$A$4:$DP$191,34,FALSE)","v":3286.5250000000001},{"$f":"VLOOKUP($A110,F1__World_Data!$A$4:$DP$191,33,FALSE)","v":3202.0830000000001},{"$f":"VLOOKUP($A110,F1__World_Data!$A$4:$DP$191,32,FALSE)","v":3119.4360000000001},{"$f":"VLOOKUP($A110,F1__World_Data!$A$4:$DP$191,31,FALSE)","v":3039.0149999999999},{"$f":"VLOOKUP($A110,F1__World_Data!$A$4:$DP$191,30,FALSE)","v":2960.9319999999998},{"$f":"VLOOKUP($A110,F1__World_Data!$A$4:$DP$191,29,FALSE)","v":2884.8560000000002},{"$f":"VLOOKUP($A110,F1__World_Data!$A$4:$DP$191,28,FALSE)","v":2810.2449999999999},{"$f":"VLOOKUP($A110,F1__World_Data!$A$4:$DP$191,27,FALSE)","v":2736.7190000000001},{"$f":"VLOOKUP($A110,F1__World_Data!$A$4:$DP$191,26,FALSE)","v":2664.22},{"$f":"VLOOKUP($A110,F1__World_Data!$A$4:$DP$191,25,FALSE)","v":2593.0149999999999},{"$f":"VLOOKUP($A110,F1__World_Data!$A$4:$DP$191,24,FALSE)","v":2523.3580000000002},{"$f":"VLOOKUP($A110,F1__World_Data!$A$4:$DP$191,23,FALSE)","v":2455.5929999999998},{"$f":"VLOOKUP($A110,F1__World_Data!$A$4:$DP$191,22,FALSE)","v":2389.973},{"$f":"VLOOKUP($A110,F1__World_Data!$A$4:$DP$191,21,FALSE)","v":2326.46},{"$f":"VLOOKUP($A110,F1__World_Data!$A$4:$DP$191,20,FALSE)","v":2264.942},{"$f":"VLOOKUP($A110,F1__World_Data!$A$4:$DP$191,19,FALSE)","v":2205.6179999999999},{"$f":"VLOOKUP($A110,F1__World_Data!$A$4:$DP$191,18,FALSE)","v":2148.681},{"$f":"VLOOKUP($A110,F1__World_Data!$A$4:$DP$191,17,FALSE)","v":2094.1860000000001},{"$f":"VLOOKUP($A110,F1__World_Data!$A$4:$DP$191,16,FALSE)","v":2042.242},{"$f":"VLOOKUP($A110,F1__World_Data!$A$4:$DP$191,15,FALSE)","v":1992.5219999999999},{"$f":"VLOOKUP($A110,F1__World_Data!$A$4:$DP$191,14,FALSE)","v":1944.17},{"$f":"VLOOKUP($A110,F1__World_Data!$A$4:$DP$191,13,FALSE)","v":1896.0740000000001},{"$f":"VLOOKUP($A110,F1__World_Data!$A$4:$DP$191,12,FALSE)","v":1847.394},{"$f":"VLOOKUP($A110,F1__World_Data!$A$4:$DP$191,11,FALSE)","v":1797.8910000000001},{"$f":"VLOOKUP($A110,F1__World_Data!$A$4:$DP$191,10,FALSE)","v":1747.69},{"$f":"VLOOKUP($A110,F1__World_Data!$A$4:$DP$191,9,FALSE)","v":1696.742},{"$f":"VLOOKUP($A110,F1__World_Data!$A$4:$DP$191,8,FALSE)","v":1645.076},{"$f":"VLOOKUP($A110,F1__World_Data!$A$4:$DP$191,7,FALSE)","v":1592.8340000000001},{"$f":"VLOOKUP($A110,F1__World_Data!$A$4:$DP$191,6,FALSE)","v":1539.942},{"$f":"VLOOKUP($A110,F1__World_Data!$A$4:$DP$191,5,FALSE)","v":1486.5550000000001},{"$f":"VLOOKUP($A110,F1__World_Data!$A$4:$DP$191,4,FALSE)","v":1433.346},{"$f":"VLOOKUP($A110,F1__World_Data!$A$4:$DP$191,3,FALSE)","v":1381.1869999999999},{"$f":"VLOOKUP($A110,F1__World_Data!$A$4:$DP$191,2,FALSE)","v":1330.787},null,{"$f":"VLOOKUP($A110,F1__World_Data!$A$4:$DP$191,120,FALSE)","v":73.637107765015102},{"$f":"VLOOKUP($A110,F1__World_Data!$A$4:$DP$191,119,FALSE)","v":73.517492494111451},{"$f":"VLOOKUP($A110,F1__World_Data!$A$4:$DP$191,118,FALSE)","v":73.395956392778842},{"$f":"VLOOKUP($A110,F1__World_Data!$A$4:$DP$191,117,FALSE)","v":73.273015980955037},{"$f":"VLOOKUP($A110,F1__World_Data!$A$4:$DP$191,116,FALSE)","v":73.150584618105228},{"$f":"VLOOKUP($A110,F1__World_Data!$A$4:$DP$191,115,FALSE)","v":73.030145150125279},{"$f":"VLOOKUP($A110,F1__World_Data!$A$4:$DP$191,114,FALSE)","v":72.911803457889334},{"$f":"VLOOKUP($A110,F1__World_Data!$A$4:$DP$191,113,FALSE)","v":72.795298311480806},{"$f":"VLOOKUP($A110,F1__World_Data!$A$4:$DP$191,112,FALSE)","v":72.67939476796036},{"$f":"VLOOKUP($A110,F1__World_Data!$A$4:$DP$191,111,FALSE)","v":72.561747336395143},{"$f":"VLOOKUP($A110,F1__World_Data!$A$4:$DP$191,110,FALSE)","v":72.440791221878925},{"$f":"VLOOKUP($A110,F1__World_Data!$A$4:$DP$191,109,FALSE)","v":72.316056289520802},{"$f":"VLOOKUP($A110,F1__World_Data!$A$4:$DP$191,108,FALSE)","v":72.187024201709548},{"$f":"VLOOKUP($A110,F1__World_Data!$A$4:$DP$191,107,FALSE)","v":72.055708423096959},{"$f":"VLOOKUP($A110,F1__World_Data!$A$4:$DP$191,106,FALSE)","v":71.923538539966657},{"$f":"VLOOKUP($A110,F1__World_Data!$A$4:$DP$191,105,FALSE)","v":71.79198627417226},{"$f":"VLOOKUP($A110,F1__World_Data!$A$4:$DP$191,104,FALSE)","v":71.713359964345358},{"$f":"VLOOKUP($A110,F1__World_Data!$A$4:$DP$191,103,FALSE)","v":71.538000447490049},{"$f":"VLOOKUP($A110,F1__World_Data!$A$4:$DP$191,102,FALSE)","v":71.419185391298214},{"$f":"VLOOKUP($A110,F1__World_Data!$A$4:$DP$191,101,FALSE)","v":71.310270981539503},{"$f":"VLOOKUP($A110,F1__World_Data!$A$4:$DP$191,100,FALSE)","v":71.21031996042737},{"$f":"VLOOKUP($A110,F1__World_Data!$A$4:$DP$191,99,FALSE)","v":71.163774129209045},{"$f":"VLOOKUP($A110,F1__World_Data!$A$4:$DP$191,98,FALSE)","v":71.028989838640868},{"$f":"VLOOKUP($A110,F1__World_Data!$A$4:$DP$191,97,FALSE)","v":70.937525331800259},{"$f":"VLOOKUP($A110,F1__World_Data!$A$4:$DP$191,96,FALSE)","v":70.834489868717455},{"$f":"VLOOKUP($A110,F1__World_Data!$A$4:$DP$191,95,FALSE)","v":70.712539984335763},{"$f":"VLOOKUP($A110,F1__World_Data!$A$4:$DP$191,94,FALSE)","v":70.588066446924401},{"$f":"VLOOKUP($A110,F1__World_Data!$A$4:$DP$191,93,FALSE)","v":70.394009945599478},{"$f":"VLOOKUP($A110,F1__World_Data!$A$4:$DP$191,92,FALSE)","v":70.197631076872327},{"$f":"VLOOKUP($A110,F1__World_Data!$A$4:$DP$191,91,FALSE)","v":69.984185708155181},{"$f":"VLOOKUP($A110,F1__World_Data!$A$4:$DP$191,90,FALSE)","v":69.763201056316845},{"$f":"VLOOKUP($A110,F1__World_Data!$A$4:$DP$191,89,FALSE)","v":69.548709699732711},{"$f":"VLOOKUP($A110,F1__World_Data!$A$4:$DP$191,88,FALSE)","v":69.329770812363662},{"$f":"VLOOKUP($A110,F1__World_Data!$A$4:$DP$191,87,FALSE)","v":69.122687176363286},{"$f":"VLOOKUP($A110,F1__World_Data!$A$4:$DP$191,86,FALSE)","v":68.920937408315467},{"$f":"VLOOKUP($A110,F1__World_Data!$A$4:$DP$191,85,FALSE)","v":68.718950407055345},{"$f":"VLOOKUP($A110,F1__World_Data!$A$4:$DP$191,84,FALSE)","v":68.517816565508539},{"$f":"VLOOKUP($A110,F1__World_Data!$A$4:$DP$191,83,FALSE)","v":68.303133941519746},{"$f":"VLOOKUP($A110,F1__World_Data!$A$4:$DP$191,82,FALSE)","v":68.086726113212805},{"$f":"VLOOKUP($A110,F1__World_Data!$A$4:$DP$191,81,FALSE)","v":67.861437019779785},{"$f":"VLOOKUP($A110,F1__World_Data!$A$4:$DP$191,80,FALSE)","v":67.627852151683655},{"$f":"VLOOKUP($A110,F1__World_Data!$A$4:$DP$191,79,FALSE)","v":67.385208633368208},{"$f":"VLOOKUP($A110,F1__World_Data!$A$4:$DP$191,78,FALSE)","v":67.13336447744399},{"$f":"VLOOKUP($A110,F1__World_Data!$A$4:$DP$191,77,FALSE)","v":66.875688670547362},{"$f":"VLOOKUP($A110,F1__World_Data!$A$4:$DP$191,76,FALSE)","v":66.618286191425497},{"$f":"VLOOKUP($A110,F1__World_Data!$A$4:$DP$191,75,FALSE)","v":66.364974788459406},{"$f":"VLOOKUP($A110,F1__World_Data!$A$4:$DP$191,74,FALSE)","v":66.118883978571901},{"$f":"VLOOKUP($A110,F1__World_Data!$A$4:$DP$191,73,FALSE)","v":65.880385295601911},{"$f":"VLOOKUP($A110,F1__World_Data!$A$4:$DP$191,72,FALSE)","v":65.648808613002032},{"$f":"VLOOKUP($A110,F1__World_Data!$A$4:$DP$191,71,FALSE)","v":65.419925874108088},{"$f":"VLOOKUP($A110,F1__World_Data!$A$4:$DP$191,70,FALSE)","v":65.186992176822201},{"$f":"VLOOKUP($A110,F1__World_Data!$A$4:$DP$191,69,FALSE)","v":64.943628772980901},{"$f":"VLOOKUP($A110,F1__World_Data!$A$4:$DP$191,68,FALSE)","v":64.684667910390132},{"$f":"VLOOKUP($A110,F1__World_Data!$A$4:$DP$191,67,FALSE)","v":64.407721253920059},{"$f":"VLOOKUP($A110,F1__World_Data!$A$4:$DP$191,66,FALSE)","v":64.113791435393836},{"$f":"VLOOKUP($A110,F1__World_Data!$A$4:$DP$191,65,FALSE)","v":63.804441775374208},{"$f":"VLOOKUP($A110,F1__World_Data!$A$4:$DP$191,64,FALSE)","v":63.476465945226273},{"$f":"VLOOKUP($A110,F1__World_Data!$A$4:$DP$191,63,FALSE)","v":63.126130845617176},{"$f":"VLOOKUP($A110,F1__World_Data!$A$4:$DP$191,62,FALSE)","v":62.746295193294777}]
["State of Palestine",{"$f":"VLOOKUP($A111,F1__World_Data!$A$4:$DP$191,60,FALSE)","v":4862.9780000000001},{"$f":"VLOOKUP($A111,F1__World_Data!$A$4:$DP$191,59,FALSE)","v":4747.2330000000002},{"$f":"VLOOKUP($A111,F1__World_Data!$A$4:$DP$191,58,FALSE)","v":4635.6440000000002},{"$f":"VLOOKUP($A111,F1__World_Data!$A$4:$DP$191,57,FALSE)","v":4529.16},{"$f":"VLOOKUP($A111,F1__World_Data!$A$4:$DP$191,56,FALSE)","v":4428.634},{"$f":"VLOOKUP($A111,F1__World_Data!$A$4:$DP$191,55,FALSE)","v":4333.5209999999997},{"$f":"VLOOKUP($A111,F1__World_Data!$A$4:$DP$191,54,FALSE)","v":4241.5720000000001},{"$f":"VLOOKUP($A111,F1__World_Data!$A$4:$DP$191,53,FALSE)","v":4149.6540000000005},{"$f":"VLOOKUP($A111,F1__World_Data!$A$4:$DP$191,52,FALSE)","v":4055.6320000000001},{"$f":"VLOOKUP($A111,F1__World_Data!$A$4:$DP$191,51,FALSE)","v":3957.6840000000002},{"$f":"VLOOKUP($A111,F1__World_Data!$A$4:$DP$191,50,FALSE)","v":3856.692},{"$f":"VLOOKUP($A111,F1__World_Data!$A$4:$DP$191,49,FALSE)","v":3756.4589999999998},{"$f":"VLOOKUP($A111,F1__World_Data!$A$4:$DP$191,48,FALSE)","v":3662.4209999999998},{"$f":"VLOOKUP($A111,F1__World_Data!$A$4:$DP$191,47,FALSE)","v":3577.9560000000001},{"$f":"VLOOKUP($A111,F1__World_Data!$A$4:$DP$191,46,FALSE)","v":3505.32},{"$f":"VLOOKUP($A111,F1__World_Data!$A$4:$DP$191,45,FALSE)","v":3441.8679999999999},{"$f":"VLOOKUP($A111,F1__World_Data!$A$4:$DP$191,44,FALSE)","v":3380.1610000000001},{"$f":"VLOOKUP($A111,F1__World_Data!$A$4:$DP$191,43,FALSE)","v":3309.9079999999999},{"$f":"VLOOKUP($A111,F1__World_Data!$A$4:$DP$191,42,FALSE)","v":3224.009},{"$f":"VLOOKUP($A111,F1__World_Data!$A$4:$DP$191,41,FALSE)","v":3119.8679999999999},{"$f":"VLOOKUP($A111,F1__World_Data!$A$4:$DP$191,40,FALSE)","v":3000.6239999999998},{"$f":"VLOOKUP($A111,F1__World_Data!$A$4:$DP$191,39,FALSE)","v":2872.0059999999999},{"$f":"VLOOKUP($A111,F1__World_Data!$A$4:$DP$191,38,FALSE)","v":2742.5340000000001},{"$f":"VLOOKUP($A111,F1__World_Data!$A$4:$DP$191,37,FALSE)","v":2618.6709999999998},{"$f":"VLOOKUP($A111,F1__World_Data!$A$4:$DP$191,36,FALSE)","v":2501.973},{"$f":"VLOOKUP($A111,F1__World_Data!$A$4:$DP$191,35,FALSE)","v":2391.3989999999999},{"$f":"VLOOKUP($A111,F1__World_Data!$A$4:$DP$191,34,FALSE)","v":2287.6759999999999},{"$f":"VLOOKUP($A111,F1__World_Data!$A$4:$DP$191,33,FALSE)","v":2191},{"$f":"VLOOKUP($A111,F1__World_Data!$A$4:$DP$191,32,FALSE)","v":2101.4450000000002},{"$f":"VLOOKUP($A111,F1__World_Data!$A$4:$DP$191,31,FALSE)","v":2019.825},{"$f":"VLOOKUP($A111,F1__World_Data!$A$4:$DP$191,30,FALSE)","v":1946.376},{"$f":"VLOOKUP($A111,F1__World_Data!$A$4:$DP$191,29,FALSE)","v":1879.75},{"$f":"VLOOKUP($A111,F1__World_Data!$A$4:$DP$191,28,FALSE)","v":1817.981},{"$f":"VLOOKUP($A111,F1__World_Data!$A$4:$DP$191,27,FALSE)","v":1759.5329999999999},{"$f":"VLOOKUP($A111,F1__World_Data!$A$4:$DP$191,26,FALSE)","v":1703.808},{"$f":"VLOOKUP($A111,F1__World_Data!$A$4:$DP$191,25,FALSE)","v":1650.9259999999999},{"$f":"VLOOKUP($A111,F1__World_Data!$A$4:$DP$191,24,FALSE)","v":1600.9559999999999},{"$f":"VLOOKUP($A111,F1__World_Data!$A$4:$DP$191,23,FALSE)","v":1554.19},{"$f":"VLOOKUP($A111,F1__World_Data!$A$4:$DP$191,22,FALSE)","v":1510.7170000000001},{"$f":"VLOOKUP($A111,F1__World_Data!$A$4:$DP$191,21,FALSE)","v":1471.1379999999999},{"$f":"VLOOKUP($A111,F1__World_Data!$A$4:$DP$191,20,FALSE)","v":1434.992},{"$f":"VLOOKUP($A111,F1__World_Data!$A$4:$DP$191,19,FALSE)","v":1400.1210000000001},{"$f":"VLOOKUP($A111,F1__World_Data!$A$4:$DP$191,18,FALSE)","v":1363.6179999999999},{"$f":"VLOOKUP($A111,F1__World_Data!$A$4:$DP$191,17,FALSE)","v":1323.8050000000001},{"$f":"VLOOKUP($A111,F1__World_Data!$A$4:$DP$191,16,FALSE)","v":1278.559},{"$f":"VLOOKUP($A111,F1__World_Data!$A$4:$DP$191,15,FALSE)","v":1229.3699999999999},{"$f":"VLOOKUP($A111,F1__World_Data!$A$4:$DP$191,14,FALSE)","v":1182.4259999999999},{"$f":"VLOOKUP($A111,F1__World_Data!$A$4:$DP$191,13,FALSE)","v":1146.3209999999999},{"$f":"VLOOKUP($A111,F1__World_Data!$A$4:$DP$191,12,FALSE)","v":1126.6279999999999},{"$f":"VLOOKUP($A111,F1__World_Data!$A$4:$DP$191,11,FALSE)","v":1126.3720000000001},{"$f":"VLOOKUP($A111,F1__World_Data!$A$4:$DP$191,10,FALSE)","v":1142.2239999999999},{"$f":"VLOOKUP($A111,F1__World_Data!$A$4:$DP$191,9,FALSE)","v":1165.752},{"$f":"VLOOKUP($A111,F1__World_Data!$A$4:$DP$191,8,FALSE)","v":1184.9690000000001},{"$f":"VLOOKUP($A111,F1__World_Data!$A$4:$DP$191,7,FALSE)","v":1191.3810000000001},{"$f":"VLOOKUP($A111,F1__World_Data!$A$4:$DP$191,6,FALSE)","v":1181.893},{"$f":"VLOOKUP($A111,F1__World_Data!$A$4:$DP$191,5,FALSE)","v":1159.4000000000001},{"$f":"VLOOKUP($A111,F1__World_Data!$A$4:$DP$191,4,FALSE)","v":1128.577},{"$f":"VLOOKUP($A111,F1__World_Data!$A$4:$DP$191,3,FALSE)","v":1096.752},{"$f":"VLOOKUP($A111,F1__World_Data!$A$4:$DP$191,2,FALSE)","v":1069.318},null,{"$f":"VLOOKUP($A111,F1__World_Data!$A$4:$DP$191,120,FALSE)","v":63.856999999999999},{"$f":"VLOOKUP($A111,F1__World_Data!$A$4:$DP$191,119,FALSE)","v":63.537999999999997},{"$f":"VLOOKUP($A111,F1__World_Data!$A$4:$DP$191,118,FALSE)","v":63.152999999999999},{"$f":"VLOOKUP($A111,F1__World_Data!$A$4:$DP$191,117,FALSE)","v":62.649000000000001},{"$f":"VLOOKUP($A111,F1__World_Data!$A$4:$DP$191,116,FALSE)","v":61.968000000000004},{"$f":"VLOOKUP($A111,F1__World_Data!$A$4:$DP$191,115,FALSE)","v":61.098999999999997},{"$f":"VLOOKUP($A111,F1__World_Data!$A$4:$DP$191,114,FALSE)","v":60.06},{"$f":"VLOOKUP($A111,F1__World_Data!$A$4:$DP$191,113,FALSE)","v":58.895000000000003},{"$f":"VLOOKUP($A111,F1__World_Data!$A$4:$DP$191,112,FALSE)","v":57.668999999999997},{"$f":"VLOOKUP($A111,F1__World_Data!$A$4:$DP$191,111,FALSE)","v":56.46},{"$f":"VLOOKUP($A111,F1__World_Data!$A$4:$DP$191,110,FALSE)","v":55.36},{"$f":"VLOOKUP($A111,F1__World_Data!$A$4:$DP$191,109,FALSE)","v":54.451999999999998},{"$f":"VLOOKUP($A111,F1__World_Data!$A$4:$DP$191,108,FALSE)","v":53.795000000000002},{"$f":"VLOOKUP($A111,F1__World_Data!$A$4:$DP$191,107,FALSE)","v":53.447000000000003},{"$f":"VLOOKUP($A111,F1__World_Data!$A$4:$DP$191,106,FALSE)","v":53.444000000000003},{"$f":"VLOOKUP($A111,F1__World_Data!$A$4:$DP$191,105,FALSE)","v":53.749000000000002},{"$f":"VLOOKUP($A111,F1__World_Data!$A$4:$DP$191,104,FALSE)","v":54.31},{"$f":"VLOOKUP($A111,F1__World_Data!$A$4:$DP$191,103,FALSE)","v":55.088999999999999},{"$f":"VLOOKUP($A111,F1__World_Data!$A$4:$DP$191,102,FALSE)","v":56.048000000000002},{"$f":"VLOOKUP($A111,F1__World_Data!$A$4:$DP$191,101,FALSE)","v":57.143999999999998},{"$f":"VLOOKUP($A111,F1__World_Data!$A$4:$DP$191,100,FALSE)","v":58.314999999999998},{"$f":"VLOOKUP($A111,F1__World_Data!$A$4:$DP$191,99,FALSE)","v":59.488999999999997},{"$f":"VLOOKUP($A111,F1__World_Data!$A$4:$DP$191,98,FALSE)","v":60.594999999999999},{"$f":"VLOOKUP($A111,F1__World_Data!$A$4:$DP$191,97,FALSE)","v":61.561},{"$f":"VLOOKUP($A111,F1__World_Data!$A$4:$DP$191,96,FALSE)","v":62.331000000000003},{"$f":"VLOOKUP($A111,F1__World_Data!$A$4:$DP$191,95,FALSE)","v":62.893999999999998},{"$f":"VLOOKUP($A111,F1__World_Data!$A$4:$DP$191,94,FALSE)","v":63.247},{"$f":"VLOOKUP($A111,F1__World_Data!$A$4:$DP$191,93,FALSE)","v":63.384},{"$f":"VLOOKUP($A111,F1__World_Data!$A$4:$DP$191,92,FALSE)","v":63.307000000000002},{"$f":"VLOOKUP($A111,F1__World_Data!$A$4:$DP$191,91,FALSE)","v":63.034999999999997},{"$f":"VLOOKUP($A111,F1__World_Data!$A$4:$DP$191,90,FALSE)","v":62.619},{"$f":"VLOOKUP($A111,F1__World_Data!$A$4:$DP$191,89,FALSE)","v":62.109000000000002},{"$f":"VLOOKUP($A111,F1__World_Data!$A$4:$DP$191,88,FALSE)","v":61.54},{"$f":"VLOOKUP($A111,F1__World_Data!$A$4:$DP$191,87,FALSE)","v":60.945999999999998},{"$f":"VLOOKUP($A111,F1__World_Data!$A$4:$DP$191,86,FALSE)","v":60.353000000000002},{"$f":"VLOOKUP($A111,F1__World_Data!$A$4:$DP$191,85,FALSE)","v":59.765999999999998},{"$f":"VLOOKUP($A111,F1__World_Data!$A$4:$DP$191,84,FALSE)","v":59.191000000000003},{"$f":"VLOOKUP($A111,F1__World_Data!$A$4:$DP$191,83,FALSE)","v":58.637},{"$f":"VLOOKUP($A111,F1__World_Data!$A$4:$DP$191,82,FALSE)","v":58.106999999999999},{"$f":"VLOOKUP($A111,F1__World_Data!$A$4:$DP$191,81,FALSE)","v":57.59},{"$f":"VLOOKUP($A111,F1__World_Data!$A$4:$DP$191,80,FALSE)","v":57.070999999999998},{"$f":"VLOOKUP($A111,F1__World_Data!$A$4:$DP$191,79,FALSE)","v":56.537999999999997},{"$f":"VLOOKUP($A111,F1__World_Data!$A$4:$DP$191,78,FALSE)","v":55.99},{"$f":"VLOOKUP($A111,F1__World_Data!$A$4:$DP$191,77,FALSE)","v":55.427999999999997},{"$f":"VLOOKUP($A111,F1__World_Data!$A$4:$DP$191,76,FALSE)","v":54.856000000000002},{"$f":"VLOOKUP($A111,F1__World_Data!$A$4:$DP$191,75,FALSE)","v":54.280999999999999},{"$f":"VLOOKUP($A111,F1__World_Data!$A$4:$DP$191,74,FALSE)","v":53.713000000000001},{"$f":"VLOOKUP($A111,F1__World_Data!$A$4:$DP$191,73,FALSE)","v":53.156999999999996},{"$f":"VLOOKUP($A111,F1__World_Data!$A$4:$DP$191,72,FALSE)","v":52.62},{"$f":"VLOOKUP($A111,F1__World_Data!$A$4:$DP$191,71,FALSE)","v":52.106000000000002},{"$f":"VLOOKUP($A111,F1__World_Data!$A$4:$DP$191,70,FALSE)","v":51.615000000000002},{"$f":"VLOOKUP($A111,F1__World_Data!$A$4:$DP$191,69,FALSE)","v":51.148000000000003},{"$f":"VLOOKUP($A111,F1__World_Data!$A$4:$DP$191,68,FALSE)","v":50.704999999999998},{"$f":"VLOOKUP($A111,F1__World_Data!$A$4:$DP$191,67,FALSE)","v":50.283999999999999},{"$f":"VLOOKUP($A111,F1__World_Data!$A$4:$DP$191,66,FALSE)","v":49.887999999999998},{"$f":"VLOOKUP($A111,F1__World_Data!$A$4:$DP$191,65,FALSE)","v":49.509},{"$f":"VLOOKUP($A111,F1__World_Data!$A$4:$DP$191,64,FALSE)","v":49.142000000000003},{"$f":"VLOOKUP($A111,F1__World_Data!$A$4:$DP$191,63,FALSE)","v":48.777000000000001},{"$f":"VLOOKUP($A111,F1__World_Data!$A$4:$DP$191,62,FALSE)","v":48.405999999999999}]
["Oman",{"$f":"VLOOKUP($A112,F1__World_Data!$A$4:$DP$191,60,FALSE)","v":4829.4759999999997},{"$f":"VLOOKUP($A112,F1__World_Data!$A$4:$DP$191,59,FALSE)","v":4665.9260000000004},{"$f":"VLOOKUP($A112,F1__World_Data!$A$4:$DP$191,58,FALSE)","v":4479.2169999999996},{"$f":"VLOOKUP($A112,F1__World_Data!$A$4:$DP$191,57,FALSE)","v":4267.3410000000003},{"$f":"VLOOKUP($A112,F1__World_Data!$A$4:$DP$191,56,FALSE)","v":4027.2550000000001},{"$f":"VLOOKUP($A112,F1__World_Data!$A$4:$DP$191,55,FALSE)","v":3764.8049999999998},{"$f":"VLOOKUP($A112,F1__World_Data!$A$4:$DP$191,54,FALSE)","v":3498.0309999999999},{"$f":"VLOOKUP($A112,F1__World_Data!$A$4:$DP$191,53,FALSE)","v":3251.1019999999999},{"$f":"VLOOKUP($A112,F1__World_Data!$A$4:$DP$191,52,FALSE)","v":3041.4349999999999},{"$f":"VLOOKUP($A112,F1__World_Data!$A$4:$DP$191,51,FALSE)","v":2876.1860000000001},{"$f":"VLOOKUP($A112,F1__World_Data!$A$4:$DP$191,50,FALSE)","v":2750.9560000000001},{"$f":"VLOOKUP($A112,F1__World_Data!$A$4:$DP$191,49,FALSE)","v":2657.1619999999998},{"$f":"VLOOKUP($A112,F1__World_Data!$A$4:$DP$191,48,FALSE)","v":2580.7530000000002},{"$f":"VLOOKUP($A112,F1__World_Data!$A$4:$DP$191,47,FALSE)","v":2511.2539999999999},{"$f":"VLOOKUP($A112,F1__World_Data!$A$4:$DP$191,46,FALSE)","v":2445.5239999999999},{"$f":"VLOOKUP($A112,F1__World_Data!$A$4:$DP$191,45,FALSE)","v":2386.1640000000002},{"$f":"VLOOKUP($A112,F1__World_Data!$A$4:$DP$191,44,FALSE)","v":2334.86},{"$f":"VLOOKUP($A112,F1__World_Data!$A$4:$DP$191,43,FALSE)","v":2294.9589999999998},{"$f":"VLOOKUP($A112,F1__World_Data!$A$4:$DP$191,42,FALSE)","v":2267.973},{"$f":"VLOOKUP($A112,F1__World_Data!$A$4:$DP$191,41,FALSE)","v":2254.8980000000001},{"$f":"VLOOKUP($A112,F1__World_Data!$A$4:$DP$191,40,FALSE)","v":2251.8589999999999},{"$f":"VLOOKUP($A112,F1__World_Data!$A$4:$DP$191,39,FALSE)","v":2249.759},{"$f":"VLOOKUP($A112,F1__World_Data!$A$4:$DP$191,38,FALSE)","v":2236.652},{"$f":"VLOOKUP($A112,F1__World_Data!$A$4:$DP$191,37,FALSE)","v":2204.2669999999998},{"$f":"VLOOKUP($A112,F1__World_Data!$A$4:$DP$191,36,FALSE)","v":2148.4160000000002},{"$f":"VLOOKUP($A112,F1__World_Data!$A$4:$DP$191,35,FALSE)","v":2072.1060000000002},{"$f":"VLOOKUP($A112,F1__World_Data!$A$4:$DP$191,34,FALSE)","v":1983.2719999999999},{"$f":"VLOOKUP($A112,F1__World_Data!$A$4:$DP$191,33,FALSE)","v":1893.761},{"$f":"VLOOKUP($A112,F1__World_Data!$A$4:$DP$191,32,FALSE)","v":1812.1579999999999},{"$f":"VLOOKUP($A112,F1__World_Data!$A$4:$DP$191,31,FALSE)","v":1741.155},{"$f":"VLOOKUP($A112,F1__World_Data!$A$4:$DP$191,30,FALSE)","v":1678.1189999999999},{"$f":"VLOOKUP($A112,F1__World_Data!$A$4:$DP$191,29,FALSE)","v":1619.8710000000001},{"$f":"VLOOKUP($A112,F1__World_Data!$A$4:$DP$191,28,FALSE)","v":1561.18},{"$f":"VLOOKUP($A112,F1__World_Data!$A$4:$DP$191,27,FALSE)","v":1498.413},{"$f":"VLOOKUP($A112,F1__World_Data!$A$4:$DP$191,26,FALSE)","v":1431.066},{"$f":"VLOOKUP($A112,F1__World_Data!$A$4:$DP$191,25,FALSE)","v":1361.085},{"$f":"VLOOKUP($A112,F1__World_Data!$A$4:$DP$191,24,FALSE)","v":1290.1210000000001},{"$f":"VLOOKUP($A112,F1__World_Data!$A$4:$DP$191,23,FALSE)","v":1220.578},{"$f":"VLOOKUP($A112,F1__World_Data!$A$4:$DP$191,22,FALSE)","v":1154.373},{"$f":"VLOOKUP($A112,F1__World_Data!$A$4:$DP$191,21,FALSE)","v":1091.8579999999999},{"$f":"VLOOKUP($A112,F1__World_Data!$A$4:$DP$191,20,FALSE)","v":1032.797},{"$f":"VLOOKUP($A112,F1__World_Data!$A$4:$DP$191,19,FALSE)","v":977.80399999999997},{"$f":"VLOOKUP($A112,F1__World_Data!$A$4:$DP$191,18,FALSE)","v":927.43399999999997},{"$f":"VLOOKUP($A112,F1__World_Data!$A$4:$DP$191,17,FALSE)","v":882.03800000000001},{"$f":"VLOOKUP($A112,F1__World_Data!$A$4:$DP$191,16,FALSE)","v":841.952},{"$f":"VLOOKUP($A112,F1__World_Data!$A$4:$DP$191,15,FALSE)","v":806.98500000000001},{"$f":"VLOOKUP($A112,F1__World_Data!$A$4:$DP$191,14,FALSE)","v":776.38499999999999},{"$f":"VLOOKUP($A112,F1__World_Data!$A$4:$DP$191,13,FALSE)","v":748.96799999999996},{"$f":"VLOOKUP($A112,F1__World_Data!$A$4:$DP$191,12,FALSE)","v":723.84199999999998},{"$f":"VLOOKUP($A112,F1__World_Data!$A$4:$DP$191,11,FALSE)","v":700.72500000000002},{"$f":"VLOOKUP($A112,F1__World_Data!$A$4:$DP$191,10,FALSE)","v":679.59199999999998},{"$f":"VLOOKUP($A112,F1__World_Data!$A$4:$DP$191,9,FALSE)","v":660.11699999999996},{"$f":"VLOOKUP($A112,F1__World_Data!$A$4:$DP$191,8,FALSE)","v":642.00699999999995},{"$f":"VLOOKUP($A112,F1__World_Data!$A$4:$DP$191,7,FALSE)","v":625.00599999999997},{"$f":"VLOOKUP($A112,F1__World_Data!$A$4:$DP$191,6,FALSE)","v":608.89},{"$f":"VLOOKUP($A112,F1__World_Data!$A$4:$DP$191,5,FALSE)","v":593.49800000000005},{"$f":"VLOOKUP($A112,F1__World_Data!$A$4:$DP$191,4,FALSE)","v":578.827},{"$f":"VLOOKUP($A112,F1__World_Data!$A$4:$DP$191,3,FALSE)","v":564.89099999999996},{"$f":"VLOOKUP($A112,F1__World_Data!$A$4:$DP$191,2,FALSE)","v":551.73500000000001},null,{"$f":"VLOOKUP($A112,F1__World_Data!$A$4:$DP$191,120,FALSE)","v":68.116},{"$f":"VLOOKUP($A112,F1__World_Data!$A$4:$DP$191,119,FALSE)","v":67.850999999999999},{"$f":"VLOOKUP($A112,F1__World_Data!$A$4:$DP$191,118,FALSE)","v":67.576999999999998},{"$f":"VLOOKUP($A112,F1__World_Data!$A$4:$DP$191,117,FALSE)","v":67.290999999999997},{"$f":"VLOOKUP($A112,F1__World_Data!$A$4:$DP$191,116,FALSE)","v":66.995000000000005},{"$f":"VLOOKUP($A112,F1__World_Data!$A$4:$DP$191,115,FALSE)","v":66.69},{"$f":"VLOOKUP($A112,F1__World_Data!$A$4:$DP$191,114,FALSE)","v":66.381},{"$f":"VLOOKUP($A112,F1__World_Data!$A$4:$DP$191,113,FALSE)","v":66.072000000000003},{"$f":"VLOOKUP($A112,F1__World_Data!$A$4:$DP$191,112,FALSE)","v":65.769000000000005},{"$f":"VLOOKUP($A112,F1__World_Data!$A$4:$DP$191,111,FALSE)","v":65.48},{"$f":"VLOOKUP($A112,F1__World_Data!$A$4:$DP$191,110,FALSE)","v":65.207999999999998},{"$f":"VLOOKUP($A112,F1__World_Data!$A$4:$DP$191,109,FALSE)","v":64.953000000000003},{"$f":"VLOOKUP($A112,F1__World_Data!$A$4:$DP$191,108,FALSE)","v":64.712000000000003},{"$f":"VLOOKUP($A112,F1__World_Data!$A$4:$DP$191,107,FALSE)","v":64.477999999999994},{"$f":"VLOOKUP($A112,F1__World_Data!$A$4:$DP$191,106,FALSE)","v":64.242000000000004},{"$f":"VLOOKUP($A112,F1__World_Data!$A$4:$DP$191,105,FALSE)","v":63.994999999999997},{"$f":"VLOOKUP($A112,F1__World_Data!$A$4:$DP$191,104,FALSE)","v":63.731000000000002},{"$f":"VLOOKUP($A112,F1__World_Data!$A$4:$DP$191,103,FALSE)","v":63.445999999999998},{"$f":"VLOOKUP($A112,F1__World_Data!$A$4:$DP$191,102,FALSE)","v":63.143999999999998},{"$f":"VLOOKUP($A112,F1__World_Data!$A$4:$DP$191,101,FALSE)","v":62.829000000000001},{"$f":"VLOOKUP($A112,F1__World_Data!$A$4:$DP$191,100,FALSE)","v":62.509},{"$f":"VLOOKUP($A112,F1__World_Data!$A$4:$DP$191,99,FALSE)","v":62.188000000000002},{"$f":"VLOOKUP($A112,F1__World_Data!$A$4:$DP$191,98,FALSE)","v":61.866},{"$f":"VLOOKUP($A112,F1__World_Data!$A$4:$DP$191,97,FALSE)","v":61.539000000000001},{"$f":"VLOOKUP($A112,F1__World_Data!$A$4:$DP$191,96,FALSE)","v":61.198},{"$f":"VLOOKUP($A112,F1__World_Data!$A$4:$DP$191,95,FALSE)","v":60.837000000000003},{"$f":"VLOOKUP($A112,F1__World_Data!$A$4:$DP$191,94,FALSE)","v":60.454999999999998},{"$f":"VLOOKUP($A112,F1__World_Data!$A$4:$DP$191,93,FALSE)","v":60.052999999999997},{"$f":"VLOOKUP($A112,F1__World_Data!$A$4:$DP$191,92,FALSE)","v":59.636000000000003},{"$f":"VLOOKUP($A112,F1__World_Data!$A$4:$DP$191,91,FALSE)","v":59.209000000000003},{"$f":"VLOOKUP($A112,F1__World_Data!$A$4:$DP$191,90,FALSE)","v":58.783000000000001},{"$f":"VLOOKUP($A112,F1__World_Data!$A$4:$DP$191,89,FALSE)","v":58.366},{"$f":"VLOOKUP($A112,F1__World_Data!$A$4:$DP$191,88,FALSE)","v":57.962000000000003},{"$f":"VLOOKUP($A112,F1__World_Data!$A$4:$DP$191,87,FALSE)","v":57.579000000000001},{"$f":"VLOOKUP($A112,F1__World_Data!$A$4:$DP$191,86,FALSE)","v":57.220999999999997},{"$f":"VLOOKUP($A112,F1__World_Data!$A$4:$DP$191,85,FALSE)","v":56.886000000000003},{"$f":"VLOOKUP($A112,F1__World_Data!$A$4:$DP$191,84,FALSE)","v":56.569000000000003},{"$f":"VLOOKUP($A112,F1__World_Data!$A$4:$DP$191,83,FALSE)","v":56.265999999999998},{"$f":"VLOOKUP($A112,F1__World_Data!$A$4:$DP$191,82,FALSE)","v":55.970999999999997},{"$f":"VLOOKUP($A112,F1__World_Data!$A$4:$DP$191,81,FALSE)","v":55.679000000000002},{"$f":"VLOOKUP($A112,F1__World_Data!$A$4:$DP$191,80,FALSE)","v":55.381999999999998},{"$f":"VLOOKUP($A112,F1__World_Data!$A$4:$DP$191,79,FALSE)","v":55.073999999999998},{"$f":"VLOOKUP($A112,F1__World_Data!$A$4:$DP$191,78,FALSE)","v":54.747999999999998},{"$f":"VLOOKUP($A112,F1__World_Data!$A$4:$DP$191,77,FALSE)","v":54.399000000000001},{"$f":"VLOOKUP($A112,F1__World_Data!$A$4:$DP$191,76,FALSE)","v":54.027000000000001},{"$f":"VLOOKUP($A112,F1__World_Data!$A$4:$DP$191,75,FALSE)","v":53.633000000000003},{"$f":"VLOOKUP($A112,F1__World_Data!$A$4:$DP$191,74,FALSE)","v":53.218000000000004},{"$f":"VLOOKUP($A112,F1__World_Data!$A$4:$DP$191,73,FALSE)","v":52.781999999999996},{"$f":"VLOOKUP($A112,F1__World_Data!$A$4:$DP$191,72,FALSE)","v":52.323},{"$f":"VLOOKUP($A112,F1__World_Data!$A$4:$DP$191,71,FALSE)","v":51.837000000000003},{"$f":"VLOOKUP($A112,F1__World_Data!$A$4:$DP$191,70,FALSE)","v":51.326999999999998},{"$f":"VLOOKUP($A112,F1__World_Data!$A$4:$DP$191,69,FALSE)","v":50.795999999999999},{"$f":"VLOOKUP($A112,F1__World_Data!$A$4:$DP$191,68,FALSE)","v":50.25},{"$f":"VLOOKUP($A112,F1__World_Data!$A$4:$DP$191,67,FALSE)","v":49.697000000000003},{"$f":"VLOOKUP($A112,F1__World_Data!$A$4:$DP$191,66,FALSE)","v":49.145000000000003},{"$f":"VLOOKUP($A112,F1__World_Data!$A$4:$DP$191,65,FALSE)","v":48.600999999999999},{"$f":"VLOOKUP($A112,F1__World_Data!$A$4:$DP$191,64,FALSE)","v":48.070999999999998},{"$f":"VLOOKUP($A112,F1__World_Data!$A$4:$DP$191,63,FALSE)","v":47.557000000000002},{"$f":"VLOOKUP($A112,F1__World_Data!$A$4:$DP$191,62,FALSE)","v":47.061}]
["Liberia",{"$f":"VLOOKUP($A113,F1__World_Data!$A$4:$DP$191,60,FALSE)","v":4818.9759999999997},{"$f":"VLOOKUP($A113,F1__World_Data!$A$4:$DP$191,59,FALSE)","v":4702.2240000000002},{"$f":"VLOOKUP($A113,F1__World_Data!$A$4:$DP$191,58,FALSE)","v":4586.7879999999996},{"$f":"VLOOKUP($A113,F1__World_Data!$A$4:$DP$191,57,FALSE)","v":4472.2290000000003},{"$f":"VLOOKUP($A113,F1__World_Data!$A$4:$DP$191,56,FALSE)","v":4359.5079999999998},{"$f":"VLOOKUP($A113,F1__World_Data!$A$4:$DP$191,55,FALSE)","v":4248.3370000000004},{"$f":"VLOOKUP($A113,F1__World_Data!$A$4:$DP$191,54,FALSE)","v":4135.6620000000003},{"$f":"VLOOKUP($A113,F1__World_Data!$A$4:$DP$191,53,FALSE)","v":4017.4459999999999},{"$f":"VLOOKUP($A113,F1__World_Data!$A$4:$DP$191,52,FALSE)","v":3891.357},{"$f":"VLOOKUP($A113,F1__World_Data!$A$4:$DP$191,51,FALSE)","v":3754.1289999999999},{"$f":"VLOOKUP($A113,F1__World_Data!$A$4:$DP$191,50,FALSE)","v":3607.8629999999998},{"$f":"VLOOKUP($A113,F1__World_Data!$A$4:$DP$191,49,FALSE)","v":3461.9110000000001},{"$f":"VLOOKUP($A113,F1__World_Data!$A$4:$DP$191,48,FALSE)","v":3329.2109999999998},{"$f":"VLOOKUP($A113,F1__World_Data!$A$4:$DP$191,47,FALSE)","v":3218.114},{"$f":"VLOOKUP($A113,F1__World_Data!$A$4:$DP$191,46,FALSE)","v":3135.654},{"$f":"VLOOKUP($A113,F1__World_Data!$A$4:$DP$191,45,FALSE)","v":3077.0549999999998},{"$f":"VLOOKUP($A113,F1__World_Data!$A$4:$DP$191,44,FALSE)","v":3024.7269999999999},{"$f":"VLOOKUP($A113,F1__World_Data!$A$4:$DP$191,43,FALSE)","v":2953.9279999999999},{"$f":"VLOOKUP($A113,F1__World_Data!$A$4:$DP$191,42,FALSE)","v":2848.4470000000001},{"$f":"VLOOKUP($A113,F1__World_Data!$A$4:$DP$191,41,FALSE)","v":2699.7080000000001},{"$f":"VLOOKUP($A113,F1__World_Data!$A$4:$DP$191,40,FALSE)","v":2517.4720000000002},{"$f":"VLOOKUP($A113,F1__World_Data!$A$4:$DP$191,39,FALSE)","v":2326.21},{"$f":"VLOOKUP($A113,F1__World_Data!$A$4:$DP$191,38,FALSE)","v":2160.48},{"$f":"VLOOKUP($A113,F1__World_Data!$A$4:$DP$191,37,FALSE)","v":2044.6569999999999},{"$f":"VLOOKUP($A113,F1__World_Data!$A$4:$DP$191,36,FALSE)","v":1986.491},{"$f":"VLOOKUP($A113,F1__World_Data!$A$4:$DP$191,35,FALSE)","v":1976.701},{"$f":"VLOOKUP($A113,F1__World_Data!$A$4:$DP$191,34,FALSE)","v":2001.6120000000001},{"$f":"VLOOKUP($A113,F1__World_Data!$A$4:$DP$191,33,FALSE)","v":2040.1410000000001},{"$f":"VLOOKUP($A113,F1__World_Data!$A$4:$DP$191,32,FALSE)","v":2075.9169999999999},{"$f":"VLOOKUP($A113,F1__World_Data!$A$4:$DP$191,31,FALSE)","v":2106.4290000000001},{"$f":"VLOOKUP($A113,F1__World_Data!$A$4:$DP$191,30,FALSE)","v":2134.105},{"$f":"VLOOKUP($A113,F1__World_Data!$A$4:$DP$191,29,FALSE)","v":2153.3119999999999},{"$f":"VLOOKUP($A113,F1__World_Data!$A$4:$DP$191,28,FALSE)","v":2158.4340000000002},{"$f":"VLOOKUP($A113,F1__World_Data!$A$4:$DP$191,27,FALSE)","v":2145.7559999999999},{"$f":"VLOOKUP($A113,F1__World_Data!$A$4:$DP$191,26,FALSE)","v":2111.6669999999999},{"$f":"VLOOKUP($A113,F1__World_Data!$A$4:$DP$191,25,FALSE)","v":2057.232},{"$f":"VLOOKUP($A113,F1__World_Data!$A$4:$DP$191,24,FALSE)","v":1989.4770000000001},{"$f":"VLOOKUP($A113,F1__World_Data!$A$4:$DP$191,23,FALSE)","v":1918.8320000000001},{"$f":"VLOOKUP($A113,F1__World_Data!$A$4:$DP$191,22,FALSE)","v":1852.991},{"$f":"VLOOKUP($A113,F1__World_Data!$A$4:$DP$191,21,FALSE)","v":1794.251},{"$f":"VLOOKUP($A113,F1__World_Data!$A$4:$DP$191,20,FALSE)","v":1740.9190000000001},{"$f":"VLOOKUP($A113,F1__World_Data!$A$4:$DP$191,19,FALSE)","v":1692.155},{"$f":"VLOOKUP($A113,F1__World_Data!$A$4:$DP$191,18,FALSE)","v":1645.8330000000001},{"$f":"VLOOKUP($A113,F1__World_Data!$A$4:$DP$191,17,FALSE)","v":1600.454},{"$f":"VLOOKUP($A113,F1__World_Data!$A$4:$DP$191,16,FALSE)","v":1556.288},{"$f":"VLOOKUP($A113,F1__World_Data!$A$4:$DP$191,15,FALSE)","v":1514.364},{"$f":"VLOOKUP($A113,F1__World_Data!$A$4:$DP$191,14,FALSE)","v":1474.567},{"$f":"VLOOKUP($A113,F1__World_Data!$A$4:$DP$191,13,FALSE)","v":1436.74},{"$f":"VLOOKUP($A113,F1__World_Data!$A$4:$DP$191,12,FALSE)","v":1400.73},{"$f":"VLOOKUP($A113,F1__World_Data!$A$4:$DP$191,11,FALSE)","v":1366.5},{"$f":"VLOOKUP($A113,F1__World_Data!$A$4:$DP$191,10,FALSE)","v":1333.98},{"$f":"VLOOKUP($A113,F1__World_Data!$A$4:$DP$191,9,FALSE)","v":1303.0319999999999},{"$f":"VLOOKUP($A113,F1__World_Data!$A$4:$DP$191,8,FALSE)","v":1273.4580000000001},{"$f":"VLOOKUP($A113,F1__World_Data!$A$4:$DP$191,7,FALSE)","v":1245.104},{"$f":"VLOOKUP($A113,F1__World_Data!$A$4:$DP$191,6,FALSE)","v":1217.905},{"$f":"VLOOKUP($A113,F1__World_Data!$A$4:$DP$191,5,FALSE)","v":1191.796},{"$f":"VLOOKUP($A113,F1__World_Data!$A$4:$DP$191,4,FALSE)","v":1166.6510000000001},{"$f":"VLOOKUP($A113,F1__World_Data!$A$4:$DP$191,3,FALSE)","v":1142.3040000000001},{"$f":"VLOOKUP($A113,F1__World_Data!$A$4:$DP$191,2,FALSE)","v":1118.655},null,{"$f":"VLOOKUP($A113,F1__World_Data!$A$4:$DP$191,120,FALSE)","v":68.116},{"$f":"VLOOKUP($A113,F1__World_Data!$A$4:$DP$191,119,FALSE)","v":67.850999999999999},{"$f":"VLOOKUP($A113,F1__World_Data!$A$4:$DP$191,118,FALSE)","v":67.576999999999998},{"$f":"VLOOKUP($A113,F1__World_Data!$A$4:$DP$191,117,FALSE)","v":67.290999999999997},{"$f":"VLOOKUP($A113,F1__World_Data!$A$4:$DP$191,116,FALSE)","v":66.995000000000005},{"$f":"VLOOKUP($A113,F1__World_Data!$A$4:$DP$191,115,FALSE)","v":66.69},{"$f":"VLOOKUP($A113,F1__World_Data!$A$4:$DP$191,114,FALSE)","v":66.381},{"$f":"VLOOKUP($A113,F1__World_Data!$A$4:$DP$191,113,FALSE)","v":66.072000000000003},{"$f":"VLOOKUP($A113,F1__World_Data!$A$4:$DP$191,112,FALSE)","v":65.769000000000005},{"$f":"VLOOKUP($A113,F1__World_Data!$A$4:$DP$191,111,FALSE)","v":65.48},{"$f":"VLOOKUP($A113,F1__World_Data!$A$4:$DP$191,110,FALSE)","v":65.207999999999998},{"$f":"VLOOKUP($A113,F1__World_Data!$A$4:$DP$191,109,FALSE)","v":64.953000000000003},{"$f":"VLOOKUP($A113,F1__World_Data!$A$4:$DP$191,108,FALSE)","v":64.712000000000003},{"$f":"VLOOKUP($A113,F1__World_Data!$A$4:$DP$191,107,FALSE)","v":64.477999999999994},{"$f":"VLOOKUP($A113,F1__World_Data!$A$4:$DP$191,106,FALSE)","v":64.242000000000004},{"$f":"VLOOKUP($A113,F1__World_Data!$A$4:$DP$191,105,FALSE)","v":63.994999999999997},{"$f":"VLOOKUP($A113,F1__World_Data!$A$4:$DP$191,104,FALSE)","v":63.731000000000002},{"$f":"VLOOKUP($A113,F1__World_Data!$A$4:$DP$191,103,FALSE)","v":63.445999999999998},{"$f":"VLOOKUP($A113,F1__World_Data!$A$4:$DP$191,102,FALSE)","v":63.143999999999998},{"$f":"VLOOKUP($A113,F1__World_Data!$A$4:$DP$191,101,FALSE)","v":62.829000000000001},{"$f":"VLOOKUP($A113,F1__World_Data!$A$4:$DP$191,100,FALSE)","v":62.509},{"$f":"VLOOKUP($A113,F1__World_Data!$A$4:$DP$191,99,FALSE)","v":62.188000000000002},{"$f":"VLOOKUP($A113,F1__World_Data!$A$4:$DP$191,98,FALSE)","v":61.866},{"$f":"VLOOKUP($A113,F1__World_Data!$A$4:$DP$191,97,FALSE)","v":61.539000000000001},{"$f":"VLOOKUP($A113,F1__World_Data!$A$4:$DP$191,96,FALSE)","v":61.198},{"$f":"VLOOKUP($A113,F1__World_Data!$A$4:$DP$191,95,FALSE)","v":60.837000000000003},{"$f":"VLOOKUP($A113,F1__World_Data!$A$4:$DP$191,94,FALSE)","v":60.454999999999998},{"$f":"VLOOKUP($A113,F1__World_Data!$A$4:$DP$191,93,FALSE)","v":60.052999999999997},{"$f":"VLOOKUP($A113,F1__World_Data!$A$4:$DP$191,92,FALSE)","v":59.636000000000003},{"$f":"VLOOKUP($A113,F1__World_Data!$A$4:$DP$191,91,FALSE)","v":59.209000000000003},{"$f":"VLOOKUP($A113,F1__World_Data!$A$4:$DP$191,90,FALSE)","v":58.783000000000001},{"$f":"VLOOKUP($A113,F1__World_Data!$A$4:$DP$191,89,FALSE)","v":58.366},{"$f":"VLOOKUP($A113,F1__World_Data!$A$4:$DP$191,88,FALSE)","v":57.962000000000003},{"$f":"VLOOKUP($A113,F1__World_Data!$A$4:$DP$191,87,FALSE)","v":57.579000000000001},{"$f":"VLOOKUP($A113,F1__World_Data!$A$4:$DP$191,86,FALSE)","v":57.220999999999997},{"$f":"VLOOKUP($A113,F1__World_Data!$A$4:$DP$191,85,FALSE)","v":56.886000000000003},{"$f":"VLOOKUP($A113,F1__World_Data!$A$4:$DP$191,84,FALSE)","v":56.569000000000003},{"$f":"VLOOKUP($A113,F1__World_Data!$A$4:$DP$191,83,FALSE)","v":56.265999999999998},{"$f":"VLOOKUP($A113,F1__World_Data!$A$4:$DP$191,82,FALSE)","v":55.970999999999997},{"$f":"VLOOKUP($A113,F1__World_Data!$A$4:$DP$191,81,FALSE)","v":55.679000000000002},{"$f":"VLOOKUP($A113,F1__World_Data!$A$4:$DP$191,80,FALSE)","v":55.381999999999998},{"$f":"VLOOKUP($A113,F1__World_Data!$A$4:$DP$191,79,FALSE)","v":55.073999999999998},{"$f":"VLOOKUP($A113,F1__World_Data!$A$4:$DP$191,78,FALSE)","v":54.747999999999998},{"$f":"VLOOKUP($A113,F1__World_Data!$A$4:$DP$191,77,FALSE)","v":54.399000000000001},{"$f":"VLOOKUP($A113,F1__World_Data!$A$4:$DP$191,76,FALSE)","v":54.027000000000001},{"$f":"VLOOKUP($A113,F1__World_Data!$A$4:$DP$191,75,FALSE)","v":53.633000000000003},{"$f":"VLOOKUP($A113,F1__World_Data!$A$4:$DP$191,74,FALSE)","v":53.218000000000004},{"$f":"VLOOKUP($A113,F1__World_Data!$A$4:$DP$191,73,FALSE)","v":52.781999999999996},{"$f":"VLOOKUP($A113,F1__World_Data!$A$4:$DP$191,72,FALSE)","v":52.323},{"$f":"VLOOKUP($A113,F1__World_Data!$A$4:$DP$191,71,FALSE)","v":51.837000000000003},{"$f":"VLOOKUP($A113,F1__World_Data!$A$4:$DP$191,70,FALSE)","v":51.326999999999998},{"$f":"VLOOKUP($A113,F1__World_Data!$A$4:$DP$191,69,FALSE)","v":50.795999999999999},{"$f":"VLOOKUP($A113,F1__World_Data!$A$4:$DP$191,68,FALSE)","v":50.25},{"$f":"VLOOKUP($A113,F1__World_Data!$A$4:$DP$191,67,FALSE)","v":49.697000000000003},{"$f":"VLOOKUP($A113,F1__World_Data!$A$4:$DP$191,66,FALSE)","v":49.145000000000003},{"$f":"VLOOKUP($A113,F1__World_Data!$A$4:$DP$191,65,FALSE)","v":48.600999999999999},{"$f":"VLOOKUP($A113,F1__World_Data!$A$4:$DP$191,64,FALSE)","v":48.070999999999998},{"$f":"VLOOKUP($A113,F1__World_Data!$A$4:$DP$191,63,FALSE)","v":47.557000000000002},{"$f":"VLOOKUP($A113,F1__World_Data!$A$4:$DP$191,62,FALSE)","v":47.061}]
["Ireland",{"$f":"VLOOKUP($A114,F1__World_Data!$A$4:$DP$191,60,FALSE)","v":4818.6940000000004},{"$f":"VLOOKUP($A114,F1__World_Data!$A$4:$DP$191,59,FALSE)","v":4753.2809999999999},{"$f":"VLOOKUP($A114,F1__World_Data!$A$4:$DP$191,58,FALSE)","v":4695.79},{"$f":"VLOOKUP($A114,F1__World_Data!$A$4:$DP$191,57,FALSE)","v":4652.42},{"$f":"VLOOKUP($A114,F1__World_Data!$A$4:$DP$191,56,FALSE)","v":4626.8519999999999},{"$f":"VLOOKUP($A114,F1__World_Data!$A$4:$DP$191,55,FALSE)","v":4615.4260000000004},{"$f":"VLOOKUP($A114,F1__World_Data!$A$4:$DP$191,54,FALSE)","v":4608.1989999999996},{"$f":"VLOOKUP($A114,F1__World_Data!$A$4:$DP$191,53,FALSE)","v":4591.1149999999998},{"$f":"VLOOKUP($A114,F1__World_Data!$A$4:$DP$191,52,FALSE)","v":4554.33},{"$f":"VLOOKUP($A114,F1__World_Data!$A$4:$DP$191,51,FALSE)","v":4494.5720000000001},{"$f":"VLOOKUP($A114,F1__World_Data!$A$4:$DP$191,50,FALSE)","v":4415.8710000000001},{"$f":"VLOOKUP($A114,F1__World_Data!$A$4:$DP$191,49,FALSE)","v":4324.6490000000003},{"$f":"VLOOKUP($A114,F1__World_Data!$A$4:$DP$191,48,FALSE)","v":4230.6189999999997},{"$f":"VLOOKUP($A114,F1__World_Data!$A$4:$DP$191,47,FALSE)","v":4141.2179999999998},{"$f":"VLOOKUP($A114,F1__World_Data!$A$4:$DP$191,46,FALSE)","v":4058.1309999999999},{"$f":"VLOOKUP($A114,F1__World_Data!$A$4:$DP$191,45,FALSE)","v":3980.0770000000002},{"$f":"VLOOKUP($A114,F1__World_Data!$A$4:$DP$191,44,FALSE)","v":3907.9949999999999},{"$f":"VLOOKUP($A114,F1__World_Data!$A$4:$DP$191,43,FALSE)","v":3842.2530000000002},{"$f":"VLOOKUP($A114,F1__World_Data!$A$4:$DP$191,42,FALSE)","v":3783.0949999999998},{"$f":"VLOOKUP($A114,F1__World_Data!$A$4:$DP$191,41,FALSE)","v":3731.4720000000002},{"$f":"VLOOKUP($A114,F1__World_Data!$A$4:$DP$191,40,FALSE)","v":3687.8209999999999},{"$f":"VLOOKUP($A114,F1__World_Data!$A$4:$DP$191,39,FALSE)","v":3651.096},{"$f":"VLOOKUP($A114,F1__World_Data!$A$4:$DP$191,38,FALSE)","v":3619.6329999999998},{"$f":"VLOOKUP($A114,F1__World_Data!$A$4:$DP$191,37,FALSE)","v":3592.18},{"$f":"VLOOKUP($A114,F1__World_Data!$A$4:$DP$191,36,FALSE)","v":3567.9180000000001},{"$f":"VLOOKUP($A114,F1__World_Data!$A$4:$DP$191,35,FALSE)","v":3546.9290000000001},{"$f":"VLOOKUP($A114,F1__World_Data!$A$4:$DP$191,34,FALSE)","v":3529.8470000000002},{"$f":"VLOOKUP($A114,F1__World_Data!$A$4:$DP$191,33,FALSE)","v":3517.7040000000002},{"$f":"VLOOKUP($A114,F1__World_Data!$A$4:$DP$191,32,FALSE)","v":3510.8809999999999},{"$f":"VLOOKUP($A114,F1__World_Data!$A$4:$DP$191,31,FALSE)","v":3509.5079999999998},{"$f":"VLOOKUP($A114,F1__World_Data!$A$4:$DP$191,30,FALSE)","v":3512.1790000000001},{"$f":"VLOOKUP($A114,F1__World_Data!$A$4:$DP$191,29,FALSE)","v":3515.8270000000002},{"$f":"VLOOKUP($A114,F1__World_Data!$A$4:$DP$191,28,FALSE)","v":3516.4229999999998},{"$f":"VLOOKUP($A114,F1__World_Data!$A$4:$DP$191,27,FALSE)","v":3510.9780000000001},{"$f":"VLOOKUP($A114,F1__World_Data!$A$4:$DP$191,26,FALSE)","v":3498.54},{"$f":"VLOOKUP($A114,F1__World_Data!$A$4:$DP$191,25,FALSE)","v":3479.4639999999999},{"$f":"VLOOKUP($A114,F1__World_Data!$A$4:$DP$191,24,FALSE)","v":3453.7849999999999},{"$f":"VLOOKUP($A114,F1__World_Data!$A$4:$DP$191,23,FALSE)","v":3422.0259999999998},{"$f":"VLOOKUP($A114,F1__World_Data!$A$4:$DP$191,22,FALSE)","v":3384.76},{"$f":"VLOOKUP($A114,F1__World_Data!$A$4:$DP$191,21,FALSE)","v":3342.0050000000001},{"$f":"VLOOKUP($A114,F1__World_Data!$A$4:$DP$191,20,FALSE)","v":3294.1579999999999},{"$f":"VLOOKUP($A114,F1__World_Data!$A$4:$DP$191,19,FALSE)","v":3242.7669999999998},{"$f":"VLOOKUP($A114,F1__World_Data!$A$4:$DP$191,18,FALSE)","v":3189.8670000000002},{"$f":"VLOOKUP($A114,F1__World_Data!$A$4:$DP$191,17,FALSE)","v":3137.181},{"$f":"VLOOKUP($A114,F1__World_Data!$A$4:$DP$191,16,FALSE)","v":3085.1590000000001},{"$f":"VLOOKUP($A114,F1__World_Data!$A$4:$DP$191,15,FALSE)","v":3034.3270000000002},{"$f":"VLOOKUP($A114,F1__World_Data!$A$4:$DP$191,14,FALSE)","v":2986.5659999999998},{"$f":"VLOOKUP($A114,F1__World_Data!$A$4:$DP$191,13,FALSE)","v":2944.0920000000001},{"$f":"VLOOKUP($A114,F1__World_Data!$A$4:$DP$191,12,FALSE)","v":2908.43},{"$f":"VLOOKUP($A114,F1__World_Data!$A$4:$DP$191,11,FALSE)","v":2880.7570000000001},{"$f":"VLOOKUP($A114,F1__World_Data!$A$4:$DP$191,10,FALSE)","v":2860.7289999999998},{"$f":"VLOOKUP($A114,F1__World_Data!$A$4:$DP$191,9,FALSE)","v":2846.3510000000001},{"$f":"VLOOKUP($A114,F1__World_Data!$A$4:$DP$191,8,FALSE)","v":2834.6790000000001},{"$f":"VLOOKUP($A114,F1__World_Data!$A$4:$DP$191,7,FALSE)","v":2823.6439999999998},{"$f":"VLOOKUP($A114,F1__World_Data!$A$4:$DP$191,6,FALSE)","v":2812.2260000000001},{"$f":"VLOOKUP($A114,F1__World_Data!$A$4:$DP$191,5,FALSE)","v":2801.1840000000002},{"$f":"VLOOKUP($A114,F1__World_Data!$A$4:$DP$191,4,FALSE)","v":2792.38},{"$f":"VLOOKUP($A114,F1__World_Data!$A$4:$DP$191,3,FALSE)","v":2788.5259999999998},{"$f":"VLOOKUP($A114,F1__World_Data!$A$4:$DP$191,2,FALSE)","v":2791.39},null,{"$f":"VLOOKUP($A114,F1__World_Data!$A$4:$DP$191,120,FALSE)","v":82.660975609756093},{"$f":"VLOOKUP($A114,F1__World_Data!$A$4:$DP$191,119,FALSE)","v":82.660975609756093},{"$f":"VLOOKUP($A114,F1__World_Data!$A$4:$DP$191,118,FALSE)","v":82.2048780487805},{"$f":"VLOOKUP($A114,F1__World_Data!$A$4:$DP$191,117,FALSE)","v":82.468292682926844},{"$f":"VLOOKUP($A114,F1__World_Data!$A$4:$DP$191,116,FALSE)","v":82.86097560975611},{"$f":"VLOOKUP($A114,F1__World_Data!$A$4:$DP$191,115,FALSE)","v":82.060975609756113},{"$f":"VLOOKUP($A114,F1__World_Data!$A$4:$DP$191,114,FALSE)","v":82.917073170731712},{"$f":"VLOOKUP($A114,F1__World_Data!$A$4:$DP$191,113,FALSE)","v":82.358536585365869},{"$f":"VLOOKUP($A114,F1__World_Data!$A$4:$DP$191,112,FALSE)","v":81.89756097560975},{"$f":"VLOOKUP($A114,F1__World_Data!$A$4:$DP$191,111,FALSE)","v":81.751219512195135},{"$f":"VLOOKUP($A114,F1__World_Data!$A$4:$DP$191,110,FALSE)","v":81.609756097560989},{"$f":"VLOOKUP($A114,F1__World_Data!$A$4:$DP$191,109,FALSE)","v":81.45365853658538},{"$f":"VLOOKUP($A114,F1__World_Data!$A$4:$DP$191,108,FALSE)","v":81.158536585365866},{"$f":"VLOOKUP($A114,F1__World_Data!$A$4:$DP$191,107,FALSE)","v":81.502439024390242},{"$f":"VLOOKUP($A114,F1__World_Data!$A$4:$DP$191,106,FALSE)","v":80.997560975609773},{"$f":"VLOOKUP($A114,F1__World_Data!$A$4:$DP$191,105,FALSE)","v":80.963414634146361},{"$f":"VLOOKUP($A114,F1__World_Data!$A$4:$DP$191,104,FALSE)","v":80.502439024390256},{"$f":"VLOOKUP($A114,F1__World_Data!$A$4:$DP$191,103,FALSE)","v":80.690243902439036},{"$f":"VLOOKUP($A114,F1__World_Data!$A$4:$DP$191,102,FALSE)","v":79.653658536585368},{"$f":"VLOOKUP($A114,F1__World_Data!$A$4:$DP$191,101,FALSE)","v":79.351219512195144},{"$f":"VLOOKUP($A114,F1__World_Data!$A$4:$DP$191,100,FALSE)","v":79.60243902439025},{"$f":"VLOOKUP($A114,F1__World_Data!$A$4:$DP$191,99,FALSE)","v":78.885365853658527},{"$f":"VLOOKUP($A114,F1__World_Data!$A$4:$DP$191,98,FALSE)","v":78.777804878048798},{"$f":"VLOOKUP($A114,F1__World_Data!$A$4:$DP$191,97,FALSE)","v":77.984390243902439},{"$f":"VLOOKUP($A114,F1__World_Data!$A$4:$DP$191,96,FALSE)","v":79.24707317073171},{"$f":"VLOOKUP($A114,F1__World_Data!$A$4:$DP$191,95,FALSE)","v":78.93463414634148},{"$f":"VLOOKUP($A114,F1__World_Data!$A$4:$DP$191,94,FALSE)","v":78.760243902439029},{"$f":"VLOOKUP($A114,F1__World_Data!$A$4:$DP$191,93,FALSE)","v":77.991951219512202},{"$f":"VLOOKUP($A114,F1__World_Data!$A$4:$DP$191,92,FALSE)","v":78.03634146341463},{"$f":"VLOOKUP($A114,F1__World_Data!$A$4:$DP$191,91,FALSE)","v":78.140975609756111},{"$f":"VLOOKUP($A114,F1__World_Data!$A$4:$DP$191,90,FALSE)","v":77.082926829268303},{"$f":"VLOOKUP($A114,F1__World_Data!$A$4:$DP$191,89,FALSE)","v":77.339024390243921},{"$f":"VLOOKUP($A114,F1__World_Data!$A$4:$DP$191,88,FALSE)","v":77.990731707317082},{"$f":"VLOOKUP($A114,F1__World_Data!$A$4:$DP$191,87,FALSE)","v":77.60243902439025},{"$f":"VLOOKUP($A114,F1__World_Data!$A$4:$DP$191,86,FALSE)","v":77.576585365853674},{"$f":"VLOOKUP($A114,F1__World_Data!$A$4:$DP$191,85,FALSE)","v":76.845609756097573},{"$f":"VLOOKUP($A114,F1__World_Data!$A$4:$DP$191,84,FALSE)","v":77.037804878048789},{"$f":"VLOOKUP($A114,F1__World_Data!$A$4:$DP$191,83,FALSE)","v":76.521463414634141},{"$f":"VLOOKUP($A114,F1__World_Data!$A$4:$DP$191,82,FALSE)","v":76.84658536585367},{"$f":"VLOOKUP($A114,F1__World_Data!$A$4:$DP$191,81,FALSE)","v":76.773170731707324},{"$f":"VLOOKUP($A114,F1__World_Data!$A$4:$DP$191,80,FALSE)","v":76.649268292682933},{"$f":"VLOOKUP($A114,F1__World_Data!$A$4:$DP$191,79,FALSE)","v":76.373658536585353},{"$f":"VLOOKUP($A114,F1__World_Data!$A$4:$DP$191,78,FALSE)","v":76.972195121951231},{"$f":"VLOOKUP($A114,F1__World_Data!$A$4:$DP$191,77,FALSE)","v":75.578780487804877},{"$f":"VLOOKUP($A114,F1__World_Data!$A$4:$DP$191,76,FALSE)","v":74.511707317073189},{"$f":"VLOOKUP($A114,F1__World_Data!$A$4:$DP$191,75,FALSE)","v":74.450975609756114},{"$f":"VLOOKUP($A114,F1__World_Data!$A$4:$DP$191,74,FALSE)","v":74.455853658536597},{"$f":"VLOOKUP($A114,F1__World_Data!$A$4:$DP$191,73,FALSE)","v":73.570487804878056},{"$f":"VLOOKUP($A114,F1__World_Data!$A$4:$DP$191,72,FALSE)","v":73.933902439024408},{"$f":"VLOOKUP($A114,F1__World_Data!$A$4:$DP$191,71,FALSE)","v":73.776341463414653},{"$f":"VLOOKUP($A114,F1__World_Data!$A$4:$DP$191,70,FALSE)","v":74.00585365853658},{"$f":"VLOOKUP($A114,F1__World_Data!$A$4:$DP$191,69,FALSE)","v":73.78317073170733},{"$f":"VLOOKUP($A114,F1__World_Data!$A$4:$DP$191,68,FALSE)","v":73.30048780487806},{"$f":"VLOOKUP($A114,F1__World_Data!$A$4:$DP$191,67,FALSE)","v":73.868780487804869},{"$f":"VLOOKUP($A114,F1__World_Data!$A$4:$DP$191,66,FALSE)","v":73.541707317073175},{"$f":"VLOOKUP($A114,F1__World_Data!$A$4:$DP$191,65,FALSE)","v":73.042926829268296},{"$f":"VLOOKUP($A114,F1__World_Data!$A$4:$DP$191,64,FALSE)","v":73.721951219512192},{"$f":"VLOOKUP($A114,F1__World_Data!$A$4:$DP$191,63,FALSE)","v":73.503414634146353},{"$f":"VLOOKUP($A114,F1__World_Data!$A$4:$DP$191,62,FALSE)","v":73.42317073170733}]
["New Zealand",{"$f":"VLOOKUP($A115,F1__World_Data!$A$4:$DP$191,60,FALSE)","v":4743.1310000000003},{"$f":"VLOOKUP($A115,F1__World_Data!$A$4:$DP$191,59,FALSE)","v":4702.0290000000005},{"$f":"VLOOKUP($A115,F1__World_Data!$A$4:$DP$191,58,FALSE)","v":4659.2650000000003},{"$f":"VLOOKUP($A115,F1__World_Data!$A$4:$DP$191,57,FALSE)","v":4614.527},{"$f":"VLOOKUP($A115,F1__World_Data!$A$4:$DP$191,56,FALSE)","v":4567.5219999999999},{"$f":"VLOOKUP($A115,F1__World_Data!$A$4:$DP$191,55,FALSE)","v":4518.5190000000002},{"$f":"VLOOKUP($A115,F1__World_Data!$A$4:$DP$191,54,FALSE)","v":4468.4620000000004},{"$f":"VLOOKUP($A115,F1__World_Data!$A$4:$DP$191,53,FALSE)","v":4418.674},{"$f":"VLOOKUP($A115,F1__World_Data!$A$4:$DP$191,52,FALSE)","v":4370.0600000000004},{"$f":"VLOOKUP($A115,F1__World_Data!$A$4:$DP$191,51,FALSE)","v":4323.3379999999997},{"$f":"VLOOKUP($A115,F1__World_Data!$A$4:$DP$191,50,FALSE)","v":4278.1559999999999},{"$f":"VLOOKUP($A115,F1__World_Data!$A$4:$DP$191,49,FALSE)","v":4233.0460000000003},{"$f":"VLOOKUP($A115,F1__World_Data!$A$4:$DP$191,48,FALSE)","v":4185.8819999999996},{"$f":"VLOOKUP($A115,F1__World_Data!$A$4:$DP$191,47,FALSE)","v":4135.3530000000001},{"$f":"VLOOKUP($A115,F1__World_Data!$A$4:$DP$191,46,FALSE)","v":4080.4209999999998},{"$f":"VLOOKUP($A115,F1__World_Data!$A$4:$DP$191,45,FALSE)","v":4022.0740000000001},{"$f":"VLOOKUP($A115,F1__World_Data!$A$4:$DP$191,44,FALSE)","v":3963.2020000000002},{"$f":"VLOOKUP($A115,F1__World_Data!$A$4:$DP$191,43,FALSE)","v":3907.9409999999998},{"$f":"VLOOKUP($A115,F1__World_Data!$A$4:$DP$191,42,FALSE)","v":3858.9920000000002},{"$f":"VLOOKUP($A115,F1__World_Data!$A$4:$DP$191,41,FALSE)","v":3818.1280000000002},{"$f":"VLOOKUP($A115,F1__World_Data!$A$4:$DP$191,40,FALSE)","v":3783.9760000000001},{"$f":"VLOOKUP($A115,F1__World_Data!$A$4:$DP$191,39,FALSE)","v":3752.355},{"$f":"VLOOKUP($A115,F1__World_Data!$A$4:$DP$191,38,FALSE)","v":3717.3519999999999},{"$f":"VLOOKUP($A115,F1__World_Data!$A$4:$DP$191,37,FALSE)","v":3674.94},{"$f":"VLOOKUP($A115,F1__World_Data!$A$4:$DP$191,36,FALSE)","v":3623.2719999999999},{"$f":"VLOOKUP($A115,F1__World_Data!$A$4:$DP$191,35,FALSE)","v":3564.473},{"$f":"VLOOKUP($A115,F1__World_Data!$A$4:$DP$191,34,FALSE)","v":3503.194},{"$f":"VLOOKUP($A115,F1__World_Data!$A$4:$DP$191,33,FALSE)","v":3446.1709999999998},{"$f":"VLOOKUP($A115,F1__World_Data!$A$4:$DP$191,32,FALSE)","v":3398.1750000000002},{"$f":"VLOOKUP($A115,F1__World_Data!$A$4:$DP$191,31,FALSE)","v":3360.9560000000001},{"$f":"VLOOKUP($A115,F1__World_Data!$A$4:$DP$191,30,FALSE)","v":3332.7869999999998},{"$f":"VLOOKUP($A115,F1__World_Data!$A$4:$DP$191,29,FALSE)","v":3310.7510000000002},{"$f":"VLOOKUP($A115,F1__World_Data!$A$4:$DP$191,28,FALSE)","v":3290.3040000000001},{"$f":"VLOOKUP($A115,F1__World_Data!$A$4:$DP$191,27,FALSE)","v":3268.2339999999999},{"$f":"VLOOKUP($A115,F1__World_Data!$A$4:$DP$191,26,FALSE)","v":3243.0340000000001},{"$f":"VLOOKUP($A115,F1__World_Data!$A$4:$DP$191,25,FALSE)","v":3215.732},{"$f":"VLOOKUP($A115,F1__World_Data!$A$4:$DP$191,24,FALSE)","v":3188.5369999999998},{"$f":"VLOOKUP($A115,F1__World_Data!$A$4:$DP$191,23,FALSE)","v":3164.8229999999999},{"$f":"VLOOKUP($A115,F1__World_Data!$A$4:$DP$191,22,FALSE)","v":3146.61},{"$f":"VLOOKUP($A115,F1__World_Data!$A$4:$DP$191,21,FALSE)","v":3135.3009999999999},{"$f":"VLOOKUP($A115,F1__World_Data!$A$4:$DP$191,20,FALSE)","v":3128.9580000000001},{"$f":"VLOOKUP($A115,F1__World_Data!$A$4:$DP$191,19,FALSE)","v":3122.4059999999999},{"$f":"VLOOKUP($A115,F1__World_Data!$A$4:$DP$191,18,FALSE)","v":3108.5740000000001},{"$f":"VLOOKUP($A115,F1__World_Data!$A$4:$DP$191,17,FALSE)","v":3082.6219999999998},{"$f":"VLOOKUP($A115,F1__World_Data!$A$4:$DP$191,16,FALSE)","v":3042.1750000000002},{"$f":"VLOOKUP($A115,F1__World_Data!$A$4:$DP$191,15,FALSE)","v":2989.4119999999998},{"$f":"VLOOKUP($A115,F1__World_Data!$A$4:$DP$191,14,FALSE)","v":2929.6869999999999},{"$f":"VLOOKUP($A115,F1__World_Data!$A$4:$DP$191,13,FALSE)","v":2870.817},{"$f":"VLOOKUP($A115,F1__World_Data!$A$4:$DP$191,12,FALSE)","v":2818.3910000000001},{"$f":"VLOOKUP($A115,F1__World_Data!$A$4:$DP$191,11,FALSE)","v":2774.3580000000002},{"$f":"VLOOKUP($A115,F1__World_Data!$A$4:$DP$191,10,FALSE)","v":2736.8209999999999},{"$f":"VLOOKUP($A115,F1__World_Data!$A$4:$DP$191,9,FALSE)","v":2702.6759999999999},{"$f":"VLOOKUP($A115,F1__World_Data!$A$4:$DP$191,8,FALSE)","v":2667.085},{"$f":"VLOOKUP($A115,F1__World_Data!$A$4:$DP$191,7,FALSE)","v":2626.6489999999999},{"$f":"VLOOKUP($A115,F1__World_Data!$A$4:$DP$191,6,FALSE)","v":2580.5360000000001},{"$f":"VLOOKUP($A115,F1__World_Data!$A$4:$DP$191,5,FALSE)","v":2530.1860000000001},{"$f":"VLOOKUP($A115,F1__World_Data!$A$4:$DP$191,4,FALSE)","v":2477.192},{"$f":"VLOOKUP($A115,F1__World_Data!$A$4:$DP$191,3,FALSE)","v":2424.0639999999999},{"$f":"VLOOKUP($A115,F1__World_Data!$A$4:$DP$191,2,FALSE)","v":2372.5990000000002},null,{"$f":"VLOOKUP($A115,F1__World_Data!$A$4:$DP$191,120,FALSE)","v":68.116},{"$f":"VLOOKUP($A115,F1__World_Data!$A$4:$DP$191,119,FALSE)","v":67.850999999999999},{"$f":"VLOOKUP($A115,F1__World_Data!$A$4:$DP$191,118,FALSE)","v":67.576999999999998},{"$f":"VLOOKUP($A115,F1__World_Data!$A$4:$DP$191,117,FALSE)","v":67.290999999999997},{"$f":"VLOOKUP($A115,F1__World_Data!$A$4:$DP$191,116,FALSE)","v":66.995000000000005},{"$f":"VLOOKUP($A115,F1__World_Data!$A$4:$DP$191,115,FALSE)","v":66.69},{"$f":"VLOOKUP($A115,F1__World_Data!$A$4:$DP$191,114,FALSE)","v":66.381},{"$f":"VLOOKUP($A115,F1__World_Data!$A$4:$DP$191,113,FALSE)","v":66.072000000000003},{"$f":"VLOOKUP($A115,F1__World_Data!$A$4:$DP$191,112,FALSE)","v":65.769000000000005},{"$f":"VLOOKUP($A115,F1__World_Data!$A$4:$DP$191,111,FALSE)","v":65.48},{"$f":"VLOOKUP($A115,F1__World_Data!$A$4:$DP$191,110,FALSE)","v":65.207999999999998},{"$f":"VLOOKUP($A115,F1__World_Data!$A$4:$DP$191,109,FALSE)","v":64.953000000000003},{"$f":"VLOOKUP($A115,F1__World_Data!$A$4:$DP$191,108,FALSE)","v":64.712000000000003},{"$f":"VLOOKUP($A115,F1__World_Data!$A$4:$DP$191,107,FALSE)","v":64.477999999999994},{"$f":"VLOOKUP($A115,F1__World_Data!$A$4:$DP$191,106,FALSE)","v":64.242000000000004},{"$f":"VLOOKUP($A115,F1__World_Data!$A$4:$DP$191,105,FALSE)","v":63.994999999999997},{"$f":"VLOOKUP($A115,F1__World_Data!$A$4:$DP$191,104,FALSE)","v":63.731000000000002},{"$f":"VLOOKUP($A115,F1__World_Data!$A$4:$DP$191,103,FALSE)","v":63.445999999999998},{"$f":"VLOOKUP($A115,F1__World_Data!$A$4:$DP$191,102,FALSE)","v":63.143999999999998},{"$f":"VLOOKUP($A115,F1__World_Data!$A$4:$DP$191,101,FALSE)","v":62.829000000000001},{"$f":"VLOOKUP($A115,F1__World_Data!$A$4:$DP$191,100,FALSE)","v":62.509},{"$f":"VLOOKUP($A115,F1__World_Data!$A$4:$DP$191,99,FALSE)","v":62.188000000000002},{"$f":"VLOOKUP($A115,F1__World_Data!$A$4:$DP$191,98,FALSE)","v":61.866},{"$f":"VLOOKUP($A115,F1__World_Data!$A$4:$DP$191,97,FALSE)","v":61.539000000000001},{"$f":"VLOOKUP($A115,F1__World_Data!$A$4:$DP$191,96,FALSE)","v":61.198},{"$f":"VLOOKUP($A115,F1__World_Data!$A$4:$DP$191,95,FALSE)","v":60.837000000000003},{"$f":"VLOOKUP($A115,F1__World_Data!$A$4:$DP$191,94,FALSE)","v":60.454999999999998},{"$f":"VLOOKUP($A115,F1__World_Data!$A$4:$DP$191,93,FALSE)","v":60.052999999999997},{"$f":"VLOOKUP($A115,F1__World_Data!$A$4:$DP$191,92,FALSE)","v":59.636000000000003},{"$f":"VLOOKUP($A115,F1__World_Data!$A$4:$DP$191,91,FALSE)","v":59.209000000000003},{"$f":"VLOOKUP($A115,F1__World_Data!$A$4:$DP$191,90,FALSE)","v":58.783000000000001},{"$f":"VLOOKUP($A115,F1__World_Data!$A$4:$DP$191,89,FALSE)","v":58.366},{"$f":"VLOOKUP($A115,F1__World_Data!$A$4:$DP$191,88,FALSE)","v":57.962000000000003},{"$f":"VLOOKUP($A115,F1__World_Data!$A$4:$DP$191,87,FALSE)","v":57.579000000000001},{"$f":"VLOOKUP($A115,F1__World_Data!$A$4:$DP$191,86,FALSE)","v":57.220999999999997},{"$f":"VLOOKUP($A115,F1__World_Data!$A$4:$DP$191,85,FALSE)","v":56.886000000000003},{"$f":"VLOOKUP($A115,F1__World_Data!$A$4:$DP$191,84,FALSE)","v":56.569000000000003},{"$f":"VLOOKUP($A115,F1__World_Data!$A$4:$DP$191,83,FALSE)","v":56.265999999999998},{"$f":"VLOOKUP($A115,F1__World_Data!$A$4:$DP$191,82,FALSE)","v":55.970999999999997},{"$f":"VLOOKUP($A115,F1__World_Data!$A$4:$DP$191,81,FALSE)","v":55.679000000000002},{"$f":"VLOOKUP($A115,F1__World_Data!$A$4:$DP$191,80,FALSE)","v":55.381999999999998},{"$f":"VLOOKUP($A115,F1__World_Data!$A$4:$DP$191,79,FALSE)","v":55.073999999999998},{"$f":"VLOOKUP($A115,F1__World_Data!$A$4:$DP$191,78,FALSE)","v":54.747999999999998},{"$f":"VLOOKUP($A115,F1__World_Data!$A$4:$DP$191,77,FALSE)","v":54.399000000000001},{"$f":"VLOOKUP($A115,F1__World_Data!$A$4:$DP$191,76,FALSE)","v":54.027000000000001},{"$f":"VLOOKUP($A115,F1__World_Data!$A$4:$DP$191,75,FALSE)","v":53.633000000000003},{"$f":"VLOOKUP($A115,F1__World_Data!$A$4:$DP$191,74,FALSE)","v":53.218000000000004},{"$f":"VLOOKUP($A115,F1__World_Data!$A$4:$DP$191,73,FALSE)","v":52.781999999999996},{"$f":"VLOOKUP($A115,F1__World_Data!$A$4:$DP$191,72,FALSE)","v":52.323},{"$f":"VLOOKUP($A115,F1__World_Data!$A$4:$DP$191,71,FALSE)","v":51.837000000000003},{"$f":"VLOOKUP($A115,F1__World_Data!$A$4:$DP$191,70,FALSE)","v":51.326999999999998},{"$f":"VLOOKUP($A115,F1__World_Data!$A$4:$DP$191,69,FALSE)","v":50.795999999999999},{"$f":"VLOOKUP($A115,F1__World_Data!$A$4:$DP$191,68,FALSE)","v":50.25},{"$f":"VLOOKUP($A115,F1__World_Data!$A$4:$DP$191,67,FALSE)","v":49.697000000000003},{"$f":"VLOOKUP($A115,F1__World_Data!$A$4:$DP$191,66,FALSE)","v":49.145000000000003},{"$f":"VLOOKUP($A115,F1__World_Data!$A$4:$DP$191,65,FALSE)","v":48.600999999999999},{"$f":"VLOOKUP($A115,F1__World_Data!$A$4:$DP$191,64,FALSE)","v":48.070999999999998},{"$f":"VLOOKUP($A115,F1__World_Data!$A$4:$DP$191,63,FALSE)","v":47.557000000000002},{"$f":"VLOOKUP($A115,F1__World_Data!$A$4:$DP$191,62,FALSE)","v":47.061}]
["Mauritania",{"$f":"VLOOKUP($A116,F1__World_Data!$A$4:$DP$191,60,FALSE)","v":4403.3119999999999},{"$f":"VLOOKUP($A116,F1__World_Data!$A$4:$DP$191,59,FALSE)","v":4282.5820000000003},{"$f":"VLOOKUP($A116,F1__World_Data!$A$4:$DP$191,58,FALSE)","v":4163.5320000000002},{"$f":"VLOOKUP($A116,F1__World_Data!$A$4:$DP$191,57,FALSE)","v":4046.3040000000001},{"$f":"VLOOKUP($A116,F1__World_Data!$A$4:$DP$191,56,FALSE)","v":3930.8939999999998},{"$f":"VLOOKUP($A116,F1__World_Data!$A$4:$DP$191,55,FALSE)","v":3817.4969999999998},{"$f":"VLOOKUP($A116,F1__World_Data!$A$4:$DP$191,54,FALSE)","v":3706.5549999999998},{"$f":"VLOOKUP($A116,F1__World_Data!$A$4:$DP$191,53,FALSE)","v":3598.6460000000002},{"$f":"VLOOKUP($A116,F1__World_Data!$A$4:$DP$191,52,FALSE)","v":3494.2},{"$f":"VLOOKUP($A116,F1__World_Data!$A$4:$DP$191,51,FALSE)","v":3393.4079999999999},{"$f":"VLOOKUP($A116,F1__World_Data!$A$4:$DP$191,50,FALSE)","v":3296.2370000000001},{"$f":"VLOOKUP($A116,F1__World_Data!$A$4:$DP$191,49,FALSE)","v":3202.5120000000002},{"$f":"VLOOKUP($A116,F1__World_Data!$A$4:$DP$191,48,FALSE)","v":3111.9079999999999},{"$f":"VLOOKUP($A116,F1__World_Data!$A$4:$DP$191,47,FALSE)","v":3024.1979999999999},{"$f":"VLOOKUP($A116,F1__World_Data!$A$4:$DP$191,46,FALSE)","v":2939.2460000000001},{"$f":"VLOOKUP($A116,F1__World_Data!$A$4:$DP$191,45,FALSE)","v":2857.15},{"$f":"VLOOKUP($A116,F1__World_Data!$A$4:$DP$191,44,FALSE)","v":2778.0970000000002},{"$f":"VLOOKUP($A116,F1__World_Data!$A$4:$DP$191,43,FALSE)","v":2702.4050000000002},{"$f":"VLOOKUP($A116,F1__World_Data!$A$4:$DP$191,42,FALSE)","v":2630.2170000000001},{"$f":"VLOOKUP($A116,F1__World_Data!$A$4:$DP$191,41,FALSE)","v":2561.5839999999998},{"$f":"VLOOKUP($A116,F1__World_Data!$A$4:$DP$191,40,FALSE)","v":2496.2170000000001},{"$f":"VLOOKUP($A116,F1__World_Data!$A$4:$DP$191,39,FALSE)","v":2433.567},{"$f":"VLOOKUP($A116,F1__World_Data!$A$4:$DP$191,38,FALSE)","v":2372.9},{"$f":"VLOOKUP($A116,F1__World_Data!$A$4:$DP$191,37,FALSE)","v":2313.63},{"$f":"VLOOKUP($A116,F1__World_Data!$A$4:$DP$191,36,FALSE)","v":2255.52},{"$f":"VLOOKUP($A116,F1__World_Data!$A$4:$DP$191,35,FALSE)","v":2198.538},{"$f":"VLOOKUP($A116,F1__World_Data!$A$4:$DP$191,34,FALSE)","v":2142.645},{"$f":"VLOOKUP($A116,F1__World_Data!$A$4:$DP$191,33,FALSE)","v":2087.9140000000002},{"$f":"VLOOKUP($A116,F1__World_Data!$A$4:$DP$191,32,FALSE)","v":2034.347},{"$f":"VLOOKUP($A116,F1__World_Data!$A$4:$DP$191,31,FALSE)","v":1981.902},{"$f":"VLOOKUP($A116,F1__World_Data!$A$4:$DP$191,30,FALSE)","v":1930.4269999999999},{"$f":"VLOOKUP($A116,F1__World_Data!$A$4:$DP$191,29,FALSE)","v":1879.7560000000001},{"$f":"VLOOKUP($A116,F1__World_Data!$A$4:$DP$191,28,FALSE)","v":1829.6780000000001},{"$f":"VLOOKUP($A116,F1__World_Data!$A$4:$DP$191,27,FALSE)","v":1780.0329999999999},{"$f":"VLOOKUP($A116,F1__World_Data!$A$4:$DP$191,26,FALSE)","v":1730.7370000000001},{"$f":"VLOOKUP($A116,F1__World_Data!$A$4:$DP$191,25,FALSE)","v":1681.8589999999999},{"$f":"VLOOKUP($A116,F1__World_Data!$A$4:$DP$191,24,FALSE)","v":1633.655},{"$f":"VLOOKUP($A116,F1__World_Data!$A$4:$DP$191,23,FALSE)","v":1586.4960000000001},{"$f":"VLOOKUP($A116,F1__World_Data!$A$4:$DP$191,22,FALSE)","v":1540.644},{"$f":"VLOOKUP($A116,F1__World_Data!$A$4:$DP$191,21,FALSE)","v":1496.174},{"$f":"VLOOKUP($A116,F1__World_Data!$A$4:$DP$191,20,FALSE)","v":1453.028},{"$f":"VLOOKUP($A116,F1__World_Data!$A$4:$DP$191,19,FALSE)","v":1411.1389999999999},{"$f":"VLOOKUP($A116,F1__World_Data!$A$4:$DP$191,18,FALSE)","v":1370.364},{"$f":"VLOOKUP($A116,F1__World_Data!$A$4:$DP$191,17,FALSE)","v":1330.5940000000001},{"$f":"VLOOKUP($A116,F1__World_Data!$A$4:$DP$191,16,FALSE)","v":1291.857},{"$f":"VLOOKUP($A116,F1__World_Data!$A$4:$DP$191,15,FALSE)","v":1254.1559999999999},{"$f":"VLOOKUP($A116,F1__World_Data!$A$4:$DP$191,14,FALSE)","v":1217.443},{"$f":"VLOOKUP($A116,F1__World_Data!$A$4:$DP$191,13,FALSE)","v":1181.6590000000001},{"$f":"VLOOKUP($A116,F1__World_Data!$A$4:$DP$191,12,FALSE)","v":1146.7760000000001},{"$f":"VLOOKUP($A116,F1__World_Data!$A$4:$DP$191,11,FALSE)","v":1112.749},{"$f":"VLOOKUP($A116,F1__World_Data!$A$4:$DP$191,10,FALSE)","v":1079.58},{"$f":"VLOOKUP($A116,F1__World_Data!$A$4:$DP$191,9,FALSE)","v":1047.345},{"$f":"VLOOKUP($A116,F1__World_Data!$A$4:$DP$191,8,FALSE)","v":1016.093},{"$f":"VLOOKUP($A116,F1__World_Data!$A$4:$DP$191,7,FALSE)","v":985.90700000000004},{"$f":"VLOOKUP($A116,F1__World_Data!$A$4:$DP$191,6,FALSE)","v":956.79399999999998},{"$f":"VLOOKUP($A116,F1__World_Data!$A$4:$DP$191,5,FALSE)","v":928.74199999999996},{"$f":"VLOOKUP($A116,F1__World_Data!$A$4:$DP$191,4,FALSE)","v":901.69},{"$f":"VLOOKUP($A116,F1__World_Data!$A$4:$DP$191,3,FALSE)","v":875.58600000000001},{"$f":"VLOOKUP($A116,F1__World_Data!$A$4:$DP$191,2,FALSE)","v":850.37699999999995},null,{"$f":"VLOOKUP($A116,F1__World_Data!$A$4:$DP$191,120,FALSE)","v":68.116},{"$f":"VLOOKUP($A116,F1__World_Data!$A$4:$DP$191,119,FALSE)","v":67.850999999999999},{"$f":"VLOOKUP($A116,F1__World_Data!$A$4:$DP$191,118,FALSE)","v":67.576999999999998},{"$f":"VLOOKUP($A116,F1__World_Data!$A$4:$DP$191,117,FALSE)","v":67.290999999999997},{"$f":"VLOOKUP($A116,F1__World_Data!$A$4:$DP$191,116,FALSE)","v":66.995000000000005},{"$f":"VLOOKUP($A116,F1__World_Data!$A$4:$DP$191,115,FALSE)","v":66.69},{"$f":"VLOOKUP($A116,F1__World_Data!$A$4:$DP$191,114,FALSE)","v":66.381},{"$f":"VLOOKUP($A116,F1__World_Data!$A$4:$DP$191,113,FALSE)","v":66.072000000000003},{"$f":"VLOOKUP($A116,F1__World_Data!$A$4:$DP$191,112,FALSE)","v":65.769000000000005},{"$f":"VLOOKUP($A116,F1__World_Data!$A$4:$DP$191,111,FALSE)","v":65.48},{"$f":"VLOOKUP($A116,F1__World_Data!$A$4:$DP$191,110,FALSE)","v":65.207999999999998},{"$f":"VLOOKUP($A116,F1__World_Data!$A$4:$DP$191,109,FALSE)","v":64.953000000000003},{"$f":"VLOOKUP($A116,F1__World_Data!$A$4:$DP$191,108,FALSE)","v":64.712000000000003},{"$f":"VLOOKUP($A116,F1__World_Data!$A$4:$DP$191,107,FALSE)","v":64.477999999999994},{"$f":"VLOOKUP($A116,F1__World_Data!$A$4:$DP$191,106,FALSE)","v":64.242000000000004},{"$f":"VLOOKUP($A116,F1__World_Data!$A$4:$DP$191,105,FALSE)","v":63.994999999999997},{"$f":"VLOOKUP($A116,F1__World_Data!$A$4:$DP$191,104,FALSE)","v":63.731000000000002},{"$f":"VLOOKUP($A116,F1__World_Data!$A$4:$DP$191,103,FALSE)","v":63.445999999999998},{"$f":"VLOOKUP($A116,F1__World_Data!$A$4:$DP$191,102,FALSE)","v":63.143999999999998},{"$f":"VLOOKUP($A116,F1__World_Data!$A$4:$DP$191,101,FALSE)","v":62.829000000000001},{"$f":"VLOOKUP($A116,F1__World_Data!$A$4:$DP$191,100,FALSE)","v":62.509},{"$f":"VLOOKUP($A116,F1__World_Data!$A$4:$DP$191,99,FALSE)","v":62.188000000000002},{"$f":"VLOOKUP($A116,F1__World_Data!$A$4:$DP$191,98,FALSE)","v":61.866},{"$f":"VLOOKUP($A116,F1__World_Data!$A$4:$DP$191,97,FALSE)","v":61.539000000000001},{"$f":"VLOOKUP($A116,F1__World_Data!$A$4:$DP$191,96,FALSE)","v":61.198},{"$f":"VLOOKUP($A116,F1__World_Data!$A$4:$DP$191,95,FALSE)","v":60.837000000000003},{"$f":"VLOOKUP($A116,F1__World_Data!$A$4:$DP$191,94,FALSE)","v":60.454999999999998},{"$f":"VLOOKUP($A116,F1__World_Data!$A$4:$DP$191,93,FALSE)","v":60.052999999999997},{"$f":"VLOOKUP($A116,F1__World_Data!$A$4:$DP$191,92,FALSE)","v":59.636000000000003},{"$f":"VLOOKUP($A116,F1__World_Data!$A$4:$DP$191,91,FALSE)","v":59.209000000000003},{"$f":"VLOOKUP($A116,F1__World_Data!$A$4:$DP$191,90,FALSE)","v":58.783000000000001},{"$f":"VLOOKUP($A116,F1__World_Data!$A$4:$DP$191,89,FALSE)","v":58.366},{"$f":"VLOOKUP($A116,F1__World_Data!$A$4:$DP$191,88,FALSE)","v":57.962000000000003},{"$f":"VLOOKUP($A116,F1__World_Data!$A$4:$DP$191,87,FALSE)","v":57.579000000000001},{"$f":"VLOOKUP($A116,F1__World_Data!$A$4:$DP$191,86,FALSE)","v":57.220999999999997},{"$f":"VLOOKUP($A116,F1__World_Data!$A$4:$DP$191,85,FALSE)","v":56.886000000000003},{"$f":"VLOOKUP($A116,F1__World_Data!$A$4:$DP$191,84,FALSE)","v":56.569000000000003},{"$f":"VLOOKUP($A116,F1__World_Data!$A$4:$DP$191,83,FALSE)","v":56.265999999999998},{"$f":"VLOOKUP($A116,F1__World_Data!$A$4:$DP$191,82,FALSE)","v":55.970999999999997},{"$f":"VLOOKUP($A116,F1__World_Data!$A$4:$DP$191,81,FALSE)","v":55.679000000000002},{"$f":"VLOOKUP($A116,F1__World_Data!$A$4:$DP$191,80,FALSE)","v":55.381999999999998},{"$f":"VLOOKUP($A116,F1__World_Data!$A$4:$DP$191,79,FALSE)","v":55.073999999999998},{"$f":"VLOOKUP($A116,F1__World_Data!$A$4:$DP$191,78,FALSE)","v":54.747999999999998},{"$f":"VLOOKUP($A116,F1__World_Data!$A$4:$DP$191,77,FALSE)","v":54.399000000000001},{"$f":"VLOOKUP($A116,F1__World_Data!$A$4:$DP$191,76,FALSE)","v":54.027000000000001},{"$f":"VLOOKUP($A116,F1__World_Data!$A$4:$DP$191,75,FALSE)","v":53.633000000000003},{"$f":"VLOOKUP($A116,F1__World_Data!$A$4:$DP$191,74,FALSE)","v":53.218000000000004},{"$f":"VLOOKUP($A116,F1__World_Data!$A$4:$DP$191,73,FALSE)","v":52.781999999999996},{"$f":"VLOOKUP($A116,F1__World_Data!$A$4:$DP$191,72,FALSE)","v":52.323},{"$f":"VLOOKUP($A116,F1__World_Data!$A$4:$DP$191,71,FALSE)","v":51.837000000000003},{"$f":"VLOOKUP($A116,F1__World_Data!$A$4:$DP$191,70,FALSE)","v":51.326999999999998},{"$f":"VLOOKUP($A116,F1__World_Data!$A$4:$DP$191,69,FALSE)","v":50.795999999999999},{"$f":"VLOOKUP($A116,F1__World_Data!$A$4:$DP$191,68,FALSE)","v":50.25},{"$f":"VLOOKUP($A116,F1__World_Data!$A$4:$DP$191,67,FALSE)","v":49.697000000000003},{"$f":"VLOOKUP($A116,F1__World_Data!$A$4:$DP$191,66,FALSE)","v":49.145000000000003},{"$f":"VLOOKUP($A116,F1__World_Data!$A$4:$DP$191,65,FALSE)","v":48.600999999999999},{"$f":"VLOOKUP($A116,F1__World_Data!$A$4:$DP$191,64,FALSE)","v":48.070999999999998},{"$f":"VLOOKUP($A116,F1__World_Data!$A$4:$DP$191,63,FALSE)","v":47.557000000000002},{"$f":"VLOOKUP($A116,F1__World_Data!$A$4:$DP$191,62,FALSE)","v":47.061}]
["Panama",{"$f":"VLOOKUP($A117,F1__World_Data!$A$4:$DP$191,60,FALSE)","v":4176.8680000000004},{"$f":"VLOOKUP($A117,F1__World_Data!$A$4:$DP$191,59,FALSE)","v":4106.7640000000001},{"$f":"VLOOKUP($A117,F1__World_Data!$A$4:$DP$191,58,FALSE)","v":4037.0729999999999},{"$f":"VLOOKUP($A117,F1__World_Data!$A$4:$DP$191,57,FALSE)","v":3968.49},{"$f":"VLOOKUP($A117,F1__World_Data!$A$4:$DP$191,56,FALSE)","v":3901.3110000000001},{"$f":"VLOOKUP($A117,F1__World_Data!$A$4:$DP$191,55,FALSE)","v":3835.4470000000001},{"$f":"VLOOKUP($A117,F1__World_Data!$A$4:$DP$191,54,FALSE)","v":3770.6350000000002},{"$f":"VLOOKUP($A117,F1__World_Data!$A$4:$DP$191,53,FALSE)","v":3706.4789999999998},{"$f":"VLOOKUP($A117,F1__World_Data!$A$4:$DP$191,52,FALSE)","v":3642.6909999999998},{"$f":"VLOOKUP($A117,F1__World_Data!$A$4:$DP$191,51,FALSE)","v":3579.2150000000001},{"$f":"VLOOKUP($A117,F1__World_Data!$A$4:$DP$191,50,FALSE)","v":3516.2040000000002},{"$f":"VLOOKUP($A117,F1__World_Data!$A$4:$DP$191,49,FALSE)","v":3453.6709999999998},{"$f":"VLOOKUP($A117,F1__World_Data!$A$4:$DP$191,48,FALSE)","v":3391.6729999999998},{"$f":"VLOOKUP($A117,F1__World_Data!$A$4:$DP$191,47,FALSE)","v":3330.2220000000002},{"$f":"VLOOKUP($A117,F1__World_Data!$A$4:$DP$191,46,FALSE)","v":3269.3560000000002},{"$f":"VLOOKUP($A117,F1__World_Data!$A$4:$DP$191,45,FALSE)","v":3209.056},{"$f":"VLOOKUP($A117,F1__World_Data!$A$4:$DP$191,44,FALSE)","v":3149.1950000000002},{"$f":"VLOOKUP($A117,F1__World_Data!$A$4:$DP$191,43,FALSE)","v":3089.6410000000001},{"$f":"VLOOKUP($A117,F1__World_Data!$A$4:$DP$191,42,FALSE)","v":3030.3330000000001},{"$f":"VLOOKUP($A117,F1__World_Data!$A$4:$DP$191,41,FALSE)","v":2971.1970000000001},{"$f":"VLOOKUP($A117,F1__World_Data!$A$4:$DP$191,40,FALSE)","v":2912.3180000000002},{"$f":"VLOOKUP($A117,F1__World_Data!$A$4:$DP$191,39,FALSE)","v":2853.9070000000002},{"$f":"VLOOKUP($A117,F1__World_Data!$A$4:$DP$191,38,FALSE)","v":2796.2910000000002},{"$f":"VLOOKUP($A117,F1__World_Data!$A$4:$DP$191,37,FALSE)","v":2739.6669999999999},{"$f":"VLOOKUP($A117,F1__World_Data!$A$4:$DP$191,36,FALSE)","v":2684.1170000000002},{"$f":"VLOOKUP($A117,F1__World_Data!$A$4:$DP$191,35,FALSE)","v":2629.5839999999998},{"$f":"VLOOKUP($A117,F1__World_Data!$A$4:$DP$191,34,FALSE)","v":2575.9490000000001},{"$f":"VLOOKUP($A117,F1__World_Data!$A$4:$DP$191,33,FALSE)","v":2523.1149999999998},{"$f":"VLOOKUP($A117,F1__World_Data!$A$4:$DP$191,32,FALSE)","v":2470.9459999999999},{"$f":"VLOOKUP($A117,F1__World_Data!$A$4:$DP$191,31,FALSE)","v":2419.424},{"$f":"VLOOKUP($A117,F1__World_Data!$A$4:$DP$191,30,FALSE)","v":2368.556},{"$f":"VLOOKUP($A117,F1__World_Data!$A$4:$DP$191,29,FALSE)","v":2318.259},{"$f":"VLOOKUP($A117,F1__World_Data!$A$4:$DP$191,28,FALSE)","v":2268.5},{"$f":"VLOOKUP($A117,F1__World_Data!$A$4:$DP$191,27,FALSE)","v":2219.1999999999998},{"$f":"VLOOKUP($A117,F1__World_Data!$A$4:$DP$191,26,FALSE)","v":2170.33},{"$f":"VLOOKUP($A117,F1__World_Data!$A$4:$DP$191,25,FALSE)","v":2121.8629999999998},{"$f":"VLOOKUP($A117,F1__World_Data!$A$4:$DP$191,24,FALSE)","v":2073.748},{"$f":"VLOOKUP($A117,F1__World_Data!$A$4:$DP$191,23,FALSE)","v":2025.9649999999999},{"$f":"VLOOKUP($A117,F1__World_Data!$A$4:$DP$191,22,FALSE)","v":1978.489},{"$f":"VLOOKUP($A117,F1__World_Data!$A$4:$DP$191,21,FALSE)","v":1931.3019999999999},{"$f":"VLOOKUP($A117,F1__World_Data!$A$4:$DP$191,20,FALSE)","v":1884.4269999999999},{"$f":"VLOOKUP($A117,F1__World_Data!$A$4:$DP$191,19,FALSE)","v":1837.8040000000001},{"$f":"VLOOKUP($A117,F1__World_Data!$A$4:$DP$191,18,FALSE)","v":1791.3889999999999},{"$f":"VLOOKUP($A117,F1__World_Data!$A$4:$DP$191,17,FALSE)","v":1745.1420000000001},{"$f":"VLOOKUP($A117,F1__World_Data!$A$4:$DP$191,16,FALSE)","v":1699.056},{"$f":"VLOOKUP($A117,F1__World_Data!$A$4:$DP$191,15,FALSE)","v":1653.2080000000001},{"$f":"VLOOKUP($A117,F1__World_Data!$A$4:$DP$191,14,FALSE)","v":1607.797},{"$f":"VLOOKUP($A117,F1__World_Data!$A$4:$DP$191,13,FALSE)","v":1563.0930000000001},{"$f":"VLOOKUP($A117,F1__World_Data!$A$4:$DP$191,12,FALSE)","v":1519.2860000000001},{"$f":"VLOOKUP($A117,F1__World_Data!$A$4:$DP$191,11,FALSE)","v":1476.481},{"$f":"VLOOKUP($A117,F1__World_Data!$A$4:$DP$191,10,FALSE)","v":1434.6759999999999},{"$f":"VLOOKUP($A117,F1__World_Data!$A$4:$DP$191,9,FALSE)","v":1393.8240000000001},{"$f":"VLOOKUP($A117,F1__World_Data!$A$4:$DP$191,8,FALSE)","v":1353.847},{"$f":"VLOOKUP($A117,F1__World_Data!$A$4:$DP$191,7,FALSE)","v":1314.6790000000001},{"$f":"VLOOKUP($A117,F1__World_Data!$A$4:$DP$191,6,FALSE)","v":1276.3309999999999},{"$f":"VLOOKUP($A117,F1__World_Data!$A$4:$DP$191,5,FALSE)","v":1238.893},{"$f":"VLOOKUP($A117,F1__World_Data!$A$4:$DP$191,4,FALSE)","v":1202.4469999999999},{"$f":"VLOOKUP($A117,F1__World_Data!$A$4:$DP$191,3,FALSE)","v":1167.1199999999999},{"$f":"VLOOKUP($A117,F1__World_Data!$A$4:$DP$191,2,FALSE)","v":1133.0050000000001},null,{"$f":"VLOOKUP($A117,F1__World_Data!$A$4:$DP$191,120,FALSE)","v":68.116},{"$f":"VLOOKUP($A117,F1__World_Data!$A$4:$DP$191,119,FALSE)","v":67.850999999999999},{"$f":"VLOOKUP($A117,F1__World_Data!$A$4:$DP$191,118,FALSE)","v":67.576999999999998},{"$f":"VLOOKUP($A117,F1__World_Data!$A$4:$DP$191,117,FALSE)","v":67.290999999999997},{"$f":"VLOOKUP($A117,F1__World_Data!$A$4:$DP$191,116,FALSE)","v":66.995000000000005},{"$f":"VLOOKUP($A117,F1__World_Data!$A$4:$DP$191,115,FALSE)","v":66.69},{"$f":"VLOOKUP($A117,F1__World_Data!$A$4:$DP$191,114,FALSE)","v":66.381},{"$f":"VLOOKUP($A117,F1__World_Data!$A$4:$DP$191,113,FALSE)","v":66.072000000000003},{"$f":"VLOOKUP($A117,F1__World_Data!$A$4:$DP$191,112,FALSE)","v":65.769000000000005},{"$f":"VLOOKUP($A117,F1__World_Data!$A$4:$DP$191,111,FALSE)","v":65.48},{"$f":"VLOOKUP($A117,F1__World_Data!$A$4:$DP$191,110,FALSE)","v":65.207999999999998},{"$f":"VLOOKUP($A117,F1__World_Data!$A$4:$DP$191,109,FALSE)","v":64.953000000000003},{"$f":"VLOOKUP($A117,F1__World_Data!$A$4:$DP$191,108,FALSE)","v":64.712000000000003},{"$f":"VLOOKUP($A117,F1__World_Data!$A$4:$DP$191,107,FALSE)","v":64.477999999999994},{"$f":"VLOOKUP($A117,F1__World_Data!$A$4:$DP$191,106,FALSE)","v":64.242000000000004},{"$f":"VLOOKUP($A117,F1__World_Data!$A$4:$DP$191,105,FALSE)","v":63.994999999999997},{"$f":"VLOOKUP($A117,F1__World_Data!$A$4:$DP$191,104,FALSE)","v":63.731000000000002},{"$f":"VLOOKUP($A117,F1__World_Data!$A$4:$DP$191,103,FALSE)","v":63.445999999999998},{"$f":"VLOOKUP($A117,F1__World_Data!$A$4:$DP$191,102,FALSE)","v":63.143999999999998},{"$f":"VLOOKUP($A117,F1__World_Data!$A$4:$DP$191,101,FALSE)","v":62.829000000000001},{"$f":"VLOOKUP($A117,F1__World_Data!$A$4:$DP$191,100,FALSE)","v":62.509},{"$f":"VLOOKUP($A117,F1__World_Data!$A$4:$DP$191,99,FALSE)","v":62.188000000000002},{"$f":"VLOOKUP($A117,F1__World_Data!$A$4:$DP$191,98,FALSE)","v":61.866},{"$f":"VLOOKUP($A117,F1__World_Data!$A$4:$DP$191,97,FALSE)","v":61.539000000000001},{"$f":"VLOOKUP($A117,F1__World_Data!$A$4:$DP$191,96,FALSE)","v":61.198},{"$f":"VLOOKUP($A117,F1__World_Data!$A$4:$DP$191,95,FALSE)","v":60.837000000000003},{"$f":"VLOOKUP($A117,F1__World_Data!$A$4:$DP$191,94,FALSE)","v":60.454999999999998},{"$f":"VLOOKUP($A117,F1__World_Data!$A$4:$DP$191,93,FALSE)","v":60.052999999999997},{"$f":"VLOOKUP($A117,F1__World_Data!$A$4:$DP$191,92,FALSE)","v":59.636000000000003},{"$f":"VLOOKUP($A117,F1__World_Data!$A$4:$DP$191,91,FALSE)","v":59.209000000000003},{"$f":"VLOOKUP($A117,F1__World_Data!$A$4:$DP$191,90,FALSE)","v":58.783000000000001},{"$f":"VLOOKUP($A117,F1__World_Data!$A$4:$DP$191,89,FALSE)","v":58.366},{"$f":"VLOOKUP($A117,F1__World_Data!$A$4:$DP$191,88,FALSE)","v":57.962000000000003},{"$f":"VLOOKUP($A117,F1__World_Data!$A$4:$DP$191,87,FALSE)","v":57.579000000000001},{"$f":"VLOOKUP($A117,F1__World_Data!$A$4:$DP$191,86,FALSE)","v":57.220999999999997},{"$f":"VLOOKUP($A117,F1__World_Data!$A$4:$DP$191,85,FALSE)","v":56.886000000000003},{"$f":"VLOOKUP($A117,F1__World_Data!$A$4:$DP$191,84,FALSE)","v":56.569000000000003},{"$f":"VLOOKUP($A117,F1__World_Data!$A$4:$DP$191,83,FALSE)","v":56.265999999999998},{"$f":"VLOOKUP($A117,F1__World_Data!$A$4:$DP$191,82,FALSE)","v":55.970999999999997},{"$f":"VLOOKUP($A117,F1__World_Data!$A$4:$DP$191,81,FALSE)","v":55.679000000000002},{"$f":"VLOOKUP($A117,F1__World_Data!$A$4:$DP$191,80,FALSE)","v":55.381999999999998},{"$f":"VLOOKUP($A117,F1__World_Data!$A$4:$DP$191,79,FALSE)","v":55.073999999999998},{"$f":"VLOOKUP($A117,F1__World_Data!$A$4:$DP$191,78,FALSE)","v":54.747999999999998},{"$f":"VLOOKUP($A117,F1__World_Data!$A$4:$DP$191,77,FALSE)","v":54.399000000000001},{"$f":"VLOOKUP($A117,F1__World_Data!$A$4:$DP$191,76,FALSE)","v":54.027000000000001},{"$f":"VLOOKUP($A117,F1__World_Data!$A$4:$DP$191,75,FALSE)","v":53.633000000000003},{"$f":"VLOOKUP($A117,F1__World_Data!$A$4:$DP$191,74,FALSE)","v":53.218000000000004},{"$f":"VLOOKUP($A117,F1__World_Data!$A$4:$DP$191,73,FALSE)","v":52.781999999999996},{"$f":"VLOOKUP($A117,F1__World_Data!$A$4:$DP$191,72,FALSE)","v":52.323},{"$f":"VLOOKUP($A117,F1__World_Data!$A$4:$DP$191,71,FALSE)","v":51.837000000000003},{"$f":"VLOOKUP($A117,F1__World_Data!$A$4:$DP$191,70,FALSE)","v":51.326999999999998},{"$f":"VLOOKUP($A117,F1__World_Data!$A$4:$DP$191,69,FALSE)","v":50.795999999999999},{"$f":"VLOOKUP($A117,F1__World_Data!$A$4:$DP$191,68,FALSE)","v":50.25},{"$f":"VLOOKUP($A117,F1__World_Data!$A$4:$DP$191,67,FALSE)","v":49.697000000000003},{"$f":"VLOOKUP($A117,F1__World_Data!$A$4:$DP$191,66,FALSE)","v":49.145000000000003},{"$f":"VLOOKUP($A117,F1__World_Data!$A$4:$DP$191,65,FALSE)","v":48.600999999999999},{"$f":"VLOOKUP($A117,F1__World_Data!$A$4:$DP$191,64,FALSE)","v":48.070999999999998},{"$f":"VLOOKUP($A117,F1__World_Data!$A$4:$DP$191,63,FALSE)","v":47.557000000000002},{"$f":"VLOOKUP($A117,F1__World_Data!$A$4:$DP$191,62,FALSE)","v":47.061}]
["Croatia",{"$f":"VLOOKUP($A118,F1__World_Data!$A$4:$DP$191,60,FALSE)","v":4156.4070000000002},{"$f":"VLOOKUP($A118,F1__World_Data!$A$4:$DP$191,59,FALSE)","v":4182.8469999999998},{"$f":"VLOOKUP($A118,F1__World_Data!$A$4:$DP$191,58,FALSE)","v":4208.6109999999999},{"$f":"VLOOKUP($A118,F1__World_Data!$A$4:$DP$191,57,FALSE)","v":4232.8739999999998},{"$f":"VLOOKUP($A118,F1__World_Data!$A$4:$DP$191,56,FALSE)","v":4255.518},{"$f":"VLOOKUP($A118,F1__World_Data!$A$4:$DP$191,55,FALSE)","v":4276.5929999999998},{"$f":"VLOOKUP($A118,F1__World_Data!$A$4:$DP$191,54,FALSE)","v":4295.8689999999997},{"$f":"VLOOKUP($A118,F1__World_Data!$A$4:$DP$191,53,FALSE)","v":4313.098},{"$f":"VLOOKUP($A118,F1__World_Data!$A$4:$DP$191,52,FALSE)","v":4328.1629999999996},{"$f":"VLOOKUP($A118,F1__World_Data!$A$4:$DP$191,51,FALSE)","v":4341.2610000000004},{"$f":"VLOOKUP($A118,F1__World_Data!$A$4:$DP$191,50,FALSE)","v":4352.6390000000001},{"$f":"VLOOKUP($A118,F1__World_Data!$A$4:$DP$191,49,FALSE)","v":4362.4269999999997},{"$f":"VLOOKUP($A118,F1__World_Data!$A$4:$DP$191,48,FALSE)","v":4370.7820000000002},{"$f":"VLOOKUP($A118,F1__World_Data!$A$4:$DP$191,47,FALSE)","v":4378.0659999999998},{"$f":"VLOOKUP($A118,F1__World_Data!$A$4:$DP$191,46,FALSE)","v":4383.8770000000004},{"$f":"VLOOKUP($A118,F1__World_Data!$A$4:$DP$191,45,FALSE)","v":4388.9089999999997},{"$f":"VLOOKUP($A118,F1__World_Data!$A$4:$DP$191,44,FALSE)","v":4395.8019999999997},{"$f":"VLOOKUP($A118,F1__World_Data!$A$4:$DP$191,43,FALSE)","v":4408.0730000000003},{"$f":"VLOOKUP($A118,F1__World_Data!$A$4:$DP$191,42,FALSE)","v":4428.0749999999998},{"$f":"VLOOKUP($A118,F1__World_Data!$A$4:$DP$191,41,FALSE)","v":4456.4459999999999},{"$f":"VLOOKUP($A118,F1__World_Data!$A$4:$DP$191,40,FALSE)","v":4491.9059999999999},{"$f":"VLOOKUP($A118,F1__World_Data!$A$4:$DP$191,39,FALSE)","v":4532.4049999999997},{"$f":"VLOOKUP($A118,F1__World_Data!$A$4:$DP$191,38,FALSE)","v":4574.8879999999999},{"$f":"VLOOKUP($A118,F1__World_Data!$A$4:$DP$191,37,FALSE)","v":4616.7629999999999},{"$f":"VLOOKUP($A118,F1__World_Data!$A$4:$DP$191,36,FALSE)","v":4657.8},{"$f":"VLOOKUP($A118,F1__World_Data!$A$4:$DP$191,35,FALSE)","v":4697.5370000000003},{"$f":"VLOOKUP($A118,F1__World_Data!$A$4:$DP$191,34,FALSE)","v":4732.866},{"$f":"VLOOKUP($A118,F1__World_Data!$A$4:$DP$191,33,FALSE)","v":4760.0029999999997},{"$f":"VLOOKUP($A118,F1__World_Data!$A$4:$DP$191,32,FALSE)","v":4776.37},{"$f":"VLOOKUP($A118,F1__World_Data!$A$4:$DP$191,31,FALSE)","v":4780.6289999999999},{"$f":"VLOOKUP($A118,F1__World_Data!$A$4:$DP$191,30,FALSE)","v":4773.6840000000002},{"$f":"VLOOKUP($A118,F1__World_Data!$A$4:$DP$191,29,FALSE)","v":4758.1540000000005},{"$f":"VLOOKUP($A118,F1__World_Data!$A$4:$DP$191,28,FALSE)","v":4737.9539999999997},{"$f":"VLOOKUP($A118,F1__World_Data!$A$4:$DP$191,27,FALSE)","v":4716.1229999999996},{"$f":"VLOOKUP($A118,F1__World_Data!$A$4:$DP$191,26,FALSE)","v":4693.424},{"$f":"VLOOKUP($A118,F1__World_Data!$A$4:$DP$191,25,FALSE)","v":4669.6210000000001},{"$f":"VLOOKUP($A118,F1__World_Data!$A$4:$DP$191,24,FALSE)","v":4645.4040000000005},{"$f":"VLOOKUP($A118,F1__World_Data!$A$4:$DP$191,23,FALSE)","v":4621.42},{"$f":"VLOOKUP($A118,F1__World_Data!$A$4:$DP$191,22,FALSE)","v":4598.125},{"$f":"VLOOKUP($A118,F1__World_Data!$A$4:$DP$191,21,FALSE)","v":4576.0290000000005},{"$f":"VLOOKUP($A118,F1__World_Data!$A$4:$DP$191,20,FALSE)","v":4555.4129999999996},{"$f":"VLOOKUP($A118,F1__World_Data!$A$4:$DP$191,19,FALSE)","v":4536.1949999999997},{"$f":"VLOOKUP($A118,F1__World_Data!$A$4:$DP$191,18,FALSE)","v":4518.1009999999997},{"$f":"VLOOKUP($A118,F1__World_Data!$A$4:$DP$191,17,FALSE)","v":4500.8710000000001},{"$f":"VLOOKUP($A118,F1__World_Data!$A$4:$DP$191,16,FALSE)","v":4484.5230000000001},{"$f":"VLOOKUP($A118,F1__World_Data!$A$4:$DP$191,15,FALSE)","v":4469.0339999999997},{"$f":"VLOOKUP($A118,F1__World_Data!$A$4:$DP$191,14,FALSE)","v":4453.9849999999997},{"$f":"VLOOKUP($A118,F1__World_Data!$A$4:$DP$191,13,FALSE)","v":4438.8209999999999},{"$f":"VLOOKUP($A118,F1__World_Data!$A$4:$DP$191,12,FALSE)","v":4423.0690000000004},{"$f":"VLOOKUP($A118,F1__World_Data!$A$4:$DP$191,11,FALSE)","v":4406.6059999999998},{"$f":"VLOOKUP($A118,F1__World_Data!$A$4:$DP$191,10,FALSE)","v":4389.32},{"$f":"VLOOKUP($A118,F1__World_Data!$A$4:$DP$191,9,FALSE)","v":4370.8580000000002},{"$f":"VLOOKUP($A118,F1__World_Data!$A$4:$DP$191,8,FALSE)","v":4350.817},{"$f":"VLOOKUP($A118,F1__World_Data!$A$4:$DP$191,7,FALSE)","v":4328.9279999999999},{"$f":"VLOOKUP($A118,F1__World_Data!$A$4:$DP$191,6,FALSE)","v":4304.991},{"$f":"VLOOKUP($A118,F1__World_Data!$A$4:$DP$191,5,FALSE)","v":4279.0609999999997},{"$f":"VLOOKUP($A118,F1__World_Data!$A$4:$DP$191,4,FALSE)","v":4251.4219999999996},{"$f":"VLOOKUP($A118,F1__World_Data!$A$4:$DP$191,3,FALSE)","v":4222.5029999999997},{"$f":"VLOOKUP($A118,F1__World_Data!$A$4:$DP$191,2,FALSE)","v":4192.6409999999996},null,{"$f":"VLOOKUP($A118,F1__World_Data!$A$4:$DP$191,120,FALSE)","v":73.637107765015102},{"$f":"VLOOKUP($A118,F1__World_Data!$A$4:$DP$191,119,FALSE)","v":73.517492494111451},{"$f":"VLOOKUP($A118,F1__World_Data!$A$4:$DP$191,118,FALSE)","v":73.395956392778842},{"$f":"VLOOKUP($A118,F1__World_Data!$A$4:$DP$191,117,FALSE)","v":73.273015980955037},{"$f":"VLOOKUP($A118,F1__World_Data!$A$4:$DP$191,116,FALSE)","v":73.150584618105228},{"$f":"VLOOKUP($A118,F1__World_Data!$A$4:$DP$191,115,FALSE)","v":73.030145150125279},{"$f":"VLOOKUP($A118,F1__World_Data!$A$4:$DP$191,114,FALSE)","v":72.911803457889334},{"$f":"VLOOKUP($A118,F1__World_Data!$A$4:$DP$191,113,FALSE)","v":72.795298311480806},{"$f":"VLOOKUP($A118,F1__World_Data!$A$4:$DP$191,112,FALSE)","v":72.67939476796036},{"$f":"VLOOKUP($A118,F1__World_Data!$A$4:$DP$191,111,FALSE)","v":72.561747336395143},{"$f":"VLOOKUP($A118,F1__World_Data!$A$4:$DP$191,110,FALSE)","v":72.440791221878925},{"$f":"VLOOKUP($A118,F1__World_Data!$A$4:$DP$191,109,FALSE)","v":72.316056289520802},{"$f":"VLOOKUP($A118,F1__World_Data!$A$4:$DP$191,108,FALSE)","v":72.187024201709548},{"$f":"VLOOKUP($A118,F1__World_Data!$A$4:$DP$191,107,FALSE)","v":72.055708423096959},{"$f":"VLOOKUP($A118,F1__World_Data!$A$4:$DP$191,106,FALSE)","v":71.923538539966657},{"$f":"VLOOKUP($A118,F1__World_Data!$A$4:$DP$191,105,FALSE)","v":71.79198627417226},{"$f":"VLOOKUP($A118,F1__World_Data!$A$4:$DP$191,104,FALSE)","v":71.713359964345358},{"$f":"VLOOKUP($A118,F1__World_Data!$A$4:$DP$191,103,FALSE)","v":71.538000447490049},{"$f":"VLOOKUP($A118,F1__World_Data!$A$4:$DP$191,102,FALSE)","v":71.419185391298214},{"$f":"VLOOKUP($A118,F1__World_Data!$A$4:$DP$191,101,FALSE)","v":71.310270981539503},{"$f":"VLOOKUP($A118,F1__World_Data!$A$4:$DP$191,100,FALSE)","v":71.21031996042737},{"$f":"VLOOKUP($A118,F1__World_Data!$A$4:$DP$191,99,FALSE)","v":71.163774129209045},{"$f":"VLOOKUP($A118,F1__World_Data!$A$4:$DP$191,98,FALSE)","v":71.028989838640868},{"$f":"VLOOKUP($A118,F1__World_Data!$A$4:$DP$191,97,FALSE)","v":70.937525331800259},{"$f":"VLOOKUP($A118,F1__World_Data!$A$4:$DP$191,96,FALSE)","v":70.834489868717455},{"$f":"VLOOKUP($A118,F1__World_Data!$A$4:$DP$191,95,FALSE)","v":70.712539984335763},{"$f":"VLOOKUP($A118,F1__World_Data!$A$4:$DP$191,94,FALSE)","v":70.588066446924401},{"$f":"VLOOKUP($A118,F1__World_Data!$A$4:$DP$191,93,FALSE)","v":70.394009945599478},{"$f":"VLOOKUP($A118,F1__World_Data!$A$4:$DP$191,92,FALSE)","v":70.197631076872327},{"$f":"VLOOKUP($A118,F1__World_Data!$A$4:$DP$191,91,FALSE)","v":69.984185708155181},{"$f":"VLOOKUP($A118,F1__World_Data!$A$4:$DP$191,90,FALSE)","v":69.763201056316845},{"$f":"VLOOKUP($A118,F1__World_Data!$A$4:$DP$191,89,FALSE)","v":69.548709699732711},{"$f":"VLOOKUP($A118,F1__World_Data!$A$4:$DP$191,88,FALSE)","v":69.329770812363662},{"$f":"VLOOKUP($A118,F1__World_Data!$A$4:$DP$191,87,FALSE)","v":69.122687176363286},{"$f":"VLOOKUP($A118,F1__World_Data!$A$4:$DP$191,86,FALSE)","v":68.920937408315467},{"$f":"VLOOKUP($A118,F1__World_Data!$A$4:$DP$191,85,FALSE)","v":68.718950407055345},{"$f":"VLOOKUP($A118,F1__World_Data!$A$4:$DP$191,84,FALSE)","v":68.517816565508539},{"$f":"VLOOKUP($A118,F1__World_Data!$A$4:$DP$191,83,FALSE)","v":68.303133941519746},{"$f":"VLOOKUP($A118,F1__World_Data!$A$4:$DP$191,82,FALSE)","v":68.086726113212805},{"$f":"VLOOKUP($A118,F1__World_Data!$A$4:$DP$191,81,FALSE)","v":67.861437019779785},{"$f":"VLOOKUP($A118,F1__World_Data!$A$4:$DP$191,80,FALSE)","v":67.627852151683655},{"$f":"VLOOKUP($A118,F1__World_Data!$A$4:$DP$191,79,FALSE)","v":67.385208633368208},{"$f":"VLOOKUP($A118,F1__World_Data!$A$4:$DP$191,78,FALSE)","v":67.13336447744399},{"$f":"VLOOKUP($A118,F1__World_Data!$A$4:$DP$191,77,FALSE)","v":66.875688670547362},{"$f":"VLOOKUP($A118,F1__World_Data!$A$4:$DP$191,76,FALSE)","v":66.618286191425497},{"$f":"VLOOKUP($A118,F1__World_Data!$A$4:$DP$191,75,FALSE)","v":66.364974788459406},{"$f":"VLOOKUP($A118,F1__World_Data!$A$4:$DP$191,74,FALSE)","v":66.118883978571901},{"$f":"VLOOKUP($A118,F1__World_Data!$A$4:$DP$191,73,FALSE)","v":65.880385295601911},{"$f":"VLOOKUP($A118,F1__World_Data!$A$4:$DP$191,72,FALSE)","v":65.648808613002032},{"$f":"VLOOKUP($A118,F1__World_Data!$A$4:$DP$191,71,FALSE)","v":65.419925874108088},{"$f":"VLOOKUP($A118,F1__World_Data!$A$4:$DP$191,70,FALSE)","v":65.186992176822201},{"$f":"VLOOKUP($A118,F1__World_Data!$A$4:$DP$191,69,FALSE)","v":64.943628772980901},{"$f":"VLOOKUP($A118,F1__World_Data!$A$4:$DP$191,68,FALSE)","v":64.684667910390132},{"$f":"VLOOKUP($A118,F1__World_Data!$A$4:$DP$191,67,FALSE)","v":64.407721253920059},{"$f":"VLOOKUP($A118,F1__World_Data!$A$4:$DP$191,66,FALSE)","v":64.113791435393836},{"$f":"VLOOKUP($A118,F1__World_Data!$A$4:$DP$191,65,FALSE)","v":63.804441775374208},{"$f":"VLOOKUP($A118,F1__World_Data!$A$4:$DP$191,64,FALSE)","v":63.476465945226273},{"$f":"VLOOKUP($A118,F1__World_Data!$A$4:$DP$191,63,FALSE)","v":63.126130845617176},{"$f":"VLOOKUP($A118,F1__World_Data!$A$4:$DP$191,62,FALSE)","v":62.746295193294777}]
["Kuwait",{"$f":"VLOOKUP($A119,F1__World_Data!$A$4:$DP$191,60,FALSE)","v":4137.3140000000003},{"$f":"VLOOKUP($A119,F1__World_Data!$A$4:$DP$191,59,FALSE)","v":4056.1019999999999},{"$f":"VLOOKUP($A119,F1__World_Data!$A$4:$DP$191,58,FALSE)","v":3956.8620000000001},{"$f":"VLOOKUP($A119,F1__World_Data!$A$4:$DP$191,57,FALSE)","v":3835.5880000000002},{"$f":"VLOOKUP($A119,F1__World_Data!$A$4:$DP$191,56,FALSE)","v":3690.9389999999999},{"$f":"VLOOKUP($A119,F1__World_Data!$A$4:$DP$191,55,FALSE)","v":3526.3820000000001},{"$f":"VLOOKUP($A119,F1__World_Data!$A$4:$DP$191,54,FALSE)","v":3348.8519999999999},{"$f":"VLOOKUP($A119,F1__World_Data!$A$4:$DP$191,53,FALSE)","v":3168.0540000000001},{"$f":"VLOOKUP($A119,F1__World_Data!$A$4:$DP$191,52,FALSE)","v":2991.884},{"$f":"VLOOKUP($A119,F1__World_Data!$A$4:$DP$191,55,FALSE)","v":3526.3820000000001},{"$f":"VLOOKUP($A119,F1__World_Data!$A$4:$DP$191,50,FALSE)","v":2656.01},{"$f":"VLOOKUP($A119,F1__World_Data!$A$4:$DP$191,49,FALSE)","v":2504.0259999999998},{"$f":"VLOOKUP($A119,F1__World_Data!$A$4:$DP$191,48,FALSE)","v":2373.6610000000001},{"$f":"VLOOKUP($A119,F1__World_Data!$A$4:$DP$191,47,FALSE)","v":2270.1959999999999},{"$f":"VLOOKUP($A119,F1__World_Data!$A$4:$DP$191,46,FALSE)","v":2200.498},{"$f":"VLOOKUP($A119,F1__World_Data!$A$4:$DP$191,45,FALSE)","v":2161.6260000000002},{"$f":"VLOOKUP($A119,F1__World_Data!$A$4:$DP$191,44,FALSE)","v":2136.991},{"$f":"VLOOKUP($A119,F1__World_Data!$A$4:$DP$191,43,FALSE)","v":2103.2730000000001},{"$f":"VLOOKUP($A119,F1__World_Data!$A$4:$DP$191,42,FALSE)","v":2045.123},{"$f":"VLOOKUP($A119,F1__World_Data!$A$4:$DP$191,41,FALSE)","v":1951.6420000000001},{"$f":"VLOOKUP($A119,F1__World_Data!$A$4:$DP$191,40,FALSE)","v":1831.1210000000001},{"$f":"VLOOKUP($A119,F1__World_Data!$A$4:$DP$191,39,FALSE)","v":1710.2570000000001},{"$f":"VLOOKUP($A119,F1__World_Data!$A$4:$DP$191,38,FALSE)","v":1626.8579999999999},{"$f":"VLOOKUP($A119,F1__World_Data!$A$4:$DP$191,37,FALSE)","v":1605.9069999999999},{"$f":"VLOOKUP($A119,F1__World_Data!$A$4:$DP$191,36,FALSE)","v":1659.3040000000001},{"$f":"VLOOKUP($A119,F1__World_Data!$A$4:$DP$191,35,FALSE)","v":1772.607},{"$f":"VLOOKUP($A119,F1__World_Data!$A$4:$DP$191,34,FALSE)","v":1912.425},{"$f":"VLOOKUP($A119,F1__World_Data!$A$4:$DP$191,33,FALSE)","v":2031.297},{"$f":"VLOOKUP($A119,F1__World_Data!$A$4:$DP$191,32,FALSE)","v":2095.35},{"$f":"VLOOKUP($A119,F1__World_Data!$A$4:$DP$191,31,FALSE)","v":2092.7860000000001},{"$f":"VLOOKUP($A119,F1__World_Data!$A$4:$DP$191,30,FALSE)","v":2034.85},{"$f":"VLOOKUP($A119,F1__World_Data!$A$4:$DP$191,29,FALSE)","v":1938.9159999999999},{"$f":"VLOOKUP($A119,F1__World_Data!$A$4:$DP$191,28,FALSE)","v":1832.3019999999999},{"$f":"VLOOKUP($A119,F1__World_Data!$A$4:$DP$191,27,FALSE)","v":1735.278},{"$f":"VLOOKUP($A119,F1__World_Data!$A$4:$DP$191,26,FALSE)","v":1652.15},{"$f":"VLOOKUP($A119,F1__World_Data!$A$4:$DP$191,25,FALSE)","v":1576.9749999999999},{"$f":"VLOOKUP($A119,F1__World_Data!$A$4:$DP$191,24,FALSE)","v":1507.636},{"$f":"VLOOKUP($A119,F1__World_Data!$A$4:$DP$191,23,FALSE)","v":1439.3340000000001},{"$f":"VLOOKUP($A119,F1__World_Data!$A$4:$DP$191,22,FALSE)","v":1368.68},{"$f":"VLOOKUP($A119,F1__World_Data!$A$4:$DP$191,21,FALSE)","v":1296.077},{"$f":"VLOOKUP($A119,F1__World_Data!$A$4:$DP$191,20,FALSE)","v":1224.0630000000001},{"$f":"VLOOKUP($A119,F1__World_Data!$A$4:$DP$191,19,FALSE)","v":1153.5730000000001},{"$f":"VLOOKUP($A119,F1__World_Data!$A$4:$DP$191,18,FALSE)","v":1085.866},{"$f":"VLOOKUP($A119,F1__World_Data!$A$4:$DP$191,17,FALSE)","v":1021.725},{"$f":"VLOOKUP($A119,F1__World_Data!$A$4:$DP$191,16,FALSE)","v":961.77300000000002},{"$f":"VLOOKUP($A119,F1__World_Data!$A$4:$DP$191,15,FALSE)","v":905.63900000000001},{"$f":"VLOOKUP($A119,F1__World_Data!$A$4:$DP$191,14,FALSE)","v":851.91800000000001},{"$f":"VLOOKUP($A119,F1__World_Data!$A$4:$DP$191,13,FALSE)","v":798.63900000000001},{"$f":"VLOOKUP($A119,F1__World_Data!$A$4:$DP$191,12,FALSE)","v":744.44399999999996},{"$f":"VLOOKUP($A119,F1__World_Data!$A$4:$DP$191,11,FALSE)","v":688.97199999999998},{"$f":"VLOOKUP($A119,F1__World_Data!$A$4:$DP$191,10,FALSE)","v":632.91099999999994},{"$f":"VLOOKUP($A119,F1__World_Data!$A$4:$DP$191,9,FALSE)","v":577.16399999999999},{"$f":"VLOOKUP($A119,F1__World_Data!$A$4:$DP$191,8,FALSE)","v":523.16899999999998},{"$f":"VLOOKUP($A119,F1__World_Data!$A$4:$DP$191,7,FALSE)","v":472.03199999999998},{"$f":"VLOOKUP($A119,F1__World_Data!$A$4:$DP$191,6,FALSE)","v":423.9},{"$f":"VLOOKUP($A119,F1__World_Data!$A$4:$DP$191,5,FALSE)","v":378.75599999999997},{"$f":"VLOOKUP($A119,F1__World_Data!$A$4:$DP$191,4,FALSE)","v":337.346},{"$f":"VLOOKUP($A119,F1__World_Data!$A$4:$DP$191,3,FALSE)","v":300.58100000000002},{"$f":"VLOOKUP($A119,F1__World_Data!$A$4:$DP$191,2,FALSE)","v":269.02600000000001},null,{"$f":"VLOOKUP($A119,F1__World_Data!$A$4:$DP$191,120,FALSE)","v":68.116},{"$f":"VLOOKUP($A119,F1__World_Data!$A$4:$DP$191,119,FALSE)","v":67.850999999999999},{"$f":"VLOOKUP($A119,F1__World_Data!$A$4:$DP$191,118,FALSE)","v":67.576999999999998},{"$f":"VLOOKUP($A119,F1__World_Data!$A$4:$DP$191,117,FALSE)","v":67.290999999999997},{"$f":"VLOOKUP($A119,F1__World_Data!$A$4:$DP$191,116,FALSE)","v":66.995000000000005},{"$f":"VLOOKUP($A119,F1__World_Data!$A$4:$DP$191,115,FALSE)","v":66.69},{"$f":"VLOOKUP($A119,F1__World_Data!$A$4:$DP$191,114,FALSE)","v":66.381},{"$f":"VLOOKUP($A119,F1__World_Data!$A$4:$DP$191,113,FALSE)","v":66.072000000000003},{"$f":"VLOOKUP($A119,F1__World_Data!$A$4:$DP$191,112,FALSE)","v":65.769000000000005},{"$f":"VLOOKUP($A119,F1__World_Data!$A$4:$DP$191,111,FALSE)","v":65.48},{"$f":"VLOOKUP($A119,F1__World_Data!$A$4:$DP$191,110,FALSE)","v":65.207999999999998},{"$f":"VLOOKUP($A119,F1__World_Data!$A$4:$DP$191,109,FALSE)","v":64.953000000000003},{"$f":"VLOOKUP($A119,F1__World_Data!$A$4:$DP$191,108,FALSE)","v":64.712000000000003},{"$f":"VLOOKUP($A119,F1__World_Data!$A$4:$DP$191,107,FALSE)","v":64.477999999999994},{"$f":"VLOOKUP($A119,F1__World_Data!$A$4:$DP$191,106,FALSE)","v":64.242000000000004},{"$f":"VLOOKUP($A119,F1__World_Data!$A$4:$DP$191,105,FALSE)","v":63.994999999999997},{"$f":"VLOOKUP($A119,F1__World_Data!$A$4:$DP$191,104,FALSE)","v":63.731000000000002},{"$f":"VLOOKUP($A119,F1__World_Data!$A$4:$DP$191,103,FALSE)","v":63.445999999999998},{"$f":"VLOOKUP($A119,F1__World_Data!$A$4:$DP$191,102,FALSE)","v":63.143999999999998},{"$f":"VLOOKUP($A119,F1__World_Data!$A$4:$DP$191,101,FALSE)","v":62.829000000000001},{"$f":"VLOOKUP($A119,F1__World_Data!$A$4:$DP$191,100,FALSE)","v":62.509},{"$f":"VLOOKUP($A119,F1__World_Data!$A$4:$DP$191,99,FALSE)","v":62.188000000000002},{"$f":"VLOOKUP($A119,F1__World_Data!$A$4:$DP$191,98,FALSE)","v":61.866},{"$f":"VLOOKUP($A119,F1__World_Data!$A$4:$DP$191,97,FALSE)","v":61.539000000000001},{"$f":"VLOOKUP($A119,F1__World_Data!$A$4:$DP$191,96,FALSE)","v":61.198},{"$f":"VLOOKUP($A119,F1__World_Data!$A$4:$DP$191,95,FALSE)","v":60.837000000000003},{"$f":"VLOOKUP($A119,F1__World_Data!$A$4:$DP$191,94,FALSE)","v":60.454999999999998},{"$f":"VLOOKUP($A119,F1__World_Data!$A$4:$DP$191,93,FALSE)","v":60.052999999999997},{"$f":"VLOOKUP($A119,F1__World_Data!$A$4:$DP$191,92,FALSE)","v":59.636000000000003},{"$f":"VLOOKUP($A119,F1__World_Data!$A$4:$DP$191,91,FALSE)","v":59.209000000000003},{"$f":"VLOOKUP($A119,F1__World_Data!$A$4:$DP$191,90,FALSE)","v":58.783000000000001},{"$f":"VLOOKUP($A119,F1__World_Data!$A$4:$DP$191,89,FALSE)","v":58.366},{"$f":"VLOOKUP($A119,F1__World_Data!$A$4:$DP$191,88,FALSE)","v":57.962000000000003},{"$f":"VLOOKUP($A119,F1__World_Data!$A$4:$DP$191,87,FALSE)","v":57.579000000000001},{"$f":"VLOOKUP($A119,F1__World_Data!$A$4:$DP$191,86,FALSE)","v":57.220999999999997},{"$f":"VLOOKUP($A119,F1__World_Data!$A$4:$DP$191,85,FALSE)","v":56.886000000000003},{"$f":"VLOOKUP($A119,F1__World_Data!$A$4:$DP$191,84,FALSE)","v":56.569000000000003},{"$f":"VLOOKUP($A119,F1__World_Data!$A$4:$DP$191,83,FALSE)","v":56.265999999999998},{"$f":"VLOOKUP($A119,F1__World_Data!$A$4:$DP$191,82,FALSE)","v":55.970999999999997},{"$f":"VLOOKUP($A119,F1__World_Data!$A$4:$DP$191,81,FALSE)","v":55.679000000000002},{"$f":"VLOOKUP($A119,F1__World_Data!$A$4:$DP$191,80,FALSE)","v":55.381999999999998},{"$f":"VLOOKUP($A119,F1__World_Data!$A$4:$DP$191,79,FALSE)","v":55.073999999999998},{"$f":"VLOOKUP($A119,F1__World_Data!$A$4:$DP$191,78,FALSE)","v":54.747999999999998},{"$f":"VLOOKUP($A119,F1__World_Data!$A$4:$DP$191,77,FALSE)","v":54.399000000000001},{"$f":"VLOOKUP($A119,F1__World_Data!$A$4:$DP$191,76,FALSE)","v":54.027000000000001},{"$f":"VLOOKUP($A119,F1__World_Data!$A$4:$DP$191,75,FALSE)","v":53.633000000000003},{"$f":"VLOOKUP($A119,F1__World_Data!$A$4:$DP$191,74,FALSE)","v":53.218000000000004},{"$f":"VLOOKUP($A119,F1__World_Data!$A$4:$DP$191,73,FALSE)","v":52.781999999999996},{"$f":"VLOOKUP($A119,F1__World_Data!$A$4:$DP$191,72,FALSE)","v":52.323},{"$f":"VLOOKUP($A119,F1__World_Data!$A$4:$DP$191,71,FALSE)","v":51.837000000000003},{"$f":"VLOOKUP($A119,F1__World_Data!$A$4:$DP$191,70,FALSE)","v":51.326999999999998},{"$f":"VLOOKUP($A119,F1__World_Data!$A$4:$DP$191,69,FALSE)","v":50.795999999999999},{"$f":"VLOOKUP($A119,F1__World_Data!$A$4:$DP$191,68,FALSE)","v":50.25},{"$f":"VLOOKUP($A119,F1__World_Data!$A$4:$DP$191,67,FALSE)","v":49.697000000000003},{"$f":"VLOOKUP($A119,F1__World_Data!$A$4:$DP$191,66,FALSE)","v":49.145000000000003},{"$f":"VLOOKUP($A119,F1__World_Data!$A$4:$DP$191,65,FALSE)","v":48.600999999999999},{"$f":"VLOOKUP($A119,F1__World_Data!$A$4:$DP$191,64,FALSE)","v":48.070999999999998},{"$f":"VLOOKUP($A119,F1__World_Data!$A$4:$DP$191,63,FALSE)","v":47.557000000000002},{"$f":"VLOOKUP($A119,F1__World_Data!$A$4:$DP$191,62,FALSE)","v":47.061}]
["Republic of Moldova",{"$f":"VLOOKUP($A120,F1__World_Data!$A$4:$DP$191,60,FALSE)","v":4051.95},{"$f":"VLOOKUP($A120,F1__World_Data!$A$4:$DP$191,59,FALSE)","v":4059.6869999999999},{"$f":"VLOOKUP($A120,F1__World_Data!$A$4:$DP$191,58,FALSE)","v":4066.0129999999999},{"$f":"VLOOKUP($A120,F1__World_Data!$A$4:$DP$191,57,FALSE)","v":4070.7049999999999},{"$f":"VLOOKUP($A120,F1__World_Data!$A$4:$DP$191,56,FALSE)","v":4073.4070000000002},{"$f":"VLOOKUP($A120,F1__World_Data!$A$4:$DP$191,55,FALSE)","v":4074.585},{"$f":"VLOOKUP($A120,F1__World_Data!$A$4:$DP$191,54,FALSE)","v":4075.8040000000001},{"$f":"VLOOKUP($A120,F1__World_Data!$A$4:$DP$191,53,FALSE)","v":4079.1669999999999},{"$f":"VLOOKUP($A120,F1__World_Data!$A$4:$DP$191,52,FALSE)","v":4086.09},{"$f":"VLOOKUP($A120,F1__World_Data!$A$4:$DP$191,55,FALSE)","v":4074.585},{"$f":"VLOOKUP($A120,F1__World_Data!$A$4:$DP$191,50,FALSE)","v":4112.8860000000004},{"$f":"VLOOKUP($A120,F1__World_Data!$A$4:$DP$191,49,FALSE)","v":4130.1289999999999},{"$f":"VLOOKUP($A120,F1__World_Data!$A$4:$DP$191,48,FALSE)","v":4146.2640000000001},{"$f":"VLOOKUP($A120,F1__World_Data!$A$4:$DP$191,47,FALSE)","v":4159.2960000000003},{"$f":"VLOOKUP($A120,F1__World_Data!$A$4:$DP$191,46,FALSE)","v":4167.9620000000004},{"$f":"VLOOKUP($A120,F1__World_Data!$A$4:$DP$191,45,FALSE)","v":4173.2759999999998},{"$f":"VLOOKUP($A120,F1__World_Data!$A$4:$DP$191,44,FALSE)","v":4178.2280000000001},{"$f":"VLOOKUP($A120,F1__World_Data!$A$4:$DP$191,43,FALSE)","v":4187.0969999999998},{"$f":"VLOOKUP($A120,F1__World_Data!$A$4:$DP$191,42,FALSE)","v":4202.6589999999997},{"$f":"VLOOKUP($A120,F1__World_Data!$A$4:$DP$191,41,FALSE)","v":4225.835},{"$f":"VLOOKUP($A120,F1__World_Data!$A$4:$DP$191,40,FALSE)","v":4254.835},{"$f":"VLOOKUP($A120,F1__World_Data!$A$4:$DP$191,39,FALSE)","v":4286.4769999999999},{"$f":"VLOOKUP($A120,F1__World_Data!$A$4:$DP$191,38,FALSE)","v":4316.2250000000004},{"$f":"VLOOKUP($A120,F1__World_Data!$A$4:$DP$191,37,FALSE)","v":4340.6019999999999},{"$f":"VLOOKUP($A120,F1__World_Data!$A$4:$DP$191,36,FALSE)","v":4358.79},{"$f":"VLOOKUP($A120,F1__World_Data!$A$4:$DP$191,35,FALSE)","v":4371.1549999999997},{"$f":"VLOOKUP($A120,F1__World_Data!$A$4:$DP$191,34,FALSE)","v":4376.8040000000001},{"$f":"VLOOKUP($A120,F1__World_Data!$A$4:$DP$191,33,FALSE)","v":4375.0529999999999},{"$f":"VLOOKUP($A120,F1__World_Data!$A$4:$DP$191,32,FALSE)","v":4365.5619999999999},{"$f":"VLOOKUP($A120,F1__World_Data!$A$4:$DP$191,31,FALSE)","v":4347.87},{"$f":"VLOOKUP($A120,F1__World_Data!$A$4:$DP$191,30,FALSE)","v":4322.3379999999997},{"$f":"VLOOKUP($A120,F1__World_Data!$A$4:$DP$191,29,FALSE)","v":4290.4840000000004},{"$f":"VLOOKUP($A120,F1__World_Data!$A$4:$DP$191,28,FALSE)","v":4254.5259999999998},{"$f":"VLOOKUP($A120,F1__World_Data!$A$4:$DP$191,27,FALSE)","v":4216.2439999999997},{"$f":"VLOOKUP($A120,F1__World_Data!$A$4:$DP$191,26,FALSE)","v":4175.9319999999998},{"$f":"VLOOKUP($A120,F1__World_Data!$A$4:$DP$191,25,FALSE)","v":4133.7299999999996},{"$f":"VLOOKUP($A120,F1__World_Data!$A$4:$DP$191,24,FALSE)","v":4091.1320000000001},{"$f":"VLOOKUP($A120,F1__World_Data!$A$4:$DP$191,23,FALSE)","v":4049.8739999999998},{"$f":"VLOOKUP($A120,F1__World_Data!$A$4:$DP$191,22,FALSE)","v":4011.085},{"$f":"VLOOKUP($A120,F1__World_Data!$A$4:$DP$191,21,FALSE)","v":3975.7220000000002},{"$f":"VLOOKUP($A120,F1__World_Data!$A$4:$DP$191,20,FALSE)","v":3943.33},{"$f":"VLOOKUP($A120,F1__World_Data!$A$4:$DP$191,19,FALSE)","v":3911.8090000000002},{"$f":"VLOOKUP($A120,F1__World_Data!$A$4:$DP$191,18,FALSE)","v":3878.1019999999999},{"$f":"VLOOKUP($A120,F1__World_Data!$A$4:$DP$191,17,FALSE)","v":3840.0459999999998},{"$f":"VLOOKUP($A120,F1__World_Data!$A$4:$DP$191,16,FALSE)","v":3796.768},{"$f":"VLOOKUP($A120,F1__World_Data!$A$4:$DP$191,15,FALSE)","v":3749.0129999999999},{"$f":"VLOOKUP($A120,F1__World_Data!$A$4:$DP$191,14,FALSE)","v":3698.23},{"$f":"VLOOKUP($A120,F1__World_Data!$A$4:$DP$191,13,FALSE)","v":3646.5709999999999},{"$f":"VLOOKUP($A120,F1__World_Data!$A$4:$DP$191,12,FALSE)","v":3595.549},{"$f":"VLOOKUP($A120,F1__World_Data!$A$4:$DP$191,11,FALSE)","v":3545.6509999999998},{"$f":"VLOOKUP($A120,F1__World_Data!$A$4:$DP$191,10,FALSE)","v":3496.1289999999999},{"$f":"VLOOKUP($A120,F1__World_Data!$A$4:$DP$191,9,FALSE)","v":3445.8359999999998},{"$f":"VLOOKUP($A120,F1__World_Data!$A$4:$DP$191,8,FALSE)","v":3393.047},{"$f":"VLOOKUP($A120,F1__World_Data!$A$4:$DP$191,7,FALSE)","v":3336.5929999999998},{"$f":"VLOOKUP($A120,F1__World_Data!$A$4:$DP$191,6,FALSE)","v":3276.431},{"$f":"VLOOKUP($A120,F1__World_Data!$A$4:$DP$191,5,FALSE)","v":3213.0830000000001},{"$f":"VLOOKUP($A120,F1__World_Data!$A$4:$DP$191,4,FALSE)","v":3146.547},{"$f":"VLOOKUP($A120,F1__World_Data!$A$4:$DP$191,3,FALSE)","v":3076.893},{"$f":"VLOOKUP($A120,F1__World_Data!$A$4:$DP$191,2,FALSE)","v":3004.4459999999999},null,{"$f":"VLOOKUP($A120,F1__World_Data!$A$4:$DP$191,120,FALSE)","v":68.116},{"$f":"VLOOKUP($A120,F1__World_Data!$A$4:$DP$191,119,FALSE)","v":67.850999999999999},{"$f":"VLOOKUP($A120,F1__World_Data!$A$4:$DP$191,118,FALSE)","v":67.576999999999998},{"$f":"VLOOKUP($A120,F1__World_Data!$A$4:$DP$191,117,FALSE)","v":67.290999999999997},{"$f":"VLOOKUP($A120,F1__World_Data!$A$4:$DP$191,116,FALSE)","v":66.995000000000005},{"$f":"VLOOKUP($A120,F1__World_Data!$A$4:$DP$191,115,FALSE)","v":66.69},{"$f":"VLOOKUP($A120,F1__World_Data!$A$4:$DP$191,114,FALSE)","v":66.381},{"$f":"VLOOKUP($A120,F1__World_Data!$A$4:$DP$191,113,FALSE)","v":66.072000000000003},{"$f":"VLOOKUP($A120,F1__World_Data!$A$4:$DP$191,112,FALSE)","v":65.769000000000005},{"$f":"VLOOKUP($A120,F1__World_Data!$A$4:$DP$191,111,FALSE)","v":65.48},{"$f":"VLOOKUP($A120,F1__World_Data!$A$4:$DP$191,110,FALSE)","v":65.207999999999998},{"$f":"VLOOKUP($A120,F1__World_Data!$A$4:$DP$191,109,FALSE)","v":64.953000000000003},{"$f":"VLOOKUP($A120,F1__World_Data!$A$4:$DP$191,108,FALSE)","v":64.712000000000003},{"$f":"VLOOKUP($A120,F1__World_Data!$A$4:$DP$191,107,FALSE)","v":64.477999999999994},{"$f":"VLOOKUP($A120,F1__World_Data!$A$4:$DP$191,106,FALSE)","v":64.242000000000004},{"$f":"VLOOKUP($A120,F1__World_Data!$A$4:$DP$191,105,FALSE)","v":63.994999999999997},{"$f":"VLOOKUP($A120,F1__World_Data!$A$4:$DP$191,104,FALSE)","v":63.731000000000002},{"$f":"VLOOKUP($A120,F1__World_Data!$A$4:$DP$191,103,FALSE)","v":63.445999999999998},{"$f":"VLOOKUP($A120,F1__World_Data!$A$4:$DP$191,102,FALSE)","v":63.143999999999998},{"$f":"VLOOKUP($A120,F1__World_Data!$A$4:$DP$191,101,FALSE)","v":62.829000000000001},{"$f":"VLOOKUP($A120,F1__World_Data!$A$4:$DP$191,100,FALSE)","v":62.509},{"$f":"VLOOKUP($A120,F1__World_Data!$A$4:$DP$191,99,FALSE)","v":62.188000000000002},{"$f":"VLOOKUP($A120,F1__World_Data!$A$4:$DP$191,98,FALSE)","v":61.866},{"$f":"VLOOKUP($A120,F1__World_Data!$A$4:$DP$191,97,FALSE)","v":61.539000000000001},{"$f":"VLOOKUP($A120,F1__World_Data!$A$4:$DP$191,96,FALSE)","v":61.198},{"$f":"VLOOKUP($A120,F1__World_Data!$A$4:$DP$191,95,FALSE)","v":60.837000000000003},{"$f":"VLOOKUP($A120,F1__World_Data!$A$4:$DP$191,94,FALSE)","v":60.454999999999998},{"$f":"VLOOKUP($A120,F1__World_Data!$A$4:$DP$191,93,FALSE)","v":60.052999999999997},{"$f":"VLOOKUP($A120,F1__World_Data!$A$4:$DP$191,92,FALSE)","v":59.636000000000003},{"$f":"VLOOKUP($A120,F1__World_Data!$A$4:$DP$191,91,FALSE)","v":59.209000000000003},{"$f":"VLOOKUP($A120,F1__World_Data!$A$4:$DP$191,90,FALSE)","v":58.783000000000001},{"$f":"VLOOKUP($A120,F1__World_Data!$A$4:$DP$191,89,FALSE)","v":58.366},{"$f":"VLOOKUP($A120,F1__World_Data!$A$4:$DP$191,88,FALSE)","v":57.962000000000003},{"$f":"VLOOKUP($A120,F1__World_Data!$A$4:$DP$191,87,FALSE)","v":57.579000000000001},{"$f":"VLOOKUP($A120,F1__World_Data!$A$4:$DP$191,86,FALSE)","v":57.220999999999997},{"$f":"VLOOKUP($A120,F1__World_Data!$A$4:$DP$191,85,FALSE)","v":56.886000000000003},{"$f":"VLOOKUP($A120,F1__World_Data!$A$4:$DP$191,84,FALSE)","v":56.569000000000003},{"$f":"VLOOKUP($A120,F1__World_Data!$A$4:$DP$191,83,FALSE)","v":56.265999999999998},{"$f":"VLOOKUP($A120,F1__World_Data!$A$4:$DP$191,82,FALSE)","v":55.970999999999997},{"$f":"VLOOKUP($A120,F1__World_Data!$A$4:$DP$191,81,FALSE)","v":55.679000000000002},{"$f":"VLOOKUP($A120,F1__World_Data!$A$4:$DP$191,80,FALSE)","v":55.381999999999998},{"$f":"VLOOKUP($A120,F1__World_Data!$A$4:$DP$191,79,FALSE)","v":55.073999999999998},{"$f":"VLOOKUP($A120,F1__World_Data!$A$4:$DP$191,78,FALSE)","v":54.747999999999998},{"$f":"VLOOKUP($A120,F1__World_Data!$A$4:$DP$191,77,FALSE)","v":54.399000000000001},{"$f":"VLOOKUP($A120,F1__World_Data!$A$4:$DP$191,76,FALSE)","v":54.027000000000001},{"$f":"VLOOKUP($A120,F1__World_Data!$A$4:$DP$191,75,FALSE)","v":53.633000000000003},{"$f":"VLOOKUP($A120,F1__World_Data!$A$4:$DP$191,74,FALSE)","v":53.218000000000004},{"$f":"VLOOKUP($A120,F1__World_Data!$A$4:$DP$191,73,FALSE)","v":52.781999999999996},{"$f":"VLOOKUP($A120,F1__World_Data!$A$4:$DP$191,72,FALSE)","v":52.323},{"$f":"VLOOKUP($A120,F1__World_Data!$A$4:$DP$191,71,FALSE)","v":51.837000000000003},{"$f":"VLOOKUP($A120,F1__World_Data!$A$4:$DP$191,70,FALSE)","v":51.326999999999998},{"$f":"VLOOKUP($A120,F1__World_Data!$A$4:$DP$191,69,FALSE)","v":50.795999999999999},{"$f":"VLOOKUP($A120,F1__World_Data!$A$4:$DP$191,68,FALSE)","v":50.25},{"$f":"VLOOKUP($A120,F1__World_Data!$A$4:$DP$191,67,FALSE)","v":49.697000000000003},{"$f":"VLOOKUP($A120,F1__World_Data!$A$4:$DP$191,66,FALSE)","v":49.145000000000003},{"$f":"VLOOKUP($A120,F1__World_Data!$A$4:$DP$191,65,FALSE)","v":48.600999999999999},{"$f":"VLOOKUP($A120,F1__World_Data!$A$4:$DP$191,64,FALSE)","v":48.070999999999998},{"$f":"VLOOKUP($A120,F1__World_Data!$A$4:$DP$191,63,FALSE)","v":47.557000000000002},{"$f":"VLOOKUP($A120,F1__World_Data!$A$4:$DP$191,62,FALSE)","v":47.061}]
["Georgia",{"$f":"VLOOKUP($A121,F1__World_Data!$A$4:$DP$191,60,FALSE)","v":4002.9459999999999},{"$f":"VLOOKUP($A121,F1__World_Data!$A$4:$DP$191,59,FALSE)","v":4008.723},{"$f":"VLOOKUP($A121,F1__World_Data!$A$4:$DP$191,58,FALSE)","v":4015.4569999999999},{"$f":"VLOOKUP($A121,F1__World_Data!$A$4:$DP$191,57,FALSE)","v":4024.18},{"$f":"VLOOKUP($A121,F1__World_Data!$A$4:$DP$191,56,FALSE)","v":4035.31},{"$f":"VLOOKUP($A121,F1__World_Data!$A$4:$DP$191,55,FALSE)","v":4048.701},{"$f":"VLOOKUP($A121,F1__World_Data!$A$4:$DP$191,54,FALSE)","v":4064.0970000000002},{"$f":"VLOOKUP($A121,F1__World_Data!$A$4:$DP$191,53,FALSE)","v":4081.0120000000002},{"$f":"VLOOKUP($A121,F1__World_Data!$A$4:$DP$191,52,FALSE)","v":4099.0959999999995},{"$f":"VLOOKUP($A121,F1__World_Data!$A$4:$DP$191,55,FALSE)","v":4048.701},{"$f":"VLOOKUP($A121,F1__World_Data!$A$4:$DP$191,50,FALSE)","v":4142.6480000000001},{"$f":"VLOOKUP($A121,F1__World_Data!$A$4:$DP$191,49,FALSE)","v":4166.8599999999997},{"$f":"VLOOKUP($A121,F1__World_Data!$A$4:$DP$191,48,FALSE)","v":4189.7219999999998},{"$f":"VLOOKUP($A121,F1__World_Data!$A$4:$DP$191,47,FALSE)","v":4210.1580000000004},{"$f":"VLOOKUP($A121,F1__World_Data!$A$4:$DP$191,46,FALSE)","v":4225.8109999999997},{"$f":"VLOOKUP($A121,F1__World_Data!$A$4:$DP$191,45,FALSE)","v":4238.93},{"$f":"VLOOKUP($A121,F1__World_Data!$A$4:$DP$191,44,FALSE)","v":4258.5730000000003},{"$f":"VLOOKUP($A121,F1__World_Data!$A$4:$DP$191,43,FALSE)","v":4296.9809999999998},{"$f":"VLOOKUP($A121,F1__World_Data!$A$4:$DP$191,42,FALSE)","v":4362.1840000000002},{"$f":"VLOOKUP($A121,F1__World_Data!$A$4:$DP$191,41,FALSE)","v":4456.652},{"$f":"VLOOKUP($A121,F1__World_Data!$A$4:$DP$191,40,FALSE)","v":4575.3959999999997},{"$f":"VLOOKUP($A121,F1__World_Data!$A$4:$DP$191,39,FALSE)","v":4709.5959999999995},{"$f":"VLOOKUP($A121,F1__World_Data!$A$4:$DP$191,38,FALSE)","v":4846.6270000000004},{"$f":"VLOOKUP($A121,F1__World_Data!$A$4:$DP$191,37,FALSE)","v":4976.2520000000004},{"$f":"VLOOKUP($A121,F1__World_Data!$A$4:$DP$191,36,FALSE)","v":5097.1260000000002},{"$f":"VLOOKUP($A121,F1__World_Data!$A$4:$DP$191,35,FALSE)","v":5208.9539999999997},{"$f":"VLOOKUP($A121,F1__World_Data!$A$4:$DP$191,34,FALSE)","v":5303.9250000000002},{"$f":"VLOOKUP($A121,F1__World_Data!$A$4:$DP$191,33,FALSE)","v":5372.9960000000001},{"$f":"VLOOKUP($A121,F1__World_Data!$A$4:$DP$191,32,FALSE)","v":5410.4},{"$f":"VLOOKUP($A121,F1__World_Data!$A$4:$DP$191,31,FALSE)","v":5411.9830000000002},{"$f":"VLOOKUP($A121,F1__World_Data!$A$4:$DP$191,30,FALSE)","v":5380.82},{"$f":"VLOOKUP($A121,F1__World_Data!$A$4:$DP$191,29,FALSE)","v":5327.4960000000001},{"$f":"VLOOKUP($A121,F1__World_Data!$A$4:$DP$191,28,FALSE)","v":5267.2330000000002},{"$f":"VLOOKUP($A121,F1__World_Data!$A$4:$DP$191,27,FALSE)","v":5211.4539999999997},{"$f":"VLOOKUP($A121,F1__World_Data!$A$4:$DP$191,26,FALSE)","v":5163.6409999999996},{"$f":"VLOOKUP($A121,F1__World_Data!$A$4:$DP$191,25,FALSE)","v":5121.8010000000004},{"$f":"VLOOKUP($A121,F1__World_Data!$A$4:$DP$191,24,FALSE)","v":5085.1409999999996},{"$f":"VLOOKUP($A121,F1__World_Data!$A$4:$DP$191,23,FALSE)","v":5051.116},{"$f":"VLOOKUP($A121,F1__World_Data!$A$4:$DP$191,22,FALSE)","v":5017.8270000000002},{"$f":"VLOOKUP($A121,F1__World_Data!$A$4:$DP$191,21,FALSE)","v":4985.5910000000003},{"$f":"VLOOKUP($A121,F1__World_Data!$A$4:$DP$191,20,FALSE)","v":4955.5169999999998},{"$f":"VLOOKUP($A121,F1__World_Data!$A$4:$DP$191,19,FALSE)","v":4927.2510000000002},{"$f":"VLOOKUP($A121,F1__World_Data!$A$4:$DP$191,18,FALSE)","v":4900.192},{"$f":"VLOOKUP($A121,F1__World_Data!$A$4:$DP$191,17,FALSE)","v":4873.6379999999999},{"$f":"VLOOKUP($A121,F1__World_Data!$A$4:$DP$191,16,FALSE)","v":4847.8689999999997},{"$f":"VLOOKUP($A121,F1__World_Data!$A$4:$DP$191,15,FALSE)","v":4822.1679999999997},{"$f":"VLOOKUP($A121,F1__World_Data!$A$4:$DP$191,14,FALSE)","v":4793.558},{"$f":"VLOOKUP($A121,F1__World_Data!$A$4:$DP$191,13,FALSE)","v":4758.1610000000001},{"$f":"VLOOKUP($A121,F1__World_Data!$A$4:$DP$191,12,FALSE)","v":4713.34},{"$f":"VLOOKUP($A121,F1__World_Data!$A$4:$DP$191,11,FALSE)","v":4658.009},{"$f":"VLOOKUP($A121,F1__World_Data!$A$4:$DP$191,10,FALSE)","v":4593.3149999999996},{"$f":"VLOOKUP($A121,F1__World_Data!$A$4:$DP$191,9,FALSE)","v":4521.7150000000001},{"$f":"VLOOKUP($A121,F1__World_Data!$A$4:$DP$191,8,FALSE)","v":4446.8370000000004},{"$f":"VLOOKUP($A121,F1__World_Data!$A$4:$DP$191,7,FALSE)","v":4371.527},{"$f":"VLOOKUP($A121,F1__World_Data!$A$4:$DP$191,6,FALSE)","v":4296.6710000000003},{"$f":"VLOOKUP($A121,F1__World_Data!$A$4:$DP$191,5,FALSE)","v":4222.1570000000002},{"$f":"VLOOKUP($A121,F1__World_Data!$A$4:$DP$191,4,FALSE)","v":4148.7330000000002},{"$f":"VLOOKUP($A121,F1__World_Data!$A$4:$DP$191,3,FALSE)","v":4077.0790000000002},{"$f":"VLOOKUP($A121,F1__World_Data!$A$4:$DP$191,2,FALSE)","v":4007.7240000000002},null,{"$f":"VLOOKUP($A121,F1__World_Data!$A$4:$DP$191,120,FALSE)","v":82.548780487804891},{"$f":"VLOOKUP($A121,F1__World_Data!$A$4:$DP$191,119,FALSE)","v":82.29756097560977},{"$f":"VLOOKUP($A121,F1__World_Data!$A$4:$DP$191,118,FALSE)","v":82.046341463414635},{"$f":"VLOOKUP($A121,F1__World_Data!$A$4:$DP$191,117,FALSE)","v":81.795121951219528},{"$f":"VLOOKUP($A121,F1__World_Data!$A$4:$DP$191,116,FALSE)","v":81.592682926829269},{"$f":"VLOOKUP($A121,F1__World_Data!$A$4:$DP$191,115,FALSE)","v":81.341463414634148},{"$f":"VLOOKUP($A121,F1__World_Data!$A$4:$DP$191,114,FALSE)","v":81.090243902439042},{"$f":"VLOOKUP($A121,F1__World_Data!$A$4:$DP$191,113,FALSE)","v":80.839024390243921},{"$f":"VLOOKUP($A121,F1__World_Data!$A$4:$DP$191,112,FALSE)","v":80.587804878048786},{"$f":"VLOOKUP($A121,F1__World_Data!$A$4:$DP$191,111,FALSE)","v":80.387804878048797},{"$f":"VLOOKUP($A121,F1__World_Data!$A$4:$DP$191,110,FALSE)","v":80.139024390243918},{"$f":"VLOOKUP($A121,F1__World_Data!$A$4:$DP$191,109,FALSE)","v":79.890243902439039},{"$f":"VLOOKUP($A121,F1__World_Data!$A$4:$DP$191,108,FALSE)","v":79.690243902439036},{"$f":"VLOOKUP($A121,F1__World_Data!$A$4:$DP$191,107,FALSE)","v":79.441463414634157},{"$f":"VLOOKUP($A121,F1__World_Data!$A$4:$DP$191,106,FALSE)","v":79.190243902439036},{"$f":"VLOOKUP($A121,F1__World_Data!$A$4:$DP$191,105,FALSE)","v":78.990243902439033},{"$f":"VLOOKUP($A121,F1__World_Data!$A$4:$DP$191,104,FALSE)","v":78.787804878048775},{"$f":"VLOOKUP($A121,F1__World_Data!$A$4:$DP$191,103,FALSE)","v":78.636585365853662},{"$f":"VLOOKUP($A121,F1__World_Data!$A$4:$DP$191,102,FALSE)","v":78.434146341463432},{"$f":"VLOOKUP($A121,F1__World_Data!$A$4:$DP$191,101,FALSE)","v":78.280487804878064},{"$f":"VLOOKUP($A121,F1__World_Data!$A$4:$DP$191,100,FALSE)","v":78.026829268292687},{"$f":"VLOOKUP($A121,F1__World_Data!$A$4:$DP$191,99,FALSE)","v":77.824390243902457},{"$f":"VLOOKUP($A121,F1__World_Data!$A$4:$DP$191,98,FALSE)","v":77.57073170731708},{"$f":"VLOOKUP($A121,F1__World_Data!$A$4:$DP$191,97,FALSE)","v":77.368292682926835},{"$f":"VLOOKUP($A121,F1__World_Data!$A$4:$DP$191,96,FALSE)","v":77.065853658536597},{"$f":"VLOOKUP($A121,F1__World_Data!$A$4:$DP$191,95,FALSE)","v":76.81463414634149},{"$f":"VLOOKUP($A121,F1__World_Data!$A$4:$DP$191,94,FALSE)","v":76.614634146341473},{"$f":"VLOOKUP($A121,F1__World_Data!$A$4:$DP$191,93,FALSE)","v":76.41463414634147},{"$f":"VLOOKUP($A121,F1__World_Data!$A$4:$DP$191,92,FALSE)","v":76.114634146341487},{"$f":"VLOOKUP($A121,F1__World_Data!$A$4:$DP$191,91,FALSE)","v":75.91463414634147},{"$f":"VLOOKUP($A121,F1__World_Data!$A$4:$DP$191,90,FALSE)","v":75.714634146341467},{"$f":"VLOOKUP($A121,F1__World_Data!$A$4:$DP$191,89,FALSE)","v":75.465853658536588},{"$f":"VLOOKUP($A121,F1__World_Data!$A$4:$DP$191,88,FALSE)","v":75.214634146341467},{"$f":"VLOOKUP($A121,F1__World_Data!$A$4:$DP$191,87,FALSE)","v":0},{"$f":"VLOOKUP($A121,F1__World_Data!$A$4:$DP$191,86,FALSE)","v":0},{"$f":"VLOOKUP($A121,F1__World_Data!$A$4:$DP$191,85,FALSE)","v":0},{"$f":"VLOOKUP($A121,F1__World_Data!$A$4:$DP$191,84,FALSE)","v":0},{"$f":"VLOOKUP($A121,F1__World_Data!$A$4:$DP$191,83,FALSE)","v":0},{"$f":"VLOOKUP($A121,F1__World_Data!$A$4:$DP$191,82,FALSE)","v":0},{"$f":"VLOOKUP($A121,F1__World_Data!$A$4:$DP$191,81,FALSE)","v":0},{"$f":"VLOOKUP($A121,F1__World_Data!$A$4:$DP$191,80,FALSE)","v":75.98536585365855},{"$f":"VLOOKUP($A121,F1__World_Data!$A$4:$DP$191,79,FALSE)","v":0},{"$f":"VLOOKUP($A121,F1__World_Data!$A$4:$DP$191,78,FALSE)","v":0},{"$f":"VLOOKUP($A121,F1__World_Data!$A$4:$DP$191,77,FALSE)","v":0},{"$f":"VLOOKUP($A121,F1__World_Data!$A$4:$DP$191,76,FALSE)","v":0},{"$f":"VLOOKUP($A121,F1__World_Data!$A$4:$DP$191,75,FALSE)","v":74.497560975609773},{"$f":"VLOOKUP($A121,F1__World_Data!$A$4:$DP$191,74,FALSE)","v":0},{"$f":"VLOOKUP($A121,F1__World_Data!$A$4:$DP$191,73,FALSE)","v":0},{"$f":"VLOOKUP($A121,F1__World_Data!$A$4:$DP$191,72,FALSE)","v":0},{"$f":"VLOOKUP($A121,F1__World_Data!$A$4:$DP$191,71,FALSE)","v":0},{"$f":"VLOOKUP($A121,F1__World_Data!$A$4:$DP$191,70,FALSE)","v":0},{"$f":"VLOOKUP($A121,F1__World_Data!$A$4:$DP$191,69,FALSE)","v":0},{"$f":"VLOOKUP($A121,F1__World_Data!$A$4:$DP$191,68,FALSE)","v":0},{"$f":"VLOOKUP($A121,F1__World_Data!$A$4:$DP$191,67,FALSE)","v":0},{"$f":"VLOOKUP($A121,F1__World_Data!$A$4:$DP$191,66,FALSE)","v":0},{"$f":"VLOOKUP($A121,F1__World_Data!$A$4:$DP$191,65,FALSE)","v":0},{"$f":"VLOOKUP($A121,F1__World_Data!$A$4:$DP$191,64,FALSE)","v":0},{"$f":"VLOOKUP($A121,F1__World_Data!$A$4:$DP$191,63,FALSE)","v":0},{"$f":"VLOOKUP($A121,F1__World_Data!$A$4:$DP$191,62,FALSE)","v":0}]
["Eritrea",{"$f":"VLOOKUP($A122,F1__World_Data!$A$4:$DP$191,60,FALSE)","v":3452.797},{"$f":"VLOOKUP($A122,F1__World_Data!$A$4:$DP$191,59,FALSE)","v":3412.8939999999998},{"$f":"VLOOKUP($A122,F1__World_Data!$A$4:$DP$191,58,FALSE)","v":3376.558},{"$f":"VLOOKUP($A122,F1__World_Data!$A$4:$DP$191,57,FALSE)","v":3342.8180000000002},{"$f":"VLOOKUP($A122,F1__World_Data!$A$4:$DP$191,56,FALSE)","v":3311.444},{"$f":"VLOOKUP($A122,F1__World_Data!$A$4:$DP$191,55,FALSE)","v":3281.453},{"$f":"VLOOKUP($A122,F1__World_Data!$A$4:$DP$191,54,FALSE)","v":3250.1039999999998},{"$f":"VLOOKUP($A122,F1__World_Data!$A$4:$DP$191,53,FALSE)","v":3213.9690000000001},{"$f":"VLOOKUP($A122,F1__World_Data!$A$4:$DP$191,52,FALSE)","v":3170.4369999999999},{"$f":"VLOOKUP($A122,F1__World_Data!$A$4:$DP$191,55,FALSE)","v":3281.453},{"$f":"VLOOKUP($A122,F1__World_Data!$A$4:$DP$191,50,FALSE)","v":3062.7820000000002},{"$f":"VLOOKUP($A122,F1__World_Data!$A$4:$DP$191,49,FALSE)","v":2996.54},{"$f":"VLOOKUP($A122,F1__World_Data!$A$4:$DP$191,48,FALSE)","v":2918.2089999999998},{"$f":"VLOOKUP($A122,F1__World_Data!$A$4:$DP$191,47,FALSE)","v":2826.6529999999998},{"$f":"VLOOKUP($A122,F1__World_Data!$A$4:$DP$191,46,FALSE)","v":2719.8090000000002},{"$f":"VLOOKUP($A122,F1__World_Data!$A$4:$DP$191,45,FALSE)","v":2600.9720000000002},{"$f":"VLOOKUP($A122,F1__World_Data!$A$4:$DP$191,44,FALSE)","v":2481.0590000000002},{"$f":"VLOOKUP($A122,F1__World_Data!$A$4:$DP$191,43,FALSE)","v":2374.721},{"$f":"VLOOKUP($A122,F1__World_Data!$A$4:$DP$191,42,FALSE)","v":2292.413},{"$f":"VLOOKUP($A122,F1__World_Data!$A$4:$DP$191,41,FALSE)","v":2237.4119999999998},{"$f":"VLOOKUP($A122,F1__World_Data!$A$4:$DP$191,40,FALSE)","v":2206.4389999999999},{"$f":"VLOOKUP($A122,F1__World_Data!$A$4:$DP$191,39,FALSE)","v":2195.192},{"$f":"VLOOKUP($A122,F1__World_Data!$A$4:$DP$191,38,FALSE)","v":2196.4670000000001},{"$f":"VLOOKUP($A122,F1__World_Data!$A$4:$DP$191,37,FALSE)","v":2204.2269999999999},{"$f":"VLOOKUP($A122,F1__World_Data!$A$4:$DP$191,36,FALSE)","v":2218.4360000000001},{"$f":"VLOOKUP($A122,F1__World_Data!$A$4:$DP$191,35,FALSE)","v":2238.6309999999999},{"$f":"VLOOKUP($A122,F1__World_Data!$A$4:$DP$191,34,FALSE)","v":2257.5929999999998},{"$f":"VLOOKUP($A122,F1__World_Data!$A$4:$DP$191,33,FALSE)","v":2266.3560000000002},{"$f":"VLOOKUP($A122,F1__World_Data!$A$4:$DP$191,32,FALSE)","v":2258.6489999999999},{"$f":"VLOOKUP($A122,F1__World_Data!$A$4:$DP$191,31,FALSE)","v":2231.1439999999998},{"$f":"VLOOKUP($A122,F1__World_Data!$A$4:$DP$191,30,FALSE)","v":2185.607},{"$f":"VLOOKUP($A122,F1__World_Data!$A$4:$DP$191,29,FALSE)","v":2127.4209999999998},{"$f":"VLOOKUP($A122,F1__World_Data!$A$4:$DP$191,28,FALSE)","v":2064.8029999999999},{"$f":"VLOOKUP($A122,F1__World_Data!$A$4:$DP$191,27,FALSE)","v":2003.942},{"$f":"VLOOKUP($A122,F1__World_Data!$A$4:$DP$191,26,FALSE)","v":1946.299},{"$f":"VLOOKUP($A122,F1__World_Data!$A$4:$DP$191,25,FALSE)","v":1890.556},{"$f":"VLOOKUP($A122,F1__World_Data!$A$4:$DP$191,24,FALSE)","v":1836.825},{"$f":"VLOOKUP($A122,F1__World_Data!$A$4:$DP$191,23,FALSE)","v":1784.557},{"$f":"VLOOKUP($A122,F1__World_Data!$A$4:$DP$191,22,FALSE)","v":1733.423},{"$f":"VLOOKUP($A122,F1__World_Data!$A$4:$DP$191,21,FALSE)","v":1683.932},{"$f":"VLOOKUP($A122,F1__World_Data!$A$4:$DP$191,20,FALSE)","v":1636.771},{"$f":"VLOOKUP($A122,F1__World_Data!$A$4:$DP$191,19,FALSE)","v":1591.6220000000001},{"$f":"VLOOKUP($A122,F1__World_Data!$A$4:$DP$191,18,FALSE)","v":1547.9780000000001},{"$f":"VLOOKUP($A122,F1__World_Data!$A$4:$DP$191,17,FALSE)","v":1505.4380000000001},{"$f":"VLOOKUP($A122,F1__World_Data!$A$4:$DP$191,16,FALSE)","v":1463.9860000000001},{"$f":"VLOOKUP($A122,F1__World_Data!$A$4:$DP$191,15,FALSE)","v":1423.749},{"$f":"VLOOKUP($A122,F1__World_Data!$A$4:$DP$191,14,FALSE)","v":1384.789},{"$f":"VLOOKUP($A122,F1__World_Data!$A$4:$DP$191,13,FALSE)","v":1347.18},{"$f":"VLOOKUP($A122,F1__World_Data!$A$4:$DP$191,12,FALSE)","v":1310.9469999999999},{"$f":"VLOOKUP($A122,F1__World_Data!$A$4:$DP$191,11,FALSE)","v":1276.1220000000001},{"$f":"VLOOKUP($A122,F1__World_Data!$A$4:$DP$191,10,FALSE)","v":1242.633},{"$f":"VLOOKUP($A122,F1__World_Data!$A$4:$DP$191,9,FALSE)","v":1210.3040000000001},{"$f":"VLOOKUP($A122,F1__World_Data!$A$4:$DP$191,8,FALSE)","v":1178.875},{"$f":"VLOOKUP($A122,F1__World_Data!$A$4:$DP$191,7,FALSE)","v":1148.1880000000001},{"$f":"VLOOKUP($A122,F1__World_Data!$A$4:$DP$191,6,FALSE)","v":1118.152},{"$f":"VLOOKUP($A122,F1__World_Data!$A$4:$DP$191,5,FALSE)","v":1088.8589999999999},{"$f":"VLOOKUP($A122,F1__World_Data!$A$4:$DP$191,4,FALSE)","v":1060.489},{"$f":"VLOOKUP($A122,F1__World_Data!$A$4:$DP$191,3,FALSE)","v":1033.32},{"$f":"VLOOKUP($A122,F1__World_Data!$A$4:$DP$191,2,FALSE)","v":1007.586},null,{"$f":"VLOOKUP($A122,F1__World_Data!$A$4:$DP$191,120,FALSE)","v":65.941000000000003},{"$f":"VLOOKUP($A122,F1__World_Data!$A$4:$DP$191,119,FALSE)","v":65.537999999999997},{"$f":"VLOOKUP($A122,F1__World_Data!$A$4:$DP$191,118,FALSE)","v":65.111000000000004},{"$f":"VLOOKUP($A122,F1__World_Data!$A$4:$DP$191,117,FALSE)","v":64.664000000000001},{"$f":"VLOOKUP($A122,F1__World_Data!$A$4:$DP$191,116,FALSE)","v":64.200999999999993},{"$f":"VLOOKUP($A122,F1__World_Data!$A$4:$DP$191,115,FALSE)","v":63.725999999999999},{"$f":"VLOOKUP($A122,F1__World_Data!$A$4:$DP$191,114,FALSE)","v":63.238},{"$f":"VLOOKUP($A122,F1__World_Data!$A$4:$DP$191,113,FALSE)","v":62.731999999999999},{"$f":"VLOOKUP($A122,F1__World_Data!$A$4:$DP$191,112,FALSE)","v":62.192999999999998},{"$f":"VLOOKUP($A122,F1__World_Data!$A$4:$DP$191,111,FALSE)","v":61.601999999999997},{"$f":"VLOOKUP($A122,F1__World_Data!$A$4:$DP$191,110,FALSE)","v":60.951999999999998},{"$f":"VLOOKUP($A122,F1__World_Data!$A$4:$DP$191,109,FALSE)","v":60.243000000000002},{"$f":"VLOOKUP($A122,F1__World_Data!$A$4:$DP$191,108,FALSE)","v":59.487000000000002},{"$f":"VLOOKUP($A122,F1__World_Data!$A$4:$DP$191,107,FALSE)","v":58.707000000000001},{"$f":"VLOOKUP($A122,F1__World_Data!$A$4:$DP$191,106,FALSE)","v":57.932000000000002},{"$f":"VLOOKUP($A122,F1__World_Data!$A$4:$DP$191,105,FALSE)","v":57.191000000000003},{"$f":"VLOOKUP($A122,F1__World_Data!$A$4:$DP$191,104,FALSE)","v":56.5},{"$f":"VLOOKUP($A122,F1__World_Data!$A$4:$DP$191,103,FALSE)","v":55.863999999999997},{"$f":"VLOOKUP($A122,F1__World_Data!$A$4:$DP$191,102,FALSE)","v":55.273000000000003},{"$f":"VLOOKUP($A122,F1__World_Data!$A$4:$DP$191,101,FALSE)","v":54.707000000000001},{"$f":"VLOOKUP($A122,F1__World_Data!$A$4:$DP$191,100,FALSE)","v":54.137},{"$f":"VLOOKUP($A122,F1__World_Data!$A$4:$DP$191,99,FALSE)","v":53.548000000000002},{"$f":"VLOOKUP($A122,F1__World_Data!$A$4:$DP$191,98,FALSE)","v":52.938000000000002},{"$f":"VLOOKUP($A122,F1__World_Data!$A$4:$DP$191,97,FALSE)","v":52.316000000000003},{"$f":"VLOOKUP($A122,F1__World_Data!$A$4:$DP$191,96,FALSE)","v":51.695999999999998},{"$f":"VLOOKUP($A122,F1__World_Data!$A$4:$DP$191,95,FALSE)","v":51.1},{"$f":"VLOOKUP($A122,F1__World_Data!$A$4:$DP$191,94,FALSE)","v":50.545000000000002},{"$f":"VLOOKUP($A122,F1__World_Data!$A$4:$DP$191,93,FALSE)","v":50.04},{"$f":"VLOOKUP($A122,F1__World_Data!$A$4:$DP$191,92,FALSE)","v":49.588000000000001},{"$f":"VLOOKUP($A122,F1__World_Data!$A$4:$DP$191,91,FALSE)","v":49.192},{"$f":"VLOOKUP($A122,F1__World_Data!$A$4:$DP$191,90,FALSE)","v":48.841000000000001},{"$f":"VLOOKUP($A122,F1__World_Data!$A$4:$DP$191,89,FALSE)","v":48.521999999999998},{"$f":"VLOOKUP($A122,F1__World_Data!$A$4:$DP$191,88,FALSE)","v":48.23},{"$f":"VLOOKUP($A122,F1__World_Data!$A$4:$DP$191,87,FALSE)","v":47.956000000000003},{"$f":"VLOOKUP($A122,F1__World_Data!$A$4:$DP$191,86,FALSE)","v":47.695},{"$f":"VLOOKUP($A122,F1__World_Data!$A$4:$DP$191,85,FALSE)","v":47.441000000000003},{"$f":"VLOOKUP($A122,F1__World_Data!$A$4:$DP$191,84,FALSE)","v":47.186999999999998},{"$f":"VLOOKUP($A122,F1__World_Data!$A$4:$DP$191,83,FALSE)","v":46.927},{"$f":"VLOOKUP($A122,F1__World_Data!$A$4:$DP$191,82,FALSE)","v":46.654000000000003},{"$f":"VLOOKUP($A122,F1__World_Data!$A$4:$DP$191,81,FALSE)","v":46.363999999999997},{"$f":"VLOOKUP($A122,F1__World_Data!$A$4:$DP$191,80,FALSE)","v":46.058999999999997},{"$f":"VLOOKUP($A122,F1__World_Data!$A$4:$DP$191,79,FALSE)","v":45.738999999999997},{"$f":"VLOOKUP($A122,F1__World_Data!$A$4:$DP$191,78,FALSE)","v":45.404000000000003},{"$f":"VLOOKUP($A122,F1__World_Data!$A$4:$DP$191,77,FALSE)","v":45.054000000000002},{"$f":"VLOOKUP($A122,F1__World_Data!$A$4:$DP$191,76,FALSE)","v":44.691000000000003},{"$f":"VLOOKUP($A122,F1__World_Data!$A$4:$DP$191,75,FALSE)","v":44.316000000000003},{"$f":"VLOOKUP($A122,F1__World_Data!$A$4:$DP$191,74,FALSE)","v":43.933999999999997},{"$f":"VLOOKUP($A122,F1__World_Data!$A$4:$DP$191,73,FALSE)","v":43.545000000000002},{"$f":"VLOOKUP($A122,F1__World_Data!$A$4:$DP$191,72,FALSE)","v":43.155999999999999},{"$f":"VLOOKUP($A122,F1__World_Data!$A$4:$DP$191,71,FALSE)","v":42.773000000000003},{"$f":"VLOOKUP($A122,F1__World_Data!$A$4:$DP$191,70,FALSE)","v":42.393999999999998},{"$f":"VLOOKUP($A122,F1__World_Data!$A$4:$DP$191,69,FALSE)","v":42.015000000000001},{"$f":"VLOOKUP($A122,F1__World_Data!$A$4:$DP$191,68,FALSE)","v":41.63},{"$f":"VLOOKUP($A122,F1__World_Data!$A$4:$DP$191,67,FALSE)","v":41.220999999999997},{"$f":"VLOOKUP($A122,F1__World_Data!$A$4:$DP$191,66,FALSE)","v":40.768000000000001},{"$f":"VLOOKUP($A122,F1__World_Data!$A$4:$DP$191,65,FALSE)","v":40.259},{"$f":"VLOOKUP($A122,F1__World_Data!$A$4:$DP$191,64,FALSE)","v":39.692999999999998},{"$f":"VLOOKUP($A122,F1__World_Data!$A$4:$DP$191,63,FALSE)","v":39.075000000000003},{"$f":"VLOOKUP($A122,F1__World_Data!$A$4:$DP$191,62,FALSE)","v":38.418999999999997}]
["Uruguay",{"$f":"VLOOKUP($A123,F1__World_Data!$A$4:$DP$191,60,FALSE)","v":3449.29},{"$f":"VLOOKUP($A123,F1__World_Data!$A$4:$DP$191,59,FALSE)","v":3436.645},{"$f":"VLOOKUP($A123,F1__World_Data!$A$4:$DP$191,58,FALSE)","v":3424.1390000000001},{"$f":"VLOOKUP($A123,F1__World_Data!$A$4:$DP$191,57,FALSE)","v":3412.0129999999999},{"$f":"VLOOKUP($A123,F1__World_Data!$A$4:$DP$191,56,FALSE)","v":3400.4389999999999},{"$f":"VLOOKUP($A123,F1__World_Data!$A$4:$DP$191,55,FALSE)","v":3389.4360000000001},{"$f":"VLOOKUP($A123,F1__World_Data!$A$4:$DP$191,54,FALSE)","v":3378.9749999999999},{"$f":"VLOOKUP($A123,F1__World_Data!$A$4:$DP$191,53,FALSE)","v":3368.9259999999999},{"$f":"VLOOKUP($A123,F1__World_Data!$A$4:$DP$191,52,FALSE)","v":3359.2730000000001},{"$f":"VLOOKUP($A123,F1__World_Data!$A$4:$DP$191,55,FALSE)","v":3389.4360000000001},{"$f":"VLOOKUP($A123,F1__World_Data!$A$4:$DP$191,50,FALSE)","v":3340.221},{"$f":"VLOOKUP($A123,F1__World_Data!$A$4:$DP$191,49,FALSE)","v":3331.7530000000002},{"$f":"VLOOKUP($A123,F1__World_Data!$A$4:$DP$191,48,FALSE)","v":3325.4029999999998},{"$f":"VLOOKUP($A123,F1__World_Data!$A$4:$DP$191,47,FALSE)","v":3321.799},{"$f":"VLOOKUP($A123,F1__World_Data!$A$4:$DP$191,46,FALSE)","v":3321.4859999999999},{"$f":"VLOOKUP($A123,F1__World_Data!$A$4:$DP$191,45,FALSE)","v":3323.6610000000001},{"$f":"VLOOKUP($A123,F1__World_Data!$A$4:$DP$191,44,FALSE)","v":3326.0459999999998},{"$f":"VLOOKUP($A123,F1__World_Data!$A$4:$DP$191,43,FALSE)","v":3325.471},{"$f":"VLOOKUP($A123,F1__World_Data!$A$4:$DP$191,42,FALSE)","v":3319.7339999999999},{"$f":"VLOOKUP($A123,F1__World_Data!$A$4:$DP$191,41,FALSE)","v":3308.0050000000001},{"$f":"VLOOKUP($A123,F1__World_Data!$A$4:$DP$191,40,FALSE)","v":3291.0529999999999},{"$f":"VLOOKUP($A123,F1__World_Data!$A$4:$DP$191,39,FALSE)","v":3270.1579999999999},{"$f":"VLOOKUP($A123,F1__World_Data!$A$4:$DP$191,38,FALSE)","v":3247.3829999999998},{"$f":"VLOOKUP($A123,F1__World_Data!$A$4:$DP$191,37,FALSE)","v":3224.2750000000001},{"$f":"VLOOKUP($A123,F1__World_Data!$A$4:$DP$191,36,FALSE)","v":3201.1489999999999},{"$f":"VLOOKUP($A123,F1__World_Data!$A$4:$DP$191,35,FALSE)","v":3177.7339999999999},{"$f":"VLOOKUP($A123,F1__World_Data!$A$4:$DP$191,34,FALSE)","v":3154.4589999999998},{"$f":"VLOOKUP($A123,F1__World_Data!$A$4:$DP$191,33,FALSE)","v":3131.6570000000002},{"$f":"VLOOKUP($A123,F1__World_Data!$A$4:$DP$191,32,FALSE)","v":3109.598},{"$f":"VLOOKUP($A123,F1__World_Data!$A$4:$DP$191,31,FALSE)","v":3088.6030000000001},{"$f":"VLOOKUP($A123,F1__World_Data!$A$4:$DP$191,30,FALSE)","v":3068.7139999999999},{"$f":"VLOOKUP($A123,F1__World_Data!$A$4:$DP$191,29,FALSE)","v":3049.5810000000001},{"$f":"VLOOKUP($A123,F1__World_Data!$A$4:$DP$191,28,FALSE)","v":3030.6509999999998},{"$f":"VLOOKUP($A123,F1__World_Data!$A$4:$DP$191,27,FALSE)","v":3011.5189999999998},{"$f":"VLOOKUP($A123,F1__World_Data!$A$4:$DP$191,26,FALSE)","v":2992.25},{"$f":"VLOOKUP($A123,F1__World_Data!$A$4:$DP$191,25,FALSE)","v":2973.0479999999998},{"$f":"VLOOKUP($A123,F1__World_Data!$A$4:$DP$191,24,FALSE)","v":2953.8519999999999},{"$f":"VLOOKUP($A123,F1__World_Data!$A$4:$DP$191,23,FALSE)","v":2934.6239999999998},{"$f":"VLOOKUP($A123,F1__World_Data!$A$4:$DP$191,22,FALSE)","v":2915.3890000000001},{"$f":"VLOOKUP($A123,F1__World_Data!$A$4:$DP$191,21,FALSE)","v":2895.683},{"$f":"VLOOKUP($A123,F1__World_Data!$A$4:$DP$191,20,FALSE)","v":2875.7240000000002},{"$f":"VLOOKUP($A123,F1__World_Data!$A$4:$DP$191,19,FALSE)","v":2856.9580000000001},{"$f":"VLOOKUP($A123,F1__World_Data!$A$4:$DP$191,18,FALSE)","v":2841.3710000000001},{"$f":"VLOOKUP($A123,F1__World_Data!$A$4:$DP$191,17,FALSE)","v":2830.172},{"$f":"VLOOKUP($A123,F1__World_Data!$A$4:$DP$191,16,FALSE)","v":2824.0949999999998},{"$f":"VLOOKUP($A123,F1__World_Data!$A$4:$DP$191,15,FALSE)","v":2822.1120000000001},{"$f":"VLOOKUP($A123,F1__World_Data!$A$4:$DP$191,14,FALSE)","v":2821.4580000000001},{"$f":"VLOOKUP($A123,F1__World_Data!$A$4:$DP$191,13,FALSE)","v":2818.2829999999999},{"$f":"VLOOKUP($A123,F1__World_Data!$A$4:$DP$191,12,FALSE)","v":2809.799},{"$f":"VLOOKUP($A123,F1__World_Data!$A$4:$DP$191,11,FALSE)","v":2795.0369999999998},{"$f":"VLOOKUP($A123,F1__World_Data!$A$4:$DP$191,10,FALSE)","v":2774.761},{"$f":"VLOOKUP($A123,F1__World_Data!$A$4:$DP$191,9,FALSE)","v":2750.0909999999999},{"$f":"VLOOKUP($A123,F1__World_Data!$A$4:$DP$191,8,FALSE)","v":2722.8710000000001},{"$f":"VLOOKUP($A123,F1__World_Data!$A$4:$DP$191,7,FALSE)","v":2694.5369999999998},{"$f":"VLOOKUP($A123,F1__World_Data!$A$4:$DP$191,6,FALSE)","v":2665.3829999999998},{"$f":"VLOOKUP($A123,F1__World_Data!$A$4:$DP$191,5,FALSE)","v":2635.125},{"$f":"VLOOKUP($A123,F1__World_Data!$A$4:$DP$191,4,FALSE)","v":2603.8829999999998},{"$f":"VLOOKUP($A123,F1__World_Data!$A$4:$DP$191,3,FALSE)","v":2571.6819999999998},{"$f":"VLOOKUP($A123,F1__World_Data!$A$4:$DP$191,2,FALSE)","v":2538.6480000000001},null,{"$f":"VLOOKUP($A123,F1__World_Data!$A$4:$DP$191,120,FALSE)","v":63.856999999999999},{"$f":"VLOOKUP($A123,F1__World_Data!$A$4:$DP$191,119,FALSE)","v":63.537999999999997},{"$f":"VLOOKUP($A123,F1__World_Data!$A$4:$DP$191,118,FALSE)","v":63.152999999999999},{"$f":"VLOOKUP($A123,F1__World_Data!$A$4:$DP$191,117,FALSE)","v":62.649000000000001},{"$f":"VLOOKUP($A123,F1__World_Data!$A$4:$DP$191,116,FALSE)","v":61.968000000000004},{"$f":"VLOOKUP($A123,F1__World_Data!$A$4:$DP$191,115,FALSE)","v":61.098999999999997},{"$f":"VLOOKUP($A123,F1__World_Data!$A$4:$DP$191,114,FALSE)","v":60.06},{"$f":"VLOOKUP($A123,F1__World_Data!$A$4:$DP$191,113,FALSE)","v":58.895000000000003},{"$f":"VLOOKUP($A123,F1__World_Data!$A$4:$DP$191,112,FALSE)","v":57.668999999999997},{"$f":"VLOOKUP($A123,F1__World_Data!$A$4:$DP$191,111,FALSE)","v":56.46},{"$f":"VLOOKUP($A123,F1__World_Data!$A$4:$DP$191,110,FALSE)","v":55.36},{"$f":"VLOOKUP($A123,F1__World_Data!$A$4:$DP$191,109,FALSE)","v":54.451999999999998},{"$f":"VLOOKUP($A123,F1__World_Data!$A$4:$DP$191,108,FALSE)","v":53.795000000000002},{"$f":"VLOOKUP($A123,F1__World_Data!$A$4:$DP$191,107,FALSE)","v":53.447000000000003},{"$f":"VLOOKUP($A123,F1__World_Data!$A$4:$DP$191,106,FALSE)","v":53.444000000000003},{"$f":"VLOOKUP($A123,F1__World_Data!$A$4:$DP$191,105,FALSE)","v":53.749000000000002},{"$f":"VLOOKUP($A123,F1__World_Data!$A$4:$DP$191,104,FALSE)","v":54.31},{"$f":"VLOOKUP($A123,F1__World_Data!$A$4:$DP$191,103,FALSE)","v":55.088999999999999},{"$f":"VLOOKUP($A123,F1__World_Data!$A$4:$DP$191,102,FALSE)","v":56.048000000000002},{"$f":"VLOOKUP($A123,F1__World_Data!$A$4:$DP$191,101,FALSE)","v":57.143999999999998},{"$f":"VLOOKUP($A123,F1__World_Data!$A$4:$DP$191,100,FALSE)","v":58.314999999999998},{"$f":"VLOOKUP($A123,F1__World_Data!$A$4:$DP$191,99,FALSE)","v":59.488999999999997},{"$f":"VLOOKUP($A123,F1__World_Data!$A$4:$DP$191,98,FALSE)","v":60.594999999999999},{"$f":"VLOOKUP($A123,F1__World_Data!$A$4:$DP$191,97,FALSE)","v":61.561},{"$f":"VLOOKUP($A123,F1__World_Data!$A$4:$DP$191,96,FALSE)","v":62.331000000000003},{"$f":"VLOOKUP($A123,F1__World_Data!$A$4:$DP$191,95,FALSE)","v":62.893999999999998},{"$f":"VLOOKUP($A123,F1__World_Data!$A$4:$DP$191,94,FALSE)","v":63.247},{"$f":"VLOOKUP($A123,F1__World_Data!$A$4:$DP$191,93,FALSE)","v":63.384},{"$f":"VLOOKUP($A123,F1__World_Data!$A$4:$DP$191,92,FALSE)","v":63.307000000000002},{"$f":"VLOOKUP($A123,F1__World_Data!$A$4:$DP$191,91,FALSE)","v":63.034999999999997},{"$f":"VLOOKUP($A123,F1__World_Data!$A$4:$DP$191,90,FALSE)","v":62.619},{"$f":"VLOOKUP($A123,F1__World_Data!$A$4:$DP$191,89,FALSE)","v":62.109000000000002},{"$f":"VLOOKUP($A123,F1__World_Data!$A$4:$DP$191,88,FALSE)","v":61.54},{"$f":"VLOOKUP($A123,F1__World_Data!$A$4:$DP$191,87,FALSE)","v":60.945999999999998},{"$f":"VLOOKUP($A123,F1__World_Data!$A$4:$DP$191,86,FALSE)","v":60.353000000000002},{"$f":"VLOOKUP($A123,F1__World_Data!$A$4:$DP$191,85,FALSE)","v":59.765999999999998},{"$f":"VLOOKUP($A123,F1__World_Data!$A$4:$DP$191,84,FALSE)","v":59.191000000000003},{"$f":"VLOOKUP($A123,F1__World_Data!$A$4:$DP$191,83,FALSE)","v":58.637},{"$f":"VLOOKUP($A123,F1__World_Data!$A$4:$DP$191,82,FALSE)","v":58.106999999999999},{"$f":"VLOOKUP($A123,F1__World_Data!$A$4:$DP$191,81,FALSE)","v":57.59},{"$f":"VLOOKUP($A123,F1__World_Data!$A$4:$DP$191,80,FALSE)","v":57.070999999999998},{"$f":"VLOOKUP($A123,F1__World_Data!$A$4:$DP$191,79,FALSE)","v":56.537999999999997},{"$f":"VLOOKUP($A123,F1__World_Data!$A$4:$DP$191,78,FALSE)","v":55.99},{"$f":"VLOOKUP($A123,F1__World_Data!$A$4:$DP$191,77,FALSE)","v":55.427999999999997},{"$f":"VLOOKUP($A123,F1__World_Data!$A$4:$DP$191,76,FALSE)","v":54.856000000000002},{"$f":"VLOOKUP($A123,F1__World_Data!$A$4:$DP$191,75,FALSE)","v":54.280999999999999},{"$f":"VLOOKUP($A123,F1__World_Data!$A$4:$DP$191,74,FALSE)","v":53.713000000000001},{"$f":"VLOOKUP($A123,F1__World_Data!$A$4:$DP$191,73,FALSE)","v":53.156999999999996},{"$f":"VLOOKUP($A123,F1__World_Data!$A$4:$DP$191,72,FALSE)","v":52.62},{"$f":"VLOOKUP($A123,F1__World_Data!$A$4:$DP$191,71,FALSE)","v":52.106000000000002},{"$f":"VLOOKUP($A123,F1__World_Data!$A$4:$DP$191,70,FALSE)","v":51.615000000000002},{"$f":"VLOOKUP($A123,F1__World_Data!$A$4:$DP$191,69,FALSE)","v":51.148000000000003},{"$f":"VLOOKUP($A123,F1__World_Data!$A$4:$DP$191,68,FALSE)","v":50.704999999999998},{"$f":"VLOOKUP($A123,F1__World_Data!$A$4:$DP$191,67,FALSE)","v":50.283999999999999},{"$f":"VLOOKUP($A123,F1__World_Data!$A$4:$DP$191,66,FALSE)","v":49.887999999999998},{"$f":"VLOOKUP($A123,F1__World_Data!$A$4:$DP$191,65,FALSE)","v":49.509},{"$f":"VLOOKUP($A123,F1__World_Data!$A$4:$DP$191,64,FALSE)","v":49.142000000000003},{"$f":"VLOOKUP($A123,F1__World_Data!$A$4:$DP$191,63,FALSE)","v":48.777000000000001},{"$f":"VLOOKUP($A123,F1__World_Data!$A$4:$DP$191,62,FALSE)","v":48.405999999999999}]
["Bosnia and Herzegovina",{"$f":"VLOOKUP($A124,F1__World_Data!$A$4:$DP$191,60,FALSE)","v":3323.9290000000001},{"$f":"VLOOKUP($A124,F1__World_Data!$A$4:$DP$191,59,FALSE)","v":3351.5340000000001},{"$f":"VLOOKUP($A124,F1__World_Data!$A$4:$DP$191,58,FALSE)","v":3386.2629999999999},{"$f":"VLOOKUP($A124,F1__World_Data!$A$4:$DP$191,57,FALSE)","v":3429.3620000000001},{"$f":"VLOOKUP($A124,F1__World_Data!$A$4:$DP$191,56,FALSE)","v":3482.1060000000002},{"$f":"VLOOKUP($A124,F1__World_Data!$A$4:$DP$191,55,FALSE)","v":3542.598},{"$f":"VLOOKUP($A124,F1__World_Data!$A$4:$DP$191,54,FALSE)","v":3604.9720000000002},{"$f":"VLOOKUP($A124,F1__World_Data!$A$4:$DP$191,53,FALSE)","v":3661.1729999999998},{"$f":"VLOOKUP($A124,F1__World_Data!$A$4:$DP$191,52,FALSE)","v":3705.4780000000001},{"$f":"VLOOKUP($A124,F1__World_Data!$A$4:$DP$191,55,FALSE)","v":3542.598},{"$f":"VLOOKUP($A124,F1__World_Data!$A$4:$DP$191,50,FALSE)","v":3754.261},{"$f":"VLOOKUP($A124,F1__World_Data!$A$4:$DP$191,49,FALSE)","v":3762.7910000000002},{"$f":"VLOOKUP($A124,F1__World_Data!$A$4:$DP$191,48,FALSE)","v":3765.422},{"$f":"VLOOKUP($A124,F1__World_Data!$A$4:$DP$191,47,FALSE)","v":3765.3319999999999},{"$f":"VLOOKUP($A124,F1__World_Data!$A$4:$DP$191,46,FALSE)","v":3764.194},{"$f":"VLOOKUP($A124,F1__World_Data!$A$4:$DP$191,45,FALSE)","v":3762.1790000000001},{"$f":"VLOOKUP($A124,F1__World_Data!$A$4:$DP$191,44,FALSE)","v":3759.3890000000001},{"$f":"VLOOKUP($A124,F1__World_Data!$A$4:$DP$191,43,FALSE)","v":3755.5140000000001},{"$f":"VLOOKUP($A124,F1__World_Data!$A$4:$DP$191,42,FALSE)","v":3751.1759999999999},{"$f":"VLOOKUP($A124,F1__World_Data!$A$4:$DP$191,41,FALSE)","v":3743.3530000000001},{"$f":"VLOOKUP($A124,F1__World_Data!$A$4:$DP$191,40,FALSE)","v":3734.3380000000002},{"$f":"VLOOKUP($A124,F1__World_Data!$A$4:$DP$191,39,FALSE)","v":3736.07},{"$f":"VLOOKUP($A124,F1__World_Data!$A$4:$DP$191,38,FALSE)","v":3764.4189999999999},{"$f":"VLOOKUP($A124,F1__World_Data!$A$4:$DP$191,37,FALSE)","v":3829.049},{"$f":"VLOOKUP($A124,F1__World_Data!$A$4:$DP$191,36,FALSE)","v":3936.527},{"$f":"VLOOKUP($A124,F1__World_Data!$A$4:$DP$191,35,FALSE)","v":4078.94},{"$f":"VLOOKUP($A124,F1__World_Data!$A$4:$DP$191,34,FALSE)","v":4233.6729999999998},{"$f":"VLOOKUP($A124,F1__World_Data!$A$4:$DP$191,33,FALSE)","v":4369.32},{"$f":"VLOOKUP($A124,F1__World_Data!$A$4:$DP$191,32,FALSE)","v":4463.4219999999996},{"$f":"VLOOKUP($A124,F1__World_Data!$A$4:$DP$191,31,FALSE)","v":4507.8190000000004},{"$f":"VLOOKUP($A124,F1__World_Data!$A$4:$DP$191,30,FALSE)","v":4509.4620000000004},{"$f":"VLOOKUP($A124,F1__World_Data!$A$4:$DP$191,29,FALSE)","v":4479.5159999999996},{"$f":"VLOOKUP($A124,F1__World_Data!$A$4:$DP$191,28,FALSE)","v":4435.9250000000002},{"$f":"VLOOKUP($A124,F1__World_Data!$A$4:$DP$191,27,FALSE)","v":4392.1350000000002},{"$f":"VLOOKUP($A124,F1__World_Data!$A$4:$DP$191,26,FALSE)","v":4350.5659999999998},{"$f":"VLOOKUP($A124,F1__World_Data!$A$4:$DP$191,25,FALSE)","v":4307.9070000000002},{"$f":"VLOOKUP($A124,F1__World_Data!$A$4:$DP$191,24,FALSE)","v":4265.183},{"$f":"VLOOKUP($A124,F1__World_Data!$A$4:$DP$191,23,FALSE)","v":4222.4790000000003},{"$f":"VLOOKUP($A124,F1__World_Data!$A$4:$DP$191,22,FALSE)","v":4179.8500000000004},{"$f":"VLOOKUP($A124,F1__World_Data!$A$4:$DP$191,21,FALSE)","v":4138.8159999999998},{"$f":"VLOOKUP($A124,F1__World_Data!$A$4:$DP$191,20,FALSE)","v":4100.3549999999996},{"$f":"VLOOKUP($A124,F1__World_Data!$A$4:$DP$191,19,FALSE)","v":4063.1880000000001},{"$f":"VLOOKUP($A124,F1__World_Data!$A$4:$DP$191,18,FALSE)","v":4025.2710000000002},{"$f":"VLOOKUP($A124,F1__World_Data!$A$4:$DP$191,17,FALSE)","v":3985.107},{"$f":"VLOOKUP($A124,F1__World_Data!$A$4:$DP$191,16,FALSE)","v":3942.221},{"$f":"VLOOKUP($A124,F1__World_Data!$A$4:$DP$191,15,FALSE)","v":3897.259},{"$f":"VLOOKUP($A124,F1__World_Data!$A$4:$DP$191,14,FALSE)","v":3851.1529999999998},{"$f":"VLOOKUP($A124,F1__World_Data!$A$4:$DP$191,13,FALSE)","v":3805.2860000000001},{"$f":"VLOOKUP($A124,F1__World_Data!$A$4:$DP$191,12,FALSE)","v":3760.5360000000001},{"$f":"VLOOKUP($A124,F1__World_Data!$A$4:$DP$191,11,FALSE)","v":3717.4760000000001},{"$f":"VLOOKUP($A124,F1__World_Data!$A$4:$DP$191,10,FALSE)","v":3675.4479999999999},{"$f":"VLOOKUP($A124,F1__World_Data!$A$4:$DP$191,9,FALSE)","v":3632.6779999999999},{"$f":"VLOOKUP($A124,F1__World_Data!$A$4:$DP$191,8,FALSE)","v":3586.63},{"$f":"VLOOKUP($A124,F1__World_Data!$A$4:$DP$191,7,FALSE)","v":3535.6320000000001},{"$f":"VLOOKUP($A124,F1__World_Data!$A$4:$DP$191,6,FALSE)","v":3478.9989999999998},{"$f":"VLOOKUP($A124,F1__World_Data!$A$4:$DP$191,5,FALSE)","v":3417.5729999999999},{"$f":"VLOOKUP($A124,F1__World_Data!$A$4:$DP$191,4,FALSE)","v":3353.2280000000001},{"$f":"VLOOKUP($A124,F1__World_Data!$A$4:$DP$191,3,FALSE)","v":3288.6039999999998},{"$f":"VLOOKUP($A124,F1__World_Data!$A$4:$DP$191,2,FALSE)","v":3225.6640000000002},null,{"$f":"VLOOKUP($A124,F1__World_Data!$A$4:$DP$191,120,FALSE)","v":61.47},{"$f":"VLOOKUP($A124,F1__World_Data!$A$4:$DP$191,119,FALSE)","v":61.173999999999999},{"$f":"VLOOKUP($A124,F1__World_Data!$A$4:$DP$191,118,FALSE)","v":60.884999999999998},{"$f":"VLOOKUP($A124,F1__World_Data!$A$4:$DP$191,117,FALSE)","v":60.607999999999997},{"$f":"VLOOKUP($A124,F1__World_Data!$A$4:$DP$191,116,FALSE)","v":60.344999999999999},{"$f":"VLOOKUP($A124,F1__World_Data!$A$4:$DP$191,115,FALSE)","v":60.091999999999999},{"$f":"VLOOKUP($A124,F1__World_Data!$A$4:$DP$191,114,FALSE)","v":59.841999999999999},{"$f":"VLOOKUP($A124,F1__World_Data!$A$4:$DP$191,113,FALSE)","v":59.59},{"$f":"VLOOKUP($A124,F1__World_Data!$A$4:$DP$191,112,FALSE)","v":59.317999999999998},{"$f":"VLOOKUP($A124,F1__World_Data!$A$4:$DP$191,111,FALSE)","v":59.009},{"$f":"VLOOKUP($A124,F1__World_Data!$A$4:$DP$191,110,FALSE)","v":58.654000000000003},{"$f":"VLOOKUP($A124,F1__World_Data!$A$4:$DP$191,109,FALSE)","v":58.255000000000003},{"$f":"VLOOKUP($A124,F1__World_Data!$A$4:$DP$191,108,FALSE)","v":57.817},{"$f":"VLOOKUP($A124,F1__World_Data!$A$4:$DP$191,107,FALSE)","v":57.354999999999997},{"$f":"VLOOKUP($A124,F1__World_Data!$A$4:$DP$191,106,FALSE)","v":56.887},{"$f":"VLOOKUP($A124,F1__World_Data!$A$4:$DP$191,105,FALSE)","v":56.436},{"$f":"VLOOKUP($A124,F1__World_Data!$A$4:$DP$191,104,FALSE)","v":56.024999999999999},{"$f":"VLOOKUP($A124,F1__World_Data!$A$4:$DP$191,103,FALSE)","v":55.667999999999999},{"$f":"VLOOKUP($A124,F1__World_Data!$A$4:$DP$191,102,FALSE)","v":55.390999999999998},{"$f":"VLOOKUP($A124,F1__World_Data!$A$4:$DP$191,101,FALSE)","v":55.218000000000004},{"$f":"VLOOKUP($A124,F1__World_Data!$A$4:$DP$191,100,FALSE)","v":55.139000000000003},{"$f":"VLOOKUP($A124,F1__World_Data!$A$4:$DP$191,99,FALSE)","v":55.133000000000003},{"$f":"VLOOKUP($A124,F1__World_Data!$A$4:$DP$191,98,FALSE)","v":55.17},{"$f":"VLOOKUP($A124,F1__World_Data!$A$4:$DP$191,97,FALSE)","v":55.203000000000003},{"$f":"VLOOKUP($A124,F1__World_Data!$A$4:$DP$191,96,FALSE)","v":55.173999999999999},{"$f":"VLOOKUP($A124,F1__World_Data!$A$4:$DP$191,95,FALSE)","v":55.042000000000002},{"$f":"VLOOKUP($A124,F1__World_Data!$A$4:$DP$191,94,FALSE)","v":54.776000000000003},{"$f":"VLOOKUP($A124,F1__World_Data!$A$4:$DP$191,93,FALSE)","v":54.366},{"$f":"VLOOKUP($A124,F1__World_Data!$A$4:$DP$191,92,FALSE)","v":53.811999999999998},{"$f":"VLOOKUP($A124,F1__World_Data!$A$4:$DP$191,91,FALSE)","v":53.131999999999998},{"$f":"VLOOKUP($A124,F1__World_Data!$A$4:$DP$191,90,FALSE)","v":52.372},{"$f":"VLOOKUP($A124,F1__World_Data!$A$4:$DP$191,89,FALSE)","v":51.581000000000003},{"$f":"VLOOKUP($A124,F1__World_Data!$A$4:$DP$191,88,FALSE)","v":50.79},{"$f":"VLOOKUP($A124,F1__World_Data!$A$4:$DP$191,87,FALSE)","v":50.033999999999999},{"$f":"VLOOKUP($A124,F1__World_Data!$A$4:$DP$191,86,FALSE)","v":49.338999999999999},{"$f":"VLOOKUP($A124,F1__World_Data!$A$4:$DP$191,85,FALSE)","v":48.71},{"$f":"VLOOKUP($A124,F1__World_Data!$A$4:$DP$191,84,FALSE)","v":48.145000000000003},{"$f":"VLOOKUP($A124,F1__World_Data!$A$4:$DP$191,83,FALSE)","v":47.643000000000001},{"$f":"VLOOKUP($A124,F1__World_Data!$A$4:$DP$191,82,FALSE)","v":47.19},{"$f":"VLOOKUP($A124,F1__World_Data!$A$4:$DP$191,81,FALSE)","v":46.764000000000003},{"$f":"VLOOKUP($A124,F1__World_Data!$A$4:$DP$191,80,FALSE)","v":46.335000000000001},{"$f":"VLOOKUP($A124,F1__World_Data!$A$4:$DP$191,79,FALSE)","v":45.883000000000003},{"$f":"VLOOKUP($A124,F1__World_Data!$A$4:$DP$191,78,FALSE)","v":45.399000000000001},{"$f":"VLOOKUP($A124,F1__World_Data!$A$4:$DP$191,77,FALSE)","v":44.881999999999998},{"$f":"VLOOKUP($A124,F1__World_Data!$A$4:$DP$191,76,FALSE)","v":44.337000000000003},{"$f":"VLOOKUP($A124,F1__World_Data!$A$4:$DP$191,75,FALSE)","v":43.780999999999999},{"$f":"VLOOKUP($A124,F1__World_Data!$A$4:$DP$191,74,FALSE)","v":43.228999999999999},{"$f":"VLOOKUP($A124,F1__World_Data!$A$4:$DP$191,73,FALSE)","v":42.683999999999997},{"$f":"VLOOKUP($A124,F1__World_Data!$A$4:$DP$191,72,FALSE)","v":42.152000000000001},{"$f":"VLOOKUP($A124,F1__World_Data!$A$4:$DP$191,71,FALSE)","v":41.63},{"$f":"VLOOKUP($A124,F1__World_Data!$A$4:$DP$191,70,FALSE)","v":41.116999999999997},{"$f":"VLOOKUP($A124,F1__World_Data!$A$4:$DP$191,69,FALSE)","v":40.61},{"$f":"VLOOKUP($A124,F1__World_Data!$A$4:$DP$191,68,FALSE)","v":40.109000000000002},{"$f":"VLOOKUP($A124,F1__World_Data!$A$4:$DP$191,67,FALSE)","v":39.615000000000002},{"$f":"VLOOKUP($A124,F1__World_Data!$A$4:$DP$191,66,FALSE)","v":39.130000000000003},{"$f":"VLOOKUP($A124,F1__World_Data!$A$4:$DP$191,65,FALSE)","v":38.655000000000001},{"$f":"VLOOKUP($A124,F1__World_Data!$A$4:$DP$191,64,FALSE)","v":38.188000000000002},{"$f":"VLOOKUP($A124,F1__World_Data!$A$4:$DP$191,63,FALSE)","v":37.726999999999997},{"$f":"VLOOKUP($A124,F1__World_Data!$A$4:$DP$191,62,FALSE)","v":37.271000000000001}]
["Mongolia",{"$f":"VLOOKUP($A125,F1__World_Data!$A$4:$DP$191,60,FALSE)","v":3170.2139999999999},{"$f":"VLOOKUP($A125,F1__World_Data!$A$4:$DP$191,59,FALSE)","v":3113.788},{"$f":"VLOOKUP($A125,F1__World_Data!$A$4:$DP$191,58,FALSE)","v":3056.3580000000002},{"$f":"VLOOKUP($A125,F1__World_Data!$A$4:$DP$191,57,FALSE)","v":2998.433},{"$f":"VLOOKUP($A125,F1__World_Data!$A$4:$DP$191,56,FALSE)","v":2940.1109999999999},{"$f":"VLOOKUP($A125,F1__World_Data!$A$4:$DP$191,55,FALSE)","v":2881.7829999999999},{"$f":"VLOOKUP($A125,F1__World_Data!$A$4:$DP$191,54,FALSE)","v":2824.6979999999999},{"$f":"VLOOKUP($A125,F1__World_Data!$A$4:$DP$191,53,FALSE)","v":2770.357},{"$f":"VLOOKUP($A125,F1__World_Data!$A$4:$DP$191,52,FALSE)","v":2719.902},{"$f":"VLOOKUP($A125,F1__World_Data!$A$4:$DP$191,55,FALSE)","v":2881.7829999999999},{"$f":"VLOOKUP($A125,F1__World_Data!$A$4:$DP$191,50,FALSE)","v":2631.8989999999999},{"$f":"VLOOKUP($A125,F1__World_Data!$A$4:$DP$191,49,FALSE)","v":2593.819},{"$f":"VLOOKUP($A125,F1__World_Data!$A$4:$DP$191,48,FALSE)","v":2558.8539999999998},{"$f":"VLOOKUP($A125,F1__World_Data!$A$4:$DP$191,47,FALSE)","v":2526.4290000000001},{"$f":"VLOOKUP($A125,F1__World_Data!$A$4:$DP$191,46,FALSE)","v":2496.3939999999998},{"$f":"VLOOKUP($A125,F1__World_Data!$A$4:$DP$191,45,FALSE)","v":2468.7649999999999},{"$f":"VLOOKUP($A125,F1__World_Data!$A$4:$DP$191,44,FALSE)","v":2443.261},{"$f":"VLOOKUP($A125,F1__World_Data!$A$4:$DP$191,43,FALSE)","v":2419.5940000000001},{"$f":"VLOOKUP($A125,F1__World_Data!$A$4:$DP$191,42,FALSE)","v":2397.4169999999999},{"$f":"VLOOKUP($A125,F1__World_Data!$A$4:$DP$191,41,FALSE)","v":2376.2280000000001},{"$f":"VLOOKUP($A125,F1__World_Data!$A$4:$DP$191,40,FALSE)","v":2355.6669999999999},{"$f":"VLOOKUP($A125,F1__World_Data!$A$4:$DP$191,39,FALSE)","v":2335.7440000000001},{"$f":"VLOOKUP($A125,F1__World_Data!$A$4:$DP$191,38,FALSE)","v":2316.5709999999999},{"$f":"VLOOKUP($A125,F1__World_Data!$A$4:$DP$191,37,FALSE)","v":2298.0169999999998},{"$f":"VLOOKUP($A125,F1__World_Data!$A$4:$DP$191,36,FALSE)","v":2280.4749999999999},{"$f":"VLOOKUP($A125,F1__World_Data!$A$4:$DP$191,35,FALSE)","v":2263.1959999999999},{"$f":"VLOOKUP($A125,F1__World_Data!$A$4:$DP$191,34,FALSE)","v":2243.4949999999999},{"$f":"VLOOKUP($A125,F1__World_Data!$A$4:$DP$191,33,FALSE)","v":2217.9180000000001},{"$f":"VLOOKUP($A125,F1__World_Data!$A$4:$DP$191,32,FALSE)","v":2184.1390000000001},{"$f":"VLOOKUP($A125,F1__World_Data!$A$4:$DP$191,31,FALSE)","v":2141.0050000000001},{"$f":"VLOOKUP($A125,F1__World_Data!$A$4:$DP$191,30,FALSE)","v":2089.7089999999998},{"$f":"VLOOKUP($A125,F1__World_Data!$A$4:$DP$191,29,FALSE)","v":2033.3510000000001},{"$f":"VLOOKUP($A125,F1__World_Data!$A$4:$DP$191,28,FALSE)","v":1976.3130000000001},{"$f":"VLOOKUP($A125,F1__World_Data!$A$4:$DP$191,27,FALSE)","v":1921.8889999999999},{"$f":"VLOOKUP($A125,F1__World_Data!$A$4:$DP$191,26,FALSE)","v":1871.0889999999999},{"$f":"VLOOKUP($A125,F1__World_Data!$A$4:$DP$191,25,FALSE)","v":1823.2139999999999},{"$f":"VLOOKUP($A125,F1__World_Data!$A$4:$DP$191,24,FALSE)","v":1777.7270000000001},{"$f":"VLOOKUP($A125,F1__World_Data!$A$4:$DP$191,23,FALSE)","v":1733.4749999999999},{"$f":"VLOOKUP($A125,F1__World_Data!$A$4:$DP$191,22,FALSE)","v":1689.6220000000001},{"$f":"VLOOKUP($A125,F1__World_Data!$A$4:$DP$191,21,FALSE)","v":1646.29},{"$f":"VLOOKUP($A125,F1__World_Data!$A$4:$DP$191,20,FALSE)","v":1603.91},{"$f":"VLOOKUP($A125,F1__World_Data!$A$4:$DP$191,19,FALSE)","v":1562.2070000000001},{"$f":"VLOOKUP($A125,F1__World_Data!$A$4:$DP$191,18,FALSE)","v":1520.8679999999999},{"$f":"VLOOKUP($A125,F1__World_Data!$A$4:$DP$191,17,FALSE)","v":1479.646},{"$f":"VLOOKUP($A125,F1__World_Data!$A$4:$DP$191,16,FALSE)","v":1438.421},{"$f":"VLOOKUP($A125,F1__World_Data!$A$4:$DP$191,15,FALSE)","v":1397.3050000000001},{"$f":"VLOOKUP($A125,F1__World_Data!$A$4:$DP$191,14,FALSE)","v":1356.673},{"$f":"VLOOKUP($A125,F1__World_Data!$A$4:$DP$191,13,FALSE)","v":1317.0419999999999},{"$f":"VLOOKUP($A125,F1__World_Data!$A$4:$DP$191,12,FALSE)","v":1278.819},{"$f":"VLOOKUP($A125,F1__World_Data!$A$4:$DP$191,11,FALSE)","v":1242.213},{"$f":"VLOOKUP($A125,F1__World_Data!$A$4:$DP$191,10,FALSE)","v":1207.104},{"$f":"VLOOKUP($A125,F1__World_Data!$A$4:$DP$191,9,FALSE)","v":1173.1859999999999},{"$f":"VLOOKUP($A125,F1__World_Data!$A$4:$DP$191,8,FALSE)","v":1139.962},{"$f":"VLOOKUP($A125,F1__World_Data!$A$4:$DP$191,7,FALSE)","v":1107.1210000000001},{"$f":"VLOOKUP($A125,F1__World_Data!$A$4:$DP$191,6,FALSE)","v":1074.518},{"$f":"VLOOKUP($A125,F1__World_Data!$A$4:$DP$191,5,FALSE)","v":1042.3869999999999},{"$f":"VLOOKUP($A125,F1__World_Data!$A$4:$DP$191,4,FALSE)","v":1011.327},{"$f":"VLOOKUP($A125,F1__World_Data!$A$4:$DP$191,3,FALSE)","v":982.18100000000004},{"$f":"VLOOKUP($A125,F1__World_Data!$A$4:$DP$191,2,FALSE)","v":955.51400000000001},null,{"$f":"VLOOKUP($A125,F1__World_Data!$A$4:$DP$191,120,FALSE)","v":68.116},{"$f":"VLOOKUP($A125,F1__World_Data!$A$4:$DP$191,119,FALSE)","v":67.850999999999999},{"$f":"VLOOKUP($A125,F1__World_Data!$A$4:$DP$191,118,FALSE)","v":67.576999999999998},{"$f":"VLOOKUP($A125,F1__World_Data!$A$4:$DP$191,117,FALSE)","v":67.290999999999997},{"$f":"VLOOKUP($A125,F1__World_Data!$A$4:$DP$191,116,FALSE)","v":66.995000000000005},{"$f":"VLOOKUP($A125,F1__World_Data!$A$4:$DP$191,115,FALSE)","v":66.69},{"$f":"VLOOKUP($A125,F1__World_Data!$A$4:$DP$191,114,FALSE)","v":66.381},{"$f":"VLOOKUP($A125,F1__World_Data!$A$4:$DP$191,113,FALSE)","v":66.072000000000003},{"$f":"VLOOKUP($A125,F1__World_Data!$A$4:$DP$191,112,FALSE)","v":65.769000000000005},{"$f":"VLOOKUP($A125,F1__World_Data!$A$4:$DP$191,111,FALSE)","v":65.48},{"$f":"VLOOKUP($A125,F1__World_Data!$A$4:$DP$191,110,FALSE)","v":65.207999999999998},{"$f":"VLOOKUP($A125,F1__World_Data!$A$4:$DP$191,109,FALSE)","v":64.953000000000003},{"$f":"VLOOKUP($A125,F1__World_Data!$A$4:$DP$191,108,FALSE)","v":64.712000000000003},{"$f":"VLOOKUP($A125,F1__World_Data!$A$4:$DP$191,107,FALSE)","v":64.477999999999994},{"$f":"VLOOKUP($A125,F1__World_Data!$A$4:$DP$191,106,FALSE)","v":64.242000000000004},{"$f":"VLOOKUP($A125,F1__World_Data!$A$4:$DP$191,105,FALSE)","v":63.994999999999997},{"$f":"VLOOKUP($A125,F1__World_Data!$A$4:$DP$191,104,FALSE)","v":63.731000000000002},{"$f":"VLOOKUP($A125,F1__World_Data!$A$4:$DP$191,103,FALSE)","v":63.445999999999998},{"$f":"VLOOKUP($A125,F1__World_Data!$A$4:$DP$191,102,FALSE)","v":63.143999999999998},{"$f":"VLOOKUP($A125,F1__World_Data!$A$4:$DP$191,101,FALSE)","v":62.829000000000001},{"$f":"VLOOKUP($A125,F1__World_Data!$A$4:$DP$191,100,FALSE)","v":62.509},{"$f":"VLOOKUP($A125,F1__World_Data!$A$4:$DP$191,99,FALSE)","v":62.188000000000002},{"$f":"VLOOKUP($A125,F1__World_Data!$A$4:$DP$191,98,FALSE)","v":61.866},{"$f":"VLOOKUP($A125,F1__World_Data!$A$4:$DP$191,97,FALSE)","v":61.539000000000001},{"$f":"VLOOKUP($A125,F1__World_Data!$A$4:$DP$191,96,FALSE)","v":61.198},{"$f":"VLOOKUP($A125,F1__World_Data!$A$4:$DP$191,95,FALSE)","v":60.837000000000003},{"$f":"VLOOKUP($A125,F1__World_Data!$A$4:$DP$191,94,FALSE)","v":60.454999999999998},{"$f":"VLOOKUP($A125,F1__World_Data!$A$4:$DP$191,93,FALSE)","v":60.052999999999997},{"$f":"VLOOKUP($A125,F1__World_Data!$A$4:$DP$191,92,FALSE)","v":59.636000000000003},{"$f":"VLOOKUP($A125,F1__World_Data!$A$4:$DP$191,91,FALSE)","v":59.209000000000003},{"$f":"VLOOKUP($A125,F1__World_Data!$A$4:$DP$191,90,FALSE)","v":58.783000000000001},{"$f":"VLOOKUP($A125,F1__World_Data!$A$4:$DP$191,89,FALSE)","v":58.366},{"$f":"VLOOKUP($A125,F1__World_Data!$A$4:$DP$191,88,FALSE)","v":57.962000000000003},{"$f":"VLOOKUP($A125,F1__World_Data!$A$4:$DP$191,87,FALSE)","v":57.579000000000001},{"$f":"VLOOKUP($A125,F1__World_Data!$A$4:$DP$191,86,FALSE)","v":57.220999999999997},{"$f":"VLOOKUP($A125,F1__World_Data!$A$4:$DP$191,85,FALSE)","v":56.886000000000003},{"$f":"VLOOKUP($A125,F1__World_Data!$A$4:$DP$191,84,FALSE)","v":56.569000000000003},{"$f":"VLOOKUP($A125,F1__World_Data!$A$4:$DP$191,83,FALSE)","v":56.265999999999998},{"$f":"VLOOKUP($A125,F1__World_Data!$A$4:$DP$191,82,FALSE)","v":55.970999999999997},{"$f":"VLOOKUP($A125,F1__World_Data!$A$4:$DP$191,81,FALSE)","v":55.679000000000002},{"$f":"VLOOKUP($A125,F1__World_Data!$A$4:$DP$191,80,FALSE)","v":55.381999999999998},{"$f":"VLOOKUP($A125,F1__World_Data!$A$4:$DP$191,79,FALSE)","v":55.073999999999998},{"$f":"VLOOKUP($A125,F1__World_Data!$A$4:$DP$191,78,FALSE)","v":54.747999999999998},{"$f":"VLOOKUP($A125,F1__World_Data!$A$4:$DP$191,77,FALSE)","v":54.399000000000001},{"$f":"VLOOKUP($A125,F1__World_Data!$A$4:$DP$191,76,FALSE)","v":54.027000000000001},{"$f":"VLOOKUP($A125,F1__World_Data!$A$4:$DP$191,75,FALSE)","v":53.633000000000003},{"$f":"VLOOKUP($A125,F1__World_Data!$A$4:$DP$191,74,FALSE)","v":53.218000000000004},{"$f":"VLOOKUP($A125,F1__World_Data!$A$4:$DP$191,73,FALSE)","v":52.781999999999996},{"$f":"VLOOKUP($A125,F1__World_Data!$A$4:$DP$191,72,FALSE)","v":52.323},{"$f":"VLOOKUP($A125,F1__World_Data!$A$4:$DP$191,71,FALSE)","v":51.837000000000003},{"$f":"VLOOKUP($A125,F1__World_Data!$A$4:$DP$191,70,FALSE)","v":51.326999999999998},{"$f":"VLOOKUP($A125,F1__World_Data!$A$4:$DP$191,69,FALSE)","v":50.795999999999999},{"$f":"VLOOKUP($A125,F1__World_Data!$A$4:$DP$191,68,FALSE)","v":50.25},{"$f":"VLOOKUP($A125,F1__World_Data!$A$4:$DP$191,67,FALSE)","v":49.697000000000003},{"$f":"VLOOKUP($A125,F1__World_Data!$A$4:$DP$191,66,FALSE)","v":49.145000000000003},{"$f":"VLOOKUP($A125,F1__World_Data!$A$4:$DP$191,65,FALSE)","v":48.600999999999999},{"$f":"VLOOKUP($A125,F1__World_Data!$A$4:$DP$191,64,FALSE)","v":48.070999999999998},{"$f":"VLOOKUP($A125,F1__World_Data!$A$4:$DP$191,63,FALSE)","v":47.557000000000002},{"$f":"VLOOKUP($A125,F1__World_Data!$A$4:$DP$191,62,FALSE)","v":47.061}]
["Puerto Rico",{"$f":"VLOOKUP($A126,F1__World_Data!$A$4:$DP$191,60,FALSE)","v":3039.598},{"$f":"VLOOKUP($A126,F1__World_Data!$A$4:$DP$191,59,FALSE)","v":3163.6759999999999},{"$f":"VLOOKUP($A126,F1__World_Data!$A$4:$DP$191,58,FALSE)","v":3283.1210000000001},{"$f":"VLOOKUP($A126,F1__World_Data!$A$4:$DP$191,57,FALSE)","v":3381.5120000000002},{"$f":"VLOOKUP($A126,F1__World_Data!$A$4:$DP$191,56,FALSE)","v":3453.6669999999999},{"$f":"VLOOKUP($A126,F1__World_Data!$A$4:$DP$191,55,FALSE)","v":3503.8649999999998},{"$f":"VLOOKUP($A126,F1__World_Data!$A$4:$DP$191,54,FALSE)","v":3536.57},{"$f":"VLOOKUP($A126,F1__World_Data!$A$4:$DP$191,53,FALSE)","v":3559.8620000000001},{"$f":"VLOOKUP($A126,F1__World_Data!$A$4:$DP$191,52,FALSE)","v":3579.8420000000001},{"$f":"VLOOKUP($A126,F1__World_Data!$A$4:$DP$191,55,FALSE)","v":3503.8649999999998},{"$f":"VLOOKUP($A126,F1__World_Data!$A$4:$DP$191,50,FALSE)","v":3608.03},{"$f":"VLOOKUP($A126,F1__World_Data!$A$4:$DP$191,49,FALSE)","v":3616.3409999999999},{"$f":"VLOOKUP($A126,F1__World_Data!$A$4:$DP$191,48,FALSE)","v":3623.7829999999999},{"$f":"VLOOKUP($A126,F1__World_Data!$A$4:$DP$191,47,FALSE)","v":3631.8850000000002},{"$f":"VLOOKUP($A126,F1__World_Data!$A$4:$DP$191,46,FALSE)","v":3642.0050000000001},{"$f":"VLOOKUP($A126,F1__World_Data!$A$4:$DP$191,45,FALSE)","v":3653.66},{"$f":"VLOOKUP($A126,F1__World_Data!$A$4:$DP$191,44,FALSE)","v":3664.3209999999999},{"$f":"VLOOKUP($A126,F1__World_Data!$A$4:$DP$191,43,FALSE)","v":3670.308},{"$f":"VLOOKUP($A126,F1__World_Data!$A$4:$DP$191,42,FALSE)","v":3668.9549999999999},{"$f":"VLOOKUP($A126,F1__World_Data!$A$4:$DP$191,41,FALSE)","v":3659.73},{"$f":"VLOOKUP($A126,F1__World_Data!$A$4:$DP$191,40,FALSE)","v":3643.672},{"$f":"VLOOKUP($A126,F1__World_Data!$A$4:$DP$191,39,FALSE)","v":3621.9},{"$f":"VLOOKUP($A126,F1__World_Data!$A$4:$DP$191,38,FALSE)","v":3596.0990000000002},{"$f":"VLOOKUP($A126,F1__World_Data!$A$4:$DP$191,37,FALSE)","v":3567.6909999999998},{"$f":"VLOOKUP($A126,F1__World_Data!$A$4:$DP$191,36,FALSE)","v":3536.806},{"$f":"VLOOKUP($A126,F1__World_Data!$A$4:$DP$191,35,FALSE)","v":3503.47},{"$f":"VLOOKUP($A126,F1__World_Data!$A$4:$DP$191,34,FALSE)","v":3469.0709999999999},{"$f":"VLOOKUP($A126,F1__World_Data!$A$4:$DP$191,33,FALSE)","v":3435.2550000000001},{"$f":"VLOOKUP($A126,F1__World_Data!$A$4:$DP$191,32,FALSE)","v":3403.1680000000001},{"$f":"VLOOKUP($A126,F1__World_Data!$A$4:$DP$191,31,FALSE)","v":3373.373},{"$f":"VLOOKUP($A126,F1__World_Data!$A$4:$DP$191,30,FALSE)","v":3345.5709999999999},{"$f":"VLOOKUP($A126,F1__World_Data!$A$4:$DP$191,29,FALSE)","v":3318.8380000000002},{"$f":"VLOOKUP($A126,F1__World_Data!$A$4:$DP$191,28,FALSE)","v":3291.7469999999998},{"$f":"VLOOKUP($A126,F1__World_Data!$A$4:$DP$191,27,FALSE)","v":3263.1729999999998},{"$f":"VLOOKUP($A126,F1__World_Data!$A$4:$DP$191,26,FALSE)","v":3233.1689999999999},{"$f":"VLOOKUP($A126,F1__World_Data!$A$4:$DP$191,25,FALSE)","v":3201.864},{"$f":"VLOOKUP($A126,F1__World_Data!$A$4:$DP$191,24,FALSE)","v":3168.3440000000001},{"$f":"VLOOKUP($A126,F1__World_Data!$A$4:$DP$191,23,FALSE)","v":3131.5070000000001},{"$f":"VLOOKUP($A126,F1__World_Data!$A$4:$DP$191,22,FALSE)","v":3090.6880000000001},{"$f":"VLOOKUP($A126,F1__World_Data!$A$4:$DP$191,21,FALSE)","v":3045.6039999999998},{"$f":"VLOOKUP($A126,F1__World_Data!$A$4:$DP$191,20,FALSE)","v":2996.84},{"$f":"VLOOKUP($A126,F1__World_Data!$A$4:$DP$191,19,FALSE)","v":2945.8470000000002},{"$f":"VLOOKUP($A126,F1__World_Data!$A$4:$DP$191,18,FALSE)","v":2894.672},{"$f":"VLOOKUP($A126,F1__World_Data!$A$4:$DP$191,17,FALSE)","v":2844.9250000000002},{"$f":"VLOOKUP($A126,F1__World_Data!$A$4:$DP$191,16,FALSE)","v":2796.6619999999998},{"$f":"VLOOKUP($A126,F1__World_Data!$A$4:$DP$191,15,FALSE)","v":2749.8629999999998},{"$f":"VLOOKUP($A126,F1__World_Data!$A$4:$DP$191,14,FALSE)","v":2705.84},{"$f":"VLOOKUP($A126,F1__World_Data!$A$4:$DP$191,13,FALSE)","v":2666.165},{"$f":"VLOOKUP($A126,F1__World_Data!$A$4:$DP$191,12,FALSE)","v":2631.7},{"$f":"VLOOKUP($A126,F1__World_Data!$A$4:$DP$191,11,FALSE)","v":2603.7130000000002},{"$f":"VLOOKUP($A126,F1__World_Data!$A$4:$DP$191,10,FALSE)","v":2581.3879999999999},{"$f":"VLOOKUP($A126,F1__World_Data!$A$4:$DP$191,9,FALSE)","v":2561.0340000000001},{"$f":"VLOOKUP($A126,F1__World_Data!$A$4:$DP$191,8,FALSE)","v":2537.5659999999998},{"$f":"VLOOKUP($A126,F1__World_Data!$A$4:$DP$191,7,FALSE)","v":2507.5369999999998},{"$f":"VLOOKUP($A126,F1__World_Data!$A$4:$DP$191,6,FALSE)","v":2469.5680000000002},{"$f":"VLOOKUP($A126,F1__World_Data!$A$4:$DP$191,5,FALSE)","v":2425.35},{"$f":"VLOOKUP($A126,F1__World_Data!$A$4:$DP$191,4,FALSE)","v":2378.3780000000002},{"$f":"VLOOKUP($A126,F1__World_Data!$A$4:$DP$191,3,FALSE)","v":2333.6619999999998},{"$f":"VLOOKUP($A126,F1__World_Data!$A$4:$DP$191,2,FALSE)","v":2294.971},null,{"$f":"VLOOKUP($A126,F1__World_Data!$A$4:$DP$191,120,FALSE)","v":68.116},{"$f":"VLOOKUP($A126,F1__World_Data!$A$4:$DP$191,119,FALSE)","v":67.850999999999999},{"$f":"VLOOKUP($A126,F1__World_Data!$A$4:$DP$191,118,FALSE)","v":67.576999999999998},{"$f":"VLOOKUP($A126,F1__World_Data!$A$4:$DP$191,117,FALSE)","v":67.290999999999997},{"$f":"VLOOKUP($A126,F1__World_Data!$A$4:$DP$191,116,FALSE)","v":66.995000000000005},{"$f":"VLOOKUP($A126,F1__World_Data!$A$4:$DP$191,115,FALSE)","v":66.69},{"$f":"VLOOKUP($A126,F1__World_Data!$A$4:$DP$191,114,FALSE)","v":66.381},{"$f":"VLOOKUP($A126,F1__World_Data!$A$4:$DP$191,113,FALSE)","v":66.072000000000003},{"$f":"VLOOKUP($A126,F1__World_Data!$A$4:$DP$191,112,FALSE)","v":65.769000000000005},{"$f":"VLOOKUP($A126,F1__World_Data!$A$4:$DP$191,111,FALSE)","v":65.48},{"$f":"VLOOKUP($A126,F1__World_Data!$A$4:$DP$191,110,FALSE)","v":65.207999999999998},{"$f":"VLOOKUP($A126,F1__World_Data!$A$4:$DP$191,109,FALSE)","v":64.953000000000003},{"$f":"VLOOKUP($A126,F1__World_Data!$A$4:$DP$191,108,FALSE)","v":64.712000000000003},{"$f":"VLOOKUP($A126,F1__World_Data!$A$4:$DP$191,107,FALSE)","v":64.477999999999994},{"$f":"VLOOKUP($A126,F1__World_Data!$A$4:$DP$191,106,FALSE)","v":64.242000000000004},{"$f":"VLOOKUP($A126,F1__World_Data!$A$4:$DP$191,105,FALSE)","v":63.994999999999997},{"$f":"VLOOKUP($A126,F1__World_Data!$A$4:$DP$191,104,FALSE)","v":63.731000000000002},{"$f":"VLOOKUP($A126,F1__World_Data!$A$4:$DP$191,103,FALSE)","v":63.445999999999998},{"$f":"VLOOKUP($A126,F1__World_Data!$A$4:$DP$191,102,FALSE)","v":63.143999999999998},{"$f":"VLOOKUP($A126,F1__World_Data!$A$4:$DP$191,101,FALSE)","v":62.829000000000001},{"$f":"VLOOKUP($A126,F1__World_Data!$A$4:$DP$191,100,FALSE)","v":62.509},{"$f":"VLOOKUP($A126,F1__World_Data!$A$4:$DP$191,99,FALSE)","v":62.188000000000002},{"$f":"VLOOKUP($A126,F1__World_Data!$A$4:$DP$191,98,FALSE)","v":61.866},{"$f":"VLOOKUP($A126,F1__World_Data!$A$4:$DP$191,97,FALSE)","v":61.539000000000001},{"$f":"VLOOKUP($A126,F1__World_Data!$A$4:$DP$191,96,FALSE)","v":61.198},{"$f":"VLOOKUP($A126,F1__World_Data!$A$4:$DP$191,95,FALSE)","v":60.837000000000003},{"$f":"VLOOKUP($A126,F1__World_Data!$A$4:$DP$191,94,FALSE)","v":60.454999999999998},{"$f":"VLOOKUP($A126,F1__World_Data!$A$4:$DP$191,93,FALSE)","v":60.052999999999997},{"$f":"VLOOKUP($A126,F1__World_Data!$A$4:$DP$191,92,FALSE)","v":59.636000000000003},{"$f":"VLOOKUP($A126,F1__World_Data!$A$4:$DP$191,91,FALSE)","v":59.209000000000003},{"$f":"VLOOKUP($A126,F1__World_Data!$A$4:$DP$191,90,FALSE)","v":58.783000000000001},{"$f":"VLOOKUP($A126,F1__World_Data!$A$4:$DP$191,89,FALSE)","v":58.366},{"$f":"VLOOKUP($A126,F1__World_Data!$A$4:$DP$191,88,FALSE)","v":57.962000000000003},{"$f":"VLOOKUP($A126,F1__World_Data!$A$4:$DP$191,87,FALSE)","v":57.579000000000001},{"$f":"VLOOKUP($A126,F1__World_Data!$A$4:$DP$191,86,FALSE)","v":57.220999999999997},{"$f":"VLOOKUP($A126,F1__World_Data!$A$4:$DP$191,85,FALSE)","v":56.886000000000003},{"$f":"VLOOKUP($A126,F1__World_Data!$A$4:$DP$191,84,FALSE)","v":56.569000000000003},{"$f":"VLOOKUP($A126,F1__World_Data!$A$4:$DP$191,83,FALSE)","v":56.265999999999998},{"$f":"VLOOKUP($A126,F1__World_Data!$A$4:$DP$191,82,FALSE)","v":55.970999999999997},{"$f":"VLOOKUP($A126,F1__World_Data!$A$4:$DP$191,81,FALSE)","v":55.679000000000002},{"$f":"VLOOKUP($A126,F1__World_Data!$A$4:$DP$191,80,FALSE)","v":55.381999999999998},{"$f":"VLOOKUP($A126,F1__World_Data!$A$4:$DP$191,79,FALSE)","v":55.073999999999998},{"$f":"VLOOKUP($A126,F1__World_Data!$A$4:$DP$191,78,FALSE)","v":54.747999999999998},{"$f":"VLOOKUP($A126,F1__World_Data!$A$4:$DP$191,77,FALSE)","v":54.399000000000001},{"$f":"VLOOKUP($A126,F1__World_Data!$A$4:$DP$191,76,FALSE)","v":54.027000000000001},{"$f":"VLOOKUP($A126,F1__World_Data!$A$4:$DP$191,75,FALSE)","v":53.633000000000003},{"$f":"VLOOKUP($A126,F1__World_Data!$A$4:$DP$191,74,FALSE)","v":53.218000000000004},{"$f":"VLOOKUP($A126,F1__World_Data!$A$4:$DP$191,73,FALSE)","v":52.781999999999996},{"$f":"VLOOKUP($A126,F1__World_Data!$A$4:$DP$191,72,FALSE)","v":52.323},{"$f":"VLOOKUP($A126,F1__World_Data!$A$4:$DP$191,71,FALSE)","v":51.837000000000003},{"$f":"VLOOKUP($A126,F1__World_Data!$A$4:$DP$191,70,FALSE)","v":51.326999999999998},{"$f":"VLOOKUP($A126,F1__World_Data!$A$4:$DP$191,69,FALSE)","v":50.795999999999999},{"$f":"VLOOKUP($A126,F1__World_Data!$A$4:$DP$191,68,FALSE)","v":50.25},{"$f":"VLOOKUP($A126,F1__World_Data!$A$4:$DP$191,67,FALSE)","v":49.697000000000003},{"$f":"VLOOKUP($A126,F1__World_Data!$A$4:$DP$191,66,FALSE)","v":49.145000000000003},{"$f":"VLOOKUP($A126,F1__World_Data!$A$4:$DP$191,65,FALSE)","v":48.600999999999999},{"$f":"VLOOKUP($A126,F1__World_Data!$A$4:$DP$191,64,FALSE)","v":48.070999999999998},{"$f":"VLOOKUP($A126,F1__World_Data!$A$4:$DP$191,63,FALSE)","v":47.557000000000002},{"$f":"VLOOKUP($A126,F1__World_Data!$A$4:$DP$191,62,FALSE)","v":47.061}]
["Armenia",{"$f":"VLOOKUP($A127,F1__World_Data!$A$4:$DP$191,60,FALSE)","v":2951.741},{"$f":"VLOOKUP($A127,F1__World_Data!$A$4:$DP$191,59,FALSE)","v":2944.7890000000002},{"$f":"VLOOKUP($A127,F1__World_Data!$A$4:$DP$191,58,FALSE)","v":2936.1469999999999},{"$f":"VLOOKUP($A127,F1__World_Data!$A$4:$DP$191,57,FALSE)","v":2925.5590000000002},{"$f":"VLOOKUP($A127,F1__World_Data!$A$4:$DP$191,56,FALSE)","v":2912.4029999999998},{"$f":"VLOOKUP($A127,F1__World_Data!$A$4:$DP$191,55,FALSE)","v":2897.5929999999998},{"$f":"VLOOKUP($A127,F1__World_Data!$A$4:$DP$191,54,FALSE)","v":2884.239},{"$f":"VLOOKUP($A127,F1__World_Data!$A$4:$DP$191,53,FALSE)","v":2876.5360000000001},{"$f":"VLOOKUP($A127,F1__World_Data!$A$4:$DP$191,52,FALSE)","v":2877.3139999999999},{"$f":"VLOOKUP($A127,F1__World_Data!$A$4:$DP$191,55,FALSE)","v":2897.5929999999998},{"$f":"VLOOKUP($A127,F1__World_Data!$A$4:$DP$191,50,FALSE)","v":2907.6149999999998},{"$f":"VLOOKUP($A127,F1__World_Data!$A$4:$DP$191,49,FALSE)","v":2932.6149999999998},{"$f":"VLOOKUP($A127,F1__World_Data!$A$4:$DP$191,48,FALSE)","v":2958.3009999999999},{"$f":"VLOOKUP($A127,F1__World_Data!$A$4:$DP$191,47,FALSE)","v":2981.2620000000002},{"$f":"VLOOKUP($A127,F1__World_Data!$A$4:$DP$191,46,FALSE)","v":3000.7150000000001},{"$f":"VLOOKUP($A127,F1__World_Data!$A$4:$DP$191,45,FALSE)","v":3017.9380000000001},{"$f":"VLOOKUP($A127,F1__World_Data!$A$4:$DP$191,44,FALSE)","v":3033.9760000000001},{"$f":"VLOOKUP($A127,F1__World_Data!$A$4:$DP$191,43,FALSE)","v":3050.6860000000001},{"$f":"VLOOKUP($A127,F1__World_Data!$A$4:$DP$191,42,FALSE)","v":3069.5970000000002},{"$f":"VLOOKUP($A127,F1__World_Data!$A$4:$DP$191,41,FALSE)","v":3089.02},{"$f":"VLOOKUP($A127,F1__World_Data!$A$4:$DP$191,40,FALSE)","v":3108.6909999999998},{"$f":"VLOOKUP($A127,F1__World_Data!$A$4:$DP$191,39,FALSE)","v":3133.0810000000001},{"$f":"VLOOKUP($A127,F1__World_Data!$A$4:$DP$191,38,FALSE)","v":3168.2130000000002},{"$f":"VLOOKUP($A127,F1__World_Data!$A$4:$DP$191,37,FALSE)","v":3217.3490000000002},{"$f":"VLOOKUP($A127,F1__World_Data!$A$4:$DP$191,36,FALSE)","v":3283.6640000000002},{"$f":"VLOOKUP($A127,F1__World_Data!$A$4:$DP$191,35,FALSE)","v":3363.1109999999999},{"$f":"VLOOKUP($A127,F1__World_Data!$A$4:$DP$191,34,FALSE)","v":3442.82},{"$f":"VLOOKUP($A127,F1__World_Data!$A$4:$DP$191,33,FALSE)","v":3505.2489999999998},{"$f":"VLOOKUP($A127,F1__World_Data!$A$4:$DP$191,32,FALSE)","v":3538.1640000000002},{"$f":"VLOOKUP($A127,F1__World_Data!$A$4:$DP$191,31,FALSE)","v":3536.473},{"$f":"VLOOKUP($A127,F1__World_Data!$A$4:$DP$191,30,FALSE)","v":3504.6669999999999},{"$f":"VLOOKUP($A127,F1__World_Data!$A$4:$DP$191,29,FALSE)","v":3451.9470000000001},{"$f":"VLOOKUP($A127,F1__World_Data!$A$4:$DP$191,28,FALSE)","v":3392.2640000000001},{"$f":"VLOOKUP($A127,F1__World_Data!$A$4:$DP$191,27,FALSE)","v":3335.9349999999999},{"$f":"VLOOKUP($A127,F1__World_Data!$A$4:$DP$191,26,FALSE)","v":3285.5929999999998},{"$f":"VLOOKUP($A127,F1__World_Data!$A$4:$DP$191,25,FALSE)","v":3238.5920000000001},{"$f":"VLOOKUP($A127,F1__World_Data!$A$4:$DP$191,24,FALSE)","v":3193.6959999999999},{"$f":"VLOOKUP($A127,F1__World_Data!$A$4:$DP$191,23,FALSE)","v":3148.096},{"$f":"VLOOKUP($A127,F1__World_Data!$A$4:$DP$191,22,FALSE)","v":3099.759},{"$f":"VLOOKUP($A127,F1__World_Data!$A$4:$DP$191,21,FALSE)","v":3049.107},{"$f":"VLOOKUP($A127,F1__World_Data!$A$4:$DP$191,20,FALSE)","v":2997.4189999999999},{"$f":"VLOOKUP($A127,F1__World_Data!$A$4:$DP$191,19,FALSE)","v":2944.375},{"$f":"VLOOKUP($A127,F1__World_Data!$A$4:$DP$191,18,FALSE)","v":2889.5830000000001},{"$f":"VLOOKUP($A127,F1__World_Data!$A$4:$DP$191,17,FALSE)","v":2832.752},{"$f":"VLOOKUP($A127,F1__World_Data!$A$4:$DP$191,16,FALSE)","v":2773.75},{"$f":"VLOOKUP($A127,F1__World_Data!$A$4:$DP$191,15,FALSE)","v":2712.78},{"$f":"VLOOKUP($A127,F1__World_Data!$A$4:$DP$191,14,FALSE)","v":2650.4839999999999},{"$f":"VLOOKUP($A127,F1__World_Data!$A$4:$DP$191,13,FALSE)","v":2587.7159999999999},{"$f":"VLOOKUP($A127,F1__World_Data!$A$4:$DP$191,12,FALSE)","v":2525.067},{"$f":"VLOOKUP($A127,F1__World_Data!$A$4:$DP$191,11,FALSE)","v":2462.9380000000001},{"$f":"VLOOKUP($A127,F1__World_Data!$A$4:$DP$191,10,FALSE)","v":2401.1419999999998},{"$f":"VLOOKUP($A127,F1__World_Data!$A$4:$DP$191,9,FALSE)","v":2339.1329999999998},{"$f":"VLOOKUP($A127,F1__World_Data!$A$4:$DP$191,8,FALSE)","v":2276.038},{"$f":"VLOOKUP($A127,F1__World_Data!$A$4:$DP$191,7,FALSE)","v":2211.3159999999998},{"$f":"VLOOKUP($A127,F1__World_Data!$A$4:$DP$191,6,FALSE)","v":2145.0039999999999},{"$f":"VLOOKUP($A127,F1__World_Data!$A$4:$DP$191,5,FALSE)","v":2077.5839999999998},{"$f":"VLOOKUP($A127,F1__World_Data!$A$4:$DP$191,4,FALSE)","v":2009.5239999999999},{"$f":"VLOOKUP($A127,F1__World_Data!$A$4:$DP$191,3,FALSE)","v":1941.498},{"$f":"VLOOKUP($A127,F1__World_Data!$A$4:$DP$191,2,FALSE)","v":1874.1189999999999},null,{"$f":"VLOOKUP($A127,F1__World_Data!$A$4:$DP$191,120,FALSE)","v":76.885000000000005},{"$f":"VLOOKUP($A127,F1__World_Data!$A$4:$DP$191,119,FALSE)","v":76.751999999999995},{"$f":"VLOOKUP($A127,F1__World_Data!$A$4:$DP$191,118,FALSE)","v":76.617000000000004},{"$f":"VLOOKUP($A127,F1__World_Data!$A$4:$DP$191,117,FALSE)","v":76.483000000000004},{"$f":"VLOOKUP($A127,F1__World_Data!$A$4:$DP$191,116,FALSE)","v":76.349000000000004},{"$f":"VLOOKUP($A127,F1__World_Data!$A$4:$DP$191,115,FALSE)","v":76.218000000000004},{"$f":"VLOOKUP($A127,F1__World_Data!$A$4:$DP$191,114,FALSE)","v":76.087000000000003},{"$f":"VLOOKUP($A127,F1__World_Data!$A$4:$DP$191,113,FALSE)","v":75.956000000000003},{"$f":"VLOOKUP($A127,F1__World_Data!$A$4:$DP$191,112,FALSE)","v":75.822999999999993},{"$f":"VLOOKUP($A127,F1__World_Data!$A$4:$DP$191,111,FALSE)","v":75.683000000000007},{"$f":"VLOOKUP($A127,F1__World_Data!$A$4:$DP$191,110,FALSE)","v":75.534999999999997},{"$f":"VLOOKUP($A127,F1__World_Data!$A$4:$DP$191,109,FALSE)","v":75.376000000000005},{"$f":"VLOOKUP($A127,F1__World_Data!$A$4:$DP$191,108,FALSE)","v":75.203999999999994},{"$f":"VLOOKUP($A127,F1__World_Data!$A$4:$DP$191,107,FALSE)","v":75.019000000000005},{"$f":"VLOOKUP($A127,F1__World_Data!$A$4:$DP$191,106,FALSE)","v":74.820999999999998},{"$f":"VLOOKUP($A127,F1__World_Data!$A$4:$DP$191,105,FALSE)","v":74.613},{"$f":"VLOOKUP($A127,F1__World_Data!$A$4:$DP$191,104,FALSE)","v":74.394999999999996},{"$f":"VLOOKUP($A127,F1__World_Data!$A$4:$DP$191,103,FALSE)","v":74.171000000000006},{"$f":"VLOOKUP($A127,F1__World_Data!$A$4:$DP$191,102,FALSE)","v":73.94},{"$f":"VLOOKUP($A127,F1__World_Data!$A$4:$DP$191,101,FALSE)","v":73.704999999999998},{"$f":"VLOOKUP($A127,F1__World_Data!$A$4:$DP$191,100,FALSE)","v":73.465000000000003},{"$f":"VLOOKUP($A127,F1__World_Data!$A$4:$DP$191,99,FALSE)","v":73.221999999999994},{"$f":"VLOOKUP($A127,F1__World_Data!$A$4:$DP$191,98,FALSE)","v":72.977000000000004},{"$f":"VLOOKUP($A127,F1__World_Data!$A$4:$DP$191,97,FALSE)","v":72.731999999999999},{"$f":"VLOOKUP($A127,F1__World_Data!$A$4:$DP$191,96,FALSE)","v":72.489000000000004},{"$f":"VLOOKUP($A127,F1__World_Data!$A$4:$DP$191,95,FALSE)","v":72.247},{"$f":"VLOOKUP($A127,F1__World_Data!$A$4:$DP$191,94,FALSE)","v":72.006},{"$f":"VLOOKUP($A127,F1__World_Data!$A$4:$DP$191,93,FALSE)","v":71.765000000000001},{"$f":"VLOOKUP($A127,F1__World_Data!$A$4:$DP$191,92,FALSE)","v":71.52},{"$f":"VLOOKUP($A127,F1__World_Data!$A$4:$DP$191,91,FALSE)","v":71.266999999999996},{"$f":"VLOOKUP($A127,F1__World_Data!$A$4:$DP$191,90,FALSE)","v":71.004000000000005},{"$f":"VLOOKUP($A127,F1__World_Data!$A$4:$DP$191,89,FALSE)","v":70.727999999999994},{"$f":"VLOOKUP($A127,F1__World_Data!$A$4:$DP$191,88,FALSE)","v":70.44},{"$f":"VLOOKUP($A127,F1__World_Data!$A$4:$DP$191,87,FALSE)","v":70.137},{"$f":"VLOOKUP($A127,F1__World_Data!$A$4:$DP$191,86,FALSE)","v":69.819999999999993},{"$f":"VLOOKUP($A127,F1__World_Data!$A$4:$DP$191,85,FALSE)","v":69.491},{"$f":"VLOOKUP($A127,F1__World_Data!$A$4:$DP$191,84,FALSE)","v":69.156000000000006},{"$f":"VLOOKUP($A127,F1__World_Data!$A$4:$DP$191,83,FALSE)","v":68.817999999999998},{"$f":"VLOOKUP($A127,F1__World_Data!$A$4:$DP$191,82,FALSE)","v":68.481999999999999},{"$f":"VLOOKUP($A127,F1__World_Data!$A$4:$DP$191,81,FALSE)","v":68.153999999999996},{"$f":"VLOOKUP($A127,F1__World_Data!$A$4:$DP$191,80,FALSE)","v":67.837000000000003},{"$f":"VLOOKUP($A127,F1__World_Data!$A$4:$DP$191,79,FALSE)","v":67.533000000000001},{"$f":"VLOOKUP($A127,F1__World_Data!$A$4:$DP$191,78,FALSE)","v":67.244},{"$f":"VLOOKUP($A127,F1__World_Data!$A$4:$DP$191,77,FALSE)","v":66.974999999999994},{"$f":"VLOOKUP($A127,F1__World_Data!$A$4:$DP$191,76,FALSE)","v":66.727000000000004},{"$f":"VLOOKUP($A127,F1__World_Data!$A$4:$DP$191,75,FALSE)","v":66.498000000000005},{"$f":"VLOOKUP($A127,F1__World_Data!$A$4:$DP$191,74,FALSE)","v":66.28},{"$f":"VLOOKUP($A127,F1__World_Data!$A$4:$DP$191,73,FALSE)","v":66.066000000000003},{"$f":"VLOOKUP($A127,F1__World_Data!$A$4:$DP$191,72,FALSE)","v":65.846999999999994},{"$f":"VLOOKUP($A127,F1__World_Data!$A$4:$DP$191,71,FALSE)","v":65.616},{"$f":"VLOOKUP($A127,F1__World_Data!$A$4:$DP$191,70,FALSE)","v":65.363},{"$f":"VLOOKUP($A127,F1__World_Data!$A$4:$DP$191,69,FALSE)","v":65.081000000000003},{"$f":"VLOOKUP($A127,F1__World_Data!$A$4:$DP$191,68,FALSE)","v":64.762},{"$f":"VLOOKUP($A127,F1__World_Data!$A$4:$DP$191,67,FALSE)","v":64.400999999999996},{"$f":"VLOOKUP($A127,F1__World_Data!$A$4:$DP$191,66,FALSE)","v":63.991999999999997},{"$f":"VLOOKUP($A127,F1__World_Data!$A$4:$DP$191,65,FALSE)","v":63.54},{"$f":"VLOOKUP($A127,F1__World_Data!$A$4:$DP$191,64,FALSE)","v":63.048999999999999},{"$f":"VLOOKUP($A127,F1__World_Data!$A$4:$DP$191,63,FALSE)","v":62.523000000000003},{"$f":"VLOOKUP($A127,F1__World_Data!$A$4:$DP$191,62,FALSE)","v":61.968000000000004}]
["Jamaica",{"$f":"VLOOKUP($A128,F1__World_Data!$A$4:$DP$191,60,FALSE)","v":2934.8530000000001},{"$f":"VLOOKUP($A128,F1__World_Data!$A$4:$DP$191,59,FALSE)","v":2920.848},{"$f":"VLOOKUP($A128,F1__World_Data!$A$4:$DP$191,58,FALSE)","v":2906.2420000000002},{"$f":"VLOOKUP($A128,F1__World_Data!$A$4:$DP$191,57,FALSE)","v":2891.0239999999999},{"$f":"VLOOKUP($A128,F1__World_Data!$A$4:$DP$191,56,FALSE)","v":2875.1370000000002},{"$f":"VLOOKUP($A128,F1__World_Data!$A$4:$DP$191,55,FALSE)","v":2858.71},{"$f":"VLOOKUP($A128,F1__World_Data!$A$4:$DP$191,54,FALSE)","v":2842.1280000000002},{"$f":"VLOOKUP($A128,F1__World_Data!$A$4:$DP$191,53,FALSE)","v":2825.9319999999998},{"$f":"VLOOKUP($A128,F1__World_Data!$A$4:$DP$191,52,FALSE)","v":2810.4639999999999},{"$f":"VLOOKUP($A128,F1__World_Data!$A$4:$DP$191,55,FALSE)","v":2858.71},{"$f":"VLOOKUP($A128,F1__World_Data!$A$4:$DP$191,50,FALSE)","v":2781.8690000000001},{"$f":"VLOOKUP($A128,F1__World_Data!$A$4:$DP$191,49,FALSE)","v":2768.2289999999998},{"$f":"VLOOKUP($A128,F1__World_Data!$A$4:$DP$191,48,FALSE)","v":2754.4140000000002},{"$f":"VLOOKUP($A128,F1__World_Data!$A$4:$DP$191,47,FALSE)","v":2740},{"$f":"VLOOKUP($A128,F1__World_Data!$A$4:$DP$191,46,FALSE)","v":2725.0169999999998},{"$f":"VLOOKUP($A128,F1__World_Data!$A$4:$DP$191,45,FALSE)","v":2709.4380000000001},{"$f":"VLOOKUP($A128,F1__World_Data!$A$4:$DP$191,44,FALSE)","v":2692.8429999999998},{"$f":"VLOOKUP($A128,F1__World_Data!$A$4:$DP$191,43,FALSE)","v":2674.7060000000001},{"$f":"VLOOKUP($A128,F1__World_Data!$A$4:$DP$191,42,FALSE)","v":2654.6979999999999},{"$f":"VLOOKUP($A128,F1__World_Data!$A$4:$DP$191,41,FALSE)","v":2632.6770000000001},{"$f":"VLOOKUP($A128,F1__World_Data!$A$4:$DP$191,40,FALSE)","v":2608.8739999999998},{"$f":"VLOOKUP($A128,F1__World_Data!$A$4:$DP$191,39,FALSE)","v":2583.9140000000002},{"$f":"VLOOKUP($A128,F1__World_Data!$A$4:$DP$191,38,FALSE)","v":2558.6309999999999},{"$f":"VLOOKUP($A128,F1__World_Data!$A$4:$DP$191,37,FALSE)","v":2533.7049999999999},{"$f":"VLOOKUP($A128,F1__World_Data!$A$4:$DP$191,36,FALSE)","v":2509.0419999999999},{"$f":"VLOOKUP($A128,F1__World_Data!$A$4:$DP$191,35,FALSE)","v":2484.5830000000001},{"$f":"VLOOKUP($A128,F1__World_Data!$A$4:$DP$191,34,FALSE)","v":2461.047},{"$f":"VLOOKUP($A128,F1__World_Data!$A$4:$DP$191,33,FALSE)","v":2439.3290000000002},{"$f":"VLOOKUP($A128,F1__World_Data!$A$4:$DP$191,32,FALSE)","v":2419.9009999999998},{"$f":"VLOOKUP($A128,F1__World_Data!$A$4:$DP$191,31,FALSE)","v":2403.4639999999999},{"$f":"VLOOKUP($A128,F1__World_Data!$A$4:$DP$191,30,FALSE)","v":2389.415},{"$f":"VLOOKUP($A128,F1__World_Data!$A$4:$DP$191,29,FALSE)","v":2375.4},{"$f":"VLOOKUP($A128,F1__World_Data!$A$4:$DP$191,28,FALSE)","v":2358.165},{"$f":"VLOOKUP($A128,F1__World_Data!$A$4:$DP$191,27,FALSE)","v":2335.5100000000002},{"$f":"VLOOKUP($A128,F1__World_Data!$A$4:$DP$191,26,FALSE)","v":2306.3670000000002},{"$f":"VLOOKUP($A128,F1__World_Data!$A$4:$DP$191,25,FALSE)","v":2271.7350000000001},{"$f":"VLOOKUP($A128,F1__World_Data!$A$4:$DP$191,24,FALSE)","v":2234.0619999999999},{"$f":"VLOOKUP($A128,F1__World_Data!$A$4:$DP$191,23,FALSE)","v":2196.9209999999998},{"$f":"VLOOKUP($A128,F1__World_Data!$A$4:$DP$191,22,FALSE)","v":2162.8389999999999},{"$f":"VLOOKUP($A128,F1__World_Data!$A$4:$DP$191,21,FALSE)","v":2132.7840000000001},{"$f":"VLOOKUP($A128,F1__World_Data!$A$4:$DP$191,20,FALSE)","v":2105.9029999999998},{"$f":"VLOOKUP($A128,F1__World_Data!$A$4:$DP$191,19,FALSE)","v":2080.8240000000001},{"$f":"VLOOKUP($A128,F1__World_Data!$A$4:$DP$191,18,FALSE)","v":2055.3710000000001},{"$f":"VLOOKUP($A128,F1__World_Data!$A$4:$DP$191,17,FALSE)","v":2028.019},{"$f":"VLOOKUP($A128,F1__World_Data!$A$4:$DP$191,16,FALSE)","v":1998.3130000000001},{"$f":"VLOOKUP($A128,F1__World_Data!$A$4:$DP$191,15,FALSE)","v":1966.9780000000001},{"$f":"VLOOKUP($A128,F1__World_Data!$A$4:$DP$191,14,FALSE)","v":1935.0889999999999},{"$f":"VLOOKUP($A128,F1__World_Data!$A$4:$DP$191,13,FALSE)","v":1904.2809999999999},{"$f":"VLOOKUP($A128,F1__World_Data!$A$4:$DP$191,12,FALSE)","v":1875.6369999999999},{"$f":"VLOOKUP($A128,F1__World_Data!$A$4:$DP$191,11,FALSE)","v":1849.6579999999999},{"$f":"VLOOKUP($A128,F1__World_Data!$A$4:$DP$191,10,FALSE)","v":1825.873},{"$f":"VLOOKUP($A128,F1__World_Data!$A$4:$DP$191,9,FALSE)","v":1803.3240000000001},{"$f":"VLOOKUP($A128,F1__World_Data!$A$4:$DP$191,8,FALSE)","v":1780.5219999999999},{"$f":"VLOOKUP($A128,F1__World_Data!$A$4:$DP$191,7,FALSE)","v":1756.508},{"$f":"VLOOKUP($A128,F1__World_Data!$A$4:$DP$191,6,FALSE)","v":1730.739},{"$f":"VLOOKUP($A128,F1__World_Data!$A$4:$DP$191,5,FALSE)","v":1703.66},{"$f":"VLOOKUP($A128,F1__World_Data!$A$4:$DP$191,4,FALSE)","v":1676.5},{"$f":"VLOOKUP($A128,F1__World_Data!$A$4:$DP$191,3,FALSE)","v":1651.067},{"$f":"VLOOKUP($A128,F1__World_Data!$A$4:$DP$191,2,FALSE)","v":1628.5239999999999},null,{"$f":"VLOOKUP($A128,F1__World_Data!$A$4:$DP$191,120,FALSE)","v":74.367999999999995},{"$f":"VLOOKUP($A128,F1__World_Data!$A$4:$DP$191,119,FALSE)","v":74.266999999999996},{"$f":"VLOOKUP($A128,F1__World_Data!$A$4:$DP$191,118,FALSE)","v":74.174999999999997},{"$f":"VLOOKUP($A128,F1__World_Data!$A$4:$DP$191,117,FALSE)","v":74.097999999999999},{"$f":"VLOOKUP($A128,F1__World_Data!$A$4:$DP$191,116,FALSE)","v":74.042000000000002},{"$f":"VLOOKUP($A128,F1__World_Data!$A$4:$DP$191,115,FALSE)","v":74.010000000000005},{"$f":"VLOOKUP($A128,F1__World_Data!$A$4:$DP$191,114,FALSE)","v":74.001000000000005},{"$f":"VLOOKUP($A128,F1__World_Data!$A$4:$DP$191,113,FALSE)","v":74.012},{"$f":"VLOOKUP($A128,F1__World_Data!$A$4:$DP$191,112,FALSE)","v":74.037999999999997},{"$f":"VLOOKUP($A128,F1__World_Data!$A$4:$DP$191,111,FALSE)","v":74.070999999999998},{"$f":"VLOOKUP($A128,F1__World_Data!$A$4:$DP$191,110,FALSE)","v":74.102999999999994},{"$f":"VLOOKUP($A128,F1__World_Data!$A$4:$DP$191,109,FALSE)","v":74.129000000000005},{"$f":"VLOOKUP($A128,F1__World_Data!$A$4:$DP$191,108,FALSE)","v":74.143000000000001},{"$f":"VLOOKUP($A128,F1__World_Data!$A$4:$DP$191,107,FALSE)","v":74.147999999999996},{"$f":"VLOOKUP($A128,F1__World_Data!$A$4:$DP$191,106,FALSE)","v":74.146000000000001},{"$f":"VLOOKUP($A128,F1__World_Data!$A$4:$DP$191,105,FALSE)","v":74.141999999999996},{"$f":"VLOOKUP($A128,F1__World_Data!$A$4:$DP$191,104,FALSE)","v":74.14},{"$f":"VLOOKUP($A128,F1__World_Data!$A$4:$DP$191,103,FALSE)","v":74.138999999999996},{"$f":"VLOOKUP($A128,F1__World_Data!$A$4:$DP$191,102,FALSE)","v":74.141999999999996},{"$f":"VLOOKUP($A128,F1__World_Data!$A$4:$DP$191,101,FALSE)","v":74.152000000000001},{"$f":"VLOOKUP($A128,F1__World_Data!$A$4:$DP$191,100,FALSE)","v":74.164000000000001},{"$f":"VLOOKUP($A128,F1__World_Data!$A$4:$DP$191,99,FALSE)","v":74.171999999999997},{"$f":"VLOOKUP($A128,F1__World_Data!$A$4:$DP$191,98,FALSE)","v":74.167000000000002},{"$f":"VLOOKUP($A128,F1__World_Data!$A$4:$DP$191,97,FALSE)","v":74.132999999999996},{"$f":"VLOOKUP($A128,F1__World_Data!$A$4:$DP$191,96,FALSE)","v":74.052999999999997},{"$f":"VLOOKUP($A128,F1__World_Data!$A$4:$DP$191,95,FALSE)","v":73.918000000000006},{"$f":"VLOOKUP($A128,F1__World_Data!$A$4:$DP$191,94,FALSE)","v":73.727000000000004},{"$f":"VLOOKUP($A128,F1__World_Data!$A$4:$DP$191,93,FALSE)","v":73.484999999999999},{"$f":"VLOOKUP($A128,F1__World_Data!$A$4:$DP$191,92,FALSE)","v":73.203999999999994},{"$f":"VLOOKUP($A128,F1__World_Data!$A$4:$DP$191,91,FALSE)","v":72.903000000000006},{"$f":"VLOOKUP($A128,F1__World_Data!$A$4:$DP$191,90,FALSE)","v":72.600999999999999},{"$f":"VLOOKUP($A128,F1__World_Data!$A$4:$DP$191,89,FALSE)","v":72.316999999999993},{"$f":"VLOOKUP($A128,F1__World_Data!$A$4:$DP$191,88,FALSE)","v":72.055999999999997},{"$f":"VLOOKUP($A128,F1__World_Data!$A$4:$DP$191,87,FALSE)","v":71.822999999999993},{"$f":"VLOOKUP($A128,F1__World_Data!$A$4:$DP$191,86,FALSE)","v":71.614000000000004},{"$f":"VLOOKUP($A128,F1__World_Data!$A$4:$DP$191,85,FALSE)","v":71.415999999999997},{"$f":"VLOOKUP($A128,F1__World_Data!$A$4:$DP$191,84,FALSE)","v":71.216999999999999},{"$f":"VLOOKUP($A128,F1__World_Data!$A$4:$DP$191,83,FALSE)","v":71.012},{"$f":"VLOOKUP($A128,F1__World_Data!$A$4:$DP$191,82,FALSE)","v":70.793000000000006},{"$f":"VLOOKUP($A128,F1__World_Data!$A$4:$DP$191,81,FALSE)","v":70.552999999999997},{"$f":"VLOOKUP($A128,F1__World_Data!$A$4:$DP$191,80,FALSE)","v":70.293999999999997},{"$f":"VLOOKUP($A128,F1__World_Data!$A$4:$DP$191,79,FALSE)","v":70.015000000000001},{"$f":"VLOOKUP($A128,F1__World_Data!$A$4:$DP$191,78,FALSE)","v":69.718000000000004},{"$f":"VLOOKUP($A128,F1__World_Data!$A$4:$DP$191,77,FALSE)","v":69.41},{"$f":"VLOOKUP($A128,F1__World_Data!$A$4:$DP$191,76,FALSE)","v":69.099000000000004},{"$f":"VLOOKUP($A128,F1__World_Data!$A$4:$DP$191,75,FALSE)","v":68.790999999999997},{"$f":"VLOOKUP($A128,F1__World_Data!$A$4:$DP$191,74,FALSE)","v":68.491},{"$f":"VLOOKUP($A128,F1__World_Data!$A$4:$DP$191,73,FALSE)","v":68.2},{"$f":"VLOOKUP($A128,F1__World_Data!$A$4:$DP$191,72,FALSE)","v":67.917000000000002},{"$f":"VLOOKUP($A128,F1__World_Data!$A$4:$DP$191,71,FALSE)","v":67.635999999999996},{"$f":"VLOOKUP($A128,F1__World_Data!$A$4:$DP$191,70,FALSE)","v":67.349000000000004},{"$f":"VLOOKUP($A128,F1__World_Data!$A$4:$DP$191,69,FALSE)","v":67.051000000000002},{"$f":"VLOOKUP($A128,F1__World_Data!$A$4:$DP$191,68,FALSE)","v":66.739999999999995},{"$f":"VLOOKUP($A128,F1__World_Data!$A$4:$DP$191,67,FALSE)","v":66.42},{"$f":"VLOOKUP($A128,F1__World_Data!$A$4:$DP$191,66,FALSE)","v":66.099999999999994},{"$f":"VLOOKUP($A128,F1__World_Data!$A$4:$DP$191,65,FALSE)","v":65.784000000000006},{"$f":"VLOOKUP($A128,F1__World_Data!$A$4:$DP$191,64,FALSE)","v":65.465000000000003},{"$f":"VLOOKUP($A128,F1__World_Data!$A$4:$DP$191,63,FALSE)","v":65.132999999999996},{"$f":"VLOOKUP($A128,F1__World_Data!$A$4:$DP$191,62,FALSE)","v":64.77}]
["Albania",{"$f":"VLOOKUP($A129,F1__World_Data!$A$4:$DP$191,60,FALSE)","v":2882.7350000000001},{"$f":"VLOOKUP($A129,F1__World_Data!$A$4:$DP$191,59,FALSE)","v":2884.1689999999999},{"$f":"VLOOKUP($A129,F1__World_Data!$A$4:$DP$191,58,FALSE)","v":2886.4270000000001},{"$f":"VLOOKUP($A129,F1__World_Data!$A$4:$DP$191,57,FALSE)","v":2890.5239999999999},{"$f":"VLOOKUP($A129,F1__World_Data!$A$4:$DP$191,56,FALSE)","v":2896.3069999999998},{"$f":"VLOOKUP($A129,F1__World_Data!$A$4:$DP$191,55,FALSE)","v":2903.788},{"$f":"VLOOKUP($A129,F1__World_Data!$A$4:$DP$191,54,FALSE)","v":2914.0909999999999},{"$f":"VLOOKUP($A129,F1__World_Data!$A$4:$DP$191,53,FALSE)","v":2928.6010000000001},{"$f":"VLOOKUP($A129,F1__World_Data!$A$4:$DP$191,52,FALSE)","v":2948.029},{"$f":"VLOOKUP($A129,F1__World_Data!$A$4:$DP$191,55,FALSE)","v":2903.788},{"$f":"VLOOKUP($A129,F1__World_Data!$A$4:$DP$191,50,FALSE)","v":3002.683},{"$f":"VLOOKUP($A129,F1__World_Data!$A$4:$DP$191,49,FALSE)","v":3033.9929999999999},{"$f":"VLOOKUP($A129,F1__World_Data!$A$4:$DP$191,48,FALSE)","v":3063.0210000000002},{"$f":"VLOOKUP($A129,F1__World_Data!$A$4:$DP$191,47,FALSE)","v":3086.81},{"$f":"VLOOKUP($A129,F1__World_Data!$A$4:$DP$191,46,FALSE)","v":3104.893},{"$f":"VLOOKUP($A129,F1__World_Data!$A$4:$DP$191,45,FALSE)","v":3118.0169999999998},{"$f":"VLOOKUP($A129,F1__World_Data!$A$4:$DP$191,44,FALSE)","v":3126.183},{"$f":"VLOOKUP($A129,F1__World_Data!$A$4:$DP$191,43,FALSE)","v":3129.701},{"$f":"VLOOKUP($A129,F1__World_Data!$A$4:$DP$191,42,FALSE)","v":3129.2460000000001},{"$f":"VLOOKUP($A129,F1__World_Data!$A$4:$DP$191,41,FALSE)","v":3122.7},{"$f":"VLOOKUP($A129,F1__World_Data!$A$4:$DP$191,40,FALSE)","v":3110.6990000000001},{"$f":"VLOOKUP($A129,F1__World_Data!$A$4:$DP$191,39,FALSE)","v":3099.7469999999998},{"$f":"VLOOKUP($A129,F1__World_Data!$A$4:$DP$191,38,FALSE)","v":3098.6990000000001},{"$f":"VLOOKUP($A129,F1__World_Data!$A$4:$DP$191,37,FALSE)","v":3112.9229999999998},{"$f":"VLOOKUP($A129,F1__World_Data!$A$4:$DP$191,36,FALSE)","v":3146.518},{"$f":"VLOOKUP($A129,F1__World_Data!$A$4:$DP$191,35,FALSE)","v":3195.1959999999999},{"$f":"VLOOKUP($A129,F1__World_Data!$A$4:$DP$191,34,FALSE)","v":3245.8870000000002},{"$f":"VLOOKUP($A129,F1__World_Data!$A$4:$DP$191,33,FALSE)","v":3280.3969999999999},{"$f":"VLOOKUP($A129,F1__World_Data!$A$4:$DP$191,32,FALSE)","v":3286.07},{"$f":"VLOOKUP($A129,F1__World_Data!$A$4:$DP$191,31,FALSE)","v":3257.913},{"$f":"VLOOKUP($A129,F1__World_Data!$A$4:$DP$191,30,FALSE)","v":3200.9720000000002},{"$f":"VLOOKUP($A129,F1__World_Data!$A$4:$DP$191,29,FALSE)","v":3124.8919999999998},{"$f":"VLOOKUP($A129,F1__World_Data!$A$4:$DP$191,28,FALSE)","v":3044.201},{"$f":"VLOOKUP($A129,F1__World_Data!$A$4:$DP$191,27,FALSE)","v":2969.6709999999998},{"$f":"VLOOKUP($A129,F1__World_Data!$A$4:$DP$191,26,FALSE)","v":2904.1419999999998},{"$f":"VLOOKUP($A129,F1__World_Data!$A$4:$DP$191,25,FALSE)","v":2844.8670000000002},{"$f":"VLOOKUP($A129,F1__World_Data!$A$4:$DP$191,24,FALSE)","v":2790.2840000000001},{"$f":"VLOOKUP($A129,F1__World_Data!$A$4:$DP$191,23,FALSE)","v":2737.018},{"$f":"VLOOKUP($A129,F1__World_Data!$A$4:$DP$191,22,FALSE)","v":2682.6970000000001},{"$f":"VLOOKUP($A129,F1__World_Data!$A$4:$DP$191,21,FALSE)","v":2627.5059999999999},{"$f":"VLOOKUP($A129,F1__World_Data!$A$4:$DP$191,20,FALSE)","v":2572.8519999999999},{"$f":"VLOOKUP($A129,F1__World_Data!$A$4:$DP$191,19,FALSE)","v":2518.6849999999999},{"$f":"VLOOKUP($A129,F1__World_Data!$A$4:$DP$191,18,FALSE)","v":2464.9810000000002},{"$f":"VLOOKUP($A129,F1__World_Data!$A$4:$DP$191,17,FALSE)","v":2411.7330000000002},{"$f":"VLOOKUP($A129,F1__World_Data!$A$4:$DP$191,16,FALSE)","v":2358.8519999999999},{"$f":"VLOOKUP($A129,F1__World_Data!$A$4:$DP$191,15,FALSE)","v":2306.2840000000001},{"$f":"VLOOKUP($A129,F1__World_Data!$A$4:$DP$191,14,FALSE)","v":2254.058},{"$f":"VLOOKUP($A129,F1__World_Data!$A$4:$DP$191,13,FALSE)","v":2202.1860000000001},{"$f":"VLOOKUP($A129,F1__World_Data!$A$4:$DP$191,12,FALSE)","v":2150.7040000000002},{"$f":"VLOOKUP($A129,F1__World_Data!$A$4:$DP$191,11,FALSE)","v":2099.7379999999998},{"$f":"VLOOKUP($A129,F1__World_Data!$A$4:$DP$191,10,FALSE)","v":2049.2139999999999},{"$f":"VLOOKUP($A129,F1__World_Data!$A$4:$DP$191,9,FALSE)","v":1998.7429999999999},{"$f":"VLOOKUP($A129,F1__World_Data!$A$4:$DP$191,8,FALSE)","v":1947.836},{"$f":"VLOOKUP($A129,F1__World_Data!$A$4:$DP$191,7,FALSE)","v":1896.175},{"$f":"VLOOKUP($A129,F1__World_Data!$A$4:$DP$191,6,FALSE)","v":1843.6489999999999},{"$f":"VLOOKUP($A129,F1__World_Data!$A$4:$DP$191,5,FALSE)","v":1790.5709999999999},{"$f":"VLOOKUP($A129,F1__World_Data!$A$4:$DP$191,4,FALSE)","v":1737.675},{"$f":"VLOOKUP($A129,F1__World_Data!$A$4:$DP$191,3,FALSE)","v":1685.9259999999999},{"$f":"VLOOKUP($A129,F1__World_Data!$A$4:$DP$191,2,FALSE)","v":1636.0909999999999},null,{"$f":"VLOOKUP($A129,F1__World_Data!$A$4:$DP$191,120,FALSE)","v":78.457999999999998},{"$f":"VLOOKUP($A129,F1__World_Data!$A$4:$DP$191,119,FALSE)","v":78.332999999999998},{"$f":"VLOOKUP($A129,F1__World_Data!$A$4:$DP$191,118,FALSE)","v":78.194000000000003},{"$f":"VLOOKUP($A129,F1__World_Data!$A$4:$DP$191,117,FALSE)","v":78.025000000000006},{"$f":"VLOOKUP($A129,F1__World_Data!$A$4:$DP$191,116,FALSE)","v":77.813000000000002},{"$f":"VLOOKUP($A129,F1__World_Data!$A$4:$DP$191,115,FALSE)","v":77.554000000000002},{"$f":"VLOOKUP($A129,F1__World_Data!$A$4:$DP$191,114,FALSE)","v":77.251999999999995},{"$f":"VLOOKUP($A129,F1__World_Data!$A$4:$DP$191,113,FALSE)","v":76.914000000000001},{"$f":"VLOOKUP($A129,F1__World_Data!$A$4:$DP$191,112,FALSE)","v":76.561999999999998},{"$f":"VLOOKUP($A129,F1__World_Data!$A$4:$DP$191,111,FALSE)","v":76.221000000000004},{"$f":"VLOOKUP($A129,F1__World_Data!$A$4:$DP$191,110,FALSE)","v":75.912000000000006},{"$f":"VLOOKUP($A129,F1__World_Data!$A$4:$DP$191,109,FALSE)","v":75.646000000000001},{"$f":"VLOOKUP($A129,F1__World_Data!$A$4:$DP$191,108,FALSE)","v":75.423000000000002},{"$f":"VLOOKUP($A129,F1__World_Data!$A$4:$DP$191,107,FALSE)","v":75.227999999999994},{"$f":"VLOOKUP($A129,F1__World_Data!$A$4:$DP$191,106,FALSE)","v":75.039000000000001},{"$f":"VLOOKUP($A129,F1__World_Data!$A$4:$DP$191,105,FALSE)","v":74.828000000000003},{"$f":"VLOOKUP($A129,F1__World_Data!$A$4:$DP$191,104,FALSE)","v":74.578999999999994},{"$f":"VLOOKUP($A129,F1__World_Data!$A$4:$DP$191,103,FALSE)","v":74.287999999999997},{"$f":"VLOOKUP($A129,F1__World_Data!$A$4:$DP$191,102,FALSE)","v":73.954999999999998},{"$f":"VLOOKUP($A129,F1__World_Data!$A$4:$DP$191,101,FALSE)","v":73.587000000000003},{"$f":"VLOOKUP($A129,F1__World_Data!$A$4:$DP$191,100,FALSE)","v":73.207999999999998},{"$f":"VLOOKUP($A129,F1__World_Data!$A$4:$DP$191,99,FALSE)","v":72.837999999999994},{"$f":"VLOOKUP($A129,F1__World_Data!$A$4:$DP$191,98,FALSE)","v":72.495000000000005},{"$f":"VLOOKUP($A129,F1__World_Data!$A$4:$DP$191,97,FALSE)","v":72.204999999999998},{"$f":"VLOOKUP($A129,F1__World_Data!$A$4:$DP$191,96,FALSE)","v":71.992000000000004},{"$f":"VLOOKUP($A129,F1__World_Data!$A$4:$DP$191,95,FALSE)","v":71.86},{"$f":"VLOOKUP($A129,F1__World_Data!$A$4:$DP$191,94,FALSE)","v":71.802000000000007},{"$f":"VLOOKUP($A129,F1__World_Data!$A$4:$DP$191,93,FALSE)","v":71.802999999999997},{"$f":"VLOOKUP($A129,F1__World_Data!$A$4:$DP$191,92,FALSE)","v":71.835999999999999},{"$f":"VLOOKUP($A129,F1__World_Data!$A$4:$DP$191,91,FALSE)","v":71.86},{"$f":"VLOOKUP($A129,F1__World_Data!$A$4:$DP$191,90,FALSE)","v":71.843000000000004},{"$f":"VLOOKUP($A129,F1__World_Data!$A$4:$DP$191,89,FALSE)","v":71.760000000000005},{"$f":"VLOOKUP($A129,F1__World_Data!$A$4:$DP$191,88,FALSE)","v":71.605000000000004},{"$f":"VLOOKUP($A129,F1__World_Data!$A$4:$DP$191,87,FALSE)","v":71.388000000000005},{"$f":"VLOOKUP($A129,F1__World_Data!$A$4:$DP$191,86,FALSE)","v":71.134},{"$f":"VLOOKUP($A129,F1__World_Data!$A$4:$DP$191,85,FALSE)","v":70.876000000000005},{"$f":"VLOOKUP($A129,F1__World_Data!$A$4:$DP$191,84,FALSE)","v":70.635000000000005},{"$f":"VLOOKUP($A129,F1__World_Data!$A$4:$DP$191,83,FALSE)","v":70.415999999999997},{"$f":"VLOOKUP($A129,F1__World_Data!$A$4:$DP$191,82,FALSE)","v":70.207999999999998},{"$f":"VLOOKUP($A129,F1__World_Data!$A$4:$DP$191,81,FALSE)","v":69.991},{"$f":"VLOOKUP($A129,F1__World_Data!$A$4:$DP$191,80,FALSE)","v":69.742000000000004},{"$f":"VLOOKUP($A129,F1__World_Data!$A$4:$DP$191,79,FALSE)","v":69.447999999999993},{"$f":"VLOOKUP($A129,F1__World_Data!$A$4:$DP$191,78,FALSE)","v":69.11},{"$f":"VLOOKUP($A129,F1__World_Data!$A$4:$DP$191,77,FALSE)","v":68.736000000000004},{"$f":"VLOOKUP($A129,F1__World_Data!$A$4:$DP$191,76,FALSE)","v":68.343000000000004},{"$f":"VLOOKUP($A129,F1__World_Data!$A$4:$DP$191,75,FALSE)","v":67.953000000000003},{"$f":"VLOOKUP($A129,F1__World_Data!$A$4:$DP$191,74,FALSE)","v":67.581999999999994},{"$f":"VLOOKUP($A129,F1__World_Data!$A$4:$DP$191,73,FALSE)","v":67.236999999999995},{"$f":"VLOOKUP($A129,F1__World_Data!$A$4:$DP$191,72,FALSE)","v":66.935000000000002},{"$f":"VLOOKUP($A129,F1__World_Data!$A$4:$DP$191,71,FALSE)","v":66.688999999999993},{"$f":"VLOOKUP($A129,F1__World_Data!$A$4:$DP$191,70,FALSE)","v":66.486999999999995},{"$f":"VLOOKUP($A129,F1__World_Data!$A$4:$DP$191,69,FALSE)","v":66.304000000000002},{"$f":"VLOOKUP($A129,F1__World_Data!$A$4:$DP$191,68,FALSE)","v":66.11},{"$f":"VLOOKUP($A129,F1__World_Data!$A$4:$DP$191,67,FALSE)","v":65.849999999999994},{"$f":"VLOOKUP($A129,F1__World_Data!$A$4:$DP$191,66,FALSE)","v":65.462999999999994},{"$f":"VLOOKUP($A129,F1__World_Data!$A$4:$DP$191,65,FALSE)","v":64.914000000000001},{"$f":"VLOOKUP($A129,F1__World_Data!$A$4:$DP$191,64,FALSE)","v":64.19},{"$f":"VLOOKUP($A129,F1__World_Data!$A$4:$DP$191,63,FALSE)","v":63.301000000000002},{"$f":"VLOOKUP($A129,F1__World_Data!$A$4:$DP$191,62,FALSE)","v":62.283000000000001}]
["Lithuania",{"$f":"VLOOKUP($A130,F1__World_Data!$A$4:$DP$191,60,FALSE)","v":2801.27},{"$f":"VLOOKUP($A130,F1__World_Data!$A$4:$DP$191,59,FALSE)","v":2845.4189999999999},{"$f":"VLOOKUP($A130,F1__World_Data!$A$4:$DP$191,58,FALSE)","v":2889.5549999999998},{"$f":"VLOOKUP($A130,F1__World_Data!$A$4:$DP$191,57,FALSE)","v":2931.8719999999998},{"$f":"VLOOKUP($A130,F1__World_Data!$A$4:$DP$191,56,FALSE)","v":2971.498},{"$f":"VLOOKUP($A130,F1__World_Data!$A$4:$DP$191,55,FALSE)","v":3008.9380000000001},{"$f":"VLOOKUP($A130,F1__World_Data!$A$4:$DP$191,54,FALSE)","v":3045.5610000000001},{"$f":"VLOOKUP($A130,F1__World_Data!$A$4:$DP$191,53,FALSE)","v":3083.402},{"$f":"VLOOKUP($A130,F1__World_Data!$A$4:$DP$191,52,FALSE)","v":3123.8249999999998},{"$f":"VLOOKUP($A130,F1__World_Data!$A$4:$DP$191,55,FALSE)","v":3008.9380000000001},{"$f":"VLOOKUP($A130,F1__World_Data!$A$4:$DP$191,50,FALSE)","v":3212.8670000000002},{"$f":"VLOOKUP($A130,F1__World_Data!$A$4:$DP$191,49,FALSE)","v":3258.9839999999999},{"$f":"VLOOKUP($A130,F1__World_Data!$A$4:$DP$191,48,FALSE)","v":3303.3290000000002},{"$f":"VLOOKUP($A130,F1__World_Data!$A$4:$DP$191,47,FALSE)","v":3344.259},{"$f":"VLOOKUP($A130,F1__World_Data!$A$4:$DP$191,46,FALSE)","v":3381.134},{"$f":"VLOOKUP($A130,F1__World_Data!$A$4:$DP$191,45,FALSE)","v":3414.3670000000002},{"$f":"VLOOKUP($A130,F1__World_Data!$A$4:$DP$191,44,FALSE)","v":3444.777},{"$f":"VLOOKUP($A130,F1__World_Data!$A$4:$DP$191,43,FALSE)","v":3473.623},{"$f":"VLOOKUP($A130,F1__World_Data!$A$4:$DP$191,42,FALSE)","v":3501.8420000000001},{"$f":"VLOOKUP($A130,F1__World_Data!$A$4:$DP$191,41,FALSE)","v":3529.1889999999999},{"$f":"VLOOKUP($A130,F1__World_Data!$A$4:$DP$191,40,FALSE)","v":3555.14},{"$f":"VLOOKUP($A130,F1__World_Data!$A$4:$DP$191,39,FALSE)","v":3579.9110000000001},{"$f":"VLOOKUP($A130,F1__World_Data!$A$4:$DP$191,38,FALSE)","v":3603.7559999999999},{"$f":"VLOOKUP($A130,F1__World_Data!$A$4:$DP$191,37,FALSE)","v":3626.6089999999999},{"$f":"VLOOKUP($A130,F1__World_Data!$A$4:$DP$191,36,FALSE)","v":3649.1419999999998},{"$f":"VLOOKUP($A130,F1__World_Data!$A$4:$DP$191,35,FALSE)","v":3670.6529999999998},{"$f":"VLOOKUP($A130,F1__World_Data!$A$4:$DP$191,34,FALSE)","v":3688.1030000000001},{"$f":"VLOOKUP($A130,F1__World_Data!$A$4:$DP$191,33,FALSE)","v":3697.451},{"$f":"VLOOKUP($A130,F1__World_Data!$A$4:$DP$191,32,FALSE)","v":3696.0349999999999},{"$f":"VLOOKUP($A130,F1__World_Data!$A$4:$DP$191,31,FALSE)","v":3682.5569999999998},{"$f":"VLOOKUP($A130,F1__World_Data!$A$4:$DP$191,30,FALSE)","v":3658.4960000000001},{"$f":"VLOOKUP($A130,F1__World_Data!$A$4:$DP$191,29,FALSE)","v":3627.326},{"$f":"VLOOKUP($A130,F1__World_Data!$A$4:$DP$191,28,FALSE)","v":3594.0639999999999},{"$f":"VLOOKUP($A130,F1__World_Data!$A$4:$DP$191,27,FALSE)","v":3562.3989999999999},{"$f":"VLOOKUP($A130,F1__World_Data!$A$4:$DP$191,26,FALSE)","v":3533.489},{"$f":"VLOOKUP($A130,F1__World_Data!$A$4:$DP$191,25,FALSE)","v":3506.55},{"$f":"VLOOKUP($A130,F1__World_Data!$A$4:$DP$191,24,FALSE)","v":3481.1280000000002},{"$f":"VLOOKUP($A130,F1__World_Data!$A$4:$DP$191,23,FALSE)","v":3456.1410000000001},{"$f":"VLOOKUP($A130,F1__World_Data!$A$4:$DP$191,22,FALSE)","v":3430.76},{"$f":"VLOOKUP($A130,F1__World_Data!$A$4:$DP$191,21,FALSE)","v":3405.1729999999998},{"$f":"VLOOKUP($A130,F1__World_Data!$A$4:$DP$191,20,FALSE)","v":3379.7939999999999},{"$f":"VLOOKUP($A130,F1__World_Data!$A$4:$DP$191,19,FALSE)","v":3354.067},{"$f":"VLOOKUP($A130,F1__World_Data!$A$4:$DP$191,18,FALSE)","v":3327.2629999999999},{"$f":"VLOOKUP($A130,F1__World_Data!$A$4:$DP$191,17,FALSE)","v":3298.8829999999998},{"$f":"VLOOKUP($A130,F1__World_Data!$A$4:$DP$191,16,FALSE)","v":3268.652},{"$f":"VLOOKUP($A130,F1__World_Data!$A$4:$DP$191,15,FALSE)","v":3236.739},{"$f":"VLOOKUP($A130,F1__World_Data!$A$4:$DP$191,14,FALSE)","v":3203.634},{"$f":"VLOOKUP($A130,F1__World_Data!$A$4:$DP$191,13,FALSE)","v":3170.0819999999999},{"$f":"VLOOKUP($A130,F1__World_Data!$A$4:$DP$191,12,FALSE)","v":3136.585},{"$f":"VLOOKUP($A130,F1__World_Data!$A$4:$DP$191,11,FALSE)","v":3103.509},{"$f":"VLOOKUP($A130,F1__World_Data!$A$4:$DP$191,10,FALSE)","v":3070.6979999999999},{"$f":"VLOOKUP($A130,F1__World_Data!$A$4:$DP$191,9,FALSE)","v":3037.4580000000001},{"$f":"VLOOKUP($A130,F1__World_Data!$A$4:$DP$191,8,FALSE)","v":3002.7919999999999},{"$f":"VLOOKUP($A130,F1__World_Data!$A$4:$DP$191,7,FALSE)","v":2966.165},{"$f":"VLOOKUP($A130,F1__World_Data!$A$4:$DP$191,6,FALSE)","v":2927.3850000000002},{"$f":"VLOOKUP($A130,F1__World_Data!$A$4:$DP$191,5,FALSE)","v":2887.0720000000001},{"$f":"VLOOKUP($A130,F1__World_Data!$A$4:$DP$191,4,FALSE)","v":2846.393},{"$f":"VLOOKUP($A130,F1__World_Data!$A$4:$DP$191,3,FALSE)","v":2806.924},{"$f":"VLOOKUP($A130,F1__World_Data!$A$4:$DP$191,2,FALSE)","v":2769.8789999999999},null,{"$f":"VLOOKUP($A130,F1__World_Data!$A$4:$DP$191,120,FALSE)","v":68.116},{"$f":"VLOOKUP($A130,F1__World_Data!$A$4:$DP$191,119,FALSE)","v":67.850999999999999},{"$f":"VLOOKUP($A130,F1__World_Data!$A$4:$DP$191,118,FALSE)","v":67.576999999999998},{"$f":"VLOOKUP($A130,F1__World_Data!$A$4:$DP$191,117,FALSE)","v":67.290999999999997},{"$f":"VLOOKUP($A130,F1__World_Data!$A$4:$DP$191,116,FALSE)","v":66.995000000000005},{"$f":"VLOOKUP($A130,F1__World_Data!$A$4:$DP$191,115,FALSE)","v":66.69},{"$f":"VLOOKUP($A130,F1__World_Data!$A$4:$DP$191,114,FALSE)","v":66.381},{"$f":"VLOOKUP($A130,F1__World_Data!$A$4:$DP$191,113,FALSE)","v":66.072000000000003},{"$f":"VLOOKUP($A130,F1__World_Data!$A$4:$DP$191,112,FALSE)","v":65.769000000000005},{"$f":"VLOOKUP($A130,F1__World_Data!$A$4:$DP$191,111,FALSE)","v":65.48},{"$f":"VLOOKUP($A130,F1__World_Data!$A$4:$DP$191,110,FALSE)","v":65.207999999999998},{"$f":"VLOOKUP($A130,F1__World_Data!$A$4:$DP$191,109,FALSE)","v":64.953000000000003},{"$f":"VLOOKUP($A130,F1__World_Data!$A$4:$DP$191,108,FALSE)","v":64.712000000000003},{"$f":"VLOOKUP($A130,F1__World_Data!$A$4:$DP$191,107,FALSE)","v":64.477999999999994},{"$f":"VLOOKUP($A130,F1__World_Data!$A$4:$DP$191,106,FALSE)","v":64.242000000000004},{"$f":"VLOOKUP($A130,F1__World_Data!$A$4:$DP$191,105,FALSE)","v":63.994999999999997},{"$f":"VLOOKUP($A130,F1__World_Data!$A$4:$DP$191,104,FALSE)","v":63.731000000000002},{"$f":"VLOOKUP($A130,F1__World_Data!$A$4:$DP$191,103,FALSE)","v":63.445999999999998},{"$f":"VLOOKUP($A130,F1__World_Data!$A$4:$DP$191,102,FALSE)","v":63.143999999999998},{"$f":"VLOOKUP($A130,F1__World_Data!$A$4:$DP$191,101,FALSE)","v":62.829000000000001},{"$f":"VLOOKUP($A130,F1__World_Data!$A$4:$DP$191,100,FALSE)","v":62.509},{"$f":"VLOOKUP($A130,F1__World_Data!$A$4:$DP$191,99,FALSE)","v":62.188000000000002},{"$f":"VLOOKUP($A130,F1__World_Data!$A$4:$DP$191,98,FALSE)","v":61.866},{"$f":"VLOOKUP($A130,F1__World_Data!$A$4:$DP$191,97,FALSE)","v":61.539000000000001},{"$f":"VLOOKUP($A130,F1__World_Data!$A$4:$DP$191,96,FALSE)","v":61.198},{"$f":"VLOOKUP($A130,F1__World_Data!$A$4:$DP$191,95,FALSE)","v":60.837000000000003},{"$f":"VLOOKUP($A130,F1__World_Data!$A$4:$DP$191,94,FALSE)","v":60.454999999999998},{"$f":"VLOOKUP($A130,F1__World_Data!$A$4:$DP$191,93,FALSE)","v":60.052999999999997},{"$f":"VLOOKUP($A130,F1__World_Data!$A$4:$DP$191,92,FALSE)","v":59.636000000000003},{"$f":"VLOOKUP($A130,F1__World_Data!$A$4:$DP$191,91,FALSE)","v":59.209000000000003},{"$f":"VLOOKUP($A130,F1__World_Data!$A$4:$DP$191,90,FALSE)","v":58.783000000000001},{"$f":"VLOOKUP($A130,F1__World_Data!$A$4:$DP$191,89,FALSE)","v":58.366},{"$f":"VLOOKUP($A130,F1__World_Data!$A$4:$DP$191,88,FALSE)","v":57.962000000000003},{"$f":"VLOOKUP($A130,F1__World_Data!$A$4:$DP$191,87,FALSE)","v":57.579000000000001},{"$f":"VLOOKUP($A130,F1__World_Data!$A$4:$DP$191,86,FALSE)","v":57.220999999999997},{"$f":"VLOOKUP($A130,F1__World_Data!$A$4:$DP$191,85,FALSE)","v":56.886000000000003},{"$f":"VLOOKUP($A130,F1__World_Data!$A$4:$DP$191,84,FALSE)","v":56.569000000000003},{"$f":"VLOOKUP($A130,F1__World_Data!$A$4:$DP$191,83,FALSE)","v":56.265999999999998},{"$f":"VLOOKUP($A130,F1__World_Data!$A$4:$DP$191,82,FALSE)","v":55.970999999999997},{"$f":"VLOOKUP($A130,F1__World_Data!$A$4:$DP$191,81,FALSE)","v":55.679000000000002},{"$f":"VLOOKUP($A130,F1__World_Data!$A$4:$DP$191,80,FALSE)","v":55.381999999999998},{"$f":"VLOOKUP($A130,F1__World_Data!$A$4:$DP$191,79,FALSE)","v":55.073999999999998},{"$f":"VLOOKUP($A130,F1__World_Data!$A$4:$DP$191,78,FALSE)","v":54.747999999999998},{"$f":"VLOOKUP($A130,F1__World_Data!$A$4:$DP$191,77,FALSE)","v":54.399000000000001},{"$f":"VLOOKUP($A130,F1__World_Data!$A$4:$DP$191,76,FALSE)","v":54.027000000000001},{"$f":"VLOOKUP($A130,F1__World_Data!$A$4:$DP$191,75,FALSE)","v":53.633000000000003},{"$f":"VLOOKUP($A130,F1__World_Data!$A$4:$DP$191,74,FALSE)","v":53.218000000000004},{"$f":"VLOOKUP($A130,F1__World_Data!$A$4:$DP$191,73,FALSE)","v":52.781999999999996},{"$f":"VLOOKUP($A130,F1__World_Data!$A$4:$DP$191,72,FALSE)","v":52.323},{"$f":"VLOOKUP($A130,F1__World_Data!$A$4:$DP$191,71,FALSE)","v":51.837000000000003},{"$f":"VLOOKUP($A130,F1__World_Data!$A$4:$DP$191,70,FALSE)","v":51.326999999999998},{"$f":"VLOOKUP($A130,F1__World_Data!$A$4:$DP$191,69,FALSE)","v":50.795999999999999},{"$f":"VLOOKUP($A130,F1__World_Data!$A$4:$DP$191,68,FALSE)","v":50.25},{"$f":"VLOOKUP($A130,F1__World_Data!$A$4:$DP$191,67,FALSE)","v":49.697000000000003},{"$f":"VLOOKUP($A130,F1__World_Data!$A$4:$DP$191,66,FALSE)","v":49.145000000000003},{"$f":"VLOOKUP($A130,F1__World_Data!$A$4:$DP$191,65,FALSE)","v":48.600999999999999},{"$f":"VLOOKUP($A130,F1__World_Data!$A$4:$DP$191,64,FALSE)","v":48.070999999999998},{"$f":"VLOOKUP($A130,F1__World_Data!$A$4:$DP$191,63,FALSE)","v":47.557000000000002},{"$f":"VLOOKUP($A130,F1__World_Data!$A$4:$DP$191,62,FALSE)","v":47.061}]
["Qatar",{"$f":"VLOOKUP($A131,F1__World_Data!$A$4:$DP$191,60,FALSE)","v":2781.6819999999998},{"$f":"VLOOKUP($A131,F1__World_Data!$A$4:$DP$191,59,FALSE)","v":2724.7269999999999},{"$f":"VLOOKUP($A131,F1__World_Data!$A$4:$DP$191,58,FALSE)","v":2654.3789999999999},{"$f":"VLOOKUP($A131,F1__World_Data!$A$4:$DP$191,57,FALSE)","v":2565.7080000000001},{"$f":"VLOOKUP($A131,F1__World_Data!$A$4:$DP$191,56,FALSE)","v":2459.2020000000002},{"$f":"VLOOKUP($A131,F1__World_Data!$A$4:$DP$191,55,FALSE)","v":2336.5790000000002},{"$f":"VLOOKUP($A131,F1__World_Data!$A$4:$DP$191,54,FALSE)","v":2196.078},{"$f":"VLOOKUP($A131,F1__World_Data!$A$4:$DP$191,53,FALSE)","v":2035.8620000000001},{"$f":"VLOOKUP($A131,F1__World_Data!$A$4:$DP$191,52,FALSE)","v":1856.329},{"$f":"VLOOKUP($A131,F1__World_Data!$A$4:$DP$191,55,FALSE)","v":2336.5790000000002},{"$f":"VLOOKUP($A131,F1__World_Data!$A$4:$DP$191,50,FALSE)","v":1436.67},{"$f":"VLOOKUP($A131,F1__World_Data!$A$4:$DP$191,49,FALSE)","v":1218.441},{"$f":"VLOOKUP($A131,F1__World_Data!$A$4:$DP$191,48,FALSE)","v":1022.704},{"$f":"VLOOKUP($A131,F1__World_Data!$A$4:$DP$191,47,FALSE)","v":865.41},{"$f":"VLOOKUP($A131,F1__World_Data!$A$4:$DP$191,46,FALSE)","v":753.33199999999999},{"$f":"VLOOKUP($A131,F1__World_Data!$A$4:$DP$191,45,FALSE)","v":681.79100000000005},{"$f":"VLOOKUP($A131,F1__World_Data!$A$4:$DP$191,44,FALSE)","v":640.87199999999996},{"$f":"VLOOKUP($A131,F1__World_Data!$A$4:$DP$191,43,FALSE)","v":615.01300000000003},{"$f":"VLOOKUP($A131,F1__World_Data!$A$4:$DP$191,42,FALSE)","v":592.46699999999998},{"$f":"VLOOKUP($A131,F1__World_Data!$A$4:$DP$191,41,FALSE)","v":570.48599999999999},{"$f":"VLOOKUP($A131,F1__World_Data!$A$4:$DP$191,40,FALSE)","v":551.56600000000003},{"$f":"VLOOKUP($A131,F1__World_Data!$A$4:$DP$191,39,FALSE)","v":535.32000000000005},{"$f":"VLOOKUP($A131,F1__World_Data!$A$4:$DP$191,38,FALSE)","v":522.53099999999995},{"$f":"VLOOKUP($A131,F1__World_Data!$A$4:$DP$191,37,FALSE)","v":513.447},{"$f":"VLOOKUP($A131,F1__World_Data!$A$4:$DP$191,36,FALSE)","v":507.04399999999998},{"$f":"VLOOKUP($A131,F1__World_Data!$A$4:$DP$191,35,FALSE)","v":501.47899999999998},{"$f":"VLOOKUP($A131,F1__World_Data!$A$4:$DP$191,34,FALSE)","v":495.40300000000002},{"$f":"VLOOKUP($A131,F1__World_Data!$A$4:$DP$191,33,FALSE)","v":487.35399999999998},{"$f":"VLOOKUP($A131,F1__World_Data!$A$4:$DP$191,32,FALSE)","v":476.27499999999998},{"$f":"VLOOKUP($A131,F1__World_Data!$A$4:$DP$191,31,FALSE)","v":461.68799999999999},{"$f":"VLOOKUP($A131,F1__World_Data!$A$4:$DP$191,30,FALSE)","v":443.61099999999999},{"$f":"VLOOKUP($A131,F1__World_Data!$A$4:$DP$191,29,FALSE)","v":422.154},{"$f":"VLOOKUP($A131,F1__World_Data!$A$4:$DP$191,28,FALSE)","v":397.73899999999998},{"$f":"VLOOKUP($A131,F1__World_Data!$A$4:$DP$191,27,FALSE)","v":370.88600000000002},{"$f":"VLOOKUP($A131,F1__World_Data!$A$4:$DP$191,26,FALSE)","v":341.27199999999999},{"$f":"VLOOKUP($A131,F1__World_Data!$A$4:$DP$191,25,FALSE)","v":309.29899999999998},{"$f":"VLOOKUP($A131,F1__World_Data!$A$4:$DP$191,24,FALSE)","v":277.22899999999998},{"$f":"VLOOKUP($A131,F1__World_Data!$A$4:$DP$191,23,FALSE)","v":247.98400000000001},{"$f":"VLOOKUP($A131,F1__World_Data!$A$4:$DP$191,22,FALSE)","v":223.62200000000001},{"$f":"VLOOKUP($A131,F1__World_Data!$A$4:$DP$191,21,FALSE)","v":205.172},{"$f":"VLOOKUP($A131,F1__World_Data!$A$4:$DP$191,20,FALSE)","v":191.947},{"$f":"VLOOKUP($A131,F1__World_Data!$A$4:$DP$191,19,FALSE)","v":182.31899999999999},{"$f":"VLOOKUP($A131,F1__World_Data!$A$4:$DP$191,18,FALSE)","v":173.71600000000001},{"$f":"VLOOKUP($A131,F1__World_Data!$A$4:$DP$191,17,FALSE)","v":164.31399999999999},{"$f":"VLOOKUP($A131,F1__World_Data!$A$4:$DP$191,16,FALSE)","v":153.624},{"$f":"VLOOKUP($A131,F1__World_Data!$A$4:$DP$191,15,FALSE)","v":142.18100000000001},{"$f":"VLOOKUP($A131,F1__World_Data!$A$4:$DP$191,14,FALSE)","v":130.505},{"$f":"VLOOKUP($A131,F1__World_Data!$A$4:$DP$191,13,FALSE)","v":119.413},{"$f":"VLOOKUP($A131,F1__World_Data!$A$4:$DP$191,12,FALSE)","v":109.521},{"$f":"VLOOKUP($A131,F1__World_Data!$A$4:$DP$191,11,FALSE)","v":100.88},{"$f":"VLOOKUP($A131,F1__World_Data!$A$4:$DP$191,10,FALSE)","v":93.206000000000003},{"$f":"VLOOKUP($A131,F1__World_Data!$A$4:$DP$191,9,FALSE)","v":86.298000000000002},{"$f":"VLOOKUP($A131,F1__World_Data!$A$4:$DP$191,8,FALSE)","v":79.849999999999994},{"$f":"VLOOKUP($A131,F1__World_Data!$A$4:$DP$191,7,FALSE)","v":73.631},{"$f":"VLOOKUP($A131,F1__World_Data!$A$4:$DP$191,6,FALSE)","v":67.561999999999998},{"$f":"VLOOKUP($A131,F1__World_Data!$A$4:$DP$191,5,FALSE)","v":61.720999999999997},{"$f":"VLOOKUP($A131,F1__World_Data!$A$4:$DP$191,4,FALSE)","v":56.265999999999998},{"$f":"VLOOKUP($A131,F1__World_Data!$A$4:$DP$191,3,FALSE)","v":51.427},{"$f":"VLOOKUP($A131,F1__World_Data!$A$4:$DP$191,2,FALSE)","v":47.383000000000003},null,{"$f":"VLOOKUP($A131,F1__World_Data!$A$4:$DP$191,120,FALSE)","v":68.116},{"$f":"VLOOKUP($A131,F1__World_Data!$A$4:$DP$191,119,FALSE)","v":67.850999999999999},{"$f":"VLOOKUP($A131,F1__World_Data!$A$4:$DP$191,118,FALSE)","v":67.576999999999998},{"$f":"VLOOKUP($A131,F1__World_Data!$A$4:$DP$191,117,FALSE)","v":67.290999999999997},{"$f":"VLOOKUP($A131,F1__World_Data!$A$4:$DP$191,116,FALSE)","v":66.995000000000005},{"$f":"VLOOKUP($A131,F1__World_Data!$A$4:$DP$191,115,FALSE)","v":66.69},{"$f":"VLOOKUP($A131,F1__World_Data!$A$4:$DP$191,114,FALSE)","v":66.381},{"$f":"VLOOKUP($A131,F1__World_Data!$A$4:$DP$191,113,FALSE)","v":66.072000000000003},{"$f":"VLOOKUP($A131,F1__World_Data!$A$4:$DP$191,112,FALSE)","v":65.769000000000005},{"$f":"VLOOKUP($A131,F1__World_Data!$A$4:$DP$191,111,FALSE)","v":65.48},{"$f":"VLOOKUP($A131,F1__World_Data!$A$4:$DP$191,110,FALSE)","v":65.207999999999998},{"$f":"VLOOKUP($A131,F1__World_Data!$A$4:$DP$191,109,FALSE)","v":64.953000000000003},{"$f":"VLOOKUP($A131,F1__World_Data!$A$4:$DP$191,108,FALSE)","v":64.712000000000003},{"$f":"VLOOKUP($A131,F1__World_Data!$A$4:$DP$191,107,FALSE)","v":64.477999999999994},{"$f":"VLOOKUP($A131,F1__World_Data!$A$4:$DP$191,106,FALSE)","v":64.242000000000004},{"$f":"VLOOKUP($A131,F1__World_Data!$A$4:$DP$191,105,FALSE)","v":63.994999999999997},{"$f":"VLOOKUP($A131,F1__World_Data!$A$4:$DP$191,104,FALSE)","v":63.731000000000002},{"$f":"VLOOKUP($A131,F1__World_Data!$A$4:$DP$191,103,FALSE)","v":63.445999999999998},{"$f":"VLOOKUP($A131,F1__World_Data!$A$4:$DP$191,102,FALSE)","v":63.143999999999998},{"$f":"VLOOKUP($A131,F1__World_Data!$A$4:$DP$191,101,FALSE)","v":62.829000000000001},{"$f":"VLOOKUP($A131,F1__World_Data!$A$4:$DP$191,100,FALSE)","v":62.509},{"$f":"VLOOKUP($A131,F1__World_Data!$A$4:$DP$191,99,FALSE)","v":62.188000000000002},{"$f":"VLOOKUP($A131,F1__World_Data!$A$4:$DP$191,98,FALSE)","v":61.866},{"$f":"VLOOKUP($A131,F1__World_Data!$A$4:$DP$191,97,FALSE)","v":61.539000000000001},{"$f":"VLOOKUP($A131,F1__World_Data!$A$4:$DP$191,96,FALSE)","v":61.198},{"$f":"VLOOKUP($A131,F1__World_Data!$A$4:$DP$191,95,FALSE)","v":60.837000000000003},{"$f":"VLOOKUP($A131,F1__World_Data!$A$4:$DP$191,94,FALSE)","v":60.454999999999998},{"$f":"VLOOKUP($A131,F1__World_Data!$A$4:$DP$191,93,FALSE)","v":60.052999999999997},{"$f":"VLOOKUP($A131,F1__World_Data!$A$4:$DP$191,92,FALSE)","v":59.636000000000003},{"$f":"VLOOKUP($A131,F1__World_Data!$A$4:$DP$191,91,FALSE)","v":59.209000000000003},{"$f":"VLOOKUP($A131,F1__World_Data!$A$4:$DP$191,90,FALSE)","v":58.783000000000001},{"$f":"VLOOKUP($A131,F1__World_Data!$A$4:$DP$191,89,FALSE)","v":58.366},{"$f":"VLOOKUP($A131,F1__World_Data!$A$4:$DP$191,88,FALSE)","v":57.962000000000003},{"$f":"VLOOKUP($A131,F1__World_Data!$A$4:$DP$191,87,FALSE)","v":57.579000000000001},{"$f":"VLOOKUP($A131,F1__World_Data!$A$4:$DP$191,86,FALSE)","v":57.220999999999997},{"$f":"VLOOKUP($A131,F1__World_Data!$A$4:$DP$191,85,FALSE)","v":56.886000000000003},{"$f":"VLOOKUP($A131,F1__World_Data!$A$4:$DP$191,84,FALSE)","v":56.569000000000003},{"$f":"VLOOKUP($A131,F1__World_Data!$A$4:$DP$191,83,FALSE)","v":56.265999999999998},{"$f":"VLOOKUP($A131,F1__World_Data!$A$4:$DP$191,82,FALSE)","v":55.970999999999997},{"$f":"VLOOKUP($A131,F1__World_Data!$A$4:$DP$191,81,FALSE)","v":55.679000000000002},{"$f":"VLOOKUP($A131,F1__World_Data!$A$4:$DP$191,80,FALSE)","v":55.381999999999998},{"$f":"VLOOKUP($A131,F1__World_Data!$A$4:$DP$191,79,FALSE)","v":55.073999999999998},{"$f":"VLOOKUP($A131,F1__World_Data!$A$4:$DP$191,78,FALSE)","v":54.747999999999998},{"$f":"VLOOKUP($A131,F1__World_Data!$A$4:$DP$191,77,FALSE)","v":54.399000000000001},{"$f":"VLOOKUP($A131,F1__World_Data!$A$4:$DP$191,76,FALSE)","v":54.027000000000001},{"$f":"VLOOKUP($A131,F1__World_Data!$A$4:$DP$191,75,FALSE)","v":53.633000000000003},{"$f":"VLOOKUP($A131,F1__World_Data!$A$4:$DP$191,74,FALSE)","v":53.218000000000004},{"$f":"VLOOKUP($A131,F1__World_Data!$A$4:$DP$191,73,FALSE)","v":52.781999999999996},{"$f":"VLOOKUP($A131,F1__World_Data!$A$4:$DP$191,72,FALSE)","v":52.323},{"$f":"VLOOKUP($A131,F1__World_Data!$A$4:$DP$191,71,FALSE)","v":51.837000000000003},{"$f":"VLOOKUP($A131,F1__World_Data!$A$4:$DP$191,70,FALSE)","v":51.326999999999998},{"$f":"VLOOKUP($A131,F1__World_Data!$A$4:$DP$191,69,FALSE)","v":50.795999999999999},{"$f":"VLOOKUP($A131,F1__World_Data!$A$4:$DP$191,68,FALSE)","v":50.25},{"$f":"VLOOKUP($A131,F1__World_Data!$A$4:$DP$191,67,FALSE)","v":49.697000000000003},{"$f":"VLOOKUP($A131,F1__World_Data!$A$4:$DP$191,66,FALSE)","v":49.145000000000003},{"$f":"VLOOKUP($A131,F1__World_Data!$A$4:$DP$191,65,FALSE)","v":48.600999999999999},{"$f":"VLOOKUP($A131,F1__World_Data!$A$4:$DP$191,64,FALSE)","v":48.070999999999998},{"$f":"VLOOKUP($A131,F1__World_Data!$A$4:$DP$191,63,FALSE)","v":47.557000000000002},{"$f":"VLOOKUP($A131,F1__World_Data!$A$4:$DP$191,62,FALSE)","v":47.061}]
["Namibia",{"$f":"VLOOKUP($A132,F1__World_Data!$A$4:$DP$191,60,FALSE)","v":2448.3000000000002},{"$f":"VLOOKUP($A132,F1__World_Data!$A$4:$DP$191,59,FALSE)","v":2402.623},{"$f":"VLOOKUP($A132,F1__World_Data!$A$4:$DP$191,58,FALSE)","v":2358.0439999999999},{"$f":"VLOOKUP($A132,F1__World_Data!$A$4:$DP$191,57,FALSE)","v":2314.9009999999998},{"$f":"VLOOKUP($A132,F1__World_Data!$A$4:$DP$191,56,FALSE)","v":2273.4259999999999},{"$f":"VLOOKUP($A132,F1__World_Data!$A$4:$DP$191,55,FALSE)","v":2233.5059999999999},{"$f":"VLOOKUP($A132,F1__World_Data!$A$4:$DP$191,54,FALSE)","v":2194.777},{"$f":"VLOOKUP($A132,F1__World_Data!$A$4:$DP$191,53,FALSE)","v":2156.6979999999999},{"$f":"VLOOKUP($A132,F1__World_Data!$A$4:$DP$191,52,FALSE)","v":2118.877},{"$f":"VLOOKUP($A132,F1__World_Data!$A$4:$DP$191,51,FALSE)","v":2081.0390000000002},{"$f":"VLOOKUP($A132,F1__World_Data!$A$4:$DP$191,50,FALSE)","v":2043.3820000000001},{"$f":"VLOOKUP($A132,F1__World_Data!$A$4:$DP$191,49,FALSE)","v":2006.5160000000001},{"$f":"VLOOKUP($A132,F1__World_Data!$A$4:$DP$191,48,FALSE)","v":1971.318},{"$f":"VLOOKUP($A132,F1__World_Data!$A$4:$DP$191,47,FALSE)","v":1938.316},{"$f":"VLOOKUP($A132,F1__World_Data!$A$4:$DP$191,46,FALSE)","v":1907.7370000000001},{"$f":"VLOOKUP($A132,F1__World_Data!$A$4:$DP$191,45,FALSE)","v":1879.1130000000001},{"$f":"VLOOKUP($A132,F1__World_Data!$A$4:$DP$191,44,FALSE)","v":1851.519},{"$f":"VLOOKUP($A132,F1__World_Data!$A$4:$DP$191,43,FALSE)","v":1823.6669999999999},{"$f":"VLOOKUP($A132,F1__World_Data!$A$4:$DP$191,42,FALSE)","v":1794.5830000000001},{"$f":"VLOOKUP($A132,F1__World_Data!$A$4:$DP$191,41,FALSE)","v":1763.8610000000001},{"$f":"VLOOKUP($A132,F1__World_Data!$A$4:$DP$191,40,FALSE)","v":1731.635},{"$f":"VLOOKUP($A132,F1__World_Data!$A$4:$DP$191,39,FALSE)","v":1698.029},{"$f":"VLOOKUP($A132,F1__World_Data!$A$4:$DP$191,38,FALSE)","v":1663.3779999999999},{"$f":"VLOOKUP($A132,F1__World_Data!$A$4:$DP$191,37,FALSE)","v":1627.866},{"$f":"VLOOKUP($A132,F1__World_Data!$A$4:$DP$191,36,FALSE)","v":1591.826},{"$f":"VLOOKUP($A132,F1__World_Data!$A$4:$DP$191,35,FALSE)","v":1555.098},{"$f":"VLOOKUP($A132,F1__World_Data!$A$4:$DP$191,34,FALSE)","v":1516.951},{"$f":"VLOOKUP($A132,F1__World_Data!$A$4:$DP$191,33,FALSE)","v":1476.3989999999999},{"$f":"VLOOKUP($A132,F1__World_Data!$A$4:$DP$191,32,FALSE)","v":1432.8989999999999},{"$f":"VLOOKUP($A132,F1__World_Data!$A$4:$DP$191,31,FALSE)","v":1386.011},{"$f":"VLOOKUP($A132,F1__World_Data!$A$4:$DP$191,30,FALSE)","v":1336.5450000000001},{"$f":"VLOOKUP($A132,F1__World_Data!$A$4:$DP$191,29,FALSE)","v":1286.796},{"$f":"VLOOKUP($A132,F1__World_Data!$A$4:$DP$191,28,FALSE)","v":1239.923},{"$f":"VLOOKUP($A132,F1__World_Data!$A$4:$DP$191,27,FALSE)","v":1198.1489999999999},{"$f":"VLOOKUP($A132,F1__World_Data!$A$4:$DP$191,26,FALSE)","v":1162.2819999999999},{"$f":"VLOOKUP($A132,F1__World_Data!$A$4:$DP$191,25,FALSE)","v":1131.624},{"$f":"VLOOKUP($A132,F1__World_Data!$A$4:$DP$191,24,FALSE)","v":1105.1030000000001},{"$f":"VLOOKUP($A132,F1__World_Data!$A$4:$DP$191,23,FALSE)","v":1080.9380000000001},{"$f":"VLOOKUP($A132,F1__World_Data!$A$4:$DP$191,22,FALSE)","v":1057.723},{"$f":"VLOOKUP($A132,F1__World_Data!$A$4:$DP$191,21,FALSE)","v":1035.3789999999999},{"$f":"VLOOKUP($A132,F1__World_Data!$A$4:$DP$191,20,FALSE)","v":1014.0549999999999},{"$f":"VLOOKUP($A132,F1__World_Data!$A$4:$DP$191,19,FALSE)","v":992.95500000000004},{"$f":"VLOOKUP($A132,F1__World_Data!$A$4:$DP$191,18,FALSE)","v":971.11699999999996},{"$f":"VLOOKUP($A132,F1__World_Data!$A$4:$DP$191,17,FALSE)","v":947.92499999999995},{"$f":"VLOOKUP($A132,F1__World_Data!$A$4:$DP$191,16,FALSE)","v":922.9},{"$f":"VLOOKUP($A132,F1__World_Data!$A$4:$DP$191,15,FALSE)","v":896.26400000000001},{"$f":"VLOOKUP($A132,F1__World_Data!$A$4:$DP$191,14,FALSE)","v":868.95399999999995},{"$f":"VLOOKUP($A132,F1__World_Data!$A$4:$DP$191,13,FALSE)","v":842.35299999999995},{"$f":"VLOOKUP($A132,F1__World_Data!$A$4:$DP$191,12,FALSE)","v":817.47400000000005},{"$f":"VLOOKUP($A132,F1__World_Data!$A$4:$DP$191,11,FALSE)","v":794.58799999999997},{"$f":"VLOOKUP($A132,F1__World_Data!$A$4:$DP$191,10,FALSE)","v":773.428},{"$f":"VLOOKUP($A132,F1__World_Data!$A$4:$DP$191,9,FALSE)","v":753.68299999999999},{"$f":"VLOOKUP($A132,F1__World_Data!$A$4:$DP$191,8,FALSE)","v":734.86599999999999},{"$f":"VLOOKUP($A132,F1__World_Data!$A$4:$DP$191,7,FALSE)","v":716.58799999999997},{"$f":"VLOOKUP($A132,F1__World_Data!$A$4:$DP$191,6,FALSE)","v":698.79700000000003},{"$f":"VLOOKUP($A132,F1__World_Data!$A$4:$DP$191,5,FALSE)","v":681.63300000000004},{"$f":"VLOOKUP($A132,F1__World_Data!$A$4:$DP$191,4,FALSE)","v":665.11900000000003},{"$f":"VLOOKUP($A132,F1__World_Data!$A$4:$DP$191,3,FALSE)","v":649.274},{"$f":"VLOOKUP($A132,F1__World_Data!$A$4:$DP$191,2,FALSE)","v":634.13800000000003},null,{"$f":"VLOOKUP($A132,F1__World_Data!$A$4:$DP$191,120,FALSE)","v":68.116},{"$f":"VLOOKUP($A132,F1__World_Data!$A$4:$DP$191,119,FALSE)","v":67.850999999999999},{"$f":"VLOOKUP($A132,F1__World_Data!$A$4:$DP$191,118,FALSE)","v":67.576999999999998},{"$f":"VLOOKUP($A132,F1__World_Data!$A$4:$DP$191,117,FALSE)","v":67.290999999999997},{"$f":"VLOOKUP($A132,F1__World_Data!$A$4:$DP$191,116,FALSE)","v":66.995000000000005},{"$f":"VLOOKUP($A132,F1__World_Data!$A$4:$DP$191,115,FALSE)","v":66.69},{"$f":"VLOOKUP($A132,F1__World_Data!$A$4:$DP$191,114,FALSE)","v":66.381},{"$f":"VLOOKUP($A132,F1__World_Data!$A$4:$DP$191,113,FALSE)","v":66.072000000000003},{"$f":"VLOOKUP($A132,F1__World_Data!$A$4:$DP$191,112,FALSE)","v":65.769000000000005},{"$f":"VLOOKUP($A132,F1__World_Data!$A$4:$DP$191,111,FALSE)","v":65.48},{"$f":"VLOOKUP($A132,F1__World_Data!$A$4:$DP$191,110,FALSE)","v":65.207999999999998},{"$f":"VLOOKUP($A132,F1__World_Data!$A$4:$DP$191,109,FALSE)","v":64.953000000000003},{"$f":"VLOOKUP($A132,F1__World_Data!$A$4:$DP$191,108,FALSE)","v":64.712000000000003},{"$f":"VLOOKUP($A132,F1__World_Data!$A$4:$DP$191,107,FALSE)","v":64.477999999999994},{"$f":"VLOOKUP($A132,F1__World_Data!$A$4:$DP$191,106,FALSE)","v":64.242000000000004},{"$f":"VLOOKUP($A132,F1__World_Data!$A$4:$DP$191,105,FALSE)","v":63.994999999999997},{"$f":"VLOOKUP($A132,F1__World_Data!$A$4:$DP$191,104,FALSE)","v":63.731000000000002},{"$f":"VLOOKUP($A132,F1__World_Data!$A$4:$DP$191,103,FALSE)","v":63.445999999999998},{"$f":"VLOOKUP($A132,F1__World_Data!$A$4:$DP$191,102,FALSE)","v":63.143999999999998},{"$f":"VLOOKUP($A132,F1__World_Data!$A$4:$DP$191,101,FALSE)","v":62.829000000000001},{"$f":"VLOOKUP($A132,F1__World_Data!$A$4:$DP$191,100,FALSE)","v":62.509},{"$f":"VLOOKUP($A132,F1__World_Data!$A$4:$DP$191,99,FALSE)","v":62.188000000000002},{"$f":"VLOOKUP($A132,F1__World_Data!$A$4:$DP$191,98,FALSE)","v":61.866},{"$f":"VLOOKUP($A132,F1__World_Data!$A$4:$DP$191,97,FALSE)","v":61.539000000000001},{"$f":"VLOOKUP($A132,F1__World_Data!$A$4:$DP$191,96,FALSE)","v":61.198},{"$f":"VLOOKUP($A132,F1__World_Data!$A$4:$DP$191,95,FALSE)","v":60.837000000000003},{"$f":"VLOOKUP($A132,F1__World_Data!$A$4:$DP$191,94,FALSE)","v":60.454999999999998},{"$f":"VLOOKUP($A132,F1__World_Data!$A$4:$DP$191,93,FALSE)","v":60.052999999999997},{"$f":"VLOOKUP($A132,F1__World_Data!$A$4:$DP$191,92,FALSE)","v":59.636000000000003},{"$f":"VLOOKUP($A132,F1__World_Data!$A$4:$DP$191,91,FALSE)","v":59.209000000000003},{"$f":"VLOOKUP($A132,F1__World_Data!$A$4:$DP$191,90,FALSE)","v":58.783000000000001},{"$f":"VLOOKUP($A132,F1__World_Data!$A$4:$DP$191,89,FALSE)","v":58.366},{"$f":"VLOOKUP($A132,F1__World_Data!$A$4:$DP$191,88,FALSE)","v":57.962000000000003},{"$f":"VLOOKUP($A132,F1__World_Data!$A$4:$DP$191,87,FALSE)","v":57.579000000000001},{"$f":"VLOOKUP($A132,F1__World_Data!$A$4:$DP$191,86,FALSE)","v":57.220999999999997},{"$f":"VLOOKUP($A132,F1__World_Data!$A$4:$DP$191,85,FALSE)","v":56.886000000000003},{"$f":"VLOOKUP($A132,F1__World_Data!$A$4:$DP$191,84,FALSE)","v":56.569000000000003},{"$f":"VLOOKUP($A132,F1__World_Data!$A$4:$DP$191,83,FALSE)","v":56.265999999999998},{"$f":"VLOOKUP($A132,F1__World_Data!$A$4:$DP$191,82,FALSE)","v":55.970999999999997},{"$f":"VLOOKUP($A132,F1__World_Data!$A$4:$DP$191,81,FALSE)","v":55.679000000000002},{"$f":"VLOOKUP($A132,F1__World_Data!$A$4:$DP$191,80,FALSE)","v":55.381999999999998},{"$f":"VLOOKUP($A132,F1__World_Data!$A$4:$DP$191,79,FALSE)","v":55.073999999999998},{"$f":"VLOOKUP($A132,F1__World_Data!$A$4:$DP$191,78,FALSE)","v":54.747999999999998},{"$f":"VLOOKUP($A132,F1__World_Data!$A$4:$DP$191,77,FALSE)","v":54.399000000000001},{"$f":"VLOOKUP($A132,F1__World_Data!$A$4:$DP$191,76,FALSE)","v":54.027000000000001},{"$f":"VLOOKUP($A132,F1__World_Data!$A$4:$DP$191,75,FALSE)","v":53.633000000000003},{"$f":"VLOOKUP($A132,F1__World_Data!$A$4:$DP$191,74,FALSE)","v":53.218000000000004},{"$f":"VLOOKUP($A132,F1__World_Data!$A$4:$DP$191,73,FALSE)","v":52.781999999999996},{"$f":"VLOOKUP($A132,F1__World_Data!$A$4:$DP$191,72,FALSE)","v":52.323},{"$f":"VLOOKUP($A132,F1__World_Data!$A$4:$DP$191,71,FALSE)","v":51.837000000000003},{"$f":"VLOOKUP($A132,F1__World_Data!$A$4:$DP$191,70,FALSE)","v":51.326999999999998},{"$f":"VLOOKUP($A132,F1__World_Data!$A$4:$DP$191,69,FALSE)","v":50.795999999999999},{"$f":"VLOOKUP($A132,F1__World_Data!$A$4:$DP$191,68,FALSE)","v":50.25},{"$f":"VLOOKUP($A132,F1__World_Data!$A$4:$DP$191,67,FALSE)","v":49.697000000000003},{"$f":"VLOOKUP($A132,F1__World_Data!$A$4:$DP$191,66,FALSE)","v":49.145000000000003},{"$f":"VLOOKUP($A132,F1__World_Data!$A$4:$DP$191,65,FALSE)","v":48.600999999999999},{"$f":"VLOOKUP($A132,F1__World_Data!$A$4:$DP$191,64,FALSE)","v":48.070999999999998},{"$f":"VLOOKUP($A132,F1__World_Data!$A$4:$DP$191,63,FALSE)","v":47.557000000000002},{"$f":"VLOOKUP($A132,F1__World_Data!$A$4:$DP$191,62,FALSE)","v":47.061}]
["Gambia",{"$f":"VLOOKUP($A133,F1__World_Data!$A$4:$DP$191,60,FALSE)","v":2280.0920000000001},{"$f":"VLOOKUP($A133,F1__World_Data!$A$4:$DP$191,59,FALSE)","v":2213.9},{"$f":"VLOOKUP($A133,F1__World_Data!$A$4:$DP$191,58,FALSE)","v":2149.134},{"$f":"VLOOKUP($A133,F1__World_Data!$A$4:$DP$191,57,FALSE)","v":2085.86},{"$f":"VLOOKUP($A133,F1__World_Data!$A$4:$DP$191,56,FALSE)","v":2024.037},{"$f":"VLOOKUP($A133,F1__World_Data!$A$4:$DP$191,55,FALSE)","v":1963.7080000000001},{"$f":"VLOOKUP($A133,F1__World_Data!$A$4:$DP$191,54,FALSE)","v":1905.02},{"$f":"VLOOKUP($A133,F1__World_Data!$A$4:$DP$191,53,FALSE)","v":1848.1420000000001},{"$f":"VLOOKUP($A133,F1__World_Data!$A$4:$DP$191,52,FALSE)","v":1793.1990000000001},{"$f":"VLOOKUP($A133,F1__World_Data!$A$4:$DP$191,51,FALSE)","v":1740.277},{"$f":"VLOOKUP($A133,F1__World_Data!$A$4:$DP$191,50,FALSE)","v":1689.288},{"$f":"VLOOKUP($A133,F1__World_Data!$A$4:$DP$191,49,FALSE)","v":1639.846},{"$f":"VLOOKUP($A133,F1__World_Data!$A$4:$DP$191,48,FALSE)","v":1591.444},{"$f":"VLOOKUP($A133,F1__World_Data!$A$4:$DP$191,47,FALSE)","v":1543.7449999999999},{"$f":"VLOOKUP($A133,F1__World_Data!$A$4:$DP$191,46,FALSE)","v":1496.5239999999999},{"$f":"VLOOKUP($A133,F1__World_Data!$A$4:$DP$191,45,FALSE)","v":1449.925},{"$f":"VLOOKUP($A133,F1__World_Data!$A$4:$DP$191,44,FALSE)","v":1404.2629999999999},{"$f":"VLOOKUP($A133,F1__World_Data!$A$4:$DP$191,43,FALSE)","v":1360.07},{"$f":"VLOOKUP($A133,F1__World_Data!$A$4:$DP$191,42,FALSE)","v":1317.7080000000001},{"$f":"VLOOKUP($A133,F1__World_Data!$A$4:$DP$191,41,FALSE)","v":1277.1179999999999},{"$f":"VLOOKUP($A133,F1__World_Data!$A$4:$DP$191,40,FALSE)","v":1238.124},{"$f":"VLOOKUP($A133,F1__World_Data!$A$4:$DP$191,39,FALSE)","v":1200.5219999999999},{"$f":"VLOOKUP($A133,F1__World_Data!$A$4:$DP$191,38,FALSE)","v":1164.0909999999999},{"$f":"VLOOKUP($A133,F1__World_Data!$A$4:$DP$191,37,FALSE)","v":1128.577},{"$f":"VLOOKUP($A133,F1__World_Data!$A$4:$DP$191,36,FALSE)","v":1094.2190000000001},{"$f":"VLOOKUP($A133,F1__World_Data!$A$4:$DP$191,35,FALSE)","v":1060.8610000000001},{"$f":"VLOOKUP($A133,F1__World_Data!$A$4:$DP$191,34,FALSE)","v":1027.4760000000001},{"$f":"VLOOKUP($A133,F1__World_Data!$A$4:$DP$191,33,FALSE)","v":992.67100000000005},{"$f":"VLOOKUP($A133,F1__World_Data!$A$4:$DP$191,32,FALSE)","v":955.59500000000003},{"$f":"VLOOKUP($A133,F1__World_Data!$A$4:$DP$191,31,FALSE)","v":915.63099999999997},{"$f":"VLOOKUP($A133,F1__World_Data!$A$4:$DP$191,30,FALSE)","v":873.44},{"$f":"VLOOKUP($A133,F1__World_Data!$A$4:$DP$191,29,FALSE)","v":831.01099999999997},{"$f":"VLOOKUP($A133,F1__World_Data!$A$4:$DP$191,28,FALSE)","v":791.14099999999996},{"$f":"VLOOKUP($A133,F1__World_Data!$A$4:$DP$191,27,FALSE)","v":755.79100000000005},{"$f":"VLOOKUP($A133,F1__World_Data!$A$4:$DP$191,26,FALSE)","v":725.68799999999999},{"$f":"VLOOKUP($A133,F1__World_Data!$A$4:$DP$191,25,FALSE)","v":700.19799999999998},{"$f":"VLOOKUP($A133,F1__World_Data!$A$4:$DP$191,24,FALSE)","v":678.11099999999999},{"$f":"VLOOKUP($A133,F1__World_Data!$A$4:$DP$191,23,FALSE)","v":657.58100000000002},{"$f":"VLOOKUP($A133,F1__World_Data!$A$4:$DP$191,22,FALSE)","v":637.25199999999995},{"$f":"VLOOKUP($A133,F1__World_Data!$A$4:$DP$191,21,FALSE)","v":616.77},{"$f":"VLOOKUP($A133,F1__World_Data!$A$4:$DP$191,20,FALSE)","v":596.54},{"$f":"VLOOKUP($A133,F1__World_Data!$A$4:$DP$191,19,FALSE)","v":576.755},{"$f":"VLOOKUP($A133,F1__World_Data!$A$4:$DP$191,18,FALSE)","v":557.80999999999995},{"$f":"VLOOKUP($A133,F1__World_Data!$A$4:$DP$191,17,FALSE)","v":539.98500000000001},{"$f":"VLOOKUP($A133,F1__World_Data!$A$4:$DP$191,16,FALSE)","v":523.25},{"$f":"VLOOKUP($A133,F1__World_Data!$A$4:$DP$191,15,FALSE)","v":507.428},{"$f":"VLOOKUP($A133,F1__World_Data!$A$4:$DP$191,14,FALSE)","v":492.42399999999998},{"$f":"VLOOKUP($A133,F1__World_Data!$A$4:$DP$191,13,FALSE)","v":478.10599999999999},{"$f":"VLOOKUP($A133,F1__World_Data!$A$4:$DP$191,12,FALSE)","v":464.404},{"$f":"VLOOKUP($A133,F1__World_Data!$A$4:$DP$191,11,FALSE)","v":451.22800000000001},{"$f":"VLOOKUP($A133,F1__World_Data!$A$4:$DP$191,10,FALSE)","v":438.59},{"$f":"VLOOKUP($A133,F1__World_Data!$A$4:$DP$191,9,FALSE)","v":426.62200000000001},{"$f":"VLOOKUP($A133,F1__World_Data!$A$4:$DP$191,8,FALSE)","v":415.47800000000001},{"$f":"VLOOKUP($A133,F1__World_Data!$A$4:$DP$191,7,FALSE)","v":405.25799999999998},{"$f":"VLOOKUP($A133,F1__World_Data!$A$4:$DP$191,6,FALSE)","v":396.012},{"$f":"VLOOKUP($A133,F1__World_Data!$A$4:$DP$191,5,FALSE)","v":387.63499999999999},{"$f":"VLOOKUP($A133,F1__World_Data!$A$4:$DP$191,4,FALSE)","v":379.88600000000002},{"$f":"VLOOKUP($A133,F1__World_Data!$A$4:$DP$191,3,FALSE)","v":372.43599999999998},{"$f":"VLOOKUP($A133,F1__World_Data!$A$4:$DP$191,2,FALSE)","v":365.04899999999998},null,{"$f":"VLOOKUP($A133,F1__World_Data!$A$4:$DP$191,120,FALSE)","v":82.548780487804891},{"$f":"VLOOKUP($A133,F1__World_Data!$A$4:$DP$191,119,FALSE)","v":82.29756097560977},{"$f":"VLOOKUP($A133,F1__World_Data!$A$4:$DP$191,118,FALSE)","v":82.046341463414635},{"$f":"VLOOKUP($A133,F1__World_Data!$A$4:$DP$191,117,FALSE)","v":81.795121951219528},{"$f":"VLOOKUP($A133,F1__World_Data!$A$4:$DP$191,116,FALSE)","v":81.592682926829269},{"$f":"VLOOKUP($A133,F1__World_Data!$A$4:$DP$191,115,FALSE)","v":81.341463414634148},{"$f":"VLOOKUP($A133,F1__World_Data!$A$4:$DP$191,114,FALSE)","v":81.090243902439042},{"$f":"VLOOKUP($A133,F1__World_Data!$A$4:$DP$191,113,FALSE)","v":80.839024390243921},{"$f":"VLOOKUP($A133,F1__World_Data!$A$4:$DP$191,112,FALSE)","v":80.587804878048786},{"$f":"VLOOKUP($A133,F1__World_Data!$A$4:$DP$191,111,FALSE)","v":80.387804878048797},{"$f":"VLOOKUP($A133,F1__World_Data!$A$4:$DP$191,110,FALSE)","v":80.139024390243918},{"$f":"VLOOKUP($A133,F1__World_Data!$A$4:$DP$191,109,FALSE)","v":79.890243902439039},{"$f":"VLOOKUP($A133,F1__World_Data!$A$4:$DP$191,108,FALSE)","v":79.690243902439036},{"$f":"VLOOKUP($A133,F1__World_Data!$A$4:$DP$191,107,FALSE)","v":79.441463414634157},{"$f":"VLOOKUP($A133,F1__World_Data!$A$4:$DP$191,106,FALSE)","v":79.190243902439036},{"$f":"VLOOKUP($A133,F1__World_Data!$A$4:$DP$191,105,FALSE)","v":78.990243902439033},{"$f":"VLOOKUP($A133,F1__World_Data!$A$4:$DP$191,104,FALSE)","v":78.787804878048775},{"$f":"VLOOKUP($A133,F1__World_Data!$A$4:$DP$191,103,FALSE)","v":78.636585365853662},{"$f":"VLOOKUP($A133,F1__World_Data!$A$4:$DP$191,102,FALSE)","v":78.434146341463432},{"$f":"VLOOKUP($A133,F1__World_Data!$A$4:$DP$191,101,FALSE)","v":78.280487804878064},{"$f":"VLOOKUP($A133,F1__World_Data!$A$4:$DP$191,100,FALSE)","v":78.026829268292687},{"$f":"VLOOKUP($A133,F1__World_Data!$A$4:$DP$191,99,FALSE)","v":77.824390243902457},{"$f":"VLOOKUP($A133,F1__World_Data!$A$4:$DP$191,98,FALSE)","v":77.57073170731708},{"$f":"VLOOKUP($A133,F1__World_Data!$A$4:$DP$191,97,FALSE)","v":77.368292682926835},{"$f":"VLOOKUP($A133,F1__World_Data!$A$4:$DP$191,96,FALSE)","v":77.065853658536597},{"$f":"VLOOKUP($A133,F1__World_Data!$A$4:$DP$191,95,FALSE)","v":76.81463414634149},{"$f":"VLOOKUP($A133,F1__World_Data!$A$4:$DP$191,94,FALSE)","v":76.614634146341473},{"$f":"VLOOKUP($A133,F1__World_Data!$A$4:$DP$191,93,FALSE)","v":76.41463414634147},{"$f":"VLOOKUP($A133,F1__World_Data!$A$4:$DP$191,92,FALSE)","v":76.114634146341487},{"$f":"VLOOKUP($A133,F1__World_Data!$A$4:$DP$191,91,FALSE)","v":75.91463414634147},{"$f":"VLOOKUP($A133,F1__World_Data!$A$4:$DP$191,90,FALSE)","v":75.714634146341467},{"$f":"VLOOKUP($A133,F1__World_Data!$A$4:$DP$191,89,FALSE)","v":75.465853658536588},{"$f":"VLOOKUP($A133,F1__World_Data!$A$4:$DP$191,88,FALSE)","v":75.214634146341467},{"$f":"VLOOKUP($A133,F1__World_Data!$A$4:$DP$191,87,FALSE)","v":0},{"$f":"VLOOKUP($A133,F1__World_Data!$A$4:$DP$191,86,FALSE)","v":0},{"$f":"VLOOKUP($A133,F1__World_Data!$A$4:$DP$191,85,FALSE)","v":0},{"$f":"VLOOKUP($A133,F1__World_Data!$A$4:$DP$191,84,FALSE)","v":0},{"$f":"VLOOKUP($A133,F1__World_Data!$A$4:$DP$191,83,FALSE)","v":0},{"$f":"VLOOKUP($A133,F1__World_Data!$A$4:$DP$191,82,FALSE)","v":0},{"$f":"VLOOKUP($A133,F1__World_Data!$A$4:$DP$191,81,FALSE)","v":0},{"$f":"VLOOKUP($A133,F1__World_Data!$A$4:$DP$191,80,FALSE)","v":75.98536585365855},{"$f":"VLOOKUP($A133,F1__World_Data!$A$4:$DP$191,79,FALSE)","v":0},{"$f":"VLOOKUP($A133,F1__World_Data!$A$4:$DP$191,78,FALSE)","v":0},{"$f":"VLOOKUP($A133,F1__World_Data!$A$4:$DP$191,77,FALSE)","v":0},{"$f":"VLOOKUP($A133,F1__World_Data!$A$4:$DP$191,76,FALSE)","v":0},{"$f":"VLOOKUP($A133,F1__World_Data!$A$4:$DP$191,75,FALSE)","v":74.497560975609773},{"$f":"VLOOKUP($A133,F1__World_Data!$A$4:$DP$191,74,FALSE)","v":0},{"$f":"VLOOKUP($A133,F1__World_Data!$A$4:$DP$191,73,FALSE)","v":0},{"$f":"VLOOKUP($A133,F1__World_Data!$A$4:$DP$191,72,FALSE)","v":0},{"$f":"VLOOKUP($A133,F1__World_Data!$A$4:$DP$191,71,FALSE)","v":0},{"$f":"VLOOKUP($A133,F1__World_Data!$A$4:$DP$191,70,FALSE)","v":0},{"$f":"VLOOKUP($A133,F1__World_Data!$A$4:$DP$191,69,FALSE)","v":0},{"$f":"VLOOKUP($A133,F1__World_Data!$A$4:$DP$191,68,FALSE)","v":0},{"$f":"VLOOKUP($A133,F1__World_Data!$A$4:$DP$191,67,FALSE)","v":0},{"$f":"VLOOKUP($A133,F1__World_Data!$A$4:$DP$191,66,FALSE)","v":0},{"$f":"VLOOKUP($A133,F1__World_Data!$A$4:$DP$191,65,FALSE)","v":0},{"$f":"VLOOKUP($A133,F1__World_Data!$A$4:$DP$191,64,FALSE)","v":0},{"$f":"VLOOKUP($A133,F1__World_Data!$A$4:$DP$191,63,FALSE)","v":0},{"$f":"VLOOKUP($A133,F1__World_Data!$A$4:$DP$191,62,FALSE)","v":0}]
["Botswana",{"$f":"VLOOKUP($A134,F1__World_Data!$A$4:$DP$191,60,FALSE)","v":2254.067},{"$f":"VLOOKUP($A134,F1__World_Data!$A$4:$DP$191,59,FALSE)","v":2205.076},{"$f":"VLOOKUP($A134,F1__World_Data!$A$4:$DP$191,58,FALSE)","v":2159.9250000000002},{"$f":"VLOOKUP($A134,F1__World_Data!$A$4:$DP$191,57,FALSE)","v":2120.7159999999999},{"$f":"VLOOKUP($A134,F1__World_Data!$A$4:$DP$191,56,FALSE)","v":2088.6190000000001},{"$f":"VLOOKUP($A134,F1__World_Data!$A$4:$DP$191,55,FALSE)","v":2062.5509999999999},{"$f":"VLOOKUP($A134,F1__World_Data!$A$4:$DP$191,54,FALSE)","v":2039.5509999999999},{"$f":"VLOOKUP($A134,F1__World_Data!$A$4:$DP$191,53,FALSE)","v":2015.4059999999999},{"$f":"VLOOKUP($A134,F1__World_Data!$A$4:$DP$191,52,FALSE)","v":1987.106},{"$f":"VLOOKUP($A134,F1__World_Data!$A$4:$DP$191,51,FALSE)","v":1953.4949999999999},{"$f":"VLOOKUP($A134,F1__World_Data!$A$4:$DP$191,50,FALSE)","v":1915.636},{"$f":"VLOOKUP($A134,F1__World_Data!$A$4:$DP$191,49,FALSE)","v":1875.4580000000001},{"$f":"VLOOKUP($A134,F1__World_Data!$A$4:$DP$191,48,FALSE)","v":1835.9110000000001},{"$f":"VLOOKUP($A134,F1__World_Data!$A$4:$DP$191,47,FALSE)","v":1799.077},{"$f":"VLOOKUP($A134,F1__World_Data!$A$4:$DP$191,46,FALSE)","v":1765.5329999999999},{"$f":"VLOOKUP($A134,F1__World_Data!$A$4:$DP$191,45,FALSE)","v":1734.3869999999999},{"$f":"VLOOKUP($A134,F1__World_Data!$A$4:$DP$191,44,FALSE)","v":1704.6369999999999},{"$f":"VLOOKUP($A134,F1__World_Data!$A$4:$DP$191,43,FALSE)","v":1674.674},{"$f":"VLOOKUP($A134,F1__World_Data!$A$4:$DP$191,42,FALSE)","v":1643.3330000000001},{"$f":"VLOOKUP($A134,F1__World_Data!$A$4:$DP$191,41,FALSE)","v":1610.26},{"$f":"VLOOKUP($A134,F1__World_Data!$A$4:$DP$191,40,FALSE)","v":1575.827},{"$f":"VLOOKUP($A134,F1__World_Data!$A$4:$DP$191,39,FALSE)","v":1540.424},{"$f":"VLOOKUP($A134,F1__World_Data!$A$4:$DP$191,38,FALSE)","v":1504.7239999999999},{"$f":"VLOOKUP($A134,F1__World_Data!$A$4:$DP$191,37,FALSE)","v":1469.173},{"$f":"VLOOKUP($A134,F1__World_Data!$A$4:$DP$191,36,FALSE)","v":1434.0609999999999},{"$f":"VLOOKUP($A134,F1__World_Data!$A$4:$DP$191,35,FALSE)","v":1399.11},{"$f":"VLOOKUP($A134,F1__World_Data!$A$4:$DP$191,34,FALSE)","v":1363.5409999999999},{"$f":"VLOOKUP($A134,F1__World_Data!$A$4:$DP$191,33,FALSE)","v":1326.3209999999999},{"$f":"VLOOKUP($A134,F1__World_Data!$A$4:$DP$191,32,FALSE)","v":1286.7560000000001},{"$f":"VLOOKUP($A134,F1__World_Data!$A$4:$DP$191,31,FALSE)","v":1244.4839999999999},{"$f":"VLOOKUP($A134,F1__World_Data!$A$4:$DP$191,30,FALSE)","v":1200.0730000000001},{"$f":"VLOOKUP($A134,F1__World_Data!$A$4:$DP$191,29,FALSE)","v":1154.904},{"$f":"VLOOKUP($A134,F1__World_Data!$A$4:$DP$191,28,FALSE)","v":1110.9480000000001},{"$f":"VLOOKUP($A134,F1__World_Data!$A$4:$DP$191,27,FALSE)","v":1069.585},{"$f":"VLOOKUP($A134,F1__World_Data!$A$4:$DP$191,26,FALSE)","v":1031.4390000000001},{"$f":"VLOOKUP($A134,F1__World_Data!$A$4:$DP$191,25,FALSE)","v":996.12400000000002},{"$f":"VLOOKUP($A134,F1__World_Data!$A$4:$DP$191,24,FALSE)","v":962.85900000000004},{"$f":"VLOOKUP($A134,F1__World_Data!$A$4:$DP$191,23,FALSE)","v":930.41200000000003},{"$f":"VLOOKUP($A134,F1__World_Data!$A$4:$DP$191,22,FALSE)","v":897.86},{"$f":"VLOOKUP($A134,F1__World_Data!$A$4:$DP$191,21,FALSE)","v":865.07299999999998},{"$f":"VLOOKUP($A134,F1__World_Data!$A$4:$DP$191,20,FALSE)","v":832.46699999999998},{"$f":"VLOOKUP($A134,F1__World_Data!$A$4:$DP$191,19,FALSE)","v":800.53200000000004},{"$f":"VLOOKUP($A134,F1__World_Data!$A$4:$DP$191,18,FALSE)","v":769.98199999999997},{"$f":"VLOOKUP($A134,F1__World_Data!$A$4:$DP$191,17,FALSE)","v":741.346},{"$f":"VLOOKUP($A134,F1__World_Data!$A$4:$DP$191,16,FALSE)","v":714.70100000000002},{"$f":"VLOOKUP($A134,F1__World_Data!$A$4:$DP$191,15,FALSE)","v":689.90599999999995},{"$f":"VLOOKUP($A134,F1__World_Data!$A$4:$DP$191,14,FALSE)","v":667.096},{"$f":"VLOOKUP($A134,F1__World_Data!$A$4:$DP$191,13,FALSE)","v":646.35},{"$f":"VLOOKUP($A134,F1__World_Data!$A$4:$DP$191,12,FALSE)","v":627.71400000000006},{"$f":"VLOOKUP($A134,F1__World_Data!$A$4:$DP$191,11,FALSE)","v":611.29700000000003},{"$f":"VLOOKUP($A134,F1__World_Data!$A$4:$DP$191,10,FALSE)","v":596.94600000000003},{"$f":"VLOOKUP($A134,F1__World_Data!$A$4:$DP$191,9,FALSE)","v":584.09799999999996},{"$f":"VLOOKUP($A134,F1__World_Data!$A$4:$DP$191,8,FALSE)","v":571.95699999999999},{"$f":"VLOOKUP($A134,F1__World_Data!$A$4:$DP$191,7,FALSE)","v":559.99599999999998},{"$f":"VLOOKUP($A134,F1__World_Data!$A$4:$DP$191,6,FALSE)","v":547.87},{"$f":"VLOOKUP($A134,F1__World_Data!$A$4:$DP$191,5,FALSE)","v":535.69200000000001},{"$f":"VLOOKUP($A134,F1__World_Data!$A$4:$DP$191,4,FALSE)","v":523.77700000000004},{"$f":"VLOOKUP($A134,F1__World_Data!$A$4:$DP$191,3,FALSE)","v":512.68799999999999},{"$f":"VLOOKUP($A134,F1__World_Data!$A$4:$DP$191,2,FALSE)","v":502.733},null,{"$f":"VLOOKUP($A134,F1__World_Data!$A$4:$DP$191,120,FALSE)","v":61.47},{"$f":"VLOOKUP($A134,F1__World_Data!$A$4:$DP$191,119,FALSE)","v":61.173999999999999},{"$f":"VLOOKUP($A134,F1__World_Data!$A$4:$DP$191,118,FALSE)","v":60.884999999999998},{"$f":"VLOOKUP($A134,F1__World_Data!$A$4:$DP$191,117,FALSE)","v":60.607999999999997},{"$f":"VLOOKUP($A134,F1__World_Data!$A$4:$DP$191,116,FALSE)","v":60.344999999999999},{"$f":"VLOOKUP($A134,F1__World_Data!$A$4:$DP$191,115,FALSE)","v":60.091999999999999},{"$f":"VLOOKUP($A134,F1__World_Data!$A$4:$DP$191,114,FALSE)","v":59.841999999999999},{"$f":"VLOOKUP($A134,F1__World_Data!$A$4:$DP$191,113,FALSE)","v":59.59},{"$f":"VLOOKUP($A134,F1__World_Data!$A$4:$DP$191,112,FALSE)","v":59.317999999999998},{"$f":"VLOOKUP($A134,F1__World_Data!$A$4:$DP$191,111,FALSE)","v":59.009},{"$f":"VLOOKUP($A134,F1__World_Data!$A$4:$DP$191,110,FALSE)","v":58.654000000000003},{"$f":"VLOOKUP($A134,F1__World_Data!$A$4:$DP$191,109,FALSE)","v":58.255000000000003},{"$f":"VLOOKUP($A134,F1__World_Data!$A$4:$DP$191,108,FALSE)","v":57.817},{"$f":"VLOOKUP($A134,F1__World_Data!$A$4:$DP$191,107,FALSE)","v":57.354999999999997},{"$f":"VLOOKUP($A134,F1__World_Data!$A$4:$DP$191,106,FALSE)","v":56.887},{"$f":"VLOOKUP($A134,F1__World_Data!$A$4:$DP$191,105,FALSE)","v":56.436},{"$f":"VLOOKUP($A134,F1__World_Data!$A$4:$DP$191,104,FALSE)","v":56.024999999999999},{"$f":"VLOOKUP($A134,F1__World_Data!$A$4:$DP$191,103,FALSE)","v":55.667999999999999},{"$f":"VLOOKUP($A134,F1__World_Data!$A$4:$DP$191,102,FALSE)","v":55.390999999999998},{"$f":"VLOOKUP($A134,F1__World_Data!$A$4:$DP$191,101,FALSE)","v":55.218000000000004},{"$f":"VLOOKUP($A134,F1__World_Data!$A$4:$DP$191,100,FALSE)","v":55.139000000000003},{"$f":"VLOOKUP($A134,F1__World_Data!$A$4:$DP$191,99,FALSE)","v":55.133000000000003},{"$f":"VLOOKUP($A134,F1__World_Data!$A$4:$DP$191,98,FALSE)","v":55.17},{"$f":"VLOOKUP($A134,F1__World_Data!$A$4:$DP$191,97,FALSE)","v":55.203000000000003},{"$f":"VLOOKUP($A134,F1__World_Data!$A$4:$DP$191,96,FALSE)","v":55.173999999999999},{"$f":"VLOOKUP($A134,F1__World_Data!$A$4:$DP$191,95,FALSE)","v":55.042000000000002},{"$f":"VLOOKUP($A134,F1__World_Data!$A$4:$DP$191,94,FALSE)","v":54.776000000000003},{"$f":"VLOOKUP($A134,F1__World_Data!$A$4:$DP$191,93,FALSE)","v":54.366},{"$f":"VLOOKUP($A134,F1__World_Data!$A$4:$DP$191,92,FALSE)","v":53.811999999999998},{"$f":"VLOOKUP($A134,F1__World_Data!$A$4:$DP$191,91,FALSE)","v":53.131999999999998},{"$f":"VLOOKUP($A134,F1__World_Data!$A$4:$DP$191,90,FALSE)","v":52.372},{"$f":"VLOOKUP($A134,F1__World_Data!$A$4:$DP$191,89,FALSE)","v":51.581000000000003},{"$f":"VLOOKUP($A134,F1__World_Data!$A$4:$DP$191,88,FALSE)","v":50.79},{"$f":"VLOOKUP($A134,F1__World_Data!$A$4:$DP$191,87,FALSE)","v":50.033999999999999},{"$f":"VLOOKUP($A134,F1__World_Data!$A$4:$DP$191,86,FALSE)","v":49.338999999999999},{"$f":"VLOOKUP($A134,F1__World_Data!$A$4:$DP$191,85,FALSE)","v":48.71},{"$f":"VLOOKUP($A134,F1__World_Data!$A$4:$DP$191,84,FALSE)","v":48.145000000000003},{"$f":"VLOOKUP($A134,F1__World_Data!$A$4:$DP$191,83,FALSE)","v":47.643000000000001},{"$f":"VLOOKUP($A134,F1__World_Data!$A$4:$DP$191,82,FALSE)","v":47.19},{"$f":"VLOOKUP($A134,F1__World_Data!$A$4:$DP$191,81,FALSE)","v":46.764000000000003},{"$f":"VLOOKUP($A134,F1__World_Data!$A$4:$DP$191,80,FALSE)","v":46.335000000000001},{"$f":"VLOOKUP($A134,F1__World_Data!$A$4:$DP$191,79,FALSE)","v":45.883000000000003},{"$f":"VLOOKUP($A134,F1__World_Data!$A$4:$DP$191,78,FALSE)","v":45.399000000000001},{"$f":"VLOOKUP($A134,F1__World_Data!$A$4:$DP$191,77,FALSE)","v":44.881999999999998},{"$f":"VLOOKUP($A134,F1__World_Data!$A$4:$DP$191,76,FALSE)","v":44.337000000000003},{"$f":"VLOOKUP($A134,F1__World_Data!$A$4:$DP$191,75,FALSE)","v":43.780999999999999},{"$f":"VLOOKUP($A134,F1__World_Data!$A$4:$DP$191,74,FALSE)","v":43.228999999999999},{"$f":"VLOOKUP($A134,F1__World_Data!$A$4:$DP$191,73,FALSE)","v":42.683999999999997},{"$f":"VLOOKUP($A134,F1__World_Data!$A$4:$DP$191,72,FALSE)","v":42.152000000000001},{"$f":"VLOOKUP($A134,F1__World_Data!$A$4:$DP$191,71,FALSE)","v":41.63},{"$f":"VLOOKUP($A134,F1__World_Data!$A$4:$DP$191,70,FALSE)","v":41.116999999999997},{"$f":"VLOOKUP($A134,F1__World_Data!$A$4:$DP$191,69,FALSE)","v":40.61},{"$f":"VLOOKUP($A134,F1__World_Data!$A$4:$DP$191,68,FALSE)","v":40.109000000000002},{"$f":"VLOOKUP($A134,F1__World_Data!$A$4:$DP$191,67,FALSE)","v":39.615000000000002},{"$f":"VLOOKUP($A134,F1__World_Data!$A$4:$DP$191,66,FALSE)","v":39.130000000000003},{"$f":"VLOOKUP($A134,F1__World_Data!$A$4:$DP$191,65,FALSE)","v":38.655000000000001},{"$f":"VLOOKUP($A134,F1__World_Data!$A$4:$DP$191,64,FALSE)","v":38.188000000000002},{"$f":"VLOOKUP($A134,F1__World_Data!$A$4:$DP$191,63,FALSE)","v":37.726999999999997},{"$f":"VLOOKUP($A134,F1__World_Data!$A$4:$DP$191,62,FALSE)","v":37.271000000000001}]
["Gabon",{"$f":"VLOOKUP($A135,F1__World_Data!$A$4:$DP$191,60,FALSE)","v":2119.2750000000001},{"$f":"VLOOKUP($A135,F1__World_Data!$A$4:$DP$191,59,FALSE)","v":2064.8119999999999},{"$f":"VLOOKUP($A135,F1__World_Data!$A$4:$DP$191,58,FALSE)","v":2007.8820000000001},{"$f":"VLOOKUP($A135,F1__World_Data!$A$4:$DP$191,57,FALSE)","v":1947.69},{"$f":"VLOOKUP($A135,F1__World_Data!$A$4:$DP$191,56,FALSE)","v":1883.8009999999999},{"$f":"VLOOKUP($A135,F1__World_Data!$A$4:$DP$191,55,FALSE)","v":1817.07},{"$f":"VLOOKUP($A135,F1__World_Data!$A$4:$DP$191,54,FALSE)","v":1749.6769999999999},{"$f":"VLOOKUP($A135,F1__World_Data!$A$4:$DP$191,53,FALSE)","v":1684.6289999999999},{"$f":"VLOOKUP($A135,F1__World_Data!$A$4:$DP$191,52,FALSE)","v":1624.146},{"$f":"VLOOKUP($A135,F1__World_Data!$A$4:$DP$191,51,FALSE)","v":1568.925},{"$f":"VLOOKUP($A135,F1__World_Data!$A$4:$DP$191,50,FALSE)","v":1518.538},{"$f":"VLOOKUP($A135,F1__World_Data!$A$4:$DP$191,49,FALSE)","v":1472.5650000000001},{"$f":"VLOOKUP($A135,F1__World_Data!$A$4:$DP$191,48,FALSE)","v":1430.144},{"$f":"VLOOKUP($A135,F1__World_Data!$A$4:$DP$191,47,FALSE)","v":1390.55},{"$f":"VLOOKUP($A135,F1__World_Data!$A$4:$DP$191,46,FALSE)","v":1353.788},{"$f":"VLOOKUP($A135,F1__World_Data!$A$4:$DP$191,45,FALSE)","v":1319.9459999999999},{"$f":"VLOOKUP($A135,F1__World_Data!$A$4:$DP$191,44,FALSE)","v":1288.31},{"$f":"VLOOKUP($A135,F1__World_Data!$A$4:$DP$191,43,FALSE)","v":1258.008},{"$f":"VLOOKUP($A135,F1__World_Data!$A$4:$DP$191,42,FALSE)","v":1228.3589999999999},{"$f":"VLOOKUP($A135,F1__World_Data!$A$4:$DP$191,41,FALSE)","v":1199.058},{"$f":"VLOOKUP($A135,F1__World_Data!$A$4:$DP$191,40,FALSE)","v":1170.0609999999999},{"$f":"VLOOKUP($A135,F1__World_Data!$A$4:$DP$191,39,FALSE)","v":1141.3320000000001},{"$f":"VLOOKUP($A135,F1__World_Data!$A$4:$DP$191,38,FALSE)","v":1112.944},{"$f":"VLOOKUP($A135,F1__World_Data!$A$4:$DP$191,37,FALSE)","v":1084.951},{"$f":"VLOOKUP($A135,F1__World_Data!$A$4:$DP$191,36,FALSE)","v":1057.252},{"$f":"VLOOKUP($A135,F1__World_Data!$A$4:$DP$191,35,FALSE)","v":1029.769},{"$f":"VLOOKUP($A135,F1__World_Data!$A$4:$DP$191,34,FALSE)","v":1002.573},{"$f":"VLOOKUP($A135,F1__World_Data!$A$4:$DP$191,33,FALSE)","v":975.78499999999997},{"$f":"VLOOKUP($A135,F1__World_Data!$A$4:$DP$191,32,FALSE)","v":949.49300000000005},{"$f":"VLOOKUP($A135,F1__World_Data!$A$4:$DP$191,31,FALSE)","v":923.71400000000006},{"$f":"VLOOKUP($A135,F1__World_Data!$A$4:$DP$191,30,FALSE)","v":898.47199999999998},{"$f":"VLOOKUP($A135,F1__World_Data!$A$4:$DP$191,29,FALSE)","v":873.87099999999998},{"$f":"VLOOKUP($A135,F1__World_Data!$A$4:$DP$191,28,FALSE)","v":850.05200000000002},{"$f":"VLOOKUP($A135,F1__World_Data!$A$4:$DP$191,27,FALSE)","v":827.10699999999997},{"$f":"VLOOKUP($A135,F1__World_Data!$A$4:$DP$191,26,FALSE)","v":805.11699999999996},{"$f":"VLOOKUP($A135,F1__World_Data!$A$4:$DP$191,25,FALSE)","v":784.05600000000004},{"$f":"VLOOKUP($A135,F1__World_Data!$A$4:$DP$191,24,FALSE)","v":763.93200000000002},{"$f":"VLOOKUP($A135,F1__World_Data!$A$4:$DP$191,23,FALSE)","v":744.69500000000005},{"$f":"VLOOKUP($A135,F1__World_Data!$A$4:$DP$191,22,FALSE)","v":726.33500000000004},{"$f":"VLOOKUP($A135,F1__World_Data!$A$4:$DP$191,21,FALSE)","v":708.78800000000001},{"$f":"VLOOKUP($A135,F1__World_Data!$A$4:$DP$191,20,FALSE)","v":692.07799999999997},{"$f":"VLOOKUP($A135,F1__World_Data!$A$4:$DP$191,19,FALSE)","v":676.26400000000001},{"$f":"VLOOKUP($A135,F1__World_Data!$A$4:$DP$191,18,FALSE)","v":661.39800000000002},{"$f":"VLOOKUP($A135,F1__World_Data!$A$4:$DP$191,17,FALSE)","v":647.53800000000001},{"$f":"VLOOKUP($A135,F1__World_Data!$A$4:$DP$191,16,FALSE)","v":634.73900000000003},{"$f":"VLOOKUP($A135,F1__World_Data!$A$4:$DP$191,15,FALSE)","v":622.91399999999999},{"$f":"VLOOKUP($A135,F1__World_Data!$A$4:$DP$191,14,FALSE)","v":611.70500000000004},{"$f":"VLOOKUP($A135,F1__World_Data!$A$4:$DP$191,13,FALSE)","v":600.60799999999995},{"$f":"VLOOKUP($A135,F1__World_Data!$A$4:$DP$191,12,FALSE)","v":589.31700000000001},{"$f":"VLOOKUP($A135,F1__World_Data!$A$4:$DP$191,11,FALSE)","v":577.64400000000001},{"$f":"VLOOKUP($A135,F1__World_Data!$A$4:$DP$191,10,FALSE)","v":565.76300000000003},{"$f":"VLOOKUP($A135,F1__World_Data!$A$4:$DP$191,9,FALSE)","v":554.05399999999997},{"$f":"VLOOKUP($A135,F1__World_Data!$A$4:$DP$191,8,FALSE)","v":543.11900000000003},{"$f":"VLOOKUP($A135,F1__World_Data!$A$4:$DP$191,7,FALSE)","v":533.35699999999997},{"$f":"VLOOKUP($A135,F1__World_Data!$A$4:$DP$191,6,FALSE)","v":524.89099999999996},{"$f":"VLOOKUP($A135,F1__World_Data!$A$4:$DP$191,5,FALSE)","v":517.57299999999998},{"$f":"VLOOKUP($A135,F1__World_Data!$A$4:$DP$191,4,FALSE)","v":511.28500000000003},{"$f":"VLOOKUP($A135,F1__World_Data!$A$4:$DP$191,3,FALSE)","v":505.79300000000001},{"$f":"VLOOKUP($A135,F1__World_Data!$A$4:$DP$191,2,FALSE)","v":500.92200000000003},null,{"$f":"VLOOKUP($A135,F1__World_Data!$A$4:$DP$191,120,FALSE)","v":82.548780487804891},{"$f":"VLOOKUP($A135,F1__World_Data!$A$4:$DP$191,119,FALSE)","v":82.29756097560977},{"$f":"VLOOKUP($A135,F1__World_Data!$A$4:$DP$191,118,FALSE)","v":82.046341463414635},{"$f":"VLOOKUP($A135,F1__World_Data!$A$4:$DP$191,117,FALSE)","v":81.795121951219528},{"$f":"VLOOKUP($A135,F1__World_Data!$A$4:$DP$191,116,FALSE)","v":81.592682926829269},{"$f":"VLOOKUP($A135,F1__World_Data!$A$4:$DP$191,115,FALSE)","v":81.341463414634148},{"$f":"VLOOKUP($A135,F1__World_Data!$A$4:$DP$191,114,FALSE)","v":81.090243902439042},{"$f":"VLOOKUP($A135,F1__World_Data!$A$4:$DP$191,113,FALSE)","v":80.839024390243921},{"$f":"VLOOKUP($A135,F1__World_Data!$A$4:$DP$191,112,FALSE)","v":80.587804878048786},{"$f":"VLOOKUP($A135,F1__World_Data!$A$4:$DP$191,111,FALSE)","v":80.387804878048797},{"$f":"VLOOKUP($A135,F1__World_Data!$A$4:$DP$191,110,FALSE)","v":80.139024390243918},{"$f":"VLOOKUP($A135,F1__World_Data!$A$4:$DP$191,109,FALSE)","v":79.890243902439039},{"$f":"VLOOKUP($A135,F1__World_Data!$A$4:$DP$191,108,FALSE)","v":79.690243902439036},{"$f":"VLOOKUP($A135,F1__World_Data!$A$4:$DP$191,107,FALSE)","v":79.441463414634157},{"$f":"VLOOKUP($A135,F1__World_Data!$A$4:$DP$191,106,FALSE)","v":79.190243902439036},{"$f":"VLOOKUP($A135,F1__World_Data!$A$4:$DP$191,105,FALSE)","v":78.990243902439033},{"$f":"VLOOKUP($A135,F1__World_Data!$A$4:$DP$191,104,FALSE)","v":78.787804878048775},{"$f":"VLOOKUP($A135,F1__World_Data!$A$4:$DP$191,103,FALSE)","v":78.636585365853662},{"$f":"VLOOKUP($A135,F1__World_Data!$A$4:$DP$191,102,FALSE)","v":78.434146341463432},{"$f":"VLOOKUP($A135,F1__World_Data!$A$4:$DP$191,101,FALSE)","v":78.280487804878064},{"$f":"VLOOKUP($A135,F1__World_Data!$A$4:$DP$191,100,FALSE)","v":78.026829268292687},{"$f":"VLOOKUP($A135,F1__World_Data!$A$4:$DP$191,99,FALSE)","v":77.824390243902457},{"$f":"VLOOKUP($A135,F1__World_Data!$A$4:$DP$191,98,FALSE)","v":77.57073170731708},{"$f":"VLOOKUP($A135,F1__World_Data!$A$4:$DP$191,97,FALSE)","v":77.368292682926835},{"$f":"VLOOKUP($A135,F1__World_Data!$A$4:$DP$191,96,FALSE)","v":77.065853658536597},{"$f":"VLOOKUP($A135,F1__World_Data!$A$4:$DP$191,95,FALSE)","v":76.81463414634149},{"$f":"VLOOKUP($A135,F1__World_Data!$A$4:$DP$191,94,FALSE)","v":76.614634146341473},{"$f":"VLOOKUP($A135,F1__World_Data!$A$4:$DP$191,93,FALSE)","v":76.41463414634147},{"$f":"VLOOKUP($A135,F1__World_Data!$A$4:$DP$191,92,FALSE)","v":76.114634146341487},{"$f":"VLOOKUP($A135,F1__World_Data!$A$4:$DP$191,91,FALSE)","v":75.91463414634147},{"$f":"VLOOKUP($A135,F1__World_Data!$A$4:$DP$191,90,FALSE)","v":75.714634146341467},{"$f":"VLOOKUP($A135,F1__World_Data!$A$4:$DP$191,89,FALSE)","v":75.465853658536588},{"$f":"VLOOKUP($A135,F1__World_Data!$A$4:$DP$191,88,FALSE)","v":75.214634146341467},{"$f":"VLOOKUP($A135,F1__World_Data!$A$4:$DP$191,87,FALSE)","v":0},{"$f":"VLOOKUP($A135,F1__World_Data!$A$4:$DP$191,86,FALSE)","v":0},{"$f":"VLOOKUP($A135,F1__World_Data!$A$4:$DP$191,85,FALSE)","v":0},{"$f":"VLOOKUP($A135,F1__World_Data!$A$4:$DP$191,84,FALSE)","v":0},{"$f":"VLOOKUP($A135,F1__World_Data!$A$4:$DP$191,83,FALSE)","v":0},{"$f":"VLOOKUP($A135,F1__World_Data!$A$4:$DP$191,82,FALSE)","v":0},{"$f":"VLOOKUP($A135,F1__World_Data!$A$4:$DP$191,81,FALSE)","v":0},{"$f":"VLOOKUP($A135,F1__World_Data!$A$4:$DP$191,80,FALSE)","v":75.98536585365855},{"$f":"VLOOKUP($A135,F1__World_Data!$A$4:$DP$191,79,FALSE)","v":0},{"$f":"VLOOKUP($A135,F1__World_Data!$A$4:$DP$191,78,FALSE)","v":0},{"$f":"VLOOKUP($A135,F1__World_Data!$A$4:$DP$191,77,FALSE)","v":0},{"$f":"VLOOKUP($A135,F1__World_Data!$A$4:$DP$191,76,FALSE)","v":0},{"$f":"VLOOKUP($A135,F1__World_Data!$A$4:$DP$191,75,FALSE)","v":74.497560975609773},{"$f":"VLOOKUP($A135,F1__World_Data!$A$4:$DP$191,74,FALSE)","v":0},{"$f":"VLOOKUP($A135,F1__World_Data!$A$4:$DP$191,73,FALSE)","v":0},{"$f":"VLOOKUP($A135,F1__World_Data!$A$4:$DP$191,72,FALSE)","v":0},{"$f":"VLOOKUP($A135,F1__World_Data!$A$4:$DP$191,71,FALSE)","v":0},{"$f":"VLOOKUP($A135,F1__World_Data!$A$4:$DP$191,70,FALSE)","v":0},{"$f":"VLOOKUP($A135,F1__World_Data!$A$4:$DP$191,69,FALSE)","v":0},{"$f":"VLOOKUP($A135,F1__World_Data!$A$4:$DP$191,68,FALSE)","v":0},{"$f":"VLOOKUP($A135,F1__World_Data!$A$4:$DP$191,67,FALSE)","v":0},{"$f":"VLOOKUP($A135,F1__World_Data!$A$4:$DP$191,66,FALSE)","v":0},{"$f":"VLOOKUP($A135,F1__World_Data!$A$4:$DP$191,65,FALSE)","v":0},{"$f":"VLOOKUP($A135,F1__World_Data!$A$4:$DP$191,64,FALSE)","v":0},{"$f":"VLOOKUP($A135,F1__World_Data!$A$4:$DP$191,63,FALSE)","v":0},{"$f":"VLOOKUP($A135,F1__World_Data!$A$4:$DP$191,62,FALSE)","v":0}]
["Slovenia",{"$f":"VLOOKUP($A136,F1__World_Data!$A$4:$DP$191,60,FALSE)","v":2077.8359999999998},{"$f":"VLOOKUP($A136,F1__World_Data!$A$4:$DP$191,59,FALSE)","v":2076.395},{"$f":"VLOOKUP($A136,F1__World_Data!$A$4:$DP$191,58,FALSE)","v":2074.2049999999999},{"$f":"VLOOKUP($A136,F1__World_Data!$A$4:$DP$191,57,FALSE)","v":2071.1990000000001},{"$f":"VLOOKUP($A136,F1__World_Data!$A$4:$DP$191,56,FALSE)","v":2067.4879999999998},{"$f":"VLOOKUP($A136,F1__World_Data!$A$4:$DP$191,55,FALSE)","v":2063.12},{"$f":"VLOOKUP($A136,F1__World_Data!$A$4:$DP$191,54,FALSE)","v":2057.826},{"$f":"VLOOKUP($A136,F1__World_Data!$A$4:$DP$191,53,FALSE)","v":2051.2779999999998},{"$f":"VLOOKUP($A136,F1__World_Data!$A$4:$DP$191,52,FALSE)","v":2043.336},{"$f":"VLOOKUP($A136,F1__World_Data!$A$4:$DP$191,51,FALSE)","v":2033.807},{"$f":"VLOOKUP($A136,F1__World_Data!$A$4:$DP$191,50,FALSE)","v":2023.049},{"$f":"VLOOKUP($A136,F1__World_Data!$A$4:$DP$191,49,FALSE)","v":2012.1279999999999},{"$f":"VLOOKUP($A136,F1__World_Data!$A$4:$DP$191,48,FALSE)","v":2002.4269999999999},{"$f":"VLOOKUP($A136,F1__World_Data!$A$4:$DP$191,47,FALSE)","v":1994.979},{"$f":"VLOOKUP($A136,F1__World_Data!$A$4:$DP$191,46,FALSE)","v":1990.2260000000001},{"$f":"VLOOKUP($A136,F1__World_Data!$A$4:$DP$191,45,FALSE)","v":1987.855},{"$f":"VLOOKUP($A136,F1__World_Data!$A$4:$DP$191,44,FALSE)","v":1987.2650000000001},{"$f":"VLOOKUP($A136,F1__World_Data!$A$4:$DP$191,43,FALSE)","v":1987.4570000000001},{"$f":"VLOOKUP($A136,F1__World_Data!$A$4:$DP$191,42,FALSE)","v":1987.71},{"$f":"VLOOKUP($A136,F1__World_Data!$A$4:$DP$191,41,FALSE)","v":1987.625},{"$f":"VLOOKUP($A136,F1__World_Data!$A$4:$DP$191,40,FALSE)","v":1987.384},{"$f":"VLOOKUP($A136,F1__World_Data!$A$4:$DP$191,39,FALSE)","v":1987.4570000000001},{"$f":"VLOOKUP($A136,F1__World_Data!$A$4:$DP$191,38,FALSE)","v":1988.58},{"$f":"VLOOKUP($A136,F1__World_Data!$A$4:$DP$191,37,FALSE)","v":1991.126},{"$f":"VLOOKUP($A136,F1__World_Data!$A$4:$DP$191,36,FALSE)","v":1995.326},{"$f":"VLOOKUP($A136,F1__World_Data!$A$4:$DP$191,35,FALSE)","v":2000.56},{"$f":"VLOOKUP($A136,F1__World_Data!$A$4:$DP$191,34,FALSE)","v":2005.3520000000001},{"$f":"VLOOKUP($A136,F1__World_Data!$A$4:$DP$191,33,FALSE)","v":2007.78},{"$f":"VLOOKUP($A136,F1__World_Data!$A$4:$DP$191,32,FALSE)","v":2006.404},{"$f":"VLOOKUP($A136,F1__World_Data!$A$4:$DP$191,31,FALSE)","v":2000.8320000000001},{"$f":"VLOOKUP($A136,F1__World_Data!$A$4:$DP$191,30,FALSE)","v":1991.3869999999999},{"$f":"VLOOKUP($A136,F1__World_Data!$A$4:$DP$191,29,FALSE)","v":1978.498},{"$f":"VLOOKUP($A136,F1__World_Data!$A$4:$DP$191,28,FALSE)","v":1962.87},{"$f":"VLOOKUP($A136,F1__World_Data!$A$4:$DP$191,27,FALSE)","v":1945.1289999999999},{"$f":"VLOOKUP($A136,F1__World_Data!$A$4:$DP$191,26,FALSE)","v":1925.3119999999999},{"$f":"VLOOKUP($A136,F1__World_Data!$A$4:$DP$191,25,FALSE)","v":1903.548},{"$f":"VLOOKUP($A136,F1__World_Data!$A$4:$DP$191,24,FALSE)","v":1880.7070000000001},{"$f":"VLOOKUP($A136,F1__World_Data!$A$4:$DP$191,23,FALSE)","v":1857.8510000000001},{"$f":"VLOOKUP($A136,F1__World_Data!$A$4:$DP$191,22,FALSE)","v":1835.8420000000001},{"$f":"VLOOKUP($A136,F1__World_Data!$A$4:$DP$191,21,FALSE)","v":1815.106},{"$f":"VLOOKUP($A136,F1__World_Data!$A$4:$DP$191,20,FALSE)","v":1795.643},{"$f":"VLOOKUP($A136,F1__World_Data!$A$4:$DP$191,19,FALSE)","v":1777.3150000000001},{"$f":"VLOOKUP($A136,F1__World_Data!$A$4:$DP$191,18,FALSE)","v":1759.721},{"$f":"VLOOKUP($A136,F1__World_Data!$A$4:$DP$191,17,FALSE)","v":1742.6210000000001},{"$f":"VLOOKUP($A136,F1__World_Data!$A$4:$DP$191,16,FALSE)","v":1725.971},{"$f":"VLOOKUP($A136,F1__World_Data!$A$4:$DP$191,15,FALSE)","v":1709.9780000000001},{"$f":"VLOOKUP($A136,F1__World_Data!$A$4:$DP$191,14,FALSE)","v":1694.979},{"$f":"VLOOKUP($A136,F1__World_Data!$A$4:$DP$191,13,FALSE)","v":1681.432},{"$f":"VLOOKUP($A136,F1__World_Data!$A$4:$DP$191,12,FALSE)","v":1669.5840000000001},{"$f":"VLOOKUP($A136,F1__World_Data!$A$4:$DP$191,11,FALSE)","v":1659.5619999999999},{"$f":"VLOOKUP($A136,F1__World_Data!$A$4:$DP$191,10,FALSE)","v":1651.09},{"$f":"VLOOKUP($A136,F1__World_Data!$A$4:$DP$191,9,FALSE)","v":1643.6949999999999},{"$f":"VLOOKUP($A136,F1__World_Data!$A$4:$DP$191,8,FALSE)","v":1636.6610000000001},{"$f":"VLOOKUP($A136,F1__World_Data!$A$4:$DP$191,7,FALSE)","v":1629.4390000000001},{"$f":"VLOOKUP($A136,F1__World_Data!$A$4:$DP$191,6,FALSE)","v":1621.886},{"$f":"VLOOKUP($A136,F1__World_Data!$A$4:$DP$191,5,FALSE)","v":1614.019},{"$f":"VLOOKUP($A136,F1__World_Data!$A$4:$DP$191,4,FALSE)","v":1605.64},{"$f":"VLOOKUP($A136,F1__World_Data!$A$4:$DP$191,3,FALSE)","v":1596.5540000000001},{"$f":"VLOOKUP($A136,F1__World_Data!$A$4:$DP$191,2,FALSE)","v":1586.6279999999999},null,{"$f":"VLOOKUP($A136,F1__World_Data!$A$4:$DP$191,120,FALSE)","v":68.116},{"$f":"VLOOKUP($A136,F1__World_Data!$A$4:$DP$191,119,FALSE)","v":67.850999999999999},{"$f":"VLOOKUP($A136,F1__World_Data!$A$4:$DP$191,118,FALSE)","v":67.576999999999998},{"$f":"VLOOKUP($A136,F1__World_Data!$A$4:$DP$191,117,FALSE)","v":67.290999999999997},{"$f":"VLOOKUP($A136,F1__World_Data!$A$4:$DP$191,116,FALSE)","v":66.995000000000005},{"$f":"VLOOKUP($A136,F1__World_Data!$A$4:$DP$191,115,FALSE)","v":66.69},{"$f":"VLOOKUP($A136,F1__World_Data!$A$4:$DP$191,114,FALSE)","v":66.381},{"$f":"VLOOKUP($A136,F1__World_Data!$A$4:$DP$191,113,FALSE)","v":66.072000000000003},{"$f":"VLOOKUP($A136,F1__World_Data!$A$4:$DP$191,112,FALSE)","v":65.769000000000005},{"$f":"VLOOKUP($A136,F1__World_Data!$A$4:$DP$191,111,FALSE)","v":65.48},{"$f":"VLOOKUP($A136,F1__World_Data!$A$4:$DP$191,110,FALSE)","v":65.207999999999998},{"$f":"VLOOKUP($A136,F1__World_Data!$A$4:$DP$191,109,FALSE)","v":64.953000000000003},{"$f":"VLOOKUP($A136,F1__World_Data!$A$4:$DP$191,108,FALSE)","v":64.712000000000003},{"$f":"VLOOKUP($A136,F1__World_Data!$A$4:$DP$191,107,FALSE)","v":64.477999999999994},{"$f":"VLOOKUP($A136,F1__World_Data!$A$4:$DP$191,106,FALSE)","v":64.242000000000004},{"$f":"VLOOKUP($A136,F1__World_Data!$A$4:$DP$191,105,FALSE)","v":63.994999999999997},{"$f":"VLOOKUP($A136,F1__World_Data!$A$4:$DP$191,104,FALSE)","v":63.731000000000002},{"$f":"VLOOKUP($A136,F1__World_Data!$A$4:$DP$191,103,FALSE)","v":63.445999999999998},{"$f":"VLOOKUP($A136,F1__World_Data!$A$4:$DP$191,102,FALSE)","v":63.143999999999998},{"$f":"VLOOKUP($A136,F1__World_Data!$A$4:$DP$191,101,FALSE)","v":62.829000000000001},{"$f":"VLOOKUP($A136,F1__World_Data!$A$4:$DP$191,100,FALSE)","v":62.509},{"$f":"VLOOKUP($A136,F1__World_Data!$A$4:$DP$191,99,FALSE)","v":62.188000000000002},{"$f":"VLOOKUP($A136,F1__World_Data!$A$4:$DP$191,98,FALSE)","v":61.866},{"$f":"VLOOKUP($A136,F1__World_Data!$A$4:$DP$191,97,FALSE)","v":61.539000000000001},{"$f":"VLOOKUP($A136,F1__World_Data!$A$4:$DP$191,96,FALSE)","v":61.198},{"$f":"VLOOKUP($A136,F1__World_Data!$A$4:$DP$191,95,FALSE)","v":60.837000000000003},{"$f":"VLOOKUP($A136,F1__World_Data!$A$4:$DP$191,94,FALSE)","v":60.454999999999998},{"$f":"VLOOKUP($A136,F1__World_Data!$A$4:$DP$191,93,FALSE)","v":60.052999999999997},{"$f":"VLOOKUP($A136,F1__World_Data!$A$4:$DP$191,92,FALSE)","v":59.636000000000003},{"$f":"VLOOKUP($A136,F1__World_Data!$A$4:$DP$191,91,FALSE)","v":59.209000000000003},{"$f":"VLOOKUP($A136,F1__World_Data!$A$4:$DP$191,90,FALSE)","v":58.783000000000001},{"$f":"VLOOKUP($A136,F1__World_Data!$A$4:$DP$191,89,FALSE)","v":58.366},{"$f":"VLOOKUP($A136,F1__World_Data!$A$4:$DP$191,88,FALSE)","v":57.962000000000003},{"$f":"VLOOKUP($A136,F1__World_Data!$A$4:$DP$191,87,FALSE)","v":57.579000000000001},{"$f":"VLOOKUP($A136,F1__World_Data!$A$4:$DP$191,86,FALSE)","v":57.220999999999997},{"$f":"VLOOKUP($A136,F1__World_Data!$A$4:$DP$191,85,FALSE)","v":56.886000000000003},{"$f":"VLOOKUP($A136,F1__World_Data!$A$4:$DP$191,84,FALSE)","v":56.569000000000003},{"$f":"VLOOKUP($A136,F1__World_Data!$A$4:$DP$191,83,FALSE)","v":56.265999999999998},{"$f":"VLOOKUP($A136,F1__World_Data!$A$4:$DP$191,82,FALSE)","v":55.970999999999997},{"$f":"VLOOKUP($A136,F1__World_Data!$A$4:$DP$191,81,FALSE)","v":55.679000000000002},{"$f":"VLOOKUP($A136,F1__World_Data!$A$4:$DP$191,80,FALSE)","v":55.381999999999998},{"$f":"VLOOKUP($A136,F1__World_Data!$A$4:$DP$191,79,FALSE)","v":55.073999999999998},{"$f":"VLOOKUP($A136,F1__World_Data!$A$4:$DP$191,78,FALSE)","v":54.747999999999998},{"$f":"VLOOKUP($A136,F1__World_Data!$A$4:$DP$191,77,FALSE)","v":54.399000000000001},{"$f":"VLOOKUP($A136,F1__World_Data!$A$4:$DP$191,76,FALSE)","v":54.027000000000001},{"$f":"VLOOKUP($A136,F1__World_Data!$A$4:$DP$191,75,FALSE)","v":53.633000000000003},{"$f":"VLOOKUP($A136,F1__World_Data!$A$4:$DP$191,74,FALSE)","v":53.218000000000004},{"$f":"VLOOKUP($A136,F1__World_Data!$A$4:$DP$191,73,FALSE)","v":52.781999999999996},{"$f":"VLOOKUP($A136,F1__World_Data!$A$4:$DP$191,72,FALSE)","v":52.323},{"$f":"VLOOKUP($A136,F1__World_Data!$A$4:$DP$191,71,FALSE)","v":51.837000000000003},{"$f":"VLOOKUP($A136,F1__World_Data!$A$4:$DP$191,70,FALSE)","v":51.326999999999998},{"$f":"VLOOKUP($A136,F1__World_Data!$A$4:$DP$191,69,FALSE)","v":50.795999999999999},{"$f":"VLOOKUP($A136,F1__World_Data!$A$4:$DP$191,68,FALSE)","v":50.25},{"$f":"VLOOKUP($A136,F1__World_Data!$A$4:$DP$191,67,FALSE)","v":49.697000000000003},{"$f":"VLOOKUP($A136,F1__World_Data!$A$4:$DP$191,66,FALSE)","v":49.145000000000003},{"$f":"VLOOKUP($A136,F1__World_Data!$A$4:$DP$191,65,FALSE)","v":48.600999999999999},{"$f":"VLOOKUP($A136,F1__World_Data!$A$4:$DP$191,64,FALSE)","v":48.070999999999998},{"$f":"VLOOKUP($A136,F1__World_Data!$A$4:$DP$191,63,FALSE)","v":47.557000000000002},{"$f":"VLOOKUP($A136,F1__World_Data!$A$4:$DP$191,62,FALSE)","v":47.061}]
["Latvia",{"$f":"VLOOKUP($A137,F1__World_Data!$A$4:$DP$191,60,FALSE)","v":1928.461},{"$f":"VLOOKUP($A137,F1__World_Data!$A$4:$DP$191,59,FALSE)","v":1951.097},{"$f":"VLOOKUP($A137,F1__World_Data!$A$4:$DP$191,58,FALSE)","v":1974.2650000000001},{"$f":"VLOOKUP($A137,F1__World_Data!$A$4:$DP$191,57,FALSE)","v":1997.675},{"$f":"VLOOKUP($A137,F1__World_Data!$A$4:$DP$191,56,FALSE)","v":2021.22},{"$f":"VLOOKUP($A137,F1__World_Data!$A$4:$DP$191,55,FALSE)","v":2044.95},{"$f":"VLOOKUP($A137,F1__World_Data!$A$4:$DP$191,54,FALSE)","v":2069.018},{"$f":"VLOOKUP($A137,F1__World_Data!$A$4:$DP$191,53,FALSE)","v":2093.6060000000002},{"$f":"VLOOKUP($A137,F1__World_Data!$A$4:$DP$191,52,FALSE)","v":2118.855},{"$f":"VLOOKUP($A137,F1__World_Data!$A$4:$DP$191,51,FALSE)","v":2144.7840000000001},{"$f":"VLOOKUP($A137,F1__World_Data!$A$4:$DP$191,50,FALSE)","v":2171.248},{"$f":"VLOOKUP($A137,F1__World_Data!$A$4:$DP$191,49,FALSE)","v":2198.0889999999999},{"$f":"VLOOKUP($A137,F1__World_Data!$A$4:$DP$191,48,FALSE)","v":2225.0630000000001},{"$f":"VLOOKUP($A137,F1__World_Data!$A$4:$DP$191,47,FALSE)","v":2251.9960000000001},{"$f":"VLOOKUP($A137,F1__World_Data!$A$4:$DP$191,46,FALSE)","v":2278.922},{"$f":"VLOOKUP($A137,F1__World_Data!$A$4:$DP$191,45,FALSE)","v":2305.8449999999998},{"$f":"VLOOKUP($A137,F1__World_Data!$A$4:$DP$191,44,FALSE)","v":2332.5279999999998},{"$f":"VLOOKUP($A137,F1__World_Data!$A$4:$DP$191,43,FALSE)","v":2358.6889999999999},{"$f":"VLOOKUP($A137,F1__World_Data!$A$4:$DP$191,42,FALSE)","v":2384.15},{"$f":"VLOOKUP($A137,F1__World_Data!$A$4:$DP$191,41,FALSE)","v":2408.0880000000002},{"$f":"VLOOKUP($A137,F1__World_Data!$A$4:$DP$191,40,FALSE)","v":2430.5459999999998},{"$f":"VLOOKUP($A137,F1__World_Data!$A$4:$DP$191,39,FALSE)","v":2453.31},{"$f":"VLOOKUP($A137,F1__World_Data!$A$4:$DP$191,38,FALSE)","v":2478.8319999999999},{"$f":"VLOOKUP($A137,F1__World_Data!$A$4:$DP$191,37,FALSE)","v":2508.4760000000001},{"$f":"VLOOKUP($A137,F1__World_Data!$A$4:$DP$191,36,FALSE)","v":2543.6320000000001},{"$f":"VLOOKUP($A137,F1__World_Data!$A$4:$DP$191,35,FALSE)","v":2582.6579999999999},{"$f":"VLOOKUP($A137,F1__World_Data!$A$4:$DP$191,34,FALSE)","v":2620.2539999999999},{"$f":"VLOOKUP($A137,F1__World_Data!$A$4:$DP$191,33,FALSE)","v":2649.1610000000001},{"$f":"VLOOKUP($A137,F1__World_Data!$A$4:$DP$191,32,FALSE)","v":2664.4470000000001},{"$f":"VLOOKUP($A137,F1__World_Data!$A$4:$DP$191,31,FALSE)","v":2663.9430000000002},{"$f":"VLOOKUP($A137,F1__World_Data!$A$4:$DP$191,30,FALSE)","v":2649.835},{"$f":"VLOOKUP($A137,F1__World_Data!$A$4:$DP$191,29,FALSE)","v":2626.9059999999999},{"$f":"VLOOKUP($A137,F1__World_Data!$A$4:$DP$191,28,FALSE)","v":2602.152},{"$f":"VLOOKUP($A137,F1__World_Data!$A$4:$DP$191,27,FALSE)","v":2580.7629999999999},{"$f":"VLOOKUP($A137,F1__World_Data!$A$4:$DP$191,26,FALSE)","v":2564.1179999999999},{"$f":"VLOOKUP($A137,F1__World_Data!$A$4:$DP$191,25,FALSE)","v":2550.9319999999998},{"$f":"VLOOKUP($A137,F1__World_Data!$A$4:$DP$191,24,FALSE)","v":2540.444},{"$f":"VLOOKUP($A137,F1__World_Data!$A$4:$DP$191,23,FALSE)","v":2531.0160000000001},{"$f":"VLOOKUP($A137,F1__World_Data!$A$4:$DP$191,22,FALSE)","v":2521.3809999999999},{"$f":"VLOOKUP($A137,F1__World_Data!$A$4:$DP$191,21,FALSE)","v":2511.7350000000001},{"$f":"VLOOKUP($A137,F1__World_Data!$A$4:$DP$191,20,FALSE)","v":2502.518},{"$f":"VLOOKUP($A137,F1__World_Data!$A$4:$DP$191,19,FALSE)","v":2492.9839999999999},{"$f":"VLOOKUP($A137,F1__World_Data!$A$4:$DP$191,18,FALSE)","v":2482.1970000000001},{"$f":"VLOOKUP($A137,F1__World_Data!$A$4:$DP$191,17,FALSE)","v":2469.4389999999999},{"$f":"VLOOKUP($A137,F1__World_Data!$A$4:$DP$191,16,FALSE)","v":2454.3969999999999},{"$f":"VLOOKUP($A137,F1__World_Data!$A$4:$DP$191,15,FALSE)","v":2437.1799999999998},{"$f":"VLOOKUP($A137,F1__World_Data!$A$4:$DP$191,14,FALSE)","v":2418.2800000000002},{"$f":"VLOOKUP($A137,F1__World_Data!$A$4:$DP$191,13,FALSE)","v":2398.38},{"$f":"VLOOKUP($A137,F1__World_Data!$A$4:$DP$191,12,FALSE)","v":2378.0219999999999},{"$f":"VLOOKUP($A137,F1__World_Data!$A$4:$DP$191,11,FALSE)","v":2357.3890000000001},{"$f":"VLOOKUP($A137,F1__World_Data!$A$4:$DP$191,10,FALSE)","v":2336.3180000000002},{"$f":"VLOOKUP($A137,F1__World_Data!$A$4:$DP$191,9,FALSE)","v":2314.5059999999999},{"$f":"VLOOKUP($A137,F1__World_Data!$A$4:$DP$191,8,FALSE)","v":2291.471},{"$f":"VLOOKUP($A137,F1__World_Data!$A$4:$DP$191,7,FALSE)","v":2266.9380000000001},{"$f":"VLOOKUP($A137,F1__World_Data!$A$4:$DP$191,6,FALSE)","v":2240.9470000000001},{"$f":"VLOOKUP($A137,F1__World_Data!$A$4:$DP$191,5,FALSE)","v":2213.8049999999998},{"$f":"VLOOKUP($A137,F1__World_Data!$A$4:$DP$191,4,FALSE)","v":2185.873},{"$f":"VLOOKUP($A137,F1__World_Data!$A$4:$DP$191,3,FALSE)","v":2157.66},{"$f":"VLOOKUP($A137,F1__World_Data!$A$4:$DP$191,2,FALSE)","v":2129.5839999999998},null,{"$f":"VLOOKUP($A137,F1__World_Data!$A$4:$DP$191,120,FALSE)","v":68.116},{"$f":"VLOOKUP($A137,F1__World_Data!$A$4:$DP$191,119,FALSE)","v":67.850999999999999},{"$f":"VLOOKUP($A137,F1__World_Data!$A$4:$DP$191,118,FALSE)","v":67.576999999999998},{"$f":"VLOOKUP($A137,F1__World_Data!$A$4:$DP$191,117,FALSE)","v":67.290999999999997},{"$f":"VLOOKUP($A137,F1__World_Data!$A$4:$DP$191,116,FALSE)","v":66.995000000000005},{"$f":"VLOOKUP($A137,F1__World_Data!$A$4:$DP$191,115,FALSE)","v":66.69},{"$f":"VLOOKUP($A137,F1__World_Data!$A$4:$DP$191,114,FALSE)","v":66.381},{"$f":"VLOOKUP($A137,F1__World_Data!$A$4:$DP$191,113,FALSE)","v":66.072000000000003},{"$f":"VLOOKUP($A137,F1__World_Data!$A$4:$DP$191,112,FALSE)","v":65.769000000000005},{"$f":"VLOOKUP($A137,F1__World_Data!$A$4:$DP$191,111,FALSE)","v":65.48},{"$f":"VLOOKUP($A137,F1__World_Data!$A$4:$DP$191,110,FALSE)","v":65.207999999999998},{"$f":"VLOOKUP($A137,F1__World_Data!$A$4:$DP$191,109,FALSE)","v":64.953000000000003},{"$f":"VLOOKUP($A137,F1__World_Data!$A$4:$DP$191,108,FALSE)","v":64.712000000000003},{"$f":"VLOOKUP($A137,F1__World_Data!$A$4:$DP$191,107,FALSE)","v":64.477999999999994},{"$f":"VLOOKUP($A137,F1__World_Data!$A$4:$DP$191,106,FALSE)","v":64.242000000000004},{"$f":"VLOOKUP($A137,F1__World_Data!$A$4:$DP$191,105,FALSE)","v":63.994999999999997},{"$f":"VLOOKUP($A137,F1__World_Data!$A$4:$DP$191,104,FALSE)","v":63.731000000000002},{"$f":"VLOOKUP($A137,F1__World_Data!$A$4:$DP$191,103,FALSE)","v":63.445999999999998},{"$f":"VLOOKUP($A137,F1__World_Data!$A$4:$DP$191,102,FALSE)","v":63.143999999999998},{"$f":"VLOOKUP($A137,F1__World_Data!$A$4:$DP$191,101,FALSE)","v":62.829000000000001},{"$f":"VLOOKUP($A137,F1__World_Data!$A$4:$DP$191,100,FALSE)","v":62.509},{"$f":"VLOOKUP($A137,F1__World_Data!$A$4:$DP$191,99,FALSE)","v":62.188000000000002},{"$f":"VLOOKUP($A137,F1__World_Data!$A$4:$DP$191,98,FALSE)","v":61.866},{"$f":"VLOOKUP($A137,F1__World_Data!$A$4:$DP$191,97,FALSE)","v":61.539000000000001},{"$f":"VLOOKUP($A137,F1__World_Data!$A$4:$DP$191,96,FALSE)","v":61.198},{"$f":"VLOOKUP($A137,F1__World_Data!$A$4:$DP$191,95,FALSE)","v":60.837000000000003},{"$f":"VLOOKUP($A137,F1__World_Data!$A$4:$DP$191,94,FALSE)","v":60.454999999999998},{"$f":"VLOOKUP($A137,F1__World_Data!$A$4:$DP$191,93,FALSE)","v":60.052999999999997},{"$f":"VLOOKUP($A137,F1__World_Data!$A$4:$DP$191,92,FALSE)","v":59.636000000000003},{"$f":"VLOOKUP($A137,F1__World_Data!$A$4:$DP$191,91,FALSE)","v":59.209000000000003},{"$f":"VLOOKUP($A137,F1__World_Data!$A$4:$DP$191,90,FALSE)","v":58.783000000000001},{"$f":"VLOOKUP($A137,F1__World_Data!$A$4:$DP$191,89,FALSE)","v":58.366},{"$f":"VLOOKUP($A137,F1__World_Data!$A$4:$DP$191,88,FALSE)","v":57.962000000000003},{"$f":"VLOOKUP($A137,F1__World_Data!$A$4:$DP$191,87,FALSE)","v":57.579000000000001},{"$f":"VLOOKUP($A137,F1__World_Data!$A$4:$DP$191,86,FALSE)","v":57.220999999999997},{"$f":"VLOOKUP($A137,F1__World_Data!$A$4:$DP$191,85,FALSE)","v":56.886000000000003},{"$f":"VLOOKUP($A137,F1__World_Data!$A$4:$DP$191,84,FALSE)","v":56.569000000000003},{"$f":"VLOOKUP($A137,F1__World_Data!$A$4:$DP$191,83,FALSE)","v":56.265999999999998},{"$f":"VLOOKUP($A137,F1__World_Data!$A$4:$DP$191,82,FALSE)","v":55.970999999999997},{"$f":"VLOOKUP($A137,F1__World_Data!$A$4:$DP$191,81,FALSE)","v":55.679000000000002},{"$f":"VLOOKUP($A137,F1__World_Data!$A$4:$DP$191,80,FALSE)","v":55.381999999999998},{"$f":"VLOOKUP($A137,F1__World_Data!$A$4:$DP$191,79,FALSE)","v":55.073999999999998},{"$f":"VLOOKUP($A137,F1__World_Data!$A$4:$DP$191,78,FALSE)","v":54.747999999999998},{"$f":"VLOOKUP($A137,F1__World_Data!$A$4:$DP$191,77,FALSE)","v":54.399000000000001},{"$f":"VLOOKUP($A137,F1__World_Data!$A$4:$DP$191,76,FALSE)","v":54.027000000000001},{"$f":"VLOOKUP($A137,F1__World_Data!$A$4:$DP$191,75,FALSE)","v":53.633000000000003},{"$f":"VLOOKUP($A137,F1__World_Data!$A$4:$DP$191,74,FALSE)","v":53.218000000000004},{"$f":"VLOOKUP($A137,F1__World_Data!$A$4:$DP$191,73,FALSE)","v":52.781999999999996},{"$f":"VLOOKUP($A137,F1__World_Data!$A$4:$DP$191,72,FALSE)","v":52.323},{"$f":"VLOOKUP($A137,F1__World_Data!$A$4:$DP$191,71,FALSE)","v":51.837000000000003},{"$f":"VLOOKUP($A137,F1__World_Data!$A$4:$DP$191,70,FALSE)","v":51.326999999999998},{"$f":"VLOOKUP($A137,F1__World_Data!$A$4:$DP$191,69,FALSE)","v":50.795999999999999},{"$f":"VLOOKUP($A137,F1__World_Data!$A$4:$DP$191,68,FALSE)","v":50.25},{"$f":"VLOOKUP($A137,F1__World_Data!$A$4:$DP$191,67,FALSE)","v":49.697000000000003},{"$f":"VLOOKUP($A137,F1__World_Data!$A$4:$DP$191,66,FALSE)","v":49.145000000000003},{"$f":"VLOOKUP($A137,F1__World_Data!$A$4:$DP$191,65,FALSE)","v":48.600999999999999},{"$f":"VLOOKUP($A137,F1__World_Data!$A$4:$DP$191,64,FALSE)","v":48.070999999999998},{"$f":"VLOOKUP($A137,F1__World_Data!$A$4:$DP$191,63,FALSE)","v":47.557000000000002},{"$f":"VLOOKUP($A137,F1__World_Data!$A$4:$DP$191,62,FALSE)","v":47.061}]
["Bahrain",{"$f":"VLOOKUP($A138,F1__World_Data!$A$4:$DP$191,60,FALSE)","v":1569.44},{"$f":"VLOOKUP($A138,F1__World_Data!$A$4:$DP$191,59,FALSE)","v":1494.077},{"$f":"VLOOKUP($A138,F1__World_Data!$A$4:$DP$191,58,FALSE)","v":1425.7929999999999},{"$f":"VLOOKUP($A138,F1__World_Data!$A$4:$DP$191,57,FALSE)","v":1371.8530000000001},{"$f":"VLOOKUP($A138,F1__World_Data!$A$4:$DP$191,56,FALSE)","v":1336.0730000000001},{"$f":"VLOOKUP($A138,F1__World_Data!$A$4:$DP$191,55,FALSE)","v":1315.029},{"$f":"VLOOKUP($A138,F1__World_Data!$A$4:$DP$191,54,FALSE)","v":1299.942},{"$f":"VLOOKUP($A138,F1__World_Data!$A$4:$DP$191,53,FALSE)","v":1278.153},{"$f":"VLOOKUP($A138,F1__World_Data!$A$4:$DP$191,52,FALSE)","v":1240.864},{"$f":"VLOOKUP($A138,F1__World_Data!$A$4:$DP$191,51,FALSE)","v":1185.075},{"$f":"VLOOKUP($A138,F1__World_Data!$A$4:$DP$191,50,FALSE)","v":1114.645},{"$f":"VLOOKUP($A138,F1__World_Data!$A$4:$DP$191,49,FALSE)","v":1035.924},{"$f":"VLOOKUP($A138,F1__World_Data!$A$4:$DP$191,48,FALSE)","v":958.423},{"$f":"VLOOKUP($A138,F1__World_Data!$A$4:$DP$191,47,FALSE)","v":889.15700000000004},{"$f":"VLOOKUP($A138,F1__World_Data!$A$4:$DP$191,46,FALSE)","v":829.846},{"$f":"VLOOKUP($A138,F1__World_Data!$A$4:$DP$191,45,FALSE)","v":778.70799999999997},{"$f":"VLOOKUP($A138,F1__World_Data!$A$4:$DP$191,44,FALSE)","v":735.14},{"$f":"VLOOKUP($A138,F1__World_Data!$A$4:$DP$191,43,FALSE)","v":697.55},{"$f":"VLOOKUP($A138,F1__World_Data!$A$4:$DP$191,42,FALSE)","v":664.61},{"$f":"VLOOKUP($A138,F1__World_Data!$A$4:$DP$191,41,FALSE)","v":636.54},{"$f":"VLOOKUP($A138,F1__World_Data!$A$4:$DP$191,40,FALSE)","v":613.697},{"$f":"VLOOKUP($A138,F1__World_Data!$A$4:$DP$191,39,FALSE)","v":594.92700000000002},{"$f":"VLOOKUP($A138,F1__World_Data!$A$4:$DP$191,38,FALSE)","v":578.66099999999994},{"$f":"VLOOKUP($A138,F1__World_Data!$A$4:$DP$191,37,FALSE)","v":563.69799999999998},{"$f":"VLOOKUP($A138,F1__World_Data!$A$4:$DP$191,36,FALSE)","v":549.59},{"$f":"VLOOKUP($A138,F1__World_Data!$A$4:$DP$191,35,FALSE)","v":536.21199999999999},{"$f":"VLOOKUP($A138,F1__World_Data!$A$4:$DP$191,34,FALSE)","v":523.08199999999999},{"$f":"VLOOKUP($A138,F1__World_Data!$A$4:$DP$191,33,FALSE)","v":509.762},{"$f":"VLOOKUP($A138,F1__World_Data!$A$4:$DP$191,32,FALSE)","v":495.92700000000002},{"$f":"VLOOKUP($A138,F1__World_Data!$A$4:$DP$191,31,FALSE)","v":481.08100000000002},{"$f":"VLOOKUP($A138,F1__World_Data!$A$4:$DP$191,30,FALSE)","v":465.19799999999998},{"$f":"VLOOKUP($A138,F1__World_Data!$A$4:$DP$191,29,FALSE)","v":448.98099999999999},{"$f":"VLOOKUP($A138,F1__World_Data!$A$4:$DP$191,28,FALSE)","v":433.47800000000001},{"$f":"VLOOKUP($A138,F1__World_Data!$A$4:$DP$191,27,FALSE)","v":419.428},{"$f":"VLOOKUP($A138,F1__World_Data!$A$4:$DP$191,26,FALSE)","v":407.233},{"$f":"VLOOKUP($A138,F1__World_Data!$A$4:$DP$191,25,FALSE)","v":396.45100000000002},{"$f":"VLOOKUP($A138,F1__World_Data!$A$4:$DP$191,24,FALSE)","v":385.95299999999997},{"$f":"VLOOKUP($A138,F1__World_Data!$A$4:$DP$191,23,FALSE)","v":374.12},{"$f":"VLOOKUP($A138,F1__World_Data!$A$4:$DP$191,22,FALSE)","v":359.89699999999999},{"$f":"VLOOKUP($A138,F1__World_Data!$A$4:$DP$191,21,FALSE)","v":342.80399999999997},{"$f":"VLOOKUP($A138,F1__World_Data!$A$4:$DP$191,20,FALSE)","v":323.46800000000002},{"$f":"VLOOKUP($A138,F1__World_Data!$A$4:$DP$191,19,FALSE)","v":303.16899999999998},{"$f":"VLOOKUP($A138,F1__World_Data!$A$4:$DP$191,18,FALSE)","v":283.74599999999998},{"$f":"VLOOKUP($A138,F1__World_Data!$A$4:$DP$191,17,FALSE)","v":266.54000000000002},{"$f":"VLOOKUP($A138,F1__World_Data!$A$4:$DP$191,16,FALSE)","v":251.90799999999999},{"$f":"VLOOKUP($A138,F1__World_Data!$A$4:$DP$191,15,FALSE)","v":239.52699999999999},{"$f":"VLOOKUP($A138,F1__World_Data!$A$4:$DP$191,14,FALSE)","v":229.15100000000001},{"$f":"VLOOKUP($A138,F1__World_Data!$A$4:$DP$191,13,FALSE)","v":220.31100000000001},{"$f":"VLOOKUP($A138,F1__World_Data!$A$4:$DP$191,12,FALSE)","v":212.607},{"$f":"VLOOKUP($A138,F1__World_Data!$A$4:$DP$191,11,FALSE)","v":206.03700000000001},{"$f":"VLOOKUP($A138,F1__World_Data!$A$4:$DP$191,10,FALSE)","v":200.65199999999999},{"$f":"VLOOKUP($A138,F1__World_Data!$A$4:$DP$191,9,FALSE)","v":196.06},{"$f":"VLOOKUP($A138,F1__World_Data!$A$4:$DP$191,8,FALSE)","v":191.785},{"$f":"VLOOKUP($A138,F1__World_Data!$A$4:$DP$191,7,FALSE)","v":187.43199999999999},{"$f":"VLOOKUP($A138,F1__World_Data!$A$4:$DP$191,6,FALSE)","v":182.88800000000001},{"$f":"VLOOKUP($A138,F1__World_Data!$A$4:$DP$191,5,FALSE)","v":178.142},{"$f":"VLOOKUP($A138,F1__World_Data!$A$4:$DP$191,4,FALSE)","v":173.14},{"$f":"VLOOKUP($A138,F1__World_Data!$A$4:$DP$191,3,FALSE)","v":167.899},{"$f":"VLOOKUP($A138,F1__World_Data!$A$4:$DP$191,2,FALSE)","v":162.429},null,{"$f":"VLOOKUP($A138,F1__World_Data!$A$4:$DP$191,120,FALSE)","v":72.864000000000004},{"$f":"VLOOKUP($A138,F1__World_Data!$A$4:$DP$191,119,FALSE)","v":72.692999999999998},{"$f":"VLOOKUP($A138,F1__World_Data!$A$4:$DP$191,118,FALSE)","v":72.492999999999995},{"$f":"VLOOKUP($A138,F1__World_Data!$A$4:$DP$191,117,FALSE)","v":72.266000000000005},{"$f":"VLOOKUP($A138,F1__World_Data!$A$4:$DP$191,116,FALSE)","v":72.022000000000006},{"$f":"VLOOKUP($A138,F1__World_Data!$A$4:$DP$191,115,FALSE)","v":71.768000000000001},{"$f":"VLOOKUP($A138,F1__World_Data!$A$4:$DP$191,114,FALSE)","v":71.506},{"$f":"VLOOKUP($A138,F1__World_Data!$A$4:$DP$191,113,FALSE)","v":71.233999999999995},{"$f":"VLOOKUP($A138,F1__World_Data!$A$4:$DP$191,112,FALSE)","v":70.938000000000002},{"$f":"VLOOKUP($A138,F1__World_Data!$A$4:$DP$191,111,FALSE)","v":70.596999999999994},{"$f":"VLOOKUP($A138,F1__World_Data!$A$4:$DP$191,110,FALSE)","v":70.200999999999993},{"$f":"VLOOKUP($A138,F1__World_Data!$A$4:$DP$191,109,FALSE)","v":69.751999999999995},{"$f":"VLOOKUP($A138,F1__World_Data!$A$4:$DP$191,108,FALSE)","v":69.259},{"$f":"VLOOKUP($A138,F1__World_Data!$A$4:$DP$191,107,FALSE)","v":68.747},{"$f":"VLOOKUP($A138,F1__World_Data!$A$4:$DP$191,106,FALSE)","v":68.248999999999995},{"$f":"VLOOKUP($A138,F1__World_Data!$A$4:$DP$191,105,FALSE)","v":67.790999999999997},{"$f":"VLOOKUP($A138,F1__World_Data!$A$4:$DP$191,104,FALSE)","v":67.391000000000005},{"$f":"VLOOKUP($A138,F1__World_Data!$A$4:$DP$191,103,FALSE)","v":67.054000000000002},{"$f":"VLOOKUP($A138,F1__World_Data!$A$4:$DP$191,102,FALSE)","v":66.763000000000005},{"$f":"VLOOKUP($A138,F1__World_Data!$A$4:$DP$191,101,FALSE)","v":66.491},{"$f":"VLOOKUP($A138,F1__World_Data!$A$4:$DP$191,100,FALSE)","v":66.206999999999994},{"$f":"VLOOKUP($A138,F1__World_Data!$A$4:$DP$191,99,FALSE)","v":65.899000000000001},{"$f":"VLOOKUP($A138,F1__World_Data!$A$4:$DP$191,98,FALSE)","v":65.572999999999993},{"$f":"VLOOKUP($A138,F1__World_Data!$A$4:$DP$191,97,FALSE)","v":65.256},{"$f":"VLOOKUP($A138,F1__World_Data!$A$4:$DP$191,96,FALSE)","v":64.991},{"$f":"VLOOKUP($A138,F1__World_Data!$A$4:$DP$191,95,FALSE)","v":64.81},{"$f":"VLOOKUP($A138,F1__World_Data!$A$4:$DP$191,94,FALSE)","v":64.730999999999995},{"$f":"VLOOKUP($A138,F1__World_Data!$A$4:$DP$191,93,FALSE)","v":64.745000000000005},{"$f":"VLOOKUP($A138,F1__World_Data!$A$4:$DP$191,92,FALSE)","v":64.826999999999998},{"$f":"VLOOKUP($A138,F1__World_Data!$A$4:$DP$191,91,FALSE)","v":64.935000000000002},{"$f":"VLOOKUP($A138,F1__World_Data!$A$4:$DP$191,90,FALSE)","v":65.021000000000001},{"$f":"VLOOKUP($A138,F1__World_Data!$A$4:$DP$191,89,FALSE)","v":65.052999999999997},{"$f":"VLOOKUP($A138,F1__World_Data!$A$4:$DP$191,88,FALSE)","v":65.016000000000005},{"$f":"VLOOKUP($A138,F1__World_Data!$A$4:$DP$191,87,FALSE)","v":64.912999999999997},{"$f":"VLOOKUP($A138,F1__World_Data!$A$4:$DP$191,86,FALSE)","v":64.759},{"$f":"VLOOKUP($A138,F1__World_Data!$A$4:$DP$191,85,FALSE)","v":64.587000000000003},{"$f":"VLOOKUP($A138,F1__World_Data!$A$4:$DP$191,84,FALSE)","v":64.424999999999997},{"$f":"VLOOKUP($A138,F1__World_Data!$A$4:$DP$191,83,FALSE)","v":64.28},{"$f":"VLOOKUP($A138,F1__World_Data!$A$4:$DP$191,82,FALSE)","v":64.161000000000001},{"$f":"VLOOKUP($A138,F1__World_Data!$A$4:$DP$191,81,FALSE)","v":64.069000000000003},{"$f":"VLOOKUP($A138,F1__World_Data!$A$4:$DP$191,80,FALSE)","v":63.991999999999997},{"$f":"VLOOKUP($A138,F1__World_Data!$A$4:$DP$191,79,FALSE)","v":63.920999999999999},{"$f":"VLOOKUP($A138,F1__World_Data!$A$4:$DP$191,78,FALSE)","v":63.851999999999997},{"$f":"VLOOKUP($A138,F1__World_Data!$A$4:$DP$191,77,FALSE)","v":63.776000000000003},{"$f":"VLOOKUP($A138,F1__World_Data!$A$4:$DP$191,76,FALSE)","v":63.686999999999998},{"$f":"VLOOKUP($A138,F1__World_Data!$A$4:$DP$191,75,FALSE)","v":63.582000000000001},{"$f":"VLOOKUP($A138,F1__World_Data!$A$4:$DP$191,74,FALSE)","v":63.457000000000001},{"$f":"VLOOKUP($A138,F1__World_Data!$A$4:$DP$191,73,FALSE)","v":63.31},{"$f":"VLOOKUP($A138,F1__World_Data!$A$4:$DP$191,72,FALSE)","v":63.140999999999998},{"$f":"VLOOKUP($A138,F1__World_Data!$A$4:$DP$191,71,FALSE)","v":62.953000000000003},{"$f":"VLOOKUP($A138,F1__World_Data!$A$4:$DP$191,70,FALSE)","v":62.75},{"$f":"VLOOKUP($A138,F1__World_Data!$A$4:$DP$191,69,FALSE)","v":62.539000000000001},{"$f":"VLOOKUP($A138,F1__World_Data!$A$4:$DP$191,68,FALSE)","v":62.322000000000003},{"$f":"VLOOKUP($A138,F1__World_Data!$A$4:$DP$191,67,FALSE)","v":62.103999999999999},{"$f":"VLOOKUP($A138,F1__World_Data!$A$4:$DP$191,66,FALSE)","v":61.889000000000003},{"$f":"VLOOKUP($A138,F1__World_Data!$A$4:$DP$191,65,FALSE)","v":61.679000000000002},{"$f":"VLOOKUP($A138,F1__World_Data!$A$4:$DP$191,64,FALSE)","v":61.469000000000001},{"$f":"VLOOKUP($A138,F1__World_Data!$A$4:$DP$191,63,FALSE)","v":61.256},{"$f":"VLOOKUP($A138,F1__World_Data!$A$4:$DP$191,62,FALSE)","v":61.033999999999999}]
["Trinidad and Tobago",{"$f":"VLOOKUP($A139,F1__World_Data!$A$4:$DP$191,60,FALSE)","v":1389.8409999999999},{"$f":"VLOOKUP($A139,F1__World_Data!$A$4:$DP$191,59,FALSE)","v":1384.06},{"$f":"VLOOKUP($A139,F1__World_Data!$A$4:$DP$191,58,FALSE)","v":1377.5630000000001},{"$f":"VLOOKUP($A139,F1__World_Data!$A$4:$DP$191,57,FALSE)","v":1370.3320000000001},{"$f":"VLOOKUP($A139,F1__World_Data!$A$4:$DP$191,56,FALSE)","v":1362.337},{"$f":"VLOOKUP($A139,F1__World_Data!$A$4:$DP$191,55,FALSE)","v":1353.7080000000001},{"$f":"VLOOKUP($A139,F1__World_Data!$A$4:$DP$191,54,FALSE)","v":1344.8140000000001},{"$f":"VLOOKUP($A139,F1__World_Data!$A$4:$DP$191,53,FALSE)","v":1336.18},{"$f":"VLOOKUP($A139,F1__World_Data!$A$4:$DP$191,52,FALSE)","v":1328.144},{"$f":"VLOOKUP($A139,F1__World_Data!$A$4:$DP$191,51,FALSE)","v":1320.921},{"$f":"VLOOKUP($A139,F1__World_Data!$A$4:$DP$191,50,FALSE)","v":1314.4490000000001},{"$f":"VLOOKUP($A139,F1__World_Data!$A$4:$DP$191,49,FALSE)","v":1308.45},{"$f":"VLOOKUP($A139,F1__World_Data!$A$4:$DP$191,48,FALSE)","v":1302.5519999999999},{"$f":"VLOOKUP($A139,F1__World_Data!$A$4:$DP$191,47,FALSE)","v":1296.4970000000001},{"$f":"VLOOKUP($A139,F1__World_Data!$A$4:$DP$191,46,FALSE)","v":1290.115},{"$f":"VLOOKUP($A139,F1__World_Data!$A$4:$DP$191,45,FALSE)","v":1283.5640000000001},{"$f":"VLOOKUP($A139,F1__World_Data!$A$4:$DP$191,44,FALSE)","v":1277.21},{"$f":"VLOOKUP($A139,F1__World_Data!$A$4:$DP$191,43,FALSE)","v":1271.627},{"$f":"VLOOKUP($A139,F1__World_Data!$A$4:$DP$191,42,FALSE)","v":1267.1590000000001},{"$f":"VLOOKUP($A139,F1__World_Data!$A$4:$DP$191,41,FALSE)","v":1263.9269999999999},{"$f":"VLOOKUP($A139,F1__World_Data!$A$4:$DP$191,40,FALSE)","v":1261.6990000000001},{"$f":"VLOOKUP($A139,F1__World_Data!$A$4:$DP$191,39,FALSE)","v":1259.838},{"$f":"VLOOKUP($A139,F1__World_Data!$A$4:$DP$191,38,FALSE)","v":1257.547},{"$f":"VLOOKUP($A139,F1__World_Data!$A$4:$DP$191,37,FALSE)","v":1254.2},{"$f":"VLOOKUP($A139,F1__World_Data!$A$4:$DP$191,36,FALSE)","v":1249.527},{"$f":"VLOOKUP($A139,F1__World_Data!$A$4:$DP$191,35,FALSE)","v":1243.605},{"$f":"VLOOKUP($A139,F1__World_Data!$A$4:$DP$191,34,FALSE)","v":1236.6849999999999},{"$f":"VLOOKUP($A139,F1__World_Data!$A$4:$DP$191,33,FALSE)","v":1229.1079999999999},{"$f":"VLOOKUP($A139,F1__World_Data!$A$4:$DP$191,32,FALSE)","v":1221.1210000000001},{"$f":"VLOOKUP($A139,F1__World_Data!$A$4:$DP$191,31,FALSE)","v":1212.8579999999999},{"$f":"VLOOKUP($A139,F1__World_Data!$A$4:$DP$191,30,FALSE)","v":1204.1500000000001},{"$f":"VLOOKUP($A139,F1__World_Data!$A$4:$DP$191,29,FALSE)","v":1194.5319999999999},{"$f":"VLOOKUP($A139,F1__World_Data!$A$4:$DP$191,28,FALSE)","v":1183.3820000000001},{"$f":"VLOOKUP($A139,F1__World_Data!$A$4:$DP$191,27,FALSE)","v":1170.296},{"$f":"VLOOKUP($A139,F1__World_Data!$A$4:$DP$191,26,FALSE)","v":1155.0830000000001},{"$f":"VLOOKUP($A139,F1__World_Data!$A$4:$DP$191,25,FALSE)","v":1138.0709999999999},{"$f":"VLOOKUP($A139,F1__World_Data!$A$4:$DP$191,24,FALSE)","v":1120.019},{"$f":"VLOOKUP($A139,F1__World_Data!$A$4:$DP$191,23,FALSE)","v":1101.9829999999999},{"$f":"VLOOKUP($A139,F1__World_Data!$A$4:$DP$191,22,FALSE)","v":1084.7429999999999},{"$f":"VLOOKUP($A139,F1__World_Data!$A$4:$DP$191,21,FALSE)","v":1068.644},{"$f":"VLOOKUP($A139,F1__World_Data!$A$4:$DP$191,20,FALSE)","v":1053.56},{"$f":"VLOOKUP($A139,F1__World_Data!$A$4:$DP$191,19,FALSE)","v":1039.21},{"$f":"VLOOKUP($A139,F1__World_Data!$A$4:$DP$191,18,FALSE)","v":1025.104},{"$f":"VLOOKUP($A139,F1__World_Data!$A$4:$DP$191,17,FALSE)","v":1010.934},{"$f":"VLOOKUP($A139,F1__World_Data!$A$4:$DP$191,16,FALSE)","v":996.47900000000004},{"$f":"VLOOKUP($A139,F1__World_Data!$A$4:$DP$191,15,FALSE)","v":982.00599999999997},{"$f":"VLOOKUP($A139,F1__World_Data!$A$4:$DP$191,14,FALSE)","v":968.13599999999997},{"$f":"VLOOKUP($A139,F1__World_Data!$A$4:$DP$191,13,FALSE)","v":955.75300000000004},{"$f":"VLOOKUP($A139,F1__World_Data!$A$4:$DP$191,12,FALSE)","v":945.35699999999997},{"$f":"VLOOKUP($A139,F1__World_Data!$A$4:$DP$191,11,FALSE)","v":937.18399999999997},{"$f":"VLOOKUP($A139,F1__World_Data!$A$4:$DP$191,10,FALSE)","v":930.79200000000003},{"$f":"VLOOKUP($A139,F1__World_Data!$A$4:$DP$191,9,FALSE)","v":925.23299999999995},{"$f":"VLOOKUP($A139,F1__World_Data!$A$4:$DP$191,8,FALSE)","v":919.21799999999996},{"$f":"VLOOKUP($A139,F1__World_Data!$A$4:$DP$191,7,FALSE)","v":911.74199999999996},{"$f":"VLOOKUP($A139,F1__World_Data!$A$4:$DP$191,6,FALSE)","v":902.62},{"$f":"VLOOKUP($A139,F1__World_Data!$A$4:$DP$191,5,FALSE)","v":891.94799999999998},{"$f":"VLOOKUP($A139,F1__World_Data!$A$4:$DP$191,4,FALSE)","v":879.43600000000004},{"$f":"VLOOKUP($A139,F1__World_Data!$A$4:$DP$191,3,FALSE)","v":864.81399999999996},{"$f":"VLOOKUP($A139,F1__World_Data!$A$4:$DP$191,2,FALSE)","v":847.97299999999996},null,{"$f":"VLOOKUP($A139,F1__World_Data!$A$4:$DP$191,120,FALSE)","v":63.856999999999999},{"$f":"VLOOKUP($A139,F1__World_Data!$A$4:$DP$191,119,FALSE)","v":63.537999999999997},{"$f":"VLOOKUP($A139,F1__World_Data!$A$4:$DP$191,118,FALSE)","v":63.152999999999999},{"$f":"VLOOKUP($A139,F1__World_Data!$A$4:$DP$191,117,FALSE)","v":62.649000000000001},{"$f":"VLOOKUP($A139,F1__World_Data!$A$4:$DP$191,116,FALSE)","v":61.968000000000004},{"$f":"VLOOKUP($A139,F1__World_Data!$A$4:$DP$191,115,FALSE)","v":61.098999999999997},{"$f":"VLOOKUP($A139,F1__World_Data!$A$4:$DP$191,114,FALSE)","v":60.06},{"$f":"VLOOKUP($A139,F1__World_Data!$A$4:$DP$191,113,FALSE)","v":58.895000000000003},{"$f":"VLOOKUP($A139,F1__World_Data!$A$4:$DP$191,112,FALSE)","v":57.668999999999997},{"$f":"VLOOKUP($A139,F1__World_Data!$A$4:$DP$191,111,FALSE)","v":56.46},{"$f":"VLOOKUP($A139,F1__World_Data!$A$4:$DP$191,110,FALSE)","v":55.36},{"$f":"VLOOKUP($A139,F1__World_Data!$A$4:$DP$191,109,FALSE)","v":54.451999999999998},{"$f":"VLOOKUP($A139,F1__World_Data!$A$4:$DP$191,108,FALSE)","v":53.795000000000002},{"$f":"VLOOKUP($A139,F1__World_Data!$A$4:$DP$191,107,FALSE)","v":53.447000000000003},{"$f":"VLOOKUP($A139,F1__World_Data!$A$4:$DP$191,106,FALSE)","v":53.444000000000003},{"$f":"VLOOKUP($A139,F1__World_Data!$A$4:$DP$191,105,FALSE)","v":53.749000000000002},{"$f":"VLOOKUP($A139,F1__World_Data!$A$4:$DP$191,104,FALSE)","v":54.31},{"$f":"VLOOKUP($A139,F1__World_Data!$A$4:$DP$191,103,FALSE)","v":55.088999999999999},{"$f":"VLOOKUP($A139,F1__World_Data!$A$4:$DP$191,102,FALSE)","v":56.048000000000002},{"$f":"VLOOKUP($A139,F1__World_Data!$A$4:$DP$191,101,FALSE)","v":57.143999999999998},{"$f":"VLOOKUP($A139,F1__World_Data!$A$4:$DP$191,100,FALSE)","v":58.314999999999998},{"$f":"VLOOKUP($A139,F1__World_Data!$A$4:$DP$191,99,FALSE)","v":59.488999999999997},{"$f":"VLOOKUP($A139,F1__World_Data!$A$4:$DP$191,98,FALSE)","v":60.594999999999999},{"$f":"VLOOKUP($A139,F1__World_Data!$A$4:$DP$191,97,FALSE)","v":61.561},{"$f":"VLOOKUP($A139,F1__World_Data!$A$4:$DP$191,96,FALSE)","v":62.331000000000003},{"$f":"VLOOKUP($A139,F1__World_Data!$A$4:$DP$191,95,FALSE)","v":62.893999999999998},{"$f":"VLOOKUP($A139,F1__World_Data!$A$4:$DP$191,94,FALSE)","v":63.247},{"$f":"VLOOKUP($A139,F1__World_Data!$A$4:$DP$191,93,FALSE)","v":63.384},{"$f":"VLOOKUP($A139,F1__World_Data!$A$4:$DP$191,92,FALSE)","v":63.307000000000002},{"$f":"VLOOKUP($A139,F1__World_Data!$A$4:$DP$191,91,FALSE)","v":63.034999999999997},{"$f":"VLOOKUP($A139,F1__World_Data!$A$4:$DP$191,90,FALSE)","v":62.619},{"$f":"VLOOKUP($A139,F1__World_Data!$A$4:$DP$191,89,FALSE)","v":62.109000000000002},{"$f":"VLOOKUP($A139,F1__World_Data!$A$4:$DP$191,88,FALSE)","v":61.54},{"$f":"VLOOKUP($A139,F1__World_Data!$A$4:$DP$191,87,FALSE)","v":60.945999999999998},{"$f":"VLOOKUP($A139,F1__World_Data!$A$4:$DP$191,86,FALSE)","v":60.353000000000002},{"$f":"VLOOKUP($A139,F1__World_Data!$A$4:$DP$191,85,FALSE)","v":59.765999999999998},{"$f":"VLOOKUP($A139,F1__World_Data!$A$4:$DP$191,84,FALSE)","v":59.191000000000003},{"$f":"VLOOKUP($A139,F1__World_Data!$A$4:$DP$191,83,FALSE)","v":58.637},{"$f":"VLOOKUP($A139,F1__World_Data!$A$4:$DP$191,82,FALSE)","v":58.106999999999999},{"$f":"VLOOKUP($A139,F1__World_Data!$A$4:$DP$191,81,FALSE)","v":57.59},{"$f":"VLOOKUP($A139,F1__World_Data!$A$4:$DP$191,80,FALSE)","v":57.070999999999998},{"$f":"VLOOKUP($A139,F1__World_Data!$A$4:$DP$191,79,FALSE)","v":56.537999999999997},{"$f":"VLOOKUP($A139,F1__World_Data!$A$4:$DP$191,78,FALSE)","v":55.99},{"$f":"VLOOKUP($A139,F1__World_Data!$A$4:$DP$191,77,FALSE)","v":55.427999999999997},{"$f":"VLOOKUP($A139,F1__World_Data!$A$4:$DP$191,76,FALSE)","v":54.856000000000002},{"$f":"VLOOKUP($A139,F1__World_Data!$A$4:$DP$191,75,FALSE)","v":54.280999999999999},{"$f":"VLOOKUP($A139,F1__World_Data!$A$4:$DP$191,74,FALSE)","v":53.713000000000001},{"$f":"VLOOKUP($A139,F1__World_Data!$A$4:$DP$191,73,FALSE)","v":53.156999999999996},{"$f":"VLOOKUP($A139,F1__World_Data!$A$4:$DP$191,72,FALSE)","v":52.62},{"$f":"VLOOKUP($A139,F1__World_Data!$A$4:$DP$191,71,FALSE)","v":52.106000000000002},{"$f":"VLOOKUP($A139,F1__World_Data!$A$4:$DP$191,70,FALSE)","v":51.615000000000002},{"$f":"VLOOKUP($A139,F1__World_Data!$A$4:$DP$191,69,FALSE)","v":51.148000000000003},{"$f":"VLOOKUP($A139,F1__World_Data!$A$4:$DP$191,68,FALSE)","v":50.704999999999998},{"$f":"VLOOKUP($A139,F1__World_Data!$A$4:$DP$191,67,FALSE)","v":50.283999999999999},{"$f":"VLOOKUP($A139,F1__World_Data!$A$4:$DP$191,66,FALSE)","v":49.887999999999998},{"$f":"VLOOKUP($A139,F1__World_Data!$A$4:$DP$191,65,FALSE)","v":49.509},{"$f":"VLOOKUP($A139,F1__World_Data!$A$4:$DP$191,64,FALSE)","v":49.142000000000003},{"$f":"VLOOKUP($A139,F1__World_Data!$A$4:$DP$191,63,FALSE)","v":48.777000000000001},{"$f":"VLOOKUP($A139,F1__World_Data!$A$4:$DP$191,62,FALSE)","v":48.405999999999999}]
["Estonia",{"$f":"VLOOKUP($A140,F1__World_Data!$A$4:$DP$191,60,FALSE)","v":1322.913},{"$f":"VLOOKUP($A140,F1__World_Data!$A$4:$DP$191,59,FALSE)","v":1319.3889999999999},{"$f":"VLOOKUP($A140,F1__World_Data!$A$4:$DP$191,58,FALSE)","v":1316.5070000000001},{"$f":"VLOOKUP($A140,F1__World_Data!$A$4:$DP$191,57,FALSE)","v":1315.33},{"$f":"VLOOKUP($A140,F1__World_Data!$A$4:$DP$191,56,FALSE)","v":1316.2729999999999},{"$f":"VLOOKUP($A140,F1__World_Data!$A$4:$DP$191,55,FALSE)","v":1319.068},{"$f":"VLOOKUP($A140,F1__World_Data!$A$4:$DP$191,54,FALSE)","v":1323.163},{"$f":"VLOOKUP($A140,F1__World_Data!$A$4:$DP$191,53,FALSE)","v":1327.701},{"$f":"VLOOKUP($A140,F1__World_Data!$A$4:$DP$191,52,FALSE)","v":1332.1030000000001},{"$f":"VLOOKUP($A140,F1__World_Data!$A$4:$DP$191,51,FALSE)","v":1336.14},{"$f":"VLOOKUP($A140,F1__World_Data!$A$4:$DP$191,50,FALSE)","v":1340.067},{"$f":"VLOOKUP($A140,F1__World_Data!$A$4:$DP$191,49,FALSE)","v":1344.2950000000001},{"$f":"VLOOKUP($A140,F1__World_Data!$A$4:$DP$191,48,FALSE)","v":1349.373},{"$f":"VLOOKUP($A140,F1__World_Data!$A$4:$DP$191,47,FALSE)","v":1355.65},{"$f":"VLOOKUP($A140,F1__World_Data!$A$4:$DP$191,46,FALSE)","v":1363.57},{"$f":"VLOOKUP($A140,F1__World_Data!$A$4:$DP$191,45,FALSE)","v":1372.904},{"$f":"VLOOKUP($A140,F1__World_Data!$A$4:$DP$191,44,FALSE)","v":1382.7370000000001},{"$f":"VLOOKUP($A140,F1__World_Data!$A$4:$DP$191,43,FALSE)","v":1391.739},{"$f":"VLOOKUP($A140,F1__World_Data!$A$4:$DP$191,42,FALSE)","v":1399.1110000000001},{"$f":"VLOOKUP($A140,F1__World_Data!$A$4:$DP$191,41,FALSE)","v":1403.7840000000001},{"$f":"VLOOKUP($A140,F1__World_Data!$A$4:$DP$191,40,FALSE)","v":1406.35},{"$f":"VLOOKUP($A140,F1__World_Data!$A$4:$DP$191,39,FALSE)","v":1409.6780000000001},{"$f":"VLOOKUP($A140,F1__World_Data!$A$4:$DP$191,38,FALSE)","v":1417.741},{"$f":"VLOOKUP($A140,F1__World_Data!$A$4:$DP$191,37,FALSE)","v":1433.0260000000001},{"$f":"VLOOKUP($A140,F1__World_Data!$A$4:$DP$191,36,FALSE)","v":1457.09},{"$f":"VLOOKUP($A140,F1__World_Data!$A$4:$DP$191,35,FALSE)","v":1488.06},{"$f":"VLOOKUP($A140,F1__World_Data!$A$4:$DP$191,34,FALSE)","v":1520.8109999999999},{"$f":"VLOOKUP($A140,F1__World_Data!$A$4:$DP$191,33,FALSE)","v":1548.22},{"$f":"VLOOKUP($A140,F1__World_Data!$A$4:$DP$191,32,FALSE)","v":1565.2460000000001},{"$f":"VLOOKUP($A140,F1__World_Data!$A$4:$DP$191,31,FALSE)","v":1569.9670000000001},{"$f":"VLOOKUP($A140,F1__World_Data!$A$4:$DP$191,30,FALSE)","v":1564.2},{"$f":"VLOOKUP($A140,F1__World_Data!$A$4:$DP$191,29,FALSE)","v":1551.2090000000001},{"$f":"VLOOKUP($A140,F1__World_Data!$A$4:$DP$191,28,FALSE)","v":1536.0340000000001},{"$f":"VLOOKUP($A140,F1__World_Data!$A$4:$DP$191,27,FALSE)","v":1522.405},{"$f":"VLOOKUP($A140,F1__World_Data!$A$4:$DP$191,26,FALSE)","v":1511.193},{"$f":"VLOOKUP($A140,F1__World_Data!$A$4:$DP$191,25,FALSE)","v":1501.422},{"$f":"VLOOKUP($A140,F1__World_Data!$A$4:$DP$191,24,FALSE)","v":1492.64},{"$f":"VLOOKUP($A140,F1__World_Data!$A$4:$DP$191,23,FALSE)","v":1483.8789999999999},{"$f":"VLOOKUP($A140,F1__World_Data!$A$4:$DP$191,22,FALSE)","v":1474.4380000000001},{"$f":"VLOOKUP($A140,F1__World_Data!$A$4:$DP$191,21,FALSE)","v":1464.423},{"$f":"VLOOKUP($A140,F1__World_Data!$A$4:$DP$191,20,FALSE)","v":1454.2660000000001},{"$f":"VLOOKUP($A140,F1__World_Data!$A$4:$DP$191,19,FALSE)","v":1443.8910000000001},{"$f":"VLOOKUP($A140,F1__World_Data!$A$4:$DP$191,18,FALSE)","v":1433.173},{"$f":"VLOOKUP($A140,F1__World_Data!$A$4:$DP$191,17,FALSE)","v":1422.0519999999999},{"$f":"VLOOKUP($A140,F1__World_Data!$A$4:$DP$191,16,FALSE)","v":1410.4670000000001},{"$f":"VLOOKUP($A140,F1__World_Data!$A$4:$DP$191,15,FALSE)","v":1398.47},{"$f":"VLOOKUP($A140,F1__World_Data!$A$4:$DP$191,14,FALSE)","v":1386.0740000000001},{"$f":"VLOOKUP($A140,F1__World_Data!$A$4:$DP$191,13,FALSE)","v":1373.298},{"$f":"VLOOKUP($A140,F1__World_Data!$A$4:$DP$191,12,FALSE)","v":1360.2059999999999},{"$f":"VLOOKUP($A140,F1__World_Data!$A$4:$DP$191,11,FALSE)","v":1346.82},{"$f":"VLOOKUP($A140,F1__World_Data!$A$4:$DP$191,10,FALSE)","v":1333.174},{"$f":"VLOOKUP($A140,F1__World_Data!$A$4:$DP$191,9,FALSE)","v":1319.249},{"$f":"VLOOKUP($A140,F1__World_Data!$A$4:$DP$191,8,FALSE)","v":1304.9839999999999},{"$f":"VLOOKUP($A140,F1__World_Data!$A$4:$DP$191,7,FALSE)","v":1290.4059999999999},{"$f":"VLOOKUP($A140,F1__World_Data!$A$4:$DP$191,6,FALSE)","v":1275.44},{"$f":"VLOOKUP($A140,F1__World_Data!$A$4:$DP$191,5,FALSE)","v":1260.2149999999999},{"$f":"VLOOKUP($A140,F1__World_Data!$A$4:$DP$191,4,FALSE)","v":1245.0830000000001},{"$f":"VLOOKUP($A140,F1__World_Data!$A$4:$DP$191,3,FALSE)","v":1230.5039999999999},{"$f":"VLOOKUP($A140,F1__World_Data!$A$4:$DP$191,2,FALSE)","v":1216.82},null,{"$f":"VLOOKUP($A140,F1__World_Data!$A$4:$DP$191,120,FALSE)","v":78.543902439024393},{"$f":"VLOOKUP($A140,F1__World_Data!$A$4:$DP$191,119,FALSE)","v":78.092682926829269},{"$f":"VLOOKUP($A140,F1__World_Data!$A$4:$DP$191,118,FALSE)","v":77.64146341463416},{"$f":"VLOOKUP($A140,F1__World_Data!$A$4:$DP$191,117,FALSE)","v":77.590243902439028},{"$f":"VLOOKUP($A140,F1__World_Data!$A$4:$DP$191,116,FALSE)","v":77.034146341463426},{"$f":"VLOOKUP($A140,F1__World_Data!$A$4:$DP$191,115,FALSE)","v":77.141463414634146},{"$f":"VLOOKUP($A140,F1__World_Data!$A$4:$DP$191,114,FALSE)","v":76.326829268292698},{"$f":"VLOOKUP($A140,F1__World_Data!$A$4:$DP$191,113,FALSE)","v":76.229268292682931},{"$f":"VLOOKUP($A140,F1__World_Data!$A$4:$DP$191,112,FALSE)","v":75.429268292682934},{"$f":"VLOOKUP($A140,F1__World_Data!$A$4:$DP$191,111,FALSE)","v":74.824390243902442},{"$f":"VLOOKUP($A140,F1__World_Data!$A$4:$DP$191,110,FALSE)","v":73.770731707317083},{"$f":"VLOOKUP($A140,F1__World_Data!$A$4:$DP$191,109,FALSE)","v":72.814634146341476},{"$f":"VLOOKUP($A140,F1__World_Data!$A$4:$DP$191,108,FALSE)","v":72.691463414634143},{"$f":"VLOOKUP($A140,F1__World_Data!$A$4:$DP$191,107,FALSE)","v":72.568292682926824},{"$f":"VLOOKUP($A140,F1__World_Data!$A$4:$DP$191,106,FALSE)","v":71.909756097560972},{"$f":"VLOOKUP($A140,F1__World_Data!$A$4:$DP$191,105,FALSE)","v":71.317073170731703},{"$f":"VLOOKUP($A140,F1__World_Data!$A$4:$DP$191,104,FALSE)","v":70.904878048780503},{"$f":"VLOOKUP($A140,F1__World_Data!$A$4:$DP$191,103,FALSE)","v":70.25853658536586},{"$f":"VLOOKUP($A140,F1__World_Data!$A$4:$DP$191,102,FALSE)","v":70.417073170731726},{"$f":"VLOOKUP($A140,F1__World_Data!$A$4:$DP$191,101,FALSE)","v":70.063414634146341},{"$f":"VLOOKUP($A140,F1__World_Data!$A$4:$DP$191,100,FALSE)","v":69.358536585365854},{"$f":"VLOOKUP($A140,F1__World_Data!$A$4:$DP$191,99,FALSE)","v":69.809756097560992},{"$f":"VLOOKUP($A140,F1__World_Data!$A$4:$DP$191,98,FALSE)","v":69.612195121951217},{"$f":"VLOOKUP($A140,F1__World_Data!$A$4:$DP$191,97,FALSE)","v":67.543902439024379},{"$f":"VLOOKUP($A140,F1__World_Data!$A$4:$DP$191,96,FALSE)","v":66.5},{"$f":"VLOOKUP($A140,F1__World_Data!$A$4:$DP$191,95,FALSE)","v":67.909756097560987},{"$f":"VLOOKUP($A140,F1__World_Data!$A$4:$DP$191,94,FALSE)","v":68.863414634146352},{"$f":"VLOOKUP($A140,F1__World_Data!$A$4:$DP$191,93,FALSE)","v":69.373170731707319},{"$f":"VLOOKUP($A140,F1__World_Data!$A$4:$DP$191,92,FALSE)","v":69.475609756097569},{"$f":"VLOOKUP($A140,F1__World_Data!$A$4:$DP$191,91,FALSE)","v":70.039024390243895},{"$f":"VLOOKUP($A140,F1__World_Data!$A$4:$DP$191,90,FALSE)","v":70.697560975609761},{"$f":"VLOOKUP($A140,F1__World_Data!$A$4:$DP$191,89,FALSE)","v":70.643902439024387},{"$f":"VLOOKUP($A140,F1__World_Data!$A$4:$DP$191,88,FALSE)","v":70.085365853658544},{"$f":"VLOOKUP($A140,F1__World_Data!$A$4:$DP$191,87,FALSE)","v":69.380487804878058},{"$f":"VLOOKUP($A140,F1__World_Data!$A$4:$DP$191,86,FALSE)","v":69.278048780487822},{"$f":"VLOOKUP($A140,F1__World_Data!$A$4:$DP$191,85,FALSE)","v":69.37560975609756},{"$f":"VLOOKUP($A140,F1__World_Data!$A$4:$DP$191,84,FALSE)","v":69.126829268292695},{"$f":"VLOOKUP($A140,F1__World_Data!$A$4:$DP$191,83,FALSE)","v":68.978048780487796},{"$f":"VLOOKUP($A140,F1__World_Data!$A$4:$DP$191,82,FALSE)","v":68.90563414634147},{"$f":"VLOOKUP($A140,F1__World_Data!$A$4:$DP$191,81,FALSE)","v":68.938585365853655},{"$f":"VLOOKUP($A140,F1__World_Data!$A$4:$DP$191,80,FALSE)","v":69.026268292682929},{"$f":"VLOOKUP($A140,F1__World_Data!$A$4:$DP$191,79,FALSE)","v":69.146951219512204},{"$f":"VLOOKUP($A140,F1__World_Data!$A$4:$DP$191,78,FALSE)","v":69.290024390243914},{"$f":"VLOOKUP($A140,F1__World_Data!$A$4:$DP$191,77,FALSE)","v":69.441317073170737},{"$f":"VLOOKUP($A140,F1__World_Data!$A$4:$DP$191,76,FALSE)","v":69.590219512195119},{"$f":"VLOOKUP($A140,F1__World_Data!$A$4:$DP$191,75,FALSE)","v":69.72458536585367},{"$f":"VLOOKUP($A140,F1__World_Data!$A$4:$DP$191,74,FALSE)","v":69.832829268292684},{"$f":"VLOOKUP($A140,F1__World_Data!$A$4:$DP$191,73,FALSE)","v":69.905341463414643},{"$f":"VLOOKUP($A140,F1__World_Data!$A$4:$DP$191,72,FALSE)","v":69.93709756097563},{"$f":"VLOOKUP($A140,F1__World_Data!$A$4:$DP$191,71,FALSE)","v":69.928097560975615},{"$f":"VLOOKUP($A140,F1__World_Data!$A$4:$DP$191,70,FALSE)","v":69.8829268292683},{"$f":"VLOOKUP($A140,F1__World_Data!$A$4:$DP$191,69,FALSE)","v":69.802121951219533},{"$f":"VLOOKUP($A140,F1__World_Data!$A$4:$DP$191,68,FALSE)","v":69.681195121951234},{"$f":"VLOOKUP($A140,F1__World_Data!$A$4:$DP$191,67,FALSE)","v":69.517634146341464},{"$f":"VLOOKUP($A140,F1__World_Data!$A$4:$DP$191,66,FALSE)","v":69.309926829268306},{"$f":"VLOOKUP($A140,F1__World_Data!$A$4:$DP$191,65,FALSE)","v":69.053560975609756},{"$f":"VLOOKUP($A140,F1__World_Data!$A$4:$DP$191,64,FALSE)","v":68.741024390243922},{"$f":"VLOOKUP($A140,F1__World_Data!$A$4:$DP$191,63,FALSE)","v":68.360804878048796},{"$f":"VLOOKUP($A140,F1__World_Data!$A$4:$DP$191,62,FALSE)","v":67.902902439024388}]
["Equatorial Guinea",{"$f":"VLOOKUP($A141,F1__World_Data!$A$4:$DP$191,60,FALSE)","v":1308.9659999999999},{"$f":"VLOOKUP($A141,F1__World_Data!$A$4:$DP$191,59,FALSE)","v":1262.008},{"$f":"VLOOKUP($A141,F1__World_Data!$A$4:$DP$191,58,FALSE)","v":1215.181},{"$f":"VLOOKUP($A141,F1__World_Data!$A$4:$DP$191,57,FALSE)","v":1168.575},{"$f":"VLOOKUP($A141,F1__World_Data!$A$4:$DP$191,56,FALSE)","v":1122.2729999999999},{"$f":"VLOOKUP($A141,F1__World_Data!$A$4:$DP$191,55,FALSE)","v":1076.412},{"$f":"VLOOKUP($A141,F1__World_Data!$A$4:$DP$191,54,FALSE)","v":1031.191},{"$f":"VLOOKUP($A141,F1__World_Data!$A$4:$DP$191,53,FALSE)","v":986.86099999999999},{"$f":"VLOOKUP($A141,F1__World_Data!$A$4:$DP$191,52,FALSE)","v":943.64},{"$f":"VLOOKUP($A141,F1__World_Data!$A$4:$DP$191,51,FALSE)","v":901.58900000000006},{"$f":"VLOOKUP($A141,F1__World_Data!$A$4:$DP$191,50,FALSE)","v":860.83900000000006},{"$f":"VLOOKUP($A141,F1__World_Data!$A$4:$DP$191,49,FALSE)","v":821.68600000000004},{"$f":"VLOOKUP($A141,F1__World_Data!$A$4:$DP$191,48,FALSE)","v":784.49400000000003},{"$f":"VLOOKUP($A141,F1__World_Data!$A$4:$DP$191,47,FALSE)","v":749.52700000000004},{"$f":"VLOOKUP($A141,F1__World_Data!$A$4:$DP$191,46,FALSE)","v":716.94899999999996},{"$f":"VLOOKUP($A141,F1__World_Data!$A$4:$DP$191,45,FALSE)","v":686.67},{"$f":"VLOOKUP($A141,F1__World_Data!$A$4:$DP$191,44,FALSE)","v":658.38800000000003},{"$f":"VLOOKUP($A141,F1__World_Data!$A$4:$DP$191,43,FALSE)","v":631.66200000000003},{"$f":"VLOOKUP($A141,F1__World_Data!$A$4:$DP$191,42,FALSE)","v":606.17999999999995},{"$f":"VLOOKUP($A141,F1__World_Data!$A$4:$DP$191,41,FALSE)","v":581.76499999999999},{"$f":"VLOOKUP($A141,F1__World_Data!$A$4:$DP$191,40,FALSE)","v":558.49599999999998},{"$f":"VLOOKUP($A141,F1__World_Data!$A$4:$DP$191,39,FALSE)","v":536.45899999999995},{"$f":"VLOOKUP($A141,F1__World_Data!$A$4:$DP$191,38,FALSE)","v":515.84400000000005},{"$f":"VLOOKUP($A141,F1__World_Data!$A$4:$DP$191,37,FALSE)","v":496.76799999999997},{"$f":"VLOOKUP($A141,F1__World_Data!$A$4:$DP$191,36,FALSE)","v":479.09899999999999},{"$f":"VLOOKUP($A141,F1__World_Data!$A$4:$DP$191,35,FALSE)","v":462.637},{"$f":"VLOOKUP($A141,F1__World_Data!$A$4:$DP$191,34,FALSE)","v":447.26900000000001},{"$f":"VLOOKUP($A141,F1__World_Data!$A$4:$DP$191,33,FALSE)","v":432.84399999999999},{"$f":"VLOOKUP($A141,F1__World_Data!$A$4:$DP$191,32,FALSE)","v":419.18799999999999},{"$f":"VLOOKUP($A141,F1__World_Data!$A$4:$DP$191,31,FALSE)","v":406.62},{"$f":"VLOOKUP($A141,F1__World_Data!$A$4:$DP$191,30,FALSE)","v":394.97300000000001},{"$f":"VLOOKUP($A141,F1__World_Data!$A$4:$DP$191,29,FALSE)","v":382.97699999999998},{"$f":"VLOOKUP($A141,F1__World_Data!$A$4:$DP$191,28,FALSE)","v":369.024},{"$f":"VLOOKUP($A141,F1__World_Data!$A$4:$DP$191,27,FALSE)","v":352.11599999999999},{"$f":"VLOOKUP($A141,F1__World_Data!$A$4:$DP$191,26,FALSE)","v":331.55399999999997},{"$f":"VLOOKUP($A141,F1__World_Data!$A$4:$DP$191,25,FALSE)","v":308.20800000000003},{"$f":"VLOOKUP($A141,F1__World_Data!$A$4:$DP$191,24,FALSE)","v":284.63799999999998},{"$f":"VLOOKUP($A141,F1__World_Data!$A$4:$DP$191,23,FALSE)","v":264.37},{"$f":"VLOOKUP($A141,F1__World_Data!$A$4:$DP$191,22,FALSE)","v":249.93100000000001},{"$f":"VLOOKUP($A141,F1__World_Data!$A$4:$DP$191,21,FALSE)","v":241.977},{"$f":"VLOOKUP($A141,F1__World_Data!$A$4:$DP$191,20,FALSE)","v":239.68100000000001},{"$f":"VLOOKUP($A141,F1__World_Data!$A$4:$DP$191,19,FALSE)","v":242.16},{"$f":"VLOOKUP($A141,F1__World_Data!$A$4:$DP$191,18,FALSE)","v":247.96899999999999},{"$f":"VLOOKUP($A141,F1__World_Data!$A$4:$DP$191,17,FALSE)","v":255.80799999999999},{"$f":"VLOOKUP($A141,F1__World_Data!$A$4:$DP$191,16,FALSE)","v":265.762},{"$f":"VLOOKUP($A141,F1__World_Data!$A$4:$DP$191,15,FALSE)","v":277.65600000000001},{"$f":"VLOOKUP($A141,F1__World_Data!$A$4:$DP$191,14,FALSE)","v":289.50799999999998},{"$f":"VLOOKUP($A141,F1__World_Data!$A$4:$DP$191,13,FALSE)","v":298.85199999999998},{"$f":"VLOOKUP($A141,F1__World_Data!$A$4:$DP$191,12,FALSE)","v":303.98599999999999},{"$f":"VLOOKUP($A141,F1__World_Data!$A$4:$DP$191,11,FALSE)","v":304},{"$f":"VLOOKUP($A141,F1__World_Data!$A$4:$DP$191,10,FALSE)","v":299.416},{"$f":"VLOOKUP($A141,F1__World_Data!$A$4:$DP$191,9,FALSE)","v":291.786},{"$f":"VLOOKUP($A141,F1__World_Data!$A$4:$DP$191,8,FALSE)","v":283.50599999999997},{"$f":"VLOOKUP($A141,F1__World_Data!$A$4:$DP$191,7,FALSE)","v":276.29599999999999},{"$f":"VLOOKUP($A141,F1__World_Data!$A$4:$DP$191,6,FALSE)","v":270.61599999999999},{"$f":"VLOOKUP($A141,F1__World_Data!$A$4:$DP$191,5,FALSE)","v":266.005},{"$f":"VLOOKUP($A141,F1__World_Data!$A$4:$DP$191,4,FALSE)","v":262.21899999999999},{"$f":"VLOOKUP($A141,F1__World_Data!$A$4:$DP$191,3,FALSE)","v":258.786},{"$f":"VLOOKUP($A141,F1__World_Data!$A$4:$DP$191,2,FALSE)","v":255.33799999999999},null,{"$f":"VLOOKUP($A141,F1__World_Data!$A$4:$DP$191,120,FALSE)","v":76.068336425009335},{"$f":"VLOOKUP($A141,F1__World_Data!$A$4:$DP$191,119,FALSE)","v":75.865953913004901},{"$f":"VLOOKUP($A141,F1__World_Data!$A$4:$DP$191,118,FALSE)","v":75.635540867798511},{"$f":"VLOOKUP($A141,F1__World_Data!$A$4:$DP$191,117,FALSE)","v":75.392556877146006},{"$f":"VLOOKUP($A141,F1__World_Data!$A$4:$DP$191,116,FALSE)","v":75.125170291792728},{"$f":"VLOOKUP($A141,F1__World_Data!$A$4:$DP$191,115,FALSE)","v":74.848214388702232},{"$f":"VLOOKUP($A141,F1__World_Data!$A$4:$DP$191,114,FALSE)","v":74.562126746498507},{"$f":"VLOOKUP($A141,F1__World_Data!$A$4:$DP$191,113,FALSE)","v":74.265950123674273},{"$f":"VLOOKUP($A141,F1__World_Data!$A$4:$DP$191,112,FALSE)","v":74.012996899440708},{"$f":"VLOOKUP($A141,F1__World_Data!$A$4:$DP$191,111,FALSE)","v":73.759125114931521},{"$f":"VLOOKUP($A141,F1__World_Data!$A$4:$DP$191,110,FALSE)","v":73.469895568539044},{"$f":"VLOOKUP($A141,F1__World_Data!$A$4:$DP$191,109,FALSE)","v":73.200933776161776},{"$f":"VLOOKUP($A141,F1__World_Data!$A$4:$DP$191,108,FALSE)","v":72.9216442984265},{"$f":"VLOOKUP($A141,F1__World_Data!$A$4:$DP$191,107,FALSE)","v":72.624620749367708},{"$f":"VLOOKUP($A141,F1__World_Data!$A$4:$DP$191,106,FALSE)","v":72.361144594166916},{"$f":"VLOOKUP($A141,F1__World_Data!$A$4:$DP$191,105,FALSE)","v":72.067528417777268},{"$f":"VLOOKUP($A141,F1__World_Data!$A$4:$DP$191,104,FALSE)","v":71.774764827285424},{"$f":"VLOOKUP($A141,F1__World_Data!$A$4:$DP$191,103,FALSE)","v":71.481717211098157},{"$f":"VLOOKUP($A141,F1__World_Data!$A$4:$DP$191,102,FALSE)","v":71.171918909870755},{"$f":"VLOOKUP($A141,F1__World_Data!$A$4:$DP$191,101,FALSE)","v":70.855171197526346},{"$f":"VLOOKUP($A141,F1__World_Data!$A$4:$DP$191,100,FALSE)","v":70.584851818643017},{"$f":"VLOOKUP($A141,F1__World_Data!$A$4:$DP$191,99,FALSE)","v":70.32575149703986},{"$f":"VLOOKUP($A141,F1__World_Data!$A$4:$DP$191,98,FALSE)","v":70.064499687021623},{"$f":"VLOOKUP($A141,F1__World_Data!$A$4:$DP$191,97,FALSE)","v":69.796301486396516},{"$f":"VLOOKUP($A141,F1__World_Data!$A$4:$DP$191,96,FALSE)","v":69.61721148408563},{"$f":"VLOOKUP($A141,F1__World_Data!$A$4:$DP$191,95,FALSE)","v":69.417277196560377},{"$f":"VLOOKUP($A141,F1__World_Data!$A$4:$DP$191,94,FALSE)","v":69.245236745391523},{"$f":"VLOOKUP($A141,F1__World_Data!$A$4:$DP$191,93,FALSE)","v":69.097354110722435},{"$f":"VLOOKUP($A141,F1__World_Data!$A$4:$DP$191,92,FALSE)","v":68.927543371686994},{"$f":"VLOOKUP($A141,F1__World_Data!$A$4:$DP$191,91,FALSE)","v":68.772157149955859},{"$f":"VLOOKUP($A141,F1__World_Data!$A$4:$DP$191,90,FALSE)","v":68.581777928346071},{"$f":"VLOOKUP($A141,F1__World_Data!$A$4:$DP$191,89,FALSE)","v":68.409653362261437},{"$f":"VLOOKUP($A141,F1__World_Data!$A$4:$DP$191,88,FALSE)","v":68.172328301194725},{"$f":"VLOOKUP($A141,F1__World_Data!$A$4:$DP$191,87,FALSE)","v":67.904085288855867},{"$f":"VLOOKUP($A141,F1__World_Data!$A$4:$DP$191,86,FALSE)","v":67.614932268324949},{"$f":"VLOOKUP($A141,F1__World_Data!$A$4:$DP$191,85,FALSE)","v":67.282364494338324},{"$f":"VLOOKUP($A141,F1__World_Data!$A$4:$DP$191,84,FALSE)","v":66.959638237213269},{"$f":"VLOOKUP($A141,F1__World_Data!$A$4:$DP$191,83,FALSE)","v":66.564213929766609},{"$f":"VLOOKUP($A141,F1__World_Data!$A$4:$DP$191,82,FALSE)","v":66.144156041201228},{"$f":"VLOOKUP($A141,F1__World_Data!$A$4:$DP$191,81,FALSE)","v":65.727820559378813},{"$f":"VLOOKUP($A141,F1__World_Data!$A$4:$DP$191,80,FALSE)","v":65.233994849944651},{"$f":"VLOOKUP($A141,F1__World_Data!$A$4:$DP$191,79,FALSE)","v":64.70935721654665},{"$f":"VLOOKUP($A141,F1__World_Data!$A$4:$DP$191,78,FALSE)","v":64.125085843567575},{"$f":"VLOOKUP($A141,F1__World_Data!$A$4:$DP$191,77,FALSE)","v":63.514711961658492},{"$f":"VLOOKUP($A141,F1__World_Data!$A$4:$DP$191,76,FALSE)","v":62.843989656220664},{"$f":"VLOOKUP($A141,F1__World_Data!$A$4:$DP$191,75,FALSE)","v":62.144243620744909},{"$f":"VLOOKUP($A141,F1__World_Data!$A$4:$DP$191,74,FALSE)","v":61.448445533243543},{"$f":"VLOOKUP($A141,F1__World_Data!$A$4:$DP$191,73,FALSE)","v":60.65657690740349},{"$f":"VLOOKUP($A141,F1__World_Data!$A$4:$DP$191,72,FALSE)","v":59.739850578693151},{"$f":"VLOOKUP($A141,F1__World_Data!$A$4:$DP$191,71,FALSE)","v":58.700429236443419},{"$f":"VLOOKUP($A141,F1__World_Data!$A$4:$DP$191,70,FALSE)","v":57.470912613120909},{"$f":"VLOOKUP($A141,F1__World_Data!$A$4:$DP$191,69,FALSE)","v":56.109405381894881},{"$f":"VLOOKUP($A141,F1__World_Data!$A$4:$DP$191,68,FALSE)","v":54.636410491335049},{"$f":"VLOOKUP($A141,F1__World_Data!$A$4:$DP$191,67,FALSE)","v":53.115459657166191},{"$f":"VLOOKUP($A141,F1__World_Data!$A$4:$DP$191,66,FALSE)","v":51.75893886459086},{"$f":"VLOOKUP($A141,F1__World_Data!$A$4:$DP$191,65,FALSE)","v":50.573598301431964},{"$f":"VLOOKUP($A141,F1__World_Data!$A$4:$DP$191,64,FALSE)","v":49.607894087911561},{"$f":"VLOOKUP($A141,F1__World_Data!$A$4:$DP$191,63,FALSE)","v":48.944167502503497},{"$f":"VLOOKUP($A141,F1__World_Data!$A$4:$DP$191,62,FALSE)","v":48.415899060559688}]
["Mauritius",{"$f":"VLOOKUP($A142,F1__World_Data!$A$4:$DP$191,60,FALSE)","v":1267.184},{"$f":"VLOOKUP($A142,F1__World_Data!$A$4:$DP$191,59,FALSE)","v":1264.4970000000001},{"$f":"VLOOKUP($A142,F1__World_Data!$A$4:$DP$191,58,FALSE)","v":1261.8699999999999},{"$f":"VLOOKUP($A142,F1__World_Data!$A$4:$DP$191,57,FALSE)","v":1259.4570000000001},{"$f":"VLOOKUP($A142,F1__World_Data!$A$4:$DP$191,56,FALSE)","v":1257.3510000000001},{"$f":"VLOOKUP($A142,F1__World_Data!$A$4:$DP$191,55,FALSE)","v":1255.4580000000001},{"$f":"VLOOKUP($A142,F1__World_Data!$A$4:$DP$191,54,FALSE)","v":1253.489},{"$f":"VLOOKUP($A142,F1__World_Data!$A$4:$DP$191,53,FALSE)","v":1251.0740000000001},{"$f":"VLOOKUP($A142,F1__World_Data!$A$4:$DP$191,52,FALSE)","v":1247.953},{"$f":"VLOOKUP($A142,F1__World_Data!$A$4:$DP$191,51,FALSE)","v":1243.9960000000001},{"$f":"VLOOKUP($A142,F1__World_Data!$A$4:$DP$191,50,FALSE)","v":1239.2619999999999},{"$f":"VLOOKUP($A142,F1__World_Data!$A$4:$DP$191,49,FALSE)","v":1233.8900000000001},{"$f":"VLOOKUP($A142,F1__World_Data!$A$4:$DP$191,48,FALSE)","v":1228.0889999999999},{"$f":"VLOOKUP($A142,F1__World_Data!$A$4:$DP$191,47,FALSE)","v":1222.01},{"$f":"VLOOKUP($A142,F1__World_Data!$A$4:$DP$191,46,FALSE)","v":1215.6679999999999},{"$f":"VLOOKUP($A142,F1__World_Data!$A$4:$DP$191,45,FALSE)","v":1208.992},{"$f":"VLOOKUP($A142,F1__World_Data!$A$4:$DP$191,44,FALSE)","v":1201.8050000000001},{"$f":"VLOOKUP($A142,F1__World_Data!$A$4:$DP$191,43,FALSE)","v":1193.9110000000001},{"$f":"VLOOKUP($A142,F1__World_Data!$A$4:$DP$191,42,FALSE)","v":1185.1469999999999},{"$f":"VLOOKUP($A142,F1__World_Data!$A$4:$DP$191,41,FALSE)","v":1175.5709999999999},{"$f":"VLOOKUP($A142,F1__World_Data!$A$4:$DP$191,40,FALSE)","v":1165.2919999999999},{"$f":"VLOOKUP($A142,F1__World_Data!$A$4:$DP$191,39,FALSE)","v":1154.1410000000001},{"$f":"VLOOKUP($A142,F1__World_Data!$A$4:$DP$191,38,FALSE)","v":1141.952},{"$f":"VLOOKUP($A142,F1__World_Data!$A$4:$DP$191,37,FALSE)","v":1128.6759999999999},{"$f":"VLOOKUP($A142,F1__World_Data!$A$4:$DP$191,36,FALSE)","v":1114.146},{"$f":"VLOOKUP($A142,F1__World_Data!$A$4:$DP$191,35,FALSE)","v":1098.604},{"$f":"VLOOKUP($A142,F1__World_Data!$A$4:$DP$191,34,FALSE)","v":1082.9480000000001},{"$f":"VLOOKUP($A142,F1__World_Data!$A$4:$DP$191,33,FALSE)","v":1068.433},{"$f":"VLOOKUP($A142,F1__World_Data!$A$4:$DP$191,32,FALSE)","v":1055.8689999999999},{"$f":"VLOOKUP($A142,F1__World_Data!$A$4:$DP$191,31,FALSE)","v":1045.585},{"$f":"VLOOKUP($A142,F1__World_Data!$A$4:$DP$191,30,FALSE)","v":1037.2529999999999},{"$f":"VLOOKUP($A142,F1__World_Data!$A$4:$DP$191,29,FALSE)","v":1030.1759999999999},{"$f":"VLOOKUP($A142,F1__World_Data!$A$4:$DP$191,28,FALSE)","v":1023.278},{"$f":"VLOOKUP($A142,F1__World_Data!$A$4:$DP$191,27,FALSE)","v":1015.764},{"$f":"VLOOKUP($A142,F1__World_Data!$A$4:$DP$191,26,FALSE)","v":1007.502},{"$f":"VLOOKUP($A142,F1__World_Data!$A$4:$DP$191,25,FALSE)","v":998.62},{"$f":"VLOOKUP($A142,F1__World_Data!$A$4:$DP$191,24,FALSE)","v":988.88900000000001},{"$f":"VLOOKUP($A142,F1__World_Data!$A$4:$DP$191,23,FALSE)","v":978.07100000000003},{"$f":"VLOOKUP($A142,F1__World_Data!$A$4:$DP$191,22,FALSE)","v":966.03899999999999},{"$f":"VLOOKUP($A142,F1__World_Data!$A$4:$DP$191,21,FALSE)","v":952.58100000000002},{"$f":"VLOOKUP($A142,F1__World_Data!$A$4:$DP$191,20,FALSE)","v":937.81799999999998},{"$f":"VLOOKUP($A142,F1__World_Data!$A$4:$DP$191,19,FALSE)","v":922.32899999999995},{"$f":"VLOOKUP($A142,F1__World_Data!$A$4:$DP$191,18,FALSE)","v":906.91800000000001},{"$f":"VLOOKUP($A142,F1__World_Data!$A$4:$DP$191,17,FALSE)","v":892.21900000000005},{"$f":"VLOOKUP($A142,F1__World_Data!$A$4:$DP$191,16,FALSE)","v":878.35599999999999},{"$f":"VLOOKUP($A142,F1__World_Data!$A$4:$DP$191,15,FALSE)","v":865.17},{"$f":"VLOOKUP($A142,F1__World_Data!$A$4:$DP$191,14,FALSE)","v":852.39400000000001},{"$f":"VLOOKUP($A142,F1__World_Data!$A$4:$DP$191,13,FALSE)","v":839.59400000000005},{"$f":"VLOOKUP($A142,F1__World_Data!$A$4:$DP$191,12,FALSE)","v":826.45100000000002},{"$f":"VLOOKUP($A142,F1__World_Data!$A$4:$DP$191,11,FALSE)","v":812.94100000000003},{"$f":"VLOOKUP($A142,F1__World_Data!$A$4:$DP$191,10,FALSE)","v":799.14300000000003},{"$f":"VLOOKUP($A142,F1__World_Data!$A$4:$DP$191,9,FALSE)","v":784.774},{"$f":"VLOOKUP($A142,F1__World_Data!$A$4:$DP$191,8,FALSE)","v":769.56},{"$f":"VLOOKUP($A142,F1__World_Data!$A$4:$DP$191,7,FALSE)","v":753.28300000000002},{"$f":"VLOOKUP($A142,F1__World_Data!$A$4:$DP$191,6,FALSE)","v":735.86},{"$f":"VLOOKUP($A142,F1__World_Data!$A$4:$DP$191,5,FALSE)","v":717.40700000000004},{"$f":"VLOOKUP($A142,F1__World_Data!$A$4:$DP$191,4,FALSE)","v":698.31},{"$f":"VLOOKUP($A142,F1__World_Data!$A$4:$DP$191,3,FALSE)","v":679.05},{"$f":"VLOOKUP($A142,F1__World_Data!$A$4:$DP$191,2,FALSE)","v":660.02499999999998},null,{"$f":"VLOOKUP($A142,F1__World_Data!$A$4:$DP$191,120,FALSE)","v":68.116},{"$f":"VLOOKUP($A142,F1__World_Data!$A$4:$DP$191,119,FALSE)","v":67.850999999999999},{"$f":"VLOOKUP($A142,F1__World_Data!$A$4:$DP$191,118,FALSE)","v":67.576999999999998},{"$f":"VLOOKUP($A142,F1__World_Data!$A$4:$DP$191,117,FALSE)","v":67.290999999999997},{"$f":"VLOOKUP($A142,F1__World_Data!$A$4:$DP$191,116,FALSE)","v":66.995000000000005},{"$f":"VLOOKUP($A142,F1__World_Data!$A$4:$DP$191,115,FALSE)","v":66.69},{"$f":"VLOOKUP($A142,F1__World_Data!$A$4:$DP$191,114,FALSE)","v":66.381},{"$f":"VLOOKUP($A142,F1__World_Data!$A$4:$DP$191,113,FALSE)","v":66.072000000000003},{"$f":"VLOOKUP($A142,F1__World_Data!$A$4:$DP$191,112,FALSE)","v":65.769000000000005},{"$f":"VLOOKUP($A142,F1__World_Data!$A$4:$DP$191,111,FALSE)","v":65.48},{"$f":"VLOOKUP($A142,F1__World_Data!$A$4:$DP$191,110,FALSE)","v":65.207999999999998},{"$f":"VLOOKUP($A142,F1__World_Data!$A$4:$DP$191,109,FALSE)","v":64.953000000000003},{"$f":"VLOOKUP($A142,F1__World_Data!$A$4:$DP$191,108,FALSE)","v":64.712000000000003},{"$f":"VLOOKUP($A142,F1__World_Data!$A$4:$DP$191,107,FALSE)","v":64.477999999999994},{"$f":"VLOOKUP($A142,F1__World_Data!$A$4:$DP$191,106,FALSE)","v":64.242000000000004},{"$f":"VLOOKUP($A142,F1__World_Data!$A$4:$DP$191,105,FALSE)","v":63.994999999999997},{"$f":"VLOOKUP($A142,F1__World_Data!$A$4:$DP$191,104,FALSE)","v":63.731000000000002},{"$f":"VLOOKUP($A142,F1__World_Data!$A$4:$DP$191,103,FALSE)","v":63.445999999999998},{"$f":"VLOOKUP($A142,F1__World_Data!$A$4:$DP$191,102,FALSE)","v":63.143999999999998},{"$f":"VLOOKUP($A142,F1__World_Data!$A$4:$DP$191,101,FALSE)","v":62.829000000000001},{"$f":"VLOOKUP($A142,F1__World_Data!$A$4:$DP$191,100,FALSE)","v":62.509},{"$f":"VLOOKUP($A142,F1__World_Data!$A$4:$DP$191,99,FALSE)","v":62.188000000000002},{"$f":"VLOOKUP($A142,F1__World_Data!$A$4:$DP$191,98,FALSE)","v":61.866},{"$f":"VLOOKUP($A142,F1__World_Data!$A$4:$DP$191,97,FALSE)","v":61.539000000000001},{"$f":"VLOOKUP($A142,F1__World_Data!$A$4:$DP$191,96,FALSE)","v":61.198},{"$f":"VLOOKUP($A142,F1__World_Data!$A$4:$DP$191,95,FALSE)","v":60.837000000000003},{"$f":"VLOOKUP($A142,F1__World_Data!$A$4:$DP$191,94,FALSE)","v":60.454999999999998},{"$f":"VLOOKUP($A142,F1__World_Data!$A$4:$DP$191,93,FALSE)","v":60.052999999999997},{"$f":"VLOOKUP($A142,F1__World_Data!$A$4:$DP$191,92,FALSE)","v":59.636000000000003},{"$f":"VLOOKUP($A142,F1__World_Data!$A$4:$DP$191,91,FALSE)","v":59.209000000000003},{"$f":"VLOOKUP($A142,F1__World_Data!$A$4:$DP$191,90,FALSE)","v":58.783000000000001},{"$f":"VLOOKUP($A142,F1__World_Data!$A$4:$DP$191,89,FALSE)","v":58.366},{"$f":"VLOOKUP($A142,F1__World_Data!$A$4:$DP$191,88,FALSE)","v":57.962000000000003},{"$f":"VLOOKUP($A142,F1__World_Data!$A$4:$DP$191,87,FALSE)","v":57.579000000000001},{"$f":"VLOOKUP($A142,F1__World_Data!$A$4:$DP$191,86,FALSE)","v":57.220999999999997},{"$f":"VLOOKUP($A142,F1__World_Data!$A$4:$DP$191,85,FALSE)","v":56.886000000000003},{"$f":"VLOOKUP($A142,F1__World_Data!$A$4:$DP$191,84,FALSE)","v":56.569000000000003},{"$f":"VLOOKUP($A142,F1__World_Data!$A$4:$DP$191,83,FALSE)","v":56.265999999999998},{"$f":"VLOOKUP($A142,F1__World_Data!$A$4:$DP$191,82,FALSE)","v":55.970999999999997},{"$f":"VLOOKUP($A142,F1__World_Data!$A$4:$DP$191,81,FALSE)","v":55.679000000000002},{"$f":"VLOOKUP($A142,F1__World_Data!$A$4:$DP$191,80,FALSE)","v":55.381999999999998},{"$f":"VLOOKUP($A142,F1__World_Data!$A$4:$DP$191,79,FALSE)","v":55.073999999999998},{"$f":"VLOOKUP($A142,F1__World_Data!$A$4:$DP$191,78,FALSE)","v":54.747999999999998},{"$f":"VLOOKUP($A142,F1__World_Data!$A$4:$DP$191,77,FALSE)","v":54.399000000000001},{"$f":"VLOOKUP($A142,F1__World_Data!$A$4:$DP$191,76,FALSE)","v":54.027000000000001},{"$f":"VLOOKUP($A142,F1__World_Data!$A$4:$DP$191,75,FALSE)","v":53.633000000000003},{"$f":"VLOOKUP($A142,F1__World_Data!$A$4:$DP$191,74,FALSE)","v":53.218000000000004},{"$f":"VLOOKUP($A142,F1__World_Data!$A$4:$DP$191,73,FALSE)","v":52.781999999999996},{"$f":"VLOOKUP($A142,F1__World_Data!$A$4:$DP$191,72,FALSE)","v":52.323},{"$f":"VLOOKUP($A142,F1__World_Data!$A$4:$DP$191,71,FALSE)","v":51.837000000000003},{"$f":"VLOOKUP($A142,F1__World_Data!$A$4:$DP$191,70,FALSE)","v":51.326999999999998},{"$f":"VLOOKUP($A142,F1__World_Data!$A$4:$DP$191,69,FALSE)","v":50.795999999999999},{"$f":"VLOOKUP($A142,F1__World_Data!$A$4:$DP$191,68,FALSE)","v":50.25},{"$f":"VLOOKUP($A142,F1__World_Data!$A$4:$DP$191,67,FALSE)","v":49.697000000000003},{"$f":"VLOOKUP($A142,F1__World_Data!$A$4:$DP$191,66,FALSE)","v":49.145000000000003},{"$f":"VLOOKUP($A142,F1__World_Data!$A$4:$DP$191,65,FALSE)","v":48.600999999999999},{"$f":"VLOOKUP($A142,F1__World_Data!$A$4:$DP$191,64,FALSE)","v":48.070999999999998},{"$f":"VLOOKUP($A142,F1__World_Data!$A$4:$DP$191,63,FALSE)","v":47.557000000000002},{"$f":"VLOOKUP($A142,F1__World_Data!$A$4:$DP$191,62,FALSE)","v":47.061}]
["Cyprus",{"$f":"VLOOKUP($A143,F1__World_Data!$A$4:$DP$191,60,FALSE)","v":1189.2619999999999},{"$f":"VLOOKUP($A143,F1__World_Data!$A$4:$DP$191,59,FALSE)","v":1179.6849999999999},{"$f":"VLOOKUP($A143,F1__World_Data!$A$4:$DP$191,58,FALSE)","v":1170.1890000000001},{"$f":"VLOOKUP($A143,F1__World_Data!$A$4:$DP$191,57,FALSE)","v":1160.9870000000001},{"$f":"VLOOKUP($A143,F1__World_Data!$A$4:$DP$191,56,FALSE)","v":1152.297},{"$f":"VLOOKUP($A143,F1__World_Data!$A$4:$DP$191,55,FALSE)","v":1143.866},{"$f":"VLOOKUP($A143,F1__World_Data!$A$4:$DP$191,54,FALSE)","v":1135.046},{"$f":"VLOOKUP($A143,F1__World_Data!$A$4:$DP$191,53,FALSE)","v":1124.837},{"$f":"VLOOKUP($A143,F1__World_Data!$A$4:$DP$191,52,FALSE)","v":1112.617},{"$f":"VLOOKUP($A143,F1__World_Data!$A$4:$DP$191,51,FALSE)","v":1098.0889999999999},{"$f":"VLOOKUP($A143,F1__World_Data!$A$4:$DP$191,50,FALSE)","v":1081.568},{"$f":"VLOOKUP($A143,F1__World_Data!$A$4:$DP$191,49,FALSE)","v":1063.7080000000001},{"$f":"VLOOKUP($A143,F1__World_Data!$A$4:$DP$191,48,FALSE)","v":1045.508},{"$f":"VLOOKUP($A143,F1__World_Data!$A$4:$DP$191,47,FALSE)","v":1027.6569999999999},{"$f":"VLOOKUP($A143,F1__World_Data!$A$4:$DP$191,46,FALSE)","v":1010.41},{"$f":"VLOOKUP($A143,F1__World_Data!$A$4:$DP$191,45,FALSE)","v":993.56200000000001},{"$f":"VLOOKUP($A143,F1__World_Data!$A$4:$DP$191,44,FALSE)","v":976.96799999999996},{"$f":"VLOOKUP($A143,F1__World_Data!$A$4:$DP$191,43,FALSE)","v":960.274},{"$f":"VLOOKUP($A143,F1__World_Data!$A$4:$DP$191,42,FALSE)","v":943.28800000000001},{"$f":"VLOOKUP($A143,F1__World_Data!$A$4:$DP$191,41,FALSE)","v":926.04899999999998},{"$f":"VLOOKUP($A143,F1__World_Data!$A$4:$DP$191,40,FALSE)","v":908.71},{"$f":"VLOOKUP($A143,F1__World_Data!$A$4:$DP$191,39,FALSE)","v":891.19},{"$f":"VLOOKUP($A143,F1__World_Data!$A$4:$DP$191,38,FALSE)","v":873.42600000000004},{"$f":"VLOOKUP($A143,F1__World_Data!$A$4:$DP$191,37,FALSE)","v":855.39099999999996},{"$f":"VLOOKUP($A143,F1__World_Data!$A$4:$DP$191,36,FALSE)","v":837.10400000000004},{"$f":"VLOOKUP($A143,F1__World_Data!$A$4:$DP$191,35,FALSE)","v":818.75},{"$f":"VLOOKUP($A143,F1__World_Data!$A$4:$DP$191,34,FALSE)","v":800.61},{"$f":"VLOOKUP($A143,F1__World_Data!$A$4:$DP$191,33,FALSE)","v":783.12099999999998},{"$f":"VLOOKUP($A143,F1__World_Data!$A$4:$DP$191,32,FALSE)","v":766.61599999999999},{"$f":"VLOOKUP($A143,F1__World_Data!$A$4:$DP$191,31,FALSE)","v":751.04300000000001},{"$f":"VLOOKUP($A143,F1__World_Data!$A$4:$DP$191,30,FALSE)","v":736.476},{"$f":"VLOOKUP($A143,F1__World_Data!$A$4:$DP$191,29,FALSE)","v":723.38400000000001},{"$f":"VLOOKUP($A143,F1__World_Data!$A$4:$DP$191,28,FALSE)","v":712.33500000000004},{"$f":"VLOOKUP($A143,F1__World_Data!$A$4:$DP$191,27,FALSE)","v":703.69399999999996},{"$f":"VLOOKUP($A143,F1__World_Data!$A$4:$DP$191,26,FALSE)","v":697.71500000000003},{"$f":"VLOOKUP($A143,F1__World_Data!$A$4:$DP$191,25,FALSE)","v":694.07600000000002},{"$f":"VLOOKUP($A143,F1__World_Data!$A$4:$DP$191,24,FALSE)","v":691.71600000000001},{"$f":"VLOOKUP($A143,F1__World_Data!$A$4:$DP$191,23,FALSE)","v":689.17},{"$f":"VLOOKUP($A143,F1__World_Data!$A$4:$DP$191,22,FALSE)","v":685.40800000000002},{"$f":"VLOOKUP($A143,F1__World_Data!$A$4:$DP$191,21,FALSE)","v":680.01},{"$f":"VLOOKUP($A143,F1__World_Data!$A$4:$DP$191,20,FALSE)","v":673.25300000000004},{"$f":"VLOOKUP($A143,F1__World_Data!$A$4:$DP$191,19,FALSE)","v":665.52099999999996},{"$f":"VLOOKUP($A143,F1__World_Data!$A$4:$DP$191,18,FALSE)","v":657.524},{"$f":"VLOOKUP($A143,F1__World_Data!$A$4:$DP$191,17,FALSE)","v":649.75300000000004},{"$f":"VLOOKUP($A143,F1__World_Data!$A$4:$DP$191,16,FALSE)","v":642.322},{"$f":"VLOOKUP($A143,F1__World_Data!$A$4:$DP$191,15,FALSE)","v":635.10500000000002},{"$f":"VLOOKUP($A143,F1__World_Data!$A$4:$DP$191,14,FALSE)","v":628.00199999999995},{"$f":"VLOOKUP($A143,F1__World_Data!$A$4:$DP$191,13,FALSE)","v":620.86},{"$f":"VLOOKUP($A143,F1__World_Data!$A$4:$DP$191,12,FALSE)","v":613.61800000000005},{"$f":"VLOOKUP($A143,F1__World_Data!$A$4:$DP$191,11,FALSE)","v":606.12099999999998},{"$f":"VLOOKUP($A143,F1__World_Data!$A$4:$DP$191,10,FALSE)","v":598.495},{"$f":"VLOOKUP($A143,F1__World_Data!$A$4:$DP$191,9,FALSE)","v":591.30100000000004},{"$f":"VLOOKUP($A143,F1__World_Data!$A$4:$DP$191,8,FALSE)","v":585.31299999999999},{"$f":"VLOOKUP($A143,F1__World_Data!$A$4:$DP$191,7,FALSE)","v":580.97199999999998},{"$f":"VLOOKUP($A143,F1__World_Data!$A$4:$DP$191,6,FALSE)","v":578.62800000000004},{"$f":"VLOOKUP($A143,F1__World_Data!$A$4:$DP$191,5,FALSE)","v":577.91800000000001},{"$f":"VLOOKUP($A143,F1__World_Data!$A$4:$DP$191,4,FALSE)","v":577.69600000000003},{"$f":"VLOOKUP($A143,F1__World_Data!$A$4:$DP$191,3,FALSE)","v":576.40200000000004},{"$f":"VLOOKUP($A143,F1__World_Data!$A$4:$DP$191,2,FALSE)","v":572.93299999999999},null,{"$f":"VLOOKUP($A143,F1__World_Data!$A$4:$DP$191,120,FALSE)","v":80.828000000000003},{"$f":"VLOOKUP($A143,F1__World_Data!$A$4:$DP$191,119,FALSE)","v":80.671999999999997},{"$f":"VLOOKUP($A143,F1__World_Data!$A$4:$DP$191,118,FALSE)","v":80.513000000000005},{"$f":"VLOOKUP($A143,F1__World_Data!$A$4:$DP$191,117,FALSE)","v":80.349999999999994},{"$f":"VLOOKUP($A143,F1__World_Data!$A$4:$DP$191,116,FALSE)","v":80.177999999999997},{"$f":"VLOOKUP($A143,F1__World_Data!$A$4:$DP$191,115,FALSE)","v":79.998999999999995},{"$f":"VLOOKUP($A143,F1__World_Data!$A$4:$DP$191,114,FALSE)","v":79.811999999999998},{"$f":"VLOOKUP($A143,F1__World_Data!$A$4:$DP$191,113,FALSE)","v":79.620999999999995},{"$f":"VLOOKUP($A143,F1__World_Data!$A$4:$DP$191,112,FALSE)","v":79.430000000000007},{"$f":"VLOOKUP($A143,F1__World_Data!$A$4:$DP$191,111,FALSE)","v":79.245000000000005},{"$f":"VLOOKUP($A143,F1__World_Data!$A$4:$DP$191,110,FALSE)","v":79.070999999999998},{"$f":"VLOOKUP($A143,F1__World_Data!$A$4:$DP$191,109,FALSE)","v":78.91},{"$f":"VLOOKUP($A143,F1__World_Data!$A$4:$DP$191,108,FALSE)","v":78.763999999999996},{"$f":"VLOOKUP($A143,F1__World_Data!$A$4:$DP$191,107,FALSE)","v":78.63},{"$f":"VLOOKUP($A143,F1__World_Data!$A$4:$DP$191,106,FALSE)","v":78.506},{"$f":"VLOOKUP($A143,F1__World_Data!$A$4:$DP$191,105,FALSE)","v":78.385000000000005},{"$f":"VLOOKUP($A143,F1__World_Data!$A$4:$DP$191,104,FALSE)","v":78.263999999999996},{"$f":"VLOOKUP($A143,F1__World_Data!$A$4:$DP$191,103,FALSE)","v":78.138999999999996},{"$f":"VLOOKUP($A143,F1__World_Data!$A$4:$DP$191,102,FALSE)","v":78.009},{"$f":"VLOOKUP($A143,F1__World_Data!$A$4:$DP$191,101,FALSE)","v":77.875},{"$f":"VLOOKUP($A143,F1__World_Data!$A$4:$DP$191,100,FALSE)","v":77.738},{"$f":"VLOOKUP($A143,F1__World_Data!$A$4:$DP$191,99,FALSE)","v":77.597999999999999},{"$f":"VLOOKUP($A143,F1__World_Data!$A$4:$DP$191,98,FALSE)","v":77.456000000000003},{"$f":"VLOOKUP($A143,F1__World_Data!$A$4:$DP$191,97,FALSE)","v":77.311999999999998},{"$f":"VLOOKUP($A143,F1__World_Data!$A$4:$DP$191,96,FALSE)","v":77.165999999999997},{"$f":"VLOOKUP($A143,F1__World_Data!$A$4:$DP$191,95,FALSE)","v":77.016999999999996},{"$f":"VLOOKUP($A143,F1__World_Data!$A$4:$DP$191,94,FALSE)","v":76.866},{"$f":"VLOOKUP($A143,F1__World_Data!$A$4:$DP$191,93,FALSE)","v":76.712000000000003},{"$f":"VLOOKUP($A143,F1__World_Data!$A$4:$DP$191,92,FALSE)","v":76.554000000000002},{"$f":"VLOOKUP($A143,F1__World_Data!$A$4:$DP$191,91,FALSE)","v":76.394000000000005},{"$f":"VLOOKUP($A143,F1__World_Data!$A$4:$DP$191,90,FALSE)","v":76.230999999999995},{"$f":"VLOOKUP($A143,F1__World_Data!$A$4:$DP$191,89,FALSE)","v":76.063999999999993},{"$f":"VLOOKUP($A143,F1__World_Data!$A$4:$DP$191,88,FALSE)","v":75.893000000000001},{"$f":"VLOOKUP($A143,F1__World_Data!$A$4:$DP$191,87,FALSE)","v":75.718000000000004},{"$f":"VLOOKUP($A143,F1__World_Data!$A$4:$DP$191,86,FALSE)","v":75.540000000000006},{"$f":"VLOOKUP($A143,F1__World_Data!$A$4:$DP$191,85,FALSE)","v":75.358000000000004},{"$f":"VLOOKUP($A143,F1__World_Data!$A$4:$DP$191,84,FALSE)","v":75.173000000000002},{"$f":"VLOOKUP($A143,F1__World_Data!$A$4:$DP$191,83,FALSE)","v":74.983000000000004},{"$f":"VLOOKUP($A143,F1__World_Data!$A$4:$DP$191,82,FALSE)","v":74.790000000000006},{"$f":"VLOOKUP($A143,F1__World_Data!$A$4:$DP$191,81,FALSE)","v":74.591999999999999},{"$f":"VLOOKUP($A143,F1__World_Data!$A$4:$DP$191,80,FALSE)","v":74.39},{"$f":"VLOOKUP($A143,F1__World_Data!$A$4:$DP$191,79,FALSE)","v":74.183000000000007},{"$f":"VLOOKUP($A143,F1__World_Data!$A$4:$DP$191,78,FALSE)","v":73.971000000000004},{"$f":"VLOOKUP($A143,F1__World_Data!$A$4:$DP$191,77,FALSE)","v":73.753},{"$f":"VLOOKUP($A143,F1__World_Data!$A$4:$DP$191,76,FALSE)","v":73.53},{"$f":"VLOOKUP($A143,F1__World_Data!$A$4:$DP$191,75,FALSE)","v":73.302000000000007},{"$f":"VLOOKUP($A143,F1__World_Data!$A$4:$DP$191,74,FALSE)","v":73.066999999999993},{"$f":"VLOOKUP($A143,F1__World_Data!$A$4:$DP$191,73,FALSE)","v":72.825000000000003},{"$f":"VLOOKUP($A143,F1__World_Data!$A$4:$DP$191,72,FALSE)","v":72.575999999999993},{"$f":"VLOOKUP($A143,F1__World_Data!$A$4:$DP$191,71,FALSE)","v":72.317999999999998},{"$f":"VLOOKUP($A143,F1__World_Data!$A$4:$DP$191,70,FALSE)","v":72.052000000000007},{"$f":"VLOOKUP($A143,F1__World_Data!$A$4:$DP$191,69,FALSE)","v":71.775999999999996},{"$f":"VLOOKUP($A143,F1__World_Data!$A$4:$DP$191,68,FALSE)","v":71.491},{"$f":"VLOOKUP($A143,F1__World_Data!$A$4:$DP$191,67,FALSE)","v":71.197000000000003},{"$f":"VLOOKUP($A143,F1__World_Data!$A$4:$DP$191,66,FALSE)","v":70.894999999999996},{"$f":"VLOOKUP($A143,F1__World_Data!$A$4:$DP$191,65,FALSE)","v":70.587000000000003},{"$f":"VLOOKUP($A143,F1__World_Data!$A$4:$DP$191,64,FALSE)","v":70.272000000000006},{"$f":"VLOOKUP($A143,F1__World_Data!$A$4:$DP$191,63,FALSE)","v":69.948999999999998},{"$f":"VLOOKUP($A143,F1__World_Data!$A$4:$DP$191,62,FALSE)","v":69.617999999999995}]
["Eswatini",{"$f":"VLOOKUP($A144,F1__World_Data!$A$4:$DP$191,60,FALSE)","v":1136.2739999999999},{"$f":"VLOOKUP($A144,F1__World_Data!$A$4:$DP$191,59,FALSE)","v":1124.808},{"$f":"VLOOKUP($A144,F1__World_Data!$A$4:$DP$191,58,FALSE)","v":1113.9939999999999},{"$f":"VLOOKUP($A144,F1__World_Data!$A$4:$DP$191,57,FALSE)","v":1104.038},{"$f":"VLOOKUP($A144,F1__World_Data!$A$4:$DP$191,56,FALSE)","v":1095.0219999999999},{"$f":"VLOOKUP($A144,F1__World_Data!$A$4:$DP$191,55,FALSE)","v":1086.8430000000001},{"$f":"VLOOKUP($A144,F1__World_Data!$A$4:$DP$191,54,FALSE)","v":1079.2850000000001},{"$f":"VLOOKUP($A144,F1__World_Data!$A$4:$DP$191,53,FALSE)","v":1072.029},{"$f":"VLOOKUP($A144,F1__World_Data!$A$4:$DP$191,52,FALSE)","v":1064.8409999999999},{"$f":"VLOOKUP($A144,F1__World_Data!$A$4:$DP$191,51,FALSE)","v":1057.462},{"$f":"VLOOKUP($A144,F1__World_Data!$A$4:$DP$191,50,FALSE)","v":1049.9480000000001},{"$f":"VLOOKUP($A144,F1__World_Data!$A$4:$DP$191,49,FALSE)","v":1042.6510000000001},{"$f":"VLOOKUP($A144,F1__World_Data!$A$4:$DP$191,48,FALSE)","v":1036.095},{"$f":"VLOOKUP($A144,F1__World_Data!$A$4:$DP$191,47,FALSE)","v":1030.575},{"$f":"VLOOKUP($A144,F1__World_Data!$A$4:$DP$191,46,FALSE)","v":1026.287},{"$f":"VLOOKUP($A144,F1__World_Data!$A$4:$DP$191,45,FALSE)","v":1022.796},{"$f":"VLOOKUP($A144,F1__World_Data!$A$4:$DP$191,44,FALSE)","v":1019.054},{"$f":"VLOOKUP($A144,F1__World_Data!$A$4:$DP$191,43,FALSE)","v":1013.6079999999999},{"$f":"VLOOKUP($A144,F1__World_Data!$A$4:$DP$191,42,FALSE)","v":1005.432},{"$f":"VLOOKUP($A144,F1__World_Data!$A$4:$DP$191,41,FALSE)","v":994.10500000000002},{"$f":"VLOOKUP($A144,F1__World_Data!$A$4:$DP$191,40,FALSE)","v":979.92200000000003},{"$f":"VLOOKUP($A144,F1__World_Data!$A$4:$DP$191,39,FALSE)","v":963.41600000000005},{"$f":"VLOOKUP($A144,F1__World_Data!$A$4:$DP$191,38,FALSE)","v":945.50599999999997},{"$f":"VLOOKUP($A144,F1__World_Data!$A$4:$DP$191,37,FALSE)","v":926.83600000000001},{"$f":"VLOOKUP($A144,F1__World_Data!$A$4:$DP$191,36,FALSE)","v":907.62199999999996},{"$f":"VLOOKUP($A144,F1__World_Data!$A$4:$DP$191,35,FALSE)","v":887.70600000000002},{"$f":"VLOOKUP($A144,F1__World_Data!$A$4:$DP$191,34,FALSE)","v":866.995},{"$f":"VLOOKUP($A144,F1__World_Data!$A$4:$DP$191,33,FALSE)","v":845.26700000000005},{"$f":"VLOOKUP($A144,F1__World_Data!$A$4:$DP$191,32,FALSE)","v":822.423},{"$f":"VLOOKUP($A144,F1__World_Data!$A$4:$DP$191,31,FALSE)","v":798.49800000000005},{"$f":"VLOOKUP($A144,F1__World_Data!$A$4:$DP$191,30,FALSE)","v":773.774},{"$f":"VLOOKUP($A144,F1__World_Data!$A$4:$DP$191,29,FALSE)","v":748.63400000000001},{"$f":"VLOOKUP($A144,F1__World_Data!$A$4:$DP$191,28,FALSE)","v":723.59900000000005},{"$f":"VLOOKUP($A144,F1__World_Data!$A$4:$DP$191,27,FALSE)","v":699.077},{"$f":"VLOOKUP($A144,F1__World_Data!$A$4:$DP$191,26,FALSE)","v":675.24},{"$f":"VLOOKUP($A144,F1__World_Data!$A$4:$DP$191,25,FALSE)","v":652.11199999999997},{"$f":"VLOOKUP($A144,F1__World_Data!$A$4:$DP$191,24,FALSE)","v":629.81200000000001},{"$f":"VLOOKUP($A144,F1__World_Data!$A$4:$DP$191,23,FALSE)","v":608.37400000000002},{"$f":"VLOOKUP($A144,F1__World_Data!$A$4:$DP$191,22,FALSE)","v":587.85199999999998},{"$f":"VLOOKUP($A144,F1__World_Data!$A$4:$DP$191,21,FALSE)","v":568.31600000000003},{"$f":"VLOOKUP($A144,F1__World_Data!$A$4:$DP$191,20,FALSE)","v":549.78700000000003},{"$f":"VLOOKUP($A144,F1__World_Data!$A$4:$DP$191,19,FALSE)","v":532.25300000000004},{"$f":"VLOOKUP($A144,F1__World_Data!$A$4:$DP$191,18,FALSE)","v":515.60199999999998},{"$f":"VLOOKUP($A144,F1__World_Data!$A$4:$DP$191,17,FALSE)","v":499.75900000000001},{"$f":"VLOOKUP($A144,F1__World_Data!$A$4:$DP$191,16,FALSE)","v":484.74700000000001},{"$f":"VLOOKUP($A144,F1__World_Data!$A$4:$DP$191,15,FALSE)","v":470.56099999999998},{"$f":"VLOOKUP($A144,F1__World_Data!$A$4:$DP$191,14,FALSE)","v":457.03899999999999},{"$f":"VLOOKUP($A144,F1__World_Data!$A$4:$DP$191,13,FALSE)","v":443.97899999999998},{"$f":"VLOOKUP($A144,F1__World_Data!$A$4:$DP$191,12,FALSE)","v":431.25099999999998},{"$f":"VLOOKUP($A144,F1__World_Data!$A$4:$DP$191,11,FALSE)","v":418.73899999999998},{"$f":"VLOOKUP($A144,F1__World_Data!$A$4:$DP$191,10,FALSE)","v":406.50799999999998},{"$f":"VLOOKUP($A144,F1__World_Data!$A$4:$DP$191,9,FALSE)","v":394.76},{"$f":"VLOOKUP($A144,F1__World_Data!$A$4:$DP$191,8,FALSE)","v":383.82},{"$f":"VLOOKUP($A144,F1__World_Data!$A$4:$DP$191,7,FALSE)","v":373.92500000000001},{"$f":"VLOOKUP($A144,F1__World_Data!$A$4:$DP$191,6,FALSE)","v":365.12},{"$f":"VLOOKUP($A144,F1__World_Data!$A$4:$DP$191,5,FALSE)","v":357.279},{"$f":"VLOOKUP($A144,F1__World_Data!$A$4:$DP$191,4,FALSE)","v":350.15499999999997},{"$f":"VLOOKUP($A144,F1__World_Data!$A$4:$DP$191,3,FALSE)","v":343.346},{"$f":"VLOOKUP($A144,F1__World_Data!$A$4:$DP$191,2,FALSE)","v":336.57799999999997},null,{"$f":"VLOOKUP($A144,F1__World_Data!$A$4:$DP$191,120,FALSE)","v":78.543902439024393},{"$f":"VLOOKUP($A144,F1__World_Data!$A$4:$DP$191,119,FALSE)","v":78.092682926829269},{"$f":"VLOOKUP($A144,F1__World_Data!$A$4:$DP$191,118,FALSE)","v":77.64146341463416},{"$f":"VLOOKUP($A144,F1__World_Data!$A$4:$DP$191,117,FALSE)","v":77.590243902439028},{"$f":"VLOOKUP($A144,F1__World_Data!$A$4:$DP$191,116,FALSE)","v":77.034146341463426},{"$f":"VLOOKUP($A144,F1__World_Data!$A$4:$DP$191,115,FALSE)","v":77.141463414634146},{"$f":"VLOOKUP($A144,F1__World_Data!$A$4:$DP$191,114,FALSE)","v":76.326829268292698},{"$f":"VLOOKUP($A144,F1__World_Data!$A$4:$DP$191,113,FALSE)","v":76.229268292682931},{"$f":"VLOOKUP($A144,F1__World_Data!$A$4:$DP$191,112,FALSE)","v":75.429268292682934},{"$f":"VLOOKUP($A144,F1__World_Data!$A$4:$DP$191,111,FALSE)","v":74.824390243902442},{"$f":"VLOOKUP($A144,F1__World_Data!$A$4:$DP$191,110,FALSE)","v":73.770731707317083},{"$f":"VLOOKUP($A144,F1__World_Data!$A$4:$DP$191,109,FALSE)","v":72.814634146341476},{"$f":"VLOOKUP($A144,F1__World_Data!$A$4:$DP$191,108,FALSE)","v":72.691463414634143},{"$f":"VLOOKUP($A144,F1__World_Data!$A$4:$DP$191,107,FALSE)","v":72.568292682926824},{"$f":"VLOOKUP($A144,F1__World_Data!$A$4:$DP$191,106,FALSE)","v":71.909756097560972},{"$f":"VLOOKUP($A144,F1__World_Data!$A$4:$DP$191,105,FALSE)","v":71.317073170731703},{"$f":"VLOOKUP($A144,F1__World_Data!$A$4:$DP$191,104,FALSE)","v":70.904878048780503},{"$f":"VLOOKUP($A144,F1__World_Data!$A$4:$DP$191,103,FALSE)","v":70.25853658536586},{"$f":"VLOOKUP($A144,F1__World_Data!$A$4:$DP$191,102,FALSE)","v":70.417073170731726},{"$f":"VLOOKUP($A144,F1__World_Data!$A$4:$DP$191,101,FALSE)","v":70.063414634146341},{"$f":"VLOOKUP($A144,F1__World_Data!$A$4:$DP$191,100,FALSE)","v":69.358536585365854},{"$f":"VLOOKUP($A144,F1__World_Data!$A$4:$DP$191,99,FALSE)","v":69.809756097560992},{"$f":"VLOOKUP($A144,F1__World_Data!$A$4:$DP$191,98,FALSE)","v":69.612195121951217},{"$f":"VLOOKUP($A144,F1__World_Data!$A$4:$DP$191,97,FALSE)","v":67.543902439024379},{"$f":"VLOOKUP($A144,F1__World_Data!$A$4:$DP$191,96,FALSE)","v":66.5},{"$f":"VLOOKUP($A144,F1__World_Data!$A$4:$DP$191,95,FALSE)","v":67.909756097560987},{"$f":"VLOOKUP($A144,F1__World_Data!$A$4:$DP$191,94,FALSE)","v":68.863414634146352},{"$f":"VLOOKUP($A144,F1__World_Data!$A$4:$DP$191,93,FALSE)","v":69.373170731707319},{"$f":"VLOOKUP($A144,F1__World_Data!$A$4:$DP$191,92,FALSE)","v":69.475609756097569},{"$f":"VLOOKUP($A144,F1__World_Data!$A$4:$DP$191,91,FALSE)","v":70.039024390243895},{"$f":"VLOOKUP($A144,F1__World_Data!$A$4:$DP$191,90,FALSE)","v":70.697560975609761},{"$f":"VLOOKUP($A144,F1__World_Data!$A$4:$DP$191,89,FALSE)","v":70.643902439024387},{"$f":"VLOOKUP($A144,F1__World_Data!$A$4:$DP$191,88,FALSE)","v":70.085365853658544},{"$f":"VLOOKUP($A144,F1__World_Data!$A$4:$DP$191,87,FALSE)","v":69.380487804878058},{"$f":"VLOOKUP($A144,F1__World_Data!$A$4:$DP$191,86,FALSE)","v":69.278048780487822},{"$f":"VLOOKUP($A144,F1__World_Data!$A$4:$DP$191,85,FALSE)","v":69.37560975609756},{"$f":"VLOOKUP($A144,F1__World_Data!$A$4:$DP$191,84,FALSE)","v":69.126829268292695},{"$f":"VLOOKUP($A144,F1__World_Data!$A$4:$DP$191,83,FALSE)","v":68.978048780487796},{"$f":"VLOOKUP($A144,F1__World_Data!$A$4:$DP$191,82,FALSE)","v":68.90563414634147},{"$f":"VLOOKUP($A144,F1__World_Data!$A$4:$DP$191,81,FALSE)","v":68.938585365853655},{"$f":"VLOOKUP($A144,F1__World_Data!$A$4:$DP$191,80,FALSE)","v":69.026268292682929},{"$f":"VLOOKUP($A144,F1__World_Data!$A$4:$DP$191,79,FALSE)","v":69.146951219512204},{"$f":"VLOOKUP($A144,F1__World_Data!$A$4:$DP$191,78,FALSE)","v":69.290024390243914},{"$f":"VLOOKUP($A144,F1__World_Data!$A$4:$DP$191,77,FALSE)","v":69.441317073170737},{"$f":"VLOOKUP($A144,F1__World_Data!$A$4:$DP$191,76,FALSE)","v":69.590219512195119},{"$f":"VLOOKUP($A144,F1__World_Data!$A$4:$DP$191,75,FALSE)","v":69.72458536585367},{"$f":"VLOOKUP($A144,F1__World_Data!$A$4:$DP$191,74,FALSE)","v":69.832829268292684},{"$f":"VLOOKUP($A144,F1__World_Data!$A$4:$DP$191,73,FALSE)","v":69.905341463414643},{"$f":"VLOOKUP($A144,F1__World_Data!$A$4:$DP$191,72,FALSE)","v":69.93709756097563},{"$f":"VLOOKUP($A144,F1__World_Data!$A$4:$DP$191,71,FALSE)","v":69.928097560975615},{"$f":"VLOOKUP($A144,F1__World_Data!$A$4:$DP$191,70,FALSE)","v":69.8829268292683},{"$f":"VLOOKUP($A144,F1__World_Data!$A$4:$DP$191,69,FALSE)","v":69.802121951219533},{"$f":"VLOOKUP($A144,F1__World_Data!$A$4:$DP$191,68,FALSE)","v":69.681195121951234},{"$f":"VLOOKUP($A144,F1__World_Data!$A$4:$DP$191,67,FALSE)","v":69.517634146341464},{"$f":"VLOOKUP($A144,F1__World_Data!$A$4:$DP$191,66,FALSE)","v":69.309926829268306},{"$f":"VLOOKUP($A144,F1__World_Data!$A$4:$DP$191,65,FALSE)","v":69.053560975609756},{"$f":"VLOOKUP($A144,F1__World_Data!$A$4:$DP$191,64,FALSE)","v":68.741024390243922},{"$f":"VLOOKUP($A144,F1__World_Data!$A$4:$DP$191,63,FALSE)","v":68.360804878048796},{"$f":"VLOOKUP($A144,F1__World_Data!$A$4:$DP$191,62,FALSE)","v":67.902902439024388}]
["Fiji",{"$f":"VLOOKUP($A145,F1__World_Data!$A$4:$DP$191,60,FALSE)","v":883.49},{"$f":"VLOOKUP($A145,F1__World_Data!$A$4:$DP$191,59,FALSE)","v":877.46},{"$f":"VLOOKUP($A145,F1__World_Data!$A$4:$DP$191,58,FALSE)","v":872.40599999999995},{"$f":"VLOOKUP($A145,F1__World_Data!$A$4:$DP$191,57,FALSE)","v":868.63199999999995},{"$f":"VLOOKUP($A145,F1__World_Data!$A$4:$DP$191,56,FALSE)","v":866.447},{"$f":"VLOOKUP($A145,F1__World_Data!$A$4:$DP$191,55,FALSE)","v":865.60199999999998},{"$f":"VLOOKUP($A145,F1__World_Data!$A$4:$DP$191,54,FALSE)","v":865.06500000000005},{"$f":"VLOOKUP($A145,F1__World_Data!$A$4:$DP$191,53,FALSE)","v":863.45100000000002},{"$f":"VLOOKUP($A145,F1__World_Data!$A$4:$DP$191,52,FALSE)","v":859.81600000000003},{"$f":"VLOOKUP($A145,F1__World_Data!$A$4:$DP$191,51,FALSE)","v":853.63599999999997},{"$f":"VLOOKUP($A145,F1__World_Data!$A$4:$DP$191,50,FALSE)","v":845.35599999999999},{"$f":"VLOOKUP($A145,F1__World_Data!$A$4:$DP$191,49,FALSE)","v":836.18499999999995},{"$f":"VLOOKUP($A145,F1__World_Data!$A$4:$DP$191,48,FALSE)","v":827.86900000000003},{"$f":"VLOOKUP($A145,F1__World_Data!$A$4:$DP$191,47,FALSE)","v":821.60599999999999},{"$f":"VLOOKUP($A145,F1__World_Data!$A$4:$DP$191,46,FALSE)","v":817.86400000000003},{"$f":"VLOOKUP($A145,F1__World_Data!$A$4:$DP$191,45,FALSE)","v":816.07799999999997},{"$f":"VLOOKUP($A145,F1__World_Data!$A$4:$DP$191,44,FALSE)","v":815.25699999999995},{"$f":"VLOOKUP($A145,F1__World_Data!$A$4:$DP$191,43,FALSE)","v":813.923},{"$f":"VLOOKUP($A145,F1__World_Data!$A$4:$DP$191,42,FALSE)","v":811.01099999999997},{"$f":"VLOOKUP($A145,F1__World_Data!$A$4:$DP$191,41,FALSE)","v":806.30200000000002},{"$f":"VLOOKUP($A145,F1__World_Data!$A$4:$DP$191,40,FALSE)","v":800.14800000000002},{"$f":"VLOOKUP($A145,F1__World_Data!$A$4:$DP$191,39,FALSE)","v":792.73599999999999},{"$f":"VLOOKUP($A145,F1__World_Data!$A$4:$DP$191,38,FALSE)","v":784.38900000000001},{"$f":"VLOOKUP($A145,F1__World_Data!$A$4:$DP$191,37,FALSE)","v":775.428},{"$f":"VLOOKUP($A145,F1__World_Data!$A$4:$DP$191,36,FALSE)","v":765.60699999999997},{"$f":"VLOOKUP($A145,F1__World_Data!$A$4:$DP$191,35,FALSE)","v":754.96199999999999},{"$f":"VLOOKUP($A145,F1__World_Data!$A$4:$DP$191,34,FALSE)","v":744.47},{"$f":"VLOOKUP($A145,F1__World_Data!$A$4:$DP$191,33,FALSE)","v":735.39800000000002},{"$f":"VLOOKUP($A145,F1__World_Data!$A$4:$DP$191,32,FALSE)","v":728.57500000000005},{"$f":"VLOOKUP($A145,F1__World_Data!$A$4:$DP$191,31,FALSE)","v":724.60199999999998},{"$f":"VLOOKUP($A145,F1__World_Data!$A$4:$DP$191,30,FALSE)","v":722.92399999999998},{"$f":"VLOOKUP($A145,F1__World_Data!$A$4:$DP$191,29,FALSE)","v":721.77599999999995},{"$f":"VLOOKUP($A145,F1__World_Data!$A$4:$DP$191,28,FALSE)","v":718.64200000000005},{"$f":"VLOOKUP($A145,F1__World_Data!$A$4:$DP$191,27,FALSE)","v":711.77},{"$f":"VLOOKUP($A145,F1__World_Data!$A$4:$DP$191,26,FALSE)","v":700.47799999999995},{"$f":"VLOOKUP($A145,F1__World_Data!$A$4:$DP$191,25,FALSE)","v":685.49699999999996},{"$f":"VLOOKUP($A145,F1__World_Data!$A$4:$DP$191,24,FALSE)","v":668.28099999999995},{"$f":"VLOOKUP($A145,F1__World_Data!$A$4:$DP$191,23,FALSE)","v":651.03200000000004},{"$f":"VLOOKUP($A145,F1__World_Data!$A$4:$DP$191,22,FALSE)","v":635.31200000000001},{"$f":"VLOOKUP($A145,F1__World_Data!$A$4:$DP$191,21,FALSE)","v":621.58399999999995},{"$f":"VLOOKUP($A145,F1__World_Data!$A$4:$DP$191,20,FALSE)","v":609.38300000000004},{"$f":"VLOOKUP($A145,F1__World_Data!$A$4:$DP$191,19,FALSE)","v":598.29899999999998},{"$f":"VLOOKUP($A145,F1__World_Data!$A$4:$DP$191,18,FALSE)","v":587.56100000000004},{"$f":"VLOOKUP($A145,F1__World_Data!$A$4:$DP$191,17,FALSE)","v":576.62599999999998},{"$f":"VLOOKUP($A145,F1__World_Data!$A$4:$DP$191,16,FALSE)","v":565.41800000000001},{"$f":"VLOOKUP($A145,F1__World_Data!$A$4:$DP$191,15,FALSE)","v":554.14300000000003},{"$f":"VLOOKUP($A145,F1__World_Data!$A$4:$DP$191,14,FALSE)","v":542.84299999999996},{"$f":"VLOOKUP($A145,F1__World_Data!$A$4:$DP$191,13,FALSE)","v":531.62199999999996},{"$f":"VLOOKUP($A145,F1__World_Data!$A$4:$DP$191,12,FALSE)","v":520.56100000000004},{"$f":"VLOOKUP($A145,F1__World_Data!$A$4:$DP$191,11,FALSE)","v":509.70800000000003},{"$f":"VLOOKUP($A145,F1__World_Data!$A$4:$DP$191,10,FALSE)","v":498.94400000000002},{"$f":"VLOOKUP($A145,F1__World_Data!$A$4:$DP$191,9,FALSE)","v":487.97300000000001},{"$f":"VLOOKUP($A145,F1__World_Data!$A$4:$DP$191,8,FALSE)","v":476.399},{"$f":"VLOOKUP($A145,F1__World_Data!$A$4:$DP$191,7,FALSE)","v":463.96},{"$f":"VLOOKUP($A145,F1__World_Data!$A$4:$DP$191,6,FALSE)","v":450.53800000000001},{"$f":"VLOOKUP($A145,F1__World_Data!$A$4:$DP$191,5,FALSE)","v":436.303},{"$f":"VLOOKUP($A145,F1__World_Data!$A$4:$DP$191,4,FALSE)","v":421.673},{"$f":"VLOOKUP($A145,F1__World_Data!$A$4:$DP$191,3,FALSE)","v":407.24400000000003},{"$f":"VLOOKUP($A145,F1__World_Data!$A$4:$DP$191,2,FALSE)","v":393.48},null,{"$f":"VLOOKUP($A145,F1__World_Data!$A$4:$DP$191,120,FALSE)","v":80.97050203529966},{"$f":"VLOOKUP($A145,F1__World_Data!$A$4:$DP$191,119,FALSE)","v":80.923348036246338},{"$f":"VLOOKUP($A145,F1__World_Data!$A$4:$DP$191,118,FALSE)","v":80.943092461193217},{"$f":"VLOOKUP($A145,F1__World_Data!$A$4:$DP$191,117,FALSE)","v":80.566807142571065},{"$f":"VLOOKUP($A145,F1__World_Data!$A$4:$DP$191,116,FALSE)","v":80.87044757794709},{"$f":"VLOOKUP($A145,F1__World_Data!$A$4:$DP$191,115,FALSE)","v":80.463740932860333},{"$f":"VLOOKUP($A145,F1__World_Data!$A$4:$DP$191,114,FALSE)","v":80.156888152225918},{"$f":"VLOOKUP($A145,F1__World_Data!$A$4:$DP$191,113,FALSE)","v":80.137772877619668},{"$f":"VLOOKUP($A145,F1__World_Data!$A$4:$DP$191,112,FALSE)","v":79.629426057763581},{"$f":"VLOOKUP($A145,F1__World_Data!$A$4:$DP$191,111,FALSE)","v":79.357228335505312},{"$f":"VLOOKUP($A145,F1__World_Data!$A$4:$DP$191,110,FALSE)","v":79.125498871187276},{"$f":"VLOOKUP($A145,F1__World_Data!$A$4:$DP$191,109,FALSE)","v":78.90203602754498},{"$f":"VLOOKUP($A145,F1__World_Data!$A$4:$DP$191,108,FALSE)","v":78.668923271741903},{"$f":"VLOOKUP($A145,F1__World_Data!$A$4:$DP$191,107,FALSE)","v":78.271011246005713},{"$f":"VLOOKUP($A145,F1__World_Data!$A$4:$DP$191,106,FALSE)","v":78.117403367078538},{"$f":"VLOOKUP($A145,F1__World_Data!$A$4:$DP$191,105,FALSE)","v":77.590661981993335},{"$f":"VLOOKUP($A145,F1__World_Data!$A$4:$DP$191,104,FALSE)","v":77.532721538566477},{"$f":"VLOOKUP($A145,F1__World_Data!$A$4:$DP$191,103,FALSE)","v":77.425483372652153},{"$f":"VLOOKUP($A145,F1__World_Data!$A$4:$DP$191,102,FALSE)","v":77.078447803495379},{"$f":"VLOOKUP($A145,F1__World_Data!$A$4:$DP$191,101,FALSE)","v":76.748581981705257},{"$f":"VLOOKUP($A145,F1__World_Data!$A$4:$DP$191,100,FALSE)","v":76.514517160640793},{"$f":"VLOOKUP($A145,F1__World_Data!$A$4:$DP$191,99,FALSE)","v":76.245519195417444},{"$f":"VLOOKUP($A145,F1__World_Data!$A$4:$DP$191,98,FALSE)","v":75.927968684357268},{"$f":"VLOOKUP($A145,F1__World_Data!$A$4:$DP$191,97,FALSE)","v":75.676868379694383},{"$f":"VLOOKUP($A145,F1__World_Data!$A$4:$DP$191,96,FALSE)","v":75.529103599056384},{"$f":"VLOOKUP($A145,F1__World_Data!$A$4:$DP$191,95,FALSE)","v":75.261221689961943},{"$f":"VLOOKUP($A145,F1__World_Data!$A$4:$DP$191,94,FALSE)","v":75.131843220386628},{"$f":"VLOOKUP($A145,F1__World_Data!$A$4:$DP$191,93,FALSE)","v":74.816900170053131},{"$f":"VLOOKUP($A145,F1__World_Data!$A$4:$DP$191,92,FALSE)","v":74.730662416188849},{"$f":"VLOOKUP($A145,F1__World_Data!$A$4:$DP$191,91,FALSE)","v":74.629427851561488},{"$f":"VLOOKUP($A145,F1__World_Data!$A$4:$DP$191,90,FALSE)","v":74.468485515702298},{"$f":"VLOOKUP($A145,F1__World_Data!$A$4:$DP$191,89,FALSE)","v":74.266401053831231},{"$f":"VLOOKUP($A145,F1__World_Data!$A$4:$DP$191,88,FALSE)","v":74.038049645144383},{"$f":"VLOOKUP($A145,F1__World_Data!$A$4:$DP$191,87,FALSE)","v":73.774190835667554},{"$f":"VLOOKUP($A145,F1__World_Data!$A$4:$DP$191,86,FALSE)","v":73.669311704219197},{"$f":"VLOOKUP($A145,F1__World_Data!$A$4:$DP$191,85,FALSE)","v":73.411165100630143},{"$f":"VLOOKUP($A145,F1__World_Data!$A$4:$DP$191,84,FALSE)","v":73.36659061694894},{"$f":"VLOOKUP($A145,F1__World_Data!$A$4:$DP$191,83,FALSE)","v":73.089631896662794},{"$f":"VLOOKUP($A145,F1__World_Data!$A$4:$DP$191,82,FALSE)","v":72.751268543388946},{"$f":"VLOOKUP($A145,F1__World_Data!$A$4:$DP$191,81,FALSE)","v":72.698052275226956},{"$f":"VLOOKUP($A145,F1__World_Data!$A$4:$DP$191,80,FALSE)","v":72.433704194539061},{"$f":"VLOOKUP($A145,F1__World_Data!$A$4:$DP$191,79,FALSE)","v":72.295522828618545},{"$f":"VLOOKUP($A145,F1__World_Data!$A$4:$DP$191,78,FALSE)","v":72.034441697781972},{"$f":"VLOOKUP($A145,F1__World_Data!$A$4:$DP$191,77,FALSE)","v":71.807843363234625},{"$f":"VLOOKUP($A145,F1__World_Data!$A$4:$DP$191,76,FALSE)","v":71.7263354105757},{"$f":"VLOOKUP($A145,F1__World_Data!$A$4:$DP$191,75,FALSE)","v":71.42220836041173},{"$f":"VLOOKUP($A145,F1__World_Data!$A$4:$DP$191,74,FALSE)","v":71.313069801495303},{"$f":"VLOOKUP($A145,F1__World_Data!$A$4:$DP$191,73,FALSE)","v":70.938898895467545},{"$f":"VLOOKUP($A145,F1__World_Data!$A$4:$DP$191,72,FALSE)","v":70.858259490740807},{"$f":"VLOOKUP($A145,F1__World_Data!$A$4:$DP$191,71,FALSE)","v":70.53345854774625},{"$f":"VLOOKUP($A145,F1__World_Data!$A$4:$DP$191,70,FALSE)","v":70.584133771911283},{"$f":"VLOOKUP($A145,F1__World_Data!$A$4:$DP$191,69,FALSE)","v":70.473602895873015},{"$f":"VLOOKUP($A145,F1__World_Data!$A$4:$DP$191,68,FALSE)","v":70.428153384590871},{"$f":"VLOOKUP($A145,F1__World_Data!$A$4:$DP$191,67,FALSE)","v":70.157154753430461},{"$f":"VLOOKUP($A145,F1__World_Data!$A$4:$DP$191,66,FALSE)","v":70.030842704461435},{"$f":"VLOOKUP($A145,F1__World_Data!$A$4:$DP$191,65,FALSE)","v":69.612851510609545},{"$f":"VLOOKUP($A145,F1__World_Data!$A$4:$DP$191,64,FALSE)","v":69.318361686346904},{"$f":"VLOOKUP($A145,F1__World_Data!$A$4:$DP$191,63,FALSE)","v":69.412211952628169},{"$f":"VLOOKUP($A145,F1__World_Data!$A$4:$DP$191,62,FALSE)","v":69.020866620994667}]
["Comoros",{"$f":"VLOOKUP($A146,F1__World_Data!$A$4:$DP$191,60,FALSE)","v":832.322},{"$f":"VLOOKUP($A146,F1__World_Data!$A$4:$DP$191,59,FALSE)","v":813.89},{"$f":"VLOOKUP($A146,F1__World_Data!$A$4:$DP$191,58,FALSE)","v":795.59699999999998},{"$f":"VLOOKUP($A146,F1__World_Data!$A$4:$DP$191,57,FALSE)","v":777.43499999999995},{"$f":"VLOOKUP($A146,F1__World_Data!$A$4:$DP$191,56,FALSE)","v":759.39},{"$f":"VLOOKUP($A146,F1__World_Data!$A$4:$DP$191,55,FALSE)","v":741.51099999999997},{"$f":"VLOOKUP($A146,F1__World_Data!$A$4:$DP$191,54,FALSE)","v":723.86500000000001},{"$f":"VLOOKUP($A146,F1__World_Data!$A$4:$DP$191,53,FALSE)","v":706.57799999999997},{"$f":"VLOOKUP($A146,F1__World_Data!$A$4:$DP$191,52,FALSE)","v":689.69600000000003},{"$f":"VLOOKUP($A146,F1__World_Data!$A$4:$DP$191,51,FALSE)","v":673.25099999999998},{"$f":"VLOOKUP($A146,F1__World_Data!$A$4:$DP$191,50,FALSE)","v":657.22699999999998},{"$f":"VLOOKUP($A146,F1__World_Data!$A$4:$DP$191,49,FALSE)","v":641.62400000000002},{"$f":"VLOOKUP($A146,F1__World_Data!$A$4:$DP$191,48,FALSE)","v":626.42700000000002},{"$f":"VLOOKUP($A146,F1__World_Data!$A$4:$DP$191,47,FALSE)","v":611.625},{"$f":"VLOOKUP($A146,F1__World_Data!$A$4:$DP$191,46,FALSE)","v":597.23},{"$f":"VLOOKUP($A146,F1__World_Data!$A$4:$DP$191,45,FALSE)","v":583.21299999999997},{"$f":"VLOOKUP($A146,F1__World_Data!$A$4:$DP$191,44,FALSE)","v":569.48},{"$f":"VLOOKUP($A146,F1__World_Data!$A$4:$DP$191,43,FALSE)","v":555.89499999999998},{"$f":"VLOOKUP($A146,F1__World_Data!$A$4:$DP$191,42,FALSE)","v":542.35799999999995},{"$f":"VLOOKUP($A146,F1__World_Data!$A$4:$DP$191,41,FALSE)","v":528.85299999999995},{"$f":"VLOOKUP($A146,F1__World_Data!$A$4:$DP$191,40,FALSE)","v":515.38199999999995},{"$f":"VLOOKUP($A146,F1__World_Data!$A$4:$DP$191,39,FALSE)","v":501.95499999999998},{"$f":"VLOOKUP($A146,F1__World_Data!$A$4:$DP$191,38,FALSE)","v":488.625},{"$f":"VLOOKUP($A146,F1__World_Data!$A$4:$DP$191,37,FALSE)","v":475.39400000000001},{"$f":"VLOOKUP($A146,F1__World_Data!$A$4:$DP$191,36,FALSE)","v":462.28},{"$f":"VLOOKUP($A146,F1__World_Data!$A$4:$DP$191,35,FALSE)","v":449.27},{"$f":"VLOOKUP($A146,F1__World_Data!$A$4:$DP$191,34,FALSE)","v":436.45400000000001},{"$f":"VLOOKUP($A146,F1__World_Data!$A$4:$DP$191,33,FALSE)","v":423.87299999999999},{"$f":"VLOOKUP($A146,F1__World_Data!$A$4:$DP$191,32,FALSE)","v":411.59800000000001},{"$f":"VLOOKUP($A146,F1__World_Data!$A$4:$DP$191,31,FALSE)","v":399.63799999999998},{"$f":"VLOOKUP($A146,F1__World_Data!$A$4:$DP$191,30,FALSE)","v":387.964},{"$f":"VLOOKUP($A146,F1__World_Data!$A$4:$DP$191,29,FALSE)","v":376.64699999999999},{"$f":"VLOOKUP($A146,F1__World_Data!$A$4:$DP$191,28,FALSE)","v":365.76499999999999},{"$f":"VLOOKUP($A146,F1__World_Data!$A$4:$DP$191,27,FALSE)","v":355.33699999999999},{"$f":"VLOOKUP($A146,F1__World_Data!$A$4:$DP$191,26,FALSE)","v":345.45499999999998},{"$f":"VLOOKUP($A146,F1__World_Data!$A$4:$DP$191,25,FALSE)","v":336.08800000000002},{"$f":"VLOOKUP($A146,F1__World_Data!$A$4:$DP$191,24,FALSE)","v":326.94400000000002},{"$f":"VLOOKUP($A146,F1__World_Data!$A$4:$DP$191,23,FALSE)","v":317.61700000000002},{"$f":"VLOOKUP($A146,F1__World_Data!$A$4:$DP$191,22,FALSE)","v":307.83100000000002},{"$f":"VLOOKUP($A146,F1__World_Data!$A$4:$DP$191,21,FALSE)","v":297.45100000000002},{"$f":"VLOOKUP($A146,F1__World_Data!$A$4:$DP$191,20,FALSE)","v":286.62799999999999},{"$f":"VLOOKUP($A146,F1__World_Data!$A$4:$DP$191,19,FALSE)","v":275.90300000000002},{"$f":"VLOOKUP($A146,F1__World_Data!$A$4:$DP$191,18,FALSE)","v":265.95800000000003},{"$f":"VLOOKUP($A146,F1__World_Data!$A$4:$DP$191,17,FALSE)","v":257.28500000000003},{"$f":"VLOOKUP($A146,F1__World_Data!$A$4:$DP$191,16,FALSE)","v":250.107},{"$f":"VLOOKUP($A146,F1__World_Data!$A$4:$DP$191,15,FALSE)","v":244.20699999999999},{"$f":"VLOOKUP($A146,F1__World_Data!$A$4:$DP$191,14,FALSE)","v":239.22900000000001},{"$f":"VLOOKUP($A146,F1__World_Data!$A$4:$DP$191,13,FALSE)","v":234.64500000000001},{"$f":"VLOOKUP($A146,F1__World_Data!$A$4:$DP$191,12,FALSE)","v":230.05500000000001},{"$f":"VLOOKUP($A146,F1__World_Data!$A$4:$DP$191,11,FALSE)","v":225.32400000000001},{"$f":"VLOOKUP($A146,F1__World_Data!$A$4:$DP$191,10,FALSE)","v":220.57400000000001},{"$f":"VLOOKUP($A146,F1__World_Data!$A$4:$DP$191,9,FALSE)","v":215.9},{"$f":"VLOOKUP($A146,F1__World_Data!$A$4:$DP$191,8,FALSE)","v":211.477},{"$f":"VLOOKUP($A146,F1__World_Data!$A$4:$DP$191,7,FALSE)","v":207.429},{"$f":"VLOOKUP($A146,F1__World_Data!$A$4:$DP$191,6,FALSE)","v":203.762},{"$f":"VLOOKUP($A146,F1__World_Data!$A$4:$DP$191,5,FALSE)","v":200.37100000000001},{"$f":"VLOOKUP($A146,F1__World_Data!$A$4:$DP$191,4,FALSE)","v":197.202},{"$f":"VLOOKUP($A146,F1__World_Data!$A$4:$DP$191,3,FALSE)","v":194.149},{"$f":"VLOOKUP($A146,F1__World_Data!$A$4:$DP$191,2,FALSE)","v":191.12200000000001},null,{"$f":"VLOOKUP($A146,F1__World_Data!$A$4:$DP$191,120,FALSE)","v":73.637107765015102},{"$f":"VLOOKUP($A146,F1__World_Data!$A$4:$DP$191,119,FALSE)","v":73.517492494111451},{"$f":"VLOOKUP($A146,F1__World_Data!$A$4:$DP$191,118,FALSE)","v":73.395956392778842},{"$f":"VLOOKUP($A146,F1__World_Data!$A$4:$DP$191,117,FALSE)","v":73.273015980955037},{"$f":"VLOOKUP($A146,F1__World_Data!$A$4:$DP$191,116,FALSE)","v":73.150584618105228},{"$f":"VLOOKUP($A146,F1__World_Data!$A$4:$DP$191,115,FALSE)","v":73.030145150125279},{"$f":"VLOOKUP($A146,F1__World_Data!$A$4:$DP$191,114,FALSE)","v":72.911803457889334},{"$f":"VLOOKUP($A146,F1__World_Data!$A$4:$DP$191,113,FALSE)","v":72.795298311480806},{"$f":"VLOOKUP($A146,F1__World_Data!$A$4:$DP$191,112,FALSE)","v":72.67939476796036},{"$f":"VLOOKUP($A146,F1__World_Data!$A$4:$DP$191,111,FALSE)","v":72.561747336395143},{"$f":"VLOOKUP($A146,F1__World_Data!$A$4:$DP$191,110,FALSE)","v":72.440791221878925},{"$f":"VLOOKUP($A146,F1__World_Data!$A$4:$DP$191,109,FALSE)","v":72.316056289520802},{"$f":"VLOOKUP($A146,F1__World_Data!$A$4:$DP$191,108,FALSE)","v":72.187024201709548},{"$f":"VLOOKUP($A146,F1__World_Data!$A$4:$DP$191,107,FALSE)","v":72.055708423096959},{"$f":"VLOOKUP($A146,F1__World_Data!$A$4:$DP$191,106,FALSE)","v":71.923538539966657},{"$f":"VLOOKUP($A146,F1__World_Data!$A$4:$DP$191,105,FALSE)","v":71.79198627417226},{"$f":"VLOOKUP($A146,F1__World_Data!$A$4:$DP$191,104,FALSE)","v":71.713359964345358},{"$f":"VLOOKUP($A146,F1__World_Data!$A$4:$DP$191,103,FALSE)","v":71.538000447490049},{"$f":"VLOOKUP($A146,F1__World_Data!$A$4:$DP$191,102,FALSE)","v":71.419185391298214},{"$f":"VLOOKUP($A146,F1__World_Data!$A$4:$DP$191,101,FALSE)","v":71.310270981539503},{"$f":"VLOOKUP($A146,F1__World_Data!$A$4:$DP$191,100,FALSE)","v":71.21031996042737},{"$f":"VLOOKUP($A146,F1__World_Data!$A$4:$DP$191,99,FALSE)","v":71.163774129209045},{"$f":"VLOOKUP($A146,F1__World_Data!$A$4:$DP$191,98,FALSE)","v":71.028989838640868},{"$f":"VLOOKUP($A146,F1__World_Data!$A$4:$DP$191,97,FALSE)","v":70.937525331800259},{"$f":"VLOOKUP($A146,F1__World_Data!$A$4:$DP$191,96,FALSE)","v":70.834489868717455},{"$f":"VLOOKUP($A146,F1__World_Data!$A$4:$DP$191,95,FALSE)","v":70.712539984335763},{"$f":"VLOOKUP($A146,F1__World_Data!$A$4:$DP$191,94,FALSE)","v":70.588066446924401},{"$f":"VLOOKUP($A146,F1__World_Data!$A$4:$DP$191,93,FALSE)","v":70.394009945599478},{"$f":"VLOOKUP($A146,F1__World_Data!$A$4:$DP$191,92,FALSE)","v":70.197631076872327},{"$f":"VLOOKUP($A146,F1__World_Data!$A$4:$DP$191,91,FALSE)","v":69.984185708155181},{"$f":"VLOOKUP($A146,F1__World_Data!$A$4:$DP$191,90,FALSE)","v":69.763201056316845},{"$f":"VLOOKUP($A146,F1__World_Data!$A$4:$DP$191,89,FALSE)","v":69.548709699732711},{"$f":"VLOOKUP($A146,F1__World_Data!$A$4:$DP$191,88,FALSE)","v":69.329770812363662},{"$f":"VLOOKUP($A146,F1__World_Data!$A$4:$DP$191,87,FALSE)","v":69.122687176363286},{"$f":"VLOOKUP($A146,F1__World_Data!$A$4:$DP$191,86,FALSE)","v":68.920937408315467},{"$f":"VLOOKUP($A146,F1__World_Data!$A$4:$DP$191,85,FALSE)","v":68.718950407055345},{"$f":"VLOOKUP($A146,F1__World_Data!$A$4:$DP$191,84,FALSE)","v":68.517816565508539},{"$f":"VLOOKUP($A146,F1__World_Data!$A$4:$DP$191,83,FALSE)","v":68.303133941519746},{"$f":"VLOOKUP($A146,F1__World_Data!$A$4:$DP$191,82,FALSE)","v":68.086726113212805},{"$f":"VLOOKUP($A146,F1__World_Data!$A$4:$DP$191,81,FALSE)","v":67.861437019779785},{"$f":"VLOOKUP($A146,F1__World_Data!$A$4:$DP$191,80,FALSE)","v":67.627852151683655},{"$f":"VLOOKUP($A146,F1__World_Data!$A$4:$DP$191,79,FALSE)","v":67.385208633368208},{"$f":"VLOOKUP($A146,F1__World_Data!$A$4:$DP$191,78,FALSE)","v":67.13336447744399},{"$f":"VLOOKUP($A146,F1__World_Data!$A$4:$DP$191,77,FALSE)","v":66.875688670547362},{"$f":"VLOOKUP($A146,F1__World_Data!$A$4:$DP$191,76,FALSE)","v":66.618286191425497},{"$f":"VLOOKUP($A146,F1__World_Data!$A$4:$DP$191,75,FALSE)","v":66.364974788459406},{"$f":"VLOOKUP($A146,F1__World_Data!$A$4:$DP$191,74,FALSE)","v":66.118883978571901},{"$f":"VLOOKUP($A146,F1__World_Data!$A$4:$DP$191,73,FALSE)","v":65.880385295601911},{"$f":"VLOOKUP($A146,F1__World_Data!$A$4:$DP$191,72,FALSE)","v":65.648808613002032},{"$f":"VLOOKUP($A146,F1__World_Data!$A$4:$DP$191,71,FALSE)","v":65.419925874108088},{"$f":"VLOOKUP($A146,F1__World_Data!$A$4:$DP$191,70,FALSE)","v":65.186992176822201},{"$f":"VLOOKUP($A146,F1__World_Data!$A$4:$DP$191,69,FALSE)","v":64.943628772980901},{"$f":"VLOOKUP($A146,F1__World_Data!$A$4:$DP$191,68,FALSE)","v":64.684667910390132},{"$f":"VLOOKUP($A146,F1__World_Data!$A$4:$DP$191,67,FALSE)","v":64.407721253920059},{"$f":"VLOOKUP($A146,F1__World_Data!$A$4:$DP$191,66,FALSE)","v":64.113791435393836},{"$f":"VLOOKUP($A146,F1__World_Data!$A$4:$DP$191,65,FALSE)","v":63.804441775374208},{"$f":"VLOOKUP($A146,F1__World_Data!$A$4:$DP$191,64,FALSE)","v":63.476465945226273},{"$f":"VLOOKUP($A146,F1__World_Data!$A$4:$DP$191,63,FALSE)","v":63.126130845617176},{"$f":"VLOOKUP($A146,F1__World_Data!$A$4:$DP$191,62,FALSE)","v":62.746295193294777}]
["Guyana",{"$f":"VLOOKUP($A147,F1__World_Data!$A$4:$DP$191,60,FALSE)","v":779.00699999999995},{"$f":"VLOOKUP($A147,F1__World_Data!$A$4:$DP$191,59,FALSE)","v":775.21799999999996},{"$f":"VLOOKUP($A147,F1__World_Data!$A$4:$DP$191,58,FALSE)","v":771.36300000000006},{"$f":"VLOOKUP($A147,F1__World_Data!$A$4:$DP$191,57,FALSE)","v":767.43299999999999},{"$f":"VLOOKUP($A147,F1__World_Data!$A$4:$DP$191,56,FALSE)","v":763.37099999999998},{"$f":"VLOOKUP($A147,F1__World_Data!$A$4:$DP$191,55,FALSE)","v":759.28099999999995},{"$f":"VLOOKUP($A147,F1__World_Data!$A$4:$DP$191,54,FALSE)","v":755.38800000000003},{"$f":"VLOOKUP($A147,F1__World_Data!$A$4:$DP$191,53,FALSE)","v":752.029},{"$f":"VLOOKUP($A147,F1__World_Data!$A$4:$DP$191,52,FALSE)","v":749.43},{"$f":"VLOOKUP($A147,F1__World_Data!$A$4:$DP$191,51,FALSE)","v":747.71799999999996},{"$f":"VLOOKUP($A147,F1__World_Data!$A$4:$DP$191,50,FALSE)","v":746.81500000000005},{"$f":"VLOOKUP($A147,F1__World_Data!$A$4:$DP$191,49,FALSE)","v":746.47699999999998},{"$f":"VLOOKUP($A147,F1__World_Data!$A$4:$DP$191,48,FALSE)","v":746.33500000000004},{"$f":"VLOOKUP($A147,F1__World_Data!$A$4:$DP$191,47,FALSE)","v":746.15599999999995},{"$f":"VLOOKUP($A147,F1__World_Data!$A$4:$DP$191,46,FALSE)","v":745.73699999999997},{"$f":"VLOOKUP($A147,F1__World_Data!$A$4:$DP$191,45,FALSE)","v":745.14200000000005},{"$f":"VLOOKUP($A147,F1__World_Data!$A$4:$DP$191,44,FALSE)","v":744.78899999999999},{"$f":"VLOOKUP($A147,F1__World_Data!$A$4:$DP$191,43,FALSE)","v":745.20600000000002},{"$f":"VLOOKUP($A147,F1__World_Data!$A$4:$DP$191,42,FALSE)","v":746.71799999999996},{"$f":"VLOOKUP($A147,F1__World_Data!$A$4:$DP$191,41,FALSE)","v":749.67600000000004},{"$f":"VLOOKUP($A147,F1__World_Data!$A$4:$DP$191,40,FALSE)","v":753.77800000000002},{"$f":"VLOOKUP($A147,F1__World_Data!$A$4:$DP$191,39,FALSE)","v":757.97500000000002},{"$f":"VLOOKUP($A147,F1__World_Data!$A$4:$DP$191,38,FALSE)","v":760.80100000000004},{"$f":"VLOOKUP($A147,F1__World_Data!$A$4:$DP$191,37,FALSE)","v":761.298},{"$f":"VLOOKUP($A147,F1__World_Data!$A$4:$DP$191,36,FALSE)","v":758.89599999999996},{"$f":"VLOOKUP($A147,F1__World_Data!$A$4:$DP$191,35,FALSE)","v":754.14099999999996},{"$f":"VLOOKUP($A147,F1__World_Data!$A$4:$DP$191,34,FALSE)","v":748.596},{"$f":"VLOOKUP($A147,F1__World_Data!$A$4:$DP$191,33,FALSE)","v":744.47699999999998},{"$f":"VLOOKUP($A147,F1__World_Data!$A$4:$DP$191,32,FALSE)","v":743.30600000000004},{"$f":"VLOOKUP($A147,F1__World_Data!$A$4:$DP$191,31,FALSE)","v":745.58100000000002},{"$f":"VLOOKUP($A147,F1__World_Data!$A$4:$DP$191,30,FALSE)","v":750.64099999999996},{"$f":"VLOOKUP($A147,F1__World_Data!$A$4:$DP$191,29,FALSE)","v":757.45100000000002},{"$f":"VLOOKUP($A147,F1__World_Data!$A$4:$DP$191,28,FALSE)","v":764.447},{"$f":"VLOOKUP($A147,F1__World_Data!$A$4:$DP$191,27,FALSE)","v":770.43899999999996},{"$f":"VLOOKUP($A147,F1__World_Data!$A$4:$DP$191,26,FALSE)","v":775.21699999999998},{"$f":"VLOOKUP($A147,F1__World_Data!$A$4:$DP$191,25,FALSE)","v":778.95299999999997},{"$f":"VLOOKUP($A147,F1__World_Data!$A$4:$DP$191,24,FALSE)","v":781.24900000000002},{"$f":"VLOOKUP($A147,F1__World_Data!$A$4:$DP$191,23,FALSE)","v":781.73400000000004},{"$f":"VLOOKUP($A147,F1__World_Data!$A$4:$DP$191,22,FALSE)","v":780.15300000000002},{"$f":"VLOOKUP($A147,F1__World_Data!$A$4:$DP$191,21,FALSE)","v":776.25699999999995},{"$f":"VLOOKUP($A147,F1__World_Data!$A$4:$DP$191,20,FALSE)","v":770.12800000000004},{"$f":"VLOOKUP($A147,F1__World_Data!$A$4:$DP$191,19,FALSE)","v":762.42399999999998},{"$f":"VLOOKUP($A147,F1__World_Data!$A$4:$DP$191,18,FALSE)","v":754.101},{"$f":"VLOOKUP($A147,F1__World_Data!$A$4:$DP$191,17,FALSE)","v":745.84699999999998},{"$f":"VLOOKUP($A147,F1__World_Data!$A$4:$DP$191,16,FALSE)","v":737.846},{"$f":"VLOOKUP($A147,F1__World_Data!$A$4:$DP$191,15,FALSE)","v":729.90899999999999},{"$f":"VLOOKUP($A147,F1__World_Data!$A$4:$DP$191,14,FALSE)","v":721.94899999999996},{"$f":"VLOOKUP($A147,F1__World_Data!$A$4:$DP$191,13,FALSE)","v":713.68399999999997},{"$f":"VLOOKUP($A147,F1__World_Data!$A$4:$DP$191,12,FALSE)","v":704.93},{"$f":"VLOOKUP($A147,F1__World_Data!$A$4:$DP$191,11,FALSE)","v":695.74300000000005},{"$f":"VLOOKUP($A147,F1__World_Data!$A$4:$DP$191,10,FALSE)","v":686.14400000000001},{"$f":"VLOOKUP($A147,F1__World_Data!$A$4:$DP$191,9,FALSE)","v":675.86099999999999},{"$f":"VLOOKUP($A147,F1__World_Data!$A$4:$DP$191,8,FALSE)","v":664.51800000000003},{"$f":"VLOOKUP($A147,F1__World_Data!$A$4:$DP$191,7,FALSE)","v":651.86500000000001},{"$f":"VLOOKUP($A147,F1__World_Data!$A$4:$DP$191,6,FALSE)","v":637.83500000000004},{"$f":"VLOOKUP($A147,F1__World_Data!$A$4:$DP$191,5,FALSE)","v":622.58000000000004},{"$f":"VLOOKUP($A147,F1__World_Data!$A$4:$DP$191,4,FALSE)","v":606.28599999999994},{"$f":"VLOOKUP($A147,F1__World_Data!$A$4:$DP$191,3,FALSE)","v":589.274},{"$f":"VLOOKUP($A147,F1__World_Data!$A$4:$DP$191,2,FALSE)","v":571.81299999999999},null,{"$f":"VLOOKUP($A147,F1__World_Data!$A$4:$DP$191,120,FALSE)","v":69.774000000000001},{"$f":"VLOOKUP($A147,F1__World_Data!$A$4:$DP$191,119,FALSE)","v":69.623999999999995},{"$f":"VLOOKUP($A147,F1__World_Data!$A$4:$DP$191,118,FALSE)","v":69.453999999999994},{"$f":"VLOOKUP($A147,F1__World_Data!$A$4:$DP$191,117,FALSE)","v":69.262},{"$f":"VLOOKUP($A147,F1__World_Data!$A$4:$DP$191,116,FALSE)","v":69.049000000000007},{"$f":"VLOOKUP($A147,F1__World_Data!$A$4:$DP$191,115,FALSE)","v":68.819000000000003},{"$f":"VLOOKUP($A147,F1__World_Data!$A$4:$DP$191,114,FALSE)","v":68.575000000000003},{"$f":"VLOOKUP($A147,F1__World_Data!$A$4:$DP$191,113,FALSE)","v":68.320999999999998},{"$f":"VLOOKUP($A147,F1__World_Data!$A$4:$DP$191,112,FALSE)","v":68.058999999999997},{"$f":"VLOOKUP($A147,F1__World_Data!$A$4:$DP$191,111,FALSE)","v":67.792000000000002},{"$f":"VLOOKUP($A147,F1__World_Data!$A$4:$DP$191,110,FALSE)","v":67.521000000000001},{"$f":"VLOOKUP($A147,F1__World_Data!$A$4:$DP$191,109,FALSE)","v":67.247},{"$f":"VLOOKUP($A147,F1__World_Data!$A$4:$DP$191,108,FALSE)","v":66.971999999999994},{"$f":"VLOOKUP($A147,F1__World_Data!$A$4:$DP$191,107,FALSE)","v":66.694000000000003},{"$f":"VLOOKUP($A147,F1__World_Data!$A$4:$DP$191,106,FALSE)","v":66.412000000000006},{"$f":"VLOOKUP($A147,F1__World_Data!$A$4:$DP$191,105,FALSE)","v":66.122},{"$f":"VLOOKUP($A147,F1__World_Data!$A$4:$DP$191,104,FALSE)","v":65.828000000000003},{"$f":"VLOOKUP($A147,F1__World_Data!$A$4:$DP$191,103,FALSE)","v":65.531999999999996},{"$f":"VLOOKUP($A147,F1__World_Data!$A$4:$DP$191,102,FALSE)","v":65.242000000000004},{"$f":"VLOOKUP($A147,F1__World_Data!$A$4:$DP$191,101,FALSE)","v":64.963999999999999},{"$f":"VLOOKUP($A147,F1__World_Data!$A$4:$DP$191,100,FALSE)","v":64.704999999999998},{"$f":"VLOOKUP($A147,F1__World_Data!$A$4:$DP$191,99,FALSE)","v":64.468000000000004},{"$f":"VLOOKUP($A147,F1__World_Data!$A$4:$DP$191,98,FALSE)","v":64.254999999999995},{"$f":"VLOOKUP($A147,F1__World_Data!$A$4:$DP$191,97,FALSE)","v":64.063999999999993},{"$f":"VLOOKUP($A147,F1__World_Data!$A$4:$DP$191,96,FALSE)","v":63.890999999999998},{"$f":"VLOOKUP($A147,F1__World_Data!$A$4:$DP$191,95,FALSE)","v":63.73},{"$f":"VLOOKUP($A147,F1__World_Data!$A$4:$DP$191,94,FALSE)","v":63.576000000000001},{"$f":"VLOOKUP($A147,F1__World_Data!$A$4:$DP$191,93,FALSE)","v":63.427},{"$f":"VLOOKUP($A147,F1__World_Data!$A$4:$DP$191,92,FALSE)","v":63.286999999999999},{"$f":"VLOOKUP($A147,F1__World_Data!$A$4:$DP$191,91,FALSE)","v":63.158999999999999},{"$f":"VLOOKUP($A147,F1__World_Data!$A$4:$DP$191,90,FALSE)","v":63.045999999999999},{"$f":"VLOOKUP($A147,F1__World_Data!$A$4:$DP$191,89,FALSE)","v":62.95},{"$f":"VLOOKUP($A147,F1__World_Data!$A$4:$DP$191,88,FALSE)","v":62.869},{"$f":"VLOOKUP($A147,F1__World_Data!$A$4:$DP$191,87,FALSE)","v":62.801000000000002},{"$f":"VLOOKUP($A147,F1__World_Data!$A$4:$DP$191,86,FALSE)","v":62.741},{"$f":"VLOOKUP($A147,F1__World_Data!$A$4:$DP$191,85,FALSE)","v":62.683999999999997},{"$f":"VLOOKUP($A147,F1__World_Data!$A$4:$DP$191,84,FALSE)","v":62.625999999999998},{"$f":"VLOOKUP($A147,F1__World_Data!$A$4:$DP$191,83,FALSE)","v":62.564999999999998},{"$f":"VLOOKUP($A147,F1__World_Data!$A$4:$DP$191,82,FALSE)","v":62.497999999999998},{"$f":"VLOOKUP($A147,F1__World_Data!$A$4:$DP$191,81,FALSE)","v":62.427},{"$f":"VLOOKUP($A147,F1__World_Data!$A$4:$DP$191,80,FALSE)","v":62.354999999999997},{"$f":"VLOOKUP($A147,F1__World_Data!$A$4:$DP$191,79,FALSE)","v":62.283000000000001},{"$f":"VLOOKUP($A147,F1__World_Data!$A$4:$DP$191,78,FALSE)","v":62.210999999999999},{"$f":"VLOOKUP($A147,F1__World_Data!$A$4:$DP$191,77,FALSE)","v":62.14},{"$f":"VLOOKUP($A147,F1__World_Data!$A$4:$DP$191,76,FALSE)","v":62.072000000000003},{"$f":"VLOOKUP($A147,F1__World_Data!$A$4:$DP$191,75,FALSE)","v":62.005000000000003},{"$f":"VLOOKUP($A147,F1__World_Data!$A$4:$DP$191,74,FALSE)","v":61.938000000000002},{"$f":"VLOOKUP($A147,F1__World_Data!$A$4:$DP$191,73,FALSE)","v":61.868000000000002},{"$f":"VLOOKUP($A147,F1__World_Data!$A$4:$DP$191,72,FALSE)","v":61.789000000000001},{"$f":"VLOOKUP($A147,F1__World_Data!$A$4:$DP$191,71,FALSE)","v":61.697000000000003},{"$f":"VLOOKUP($A147,F1__World_Data!$A$4:$DP$191,70,FALSE)","v":61.588000000000001},{"$f":"VLOOKUP($A147,F1__World_Data!$A$4:$DP$191,69,FALSE)","v":61.462000000000003},{"$f":"VLOOKUP($A147,F1__World_Data!$A$4:$DP$191,68,FALSE)","v":61.317},{"$f":"VLOOKUP($A147,F1__World_Data!$A$4:$DP$191,67,FALSE)","v":61.156999999999996},{"$f":"VLOOKUP($A147,F1__World_Data!$A$4:$DP$191,66,FALSE)","v":60.984000000000002},{"$f":"VLOOKUP($A147,F1__World_Data!$A$4:$DP$191,65,FALSE)","v":60.805},{"$f":"VLOOKUP($A147,F1__World_Data!$A$4:$DP$191,64,FALSE)","v":60.622999999999998},{"$f":"VLOOKUP($A147,F1__World_Data!$A$4:$DP$191,63,FALSE)","v":60.441000000000003},{"$f":"VLOOKUP($A147,F1__World_Data!$A$4:$DP$191,62,FALSE)","v":60.26}]
["Bhutan",{"$f":"VLOOKUP($A148,F1__World_Data!$A$4:$DP$191,60,FALSE)","v":754.39599999999996},{"$f":"VLOOKUP($A148,F1__World_Data!$A$4:$DP$191,59,FALSE)","v":745.56299999999999},{"$f":"VLOOKUP($A148,F1__World_Data!$A$4:$DP$191,58,FALSE)","v":736.70600000000002},{"$f":"VLOOKUP($A148,F1__World_Data!$A$4:$DP$191,57,FALSE)","v":727.88499999999999},{"$f":"VLOOKUP($A148,F1__World_Data!$A$4:$DP$191,56,FALSE)","v":719.053},{"$f":"VLOOKUP($A148,F1__World_Data!$A$4:$DP$191,55,FALSE)","v":710.23500000000001},{"$f":"VLOOKUP($A148,F1__World_Data!$A$4:$DP$191,54,FALSE)","v":701.58199999999999},{"$f":"VLOOKUP($A148,F1__World_Data!$A$4:$DP$191,53,FALSE)","v":693.29700000000003},{"$f":"VLOOKUP($A148,F1__World_Data!$A$4:$DP$191,52,FALSE)","v":685.50199999999995},{"$f":"VLOOKUP($A148,F1__World_Data!$A$4:$DP$191,51,FALSE)","v":678.32899999999995},{"$f":"VLOOKUP($A148,F1__World_Data!$A$4:$DP$191,50,FALSE)","v":671.61099999999999},{"$f":"VLOOKUP($A148,F1__World_Data!$A$4:$DP$191,49,FALSE)","v":664.87300000000005},{"$f":"VLOOKUP($A148,F1__World_Data!$A$4:$DP$191,48,FALSE)","v":657.404},{"$f":"VLOOKUP($A148,F1__World_Data!$A$4:$DP$191,47,FALSE)","v":648.74400000000003},{"$f":"VLOOKUP($A148,F1__World_Data!$A$4:$DP$191,46,FALSE)","v":638.80899999999997},{"$f":"VLOOKUP($A148,F1__World_Data!$A$4:$DP$191,45,FALSE)","v":627.84},{"$f":"VLOOKUP($A148,F1__World_Data!$A$4:$DP$191,44,FALSE)","v":616.02499999999998},{"$f":"VLOOKUP($A148,F1__World_Data!$A$4:$DP$191,43,FALSE)","v":603.64300000000003},{"$f":"VLOOKUP($A148,F1__World_Data!$A$4:$DP$191,42,FALSE)","v":591.01400000000001},{"$f":"VLOOKUP($A148,F1__World_Data!$A$4:$DP$191,41,FALSE)","v":577.88599999999997},{"$f":"VLOOKUP($A148,F1__World_Data!$A$4:$DP$191,40,FALSE)","v":564.37800000000004},{"$f":"VLOOKUP($A148,F1__World_Data!$A$4:$DP$191,39,FALSE)","v":551.71299999999997},{"$f":"VLOOKUP($A148,F1__World_Data!$A$4:$DP$191,38,FALSE)","v":541.471},{"$f":"VLOOKUP($A148,F1__World_Data!$A$4:$DP$191,37,FALSE)","v":534.62900000000002},{"$f":"VLOOKUP($A148,F1__World_Data!$A$4:$DP$191,36,FALSE)","v":531.90499999999997},{"$f":"VLOOKUP($A148,F1__World_Data!$A$4:$DP$191,35,FALSE)","v":532.59},{"$f":"VLOOKUP($A148,F1__World_Data!$A$4:$DP$191,34,FALSE)","v":534.52499999999998},{"$f":"VLOOKUP($A148,F1__World_Data!$A$4:$DP$191,33,FALSE)","v":534.63699999999994},{"$f":"VLOOKUP($A148,F1__World_Data!$A$4:$DP$191,32,FALSE)","v":530.80100000000004},{"$f":"VLOOKUP($A148,F1__World_Data!$A$4:$DP$191,31,FALSE)","v":522.173},{"$f":"VLOOKUP($A148,F1__World_Data!$A$4:$DP$191,30,FALSE)","v":509.53199999999998},{"$f":"VLOOKUP($A148,F1__World_Data!$A$4:$DP$191,29,FALSE)","v":494.31299999999999},{"$f":"VLOOKUP($A148,F1__World_Data!$A$4:$DP$191,28,FALSE)","v":478.68299999999999},{"$f":"VLOOKUP($A148,F1__World_Data!$A$4:$DP$191,27,FALSE)","v":464.26400000000001},{"$f":"VLOOKUP($A148,F1__World_Data!$A$4:$DP$191,26,FALSE)","v":451.471},{"$f":"VLOOKUP($A148,F1__World_Data!$A$4:$DP$191,25,FALSE)","v":439.82299999999998},{"$f":"VLOOKUP($A148,F1__World_Data!$A$4:$DP$191,24,FALSE)","v":428.93799999999999},{"$f":"VLOOKUP($A148,F1__World_Data!$A$4:$DP$191,23,FALSE)","v":418.10700000000003},{"$f":"VLOOKUP($A148,F1__World_Data!$A$4:$DP$191,22,FALSE)","v":406.88299999999998},{"$f":"VLOOKUP($A148,F1__World_Data!$A$4:$DP$191,21,FALSE)","v":395.19200000000001},{"$f":"VLOOKUP($A148,F1__World_Data!$A$4:$DP$191,20,FALSE)","v":383.32400000000001},{"$f":"VLOOKUP($A148,F1__World_Data!$A$4:$DP$191,19,FALSE)","v":371.42399999999998},{"$f":"VLOOKUP($A148,F1__World_Data!$A$4:$DP$191,18,FALSE)","v":359.721},{"$f":"VLOOKUP($A148,F1__World_Data!$A$4:$DP$191,17,FALSE)","v":348.39499999999998},{"$f":"VLOOKUP($A148,F1__World_Data!$A$4:$DP$191,16,FALSE)","v":337.49099999999999},{"$f":"VLOOKUP($A148,F1__World_Data!$A$4:$DP$191,15,FALSE)","v":326.98599999999999},{"$f":"VLOOKUP($A148,F1__World_Data!$A$4:$DP$191,14,FALSE)","v":316.822},{"$f":"VLOOKUP($A148,F1__World_Data!$A$4:$DP$191,13,FALSE)","v":306.95699999999999},{"$f":"VLOOKUP($A148,F1__World_Data!$A$4:$DP$191,12,FALSE)","v":297.30700000000002},{"$f":"VLOOKUP($A148,F1__World_Data!$A$4:$DP$191,11,FALSE)","v":287.88600000000002},{"$f":"VLOOKUP($A148,F1__World_Data!$A$4:$DP$191,10,FALSE)","v":278.73099999999999},{"$f":"VLOOKUP($A148,F1__World_Data!$A$4:$DP$191,9,FALSE)","v":269.94400000000002},{"$f":"VLOOKUP($A148,F1__World_Data!$A$4:$DP$191,8,FALSE)","v":261.66399999999999},{"$f":"VLOOKUP($A148,F1__World_Data!$A$4:$DP$191,7,FALSE)","v":253.99299999999999},{"$f":"VLOOKUP($A148,F1__World_Data!$A$4:$DP$191,6,FALSE)","v":246.96100000000001},{"$f":"VLOOKUP($A148,F1__World_Data!$A$4:$DP$191,5,FALSE)","v":240.529},{"$f":"VLOOKUP($A148,F1__World_Data!$A$4:$DP$191,4,FALSE)","v":234.55199999999999},{"$f":"VLOOKUP($A148,F1__World_Data!$A$4:$DP$191,3,FALSE)","v":228.84899999999999},{"$f":"VLOOKUP($A148,F1__World_Data!$A$4:$DP$191,2,FALSE)","v":223.28399999999999},null,{"$f":"VLOOKUP($A148,F1__World_Data!$A$4:$DP$191,120,FALSE)","v":61.47},{"$f":"VLOOKUP($A148,F1__World_Data!$A$4:$DP$191,119,FALSE)","v":61.173999999999999},{"$f":"VLOOKUP($A148,F1__World_Data!$A$4:$DP$191,118,FALSE)","v":60.884999999999998},{"$f":"VLOOKUP($A148,F1__World_Data!$A$4:$DP$191,117,FALSE)","v":60.607999999999997},{"$f":"VLOOKUP($A148,F1__World_Data!$A$4:$DP$191,116,FALSE)","v":60.344999999999999},{"$f":"VLOOKUP($A148,F1__World_Data!$A$4:$DP$191,115,FALSE)","v":60.091999999999999},{"$f":"VLOOKUP($A148,F1__World_Data!$A$4:$DP$191,114,FALSE)","v":59.841999999999999},{"$f":"VLOOKUP($A148,F1__World_Data!$A$4:$DP$191,113,FALSE)","v":59.59},{"$f":"VLOOKUP($A148,F1__World_Data!$A$4:$DP$191,112,FALSE)","v":59.317999999999998},{"$f":"VLOOKUP($A148,F1__World_Data!$A$4:$DP$191,111,FALSE)","v":59.009},{"$f":"VLOOKUP($A148,F1__World_Data!$A$4:$DP$191,110,FALSE)","v":58.654000000000003},{"$f":"VLOOKUP($A148,F1__World_Data!$A$4:$DP$191,109,FALSE)","v":58.255000000000003},{"$f":"VLOOKUP($A148,F1__World_Data!$A$4:$DP$191,108,FALSE)","v":57.817},{"$f":"VLOOKUP($A148,F1__World_Data!$A$4:$DP$191,107,FALSE)","v":57.354999999999997},{"$f":"VLOOKUP($A148,F1__World_Data!$A$4:$DP$191,106,FALSE)","v":56.887},{"$f":"VLOOKUP($A148,F1__World_Data!$A$4:$DP$191,105,FALSE)","v":56.436},{"$f":"VLOOKUP($A148,F1__World_Data!$A$4:$DP$191,104,FALSE)","v":56.024999999999999},{"$f":"VLOOKUP($A148,F1__World_Data!$A$4:$DP$191,103,FALSE)","v":55.667999999999999},{"$f":"VLOOKUP($A148,F1__World_Data!$A$4:$DP$191,102,FALSE)","v":55.390999999999998},{"$f":"VLOOKUP($A148,F1__World_Data!$A$4:$DP$191,101,FALSE)","v":55.218000000000004},{"$f":"VLOOKUP($A148,F1__World_Data!$A$4:$DP$191,100,FALSE)","v":55.139000000000003},{"$f":"VLOOKUP($A148,F1__World_Data!$A$4:$DP$191,99,FALSE)","v":55.133000000000003},{"$f":"VLOOKUP($A148,F1__World_Data!$A$4:$DP$191,98,FALSE)","v":55.17},{"$f":"VLOOKUP($A148,F1__World_Data!$A$4:$DP$191,97,FALSE)","v":55.203000000000003},{"$f":"VLOOKUP($A148,F1__World_Data!$A$4:$DP$191,96,FALSE)","v":55.173999999999999},{"$f":"VLOOKUP($A148,F1__World_Data!$A$4:$DP$191,95,FALSE)","v":55.042000000000002},{"$f":"VLOOKUP($A148,F1__World_Data!$A$4:$DP$191,94,FALSE)","v":54.776000000000003},{"$f":"VLOOKUP($A148,F1__World_Data!$A$4:$DP$191,93,FALSE)","v":54.366},{"$f":"VLOOKUP($A148,F1__World_Data!$A$4:$DP$191,92,FALSE)","v":53.811999999999998},{"$f":"VLOOKUP($A148,F1__World_Data!$A$4:$DP$191,91,FALSE)","v":53.131999999999998},{"$f":"VLOOKUP($A148,F1__World_Data!$A$4:$DP$191,90,FALSE)","v":52.372},{"$f":"VLOOKUP($A148,F1__World_Data!$A$4:$DP$191,89,FALSE)","v":51.581000000000003},{"$f":"VLOOKUP($A148,F1__World_Data!$A$4:$DP$191,88,FALSE)","v":50.79},{"$f":"VLOOKUP($A148,F1__World_Data!$A$4:$DP$191,87,FALSE)","v":50.033999999999999},{"$f":"VLOOKUP($A148,F1__World_Data!$A$4:$DP$191,86,FALSE)","v":49.338999999999999},{"$f":"VLOOKUP($A148,F1__World_Data!$A$4:$DP$191,85,FALSE)","v":48.71},{"$f":"VLOOKUP($A148,F1__World_Data!$A$4:$DP$191,84,FALSE)","v":48.145000000000003},{"$f":"VLOOKUP($A148,F1__World_Data!$A$4:$DP$191,83,FALSE)","v":47.643000000000001},{"$f":"VLOOKUP($A148,F1__World_Data!$A$4:$DP$191,82,FALSE)","v":47.19},{"$f":"VLOOKUP($A148,F1__World_Data!$A$4:$DP$191,81,FALSE)","v":46.764000000000003},{"$f":"VLOOKUP($A148,F1__World_Data!$A$4:$DP$191,80,FALSE)","v":46.335000000000001},{"$f":"VLOOKUP($A148,F1__World_Data!$A$4:$DP$191,79,FALSE)","v":45.883000000000003},{"$f":"VLOOKUP($A148,F1__World_Data!$A$4:$DP$191,78,FALSE)","v":45.399000000000001},{"$f":"VLOOKUP($A148,F1__World_Data!$A$4:$DP$191,77,FALSE)","v":44.881999999999998},{"$f":"VLOOKUP($A148,F1__World_Data!$A$4:$DP$191,76,FALSE)","v":44.337000000000003},{"$f":"VLOOKUP($A148,F1__World_Data!$A$4:$DP$191,75,FALSE)","v":43.780999999999999},{"$f":"VLOOKUP($A148,F1__World_Data!$A$4:$DP$191,74,FALSE)","v":43.228999999999999},{"$f":"VLOOKUP($A148,F1__World_Data!$A$4:$DP$191,73,FALSE)","v":42.683999999999997},{"$f":"VLOOKUP($A148,F1__World_Data!$A$4:$DP$191,72,FALSE)","v":42.152000000000001},{"$f":"VLOOKUP($A148,F1__World_Data!$A$4:$DP$191,71,FALSE)","v":41.63},{"$f":"VLOOKUP($A148,F1__World_Data!$A$4:$DP$191,70,FALSE)","v":41.116999999999997},{"$f":"VLOOKUP($A148,F1__World_Data!$A$4:$DP$191,69,FALSE)","v":40.61},{"$f":"VLOOKUP($A148,F1__World_Data!$A$4:$DP$191,68,FALSE)","v":40.109000000000002},{"$f":"VLOOKUP($A148,F1__World_Data!$A$4:$DP$191,67,FALSE)","v":39.615000000000002},{"$f":"VLOOKUP($A148,F1__World_Data!$A$4:$DP$191,66,FALSE)","v":39.130000000000003},{"$f":"VLOOKUP($A148,F1__World_Data!$A$4:$DP$191,65,FALSE)","v":38.655000000000001},{"$f":"VLOOKUP($A148,F1__World_Data!$A$4:$DP$191,64,FALSE)","v":38.188000000000002},{"$f":"VLOOKUP($A148,F1__World_Data!$A$4:$DP$191,63,FALSE)","v":37.726999999999997},{"$f":"VLOOKUP($A148,F1__World_Data!$A$4:$DP$191,62,FALSE)","v":37.271000000000001}]
["Polynesia",{"$f":"VLOOKUP($A149,F1__World_Data!$A$4:$DP$191,60,FALSE)","v":676.06600000000003},{"$f":"VLOOKUP($A149,F1__World_Data!$A$4:$DP$191,59,FALSE)","v":672.75800000000004},{"$f":"VLOOKUP($A149,F1__World_Data!$A$4:$DP$191,58,FALSE)","v":669.73599999999999},{"$f":"VLOOKUP($A149,F1__World_Data!$A$4:$DP$191,57,FALSE)","v":667.01400000000001},{"$f":"VLOOKUP($A149,F1__World_Data!$A$4:$DP$191,56,FALSE)","v":664.56700000000001},{"$f":"VLOOKUP($A149,F1__World_Data!$A$4:$DP$191,55,FALSE)","v":662.36199999999997},{"$f":"VLOOKUP($A149,F1__World_Data!$A$4:$DP$191,54,FALSE)","v":660.38},{"$f":"VLOOKUP($A149,F1__World_Data!$A$4:$DP$191,53,FALSE)","v":658.529},{"$f":"VLOOKUP($A149,F1__World_Data!$A$4:$DP$191,52,FALSE)","v":656.80799999999999},{"$f":"VLOOKUP($A149,F1__World_Data!$A$4:$DP$191,51,FALSE)","v":655.21500000000003},{"$f":"VLOOKUP($A149,F1__World_Data!$A$4:$DP$191,50,FALSE)","v":653.67399999999998},{"$f":"VLOOKUP($A149,F1__World_Data!$A$4:$DP$191,49,FALSE)","v":651.83699999999999},{"$f":"VLOOKUP($A149,F1__World_Data!$A$4:$DP$191,48,FALSE)","v":649.35500000000002},{"$f":"VLOOKUP($A149,F1__World_Data!$A$4:$DP$191,47,FALSE)","v":645.87199999999996},{"$f":"VLOOKUP($A149,F1__World_Data!$A$4:$DP$191,46,FALSE)","v":641.32799999999997},{"$f":"VLOOKUP($A149,F1__World_Data!$A$4:$DP$191,45,FALSE)","v":635.80100000000004},{"$f":"VLOOKUP($A149,F1__World_Data!$A$4:$DP$191,44,FALSE)","v":629.577},{"$f":"VLOOKUP($A149,F1__World_Data!$A$4:$DP$191,43,FALSE)","v":622.98},{"$f":"VLOOKUP($A149,F1__World_Data!$A$4:$DP$191,42,FALSE)","v":616.38900000000001},{"$f":"VLOOKUP($A149,F1__World_Data!$A$4:$DP$191,41,FALSE)","v":609.84},{"$f":"VLOOKUP($A149,F1__World_Data!$A$4:$DP$191,40,FALSE)","v":603.30399999999997},{"$f":"VLOOKUP($A149,F1__World_Data!$A$4:$DP$191,39,FALSE)","v":596.71500000000003},{"$f":"VLOOKUP($A149,F1__World_Data!$A$4:$DP$191,38,FALSE)","v":590.13},{"$f":"VLOOKUP($A149,F1__World_Data!$A$4:$DP$191,37,FALSE)","v":583.46199999999999},{"$f":"VLOOKUP($A149,F1__World_Data!$A$4:$DP$191,36,FALSE)","v":576.84400000000005},{"$f":"VLOOKUP($A149,F1__World_Data!$A$4:$DP$191,35,FALSE)","v":570.19000000000005},{"$f":"VLOOKUP($A149,F1__World_Data!$A$4:$DP$191,34,FALSE)","v":563.50599999999997},{"$f":"VLOOKUP($A149,F1__World_Data!$A$4:$DP$191,33,FALSE)","v":556.76400000000001},{"$f":"VLOOKUP($A149,F1__World_Data!$A$4:$DP$191,32,FALSE)","v":549.95799999999997},{"$f":"VLOOKUP($A149,F1__World_Data!$A$4:$DP$191,31,FALSE)","v":543.03800000000001},{"$f":"VLOOKUP($A149,F1__World_Data!$A$4:$DP$191,30,FALSE)","v":536.05899999999997},{"$f":"VLOOKUP($A149,F1__World_Data!$A$4:$DP$191,29,FALSE)","v":528.96299999999997},{"$f":"VLOOKUP($A149,F1__World_Data!$A$4:$DP$191,28,FALSE)","v":521.72299999999996},{"$f":"VLOOKUP($A149,F1__World_Data!$A$4:$DP$191,27,FALSE)","v":514.29100000000005},{"$f":"VLOOKUP($A149,F1__World_Data!$A$4:$DP$191,26,FALSE)","v":506.62900000000002},{"$f":"VLOOKUP($A149,F1__World_Data!$A$4:$DP$191,25,FALSE)","v":498.80099999999999},{"$f":"VLOOKUP($A149,F1__World_Data!$A$4:$DP$191,24,FALSE)","v":490.90300000000002},{"$f":"VLOOKUP($A149,F1__World_Data!$A$4:$DP$191,23,FALSE)","v":483.21199999999999},{"$f":"VLOOKUP($A149,F1__World_Data!$A$4:$DP$191,22,FALSE)","v":475.762},{"$f":"VLOOKUP($A149,F1__World_Data!$A$4:$DP$191,21,FALSE)","v":468.63900000000001},{"$f":"VLOOKUP($A149,F1__World_Data!$A$4:$DP$191,20,FALSE)","v":461.77199999999999},{"$f":"VLOOKUP($A149,F1__World_Data!$A$4:$DP$191,19,FALSE)","v":455.072},{"$f":"VLOOKUP($A149,F1__World_Data!$A$4:$DP$191,18,FALSE)","v":448.55900000000003},{"$f":"VLOOKUP($A149,F1__World_Data!$A$4:$DP$191,17,FALSE)","v":442.101},{"$f":"VLOOKUP($A149,F1__World_Data!$A$4:$DP$191,16,FALSE)","v":435.77499999999998},{"$f":"VLOOKUP($A149,F1__World_Data!$A$4:$DP$191,15,FALSE)","v":429.45100000000002},{"$f":"VLOOKUP($A149,F1__World_Data!$A$4:$DP$191,14,FALSE)","v":422.94},{"$f":"VLOOKUP($A149,F1__World_Data!$A$4:$DP$191,13,FALSE)","v":415.86399999999998},{"$f":"VLOOKUP($A149,F1__World_Data!$A$4:$DP$191,12,FALSE)","v":407.99200000000002},{"$f":"VLOOKUP($A149,F1__World_Data!$A$4:$DP$191,11,FALSE)","v":399.24900000000002},{"$f":"VLOOKUP($A149,F1__World_Data!$A$4:$DP$191,10,FALSE)","v":389.762},{"$f":"VLOOKUP($A149,F1__World_Data!$A$4:$DP$191,9,FALSE)","v":379.66699999999997},{"$f":"VLOOKUP($A149,F1__World_Data!$A$4:$DP$191,8,FALSE)","v":369.20699999999999},{"$f":"VLOOKUP($A149,F1__World_Data!$A$4:$DP$191,7,FALSE)","v":358.53899999999999},{"$f":"VLOOKUP($A149,F1__World_Data!$A$4:$DP$191,6,FALSE)","v":347.67500000000001},{"$f":"VLOOKUP($A149,F1__World_Data!$A$4:$DP$191,5,FALSE)","v":336.72199999999998},{"$f":"VLOOKUP($A149,F1__World_Data!$A$4:$DP$191,4,FALSE)","v":325.95600000000002},{"$f":"VLOOKUP($A149,F1__World_Data!$A$4:$DP$191,3,FALSE)","v":315.923},{"$f":"VLOOKUP($A149,F1__World_Data!$A$4:$DP$191,2,FALSE)","v":306.791},null,{"$f":"VLOOKUP($A149,F1__World_Data!$A$4:$DP$191,120,FALSE)","v":68.116},{"$f":"VLOOKUP($A149,F1__World_Data!$A$4:$DP$191,119,FALSE)","v":67.850999999999999},{"$f":"VLOOKUP($A149,F1__World_Data!$A$4:$DP$191,118,FALSE)","v":67.576999999999998},{"$f":"VLOOKUP($A149,F1__World_Data!$A$4:$DP$191,117,FALSE)","v":67.290999999999997},{"$f":"VLOOKUP($A149,F1__World_Data!$A$4:$DP$191,116,FALSE)","v":66.995000000000005},{"$f":"VLOOKUP($A149,F1__World_Data!$A$4:$DP$191,115,FALSE)","v":66.69},{"$f":"VLOOKUP($A149,F1__World_Data!$A$4:$DP$191,114,FALSE)","v":66.381},{"$f":"VLOOKUP($A149,F1__World_Data!$A$4:$DP$191,113,FALSE)","v":66.072000000000003},{"$f":"VLOOKUP($A149,F1__World_Data!$A$4:$DP$191,112,FALSE)","v":65.769000000000005},{"$f":"VLOOKUP($A149,F1__World_Data!$A$4:$DP$191,111,FALSE)","v":65.48},{"$f":"VLOOKUP($A149,F1__World_Data!$A$4:$DP$191,110,FALSE)","v":65.207999999999998},{"$f":"VLOOKUP($A149,F1__World_Data!$A$4:$DP$191,109,FALSE)","v":64.953000000000003},{"$f":"VLOOKUP($A149,F1__World_Data!$A$4:$DP$191,108,FALSE)","v":64.712000000000003},{"$f":"VLOOKUP($A149,F1__World_Data!$A$4:$DP$191,107,FALSE)","v":64.477999999999994},{"$f":"VLOOKUP($A149,F1__World_Data!$A$4:$DP$191,106,FALSE)","v":64.242000000000004},{"$f":"VLOOKUP($A149,F1__World_Data!$A$4:$DP$191,105,FALSE)","v":63.994999999999997},{"$f":"VLOOKUP($A149,F1__World_Data!$A$4:$DP$191,104,FALSE)","v":63.731000000000002},{"$f":"VLOOKUP($A149,F1__World_Data!$A$4:$DP$191,103,FALSE)","v":63.445999999999998},{"$f":"VLOOKUP($A149,F1__World_Data!$A$4:$DP$191,102,FALSE)","v":63.143999999999998},{"$f":"VLOOKUP($A149,F1__World_Data!$A$4:$DP$191,101,FALSE)","v":62.829000000000001},{"$f":"VLOOKUP($A149,F1__World_Data!$A$4:$DP$191,100,FALSE)","v":62.509},{"$f":"VLOOKUP($A149,F1__World_Data!$A$4:$DP$191,99,FALSE)","v":62.188000000000002},{"$f":"VLOOKUP($A149,F1__World_Data!$A$4:$DP$191,98,FALSE)","v":61.866},{"$f":"VLOOKUP($A149,F1__World_Data!$A$4:$DP$191,97,FALSE)","v":61.539000000000001},{"$f":"VLOOKUP($A149,F1__World_Data!$A$4:$DP$191,96,FALSE)","v":61.198},{"$f":"VLOOKUP($A149,F1__World_Data!$A$4:$DP$191,95,FALSE)","v":60.837000000000003},{"$f":"VLOOKUP($A149,F1__World_Data!$A$4:$DP$191,94,FALSE)","v":60.454999999999998},{"$f":"VLOOKUP($A149,F1__World_Data!$A$4:$DP$191,93,FALSE)","v":60.052999999999997},{"$f":"VLOOKUP($A149,F1__World_Data!$A$4:$DP$191,92,FALSE)","v":59.636000000000003},{"$f":"VLOOKUP($A149,F1__World_Data!$A$4:$DP$191,91,FALSE)","v":59.209000000000003},{"$f":"VLOOKUP($A149,F1__World_Data!$A$4:$DP$191,90,FALSE)","v":58.783000000000001},{"$f":"VLOOKUP($A149,F1__World_Data!$A$4:$DP$191,89,FALSE)","v":58.366},{"$f":"VLOOKUP($A149,F1__World_Data!$A$4:$DP$191,88,FALSE)","v":57.962000000000003},{"$f":"VLOOKUP($A149,F1__World_Data!$A$4:$DP$191,87,FALSE)","v":57.579000000000001},{"$f":"VLOOKUP($A149,F1__World_Data!$A$4:$DP$191,86,FALSE)","v":57.220999999999997},{"$f":"VLOOKUP($A149,F1__World_Data!$A$4:$DP$191,85,FALSE)","v":56.886000000000003},{"$f":"VLOOKUP($A149,F1__World_Data!$A$4:$DP$191,84,FALSE)","v":56.569000000000003},{"$f":"VLOOKUP($A149,F1__World_Data!$A$4:$DP$191,83,FALSE)","v":56.265999999999998},{"$f":"VLOOKUP($A149,F1__World_Data!$A$4:$DP$191,82,FALSE)","v":55.970999999999997},{"$f":"VLOOKUP($A149,F1__World_Data!$A$4:$DP$191,81,FALSE)","v":55.679000000000002},{"$f":"VLOOKUP($A149,F1__World_Data!$A$4:$DP$191,80,FALSE)","v":55.381999999999998},{"$f":"VLOOKUP($A149,F1__World_Data!$A$4:$DP$191,79,FALSE)","v":55.073999999999998},{"$f":"VLOOKUP($A149,F1__World_Data!$A$4:$DP$191,78,FALSE)","v":54.747999999999998},{"$f":"VLOOKUP($A149,F1__World_Data!$A$4:$DP$191,77,FALSE)","v":54.399000000000001},{"$f":"VLOOKUP($A149,F1__World_Data!$A$4:$DP$191,76,FALSE)","v":54.027000000000001},{"$f":"VLOOKUP($A149,F1__World_Data!$A$4:$DP$191,75,FALSE)","v":53.633000000000003},{"$f":"VLOOKUP($A149,F1__World_Data!$A$4:$DP$191,74,FALSE)","v":53.218000000000004},{"$f":"VLOOKUP($A149,F1__World_Data!$A$4:$DP$191,73,FALSE)","v":52.781999999999996},{"$f":"VLOOKUP($A149,F1__World_Data!$A$4:$DP$191,72,FALSE)","v":52.323},{"$f":"VLOOKUP($A149,F1__World_Data!$A$4:$DP$191,71,FALSE)","v":51.837000000000003},{"$f":"VLOOKUP($A149,F1__World_Data!$A$4:$DP$191,70,FALSE)","v":51.326999999999998},{"$f":"VLOOKUP($A149,F1__World_Data!$A$4:$DP$191,69,FALSE)","v":50.795999999999999},{"$f":"VLOOKUP($A149,F1__World_Data!$A$4:$DP$191,68,FALSE)","v":50.25},{"$f":"VLOOKUP($A149,F1__World_Data!$A$4:$DP$191,67,FALSE)","v":49.697000000000003},{"$f":"VLOOKUP($A149,F1__World_Data!$A$4:$DP$191,66,FALSE)","v":49.145000000000003},{"$f":"VLOOKUP($A149,F1__World_Data!$A$4:$DP$191,65,FALSE)","v":48.600999999999999},{"$f":"VLOOKUP($A149,F1__World_Data!$A$4:$DP$191,64,FALSE)","v":48.070999999999998},{"$f":"VLOOKUP($A149,F1__World_Data!$A$4:$DP$191,63,FALSE)","v":47.557000000000002},{"$f":"VLOOKUP($A149,F1__World_Data!$A$4:$DP$191,62,FALSE)","v":47.061}]
["Solomon Islands",{"$f":"VLOOKUP($A150,F1__World_Data!$A$4:$DP$191,60,FALSE)","v":652.85599999999999},{"$f":"VLOOKUP($A150,F1__World_Data!$A$4:$DP$191,59,FALSE)","v":636.03},{"$f":"VLOOKUP($A150,F1__World_Data!$A$4:$DP$191,58,FALSE)","v":619.43799999999999},{"$f":"VLOOKUP($A150,F1__World_Data!$A$4:$DP$191,57,FALSE)","v":603.13300000000004},{"$f":"VLOOKUP($A150,F1__World_Data!$A$4:$DP$191,56,FALSE)","v":587.07899999999995},{"$f":"VLOOKUP($A150,F1__World_Data!$A$4:$DP$191,55,FALSE)","v":571.32899999999995},{"$f":"VLOOKUP($A150,F1__World_Data!$A$4:$DP$191,54,FALSE)","v":556.06600000000003},{"$f":"VLOOKUP($A150,F1__World_Data!$A$4:$DP$191,53,FALSE)","v":541.52200000000005},{"$f":"VLOOKUP($A150,F1__World_Data!$A$4:$DP$191,52,FALSE)","v":527.86099999999999},{"$f":"VLOOKUP($A150,F1__World_Data!$A$4:$DP$191,51,FALSE)","v":515.18200000000002},{"$f":"VLOOKUP($A150,F1__World_Data!$A$4:$DP$191,50,FALSE)","v":503.36599999999999},{"$f":"VLOOKUP($A150,F1__World_Data!$A$4:$DP$191,49,FALSE)","v":492.13299999999998},{"$f":"VLOOKUP($A150,F1__World_Data!$A$4:$DP$191,48,FALSE)","v":481.08600000000001},{"$f":"VLOOKUP($A150,F1__World_Data!$A$4:$DP$191,47,FALSE)","v":469.91800000000001},{"$f":"VLOOKUP($A150,F1__World_Data!$A$4:$DP$191,46,FALSE)","v":458.54899999999998},{"$f":"VLOOKUP($A150,F1__World_Data!$A$4:$DP$191,45,FALSE)","v":447.01600000000002},{"$f":"VLOOKUP($A150,F1__World_Data!$A$4:$DP$191,44,FALSE)","v":435.43400000000003},{"$f":"VLOOKUP($A150,F1__World_Data!$A$4:$DP$191,43,FALSE)","v":423.94900000000001},{"$f":"VLOOKUP($A150,F1__World_Data!$A$4:$DP$191,42,FALSE)","v":412.66500000000002},{"$f":"VLOOKUP($A150,F1__World_Data!$A$4:$DP$191,41,FALSE)","v":401.59199999999998},{"$f":"VLOOKUP($A150,F1__World_Data!$A$4:$DP$191,40,FALSE)","v":390.702},{"$f":"VLOOKUP($A150,F1__World_Data!$A$4:$DP$191,39,FALSE)","v":379.99799999999999},{"$f":"VLOOKUP($A150,F1__World_Data!$A$4:$DP$191,38,FALSE)","v":369.517},{"$f":"VLOOKUP($A150,F1__World_Data!$A$4:$DP$191,37,FALSE)","v":359.27600000000001},{"$f":"VLOOKUP($A150,F1__World_Data!$A$4:$DP$191,36,FALSE)","v":349.27300000000002},{"$f":"VLOOKUP($A150,F1__World_Data!$A$4:$DP$191,35,FALSE)","v":339.50099999999998},{"$f":"VLOOKUP($A150,F1__World_Data!$A$4:$DP$191,34,FALSE)","v":330.00400000000002},{"$f":"VLOOKUP($A150,F1__World_Data!$A$4:$DP$191,33,FALSE)","v":320.78100000000001},{"$f":"VLOOKUP($A150,F1__World_Data!$A$4:$DP$191,32,FALSE)","v":311.86900000000003},{"$f":"VLOOKUP($A150,F1__World_Data!$A$4:$DP$191,31,FALSE)","v":303.27199999999999},{"$f":"VLOOKUP($A150,F1__World_Data!$A$4:$DP$191,30,FALSE)","v":294.976},{"$f":"VLOOKUP($A150,F1__World_Data!$A$4:$DP$191,29,FALSE)","v":286.87099999999998},{"$f":"VLOOKUP($A150,F1__World_Data!$A$4:$DP$191,28,FALSE)","v":278.834},{"$f":"VLOOKUP($A150,F1__World_Data!$A$4:$DP$191,27,FALSE)","v":270.78699999999998},{"$f":"VLOOKUP($A150,F1__World_Data!$A$4:$DP$191,26,FALSE)","v":262.69099999999997},{"$f":"VLOOKUP($A150,F1__World_Data!$A$4:$DP$191,25,FALSE)","v":254.566},{"$f":"VLOOKUP($A150,F1__World_Data!$A$4:$DP$191,24,FALSE)","v":246.45099999999999},{"$f":"VLOOKUP($A150,F1__World_Data!$A$4:$DP$191,23,FALSE)","v":238.423},{"$f":"VLOOKUP($A150,F1__World_Data!$A$4:$DP$191,22,FALSE)","v":230.55},{"$f":"VLOOKUP($A150,F1__World_Data!$A$4:$DP$191,21,FALSE)","v":222.84100000000001},{"$f":"VLOOKUP($A150,F1__World_Data!$A$4:$DP$191,20,FALSE)","v":215.29900000000001},{"$f":"VLOOKUP($A150,F1__World_Data!$A$4:$DP$191,19,FALSE)","v":207.88499999999999},{"$f":"VLOOKUP($A150,F1__World_Data!$A$4:$DP$191,18,FALSE)","v":200.602},{"$f":"VLOOKUP($A150,F1__World_Data!$A$4:$DP$191,17,FALSE)","v":193.40100000000001},{"$f":"VLOOKUP($A150,F1__World_Data!$A$4:$DP$191,16,FALSE)","v":186.297},{"$f":"VLOOKUP($A150,F1__World_Data!$A$4:$DP$191,15,FALSE)","v":179.30600000000001},{"$f":"VLOOKUP($A150,F1__World_Data!$A$4:$DP$191,14,FALSE)","v":172.55},{"$f":"VLOOKUP($A150,F1__World_Data!$A$4:$DP$191,13,FALSE)","v":166.16300000000001},{"$f":"VLOOKUP($A150,F1__World_Data!$A$4:$DP$191,12,FALSE)","v":160.24},{"$f":"VLOOKUP($A150,F1__World_Data!$A$4:$DP$191,11,FALSE)","v":154.83000000000001},{"$f":"VLOOKUP($A150,F1__World_Data!$A$4:$DP$191,10,FALSE)","v":149.887},{"$f":"VLOOKUP($A150,F1__World_Data!$A$4:$DP$191,9,FALSE)","v":145.31899999999999},{"$f":"VLOOKUP($A150,F1__World_Data!$A$4:$DP$191,8,FALSE)","v":140.995},{"$f":"VLOOKUP($A150,F1__World_Data!$A$4:$DP$191,7,FALSE)","v":136.815},{"$f":"VLOOKUP($A150,F1__World_Data!$A$4:$DP$191,6,FALSE)","v":132.76599999999999},{"$f":"VLOOKUP($A150,F1__World_Data!$A$4:$DP$191,5,FALSE)","v":128.83799999999999},{"$f":"VLOOKUP($A150,F1__World_Data!$A$4:$DP$191,4,FALSE)","v":125.04},{"$f":"VLOOKUP($A150,F1__World_Data!$A$4:$DP$191,3,FALSE)","v":121.38500000000001},{"$f":"VLOOKUP($A150,F1__World_Data!$A$4:$DP$191,2,FALSE)","v":117.84699999999999},null,{"$f":"VLOOKUP($A150,F1__World_Data!$A$4:$DP$191,120,FALSE)","v":68.116},{"$f":"VLOOKUP($A150,F1__World_Data!$A$4:$DP$191,119,FALSE)","v":67.850999999999999},{"$f":"VLOOKUP($A150,F1__World_Data!$A$4:$DP$191,118,FALSE)","v":67.576999999999998},{"$f":"VLOOKUP($A150,F1__World_Data!$A$4:$DP$191,117,FALSE)","v":67.290999999999997},{"$f":"VLOOKUP($A150,F1__World_Data!$A$4:$DP$191,116,FALSE)","v":66.995000000000005},{"$f":"VLOOKUP($A150,F1__World_Data!$A$4:$DP$191,115,FALSE)","v":66.69},{"$f":"VLOOKUP($A150,F1__World_Data!$A$4:$DP$191,114,FALSE)","v":66.381},{"$f":"VLOOKUP($A150,F1__World_Data!$A$4:$DP$191,113,FALSE)","v":66.072000000000003},{"$f":"VLOOKUP($A150,F1__World_Data!$A$4:$DP$191,112,FALSE)","v":65.769000000000005},{"$f":"VLOOKUP($A150,F1__World_Data!$A$4:$DP$191,111,FALSE)","v":65.48},{"$f":"VLOOKUP($A150,F1__World_Data!$A$4:$DP$191,110,FALSE)","v":65.207999999999998},{"$f":"VLOOKUP($A150,F1__World_Data!$A$4:$DP$191,109,FALSE)","v":64.953000000000003},{"$f":"VLOOKUP($A150,F1__World_Data!$A$4:$DP$191,108,FALSE)","v":64.712000000000003},{"$f":"VLOOKUP($A150,F1__World_Data!$A$4:$DP$191,107,FALSE)","v":64.477999999999994},{"$f":"VLOOKUP($A150,F1__World_Data!$A$4:$DP$191,106,FALSE)","v":64.242000000000004},{"$f":"VLOOKUP($A150,F1__World_Data!$A$4:$DP$191,105,FALSE)","v":63.994999999999997},{"$f":"VLOOKUP($A150,F1__World_Data!$A$4:$DP$191,104,FALSE)","v":63.731000000000002},{"$f":"VLOOKUP($A150,F1__World_Data!$A$4:$DP$191,103,FALSE)","v":63.445999999999998},{"$f":"VLOOKUP($A150,F1__World_Data!$A$4:$DP$191,102,FALSE)","v":63.143999999999998},{"$f":"VLOOKUP($A150,F1__World_Data!$A$4:$DP$191,101,FALSE)","v":62.829000000000001},{"$f":"VLOOKUP($A150,F1__World_Data!$A$4:$DP$191,100,FALSE)","v":62.509},{"$f":"VLOOKUP($A150,F1__World_Data!$A$4:$DP$191,99,FALSE)","v":62.188000000000002},{"$f":"VLOOKUP($A150,F1__World_Data!$A$4:$DP$191,98,FALSE)","v":61.866},{"$f":"VLOOKUP($A150,F1__World_Data!$A$4:$DP$191,97,FALSE)","v":61.539000000000001},{"$f":"VLOOKUP($A150,F1__World_Data!$A$4:$DP$191,96,FALSE)","v":61.198},{"$f":"VLOOKUP($A150,F1__World_Data!$A$4:$DP$191,95,FALSE)","v":60.837000000000003},{"$f":"VLOOKUP($A150,F1__World_Data!$A$4:$DP$191,94,FALSE)","v":60.454999999999998},{"$f":"VLOOKUP($A150,F1__World_Data!$A$4:$DP$191,93,FALSE)","v":60.052999999999997},{"$f":"VLOOKUP($A150,F1__World_Data!$A$4:$DP$191,92,FALSE)","v":59.636000000000003},{"$f":"VLOOKUP($A150,F1__World_Data!$A$4:$DP$191,91,FALSE)","v":59.209000000000003},{"$f":"VLOOKUP($A150,F1__World_Data!$A$4:$DP$191,90,FALSE)","v":58.783000000000001},{"$f":"VLOOKUP($A150,F1__World_Data!$A$4:$DP$191,89,FALSE)","v":58.366},{"$f":"VLOOKUP($A150,F1__World_Data!$A$4:$DP$191,88,FALSE)","v":57.962000000000003},{"$f":"VLOOKUP($A150,F1__World_Data!$A$4:$DP$191,87,FALSE)","v":57.579000000000001},{"$f":"VLOOKUP($A150,F1__World_Data!$A$4:$DP$191,86,FALSE)","v":57.220999999999997},{"$f":"VLOOKUP($A150,F1__World_Data!$A$4:$DP$191,85,FALSE)","v":56.886000000000003},{"$f":"VLOOKUP($A150,F1__World_Data!$A$4:$DP$191,84,FALSE)","v":56.569000000000003},{"$f":"VLOOKUP($A150,F1__World_Data!$A$4:$DP$191,83,FALSE)","v":56.265999999999998},{"$f":"VLOOKUP($A150,F1__World_Data!$A$4:$DP$191,82,FALSE)","v":55.970999999999997},{"$f":"VLOOKUP($A150,F1__World_Data!$A$4:$DP$191,81,FALSE)","v":55.679000000000002},{"$f":"VLOOKUP($A150,F1__World_Data!$A$4:$DP$191,80,FALSE)","v":55.381999999999998},{"$f":"VLOOKUP($A150,F1__World_Data!$A$4:$DP$191,79,FALSE)","v":55.073999999999998},{"$f":"VLOOKUP($A150,F1__World_Data!$A$4:$DP$191,78,FALSE)","v":54.747999999999998},{"$f":"VLOOKUP($A150,F1__World_Data!$A$4:$DP$191,77,FALSE)","v":54.399000000000001},{"$f":"VLOOKUP($A150,F1__World_Data!$A$4:$DP$191,76,FALSE)","v":54.027000000000001},{"$f":"VLOOKUP($A150,F1__World_Data!$A$4:$DP$191,75,FALSE)","v":53.633000000000003},{"$f":"VLOOKUP($A150,F1__World_Data!$A$4:$DP$191,74,FALSE)","v":53.218000000000004},{"$f":"VLOOKUP($A150,F1__World_Data!$A$4:$DP$191,73,FALSE)","v":52.781999999999996},{"$f":"VLOOKUP($A150,F1__World_Data!$A$4:$DP$191,72,FALSE)","v":52.323},{"$f":"VLOOKUP($A150,F1__World_Data!$A$4:$DP$191,71,FALSE)","v":51.837000000000003},{"$f":"VLOOKUP($A150,F1__World_Data!$A$4:$DP$191,70,FALSE)","v":51.326999999999998},{"$f":"VLOOKUP($A150,F1__World_Data!$A$4:$DP$191,69,FALSE)","v":50.795999999999999},{"$f":"VLOOKUP($A150,F1__World_Data!$A$4:$DP$191,68,FALSE)","v":50.25},{"$f":"VLOOKUP($A150,F1__World_Data!$A$4:$DP$191,67,FALSE)","v":49.697000000000003},{"$f":"VLOOKUP($A150,F1__World_Data!$A$4:$DP$191,66,FALSE)","v":49.145000000000003},{"$f":"VLOOKUP($A150,F1__World_Data!$A$4:$DP$191,65,FALSE)","v":48.600999999999999},{"$f":"VLOOKUP($A150,F1__World_Data!$A$4:$DP$191,64,FALSE)","v":48.070999999999998},{"$f":"VLOOKUP($A150,F1__World_Data!$A$4:$DP$191,63,FALSE)","v":47.557000000000002},{"$f":"VLOOKUP($A150,F1__World_Data!$A$4:$DP$191,62,FALSE)","v":47.061}]
["Montenegro",{"$f":"VLOOKUP($A151,F1__World_Data!$A$4:$DP$191,60,FALSE)","v":627.803},{"$f":"VLOOKUP($A151,F1__World_Data!$A$4:$DP$191,59,FALSE)","v":627.56299999999999},{"$f":"VLOOKUP($A151,F1__World_Data!$A$4:$DP$191,58,FALSE)","v":627.27099999999996},{"$f":"VLOOKUP($A151,F1__World_Data!$A$4:$DP$191,57,FALSE)","v":626.95699999999999},{"$f":"VLOOKUP($A151,F1__World_Data!$A$4:$DP$191,56,FALSE)","v":626.65},{"$f":"VLOOKUP($A151,F1__World_Data!$A$4:$DP$191,55,FALSE)","v":626.34199999999998},{"$f":"VLOOKUP($A151,F1__World_Data!$A$4:$DP$191,54,FALSE)","v":625.93100000000004},{"$f":"VLOOKUP($A151,F1__World_Data!$A$4:$DP$191,53,FALSE)","v":625.27099999999996},{"$f":"VLOOKUP($A151,F1__World_Data!$A$4:$DP$191,52,FALSE)","v":624.279},{"$f":"VLOOKUP($A151,F1__World_Data!$A$4:$DP$191,51,FALSE)","v":622.93299999999999},{"$f":"VLOOKUP($A151,F1__World_Data!$A$4:$DP$191,50,FALSE)","v":621.31200000000001},{"$f":"VLOOKUP($A151,F1__World_Data!$A$4:$DP$191,49,FALSE)","v":619.55399999999997},{"$f":"VLOOKUP($A151,F1__World_Data!$A$4:$DP$191,48,FALSE)","v":617.86300000000006},{"$f":"VLOOKUP($A151,F1__World_Data!$A$4:$DP$191,47,FALSE)","v":616.38800000000003},{"$f":"VLOOKUP($A151,F1__World_Data!$A$4:$DP$191,46,FALSE)","v":615.13699999999994},{"$f":"VLOOKUP($A151,F1__World_Data!$A$4:$DP$191,45,FALSE)","v":614.08100000000002},{"$f":"VLOOKUP($A151,F1__World_Data!$A$4:$DP$191,44,FALSE)","v":613.37099999999998},{"$f":"VLOOKUP($A151,F1__World_Data!$A$4:$DP$191,43,FALSE)","v":613.16999999999996},{"$f":"VLOOKUP($A151,F1__World_Data!$A$4:$DP$191,42,FALSE)","v":613.55799999999999},{"$f":"VLOOKUP($A151,F1__World_Data!$A$4:$DP$191,41,FALSE)","v":614.65200000000004},{"$f":"VLOOKUP($A151,F1__World_Data!$A$4:$DP$191,40,FALSE)","v":616.34},{"$f":"VLOOKUP($A151,F1__World_Data!$A$4:$DP$191,39,FALSE)","v":618.21600000000001},{"$f":"VLOOKUP($A151,F1__World_Data!$A$4:$DP$191,38,FALSE)","v":619.70500000000004},{"$f":"VLOOKUP($A151,F1__World_Data!$A$4:$DP$191,37,FALSE)","v":620.41899999999998},{"$f":"VLOOKUP($A151,F1__World_Data!$A$4:$DP$191,36,FALSE)","v":620.07600000000002},{"$f":"VLOOKUP($A151,F1__World_Data!$A$4:$DP$191,35,FALSE)","v":618.86300000000006},{"$f":"VLOOKUP($A151,F1__World_Data!$A$4:$DP$191,34,FALSE)","v":617.18100000000004},{"$f":"VLOOKUP($A151,F1__World_Data!$A$4:$DP$191,33,FALSE)","v":615.73599999999999},{"$f":"VLOOKUP($A151,F1__World_Data!$A$4:$DP$191,32,FALSE)","v":615.00400000000002},{"$f":"VLOOKUP($A151,F1__World_Data!$A$4:$DP$191,31,FALSE)","v":615.20500000000004},{"$f":"VLOOKUP($A151,F1__World_Data!$A$4:$DP$191,30,FALSE)","v":616.05399999999997},{"$f":"VLOOKUP($A151,F1__World_Data!$A$4:$DP$191,29,FALSE)","v":616.79399999999998},{"$f":"VLOOKUP($A151,F1__World_Data!$A$4:$DP$191,28,FALSE)","v":616.35599999999999},{"$f":"VLOOKUP($A151,F1__World_Data!$A$4:$DP$191,27,FALSE)","v":614.01099999999997},{"$f":"VLOOKUP($A151,F1__World_Data!$A$4:$DP$191,26,FALSE)","v":609.43799999999999},{"$f":"VLOOKUP($A151,F1__World_Data!$A$4:$DP$191,25,FALSE)","v":602.96500000000003},{"$f":"VLOOKUP($A151,F1__World_Data!$A$4:$DP$191,24,FALSE)","v":595.351},{"$f":"VLOOKUP($A151,F1__World_Data!$A$4:$DP$191,23,FALSE)","v":587.68899999999996},{"$f":"VLOOKUP($A151,F1__World_Data!$A$4:$DP$191,22,FALSE)","v":580.75699999999995},{"$f":"VLOOKUP($A151,F1__World_Data!$A$4:$DP$191,21,FALSE)","v":574.95299999999997},{"$f":"VLOOKUP($A151,F1__World_Data!$A$4:$DP$191,20,FALSE)","v":570.05999999999995},{"$f":"VLOOKUP($A151,F1__World_Data!$A$4:$DP$191,19,FALSE)","v":565.51199999999994},{"$f":"VLOOKUP($A151,F1__World_Data!$A$4:$DP$191,18,FALSE)","v":560.423},{"$f":"VLOOKUP($A151,F1__World_Data!$A$4:$DP$191,17,FALSE)","v":554.25900000000001},{"$f":"VLOOKUP($A151,F1__World_Data!$A$4:$DP$191,16,FALSE)","v":546.56500000000005},{"$f":"VLOOKUP($A151,F1__World_Data!$A$4:$DP$191,15,FALSE)","v":537.76599999999996},{"$f":"VLOOKUP($A151,F1__World_Data!$A$4:$DP$191,14,FALSE)","v":529.21400000000006},{"$f":"VLOOKUP($A151,F1__World_Data!$A$4:$DP$191,13,FALSE)","v":522.78200000000004},{"$f":"VLOOKUP($A151,F1__World_Data!$A$4:$DP$191,12,FALSE)","v":519.702},{"$f":"VLOOKUP($A151,F1__World_Data!$A$4:$DP$191,11,FALSE)","v":520.64499999999998},{"$f":"VLOOKUP($A151,F1__World_Data!$A$4:$DP$191,10,FALSE)","v":524.84500000000003},{"$f":"VLOOKUP($A151,F1__World_Data!$A$4:$DP$191,9,FALSE)","v":530.23400000000004},{"$f":"VLOOKUP($A151,F1__World_Data!$A$4:$DP$191,8,FALSE)","v":533.91499999999996},{"$f":"VLOOKUP($A151,F1__World_Data!$A$4:$DP$191,7,FALSE)","v":533.82100000000003},{"$f":"VLOOKUP($A151,F1__World_Data!$A$4:$DP$191,6,FALSE)","v":529.17600000000004},{"$f":"VLOOKUP($A151,F1__World_Data!$A$4:$DP$191,5,FALSE)","v":520.71199999999999},{"$f":"VLOOKUP($A151,F1__World_Data!$A$4:$DP$191,4,FALSE)","v":509.70699999999999},{"$f":"VLOOKUP($A151,F1__World_Data!$A$4:$DP$191,3,FALSE)","v":498.12900000000002},{"$f":"VLOOKUP($A151,F1__World_Data!$A$4:$DP$191,2,FALSE)","v":487.416},null,{"$f":"VLOOKUP($A151,F1__World_Data!$A$4:$DP$191,120,FALSE)","v":68.116},{"$f":"VLOOKUP($A151,F1__World_Data!$A$4:$DP$191,119,FALSE)","v":67.850999999999999},{"$f":"VLOOKUP($A151,F1__World_Data!$A$4:$DP$191,118,FALSE)","v":67.576999999999998},{"$f":"VLOOKUP($A151,F1__World_Data!$A$4:$DP$191,117,FALSE)","v":67.290999999999997},{"$f":"VLOOKUP($A151,F1__World_Data!$A$4:$DP$191,116,FALSE)","v":66.995000000000005},{"$f":"VLOOKUP($A151,F1__World_Data!$A$4:$DP$191,115,FALSE)","v":66.69},{"$f":"VLOOKUP($A151,F1__World_Data!$A$4:$DP$191,114,FALSE)","v":66.381},{"$f":"VLOOKUP($A151,F1__World_Data!$A$4:$DP$191,113,FALSE)","v":66.072000000000003},{"$f":"VLOOKUP($A151,F1__World_Data!$A$4:$DP$191,112,FALSE)","v":65.769000000000005},{"$f":"VLOOKUP($A151,F1__World_Data!$A$4:$DP$191,111,FALSE)","v":65.48},{"$f":"VLOOKUP($A151,F1__World_Data!$A$4:$DP$191,110,FALSE)","v":65.207999999999998},{"$f":"VLOOKUP($A151,F1__World_Data!$A$4:$DP$191,109,FALSE)","v":64.953000000000003},{"$f":"VLOOKUP($A151,F1__World_Data!$A$4:$DP$191,108,FALSE)","v":64.712000000000003},{"$f":"VLOOKUP($A151,F1__World_Data!$A$4:$DP$191,107,FALSE)","v":64.477999999999994},{"$f":"VLOOKUP($A151,F1__World_Data!$A$4:$DP$191,106,FALSE)","v":64.242000000000004},{"$f":"VLOOKUP($A151,F1__World_Data!$A$4:$DP$191,105,FALSE)","v":63.994999999999997},{"$f":"VLOOKUP($A151,F1__World_Data!$A$4:$DP$191,104,FALSE)","v":63.731000000000002},{"$f":"VLOOKUP($A151,F1__World_Data!$A$4:$DP$191,103,FALSE)","v":63.445999999999998},{"$f":"VLOOKUP($A151,F1__World_Data!$A$4:$DP$191,102,FALSE)","v":63.143999999999998},{"$f":"VLOOKUP($A151,F1__World_Data!$A$4:$DP$191,101,FALSE)","v":62.829000000000001},{"$f":"VLOOKUP($A151,F1__World_Data!$A$4:$DP$191,100,FALSE)","v":62.509},{"$f":"VLOOKUP($A151,F1__World_Data!$A$4:$DP$191,99,FALSE)","v":62.188000000000002},{"$f":"VLOOKUP($A151,F1__World_Data!$A$4:$DP$191,98,FALSE)","v":61.866},{"$f":"VLOOKUP($A151,F1__World_Data!$A$4:$DP$191,97,FALSE)","v":61.539000000000001},{"$f":"VLOOKUP($A151,F1__World_Data!$A$4:$DP$191,96,FALSE)","v":61.198},{"$f":"VLOOKUP($A151,F1__World_Data!$A$4:$DP$191,95,FALSE)","v":60.837000000000003},{"$f":"VLOOKUP($A151,F1__World_Data!$A$4:$DP$191,94,FALSE)","v":60.454999999999998},{"$f":"VLOOKUP($A151,F1__World_Data!$A$4:$DP$191,93,FALSE)","v":60.052999999999997},{"$f":"VLOOKUP($A151,F1__World_Data!$A$4:$DP$191,92,FALSE)","v":59.636000000000003},{"$f":"VLOOKUP($A151,F1__World_Data!$A$4:$DP$191,91,FALSE)","v":59.209000000000003},{"$f":"VLOOKUP($A151,F1__World_Data!$A$4:$DP$191,90,FALSE)","v":58.783000000000001},{"$f":"VLOOKUP($A151,F1__World_Data!$A$4:$DP$191,89,FALSE)","v":58.366},{"$f":"VLOOKUP($A151,F1__World_Data!$A$4:$DP$191,88,FALSE)","v":57.962000000000003},{"$f":"VLOOKUP($A151,F1__World_Data!$A$4:$DP$191,87,FALSE)","v":57.579000000000001},{"$f":"VLOOKUP($A151,F1__World_Data!$A$4:$DP$191,86,FALSE)","v":57.220999999999997},{"$f":"VLOOKUP($A151,F1__World_Data!$A$4:$DP$191,85,FALSE)","v":56.886000000000003},{"$f":"VLOOKUP($A151,F1__World_Data!$A$4:$DP$191,84,FALSE)","v":56.569000000000003},{"$f":"VLOOKUP($A151,F1__World_Data!$A$4:$DP$191,83,FALSE)","v":56.265999999999998},{"$f":"VLOOKUP($A151,F1__World_Data!$A$4:$DP$191,82,FALSE)","v":55.970999999999997},{"$f":"VLOOKUP($A151,F1__World_Data!$A$4:$DP$191,81,FALSE)","v":55.679000000000002},{"$f":"VLOOKUP($A151,F1__World_Data!$A$4:$DP$191,80,FALSE)","v":55.381999999999998},{"$f":"VLOOKUP($A151,F1__World_Data!$A$4:$DP$191,79,FALSE)","v":55.073999999999998},{"$f":"VLOOKUP($A151,F1__World_Data!$A$4:$DP$191,78,FALSE)","v":54.747999999999998},{"$f":"VLOOKUP($A151,F1__World_Data!$A$4:$DP$191,77,FALSE)","v":54.399000000000001},{"$f":"VLOOKUP($A151,F1__World_Data!$A$4:$DP$191,76,FALSE)","v":54.027000000000001},{"$f":"VLOOKUP($A151,F1__World_Data!$A$4:$DP$191,75,FALSE)","v":53.633000000000003},{"$f":"VLOOKUP($A151,F1__World_Data!$A$4:$DP$191,74,FALSE)","v":53.218000000000004},{"$f":"VLOOKUP($A151,F1__World_Data!$A$4:$DP$191,73,FALSE)","v":52.781999999999996},{"$f":"VLOOKUP($A151,F1__World_Data!$A$4:$DP$191,72,FALSE)","v":52.323},{"$f":"VLOOKUP($A151,F1__World_Data!$A$4:$DP$191,71,FALSE)","v":51.837000000000003},{"$f":"VLOOKUP($A151,F1__World_Data!$A$4:$DP$191,70,FALSE)","v":51.326999999999998},{"$f":"VLOOKUP($A151,F1__World_Data!$A$4:$DP$191,69,FALSE)","v":50.795999999999999},{"$f":"VLOOKUP($A151,F1__World_Data!$A$4:$DP$191,68,FALSE)","v":50.25},{"$f":"VLOOKUP($A151,F1__World_Data!$A$4:$DP$191,67,FALSE)","v":49.697000000000003},{"$f":"VLOOKUP($A151,F1__World_Data!$A$4:$DP$191,66,FALSE)","v":49.145000000000003},{"$f":"VLOOKUP($A151,F1__World_Data!$A$4:$DP$191,65,FALSE)","v":48.600999999999999},{"$f":"VLOOKUP($A151,F1__World_Data!$A$4:$DP$191,64,FALSE)","v":48.070999999999998},{"$f":"VLOOKUP($A151,F1__World_Data!$A$4:$DP$191,63,FALSE)","v":47.557000000000002},{"$f":"VLOOKUP($A151,F1__World_Data!$A$4:$DP$191,62,FALSE)","v":47.061}]
["Luxembourg",{"$f":"VLOOKUP($A152,F1__World_Data!$A$4:$DP$191,60,FALSE)","v":604.24400000000003},{"$f":"VLOOKUP($A152,F1__World_Data!$A$4:$DP$191,59,FALSE)","v":591.91399999999999},{"$f":"VLOOKUP($A152,F1__World_Data!$A$4:$DP$191,58,FALSE)","v":579.26599999999996},{"$f":"VLOOKUP($A152,F1__World_Data!$A$4:$DP$191,57,FALSE)","v":566.74099999999999},{"$f":"VLOOKUP($A152,F1__World_Data!$A$4:$DP$191,56,FALSE)","v":554.51199999999994},{"$f":"VLOOKUP($A152,F1__World_Data!$A$4:$DP$191,55,FALSE)","v":542.55399999999997},{"$f":"VLOOKUP($A152,F1__World_Data!$A$4:$DP$191,54,FALSE)","v":530.85500000000002},{"$f":"VLOOKUP($A152,F1__World_Data!$A$4:$DP$191,53,FALSE)","v":519.31200000000001},{"$f":"VLOOKUP($A152,F1__World_Data!$A$4:$DP$191,52,FALSE)","v":507.89},{"$f":"VLOOKUP($A152,F1__World_Data!$A$4:$DP$191,51,FALSE)","v":496.536},{"$f":"VLOOKUP($A152,F1__World_Data!$A$4:$DP$191,50,FALSE)","v":485.40300000000002},{"$f":"VLOOKUP($A152,F1__World_Data!$A$4:$DP$191,49,FALSE)","v":474.91699999999997},{"$f":"VLOOKUP($A152,F1__World_Data!$A$4:$DP$191,48,FALSE)","v":465.61099999999999},{"$f":"VLOOKUP($A152,F1__World_Data!$A$4:$DP$191,47,FALSE)","v":457.84800000000001},{"$f":"VLOOKUP($A152,F1__World_Data!$A$4:$DP$191,46,FALSE)","v":451.822},{"$f":"VLOOKUP($A152,F1__World_Data!$A$4:$DP$191,45,FALSE)","v":447.31700000000001},{"$f":"VLOOKUP($A152,F1__World_Data!$A$4:$DP$191,44,FALSE)","v":443.72699999999998},{"$f":"VLOOKUP($A152,F1__World_Data!$A$4:$DP$191,43,FALSE)","v":440.197},{"$f":"VLOOKUP($A152,F1__World_Data!$A$4:$DP$191,42,FALSE)","v":436.10599999999999},{"$f":"VLOOKUP($A152,F1__World_Data!$A$4:$DP$191,41,FALSE)","v":431.26299999999998},{"$f":"VLOOKUP($A152,F1__World_Data!$A$4:$DP$191,40,FALSE)","v":425.82799999999997},{"$f":"VLOOKUP($A152,F1__World_Data!$A$4:$DP$191,39,FALSE)","v":419.97899999999998},{"$f":"VLOOKUP($A152,F1__World_Data!$A$4:$DP$191,38,FALSE)","v":413.99900000000002},{"$f":"VLOOKUP($A152,F1__World_Data!$A$4:$DP$191,37,FALSE)","v":408.14499999999998},{"$f":"VLOOKUP($A152,F1__World_Data!$A$4:$DP$191,36,FALSE)","v":402.435},{"$f":"VLOOKUP($A152,F1__World_Data!$A$4:$DP$191,35,FALSE)","v":396.81200000000001},{"$f":"VLOOKUP($A152,F1__World_Data!$A$4:$DP$191,34,FALSE)","v":391.39699999999999},{"$f":"VLOOKUP($A152,F1__World_Data!$A$4:$DP$191,33,FALSE)","v":386.35599999999999},{"$f":"VLOOKUP($A152,F1__World_Data!$A$4:$DP$191,32,FALSE)","v":381.78},{"$f":"VLOOKUP($A152,F1__World_Data!$A$4:$DP$191,31,FALSE)","v":377.71199999999999},{"$f":"VLOOKUP($A152,F1__World_Data!$A$4:$DP$191,30,FALSE)","v":374.11799999999999},{"$f":"VLOOKUP($A152,F1__World_Data!$A$4:$DP$191,29,FALSE)","v":371.07600000000002},{"$f":"VLOOKUP($A152,F1__World_Data!$A$4:$DP$191,28,FALSE)","v":368.66199999999998},{"$f":"VLOOKUP($A152,F1__World_Data!$A$4:$DP$191,27,FALSE)","v":366.88200000000001},{"$f":"VLOOKUP($A152,F1__World_Data!$A$4:$DP$191,26,FALSE)","v":365.79700000000003},{"$f":"VLOOKUP($A152,F1__World_Data!$A$4:$DP$191,25,FALSE)","v":365.30099999999999},{"$f":"VLOOKUP($A152,F1__World_Data!$A$4:$DP$191,24,FALSE)","v":365.09899999999999},{"$f":"VLOOKUP($A152,F1__World_Data!$A$4:$DP$191,23,FALSE)","v":364.77800000000002},{"$f":"VLOOKUP($A152,F1__World_Data!$A$4:$DP$191,22,FALSE)","v":364.048},{"$f":"VLOOKUP($A152,F1__World_Data!$A$4:$DP$191,21,FALSE)","v":362.79700000000003},{"$f":"VLOOKUP($A152,F1__World_Data!$A$4:$DP$191,20,FALSE)","v":361.08},{"$f":"VLOOKUP($A152,F1__World_Data!$A$4:$DP$191,19,FALSE)","v":358.96300000000002},{"$f":"VLOOKUP($A152,F1__World_Data!$A$4:$DP$191,18,FALSE)","v":356.56599999999997},{"$f":"VLOOKUP($A152,F1__World_Data!$A$4:$DP$191,17,FALSE)","v":353.98399999999998},{"$f":"VLOOKUP($A152,F1__World_Data!$A$4:$DP$191,16,FALSE)","v":351.19},{"$f":"VLOOKUP($A152,F1__World_Data!$A$4:$DP$191,15,FALSE)","v":348.178},{"$f":"VLOOKUP($A152,F1__World_Data!$A$4:$DP$191,14,FALSE)","v":345.10399999999998},{"$f":"VLOOKUP($A152,F1__World_Data!$A$4:$DP$191,13,FALSE)","v":342.23200000000003},{"$f":"VLOOKUP($A152,F1__World_Data!$A$4:$DP$191,12,FALSE)","v":339.67200000000003},{"$f":"VLOOKUP($A152,F1__World_Data!$A$4:$DP$191,11,FALSE)","v":337.56799999999998},{"$f":"VLOOKUP($A152,F1__World_Data!$A$4:$DP$191,10,FALSE)","v":335.82900000000001},{"$f":"VLOOKUP($A152,F1__World_Data!$A$4:$DP$191,9,FALSE)","v":334.23399999999998},{"$f":"VLOOKUP($A152,F1__World_Data!$A$4:$DP$191,8,FALSE)","v":332.423},{"$f":"VLOOKUP($A152,F1__World_Data!$A$4:$DP$191,7,FALSE)","v":330.16},{"$f":"VLOOKUP($A152,F1__World_Data!$A$4:$DP$191,6,FALSE)","v":327.36},{"$f":"VLOOKUP($A152,F1__World_Data!$A$4:$DP$191,5,FALSE)","v":324.12900000000002},{"$f":"VLOOKUP($A152,F1__World_Data!$A$4:$DP$191,4,FALSE)","v":320.69900000000001},{"$f":"VLOOKUP($A152,F1__World_Data!$A$4:$DP$191,3,FALSE)","v":317.43799999999999},{"$f":"VLOOKUP($A152,F1__World_Data!$A$4:$DP$191,2,FALSE)","v":314.58499999999998},null,{"$f":"VLOOKUP($A152,F1__World_Data!$A$4:$DP$191,120,FALSE)","v":68.116},{"$f":"VLOOKUP($A152,F1__World_Data!$A$4:$DP$191,119,FALSE)","v":67.850999999999999},{"$f":"VLOOKUP($A152,F1__World_Data!$A$4:$DP$191,118,FALSE)","v":67.576999999999998},{"$f":"VLOOKUP($A152,F1__World_Data!$A$4:$DP$191,117,FALSE)","v":67.290999999999997},{"$f":"VLOOKUP($A152,F1__World_Data!$A$4:$DP$191,116,FALSE)","v":66.995000000000005},{"$f":"VLOOKUP($A152,F1__World_Data!$A$4:$DP$191,115,FALSE)","v":66.69},{"$f":"VLOOKUP($A152,F1__World_Data!$A$4:$DP$191,114,FALSE)","v":66.381},{"$f":"VLOOKUP($A152,F1__World_Data!$A$4:$DP$191,113,FALSE)","v":66.072000000000003},{"$f":"VLOOKUP($A152,F1__World_Data!$A$4:$DP$191,112,FALSE)","v":65.769000000000005},{"$f":"VLOOKUP($A152,F1__World_Data!$A$4:$DP$191,111,FALSE)","v":65.48},{"$f":"VLOOKUP($A152,F1__World_Data!$A$4:$DP$191,110,FALSE)","v":65.207999999999998},{"$f":"VLOOKUP($A152,F1__World_Data!$A$4:$DP$191,109,FALSE)","v":64.953000000000003},{"$f":"VLOOKUP($A152,F1__World_Data!$A$4:$DP$191,108,FALSE)","v":64.712000000000003},{"$f":"VLOOKUP($A152,F1__World_Data!$A$4:$DP$191,107,FALSE)","v":64.477999999999994},{"$f":"VLOOKUP($A152,F1__World_Data!$A$4:$DP$191,106,FALSE)","v":64.242000000000004},{"$f":"VLOOKUP($A152,F1__World_Data!$A$4:$DP$191,105,FALSE)","v":63.994999999999997},{"$f":"VLOOKUP($A152,F1__World_Data!$A$4:$DP$191,104,FALSE)","v":63.731000000000002},{"$f":"VLOOKUP($A152,F1__World_Data!$A$4:$DP$191,103,FALSE)","v":63.445999999999998},{"$f":"VLOOKUP($A152,F1__World_Data!$A$4:$DP$191,102,FALSE)","v":63.143999999999998},{"$f":"VLOOKUP($A152,F1__World_Data!$A$4:$DP$191,101,FALSE)","v":62.829000000000001},{"$f":"VLOOKUP($A152,F1__World_Data!$A$4:$DP$191,100,FALSE)","v":62.509},{"$f":"VLOOKUP($A152,F1__World_Data!$A$4:$DP$191,99,FALSE)","v":62.188000000000002},{"$f":"VLOOKUP($A152,F1__World_Data!$A$4:$DP$191,98,FALSE)","v":61.866},{"$f":"VLOOKUP($A152,F1__World_Data!$A$4:$DP$191,97,FALSE)","v":61.539000000000001},{"$f":"VLOOKUP($A152,F1__World_Data!$A$4:$DP$191,96,FALSE)","v":61.198},{"$f":"VLOOKUP($A152,F1__World_Data!$A$4:$DP$191,95,FALSE)","v":60.837000000000003},{"$f":"VLOOKUP($A152,F1__World_Data!$A$4:$DP$191,94,FALSE)","v":60.454999999999998},{"$f":"VLOOKUP($A152,F1__World_Data!$A$4:$DP$191,93,FALSE)","v":60.052999999999997},{"$f":"VLOOKUP($A152,F1__World_Data!$A$4:$DP$191,92,FALSE)","v":59.636000000000003},{"$f":"VLOOKUP($A152,F1__World_Data!$A$4:$DP$191,91,FALSE)","v":59.209000000000003},{"$f":"VLOOKUP($A152,F1__World_Data!$A$4:$DP$191,90,FALSE)","v":58.783000000000001},{"$f":"VLOOKUP($A152,F1__World_Data!$A$4:$DP$191,89,FALSE)","v":58.366},{"$f":"VLOOKUP($A152,F1__World_Data!$A$4:$DP$191,88,FALSE)","v":57.962000000000003},{"$f":"VLOOKUP($A152,F1__World_Data!$A$4:$DP$191,87,FALSE)","v":57.579000000000001},{"$f":"VLOOKUP($A152,F1__World_Data!$A$4:$DP$191,86,FALSE)","v":57.220999999999997},{"$f":"VLOOKUP($A152,F1__World_Data!$A$4:$DP$191,85,FALSE)","v":56.886000000000003},{"$f":"VLOOKUP($A152,F1__World_Data!$A$4:$DP$191,84,FALSE)","v":56.569000000000003},{"$f":"VLOOKUP($A152,F1__World_Data!$A$4:$DP$191,83,FALSE)","v":56.265999999999998},{"$f":"VLOOKUP($A152,F1__World_Data!$A$4:$DP$191,82,FALSE)","v":55.970999999999997},{"$f":"VLOOKUP($A152,F1__World_Data!$A$4:$DP$191,81,FALSE)","v":55.679000000000002},{"$f":"VLOOKUP($A152,F1__World_Data!$A$4:$DP$191,80,FALSE)","v":55.381999999999998},{"$f":"VLOOKUP($A152,F1__World_Data!$A$4:$DP$191,79,FALSE)","v":55.073999999999998},{"$f":"VLOOKUP($A152,F1__World_Data!$A$4:$DP$191,78,FALSE)","v":54.747999999999998},{"$f":"VLOOKUP($A152,F1__World_Data!$A$4:$DP$191,77,FALSE)","v":54.399000000000001},{"$f":"VLOOKUP($A152,F1__World_Data!$A$4:$DP$191,76,FALSE)","v":54.027000000000001},{"$f":"VLOOKUP($A152,F1__World_Data!$A$4:$DP$191,75,FALSE)","v":53.633000000000003},{"$f":"VLOOKUP($A152,F1__World_Data!$A$4:$DP$191,74,FALSE)","v":53.218000000000004},{"$f":"VLOOKUP($A152,F1__World_Data!$A$4:$DP$191,73,FALSE)","v":52.781999999999996},{"$f":"VLOOKUP($A152,F1__World_Data!$A$4:$DP$191,72,FALSE)","v":52.323},{"$f":"VLOOKUP($A152,F1__World_Data!$A$4:$DP$191,71,FALSE)","v":51.837000000000003},{"$f":"VLOOKUP($A152,F1__World_Data!$A$4:$DP$191,70,FALSE)","v":51.326999999999998},{"$f":"VLOOKUP($A152,F1__World_Data!$A$4:$DP$191,69,FALSE)","v":50.795999999999999},{"$f":"VLOOKUP($A152,F1__World_Data!$A$4:$DP$191,68,FALSE)","v":50.25},{"$f":"VLOOKUP($A152,F1__World_Data!$A$4:$DP$191,67,FALSE)","v":49.697000000000003},{"$f":"VLOOKUP($A152,F1__World_Data!$A$4:$DP$191,66,FALSE)","v":49.145000000000003},{"$f":"VLOOKUP($A152,F1__World_Data!$A$4:$DP$191,65,FALSE)","v":48.600999999999999},{"$f":"VLOOKUP($A152,F1__World_Data!$A$4:$DP$191,64,FALSE)","v":48.070999999999998},{"$f":"VLOOKUP($A152,F1__World_Data!$A$4:$DP$191,63,FALSE)","v":47.557000000000002},{"$f":"VLOOKUP($A152,F1__World_Data!$A$4:$DP$191,62,FALSE)","v":47.061}]
["Suriname",{"$f":"VLOOKUP($A153,F1__World_Data!$A$4:$DP$191,60,FALSE)","v":575.98699999999997},{"$f":"VLOOKUP($A153,F1__World_Data!$A$4:$DP$191,59,FALSE)","v":570.50099999999998},{"$f":"VLOOKUP($A153,F1__World_Data!$A$4:$DP$191,58,FALSE)","v":564.88300000000004},{"$f":"VLOOKUP($A153,F1__World_Data!$A$4:$DP$191,57,FALSE)","v":559.13599999999997},{"$f":"VLOOKUP($A153,F1__World_Data!$A$4:$DP$191,56,FALSE)","v":553.27800000000002},{"$f":"VLOOKUP($A153,F1__World_Data!$A$4:$DP$191,55,FALSE)","v":547.29499999999996},{"$f":"VLOOKUP($A153,F1__World_Data!$A$4:$DP$191,54,FALSE)","v":541.24699999999996},{"$f":"VLOOKUP($A153,F1__World_Data!$A$4:$DP$191,53,FALSE)","v":535.17700000000002},{"$f":"VLOOKUP($A153,F1__World_Data!$A$4:$DP$191,52,FALSE)","v":529.12599999999998},{"$f":"VLOOKUP($A153,F1__World_Data!$A$4:$DP$191,51,FALSE)","v":523.11300000000006},{"$f":"VLOOKUP($A153,F1__World_Data!$A$4:$DP$191,50,FALSE)","v":517.12199999999996},{"$f":"VLOOKUP($A153,F1__World_Data!$A$4:$DP$191,49,FALSE)","v":511.18099999999998},{"$f":"VLOOKUP($A153,F1__World_Data!$A$4:$DP$191,48,FALSE)","v":505.29199999999997},{"$f":"VLOOKUP($A153,F1__World_Data!$A$4:$DP$191,47,FALSE)","v":499.46100000000001},{"$f":"VLOOKUP($A153,F1__World_Data!$A$4:$DP$191,46,FALSE)","v":493.68},{"$f":"VLOOKUP($A153,F1__World_Data!$A$4:$DP$191,45,FALSE)","v":487.93799999999999},{"$f":"VLOOKUP($A153,F1__World_Data!$A$4:$DP$191,44,FALSE)","v":482.22800000000001},{"$f":"VLOOKUP($A153,F1__World_Data!$A$4:$DP$191,43,FALSE)","v":476.57400000000001},{"$f":"VLOOKUP($A153,F1__World_Data!$A$4:$DP$191,42,FALSE)","v":470.94400000000002},{"$f":"VLOOKUP($A153,F1__World_Data!$A$4:$DP$191,41,FALSE)","v":465.38},{"$f":"VLOOKUP($A153,F1__World_Data!$A$4:$DP$191,40,FALSE)","v":459.83800000000002},{"$f":"VLOOKUP($A153,F1__World_Data!$A$4:$DP$191,39,FALSE)","v":454.16500000000002},{"$f":"VLOOKUP($A153,F1__World_Data!$A$4:$DP$191,38,FALSE)","v":448.20699999999999},{"$f":"VLOOKUP($A153,F1__World_Data!$A$4:$DP$191,37,FALSE)","v":441.851},{"$f":"VLOOKUP($A153,F1__World_Data!$A$4:$DP$191,36,FALSE)","v":435.09899999999999},{"$f":"VLOOKUP($A153,F1__World_Data!$A$4:$DP$191,35,FALSE)","v":428.02800000000002},{"$f":"VLOOKUP($A153,F1__World_Data!$A$4:$DP$191,34,FALSE)","v":420.65800000000002},{"$f":"VLOOKUP($A153,F1__World_Data!$A$4:$DP$191,33,FALSE)","v":413.00900000000001},{"$f":"VLOOKUP($A153,F1__World_Data!$A$4:$DP$191,32,FALSE)","v":405.16899999999998},{"$f":"VLOOKUP($A153,F1__World_Data!$A$4:$DP$191,31,FALSE)","v":397.08199999999999},{"$f":"VLOOKUP($A153,F1__World_Data!$A$4:$DP$191,30,FALSE)","v":388.87700000000001},{"$f":"VLOOKUP($A153,F1__World_Data!$A$4:$DP$191,29,FALSE)","v":381.03300000000002},{"$f":"VLOOKUP($A153,F1__World_Data!$A$4:$DP$191,28,FALSE)","v":374.13299999999998},{"$f":"VLOOKUP($A153,F1__World_Data!$A$4:$DP$191,27,FALSE)","v":368.63600000000002},{"$f":"VLOOKUP($A153,F1__World_Data!$A$4:$DP$191,26,FALSE)","v":364.72199999999998},{"$f":"VLOOKUP($A153,F1__World_Data!$A$4:$DP$191,25,FALSE)","v":362.28199999999998},{"$f":"VLOOKUP($A153,F1__World_Data!$A$4:$DP$191,24,FALSE)","v":360.92700000000002},{"$f":"VLOOKUP($A153,F1__World_Data!$A$4:$DP$191,23,FALSE)","v":360.14400000000001},{"$f":"VLOOKUP($A153,F1__World_Data!$A$4:$DP$191,22,FALSE)","v":359.53100000000001},{"$f":"VLOOKUP($A153,F1__World_Data!$A$4:$DP$191,21,FALSE)","v":358.82600000000002},{"$f":"VLOOKUP($A153,F1__World_Data!$A$4:$DP$191,20,FALSE)","v":358.10300000000001},{"$f":"VLOOKUP($A153,F1__World_Data!$A$4:$DP$191,19,FALSE)","v":357.649},{"$f":"VLOOKUP($A153,F1__World_Data!$A$4:$DP$191,18,FALSE)","v":357.94900000000001},{"$f":"VLOOKUP($A153,F1__World_Data!$A$4:$DP$191,17,FALSE)","v":359.23399999999998},{"$f":"VLOOKUP($A153,F1__World_Data!$A$4:$DP$191,16,FALSE)","v":361.66500000000002},{"$f":"VLOOKUP($A153,F1__World_Data!$A$4:$DP$191,15,FALSE)","v":364.90699999999998},{"$f":"VLOOKUP($A153,F1__World_Data!$A$4:$DP$191,14,FALSE)","v":367.90699999999998},{"$f":"VLOOKUP($A153,F1__World_Data!$A$4:$DP$191,13,FALSE)","v":369.23},{"$f":"VLOOKUP($A153,F1__World_Data!$A$4:$DP$191,12,FALSE)","v":367.92599999999999},{"$f":"VLOOKUP($A153,F1__World_Data!$A$4:$DP$191,11,FALSE)","v":363.57400000000001},{"$f":"VLOOKUP($A153,F1__World_Data!$A$4:$DP$191,10,FALSE)","v":356.55099999999999},{"$f":"VLOOKUP($A153,F1__World_Data!$A$4:$DP$191,9,FALSE)","v":347.673},{"$f":"VLOOKUP($A153,F1__World_Data!$A$4:$DP$191,8,FALSE)","v":338.15499999999997},{"$f":"VLOOKUP($A153,F1__World_Data!$A$4:$DP$191,7,FALSE)","v":328.93900000000002},{"$f":"VLOOKUP($A153,F1__World_Data!$A$4:$DP$191,6,FALSE)","v":320.267},{"$f":"VLOOKUP($A153,F1__World_Data!$A$4:$DP$191,5,FALSE)","v":311.94499999999999},{"$f":"VLOOKUP($A153,F1__World_Data!$A$4:$DP$191,4,FALSE)","v":303.89400000000001},{"$f":"VLOOKUP($A153,F1__World_Data!$A$4:$DP$191,3,FALSE)","v":295.91300000000001},{"$f":"VLOOKUP($A153,F1__World_Data!$A$4:$DP$191,2,FALSE)","v":287.87},null,{"$f":"VLOOKUP($A153,F1__World_Data!$A$4:$DP$191,120,FALSE)","v":63.856999999999999},{"$f":"VLOOKUP($A153,F1__World_Data!$A$4:$DP$191,119,FALSE)","v":63.537999999999997},{"$f":"VLOOKUP($A153,F1__World_Data!$A$4:$DP$191,118,FALSE)","v":63.152999999999999},{"$f":"VLOOKUP($A153,F1__World_Data!$A$4:$DP$191,117,FALSE)","v":62.649000000000001},{"$f":"VLOOKUP($A153,F1__World_Data!$A$4:$DP$191,116,FALSE)","v":61.968000000000004},{"$f":"VLOOKUP($A153,F1__World_Data!$A$4:$DP$191,115,FALSE)","v":61.098999999999997},{"$f":"VLOOKUP($A153,F1__World_Data!$A$4:$DP$191,114,FALSE)","v":60.06},{"$f":"VLOOKUP($A153,F1__World_Data!$A$4:$DP$191,113,FALSE)","v":58.895000000000003},{"$f":"VLOOKUP($A153,F1__World_Data!$A$4:$DP$191,112,FALSE)","v":57.668999999999997},{"$f":"VLOOKUP($A153,F1__World_Data!$A$4:$DP$191,111,FALSE)","v":56.46},{"$f":"VLOOKUP($A153,F1__World_Data!$A$4:$DP$191,110,FALSE)","v":55.36},{"$f":"VLOOKUP($A153,F1__World_Data!$A$4:$DP$191,109,FALSE)","v":54.451999999999998},{"$f":"VLOOKUP($A153,F1__World_Data!$A$4:$DP$191,108,FALSE)","v":53.795000000000002},{"$f":"VLOOKUP($A153,F1__World_Data!$A$4:$DP$191,107,FALSE)","v":53.447000000000003},{"$f":"VLOOKUP($A153,F1__World_Data!$A$4:$DP$191,106,FALSE)","v":53.444000000000003},{"$f":"VLOOKUP($A153,F1__World_Data!$A$4:$DP$191,105,FALSE)","v":53.749000000000002},{"$f":"VLOOKUP($A153,F1__World_Data!$A$4:$DP$191,104,FALSE)","v":54.31},{"$f":"VLOOKUP($A153,F1__World_Data!$A$4:$DP$191,103,FALSE)","v":55.088999999999999},{"$f":"VLOOKUP($A153,F1__World_Data!$A$4:$DP$191,102,FALSE)","v":56.048000000000002},{"$f":"VLOOKUP($A153,F1__World_Data!$A$4:$DP$191,101,FALSE)","v":57.143999999999998},{"$f":"VLOOKUP($A153,F1__World_Data!$A$4:$DP$191,100,FALSE)","v":58.314999999999998},{"$f":"VLOOKUP($A153,F1__World_Data!$A$4:$DP$191,99,FALSE)","v":59.488999999999997},{"$f":"VLOOKUP($A153,F1__World_Data!$A$4:$DP$191,98,FALSE)","v":60.594999999999999},{"$f":"VLOOKUP($A153,F1__World_Data!$A$4:$DP$191,97,FALSE)","v":61.561},{"$f":"VLOOKUP($A153,F1__World_Data!$A$4:$DP$191,96,FALSE)","v":62.331000000000003},{"$f":"VLOOKUP($A153,F1__World_Data!$A$4:$DP$191,95,FALSE)","v":62.893999999999998},{"$f":"VLOOKUP($A153,F1__World_Data!$A$4:$DP$191,94,FALSE)","v":63.247},{"$f":"VLOOKUP($A153,F1__World_Data!$A$4:$DP$191,93,FALSE)","v":63.384},{"$f":"VLOOKUP($A153,F1__World_Data!$A$4:$DP$191,92,FALSE)","v":63.307000000000002},{"$f":"VLOOKUP($A153,F1__World_Data!$A$4:$DP$191,91,FALSE)","v":63.034999999999997},{"$f":"VLOOKUP($A153,F1__World_Data!$A$4:$DP$191,90,FALSE)","v":62.619},{"$f":"VLOOKUP($A153,F1__World_Data!$A$4:$DP$191,89,FALSE)","v":62.109000000000002},{"$f":"VLOOKUP($A153,F1__World_Data!$A$4:$DP$191,88,FALSE)","v":61.54},{"$f":"VLOOKUP($A153,F1__World_Data!$A$4:$DP$191,87,FALSE)","v":60.945999999999998},{"$f":"VLOOKUP($A153,F1__World_Data!$A$4:$DP$191,86,FALSE)","v":60.353000000000002},{"$f":"VLOOKUP($A153,F1__World_Data!$A$4:$DP$191,85,FALSE)","v":59.765999999999998},{"$f":"VLOOKUP($A153,F1__World_Data!$A$4:$DP$191,84,FALSE)","v":59.191000000000003},{"$f":"VLOOKUP($A153,F1__World_Data!$A$4:$DP$191,83,FALSE)","v":58.637},{"$f":"VLOOKUP($A153,F1__World_Data!$A$4:$DP$191,82,FALSE)","v":58.106999999999999},{"$f":"VLOOKUP($A153,F1__World_Data!$A$4:$DP$191,81,FALSE)","v":57.59},{"$f":"VLOOKUP($A153,F1__World_Data!$A$4:$DP$191,80,FALSE)","v":57.070999999999998},{"$f":"VLOOKUP($A153,F1__World_Data!$A$4:$DP$191,79,FALSE)","v":56.537999999999997},{"$f":"VLOOKUP($A153,F1__World_Data!$A$4:$DP$191,78,FALSE)","v":55.99},{"$f":"VLOOKUP($A153,F1__World_Data!$A$4:$DP$191,77,FALSE)","v":55.427999999999997},{"$f":"VLOOKUP($A153,F1__World_Data!$A$4:$DP$191,76,FALSE)","v":54.856000000000002},{"$f":"VLOOKUP($A153,F1__World_Data!$A$4:$DP$191,75,FALSE)","v":54.280999999999999},{"$f":"VLOOKUP($A153,F1__World_Data!$A$4:$DP$191,74,FALSE)","v":53.713000000000001},{"$f":"VLOOKUP($A153,F1__World_Data!$A$4:$DP$191,73,FALSE)","v":53.156999999999996},{"$f":"VLOOKUP($A153,F1__World_Data!$A$4:$DP$191,72,FALSE)","v":52.62},{"$f":"VLOOKUP($A153,F1__World_Data!$A$4:$DP$191,71,FALSE)","v":52.106000000000002},{"$f":"VLOOKUP($A153,F1__World_Data!$A$4:$DP$191,70,FALSE)","v":51.615000000000002},{"$f":"VLOOKUP($A153,F1__World_Data!$A$4:$DP$191,69,FALSE)","v":51.148000000000003},{"$f":"VLOOKUP($A153,F1__World_Data!$A$4:$DP$191,68,FALSE)","v":50.704999999999998},{"$f":"VLOOKUP($A153,F1__World_Data!$A$4:$DP$191,67,FALSE)","v":50.283999999999999},{"$f":"VLOOKUP($A153,F1__World_Data!$A$4:$DP$191,66,FALSE)","v":49.887999999999998},{"$f":"VLOOKUP($A153,F1__World_Data!$A$4:$DP$191,65,FALSE)","v":49.509},{"$f":"VLOOKUP($A153,F1__World_Data!$A$4:$DP$191,64,FALSE)","v":49.142000000000003},{"$f":"VLOOKUP($A153,F1__World_Data!$A$4:$DP$191,63,FALSE)","v":48.777000000000001},{"$f":"VLOOKUP($A153,F1__World_Data!$A$4:$DP$191,62,FALSE)","v":48.405999999999999}]
["Cabo Verde",{"$f":"VLOOKUP($A154,F1__World_Data!$A$4:$DP$191,60,FALSE)","v":543.76400000000001},{"$f":"VLOOKUP($A154,F1__World_Data!$A$4:$DP$191,59,FALSE)","v":537.49900000000002},{"$f":"VLOOKUP($A154,F1__World_Data!$A$4:$DP$191,58,FALSE)","v":531.14},{"$f":"VLOOKUP($A154,F1__World_Data!$A$4:$DP$191,57,FALSE)","v":524.74},{"$f":"VLOOKUP($A154,F1__World_Data!$A$4:$DP$191,56,FALSE)","v":518.27599999999995},{"$f":"VLOOKUP($A154,F1__World_Data!$A$4:$DP$191,55,FALSE)","v":511.74},{"$f":"VLOOKUP($A154,F1__World_Data!$A$4:$DP$191,54,FALSE)","v":505.24099999999999},{"$f":"VLOOKUP($A154,F1__World_Data!$A$4:$DP$191,53,FALSE)","v":498.858},{"$f":"VLOOKUP($A154,F1__World_Data!$A$4:$DP$191,52,FALSE)","v":492.64400000000001},{"$f":"VLOOKUP($A154,F1__World_Data!$A$4:$DP$191,51,FALSE)","v":486.66699999999997},{"$f":"VLOOKUP($A154,F1__World_Data!$A$4:$DP$191,50,FALSE)","v":480.846},{"$f":"VLOOKUP($A154,F1__World_Data!$A$4:$DP$191,49,FALSE)","v":475.06700000000001},{"$f":"VLOOKUP($A154,F1__World_Data!$A$4:$DP$191,48,FALSE)","v":469.17099999999999},{"$f":"VLOOKUP($A154,F1__World_Data!$A$4:$DP$191,47,FALSE)","v":463.03399999999999},{"$f":"VLOOKUP($A154,F1__World_Data!$A$4:$DP$191,46,FALSE)","v":456.61900000000003},{"$f":"VLOOKUP($A154,F1__World_Data!$A$4:$DP$191,45,FALSE)","v":449.92500000000001},{"$f":"VLOOKUP($A154,F1__World_Data!$A$4:$DP$191,44,FALSE)","v":442.95499999999998},{"$f":"VLOOKUP($A154,F1__World_Data!$A$4:$DP$191,43,FALSE)","v":435.70100000000002},{"$f":"VLOOKUP($A154,F1__World_Data!$A$4:$DP$191,42,FALSE)","v":428.178},{"$f":"VLOOKUP($A154,F1__World_Data!$A$4:$DP$191,41,FALSE)","v":420.45600000000002},{"$f":"VLOOKUP($A154,F1__World_Data!$A$4:$DP$191,40,FALSE)","v":412.51299999999998},{"$f":"VLOOKUP($A154,F1__World_Data!$A$4:$DP$191,39,FALSE)","v":404.24799999999999},{"$f":"VLOOKUP($A154,F1__World_Data!$A$4:$DP$191,38,FALSE)","v":395.53300000000002},{"$f":"VLOOKUP($A154,F1__World_Data!$A$4:$DP$191,37,FALSE)","v":386.28800000000001},{"$f":"VLOOKUP($A154,F1__World_Data!$A$4:$DP$191,36,FALSE)","v":376.40899999999999},{"$f":"VLOOKUP($A154,F1__World_Data!$A$4:$DP$191,35,FALSE)","v":366.05700000000002},{"$f":"VLOOKUP($A154,F1__World_Data!$A$4:$DP$191,34,FALSE)","v":355.76299999999998},{"$f":"VLOOKUP($A154,F1__World_Data!$A$4:$DP$191,33,FALSE)","v":346.22899999999998},{"$f":"VLOOKUP($A154,F1__World_Data!$A$4:$DP$191,32,FALSE)","v":337.95299999999997},{"$f":"VLOOKUP($A154,F1__World_Data!$A$4:$DP$191,31,FALSE)","v":331.18},{"$f":"VLOOKUP($A154,F1__World_Data!$A$4:$DP$191,30,FALSE)","v":325.74400000000003},{"$f":"VLOOKUP($A154,F1__World_Data!$A$4:$DP$191,29,FALSE)","v":321.137},{"$f":"VLOOKUP($A154,F1__World_Data!$A$4:$DP$191,28,FALSE)","v":316.613},{"$f":"VLOOKUP($A154,F1__World_Data!$A$4:$DP$191,27,FALSE)","v":311.66800000000001},{"$f":"VLOOKUP($A154,F1__World_Data!$A$4:$DP$191,26,FALSE)","v":306.14},{"$f":"VLOOKUP($A154,F1__World_Data!$A$4:$DP$191,25,FALSE)","v":300.226},{"$f":"VLOOKUP($A154,F1__World_Data!$A$4:$DP$191,24,FALSE)","v":294.24400000000003},{"$f":"VLOOKUP($A154,F1__World_Data!$A$4:$DP$191,23,FALSE)","v":288.678},{"$f":"VLOOKUP($A154,F1__World_Data!$A$4:$DP$191,22,FALSE)","v":283.84800000000001},{"$f":"VLOOKUP($A154,F1__World_Data!$A$4:$DP$191,21,FALSE)","v":279.72899999999998},{"$f":"VLOOKUP($A154,F1__World_Data!$A$4:$DP$191,20,FALSE)","v":276.18200000000002},{"$f":"VLOOKUP($A154,F1__World_Data!$A$4:$DP$191,19,FALSE)","v":273.33499999999998},{"$f":"VLOOKUP($A154,F1__World_Data!$A$4:$DP$191,18,FALSE)","v":271.34500000000003},{"$f":"VLOOKUP($A154,F1__World_Data!$A$4:$DP$191,17,FALSE)","v":270.24},{"$f":"VLOOKUP($A154,F1__World_Data!$A$4:$DP$191,16,FALSE)","v":270.22800000000001},{"$f":"VLOOKUP($A154,F1__World_Data!$A$4:$DP$191,15,FALSE)","v":271.06799999999998},{"$f":"VLOOKUP($A154,F1__World_Data!$A$4:$DP$191,14,FALSE)","v":271.84100000000001},{"$f":"VLOOKUP($A154,F1__World_Data!$A$4:$DP$191,13,FALSE)","v":271.315},{"$f":"VLOOKUP($A154,F1__World_Data!$A$4:$DP$191,12,FALSE)","v":268.63299999999998},{"$f":"VLOOKUP($A154,F1__World_Data!$A$4:$DP$191,11,FALSE)","v":263.46100000000001},{"$f":"VLOOKUP($A154,F1__World_Data!$A$4:$DP$191,10,FALSE)","v":256.16899999999998},{"$f":"VLOOKUP($A154,F1__World_Data!$A$4:$DP$191,9,FALSE)","v":247.52199999999999},{"$f":"VLOOKUP($A154,F1__World_Data!$A$4:$DP$191,8,FALSE)","v":238.655},{"$f":"VLOOKUP($A154,F1__World_Data!$A$4:$DP$191,7,FALSE)","v":230.42099999999999},{"$f":"VLOOKUP($A154,F1__World_Data!$A$4:$DP$191,6,FALSE)","v":222.94900000000001},{"$f":"VLOOKUP($A154,F1__World_Data!$A$4:$DP$191,5,FALSE)","v":216.08699999999999},{"$f":"VLOOKUP($A154,F1__World_Data!$A$4:$DP$191,4,FALSE)","v":210.14099999999999},{"$f":"VLOOKUP($A154,F1__World_Data!$A$4:$DP$191,3,FALSE)","v":205.321},{"$f":"VLOOKUP($A154,F1__World_Data!$A$4:$DP$191,2,FALSE)","v":201.77},null,{"$f":"VLOOKUP($A154,F1__World_Data!$A$4:$DP$191,120,FALSE)","v":69.275000000000006},{"$f":"VLOOKUP($A154,F1__World_Data!$A$4:$DP$191,119,FALSE)","v":68.811999999999998},{"$f":"VLOOKUP($A154,F1__World_Data!$A$4:$DP$191,118,FALSE)","v":68.177999999999997},{"$f":"VLOOKUP($A154,F1__World_Data!$A$4:$DP$191,117,FALSE)","v":67.337999999999994},{"$f":"VLOOKUP($A154,F1__World_Data!$A$4:$DP$191,116,FALSE)","v":66.265000000000001},{"$f":"VLOOKUP($A154,F1__World_Data!$A$4:$DP$191,115,FALSE)","v":64.975999999999999},{"$f":"VLOOKUP($A154,F1__World_Data!$A$4:$DP$191,114,FALSE)","v":63.511000000000003},{"$f":"VLOOKUP($A154,F1__World_Data!$A$4:$DP$191,113,FALSE)","v":61.91},{"$f":"VLOOKUP($A154,F1__World_Data!$A$4:$DP$191,112,FALSE)","v":60.210999999999999},{"$f":"VLOOKUP($A154,F1__World_Data!$A$4:$DP$191,111,FALSE)","v":58.447000000000003},{"$f":"VLOOKUP($A154,F1__World_Data!$A$4:$DP$191,110,FALSE)","v":56.679000000000002},{"$f":"VLOOKUP($A154,F1__World_Data!$A$4:$DP$191,109,FALSE)","v":54.982999999999997},{"$f":"VLOOKUP($A154,F1__World_Data!$A$4:$DP$191,108,FALSE)","v":53.435000000000002},{"$f":"VLOOKUP($A154,F1__World_Data!$A$4:$DP$191,107,FALSE)","v":52.13},{"$f":"VLOOKUP($A154,F1__World_Data!$A$4:$DP$191,106,FALSE)","v":51.15},{"$f":"VLOOKUP($A154,F1__World_Data!$A$4:$DP$191,105,FALSE)","v":50.518000000000001},{"$f":"VLOOKUP($A154,F1__World_Data!$A$4:$DP$191,104,FALSE)","v":50.231999999999999},{"$f":"VLOOKUP($A154,F1__World_Data!$A$4:$DP$191,103,FALSE)","v":50.280999999999999},{"$f":"VLOOKUP($A154,F1__World_Data!$A$4:$DP$191,102,FALSE)","v":50.628999999999998},{"$f":"VLOOKUP($A154,F1__World_Data!$A$4:$DP$191,101,FALSE)","v":51.213999999999999},{"$f":"VLOOKUP($A154,F1__World_Data!$A$4:$DP$191,100,FALSE)","v":51.947000000000003},{"$f":"VLOOKUP($A154,F1__World_Data!$A$4:$DP$191,99,FALSE)","v":52.749000000000002},{"$f":"VLOOKUP($A154,F1__World_Data!$A$4:$DP$191,98,FALSE)","v":53.572000000000003},{"$f":"VLOOKUP($A154,F1__World_Data!$A$4:$DP$191,97,FALSE)","v":54.41},{"$f":"VLOOKUP($A154,F1__World_Data!$A$4:$DP$191,96,FALSE)","v":55.283999999999999},{"$f":"VLOOKUP($A154,F1__World_Data!$A$4:$DP$191,95,FALSE)","v":56.222000000000001},{"$f":"VLOOKUP($A154,F1__World_Data!$A$4:$DP$191,94,FALSE)","v":57.219000000000001},{"$f":"VLOOKUP($A154,F1__World_Data!$A$4:$DP$191,93,FALSE)","v":58.231999999999999},{"$f":"VLOOKUP($A154,F1__World_Data!$A$4:$DP$191,92,FALSE)","v":59.191000000000003},{"$f":"VLOOKUP($A154,F1__World_Data!$A$4:$DP$191,91,FALSE)","v":60.015999999999998},{"$f":"VLOOKUP($A154,F1__World_Data!$A$4:$DP$191,90,FALSE)","v":60.651000000000003},{"$f":"VLOOKUP($A154,F1__World_Data!$A$4:$DP$191,89,FALSE)","v":61.058999999999997},{"$f":"VLOOKUP($A154,F1__World_Data!$A$4:$DP$191,88,FALSE)","v":61.226999999999997},{"$f":"VLOOKUP($A154,F1__World_Data!$A$4:$DP$191,87,FALSE)","v":61.167000000000002},{"$f":"VLOOKUP($A154,F1__World_Data!$A$4:$DP$191,86,FALSE)","v":60.915999999999997},{"$f":"VLOOKUP($A154,F1__World_Data!$A$4:$DP$191,85,FALSE)","v":60.542999999999999},{"$f":"VLOOKUP($A154,F1__World_Data!$A$4:$DP$191,84,FALSE)","v":60.109000000000002},{"$f":"VLOOKUP($A154,F1__World_Data!$A$4:$DP$191,83,FALSE)","v":59.646999999999998},{"$f":"VLOOKUP($A154,F1__World_Data!$A$4:$DP$191,82,FALSE)","v":59.173999999999999},{"$f":"VLOOKUP($A154,F1__World_Data!$A$4:$DP$191,81,FALSE)","v":58.692},{"$f":"VLOOKUP($A154,F1__World_Data!$A$4:$DP$191,80,FALSE)","v":58.186},{"$f":"VLOOKUP($A154,F1__World_Data!$A$4:$DP$191,79,FALSE)","v":57.649000000000001},{"$f":"VLOOKUP($A154,F1__World_Data!$A$4:$DP$191,78,FALSE)","v":57.091000000000001},{"$f":"VLOOKUP($A154,F1__World_Data!$A$4:$DP$191,77,FALSE)","v":56.524000000000001},{"$f":"VLOOKUP($A154,F1__World_Data!$A$4:$DP$191,76,FALSE)","v":55.957000000000001},{"$f":"VLOOKUP($A154,F1__World_Data!$A$4:$DP$191,75,FALSE)","v":55.398000000000003},{"$f":"VLOOKUP($A154,F1__World_Data!$A$4:$DP$191,74,FALSE)","v":54.853000000000002},{"$f":"VLOOKUP($A154,F1__World_Data!$A$4:$DP$191,73,FALSE)","v":54.326999999999998},{"$f":"VLOOKUP($A154,F1__World_Data!$A$4:$DP$191,72,FALSE)","v":53.823999999999998},{"$f":"VLOOKUP($A154,F1__World_Data!$A$4:$DP$191,71,FALSE)","v":53.345999999999997},{"$f":"VLOOKUP($A154,F1__World_Data!$A$4:$DP$191,70,FALSE)","v":52.884999999999998},{"$f":"VLOOKUP($A154,F1__World_Data!$A$4:$DP$191,69,FALSE)","v":52.435000000000002},{"$f":"VLOOKUP($A154,F1__World_Data!$A$4:$DP$191,68,FALSE)","v":51.991},{"$f":"VLOOKUP($A154,F1__World_Data!$A$4:$DP$191,67,FALSE)","v":51.546999999999997},{"$f":"VLOOKUP($A154,F1__World_Data!$A$4:$DP$191,66,FALSE)","v":51.098999999999997},{"$f":"VLOOKUP($A154,F1__World_Data!$A$4:$DP$191,65,FALSE)","v":50.640999999999998},{"$f":"VLOOKUP($A154,F1__World_Data!$A$4:$DP$191,64,FALSE)","v":50.170999999999999},{"$f":"VLOOKUP($A154,F1__World_Data!$A$4:$DP$191,63,FALSE)","v":49.683999999999997},{"$f":"VLOOKUP($A154,F1__World_Data!$A$4:$DP$191,62,FALSE)","v":49.179000000000002}]
["Maldives",{"$f":"VLOOKUP($A155,F1__World_Data!$A$4:$DP$191,60,FALSE)","v":515.70399999999995},{"$f":"VLOOKUP($A155,F1__World_Data!$A$4:$DP$191,59,FALSE)","v":496.39800000000002},{"$f":"VLOOKUP($A155,F1__World_Data!$A$4:$DP$191,58,FALSE)","v":475.505},{"$f":"VLOOKUP($A155,F1__World_Data!$A$4:$DP$191,57,FALSE)","v":454.91399999999999},{"$f":"VLOOKUP($A155,F1__World_Data!$A$4:$DP$191,56,FALSE)","v":435.01799999999997},{"$f":"VLOOKUP($A155,F1__World_Data!$A$4:$DP$191,55,FALSE)","v":415.59199999999998},{"$f":"VLOOKUP($A155,F1__World_Data!$A$4:$DP$191,54,FALSE)","v":397.23099999999999},{"$f":"VLOOKUP($A155,F1__World_Data!$A$4:$DP$191,53,FALSE)","v":380.49299999999999},{"$f":"VLOOKUP($A155,F1__World_Data!$A$4:$DP$191,52,FALSE)","v":365.73},{"$f":"VLOOKUP($A155,F1__World_Data!$A$4:$DP$191,51,FALSE)","v":353.39100000000002},{"$f":"VLOOKUP($A155,F1__World_Data!$A$4:$DP$191,50,FALSE)","v":343.44799999999998},{"$f":"VLOOKUP($A155,F1__World_Data!$A$4:$DP$191,49,FALSE)","v":335.17200000000003},{"$f":"VLOOKUP($A155,F1__World_Data!$A$4:$DP$191,48,FALSE)","v":327.48899999999998},{"$f":"VLOOKUP($A155,F1__World_Data!$A$4:$DP$191,47,FALSE)","v":319.60399999999998},{"$f":"VLOOKUP($A155,F1__World_Data!$A$4:$DP$191,46,FALSE)","v":311.26499999999999},{"$f":"VLOOKUP($A155,F1__World_Data!$A$4:$DP$191,45,FALSE)","v":302.68099999999998},{"$f":"VLOOKUP($A155,F1__World_Data!$A$4:$DP$191,44,FALSE)","v":294.185},{"$f":"VLOOKUP($A155,F1__World_Data!$A$4:$DP$191,43,FALSE)","v":286.30900000000003},{"$f":"VLOOKUP($A155,F1__World_Data!$A$4:$DP$191,42,FALSE)","v":279.39600000000002},{"$f":"VLOOKUP($A155,F1__World_Data!$A$4:$DP$191,41,FALSE)","v":273.52199999999999},{"$f":"VLOOKUP($A155,F1__World_Data!$A$4:$DP$191,40,FALSE)","v":268.44499999999999},{"$f":"VLOOKUP($A155,F1__World_Data!$A$4:$DP$191,39,FALSE)","v":263.83600000000001},{"$f":"VLOOKUP($A155,F1__World_Data!$A$4:$DP$191,38,FALSE)","v":259.178},{"$f":"VLOOKUP($A155,F1__World_Data!$A$4:$DP$191,37,FALSE)","v":254.14400000000001},{"$f":"VLOOKUP($A155,F1__World_Data!$A$4:$DP$191,36,FALSE)","v":248.58199999999999},{"$f":"VLOOKUP($A155,F1__World_Data!$A$4:$DP$191,35,FALSE)","v":242.596},{"$f":"VLOOKUP($A155,F1__World_Data!$A$4:$DP$191,34,FALSE)","v":236.27099999999999},{"$f":"VLOOKUP($A155,F1__World_Data!$A$4:$DP$191,33,FALSE)","v":229.74299999999999},{"$f":"VLOOKUP($A155,F1__World_Data!$A$4:$DP$191,32,FALSE)","v":223.15899999999999},{"$f":"VLOOKUP($A155,F1__World_Data!$A$4:$DP$191,31,FALSE)","v":216.50200000000001},{"$f":"VLOOKUP($A155,F1__World_Data!$A$4:$DP$191,30,FALSE)","v":209.78700000000001},{"$f":"VLOOKUP($A155,F1__World_Data!$A$4:$DP$191,29,FALSE)","v":203.024},{"$f":"VLOOKUP($A155,F1__World_Data!$A$4:$DP$191,28,FALSE)","v":196.262},{"$f":"VLOOKUP($A155,F1__World_Data!$A$4:$DP$191,27,FALSE)","v":189.54},{"$f":"VLOOKUP($A155,F1__World_Data!$A$4:$DP$191,26,FALSE)","v":182.84800000000001},{"$f":"VLOOKUP($A155,F1__World_Data!$A$4:$DP$191,25,FALSE)","v":176.255},{"$f":"VLOOKUP($A155,F1__World_Data!$A$4:$DP$191,24,FALSE)","v":169.84899999999999},{"$f":"VLOOKUP($A155,F1__World_Data!$A$4:$DP$191,23,FALSE)","v":163.821},{"$f":"VLOOKUP($A155,F1__World_Data!$A$4:$DP$191,22,FALSE)","v":158.27099999999999},{"$f":"VLOOKUP($A155,F1__World_Data!$A$4:$DP$191,21,FALSE)","v":153.27600000000001},{"$f":"VLOOKUP($A155,F1__World_Data!$A$4:$DP$191,20,FALSE)","v":148.774},{"$f":"VLOOKUP($A155,F1__World_Data!$A$4:$DP$191,19,FALSE)","v":144.625},{"$f":"VLOOKUP($A155,F1__World_Data!$A$4:$DP$191,18,FALSE)","v":140.56299999999999},{"$f":"VLOOKUP($A155,F1__World_Data!$A$4:$DP$191,17,FALSE)","v":136.41800000000001},{"$f":"VLOOKUP($A155,F1__World_Data!$A$4:$DP$191,16,FALSE)","v":132.102},{"$f":"VLOOKUP($A155,F1__World_Data!$A$4:$DP$191,15,FALSE)","v":127.7},{"$f":"VLOOKUP($A155,F1__World_Data!$A$4:$DP$191,14,FALSE)","v":123.34699999999999},{"$f":"VLOOKUP($A155,F1__World_Data!$A$4:$DP$191,13,FALSE)","v":119.303},{"$f":"VLOOKUP($A155,F1__World_Data!$A$4:$DP$191,12,FALSE)","v":115.688},{"$f":"VLOOKUP($A155,F1__World_Data!$A$4:$DP$191,11,FALSE)","v":112.58199999999999},{"$f":"VLOOKUP($A155,F1__World_Data!$A$4:$DP$191,10,FALSE)","v":109.893},{"$f":"VLOOKUP($A155,F1__World_Data!$A$4:$DP$191,9,FALSE)","v":107.48099999999999},{"$f":"VLOOKUP($A155,F1__World_Data!$A$4:$DP$191,8,FALSE)","v":105.129},{"$f":"VLOOKUP($A155,F1__World_Data!$A$4:$DP$191,7,FALSE)","v":102.71},{"$f":"VLOOKUP($A155,F1__World_Data!$A$4:$DP$191,6,FALSE)","v":100.17700000000001},{"$f":"VLOOKUP($A155,F1__World_Data!$A$4:$DP$191,5,FALSE)","v":97.54},{"$f":"VLOOKUP($A155,F1__World_Data!$A$4:$DP$191,4,FALSE)","v":94.902000000000001},{"$f":"VLOOKUP($A155,F1__World_Data!$A$4:$DP$191,3,FALSE)","v":92.328000000000003},{"$f":"VLOOKUP($A155,F1__World_Data!$A$4:$DP$191,2,FALSE)","v":89.873000000000005},null,{"$f":"VLOOKUP($A155,F1__World_Data!$A$4:$DP$191,120,FALSE)","v":68.116},{"$f":"VLOOKUP($A155,F1__World_Data!$A$4:$DP$191,119,FALSE)","v":67.850999999999999},{"$f":"VLOOKUP($A155,F1__World_Data!$A$4:$DP$191,118,FALSE)","v":67.576999999999998},{"$f":"VLOOKUP($A155,F1__World_Data!$A$4:$DP$191,117,FALSE)","v":67.290999999999997},{"$f":"VLOOKUP($A155,F1__World_Data!$A$4:$DP$191,116,FALSE)","v":66.995000000000005},{"$f":"VLOOKUP($A155,F1__World_Data!$A$4:$DP$191,115,FALSE)","v":66.69},{"$f":"VLOOKUP($A155,F1__World_Data!$A$4:$DP$191,114,FALSE)","v":66.381},{"$f":"VLOOKUP($A155,F1__World_Data!$A$4:$DP$191,113,FALSE)","v":66.072000000000003},{"$f":"VLOOKUP($A155,F1__World_Data!$A$4:$DP$191,112,FALSE)","v":65.769000000000005},{"$f":"VLOOKUP($A155,F1__World_Data!$A$4:$DP$191,111,FALSE)","v":65.48},{"$f":"VLOOKUP($A155,F1__World_Data!$A$4:$DP$191,110,FALSE)","v":65.207999999999998},{"$f":"VLOOKUP($A155,F1__World_Data!$A$4:$DP$191,109,FALSE)","v":64.953000000000003},{"$f":"VLOOKUP($A155,F1__World_Data!$A$4:$DP$191,108,FALSE)","v":64.712000000000003},{"$f":"VLOOKUP($A155,F1__World_Data!$A$4:$DP$191,107,FALSE)","v":64.477999999999994},{"$f":"VLOOKUP($A155,F1__World_Data!$A$4:$DP$191,106,FALSE)","v":64.242000000000004},{"$f":"VLOOKUP($A155,F1__World_Data!$A$4:$DP$191,105,FALSE)","v":63.994999999999997},{"$f":"VLOOKUP($A155,F1__World_Data!$A$4:$DP$191,104,FALSE)","v":63.731000000000002},{"$f":"VLOOKUP($A155,F1__World_Data!$A$4:$DP$191,103,FALSE)","v":63.445999999999998},{"$f":"VLOOKUP($A155,F1__World_Data!$A$4:$DP$191,102,FALSE)","v":63.143999999999998},{"$f":"VLOOKUP($A155,F1__World_Data!$A$4:$DP$191,101,FALSE)","v":62.829000000000001},{"$f":"VLOOKUP($A155,F1__World_Data!$A$4:$DP$191,100,FALSE)","v":62.509},{"$f":"VLOOKUP($A155,F1__World_Data!$A$4:$DP$191,99,FALSE)","v":62.188000000000002},{"$f":"VLOOKUP($A155,F1__World_Data!$A$4:$DP$191,98,FALSE)","v":61.866},{"$f":"VLOOKUP($A155,F1__World_Data!$A$4:$DP$191,97,FALSE)","v":61.539000000000001},{"$f":"VLOOKUP($A155,F1__World_Data!$A$4:$DP$191,96,FALSE)","v":61.198},{"$f":"VLOOKUP($A155,F1__World_Data!$A$4:$DP$191,95,FALSE)","v":60.837000000000003},{"$f":"VLOOKUP($A155,F1__World_Data!$A$4:$DP$191,94,FALSE)","v":60.454999999999998},{"$f":"VLOOKUP($A155,F1__World_Data!$A$4:$DP$191,93,FALSE)","v":60.052999999999997},{"$f":"VLOOKUP($A155,F1__World_Data!$A$4:$DP$191,92,FALSE)","v":59.636000000000003},{"$f":"VLOOKUP($A155,F1__World_Data!$A$4:$DP$191,91,FALSE)","v":59.209000000000003},{"$f":"VLOOKUP($A155,F1__World_Data!$A$4:$DP$191,90,FALSE)","v":58.783000000000001},{"$f":"VLOOKUP($A155,F1__World_Data!$A$4:$DP$191,89,FALSE)","v":58.366},{"$f":"VLOOKUP($A155,F1__World_Data!$A$4:$DP$191,88,FALSE)","v":57.962000000000003},{"$f":"VLOOKUP($A155,F1__World_Data!$A$4:$DP$191,87,FALSE)","v":57.579000000000001},{"$f":"VLOOKUP($A155,F1__World_Data!$A$4:$DP$191,86,FALSE)","v":57.220999999999997},{"$f":"VLOOKUP($A155,F1__World_Data!$A$4:$DP$191,85,FALSE)","v":56.886000000000003},{"$f":"VLOOKUP($A155,F1__World_Data!$A$4:$DP$191,84,FALSE)","v":56.569000000000003},{"$f":"VLOOKUP($A155,F1__World_Data!$A$4:$DP$191,83,FALSE)","v":56.265999999999998},{"$f":"VLOOKUP($A155,F1__World_Data!$A$4:$DP$191,82,FALSE)","v":55.970999999999997},{"$f":"VLOOKUP($A155,F1__World_Data!$A$4:$DP$191,81,FALSE)","v":55.679000000000002},{"$f":"VLOOKUP($A155,F1__World_Data!$A$4:$DP$191,80,FALSE)","v":55.381999999999998},{"$f":"VLOOKUP($A155,F1__World_Data!$A$4:$DP$191,79,FALSE)","v":55.073999999999998},{"$f":"VLOOKUP($A155,F1__World_Data!$A$4:$DP$191,78,FALSE)","v":54.747999999999998},{"$f":"VLOOKUP($A155,F1__World_Data!$A$4:$DP$191,77,FALSE)","v":54.399000000000001},{"$f":"VLOOKUP($A155,F1__World_Data!$A$4:$DP$191,76,FALSE)","v":54.027000000000001},{"$f":"VLOOKUP($A155,F1__World_Data!$A$4:$DP$191,75,FALSE)","v":53.633000000000003},{"$f":"VLOOKUP($A155,F1__World_Data!$A$4:$DP$191,74,FALSE)","v":53.218000000000004},{"$f":"VLOOKUP($A155,F1__World_Data!$A$4:$DP$191,73,FALSE)","v":52.781999999999996},{"$f":"VLOOKUP($A155,F1__World_Data!$A$4:$DP$191,72,FALSE)","v":52.323},{"$f":"VLOOKUP($A155,F1__World_Data!$A$4:$DP$191,71,FALSE)","v":51.837000000000003},{"$f":"VLOOKUP($A155,F1__World_Data!$A$4:$DP$191,70,FALSE)","v":51.326999999999998},{"$f":"VLOOKUP($A155,F1__World_Data!$A$4:$DP$191,69,FALSE)","v":50.795999999999999},{"$f":"VLOOKUP($A155,F1__World_Data!$A$4:$DP$191,68,FALSE)","v":50.25},{"$f":"VLOOKUP($A155,F1__World_Data!$A$4:$DP$191,67,FALSE)","v":49.697000000000003},{"$f":"VLOOKUP($A155,F1__World_Data!$A$4:$DP$191,66,FALSE)","v":49.145000000000003},{"$f":"VLOOKUP($A155,F1__World_Data!$A$4:$DP$191,65,FALSE)","v":48.600999999999999},{"$f":"VLOOKUP($A155,F1__World_Data!$A$4:$DP$191,64,FALSE)","v":48.070999999999998},{"$f":"VLOOKUP($A155,F1__World_Data!$A$4:$DP$191,63,FALSE)","v":47.557000000000002},{"$f":"VLOOKUP($A155,F1__World_Data!$A$4:$DP$191,62,FALSE)","v":47.061}]
["Malta",{"$f":"VLOOKUP($A156,F1__World_Data!$A$4:$DP$191,60,FALSE)","v":439.255},{"$f":"VLOOKUP($A156,F1__World_Data!$A$4:$DP$191,59,FALSE)","v":437.935},{"$f":"VLOOKUP($A156,F1__World_Data!$A$4:$DP$191,58,FALSE)","v":436.09899999999999},{"$f":"VLOOKUP($A156,F1__World_Data!$A$4:$DP$191,57,FALSE)","v":433.55900000000003},{"$f":"VLOOKUP($A156,F1__World_Data!$A$4:$DP$191,56,FALSE)","v":430.19},{"$f":"VLOOKUP($A156,F1__World_Data!$A$4:$DP$191,55,FALSE)","v":426.14400000000001},{"$f":"VLOOKUP($A156,F1__World_Data!$A$4:$DP$191,54,FALSE)","v":421.80900000000003},{"$f":"VLOOKUP($A156,F1__World_Data!$A$4:$DP$191,53,FALSE)","v":417.72},{"$f":"VLOOKUP($A156,F1__World_Data!$A$4:$DP$191,52,FALSE)","v":414.25700000000001},{"$f":"VLOOKUP($A156,F1__World_Data!$A$4:$DP$191,51,FALSE)","v":411.55900000000003},{"$f":"VLOOKUP($A156,F1__World_Data!$A$4:$DP$191,50,FALSE)","v":409.49299999999999},{"$f":"VLOOKUP($A156,F1__World_Data!$A$4:$DP$191,49,FALSE)","v":407.85399999999998},{"$f":"VLOOKUP($A156,F1__World_Data!$A$4:$DP$191,48,FALSE)","v":406.33},{"$f":"VLOOKUP($A156,F1__World_Data!$A$4:$DP$191,47,FALSE)","v":404.65899999999999},{"$f":"VLOOKUP($A156,F1__World_Data!$A$4:$DP$191,46,FALSE)","v":402.82},{"$f":"VLOOKUP($A156,F1__World_Data!$A$4:$DP$191,45,FALSE)","v":400.858},{"$f":"VLOOKUP($A156,F1__World_Data!$A$4:$DP$191,44,FALSE)","v":398.72},{"$f":"VLOOKUP($A156,F1__World_Data!$A$4:$DP$191,43,FALSE)","v":396.32400000000001},{"$f":"VLOOKUP($A156,F1__World_Data!$A$4:$DP$191,42,FALSE)","v":393.649},{"$f":"VLOOKUP($A156,F1__World_Data!$A$4:$DP$191,41,FALSE)","v":390.62599999999998},{"$f":"VLOOKUP($A156,F1__World_Data!$A$4:$DP$191,40,FALSE)","v":387.28199999999998},{"$f":"VLOOKUP($A156,F1__World_Data!$A$4:$DP$191,39,FALSE)","v":383.75599999999997},{"$f":"VLOOKUP($A156,F1__World_Data!$A$4:$DP$191,38,FALSE)","v":380.25900000000001},{"$f":"VLOOKUP($A156,F1__World_Data!$A$4:$DP$191,37,FALSE)","v":376.89299999999997},{"$f":"VLOOKUP($A156,F1__World_Data!$A$4:$DP$191,36,FALSE)","v":373.75400000000002},{"$f":"VLOOKUP($A156,F1__World_Data!$A$4:$DP$191,35,FALSE)","v":370.774},{"$f":"VLOOKUP($A156,F1__World_Data!$A$4:$DP$191,34,FALSE)","v":367.89},{"$f":"VLOOKUP($A156,F1__World_Data!$A$4:$DP$191,33,FALSE)","v":364.99099999999999},{"$f":"VLOOKUP($A156,F1__World_Data!$A$4:$DP$191,32,FALSE)","v":362.017},{"$f":"VLOOKUP($A156,F1__World_Data!$A$4:$DP$191,31,FALSE)","v":358.935},{"$f":"VLOOKUP($A156,F1__World_Data!$A$4:$DP$191,30,FALSE)","v":355.79599999999999},{"$f":"VLOOKUP($A156,F1__World_Data!$A$4:$DP$191,29,FALSE)","v":352.61700000000002},{"$f":"VLOOKUP($A156,F1__World_Data!$A$4:$DP$191,28,FALSE)","v":349.43099999999998},{"$f":"VLOOKUP($A156,F1__World_Data!$A$4:$DP$191,27,FALSE)","v":346.25400000000002},{"$f":"VLOOKUP($A156,F1__World_Data!$A$4:$DP$191,26,FALSE)","v":343.096},{"$f":"VLOOKUP($A156,F1__World_Data!$A$4:$DP$191,25,FALSE)","v":339.98399999999998},{"$f":"VLOOKUP($A156,F1__World_Data!$A$4:$DP$191,24,FALSE)","v":336.964},{"$f":"VLOOKUP($A156,F1__World_Data!$A$4:$DP$191,23,FALSE)","v":334.11500000000001},{"$f":"VLOOKUP($A156,F1__World_Data!$A$4:$DP$191,22,FALSE)","v":331.49400000000003},{"$f":"VLOOKUP($A156,F1__World_Data!$A$4:$DP$191,21,FALSE)","v":329.11700000000002},{"$f":"VLOOKUP($A156,F1__World_Data!$A$4:$DP$191,20,FALSE)","v":326.98399999999998},{"$f":"VLOOKUP($A156,F1__World_Data!$A$4:$DP$191,19,FALSE)","v":325.12599999999998},{"$f":"VLOOKUP($A156,F1__World_Data!$A$4:$DP$191,18,FALSE)","v":323.57900000000001},{"$f":"VLOOKUP($A156,F1__World_Data!$A$4:$DP$191,17,FALSE)","v":322.358},{"$f":"VLOOKUP($A156,F1__World_Data!$A$4:$DP$191,16,FALSE)","v":321.43599999999998},{"$f":"VLOOKUP($A156,F1__World_Data!$A$4:$DP$191,15,FALSE)","v":320.80099999999999},{"$f":"VLOOKUP($A156,F1__World_Data!$A$4:$DP$191,14,FALSE)","v":320.43700000000001},{"$f":"VLOOKUP($A156,F1__World_Data!$A$4:$DP$191,13,FALSE)","v":320.36399999999998},{"$f":"VLOOKUP($A156,F1__World_Data!$A$4:$DP$191,12,FALSE)","v":320.548},{"$f":"VLOOKUP($A156,F1__World_Data!$A$4:$DP$191,11,FALSE)","v":321.03100000000001},{"$f":"VLOOKUP($A156,F1__World_Data!$A$4:$DP$191,10,FALSE)","v":321.762},{"$f":"VLOOKUP($A156,F1__World_Data!$A$4:$DP$191,9,FALSE)","v":322.45699999999999},{"$f":"VLOOKUP($A156,F1__World_Data!$A$4:$DP$191,8,FALSE)","v":322.69600000000003},{"$f":"VLOOKUP($A156,F1__World_Data!$A$4:$DP$191,7,FALSE)","v":322.238},{"$f":"VLOOKUP($A156,F1__World_Data!$A$4:$DP$191,6,FALSE)","v":320.92700000000002},{"$f":"VLOOKUP($A156,F1__World_Data!$A$4:$DP$191,5,FALSE)","v":318.88799999999998},{"$f":"VLOOKUP($A156,F1__World_Data!$A$4:$DP$191,4,FALSE)","v":316.52},{"$f":"VLOOKUP($A156,F1__World_Data!$A$4:$DP$191,3,FALSE)","v":314.41399999999999},{"$f":"VLOOKUP($A156,F1__World_Data!$A$4:$DP$191,2,FALSE)","v":312.97300000000001},null,{"$f":"VLOOKUP($A156,F1__World_Data!$A$4:$DP$191,120,FALSE)","v":68.116},{"$f":"VLOOKUP($A156,F1__World_Data!$A$4:$DP$191,119,FALSE)","v":67.850999999999999},{"$f":"VLOOKUP($A156,F1__World_Data!$A$4:$DP$191,118,FALSE)","v":67.576999999999998},{"$f":"VLOOKUP($A156,F1__World_Data!$A$4:$DP$191,117,FALSE)","v":67.290999999999997},{"$f":"VLOOKUP($A156,F1__World_Data!$A$4:$DP$191,116,FALSE)","v":66.995000000000005},{"$f":"VLOOKUP($A156,F1__World_Data!$A$4:$DP$191,115,FALSE)","v":66.69},{"$f":"VLOOKUP($A156,F1__World_Data!$A$4:$DP$191,114,FALSE)","v":66.381},{"$f":"VLOOKUP($A156,F1__World_Data!$A$4:$DP$191,113,FALSE)","v":66.072000000000003},{"$f":"VLOOKUP($A156,F1__World_Data!$A$4:$DP$191,112,FALSE)","v":65.769000000000005},{"$f":"VLOOKUP($A156,F1__World_Data!$A$4:$DP$191,111,FALSE)","v":65.48},{"$f":"VLOOKUP($A156,F1__World_Data!$A$4:$DP$191,110,FALSE)","v":65.207999999999998},{"$f":"VLOOKUP($A156,F1__World_Data!$A$4:$DP$191,109,FALSE)","v":64.953000000000003},{"$f":"VLOOKUP($A156,F1__World_Data!$A$4:$DP$191,108,FALSE)","v":64.712000000000003},{"$f":"VLOOKUP($A156,F1__World_Data!$A$4:$DP$191,107,FALSE)","v":64.477999999999994},{"$f":"VLOOKUP($A156,F1__World_Data!$A$4:$DP$191,106,FALSE)","v":64.242000000000004},{"$f":"VLOOKUP($A156,F1__World_Data!$A$4:$DP$191,105,FALSE)","v":63.994999999999997},{"$f":"VLOOKUP($A156,F1__World_Data!$A$4:$DP$191,104,FALSE)","v":63.731000000000002},{"$f":"VLOOKUP($A156,F1__World_Data!$A$4:$DP$191,103,FALSE)","v":63.445999999999998},{"$f":"VLOOKUP($A156,F1__World_Data!$A$4:$DP$191,102,FALSE)","v":63.143999999999998},{"$f":"VLOOKUP($A156,F1__World_Data!$A$4:$DP$191,101,FALSE)","v":62.829000000000001},{"$f":"VLOOKUP($A156,F1__World_Data!$A$4:$DP$191,100,FALSE)","v":62.509},{"$f":"VLOOKUP($A156,F1__World_Data!$A$4:$DP$191,99,FALSE)","v":62.188000000000002},{"$f":"VLOOKUP($A156,F1__World_Data!$A$4:$DP$191,98,FALSE)","v":61.866},{"$f":"VLOOKUP($A156,F1__World_Data!$A$4:$DP$191,97,FALSE)","v":61.539000000000001},{"$f":"VLOOKUP($A156,F1__World_Data!$A$4:$DP$191,96,FALSE)","v":61.198},{"$f":"VLOOKUP($A156,F1__World_Data!$A$4:$DP$191,95,FALSE)","v":60.837000000000003},{"$f":"VLOOKUP($A156,F1__World_Data!$A$4:$DP$191,94,FALSE)","v":60.454999999999998},{"$f":"VLOOKUP($A156,F1__World_Data!$A$4:$DP$191,93,FALSE)","v":60.052999999999997},{"$f":"VLOOKUP($A156,F1__World_Data!$A$4:$DP$191,92,FALSE)","v":59.636000000000003},{"$f":"VLOOKUP($A156,F1__World_Data!$A$4:$DP$191,91,FALSE)","v":59.209000000000003},{"$f":"VLOOKUP($A156,F1__World_Data!$A$4:$DP$191,90,FALSE)","v":58.783000000000001},{"$f":"VLOOKUP($A156,F1__World_Data!$A$4:$DP$191,89,FALSE)","v":58.366},{"$f":"VLOOKUP($A156,F1__World_Data!$A$4:$DP$191,88,FALSE)","v":57.962000000000003},{"$f":"VLOOKUP($A156,F1__World_Data!$A$4:$DP$191,87,FALSE)","v":57.579000000000001},{"$f":"VLOOKUP($A156,F1__World_Data!$A$4:$DP$191,86,FALSE)","v":57.220999999999997},{"$f":"VLOOKUP($A156,F1__World_Data!$A$4:$DP$191,85,FALSE)","v":56.886000000000003},{"$f":"VLOOKUP($A156,F1__World_Data!$A$4:$DP$191,84,FALSE)","v":56.569000000000003},{"$f":"VLOOKUP($A156,F1__World_Data!$A$4:$DP$191,83,FALSE)","v":56.265999999999998},{"$f":"VLOOKUP($A156,F1__World_Data!$A$4:$DP$191,82,FALSE)","v":55.970999999999997},{"$f":"VLOOKUP($A156,F1__World_Data!$A$4:$DP$191,81,FALSE)","v":55.679000000000002},{"$f":"VLOOKUP($A156,F1__World_Data!$A$4:$DP$191,80,FALSE)","v":55.381999999999998},{"$f":"VLOOKUP($A156,F1__World_Data!$A$4:$DP$191,79,FALSE)","v":55.073999999999998},{"$f":"VLOOKUP($A156,F1__World_Data!$A$4:$DP$191,78,FALSE)","v":54.747999999999998},{"$f":"VLOOKUP($A156,F1__World_Data!$A$4:$DP$191,77,FALSE)","v":54.399000000000001},{"$f":"VLOOKUP($A156,F1__World_Data!$A$4:$DP$191,76,FALSE)","v":54.027000000000001},{"$f":"VLOOKUP($A156,F1__World_Data!$A$4:$DP$191,75,FALSE)","v":53.633000000000003},{"$f":"VLOOKUP($A156,F1__World_Data!$A$4:$DP$191,74,FALSE)","v":53.218000000000004},{"$f":"VLOOKUP($A156,F1__World_Data!$A$4:$DP$191,73,FALSE)","v":52.781999999999996},{"$f":"VLOOKUP($A156,F1__World_Data!$A$4:$DP$191,72,FALSE)","v":52.323},{"$f":"VLOOKUP($A156,F1__World_Data!$A$4:$DP$191,71,FALSE)","v":51.837000000000003},{"$f":"VLOOKUP($A156,F1__World_Data!$A$4:$DP$191,70,FALSE)","v":51.326999999999998},{"$f":"VLOOKUP($A156,F1__World_Data!$A$4:$DP$191,69,FALSE)","v":50.795999999999999},{"$f":"VLOOKUP($A156,F1__World_Data!$A$4:$DP$191,68,FALSE)","v":50.25},{"$f":"VLOOKUP($A156,F1__World_Data!$A$4:$DP$191,67,FALSE)","v":49.697000000000003},{"$f":"VLOOKUP($A156,F1__World_Data!$A$4:$DP$191,66,FALSE)","v":49.145000000000003},{"$f":"VLOOKUP($A156,F1__World_Data!$A$4:$DP$191,65,FALSE)","v":48.600999999999999},{"$f":"VLOOKUP($A156,F1__World_Data!$A$4:$DP$191,64,FALSE)","v":48.070999999999998},{"$f":"VLOOKUP($A156,F1__World_Data!$A$4:$DP$191,63,FALSE)","v":47.557000000000002},{"$f":"VLOOKUP($A156,F1__World_Data!$A$4:$DP$191,62,FALSE)","v":47.061}]
["Guadeloupe",{"$f":"VLOOKUP($A157,F1__World_Data!$A$4:$DP$191,60,FALSE)","v":399.84800000000001},{"$f":"VLOOKUP($A157,F1__World_Data!$A$4:$DP$191,59,FALSE)","v":399.67899999999997},{"$f":"VLOOKUP($A157,F1__World_Data!$A$4:$DP$191,58,FALSE)","v":399.76},{"$f":"VLOOKUP($A157,F1__World_Data!$A$4:$DP$191,57,FALSE)","v":400.26},{"$f":"VLOOKUP($A157,F1__World_Data!$A$4:$DP$191,56,FALSE)","v":401.30500000000001},{"$f":"VLOOKUP($A157,F1__World_Data!$A$4:$DP$191,55,FALSE)","v":402.82600000000002},{"$f":"VLOOKUP($A157,F1__World_Data!$A$4:$DP$191,54,FALSE)","v":404.44600000000003},{"$f":"VLOOKUP($A157,F1__World_Data!$A$4:$DP$191,53,FALSE)","v":405.64299999999997},{"$f":"VLOOKUP($A157,F1__World_Data!$A$4:$DP$191,52,FALSE)","v":406.07299999999998},{"$f":"VLOOKUP($A157,F1__World_Data!$A$4:$DP$191,51,FALSE)","v":405.44400000000002},{"$f":"VLOOKUP($A157,F1__World_Data!$A$4:$DP$191,50,FALSE)","v":403.96699999999998},{"$f":"VLOOKUP($A157,F1__World_Data!$A$4:$DP$191,49,FALSE)","v":402.40499999999997},{"$f":"VLOOKUP($A157,F1__World_Data!$A$4:$DP$191,48,FALSE)","v":401.80900000000003},{"$f":"VLOOKUP($A157,F1__World_Data!$A$4:$DP$191,47,FALSE)","v":402.90300000000002},{"$f":"VLOOKUP($A157,F1__World_Data!$A$4:$DP$191,46,FALSE)","v":406.06799999999998},{"$f":"VLOOKUP($A157,F1__World_Data!$A$4:$DP$191,45,FALSE)","v":410.86799999999999},{"$f":"VLOOKUP($A157,F1__World_Data!$A$4:$DP$191,44,FALSE)","v":416.13200000000001},{"$f":"VLOOKUP($A157,F1__World_Data!$A$4:$DP$191,43,FALSE)","v":420.24799999999999},{"$f":"VLOOKUP($A157,F1__World_Data!$A$4:$DP$191,42,FALSE)","v":422.048},{"$f":"VLOOKUP($A157,F1__World_Data!$A$4:$DP$191,41,FALSE)","v":421.03500000000003},{"$f":"VLOOKUP($A157,F1__World_Data!$A$4:$DP$191,40,FALSE)","v":417.62099999999998},{"$f":"VLOOKUP($A157,F1__World_Data!$A$4:$DP$191,39,FALSE)","v":412.73899999999998},{"$f":"VLOOKUP($A157,F1__World_Data!$A$4:$DP$191,38,FALSE)","v":407.78399999999999},{"$f":"VLOOKUP($A157,F1__World_Data!$A$4:$DP$191,37,FALSE)","v":403.73099999999999},{"$f":"VLOOKUP($A157,F1__World_Data!$A$4:$DP$191,36,FALSE)","v":401.06599999999997},{"$f":"VLOOKUP($A157,F1__World_Data!$A$4:$DP$191,35,FALSE)","v":399.38},{"$f":"VLOOKUP($A157,F1__World_Data!$A$4:$DP$191,34,FALSE)","v":397.69200000000001},{"$f":"VLOOKUP($A157,F1__World_Data!$A$4:$DP$191,33,FALSE)","v":394.61500000000001},{"$f":"VLOOKUP($A157,F1__World_Data!$A$4:$DP$191,32,FALSE)","v":389.25099999999998},{"$f":"VLOOKUP($A157,F1__World_Data!$A$4:$DP$191,31,FALSE)","v":381.13900000000001},{"$f":"VLOOKUP($A157,F1__World_Data!$A$4:$DP$191,30,FALSE)","v":370.91300000000001},{"$f":"VLOOKUP($A157,F1__World_Data!$A$4:$DP$191,29,FALSE)","v":359.911},{"$f":"VLOOKUP($A157,F1__World_Data!$A$4:$DP$191,28,FALSE)","v":350.06099999999998},{"$f":"VLOOKUP($A157,F1__World_Data!$A$4:$DP$191,27,FALSE)","v":342.73700000000002},{"$f":"VLOOKUP($A157,F1__World_Data!$A$4:$DP$191,26,FALSE)","v":338.43},{"$f":"VLOOKUP($A157,F1__World_Data!$A$4:$DP$191,25,FALSE)","v":336.67700000000002},{"$f":"VLOOKUP($A157,F1__World_Data!$A$4:$DP$191,24,FALSE)","v":336.61200000000002},{"$f":"VLOOKUP($A157,F1__World_Data!$A$4:$DP$191,23,FALSE)","v":336.93200000000002},{"$f":"VLOOKUP($A157,F1__World_Data!$A$4:$DP$191,22,FALSE)","v":336.68299999999999},{"$f":"VLOOKUP($A157,F1__World_Data!$A$4:$DP$191,21,FALSE)","v":335.58699999999999},{"$f":"VLOOKUP($A157,F1__World_Data!$A$4:$DP$191,20,FALSE)","v":333.91899999999998},{"$f":"VLOOKUP($A157,F1__World_Data!$A$4:$DP$191,19,FALSE)","v":331.91500000000002},{"$f":"VLOOKUP($A157,F1__World_Data!$A$4:$DP$191,18,FALSE)","v":330.00700000000001},{"$f":"VLOOKUP($A157,F1__World_Data!$A$4:$DP$191,17,FALSE)","v":328.48899999999998},{"$f":"VLOOKUP($A157,F1__World_Data!$A$4:$DP$191,16,FALSE)","v":327.42599999999999},{"$f":"VLOOKUP($A157,F1__World_Data!$A$4:$DP$191,15,FALSE)","v":326.577},{"$f":"VLOOKUP($A157,F1__World_Data!$A$4:$DP$191,14,FALSE)","v":325.63499999999999},{"$f":"VLOOKUP($A157,F1__World_Data!$A$4:$DP$191,13,FALSE)","v":324.17},{"$f":"VLOOKUP($A157,F1__World_Data!$A$4:$DP$191,12,FALSE)","v":321.887},{"$f":"VLOOKUP($A157,F1__World_Data!$A$4:$DP$191,11,FALSE)","v":318.63},{"$f":"VLOOKUP($A157,F1__World_Data!$A$4:$DP$191,10,FALSE)","v":314.49799999999999},{"$f":"VLOOKUP($A157,F1__World_Data!$A$4:$DP$191,9,FALSE)","v":309.77199999999999},{"$f":"VLOOKUP($A157,F1__World_Data!$A$4:$DP$191,8,FALSE)","v":304.86700000000002},{"$f":"VLOOKUP($A157,F1__World_Data!$A$4:$DP$191,7,FALSE)","v":300.05799999999999},{"$f":"VLOOKUP($A157,F1__World_Data!$A$4:$DP$191,6,FALSE)","v":295.50900000000001},{"$f":"VLOOKUP($A157,F1__World_Data!$A$4:$DP$191,5,FALSE)","v":291.10599999999999},{"$f":"VLOOKUP($A157,F1__World_Data!$A$4:$DP$191,4,FALSE)","v":286.53800000000001},{"$f":"VLOOKUP($A157,F1__World_Data!$A$4:$DP$191,3,FALSE)","v":281.31200000000001},{"$f":"VLOOKUP($A157,F1__World_Data!$A$4:$DP$191,2,FALSE)","v":275.173},null,{"$f":"VLOOKUP($A157,F1__World_Data!$A$4:$DP$191,120,FALSE)","v":82.548780487804891},{"$f":"VLOOKUP($A157,F1__World_Data!$A$4:$DP$191,119,FALSE)","v":82.29756097560977},{"$f":"VLOOKUP($A157,F1__World_Data!$A$4:$DP$191,118,FALSE)","v":82.046341463414635},{"$f":"VLOOKUP($A157,F1__World_Data!$A$4:$DP$191,117,FALSE)","v":81.795121951219528},{"$f":"VLOOKUP($A157,F1__World_Data!$A$4:$DP$191,116,FALSE)","v":81.592682926829269},{"$f":"VLOOKUP($A157,F1__World_Data!$A$4:$DP$191,115,FALSE)","v":81.341463414634148},{"$f":"VLOOKUP($A157,F1__World_Data!$A$4:$DP$191,114,FALSE)","v":81.090243902439042},{"$f":"VLOOKUP($A157,F1__World_Data!$A$4:$DP$191,113,FALSE)","v":80.839024390243921},{"$f":"VLOOKUP($A157,F1__World_Data!$A$4:$DP$191,112,FALSE)","v":80.587804878048786},{"$f":"VLOOKUP($A157,F1__World_Data!$A$4:$DP$191,111,FALSE)","v":80.387804878048797},{"$f":"VLOOKUP($A157,F1__World_Data!$A$4:$DP$191,110,FALSE)","v":80.139024390243918},{"$f":"VLOOKUP($A157,F1__World_Data!$A$4:$DP$191,109,FALSE)","v":79.890243902439039},{"$f":"VLOOKUP($A157,F1__World_Data!$A$4:$DP$191,108,FALSE)","v":79.690243902439036},{"$f":"VLOOKUP($A157,F1__World_Data!$A$4:$DP$191,107,FALSE)","v":79.441463414634157},{"$f":"VLOOKUP($A157,F1__World_Data!$A$4:$DP$191,106,FALSE)","v":79.190243902439036},{"$f":"VLOOKUP($A157,F1__World_Data!$A$4:$DP$191,105,FALSE)","v":78.990243902439033},{"$f":"VLOOKUP($A157,F1__World_Data!$A$4:$DP$191,104,FALSE)","v":78.787804878048775},{"$f":"VLOOKUP($A157,F1__World_Data!$A$4:$DP$191,103,FALSE)","v":78.636585365853662},{"$f":"VLOOKUP($A157,F1__World_Data!$A$4:$DP$191,102,FALSE)","v":78.434146341463432},{"$f":"VLOOKUP($A157,F1__World_Data!$A$4:$DP$191,101,FALSE)","v":78.280487804878064},{"$f":"VLOOKUP($A157,F1__World_Data!$A$4:$DP$191,100,FALSE)","v":78.026829268292687},{"$f":"VLOOKUP($A157,F1__World_Data!$A$4:$DP$191,99,FALSE)","v":77.824390243902457},{"$f":"VLOOKUP($A157,F1__World_Data!$A$4:$DP$191,98,FALSE)","v":77.57073170731708},{"$f":"VLOOKUP($A157,F1__World_Data!$A$4:$DP$191,97,FALSE)","v":77.368292682926835},{"$f":"VLOOKUP($A157,F1__World_Data!$A$4:$DP$191,96,FALSE)","v":77.065853658536597},{"$f":"VLOOKUP($A157,F1__World_Data!$A$4:$DP$191,95,FALSE)","v":76.81463414634149},{"$f":"VLOOKUP($A157,F1__World_Data!$A$4:$DP$191,94,FALSE)","v":76.614634146341473},{"$f":"VLOOKUP($A157,F1__World_Data!$A$4:$DP$191,93,FALSE)","v":76.41463414634147},{"$f":"VLOOKUP($A157,F1__World_Data!$A$4:$DP$191,92,FALSE)","v":76.114634146341487},{"$f":"VLOOKUP($A157,F1__World_Data!$A$4:$DP$191,91,FALSE)","v":75.91463414634147},{"$f":"VLOOKUP($A157,F1__World_Data!$A$4:$DP$191,90,FALSE)","v":75.714634146341467},{"$f":"VLOOKUP($A157,F1__World_Data!$A$4:$DP$191,89,FALSE)","v":75.465853658536588},{"$f":"VLOOKUP($A157,F1__World_Data!$A$4:$DP$191,88,FALSE)","v":75.214634146341467},{"$f":"VLOOKUP($A157,F1__World_Data!$A$4:$DP$191,87,FALSE)","v":0},{"$f":"VLOOKUP($A157,F1__World_Data!$A$4:$DP$191,86,FALSE)","v":0},{"$f":"VLOOKUP($A157,F1__World_Data!$A$4:$DP$191,85,FALSE)","v":0},{"$f":"VLOOKUP($A157,F1__World_Data!$A$4:$DP$191,84,FALSE)","v":0},{"$f":"VLOOKUP($A157,F1__World_Data!$A$4:$DP$191,83,FALSE)","v":0},{"$f":"VLOOKUP($A157,F1__World_Data!$A$4:$DP$191,82,FALSE)","v":0},{"$f":"VLOOKUP($A157,F1__World_Data!$A$4:$DP$191,81,FALSE)","v":0},{"$f":"VLOOKUP($A157,F1__World_Data!$A$4:$DP$191,80,FALSE)","v":75.98536585365855},{"$f":"VLOOKUP($A157,F1__World_Data!$A$4:$DP$191,79,FALSE)","v":0},{"$f":"VLOOKUP($A157,F1__World_Data!$A$4:$DP$191,78,FALSE)","v":0},{"$f":"VLOOKUP($A157,F1__World_Data!$A$4:$DP$191,77,FALSE)","v":0},{"$f":"VLOOKUP($A157,F1__World_Data!$A$4:$DP$191,76,FALSE)","v":0},{"$f":"VLOOKUP($A157,F1__World_Data!$A$4:$DP$191,75,FALSE)","v":74.497560975609773},{"$f":"VLOOKUP($A157,F1__World_Data!$A$4:$DP$191,74,FALSE)","v":0},{"$f":"VLOOKUP($A157,F1__World_Data!$A$4:$DP$191,73,FALSE)","v":0},{"$f":"VLOOKUP($A157,F1__World_Data!$A$4:$DP$191,72,FALSE)","v":0},{"$f":"VLOOKUP($A157,F1__World_Data!$A$4:$DP$191,71,FALSE)","v":0},{"$f":"VLOOKUP($A157,F1__World_Data!$A$4:$DP$191,70,FALSE)","v":0},{"$f":"VLOOKUP($A157,F1__World_Data!$A$4:$DP$191,69,FALSE)","v":0},{"$f":"VLOOKUP($A157,F1__World_Data!$A$4:$DP$191,68,FALSE)","v":0},{"$f":"VLOOKUP($A157,F1__World_Data!$A$4:$DP$191,67,FALSE)","v":0},{"$f":"VLOOKUP($A157,F1__World_Data!$A$4:$DP$191,66,FALSE)","v":0},{"$f":"VLOOKUP($A157,F1__World_Data!$A$4:$DP$191,65,FALSE)","v":0},{"$f":"VLOOKUP($A157,F1__World_Data!$A$4:$DP$191,64,FALSE)","v":0},{"$f":"VLOOKUP($A157,F1__World_Data!$A$4:$DP$191,63,FALSE)","v":0},{"$f":"VLOOKUP($A157,F1__World_Data!$A$4:$DP$191,62,FALSE)","v":0}]
["Bahamas",{"$f":"VLOOKUP($A158,F1__World_Data!$A$4:$DP$191,60,FALSE)","v":385.63499999999999},{"$f":"VLOOKUP($A158,F1__World_Data!$A$4:$DP$191,59,FALSE)","v":381.74900000000002},{"$f":"VLOOKUP($A158,F1__World_Data!$A$4:$DP$191,58,FALSE)","v":377.923},{"$f":"VLOOKUP($A158,F1__World_Data!$A$4:$DP$191,57,FALSE)","v":374.2},{"$f":"VLOOKUP($A158,F1__World_Data!$A$4:$DP$191,56,FALSE)","v":370.625},{"$f":"VLOOKUP($A158,F1__World_Data!$A$4:$DP$191,55,FALSE)","v":367.16199999999998},{"$f":"VLOOKUP($A158,F1__World_Data!$A$4:$DP$191,54,FALSE)","v":363.58100000000002},{"$f":"VLOOKUP($A158,F1__World_Data!$A$4:$DP$191,53,FALSE)","v":359.58300000000003},{"$f":"VLOOKUP($A158,F1__World_Data!$A$4:$DP$191,52,FALSE)","v":354.93599999999998},{"$f":"VLOOKUP($A158,F1__World_Data!$A$4:$DP$191,51,FALSE)","v":349.6},{"$f":"VLOOKUP($A158,F1__World_Data!$A$4:$DP$191,50,FALSE)","v":343.68},{"$f":"VLOOKUP($A158,F1__World_Data!$A$4:$DP$191,49,FALSE)","v":337.387},{"$f":"VLOOKUP($A158,F1__World_Data!$A$4:$DP$191,48,FALSE)","v":331.03199999999998},{"$f":"VLOOKUP($A158,F1__World_Data!$A$4:$DP$191,47,FALSE)","v":324.84800000000001},{"$f":"VLOOKUP($A158,F1__World_Data!$A$4:$DP$191,46,FALSE)","v":318.89299999999997},{"$f":"VLOOKUP($A158,F1__World_Data!$A$4:$DP$191,45,FALSE)","v":313.12299999999999},{"$f":"VLOOKUP($A158,F1__World_Data!$A$4:$DP$191,44,FALSE)","v":307.65699999999998},{"$f":"VLOOKUP($A158,F1__World_Data!$A$4:$DP$191,43,FALSE)","v":302.61799999999999},{"$f":"VLOOKUP($A158,F1__World_Data!$A$4:$DP$191,42,FALSE)","v":298.04500000000002},{"$f":"VLOOKUP($A158,F1__World_Data!$A$4:$DP$191,41,FALSE)","v":294.06299999999999},{"$f":"VLOOKUP($A158,F1__World_Data!$A$4:$DP$191,40,FALSE)","v":290.60000000000002},{"$f":"VLOOKUP($A158,F1__World_Data!$A$4:$DP$191,39,FALSE)","v":287.363},{"$f":"VLOOKUP($A158,F1__World_Data!$A$4:$DP$191,38,FALSE)","v":283.98},{"$f":"VLOOKUP($A158,F1__World_Data!$A$4:$DP$191,37,FALSE)","v":280.17899999999997},{"$f":"VLOOKUP($A158,F1__World_Data!$A$4:$DP$191,36,FALSE)","v":275.84899999999999},{"$f":"VLOOKUP($A158,F1__World_Data!$A$4:$DP$191,35,FALSE)","v":271.065},{"$f":"VLOOKUP($A158,F1__World_Data!$A$4:$DP$191,34,FALSE)","v":266.02800000000002},{"$f":"VLOOKUP($A158,F1__World_Data!$A$4:$DP$191,33,FALSE)","v":261.00700000000001},{"$f":"VLOOKUP($A158,F1__World_Data!$A$4:$DP$191,32,FALSE)","v":256.22699999999998},{"$f":"VLOOKUP($A158,F1__World_Data!$A$4:$DP$191,31,FALSE)","v":251.738},{"$f":"VLOOKUP($A158,F1__World_Data!$A$4:$DP$191,30,FALSE)","v":247.45099999999999},{"$f":"VLOOKUP($A158,F1__World_Data!$A$4:$DP$191,29,FALSE)","v":243.26499999999999},{"$f":"VLOOKUP($A158,F1__World_Data!$A$4:$DP$191,28,FALSE)","v":239.02},{"$f":"VLOOKUP($A158,F1__World_Data!$A$4:$DP$191,27,FALSE)","v":234.57900000000001},{"$f":"VLOOKUP($A158,F1__World_Data!$A$4:$DP$191,26,FALSE)","v":229.91300000000001},{"$f":"VLOOKUP($A158,F1__World_Data!$A$4:$DP$191,25,FALSE)","v":225.095},{"$f":"VLOOKUP($A158,F1__World_Data!$A$4:$DP$191,24,FALSE)","v":220.18199999999999},{"$f":"VLOOKUP($A158,F1__World_Data!$A$4:$DP$191,23,FALSE)","v":215.321},{"$f":"VLOOKUP($A158,F1__World_Data!$A$4:$DP$191,22,FALSE)","v":210.589},{"$f":"VLOOKUP($A158,F1__World_Data!$A$4:$DP$191,21,FALSE)","v":205.99100000000001},{"$f":"VLOOKUP($A158,F1__World_Data!$A$4:$DP$191,20,FALSE)","v":201.482},{"$f":"VLOOKUP($A158,F1__World_Data!$A$4:$DP$191,19,FALSE)","v":197.1},{"$f":"VLOOKUP($A158,F1__World_Data!$A$4:$DP$191,18,FALSE)","v":192.90299999999999},{"$f":"VLOOKUP($A158,F1__World_Data!$A$4:$DP$191,17,FALSE)","v":188.89500000000001},{"$f":"VLOOKUP($A158,F1__World_Data!$A$4:$DP$191,16,FALSE)","v":185.10499999999999},{"$f":"VLOOKUP($A158,F1__World_Data!$A$4:$DP$191,15,FALSE)","v":181.51900000000001},{"$f":"VLOOKUP($A158,F1__World_Data!$A$4:$DP$191,14,FALSE)","v":177.863},{"$f":"VLOOKUP($A158,F1__World_Data!$A$4:$DP$191,13,FALSE)","v":173.89400000000001},{"$f":"VLOOKUP($A158,F1__World_Data!$A$4:$DP$191,12,FALSE)","v":169.376},{"$f":"VLOOKUP($A158,F1__World_Data!$A$4:$DP$191,11,FALSE)","v":164.26499999999999},{"$f":"VLOOKUP($A158,F1__World_Data!$A$4:$DP$191,10,FALSE)","v":158.648},{"$f":"VLOOKUP($A158,F1__World_Data!$A$4:$DP$191,9,FALSE)","v":152.62100000000001},{"$f":"VLOOKUP($A158,F1__World_Data!$A$4:$DP$191,8,FALSE)","v":146.381},{"$f":"VLOOKUP($A158,F1__World_Data!$A$4:$DP$191,7,FALSE)","v":140.06},{"$f":"VLOOKUP($A158,F1__World_Data!$A$4:$DP$191,6,FALSE)","v":133.70500000000001},{"$f":"VLOOKUP($A158,F1__World_Data!$A$4:$DP$191,5,FALSE)","v":127.34},{"$f":"VLOOKUP($A158,F1__World_Data!$A$4:$DP$191,4,FALSE)","v":121.092},{"$f":"VLOOKUP($A158,F1__World_Data!$A$4:$DP$191,3,FALSE)","v":115.119},{"$f":"VLOOKUP($A158,F1__World_Data!$A$4:$DP$191,2,FALSE)","v":109.532},null,{"$f":"VLOOKUP($A158,F1__World_Data!$A$4:$DP$191,120,FALSE)","v":72.864000000000004},{"$f":"VLOOKUP($A158,F1__World_Data!$A$4:$DP$191,119,FALSE)","v":72.692999999999998},{"$f":"VLOOKUP($A158,F1__World_Data!$A$4:$DP$191,118,FALSE)","v":72.492999999999995},{"$f":"VLOOKUP($A158,F1__World_Data!$A$4:$DP$191,117,FALSE)","v":72.266000000000005},{"$f":"VLOOKUP($A158,F1__World_Data!$A$4:$DP$191,116,FALSE)","v":72.022000000000006},{"$f":"VLOOKUP($A158,F1__World_Data!$A$4:$DP$191,115,FALSE)","v":71.768000000000001},{"$f":"VLOOKUP($A158,F1__World_Data!$A$4:$DP$191,114,FALSE)","v":71.506},{"$f":"VLOOKUP($A158,F1__World_Data!$A$4:$DP$191,113,FALSE)","v":71.233999999999995},{"$f":"VLOOKUP($A158,F1__World_Data!$A$4:$DP$191,112,FALSE)","v":70.938000000000002},{"$f":"VLOOKUP($A158,F1__World_Data!$A$4:$DP$191,111,FALSE)","v":70.596999999999994},{"$f":"VLOOKUP($A158,F1__World_Data!$A$4:$DP$191,110,FALSE)","v":70.200999999999993},{"$f":"VLOOKUP($A158,F1__World_Data!$A$4:$DP$191,109,FALSE)","v":69.751999999999995},{"$f":"VLOOKUP($A158,F1__World_Data!$A$4:$DP$191,108,FALSE)","v":69.259},{"$f":"VLOOKUP($A158,F1__World_Data!$A$4:$DP$191,107,FALSE)","v":68.747},{"$f":"VLOOKUP($A158,F1__World_Data!$A$4:$DP$191,106,FALSE)","v":68.248999999999995},{"$f":"VLOOKUP($A158,F1__World_Data!$A$4:$DP$191,105,FALSE)","v":67.790999999999997},{"$f":"VLOOKUP($A158,F1__World_Data!$A$4:$DP$191,104,FALSE)","v":67.391000000000005},{"$f":"VLOOKUP($A158,F1__World_Data!$A$4:$DP$191,103,FALSE)","v":67.054000000000002},{"$f":"VLOOKUP($A158,F1__World_Data!$A$4:$DP$191,102,FALSE)","v":66.763000000000005},{"$f":"VLOOKUP($A158,F1__World_Data!$A$4:$DP$191,101,FALSE)","v":66.491},{"$f":"VLOOKUP($A158,F1__World_Data!$A$4:$DP$191,100,FALSE)","v":66.206999999999994},{"$f":"VLOOKUP($A158,F1__World_Data!$A$4:$DP$191,99,FALSE)","v":65.899000000000001},{"$f":"VLOOKUP($A158,F1__World_Data!$A$4:$DP$191,98,FALSE)","v":65.572999999999993},{"$f":"VLOOKUP($A158,F1__World_Data!$A$4:$DP$191,97,FALSE)","v":65.256},{"$f":"VLOOKUP($A158,F1__World_Data!$A$4:$DP$191,96,FALSE)","v":64.991},{"$f":"VLOOKUP($A158,F1__World_Data!$A$4:$DP$191,95,FALSE)","v":64.81},{"$f":"VLOOKUP($A158,F1__World_Data!$A$4:$DP$191,94,FALSE)","v":64.730999999999995},{"$f":"VLOOKUP($A158,F1__World_Data!$A$4:$DP$191,93,FALSE)","v":64.745000000000005},{"$f":"VLOOKUP($A158,F1__World_Data!$A$4:$DP$191,92,FALSE)","v":64.826999999999998},{"$f":"VLOOKUP($A158,F1__World_Data!$A$4:$DP$191,91,FALSE)","v":64.935000000000002},{"$f":"VLOOKUP($A158,F1__World_Data!$A$4:$DP$191,90,FALSE)","v":65.021000000000001},{"$f":"VLOOKUP($A158,F1__World_Data!$A$4:$DP$191,89,FALSE)","v":65.052999999999997},{"$f":"VLOOKUP($A158,F1__World_Data!$A$4:$DP$191,88,FALSE)","v":65.016000000000005},{"$f":"VLOOKUP($A158,F1__World_Data!$A$4:$DP$191,87,FALSE)","v":64.912999999999997},{"$f":"VLOOKUP($A158,F1__World_Data!$A$4:$DP$191,86,FALSE)","v":64.759},{"$f":"VLOOKUP($A158,F1__World_Data!$A$4:$DP$191,85,FALSE)","v":64.587000000000003},{"$f":"VLOOKUP($A158,F1__World_Data!$A$4:$DP$191,84,FALSE)","v":64.424999999999997},{"$f":"VLOOKUP($A158,F1__World_Data!$A$4:$DP$191,83,FALSE)","v":64.28},{"$f":"VLOOKUP($A158,F1__World_Data!$A$4:$DP$191,82,FALSE)","v":64.161000000000001},{"$f":"VLOOKUP($A158,F1__World_Data!$A$4:$DP$191,81,FALSE)","v":64.069000000000003},{"$f":"VLOOKUP($A158,F1__World_Data!$A$4:$DP$191,80,FALSE)","v":63.991999999999997},{"$f":"VLOOKUP($A158,F1__World_Data!$A$4:$DP$191,79,FALSE)","v":63.920999999999999},{"$f":"VLOOKUP($A158,F1__World_Data!$A$4:$DP$191,78,FALSE)","v":63.851999999999997},{"$f":"VLOOKUP($A158,F1__World_Data!$A$4:$DP$191,77,FALSE)","v":63.776000000000003},{"$f":"VLOOKUP($A158,F1__World_Data!$A$4:$DP$191,76,FALSE)","v":63.686999999999998},{"$f":"VLOOKUP($A158,F1__World_Data!$A$4:$DP$191,75,FALSE)","v":63.582000000000001},{"$f":"VLOOKUP($A158,F1__World_Data!$A$4:$DP$191,74,FALSE)","v":63.457000000000001},{"$f":"VLOOKUP($A158,F1__World_Data!$A$4:$DP$191,73,FALSE)","v":63.31},{"$f":"VLOOKUP($A158,F1__World_Data!$A$4:$DP$191,72,FALSE)","v":63.140999999999998},{"$f":"VLOOKUP($A158,F1__World_Data!$A$4:$DP$191,71,FALSE)","v":62.953000000000003},{"$f":"VLOOKUP($A158,F1__World_Data!$A$4:$DP$191,70,FALSE)","v":62.75},{"$f":"VLOOKUP($A158,F1__World_Data!$A$4:$DP$191,69,FALSE)","v":62.539000000000001},{"$f":"VLOOKUP($A158,F1__World_Data!$A$4:$DP$191,68,FALSE)","v":62.322000000000003},{"$f":"VLOOKUP($A158,F1__World_Data!$A$4:$DP$191,67,FALSE)","v":62.103999999999999},{"$f":"VLOOKUP($A158,F1__World_Data!$A$4:$DP$191,66,FALSE)","v":61.889000000000003},{"$f":"VLOOKUP($A158,F1__World_Data!$A$4:$DP$191,65,FALSE)","v":61.679000000000002},{"$f":"VLOOKUP($A158,F1__World_Data!$A$4:$DP$191,64,FALSE)","v":61.469000000000001},{"$f":"VLOOKUP($A158,F1__World_Data!$A$4:$DP$191,63,FALSE)","v":61.256},{"$f":"VLOOKUP($A158,F1__World_Data!$A$4:$DP$191,62,FALSE)","v":61.033999999999999}]
["Martinique",{"$f":"VLOOKUP($A159,F1__World_Data!$A$4:$DP$191,60,FALSE)","v":375.67200000000003},{"$f":"VLOOKUP($A159,F1__World_Data!$A$4:$DP$191,59,FALSE)","v":375.94600000000003},{"$f":"VLOOKUP($A159,F1__World_Data!$A$4:$DP$191,58,FALSE)","v":376.78899999999999},{"$f":"VLOOKUP($A159,F1__World_Data!$A$4:$DP$191,57,FALSE)","v":378.483},{"$f":"VLOOKUP($A159,F1__World_Data!$A$4:$DP$191,56,FALSE)","v":381.142},{"$f":"VLOOKUP($A159,F1__World_Data!$A$4:$DP$191,55,FALSE)","v":384.58100000000002},{"$f":"VLOOKUP($A159,F1__World_Data!$A$4:$DP$191,54,FALSE)","v":388.36599999999999},{"$f":"VLOOKUP($A159,F1__World_Data!$A$4:$DP$191,53,FALSE)","v":391.88600000000002},{"$f":"VLOOKUP($A159,F1__World_Data!$A$4:$DP$191,52,FALSE)","v":394.666},{"$f":"VLOOKUP($A159,F1__World_Data!$A$4:$DP$191,51,FALSE)","v":396.56099999999998},{"$f":"VLOOKUP($A159,F1__World_Data!$A$4:$DP$191,50,FALSE)","v":397.66399999999999},{"$f":"VLOOKUP($A159,F1__World_Data!$A$4:$DP$191,49,FALSE)","v":398.048},{"$f":"VLOOKUP($A159,F1__World_Data!$A$4:$DP$191,48,FALSE)","v":397.85},{"$f":"VLOOKUP($A159,F1__World_Data!$A$4:$DP$191,47,FALSE)","v":397.19099999999997},{"$f":"VLOOKUP($A159,F1__World_Data!$A$4:$DP$191,46,FALSE)","v":396.10599999999999},{"$f":"VLOOKUP($A159,F1__World_Data!$A$4:$DP$191,45,FALSE)","v":394.53399999999999},{"$f":"VLOOKUP($A159,F1__World_Data!$A$4:$DP$191,44,FALSE)","v":392.5},{"$f":"VLOOKUP($A159,F1__World_Data!$A$4:$DP$191,43,FALSE)","v":389.98399999999998},{"$f":"VLOOKUP($A159,F1__World_Data!$A$4:$DP$191,42,FALSE)","v":387.01600000000002},{"$f":"VLOOKUP($A159,F1__World_Data!$A$4:$DP$191,41,FALSE)","v":383.52699999999999},{"$f":"VLOOKUP($A159,F1__World_Data!$A$4:$DP$191,40,FALSE)","v":379.63900000000001},{"$f":"VLOOKUP($A159,F1__World_Data!$A$4:$DP$191,39,FALSE)","v":375.64},{"$f":"VLOOKUP($A159,F1__World_Data!$A$4:$DP$191,38,FALSE)","v":371.91300000000001},{"$f":"VLOOKUP($A159,F1__World_Data!$A$4:$DP$191,37,FALSE)","v":368.72800000000001},{"$f":"VLOOKUP($A159,F1__World_Data!$A$4:$DP$191,36,FALSE)","v":366.25400000000002},{"$f":"VLOOKUP($A159,F1__World_Data!$A$4:$DP$191,35,FALSE)","v":364.37400000000002},{"$f":"VLOOKUP($A159,F1__World_Data!$A$4:$DP$191,34,FALSE)","v":362.75599999999997},{"$f":"VLOOKUP($A159,F1__World_Data!$A$4:$DP$191,33,FALSE)","v":360.892},{"$f":"VLOOKUP($A159,F1__World_Data!$A$4:$DP$191,32,FALSE)","v":358.45699999999999},{"$f":"VLOOKUP($A159,F1__World_Data!$A$4:$DP$191,31,FALSE)","v":355.34},{"$f":"VLOOKUP($A159,F1__World_Data!$A$4:$DP$191,30,FALSE)","v":351.70800000000003},{"$f":"VLOOKUP($A159,F1__World_Data!$A$4:$DP$191,29,FALSE)","v":347.75400000000002},{"$f":"VLOOKUP($A159,F1__World_Data!$A$4:$DP$191,28,FALSE)","v":343.74400000000003},{"$f":"VLOOKUP($A159,F1__World_Data!$A$4:$DP$191,27,FALSE)","v":339.88099999999997},{"$f":"VLOOKUP($A159,F1__World_Data!$A$4:$DP$191,26,FALSE)","v":336.166},{"$f":"VLOOKUP($A159,F1__World_Data!$A$4:$DP$191,25,FALSE)","v":332.601},{"$f":"VLOOKUP($A159,F1__World_Data!$A$4:$DP$191,24,FALSE)","v":329.45100000000002},{"$f":"VLOOKUP($A159,F1__World_Data!$A$4:$DP$191,23,FALSE)","v":326.98700000000002},{"$f":"VLOOKUP($A159,F1__World_Data!$A$4:$DP$191,22,FALSE)","v":325.44799999999998},{"$f":"VLOOKUP($A159,F1__World_Data!$A$4:$DP$191,21,FALSE)","v":324.92899999999997},{"$f":"VLOOKUP($A159,F1__World_Data!$A$4:$DP$191,20,FALSE)","v":325.29599999999999},{"$f":"VLOOKUP($A159,F1__World_Data!$A$4:$DP$191,19,FALSE)","v":326.2},{"$f":"VLOOKUP($A159,F1__World_Data!$A$4:$DP$191,18,FALSE)","v":327.17599999999999},{"$f":"VLOOKUP($A159,F1__World_Data!$A$4:$DP$191,17,FALSE)","v":327.83699999999999},{"$f":"VLOOKUP($A159,F1__World_Data!$A$4:$DP$191,16,FALSE)","v":328.07299999999998},{"$f":"VLOOKUP($A159,F1__World_Data!$A$4:$DP$191,15,FALSE)","v":327.88299999999998},{"$f":"VLOOKUP($A159,F1__World_Data!$A$4:$DP$191,14,FALSE)","v":327.30099999999999},{"$f":"VLOOKUP($A159,F1__World_Data!$A$4:$DP$191,13,FALSE)","v":326.32799999999997},{"$f":"VLOOKUP($A159,F1__World_Data!$A$4:$DP$191,12,FALSE)","v":325.01400000000001},{"$f":"VLOOKUP($A159,F1__World_Data!$A$4:$DP$191,11,FALSE)","v":323.31700000000001},{"$f":"VLOOKUP($A159,F1__World_Data!$A$4:$DP$191,10,FALSE)","v":321.17399999999998},{"$f":"VLOOKUP($A159,F1__World_Data!$A$4:$DP$191,9,FALSE)","v":318.50099999999998},{"$f":"VLOOKUP($A159,F1__World_Data!$A$4:$DP$191,8,FALSE)","v":315.17200000000003},{"$f":"VLOOKUP($A159,F1__World_Data!$A$4:$DP$191,7,FALSE)","v":311.12200000000001},{"$f":"VLOOKUP($A159,F1__World_Data!$A$4:$DP$191,6,FALSE)","v":306.36099999999999},{"$f":"VLOOKUP($A159,F1__World_Data!$A$4:$DP$191,5,FALSE)","v":300.95100000000002},{"$f":"VLOOKUP($A159,F1__World_Data!$A$4:$DP$191,4,FALSE)","v":294.95699999999999},{"$f":"VLOOKUP($A159,F1__World_Data!$A$4:$DP$191,3,FALSE)","v":288.47800000000001},{"$f":"VLOOKUP($A159,F1__World_Data!$A$4:$DP$191,2,FALSE)","v":281.62599999999998},null,{"$f":"VLOOKUP($A159,F1__World_Data!$A$4:$DP$191,120,FALSE)","v":68.116},{"$f":"VLOOKUP($A159,F1__World_Data!$A$4:$DP$191,119,FALSE)","v":67.850999999999999},{"$f":"VLOOKUP($A159,F1__World_Data!$A$4:$DP$191,118,FALSE)","v":67.576999999999998},{"$f":"VLOOKUP($A159,F1__World_Data!$A$4:$DP$191,117,FALSE)","v":67.290999999999997},{"$f":"VLOOKUP($A159,F1__World_Data!$A$4:$DP$191,116,FALSE)","v":66.995000000000005},{"$f":"VLOOKUP($A159,F1__World_Data!$A$4:$DP$191,115,FALSE)","v":66.69},{"$f":"VLOOKUP($A159,F1__World_Data!$A$4:$DP$191,114,FALSE)","v":66.381},{"$f":"VLOOKUP($A159,F1__World_Data!$A$4:$DP$191,113,FALSE)","v":66.072000000000003},{"$f":"VLOOKUP($A159,F1__World_Data!$A$4:$DP$191,112,FALSE)","v":65.769000000000005},{"$f":"VLOOKUP($A159,F1__World_Data!$A$4:$DP$191,111,FALSE)","v":65.48},{"$f":"VLOOKUP($A159,F1__World_Data!$A$4:$DP$191,110,FALSE)","v":65.207999999999998},{"$f":"VLOOKUP($A159,F1__World_Data!$A$4:$DP$191,109,FALSE)","v":64.953000000000003},{"$f":"VLOOKUP($A159,F1__World_Data!$A$4:$DP$191,108,FALSE)","v":64.712000000000003},{"$f":"VLOOKUP($A159,F1__World_Data!$A$4:$DP$191,107,FALSE)","v":64.477999999999994},{"$f":"VLOOKUP($A159,F1__World_Data!$A$4:$DP$191,106,FALSE)","v":64.242000000000004},{"$f":"VLOOKUP($A159,F1__World_Data!$A$4:$DP$191,105,FALSE)","v":63.994999999999997},{"$f":"VLOOKUP($A159,F1__World_Data!$A$4:$DP$191,104,FALSE)","v":63.731000000000002},{"$f":"VLOOKUP($A159,F1__World_Data!$A$4:$DP$191,103,FALSE)","v":63.445999999999998},{"$f":"VLOOKUP($A159,F1__World_Data!$A$4:$DP$191,102,FALSE)","v":63.143999999999998},{"$f":"VLOOKUP($A159,F1__World_Data!$A$4:$DP$191,101,FALSE)","v":62.829000000000001},{"$f":"VLOOKUP($A159,F1__World_Data!$A$4:$DP$191,100,FALSE)","v":62.509},{"$f":"VLOOKUP($A159,F1__World_Data!$A$4:$DP$191,99,FALSE)","v":62.188000000000002},{"$f":"VLOOKUP($A159,F1__World_Data!$A$4:$DP$191,98,FALSE)","v":61.866},{"$f":"VLOOKUP($A159,F1__World_Data!$A$4:$DP$191,97,FALSE)","v":61.539000000000001},{"$f":"VLOOKUP($A159,F1__World_Data!$A$4:$DP$191,96,FALSE)","v":61.198},{"$f":"VLOOKUP($A159,F1__World_Data!$A$4:$DP$191,95,FALSE)","v":60.837000000000003},{"$f":"VLOOKUP($A159,F1__World_Data!$A$4:$DP$191,94,FALSE)","v":60.454999999999998},{"$f":"VLOOKUP($A159,F1__World_Data!$A$4:$DP$191,93,FALSE)","v":60.052999999999997},{"$f":"VLOOKUP($A159,F1__World_Data!$A$4:$DP$191,92,FALSE)","v":59.636000000000003},{"$f":"VLOOKUP($A159,F1__World_Data!$A$4:$DP$191,91,FALSE)","v":59.209000000000003},{"$f":"VLOOKUP($A159,F1__World_Data!$A$4:$DP$191,90,FALSE)","v":58.783000000000001},{"$f":"VLOOKUP($A159,F1__World_Data!$A$4:$DP$191,89,FALSE)","v":58.366},{"$f":"VLOOKUP($A159,F1__World_Data!$A$4:$DP$191,88,FALSE)","v":57.962000000000003},{"$f":"VLOOKUP($A159,F1__World_Data!$A$4:$DP$191,87,FALSE)","v":57.579000000000001},{"$f":"VLOOKUP($A159,F1__World_Data!$A$4:$DP$191,86,FALSE)","v":57.220999999999997},{"$f":"VLOOKUP($A159,F1__World_Data!$A$4:$DP$191,85,FALSE)","v":56.886000000000003},{"$f":"VLOOKUP($A159,F1__World_Data!$A$4:$DP$191,84,FALSE)","v":56.569000000000003},{"$f":"VLOOKUP($A159,F1__World_Data!$A$4:$DP$191,83,FALSE)","v":56.265999999999998},{"$f":"VLOOKUP($A159,F1__World_Data!$A$4:$DP$191,82,FALSE)","v":55.970999999999997},{"$f":"VLOOKUP($A159,F1__World_Data!$A$4:$DP$191,81,FALSE)","v":55.679000000000002},{"$f":"VLOOKUP($A159,F1__World_Data!$A$4:$DP$191,80,FALSE)","v":55.381999999999998},{"$f":"VLOOKUP($A159,F1__World_Data!$A$4:$DP$191,79,FALSE)","v":55.073999999999998},{"$f":"VLOOKUP($A159,F1__World_Data!$A$4:$DP$191,78,FALSE)","v":54.747999999999998},{"$f":"VLOOKUP($A159,F1__World_Data!$A$4:$DP$191,77,FALSE)","v":54.399000000000001},{"$f":"VLOOKUP($A159,F1__World_Data!$A$4:$DP$191,76,FALSE)","v":54.027000000000001},{"$f":"VLOOKUP($A159,F1__World_Data!$A$4:$DP$191,75,FALSE)","v":53.633000000000003},{"$f":"VLOOKUP($A159,F1__World_Data!$A$4:$DP$191,74,FALSE)","v":53.218000000000004},{"$f":"VLOOKUP($A159,F1__World_Data!$A$4:$DP$191,73,FALSE)","v":52.781999999999996},{"$f":"VLOOKUP($A159,F1__World_Data!$A$4:$DP$191,72,FALSE)","v":52.323},{"$f":"VLOOKUP($A159,F1__World_Data!$A$4:$DP$191,71,FALSE)","v":51.837000000000003},{"$f":"VLOOKUP($A159,F1__World_Data!$A$4:$DP$191,70,FALSE)","v":51.326999999999998},{"$f":"VLOOKUP($A159,F1__World_Data!$A$4:$DP$191,69,FALSE)","v":50.795999999999999},{"$f":"VLOOKUP($A159,F1__World_Data!$A$4:$DP$191,68,FALSE)","v":50.25},{"$f":"VLOOKUP($A159,F1__World_Data!$A$4:$DP$191,67,FALSE)","v":49.697000000000003},{"$f":"VLOOKUP($A159,F1__World_Data!$A$4:$DP$191,66,FALSE)","v":49.145000000000003},{"$f":"VLOOKUP($A159,F1__World_Data!$A$4:$DP$191,65,FALSE)","v":48.600999999999999},{"$f":"VLOOKUP($A159,F1__World_Data!$A$4:$DP$191,64,FALSE)","v":48.070999999999998},{"$f":"VLOOKUP($A159,F1__World_Data!$A$4:$DP$191,63,FALSE)","v":47.557000000000002},{"$f":"VLOOKUP($A159,F1__World_Data!$A$4:$DP$191,62,FALSE)","v":47.061}]
["Iceland",{"$f":"VLOOKUP($A160,F1__World_Data!$A$4:$DP$191,60,FALSE)","v":336.71199999999999},{"$f":"VLOOKUP($A160,F1__World_Data!$A$4:$DP$191,59,FALSE)","v":334.39499999999998},{"$f":"VLOOKUP($A160,F1__World_Data!$A$4:$DP$191,58,FALSE)","v":332.209},{"$f":"VLOOKUP($A160,F1__World_Data!$A$4:$DP$191,57,FALSE)","v":330.23700000000002},{"$f":"VLOOKUP($A160,F1__World_Data!$A$4:$DP$191,56,FALSE)","v":328.59199999999998},{"$f":"VLOOKUP($A160,F1__World_Data!$A$4:$DP$191,55,FALSE)","v":327.19400000000002},{"$f":"VLOOKUP($A160,F1__World_Data!$A$4:$DP$191,54,FALSE)","v":325.642},{"$f":"VLOOKUP($A160,F1__World_Data!$A$4:$DP$191,53,FALSE)","v":323.471},{"$f":"VLOOKUP($A160,F1__World_Data!$A$4:$DP$191,52,FALSE)","v":320.34199999999998},{"$f":"VLOOKUP($A160,F1__World_Data!$A$4:$DP$191,51,FALSE)","v":316.05700000000002},{"$f":"VLOOKUP($A160,F1__World_Data!$A$4:$DP$191,50,FALSE)","v":310.85500000000002},{"$f":"VLOOKUP($A160,F1__World_Data!$A$4:$DP$191,49,FALSE)","v":305.18099999999998},{"$f":"VLOOKUP($A160,F1__World_Data!$A$4:$DP$191,48,FALSE)","v":299.72699999999998},{"$f":"VLOOKUP($A160,F1__World_Data!$A$4:$DP$191,47,FALSE)","v":294.976},{"$f":"VLOOKUP($A160,F1__World_Data!$A$4:$DP$191,46,FALSE)","v":291.10199999999998},{"$f":"VLOOKUP($A160,F1__World_Data!$A$4:$DP$191,45,FALSE)","v":287.95499999999998},{"$f":"VLOOKUP($A160,F1__World_Data!$A$4:$DP$191,44,FALSE)","v":285.32900000000001},{"$f":"VLOOKUP($A160,F1__World_Data!$A$4:$DP$191,43,FALSE)","v":282.91000000000003},{"$f":"VLOOKUP($A160,F1__World_Data!$A$4:$DP$191,42,FALSE)","v":280.43900000000002},{"$f":"VLOOKUP($A160,F1__World_Data!$A$4:$DP$191,41,FALSE)","v":277.86799999999999},{"$f":"VLOOKUP($A160,F1__World_Data!$A$4:$DP$191,40,FALSE)","v":275.29399999999998},{"$f":"VLOOKUP($A160,F1__World_Data!$A$4:$DP$191,39,FALSE)","v":272.709},{"$f":"VLOOKUP($A160,F1__World_Data!$A$4:$DP$191,38,FALSE)","v":270.14400000000001},{"$f":"VLOOKUP($A160,F1__World_Data!$A$4:$DP$191,37,FALSE)","v":267.62700000000001},{"$f":"VLOOKUP($A160,F1__World_Data!$A$4:$DP$191,36,FALSE)","v":265.14},{"$f":"VLOOKUP($A160,F1__World_Data!$A$4:$DP$191,35,FALSE)","v":262.64999999999998},{"$f":"VLOOKUP($A160,F1__World_Data!$A$4:$DP$191,34,FALSE)","v":260.15499999999997},{"$f":"VLOOKUP($A160,F1__World_Data!$A$4:$DP$191,33,FALSE)","v":257.61599999999999},{"$f":"VLOOKUP($A160,F1__World_Data!$A$4:$DP$191,32,FALSE)","v":255.04400000000001},{"$f":"VLOOKUP($A160,F1__World_Data!$A$4:$DP$191,31,FALSE)","v":252.42400000000001},{"$f":"VLOOKUP($A160,F1__World_Data!$A$4:$DP$191,30,FALSE)","v":249.755},{"$f":"VLOOKUP($A160,F1__World_Data!$A$4:$DP$191,29,FALSE)","v":247.05699999999999},{"$f":"VLOOKUP($A160,F1__World_Data!$A$4:$DP$191,28,FALSE)","v":244.33500000000001},{"$f":"VLOOKUP($A160,F1__World_Data!$A$4:$DP$191,27,FALSE)","v":241.58699999999999},{"$f":"VLOOKUP($A160,F1__World_Data!$A$4:$DP$191,26,FALSE)","v":238.81800000000001},{"$f":"VLOOKUP($A160,F1__World_Data!$A$4:$DP$191,25,FALSE)","v":236.02099999999999},{"$f":"VLOOKUP($A160,F1__World_Data!$A$4:$DP$191,24,FALSE)","v":233.273},{"$f":"VLOOKUP($A160,F1__World_Data!$A$4:$DP$191,23,FALSE)","v":230.66499999999999},{"$f":"VLOOKUP($A160,F1__World_Data!$A$4:$DP$191,22,FALSE)","v":228.256},{"$f":"VLOOKUP($A160,F1__World_Data!$A$4:$DP$191,21,FALSE)","v":226.10400000000001},{"$f":"VLOOKUP($A160,F1__World_Data!$A$4:$DP$191,20,FALSE)","v":224.14599999999999},{"$f":"VLOOKUP($A160,F1__World_Data!$A$4:$DP$191,19,FALSE)","v":222.267},{"$f":"VLOOKUP($A160,F1__World_Data!$A$4:$DP$191,18,FALSE)","v":220.27600000000001},{"$f":"VLOOKUP($A160,F1__World_Data!$A$4:$DP$191,17,FALSE)","v":218.07900000000001},{"$f":"VLOOKUP($A160,F1__World_Data!$A$4:$DP$191,16,FALSE)","v":215.56800000000001},{"$f":"VLOOKUP($A160,F1__World_Data!$A$4:$DP$191,15,FALSE)","v":212.803},{"$f":"VLOOKUP($A160,F1__World_Data!$A$4:$DP$191,14,FALSE)","v":209.928},{"$f":"VLOOKUP($A160,F1__World_Data!$A$4:$DP$191,13,FALSE)","v":207.095},{"$f":"VLOOKUP($A160,F1__World_Data!$A$4:$DP$191,12,FALSE)","v":204.423},{"$f":"VLOOKUP($A160,F1__World_Data!$A$4:$DP$191,11,FALSE)","v":201.971},{"$f":"VLOOKUP($A160,F1__World_Data!$A$4:$DP$191,10,FALSE)","v":199.66900000000001},{"$f":"VLOOKUP($A160,F1__World_Data!$A$4:$DP$191,9,FALSE)","v":197.405},{"$f":"VLOOKUP($A160,F1__World_Data!$A$4:$DP$191,8,FALSE)","v":194.99100000000001},{"$f":"VLOOKUP($A160,F1__World_Data!$A$4:$DP$191,7,FALSE)","v":192.315},{"$f":"VLOOKUP($A160,F1__World_Data!$A$4:$DP$191,6,FALSE)","v":189.345},{"$f":"VLOOKUP($A160,F1__World_Data!$A$4:$DP$191,5,FALSE)","v":186.13},{"$f":"VLOOKUP($A160,F1__World_Data!$A$4:$DP$191,4,FALSE)","v":182.71100000000001},{"$f":"VLOOKUP($A160,F1__World_Data!$A$4:$DP$191,3,FALSE)","v":179.18299999999999},{"$f":"VLOOKUP($A160,F1__World_Data!$A$4:$DP$191,2,FALSE)","v":175.584},null,{"$f":"VLOOKUP($A160,F1__World_Data!$A$4:$DP$191,120,FALSE)","v":73.40911767184997},{"$f":"VLOOKUP($A160,F1__World_Data!$A$4:$DP$191,119,FALSE)","v":73.203472287269165},{"$f":"VLOOKUP($A160,F1__World_Data!$A$4:$DP$191,118,FALSE)","v":72.957944617422285},{"$f":"VLOOKUP($A160,F1__World_Data!$A$4:$DP$191,117,FALSE)","v":72.699449119611415},{"$f":"VLOOKUP($A160,F1__World_Data!$A$4:$DP$191,116,FALSE)","v":72.431032469549294},{"$f":"VLOOKUP($A160,F1__World_Data!$A$4:$DP$191,115,FALSE)","v":72.144620047386965},{"$f":"VLOOKUP($A160,F1__World_Data!$A$4:$DP$191,114,FALSE)","v":71.830693399518722},{"$f":"VLOOKUP($A160,F1__World_Data!$A$4:$DP$191,113,FALSE)","v":71.51371274601118},{"$f":"VLOOKUP($A160,F1__World_Data!$A$4:$DP$191,112,FALSE)","v":71.164322990066481},{"$f":"VLOOKUP($A160,F1__World_Data!$A$4:$DP$191,111,FALSE)","v":70.836199018587592},{"$f":"VLOOKUP($A160,F1__World_Data!$A$4:$DP$191,110,FALSE)","v":70.486809438134571},{"$f":"VLOOKUP($A160,F1__World_Data!$A$4:$DP$191,109,FALSE)","v":70.167983224829172},{"$f":"VLOOKUP($A160,F1__World_Data!$A$4:$DP$191,108,FALSE)","v":69.836896925915624},{"$f":"VLOOKUP($A160,F1__World_Data!$A$4:$DP$191,107,FALSE)","v":69.49956509565871},{"$f":"VLOOKUP($A160,F1__World_Data!$A$4:$DP$191,106,FALSE)","v":69.213114915545717},{"$f":"VLOOKUP($A160,F1__World_Data!$A$4:$DP$191,105,FALSE)","v":68.909933389966895},{"$f":"VLOOKUP($A160,F1__World_Data!$A$4:$DP$191,104,FALSE)","v":68.627536305369716},{"$f":"VLOOKUP($A160,F1__World_Data!$A$4:$DP$191,103,FALSE)","v":68.346417227589782},{"$f":"VLOOKUP($A160,F1__World_Data!$A$4:$DP$191,102,FALSE)","v":68.056937512403024},{"$f":"VLOOKUP($A160,F1__World_Data!$A$4:$DP$191,101,FALSE)","v":67.773624276941291},{"$f":"VLOOKUP($A160,F1__World_Data!$A$4:$DP$191,100,FALSE)","v":67.524560980252886},{"$f":"VLOOKUP($A160,F1__World_Data!$A$4:$DP$191,99,FALSE)","v":67.216499197133459},{"$f":"VLOOKUP($A160,F1__World_Data!$A$4:$DP$191,98,FALSE)","v":66.878154004424871},{"$f":"VLOOKUP($A160,F1__World_Data!$A$4:$DP$191,97,FALSE)","v":66.548298096581249},{"$f":"VLOOKUP($A160,F1__World_Data!$A$4:$DP$191,96,FALSE)","v":66.274244687610306},{"$f":"VLOOKUP($A160,F1__World_Data!$A$4:$DP$191,95,FALSE)","v":66.032309993609331},{"$f":"VLOOKUP($A160,F1__World_Data!$A$4:$DP$191,94,FALSE)","v":65.855280176452453},{"$f":"VLOOKUP($A160,F1__World_Data!$A$4:$DP$191,93,FALSE)","v":65.674756908067891},{"$f":"VLOOKUP($A160,F1__World_Data!$A$4:$DP$191,92,FALSE)","v":65.431012817564323},{"$f":"VLOOKUP($A160,F1__World_Data!$A$4:$DP$191,91,FALSE)","v":65.183125951786437},{"$f":"VLOOKUP($A160,F1__World_Data!$A$4:$DP$191,90,FALSE)","v":64.92607995117524},{"$f":"VLOOKUP($A160,F1__World_Data!$A$4:$DP$191,89,FALSE)","v":64.639777957990447},{"$f":"VLOOKUP($A160,F1__World_Data!$A$4:$DP$191,88,FALSE)","v":64.34041528803931},{"$f":"VLOOKUP($A160,F1__World_Data!$A$4:$DP$191,87,FALSE)","v":63.965368511689171},{"$f":"VLOOKUP($A160,F1__World_Data!$A$4:$DP$191,86,FALSE)","v":63.633030654695546},{"$f":"VLOOKUP($A160,F1__World_Data!$A$4:$DP$191,85,FALSE)","v":63.343742286190761},{"$f":"VLOOKUP($A160,F1__World_Data!$A$4:$DP$191,84,FALSE)","v":63.027935251296917},{"$f":"VLOOKUP($A160,F1__World_Data!$A$4:$DP$191,83,FALSE)","v":62.668823521039059},{"$f":"VLOOKUP($A160,F1__World_Data!$A$4:$DP$191,82,FALSE)","v":62.291628018719699},{"$f":"VLOOKUP($A160,F1__World_Data!$A$4:$DP$191,81,FALSE)","v":61.914536986747926},{"$f":"VLOOKUP($A160,F1__World_Data!$A$4:$DP$191,80,FALSE)","v":61.5093240884895},{"$f":"VLOOKUP($A160,F1__World_Data!$A$4:$DP$191,79,FALSE)","v":61.056522849147008},{"$f":"VLOOKUP($A160,F1__World_Data!$A$4:$DP$191,78,FALSE)","v":60.572526940899337},{"$f":"VLOOKUP($A160,F1__World_Data!$A$4:$DP$191,77,FALSE)","v":60.048956320642681},{"$f":"VLOOKUP($A160,F1__World_Data!$A$4:$DP$191,76,FALSE)","v":59.524821035781372},{"$f":"VLOOKUP($A160,F1__World_Data!$A$4:$DP$191,75,FALSE)","v":58.928597841365324},{"$f":"VLOOKUP($A160,F1__World_Data!$A$4:$DP$191,74,FALSE)","v":58.315059191181803},{"$f":"VLOOKUP($A160,F1__World_Data!$A$4:$DP$191,73,FALSE)","v":57.66903214581265},{"$f":"VLOOKUP($A160,F1__World_Data!$A$4:$DP$191,72,FALSE)","v":56.968396618621938},{"$f":"VLOOKUP($A160,F1__World_Data!$A$4:$DP$191,71,FALSE)","v":56.17507228064337},{"$f":"VLOOKUP($A160,F1__World_Data!$A$4:$DP$191,70,FALSE)","v":55.320108583820264},{"$f":"VLOOKUP($A160,F1__World_Data!$A$4:$DP$191,69,FALSE)","v":54.358382413051885},{"$f":"VLOOKUP($A160,F1__World_Data!$A$4:$DP$191,68,FALSE)","v":53.363094483736056},{"$f":"VLOOKUP($A160,F1__World_Data!$A$4:$DP$191,67,FALSE)","v":52.352003627325338},{"$f":"VLOOKUP($A160,F1__World_Data!$A$4:$DP$191,66,FALSE)","v":51.381714326724392},{"$f":"VLOOKUP($A160,F1__World_Data!$A$4:$DP$191,65,FALSE)","v":50.518182905217984},{"$f":"VLOOKUP($A160,F1__World_Data!$A$4:$DP$191,64,FALSE)","v":49.78029533000656},{"$f":"VLOOKUP($A160,F1__World_Data!$A$4:$DP$191,63,FALSE)","v":49.181788525936767},{"$f":"VLOOKUP($A160,F1__World_Data!$A$4:$DP$191,62,FALSE)","v":48.661984003592025}]
["Vanuatu",{"$f":"VLOOKUP($A161,F1__World_Data!$A$4:$DP$191,60,FALSE)","v":292.67500000000001},{"$f":"VLOOKUP($A161,F1__World_Data!$A$4:$DP$191,59,FALSE)","v":285.49900000000002},{"$f":"VLOOKUP($A161,F1__World_Data!$A$4:$DP$191,58,FALSE)","v":278.32600000000002},{"$f":"VLOOKUP($A161,F1__World_Data!$A$4:$DP$191,57,FALSE)","v":271.12799999999999},{"$f":"VLOOKUP($A161,F1__World_Data!$A$4:$DP$191,56,FALSE)","v":263.88799999999998},{"$f":"VLOOKUP($A161,F1__World_Data!$A$4:$DP$191,55,FALSE)","v":256.637},{"$f":"VLOOKUP($A161,F1__World_Data!$A$4:$DP$191,54,FALSE)","v":249.505},{"$f":"VLOOKUP($A161,F1__World_Data!$A$4:$DP$191,53,FALSE)","v":242.65799999999999},{"$f":"VLOOKUP($A161,F1__World_Data!$A$4:$DP$191,52,FALSE)","v":236.21600000000001},{"$f":"VLOOKUP($A161,F1__World_Data!$A$4:$DP$191,51,FALSE)","v":230.244},{"$f":"VLOOKUP($A161,F1__World_Data!$A$4:$DP$191,50,FALSE)","v":224.7},{"$f":"VLOOKUP($A161,F1__World_Data!$A$4:$DP$191,49,FALSE)","v":219.464},{"$f":"VLOOKUP($A161,F1__World_Data!$A$4:$DP$191,48,FALSE)","v":214.37899999999999},{"$f":"VLOOKUP($A161,F1__World_Data!$A$4:$DP$191,47,FALSE)","v":209.28200000000001},{"$f":"VLOOKUP($A161,F1__World_Data!$A$4:$DP$191,46,FALSE)","v":204.12299999999999},{"$f":"VLOOKUP($A161,F1__World_Data!$A$4:$DP$191,45,FALSE)","v":198.96},{"$f":"VLOOKUP($A161,F1__World_Data!$A$4:$DP$191,44,FALSE)","v":193.92699999999999},{"$f":"VLOOKUP($A161,F1__World_Data!$A$4:$DP$191,43,FALSE)","v":189.209},{"$f":"VLOOKUP($A161,F1__World_Data!$A$4:$DP$191,42,FALSE)","v":184.964},{"$f":"VLOOKUP($A161,F1__World_Data!$A$4:$DP$191,41,FALSE)","v":181.25899999999999},{"$f":"VLOOKUP($A161,F1__World_Data!$A$4:$DP$191,40,FALSE)","v":177.98699999999999},{"$f":"VLOOKUP($A161,F1__World_Data!$A$4:$DP$191,39,FALSE)","v":174.917},{"$f":"VLOOKUP($A161,F1__World_Data!$A$4:$DP$191,38,FALSE)","v":171.721},{"$f":"VLOOKUP($A161,F1__World_Data!$A$4:$DP$191,37,FALSE)","v":168.161},{"$f":"VLOOKUP($A161,F1__World_Data!$A$4:$DP$191,36,FALSE)","v":164.12799999999999},{"$f":"VLOOKUP($A161,F1__World_Data!$A$4:$DP$191,35,FALSE)","v":159.74299999999999},{"$f":"VLOOKUP($A161,F1__World_Data!$A$4:$DP$191,34,FALSE)","v":155.17599999999999},{"$f":"VLOOKUP($A161,F1__World_Data!$A$4:$DP$191,33,FALSE)","v":150.71799999999999},{"$f":"VLOOKUP($A161,F1__World_Data!$A$4:$DP$191,32,FALSE)","v":146.57499999999999},{"$f":"VLOOKUP($A161,F1__World_Data!$A$4:$DP$191,31,FALSE)","v":142.80099999999999},{"$f":"VLOOKUP($A161,F1__World_Data!$A$4:$DP$191,30,FALSE)","v":139.31899999999999},{"$f":"VLOOKUP($A161,F1__World_Data!$A$4:$DP$191,29,FALSE)","v":136.07499999999999},{"$f":"VLOOKUP($A161,F1__World_Data!$A$4:$DP$191,28,FALSE)","v":132.988},{"$f":"VLOOKUP($A161,F1__World_Data!$A$4:$DP$191,27,FALSE)","v":129.989},{"$f":"VLOOKUP($A161,F1__World_Data!$A$4:$DP$191,26,FALSE)","v":127.05800000000001},{"$f":"VLOOKUP($A161,F1__World_Data!$A$4:$DP$191,25,FALSE)","v":124.21299999999999},{"$f":"VLOOKUP($A161,F1__World_Data!$A$4:$DP$191,24,FALSE)","v":121.398},{"$f":"VLOOKUP($A161,F1__World_Data!$A$4:$DP$191,23,FALSE)","v":118.54600000000001},{"$f":"VLOOKUP($A161,F1__World_Data!$A$4:$DP$191,22,FALSE)","v":115.598},{"$f":"VLOOKUP($A161,F1__World_Data!$A$4:$DP$191,21,FALSE)","v":112.54300000000001},{"$f":"VLOOKUP($A161,F1__World_Data!$A$4:$DP$191,20,FALSE)","v":109.39700000000001},{"$f":"VLOOKUP($A161,F1__World_Data!$A$4:$DP$191,19,FALSE)","v":106.206},{"$f":"VLOOKUP($A161,F1__World_Data!$A$4:$DP$191,18,FALSE)","v":103.002},{"$f":"VLOOKUP($A161,F1__World_Data!$A$4:$DP$191,17,FALSE)","v":99.863},{"$f":"VLOOKUP($A161,F1__World_Data!$A$4:$DP$191,16,FALSE)","v":96.772999999999996},{"$f":"VLOOKUP($A161,F1__World_Data!$A$4:$DP$191,15,FALSE)","v":93.748999999999995},{"$f":"VLOOKUP($A161,F1__World_Data!$A$4:$DP$191,14,FALSE)","v":90.802000000000007},{"$f":"VLOOKUP($A161,F1__World_Data!$A$4:$DP$191,13,FALSE)","v":88.012},{"$f":"VLOOKUP($A161,F1__World_Data!$A$4:$DP$191,12,FALSE)","v":85.373999999999995},{"$f":"VLOOKUP($A161,F1__World_Data!$A$4:$DP$191,11,FALSE)","v":82.92},{"$f":"VLOOKUP($A161,F1__World_Data!$A$4:$DP$191,10,FALSE)","v":80.653000000000006},{"$f":"VLOOKUP($A161,F1__World_Data!$A$4:$DP$191,9,FALSE)","v":78.504999999999995},{"$f":"VLOOKUP($A161,F1__World_Data!$A$4:$DP$191,8,FALSE)","v":76.391999999999996},{"$f":"VLOOKUP($A161,F1__World_Data!$A$4:$DP$191,7,FALSE)","v":74.268000000000001},{"$f":"VLOOKUP($A161,F1__World_Data!$A$4:$DP$191,6,FALSE)","v":72.116},{"$f":"VLOOKUP($A161,F1__World_Data!$A$4:$DP$191,5,FALSE)","v":69.944000000000003},{"$f":"VLOOKUP($A161,F1__World_Data!$A$4:$DP$191,4,FALSE)","v":67.793000000000006},{"$f":"VLOOKUP($A161,F1__World_Data!$A$4:$DP$191,3,FALSE)","v":65.7},{"$f":"VLOOKUP($A161,F1__World_Data!$A$4:$DP$191,2,FALSE)","v":63.689},null,{"$f":"VLOOKUP($A161,F1__World_Data!$A$4:$DP$191,120,FALSE)","v":63.856999999999999},{"$f":"VLOOKUP($A161,F1__World_Data!$A$4:$DP$191,119,FALSE)","v":63.537999999999997},{"$f":"VLOOKUP($A161,F1__World_Data!$A$4:$DP$191,118,FALSE)","v":63.152999999999999},{"$f":"VLOOKUP($A161,F1__World_Data!$A$4:$DP$191,117,FALSE)","v":62.649000000000001},{"$f":"VLOOKUP($A161,F1__World_Data!$A$4:$DP$191,116,FALSE)","v":61.968000000000004},{"$f":"VLOOKUP($A161,F1__World_Data!$A$4:$DP$191,115,FALSE)","v":61.098999999999997},{"$f":"VLOOKUP($A161,F1__World_Data!$A$4:$DP$191,114,FALSE)","v":60.06},{"$f":"VLOOKUP($A161,F1__World_Data!$A$4:$DP$191,113,FALSE)","v":58.895000000000003},{"$f":"VLOOKUP($A161,F1__World_Data!$A$4:$DP$191,112,FALSE)","v":57.668999999999997},{"$f":"VLOOKUP($A161,F1__World_Data!$A$4:$DP$191,111,FALSE)","v":56.46},{"$f":"VLOOKUP($A161,F1__World_Data!$A$4:$DP$191,110,FALSE)","v":55.36},{"$f":"VLOOKUP($A161,F1__World_Data!$A$4:$DP$191,109,FALSE)","v":54.451999999999998},{"$f":"VLOOKUP($A161,F1__World_Data!$A$4:$DP$191,108,FALSE)","v":53.795000000000002},{"$f":"VLOOKUP($A161,F1__World_Data!$A$4:$DP$191,107,FALSE)","v":53.447000000000003},{"$f":"VLOOKUP($A161,F1__World_Data!$A$4:$DP$191,106,FALSE)","v":53.444000000000003},{"$f":"VLOOKUP($A161,F1__World_Data!$A$4:$DP$191,105,FALSE)","v":53.749000000000002},{"$f":"VLOOKUP($A161,F1__World_Data!$A$4:$DP$191,104,FALSE)","v":54.31},{"$f":"VLOOKUP($A161,F1__World_Data!$A$4:$DP$191,103,FALSE)","v":55.088999999999999},{"$f":"VLOOKUP($A161,F1__World_Data!$A$4:$DP$191,102,FALSE)","v":56.048000000000002},{"$f":"VLOOKUP($A161,F1__World_Data!$A$4:$DP$191,101,FALSE)","v":57.143999999999998},{"$f":"VLOOKUP($A161,F1__World_Data!$A$4:$DP$191,100,FALSE)","v":58.314999999999998},{"$f":"VLOOKUP($A161,F1__World_Data!$A$4:$DP$191,99,FALSE)","v":59.488999999999997},{"$f":"VLOOKUP($A161,F1__World_Data!$A$4:$DP$191,98,FALSE)","v":60.594999999999999},{"$f":"VLOOKUP($A161,F1__World_Data!$A$4:$DP$191,97,FALSE)","v":61.561},{"$f":"VLOOKUP($A161,F1__World_Data!$A$4:$DP$191,96,FALSE)","v":62.331000000000003},{"$f":"VLOOKUP($A161,F1__World_Data!$A$4:$DP$191,95,FALSE)","v":62.893999999999998},{"$f":"VLOOKUP($A161,F1__World_Data!$A$4:$DP$191,94,FALSE)","v":63.247},{"$f":"VLOOKUP($A161,F1__World_Data!$A$4:$DP$191,93,FALSE)","v":63.384},{"$f":"VLOOKUP($A161,F1__World_Data!$A$4:$DP$191,92,FALSE)","v":63.307000000000002},{"$f":"VLOOKUP($A161,F1__World_Data!$A$4:$DP$191,91,FALSE)","v":63.034999999999997},{"$f":"VLOOKUP($A161,F1__World_Data!$A$4:$DP$191,90,FALSE)","v":62.619},{"$f":"VLOOKUP($A161,F1__World_Data!$A$4:$DP$191,89,FALSE)","v":62.109000000000002},{"$f":"VLOOKUP($A161,F1__World_Data!$A$4:$DP$191,88,FALSE)","v":61.54},{"$f":"VLOOKUP($A161,F1__World_Data!$A$4:$DP$191,87,FALSE)","v":60.945999999999998},{"$f":"VLOOKUP($A161,F1__World_Data!$A$4:$DP$191,86,FALSE)","v":60.353000000000002},{"$f":"VLOOKUP($A161,F1__World_Data!$A$4:$DP$191,85,FALSE)","v":59.765999999999998},{"$f":"VLOOKUP($A161,F1__World_Data!$A$4:$DP$191,84,FALSE)","v":59.191000000000003},{"$f":"VLOOKUP($A161,F1__World_Data!$A$4:$DP$191,83,FALSE)","v":58.637},{"$f":"VLOOKUP($A161,F1__World_Data!$A$4:$DP$191,82,FALSE)","v":58.106999999999999},{"$f":"VLOOKUP($A161,F1__World_Data!$A$4:$DP$191,81,FALSE)","v":57.59},{"$f":"VLOOKUP($A161,F1__World_Data!$A$4:$DP$191,80,FALSE)","v":57.070999999999998},{"$f":"VLOOKUP($A161,F1__World_Data!$A$4:$DP$191,79,FALSE)","v":56.537999999999997},{"$f":"VLOOKUP($A161,F1__World_Data!$A$4:$DP$191,78,FALSE)","v":55.99},{"$f":"VLOOKUP($A161,F1__World_Data!$A$4:$DP$191,77,FALSE)","v":55.427999999999997},{"$f":"VLOOKUP($A161,F1__World_Data!$A$4:$DP$191,76,FALSE)","v":54.856000000000002},{"$f":"VLOOKUP($A161,F1__World_Data!$A$4:$DP$191,75,FALSE)","v":54.280999999999999},{"$f":"VLOOKUP($A161,F1__World_Data!$A$4:$DP$191,74,FALSE)","v":53.713000000000001},{"$f":"VLOOKUP($A161,F1__World_Data!$A$4:$DP$191,73,FALSE)","v":53.156999999999996},{"$f":"VLOOKUP($A161,F1__World_Data!$A$4:$DP$191,72,FALSE)","v":52.62},{"$f":"VLOOKUP($A161,F1__World_Data!$A$4:$DP$191,71,FALSE)","v":52.106000000000002},{"$f":"VLOOKUP($A161,F1__World_Data!$A$4:$DP$191,70,FALSE)","v":51.615000000000002},{"$f":"VLOOKUP($A161,F1__World_Data!$A$4:$DP$191,69,FALSE)","v":51.148000000000003},{"$f":"VLOOKUP($A161,F1__World_Data!$A$4:$DP$191,68,FALSE)","v":50.704999999999998},{"$f":"VLOOKUP($A161,F1__World_Data!$A$4:$DP$191,67,FALSE)","v":50.283999999999999},{"$f":"VLOOKUP($A161,F1__World_Data!$A$4:$DP$191,66,FALSE)","v":49.887999999999998},{"$f":"VLOOKUP($A161,F1__World_Data!$A$4:$DP$191,65,FALSE)","v":49.509},{"$f":"VLOOKUP($A161,F1__World_Data!$A$4:$DP$191,64,FALSE)","v":49.142000000000003},{"$f":"VLOOKUP($A161,F1__World_Data!$A$4:$DP$191,63,FALSE)","v":48.777000000000001},{"$f":"VLOOKUP($A161,F1__World_Data!$A$4:$DP$191,62,FALSE)","v":48.405999999999999}]
["Barbados",{"$f":"VLOOKUP($A162,F1__World_Data!$A$4:$DP$191,60,FALSE)","v":286.64},{"$f":"VLOOKUP($A162,F1__World_Data!$A$4:$DP$191,59,FALSE)","v":286.22899999999998},{"$f":"VLOOKUP($A162,F1__World_Data!$A$4:$DP$191,58,FALSE)","v":285.798},{"$f":"VLOOKUP($A162,F1__World_Data!$A$4:$DP$191,57,FALSE)","v":285.327},{"$f":"VLOOKUP($A162,F1__World_Data!$A$4:$DP$191,56,FALSE)","v":284.82499999999999},{"$f":"VLOOKUP($A162,F1__World_Data!$A$4:$DP$191,55,FALSE)","v":284.29399999999998},{"$f":"VLOOKUP($A162,F1__World_Data!$A$4:$DP$191,54,FALSE)","v":283.69799999999998},{"$f":"VLOOKUP($A162,F1__World_Data!$A$4:$DP$191,53,FALSE)","v":282.98700000000002},{"$f":"VLOOKUP($A162,F1__World_Data!$A$4:$DP$191,52,FALSE)","v":282.13099999999997},{"$f":"VLOOKUP($A162,F1__World_Data!$A$4:$DP$191,51,FALSE)","v":281.10700000000003},{"$f":"VLOOKUP($A162,F1__World_Data!$A$4:$DP$191,50,FALSE)","v":279.94600000000003},{"$f":"VLOOKUP($A162,F1__World_Data!$A$4:$DP$191,49,FALSE)","v":278.70100000000002},{"$f":"VLOOKUP($A162,F1__World_Data!$A$4:$DP$191,48,FALSE)","v":277.47500000000002},{"$f":"VLOOKUP($A162,F1__World_Data!$A$4:$DP$191,47,FALSE)","v":276.32},{"$f":"VLOOKUP($A162,F1__World_Data!$A$4:$DP$191,46,FALSE)","v":275.28300000000002},{"$f":"VLOOKUP($A162,F1__World_Data!$A$4:$DP$191,45,FALSE)","v":274.33100000000002},{"$f":"VLOOKUP($A162,F1__World_Data!$A$4:$DP$191,44,FALSE)","v":273.423},{"$f":"VLOOKUP($A162,F1__World_Data!$A$4:$DP$191,43,FALSE)","v":272.49400000000003},{"$f":"VLOOKUP($A162,F1__World_Data!$A$4:$DP$191,42,FALSE)","v":271.51100000000002},{"$f":"VLOOKUP($A162,F1__World_Data!$A$4:$DP$191,41,FALSE)","v":270.45499999999998},{"$f":"VLOOKUP($A162,F1__World_Data!$A$4:$DP$191,40,FALSE)","v":269.334},{"$f":"VLOOKUP($A162,F1__World_Data!$A$4:$DP$191,39,FALSE)","v":268.18299999999999},{"$f":"VLOOKUP($A162,F1__World_Data!$A$4:$DP$191,38,FALSE)","v":267.04700000000003},{"$f":"VLOOKUP($A162,F1__World_Data!$A$4:$DP$191,37,FALSE)","v":265.95499999999998},{"$f":"VLOOKUP($A162,F1__World_Data!$A$4:$DP$191,36,FALSE)","v":264.89299999999997},{"$f":"VLOOKUP($A162,F1__World_Data!$A$4:$DP$191,35,FALSE)","v":263.86900000000003},{"$f":"VLOOKUP($A162,F1__World_Data!$A$4:$DP$191,34,FALSE)","v":262.89},{"$f":"VLOOKUP($A162,F1__World_Data!$A$4:$DP$191,33,FALSE)","v":261.91199999999998},{"$f":"VLOOKUP($A162,F1__World_Data!$A$4:$DP$191,32,FALSE)","v":260.93299999999999},{"$f":"VLOOKUP($A162,F1__World_Data!$A$4:$DP$191,31,FALSE)","v":259.96100000000001},{"$f":"VLOOKUP($A162,F1__World_Data!$A$4:$DP$191,30,FALSE)","v":258.97000000000003},{"$f":"VLOOKUP($A162,F1__World_Data!$A$4:$DP$191,29,FALSE)","v":258.012},{"$f":"VLOOKUP($A162,F1__World_Data!$A$4:$DP$191,28,FALSE)","v":257.11700000000002},{"$f":"VLOOKUP($A162,F1__World_Data!$A$4:$DP$191,27,FALSE)","v":256.26},{"$f":"VLOOKUP($A162,F1__World_Data!$A$4:$DP$191,26,FALSE)","v":255.49299999999999},{"$f":"VLOOKUP($A162,F1__World_Data!$A$4:$DP$191,25,FALSE)","v":254.791},{"$f":"VLOOKUP($A162,F1__World_Data!$A$4:$DP$191,24,FALSE)","v":254.078},{"$f":"VLOOKUP($A162,F1__World_Data!$A$4:$DP$191,23,FALSE)","v":253.29599999999999},{"$f":"VLOOKUP($A162,F1__World_Data!$A$4:$DP$191,22,FALSE)","v":252.38800000000001},{"$f":"VLOOKUP($A162,F1__World_Data!$A$4:$DP$191,21,FALSE)","v":251.34700000000001},{"$f":"VLOOKUP($A162,F1__World_Data!$A$4:$DP$191,20,FALSE)","v":250.2},{"$f":"VLOOKUP($A162,F1__World_Data!$A$4:$DP$191,19,FALSE)","v":248.93100000000001},{"$f":"VLOOKUP($A162,F1__World_Data!$A$4:$DP$191,18,FALSE)","v":247.584},{"$f":"VLOOKUP($A162,F1__World_Data!$A$4:$DP$191,17,FALSE)","v":246.15799999999999},{"$f":"VLOOKUP($A162,F1__World_Data!$A$4:$DP$191,16,FALSE)","v":244.643},{"$f":"VLOOKUP($A162,F1__World_Data!$A$4:$DP$191,15,FALSE)","v":243.07599999999999},{"$f":"VLOOKUP($A162,F1__World_Data!$A$4:$DP$191,14,FALSE)","v":241.523},{"$f":"VLOOKUP($A162,F1__World_Data!$A$4:$DP$191,13,FALSE)","v":240.09299999999999},{"$f":"VLOOKUP($A162,F1__World_Data!$A$4:$DP$191,12,FALSE)","v":238.89500000000001},{"$f":"VLOOKUP($A162,F1__World_Data!$A$4:$DP$191,11,FALSE)","v":237.96299999999999},{"$f":"VLOOKUP($A162,F1__World_Data!$A$4:$DP$191,10,FALSE)","v":237.24100000000001},{"$f":"VLOOKUP($A162,F1__World_Data!$A$4:$DP$191,9,FALSE)","v":236.661},{"$f":"VLOOKUP($A162,F1__World_Data!$A$4:$DP$191,8,FALSE)","v":236.084},{"$f":"VLOOKUP($A162,F1__World_Data!$A$4:$DP$191,7,FALSE)","v":235.41499999999999},{"$f":"VLOOKUP($A162,F1__World_Data!$A$4:$DP$191,6,FALSE)","v":234.58799999999999},{"$f":"VLOOKUP($A162,F1__World_Data!$A$4:$DP$191,5,FALSE)","v":233.63200000000001},{"$f":"VLOOKUP($A162,F1__World_Data!$A$4:$DP$191,4,FALSE)","v":232.62299999999999},{"$f":"VLOOKUP($A162,F1__World_Data!$A$4:$DP$191,3,FALSE)","v":231.71799999999999},{"$f":"VLOOKUP($A162,F1__World_Data!$A$4:$DP$191,2,FALSE)","v":230.98500000000001},null,{"$f":"VLOOKUP($A162,F1__World_Data!$A$4:$DP$191,120,FALSE)","v":72.864000000000004},{"$f":"VLOOKUP($A162,F1__World_Data!$A$4:$DP$191,119,FALSE)","v":72.692999999999998},{"$f":"VLOOKUP($A162,F1__World_Data!$A$4:$DP$191,118,FALSE)","v":72.492999999999995},{"$f":"VLOOKUP($A162,F1__World_Data!$A$4:$DP$191,117,FALSE)","v":72.266000000000005},{"$f":"VLOOKUP($A162,F1__World_Data!$A$4:$DP$191,116,FALSE)","v":72.022000000000006},{"$f":"VLOOKUP($A162,F1__World_Data!$A$4:$DP$191,115,FALSE)","v":71.768000000000001},{"$f":"VLOOKUP($A162,F1__World_Data!$A$4:$DP$191,114,FALSE)","v":71.506},{"$f":"VLOOKUP($A162,F1__World_Data!$A$4:$DP$191,113,FALSE)","v":71.233999999999995},{"$f":"VLOOKUP($A162,F1__World_Data!$A$4:$DP$191,112,FALSE)","v":70.938000000000002},{"$f":"VLOOKUP($A162,F1__World_Data!$A$4:$DP$191,111,FALSE)","v":70.596999999999994},{"$f":"VLOOKUP($A162,F1__World_Data!$A$4:$DP$191,110,FALSE)","v":70.200999999999993},{"$f":"VLOOKUP($A162,F1__World_Data!$A$4:$DP$191,109,FALSE)","v":69.751999999999995},{"$f":"VLOOKUP($A162,F1__World_Data!$A$4:$DP$191,108,FALSE)","v":69.259},{"$f":"VLOOKUP($A162,F1__World_Data!$A$4:$DP$191,107,FALSE)","v":68.747},{"$f":"VLOOKUP($A162,F1__World_Data!$A$4:$DP$191,106,FALSE)","v":68.248999999999995},{"$f":"VLOOKUP($A162,F1__World_Data!$A$4:$DP$191,105,FALSE)","v":67.790999999999997},{"$f":"VLOOKUP($A162,F1__World_Data!$A$4:$DP$191,104,FALSE)","v":67.391000000000005},{"$f":"VLOOKUP($A162,F1__World_Data!$A$4:$DP$191,103,FALSE)","v":67.054000000000002},{"$f":"VLOOKUP($A162,F1__World_Data!$A$4:$DP$191,102,FALSE)","v":66.763000000000005},{"$f":"VLOOKUP($A162,F1__World_Data!$A$4:$DP$191,101,FALSE)","v":66.491},{"$f":"VLOOKUP($A162,F1__World_Data!$A$4:$DP$191,100,FALSE)","v":66.206999999999994},{"$f":"VLOOKUP($A162,F1__World_Data!$A$4:$DP$191,99,FALSE)","v":65.899000000000001},{"$f":"VLOOKUP($A162,F1__World_Data!$A$4:$DP$191,98,FALSE)","v":65.572999999999993},{"$f":"VLOOKUP($A162,F1__World_Data!$A$4:$DP$191,97,FALSE)","v":65.256},{"$f":"VLOOKUP($A162,F1__World_Data!$A$4:$DP$191,96,FALSE)","v":64.991},{"$f":"VLOOKUP($A162,F1__World_Data!$A$4:$DP$191,95,FALSE)","v":64.81},{"$f":"VLOOKUP($A162,F1__World_Data!$A$4:$DP$191,94,FALSE)","v":64.730999999999995},{"$f":"VLOOKUP($A162,F1__World_Data!$A$4:$DP$191,93,FALSE)","v":64.745000000000005},{"$f":"VLOOKUP($A162,F1__World_Data!$A$4:$DP$191,92,FALSE)","v":64.826999999999998},{"$f":"VLOOKUP($A162,F1__World_Data!$A$4:$DP$191,91,FALSE)","v":64.935000000000002},{"$f":"VLOOKUP($A162,F1__World_Data!$A$4:$DP$191,90,FALSE)","v":65.021000000000001},{"$f":"VLOOKUP($A162,F1__World_Data!$A$4:$DP$191,89,FALSE)","v":65.052999999999997},{"$f":"VLOOKUP($A162,F1__World_Data!$A$4:$DP$191,88,FALSE)","v":65.016000000000005},{"$f":"VLOOKUP($A162,F1__World_Data!$A$4:$DP$191,87,FALSE)","v":64.912999999999997},{"$f":"VLOOKUP($A162,F1__World_Data!$A$4:$DP$191,86,FALSE)","v":64.759},{"$f":"VLOOKUP($A162,F1__World_Data!$A$4:$DP$191,85,FALSE)","v":64.587000000000003},{"$f":"VLOOKUP($A162,F1__World_Data!$A$4:$DP$191,84,FALSE)","v":64.424999999999997},{"$f":"VLOOKUP($A162,F1__World_Data!$A$4:$DP$191,83,FALSE)","v":64.28},{"$f":"VLOOKUP($A162,F1__World_Data!$A$4:$DP$191,82,FALSE)","v":64.161000000000001},{"$f":"VLOOKUP($A162,F1__World_Data!$A$4:$DP$191,81,FALSE)","v":64.069000000000003},{"$f":"VLOOKUP($A162,F1__World_Data!$A$4:$DP$191,80,FALSE)","v":63.991999999999997},{"$f":"VLOOKUP($A162,F1__World_Data!$A$4:$DP$191,79,FALSE)","v":63.920999999999999},{"$f":"VLOOKUP($A162,F1__World_Data!$A$4:$DP$191,78,FALSE)","v":63.851999999999997},{"$f":"VLOOKUP($A162,F1__World_Data!$A$4:$DP$191,77,FALSE)","v":63.776000000000003},{"$f":"VLOOKUP($A162,F1__World_Data!$A$4:$DP$191,76,FALSE)","v":63.686999999999998},{"$f":"VLOOKUP($A162,F1__World_Data!$A$4:$DP$191,75,FALSE)","v":63.582000000000001},{"$f":"VLOOKUP($A162,F1__World_Data!$A$4:$DP$191,74,FALSE)","v":63.457000000000001},{"$f":"VLOOKUP($A162,F1__World_Data!$A$4:$DP$191,73,FALSE)","v":63.31},{"$f":"VLOOKUP($A162,F1__World_Data!$A$4:$DP$191,72,FALSE)","v":63.140999999999998},{"$f":"VLOOKUP($A162,F1__World_Data!$A$4:$DP$191,71,FALSE)","v":62.953000000000003},{"$f":"VLOOKUP($A162,F1__World_Data!$A$4:$DP$191,70,FALSE)","v":62.75},{"$f":"VLOOKUP($A162,F1__World_Data!$A$4:$DP$191,69,FALSE)","v":62.539000000000001},{"$f":"VLOOKUP($A162,F1__World_Data!$A$4:$DP$191,68,FALSE)","v":62.322000000000003},{"$f":"VLOOKUP($A162,F1__World_Data!$A$4:$DP$191,67,FALSE)","v":62.103999999999999},{"$f":"VLOOKUP($A162,F1__World_Data!$A$4:$DP$191,66,FALSE)","v":61.889000000000003},{"$f":"VLOOKUP($A162,F1__World_Data!$A$4:$DP$191,65,FALSE)","v":61.679000000000002},{"$f":"VLOOKUP($A162,F1__World_Data!$A$4:$DP$191,64,FALSE)","v":61.469000000000001},{"$f":"VLOOKUP($A162,F1__World_Data!$A$4:$DP$191,63,FALSE)","v":61.256},{"$f":"VLOOKUP($A162,F1__World_Data!$A$4:$DP$191,62,FALSE)","v":61.033999999999999}]
["French Guiana",{"$f":"VLOOKUP($A163,F1__World_Data!$A$4:$DP$191,60,FALSE)","v":282.93599999999998},{"$f":"VLOOKUP($A163,F1__World_Data!$A$4:$DP$191,59,FALSE)","v":275.18900000000002},{"$f":"VLOOKUP($A163,F1__World_Data!$A$4:$DP$191,58,FALSE)","v":267.82400000000001},{"$f":"VLOOKUP($A163,F1__World_Data!$A$4:$DP$191,57,FALSE)","v":261.00799999999998},{"$f":"VLOOKUP($A163,F1__World_Data!$A$4:$DP$191,56,FALSE)","v":254.78},{"$f":"VLOOKUP($A163,F1__World_Data!$A$4:$DP$191,55,FALSE)","v":249.04900000000001},{"$f":"VLOOKUP($A163,F1__World_Data!$A$4:$DP$191,54,FALSE)","v":243.667},{"$f":"VLOOKUP($A163,F1__World_Data!$A$4:$DP$191,53,FALSE)","v":238.38300000000001},{"$f":"VLOOKUP($A163,F1__World_Data!$A$4:$DP$191,52,FALSE)","v":232.99600000000001},{"$f":"VLOOKUP($A163,F1__World_Data!$A$4:$DP$191,51,FALSE)","v":227.542},{"$f":"VLOOKUP($A163,F1__World_Data!$A$4:$DP$191,50,FALSE)","v":221.99700000000001},{"$f":"VLOOKUP($A163,F1__World_Data!$A$4:$DP$191,49,FALSE)","v":216.18199999999999},{"$f":"VLOOKUP($A163,F1__World_Data!$A$4:$DP$191,48,FALSE)","v":209.89099999999999},{"$f":"VLOOKUP($A163,F1__World_Data!$A$4:$DP$191,47,FALSE)","v":202.97300000000001},{"$f":"VLOOKUP($A163,F1__World_Data!$A$4:$DP$191,46,FALSE)","v":195.30500000000001},{"$f":"VLOOKUP($A163,F1__World_Data!$A$4:$DP$191,45,FALSE)","v":187.02600000000001},{"$f":"VLOOKUP($A163,F1__World_Data!$A$4:$DP$191,44,FALSE)","v":178.548},{"$f":"VLOOKUP($A163,F1__World_Data!$A$4:$DP$191,43,FALSE)","v":170.44300000000001},{"$f":"VLOOKUP($A163,F1__World_Data!$A$4:$DP$191,42,FALSE)","v":163.16300000000001},{"$f":"VLOOKUP($A163,F1__World_Data!$A$4:$DP$191,41,FALSE)","v":156.81100000000001},{"$f":"VLOOKUP($A163,F1__World_Data!$A$4:$DP$191,40,FALSE)","v":151.245},{"$f":"VLOOKUP($A163,F1__World_Data!$A$4:$DP$191,39,FALSE)","v":146.33099999999999},{"$f":"VLOOKUP($A163,F1__World_Data!$A$4:$DP$191,38,FALSE)","v":141.786},{"$f":"VLOOKUP($A163,F1__World_Data!$A$4:$DP$191,37,FALSE)","v":137.4},{"$f":"VLOOKUP($A163,F1__World_Data!$A$4:$DP$191,36,FALSE)","v":133.18600000000001},{"$f":"VLOOKUP($A163,F1__World_Data!$A$4:$DP$191,35,FALSE)","v":129.14599999999999},{"$f":"VLOOKUP($A163,F1__World_Data!$A$4:$DP$191,34,FALSE)","v":125.075},{"$f":"VLOOKUP($A163,F1__World_Data!$A$4:$DP$191,33,FALSE)","v":120.68899999999999},{"$f":"VLOOKUP($A163,F1__World_Data!$A$4:$DP$191,32,FALSE)","v":115.78400000000001},{"$f":"VLOOKUP($A163,F1__World_Data!$A$4:$DP$191,31,FALSE)","v":110.261},{"$f":"VLOOKUP($A163,F1__World_Data!$A$4:$DP$191,30,FALSE)","v":104.22199999999999},{"$f":"VLOOKUP($A163,F1__World_Data!$A$4:$DP$191,29,FALSE)","v":97.971999999999994},{"$f":"VLOOKUP($A163,F1__World_Data!$A$4:$DP$191,28,FALSE)","v":91.95},{"$f":"VLOOKUP($A163,F1__World_Data!$A$4:$DP$191,27,FALSE)","v":86.435000000000002},{"$f":"VLOOKUP($A163,F1__World_Data!$A$4:$DP$191,26,FALSE)","v":81.566000000000003},{"$f":"VLOOKUP($A163,F1__World_Data!$A$4:$DP$191,25,FALSE)","v":77.231999999999999},{"$f":"VLOOKUP($A163,F1__World_Data!$A$4:$DP$191,24,FALSE)","v":73.414000000000001},{"$f":"VLOOKUP($A163,F1__World_Data!$A$4:$DP$191,23,FALSE)","v":70.022000000000006},{"$f":"VLOOKUP($A163,F1__World_Data!$A$4:$DP$191,22,FALSE)","v":66.972999999999999},{"$f":"VLOOKUP($A163,F1__World_Data!$A$4:$DP$191,21,FALSE)","v":64.275000000000006},{"$f":"VLOOKUP($A163,F1__World_Data!$A$4:$DP$191,20,FALSE)","v":61.936},{"$f":"VLOOKUP($A163,F1__World_Data!$A$4:$DP$191,19,FALSE)","v":59.868000000000002},{"$f":"VLOOKUP($A163,F1__World_Data!$A$4:$DP$191,18,FALSE)","v":58},{"$f":"VLOOKUP($A163,F1__World_Data!$A$4:$DP$191,17,FALSE)","v":56.223999999999997},{"$f":"VLOOKUP($A163,F1__World_Data!$A$4:$DP$191,16,FALSE)","v":54.521000000000001},{"$f":"VLOOKUP($A163,F1__World_Data!$A$4:$DP$191,15,FALSE)","v":52.881999999999998},{"$f":"VLOOKUP($A163,F1__World_Data!$A$4:$DP$191,14,FALSE)","v":51.271999999999998},{"$f":"VLOOKUP($A163,F1__World_Data!$A$4:$DP$191,13,FALSE)","v":49.619},{"$f":"VLOOKUP($A163,F1__World_Data!$A$4:$DP$191,12,FALSE)","v":47.932000000000002},{"$f":"VLOOKUP($A163,F1__World_Data!$A$4:$DP$191,11,FALSE)","v":46.15},{"$f":"VLOOKUP($A163,F1__World_Data!$A$4:$DP$191,10,FALSE)","v":44.308999999999997},{"$f":"VLOOKUP($A163,F1__World_Data!$A$4:$DP$191,9,FALSE)","v":42.43},{"$f":"VLOOKUP($A163,F1__World_Data!$A$4:$DP$191,8,FALSE)","v":40.624000000000002},{"$f":"VLOOKUP($A163,F1__World_Data!$A$4:$DP$191,7,FALSE)","v":38.893000000000001},{"$f":"VLOOKUP($A163,F1__World_Data!$A$4:$DP$191,6,FALSE)","v":37.283999999999999},{"$f":"VLOOKUP($A163,F1__World_Data!$A$4:$DP$191,5,FALSE)","v":35.770000000000003},{"$f":"VLOOKUP($A163,F1__World_Data!$A$4:$DP$191,4,FALSE)","v":34.378999999999998},{"$f":"VLOOKUP($A163,F1__World_Data!$A$4:$DP$191,3,FALSE)","v":33.115000000000002},{"$f":"VLOOKUP($A163,F1__World_Data!$A$4:$DP$191,2,FALSE)","v":32.031999999999996},null,{"$f":"VLOOKUP($A163,F1__World_Data!$A$4:$DP$191,120,FALSE)","v":82.548780487804891},{"$f":"VLOOKUP($A163,F1__World_Data!$A$4:$DP$191,119,FALSE)","v":82.29756097560977},{"$f":"VLOOKUP($A163,F1__World_Data!$A$4:$DP$191,118,FALSE)","v":82.046341463414635},{"$f":"VLOOKUP($A163,F1__World_Data!$A$4:$DP$191,117,FALSE)","v":81.795121951219528},{"$f":"VLOOKUP($A163,F1__World_Data!$A$4:$DP$191,116,FALSE)","v":81.592682926829269},{"$f":"VLOOKUP($A163,F1__World_Data!$A$4:$DP$191,115,FALSE)","v":81.341463414634148},{"$f":"VLOOKUP($A163,F1__World_Data!$A$4:$DP$191,114,FALSE)","v":81.090243902439042},{"$f":"VLOOKUP($A163,F1__World_Data!$A$4:$DP$191,113,FALSE)","v":80.839024390243921},{"$f":"VLOOKUP($A163,F1__World_Data!$A$4:$DP$191,112,FALSE)","v":80.587804878048786},{"$f":"VLOOKUP($A163,F1__World_Data!$A$4:$DP$191,111,FALSE)","v":80.387804878048797},{"$f":"VLOOKUP($A163,F1__World_Data!$A$4:$DP$191,110,FALSE)","v":80.139024390243918},{"$f":"VLOOKUP($A163,F1__World_Data!$A$4:$DP$191,109,FALSE)","v":79.890243902439039},{"$f":"VLOOKUP($A163,F1__World_Data!$A$4:$DP$191,108,FALSE)","v":79.690243902439036},{"$f":"VLOOKUP($A163,F1__World_Data!$A$4:$DP$191,107,FALSE)","v":79.441463414634157},{"$f":"VLOOKUP($A163,F1__World_Data!$A$4:$DP$191,106,FALSE)","v":79.190243902439036},{"$f":"VLOOKUP($A163,F1__World_Data!$A$4:$DP$191,105,FALSE)","v":78.990243902439033},{"$f":"VLOOKUP($A163,F1__World_Data!$A$4:$DP$191,104,FALSE)","v":78.787804878048775},{"$f":"VLOOKUP($A163,F1__World_Data!$A$4:$DP$191,103,FALSE)","v":78.636585365853662},{"$f":"VLOOKUP($A163,F1__World_Data!$A$4:$DP$191,102,FALSE)","v":78.434146341463432},{"$f":"VLOOKUP($A163,F1__World_Data!$A$4:$DP$191,101,FALSE)","v":78.280487804878064},{"$f":"VLOOKUP($A163,F1__World_Data!$A$4:$DP$191,100,FALSE)","v":78.026829268292687},{"$f":"VLOOKUP($A163,F1__World_Data!$A$4:$DP$191,99,FALSE)","v":77.824390243902457},{"$f":"VLOOKUP($A163,F1__World_Data!$A$4:$DP$191,98,FALSE)","v":77.57073170731708},{"$f":"VLOOKUP($A163,F1__World_Data!$A$4:$DP$191,97,FALSE)","v":77.368292682926835},{"$f":"VLOOKUP($A163,F1__World_Data!$A$4:$DP$191,96,FALSE)","v":77.065853658536597},{"$f":"VLOOKUP($A163,F1__World_Data!$A$4:$DP$191,95,FALSE)","v":76.81463414634149},{"$f":"VLOOKUP($A163,F1__World_Data!$A$4:$DP$191,94,FALSE)","v":76.614634146341473},{"$f":"VLOOKUP($A163,F1__World_Data!$A$4:$DP$191,93,FALSE)","v":76.41463414634147},{"$f":"VLOOKUP($A163,F1__World_Data!$A$4:$DP$191,92,FALSE)","v":76.114634146341487},{"$f":"VLOOKUP($A163,F1__World_Data!$A$4:$DP$191,91,FALSE)","v":75.91463414634147},{"$f":"VLOOKUP($A163,F1__World_Data!$A$4:$DP$191,90,FALSE)","v":75.714634146341467},{"$f":"VLOOKUP($A163,F1__World_Data!$A$4:$DP$191,89,FALSE)","v":75.465853658536588},{"$f":"VLOOKUP($A163,F1__World_Data!$A$4:$DP$191,88,FALSE)","v":75.214634146341467},{"$f":"VLOOKUP($A163,F1__World_Data!$A$4:$DP$191,87,FALSE)","v":0},{"$f":"VLOOKUP($A163,F1__World_Data!$A$4:$DP$191,86,FALSE)","v":0},{"$f":"VLOOKUP($A163,F1__World_Data!$A$4:$DP$191,85,FALSE)","v":0},{"$f":"VLOOKUP($A163,F1__World_Data!$A$4:$DP$191,84,FALSE)","v":0},{"$f":"VLOOKUP($A163,F1__World_Data!$A$4:$DP$191,83,FALSE)","v":0},{"$f":"VLOOKUP($A163,F1__World_Data!$A$4:$DP$191,82,FALSE)","v":0},{"$f":"VLOOKUP($A163,F1__World_Data!$A$4:$DP$191,81,FALSE)","v":0},{"$f":"VLOOKUP($A163,F1__World_Data!$A$4:$DP$191,80,FALSE)","v":75.98536585365855},{"$f":"VLOOKUP($A163,F1__World_Data!$A$4:$DP$191,79,FALSE)","v":0},{"$f":"VLOOKUP($A163,F1__World_Data!$A$4:$DP$191,78,FALSE)","v":0},{"$f":"VLOOKUP($A163,F1__World_Data!$A$4:$DP$191,77,FALSE)","v":0},{"$f":"VLOOKUP($A163,F1__World_Data!$A$4:$DP$191,76,FALSE)","v":0},{"$f":"VLOOKUP($A163,F1__World_Data!$A$4:$DP$191,75,FALSE)","v":74.497560975609773},{"$f":"VLOOKUP($A163,F1__World_Data!$A$4:$DP$191,74,FALSE)","v":0},{"$f":"VLOOKUP($A163,F1__World_Data!$A$4:$DP$191,73,FALSE)","v":0},{"$f":"VLOOKUP($A163,F1__World_Data!$A$4:$DP$191,72,FALSE)","v":0},{"$f":"VLOOKUP($A163,F1__World_Data!$A$4:$DP$191,71,FALSE)","v":0},{"$f":"VLOOKUP($A163,F1__World_Data!$A$4:$DP$191,70,FALSE)","v":0},{"$f":"VLOOKUP($A163,F1__World_Data!$A$4:$DP$191,69,FALSE)","v":0},{"$f":"VLOOKUP($A163,F1__World_Data!$A$4:$DP$191,68,FALSE)","v":0},{"$f":"VLOOKUP($A163,F1__World_Data!$A$4:$DP$191,67,FALSE)","v":0},{"$f":"VLOOKUP($A163,F1__World_Data!$A$4:$DP$191,66,FALSE)","v":0},{"$f":"VLOOKUP($A163,F1__World_Data!$A$4:$DP$191,65,FALSE)","v":0},{"$f":"VLOOKUP($A163,F1__World_Data!$A$4:$DP$191,64,FALSE)","v":0},{"$f":"VLOOKUP($A163,F1__World_Data!$A$4:$DP$191,63,FALSE)","v":0},{"$f":"VLOOKUP($A163,F1__World_Data!$A$4:$DP$191,62,FALSE)","v":0}]
["French Polynesia",{"$f":"VLOOKUP($A164,F1__World_Data!$A$4:$DP$191,60,FALSE)","v":277.673},{"$f":"VLOOKUP($A164,F1__World_Data!$A$4:$DP$191,59,FALSE)","v":276.108},{"$f":"VLOOKUP($A164,F1__World_Data!$A$4:$DP$191,58,FALSE)","v":274.57600000000002},{"$f":"VLOOKUP($A164,F1__World_Data!$A$4:$DP$191,57,FALSE)","v":273.11900000000003},{"$f":"VLOOKUP($A164,F1__World_Data!$A$4:$DP$191,56,FALSE)","v":271.71300000000002},{"$f":"VLOOKUP($A164,F1__World_Data!$A$4:$DP$191,55,FALSE)","v":270.33199999999999},{"$f":"VLOOKUP($A164,F1__World_Data!$A$4:$DP$191,54,FALSE)","v":268.995},{"$f":"VLOOKUP($A164,F1__World_Data!$A$4:$DP$191,53,FALSE)","v":267.702},{"$f":"VLOOKUP($A164,F1__World_Data!$A$4:$DP$191,52,FALSE)","v":266.44900000000001},{"$f":"VLOOKUP($A164,F1__World_Data!$A$4:$DP$191,51,FALSE)","v":265.25599999999997},{"$f":"VLOOKUP($A164,F1__World_Data!$A$4:$DP$191,50,FALSE)","v":264.06400000000002},{"$f":"VLOOKUP($A164,F1__World_Data!$A$4:$DP$191,49,FALSE)","v":262.71699999999998},{"$f":"VLOOKUP($A164,F1__World_Data!$A$4:$DP$191,48,FALSE)","v":261.00700000000001},{"$f":"VLOOKUP($A164,F1__World_Data!$A$4:$DP$191,47,FALSE)","v":258.77999999999997},{"$f":"VLOOKUP($A164,F1__World_Data!$A$4:$DP$191,46,FALSE)","v":255.995},{"$f":"VLOOKUP($A164,F1__World_Data!$A$4:$DP$191,45,FALSE)","v":252.70699999999999},{"$f":"VLOOKUP($A164,F1__World_Data!$A$4:$DP$191,44,FALSE)","v":248.976},{"$f":"VLOOKUP($A164,F1__World_Data!$A$4:$DP$191,43,FALSE)","v":244.929},{"$f":"VLOOKUP($A164,F1__World_Data!$A$4:$DP$191,42,FALSE)","v":240.68100000000001},{"$f":"VLOOKUP($A164,F1__World_Data!$A$4:$DP$191,41,FALSE)","v":236.21700000000001},{"$f":"VLOOKUP($A164,F1__World_Data!$A$4:$DP$191,40,FALSE)","v":231.56200000000001},{"$f":"VLOOKUP($A164,F1__World_Data!$A$4:$DP$191,39,FALSE)","v":226.85400000000001},{"$f":"VLOOKUP($A164,F1__World_Data!$A$4:$DP$191,38,FALSE)","v":222.32300000000001},{"$f":"VLOOKUP($A164,F1__World_Data!$A$4:$DP$191,37,FALSE)","v":218.06399999999999},{"$f":"VLOOKUP($A164,F1__World_Data!$A$4:$DP$191,36,FALSE)","v":214.196},{"$f":"VLOOKUP($A164,F1__World_Data!$A$4:$DP$191,35,FALSE)","v":210.64400000000001},{"$f":"VLOOKUP($A164,F1__World_Data!$A$4:$DP$191,34,FALSE)","v":207.238},{"$f":"VLOOKUP($A164,F1__World_Data!$A$4:$DP$191,33,FALSE)","v":203.71600000000001},{"$f":"VLOOKUP($A164,F1__World_Data!$A$4:$DP$191,32,FALSE)","v":199.90600000000001},{"$f":"VLOOKUP($A164,F1__World_Data!$A$4:$DP$191,31,FALSE)","v":195.72800000000001},{"$f":"VLOOKUP($A164,F1__World_Data!$A$4:$DP$191,30,FALSE)","v":191.26},{"$f":"VLOOKUP($A164,F1__World_Data!$A$4:$DP$191,29,FALSE)","v":186.58799999999999},{"$f":"VLOOKUP($A164,F1__World_Data!$A$4:$DP$191,28,FALSE)","v":181.80699999999999},{"$f":"VLOOKUP($A164,F1__World_Data!$A$4:$DP$191,27,FALSE)","v":177.024},{"$f":"VLOOKUP($A164,F1__World_Data!$A$4:$DP$191,26,FALSE)","v":172.249},{"$f":"VLOOKUP($A164,F1__World_Data!$A$4:$DP$191,25,FALSE)","v":167.45599999999999},{"$f":"VLOOKUP($A164,F1__World_Data!$A$4:$DP$191,24,FALSE)","v":162.679},{"$f":"VLOOKUP($A164,F1__World_Data!$A$4:$DP$191,23,FALSE)","v":157.95400000000001},{"$f":"VLOOKUP($A164,F1__World_Data!$A$4:$DP$191,22,FALSE)","v":153.298},{"$f":"VLOOKUP($A164,F1__World_Data!$A$4:$DP$191,21,FALSE)","v":148.73400000000001},{"$f":"VLOOKUP($A164,F1__World_Data!$A$4:$DP$191,20,FALSE)","v":144.273},{"$f":"VLOOKUP($A164,F1__World_Data!$A$4:$DP$191,19,FALSE)","v":139.893},{"$f":"VLOOKUP($A164,F1__World_Data!$A$4:$DP$191,18,FALSE)","v":135.559},{"$f":"VLOOKUP($A164,F1__World_Data!$A$4:$DP$191,17,FALSE)","v":131.22900000000001},{"$f":"VLOOKUP($A164,F1__World_Data!$A$4:$DP$191,16,FALSE)","v":126.919},{"$f":"VLOOKUP($A164,F1__World_Data!$A$4:$DP$191,15,FALSE)","v":122.64100000000001},{"$f":"VLOOKUP($A164,F1__World_Data!$A$4:$DP$191,14,FALSE)","v":118.438},{"$f":"VLOOKUP($A164,F1__World_Data!$A$4:$DP$191,13,FALSE)","v":114.38500000000001},{"$f":"VLOOKUP($A164,F1__World_Data!$A$4:$DP$191,12,FALSE)","v":110.49},{"$f":"VLOOKUP($A164,F1__World_Data!$A$4:$DP$191,11,FALSE)","v":106.81399999999999},{"$f":"VLOOKUP($A164,F1__World_Data!$A$4:$DP$191,10,FALSE)","v":103.32899999999999},{"$f":"VLOOKUP($A164,F1__World_Data!$A$4:$DP$191,9,FALSE)","v":99.99},{"$f":"VLOOKUP($A164,F1__World_Data!$A$4:$DP$191,8,FALSE)","v":96.718999999999994},{"$f":"VLOOKUP($A164,F1__World_Data!$A$4:$DP$191,7,FALSE)","v":93.441999999999993},{"$f":"VLOOKUP($A164,F1__World_Data!$A$4:$DP$191,6,FALSE)","v":90.132000000000005},{"$f":"VLOOKUP($A164,F1__World_Data!$A$4:$DP$191,5,FALSE)","v":86.846999999999994},{"$f":"VLOOKUP($A164,F1__World_Data!$A$4:$DP$191,4,FALSE)","v":83.652000000000001},{"$f":"VLOOKUP($A164,F1__World_Data!$A$4:$DP$191,3,FALSE)","v":80.704999999999998},{"$f":"VLOOKUP($A164,F1__World_Data!$A$4:$DP$191,2,FALSE)","v":78.08},null,{"$f":"VLOOKUP($A164,F1__World_Data!$A$4:$DP$191,120,FALSE)","v":82.548780487804891},{"$f":"VLOOKUP($A164,F1__World_Data!$A$4:$DP$191,119,FALSE)","v":82.29756097560977},{"$f":"VLOOKUP($A164,F1__World_Data!$A$4:$DP$191,118,FALSE)","v":82.046341463414635},{"$f":"VLOOKUP($A164,F1__World_Data!$A$4:$DP$191,117,FALSE)","v":81.795121951219528},{"$f":"VLOOKUP($A164,F1__World_Data!$A$4:$DP$191,116,FALSE)","v":81.592682926829269},{"$f":"VLOOKUP($A164,F1__World_Data!$A$4:$DP$191,115,FALSE)","v":81.341463414634148},{"$f":"VLOOKUP($A164,F1__World_Data!$A$4:$DP$191,114,FALSE)","v":81.090243902439042},{"$f":"VLOOKUP($A164,F1__World_Data!$A$4:$DP$191,113,FALSE)","v":80.839024390243921},{"$f":"VLOOKUP($A164,F1__World_Data!$A$4:$DP$191,112,FALSE)","v":80.587804878048786},{"$f":"VLOOKUP($A164,F1__World_Data!$A$4:$DP$191,111,FALSE)","v":80.387804878048797},{"$f":"VLOOKUP($A164,F1__World_Data!$A$4:$DP$191,110,FALSE)","v":80.139024390243918},{"$f":"VLOOKUP($A164,F1__World_Data!$A$4:$DP$191,109,FALSE)","v":79.890243902439039},{"$f":"VLOOKUP($A164,F1__World_Data!$A$4:$DP$191,108,FALSE)","v":79.690243902439036},{"$f":"VLOOKUP($A164,F1__World_Data!$A$4:$DP$191,107,FALSE)","v":79.441463414634157},{"$f":"VLOOKUP($A164,F1__World_Data!$A$4:$DP$191,106,FALSE)","v":79.190243902439036},{"$f":"VLOOKUP($A164,F1__World_Data!$A$4:$DP$191,105,FALSE)","v":78.990243902439033},{"$f":"VLOOKUP($A164,F1__World_Data!$A$4:$DP$191,104,FALSE)","v":78.787804878048775},{"$f":"VLOOKUP($A164,F1__World_Data!$A$4:$DP$191,103,FALSE)","v":78.636585365853662},{"$f":"VLOOKUP($A164,F1__World_Data!$A$4:$DP$191,102,FALSE)","v":78.434146341463432},{"$f":"VLOOKUP($A164,F1__World_Data!$A$4:$DP$191,101,FALSE)","v":78.280487804878064},{"$f":"VLOOKUP($A164,F1__World_Data!$A$4:$DP$191,100,FALSE)","v":78.026829268292687},{"$f":"VLOOKUP($A164,F1__World_Data!$A$4:$DP$191,99,FALSE)","v":77.824390243902457},{"$f":"VLOOKUP($A164,F1__World_Data!$A$4:$DP$191,98,FALSE)","v":77.57073170731708},{"$f":"VLOOKUP($A164,F1__World_Data!$A$4:$DP$191,97,FALSE)","v":77.368292682926835},{"$f":"VLOOKUP($A164,F1__World_Data!$A$4:$DP$191,96,FALSE)","v":77.065853658536597},{"$f":"VLOOKUP($A164,F1__World_Data!$A$4:$DP$191,95,FALSE)","v":76.81463414634149},{"$f":"VLOOKUP($A164,F1__World_Data!$A$4:$DP$191,94,FALSE)","v":76.614634146341473},{"$f":"VLOOKUP($A164,F1__World_Data!$A$4:$DP$191,93,FALSE)","v":76.41463414634147},{"$f":"VLOOKUP($A164,F1__World_Data!$A$4:$DP$191,92,FALSE)","v":76.114634146341487},{"$f":"VLOOKUP($A164,F1__World_Data!$A$4:$DP$191,91,FALSE)","v":75.91463414634147},{"$f":"VLOOKUP($A164,F1__World_Data!$A$4:$DP$191,90,FALSE)","v":75.714634146341467},{"$f":"VLOOKUP($A164,F1__World_Data!$A$4:$DP$191,89,FALSE)","v":75.465853658536588},{"$f":"VLOOKUP($A164,F1__World_Data!$A$4:$DP$191,88,FALSE)","v":75.214634146341467},{"$f":"VLOOKUP($A164,F1__World_Data!$A$4:$DP$191,87,FALSE)","v":0},{"$f":"VLOOKUP($A164,F1__World_Data!$A$4:$DP$191,86,FALSE)","v":0},{"$f":"VLOOKUP($A164,F1__World_Data!$A$4:$DP$191,85,FALSE)","v":0},{"$f":"VLOOKUP($A164,F1__World_Data!$A$4:$DP$191,84,FALSE)","v":0},{"$f":"VLOOKUP($A164,F1__World_Data!$A$4:$DP$191,83,FALSE)","v":0},{"$f":"VLOOKUP($A164,F1__World_Data!$A$4:$DP$191,82,FALSE)","v":0},{"$f":"VLOOKUP($A164,F1__World_Data!$A$4:$DP$191,81,FALSE)","v":0},{"$f":"VLOOKUP($A164,F1__World_Data!$A$4:$DP$191,80,FALSE)","v":75.98536585365855},{"$f":"VLOOKUP($A164,F1__World_Data!$A$4:$DP$191,79,FALSE)","v":0},{"$f":"VLOOKUP($A164,F1__World_Data!$A$4:$DP$191,78,FALSE)","v":0},{"$f":"VLOOKUP($A164,F1__World_Data!$A$4:$DP$191,77,FALSE)","v":0},{"$f":"VLOOKUP($A164,F1__World_Data!$A$4:$DP$191,76,FALSE)","v":0},{"$f":"VLOOKUP($A164,F1__World_Data!$A$4:$DP$191,75,FALSE)","v":74.497560975609773},{"$f":"VLOOKUP($A164,F1__World_Data!$A$4:$DP$191,74,FALSE)","v":0},{"$f":"VLOOKUP($A164,F1__World_Data!$A$4:$DP$191,73,FALSE)","v":0},{"$f":"VLOOKUP($A164,F1__World_Data!$A$4:$DP$191,72,FALSE)","v":0},{"$f":"VLOOKUP($A164,F1__World_Data!$A$4:$DP$191,71,FALSE)","v":0},{"$f":"VLOOKUP($A164,F1__World_Data!$A$4:$DP$191,70,FALSE)","v":0},{"$f":"VLOOKUP($A164,F1__World_Data!$A$4:$DP$191,69,FALSE)","v":0},{"$f":"VLOOKUP($A164,F1__World_Data!$A$4:$DP$191,68,FALSE)","v":0},{"$f":"VLOOKUP($A164,F1__World_Data!$A$4:$DP$191,67,FALSE)","v":0},{"$f":"VLOOKUP($A164,F1__World_Data!$A$4:$DP$191,66,FALSE)","v":0},{"$f":"VLOOKUP($A164,F1__World_Data!$A$4:$DP$191,65,FALSE)","v":0},{"$f":"VLOOKUP($A164,F1__World_Data!$A$4:$DP$191,64,FALSE)","v":0},{"$f":"VLOOKUP($A164,F1__World_Data!$A$4:$DP$191,63,FALSE)","v":0},{"$f":"VLOOKUP($A164,F1__World_Data!$A$4:$DP$191,62,FALSE)","v":0}]
["Mayotte",{"$f":"VLOOKUP($A165,F1__World_Data!$A$4:$DP$191,60,FALSE)","v":259.52600000000001},{"$f":"VLOOKUP($A165,F1__World_Data!$A$4:$DP$191,59,FALSE)","v":252.96199999999999},{"$f":"VLOOKUP($A165,F1__World_Data!$A$4:$DP$191,58,FALSE)","v":246.46},{"$f":"VLOOKUP($A165,F1__World_Data!$A$4:$DP$191,57,FALSE)","v":240.011},{"$f":"VLOOKUP($A165,F1__World_Data!$A$4:$DP$191,56,FALSE)","v":233.65799999999999},{"$f":"VLOOKUP($A165,F1__World_Data!$A$4:$DP$191,55,FALSE)","v":227.376},{"$f":"VLOOKUP($A165,F1__World_Data!$A$4:$DP$191,54,FALSE)","v":221.14699999999999},{"$f":"VLOOKUP($A165,F1__World_Data!$A$4:$DP$191,53,FALSE)","v":214.93700000000001},{"$f":"VLOOKUP($A165,F1__World_Data!$A$4:$DP$191,52,FALSE)","v":208.71600000000001},{"$f":"VLOOKUP($A165,F1__World_Data!$A$4:$DP$191,51,FALSE)","v":202.494},{"$f":"VLOOKUP($A165,F1__World_Data!$A$4:$DP$191,50,FALSE)","v":196.26900000000001},{"$f":"VLOOKUP($A165,F1__World_Data!$A$4:$DP$191,49,FALSE)","v":190.09800000000001},{"$f":"VLOOKUP($A165,F1__World_Data!$A$4:$DP$191,48,FALSE)","v":184.02600000000001},{"$f":"VLOOKUP($A165,F1__World_Data!$A$4:$DP$191,47,FALSE)","v":178.10300000000001},{"$f":"VLOOKUP($A165,F1__World_Data!$A$4:$DP$191,46,FALSE)","v":172.345},{"$f":"VLOOKUP($A165,F1__World_Data!$A$4:$DP$191,45,FALSE)","v":166.715},{"$f":"VLOOKUP($A165,F1__World_Data!$A$4:$DP$191,44,FALSE)","v":161.20400000000001},{"$f":"VLOOKUP($A165,F1__World_Data!$A$4:$DP$191,43,FALSE)","v":155.756},{"$f":"VLOOKUP($A165,F1__World_Data!$A$4:$DP$191,42,FALSE)","v":150.33099999999999},{"$f":"VLOOKUP($A165,F1__World_Data!$A$4:$DP$191,41,FALSE)","v":144.93},{"$f":"VLOOKUP($A165,F1__World_Data!$A$4:$DP$191,40,FALSE)","v":139.57499999999999},{"$f":"VLOOKUP($A165,F1__World_Data!$A$4:$DP$191,39,FALSE)","v":134.20599999999999},{"$f":"VLOOKUP($A165,F1__World_Data!$A$4:$DP$191,38,FALSE)","v":128.75299999999999},{"$f":"VLOOKUP($A165,F1__World_Data!$A$4:$DP$191,37,FALSE)","v":123.18600000000001},{"$f":"VLOOKUP($A165,F1__World_Data!$A$4:$DP$191,36,FALSE)","v":117.47},{"$f":"VLOOKUP($A165,F1__World_Data!$A$4:$DP$191,35,FALSE)","v":111.633},{"$f":"VLOOKUP($A165,F1__World_Data!$A$4:$DP$191,34,FALSE)","v":105.82599999999999},{"$f":"VLOOKUP($A165,F1__World_Data!$A$4:$DP$191,33,FALSE)","v":100.164},{"$f":"VLOOKUP($A165,F1__World_Data!$A$4:$DP$191,32,FALSE)","v":94.778999999999996},{"$f":"VLOOKUP($A165,F1__World_Data!$A$4:$DP$191,31,FALSE)","v":89.709000000000003},{"$f":"VLOOKUP($A165,F1__World_Data!$A$4:$DP$191,30,FALSE)","v":84.941000000000003},{"$f":"VLOOKUP($A165,F1__World_Data!$A$4:$DP$191,29,FALSE)","v":80.444999999999993},{"$f":"VLOOKUP($A165,F1__World_Data!$A$4:$DP$191,28,FALSE)","v":76.186999999999998},{"$f":"VLOOKUP($A165,F1__World_Data!$A$4:$DP$191,27,FALSE)","v":72.108000000000004},{"$f":"VLOOKUP($A165,F1__World_Data!$A$4:$DP$191,26,FALSE)","v":68.204999999999998},{"$f":"VLOOKUP($A165,F1__World_Data!$A$4:$DP$191,25,FALSE)","v":64.494},{"$f":"VLOOKUP($A165,F1__World_Data!$A$4:$DP$191,24,FALSE)","v":61.043999999999997},{"$f":"VLOOKUP($A165,F1__World_Data!$A$4:$DP$191,23,FALSE)","v":57.912999999999997},{"$f":"VLOOKUP($A165,F1__World_Data!$A$4:$DP$191,22,FALSE)","v":55.136000000000003},{"$f":"VLOOKUP($A165,F1__World_Data!$A$4:$DP$191,21,FALSE)","v":52.747},{"$f":"VLOOKUP($A165,F1__World_Data!$A$4:$DP$191,20,FALSE)","v":50.697000000000003},{"$f":"VLOOKUP($A165,F1__World_Data!$A$4:$DP$191,19,FALSE)","v":48.887999999999998},{"$f":"VLOOKUP($A165,F1__World_Data!$A$4:$DP$191,18,FALSE)","v":47.188000000000002},{"$f":"VLOOKUP($A165,F1__World_Data!$A$4:$DP$191,17,FALSE)","v":45.48},{"$f":"VLOOKUP($A165,F1__World_Data!$A$4:$DP$191,16,FALSE)","v":43.732999999999997},{"$f":"VLOOKUP($A165,F1__World_Data!$A$4:$DP$191,15,FALSE)","v":41.960999999999999},{"$f":"VLOOKUP($A165,F1__World_Data!$A$4:$DP$191,14,FALSE)","v":40.198999999999998},{"$f":"VLOOKUP($A165,F1__World_Data!$A$4:$DP$191,13,FALSE)","v":38.518000000000001},{"$f":"VLOOKUP($A165,F1__World_Data!$A$4:$DP$191,12,FALSE)","v":36.963999999999999},{"$f":"VLOOKUP($A165,F1__World_Data!$A$4:$DP$191,11,FALSE)","v":35.552999999999997},{"$f":"VLOOKUP($A165,F1__World_Data!$A$4:$DP$191,10,FALSE)","v":34.250999999999998},{"$f":"VLOOKUP($A165,F1__World_Data!$A$4:$DP$191,9,FALSE)","v":33.009},{"$f":"VLOOKUP($A165,F1__World_Data!$A$4:$DP$191,8,FALSE)","v":31.783000000000001},{"$f":"VLOOKUP($A165,F1__World_Data!$A$4:$DP$191,7,FALSE)","v":30.52},{"$f":"VLOOKUP($A165,F1__World_Data!$A$4:$DP$191,6,FALSE)","v":29.22},{"$f":"VLOOKUP($A165,F1__World_Data!$A$4:$DP$191,5,FALSE)","v":27.887},{"$f":"VLOOKUP($A165,F1__World_Data!$A$4:$DP$191,4,FALSE)","v":26.536999999999999},{"$f":"VLOOKUP($A165,F1__World_Data!$A$4:$DP$191,3,FALSE)","v":25.24},{"$f":"VLOOKUP($A165,F1__World_Data!$A$4:$DP$191,2,FALSE)","v":24.015999999999998},null,{"$f":"VLOOKUP($A165,F1__World_Data!$A$4:$DP$191,120,FALSE)","v":68.116},{"$f":"VLOOKUP($A165,F1__World_Data!$A$4:$DP$191,119,FALSE)","v":67.850999999999999},{"$f":"VLOOKUP($A165,F1__World_Data!$A$4:$DP$191,118,FALSE)","v":67.576999999999998},{"$f":"VLOOKUP($A165,F1__World_Data!$A$4:$DP$191,117,FALSE)","v":67.290999999999997},{"$f":"VLOOKUP($A165,F1__World_Data!$A$4:$DP$191,116,FALSE)","v":66.995000000000005},{"$f":"VLOOKUP($A165,F1__World_Data!$A$4:$DP$191,115,FALSE)","v":66.69},{"$f":"VLOOKUP($A165,F1__World_Data!$A$4:$DP$191,114,FALSE)","v":66.381},{"$f":"VLOOKUP($A165,F1__World_Data!$A$4:$DP$191,113,FALSE)","v":66.072000000000003},{"$f":"VLOOKUP($A165,F1__World_Data!$A$4:$DP$191,112,FALSE)","v":65.769000000000005},{"$f":"VLOOKUP($A165,F1__World_Data!$A$4:$DP$191,111,FALSE)","v":65.48},{"$f":"VLOOKUP($A165,F1__World_Data!$A$4:$DP$191,110,FALSE)","v":65.207999999999998},{"$f":"VLOOKUP($A165,F1__World_Data!$A$4:$DP$191,109,FALSE)","v":64.953000000000003},{"$f":"VLOOKUP($A165,F1__World_Data!$A$4:$DP$191,108,FALSE)","v":64.712000000000003},{"$f":"VLOOKUP($A165,F1__World_Data!$A$4:$DP$191,107,FALSE)","v":64.477999999999994},{"$f":"VLOOKUP($A165,F1__World_Data!$A$4:$DP$191,106,FALSE)","v":64.242000000000004},{"$f":"VLOOKUP($A165,F1__World_Data!$A$4:$DP$191,105,FALSE)","v":63.994999999999997},{"$f":"VLOOKUP($A165,F1__World_Data!$A$4:$DP$191,104,FALSE)","v":63.731000000000002},{"$f":"VLOOKUP($A165,F1__World_Data!$A$4:$DP$191,103,FALSE)","v":63.445999999999998},{"$f":"VLOOKUP($A165,F1__World_Data!$A$4:$DP$191,102,FALSE)","v":63.143999999999998},{"$f":"VLOOKUP($A165,F1__World_Data!$A$4:$DP$191,101,FALSE)","v":62.829000000000001},{"$f":"VLOOKUP($A165,F1__World_Data!$A$4:$DP$191,100,FALSE)","v":62.509},{"$f":"VLOOKUP($A165,F1__World_Data!$A$4:$DP$191,99,FALSE)","v":62.188000000000002},{"$f":"VLOOKUP($A165,F1__World_Data!$A$4:$DP$191,98,FALSE)","v":61.866},{"$f":"VLOOKUP($A165,F1__World_Data!$A$4:$DP$191,97,FALSE)","v":61.539000000000001},{"$f":"VLOOKUP($A165,F1__World_Data!$A$4:$DP$191,96,FALSE)","v":61.198},{"$f":"VLOOKUP($A165,F1__World_Data!$A$4:$DP$191,95,FALSE)","v":60.837000000000003},{"$f":"VLOOKUP($A165,F1__World_Data!$A$4:$DP$191,94,FALSE)","v":60.454999999999998},{"$f":"VLOOKUP($A165,F1__World_Data!$A$4:$DP$191,93,FALSE)","v":60.052999999999997},{"$f":"VLOOKUP($A165,F1__World_Data!$A$4:$DP$191,92,FALSE)","v":59.636000000000003},{"$f":"VLOOKUP($A165,F1__World_Data!$A$4:$DP$191,91,FALSE)","v":59.209000000000003},{"$f":"VLOOKUP($A165,F1__World_Data!$A$4:$DP$191,90,FALSE)","v":58.783000000000001},{"$f":"VLOOKUP($A165,F1__World_Data!$A$4:$DP$191,89,FALSE)","v":58.366},{"$f":"VLOOKUP($A165,F1__World_Data!$A$4:$DP$191,88,FALSE)","v":57.962000000000003},{"$f":"VLOOKUP($A165,F1__World_Data!$A$4:$DP$191,87,FALSE)","v":57.579000000000001},{"$f":"VLOOKUP($A165,F1__World_Data!$A$4:$DP$191,86,FALSE)","v":57.220999999999997},{"$f":"VLOOKUP($A165,F1__World_Data!$A$4:$DP$191,85,FALSE)","v":56.886000000000003},{"$f":"VLOOKUP($A165,F1__World_Data!$A$4:$DP$191,84,FALSE)","v":56.569000000000003},{"$f":"VLOOKUP($A165,F1__World_Data!$A$4:$DP$191,83,FALSE)","v":56.265999999999998},{"$f":"VLOOKUP($A165,F1__World_Data!$A$4:$DP$191,82,FALSE)","v":55.970999999999997},{"$f":"VLOOKUP($A165,F1__World_Data!$A$4:$DP$191,81,FALSE)","v":55.679000000000002},{"$f":"VLOOKUP($A165,F1__World_Data!$A$4:$DP$191,80,FALSE)","v":55.381999999999998},{"$f":"VLOOKUP($A165,F1__World_Data!$A$4:$DP$191,79,FALSE)","v":55.073999999999998},{"$f":"VLOOKUP($A165,F1__World_Data!$A$4:$DP$191,78,FALSE)","v":54.747999999999998},{"$f":"VLOOKUP($A165,F1__World_Data!$A$4:$DP$191,77,FALSE)","v":54.399000000000001},{"$f":"VLOOKUP($A165,F1__World_Data!$A$4:$DP$191,76,FALSE)","v":54.027000000000001},{"$f":"VLOOKUP($A165,F1__World_Data!$A$4:$DP$191,75,FALSE)","v":53.633000000000003},{"$f":"VLOOKUP($A165,F1__World_Data!$A$4:$DP$191,74,FALSE)","v":53.218000000000004},{"$f":"VLOOKUP($A165,F1__World_Data!$A$4:$DP$191,73,FALSE)","v":52.781999999999996},{"$f":"VLOOKUP($A165,F1__World_Data!$A$4:$DP$191,72,FALSE)","v":52.323},{"$f":"VLOOKUP($A165,F1__World_Data!$A$4:$DP$191,71,FALSE)","v":51.837000000000003},{"$f":"VLOOKUP($A165,F1__World_Data!$A$4:$DP$191,70,FALSE)","v":51.326999999999998},{"$f":"VLOOKUP($A165,F1__World_Data!$A$4:$DP$191,69,FALSE)","v":50.795999999999999},{"$f":"VLOOKUP($A165,F1__World_Data!$A$4:$DP$191,68,FALSE)","v":50.25},{"$f":"VLOOKUP($A165,F1__World_Data!$A$4:$DP$191,67,FALSE)","v":49.697000000000003},{"$f":"VLOOKUP($A165,F1__World_Data!$A$4:$DP$191,66,FALSE)","v":49.145000000000003},{"$f":"VLOOKUP($A165,F1__World_Data!$A$4:$DP$191,65,FALSE)","v":48.600999999999999},{"$f":"VLOOKUP($A165,F1__World_Data!$A$4:$DP$191,64,FALSE)","v":48.070999999999998},{"$f":"VLOOKUP($A165,F1__World_Data!$A$4:$DP$191,63,FALSE)","v":47.557000000000002},{"$f":"VLOOKUP($A165,F1__World_Data!$A$4:$DP$191,62,FALSE)","v":47.061}]
["Sao Tome and Principe",{"$f":"VLOOKUP($A166,F1__World_Data!$A$4:$DP$191,60,FALSE)","v":211.03200000000001},{"$f":"VLOOKUP($A166,F1__World_Data!$A$4:$DP$191,59,FALSE)","v":207.08600000000001},{"$f":"VLOOKUP($A166,F1__World_Data!$A$4:$DP$191,58,FALSE)","v":203.221},{"$f":"VLOOKUP($A166,F1__World_Data!$A$4:$DP$191,57,FALSE)","v":199.43899999999999},{"$f":"VLOOKUP($A166,F1__World_Data!$A$4:$DP$191,56,FALSE)","v":195.727},{"$f":"VLOOKUP($A166,F1__World_Data!$A$4:$DP$191,55,FALSE)","v":192.07599999999999},{"$f":"VLOOKUP($A166,F1__World_Data!$A$4:$DP$191,54,FALSE)","v":188.39400000000001},{"$f":"VLOOKUP($A166,F1__World_Data!$A$4:$DP$191,53,FALSE)","v":184.52099999999999},{"$f":"VLOOKUP($A166,F1__World_Data!$A$4:$DP$191,52,FALSE)","v":180.37200000000001},{"$f":"VLOOKUP($A166,F1__World_Data!$A$4:$DP$191,51,FALSE)","v":175.87700000000001},{"$f":"VLOOKUP($A166,F1__World_Data!$A$4:$DP$191,50,FALSE)","v":171.12200000000001},{"$f":"VLOOKUP($A166,F1__World_Data!$A$4:$DP$191,49,FALSE)","v":166.297},{"$f":"VLOOKUP($A166,F1__World_Data!$A$4:$DP$191,48,FALSE)","v":161.67599999999999},{"$f":"VLOOKUP($A166,F1__World_Data!$A$4:$DP$191,47,FALSE)","v":157.47200000000001},{"$f":"VLOOKUP($A166,F1__World_Data!$A$4:$DP$191,46,FALSE)","v":153.73599999999999},{"$f":"VLOOKUP($A166,F1__World_Data!$A$4:$DP$191,45,FALSE)","v":150.405},{"$f":"VLOOKUP($A166,F1__World_Data!$A$4:$DP$191,44,FALSE)","v":147.44999999999999},{"$f":"VLOOKUP($A166,F1__World_Data!$A$4:$DP$191,43,FALSE)","v":144.76},{"$f":"VLOOKUP($A166,F1__World_Data!$A$4:$DP$191,42,FALSE)","v":142.26400000000001},{"$f":"VLOOKUP($A166,F1__World_Data!$A$4:$DP$191,41,FALSE)","v":139.964},{"$f":"VLOOKUP($A166,F1__World_Data!$A$4:$DP$191,40,FALSE)","v":137.85499999999999},{"$f":"VLOOKUP($A166,F1__World_Data!$A$4:$DP$191,39,FALSE)","v":135.83099999999999},{"$f":"VLOOKUP($A166,F1__World_Data!$A$4:$DP$191,38,FALSE)","v":133.79900000000001},{"$f":"VLOOKUP($A166,F1__World_Data!$A$4:$DP$191,37,FALSE)","v":131.679},{"$f":"VLOOKUP($A166,F1__World_Data!$A$4:$DP$191,36,FALSE)","v":129.42599999999999},{"$f":"VLOOKUP($A166,F1__World_Data!$A$4:$DP$191,35,FALSE)","v":127.066},{"$f":"VLOOKUP($A166,F1__World_Data!$A$4:$DP$191,34,FALSE)","v":124.574},{"$f":"VLOOKUP($A166,F1__World_Data!$A$4:$DP$191,33,FALSE)","v":121.949},{"$f":"VLOOKUP($A166,F1__World_Data!$A$4:$DP$191,32,FALSE)","v":119.211},{"$f":"VLOOKUP($A166,F1__World_Data!$A$4:$DP$191,31,FALSE)","v":116.313},{"$f":"VLOOKUP($A166,F1__World_Data!$A$4:$DP$191,30,FALSE)","v":113.288},{"$f":"VLOOKUP($A166,F1__World_Data!$A$4:$DP$191,29,FALSE)","v":110.259},{"$f":"VLOOKUP($A166,F1__World_Data!$A$4:$DP$191,28,FALSE)","v":107.429},{"$f":"VLOOKUP($A166,F1__World_Data!$A$4:$DP$191,27,FALSE)","v":104.926},{"$f":"VLOOKUP($A166,F1__World_Data!$A$4:$DP$191,26,FALSE)","v":102.82599999999999},{"$f":"VLOOKUP($A166,F1__World_Data!$A$4:$DP$191,25,FALSE)","v":101.06399999999999},{"$f":"VLOOKUP($A166,F1__World_Data!$A$4:$DP$191,24,FALSE)","v":99.477999999999994},{"$f":"VLOOKUP($A166,F1__World_Data!$A$4:$DP$191,23,FALSE)","v":97.766999999999996},{"$f":"VLOOKUP($A166,F1__World_Data!$A$4:$DP$191,22,FALSE)","v":95.787999999999997},{"$f":"VLOOKUP($A166,F1__World_Data!$A$4:$DP$191,21,FALSE)","v":93.457999999999998},{"$f":"VLOOKUP($A166,F1__World_Data!$A$4:$DP$191,20,FALSE)","v":90.846000000000004},{"$f":"VLOOKUP($A166,F1__World_Data!$A$4:$DP$191,19,FALSE)","v":88.102000000000004},{"$f":"VLOOKUP($A166,F1__World_Data!$A$4:$DP$191,18,FALSE)","v":85.474999999999994},{"$f":"VLOOKUP($A166,F1__World_Data!$A$4:$DP$191,17,FALSE)","v":83.134},{"$f":"VLOOKUP($A166,F1__World_Data!$A$4:$DP$191,16,FALSE)","v":81.147999999999996},{"$f":"VLOOKUP($A166,F1__World_Data!$A$4:$DP$191,15,FALSE)","v":79.462999999999994},{"$f":"VLOOKUP($A166,F1__World_Data!$A$4:$DP$191,14,FALSE)","v":77.930000000000007},{"$f":"VLOOKUP($A166,F1__World_Data!$A$4:$DP$191,13,FALSE)","v":76.343999999999994},{"$f":"VLOOKUP($A166,F1__World_Data!$A$4:$DP$191,12,FALSE)","v":74.569999999999993},{"$f":"VLOOKUP($A166,F1__World_Data!$A$4:$DP$191,11,FALSE)","v":72.501000000000005},{"$f":"VLOOKUP($A166,F1__World_Data!$A$4:$DP$191,10,FALSE)","v":70.257999999999996},{"$f":"VLOOKUP($A166,F1__World_Data!$A$4:$DP$191,9,FALSE)","v":68.039000000000001},{"$f":"VLOOKUP($A166,F1__World_Data!$A$4:$DP$191,8,FALSE)","v":66.171999999999997},{"$f":"VLOOKUP($A166,F1__World_Data!$A$4:$DP$191,7,FALSE)","v":64.884},{"$f":"VLOOKUP($A166,F1__World_Data!$A$4:$DP$191,6,FALSE)","v":64.278000000000006},{"$f":"VLOOKUP($A166,F1__World_Data!$A$4:$DP$191,5,FALSE)","v":64.236999999999995},{"$f":"VLOOKUP($A166,F1__World_Data!$A$4:$DP$191,4,FALSE)","v":64.477999999999994},{"$f":"VLOOKUP($A166,F1__World_Data!$A$4:$DP$191,3,FALSE)","v":64.596999999999994},{"$f":"VLOOKUP($A166,F1__World_Data!$A$4:$DP$191,2,FALSE)","v":64.293999999999997},null,{"$f":"VLOOKUP($A166,F1__World_Data!$A$4:$DP$191,120,FALSE)","v":68.116},{"$f":"VLOOKUP($A166,F1__World_Data!$A$4:$DP$191,119,FALSE)","v":67.850999999999999},{"$f":"VLOOKUP($A166,F1__World_Data!$A$4:$DP$191,118,FALSE)","v":67.576999999999998},{"$f":"VLOOKUP($A166,F1__World_Data!$A$4:$DP$191,117,FALSE)","v":67.290999999999997},{"$f":"VLOOKUP($A166,F1__World_Data!$A$4:$DP$191,116,FALSE)","v":66.995000000000005},{"$f":"VLOOKUP($A166,F1__World_Data!$A$4:$DP$191,115,FALSE)","v":66.69},{"$f":"VLOOKUP($A166,F1__World_Data!$A$4:$DP$191,114,FALSE)","v":66.381},{"$f":"VLOOKUP($A166,F1__World_Data!$A$4:$DP$191,113,FALSE)","v":66.072000000000003},{"$f":"VLOOKUP($A166,F1__World_Data!$A$4:$DP$191,112,FALSE)","v":65.769000000000005},{"$f":"VLOOKUP($A166,F1__World_Data!$A$4:$DP$191,111,FALSE)","v":65.48},{"$f":"VLOOKUP($A166,F1__World_Data!$A$4:$DP$191,110,FALSE)","v":65.207999999999998},{"$f":"VLOOKUP($A166,F1__World_Data!$A$4:$DP$191,109,FALSE)","v":64.953000000000003},{"$f":"VLOOKUP($A166,F1__World_Data!$A$4:$DP$191,108,FALSE)","v":64.712000000000003},{"$f":"VLOOKUP($A166,F1__World_Data!$A$4:$DP$191,107,FALSE)","v":64.477999999999994},{"$f":"VLOOKUP($A166,F1__World_Data!$A$4:$DP$191,106,FALSE)","v":64.242000000000004},{"$f":"VLOOKUP($A166,F1__World_Data!$A$4:$DP$191,105,FALSE)","v":63.994999999999997},{"$f":"VLOOKUP($A166,F1__World_Data!$A$4:$DP$191,104,FALSE)","v":63.731000000000002},{"$f":"VLOOKUP($A166,F1__World_Data!$A$4:$DP$191,103,FALSE)","v":63.445999999999998},{"$f":"VLOOKUP($A166,F1__World_Data!$A$4:$DP$191,102,FALSE)","v":63.143999999999998},{"$f":"VLOOKUP($A166,F1__World_Data!$A$4:$DP$191,101,FALSE)","v":62.829000000000001},{"$f":"VLOOKUP($A166,F1__World_Data!$A$4:$DP$191,100,FALSE)","v":62.509},{"$f":"VLOOKUP($A166,F1__World_Data!$A$4:$DP$191,99,FALSE)","v":62.188000000000002},{"$f":"VLOOKUP($A166,F1__World_Data!$A$4:$DP$191,98,FALSE)","v":61.866},{"$f":"VLOOKUP($A166,F1__World_Data!$A$4:$DP$191,97,FALSE)","v":61.539000000000001},{"$f":"VLOOKUP($A166,F1__World_Data!$A$4:$DP$191,96,FALSE)","v":61.198},{"$f":"VLOOKUP($A166,F1__World_Data!$A$4:$DP$191,95,FALSE)","v":60.837000000000003},{"$f":"VLOOKUP($A166,F1__World_Data!$A$4:$DP$191,94,FALSE)","v":60.454999999999998},{"$f":"VLOOKUP($A166,F1__World_Data!$A$4:$DP$191,93,FALSE)","v":60.052999999999997},{"$f":"VLOOKUP($A166,F1__World_Data!$A$4:$DP$191,92,FALSE)","v":59.636000000000003},{"$f":"VLOOKUP($A166,F1__World_Data!$A$4:$DP$191,91,FALSE)","v":59.209000000000003},{"$f":"VLOOKUP($A166,F1__World_Data!$A$4:$DP$191,90,FALSE)","v":58.783000000000001},{"$f":"VLOOKUP($A166,F1__World_Data!$A$4:$DP$191,89,FALSE)","v":58.366},{"$f":"VLOOKUP($A166,F1__World_Data!$A$4:$DP$191,88,FALSE)","v":57.962000000000003},{"$f":"VLOOKUP($A166,F1__World_Data!$A$4:$DP$191,87,FALSE)","v":57.579000000000001},{"$f":"VLOOKUP($A166,F1__World_Data!$A$4:$DP$191,86,FALSE)","v":57.220999999999997},{"$f":"VLOOKUP($A166,F1__World_Data!$A$4:$DP$191,85,FALSE)","v":56.886000000000003},{"$f":"VLOOKUP($A166,F1__World_Data!$A$4:$DP$191,84,FALSE)","v":56.569000000000003},{"$f":"VLOOKUP($A166,F1__World_Data!$A$4:$DP$191,83,FALSE)","v":56.265999999999998},{"$f":"VLOOKUP($A166,F1__World_Data!$A$4:$DP$191,82,FALSE)","v":55.970999999999997},{"$f":"VLOOKUP($A166,F1__World_Data!$A$4:$DP$191,81,FALSE)","v":55.679000000000002},{"$f":"VLOOKUP($A166,F1__World_Data!$A$4:$DP$191,80,FALSE)","v":55.381999999999998},{"$f":"VLOOKUP($A166,F1__World_Data!$A$4:$DP$191,79,FALSE)","v":55.073999999999998},{"$f":"VLOOKUP($A166,F1__World_Data!$A$4:$DP$191,78,FALSE)","v":54.747999999999998},{"$f":"VLOOKUP($A166,F1__World_Data!$A$4:$DP$191,77,FALSE)","v":54.399000000000001},{"$f":"VLOOKUP($A166,F1__World_Data!$A$4:$DP$191,76,FALSE)","v":54.027000000000001},{"$f":"VLOOKUP($A166,F1__World_Data!$A$4:$DP$191,75,FALSE)","v":53.633000000000003},{"$f":"VLOOKUP($A166,F1__World_Data!$A$4:$DP$191,74,FALSE)","v":53.218000000000004},{"$f":"VLOOKUP($A166,F1__World_Data!$A$4:$DP$191,73,FALSE)","v":52.781999999999996},{"$f":"VLOOKUP($A166,F1__World_Data!$A$4:$DP$191,72,FALSE)","v":52.323},{"$f":"VLOOKUP($A166,F1__World_Data!$A$4:$DP$191,71,FALSE)","v":51.837000000000003},{"$f":"VLOOKUP($A166,F1__World_Data!$A$4:$DP$191,70,FALSE)","v":51.326999999999998},{"$f":"VLOOKUP($A166,F1__World_Data!$A$4:$DP$191,69,FALSE)","v":50.795999999999999},{"$f":"VLOOKUP($A166,F1__World_Data!$A$4:$DP$191,68,FALSE)","v":50.25},{"$f":"VLOOKUP($A166,F1__World_Data!$A$4:$DP$191,67,FALSE)","v":49.697000000000003},{"$f":"VLOOKUP($A166,F1__World_Data!$A$4:$DP$191,66,FALSE)","v":49.145000000000003},{"$f":"VLOOKUP($A166,F1__World_Data!$A$4:$DP$191,65,FALSE)","v":48.600999999999999},{"$f":"VLOOKUP($A166,F1__World_Data!$A$4:$DP$191,64,FALSE)","v":48.070999999999998},{"$f":"VLOOKUP($A166,F1__World_Data!$A$4:$DP$191,63,FALSE)","v":47.557000000000002},{"$f":"VLOOKUP($A166,F1__World_Data!$A$4:$DP$191,62,FALSE)","v":47.061}]
["Samoa",{"$f":"VLOOKUP($A167,F1__World_Data!$A$4:$DP$191,60,FALSE)","v":196.12799999999999},{"$f":"VLOOKUP($A167,F1__World_Data!$A$4:$DP$191,59,FALSE)","v":195.358},{"$f":"VLOOKUP($A167,F1__World_Data!$A$4:$DP$191,58,FALSE)","v":194.54},{"$f":"VLOOKUP($A167,F1__World_Data!$A$4:$DP$191,57,FALSE)","v":193.51},{"$f":"VLOOKUP($A167,F1__World_Data!$A$4:$DP$191,56,FALSE)","v":192.22},{"$f":"VLOOKUP($A167,F1__World_Data!$A$4:$DP$191,55,FALSE)","v":190.71199999999999},{"$f":"VLOOKUP($A167,F1__World_Data!$A$4:$DP$191,54,FALSE)","v":189.089},{"$f":"VLOOKUP($A167,F1__World_Data!$A$4:$DP$191,53,FALSE)","v":187.46899999999999},{"$f":"VLOOKUP($A167,F1__World_Data!$A$4:$DP$191,52,FALSE)","v":185.94399999999999},{"$f":"VLOOKUP($A167,F1__World_Data!$A$4:$DP$191,51,FALSE)","v":184.553},{"$f":"VLOOKUP($A167,F1__World_Data!$A$4:$DP$191,50,FALSE)","v":183.27},{"$f":"VLOOKUP($A167,F1__World_Data!$A$4:$DP$191,49,FALSE)","v":182.04499999999999},{"$f":"VLOOKUP($A167,F1__World_Data!$A$4:$DP$191,48,FALSE)","v":180.874},{"$f":"VLOOKUP($A167,F1__World_Data!$A$4:$DP$191,47,FALSE)","v":179.72200000000001},{"$f":"VLOOKUP($A167,F1__World_Data!$A$4:$DP$191,46,FALSE)","v":178.59700000000001},{"$f":"VLOOKUP($A167,F1__World_Data!$A$4:$DP$191,45,FALSE)","v":177.48099999999999},{"$f":"VLOOKUP($A167,F1__World_Data!$A$4:$DP$191,44,FALSE)","v":176.41},{"$f":"VLOOKUP($A167,F1__World_Data!$A$4:$DP$191,43,FALSE)","v":175.39400000000001},{"$f":"VLOOKUP($A167,F1__World_Data!$A$4:$DP$191,42,FALSE)","v":174.45400000000001},{"$f":"VLOOKUP($A167,F1__World_Data!$A$4:$DP$191,41,FALSE)","v":173.60599999999999},{"$f":"VLOOKUP($A167,F1__World_Data!$A$4:$DP$191,40,FALSE)","v":172.839},{"$f":"VLOOKUP($A167,F1__World_Data!$A$4:$DP$191,39,FALSE)","v":172.065},{"$f":"VLOOKUP($A167,F1__World_Data!$A$4:$DP$191,38,FALSE)","v":171.16499999999999},{"$f":"VLOOKUP($A167,F1__World_Data!$A$4:$DP$191,37,FALSE)","v":170.05},{"$f":"VLOOKUP($A167,F1__World_Data!$A$4:$DP$191,36,FALSE)","v":168.68899999999999},{"$f":"VLOOKUP($A167,F1__World_Data!$A$4:$DP$191,35,FALSE)","v":167.11699999999999},{"$f":"VLOOKUP($A167,F1__World_Data!$A$4:$DP$191,34,FALSE)","v":165.49},{"$f":"VLOOKUP($A167,F1__World_Data!$A$4:$DP$191,33,FALSE)","v":164},{"$f":"VLOOKUP($A167,F1__World_Data!$A$4:$DP$191,32,FALSE)","v":162.797},{"$f":"VLOOKUP($A167,F1__World_Data!$A$4:$DP$191,31,FALSE)","v":161.935},{"$f":"VLOOKUP($A167,F1__World_Data!$A$4:$DP$191,30,FALSE)","v":161.369},{"$f":"VLOOKUP($A167,F1__World_Data!$A$4:$DP$191,29,FALSE)","v":160.96199999999999},{"$f":"VLOOKUP($A167,F1__World_Data!$A$4:$DP$191,28,FALSE)","v":160.55199999999999},{"$f":"VLOOKUP($A167,F1__World_Data!$A$4:$DP$191,27,FALSE)","v":159.995},{"$f":"VLOOKUP($A167,F1__World_Data!$A$4:$DP$191,26,FALSE)","v":159.24299999999999},{"$f":"VLOOKUP($A167,F1__World_Data!$A$4:$DP$191,25,FALSE)","v":158.345},{"$f":"VLOOKUP($A167,F1__World_Data!$A$4:$DP$191,24,FALSE)","v":157.36500000000001},{"$f":"VLOOKUP($A167,F1__World_Data!$A$4:$DP$191,23,FALSE)","v":156.41},{"$f":"VLOOKUP($A167,F1__World_Data!$A$4:$DP$191,22,FALSE)","v":155.52199999999999},{"$f":"VLOOKUP($A167,F1__World_Data!$A$4:$DP$191,21,FALSE)","v":154.74},{"$f":"VLOOKUP($A167,F1__World_Data!$A$4:$DP$191,20,FALSE)","v":153.98599999999999},{"$f":"VLOOKUP($A167,F1__World_Data!$A$4:$DP$191,19,FALSE)","v":153.21799999999999},{"$f":"VLOOKUP($A167,F1__World_Data!$A$4:$DP$191,18,FALSE)","v":152.36199999999999},{"$f":"VLOOKUP($A167,F1__World_Data!$A$4:$DP$191,17,FALSE)","v":151.35300000000001},{"$f":"VLOOKUP($A167,F1__World_Data!$A$4:$DP$191,16,FALSE)","v":150.191},{"$f":"VLOOKUP($A167,F1__World_Data!$A$4:$DP$191,15,FALSE)","v":148.858},{"$f":"VLOOKUP($A167,F1__World_Data!$A$4:$DP$191,14,FALSE)","v":147.29499999999999},{"$f":"VLOOKUP($A167,F1__World_Data!$A$4:$DP$191,13,FALSE)","v":145.40700000000001},{"$f":"VLOOKUP($A167,F1__World_Data!$A$4:$DP$191,12,FALSE)","v":143.14599999999999},{"$f":"VLOOKUP($A167,F1__World_Data!$A$4:$DP$191,11,FALSE)","v":140.495},{"$f":"VLOOKUP($A167,F1__World_Data!$A$4:$DP$191,10,FALSE)","v":137.48400000000001},{"$f":"VLOOKUP($A167,F1__World_Data!$A$4:$DP$191,9,FALSE)","v":134.18100000000001},{"$f":"VLOOKUP($A167,F1__World_Data!$A$4:$DP$191,8,FALSE)","v":130.672},{"$f":"VLOOKUP($A167,F1__World_Data!$A$4:$DP$191,7,FALSE)","v":127.05500000000001},{"$f":"VLOOKUP($A167,F1__World_Data!$A$4:$DP$191,6,FALSE)","v":123.346},{"$f":"VLOOKUP($A167,F1__World_Data!$A$4:$DP$191,5,FALSE)","v":119.55200000000001},{"$f":"VLOOKUP($A167,F1__World_Data!$A$4:$DP$191,4,FALSE)","v":115.768},{"$f":"VLOOKUP($A167,F1__World_Data!$A$4:$DP$191,3,FALSE)","v":112.11199999999999},{"$f":"VLOOKUP($A167,F1__World_Data!$A$4:$DP$191,2,FALSE)","v":108.627},null,{"$f":"VLOOKUP($A167,F1__World_Data!$A$4:$DP$191,120,FALSE)","v":68.116},{"$f":"VLOOKUP($A167,F1__World_Data!$A$4:$DP$191,119,FALSE)","v":67.850999999999999},{"$f":"VLOOKUP($A167,F1__World_Data!$A$4:$DP$191,118,FALSE)","v":67.576999999999998},{"$f":"VLOOKUP($A167,F1__World_Data!$A$4:$DP$191,117,FALSE)","v":67.290999999999997},{"$f":"VLOOKUP($A167,F1__World_Data!$A$4:$DP$191,116,FALSE)","v":66.995000000000005},{"$f":"VLOOKUP($A167,F1__World_Data!$A$4:$DP$191,115,FALSE)","v":66.69},{"$f":"VLOOKUP($A167,F1__World_Data!$A$4:$DP$191,114,FALSE)","v":66.381},{"$f":"VLOOKUP($A167,F1__World_Data!$A$4:$DP$191,113,FALSE)","v":66.072000000000003},{"$f":"VLOOKUP($A167,F1__World_Data!$A$4:$DP$191,112,FALSE)","v":65.769000000000005},{"$f":"VLOOKUP($A167,F1__World_Data!$A$4:$DP$191,111,FALSE)","v":65.48},{"$f":"VLOOKUP($A167,F1__World_Data!$A$4:$DP$191,110,FALSE)","v":65.207999999999998},{"$f":"VLOOKUP($A167,F1__World_Data!$A$4:$DP$191,109,FALSE)","v":64.953000000000003},{"$f":"VLOOKUP($A167,F1__World_Data!$A$4:$DP$191,108,FALSE)","v":64.712000000000003},{"$f":"VLOOKUP($A167,F1__World_Data!$A$4:$DP$191,107,FALSE)","v":64.477999999999994},{"$f":"VLOOKUP($A167,F1__World_Data!$A$4:$DP$191,106,FALSE)","v":64.242000000000004},{"$f":"VLOOKUP($A167,F1__World_Data!$A$4:$DP$191,105,FALSE)","v":63.994999999999997},{"$f":"VLOOKUP($A167,F1__World_Data!$A$4:$DP$191,104,FALSE)","v":63.731000000000002},{"$f":"VLOOKUP($A167,F1__World_Data!$A$4:$DP$191,103,FALSE)","v":63.445999999999998},{"$f":"VLOOKUP($A167,F1__World_Data!$A$4:$DP$191,102,FALSE)","v":63.143999999999998},{"$f":"VLOOKUP($A167,F1__World_Data!$A$4:$DP$191,101,FALSE)","v":62.829000000000001},{"$f":"VLOOKUP($A167,F1__World_Data!$A$4:$DP$191,100,FALSE)","v":62.509},{"$f":"VLOOKUP($A167,F1__World_Data!$A$4:$DP$191,99,FALSE)","v":62.188000000000002},{"$f":"VLOOKUP($A167,F1__World_Data!$A$4:$DP$191,98,FALSE)","v":61.866},{"$f":"VLOOKUP($A167,F1__World_Data!$A$4:$DP$191,97,FALSE)","v":61.539000000000001},{"$f":"VLOOKUP($A167,F1__World_Data!$A$4:$DP$191,96,FALSE)","v":61.198},{"$f":"VLOOKUP($A167,F1__World_Data!$A$4:$DP$191,95,FALSE)","v":60.837000000000003},{"$f":"VLOOKUP($A167,F1__World_Data!$A$4:$DP$191,94,FALSE)","v":60.454999999999998},{"$f":"VLOOKUP($A167,F1__World_Data!$A$4:$DP$191,93,FALSE)","v":60.052999999999997},{"$f":"VLOOKUP($A167,F1__World_Data!$A$4:$DP$191,92,FALSE)","v":59.636000000000003},{"$f":"VLOOKUP($A167,F1__World_Data!$A$4:$DP$191,91,FALSE)","v":59.209000000000003},{"$f":"VLOOKUP($A167,F1__World_Data!$A$4:$DP$191,90,FALSE)","v":58.783000000000001},{"$f":"VLOOKUP($A167,F1__World_Data!$A$4:$DP$191,89,FALSE)","v":58.366},{"$f":"VLOOKUP($A167,F1__World_Data!$A$4:$DP$191,88,FALSE)","v":57.962000000000003},{"$f":"VLOOKUP($A167,F1__World_Data!$A$4:$DP$191,87,FALSE)","v":57.579000000000001},{"$f":"VLOOKUP($A167,F1__World_Data!$A$4:$DP$191,86,FALSE)","v":57.220999999999997},{"$f":"VLOOKUP($A167,F1__World_Data!$A$4:$DP$191,85,FALSE)","v":56.886000000000003},{"$f":"VLOOKUP($A167,F1__World_Data!$A$4:$DP$191,84,FALSE)","v":56.569000000000003},{"$f":"VLOOKUP($A167,F1__World_Data!$A$4:$DP$191,83,FALSE)","v":56.265999999999998},{"$f":"VLOOKUP($A167,F1__World_Data!$A$4:$DP$191,82,FALSE)","v":55.970999999999997},{"$f":"VLOOKUP($A167,F1__World_Data!$A$4:$DP$191,81,FALSE)","v":55.679000000000002},{"$f":"VLOOKUP($A167,F1__World_Data!$A$4:$DP$191,80,FALSE)","v":55.381999999999998},{"$f":"VLOOKUP($A167,F1__World_Data!$A$4:$DP$191,79,FALSE)","v":55.073999999999998},{"$f":"VLOOKUP($A167,F1__World_Data!$A$4:$DP$191,78,FALSE)","v":54.747999999999998},{"$f":"VLOOKUP($A167,F1__World_Data!$A$4:$DP$191,77,FALSE)","v":54.399000000000001},{"$f":"VLOOKUP($A167,F1__World_Data!$A$4:$DP$191,76,FALSE)","v":54.027000000000001},{"$f":"VLOOKUP($A167,F1__World_Data!$A$4:$DP$191,75,FALSE)","v":53.633000000000003},{"$f":"VLOOKUP($A167,F1__World_Data!$A$4:$DP$191,74,FALSE)","v":53.218000000000004},{"$f":"VLOOKUP($A167,F1__World_Data!$A$4:$DP$191,73,FALSE)","v":52.781999999999996},{"$f":"VLOOKUP($A167,F1__World_Data!$A$4:$DP$191,72,FALSE)","v":52.323},{"$f":"VLOOKUP($A167,F1__World_Data!$A$4:$DP$191,71,FALSE)","v":51.837000000000003},{"$f":"VLOOKUP($A167,F1__World_Data!$A$4:$DP$191,70,FALSE)","v":51.326999999999998},{"$f":"VLOOKUP($A167,F1__World_Data!$A$4:$DP$191,69,FALSE)","v":50.795999999999999},{"$f":"VLOOKUP($A167,F1__World_Data!$A$4:$DP$191,68,FALSE)","v":50.25},{"$f":"VLOOKUP($A167,F1__World_Data!$A$4:$DP$191,67,FALSE)","v":49.697000000000003},{"$f":"VLOOKUP($A167,F1__World_Data!$A$4:$DP$191,66,FALSE)","v":49.145000000000003},{"$f":"VLOOKUP($A167,F1__World_Data!$A$4:$DP$191,65,FALSE)","v":48.600999999999999},{"$f":"VLOOKUP($A167,F1__World_Data!$A$4:$DP$191,64,FALSE)","v":48.070999999999998},{"$f":"VLOOKUP($A167,F1__World_Data!$A$4:$DP$191,63,FALSE)","v":47.557000000000002},{"$f":"VLOOKUP($A167,F1__World_Data!$A$4:$DP$191,62,FALSE)","v":47.061}]
["Channel Islands",{"$f":"VLOOKUP($A168,F1__World_Data!$A$4:$DP$191,60,FALSE)","v":170.49600000000001},{"$f":"VLOOKUP($A168,F1__World_Data!$A$4:$DP$191,59,FALSE)","v":168.666},{"$f":"VLOOKUP($A168,F1__World_Data!$A$4:$DP$191,58,FALSE)","v":166.922},{"$f":"VLOOKUP($A168,F1__World_Data!$A$4:$DP$191,57,FALSE)","v":165.387},{"$f":"VLOOKUP($A168,F1__World_Data!$A$4:$DP$191,56,FALSE)","v":164.107},{"$f":"VLOOKUP($A168,F1__World_Data!$A$4:$DP$191,55,FALSE)","v":163.03899999999999},{"$f":"VLOOKUP($A168,F1__World_Data!$A$4:$DP$191,54,FALSE)","v":162.05099999999999},{"$f":"VLOOKUP($A168,F1__World_Data!$A$4:$DP$191,53,FALSE)","v":160.99},{"$f":"VLOOKUP($A168,F1__World_Data!$A$4:$DP$191,52,FALSE)","v":159.71799999999999},{"$f":"VLOOKUP($A168,F1__World_Data!$A$4:$DP$191,51,FALSE)","v":158.18700000000001},{"$f":"VLOOKUP($A168,F1__World_Data!$A$4:$DP$191,50,FALSE)","v":156.441},{"$f":"VLOOKUP($A168,F1__World_Data!$A$4:$DP$191,49,FALSE)","v":154.64400000000001},{"$f":"VLOOKUP($A168,F1__World_Data!$A$4:$DP$191,48,FALSE)","v":152.999},{"$f":"VLOOKUP($A168,F1__World_Data!$A$4:$DP$191,47,FALSE)","v":151.67400000000001},{"$f":"VLOOKUP($A168,F1__World_Data!$A$4:$DP$191,46,FALSE)","v":150.72200000000001},{"$f":"VLOOKUP($A168,F1__World_Data!$A$4:$DP$191,45,FALSE)","v":150.07},{"$f":"VLOOKUP($A168,F1__World_Data!$A$4:$DP$191,44,FALSE)","v":149.59100000000001},{"$f":"VLOOKUP($A168,F1__World_Data!$A$4:$DP$191,43,FALSE)","v":149.09700000000001},{"$f":"VLOOKUP($A168,F1__World_Data!$A$4:$DP$191,42,FALSE)","v":148.43899999999999},{"$f":"VLOOKUP($A168,F1__World_Data!$A$4:$DP$191,41,FALSE)","v":147.553},{"$f":"VLOOKUP($A168,F1__World_Data!$A$4:$DP$191,40,FALSE)","v":146.5},{"$f":"VLOOKUP($A168,F1__World_Data!$A$4:$DP$191,39,FALSE)","v":145.387},{"$f":"VLOOKUP($A168,F1__World_Data!$A$4:$DP$191,38,FALSE)","v":144.34800000000001},{"$f":"VLOOKUP($A168,F1__World_Data!$A$4:$DP$191,37,FALSE)","v":143.47999999999999},{"$f":"VLOOKUP($A168,F1__World_Data!$A$4:$DP$191,36,FALSE)","v":142.86699999999999},{"$f":"VLOOKUP($A168,F1__World_Data!$A$4:$DP$191,35,FALSE)","v":142.40700000000001},{"$f":"VLOOKUP($A168,F1__World_Data!$A$4:$DP$191,34,FALSE)","v":142.006},{"$f":"VLOOKUP($A168,F1__World_Data!$A$4:$DP$191,33,FALSE)","v":141.46899999999999},{"$f":"VLOOKUP($A168,F1__World_Data!$A$4:$DP$191,32,FALSE)","v":140.67699999999999},{"$f":"VLOOKUP($A168,F1__World_Data!$A$4:$DP$191,31,FALSE)","v":139.58000000000001},{"$f":"VLOOKUP($A168,F1__World_Data!$A$4:$DP$191,30,FALSE)","v":138.25},{"$f":"VLOOKUP($A168,F1__World_Data!$A$4:$DP$191,29,FALSE)","v":136.762},{"$f":"VLOOKUP($A168,F1__World_Data!$A$4:$DP$191,28,FALSE)","v":135.24199999999999},{"$f":"VLOOKUP($A168,F1__World_Data!$A$4:$DP$191,27,FALSE)","v":133.80000000000001},{"$f":"VLOOKUP($A168,F1__World_Data!$A$4:$DP$191,26,FALSE)","v":132.44499999999999},{"$f":"VLOOKUP($A168,F1__World_Data!$A$4:$DP$191,25,FALSE)","v":131.15299999999999},{"$f":"VLOOKUP($A168,F1__World_Data!$A$4:$DP$191,24,FALSE)","v":129.976},{"$f":"VLOOKUP($A168,F1__World_Data!$A$4:$DP$191,23,FALSE)","v":128.98599999999999},{"$f":"VLOOKUP($A168,F1__World_Data!$A$4:$DP$191,22,FALSE)","v":128.20400000000001},{"$f":"VLOOKUP($A168,F1__World_Data!$A$4:$DP$191,21,FALSE)","v":127.691},{"$f":"VLOOKUP($A168,F1__World_Data!$A$4:$DP$191,20,FALSE)","v":127.395},{"$f":"VLOOKUP($A168,F1__World_Data!$A$4:$DP$191,19,FALSE)","v":127.18600000000001},{"$f":"VLOOKUP($A168,F1__World_Data!$A$4:$DP$191,18,FALSE)","v":126.908},{"$f":"VLOOKUP($A168,F1__World_Data!$A$4:$DP$191,17,FALSE)","v":126.42},{"$f":"VLOOKUP($A168,F1__World_Data!$A$4:$DP$191,16,FALSE)","v":125.68},{"$f":"VLOOKUP($A168,F1__World_Data!$A$4:$DP$191,15,FALSE)","v":124.72199999999999},{"$f":"VLOOKUP($A168,F1__World_Data!$A$4:$DP$191,14,FALSE)","v":123.611},{"$f":"VLOOKUP($A168,F1__World_Data!$A$4:$DP$191,13,FALSE)","v":122.405},{"$f":"VLOOKUP($A168,F1__World_Data!$A$4:$DP$191,12,FALSE)","v":121.2},{"$f":"VLOOKUP($A168,F1__World_Data!$A$4:$DP$191,11,FALSE)","v":119.97499999999999},{"$f":"VLOOKUP($A168,F1__World_Data!$A$4:$DP$191,10,FALSE)","v":118.72499999999999},{"$f":"VLOOKUP($A168,F1__World_Data!$A$4:$DP$191,9,FALSE)","v":117.46899999999999},{"$f":"VLOOKUP($A168,F1__World_Data!$A$4:$DP$191,8,FALSE)","v":116.229},{"$f":"VLOOKUP($A168,F1__World_Data!$A$4:$DP$191,7,FALSE)","v":114.989},{"$f":"VLOOKUP($A168,F1__World_Data!$A$4:$DP$191,6,FALSE)","v":113.777},{"$f":"VLOOKUP($A168,F1__World_Data!$A$4:$DP$191,5,FALSE)","v":112.59099999999999},{"$f":"VLOOKUP($A168,F1__World_Data!$A$4:$DP$191,4,FALSE)","v":111.464},{"$f":"VLOOKUP($A168,F1__World_Data!$A$4:$DP$191,3,FALSE)","v":110.398},{"$f":"VLOOKUP($A168,F1__World_Data!$A$4:$DP$191,2,FALSE)","v":109.419},null,{"$f":"VLOOKUP($A168,F1__World_Data!$A$4:$DP$191,120,FALSE)","v":77.013154810125457},{"$f":"VLOOKUP($A168,F1__World_Data!$A$4:$DP$191,119,FALSE)","v":76.947462150480874},{"$f":"VLOOKUP($A168,F1__World_Data!$A$4:$DP$191,118,FALSE)","v":76.969807982335965},{"$f":"VLOOKUP($A168,F1__World_Data!$A$4:$DP$191,117,FALSE)","v":76.571877764778804},{"$f":"VLOOKUP($A168,F1__World_Data!$A$4:$DP$191,116,FALSE)","v":76.675623611304488},{"$f":"VLOOKUP($A168,F1__World_Data!$A$4:$DP$191,115,FALSE)","v":76.355162986980844},{"$f":"VLOOKUP($A168,F1__World_Data!$A$4:$DP$191,114,FALSE)","v":75.993488603453059},{"$f":"VLOOKUP($A168,F1__World_Data!$A$4:$DP$191,113,FALSE)","v":75.888474883428188},{"$f":"VLOOKUP($A168,F1__World_Data!$A$4:$DP$191,112,FALSE)","v":75.293965778631389},{"$f":"VLOOKUP($A168,F1__World_Data!$A$4:$DP$191,111,FALSE)","v":74.930363926657648},{"$f":"VLOOKUP($A168,F1__World_Data!$A$4:$DP$191,110,FALSE)","v":74.575952678077925},{"$f":"VLOOKUP($A168,F1__World_Data!$A$4:$DP$191,109,FALSE)","v":74.250648721076857},{"$f":"VLOOKUP($A168,F1__World_Data!$A$4:$DP$191,108,FALSE)","v":74.092602730809759},{"$f":"VLOOKUP($A168,F1__World_Data!$A$4:$DP$191,107,FALSE)","v":73.838300183861094},{"$f":"VLOOKUP($A168,F1__World_Data!$A$4:$DP$191,106,FALSE)","v":73.73715299612762},{"$f":"VLOOKUP($A168,F1__World_Data!$A$4:$DP$191,105,FALSE)","v":73.382252782525796},{"$f":"VLOOKUP($A168,F1__World_Data!$A$4:$DP$191,104,FALSE)","v":73.242415488092149},{"$f":"VLOOKUP($A168,F1__World_Data!$A$4:$DP$191,103,FALSE)","v":73.096148193734322},{"$f":"VLOOKUP($A168,F1__World_Data!$A$4:$DP$191,102,FALSE)","v":72.719724722779048},{"$f":"VLOOKUP($A168,F1__World_Data!$A$4:$DP$191,101,FALSE)","v":72.184561074087483},{"$f":"VLOOKUP($A168,F1__World_Data!$A$4:$DP$191,100,FALSE)","v":71.898237675995631},{"$f":"VLOOKUP($A168,F1__World_Data!$A$4:$DP$191,99,FALSE)","v":71.517258069682228},{"$f":"VLOOKUP($A168,F1__World_Data!$A$4:$DP$191,98,FALSE)","v":71.336058018995075},{"$f":"VLOOKUP($A168,F1__World_Data!$A$4:$DP$191,97,FALSE)","v":71.025421428289064},{"$f":"VLOOKUP($A168,F1__World_Data!$A$4:$DP$191,96,FALSE)","v":70.869543944747306},{"$f":"VLOOKUP($A168,F1__World_Data!$A$4:$DP$191,95,FALSE)","v":70.845986615144795},{"$f":"VLOOKUP($A168,F1__World_Data!$A$4:$DP$191,94,FALSE)","v":70.732837131415664},{"$f":"VLOOKUP($A168,F1__World_Data!$A$4:$DP$191,93,FALSE)","v":70.57522130347742},{"$f":"VLOOKUP($A168,F1__World_Data!$A$4:$DP$191,92,FALSE)","v":70.656331337258607},{"$f":"VLOOKUP($A168,F1__World_Data!$A$4:$DP$191,91,FALSE)","v":70.731972259748474},{"$f":"VLOOKUP($A168,F1__World_Data!$A$4:$DP$191,90,FALSE)","v":70.861708225052027},{"$f":"VLOOKUP($A168,F1__World_Data!$A$4:$DP$191,89,FALSE)","v":70.611763331234172},{"$f":"VLOOKUP($A168,F1__World_Data!$A$4:$DP$191,88,FALSE)","v":70.565136039744331},{"$f":"VLOOKUP($A168,F1__World_Data!$A$4:$DP$191,87,FALSE)","v":70.312883466323655},{"$f":"VLOOKUP($A168,F1__World_Data!$A$4:$DP$191,86,FALSE)","v":70.349114856134193},{"$f":"VLOOKUP($A168,F1__World_Data!$A$4:$DP$191,85,FALSE)","v":70.389785169429601},{"$f":"VLOOKUP($A168,F1__World_Data!$A$4:$DP$191,84,FALSE)","v":70.45547331873172},{"$f":"VLOOKUP($A168,F1__World_Data!$A$4:$DP$191,83,FALSE)","v":70.372050177777368},{"$f":"VLOOKUP($A168,F1__World_Data!$A$4:$DP$191,82,FALSE)","v":69.890509798033563},{"$f":"VLOOKUP($A168,F1__World_Data!$A$4:$DP$191,81,FALSE)","v":70.239396993958749},{"$f":"VLOOKUP($A168,F1__World_Data!$A$4:$DP$191,80,FALSE)","v":70.147932106139478},{"$f":"VLOOKUP($A168,F1__World_Data!$A$4:$DP$191,79,FALSE)","v":70.242373148279256},{"$f":"VLOOKUP($A168,F1__World_Data!$A$4:$DP$191,78,FALSE)","v":70.319148895789127},{"$f":"VLOOKUP($A168,F1__World_Data!$A$4:$DP$191,77,FALSE)","v":70.174408694229456},{"$f":"VLOOKUP($A168,F1__World_Data!$A$4:$DP$191,76,FALSE)","v":70.30593936929715},{"$f":"VLOOKUP($A168,F1__World_Data!$A$4:$DP$191,75,FALSE)","v":70.067777192089565},{"$f":"VLOOKUP($A168,F1__World_Data!$A$4:$DP$191,74,FALSE)","v":69.925441264574317},{"$f":"VLOOKUP($A168,F1__World_Data!$A$4:$DP$191,73,FALSE)","v":69.485165745849855},{"$f":"VLOOKUP($A168,F1__World_Data!$A$4:$DP$191,72,FALSE)","v":69.446955055223569},{"$f":"VLOOKUP($A168,F1__World_Data!$A$4:$DP$191,71,FALSE)","v":69.275734201981379},{"$f":"VLOOKUP($A168,F1__World_Data!$A$4:$DP$191,70,FALSE)","v":69.536025304884078},{"$f":"VLOOKUP($A168,F1__World_Data!$A$4:$DP$191,69,FALSE)","v":69.272742187699023},{"$f":"VLOOKUP($A168,F1__World_Data!$A$4:$DP$191,68,FALSE)","v":69.527071933977979},{"$f":"VLOOKUP($A168,F1__World_Data!$A$4:$DP$191,67,FALSE)","v":69.276997595515866},{"$f":"VLOOKUP($A168,F1__World_Data!$A$4:$DP$191,66,FALSE)","v":69.052484538875277},{"$f":"VLOOKUP($A168,F1__World_Data!$A$4:$DP$191,65,FALSE)","v":68.696047369716993},{"$f":"VLOOKUP($A168,F1__World_Data!$A$4:$DP$191,64,FALSE)","v":68.006925641810753},{"$f":"VLOOKUP($A168,F1__World_Data!$A$4:$DP$191,63,FALSE)","v":68.262198343866316},{"$f":"VLOOKUP($A168,F1__World_Data!$A$4:$DP$191,62,FALSE)","v":67.821388639175453}]
["Guam",{"$f":"VLOOKUP($A169,F1__World_Data!$A$4:$DP$191,60,FALSE)","v":165.77},{"$f":"VLOOKUP($A169,F1__World_Data!$A$4:$DP$191,59,FALSE)","v":164.28100000000001},{"$f":"VLOOKUP($A169,F1__World_Data!$A$4:$DP$191,58,FALSE)","v":162.94800000000001},{"$f":"VLOOKUP($A169,F1__World_Data!$A$4:$DP$191,57,FALSE)","v":161.851},{"$f":"VLOOKUP($A169,F1__World_Data!$A$4:$DP$191,56,FALSE)","v":161.00700000000001},{"$f":"VLOOKUP($A169,F1__World_Data!$A$4:$DP$191,55,FALSE)","v":160.41499999999999},{"$f":"VLOOKUP($A169,F1__World_Data!$A$4:$DP$191,54,FALSE)","v":159.99},{"$f":"VLOOKUP($A169,F1__World_Data!$A$4:$DP$191,53,FALSE)","v":159.69},{"$f":"VLOOKUP($A169,F1__World_Data!$A$4:$DP$191,52,FALSE)","v":159.43899999999999},{"$f":"VLOOKUP($A169,F1__World_Data!$A$4:$DP$191,51,FALSE)","v":159.232},{"$f":"VLOOKUP($A169,F1__World_Data!$A$4:$DP$191,50,FALSE)","v":159.03700000000001},{"$f":"VLOOKUP($A169,F1__World_Data!$A$4:$DP$191,49,FALSE)","v":158.84800000000001},{"$f":"VLOOKUP($A169,F1__World_Data!$A$4:$DP$191,48,FALSE)","v":158.649},{"$f":"VLOOKUP($A169,F1__World_Data!$A$4:$DP$191,47,FALSE)","v":158.40600000000001},{"$f":"VLOOKUP($A169,F1__World_Data!$A$4:$DP$191,46,FALSE)","v":158.09399999999999},{"$f":"VLOOKUP($A169,F1__World_Data!$A$4:$DP$191,45,FALSE)","v":157.72300000000001},{"$f":"VLOOKUP($A169,F1__World_Data!$A$4:$DP$191,44,FALSE)","v":157.173},{"$f":"VLOOKUP($A169,F1__World_Data!$A$4:$DP$191,43,FALSE)","v":156.39500000000001},{"$f":"VLOOKUP($A169,F1__World_Data!$A$4:$DP$191,42,FALSE)","v":155.32300000000001},{"$f":"VLOOKUP($A169,F1__World_Data!$A$4:$DP$191,41,FALSE)","v":153.95500000000001},{"$f":"VLOOKUP($A169,F1__World_Data!$A$4:$DP$191,40,FALSE)","v":152.274},{"$f":"VLOOKUP($A169,F1__World_Data!$A$4:$DP$191,39,FALSE)","v":150.303},{"$f":"VLOOKUP($A169,F1__World_Data!$A$4:$DP$191,38,FALSE)","v":148.06100000000001},{"$f":"VLOOKUP($A169,F1__World_Data!$A$4:$DP$191,37,FALSE)","v":145.559},{"$f":"VLOOKUP($A169,F1__World_Data!$A$4:$DP$191,36,FALSE)","v":142.80600000000001},{"$f":"VLOOKUP($A169,F1__World_Data!$A$4:$DP$191,35,FALSE)","v":139.81299999999999},{"$f":"VLOOKUP($A169,F1__World_Data!$A$4:$DP$191,34,FALSE)","v":136.69300000000001},{"$f":"VLOOKUP($A169,F1__World_Data!$A$4:$DP$191,33,FALSE)","v":133.553},{"$f":"VLOOKUP($A169,F1__World_Data!$A$4:$DP$191,32,FALSE)","v":130.47999999999999},{"$f":"VLOOKUP($A169,F1__World_Data!$A$4:$DP$191,31,FALSE)","v":127.52500000000001},{"$f":"VLOOKUP($A169,F1__World_Data!$A$4:$DP$191,30,FALSE)","v":124.67400000000001},{"$f":"VLOOKUP($A169,F1__World_Data!$A$4:$DP$191,29,FALSE)","v":121.923},{"$f":"VLOOKUP($A169,F1__World_Data!$A$4:$DP$191,28,FALSE)","v":119.22799999999999},{"$f":"VLOOKUP($A169,F1__World_Data!$A$4:$DP$191,27,FALSE)","v":116.57599999999999},{"$f":"VLOOKUP($A169,F1__World_Data!$A$4:$DP$191,26,FALSE)","v":113.953},{"$f":"VLOOKUP($A169,F1__World_Data!$A$4:$DP$191,25,FALSE)","v":111.40300000000001},{"$f":"VLOOKUP($A169,F1__World_Data!$A$4:$DP$191,24,FALSE)","v":108.901},{"$f":"VLOOKUP($A169,F1__World_Data!$A$4:$DP$191,23,FALSE)","v":106.482},{"$f":"VLOOKUP($A169,F1__World_Data!$A$4:$DP$191,22,FALSE)","v":104.134},{"$f":"VLOOKUP($A169,F1__World_Data!$A$4:$DP$191,21,FALSE)","v":101.837},{"$f":"VLOOKUP($A169,F1__World_Data!$A$4:$DP$191,20,FALSE)","v":99.629000000000005},{"$f":"VLOOKUP($A169,F1__World_Data!$A$4:$DP$191,19,FALSE)","v":97.477000000000004},{"$f":"VLOOKUP($A169,F1__World_Data!$A$4:$DP$191,18,FALSE)","v":95.38},{"$f":"VLOOKUP($A169,F1__World_Data!$A$4:$DP$191,17,FALSE)","v":93.350999999999999},{"$f":"VLOOKUP($A169,F1__World_Data!$A$4:$DP$191,16,FALSE)","v":91.378},{"$f":"VLOOKUP($A169,F1__World_Data!$A$4:$DP$191,15,FALSE)","v":89.459000000000003},{"$f":"VLOOKUP($A169,F1__World_Data!$A$4:$DP$191,14,FALSE)","v":87.58},{"$f":"VLOOKUP($A169,F1__World_Data!$A$4:$DP$191,13,FALSE)","v":85.728999999999999},{"$f":"VLOOKUP($A169,F1__World_Data!$A$4:$DP$191,12,FALSE)","v":83.875},{"$f":"VLOOKUP($A169,F1__World_Data!$A$4:$DP$191,11,FALSE)","v":82.04},{"$f":"VLOOKUP($A169,F1__World_Data!$A$4:$DP$191,10,FALSE)","v":80.212000000000003},{"$f":"VLOOKUP($A169,F1__World_Data!$A$4:$DP$191,9,FALSE)","v":78.412000000000006},{"$f":"VLOOKUP($A169,F1__World_Data!$A$4:$DP$191,8,FALSE)","v":76.611000000000004},{"$f":"VLOOKUP($A169,F1__World_Data!$A$4:$DP$191,7,FALSE)","v":74.828000000000003},{"$f":"VLOOKUP($A169,F1__World_Data!$A$4:$DP$191,6,FALSE)","v":73.046999999999997},{"$f":"VLOOKUP($A169,F1__World_Data!$A$4:$DP$191,5,FALSE)","v":71.289000000000001},{"$f":"VLOOKUP($A169,F1__World_Data!$A$4:$DP$191,4,FALSE)","v":69.605000000000004},{"$f":"VLOOKUP($A169,F1__World_Data!$A$4:$DP$191,3,FALSE)","v":68.064999999999998},{"$f":"VLOOKUP($A169,F1__World_Data!$A$4:$DP$191,2,FALSE)","v":66.733000000000004},null,{"$f":"VLOOKUP($A169,F1__World_Data!$A$4:$DP$191,120,FALSE)","v":79.858999999999995},{"$f":"VLOOKUP($A169,F1__World_Data!$A$4:$DP$191,119,FALSE)","v":79.631},{"$f":"VLOOKUP($A169,F1__World_Data!$A$4:$DP$191,118,FALSE)","v":79.391000000000005},{"$f":"VLOOKUP($A169,F1__World_Data!$A$4:$DP$191,117,FALSE)","v":79.144000000000005},{"$f":"VLOOKUP($A169,F1__World_Data!$A$4:$DP$191,116,FALSE)","v":78.894999999999996},{"$f":"VLOOKUP($A169,F1__World_Data!$A$4:$DP$191,115,FALSE)","v":78.649000000000001},{"$f":"VLOOKUP($A169,F1__World_Data!$A$4:$DP$191,114,FALSE)","v":78.408000000000001},{"$f":"VLOOKUP($A169,F1__World_Data!$A$4:$DP$191,113,FALSE)","v":78.173000000000002},{"$f":"VLOOKUP($A169,F1__World_Data!$A$4:$DP$191,112,FALSE)","v":77.941000000000003},{"$f":"VLOOKUP($A169,F1__World_Data!$A$4:$DP$191,111,FALSE)","v":77.709999999999994},{"$f":"VLOOKUP($A169,F1__World_Data!$A$4:$DP$191,110,FALSE)","v":77.474000000000004},{"$f":"VLOOKUP($A169,F1__World_Data!$A$4:$DP$191,109,FALSE)","v":77.227000000000004},{"$f":"VLOOKUP($A169,F1__World_Data!$A$4:$DP$191,108,FALSE)","v":76.965999999999994},{"$f":"VLOOKUP($A169,F1__World_Data!$A$4:$DP$191,107,FALSE)","v":76.686999999999998},{"$f":"VLOOKUP($A169,F1__World_Data!$A$4:$DP$191,106,FALSE)","v":76.387},{"$f":"VLOOKUP($A169,F1__World_Data!$A$4:$DP$191,105,FALSE)","v":76.064999999999998},{"$f":"VLOOKUP($A169,F1__World_Data!$A$4:$DP$191,104,FALSE)","v":75.725999999999999},{"$f":"VLOOKUP($A169,F1__World_Data!$A$4:$DP$191,103,FALSE)","v":75.373000000000005},{"$f":"VLOOKUP($A169,F1__World_Data!$A$4:$DP$191,102,FALSE)","v":75.010999999999996},{"$f":"VLOOKUP($A169,F1__World_Data!$A$4:$DP$191,101,FALSE)","v":74.646000000000001},{"$f":"VLOOKUP($A169,F1__World_Data!$A$4:$DP$191,100,FALSE)","v":74.283000000000001},{"$f":"VLOOKUP($A169,F1__World_Data!$A$4:$DP$191,99,FALSE)","v":73.930000000000007},{"$f":"VLOOKUP($A169,F1__World_Data!$A$4:$DP$191,98,FALSE)","v":73.588999999999999},{"$f":"VLOOKUP($A169,F1__World_Data!$A$4:$DP$191,97,FALSE)","v":73.266999999999996},{"$f":"VLOOKUP($A169,F1__World_Data!$A$4:$DP$191,96,FALSE)","v":72.966999999999999},{"$f":"VLOOKUP($A169,F1__World_Data!$A$4:$DP$191,95,FALSE)","v":72.685000000000002},{"$f":"VLOOKUP($A169,F1__World_Data!$A$4:$DP$191,94,FALSE)","v":72.42},{"$f":"VLOOKUP($A169,F1__World_Data!$A$4:$DP$191,93,FALSE)","v":72.167000000000002},{"$f":"VLOOKUP($A169,F1__World_Data!$A$4:$DP$191,92,FALSE)","v":71.924999999999997},{"$f":"VLOOKUP($A169,F1__World_Data!$A$4:$DP$191,91,FALSE)","v":71.686999999999998},{"$f":"VLOOKUP($A169,F1__World_Data!$A$4:$DP$191,90,FALSE)","v":71.45},{"$f":"VLOOKUP($A169,F1__World_Data!$A$4:$DP$191,89,FALSE)","v":71.209000000000003},{"$f":"VLOOKUP($A169,F1__World_Data!$A$4:$DP$191,88,FALSE)","v":70.959999999999994},{"$f":"VLOOKUP($A169,F1__World_Data!$A$4:$DP$191,87,FALSE)","v":70.700999999999993},{"$f":"VLOOKUP($A169,F1__World_Data!$A$4:$DP$191,86,FALSE)","v":70.430999999999997},{"$f":"VLOOKUP($A169,F1__World_Data!$A$4:$DP$191,85,FALSE)","v":70.150999999999996},{"$f":"VLOOKUP($A169,F1__World_Data!$A$4:$DP$191,84,FALSE)","v":69.864000000000004},{"$f":"VLOOKUP($A169,F1__World_Data!$A$4:$DP$191,83,FALSE)","v":69.566999999999993},{"$f":"VLOOKUP($A169,F1__World_Data!$A$4:$DP$191,82,FALSE)","v":69.262},{"$f":"VLOOKUP($A169,F1__World_Data!$A$4:$DP$191,81,FALSE)","v":68.947000000000003},{"$f":"VLOOKUP($A169,F1__World_Data!$A$4:$DP$191,80,FALSE)","v":68.623999999999995},{"$f":"VLOOKUP($A169,F1__World_Data!$A$4:$DP$191,79,FALSE)","v":68.292000000000002},{"$f":"VLOOKUP($A169,F1__World_Data!$A$4:$DP$191,78,FALSE)","v":67.950999999999993},{"$f":"VLOOKUP($A169,F1__World_Data!$A$4:$DP$191,77,FALSE)","v":67.599000000000004},{"$f":"VLOOKUP($A169,F1__World_Data!$A$4:$DP$191,76,FALSE)","v":67.234999999999999},{"$f":"VLOOKUP($A169,F1__World_Data!$A$4:$DP$191,75,FALSE)","v":66.86},{"$f":"VLOOKUP($A169,F1__World_Data!$A$4:$DP$191,74,FALSE)","v":66.472999999999999},{"$f":"VLOOKUP($A169,F1__World_Data!$A$4:$DP$191,73,FALSE)","v":66.073999999999998},{"$f":"VLOOKUP($A169,F1__World_Data!$A$4:$DP$191,72,FALSE)","v":65.662000000000006},{"$f":"VLOOKUP($A169,F1__World_Data!$A$4:$DP$191,71,FALSE)","v":65.239000000000004},{"$f":"VLOOKUP($A169,F1__World_Data!$A$4:$DP$191,70,FALSE)","v":64.805000000000007},{"$f":"VLOOKUP($A169,F1__World_Data!$A$4:$DP$191,69,FALSE)","v":64.361000000000004},{"$f":"VLOOKUP($A169,F1__World_Data!$A$4:$DP$191,68,FALSE)","v":63.906999999999996},{"$f":"VLOOKUP($A169,F1__World_Data!$A$4:$DP$191,67,FALSE)","v":63.442999999999998},{"$f":"VLOOKUP($A169,F1__World_Data!$A$4:$DP$191,66,FALSE)","v":62.968000000000004},{"$f":"VLOOKUP($A169,F1__World_Data!$A$4:$DP$191,65,FALSE)","v":62.481999999999999},{"$f":"VLOOKUP($A169,F1__World_Data!$A$4:$DP$191,64,FALSE)","v":61.985999999999997},{"$f":"VLOOKUP($A169,F1__World_Data!$A$4:$DP$191,63,FALSE)","v":61.481000000000002},{"$f":"VLOOKUP($A169,F1__World_Data!$A$4:$DP$191,62,FALSE)","v":60.97}]
["Kiribati",{"$f":"VLOOKUP($A170,F1__World_Data!$A$4:$DP$191,60,FALSE)","v":115.842},{"$f":"VLOOKUP($A170,F1__World_Data!$A$4:$DP$191,59,FALSE)","v":114.15300000000001},{"$f":"VLOOKUP($A170,F1__World_Data!$A$4:$DP$191,58,FALSE)","v":112.529},{"$f":"VLOOKUP($A170,F1__World_Data!$A$4:$DP$191,57,FALSE)","v":110.92700000000001},{"$f":"VLOOKUP($A170,F1__World_Data!$A$4:$DP$191,56,FALSE)","v":109.387},{"$f":"VLOOKUP($A170,F1__World_Data!$A$4:$DP$191,55,FALSE)","v":107.887},{"$f":"VLOOKUP($A170,F1__World_Data!$A$4:$DP$191,54,FALSE)","v":106.35899999999999},{"$f":"VLOOKUP($A170,F1__World_Data!$A$4:$DP$191,53,FALSE)","v":104.735},{"$f":"VLOOKUP($A170,F1__World_Data!$A$4:$DP$191,52,FALSE)","v":102.93},{"$f":"VLOOKUP($A170,F1__World_Data!$A$4:$DP$191,51,FALSE)","v":100.928},{"$f":"VLOOKUP($A170,F1__World_Data!$A$4:$DP$191,50,FALSE)","v":98.76},{"$f":"VLOOKUP($A170,F1__World_Data!$A$4:$DP$191,49,FALSE)","v":96.531000000000006},{"$f":"VLOOKUP($A170,F1__World_Data!$A$4:$DP$191,48,FALSE)","v":94.340999999999994},{"$f":"VLOOKUP($A170,F1__World_Data!$A$4:$DP$191,47,FALSE)","v":92.319000000000003},{"$f":"VLOOKUP($A170,F1__World_Data!$A$4:$DP$191,46,FALSE)","v":90.498000000000005},{"$f":"VLOOKUP($A170,F1__World_Data!$A$4:$DP$191,45,FALSE)","v":88.84},{"$f":"VLOOKUP($A170,F1__World_Data!$A$4:$DP$191,44,FALSE)","v":87.308000000000007},{"$f":"VLOOKUP($A170,F1__World_Data!$A$4:$DP$191,43,FALSE)","v":85.843999999999994},{"$f":"VLOOKUP($A170,F1__World_Data!$A$4:$DP$191,42,FALSE)","v":84.405000000000001},{"$f":"VLOOKUP($A170,F1__World_Data!$A$4:$DP$191,41,FALSE)","v":82.968999999999994},{"$f":"VLOOKUP($A170,F1__World_Data!$A$4:$DP$191,40,FALSE)","v":81.558000000000007},{"$f":"VLOOKUP($A170,F1__World_Data!$A$4:$DP$191,39,FALSE)","v":80.188000000000002},{"$f":"VLOOKUP($A170,F1__World_Data!$A$4:$DP$191,38,FALSE)","v":78.903999999999996},{"$f":"VLOOKUP($A170,F1__World_Data!$A$4:$DP$191,37,FALSE)","v":77.715999999999994},{"$f":"VLOOKUP($A170,F1__World_Data!$A$4:$DP$191,36,FALSE)","v":76.668000000000006},{"$f":"VLOOKUP($A170,F1__World_Data!$A$4:$DP$191,35,FALSE)","v":75.710999999999999},{"$f":"VLOOKUP($A170,F1__World_Data!$A$4:$DP$191,34,FALSE)","v":74.766999999999996},{"$f":"VLOOKUP($A170,F1__World_Data!$A$4:$DP$191,33,FALSE)","v":73.691999999999993},{"$f":"VLOOKUP($A170,F1__World_Data!$A$4:$DP$191,32,FALSE)","v":72.394000000000005},{"$f":"VLOOKUP($A170,F1__World_Data!$A$4:$DP$191,31,FALSE)","v":70.849000000000004},{"$f":"VLOOKUP($A170,F1__World_Data!$A$4:$DP$191,30,FALSE)","v":69.087000000000003},{"$f":"VLOOKUP($A170,F1__World_Data!$A$4:$DP$191,29,FALSE)","v":67.244},{"$f":"VLOOKUP($A170,F1__World_Data!$A$4:$DP$191,28,FALSE)","v":65.504000000000005},{"$f":"VLOOKUP($A170,F1__World_Data!$A$4:$DP$191,27,FALSE)","v":63.988999999999997},{"$f":"VLOOKUP($A170,F1__World_Data!$A$4:$DP$191,26,FALSE)","v":62.744999999999997},{"$f":"VLOOKUP($A170,F1__World_Data!$A$4:$DP$191,25,FALSE)","v":61.735999999999997},{"$f":"VLOOKUP($A170,F1__World_Data!$A$4:$DP$191,24,FALSE)","v":60.887},{"$f":"VLOOKUP($A170,F1__World_Data!$A$4:$DP$191,23,FALSE)","v":60.100999999999999},{"$f":"VLOOKUP($A170,F1__World_Data!$A$4:$DP$191,22,FALSE)","v":59.295999999999999},{"$f":"VLOOKUP($A170,F1__World_Data!$A$4:$DP$191,21,FALSE)","v":58.469000000000001},{"$f":"VLOOKUP($A170,F1__World_Data!$A$4:$DP$191,20,FALSE)","v":57.613},{"$f":"VLOOKUP($A170,F1__World_Data!$A$4:$DP$191,19,FALSE)","v":56.759},{"$f":"VLOOKUP($A170,F1__World_Data!$A$4:$DP$191,18,FALSE)","v":55.921999999999997},{"$f":"VLOOKUP($A170,F1__World_Data!$A$4:$DP$191,17,FALSE)","v":55.113999999999997},{"$f":"VLOOKUP($A170,F1__World_Data!$A$4:$DP$191,16,FALSE)","v":54.334000000000003},{"$f":"VLOOKUP($A170,F1__World_Data!$A$4:$DP$191,15,FALSE)","v":53.558},{"$f":"VLOOKUP($A170,F1__World_Data!$A$4:$DP$191,14,FALSE)","v":52.774999999999999},{"$f":"VLOOKUP($A170,F1__World_Data!$A$4:$DP$191,13,FALSE)","v":51.978999999999999},{"$f":"VLOOKUP($A170,F1__World_Data!$A$4:$DP$191,12,FALSE)","v":51.142000000000003},{"$f":"VLOOKUP($A170,F1__World_Data!$A$4:$DP$191,11,FALSE)","v":50.267000000000003},{"$f":"VLOOKUP($A170,F1__World_Data!$A$4:$DP$191,10,FALSE)","v":49.353999999999999},{"$f":"VLOOKUP($A170,F1__World_Data!$A$4:$DP$191,9,FALSE)","v":48.402999999999999},{"$f":"VLOOKUP($A170,F1__World_Data!$A$4:$DP$191,8,FALSE)","v":47.429000000000002},{"$f":"VLOOKUP($A170,F1__World_Data!$A$4:$DP$191,7,FALSE)","v":46.429000000000002},{"$f":"VLOOKUP($A170,F1__World_Data!$A$4:$DP$191,6,FALSE)","v":45.392000000000003},{"$f":"VLOOKUP($A170,F1__World_Data!$A$4:$DP$191,5,FALSE)","v":44.341999999999999},{"$f":"VLOOKUP($A170,F1__World_Data!$A$4:$DP$191,4,FALSE)","v":43.283000000000001},{"$f":"VLOOKUP($A170,F1__World_Data!$A$4:$DP$191,3,FALSE)","v":42.234000000000002},{"$f":"VLOOKUP($A170,F1__World_Data!$A$4:$DP$191,2,FALSE)","v":41.195999999999998},null,{"$f":"VLOOKUP($A170,F1__World_Data!$A$4:$DP$191,120,FALSE)","v":68.116},{"$f":"VLOOKUP($A170,F1__World_Data!$A$4:$DP$191,119,FALSE)","v":67.850999999999999},{"$f":"VLOOKUP($A170,F1__World_Data!$A$4:$DP$191,118,FALSE)","v":67.576999999999998},{"$f":"VLOOKUP($A170,F1__World_Data!$A$4:$DP$191,117,FALSE)","v":67.290999999999997},{"$f":"VLOOKUP($A170,F1__World_Data!$A$4:$DP$191,116,FALSE)","v":66.995000000000005},{"$f":"VLOOKUP($A170,F1__World_Data!$A$4:$DP$191,115,FALSE)","v":66.69},{"$f":"VLOOKUP($A170,F1__World_Data!$A$4:$DP$191,114,FALSE)","v":66.381},{"$f":"VLOOKUP($A170,F1__World_Data!$A$4:$DP$191,113,FALSE)","v":66.072000000000003},{"$f":"VLOOKUP($A170,F1__World_Data!$A$4:$DP$191,112,FALSE)","v":65.769000000000005},{"$f":"VLOOKUP($A170,F1__World_Data!$A$4:$DP$191,111,FALSE)","v":65.48},{"$f":"VLOOKUP($A170,F1__World_Data!$A$4:$DP$191,110,FALSE)","v":65.207999999999998},{"$f":"VLOOKUP($A170,F1__World_Data!$A$4:$DP$191,109,FALSE)","v":64.953000000000003},{"$f":"VLOOKUP($A170,F1__World_Data!$A$4:$DP$191,108,FALSE)","v":64.712000000000003},{"$f":"VLOOKUP($A170,F1__World_Data!$A$4:$DP$191,107,FALSE)","v":64.477999999999994},{"$f":"VLOOKUP($A170,F1__World_Data!$A$4:$DP$191,106,FALSE)","v":64.242000000000004},{"$f":"VLOOKUP($A170,F1__World_Data!$A$4:$DP$191,105,FALSE)","v":63.994999999999997},{"$f":"VLOOKUP($A170,F1__World_Data!$A$4:$DP$191,104,FALSE)","v":63.731000000000002},{"$f":"VLOOKUP($A170,F1__World_Data!$A$4:$DP$191,103,FALSE)","v":63.445999999999998},{"$f":"VLOOKUP($A170,F1__World_Data!$A$4:$DP$191,102,FALSE)","v":63.143999999999998},{"$f":"VLOOKUP($A170,F1__World_Data!$A$4:$DP$191,101,FALSE)","v":62.829000000000001},{"$f":"VLOOKUP($A170,F1__World_Data!$A$4:$DP$191,100,FALSE)","v":62.509},{"$f":"VLOOKUP($A170,F1__World_Data!$A$4:$DP$191,99,FALSE)","v":62.188000000000002},{"$f":"VLOOKUP($A170,F1__World_Data!$A$4:$DP$191,98,FALSE)","v":61.866},{"$f":"VLOOKUP($A170,F1__World_Data!$A$4:$DP$191,97,FALSE)","v":61.539000000000001},{"$f":"VLOOKUP($A170,F1__World_Data!$A$4:$DP$191,96,FALSE)","v":61.198},{"$f":"VLOOKUP($A170,F1__World_Data!$A$4:$DP$191,95,FALSE)","v":60.837000000000003},{"$f":"VLOOKUP($A170,F1__World_Data!$A$4:$DP$191,94,FALSE)","v":60.454999999999998},{"$f":"VLOOKUP($A170,F1__World_Data!$A$4:$DP$191,93,FALSE)","v":60.052999999999997},{"$f":"VLOOKUP($A170,F1__World_Data!$A$4:$DP$191,92,FALSE)","v":59.636000000000003},{"$f":"VLOOKUP($A170,F1__World_Data!$A$4:$DP$191,91,FALSE)","v":59.209000000000003},{"$f":"VLOOKUP($A170,F1__World_Data!$A$4:$DP$191,90,FALSE)","v":58.783000000000001},{"$f":"VLOOKUP($A170,F1__World_Data!$A$4:$DP$191,89,FALSE)","v":58.366},{"$f":"VLOOKUP($A170,F1__World_Data!$A$4:$DP$191,88,FALSE)","v":57.962000000000003},{"$f":"VLOOKUP($A170,F1__World_Data!$A$4:$DP$191,87,FALSE)","v":57.579000000000001},{"$f":"VLOOKUP($A170,F1__World_Data!$A$4:$DP$191,86,FALSE)","v":57.220999999999997},{"$f":"VLOOKUP($A170,F1__World_Data!$A$4:$DP$191,85,FALSE)","v":56.886000000000003},{"$f":"VLOOKUP($A170,F1__World_Data!$A$4:$DP$191,84,FALSE)","v":56.569000000000003},{"$f":"VLOOKUP($A170,F1__World_Data!$A$4:$DP$191,83,FALSE)","v":56.265999999999998},{"$f":"VLOOKUP($A170,F1__World_Data!$A$4:$DP$191,82,FALSE)","v":55.970999999999997},{"$f":"VLOOKUP($A170,F1__World_Data!$A$4:$DP$191,81,FALSE)","v":55.679000000000002},{"$f":"VLOOKUP($A170,F1__World_Data!$A$4:$DP$191,80,FALSE)","v":55.381999999999998},{"$f":"VLOOKUP($A170,F1__World_Data!$A$4:$DP$191,79,FALSE)","v":55.073999999999998},{"$f":"VLOOKUP($A170,F1__World_Data!$A$4:$DP$191,78,FALSE)","v":54.747999999999998},{"$f":"VLOOKUP($A170,F1__World_Data!$A$4:$DP$191,77,FALSE)","v":54.399000000000001},{"$f":"VLOOKUP($A170,F1__World_Data!$A$4:$DP$191,76,FALSE)","v":54.027000000000001},{"$f":"VLOOKUP($A170,F1__World_Data!$A$4:$DP$191,75,FALSE)","v":53.633000000000003},{"$f":"VLOOKUP($A170,F1__World_Data!$A$4:$DP$191,74,FALSE)","v":53.218000000000004},{"$f":"VLOOKUP($A170,F1__World_Data!$A$4:$DP$191,73,FALSE)","v":52.781999999999996},{"$f":"VLOOKUP($A170,F1__World_Data!$A$4:$DP$191,72,FALSE)","v":52.323},{"$f":"VLOOKUP($A170,F1__World_Data!$A$4:$DP$191,71,FALSE)","v":51.837000000000003},{"$f":"VLOOKUP($A170,F1__World_Data!$A$4:$DP$191,70,FALSE)","v":51.326999999999998},{"$f":"VLOOKUP($A170,F1__World_Data!$A$4:$DP$191,69,FALSE)","v":50.795999999999999},{"$f":"VLOOKUP($A170,F1__World_Data!$A$4:$DP$191,68,FALSE)","v":50.25},{"$f":"VLOOKUP($A170,F1__World_Data!$A$4:$DP$191,67,FALSE)","v":49.697000000000003},{"$f":"VLOOKUP($A170,F1__World_Data!$A$4:$DP$191,66,FALSE)","v":49.145000000000003},{"$f":"VLOOKUP($A170,F1__World_Data!$A$4:$DP$191,65,FALSE)","v":48.600999999999999},{"$f":"VLOOKUP($A170,F1__World_Data!$A$4:$DP$191,64,FALSE)","v":48.070999999999998},{"$f":"VLOOKUP($A170,F1__World_Data!$A$4:$DP$191,63,FALSE)","v":47.557000000000002},{"$f":"VLOOKUP($A170,F1__World_Data!$A$4:$DP$191,62,FALSE)","v":47.061}]
["Grenada",{"$f":"VLOOKUP($A171,F1__World_Data!$A$4:$DP$191,60,FALSE)","v":111.449},{"$f":"VLOOKUP($A171,F1__World_Data!$A$4:$DP$191,59,FALSE)","v":110.874},{"$f":"VLOOKUP($A171,F1__World_Data!$A$4:$DP$191,58,FALSE)","v":110.26300000000001},{"$f":"VLOOKUP($A171,F1__World_Data!$A$4:$DP$191,57,FALSE)","v":109.60299999999999},{"$f":"VLOOKUP($A171,F1__World_Data!$A$4:$DP$191,56,FALSE)","v":108.9},{"$f":"VLOOKUP($A171,F1__World_Data!$A$4:$DP$191,55,FALSE)","v":108.172},{"$f":"VLOOKUP($A171,F1__World_Data!$A$4:$DP$191,54,FALSE)","v":107.452},{"$f":"VLOOKUP($A171,F1__World_Data!$A$4:$DP$191,53,FALSE)","v":106.786},{"$f":"VLOOKUP($A171,F1__World_Data!$A$4:$DP$191,52,FALSE)","v":106.227},{"$f":"VLOOKUP($A171,F1__World_Data!$A$4:$DP$191,51,FALSE)","v":105.78700000000001},{"$f":"VLOOKUP($A171,F1__World_Data!$A$4:$DP$191,50,FALSE)","v":105.45699999999999},{"$f":"VLOOKUP($A171,F1__World_Data!$A$4:$DP$191,49,FALSE)","v":105.18300000000001},{"$f":"VLOOKUP($A171,F1__World_Data!$A$4:$DP$191,48,FALSE)","v":104.938},{"$f":"VLOOKUP($A171,F1__World_Data!$A$4:$DP$191,47,FALSE)","v":104.658},{"$f":"VLOOKUP($A171,F1__World_Data!$A$4:$DP$191,46,FALSE)","v":104.346},{"$f":"VLOOKUP($A171,F1__World_Data!$A$4:$DP$191,45,FALSE)","v":104.003},{"$f":"VLOOKUP($A171,F1__World_Data!$A$4:$DP$191,44,FALSE)","v":103.636},{"$f":"VLOOKUP($A171,F1__World_Data!$A$4:$DP$191,43,FALSE)","v":103.242},{"$f":"VLOOKUP($A171,F1__World_Data!$A$4:$DP$191,42,FALSE)","v":102.837},{"$f":"VLOOKUP($A171,F1__World_Data!$A$4:$DP$191,41,FALSE)","v":102.429},{"$f":"VLOOKUP($A171,F1__World_Data!$A$4:$DP$191,40,FALSE)","v":102.023},{"$f":"VLOOKUP($A171,F1__World_Data!$A$4:$DP$191,39,FALSE)","v":101.56699999999999},{"$f":"VLOOKUP($A171,F1__World_Data!$A$4:$DP$191,38,FALSE)","v":101.003},{"$f":"VLOOKUP($A171,F1__World_Data!$A$4:$DP$191,37,FALSE)","v":100.286},{"$f":"VLOOKUP($A171,F1__World_Data!$A$4:$DP$191,36,FALSE)","v":99.344999999999999},{"$f":"VLOOKUP($A171,F1__World_Data!$A$4:$DP$191,35,FALSE)","v":98.233999999999995},{"$f":"VLOOKUP($A171,F1__World_Data!$A$4:$DP$191,34,FALSE)","v":97.161000000000001},{"$f":"VLOOKUP($A171,F1__World_Data!$A$4:$DP$191,33,FALSE)","v":96.462000000000003},{"$f":"VLOOKUP($A171,F1__World_Data!$A$4:$DP$191,32,FALSE)","v":96.328000000000003},{"$f":"VLOOKUP($A171,F1__World_Data!$A$4:$DP$191,31,FALSE)","v":96.932000000000002},{"$f":"VLOOKUP($A171,F1__World_Data!$A$4:$DP$191,30,FALSE)","v":98.126000000000005},{"$f":"VLOOKUP($A171,F1__World_Data!$A$4:$DP$191,29,FALSE)","v":99.424999999999997},{"$f":"VLOOKUP($A171,F1__World_Data!$A$4:$DP$191,28,FALSE)","v":100.18300000000001},{"$f":"VLOOKUP($A171,F1__World_Data!$A$4:$DP$191,27,FALSE)","v":99.953000000000003},{"$f":"VLOOKUP($A171,F1__World_Data!$A$4:$DP$191,26,FALSE)","v":98.471999999999994},{"$f":"VLOOKUP($A171,F1__World_Data!$A$4:$DP$191,25,FALSE)","v":96.02},{"$f":"VLOOKUP($A171,F1__World_Data!$A$4:$DP$191,24,FALSE)","v":93.132000000000005},{"$f":"VLOOKUP($A171,F1__World_Data!$A$4:$DP$191,23,FALSE)","v":90.61},{"$f":"VLOOKUP($A171,F1__World_Data!$A$4:$DP$191,22,FALSE)","v":89.031999999999996},{"$f":"VLOOKUP($A171,F1__World_Data!$A$4:$DP$191,21,FALSE)","v":88.602999999999994},{"$f":"VLOOKUP($A171,F1__World_Data!$A$4:$DP$191,20,FALSE)","v":89.103999999999999},{"$f":"VLOOKUP($A171,F1__World_Data!$A$4:$DP$191,19,FALSE)","v":90.218999999999994},{"$f":"VLOOKUP($A171,F1__World_Data!$A$4:$DP$191,18,FALSE)","v":91.468999999999994},{"$f":"VLOOKUP($A171,F1__World_Data!$A$4:$DP$191,17,FALSE)","v":92.494},{"$f":"VLOOKUP($A171,F1__World_Data!$A$4:$DP$191,16,FALSE)","v":93.19},{"$f":"VLOOKUP($A171,F1__World_Data!$A$4:$DP$191,15,FALSE)","v":93.661000000000001},{"$f":"VLOOKUP($A171,F1__World_Data!$A$4:$DP$191,14,FALSE)","v":93.983999999999995},{"$f":"VLOOKUP($A171,F1__World_Data!$A$4:$DP$191,13,FALSE)","v":94.212000000000003},{"$f":"VLOOKUP($A171,F1__World_Data!$A$4:$DP$191,12,FALSE)","v":94.475999999999999},{"$f":"VLOOKUP($A171,F1__World_Data!$A$4:$DP$191,11,FALSE)","v":94.722999999999999},{"$f":"VLOOKUP($A171,F1__World_Data!$A$4:$DP$191,10,FALSE)","v":94.929000000000002},{"$f":"VLOOKUP($A171,F1__World_Data!$A$4:$DP$191,9,FALSE)","v":95.012},{"$f":"VLOOKUP($A171,F1__World_Data!$A$4:$DP$191,8,FALSE)","v":94.936000000000007},{"$f":"VLOOKUP($A171,F1__World_Data!$A$4:$DP$191,7,FALSE)","v":94.634},{"$f":"VLOOKUP($A171,F1__World_Data!$A$4:$DP$191,6,FALSE)","v":94.122},{"$f":"VLOOKUP($A171,F1__World_Data!$A$4:$DP$191,5,FALSE)","v":93.409000000000006},{"$f":"VLOOKUP($A171,F1__World_Data!$A$4:$DP$191,4,FALSE)","v":92.480999999999995},{"$f":"VLOOKUP($A171,F1__World_Data!$A$4:$DP$191,3,FALSE)","v":91.323999999999998},{"$f":"VLOOKUP($A171,F1__World_Data!$A$4:$DP$191,2,FALSE)","v":89.927000000000007},null,{"$f":"VLOOKUP($A171,F1__World_Data!$A$4:$DP$191,120,FALSE)","v":82.548780487804891},{"$f":"VLOOKUP($A171,F1__World_Data!$A$4:$DP$191,119,FALSE)","v":82.29756097560977},{"$f":"VLOOKUP($A171,F1__World_Data!$A$4:$DP$191,118,FALSE)","v":82.046341463414635},{"$f":"VLOOKUP($A171,F1__World_Data!$A$4:$DP$191,117,FALSE)","v":81.795121951219528},{"$f":"VLOOKUP($A171,F1__World_Data!$A$4:$DP$191,116,FALSE)","v":81.592682926829269},{"$f":"VLOOKUP($A171,F1__World_Data!$A$4:$DP$191,115,FALSE)","v":81.341463414634148},{"$f":"VLOOKUP($A171,F1__World_Data!$A$4:$DP$191,114,FALSE)","v":81.090243902439042},{"$f":"VLOOKUP($A171,F1__World_Data!$A$4:$DP$191,113,FALSE)","v":80.839024390243921},{"$f":"VLOOKUP($A171,F1__World_Data!$A$4:$DP$191,112,FALSE)","v":80.587804878048786},{"$f":"VLOOKUP($A171,F1__World_Data!$A$4:$DP$191,111,FALSE)","v":80.387804878048797},{"$f":"VLOOKUP($A171,F1__World_Data!$A$4:$DP$191,110,FALSE)","v":80.139024390243918},{"$f":"VLOOKUP($A171,F1__World_Data!$A$4:$DP$191,109,FALSE)","v":79.890243902439039},{"$f":"VLOOKUP($A171,F1__World_Data!$A$4:$DP$191,108,FALSE)","v":79.690243902439036},{"$f":"VLOOKUP($A171,F1__World_Data!$A$4:$DP$191,107,FALSE)","v":79.441463414634157},{"$f":"VLOOKUP($A171,F1__World_Data!$A$4:$DP$191,106,FALSE)","v":79.190243902439036},{"$f":"VLOOKUP($A171,F1__World_Data!$A$4:$DP$191,105,FALSE)","v":78.990243902439033},{"$f":"VLOOKUP($A171,F1__World_Data!$A$4:$DP$191,104,FALSE)","v":78.787804878048775},{"$f":"VLOOKUP($A171,F1__World_Data!$A$4:$DP$191,103,FALSE)","v":78.636585365853662},{"$f":"VLOOKUP($A171,F1__World_Data!$A$4:$DP$191,102,FALSE)","v":78.434146341463432},{"$f":"VLOOKUP($A171,F1__World_Data!$A$4:$DP$191,101,FALSE)","v":78.280487804878064},{"$f":"VLOOKUP($A171,F1__World_Data!$A$4:$DP$191,100,FALSE)","v":78.026829268292687},{"$f":"VLOOKUP($A171,F1__World_Data!$A$4:$DP$191,99,FALSE)","v":77.824390243902457},{"$f":"VLOOKUP($A171,F1__World_Data!$A$4:$DP$191,98,FALSE)","v":77.57073170731708},{"$f":"VLOOKUP($A171,F1__World_Data!$A$4:$DP$191,97,FALSE)","v":77.368292682926835},{"$f":"VLOOKUP($A171,F1__World_Data!$A$4:$DP$191,96,FALSE)","v":77.065853658536597},{"$f":"VLOOKUP($A171,F1__World_Data!$A$4:$DP$191,95,FALSE)","v":76.81463414634149},{"$f":"VLOOKUP($A171,F1__World_Data!$A$4:$DP$191,94,FALSE)","v":76.614634146341473},{"$f":"VLOOKUP($A171,F1__World_Data!$A$4:$DP$191,93,FALSE)","v":76.41463414634147},{"$f":"VLOOKUP($A171,F1__World_Data!$A$4:$DP$191,92,FALSE)","v":76.114634146341487},{"$f":"VLOOKUP($A171,F1__World_Data!$A$4:$DP$191,91,FALSE)","v":75.91463414634147},{"$f":"VLOOKUP($A171,F1__World_Data!$A$4:$DP$191,90,FALSE)","v":75.714634146341467},{"$f":"VLOOKUP($A171,F1__World_Data!$A$4:$DP$191,89,FALSE)","v":75.465853658536588},{"$f":"VLOOKUP($A171,F1__World_Data!$A$4:$DP$191,88,FALSE)","v":75.214634146341467},{"$f":"VLOOKUP($A171,F1__World_Data!$A$4:$DP$191,87,FALSE)","v":0},{"$f":"VLOOKUP($A171,F1__World_Data!$A$4:$DP$191,86,FALSE)","v":0},{"$f":"VLOOKUP($A171,F1__World_Data!$A$4:$DP$191,85,FALSE)","v":0},{"$f":"VLOOKUP($A171,F1__World_Data!$A$4:$DP$191,84,FALSE)","v":0},{"$f":"VLOOKUP($A171,F1__World_Data!$A$4:$DP$191,83,FALSE)","v":0},{"$f":"VLOOKUP($A171,F1__World_Data!$A$4:$DP$191,82,FALSE)","v":0},{"$f":"VLOOKUP($A171,F1__World_Data!$A$4:$DP$191,81,FALSE)","v":0},{"$f":"VLOOKUP($A171,F1__World_Data!$A$4:$DP$191,80,FALSE)","v":75.98536585365855},{"$f":"VLOOKUP($A171,F1__World_Data!$A$4:$DP$191,79,FALSE)","v":0},{"$f":"VLOOKUP($A171,F1__World_Data!$A$4:$DP$191,78,FALSE)","v":0},{"$f":"VLOOKUP($A171,F1__World_Data!$A$4:$DP$191,77,FALSE)","v":0},{"$f":"VLOOKUP($A171,F1__World_Data!$A$4:$DP$191,76,FALSE)","v":0},{"$f":"VLOOKUP($A171,F1__World_Data!$A$4:$DP$191,75,FALSE)","v":74.497560975609773},{"$f":"VLOOKUP($A171,F1__World_Data!$A$4:$DP$191,74,FALSE)","v":0},{"$f":"VLOOKUP($A171,F1__World_Data!$A$4:$DP$191,73,FALSE)","v":0},{"$f":"VLOOKUP($A171,F1__World_Data!$A$4:$DP$191,72,FALSE)","v":0},{"$f":"VLOOKUP($A171,F1__World_Data!$A$4:$DP$191,71,FALSE)","v":0},{"$f":"VLOOKUP($A171,F1__World_Data!$A$4:$DP$191,70,FALSE)","v":0},{"$f":"VLOOKUP($A171,F1__World_Data!$A$4:$DP$191,69,FALSE)","v":0},{"$f":"VLOOKUP($A171,F1__World_Data!$A$4:$DP$191,68,FALSE)","v":0},{"$f":"VLOOKUP($A171,F1__World_Data!$A$4:$DP$191,67,FALSE)","v":0},{"$f":"VLOOKUP($A171,F1__World_Data!$A$4:$DP$191,66,FALSE)","v":0},{"$f":"VLOOKUP($A171,F1__World_Data!$A$4:$DP$191,65,FALSE)","v":0},{"$f":"VLOOKUP($A171,F1__World_Data!$A$4:$DP$191,64,FALSE)","v":0},{"$f":"VLOOKUP($A171,F1__World_Data!$A$4:$DP$191,63,FALSE)","v":0},{"$f":"VLOOKUP($A171,F1__World_Data!$A$4:$DP$191,62,FALSE)","v":0}]
["Aruba",{"$f":"VLOOKUP($A172,F1__World_Data!$A$4:$DP$191,60,FALSE)","v":105.846},{"$f":"VLOOKUP($A172,F1__World_Data!$A$4:$DP$191,59,FALSE)","v":105.361},{"$f":"VLOOKUP($A172,F1__World_Data!$A$4:$DP$191,58,FALSE)","v":104.86499999999999},{"$f":"VLOOKUP($A172,F1__World_Data!$A$4:$DP$191,57,FALSE)","v":104.339},{"$f":"VLOOKUP($A172,F1__World_Data!$A$4:$DP$191,56,FALSE)","v":103.776},{"$f":"VLOOKUP($A172,F1__World_Data!$A$4:$DP$191,55,FALSE)","v":103.16500000000001},{"$f":"VLOOKUP($A172,F1__World_Data!$A$4:$DP$191,54,FALSE)","v":102.565},{"$f":"VLOOKUP($A172,F1__World_Data!$A$4:$DP$191,53,FALSE)","v":102.05},{"$f":"VLOOKUP($A172,F1__World_Data!$A$4:$DP$191,52,FALSE)","v":101.66500000000001},{"$f":"VLOOKUP($A172,F1__World_Data!$A$4:$DP$191,51,FALSE)","v":101.452},{"$f":"VLOOKUP($A172,F1__World_Data!$A$4:$DP$191,50,FALSE)","v":101.36199999999999},{"$f":"VLOOKUP($A172,F1__World_Data!$A$4:$DP$191,49,FALSE)","v":101.226},{"$f":"VLOOKUP($A172,F1__World_Data!$A$4:$DP$191,48,FALSE)","v":100.83},{"$f":"VLOOKUP($A172,F1__World_Data!$A$4:$DP$191,47,FALSE)","v":100.02800000000001},{"$f":"VLOOKUP($A172,F1__World_Data!$A$4:$DP$191,46,FALSE)","v":98.744},{"$f":"VLOOKUP($A172,F1__World_Data!$A$4:$DP$191,45,FALSE)","v":97.016000000000005},{"$f":"VLOOKUP($A172,F1__World_Data!$A$4:$DP$191,44,FALSE)","v":94.992000000000004},{"$f":"VLOOKUP($A172,F1__World_Data!$A$4:$DP$191,43,FALSE)","v":92.891999999999996},{"$f":"VLOOKUP($A172,F1__World_Data!$A$4:$DP$191,42,FALSE)","v":90.866},{"$f":"VLOOKUP($A172,F1__World_Data!$A$4:$DP$191,41,FALSE)","v":89.009},{"$f":"VLOOKUP($A172,F1__World_Data!$A$4:$DP$191,40,FALSE)","v":87.28},{"$f":"VLOOKUP($A172,F1__World_Data!$A$4:$DP$191,39,FALSE)","v":85.45},{"$f":"VLOOKUP($A172,F1__World_Data!$A$4:$DP$191,38,FALSE)","v":83.210999999999999},{"$f":"VLOOKUP($A172,F1__World_Data!$A$4:$DP$191,37,FALSE)","v":80.323999999999998},{"$f":"VLOOKUP($A172,F1__World_Data!$A$4:$DP$191,36,FALSE)","v":76.704999999999998},{"$f":"VLOOKUP($A172,F1__World_Data!$A$4:$DP$191,35,FALSE)","v":72.495000000000005},{"$f":"VLOOKUP($A172,F1__World_Data!$A$4:$DP$191,34,FALSE)","v":68.239999999999995},{"$f":"VLOOKUP($A172,F1__World_Data!$A$4:$DP$191,33,FALSE)","v":64.623000000000005},{"$f":"VLOOKUP($A172,F1__World_Data!$A$4:$DP$191,32,FALSE)","v":62.152000000000001},{"$f":"VLOOKUP($A172,F1__World_Data!$A$4:$DP$191,31,FALSE)","v":61.033000000000001},{"$f":"VLOOKUP($A172,F1__World_Data!$A$4:$DP$191,30,FALSE)","v":61.072000000000003},{"$f":"VLOOKUP($A172,F1__World_Data!$A$4:$DP$191,29,FALSE)","v":61.838000000000001},{"$f":"VLOOKUP($A172,F1__World_Data!$A$4:$DP$191,28,FALSE)","v":62.645000000000003},{"$f":"VLOOKUP($A172,F1__World_Data!$A$4:$DP$191,27,FALSE)","v":63.024000000000001},{"$f":"VLOOKUP($A172,F1__World_Data!$A$4:$DP$191,26,FALSE)","v":62.826000000000001},{"$f":"VLOOKUP($A172,F1__World_Data!$A$4:$DP$191,25,FALSE)","v":62.213000000000001},{"$f":"VLOOKUP($A172,F1__World_Data!$A$4:$DP$191,24,FALSE)","v":61.341000000000001},{"$f":"VLOOKUP($A172,F1__World_Data!$A$4:$DP$191,23,FALSE)","v":60.561},{"$f":"VLOOKUP($A172,F1__World_Data!$A$4:$DP$191,22,FALSE)","v":60.097000000000001},{"$f":"VLOOKUP($A172,F1__World_Data!$A$4:$DP$191,21,FALSE)","v":59.972000000000001},{"$f":"VLOOKUP($A172,F1__World_Data!$A$4:$DP$191,20,FALSE)","v":60.101999999999997},{"$f":"VLOOKUP($A172,F1__World_Data!$A$4:$DP$191,19,FALSE)","v":60.366},{"$f":"VLOOKUP($A172,F1__World_Data!$A$4:$DP$191,18,FALSE)","v":60.585999999999999},{"$f":"VLOOKUP($A172,F1__World_Data!$A$4:$DP$191,17,FALSE)","v":60.652999999999999},{"$f":"VLOOKUP($A172,F1__World_Data!$A$4:$DP$191,16,FALSE)","v":60.527000000000001},{"$f":"VLOOKUP($A172,F1__World_Data!$A$4:$DP$191,15,FALSE)","v":60.235999999999997},{"$f":"VLOOKUP($A172,F1__World_Data!$A$4:$DP$191,14,FALSE)","v":59.848999999999997},{"$f":"VLOOKUP($A172,F1__World_Data!$A$4:$DP$191,13,FALSE)","v":59.442},{"$f":"VLOOKUP($A172,F1__World_Data!$A$4:$DP$191,12,FALSE)","v":59.07},{"$f":"VLOOKUP($A172,F1__World_Data!$A$4:$DP$191,11,FALSE)","v":58.734000000000002},{"$f":"VLOOKUP($A172,F1__World_Data!$A$4:$DP$191,10,FALSE)","v":58.377000000000002},{"$f":"VLOOKUP($A172,F1__World_Data!$A$4:$DP$191,9,FALSE)","v":58.043999999999997},{"$f":"VLOOKUP($A172,F1__World_Data!$A$4:$DP$191,8,FALSE)","v":57.701999999999998},{"$f":"VLOOKUP($A172,F1__World_Data!$A$4:$DP$191,7,FALSE)","v":57.356999999999999},{"$f":"VLOOKUP($A172,F1__World_Data!$A$4:$DP$191,6,FALSE)","v":57.029000000000003},{"$f":"VLOOKUP($A172,F1__World_Data!$A$4:$DP$191,5,FALSE)","v":56.698999999999998},{"$f":"VLOOKUP($A172,F1__World_Data!$A$4:$DP$191,4,FALSE)","v":56.234000000000002},{"$f":"VLOOKUP($A172,F1__World_Data!$A$4:$DP$191,3,FALSE)","v":55.433999999999997},{"$f":"VLOOKUP($A172,F1__World_Data!$A$4:$DP$191,2,FALSE)","v":54.207999999999998},null,{"$f":"VLOOKUP($A172,F1__World_Data!$A$4:$DP$191,120,FALSE)","v":76.885000000000005},{"$f":"VLOOKUP($A172,F1__World_Data!$A$4:$DP$191,119,FALSE)","v":76.751999999999995},{"$f":"VLOOKUP($A172,F1__World_Data!$A$4:$DP$191,118,FALSE)","v":76.617000000000004},{"$f":"VLOOKUP($A172,F1__World_Data!$A$4:$DP$191,117,FALSE)","v":76.483000000000004},{"$f":"VLOOKUP($A172,F1__World_Data!$A$4:$DP$191,116,FALSE)","v":76.349000000000004},{"$f":"VLOOKUP($A172,F1__World_Data!$A$4:$DP$191,115,FALSE)","v":76.218000000000004},{"$f":"VLOOKUP($A172,F1__World_Data!$A$4:$DP$191,114,FALSE)","v":76.087000000000003},{"$f":"VLOOKUP($A172,F1__World_Data!$A$4:$DP$191,113,FALSE)","v":75.956000000000003},{"$f":"VLOOKUP($A172,F1__World_Data!$A$4:$DP$191,112,FALSE)","v":75.822999999999993},{"$f":"VLOOKUP($A172,F1__World_Data!$A$4:$DP$191,111,FALSE)","v":75.683000000000007},{"$f":"VLOOKUP($A172,F1__World_Data!$A$4:$DP$191,110,FALSE)","v":75.534999999999997},{"$f":"VLOOKUP($A172,F1__World_Data!$A$4:$DP$191,109,FALSE)","v":75.376000000000005},{"$f":"VLOOKUP($A172,F1__World_Data!$A$4:$DP$191,108,FALSE)","v":75.203999999999994},{"$f":"VLOOKUP($A172,F1__World_Data!$A$4:$DP$191,107,FALSE)","v":75.019000000000005},{"$f":"VLOOKUP($A172,F1__World_Data!$A$4:$DP$191,106,FALSE)","v":74.820999999999998},{"$f":"VLOOKUP($A172,F1__World_Data!$A$4:$DP$191,105,FALSE)","v":74.613},{"$f":"VLOOKUP($A172,F1__World_Data!$A$4:$DP$191,104,FALSE)","v":74.394999999999996},{"$f":"VLOOKUP($A172,F1__World_Data!$A$4:$DP$191,103,FALSE)","v":74.171000000000006},{"$f":"VLOOKUP($A172,F1__World_Data!$A$4:$DP$191,102,FALSE)","v":73.94},{"$f":"VLOOKUP($A172,F1__World_Data!$A$4:$DP$191,101,FALSE)","v":73.704999999999998},{"$f":"VLOOKUP($A172,F1__World_Data!$A$4:$DP$191,100,FALSE)","v":73.465000000000003},{"$f":"VLOOKUP($A172,F1__World_Data!$A$4:$DP$191,99,FALSE)","v":73.221999999999994},{"$f":"VLOOKUP($A172,F1__World_Data!$A$4:$DP$191,98,FALSE)","v":72.977000000000004},{"$f":"VLOOKUP($A172,F1__World_Data!$A$4:$DP$191,97,FALSE)","v":72.731999999999999},{"$f":"VLOOKUP($A172,F1__World_Data!$A$4:$DP$191,96,FALSE)","v":72.489000000000004},{"$f":"VLOOKUP($A172,F1__World_Data!$A$4:$DP$191,95,FALSE)","v":72.247},{"$f":"VLOOKUP($A172,F1__World_Data!$A$4:$DP$191,94,FALSE)","v":72.006},{"$f":"VLOOKUP($A172,F1__World_Data!$A$4:$DP$191,93,FALSE)","v":71.765000000000001},{"$f":"VLOOKUP($A172,F1__World_Data!$A$4:$DP$191,92,FALSE)","v":71.52},{"$f":"VLOOKUP($A172,F1__World_Data!$A$4:$DP$191,91,FALSE)","v":71.266999999999996},{"$f":"VLOOKUP($A172,F1__World_Data!$A$4:$DP$191,90,FALSE)","v":71.004000000000005},{"$f":"VLOOKUP($A172,F1__World_Data!$A$4:$DP$191,89,FALSE)","v":70.727999999999994},{"$f":"VLOOKUP($A172,F1__World_Data!$A$4:$DP$191,88,FALSE)","v":70.44},{"$f":"VLOOKUP($A172,F1__World_Data!$A$4:$DP$191,87,FALSE)","v":70.137},{"$f":"VLOOKUP($A172,F1__World_Data!$A$4:$DP$191,86,FALSE)","v":69.819999999999993},{"$f":"VLOOKUP($A172,F1__World_Data!$A$4:$DP$191,85,FALSE)","v":69.491},{"$f":"VLOOKUP($A172,F1__World_Data!$A$4:$DP$191,84,FALSE)","v":69.156000000000006},{"$f":"VLOOKUP($A172,F1__World_Data!$A$4:$DP$191,83,FALSE)","v":68.817999999999998},{"$f":"VLOOKUP($A172,F1__World_Data!$A$4:$DP$191,82,FALSE)","v":68.481999999999999},{"$f":"VLOOKUP($A172,F1__World_Data!$A$4:$DP$191,81,FALSE)","v":68.153999999999996},{"$f":"VLOOKUP($A172,F1__World_Data!$A$4:$DP$191,80,FALSE)","v":67.837000000000003},{"$f":"VLOOKUP($A172,F1__World_Data!$A$4:$DP$191,79,FALSE)","v":67.533000000000001},{"$f":"VLOOKUP($A172,F1__World_Data!$A$4:$DP$191,78,FALSE)","v":67.244},{"$f":"VLOOKUP($A172,F1__World_Data!$A$4:$DP$191,77,FALSE)","v":66.974999999999994},{"$f":"VLOOKUP($A172,F1__World_Data!$A$4:$DP$191,76,FALSE)","v":66.727000000000004},{"$f":"VLOOKUP($A172,F1__World_Data!$A$4:$DP$191,75,FALSE)","v":66.498000000000005},{"$f":"VLOOKUP($A172,F1__World_Data!$A$4:$DP$191,74,FALSE)","v":66.28},{"$f":"VLOOKUP($A172,F1__World_Data!$A$4:$DP$191,73,FALSE)","v":66.066000000000003},{"$f":"VLOOKUP($A172,F1__World_Data!$A$4:$DP$191,72,FALSE)","v":65.846999999999994},{"$f":"VLOOKUP($A172,F1__World_Data!$A$4:$DP$191,71,FALSE)","v":65.616},{"$f":"VLOOKUP($A172,F1__World_Data!$A$4:$DP$191,70,FALSE)","v":65.363},{"$f":"VLOOKUP($A172,F1__World_Data!$A$4:$DP$191,69,FALSE)","v":65.081000000000003},{"$f":"VLOOKUP($A172,F1__World_Data!$A$4:$DP$191,68,FALSE)","v":64.762},{"$f":"VLOOKUP($A172,F1__World_Data!$A$4:$DP$191,67,FALSE)","v":64.400999999999996},{"$f":"VLOOKUP($A172,F1__World_Data!$A$4:$DP$191,66,FALSE)","v":63.991999999999997},{"$f":"VLOOKUP($A172,F1__World_Data!$A$4:$DP$191,65,FALSE)","v":63.54},{"$f":"VLOOKUP($A172,F1__World_Data!$A$4:$DP$191,64,FALSE)","v":63.048999999999999},{"$f":"VLOOKUP($A172,F1__World_Data!$A$4:$DP$191,63,FALSE)","v":62.523000000000003},{"$f":"VLOOKUP($A172,F1__World_Data!$A$4:$DP$191,62,FALSE)","v":61.968000000000004}]
["Tonga",{"$f":"VLOOKUP($A173,F1__World_Data!$A$4:$DP$191,60,FALSE)","v":103.199},{"$f":"VLOOKUP($A173,F1__World_Data!$A$4:$DP$191,59,FALSE)","v":102.002},{"$f":"VLOOKUP($A173,F1__World_Data!$A$4:$DP$191,58,FALSE)","v":101.143},{"$f":"VLOOKUP($A173,F1__World_Data!$A$4:$DP$191,57,FALSE)","v":100.78},{"$f":"VLOOKUP($A173,F1__World_Data!$A$4:$DP$191,56,FALSE)","v":101.023},{"$f":"VLOOKUP($A173,F1__World_Data!$A$4:$DP$191,55,FALSE)","v":101.768},{"$f":"VLOOKUP($A173,F1__World_Data!$A$4:$DP$191,54,FALSE)","v":102.736},{"$f":"VLOOKUP($A173,F1__World_Data!$A$4:$DP$191,53,FALSE)","v":103.55800000000001},{"$f":"VLOOKUP($A173,F1__World_Data!$A$4:$DP$191,52,FALSE)","v":103.98099999999999},{"$f":"VLOOKUP($A173,F1__World_Data!$A$4:$DP$191,51,FALSE)","v":103.89700000000001},{"$f":"VLOOKUP($A173,F1__World_Data!$A$4:$DP$191,50,FALSE)","v":103.384},{"$f":"VLOOKUP($A173,F1__World_Data!$A$4:$DP$191,49,FALSE)","v":102.577},{"$f":"VLOOKUP($A173,F1__World_Data!$A$4:$DP$191,48,FALSE)","v":101.714},{"$f":"VLOOKUP($A173,F1__World_Data!$A$4:$DP$191,47,FALSE)","v":100.908},{"$f":"VLOOKUP($A173,F1__World_Data!$A$4:$DP$191,46,FALSE)","v":100.214},{"$f":"VLOOKUP($A173,F1__World_Data!$A$4:$DP$191,45,FALSE)","v":99.590999999999994},{"$f":"VLOOKUP($A173,F1__World_Data!$A$4:$DP$191,44,FALSE)","v":99.022999999999996},{"$f":"VLOOKUP($A173,F1__World_Data!$A$4:$DP$191,43,FALSE)","v":98.481999999999999},{"$f":"VLOOKUP($A173,F1__World_Data!$A$4:$DP$191,42,FALSE)","v":97.962000000000003},{"$f":"VLOOKUP($A173,F1__World_Data!$A$4:$DP$191,41,FALSE)","v":97.474999999999994},{"$f":"VLOOKUP($A173,F1__World_Data!$A$4:$DP$191,40,FALSE)","v":97.036000000000001},{"$f":"VLOOKUP($A173,F1__World_Data!$A$4:$DP$191,39,FALSE)","v":96.620999999999995},{"$f":"VLOOKUP($A173,F1__World_Data!$A$4:$DP$191,38,FALSE)","v":96.266999999999996},{"$f":"VLOOKUP($A173,F1__World_Data!$A$4:$DP$191,37,FALSE)","v":95.971999999999994},{"$f":"VLOOKUP($A173,F1__World_Data!$A$4:$DP$191,36,FALSE)","v":95.739000000000004},{"$f":"VLOOKUP($A173,F1__World_Data!$A$4:$DP$191,35,FALSE)","v":95.555999999999997},{"$f":"VLOOKUP($A173,F1__World_Data!$A$4:$DP$191,34,FALSE)","v":95.397999999999996},{"$f":"VLOOKUP($A173,F1__World_Data!$A$4:$DP$191,33,FALSE)","v":95.242999999999995},{"$f":"VLOOKUP($A173,F1__World_Data!$A$4:$DP$191,32,FALSE)","v":95.069000000000003},{"$f":"VLOOKUP($A173,F1__World_Data!$A$4:$DP$191,31,FALSE)","v":94.847999999999999},{"$f":"VLOOKUP($A173,F1__World_Data!$A$4:$DP$191,30,FALSE)","v":94.591999999999999},{"$f":"VLOOKUP($A173,F1__World_Data!$A$4:$DP$191,29,FALSE)","v":94.317999999999998},{"$f":"VLOOKUP($A173,F1__World_Data!$A$4:$DP$191,28,FALSE)","v":94.081000000000003},{"$f":"VLOOKUP($A173,F1__World_Data!$A$4:$DP$191,27,FALSE)","v":93.896000000000001},{"$f":"VLOOKUP($A173,F1__World_Data!$A$4:$DP$191,26,FALSE)","v":93.793000000000006},{"$f":"VLOOKUP($A173,F1__World_Data!$A$4:$DP$191,25,FALSE)","v":93.736000000000004},{"$f":"VLOOKUP($A173,F1__World_Data!$A$4:$DP$191,24,FALSE)","v":93.635999999999996},{"$f":"VLOOKUP($A173,F1__World_Data!$A$4:$DP$191,23,FALSE)","v":93.415000000000006},{"$f":"VLOOKUP($A173,F1__World_Data!$A$4:$DP$191,22,FALSE)","v":92.965999999999994},{"$f":"VLOOKUP($A173,F1__World_Data!$A$4:$DP$191,21,FALSE)","v":92.271000000000001},{"$f":"VLOOKUP($A173,F1__World_Data!$A$4:$DP$191,20,FALSE)","v":91.335999999999999},{"$f":"VLOOKUP($A173,F1__World_Data!$A$4:$DP$191,19,FALSE)","v":90.259},{"$f":"VLOOKUP($A173,F1__World_Data!$A$4:$DP$191,18,FALSE)","v":89.227999999999994},{"$f":"VLOOKUP($A173,F1__World_Data!$A$4:$DP$191,17,FALSE)","v":88.320999999999998},{"$f":"VLOOKUP($A173,F1__World_Data!$A$4:$DP$191,16,FALSE)","v":87.584000000000003},{"$f":"VLOOKUP($A173,F1__World_Data!$A$4:$DP$191,15,FALSE)","v":86.957999999999998},{"$f":"VLOOKUP($A173,F1__World_Data!$A$4:$DP$191,14,FALSE)","v":86.326999999999998},{"$f":"VLOOKUP($A173,F1__World_Data!$A$4:$DP$191,13,FALSE)","v":85.492000000000004},{"$f":"VLOOKUP($A173,F1__World_Data!$A$4:$DP$191,12,FALSE)","v":84.343999999999994},{"$f":"VLOOKUP($A173,F1__World_Data!$A$4:$DP$191,11,FALSE)","v":82.861000000000004},{"$f":"VLOOKUP($A173,F1__World_Data!$A$4:$DP$191,10,FALSE)","v":81.075999999999993},{"$f":"VLOOKUP($A173,F1__World_Data!$A$4:$DP$191,9,FALSE)","v":79.034000000000006},{"$f":"VLOOKUP($A173,F1__World_Data!$A$4:$DP$191,8,FALSE)","v":76.774000000000001},{"$f":"VLOOKUP($A173,F1__World_Data!$A$4:$DP$191,7,FALSE)","v":74.347999999999999},{"$f":"VLOOKUP($A173,F1__World_Data!$A$4:$DP$191,6,FALSE)","v":71.744},{"$f":"VLOOKUP($A173,F1__World_Data!$A$4:$DP$191,5,FALSE)","v":68.974999999999994},{"$f":"VLOOKUP($A173,F1__World_Data!$A$4:$DP$191,4,FALSE)","v":66.233000000000004},{"$f":"VLOOKUP($A173,F1__World_Data!$A$4:$DP$191,3,FALSE)","v":63.720999999999997},{"$f":"VLOOKUP($A173,F1__World_Data!$A$4:$DP$191,2,FALSE)","v":61.573999999999998},null,{"$f":"VLOOKUP($A173,F1__World_Data!$A$4:$DP$191,120,FALSE)","v":63.856999999999999},{"$f":"VLOOKUP($A173,F1__World_Data!$A$4:$DP$191,119,FALSE)","v":63.537999999999997},{"$f":"VLOOKUP($A173,F1__World_Data!$A$4:$DP$191,118,FALSE)","v":63.152999999999999},{"$f":"VLOOKUP($A173,F1__World_Data!$A$4:$DP$191,117,FALSE)","v":62.649000000000001},{"$f":"VLOOKUP($A173,F1__World_Data!$A$4:$DP$191,116,FALSE)","v":61.968000000000004},{"$f":"VLOOKUP($A173,F1__World_Data!$A$4:$DP$191,115,FALSE)","v":61.098999999999997},{"$f":"VLOOKUP($A173,F1__World_Data!$A$4:$DP$191,114,FALSE)","v":60.06},{"$f":"VLOOKUP($A173,F1__World_Data!$A$4:$DP$191,113,FALSE)","v":58.895000000000003},{"$f":"VLOOKUP($A173,F1__World_Data!$A$4:$DP$191,112,FALSE)","v":57.668999999999997},{"$f":"VLOOKUP($A173,F1__World_Data!$A$4:$DP$191,111,FALSE)","v":56.46},{"$f":"VLOOKUP($A173,F1__World_Data!$A$4:$DP$191,110,FALSE)","v":55.36},{"$f":"VLOOKUP($A173,F1__World_Data!$A$4:$DP$191,109,FALSE)","v":54.451999999999998},{"$f":"VLOOKUP($A173,F1__World_Data!$A$4:$DP$191,108,FALSE)","v":53.795000000000002},{"$f":"VLOOKUP($A173,F1__World_Data!$A$4:$DP$191,107,FALSE)","v":53.447000000000003},{"$f":"VLOOKUP($A173,F1__World_Data!$A$4:$DP$191,106,FALSE)","v":53.444000000000003},{"$f":"VLOOKUP($A173,F1__World_Data!$A$4:$DP$191,105,FALSE)","v":53.749000000000002},{"$f":"VLOOKUP($A173,F1__World_Data!$A$4:$DP$191,104,FALSE)","v":54.31},{"$f":"VLOOKUP($A173,F1__World_Data!$A$4:$DP$191,103,FALSE)","v":55.088999999999999},{"$f":"VLOOKUP($A173,F1__World_Data!$A$4:$DP$191,102,FALSE)","v":56.048000000000002},{"$f":"VLOOKUP($A173,F1__World_Data!$A$4:$DP$191,101,FALSE)","v":57.143999999999998},{"$f":"VLOOKUP($A173,F1__World_Data!$A$4:$DP$191,100,FALSE)","v":58.314999999999998},{"$f":"VLOOKUP($A173,F1__World_Data!$A$4:$DP$191,99,FALSE)","v":59.488999999999997},{"$f":"VLOOKUP($A173,F1__World_Data!$A$4:$DP$191,98,FALSE)","v":60.594999999999999},{"$f":"VLOOKUP($A173,F1__World_Data!$A$4:$DP$191,97,FALSE)","v":61.561},{"$f":"VLOOKUP($A173,F1__World_Data!$A$4:$DP$191,96,FALSE)","v":62.331000000000003},{"$f":"VLOOKUP($A173,F1__World_Data!$A$4:$DP$191,95,FALSE)","v":62.893999999999998},{"$f":"VLOOKUP($A173,F1__World_Data!$A$4:$DP$191,94,FALSE)","v":63.247},{"$f":"VLOOKUP($A173,F1__World_Data!$A$4:$DP$191,93,FALSE)","v":63.384},{"$f":"VLOOKUP($A173,F1__World_Data!$A$4:$DP$191,92,FALSE)","v":63.307000000000002},{"$f":"VLOOKUP($A173,F1__World_Data!$A$4:$DP$191,91,FALSE)","v":63.034999999999997},{"$f":"VLOOKUP($A173,F1__World_Data!$A$4:$DP$191,90,FALSE)","v":62.619},{"$f":"VLOOKUP($A173,F1__World_Data!$A$4:$DP$191,89,FALSE)","v":62.109000000000002},{"$f":"VLOOKUP($A173,F1__World_Data!$A$4:$DP$191,88,FALSE)","v":61.54},{"$f":"VLOOKUP($A173,F1__World_Data!$A$4:$DP$191,87,FALSE)","v":60.945999999999998},{"$f":"VLOOKUP($A173,F1__World_Data!$A$4:$DP$191,86,FALSE)","v":60.353000000000002},{"$f":"VLOOKUP($A173,F1__World_Data!$A$4:$DP$191,85,FALSE)","v":59.765999999999998},{"$f":"VLOOKUP($A173,F1__World_Data!$A$4:$DP$191,84,FALSE)","v":59.191000000000003},{"$f":"VLOOKUP($A173,F1__World_Data!$A$4:$DP$191,83,FALSE)","v":58.637},{"$f":"VLOOKUP($A173,F1__World_Data!$A$4:$DP$191,82,FALSE)","v":58.106999999999999},{"$f":"VLOOKUP($A173,F1__World_Data!$A$4:$DP$191,81,FALSE)","v":57.59},{"$f":"VLOOKUP($A173,F1__World_Data!$A$4:$DP$191,80,FALSE)","v":57.070999999999998},{"$f":"VLOOKUP($A173,F1__World_Data!$A$4:$DP$191,79,FALSE)","v":56.537999999999997},{"$f":"VLOOKUP($A173,F1__World_Data!$A$4:$DP$191,78,FALSE)","v":55.99},{"$f":"VLOOKUP($A173,F1__World_Data!$A$4:$DP$191,77,FALSE)","v":55.427999999999997},{"$f":"VLOOKUP($A173,F1__World_Data!$A$4:$DP$191,76,FALSE)","v":54.856000000000002},{"$f":"VLOOKUP($A173,F1__World_Data!$A$4:$DP$191,75,FALSE)","v":54.280999999999999},{"$f":"VLOOKUP($A173,F1__World_Data!$A$4:$DP$191,74,FALSE)","v":53.713000000000001},{"$f":"VLOOKUP($A173,F1__World_Data!$A$4:$DP$191,73,FALSE)","v":53.156999999999996},{"$f":"VLOOKUP($A173,F1__World_Data!$A$4:$DP$191,72,FALSE)","v":52.62},{"$f":"VLOOKUP($A173,F1__World_Data!$A$4:$DP$191,71,FALSE)","v":52.106000000000002},{"$f":"VLOOKUP($A173,F1__World_Data!$A$4:$DP$191,70,FALSE)","v":51.615000000000002},{"$f":"VLOOKUP($A173,F1__World_Data!$A$4:$DP$191,69,FALSE)","v":51.148000000000003},{"$f":"VLOOKUP($A173,F1__World_Data!$A$4:$DP$191,68,FALSE)","v":50.704999999999998},{"$f":"VLOOKUP($A173,F1__World_Data!$A$4:$DP$191,67,FALSE)","v":50.283999999999999},{"$f":"VLOOKUP($A173,F1__World_Data!$A$4:$DP$191,66,FALSE)","v":49.887999999999998},{"$f":"VLOOKUP($A173,F1__World_Data!$A$4:$DP$191,65,FALSE)","v":49.509},{"$f":"VLOOKUP($A173,F1__World_Data!$A$4:$DP$191,64,FALSE)","v":49.142000000000003},{"$f":"VLOOKUP($A173,F1__World_Data!$A$4:$DP$191,63,FALSE)","v":48.777000000000001},{"$f":"VLOOKUP($A173,F1__World_Data!$A$4:$DP$191,62,FALSE)","v":48.405999999999999}]
["Seychelles",{"$f":"VLOOKUP($A174,F1__World_Data!$A$4:$DP$191,60,FALSE)","v":97.093999999999994},{"$f":"VLOOKUP($A174,F1__World_Data!$A$4:$DP$191,59,FALSE)","v":96.418000000000006},{"$f":"VLOOKUP($A174,F1__World_Data!$A$4:$DP$191,58,FALSE)","v":95.710999999999999},{"$f":"VLOOKUP($A174,F1__World_Data!$A$4:$DP$191,57,FALSE)","v":94.980999999999995},{"$f":"VLOOKUP($A174,F1__World_Data!$A$4:$DP$191,56,FALSE)","v":94.213999999999999},{"$f":"VLOOKUP($A174,F1__World_Data!$A$4:$DP$191,55,FALSE)","v":93.397000000000006},{"$f":"VLOOKUP($A174,F1__World_Data!$A$4:$DP$191,54,FALSE)","v":92.608000000000004},{"$f":"VLOOKUP($A174,F1__World_Data!$A$4:$DP$191,53,FALSE)","v":91.882000000000005},{"$f":"VLOOKUP($A174,F1__World_Data!$A$4:$DP$191,52,FALSE)","v":91.272999999999996},{"$f":"VLOOKUP($A174,F1__World_Data!$A$4:$DP$191,51,FALSE)","v":90.787999999999997},{"$f":"VLOOKUP($A174,F1__World_Data!$A$4:$DP$191,50,FALSE)","v":90.45},{"$f":"VLOOKUP($A174,F1__World_Data!$A$4:$DP$191,49,FALSE)","v":90.081999999999994},{"$f":"VLOOKUP($A174,F1__World_Data!$A$4:$DP$191,48,FALSE)","v":89.528000000000006},{"$f":"VLOOKUP($A174,F1__World_Data!$A$4:$DP$191,47,FALSE)","v":88.652000000000001},{"$f":"VLOOKUP($A174,F1__World_Data!$A$4:$DP$191,46,FALSE)","v":87.388000000000005},{"$f":"VLOOKUP($A174,F1__World_Data!$A$4:$DP$191,45,FALSE)","v":85.807000000000002},{"$f":"VLOOKUP($A174,F1__World_Data!$A$4:$DP$191,44,FALSE)","v":84.076999999999998},{"$f":"VLOOKUP($A174,F1__World_Data!$A$4:$DP$191,43,FALSE)","v":82.412999999999997},{"$f":"VLOOKUP($A174,F1__World_Data!$A$4:$DP$191,42,FALSE)","v":80.998000000000005},{"$f":"VLOOKUP($A174,F1__World_Data!$A$4:$DP$191,41,FALSE)","v":79.903999999999996},{"$f":"VLOOKUP($A174,F1__World_Data!$A$4:$DP$191,40,FALSE)","v":79.063999999999993},{"$f":"VLOOKUP($A174,F1__World_Data!$A$4:$DP$191,39,FALSE)","v":78.356999999999999},{"$f":"VLOOKUP($A174,F1__World_Data!$A$4:$DP$191,38,FALSE)","v":77.596999999999994},{"$f":"VLOOKUP($A174,F1__World_Data!$A$4:$DP$191,37,FALSE)","v":76.653000000000006},{"$f":"VLOOKUP($A174,F1__World_Data!$A$4:$DP$191,36,FALSE)","v":75.444000000000003},{"$f":"VLOOKUP($A174,F1__World_Data!$A$4:$DP$191,35,FALSE)","v":74.070999999999998},{"$f":"VLOOKUP($A174,F1__World_Data!$A$4:$DP$191,34,FALSE)","v":72.661000000000001},{"$f":"VLOOKUP($A174,F1__World_Data!$A$4:$DP$191,33,FALSE)","v":71.445999999999998},{"$f":"VLOOKUP($A174,F1__World_Data!$A$4:$DP$191,32,FALSE)","v":70.572000000000003},{"$f":"VLOOKUP($A174,F1__World_Data!$A$4:$DP$191,31,FALSE)","v":70.088999999999999},{"$f":"VLOOKUP($A174,F1__World_Data!$A$4:$DP$191,30,FALSE)","v":69.924999999999997},{"$f":"VLOOKUP($A174,F1__World_Data!$A$4:$DP$191,29,FALSE)","v":69.945999999999998},{"$f":"VLOOKUP($A174,F1__World_Data!$A$4:$DP$191,28,FALSE)","v":69.941000000000003},{"$f":"VLOOKUP($A174,F1__World_Data!$A$4:$DP$191,27,FALSE)","v":69.772000000000006},{"$f":"VLOOKUP($A174,F1__World_Data!$A$4:$DP$191,26,FALSE)","v":69.402000000000001},{"$f":"VLOOKUP($A174,F1__World_Data!$A$4:$DP$191,25,FALSE)","v":68.837000000000003},{"$f":"VLOOKUP($A174,F1__World_Data!$A$4:$DP$191,24,FALSE)","v":68.12},{"$f":"VLOOKUP($A174,F1__World_Data!$A$4:$DP$191,23,FALSE)","v":67.242000000000004},{"$f":"VLOOKUP($A174,F1__World_Data!$A$4:$DP$191,22,FALSE)","v":66.236999999999995},{"$f":"VLOOKUP($A174,F1__World_Data!$A$4:$DP$191,21,FALSE)","v":65.114000000000004},{"$f":"VLOOKUP($A174,F1__World_Data!$A$4:$DP$191,20,FALSE)","v":63.85},{"$f":"VLOOKUP($A174,F1__World_Data!$A$4:$DP$191,19,FALSE)","v":62.482999999999997},{"$f":"VLOOKUP($A174,F1__World_Data!$A$4:$DP$191,18,FALSE)","v":61.043999999999997},{"$f":"VLOOKUP($A174,F1__World_Data!$A$4:$DP$191,17,FALSE)","v":59.584000000000003},{"$f":"VLOOKUP($A174,F1__World_Data!$A$4:$DP$191,16,FALSE)","v":58.095999999999997},{"$f":"VLOOKUP($A174,F1__World_Data!$A$4:$DP$191,15,FALSE)","v":56.609000000000002},{"$f":"VLOOKUP($A174,F1__World_Data!$A$4:$DP$191,14,FALSE)","v":55.127000000000002},{"$f":"VLOOKUP($A174,F1__World_Data!$A$4:$DP$191,13,FALSE)","v":53.713999999999999},{"$f":"VLOOKUP($A174,F1__World_Data!$A$4:$DP$191,12,FALSE)","v":52.371000000000002},{"$f":"VLOOKUP($A174,F1__World_Data!$A$4:$DP$191,11,FALSE)","v":51.131999999999998},{"$f":"VLOOKUP($A174,F1__World_Data!$A$4:$DP$191,10,FALSE)","v":49.997999999999998},{"$f":"VLOOKUP($A174,F1__World_Data!$A$4:$DP$191,9,FALSE)","v":48.915999999999997},{"$f":"VLOOKUP($A174,F1__World_Data!$A$4:$DP$191,8,FALSE)","v":47.866},{"$f":"VLOOKUP($A174,F1__World_Data!$A$4:$DP$191,7,FALSE)","v":46.786999999999999},{"$f":"VLOOKUP($A174,F1__World_Data!$A$4:$DP$191,6,FALSE)","v":45.677999999999997},{"$f":"VLOOKUP($A174,F1__World_Data!$A$4:$DP$191,5,FALSE)","v":44.545999999999999},{"$f":"VLOOKUP($A174,F1__World_Data!$A$4:$DP$191,4,FALSE)","v":43.460999999999999},{"$f":"VLOOKUP($A174,F1__World_Data!$A$4:$DP$191,3,FALSE)","v":42.46},{"$f":"VLOOKUP($A174,F1__World_Data!$A$4:$DP$191,2,FALSE)","v":41.610999999999997},null,{"$f":"VLOOKUP($A174,F1__World_Data!$A$4:$DP$191,120,FALSE)","v":68.116},{"$f":"VLOOKUP($A174,F1__World_Data!$A$4:$DP$191,119,FALSE)","v":67.850999999999999},{"$f":"VLOOKUP($A174,F1__World_Data!$A$4:$DP$191,118,FALSE)","v":67.576999999999998},{"$f":"VLOOKUP($A174,F1__World_Data!$A$4:$DP$191,117,FALSE)","v":67.290999999999997},{"$f":"VLOOKUP($A174,F1__World_Data!$A$4:$DP$191,116,FALSE)","v":66.995000000000005},{"$f":"VLOOKUP($A174,F1__World_Data!$A$4:$DP$191,115,FALSE)","v":66.69},{"$f":"VLOOKUP($A174,F1__World_Data!$A$4:$DP$191,114,FALSE)","v":66.381},{"$f":"VLOOKUP($A174,F1__World_Data!$A$4:$DP$191,113,FALSE)","v":66.072000000000003},{"$f":"VLOOKUP($A174,F1__World_Data!$A$4:$DP$191,112,FALSE)","v":65.769000000000005},{"$f":"VLOOKUP($A174,F1__World_Data!$A$4:$DP$191,111,FALSE)","v":65.48},{"$f":"VLOOKUP($A174,F1__World_Data!$A$4:$DP$191,110,FALSE)","v":65.207999999999998},{"$f":"VLOOKUP($A174,F1__World_Data!$A$4:$DP$191,109,FALSE)","v":64.953000000000003},{"$f":"VLOOKUP($A174,F1__World_Data!$A$4:$DP$191,108,FALSE)","v":64.712000000000003},{"$f":"VLOOKUP($A174,F1__World_Data!$A$4:$DP$191,107,FALSE)","v":64.477999999999994},{"$f":"VLOOKUP($A174,F1__World_Data!$A$4:$DP$191,106,FALSE)","v":64.242000000000004},{"$f":"VLOOKUP($A174,F1__World_Data!$A$4:$DP$191,105,FALSE)","v":63.994999999999997},{"$f":"VLOOKUP($A174,F1__World_Data!$A$4:$DP$191,104,FALSE)","v":63.731000000000002},{"$f":"VLOOKUP($A174,F1__World_Data!$A$4:$DP$191,103,FALSE)","v":63.445999999999998},{"$f":"VLOOKUP($A174,F1__World_Data!$A$4:$DP$191,102,FALSE)","v":63.143999999999998},{"$f":"VLOOKUP($A174,F1__World_Data!$A$4:$DP$191,101,FALSE)","v":62.829000000000001},{"$f":"VLOOKUP($A174,F1__World_Data!$A$4:$DP$191,100,FALSE)","v":62.509},{"$f":"VLOOKUP($A174,F1__World_Data!$A$4:$DP$191,99,FALSE)","v":62.188000000000002},{"$f":"VLOOKUP($A174,F1__World_Data!$A$4:$DP$191,98,FALSE)","v":61.866},{"$f":"VLOOKUP($A174,F1__World_Data!$A$4:$DP$191,97,FALSE)","v":61.539000000000001},{"$f":"VLOOKUP($A174,F1__World_Data!$A$4:$DP$191,96,FALSE)","v":61.198},{"$f":"VLOOKUP($A174,F1__World_Data!$A$4:$DP$191,95,FALSE)","v":60.837000000000003},{"$f":"VLOOKUP($A174,F1__World_Data!$A$4:$DP$191,94,FALSE)","v":60.454999999999998},{"$f":"VLOOKUP($A174,F1__World_Data!$A$4:$DP$191,93,FALSE)","v":60.052999999999997},{"$f":"VLOOKUP($A174,F1__World_Data!$A$4:$DP$191,92,FALSE)","v":59.636000000000003},{"$f":"VLOOKUP($A174,F1__World_Data!$A$4:$DP$191,91,FALSE)","v":59.209000000000003},{"$f":"VLOOKUP($A174,F1__World_Data!$A$4:$DP$191,90,FALSE)","v":58.783000000000001},{"$f":"VLOOKUP($A174,F1__World_Data!$A$4:$DP$191,89,FALSE)","v":58.366},{"$f":"VLOOKUP($A174,F1__World_Data!$A$4:$DP$191,88,FALSE)","v":57.962000000000003},{"$f":"VLOOKUP($A174,F1__World_Data!$A$4:$DP$191,87,FALSE)","v":57.579000000000001},{"$f":"VLOOKUP($A174,F1__World_Data!$A$4:$DP$191,86,FALSE)","v":57.220999999999997},{"$f":"VLOOKUP($A174,F1__World_Data!$A$4:$DP$191,85,FALSE)","v":56.886000000000003},{"$f":"VLOOKUP($A174,F1__World_Data!$A$4:$DP$191,84,FALSE)","v":56.569000000000003},{"$f":"VLOOKUP($A174,F1__World_Data!$A$4:$DP$191,83,FALSE)","v":56.265999999999998},{"$f":"VLOOKUP($A174,F1__World_Data!$A$4:$DP$191,82,FALSE)","v":55.970999999999997},{"$f":"VLOOKUP($A174,F1__World_Data!$A$4:$DP$191,81,FALSE)","v":55.679000000000002},{"$f":"VLOOKUP($A174,F1__World_Data!$A$4:$DP$191,80,FALSE)","v":55.381999999999998},{"$f":"VLOOKUP($A174,F1__World_Data!$A$4:$DP$191,79,FALSE)","v":55.073999999999998},{"$f":"VLOOKUP($A174,F1__World_Data!$A$4:$DP$191,78,FALSE)","v":54.747999999999998},{"$f":"VLOOKUP($A174,F1__World_Data!$A$4:$DP$191,77,FALSE)","v":54.399000000000001},{"$f":"VLOOKUP($A174,F1__World_Data!$A$4:$DP$191,76,FALSE)","v":54.027000000000001},{"$f":"VLOOKUP($A174,F1__World_Data!$A$4:$DP$191,75,FALSE)","v":53.633000000000003},{"$f":"VLOOKUP($A174,F1__World_Data!$A$4:$DP$191,74,FALSE)","v":53.218000000000004},{"$f":"VLOOKUP($A174,F1__World_Data!$A$4:$DP$191,73,FALSE)","v":52.781999999999996},{"$f":"VLOOKUP($A174,F1__World_Data!$A$4:$DP$191,72,FALSE)","v":52.323},{"$f":"VLOOKUP($A174,F1__World_Data!$A$4:$DP$191,71,FALSE)","v":51.837000000000003},{"$f":"VLOOKUP($A174,F1__World_Data!$A$4:$DP$191,70,FALSE)","v":51.326999999999998},{"$f":"VLOOKUP($A174,F1__World_Data!$A$4:$DP$191,69,FALSE)","v":50.795999999999999},{"$f":"VLOOKUP($A174,F1__World_Data!$A$4:$DP$191,68,FALSE)","v":50.25},{"$f":"VLOOKUP($A174,F1__World_Data!$A$4:$DP$191,67,FALSE)","v":49.697000000000003},{"$f":"VLOOKUP($A174,F1__World_Data!$A$4:$DP$191,66,FALSE)","v":49.145000000000003},{"$f":"VLOOKUP($A174,F1__World_Data!$A$4:$DP$191,65,FALSE)","v":48.600999999999999},{"$f":"VLOOKUP($A174,F1__World_Data!$A$4:$DP$191,64,FALSE)","v":48.070999999999998},{"$f":"VLOOKUP($A174,F1__World_Data!$A$4:$DP$191,63,FALSE)","v":47.557000000000002},{"$f":"VLOOKUP($A174,F1__World_Data!$A$4:$DP$191,62,FALSE)","v":47.061}]
["Andorra",{"$f":"VLOOKUP($A175,F1__World_Data!$A$4:$DP$191,60,FALSE)","v":77.007999999999996},{"$f":"VLOOKUP($A175,F1__World_Data!$A$4:$DP$191,59,FALSE)","v":76.997},{"$f":"VLOOKUP($A175,F1__World_Data!$A$4:$DP$191,58,FALSE)","v":77.295000000000002},{"$f":"VLOOKUP($A175,F1__World_Data!$A$4:$DP$191,57,FALSE)","v":77.992999999999995},{"$f":"VLOOKUP($A175,F1__World_Data!$A$4:$DP$191,56,FALSE)","v":79.212999999999994},{"$f":"VLOOKUP($A175,F1__World_Data!$A$4:$DP$191,55,FALSE)","v":80.77},{"$f":"VLOOKUP($A175,F1__World_Data!$A$4:$DP$191,54,FALSE)","v":82.427000000000007},{"$f":"VLOOKUP($A175,F1__World_Data!$A$4:$DP$191,53,FALSE)","v":83.748000000000005},{"$f":"VLOOKUP($A175,F1__World_Data!$A$4:$DP$191,52,FALSE)","v":84.453999999999994},{"$f":"VLOOKUP($A175,F1__World_Data!$A$4:$DP$191,51,FALSE)","v":84.460999999999999},{"$f":"VLOOKUP($A175,F1__World_Data!$A$4:$DP$191,50,FALSE)","v":83.86},{"$f":"VLOOKUP($A175,F1__World_Data!$A$4:$DP$191,49,FALSE)","v":82.682000000000002},{"$f":"VLOOKUP($A175,F1__World_Data!$A$4:$DP$191,48,FALSE)","v":80.995000000000005},{"$f":"VLOOKUP($A175,F1__World_Data!$A$4:$DP$191,47,FALSE)","v":78.870999999999995},{"$f":"VLOOKUP($A175,F1__World_Data!$A$4:$DP$191,46,FALSE)","v":76.25},{"$f":"VLOOKUP($A175,F1__World_Data!$A$4:$DP$191,45,FALSE)","v":73.180000000000007},{"$f":"VLOOKUP($A175,F1__World_Data!$A$4:$DP$191,44,FALSE)","v":70.048000000000002},{"$f":"VLOOKUP($A175,F1__World_Data!$A$4:$DP$191,43,FALSE)","v":67.343999999999994},{"$f":"VLOOKUP($A175,F1__World_Data!$A$4:$DP$191,42,FALSE)","v":65.39},{"$f":"VLOOKUP($A175,F1__World_Data!$A$4:$DP$191,41,FALSE)","v":64.367999999999995},{"$f":"VLOOKUP($A175,F1__World_Data!$A$4:$DP$191,40,FALSE)","v":64.14},{"$f":"VLOOKUP($A175,F1__World_Data!$A$4:$DP$191,39,FALSE)","v":64.317999999999998},{"$f":"VLOOKUP($A175,F1__World_Data!$A$4:$DP$191,38,FALSE)","v":64.363},{"$f":"VLOOKUP($A175,F1__World_Data!$A$4:$DP$191,37,FALSE)","v":63.86},{"$f":"VLOOKUP($A175,F1__World_Data!$A$4:$DP$191,36,FALSE)","v":62.676000000000002},{"$f":"VLOOKUP($A175,F1__World_Data!$A$4:$DP$191,35,FALSE)","v":60.973999999999997},{"$f":"VLOOKUP($A175,F1__World_Data!$A$4:$DP$191,34,FALSE)","v":58.881999999999998},{"$f":"VLOOKUP($A175,F1__World_Data!$A$4:$DP$191,33,FALSE)","v":56.665999999999997},{"$f":"VLOOKUP($A175,F1__World_Data!$A$4:$DP$191,32,FALSE)","v":54.508000000000003},{"$f":"VLOOKUP($A175,F1__World_Data!$A$4:$DP$191,31,FALSE)","v":52.451999999999998},{"$f":"VLOOKUP($A175,F1__World_Data!$A$4:$DP$191,30,FALSE)","v":50.433},{"$f":"VLOOKUP($A175,F1__World_Data!$A$4:$DP$191,29,FALSE)","v":48.459000000000003},{"$f":"VLOOKUP($A175,F1__World_Data!$A$4:$DP$191,28,FALSE)","v":46.52},{"$f":"VLOOKUP($A175,F1__World_Data!$A$4:$DP$191,27,FALSE)","v":44.593000000000004},{"$f":"VLOOKUP($A175,F1__World_Data!$A$4:$DP$191,26,FALSE)","v":42.706000000000003},{"$f":"VLOOKUP($A175,F1__World_Data!$A$4:$DP$191,25,FALSE)","v":40.853999999999999},{"$f":"VLOOKUP($A175,F1__World_Data!$A$4:$DP$191,24,FALSE)","v":39.115000000000002},{"$f":"VLOOKUP($A175,F1__World_Data!$A$4:$DP$191,23,FALSE)","v":37.497999999999998},{"$f":"VLOOKUP($A175,F1__World_Data!$A$4:$DP$191,22,FALSE)","v":36.063000000000002},{"$f":"VLOOKUP($A175,F1__World_Data!$A$4:$DP$191,21,FALSE)","v":34.825000000000003},{"$f":"VLOOKUP($A175,F1__World_Data!$A$4:$DP$191,20,FALSE)","v":33.744},{"$f":"VLOOKUP($A175,F1__World_Data!$A$4:$DP$191,19,FALSE)","v":32.768999999999998},{"$f":"VLOOKUP($A175,F1__World_Data!$A$4:$DP$191,18,FALSE)","v":31.782},{"$f":"VLOOKUP($A175,F1__World_Data!$A$4:$DP$191,17,FALSE)","v":30.704999999999998},{"$f":"VLOOKUP($A175,F1__World_Data!$A$4:$DP$191,16,FALSE)","v":29.515000000000001},{"$f":"VLOOKUP($A175,F1__World_Data!$A$4:$DP$191,15,FALSE)","v":28.231999999999999},{"$f":"VLOOKUP($A175,F1__World_Data!$A$4:$DP$191,14,FALSE)","v":26.885000000000002},{"$f":"VLOOKUP($A175,F1__World_Data!$A$4:$DP$191,13,FALSE)","v":25.571000000000002},{"$f":"VLOOKUP($A175,F1__World_Data!$A$4:$DP$191,12,FALSE)","v":24.274999999999999},{"$f":"VLOOKUP($A175,F1__World_Data!$A$4:$DP$191,11,FALSE)","v":23.053000000000001},{"$f":"VLOOKUP($A175,F1__World_Data!$A$4:$DP$191,10,FALSE)","v":21.885999999999999},{"$f":"VLOOKUP($A175,F1__World_Data!$A$4:$DP$191,9,FALSE)","v":20.76},{"$f":"VLOOKUP($A175,F1__World_Data!$A$4:$DP$191,8,FALSE)","v":19.646000000000001},{"$f":"VLOOKUP($A175,F1__World_Data!$A$4:$DP$191,7,FALSE)","v":18.542000000000002},{"$f":"VLOOKUP($A175,F1__World_Data!$A$4:$DP$191,6,FALSE)","v":17.466000000000001},{"$f":"VLOOKUP($A175,F1__World_Data!$A$4:$DP$191,5,FALSE)","v":16.407},{"$f":"VLOOKUP($A175,F1__World_Data!$A$4:$DP$191,4,FALSE)","v":15.379},{"$f":"VLOOKUP($A175,F1__World_Data!$A$4:$DP$191,3,FALSE)","v":14.378},{"$f":"VLOOKUP($A175,F1__World_Data!$A$4:$DP$191,2,FALSE)","v":13.41},null,{"$f":"VLOOKUP($A175,F1__World_Data!$A$4:$DP$191,120,FALSE)","v":0},{"$f":"VLOOKUP($A175,F1__World_Data!$A$4:$DP$191,119,FALSE)","v":0},{"$f":"VLOOKUP($A175,F1__World_Data!$A$4:$DP$191,118,FALSE)","v":0},{"$f":"VLOOKUP($A175,F1__World_Data!$A$4:$DP$191,117,FALSE)","v":0},{"$f":"VLOOKUP($A175,F1__World_Data!$A$4:$DP$191,116,FALSE)","v":0},{"$f":"VLOOKUP($A175,F1__World_Data!$A$4:$DP$191,115,FALSE)","v":0},{"$f":"VLOOKUP($A175,F1__World_Data!$A$4:$DP$191,114,FALSE)","v":0},{"$f":"VLOOKUP($A175,F1__World_Data!$A$4:$DP$191,113,FALSE)","v":0},{"$f":"VLOOKUP($A175,F1__World_Data!$A$4:$DP$191,112,FALSE)","v":0},{"$f":"VLOOKUP($A175,F1__World_Data!$A$4:$DP$191,111,FALSE)","v":0},{"$f":"VLOOKUP($A175,F1__World_Data!$A$4:$DP$191,110,FALSE)","v":0},{"$f":"VLOOKUP($A175,F1__World_Data!$A$4:$DP$191,109,FALSE)","v":0},{"$f":"VLOOKUP($A175,F1__World_Data!$A$4:$DP$191,108,FALSE)","v":0},{"$f":"VLOOKUP($A175,F1__World_Data!$A$4:$DP$191,107,FALSE)","v":0},{"$f":"VLOOKUP($A175,F1__World_Data!$A$4:$DP$191,106,FALSE)","v":0},{"$f":"VLOOKUP($A175,F1__World_Data!$A$4:$DP$191,105,FALSE)","v":0},{"$f":"VLOOKUP($A175,F1__World_Data!$A$4:$DP$191,104,FALSE)","v":0},{"$f":"VLOOKUP($A175,F1__World_Data!$A$4:$DP$191,103,FALSE)","v":0},{"$f":"VLOOKUP($A175,F1__World_Data!$A$4:$DP$191,102,FALSE)","v":0},{"$f":"VLOOKUP($A175,F1__World_Data!$A$4:$DP$191,101,FALSE)","v":0},{"$f":"VLOOKUP($A175,F1__World_Data!$A$4:$DP$191,100,FALSE)","v":0},{"$f":"VLOOKUP($A175,F1__World_Data!$A$4:$DP$191,99,FALSE)","v":0},{"$f":"VLOOKUP($A175,F1__World_Data!$A$4:$DP$191,98,FALSE)","v":0},{"$f":"VLOOKUP($A175,F1__World_Data!$A$4:$DP$191,97,FALSE)","v":0},{"$f":"VLOOKUP($A175,F1__World_Data!$A$4:$DP$191,96,FALSE)","v":0},{"$f":"VLOOKUP($A175,F1__World_Data!$A$4:$DP$191,95,FALSE)","v":0},{"$f":"VLOOKUP($A175,F1__World_Data!$A$4:$DP$191,94,FALSE)","v":0},{"$f":"VLOOKUP($A175,F1__World_Data!$A$4:$DP$191,93,FALSE)","v":0},{"$f":"VLOOKUP($A175,F1__World_Data!$A$4:$DP$191,92,FALSE)","v":0},{"$f":"VLOOKUP($A175,F1__World_Data!$A$4:$DP$191,91,FALSE)","v":0},{"$f":"VLOOKUP($A175,F1__World_Data!$A$4:$DP$191,90,FALSE)","v":0},{"$f":"VLOOKUP($A175,F1__World_Data!$A$4:$DP$191,89,FALSE)","v":0},{"$f":"VLOOKUP($A175,F1__World_Data!$A$4:$DP$191,88,FALSE)","v":0},{"$f":"VLOOKUP($A175,F1__World_Data!$A$4:$DP$191,87,FALSE)","v":0},{"$f":"VLOOKUP($A175,F1__World_Data!$A$4:$DP$191,86,FALSE)","v":0},{"$f":"VLOOKUP($A175,F1__World_Data!$A$4:$DP$191,85,FALSE)","v":0},{"$f":"VLOOKUP($A175,F1__World_Data!$A$4:$DP$191,84,FALSE)","v":0},{"$f":"VLOOKUP($A175,F1__World_Data!$A$4:$DP$191,83,FALSE)","v":0},{"$f":"VLOOKUP($A175,F1__World_Data!$A$4:$DP$191,82,FALSE)","v":0},{"$f":"VLOOKUP($A175,F1__World_Data!$A$4:$DP$191,81,FALSE)","v":0},{"$f":"VLOOKUP($A175,F1__World_Data!$A$4:$DP$191,80,FALSE)","v":0},{"$f":"VLOOKUP($A175,F1__World_Data!$A$4:$DP$191,79,FALSE)","v":0},{"$f":"VLOOKUP($A175,F1__World_Data!$A$4:$DP$191,78,FALSE)","v":0},{"$f":"VLOOKUP($A175,F1__World_Data!$A$4:$DP$191,77,FALSE)","v":0},{"$f":"VLOOKUP($A175,F1__World_Data!$A$4:$DP$191,76,FALSE)","v":0},{"$f":"VLOOKUP($A175,F1__World_Data!$A$4:$DP$191,75,FALSE)","v":0},{"$f":"VLOOKUP($A175,F1__World_Data!$A$4:$DP$191,74,FALSE)","v":0},{"$f":"VLOOKUP($A175,F1__World_Data!$A$4:$DP$191,73,FALSE)","v":0},{"$f":"VLOOKUP($A175,F1__World_Data!$A$4:$DP$191,72,FALSE)","v":0},{"$f":"VLOOKUP($A175,F1__World_Data!$A$4:$DP$191,71,FALSE)","v":0},{"$f":"VLOOKUP($A175,F1__World_Data!$A$4:$DP$191,70,FALSE)","v":0},{"$f":"VLOOKUP($A175,F1__World_Data!$A$4:$DP$191,69,FALSE)","v":0},{"$f":"VLOOKUP($A175,F1__World_Data!$A$4:$DP$191,68,FALSE)","v":0},{"$f":"VLOOKUP($A175,F1__World_Data!$A$4:$DP$191,67,FALSE)","v":0},{"$f":"VLOOKUP($A175,F1__World_Data!$A$4:$DP$191,66,FALSE)","v":0},{"$f":"VLOOKUP($A175,F1__World_Data!$A$4:$DP$191,65,FALSE)","v":0},{"$f":"VLOOKUP($A175,F1__World_Data!$A$4:$DP$191,64,FALSE)","v":0},{"$f":"VLOOKUP($A175,F1__World_Data!$A$4:$DP$191,63,FALSE)","v":0},{"$f":"VLOOKUP($A175,F1__World_Data!$A$4:$DP$191,62,FALSE)","v":0}]
["Cayman Islands",{"$f":"VLOOKUP($A176,F1__World_Data!$A$4:$DP$191,60,FALSE)","v":64.171999999999997},{"$f":"VLOOKUP($A176,F1__World_Data!$A$4:$DP$191,59,FALSE)","v":63.381999999999998},{"$f":"VLOOKUP($A176,F1__World_Data!$A$4:$DP$191,58,FALSE)","v":62.564},{"$f":"VLOOKUP($A176,F1__World_Data!$A$4:$DP$191,57,FALSE)","v":61.720999999999997},{"$f":"VLOOKUP($A176,F1__World_Data!$A$4:$DP$191,56,FALSE)","v":60.847999999999999},{"$f":"VLOOKUP($A176,F1__World_Data!$A$4:$DP$191,55,FALSE)","v":59.933},{"$f":"VLOOKUP($A176,F1__World_Data!$A$4:$DP$191,54,FALSE)","v":58.963000000000001},{"$f":"VLOOKUP($A176,F1__World_Data!$A$4:$DP$191,53,FALSE)","v":57.877000000000002},{"$f":"VLOOKUP($A176,F1__World_Data!$A$4:$DP$191,52,FALSE)","v":56.671999999999997},{"$f":"VLOOKUP($A176,F1__World_Data!$A$4:$DP$191,51,FALSE)","v":55.320999999999998},{"$f":"VLOOKUP($A176,F1__World_Data!$A$4:$DP$191,50,FALSE)","v":53.835000000000001},{"$f":"VLOOKUP($A176,F1__World_Data!$A$4:$DP$191,49,FALSE)","v":52.28},{"$f":"VLOOKUP($A176,F1__World_Data!$A$4:$DP$191,48,FALSE)","v":50.728999999999999},{"$f":"VLOOKUP($A176,F1__World_Data!$A$4:$DP$191,47,FALSE)","v":49.261000000000003},{"$f":"VLOOKUP($A176,F1__World_Data!$A$4:$DP$191,46,FALSE)","v":47.899000000000001},{"$f":"VLOOKUP($A176,F1__World_Data!$A$4:$DP$191,45,FALSE)","v":46.624000000000002},{"$f":"VLOOKUP($A176,F1__World_Data!$A$4:$DP$191,44,FALSE)","v":45.347000000000001},{"$f":"VLOOKUP($A176,F1__World_Data!$A$4:$DP$191,43,FALSE)","v":43.933999999999997},{"$f":"VLOOKUP($A176,F1__World_Data!$A$4:$DP$191,42,FALSE)","v":42.305},{"$f":"VLOOKUP($A176,F1__World_Data!$A$4:$DP$191,41,FALSE)","v":40.423000000000002},{"$f":"VLOOKUP($A176,F1__World_Data!$A$4:$DP$191,40,FALSE)","v":38.33},{"$f":"VLOOKUP($A176,F1__World_Data!$A$4:$DP$191,39,FALSE)","v":36.155000000000001},{"$f":"VLOOKUP($A176,F1__World_Data!$A$4:$DP$191,38,FALSE)","v":34.064999999999998},{"$f":"VLOOKUP($A176,F1__World_Data!$A$4:$DP$191,37,FALSE)","v":32.161000000000001},{"$f":"VLOOKUP($A176,F1__World_Data!$A$4:$DP$191,36,FALSE)","v":30.521000000000001},{"$f":"VLOOKUP($A176,F1__World_Data!$A$4:$DP$191,35,FALSE)","v":29.068000000000001},{"$f":"VLOOKUP($A176,F1__World_Data!$A$4:$DP$191,34,FALSE)","v":27.783999999999999},{"$f":"VLOOKUP($A176,F1__World_Data!$A$4:$DP$191,33,FALSE)","v":26.54},{"$f":"VLOOKUP($A176,F1__World_Data!$A$4:$DP$191,32,FALSE)","v":25.306999999999999},{"$f":"VLOOKUP($A176,F1__World_Data!$A$4:$DP$191,31,FALSE)","v":24.027999999999999},{"$f":"VLOOKUP($A176,F1__World_Data!$A$4:$DP$191,30,FALSE)","v":22.774999999999999},{"$f":"VLOOKUP($A176,F1__World_Data!$A$4:$DP$191,29,FALSE)","v":21.539000000000001},{"$f":"VLOOKUP($A176,F1__World_Data!$A$4:$DP$191,28,FALSE)","v":20.425999999999998},{"$f":"VLOOKUP($A176,F1__World_Data!$A$4:$DP$191,27,FALSE)","v":19.46},{"$f":"VLOOKUP($A176,F1__World_Data!$A$4:$DP$191,26,FALSE)","v":18.661999999999999},{"$f":"VLOOKUP($A176,F1__World_Data!$A$4:$DP$191,25,FALSE)","v":18.004999999999999},{"$f":"VLOOKUP($A176,F1__World_Data!$A$4:$DP$191,24,FALSE)","v":17.436},{"$f":"VLOOKUP($A176,F1__World_Data!$A$4:$DP$191,23,FALSE)","v":16.856999999999999},{"$f":"VLOOKUP($A176,F1__World_Data!$A$4:$DP$191,22,FALSE)","v":16.207000000000001},{"$f":"VLOOKUP($A176,F1__World_Data!$A$4:$DP$191,21,FALSE)","v":15.484999999999999},{"$f":"VLOOKUP($A176,F1__World_Data!$A$4:$DP$191,20,FALSE)","v":14.680999999999999},{"$f":"VLOOKUP($A176,F1__World_Data!$A$4:$DP$191,19,FALSE)","v":13.848000000000001},{"$f":"VLOOKUP($A176,F1__World_Data!$A$4:$DP$191,18,FALSE)","v":13.023},{"$f":"VLOOKUP($A176,F1__World_Data!$A$4:$DP$191,17,FALSE)","v":12.234},{"$f":"VLOOKUP($A176,F1__World_Data!$A$4:$DP$191,16,FALSE)","v":11.488},{"$f":"VLOOKUP($A176,F1__World_Data!$A$4:$DP$191,15,FALSE)","v":10.778},{"$f":"VLOOKUP($A176,F1__World_Data!$A$4:$DP$191,14,FALSE)","v":10.135},{"$f":"VLOOKUP($A176,F1__World_Data!$A$4:$DP$191,13,FALSE)","v":9.5879999999999992},{"$f":"VLOOKUP($A176,F1__World_Data!$A$4:$DP$191,12,FALSE)","v":9.1430000000000007},{"$f":"VLOOKUP($A176,F1__World_Data!$A$4:$DP$191,11,FALSE)","v":8.8330000000000002},{"$f":"VLOOKUP($A176,F1__World_Data!$A$4:$DP$191,10,FALSE)","v":8.6379999999999999},{"$f":"VLOOKUP($A176,F1__World_Data!$A$4:$DP$191,9,FALSE)","v":8.5180000000000007},{"$f":"VLOOKUP($A176,F1__World_Data!$A$4:$DP$191,8,FALSE)","v":8.4440000000000008},{"$f":"VLOOKUP($A176,F1__World_Data!$A$4:$DP$191,7,FALSE)","v":8.3699999999999992},{"$f":"VLOOKUP($A176,F1__World_Data!$A$4:$DP$191,6,FALSE)","v":8.2989999999999995},{"$f":"VLOOKUP($A176,F1__World_Data!$A$4:$DP$191,5,FALSE)","v":8.2189999999999994},{"$f":"VLOOKUP($A176,F1__World_Data!$A$4:$DP$191,4,FALSE)","v":8.141},{"$f":"VLOOKUP($A176,F1__World_Data!$A$4:$DP$191,3,FALSE)","v":8.0239999999999991},{"$f":"VLOOKUP($A176,F1__World_Data!$A$4:$DP$191,2,FALSE)","v":7.87},null,{"$f":"VLOOKUP($A176,F1__World_Data!$A$4:$DP$191,120,FALSE)","v":81.948780487804882},{"$f":"VLOOKUP($A176,F1__World_Data!$A$4:$DP$191,119,FALSE)","v":81.948780487804882},{"$f":"VLOOKUP($A176,F1__World_Data!$A$4:$DP$191,118,FALSE)","v":81.900000000000006},{"$f":"VLOOKUP($A176,F1__World_Data!$A$4:$DP$191,117,FALSE)","v":81.900000000000006},{"$f":"VLOOKUP($A176,F1__World_Data!$A$4:$DP$191,116,FALSE)","v":81.8},{"$f":"VLOOKUP($A176,F1__World_Data!$A$4:$DP$191,115,FALSE)","v":81.748780487804893},{"$f":"VLOOKUP($A176,F1__World_Data!$A$4:$DP$191,114,FALSE)","v":81.648780487804885},{"$f":"VLOOKUP($A176,F1__World_Data!$A$4:$DP$191,113,FALSE)","v":81.448780487804882},{"$f":"VLOOKUP($A176,F1__World_Data!$A$4:$DP$191,112,FALSE)","v":81.246341463414637},{"$f":"VLOOKUP($A176,F1__World_Data!$A$4:$DP$191,111,FALSE)","v":80.995121951219517},{"$f":"VLOOKUP($A176,F1__World_Data!$A$4:$DP$191,110,FALSE)","v":80.695121951219519},{"$f":"VLOOKUP($A176,F1__World_Data!$A$4:$DP$191,109,FALSE)","v":80.543902439024407},{"$f":"VLOOKUP($A176,F1__World_Data!$A$4:$DP$191,108,FALSE)","v":80.34390243902439},{"$f":"VLOOKUP($A176,F1__World_Data!$A$4:$DP$191,107,FALSE)","v":80.192682926829278},{"$f":"VLOOKUP($A176,F1__World_Data!$A$4:$DP$191,106,FALSE)","v":79.892682926829281},{"$f":"VLOOKUP($A176,F1__World_Data!$A$4:$DP$191,105,FALSE)","v":79.741463414634168},{"$f":"VLOOKUP($A176,F1__World_Data!$A$4:$DP$191,104,FALSE)","v":79.490243902439019},{"$f":"VLOOKUP($A176,F1__World_Data!$A$4:$DP$191,103,FALSE)","v":79.339024390243921},{"$f":"VLOOKUP($A176,F1__World_Data!$A$4:$DP$191,102,FALSE)","v":79.136585365853662},{"$f":"VLOOKUP($A176,F1__World_Data!$A$4:$DP$191,101,FALSE)","v":78.885365853658527},{"$f":"VLOOKUP($A176,F1__World_Data!$A$4:$DP$191,100,FALSE)","v":78.634146341463421},{"$f":"VLOOKUP($A176,F1__World_Data!$A$4:$DP$191,99,FALSE)","v":78.431707317073176},{"$f":"VLOOKUP($A176,F1__World_Data!$A$4:$DP$191,98,FALSE)","v":78.180487804878055},{"$f":"VLOOKUP($A176,F1__World_Data!$A$4:$DP$191,97,FALSE)","v":78.029268292682943},{"$f":"VLOOKUP($A176,F1__World_Data!$A$4:$DP$191,96,FALSE)","v":77.826829268292698},{"$f":"VLOOKUP($A176,F1__World_Data!$A$4:$DP$191,95,FALSE)","v":77.824390243902457},{"$f":"VLOOKUP($A176,F1__World_Data!$A$4:$DP$191,94,FALSE)","v":77.724390243902448},{"$f":"VLOOKUP($A176,F1__World_Data!$A$4:$DP$191,93,FALSE)","v":77.621951219512198},{"$f":"VLOOKUP($A176,F1__World_Data!$A$4:$DP$191,92,FALSE)","v":77.421951219512209},{"$f":"VLOOKUP($A176,F1__World_Data!$A$4:$DP$191,91,FALSE)","v":77.11951219512197},{"$f":"VLOOKUP($A176,F1__World_Data!$A$4:$DP$191,90,FALSE)","v":76.919512195121953},{"$f":"VLOOKUP($A176,F1__World_Data!$A$4:$DP$191,89,FALSE)","v":76.719512195121951},{"$f":"VLOOKUP($A176,F1__World_Data!$A$4:$DP$191,88,FALSE)","v":76.519512195121962},{"$f":"VLOOKUP($A176,F1__World_Data!$A$4:$DP$191,87,FALSE)","v":76.368292682926835},{"$f":"VLOOKUP($A176,F1__World_Data!$A$4:$DP$191,86,FALSE)","v":76.217073170731723},{"$f":"VLOOKUP($A176,F1__World_Data!$A$4:$DP$191,85,FALSE)","v":76.065853658536597},{"$f":"VLOOKUP($A176,F1__World_Data!$A$4:$DP$191,84,FALSE)","v":75.763414634146343},{"$f":"VLOOKUP($A176,F1__World_Data!$A$4:$DP$191,83,FALSE)","v":75.463414634146346},{"$f":"VLOOKUP($A176,F1__World_Data!$A$4:$DP$191,82,FALSE)","v":75.078048780487805},{"$f":"VLOOKUP($A176,F1__World_Data!$A$4:$DP$191,81,FALSE)","v":74.866341463414642},{"$f":"VLOOKUP($A176,F1__World_Data!$A$4:$DP$191,80,FALSE)","v":74.529756097560977},{"$f":"VLOOKUP($A176,F1__World_Data!$A$4:$DP$191,79,FALSE)","v":74.215609756097564},{"$f":"VLOOKUP($A176,F1__World_Data!$A$4:$DP$191,78,FALSE)","v":73.856097560975613},{"$f":"VLOOKUP($A176,F1__World_Data!$A$4:$DP$191,77,FALSE)","v":73.521707317073165},{"$f":"VLOOKUP($A176,F1__World_Data!$A$4:$DP$191,76,FALSE)","v":73.237560975609767},{"$f":"VLOOKUP($A176,F1__World_Data!$A$4:$DP$191,75,FALSE)","v":73.162682926829277},{"$f":"VLOOKUP($A176,F1__World_Data!$A$4:$DP$191,74,FALSE)","v":72.933902439024394},{"$f":"VLOOKUP($A176,F1__World_Data!$A$4:$DP$191,73,FALSE)","v":73.029268292682929},{"$f":"VLOOKUP($A176,F1__World_Data!$A$4:$DP$191,72,FALSE)","v":72.700487804878051},{"$f":"VLOOKUP($A176,F1__World_Data!$A$4:$DP$191,71,FALSE)","v":72.501463414634145},{"$f":"VLOOKUP($A176,F1__World_Data!$A$4:$DP$191,70,FALSE)","v":72.353414634146347},{"$f":"VLOOKUP($A176,F1__World_Data!$A$4:$DP$191,69,FALSE)","v":72.20780487804879},{"$f":"VLOOKUP($A176,F1__World_Data!$A$4:$DP$191,68,FALSE)","v":72.004390243902449},{"$f":"VLOOKUP($A176,F1__World_Data!$A$4:$DP$191,67,FALSE)","v":71.872195121951236},{"$f":"VLOOKUP($A176,F1__World_Data!$A$4:$DP$191,66,FALSE)","v":71.776341463414639},{"$f":"VLOOKUP($A176,F1__World_Data!$A$4:$DP$191,65,FALSE)","v":71.380731707317082},{"$f":"VLOOKUP($A176,F1__World_Data!$A$4:$DP$191,64,FALSE)","v":71.367073170731715},{"$f":"VLOOKUP($A176,F1__World_Data!$A$4:$DP$191,63,FALSE)","v":71.346097560975622},{"$f":"VLOOKUP($A176,F1__World_Data!$A$4:$DP$191,62,FALSE)","v":71.133170731707324}]
["Bermuda",{"$f":"VLOOKUP($A177,F1__World_Data!$A$4:$DP$191,60,FALSE)","v":62.762999999999998},{"$f":"VLOOKUP($A177,F1__World_Data!$A$4:$DP$191,59,FALSE)","v":63.04},{"$f":"VLOOKUP($A177,F1__World_Data!$A$4:$DP$191,58,FALSE)","v":63.36},{"$f":"VLOOKUP($A177,F1__World_Data!$A$4:$DP$191,57,FALSE)","v":63.695},{"$f":"VLOOKUP($A177,F1__World_Data!$A$4:$DP$191,56,FALSE)","v":64.037999999999997},{"$f":"VLOOKUP($A177,F1__World_Data!$A$4:$DP$191,55,FALSE)","v":64.381},{"$f":"VLOOKUP($A177,F1__World_Data!$A$4:$DP$191,54,FALSE)","v":64.736999999999995},{"$f":"VLOOKUP($A177,F1__World_Data!$A$4:$DP$191,53,FALSE)","v":65.075999999999993},{"$f":"VLOOKUP($A177,F1__World_Data!$A$4:$DP$191,52,FALSE)","v":65.388000000000005},{"$f":"VLOOKUP($A177,F1__World_Data!$A$4:$DP$191,51,FALSE)","v":65.674999999999997},{"$f":"VLOOKUP($A177,F1__World_Data!$A$4:$DP$191,50,FALSE)","v":65.94},{"$f":"VLOOKUP($A177,F1__World_Data!$A$4:$DP$191,49,FALSE)","v":66.126000000000005},{"$f":"VLOOKUP($A177,F1__World_Data!$A$4:$DP$191,48,FALSE)","v":66.239999999999995},{"$f":"VLOOKUP($A177,F1__World_Data!$A$4:$DP$191,47,FALSE)","v":66.260000000000005},{"$f":"VLOOKUP($A177,F1__World_Data!$A$4:$DP$191,46,FALSE)","v":66.156000000000006},{"$f":"VLOOKUP($A177,F1__World_Data!$A$4:$DP$191,45,FALSE)","v":65.936000000000007},{"$f":"VLOOKUP($A177,F1__World_Data!$A$4:$DP$191,44,FALSE)","v":65.652000000000001},{"$f":"VLOOKUP($A177,F1__World_Data!$A$4:$DP$191,43,FALSE)","v":65.33},{"$f":"VLOOKUP($A177,F1__World_Data!$A$4:$DP$191,42,FALSE)","v":65.016999999999996},{"$f":"VLOOKUP($A177,F1__World_Data!$A$4:$DP$191,41,FALSE)","v":64.703999999999994},{"$f":"VLOOKUP($A177,F1__World_Data!$A$4:$DP$191,40,FALSE)","v":64.39},{"$f":"VLOOKUP($A177,F1__World_Data!$A$4:$DP$191,39,FALSE)","v":64.091999999999999},{"$f":"VLOOKUP($A177,F1__World_Data!$A$4:$DP$191,38,FALSE)","v":63.77},{"$f":"VLOOKUP($A177,F1__World_Data!$A$4:$DP$191,37,FALSE)","v":63.439},{"$f":"VLOOKUP($A177,F1__World_Data!$A$4:$DP$191,36,FALSE)","v":63.100999999999999},{"$f":"VLOOKUP($A177,F1__World_Data!$A$4:$DP$191,35,FALSE)","v":62.75},{"$f":"VLOOKUP($A177,F1__World_Data!$A$4:$DP$191,34,FALSE)","v":62.390999999999998},{"$f":"VLOOKUP($A177,F1__World_Data!$A$4:$DP$191,33,FALSE)","v":62.012},{"$f":"VLOOKUP($A177,F1__World_Data!$A$4:$DP$191,32,FALSE)","v":61.63},{"$f":"VLOOKUP($A177,F1__World_Data!$A$4:$DP$191,31,FALSE)","v":61.243000000000002},{"$f":"VLOOKUP($A177,F1__World_Data!$A$4:$DP$191,30,FALSE)","v":60.838999999999999},{"$f":"VLOOKUP($A177,F1__World_Data!$A$4:$DP$191,29,FALSE)","v":60.421999999999997},{"$f":"VLOOKUP($A177,F1__World_Data!$A$4:$DP$191,28,FALSE)","v":60.011000000000003},{"$f":"VLOOKUP($A177,F1__World_Data!$A$4:$DP$191,27,FALSE)","v":59.594000000000001},{"$f":"VLOOKUP($A177,F1__World_Data!$A$4:$DP$191,26,FALSE)","v":59.180999999999997},{"$f":"VLOOKUP($A177,F1__World_Data!$A$4:$DP$191,25,FALSE)","v":58.784999999999997},{"$f":"VLOOKUP($A177,F1__World_Data!$A$4:$DP$191,24,FALSE)","v":58.39},{"$f":"VLOOKUP($A177,F1__World_Data!$A$4:$DP$191,23,FALSE)","v":57.987000000000002},{"$f":"VLOOKUP($A177,F1__World_Data!$A$4:$DP$191,22,FALSE)","v":57.58},{"$f":"VLOOKUP($A177,F1__World_Data!$A$4:$DP$191,21,FALSE)","v":57.17},{"$f":"VLOOKUP($A177,F1__World_Data!$A$4:$DP$191,20,FALSE)","v":56.750999999999998},{"$f":"VLOOKUP($A177,F1__World_Data!$A$4:$DP$191,19,FALSE)","v":56.317999999999998},{"$f":"VLOOKUP($A177,F1__World_Data!$A$4:$DP$191,18,FALSE)","v":55.877000000000002},{"$f":"VLOOKUP($A177,F1__World_Data!$A$4:$DP$191,17,FALSE)","v":55.399000000000001},{"$f":"VLOOKUP($A177,F1__World_Data!$A$4:$DP$191,16,FALSE)","v":54.881999999999998},{"$f":"VLOOKUP($A177,F1__World_Data!$A$4:$DP$191,15,FALSE)","v":54.326999999999998},{"$f":"VLOOKUP($A177,F1__World_Data!$A$4:$DP$191,14,FALSE)","v":53.75},{"$f":"VLOOKUP($A177,F1__World_Data!$A$4:$DP$191,13,FALSE)","v":53.154000000000003},{"$f":"VLOOKUP($A177,F1__World_Data!$A$4:$DP$191,12,FALSE)","v":52.564999999999998},{"$f":"VLOOKUP($A177,F1__World_Data!$A$4:$DP$191,11,FALSE)","v":51.978999999999999},{"$f":"VLOOKUP($A177,F1__World_Data!$A$4:$DP$191,10,FALSE)","v":51.387},{"$f":"VLOOKUP($A177,F1__World_Data!$A$4:$DP$191,9,FALSE)","v":50.784999999999997},{"$f":"VLOOKUP($A177,F1__World_Data!$A$4:$DP$191,8,FALSE)","v":50.118000000000002},{"$f":"VLOOKUP($A177,F1__World_Data!$A$4:$DP$191,7,FALSE)","v":49.381999999999998},{"$f":"VLOOKUP($A177,F1__World_Data!$A$4:$DP$191,6,FALSE)","v":48.591999999999999},{"$f":"VLOOKUP($A177,F1__World_Data!$A$4:$DP$191,5,FALSE)","v":47.722999999999999},{"$f":"VLOOKUP($A177,F1__World_Data!$A$4:$DP$191,4,FALSE)","v":46.814999999999998},{"$f":"VLOOKUP($A177,F1__World_Data!$A$4:$DP$191,3,FALSE)","v":45.899000000000001},{"$f":"VLOOKUP($A177,F1__World_Data!$A$4:$DP$191,2,FALSE)","v":44.985999999999997},null,{"$f":"VLOOKUP($A177,F1__World_Data!$A$4:$DP$191,120,FALSE)","v":61.47},{"$f":"VLOOKUP($A177,F1__World_Data!$A$4:$DP$191,119,FALSE)","v":61.173999999999999},{"$f":"VLOOKUP($A177,F1__World_Data!$A$4:$DP$191,118,FALSE)","v":60.884999999999998},{"$f":"VLOOKUP($A177,F1__World_Data!$A$4:$DP$191,117,FALSE)","v":60.607999999999997},{"$f":"VLOOKUP($A177,F1__World_Data!$A$4:$DP$191,116,FALSE)","v":60.344999999999999},{"$f":"VLOOKUP($A177,F1__World_Data!$A$4:$DP$191,115,FALSE)","v":60.091999999999999},{"$f":"VLOOKUP($A177,F1__World_Data!$A$4:$DP$191,114,FALSE)","v":59.841999999999999},{"$f":"VLOOKUP($A177,F1__World_Data!$A$4:$DP$191,113,FALSE)","v":59.59},{"$f":"VLOOKUP($A177,F1__World_Data!$A$4:$DP$191,112,FALSE)","v":59.317999999999998},{"$f":"VLOOKUP($A177,F1__World_Data!$A$4:$DP$191,111,FALSE)","v":59.009},{"$f":"VLOOKUP($A177,F1__World_Data!$A$4:$DP$191,110,FALSE)","v":58.654000000000003},{"$f":"VLOOKUP($A177,F1__World_Data!$A$4:$DP$191,109,FALSE)","v":58.255000000000003},{"$f":"VLOOKUP($A177,F1__World_Data!$A$4:$DP$191,108,FALSE)","v":57.817},{"$f":"VLOOKUP($A177,F1__World_Data!$A$4:$DP$191,107,FALSE)","v":57.354999999999997},{"$f":"VLOOKUP($A177,F1__World_Data!$A$4:$DP$191,106,FALSE)","v":56.887},{"$f":"VLOOKUP($A177,F1__World_Data!$A$4:$DP$191,105,FALSE)","v":56.436},{"$f":"VLOOKUP($A177,F1__World_Data!$A$4:$DP$191,104,FALSE)","v":56.024999999999999},{"$f":"VLOOKUP($A177,F1__World_Data!$A$4:$DP$191,103,FALSE)","v":55.667999999999999},{"$f":"VLOOKUP($A177,F1__World_Data!$A$4:$DP$191,102,FALSE)","v":55.390999999999998},{"$f":"VLOOKUP($A177,F1__World_Data!$A$4:$DP$191,101,FALSE)","v":55.218000000000004},{"$f":"VLOOKUP($A177,F1__World_Data!$A$4:$DP$191,100,FALSE)","v":55.139000000000003},{"$f":"VLOOKUP($A177,F1__World_Data!$A$4:$DP$191,99,FALSE)","v":55.133000000000003},{"$f":"VLOOKUP($A177,F1__World_Data!$A$4:$DP$191,98,FALSE)","v":55.17},{"$f":"VLOOKUP($A177,F1__World_Data!$A$4:$DP$191,97,FALSE)","v":55.203000000000003},{"$f":"VLOOKUP($A177,F1__World_Data!$A$4:$DP$191,96,FALSE)","v":55.173999999999999},{"$f":"VLOOKUP($A177,F1__World_Data!$A$4:$DP$191,95,FALSE)","v":55.042000000000002},{"$f":"VLOOKUP($A177,F1__World_Data!$A$4:$DP$191,94,FALSE)","v":54.776000000000003},{"$f":"VLOOKUP($A177,F1__World_Data!$A$4:$DP$191,93,FALSE)","v":54.366},{"$f":"VLOOKUP($A177,F1__World_Data!$A$4:$DP$191,92,FALSE)","v":53.811999999999998},{"$f":"VLOOKUP($A177,F1__World_Data!$A$4:$DP$191,91,FALSE)","v":53.131999999999998},{"$f":"VLOOKUP($A177,F1__World_Data!$A$4:$DP$191,90,FALSE)","v":52.372},{"$f":"VLOOKUP($A177,F1__World_Data!$A$4:$DP$191,89,FALSE)","v":51.581000000000003},{"$f":"VLOOKUP($A177,F1__World_Data!$A$4:$DP$191,88,FALSE)","v":50.79},{"$f":"VLOOKUP($A177,F1__World_Data!$A$4:$DP$191,87,FALSE)","v":50.033999999999999},{"$f":"VLOOKUP($A177,F1__World_Data!$A$4:$DP$191,86,FALSE)","v":49.338999999999999},{"$f":"VLOOKUP($A177,F1__World_Data!$A$4:$DP$191,85,FALSE)","v":48.71},{"$f":"VLOOKUP($A177,F1__World_Data!$A$4:$DP$191,84,FALSE)","v":48.145000000000003},{"$f":"VLOOKUP($A177,F1__World_Data!$A$4:$DP$191,83,FALSE)","v":47.643000000000001},{"$f":"VLOOKUP($A177,F1__World_Data!$A$4:$DP$191,82,FALSE)","v":47.19},{"$f":"VLOOKUP($A177,F1__World_Data!$A$4:$DP$191,81,FALSE)","v":46.764000000000003},{"$f":"VLOOKUP($A177,F1__World_Data!$A$4:$DP$191,80,FALSE)","v":46.335000000000001},{"$f":"VLOOKUP($A177,F1__World_Data!$A$4:$DP$191,79,FALSE)","v":45.883000000000003},{"$f":"VLOOKUP($A177,F1__World_Data!$A$4:$DP$191,78,FALSE)","v":45.399000000000001},{"$f":"VLOOKUP($A177,F1__World_Data!$A$4:$DP$191,77,FALSE)","v":44.881999999999998},{"$f":"VLOOKUP($A177,F1__World_Data!$A$4:$DP$191,76,FALSE)","v":44.337000000000003},{"$f":"VLOOKUP($A177,F1__World_Data!$A$4:$DP$191,75,FALSE)","v":43.780999999999999},{"$f":"VLOOKUP($A177,F1__World_Data!$A$4:$DP$191,74,FALSE)","v":43.228999999999999},{"$f":"VLOOKUP($A177,F1__World_Data!$A$4:$DP$191,73,FALSE)","v":42.683999999999997},{"$f":"VLOOKUP($A177,F1__World_Data!$A$4:$DP$191,72,FALSE)","v":42.152000000000001},{"$f":"VLOOKUP($A177,F1__World_Data!$A$4:$DP$191,71,FALSE)","v":41.63},{"$f":"VLOOKUP($A177,F1__World_Data!$A$4:$DP$191,70,FALSE)","v":41.116999999999997},{"$f":"VLOOKUP($A177,F1__World_Data!$A$4:$DP$191,69,FALSE)","v":40.61},{"$f":"VLOOKUP($A177,F1__World_Data!$A$4:$DP$191,68,FALSE)","v":40.109000000000002},{"$f":"VLOOKUP($A177,F1__World_Data!$A$4:$DP$191,67,FALSE)","v":39.615000000000002},{"$f":"VLOOKUP($A177,F1__World_Data!$A$4:$DP$191,66,FALSE)","v":39.130000000000003},{"$f":"VLOOKUP($A177,F1__World_Data!$A$4:$DP$191,65,FALSE)","v":38.655000000000001},{"$f":"VLOOKUP($A177,F1__World_Data!$A$4:$DP$191,64,FALSE)","v":38.188000000000002},{"$f":"VLOOKUP($A177,F1__World_Data!$A$4:$DP$191,63,FALSE)","v":37.726999999999997},{"$f":"VLOOKUP($A177,F1__World_Data!$A$4:$DP$191,62,FALSE)","v":37.271000000000001}]
["Marshall Islands",{"$f":"VLOOKUP($A178,F1__World_Data!$A$4:$DP$191,60,FALSE)","v":58.411999999999999},{"$f":"VLOOKUP($A178,F1__World_Data!$A$4:$DP$191,59,FALSE)","v":58.052999999999997},{"$f":"VLOOKUP($A178,F1__World_Data!$A$4:$DP$191,58,FALSE)","v":57.722999999999999},{"$f":"VLOOKUP($A178,F1__World_Data!$A$4:$DP$191,57,FALSE)","v":57.444000000000003},{"$f":"VLOOKUP($A178,F1__World_Data!$A$4:$DP$191,56,FALSE)","v":57.183},{"$f":"VLOOKUP($A178,F1__World_Data!$A$4:$DP$191,55,FALSE)","v":56.933},{"$f":"VLOOKUP($A178,F1__World_Data!$A$4:$DP$191,54,FALSE)","v":56.712000000000003},{"$f":"VLOOKUP($A178,F1__World_Data!$A$4:$DP$191,53,FALSE)","v":56.524000000000001},{"$f":"VLOOKUP($A178,F1__World_Data!$A$4:$DP$191,52,FALSE)","v":56.360999999999997},{"$f":"VLOOKUP($A178,F1__World_Data!$A$4:$DP$191,51,FALSE)","v":56.255000000000003},{"$f":"VLOOKUP($A178,F1__World_Data!$A$4:$DP$191,50,FALSE)","v":56.165999999999997},{"$f":"VLOOKUP($A178,F1__World_Data!$A$4:$DP$191,49,FALSE)","v":56.045999999999999},{"$f":"VLOOKUP($A178,F1__World_Data!$A$4:$DP$191,48,FALSE)","v":55.765000000000001},{"$f":"VLOOKUP($A178,F1__World_Data!$A$4:$DP$191,47,FALSE)","v":55.256999999999998},{"$f":"VLOOKUP($A178,F1__World_Data!$A$4:$DP$191,46,FALSE)","v":54.475999999999999},{"$f":"VLOOKUP($A178,F1__World_Data!$A$4:$DP$191,45,FALSE)","v":53.465000000000003},{"$f":"VLOOKUP($A178,F1__World_Data!$A$4:$DP$191,44,FALSE)","v":52.368000000000002},{"$f":"VLOOKUP($A178,F1__World_Data!$A$4:$DP$191,43,FALSE)","v":51.411000000000001},{"$f":"VLOOKUP($A178,F1__World_Data!$A$4:$DP$191,42,FALSE)","v":50.753999999999998},{"$f":"VLOOKUP($A178,F1__World_Data!$A$4:$DP$191,41,FALSE)","v":50.417999999999999},{"$f":"VLOOKUP($A178,F1__World_Data!$A$4:$DP$191,40,FALSE)","v":50.356000000000002},{"$f":"VLOOKUP($A178,F1__World_Data!$A$4:$DP$191,39,FALSE)","v":50.453000000000003},{"$f":"VLOOKUP($A178,F1__World_Data!$A$4:$DP$191,38,FALSE)","v":50.523000000000003},{"$f":"VLOOKUP($A178,F1__World_Data!$A$4:$DP$191,37,FALSE)","v":50.454000000000001},{"$f":"VLOOKUP($A178,F1__World_Data!$A$4:$DP$191,36,FALSE)","v":50.213999999999999},{"$f":"VLOOKUP($A178,F1__World_Data!$A$4:$DP$191,35,FALSE)","v":49.828000000000003},{"$f":"VLOOKUP($A178,F1__World_Data!$A$4:$DP$191,34,FALSE)","v":49.241999999999997},{"$f":"VLOOKUP($A178,F1__World_Data!$A$4:$DP$191,33,FALSE)","v":48.402999999999999},{"$f":"VLOOKUP($A178,F1__World_Data!$A$4:$DP$191,32,FALSE)","v":47.265000000000001},{"$f":"VLOOKUP($A178,F1__World_Data!$A$4:$DP$191,31,FALSE)","v":45.826999999999998},{"$f":"VLOOKUP($A178,F1__World_Data!$A$4:$DP$191,30,FALSE)","v":44.091999999999999},{"$f":"VLOOKUP($A178,F1__World_Data!$A$4:$DP$191,29,FALSE)","v":42.167999999999999},{"$f":"VLOOKUP($A178,F1__World_Data!$A$4:$DP$191,28,FALSE)","v":40.212000000000003},{"$f":"VLOOKUP($A178,F1__World_Data!$A$4:$DP$191,27,FALSE)","v":38.331000000000003},{"$f":"VLOOKUP($A178,F1__World_Data!$A$4:$DP$191,26,FALSE)","v":36.564},{"$f":"VLOOKUP($A178,F1__World_Data!$A$4:$DP$191,25,FALSE)","v":34.881},{"$f":"VLOOKUP($A178,F1__World_Data!$A$4:$DP$191,24,FALSE)","v":33.33},{"$f":"VLOOKUP($A178,F1__World_Data!$A$4:$DP$191,23,FALSE)","v":31.882999999999999},{"$f":"VLOOKUP($A178,F1__World_Data!$A$4:$DP$191,22,FALSE)","v":30.574000000000002},{"$f":"VLOOKUP($A178,F1__World_Data!$A$4:$DP$191,21,FALSE)","v":29.417000000000002},{"$f":"VLOOKUP($A178,F1__World_Data!$A$4:$DP$191,20,FALSE)","v":28.4},{"$f":"VLOOKUP($A178,F1__World_Data!$A$4:$DP$191,19,FALSE)","v":27.478999999999999},{"$f":"VLOOKUP($A178,F1__World_Data!$A$4:$DP$191,18,FALSE)","v":26.547999999999998},{"$f":"VLOOKUP($A178,F1__World_Data!$A$4:$DP$191,17,FALSE)","v":25.579000000000001},{"$f":"VLOOKUP($A178,F1__World_Data!$A$4:$DP$191,16,FALSE)","v":24.53},{"$f":"VLOOKUP($A178,F1__World_Data!$A$4:$DP$191,15,FALSE)","v":23.44},{"$f":"VLOOKUP($A178,F1__World_Data!$A$4:$DP$191,14,FALSE)","v":22.335000000000001},{"$f":"VLOOKUP($A178,F1__World_Data!$A$4:$DP$191,13,FALSE)","v":21.305},{"$f":"VLOOKUP($A178,F1__World_Data!$A$4:$DP$191,12,FALSE)","v":20.393999999999998},{"$f":"VLOOKUP($A178,F1__World_Data!$A$4:$DP$191,11,FALSE)","v":19.617000000000001},{"$f":"VLOOKUP($A178,F1__World_Data!$A$4:$DP$191,10,FALSE)","v":18.966000000000001},{"$f":"VLOOKUP($A178,F1__World_Data!$A$4:$DP$191,9,FALSE)","v":18.382999999999999},{"$f":"VLOOKUP($A178,F1__World_Data!$A$4:$DP$191,8,FALSE)","v":17.834},{"$f":"VLOOKUP($A178,F1__World_Data!$A$4:$DP$191,7,FALSE)","v":17.282},{"$f":"VLOOKUP($A178,F1__World_Data!$A$4:$DP$191,6,FALSE)","v":16.71},{"$f":"VLOOKUP($A178,F1__World_Data!$A$4:$DP$191,5,FALSE)","v":16.111000000000001},{"$f":"VLOOKUP($A178,F1__World_Data!$A$4:$DP$191,4,FALSE)","v":15.547000000000001},{"$f":"VLOOKUP($A178,F1__World_Data!$A$4:$DP$191,3,FALSE)","v":15.055999999999999},{"$f":"VLOOKUP($A178,F1__World_Data!$A$4:$DP$191,2,FALSE)","v":14.673999999999999},null,{"$f":"VLOOKUP($A178,F1__World_Data!$A$4:$DP$191,120,FALSE)","v":68.116},{"$f":"VLOOKUP($A178,F1__World_Data!$A$4:$DP$191,119,FALSE)","v":67.850999999999999},{"$f":"VLOOKUP($A178,F1__World_Data!$A$4:$DP$191,118,FALSE)","v":67.576999999999998},{"$f":"VLOOKUP($A178,F1__World_Data!$A$4:$DP$191,117,FALSE)","v":67.290999999999997},{"$f":"VLOOKUP($A178,F1__World_Data!$A$4:$DP$191,116,FALSE)","v":66.995000000000005},{"$f":"VLOOKUP($A178,F1__World_Data!$A$4:$DP$191,115,FALSE)","v":66.69},{"$f":"VLOOKUP($A178,F1__World_Data!$A$4:$DP$191,114,FALSE)","v":66.381},{"$f":"VLOOKUP($A178,F1__World_Data!$A$4:$DP$191,113,FALSE)","v":66.072000000000003},{"$f":"VLOOKUP($A178,F1__World_Data!$A$4:$DP$191,112,FALSE)","v":65.769000000000005},{"$f":"VLOOKUP($A178,F1__World_Data!$A$4:$DP$191,111,FALSE)","v":65.48},{"$f":"VLOOKUP($A178,F1__World_Data!$A$4:$DP$191,110,FALSE)","v":65.207999999999998},{"$f":"VLOOKUP($A178,F1__World_Data!$A$4:$DP$191,109,FALSE)","v":64.953000000000003},{"$f":"VLOOKUP($A178,F1__World_Data!$A$4:$DP$191,108,FALSE)","v":64.712000000000003},{"$f":"VLOOKUP($A178,F1__World_Data!$A$4:$DP$191,107,FALSE)","v":64.477999999999994},{"$f":"VLOOKUP($A178,F1__World_Data!$A$4:$DP$191,106,FALSE)","v":64.242000000000004},{"$f":"VLOOKUP($A178,F1__World_Data!$A$4:$DP$191,105,FALSE)","v":63.994999999999997},{"$f":"VLOOKUP($A178,F1__World_Data!$A$4:$DP$191,104,FALSE)","v":63.731000000000002},{"$f":"VLOOKUP($A178,F1__World_Data!$A$4:$DP$191,103,FALSE)","v":63.445999999999998},{"$f":"VLOOKUP($A178,F1__World_Data!$A$4:$DP$191,102,FALSE)","v":63.143999999999998},{"$f":"VLOOKUP($A178,F1__World_Data!$A$4:$DP$191,101,FALSE)","v":62.829000000000001},{"$f":"VLOOKUP($A178,F1__World_Data!$A$4:$DP$191,100,FALSE)","v":62.509},{"$f":"VLOOKUP($A178,F1__World_Data!$A$4:$DP$191,99,FALSE)","v":62.188000000000002},{"$f":"VLOOKUP($A178,F1__World_Data!$A$4:$DP$191,98,FALSE)","v":61.866},{"$f":"VLOOKUP($A178,F1__World_Data!$A$4:$DP$191,97,FALSE)","v":61.539000000000001},{"$f":"VLOOKUP($A178,F1__World_Data!$A$4:$DP$191,96,FALSE)","v":61.198},{"$f":"VLOOKUP($A178,F1__World_Data!$A$4:$DP$191,95,FALSE)","v":60.837000000000003},{"$f":"VLOOKUP($A178,F1__World_Data!$A$4:$DP$191,94,FALSE)","v":60.454999999999998},{"$f":"VLOOKUP($A178,F1__World_Data!$A$4:$DP$191,93,FALSE)","v":60.052999999999997},{"$f":"VLOOKUP($A178,F1__World_Data!$A$4:$DP$191,92,FALSE)","v":59.636000000000003},{"$f":"VLOOKUP($A178,F1__World_Data!$A$4:$DP$191,91,FALSE)","v":59.209000000000003},{"$f":"VLOOKUP($A178,F1__World_Data!$A$4:$DP$191,90,FALSE)","v":58.783000000000001},{"$f":"VLOOKUP($A178,F1__World_Data!$A$4:$DP$191,89,FALSE)","v":58.366},{"$f":"VLOOKUP($A178,F1__World_Data!$A$4:$DP$191,88,FALSE)","v":57.962000000000003},{"$f":"VLOOKUP($A178,F1__World_Data!$A$4:$DP$191,87,FALSE)","v":57.579000000000001},{"$f":"VLOOKUP($A178,F1__World_Data!$A$4:$DP$191,86,FALSE)","v":57.220999999999997},{"$f":"VLOOKUP($A178,F1__World_Data!$A$4:$DP$191,85,FALSE)","v":56.886000000000003},{"$f":"VLOOKUP($A178,F1__World_Data!$A$4:$DP$191,84,FALSE)","v":56.569000000000003},{"$f":"VLOOKUP($A178,F1__World_Data!$A$4:$DP$191,83,FALSE)","v":56.265999999999998},{"$f":"VLOOKUP($A178,F1__World_Data!$A$4:$DP$191,82,FALSE)","v":55.970999999999997},{"$f":"VLOOKUP($A178,F1__World_Data!$A$4:$DP$191,81,FALSE)","v":55.679000000000002},{"$f":"VLOOKUP($A178,F1__World_Data!$A$4:$DP$191,80,FALSE)","v":55.381999999999998},{"$f":"VLOOKUP($A178,F1__World_Data!$A$4:$DP$191,79,FALSE)","v":55.073999999999998},{"$f":"VLOOKUP($A178,F1__World_Data!$A$4:$DP$191,78,FALSE)","v":54.747999999999998},{"$f":"VLOOKUP($A178,F1__World_Data!$A$4:$DP$191,77,FALSE)","v":54.399000000000001},{"$f":"VLOOKUP($A178,F1__World_Data!$A$4:$DP$191,76,FALSE)","v":54.027000000000001},{"$f":"VLOOKUP($A178,F1__World_Data!$A$4:$DP$191,75,FALSE)","v":53.633000000000003},{"$f":"VLOOKUP($A178,F1__World_Data!$A$4:$DP$191,74,FALSE)","v":53.218000000000004},{"$f":"VLOOKUP($A178,F1__World_Data!$A$4:$DP$191,73,FALSE)","v":52.781999999999996},{"$f":"VLOOKUP($A178,F1__World_Data!$A$4:$DP$191,72,FALSE)","v":52.323},{"$f":"VLOOKUP($A178,F1__World_Data!$A$4:$DP$191,71,FALSE)","v":51.837000000000003},{"$f":"VLOOKUP($A178,F1__World_Data!$A$4:$DP$191,70,FALSE)","v":51.326999999999998},{"$f":"VLOOKUP($A178,F1__World_Data!$A$4:$DP$191,69,FALSE)","v":50.795999999999999},{"$f":"VLOOKUP($A178,F1__World_Data!$A$4:$DP$191,68,FALSE)","v":50.25},{"$f":"VLOOKUP($A178,F1__World_Data!$A$4:$DP$191,67,FALSE)","v":49.697000000000003},{"$f":"VLOOKUP($A178,F1__World_Data!$A$4:$DP$191,66,FALSE)","v":49.145000000000003},{"$f":"VLOOKUP($A178,F1__World_Data!$A$4:$DP$191,65,FALSE)","v":48.600999999999999},{"$f":"VLOOKUP($A178,F1__World_Data!$A$4:$DP$191,64,FALSE)","v":48.070999999999998},{"$f":"VLOOKUP($A178,F1__World_Data!$A$4:$DP$191,63,FALSE)","v":47.557000000000002},{"$f":"VLOOKUP($A178,F1__World_Data!$A$4:$DP$191,62,FALSE)","v":47.061}]
["Greenland",{"$f":"VLOOKUP($A179,F1__World_Data!$A$4:$DP$191,60,FALSE)","v":56.564999999999998},{"$f":"VLOOKUP($A179,F1__World_Data!$A$4:$DP$191,59,FALSE)","v":56.472999999999999},{"$f":"VLOOKUP($A179,F1__World_Data!$A$4:$DP$191,58,FALSE)","v":56.408000000000001},{"$f":"VLOOKUP($A179,F1__World_Data!$A$4:$DP$191,57,FALSE)","v":56.378},{"$f":"VLOOKUP($A179,F1__World_Data!$A$4:$DP$191,56,FALSE)","v":56.383000000000003},{"$f":"VLOOKUP($A179,F1__World_Data!$A$4:$DP$191,55,FALSE)","v":56.411999999999999},{"$f":"VLOOKUP($A179,F1__World_Data!$A$4:$DP$191,54,FALSE)","v":56.476999999999997},{"$f":"VLOOKUP($A179,F1__World_Data!$A$4:$DP$191,53,FALSE)","v":56.555},{"$f":"VLOOKUP($A179,F1__World_Data!$A$4:$DP$191,52,FALSE)","v":56.637999999999998},{"$f":"VLOOKUP($A179,F1__World_Data!$A$4:$DP$191,51,FALSE)","v":56.728999999999999},{"$f":"VLOOKUP($A179,F1__World_Data!$A$4:$DP$191,50,FALSE)","v":56.835999999999999},{"$f":"VLOOKUP($A179,F1__World_Data!$A$4:$DP$191,49,FALSE)","v":56.927999999999997},{"$f":"VLOOKUP($A179,F1__World_Data!$A$4:$DP$191,48,FALSE)","v":56.968000000000004},{"$f":"VLOOKUP($A179,F1__World_Data!$A$4:$DP$191,47,FALSE)","v":56.948999999999998},{"$f":"VLOOKUP($A179,F1__World_Data!$A$4:$DP$191,46,FALSE)","v":56.868000000000002},{"$f":"VLOOKUP($A179,F1__World_Data!$A$4:$DP$191,45,FALSE)","v":56.707000000000001},{"$f":"VLOOKUP($A179,F1__World_Data!$A$4:$DP$191,44,FALSE)","v":56.518000000000001},{"$f":"VLOOKUP($A179,F1__World_Data!$A$4:$DP$191,43,FALSE)","v":56.335999999999999},{"$f":"VLOOKUP($A179,F1__World_Data!$A$4:$DP$191,42,FALSE)","v":56.177},{"$f":"VLOOKUP($A179,F1__World_Data!$A$4:$DP$191,41,FALSE)","v":56.052},{"$f":"VLOOKUP($A179,F1__World_Data!$A$4:$DP$191,40,FALSE)","v":55.951000000000001},{"$f":"VLOOKUP($A179,F1__World_Data!$A$4:$DP$191,39,FALSE)","v":55.872999999999998},{"$f":"VLOOKUP($A179,F1__World_Data!$A$4:$DP$191,38,FALSE)","v":55.83},{"$f":"VLOOKUP($A179,F1__World_Data!$A$4:$DP$191,37,FALSE)","v":55.81},{"$f":"VLOOKUP($A179,F1__World_Data!$A$4:$DP$191,36,FALSE)","v":55.817},{"$f":"VLOOKUP($A179,F1__World_Data!$A$4:$DP$191,35,FALSE)","v":55.847000000000001},{"$f":"VLOOKUP($A179,F1__World_Data!$A$4:$DP$191,34,FALSE)","v":55.856999999999999},{"$f":"VLOOKUP($A179,F1__World_Data!$A$4:$DP$191,33,FALSE)","v":55.783000000000001},{"$f":"VLOOKUP($A179,F1__World_Data!$A$4:$DP$191,32,FALSE)","v":55.603999999999999},{"$f":"VLOOKUP($A179,F1__World_Data!$A$4:$DP$191,31,FALSE)","v":55.287999999999997},{"$f":"VLOOKUP($A179,F1__World_Data!$A$4:$DP$191,30,FALSE)","v":54.88},{"$f":"VLOOKUP($A179,F1__World_Data!$A$4:$DP$191,29,FALSE)","v":54.371000000000002},{"$f":"VLOOKUP($A179,F1__World_Data!$A$4:$DP$191,28,FALSE)","v":53.789000000000001},{"$f":"VLOOKUP($A179,F1__World_Data!$A$4:$DP$191,27,FALSE)","v":53.186999999999998},{"$f":"VLOOKUP($A179,F1__World_Data!$A$4:$DP$191,26,FALSE)","v":52.527999999999999},{"$f":"VLOOKUP($A179,F1__World_Data!$A$4:$DP$191,25,FALSE)","v":51.834000000000003},{"$f":"VLOOKUP($A179,F1__World_Data!$A$4:$DP$191,24,FALSE)","v":51.155000000000001},{"$f":"VLOOKUP($A179,F1__World_Data!$A$4:$DP$191,23,FALSE)","v":50.584000000000003},{"$f":"VLOOKUP($A179,F1__World_Data!$A$4:$DP$191,22,FALSE)","v":50.179000000000002},{"$f":"VLOOKUP($A179,F1__World_Data!$A$4:$DP$191,21,FALSE)","v":49.942},{"$f":"VLOOKUP($A179,F1__World_Data!$A$4:$DP$191,20,FALSE)","v":49.865000000000002},{"$f":"VLOOKUP($A179,F1__World_Data!$A$4:$DP$191,19,FALSE)","v":49.845999999999997},{"$f":"VLOOKUP($A179,F1__World_Data!$A$4:$DP$191,18,FALSE)","v":49.780999999999999},{"$f":"VLOOKUP($A179,F1__World_Data!$A$4:$DP$191,17,FALSE)","v":49.575000000000003},{"$f":"VLOOKUP($A179,F1__World_Data!$A$4:$DP$191,16,FALSE)","v":49.231999999999999},{"$f":"VLOOKUP($A179,F1__World_Data!$A$4:$DP$191,15,FALSE)","v":48.735999999999997},{"$f":"VLOOKUP($A179,F1__World_Data!$A$4:$DP$191,14,FALSE)","v":48.066000000000003},{"$f":"VLOOKUP($A179,F1__World_Data!$A$4:$DP$191,13,FALSE)","v":47.195},{"$f":"VLOOKUP($A179,F1__World_Data!$A$4:$DP$191,12,FALSE)","v":46.076999999999998},{"$f":"VLOOKUP($A179,F1__World_Data!$A$4:$DP$191,11,FALSE)","v":44.701999999999998},{"$f":"VLOOKUP($A179,F1__World_Data!$A$4:$DP$191,10,FALSE)","v":43.097999999999999},{"$f":"VLOOKUP($A179,F1__World_Data!$A$4:$DP$191,9,FALSE)","v":41.362000000000002},{"$f":"VLOOKUP($A179,F1__World_Data!$A$4:$DP$191,8,FALSE)","v":39.604999999999997},{"$f":"VLOOKUP($A179,F1__World_Data!$A$4:$DP$191,7,FALSE)","v":37.965000000000003},{"$f":"VLOOKUP($A179,F1__World_Data!$A$4:$DP$191,6,FALSE)","v":36.438000000000002},{"$f":"VLOOKUP($A179,F1__World_Data!$A$4:$DP$191,5,FALSE)","v":35.036999999999999},{"$f":"VLOOKUP($A179,F1__World_Data!$A$4:$DP$191,4,FALSE)","v":33.731000000000002},{"$f":"VLOOKUP($A179,F1__World_Data!$A$4:$DP$191,3,FALSE)","v":32.475999999999999},{"$f":"VLOOKUP($A179,F1__World_Data!$A$4:$DP$191,2,FALSE)","v":31.23},null,{"$f":"VLOOKUP($A179,F1__World_Data!$A$4:$DP$191,120,FALSE)","v":82.548780487804891},{"$f":"VLOOKUP($A179,F1__World_Data!$A$4:$DP$191,119,FALSE)","v":82.29756097560977},{"$f":"VLOOKUP($A179,F1__World_Data!$A$4:$DP$191,118,FALSE)","v":82.046341463414635},{"$f":"VLOOKUP($A179,F1__World_Data!$A$4:$DP$191,117,FALSE)","v":81.795121951219528},{"$f":"VLOOKUP($A179,F1__World_Data!$A$4:$DP$191,116,FALSE)","v":81.592682926829269},{"$f":"VLOOKUP($A179,F1__World_Data!$A$4:$DP$191,115,FALSE)","v":81.341463414634148},{"$f":"VLOOKUP($A179,F1__World_Data!$A$4:$DP$191,114,FALSE)","v":81.090243902439042},{"$f":"VLOOKUP($A179,F1__World_Data!$A$4:$DP$191,113,FALSE)","v":80.839024390243921},{"$f":"VLOOKUP($A179,F1__World_Data!$A$4:$DP$191,112,FALSE)","v":80.587804878048786},{"$f":"VLOOKUP($A179,F1__World_Data!$A$4:$DP$191,111,FALSE)","v":80.387804878048797},{"$f":"VLOOKUP($A179,F1__World_Data!$A$4:$DP$191,110,FALSE)","v":80.139024390243918},{"$f":"VLOOKUP($A179,F1__World_Data!$A$4:$DP$191,109,FALSE)","v":79.890243902439039},{"$f":"VLOOKUP($A179,F1__World_Data!$A$4:$DP$191,108,FALSE)","v":79.690243902439036},{"$f":"VLOOKUP($A179,F1__World_Data!$A$4:$DP$191,107,FALSE)","v":79.441463414634157},{"$f":"VLOOKUP($A179,F1__World_Data!$A$4:$DP$191,106,FALSE)","v":79.190243902439036},{"$f":"VLOOKUP($A179,F1__World_Data!$A$4:$DP$191,105,FALSE)","v":78.990243902439033},{"$f":"VLOOKUP($A179,F1__World_Data!$A$4:$DP$191,104,FALSE)","v":78.787804878048775},{"$f":"VLOOKUP($A179,F1__World_Data!$A$4:$DP$191,103,FALSE)","v":78.636585365853662},{"$f":"VLOOKUP($A179,F1__World_Data!$A$4:$DP$191,102,FALSE)","v":78.434146341463432},{"$f":"VLOOKUP($A179,F1__World_Data!$A$4:$DP$191,101,FALSE)","v":78.280487804878064},{"$f":"VLOOKUP($A179,F1__World_Data!$A$4:$DP$191,100,FALSE)","v":78.026829268292687},{"$f":"VLOOKUP($A179,F1__World_Data!$A$4:$DP$191,99,FALSE)","v":77.824390243902457},{"$f":"VLOOKUP($A179,F1__World_Data!$A$4:$DP$191,98,FALSE)","v":77.57073170731708},{"$f":"VLOOKUP($A179,F1__World_Data!$A$4:$DP$191,97,FALSE)","v":77.368292682926835},{"$f":"VLOOKUP($A179,F1__World_Data!$A$4:$DP$191,96,FALSE)","v":77.065853658536597},{"$f":"VLOOKUP($A179,F1__World_Data!$A$4:$DP$191,95,FALSE)","v":76.81463414634149},{"$f":"VLOOKUP($A179,F1__World_Data!$A$4:$DP$191,94,FALSE)","v":76.614634146341473},{"$f":"VLOOKUP($A179,F1__World_Data!$A$4:$DP$191,93,FALSE)","v":76.41463414634147},{"$f":"VLOOKUP($A179,F1__World_Data!$A$4:$DP$191,92,FALSE)","v":76.114634146341487},{"$f":"VLOOKUP($A179,F1__World_Data!$A$4:$DP$191,91,FALSE)","v":75.91463414634147},{"$f":"VLOOKUP($A179,F1__World_Data!$A$4:$DP$191,90,FALSE)","v":75.714634146341467},{"$f":"VLOOKUP($A179,F1__World_Data!$A$4:$DP$191,89,FALSE)","v":75.465853658536588},{"$f":"VLOOKUP($A179,F1__World_Data!$A$4:$DP$191,88,FALSE)","v":75.214634146341467},{"$f":"VLOOKUP($A179,F1__World_Data!$A$4:$DP$191,87,FALSE)","v":0},{"$f":"VLOOKUP($A179,F1__World_Data!$A$4:$DP$191,86,FALSE)","v":0},{"$f":"VLOOKUP($A179,F1__World_Data!$A$4:$DP$191,85,FALSE)","v":0},{"$f":"VLOOKUP($A179,F1__World_Data!$A$4:$DP$191,84,FALSE)","v":0},{"$f":"VLOOKUP($A179,F1__World_Data!$A$4:$DP$191,83,FALSE)","v":0},{"$f":"VLOOKUP($A179,F1__World_Data!$A$4:$DP$191,82,FALSE)","v":0},{"$f":"VLOOKUP($A179,F1__World_Data!$A$4:$DP$191,81,FALSE)","v":0},{"$f":"VLOOKUP($A179,F1__World_Data!$A$4:$DP$191,80,FALSE)","v":75.98536585365855},{"$f":"VLOOKUP($A179,F1__World_Data!$A$4:$DP$191,79,FALSE)","v":0},{"$f":"VLOOKUP($A179,F1__World_Data!$A$4:$DP$191,78,FALSE)","v":0},{"$f":"VLOOKUP($A179,F1__World_Data!$A$4:$DP$191,77,FALSE)","v":0},{"$f":"VLOOKUP($A179,F1__World_Data!$A$4:$DP$191,76,FALSE)","v":0},{"$f":"VLOOKUP($A179,F1__World_Data!$A$4:$DP$191,75,FALSE)","v":74.497560975609773},{"$f":"VLOOKUP($A179,F1__World_Data!$A$4:$DP$191,74,FALSE)","v":0},{"$f":"VLOOKUP($A179,F1__World_Data!$A$4:$DP$191,73,FALSE)","v":0},{"$f":"VLOOKUP($A179,F1__World_Data!$A$4:$DP$191,72,FALSE)","v":0},{"$f":"VLOOKUP($A179,F1__World_Data!$A$4:$DP$191,71,FALSE)","v":0},{"$f":"VLOOKUP($A179,F1__World_Data!$A$4:$DP$191,70,FALSE)","v":0},{"$f":"VLOOKUP($A179,F1__World_Data!$A$4:$DP$191,69,FALSE)","v":0},{"$f":"VLOOKUP($A179,F1__World_Data!$A$4:$DP$191,68,FALSE)","v":0},{"$f":"VLOOKUP($A179,F1__World_Data!$A$4:$DP$191,67,FALSE)","v":0},{"$f":"VLOOKUP($A179,F1__World_Data!$A$4:$DP$191,66,FALSE)","v":0},{"$f":"VLOOKUP($A179,F1__World_Data!$A$4:$DP$191,65,FALSE)","v":0},{"$f":"VLOOKUP($A179,F1__World_Data!$A$4:$DP$191,64,FALSE)","v":0},{"$f":"VLOOKUP($A179,F1__World_Data!$A$4:$DP$191,63,FALSE)","v":0},{"$f":"VLOOKUP($A179,F1__World_Data!$A$4:$DP$191,62,FALSE)","v":0}]
["American Samoa",{"$f":"VLOOKUP($A180,F1__World_Data!$A$4:$DP$191,60,FALSE)","v":55.460999999999999},{"$f":"VLOOKUP($A180,F1__World_Data!$A$4:$DP$191,59,FALSE)","v":55.616999999999997},{"$f":"VLOOKUP($A180,F1__World_Data!$A$4:$DP$191,58,FALSE)","v":55.738999999999997},{"$f":"VLOOKUP($A180,F1__World_Data!$A$4:$DP$191,57,FALSE)","v":55.805999999999997},{"$f":"VLOOKUP($A180,F1__World_Data!$A$4:$DP$191,56,FALSE)","v":55.790999999999997},{"$f":"VLOOKUP($A180,F1__World_Data!$A$4:$DP$191,55,FALSE)","v":55.716999999999999},{"$f":"VLOOKUP($A180,F1__World_Data!$A$4:$DP$191,54,FALSE)","v":55.668999999999997},{"$f":"VLOOKUP($A180,F1__World_Data!$A$4:$DP$191,53,FALSE)","v":55.755000000000003},{"$f":"VLOOKUP($A180,F1__World_Data!$A$4:$DP$191,52,FALSE)","v":56.084000000000003},{"$f":"VLOOKUP($A180,F1__World_Data!$A$4:$DP$191,51,FALSE)","v":56.674999999999997},{"$f":"VLOOKUP($A180,F1__World_Data!$A$4:$DP$191,50,FALSE)","v":57.49},{"$f":"VLOOKUP($A180,F1__World_Data!$A$4:$DP$191,49,FALSE)","v":58.366999999999997},{"$f":"VLOOKUP($A180,F1__World_Data!$A$4:$DP$191,48,FALSE)","v":59.109000000000002},{"$f":"VLOOKUP($A180,F1__World_Data!$A$4:$DP$191,47,FALSE)","v":59.557000000000002},{"$f":"VLOOKUP($A180,F1__World_Data!$A$4:$DP$191,46,FALSE)","v":59.683999999999997},{"$f":"VLOOKUP($A180,F1__World_Data!$A$4:$DP$191,45,FALSE)","v":59.494999999999997},{"$f":"VLOOKUP($A180,F1__World_Data!$A$4:$DP$191,44,FALSE)","v":59.076999999999998},{"$f":"VLOOKUP($A180,F1__World_Data!$A$4:$DP$191,43,FALSE)","v":58.496000000000002},{"$f":"VLOOKUP($A180,F1__World_Data!$A$4:$DP$191,42,FALSE)","v":57.816000000000003},{"$f":"VLOOKUP($A180,F1__World_Data!$A$4:$DP$191,41,FALSE)","v":57.048999999999999},{"$f":"VLOOKUP($A180,F1__World_Data!$A$4:$DP$191,40,FALSE)","v":56.18},{"$f":"VLOOKUP($A180,F1__World_Data!$A$4:$DP$191,39,FALSE)","v":55.226999999999997},{"$f":"VLOOKUP($A180,F1__World_Data!$A$4:$DP$191,38,FALSE)","v":54.209000000000003},{"$f":"VLOOKUP($A180,F1__World_Data!$A$4:$DP$191,37,FALSE)","v":53.158000000000001},{"$f":"VLOOKUP($A180,F1__World_Data!$A$4:$DP$191,36,FALSE)","v":52.098999999999997},{"$f":"VLOOKUP($A180,F1__World_Data!$A$4:$DP$191,35,FALSE)","v":51.024999999999999},{"$f":"VLOOKUP($A180,F1__World_Data!$A$4:$DP$191,34,FALSE)","v":49.9},{"$f":"VLOOKUP($A180,F1__World_Data!$A$4:$DP$191,33,FALSE)","v":48.682000000000002},{"$f":"VLOOKUP($A180,F1__World_Data!$A$4:$DP$191,32,FALSE)","v":47.350999999999999},{"$f":"VLOOKUP($A180,F1__World_Data!$A$4:$DP$191,31,FALSE)","v":45.893999999999998},{"$f":"VLOOKUP($A180,F1__World_Data!$A$4:$DP$191,30,FALSE)","v":44.345999999999997},{"$f":"VLOOKUP($A180,F1__World_Data!$A$4:$DP$191,29,FALSE)","v":42.741},{"$f":"VLOOKUP($A180,F1__World_Data!$A$4:$DP$191,28,FALSE)","v":41.113999999999997},{"$f":"VLOOKUP($A180,F1__World_Data!$A$4:$DP$191,27,FALSE)","v":39.521000000000001},{"$f":"VLOOKUP($A180,F1__World_Data!$A$4:$DP$191,26,FALSE)","v":37.945999999999998},{"$f":"VLOOKUP($A180,F1__World_Data!$A$4:$DP$191,25,FALSE)","v":36.412999999999997},{"$f":"VLOOKUP($A180,F1__World_Data!$A$4:$DP$191,24,FALSE)","v":34.969000000000001},{"$f":"VLOOKUP($A180,F1__World_Data!$A$4:$DP$191,23,FALSE)","v":33.697000000000003},{"$f":"VLOOKUP($A180,F1__World_Data!$A$4:$DP$191,22,FALSE)","v":32.648000000000003},{"$f":"VLOOKUP($A180,F1__World_Data!$A$4:$DP$191,21,FALSE)","v":31.841999999999999},{"$f":"VLOOKUP($A180,F1__World_Data!$A$4:$DP$191,20,FALSE)","v":31.262},{"$f":"VLOOKUP($A180,F1__World_Data!$A$4:$DP$191,19,FALSE)","v":30.834},{"$f":"VLOOKUP($A180,F1__World_Data!$A$4:$DP$191,18,FALSE)","v":30.454999999999998},{"$f":"VLOOKUP($A180,F1__World_Data!$A$4:$DP$191,17,FALSE)","v":30.045000000000002},{"$f":"VLOOKUP($A180,F1__World_Data!$A$4:$DP$191,16,FALSE)","v":29.594999999999999},{"$f":"VLOOKUP($A180,F1__World_Data!$A$4:$DP$191,15,FALSE)","v":29.103000000000002},{"$f":"VLOOKUP($A180,F1__World_Data!$A$4:$DP$191,14,FALSE)","v":28.564},{"$f":"VLOOKUP($A180,F1__World_Data!$A$4:$DP$191,13,FALSE)","v":27.981999999999999},{"$f":"VLOOKUP($A180,F1__World_Data!$A$4:$DP$191,12,FALSE)","v":27.361999999999998},{"$f":"VLOOKUP($A180,F1__World_Data!$A$4:$DP$191,11,FALSE)","v":26.698},{"$f":"VLOOKUP($A180,F1__World_Data!$A$4:$DP$191,10,FALSE)","v":25.98},{"$f":"VLOOKUP($A180,F1__World_Data!$A$4:$DP$191,9,FALSE)","v":25.234999999999999},{"$f":"VLOOKUP($A180,F1__World_Data!$A$4:$DP$191,8,FALSE)","v":24.472999999999999},{"$f":"VLOOKUP($A180,F1__World_Data!$A$4:$DP$191,7,FALSE)","v":23.675000000000001},{"$f":"VLOOKUP($A180,F1__World_Data!$A$4:$DP$191,6,FALSE)","v":22.85},{"$f":"VLOOKUP($A180,F1__World_Data!$A$4:$DP$191,5,FALSE)","v":22.029},{"$f":"VLOOKUP($A180,F1__World_Data!$A$4:$DP$191,4,FALSE)","v":21.245999999999999},{"$f":"VLOOKUP($A180,F1__World_Data!$A$4:$DP$191,3,FALSE)","v":20.605},{"$f":"VLOOKUP($A180,F1__World_Data!$A$4:$DP$191,2,FALSE)","v":20.126999999999999},null,{"$f":"VLOOKUP($A180,F1__World_Data!$A$4:$DP$191,120,FALSE)","v":78.457999999999998},{"$f":"VLOOKUP($A180,F1__World_Data!$A$4:$DP$191,119,FALSE)","v":78.332999999999998},{"$f":"VLOOKUP($A180,F1__World_Data!$A$4:$DP$191,118,FALSE)","v":78.194000000000003},{"$f":"VLOOKUP($A180,F1__World_Data!$A$4:$DP$191,117,FALSE)","v":78.025000000000006},{"$f":"VLOOKUP($A180,F1__World_Data!$A$4:$DP$191,116,FALSE)","v":77.813000000000002},{"$f":"VLOOKUP($A180,F1__World_Data!$A$4:$DP$191,115,FALSE)","v":77.554000000000002},{"$f":"VLOOKUP($A180,F1__World_Data!$A$4:$DP$191,114,FALSE)","v":77.251999999999995},{"$f":"VLOOKUP($A180,F1__World_Data!$A$4:$DP$191,113,FALSE)","v":76.914000000000001},{"$f":"VLOOKUP($A180,F1__World_Data!$A$4:$DP$191,112,FALSE)","v":76.561999999999998},{"$f":"VLOOKUP($A180,F1__World_Data!$A$4:$DP$191,111,FALSE)","v":76.221000000000004},{"$f":"VLOOKUP($A180,F1__World_Data!$A$4:$DP$191,110,FALSE)","v":75.912000000000006},{"$f":"VLOOKUP($A180,F1__World_Data!$A$4:$DP$191,109,FALSE)","v":75.646000000000001},{"$f":"VLOOKUP($A180,F1__World_Data!$A$4:$DP$191,108,FALSE)","v":75.423000000000002},{"$f":"VLOOKUP($A180,F1__World_Data!$A$4:$DP$191,107,FALSE)","v":75.227999999999994},{"$f":"VLOOKUP($A180,F1__World_Data!$A$4:$DP$191,106,FALSE)","v":75.039000000000001},{"$f":"VLOOKUP($A180,F1__World_Data!$A$4:$DP$191,105,FALSE)","v":74.828000000000003},{"$f":"VLOOKUP($A180,F1__World_Data!$A$4:$DP$191,104,FALSE)","v":74.578999999999994},{"$f":"VLOOKUP($A180,F1__World_Data!$A$4:$DP$191,103,FALSE)","v":74.287999999999997},{"$f":"VLOOKUP($A180,F1__World_Data!$A$4:$DP$191,102,FALSE)","v":73.954999999999998},{"$f":"VLOOKUP($A180,F1__World_Data!$A$4:$DP$191,101,FALSE)","v":73.587000000000003},{"$f":"VLOOKUP($A180,F1__World_Data!$A$4:$DP$191,100,FALSE)","v":73.207999999999998},{"$f":"VLOOKUP($A180,F1__World_Data!$A$4:$DP$191,99,FALSE)","v":72.837999999999994},{"$f":"VLOOKUP($A180,F1__World_Data!$A$4:$DP$191,98,FALSE)","v":72.495000000000005},{"$f":"VLOOKUP($A180,F1__World_Data!$A$4:$DP$191,97,FALSE)","v":72.204999999999998},{"$f":"VLOOKUP($A180,F1__World_Data!$A$4:$DP$191,96,FALSE)","v":71.992000000000004},{"$f":"VLOOKUP($A180,F1__World_Data!$A$4:$DP$191,95,FALSE)","v":71.86},{"$f":"VLOOKUP($A180,F1__World_Data!$A$4:$DP$191,94,FALSE)","v":71.802000000000007},{"$f":"VLOOKUP($A180,F1__World_Data!$A$4:$DP$191,93,FALSE)","v":71.802999999999997},{"$f":"VLOOKUP($A180,F1__World_Data!$A$4:$DP$191,92,FALSE)","v":71.835999999999999},{"$f":"VLOOKUP($A180,F1__World_Data!$A$4:$DP$191,91,FALSE)","v":71.86},{"$f":"VLOOKUP($A180,F1__World_Data!$A$4:$DP$191,90,FALSE)","v":71.843000000000004},{"$f":"VLOOKUP($A180,F1__World_Data!$A$4:$DP$191,89,FALSE)","v":71.760000000000005},{"$f":"VLOOKUP($A180,F1__World_Data!$A$4:$DP$191,88,FALSE)","v":71.605000000000004},{"$f":"VLOOKUP($A180,F1__World_Data!$A$4:$DP$191,87,FALSE)","v":71.388000000000005},{"$f":"VLOOKUP($A180,F1__World_Data!$A$4:$DP$191,86,FALSE)","v":71.134},{"$f":"VLOOKUP($A180,F1__World_Data!$A$4:$DP$191,85,FALSE)","v":70.876000000000005},{"$f":"VLOOKUP($A180,F1__World_Data!$A$4:$DP$191,84,FALSE)","v":70.635000000000005},{"$f":"VLOOKUP($A180,F1__World_Data!$A$4:$DP$191,83,FALSE)","v":70.415999999999997},{"$f":"VLOOKUP($A180,F1__World_Data!$A$4:$DP$191,82,FALSE)","v":70.207999999999998},{"$f":"VLOOKUP($A180,F1__World_Data!$A$4:$DP$191,81,FALSE)","v":69.991},{"$f":"VLOOKUP($A180,F1__World_Data!$A$4:$DP$191,80,FALSE)","v":69.742000000000004},{"$f":"VLOOKUP($A180,F1__World_Data!$A$4:$DP$191,79,FALSE)","v":69.447999999999993},{"$f":"VLOOKUP($A180,F1__World_Data!$A$4:$DP$191,78,FALSE)","v":69.11},{"$f":"VLOOKUP($A180,F1__World_Data!$A$4:$DP$191,77,FALSE)","v":68.736000000000004},{"$f":"VLOOKUP($A180,F1__World_Data!$A$4:$DP$191,76,FALSE)","v":68.343000000000004},{"$f":"VLOOKUP($A180,F1__World_Data!$A$4:$DP$191,75,FALSE)","v":67.953000000000003},{"$f":"VLOOKUP($A180,F1__World_Data!$A$4:$DP$191,74,FALSE)","v":67.581999999999994},{"$f":"VLOOKUP($A180,F1__World_Data!$A$4:$DP$191,73,FALSE)","v":67.236999999999995},{"$f":"VLOOKUP($A180,F1__World_Data!$A$4:$DP$191,72,FALSE)","v":66.935000000000002},{"$f":"VLOOKUP($A180,F1__World_Data!$A$4:$DP$191,71,FALSE)","v":66.688999999999993},{"$f":"VLOOKUP($A180,F1__World_Data!$A$4:$DP$191,70,FALSE)","v":66.486999999999995},{"$f":"VLOOKUP($A180,F1__World_Data!$A$4:$DP$191,69,FALSE)","v":66.304000000000002},{"$f":"VLOOKUP($A180,F1__World_Data!$A$4:$DP$191,68,FALSE)","v":66.11},{"$f":"VLOOKUP($A180,F1__World_Data!$A$4:$DP$191,67,FALSE)","v":65.849999999999994},{"$f":"VLOOKUP($A180,F1__World_Data!$A$4:$DP$191,66,FALSE)","v":65.462999999999994},{"$f":"VLOOKUP($A180,F1__World_Data!$A$4:$DP$191,65,FALSE)","v":64.914000000000001},{"$f":"VLOOKUP($A180,F1__World_Data!$A$4:$DP$191,64,FALSE)","v":64.19},{"$f":"VLOOKUP($A180,F1__World_Data!$A$4:$DP$191,63,FALSE)","v":63.301000000000002},{"$f":"VLOOKUP($A180,F1__World_Data!$A$4:$DP$191,62,FALSE)","v":62.283000000000001}]
["Faroe Islands",{"$f":"VLOOKUP($A181,F1__World_Data!$A$4:$DP$191,60,FALSE)","v":48.497},{"$f":"VLOOKUP($A181,F1__World_Data!$A$4:$DP$191,59,FALSE)","v":48.326000000000001},{"$f":"VLOOKUP($A181,F1__World_Data!$A$4:$DP$191,58,FALSE)","v":48.173000000000002},{"$f":"VLOOKUP($A181,F1__World_Data!$A$4:$DP$191,57,FALSE)","v":48.055},{"$f":"VLOOKUP($A181,F1__World_Data!$A$4:$DP$191,56,FALSE)","v":47.965000000000003},{"$f":"VLOOKUP($A181,F1__World_Data!$A$4:$DP$191,55,FALSE)","v":47.901000000000003},{"$f":"VLOOKUP($A181,F1__World_Data!$A$4:$DP$191,54,FALSE)","v":47.843000000000004},{"$f":"VLOOKUP($A181,F1__World_Data!$A$4:$DP$191,53,FALSE)","v":47.814999999999998},{"$f":"VLOOKUP($A181,F1__World_Data!$A$4:$DP$191,52,FALSE)","v":47.802999999999997},{"$f":"VLOOKUP($A181,F1__World_Data!$A$4:$DP$191,51,FALSE)","v":47.814},{"$f":"VLOOKUP($A181,F1__World_Data!$A$4:$DP$191,50,FALSE)","v":47.822000000000003},{"$f":"VLOOKUP($A181,F1__World_Data!$A$4:$DP$191,49,FALSE)","v":47.825000000000003},{"$f":"VLOOKUP($A181,F1__World_Data!$A$4:$DP$191,48,FALSE)","v":47.792999999999999},{"$f":"VLOOKUP($A181,F1__World_Data!$A$4:$DP$191,47,FALSE)","v":47.731000000000002},{"$f":"VLOOKUP($A181,F1__World_Data!$A$4:$DP$191,46,FALSE)","v":47.6},{"$f":"VLOOKUP($A181,F1__World_Data!$A$4:$DP$191,45,FALSE)","v":47.439},{"$f":"VLOOKUP($A181,F1__World_Data!$A$4:$DP$191,44,FALSE)","v":47.234999999999999},{"$f":"VLOOKUP($A181,F1__World_Data!$A$4:$DP$191,43,FALSE)","v":46.999000000000002},{"$f":"VLOOKUP($A181,F1__World_Data!$A$4:$DP$191,42,FALSE)","v":46.738},{"$f":"VLOOKUP($A181,F1__World_Data!$A$4:$DP$191,41,FALSE)","v":46.427999999999997},{"$f":"VLOOKUP($A181,F1__World_Data!$A$4:$DP$191,40,FALSE)","v":46.094000000000001},{"$f":"VLOOKUP($A181,F1__World_Data!$A$4:$DP$191,39,FALSE)","v":45.789000000000001},{"$f":"VLOOKUP($A181,F1__World_Data!$A$4:$DP$191,38,FALSE)","v":45.624000000000002},{"$f":"VLOOKUP($A181,F1__World_Data!$A$4:$DP$191,37,FALSE)","v":45.625},{"$f":"VLOOKUP($A181,F1__World_Data!$A$4:$DP$191,36,FALSE)","v":45.847999999999999},{"$f":"VLOOKUP($A181,F1__World_Data!$A$4:$DP$191,35,FALSE)","v":46.277000000000001},{"$f":"VLOOKUP($A181,F1__World_Data!$A$4:$DP$191,34,FALSE)","v":46.746000000000002},{"$f":"VLOOKUP($A181,F1__World_Data!$A$4:$DP$191,33,FALSE)","v":47.122999999999998},{"$f":"VLOOKUP($A181,F1__World_Data!$A$4:$DP$191,32,FALSE)","v":47.276000000000003},{"$f":"VLOOKUP($A181,F1__World_Data!$A$4:$DP$191,31,FALSE)","v":47.158999999999999},{"$f":"VLOOKUP($A181,F1__World_Data!$A$4:$DP$191,30,FALSE)","v":46.832999999999998},{"$f":"VLOOKUP($A181,F1__World_Data!$A$4:$DP$191,29,FALSE)","v":46.34},{"$f":"VLOOKUP($A181,F1__World_Data!$A$4:$DP$191,28,FALSE)","v":45.811999999999998},{"$f":"VLOOKUP($A181,F1__World_Data!$A$4:$DP$191,27,FALSE)","v":45.328000000000003},{"$f":"VLOOKUP($A181,F1__World_Data!$A$4:$DP$191,26,FALSE)","v":44.895000000000003},{"$f":"VLOOKUP($A181,F1__World_Data!$A$4:$DP$191,25,FALSE)","v":44.482999999999997},{"$f":"VLOOKUP($A181,F1__World_Data!$A$4:$DP$191,24,FALSE)","v":44.100999999999999},{"$f":"VLOOKUP($A181,F1__World_Data!$A$4:$DP$191,23,FALSE)","v":43.725000000000001},{"$f":"VLOOKUP($A181,F1__World_Data!$A$4:$DP$191,22,FALSE)","v":43.338999999999999},{"$f":"VLOOKUP($A181,F1__World_Data!$A$4:$DP$191,21,FALSE)","v":42.941000000000003},{"$f":"VLOOKUP($A181,F1__World_Data!$A$4:$DP$191,20,FALSE)","v":42.539000000000001},{"$f":"VLOOKUP($A181,F1__World_Data!$A$4:$DP$191,19,FALSE)","v":42.133000000000003},{"$f":"VLOOKUP($A181,F1__World_Data!$A$4:$DP$191,18,FALSE)","v":41.723999999999997},{"$f":"VLOOKUP($A181,F1__World_Data!$A$4:$DP$191,17,FALSE)","v":41.292000000000002},{"$f":"VLOOKUP($A181,F1__World_Data!$A$4:$DP$191,16,FALSE)","v":40.847000000000001},{"$f":"VLOOKUP($A181,F1__World_Data!$A$4:$DP$191,15,FALSE)","v":40.395000000000003},{"$f":"VLOOKUP($A181,F1__World_Data!$A$4:$DP$191,14,FALSE)","v":39.914999999999999},{"$f":"VLOOKUP($A181,F1__World_Data!$A$4:$DP$191,13,FALSE)","v":39.456000000000003},{"$f":"VLOOKUP($A181,F1__World_Data!$A$4:$DP$191,12,FALSE)","v":39.008000000000003},{"$f":"VLOOKUP($A181,F1__World_Data!$A$4:$DP$191,11,FALSE)","v":38.56},{"$f":"VLOOKUP($A181,F1__World_Data!$A$4:$DP$191,10,FALSE)","v":38.131},{"$f":"VLOOKUP($A181,F1__World_Data!$A$4:$DP$191,9,FALSE)","v":37.704999999999998},{"$f":"VLOOKUP($A181,F1__World_Data!$A$4:$DP$191,8,FALSE)","v":37.283000000000001},{"$f":"VLOOKUP($A181,F1__World_Data!$A$4:$DP$191,7,FALSE)","v":36.843000000000004},{"$f":"VLOOKUP($A181,F1__World_Data!$A$4:$DP$191,6,FALSE)","v":36.408999999999999},{"$f":"VLOOKUP($A181,F1__World_Data!$A$4:$DP$191,5,FALSE)","v":35.965000000000003},{"$f":"VLOOKUP($A181,F1__World_Data!$A$4:$DP$191,4,FALSE)","v":35.521000000000001},{"$f":"VLOOKUP($A181,F1__World_Data!$A$4:$DP$191,3,FALSE)","v":35.073999999999998},{"$f":"VLOOKUP($A181,F1__World_Data!$A$4:$DP$191,2,FALSE)","v":34.624000000000002},null,{"$f":"VLOOKUP($A181,F1__World_Data!$A$4:$DP$191,120,FALSE)","v":80.97050203529966},{"$f":"VLOOKUP($A181,F1__World_Data!$A$4:$DP$191,119,FALSE)","v":80.923348036246338},{"$f":"VLOOKUP($A181,F1__World_Data!$A$4:$DP$191,118,FALSE)","v":80.943092461193217},{"$f":"VLOOKUP($A181,F1__World_Data!$A$4:$DP$191,117,FALSE)","v":80.566807142571065},{"$f":"VLOOKUP($A181,F1__World_Data!$A$4:$DP$191,116,FALSE)","v":80.87044757794709},{"$f":"VLOOKUP($A181,F1__World_Data!$A$4:$DP$191,115,FALSE)","v":80.463740932860333},{"$f":"VLOOKUP($A181,F1__World_Data!$A$4:$DP$191,114,FALSE)","v":80.156888152225918},{"$f":"VLOOKUP($A181,F1__World_Data!$A$4:$DP$191,113,FALSE)","v":80.137772877619668},{"$f":"VLOOKUP($A181,F1__World_Data!$A$4:$DP$191,112,FALSE)","v":79.629426057763581},{"$f":"VLOOKUP($A181,F1__World_Data!$A$4:$DP$191,111,FALSE)","v":79.357228335505312},{"$f":"VLOOKUP($A181,F1__World_Data!$A$4:$DP$191,110,FALSE)","v":79.125498871187276},{"$f":"VLOOKUP($A181,F1__World_Data!$A$4:$DP$191,109,FALSE)","v":78.90203602754498},{"$f":"VLOOKUP($A181,F1__World_Data!$A$4:$DP$191,108,FALSE)","v":78.668923271741903},{"$f":"VLOOKUP($A181,F1__World_Data!$A$4:$DP$191,107,FALSE)","v":78.271011246005713},{"$f":"VLOOKUP($A181,F1__World_Data!$A$4:$DP$191,106,FALSE)","v":78.117403367078538},{"$f":"VLOOKUP($A181,F1__World_Data!$A$4:$DP$191,105,FALSE)","v":77.590661981993335},{"$f":"VLOOKUP($A181,F1__World_Data!$A$4:$DP$191,104,FALSE)","v":77.532721538566477},{"$f":"VLOOKUP($A181,F1__World_Data!$A$4:$DP$191,103,FALSE)","v":77.425483372652153},{"$f":"VLOOKUP($A181,F1__World_Data!$A$4:$DP$191,102,FALSE)","v":77.078447803495379},{"$f":"VLOOKUP($A181,F1__World_Data!$A$4:$DP$191,101,FALSE)","v":76.748581981705257},{"$f":"VLOOKUP($A181,F1__World_Data!$A$4:$DP$191,100,FALSE)","v":76.514517160640793},{"$f":"VLOOKUP($A181,F1__World_Data!$A$4:$DP$191,99,FALSE)","v":76.245519195417444},{"$f":"VLOOKUP($A181,F1__World_Data!$A$4:$DP$191,98,FALSE)","v":75.927968684357268},{"$f":"VLOOKUP($A181,F1__World_Data!$A$4:$DP$191,97,FALSE)","v":75.676868379694383},{"$f":"VLOOKUP($A181,F1__World_Data!$A$4:$DP$191,96,FALSE)","v":75.529103599056384},{"$f":"VLOOKUP($A181,F1__World_Data!$A$4:$DP$191,95,FALSE)","v":75.261221689961943},{"$f":"VLOOKUP($A181,F1__World_Data!$A$4:$DP$191,94,FALSE)","v":75.131843220386628},{"$f":"VLOOKUP($A181,F1__World_Data!$A$4:$DP$191,93,FALSE)","v":74.816900170053131},{"$f":"VLOOKUP($A181,F1__World_Data!$A$4:$DP$191,92,FALSE)","v":74.730662416188849},{"$f":"VLOOKUP($A181,F1__World_Data!$A$4:$DP$191,91,FALSE)","v":74.629427851561488},{"$f":"VLOOKUP($A181,F1__World_Data!$A$4:$DP$191,90,FALSE)","v":74.468485515702298},{"$f":"VLOOKUP($A181,F1__World_Data!$A$4:$DP$191,89,FALSE)","v":74.266401053831231},{"$f":"VLOOKUP($A181,F1__World_Data!$A$4:$DP$191,88,FALSE)","v":74.038049645144383},{"$f":"VLOOKUP($A181,F1__World_Data!$A$4:$DP$191,87,FALSE)","v":73.774190835667554},{"$f":"VLOOKUP($A181,F1__World_Data!$A$4:$DP$191,86,FALSE)","v":73.669311704219197},{"$f":"VLOOKUP($A181,F1__World_Data!$A$4:$DP$191,85,FALSE)","v":73.411165100630143},{"$f":"VLOOKUP($A181,F1__World_Data!$A$4:$DP$191,84,FALSE)","v":73.36659061694894},{"$f":"VLOOKUP($A181,F1__World_Data!$A$4:$DP$191,83,FALSE)","v":73.089631896662794},{"$f":"VLOOKUP($A181,F1__World_Data!$A$4:$DP$191,82,FALSE)","v":72.751268543388946},{"$f":"VLOOKUP($A181,F1__World_Data!$A$4:$DP$191,81,FALSE)","v":72.698052275226956},{"$f":"VLOOKUP($A181,F1__World_Data!$A$4:$DP$191,80,FALSE)","v":72.433704194539061},{"$f":"VLOOKUP($A181,F1__World_Data!$A$4:$DP$191,79,FALSE)","v":72.295522828618545},{"$f":"VLOOKUP($A181,F1__World_Data!$A$4:$DP$191,78,FALSE)","v":72.034441697781972},{"$f":"VLOOKUP($A181,F1__World_Data!$A$4:$DP$191,77,FALSE)","v":71.807843363234625},{"$f":"VLOOKUP($A181,F1__World_Data!$A$4:$DP$191,76,FALSE)","v":71.7263354105757},{"$f":"VLOOKUP($A181,F1__World_Data!$A$4:$DP$191,75,FALSE)","v":71.42220836041173},{"$f":"VLOOKUP($A181,F1__World_Data!$A$4:$DP$191,74,FALSE)","v":71.313069801495303},{"$f":"VLOOKUP($A181,F1__World_Data!$A$4:$DP$191,73,FALSE)","v":70.938898895467545},{"$f":"VLOOKUP($A181,F1__World_Data!$A$4:$DP$191,72,FALSE)","v":70.858259490740807},{"$f":"VLOOKUP($A181,F1__World_Data!$A$4:$DP$191,71,FALSE)","v":70.53345854774625},{"$f":"VLOOKUP($A181,F1__World_Data!$A$4:$DP$191,70,FALSE)","v":70.584133771911283},{"$f":"VLOOKUP($A181,F1__World_Data!$A$4:$DP$191,69,FALSE)","v":70.473602895873015},{"$f":"VLOOKUP($A181,F1__World_Data!$A$4:$DP$191,68,FALSE)","v":70.428153384590871},{"$f":"VLOOKUP($A181,F1__World_Data!$A$4:$DP$191,67,FALSE)","v":70.157154753430461},{"$f":"VLOOKUP($A181,F1__World_Data!$A$4:$DP$191,66,FALSE)","v":70.030842704461435},{"$f":"VLOOKUP($A181,F1__World_Data!$A$4:$DP$191,65,FALSE)","v":69.612851510609545},{"$f":"VLOOKUP($A181,F1__World_Data!$A$4:$DP$191,64,FALSE)","v":69.318361686346904},{"$f":"VLOOKUP($A181,F1__World_Data!$A$4:$DP$191,63,FALSE)","v":69.412211952628169},{"$f":"VLOOKUP($A181,F1__World_Data!$A$4:$DP$191,62,FALSE)","v":69.020866620994667}]
["Monaco",{"$f":"VLOOKUP($A182,F1__World_Data!$A$4:$DP$191,60,FALSE)","v":38.682000000000002},{"$f":"VLOOKUP($A182,F1__World_Data!$A$4:$DP$191,59,FALSE)","v":38.392000000000003},{"$f":"VLOOKUP($A182,F1__World_Data!$A$4:$DP$191,58,FALSE)","v":38.07},{"$f":"VLOOKUP($A182,F1__World_Data!$A$4:$DP$191,57,FALSE)","v":37.722999999999999},{"$f":"VLOOKUP($A182,F1__World_Data!$A$4:$DP$191,56,FALSE)","v":37.32},{"$f":"VLOOKUP($A182,F1__World_Data!$A$4:$DP$191,55,FALSE)","v":36.899000000000001},{"$f":"VLOOKUP($A182,F1__World_Data!$A$4:$DP$191,54,FALSE)","v":36.459000000000003},{"$f":"VLOOKUP($A182,F1__World_Data!$A$4:$DP$191,53,FALSE)","v":36.024999999999999},{"$f":"VLOOKUP($A182,F1__World_Data!$A$4:$DP$191,52,FALSE)","v":35.609000000000002},{"$f":"VLOOKUP($A182,F1__World_Data!$A$4:$DP$191,51,FALSE)","v":35.222999999999999},{"$f":"VLOOKUP($A182,F1__World_Data!$A$4:$DP$191,50,FALSE)","v":34.86},{"$f":"VLOOKUP($A182,F1__World_Data!$A$4:$DP$191,49,FALSE)","v":34.524000000000001},{"$f":"VLOOKUP($A182,F1__World_Data!$A$4:$DP$191,48,FALSE)","v":34.189},{"$f":"VLOOKUP($A182,F1__World_Data!$A$4:$DP$191,47,FALSE)","v":33.841999999999999},{"$f":"VLOOKUP($A182,F1__World_Data!$A$4:$DP$191,46,FALSE)","v":33.499000000000002},{"$f":"VLOOKUP($A182,F1__World_Data!$A$4:$DP$191,45,FALSE)","v":33.143999999999998},{"$f":"VLOOKUP($A182,F1__World_Data!$A$4:$DP$191,44,FALSE)","v":32.804000000000002},{"$f":"VLOOKUP($A182,F1__World_Data!$A$4:$DP$191,43,FALSE)","v":32.473999999999997},{"$f":"VLOOKUP($A182,F1__World_Data!$A$4:$DP$191,42,FALSE)","v":32.148000000000003},{"$f":"VLOOKUP($A182,F1__World_Data!$A$4:$DP$191,41,FALSE)","v":31.835999999999999},{"$f":"VLOOKUP($A182,F1__World_Data!$A$4:$DP$191,40,FALSE)","v":31.553999999999998},{"$f":"VLOOKUP($A182,F1__World_Data!$A$4:$DP$191,39,FALSE)","v":31.268000000000001},{"$f":"VLOOKUP($A182,F1__World_Data!$A$4:$DP$191,38,FALSE)","v":31.001000000000001},{"$f":"VLOOKUP($A182,F1__World_Data!$A$4:$DP$191,37,FALSE)","v":30.731000000000002},{"$f":"VLOOKUP($A182,F1__World_Data!$A$4:$DP$191,36,FALSE)","v":30.436},{"$f":"VLOOKUP($A182,F1__World_Data!$A$4:$DP$191,35,FALSE)","v":30.145},{"$f":"VLOOKUP($A182,F1__World_Data!$A$4:$DP$191,34,FALSE)","v":29.859000000000002},{"$f":"VLOOKUP($A182,F1__World_Data!$A$4:$DP$191,33,FALSE)","v":29.629000000000001},{"$f":"VLOOKUP($A182,F1__World_Data!$A$4:$DP$191,32,FALSE)","v":29.433},{"$f":"VLOOKUP($A182,F1__World_Data!$A$4:$DP$191,31,FALSE)","v":29.309000000000001},{"$f":"VLOOKUP($A182,F1__World_Data!$A$4:$DP$191,30,FALSE)","v":29.231999999999999},{"$f":"VLOOKUP($A182,F1__World_Data!$A$4:$DP$191,29,FALSE)","v":29.155999999999999},{"$f":"VLOOKUP($A182,F1__World_Data!$A$4:$DP$191,28,FALSE)","v":29.05},{"$f":"VLOOKUP($A182,F1__World_Data!$A$4:$DP$191,27,FALSE)","v":28.835999999999999},{"$f":"VLOOKUP($A182,F1__World_Data!$A$4:$DP$191,26,FALSE)","v":28.510999999999999},{"$f":"VLOOKUP($A182,F1__World_Data!$A$4:$DP$191,25,FALSE)","v":28.091000000000001},{"$f":"VLOOKUP($A182,F1__World_Data!$A$4:$DP$191,24,FALSE)","v":27.632999999999999},{"$f":"VLOOKUP($A182,F1__World_Data!$A$4:$DP$191,23,FALSE)","v":27.161999999999999},{"$f":"VLOOKUP($A182,F1__World_Data!$A$4:$DP$191,22,FALSE)","v":26.751999999999999},{"$f":"VLOOKUP($A182,F1__World_Data!$A$4:$DP$191,21,FALSE)","v":26.390999999999998},{"$f":"VLOOKUP($A182,F1__World_Data!$A$4:$DP$191,20,FALSE)","v":26.09},{"$f":"VLOOKUP($A182,F1__World_Data!$A$4:$DP$191,19,FALSE)","v":25.811},{"$f":"VLOOKUP($A182,F1__World_Data!$A$4:$DP$191,18,FALSE)","v":25.523},{"$f":"VLOOKUP($A182,F1__World_Data!$A$4:$DP$191,17,FALSE)","v":25.202999999999999},{"$f":"VLOOKUP($A182,F1__World_Data!$A$4:$DP$191,16,FALSE)","v":24.829000000000001},{"$f":"VLOOKUP($A182,F1__World_Data!$A$4:$DP$191,15,FALSE)","v":24.445},{"$f":"VLOOKUP($A182,F1__World_Data!$A$4:$DP$191,14,FALSE)","v":24.048999999999999},{"$f":"VLOOKUP($A182,F1__World_Data!$A$4:$DP$191,13,FALSE)","v":23.721},{"$f":"VLOOKUP($A182,F1__World_Data!$A$4:$DP$191,12,FALSE)","v":23.486999999999998},{"$f":"VLOOKUP($A182,F1__World_Data!$A$4:$DP$191,11,FALSE)","v":23.347999999999999},{"$f":"VLOOKUP($A182,F1__World_Data!$A$4:$DP$191,10,FALSE)","v":23.295000000000002},{"$f":"VLOOKUP($A182,F1__World_Data!$A$4:$DP$191,9,FALSE)","v":23.292000000000002},{"$f":"VLOOKUP($A182,F1__World_Data!$A$4:$DP$191,8,FALSE)","v":23.302},{"$f":"VLOOKUP($A182,F1__World_Data!$A$4:$DP$191,7,FALSE)","v":23.289000000000001},{"$f":"VLOOKUP($A182,F1__World_Data!$A$4:$DP$191,6,FALSE)","v":23.236000000000001},{"$f":"VLOOKUP($A182,F1__World_Data!$A$4:$DP$191,5,FALSE)","v":23.164999999999999},{"$f":"VLOOKUP($A182,F1__World_Data!$A$4:$DP$191,4,FALSE)","v":23.042999999999999},{"$f":"VLOOKUP($A182,F1__World_Data!$A$4:$DP$191,3,FALSE)","v":22.812999999999999},{"$f":"VLOOKUP($A182,F1__World_Data!$A$4:$DP$191,2,FALSE)","v":22.460999999999999},null,{"$f":"VLOOKUP($A182,F1__World_Data!$A$4:$DP$191,120,FALSE)","v":68.116},{"$f":"VLOOKUP($A182,F1__World_Data!$A$4:$DP$191,119,FALSE)","v":67.850999999999999},{"$f":"VLOOKUP($A182,F1__World_Data!$A$4:$DP$191,118,FALSE)","v":67.576999999999998},{"$f":"VLOOKUP($A182,F1__World_Data!$A$4:$DP$191,117,FALSE)","v":67.290999999999997},{"$f":"VLOOKUP($A182,F1__World_Data!$A$4:$DP$191,116,FALSE)","v":66.995000000000005},{"$f":"VLOOKUP($A182,F1__World_Data!$A$4:$DP$191,115,FALSE)","v":66.69},{"$f":"VLOOKUP($A182,F1__World_Data!$A$4:$DP$191,114,FALSE)","v":66.381},{"$f":"VLOOKUP($A182,F1__World_Data!$A$4:$DP$191,113,FALSE)","v":66.072000000000003},{"$f":"VLOOKUP($A182,F1__World_Data!$A$4:$DP$191,112,FALSE)","v":65.769000000000005},{"$f":"VLOOKUP($A182,F1__World_Data!$A$4:$DP$191,111,FALSE)","v":65.48},{"$f":"VLOOKUP($A182,F1__World_Data!$A$4:$DP$191,110,FALSE)","v":65.207999999999998},{"$f":"VLOOKUP($A182,F1__World_Data!$A$4:$DP$191,109,FALSE)","v":64.953000000000003},{"$f":"VLOOKUP($A182,F1__World_Data!$A$4:$DP$191,108,FALSE)","v":64.712000000000003},{"$f":"VLOOKUP($A182,F1__World_Data!$A$4:$DP$191,107,FALSE)","v":64.477999999999994},{"$f":"VLOOKUP($A182,F1__World_Data!$A$4:$DP$191,106,FALSE)","v":64.242000000000004},{"$f":"VLOOKUP($A182,F1__World_Data!$A$4:$DP$191,105,FALSE)","v":63.994999999999997},{"$f":"VLOOKUP($A182,F1__World_Data!$A$4:$DP$191,104,FALSE)","v":63.731000000000002},{"$f":"VLOOKUP($A182,F1__World_Data!$A$4:$DP$191,103,FALSE)","v":63.445999999999998},{"$f":"VLOOKUP($A182,F1__World_Data!$A$4:$DP$191,102,FALSE)","v":63.143999999999998},{"$f":"VLOOKUP($A182,F1__World_Data!$A$4:$DP$191,101,FALSE)","v":62.829000000000001},{"$f":"VLOOKUP($A182,F1__World_Data!$A$4:$DP$191,100,FALSE)","v":62.509},{"$f":"VLOOKUP($A182,F1__World_Data!$A$4:$DP$191,99,FALSE)","v":62.188000000000002},{"$f":"VLOOKUP($A182,F1__World_Data!$A$4:$DP$191,98,FALSE)","v":61.866},{"$f":"VLOOKUP($A182,F1__World_Data!$A$4:$DP$191,97,FALSE)","v":61.539000000000001},{"$f":"VLOOKUP($A182,F1__World_Data!$A$4:$DP$191,96,FALSE)","v":61.198},{"$f":"VLOOKUP($A182,F1__World_Data!$A$4:$DP$191,95,FALSE)","v":60.837000000000003},{"$f":"VLOOKUP($A182,F1__World_Data!$A$4:$DP$191,94,FALSE)","v":60.454999999999998},{"$f":"VLOOKUP($A182,F1__World_Data!$A$4:$DP$191,93,FALSE)","v":60.052999999999997},{"$f":"VLOOKUP($A182,F1__World_Data!$A$4:$DP$191,92,FALSE)","v":59.636000000000003},{"$f":"VLOOKUP($A182,F1__World_Data!$A$4:$DP$191,91,FALSE)","v":59.209000000000003},{"$f":"VLOOKUP($A182,F1__World_Data!$A$4:$DP$191,90,FALSE)","v":58.783000000000001},{"$f":"VLOOKUP($A182,F1__World_Data!$A$4:$DP$191,89,FALSE)","v":58.366},{"$f":"VLOOKUP($A182,F1__World_Data!$A$4:$DP$191,88,FALSE)","v":57.962000000000003},{"$f":"VLOOKUP($A182,F1__World_Data!$A$4:$DP$191,87,FALSE)","v":57.579000000000001},{"$f":"VLOOKUP($A182,F1__World_Data!$A$4:$DP$191,86,FALSE)","v":57.220999999999997},{"$f":"VLOOKUP($A182,F1__World_Data!$A$4:$DP$191,85,FALSE)","v":56.886000000000003},{"$f":"VLOOKUP($A182,F1__World_Data!$A$4:$DP$191,84,FALSE)","v":56.569000000000003},{"$f":"VLOOKUP($A182,F1__World_Data!$A$4:$DP$191,83,FALSE)","v":56.265999999999998},{"$f":"VLOOKUP($A182,F1__World_Data!$A$4:$DP$191,82,FALSE)","v":55.970999999999997},{"$f":"VLOOKUP($A182,F1__World_Data!$A$4:$DP$191,81,FALSE)","v":55.679000000000002},{"$f":"VLOOKUP($A182,F1__World_Data!$A$4:$DP$191,80,FALSE)","v":55.381999999999998},{"$f":"VLOOKUP($A182,F1__World_Data!$A$4:$DP$191,79,FALSE)","v":55.073999999999998},{"$f":"VLOOKUP($A182,F1__World_Data!$A$4:$DP$191,78,FALSE)","v":54.747999999999998},{"$f":"VLOOKUP($A182,F1__World_Data!$A$4:$DP$191,77,FALSE)","v":54.399000000000001},{"$f":"VLOOKUP($A182,F1__World_Data!$A$4:$DP$191,76,FALSE)","v":54.027000000000001},{"$f":"VLOOKUP($A182,F1__World_Data!$A$4:$DP$191,75,FALSE)","v":53.633000000000003},{"$f":"VLOOKUP($A182,F1__World_Data!$A$4:$DP$191,74,FALSE)","v":53.218000000000004},{"$f":"VLOOKUP($A182,F1__World_Data!$A$4:$DP$191,73,FALSE)","v":52.781999999999996},{"$f":"VLOOKUP($A182,F1__World_Data!$A$4:$DP$191,72,FALSE)","v":52.323},{"$f":"VLOOKUP($A182,F1__World_Data!$A$4:$DP$191,71,FALSE)","v":51.837000000000003},{"$f":"VLOOKUP($A182,F1__World_Data!$A$4:$DP$191,70,FALSE)","v":51.326999999999998},{"$f":"VLOOKUP($A182,F1__World_Data!$A$4:$DP$191,69,FALSE)","v":50.795999999999999},{"$f":"VLOOKUP($A182,F1__World_Data!$A$4:$DP$191,68,FALSE)","v":50.25},{"$f":"VLOOKUP($A182,F1__World_Data!$A$4:$DP$191,67,FALSE)","v":49.697000000000003},{"$f":"VLOOKUP($A182,F1__World_Data!$A$4:$DP$191,66,FALSE)","v":49.145000000000003},{"$f":"VLOOKUP($A182,F1__World_Data!$A$4:$DP$191,65,FALSE)","v":48.600999999999999},{"$f":"VLOOKUP($A182,F1__World_Data!$A$4:$DP$191,64,FALSE)","v":48.070999999999998},{"$f":"VLOOKUP($A182,F1__World_Data!$A$4:$DP$191,63,FALSE)","v":47.557000000000002},{"$f":"VLOOKUP($A182,F1__World_Data!$A$4:$DP$191,62,FALSE)","v":47.061}]
["Liechtenstein",{"$f":"VLOOKUP($A183,F1__World_Data!$A$4:$DP$191,60,FALSE)","v":37.917999999999999},{"$f":"VLOOKUP($A183,F1__World_Data!$A$4:$DP$191,59,FALSE)","v":37.805},{"$f":"VLOOKUP($A183,F1__World_Data!$A$4:$DP$191,58,FALSE)","v":37.655000000000001},{"$f":"VLOOKUP($A183,F1__World_Data!$A$4:$DP$191,57,FALSE)","v":37.465000000000003},{"$f":"VLOOKUP($A183,F1__World_Data!$A$4:$DP$191,56,FALSE)","v":37.219000000000001},{"$f":"VLOOKUP($A183,F1__World_Data!$A$4:$DP$191,55,FALSE)","v":36.94},{"$f":"VLOOKUP($A183,F1__World_Data!$A$4:$DP$191,54,FALSE)","v":36.615000000000002},{"$f":"VLOOKUP($A183,F1__World_Data!$A$4:$DP$191,53,FALSE)","v":36.298999999999999},{"$f":"VLOOKUP($A183,F1__World_Data!$A$4:$DP$191,52,FALSE)","v":35.996000000000002},{"$f":"VLOOKUP($A183,F1__World_Data!$A$4:$DP$191,51,FALSE)","v":35.722999999999999},{"$f":"VLOOKUP($A183,F1__World_Data!$A$4:$DP$191,50,FALSE)","v":35.469000000000001},{"$f":"VLOOKUP($A183,F1__World_Data!$A$4:$DP$191,49,FALSE)","v":35.216999999999999},{"$f":"VLOOKUP($A183,F1__World_Data!$A$4:$DP$191,48,FALSE)","v":34.975000000000001},{"$f":"VLOOKUP($A183,F1__World_Data!$A$4:$DP$191,47,FALSE)","v":34.718000000000004},{"$f":"VLOOKUP($A183,F1__World_Data!$A$4:$DP$191,46,FALSE)","v":34.444000000000003},{"$f":"VLOOKUP($A183,F1__World_Data!$A$4:$DP$191,45,FALSE)","v":34.171999999999997},{"$f":"VLOOKUP($A183,F1__World_Data!$A$4:$DP$191,44,FALSE)","v":33.884999999999998},{"$f":"VLOOKUP($A183,F1__World_Data!$A$4:$DP$191,43,FALSE)","v":33.542999999999999},{"$f":"VLOOKUP($A183,F1__World_Data!$A$4:$DP$191,42,FALSE)","v":33.183999999999997},{"$f":"VLOOKUP($A183,F1__World_Data!$A$4:$DP$191,41,FALSE)","v":32.765000000000001},{"$f":"VLOOKUP($A183,F1__World_Data!$A$4:$DP$191,40,FALSE)","v":32.305999999999997},{"$f":"VLOOKUP($A183,F1__World_Data!$A$4:$DP$191,39,FALSE)","v":31.83},{"$f":"VLOOKUP($A183,F1__World_Data!$A$4:$DP$191,38,FALSE)","v":31.353999999999999},{"$f":"VLOOKUP($A183,F1__World_Data!$A$4:$DP$191,37,FALSE)","v":30.884},{"$f":"VLOOKUP($A183,F1__World_Data!$A$4:$DP$191,36,FALSE)","v":30.414999999999999},{"$f":"VLOOKUP($A183,F1__World_Data!$A$4:$DP$191,35,FALSE)","v":29.986999999999998},{"$f":"VLOOKUP($A183,F1__World_Data!$A$4:$DP$191,34,FALSE)","v":29.552},{"$f":"VLOOKUP($A183,F1__World_Data!$A$4:$DP$191,33,FALSE)","v":29.166},{"$f":"VLOOKUP($A183,F1__World_Data!$A$4:$DP$191,32,FALSE)","v":28.79},{"$f":"VLOOKUP($A183,F1__World_Data!$A$4:$DP$191,31,FALSE)","v":28.449000000000002},{"$f":"VLOOKUP($A183,F1__World_Data!$A$4:$DP$191,30,FALSE)","v":28.135000000000002},{"$f":"VLOOKUP($A183,F1__World_Data!$A$4:$DP$191,29,FALSE)","v":27.835000000000001},{"$f":"VLOOKUP($A183,F1__World_Data!$A$4:$DP$191,28,FALSE)","v":27.552},{"$f":"VLOOKUP($A183,F1__World_Data!$A$4:$DP$191,27,FALSE)","v":27.286000000000001},{"$f":"VLOOKUP($A183,F1__World_Data!$A$4:$DP$191,26,FALSE)","v":27.027999999999999},{"$f":"VLOOKUP($A183,F1__World_Data!$A$4:$DP$191,25,FALSE)","v":26.79},{"$f":"VLOOKUP($A183,F1__World_Data!$A$4:$DP$191,24,FALSE)","v":26.533000000000001},{"$f":"VLOOKUP($A183,F1__World_Data!$A$4:$DP$191,23,FALSE)","v":26.228999999999999},{"$f":"VLOOKUP($A183,F1__World_Data!$A$4:$DP$191,22,FALSE)","v":25.881},{"$f":"VLOOKUP($A183,F1__World_Data!$A$4:$DP$191,21,FALSE)","v":25.463000000000001},{"$f":"VLOOKUP($A183,F1__World_Data!$A$4:$DP$191,20,FALSE)","v":24.968},{"$f":"VLOOKUP($A183,F1__World_Data!$A$4:$DP$191,19,FALSE)","v":24.451000000000001},{"$f":"VLOOKUP($A183,F1__World_Data!$A$4:$DP$191,18,FALSE)","v":23.933},{"$f":"VLOOKUP($A183,F1__World_Data!$A$4:$DP$191,17,FALSE)","v":23.436},{"$f":"VLOOKUP($A183,F1__World_Data!$A$4:$DP$191,16,FALSE)","v":22.984999999999999},{"$f":"VLOOKUP($A183,F1__World_Data!$A$4:$DP$191,15,FALSE)","v":22.56},{"$f":"VLOOKUP($A183,F1__World_Data!$A$4:$DP$191,14,FALSE)","v":22.161000000000001},{"$f":"VLOOKUP($A183,F1__World_Data!$A$4:$DP$191,13,FALSE)","v":21.728999999999999},{"$f":"VLOOKUP($A183,F1__World_Data!$A$4:$DP$191,12,FALSE)","v":21.268000000000001},{"$f":"VLOOKUP($A183,F1__World_Data!$A$4:$DP$191,11,FALSE)","v":20.765999999999998},{"$f":"VLOOKUP($A183,F1__World_Data!$A$4:$DP$191,10,FALSE)","v":20.236999999999998},{"$f":"VLOOKUP($A183,F1__World_Data!$A$4:$DP$191,9,FALSE)","v":19.687999999999999},{"$f":"VLOOKUP($A183,F1__World_Data!$A$4:$DP$191,8,FALSE)","v":19.16},{"$f":"VLOOKUP($A183,F1__World_Data!$A$4:$DP$191,7,FALSE)","v":18.641999999999999},{"$f":"VLOOKUP($A183,F1__World_Data!$A$4:$DP$191,6,FALSE)","v":18.170000000000002},{"$f":"VLOOKUP($A183,F1__World_Data!$A$4:$DP$191,5,FALSE)","v":17.724},{"$f":"VLOOKUP($A183,F1__World_Data!$A$4:$DP$191,4,FALSE)","v":17.3},{"$f":"VLOOKUP($A183,F1__World_Data!$A$4:$DP$191,3,FALSE)","v":16.893999999999998},{"$f":"VLOOKUP($A183,F1__World_Data!$A$4:$DP$191,2,FALSE)","v":16.501000000000001},null,{"$f":"VLOOKUP($A183,F1__World_Data!$A$4:$DP$191,120,FALSE)","v":68.116},{"$f":"VLOOKUP($A183,F1__World_Data!$A$4:$DP$191,119,FALSE)","v":67.850999999999999},{"$f":"VLOOKUP($A183,F1__World_Data!$A$4:$DP$191,118,FALSE)","v":67.576999999999998},{"$f":"VLOOKUP($A183,F1__World_Data!$A$4:$DP$191,117,FALSE)","v":67.290999999999997},{"$f":"VLOOKUP($A183,F1__World_Data!$A$4:$DP$191,116,FALSE)","v":66.995000000000005},{"$f":"VLOOKUP($A183,F1__World_Data!$A$4:$DP$191,115,FALSE)","v":66.69},{"$f":"VLOOKUP($A183,F1__World_Data!$A$4:$DP$191,114,FALSE)","v":66.381},{"$f":"VLOOKUP($A183,F1__World_Data!$A$4:$DP$191,113,FALSE)","v":66.072000000000003},{"$f":"VLOOKUP($A183,F1__World_Data!$A$4:$DP$191,112,FALSE)","v":65.769000000000005},{"$f":"VLOOKUP($A183,F1__World_Data!$A$4:$DP$191,111,FALSE)","v":65.48},{"$f":"VLOOKUP($A183,F1__World_Data!$A$4:$DP$191,110,FALSE)","v":65.207999999999998},{"$f":"VLOOKUP($A183,F1__World_Data!$A$4:$DP$191,109,FALSE)","v":64.953000000000003},{"$f":"VLOOKUP($A183,F1__World_Data!$A$4:$DP$191,108,FALSE)","v":64.712000000000003},{"$f":"VLOOKUP($A183,F1__World_Data!$A$4:$DP$191,107,FALSE)","v":64.477999999999994},{"$f":"VLOOKUP($A183,F1__World_Data!$A$4:$DP$191,106,FALSE)","v":64.242000000000004},{"$f":"VLOOKUP($A183,F1__World_Data!$A$4:$DP$191,105,FALSE)","v":63.994999999999997},{"$f":"VLOOKUP($A183,F1__World_Data!$A$4:$DP$191,104,FALSE)","v":63.731000000000002},{"$f":"VLOOKUP($A183,F1__World_Data!$A$4:$DP$191,103,FALSE)","v":63.445999999999998},{"$f":"VLOOKUP($A183,F1__World_Data!$A$4:$DP$191,102,FALSE)","v":63.143999999999998},{"$f":"VLOOKUP($A183,F1__World_Data!$A$4:$DP$191,101,FALSE)","v":62.829000000000001},{"$f":"VLOOKUP($A183,F1__World_Data!$A$4:$DP$191,100,FALSE)","v":62.509},{"$f":"VLOOKUP($A183,F1__World_Data!$A$4:$DP$191,99,FALSE)","v":62.188000000000002},{"$f":"VLOOKUP($A183,F1__World_Data!$A$4:$DP$191,98,FALSE)","v":61.866},{"$f":"VLOOKUP($A183,F1__World_Data!$A$4:$DP$191,97,FALSE)","v":61.539000000000001},{"$f":"VLOOKUP($A183,F1__World_Data!$A$4:$DP$191,96,FALSE)","v":61.198},{"$f":"VLOOKUP($A183,F1__World_Data!$A$4:$DP$191,95,FALSE)","v":60.837000000000003},{"$f":"VLOOKUP($A183,F1__World_Data!$A$4:$DP$191,94,FALSE)","v":60.454999999999998},{"$f":"VLOOKUP($A183,F1__World_Data!$A$4:$DP$191,93,FALSE)","v":60.052999999999997},{"$f":"VLOOKUP($A183,F1__World_Data!$A$4:$DP$191,92,FALSE)","v":59.636000000000003},{"$f":"VLOOKUP($A183,F1__World_Data!$A$4:$DP$191,91,FALSE)","v":59.209000000000003},{"$f":"VLOOKUP($A183,F1__World_Data!$A$4:$DP$191,90,FALSE)","v":58.783000000000001},{"$f":"VLOOKUP($A183,F1__World_Data!$A$4:$DP$191,89,FALSE)","v":58.366},{"$f":"VLOOKUP($A183,F1__World_Data!$A$4:$DP$191,88,FALSE)","v":57.962000000000003},{"$f":"VLOOKUP($A183,F1__World_Data!$A$4:$DP$191,87,FALSE)","v":57.579000000000001},{"$f":"VLOOKUP($A183,F1__World_Data!$A$4:$DP$191,86,FALSE)","v":57.220999999999997},{"$f":"VLOOKUP($A183,F1__World_Data!$A$4:$DP$191,85,FALSE)","v":56.886000000000003},{"$f":"VLOOKUP($A183,F1__World_Data!$A$4:$DP$191,84,FALSE)","v":56.569000000000003},{"$f":"VLOOKUP($A183,F1__World_Data!$A$4:$DP$191,83,FALSE)","v":56.265999999999998},{"$f":"VLOOKUP($A183,F1__World_Data!$A$4:$DP$191,82,FALSE)","v":55.970999999999997},{"$f":"VLOOKUP($A183,F1__World_Data!$A$4:$DP$191,81,FALSE)","v":55.679000000000002},{"$f":"VLOOKUP($A183,F1__World_Data!$A$4:$DP$191,80,FALSE)","v":55.381999999999998},{"$f":"VLOOKUP($A183,F1__World_Data!$A$4:$DP$191,79,FALSE)","v":55.073999999999998},{"$f":"VLOOKUP($A183,F1__World_Data!$A$4:$DP$191,78,FALSE)","v":54.747999999999998},{"$f":"VLOOKUP($A183,F1__World_Data!$A$4:$DP$191,77,FALSE)","v":54.399000000000001},{"$f":"VLOOKUP($A183,F1__World_Data!$A$4:$DP$191,76,FALSE)","v":54.027000000000001},{"$f":"VLOOKUP($A183,F1__World_Data!$A$4:$DP$191,75,FALSE)","v":53.633000000000003},{"$f":"VLOOKUP($A183,F1__World_Data!$A$4:$DP$191,74,FALSE)","v":53.218000000000004},{"$f":"VLOOKUP($A183,F1__World_Data!$A$4:$DP$191,73,FALSE)","v":52.781999999999996},{"$f":"VLOOKUP($A183,F1__World_Data!$A$4:$DP$191,72,FALSE)","v":52.323},{"$f":"VLOOKUP($A183,F1__World_Data!$A$4:$DP$191,71,FALSE)","v":51.837000000000003},{"$f":"VLOOKUP($A183,F1__World_Data!$A$4:$DP$191,70,FALSE)","v":51.326999999999998},{"$f":"VLOOKUP($A183,F1__World_Data!$A$4:$DP$191,69,FALSE)","v":50.795999999999999},{"$f":"VLOOKUP($A183,F1__World_Data!$A$4:$DP$191,68,FALSE)","v":50.25},{"$f":"VLOOKUP($A183,F1__World_Data!$A$4:$DP$191,67,FALSE)","v":49.697000000000003},{"$f":"VLOOKUP($A183,F1__World_Data!$A$4:$DP$191,66,FALSE)","v":49.145000000000003},{"$f":"VLOOKUP($A183,F1__World_Data!$A$4:$DP$191,65,FALSE)","v":48.600999999999999},{"$f":"VLOOKUP($A183,F1__World_Data!$A$4:$DP$191,64,FALSE)","v":48.070999999999998},{"$f":"VLOOKUP($A183,F1__World_Data!$A$4:$DP$191,63,FALSE)","v":47.557000000000002},{"$f":"VLOOKUP($A183,F1__World_Data!$A$4:$DP$191,62,FALSE)","v":47.061}]
["San Marino",{"$f":"VLOOKUP($A184,F1__World_Data!$A$4:$DP$191,60,FALSE)","v":33.783999999999999},{"$f":"VLOOKUP($A184,F1__World_Data!$A$4:$DP$191,59,FALSE)","v":33.670999999999999},{"$f":"VLOOKUP($A184,F1__World_Data!$A$4:$DP$191,58,FALSE)","v":33.503},{"$f":"VLOOKUP($A184,F1__World_Data!$A$4:$DP$191,57,FALSE)","v":33.270000000000003},{"$f":"VLOOKUP($A184,F1__World_Data!$A$4:$DP$191,56,FALSE)","v":32.941000000000003},{"$f":"VLOOKUP($A184,F1__World_Data!$A$4:$DP$191,55,FALSE)","v":32.554000000000002},{"$f":"VLOOKUP($A184,F1__World_Data!$A$4:$DP$191,54,FALSE)","v":32.103000000000002},{"$f":"VLOOKUP($A184,F1__World_Data!$A$4:$DP$191,53,FALSE)","v":31.655000000000001},{"$f":"VLOOKUP($A184,F1__World_Data!$A$4:$DP$191,52,FALSE)","v":31.221},{"$f":"VLOOKUP($A184,F1__World_Data!$A$4:$DP$191,51,FALSE)","v":30.824999999999999},{"$f":"VLOOKUP($A184,F1__World_Data!$A$4:$DP$191,50,FALSE)","v":30.434000000000001},{"$f":"VLOOKUP($A184,F1__World_Data!$A$4:$DP$191,49,FALSE)","v":30.068000000000001},{"$f":"VLOOKUP($A184,F1__World_Data!$A$4:$DP$191,48,FALSE)","v":29.693999999999999},{"$f":"VLOOKUP($A184,F1__World_Data!$A$4:$DP$191,47,FALSE)","v":29.324000000000002},{"$f":"VLOOKUP($A184,F1__World_Data!$A$4:$DP$191,46,FALSE)","v":28.942},{"$f":"VLOOKUP($A184,F1__World_Data!$A$4:$DP$191,45,FALSE)","v":28.561},{"$f":"VLOOKUP($A184,F1__World_Data!$A$4:$DP$191,44,FALSE)","v":28.175000000000001},{"$f":"VLOOKUP($A184,F1__World_Data!$A$4:$DP$191,43,FALSE)","v":27.818000000000001},{"$f":"VLOOKUP($A184,F1__World_Data!$A$4:$DP$191,42,FALSE)","v":27.46},{"$f":"VLOOKUP($A184,F1__World_Data!$A$4:$DP$191,41,FALSE)","v":27.140999999999998},{"$f":"VLOOKUP($A184,F1__World_Data!$A$4:$DP$191,40,FALSE)","v":26.850999999999999},{"$f":"VLOOKUP($A184,F1__World_Data!$A$4:$DP$191,39,FALSE)","v":26.562999999999999},{"$f":"VLOOKUP($A184,F1__World_Data!$A$4:$DP$191,38,FALSE)","v":26.253},{"$f":"VLOOKUP($A184,F1__World_Data!$A$4:$DP$191,37,FALSE)","v":25.925000000000001},{"$f":"VLOOKUP($A184,F1__World_Data!$A$4:$DP$191,36,FALSE)","v":25.588000000000001},{"$f":"VLOOKUP($A184,F1__World_Data!$A$4:$DP$191,35,FALSE)","v":25.207999999999998},{"$f":"VLOOKUP($A184,F1__World_Data!$A$4:$DP$191,34,FALSE)","v":24.83},{"$f":"VLOOKUP($A184,F1__World_Data!$A$4:$DP$191,33,FALSE)","v":24.454000000000001},{"$f":"VLOOKUP($A184,F1__World_Data!$A$4:$DP$191,32,FALSE)","v":24.123999999999999},{"$f":"VLOOKUP($A184,F1__World_Data!$A$4:$DP$191,31,FALSE)","v":23.832999999999998},{"$f":"VLOOKUP($A184,F1__World_Data!$A$4:$DP$191,30,FALSE)","v":23.547999999999998},{"$f":"VLOOKUP($A184,F1__World_Data!$A$4:$DP$191,29,FALSE)","v":23.297000000000001},{"$f":"VLOOKUP($A184,F1__World_Data!$A$4:$DP$191,28,FALSE)","v":23.045999999999999},{"$f":"VLOOKUP($A184,F1__World_Data!$A$4:$DP$191,27,FALSE)","v":22.794},{"$f":"VLOOKUP($A184,F1__World_Data!$A$4:$DP$191,26,FALSE)","v":22.545999999999999},{"$f":"VLOOKUP($A184,F1__World_Data!$A$4:$DP$191,25,FALSE)","v":22.295000000000002},{"$f":"VLOOKUP($A184,F1__World_Data!$A$4:$DP$191,24,FALSE)","v":22.042999999999999},{"$f":"VLOOKUP($A184,F1__World_Data!$A$4:$DP$191,23,FALSE)","v":21.760999999999999},{"$f":"VLOOKUP($A184,F1__World_Data!$A$4:$DP$191,22,FALSE)","v":21.452999999999999},{"$f":"VLOOKUP($A184,F1__World_Data!$A$4:$DP$191,21,FALSE)","v":21.122},{"$f":"VLOOKUP($A184,F1__World_Data!$A$4:$DP$191,20,FALSE)","v":20.763999999999999},{"$f":"VLOOKUP($A184,F1__World_Data!$A$4:$DP$191,19,FALSE)","v":20.396999999999998},{"$f":"VLOOKUP($A184,F1__World_Data!$A$4:$DP$191,18,FALSE)","v":20.085999999999999},{"$f":"VLOOKUP($A184,F1__World_Data!$A$4:$DP$191,17,FALSE)","v":19.829000000000001},{"$f":"VLOOKUP($A184,F1__World_Data!$A$4:$DP$191,16,FALSE)","v":19.661000000000001},{"$f":"VLOOKUP($A184,F1__World_Data!$A$4:$DP$191,15,FALSE)","v":19.561},{"$f":"VLOOKUP($A184,F1__World_Data!$A$4:$DP$191,14,FALSE)","v":19.489999999999998},{"$f":"VLOOKUP($A184,F1__World_Data!$A$4:$DP$191,13,FALSE)","v":19.393000000000001},{"$f":"VLOOKUP($A184,F1__World_Data!$A$4:$DP$191,12,FALSE)","v":19.224},{"$f":"VLOOKUP($A184,F1__World_Data!$A$4:$DP$191,11,FALSE)","v":18.98},{"$f":"VLOOKUP($A184,F1__World_Data!$A$4:$DP$191,10,FALSE)","v":18.667999999999999},{"$f":"VLOOKUP($A184,F1__World_Data!$A$4:$DP$191,9,FALSE)","v":18.309000000000001},{"$f":"VLOOKUP($A184,F1__World_Data!$A$4:$DP$191,8,FALSE)","v":17.919},{"$f":"VLOOKUP($A184,F1__World_Data!$A$4:$DP$191,7,FALSE)","v":17.507999999999999},{"$f":"VLOOKUP($A184,F1__World_Data!$A$4:$DP$191,6,FALSE)","v":17.100999999999999},{"$f":"VLOOKUP($A184,F1__World_Data!$A$4:$DP$191,5,FALSE)","v":16.669},{"$f":"VLOOKUP($A184,F1__World_Data!$A$4:$DP$191,4,FALSE)","v":16.254999999999999},{"$f":"VLOOKUP($A184,F1__World_Data!$A$4:$DP$191,3,FALSE)","v":15.836},{"$f":"VLOOKUP($A184,F1__World_Data!$A$4:$DP$191,2,FALSE)","v":15.44},null,{"$f":"VLOOKUP($A184,F1__World_Data!$A$4:$DP$191,120,FALSE)","v":68.116},{"$f":"VLOOKUP($A184,F1__World_Data!$A$4:$DP$191,119,FALSE)","v":67.850999999999999},{"$f":"VLOOKUP($A184,F1__World_Data!$A$4:$DP$191,118,FALSE)","v":67.576999999999998},{"$f":"VLOOKUP($A184,F1__World_Data!$A$4:$DP$191,117,FALSE)","v":67.290999999999997},{"$f":"VLOOKUP($A184,F1__World_Data!$A$4:$DP$191,116,FALSE)","v":66.995000000000005},{"$f":"VLOOKUP($A184,F1__World_Data!$A$4:$DP$191,115,FALSE)","v":66.69},{"$f":"VLOOKUP($A184,F1__World_Data!$A$4:$DP$191,114,FALSE)","v":66.381},{"$f":"VLOOKUP($A184,F1__World_Data!$A$4:$DP$191,113,FALSE)","v":66.072000000000003},{"$f":"VLOOKUP($A184,F1__World_Data!$A$4:$DP$191,112,FALSE)","v":65.769000000000005},{"$f":"VLOOKUP($A184,F1__World_Data!$A$4:$DP$191,111,FALSE)","v":65.48},{"$f":"VLOOKUP($A184,F1__World_Data!$A$4:$DP$191,110,FALSE)","v":65.207999999999998},{"$f":"VLOOKUP($A184,F1__World_Data!$A$4:$DP$191,109,FALSE)","v":64.953000000000003},{"$f":"VLOOKUP($A184,F1__World_Data!$A$4:$DP$191,108,FALSE)","v":64.712000000000003},{"$f":"VLOOKUP($A184,F1__World_Data!$A$4:$DP$191,107,FALSE)","v":64.477999999999994},{"$f":"VLOOKUP($A184,F1__World_Data!$A$4:$DP$191,106,FALSE)","v":64.242000000000004},{"$f":"VLOOKUP($A184,F1__World_Data!$A$4:$DP$191,105,FALSE)","v":63.994999999999997},{"$f":"VLOOKUP($A184,F1__World_Data!$A$4:$DP$191,104,FALSE)","v":63.731000000000002},{"$f":"VLOOKUP($A184,F1__World_Data!$A$4:$DP$191,103,FALSE)","v":63.445999999999998},{"$f":"VLOOKUP($A184,F1__World_Data!$A$4:$DP$191,102,FALSE)","v":63.143999999999998},{"$f":"VLOOKUP($A184,F1__World_Data!$A$4:$DP$191,101,FALSE)","v":62.829000000000001},{"$f":"VLOOKUP($A184,F1__World_Data!$A$4:$DP$191,100,FALSE)","v":62.509},{"$f":"VLOOKUP($A184,F1__World_Data!$A$4:$DP$191,99,FALSE)","v":62.188000000000002},{"$f":"VLOOKUP($A184,F1__World_Data!$A$4:$DP$191,98,FALSE)","v":61.866},{"$f":"VLOOKUP($A184,F1__World_Data!$A$4:$DP$191,97,FALSE)","v":61.539000000000001},{"$f":"VLOOKUP($A184,F1__World_Data!$A$4:$DP$191,96,FALSE)","v":61.198},{"$f":"VLOOKUP($A184,F1__World_Data!$A$4:$DP$191,95,FALSE)","v":60.837000000000003},{"$f":"VLOOKUP($A184,F1__World_Data!$A$4:$DP$191,94,FALSE)","v":60.454999999999998},{"$f":"VLOOKUP($A184,F1__World_Data!$A$4:$DP$191,93,FALSE)","v":60.052999999999997},{"$f":"VLOOKUP($A184,F1__World_Data!$A$4:$DP$191,92,FALSE)","v":59.636000000000003},{"$f":"VLOOKUP($A184,F1__World_Data!$A$4:$DP$191,91,FALSE)","v":59.209000000000003},{"$f":"VLOOKUP($A184,F1__World_Data!$A$4:$DP$191,90,FALSE)","v":58.783000000000001},{"$f":"VLOOKUP($A184,F1__World_Data!$A$4:$DP$191,89,FALSE)","v":58.366},{"$f":"VLOOKUP($A184,F1__World_Data!$A$4:$DP$191,88,FALSE)","v":57.962000000000003},{"$f":"VLOOKUP($A184,F1__World_Data!$A$4:$DP$191,87,FALSE)","v":57.579000000000001},{"$f":"VLOOKUP($A184,F1__World_Data!$A$4:$DP$191,86,FALSE)","v":57.220999999999997},{"$f":"VLOOKUP($A184,F1__World_Data!$A$4:$DP$191,85,FALSE)","v":56.886000000000003},{"$f":"VLOOKUP($A184,F1__World_Data!$A$4:$DP$191,84,FALSE)","v":56.569000000000003},{"$f":"VLOOKUP($A184,F1__World_Data!$A$4:$DP$191,83,FALSE)","v":56.265999999999998},{"$f":"VLOOKUP($A184,F1__World_Data!$A$4:$DP$191,82,FALSE)","v":55.970999999999997},{"$f":"VLOOKUP($A184,F1__World_Data!$A$4:$DP$191,81,FALSE)","v":55.679000000000002},{"$f":"VLOOKUP($A184,F1__World_Data!$A$4:$DP$191,80,FALSE)","v":55.381999999999998},{"$f":"VLOOKUP($A184,F1__World_Data!$A$4:$DP$191,79,FALSE)","v":55.073999999999998},{"$f":"VLOOKUP($A184,F1__World_Data!$A$4:$DP$191,78,FALSE)","v":54.747999999999998},{"$f":"VLOOKUP($A184,F1__World_Data!$A$4:$DP$191,77,FALSE)","v":54.399000000000001},{"$f":"VLOOKUP($A184,F1__World_Data!$A$4:$DP$191,76,FALSE)","v":54.027000000000001},{"$f":"VLOOKUP($A184,F1__World_Data!$A$4:$DP$191,75,FALSE)","v":53.633000000000003},{"$f":"VLOOKUP($A184,F1__World_Data!$A$4:$DP$191,74,FALSE)","v":53.218000000000004},{"$f":"VLOOKUP($A184,F1__World_Data!$A$4:$DP$191,73,FALSE)","v":52.781999999999996},{"$f":"VLOOKUP($A184,F1__World_Data!$A$4:$DP$191,72,FALSE)","v":52.323},{"$f":"VLOOKUP($A184,F1__World_Data!$A$4:$DP$191,71,FALSE)","v":51.837000000000003},{"$f":"VLOOKUP($A184,F1__World_Data!$A$4:$DP$191,70,FALSE)","v":51.326999999999998},{"$f":"VLOOKUP($A184,F1__World_Data!$A$4:$DP$191,69,FALSE)","v":50.795999999999999},{"$f":"VLOOKUP($A184,F1__World_Data!$A$4:$DP$191,68,FALSE)","v":50.25},{"$f":"VLOOKUP($A184,F1__World_Data!$A$4:$DP$191,67,FALSE)","v":49.697000000000003},{"$f":"VLOOKUP($A184,F1__World_Data!$A$4:$DP$191,66,FALSE)","v":49.145000000000003},{"$f":"VLOOKUP($A184,F1__World_Data!$A$4:$DP$191,65,FALSE)","v":48.600999999999999},{"$f":"VLOOKUP($A184,F1__World_Data!$A$4:$DP$191,64,FALSE)","v":48.070999999999998},{"$f":"VLOOKUP($A184,F1__World_Data!$A$4:$DP$191,63,FALSE)","v":47.557000000000002},{"$f":"VLOOKUP($A184,F1__World_Data!$A$4:$DP$191,62,FALSE)","v":47.061}]
["Gibraltar",{"$f":"VLOOKUP($A185,F1__World_Data!$A$4:$DP$191,60,FALSE)","v":33.715000000000003},{"$f":"VLOOKUP($A185,F1__World_Data!$A$4:$DP$191,59,FALSE)","v":33.722999999999999},{"$f":"VLOOKUP($A185,F1__World_Data!$A$4:$DP$191,58,FALSE)","v":33.738},{"$f":"VLOOKUP($A185,F1__World_Data!$A$4:$DP$191,57,FALSE)","v":33.741999999999997},{"$f":"VLOOKUP($A185,F1__World_Data!$A$4:$DP$191,56,FALSE)","v":33.725999999999999},{"$f":"VLOOKUP($A185,F1__World_Data!$A$4:$DP$191,55,FALSE)","v":33.694000000000003},{"$f":"VLOOKUP($A185,F1__World_Data!$A$4:$DP$191,54,FALSE)","v":33.652999999999999},{"$f":"VLOOKUP($A185,F1__World_Data!$A$4:$DP$191,53,FALSE)","v":33.607999999999997},{"$f":"VLOOKUP($A185,F1__World_Data!$A$4:$DP$191,52,FALSE)","v":33.585000000000001},{"$f":"VLOOKUP($A185,F1__World_Data!$A$4:$DP$191,51,FALSE)","v":33.561999999999998},{"$f":"VLOOKUP($A185,F1__World_Data!$A$4:$DP$191,50,FALSE)","v":33.57},{"$f":"VLOOKUP($A185,F1__World_Data!$A$4:$DP$191,49,FALSE)","v":33.524000000000001},{"$f":"VLOOKUP($A185,F1__World_Data!$A$4:$DP$191,48,FALSE)","v":33.42},{"$f":"VLOOKUP($A185,F1__World_Data!$A$4:$DP$191,47,FALSE)","v":33.222000000000001},{"$f":"VLOOKUP($A185,F1__World_Data!$A$4:$DP$191,46,FALSE)","v":32.93},{"$f":"VLOOKUP($A185,F1__World_Data!$A$4:$DP$191,45,FALSE)","v":32.555999999999997},{"$f":"VLOOKUP($A185,F1__World_Data!$A$4:$DP$191,44,FALSE)","v":32.097000000000001},{"$f":"VLOOKUP($A185,F1__World_Data!$A$4:$DP$191,43,FALSE)","v":31.603999999999999},{"$f":"VLOOKUP($A185,F1__World_Data!$A$4:$DP$191,42,FALSE)","v":31.081},{"$f":"VLOOKUP($A185,F1__World_Data!$A$4:$DP$191,41,FALSE)","v":30.526},{"$f":"VLOOKUP($A185,F1__World_Data!$A$4:$DP$191,40,FALSE)","v":29.945},{"$f":"VLOOKUP($A185,F1__World_Data!$A$4:$DP$191,39,FALSE)","v":29.404},{"$f":"VLOOKUP($A185,F1__World_Data!$A$4:$DP$191,38,FALSE)","v":28.97},{"$f":"VLOOKUP($A185,F1__World_Data!$A$4:$DP$191,37,FALSE)","v":28.687999999999999},{"$f":"VLOOKUP($A185,F1__World_Data!$A$4:$DP$191,36,FALSE)","v":28.605},{"$f":"VLOOKUP($A185,F1__World_Data!$A$4:$DP$191,35,FALSE)","v":28.68},{"$f":"VLOOKUP($A185,F1__World_Data!$A$4:$DP$191,34,FALSE)","v":28.844000000000001},{"$f":"VLOOKUP($A185,F1__World_Data!$A$4:$DP$191,33,FALSE)","v":29.021000000000001},{"$f":"VLOOKUP($A185,F1__World_Data!$A$4:$DP$191,32,FALSE)","v":29.149000000000001},{"$f":"VLOOKUP($A185,F1__World_Data!$A$4:$DP$191,31,FALSE)","v":29.187000000000001},{"$f":"VLOOKUP($A185,F1__World_Data!$A$4:$DP$191,30,FALSE)","v":29.164000000000001},{"$f":"VLOOKUP($A185,F1__World_Data!$A$4:$DP$191,29,FALSE)","v":29.114000000000001},{"$f":"VLOOKUP($A185,F1__World_Data!$A$4:$DP$191,28,FALSE)","v":29.096},{"$f":"VLOOKUP($A185,F1__World_Data!$A$4:$DP$191,27,FALSE)","v":29.151},{"$f":"VLOOKUP($A185,F1__World_Data!$A$4:$DP$191,26,FALSE)","v":29.283999999999999},{"$f":"VLOOKUP($A185,F1__World_Data!$A$4:$DP$191,25,FALSE)","v":29.481000000000002},{"$f":"VLOOKUP($A185,F1__World_Data!$A$4:$DP$191,24,FALSE)","v":29.698},{"$f":"VLOOKUP($A185,F1__World_Data!$A$4:$DP$191,23,FALSE)","v":29.902000000000001},{"$f":"VLOOKUP($A185,F1__World_Data!$A$4:$DP$191,22,FALSE)","v":30.068000000000001},{"$f":"VLOOKUP($A185,F1__World_Data!$A$4:$DP$191,21,FALSE)","v":30.172000000000001},{"$f":"VLOOKUP($A185,F1__World_Data!$A$4:$DP$191,20,FALSE)","v":30.224},{"$f":"VLOOKUP($A185,F1__World_Data!$A$4:$DP$191,19,FALSE)","v":30.228000000000002},{"$f":"VLOOKUP($A185,F1__World_Data!$A$4:$DP$191,18,FALSE)","v":30.178999999999998},{"$f":"VLOOKUP($A185,F1__World_Data!$A$4:$DP$191,17,FALSE)","v":30.062000000000001},{"$f":"VLOOKUP($A185,F1__World_Data!$A$4:$DP$191,16,FALSE)","v":29.885999999999999},{"$f":"VLOOKUP($A185,F1__World_Data!$A$4:$DP$191,15,FALSE)","v":29.657},{"$f":"VLOOKUP($A185,F1__World_Data!$A$4:$DP$191,14,FALSE)","v":29.353000000000002},{"$f":"VLOOKUP($A185,F1__World_Data!$A$4:$DP$191,13,FALSE)","v":29.007000000000001},{"$f":"VLOOKUP($A185,F1__World_Data!$A$4:$DP$191,12,FALSE)","v":28.600999999999999},{"$f":"VLOOKUP($A185,F1__World_Data!$A$4:$DP$191,11,FALSE)","v":28.164999999999999},{"$f":"VLOOKUP($A185,F1__World_Data!$A$4:$DP$191,10,FALSE)","v":27.693000000000001},{"$f":"VLOOKUP($A185,F1__World_Data!$A$4:$DP$191,9,FALSE)","v":27.172000000000001},{"$f":"VLOOKUP($A185,F1__World_Data!$A$4:$DP$191,8,FALSE)","v":26.631},{"$f":"VLOOKUP($A185,F1__World_Data!$A$4:$DP$191,7,FALSE)","v":26.079000000000001},{"$f":"VLOOKUP($A185,F1__World_Data!$A$4:$DP$191,6,FALSE)","v":25.478000000000002},{"$f":"VLOOKUP($A185,F1__World_Data!$A$4:$DP$191,5,FALSE)","v":24.888999999999999},{"$f":"VLOOKUP($A185,F1__World_Data!$A$4:$DP$191,4,FALSE)","v":24.306999999999999},{"$f":"VLOOKUP($A185,F1__World_Data!$A$4:$DP$191,3,FALSE)","v":23.808},{"$f":"VLOOKUP($A185,F1__World_Data!$A$4:$DP$191,2,FALSE)","v":23.42},null,{"$f":"VLOOKUP($A185,F1__World_Data!$A$4:$DP$191,120,FALSE)","v":82.548780487804891},{"$f":"VLOOKUP($A185,F1__World_Data!$A$4:$DP$191,119,FALSE)","v":82.29756097560977},{"$f":"VLOOKUP($A185,F1__World_Data!$A$4:$DP$191,118,FALSE)","v":82.046341463414635},{"$f":"VLOOKUP($A185,F1__World_Data!$A$4:$DP$191,117,FALSE)","v":81.795121951219528},{"$f":"VLOOKUP($A185,F1__World_Data!$A$4:$DP$191,116,FALSE)","v":81.592682926829269},{"$f":"VLOOKUP($A185,F1__World_Data!$A$4:$DP$191,115,FALSE)","v":81.341463414634148},{"$f":"VLOOKUP($A185,F1__World_Data!$A$4:$DP$191,114,FALSE)","v":81.090243902439042},{"$f":"VLOOKUP($A185,F1__World_Data!$A$4:$DP$191,113,FALSE)","v":80.839024390243921},{"$f":"VLOOKUP($A185,F1__World_Data!$A$4:$DP$191,112,FALSE)","v":80.587804878048786},{"$f":"VLOOKUP($A185,F1__World_Data!$A$4:$DP$191,111,FALSE)","v":80.387804878048797},{"$f":"VLOOKUP($A185,F1__World_Data!$A$4:$DP$191,110,FALSE)","v":80.139024390243918},{"$f":"VLOOKUP($A185,F1__World_Data!$A$4:$DP$191,109,FALSE)","v":79.890243902439039},{"$f":"VLOOKUP($A185,F1__World_Data!$A$4:$DP$191,108,FALSE)","v":79.690243902439036},{"$f":"VLOOKUP($A185,F1__World_Data!$A$4:$DP$191,107,FALSE)","v":79.441463414634157},{"$f":"VLOOKUP($A185,F1__World_Data!$A$4:$DP$191,106,FALSE)","v":79.190243902439036},{"$f":"VLOOKUP($A185,F1__World_Data!$A$4:$DP$191,105,FALSE)","v":78.990243902439033},{"$f":"VLOOKUP($A185,F1__World_Data!$A$4:$DP$191,104,FALSE)","v":78.787804878048775},{"$f":"VLOOKUP($A185,F1__World_Data!$A$4:$DP$191,103,FALSE)","v":78.636585365853662},{"$f":"VLOOKUP($A185,F1__World_Data!$A$4:$DP$191,102,FALSE)","v":78.434146341463432},{"$f":"VLOOKUP($A185,F1__World_Data!$A$4:$DP$191,101,FALSE)","v":78.280487804878064},{"$f":"VLOOKUP($A185,F1__World_Data!$A$4:$DP$191,100,FALSE)","v":78.026829268292687},{"$f":"VLOOKUP($A185,F1__World_Data!$A$4:$DP$191,99,FALSE)","v":77.824390243902457},{"$f":"VLOOKUP($A185,F1__World_Data!$A$4:$DP$191,98,FALSE)","v":77.57073170731708},{"$f":"VLOOKUP($A185,F1__World_Data!$A$4:$DP$191,97,FALSE)","v":77.368292682926835},{"$f":"VLOOKUP($A185,F1__World_Data!$A$4:$DP$191,96,FALSE)","v":77.065853658536597},{"$f":"VLOOKUP($A185,F1__World_Data!$A$4:$DP$191,95,FALSE)","v":76.81463414634149},{"$f":"VLOOKUP($A185,F1__World_Data!$A$4:$DP$191,94,FALSE)","v":76.614634146341473},{"$f":"VLOOKUP($A185,F1__World_Data!$A$4:$DP$191,93,FALSE)","v":76.41463414634147},{"$f":"VLOOKUP($A185,F1__World_Data!$A$4:$DP$191,92,FALSE)","v":76.114634146341487},{"$f":"VLOOKUP($A185,F1__World_Data!$A$4:$DP$191,91,FALSE)","v":75.91463414634147},{"$f":"VLOOKUP($A185,F1__World_Data!$A$4:$DP$191,90,FALSE)","v":75.714634146341467},{"$f":"VLOOKUP($A185,F1__World_Data!$A$4:$DP$191,89,FALSE)","v":75.465853658536588},{"$f":"VLOOKUP($A185,F1__World_Data!$A$4:$DP$191,88,FALSE)","v":75.214634146341467},{"$f":"VLOOKUP($A185,F1__World_Data!$A$4:$DP$191,87,FALSE)","v":0},{"$f":"VLOOKUP($A185,F1__World_Data!$A$4:$DP$191,86,FALSE)","v":0},{"$f":"VLOOKUP($A185,F1__World_Data!$A$4:$DP$191,85,FALSE)","v":0},{"$f":"VLOOKUP($A185,F1__World_Data!$A$4:$DP$191,84,FALSE)","v":0},{"$f":"VLOOKUP($A185,F1__World_Data!$A$4:$DP$191,83,FALSE)","v":0},{"$f":"VLOOKUP($A185,F1__World_Data!$A$4:$DP$191,82,FALSE)","v":0},{"$f":"VLOOKUP($A185,F1__World_Data!$A$4:$DP$191,81,FALSE)","v":0},{"$f":"VLOOKUP($A185,F1__World_Data!$A$4:$DP$191,80,FALSE)","v":75.98536585365855},{"$f":"VLOOKUP($A185,F1__World_Data!$A$4:$DP$191,79,FALSE)","v":0},{"$f":"VLOOKUP($A185,F1__World_Data!$A$4:$DP$191,78,FALSE)","v":0},{"$f":"VLOOKUP($A185,F1__World_Data!$A$4:$DP$191,77,FALSE)","v":0},{"$f":"VLOOKUP($A185,F1__World_Data!$A$4:$DP$191,76,FALSE)","v":0},{"$f":"VLOOKUP($A185,F1__World_Data!$A$4:$DP$191,75,FALSE)","v":74.497560975609773},{"$f":"VLOOKUP($A185,F1__World_Data!$A$4:$DP$191,74,FALSE)","v":0},{"$f":"VLOOKUP($A185,F1__World_Data!$A$4:$DP$191,73,FALSE)","v":0},{"$f":"VLOOKUP($A185,F1__World_Data!$A$4:$DP$191,72,FALSE)","v":0},{"$f":"VLOOKUP($A185,F1__World_Data!$A$4:$DP$191,71,FALSE)","v":0},{"$f":"VLOOKUP($A185,F1__World_Data!$A$4:$DP$191,70,FALSE)","v":0},{"$f":"VLOOKUP($A185,F1__World_Data!$A$4:$DP$191,69,FALSE)","v":0},{"$f":"VLOOKUP($A185,F1__World_Data!$A$4:$DP$191,68,FALSE)","v":0},{"$f":"VLOOKUP($A185,F1__World_Data!$A$4:$DP$191,67,FALSE)","v":0},{"$f":"VLOOKUP($A185,F1__World_Data!$A$4:$DP$191,66,FALSE)","v":0},{"$f":"VLOOKUP($A185,F1__World_Data!$A$4:$DP$191,65,FALSE)","v":0},{"$f":"VLOOKUP($A185,F1__World_Data!$A$4:$DP$191,64,FALSE)","v":0},{"$f":"VLOOKUP($A185,F1__World_Data!$A$4:$DP$191,63,FALSE)","v":0},{"$f":"VLOOKUP($A185,F1__World_Data!$A$4:$DP$191,62,FALSE)","v":0}]
["Palau",{"$f":"VLOOKUP($A186,F1__World_Data!$A$4:$DP$191,60,FALSE)","v":17.911000000000001},{"$f":"VLOOKUP($A186,F1__World_Data!$A$4:$DP$191,59,FALSE)","v":17.809000000000001},{"$f":"VLOOKUP($A186,F1__World_Data!$A$4:$DP$191,58,FALSE)","v":17.718},{"$f":"VLOOKUP($A186,F1__World_Data!$A$4:$DP$191,57,FALSE)","v":17.664999999999999},{"$f":"VLOOKUP($A186,F1__World_Data!$A$4:$DP$191,56,FALSE)","v":17.625},{"$f":"VLOOKUP($A186,F1__World_Data!$A$4:$DP$191,55,FALSE)","v":17.603000000000002},{"$f":"VLOOKUP($A186,F1__World_Data!$A$4:$DP$191,54,FALSE)","v":17.635000000000002},{"$f":"VLOOKUP($A186,F1__World_Data!$A$4:$DP$191,53,FALSE)","v":17.748000000000001},{"$f":"VLOOKUP($A186,F1__World_Data!$A$4:$DP$191,52,FALSE)","v":17.954000000000001},{"$f":"VLOOKUP($A186,F1__World_Data!$A$4:$DP$191,51,FALSE)","v":18.29},{"$f":"VLOOKUP($A186,F1__World_Data!$A$4:$DP$191,50,FALSE)","v":18.707999999999998},{"$f":"VLOOKUP($A186,F1__World_Data!$A$4:$DP$191,49,FALSE)","v":19.158999999999999},{"$f":"VLOOKUP($A186,F1__World_Data!$A$4:$DP$191,48,FALSE)","v":19.545000000000002},{"$f":"VLOOKUP($A186,F1__World_Data!$A$4:$DP$191,47,FALSE)","v":19.783999999999999},{"$f":"VLOOKUP($A186,F1__World_Data!$A$4:$DP$191,46,FALSE)","v":19.861000000000001},{"$f":"VLOOKUP($A186,F1__World_Data!$A$4:$DP$191,45,FALSE)","v":19.812000000000001},{"$f":"VLOOKUP($A186,F1__World_Data!$A$4:$DP$191,44,FALSE)","v":19.641999999999999},{"$f":"VLOOKUP($A186,F1__World_Data!$A$4:$DP$191,43,FALSE)","v":19.39},{"$f":"VLOOKUP($A186,F1__World_Data!$A$4:$DP$191,42,FALSE)","v":19.103999999999999},{"$f":"VLOOKUP($A186,F1__World_Data!$A$4:$DP$191,41,FALSE)","v":18.773},{"$f":"VLOOKUP($A186,F1__World_Data!$A$4:$DP$191,40,FALSE)","v":18.408999999999999},{"$f":"VLOOKUP($A186,F1__World_Data!$A$4:$DP$191,39,FALSE)","v":18.015999999999998},{"$f":"VLOOKUP($A186,F1__World_Data!$A$4:$DP$191,38,FALSE)","v":17.599},{"$f":"VLOOKUP($A186,F1__World_Data!$A$4:$DP$191,37,FALSE)","v":17.158000000000001},{"$f":"VLOOKUP($A186,F1__World_Data!$A$4:$DP$191,36,FALSE)","v":16.734999999999999},{"$f":"VLOOKUP($A186,F1__World_Data!$A$4:$DP$191,35,FALSE)","v":16.285},{"$f":"VLOOKUP($A186,F1__World_Data!$A$4:$DP$191,34,FALSE)","v":15.859},{"$f":"VLOOKUP($A186,F1__World_Data!$A$4:$DP$191,33,FALSE)","v":15.442},{"$f":"VLOOKUP($A186,F1__World_Data!$A$4:$DP$191,32,FALSE)","v":15.063000000000001},{"$f":"VLOOKUP($A186,F1__World_Data!$A$4:$DP$191,31,FALSE)","v":14.704000000000001},{"$f":"VLOOKUP($A186,F1__World_Data!$A$4:$DP$191,30,FALSE)","v":14.4},{"$f":"VLOOKUP($A186,F1__World_Data!$A$4:$DP$191,29,FALSE)","v":14.121},{"$f":"VLOOKUP($A186,F1__World_Data!$A$4:$DP$191,28,FALSE)","v":13.835000000000001},{"$f":"VLOOKUP($A186,F1__World_Data!$A$4:$DP$191,27,FALSE)","v":13.534000000000001},{"$f":"VLOOKUP($A186,F1__World_Data!$A$4:$DP$191,26,FALSE)","v":13.19},{"$f":"VLOOKUP($A186,F1__World_Data!$A$4:$DP$191,25,FALSE)","v":12.842000000000001},{"$f":"VLOOKUP($A186,F1__World_Data!$A$4:$DP$191,24,FALSE)","v":12.519},{"$f":"VLOOKUP($A186,F1__World_Data!$A$4:$DP$191,23,FALSE)","v":12.281000000000001},{"$f":"VLOOKUP($A186,F1__World_Data!$A$4:$DP$191,22,FALSE)","v":12.178000000000001},{"$f":"VLOOKUP($A186,F1__World_Data!$A$4:$DP$191,21,FALSE)","v":12.231},{"$f":"VLOOKUP($A186,F1__World_Data!$A$4:$DP$191,20,FALSE)","v":12.409000000000001},{"$f":"VLOOKUP($A186,F1__World_Data!$A$4:$DP$191,19,FALSE)","v":12.646000000000001},{"$f":"VLOOKUP($A186,F1__World_Data!$A$4:$DP$191,18,FALSE)","v":12.835000000000001},{"$f":"VLOOKUP($A186,F1__World_Data!$A$4:$DP$191,17,FALSE)","v":12.898},{"$f":"VLOOKUP($A186,F1__World_Data!$A$4:$DP$191,16,FALSE)","v":12.823},{"$f":"VLOOKUP($A186,F1__World_Data!$A$4:$DP$191,15,FALSE)","v":12.625},{"$f":"VLOOKUP($A186,F1__World_Data!$A$4:$DP$191,14,FALSE)","v":12.342000000000001},{"$f":"VLOOKUP($A186,F1__World_Data!$A$4:$DP$191,13,FALSE)","v":12.051},{"$f":"VLOOKUP($A186,F1__World_Data!$A$4:$DP$191,12,FALSE)","v":11.803000000000001},{"$f":"VLOOKUP($A186,F1__World_Data!$A$4:$DP$191,11,FALSE)","v":11.617000000000001},{"$f":"VLOOKUP($A186,F1__World_Data!$A$4:$DP$191,10,FALSE)","v":11.46},{"$f":"VLOOKUP($A186,F1__World_Data!$A$4:$DP$191,9,FALSE)","v":11.329000000000001},{"$f":"VLOOKUP($A186,F1__World_Data!$A$4:$DP$191,8,FALSE)","v":11.178000000000001},{"$f":"VLOOKUP($A186,F1__World_Data!$A$4:$DP$191,7,FALSE)","v":11.005000000000001},{"$f":"VLOOKUP($A186,F1__World_Data!$A$4:$DP$191,6,FALSE)","v":10.792},{"$f":"VLOOKUP($A186,F1__World_Data!$A$4:$DP$191,5,FALSE)","v":10.566000000000001},{"$f":"VLOOKUP($A186,F1__World_Data!$A$4:$DP$191,4,FALSE)","v":10.329000000000001},{"$f":"VLOOKUP($A186,F1__World_Data!$A$4:$DP$191,3,FALSE)","v":10.045999999999999},{"$f":"VLOOKUP($A186,F1__World_Data!$A$4:$DP$191,2,FALSE)","v":9.7690000000000001},null,{"$f":"VLOOKUP($A186,F1__World_Data!$A$4:$DP$191,120,FALSE)","v":68.116},{"$f":"VLOOKUP($A186,F1__World_Data!$A$4:$DP$191,119,FALSE)","v":67.850999999999999},{"$f":"VLOOKUP($A186,F1__World_Data!$A$4:$DP$191,118,FALSE)","v":67.576999999999998},{"$f":"VLOOKUP($A186,F1__World_Data!$A$4:$DP$191,117,FALSE)","v":67.290999999999997},{"$f":"VLOOKUP($A186,F1__World_Data!$A$4:$DP$191,116,FALSE)","v":66.995000000000005},{"$f":"VLOOKUP($A186,F1__World_Data!$A$4:$DP$191,115,FALSE)","v":66.69},{"$f":"VLOOKUP($A186,F1__World_Data!$A$4:$DP$191,114,FALSE)","v":66.381},{"$f":"VLOOKUP($A186,F1__World_Data!$A$4:$DP$191,113,FALSE)","v":66.072000000000003},{"$f":"VLOOKUP($A186,F1__World_Data!$A$4:$DP$191,112,FALSE)","v":65.769000000000005},{"$f":"VLOOKUP($A186,F1__World_Data!$A$4:$DP$191,111,FALSE)","v":65.48},{"$f":"VLOOKUP($A186,F1__World_Data!$A$4:$DP$191,110,FALSE)","v":65.207999999999998},{"$f":"VLOOKUP($A186,F1__World_Data!$A$4:$DP$191,109,FALSE)","v":64.953000000000003},{"$f":"VLOOKUP($A186,F1__World_Data!$A$4:$DP$191,108,FALSE)","v":64.712000000000003},{"$f":"VLOOKUP($A186,F1__World_Data!$A$4:$DP$191,107,FALSE)","v":64.477999999999994},{"$f":"VLOOKUP($A186,F1__World_Data!$A$4:$DP$191,106,FALSE)","v":64.242000000000004},{"$f":"VLOOKUP($A186,F1__World_Data!$A$4:$DP$191,105,FALSE)","v":63.994999999999997},{"$f":"VLOOKUP($A186,F1__World_Data!$A$4:$DP$191,104,FALSE)","v":63.731000000000002},{"$f":"VLOOKUP($A186,F1__World_Data!$A$4:$DP$191,103,FALSE)","v":63.445999999999998},{"$f":"VLOOKUP($A186,F1__World_Data!$A$4:$DP$191,102,FALSE)","v":63.143999999999998},{"$f":"VLOOKUP($A186,F1__World_Data!$A$4:$DP$191,101,FALSE)","v":62.829000000000001},{"$f":"VLOOKUP($A186,F1__World_Data!$A$4:$DP$191,100,FALSE)","v":62.509},{"$f":"VLOOKUP($A186,F1__World_Data!$A$4:$DP$191,99,FALSE)","v":62.188000000000002},{"$f":"VLOOKUP($A186,F1__World_Data!$A$4:$DP$191,98,FALSE)","v":61.866},{"$f":"VLOOKUP($A186,F1__World_Data!$A$4:$DP$191,97,FALSE)","v":61.539000000000001},{"$f":"VLOOKUP($A186,F1__World_Data!$A$4:$DP$191,96,FALSE)","v":61.198},{"$f":"VLOOKUP($A186,F1__World_Data!$A$4:$DP$191,95,FALSE)","v":60.837000000000003},{"$f":"VLOOKUP($A186,F1__World_Data!$A$4:$DP$191,94,FALSE)","v":60.454999999999998},{"$f":"VLOOKUP($A186,F1__World_Data!$A$4:$DP$191,93,FALSE)","v":60.052999999999997},{"$f":"VLOOKUP($A186,F1__World_Data!$A$4:$DP$191,92,FALSE)","v":59.636000000000003},{"$f":"VLOOKUP($A186,F1__World_Data!$A$4:$DP$191,91,FALSE)","v":59.209000000000003},{"$f":"VLOOKUP($A186,F1__World_Data!$A$4:$DP$191,90,FALSE)","v":58.783000000000001},{"$f":"VLOOKUP($A186,F1__World_Data!$A$4:$DP$191,89,FALSE)","v":58.366},{"$f":"VLOOKUP($A186,F1__World_Data!$A$4:$DP$191,88,FALSE)","v":57.962000000000003},{"$f":"VLOOKUP($A186,F1__World_Data!$A$4:$DP$191,87,FALSE)","v":57.579000000000001},{"$f":"VLOOKUP($A186,F1__World_Data!$A$4:$DP$191,86,FALSE)","v":57.220999999999997},{"$f":"VLOOKUP($A186,F1__World_Data!$A$4:$DP$191,85,FALSE)","v":56.886000000000003},{"$f":"VLOOKUP($A186,F1__World_Data!$A$4:$DP$191,84,FALSE)","v":56.569000000000003},{"$f":"VLOOKUP($A186,F1__World_Data!$A$4:$DP$191,83,FALSE)","v":56.265999999999998},{"$f":"VLOOKUP($A186,F1__World_Data!$A$4:$DP$191,82,FALSE)","v":55.970999999999997},{"$f":"VLOOKUP($A186,F1__World_Data!$A$4:$DP$191,81,FALSE)","v":55.679000000000002},{"$f":"VLOOKUP($A186,F1__World_Data!$A$4:$DP$191,80,FALSE)","v":55.381999999999998},{"$f":"VLOOKUP($A186,F1__World_Data!$A$4:$DP$191,79,FALSE)","v":55.073999999999998},{"$f":"VLOOKUP($A186,F1__World_Data!$A$4:$DP$191,78,FALSE)","v":54.747999999999998},{"$f":"VLOOKUP($A186,F1__World_Data!$A$4:$DP$191,77,FALSE)","v":54.399000000000001},{"$f":"VLOOKUP($A186,F1__World_Data!$A$4:$DP$191,76,FALSE)","v":54.027000000000001},{"$f":"VLOOKUP($A186,F1__World_Data!$A$4:$DP$191,75,FALSE)","v":53.633000000000003},{"$f":"VLOOKUP($A186,F1__World_Data!$A$4:$DP$191,74,FALSE)","v":53.218000000000004},{"$f":"VLOOKUP($A186,F1__World_Data!$A$4:$DP$191,73,FALSE)","v":52.781999999999996},{"$f":"VLOOKUP($A186,F1__World_Data!$A$4:$DP$191,72,FALSE)","v":52.323},{"$f":"VLOOKUP($A186,F1__World_Data!$A$4:$DP$191,71,FALSE)","v":51.837000000000003},{"$f":"VLOOKUP($A186,F1__World_Data!$A$4:$DP$191,70,FALSE)","v":51.326999999999998},{"$f":"VLOOKUP($A186,F1__World_Data!$A$4:$DP$191,69,FALSE)","v":50.795999999999999},{"$f":"VLOOKUP($A186,F1__World_Data!$A$4:$DP$191,68,FALSE)","v":50.25},{"$f":"VLOOKUP($A186,F1__World_Data!$A$4:$DP$191,67,FALSE)","v":49.697000000000003},{"$f":"VLOOKUP($A186,F1__World_Data!$A$4:$DP$191,66,FALSE)","v":49.145000000000003},{"$f":"VLOOKUP($A186,F1__World_Data!$A$4:$DP$191,65,FALSE)","v":48.600999999999999},{"$f":"VLOOKUP($A186,F1__World_Data!$A$4:$DP$191,64,FALSE)","v":48.070999999999998},{"$f":"VLOOKUP($A186,F1__World_Data!$A$4:$DP$191,63,FALSE)","v":47.557000000000002},{"$f":"VLOOKUP($A186,F1__World_Data!$A$4:$DP$191,62,FALSE)","v":47.061}]
["Cook Islands",{"$f":"VLOOKUP($A187,F1__World_Data!$A$4:$DP$191,60,FALSE)","v":17.518999999999998},{"$f":"VLOOKUP($A187,F1__World_Data!$A$4:$DP$191,59,FALSE)","v":17.504999999999999},{"$f":"VLOOKUP($A187,F1__World_Data!$A$4:$DP$191,58,FALSE)","v":17.521000000000001},{"$f":"VLOOKUP($A187,F1__World_Data!$A$4:$DP$191,57,FALSE)","v":17.581},{"$f":"VLOOKUP($A187,F1__World_Data!$A$4:$DP$191,56,FALSE)","v":17.684999999999999},{"$f":"VLOOKUP($A187,F1__World_Data!$A$4:$DP$191,55,FALSE)","v":17.834},{"$f":"VLOOKUP($A187,F1__World_Data!$A$4:$DP$191,54,FALSE)","v":18.009},{"$f":"VLOOKUP($A187,F1__World_Data!$A$4:$DP$191,53,FALSE)","v":18.2},{"$f":"VLOOKUP($A187,F1__World_Data!$A$4:$DP$191,52,FALSE)","v":18.391999999999999},{"$f":"VLOOKUP($A187,F1__World_Data!$A$4:$DP$191,51,FALSE)","v":18.602},{"$f":"VLOOKUP($A187,F1__World_Data!$A$4:$DP$191,50,FALSE)","v":18.808},{"$f":"VLOOKUP($A187,F1__World_Data!$A$4:$DP$191,49,FALSE)","v":18.994},{"$f":"VLOOKUP($A187,F1__World_Data!$A$4:$DP$191,48,FALSE)","v":19.094000000000001},{"$f":"VLOOKUP($A187,F1__World_Data!$A$4:$DP$191,47,FALSE)","v":19.07},{"$f":"VLOOKUP($A187,F1__World_Data!$A$4:$DP$191,46,FALSE)","v":18.891999999999999},{"$f":"VLOOKUP($A187,F1__World_Data!$A$4:$DP$191,45,FALSE)","v":18.609000000000002},{"$f":"VLOOKUP($A187,F1__World_Data!$A$4:$DP$191,44,FALSE)","v":18.274000000000001},{"$f":"VLOOKUP($A187,F1__World_Data!$A$4:$DP$191,43,FALSE)","v":18.016999999999999},{"$f":"VLOOKUP($A187,F1__World_Data!$A$4:$DP$191,42,FALSE)","v":17.934999999999999},{"$f":"VLOOKUP($A187,F1__World_Data!$A$4:$DP$191,41,FALSE)","v":18.042000000000002},{"$f":"VLOOKUP($A187,F1__World_Data!$A$4:$DP$191,40,FALSE)","v":18.312999999999999},{"$f":"VLOOKUP($A187,F1__World_Data!$A$4:$DP$191,39,FALSE)","v":18.652999999999999},{"$f":"VLOOKUP($A187,F1__World_Data!$A$4:$DP$191,38,FALSE)","v":18.948},{"$f":"VLOOKUP($A187,F1__World_Data!$A$4:$DP$191,37,FALSE)","v":19.105},{"$f":"VLOOKUP($A187,F1__World_Data!$A$4:$DP$191,36,FALSE)","v":19.081},{"$f":"VLOOKUP($A187,F1__World_Data!$A$4:$DP$191,35,FALSE)","v":18.934000000000001},{"$f":"VLOOKUP($A187,F1__World_Data!$A$4:$DP$191,34,FALSE)","v":18.678000000000001},{"$f":"VLOOKUP($A187,F1__World_Data!$A$4:$DP$191,33,FALSE)","v":18.419},{"$f":"VLOOKUP($A187,F1__World_Data!$A$4:$DP$191,32,FALSE)","v":18.195},{"$f":"VLOOKUP($A187,F1__World_Data!$A$4:$DP$191,31,FALSE)","v":18.026},{"$f":"VLOOKUP($A187,F1__World_Data!$A$4:$DP$191,30,FALSE)","v":17.898},{"$f":"VLOOKUP($A187,F1__World_Data!$A$4:$DP$191,29,FALSE)","v":17.794},{"$f":"VLOOKUP($A187,F1__World_Data!$A$4:$DP$191,28,FALSE)","v":17.702000000000002},{"$f":"VLOOKUP($A187,F1__World_Data!$A$4:$DP$191,27,FALSE)","v":17.591999999999999},{"$f":"VLOOKUP($A187,F1__World_Data!$A$4:$DP$191,26,FALSE)","v":17.472999999999999},{"$f":"VLOOKUP($A187,F1__World_Data!$A$4:$DP$191,25,FALSE)","v":17.343},{"$f":"VLOOKUP($A187,F1__World_Data!$A$4:$DP$191,24,FALSE)","v":17.271000000000001},{"$f":"VLOOKUP($A187,F1__World_Data!$A$4:$DP$191,23,FALSE)","v":17.306000000000001},{"$f":"VLOOKUP($A187,F1__World_Data!$A$4:$DP$191,22,FALSE)","v":17.518999999999998},{"$f":"VLOOKUP($A187,F1__World_Data!$A$4:$DP$191,21,FALSE)","v":17.902000000000001},{"$f":"VLOOKUP($A187,F1__World_Data!$A$4:$DP$191,20,FALSE)","v":18.440000000000001},{"$f":"VLOOKUP($A187,F1__World_Data!$A$4:$DP$191,19,FALSE)","v":19.068000000000001},{"$f":"VLOOKUP($A187,F1__World_Data!$A$4:$DP$191,18,FALSE)","v":19.689},{"$f":"VLOOKUP($A187,F1__World_Data!$A$4:$DP$191,17,FALSE)","v":20.225000000000001},{"$f":"VLOOKUP($A187,F1__World_Data!$A$4:$DP$191,16,FALSE)","v":20.690999999999999},{"$f":"VLOOKUP($A187,F1__World_Data!$A$4:$DP$191,15,FALSE)","v":21.056000000000001},{"$f":"VLOOKUP($A187,F1__World_Data!$A$4:$DP$191,14,FALSE)","v":21.309000000000001},{"$f":"VLOOKUP($A187,F1__World_Data!$A$4:$DP$191,13,FALSE)","v":21.399000000000001},{"$f":"VLOOKUP($A187,F1__World_Data!$A$4:$DP$191,12,FALSE)","v":21.300999999999998},{"$f":"VLOOKUP($A187,F1__World_Data!$A$4:$DP$191,11,FALSE)","v":20.984999999999999},{"$f":"VLOOKUP($A187,F1__World_Data!$A$4:$DP$191,10,FALSE)","v":20.495999999999999},{"$f":"VLOOKUP($A187,F1__World_Data!$A$4:$DP$191,9,FALSE)","v":19.89},{"$f":"VLOOKUP($A187,F1__World_Data!$A$4:$DP$191,8,FALSE)","v":19.329000000000001},{"$f":"VLOOKUP($A187,F1__World_Data!$A$4:$DP$191,7,FALSE)","v":18.893999999999998},{"$f":"VLOOKUP($A187,F1__World_Data!$A$4:$DP$191,6,FALSE)","v":18.628},{"$f":"VLOOKUP($A187,F1__World_Data!$A$4:$DP$191,5,FALSE)","v":18.507000000000001},{"$f":"VLOOKUP($A187,F1__World_Data!$A$4:$DP$191,4,FALSE)","v":18.452000000000002},{"$f":"VLOOKUP($A187,F1__World_Data!$A$4:$DP$191,3,FALSE)","v":18.38},{"$f":"VLOOKUP($A187,F1__World_Data!$A$4:$DP$191,2,FALSE)","v":18.213000000000001},null,{"$f":"VLOOKUP($A187,F1__World_Data!$A$4:$DP$191,120,FALSE)","v":73.637107765015102},{"$f":"VLOOKUP($A187,F1__World_Data!$A$4:$DP$191,119,FALSE)","v":73.517492494111451},{"$f":"VLOOKUP($A187,F1__World_Data!$A$4:$DP$191,118,FALSE)","v":73.395956392778842},{"$f":"VLOOKUP($A187,F1__World_Data!$A$4:$DP$191,117,FALSE)","v":73.273015980955037},{"$f":"VLOOKUP($A187,F1__World_Data!$A$4:$DP$191,116,FALSE)","v":73.150584618105228},{"$f":"VLOOKUP($A187,F1__World_Data!$A$4:$DP$191,115,FALSE)","v":73.030145150125279},{"$f":"VLOOKUP($A187,F1__World_Data!$A$4:$DP$191,114,FALSE)","v":72.911803457889334},{"$f":"VLOOKUP($A187,F1__World_Data!$A$4:$DP$191,113,FALSE)","v":72.795298311480806},{"$f":"VLOOKUP($A187,F1__World_Data!$A$4:$DP$191,112,FALSE)","v":72.67939476796036},{"$f":"VLOOKUP($A187,F1__World_Data!$A$4:$DP$191,111,FALSE)","v":72.561747336395143},{"$f":"VLOOKUP($A187,F1__World_Data!$A$4:$DP$191,110,FALSE)","v":72.440791221878925},{"$f":"VLOOKUP($A187,F1__World_Data!$A$4:$DP$191,109,FALSE)","v":72.316056289520802},{"$f":"VLOOKUP($A187,F1__World_Data!$A$4:$DP$191,108,FALSE)","v":72.187024201709548},{"$f":"VLOOKUP($A187,F1__World_Data!$A$4:$DP$191,107,FALSE)","v":72.055708423096959},{"$f":"VLOOKUP($A187,F1__World_Data!$A$4:$DP$191,106,FALSE)","v":71.923538539966657},{"$f":"VLOOKUP($A187,F1__World_Data!$A$4:$DP$191,105,FALSE)","v":71.79198627417226},{"$f":"VLOOKUP($A187,F1__World_Data!$A$4:$DP$191,104,FALSE)","v":71.713359964345358},{"$f":"VLOOKUP($A187,F1__World_Data!$A$4:$DP$191,103,FALSE)","v":71.538000447490049},{"$f":"VLOOKUP($A187,F1__World_Data!$A$4:$DP$191,102,FALSE)","v":71.419185391298214},{"$f":"VLOOKUP($A187,F1__World_Data!$A$4:$DP$191,101,FALSE)","v":71.310270981539503},{"$f":"VLOOKUP($A187,F1__World_Data!$A$4:$DP$191,100,FALSE)","v":71.21031996042737},{"$f":"VLOOKUP($A187,F1__World_Data!$A$4:$DP$191,99,FALSE)","v":71.163774129209045},{"$f":"VLOOKUP($A187,F1__World_Data!$A$4:$DP$191,98,FALSE)","v":71.028989838640868},{"$f":"VLOOKUP($A187,F1__World_Data!$A$4:$DP$191,97,FALSE)","v":70.937525331800259},{"$f":"VLOOKUP($A187,F1__World_Data!$A$4:$DP$191,96,FALSE)","v":70.834489868717455},{"$f":"VLOOKUP($A187,F1__World_Data!$A$4:$DP$191,95,FALSE)","v":70.712539984335763},{"$f":"VLOOKUP($A187,F1__World_Data!$A$4:$DP$191,94,FALSE)","v":70.588066446924401},{"$f":"VLOOKUP($A187,F1__World_Data!$A$4:$DP$191,93,FALSE)","v":70.394009945599478},{"$f":"VLOOKUP($A187,F1__World_Data!$A$4:$DP$191,92,FALSE)","v":70.197631076872327},{"$f":"VLOOKUP($A187,F1__World_Data!$A$4:$DP$191,91,FALSE)","v":69.984185708155181},{"$f":"VLOOKUP($A187,F1__World_Data!$A$4:$DP$191,90,FALSE)","v":69.763201056316845},{"$f":"VLOOKUP($A187,F1__World_Data!$A$4:$DP$191,89,FALSE)","v":69.548709699732711},{"$f":"VLOOKUP($A187,F1__World_Data!$A$4:$DP$191,88,FALSE)","v":69.329770812363662},{"$f":"VLOOKUP($A187,F1__World_Data!$A$4:$DP$191,87,FALSE)","v":69.122687176363286},{"$f":"VLOOKUP($A187,F1__World_Data!$A$4:$DP$191,86,FALSE)","v":68.920937408315467},{"$f":"VLOOKUP($A187,F1__World_Data!$A$4:$DP$191,85,FALSE)","v":68.718950407055345},{"$f":"VLOOKUP($A187,F1__World_Data!$A$4:$DP$191,84,FALSE)","v":68.517816565508539},{"$f":"VLOOKUP($A187,F1__World_Data!$A$4:$DP$191,83,FALSE)","v":68.303133941519746},{"$f":"VLOOKUP($A187,F1__World_Data!$A$4:$DP$191,82,FALSE)","v":68.086726113212805},{"$f":"VLOOKUP($A187,F1__World_Data!$A$4:$DP$191,81,FALSE)","v":67.861437019779785},{"$f":"VLOOKUP($A187,F1__World_Data!$A$4:$DP$191,80,FALSE)","v":67.627852151683655},{"$f":"VLOOKUP($A187,F1__World_Data!$A$4:$DP$191,79,FALSE)","v":67.385208633368208},{"$f":"VLOOKUP($A187,F1__World_Data!$A$4:$DP$191,78,FALSE)","v":67.13336447744399},{"$f":"VLOOKUP($A187,F1__World_Data!$A$4:$DP$191,77,FALSE)","v":66.875688670547362},{"$f":"VLOOKUP($A187,F1__World_Data!$A$4:$DP$191,76,FALSE)","v":66.618286191425497},{"$f":"VLOOKUP($A187,F1__World_Data!$A$4:$DP$191,75,FALSE)","v":66.364974788459406},{"$f":"VLOOKUP($A187,F1__World_Data!$A$4:$DP$191,74,FALSE)","v":66.118883978571901},{"$f":"VLOOKUP($A187,F1__World_Data!$A$4:$DP$191,73,FALSE)","v":65.880385295601911},{"$f":"VLOOKUP($A187,F1__World_Data!$A$4:$DP$191,72,FALSE)","v":65.648808613002032},{"$f":"VLOOKUP($A187,F1__World_Data!$A$4:$DP$191,71,FALSE)","v":65.419925874108088},{"$f":"VLOOKUP($A187,F1__World_Data!$A$4:$DP$191,70,FALSE)","v":65.186992176822201},{"$f":"VLOOKUP($A187,F1__World_Data!$A$4:$DP$191,69,FALSE)","v":64.943628772980901},{"$f":"VLOOKUP($A187,F1__World_Data!$A$4:$DP$191,68,FALSE)","v":64.684667910390132},{"$f":"VLOOKUP($A187,F1__World_Data!$A$4:$DP$191,67,FALSE)","v":64.407721253920059},{"$f":"VLOOKUP($A187,F1__World_Data!$A$4:$DP$191,66,FALSE)","v":64.113791435393836},{"$f":"VLOOKUP($A187,F1__World_Data!$A$4:$DP$191,65,FALSE)","v":63.804441775374208},{"$f":"VLOOKUP($A187,F1__World_Data!$A$4:$DP$191,64,FALSE)","v":63.476465945226273},{"$f":"VLOOKUP($A187,F1__World_Data!$A$4:$DP$191,63,FALSE)","v":63.126130845617176},{"$f":"VLOOKUP($A187,F1__World_Data!$A$4:$DP$191,62,FALSE)","v":62.746295193294777}]
["Anguilla",{"$f":"VLOOKUP($A188,F1__World_Data!$A$4:$DP$191,60,FALSE)","v":14.738},{"$f":"VLOOKUP($A188,F1__World_Data!$A$4:$DP$191,59,FALSE)","v":14.587999999999999},{"$f":"VLOOKUP($A188,F1__World_Data!$A$4:$DP$191,58,FALSE)","v":14.435},{"$f":"VLOOKUP($A188,F1__World_Data!$A$4:$DP$191,57,FALSE)","v":14.279},{"$f":"VLOOKUP($A188,F1__World_Data!$A$4:$DP$191,56,FALSE)","v":14.114000000000001},{"$f":"VLOOKUP($A188,F1__World_Data!$A$4:$DP$191,55,FALSE)","v":13.952},{"$f":"VLOOKUP($A188,F1__World_Data!$A$4:$DP$191,54,FALSE)","v":13.794},{"$f":"VLOOKUP($A188,F1__World_Data!$A$4:$DP$191,53,FALSE)","v":13.612},{"$f":"VLOOKUP($A188,F1__World_Data!$A$4:$DP$191,52,FALSE)","v":13.436},{"$f":"VLOOKUP($A188,F1__World_Data!$A$4:$DP$191,51,FALSE)","v":13.247999999999999},{"$f":"VLOOKUP($A188,F1__World_Data!$A$4:$DP$191,50,FALSE)","v":13.055999999999999},{"$f":"VLOOKUP($A188,F1__World_Data!$A$4:$DP$191,49,FALSE)","v":12.862},{"$f":"VLOOKUP($A188,F1__World_Data!$A$4:$DP$191,48,FALSE)","v":12.66},{"$f":"VLOOKUP($A188,F1__World_Data!$A$4:$DP$191,47,FALSE)","v":12.442},{"$f":"VLOOKUP($A188,F1__World_Data!$A$4:$DP$191,46,FALSE)","v":12.23},{"$f":"VLOOKUP($A188,F1__World_Data!$A$4:$DP$191,45,FALSE)","v":11.993},{"$f":"VLOOKUP($A188,F1__World_Data!$A$4:$DP$191,44,FALSE)","v":11.756},{"$f":"VLOOKUP($A188,F1__World_Data!$A$4:$DP$191,43,FALSE)","v":11.52},{"$f":"VLOOKUP($A188,F1__World_Data!$A$4:$DP$191,42,FALSE)","v":11.247},{"$f":"VLOOKUP($A188,F1__World_Data!$A$4:$DP$191,41,FALSE)","v":10.978999999999999},{"$f":"VLOOKUP($A188,F1__World_Data!$A$4:$DP$191,40,FALSE)","v":10.683999999999999},{"$f":"VLOOKUP($A188,F1__World_Data!$A$4:$DP$191,39,FALSE)","v":10.388},{"$f":"VLOOKUP($A188,F1__World_Data!$A$4:$DP$191,38,FALSE)","v":10.117000000000001},{"$f":"VLOOKUP($A188,F1__World_Data!$A$4:$DP$191,37,FALSE)","v":9.8680000000000003},{"$f":"VLOOKUP($A188,F1__World_Data!$A$4:$DP$191,36,FALSE)","v":9.6609999999999996},{"$f":"VLOOKUP($A188,F1__World_Data!$A$4:$DP$191,35,FALSE)","v":9.4909999999999997},{"$f":"VLOOKUP($A188,F1__World_Data!$A$4:$DP$191,34,FALSE)","v":9.3330000000000002},{"$f":"VLOOKUP($A188,F1__World_Data!$A$4:$DP$191,33,FALSE)","v":9.1379999999999999},{"$f":"VLOOKUP($A188,F1__World_Data!$A$4:$DP$191,32,FALSE)","v":8.8940000000000001},{"$f":"VLOOKUP($A188,F1__World_Data!$A$4:$DP$191,31,FALSE)","v":8.5820000000000007},{"$f":"VLOOKUP($A188,F1__World_Data!$A$4:$DP$191,30,FALSE)","v":8.2219999999999995},{"$f":"VLOOKUP($A188,F1__World_Data!$A$4:$DP$191,29,FALSE)","v":7.8419999999999996},{"$f":"VLOOKUP($A188,F1__World_Data!$A$4:$DP$191,28,FALSE)","v":7.5119999999999996},{"$f":"VLOOKUP($A188,F1__World_Data!$A$4:$DP$191,27,FALSE)","v":7.2919999999999998},{"$f":"VLOOKUP($A188,F1__World_Data!$A$4:$DP$191,26,FALSE)","v":7.1820000000000004},{"$f":"VLOOKUP($A188,F1__World_Data!$A$4:$DP$191,25,FALSE)","v":7.1449999999999996},{"$f":"VLOOKUP($A188,F1__World_Data!$A$4:$DP$191,24,FALSE)","v":7.194},{"$f":"VLOOKUP($A188,F1__World_Data!$A$4:$DP$191,23,FALSE)","v":7.2489999999999997},{"$f":"VLOOKUP($A188,F1__World_Data!$A$4:$DP$191,22,FALSE)","v":7.2839999999999998},{"$f":"VLOOKUP($A188,F1__World_Data!$A$4:$DP$191,21,FALSE)","v":7.2960000000000003},{"$f":"VLOOKUP($A188,F1__World_Data!$A$4:$DP$191,20,FALSE)","v":7.2850000000000001},{"$f":"VLOOKUP($A188,F1__World_Data!$A$4:$DP$191,19,FALSE)","v":7.2519999999999998},{"$f":"VLOOKUP($A188,F1__World_Data!$A$4:$DP$191,18,FALSE)","v":7.202},{"$f":"VLOOKUP($A188,F1__World_Data!$A$4:$DP$191,17,FALSE)","v":7.1609999999999996},{"$f":"VLOOKUP($A188,F1__World_Data!$A$4:$DP$191,16,FALSE)","v":7.101},{"$f":"VLOOKUP($A188,F1__World_Data!$A$4:$DP$191,15,FALSE)","v":7.0229999999999997},{"$f":"VLOOKUP($A188,F1__World_Data!$A$4:$DP$191,14,FALSE)","v":6.9489999999999998},{"$f":"VLOOKUP($A188,F1__World_Data!$A$4:$DP$191,13,FALSE)","v":6.8540000000000001},{"$f":"VLOOKUP($A188,F1__World_Data!$A$4:$DP$191,12,FALSE)","v":6.7729999999999997},{"$f":"VLOOKUP($A188,F1__World_Data!$A$4:$DP$191,11,FALSE)","v":6.69},{"$f":"VLOOKUP($A188,F1__World_Data!$A$4:$DP$191,10,FALSE)","v":6.6079999999999997},{"$f":"VLOOKUP($A188,F1__World_Data!$A$4:$DP$191,9,FALSE)","v":6.52},{"$f":"VLOOKUP($A188,F1__World_Data!$A$4:$DP$191,8,FALSE)","v":6.4340000000000002},{"$f":"VLOOKUP($A188,F1__World_Data!$A$4:$DP$191,7,FALSE)","v":6.36},{"$f":"VLOOKUP($A188,F1__World_Data!$A$4:$DP$191,6,FALSE)","v":6.2830000000000004},{"$f":"VLOOKUP($A188,F1__World_Data!$A$4:$DP$191,5,FALSE)","v":6.2069999999999999},{"$f":"VLOOKUP($A188,F1__World_Data!$A$4:$DP$191,4,FALSE)","v":6.141},{"$f":"VLOOKUP($A188,F1__World_Data!$A$4:$DP$191,3,FALSE)","v":6.09},{"$f":"VLOOKUP($A188,F1__World_Data!$A$4:$DP$191,2,FALSE)","v":6.02},null,{"$f":"VLOOKUP($A188,F1__World_Data!$A$4:$DP$191,120,FALSE)","v":0},{"$f":"VLOOKUP($A188,F1__World_Data!$A$4:$DP$191,119,FALSE)","v":0},{"$f":"VLOOKUP($A188,F1__World_Data!$A$4:$DP$191,118,FALSE)","v":0},{"$f":"VLOOKUP($A188,F1__World_Data!$A$4:$DP$191,117,FALSE)","v":0},{"$f":"VLOOKUP($A188,F1__World_Data!$A$4:$DP$191,116,FALSE)","v":0},{"$f":"VLOOKUP($A188,F1__World_Data!$A$4:$DP$191,115,FALSE)","v":0},{"$f":"VLOOKUP($A188,F1__World_Data!$A$4:$DP$191,114,FALSE)","v":0},{"$f":"VLOOKUP($A188,F1__World_Data!$A$4:$DP$191,113,FALSE)","v":0},{"$f":"VLOOKUP($A188,F1__World_Data!$A$4:$DP$191,112,FALSE)","v":0},{"$f":"VLOOKUP($A188,F1__World_Data!$A$4:$DP$191,111,FALSE)","v":0},{"$f":"VLOOKUP($A188,F1__World_Data!$A$4:$DP$191,110,FALSE)","v":0},{"$f":"VLOOKUP($A188,F1__World_Data!$A$4:$DP$191,109,FALSE)","v":0},{"$f":"VLOOKUP($A188,F1__World_Data!$A$4:$DP$191,108,FALSE)","v":0},{"$f":"VLOOKUP($A188,F1__World_Data!$A$4:$DP$191,107,FALSE)","v":0},{"$f":"VLOOKUP($A188,F1__World_Data!$A$4:$DP$191,106,FALSE)","v":0},{"$f":"VLOOKUP($A188,F1__World_Data!$A$4:$DP$191,105,FALSE)","v":0},{"$f":"VLOOKUP($A188,F1__World_Data!$A$4:$DP$191,104,FALSE)","v":0},{"$f":"VLOOKUP($A188,F1__World_Data!$A$4:$DP$191,103,FALSE)","v":0},{"$f":"VLOOKUP($A188,F1__World_Data!$A$4:$DP$191,102,FALSE)","v":0},{"$f":"VLOOKUP($A188,F1__World_Data!$A$4:$DP$191,101,FALSE)","v":0},{"$f":"VLOOKUP($A188,F1__World_Data!$A$4:$DP$191,100,FALSE)","v":0},{"$f":"VLOOKUP($A188,F1__World_Data!$A$4:$DP$191,99,FALSE)","v":0},{"$f":"VLOOKUP($A188,F1__World_Data!$A$4:$DP$191,98,FALSE)","v":0},{"$f":"VLOOKUP($A188,F1__World_Data!$A$4:$DP$191,97,FALSE)","v":0},{"$f":"VLOOKUP($A188,F1__World_Data!$A$4:$DP$191,96,FALSE)","v":0},{"$f":"VLOOKUP($A188,F1__World_Data!$A$4:$DP$191,95,FALSE)","v":0},{"$f":"VLOOKUP($A188,F1__World_Data!$A$4:$DP$191,94,FALSE)","v":0},{"$f":"VLOOKUP($A188,F1__World_Data!$A$4:$DP$191,93,FALSE)","v":0},{"$f":"VLOOKUP($A188,F1__World_Data!$A$4:$DP$191,92,FALSE)","v":0},{"$f":"VLOOKUP($A188,F1__World_Data!$A$4:$DP$191,91,FALSE)","v":0},{"$f":"VLOOKUP($A188,F1__World_Data!$A$4:$DP$191,90,FALSE)","v":0},{"$f":"VLOOKUP($A188,F1__World_Data!$A$4:$DP$191,89,FALSE)","v":0},{"$f":"VLOOKUP($A188,F1__World_Data!$A$4:$DP$191,88,FALSE)","v":0},{"$f":"VLOOKUP($A188,F1__World_Data!$A$4:$DP$191,87,FALSE)","v":0},{"$f":"VLOOKUP($A188,F1__World_Data!$A$4:$DP$191,86,FALSE)","v":0},{"$f":"VLOOKUP($A188,F1__World_Data!$A$4:$DP$191,85,FALSE)","v":0},{"$f":"VLOOKUP($A188,F1__World_Data!$A$4:$DP$191,84,FALSE)","v":0},{"$f":"VLOOKUP($A188,F1__World_Data!$A$4:$DP$191,83,FALSE)","v":0},{"$f":"VLOOKUP($A188,F1__World_Data!$A$4:$DP$191,82,FALSE)","v":0},{"$f":"VLOOKUP($A188,F1__World_Data!$A$4:$DP$191,81,FALSE)","v":0},{"$f":"VLOOKUP($A188,F1__World_Data!$A$4:$DP$191,80,FALSE)","v":0},{"$f":"VLOOKUP($A188,F1__World_Data!$A$4:$DP$191,79,FALSE)","v":0},{"$f":"VLOOKUP($A188,F1__World_Data!$A$4:$DP$191,78,FALSE)","v":0},{"$f":"VLOOKUP($A188,F1__World_Data!$A$4:$DP$191,77,FALSE)","v":0},{"$f":"VLOOKUP($A188,F1__World_Data!$A$4:$DP$191,76,FALSE)","v":0},{"$f":"VLOOKUP($A188,F1__World_Data!$A$4:$DP$191,75,FALSE)","v":0},{"$f":"VLOOKUP($A188,F1__World_Data!$A$4:$DP$191,74,FALSE)","v":0},{"$f":"VLOOKUP($A188,F1__World_Data!$A$4:$DP$191,73,FALSE)","v":0},{"$f":"VLOOKUP($A188,F1__World_Data!$A$4:$DP$191,72,FALSE)","v":0},{"$f":"VLOOKUP($A188,F1__World_Data!$A$4:$DP$191,71,FALSE)","v":0},{"$f":"VLOOKUP($A188,F1__World_Data!$A$4:$DP$191,70,FALSE)","v":0},{"$f":"VLOOKUP($A188,F1__World_Data!$A$4:$DP$191,69,FALSE)","v":0},{"$f":"VLOOKUP($A188,F1__World_Data!$A$4:$DP$191,68,FALSE)","v":0},{"$f":"VLOOKUP($A188,F1__World_Data!$A$4:$DP$191,67,FALSE)","v":0},{"$f":"VLOOKUP($A188,F1__World_Data!$A$4:$DP$191,66,FALSE)","v":0},{"$f":"VLOOKUP($A188,F1__World_Data!$A$4:$DP$191,65,FALSE)","v":0},{"$f":"VLOOKUP($A188,F1__World_Data!$A$4:$DP$191,64,FALSE)","v":0},{"$f":"VLOOKUP($A188,F1__World_Data!$A$4:$DP$191,63,FALSE)","v":0},{"$f":"VLOOKUP($A188,F1__World_Data!$A$4:$DP$191,62,FALSE)","v":0}]
["Tuvalu",{"$f":"VLOOKUP($A189,F1__World_Data!$A$4:$DP$191,60,FALSE)","v":11.505000000000001},{"$f":"VLOOKUP($A189,F1__World_Data!$A$4:$DP$191,59,FALSE)","v":11.365},{"$f":"VLOOKUP($A189,F1__World_Data!$A$4:$DP$191,58,FALSE)","v":11.231999999999999},{"$f":"VLOOKUP($A189,F1__World_Data!$A$4:$DP$191,57,FALSE)","v":11.099},{"$f":"VLOOKUP($A189,F1__World_Data!$A$4:$DP$191,56,FALSE)","v":10.973000000000001},{"$f":"VLOOKUP($A189,F1__World_Data!$A$4:$DP$191,55,FALSE)","v":10.849},{"$f":"VLOOKUP($A189,F1__World_Data!$A$4:$DP$191,54,FALSE)","v":10.744},{"$f":"VLOOKUP($A189,F1__World_Data!$A$4:$DP$191,53,FALSE)","v":10.625999999999999},{"$f":"VLOOKUP($A189,F1__World_Data!$A$4:$DP$191,52,FALSE)","v":10.521000000000001},{"$f":"VLOOKUP($A189,F1__World_Data!$A$4:$DP$191,51,FALSE)","v":10.413},{"$f":"VLOOKUP($A189,F1__World_Data!$A$4:$DP$191,50,FALSE)","v":10.315},{"$f":"VLOOKUP($A189,F1__World_Data!$A$4:$DP$191,49,FALSE)","v":10.218999999999999},{"$f":"VLOOKUP($A189,F1__World_Data!$A$4:$DP$191,48,FALSE)","v":10.118},{"$f":"VLOOKUP($A189,F1__World_Data!$A$4:$DP$191,47,FALSE)","v":9.9969999999999999},{"$f":"VLOOKUP($A189,F1__World_Data!$A$4:$DP$191,46,FALSE)","v":9.8710000000000004},{"$f":"VLOOKUP($A189,F1__World_Data!$A$4:$DP$191,45,FALSE)","v":9.7240000000000002},{"$f":"VLOOKUP($A189,F1__World_Data!$A$4:$DP$191,44,FALSE)","v":9.593},{"$f":"VLOOKUP($A189,F1__World_Data!$A$4:$DP$191,43,FALSE)","v":9.4779999999999998},{"$f":"VLOOKUP($A189,F1__World_Data!$A$4:$DP$191,42,FALSE)","v":9.3919999999999995},{"$f":"VLOOKUP($A189,F1__World_Data!$A$4:$DP$191,41,FALSE)","v":9.3439999999999994},{"$f":"VLOOKUP($A189,F1__World_Data!$A$4:$DP$191,40,FALSE)","v":9.3320000000000007},{"$f":"VLOOKUP($A189,F1__World_Data!$A$4:$DP$191,39,FALSE)","v":9.3279999999999994},{"$f":"VLOOKUP($A189,F1__World_Data!$A$4:$DP$191,38,FALSE)","v":9.3170000000000002},{"$f":"VLOOKUP($A189,F1__World_Data!$A$4:$DP$191,37,FALSE)","v":9.298},{"$f":"VLOOKUP($A189,F1__World_Data!$A$4:$DP$191,36,FALSE)","v":9.2590000000000003},{"$f":"VLOOKUP($A189,F1__World_Data!$A$4:$DP$191,35,FALSE)","v":9.1940000000000008},{"$f":"VLOOKUP($A189,F1__World_Data!$A$4:$DP$191,34,FALSE)","v":9.11},{"$f":"VLOOKUP($A189,F1__World_Data!$A$4:$DP$191,33,FALSE)","v":9.0139999999999993},{"$f":"VLOOKUP($A189,F1__World_Data!$A$4:$DP$191,32,FALSE)","v":8.91},{"$f":"VLOOKUP($A189,F1__World_Data!$A$4:$DP$191,31,FALSE)","v":8.7870000000000008},{"$f":"VLOOKUP($A189,F1__World_Data!$A$4:$DP$191,30,FALSE)","v":8.6370000000000005},{"$f":"VLOOKUP($A189,F1__World_Data!$A$4:$DP$191,29,FALSE)","v":8.4809999999999999},{"$f":"VLOOKUP($A189,F1__World_Data!$A$4:$DP$191,28,FALSE)","v":8.3409999999999993},{"$f":"VLOOKUP($A189,F1__World_Data!$A$4:$DP$191,27,FALSE)","v":8.2110000000000003},{"$f":"VLOOKUP($A189,F1__World_Data!$A$4:$DP$191,26,FALSE)","v":8.11},{"$f":"VLOOKUP($A189,F1__World_Data!$A$4:$DP$191,25,FALSE)","v":8.0410000000000004},{"$f":"VLOOKUP($A189,F1__World_Data!$A$4:$DP$191,24,FALSE)","v":7.9509999999999996},{"$f":"VLOOKUP($A189,F1__World_Data!$A$4:$DP$191,23,FALSE)","v":7.8250000000000002},{"$f":"VLOOKUP($A189,F1__World_Data!$A$4:$DP$191,22,FALSE)","v":7.6310000000000002},{"$f":"VLOOKUP($A189,F1__World_Data!$A$4:$DP$191,21,FALSE)","v":7.3570000000000002},{"$f":"VLOOKUP($A189,F1__World_Data!$A$4:$DP$191,20,FALSE)","v":7.0179999999999998},{"$f":"VLOOKUP($A189,F1__World_Data!$A$4:$DP$191,19,FALSE)","v":6.65},{"$f":"VLOOKUP($A189,F1__World_Data!$A$4:$DP$191,18,FALSE)","v":6.319},{"$f":"VLOOKUP($A189,F1__World_Data!$A$4:$DP$191,17,FALSE)","v":6.0640000000000001},{"$f":"VLOOKUP($A189,F1__World_Data!$A$4:$DP$191,16,FALSE)","v":5.9029999999999996},{"$f":"VLOOKUP($A189,F1__World_Data!$A$4:$DP$191,15,FALSE)","v":5.819},{"$f":"VLOOKUP($A189,F1__World_Data!$A$4:$DP$191,14,FALSE)","v":5.7859999999999996},{"$f":"VLOOKUP($A189,F1__World_Data!$A$4:$DP$191,13,FALSE)","v":5.77},{"$f":"VLOOKUP($A189,F1__World_Data!$A$4:$DP$191,12,FALSE)","v":5.74},{"$f":"VLOOKUP($A189,F1__World_Data!$A$4:$DP$191,11,FALSE)","v":5.6710000000000003},{"$f":"VLOOKUP($A189,F1__World_Data!$A$4:$DP$191,10,FALSE)","v":5.5979999999999999},{"$f":"VLOOKUP($A189,F1__World_Data!$A$4:$DP$191,9,FALSE)","v":5.51},{"$f":"VLOOKUP($A189,F1__World_Data!$A$4:$DP$191,8,FALSE)","v":5.4349999999999996},{"$f":"VLOOKUP($A189,F1__World_Data!$A$4:$DP$191,7,FALSE)","v":5.3879999999999999},{"$f":"VLOOKUP($A189,F1__World_Data!$A$4:$DP$191,6,FALSE)","v":5.3540000000000001},{"$f":"VLOOKUP($A189,F1__World_Data!$A$4:$DP$191,5,FALSE)","v":5.3410000000000002},{"$f":"VLOOKUP($A189,F1__World_Data!$A$4:$DP$191,4,FALSE)","v":5.34},{"$f":"VLOOKUP($A189,F1__World_Data!$A$4:$DP$191,3,FALSE)","v":5.33},{"$f":"VLOOKUP($A189,F1__World_Data!$A$4:$DP$191,2,FALSE)","v":5.3209999999999997},null,{"$f":"VLOOKUP($A189,F1__World_Data!$A$4:$DP$191,120,FALSE)","v":63.856999999999999},{"$f":"VLOOKUP($A189,F1__World_Data!$A$4:$DP$191,119,FALSE)","v":63.537999999999997},{"$f":"VLOOKUP($A189,F1__World_Data!$A$4:$DP$191,118,FALSE)","v":63.152999999999999},{"$f":"VLOOKUP($A189,F1__World_Data!$A$4:$DP$191,117,FALSE)","v":62.649000000000001},{"$f":"VLOOKUP($A189,F1__World_Data!$A$4:$DP$191,116,FALSE)","v":61.968000000000004},{"$f":"VLOOKUP($A189,F1__World_Data!$A$4:$DP$191,115,FALSE)","v":61.098999999999997},{"$f":"VLOOKUP($A189,F1__World_Data!$A$4:$DP$191,114,FALSE)","v":60.06},{"$f":"VLOOKUP($A189,F1__World_Data!$A$4:$DP$191,113,FALSE)","v":58.895000000000003},{"$f":"VLOOKUP($A189,F1__World_Data!$A$4:$DP$191,112,FALSE)","v":57.668999999999997},{"$f":"VLOOKUP($A189,F1__World_Data!$A$4:$DP$191,111,FALSE)","v":56.46},{"$f":"VLOOKUP($A189,F1__World_Data!$A$4:$DP$191,110,FALSE)","v":55.36},{"$f":"VLOOKUP($A189,F1__World_Data!$A$4:$DP$191,109,FALSE)","v":54.451999999999998},{"$f":"VLOOKUP($A189,F1__World_Data!$A$4:$DP$191,108,FALSE)","v":53.795000000000002},{"$f":"VLOOKUP($A189,F1__World_Data!$A$4:$DP$191,107,FALSE)","v":53.447000000000003},{"$f":"VLOOKUP($A189,F1__World_Data!$A$4:$DP$191,106,FALSE)","v":53.444000000000003},{"$f":"VLOOKUP($A189,F1__World_Data!$A$4:$DP$191,105,FALSE)","v":53.749000000000002},{"$f":"VLOOKUP($A189,F1__World_Data!$A$4:$DP$191,104,FALSE)","v":54.31},{"$f":"VLOOKUP($A189,F1__World_Data!$A$4:$DP$191,103,FALSE)","v":55.088999999999999},{"$f":"VLOOKUP($A189,F1__World_Data!$A$4:$DP$191,102,FALSE)","v":56.048000000000002},{"$f":"VLOOKUP($A189,F1__World_Data!$A$4:$DP$191,101,FALSE)","v":57.143999999999998},{"$f":"VLOOKUP($A189,F1__World_Data!$A$4:$DP$191,100,FALSE)","v":58.314999999999998},{"$f":"VLOOKUP($A189,F1__World_Data!$A$4:$DP$191,99,FALSE)","v":59.488999999999997},{"$f":"VLOOKUP($A189,F1__World_Data!$A$4:$DP$191,98,FALSE)","v":60.594999999999999},{"$f":"VLOOKUP($A189,F1__World_Data!$A$4:$DP$191,97,FALSE)","v":61.561},{"$f":"VLOOKUP($A189,F1__World_Data!$A$4:$DP$191,96,FALSE)","v":62.331000000000003},{"$f":"VLOOKUP($A189,F1__World_Data!$A$4:$DP$191,95,FALSE)","v":62.893999999999998},{"$f":"VLOOKUP($A189,F1__World_Data!$A$4:$DP$191,94,FALSE)","v":63.247},{"$f":"VLOOKUP($A189,F1__World_Data!$A$4:$DP$191,93,FALSE)","v":63.384},{"$f":"VLOOKUP($A189,F1__World_Data!$A$4:$DP$191,92,FALSE)","v":63.307000000000002},{"$f":"VLOOKUP($A189,F1__World_Data!$A$4:$DP$191,91,FALSE)","v":63.034999999999997},{"$f":"VLOOKUP($A189,F1__World_Data!$A$4:$DP$191,90,FALSE)","v":62.619},{"$f":"VLOOKUP($A189,F1__World_Data!$A$4:$DP$191,89,FALSE)","v":62.109000000000002},{"$f":"VLOOKUP($A189,F1__World_Data!$A$4:$DP$191,88,FALSE)","v":61.54},{"$f":"VLOOKUP($A189,F1__World_Data!$A$4:$DP$191,87,FALSE)","v":60.945999999999998},{"$f":"VLOOKUP($A189,F1__World_Data!$A$4:$DP$191,86,FALSE)","v":60.353000000000002},{"$f":"VLOOKUP($A189,F1__World_Data!$A$4:$DP$191,85,FALSE)","v":59.765999999999998},{"$f":"VLOOKUP($A189,F1__World_Data!$A$4:$DP$191,84,FALSE)","v":59.191000000000003},{"$f":"VLOOKUP($A189,F1__World_Data!$A$4:$DP$191,83,FALSE)","v":58.637},{"$f":"VLOOKUP($A189,F1__World_Data!$A$4:$DP$191,82,FALSE)","v":58.106999999999999},{"$f":"VLOOKUP($A189,F1__World_Data!$A$4:$DP$191,81,FALSE)","v":57.59},{"$f":"VLOOKUP($A189,F1__World_Data!$A$4:$DP$191,80,FALSE)","v":57.070999999999998},{"$f":"VLOOKUP($A189,F1__World_Data!$A$4:$DP$191,79,FALSE)","v":56.537999999999997},{"$f":"VLOOKUP($A189,F1__World_Data!$A$4:$DP$191,78,FALSE)","v":55.99},{"$f":"VLOOKUP($A189,F1__World_Data!$A$4:$DP$191,77,FALSE)","v":55.427999999999997},{"$f":"VLOOKUP($A189,F1__World_Data!$A$4:$DP$191,76,FALSE)","v":54.856000000000002},{"$f":"VLOOKUP($A189,F1__World_Data!$A$4:$DP$191,75,FALSE)","v":54.280999999999999},{"$f":"VLOOKUP($A189,F1__World_Data!$A$4:$DP$191,74,FALSE)","v":53.713000000000001},{"$f":"VLOOKUP($A189,F1__World_Data!$A$4:$DP$191,73,FALSE)","v":53.156999999999996},{"$f":"VLOOKUP($A189,F1__World_Data!$A$4:$DP$191,72,FALSE)","v":52.62},{"$f":"VLOOKUP($A189,F1__World_Data!$A$4:$DP$191,71,FALSE)","v":52.106000000000002},{"$f":"VLOOKUP($A189,F1__World_Data!$A$4:$DP$191,70,FALSE)","v":51.615000000000002},{"$f":"VLOOKUP($A189,F1__World_Data!$A$4:$DP$191,69,FALSE)","v":51.148000000000003},{"$f":"VLOOKUP($A189,F1__World_Data!$A$4:$DP$191,68,FALSE)","v":50.704999999999998},{"$f":"VLOOKUP($A189,F1__World_Data!$A$4:$DP$191,67,FALSE)","v":50.283999999999999},{"$f":"VLOOKUP($A189,F1__World_Data!$A$4:$DP$191,66,FALSE)","v":49.887999999999998},{"$f":"VLOOKUP($A189,F1__World_Data!$A$4:$DP$191,65,FALSE)","v":49.509},{"$f":"VLOOKUP($A189,F1__World_Data!$A$4:$DP$191,64,FALSE)","v":49.142000000000003},{"$f":"VLOOKUP($A189,F1__World_Data!$A$4:$DP$191,63,FALSE)","v":48.777000000000001},{"$f":"VLOOKUP($A189,F1__World_Data!$A$4:$DP$191,62,FALSE)","v":48.405999999999999}]
["Nauru",{"$f":"VLOOKUP($A190,F1__World_Data!$A$4:$DP$191,60,FALSE)","v":10.678000000000001},{"$f":"VLOOKUP($A190,F1__World_Data!$A$4:$DP$191,59,FALSE)","v":10.577},{"$f":"VLOOKUP($A190,F1__World_Data!$A$4:$DP$191,58,FALSE)","v":10.474},{"$f":"VLOOKUP($A190,F1__World_Data!$A$4:$DP$191,57,FALSE)","v":10.374000000000001},{"$f":"VLOOKUP($A190,F1__World_Data!$A$4:$DP$191,56,FALSE)","v":10.289},{"$f":"VLOOKUP($A190,F1__World_Data!$A$4:$DP$191,55,FALSE)","v":10.208},{"$f":"VLOOKUP($A190,F1__World_Data!$A$4:$DP$191,54,FALSE)","v":10.135999999999999},{"$f":"VLOOKUP($A190,F1__World_Data!$A$4:$DP$191,53,FALSE)","v":10.069000000000001},{"$f":"VLOOKUP($A190,F1__World_Data!$A$4:$DP$191,52,FALSE)","v":10.009},{"$f":"VLOOKUP($A190,F1__World_Data!$A$4:$DP$191,51,FALSE)","v":9.9450000000000003},{"$f":"VLOOKUP($A190,F1__World_Data!$A$4:$DP$191,50,FALSE)","v":9.8800000000000008},{"$f":"VLOOKUP($A190,F1__World_Data!$A$4:$DP$191,49,FALSE)","v":9.8460000000000001},{"$f":"VLOOKUP($A190,F1__World_Data!$A$4:$DP$191,48,FALSE)","v":9.827},{"$f":"VLOOKUP($A190,F1__World_Data!$A$4:$DP$191,47,FALSE)","v":9.8480000000000008},{"$f":"VLOOKUP($A190,F1__World_Data!$A$4:$DP$191,46,FALSE)","v":9.9060000000000006},{"$f":"VLOOKUP($A190,F1__World_Data!$A$4:$DP$191,45,FALSE)","v":9.99},{"$f":"VLOOKUP($A190,F1__World_Data!$A$4:$DP$191,44,FALSE)","v":10.102},{"$f":"VLOOKUP($A190,F1__World_Data!$A$4:$DP$191,43,FALSE)","v":10.218999999999999},{"$f":"VLOOKUP($A190,F1__World_Data!$A$4:$DP$191,42,FALSE)","v":10.335000000000001},{"$f":"VLOOKUP($A190,F1__World_Data!$A$4:$DP$191,41,FALSE)","v":10.449},{"$f":"VLOOKUP($A190,F1__World_Data!$A$4:$DP$191,40,FALSE)","v":10.567},{"$f":"VLOOKUP($A190,F1__World_Data!$A$4:$DP$191,39,FALSE)","v":10.643000000000001},{"$f":"VLOOKUP($A190,F1__World_Data!$A$4:$DP$191,38,FALSE)","v":10.677},{"$f":"VLOOKUP($A190,F1__World_Data!$A$4:$DP$191,37,FALSE)","v":10.625999999999999},{"$f":"VLOOKUP($A190,F1__World_Data!$A$4:$DP$191,36,FALSE)","v":10.496},{"$f":"VLOOKUP($A190,F1__World_Data!$A$4:$DP$191,35,FALSE)","v":10.287000000000001},{"$f":"VLOOKUP($A190,F1__World_Data!$A$4:$DP$191,34,FALSE)","v":10.029999999999999},{"$f":"VLOOKUP($A190,F1__World_Data!$A$4:$DP$191,33,FALSE)","v":9.766},{"$f":"VLOOKUP($A190,F1__World_Data!$A$4:$DP$191,32,FALSE)","v":9.5060000000000002},{"$f":"VLOOKUP($A190,F1__World_Data!$A$4:$DP$191,31,FALSE)","v":9.2750000000000004},{"$f":"VLOOKUP($A190,F1__World_Data!$A$4:$DP$191,30,FALSE)","v":9.0579999999999998},{"$f":"VLOOKUP($A190,F1__World_Data!$A$4:$DP$191,29,FALSE)","v":8.8680000000000003},{"$f":"VLOOKUP($A190,F1__World_Data!$A$4:$DP$191,28,FALSE)","v":8.6790000000000003},{"$f":"VLOOKUP($A190,F1__World_Data!$A$4:$DP$191,27,FALSE)","v":8.5009999999999994},{"$f":"VLOOKUP($A190,F1__World_Data!$A$4:$DP$191,26,FALSE)","v":8.3309999999999995},{"$f":"VLOOKUP($A190,F1__World_Data!$A$4:$DP$191,25,FALSE)","v":8.1630000000000003},{"$f":"VLOOKUP($A190,F1__World_Data!$A$4:$DP$191,24,FALSE)","v":8.016},{"$f":"VLOOKUP($A190,F1__World_Data!$A$4:$DP$191,23,FALSE)","v":7.8710000000000004},{"$f":"VLOOKUP($A190,F1__World_Data!$A$4:$DP$191,22,FALSE)","v":7.7510000000000003},{"$f":"VLOOKUP($A190,F1__World_Data!$A$4:$DP$191,21,FALSE)","v":7.6260000000000003},{"$f":"VLOOKUP($A190,F1__World_Data!$A$4:$DP$191,20,FALSE)","v":7.5049999999999999},{"$f":"VLOOKUP($A190,F1__World_Data!$A$4:$DP$191,19,FALSE)","v":7.3959999999999999},{"$f":"VLOOKUP($A190,F1__World_Data!$A$4:$DP$191,18,FALSE)","v":7.2839999999999998},{"$f":"VLOOKUP($A190,F1__World_Data!$A$4:$DP$191,17,FALSE)","v":7.1779999999999999},{"$f":"VLOOKUP($A190,F1__World_Data!$A$4:$DP$191,16,FALSE)","v":7.0620000000000003},{"$f":"VLOOKUP($A190,F1__World_Data!$A$4:$DP$191,15,FALSE)","v":6.9290000000000003},{"$f":"VLOOKUP($A190,F1__World_Data!$A$4:$DP$191,14,FALSE)","v":6.798},{"$f":"VLOOKUP($A190,F1__World_Data!$A$4:$DP$191,13,FALSE)","v":6.6689999999999996},{"$f":"VLOOKUP($A190,F1__World_Data!$A$4:$DP$191,12,FALSE)","v":6.5529999999999999},{"$f":"VLOOKUP($A190,F1__World_Data!$A$4:$DP$191,11,FALSE)","v":6.4450000000000003},{"$f":"VLOOKUP($A190,F1__World_Data!$A$4:$DP$191,10,FALSE)","v":6.343},{"$f":"VLOOKUP($A190,F1__World_Data!$A$4:$DP$191,9,FALSE)","v":6.2210000000000001},{"$f":"VLOOKUP($A190,F1__World_Data!$A$4:$DP$191,8,FALSE)","v":6.0650000000000004},{"$f":"VLOOKUP($A190,F1__World_Data!$A$4:$DP$191,7,FALSE)","v":5.859},{"$f":"VLOOKUP($A190,F1__World_Data!$A$4:$DP$191,6,FALSE)","v":5.59},{"$f":"VLOOKUP($A190,F1__World_Data!$A$4:$DP$191,5,FALSE)","v":5.27},{"$f":"VLOOKUP($A190,F1__World_Data!$A$4:$DP$191,4,FALSE)","v":4.9420000000000002},{"$f":"VLOOKUP($A190,F1__World_Data!$A$4:$DP$191,3,FALSE)","v":4.6269999999999998},{"$f":"VLOOKUP($A190,F1__World_Data!$A$4:$DP$191,2,FALSE)","v":4.3769999999999998},null,{"$f":"VLOOKUP($A190,F1__World_Data!$A$4:$DP$191,120,FALSE)","v":68.116},{"$f":"VLOOKUP($A190,F1__World_Data!$A$4:$DP$191,119,FALSE)","v":67.850999999999999},{"$f":"VLOOKUP($A190,F1__World_Data!$A$4:$DP$191,118,FALSE)","v":67.576999999999998},{"$f":"VLOOKUP($A190,F1__World_Data!$A$4:$DP$191,117,FALSE)","v":67.290999999999997},{"$f":"VLOOKUP($A190,F1__World_Data!$A$4:$DP$191,116,FALSE)","v":66.995000000000005},{"$f":"VLOOKUP($A190,F1__World_Data!$A$4:$DP$191,115,FALSE)","v":66.69},{"$f":"VLOOKUP($A190,F1__World_Data!$A$4:$DP$191,114,FALSE)","v":66.381},{"$f":"VLOOKUP($A190,F1__World_Data!$A$4:$DP$191,113,FALSE)","v":66.072000000000003},{"$f":"VLOOKUP($A190,F1__World_Data!$A$4:$DP$191,112,FALSE)","v":65.769000000000005},{"$f":"VLOOKUP($A190,F1__World_Data!$A$4:$DP$191,111,FALSE)","v":65.48},{"$f":"VLOOKUP($A190,F1__World_Data!$A$4:$DP$191,110,FALSE)","v":65.207999999999998},{"$f":"VLOOKUP($A190,F1__World_Data!$A$4:$DP$191,109,FALSE)","v":64.953000000000003},{"$f":"VLOOKUP($A190,F1__World_Data!$A$4:$DP$191,108,FALSE)","v":64.712000000000003},{"$f":"VLOOKUP($A190,F1__World_Data!$A$4:$DP$191,107,FALSE)","v":64.477999999999994},{"$f":"VLOOKUP($A190,F1__World_Data!$A$4:$DP$191,106,FALSE)","v":64.242000000000004},{"$f":"VLOOKUP($A190,F1__World_Data!$A$4:$DP$191,105,FALSE)","v":63.994999999999997},{"$f":"VLOOKUP($A190,F1__World_Data!$A$4:$DP$191,104,FALSE)","v":63.731000000000002},{"$f":"VLOOKUP($A190,F1__World_Data!$A$4:$DP$191,103,FALSE)","v":63.445999999999998},{"$f":"VLOOKUP($A190,F1__World_Data!$A$4:$DP$191,102,FALSE)","v":63.143999999999998},{"$f":"VLOOKUP($A190,F1__World_Data!$A$4:$DP$191,101,FALSE)","v":62.829000000000001},{"$f":"VLOOKUP($A190,F1__World_Data!$A$4:$DP$191,100,FALSE)","v":62.509},{"$f":"VLOOKUP($A190,F1__World_Data!$A$4:$DP$191,99,FALSE)","v":62.188000000000002},{"$f":"VLOOKUP($A190,F1__World_Data!$A$4:$DP$191,98,FALSE)","v":61.866},{"$f":"VLOOKUP($A190,F1__World_Data!$A$4:$DP$191,97,FALSE)","v":61.539000000000001},{"$f":"VLOOKUP($A190,F1__World_Data!$A$4:$DP$191,96,FALSE)","v":61.198},{"$f":"VLOOKUP($A190,F1__World_Data!$A$4:$DP$191,95,FALSE)","v":60.837000000000003},{"$f":"VLOOKUP($A190,F1__World_Data!$A$4:$DP$191,94,FALSE)","v":60.454999999999998},{"$f":"VLOOKUP($A190,F1__World_Data!$A$4:$DP$191,93,FALSE)","v":60.052999999999997},{"$f":"VLOOKUP($A190,F1__World_Data!$A$4:$DP$191,92,FALSE)","v":59.636000000000003},{"$f":"VLOOKUP($A190,F1__World_Data!$A$4:$DP$191,91,FALSE)","v":59.209000000000003},{"$f":"VLOOKUP($A190,F1__World_Data!$A$4:$DP$191,90,FALSE)","v":58.783000000000001},{"$f":"VLOOKUP($A190,F1__World_Data!$A$4:$DP$191,89,FALSE)","v":58.366},{"$f":"VLOOKUP($A190,F1__World_Data!$A$4:$DP$191,88,FALSE)","v":57.962000000000003},{"$f":"VLOOKUP($A190,F1__World_Data!$A$4:$DP$191,87,FALSE)","v":57.579000000000001},{"$f":"VLOOKUP($A190,F1__World_Data!$A$4:$DP$191,86,FALSE)","v":57.220999999999997},{"$f":"VLOOKUP($A190,F1__World_Data!$A$4:$DP$191,85,FALSE)","v":56.886000000000003},{"$f":"VLOOKUP($A190,F1__World_Data!$A$4:$DP$191,84,FALSE)","v":56.569000000000003},{"$f":"VLOOKUP($A190,F1__World_Data!$A$4:$DP$191,83,FALSE)","v":56.265999999999998},{"$f":"VLOOKUP($A190,F1__World_Data!$A$4:$DP$191,82,FALSE)","v":55.970999999999997},{"$f":"VLOOKUP($A190,F1__World_Data!$A$4:$DP$191,81,FALSE)","v":55.679000000000002},{"$f":"VLOOKUP($A190,F1__World_Data!$A$4:$DP$191,80,FALSE)","v":55.381999999999998},{"$f":"VLOOKUP($A190,F1__World_Data!$A$4:$DP$191,79,FALSE)","v":55.073999999999998},{"$f":"VLOOKUP($A190,F1__World_Data!$A$4:$DP$191,78,FALSE)","v":54.747999999999998},{"$f":"VLOOKUP($A190,F1__World_Data!$A$4:$DP$191,77,FALSE)","v":54.399000000000001},{"$f":"VLOOKUP($A190,F1__World_Data!$A$4:$DP$191,76,FALSE)","v":54.027000000000001},{"$f":"VLOOKUP($A190,F1__World_Data!$A$4:$DP$191,75,FALSE)","v":53.633000000000003},{"$f":"VLOOKUP($A190,F1__World_Data!$A$4:$DP$191,74,FALSE)","v":53.218000000000004},{"$f":"VLOOKUP($A190,F1__World_Data!$A$4:$DP$191,73,FALSE)","v":52.781999999999996},{"$f":"VLOOKUP($A190,F1__World_Data!$A$4:$DP$191,72,FALSE)","v":52.323},{"$f":"VLOOKUP($A190,F1__World_Data!$A$4:$DP$191,71,FALSE)","v":51.837000000000003},{"$f":"VLOOKUP($A190,F1__World_Data!$A$4:$DP$191,70,FALSE)","v":51.326999999999998},{"$f":"VLOOKUP($A190,F1__World_Data!$A$4:$DP$191,69,FALSE)","v":50.795999999999999},{"$f":"VLOOKUP($A190,F1__World_Data!$A$4:$DP$191,68,FALSE)","v":50.25},{"$f":"VLOOKUP($A190,F1__World_Data!$A$4:$DP$191,67,FALSE)","v":49.697000000000003},{"$f":"VLOOKUP($A190,F1__World_Data!$A$4:$DP$191,66,FALSE)","v":49.145000000000003},{"$f":"VLOOKUP($A190,F1__World_Data!$A$4:$DP$191,65,FALSE)","v":48.600999999999999},{"$f":"VLOOKUP($A190,F1__World_Data!$A$4:$DP$191,64,FALSE)","v":48.070999999999998},{"$f":"VLOOKUP($A190,F1__World_Data!$A$4:$DP$191,63,FALSE)","v":47.557000000000002},{"$f":"VLOOKUP($A190,F1__World_Data!$A$4:$DP$191,62,FALSE)","v":47.061}]
["Montserrat",{"$f":"VLOOKUP($A191,F1__World_Data!$A$4:$DP$191,60,FALSE)","v":4.9930000000000003},{"$f":"VLOOKUP($A191,F1__World_Data!$A$4:$DP$191,59,FALSE)","v":4.9889999999999999},{"$f":"VLOOKUP($A191,F1__World_Data!$A$4:$DP$191,58,FALSE)","v":4.9779999999999998},{"$f":"VLOOKUP($A191,F1__World_Data!$A$4:$DP$191,57,FALSE)","v":4.9660000000000002},{"$f":"VLOOKUP($A191,F1__World_Data!$A$4:$DP$191,56,FALSE)","v":4.952},{"$f":"VLOOKUP($A191,F1__World_Data!$A$4:$DP$191,55,FALSE)","v":4.9320000000000004},{"$f":"VLOOKUP($A191,F1__World_Data!$A$4:$DP$191,54,FALSE)","v":4.93},{"$f":"VLOOKUP($A191,F1__World_Data!$A$4:$DP$191,53,FALSE)","v":4.9130000000000003},{"$f":"VLOOKUP($A191,F1__World_Data!$A$4:$DP$191,52,FALSE)","v":4.8949999999999996},{"$f":"VLOOKUP($A191,F1__World_Data!$A$4:$DP$191,51,FALSE)","v":4.891},{"$f":"VLOOKUP($A191,F1__World_Data!$A$4:$DP$191,50,FALSE)","v":4.9059999999999997},{"$f":"VLOOKUP($A191,F1__World_Data!$A$4:$DP$191,49,FALSE)","v":4.9160000000000004},{"$f":"VLOOKUP($A191,F1__World_Data!$A$4:$DP$191,48,FALSE)","v":4.8899999999999997},{"$f":"VLOOKUP($A191,F1__World_Data!$A$4:$DP$191,47,FALSE)","v":4.8419999999999996},{"$f":"VLOOKUP($A191,F1__World_Data!$A$4:$DP$191,46,FALSE)","v":4.7030000000000003},{"$f":"VLOOKUP($A191,F1__World_Data!$A$4:$DP$191,45,FALSE)","v":4.5330000000000004},{"$f":"VLOOKUP($A191,F1__World_Data!$A$4:$DP$191,44,FALSE)","v":4.431},{"$f":"VLOOKUP($A191,F1__World_Data!$A$4:$DP$191,43,FALSE)","v":4.5279999999999996},{"$f":"VLOOKUP($A191,F1__World_Data!$A$4:$DP$191,42,FALSE)","v":4.9249999999999998},{"$f":"VLOOKUP($A191,F1__World_Data!$A$4:$DP$191,41,FALSE)","v":5.6929999999999996},{"$f":"VLOOKUP($A191,F1__World_Data!$A$4:$DP$191,40,FALSE)","v":6.7450000000000001},{"$f":"VLOOKUP($A191,F1__World_Data!$A$4:$DP$191,39,FALSE)","v":7.9269999999999996},{"$f":"VLOOKUP($A191,F1__World_Data!$A$4:$DP$191,38,FALSE)","v":9.0139999999999993},{"$f":"VLOOKUP($A191,F1__World_Data!$A$4:$DP$191,37,FALSE)","v":9.8480000000000008},{"$f":"VLOOKUP($A191,F1__World_Data!$A$4:$DP$191,36,FALSE)","v":10.362},{"$f":"VLOOKUP($A191,F1__World_Data!$A$4:$DP$191,35,FALSE)","v":10.598000000000001},{"$f":"VLOOKUP($A191,F1__World_Data!$A$4:$DP$191,34,FALSE)","v":10.659000000000001},{"$f":"VLOOKUP($A191,F1__World_Data!$A$4:$DP$191,33,FALSE)","v":10.627000000000001},{"$f":"VLOOKUP($A191,F1__World_Data!$A$4:$DP$191,32,FALSE)","v":10.616},{"$f":"VLOOKUP($A191,F1__World_Data!$A$4:$DP$191,31,FALSE)","v":10.622999999999999},{"$f":"VLOOKUP($A191,F1__World_Data!$A$4:$DP$191,30,FALSE)","v":10.632},{"$f":"VLOOKUP($A191,F1__World_Data!$A$4:$DP$191,29,FALSE)","v":10.666},{"$f":"VLOOKUP($A191,F1__World_Data!$A$4:$DP$191,28,FALSE)","v":10.704000000000001},{"$f":"VLOOKUP($A191,F1__World_Data!$A$4:$DP$191,27,FALSE)","v":10.787000000000001},{"$f":"VLOOKUP($A191,F1__World_Data!$A$4:$DP$191,26,FALSE)","v":10.925000000000001},{"$f":"VLOOKUP($A191,F1__World_Data!$A$4:$DP$191,25,FALSE)","v":11.106},{"$f":"VLOOKUP($A191,F1__World_Data!$A$4:$DP$191,24,FALSE)","v":11.298999999999999},{"$f":"VLOOKUP($A191,F1__World_Data!$A$4:$DP$191,23,FALSE)","v":11.481999999999999},{"$f":"VLOOKUP($A191,F1__World_Data!$A$4:$DP$191,22,FALSE)","v":11.606999999999999},{"$f":"VLOOKUP($A191,F1__World_Data!$A$4:$DP$191,21,FALSE)","v":11.664999999999999},{"$f":"VLOOKUP($A191,F1__World_Data!$A$4:$DP$191,20,FALSE)","v":11.675000000000001},{"$f":"VLOOKUP($A191,F1__World_Data!$A$4:$DP$191,19,FALSE)","v":11.654},{"$f":"VLOOKUP($A191,F1__World_Data!$A$4:$DP$191,18,FALSE)","v":11.612},{"$f":"VLOOKUP($A191,F1__World_Data!$A$4:$DP$191,17,FALSE)","v":11.576000000000001},{"$f":"VLOOKUP($A191,F1__World_Data!$A$4:$DP$191,16,FALSE)","v":11.55},{"$f":"VLOOKUP($A191,F1__World_Data!$A$4:$DP$191,15,FALSE)","v":11.539},{"$f":"VLOOKUP($A191,F1__World_Data!$A$4:$DP$191,14,FALSE)","v":11.53},{"$f":"VLOOKUP($A191,F1__World_Data!$A$4:$DP$191,13,FALSE)","v":11.519},{"$f":"VLOOKUP($A191,F1__World_Data!$A$4:$DP$191,12,FALSE)","v":11.538},{"$f":"VLOOKUP($A191,F1__World_Data!$A$4:$DP$191,11,FALSE)","v":11.553000000000001},{"$f":"VLOOKUP($A191,F1__World_Data!$A$4:$DP$191,10,FALSE)","v":11.603999999999999},{"$f":"VLOOKUP($A191,F1__World_Data!$A$4:$DP$191,9,FALSE)","v":11.647},{"$f":"VLOOKUP($A191,F1__World_Data!$A$4:$DP$191,8,FALSE)","v":11.696},{"$f":"VLOOKUP($A191,F1__World_Data!$A$4:$DP$191,7,FALSE)","v":11.721},{"$f":"VLOOKUP($A191,F1__World_Data!$A$4:$DP$191,6,FALSE)","v":11.711},{"$f":"VLOOKUP($A191,F1__World_Data!$A$4:$DP$191,5,FALSE)","v":11.673},{"$f":"VLOOKUP($A191,F1__World_Data!$A$4:$DP$191,4,FALSE)","v":11.653},{"$f":"VLOOKUP($A191,F1__World_Data!$A$4:$DP$191,3,FALSE)","v":11.728999999999999},{"$f":"VLOOKUP($A191,F1__World_Data!$A$4:$DP$191,2,FALSE)","v":11.957000000000001},null,{"$f":"VLOOKUP($A191,F1__World_Data!$A$4:$DP$191,120,FALSE)","v":68.116},{"$f":"VLOOKUP($A191,F1__World_Data!$A$4:$DP$191,119,FALSE)","v":67.850999999999999},{"$f":"VLOOKUP($A191,F1__World_Data!$A$4:$DP$191,118,FALSE)","v":67.576999999999998},{"$f":"VLOOKUP($A191,F1__World_Data!$A$4:$DP$191,117,FALSE)","v":67.290999999999997},{"$f":"VLOOKUP($A191,F1__World_Data!$A$4:$DP$191,116,FALSE)","v":66.995000000000005},{"$f":"VLOOKUP($A191,F1__World_Data!$A$4:$DP$191,115,FALSE)","v":66.69},{"$f":"VLOOKUP($A191,F1__World_Data!$A$4:$DP$191,114,FALSE)","v":66.381},{"$f":"VLOOKUP($A191,F1__World_Data!$A$4:$DP$191,113,FALSE)","v":66.072000000000003},{"$f":"VLOOKUP($A191,F1__World_Data!$A$4:$DP$191,112,FALSE)","v":65.769000000000005},{"$f":"VLOOKUP($A191,F1__World_Data!$A$4:$DP$191,111,FALSE)","v":65.48},{"$f":"VLOOKUP($A191,F1__World_Data!$A$4:$DP$191,110,FALSE)","v":65.207999999999998},{"$f":"VLOOKUP($A191,F1__World_Data!$A$4:$DP$191,109,FALSE)","v":64.953000000000003},{"$f":"VLOOKUP($A191,F1__World_Data!$A$4:$DP$191,108,FALSE)","v":64.712000000000003},{"$f":"VLOOKUP($A191,F1__World_Data!$A$4:$DP$191,107,FALSE)","v":64.477999999999994},{"$f":"VLOOKUP($A191,F1__World_Data!$A$4:$DP$191,106,FALSE)","v":64.242000000000004},{"$f":"VLOOKUP($A191,F1__World_Data!$A$4:$DP$191,105,FALSE)","v":63.994999999999997},{"$f":"VLOOKUP($A191,F1__World_Data!$A$4:$DP$191,104,FALSE)","v":63.731000000000002},{"$f":"VLOOKUP($A191,F1__World_Data!$A$4:$DP$191,103,FALSE)","v":63.445999999999998},{"$f":"VLOOKUP($A191,F1__World_Data!$A$4:$DP$191,102,FALSE)","v":63.143999999999998},{"$f":"VLOOKUP($A191,F1__World_Data!$A$4:$DP$191,101,FALSE)","v":62.829000000000001},{"$f":"VLOOKUP($A191,F1__World_Data!$A$4:$DP$191,100,FALSE)","v":62.509},{"$f":"VLOOKUP($A191,F1__World_Data!$A$4:$DP$191,99,FALSE)","v":62.188000000000002},{"$f":"VLOOKUP($A191,F1__World_Data!$A$4:$DP$191,98,FALSE)","v":61.866},{"$f":"VLOOKUP($A191,F1__World_Data!$A$4:$DP$191,97,FALSE)","v":61.539000000000001},{"$f":"VLOOKUP($A191,F1__World_Data!$A$4:$DP$191,96,FALSE)","v":61.198},{"$f":"VLOOKUP($A191,F1__World_Data!$A$4:$DP$191,95,FALSE)","v":60.837000000000003},{"$f":"VLOOKUP($A191,F1__World_Data!$A$4:$DP$191,94,FALSE)","v":60.454999999999998},{"$f":"VLOOKUP($A191,F1__World_Data!$A$4:$DP$191,93,FALSE)","v":60.052999999999997},{"$f":"VLOOKUP($A191,F1__World_Data!$A$4:$DP$191,92,FALSE)","v":59.636000000000003},{"$f":"VLOOKUP($A191,F1__World_Data!$A$4:$DP$191,91,FALSE)","v":59.209000000000003},{"$f":"VLOOKUP($A191,F1__World_Data!$A$4:$DP$191,90,FALSE)","v":58.783000000000001},{"$f":"VLOOKUP($A191,F1__World_Data!$A$4:$DP$191,89,FALSE)","v":58.366},{"$f":"VLOOKUP($A191,F1__World_Data!$A$4:$DP$191,88,FALSE)","v":57.962000000000003},{"$f":"VLOOKUP($A191,F1__World_Data!$A$4:$DP$191,87,FALSE)","v":57.579000000000001},{"$f":"VLOOKUP($A191,F1__World_Data!$A$4:$DP$191,86,FALSE)","v":57.220999999999997},{"$f":"VLOOKUP($A191,F1__World_Data!$A$4:$DP$191,85,FALSE)","v":56.886000000000003},{"$f":"VLOOKUP($A191,F1__World_Data!$A$4:$DP$191,84,FALSE)","v":56.569000000000003},{"$f":"VLOOKUP($A191,F1__World_Data!$A$4:$DP$191,83,FALSE)","v":56.265999999999998},{"$f":"VLOOKUP($A191,F1__World_Data!$A$4:$DP$191,82,FALSE)","v":55.970999999999997},{"$f":"VLOOKUP($A191,F1__World_Data!$A$4:$DP$191,81,FALSE)","v":55.679000000000002},{"$f":"VLOOKUP($A191,F1__World_Data!$A$4:$DP$191,80,FALSE)","v":55.381999999999998},{"$f":"VLOOKUP($A191,F1__World_Data!$A$4:$DP$191,79,FALSE)","v":55.073999999999998},{"$f":"VLOOKUP($A191,F1__World_Data!$A$4:$DP$191,78,FALSE)","v":54.747999999999998},{"$f":"VLOOKUP($A191,F1__World_Data!$A$4:$DP$191,77,FALSE)","v":54.399000000000001},{"$f":"VLOOKUP($A191,F1__World_Data!$A$4:$DP$191,76,FALSE)","v":54.027000000000001},{"$f":"VLOOKUP($A191,F1__World_Data!$A$4:$DP$191,75,FALSE)","v":53.633000000000003},{"$f":"VLOOKUP($A191,F1__World_Data!$A$4:$DP$191,74,FALSE)","v":53.218000000000004},{"$f":"VLOOKUP($A191,F1__World_Data!$A$4:$DP$191,73,FALSE)","v":52.781999999999996},{"$f":"VLOOKUP($A191,F1__World_Data!$A$4:$DP$191,72,FALSE)","v":52.323},{"$f":"VLOOKUP($A191,F1__World_Data!$A$4:$DP$191,71,FALSE)","v":51.837000000000003},{"$f":"VLOOKUP($A191,F1__World_Data!$A$4:$DP$191,70,FALSE)","v":51.326999999999998},{"$f":"VLOOKUP($A191,F1__World_Data!$A$4:$DP$191,69,FALSE)","v":50.795999999999999},{"$f":"VLOOKUP($A191,F1__World_Data!$A$4:$DP$191,68,FALSE)","v":50.25},{"$f":"VLOOKUP($A191,F1__World_Data!$A$4:$DP$191,67,FALSE)","v":49.697000000000003},{"$f":"VLOOKUP($A191,F1__World_Data!$A$4:$DP$191,66,FALSE)","v":49.145000000000003},{"$f":"VLOOKUP($A191,F1__World_Data!$A$4:$DP$191,65,FALSE)","v":48.600999999999999},{"$f":"VLOOKUP($A191,F1__World_Data!$A$4:$DP$191,64,FALSE)","v":48.070999999999998},{"$f":"VLOOKUP($A191,F1__World_Data!$A$4:$DP$191,63,FALSE)","v":47.557000000000002},{"$f":"VLOOKUP($A191,F1__World_Data!$A$4:$DP$191,62,FALSE)","v":47.061}]
[]
[]
[{"$f":"C___Expense!A10","v":"Hotel employee"},{"$f":"C___Expense!C10","v":0.48166666666666663}]
[{"$f":"C___Expense!A11","v":"Arts and Music Instructor A"},{"$f":"C___Expense!C11","v":0.53666666666666674}]
[{"$f":"C___Expense!A12","v":"Arts and Music Instructor B"},{"$f":"C___Expense!C12","v":0.42666666666666669}]

{"sheet":"G___Sales_Projection","index":9,"n_rows":15,"n_cols":13,"rows_kept":15,"cut":false,"hidden":true,"merged":[[0,1,0,12],[8,1,8,12]]}
[null,"24 Month Sales Projection Year 2020"]
[null,"Jan","Feb","Mar","Apr","May","Jun","Jul","Aug","Sep","Oct","Nov","Dec"]
["Units",1100,1600,1100,1100,1100,1100,1200,1300,1400,1500,1600,1700]
["Cum units",{"$f":"SUM(B3:B3)","v":1100},{"$f":"SUM(B3:C3)","v":2700},{"$f":"SUM(B3:D3)","v":3800},{"$f":"SUM(B3:E3)","v":4900},{"$f":"SUM(B3:F3)","v":6000},{"$f":"SUM(B3:G3)","v":7100},{"$f":"SUM(B3:H3)","v":8300},{"$f":"SUM(B3:I3)","v":9600},{"$f":"SUM(B3:J3)","v":11000},{"$f":"SUM(B3:K3)","v":12500},{"$f":"SUM(B3:L3)","v":14100},{"$f":"SUM(B3:M3)","v":15800}]
["Selling Price",5,5,5,5,5,5,5,5,5,5,5,5]
["Total Sales",{"$f":"B3*B5","v":5500},{"$f":"C3*C5","v":8000},5500,5500,5500,5500,6000,6500,7000,7500,8000,8500]
["% of Total",{"$f":"B6/SUM($B6:$M6)","v":6.9620253164556958E-2},{"$f":"C6/SUM($B6:$M6)","v":0.10126582278481013},6.9620253164556958E-2,6.9620253164556958E-2,6.9620253164556958E-2,6.9620253164556958E-2,7.5949367088607597E-2,8.2278481012658222E-2,8.8607594936708861E-2,9.49367088607595E-2,0.10126582278481013,0.10759493670886076]
[]
[null,"24 Month Sales Projection Year 2021"]
[null,"Jan","Feb","Mar","Apr","May","Jun","Jul","Aug","Sep","Oct","Nov","Dec"]
["Units",1400,1600,1300,1400,1500,1600,1700,1300,1400,1500,1600,1700]
["Cum units",{"$f":"SUM($B11:B11)","v":1400},{"$f":"SUM($B11:C11)","v":3000},{"$f":"SUM($B11:D11)","v":4300},{"$f":"SUM($B11:E11)","v":5700},{"$f":"SUM($B11:F11)","v":7200},{"$f":"SUM($B11:G11)","v":8800},{"$f":"SUM($B11:H11)","v":10500},{"$f":"SUM($B11:I11)","v":11800},{"$f":"SUM($B11:J11)","v":13200},{"$f":"SUM($B11:K11)","v":14700},{"$f":"SUM($B11:L11)","v":16300},{"$f":"SUM($B11:M11)","v":18000}]
["Selling Price",5.0999999999999996,5.0999999999999996,5.0999999999999996,5.0999999999999996,5.0999999999999996,5.0999999999999996,5.0999999999999996,5.0999999999999996,5.0999999999999996,5.0999999999999996,5.0999999999999996,5.0999999999999996]
["Total Sales",{"$f":"B11*B13","v":7139.9999999999991},{"$f":"C11*C13","v":8159.9999999999991},{"$f":"D11*D13","v":6629.9999999999991},{"$f":"E11*E13","v":7139.9999999999991},{"$f":"F11*F13","v":7649.9999999999991},{"$f":"G11*G13","v":8159.9999999999991},{"$f":"H11*H13","v":8670},{"$f":"I11*I13","v":6629.9999999999991},{"$f":"J11*J13","v":7139.9999999999991},{"$f":"K11*K13","v":7649.9999999999991},{"$f":"L11*L13","v":8159.9999999999991},{"$f":"M11*M13","v":8670}]
["% of Total",{"$f":"B14/SUM($B14:$M14)","v":7.7777777777777779E-2},{"$f":"C14/SUM($B14:$M14)","v":8.8888888888888892E-2},{"$f":"D14/SUM($B14:$M14)","v":7.2222222222222229E-2},{"$f":"E14/SUM($B14:$M14)","v":7.7777777777777779E-2},{"$f":"F14/SUM($B14:$M14)","v":8.3333333333333343E-2},{"$f":"G14/SUM($B14:$M14)","v":8.8888888888888892E-2},{"$f":"H14/SUM($B14:$M14)","v":9.4444444444444456E-2},{"$f":"I14/SUM($B14:$M14)","v":7.2222222222222229E-2},{"$f":"J14/SUM($B14:$M14)","v":7.7777777777777779E-2},{"$f":"K14/SUM($B14:$M14)","v":8.3333333333333343E-2},{"$f":"L14/SUM($B14:$M14)","v":8.8888888888888892E-2},{"$f":"M14/SUM($B14:$M14)","v":9.4444444444444456E-2}]

{"sheet":"H___Advanced_Formulas","index":10,"n_rows":75,"n_cols":9,"rows_kept":75,"cut":false,"hidden":false,"merged":[[42,4,42,5],[28,1,28,7],[38,4,38,5],[39,4,39,5],[40,4,40,5],[41,4,41,5],[43,4,43,5],[44,4,44,5],[45,4,45,5],[46,4,46,5],[47,4,47,5]]}
[null,"Example User Defined Functions"]
[null,"Example 1"]
[null,"WorkbookName function",{"$f":"WorkbookName()","v":"ExcelAnalyzer_demo_model.xlsm"}]
[null,"Example 2"]
[null,"Sheetname function",{"$f":"SheetName(B1)","v":"H___Advanced_Formulas"}]
[null,"Example 3"]
[null,"ExtractComment function 1",{"$f":"ExtractComment(B7)","v":"This is an example of a user defined function which puts the text of the comment in an Excel cell\n"}]
[null,"ExtractComment function 2",{"$f":"ExtractComment(B8)","v":"Example 2\n\n"}]
[null,"Example 4"]
[null,"DoesFileExist function",{"$f":"DoesFileExist(C11)","v":false}]
[null,null,"C:\\examplemodels\\ExcelAnalyzer_example_file.xlsx"]
[]
[null,"Example Array formulas"]
[null,"Example 1"]
[null,"January",{"$f":"SUM(LEN(B15:B26))","v":74},"This array formula returns the number of letters in the range"]
[null,"February"]
[null,"March"]
[null,"April"]
[null,"May"]
[null,"June"]
[null,"July"]
[null,"August"]
[null,"September"]
[null,"October"]
[null,"November"]
[null,"December"]
[null,"Example 2"]
[null,"Create calendar with array formulas"]
[null,{"$f":"TODAY()","v":"2020-11-26"}]
[null,"Sun","Mon","Tue","Wed","Thu","Fri","Sat"]
[null,{"$f":"IF(MONTH(DATE(YEAR(B29),MONTH(B29),1))<>MONTH(DATE(YEAR(B29),MONTH(B29),1)-(WEEKDAY(DATE(YEAR(B29),MONTH(B29),1))-1)+{0;1;2;3;4;5}*7+{1,2,3,4,5,6,7}-1),\"\",DATE(YEAR(B29),MONTH(B29),1)-(WEEKDAY(DATE(YEAR(B29),MONTH(B29),1))-1)+{0;1;2;3;4;5}*7+{1,2,3,4,5,6,7}-1)","v":"2020-11-01"},"2020-11-02","2020-11-03","2020-11-04","2020-11-05","2020-11-06","2020-11-07"]
[null,"2020-11-08","2020-11-09","2020-11-10","2020-11-11","2020-11-12","2020-11-13","2020-11-14"]
[null,"2020-11-15","2020-11-16","2020-11-17","2020-11-18","2020-11-19","2020-11-20","2020-11-21"]
[null,"2020-11-22","2020-11-23","2020-11-24","2020-11-25","2020-11-26","2020-11-27","2020-11-28"]
[null,"2020-11-29","2020-11-30","","","","",""]
[null,"","","","","","",""]
[null,"Example 3"]
[null,"This examples shows how an array formula can eliminate the need for intermediary formulas."]
[null,null,"Test 1","Test 2","Test 2- Test 1"]
[null,"Student 1",45,56,{"$f":"D40-C40","v":11},null,null,{"$f":"MIN(D40:D48-C40:C48)","v":-5},"Largest Decrease"]
[null,"Student 2",78,73,{"$f":"D41-C41","v":-5},null,null,{"$f":"MAX(D40:D48-C40:C48)","v":11},"Largest Increase"]
[null,"Student 3",91,93,2]
[null,"Student 4",62,69,7]
[null,"Student 5",74,71,-3]
[null,"Student 6",87,87,0]
[null,"Student 7",81,89,8]
[null,"Student 8",83,80,-3]
[null,"Student 9",53,53,0]
[]
[null,"Example subtotal formulas"]
[null,"Example 1"]
[null,"Person","Sales month Jan"]
[null,"Diana",230000]
[null,"Diana",327600]
[null,"Diana",269780]
[null,"Diana Average",{"$f":"SUBTOTAL(1,C53:C55)","v":275793.33333333331}]
[null,"Diana Total",{"$f":"SUBTOTAL(9,C53:C55)","v":827380}]
[null,"Sofia",437860]
[null,"Sofia",375900]
[null,"Sofia",698700]
[null,"Sofia Average",{"$f":"SUBTOTAL(1,C58:C60)","v":504153.33333333331}]
[null,"Sofia Total",{"$f":"SUBTOTAL(9,C58:C60)","v":1512460}]
[null,"David",17800]
[null,"David",97680]
[null,"David",500400]
[null,"David Average",{"$f":"SUBTOTAL(1,C63:C65)","v":205293.33333333334}]
[null,"David Total",{"$f":"SUBTOTAL(9,C63:C65)","v":615880}]
[null,"Brian",543900]
[null,"Brian",154987]
[null,"Brian",384600]
[null,"Brian",430700]
[null,"Brian Average",{"$f":"SUBTOTAL(1,C68:C71)","v":378546.75}]
[null,"Brian Total",{"$f":"SUBTOTAL(9,C68:C71)","v":1514187}]
[null,"Grand Average",{"$f":"SUBTOTAL(1,C53:C71)","v":343839}]
[null,"Grand Total",{"$f":"SUBTOTAL(9,C53:C71)","v":4469907}]

{"sheet":"I1__Growth","index":11,"n_rows":18,"n_cols":10,"rows_kept":18,"cut":false,"hidden":false,"merged":[]}
[null,null,null,null,15,16,17,18,19]
[null,"Percentage",null,"Current",100,115,130,145,160]
[null,0.02,0.15,{"$f":"SUM(E3:J3)","v":146.09885069001731},{"$f":"E$2/((1+$C3)^E$1)","v":12.28944852053365},{"$f":"F$2/((1+$C3)^F$1)","v":12.289448520533652},12.080365275382796,11.716742240337831,11.242451325061788,{"$f":"I3/(C3-$B$3)","v":86.480394808167603}]
[null,null,0.12,279.16604945348456,{"$f":"E$2/((1+$C4)^E$1)","v":18.269626126419929},18.75899111194903,18.933764321066565,18.855740566996236,18.577084302459344,{"$f":"I4/(C4-$B$3)","v":185.77084302459346}]
[null,null,0.1,453.94314723200188,23.93920493691634,25.027350615867082,25.719806957017553,26.079524536835979,26.161278532249252,{"$f":"I5/(C5-$B$3)","v":327.01598165311566}]
[null,null,0.08,791.48541473894136,31.524170496588997,33.567403769516062,35.134963687899258,36.286109221833279,37.073930239420967,{"$f":"I6/(C6-$B$3)","v":617.89883732368276}]
[null,1.4999999999999999E-2,0.15,142.89587310452961,12.28944852053365,12.289448520533652,12.080365275382796,11.716742240337831,11.242451325061788,{"$f":"I7/(C7-$B$7)","v":83.277417222679901}]
[null,null,0.12,270.3198188332658,18.269626126419929,18.75899111194903,18.933764321066565,18.855740566996236,18.577084302459344,{"$f":"I8/(C8-$B$7)","v":176.9246124043747}]
[null,null,0.1,434.7069130171127,23.93920493691634,25.027350615867082,25.719806957017553,26.079524536835979,26.161278532249252,{"$f":"I9/(C9-$B$7)","v":307.77974743822648}]
[null,null,0.08,743.95473494481189,31.524170496588997,33.567403769516062,35.134963687899258,36.286109221833279,37.073930239420967,{"$f":"I10/(C10-$B$7)","v":570.36815752955329}]
[null,0.01,0.15,139.92167963229105,12.28944852053365,12.289448520533652,12.080365275382796,11.716742240337831,11.242451325061788,{"$f":"I11/(C11-$B$11)","v":80.303223750441347}]
[null,null,0.12,262.27779099670329,18.269626126419929,18.75899111194903,18.933764321066565,18.855740566996236,18.577084302459344,{"$f":"I12/(C12-$B$11)","v":168.88258456781222}]
[null,null,0.1,417.60803815943342,23.93920493691634,25.027350615867082,25.719806957017553,26.079524536835979,26.161278532249252,{"$f":"I13/(C13-$B$11)","v":290.6808725805472}]
[null,null,0.08,703.21415226412955,31.524170496588997,33.567403769516062,35.134963687899258,36.286109221833279,37.073930239420967,{"$f":"I14/(C14-$B$11)","v":529.62757484887095}]
[null,5.0000000000000001E-3,0.15,137.15260295124136,12.28944852053365,12.289448520533652,12.080365275382796,11.716742240337831,11.242451325061788,{"$f":"I15/(C15-$B$15)","v":77.534147069391651}]
[null,null,0.12,254.93506992853759,18.269626126419929,18.75899111194903,18.933764321066565,18.855740566996236,18.577084302459344,{"$f":"I16/(C16-$B$15)","v":161.53986349964649}]
[null,null,0.1,402.30904486572047,23.93920493691634,25.027350615867082,25.719806957017553,26.079524536835979,26.161278532249252,{"$f":"I17/(C17-$B$15)","v":275.38187928683425}]
[null,null,0.08,667.90564727420485,31.524170496588997,33.567403769516062,35.134963687899258,36.286109221833279,37.073930239420967,{"$f":"I18/(C18-$B$15)","v":494.31906985894625}]

{"sheet":"I2__Growth","index":12,"n_rows":18,"n_cols":10,"rows_kept":18,"cut":false,"hidden":false,"merged":[]}
[null,null,null,null,15,16,17,18,19,20]
[null,"Percentage",null,"Current",100,115,130,145,160]
[null,0.03,0.16999999999999998,{"$f":"SUM(E3:J3)","v":102.39011172602599},{"$f":"E$2/((1+$C3)^E$1)","v":9.4888170619233314},{"$f":"F$2/((1+$C3)^F$1)","v":9.326615060864814},9.0112222810288074,8.5905800838210187,8.1019322924336166,{"$f":"I3/(C3-$B$3)","v":57.870944945954413}]
[null,null,0.13999999999999999,189.79141681935542,{"$f":"E$2/((1+$C4)^E$1)","v":14.009648206915903},14.132539857853759,14.013960194668108,13.711364562934383,13.271738233935277,{"$f":"I4/(C4-$B$3)","v":120.65216576304799}]
[null,null,0.12000000000000001,299.80725423399491,18.269626126419929,18.75899111194903,18.933764321066565,18.855740566996236,18.577084302459344,{"$f":"I5/(C5-$B$3)","v":206.41204780510381}]
[null,null,0.1,500.6597160395898,23.93920493691634,25.027350615867082,25.719806957017553,26.079524536835979,26.161278532249252,{"$f":"I6/(C6-$B$3)","v":373.73255046070358}]
[null,2.5000000000000001E-2,0.16999999999999998,100.39456190030343,9.4888170619233314,9.326615060864814,9.0112222810288074,8.5905800838210187,8.1019322924336166,{"$f":"I7/(C7-$B$7)","v":55.875395120231843}]
[null,null,0.13999999999999999,184.54567048183159,14.009648206915903,14.132539857853759,14.013960194668108,13.711364562934383,13.271738233935277,{"$f":"I8/(C8-$B$7)","v":115.40641942552416}]
[null,null,0.12000000000000001,288.9434622442526,18.269626126419929,18.75899111194903,18.933764321066565,18.855740566996236,18.577084302459344,{"$f":"I9/(C9-$B$7)","v":195.5482558153615}]
[null,null,0.1,475.74421267554288,23.93920493691634,25.027350615867082,25.719806957017553,26.079524536835979,26.161278532249252,{"$f":"I10/(C10-$B$7)","v":348.81704709665667}]
[null,0.02,0.16999999999999998,98.532048729629025,9.4888170619233314,9.326615060864814,9.0112222810288074,8.5905800838210187,8.1019322924336166,{"$f":"I11/(C11-$B$11)","v":54.012881949557446}]
[null,null,0.13999999999999999,179.73706967243476,14.009648206915903,14.132539857853759,14.013960194668108,13.711364562934383,13.271738233935277,{"$f":"I12/(C12-$B$11)","v":110.59781861612733}]
[null,null,0.12000000000000001,279.16604945348456,18.269626126419929,18.75899111194903,18.933764321066565,18.855740566996236,18.577084302459344,{"$f":"I13/(C13-$B$11)","v":185.77084302459343}]
[null,null,0.1,453.94314723200188,23.93920493691634,25.027350615867082,25.719806957017553,26.079524536835979,26.161278532249252,{"$f":"I14/(C14-$B$11)","v":327.01598165311566}]
[null,1.4999999999999999E-2,0.16999999999999998,96.789697698998154,9.4888170619233314,9.326615060864814,9.0112222810288074,8.5905800838210187,8.1019322924336166,{"$f":"I15/(C15-$B$15)","v":52.270530918926568}]
[null,null,0.13999999999999999,175.31315692778966,14.009648206915903,14.132539857853759,14.013960194668108,13.711364562934383,13.271738233935277,{"$f":"I16/(C16-$B$15)","v":106.17390587148223}]
[null,null,0.12000000000000001,270.3198188332658,18.269626126419929,18.75899111194903,18.933764321066565,18.855740566996236,18.577084302459344,{"$f":"I17/(C17-$B$15)","v":176.9246124043747}]
[null,null,0.1,434.7069130171127,23.93920493691634,25.027350615867082,25.719806957017553,26.079524536835979,26.161278532249252,{"$f":"I18/(C18-$B$15)","v":307.77974743822648}]

{"sheet":"I3__Growth","index":13,"n_rows":18,"n_cols":10,"rows_kept":18,"cut":false,"hidden":false,"merged":[]}
[null,null,null,null,15,16,17,18,19,20]
[null,"Percentage",null,"Current",100,115,130,145,160]
[null,0.02,0.15,{"$f":"SUM(E3:J3)","v":146.09885069001731},{"$f":"E$2/((1+$C3)^E$1)","v":12.28944852053365},{"$f":"F$2/((1+$C3)^F$1)","v":12.289448520533652},12.080365275382796,11.716742240337831,11.242451325061788,{"$f":"I3/(C3-$B$3)","v":86.480394808167603}]
[null,null,0.12,279.16604945348456,{"$f":"E$2/((1+$C4)^E$1)","v":18.269626126419929},18.75899111194903,18.933764321066565,18.855740566996236,18.577084302459344,{"$f":"I4/(C4-$B$3)","v":185.77084302459346}]
[null,null,0.1,453.94314723200188,23.93920493691634,25.027350615867082,25.719806957017553,26.079524536835979,26.161278532249252,{"$f":"I5/(C5-$B$3)","v":327.01598165311566}]
[null,null,0.08,791.48541473894136,31.524170496588997,33.567403769516062,35.134963687899258,36.286109221833279,37.073930239420967,{"$f":"I6/(C6-$B$3)","v":617.89883732368276}]
[null,1.4999999999999999E-2,0.15,142.89587310452961,12.28944852053365,12.289448520533652,12.080365275382796,11.716742240337831,11.242451325061788,{"$f":"I7/(C7-$B$7)","v":83.277417222679901}]
[null,null,0.12,270.3198188332658,18.269626126419929,18.75899111194903,18.933764321066565,18.855740566996236,18.577084302459344,{"$f":"I8/(C8-$B$7)","v":176.9246124043747}]
[null,null,0.1,434.7069130171127,23.93920493691634,25.027350615867082,25.719806957017553,26.079524536835979,26.161278532249252,{"$f":"I9/(C9-$B$7)","v":307.77974743822648}]
[null,null,0.08,743.95473494481189,31.524170496588997,33.567403769516062,35.134963687899258,36.286109221833279,37.073930239420967,{"$f":"I10/(C10-$B$7)","v":570.36815752955329}]
[null,0.01,0.15,139.92167963229105,12.28944852053365,12.289448520533652,12.080365275382796,11.716742240337831,11.242451325061788,{"$f":"I11/(C11-$B$11)","v":80.303223750441347}]
[null,null,0.12,262.27779099670329,18.269626126419929,18.75899111194903,18.933764321066565,18.855740566996236,18.577084302459344,{"$f":"I12/(C12-$B$11)","v":168.88258456781222}]
[null,null,0.1,417.60803815943342,23.93920493691634,25.027350615867082,25.719806957017553,26.079524536835979,26.161278532249252,{"$f":"I13/(C13-$B$11)","v":290.6808725805472}]
[null,null,0.08,703.21415226412955,31.524170496588997,33.567403769516062,35.134963687899258,36.286109221833279,37.073930239420967,{"$f":"I14/(C14-$B$11)","v":529.62757484887095}]
[null,{"$f":"0.5%","v":5.0000000000000001E-3},0.15,137.15260295124136,12.28944852053365,12.289448520533652,12.080365275382796,11.716742240337831,11.242451325061788,{"$f":"I15/(C15-$B$15)","v":77.534147069391651}]
[null,null,0.12,254.93506992853759,18.269626126419929,18.75899111194903,18.933764321066565,18.855740566996236,18.577084302459344,{"$f":"I16/(C16-$B$15)","v":161.53986349964649}]
[null,null,0.1,402.30904486572047,23.93920493691634,25.027350615867082,25.719806957017553,26.079524536835979,26.161278532249252,{"$f":"I17/(C17-$B$15)","v":275.38187928683425}]
[null,null,0.08,667.90564727420485,31.524170496588997,33.567403769516062,35.134963687899258,36.286109221833279,37.073930239420967,{"$f":"I18/(C18-$B$15)","v":494.31906985894625}]

{"sheet":"J___Employee_Summary","index":14,"n_rows":54,"n_cols":9,"rows_kept":54,"cut":false,"hidden":true,"merged":[]}
[null,null,"Employee historical data (periode 2014 - 2020)"]
["Summary of Employee",null,2014,2015,2016,2017,2018,2019,2020]
[]
["Councillors (Political Office)"]
["Basic Salaries and Wages",null,1057582.6399999999,1059769.6704248262,1079589.8211843104,1090365.0718695971,1095356.8396091971,1101897.8622273817,1102775.2399641576]
["Pension Contributions",null,67750.320000000007,68078.50842381909,69381.709609816564,69903.50629666906,70009.41920774187,70060.035764063665,70673.83805454355]
["Medical Aid Contributions",null,15374.34,15386.542548670335,15595.225898577926,"24321",24457.597243061897,24591.99295502004,24682.367679485204]
["Motor vehicle allowance",null,194163.94,194354.11822085691,198089.55573836842,"353168",355296.09645447531,358506.92216911388,359621.25945395336]
["Cell phone allowance",null,29288.89,29538.75496735645,29899.646473602068,"68303",68948.432171821885,69590.71657815481,70150.636072083318]
["Housing allowance",null,39383.24,39456.320753048421,40221.481558620158,40438.317554286812,40659.35965943367,40863.101159309052,40907.162823310304]
["Performance Bonus",null,58071.06,58549.992970847001,59862.777427060246,60054.793524001187,60636.837404271384,60840.532582138614,61112.362967440327]
["Other benefits or allowances",null,76749.8,77284.267060524391,78702.010473775576,79249.704339135773,79469.046207817606,79718.409047092122,80125.411468772756]
["In-kind benefits",null,37116,37404.253620904477,37891.328381107916,38176.889308225276,38429.444256140916,38484.17593208918,38811.654973770826]
["Sub Total - Councillors",null,{"$f":"SUM(C5:C13)","v":1575480.23},{"$f":"SUM(D5:D13)","v":1579822.4289908533},1609233.5567452395,1378188.2828919154,1833263.0722139615,1844553.7484143628,1848859.9334575171]
["% increase",null,null,{"$f":"(D14-C14)/C14","v":2.75611137999064E-3},{"$f":"(E14-D14)/D14","v":1.8616730092364427E-2},-0.14357473027136314,0.33019783651558982,6.1587866856260588E-3,2.3345402902225096E-3]
[]
["Senior Managers"]
["Basic Salaries and Wages",null,629261.47,630582.91957368702,640127.10394914914,645099.77319825941,645986.30072192149,648791.52985057142,651304.84452064068]
["Pension Contributions",null,65903.08,66176.923822841316,67547.472201648052,67730.452475080077,68093.192556241382,68674.736890412227,68701.321857856979]
["Medical Aid Contributions",null,21042.58,21247.351006450739,21452.255215397032,21554.530034165517,21720.24438284566,{"$f":"120185.38+25256","v":145441.38},21846.94303272889]
["Motor vehicle allowance",null,128686.06,"168655",172723.43653926475,173471.35455401972,175098.65480620245,777810.13191390561,176137.7899040739]
["Cell phone allowance",null,5040.97,8324,8466.2339608296134,8509.0252609917989,8512.6791269002788,{"$f":"2568+23698","v":26266},8617.9058405000596]
["Housing allowance",null,5266.49,5274.354059510044,5389.5844321530312,5407.822706829681,5448.7196241827633,5451.9245240606615,5490.1162254433348]
["Performance Bonus",null,58071.06,58333.367614342169,59567.453584935269,59721.324853376565,59947.556103262796,60048.430746964092,60642.090987134347]
["Other benefits or allowances",null,49053.85,49254.084580347801,49615.55857152056,50018.800053246399,50020.534868187591,50310.714085285625,50673.273288723736]
["In-kind benefits",null,27366.22,27421.473569801557,27970.653389651619,28084.764663214104,28292.746677318235,28453.857327176822,28696.526445482839]
["Sub Total - Senior Managers",null,{"$f":"SUM(C18:C26)","v":989691.77999999991},{"$f":"SUM(D18:D26)","v":866614.47422698059},1052859.7518445491,1059597.8477991833,1063120.6288670627,1811248.7053383763,1072110.8121025846]
["% increase",null,null,{"$f":"(D27-C27)/C27","v":-0.12435922805483879},{"$f":"(E27-D27)/D27","v":0.21491133965157821},6.399803908193372E-3,3.3246396972175128E-3,0.70370949086800461,-0.40808194427264277]
[]
["Other Municipal Staff"]
["Basic Salaries and Wages",null,5946647.0300000003,5976388.1695226543,6073229.3709566751,6078470.3463264974,6098636.6910701999,6136327.9246892771,6179918.3189839106]
["Pension Contributions",null,1028190.44,1035761.8798616745,1055062.2038939171,1057932.4147076618,1066464.188186995,1070527.202861222,1080070.4578888274]
["Medical Aid Contributions",null,394108.7,396293.67414167995,402576.39461506909,404639.80327646248,404717.98671292426,1889099.38,1903340.9781389579]
["Motor vehicle allowance",null,740709.3,744910.12367554416,757193.86341862311,764207.7957366145,770506.81109459861,777810.13191390561,780437.3357825611]
["Cell phone allowance",null,85295.19,85799.1719715043,86905.026789242489,87307.997870176725,87325.932884170586,164542.1,165654.47504815311]
["Housing allowance",null,131740.51,132527.14146526635,133721.14487731963,134876.8163279265,135931.23537531562,136404.78661608021,137739.39078215582]
["Performance Bonus",null,177703.08,178986.10740437728,182639.11108488907,184071.68285510127,185776.33999805019,186546.71017204749,186731.74087168273]
["Other benefits or allowances",null,1646675.65,1660162.2195154286,1677977.3350745563,1685487.7458734515,1692392.6157685376,1693543.4192821104,1707028.9393469568]
["In-kind benefits",null,202244.14,204262.28921049697,207847.89023288927,208965.70800162887,210936.0496570472,211840.0349131203,212459.38226429423]
["Sub Total - Other Municipal Staff",null,{"$f":"SUM(C31:C39)","v":10353314.040000001},10415090.776768625,10577152.340943182,10605960.31097552,10652687.850747837,12266641.690447764,12353381.019107498]
["% increase",null,null,{"$f":"(D40-C40)/C40","v":5.9668562674665866E-3},{"$f":"(E40-D40)/D40","v":1.5560264202021497E-2},2.7236035847592981E-3,4.4057811270480692E-3,0.15150672415381303,7.0711553209611639E-3]
[]
["Other Staff of Entities"]
["Basic Salaries and Wages",null,2150,2166.3549078822975,2203.7463672447047,2221.1892452807842,2242.696811658725,2248.3957023127141,2266.8666346450282]
["Pension Contributions",null,5090,20574,10096,8194,9498,22973,15977]
["Medical Aid Contributions",null,10359,15949,15923,6180,14916,15721,5951]
["Motor vehicle allowance",null,17394,7625,22797,23410,19066,8408,19420]
["Cell phone allowances",null,9473,10533,22645,16879,13609,9044,11126]
["Housing allowance",null,5368,7355,10549,12215,7699,10129,23602]
["Performance Bonus",null,1086306.74,1088297.3074531329,1110545.5159861383,1115317.6451104735,1120078.7428636821,1127181.9736279564,1135018.6298607795]
["Other benefits or allowances",null,184083.64,185921.53734996586,188834.17891445244,190273.49037806384,191983.88685466262,192903.69881007087,194159.753590354]
["In-kind benefits",null,16976,14837,16532,19256,6341,12581,17658]
["Sub Total - Other Staff of Entities",null,{"$f":"SUM(C44:C52)","v":1337200.3799999999},1353258.1997109812,1400125.4412678354,1393946.3247338182,1385434.3265300035,1401190.06814034,1425179.2500857785]
["% increase",null,null,{"$f":"(D53-C53)/C53","v":1.2008536604649586E-2},{"$f":"(E53-D53)/D53","v":3.4632889397502836E-2},-4.413259235131084E-3,-6.1064031324449611E-3,1.1372420408983832E-2,1.7120576637598459E-2]

{"sheet":"K1__Formulas_Block","index":15,"n_rows":49,"n_cols":9,"rows_kept":49,"cut":false,"hidden":false,"merged":[]}
[null,null,null,3,4,5,6,7]
[null,null,null,"Current ","Proposed","Variance","Current  Fee","Proposed","Average"]
[]
[]
["B1","0-50%",null,{"$f":"VLOOKUP(A5,K2__Formulas_Block_Data!$A$1:$G$43,D$1,FALSE)","v":1.7899999999999999E-2},{"$f":"VLOOKUP(A5,K2__Formulas_Block_Data!$A$1:$G$43,E$1,FALSE)","v":1.7899999999999999E-2},{"$f":"VLOOKUP(A5,K2__Formulas_Block_Data!$A$1:$G$43,F$1,FALSE)","v":1.7899999999999999E-2},{"$f":"VLOOKUP(A5,K2__Formulas_Block_Data!$A$1:$G$43,G$1,FALSE)","v":1.7899999999999999E-2},{"$f":"VLOOKUP(A5,K2__Formulas_Block_Data!$A$1:$G$43,H$1,FALSE)","v":0.65}]
[null,"50-55%",null,{"$f":"VLOOKUP(A5,K2__Formulas_Block_Data!$A$1:$G$43,D$1,FALSE)","v":1.7899999999999999E-2},{"$f":"VLOOKUP(A5,K2__Formulas_Block_Data!$A$1:$G$43,E$1,FALSE)","v":1.7899999999999999E-2},{"$f":"VLOOKUP(A5,K2__Formulas_Block_Data!$A$1:$G$43,F$1,FALSE)","v":1.7899999999999999E-2},{"$f":"VLOOKUP(A5,K2__Formulas_Block_Data!$A$1:$G$43,G$1,FALSE)","v":1.7899999999999999E-2},{"$f":"VLOOKUP(A5,K2__Formulas_Block_Data!$A$1:$G$43,H$1,FALSE)","v":0.65}]
[null,"55-60%",null,{"$f":"VLOOKUP(A5,K2__Formulas_Block_Data!$A$1:$G$43,D$1,FALSE)","v":1.7899999999999999E-2},{"$f":"VLOOKUP(A5,K2__Formulas_Block_Data!$A$1:$G$43,E$1,FALSE)","v":1.7899999999999999E-2},{"$f":"VLOOKUP(A5,K2__Formulas_Block_Data!$A$1:$G$43,F$1,FALSE)","v":1.7899999999999999E-2},{"$f":"VLOOKUP(A5,K2__Formulas_Block_Data!$A$1:$G$43,G$1,FALSE)","v":1.7899999999999999E-2},{"$f":"VLOOKUP(A5,K2__Formulas_Block_Data!$A$1:$G$43,H$1,FALSE)","v":0.65}]
[null,"60-65%",null,{"$f":"VLOOKUP(A5,K2__Formulas_Block_Data!$A$1:$G$43,D$1,FALSE)","v":1.7899999999999999E-2},{"$f":"VLOOKUP(A5,K2__Formulas_Block_Data!$A$1:$G$43,E$1,FALSE)","v":1.7899999999999999E-2},{"$f":"VLOOKUP(A5,K2__Formulas_Block_Data!$A$1:$G$43,F$1,FALSE)","v":1.7899999999999999E-2},{"$f":"VLOOKUP(A5,K2__Formulas_Block_Data!$A$1:$G$43,G$1,FALSE)","v":1.7899999999999999E-2},{"$f":"VLOOKUP(A5,K2__Formulas_Block_Data!$A$1:$G$43,H$1,FALSE)","v":0.65}]
[null,"65-70%",null,{"$f":"VLOOKUP(A5,K2__Formulas_Block_Data!$A$1:$G$43,D$1,FALSE)","v":1.7899999999999999E-2},{"$f":"VLOOKUP(A5,K2__Formulas_Block_Data!$A$1:$G$43,E$1,FALSE)","v":1.7899999999999999E-2},{"$f":"VLOOKUP(A5,K2__Formulas_Block_Data!$A$1:$G$43,F$1,FALSE)","v":1.7899999999999999E-2},{"$f":"VLOOKUP(A5,K2__Formulas_Block_Data!$A$1:$G$43,G$1,FALSE)","v":1.7899999999999999E-2},{"$f":"VLOOKUP(A5,K2__Formulas_Block_Data!$A$1:$G$43,H$1,FALSE)","v":0.65}]
[null,"70-75%",null,{"$f":"VLOOKUP(A5,K2__Formulas_Block_Data!$A$1:$G$43,D$1,FALSE)","v":1.7899999999999999E-2},{"$f":"VLOOKUP(A5,K2__Formulas_Block_Data!$A$1:$G$43,E$1,FALSE)","v":1.7899999999999999E-2},{"$f":"VLOOKUP(A5,K2__Formulas_Block_Data!$A$1:$G$43,F$1,FALSE)","v":1.7899999999999999E-2},{"$f":"VLOOKUP(A5,K2__Formulas_Block_Data!$A$1:$G$43,G$1,FALSE)","v":1.7899999999999999E-2},{"$f":"VLOOKUP(A5,K2__Formulas_Block_Data!$A$1:$G$43,H$1,FALSE)","v":0.65}]
[null,"75-80%",null,{"$f":"VLOOKUP(A5,K2__Formulas_Block_Data!$A$1:$G$43,D$1,FALSE)","v":1.7899999999999999E-2},{"$f":"VLOOKUP(A5,K2__Formulas_Block_Data!$A$1:$G$43,E$1,FALSE)","v":1.7899999999999999E-2},{"$f":"VLOOKUP(A5,K2__Formulas_Block_Data!$A$1:$G$43,F$1,FALSE)","v":1.7899999999999999E-2},{"$f":"VLOOKUP(A5,K2__Formulas_Block_Data!$A$1:$G$43,G$1,FALSE)","v":1.7899999999999999E-2},{"$f":"VLOOKUP(A5,K2__Formulas_Block_Data!$A$1:$G$43,H$1,FALSE)","v":0.65}]
[null,"80-85%",null,{"$f":"VLOOKUP(A5,K2__Formulas_Block_Data!$A$1:$G$43,D$1,FALSE)","v":1.7899999999999999E-2},{"$f":"VLOOKUP(A5,K2__Formulas_Block_Data!$A$1:$G$43,E$1,FALSE)","v":1.7899999999999999E-2},{"$f":"VLOOKUP(A5,K2__Formulas_Block_Data!$A$1:$G$43,F$1,FALSE)","v":1.7899999999999999E-2},{"$f":"VLOOKUP(A5,K2__Formulas_Block_Data!$A$1:$G$43,G$1,FALSE)","v":1.7899999999999999E-2},{"$f":"VLOOKUP(A5,K2__Formulas_Block_Data!$A$1:$G$43,H$1,FALSE)","v":0.65}]
[null,"85-90%",null,{"$f":"VLOOKUP(A5,K2__Formulas_Block_Data!$A$1:$G$43,D$1,FALSE)","v":1.7899999999999999E-2},{"$f":"VLOOKUP(A5,K2__Formulas_Block_Data!$A$1:$G$43,E$1,FALSE)","v":1.7899999999999999E-2},{"$f":"VLOOKUP(A5,K2__Formulas_Block_Data!$A$1:$G$43,F$1,FALSE)","v":1.7899999999999999E-2},{"$f":"VLOOKUP(A5,K2__Formulas_Block_Data!$A$1:$G$43,G$1,FALSE)","v":1.7899999999999999E-2},{"$f":"VLOOKUP(A5,K2__Formulas_Block_Data!$A$1:$G$43,H$1,FALSE)","v":0.65}]
[null,"90-95%",null,{"$f":"VLOOKUP(A5,K2__Formulas_Block_Data!$A$1:$G$43,D$1,FALSE)","v":1.7899999999999999E-2},{"$f":"VLOOKUP(A5,K2__Formulas_Block_Data!$A$1:$G$43,E$1,FALSE)","v":1.7899999999999999E-2},{"$f":"VLOOKUP(A5,K2__Formulas_Block_Data!$A$1:$G$43,F$1,FALSE)","v":1.7899999999999999E-2},{"$f":"VLOOKUP(A5,K2__Formulas_Block_Data!$A$1:$G$43,G$1,FALSE)","v":1.7899999999999999E-2},{"$f":"VLOOKUP(A5,K2__Formulas_Block_Data!$A$1:$G$43,H$1,FALSE)","v":0.65},{"$f":"AVERAGE((Formulablock1))","v":0.14432000000000003}]
[]
["B5","0-50%",null,{"$f":"VLOOKUP(A16,K2__Formulas_Block_Data!$A$1:$G$43,D$1,FALSE)","v":2.1399999999999999E-2},{"$f":"VLOOKUP(A16,K2__Formulas_Block_Data!$A$1:$G$43,E$1,FALSE)","v":2.1399999999999999E-2},{"$f":"VLOOKUP(A16,K2__Formulas_Block_Data!$A$1:$G$43,F$1,FALSE)","v":2.1399999999999999E-2},{"$f":"VLOOKUP(A16,K2__Formulas_Block_Data!$A$1:$G$43,G$1,FALSE)","v":2.1399999999999999E-2},{"$f":"VLOOKUP(A16,K2__Formulas_Block_Data!$A$1:$G$43,H$1,FALSE)","v":0.75}]
[null,"50-55%",null,{"$f":"VLOOKUP(A16,K2__Formulas_Block_Data!$A$1:$G$43,D$1,FALSE)","v":2.1399999999999999E-2},{"$f":"VLOOKUP(A16,K2__Formulas_Block_Data!$A$1:$G$43,E$1,FALSE)","v":2.1399999999999999E-2},{"$f":"VLOOKUP(A16,K2__Formulas_Block_Data!$A$1:$G$43,F$1,FALSE)","v":2.1399999999999999E-2},{"$f":"VLOOKUP(A16,K2__Formulas_Block_Data!$A$1:$G$43,G$1,FALSE)","v":2.1399999999999999E-2},{"$f":"VLOOKUP(A16,K2__Formulas_Block_Data!$A$1:$G$43,H$1,FALSE)","v":0.75}]
[null,"55-60%",null,{"$f":"VLOOKUP(A16,K2__Formulas_Block_Data!$A$1:$G$43,D$1,FALSE)","v":2.1399999999999999E-2},{"$f":"VLOOKUP(A16,K2__Formulas_Block_Data!$A$1:$G$43,E$1,FALSE)","v":2.1399999999999999E-2},{"$f":"VLOOKUP(A16,K2__Formulas_Block_Data!$A$1:$G$43,F$1,FALSE)","v":2.1399999999999999E-2},{"$f":"VLOOKUP(A16,K2__Formulas_Block_Data!$A$1:$G$43,G$1,FALSE)","v":2.1399999999999999E-2},{"$f":"VLOOKUP(A16,K2__Formulas_Block_Data!$A$1:$G$43,H$1,FALSE)","v":0.75}]
[null,"60-65%",null,{"$f":"VLOOKUP(A16,K2__Formulas_Block_Data!$A$1:$G$43,D$1,FALSE)","v":2.1399999999999999E-2},{"$f":"VLOOKUP(A16,K2__Formulas_Block_Data!$A$1:$G$43,E$1,FALSE)","v":2.1399999999999999E-2},{"$f":"VLOOKUP(A16,K2__Formulas_Block_Data!$A$1:$G$43,F$1,FALSE)","v":2.1399999999999999E-2},{"$f":"VLOOKUP(A16,K2__Formulas_Block_Data!$A$1:$G$43,G$1,FALSE)","v":2.1399999999999999E-2},{"$f":"VLOOKUP(A16,K2__Formulas_Block_Data!$A$1:$G$43,H$1,FALSE)","v":0.75}]
[null,"65-70%",null,{"$f":"VLOOKUP(A16,K2__Formulas_Block_Data!$A$1:$G$43,D$1,FALSE)","v":2.1399999999999999E-2},{"$f":"VLOOKUP(A16,K2__Formulas_Block_Data!$A$1:$G$43,E$1,FALSE)","v":2.1399999999999999E-2},{"$f":"VLOOKUP(A16,K2__Formulas_Block_Data!$A$1:$G$43,F$1,FALSE)+1%","v":3.1399999999999997E-2},{"$f":"VLOOKUP(A16,K2__Formulas_Block_Data!$A$1:$G$43,G$1,FALSE)","v":2.1399999999999999E-2},{"$f":"VLOOKUP(A16,K2__Formulas_Block_Data!$A$1:$G$43,H$1,FALSE)","v":0.75}]
[null,"70-75%",null,{"$f":"VLOOKUP(A16,K2__Formulas_Block_Data!$A$1:$G$43,D$1,FALSE)","v":2.1399999999999999E-2},{"$f":"VLOOKUP(A16,K2__Formulas_Block_Data!$A$1:$G$43,E$1,FALSE)","v":2.1399999999999999E-2},{"$f":"VLOOKUP(A16,K2__Formulas_Block_Data!$A$1:$G$43,F$1,FALSE)","v":2.1399999999999999E-2},{"$f":"VLOOKUP(A16,K2__Formulas_Block_Data!$A$1:$G$43,G$1,FALSE)","v":2.1399999999999999E-2},{"$f":"VLOOKUP(A16,K2__Formulas_Block_Data!$A$1:$G$43,H$1,FALSE)","v":0.75}]
[null,"75-80%",null,{"$f":"VLOOKUP(A16,K2__Formulas_Block_Data!$A$1:$G$43,D$1,FALSE)","v":2.1399999999999999E-2},{"$f":"VLOOKUP(A16,K2__Formulas_Block_Data!$A$1:$G$43,E$1,FALSE)","v":2.1399999999999999E-2},{"$f":"VLOOKUP(A16,K2__Formulas_Block_Data!$A$1:$G$43,F$1,FALSE)","v":2.1399999999999999E-2},{"$f":"VLOOKUP(A16,K2__Formulas_Block_Data!$A$1:$G$43,G$1,FALSE)","v":2.1399999999999999E-2},{"$f":"VLOOKUP(A16,K2__Formulas_Block_Data!$A$1:$G$43,H$1,FALSE)","v":0.75}]
[null,"80-85%",null,{"$f":"VLOOKUP(A16,K2__Formulas_Block_Data!$A$1:$G$43,D$1,FALSE)","v":2.1399999999999999E-2},{"$f":"VLOOKUP(A16,K2__Formulas_Block_Data!$A$1:$G$43,E$1,FALSE)","v":2.1399999999999999E-2},{"$f":"VLOOKUP(A16,K2__Formulas_Block_Data!$A$1:$G$43,F$1,FALSE)","v":2.1399999999999999E-2},{"$f":"VLOOKUP(A16,K2__Formulas_Block_Data!$A$1:$G$43,G$1,FALSE)","v":2.1399999999999999E-2},{"$f":"VLOOKUP(A16,K2__Formulas_Block_Data!$A$1:$G$43,H$1,FALSE)","v":0.75}]
[null,"85-90%",null,{"$f":"VLOOKUP(A16,K2__Formulas_Block_Data!$A$1:$G$43,D$1,FALSE)","v":2.1399999999999999E-2},{"$f":"VLOOKUP(A16,K2__Formulas_Block_Data!$A$1:$G$43,E$1,FALSE)","v":2.1399999999999999E-2},{"$f":"VLOOKUP(A16,K2__Formulas_Block_Data!$A$1:$G$43,F$1,FALSE)","v":2.1399999999999999E-2},{"$f":"VLOOKUP(A16,K2__Formulas_Block_Data!$A$1:$G$43,G$1,FALSE)","v":2.1399999999999999E-2},{"$f":"VLOOKUP(A16,K2__Formulas_Block_Data!$A$1:$G$43,H$1,FALSE)","v":0.75}]
[null,"90-95%",null,{"$f":"VLOOKUP(A16,K2__Formulas_Block_Data!$A$1:$G$43,D$1,FALSE)","v":2.1399999999999999E-2},{"$f":"VLOOKUP(A16,K2__Formulas_Block_Data!$A$1:$G$43,E$1,FALSE)","v":2.1399999999999999E-2},{"$f":"VLOOKUP(A16,K2__Formulas_Block_Data!$A$1:$G$43,F$1,FALSE)","v":2.1399999999999999E-2},{"$f":"VLOOKUP(A16,K2__Formulas_Block_Data!$A$1:$G$43,G$1,FALSE)","v":2.1399999999999999E-2},{"$f":"VLOOKUP(A16,K2__Formulas_Block_Data!$A$1:$G$43,H$1,FALSE)","v":0.75},{"$f":"AVERAGE((Formulablock2))","v":0.16731999999999991}]
[]
[]
["B9","0-50%",null,{"$f":"VLOOKUP(A28,K2__Formulas_Block_Data!$A$1:$G$43,D$1,FALSE)","v":2.3400000000000001E-2},{"$f":"VLOOKUP(A28,K2__Formulas_Block_Data!$A$1:$G$43,E$1,FALSE)","v":2.3400000000000001E-2},{"$f":"VLOOKUP(A28,K2__Formulas_Block_Data!$A$1:$G$43,F$1,FALSE)","v":2.3400000000000001E-2},{"$f":"VLOOKUP(A28,K2__Formulas_Block_Data!$A$1:$G$43,G$1,FALSE)","v":2.3400000000000001E-2},{"$f":"VLOOKUP(A28,K2__Formulas_Block_Data!$A$1:$G$43,H$1,FALSE)","v":0.5}]
[null,"50-55%",null,{"$f":"VLOOKUP(A28,K2__Formulas_Block_Data!$A$1:$G$43,D$1,FALSE)","v":2.3400000000000001E-2},{"$f":"VLOOKUP(A28,K2__Formulas_Block_Data!$A$1:$G$43,E$1,FALSE)","v":2.3400000000000001E-2},{"$f":"VLOOKUP(A28,K2__Formulas_Block_Data!$A$1:$G$43,F$1,FALSE)","v":2.3400000000000001E-2},{"$f":"VLOOKUP(A28,K2__Formulas_Block_Data!$A$1:$G$43,G$1,FALSE)","v":2.3400000000000001E-2},{"$f":"VLOOKUP(A28,K2__Formulas_Block_Data!$A$1:$G$43,H$1,FALSE)","v":0.5}]
[null,"55-60%",null,{"$f":"VLOOKUP(A28,K2__Formulas_Block_Data!$A$1:$G$43,D$1,FALSE)","v":2.3400000000000001E-2},{"$f":"VLOOKUP(A28,K2__Formulas_Block_Data!$A$1:$G$43,E$1,FALSE)","v":2.3400000000000001E-2},{"$f":"VLOOKUP(A28,K2__Formulas_Block_Data!$A$1:$G$43,F$1,FALSE)","v":2.3400000000000001E-2},{"$f":"VLOOKUP(A28,K2__Formulas_Block_Data!$A$1:$G$43,G$1,FALSE)","v":2.3400000000000001E-2},{"$f":"VLOOKUP(A28,K2__Formulas_Block_Data!$A$1:$G$43,H$1,FALSE)","v":0.5}]
[null,"60-65%",null,{"$f":"VLOOKUP(A28,K2__Formulas_Block_Data!$A$1:$G$43,D$1,FALSE)","v":2.3400000000000001E-2},{"$f":"VLOOKUP(A28,K2__Formulas_Block_Data!$A$1:$G$43,E$1,FALSE)","v":2.3400000000000001E-2},{"$f":"VLOOKUP(A28,K2__Formulas_Block_Data!$A$1:$G$43,F$1,FALSE)","v":2.3400000000000001E-2},{"$f":"VLOOKUP(A28,K2__Formulas_Block_Data!$A$1:$G$43,G$1,FALSE)","v":2.3400000000000001E-2},{"$f":"VLOOKUP(A28,K2__Formulas_Block_Data!$A$1:$G$43,H$1,FALSE)","v":0.5}]
[null,"65-70%",null,{"$f":"VLOOKUP(A28,K2__Formulas_Block_Data!$A$1:$G$43,D$1,FALSE)","v":2.3400000000000001E-2},{"$f":"VLOOKUP(A28,K2__Formulas_Block_Data!$A$1:$G$43,E$1,FALSE)","v":2.3400000000000001E-2},{"$f":"VLOOKUP(A28,K2__Formulas_Block_Data!$A$1:$G$43,F$1,FALSE)","v":2.3400000000000001E-2},{"$f":"VLOOKUP(A28,K2__Formulas_Block_Data!$A$1:$G$43,G$1,FALSE)","v":2.3400000000000001E-2},{"$f":"VLOOKUP(A28,K2__Formulas_Block_Data!$A$1:$G$43,H$1,FALSE)","v":0.5}]
[null,"70-75%",null,{"$f":"VLOOKUP(A28,K2__Formulas_Block_Data!$A$1:$G$43,D$1,FALSE)","v":2.3400000000000001E-2},{"$f":"VLOOKUP(A28,K2__Formulas_Block_Data!$A$1:$G$43,E$1,FALSE)","v":2.3400000000000001E-2},{"$f":"VLOOKUP(A28,K2__Formulas_Block_Data!$A$1:$G$43,F$1,FALSE)","v":2.3400000000000001E-2},{"$f":"VLOOKUP(A28,K2__Formulas_Block_Data!$A$1:$G$43,G$1,FALSE)","v":2.3400000000000001E-2},{"$f":"VLOOKUP(A28,K2__Formulas_Block_Data!$A$1:$G$43,H$1,FALSE)","v":0.5}]
[null,"75-80%",null,{"$f":"VLOOKUP(A28,K2__Formulas_Block_Data!$A$1:$G$43,D$1,FALSE)","v":2.3400000000000001E-2},{"$f":"VLOOKUP(A28,K2__Formulas_Block_Data!$A$1:$G$43,E$1,FALSE)","v":2.3400000000000001E-2},{"$f":"VLOOKUP(A28,K2__Formulas_Block_Data!$A$1:$G$43,F$1,FALSE)","v":2.3400000000000001E-2},{"$f":"VLOOKUP(A28,K2__Formulas_Block_Data!$A$1:$G$43,G$1,FALSE)","v":2.3400000000000001E-2},{"$f":"VLOOKUP(A28,K2__Formulas_Block_Data!$A$1:$G$43,H$1,FALSE)","v":0.5}]
[null,"80-85%",null,{"$f":"VLOOKUP(A28,K2__Formulas_Block_Data!$A$1:$G$43,D$1,FALSE)","v":2.3400000000000001E-2},{"$f":"VLOOKUP(A28,K2__Formulas_Block_Data!$A$1:$G$43,E$1,FALSE)","v":2.3400000000000001E-2},{"$f":"VLOOKUP(A28,K2__Formulas_Block_Data!$A$1:$G$43,F$1,FALSE)","v":2.3400000000000001E-2},{"$f":"VLOOKUP(A28,K2__Formulas_Block_Data!$A$1:$G$43,G$1,FALSE)","v":2.3400000000000001E-2},{"$f":"VLOOKUP(A28,K2__Formulas_Block_Data!$A$1:$G$43,H$1,FALSE)","v":0.5}]
[null,"85-90%",null,{"$f":"VLOOKUP(A28,K2__Formulas_Block_Data!$A$1:$G$43,D$1,FALSE)","v":2.3400000000000001E-2},{"$f":"VLOOKUP(A28,K2__Formulas_Block_Data!$A$1:$G$43,E$1,FALSE)","v":2.3400000000000001E-2},{"$f":"VLOOKUP(A28,K2__Formulas_Block_Data!$A$1:$G$43,F$1,FALSE)","v":2.3400000000000001E-2},{"$f":"VLOOKUP(A28,K2__Formulas_Block_Data!$A$1:$G$43,G$1,FALSE)","v":2.3400000000000001E-2},{"$f":"VLOOKUP(A28,K2__Formulas_Block_Data!$A$1:$G$43,H$1,FALSE)","v":0.5}]
[null,"90-95%",null,{"$f":"VLOOKUP(A28,K2__Formulas_Block_Data!$A$1:$G$43,D$1,FALSE)","v":2.3400000000000001E-2},{"$f":"VLOOKUP(A28,K2__Formulas_Block_Data!$A$1:$G$43,E$1,FALSE)","v":2.3400000000000001E-2},{"$f":"VLOOKUP(A28,K2__Formulas_Block_Data!$A$1:$G$43,F$1,FALSE)","v":2.3400000000000001E-2},{"$f":"VLOOKUP(A28,K2__Formulas_Block_Data!$A$1:$G$43,G$1,FALSE)","v":2.3400000000000001E-2},{"$f":"VLOOKUP(A28,K2__Formulas_Block_Data!$A$1:$G$43,H$1,FALSE)","v":0.5},{"$f":"AVERAGE((Formulablock3))","v":0.11871999999999995}]
[]
[]
["B12","0-50%",null,{"$f":"VLOOKUP(A40,K2__Formulas_Block_Data!$A$1:$G$43,D$1,FALSE)","v":2.0899999999999998E-2},{"$f":"VLOOKUP(A40,K2__Formulas_Block_Data!$A$1:$G$43,E$1,FALSE)","v":2.0899999999999998E-2},{"$f":"VLOOKUP(A40,K2__Formulas_Block_Data!$A$1:$G$43,F$1,FALSE)","v":2.0899999999999998E-2},{"$f":"VLOOKUP(A40,K2__Formulas_Block_Data!$A$1:$G$43,G$1,FALSE)","v":2.0899999999999998E-2},{"$f":"VLOOKUP(A40,K2__Formulas_Block_Data!$A$1:$G$43,H$1,FALSE)","v":0.65}]
[null,"50-55%",null,{"$f":"VLOOKUP(A40,K2__Formulas_Block_Data!$A$1:$G$43,D$1,FALSE)","v":2.0899999999999998E-2},{"$f":"VLOOKUP(A40,K2__Formulas_Block_Data!$A$1:$G$43,E$1,FALSE)","v":2.0899999999999998E-2},{"$f":"VLOOKUP(A40,K2__Formulas_Block_Data!$A$1:$G$43,F$1,FALSE)","v":2.0899999999999998E-2},{"$f":"VLOOKUP(A40,K2__Formulas_Block_Data!$A$1:$G$43,G$1,FALSE)","v":2.0899999999999998E-2},{"$f":"VLOOKUP(A40,K2__Formulas_Block_Data!$A$1:$G$43,H$1,FALSE)","v":0.65}]
[null,"55-60%",null,{"$f":"VLOOKUP(A40,K2__Formulas_Block_Data!$A$1:$G$43,D$1,FALSE)","v":2.0899999999999998E-2},{"$f":"VLOOKUP(A40,K2__Formulas_Block_Data!$A$1:$G$43,E$1,FALSE)","v":2.0899999999999998E-2},{"$f":"VLOOKUP(A40,K2__Formulas_Block_Data!$A$1:$G$43,F$1,FALSE)","v":2.0899999999999998E-2},{"$f":"VLOOKUP(A40,K2__Formulas_Block_Data!$A$1:$G$43,G$1,FALSE)","v":2.0899999999999998E-2},{"$f":"VLOOKUP(A40,K2__Formulas_Block_Data!$A$1:$G$43,H$1,FALSE)","v":0.65}]
[null,"60-65%",null,{"$f":"VLOOKUP(A40,K2__Formulas_Block_Data!$A$1:$G$43,D$1,FALSE)","v":2.0899999999999998E-2},{"$f":"VLOOKUP(A40,K2__Formulas_Block_Data!$A$1:$G$43,E$1,FALSE)","v":2.0899999999999998E-2},{"$f":"VLOOKUP(A40,K2__Formulas_Block_Data!$A$1:$G$43,F$1,FALSE)","v":2.0899999999999998E-2},{"$f":"VLOOKUP(A40,K2__Formulas_Block_Data!$A$1:$G$43,G$1,FALSE)","v":2.0899999999999998E-2},{"$f":"VLOOKUP(A40,K2__Formulas_Block_Data!$A$1:$G$43,H$1,FALSE)","v":0.65}]
[null,"65-70%",null,{"$f":"VLOOKUP(A40,K2__Formulas_Block_Data!$A$1:$G$43,D$1,FALSE)","v":2.0899999999999998E-2},{"$f":"VLOOKUP(A40,K2__Formulas_Block_Data!$A$1:$G$43,E$1,FALSE)","v":2.0899999999999998E-2},{"$f":"VLOOKUP(A40,K2__Formulas_Block_Data!$A$1:$G$43,F$1,FALSE)","v":2.0899999999999998E-2},{"$f":"VLOOKUP(A40,K2__Formulas_Block_Data!$A$1:$G$43,G$1,FALSE)","v":2.0899999999999998E-2},{"$f":"VLOOKUP(A40,K2__Formulas_Block_Data!$A$1:$G$43,H$1,FALSE)","v":0.65}]
[null,"70-75%",null,{"$f":"VLOOKUP(A40,K2__Formulas_Block_Data!$A$1:$G$43,D$1,FALSE)","v":2.0899999999999998E-2},{"$f":"VLOOKUP(A40,K2__Formulas_Block_Data!$A$1:$G$43,E$1,FALSE)","v":2.0899999999999998E-2},{"$f":"VLOOKUP(A40,K2__Formulas_Block_Data!$A$1:$G$43,F$1,FALSE)","v":2.0899999999999998E-2},{"$f":"VLOOKUP(A40,K2__Formulas_Block_Data!$A$1:$G$43,G$1,FALSE)","v":2.0899999999999998E-2},{"$f":"VLOOKUP(A40,K2__Formulas_Block_Data!$A$1:$G$43,H$1,FALSE)","v":0.65}]
[null,"75-80%",null,{"$f":"VLOOKUP(A40,K2__Formulas_Block_Data!$A$1:$G$43,D$1,FALSE)","v":2.0899999999999998E-2},{"$f":"VLOOKUP(A40,K2__Formulas_Block_Data!$A$1:$G$43,E$1,FALSE)","v":2.0899999999999998E-2},{"$f":"VLOOKUP(A40,K2__Formulas_Block_Data!$A$1:$G$43,F$1,FALSE)","v":2.0899999999999998E-2},{"$f":"VLOOKUP(A40,K2__Formulas_Block_Data!$A$1:$G$43,G$1,FALSE)","v":2.0899999999999998E-2},{"$f":"VLOOKUP(A40,K2__Formulas_Block_Data!$A$1:$G$43,H$1,FALSE)","v":0.65}]
[null,"80-85%",null,{"$f":"VLOOKUP(A40,K2__Formulas_Block_Data!$A$1:$G$43,D$1,FALSE)","v":2.0899999999999998E-2},{"$f":"VLOOKUP(A40,K2__Formulas_Block_Data!$A$1:$G$43,E$1,FALSE)","v":2.0899999999999998E-2},{"$f":"VLOOKUP(A40,K2__Formulas_Block_Data!$A$1:$G$43,F$1,FALSE)","v":2.0899999999999998E-2},{"$f":"VLOOKUP(A40,K2__Formulas_Block_Data!$A$1:$G$43,G$1,FALSE)","v":2.0899999999999998E-2},{"$f":"VLOOKUP(A40,K2__Formulas_Block_Data!$A$1:$G$43,H$1,FALSE)","v":0.65}]
[null,"85-90%",null,{"$f":"VLOOKUP(A40,K2__Formulas_Block_Data!$A$1:$G$43,D$1,FALSE)","v":2.0899999999999998E-2},{"$f":"VLOOKUP(A40,K2__Formulas_Block_Data!$A$1:$G$43,E$1,FALSE)","v":2.0899999999999998E-2},{"$f":"VLOOKUP(A40,K2__Formulas_Block_Data!$A$1:$G$43,F$1,FALSE)","v":2.0899999999999998E-2},{"$f":"VLOOKUP(A40,K2__Formulas_Block_Data!$A$1:$G$43,G$1,FALSE)","v":2.0899999999999998E-2},{"$f":"VLOOKUP(A40,K2__Formulas_Block_Data!$A$1:$G$43,H$1,FALSE)","v":0.65}]
[null,"90-95%",null,{"$f":"VLOOKUP(A40,K2__Formulas_Block_Data!$A$1:$G$43,D$1,FALSE)","v":2.0899999999999998E-2},{"$f":"VLOOKUP(A40,K2__Formulas_Block_Data!$A$1:$G$43,E$1,FALSE)","v":2.0899999999999998E-2},{"$f":"VLOOKUP(A40,K2__Formulas_Block_Data!$A$1:$G$43,F$1,FALSE)","v":2.0899999999999998E-2},{"$f":"VLOOKUP(A40,K2__Formulas_Block_Data!$A$1:$G$43,G$1,FALSE)","v":2.0899999999999998E-2},{"$f":"VLOOKUP(A40,K2__Formulas_Block_Data!$A$1:$G$43,H$1,FALSE)","v":0.65},{"$f":"AVERAGE((Formulablock4))","v":0.1467200000000001}]

{"sheet":"K2__Formulas_Block_Data","index":16,"n_rows":42,"n_cols":7,"rows_kept":42,"cut":false,"hidden":false,"merged":[]}
[null,"Product Term","Current ","Proposed","Variance","Current  Fee","Proposed"]
[]
["B1","2 Year Fixed",1.7899999999999999E-2,1.7899999999999999E-2,1.7899999999999999E-2,1.7899999999999999E-2,0.65]
["B2","2 Year Fixed",1.7399999999999999E-2,1.7399999999999999E-2,1.7399999999999999E-2,1.7399999999999999E-2,0.65]
["B3","2 Year Fixed",2.1899999999999999E-2,2.1899999999999999E-2,2.1899999999999999E-2,2.1899999999999999E-2,0.65]
["B4","2 Year Fixed",2.64E-2,2.64E-2,2.64E-2,2.64E-2,0.65]
[]
["B5","2 Year Fixed",2.1399999999999999E-2,2.1399999999999999E-2,2.1399999999999999E-2,2.1399999999999999E-2,0.75]
["B6","2 Year Fixed",1.9900000000000001E-2,1.9900000000000001E-2,1.9900000000000001E-2,1.9900000000000001E-2,0.75]
["B7","2 Year Fixed",2.4899999999999999E-2,2.4899999999999999E-2,2.4899999999999999E-2,2.4899999999999999E-2,0.75]
["B8","2 Year Fixed",2.8899999999999999E-2,2.8899999999999999E-2,2.8899999999999999E-2,2.8899999999999999E-2,0.75]
[]
["B9","2 Year Fixed",2.3400000000000001E-2,2.3400000000000001E-2,2.3400000000000001E-2,2.3400000000000001E-2,0.5]
["B10","5 Year Fixed",2.3400000000000001E-2,2.3400000000000001E-2,2.3400000000000001E-2,2.3400000000000001E-2,0.5]
["B11","2 Year Fixed",2.1399999999999999E-2,2.1399999999999999E-2,2.1399999999999999E-2,2.1399999999999999E-2,0.5]
[]
["B12","3 Year Fixed",2.0899999999999998E-2,2.0899999999999998E-2,2.0899999999999998E-2,2.0899999999999998E-2,0.65]
["B13","3 Year Fixed",2.3900000000000001E-2,2.3900000000000001E-2,2.3900000000000001E-2,2.3900000000000001E-2,0.65]
["B14","2 Year Fixed",2.24E-2,2.24E-2,2.24E-2,2.24E-2,0.65]
[]
["B15","3 Year Fixed",2.4400000000000002E-2,2.4400000000000002E-2,2.4400000000000002E-2,2.4400000000000002E-2,0.75]
["B16","3 Year Fixed",2.7400000000000001E-2,2.7400000000000001E-2,2.7400000000000001E-2,2.7400000000000001E-2,0.75]
["B17","3 Year Fixed",2.4899999999999999E-2,2.4899999999999999E-2,2.4899999999999999E-2,2.4899999999999999E-2,0.75]
[]
["B18","5 Year Fixed",2.5899999999999999E-2,2.5899999999999999E-2,2.5899999999999999E-2,2.5899999999999999E-2,0.65]
["B19","5 Year Fixed",2.5899999999999999E-2,2.5899999999999999E-2,2.5899999999999999E-2,2.5899999999999999E-2,0.65]
["B20","5 Year Fixed",2.7400000000000001E-2,2.7400000000000001E-2,2.7400000000000001E-2,2.7400000000000001E-2,0.65]
["B21","5 Year Fixed",2.8899999999999999E-2,2.8899999999999999E-2,2.8899999999999999E-2,2.8899999999999999E-2,0.65]
[]
["B22","5 Year Fixed",2.69E-2,2.69E-2,2.69E-2,2.69E-2,0.75]
["B23","5 Year Fixed",2.69E-2,2.69E-2,2.69E-2,2.69E-2,0.75]
["B24","5 Year Fixed",2.8400000000000002E-2,2.8400000000000002E-2,2.8400000000000002E-2,2.8400000000000002E-2,0.75]
["B25","5 Year Fixed",2.9899999999999999E-2,2.9899999999999999E-2,2.9899999999999999E-2,2.9899999999999999E-2,0.75]
[]
["B26","5 Year Fixed",2.4899999999999999E-2,2.4899999999999999E-2,2.4899999999999999E-2,2.4899999999999999E-2,0.5]
["B27","5 Year Fixed",2.0400000000000001E-2,2.0400000000000001E-2,2.0400000000000001E-2,2.0400000000000001E-2,0.5]
["B28","5 Year Fixed",2.0400000000000001E-2,2.0400000000000001E-2,2.0400000000000001E-2,2.0400000000000001E-2,0.5]
["B29","5 Year Fixed",2.4899999999999999E-2,2.4899999999999999E-2,2.4899999999999999E-2,2.4899999999999999E-2,0.5]
[]
["B30","5 Year Fixed",1.9900000000000001E-2,1.9900000000000001E-2,1.9900000000000001E-2,1.9900000000000001E-2,0.5]
["B31","5 Year Fixed",2.29E-2,2.29E-2,2.29E-2,2.29E-2,0.5]
["B32","5 Year Fixed",2.3900000000000001E-2,2.3900000000000001E-2,2.3900000000000001E-2,2.3900000000000001E-2,0.5]

{"sheet":"L1__Pivot ","index":17,"n_rows":8,"n_cols":23,"rows_kept":8,"cut":false,"hidden":false,"merged":[]}
["Total","(All)"]
[]
["Sum of Unit Cost","Column Labels"]
["Row Labels",5,7,11,14,19,27,29,32,35,42,50,53,57,60,62,64,66,74,80,95,96,"Grand Total"]
["Jul",null,null,null,null,null,null,null,19.989999999999998,null,null,null,null,4.99,null,null,null,null,8.99,null,null,null,33.97]
["Aug",null,1.99,null,null,1.99,4.99,1.99,null,8.99,19.989999999999998,8.99,19.989999999999998,null,1.99,4.99,null,1.29,null,null,null,21.979999999999997,99.169999999999987]
["Sep",1.29,19.989999999999998,4.99,4.99,null,null,null,null,null,null,null,null,null,1.29,null,4.99,null,null,19.989999999999998,4.99,null,62.52]
["Grand Total",1.29,21.979999999999997,4.99,4.99,1.99,4.99,1.99,19.989999999999998,8.99,19.989999999999998,8.99,19.989999999999998,4.99,3.2800000000000002,4.99,4.99,1.29,8.99,19.989999999999998,4.99,21.979999999999997,195.66]

{"sheet":"L2__Pivot_Data","index":18,"n_rows":25,"n_cols":8,"rows_kept":25,"cut":false,"hidden":false,"merged":[]}
["Date","Date","Country","Rep","Item","Units","Unit Cost","Total"]
["2020-07-18",{"$f":"A2+2","v":"2020-07-20"},"Germany","Sorvino","Pencils",32,19.989999999999998,{"$f":"G2*F2","v":639.67999999999995}]
["2020-07-22","2020-07-24","Germany","Jones","Pencils",57,4.99,284.43]
["2020-07-26","2020-07-28","Netherlands","Gill","Binders",74,8.99,665.26]
["2020-07-30","2020-08-01","Germany","Jones","Binders",50,8.99,449.5]
["2020-08-03","2020-08-05","Germany","Jones","Pen Sets",27,4.99,134.73000000000002]
["2020-08-07","2020-08-09","Germany","Jones","Pencils",7,1.99,13.93]
["2020-08-11","2020-08-13","Germany","Sorvino","Binders",96,19.989999999999998,1919.04]
["2020-08-13","2020-08-15","Germany","Sorvino","Desk",53,19.989999999999998,1059.47]
["2020-08-15","2020-08-17","Germany","Sorvino","Pen",60,1.99,119.4]
["2020-08-17","2020-08-19","Germany","Thompson","Binders",42,19.989999999999998,839.57999999999993]
["2020-08-19","2020-08-21","Germany","Thompson","Pencils",19,1.99,37.81]
["2020-08-21","2020-08-23","Netherlands","Andrews",{"$f":"\"Binders\"","v":"Binders"},62,4.99,309.38]
["2020-08-23","2020-08-25","Netherlands","Andrews","Pencils",66,1.29,85.14]
["2020-08-25","2020-08-27","Netherlands","Andrews","Pencils",29,1.99,57.71]
["2020-08-27","2020-08-29","Netherlands","Andrews","Pencils",96,1.99,191.04]
["2020-08-29","2020-08-31","Netherlands","Gill","Binders",35,8.99,314.65000000000003]
["2020-09-02","2020-09-04","Netherlands","Gill","Pen",7,19.989999999999998,139.92999999999998]
["2020-09-04","2020-09-06","Netherlands","Gill","Pencils",60,1.29,77.400000000000006]
["2020-09-06","2020-09-08","Netherlands","Gill","Pencils",5,1.29,6.45]
["2020-09-08","2020-09-10","Netherlands","Jardine","Binders",80,19.989999999999998,1599.1999999999998]
["2020-09-10","2020-09-12","Netherlands","Jardine","Binders",14,4.99,69.86]
["2020-09-12","2020-09-14","Netherlands","Jardine","Pen Sets",64,4.99,319.36]
["2020-09-14","2020-09-16","Netherlands","Jardine","Pencils",95,4.99,474.05]
["2020-09-16","2020-09-18","Netherlands","Jardine","Pencils",11,4.99,54.89]

{"sheet":"M1__Projection ","index":19,"n_rows":17,"n_cols":14,"rows_kept":17,"cut":false,"hidden":false,"merged":[[0,1,0,13]]}
[null,"Twelve month profit & loss projection year 2020"]
[null,"Jan","Feb","Mar","Apr","May","Jun","Jul","Aug","Sept","Oct","Nov","Dec ","Yearly"]
["Revenues"]
["Revenue 1",190,210,150,140,160,170,190,160,120,140,150,170,{"$f":"SUM(B4:M4)","v":1950}]
["Revenue 2",200,220,160,150,170,180,200,210,170,190,200,150,{"$f":"SUM(B5:M5)","v":2200}]
["Revenue 3",150,170,140,120,140,150,170,210,90,110,120,200,1770]
["Total",{"$f":"SUM(B4:B6)","v":540},{"$f":"SUM(C4:C6)","v":600},450,410,{"$f":"SUM(F5:F6)","v":310},{"$f":"SUM(G5:G6)","v":330},560,580,380,{"$f":"SUM(K4:K5)","v":330},470,520,5480]
[]
["Cost"]
["Cost 1",100,160,120,80,100,110,110,90,65,50,90,110,{"$f":"SUM(B10:M10)","v":1185}]
["Cost 2",120,170,130,90,110,120,120,140,115,100,140,160,{"$f":"SUM(B11:M11)","v":1515}]
["Cost 3",110,120,100,60,80,90,90,60,35,150,60,80,{"$f":"SUM(B12:M12)","v":1035}]
["Total",{"$f":"SUM(B10:B12)","v":330},450,350,230,290,320,320,{"$f":"SUM(I11:I12)","v":200},215,300,290,350,{"$f":"SUM(B13:M13)","v":3645}]
[]
["Profit",{"$f":"B7-B13","v":210},150,100,180,20,10,240,380,165,30,180,170,{"$f":"SUM(B15:M15)","v":1835}]
[]
["Net Profit",0.2,null,null,null,null,null,null,null,null,null,null,null,{"$f":"N15*(1-B17)","v":1468}]

{"sheet":"M2__Projection_Copy ","index":20,"n_rows":17,"n_cols":14,"rows_kept":17,"cut":false,"hidden":false,"merged":[[0,1,0,13]]}
[null,"Twelve month profit & loss projection year 2020"]
[null,"Jan","Feb","Mar","Apr","May","Jun","Jul","Aug","Sept","Oct","Nov","Dec ","Yearly"]
["Revenues"]
["Revenue 1",190,210,150,140,160,170,190,160,120,140,150,170,{"$f":"SUM(B4:M4)","v":1950}]
["Revenue 2",200,220,160,150,170,180,200,210,170,190,200,150,{"$f":"SUM(B5:M5)","v":2200}]
["Revenue 3",150,170,140,120,140,150,170,210,90,110,120,200,1770]
["Total",{"$f":"SUM(B4:B6)","v":540},{"$f":"SUM(C4:C6)","v":600},450,410,{"$f":"SUM(F5:F6)","v":310},{"$f":"SUM(G5:G6)","v":330},560,580,380,{"$f":"SUM(K4:K5)","v":330},470,520,5480]
[]
["Cost"]
["Cost 1",100,160,120,80,100,110,110,90,65,50,90,110,{"$f":"SUM(B10:M10)","v":1185}]
["Cost 2",120,170,130,90,110,120,120,140,115,100,140,160,{"$f":"SUM(B11:M11)","v":1515}]
["Cost 3",110,120,100,60,80,90,90,60,35,150,60,80,{"$f":"SUM(B12:M12)","v":1035}]
["Total",{"$f":"SUM(B10:B12)","v":330},450,350,230,290,320,320,{"$f":"SUM(I11:I12)","v":200},215,300,290,350,{"$f":"SUM(B13:M13)","v":3645}]
[]
["Profit",{"$f":"B7-B13","v":210},150,100,180,20,10,240,380,165,30,180,170,{"$f":"SUM(B15:M15)","v":1835}]
[]
["Net Profit",0.2,null,null,null,null,null,null,null,null,null,null,null,{"$f":"N15*(1-B17)","v":1468}]

{"sheet":"N___Empty_Sheet","index":21,"n_rows":0,"n_cols":0,"rows_kept":0,"cut":false,"hidden":false,"merged":[]}

{"sheet":"O___Data_Tables","index":22,"n_rows":27,"n_cols":10,"rows_kept":27,"cut":false,"hidden":false,"merged":[]}
[]
[null,"Column1","Column2","Column3","Column4","Column5","Column6","Column7","Column8","Column9"]
[null,1,1,1,1,1,1,1,1,1]
[null,2,2,2,2,2,2,2,2,2]
[null,3,3,3,3,3,3,3,3,3]
[null,4,4,4,4,4,4,4,4,4]
[null,5,5,5,5,5,5,5,5,5]
[null,6,6,6,6,6,6,6,6,6]
[null,7,7,7,7,7,7,7,7,7]
[null,8,8,8,8,8,8,8,8,8]
[null,9,9,9,9,9,9,9,9,9]
[null,10,10,10,10,10,10,10,10,10]
[]
[]
[null,"Column1","Column2","Column3","Column4","Column5","Column6","Column7","Column8","Column9"]
[null,1,1,1,1,1,1,1,1,1]
[null,2,2,2,2,2,2,2,2,2]
[null,3,3,3,3,3,3,3,3,3]
[null,4,4,4,4,4,4,4,4,4]
[null,5,5,5,5,5,5,5,5,5]
[null,6,6,6,6,6,6,6,6,6]
[null,7,7,7,7,7,7,7,7,7]
[null,8,8,8,8,8,8,8,8,8]
[null,9,9,9,9,9,9,9,9,9]
[null,10,10,10,10,10,10,10,10,10]
[null,11,11,11,11,11,11,11,11,11]
[null,12,12,12,12,12,12,12,12,12]

{"sheet":"P___Objects","index":23,"n_rows":17,"n_cols":17,"rows_kept":17,"cut":false,"hidden":false,"merged":[[0,1,0,12]]}
[null,"Twelve month profit & loss projection"]
[null,"Jan","Feb","Mar","Apr","May","Jun","Jul","Aug","Sept","Oct","Nov","Dec ",null,"Yearly"]
["Revenues"]
["Revenue 1",140,160,100,90,110,120,140,110,70,90,100,120,null,{"$f":"SUM(B4:M4)","v":1350}]
["Revenue 2",150,170,110,100,120,130,150,160,120,140,150,100,null,{"$f":"SUM(B5:M5)","v":1600}]
["Revenue 3",100,120,90,70,90,100,120,160,40,60,70,150,null,1170]
["Total",{"$f":"SUM(B4:B6)","v":390},{"$f":"SUM(C4:C6)","v":450},300,260,{"$f":"SUM(F4:F5)","v":230},{"$f":"SUM(G4:G5)","v":250},410,430,230,290,320,370,null,3930]
[]
["Cost"]
["Cost 1",100,160,120,80,100,110,{"$f":"[2]C__Expense!I13","v":1},90,65,50,90,110,null,{"$f":"SUM(B10:M10)","v":1076}]
["Cost 2",120,170,130,90,110,120,120,140,115,100,140,160,null,{"$f":"SUM(B11:M11)","v":1515}]
["Cost 3",110,120,100,60,80,90,90,60,35,150,60,80,null,1035]
["Total",{"$f":"SUM(B10:B12)","v":330},{"$f":"SUM(C10:C12)","v":450},350,230,290,320,211,290,215,{"$f":"SUM(K11:K12)","v":250},290,350,null,3576]
[]
["Profit",{"$f":"B7-B13","v":60},{"$f":"C7-C13","v":0},-50,30,-60,-70,199,140,15,40,30,20,null,354]
[]
["Net Profit (Tax%)",0.2,null,null,null,null,null,null,null,null,null,null,null,null,null,null,{"$f":"O15*(1-20%)","v":283.2}]

{"sheet":"Q___Cash_Flow","index":24,"n_rows":29,"n_cols":13,"rows_kept":29,"cut":false,"hidden":false,"merged":[[4,0,4,1],[15,0,15,1],[20,0,20,1],[26,0,26,1],[28,0,28,1]]}
[]
["Cash flow",null,"Year:",{"$f":"NOW()","v":"2020-11-26T13:01:00.300"}]
["Account","Description","Month\nNovember","Month\nDecember","Current\nChange","YTD\n2020","YTD\n2019","YTD\nChange",null,"Total"]
[]
["Cash Flow From Operations"]
["1000","Net Income",365101.65,361217.63,{"$f":"IF(OR(C6 = \"\",D6 = \"\"),\"\",C6-D6)","v":3884.0200000000186},3884059.94,3884059.95,{"$f":"IF(OR(F6 = \"\",G6 = \"\"),\"\",F6-G6)","v":-1.0000000242143869E-2},null,{"$f":"SUM(C6:H6)","v":8498323.1800000016},null,null,"15___Cash_Flow'!A1"]
["1100","Net change in Accounts receivable - trade",202826.28,-299201.25,-299201.25,-299201.25,-299201.25,-299201.25,null,-1293179.97,null,null,"15___Cash_Flow'!A2"]
["1110","Net change in Accounts receivable - other",1309.55,46522.97,-45213.42,14937.8,14836.4,101.39999999999964,null,32494.700000000004,null,null,"15___Cash_Flow'!A3"]
["1199","Net change in Allowance for bad debts",4373.16,-247088.89,251462.05000000002,46523,46522.97,2.9999999998835847E-2,null,101792.32000000001,null,null,"15___Cash_Flow'!A4"]
["1200","Net change in Inventory",-5385.8,-21285,15899.2,-208521.56,-247088.89,38567.330000000016,null,-427814.72000000003,null,null,"15___Cash_Flow'!A5"]
["1900","Net change in Other current assets",-1804,651306.35,-653110.35,-22825,-21285,-1540,null,-49258]
["3000","Net change in Accounts payable",40428.050000000003,40086.449999999997,341.60000000000582,595082.55000000005,651306.35,-56223.79999999993,null,1271021.2000000002]
["3100","Net change in Accrued payroll",-491,-406,-85,-5492,11023.54,-16515.54,null,-11966]
["3400","Net change in Other current liabilities",12819,12146,673,141702.20000000001,131194.12,10508.080000000016,null,{"$f":"SUM(C14:H14)+15000","v":324042.40000000002},null,null,3930]
["Total ","Cash Flow From Operations",{"$f":"SUM(C6:C14)","v":619176.89000000013},{"$f":"SUM(D6:D14)","v":543298.25999999989},-725350.14999999991,4146265.6799999997,4171368.1900000004,-324303.76000000007,null,8445455.1100000031]
["Cash Flow From Investments"]
["2900","Increases in Other assets",-398,-420,{"$f":"IF(OR(C17 = \"\",D17 = \"\"),\"\",C17-D17)","v":22},-5126,-5208,{"$f":"IF(OR(F17 = \"\",G17 = \"\"),\"\",F17-G17)","v":82},null,-11048]
["2000","Decreases in Fixed assets",354,346,{"$f":"IF(OR(C18 = \"\",D18 = \"\"),\"\",C18-D18)","v":8},4027,3894,{"$f":"IF(OR(F18 = \"\",G18 = \"\"),\"\",F18-G18)","v":133},null,8762]
["2100","Decreases in Accumulated depreciation",23107.360000000001,22861.52,{"$f":"IF(OR(C19 = \"\",D19 = \"\"),\"\",C19-D19)","v":245.84000000000015},245823,245823.02,{"$f":"IF(OR(F19 = \"\",G19 = \"\"),\"\",F19-G19)","v":-1.9999999989522621E-2},null,537860.72]
["Total ","Cash Flow From Investments",{"$f":"SUM(C17:C19)","v":23063.360000000001},{"$f":"SUM(D17:D19)","v":22787.52},275.84000000000015,244724,244509.02,214.98000000001048,null,535574.72]
["Cash Flow From Financing"]
["3500","Increases in Long-term notes",279,318,{"$f":"IF(OR(C22 = \"\",D22 = \"\"),\"\",C22-D22)","v":-39},4163,4070,{"$f":"IF(OR(F22 = \"\",G22 = \"\"),\"\",F22-G22)","v":93},null,8884]
["3900","Increases in Other liabilities",261,189,{"$f":"IF(OR(C23 = \"\",D23 = \"\"),\"\",C23-D23)","v":72},2506,5022.24,{"$f":"IF(OR(F23 = \"\",G23 = \"\"),\"\",F23-G23)","v":-2516.2399999999998},null,5534]
["4000","Increases in Capital stock",211,203,{"$f":"IF(OR(C24 = \"\",D24 = \"\"),\"\",C24-D24)","v":8},2501,2475,{"$f":"IF(OR(F24 = \"\",G24 = \"\"),\"\",F24-G24)","v":26},null,5424]
["Total ","Cash Flow From Financing",{"$f":"SUM(C22:C24)","v":751},{"$f":"SUM(D22:D24)","v":710},41,9170,11567.24,-2397.2399999999998,null,{"$f":"SUM(J22:J24)","v":19842}]
[]
["Total Cash Flow",null,{"$f":"SUM(C15,C20,C25)","v":642991.25000000012},566795.77999999991,-725033.30999999994,4400159.68,4427444.45,-326486.02,null,{"$f":"SUM(J15,J20,J25)","v":9000871.8300000038}]
[]
["Netto Cash flow",null,null,null,null,null,null,null,null,null,{"$f":"J27*(1-20%)","v":7200697.4640000034}]

{"sheet":"R___Graph","index":25,"n_rows":7,"n_cols":22,"rows_kept":7,"cut":false,"hidden":false,"merged":[]}
[null,"Bears","Dolphins","Whales",null,null,null,null,null,null,"Bears","Dolphins","Whales",null,null,null,null,null,null,"Bears","Dolphins","Whales"]
[2009,8,150,80,null,null,null,null,null,2009,55,150,80,null,null,null,null,null,2009,8,150,80]
[2010,100,77,54,null,null,null,null,null,2010,100,77,54,null,null,null,null,null,2010,100,77,54]
[2011,93,32,100,null,null,null,null,null,2011,60,32,100,null,null,null,null,null,2011,93,32,100]
[2012,116,11,76,null,null,null,null,null,2012,116,11,76,null,null,null,null,null,2012,116,11,76]
[2013,137,6,93,null,null,null,null,null,2013,137,6,93,null,null,null,null,null,2013,137,6,93]
[2014,184,1,72,null,null,null,null,null,2014,184,1,72,null,null,null,null,null,2014,184,1,72]

{"sheet":"S___External_Links","index":26,"n_rows":20,"n_cols":19,"rows_kept":20,"cut":false,"hidden":false,"merged":[[1,1,1,12],[1,15,1,18]]}
[null,2,3,4,5,6,7,8,9,10,11,12,13,null,null,2,3,4,5]
[null,"year",null,null,null,null,null,null,null,null,null,null,null,null,null,"Quarter"]
[null,2009,2010,2011,2012,2013,2014,2015,2016,2017,2018,2019,2020,null,null,"Q1","Q2","Q3","Q4"]
["January",{"$f":"VLOOKUP($A4,[3]Sheet1!$A$3:$M$14,B$1,0)","v":1},{"$f":"VLOOKUP($A4,[3]Sheet1!$A$3:$M$14,C$1,0)","v":13},{"$f":"VLOOKUP($A4,[3]Sheet1!$A$3:$M$14,D$1,0)","v":25},{"$f":"VLOOKUP($A4,[3]Sheet1!$A$3:$M$14,E$1,0)","v":37},{"$f":"VLOOKUP($A4,[3]Sheet1!$A$3:$M$14,F$1,0)","v":49},{"$f":"VLOOKUP($A4,[4]Sheet1!$A$3:$M$14,G$1,0)","v":61},{"$f":"VLOOKUP($A4,[4]Sheet1!$A$3:$M$14,H$1,0)","v":73},{"$f":"VLOOKUP($A4,[4]Sheet1!$A$3:$M$14,I$1,0)","v":85},{"$f":"VLOOKUP($A4,[4]Sheet1!$A$3:$M$14,J$1,0)","v":97},{"$f":"VLOOKUP($A4,[4]Sheet1!$A$3:$M$14,K$1,0)","v":109},{"$f":"VLOOKUP($A4,[4]Sheet1!$A$3:$M$14,L$1,0)","v":121},{"$f":"VLOOKUP($A4,[4]Sheet1!$A$3:$M$14,M$1,0)","v":133},null,"January",{"$f":"VLOOKUP($O4,[5]Sheet1!$P$3:$T$14,P$1,0)","v":145},{"$f":"VLOOKUP($O4,[5]Sheet1!$P$3:$T$14,Q$1,0)","v":157},{"$f":"VLOOKUP($O4,[1]Sheet1!$P$3:$T$14,R$1,0)","v":169},{"$f":"VLOOKUP($O4,[1]Sheet1!$P$3:$T$14,S$1,0)","v":181}]
["February",{"$f":"VLOOKUP($A5,[3]Sheet1!$A$3:$M$14,B$1,0)","v":2},{"$f":"VLOOKUP($A5,[3]Sheet1!$A$3:$M$14,C$1,0)","v":14},{"$f":"VLOOKUP($A5,[3]Sheet1!$A$3:$M$14,D$1,0)","v":26},{"$f":"VLOOKUP($A5,[3]Sheet1!$A$3:$M$14,E$1,0)","v":38},{"$f":"VLOOKUP($A5,[3]Sheet1!$A$3:$M$14,F$1,0)","v":50},{"$f":"VLOOKUP($A5,[4]Sheet1!$A$3:$M$14,G$1,0)","v":62},{"$f":"VLOOKUP($A5,[4]Sheet1!$A$3:$M$14,H$1,0)","v":74},{"$f":"VLOOKUP($A5,[4]Sheet1!$A$3:$M$14,I$1,0)","v":86},{"$f":"VLOOKUP($A5,[4]Sheet1!$A$3:$M$14,J$1,0)","v":98},{"$f":"VLOOKUP($A5,[4]Sheet1!$A$3:$M$14,K$1,0)","v":110},{"$f":"VLOOKUP($A5,[4]Sheet1!$A$3:$M$14,L$1,0)","v":122},{"$f":"VLOOKUP($A5,[4]Sheet1!$A$3:$M$14,M$1,0)","v":134},null,"February",{"$f":"VLOOKUP($O5,[5]Sheet1!$P$3:$T$14,P$1,0)","v":146},{"$f":"VLOOKUP($O5,[5]Sheet1!$P$3:$T$14,Q$1,0)","v":158},{"$f":"VLOOKUP($O5,[1]Sheet1!$P$3:$T$14,R$1,0)","v":170},{"$f":"VLOOKUP($O5,[1]Sheet1!$P$3:$T$14,S$1,0)","v":182}]
["March",{"$f":"VLOOKUP($A6,[3]Sheet1!$A$3:$M$14,B$1,0)","v":3},{"$f":"VLOOKUP($A6,[3]Sheet1!$A$3:$M$14,C$1,0)","v":15},{"$f":"VLOOKUP($A6,[3]Sheet1!$A$3:$M$14,D$1,0)","v":27},{"$f":"VLOOKUP($A6,[3]Sheet1!$A$3:$M$14,E$1,0)","v":39},{"$f":"VLOOKUP($A6,[3]Sheet1!$A$3:$M$14,F$1,0)","v":51},{"$f":"VLOOKUP($A6,[4]Sheet1!$A$3:$M$14,G$1,0)","v":63},{"$f":"VLOOKUP($A6,[4]Sheet1!$A$3:$M$14,H$1,0)","v":75},{"$f":"VLOOKUP($A6,[4]Sheet1!$A$3:$M$14,I$1,0)","v":87},{"$f":"VLOOKUP($A6,[4]Sheet1!$A$3:$M$14,J$1,0)","v":99},{"$f":"VLOOKUP($A6,[4]Sheet1!$A$3:$M$14,K$1,0)","v":111},{"$f":"VLOOKUP($A6,[4]Sheet1!$A$3:$M$14,L$1,0)","v":123},{"$f":"VLOOKUP($A6,[4]Sheet1!$A$3:$M$14,M$1,0)","v":135},null,"March",{"$f":"VLOOKUP($O6,[5]Sheet1!$P$3:$T$14,P$1,0)","v":147},{"$f":"VLOOKUP($O6,[5]Sheet1!$P$3:$T$14,Q$1,0)","v":159},{"$f":"VLOOKUP($O6,[1]Sheet1!$P$3:$T$14,R$1,0)","v":171},{"$f":"VLOOKUP($O6,[1]Sheet1!$P$3:$T$14,S$1,0)","v":183}]
["April",{"$f":"VLOOKUP($A7,[3]Sheet1!$A$3:$M$14,B$1,0)","v":4},{"$f":"VLOOKUP($A7,[3]Sheet1!$A$3:$M$14,C$1,0)","v":16},{"$f":"VLOOKUP($A7,[3]Sheet1!$A$3:$M$14,D$1,0)","v":28},{"$f":"VLOOKUP($A7,[3]Sheet1!$A$3:$M$14,E$1,0)","v":40},{"$f":"VLOOKUP($A7,[3]Sheet1!$A$3:$M$14,F$1,0)","v":52},{"$f":"VLOOKUP($A7,[4]Sheet1!$A$3:$M$14,G$1,0)","v":64},{"$f":"VLOOKUP($A7,[4]Sheet1!$A$3:$M$14,H$1,0)","v":76},{"$f":"VLOOKUP($A7,[4]Sheet1!$A$3:$M$14,I$1,0)","v":88},{"$f":"VLOOKUP($A7,[4]Sheet1!$A$3:$M$14,J$1,0)","v":100},{"$f":"VLOOKUP($A7,[4]Sheet1!$A$3:$M$14,K$1,0)","v":112},{"$f":"VLOOKUP($A7,[4]Sheet1!$A$3:$M$14,L$1,0)","v":124},{"$f":"VLOOKUP($A7,[4]Sheet1!$A$3:$M$14,M$1,0)","v":136},null,"April",{"$f":"VLOOKUP($O7,[5]Sheet1!$P$3:$T$14,P$1,0)","v":148},{"$f":"VLOOKUP($O7,[5]Sheet1!$P$3:$T$14,Q$1,0)","v":160},{"$f":"VLOOKUP($O7,[1]Sheet1!$P$3:$T$14,R$1,0)","v":172},{"$f":"VLOOKUP($O7,[1]Sheet1!$P$3:$T$14,S$1,0)","v":184}]
["May",{"$f":"VLOOKUP($A8,[3]Sheet1!$A$3:$M$14,B$1,0)","v":5},{"$f":"VLOOKUP($A8,[3]Sheet1!$A$3:$M$14,C$1,0)","v":17},{"$f":"VLOOKUP($A8,[3]Sheet1!$A$3:$M$14,D$1,0)","v":29},{"$f":"VLOOKUP($A8,[3]Sheet1!$A$3:$M$14,E$1,0)","v":41},{"$f":"VLOOKUP($A8,[3]Sheet1!$A$3:$M$14,F$1,0)","v":53},{"$f":"VLOOKUP($A8,[4]Sheet1!$A$3:$M$14,G$1,0)","v":65},{"$f":"VLOOKUP($A8,[4]Sheet1!$A$3:$M$14,H$1,0)","v":77},{"$f":"VLOOKUP($A8,[4]Sheet1!$A$3:$M$14,I$1,0)","v":89},{"$f":"VLOOKUP($A8,[4]Sheet1!$A$3:$M$14,J$1,0)","v":101},{"$f":"VLOOKUP($A8,[4]Sheet1!$A$3:$M$14,K$1,0)","v":113},{"$f":"VLOOKUP($A8,[4]Sheet1!$A$3:$M$14,L$1,0)","v":125},{"$f":"VLOOKUP($A8,[4]Sheet1!$A$3:$M$14,M$1,0)","v":137},null,"May",{"$f":"VLOOKUP($O8,[5]Sheet1!$P$3:$T$14,P$1,0)","v":149},{"$f":"VLOOKUP($O8,[5]Sheet1!$P$3:$T$14,Q$1,0)","v":161},{"$f":"VLOOKUP($O8,[1]Sheet1!$P$3:$T$14,R$1,0)","v":173},{"$f":"VLOOKUP($O8,[1]Sheet1!$P$3:$T$14,S$1,0)","v":185}]
["June",{"$f":"VLOOKUP($A9,[3]Sheet1!$A$3:$M$14,B$1,0)","v":6},{"$f":"VLOOKUP($A9,[3]Sheet1!$A$3:$M$14,C$1,0)","v":18},{"$f":"VLOOKUP($A9,[3]Sheet1!$A$3:$M$14,D$1,0)","v":30},{"$f":"VLOOKUP($A9,[3]Sheet1!$A$3:$M$14,E$1,0)","v":42},{"$f":"VLOOKUP($A9,[3]Sheet1!$A$3:$M$14,F$1,0)","v":54},{"$f":"VLOOKUP($A9,[4]Sheet1!$A$3:$M$14,G$1,0)","v":66},{"$f":"VLOOKUP($A9,[4]Sheet1!$A$3:$M$14,H$1,0)","v":78},{"$f":"VLOOKUP($A9,[4]Sheet1!$A$3:$M$14,I$1,0)","v":90},{"$f":"VLOOKUP($A9,[4]Sheet1!$A$3:$M$14,J$1,0)","v":102},{"$f":"VLOOKUP($A9,[4]Sheet1!$A$3:$M$14,K$1,0)","v":114},{"$f":"VLOOKUP($A9,[4]Sheet1!$A$3:$M$14,L$1,0)","v":126},{"$f":"VLOOKUP($A9,[4]Sheet1!$A$3:$M$14,M$1,0)","v":138},null,"June",{"$f":"VLOOKUP($O9,[5]Sheet1!$P$3:$T$14,P$1,0)","v":150},{"$f":"VLOOKUP($O9,[5]Sheet1!$P$3:$T$14,Q$1,0)","v":162},{"$f":"VLOOKUP($O9,[1]Sheet1!$P$3:$T$14,R$1,0)","v":174},{"$f":"VLOOKUP($O9,[1]Sheet1!$P$3:$T$14,S$1,0)","v":186}]
["July",{"$f":"VLOOKUP($A10,[3]Sheet1!$A$3:$M$14,B$1,0)","v":7},{"$f":"VLOOKUP($A10,[3]Sheet1!$A$3:$M$14,C$1,0)","v":19},{"$f":"VLOOKUP($A10,[3]Sheet1!$A$3:$M$14,D$1,0)","v":31},{"$f":"VLOOKUP($A10,[3]Sheet1!$A$3:$M$14,E$1,0)","v":43},{"$f":"VLOOKUP($A10,[3]Sheet1!$A$3:$M$14,F$1,0)","v":55},{"$f":"VLOOKUP($A10,[4]Sheet1!$A$3:$M$14,G$1,0)","v":67},{"$f":"VLOOKUP($A10,[4]Sheet1!$A$3:$M$14,H$1,0)","v":79},{"$f":"VLOOKUP($A10,[4]Sheet1!$A$3:$M$14,I$1,0)","v":91},{"$f":"VLOOKUP($A10,[4]Sheet1!$A$3:$M$14,J$1,0)","v":103},{"$f":"VLOOKUP($A10,[4]Sheet1!$A$3:$M$14,K$1,0)","v":115},{"$f":"VLOOKUP($A10,[4]Sheet1!$A$3:$M$14,L$1,0)","v":127},{"$f":"VLOOKUP($A10,[4]Sheet1!$A$3:$M$14,M$1,0)","v":139},null,"July",{"$f":"VLOOKUP($O10,[5]Sheet1!$P$3:$T$14,P$1,0)","v":151},{"$f":"VLOOKUP($O10,[5]Sheet1!$P$3:$T$14,Q$1,0)","v":163},{"$f":"VLOOKUP($O10,[1]Sheet1!$P$3:$T$14,R$1,0)","v":175},{"$f":"VLOOKUP($O10,[1]Sheet1!$P$3:$T$14,S$1,0)","v":187}]
["August",{"$f":"VLOOKUP($A11,[3]Sheet1!$A$3:$M$14,B$1,0)","v":8},{"$f":"VLOOKUP($A11,[3]Sheet1!$A$3:$M$14,C$1,0)","v":20},{"$f":"VLOOKUP($A11,[3]Sheet1!$A$3:$M$14,D$1,0)","v":32},{"$f":"VLOOKUP($A11,[3]Sheet1!$A$3:$M$14,E$1,0)","v":44},{"$f":"VLOOKUP($A11,[3]Sheet1!$A$3:$M$14,F$1,0)","v":56},{"$f":"VLOOKUP($A11,[4]Sheet1!$A$3:$M$14,G$1,0)","v":68},{"$f":"VLOOKUP($A11,[4]Sheet1!$A$3:$M$14,H$1,0)","v":80},{"$f":"VLOOKUP($A11,[4]Sheet1!$A$3:$M$14,I$1,0)","v":92},{"$f":"VLOOKUP($A11,[4]Sheet1!$A$3:$M$14,J$1,0)","v":104},{"$f":"VLOOKUP($A11,[4]Sheet1!$A$3:$M$14,K$1,0)","v":116},{"$f":"VLOOKUP($A11,[4]Sheet1!$A$3:$M$14,L$1,0)","v":128},{"$f":"VLOOKUP($A11,[4]Sheet1!$A$3:$M$14,M$1,0)","v":140},null,"August",{"$f":"VLOOKUP($O11,[5]Sheet1!$P$3:$T$14,P$1,0)","v":152},{"$f":"VLOOKUP($O11,[5]Sheet1!$P$3:$T$14,Q$1,0)","v":164},{"$f":"VLOOKUP($O11,[1]Sheet1!$P$3:$T$14,R$1,0)","v":176},{"$f":"VLOOKUP($O11,[1]Sheet1!$P$3:$T$14,S$1,0)","v":188}]
["September",{"$f":"VLOOKUP($A12,[3]Sheet1!$A$3:$M$14,B$1,0)","v":9},{"$f":"VLOOKUP($A12,[3]Sheet1!$A$3:$M$14,C$1,0)","v":21},{"$f":"VLOOKUP($A12,[3]Sheet1!$A$3:$M$14,D$1,0)","v":33},{"$f":"VLOOKUP($A12,[3]Sheet1!$A$3:$M$14,E$1,0)","v":45},{"$f":"VLOOKUP($A12,[3]Sheet1!$A$3:$M$14,F$1,0)","v":57},{"$f":"VLOOKUP($A12,[4]Sheet1!$A$3:$M$14,G$1,0)","v":69},{"$f":"VLOOKUP($A12,[4]Sheet1!$A$3:$M$14,H$1,0)","v":81},{"$f":"VLOOKUP($A12,[4]Sheet1!$A$3:$M$14,I$1,0)","v":93},{"$f":"VLOOKUP($A12,[4]Sheet1!$A$3:$M$14,J$1,0)","v":105},{"$f":"VLOOKUP($A12,[4]Sheet1!$A$3:$M$14,K$1,0)","v":117},{"$f":"VLOOKUP($A12,[4]Sheet1!$A$3:$M$14,L$1,0)","v":129},{"$f":"VLOOKUP($A12,[4]Sheet1!$A$3:$M$14,M$1,0)","v":141},null,"September",{"$f":"VLOOKUP($O12,[5]Sheet1!$P$3:$T$14,P$1,0)","v":153},{"$f":"VLOOKUP($O12,[5]Sheet1!$P$3:$T$14,Q$1,0)","v":165},{"$f":"VLOOKUP($O12,[1]Sheet1!$P$3:$T$14,R$1,0)","v":177},{"$f":"VLOOKUP($O12,[1]Sheet1!$P$3:$T$14,S$1,0)","v":189}]
["October",{"$f":"VLOOKUP($A13,[3]Sheet1!$A$3:$M$14,B$1,0)","v":10},{"$f":"VLOOKUP($A13,[3]Sheet1!$A$3:$M$14,C$1,0)","v":22},{"$f":"VLOOKUP($A13,[3]Sheet1!$A$3:$M$14,D$1,0)","v":34},{"$f":"VLOOKUP($A13,[3]Sheet1!$A$3:$M$14,E$1,0)","v":46},{"$f":"VLOOKUP($A13,[3]Sheet1!$A$3:$M$14,F$1,0)","v":58},{"$f":"VLOOKUP($A13,[4]Sheet1!$A$3:$M$14,G$1,0)","v":70},{"$f":"VLOOKUP($A13,[4]Sheet1!$A$3:$M$14,H$1,0)","v":82},{"$f":"VLOOKUP($A13,[4]Sheet1!$A$3:$M$14,I$1,0)","v":94},{"$f":"VLOOKUP($A13,[4]Sheet1!$A$3:$M$14,J$1,0)","v":106},{"$f":"VLOOKUP($A13,[4]Sheet1!$A$3:$M$14,K$1,0)","v":118},{"$f":"VLOOKUP($A13,[4]Sheet1!$A$3:$M$14,L$1,0)","v":130},{"$f":"VLOOKUP($A13,[4]Sheet1!$A$3:$M$14,M$1,0)","v":142},null,"October",{"$f":"VLOOKUP($O13,[5]Sheet1!$P$3:$T$14,P$1,0)","v":154},{"$f":"VLOOKUP($O13,[5]Sheet1!$P$3:$T$14,Q$1,0)","v":166},{"$f":"VLOOKUP($O13,[1]Sheet1!$P$3:$T$14,R$1,0)","v":178},{"$f":"VLOOKUP($O13,[1]Sheet1!$P$3:$T$14,S$1,0)","v":190}]
["November",{"$f":"VLOOKUP($A14,[3]Sheet1!$A$3:$M$14,B$1,0)","v":11},{"$f":"VLOOKUP($A14,[3]Sheet1!$A$3:$M$14,C$1,0)","v":23},{"$f":"VLOOKUP($A14,[3]Sheet1!$A$3:$M$14,D$1,0)","v":35},{"$f":"VLOOKUP($A14,[3]Sheet1!$A$3:$M$14,E$1,0)","v":47},{"$f":"VLOOKUP($A14,[3]Sheet1!$A$3:$M$14,F$1,0)","v":59},{"$f":"VLOOKUP($A14,[4]Sheet1!$A$3:$M$14,G$1,0)","v":71},{"$f":"VLOOKUP($A14,[4]Sheet1!$A$3:$M$14,H$1,0)","v":83},{"$f":"VLOOKUP($A14,[4]Sheet1!$A$3:$M$14,I$1,0)","v":95},{"$f":"VLOOKUP($A14,[4]Sheet1!$A$3:$M$14,J$1,0)","v":107},{"$f":"VLOOKUP($A14,[4]Sheet1!$A$3:$M$14,K$1,0)","v":119},{"$f":"VLOOKUP($A14,[4]Sheet1!$A$3:$M$14,L$1,0)","v":131},{"$f":"VLOOKUP($A14,[4]Sheet1!$A$3:$M$14,M$1,0)","v":143},null,"November",{"$f":"VLOOKUP($O14,[5]Sheet1!$P$3:$T$14,P$1,0)","v":155},{"$f":"VLOOKUP($O14,[5]Sheet1!$P$3:$T$14,Q$1,0)","v":167},{"$f":"VLOOKUP($O14,[1]Sheet1!$P$3:$T$14,R$1,0)","v":179},{"$f":"VLOOKUP($O14,[1]Sheet1!$P$3:$T$14,S$1,0)","v":191}]
["December",{"$f":"VLOOKUP($A15,[3]Sheet1!$A$3:$M$14,B$1,0)","v":12},{"$f":"VLOOKUP($A15,[3]Sheet1!$A$3:$M$14,C$1,0)","v":24},{"$f":"VLOOKUP($A15,[3]Sheet1!$A$3:$M$14,D$1,0)","v":36},{"$f":"VLOOKUP($A15,[3]Sheet1!$A$3:$M$14,E$1,0)","v":48},{"$f":"VLOOKUP($A15,[3]Sheet1!$A$3:$M$14,F$1,0)","v":60},{"$f":"VLOOKUP($A15,[4]Sheet1!$A$3:$M$14,G$1,0)","v":72},{"$f":"VLOOKUP($A15,[4]Sheet1!$A$3:$M$14,H$1,0)","v":84},{"$f":"VLOOKUP($A15,[4]Sheet1!$A$3:$M$14,I$1,0)","v":96},{"$f":"VLOOKUP($A15,[4]Sheet1!$A$3:$M$14,J$1,0)","v":108},{"$f":"VLOOKUP($A15,[4]Sheet1!$A$3:$M$14,K$1,0)","v":120},{"$f":"VLOOKUP($A15,[4]Sheet1!$A$3:$M$14,L$1,0)","v":132},{"$f":"VLOOKUP($A15,[4]Sheet1!$A$3:$M$14,M$1,0)","v":144},null,"December",{"$f":"VLOOKUP($O15,[5]Sheet1!$P$3:$T$14,P$1,0)","v":156},{"$f":"VLOOKUP($O15,[5]Sheet1!$P$3:$T$14,Q$1,0)","v":168},{"$f":"VLOOKUP($O15,[1]Sheet1!$P$3:$T$14,R$1,0)","v":180},{"$f":"VLOOKUP($O15,[1]Sheet1!$P$3:$T$14,S$1,0)","v":192}]
[]
[null,"Balance"]
["Reserves 1",{"$f":"[6]Sheet1!$D$19","v":193}]
["Reserves 2",{"$f":"[7]Sheet1!$D$20","v":194}]
["Reserves 3",{"$f":"[1]Sheet1!$D$21","v":195}]

{"sheet":"T___Profit_&_Loss","index":27,"n_rows":53,"n_cols":20,"rows_kept":53,"cut":false,"hidden":false,"merged":[[0,2,0,17]]}
[null,null,"Profit & Loss Statement year 2020"]
[null,null,"2020-01-01",{"$f":"DATE(YEAR(C2),MONTH(C2)+1,DAY(1))","v":"2020-02-01"},{"$f":"DATE(YEAR(D2),MONTH(D2)+1,DAY(1))","v":"2020-03-01"},{"$f":"\"Q1//\"&+RIGHT(YEAR(E2),2)","v":"Q1//20"},{"$f":"DATE(YEAR(E2),MONTH(E2)+1,DAY(1))","v":"2020-04-01"},{"$f":"DATE(YEAR(G2),MONTH(G2)+1,DAY(1))","v":"2020-05-01"},{"$f":"DATE(YEAR(H2),MONTH(H2)+1,DAY(1))","v":"2020-06-01"},{"$f":"\"Q2//\"&+RIGHT(YEAR(I2),2)","v":"Q2//20"},{"$f":"DATE(YEAR(I2),MONTH(I2)+1,DAY(1))","v":"2020-07-01"},{"$f":"DATE(YEAR(K2),MONTH(K2)+1,DAY(1))","v":"2020-08-01"},{"$f":"DATE(YEAR(L2),MONTH(L2)+1,DAY(1))","v":"2020-09-01"},{"$f":"\"Q3//\"&+RIGHT(YEAR(M2),2)","v":"Q3//20"},{"$f":"DATE(YEAR(M2),MONTH(M2)+1,DAY(1))","v":"2020-10-01"},{"$f":"DATE(YEAR(O2),MONTH(O2)+1,DAY(1))","v":"2020-11-01"},{"$f":"DATE(YEAR(P2),MONTH(P2)+1,DAY(1))","v":"2020-12-01"},{"$f":"\"Q4//\"&+RIGHT(YEAR(Q2),2)","v":"Q4//20"},null,"Total year"]
["Revenue/ Sales"]
["Application Maintenance",null,120000,120000,120000,{"$f":"SUM(C4:E4)","v":360000},{"$f":"C4+15000","v":135000},{"$f":"D4+15000","v":135000},135000,{"$f":"SUM(G4:I4)","v":405000},{"$f":"G4+15000","v":150000},{"$f":"H4+15000","v":150000},150000,{"$f":"SUM(K4:M4)","v":450000},{"$f":"K4+15000","v":165000},{"$f":"L4+15000","v":165000},165000,{"$f":"SUM(O4:Q4)","v":495000},null,{"$f":"F4+J4+N4+R4","v":1710000}]
["Other Sales",null,120000,120000,120000,360000,{"$f":"C5+15000","v":135000},135000,135000,405000,{"$f":"G5+15000","v":150000},150000,150000,450000,{"$f":"K5+15000","v":165000},165000,165000,495000,null,1710000]
["Other Sales",null,70000,70000,70000,210000,85000,85000,85000,255000,100000,100000,100000,300000,115000,115000,115000,345000,null,1110000]
["Other Sales",null,80000,80000,80000,240000,95000,95000,95000,285000,110000,110000,110000,330000,125000,125000,125000,375000,null,1230000]
["Other Sales",null,120000,120000,120000,360000,135000,135000,135000,405000,150000,150000,150000,450000,165000,165000,165000,495000,null,1710000]
["Services",null,70000,70000,70000,{"$f":"SUM(C9:E9)","v":210000},85000,85000,85000,255000,100000,100000,100000,300000,115000,115000,115000,345000,null,1110000]
["Software Customization",null,80000,80000,80000,{"$f":"SUM(C10:E10)","v":240000},95000,95000,95000,285000,110000,110000,110000,330000,125000,125000,125000,375000,null,1230000]
["Software Licenses",null,30000,30000,30000,90000,45000,45000,45000,135000,60000,60000,60000,180000,75000,75000,75000,225000,null,630000]
["Software Support",null,25000,25000,25000,75000,40000,40000,40000,120000,55000,55000,55000,165000,70000,70000,70000,210000,null,570000]
["Total Revenue",null,{"$f":"SUM(C4:C12)","v":715000},{"$f":"SUM(D4:D12)","v":715000},{"$f":"SUM(E4:E12)","v":715000},2145000,{"$f":"SUM(G4:G12)","v":850000},{"$f":"SUM(H4:H12)","v":850000},{"$f":"SUM(I4:I12)","v":850000},2550000,{"$f":"SUM(K4:K12)","v":985000},{"$f":"SUM(L4:L12)","v":985000},{"$f":"SUM(M4:M12)","v":985000},2955000,{"$f":"SUM(O4:O12)","v":1120000},{"$f":"SUM(P4:P12)","v":1120000},{"$f":"SUM(Q4:Q12)","v":1120000},3360000,null,{"$f":"SUM(T4:T12)","v":11010000}]
[]
["Cost of Goods Sold"]
["Salary",null,80000,80000,80000,{"$f":"SUM(C16:E16)","v":240000},{"$f":"C16+10000","v":90000},{"$f":"D16+10000","v":90000},90000,{"$f":"SUM(G16:I16)","v":270000},{"$f":"G16+10000","v":100000},{"$f":"H16+10000","v":100000},100000,{"$f":"SUM(K16:M16)","v":300000},{"$f":"K16+10000","v":110000},{"$f":"L16+10000","v":110000},110000,{"$f":"SUM(O16:Q16)","v":330000},null,{"$f":"F16+J16+N16+R16","v":1140000}]
["Benefits",null,30000,30000,30000,{"$f":"SUM(C17:E17)","v":90000},{"$f":"C17+10000","v":40000},40000,40000,{"$f":"SUM(G17:I17)","v":120000},{"$f":"G17+10000","v":50000},50000,50000,{"$f":"SUM(K17:M17)","v":150000},{"$f":"K17+10000","v":60000},60000,60000,{"$f":"SUM(O17:Q17)","v":180000},null,540000]
["Contractor cost",null,30000,30000,30000,90000,40000,40000,40000,120000,50000,50000,50000,150000,60000,60000,60000,180000,null,540000]
["Other Cost of Sales",null,40000,40000,40000,120000,50000,50000,50000,150000,60000,60000,60000,180000,70000,70000,70000,210000,null,660000]
["Other Cost of Sales",null,50000,50000,50000,150000,60000,60000,60000,180000,70000,70000,70000,210000,80000,80000,80000,240000,null,780000]
["Other Cost of Sales",null,40000,40000,40000,120000,20000,20000,20000,60000,20000,20000,20000,60000,20000,20000,20000,60000,null,300000]
["Other Cost of Sales",null,30000,30000,30000,90000,10000,10000,10000,30000,10000,10000,10000,30000,10000,10000,10000,30000,null,180000]
["Software Development",null,40000,40000,40000,120000,20000,20000,20000,60000,20000,20000,20000,60000,20000,20000,20000,60000,null,300000]
["Travel",null,23000,23000,23000,69000,3000,3000,3000,9000,3000,3000,3000,9000,3000,3000,3000,9000,null,96000]
["Total Cost",null,{"$f":"SUM(C16:C24)","v":363000},{"$f":"SUM(D16:D24)","v":363000},{"$f":"SUM(E16:E24)","v":363000},1089000,{"$f":"SUM(G16:G24)","v":333000},{"$f":"SUM(H16:H24)","v":333000},{"$f":"SUM(I16:I24)","v":333000},999000,{"$f":"SUM(K16:K24)","v":383000},{"$f":"SUM(L16:L24)","v":383000},{"$f":"SUM(M16:M24)","v":383000},1149000,{"$f":"SUM(O16:O24)","v":433000},{"$f":"SUM(P16:P24)","v":433000},{"$f":"SUM(Q16:Q24)","v":433000},1299000,null,{"$f":"SUM(T16:T24)","v":4536000}]
[]
["Gross Profit",null,{"$f":"C13-C25","v":352000},352000,352000,1056000,517000,517000,517000,1551000,602000,602000,602000,1806000,687000,687000,687000,2061000,null,6474000]
[]
["Expenses"]
["Salary expenses ",null,25000,25000,25000,{"$f":"SUM(C30:E30)","v":75000},{"$f":"C30+5000","v":30000},{"$f":"D30+5000","v":30000},{"$f":"E30+5000","v":30000},{"$f":"SUM(G30:I30)","v":90000},{"$f":"G30+5000","v":35000},{"$f":"H30+5000","v":35000},{"$f":"I30+5000","v":35000},{"$f":"SUM(K30:M30)","v":105000},{"$f":"K30+5000","v":40000},{"$f":"L30+5000","v":40000},{"$f":"M30+5000","v":40000},{"$f":"SUM(O30:Q30)","v":120000},null,{"$f":"F30+J30+N30+R30","v":390000}]
["Accounting/Finance",null,35000,35000,35000,105000,15000,15000,15000,45000,15000,15000,15000,45000,15000,15000,15000,45000,null,240000]
["Advertising",null,70000,70000,70000,210000,{"$f":"C32+15000","v":85000},{"$f":"D32+15000","v":85000},{"$f":"E32+15000","v":85000},255000,{"$f":"G32+15000","v":100000},{"$f":"H32+15000","v":100000},{"$f":"I32+15000","v":100000},300000,{"$f":"K32+15000","v":115000},{"$f":"L32+15000","v":115000},{"$f":"M32+15000","v":115000},345000,null,1110000]
["Amortization",null,24000,24000,24000,72000,4000,4000,4000,12000,4000,4000,4000,12000,4000,4000,4000,12000,null,108000]
["Bad Debts",null,25000,25000,25000,75000,5000,5000,5000,15000,5000,5000,5000,15000,5000,5000,5000,15000,null,120000]
["Contractor Labor",null,24000,24000,24000,72000,4000,4000,4000,12000,4000,4000,4000,12000,4000,4000,4000,12000,null,108000]
["Delivery Expenses",null,20000,20000,20000,60000,null,null,null,0,null,null,null,0,null,null,null,0,null,60000]
["Depreciation",null,30000,30000,30000,{"$f":"SUM(C37:E37)","v":90000},10000,10000,10000,{"$f":"SUM(G37:I37)","v":30000},10000,10000,10000,{"$f":"SUM(K37:M37)","v":30000},10000,10000,10000,{"$f":"SUM(O37:Q37)","v":30000},null,180000]
["Insurance",null,20500,20500,20500,{"$f":"SUM(C38:E38)","v":61500},500,500,500,{"$f":"SUM(G38:I38)","v":1500},500,500,500,{"$f":"SUM(K38:M38)","v":1500},500,500,500,{"$f":"SUM(O38:Q38)","v":1500},null,66000]
["Interest",null,20400,20400,20400,{"$f":"SUM(C39:E39)","v":61200},400,400,400,{"$f":"SUM(G39:I39)","v":1200},400,400,400,{"$f":"SUM(K39:M39)","v":1200},400,400,400,{"$f":"SUM(O39:Q39)","v":1200},null,64800]
["Maintanence",null,21000,21000,21000,{"$f":"SUM(C40:E40)","v":63000},1000,1000,1000,{"$f":"SUM(G40:I40)","v":3000},1000,1000,1000,{"$f":"SUM(K40:M40)","v":3000},1000,1000,1000,{"$f":"SUM(O40:Q40)","v":3000},null,72000]
["Office Expenses",null,21500,21500,21500,{"$f":"SUM(C41:E41)","v":64500},1500,1500,1500,{"$f":"SUM(G41:I41)","v":4500},1500,1500,1500,{"$f":"SUM(K41:M41)","v":4500},1500,1500,1500,{"$f":"SUM(O41:Q41)","v":4500},null,78000]
["Other expenses",null,20500,20500,20500,61500,500,500,500,1500,500,500,500,1500,500,500,500,1500,null,66000]
["Other expenses",null,20400,20400,20400,{"$f":"SUM(C43:E43)","v":61200},400,400,400,{"$f":"SUM(G43:I43)","v":1200},400,400,400,{"$f":"SUM(K43:M43)","v":1200},400,400,400,{"$f":"SUM(O43:Q43)","v":1200},null,64800]
["Other expenses",null,20000,20000,20000,{"$f":"SUM(C44:E44)","v":60000},null,null,null,{"$f":"SUM(G44:I44)","v":0},null,null,null,{"$f":"SUM(K44:M44)","v":0},null,null,null,{"$f":"SUM(O44:Q44)","v":0},null,60000]
["Payroll Taxes",null,21500,21500,21500,{"$f":"SUM(C45:E45)","v":64500},1500,1500,1500,{"$f":"SUM(G45:I45)","v":4500},1500,1500,1500,{"$f":"SUM(K45:M45)","v":4500},1500,1500,1500,{"$f":"SUM(O45:Q45)","v":4500},null,78000]
["Property Taxes",null,25000,25000,25000,{"$f":"SUM(C46:E46)","v":75000},5000,5000,5000,{"$f":"SUM(G46:I46)","v":15000},5000,5000,5000,{"$f":"SUM(K46:M46)","v":15000},5000,5000,5000,{"$f":"SUM(O46:Q46)","v":15000},null,120000]
["Rent/Lease",null,21000,21000,21000,{"$f":"SUM(C47:E47)","v":63000},1000,1000,1000,{"$f":"SUM(G47:I47)","v":3000},1000,1000,1000,{"$f":"SUM(K47:M47)","v":3000},1000,1000,1000,{"$f":"SUM(O47:Q47)","v":3000},null,72000]
["Total Expenses",null,21000,21000,21000,63000,1000,1000,1000,3000,1000,1000,1000,3000,1000,1000,1000,3000,null,72000]
["Travel",null,24000,24000,24000,72000,4000,4000,4000,12000,4000,4000,4000,12000,4000,4000,4000,12000,null,108000]
["Utilities/Telephone",null,23000,23000,23000,69000,3000,3000,3000,9000,3000,3000,3000,9000,3000,3000,3000,9000,null,96000]
["Vehicle Expenses",null,132800,132800,132800,398400,{"$f":"SUM(G30:G50)","v":172800},{"$f":"SUM(H30:H50)","v":172800},{"$f":"SUM(I30:I50)","v":172800},518400,{"$f":"SUM(K30:K50)","v":192800},{"$f":"SUM(L30:L50)","v":192800},{"$f":"SUM(M30:M50)","v":192800},578400,{"$f":"SUM(O30:O50)","v":212800},{"$f":"SUM(P30:P50)","v":212800},{"$f":"SUM(Q30:Q50)","v":212800},638400,null,2133600]
[]
["Net Profit",null,{"$f":"C27-C51","v":219200},219200,219200,657600,344200,344200,344200,1032600,409200,409200,409200,1227600,474200,474200,474200,1422600,null,4340400]